{"text_format":"3","workbook":"xlsx","n_sheets":10,"sheets":["0. Contents","I. Readme, sources","II. Headline series","III. GDP shares, 1310-2018","IV. Country level, 1310-2018","V. Standard dev., 1329-2018","VI. R-G variations, 1317-2018","VII. Neg. rates freq., 1313- ","VIII. Pers. sov. loans, 1312-","IX. War frequency, 1495-2018"],"not_rendered":{"charts":13,"external_links":1,"defined_names":1},"read":"whole","date_system":"1900"}

{"sheet":"0. Contents","index":0,"n_rows":13,"n_cols":17,"rows_kept":13,"merged":[[5,13,8,23],[10,16,10,20]]}
[]
[]
[null,"Contents:"]
[]
[null,"I. Readme, sources"]
[null,"II. Headline series",{"$nulls":11},"This spreadsheet contains underlying data to the Bank of England Staff Working Paper No. 845, \"Eight centuries of global real interest rates, R-G, and the 'suprasecular' decline, 1311-2018\", by Paul Schmelzing. If you spot errors or have comments, contact the author at schmelzing[at]fas.harvard.edu"]
[null,"III. GDP shares, 1310-2018"]
[null,"IV. Country level: nominal yields and inflation, 1310-2018"]
[null,"V. Standard deviation, 1329-2018"]
[null,"VI. R-G variations, 1317-2018"]
[null,"VII. Negative real rate frequency, 1313-2018",{"$nulls":14},"This version: 1.2      January 2020"]
[null,"VIII. Personal sovereign loans, 1312-2018"]
[null,"IX. War frequency, 1495-2018"]

{"sheet":"I. Readme, sources","index":1,"n_rows":175,"n_cols":24,"rows_kept":175,"merged":[[1,9,6,16],[2,1,3,6],[8,19,9,20],[8,21,9,21],[8,23,9,23],[9,1,9,5],[11,19,11,20],[12,19,12,20],[13,19,13,20],[14,19,14,20],[15,19,15,20],[16,19,16,20],[17,19,17,20],[18,19,18,20],[19,19,19,20],[20,19,20,20],[21,19,21,20],[22,19,22,20],[23,19,23,20],[24,19,24,20],[25,19,25,20],[26,19,26,20],[28,1,28,5],[30,19,30,20],[31,19,31,20],[32,19,32,20],[33,19,33,20],[35,19,35,20],[37,19,37,20],[38,19,38,20],[39,19,39,20],[40,19,40,20],[42,19,42,20],[43,19,43,20],[45,19,45,20],[46,19,46,20],[47,19,47,20],[48,19,48,20],[49,19,49,20],[50,19,50,20],[51,19,51,20],[55,1,55,5],[59,19,59,20],[61,19,61,20],[62,19,62,20],[63,19,63,20],[66,19,66,20],[68,19,68,20],[69,19,69,20],[71,19,71,20],[72,19,72,20],[74,19,74,20],[75,19,75,20],[77,19,77,20],[78,19,78,20],[79,19,79,20],[81,19,81,20],[82,19,82,20],[83,19,83,20],[84,19,84,20],[85,19,85,20],[87,19,87,20],[88,19,88,20],[89,19,89,20],[90,19,90,20],[91,19,91,20],[92,19,92,20],[95,19,95,20],[96,19,96,20],[99,19,99,20],[100,19,100,20],[101,19,101,20],[107,19,107,20],[110,19,110,20],[111,19,111,20],[112,19,112,20],[113,19,113,20],[114,19,114,20],[115,19,115,20],[116,19,116,20],[117,19,117,20],[118,19,118,20],[119,19,119,20],[120,19,120,20],[122,19,122,20],[123,19,123,20],[124,19,124,20],[125,19,125,20],[126,19,126,20],[127,19,127,20],[128,19,128,20],[129,19,129,20],[130,19,130,20],[131,19,131,20],[132,19,132,20],[133,19,133,20],[134,19,134,20],[135,19,135,20],[136,19,136,20],[137,19,137,20],[138,19,138,20],[140,19,140,20],[141,19,141,20],[142,19,142,20],[144,19,144,20],[148,1,148,9],[148,11,148,14]]}
["back to contents"]
[{"$nulls":9},"All nominal datapoints refer to long-term yields. Real rates are reported ex-post (on the basis of realized inflation). Observations are arithmetically weighted on the country-level across consolidated debt and personal loan datapoints (both interpolated) until the following years: France to 1709; Germany to 1618; Holland to 1671; Italy to 1691; U.K. personal/non-marketable debt 100% to 1702. Afterwards, personal/non-marketable loan data (Sheet VIII) only included arithmetically \"at occurence\". Forced loans and intra-governmental loans are excluded. For details, see also notes in the accompanying SWP 845."]
[null,"Compare also all archival primary sources listed in the accompanying Schmelzing SWP 845 (2020, pp.75-77, 99-107)."]
[]
[]
[]
[]
[]
[{"$nulls":19},"Used where",null,"when (first and last datapoint)",null,"Notes"]
[null,"I. Archival funds used"]
[]
[null,"Bank of England Archive (BoEA): “Average Prices of Funds, 1705-1880” (10A 270/1); “Report of the Proceedings of the Commissioners for the Reduction of the National Debt” (14A 156/1): Funded Debt for Terminable Annuities – Great Britain – 1693-1836.",{"$nulls":3},"|",{"$nulls":13},"British nominal yields, 1700-",null,"1734-1820"]
[null,"Geheimes Staatsarchiv Preussischer Kulturbesitz (GStAPK): I. HA Rep. 78 (Kurmaerkische Lehnskanzlei), Nr. 10: Altmaerkisches Register, 96-131; VII. HA Nichtmaerkische Urkunden, Pommern Nr. 69, Polen Nr. 28; VII. Haussachen der Landesherren Nr. 76; VII. HA Maerkische Ortschaften Salzwedel Nr. 77.",{"$nulls":6},"|",{"$nulls":10},"German personal/non-marketable loans",null,"1426-1636"]
[null,"Hauptstaatsarchiv Dresden (HStAD): Bestand 10036, Loc. 33698, Rep. 11, Sect. 2, Lit. F, Nr. 0013; Bestand 10690, Reichskammergericht No. 12.",{"$nulls":3},"|",{"$nulls":13},"German municipal yields; 'Carolingian' private R; German personal/non-marketable loans",null,"1545-1549; 1549"]
[null,"Hessisches Hauptstaatsarchiv, Marburg (HHStaM): Fonds Urk. 15 No 484; Fonds Urk. 37 No 3440; ; Fonds Urk. 49 No 3289; Fonds Urk. 56 No 1398.",{"$nulls":5},"|",{"$nulls":11},"Carolingian' private R",null,"1507-1818"]
[null,"Hessisches Hauptstaatsarchiv, Wiesbaden (HHStaW): Bestand 130 I/U 76, 77; 130 II/258 and 260; 6/95; Bestand 3001 Nr. 13, fols. 37, 82, 132 and Nr. 7, fol.1b; Bestand 171/G 717, fols. 119-122.",{"$nulls":5},"|",{"$nulls":11},"German personal/non-marketable loans; 'Carolingian' private R",null,"1393-1578"]
[null,"Historisches Archiv der Stadt Koeln (HStAK): Best. 1 – U1/17139; U1/452; Best. 3 – U1/1181, U1/1198, U1/1225, U1/1234, U1/1284, U1/1287, U2/461, U2/234, U2/1096, U2/1131, U2/1148, U2/1157, U2/1164, U2/1165, U2/1168, U2/1170-1; Best. 135 – U2/7; U2/8; Best. 210 (Domstift) – U3/1652; Best. 223 (Jesuiten) – A 1401, A 2057, A 2213, A 2221, A 2242, U2/544; Best. 227 (Johann und Cordula) – U2/224A, U3/261A; Best. 228 (Karmeliter) – U1/214; Best. 246 (Maria in Bethlehem) – U2/4; Best. 254 (Michael) – U2/19, U2/160; Best. 310L – A 73; Best. 310W – A 71: Klaeger: Adolph von Opperfeld; Best. 1037 – Nachlaesse R, Raitz von Frentz, Gutsarchiv Listringhausen/Badinghagen, Kasten 23, 63, 72; Best. 1037 – Hausarchiv Schlenderhan. Kasten 11, 14, 16, 32, 37.",{"$nulls":4},"|",{"$nulls":12},"German municipal yields; 'Carolingian' private R; German personal/non-marketable loans",null,"1417-1672; 1450-1795; 1486"]
[null,"Institut fuer Stadtgeschichte Frankfurt (ISG)",{"$nulls":17},"German municipal yields; 'Carolingian' private R",null,"1355-1822"]
[null,"Oesterreichisches Staatsarchiv (OeStA): FHKA: SUS RA 75.6 and 238.44; NL Beer 01/3a-1 (“Münzkurse (Wert von Reichstaler, Gulden, Dukat und Geldgulden) von 1400 bzw. 1582 bis 1690 (erstellt nach 1767))”, 02/79 (“Philipp Graf von Sinzendorf aus Amsterdam, Berichte zum Wechselkurs des holländischen Gulden und Gutachten über eine Anleihe in Holland, Rekognitionen und Instruktionen, Johann Graf von Choteck, Ministerial-Bankodeputation, an Maria Theresia zur Beauftragung Sinzendorfs mit der Aufnahme einer Anleihe auf Kredit des Banko”); HHStA: RHR Judicialia Antiqua 104-8; MEA Muenzsachen 8, “Vom Einfluss der Muenzerhoehungen auf die Preise der vornehmsten Beduerfnissen”; Hausarchiv – Lothringisches Hausarchiv Este, Box 14; Nachlaesse der Kabinettskanzlei – Leopold Kolowrat, Box 21, 1355-1446.",{"$nulls":4},"|",{"$nulls":12},"German personal/non-marketable loans; German inflation (robustness)",null,"1517-1796"]
[null,"Stadsarchief Amsterdam (StAAm): Archief 735 - Archief van de Company Hope & Co. met verwante archiefvormers: No. 1518 (“Stukken betreffende vorderingen van Hope & Co te Amsterdam op diverse Europese schuldenaren”).",{"$nulls":3},"|",{"$nulls":13},"U.S. personal/non-marketable loans",null,"1793-1844"]
[null,"Stadtarchiv Bamberg (StABb): A 21; D 3001, Rep 1+1508; D 4017.",null,null,"|",{"$nulls":14},"German municipal yields; 'Carolingian' private R",null,"1503-1626"]
[null,"Stadtarchiv Mainz (StdAMz): Urkunden: (chronologically) U/1407 November 20/II; U/1412 Januar 14; U/1420 Maerz 24; U/1421 September 22; U/1545 April 21; U/1559 Maerz 15; U/1587 Dezember 2; U/1590 Mai 23; U/1609 Mai 18; U/1612 September 8; U/1615 Juni 24 (see also notes to Figure VIII).",null,null,"|",{"$nulls":14},"German municipal yields; 'Carolingian' private R",null,"1393-1720"]
[null,"Stadtarchiv Nuernberg (NStA): B 17/II: Zinsmeisteramt Akten: 6. Depositen, Obligationen, Darlehen, Schuldendienst, Steuern (1671-1809): Nr. 140: Aufstellungen und Berechnungen von Zinsen und Tilgungen for Depositengelder bzw. Aufgenommene Kapitalien (ab 1427); Nr. 144: Schuldendienst fuer aufgenommene Kapitalien (Zinsen und Tilgung), 1702-1808; Nr. 147: “Schulden des Zinsmeisteramtes und deren Verzinsung gegenüber Nürnberger Bürgern und privaten Wohltätigkeitsstiftungen”; Herrschaft Schwarzenberg Urkunden 1440. ",{"$nulls":3},"|",{"$nulls":13},"German municipal yields; 'Carolingian' private R; German personal/non-marketable loans",null,"1427-1720; 1591"]
[null,"Stadtarchiv Muenster (StdAMs): Ratsarchiv (Altes Archiv) bis 1802, Stadtschulden A IX: 717: “Rechnungsbuch des Gruthauses 1669”; 721: “Rentenregister renovatum 1732”; 724: “Schuldenregister und Uebersicht der Kapitalanlagen, 1790-1809”; 725 a+b: “Verzeichnis der Stadtschulden von 1802”; 726: “Rechnung der Stadtschulden-Casse zu Muenster vom 1. September 1804 bis 31. Mai 1805”.",{"$nulls":3},"|",{"$nulls":13},"German municipal yields",null,"1350-1620"]
[null,"Stadtarchiv Worms (StAWs): 001AI/0149 (Urkunde, 17 Dezember 1346).",null,null,"|",{"$nulls":14},"German municipal yields",null,1346]
[null,"The National Archives, Kew (TNA): E 30/1186/3; SP 36/107/1/45; T 29/627: “Minute Book containing extracts relative to the rate of interest or discount on loans or tallies, compiled in the beginning of Queen Anne's reign”; E 30/1736: “Joint obligation by Maximilian, King of the Romans, and Charles, Prince of Spain, to repay the loan of 100,000 gold crowns which Henry VII. has promised to pay the Prince. November 1508”; SP 78/223/ fols. 40-42: “Waldegrave to Harrington, June 1740”.",{"$nulls":3},"|",{"$nulls":13},"British personal/non-marketable loans",null,"1642-1740",null,"For 1692-1700 all loans in T 29/627, fols. 5-36 are averaged."]
[null,"Yale University, Beinecke Rare Book and Manuscript Library (Yale BL): American Historical Financial Documents Collection (GEN MSS 1081), Box 2, fols. 57.",{"$nulls":7},"|",{"$nulls":9},"U.S. personal/non-marketable loans, 1778-1780",null,"1778-1780"]
[]
[null,"II. Printed primary sources used"]
[]
[null,"Aspetti dell'Amministrazione Finanziaria del Comune di Milano dal XIV al XVIII secolo, Caterina Santoro (ed.) (Milano: Castello Sforzesco, 1963).",{"$nulls":17},"Italian municipal yields",null,"1398-1704"]
[null,"Calendar of State Papers, Domestic Series, (London: Longman, PRO, 1858-): James I: Vol. 3; Charles I: Vols. 7, 20-22; Charles II: Vols. 4, 10, 12, 13; James II: Vol. 1; William III and Mary II: vol. 6; Anne I: Vol. 4; Commonwealth: Vol. 3; Venetian: Vol.37.",{"$nulls":17},"British personal/non-marketable loans",null,"1622-1731"]
[null,"Calendar of Treasury Books and Papers, Vols. 2 (1731-1734), 5 (1742-1745).",{"$nulls":17},"British personal/non-marketable loans",null,1741]
[null,"Calendar of Virginia State Papers and other Manuscripts, Vol. X, January 1, 1808-December 31, 1835, Henry W. Flournoy (ed.) (Richmond: J.E. Goode, 1892).",{"$nulls":17},"U.S. personal/non-marketable loans, 1778-1780",null,"1813-1815",null,"The Virginia war loans between 1813-1815 included here were partly extended by the Bank of Virginia. One-third of the latter’s stock was owned by the state government (Gruchy 1937, 167f.). The loans are included here since this does not represent a majority stake and the loan terms show no evidence of financial repression features, but it may be seen as a borderline case."]
[null,"Course of the exchange (John Castaing ed.) via ESFDB, accessed November 19, 2018.",{"$nulls":17},"British consolidated debt",null,"1703-1733",null,"Tape via Inter-University Consortium for Political and Social Research, Ann Arbor, USA. (ESFDB =https://www.esfdb.org/table.aspx?resourceid=11346)"]
[null,"Codex diplomaticus et epistolares. Moraviae Vol.13 (Bruenn: Verlag des Maehrischen Landes-Ausschusses, 1897): Regesten Wenzel.",{"$nulls":17},"German personal/non-marketable loans",null,1400]
[null,"Danzinger Inventar, 1531-1591, Paul Simson (ed.) (Muenchen: Duncker & Humblot, 1913)",{"$nulls":17},"Other' personal/non-marketable loans",null,1561]
[null,"Deutsche Reichstagsakten (RTA), Aeltere Reihe, Vol. 5, Unter Koenig Ruprecht 1401-1405, 2/2, Julius Weizsaecker (ed.) (Gotha: Friedrich Perthes, 1885). ",{"$nulls":17},"German personal/non-marketable loans",null,1401,null,"The 1401 Amadi/Rommel loan appears to have been originally conceived as a short-term loan, but an actual repayment in the short-term is not recorded. In RTA (Older series, Vol. 5, No. 173, Nov. 6, 1401) we only learn that the Imperial chamber forwards the 1,200 ducats to Nikolaus Wispriger as a salary. "]
[null,"Der Besitz des Mainzer Domkapitels im Spaetmittelalter, Irmtraut Liebeherr (ed.) (Mainz: Sebstverlag der Gesellschaft fuer Mittelrheinische Kirchengeschichte, 1971).",{"$nulls":17},"Carolingian' private R",null,"1325-1516"]
[null,"Die Protokolle des Mainzer Domkapitels, 4 vols., Fritz Herrmann, Hans Knies (eds.) (Darmstadt: Hessische Historische Kommission, 1976-).",{"$nulls":17},"Carolingian' private R",null,"1460-1543"]
[null,"Documents inedits concernant la ville et le siege du bailliage d’Amiens, 3 Vols., Eduard Maugis (ed.) (Amiens/Paris: Yvert et Tellier/Auguste Picard, 1908-1921).",{"$nulls":17},"Carolingian' private R",null,1439]
[null,"GPO: Anglo-American Financial and Commercial Agreements (Washington: 1945)",{"$nulls":17},"U.S. personal/non-marketable loans",null,1945,null,"Digitized via FRASER."]
[null,"Kernkamp, J.H., Vijftiende-Eeuwse Rentenbrieven van Noordnederlandse Steden (Groningen: J.B. Wolters, 1961).",{"$nulls":17},"Dutch municipal yields (Leiden, Haarlem, Utrecht, Schiedam, Amsterdam)",null,"1402-1486"]
[null,"La Gascogne dans les Registres du Tresor des Chartes, Charles Samaran (ed.) (Paris: Bibliotheque Nationale, 1966).",{"$nulls":17},"French municipal yields; 'Carolingian' private R",null,"1327; 1354"]
[null,"Lettres de Charles VIII, roi de France, publiées d'après les originaux pour la Société de l'histoire de France, 5 vols., Paul Pelicier (ed.) (Paris: Librairie Renouard, H. Laurens, successeur, 1898-1905).",{"$nulls":17},"French personal/non-marketable loans",null,1465]
[null,"Paris pendant la domination anglaise (1420-1436). Documents: extraits des registres de la chancellerie de France, Auguste Longnon (ed.) (Paris: H. Champion, 1878).",{"$nulls":17},"Carolingian' private R",null,1424]
[null,"Quellen zur Geschichte des Koelner Handels und Verkehrs im Mittelalter, Dritter Band: Besondere Quellengruppen des spaeten Mittelalters, Bruno Kuske (ed.) (Droste: Duesseldorf, 1978 [reprint of 1923 ed.].",{"$nulls":17},"German municipal yields",null,"1477-1500"]
[null,"Quellen und Regesten zu den Augsburger Handelshaeusern Paler und Rehlinger 1539-1642, 2 Vols., Reinhard Hildebrandt (ed.) (Stuttgart: Franz Steiner, 1996 and 2004).",{"$nulls":17},"German personal/non-marketable loans",null,"1539-1622"]
[null,"Regesta Imperii (Reg Imperii), Vol. VI (Heinrich VII): 4/2; Vol VII (Ludwig der Bayer); Vol. VIII (Karl IV); Vol. XI (Sigmund); Neubearb. 1; Neubearb. 2; Vol. XIV (Maximilian I): Vol. 2/1: 1496-1498; Vols. 4/1-2: 1502-1504. - Hermann Wiesflecker (ed.) – (Cologne: Boehlau Verlag, 1993, 2002-2004); RI Plus Margraves of Baden and Hachberg, Vol. 1/1, Richard Fester (ed.) (Innsbruck: Wagnersche U.Buchhandlung, 1892).",{"$nulls":17},"German personal/non-marketable loans",null,"1329-1504"]
[null,"Regesten van Oorkonden betreffende De Bisschoppen van Utrecht uit de Jaren 1301-1340, J.W. Berkelback van der Sprenkel (ed.) (Utrecht: Broekhoff, 1937).",{"$nulls":17},"Carolingian' private R",null,"1326-1338"]
[null,"Regesten der Erzbischhoefe von Mainz, 1289-1396 (Reg EB Mainz), 5 Vols., W. Kreimes, Heinrich Otto, Fritz Vigener, Ernst Vogt (eds.) (Darmstadt/Leipzig: Veit & Comp., 1913-1958).",{"$nulls":17},"German personal/non-marketable loans; 'Carolingian' private R",null,"1315; 1295-1368"]
[null,"Regesten der Pfalzgrafen am Rhein, 1214-1508 (Reg Pfalz), Eduard Winkelmann (ed.) (Innsbruck: Wagner’sche Universitaetsbuchhandlung, 1894): Vol. 1, Ruprecht I, Ruprecht III.",{"$nulls":17},"German personal/non-marketable loans",null,"1402-1408"]
[null,"Statistisches Handbuch von Deutschland 1928-1944 (Laenderrat ed.) (Muenchen: Franz Ehrenwirth, 1949).",{"$nulls":17},"Carolingian' private R",null,"1928-1944",null,"Averaging Pfandbriefe - \"HAB\" and \"OERK\" (p.527)"]
[]
[]
[null,"III. Secondary source material used"]
[]
[null,"III.I Nominal interest rate data, consolidated public (incl. municipal debt) and private"]
[]
[null,"Alvarez-Nogal, Carlos, “La Demanda de Juros en Castilla durante la edad moderna: los juros de alcabalas de Murcia”, Studia Historica: Historia moderna, 32 (2010), 47-82.",{"$nulls":17},"Spanish consolidated yields",null,"1688-1730",null,"On the basis of Alvarez-Nogal (2010, 61), the following weights are applied for the Murcia Juros, which serve as the proxy for Spanish consolidated assets: 1688-1730, 95%*5%, 5%*10%."]
[null,"Arnold, Wilhelm, Zur Geschichte des Eigentums in den deutschen Staedten. Mit Urkunden (Basel: H.Georg, 1861).",{"$nulls":17},"Carolingian' private R",null,"1273-1516"]
[null,"Beyer, Otto, Das Schuldenwesen der Stadt Breslau im 14. und 15. Jahrhundert mit besonderer Beruecksichtigung der Verschuldung durch Rentenverkauf (Inauguraldissertation, I. Teil) (Breslau: R.Rischkowsky, 1900).",{"$nulls":17},"German municipal yields (Breslau)",null,"1331-1410"]
[null,"Blendinger, Friedrich, “Muenchner Buerger, Kloester, und Stiftungen als Glaeubiger der Reichsstadt Augsburg im 14. und 15. Jahrhundert”, in: Horst Heldmann (ed.), Studien zur fraenkischen und bayerischen Geschichte, Friedolin Solleder zum 80. Geburtstag dargebracht (Neustadt: Ph.C.W. Schmidt, 1966), 80-109.",{"$nulls":17},"German municipal yields (Augsburg)",null,"1378-1485"]
[null,"Bos-Rops, Jeanette A.M.Y., “Guerres du comte et argent des villes. Les relations financieres entre les comtes de Hollande et Zelande et leurs villes (1389-1433)”, in: Jean-Marie Cauchies (ed.), Finances et Financiers des princes et des villes a l’epoque Bourguignonne (Turnhout: Brepols, 2004), 29-40.",{"$nulls":17},"Dutch consolidated yields",null,"1405-1433"]
[null,"Bundesbank (2018, online statistics)",{"$nulls":17},"Carolingian' private R",null,"1955-2018",null,"Pfandbrief' basis, series BBK01.WU0018. Averaging monthly rates Jan-Dec."]
[null,"Cipolla, Carlo M., “Note sulla storia del saggio d’interesse, corso dividend e sconto dei dividend del Banco di S. Giorgio nel Sec. XVI”, Economia Internazionale, 5 (1952), 255-274.",{"$nulls":17},"Italian municipal yields",null,"1522-1625"]
[null,"Conti, Elio, L’imposta Diretta A Firenze Nel Quattrocento (1427-1494) (Rome: Nella Sede Dell’Istituto Palazzo Borromini, 1984).",{"$nulls":17},"Italian municipal yields (Florence)",null,"1418-1475"]
[null,"Däbritz, Walther, Die Staatsschulden Sachsens in der Zeit von 1763 bis 1837 (Leipzig: B.T. Teubner, 1906).",{"$nulls":17},"German consolidated yields",null,"1764-1836",null,"For Däbritz (1906, 83, 113, 127), the 3% “Landschaftliche Obligationen” of 1763 between 1764-1801, the 5% “Landschaftliche (Reichenbachsche) Obligationen” for 1815-1821, and the 4% emission of 1821 for 1822-1836 are used. "]
[null,"Day, John, Les Douanes de Genes, 1376-1377 (Paris: S.E.V.P.E.N., 1963).",{"$nulls":17},"Italian municipal yields (Genoa)",null,"1343-1407"]
[null,"De Luca, Giuseppe, “Debito pubblico, mercato finanziario ed economia reale nel Ducato di Milano e nella Repubblica di Venezia tra XVI e XVII secolo”, in: Giuseppe De Luca and Angelo Moioli (eds.), Debito Pubblico e mercati finanziari in Italia, secoli XIII-XX (Milano: FrancoAngeli, 2007), 119-146.",{"$nulls":17},"Italian municipal yields (Milan)",null,"1543-1694",null,"Milan is included in Italian nominal rates between 1543-1694. I use De Luca (2007, 127), and also include the Zecca rates (ibid., 130, averaging the two) between 1537-1540, and for 1570-1616, as Zecca volumes between 1540-1570 are very low."]
[null,"Dimsdale, Nicolas, and Ryland Thomas, “A Millennium of U.K. macroeconomic data”, Bank of England OBRA dataset, Version 3.1 (April 2017).",{"$nulls":17},"British consolidated yields",null,"1821-2018"]
[null,"Dormans, Eduard H.M., Het tekort. Staatsschuld in de tijd der Republiek (Amsterdam: NEHA, 1991).",{"$nulls":17},"Dutch consolidated yields (Holland)",null,"1515-1678"]
[null,"Doucet, Roger, Finances Municipales et credit public a Lyon au XVI siècle (Paris: Marcel Riviere, 1937).",{"$nulls":17},"French municipal yields (Lyon)",null,"1537-1573"]
[null,"Durand, David, and Willis J. Winn, “Basic Yields of Bonds, 1926-1947: Their Measurement and Patterns”, NBER Technical Paper No. 6 (1947).",{"$nulls":17},"United States consolidated yields",null,"1926-1947"]
[null,"Espinas, Georges, Les Finances de la Commune de Douai des Origines au XVe Siecle (Paris: Picard et Fils, 1902).",{"$nulls":17},"French municipal yields (Douai)",null,"1391-1400"]
[null,"Fuhrmann, Bernd, “Der rat aber war zu rat mer ewigs gelts zu verkauffen – Das kommunale Kreditwesen Nuernbergs im 15. Jahrhundert”, in: Harm von Seggern, Gerhard Fouquet, and Hans-Joerg Gilomen (eds.), Staedtische Finanzwirtschaft am Uebergang vom Mittelalter zur Fruehen Neuzeit (Frankfurt: Peter Lang, 2007), 139-168.",{"$nulls":17},"German municipal yields (Nuremberg)",null,"1427-1496"]
[null,"Gobbers, Joseph, “Die Erbleihe und ihr Verhaeltniss zum Rentenkauf im Mittelalterlichen Koeln des XII. – XIV. Jahrhunderts”, Zeitschrift der Savigny-Stiftung fuer Rechtsgeschichte, 17 (1883), 130-214.",{"$nulls":17},"Carolingian' private R",null,"1251-1433"]
[null,"Homer, Sidney, and Richard Sylla, A History of Interest Rates (New Brunswick: Rutgers University Press, 2005, 4th ed.; [1996, 1991]). ",{"$nulls":17},"United States consolidated yields",null,"1854-1918",null,"See tables 38 ('Federal government bonds - selected market yields'), and 46 ('consol 2s of 1930') (1991 ed.) "]
[null,"Heers, Jacques, Genes au XVe siècle (Paris: S.E.V.P.E.N., 1961).",{"$nulls":17},"Italian municipal yields (Genoa)",null,"1445-1466"]
[null,"Humbert, Francoise, Les finances municipales de Dijon du milieu du XIV siècle a 1477 (Paris: Les Belles Lettres, 1961).",{"$nulls":17},"French municipal yields (Dijon)",null,"1475-1477"]
[null,"Kahn, Julius, Geschichte des Zinsfusses in Deutschland seit 1815 und die Ursachen seiner Veraenderung (Stuttgart: J.G. Cotta’sche Buchhandlung, 1884).",{"$nulls":17},"Carolingian' private R",null,"1815-1883",null,"Averaging yields from Karlsruhe, Berlin, Muenchen, Hamburg, Dresden, and Kempten."]
[null,"Kedar, Benjamin Z., Merchants in Crisis: Genoese and Venetian Men of Affairs and the Fourteenth Century Depression (New Haven and London: Yale University Press, 1976).",{"$nulls":17},"Italian municipal yields (Genoa)",null,"1313-1332"]
[null,"Luzzatto, Gino, I Prestiti della Repubblica di Venezia, Sec. XIII – XV (Padua: R. Accademia Dei Lincei, Libreria Editrice A. Draghi, 1929).",{"$nulls":17},"Italian municipal yields (Venice)",null,"1311-1481",null,"Luzzatto (1929) provides secondary market prices (% of par). Venetian yields are obtained with reference to official gross interest: between 1262 and 1381, a gross rate of interest of 5% per annum was paid; in 1382, the rate was reduced to 4% (Mueller 1997, 471). Where multiple Venetian prices are provided for individual years, I average datapoints recorded."]
[null,"Marsilje, Jannis W., Het financiele beleid van Leiden in de laat-Beierse en Bourgondische periode, 1390-1477 (Hilversum: Verloren, 1985).",{"$nulls":17},"Dutch consolidated yields (Holland)",null,"1425-1463"]
[null,"Maugis, M. Eduard, Essai sur le regime financier de la ville d’Amiens du XIV a la fin de XVI siècle (1356-1588) (Amiens: Imprimerie Yvert et Tellier, 1898). ",{"$nulls":17},"French municipal yields (Amiens); 'Carolingian' private R",null,"1388-1536; 1361"]
[null,"Mueller, Reinhold C., The Venetian Money Market: Banks, Panics, and the Public Debt: 1200-1500 (Baltimore: Johns Hopkins University Press, 1997).",{"$nulls":17},"Italian municipal yields (Venice)",null,"1418-1508"]
[null,"NBER Macrohistory database",{"$nulls":17},"United States consolidated yields",null,"1919-1967",null,"Series m13033a-b. Identical to Federal Reserve Board (1943, 468) and Federal Reserve Board (1976, 720). 11.5 year maturity 1943-1947, 10-year from 1948."]
[null,"Neumann, Max, Geschichte des Wuchers in Deutschland bis zur Begruendung der heutigen Zinsengesetze (1654) (Halle: Verlag des Waisenhauses, 1865).",{"$nulls":17},"German municipal yields (numerous)",null,"1313-1620"]
[null,"Nieuwenhuysen, A. van, Les Finances du Duc de Bourgogne Philippe Le Hardi (1384-1404). Economie et Politique (Bruxelles: Editions de L’Universite de Bruxelles, 1984).",{"$nulls":17},"Dutch consolidated yields",null,"1397-1402"]
[null,"Reincke, Heinrich, “Die alte Hamburger Stadtschuld der Hansezeit (1300-1563)”, in: Ahasver von Brandt, and Wilhelm Koppe (eds.), Gedaechtnisschrift fuer Fritz Roerig (Luebeck: Schmidt-Roemhild, 1953), 489-512.",{"$nulls":17},"German municipal yields (Hamburg)",null,"1313-1324"]
[null,"Sander, Paul, Die reichsstaedtische Haushaltung Nuernbergs, dargestellt auf Grund ihres Zustandes von 1431 bis 1440 (Leipzig: B.G. Teubner, 1902).",{"$nulls":17},"German municipal yields (Nuremberg)",null,"1431-1440"]
[null,"Schnapper, Bernard, Les Rentes au XVIe siècle. Histoire d’un instrument de credit (Paris: S.E.V.P.E.N., 1957).",{"$nulls":17},"French municipal yields (Paris)",null,"1483-1612",null,"The Schnapper (1957, 111) reference weighs his six Paris interest rate brackets between 1483-1612: for >10% bracket (“inferieur denier 10”), I have taken 15%; for <6.6% (“au-dela du denier 15”), I have taken 5%. "]
[null,"Shakespeare, Howard, France – the royal loans. Les emprunts royales, 1689-1789 (Shrewsbury: Squirrel, 1986).",{"$nulls":17},"French consolidated yields",null,"1689-1744"]
[null,"Sieveking, Heinrich, “Genueser Finanzwesen mit besonderer Beruecksichtigung der Casa di S. Giorgio”, in: Carl Johannes Fuchs et al. (eds.), Volkswirtschaftliche Abhandlungen der Badischen Hochschulen, Vol. 3/1 (Freiburg i. Br.: J.C.B. Mohr, 1898). In Italian as: Studio sulle finanze genovesi nel Medioevo e in particolare sulla Casa di S. Giorgio, Atti della Società Ligure di Storia Patria, Vol. XXXV (Parte Seconda) (Genova: Tipografia della Gioventù, 1906).",{"$nulls":17},"Italian municipal yields; Italian personal/non-marketable loans",null,"1428-1440; 1313-1327",null,"consolidated in 1906 ed.; personal/non-marketable in 1898 ed."]
[null,"Sylla, Richard E., Jack W. Wilson, and Robert E. Wright, “Price Quotations in Early United States Securities Markets, 1790-1860”, 2005, EH.NET database, accessed March 11, 2018.",{"$nulls":17},"United States consolidated yields",null,"1790-1853",null,"Access link here (working as of December 7, 2019). For the U.S., I rely on Sylla, Wilson, and Wright’s (2005) New York prices, beginning with the December 1790 listing in “U.S. 3s” (their code: “US-0010”), to 1832; between 1833-1842 on Pennsylvania 5s (their code: “S-2240”); between 1843-1853 taking “U.S. loan 6s 1862” (their code “US-0825”)."]
[null,"Tracy, James D., A Financial Revolution in the Habsburg Netherlands. Renten and Rentiers in the County of Holland, 1515-1565 (Berkeley: University of California Press, 1985). ",{"$nulls":17},"Dutch consolidated yields",null,"1543-1559"]
[null,"Ucendo, Jose I.A., and Ramon Lanza Garcia, “Data on Spanish Crown Finance: Interest Rate on Consolidated Public Debt (‘Juros’) from 1500-1714”, in: Richard Bonney (ed.): “European State Finance Database”, 2007, accessed September 11, 2018.",{"$nulls":17},"Spanish consolidated yields",null,"1504-1687"]
[null,"Velde, Francois R., and David R. Weir, “The Financial Market and Government Debt Policy in France, 1746-1793”, Journal of Economic History, 52/1 (1992), 1-39.",{"$nulls":17},"French consolidated yields",null,"1746-1793",null,"The average of rentes, “October loans”, and direct loans in Velde and Weir (1992, 14, 20) is taken, in combination with Vuehrer's (1886, 212-290) data between 1746-1793."]
[null,"Voye, Ernst, Ueber die Hoehe der verschiedenen Zinsarten und ihre wechselseitige Abhaengigkeit (Jena: Fischer, 1902).",{"$nulls":17},"Carolingian' private R",null,"1807-1900",null,"Voye (1902, 24, 29-30, 35-36, 45, 90-91, 94) data takes the 3.5% “Pfandbriefe” datapoints for all Prussian regions covered (Ostpreussische, Westpreussische, Pommernsche, Kur- und neumaerkische, Schlesische). "]
[null,"Vuehrer, A., Histoire de la Dette Publique en France (Nancy: Berger-Levrault et Cie, 1886).",{"$nulls":17},"French consolidated yields",null,"1522-1793",null,"Between 1757 and 1793 used in combination with Velde and Weir (1992, 14, 20), arithmetically-weighted with rentes, October loans, and direct loans. See above."]
[null,"Weeveringh, J.J., Handleiding tot de Geschiedenis der Staatsschulden (Haarlem: A.C. Vruseman, 1852).",{"$nulls":17},"Dutch consolidated yields",null,"1796-1811",null,"Prices of the 3% Generaliteit Obligationen are taken, averaging Jan+Jul."]
[null,"Zuijderduijn, Jaco, Medieval Capital Markets: Markets for ‘Renten’, State Formation, and Private Investment in Holland, (1300-1500) (Leiden and Boston: Brill, 2009). ",{"$nulls":17},"Dutch municipal and provincial yields (Holland)",null,"1387-1570"]
[]
[]
[]
[null,"III.II Nominal interest rate data, unconsolidated public (personal loans, non-marketable debt)"]
[]
[null,"Arens, Franz, “Analekten zur Geschichte des spaetmittelalterlichen Geldhandels im Dauphiné”, Vierteljahrschrift fuer Sozial- und Wirtschaftsgeschichte, 21/3 (1928), 299-318.",{"$nulls":17},"French personal/non-marketable loans (Dauphine)",null,"1329-1348"]
[null,"Ashton, Robert, The Crown and the Money Market, 1603-1640 (Oxford: Oxford University Press, 1960).",{"$nulls":17},"British personal/non-marketable loans",null,"1610-1617",null,"Denoted 'Ashton 1960b' in accompanying paper. For Ashton (1960), I include rolled-over loans (the 1610 and 1617 loans; ibid., 118ff.) and exclude the loans actually repaid in the short-term (such as the 1626 Alderman loan; ibid., 130)."]
[null,"Bell, Adrian R., Chris Brooks, and Tony K. Moore, “Interest in Medieval Accounts: Examples from England, 1272-1340”, History, 94/4 (2009), 411-433.",{"$nulls":17},"British personal/non-marketable loans",null,1338,null,"Adjusting the interest rate reported in Fryde (1967)."]
[null,"Bigwood, Georges, Le Regime juridique et economique commerce de l’argent dans la Belgique du Moyen Age, Tomes I-II (Bruxelles: Lamertin/Hayez, 1921).",{"$nulls":17},"Dutch personal/non-marketable loans",null,"1411-1418"]
[null,"Bittmann, Markus, Kreditwirtschaft und Finanzierungsmethoden. Studien zu den wirtschaftlichen Verhaeltnissen des Adels im westlichen Bodenseeraum 1300-1500 (Wiesbaden: Franz Steiner, 1991).",{"$nulls":17},"German personal/non-marketable loans",null,"1359-1400"]
[null,"Bonney, Richard, The King’s Debts. Finance and Politics in France, 1589-1661 (Oxford: Clarendon Press, 1981).",{"$nulls":17},"French personal/non-marketable loans (Dauphine)",null,"1656-1661"]
[null,"Boyajian, James C., The Portuguese Bankers and the international payments mechanism, 1626-1647, Dissertation University of California Berkeley (1978).",{"$nulls":17},"Spanish personal/non-marketable loans",null,"1626-1647",null,"The “official” interest rate and the “adehala” interest rate components charged by the Portuguese bankers recorded in Boyajian (1978, table III, 137) are summed here. While classical asientos were marketable to a degree, the contracts debated here were all separately negotiated with the Crown and in years did not change hands (cf. constant liabilities in books, ibid., table IV, 145)."]
[null,"Bruscoli, Francesco Guidi, Papal Banking in Renaissance Rome (Aldershot: Ashgate, 2007).",{"$nulls":17},"Papal States personal/non-marketable loans [papal states not included in aggregate figures]",null,1539,null,"The Papal States are not included in the Italian aggregates. Papal loans only feature for illustrative purposes in the personal loan overview."]
[null,"Bullard, Melissa Meriam, Filippo Strozzi and the Medici: favour and finance in sixteenth-century Florence and Rome (Cambridge: Cambridge University Press, 1980).",{"$nulls":17},"Italian personal/non-marketable loans",null,"1513-1527"]
[null,"De Roover, Raymond, The Rise and Decline of the Medici Bank, 1397-1494 (Cambridge: Harvard University Press, 1963).",{"$nulls":17},"Italian personal/non-marketable loans",null,1459,null,"The Duke of Milan’s 218,072 Milanese Pound loan from the Medici outstanding in 1459 is imputed here at 15.4%. De Roover (1963, 269) states that the interest rate recorded in the Medici balance sheet represents the net return after expenses on deposits are paid out. These are imputed at 10.5%, the midpoint between the data for borrowing “from friends” and via time deposits stated by Roover (ibid., 268-269)."]
[null,"Dietz, Alexander, Frankfurter Handelsgeschichte, 5vols. (Frankfurt: Hermann Minjon, 1910-1925).",{"$nulls":17},"German personal/non-marketable loans",null,"1547-1810"]
[null,"Ehrenberg, Richard, Das Zeitalter der Fugger: Geldkapital und Creditverkehr im 16. Jahrhundert, 2 Vols. (Jena: Gustav Fischer, 1922, 3rd edition).",{"$nulls":17},"French, German, Dutch, English, Spanish personal/non-marketable loans",null,"1511-1572",null,"All references to \"Ehrenberg (1928)\" refer to the English translation (transl. H.M. Lucas, New York: Harcourt, Brace & Co., 1928)."]
[null,"Felisini, Daniela, Alessandro Torlonia: the Pope’s Banker (London: Palgrave, 2016).",{"$nulls":17},"Papal States personal/non-marketable loans [papal states not included in aggregate figures]",null,1845,null,"The Papal States are not included in the Italian aggregates. Papal loans only feature for illustrative purposes in the personal loan overview."]
[null,"Fryde, Edmund B., and M.M. Fryde, “Public credit, with special reference to northwestern Europe”, in: M.M. Postan, E.E. Rich, and E. Miller (eds.), Cambridge Economic History of Europe, Vol. III: Economic Organization and Policies in the Middle Ages (Cambridge: Cambridge University Press, 1963), 430-553.",{"$nulls":17},"French, German, Dutch, English personal/non-marketable loans",null,"1312-1496"]
[null,"Fryde, Edmund B., \"Financial Resources of Edward III in the Netherlands, 1338-40\", Revue Belge de Philologie et d'Histoire, 4/LXV (1967), 1142-1216.",{"$nulls":17},"British personal/non-marketable loans",null,1338,null,"Compare Bell, Brooks, and Moore (2009) comment above."]
[null,"Fryde, Edmund B., Studies in Medieval Trade and Finance (London: Hambledon Press, 1983).",{"$nulls":17},"British (English) personal/non-marketable loans",null,"1328-1331"]
[null,"Fuhrmann, Bernd, Konrad von Weinsberg – ein adliger Oikos zwischen Territorium und Reich (Stuttgart: Franz Steiner, 2004).",{"$nulls":17},"German personal/non-marketable loans",null,"1430-1446",null,"Konrad von Weinsberg’s credit activities have only been included to the extent that Fuhrmann (2004) describes them as Reich-related, not for his extensive personal business. For instance, I include Weinsberg’s 4000fl loan on Reich income in Basel in 1435-1436, but exclude his borrowing in 1441-1442 from the city of Heilbronn (ibid., 278, 297)."]
[null,"Grose, Clyde L., “Louis XIV’s financial relations with Charles II and the English Parliament”, The Journal of Modern History, 1/2 (1929), 177-204.",{"$nulls":17},"British personal/non-marketable loans",null,1662]
[null,"Hamon, Philippe, \"L-Italie Finance-t-elle les guerres l'Italie?\", in: Jean Balsamo (ed.), Passer les monts. Francais en Italie - L'Italie en France (1494-1525) (Paris: Honore Champion Editeur, 1998), 25-37.",{"$nulls":17},"French personal/non-marketable loans",null,1494]
[null,"Hansen, Joseph, “Der englische Staatskredit unter Koenig Eduard III. (1327-1377) und die hansischen Kaufleute”, Hansische Geschichtsblaetter, 16 (1910), 323-416.",{"$nulls":17},"British personal/non-marketable loans",null,1339,null,"Intentional delays in repayment to realize interest payments. See Hansen (1910, 398ff.)."]
[null,"Hartmann, Peter C., Geld als Instrument europaeischer Machtpolitik im Zeitalter des Merkantilismus (Muenchen: Kommission fuer Bayerische Landesgeschichte, 1978).",{"$nulls":17},"German personal/non-marketable loans",null,"1692-1722"]
[null,"Hoefler, Constantin, Ritter Ludwig von Eyb. Denkwuerdikeiten Brandenburgischer (Hohenzollerischer) Fuersten (Bayreuth: R. Buchnersche Buchhandlung, 1849).",{"$nulls":17},"German personal/non-marketable loans",null,"1446-1450",null,"Cf. note to Stromer (1970): Stromer (1970, 286) suggests that Duke Albrecht inherited debt contracts in the 10-16.67% range from his father Friedrich. After some digging, one arrives at the original reference in Hoefler (1849, 124f.) who reports that after Albrecht’s marriage with Margaret of Baden in 1446, but before the Bavarian Wars starting in 1459, he attempted a renegotiation of the existing debt – only partially successful. I have here assumed the mid-point of the range for 1446-1450."]
[null,"Krag, Wilhelm, Die Paumgartner von Nuernberg und Augsburg: Ein Beitrag zur Handelsgeschichte des XV. und XVI. Jahrhunderts (Leipzig: K.B. Hofbuchdruckerei, 1914).",{"$nulls":17},"German personal/non-marketable loans",null,1439]
[null,"Lambert, Bart, The City, the Duke and their Banker. The Rapondi Family and the Formation of the Burgundian State (1384-1430) (Turnhout: Brepols, 2006).",{"$nulls":17},"Dutch personal/non-marketable loans",null,"1369-1398",null,"Mollat (1958) does not provide maturities for the Burgundian loans during the capture of John sans Peur at Nicopolis in 1396-1397. Lambert (2006, 116f.) reports on a fictitious 7% annuity sale by Dino Rapondi for the same purpose. Since these transactions took several years to complete, they are all treated as long-term (with the latter not involving an actual new annuity issuance, hence treated as a loan). For the 1430s-1450s, I have only included Mollat’s “long-term” 15-month loan priced at 13.2% p.a., taken for the year 1434 (ibid., 318). "]
[null,"Mirot, Leon, and Eugenio Lazzareschi, “Lettere di mercanti Lucchesi da Bruges e da Parigi, 1407-1421”, Bollettino Storico Lucchese, I/3 (1929), 165-199.",{"$nulls":17},"Dutch personal/non-marketable loans",null,1397,null,"Mirot and Lazzareschi (1929, 170) imply a loan duration of 10.5-17.5 months, and an interest rate range of 23-38% for Filippo Rapondi’s 1397 loans: I have chosen the longest duration consistent with their reporting."]
[null,"Mollat, Michel, “Recherches sur les Finances des Ducs Valois de Bourgogne”, Revue Historique, CCLXIX (1958), 285-321.",{"$nulls":17},"Dutch personal/non-marketable loans",null,"1397-1434",null,"Mollat (1958) does not provide maturities for the Burgundian loans during the capture of John sans Peur at Nicopolis in 1396-1397. Lambert (2006, 116f.) reports on a fictitious 7% annuity sale by Dino Rapondi for the same purpose. Since these transactions took several years to complete, they are all treated as long-term (with the latter not involving an actual new annuity issuance, hence treated as a loan). For the 1430s-1450s, I have only included Mollat’s “long-term” 15-month loan priced at 13.2% p.a., taken for the year 1434 (ibid., 318). "]
[null,"Mueller, Johannes, “Die Verdienste Zacharias Geizkoflers um die Beschaffung der Geldmittel fuer den Tuerkenkrieg Kaiser Rudolfs II.”, Mitteilungen des Instituts fuer Oesterreichische Geschichte, 21 (1900), 251-304.",{"$nulls":17},"German personal/non-marketable loans",null,"1595-1598"]
[null,"Puff, Alexander, Die Finanzen Albrechts des Beherzten (Leipzig: Quelle & Meyer, 1911).",{"$nulls":17},"German personal/non-marketable loans",null,"1487-1493"]
[null,"Rowlands, Guy, The financial decline of a great power: war, influence, and money in Louis XIV’s France (Oxford: Oxford University Press, 2012).",{"$nulls":17},"French personal/non-marketable loans",null,"1707-1709"]
[null,"Rowlands, Guy, Dangerous and dishonest men: the international bankers of Louis XIV’s France (Basingstoke: Palgrave, 2015).",{"$nulls":17},"French personal/non-marketable loans",null,"1705-1706"]
[null,"Schirmer, Uwe, Kursaechsische Staatsfinanzen (1456-1656). Strukturen - Verfassung - Funktionseliten (Stuttgart: Franz Steiner, 2006).",{"$nulls":17},"German personal/non-marketable loans",null,1483]
[null,"Schrohe, Heinrich, Das Mainzer Geschlecht zum Jungen in Diensten des Deutschen Koenigtums und der Stadt Mainz (1353-1437) (Mainz: L. Wickens, 1933).",{"$nulls":17},"German personal/non-marketable loans",null,"1345-1376"]
[null,"Schulte, Aloys, Die Fugger in Rom 1495-1523, Vol. 1 (Leipzig: Duncker & Humblot, 1904). ",{"$nulls":17},"Papal States personal/non-marketable loans",null,"1501-1519",null,"The Papal States are not included in the Italian aggregates. Papal loans only feature for illustrative purposes in the personal loan overview."]
[null,"Sieveking, Heinrich, “Genueser Finanzwesen mit besonderer Beruecksichtigung der Casa di S. Giorgio”, in: Carl Johannes Fuchs et al. (eds.), Volkswirtschaftliche Abhandlungen der Badischen Hochschulen, Vol. 3/1 (Freiburg i. Br.: J.C.B. Mohr, 1898).",{"$nulls":17},"Italian personal/non-marketable loans (Genoa)",null,"1313-1327"]
[null,"Stromer, Manfred von, Oberdeutsche Hochfinanz 1350-1450, 3 Vols. (Wiesbaden: Franz Steiner, 1970).",{"$nulls":17},"German personal/non-marketable loans",null,"1422-1450",null,"Stromer (1970, 286) suggests that Duke Albrecht inherited debt contracts in the 10-16.67% range from his father Friedrich. After some digging, one arrives at the original reference in Hoefler (1849, 124f.) who reports that after Albrecht’s marriage with Margaret of Baden in 1446, but before the Bavarian Wars starting in 1459, he attempted a renegotiation of the existing debt – only partially successful. I have here assumed the mid-point of the range for 1446-1450."]
[null,"Tewes, Goetz-Ruediger, Kampf um Florenz: Die Medici im Exil, 1494-1512 (Koeln: Boehlau, 2011).",{"$nulls":17},"French personal/non-marketable loans",null,1494]
[null,"Travers, Anita P., The Practice of Usury in mid-Sixteenth century England. University of Edinburgh Dissertation (1975).",{"$nulls":17},"British personal/non-marketable loans",null,"1560-1568",null,"Averaging all instances for 'exchequer debts' 12m+ maturities (pp.641-643)."]
[null,"Van der Wee, Herman, The Growth of the Antwerp Market and the European Economy (Fourteenth-Sixteenth centuries), III vols. (The Hague: Martinus Nijhoff, 1963).",{"$nulls":17},"Dutch personal/non-marketable loans",null,"1425-1671",null,"Van der Wee (1963, I, appendix 45) does not specify which maturities he considers “short-term”. It appears that he treats at least some multi-year loans as short-term, such as the 1425 loan for the voyage of Duke Philip to Hainaut (ibid., II, 57), which must refer to a war loan for the 1425-1428 campaign against Jacqueline of Bavaria. Apart from this instance, and the 1554 loan to Carlos V (ibid., II, 213) I still exclude the data for the series."]
[null,"Vigne, Marcel, La Banque a Lyon du XVe au XVIIIe siècle (Lyon: A. Rey, 1903).",{"$nulls":17},"French personal/non-marketable loans",null,"1537-1560"]
[]
[]
[null,"IV. Growth, inflation, and war frequency data"]
[]
[null,"Abel, Wilhelm, Agrarkrisen und Agrarkonjunktur (Hamburg: Paul Parey, 1978).",{"$nulls":17},"German inflation",null,"1341-1801",null,"Interpolating decadal rye price index (\"Mittel der Preisreihen\", 309)"]
[null,"Allen, Robert, “The Great Divergence in European Wages and Prices from the Middle Ages to the First World War”, Explorations in Economic History, 38/4 (2001), 411-447.",{"$nulls":17},"European-wide municipal inflation",null,"1311-1914",null,"Between 1311-1325 for Northern Italy, Florence silver wheat prices on Allen's basis are used; afterwards his aggregated silver CPI values."]
[null,"Allen, Robert, “Economic Structure and agricultural productivity in Europe, 1300-1800”, European Review of Economic History, 3/1 (2000), 1-25.",{"$nulls":17},"Spanish population",null,"1418-1730",null,"Interpolated figures to adjust real p.c. GDP in Alvarez-Nogal and Escosura (2013)."]
[null,"Alvarez-Nogal, Carlos, and Leandro Prados De La Escosura, “The rise and fall of Spain (1270-1850)”, Economic History Review, 66/1 (2013), 1-37.",{"$nulls":17},"Spanish real GDP growth",null,"1418-1730",null,"Interpolated decadal real per capita GDP, estimate 1 (Table A.2). Adjusted by interpolated Spanish population in Allen (2000, 9)."]
[null,"Broadberry, Steve, Bruce M.S. Campbell, Alexander Klein, Mark Overton and Bas van Leeuwen, British Economic Growth, 1270-1870 (Cambridge: Cambridge University Press, 2015).",{"$nulls":17},"English/British real GDP growth",null,"1311-1870",null,"Sourced via Dimsdale and Thomas, \"A Millennium of Macroeconomic Data\", Tab A.8 'preferred GDP at factor cost'."]
[null,"Bauernfeind, Walter, Materielle Grundstrukturen im Spaetmittelalter und der fruehen Neuzeit: Preisentwicklung und Agrarkonjunktur am Nürnberger Getreidemarkt von 1339 bis 1670 (Nuremberg: Schriften des Stadtarchivs Nuernberg, 1993).",{"$nulls":17},"German inflation",null,"1428-1671"]
[null,"Baulant, Micheline, “Le prix des grains à Paris de 1431 à 1788”, Annales. Economies, societies, civilizations, 23 (1968), 520-540.",{"$nulls":17},"French inflation",null,"1431-1788",null,"Used for robustness series. Allen (2001, 439) relies on a combination of Baulant (ibid.) and other sources."]
[null,"Bundesbank (2018, online statistics).",{"$nulls":17},"German real GDP growth",null,"1950-2018",null,"Lange Reihen', series BBNZ1.A.DE.N.H.0000.L"]
[null,"Carreras, Albert, and Xavier Tafunell (eds.), Estadisticas Historicas de Espana: siglos XIX-XX (Bilbao: Fundacion BBVA, 2005, 2nd ed.).",{"$nulls":17},"Spanish inflation",null,"1962-2000",null,"See 'Cuadro 17.16, consume privado', pp. 1359-1361"]
[null,"Clark, Gregory, “The Macroeconomic Aggregates for England, 1209-1869”, Research in Economic History, 27 (2010), 51-140.",{"$nulls":17},"English/British inflation",null,"1310-1660",null,"Sourced via Dimsdale and Thomas, \"A Millennium of Macroeconomic Data\", Tab A.47, \"Consumer Price Index - preferred measure\" (spliced index from multiple sources, switches basis from 1661)."]
[null,"David, Paul A., and Peter Solar, “A Bicentenary Contribution to the History of the Cost of Living in America”, Research in Economic History, 2/1 (1977), 1-80.",{"$nulls":17},"United States inflation",null,"1786-1820",null,"1786-1789 y-o-y inflation is set as =1790 y-o-y inflation"]
[null,"ECB Statistical Data Warehouse (SDW).",{"$nulls":17},"Dutch inflation, French inflation, Spanish inflation, Italian inflation, German inflation",null,"1986-2018 (Dutch, Germany); 1988-2018 (Italy); 1991-2018 (France); 2000-2018 (Spain)"]
[null,"Elsas, Moritz John, Umriss einer Geschichte der Preise und Löhne in Deutschland, Vol. I (Leiden: A.W. Sijthoff’s Uitgeversmaatschappij, 1936).",{"$nulls":17},"German inflation",null,"1495-1799",null,"Wuerzburg basis: averaged are prices for 'Roggen', 'Hafer', 'Weizen', 'Stroh', 'Butter', 'Fleisch/Rindfleisch' (equal weights). Missing years are interpolated. Nominal prices in 'denar' are transformed into silver prices on the basis of Elasas silver g/denar values."]
[null,"Federal Reserve Economic Data (FRED).",{"$nulls":17},"United States real GDP; United States consolidated yields; United States inflation",null,"1947-2018; 1962-2018; 1948-2018",null,"Series GDPC1; GS10; CPIAUCSL"]
[null,"International Statistical Yearbook/Annuaire Statistique de la Societe de Nations, League of Nations, Economic and Financial Section (issues 1-17) (Geneva: 1927-1945).",{"$nulls":17},"Japanese inflation",null,"1927-1944",null,"For 1927-1930, 'price of foodstuff, Tokyo', from 1931-1944 'Cost of living, Tokyo' index which excludes rent. Digitized yearbooks available https://wayback.archiveit.org/6321/20160901163315/http://digital.library.northwestern.edu/league/stat.html#1939"]
[null,"Jacks, David, and Peter Lindert, “Japan Prices, Wages, and exchange rates, 1885-1926”, UC Davis GPIH Project, 2006, http://gpih.ucdavis.edu/files/Japan_1885-1926.xls, accessed September 17, 2018.",{"$nulls":17},"Japanese inflation",null,"1888-1926",null,"Arithmetic weights for all components - in GBP, converted to silver basis via Jastram series in same source. 1915 and 1916 are interpolated."]
[null,"Levy, Jack S., War in the Great Modern Power System, 1495-1975 (Lexington: University Press of Kentucky, 1983).",{"$nulls":17},"Full sample war frequency",null,"1495-1975",null,"Table 4.1 is used. Note that in the original Levy (1983) version, the “severity” column in fact counts absolute battle deaths. His “intensity” column in fact counts battle deaths/million European population. "]
[null,"Maddison, Angus, \"Statistics on World Population, GDP, and per capita GDP, 1-2008 AD\". University of Groningen (2010).",{"$nulls":17},"Full sample real GDP growth, GDP shares",null,"1311-2018",null,"Horizontal file used via: http://www.ggdc.net/maddison/Historical_Statistics/horizontal-file_02-2010.xls. Note: the final 2008 GDP weights are kept static for 2008-2018."]
[null,"Malanima, Paolo, “The long decline of a leading economy: GDP in central and northern Italy, 1300-1913”, European Review of Economic History, 15/2 (2011), 169-219.",{"$nulls":17},"(North) Italian real GDP growth; North Italian inflation (robustness)",null,"1311-1913",null,"For inflation, taking 'column 1', price index in 1420-40=1; For real GDP, taking 'column 6', GDP index in 1420-1440 prices' (pp. 205-217)."]
[null,"Mitchell, Brian R., European Historical Statistics, 1750-1970 (New York: Columbia University Press, 1975).",{"$nulls":17},"Dutch inflation, French inflation, Spanish inflation, Italian inflation, German inflation; German real GDP",null,"1911-1969 (Dutch); 1870-1969 (France); 1914-1969 (Spain); 1861-1969 (Italy); 1820-1969 (Germany)"]
[null,"Mitchell, Brian R., International Historical Statistics: The Americas and Australasia (Detroit: Gale Research, 1983).",{"$nulls":17},"United States inflation",null,"1800-1947"]
[null,"Pfister, Ulrich, “German economic growth: 1500-1850”, University of Muenster Historical seminar working paper (2008), 1-54.",{"$nulls":17},"German real GDP growth",null,"1500-1850",null,"Heavily interpolated (see table 6, in 1913 Mark)."]
[null,"Phelps Brown, E.H., and Sheila V. Hopkins, “Seven Centuries of the Prices of Consumables, Compared with Builders’ Wage-Rates”, Economica (New Series), 23 (1956), 296-314.",{"$nulls":17},"British inflation ",null,"1311-1800",null,"Used for robustness series"]
[null,"Van Zanden, Jan Luiten, and Bas van Leeuwen, “Persistent but not consistent: the growth of national income in Holland, 1347-1807”, Explorations in Economic History, 49/2 (2012), 119-130.",{"$nulls":17},"Dutch real GDP growth (Holland)",null,"1511-1807",null,"Appendix table 2: interpolated decadal real GDP, constant 1800 prices."]
[null,"Van Zanden, Jan Luiten, “The prices of the most important consumer goods, and indices of wages and the cost of living in the western part of the Netherlands, 1450-1800”, database available at authors homepage, http://www.iisg.nl/hpw/brenv.php. Accessed September 9, 2018.",{"$nulls":17},"Dutch inflation  ('Western Netherlands')",null,"1450-1800",null,"Used for robustness series"]

{"sheet":"II. Headline series","index":2,"n_rows":719,"n_cols":25,"rows_kept":719,"merged":[[0,2,0,7],[0,10,0,24],[3,2,3,7],[3,10,3,15],[3,21,3,23]]}
["back to contents",null,"7-year averaged",{"$nulls":7},"Not averaged"]
["Year",null,"Global sovereign nominal","Global inflation","Global R","Safe asset provider nominal","Safe asset provider inflation","Safe asset provider real",null,null,"Global sovereign nominal","Global inflation","Global R","Safe asset provider nominal","Safe asset provider inflation","Safe asset provider real",{"$nulls":5},"Private nominal","Private inflation","Private R","Non-marketable loans"]
[]
[null,"Source","Cf Sheet I, and Schmelzing SWP 845 (2020, Data appendix)",{"$nulls":7},"Cf Sheet I, and Schmelzing SWP 845 (2020, Data appendix)",{"$nulls":10},"Cf Sheet I, and Schmelzing SWP 845 (2020, Data appendix)",null,null,"Cf sheet VIII."]
[]
[null,"Unit","Nominal",null,"Real","Nominal",null,"Real",null,null,"Nominal",null,"Real","Nominal",null,"Real",{"$nulls":5},"Nominal",null,"Real","Nominal"]
[]
[1310,{"$nulls":20},{"v":6.9030000000000005,"d":"6.903"}]
[1311,{"$nulls":10},{"$f":"SUM('IV. Country level, 1310-2018'!AY5:BF5)","v":{"v":47.97187404050855,"d":"47.9719"}},{"$nulls":9},{"v":6.6659999999999995,"d":"6.666"}]
[1312,{"$nulls":10},{"$f":"SUM('IV. Country level, 1310-2018'!AY6:BF6)","v":{"v":-13.676137407462173,"d":"-13.6761"}},{"$nulls":9},{"v":10,"d":"10.000"},null,null,{"$f":"'VIII. Pers. sov. loans, 1312-'!C5","v":{"v":15.916665,"d":"15.917"}}]
[1313,{"$nulls":10},{"$f":"SUM('IV. Country level, 1310-2018'!AY7:BF7)","v":{"v":-0.5020357143929032,"d":"-0.5020"}},{"$nulls":9},{"v":9.062500000000002,"d":"9.063"},null,null,{"$f":"'VIII. Pers. sov. loans, 1312-'!C6","v":{"v":14.277776666666668,"d":"14.278"}}]
[1314,null,null,{"$f":"AVERAGE(L9:L15)","v":{"v":7.121745201369235,"d":"7.122"}},{"$nulls":6},{"$f":"SUM('IV. Country level, 1310-2018'!AO8:AV8)","v":{"v":10.699792008579646,"d":"10.700"}},{"$f":"SUM('IV. Country level, 1310-2018'!AY8:BF8)","v":{"v":-9.635738069477743,"d":"-9.6357"}},{"$f":"K12-L12","v":{"v":20.33553007805739,"d":"20.336"}},{"$f":"P12+O12","v":{"v":7.813421052631579,"d":"7.813"}},{"$f":"'IV. Country level, 1310-2018'!U8","v":{"v":-14.285714285714285,"d":"-14.286"}},{"$f":"'IV. Country level, 1310-2018'!C8","v":{"v":22.099135338345864,"d":"22.099"}},{"$nulls":5},8.125,null,null,{"$f":"'VIII. Pers. sov. loans, 1312-'!C7","v":{"v":15,"d":"15.000"}}]
[1315,null,null,{"v":-0.47611728245358076,"d":"-0.476"},{"$nulls":6},{"$f":"SUM('IV. Country level, 1310-2018'!AO9:AV9)","v":{"v":10.79832605192707,"d":"10.798"}},{"$f":"SUM('IV. Country level, 1310-2018'!AY9:BF9)","v":{"v":-18.50661267640616,"d":"-18.5066"}},{"$f":"K13-L13","v":{"v":29.30493872833323,"d":"29.305"}},{"$f":"P13+O13","v":{"v":7.937123287671234,"d":"7.937"}},{"$f":"'IV. Country level, 1310-2018'!U9","v":{"v":-25,"d":"-25.000"}},{"$f":"'IV. Country level, 1310-2018'!C9","v":{"v":32.937123287671234,"d":"32.937"}},{"$nulls":5},{"v":5.263199999999999,"d":"5.263"},null,null,{"$f":"'VIII. Pers. sov. loans, 1312-'!C8","v":{"v":15.916665,"d":"15.917"}}]
[1316,null,null,{"v":-0.9970640802921287,"d":"-0.997"},{"$nulls":6},{"$f":"SUM('IV. Country level, 1310-2018'!AO10:AV10)","v":{"v":10.907012746438495,"d":"10.907"}},{"$f":"SUM('IV. Country level, 1310-2018'!AY10:BF10)","v":{"v":8.460693127423054,"d":"8.4607"}},{"v":2.4463196190154406,"d":"2.446"},{"v":8.073571428571428,"d":"8.074"},{"$f":"'IV. Country level, 1310-2018'!U10","v":{"v":0,"d":"0.000"}},{"$f":"'IV. Country level, 1310-2018'!C10","v":{"v":8.073571428571428,"d":"8.074"}},{"$nulls":5},9.625,null,null,{"$f":"'VIII. Pers. sov. loans, 1312-'!C9","v":{"v":14.277776666666668,"d":"14.278"}}]
[1317,null,{"$f":"AVERAGE(K12:K18)","v":{"v":10.717950115529918,"d":"10.718"}},{"v":-2.6311519175695834,"d":"-2.631"},{"v":13.3491020330995,"d":"13.349"},{"v":7.836217218682715,"d":"7.836"},{"v":-4.0582433439576295,"d":"-4.058"},{"v":11.894460562640344,"d":"11.894"},null,null,{"$f":"SUM('IV. Country level, 1310-2018'!AO11:AV11)","v":{"v":10.817559799467794,"d":"10.818"}},{"$f":"SUM('IV. Country level, 1310-2018'!AY11:BF11)","v":{"v":35.74017310939201,"d":"35.7402"}},{"v":-24.922613309924216,"d":"-24.923"},{"v":7.961269841269839,"d":"7.961"},{"$f":"'IV. Country level, 1310-2018'!U11","v":{"v":44.44444444444444,"d":"44.444"}},{"$f":"'IV. Country level, 1310-2018'!C11","v":{"v":-36.483174603174604,"d":"-36.483"}},{"$nulls":5},{"v":7.7102,"d":"7.710"},null,null,{"$f":"'VIII. Pers. sov. loans, 1312-'!C10","v":{"v":15,"d":"15.000"}}]
[1318,null,{"$f":"AVERAGE(K13:K19)","v":{"v":10.662961867922117,"d":"10.663"}},{"$f":"AVERAGE(L13:L19)","v":{"v":-2.314103496284254,"d":"-2.314"}},{"$f":"AVERAGE(M13:M19)","v":{"v":12.97706536420637,"d":"12.977"}},{"$f":"AVERAGE(N13:N19)","v":{"v":7.76718352333323,"d":"7.767"}},{"$f":"AVERAGE(O13:O19)","v":{"v":-3.6047286047286056,"d":"-3.605"}},{"$f":"AVERAGE(P13:P19)","v":{"v":11.371912128061835,"d":"11.372"}},null,null,{"$f":"SUM('IV. Country level, 1310-2018'!AO12:AV12)","v":{"v":10.728106852497097,"d":"10.728"}},{"$f":"SUM('IV. Country level, 1310-2018'!AY12:BF12)","v":{"v":-5.2131633462511475,"d":"-5.2132"}},{"v":15.941270198748246,"d":"15.941"},{"v":7.8489682539682555,"d":"7.849"},{"$f":"'IV. Country level, 1310-2018'!U12","v":{"v":0,"d":"0.000"}},{"$f":"'IV. Country level, 1310-2018'!C12","v":{"v":7.8489682539682555,"d":"7.849"}},{"$nulls":5},{"v":2.083333333333333,"d":"2.083"},null,null,{"$f":"'VIII. Pers. sov. loans, 1312-'!C11","v":{"v":15,"d":"15.000"}}]
[1319,null,{"v":10.576565161414981,"d":"10.577"},{"v":9.877100361298153,"d":"9.877"},{"v":0.6994648001168277,"d":"0.699"},{"v":7.658718820861678,"d":"7.659"},{"v":10.680985680985682,"d":"10.681"},{"v":-3.022266860124003,"d":"-3.022"},null,null,{"$f":"SUM('IV. Country level, 1310-2018'!AO13:AV13)","v":{"v":10.638653905526397,"d":"10.639"}},{"$f":"SUM('IV. Country level, 1310-2018'!AY13:BF13)","v":{"v":-17.322764992332015,"d":"-17.3228"}},{"v":27.96141889785841,"d":"27.961"},{"v":7.736666666666666,"d":"7.737"},{"$f":"'IV. Country level, 1310-2018'!U13","v":{"v":-15.384615384615385,"d":"-15.385"}},{"$f":"'IV. Country level, 1310-2018'!C13","v":{"v":23.12128205128205,"d":"23.121"}},{"$nulls":5},{"v":6.5,"d":"6.500"},null,null,{"$f":"'VIII. Pers. sov. loans, 1312-'!C12","v":{"v":20,"d":"20.000"}}]
[1320,null,{"v":10.457309617270806,"d":"10.457"},{"v":12.328261850160382,"d":"12.328"},{"v":-1.8709522328895785,"d":"-1.871"},{"v":7.509002267573696,"d":"7.509"},{"v":15.783026497312212,"d":"15.783"},{"v":-8.274024229738515,"d":"-8.274"},null,null,{"$f":"SUM('IV. Country level, 1310-2018'!AO14:AV14)","v":{"v":10.436199444272923,"d":"10.436"}},{"$f":"SUM('IV. Country level, 1310-2018'!AY14:BF14)","v":{"v":-11.940650575335088,"d":"-11.9407"}},{"v":22.37685001960801,"d":"22.377"},{"v":7.482499999999998,"d":"7.483"},{"$f":"'IV. Country level, 1310-2018'!U14","v":{"v":-18.181818181818183,"d":"-18.182"}},{"$f":"'IV. Country level, 1310-2018'!C14","v":{"v":25.66431818181818,"d":"25.664"}},{"$nulls":5},{"v":7.140000000000001,"d":"7.140"},null,null,{"$f":"'VIII. Pers. sov. loans, 1312-'!C13","v":{"v":20,"d":"20.000"}}]
[1321,null,{"v":10.364160224139054,"d":"10.364"},{"v":4.403161796844172,"d":"4.403"},{"v":5.960998427294881,"d":"5.961"},{"v":7.392060064335813,"d":"7.392"},{"v":6.426301351113381,"d":"6.426"},{"v":0.965758713222432,"d":"0.966"},null,null,{"$f":"SUM('IV. Country level, 1310-2018'!AO15:AV15)","v":{"v":10.314874275325032,"d":"10.315"}},{"$f":"SUM('IV. Country level, 1310-2018'!AY15:BF15)","v":{"v":-7.416399120480432,"d":"-7.4164"}},{"v":17.731273395805463,"d":"17.731"},{"v":7.3301851851851865,"d":"7.330"},{"$f":"'IV. Country level, 1310-2018'!U15","v":{"v":-11.11111111111111,"d":"-11.111"}},{"$f":"'IV. Country level, 1310-2018'!C15","v":{"v":18.441296296296297,"d":"18.441"}},{"$nulls":5},{"v":10,"d":"10.000"},null,null,{"$f":"'VIII. Pers. sov. loans, 1312-'!C14","v":{"v":20,"d":"20.000"}}]
[1322,null,{"v":10.303406074446519,"d":"10.303"},{"v":2.3384236534192646,"d":"2.338"},{"v":7.964982421027252,"d":"7.965"},{"v":7.315787703539643,"d":"7.316"},{"$f":"AVERAGE(O17:O23)","v":{"v":2.616777541589571,"d":"2.617"}},{"v":4.69901016195007,"d":"4.699"},null,null,{"$f":"SUM('IV. Country level, 1310-2018'!AO16:AV16)","v":{"v":10.193549106377139,"d":"10.194"}},{"$f":"SUM('IV. Country level, 1310-2018'!AY16:BF16)","v":{"v":66.8318143266707,"d":"66.8318"}},{"v":-56.638265220293555,"d":"-56.638"},{"v":7.177870370370371,"d":"7.178"},{"$f":"'IV. Country level, 1310-2018'!U16","v":{"v":75,"d":"75.000"}},{"$f":"'IV. Country level, 1310-2018'!C16","v":{"v":-67.82212962962963,"d":"-67.822"}},{"$nulls":5},{"v":9.046666666666667,"d":"9.047"},null,null,{"$f":"'VIII. Pers. sov. loans, 1312-'!C15","v":{"v":20,"d":"20.000"}}]
[1323,null,{"v":10.184418667567954,"d":"10.184"},{"v":3.8871291420455196,"d":"3.887"},{"v":6.297289525522433,"d":"6.297"},{"v":7.258049608301547,"d":"7.258"},{"v":3.5158784406904693,"d":"3.516"},{"v":3.7421711676110756,"d":"3.742"},null,null,{"$f":"SUM('IV. Country level, 1310-2018'!AO17:AV17)","v":{"v":10.072223937429248,"d":"10.072"}},{"$f":"SUM('IV. Country level, 1310-2018'!AY17:BF17)","v":{"v":25.61882354945865,"d":"25.6188"}},{"v":-15.546599612029402,"d":"-15.547"},{"v":7.025555555555556,"d":"7.026"},{"$f":"'IV. Country level, 1310-2018'!U17","v":{"v":35.714285714285715,"d":"35.714"}},{"$f":"'IV. Country level, 1310-2018'!C17","v":{"v":-28.68873015873016,"d":"-28.689"}},{"$nulls":5},{"v":10,"d":"10.000"},null,null,{"$f":"'VIII. Pers. sov. loans, 1312-'!C16","v":{"v":20,"d":"20.000"}}]
[1324,null,{"v":10.105277646194887,"d":"10.105"},{"v":6.033465689110601,"d":"6.033"},{"v":4.071811957084286,"d":"4.072"},{"v":7.220859891989491,"d":"7.221"},{"v":7.445117384356742,"d":"7.445"},{"v":-0.2242574923672503,"d":"-0.224"},null,null,{"$f":"SUM('IV. Country level, 1310-2018'!AO18:AV18)","v":{"v":10.165514047545539,"d":"10.166"}},{"$f":"SUM('IV. Country level, 1310-2018'!AY18:BF18)","v":{"v":-19.735527263821464,"d":"-19.7355"}},{"v":29.901041311367003,"d":"29.901"},{"v":7.142674418604653,"d":"7.143"},{"$f":"'IV. Country level, 1310-2018'!U18","v":{"v":-21.052631578947366,"d":"-21.053"}},{"$f":"'IV. Country level, 1310-2018'!C18","v":{"v":28.19530599755202,"d":"28.195"}},{"$nulls":5},{"v":7.140000000000001,"d":"7.140"},null,null,{"$f":"'VIII. Pers. sov. loans, 1312-'!C17","v":{"v":15,"d":"15.000"}}]
[1325,null,{"v":10.06198972559551,"d":"10.062"},{"v":8.099634150642045,"d":"8.100"},{"v":1.9623555749534651,"d":"1.962"},{"v":7.189668290053207,"d":"7.190"},{"v":10.656332064409156,"d":"10.656"},{"v":-3.466663774355948,"d":"-3.467"},null,null,{"$f":"SUM('IV. Country level, 1310-2018'!AO19:AV19)","v":{"v":10.302827804649354,"d":"10.303"}},{"$f":"SUM('IV. Country level, 1310-2018'!AY19:BF19)","v":{"v":-19.666330350225486,"d":"-19.6663"}},{"v":29.96915815487484,"d":"29.969"},{"$f":"P23+O23","v":{"v":7.315061728395062,"d":"7.315"}},{"$f":"'IV. Country level, 1310-2018'!U19","v":{"v":-26.666666666666668,"d":"-26.667"}},{"$f":"'IV. Country level, 1310-2018'!C19","v":{"v":33.98172839506173,"d":"33.982"}},{"$nulls":5},{"v":9.166666666666668,"d":"9.167"},null,null,{"$f":"'VIII. Pers. sov. loans, 1312-'!C18","v":{"v":17,"d":"17.000"}}]
[1326,null,{"v":10.051416954663283,"d":"10.051"},{"v":1.1089688469610393,"d":"1.109"},{"v":8.942448107702246,"d":"8.942"},{"v":7.164474802492698,"d":"7.164"},{"v":4.583697527458257,"d":"4.584"},{"v":2.5807772750344404,"d":"2.581"},null,null,{"$f":"SUM('IV. Country level, 1310-2018'!AO20:AV20)","v":{"v":9.805742057376435,"d":"9.806"}},{"$f":"SUM('IV. Country level, 1310-2018'!AY20:BF20)","v":{"v":-6.481826571948239,"d":"-6.4818"}},{"v":16.287568629324674,"d":"16.288"},{"v":7.332500000000001,"d":"7.333"},{"$f":"'IV. Country level, 1310-2018'!U20","v":{"v":-9.090909090909092,"d":"-9.091"}},{"$f":"'IV. Country level, 1310-2018'!C20","v":{"v":16.423409090909093,"d":"16.423"}},{"$nulls":5},{"v":7.6923076923076925,"d":"7.692"},{"v":1.151611645900639,"d":"1.152"},{"$f":"V24-W24","v":{"v":6.540696046407054,"d":"6.541"}},{"$f":"'VIII. Pers. sov. loans, 1312-'!C19","v":{"v":15.86129732336629,"d":"15.861"}}]
[1327,null,{"v":10.169438900635367,"d":"10.169"},{"v":-2.8641197883667915,"d":"-2.864"},{"v":13.033558689002161,"d":"13.034"},{"v":7.145279429307963,"d":"7.145"},{"v":-1.1822659572431102,"d":"-1.182"},{"v":8.327545386551071,"d":"8.328"},null,null,{"$f":"SUM('IV. Country level, 1310-2018'!AO21:AV21)","v":{"v":9.882212294661464,"d":"9.882"}},{"$f":"SUM('IV. Country level, 1310-2018'!AY21:BF21)","v":{"v":3.083705254120486,"d":"3.0837"}},{"v":6.7985070405409775,"d":"6.799"},{"v":7.222171985815604,"d":"7.222"},{"$f":"'IV. Country level, 1310-2018'!U21","v":{"v":9.322854423845717,"d":"9.323"}},{"$f":"'IV. Country level, 1310-2018'!C21","v":{"v":-2.1006824380301135,"d":"-2.101"}},{"$nulls":5},{"v":7.6875,"d":"7.688"},{"v":1.145018057364803,"d":"1.145"},{"$f":"V25-W25","v":{"v":6.542481942635197,"d":"6.542"}},{"$f":"'VIII. Pers. sov. loans, 1312-'!C20","v":{"v":16.82949808811878,"d":"16.829"}}]
[1328,null,{"v":10.35831078749349,"d":"10.358"},{"v":-1.806563408958039,"d":"-1.807"},{"v":12.164874196451526,"d":"12.165"},{"v":7.093591645089873,"d":"7.094"},{"v":-1.9617871402275533,"d":"-1.962"},{"v":9.055378785317426,"d":"9.055"},null,null,{"$f":"SUM('IV. Country level, 1310-2018'!AO22:AV22)","v":{"v":10.011858831129391,"d":"10.012"}},{"$f":"SUM('IV. Country level, 1310-2018'!AY22:BF22)","v":{"v":7.0467801102396725,"d":"7.0468"}},{"v":2.9650787208897187,"d":"2.965"},{"$f":"P26+O26","v":{"v":7.111843971631206,"d":"7.112"}},{"$f":"'IV. Country level, 1310-2018'!U22","v":{"v":11.367391649255783,"d":"11.367"}},{"$f":"'IV. Country level, 1310-2018'!C22","v":{"v":-4.255547677624577,"d":"-4.256"}},{"$nulls":5},{"v":7.557483333333334,"d":"7.557"},{"v":1.138499548238315,"d":"1.138"},{"v":6.418983785095019,"d":"6.419"},{"$f":"'VIII. Pers. sov. loans, 1312-'!C21","v":{"v":18.099710634193393,"d":"18.100"}}]
[1329,null,{"v":10.313373808326743,"d":"10.313"},{"v":0.35040502485677943,"d":"0.350"},{"v":9.962968783469965,"d":"9.963"},{"v":6.99794452887538,"d":"6.998"},{"v":0.4615993075527367,"d":"0.462"},{"v":6.536345221322642,"d":"6.536"},null,null,{"$f":"SUM('IV. Country level, 1310-2018'!AO23:AV23)","v":{"v":10.119539709851558,"d":"10.120"}},{"$f":"SUM('IV. Country level, 1310-2018'!AY23:BF23)","v":{"v":17.897157200903656,"d":"17.8972"}},{"v":-7.777617491052098,"d":"-7.778"},{"v":7.001515957446806,"d":"7.002"},{"$f":"'IV. Country level, 1310-2018'!U23","v":{"v":32.49155824134372,"d":"32.492"}},{"$f":"'IV. Country level, 1310-2018'!C23","v":{"v":-25.490042283896912,"d":"-25.490"}},{"$nulls":5},{"v":9.992331288343559,"d":"9.992"},{"v":1.1320548433231346,"d":"1.132"},{"v":8.860276445020425,"d":"8.860"},{"$f":"'VIII. Pers. sov. loans, 1312-'!C22","v":{"v":17.289739570774053,"d":"17.290"}}]
[1330,null,{"v":10.45311972422016,"d":"10.453"},{"v":2.3973488365458606,"d":"2.397"},{"v":8.055770887674297,"d":"8.056"},{"v":6.885020463145191,"d":"6.885"},{"v":4.592678360767603,"d":"4.593"},{"v":2.2923421023775883,"d":"2.292"},null,null,{"$f":"SUM('IV. Country level, 1310-2018'!AO24:AV24)","v":{"v":10.898377559233829,"d":"10.898"}},{"$f":"SUM('IV. Country level, 1310-2018'!AY24:BF24)","v":{"v":-2.1927968978361703,"d":"-2.1928"}},{"v":13.09117445707,"d":"13.091"},{"v":6.891187943262411,"d":"6.891"},{"$f":"'IV. Country level, 1310-2018'!U24","v":{"v":-4.64745867862386,"d":"-4.647"}},{"$f":"'IV. Country level, 1310-2018'!C24","v":{"v":11.53864662188627,"d":"11.539"}},{"$nulls":5},{"v":11.666666666666666,"d":"11.667"},{"v":1.1256826961390825,"d":"1.126"},{"v":10.540983970527584,"d":"10.541"},{"$f":"'VIII. Pers. sov. loans, 1312-'!C23","v":{"v":17.289739570774053,"d":"17.290"}}]
[1331,null,{"v":10.575299851325491,"d":"10.575"},{"v":2.2733890342707883,"d":"2.273"},{"v":8.3019108170547,"d":"8.302"},{"v":6.7860810308281,"d":"6.786"},{"v":4.073136846029116,"d":"4.073"},{"v":2.7129441847989844,"d":"2.713"},null,null,{"$f":"SUM('IV. Country level, 1310-2018'!AO25:AV25)","v":{"v":11.48761725555239,"d":"11.488"}},{"$f":"SUM('IV. Country level, 1310-2018'!AY25:BF25)","v":{"v":-12.332632607960191,"d":"-12.3326"}},{"v":23.82024986351258,"d":"23.820"},{"v":6.780859929078016,"d":"6.781"},{"$f":"'IV. Country level, 1310-2018'!U25","v":{"v":-26.509279859838475,"d":"-26.509"}},{"$f":"'IV. Country level, 1310-2018'!C25","v":{"v":33.29013978891649,"d":"33.290"}},{"$nulls":5},{"v":17.5,"d":"17.500"},{"v":1.1193818881198903,"d":"1.119"},{"v":16.38061811188011,"d":"16.381"},{"$f":"'VIII. Pers. sov. loans, 1312-'!C24","v":{"v":16.988599523082282,"d":"16.989"}}]
[1332,null,{"v":10.720463849966237,"d":"10.720"},{"v":1.5130410816406834,"d":"1.513"},{"v":9.207422768325552,"d":"9.207"},{"v":6.713357437612074,"d":"6.713"},{"v":2.421321551890535,"d":"2.421"},{"v":4.29203588572154,"d":"4.292"},null,null,{"$f":"SUM('IV. Country level, 1310-2018'!AO26:AV26)","v":{"v":9.988268950482144,"d":"9.988"}},{"$f":"SUM('IV. Country level, 1310-2018'!AY26:BF26)","v":{"v":-4.567551313521757,"d":"-4.5676"}},{"v":14.555820264003902,"d":"14.556"},{"v":6.645531914893619,"d":"6.646"},{"$f":"'IV. Country level, 1310-2018'!U26","v":{"v":-9.702961532204627,"d":"-9.703"}},{"$f":"'IV. Country level, 1310-2018'!C26","v":{"v":16.348493447098246,"d":"16.348"}},{"$nulls":5},{"v":8.863636363636363,"d":"8.864"},{"v":1.1131512278362459,"d":"1.113"},{"v":7.750485135800117,"d":"7.750"},{"$f":"'VIII. Pers. sov. loans, 1312-'!C25","v":{"v":16.487174463467568,"d":"16.487"}}]
[1333,null,{"v":10.916404508923467,"d":"10.916"},{"v":-0.7693267605511267,"d":"-0.769"},{"v":11.685731269474593,"d":"11.686"},{"v":6.71584522673159,"d":"6.716"},{"v":-2.361932050866631,"d":"-2.362"},{"v":9.077777277598223,"d":"9.078"},null,null,{"$f":"SUM('IV. Country level, 1310-2018'!AO27:AV27)","v":{"v":10.783963468630345,"d":"10.784"}},{"$f":"SUM('IV. Country level, 1310-2018'!AY27:BF27)","v":{"v":7.846780109875329,"d":"7.8468"}},{"v":2.937183358755016,"d":"2.937"},{"v":6.542031539888683,"d":"6.542"},{"$f":"'IV. Country level, 1310-2018'!U27","v":{"v":19.826644281594973,"d":"19.827"}},{"$f":"'IV. Country level, 1310-2018'!C27","v":{"v":-13.28461274170629,"d":"-13.285"}},{"$nulls":5},{"v":7.140000000000001,"d":"7.140"},{"v":1.1069895502444285,"d":"1.107"},{"v":6.033010449755572,"d":"6.033"},{"$f":"'VIII. Pers. sov. loans, 1312-'!C26","v":{"v":17.265151515151516,"d":"17.265"}}]
[1334,null,{"v":11.03925810603937,"d":"11.039"},{"v":-0.3007615529571745,"d":"-0.301"},{"v":11.340019658996543,"d":"11.340"},{"v":6.698892438768164,"d":"6.699"},{"v":-1.7122763412982849,"d":"-1.712"},{"v":8.41116878006645,"d":"8.411"},null,null,{"$f":"SUM('IV. Country level, 1310-2018'!AO28:AV28)","v":{"v":10.73747318439877,"d":"10.737"}},{"$f":"SUM('IV. Country level, 1310-2018'!AY28:BF28)","v":{"v":2.2159866381949787,"d":"2.2160"}},{"v":8.521486546203791,"d":"8.521"},{"v":6.5295959595959605,"d":"6.530"},{"$f":"'IV. Country level, 1310-2018'!U28","v":{"v":5.686063820676302,"d":"5.686"}},{"$f":"'IV. Country level, 1310-2018'!C28","v":{"v":0.8435321389196586,"d":"0.844"}},{"$nulls":5},{"v":8.598484848484848,"d":"8.598"},{"v":1.1008957159597372,"d":"1.101"},{"v":7.4975891325251105,"d":"7.498"},{"$f":"'VIII. Pers. sov. loans, 1312-'!C27","v":{"v":16.272727272727273,"d":"16.273"}}]
[1335,null,{"v":11.071906885680404,"d":"11.072"},{"v":1.5101044284589826,"d":"1.510"},{"v":9.56180245722142,"d":"9.562"},{"v":6.6880556283899955,"d":"6.688"},{"v":1.99900214485176,"d":"1.999"},{"v":4.689053483538236,"d":"4.689"},null,null,{"$f":"SUM('IV. Country level, 1310-2018'!AO29:AV29)","v":{"v":11.028006821614614,"d":"11.028"}},{"$f":"SUM('IV. Country level, 1310-2018'!AY29:BF29)","v":{"v":1.7243444418289406,"d":"1.7243"}},{"v":9.303662379785674,"d":"9.304"},{"v":6.602778819119025,"d":"6.603"},{"$f":"'IV. Country level, 1310-2018'!U29","v":{"v":-0.19531540971428527,"d":"-0.195"}},{"$f":"'IV. Country level, 1310-2018'!C29","v":{"v":6.79809422883331,"d":"6.798"}},{"$nulls":5},{"v":10.714285714285715,"d":"10.714"},{"v":11.324058760599524,"d":"11.324"},{"v":-0.6097730463138085,"d":"-0.610"},{"$f":"'VIII. Pers. sov. loans, 1312-'!C28","v":{"v":20.466666666666665,"d":"20.467"}}]
[1336,null,{"v":10.913248616072808,"d":"10.913"},{"v":2.9482113999181885,"d":"2.948"},{"v":7.965037216154621,"d":"7.965"},{"v":6.686906224168511,"d":"6.687"},{"v":3.7734276238640008,"d":"3.773"},{"v":2.91347860030451,"d":"2.913"},null,null,{"$f":"SUM('IV. Country level, 1310-2018'!AO30:AV30)","v":{"v":11.491124322552183,"d":"11.491"}},{"$f":"SUM('IV. Country level, 1310-2018'!AY30:BF30)","v":{"v":1.9205823055609825,"d":"1.9206"}},{"v":9.570542016991201,"d":"9.571"},{"v":7.018930481283423,"d":"7.019"},{"$f":"'IV. Country level, 1310-2018'!U30","v":{"v":-0.9912169779564464,"d":"-0.991"}},{"$f":"'IV. Country level, 1310-2018'!C30","v":{"v":8.01014745923987,"d":"8.010"}},{"$nulls":5},{"v":8.484848484848486,"d":"8.485"},{"v":4.184370214050207,"d":"4.184"},{"v":4.300478270798279,"d":"4.300"},{"$f":"'VIII. Pers. sov. loans, 1312-'!C29","v":{"v":24.25822222222222,"d":"24.258"}}]
[1337,null,{"v":10.709820227558428,"d":"10.710"},{"v":1.410614288784298,"d":"1.411"},{"v":9.299205938774131,"d":"9.299"},{"v":6.698766076334485,"d":"6.699"},{"v":0.8876876292530966,"d":"0.888"},{"v":5.811078447081388,"d":"5.811"},null,null,{"$f":"SUM('IV. Country level, 1310-2018'!AO31:AV31)","v":{"v":11.758352739045144,"d":"11.758"}},{"$f":"SUM('IV. Country level, 1310-2018'!AY31:BF31)","v":{"v":1.087159555321494,"d":"1.0872"}},{"v":10.67119318372365,"d":"10.671"},{"v":6.772518427518428,"d":"6.773"},{"$f":"'IV. Country level, 1310-2018'!U31","v":{"v":-0.09986871164543443,"d":"-0.100"}},{"$f":"'IV. Country level, 1310-2018'!C31","v":{"v":6.8723871391638625,"d":"6.872"}},{"$nulls":5},5.556,{"v":4.05434337564052,"d":"4.054"},{"v":1.5016566243594802,"d":"1.502"},{"$f":"'VIII. Pers. sov. loans, 1312-'!C30","v":{"v":20.246399999999998,"d":"20.246"}}]
[1338,null,{"v":10.473153927888202,"d":"10.473"},{"v":-0.25487414642013384,"d":"-0.255"},{"v":10.728028074308337,"d":"10.728"},{"v":6.7166895093594405,"d":"6.717"},{"v":0.22166483097651346,"d":"0.222"},{"v":6.4950246783829275,"d":"6.495"},null,null,{"$f":"SUM('IV. Country level, 1310-2018'!AO32:AV32)","v":{"v":11.716158713039611,"d":"11.716"}},{"$f":"SUM('IV. Country level, 1310-2018'!AY32:BF32)","v":{"v":0.34342926195291157,"d":"0.3434"}},{"v":11.3727294510867,"d":"11.373"},{"v":6.705002256430828,"d":"6.705"},{"$f":"'IV. Country level, 1310-2018'!U32","v":{"v":-0.5303304567881602,"d":"-0.530"}},{"$f":"'IV. Country level, 1310-2018'!C32","v":{"v":7.235332713218988,"d":"7.235"}},{"$nulls":5},{"v":6.9244642857142855,"d":"6.924"},{"v":3.932919858682027,"d":"3.933"},{"v":2.9915444270322586,"d":"2.992"},{"$f":"'VIII. Pers. sov. loans, 1312-'!C31","v":{"v":22.071199999999997,"d":"22.071"}}]
[1339,null,{"v":10.492754949321778,"d":"10.493"},{"v":-1.3249068363423326,"d":"-1.325"},{"v":11.817661785664113,"d":"11.818"},{"v":6.720448379355424,"d":"6.720"},{"v":-0.22555081727767035,"d":"-0.226"},{"v":6.945999196633094,"d":"6.946"},null,null,{"$f":"SUM('IV. Country level, 1310-2018'!AO33:AV33)","v":{"v":8.877661063229002,"d":"8.878"}},{"$f":"SUM('IV. Country level, 1310-2018'!AY33:BF33)","v":{"v":5.499197486692685,"d":"5.4992"}},{"v":3.3784635765363173,"d":"3.378"},{"$f":"P37+O37","v":{"v":6.637486085343228,"d":"6.637"}},{"$f":"'IV. Country level, 1310-2018'!U33","v":{"v":2.7180168208810587,"d":"2.718"}},{"$f":"'IV. Country level, 1310-2018'!C33","v":{"v":3.919469264462169,"d":"3.919"}},{"$nulls":5},{"v":6.6251851851851855,"d":"6.625"},{"v":14.90158938766681,"d":"14.902"},{"v":-8.276404202481626,"d":"-8.276"},{"$f":"'VIII. Pers. sov. loans, 1312-'!C32","v":24.226}]
[1340,null,{"v":10.4581749255584,"d":"10.458"},{"v":-1.2142378170535266,"d":"-1.214"},{"v":11.672412742611927,"d":"11.672"},{"v":6.667029739172078,"d":"6.667"},{"v":0.47359480439884105,"d":"0.474"},{"v":6.193434934773237,"d":"6.193"},null,null,{"$f":"SUM('IV. Country level, 1310-2018'!AO34:AV34)","v":{"v":9.359964749029679,"d":"9.360"}},{"$f":"SUM('IV. Country level, 1310-2018'!AY34:BF34)","v":{"v":-2.916399668061906,"d":"-2.9164"}},{"v":12.276364417091585,"d":"12.276"},{"$f":"P38+O38","v":{"v":6.6250505050505035,"d":"6.625"}},{"$f":"'IV. Country level, 1310-2018'!U34","v":{"v":-0.3735356806813572,"d":"-0.374"}},{"$f":"'IV. Country level, 1310-2018'!C34","v":{"v":6.9985861857318605,"d":"6.999"}},{"$nulls":5},{"v":10,"d":"10.000"},{"v":-17.461183339714346,"d":"-17.461"},{"v":27.461183339714346,"d":"27.461"},{"$f":"'VIII. Pers. sov. loans, 1312-'!C33","v":{"v":22.193714285714286,"d":"22.194"}}]
[1341,null,{"v":10.292174353830985,"d":"10.292"},{"v":-0.8548945264087374,"d":"-0.855"},{"v":11.14706888023972,"d":"11.147"},{"v":6.519681168294096,"d":"6.520"},{"v":0.7966443211432672,"d":"0.797"},{"v":5.723036847150829,"d":"5.723"},null,null,{"$f":"SUM('IV. Country level, 1310-2018'!AO35:AV35)","v":{"v":9.080809086707184,"d":"9.081"}},{"$f":"SUM('IV. Country level, 1310-2018'!AY35:BF35)","v":{"v":-9.442432408236044,"d":"-9.4424"}},{"v":18.52324149494323,"d":"18.523"},{"v":6.655059990770649,"d":"6.655"},{"$f":"'IV. Country level, 1310-2018'!U35","v":{"v":1.023904232740219,"d":"1.024"}},{"$f":"'IV. Country level, 1310-2018'!C35","v":{"v":5.63115575803043,"d":"5.631"}},{"$nulls":5},{"v":10,"d":"10.000"},{"v":-21.387616267544573,"d":"-21.388"},{"v":31.387616267544573,"d":"31.388"},{"$f":"'VIII. Pers. sov. loans, 1312-'!C34","v":{"v":22.193714285714286,"d":"22.194"}}]
[1342,null,{"v":10.082402147908633,"d":"10.082"},{"v":-1.0039075905499197,"d":"-1.004"},{"v":11.086309738458553,"d":"11.086"},{"v":6.339332692501059,"d":"6.339"},{"v":0.8212889575869828,"d":"0.821"},{"v":5.518043734914076,"d":"5.518"},null,null,{"$f":"SUM('IV. Country level, 1310-2018'!AO36:AV36)","v":{"v":11.165213971649653,"d":"11.165"}},{"$f":"SUM('IV. Country level, 1310-2018'!AY36:BF36)","v":{"v":-5.765884387626451,"d":"-5.7659"}},{"v":16.931098359276103,"d":"16.931"},{"v":6.629090909090907,"d":"6.629"},{"$f":"'IV. Country level, 1310-2018'!U36","v":{"v":-3.325824947493572,"d":"-3.326"}},{"$f":"'IV. Country level, 1310-2018'!C36","v":{"v":9.95491585658448,"d":"9.955"}},{"$nulls":5},{"v":10.504166666666666,"d":"10.504"},{"v":-27.502175079285795,"d":"-27.502"},{"v":38.00634174595246,"d":"38.006"},{"$f":"'VIII. Pers. sov. loans, 1312-'!C35","v":{"v":17.37832967032967,"d":"17.378"}}]
[1343,null,{"v":10.468632411708938,"d":"10.469"},{"v":-1.5214806633497078,"d":"-1.521"},{"v":11.990113075058648,"d":"11.990"},{"v":6.248840161217311,"d":"6.249"},{"v":0.5084995323431135,"d":"0.508"},{"v":5.740340628874198,"d":"5.740"},null,null,{"$f":"SUM('IV. Country level, 1310-2018'!AO37:AV37)","v":{"v":11.24906415620853,"d":"11.249"}},{"$f":"SUM('IV. Country level, 1310-2018'!AY37:BF37)","v":{"v":2.6952654405826224,"d":"2.6953"}},{"v":8.553798715625907,"d":"8.554"},{"v":6.645000000000001,"d":"6.645"},{"$f":"'IV. Country level, 1310-2018'!U37","v":{"v":3.902802373779133,"d":"3.903"}},{"$f":"'IV. Country level, 1310-2018'!C37","v":{"v":2.7421976262208685,"d":"2.742"}},{"$nulls":5},{"v":10,"d":"10.000"},{"v":3.7946640856944587,"d":"3.795"},{"v":6.205335914305541,"d":"6.205"},{"$f":"'VIII. Pers. sov. loans, 1312-'!C36","v":{"v":16.224805860805862,"d":"16.225"}}]
[1344,null,{"v":10.735809570089378,"d":"10.736"},{"v":0.09544698658296102,"d":"0.095"},{"v":10.640362583506416,"d":"10.640"},{"v":6.194623219766328,"d":"6.195"},{"v":1.7396589957098123,"d":"1.740"},{"v":4.454964224056514,"d":"4.455"},null,null,{"$f":"SUM('IV. Country level, 1310-2018'!AO38:AV38)","v":{"v":10.596348736953239,"d":"10.596"}},{"$f":"SUM('IV. Country level, 1310-2018'!AY38:BF38)","v":{"v":3.602562589835021,"d":"3.6026"}},{"v":6.993786147118218,"d":"6.994"},{"v":5.74107843137255,"d":"5.741"},{"$f":"'IV. Country level, 1310-2018'!U38","v":{"v":2.1614779055655498,"d":"2.161"}},{"$f":"'IV. Country level, 1310-2018'!C38","v":{"v":3.5796005258070003,"d":"3.580"}},{"$nulls":5},{"v":11,"d":"11.000"},{"v":3.688968888368323,"d":"3.689"},{"v":7.311031111631677,"d":"7.311"},{"$f":"'VIII. Pers. sov. loans, 1312-'!C37","v":{"v":15.11185347985348,"d":"15.112"}}]
[1345,null,{"v":10.997051466363688,"d":"10.997"},{"v":1.405893572440531,"d":"1.406"},{"v":9.591157893923155,"d":"9.591"},{"v":6.079898827843637,"d":"6.080"},{"v":1.149238705067033,"d":"1.149"},{"v":4.930660122776605,"d":"4.931"},null,null,{"$f":"SUM('IV. Country level, 1310-2018'!AO39:AV39)","v":{"v":10.247753271583143,"d":"10.248"}},{"$f":"SUM('IV. Country level, 1310-2018'!AY39:BF39)","v":{"v":-0.6996621870353643,"d":"-0.6997"}},{"v":10.947415458618508,"d":"10.947"},{"v":5.442562925879573,"d":"5.443"},{"$f":"'IV. Country level, 1310-2018'!U39","v":{"v":-0.3578180016821517,"d":"-0.358"}},{"$f":"'IV. Country level, 1310-2018'!C39","v":{"v":5.800380927561724,"d":"5.800"}},{"$nulls":5},{"v":10,"d":"10.000"},{"v":3.5895854047148212,"d":"3.590"},{"v":6.410414595285179,"d":"6.410"},{"$f":"'VIII. Pers. sov. loans, 1312-'!C38","v":{"v":13.808424908424909,"d":"13.808"}}]
[1346,null,{"v":10.936769260368582,"d":"10.937"},{"v":2.5490415177329635,"d":"2.549"},{"v":8.387727742635617,"d":"8.388"},{"v":5.9207053897028326,"d":"5.921"},{"v":2.928580782828086,"d":"2.929"},{"v":2.9921246068747465,"d":"2.992"},null,null,{"$f":"SUM('IV. Country level, 1310-2018'!AO40:AV40)","v":{"v":11.58127290983115,"d":"11.581"}},{"$f":"SUM('IV. Country level, 1310-2018'!AY40:BF40)","v":{"v":1.8761859770941678,"d":"1.8762"}},{"v":9.705086932736982,"d":"9.705"},{"v":6.004038366356991,"d":"6.004"},{"$f":"'IV. Country level, 1310-2018'!U40","v":{"v":0.5284908441739743,"d":"0.528"}},{"$f":"'IV. Country level, 1310-2018'!C40","v":{"v":5.475547522183017,"d":"5.476"}},{"$nulls":5},{"v":7.481481481481482,"d":"7.481"},{"v":3.49595501690254,"d":"3.496"},{"v":3.9855264645789417,"d":"3.986"},{"$f":"'VIII. Pers. sov. loans, 1312-'!C39","v":{"v":10.236996336996338,"d":"10.237"}}]
[1347,null,{"v":10.903545199469974,"d":"10.904"},{"v":3.198396003726193,"d":"3.198"},{"v":7.70514919574378,"d":"7.705"},{"v":5.83025941435838,"d":"5.830"},{"v":3.644488721525532,"d":"3.644"},{"v":2.1857706928328478,"d":"2.186"},null,null,{"$f":"SUM('IV. Country level, 1310-2018'!AO41:AV41)","v":{"v":11.23020485769275,"d":"11.230"}},{"$f":"SUM('IV. Country level, 1310-2018'!AY41:BF41)","v":{"v":8.402093881466776,"d":"8.4021"}},{"v":2.8281109762259735,"d":"2.828"},{"v":6.2455319148936175,"d":"6.246"},{"$f":"'IV. Country level, 1310-2018'!U41","v":{"v":8.244580562885535,"d":"8.245"}},{"$f":"'IV. Country level, 1310-2018'!C41","v":{"v":-1.9990486479919172,"d":"-1.999"}},{"$nulls":5},{"v":8.330000000000002,"d":"8.330"},{"v":5.853784226636067,"d":"5.854"},{"v":2.4762157733639345,"d":"2.476"},{"$f":"'VIII. Pers. sov. loans, 1312-'!C40","v":{"v":10.236996336996338,"d":"10.237"}}]
[1348,null,{"v":10.88967562807276,"d":"10.890"},{"v":3.622386292101593,"d":"3.622"},{"v":7.26728933597117,"d":"7.267"},{"v":5.821132031104783,"d":"5.821"},{"v":4.438503850966985,"d":"4.439"},{"v":1.3826281801377998,"d":"1.383"},null,null,{"$f":"SUM('IV. Country level, 1310-2018'!AO42:AV42)","v":{"v":10.909502360627354,"d":"10.910"}},{"$f":"SUM('IV. Country level, 1310-2018'!AY42:BF42)","v":{"v":-0.26930630723305526,"d":"-0.2693"}},{"v":11.178808667860409,"d":"11.179"},{"v":5.851989247311829,"d":"5.852"},{"$f":"'IV. Country level, 1310-2018'!U42","v":{"v":-3.1090378017592375,"d":"-3.109"}},{"$f":"'IV. Country level, 1310-2018'!C42","v":{"v":8.961027049071067,"d":"8.961"}},{"$nulls":5},{"v":8.710225000000001,"d":"8.710"},{"v":5.581894332615191,"d":"5.582"},{"v":3.1283306673848106,"d":"3.128"},{"$f":"'VIII. Pers. sov. loans, 1312-'!C41","v":{"v":10.236996336996338,"d":"10.237"}}]
[1349,null,{"v":10.992389859912802,"d":"10.992"},{"v":4.047405084602011,"d":"4.047"},{"v":6.944984775310789,"d":"6.945"},{"v":5.996122373779978,"d":"5.996"},{"v":4.569781708059746,"d":"4.570"},{"v":1.4263406657202324,"d":"1.426"},null,null,{"$f":"SUM('IV. Country level, 1310-2018'!AO43:AV43)","v":{"v":10.7432385296839,"d":"10.743"}},{"$f":"SUM('IV. Country level, 1310-2018'!AY43:BF43)","v":{"v":2.236151229420579,"d":"2.2362"}},{"v":8.507087300263322,"d":"8.507"},{"v":5.514736842105263,"d":"5.515"},{"$f":"'IV. Country level, 1310-2018'!U43","v":{"v":9.1295695968338,"d":"9.130"}},{"$f":"'IV. Country level, 1310-2018'!C43","v":{"v":-3.6148327547285373,"d":"-3.615"}},{"$nulls":5},{"v":9.09045,"d":"9.090"},{"v":-0.024725126895945235,"d":"-0.025"},{"v":9.115175126895945,"d":"9.115"},{"$f":"'VIII. Pers. sov. loans, 1312-'!C42","v":{"v":10.661111111111111,"d":"10.661"}}]
[1350,null,{"v":10.899853072926474,"d":"10.900"},{"v":4.173286536019085,"d":"4.173"},{"v":6.726566536907386,"d":"6.727"},{"v":6.089517450102477,"d":"6.090"},{"v":5.9943603918119095,"d":"5.994"},{"v":0.09515705829056653,"d":"0.095"},null,null,{"$f":"SUM('IV. Country level, 1310-2018'!AO44:AV44)","v":{"v":11.016495729918272,"d":"11.016"}},{"$f":"SUM('IV. Country level, 1310-2018'!AY44:BF44)","v":{"v":7.240746842535228,"d":"7.2407"}},{"v":3.7757488873830445,"d":"3.776"},{"v":6.011878172588833,"d":"6.012"},{"$f":"'IV. Country level, 1310-2018'!U44","v":{"v":8.914157944661252,"d":"8.914"}},{"$f":"'IV. Country level, 1310-2018'!C44","v":{"v":-2.9022797720724185,"d":"-2.902"}},{"$nulls":5},{"v":5.9055,"d":"5.906"},{"v":-0.03018683412963093,"d":"-0.030"},{"v":5.935686834129631,"d":"5.936"},{"$f":"'VIII. Pers. sov. loans, 1312-'!C43","v":{"v":10.111111111111112,"d":"10.111"}}]
[1351,null,{"v":10.871498550012697,"d":"10.871"},{"v":2.7382031145668364,"d":"2.738"},{"v":8.133295435445858,"d":"8.133"},{"v":6.179171816063821,"d":"6.179"},{"v":4.493539315573159,"d":"4.494"},{"v":1.685632500490662,"d":"1.686"},null,null,{"$f":"SUM('IV. Country level, 1310-2018'!AO45:AV45)","v":{"v":10.499261737172766,"d":"10.499"}},{"$f":"SUM('IV. Country level, 1310-2018'!AY45:BF45)","v":{"v":6.570494608462818,"d":"6.5705"}},{"v":3.928767128709948,"d":"3.929"},{"v":5.677186748597382,"d":"5.677"},{"$f":"'IV. Country level, 1310-2018'!U45","v":{"v":7.71958381165572,"d":"7.720"}},{"$f":"'IV. Country level, 1310-2018'!C45","v":{"v":-2.0423970630583375,"d":"-2.042"}},{"$nulls":5},{"v":7.140000000000001,"d":"7.140"},{"v":-0.03565318910151051,"d":"-0.036"},{"v":7.175653189101511,"d":"7.176"},{"$f":"'VIII. Pers. sov. loans, 1312-'!C44","v":{"v":10,"d":"10.000"}}]
[1352,null,{"v":10.96857048134279,"d":"10.969"},{"v":2.6129738386144106,"d":"2.613"},{"v":8.355596642728377,"d":"8.356"},{"v":6.362947788252357,"d":"6.363"},{"v":4.4164460946971555,"d":"4.416"},{"v":1.9465016935552022,"d":"1.947"},null,null,{"$f":"SUM('IV. Country level, 1310-2018'!AO46:AV46)","v":{"v":10.966752894463417,"d":"10.967"}},{"$f":"SUM('IV. Country level, 1310-2018'!AY46:BF46)","v":{"v":2.275469360467573,"d":"2.2755"}},{"v":8.691283533995843,"d":"8.691"},{"v":6.66749532460593,"d":"6.667"},{"$f":"'IV. Country level, 1310-2018'!U46","v":{"v":0.561126997967178,"d":"0.561"}},{"$f":"'IV. Country level, 1310-2018'!C46","v":{"v":6.106368326638752,"d":"6.106"}},{"$nulls":5},{"v":8.57,"d":"8.570"},{"v":-1.811513883940093,"d":"-1.812"},{"v":10.381513883940093,"d":"10.382"},{"$f":"'VIII. Pers. sov. loans, 1312-'!C45","v":{"v":10,"d":"10.000"}}]
[1353,null,{"v":11.081940585812381,"d":"11.082"},{"v":2.35447512101612,"d":"2.354"},{"v":8.727465464796262,"d":"8.727"},{"v":6.5810466067271145,"d":"6.581"},{"v":3.024560256802187,"d":"3.025"},{"v":3.556486349924928,"d":"3.556"},null,null,{"$f":"SUM('IV. Country level, 1310-2018'!AO47:AV47)","v":{"v":10.933515400926849,"d":"10.934"}},{"$f":"SUM('IV. Country level, 1310-2018'!AY47:BF47)","v":{"v":2.757356137013682,"d":"2.7574"}},{"v":8.176159263913167,"d":"8.176"},{"v":6.65780390061448,"d":"6.658"},{"$f":"'IV. Country level, 1310-2018'!U47","v":{"v":10.500541630439123,"d":"10.501"}},{"$f":"'IV. Country level, 1310-2018'!C47","v":{"v":-3.842737729824643,"d":"-3.843"}},{"$nulls":5},{"v":10,"d":"10.000"},{"v":-1.8685647346536838,"d":"-1.869"},{"v":11.868564734653685,"d":"11.869"},{"$f":"'VIII. Pers. sov. loans, 1312-'!C46","v":{"v":10.028571428571428,"d":"10.029"}}]
[1354,null,{"v":11.189433086795939,"d":"11.189"},{"v":1.2049869756738776,"d":"1.205"},{"v":9.98444611112206,"d":"9.984"},{"v":6.768745329324314,"d":"6.769"},{"v":1.3772534772981422,"d":"1.377"},{"v":5.3914918520261725,"d":"5.391"},null,null,{"$f":"SUM('IV. Country level, 1310-2018'!AO48:AV48)","v":{"v":11.031723197296309,"d":"11.032"}},{"$f":"SUM('IV. Country level, 1310-2018'!AY48:BF48)","v":{"v":-1.6434900686989655,"d":"-1.6435"}},{"v":12.675213265995275,"d":"12.675"},{"v":6.873112476623028,"d":"6.873"},{"$f":"'IV. Country level, 1310-2018'!U48","v":{"v":-2.2611669707857227,"d":"-2.261"}},{"$f":"'IV. Country level, 1310-2018'!C48","v":{"v":9.134279447408751,"d":"9.134"}},{"$nulls":5},9.375,{"v":-1.9282244512548186,"d":"-1.928"},{"v":11.303224451254819,"d":"11.303"},{"$f":"'VIII. Pers. sov. loans, 1312-'!C47","v":{"v":10.028571428571428,"d":"10.029"}}]
[1355,null,{"v":11.326921526605522,"d":"11.327"},{"v":0.18875868006442728,"d":"0.189"},{"v":11.138162846541096,"d":"11.138"},{"v":7.018560214453053,"d":"7.019"},{"v":-0.12377925973374707,"d":"-0.124"},{"v":7.142339474186799,"d":"7.142"},null,null,{"$f":"SUM('IV. Country level, 1310-2018'!AO49:AV49)","v":{"v":11.589005879937998,"d":"11.589"}},{"$f":"SUM('IV. Country level, 1310-2018'!AY49:BF49)","v":{"v":-1.1459112389000403,"d":"-1.1459"}},{"v":12.73491711883804,"d":"12.735"},{"v":7.138421052631581,"d":"7.138"},{"$f":"'IV. Country level, 1310-2018'!U49","v":{"v":-3.6486903478912653,"d":"-3.649"}},{"$f":"'IV. Country level, 1310-2018'!C49","v":{"v":10.787111400522846,"d":"10.787"}},{"$nulls":5},{"v":7.365179848127022,"d":"7.365"},{"v":-1.9906889383343191,"d":"-1.991"},{"v":9.355868786461341,"d":"9.356"},{"$f":"'VIII. Pers. sov. loans, 1312-'!C48","v":{"v":11.020408163265305,"d":"11.020"}}]
[1356,null,{"v":11.214846782481748,"d":"11.215"},{"v":-0.2645232963791971,"d":"-0.265"},{"v":11.479370078860944,"d":"11.479"},{"v":7.073348404970468,"d":"7.073"},{"v":-0.4609374199175172,"d":"-0.461"},{"v":7.534285824887986,"d":"7.534"},null,null,{"$f":"SUM('IV. Country level, 1310-2018'!AO50:AV50)","v":{"v":11.536829260971064,"d":"11.537"}},{"$f":"SUM('IV. Country level, 1310-2018'!AY50:BF50)","v":{"v":0.42666020623254913,"d":"0.4267"}},{"v":11.110169054738515,"d":"11.110"},{"v":7.041428571428571,"d":"7.041"},{"$f":"'IV. Country level, 1310-2018'!U50","v":{"v":-0.6136312684309756,"d":"-0.614"}},{"$f":"'IV. Country level, 1310-2018'!C50","v":{"v":7.655059839859547,"d":"7.655"}},{"$nulls":5},{"v":7.000000000000001,"d":"7.000"},{"v":-2.0561739381175457,"d":"-2.056"},{"v":9.056173938117546,"d":"9.056"},{"$f":"'VIII. Pers. sov. loans, 1312-'!C49","v":{"v":10.267857142857142,"d":"10.268"}}]
[1357,null,{"v":11.140709541170754,"d":"11.141"},{"v":-0.2048699332110371,"d":"-0.205"},{"v":11.345579474381791,"d":"11.346"},{"v":7.147041924394881,"d":"7.147"},{"v":-1.2767776083301026,"d":"-1.277"},{"v":8.423819532724982,"d":"8.424"},null,null,{"$f":"SUM('IV. Country level, 1310-2018'!AO51:AV51)","v":{"v":11.768943236803155,"d":"11.769"}},{"$f":"SUM('IV. Country level, 1310-2018'!AY51:BF51)","v":{"v":-0.8056701748604742,"d":"-0.8057"}},{"v":12.574613411663629,"d":"12.575"},{"v":7.3257692307692315,"d":"7.326"},{"$f":"'IV. Country level, 1310-2018'!U51","v":{"v":-2.61698951186706,"d":"-2.617"}},{"$f":"'IV. Country level, 1310-2018'!C51","v":{"v":9.942758742636292,"d":"9.943"}},{"$nulls":5},{"v":7.9,"d":"7.900"},{"v":-2.1249176138379298,"d":"-2.125"},{"v":10.02491761383793,"d":"10.025"},{"$f":"'VIII. Pers. sov. loans, 1312-'!C50","v":{"v":10.306122448979592,"d":"10.306"}}]
[1358,null,{"v":11.09238435695562,"d":"11.092"},{"v":-0.6944570672054157,"d":"-0.694"},{"v":11.786841424161036,"d":"11.787"},{"v":7.182311570591591,"d":"7.182"},{"v":-2.574798143490614,"d":"-2.575"},{"v":9.757109714082205,"d":"9.757"},null,null,{"$f":"SUM('IV. Country level, 1310-2018'!AO52:AV52)","v":{"v":11.46168081583987,"d":"11.462"}},{"$f":"SUM('IV. Country level, 1310-2018'!AY52:BF52)","v":{"v":-0.5431034608033337,"d":"-0.5431"}},{"v":12.004784276643203,"d":"12.005"},{"v":7.425890944498541,"d":"7.426"},{"$f":"'IV. Country level, 1310-2018'!U52","v":{"v":-2.787645347567507,"d":"-2.788"}},{"$f":"'IV. Country level, 1310-2018'!C52","v":{"v":10.213536292066047,"d":"10.214"}},{"$nulls":5},{"v":6.25,"d":"6.250"},{"v":1.4368467892968664,"d":"1.437"},{"v":4.813153210703134,"d":"4.813"},{"$f":"'VIII. Pers. sov. loans, 1312-'!C51","v":{"v":10.306122448979592,"d":"10.306"}}]
[1359,null,{"v":10.91096894732195,"d":"10.911"},{"v":-1.0107942525104623,"d":"-1.011"},{"v":11.921763199832412,"d":"11.922"},{"v":7.116187928152158,"d":"7.116"},{"v":-2.7691346067273925,"d":"-2.769"},{"v":9.88532253487955,"d":"9.885"},null,null,{"$f":"SUM('IV. Country level, 1310-2018'!AO53:AV53)","v":{"v":10.18222968559699,"d":"10.182"}},{"$f":"SUM('IV. Country level, 1310-2018'!AY53:BF53)","v":{"v":-0.8975044746377968,"d":"-0.8975"}},{"v":11.079734160234787,"d":"11.080"},{"v":7.051012658227847,"d":"7.051"},{"$f":"'IV. Country level, 1310-2018'!U53","v":{"v":-1.7989801233192124,"d":"-1.799"}},{"$f":"'IV. Country level, 1310-2018'!C53","v":{"v":8.84999278154706,"d":"8.850"}},{"$nulls":5},{"v":6.660000000000001,"d":"6.660"},{"v":1.425586668035725,"d":"1.426"},{"v":5.2344133319642765,"d":"5.234"},{"$f":"'VIII. Pers. sov. loans, 1312-'!C52","v":{"v":10.357142857142856,"d":"10.357"}}]
[1360,null,{"v":10.728318854666187,"d":"10.728"},{"v":-0.5160698513444512,"d":"-0.516"},{"v":11.244388706010639,"d":"11.244"},{"v":7.00963126293288,"d":"7.010"},{"v":-2.0472726740882785,"d":"-2.047"},{"v":9.056903937021158,"d":"9.057"},null,null,{"$f":"SUM('IV. Country level, 1310-2018'!AO54:AV54)","v":{"v":10.41455471174989,"d":"10.415"}},{"$f":"SUM('IV. Country level, 1310-2018'!AY54:BF54)","v":{"v":3.174929679190801,"d":"3.1749"}},{"v":7.239625032559089,"d":"7.240"},{"v":7.173658536585367,"d":"7.174"},{"$f":"'IV. Country level, 1310-2018'!U54","v":{"v":4.789660311551024,"d":"4.790"}},{"$f":"'IV. Country level, 1310-2018'!C54","v":{"v":2.383998225034343,"d":"2.384"}},{"$nulls":5},{"v":5.5,"d":"5.500"},{"v":1.414514267677161,"d":"1.415"},{"v":4.085485732322839,"d":"4.085"},{"$f":"'VIII. Pers. sov. loans, 1312-'!C53","v":{"v":10.5,"d":"10.500"}}]
[1361,null,{"v":10.56282178395823,"d":"10.563"},{"v":-0.119835494807911,"d":"-0.120"},{"v":10.68265727876614,"d":"10.683"},{"v":6.964505321458623,"d":"6.965"},{"v":-1.2623758938194045,"d":"-1.262"},{"v":8.226881215278029,"d":"8.227"},null,null,{"$f":"SUM('IV. Country level, 1310-2018'!AO55:AV55)","v":{"v":10.693446907790374,"d":"10.693"}},{"$f":"SUM('IV. Country level, 1310-2018'!AY55:BF55)","v":{"v":-5.070600006659616,"d":"-5.0706"}},{"v":15.76404691444999,"d":"15.764"},{"v":7.119999999999999,"d":"7.120"},{"$f":"'IV. Country level, 1310-2018'!U55","v":{"v":-11.3473107169093,"d":"-11.347"}},{"$f":"'IV. Country level, 1310-2018'!C55","v":{"v":18.4673107169093,"d":"18.467"}},{"$nulls":5},{"v":7.500000000000001,"d":"7.500"},{"v":1.403624719457663,"d":"1.404"},{"v":6.096375280542338,"d":"6.096"},{"$f":"'VIII. Pers. sov. loans, 1312-'!C54","v":{"v":10.666666666666666,"d":"10.667"}}]
[1362,null,{"v":10.404299748767059,"d":"10.404"},{"v":-0.636671279742256,"d":"-0.637"},{"v":11.040971028509315,"d":"11.041"},{"v":6.895374903955693,"d":"6.895"},{"v":-1.6308878357655254,"d":"-1.631"},{"v":8.526262739721217,"d":"8.526"},null,null,{"$f":"SUM('IV. Country level, 1310-2018'!AO56:AV56)","v":{"v":10.319098012502309,"d":"10.319"}},{"$f":"SUM('IV. Country level, 1310-2018'!AY56:BF56)","v":{"v":-3.360271536035365,"d":"-3.3603"}},{"v":13.679369548537673,"d":"13.679"},{"v":6.675555555555556,"d":"6.676"},{"$f":"'IV. Country level, 1310-2018'!U56","v":{"v":-5.009045590548716,"d":"-5.009"}},{"$f":"'IV. Country level, 1310-2018'!C56","v":{"v":11.684601146104272,"d":"11.685"}},{"$nulls":5},{"v":10,"d":"10.000"},{"v":1.3929133259987225,"d":"1.393"},{"v":8.607086674001277,"d":"8.607"},{"$f":"'VIII. Pers. sov. loans, 1312-'!C55","v":{"v":7.5,"d":"7.500"}}]
[1363,null,{"v":10.43908678847652,"d":"10.439"},{"v":-3.1522354897438816,"d":"-3.152"},{"v":13.591322278220401,"d":"13.591"},{"v":6.766738175002509,"d":"6.767"},{"v":-6.278215589035369,"d":"-6.278"},{"v":13.044953764037876,"d":"13.045"},null,null,{"$f":"SUM('IV. Country level, 1310-2018'!AO57:AV57)","v":{"v":10.258278612380725,"d":"10.258"}},{"$f":"SUM('IV. Country level, 1310-2018'!AY57:BF57)","v":{"v":3.8897310143946267,"d":"3.8897"}},{"v":6.3685475979860975,"d":"6.369"},{"v":6.295531914893618,"d":"6.296"},{"$f":"'IV. Country level, 1310-2018'!U57","v":{"v":4.439402260042826,"d":"4.439"}},{"$f":"'IV. Country level, 1310-2018'!C57","v":{"v":1.8561296548507924,"d":"1.856"}},{"$nulls":5},{"v":10,"d":"10.000"},{"v":1.3823755537209765,"d":"1.382"},{"v":8.617624446279024,"d":"8.618"},{"$f":"'VIII. Pers. sov. loans, 1312-'!C56","v":{"v":10,"d":"10.000"}}]
[1364,null,{"v":10.402027135244674,"d":"10.402"},{"v":-1.9203482009769353,"d":"-1.920"},{"v":12.322375336221608,"d":"12.322"},{"v":6.6519298126331705,"d":"6.652"},{"v":-3.5363601340456716,"d":"-3.536"},{"v":10.188289946678841,"d":"10.188"},null,null,{"$f":"SUM('IV. Country level, 1310-2018'!AO58:AV58)","v":{"v":10.610463741847447,"d":"10.610"}},{"$f":"SUM('IV. Country level, 1310-2018'!AY58:BF58)","v":{"v":1.9679703208953072,"d":"1.9680"}},{"v":8.642493420952139,"d":"8.642"},{"v":7.009887640449438,"d":"7.010"},{"$f":"'IV. Country level, 1310-2018'!U58","v":{"v":2.877287950015055,"d":"2.877"}},{"$f":"'IV. Country level, 1310-2018'!C58","v":{"v":4.132599690434383,"d":"4.133"}},{"$nulls":5},{"v":7.716666666666668,"d":"7.717"},{"v":1.3720070256604096,"d":"1.372"},{"v":6.344659641006258,"d":"6.345"},{"$f":"'VIII. Pers. sov. loans, 1312-'!C57","v":{"v":10,"d":"10.000"}}]
[1365,null,{"v":10.390181406575863,"d":"10.390"},{"v":-0.10273865789271117,"d":"-0.103"},{"v":10.492920064468574,"d":"10.493"},{"v":6.619497380200738,"d":"6.619"},{"v":0.058540411738137364,"d":"0.059"},{"v":6.5609569684626,"d":"6.561"},null,null,{"$f":"SUM('IV. Country level, 1310-2018'!AO59:AV59)","v":{"v":10.352026569501682,"d":"10.352"}},{"$f":"SUM('IV. Country level, 1310-2018'!AY59:BF59)","v":{"v":-4.16095395534375,"d":"-4.1610"}},{"v":14.512980524845432,"d":"14.513"},{"v":6.941978021978024,"d":"6.942"},{"$f":"'IV. Country level, 1310-2018'!U59","v":{"v":-5.367228941190355,"d":"-5.367"}},{"$f":"'IV. Country level, 1310-2018'!C59","v":{"v":12.309206963168378,"d":"12.309"}},{"$nulls":5},8.065,{"v":1.3618035146627345,"d":"1.362"},{"v":6.703196485337265,"d":"6.703"},{"$f":"'VIII. Pers. sov. loans, 1312-'!C58","v":{"v":10,"d":"10.000"}}]
[1366,null,{"v":10.459266402999246,"d":"10.459"},{"v":0.04604836953501953,"d":"0.046"},{"v":10.413218033464224,"d":"10.413"},{"v":6.663514305571256,"d":"6.664"},{"v":0.23277026427866382,"d":"0.233"},{"v":6.4307440412925905,"d":"6.431"},null,null,{"$f":"SUM('IV. Country level, 1310-2018'!AO60:AV60)","v":{"v":10.425738963563209,"d":"10.426"}},{"$f":"SUM('IV. Country level, 1310-2018'!AY60:BF60)","v":{"v":-18.506453944649177,"d":"-18.5065"}},{"v":28.932192908212386,"d":"28.932"},{"v":6.150555555555556,"d":"6.151"},{"$f":"'IV. Country level, 1310-2018'!U60","v":{"v":-34.33027439620812,"d":"-34.330"}},{"$f":"'IV. Country level, 1310-2018'!C60","v":{"v":40.480829951763674,"d":"40.481"}},{"$nulls":5},{"v":5,"d":"5.000"},{"v":1.351760936932158,"d":"1.352"},{"v":3.648239063067842,"d":"3.648"},{"$f":"'VIII. Pers. sov. loans, 1312-'!C59","v":{"v":10,"d":"10.000"}}]
[1367,null,{"v":10.53949211658985,"d":"10.539"},{"v":1.3081561148276593,"d":"1.308"},{"v":9.231336001762191,"d":"9.231"},{"v":6.752724032015024,"d":"6.753"},{"v":1.9451202177546152,"d":"1.945"},{"v":4.807603814260409,"d":"4.808"},null,null,{"$f":"SUM('IV. Country level, 1310-2018'!AO61:AV61)","v":{"v":10.155137139126964,"d":"10.155"}},{"$f":"SUM('IV. Country level, 1310-2018'!AY61:BF61)","v":{"v":11.798140700559426,"d":"11.7981"}},{"v":-1.6430035614324616,"d":"-1.643"},{"v":6.370000000000001,"d":"6.370"},{"$f":"'IV. Country level, 1310-2018'!U61","v":{"v":23.9826484964789,"d":"23.983"}},{"$f":"'IV. Country level, 1310-2018'!C61","v":{"v":-17.6126484964789,"d":"-17.613"}},{"$nulls":5},{"v":6.545117428924599,"d":"6.545"},{"v":1.3418753459138046,"d":"1.342"},{"v":5.203242083010794,"d":"5.203"},{"$f":"'VIII. Pers. sov. loans, 1312-'!C60","v":{"v":10,"d":"10.000"}}]
[1368,null,{"v":10.629823283593106,"d":"10.630"},{"v":-0.30237897420228016,"d":"-0.302"},{"v":10.932202257795385,"d":"10.932"},{"v":6.792009746300738,"d":"6.792"},{"v":-0.06269437262799522,"d":"-0.063"},{"v":6.8547041189287325,"d":"6.855"},null,null,{"$f":"SUM('IV. Country level, 1310-2018'!AO62:AV62)","v":{"v":10.610526807108716,"d":"10.611"}},{"$f":"SUM('IV. Country level, 1310-2018'!AY62:BF62)","v":{"v":7.652666794929955,"d":"7.6527"}},{"v":2.9578600121787613,"d":"2.958"},{"v":6.8929729729729745,"d":"6.893"},{"$f":"'IV. Country level, 1310-2018'!U62","v":{"v":13.81699310357737,"d":"13.817"}},{"$f":"'IV. Country level, 1310-2018'!C62","v":{"v":-6.924020130604396,"d":"-6.924"}},{"$nulls":5},{"v":10,"d":"10.000"},{"v":1.5420856620273915,"d":"1.542"},{"v":8.457914337972609,"d":"8.458"},{"$f":"'VIII. Pers. sov. loans, 1312-'!C61","v":{"v":9.571428571428571,"d":"9.571"}}]
[1369,null,{"v":10.898750488432196,"d":"10.899"},{"v":-2.288499123269387,"d":"-2.288"},{"v":13.187249611701583,"d":"13.187"},{"v":6.814663679668958,"d":"6.815"},{"v":-4.190439621108464,"d":"-4.190"},{"v":11.00510330077742,"d":"11.005"},null,null,{"$f":"SUM('IV. Country level, 1310-2018'!AO63:AV63)","v":{"v":10.802692987465969,"d":"10.803"}},{"$f":"SUM('IV. Country level, 1310-2018'!AY63:BF63)","v":{"v":-2.3187623440412515,"d":"-2.3188"}},{"v":13.12145533150722,"d":"13.121"},{"v":6.983674033149171,"d":"6.984"},{"$f":"'IV. Country level, 1310-2018'!U63","v":{"v":-3.789436622765031,"d":"-3.789"}},{"$f":"'IV. Country level, 1310-2018'!C63","v":{"v":10.773110655914202,"d":"10.773"}},{"$nulls":5},{"v":5.555000000000001,"d":"5.555"},{"v":1.5296859651792643,"d":"1.530"},{"v":4.025314034820736,"d":"4.025"},{"$f":"'VIII. Pers. sov. loans, 1312-'!C62","v":{"v":13.325396825396824,"d":"13.325"}}]
[1370,null,{"v":11.1609811735147,"d":"11.161"},{"v":0.026573796588984067,"d":"0.027"},{"v":11.134407376925717,"d":"11.134"},{"v":6.890763316310762,"d":"6.891"},{"v":-0.3199960858877627,"d":"-0.320"},{"v":7.210759402198526,"d":"7.211"},null,null,{"$f":"SUM('IV. Country level, 1310-2018'!AO64:AV64)","v":{"v":10.819858607514972,"d":"10.820"}},{"$f":"SUM('IV. Country level, 1310-2018'!AY64:BF64)","v":{"v":12.724485231443106,"d":"12.7245"}},{"v":-1.9046266239281344,"d":"-1.905"},{"v":6.920000000000002,"d":"6.920"},{"$f":"'IV. Country level, 1310-2018'!U64","v":{"v":16.425851934374485,"d":"16.426"}},{"$f":"'IV. Country level, 1310-2018'!C64","v":{"v":-9.505851934374483,"d":"-9.506"}},{"$nulls":5},{"v":8.5,"d":"8.500"},{"v":1.5174902575420681,"d":"1.517"},{"v":6.982509742457932,"d":"6.983"},{"$f":"'VIII. Pers. sov. loans, 1312-'!C63","v":{"v":13.325396825396824,"d":"13.325"}}]
[1371,null,{"v":11.405049981430185,"d":"11.405"},{"v":3.3723207022829627,"d":"3.372"},{"v":8.032729279147224,"d":"8.033"},{"v":7.050967397943415,"d":"7.051"},{"v":6.842067173079052,"d":"6.842"},{"v":0.2089002248643632,"d":"0.209"},null,null,{"$f":"SUM('IV. Country level, 1310-2018'!AO65:AV65)","v":{"v":11.242781910870224,"d":"11.243"}},{"$f":"SUM('IV. Country level, 1310-2018'!AY65:BF65)","v":{"v":-9.305775302314268,"d":"-9.3058"}},{"v":20.548557213184495,"d":"20.549"},{"v":7.2848876404494405,"d":"7.285"},{"$f":"'IV. Country level, 1310-2018'!U65","v":{"v":-11.17741418266322,"d":"-11.177"}},{"$f":"'IV. Country level, 1310-2018'!C65","v":{"v":18.46230182311266,"d":"18.462"}},{"$nulls":5},{"v":7.000000000000001,"d":"7.000"},{"v":1.505493456224267,"d":"1.505"},{"v":5.494506543775734,"d":"5.495"},{"$f":"'VIII. Pers. sov. loans, 1312-'!C64","v":{"v":13.325396825396824,"d":"13.325"}}]
[1372,null,{"v":11.492898573274713,"d":"11.493"},{"v":5.13018942494704,"d":"5.130"},{"v":6.362709148327672,"d":"6.363"},{"v":7.036681683657702,"d":"7.037"},{"v":9.669043826010547,"d":"9.669"},{"v":-2.6323621423528465,"d":"-2.632"},null,null,{"$f":"SUM('IV. Country level, 1310-2018'!AO66:AV66)","v":{"v":12.234517003375311,"d":"12.235"}},{"$f":"SUM('IV. Country level, 1310-2018'!AY66:BF66)","v":{"v":-18.0637949988135,"d":"-18.0638"}},{"v":30.29831200218881,"d":"30.298"},{"v":7.100555555555559,"d":"7.101"},{"$f":"'IV. Country level, 1310-2018'!U66","v":{"v":-34.261445680553635,"d":"-34.261"}},{"$f":"'IV. Country level, 1310-2018'!C66","v":{"v":41.362001236109194,"d":"41.362"}},{"$nulls":5},{"v":5.500000000000001,"d":"5.500"},{"v":1.493690647513212,"d":"1.494"},{"v":4.006309352486789,"d":"4.006"},{"$f":"'VIII. Pers. sov. loans, 1312-'!C65","v":{"v":13.325396825396824,"d":"13.325"}}]
[1373,null,{"v":11.607630889255853,"d":"11.608"},{"v":1.9865758062851693,"d":"1.987"},{"v":9.621055082970683,"d":"9.621"},{"v":7.186401352023778,"d":"7.186"},{"v":3.7424862254327587,"d":"3.742"},{"v":3.4439151265910186,"d":"3.444"},null,null,{"$f":"SUM('IV. Country level, 1310-2018'!AO67:AV67)","v":{"v":12.261353759140745,"d":"12.261"}},{"$f":"SUM('IV. Country level, 1310-2018'!AY67:BF67)","v":{"v":-2.300943505640582,"d":"-2.3009"}},{"v":14.562297264781327,"d":"14.562"},{"v":6.683253012048192,"d":"6.683"},{"$f":"'IV. Country level, 1310-2018'!U67","v":{"v":-7.237169649663214,"d":"-7.237"}},{"$f":"'IV. Country level, 1310-2018'!C67","v":{"v":13.920422661711406,"d":"13.920"}},{"$nulls":5},{"v":4,"d":"4.000"},{"v":1.4820770798551925,"d":"1.482"},{"v":2.5179229201448075,"d":"2.518"},{"$f":"'VIII. Pers. sov. loans, 1312-'!C66","v":{"v":12.494047619047619,"d":"12.494"}}]
[1374,null,{"v":12.039806485175728,"d":"12.040"},{"v":-1.2266738408539566,"d":"-1.227"},{"v":13.266480326029685,"d":"13.266"},{"v":7.482894273516699,"d":"7.483"},{"v":-0.3550265005047673,"d":"-0.355"},{"v":7.837920774021467,"d":"7.838"},null,null,{"$f":"SUM('IV. Country level, 1310-2018'!AO68:AV68)","v":{"v":11.863618794535377,"d":"11.864"}},{"$f":"SUM('IV. Country level, 1310-2018'!AY68:BF68)","v":{"v":35.21836904041728,"d":"35.2184"}},{"v":-23.354750245881903,"d":"-23.355"},{"v":7.491428571428571,"d":"7.491"},{"$f":"'IV. Country level, 1310-2018'!U68","v":{"v":74.1170913092466,"d":"74.117"}},{"$f":"'IV. Country level, 1310-2018'!C68","v":{"v":-66.62566273781803,"d":"-66.626"}},{"$nulls":5},{"v":6.4399999999999995,"d":"6.440"},{"v":1.470648157183339,"d":"1.471"},{"v":4.9693518428166605,"d":"4.969"},{"$f":"'VIII. Pers. sov. loans, 1312-'!C67","v":{"v":13.995238095238097,"d":"13.995"}}]
[1375,null,{"v":12.465000064719762,"d":"12.465"},{"v":0.027744731776035345,"d":"0.028"},{"v":12.437255332943726,"d":"12.437"},{"v":7.86850878047952,"d":"7.869"},{"v":1.4682649547737192,"d":"1.468"},{"v":6.400243825705801,"d":"6.400"},null,null,{"$f":"SUM('IV. Country level, 1310-2018'!AO69:AV69)","v":{"v":11.22546695002039,"d":"11.225"}},{"$f":"SUM('IV. Country level, 1310-2018'!AY69:BF69)","v":{"v":19.957747853578496,"d":"19.9577"}},{"v":-8.732280903558106,"d":"-8.732"},{"v":6.792972972972976,"d":"6.793"},{"$f":"'IV. Country level, 1310-2018'!U69","v":{"v":33.60582967409785,"d":"33.606"}},{"$f":"'IV. Country level, 1310-2018'!C69","v":{"v":-26.812856701124872,"d":"-26.813"}},{"$nulls":5},{"v":7.303324999999999,"d":"7.303"},{"v":1.459399432573147,"d":"1.459"},{"v":5.843925567426853,"d":"5.844"},{"$f":"'VIII. Pers. sov. loans, 1312-'!C68","v":{"v":15.208333333333332,"d":"15.208"}}]
[1376,null,{"v":12.881423656196201,"d":"12.881"},{"v":1.544968874121894,"d":"1.545"},{"v":11.336454782074307,"d":"11.336"},{"v":8.475276262247002,"d":"8.475"},{"v":4.63557778494045,"d":"4.636"},{"v":3.8396984773065506,"d":"3.840"},null,null,{"$f":"SUM('IV. Country level, 1310-2018'!AO70:AV70)","v":{"v":11.605819199333949,"d":"11.606"}},{"$f":"SUM('IV. Country level, 1310-2018'!AY70:BF70)","v":{"v":-24.324057674674346,"d":"-24.3241"}},{"v":35.92987687400829,"d":"35.930"},{"v":8.031711711711708,"d":"8.032"},{"$f":"'IV. Country level, 1310-2018'!U70","v":{"v":-45.27533982680956,"d":"-45.275"}},{"$f":"'IV. Country level, 1310-2018'!C70","v":{"v":53.307051538521264,"d":"53.307"}},{"$nulls":5},{"v":8.16665,"d":"8.167"},{"v":-1.8791785103452336,"d":"-1.879"},{"v":10.045828510345235,"d":"10.046"},{"$f":"'VIII. Pers. sov. loans, 1312-'!C69","v":{"v":15,"d":"15.000"}}]
[1377,null,{"v":13.28986189134676,"d":"13.290"},{"v":1.5703324043208784,"d":"1.570"},{"v":11.71952948702588,"d":"11.720"},{"v":9.29004964147821,"d":"9.290"},{"v":4.524625168049441,"d":"4.525"},{"v":4.765424473428771,"d":"4.765"},null,null,{"$f":"SUM('IV. Country level, 1310-2018'!AO71:AV71)","v":{"v":13.845087778954099,"d":"13.845"}},{"$f":"SUM('IV. Country level, 1310-2018'!AY71:BF71)","v":{"v":-9.768262298530777,"d":"-9.7683"}},{"v":23.613350077484874,"d":"23.613"},{"v":8.99545045045045,"d":"8.995"},{"$f":"'IV. Country level, 1310-2018'!U71","v":{"v":-12.256737147188195,"d":"-12.257"}},{"$f":"'IV. Country level, 1310-2018'!C71","v":{"v":21.252187597638645,"d":"21.252"}},{"$nulls":5},{"v":9.798325,"d":"9.798"},{"v":-1.9479505243691395,"d":"-1.948"},{"v":11.746275524369139,"d":"11.746"},{"$f":"'VIII. Pers. sov. loans, 1312-'!C70","v":{"v":15,"d":"15.000"}}]
[1378,null,{"v":13.808010029941574,"d":"13.808"},{"v":-0.6762804488664698,"d":"-0.676"},{"v":14.484290478808045,"d":"14.484"},{"v":10.017940797940797,"d":"10.018"},{"v":-0.5977300051890079,"d":"-0.598"},{"v":10.615670803129804,"d":"10.616"},null,null,{"$f":"SUM('IV. Country level, 1310-2018'!AO72:AV72)","v":{"v":14.219136967678462,"d":"14.219"}},{"$f":"SUM('IV. Country level, 1310-2018'!AY72:BF72)","v":{"v":-0.5248452939043236,"d":"-0.5248"}},{"v":14.743982261582786,"d":"14.744"},{"v":9.98418918918919,"d":"9.984"},{"$f":"'IV. Country level, 1310-2018'!U72","v":{"v":1.5856260042861856,"d":"1.586"}},{"$f":"'IV. Country level, 1310-2018'!C72","v":{"v":8.398563184903004,"d":"8.399"}},{"$nulls":5},{"v":11.43,"d":"11.430"},{"v":-2.0200500362782745,"d":"-2.020"},{"v":13.450050036278274,"d":"13.450"},{"$f":"'VIII. Pers. sov. loans, 1312-'!C71","v":{"v":15,"d":"15.000"}}]
[1379,null,{"v":14.11125322654553,"d":"14.111"},{"v":-3.977239583385018,"d":"-3.977"},{"v":18.08849280993055,"d":"18.088"},{"v":10.3077261715497,"d":"10.308"},{"v":-5.837813889198367,"d":"-5.838"},{"v":16.145540060748065,"d":"16.146"},null,null,{"$f":"SUM('IV. Country level, 1310-2018'!AO73:AV73)","v":{"v":15.149482143710376,"d":"15.149"}},{"$f":"SUM('IV. Country level, 1310-2018'!AY73:BF73)","v":{"v":-7.443226002392489,"d":"-7.4432"}},{"$f":"K77-L77","v":{"v":22.592708146102865,"d":"22.593"}},{"v":11.347927927927927,"d":"11.348"},{"$f":"'IV. Country level, 1310-2018'!U73","v":{"v":-12.090255869386517,"d":"-12.090"}},{"$f":"'IV. Country level, 1310-2018'!C73","v":{"v":23.438183797314444,"d":"23.438"}},{"$nulls":5},11.144,{"v":-2.0957533961275217,"d":"-2.096"},{"v":13.239753396127522,"d":"13.240"},{"$f":"'VIII. Pers. sov. loans, 1312-'!C72","v":{"v":15,"d":"15.000"}}]
[1380,null,{"v":14.354435993962733,"d":"14.354"},{"v":0.47634337976809066,"d":"0.476"},{"v":13.87809261419464,"d":"13.878"},{"v":10.475030660913012,"d":"10.475"},{"v":2.6994582640286757,"d":"2.699"},{"v":7.775572396884337,"d":"7.776"},null,null,{"$f":"SUM('IV. Country level, 1310-2018'!AO74:AV74)","v":{"v":15.120421405194659,"d":"15.120"}},{"$f":"SUM('IV. Country level, 1310-2018'!AY74:BF74)","v":{"v":-2.1233987942476924,"d":"-2.1234"}},{"v":17.24382019944235,"d":"17.244"},{"v":12.386666666666667,"d":"12.387"},{"$f":"'IV. Country level, 1310-2018'!U74","v":{"v":-8.013837967900276,"d":"-8.014"}},{"$f":"'IV. Country level, 1310-2018'!C74","v":{"v":20.400504634566943,"d":"20.401"}},{"$nulls":5},{"v":10.857999999999999,"d":"10.858"},{"v":-2.1753674569202617,"d":"-2.175"},{"v":13.03336745692026,"d":"13.033"},{"$f":"'VIII. Pers. sov. loans, 1312-'!C73","v":{"v":20,"d":"20.000"}}]
[1381,null,{"v":14.249022038061543,"d":"14.249"},{"v":2.2652404255955063,"d":"2.265"},{"v":11.983781612466037,"d":"11.984"},{"v":10.519854266030736,"d":"10.520"},{"v":5.331431644378095,"d":"5.331"},{"v":5.188422621652641,"d":"5.188"},null,null,{"$f":"SUM('IV. Country level, 1310-2018'!AO75:AV75)","v":{"v":15.490655764699083,"d":"15.491"}},{"$f":"SUM('IV. Country level, 1310-2018'!AY75:BF75)","v":{"v":19.49207906810584,"d":"19.4921"}},{"v":-4.001423303406758,"d":"-4.001"},{"v":12.586666666666666,"d":"12.587"},{"$f":"'IV. Country level, 1310-2018'!U75","v":{"v":38.26060509657746,"d":"38.261"}},{"$f":"'IV. Country level, 1310-2018'!C75","v":{"v":-25.67393842991079,"d":"-25.674"}},{"$nulls":5},{"v":4.464285714285714,"d":"4.464"},{"v":-2.2592339401438024,"d":"-2.259"},{"v":6.723519654429516,"d":"6.724"},{"$f":"'VIII. Pers. sov. loans, 1312-'!C74","v":{"v":16,"d":"16.000"}}]
[1382,null,{"$f":"AVERAGE(K77:K83)","v":{"v":14.120059431657142,"d":"14.120"}},{"$f":"AVERAGE(L77:L83)","v":{"v":2.3428178780862523,"d":"2.343"}},{"$f":"AVERAGE(M77:M83)","v":{"v":11.77724155357089,"d":"11.777"}},{"$f":"AVERAGE(N77:N83)","v":{"v":10.474339844045726,"d":"10.474"}},{"$f":"AVERAGE(O77:O83)","v":{"v":5.408649090765762,"d":"5.409"}},{"$f":"AVERAGE(P77:P83)","v":{"v":5.065690753279966,"d":"5.066"}},null,null,{"$f":"SUM('IV. Country level, 1310-2018'!AO76:AV76)","v":{"v":13.348169326248081,"d":"13.348"}},{"$f":"SUM('IV. Country level, 1310-2018'!AY76:BF76)","v":{"v":-3.1489660880513424,"d":"-3.1490"}},{"v":16.497135414299425,"d":"16.497"},{"v":8.821470588235293,"d":"8.821"},{"$f":"'IV. Country level, 1310-2018'!U76","v":{"v":-3.0747575139676657,"d":"-3.075"}},{"$f":"'IV. Country level, 1310-2018'!C76","v":{"v":11.896228102202958,"d":"11.896"}},{"$nulls":5},{"v":4.178285714285714,"d":"4.178"},{"v":-2.347734571314549,"d":"-2.348"},{"v":6.5260202856002625,"d":"6.526"},{"$f":"'VIII. Pers. sov. loans, 1312-'!C75","v":{"v":16,"d":"16.000"}}]
[1383,null,{"v":13.777359454354306,"d":"13.777"},{"v":3.9172709797270273,"d":"3.917"},{"v":9.860088474627277,"d":"9.860"},{"v":10.190588235294118,"d":"10.191"},{"v":7.572740314851036,"d":"7.573"},{"v":2.6178479204430825,"d":"2.618"},null,null,{"$f":"SUM('IV. Country level, 1310-2018'!AO77:AV77)","v":{"v":13.308098571254359,"d":"13.308"}},{"$f":"SUM('IV. Country level, 1310-2018'!AY77:BF77)","v":{"v":6.851023067397419,"d":"6.8510"}},{"v":6.45707550385694,"d":"6.457"},{"v":9.202843137254902,"d":"9.203"},{"$f":"'IV. Country level, 1310-2018'!U77","v":{"v":14.485565245779744,"d":"14.486"}},{"$f":"'IV. Country level, 1310-2018'!C77","v":{"v":-5.282722108524842,"d":"-5.283"}},{"$nulls":5},{"v":10,"d":"10.000"},{"v":-2.441297148888881,"d":"-2.441"},{"v":12.44129714888888,"d":"12.441"},{"$f":"'VIII. Pers. sov. loans, 1312-'!C76","v":{"v":16,"d":"16.000"}}]
[1384,null,{"v":13.700919714403105,"d":"13.701"},{"v":2.669849022013678,"d":"2.670"},{"v":11.031070692389429,"d":"11.031"},{"v":9.694141206870345,"d":"9.694"},{"v":4.46652330946993,"d":"4.467"},{"v":5.227617897400416,"d":"5.228"},null,null,{"$f":"SUM('IV. Country level, 1310-2018'!AO78:AV78)","v":{"v":13.107190087645778,"d":"13.107"}},{"$f":"SUM('IV. Country level, 1310-2018'!AY78:BF78)","v":{"v":2.754017022261131,"d":"2.7540"}},{"v":10.353173065384647,"d":"10.353"},{"v":9.309215686274511,"d":"9.309"},{"$f":"'IV. Country level, 1310-2018'!U78","v":{"v":6.167076515257738,"d":"6.167"}},{"$f":"'IV. Country level, 1310-2018'!C78","v":{"v":3.1421391710167734,"d":"3.142"}},{"$nulls":5},{"v":8.5,"d":"8.500"},{"v":-2.5404027507338265,"d":"-2.540"},{"v":11.040402750733826,"d":"11.040"},{"$f":"'VIII. Pers. sov. loans, 1312-'!C77","v":{"v":16,"d":"16.000"}}]
[1385,null,{"v":13.549915797130442,"d":"13.550"},{"v":1.6170851103977697,"d":"1.617"},{"v":11.932830686732673,"d":"11.933"},{"v":9.111961435737085,"d":"9.112"},{"v":3.1719603598244173,"d":"3.172"},{"v":5.940001075912668,"d":"5.940"},null,null,{"$f":"SUM('IV. Country level, 1310-2018'!AO79:AV79)","v":{"v":13.316398722847659,"d":"13.316"}},{"$f":"SUM('IV. Country level, 1310-2018'!AY79:BF79)","v":{"v":0.01819687353090138,"d":"0.0182"}},{"v":13.298201849316758,"d":"13.298"},{"v":9.665588235294118,"d":"9.666"},{"$f":"'IV. Country level, 1310-2018'!U79","v":{"v":2.1261481289998416,"d":"2.126"}},{"$f":"'IV. Country level, 1310-2018'!C79","v":{"v":7.539440106294276,"d":"7.539"}},{"$nulls":5},{"v":7.000000000000001,"d":"7.000"},{"v":-2.645594335046201,"d":"-2.646"},{"v":9.645594335046201,"d":"9.646"},{"$f":"'VIII. Pers. sov. loans, 1312-'!C78","v":{"v":16,"d":"16.000"}}]
[1386,null,{"v":13.622159283103377,"d":"13.622"},{"v":4.010069448523905,"d":"4.010"},{"v":9.612089834579475,"d":"9.612"},{"v":9.049791218813107,"d":"9.050"},{"v":9.577836673751014,"d":"9.578"},{"v":-0.5280454549379081,"d":"-0.528"},null,null,{"$f":"SUM('IV. Country level, 1310-2018'!AO80:AV80)","v":{"v":12.750582302590516,"d":"12.751"}},{"$f":"SUM('IV. Country level, 1310-2018'!AY80:BF80)","v":{"v":3.57794570909293,"d":"3.5779"}},{"v":9.172636593497586,"d":"9.173"},{"v":9.361666666666668,"d":"9.362"},{"$f":"'IV. Country level, 1310-2018'!U80","v":{"v":3.0583826992104077,"d":"3.058"}},{"$f":"'IV. Country level, 1310-2018'!C80","v":{"v":6.30328396745626,"d":"6.303"}},{"$nulls":5},{"v":5.500000000000001,"d":"5.500"},{"v":3.248554913735819,"d":"3.249"},{"v":2.251445086264182,"d":"2.251"},{"$f":"'VIII. Pers. sov. loans, 1312-'!C79","v":{"v":16,"d":"16.000"}}]
[1387,null,{"v":13.763090099139275,"d":"13.763"},{"v":2.48936224755614,"d":"2.489"},{"v":11.273727851583134,"d":"11.274"},{"v":8.962956484919548,"d":"8.963"},{"v":4.737969810385166,"d":"4.738"},{"v":4.224986674534384,"d":"4.225"},null,null,{"$f":"SUM('IV. Country level, 1310-2018'!AO81:AV81)","v":{"v":14.585343225536256,"d":"14.585"}},{"$f":"SUM('IV. Country level, 1310-2018'!AY81:BF81)","v":{"v":-10.855352498241135,"d":"-10.8554"}},{"v":25.44069572377739,"d":"25.441"},{"v":8.91153746770026,"d":"8.912"},{"$f":"'IV. Country level, 1310-2018'!U81","v":{"v":-29.757357005568014,"d":"-29.757"}},{"$f":"'IV. Country level, 1310-2018'!C81","v":{"v":38.668894473268274,"d":"38.669"}},{"$nulls":5},{"v":4,"d":"4.000"},{"v":7.16323617721919,"d":"7.163"},{"v":-3.16323617721919,"d":"-3.163"},{"$f":"'VIII. Pers. sov. loans, 1312-'!C80","v":{"v":12,"d":"12.000"}}]
[1388,null,{"v":13.723152473656567,"d":"13.723"},{"v":2.2397629576737934,"d":"2.240"},{"v":11.483389515982774,"d":"11.483"},{"v":8.829676823545078,"d":"8.830"},{"v":3.554685924959082,"d":"3.555"},{"v":5.274990898585997,"d":"5.275"},null,null,{"$f":"SUM('IV. Country level, 1310-2018'!AO82:AV82)","v":{"v":14.433628343790442,"d":"14.434"}},{"$f":"SUM('IV. Country level, 1310-2018'!AY82:BF82)","v":{"v":12.122731686794483,"d":"12.1227"}},{"v":2.3108966569959595,"d":"2.311"},{"v":8.511408268733849,"d":"8.511"},{"$f":"'IV. Country level, 1310-2018'!U82","v":{"v":29.19866444905887,"d":"29.199"}},{"$f":"'IV. Country level, 1310-2018'!C82","v":{"v":-20.687256180325022,"d":"-20.687"}},{"$nulls":5},{"v":4.8666,"d":"4.867"},{"v":3.434993972008287,"d":"3.435"},{"v":1.4316060279917129,"d":"1.432"},{"$f":"'VIII. Pers. sov. loans, 1312-'!C81","v":{"v":8,"d":"8.000"}}]
[1389,null,{"v":13.664766625336798,"d":"13.665"},{"v":1.4322185819583027,"d":"1.432"},{"v":12.232548043378497,"d":"12.233"},{"v":8.577571513335888,"d":"8.578"},{"v":1.4152189296642639,"d":"1.415"},{"v":7.162352583671625,"d":"7.162"},null,null,{"$f":"SUM('IV. Country level, 1310-2018'!AO83:AV83)","v":{"v":13.853873728058627,"d":"13.854"}},{"$f":"SUM('IV. Country level, 1310-2018'!AY83:BF83)","v":{"v":13.601924278831603,"d":"13.6019"}},{"v":0.25194944922702334,"d":"0.252"},{"v":8.38627906976744,"d":"8.386"},{"$f":"'IV. Country level, 1310-2018'!U83","v":{"v":41.766376683518516,"d":"41.766"}},{"$f":"'IV. Country level, 1310-2018'!C83","v":{"v":-33.380097613751076,"d":"-33.380"}},{"$nulls":5},{"v":5.7332,"d":"5.733"},{"v":3.3528425433746594,"d":"3.353"},{"v":2.3803574566253407,"d":"2.380"},{"$f":"'VIII. Pers. sov. loans, 1312-'!C82","v":{"v":8,"d":"8.000"}}]
[1390,null,{"v":13.71165222959759,"d":"13.712"},{"v":0.19796190176936435,"d":"0.198"},{"v":13.513690327828225,"d":"13.514"},{"v":8.394134660333817,"d":"8.394"},{"v":-0.5192169317776472,"d":"-0.519"},{"v":8.913351592111464,"d":"8.913"},null,null,{"$f":"SUM('IV. Country level, 1310-2018'!AO84:AV84)","v":{"v":14.294614283505636,"d":"14.295"}},{"$f":"SUM('IV. Country level, 1310-2018'!AY84:BF84)","v":{"v":-3.7939273393769364,"d":"-3.7939"}},{"v":18.088541622882573,"d":"18.089"},{"v":8.594999999999999,"d":"8.595"},{"$f":"'IV. Country level, 1310-2018'!U84","v":{"v":-19.393502797781203,"d":"-19.394"}},{"$f":"'IV. Country level, 1310-2018'!C84","v":{"v":27.9885027977812,"d":"27.989"}},{"$nulls":5},{"v":6.5998,"d":"6.600"},{"v":3.274944275084389,"d":"3.275"},{"v":3.324855724915611,"d":"3.325"},{"$f":"'VIII. Pers. sov. loans, 1312-'!C83","v":{"v":6.5,"d":"6.500"}}]
[1391,null,{"v":13.580818492442356,"d":"13.581"},{"v":1.0290477445965178,"d":"1.029"},{"v":12.551770747845836,"d":"12.552"},{"v":8.10386489677764,"d":"8.104"},{"v":-0.23505799035442923,"d":"-0.235"},{"v":8.33892288713207,"d":"8.339"},null,null,{"$f":"SUM('IV. Country level, 1310-2018'!AO85:AV85)","v":{"v":12.827626709266829,"d":"12.828"}},{"$f":"SUM('IV. Country level, 1310-2018'!AY85:BF85)","v":{"v":1.006821993084706,"d":"1.0068"}},{"v":11.820804716182122,"d":"11.821"},{"v":8.376258056653214,"d":"8.376"},{"$f":"'IV. Country level, 1310-2018'!U85","v":{"v":-2.115910682724844,"d":"-2.116"}},{"$f":"'IV. Country level, 1310-2018'!C85","v":{"v":10.492168739378059,"d":"10.492"}},{"$nulls":5},{"v":7.466400000000001,"d":"7.466"},{"v":3.2009691078267615,"d":"3.201"},{"$f":"V89-W89","v":{"v":4.26543089217324,"d":"4.265"}},{"$f":"'VIII. Pers. sov. loans, 1312-'!C84","v":8.875}]
[1392,null,{"v":13.423128183068556,"d":"13.423"},{"v":0.12185224256866789,"d":"0.122"},{"v":13.301275940499886,"d":"13.301"},{"v":7.81696417980539,"d":"7.817"},{"v":-0.7017836460196989,"d":"-0.702"},{"v":8.51874782582509,"d":"8.519"},null,null,{"$f":"SUM('IV. Country level, 1310-2018'!AO86:AV86)","v":{"v":12.90769778460928,"d":"12.908"}},{"$f":"SUM('IV. Country level, 1310-2018'!AY86:BF86)","v":{"v":-5.634613756477534,"d":"-5.6346"}},{"v":18.542311541086814,"d":"18.542"},{"v":7.900851063829789,"d":"7.901"},{"$f":"'IV. Country level, 1310-2018'!U86","v":{"v":-12.850120838063889,"d":"-12.850"}},{"$f":"'IV. Country level, 1310-2018'!C86","v":{"v":20.750971901893678,"d":"20.751"}},{"$nulls":5},8.333,{"v":0.04096345593455346,"d":"0.041"},{"v":8.292036544065446,"d":"8.292"},{"$f":"'VIII. Pers. sov. loans, 1312-'!C85","v":{"v":9.6,"d":"9.600"}}]
[1393,null,{"v":13.305111533554996,"d":"13.305"},{"v":-1.645267236121061,"d":"-1.645"},{"v":14.950378769676059,"d":"14.950"},{"v":7.529861080845639,"d":"7.530"},{"v":-6.394928666896837,"d":"-6.395"},{"v":13.924789747742475,"d":"13.925"},null,null,{"$f":"SUM('IV. Country level, 1310-2018'!AO87:AV87)","v":{"v":13.078781532416055,"d":"13.079"}},{"$f":"SUM('IV. Country level, 1310-2018'!AY87:BF87)","v":{"v":-5.061851052229636,"d":"-5.0619"}},{"v":18.14063258464569,"d":"18.141"},{"v":8.077608695652174,"d":"8.078"},{"$f":"'IV. Country level, 1310-2018'!U87","v":{"v":-10.482668330882966,"d":"-10.483"}},{"$f":"'IV. Country level, 1310-2018'!C87","v":{"v":18.56027702653514,"d":"18.560"}},{"$nulls":5},{"v":8.75,"d":"8.750"},{"v":0.03463886381366116,"d":"0.035"},{"v":8.715361136186338,"d":"8.715"},{"$f":"'VIII. Pers. sov. loans, 1312-'!C86","v":{"v":9.666666666666666,"d":"9.667"}}]
[1394,null,{"v":13.160981951168452,"d":"13.161"},{"v":0.34093328507326653,"d":"0.341"},{"v":12.820048666095186,"d":"12.820"},{"v":7.259369277566951,"d":"7.259"},{"v":0.16066232006652673,"d":"0.161"},{"v":7.098706957500424,"d":"7.099"},null,null,{"$f":"SUM('IV. Country level, 1310-2018'!AO88:AV88)","v":{"v":13.669507065449611,"d":"13.670"}},{"$f":"SUM('IV. Country level, 1310-2018'!AY88:BF88)","v":{"v":-5.037751598451061,"d":"-5.0378"}},{"v":18.707258663900674,"d":"18.707"},{"v":6.879649122807017,"d":"6.880"},{"$f":"'IV. Country level, 1310-2018'!U88","v":{"v":-27.768244415605487,"d":"-27.768"}},{"$f":"'IV. Country level, 1310-2018'!C88","v":{"v":34.647893538412504,"d":"34.648"}},{"$nulls":5},{"v":5.263157894736842,"d":"5.263"},{"v":0.0283289123407176,"d":"0.028"},{"v":5.234828982396124,"d":"5.235"},{"$f":"'VIII. Pers. sov. loans, 1312-'!C87","v":{"v":14.333333333333334,"d":"14.333"}}]
[1395,null,{"v":13.180498385210004,"d":"13.180"},{"v":-0.47044125155074273,"d":"-0.470"},{"v":13.650939636760748,"d":"13.651"},{"v":7.040519617267397,"d":"7.041"},{"v":-1.4208121248017724,"d":"-1.421"},{"v":8.461331742069168,"d":"8.461"},null,null,{"$f":"SUM('IV. Country level, 1310-2018'!AO89:AV89)","v":{"v":13.329796178173847,"d":"13.330"}},{"$f":"SUM('IV. Country level, 1310-2018'!AY89:BF89)","v":{"v":5.7723631725995315,"d":"5.7724"}},{"v":7.557433005574316,"d":"7.557"},{"v":6.503103249928099,"d":"6.503"},{"$f":"'IV. Country level, 1310-2018'!U89","v":{"v":25.93158485940198,"d":"25.932"}},{"$f":"'IV. Country level, 1310-2018'!C89","v":{"v":-19.42848160947388,"d":"-19.428"}},{"$nulls":5},{"v":6.6659999999999995,"d":"6.666"},{"v":0.022032217384043803,"d":"0.022"},{"v":6.643967782615956,"d":"6.644"},{"$f":"'VIII. Pers. sov. loans, 1312-'!C88","v":12.625}]
[1396,null,{"v":13.200209888200193,"d":"13.200"},{"v":0.47399448479062206,"d":"0.474"},{"v":12.72621540340957,"d":"12.726"},{"v":6.813549964157926,"d":"6.814"},{"v":1.2394267040101394,"d":"1.239"},{"v":5.574123260147786,"d":"5.574"},null,null,{"$f":"SUM('IV. Country level, 1310-2018'!AO90:AV90)","v":{"v":13.027757181463713,"d":"13.028"}},{"$f":"SUM('IV. Country level, 1310-2018'!AY90:BF90)","v":{"v":1.2320879280034993,"d":"1.2321"}},{"v":11.795669253460213,"d":"11.796"},{"v":6.37655737704918,"d":"6.377"},{"$f":"'IV. Country level, 1310-2018'!U90","v":{"v":1.9143615373785636,"d":"1.914"}},{"$f":"'IV. Country level, 1310-2018'!C90","v":{"v":4.462195839670617,"d":"4.462"}},{"$nulls":5},{"v":5,"d":"5.000"},{"v":0.01574740850293616,"d":"0.016"},{"v":4.9842525914970635,"d":"4.984"},{"$f":"'VIII. Pers. sov. loans, 1312-'!C89","v":12.625}]
[1397,null,{"v":13.132523340757944,"d":"13.133"},{"v":-0.04578302303697918,"d":"-0.046"},{"v":13.17830636379492,"d":"13.178"},{"v":6.541374572262037,"d":"6.541"},{"v":-0.9762308657823081,"d":"-0.976"},{"v":7.517605438044346,"d":"7.518"},null,null,{"$f":"SUM('IV. Country level, 1310-2018'!AO91:AV91)","v":{"v":13.285707206799831,"d":"13.286"}},{"$f":"SUM('IV. Country level, 1310-2018'!AY91:BF91)","v":{"v":10.109476308983359,"d":"10.1095"}},{"v":3.176230897816472,"d":"3.176"},{"v":6.7015573770491805,"d":"6.702"},{"$f":"'IV. Country level, 1310-2018'!U91","v":{"v":26.495634110962328,"d":"26.496"}},{"$f":"'IV. Country level, 1310-2018'!C91","v":{"v":-19.794076733913148,"d":"-19.794"}},{"$nulls":5},{"v":6.41665,"d":"6.417"},{"v":0.00947312782895827,"d":"0.009"},{"v":6.407176872171042,"d":"6.407"},{"$f":"'VIII. Pers. sov. loans, 1312-'!C90","v":{"v":13.277777777777779,"d":"13.278"}}]
[1398,null,{"v":13.106500972096727,"d":"13.107"},{"v":1.7394316063558561,"d":"1.739"},{"v":11.367069365740871,"d":"11.367"},{"v":6.416810185103665,"d":"6.417"},{"v":5.860307411966677,"d":"5.860"},{"v":0.5565027731369884,"d":"0.557"},null,null,{"$f":"SUM('IV. Country level, 1310-2018'!AO92:AV92)","v":{"v":12.964241747557697,"d":"12.964"}},{"$f":"SUM('IV. Country level, 1310-2018'!AY92:BF92)","v":{"v":-4.672799763283359,"d":"-4.6728"}},{"v":17.637041510841055,"d":"17.637"},{"v":6.844310434556338,"d":"6.844"},{"$f":"'IV. Country level, 1310-2018'!U92","v":{"v":-13.18623179680294,"d":"-13.186"}},{"$f":"'IV. Country level, 1310-2018'!C92","v":{"v":20.030542231359277,"d":"20.031"}},{"$nulls":5},{"v":6.666650000000001,"d":"6.667"},{"v":3.2080289717544962E-3,"d":"0.003"},{"v":6.663441971028246,"d":"6.663"},{"$f":"'VIII. Pers. sov. loans, 1312-'!C91","v":14.375}]
[1399,null,{"v":12.96230586631866,"d":"12.962"},{"v":0.6936137420873922,"d":"0.694"},{"v":12.268692124231267,"d":"12.269"},{"v":6.347511988401919,"d":"6.348"},{"v":1.8038922766731915,"d":"1.804"},{"v":4.543619711728728,"d":"4.544"},null,null,{"$f":"SUM('IV. Country level, 1310-2018'!AO93:AV93)","v":{"v":13.045678305540605,"d":"13.046"}},{"$f":"SUM('IV. Country level, 1310-2018'!AY93:BF93)","v":{"v":0.9764363979120206,"d":"0.9764"}},{"v":12.069241907628584,"d":"12.069"},{"v":6.312063492063492,"d":"6.312"},{"$f":"'IV. Country level, 1310-2018'!U93","v":{"v":5.771550963619496,"d":"5.772"}},{"$f":"'IV. Country level, 1310-2018'!C93","v":{"v":0.5405125284439967,"d":"0.541"}},{"$nulls":5},{"v":5.833325,"d":"5.833"},{"v":-0.003049224052084263,"d":"-0.003"},{"v":5.836374224052085,"d":"5.836"},{"$f":"'VIII. Pers. sov. loans, 1312-'!C92","v":{"v":13.78125,"d":"13.781"}}]
[1400,null,{"v":12.937155475908842,"d":"12.937"},{"v":-0.06963667661406017,"d":"-0.070"},{"v":13.006792152522902,"d":"13.007"},{"v":6.2906228392996555,"d":"6.291"},{"v":3.856303099489874E-3,"d":"0.004"},{"v":6.286766536200164,"d":"6.287"},null,null,{"$f":"SUM('IV. Country level, 1310-2018'!AO94:AV94)","v":{"v":12.604975700320303,"d":"12.605"}},{"$f":"SUM('IV. Country level, 1310-2018'!AY94:BF94)","v":{"v":-8.700293607022845,"d":"-8.7003"}},{"v":21.305269307343146,"d":"21.305"},{"v":6.172380952380951,"d":"6.172"},{"$f":"'IV. Country level, 1310-2018'!U94","v":{"v":-25.9922713194301,"d":"-25.992"}},{"$f":"'IV. Country level, 1310-2018'!C94","v":{"v":32.16465227181105,"d":"32.165"}},{"$nulls":5},{"v":5,"d":"5.000"},{"v":-7.144696563469536,"d":"-7.145"},{"v":12.144696563469536,"d":"12.145"},{"$f":"'VIII. Pers. sov. loans, 1312-'!C93","v":{"v":14.09375,"d":"14.094"}}]
[1401,null,{"v":12.993692938137404,"d":"12.994"},{"v":-1.6936679016991096,"d":"-1.694"},{"v":14.687360839836513,"d":"14.687"},{"v":6.283864511756783,"d":"6.284"},{"v":-4.046476099061422,"d":"-4.046"},{"v":10.330340610818206,"d":"10.330"},null,null,{"$f":"SUM('IV. Country level, 1310-2018'!AO95:AV95)","v":{"v":13.487350484821095,"d":"13.487"}},{"$f":"SUM('IV. Country level, 1310-2018'!AY95:BF95)","v":{"v":7.458750807298786,"d":"7.4588"}},{"v":6.028599677522308,"d":"6.029"},{"v":6.007698412698414,"d":"6.008"},{"$f":"'IV. Country level, 1310-2018'!U95","v":{"v":20.087523528637412,"d":"20.088"}},{"$f":"'IV. Country level, 1310-2018'!C95","v":{"v":-14.079825115938998,"d":"-14.080"}},{"$nulls":5},{"v":6.6659999999999995,"d":"6.666"},{"v":1.8081828638937443,"d":"1.808"},{"v":4.857817136106255,"d":"4.858"},{"$f":"'VIII. Pers. sov. loans, 1312-'!C94","v":{"v":10.964285714285714,"d":"10.964"}}]
[1402,null,{"v":13.136442654192802,"d":"13.136"},{"v":-0.48713876692584546,"d":"-0.487"},{"v":13.623581421118649,"d":"13.624"},{"v":6.385415140415141,"d":"6.385"},{"v":0.3957936119971269,"d":"0.396"},{"v":5.989621528418014,"d":"5.990"},null,null,{"$f":"SUM('IV. Country level, 1310-2018'!AO96:AV96)","v":{"v":12.32043043772738,"d":"12.320"}},{"$f":"SUM('IV. Country level, 1310-2018'!AY96:BF96)","v":{"v":-1.5483618772797163,"d":"-1.5484"}},{"v":13.868792315007095,"d":"13.869"},{"v":6.018015873015873,"d":"6.018"},{"$f":"'IV. Country level, 1310-2018'!U96","v":{"v":-2.4633210876524223,"d":"-2.463"}},{"$f":"'IV. Country level, 1310-2018'!C96","v":{"v":8.481336960668296,"d":"8.481"}},{"$nulls":5},{"v":6.6665,"d":"6.667"},{"v":1.787166425874389,"d":"1.787"},{"v":4.879333574125611,"d":"4.879"},{"$f":"'VIII. Pers. sov. loans, 1312-'!C95","v":{"v":12.791666666666666,"d":"12.792"}}]
[1403,null,{"v":13.184258493202988,"d":"13.184"},{"v":-0.9756379964969216,"d":"-0.976"},{"v":14.159896489699909,"d":"14.160"},{"v":6.608080634758376,"d":"6.608"},{"v":-0.8923981717722732,"d":"-0.892"},{"v":7.50047880653065,"d":"7.500"},null,null,{"$f":"SUM('IV. Country level, 1310-2018'!AO97:AV97)","v":{"v":12.851704448594987,"d":"12.852"}},{"$f":"SUM('IV. Country level, 1310-2018'!AY97:BF97)","v":{"v":-4.110665002906667,"d":"-4.1107"}},{"v":16.962369451501655,"d":"16.962"},{"v":5.9783333333333335,"d":"5.978"},{"$f":"'IV. Country level, 1310-2018'!U97","v":{"v":-10.685890277637347,"d":"-10.686"}},{"$f":"'IV. Country level, 1310-2018'!C97","v":{"v":16.66422361097068,"d":"16.664"}},{"$nulls":5},{"v":5,"d":"5.000"},{"v":1.766690844899446,"d":"1.767"},{"v":3.233309155100554,"d":"3.233"},{"$f":"'VIII. Pers. sov. loans, 1312-'!C96","v":{"v":12.392857142857142,"d":"12.393"}}]
[1404,null,{"v":13.339853438883083,"d":"13.340"},{"v":-1.678756189252046E-4,"d":"-0.000"},{"v":13.340021314502007,"d":"13.340"},{"v":6.870780365813588,"d":"6.871"},{"v":1.7438550179307033,"d":"1.744"},{"v":5.126925347882887,"d":"5.127"},null,null,{"$f":"SUM('IV. Country level, 1310-2018'!AO98:AV98)","v":{"v":13.681469442399756,"d":"13.681"}},{"$f":"SUM('IV. Country level, 1310-2018'!AY98:BF98)","v":{"v":-1.258742266611987,"d":"-1.2587"}},{"v":14.940211709011743,"d":"14.940"},{"$f":"P102+O102","v":{"v":6.654249084249084,"d":"6.654"}},{"$f":"'IV. Country level, 1310-2018'!U98","v":{"v":-1.856692704164057,"d":"-1.857"}},{"$f":"'IV. Country level, 1310-2018'!C98","v":{"v":8.510941788413142,"d":"8.511"}},{"$nulls":5},{"v":5.8333,"d":"5.833"},{"v":4.375017881648984,"d":"4.375"},{"v":1.4582821183510166,"d":"1.458"},{"$f":"'VIII. Pers. sov. loans, 1312-'!C97","v":11.875}]
[1405,null,{"v":13.266652908266467,"d":"13.267"},{"v":0.3048684409064294,"d":"0.305"},{"v":12.961784467360035,"d":"12.962"},{"v":6.981855077378187,"d":"6.982"},{"v":2.470370471212012,"d":"2.470"},{"v":4.511484606166174,"d":"4.511"},null,null,{"$f":"SUM('IV. Country level, 1310-2018'!AO99:AV99)","v":{"v":13.963489759945489,"d":"13.963"}},{"$f":"SUM('IV. Country level, 1310-2018'!AY99:BF99)","v":{"v":3.7729041801294896,"d":"3.7729"}},{"v":10.190585579815998,"d":"10.191"},{"v":7.555164835164836,"d":"7.555"},{"$f":"'IV. Country level, 1310-2018'!U99","v":{"v":17.909656180606905,"d":"17.910"}},{"$f":"'IV. Country level, 1310-2018'!C99","v":{"v":-10.354491345442069,"d":"-10.354"}},{"$nulls":5},{"v":6.666600000000001,"d":"6.667"},{"v":4.268603109845084,"d":"4.269"},{"v":2.397996890154917,"d":"2.398"},{"$f":"'VIII. Pers. sov. loans, 1312-'!C98","v":{"v":10.619532803180915,"d":"10.620"}}]
[1406,null,{"v":13.429944054301675,"d":"13.430"},{"v":0.4081574732198974,"d":"0.408"},{"v":13.021786581081779,"d":"13.022"},{"v":7.116696558648241,"d":"7.117"},{"v":2.5664148832508076,"d":"2.566"},{"v":4.550281675397431,"d":"4.550"},null,null,{"$f":"SUM('IV. Country level, 1310-2018'!AO100:AV100)","v":{"v":13.380389178611903,"d":"13.380"}},{"$f":"SUM('IV. Country level, 1310-2018'!AY100:BF100)","v":{"v":-2.443058209085512,"d":"-2.4431"}},{"v":15.823447387697415,"d":"15.823"},{"v":7.87072195246614,"d":"7.871"},{"$f":"'IV. Country level, 1310-2018'!U100","v":{"v":-3.2457915227663046,"d":"-3.246"}},{"$f":"'IV. Country level, 1310-2018'!C100","v":{"v":11.116513475232445,"d":"11.117"}},{"$nulls":5},{"v":6.6659999999999995,"d":"6.666"},{"v":4.16767167643163,"d":"4.168"},{"v":2.4983283235683693,"d":"2.498"},{"$f":"'VIII. Pers. sov. loans, 1312-'!C99","v":{"v":11.193439363817097,"d":"11.193"}}]
[1407,null,{"v":13.532534986445217,"d":"13.533"},{"v":0.3495220218569693,"d":"0.350"},{"v":13.183012964588247,"d":"13.183"},{"v":7.259402012109507,"d":"7.259"},{"v":2.2453553978011143,"d":"2.245"},{"v":5.014046614308393,"d":"5.014"},null,null,{"$f":"SUM('IV. Country level, 1310-2018'!AO101:AV101)","v":{"v":13.694140320080958,"d":"13.694"}},{"$f":"SUM('IV. Country level, 1310-2018'!AY101:BF101)","v":{"v":-1.8720027608768703,"d":"-1.8720"}},{"v":15.56614308095783,"d":"15.566"},{"v":8.011279069767442,"d":"8.011"},{"$f":"'IV. Country level, 1310-2018'!U101","v":{"v":-7.538498991509268,"d":"-7.538"}},{"$f":"'IV. Country level, 1310-2018'!C101","v":{"v":15.54977806127671,"d":"15.550"}},{"$nulls":5},{"v":6,"d":"6.000"},{"v":4.071791662374805,"d":"4.072"},{"v":1.928208337625195,"d":"1.928"},{"$f":"'VIII. Pers. sov. loans, 1312-'!C100","v":{"v":10.866799204771372,"d":"10.867"}}]
[1408,null,{"v":13.441930733600575,"d":"13.442"},{"v":0.8091365724315056,"d":"0.809"},{"v":12.632794161169068,"d":"12.633"},{"v":7.294356310909208,"d":"7.294"},{"v":4.112985193369525,"d":"4.113"},{"v":3.1813711175396833,"d":"3.181"},null,null,{"$f":"SUM('IV. Country level, 1310-2018'!AO102:AV102)","v":{"v":12.974946770504786,"d":"12.975"}},{"$f":"SUM('IV. Country level, 1310-2018'!AY102:BF102)","v":{"v":9.594005022976269,"d":"9.5940"}},{"v":3.3809417475285173,"d":"3.381"},{"v":6.785221393650598,"d":"6.785"},{"$f":"'IV. Country level, 1310-2018'!U102","v":{"v":25.17313170160658,"d":"25.173"}},{"$f":"'IV. Country level, 1310-2018'!C102","v":{"v":-18.38791030795598,"d":"-18.388"}},{"$nulls":5},{"v":6.660000000000001,"d":"6.660"},{"v":3.980576341114446,"d":"3.981"},{"v":2.679423658885555,"d":"2.679"},{"$f":"'VIII. Pers. sov. loans, 1312-'!C101","v":{"v":11.550582220959955,"d":"11.551"}}]
[1409,null,{"v":13.368177251559755,"d":"13.368"},{"v":-0.7441579056122459,"d":"-0.744"},{"v":14.112335157172,"d":"14.112"},{"v":7.374357856982182,"d":"7.374"},{"v":-1.156403542849901,"d":"-1.156"},{"v":8.530761399832084,"d":"8.531"},null,null,{"$f":"SUM('IV. Country level, 1310-2018'!AO103:AV103)","v":{"v":13.463468459973843,"d":"13.463"}},{"$f":"SUM('IV. Country level, 1310-2018'!AY103:BF103)","v":{"v":-0.8253386510854412,"d":"-0.8253"}},{"v":14.288807111059285,"d":"14.289"},{"v":6.961906241906243,"d":"6.962"},{"$f":"'IV. Country level, 1310-2018'!U103","v":{"v":-1.7910102033808533,"d":"-1.791"}},{"$f":"'IV. Country level, 1310-2018'!C103","v":{"v":8.752916445287097,"d":"8.753"}},{"$nulls":5},{"v":10,"d":"10.000"},{"v":3.893678356760483,"d":"3.894"},{"v":6.106321643239517,"d":"6.106"},{"$f":"'VIII. Pers. sov. loans, 1312-'!C102","v":{"v":11.173104231752342,"d":"11.173"}}]
[1410,null,{"v":13.332269817221952,"d":"13.332"},{"v":-1.5283830607175537,"d":"-1.528"},{"v":14.860652877939506,"d":"14.861"},{"v":7.322122642467723,"d":"7.322"},{"v":-4.055246787733919,"d":"-4.055"},{"v":11.377369430201641,"d":"11.377"},null,null,{"$f":"SUM('IV. Country level, 1310-2018'!AO104:AV104)","v":{"v":13.569840973599792,"d":"13.570"}},{"$f":"SUM('IV. Country level, 1310-2018'!AY104:BF104)","v":{"v":-4.521113162447163,"d":"-4.5211"}},{"v":18.090954136046953,"d":"18.091"},{"v":6.977271507562206,"d":"6.977"},{"$f":"'IV. Country level, 1310-2018'!U104","v":{"v":-12.933306675785202,"d":"-12.933"}},{"$f":"'IV. Country level, 1310-2018'!C104","v":{"v":19.910578183347408,"d":"19.911"}},{"$nulls":5},{"v":12.407407407407407,"d":"12.407"},{"v":3.8107847841259908,"d":"3.811"},{"v":8.596622623281416,"d":"8.597"},{"$f":"'VIII. Pers. sov. loans, 1312-'!C103","v":{"v":11.887389946038056,"d":"11.887"}}]
[1411,null,{"v":13.227309851778937,"d":"13.227"},{"v":-0.1414784903316097,"d":"-0.141"},{"v":13.368788342110546,"d":"13.369"},{"v":7.225785298723047,"d":"7.226"},{"v":0.484391759982769,"d":"0.484"},{"v":6.741393538740278,"d":"6.741"},null,null,{"$f":"SUM('IV. Country level, 1310-2018'!AO105:AV105)","v":{"v":13.047239672487244,"d":"13.047"}},{"$f":"SUM('IV. Country level, 1310-2018'!AY105:BF105)","v":{"v":1.9585595874097683,"d":"1.9586"}},{"v":11.088680085077476,"d":"11.089"},{"v":6.898929175846985,"d":"6.899"},{"$f":"'IV. Country level, 1310-2018'!U105","v":{"v":11.216715864814814,"d":"11.217"}},{"$f":"'IV. Country level, 1310-2018'!C105","v":{"v":-4.317786688967829,"d":"-4.318"}},{"$nulls":5},{"v":14.814814814814813,"d":"14.815"},{"v":3.731612918229087,"d":"3.732"},{"v":11.083201896585726,"d":"11.083"},{"$f":"'VIII. Pers. sov. loans, 1312-'!C104","v":{"v":12.664867935245669,"d":"12.665"}}]
[1412,null,{"v":13.205895258061437,"d":"13.206"},{"v":-1.0196433262519273,"d":"-1.020"},{"v":14.225538584313364,"d":"14.226"},{"v":7.294514909819915,"d":"7.295"},{"v":-1.8405436518029723,"d":"-1.841"},{"v":9.13505856162289,"d":"9.135"},null,null,{"$f":"SUM('IV. Country level, 1310-2018'!AO106:AV106)","v":{"v":13.447215385659764,"d":"13.447"}},{"$f":"SUM('IV. Country level, 1310-2018'!AY106:BF106)","v":{"v":-7.100157166176772,"d":"-7.1002"}},{"v":20.547372551836535,"d":"20.547"},{"v":8.115175657675657,"d":"8.115"},{"$f":"'IV. Country level, 1310-2018'!U106","v":{"v":-18.976064972929073,"d":"-18.976"}},{"$f":"'IV. Country level, 1310-2018'!C106","v":{"v":27.09124063060473,"d":"27.091"}},{"$nulls":5},{"v":5,"d":"5.000"},{"v":2.4533119447042,"d":"2.453"},{"v":2.5466880552958,"d":"2.547"},{"$f":"'VIII. Pers. sov. loans, 1312-'!C105","v":{"v":14.191468253968255,"d":"14.191"}}]
[1413,null,{"v":13.104082691345777,"d":"13.104"},{"v":0.7234669631717701,"d":"0.723"},{"v":12.380615728174009,"d":"12.381"},{"v":7.270144901521336,"d":"7.270"},{"v":2.9563156275490994,"d":"2.956"},{"v":4.313829273972237,"d":"4.314"},null,null,{"$f":"SUM('IV. Country level, 1310-2018'!AO107:AV107)","v":{"v":13.12903713824727,"d":"13.129"}},{"$f":"SUM('IV. Country level, 1310-2018'!AY107:BF107)","v":{"v":-7.932634294822668,"d":"-7.9326"}},{"v":21.06167143306994,"d":"21.062"},{"v":7.505075450864926,"d":"7.505"},{"$f":"'IV. Country level, 1310-2018'!U107","v":{"v":-23.537694236954433,"d":"-23.538"}},{"$f":"'IV. Country level, 1310-2018'!C107","v":{"v":31.04276968781936,"d":"31.043"}},{"$nulls":5},{"v":8.166333333333334,"d":"8.166"},{"v":2.39635115628224,"d":"2.396"},{"v":5.769982177051094,"d":"5.770"},{"$f":"'VIII. Pers. sov. loans, 1312-'!C106","v":{"v":15.735544217687076,"d":"15.736"}}]
[1414,null,{"v":12.980917060962144,"d":"12.981"},{"v":1.2463479296772049,"d":"1.246"},{"v":11.73456913128494,"d":"11.735"},{"v":7.212283401574908,"d":"7.212"},{"v":3.402185010991651,"d":"3.402"},{"v":3.810098390583257,"d":"3.810"},null,null,{"$f":"SUM('IV. Country level, 1310-2018'!AO108:AV108)","v":{"v":12.959420561979849,"d":"12.959"}},{"$f":"SUM('IV. Country level, 1310-2018'!AY108:BF108)","v":{"v":7.836329231824741,"d":"7.8363"}},{"v":5.123091330155108,"d":"5.123"},{"v":7.336917663554718,"d":"7.337"},{"$f":"'IV. Country level, 1310-2018'!U108","v":{"v":24.238970842507552,"d":"24.239"}},{"$f":"'IV. Country level, 1310-2018'!C108","v":{"v":-16.902053178952833,"d":"-16.902"}},{"$nulls":5},{"v":21.51515151515152,"d":"21.515"},{"v":2.342013664547901,"d":"2.342"},{"v":19.173137850603617,"d":"19.173"},{"$f":"'VIII. Pers. sov. loans, 1312-'!C107","v":{"v":16.89360119047619,"d":"16.894"}}]
[1415,null,{"v":12.837691245688006,"d":"12.838"},{"v":-0.1352997825898574,"d":"-0.135"},{"v":12.972991028277866,"d":"12.973"},{"v":7.325243022640625,"d":"7.325"},{"v":-0.579537144397796,"d":"-0.580"},{"v":7.904780167038423,"d":"7.905"},null,null,{"$f":"SUM('IV. Country level, 1310-2018'!AO109:AV109)","v":{"v":12.825044614482298,"d":"12.825"}},{"$f":"SUM('IV. Country level, 1310-2018'!AY109:BF109)","v":{"v":3.446851171534045,"d":"3.4469"}},{"v":9.378193442948254,"d":"9.378"},{"v":7.266328671328673,"d":"7.266"},{"$f":"'IV. Country level, 1310-2018'!U109","v":{"v":8.89858381910639,"d":"8.899"}},{"$f":"'IV. Country level, 1310-2018'!C109","v":{"v":-1.632255147777717,"d":"-1.632"}},{"$nulls":5},{"v":5.798319327731092,"d":"5.798"},{"v":2.2901222847906615,"d":"2.290"},{"v":3.5081970429404308,"d":"3.508"},{"$f":"'VIII. Pers. sov. loans, 1312-'!C108","v":{"v":16.357886904761905,"d":"16.358"}}]
[1416,null,{"v":12.667342064177115,"d":"12.667"},{"v":1.5233325537519653,"d":"1.523"},{"v":11.14400951042515,"d":"11.144"},{"v":7.341268623294233,"d":"7.341"},{"v":4.753364019382708,"d":"4.753"},{"v":2.5879046039115243,"d":"2.588"},null,null,{"$f":"SUM('IV. Country level, 1310-2018'!AO110:AV110)","v":{"v":12.750780492964232,"d":"12.751"}},{"$f":"SUM('IV. Country level, 1310-2018'!AY110:BF110)","v":{"v":11.376433374880436,"d":"11.3764"}},{"v":1.3743471180837954,"d":"1.374"},{"v":6.7913161838161855,"d":"6.791"},{"$f":"'IV. Country level, 1310-2018'!U110","v":{"v":31.787004752083643,"d":"31.787"}},{"$f":"'IV. Country level, 1310-2018'!C110","v":{"v":-24.995688568267457,"d":"-24.996"}},{"$nulls":5},{"v":8.333333333333332,"d":"8.333"},{"v":2.2405154377442273,"d":"2.241"},{"v":6.092817895589105,"d":"6.093"},{"$f":"'VIII. Pers. sov. loans, 1312-'!C109","v":{"v":17.762896825396826,"d":"17.763"}}]
[1417,null,{"v":12.472830038462288,"d":"12.473"},{"v":4.313424457033699,"d":"4.313"},{"v":8.159405581428588,"d":"8.159"},{"v":7.201198409498825,"d":"7.201"},{"v":13.520048518588883,"d":"13.520"},{"v":-6.318850109090059,"d":"-6.319"},null,null,{"$f":"SUM('IV. Country level, 1310-2018'!AO111:AV111)","v":{"v":12.70768156091436,"d":"12.708"}},{"$f":"SUM('IV. Country level, 1310-2018'!AY111:BF111)","v":{"v":-0.8609463969091165,"d":"-0.8609"}},{"v":13.568627957823477,"d":"13.569"},{"v":6.572241007937212,"d":"6.572"},{"$f":"'IV. Country level, 1310-2018'!U111","v":{"v":-9.812220991687337,"d":"-9.812"}},{"$f":"'IV. Country level, 1310-2018'!C111","v":{"v":16.38446199962455,"d":"16.384"}},{"$nulls":5},8.333,{"v":2.193045468549819,"d":"2.193"},{"v":6.139954531450181,"d":"6.140"},{"$f":"'VIII. Pers. sov. loans, 1312-'!C110","v":{"v":17.233796296296294,"d":"17.234"}}]
[1418,null,{"v":12.242291107623632,"d":"12.242"},{"v":2.7201795306142165,"d":"2.720"},{"v":9.522111577009417,"d":"9.522"},{"v":7.051900653497649,"d":"7.052"},{"v":7.437826740788865,"d":"7.438"},{"v":-0.3859260872912153,"d":"-0.386"},null,null,{"$f":"SUM('IV. Country level, 1310-2018'!AO112:AV112)","v":{"v":12.044658965568287,"d":"12.045"}},{"$f":"SUM('IV. Country level, 1310-2018'!AY112:BF112)","v":{"v":-7.712974398459667,"d":"-7.7130"}},{"v":19.757633364027953,"d":"19.758"},{"v":7.689646523307008,"d":"7.690"},{"$f":"'IV. Country level, 1310-2018'!U112","v":{"v":-16.65533922291132,"d":"-16.655"}},{"$f":"'IV. Country level, 1310-2018'!C112","v":{"v":24.344985746218327,"d":"24.345"}},{"$nulls":5},{"v":6.6659999999999995,"d":"6.666"},{"v":2.1475771784359696,"d":"2.148"},{"v":4.51842282156403,"d":"4.518"},{"$f":"'VIII. Pers. sov. loans, 1312-'!C111","v":{"v":15.962301587301585,"d":"15.962"}}]
[1419,null,{"v":11.983871998160987,"d":"11.984"},{"v":0.691748947649472,"d":"0.692"},{"v":11.292123050511515,"d":"11.292"},{"v":6.9009291406530915,"d":"6.901"},{"v":1.4427365071513154,"d":"1.443"},{"v":5.458192633501777,"d":"5.458"},null,null,{"$f":"SUM('IV. Country level, 1310-2018'!AO113:AV113)","v":{"v":12.254771115083495,"d":"12.255"}},{"$f":"SUM('IV. Country level, 1310-2018'!AY113:BF113)","v":{"v":4.510269188215985,"d":"4.5103"}},{"v":7.7445019268675095,"d":"7.745"},{"v":8.227354862250905,"d":"8.227"},{"$f":"'IV. Country level, 1310-2018'!U113","v":{"v":18.354243173534464,"d":"18.354"}},{"$f":"'IV. Country level, 1310-2018'!C113","v":{"v":-10.126888311283558,"d":"-10.127"}},{"$nulls":5},5.833,{"v":2.103986538361504,"d":"2.104"},{"v":3.729013461638496,"d":"3.729"},{"$f":"'VIII. Pers. sov. loans, 1312-'!C112","v":{"v":14.074074074074074,"d":"14.074"}}]
[1420,null,{"v":11.777021194453482,"d":"11.777"},{"v":-0.5657184844836148,"d":"-0.566"},{"v":12.342739678937097,"d":"12.343"},{"v":6.806562204240906,"d":"6.807"},{"v":-1.333862699926879,"d":"-1.334"},{"v":8.140424904167785,"d":"8.140"},null,null,{"$f":"SUM('IV. Country level, 1310-2018'!AO114:AV114)","v":{"v":11.767452958243489,"d":"11.767"}},{"$f":"SUM('IV. Country level, 1310-2018'!AY114:BF114)","v":{"v":11.59800902814947,"d":"11.5980"}},{"v":0.16944393009401892,"d":"0.169"},{"v":6.524583954297071,"d":"6.525"},{"$f":"'IV. Country level, 1310-2018'!U114","v":{"v":37.8290972574888,"d":"37.829"}},{"$f":"'IV. Country level, 1310-2018'!C114","v":{"v":-31.304513303191726,"d":"-31.305"}},{"$nulls":5},{"v":8.330000000000002,"d":"8.330"},{"v":2.06215955884468,"d":"2.062"},{"v":6.267840441155322,"d":"6.268"},{"$f":"'VIII. Pers. sov. loans, 1312-'!C113","v":{"v":11.047407407407407,"d":"11.047"}}]
[1421,null,{"v":11.552210546729643,"d":"11.552"},{"v":-1.4270024418803828,"d":"-1.427"},{"v":12.979212988610024,"d":"12.979"},{"v":6.800298701742924,"d":"6.800"},{"v":-3.3306188571787443,"d":"-3.331"},{"v":10.130917558921668,"d":"10.131"},null,null,{"$f":"SUM('IV. Country level, 1310-2018'!AO115:AV115)","v":{"v":11.345648046109275,"d":"11.346"}},{"$f":"SUM('IV. Country level, 1310-2018'!AY115:BF115)","v":{"v":-3.316385253111638,"d":"-3.3164"}},{"v":14.662033299220912,"d":"14.662"},{"v":6.291833371546488,"d":"6.292"},{"$f":"'IV. Country level, 1310-2018'!U115","v":{"v":-18.336581602092586,"d":"-18.337"}},{"$f":"'IV. Country level, 1310-2018'!C115","v":{"v":24.628414973639075,"d":"24.628"}},{"$nulls":5},5.625,{"v":2.021991294293788,"d":"2.022"},{"v":3.603008705706212,"d":"3.603"},{"$f":"'VIII. Pers. sov. loans, 1312-'!C114","v":{"v":7.714074074074074,"d":"7.714"}}]
[1422,null,{"v":11.497468285068527,"d":"11.497"},{"v":0.4186499536743125,"d":"0.419"},{"v":11.078818331394213,"d":"11.079"},{"v":6.647236274281383,"d":"6.647"},{"v":1.09857206457878,"d":"1.099"},{"v":5.548664209702605,"d":"5.549"},null,null,{"$f":"SUM('IV. Country level, 1310-2018'!AO116:AV116)","v":{"v":11.01611084824377,"d":"11.016"}},{"$f":"SUM('IV. Country level, 1310-2018'!AY116:BF116)","v":{"v":-10.752162909219168,"d":"-10.7522"}},{"v":21.768273757462936,"d":"21.768"},{"v":6.209528081416771,"d":"6.210"},{"$f":"'IV. Country level, 1310-2018'!U116","v":{"v":-33.06704781635646,"d":"-33.067"}},{"$f":"'IV. Country level, 1310-2018'!C116","v":{"v":39.27657589777323,"d":"39.277"}},{"$nulls":5},{"v":6.142500000000001,"d":"6.143"},{"v":1.983384963527159,"d":"1.983"},{"v":4.159115036472842,"d":"4.159"},{"$f":"'VIII. Pers. sov. loans, 1312-'!C115","v":{"v":10.326349206349207,"d":"10.326"}}]
[1423,null,{"v":11.453404852594831,"d":"11.453"},{"v":-0.2743778283063257,"d":"-0.274"},{"v":11.727782680901155,"d":"11.728"},{"v":6.48300384761307,"d":"6.483"},{"v":-0.8254426654479008,"d":"-0.825"},{"v":7.30844651306097,"d":"7.308"},null,null,{"$f":"SUM('IV. Country level, 1310-2018'!AO117:AV117)","v":{"v":11.302824867011704,"d":"11.303"}},{"$f":"SUM('IV. Country level, 1310-2018'!AY117:BF117)","v":{"v":2.57416134994883,"d":"2.5742"}},{"v":8.728663517062873,"d":"8.729"},{"v":6.130747628930893,"d":"6.131"},{"$f":"'IV. Country level, 1310-2018'!U117","v":{"v":12.350810302536285,"d":"12.351"}},{"$f":"'IV. Country level, 1310-2018'!C117","v":{"v":-6.220062673605392,"d":"-6.220"}},{"$nulls":5},{"v":6.660000000000001,"d":"6.660"},{"v":1.9462511709661554,"d":"1.946"},{"v":4.713748829033846,"d":"4.714"},{"$f":"'VIII. Pers. sov. loans, 1312-'!C116","v":{"v":10.285555555555556,"d":"10.286"}}]
[1424,null,{"v":11.389420347547945,"d":"11.389"},{"v":-2.3450055146525126,"d":"-2.345"},{"v":13.734425862200457,"d":"13.734"},{"v":6.579289765146866,"d":"6.579"},{"v":-6.985753089904373,"d":"-6.986"},{"v":13.56504285505124,"d":"13.565"},null,null,{"$f":"SUM('IV. Country level, 1310-2018'!AO118:AV118)","v":{"v":11.13400702684748,"d":"11.134"}},{"$f":"SUM('IV. Country level, 1310-2018'!AY118:BF118)","v":{"v":-6.889934098686491,"d":"-6.8899"}},{"v":18.02394112553397,"d":"18.024"},{"v":6.528396490451325,"d":"6.528"},{"$f":"'IV. Country level, 1310-2018'!U118","v":{"v":-23.789514092450396,"d":"-23.790"}},{"$f":"'IV. Country level, 1310-2018'!C118","v":{"v":30.31791058290172,"d":"30.318"}},{"$nulls":5},{"v":8.807365853658537,"d":"8.807"},{"v":1.9105072153078477,"d":"1.911"},{"v":6.896858638350689,"d":"6.897"},{"$f":"'VIII. Pers. sov. loans, 1312-'!C117","v":{"v":10.146666666666667,"d":"10.147"}}]
[1425,null,{"v":11.42294508495041,"d":"11.423"},{"v":-2.383922881487833,"d":"-2.384"},{"v":13.806867966438242,"d":"13.807"},{"v":6.676761845073723,"d":"6.677"},{"v":-6.747748491269566,"d":"-6.748"},{"v":13.42451033634329,"d":"13.425"},null,null,{"$f":"SUM('IV. Country level, 1310-2018'!AO119:AV119)","v":{"v":11.661463133940472,"d":"11.661"}},{"$f":"SUM('IV. Country level, 1310-2018'!AY119:BF119)","v":{"v":5.206592370423198,"d":"5.2066"}},{"v":6.454870763517275,"d":"6.455"},{"v":6.618209531076233,"d":"6.618"},{"$f":"'IV. Country level, 1310-2018'!U119","v":{"v":14.348997229391353,"d":"14.349"}},{"$f":"'IV. Country level, 1310-2018'!C119","v":{"v":-7.73078769831512,"d":"-7.731"}},{"$nulls":5},{"v":5,"d":"5.000"},{"v":1.876076474424795,"d":"1.876"},{"v":3.123923525575205,"d":"3.124"},{"$f":"'VIII. Pers. sov. loans, 1312-'!C118","v":{"v":10.405714285714286,"d":"10.406"}}]
[1426,null,{"v":11.46236789010211,"d":"11.462"},{"v":-0.31408842314421054,"d":"-0.314"},{"v":11.776456313246317,"d":"11.776"},{"v":6.7904432375769845,"d":"6.790"},{"v":-2.6150575802108436,"d":"-2.615"},{"v":9.405500817787827,"d":"9.406"},null,null,{"$f":"SUM('IV. Country level, 1310-2018'!AO120:AV120)","v":{"v":11.946327087767626,"d":"11.946"}},{"$f":"SUM('IV. Country level, 1310-2018'!AY120:BF120)","v":{"v":-0.34092528564848096,"d":"-0.3409"}},{"v":12.287252373416107,"d":"12.287"},{"v":7.0777278755727036,"d":"7.078"},{"$f":"'IV. Country level, 1310-2018'!U120","v":{"v":4.886140063347699,"d":"4.886"}},{"$f":"'IV. Country level, 1310-2018'!C120","v":{"v":2.1915878122250048,"d":"2.192"}},{"$nulls":5},{"v":5.55,"d":"5.550"},{"v":1.8428878568627314,"d":"1.843"},{"v":3.7071121431372687,"d":"3.707"},{"$f":"'VIII. Pers. sov. loans, 1312-'!C119","v":{"v":11.306666666666667,"d":"11.307"}}]
[1427,null,{"v":11.478046108758084,"d":"11.478"},{"v":0.2704831419087916,"d":"0.270"},{"v":11.207562966849295,"d":"11.208"},{"v":7.087325897786985,"d":"7.087"},{"v":-1.7723568411775337,"d":"-1.772"},{"v":8.85968273896452,"d":"8.860"},null,null,{"$f":"SUM('IV. Country level, 1310-2018'!AO121:AV121)","v":{"v":11.319561422915296,"d":"11.320"}},{"$f":"SUM('IV. Country level, 1310-2018'!AY121:BF121)","v":{"v":-2.896384776273836,"d":"-2.8964"}},{"v":14.215946199189132,"d":"14.216"},{"v":7.1985853770336545,"d":"7.199"},{"$f":"'IV. Country level, 1310-2018'!U121","v":{"v":-5.293075713706508,"d":"-5.293"}},{"$f":"'IV. Country level, 1310-2018'!C121","v":{"v":12.491661090740163,"d":"12.492"}},{"$nulls":5},{"v":6.822619047619047,"d":"6.823"},{"v":1.810875311672396,"d":"1.811"},{"v":5.011743735946651,"d":"5.012"},{"$f":"'VIII. Pers. sov. loans, 1312-'!C120","v":{"v":12.477142857142857,"d":"12.477"}}]
[1428,null,{"v":11.586599409703242,"d":"11.587"},{"v":3.1722740937504446,"d":"3.172"},{"v":8.414325315952796,"d":"8.414"},{"v":7.516227427155337,"d":"7.516"},{"v":9.308424892622877,"d":"9.308"},{"v":-1.79219746546754,"d":"-1.792"},null,null,{"$f":"SUM('IV. Country level, 1310-2018'!AO122:AV122)","v":{"v":11.580321207926511,"d":"11.580"}},{"$f":"SUM('IV. Country level, 1310-2018'!AY122:BF122)","v":{"v":-3.5888068209588804,"d":"-3.5888"}},{"v":15.169128028885392,"d":"15.169"},{"v":6.974137931034484,"d":"6.974"},{"$f":"'IV. Country level, 1310-2018'!U122","v":{"v":-16.670549411648935,"d":"-16.671"}},{"$f":"'IV. Country level, 1310-2018'!C122","v":{"v":23.64468734268342,"d":"23.645"}},{"$nulls":5},{"v":8.095238095238095,"d":"8.095"},{"v":1.7799773894649955,"d":"1.780"},{"v":6.315260705773099,"d":"6.315"},{"$f":"'VIII. Pers. sov. loans, 1312-'!C121","v":{"v":12.2475,"d":"12.248"}}]
[1429,null,{"v":11.660563622996994,"d":"11.661"},{"v":3.2857376161793477,"d":"3.286"},{"v":8.374826006817647,"d":"8.375"},{"v":7.988421043887781,"d":"7.988"},{"v":9.057170492927563,"d":"9.057"},{"v":-1.0687494490397829,"d":"-1.069"},null,null,{"$f":"SUM('IV. Country level, 1310-2018'!AO123:AV123)","v":{"v":11.292070484305663,"d":"11.292"}},{"$f":"SUM('IV. Country level, 1310-2018'!AY123:BF123)","v":{"v":3.7366782991861873,"d":"3.7367"}},{"v":7.555392185119476,"d":"7.555"},{"v":7.005297828939596,"d":"7.005"},{"$f":"'IV. Country level, 1310-2018'!U123","v":{"v":-4.138211438945402,"d":"-4.138"}},{"$f":"'IV. Country level, 1310-2018'!C123","v":{"v":11.143509267884998,"d":"11.144"}},{"$nulls":5},{"v":6.547619047619047,"d":"6.548"},{"v":0,"d":"0.000"},{"v":6.547619047619047,"d":"6.548"},{"$f":"'VIII. Pers. sov. loans, 1312-'!C122","v":{"v":10.33,"d":"10.330"}}]
[1430,null,{"v":11.719140458997689,"d":"11.719"},{"v":2.435005890406432,"d":"2.435"},{"v":9.284134568591258,"d":"9.284"},{"v":8.372688422164146,"d":"8.373"},{"v":3.538188090703461,"d":"3.538"},{"v":4.834500331460682,"d":"4.835"},null,null,{"$f":"SUM('IV. Country level, 1310-2018'!AO124:AV124)","v":{"v":11.41257239760356,"d":"11.413"}},{"$f":"SUM('IV. Country level, 1310-2018'!AY124:BF124)","v":{"v":6.666162305319846,"d":"6.6662"}},{"v":4.746410092283714,"d":"4.746"},{"v":8.208926250400905,"d":"8.209"},{"$f":"'IV. Country level, 1310-2018'!U124","v":{"v":18.249715475769452,"d":"18.250"}},{"$f":"'IV. Country level, 1310-2018'!C124","v":{"v":-10.040789225368547,"d":"-10.041"}},{"$nulls":5},{"v":5,"d":"5.000"},{"v":0,"d":"0.000"},{"v":5,"d":"5.000"},{"$f":"'VIII. Pers. sov. loans, 1312-'!C123","v":10.396}]
[1431,null,{"v":11.897090867710688,"d":"11.897"},{"v":0.8845919961029478,"d":"0.885"},{"v":11.012498871607741,"d":"11.012"},{"v":8.806029658076705,"d":"8.806"},{"v":3.7230139763772754,"d":"3.723"},{"v":5.083015681699428,"d":"5.083"},null,null,{"$f":"SUM('IV. Country level, 1310-2018'!AO125:AV125)","v":{"v":11.893880133463565,"d":"11.894"}},{"$f":"SUM('IV. Country level, 1310-2018'!AY125:BF125)","v":{"v":13.422602564205079,"d":"13.4226"}},{"v":-1.5287224307415137,"d":"-1.529"},{"v":9.53070719602978,"d":"9.531"},{"$f":"'IV. Country level, 1310-2018'!U125","v":{"v":53.77595804415248,"d":"53.776"}},{"$f":"'IV. Country level, 1310-2018'!C125","v":{"v":-44.2452508481227,"d":"-44.245"}},{"$nulls":5},{"v":3.7500000000000004,"d":"3.750"},{"v":0,"d":"0.000"},{"v":3.7500000000000004,"d":"3.750"},{"$f":"'VIII. Pers. sov. loans, 1312-'!C124","v":{"v":11.036000000000001,"d":"11.036"}}]
[1432,null,{"v":12.06595501989836,"d":"12.066"},{"v":1.7065721716858686,"d":"1.707"},{"v":10.35938284821249,"d":"10.359"},{"v":9.356995411912536,"d":"9.357"},{"v":7.985657022909618,"d":"7.986"},{"v":1.3713383890029185,"d":"1.371"},null,null,{"$f":"SUM('IV. Country level, 1310-2018'!AO126:AV126)","v":{"v":12.179212626996744,"d":"12.179"}},{"$f":"SUM('IV. Country level, 1310-2018'!AY126:BF126)","v":{"v":6.000837027425517,"d":"6.0008"}},{"v":6.178375599571227,"d":"6.178"},{"v":9.923564848203338,"d":"9.924"},{"$f":"'IV. Country level, 1310-2018'!U126","v":{"v":12.590216431524148,"d":"12.590"}},{"$f":"'IV. Country level, 1310-2018'!C126","v":{"v":-2.66665158332081,"d":"-2.667"}},{"$nulls":5},{"v":6.1105,"d":"6.111"},{"v":0.7802984290191999,"d":"0.780"},{"v":5.3302015709808,"d":"5.330"},{"$f":"'VIII. Pers. sov. loans, 1312-'!C125","v":{"v":11.036000000000001,"d":"11.036"}}]
[1433,null,{"v":12.309916723519503,"d":"12.310"},{"v":3.088640056958108,"d":"3.089"},{"v":9.221276666561394,"d":"9.221"},{"v":9.95606168863891,"d":"9.956"},{"v":13.093289284922873,"d":"13.093"},{"v":-3.1372275962839664,"d":"-3.137"},null,null,{"$f":"SUM('IV. Country level, 1310-2018'!AO127:AV127)","v":{"v":12.356364939772483,"d":"12.356"}},{"$f":"SUM('IV. Country level, 1310-2018'!AY127:BF127)","v":{"v":-6.296047366058886,"d":"-6.2960"}},{"v":18.65241230583137,"d":"18.652"},{"v":9.767599523507258,"d":"9.768"},{"$f":"'IV. Country level, 1310-2018'!U127","v":{"v":-33.74673675222101,"d":"-33.747"}},{"$f":"'IV. Country level, 1310-2018'!C127","v":{"v":43.51433627572827,"d":"43.514"}},{"$nulls":5},{"v":4.5,"d":"4.500"},{"v":-2.406869684972519,"d":"-2.407"},{"v":6.906869684972519,"d":"6.907"},{"$f":"'VIII. Pers. sov. loans, 1312-'!C126","v":{"v":11.760769230769233,"d":"11.761"}}]
[1434,null,{"v":12.388939956231253,"d":"12.389"},{"v":3.276678236611737,"d":"3.277"},{"v":9.112261719619518,"d":"9.112"},{"v":10.367230300619122,"d":"10.367"},{"v":7.436067136007444,"d":"7.436"},{"v":2.9311631646116787,"d":"2.931"},null,null,{"$f":"SUM('IV. Country level, 1310-2018'!AO128:AV128)","v":{"v":12.5652142839063,"d":"12.565"}},{"$f":"SUM('IV. Country level, 1310-2018'!AY128:BF128)","v":{"v":-13.74928203639823,"d":"-13.7493"}},{"v":26.314496320304528,"d":"26.314"},{"v":10.23197402842156,"d":"10.232"},{"$f":"'IV. Country level, 1310-2018'!U128","v":{"v":-3.999294513989806,"d":"-3.999"}},{"$f":"'IV. Country level, 1310-2018'!C128","v":{"v":14.231268542411366,"d":"14.231"}},{"$nulls":5},{"v":6.6659999999999995,"d":"6.666"},{"v":2.2785144730085762,"d":"2.279"},{"v":4.387485526991423,"d":"4.387"},{"$f":"'VIII. Pers. sov. loans, 1312-'!C127","v":{"v":10.212923076923076,"d":"10.213"}}]
[1435,null,{"v":12.424294276257822,"d":"12.424"},{"v":1.7063006312373723,"d":"1.706"},{"v":10.717993645020446,"d":"10.718"},{"v":10.646859468557171,"d":"10.647"},{"v":-1.656772783806927,"d":"-1.657"},{"v":12.3036322523641,"d":"12.304"},null,null,{"$f":"SUM('IV. Country level, 1310-2018'!AO129:AV129)","v":{"v":12.762370273240196,"d":"12.762"}},{"$f":"SUM('IV. Country level, 1310-2018'!AY129:BF129)","v":{"v":2.1650544081215664,"d":"2.1651"}},{"v":10.59731586511863,"d":"10.597"},{"v":10.830898207885307,"d":"10.831"},{"$f":"'IV. Country level, 1310-2018'!U129","v":{"v":13.167951914077456,"d":"13.168"}},{"$f":"'IV. Country level, 1310-2018'!C129","v":{"v":-2.3370537061921492,"d":"-2.337"}},{"$nulls":5},{"v":5,"d":"5.000"},{"v":1.9464086811229333,"d":"1.946"},{"v":3.053591318877067,"d":"3.054"},{"$f":"'VIII. Pers. sov. loans, 1312-'!C128","v":{"v":10.566153846153846,"d":"10.566"}}]
[1436,null,{"v":12.588997397673626,"d":"12.589"},{"v":1.280944166022431,"d":"1.281"},{"v":11.308053231651197,"d":"11.308"},{"v":11.46982788254834,"d":"11.470"},{"v":1.3239685753378052,"d":"1.324"},{"v":10.14585930721053,"d":"10.146"},null,null,{"$f":"SUM('IV. Country level, 1310-2018'!AO130:AV130)","v":{"v":12.999802409653674,"d":"13.000"}},{"$f":"SUM('IV. Country level, 1310-2018'!AY130:BF130)","v":{"v":13.411153496091863,"d":"13.4112"}},{"v":-0.41135108643818974,"d":"-0.411"},{"v":11.198761766024205,"d":"11.199"},{"$f":"'IV. Country level, 1310-2018'!U130","v":{"v":31.61521439514739,"d":"31.615"}},{"$f":"'IV. Country level, 1310-2018'!C130","v":{"v":-20.416452629123185,"d":"-20.416"}},{"$nulls":5},{"v":6.6659999999999995,"d":"6.666"},{"v":-1.101957934613366,"d":"-1.102"},{"v":7.767957934613365,"d":"7.768"},{"$f":"'VIII. Pers. sov. loans, 1312-'!C129","v":{"v":11.350769230769231,"d":"11.351"}}]
[1437,null,{"v":12.786188272677819,"d":"12.786"},{"v":1.0824983042642544,"d":"1.082"},{"v":11.703689968413565,"d":"11.704"},{"v":12.528610198922417,"d":"12.529"},{"v":7.765144947156291,"d":"7.765"},{"v":4.763465251766126,"d":"4.763"},null,null,{"$f":"SUM('IV. Country level, 1310-2018'!AO131:AV131)","v":{"v":11.965735026585815,"d":"11.966"}},{"$f":"SUM('IV. Country level, 1310-2018'!AY131:BF131)","v":{"v":7.982429562895247,"d":"7.9824"}},{"v":3.9833054636905683,"d":"3.983"},{"v":11.087106534262404,"d":"11.087"},{"$f":"'IV. Country level, 1310-2018'!U131","v":{"v":-21.350839566638555,"d":"-21.351"}},{"$f":"'IV. Country level, 1310-2018'!C131","v":{"v":32.43794610090096,"d":"32.438"}},{"$nulls":5},{"v":5.416333333333332,"d":"5.416"},{"v":1.291974964181435,"d":"1.292"},{"v":4.1243583691518975,"d":"4.124"},{"$f":"'VIII. Pers. sov. loans, 1312-'!C130","v":{"v":12.475290598290599,"d":"12.475"}}]
[1438,null,{"v":12.973762932602536,"d":"12.974"},{"v":3.1960296873954688,"d":"3.196"},{"v":9.777733245207068,"d":"9.778"},{"v":13.601619487610192,"d":"13.602"},{"v":9.790849678904822,"d":"9.791"},{"v":3.81076980870537,"d":"3.811"},null,null,{"$f":"SUM('IV. Country level, 1310-2018'!AO132:AV132)","v":{"v":12.14136037364953,"d":"12.141"}},{"$f":"SUM('IV. Country level, 1310-2018'!AY132:BF132)","v":{"v":2.4299593265845276,"d":"2.4300"}},{"v":9.711401047065003,"d":"9.711"},{"v":11.488111371596139,"d":"11.488"},{"$f":"'IV. Country level, 1310-2018'!U132","v":{"v":-9.87392139454811,"d":"-9.874"}},{"$f":"'IV. Country level, 1310-2018'!C132","v":{"v":21.36203276614425,"d":"21.362"}},{"$nulls":5},{"v":5,"d":"5.000"},{"v":-1.240566301254314,"d":"-1.241"},{"v":6.240566301254314,"d":"6.241"},{"$f":"'VIII. Pers. sov. loans, 1312-'!C131","v":{"v":11.768623931623932,"d":"11.769"}}]
[1439,null,{"v":13.145429792037119,"d":"13.145"},{"v":3.5314773742763057,"d":"3.531"},{"v":9.613952417760814,"d":"9.614"},{"v":14.611906487667085,"d":"14.612"},{"v":8.35449736315614,"d":"8.354"},{"v":6.257409124510947,"d":"6.257"},null,null,{"$f":"SUM('IV. Country level, 1310-2018'!AO133:AV133)","v":{"v":13.332134476907385,"d":"13.332"}},{"$f":"SUM('IV. Country level, 1310-2018'!AY133:BF133)","v":{"v":3.023341770920927,"d":"3.0233"}},{"v":10.308792705986457,"d":"10.309"},{"v":15.6843437461415,"d":"15.684"},{"$f":"'IV. Country level, 1310-2018'!U133","v":{"v":33.45540594553728,"d":"33.455"}},{"$f":"'IV. Country level, 1310-2018'!C133","v":{"v":-17.77106219939578,"d":"-17.771"}},{"$nulls":5},{"v":10.83333,"d":"10.833"},{"v":-0.15763444406414626,"d":"-0.158"},{"v":10.990964444064147,"d":"10.991"},{"$f":"'VIII. Pers. sov. loans, 1312-'!C132","v":{"v":11.27576153846154,"d":"11.276"}}]
[1440,null,{"v":13.16178997382968,"d":"13.162"},{"v":-0.3718757298869946,"d":"-0.372"},{"v":13.533665703716675,"d":"13.534"},{"v":15.320750797772039,"d":"15.321"},{"v":-3.2825828650631093,"d":"-3.283"},{"v":18.60333366283515,"d":"18.603"},null,null,{"$f":"SUM('IV. Country level, 1310-2018'!AO134:AV134)","v":{"v":13.73670106480184,"d":"13.737"}},{"$f":"SUM('IV. Country level, 1310-2018'!AY134:BF134)","v":{"v":-7.68516839836612,"d":"-7.6852"}},{"v":21.42186946316796,"d":"21.422"},{"v":17.179075738125803,"d":"17.179"},{"$f":"'IV. Country level, 1310-2018'!U134","v":{"v":11.341497850508384,"d":"11.341"}},{"$f":"'IV. Country level, 1310-2018'!C134","v":{"v":5.837577887617419,"d":"5.838"}},{"$nulls":5},{"v":6.907894736842106,"d":"6.908"},{"v":-0.22657496430821353,"d":"-0.227"},{"v":7.134469701150319,"d":"7.134"},{"$f":"'VIII. Pers. sov. loans, 1312-'!C133","v":{"v":10.4213,"d":"10.421"}}]
[1441,null,{"v":13.319149366439792,"d":"13.319"},{"v":-1.255622948328057,"d":"-1.256"},{"v":14.574772314767852,"d":"14.575"},{"v":15.893784412410938,"d":"15.894"},{"v":2.580211943517471,"d":"2.580"},{"v":13.313572468893467,"d":"13.314"},null,null,{"$f":"SUM('IV. Country level, 1310-2018'!AO135:AV135)","v":{"v":13.878236903379321,"d":"13.878"}},{"$f":"SUM('IV. Country level, 1310-2018'!AY135:BF135)","v":{"v":1.0454376455202743,"d":"1.0454"}},{"v":12.832799257859048,"d":"12.833"},{"v":17.743039049235996,"d":"17.743"},{"$f":"'IV. Country level, 1310-2018'!U135","v":{"v":10.180638608249918,"d":"10.181"}},{"$f":"'IV. Country level, 1310-2018'!C135","v":{"v":7.562400440986078,"d":"7.562"}},{"$nulls":5},{"v":5,"d":"5.000"},{"v":2.8157053427947276,"d":"2.816"},{"v":2.1842946572052724,"d":"2.184"},{"$f":"'VIII. Pers. sov. loans, 1312-'!C134","v":{"v":10.819222222222223,"d":"10.819"}}]
[1442,null,{"v":13.346854821745385,"d":"13.347"},{"v":-2.269894820952937,"d":"-2.270"},{"v":15.61674964269832,"d":"15.617"},{"v":16.102047800265787,"d":"16.102"},{"v":1.7899837682419029,"d":"1.790"},{"v":14.312064032023885,"d":"14.312"},null,null,{"$f":"SUM('IV. Country level, 1310-2018'!AO136:AV136)","v":{"v":13.964038289282277,"d":"13.964"}},{"$f":"SUM('IV. Country level, 1310-2018'!AY136:BF136)","v":{"v":4.513188216287421,"d":"4.5132"}},{"v":9.450850072994855,"d":"9.451"},{"v":17.90290720828355,"d":"17.903"},{"$f":"'IV. Country level, 1310-2018'!U136","v":{"v":3.1134857038366723,"d":"3.113"}},{"$f":"'IV. Country level, 1310-2018'!C136","v":{"v":14.789421504446878,"d":"14.789"}},{"$nulls":5},{"v":5,"d":"5.000"},{"v":-0.14039900453789553,"d":"-0.140"},{"v":5.140399004537896,"d":"5.140"},{"$f":"'VIII. Pers. sov. loans, 1312-'!C135","v":{"v":10.819222222222225,"d":"10.819"}}]
[1443,null,{"v":13.556990582338354,"d":"13.557"},{"v":-2.6190380016762984,"d":"-2.619"},{"v":16.17602858401465,"d":"16.176"},{"v":15.895153742706745,"d":"15.895"},{"v":-4.100611052390806,"d":"-4.101"},{"v":19.995764795097553,"d":"19.996"},null,null,{"$f":"SUM('IV. Country level, 1310-2018'!AO137:AV137)","v":{"v":13.114323682201602,"d":"13.114"}},{"$f":"SUM('IV. Country level, 1310-2018'!AY137:BF137)","v":{"v":-13.912318233051241,"d":"-13.9123"}},{"$f":"K141-L141","v":{"v":27.026641915252846,"d":"27.027"}},{"v":16.160671936758888,"d":"16.161"},{"$f":"'IV. Country level, 1310-2018'!U137","v":{"v":-49.844347202387354,"d":"-49.844"}},{"$f":"'IV. Country level, 1310-2018'!C137","v":{"v":66.00501913914624,"d":"66.005"}},{"$nulls":5},{"v":5,"d":"5.000"},{"v":1.5542471465014074,"d":"1.554"},{"v":3.4457528534985924,"d":"3.446"},{"$f":"'VIII. Pers. sov. loans, 1312-'!C136","v":{"v":12.191625000000002,"d":"12.192"}}]
[1444,null,{"v":13.657657365475425,"d":"13.658"},{"v":-0.2595625205255647,"d":"-0.260"},{"v":13.917219886000987,"d":"13.917"},{"v":15.624541882820807,"d":"15.625"},{"v":-1.5147762326568643,"d":"-1.515"},{"v":17.139318115477675,"d":"17.139"},null,null,{"$f":"SUM('IV. Country level, 1310-2018'!AO138:AV138)","v":{"v":13.0672507748566,"d":"13.067"}},{"$f":"SUM('IV. Country level, 1310-2018'!AY138:BF138)","v":{"v":1.7961990338078115,"d":"1.7962"}},{"v":11.271051741048788,"d":"11.271"},{"v":15.098341836734694,"d":"15.098"},{"$f":"'IV. Country level, 1310-2018'!U138","v":{"v":19.688724093425506,"d":"19.689"}},{"$f":"'IV. Country level, 1310-2018'!C138","v":{"v":-4.590382256690813,"d":"-4.590"}},{"$nulls":5},{"v":5,"d":"5.000"},{"v":-1.1935236841917487,"d":"-1.194"},{"v":6.1935236841917485,"d":"6.194"},{"$f":"'VIII. Pers. sov. loans, 1312-'!C137","v":10.672}]
[1445,null,{"v":13.716638320324973,"d":"13.717"},{"v":-1.4484167455287478,"d":"-1.448"},{"v":15.16505506585372,"d":"15.165"},{"v":15.221286095050228,"d":"15.221"},{"v":-2.3065738320802387,"d":"-2.307"},{"v":17.527859927130468,"d":"17.528"},null,null,{"$f":"SUM('IV. Country level, 1310-2018'!AO139:AV139)","v":{"v":12.335298560788662,"d":"12.335"}},{"$f":"SUM('IV. Country level, 1310-2018'!AY139:BF139)","v":{"v":-4.669943781789632,"d":"-4.6699"}},{"v":17.005242342578292,"d":"17.005"},{"v":12.945955086580085,"d":"12.946"},{"$f":"'IV. Country level, 1310-2018'!U139","v":{"v":-15.405518621477082,"d":"-15.406"}},{"$f":"'IV. Country level, 1310-2018'!C139","v":{"v":28.351473708057167,"d":"28.351"}},{"$nulls":5},{"v":4.583333333333334,"d":"4.583"},{"v":0.0960199670888129,"d":"0.096"},{"v":4.487313366244521,"d":"4.487"},{"$f":"'VIII. Pers. sov. loans, 1312-'!C138","v":{"v":11.629999999999999,"d":"11.630"}}]
[1446,null,{"$f":"AVERAGE(K141:K147)","v":{"v":13.680964679246282,"d":"13.681"}},{"$f":"AVERAGE(L141:L147)","v":{"v":-1.5024101693596232,"d":"-1.502"}},{"$f":"AVERAGE(M141:M147)","v":{"v":15.183374848605904,"d":"15.183"}},{"$f":"AVERAGE(N141:N147)","v":{"v":14.726328543975384,"d":"14.726"}},{"$f":"AVERAGE(O141:O147)","v":{"v":-3.413486829044076,"d":"-3.413"}},{"$f":"AVERAGE(P141:P147)","v":{"v":18.139815373019463,"d":"18.140"}},null,null,{"$f":"SUM('IV. Country level, 1310-2018'!AO140:AV140)","v":{"v":14.803084801058176,"d":"14.803"}},{"$f":"SUM('IV. Country level, 1310-2018'!AY140:BF140)","v":{"v":0.579339505857399,"d":"0.5793"}},{"v":14.223745295200777,"d":"14.224"},{"v":14.2360853432282,"d":"14.236"},{"$f":"'IV. Country level, 1310-2018'!U140","v":{"v":-7.778757798891692,"d":"-7.779"}},{"$f":"'IV. Country level, 1310-2018'!C140","v":{"v":22.014843142119894,"d":"22.015"}},{"$nulls":5},{"v":5,"d":"5.000"},{"v":-1.3298667843822929,"d":"-1.330"},{"v":6.329866784382293,"d":"6.330"},{"$f":"'VIII. Pers. sov. loans, 1312-'!C139","v":{"v":13.226666666666667,"d":"13.227"}}]
[1447,null,{"v":13.71352810631168,"d":"13.714"},{"v":0.02237460711353772,"d":"0.022"},{"v":13.691153499198142,"d":"13.691"},{"v":14.474222514747145,"d":"14.474"},{"v":2.8712126353412306,"d":"2.871"},{"v":11.603009879405915,"d":"11.603"},null,null,{"$f":"SUM('IV. Country level, 1310-2018'!AO141:AV141)","v":{"v":14.441368546761334,"d":"14.441"}},{"$f":"SUM('IV. Country level, 1310-2018'!AY141:BF141)","v":{"v":8.831159969689015,"d":"8.8312"}},{"v":5.610208577072319,"d":"5.610"},{"v":15.284792718924242,"d":"15.285"},{"$f":"'IV. Country level, 1310-2018'!U141","v":{"v":29.442341588645977,"d":"29.442"}},{"$f":"'IV. Country level, 1310-2018'!C141","v":{"v":-14.157548869721735,"d":"-14.158"}},{"$nulls":5},{"v":5,"d":"5.000"},{"v":-0.1909728621529788,"d":"-0.191"},{"v":5.190972862152979,"d":"5.191"},{"$f":"'VIII. Pers. sov. loans, 1312-'!C140","v":{"v":15.91825,"d":"15.918"}}]
[1448,null,{"v":13.763383114002433,"d":"13.763"},{"v":0.3030312350366617,"d":"0.303"},{"v":13.460351878965769,"d":"13.460"},{"v":14.545739965766712,"d":"14.546"},{"v":1.5217173126009709,"d":"1.522"},{"v":13.02402265316574,"d":"13.024"},null,null,{"$f":"SUM('IV. Country level, 1310-2018'!AO142:AV142)","v":{"v":14.291103587326168,"d":"14.291"}},{"$f":"SUM('IV. Country level, 1310-2018'!AY142:BF142)","v":{"v":-7.276541929502009,"d":"-7.2765"}},{"v":21.567645516828176,"d":"21.568"},{"v":14.920248534841946,"d":"14.920"},{"$f":"'IV. Country level, 1310-2018'!U142","v":{"v":4.638055412286302,"d":"4.638"}},{"$f":"'IV. Country level, 1310-2018'!C142","v":{"v":10.282193122555643,"d":"10.282"}},{"$nulls":5},{"v":5,"d":"5.000"},{"v":-3.323705999657043,"d":"-3.324"},{"v":8.323705999657044,"d":"8.324"},{"$f":"'VIII. Pers. sov. loans, 1312-'!C141","v":{"v":15.4012,"d":"15.401"}}]
[1449,null,{"v":13.952256634515859,"d":"13.952"},{"v":1.1441212897695345,"d":"1.144"},{"v":12.808135344746322,"d":"12.808"},{"v":14.931155429819151,"d":"14.931"},{"v":4.756271280471078,"d":"4.756"},{"v":10.174884149348072,"d":"10.175"},null,null,{"$f":"SUM('IV. Country level, 1310-2018'!AO143:AV143)","v":{"v":13.714322801731429,"d":"13.714"}},{"$f":"SUM('IV. Country level, 1310-2018'!AY143:BF143)","v":{"v":4.135234249471296,"d":"4.1352"}},{"v":9.579088552260133,"d":"9.579"},{"v":14.438204350759651,"d":"14.438"},{"$f":"'IV. Country level, 1310-2018'!U143","v":{"v":-4.634905274910188,"d":"-4.635"}},{"$f":"'IV. Country level, 1310-2018'!C143","v":{"v":19.07310962566984,"d":"19.073"}},{"$nulls":5},{"v":5,"d":"5.000"},{"v":-1.5441762173302984,"d":"-1.544"},{"v":6.544176217330298,"d":"6.544"},{"$f":"'VIII. Pers. sov. loans, 1312-'!C142","v":{"v":15.583166666666665,"d":"15.583"}}]
[1450,null,{"v":13.81105572379271,"d":"13.811"},{"v":1.10195026526351,"d":"1.102"},{"v":12.709105458529203,"d":"12.709"},{"v":15.152196525911267,"d":"15.152"},{"v":5.902958351634423,"d":"5.903"},{"v":9.249238174276842,"d":"9.249"},null,null,{"$f":"SUM('IV. Country level, 1310-2018'!AO144:AV144)","v":{"v":13.342267671659387,"d":"13.342"}},{"$f":"SUM('IV. Country level, 1310-2018'!AY144:BF144)","v":{"v":-3.2388247977391167,"d":"-3.2388"}},{"v":16.581092469398506,"d":"16.581"},{"v":14.395929732161203,"d":"14.396"},{"$f":"'IV. Country level, 1310-2018'!U144","v":{"v":-5.851450951690207,"d":"-5.851"}},{"$f":"'IV. Country level, 1310-2018'!C144","v":{"v":20.24738068385141,"d":"20.247"}},{"$nulls":5},7.333,{"v":0.5648420751902697,"d":"0.565"},{"v":6.7681579248097306,"d":"6.768"},{"$f":"'VIII. Pers. sov. loans, 1312-'!C143","v":{"v":12.975999999999999,"d":"12.976"}}]
[1451,null,{"v":13.691626427710608,"d":"13.692"},{"v":-0.7386609494379748,"d":"-0.739"},{"v":14.430287377148586,"d":"14.430"},{"v":15.255763552459504,"d":"15.256"},{"v":0.7304166883830785,"d":"0.730"},{"v":14.525346864076425,"d":"14.525"},null,null,{"$f":"SUM('IV. Country level, 1310-2018'!AO145:AV145)","v":{"v":13.416235828691862,"d":"13.416"}},{"$f":"SUM('IV. Country level, 1310-2018'!AY145:BF145)","v":{"v":3.76079542926968,"d":"3.7608"}},{"v":9.655440399422183,"d":"9.655"},{"v":15.598963993871646,"d":"15.599"},{"$f":"'IV. Country level, 1310-2018'!U145","v":{"v":10.242256834243685,"d":"10.242"}},{"$f":"'IV. Country level, 1310-2018'!C145","v":{"v":5.356707159627961,"d":"5.357"}},{"$nulls":5},{"v":5.8328030303030305,"d":"5.833"},{"v":0.27396149961045485,"d":"0.274"},{"v":5.558841530692575,"d":"5.559"},{"$f":"'VIII. Pers. sov. loans, 1312-'!C144","v":{"v":12.975999999999999,"d":"12.976"}}]
[1452,null,{"v":13.601658743346388,"d":"13.602"},{"v":1.2728647867001734,"d":"1.273"},{"v":12.328793956646212,"d":"12.329"},{"v":15.409106732289343,"d":"15.409"},{"v":1.1226334112066125,"d":"1.123"},{"v":14.286473321082727,"d":"14.286"},null,null,{"$f":"SUM('IV. Country level, 1310-2018'!AO146:AV146)","v":{"v":13.657413204382648,"d":"13.657"}},{"$f":"SUM('IV. Country level, 1310-2018'!AY146:BF146)","v":{"v":1.2176866013404772,"d":"1.2177"}},{"v":12.439726603042171,"d":"12.440"},{"v":15.643863334947156,"d":"15.644"},{"$f":"'IV. Country level, 1310-2018'!U146","v":{"v":7.236359153613675,"d":"7.236"}},{"$f":"'IV. Country level, 1310-2018'!C146","v":{"v":8.407504181333481,"d":"8.408"}},{"$nulls":5},{"v":4.332606060606061,"d":"4.333"},{"v":6.567115196519785,"d":"6.567"},{"v":-2.234509135913724,"d":"-2.235"},{"$f":"'VIII. Pers. sov. loans, 1312-'!C145","v":{"v":12.975999999999999,"d":"12.976"}}]
[1453,null,{"v":13.593479500674677,"d":"13.593"},{"v":2.9013454784906743,"d":"2.901"},{"v":10.692134022184005,"d":"10.692"},{"v":15.63936892254363,"d":"15.639"},{"v":7.147868407253747,"d":"7.148"},{"v":8.491500515289882,"d":"8.492"},null,null,{"$f":"SUM('IV. Country level, 1310-2018'!AO147:AV147)","v":{"v":13.81467842599615,"d":"13.815"}},{"$f":"SUM('IV. Country level, 1310-2018'!AY147:BF147)","v":{"v":0.28414233431522773,"d":"0.2841"}},{"v":13.530536091680922,"d":"13.531"},{"v":15.783373015873018,"d":"15.783"},{"$f":"'IV. Country level, 1310-2018'!U147","v":{"v":0.24805169925171405,"d":"0.248"}},{"$f":"'IV. Country level, 1310-2018'!C147","v":{"v":15.535321316621303,"d":"15.535"}},{"$nulls":5},{"v":4.555070707070707,"d":"4.555"},{"v":2.380859547536055,"d":"2.381"},{"v":2.1742111595346514,"d":"2.174"},{"$f":"'VIII. Pers. sov. loans, 1312-'!C146","v":{"v":12.975999999999999,"d":"12.976"}}]
[1454,null,{"v":13.639945273717954,"d":"13.640"},{"v":2.838105004602338,"d":"2.838"},{"v":10.801840269115615,"d":"10.802"},{"v":15.954083042438967,"d":"15.954"},{"v":7.147842279224327,"d":"7.148"},{"v":8.806240763214642,"d":"8.806"},null,null,{"$f":"SUM('IV. Country level, 1310-2018'!AO148:AV148)","v":{"v":13.605363474186612,"d":"13.605"}},{"$f":"SUM('IV. Country level, 1310-2018'!AY148:BF148)","v":{"v":-4.053118533221379,"d":"-4.0531"}},{"v":17.65848200740799,"d":"17.658"},{"v":16.00976190476191,"d":"16.010"},{"$f":"'IV. Country level, 1310-2018'!U148","v":{"v":-6.7654500541134315,"d":"-6.765"}},{"$f":"'IV. Country level, 1310-2018'!C148","v":{"v":22.77521195887534,"d":"22.775"}},{"$nulls":5},{"v":5.555555555555555,"d":"5.556"},{"v":-5.806689629742734,"d":"-5.807"},{"v":11.362245185298288,"d":"11.362"},{"$f":"'VIII. Pers. sov. loans, 1312-'!C147","v":{"v":11.999799999999999,"d":"12.000"}}]
[1455,null,{"v":13.601366545310466,"d":"13.601"},{"v":0.5360859896558706,"d":"0.536"},{"v":13.065280555654594,"d":"13.065"},{"v":15.8628619956954,"d":"15.863"},{"v":1.749972045595792,"d":"1.750"},{"v":14.112889950099609,"d":"14.113"},null,null,{"$f":"SUM('IV. Country level, 1310-2018'!AO149:AV149)","v":{"v":13.661329796776611,"d":"13.661"}},{"$f":"SUM('IV. Country level, 1310-2018'!AY149:BF149)","v":{"v":6.804138223465029,"d":"6.8041"}},{"v":6.8571915733115825,"d":"6.857"},{"$f":"P153+O153","v":{"v":15.9936507936508,"d":"15.994"}},{"$f":"'IV. Country level, 1310-2018'!U149","v":{"v":7.383572472051042,"d":"7.384"}},{"$f":"'IV. Country level, 1310-2018'!C149","v":{"v":8.610078321599758,"d":"8.610"}},{"$nulls":5},{"v":5,"d":"5.000"},{"v":2.271584530147886,"d":"2.272"},{"$f":"V153-W153","v":{"v":2.728415469852114,"d":"2.728"}},{"$f":"'VIII. Pers. sov. loans, 1312-'!C148","v":{"v":11.6665,"d":"11.667"}}]
[1456,null,{"v":13.47435351608976,"d":"13.474"},{"v":-0.36876569039308343,"d":"-0.369"},{"v":13.843119206482841,"d":"13.843"},{"v":15.560997488075694,"d":"15.561"},{"v":-2.8906378246063227,"d":"-2.891"},{"v":18.451635312682015,"d":"18.452"},null,null,{"$f":"SUM('IV. Country level, 1310-2018'!AO150:AV150)","v":{"v":13.657068103029477,"d":"13.657"}},{"$f":"SUM('IV. Country level, 1310-2018'!AY150:BF150)","v":{"v":15.5345990920048,"d":"15.5346"}},{"v":-1.8775309889753231,"d":"-1.878"},{"$f":"P154+O154","v":{"v":16.050039682539683,"d":"16.050"}},{"$f":"'IV. Country level, 1310-2018'!U150","v":{"v":37.54173969741976,"d":"37.542"}},{"$f":"'IV. Country level, 1310-2018'!C150","v":{"v":-21.491700014880074,"d":"-21.492"}},{"$nulls":5},{"v":5.000000000000001,"d":"5.000"},{"v":1.674511247795598,"d":"1.675"},{"v":3.3254887522044028,"d":"3.325"},{"$f":"'VIII. Pers. sov. loans, 1312-'!C149","v":{"v":12.914333333333332,"d":"12.914"}}]
[1457,null,{"v":13.23799730560697,"d":"13.238"},{"v":-0.8924102211333022,"d":"-0.892"},{"v":14.13040752674027,"d":"14.130"},{"v":15.00247375674408,"d":"15.002"},{"v":-3.8346832598311624,"d":"-3.835"},{"v":18.837157016575244,"d":"18.837"},null,null,{"$f":"SUM('IV. Country level, 1310-2018'!AO151:AV151)","v":{"v":13.667528082962317,"d":"13.668"}},{"$f":"SUM('IV. Country level, 1310-2018'!AY151:BF151)","v":{"v":-3.6815081149574684,"d":"-3.6815"}},{"v":17.349036197919787,"d":"17.349"},{"v":16.598928571428573,"d":"16.599"},{"$f":"'IV. Country level, 1310-2018'!U151","v":{"v":-5.851633847896152,"d":"-5.852"}},{"$f":"'IV. Country level, 1310-2018'!C151","v":{"v":22.450562419324726,"d":"22.451"}},{"$nulls":5},{"v":5.8240740740740735,"d":"5.824"},{"v":1.0339568953974125,"d":"1.034"},{"v":4.790117178676661,"d":"4.790"},{"$f":"'VIII. Pers. sov. loans, 1312-'!C150","v":{"v":15.41,"d":"15.410"}}]
[1458,null,{"v":13.059085528255741,"d":"13.059"},{"v":-0.32777010250524097,"d":"-0.328"},{"v":13.38685563076098,"d":"13.387"},{"v":14.5228138927985,"d":"14.523"},{"v":-2.9136014027802912,"d":"-2.914"},{"v":17.43641529557879,"d":"17.436"},null,null,{"$f":"SUM('IV. Country level, 1310-2018'!AO152:AV152)","v":{"v":13.146184729839428,"d":"13.146"}},{"$f":"SUM('IV. Country level, 1310-2018'!AY152:BF152)","v":{"v":-12.353337675355597,"d":"-12.3533"}},{"v":25.499522405195023,"d":"25.500"},{"v":14.960416666666667,"d":"14.960"},{"$f":"'IV. Country level, 1310-2018'!U152","v":{"v":-27.54283480115606,"d":"-27.543"}},{"$f":"'IV. Country level, 1310-2018'!C152","v":{"v":42.50325146782273,"d":"42.503"}},{"$nulls":5},{"v":7.5,"d":"7.500"},{"v":5.651375020388623,"d":"5.651"},{"v":1.848624979611377,"d":"1.849"},{"$f":"'VIII. Pers. sov. loans, 1312-'!C151","v":{"v":15.41,"d":"15.410"}}]
[1459,null,{"v":12.866534209497933,"d":"12.867"},{"v":-1.2914226557714081,"d":"-1.291"},{"v":14.157956865269341,"d":"14.158"},{"v":14.081557279041885,"d":"14.082"},{"v":-3.458910065517206,"d":"-3.459"},{"v":17.540467344559087,"d":"17.540"},null,null,{"$f":"SUM('IV. Country level, 1310-2018'!AO153:AV153)","v":{"v":12.768321999837715,"d":"12.768"}},{"$f":"SUM('IV. Country level, 1310-2018'!AY153:BF153)","v":{"v":-5.116275159002198,"d":"-5.1163"}},{"v":17.884597158839913,"d":"17.885"},{"v":13.530811781609195,"d":"13.531"},{"$f":"'IV. Country level, 1310-2018'!U153","v":{"v":-25.247909937801126,"d":"-25.248"}},{"$f":"'IV. Country level, 1310-2018'!C153","v":{"v":38.77872171941032,"d":"38.779"}},{"$nulls":5},{"v":5,"d":"5.000"},{"v":-1.3127122318556843,"d":"-1.313"},{"v":6.312712231855684,"d":"6.313"},{"$f":"'VIII. Pers. sov. loans, 1312-'!C152","v":{"v":15.41,"d":"15.410"}}]
[1460,null,{"v":12.704394950984007,"d":"12.704"},{"v":-2.697724736947803,"d":"-2.698"},{"v":15.402119687931807,"d":"15.402"},{"v":13.667632486902807,"d":"13.668"},{"v":-3.591117470693941,"d":"-3.591"},{"v":17.25874995759675,"d":"17.259"},null,null,{"$f":"SUM('IV. Country level, 1310-2018'!AO154:AV154)","v":{"v":12.160184952616625,"d":"12.160"}},{"$f":"SUM('IV. Country level, 1310-2018'!AY154:BF154)","v":{"v":-3.3813693808663006,"d":"-3.3814"}},{"v":15.541554333482924,"d":"15.542"},{"v":11.873706896551722,"d":"11.874"},{"$f":"'IV. Country level, 1310-2018'!U154","v":{"v":-6.360266347322169,"d":"-6.360"}},{"$f":"'IV. Country level, 1310-2018'!C154","v":{"v":18.23397324387389,"d":"18.234"}},{"$nulls":5},{"v":2.5,"d":"2.500"},{"v":-1.467411745425456,"d":"-1.467"},{"v":3.967411745425456,"d":"3.967"},{"$f":"'VIII. Pers. sov. loans, 1312-'!C153","v":{"v":15.41,"d":"15.410"}}]
[1461,null,{"v":12.52372102415741,"d":"12.524"},{"v":-1.3050835670468028,"d":"-1.305"},{"v":13.828804591204209,"d":"13.829"},{"v":13.181753802095551,"d":"13.182"},{"v":1.0832864805011095,"d":"1.083"},{"v":12.09846732159444,"d":"12.098"},null,null,{"$f":"SUM('IV. Country level, 1310-2018'!AO155:AV155)","v":{"v":12.352981032728014,"d":"12.353"}},{"$f":"SUM('IV. Country level, 1310-2018'!AY155:BF155)","v":{"v":-0.10063770282495299,"d":"-0.1006"}},{"v":12.453618735552967,"d":"12.454"},{"v":12.652142857142856,"d":"12.652"},{"$f":"'IV. Country level, 1310-2018'!U155","v":{"v":-0.31787705475733063,"d":"-0.318"}},{"$f":"'IV. Country level, 1310-2018'!C155","v":{"v":12.970019911900186,"d":"12.970"}},{"$nulls":5},{"v":5,"d":"5.000"},{"v":-2.432647485101982,"d":"-2.433"},{"v":7.432647485101982,"d":"7.433"},{"$f":"'VIII. Pers. sov. loans, 1312-'!C154","v":{"v":15.41,"d":"15.410"}}]
[1462,null,{"v":12.416675317414347,"d":"12.417"},{"v":0.9153886887116799,"d":"0.915"},{"v":11.501286628702664,"d":"11.501"},{"v":12.902294582237394,"d":"12.902"},{"v":6.062901553950466,"d":"6.063"},{"v":6.839393028286929,"d":"6.839"},null,null,{"$f":"SUM('IV. Country level, 1310-2018'!AO156:AV156)","v":{"v":12.31347056547196,"d":"12.313"}},{"$f":"SUM('IV. Country level, 1310-2018'!AY156:BF156)","v":{"v":0.058570350601858,"d":"0.0586"}},{"v":12.254900214870101,"d":"12.255"},{"v":12.904854497354497,"d":"12.905"},{"$f":"'IV. Country level, 1310-2018'!U156","v":{"v":3.5664118328926424,"d":"3.566"}},{"$f":"'IV. Country level, 1310-2018'!C156","v":{"v":9.338442664461855,"d":"9.338"}},{"$nulls":5},{"v":8.5,"d":"8.500"},{"v":-3.7167081886610402,"d":"-3.717"},{"v":12.216708188661041,"d":"12.217"},{"$f":"'VIII. Pers. sov. loans, 1312-'!C155","v":{"v":15.41,"d":"15.410"}}]
[1463,null,{"v":12.449644777908286,"d":"12.450"},{"v":1.1006177736705578,"d":"1.101"},{"v":11.349027004237726,"d":"11.349"},{"v":13.13038137841304,"d":"13.130"},{"v":7.171156172193185,"d":"7.171"},{"v":5.959225206219855,"d":"5.959"},null,null,{"$f":"SUM('IV. Country level, 1310-2018'!AO157:AV157)","v":{"v":12.522093293431976,"d":"12.522"}},{"$f":"SUM('IV. Country level, 1310-2018'!AY157:BF157)","v":{"v":5.690484523770039,"d":"5.6905"}},{"v":6.831608769661936,"d":"6.832"},{"v":13.15256613756614,"d":"13.153"},{"$f":"'IV. Country level, 1310-2018'!U157","v":{"v":36.61628786118261,"d":"36.616"}},{"$f":"'IV. Country level, 1310-2018'!C157","v":{"v":-23.463721723616473,"d":"-23.464"}},{"$nulls":5},{"v":5,"d":"5.000"},{"v":-3.413646029403757,"d":"-3.414"},{"v":8.413646029403758,"d":"8.414"},{"$f":"'VIII. Pers. sov. loans, 1312-'!C156","v":{"v":15.109444444444444,"d":"15.109"}}]
[1464,null,{"v":12.592409478773407,"d":"12.592"},{"v":1.8090460209676753,"d":"1.809"},{"v":10.783363457805732,"d":"10.783"},{"v":13.685923250334223,"d":"13.686"},{"v":7.081874037056702,"d":"7.082"},{"v":6.60404921327752,"d":"6.604"},null,null,{"$f":"SUM('IV. Country level, 1310-2018'!AO158:AV158)","v":{"v":12.402810595176144,"d":"12.403"}},{"$f":"SUM('IV. Country level, 1310-2018'!AY158:BF158)","v":{"v":6.066980074349535,"d":"6.0670"}},{"v":6.335830520826609,"d":"6.336"},{"v":13.197777777777778,"d":"13.198"},{"$f":"'IV. Country level, 1310-2018'!U158","v":{"v":26.8691938104692,"d":"26.869"}},{"$f":"'IV. Country level, 1310-2018'!C158","v":{"v":-13.67141603269142,"d":"-13.671"}},{"$nulls":5},{"v":5.166666666666667,"d":"5.167"},{"v":-3.5077765621586896,"d":"-3.508"},{"v":8.674443228825357,"d":"8.674"},{"$f":"'VIII. Pers. sov. loans, 1312-'!C157","v":{"v":14.808888888888887,"d":"14.809"}}]
[1465,null,{"v":12.712775910515443,"d":"12.713"},{"v":1.8620739333012264,"d":"1.862"},{"v":10.850701977214214,"d":"10.851"},{"v":14.18846104322916,"d":"14.188"},{"v":6.751851436617636,"d":"6.752"},{"v":7.436609606611522,"d":"7.437"},null,null,{"$f":"SUM('IV. Country level, 1310-2018'!AO159:AV159)","v":{"v":12.396864782637989,"d":"12.397"}},{"$f":"SUM('IV. Country level, 1310-2018'!AY159:BF159)","v":{"v":3.1899681149537793,"d":"3.1900"}},{"v":9.206896667684209,"d":"9.207"},{"v":13.004202127659575,"d":"13.004"},{"$f":"'IV. Country level, 1310-2018'!U159","v":{"v":7.314470712989434,"d":"7.314"}},{"$f":"'IV. Country level, 1310-2018'!C159","v":{"v":5.689731414670141,"d":"5.690"}},{"$nulls":5},{"v":5.333333333333334,"d":"5.333"},{"v":2.073909207760131,"d":"2.074"},{"v":3.259424125573203,"d":"3.259"},{"$f":"'VIII. Pers. sov. loans, 1312-'!C158","v":{"v":14.508333333333331,"d":"14.508"}}]
[1466,null,{"v":12.85099112768624,"d":"12.851"},{"v":2.203624220500733,"d":"2.204"},{"v":10.647366907185505,"d":"10.647"},{"v":14.713098231437774,"d":"14.713"},{"v":5.7560434977994115,"d":"5.756"},{"v":8.957054733638364,"d":"8.957"},null,null,{"$f":"SUM('IV. Country level, 1310-2018'!AO160:AV160)","v":{"v":12.99910822329529,"d":"12.999"}},{"$f":"SUM('IV. Country level, 1310-2018'!AY160:BF160)","v":{"v":-3.819671564290054,"d":"-3.8197"}},{"v":16.818779787585342,"d":"16.819"},{"v":15.127419354838711,"d":"15.127"},{"$f":"'IV. Country level, 1310-2018'!U160","v":{"v":-17.49012761010209,"d":"-17.490"}},{"$f":"'IV. Country level, 1310-2018'!C160","v":{"v":32.6175469649408,"d":"32.618"}},{"$nulls":5},{"v":5.833333333333333,"d":"5.833"},{"v":3.550264193642852,"d":"3.550"},{"v":2.283069139690481,"d":"2.283"},{"$f":"'VIII. Pers. sov. loans, 1312-'!C159","v":{"v":14.207777777777775,"d":"14.208"}}]
[1467,null,{"v":12.97125066698888,"d":"12.971"},{"v":0.45522912229241363,"d":"0.455"},{"v":12.516021544696466,"d":"12.516"},{"v":15.260549100674357,"d":"15.261"},{"v":-1.039497941522797,"d":"-1.039"},{"v":16.300047042197157,"d":"16.300"},null,null,{"$f":"SUM('IV. Country level, 1310-2018'!AO161:AV161)","v":{"v":13.159537858672486,"d":"13.160"}},{"$f":"SUM('IV. Country level, 1310-2018'!AY161:BF161)","v":{"v":1.5776283502135233,"d":"1.5776"}},{"v":11.581909508458963,"d":"11.582"},{"v":15.762500000000001,"d":"15.763"},{"$f":"'IV. Country level, 1310-2018'!U161","v":{"v":-6.985241293277548,"d":"-6.985"}},{"$f":"'IV. Country level, 1310-2018'!C161","v":{"v":22.74774129327755,"d":"22.748"}},{"$nulls":5},{"v":4.7219444444444445,"d":"4.722"},{"v":0.5169663415816151,"d":"0.517"},{"v":4.204978102862829,"d":"4.205"},{"$f":"'VIII. Pers. sov. loans, 1312-'!C160","v":{"v":13.907222222222218,"d":"13.907"}}]
[1468,null,{"v":13.14527576455391,"d":"13.145"},{"v":-0.30436744173574815,"d":"-0.304"},{"v":13.44964320628966,"d":"13.450"},{"v":15.95242680630206,"d":"15.952"},{"v":-4.654821311882792,"d":"-4.655"},{"v":20.607248118184856,"d":"20.607"},null,null,{"$f":"SUM('IV. Country level, 1310-2018'!AO162:AV162)","v":{"v":13.195546054922247,"d":"13.196"}},{"$f":"SUM('IV. Country level, 1310-2018'!AY162:BF162)","v":{"v":0.27055768350990245,"d":"0.2706"}},{"v":12.924988371412343,"d":"12.925"},{"v":16.169907407407408,"d":"16.170"},{"$f":"'IV. Country level, 1310-2018'!U162","v":{"v":-2.6280352578307986,"d":"-2.628"}},{"$f":"'IV. Country level, 1310-2018'!C162","v":{"v":18.797942665238207,"d":"18.798"}},{"$nulls":5},{"v":6.166666666666667,"d":"6.167"},{"v":-1.3943759265489657,"d":"-1.394"},{"v":7.561042593215633,"d":"7.561"},{"$f":"'VIII. Pers. sov. loans, 1312-'!C161","v":{"v":13.606666666666662,"d":"13.607"}}]
[1469,null,{"v":13.369243328420566,"d":"13.369"},{"v":-0.8208022643200067,"d":"-0.821"},{"v":14.190045592740573,"d":"14.190"},{"v":16.82284381836801,"d":"16.823"},{"v":-5.084178463356112,"d":"-5.084"},{"v":21.907022281724124,"d":"21.907"},null,null,{"$f":"SUM('IV. Country level, 1310-2018'!AO163:AV163)","v":{"v":13.280977085667551,"d":"13.281"}},{"$f":"SUM('IV. Country level, 1310-2018'!AY163:BF163)","v":{"v":2.4494223609984056,"d":"2.4494"}},{"v":10.831554724669147,"d":"10.832"},{"v":16.577314814814812,"d":"16.577"},{"$f":"'IV. Country level, 1310-2018'!U163","v":{"v":-3.40424373883493,"d":"-3.404"}},{"$f":"'IV. Country level, 1310-2018'!C163","v":{"v":19.98155855364974,"d":"19.982"}},{"$nulls":5},{"v":7.708333333333334,"d":"7.708"},{"v":9.259761227218153,"d":"9.260"},{"v":-1.551427893884819,"d":"-1.551"},{"$f":"'VIII. Pers. sov. loans, 1312-'!C162","v":{"v":13.306111111111106,"d":"13.306"}}]
[1470,null,{"v":13.461809623025998,"d":"13.462"},{"v":1.6354445985491777,"d":"1.635"},{"v":11.826365024476818,"d":"11.826"},{"v":17.389944083694083,"d":"17.390"},{"v":1.9050830043084999,"d":"1.905"},{"v":15.484861079385585,"d":"15.485"},null,null,{"$f":"SUM('IV. Country level, 1310-2018'!AO164:AV164)","v":{"v":13.363910068550437,"d":"13.364"}},{"$f":"SUM('IV. Country level, 1310-2018'!AY164:BF164)","v":{"v":-6.548281163688195,"d":"-6.5483"}},{"v":19.912191232238634,"d":"19.912"},{"v":16.984722222222224,"d":"16.985"},{"$f":"'IV. Country level, 1310-2018'!U164","v":{"v":-10.952502214072844,"d":"-10.953"}},{"$f":"'IV. Country level, 1310-2018'!C164","v":{"v":27.937224436295068,"d":"27.937"}},{"$nulls":5},{"v":3.3910891089108914,"d":"3.391"},{"v":-6.894307358897166,"d":"-6.894"},{"v":10.285396467808058,"d":"10.285"},{"$f":"'VIII. Pers. sov. loans, 1312-'!C163","v":{"v":13.00555555555555,"d":"13.006"}}]
[1471,null,{"v":13.526141429284928,"d":"13.526"},{"v":2.452418125238071,"d":"2.452"},{"v":11.073723304046856,"d":"11.074"},{"v":17.866318542568543,"d":"17.866"},{"v":6.477848853221,"d":"6.478"},{"v":11.388469689347543,"d":"11.388"},null,null,{"$f":"SUM('IV. Country level, 1310-2018'!AO165:AV165)","v":{"v":13.620986278131367,"d":"13.621"}},{"$f":"SUM('IV. Country level, 1310-2018'!AY165:BF165)","v":{"v":0.7498041261524011,"d":"0.7498"}},{"v":12.871182151978966,"d":"12.871"},{"v":18.040921717171717,"d":"18.041"},{"$f":"'IV. Country level, 1310-2018'!U165","v":{"v":1.5619302179492325,"d":"1.562"}},{"$f":"'IV. Country level, 1310-2018'!C165","v":{"v":16.478991499222484,"d":"16.479"}},{"$nulls":5},{"v":3.0000000000000004,"d":"3.000"},{"v":-5.104663686303132,"d":"-5.105"},{"v":8.104663686303132,"d":"8.105"},{"$f":"'VIII. Pers. sov. loans, 1312-'!C164","v":{"v":12.704999999999993,"d":"12.705"}}]
[1472,null,{"v":13.618583318400168,"d":"13.619"},{"v":1.8740686110453086,"d":"1.874"},{"v":11.744514707354858,"d":"11.745"},{"v":18.299349930366017,"d":"18.299"},{"v":6.328995329864071,"d":"6.329"},{"v":11.970354600501947,"d":"11.970"},null,null,{"$f":"SUM('IV. Country level, 1310-2018'!AO166:AV166)","v":{"v":13.964637729704592,"d":"13.965"}},{"$f":"SUM('IV. Country level, 1310-2018'!AY166:BF166)","v":{"v":-0.4250756431360302,"d":"-0.4251"}},{"v":14.389713372840621,"d":"14.390"},{"v":19.097121212121213,"d":"19.097"},{"$f":"'IV. Country level, 1310-2018'!U166","v":{"v":4.308970652676187,"d":"4.309"}},{"$f":"'IV. Country level, 1310-2018'!C166","v":{"v":14.788150559445025,"d":"14.788"}},{"$nulls":5},{"v":5,"d":"5.000"},{"v":-1.270566506611085,"d":"-1.271"},{"v":6.270566506611085,"d":"6.271"},{"$f":"'VIII. Pers. sov. loans, 1312-'!C165","v":{"v":12.404444444444437,"d":"12.404"}}]
[1473,null,{"v":13.675860750769983,"d":"13.676"},{"v":1.2738397943030129,"d":"1.274"},{"v":12.402020956466968,"d":"12.402"},{"v":18.673304956821045,"d":"18.673"},{"v":5.556057947244686,"d":"5.556"},{"v":13.11724700957636,"d":"13.117"},null,null,{"$f":"SUM('IV. Country level, 1310-2018'!AO167:AV167)","v":{"v":13.647072285533293,"d":"13.647"}},{"$f":"SUM('IV. Country level, 1310-2018'!AY167:BF167)","v":{"v":13.374056475794236,"d":"13.3741"}},{"v":0.27301580973905715,"d":"0.273"},{"v":19.097121212121213,"d":"19.097"},{"$f":"'IV. Country level, 1310-2018'!U167","v":{"v":31.4347026635502,"d":"31.435"}},{"$f":"'IV. Country level, 1310-2018'!C167","v":{"v":-12.337581451428989,"d":"-12.338"}},{"$nulls":5},{"v":6.4444444444444455,"d":"6.444"},{"v":-0.7575501446814977,"d":"-0.758"},{"v":7.201994589125944,"d":"7.202"},{"$f":"'VIII. Pers. sov. loans, 1312-'!C166","v":{"v":12.10388888888888,"d":"12.104"}}]
[1474,null,{"v":13.620856109939828,"d":"13.621"},{"v":3.0064075204541214,"d":"3.006"},{"v":10.614448589485706,"d":"10.614"},{"v":18.704892258408346,"d":"18.705"},{"v":8.411523652962675,"d":"8.412"},{"v":10.293368605445673,"d":"10.293"},null,null,{"$f":"SUM('IV. Country level, 1310-2018'!AO168:AV168)","v":{"v":13.609860502484992,"d":"13.610"}},{"$f":"SUM('IV. Country level, 1310-2018'!AY168:BF168)","v":{"v":7.296443037035775,"d":"7.2964"}},{"v":6.313417465449216,"d":"6.313"},{"v":19.097121212121213,"d":"19.097"},{"$f":"'IV. Country level, 1310-2018'!U168","v":{"v":25.024119649109956,"d":"25.024"}},{"$f":"'IV. Country level, 1310-2018'!C168","v":{"v":-5.926998436988743,"d":"-5.927"}},{"$nulls":5},{"v":3.6537037037037035,"d":"3.654"},{"v":-4.852507251012661,"d":"-4.853"},{"v":8.506210954716364,"d":"8.506"},{"$f":"'VIII. Pers. sov. loans, 1312-'!C167","v":{"v":11.803333333333324,"d":"11.803"}}]
[1475,null,{"v":13.468908008059698,"d":"13.469"},{"v":2.521010699317075,"d":"2.521"},{"v":10.947897308742622,"d":"10.948"},{"v":18.301427251193335,"d":"18.301"},{"v":5.962407044130031,"d":"5.962"},{"v":12.33902020706331,"d":"12.339"},null,null,{"$f":"SUM('IV. Country level, 1310-2018'!AO169:AV169)","v":{"v":13.842639278728942,"d":"13.843"}},{"$f":"SUM('IV. Country level, 1310-2018'!AY169:BF169)","v":{"v":-3.7778889158394326,"d":"-3.7779"}},{"v":17.620528194568376,"d":"17.621"},{"v":19.201127121989735,"d":"19.201"},{"$f":"'IV. Country level, 1310-2018'!U169","v":{"v":-3.670009921329305,"d":"-3.670"}},{"$f":"'IV. Country level, 1310-2018'!C169","v":{"v":22.87113704331904,"d":"22.871"}},{"$nulls":5},{"v":5,"d":"5.000"},{"v":2.283844169037386,"d":"2.284"},{"v":2.716155830962614,"d":"2.716"},{"$f":"'VIII. Pers. sov. loans, 1312-'!C168","v":{"v":11.502777777777768,"d":"11.503"}}]
[1476,null,{"v":13.172809756143307,"d":"13.173"},{"v":1.5102851801359845,"d":"1.510"},{"v":11.662524576007318,"d":"11.663"},{"v":17.46290993517602,"d":"17.463"},{"v":2.4413871420982964,"d":"2.441"},{"v":15.021522793077727,"d":"15.022"},null,null,{"$f":"SUM('IV. Country level, 1310-2018'!AO170:AV170)","v":{"v":13.68191911225625,"d":"13.682"}},{"$f":"SUM('IV. Country level, 1310-2018'!AY170:BF170)","v":{"v":-1.7521793561976626,"d":"-1.7522"}},{"v":15.434098468453913,"d":"15.434"},19.195,{"$f":"'IV. Country level, 1310-2018'!U170","v":{"v":-8.814805417170627,"d":"-8.815"}},{"$f":"'IV. Country level, 1310-2018'!C170","v":{"v":28.009805417170625,"d":"28.010"}},{"$nulls":5},{"v":5,"d":"5.000"},{"v":-0.22771410965345373,"d":"-0.228"},{"v":5.227714109653454,"d":"5.228"},{"$f":"'VIII. Pers. sov. loans, 1312-'!C169","v":{"v":11.202222222222211,"d":"11.202"}}]
[1477,null,{"v":12.809374897465586,"d":"12.809"},{"v":-1.3117372963268221,"d":"-1.312"},{"v":14.12111219379241,"d":"14.121"},{"v":16.34022595249204,"d":"16.340"},{"v":-3.341198036849208,"d":"-3.341"},{"v":19.681423989341248,"d":"19.681"},null,null,{"$f":"SUM('IV. Country level, 1310-2018'!AO171:AV171)","v":{"v":12.978877582739365,"d":"12.979"}},{"$f":"SUM('IV. Country level, 1310-2018'!AY171:BF171)","v":{"v":5.579692919369567,"d":"5.5797"}},{"v":7.399184663369798,"d":"7.399"},{"v":17.205833333333334,"d":"17.206"},{"$f":"'IV. Country level, 1310-2018'!U171","v":{"v":9.035757725953074,"d":"9.036"}},{"$f":"'IV. Country level, 1310-2018'!C171","v":{"v":8.17007560738026,"d":"8.170"}},{"$nulls":5},{"v":5,"d":"5.000"},{"v":10.450572382776164,"d":"10.451"},{"v":-5.450572382776164,"d":"-5.451"},{"$f":"'VIII. Pers. sov. loans, 1312-'!C170","v":{"v":10.901666666666655,"d":"10.902"}}]
[1478,null,{"v":12.364596794059649,"d":"12.365"},{"v":-0.7287051296609702,"d":"-0.729"},{"v":13.09330192372062,"d":"13.093"},{"v":14.93337530314139,"d":"14.933"},{"v":-6.152554034358082,"d":"-6.153"},{"v":21.085929337499472,"d":"21.086"},null,null,{"$f":"SUM('IV. Country level, 1310-2018'!AO172:AV172)","v":{"v":12.557349564970455,"d":"12.557"}},{"$f":"SUM('IV. Country level, 1310-2018'!AY172:BF172)","v":{"v":-2.6479736218069245,"d":"-2.6480"}},{"v":15.20532318677738,"d":"15.205"},{"v":15.216666666666667,"d":"15.217"},{"$f":"'IV. Country level, 1310-2018'!U172","v":{"v":-15.581886043879278,"d":"-15.582"}},{"$f":"'IV. Country level, 1310-2018'!C172","v":{"v":30.798552710545945,"d":"30.799"}},{"$nulls":5},{"v":5,"d":"5.000"},{"v":-3.7949706304174167,"d":"-3.795"},{"v":8.794970630417417,"d":"8.795"},{"$f":"'VIII. Pers. sov. loans, 1312-'!C171","v":{"v":10.601111111111098,"d":"10.601"}}]
[1479,null,{"v":11.80421525027507,"d":"11.804"},{"v":1.7385117799315954,"d":"1.739"},{"v":10.065703470343477,"d":"10.066"},{"v":13.227500000000001,"d":"13.228"},{"v":-3.53691593321093,"d":"-3.537"},{"v":16.76441593321093,"d":"16.764"},null,null,{"$f":"SUM('IV. Country level, 1310-2018'!AO173:AV173)","v":{"v":11.891949966289838,"d":"11.892"}},{"$f":"SUM('IV. Country level, 1310-2018'!AY173:BF173)","v":{"v":-7.500154277403666,"d":"-7.5002"}},{"v":19.392104243693502,"d":"19.392"},{"v":13.227499999999996,"d":"13.228"},{"$f":"'IV. Country level, 1310-2018'!U173","v":{"v":-20.338168661545954,"d":"-20.338"}},{"$f":"'IV. Country level, 1310-2018'!C173","v":{"v":33.56566866154595,"d":"33.566"}},{"$nulls":5},{"v":7.500000000000001,"d":"7.500"},{"v":1.4338133044013108,"d":"1.434"},{"v":6.06618669559869,"d":"6.066"},{"$f":"'VIII. Pers. sov. loans, 1312-'!C172","v":{"v":10.300555555555542,"d":"10.301"}}]
[1480,null,{"v":11.27985262542539,"d":"11.280"},{"v":3.253633210700472,"d":"3.254"},{"v":8.026219414724919,"d":"8.026"},{"v":11.653452380952379,"d":"11.653"},{"v":5.424048739908635,"d":"5.424"},{"v":6.229403641043746,"d":"6.229"},null,null,{"$f":"SUM('IV. Country level, 1310-2018'!AO174:AV174)","v":{"v":11.103028274789255,"d":"11.103"}},{"$f":"SUM('IV. Country level, 1310-2018'!AY174:BF174)","v":{"v":-6.380100859445413,"d":"-6.3801"}},{"v":17.483129134234666,"d":"17.483"},{"v":11.238333333333332,"d":"11.238"},{"$f":"'IV. Country level, 1310-2018'!U174","v":{"v":-9.043393589082322,"d":"-9.043"}},{"$f":"'IV. Country level, 1310-2018'!C174","v":{"v":20.281726922415654,"d":"20.282"}},{"$nulls":5},{"v":5,"d":"5.000"},{"v":-1.4086096546333609,"d":"-1.409"},{"v":6.408609654633361,"d":"6.409"},{"$f":"'VIII. Pers. sov. loans, 1312-'!C173","v":{"v":10,"d":"10.000"}}]
[1481,null,{"v":10.820422132423724,"d":"10.820"},{"v":2.1314422971049583,"d":"2.131"},{"v":8.688979835318767,"d":"8.689"},{"v":10.36357142857143,"d":"10.364"},{"v":5.528951362502818,"d":"5.529"},{"v":4.834620066068611,"d":"4.835"},null,null,{"$f":"SUM('IV. Country level, 1310-2018'!AO175:AV175)","v":{"v":10.496413778643433,"d":"10.496"}},{"$f":"SUM('IV. Country level, 1310-2018'!AY175:BF175)","v":{"v":11.37766820369674,"d":"11.3777"}},{"v":-0.8812544250533065,"d":"-0.881"},{"v":9.249166666666666,"d":"9.249"},{"$f":"'IV. Country level, 1310-2018'!U175","v":{"v":5.344627666547835,"d":"5.345"}},{"$f":"'IV. Country level, 1310-2018'!C175","v":{"v":3.904539000118831,"d":"3.905"}},{"$nulls":5},{"v":6.25,"d":"6.250"},{"v":3.2669903197300134,"d":"3.267"},{"v":2.9830096802699866,"d":"2.983"},{"$f":"'VIII. Pers. sov. loans, 1312-'!C174","v":{"v":8.686868686868687,"d":"8.687"}}]
[1482,null,{"v":10.416769702815916,"d":"10.417"},{"v":0.9318230865787093,"d":"0.932"},{"v":9.48494661623721,"d":"9.485"},{"v":9.357857142857142,"d":"9.358"},{"v":2.311261480415372,"d":"2.311"},{"v":7.04659566244177,"d":"7.047"},null,null,{"$f":"SUM('IV. Country level, 1310-2018'!AO176:AV176)","v":{"v":9.919968472236906,"d":"9.920"}},{"$f":"SUM('IV. Country level, 1310-2018'!AY176:BF176)","v":{"v":13.492629451308527,"d":"13.4926"}},{"v":-3.572660979071621,"d":"-3.573"},{"v":7.260000000000002,"d":"7.260"},{"$f":"'IV. Country level, 1310-2018'!U176","v":{"v":14.639456786700764,"d":"14.639"}},{"$f":"'IV. Country level, 1310-2018'!C176","v":{"v":-7.3794567867007625,"d":"-7.379"}},{"$nulls":5},{"v":4.946236559139785,"d":"4.946"},{"v":6.351497186665508,"d":"6.351"},{"v":-1.4052606275257231,"d":"-1.405"},{"$f":"'VIII. Pers. sov. loans, 1312-'!C175","v":{"v":8.686868686868687,"d":"8.687"}}]
[1483,null,{"v":10.090468475559268,"d":"10.090"},{"v":2.4727092209593673,"d":"2.473"},{"v":7.6177592545999016,"d":"7.618"},{"v":8.636309523809524,"d":"8.636"},{"v":4.8077419582399035,"d":"4.808"},{"v":3.828567565569622,"d":"3.829"},null,null,{"$f":"SUM('IV. Country level, 1310-2018'!AO177:AV177)","v":{"v":10.01138073830848,"d":"10.011"}},{"$f":"SUM('IV. Country level, 1310-2018'!AY177:BF177)","v":{"v":8.853670659184473,"d":"8.8537"}},{"v":1.1577100791240067,"d":"1.158"},{"v":8.17666666666667,"d":"8.177"},{"$f":"'IV. Country level, 1310-2018'!U177","v":{"v":53.91194729466633,"d":"53.912"}},{"$f":"'IV. Country level, 1310-2018'!C177","v":{"v":-45.73528062799966,"d":"-45.735"}},{"$nulls":5},{"v":26.28125,"d":"26.281"},{"v":-6.573240577342767,"d":"-6.573"},{"v":32.854490577342766,"d":"32.854"},{"$f":"'VIII. Pers. sov. loans, 1312-'!C176","v":{"v":7.904040404040405,"d":"7.904"}}]
[1484,null,{"v":9.871463188647269,"d":"9.871"},{"v":3.9448147274242813,"d":"3.945"},{"v":5.926648461222987,"d":"5.927"},{"v":8.198928571428572,"d":"8.199"},{"v":8.155690528938532,"d":"8.156"},{"v":0.04323804249003998,"d":"0.043"},null,null,{"$f":"SUM('IV. Country level, 1310-2018'!AO178:AV178)","v":{"v":9.762864131727717,"d":"9.763"}},{"$f":"SUM('IV. Country level, 1310-2018'!AY178:BF178)","v":{"v":-2.275643475799029,"d":"-2.2756"}},{"v":12.038507607526746,"d":"12.039"},{"v":8.176666666666668,"d":"8.177"},{"$f":"'IV. Country level, 1310-2018'!U178","v":{"v":9.770076084112356,"d":"9.770"}},{"$f":"'IV. Country level, 1310-2018'!C178","v":{"v":-1.593409417445688,"d":"-1.593"}},{"$nulls":5},{"v":6.866666666666667,"d":"6.867"},{"v":-2.7873987363753234,"d":"-2.787"},{"v":9.65406540304199,"d":"9.654"},{"$f":"'VIII. Pers. sov. loans, 1312-'!C177","v":{"v":7.386977343152642,"d":"7.387"}}]
[1485,null,{"v":9.719593387909914,"d":"9.720"},{"v":2.036248509449113,"d":"2.036"},{"v":7.683344878460804,"d":"7.683"},{"v":8.045714285714286,"d":"8.046"},{"v":6.901408071664421,"d":"6.901"},{"v":1.1443062140498668,"d":"1.144"},null,null,{"$f":"SUM('IV. Country level, 1310-2018'!AO179:AV179)","v":{"v":9.731782557715796,"d":"9.732"}},{"$f":"SUM('IV. Country level, 1310-2018'!AY179:BF179)","v":{"v":-11.045308095490666,"d":"-11.0453"}},{"v":20.777090653206464,"d":"20.777"},{"v":8.17666666666667,"d":"8.177"},{"$f":"'IV. Country level, 1310-2018'!U179","v":{"v":-38.1057152184914,"d":"-38.106"}},{"$f":"'IV. Country level, 1310-2018'!C179","v":{"v":46.28238188515807,"d":"46.282"}},{"$nulls":5},{"v":14.757692307692308,"d":"14.758"},{"v":0.4771652402727991,"d":"0.477"},{"v":14.28052706741951,"d":"14.281"},{"$f":"'VIII. Pers. sov. loans, 1312-'!C178","v":{"v":7.386977343152642,"d":"7.387"}}]
[1486,null,{"v":9.697500257469938,"d":"9.698"},{"v":0.42580661412870846,"d":"0.426"},{"v":9.271693643341232,"d":"9.272"},{"v":8.30761904761905,"d":"8.308"},{"v":4.842477222706576,"d":"4.842"},{"v":3.4651418249124726,"d":"3.465"},null,null,{"$f":"SUM('IV. Country level, 1310-2018'!AO180:AV180)","v":{"v":9.607841375493289,"d":"9.608"}},{"$f":"SUM('IV. Country level, 1310-2018'!AY180:BF180)","v":{"v":3.286048663260941,"d":"3.2860"}},{"v":6.321792712232348,"d":"6.322"},{"v":8.176666666666668,"d":"8.177"},{"$f":"'IV. Country level, 1310-2018'!U180","v":{"v":-2.8628053167742418,"d":"-2.863"}},{"$f":"'IV. Country level, 1310-2018'!C180","v":{"v":11.03947198344091,"d":"11.039"}},{"$nulls":5},{"v":5,"d":"5.000"},{"v":0.5407190680381357,"d":"0.541"},{"v":4.459280931961864,"d":"4.459"},{"$f":"'VIII. Pers. sov. loans, 1312-'!C179","v":{"v":7.822481119293869,"d":"7.822"}}]
[1487,null,{"v":9.665782178591348,"d":"9.666"},{"v":-0.9867231138177884,"d":"-0.987"},{"v":10.65250529240914,"d":"10.653"},{"v":8.43857142857143,"d":"8.439"},{"v":-4.990347820778605,"d":"-4.990"},{"v":13.428919249350034,"d":"13.429"},null,null,{"$f":"SUM('IV. Country level, 1310-2018'!AO181:AV181)","v":{"v":9.569991266405257,"d":"9.570"}},{"$f":"SUM('IV. Country level, 1310-2018'!AY181:BF181)","v":{"v":3.9246376858089853,"d":"3.9246"}},{"v":5.645353580596272,"d":"5.645"},{"v":8.176666666666668,"d":"8.177"},{"$f":"'IV. Country level, 1310-2018'!U181","v":{"v":14.392246405808082,"d":"14.392"}},{"$f":"'IV. Country level, 1310-2018'!C181","v":{"v":-6.215579739141415,"d":"-6.216"}},{"$nulls":5},{"v":5,"d":"5.000"},{"v":0.3676833350862057,"d":"0.368"},{"v":4.632316664913795,"d":"4.632"},{"$f":"'VIII. Pers. sov. loans, 1312-'!C180","v":{"v":7.386977343152642,"d":"7.387"}}]
[1488,null,{"v":9.661989786996985,"d":"9.662"},{"v":0.024995846122211316,"d":"0.025"},{"v":9.636993940874776,"d":"9.637"},{"v":8.569523809523812,"d":"8.570"},{"v":-6.445798861917455,"d":"-6.446"},{"v":15.015322671441266,"d":"15.015"},null,null,{"$f":"SUM('IV. Country level, 1310-2018'!AO182:AV182)","v":{"v":9.433325173481965,"d":"9.433"}},{"$f":"SUM('IV. Country level, 1310-2018'!AY182:BF182)","v":{"v":-1.9822953221294397,"d":"-1.9823"}},{"v":11.415620495611405,"d":"11.416"},{"v":8.176666666666666,"d":"8.177"},{"$f":"'IV. Country level, 1310-2018'!U182","v":{"v":-3.4353495343709524,"d":"-3.435"}},{"$f":"'IV. Country level, 1310-2018'!C182","v":{"v":11.61201620103762,"d":"11.612"}},{"$nulls":5},{"v":5,"d":"5.000"},{"v":-0.5246209254612939,"d":"-0.525"},{"v":5.524620925461294,"d":"5.525"},{"$f":"'VIII. Pers. sov. loans, 1312-'!C181","v":{"v":6.517271462490586,"d":"6.517"}}]
[1489,null,{"v":9.653967454570578,"d":"9.654"},{"v":0.6349681732881464,"d":"0.635"},{"v":9.018999281282431,"d":"9.019"},{"v":8.700476190476191,"d":"8.700"},{"v":-3.2222956034122077,"d":"-3.222"},{"v":11.9227717938884,"d":"11.923"},null,null,{"$f":"SUM('IV. Country level, 1310-2018'!AO183:AV183)","v":{"v":9.76531655915707,"d":"9.765"}},{"$f":"SUM('IV. Country level, 1310-2018'!AY183:BF183)","v":{"v":2.219536184065695,"d":"2.2195"}},{"v":7.545780375091375,"d":"7.546"},{"v":9.093333333333334,"d":"9.093"},{"$f":"'IV. Country level, 1310-2018'!U183","v":{"v":0.2269408439958642,"d":"0.227"}},{"$f":"'IV. Country level, 1310-2018'!C183","v":{"v":8.86639248933747,"d":"8.866"}},{"$nulls":5},{"v":5,"d":"5.000"},{"v":10.975510518449601,"d":"10.976"},{"v":-5.975510518449601,"d":"-5.976"},{"$f":"'VIII. Pers. sov. loans, 1312-'!C182","v":{"v":6.517271462490586,"d":"6.517"}}]
[1490,null,{"v":9.672205592674686,"d":"9.672"},{"v":-0.6264050538573225,"d":"-0.626"},{"v":10.298610646532008,"d":"10.299"},{"v":8.878197278911566,"d":"8.878"},{"v":-3.2818973876053184,"d":"-3.282"},{"v":12.160094666516882,"d":"12.160"},null,null,{"$f":"SUM('IV. Country level, 1310-2018'!AO184:AV184)","v":{"v":9.789354186158349,"d":"9.789"}},{"$f":"SUM('IV. Country level, 1310-2018'!AY184:BF184)","v":{"v":-1.034037436441004,"d":"-1.0340"}},{"v":10.823391622599353,"d":"10.823"},{"v":9.093333333333334,"d":"9.093"},{"$f":"'IV. Country level, 1310-2018'!U184","v":{"v":-14.917828009729938,"d":"-14.918"}},{"$f":"'IV. Country level, 1310-2018'!C184","v":{"v":24.01116134306327,"d":"24.011"}},{"$nulls":5},{"v":10.605902777777779,"d":"10.606"},{"v":5.194691947732497,"d":"5.195"},{"v":5.411210830045282,"d":"5.411"},{"$f":"'VIII. Pers. sov. loans, 1312-'!C183","v":{"v":6.460382573601697,"d":"6.460"}}]
[1491,null,{"v":9.644688620930973,"d":"9.645"},{"v":-0.04934260055310613,"d":"-0.049"},{"v":9.69403122148408,"d":"9.694"},{"v":9.055918367346937,"d":"9.056"},{"v":-0.2576493072513628,"d":"-0.258"},{"v":9.3135676745983,"d":"9.314"},null,null,{"$f":"SUM('IV. Country level, 1310-2018'!AO185:AV185)","v":{"v":9.73631739056718,"d":"9.736"}},{"$f":"SUM('IV. Country level, 1310-2018'!AY185:BF185)","v":{"v":4.806389243780969,"d":"4.8064"}},{"v":4.929928146786211,"d":"4.930"},{"v":9.093333333333334,"d":"9.093"},{"$f":"'IV. Country level, 1310-2018'!U185","v":{"v":-0.41808120385960224,"d":"-0.418"}},{"$f":"'IV. Country level, 1310-2018'!C185","v":{"v":9.511414537192936,"d":"9.511"}},{"$nulls":5},{"v":5,"d":"5.000"},{"v":3.2984198622355,"d":"3.298"},{"v":1.7015801377645001,"d":"1.702"},{"$f":"'VIII. Pers. sov. loans, 1312-'!C184","v":{"v":8.130701298701299,"d":"8.131"}}]
[1492,null,{"v":9.567348486396638,"d":"9.567"},{"v":0.5165223984435618,"d":"0.517"},{"v":9.050826087953075,"d":"9.051"},{"v":9.023180272108842,"d":"9.023"},{"v":1.9058697449524702,"d":"1.906"},{"v":7.117310527156372,"d":"7.117"},null,null,{"$f":"SUM('IV. Country level, 1310-2018'!AO186:AV186)","v":{"v":9.675626230730941,"d":"9.676"}},{"$f":"SUM('IV. Country level, 1310-2018'!AY186:BF186)","v":{"v":-6.775501805329121,"d":"-6.7755"}},{"v":16.451128036060062,"d":"16.451"},{"v":9.093333333333334,"d":"9.093"},{"$f":"'IV. Country level, 1310-2018'!U186","v":{"v":-15.541192408954668,"d":"-15.541"}},{"$f":"'IV. Country level, 1310-2018'!C186","v":{"v":24.634525742288,"d":"24.635"}},{"$nulls":5},{"v":5.808080808080809,"d":"5.808"},{"v":-7.469660830097914,"d":"-7.470"},{"v":13.277741638178723,"d":"13.278"},{"$f":"'VIII. Pers. sov. loans, 1312-'!C185","v":{"v":8.130701298701299,"d":"8.131"}}]
[1493,null,{"v":9.439879436570862,"d":"9.440"},{"v":1.4490541364195617,"d":"1.449"},{"v":7.990825300151301,"d":"7.991"},{"v":8.903186829816672,"d":"8.903"},{"v":6.346817828961515,"d":"6.347"},{"v":2.556369000855154,"d":"2.556"},null,null,{"$f":"SUM('IV. Country level, 1310-2018'!AO187:AV187)","v":{"v":9.735508342222037,"d":"9.736"}},{"$f":"SUM('IV. Country level, 1310-2018'!AY187:BF187)","v":{"v":-5.543563926757343,"d":"-5.5436"}},{"v":15.27907226897938,"d":"15.279"},{"v":9.420714285714286,"d":"9.421"},{"$f":"'IV. Country level, 1310-2018'!U187","v":{"v":-3.2800178061260157,"d":"-3.280"}},{"$f":"'IV. Country level, 1310-2018'!C187","v":{"v":12.700732091840301,"d":"12.701"}},{"$nulls":5},{"v":5,"d":"5.000"},{"v":3.57474623502902,"d":"3.575"},{"v":1.42525376497098,"d":"1.425"},{"$f":"'VIII. Pers. sov. loans, 1312-'!C186","v":{"v":6.8807012987012985,"d":"6.881"}}]
[1494,null,{"v":9.328354609719458,"d":"9.328"},{"v":4.483380876897749,"d":"4.483"},{"v":4.844973732821711,"d":"4.845"},{"v":8.826890421422807,"d":"8.827"},{"v":16.377762359407722,"d":"16.378"},{"v":-7.550871937984916,"d":"-7.551"},null,null,{"$f":"SUM('IV. Country level, 1310-2018'!AO188:AV188)","v":{"v":9.377372464199265,"d":"9.377"}},{"$f":"SUM('IV. Country level, 1310-2018'!AY188:BF188)","v":{"v":7.964074858938502,"d":"7.9641"}},{"v":1.4132976052607633,"d":"1.413"},{"v":9.420714285714286,"d":"9.421"},{"$f":"'IV. Country level, 1310-2018'!U188","v":{"v":35.561982968285776,"d":"35.562"}},{"$f":"'IV. Country level, 1310-2018'!C188","v":{"v":-26.14126868257149,"d":"-26.141"}},{"$nulls":5},{"v":5,"d":"5.000"},{"v":-3.306690617984165,"d":"-3.307"},{"v":8.306690617984165,"d":"8.307"},{"$f":"'VIII. Pers. sov. loans, 1312-'!C187","v":{"v":6.504561038961039,"d":"6.505"}}]
[1495,null,{"v":9.230269701466826,"d":"9.230"},{"v":1.6253471354197686,"d":"1.625"},{"v":7.604922566047057,"d":"7.605"},{"v":8.794291046927246,"d":"8.794"},{"v":10.523294730056504,"d":"10.523"},{"v":-1.72900368312926,"d":"-1.729"},null,null,{"$f":"SUM('IV. Country level, 1310-2018'!AO189:AV189)","v":{"v":8.891944231741615,"d":"8.892"}},{"$f":"SUM('IV. Country level, 1310-2018'!AY189:BF189)","v":{"v":1.978759670847235,"d":"1.9788"}},{"v":6.91318456089438,"d":"6.913"},{"v":7.947500000000001,"d":"7.948"},{"$f":"'IV. Country level, 1310-2018'!U189","v":{"v":11.709283831055874,"d":"11.709"}},{"$f":"'IV. Country level, 1310-2018'!C189","v":{"v":-3.7617838310558733,"d":"-3.762"}},{"$nulls":5},{"v":6.363636363636363,"d":"6.364"},{"v":-4.447846809400422,"d":"-4.448"},{"v":10.811483173036786,"d":"10.811"},{"$f":"'VIII. Pers. sov. loans, 1312-'!C188","v":{"v":6.179666666666667,"d":"6.180"}}]
[1496,null,{"v":9.16241840714069,"d":"9.162"},{"v":1.3688656440419862,"d":"1.369"},{"v":7.7935527630987025,"d":"7.794"},{"v":8.80538870632999,"d":"8.805"},{"v":9.916325192993066,"d":"9.916"},{"v":-1.1109364866630724,"d":"-1.111"},null,null,{"$f":"SUM('IV. Country level, 1310-2018'!AO190:AV190)","v":{"v":8.873033210376654,"d":"8.873"}},{"$f":"SUM('IV. Country level, 1310-2018'!AY190:BF190)","v":{"v":8.747258349897693,"d":"8.7473"}},{"v":0.1257748604789608,"d":"0.126"},{"v":8.253379237288136,"d":"8.253"},{"$f":"'IV. Country level, 1310-2018'!U190","v":{"v":31.31357743205919,"d":"31.314"}},{"$f":"'IV. Country level, 1310-2018'!C190","v":{"v":-23.060198194771054,"d":"-23.060"}},{"$nulls":5},{"v":5,"d":"5.000"},{"v":6.8739685343864405,"d":"6.874"},{"v":-1.8739685343864405,"d":"-1.874"},{"$f":"'VIII. Pers. sov. loans, 1312-'!C189","v":{"v":6.179666666666667,"d":"6.180"}}]
[1497,null,{"v":9.113322479796228,"d":"9.113"},{"v":2.7873920238012557,"d":"2.787"},{"v":6.325930455994971,"d":"6.326"},{"v":8.859715236942236,"d":"8.860"},{"v":9.908926231132225,"d":"9.909"},{"v":-1.049210994189989,"d":"-1.049"},null,null,{"$f":"SUM('IV. Country level, 1310-2018'!AO191:AV191)","v":{"v":9.008680398198516,"d":"9.009"}},{"$f":"SUM('IV. Country level, 1310-2018'!AY191:BF191)","v":{"v":20.206249746906302,"d":"20.2062"}},{"v":-11.197569348707786,"d":"-11.198"},{"v":8.559258474576275,"d":"8.559"},{"$f":"'IV. Country level, 1310-2018'!U191","v":{"v":55.29878370339352,"d":"55.299"}},{"$f":"'IV. Country level, 1310-2018'!C191","v":{"v":-46.73952522881724,"d":"-46.740"}},{"$nulls":5},{"v":6.2,"d":"6.200"},{"v":1.176550234437627,"d":"1.177"},{"v":5.023449765562373,"d":"5.023"},{"$f":"'VIII. Pers. sov. loans, 1312-'!C190","v":{"v":6.291666666666667,"d":"6.292"}}]
[1498,null,{"v":8.989616714716812,"d":"8.990"},{"v":4.544954647208382,"d":"4.545"},{"v":4.44466206750843,"d":"4.445"},{"v":8.577232243744957,"d":"8.577"},{"v":9.96484191814247,"d":"9.965"},{"v":-1.3876096743975137,"d":"-1.388"},null,null,{"$f":"SUM('IV. Country level, 1310-2018'!AO192:AV192)","v":{"v":9.049723032798758,"d":"9.050"}},{"$f":"SUM('IV. Country level, 1310-2018'!AY192:BF192)","v":{"v":-15.199846946564888,"d":"-15.1998"}},{"v":24.249569979363645,"d":"24.250"},{"v":8.865137711864406,"d":"8.865"},{"$f":"'IV. Country level, 1310-2018'!U192","v":{"v":-41.39935460931814,"d":"-41.399"}},{"$f":"'IV. Country level, 1310-2018'!C192","v":{"v":50.264492321182544,"d":"50.264"}},{"$nulls":5},{"v":5,"d":"5.000"},{"v":-4.401404905886203,"d":"-4.401"},{"v":9.401404905886203,"d":"9.401"},{"$f":"'VIII. Pers. sov. loans, 1312-'!C191","v":7.995}]
[1499,null,{"v":8.966787259642736,"d":"8.967"},{"v":5.048945370830615,"d":"5.049"},{"v":3.917841888812121,"d":"3.918"},{"v":8.617303672316385,"d":"8.617"},{"v":8.875184225277287,"d":"8.875"},{"v":-0.25788055296090057,"d":"-0.258"},null,null,{"$f":"SUM('IV. Country level, 1310-2018'!AO193:AV193)","v":{"v":9.200667170447982,"d":"9.201"}},{"$f":"SUM('IV. Country level, 1310-2018'!AY193:BF193)","v":{"v":-8.570872244973591,"d":"-8.5709"}},{"v":17.77153941542157,"d":"17.772"},{"v":9.171016949152541,"d":"9.171"},{"$f":"'IV. Country level, 1310-2018'!U193","v":{"v":-19.789979168398762,"d":"-19.790"}},{"$f":"'IV. Country level, 1310-2018'!C193","v":{"v":28.960996117551304,"d":"28.961"}},{"$nulls":5},{"v":5,"d":"5.000"},{"v":-1.3367332612545852,"d":"-1.337"},{"v":6.336733261254585,"d":"6.337"},{"$f":"'VIII. Pers. sov. loans, 1312-'!C192","v":{"v":7.567142857142857,"d":"7.567"}}]
[1500,null,{"v":8.987395384958011,"d":"8.987"},{"v":3.5801013351400672,"d":"3.580"},{"v":5.407294049817945,"d":"5.407"},{"v":8.46753520984665,"d":"8.468"},{"v":7.129586656494154,"d":"7.130"},{"v":1.3379485533524973,"d":"1.338"},null,null,{"$f":"SUM('IV. Country level, 1310-2018'!AO194:AV194)","v":{"v":9.391836850810805,"d":"9.392"}},{"$f":"SUM('IV. Country level, 1310-2018'!AY194:BF194)","v":{"v":4.386120731557543,"d":"4.3861"}},{"v":5.005716119253262,"d":"5.006"},9.801,{"$f":"'IV. Country level, 1310-2018'!U194","v":{"v":-3.3318105391518924,"d":"-3.332"}},{"$f":"'IV. Country level, 1310-2018'!C194","v":{"v":13.132810539151892,"d":"13.133"}},{"$nulls":5},{"v":4.666666666666667,"d":"4.667"},{"v":0.941521969828673,"d":"0.942"},{"v":3.7251446968379938,"d":"3.725"},{"$f":"'VIII. Pers. sov. loans, 1312-'!C193","v":{"v":8.043285714285714,"d":"8.043"}}]
[1501,null,{"v":8.934645147542849,"d":"8.935"},{"v":0.27893990697211646,"d":"0.279"},{"v":8.655705240570734,"d":"8.656"},{"v":8.274069713478612,"d":"8.274"},{"v":-2.830182272943767,"d":"-2.830"},{"v":11.10425198642238,"d":"11.104"},null,null,{"$f":"SUM('IV. Country level, 1310-2018'!AO195:AV195)","v":{"v":8.511432108643348,"d":"8.511"}},{"$f":"SUM('IV. Country level, 1310-2018'!AY195:BF195)","v":{"v":20.267013222788375,"d":"20.2670"}},{"v":-11.755581114145027,"d":"-11.756"},{"v":7.443333333333335,"d":"7.443"},{"$f":"'IV. Country level, 1310-2018'!U195","v":{"v":35.9533927773575,"d":"35.953"}},{"$f":"'IV. Country level, 1310-2018'!C195","v":{"v":-28.510059444024165,"d":"-28.510"}},{"$nulls":5},{"v":4.333333333333334,"d":"4.333"},{"v":9.103091761763684,"d":"9.103"},{"v":-4.76975842843035,"d":"-4.770"},{"$f":"'VIII. Pers. sov. loans, 1312-'!C194","v":{"v":8.214714285714285,"d":"8.215"}}]
[1502,null,{"v":8.907638828113345,"d":"8.908"},{"v":3.68089470202295,"d":"3.681"},{"v":5.226744126090395,"d":"5.227"},{"v":8.036907183212268,"d":"8.037"},{"v":8.457667181840355,"d":"8.458"},{"v":-0.4207599986280875,"d":"-0.421"},null,null,{"$f":"SUM('IV. Country level, 1310-2018'!AO196:AV196)","v":{"v":8.732138046223094,"d":"8.732"}},{"$f":"SUM('IV. Country level, 1310-2018'!AY196:BF196)","v":{"v":5.506694736202873,"d":"5.5067"}},{"v":3.2254433100202204,"d":"3.225"},8.228,{"$f":"'IV. Country level, 1310-2018'!U196","v":{"v":4.081679980999587,"d":"4.082"}},{"$f":"'IV. Country level, 1310-2018'!C196","v":{"v":4.146320019000413,"d":"4.146"}},{"$nulls":5},{"v":4,"d":"4.000"},{"v":4.350995621503789,"d":"4.351"},{"v":-0.35099562150378905,"d":"-0.351"},{"$f":"'VIII. Pers. sov. loans, 1312-'!C195","v":{"v":9.5506,"d":"9.551"}}]
[1503,null,{"v":8.824650539826738,"d":"8.825"},{"v":2.168002624941427,"d":"2.168"},{"v":6.65664791488531,"d":"6.657"},{"v":7.756047619047619,"d":"7.756"},{"v":1.3878918390211266,"d":"1.388"},{"v":6.36815578002649,"d":"6.368"},null,null,{"$f":"SUM('IV. Country level, 1310-2018'!AO197:AV197)","v":{"v":9.017290087583575,"d":"9.017"}},{"$f":"SUM('IV. Country level, 1310-2018'!AY197:BF197)","v":{"v":-1.5346498999361449,"d":"-1.5346"}},{"v":10.55193998751972,"d":"10.552"},7.205,{"$f":"'IV. Country level, 1310-2018'!U197","v":{"v":19.094394450577262,"d":"19.094"}},{"$f":"'IV. Country level, 1310-2018'!C197","v":{"v":-11.889394450577262,"d":"-11.889"}},{"$nulls":5},{"v":5.000000000000001,"d":"5.000"},{"v":-10.61947090092088,"d":"-10.619"},{"v":15.61947090092088,"d":"15.619"},{"$f":"'VIII. Pers. sov. loans, 1312-'!C196","v":{"v":9.5506,"d":"9.551"}}]
[1504,null,{"v":8.71134647261791,"d":"8.711"},{"v":2.553826623400018,"d":"2.554"},{"v":6.157519849217892,"d":"6.158"},{"v":7.385190476190475,"d":"7.385"},{"v":4.497289591258441,"d":"4.497"},{"v":2.887900884932035,"d":"2.888"},null,null,{"$f":"SUM('IV. Country level, 1310-2018'!AO198:AV198)","v":{"v":8.63942873629239,"d":"8.639"}},{"$f":"SUM('IV. Country level, 1310-2018'!AY198:BF198)","v":{"v":-2.901880250269352,"d":"-2.9019"}},{"v":11.541308986561742,"d":"11.541"},{"v":7.204999999999998,"d":"7.205"},{"$f":"'IV. Country level, 1310-2018'!U198","v":{"v":-14.419598802671935,"d":"-14.420"}},{"$f":"'IV. Country level, 1310-2018'!C198","v":{"v":21.624598802671933,"d":"21.625"}},{"$nulls":5},{"v":16,"d":"16.000"},{"v":0.23178075956363114,"d":"0.232"},{"v":15.76821924043637,"d":"15.768"},{"$f":"'VIII. Pers. sov. loans, 1312-'!C197","v":{"v":9.23948888888889,"d":"9.239"}}]
[1505,null,{"v":8.78331413433571,"d":"8.783"},{"v":-0.22708351617343944,"d":"-0.227"},{"v":9.010397650509148,"d":"9.010"},{"v":7.4899523809523805,"d":"7.490"},{"v":0.7711393289841063,"d":"0.771"},{"v":6.718813051968275,"d":"6.719"},null,null,{"$f":"SUM('IV. Country level, 1310-2018'!AO199:AV199)","v":{"v":8.860678796792218,"d":"8.861"}},{"$f":"SUM('IV. Country level, 1310-2018'!AY199:BF199)","v":{"v":8.613836618790947,"d":"8.6138"}},{"v":0.2468421780012715,"d":"0.247"},{"v":7.204999999999998,"d":"7.205"},{"$f":"'IV. Country level, 1310-2018'!U199","v":{"v":37.61559157417072,"d":"37.616"}},{"$f":"'IV. Country level, 1310-2018'!C199","v":{"v":-30.410591574170724,"d":"-30.411"}},{"$nulls":5},{"v":5,"d":"5.000"},{"v":-7.570126376205483,"d":"-7.570"},{"v":12.570126376205483,"d":"12.570"},{"$f":"'VIII. Pers. sov. loans, 1312-'!C198","v":{"v":5.994361111111111,"d":"5.994"}}]
[1506,null,{"v":8.830869315565563,"d":"8.831"},{"v":-2.127620064627014,"d":"-2.128"},{"v":10.958489380192576,"d":"10.958"},{"v":7.743095238095237,"d":"7.743"},{"v":-0.9876378647044495,"d":"-0.988"},{"v":8.730733102799688,"d":"8.731"},null,null,{"$f":"SUM('IV. Country level, 1310-2018'!AO200:AV200)","v":{"v":8.619749152441734,"d":"8.620"}},{"$f":"SUM('IV. Country level, 1310-2018'!AY200:BF200)","v":{"v":-19.16111678454425,"d":"-19.1611"}},{"v":27.780865936985986,"d":"27.781"},{"v":7.204999999999998,"d":"7.205"},{"$f":"'IV. Country level, 1310-2018'!U200","v":{"v":-69.27840656813335,"d":"-69.278"}},{"$f":"'IV. Country level, 1310-2018'!C200","v":{"v":76.48340656813335,"d":"76.483"}},{"$nulls":5},{"v":5,"d":"5.000"},{"v":-5.9770108442660595E-3,"d":"-0.006"},{"v":5.0059770108442665,"d":"5.006"},{"$f":"'VIII. Pers. sov. loans, 1312-'!C199","v":{"v":7.286027777777777,"d":"7.286"}}]
[1507,null,{"v":8.799119577337285,"d":"8.799"},{"v":-2.4392904703438947,"d":"-2.439"},{"v":11.23841004768118,"d":"11.238"},{"v":7.756666666666666,"d":"7.757"},{"v":-3.9717607932377126,"d":"-3.972"},{"v":11.72842745990438,"d":"11.728"},null,null,{"$f":"SUM('IV. Country level, 1310-2018'!AO201:AV201)","v":{"v":8.598708380349017,"d":"8.599"}},{"$f":"SUM('IV. Country level, 1310-2018'!AY201:BF201)","v":{"v":7.086888720767679,"d":"7.0869"}},{"$f":"K205-L205","v":{"v":1.5118196595813371,"d":"1.512"}},7.205,{"$f":"'IV. Country level, 1310-2018'!U201","v":{"v":18.433973726509297,"d":"18.434"}},{"$f":"'IV. Country level, 1310-2018'!C201","v":{"v":-11.228973726509297,"d":"-11.229"}},{"$nulls":5},{"v":5,"d":"5.000"},{"v":0.3321737421744936,"d":"0.332"},{"v":4.6678262578255065,"d":"4.668"},{"$f":"'VIII. Pers. sov. loans, 1312-'!C200","v":{"v":8.931944444444444,"d":"8.932"}}]
[1508,null,{"v":8.807311624274481,"d":"8.807"},{"v":-0.6296153406143189,"d":"-0.630"},{"v":9.4369269648888,"d":"9.437"},{"v":7.6988095238095235,"d":"7.699"},{"v":-1.9987093944047654,"d":"-1.999"},{"v":9.69751891821429,"d":"9.698"},null,null,{"$f":"SUM('IV. Country level, 1310-2018'!AO202:AV202)","v":{"v":9.015205740667936,"d":"9.015"}},{"$f":"SUM('IV. Country level, 1310-2018'!AY202:BF202)","v":{"v":0.8006422457741726,"d":"0.8006"}},{"v":8.214563494893763,"d":"8.215"},{"v":8.176666666666668,"d":"8.177"},{"$f":"'IV. Country level, 1310-2018'!U202","v":{"v":9.870340941437158,"d":"9.870"}},{"$f":"'IV. Country level, 1310-2018'!C202","v":{"v":-1.6936742747704905,"d":"-1.694"}},{"$nulls":5},{"v":4.521634615384616,"d":"4.522"},{"v":-2.6842524569061696,"d":"-2.684"},{"v":7.2058870722907855,"d":"7.206"},{"$f":"'VIII. Pers. sov. loans, 1312-'!C201","v":{"v":12.555555555555555,"d":"12.556"}}]
[1509,null,{"v":8.803815693416249,"d":"8.804"},{"v":-0.6961190907527326,"d":"-0.696"},{"v":9.499934784168982,"d":"9.500"},{"v":7.569523809523809,"d":"7.570"},{"v":-7.904234400889443,"d":"-7.904"},{"v":15.473758210413251,"d":"15.474"},null,null,{"$f":"SUM('IV. Country level, 1310-2018'!AO203:AV203)","v":{"v":9.065024314832065,"d":"9.065"}},{"$f":"SUM('IV. Country level, 1310-2018'!AY203:BF203)","v":{"v":-7.797061102972146,"d":"-7.7971"}},{"v":16.86208541780421,"d":"16.862"},{"v":10,"d":"10.000"},{"$f":"'IV. Country level, 1310-2018'!AA203","v":{"v":-8.229760374820302,"d":"-8.230"}},{"$f":"'IV. Country level, 1310-2018'!I203","v":{"v":18.2297603748203,"d":"18.230"}},{"$nulls":5},{"v":4.352764423076923,"d":"4.353"},{"v":-1.1503765509276411,"d":"-1.150"},{"v":5.503140974004564,"d":"5.503"},{"$f":"'VIII. Pers. sov. loans, 1312-'!C202","v":{"v":12.468253968253967,"d":"12.468"}}]
[1510,null,{"$f":"AVERAGE(K205:K211)","v":{"v":8.828392238958665,"d":"8.828"}},{"$f":"AVERAGE(L205:L211)","v":{"v":1.742277252753709,"d":"1.742"}},{"$f":"AVERAGE(M205:M211)","v":{"v":7.086114986204955,"d":"7.086"}},{"$f":"AVERAGE(N205:N211)","v":{"v":7.60452380952381,"d":"7.605"}},{"$f":"AVERAGE(O205:O211)","v":{"v":2.7419632518814097,"d":"2.742"}},{"$f":"AVERAGE(P205:P211)","v":{"v":4.862560557642401,"d":"4.863"}},null,null,{"$f":"SUM('IV. Country level, 1310-2018'!AO204:AV204)","v":{"v":8.795041919985634,"d":"8.795"}},{"$f":"SUM('IV. Country level, 1310-2018'!AY204:BF204)","v":{"v":-3.7163427399543103,"d":"-3.7163"}},{"v":12.511384659939944,"d":"12.511"},{"v":7.3,"d":"7.300"},{"$f":"'IV. Country level, 1310-2018'!AA204","v":{"v":-1.7944660491555817,"d":"-1.794"}},{"$f":"'IV. Country level, 1310-2018'!I204","v":{"v":9.094466049155582,"d":"9.094"}},{"$nulls":5},{"v":4.183894230769232,"d":"4.184"},{"v":0.19010660557229433,"d":"0.190"},{"v":3.9937876251969375,"d":"3.994"},{"$f":"'VIII. Pers. sov. loans, 1312-'!C203","v":{"v":12.409722222222221,"d":"12.410"}}]
[1511,null,{"v":8.879998313597039,"d":"8.880"},{"v":1.12302411306239,"d":"1.123"},{"v":7.756974200534649,"d":"7.757"},{"v":7.803809523809525,"d":"7.804"},{"v":0.5854677370950998,"d":"0.585"},{"v":7.218341786714425,"d":"7.218"},null,null,{"$f":"SUM('IV. Country level, 1310-2018'!AO205:AV205)","v":{"v":8.696773064852763,"d":"8.697"}},{"$f":"SUM('IV. Country level, 1310-2018'!AY205:BF205)","v":{"v":9.765845657837676,"d":"9.7658"}},{"v":-1.069072592984913,"d":"-1.069"},{"v":6.800000000000001,"d":"6.800"},{"$f":"'IV. Country level, 1310-2018'!AA205","v":{"v":-0.6082390108413032,"d":"-0.608"}},{"$f":"'IV. Country level, 1310-2018'!I205","v":{"v":7.408239010841304,"d":"7.408"}},{"$nulls":5},{"v":4.015024038461539,"d":"4.015"},{"v":4.901051762461299,"d":"4.901"},{"v":-0.88602772399976,"d":"-0.886"},{"$f":"'VIII. Pers. sov. loans, 1312-'!C204","v":{"v":13.547619047619047,"d":"13.548"}}]
[1512,null,{"v":8.887654029247082,"d":"8.888"},{"v":1.5381844971766832,"d":"1.538"},{"v":7.349469532070398,"d":"7.349"},{"v":8.028571428571428,"d":"8.029"},{"v":-1.319516634724678,"d":"-1.320"},{"v":9.348088063296107,"d":"9.348"},null,null,{"$f":"SUM('IV. Country level, 1310-2018'!AO206:AV206)","v":{"v":8.836207280784587,"d":"8.836"}},{"$f":"SUM('IV. Country level, 1310-2018'!AY206:BF206)","v":{"v":8.148310367822052,"d":"8.1483"}},{"v":0.6878969129625343,"d":"0.688"},{"v":6.3,"d":"6.300"},{"$f":"'IV. Country level, 1310-2018'!AA206","v":{"v":-3.723083471222016,"d":"-3.723"}},{"$f":"'IV. Country level, 1310-2018'!I206","v":{"v":10.023083471222016,"d":"10.023"}},{"$nulls":5},{"v":3.8461538461538463,"d":"3.846"},{"v":-0.11663702929774401,"d":"-0.117"},{"v":3.9627908754515904,"d":"3.963"},{"$f":"'VIII. Pers. sov. loans, 1312-'!C205","v":{"v":13.547619047619047,"d":"13.548"}}]
[1513,null,{"v":8.89250155443812,"d":"8.893"},{"v":3.3072000713757284,"d":"3.307"},{"v":5.58530148306239,"d":"5.585"},{"v":7.992857142857143,"d":"7.993"},{"v":0.6755187145708434,"d":"0.676"},{"v":7.317338428286299,"d":"7.317"},null,null,{"$f":"SUM('IV. Country level, 1310-2018'!AO207:AV207)","v":{"v":8.791784971238654,"d":"8.792"}},{"$f":"SUM('IV. Country level, 1310-2018'!AY207:BF207)","v":{"v":-2.0923423799991614,"d":"-2.0923"}},{"v":10.884127351237815,"d":"10.884"},{"v":7.449999999999999,"d":"7.450"},{"$f":"'IV. Country level, 1310-2018'!AA207","v":{"v":5.244977001262611,"d":"5.245"}},{"$f":"'IV. Country level, 1310-2018'!I207","v":{"v":2.2050229987373884,"d":"2.205"}},{"$nulls":5},{"v":4.423076923076923,"d":"4.423"},{"v":-0.3293607496061094,"d":"-0.329"},{"v":4.752437672683032,"d":"4.752"},{"$f":"'VIII. Pers. sov. loans, 1312-'!C206","v":{"v":15.010416666666666,"d":"15.010"}}]
[1514,null,{"v":8.905482988698425,"d":"8.905"},{"v":4.05029305103887,"d":"4.050"},{"v":4.855189937659557,"d":"4.855"},{"v":8.14642857142857,"d":"8.146"},{"v":0.35245666610376364,"d":"0.352"},{"v":7.793971905324808,"d":"7.794"},null,null,{"$f":"SUM('IV. Country level, 1310-2018'!AO208:AV208)","v":{"v":8.959950902817631,"d":"8.960"}},{"$f":"SUM('IV. Country level, 1310-2018'!AY208:BF208)","v":{"v":2.752116742928445,"d":"2.7521"}},{"v":6.207834159889186,"d":"6.208"},{"v":8.6,"d":"8.600"},{"$f":"'IV. Country level, 1310-2018'!AA208","v":{"v":3.338505123005132,"d":"3.339"}},{"$f":"'IV. Country level, 1310-2018'!I208","v":{"v":5.261494876994868,"d":"5.261"}},{"$nulls":5},{"v":5,"d":"5.000"},{"v":-3.682914787749471,"d":"-3.683"},{"v":8.682914787749471,"d":"8.683"},{"$f":"'VIII. Pers. sov. loans, 1312-'!C207","v":{"v":14.208188657407408,"d":"14.208"}}]
[1515,null,{"v":8.91374371309112,"d":"8.914"},{"v":1.3806999424069863,"d":"1.381"},{"v":7.533043770684135,"d":"7.533"},8.175,{"v":0.5579464242884354,"d":"0.558"},{"v":7.617053575711564,"d":"7.617"},null,null,{"$f":"SUM('IV. Country level, 1310-2018'!AO209:AV209)","v":{"v":9.068795750218237,"d":"9.069"}},{"$f":"SUM('IV. Country level, 1310-2018'!AY209:BF209)","v":{"v":3.7067649345742266,"d":"3.7068"}},{"v":5.362030815644011,"d":"5.362"},{"v":9.75,"d":"9.750"},{"$f":"'IV. Country level, 1310-2018'!AA209","v":{"v":-3.4645496613012896,"d":"-3.465"}},{"$f":"'IV. Country level, 1310-2018'!I209","v":{"v":13.21454966130129,"d":"13.215"}},{"$nulls":5},{"v":4.914434523809524,"d":"4.914"},{"v":5.262035214310981,"d":"5.262"},{"v":-0.3476006905014577,"d":"-0.348"},{"$f":"'VIII. Pers. sov. loans, 1312-'!C208","v":{"v":14.059358465608467,"d":"14.059"}}]
[1516,null,{"v":8.918882984267075,"d":"8.919"},{"v":-0.024878371026448028,"d":"-0.025"},{"v":8.943761355293525,"d":"8.944"},{"v":8.489285714285714,"d":"8.489"},{"v":1.2628576917144265,"d":"1.263"},{"v":7.226428022571288,"d":"7.226"},null,null,{"$f":"SUM('IV. Country level, 1310-2018'!AO210:AV210)","v":{"v":9.09895699116933,"d":"9.099"}},{"$f":"SUM('IV. Country level, 1310-2018'!AY210:BF210)","v":{"v":4.58604791642117,"d":"4.5860"}},{"v":4.512909074748161,"d":"4.513"},{"v":9.75,"d":"9.750"},{"$f":"'IV. Country level, 1310-2018'!AA210","v":{"v":5.735487070248351,"d":"5.735"}},{"$f":"'IV. Country level, 1310-2018'!I210","v":{"v":4.014512929751649,"d":"4.015"}},{"$nulls":5},{"v":4.8288690476190474,"d":"4.829"},{"v":2.9968803189186226,"d":"2.997"},{"v":1.8319887287004248,"d":"1.832"},{"$f":"'VIII. Pers. sov. loans, 1312-'!C209","v":{"v":11.681267466640348,"d":"11.681"}}]
[1517,null,{"v":8.95429601343848,"d":"8.954"},{"v":1.5911827569799146,"d":"1.591"},{"v":7.363113256458566,"d":"7.363"},{"v":8.85357142857143,"d":"8.854"},{"v":0.16985183973352122,"d":"0.170"},{"v":8.683719588837906,"d":"8.684"},null,null,{"$f":"SUM('IV. Country level, 1310-2018'!AO211:AV211)","v":{"v":8.885911959807782,"d":"8.886"}},{"$f":"SUM('IV. Country level, 1310-2018'!AY211:BF211)","v":{"v":1.4853081176876812,"d":"1.4853"}},{"v":7.4006038421201,"d":"7.401"},8.375,{"$f":"'IV. Country level, 1310-2018'!AA211","v":{"v":-4.0559003884251394,"d":"-4.056"}},{"$f":"'IV. Country level, 1310-2018'!I211","v":{"v":12.43090038842514,"d":"12.431"}},{"$nulls":5},{"v":10,"d":"10.000"},{"v":5.299917632272025,"d":"5.300"},{"v":4.700082367727975,"d":"4.700"},{"$f":"'VIII. Pers. sov. loans, 1312-'!C210","v":{"v":11.806267466640348,"d":"11.806"}}]
[1518,null,{"v":8.97720454595874,"d":"8.977"},{"v":2.75399409111878,"d":"2.754"},{"v":6.223210454839958,"d":"6.223"},{"v":9.017857142857142,"d":"9.018"},{"v":3.6149589630206242,"d":"3.615"},{"v":5.4028981798365185,"d":"5.403"},null,null,{"$f":"SUM('IV. Country level, 1310-2018'!AO212:AV212)","v":{"v":8.75459813560163,"d":"8.755"}},{"$f":"SUM('IV. Country level, 1310-2018'!AY212:BF212)","v":{"v":-8.921306102585508,"d":"-8.9213"}},{"v":17.675904238187137,"d":"17.676"},{"v":7.000000000000002,"d":"7.000"},{"$f":"'IV. Country level, 1310-2018'!AA212","v":{"v":0.8301892964513988,"d":"0.830"}},{"$f":"'IV. Country level, 1310-2018'!I212","v":{"v":6.1698107035486025,"d":"6.170"}},{"$nulls":5},{"v":6.666666666666667,"d":"6.667"},{"v":-9.437421046394606,"d":"-9.437"},{"v":16.104087713061272,"d":"16.104"},{"$f":"'VIII. Pers. sov. loans, 1312-'!C211","v":{"v":12.80001552590253,"d":"12.800"}}]
[1519,null,{"v":8.998568899093637,"d":"8.999"},{"v":3.2982403055965057,"d":"3.298"},{"v":5.700328593497132,"d":"5.700"},{"v":8.982142857142858,"d":"8.982"},{"v":7.7290364044539315,"d":"7.729"},{"v":1.2531064526889264,"d":"1.253"},null,null,{"$f":"SUM('IV. Country level, 1310-2018'!AO213:AV213)","v":{"v":8.872182179016267,"d":"8.872"}},{"$f":"SUM('IV. Country level, 1310-2018'!AY213:BF213)","v":{"v":-1.6907378262119903,"d":"-1.6907"}},{"v":10.562920005228257,"d":"10.563"},{"v":8.5,"d":"8.500"},{"$f":"'IV. Country level, 1310-2018'!AA213","v":{"v":1.2112954007599217,"d":"1.211"}},{"$f":"'IV. Country level, 1310-2018'!I213","v":{"v":7.288704599240078,"d":"7.289"}},{"$nulls":5},{"v":4,"d":"4.000"},{"v":0.9943305619663155,"d":"0.994"},{"$f":"V217-W217","v":{"v":3.0056694380336846,"d":"3.006"}},{"$f":"'VIII. Pers. sov. loans, 1312-'!C212","v":{"v":14.109103612102073,"d":"14.109"}}]
[1520,null,{"v":8.960753479312377,"d":"8.961"},{"v":1.2955894079393808,"d":"1.296"},{"v":7.665164071372996,"d":"7.665"},{"v":8.946428571428571,"d":"8.946"},{"v":3.3849058979795346,"d":"3.385"},{"v":5.561522673449038,"d":"5.562"},null,null,{"$f":"SUM('IV. Country level, 1310-2018'!AO214:AV214)","v":{"v":9.039676175438487,"d":"9.040"}},{"$f":"SUM('IV. Country level, 1310-2018'!AY214:BF214)","v":{"v":9.220085516045376,"d":"9.2201"}},{"v":-0.1804093406068894,"d":"-0.180"},{"$f":"P218+O218","v":{"v":10,"d":"10.000"}},{"$f":"'IV. Country level, 1310-2018'!AA214","v":{"v":-2.406063962603726,"d":"-2.406"}},{"$f":"'IV. Country level, 1310-2018'!I214","v":{"v":12.406063962603726,"d":"12.406"}},{"$nulls":5},{"v":4.734090909090909,"d":"4.734"},{"v":-0.25756977016822624,"d":"-0.258"},{"v":4.991660679259136,"d":"4.992"},{"$f":"'VIII. Pers. sov. loans, 1312-'!C213","v":{"v":14.69115747776023,"d":"14.691"}}]
[1521,null,{"v":9.009499598833054,"d":"9.009"},{"v":1.9011452562023459,"d":"1.901"},{"v":7.108354342630707,"d":"7.108"},{"v":9.107142857142858,"d":"9.107"},{"v":3.9661302369682363,"d":"3.966"},{"v":5.141012620174621,"d":"5.141"},null,null,{"$f":"SUM('IV. Country level, 1310-2018'!AO215:AV215)","v":{"v":9.12031063045944,"d":"9.120"}},{"$f":"SUM('IV. Country level, 1310-2018'!AY215:BF215)","v":{"v":10.891796081900505,"d":"10.8918"}},{"v":-1.771485451441066,"d":"-1.771"},{"v":9.75,"d":"9.750"},{"$f":"'IV. Country level, 1310-2018'!AA215","v":{"v":27.454254986014853,"d":"27.454"}},{"$f":"'IV. Country level, 1310-2018'!I215","v":{"v":-17.704254986014853,"d":"-17.704"}},{"$nulls":5},{"v":10,"d":"10.000"},{"v":-1.1787185661910704,"d":"-1.179"},{"v":11.17871856619107,"d":"11.179"},{"$f":"'VIII. Pers. sov. loans, 1312-'!C214","v":{"v":15.791125421066424,"d":"15.791"}}]
[1522,null,{"v":9.035134421582631,"d":"9.035"},{"v":2.3296402533155027,"d":"2.330"},{"v":6.705494168267128,"d":"6.705"},{"v":9.428571428571429,"d":"9.429"},{"v":3.1034689195927854,"d":"3.103"},{"v":6.3251025089786435,"d":"6.325"},null,null,{"$f":"SUM('IV. Country level, 1310-2018'!AO216:AV216)","v":{"v":9.218346222162529,"d":"9.218"}},{"$f":"SUM('IV. Country level, 1310-2018'!AY216:BF216)","v":{"v":7.516488435918305,"d":"7.5165"}},{"v":1.701857786244224,"d":"1.702"},{"v":9.5,"d":"9.500"},{"$f":"'IV. Country level, 1310-2018'!AA216","v":{"v":25.33399242873186,"d":"25.334"}},{"$f":"'IV. Country level, 1310-2018'!I216","v":{"v":-15.833992428731861,"d":"-15.834"}},{"$nulls":5},{"v":4.75,"d":"4.750"},{"v":1.9023047544880909,"d":"1.902"},{"v":2.8476952455119093,"d":"2.848"},{"$f":"'VIII. Pers. sov. loans, 1312-'!C215","v":{"v":14.973057052347238,"d":"14.973"}}]
[1523,null,{"v":9.157344677558196,"d":"9.157"},{"v":2.105539165688364,"d":"2.106"},{"v":7.051805511869832,"d":"7.052"},{"v":9.5,"d":"9.500"},{"v":2.934173807925048,"d":"2.934"},{"v":6.565826192074953,"d":"6.566"},null,null,{"$f":"SUM('IV. Country level, 1310-2018'!AO217:AV217)","v":{"v":8.834249052700509,"d":"8.834"}},{"$f":"SUM('IV. Country level, 1310-2018'!AY217:BF217)","v":{"v":-9.432508367178704,"d":"-9.4325"}},{"v":18.266757419879212,"d":"18.267"},{"v":9.500000000000004,"d":"9.500"},{"$f":"'IV. Country level, 1310-2018'!AA217","v":{"v":-24.67342647507243,"d":"-24.673"}},{"$f":"'IV. Country level, 1310-2018'!I217","v":{"v":34.17342647507243,"d":"34.173"}},{"$nulls":5},{"v":7.895714285714287,"d":"7.896"},{"v":-3.950243184625917,"d":"-3.950"},{"v":11.845957470340204,"d":"11.846"},{"$f":"'VIII. Pers. sov. loans, 1312-'!C216","v":{"v":16.65855579318039,"d":"16.659"}}]
[1524,null,{"v":9.30734376962356,"d":"9.307"},{"v":2.6892429773248705,"d":"2.689"},{"v":6.6181007922986925,"d":"6.618"},{"v":9.357142857142858,"d":"9.357"},{"v":4.190868303281812,"d":"4.191"},{"v":5.166274553861046,"d":"5.166"},null,null,{"$f":"SUM('IV. Country level, 1310-2018'!AO218:AV218)","v":{"v":9.227134796452514,"d":"9.227"}},{"$f":"SUM('IV. Country level, 1310-2018'!AY218:BF218)","v":{"v":5.724199055528435,"d":"5.7242"}},{"v":3.5029357409240793,"d":"3.503"},{"v":9.5,"d":"9.500"},{"$f":"'IV. Country level, 1310-2018'!AA218","v":{"v":0.012669984495776774,"d":"0.013"}},{"$f":"'IV. Country level, 1310-2018'!I218","v":{"v":9.487330015504224,"d":"9.487"}},{"$nulls":5},{"v":7.5,"d":"7.500"},{"v":-0.17128888903614772,"d":"-0.171"},{"v":7.6712888890361475,"d":"7.671"},{"$f":"'VIII. Pers. sov. loans, 1312-'!C217","v":{"v":16.735478870103467,"d":"16.735"}}]
[1525,null,{"v":9.524572277293279,"d":"9.525"},{"v":3.3296829490063584,"d":"3.330"},{"v":6.194889328286921,"d":"6.195"},{"v":9.964285714285714,"d":"9.964"},{"v":-0.1876111439938582,"d":"-0.188"},{"v":10.151896858279574,"d":"10.152"},null,null,{"$f":"SUM('IV. Country level, 1310-2018'!AO219:AV219)","v":{"v":8.934041894848669,"d":"8.934"}},{"$f":"SUM('IV. Country level, 1310-2018'!AY219:BF219)","v":{"v":-5.921841122793411,"d":"-5.9218"}},{"v":14.855883017642078,"d":"14.856"},{"v":9.25,"d":"9.250"},{"$f":"'IV. Country level, 1310-2018'!AA219","v":{"v":-5.208439925176757,"d":"-5.208"}},{"$f":"'IV. Country level, 1310-2018'!I219","v":{"v":14.458439925176757,"d":"14.458"}},{"$nulls":5},{"v":5,"d":"5.000"},{"v":-1.0498425738483197,"d":"-1.050"},{"v":6.04984257384832,"d":"6.050"},{"$f":"'VIII. Pers. sov. loans, 1312-'!C218","v":{"v":16.716248100872697,"d":"16.716"}}]
[1526,null,{"v":9.581460893160028,"d":"9.581"},{"v":3.3287682903739215,"d":"3.329"},{"v":6.252692602786107,"d":"6.253"},{"v":9.892857142857142,"d":"9.893"},{"v":-1.5990666232223574,"d":"-1.599"},{"v":11.4919237660795,"d":"11.492"},null,null,{"$f":"SUM('IV. Country level, 1310-2018'!AO220:AV220)","v":{"v":9.727653970845232,"d":"9.728"}},{"$f":"SUM('IV. Country level, 1310-2018'!AY220:BF220)","v":{"v":-3.2594454396019565,"d":"-3.2594"}},{"v":12.987099410447188,"d":"12.987"},{"v":9,"d":"9.000"},{"$f":"'IV. Country level, 1310-2018'!AA220","v":{"v":0.026229619085755405,"d":"0.026"}},{"$f":"'IV. Country level, 1310-2018'!I220","v":{"v":8.973770380914244,"d":"8.974"}},{"$nulls":5},{"v":5,"d":"5.000"},{"v":0.5456634754599627,"d":"0.546"},{"v":4.454336524540038,"d":"4.454"},{"$f":"'VIII. Pers. sov. loans, 1312-'!C219","v":{"v":16.442602109278756,"d":"16.443"}}]
[1527,null,{"v":9.777295063245964,"d":"9.777"},{"v":6.508345080744164,"d":"6.508"},{"v":3.268949982501802,"d":"3.269"},{"v":10.25,"d":"10.250"},{"v":2.141490341029817,"d":"2.141"},{"v":8.108509658970187,"d":"8.109"},null,null,{"$f":"SUM('IV. Country level, 1310-2018'!AO221:AV221)","v":{"v":10.08966981989605,"d":"10.090"}},{"$f":"SUM('IV. Country level, 1310-2018'!AY221:BF221)","v":{"v":13.30601219750092,"d":"13.3060"}},{"v":-3.216342377604869,"d":"-3.216"},{"v":9,"d":"9.000"},{"$f":"'IV. Country level, 1310-2018'!AA221","v":{"v":6.390797504893622,"d":"6.391"}},{"$f":"'IV. Country level, 1310-2018'!I221","v":{"v":2.609202495106378,"d":"2.609"}},{"$nulls":5},{"v":4.583333333333334,"d":"4.583"},{"v":5.836803847455608,"d":"5.837"},{"v":-1.2534705141222737,"d":"-1.253"},{"$f":"'VIII. Pers. sov. loans, 1312-'!C220","v":{"v":16.028293210122282,"d":"16.028"}}]
[1528,null,{"v":9.891924863509251,"d":"9.892"},{"v":5.5748269534792945,"d":"5.575"},{"v":4.317097910029958,"d":"4.317"},{"v":10.607142857142858,"d":"10.607"},{"v":1.705806743902924,"d":"1.706"},{"v":8.901336113239934,"d":"8.901"},null,null,{"$f":"SUM('IV. Country level, 1310-2018'!AO222:AV222)","v":{"v":10.640910184147453,"d":"10.641"}},{"$f":"SUM('IV. Country level, 1310-2018'!AY222:BF222)","v":{"v":15.37487588367092,"d":"15.3749"}},{"v":-4.733965699523468,"d":"-4.734"},{"v":14.000000000000004,"d":"14.000"},{"$f":"'IV. Country level, 1310-2018'!AA222","v":{"v":-3.195101144914837,"d":"-3.195"}},{"$f":"'IV. Country level, 1310-2018'!I222","v":{"v":17.19510114491484,"d":"17.195"}},{"$nulls":5},{"v":6.333333333333334,"d":"6.333"},{"v":9.064238489056665,"d":"9.064"},{"v":-2.730905155723331,"d":"-2.731"},{"$f":"'VIII. Pers. sov. loans, 1312-'!C221","v":{"v":15.439917085079646,"d":"15.440"}}]
[1529,null,{"v":9.978562041213651,"d":"9.979"},{"v":5.330222595364673,"d":"5.330"},{"v":4.64833944584898,"d":"4.648"},{"v":11,"d":"11.000"},{"v":1.9125357086814212,"d":"1.913"},{"v":9.08746429131858,"d":"9.087"},null,null,{"$f":"SUM('IV. Country level, 1310-2018'!AO223:AV223)","v":{"v":9.61656653322977,"d":"9.617"}},{"$f":"SUM('IV. Country level, 1310-2018'!AY223:BF223)","v":{"v":7.510085825491246,"d":"7.5101"}},{"v":2.106480707738524,"d":"2.106"},{"v":9,"d":"9.000"},{"$f":"'IV. Country level, 1310-2018'!AA223","v":{"v":15.453804074132366,"d":"15.454"}},{"$f":"'IV. Country level, 1310-2018'!I223","v":{"v":-6.453804074132366,"d":"-6.454"}},{"$nulls":5},{"v":4.5,"d":"4.500"},{"v":7.8437964710667645,"d":"7.844"},{"v":-3.3437964710667645,"d":"-3.344"},{"$f":"'VIII. Pers. sov. loans, 1312-'!C222","v":{"v":16.565982828066378,"d":"16.566"}}]
[1530,null,{"v":9.874071315551953,"d":"9.874"},{"v":5.351253216204029,"d":"5.351"},{"v":4.522818099347925,"d":"4.523"},{"v":11.428571428571429,"d":"11.429"},{"v":1.8173886003140676,"d":"1.817"},{"v":9.61118282825736,"d":"9.611"},null,null,{"$f":"SUM('IV. Country level, 1310-2018'!AO224:AV224)","v":{"v":10.205088243302066,"d":"10.205"}},{"$f":"SUM('IV. Country level, 1310-2018'!AY224:BF224)","v":{"v":12.824529165412988,"d":"12.8245"}},{"v":-2.619440922110922,"d":"-2.619"},{"v":12,"d":"12.000"},{"$f":"'IV. Country level, 1310-2018'!AA224","v":{"v":1.5104722746927912,"d":"1.510"}},{"$f":"'IV. Country level, 1310-2018'!I224","v":{"v":10.489527725307209,"d":"10.490"}},{"$nulls":5},{"v":4.625641025641025,"d":"4.626"},{"v":6.433126737366446,"d":"6.433"},{"v":-1.8074857117254206,"d":"-1.807"},{"$f":"'VIII. Pers. sov. loans, 1312-'!C223","v":{"v":17.28969466064729,"d":"17.290"}}]
[1531,null,{"v":9.733026273994241,"d":"9.733"},{"v":2.504648591711796,"d":"2.505"},{"v":7.228377682282444,"d":"7.228"},{"v":11.857142857142858,"d":"11.857"},{"v":1.0247126255055263,"d":"1.025"},{"v":10.832430231637332,"d":"10.832"},null,null,{"$f":"SUM('IV. Country level, 1310-2018'!AO225:AV225)","v":{"v":10.029543398295521,"d":"10.030"}},{"$f":"SUM('IV. Country level, 1310-2018'!AY225:BF225)","v":{"v":-0.8104278353256507,"d":"-0.8104"}},{"v":10.839971233621172,"d":"10.840"},{"v":12,"d":"12.000"},{"$f":"'IV. Country level, 1310-2018'!AA225","v":{"v":-3.0371151953924724,"d":"-3.037"}},{"$f":"'IV. Country level, 1310-2018'!I225","v":{"v":15.037115195392472,"d":"15.037"}},{"$nulls":5},{"v":4.72948717948718,"d":"4.729"},{"v":0.3870757605223186,"d":"0.387"},{"v":4.342411418964861,"d":"4.342"},{"$f":"'VIII. Pers. sov. loans, 1312-'!C224","v":{"v":17.003980374933004,"d":"17.004"}}]
[1532,null,{"v":9.465631816611692,"d":"9.466"},{"v":-1.2203736427431704,"d":"-1.220"},{"v":10.686005459354861,"d":"10.686"},{"v":11.571428571428571,"d":"11.571"},{"v":0.9200145398918796,"d":"0.920"},{"v":10.651414031536692,"d":"10.651"},null,null,{"$f":"SUM('IV. Country level, 1310-2018'!AO226:AV226)","v":{"v":9.540502138779472,"d":"9.541"}},{"$f":"SUM('IV. Country level, 1310-2018'!AY226:BF226)","v":{"v":-7.634071629595757,"d":"-7.6341"}},{"v":17.17457376837523,"d":"17.175"},{"v":12,"d":"12.000"},{"$f":"'IV. Country level, 1310-2018'!AA226","v":{"v":-3.761337171727276,"d":"-3.761"}},{"$f":"'IV. Country level, 1310-2018'!I226","v":{"v":15.761337171727277,"d":"15.761"}},{"$nulls":5},{"v":4.833333333333334,"d":"4.833"},{"v":-0.6631785384257645,"d":"-0.663"},{"v":5.496511871759099,"d":"5.497"},{"$f":"'VIII. Pers. sov. loans, 1312-'!C225","v":{"v":16.43255180350443,"d":"16.433"}}]
[1533,null,{"v":9.231981061785815,"d":"9.232"},{"v":-1.4636221968312595,"d":"-1.464"},{"v":10.695603258617073,"d":"10.696"},{"v":11.428571428571429,"d":"11.429"},{"v":-1.401845853198532,"d":"-1.402"},{"v":12.830417281769959,"d":"12.830"},null,null,{"$f":"SUM('IV. Country level, 1310-2018'!AO227:AV227)","v":{"v":8.996218891213331,"d":"8.996"}},{"$f":"SUM('IV. Country level, 1310-2018'!AY227:BF227)","v":{"v":-3.112231093726474,"d":"-3.1122"}},{"v":12.108449984939806,"d":"12.108"},{"v":12,"d":"12.000"},{"$f":"'IV. Country level, 1310-2018'!AA227","v":{"v":-0.639800139485719,"d":"-0.640"}},{"$f":"'IV. Country level, 1310-2018'!I227","v":{"v":12.639800139485718,"d":"12.640"}},{"$nulls":5},{"v":4.916666666666667,"d":"4.917"},{"v":9.265077187980813,"d":"9.265"},{"v":-4.348410521314146,"d":"-4.348"},{"$f":"'VIII. Pers. sov. loans, 1312-'!C226","v":{"v":16.014283588656312,"d":"16.014"}}]
[1534,null,{"v":8.94469557465997,"d":"8.945"},{"v":-3.847166168914001,"d":"-3.847"},{"v":12.791861743573971,"d":"12.792"},{"v":10.857142857142858,"d":"10.857"},{"v":-2.5987360201646745,"d":"-2.599"},{"v":13.455878877307532,"d":"13.456"},null,null,{"$f":"SUM('IV. Country level, 1310-2018'!AO228:AV228)","v":{"v":9.10235452899207,"d":"9.102"}},{"$f":"SUM('IV. Country level, 1310-2018'!AY228:BF228)","v":{"v":-6.6202201739446975,"d":"-6.6202"}},{"v":15.722574702936768,"d":"15.723"},{"v":12,"d":"12.000"},{"$f":"'IV. Country level, 1310-2018'!AA228","v":{"v":0.842065681233831,"d":"0.842"}},{"$f":"'IV. Country level, 1310-2018'!I228","v":{"v":11.15793431876617,"d":"11.158"}},{"$nulls":5},{"v":5,"d":"5.000"},{"v":-2.533912302276021,"d":"-2.534"},{"v":7.533912302276021,"d":"7.534"},{"$f":"'VIII. Pers. sov. loans, 1312-'!C227","v":{"v":15.364283588656312,"d":"15.364"}}]
[1535,null,{"v":8.755339568459155,"d":"8.755"},{"v":-3.011839599382011,"d":"-3.012"},{"v":11.767179167841165,"d":"11.767"},{"v":10.285714285714286,"d":"10.286"},{"v":-1.6535662442588295,"d":"-1.654"},{"v":11.939280529973114,"d":"11.939"},null,null,{"$f":"SUM('IV. Country level, 1310-2018'!AO229:AV229)","v":{"v":8.769148982469613,"d":"8.769"}},{"$f":"SUM('IV. Country level, 1310-2018'!AY229:BF229)","v":{"v":-10.700279757513847,"d":"-10.7003"}},{"v":19.46942873998346,"d":"19.469"},{"v":12,"d":"12.000"},{"$f":"'IV. Country level, 1310-2018'!AA229","v":{"v":-3.9279877442103666,"d":"-3.928"}},{"$f":"'IV. Country level, 1310-2018'!I229","v":{"v":15.927987744210366,"d":"15.928"}},{"$nulls":5},{"v":4.5,"d":"4.500"},{"v":-12.965444204176006,"d":"-12.965"},{"v":17.465444204176006,"d":"17.465"},{"$f":"'VIII. Pers. sov. loans, 1312-'!C228","v":{"v":15.373567608861729,"d":"15.374"}}]
[1536,null,{"v":8.656870198472395,"d":"8.657"},{"v":0.9294951586393759,"d":"0.929"},{"v":7.727375039833019,"d":"7.727"},{"v":9.642857142857142,"d":"9.643"},{"v":0.38046716907764655,"d":"0.380"},{"v":9.262389973779495,"d":"9.262"},null,null,{"$f":"SUM('IV. Country level, 1310-2018'!AO230:AV230)","v":{"v":7.981011249448631,"d":"7.981"}},{"$f":"SUM('IV. Country level, 1310-2018'!AY230:BF230)","v":{"v":5.807345946874621,"d":"5.8073"}},{"v":2.17366530257401,"d":"2.174"},{"v":8,"d":"8.000"},{"$f":"'IV. Country level, 1310-2018'!AA230","v":{"v":-0.7992186775005118,"d":"-0.799"}},{"$f":"'IV. Country level, 1310-2018'!I230","v":{"v":8.799218677500512,"d":"8.799"}},{"$nulls":5},{"v":8.959999999999999,"d":"8.960"},{"v":0.9506836361247125,"d":"0.951"},{"v":8.009316363875287,"d":"8.009"},{"$f":"'VIII. Pers. sov. loans, 1312-'!C229","v":{"v":14.290552584670232,"d":"14.291"}}]
[1537,null,{"v":8.605844698305638,"d":"8.606"},{"v":3.0008905026315165,"d":"3.001"},{"v":5.604954195674121,"d":"5.605"},{"v":8.928571428571429,"d":"8.929"},{"v":1.9152980304172382,"d":"1.915"},{"v":7.01327339815419,"d":"7.013"},null,null,{"$f":"SUM('IV. Country level, 1310-2018'!AO231:AV231)","v":{"v":8.19408983342116,"d":"8.194"}},{"$f":"SUM('IV. Country level, 1310-2018'!AY231:BF231)","v":{"v":-3.8602786391662005,"d":"-3.8603"}},{"v":12.05436847258736,"d":"12.054"},{"v":8,"d":"8.000"},{"$f":"'IV. Country level, 1310-2018'!AA231","v":{"v":-6.867758894070206,"d":"-6.868"}},{"$f":"'IV. Country level, 1310-2018'!I231","v":{"v":14.867758894070207,"d":"14.868"}},{"$nulls":5},{"v":4,"d":"4.000"},{"v":-0.9375530873974547,"d":"-0.938"},{"v":4.937553087397455,"d":"4.938"},{"$f":"'VIII. Pers. sov. loans, 1312-'!C230","v":{"v":14.290552584670232,"d":"14.291"}}]
[1538,null,{"v":8.457582639987333,"d":"8.458"},{"v":1.8566445494923756,"d":"1.857"},{"v":6.6009380904949575,"d":"6.601"},{"v":8.214285714285714,"d":"8.214"},{"v":-0.2778049564814025,"d":"-0.278"},{"v":8.492090670767118,"d":"8.492"},null,null,{"$f":"SUM('IV. Country level, 1310-2018'!AO232:AV232)","v":{"v":8.704051354889815,"d":"8.704"}},{"$f":"SUM('IV. Country level, 1310-2018'!AY232:BF232)","v":{"v":5.0368581513982775,"d":"5.0369"}},{"v":3.6671932034915375,"d":"3.667"},{"v":8,"d":"8.000"},{"$f":"'IV. Country level, 1310-2018'!AA232","v":{"v":3.579073235948444,"d":"3.579"}},{"$f":"'IV. Country level, 1310-2018'!I232","v":{"v":4.420926764051556,"d":"4.421"}},{"$nulls":5},{"v":4.5,"d":"4.500"},{"v":3.9424735226230947,"d":"3.942"},{"v":0.5575264773769053,"d":"0.558"},{"$f":"'VIII. Pers. sov. loans, 1312-'!C231","v":{"v":14.261497326203209,"d":"14.261"}}]
[1539,null,{"v":8.346210657106042,"d":"8.346"},{"v":2.6001293850167264,"d":"2.600"},{"v":5.746081272089315,"d":"5.746"},{"v":7.5,"d":"7.500"},{"v":1.6254919011511653,"d":"1.625"},{"v":5.874508098848836,"d":"5.875"},null,null,{"$f":"SUM('IV. Country level, 1310-2018'!AO233:AV233)","v":{"v":8.851216548872154,"d":"8.851"}},{"$f":"SUM('IV. Country level, 1310-2018'!AY233:BF233)","v":{"v":19.955271676553956,"d":"19.9553"}},{"v":-11.104055127681802,"d":"-11.104"},{"v":7.5,"d":"7.500"},{"$f":"'IV. Country level, 1310-2018'!AA233","v":{"v":10.476896721628055,"d":"10.477"}},{"$f":"'IV. Country level, 1310-2018'!I233","v":{"v":-2.976896721628055,"d":"-2.977"}},{"$nulls":5},{"v":5,"d":"5.000"},{"v":4.582103396166114,"d":"4.582"},{"v":0.4178966038338858,"d":"0.418"},{"$f":"'VIII. Pers. sov. loans, 1312-'!C232","v":{"v":13.842914438502675,"d":"13.843"}}]
[1540,null,{"v":8.432580260968788,"d":"8.433"},{"v":2.653354496026915,"d":"2.653"},{"v":5.779225764941872,"d":"5.779"},{"v":7.5,"d":"7.500"},{"v":0.6900108309792256,"d":"0.690"},{"v":6.809989169020775,"d":"6.810"},null,null,{"$f":"SUM('IV. Country level, 1310-2018'!AO234:AV234)","v":{"v":8.639040390046034,"d":"8.639"}},{"$f":"SUM('IV. Country level, 1310-2018'!AY234:BF234)","v":{"v":11.387536314218506,"d":"11.3875"}},{"v":-2.748495924172472,"d":"-2.748"},{"v":7.000000000000001,"d":"7.000"},{"$f":"'IV. Country level, 1310-2018'!AA234","v":{"v":10.104015889891421,"d":"10.104"}},{"$f":"'IV. Country level, 1310-2018'!I234","v":{"v":-3.1040158898914205,"d":"-3.104"}},{"$nulls":5},{"v":6.111111111111112,"d":"6.111"},{"v":13.588463437859374,"d":"13.588"},{"v":-7.477352326748263,"d":"-7.477"},{"$f":"'VIII. Pers. sov. loans, 1312-'!C233","v":{"v":12.5,"d":"12.500"}}]
[1541,null,{"v":8.537164470657181,"d":"8.537"},{"v":3.4148033831854683,"d":"3.415"},{"v":5.122361087471714,"d":"5.122"},{"v":7.642857142857143,"d":"7.643"},{"v":1.5680075128862294,"d":"1.568"},{"v":6.074849629970914,"d":"6.075"},null,null,{"$f":"SUM('IV. Country level, 1310-2018'!AO235:AV235)","v":{"v":8.064520120763921,"d":"8.065"}},{"$f":"SUM('IV. Country level, 1310-2018'!AY235:BF235)","v":{"v":-14.629941845918689,"d":"-14.6299"}},{"v":22.69446196668261,"d":"22.694"},{"v":7.000000000000002,"d":"7.000"},{"$f":"'IV. Country level, 1310-2018'!AA235","v":{"v":-14.509655227056653,"d":"-14.510"}},{"$f":"'IV. Country level, 1310-2018'!I235","v":{"v":21.509655227056655,"d":"21.510"}},{"$nulls":5},{"v":7.222222222222223,"d":"7.222"},{"v":-12.823657029243263,"d":"-12.824"},{"v":20.045879251465486,"d":"20.046"},{"$f":"'VIII. Pers. sov. loans, 1312-'!C234","v":{"v":12.73076923076923,"d":"12.731"}}]
[1542,null,{"v":8.490416643979824,"d":"8.490"},{"v":3.5934270134400745,"d":"3.593"},{"v":4.896989630539748,"d":"4.897"},{"v":7.392857142857143,"d":"7.393"},{"v":2.7992850313572086,"d":"2.799"},{"v":4.593572111499934,"d":"4.594"},null,null,{"$f":"SUM('IV. Country level, 1310-2018'!AO236:AV236)","v":{"v":7.989545102300573,"d":"7.990"}},{"$f":"SUM('IV. Country level, 1310-2018'!AY236:BF236)","v":{"v":-5.495885908843392,"d":"-5.4959"}},{"v":13.485431011143966,"d":"13.485"},{"v":7.000000000000001,"d":"7.000"},{"$f":"'IV. Country level, 1310-2018'!AA236","v":{"v":9.395090259217607,"d":"9.395"}},{"$f":"'IV. Country level, 1310-2018'!I236","v":{"v":-2.395090259217606,"d":"-2.395"}},{"$nulls":5},{"v":5,"d":"5.000"},{"v":0.005839972009484088,"d":"0.006"},{"v":4.994160027990516,"d":"4.994"},{"$f":"'VIII. Pers. sov. loans, 1312-'!C235","v":{"v":12.558823529411764,"d":"12.559"}}]
[1543,null,{"v":8.592461608258628,"d":"8.592"},{"v":1.3995673200258563,"d":"1.400"},{"v":7.19289428823277,"d":"7.193"},{"v":7.892857142857143,"d":"7.893"},{"v":3.4869766369669803,"d":"3.487"},{"v":4.4058805058901624,"d":"4.406"},null,null,{"$f":"SUM('IV. Country level, 1310-2018'!AO237:AV237)","v":{"v":8.585598476487858,"d":"8.586"}},{"$f":"SUM('IV. Country level, 1310-2018'!AY237:BF237)","v":{"v":6.179921723945947,"d":"6.1799"}},{"v":2.405676752541911,"d":"2.406"},{"v":7.999999999999999,"d":"8.000"},{"$f":"'IV. Country level, 1310-2018'!AA237","v":{"v":-7.347586168704091,"d":"-7.348"}},{"$f":"'IV. Country level, 1310-2018'!I237","v":{"v":15.34758616870409,"d":"15.348"}},{"$nulls":5},{"v":5,"d":"5.000"},{"v":4.6212670197774575,"d":"4.621"},{"v":0.37873298022254254,"d":"0.379"},{"$f":"'VIII. Pers. sov. loans, 1312-'!C236","v":{"v":12.833333333333334,"d":"12.833"}}]
[1544,null,{"v":8.728051113972711,"d":"8.728"},{"v":-1.2479167232510784,"d":"-1.248"},{"v":9.97596783722379,"d":"9.976"},{"v":8.321428571428571,"d":"8.321"},{"v":0.24057221566076134,"d":"0.241"},{"v":8.08085635576781,"d":"8.081"},null,null,{"$f":"SUM('IV. Country level, 1310-2018'!AO238:AV238)","v":{"v":8.926179301239912,"d":"8.926"}},{"$f":"SUM('IV. Country level, 1310-2018'!AY238:BF238)","v":{"v":1.469863570943671,"d":"1.4699"}},{"v":7.456315730296241,"d":"7.456"},{"v":9,"d":"9.000"},{"$f":"'IV. Country level, 1310-2018'!AA238","v":{"v":-0.721782120721181,"d":"-0.722"}},{"$f":"'IV. Country level, 1310-2018'!I238","v":{"v":9.721782120721182,"d":"9.722"}},{"$nulls":5},{"v":11.166666666666666,"d":"11.167"},{"v":-2.0704299217637887,"d":"-2.070"},{"v":13.237096588430454,"d":"13.237"},{"$f":"'VIII. Pers. sov. loans, 1312-'!C237","v":{"v":12.98076923076923,"d":"12.981"}}]
[1545,null,{"v":8.930965945281034,"d":"8.931"},{"v":0.987870081989512,"d":"0.988"},{"v":7.943095863291522,"d":"7.943"},{"v":8.607142857142858,"d":"8.607"},{"v":2.189308813928256,"d":"2.189"},{"v":6.417834043214602,"d":"6.418"},null,null,{"$f":"SUM('IV. Country level, 1310-2018'!AO239:AV239)","v":{"v":8.376816568148305,"d":"8.377"}},{"$f":"SUM('IV. Country level, 1310-2018'!AY239:BF239)","v":{"v":6.287223563180522,"d":"6.2872"}},{"v":2.0895930049677833,"d":"2.090"},{"v":6.25,"d":"6.250"},{"$f":"'IV. Country level, 1310-2018'!AA239","v":{"v":12.198015865245303,"d":"12.198"}},{"$f":"'IV. Country level, 1310-2018'!I239","v":{"v":-5.948015865245303,"d":"-5.948"}},{"$nulls":5},{"v":7.083333333333333,"d":"7.083"},{"v":-3.9455908252175425,"d":"-3.946"},{"v":11.028924158550875,"d":"11.029"},{"$f":"'VIII. Pers. sov. loans, 1312-'!C238","v":{"v":13.018518518518519,"d":"13.019"}}]
[1546,null,{"v":9.06858293142281,"d":"9.069"},{"v":3.3370735388613193,"d":"3.337"},{"v":5.731509392561491,"d":"5.732"},{"v":8.696428571428571,"d":"8.696"},{"v":1.8099114259102345,"d":"1.810"},{"v":6.886517145518337,"d":"6.887"},null,null,{"$f":"SUM('IV. Country level, 1310-2018'!AO240:AV240)","v":{"v":9.56553129882378,"d":"9.566"}},{"$f":"SUM('IV. Country level, 1310-2018'!AY240:BF240)","v":{"v":4.598253822654429,"d":"4.5983"}},{"v":4.967277476169351,"d":"4.967"},{"v":11,"d":"11.000"},{"$f":"'IV. Country level, 1310-2018'!AA240","v":{"v":15.290737960896458,"d":"15.291"}},{"$f":"'IV. Country level, 1310-2018'!I240","v":{"v":-4.2907379608964575,"d":"-4.291"}},{"$nulls":5},{"v":5.541666666666667,"d":"5.542"},{"v":0.8128177953995745,"d":"0.813"},{"v":4.728848871267092,"d":"4.729"},{"$f":"'VIII. Pers. sov. loans, 1312-'!C239","v":{"v":12.827586206896552,"d":"12.828"}}]
[1547,null,{"v":9.053680474670054,"d":"9.054"},{"v":3.5047096449777415,"d":"3.505"},{"v":5.548970829692313,"d":"5.549"},{"v":8.446428571428571,"d":"8.446"},{"v":2.7313238271584623,"d":"2.731"},{"v":5.715104744270109,"d":"5.715"},null,null,{"$f":"SUM('IV. Country level, 1310-2018'!AO241:AV241)","v":{"v":9.588166930044633,"d":"9.588"}},{"$f":"SUM('IV. Country level, 1310-2018'!AY241:BF241)","v":{"v":-7.144851988720035,"d":"-7.1449"}},{"v":16.733018918764667,"d":"16.733"},{"v":9.999999999999998,"d":"10.000"},{"$f":"'IV. Country level, 1310-2018'!AA241","v":{"v":-12.620815059252111,"d":"-12.621"}},{"$f":"'IV. Country level, 1310-2018'!I241","v":{"v":22.62081505925211,"d":"22.621"}},{"$nulls":5},{"v":4,"d":"4.000"},{"v":-2.8568531185701183,"d":"-2.857"},{"v":6.856853118570118,"d":"6.857"},{"$f":"'VIII. Pers. sov. loans, 1312-'!C240","v":{"v":12.827586206896552,"d":"12.828"}}]
[1548,null,{"v":9.037452650035377,"d":"9.037"},{"v":3.968291582885127,"d":"3.968"},{"v":5.069161067150249,"d":"5.069"},{"v":8.042142857142858,"d":"8.042"},{"v":3.795985165076336,"d":"3.796"},{"v":4.246157692066521,"d":"4.246"},null,null,{"$f":"SUM('IV. Country level, 1310-2018'!AO242:AV242)","v":{"v":9.484923939922181,"d":"9.485"}},{"$f":"SUM('IV. Country level, 1310-2018'!AY242:BF242)","v":{"v":1.0205657907654424,"d":"1.0206"}},{"v":8.46435814915674,"d":"8.464"},{"v":9,"d":"9.000"},{"$f":"'IV. Country level, 1310-2018'!AA242","v":{"v":-0.8684990391841924,"d":"-0.868"}},{"$f":"'IV. Country level, 1310-2018'!I242","v":{"v":9.868499039184192,"d":"9.868"}},{"$nulls":5},{"v":4,"d":"4.000"},{"v":2.5933657715552285,"d":"2.593"},{"v":1.4066342284447715,"d":"1.407"},{"$f":"'VIII. Pers. sov. loans, 1312-'!C241","v":{"v":12.648148148148149,"d":"12.648"}}]
[1549,null,{"v":9.205581948442191,"d":"9.206"},{"v":2.840675578391871,"d":"2.841"},{"v":6.364906370050321,"d":"6.365"},{"v":8.019285714285715,"d":"8.019"},{"v":2.649276407279234,"d":"2.649"},{"v":5.370009307006479,"d":"5.370"},null,null,{"$f":"SUM('IV. Country level, 1310-2018'!AO243:AV243)","v":{"v":8.952864005292998,"d":"8.953"}},{"$f":"SUM('IV. Country level, 1310-2018'!AY243:BF243)","v":{"v":10.94853828925926,"d":"10.9485"}},{"v":-1.9956742839662613,"d":"-1.996"},7.625,{"$f":"'IV. Country level, 1310-2018'!AA243","v":{"v":6.739308543091455,"d":"6.739"}},{"$f":"'IV. Country level, 1310-2018'!I243","v":{"v":0.8856914569085452,"d":"0.886"}},{"$nulls":5},{"v":4,"d":"4.000"},{"v":7.98543412145646,"d":"7.985"},{"v":-3.9854341214564597,"d":"-3.985"},{"$f":"'VIII. Pers. sov. loans, 1312-'!C242","v":{"v":12.703703703703704,"d":"12.704"}}]
[1550,null,{"v":9.243326421051083,"d":"9.243"},{"v":1.569367668110557,"d":"1.569"},{"v":7.6739587529405275,"d":"7.674"},{"v":7.318571428571429,"d":"7.319"},{"v":0.6309902505803441,"d":"0.631"},{"v":6.687581177991085,"d":"6.688"},null,null,{"$f":"SUM('IV. Country level, 1310-2018'!AO244:AV244)","v":{"v":8.481281279218566,"d":"8.481"}},{"$f":"SUM('IV. Country level, 1310-2018'!AY244:BF244)","v":{"v":7.353374466760902,"d":"7.3534"}},{"v":1.127906812457664,"d":"1.128"},{"v":6.25,"d":"6.250"},{"$f":"'IV. Country level, 1310-2018'!AA244","v":{"v":-0.8976993599664967,"d":"-0.898"}},{"$f":"'IV. Country level, 1310-2018'!I244","v":{"v":7.147699359966497,"d":"7.148"}},{"$nulls":5},{"v":4.166666666666667,"d":"4.167"},{"v":9.52056912797579,"d":"9.521"},{"v":-5.353902461309123,"d":"-5.354"},{"$f":"'VIII. Pers. sov. loans, 1312-'!C243","v":{"v":12.75,"d":"12.750"}}]
[1551,null,{"v":9.329233667938471,"d":"9.329"},{"v":4.063955520790612,"d":"4.064"},{"v":5.26527814714786,"d":"5.265"},{"v":6.7614285714285725,"d":"6.761"},{"v":1.8833223423966328,"d":"1.883"},{"v":4.87810622903194,"d":"4.878"},null,null,{"$f":"SUM('IV. Country level, 1310-2018'!AO245:AV245)","v":{"v":8.81258452879717,"d":"8.813"}},{"$f":"SUM('IV. Country level, 1310-2018'!AY245:BF245)","v":{"v":4.714937136295371,"d":"4.7149"}},{"v":4.097647392501799,"d":"4.098"},{"v":6.170000000000001,"d":"6.170"},{"$f":"'IV. Country level, 1310-2018'!AA245","v":{"v":6.730847244703937,"d":"6.731"}},{"$f":"'IV. Country level, 1310-2018'!I245","v":{"v":-0.5608472447039361,"d":"-0.561"}},{"$nulls":5},{"v":4.333333333333334,"d":"4.333"},{"v":9.141310625880939,"d":"9.141"},{"v":-4.807977292547605,"d":"-4.808"},{"$f":"'VIII. Pers. sov. loans, 1312-'!C244","v":{"v":12.541666666666666,"d":"12.542"}}]
[1552,null,{"v":9.448932106363769,"d":"9.449"},{"v":5.506216011333467,"d":"5.506"},{"v":3.9427160950303013,"d":"3.943"},{"v":6.768571428571429,"d":"6.769"},{"v":2.6243137960611844,"d":"2.624"},{"v":4.144257632510245,"d":"4.144"},null,null,{"$f":"SUM('IV. Country level, 1310-2018'!AO246:AV246)","v":{"v":9.553721656996004,"d":"9.554"}},{"$f":"SUM('IV. Country level, 1310-2018'!AY246:BF246)","v":{"v":-1.6060884682722727,"d":"-1.6061"}},{"v":11.159810125268276,"d":"11.160"},{"v":6.09,"d":"6.090"},{"$f":"'IV. Country level, 1310-2018'!AA246","v":{"v":4.171054560665588,"d":"4.171"}},{"$f":"'IV. Country level, 1310-2018'!I246","v":{"v":1.9189454393344114,"d":"1.919"}},{"$nulls":5},{"v":4.5,"d":"4.500"},{"v":-8.654074533291919,"d":"-8.654"},{"v":13.154074533291919,"d":"13.154"},{"$f":"'VIII. Pers. sov. loans, 1312-'!C245","v":{"v":13.057692307692308,"d":"13.058"}}]
[1553,null,{"v":9.631308905997832,"d":"9.631"},{"v":4.720679085671625,"d":"4.721"},{"v":4.910629820326207,"d":"4.911"},{"v":7.393571428571429,"d":"7.394"},{"v":1.2914120833785998,"d":"1.291"},{"v":6.102159345192829,"d":"6.102"},null,null,{"$f":"SUM('IV. Country level, 1310-2018'!AO247:AV247)","v":{"v":9.829742607086034,"d":"9.830"}},{"$f":"SUM('IV. Country level, 1310-2018'!AY247:BF247)","v":{"v":-4.300901549314769,"d":"-4.3009"}},{"v":14.130644156400804,"d":"14.131"},{"v":6.095000000000001,"d":"6.095"},{"$f":"'IV. Country level, 1310-2018'!AA247","v":{"v":1.162734864004228,"d":"1.163"}},{"$f":"'IV. Country level, 1310-2018'!I247","v":{"v":4.932265135995772,"d":"4.932"}},{"$nulls":5},{"v":4.666666666666666,"d":"4.667"},{"v":-5.2801923105695625,"d":"-5.280"},{"v":9.946858977236229,"d":"9.947"},{"$f":"'VIII. Pers. sov. loans, 1312-'!C246","v":{"v":13.8,"d":"13.800"}}]
[1554,null,{"v":10.017432441255744,"d":"10.017"},{"v":3.7963729291398494,"d":"3.796"},{"v":6.221059512115894,"d":"6.221"},{"v":8.357857142857144,"d":"8.358"},{"v":4.939435916577742,"d":"4.939"},{"v":3.4184212262794023,"d":"3.418"},null,null,{"$f":"SUM('IV. Country level, 1310-2018'!AO248:AV248)","v":{"v":10.189517658256342,"d":"10.190"}},{"$f":"SUM('IV. Country level, 1310-2018'!AY248:BF248)","v":{"v":10.317262980040349,"d":"10.3173"}},{"v":-0.12774532178400655,"d":"-0.128"},{"v":6.1000000000000005,"d":"6.100"},{"$f":"'IV. Country level, 1310-2018'!AA248","v":{"v":-3.854490416538092,"d":"-3.854"}},{"$f":"'IV. Country level, 1310-2018'!I248","v":{"v":9.954490416538093,"d":"9.954"}},{"$nulls":5},{"v":4.833333333333332,"d":"4.833"},{"v":-2.6920367129246148,"d":"-2.692"},{"v":7.525370046257947,"d":"7.525"},{"$f":"'VIII. Pers. sov. loans, 1312-'!C247","v":{"v":14.12962962962963,"d":"14.130"}}]
[1555,null,{"v":10.385986922643264,"d":"10.386"},{"v":2.002681627423123,"d":"2.003"},{"v":8.383305295220138,"d":"8.383"},{"v":9.476428571428572,"d":"9.476"},{"v":2.6206073714226865,"d":"2.621"},{"v":6.855821200005885,"d":"6.856"},null,null,{"$f":"SUM('IV. Country level, 1310-2018'!AO249:AV249)","v":{"v":10.322813008899264,"d":"10.323"}},{"$f":"SUM('IV. Country level, 1310-2018'!AY249:BF249)","v":{"v":11.116389224565433,"d":"11.1164"}},{"v":-0.7935762156661692,"d":"-0.794"},{"v":9.049999999999999,"d":"9.050"},{"$f":"'IV. Country level, 1310-2018'!AA249","v":{"v":4.318441136467668,"d":"4.318"}},{"$f":"'IV. Country level, 1310-2018'!I249","v":{"v":4.731558863532331,"d":"4.732"}},{"$nulls":5},{"v":5,"d":"5.000"},{"v":4.939354216834737,"d":"4.939"},{"v":0.06064578316526337,"d":"0.061"},{"$f":"'VIII. Pers. sov. loans, 1312-'!C248","v":{"v":14.288461538461538,"d":"14.288"}}]
[1556,null,{"v":10.611765741327668,"d":"10.612"},{"v":1.990442375395643,"d":"1.990"},{"v":8.621323365932025,"d":"8.621"},{"v":10.090714285714284,"d":"10.091"},{"v":1.1996362779244305,"d":"1.200"},{"v":8.891078007789854,"d":"8.891"},null,null,{"$f":"SUM('IV. Country level, 1310-2018'!AO250:AV250)","v":{"v":10.229501602731442,"d":"10.230"}},{"$f":"SUM('IV. Country level, 1310-2018'!AY250:BF250)","v":{"v":5.449779809626364,"d":"5.4498"}},{"v":4.779721793105079,"d":"4.780"},{"v":12,"d":"12.000"},{"$f":"'IV. Country level, 1310-2018'!AA250","v":{"v":-2.591003445686632,"d":"-2.591"}},{"$f":"'IV. Country level, 1310-2018'!I250","v":{"v":14.591003445686631,"d":"14.591"}},{"$nulls":5},{"v":4.83974358974359,"d":"4.840"},{"v":1.0546197238484216,"d":"1.055"},{"v":3.7851238658951685,"d":"3.785"},{"$f":"'VIII. Pers. sov. loans, 1312-'!C249","v":{"v":14.636363636363637,"d":"14.636"}}]
[1557,null,{"v":10.7000361137512,"d":"10.700"},{"v":3.18941406814199,"d":"3.189"},{"v":7.51062204560921,"d":"7.511"},{"v":10.188571428571427,"d":"10.189"},{"v":1.3635167636139633,"d":"1.364"},{"v":8.825054664957465,"d":"8.825"},null,null,{"$f":"SUM('IV. Country level, 1310-2018'!AO251:AV251)","v":{"v":11.184146026023942,"d":"11.184"}},{"$f":"SUM('IV. Country level, 1310-2018'!AY251:BF251)","v":{"v":0.8832313710384696,"d":"0.8832"}},{"v":10.300914654985473,"d":"10.301"},{"v":13,"d":"13.000"},{"$f":"'IV. Country level, 1310-2018'!AA251","v":{"v":24.638467472427493,"d":"24.638"}},{"$f":"'IV. Country level, 1310-2018'!I251","v":{"v":-11.638467472427493,"d":"-11.638"}},{"$nulls":5},{"v":4.67948717948718,"d":"4.679"},{"v":-0.7377340701745889,"d":"-0.738"},{"v":5.417221249661768,"d":"5.417"},{"$f":"'VIII. Pers. sov. loans, 1312-'!C250","v":14.762}]
[1558,null,{"v":10.75117040987015,"d":"10.751"},{"v":1.8543138329430204,"d":"1.854"},{"v":8.89685657692713,"d":"8.897"},{"v":10.285714285714286,"d":"10.286"},{"v":2.6164837208472482,"d":"2.616"},{"v":7.669230564867037,"d":"7.669"},null,null,{"$f":"SUM('IV. Country level, 1310-2018'!AO252:AV252)","v":{"v":11.39246589850981,"d":"11.392"}},{"$f":"SUM('IV. Country level, 1310-2018'!AY252:BF252)","v":{"v":-7.840901975721709,"d":"-7.8409"}},{"v":19.23336787423152,"d":"19.233"},{"v":14,"d":"14.000"},{"$f":"'IV. Country level, 1310-2018'!AA252","v":{"v":-9.500952571381447,"d":"-9.501"}},{"$f":"'IV. Country level, 1310-2018'!I252","v":{"v":23.500952571381447,"d":"23.501"}},{"$nulls":5},{"v":4.519230769230769,"d":"4.519"},{"v":1.9390715545935264,"d":"1.939"},{"v":2.5801592146372427,"d":"2.580"},{"$f":"'VIII. Pers. sov. loans, 1312-'!C251","v":{"v":14.630588235294118,"d":"14.631"}}]
[1559,null,{"v":10.769155096191628,"d":"10.769"},{"v":0.996597145724147,"d":"0.997"},{"v":9.772557950467482,"d":"9.773"},{"v":9.961428571428572,"d":"9.961"},{"v":3.008309725721881,"d":"3.008"},{"v":6.95311884570669,"d":"6.953"},null,null,{"$f":"SUM('IV. Country level, 1310-2018'!AO253:AV253)","v":{"v":11.13417338778683,"d":"11.134"}},{"$f":"SUM('IV. Country level, 1310-2018'!AY253:BF253)","v":{"v":-1.6917632324646343,"d":"-1.6918"}},{"v":12.825936620251465,"d":"12.826"},{"v":10.39,"d":"10.390"},{"$f":"'IV. Country level, 1310-2018'!AA253","v":{"v":-5.775743093822204,"d":"-5.776"}},{"$f":"'IV. Country level, 1310-2018'!I253","v":{"v":16.165743093822204,"d":"16.166"}},{"$nulls":5},{"v":4.358974358974359,"d":"4.359"},{"v":4.789386027567423,"d":"4.789"},{"v":-0.4304116685930648,"d":"-0.430"},{"$f":"'VIII. Pers. sov. loans, 1312-'!C252","v":{"v":14.216923076923077,"d":"14.217"}}]
[1560,null,{"v":10.778113190440981,"d":"10.778"},{"v":0.8805622117757366,"d":"0.881"},{"v":9.897550978665247,"d":"9.898"},{"v":9.215714285714286,"d":"9.216"},{"v":3.5280535949456535,"d":"3.528"},{"v":5.687660690768631,"d":"5.688"},null,null,{"$f":"SUM('IV. Country level, 1310-2018'!AO254:AV254)","v":{"v":10.447635214050766,"d":"10.448"}},{"$f":"SUM('IV. Country level, 1310-2018'!AY254:BF254)","v":{"v":4.09190029990966,"d":"4.0919"}},{"v":6.355734914141107,"d":"6.356"},{"v":6.779999999999999,"d":"6.780"},{"$f":"'IV. Country level, 1310-2018'!AA254","v":{"v":2.309898263830958,"d":"2.310"}},{"$f":"'IV. Country level, 1310-2018'!I254","v":{"v":4.470101736169042,"d":"4.470"}},{"$nulls":5},{"v":4.200549450549451,"d":"4.201"},{"v":4.412998524166528,"d":"4.413"},{"v":-0.2124490736170772,"d":"-0.212"},{"$f":"'VIII. Pers. sov. loans, 1312-'!C253","v":{"v":12.86,"d":"12.860"}}]
[1561,null,{"v":10.67443744247964,"d":"10.674"},{"v":-0.6438059714937429,"d":"-0.644"},{"v":11.318243413973383,"d":"11.318"},{"v":8.327142857142858,"d":"8.327"},{"v":-1.102779537894,"d":"-1.103"},{"v":9.429922395036856,"d":"9.430"},null,null,{"$f":"SUM('IV. Country level, 1310-2018'!AO255:AV255)","v":{"v":10.547457731088992,"d":"10.547"}},{"$f":"SUM('IV. Country level, 1310-2018'!AY255:BF255)","v":{"v":0.9715613336475617,"d":"0.9716"}},{"v":9.57589639744143,"d":"9.576"},{"v":6.78,"d":"6.780"},{"$f":"'IV. Country level, 1310-2018'!AA255","v":{"v":4.9162782840949,"d":"4.916"}},{"$f":"'IV. Country level, 1310-2018'!I255","v":{"v":1.8637217159051005,"d":"1.864"}},{"$nulls":5},{"v":4.042124542124542,"d":"4.042"},{"v":-1.2238078505070147,"d":"-1.224"},{"v":5.265932392631557,"d":"5.266"},{"$f":"'VIII. Pers. sov. loans, 1312-'!C254","v":{"v":10.625913838749236,"d":"10.626"}}]
[1562,null,{"v":10.590186723128273,"d":"10.590"},{"v":1.6824195906611281,"d":"1.682"},{"v":8.907767132467146,"d":"8.908"},{"v":7.295714285714287,"d":"7.296"},{"v":-0.2711119160016963,"d":"-0.271"},{"v":7.566826201715982,"d":"7.567"},null,null,{"$f":"SUM('IV. Country level, 1310-2018'!AO256:AV256)","v":{"v":10.448705813149612,"d":"10.449"}},{"$f":"SUM('IV. Country level, 1310-2018'!AY256:BF256)","v":{"v":5.112372414033318,"d":"5.1124"}},{"v":5.336333399116294,"d":"5.336"},{"v":6.78,"d":"6.780"},{"$f":"'IV. Country level, 1310-2018'!AA256","v":{"v":7.0612231705901,"d":"7.061"}},{"$f":"'IV. Country level, 1310-2018'!I256","v":{"v":-0.28122317059010005,"d":"-0.281"}},{"$nulls":5},{"v":3.883699633699634,"d":"3.884"},{"v":-2.407902552195186,"d":"-2.408"},{"v":6.291602185894821,"d":"6.292"},{"$f":"'VIII. Pers. sov. loans, 1312-'!C255","v":{"v":10.488261532291029,"d":"10.488"}}]
[1563,null,{"v":10.475265966905331,"d":"10.475"},{"v":3.6179904157200093,"d":"3.618"},{"v":6.857275551185323,"d":"6.857"},{"v":6.782857142857144,"d":"6.783"},{"v":2.484613209874777,"d":"2.485"},{"v":4.298243932982365,"d":"4.298"},null,null,{"$f":"SUM('IV. Country level, 1310-2018'!AO257:AV257)","v":{"v":10.292208262476928,"d":"10.292"}},{"$f":"SUM('IV. Country level, 1310-2018'!AY257:BF257)","v":{"v":4.637535271987491,"d":"4.6375"}},{"v":5.654672990489437,"d":"5.655"},{"v":6.78,"d":"6.780"},{"$f":"'IV. Country level, 1310-2018'!AA257","v":{"v":1.0472036388797752,"d":"1.047"}},{"$f":"'IV. Country level, 1310-2018'!I257","v":{"v":5.732796361120225,"d":"5.733"}},{"$nulls":5},{"v":3.725274725274726,"d":"3.725"},{"v":1.189975784280634,"d":"1.190"},{"v":2.5352989409940916,"d":"2.535"},{"$f":"'VIII. Pers. sov. loans, 1312-'!C256","v":{"v":10.266196149218272,"d":"10.266"}}]
[1564,null,{"v":10.312499540906595,"d":"10.312"},{"v":2.319506773003996,"d":"2.320"},{"v":7.9929927679025985,"d":"7.993"},{"v":6.785714285714286,"d":"6.786"},{"v":2.789859843688529,"d":"2.790"},{"v":3.995854442025756,"d":"3.996"},null,null,{"$f":"SUM('IV. Country level, 1310-2018'!AO258:AV258)","v":{"v":10.45841579029454,"d":"10.458"}},{"$f":"SUM('IV. Country level, 1310-2018'!AY258:BF258)","v":{"v":-9.787345911847886,"d":"-9.7873"}},{"v":20.245761702142424,"d":"20.246"},{"v":6.78,"d":"6.780"},{"$f":"'IV. Country level, 1310-2018'!AA258","v":{"v":-7.777364457450081,"d":"-7.777"}},{"$f":"'IV. Country level, 1310-2018'!I258","v":{"v":14.557364457450081,"d":"14.557"}},{"$nulls":5},{"v":3.5668498168498175,"d":"3.567"},{"v":1.9371826103700678,"d":"1.937"},{"v":1.6296672064797497,"d":"1.630"},{"$f":"'VIII. Pers. sov. loans, 1312-'!C257","v":{"v":9.848841021527354,"d":"9.849"}}]
[1565,null,{"v":10.12543545901498,"d":"10.125"},{"v":2.072344254518335,"d":"2.072"},{"v":8.053091204496644,"d":"8.053"},{"v":6.788571428571428,"d":"6.789"},{"v":1.3902250875127795,"d":"1.390"},{"v":5.398346341058649,"d":"5.398"},null,null,{"$f":"SUM('IV. Country level, 1310-2018'!AO259:AV259)","v":{"v":10.80271086305025,"d":"10.803"}},{"$f":"SUM('IV. Country level, 1310-2018'!AY259:BF259)","v":{"v":8.442676959362387,"d":"8.4427"}},{"v":2.360033903687862,"d":"2.360"},{"v":6.779999999999999,"d":"6.780"},{"$f":"'IV. Country level, 1310-2018'!AA259","v":{"v":-3.6792792181353238,"d":"-3.679"}},{"$f":"'IV. Country level, 1310-2018'!I259","v":{"v":10.459279218135324,"d":"10.459"}},{"$nulls":5},{"v":3.408424908424909,"d":"3.408"},{"v":6.918980660048566,"d":"6.919"},{"v":-3.510555751623657,"d":"-3.511"},{"$f":"'VIII. Pers. sov. loans, 1312-'!C258","v":{"v":9.65550768819402,"d":"9.656"}}]
[1566,null,{"v":9.951473631335999,"d":"9.951"},{"v":1.8059834566673507,"d":"1.806"},{"v":8.145490174668648,"d":"8.145"},{"v":6.79142857142857,"d":"6.791"},{"v":0.5899734888663765,"d":"0.590"},{"v":6.2014550825621955,"d":"6.201"},null,null,{"$f":"SUM('IV. Country level, 1310-2018'!AO260:AV260)","v":{"v":10.329728094226239,"d":"10.330"}},{"$f":"SUM('IV. Country level, 1310-2018'!AY260:BF260)","v":{"v":11.857232542947536,"d":"11.8572"}},{"v":-1.527504448721297,"d":"-1.528"},{"v":6.800000000000001,"d":"6.800"},{"$f":"'IV. Country level, 1310-2018'!AA260","v":{"v":13.51433278731311,"d":"13.514"}},{"$f":"'IV. Country level, 1310-2018'!I260","v":{"v":-6.71433278731311,"d":"-6.714"}},{"$nulls":5},{"v":3.25,"d":"3.250"},{"v":7.196767240844864,"d":"7.197"},{"v":-3.9467672408448644,"d":"-3.947"},{"$f":"'VIII. Pers. sov. loans, 1312-'!C259","v":{"v":9.115744125657493,"d":"9.116"}}]
[1567,null,{"v":9.775157192984441,"d":"9.775"},{"v":2.3811419914066767,"d":"2.381"},{"v":7.394015201577765,"d":"7.394"},{"v":6.7942857142857145,"d":"6.794"},{"v":1.0779190731910202,"d":"1.078"},{"v":5.7163666410946945,"d":"5.716"},null,null,{"$f":"SUM('IV. Country level, 1310-2018'!AO261:AV261)","v":{"v":9.308270232059598,"d":"9.308"}},{"$f":"SUM('IV. Country level, 1310-2018'!AY261:BF261)","v":{"v":-4.997485199102434,"d":"-4.9975"}},{"v":14.305755431162034,"d":"14.306"},{"v":6.800000000000001,"d":"6.800"},{"$f":"'IV. Country level, 1310-2018'!AA261","v":{"v":4.446624700527224,"d":"4.447"}},{"$f":"'IV. Country level, 1310-2018'!I261","v":{"v":2.353375299472777,"d":"2.353"}},{"$nulls":5},{"v":4.199186991869919,"d":"4.199"},{"v":3.1017088506895734,"d":"3.102"},{"v":1.0974781411803454,"d":"1.097"},{"$f":"'VIII. Pers. sov. loans, 1312-'!C260","v":{"v":8.820956919374618,"d":"8.821"}}]
[1568,null,{"v":9.618480379740319,"d":"9.618"},{"v":4.507675841428634,"d":"4.508"},{"v":5.110804538311685,"d":"5.111"},{"v":6.797142857142857,"d":"6.797"},{"v":4.106101491511185,"d":"4.106"},{"v":2.6910413656316714,"d":"2.691"},null,null,{"$f":"SUM('IV. Country level, 1310-2018'!AO262:AV262)","v":{"v":9.238009157847687,"d":"9.238"}},{"$f":"SUM('IV. Country level, 1310-2018'!AY262:BF262)","v":{"v":-0.7585762957520649,"d":"-0.7586"}},{"v":9.996585453599751,"d":"9.997"},{"v":6.800000000000001,"d":"6.800"},{"$f":"'IV. Country level, 1310-2018'!AA262","v":{"v":-4.88116500913535,"d":"-4.881"}},{"$f":"'IV. Country level, 1310-2018'!I262","v":{"v":11.68116500913535,"d":"11.681"}},{"$nulls":5},{"v":5.1483739837398375,"d":"5.148"},{"v":-0.9892120830594147,"d":"-0.989"},{"v":6.137586066799252,"d":"6.138"},{"$f":"'VIII. Pers. sov. loans, 1312-'!C261","v":{"v":8.403228267864414,"d":"8.403"}}]
[1569,null,{"v":9.350967763109251,"d":"9.351"},{"v":3.5645041811726004,"d":"3.565"},{"v":5.78646358193665,"d":"5.786"},{"v":6.799999999999999,"d":"6.800"},{"v":4.241331202852728,"d":"4.241"},{"v":2.558668797147273,"d":"2.559"},null,null,{"$f":"SUM('IV. Country level, 1310-2018'!AO263:AV263)","v":{"v":9.230973019396746,"d":"9.231"}},{"$f":"SUM('IV. Country level, 1310-2018'!AY263:BF263)","v":{"v":3.2478468290764266,"d":"3.2478"}},{"v":5.98312619032032,"d":"5.983"},{"v":6.800000000000001,"d":"6.800"},{"$f":"'IV. Country level, 1310-2018'!AA263","v":{"v":1.45946198006528,"d":"1.459"}},{"$f":"'IV. Country level, 1310-2018'!I263","v":{"v":5.340538019934721,"d":"5.341"}},{"$nulls":5},{"v":6.097560975609756,"d":"6.098"},{"v":13.931655590463265,"d":"13.932"},{"v":-7.834094614853509,"d":"-7.834"},{"$f":"'VIII. Pers. sov. loans, 1312-'!C262","v":{"v":8.103631801347465,"d":"8.104"}}]
[1570,null,{"v":9.147252672325816,"d":"9.147"},{"v":2.9071815246682826,"d":"2.907"},{"v":6.240071147657533,"d":"6.240"},{"v":6.799999999999999,"d":"6.800"},{"v":1.305071880698905,"d":"1.305"},{"v":5.494928119301095,"d":"5.495"},null,null,{"$f":"SUM('IV. Country level, 1310-2018'!AO264:AV264)","v":{"v":9.05799319401603,"d":"9.058"}},{"$f":"SUM('IV. Country level, 1310-2018'!AY264:BF264)","v":{"v":8.663645015162777,"d":"8.6636"}},{"v":0.394348178853253,"d":"0.394"},{"v":6.800000000000001,"d":"6.800"},{"$f":"'IV. Country level, 1310-2018'!AA264","v":{"v":4.462822729152281,"d":"4.463"}},{"$f":"'IV. Country level, 1310-2018'!I264","v":{"v":2.33717727084772,"d":"2.337"}},{"$nulls":5},{"v":6.085365853658536,"d":"6.085"},{"v":10.410695963915803,"d":"10.411"},{"v":-4.3253301102572665,"d":"-4.325"},{"$f":"'VIII. Pers. sov. loans, 1312-'!C263","v":{"v":7.60484240179662,"d":"7.605"}}]
[1571,null,{"v":9.104469994285063,"d":"9.104"},{"v":4.10440846344946,"d":"4.104"},{"v":5.000061530835603,"d":"5.000"},{"v":6.771428571428571,"d":"6.771"},{"v":1.1960283112149983,"d":"1.196"},{"v":5.575400260213574,"d":"5.575"},null,null,{"$f":"SUM('IV. Country level, 1310-2018'!AO265:AV265)","v":{"v":9.361678097585685,"d":"9.362"}},{"$f":"SUM('IV. Country level, 1310-2018'!AY265:BF265)","v":{"v":5.098391038305815,"d":"5.0984"}},{"$f":"K269-L269","v":{"v":4.26328705927987,"d":"4.263"}},{"v":6.800000000000001,"d":"6.800"},{"$f":"'IV. Country level, 1310-2018'!AA265","v":{"v":13.41991247079108,"d":"13.420"}},{"$f":"'IV. Country level, 1310-2018'!I265","v":{"v":-6.61991247079108,"d":"-6.620"}},{"$nulls":5},{"v":6.073170731707317,"d":"6.073"},{"v":-0.2395640260689138,"d":"-0.240"},{"v":6.312734757776231,"d":"6.313"},{"$f":"'VIII. Pers. sov. loans, 1312-'!C264","v":{"v":7.299810882155944,"d":"7.300"}}]
[1572,null,{"v":9.104179186037797,"d":"9.104"},{"v":2.780548143266188,"d":"2.781"},{"v":6.323631042771609,"d":"6.324"},{"v":6.714285714285714,"d":"6.714"},{"v":2.070032493946076,"d":"2.070"},{"v":4.64425322033964,"d":"4.644"},null,null,{"$f":"SUM('IV. Country level, 1310-2018'!AO266:AV266)","v":{"v":8.93012254663277,"d":"8.930"}},{"$f":"SUM('IV. Country level, 1310-2018'!AY266:BF266)","v":{"v":1.8404753375701512,"d":"1.8405"}},{"v":7.089647209062619,"d":"7.090"},{"v":6.800000000000001,"d":"6.800"},{"$f":"'IV. Country level, 1310-2018'!AA266","v":{"v":-2.7326712387445293,"d":"-2.733"}},{"$f":"'IV. Country level, 1310-2018'!I266","v":{"v":9.53267123874453,"d":"9.533"}},{"$nulls":5},{"v":6.060975609756097,"d":"6.061"},{"v":-8.096117891323312,"d":"-8.096"},{"v":14.157093501079409,"d":"14.157"},{"$f":"'VIII. Pers. sov. loans, 1312-'!C265","v":{"v":7.999810882155944,"d":"8.000"}}]
[1573,null,{"v":9.075706183483335,"d":"9.076"},{"v":2.321966092505662,"d":"2.322"},{"v":6.753740090977673,"d":"6.754"},{"v":6.6571428571428575,"d":"6.657"},{"v":3.1310731055565566,"d":"3.131"},{"v":3.5260697515863013,"d":"3.526"},null,null,{"$f":"SUM('IV. Country level, 1310-2018'!AO267:AV267)","v":{"v":8.903722458742195,"d":"8.904"}},{"$f":"SUM('IV. Country level, 1310-2018'!AY267:BF267)","v":{"v":7.255973947417312,"d":"7.2560"}},{"v":1.6477485113248829,"d":"1.648"},{"v":6.8,"d":"6.800"},{"$f":"'IV. Country level, 1310-2018'!AA267","v":{"v":-7.039482467763652,"d":"-7.039"}},{"$f":"'IV. Country level, 1310-2018'!I267","v":{"v":13.839482467763652,"d":"13.839"}},{"$nulls":5},{"v":6.048780487804878,"d":"6.049"},{"v":-3.078039332024971,"d":"-3.078"},{"v":9.12681981982985,"d":"9.127"},{"$f":"'VIII. Pers. sov. loans, 1312-'!C266","v":{"v":8.535404102494926,"d":"8.535"}}]
[1574,null,{"$f":"AVERAGE(K269:K275)","v":{"v":9.070440051501922,"d":"9.070"}},{"$f":"AVERAGE(L269:L275)","v":{"v":0.7114109048774498,"d":"0.711"}},{"$f":"AVERAGE(M269:M275)","v":{"v":8.35902914662447,"d":"8.359"}},{"$f":"AVERAGE(N269:N275)","v":{"v":6.6000000000000005,"d":"6.600"}},{"$f":"AVERAGE(O269:O275)","v":{"v":1.633036124447834,"d":"1.633"}},{"$f":"AVERAGE(P269:P275)","v":{"v":4.9669638755521675,"d":"4.967"}},null,null,{"$f":"SUM('IV. Country level, 1310-2018'!AO268:AV268)","v":{"v":9.008791485774333,"d":"9.009"}},{"$f":"SUM('IV. Country level, 1310-2018'!AY268:BF268)","v":{"v":3.38310337236581,"d":"3.3831"}},{"v":5.625688113408524,"d":"5.626"},{"v":6.6000000000000005,"d":"6.600"},{"$f":"'IV. Country level, 1310-2018'!AA268","v":{"v":3.6833197141398775,"d":"3.683"}},{"$f":"'IV. Country level, 1310-2018'!I268","v":{"v":2.916680285860123,"d":"2.917"}},{"$nulls":5},{"v":6.036585365853658,"d":"6.037"},{"v":0.4997472146742836,"d":"0.500"},{"v":5.536838151179374,"d":"5.537"},{"$f":"'VIII. Pers. sov. loans, 1312-'!C267","v":{"v":8.928226780549918,"d":"8.928"}}]
[1575,null,{"v":8.998232679526916,"d":"8.998"},{"v":0.1681722069270248,"d":"0.168"},{"v":8.830060472599891,"d":"8.830"},{"v":6.542857142857143,"d":"6.543"},{"v":1.091278175494042,"d":"1.091"},{"v":5.451578967363102,"d":"5.452"},null,null,{"$f":"SUM('IV. Country level, 1310-2018'!AO269:AV269)","v":{"v":9.235973500116819,"d":"9.236"}},{"$f":"SUM('IV. Country level, 1310-2018'!AY269:BF269)","v":{"v":-10.025598537034972,"d":"-10.0256"}},{"v":19.26157203715179,"d":"19.262"},{"v":6.4,"d":"6.400"},{"$f":"'IV. Country level, 1310-2018'!AA269","v":{"v":1.2368642699821972,"d":"1.237"}},{"$f":"'IV. Country level, 1310-2018'!I269","v":{"v":5.163135730017803,"d":"5.163"}},{"$nulls":5},{"v":6.024390243902439,"d":"6.024"},{"v":-10.497101754488842,"d":"-10.497"},{"v":16.52149199839128,"d":"16.521"},{"$f":"'VIII. Pers. sov. loans, 1312-'!C268","v":{"v":8.906214689265536,"d":"8.906"}}]
[1576,null,{"v":8.99171374142488,"d":"8.992"},{"v":0.6241997377804559,"d":"0.624"},{"v":8.367514003644425,"d":"8.368"},{"v":6.485714285714286,"d":"6.486"},{"v":1.6620344148093025,"d":"1.662"},{"v":4.823679870904984,"d":"4.824"},null,null,{"$f":"SUM('IV. Country level, 1310-2018'!AO270:AV270)","v":{"v":9.03166200151551,"d":"9.032"}},{"$f":"SUM('IV. Country level, 1310-2018'!AY270:BF270)","v":{"v":0.037772473752743174,"d":"0.0378"}},{"v":8.993889527762768,"d":"8.994"},{"v":6.4,"d":"6.400"},{"$f":"'IV. Country level, 1310-2018'!AA270","v":{"v":8.886746261338642,"d":"8.887"}},{"$f":"'IV. Country level, 1310-2018'!I270","v":{"v":-2.4867462613386415,"d":"-2.487"}},{"$nulls":5},{"v":6.012195121951219,"d":"6.012"},{"v":-0.056623336770427954,"d":"-0.057"},{"v":6.068818458721647,"d":"6.069"},{"$f":"'VIII. Pers. sov. loans, 1312-'!C269","v":{"v":8.382259887005649,"d":"8.382"}}]
[1577,null,{"v":9.012781928512265,"d":"9.013"},{"v":-0.03334891530568283,"d":"-0.033"},{"v":9.046130843817947,"d":"9.046"},{"v":6.428571428571429,"d":"6.429"},{"v":2.491443097804399,"d":"2.491"},{"v":3.93712833076703,"d":"3.937"},null,null,{"$f":"SUM('IV. Country level, 1310-2018'!AO271:AV271)","v":{"v":9.021130270146141,"d":"9.021"}},{"$f":"SUM('IV. Country level, 1310-2018'!AY271:BF271)","v":{"v":-2.61024129823471,"d":"-2.6102"}},{"v":11.631371568380851,"d":"11.631"},{"v":6.400000000000001,"d":"6.400"},{"$f":"'IV. Country level, 1310-2018'!AA271","v":{"v":-6.023436138608781,"d":"-6.023"}},{"$f":"'IV. Country level, 1310-2018'!I271","v":{"v":12.423436138608782,"d":"12.423"}},{"$nulls":5},{"v":6,"d":"6.000"},{"v":-2.617419083661031,"d":"-2.617"},{"v":8.61741908366103,"d":"8.617"},{"$f":"'VIII. Pers. sov. loans, 1312-'!C270","v":{"v":8.347508988186954,"d":"8.348"}}]
[1578,null,{"v":9.006215526712696,"d":"9.006"},{"v":-0.9196228855140086,"d":"-0.920"},{"v":9.925838412226705,"d":"9.926"},{"v":6.3999999999999995,"d":"6.400"},{"v":1.1451171165229834,"d":"1.145"},{"v":5.254882883477017,"d":"5.255"},null,null,{"$f":"SUM('IV. Country level, 1310-2018'!AO272:AV272)","v":{"v":8.856226493760634,"d":"8.856"}},{"$f":"SUM('IV. Country level, 1310-2018'!AY272:BF272)","v":{"v":1.29572015265284,"d":"1.2957"}},{"v":7.560506341107794,"d":"7.561"},{"v":6.4,"d":"6.400"},{"$f":"'IV. Country level, 1310-2018'!AA272","v":{"v":9.627606828114539,"d":"9.628"}},{"$f":"'IV. Country level, 1310-2018'!I272","v":{"v":-3.2276068281145385,"d":"-3.228"}},{"$nulls":5},{"v":5.888888888888888,"d":"5.889"},{"v":2.290177796482067,"d":"2.290"},{"v":3.5987110924068215,"d":"3.599"},{"$f":"'VIII. Pers. sov. loans, 1312-'!C271","v":{"v":8.347508988186954,"d":"8.348"}}]
[1579,null,{"v":8.980107255986251,"d":"8.980"},{"v":0.9033193123215967,"d":"0.903"},{"v":8.076787943664653,"d":"8.077"},{"v":6.3999999999999995,"d":"6.400"},{"v":2.7645222775789455,"d":"2.765"},{"v":3.635477722421055,"d":"3.635"},null,null,{"$f":"SUM('IV. Country level, 1310-2018'!AO273:AV273)","v":{"v":8.884489979918529,"d":"8.884"}},{"$f":"SUM('IV. Country level, 1310-2018'!AY273:BF273)","v":{"v":5.032668053544168,"d":"5.0327"}},{"v":3.8518219263743605,"d":"3.852"},{"v":6.4,"d":"6.400"},{"$f":"'IV. Country level, 1310-2018'!AA273","v":{"v":1.2626224364622964,"d":"1.263"}},{"$f":"'IV. Country level, 1310-2018'!I273","v":{"v":5.137377563537704,"d":"5.137"}},{"$nulls":5},{"v":5.777777777777778,"d":"5.778"},{"v":10.327146076902094,"d":"10.327"},{"v":-4.549368299124317,"d":"-4.549"},{"$f":"'VIII. Pers. sov. loans, 1312-'!C272","v":{"v":7.982259887005649,"d":"7.982"}}]
[1580,null,{"v":8.986987838033155,"d":"8.987"},{"v":1.4667936296697708,"d":"1.467"},{"v":7.520194208363384,"d":"7.520"},{"v":6.3999999999999995,"d":"6.400"},{"v":2.4823406519182094,"d":"2.482"},{"v":3.9176593480817914,"d":"3.918"},null,null,{"$f":"SUM('IV. Country level, 1310-2018'!AO274:AV274)","v":{"v":9.051199768353884,"d":"9.051"}},{"$f":"SUM('IV. Country level, 1310-2018'!AY274:BF274)","v":{"v":2.653133375814342,"d":"2.6531"}},{"v":6.398066392539542,"d":"6.398"},{"v":6.4,"d":"6.400"},{"$f":"'IV. Country level, 1310-2018'!AA274","v":{"v":-1.2336216867979775,"d":"-1.234"}},{"$f":"'IV. Country level, 1310-2018'!I274","v":{"v":7.633621686797978,"d":"7.634"}},{"$nulls":5},{"v":5.518518518518518,"d":"5.519"},{"v":-2.012301227771258,"d":"-2.012"},{"v":7.530819746289776,"d":"7.531"},{"$f":"'VIII. Pers. sov. loans, 1312-'!C273","v":{"v":7.607407407407408,"d":"7.607"}}]
[1581,null,{"v":8.973348001827807,"d":"8.973"},{"v":1.5784351852934073,"d":"1.578"},{"v":7.394912816534399,"d":"7.395"},{"v":6.315714285714286,"d":"6.316"},{"v":3.8474665938180466,"d":"3.847"},{"v":2.468247691896239,"d":"2.468"},null,null,{"$f":"SUM('IV. Country level, 1310-2018'!AO275:AV275)","v":{"v":8.962826673177352,"d":"8.963"}},{"$f":"SUM('IV. Country level, 1310-2018'!AY275:BF275)","v":{"v":-2.8208144190924718,"d":"-2.8208"}},{"v":11.783641092269823,"d":"11.784"},{"v":6.4,"d":"6.400"},{"$f":"'IV. Country level, 1310-2018'!AA275","v":{"v":-5.740962154830031,"d":"-5.741"}},{"$f":"'IV. Country level, 1310-2018'!I275","v":{"v":12.140962154830031,"d":"12.141"}},{"$nulls":5},{"v":5.2592592592592595,"d":"5.259"},{"v":-2.8665010605872685,"d":"-2.867"},{"v":8.125760319846528,"d":"8.126"},{"$f":"'VIII. Pers. sov. loans, 1312-'!C274","v":{"v":7.607407407407408,"d":"7.607"}}]
[1582,null,{"v":8.957792365172361,"d":"8.958"},{"v":1.2511394079203302,"d":"1.251"},{"v":7.706652957252032,"d":"7.707"},{"v":6.231428571428572,"d":"6.231"},{"v":0.6804772610076183,"d":"0.680"},{"v":5.550951310420953,"d":"5.551"},null,null,{"$f":"SUM('IV. Country level, 1310-2018'!AO276:AV276)","v":{"v":9.053215605031703,"d":"9.053"}},{"$f":"SUM('IV. Country level, 1310-2018'!AY276:BF276)","v":{"v":2.7349968478142657,"d":"2.7350"}},{"v":6.318218757217437,"d":"6.318"},{"v":6.4,"d":"6.400"},{"$f":"'IV. Country level, 1310-2018'!AA276","v":{"v":12.572700397373934,"d":"12.573"}},{"$f":"'IV. Country level, 1310-2018'!I276","v":{"v":-6.172700397373934,"d":"-6.173"}},{"$nulls":5},{"v":5,"d":"5.000"},{"v":-1.966067485441958,"d":"-1.966"},{"v":6.9660674854419575,"d":"6.966"},{"$f":"'VIII. Pers. sov. loans, 1312-'!C275","v":{"v":8.066666666666666,"d":"8.067"}}]
[1583,null,{"v":8.940012589676918,"d":"8.940"},{"v":3.1296168626072594,"d":"3.130"},{"v":5.810395727069659,"d":"5.810"},{"v":6.147142857142858,"d":"6.147"},{"v":-0.4306743137120475,"d":"-0.431"},{"v":6.577817170854904,"d":"6.578"},null,null,{"$f":"SUM('IV. Country level, 1310-2018'!AO277:AV277)","v":{"v":9.07982607584384,"d":"9.080"}},{"$f":"SUM('IV. Country level, 1310-2018'!AY277:BF277)","v":{"v":3.9820926951899605,"d":"3.9821"}},{"v":5.09773338065388,"d":"5.098"},{"v":6.4,"d":"6.400"},{"$f":"'IV. Country level, 1310-2018'!AA277","v":{"v":6.911474881713486,"d":"6.911"}},{"$f":"'IV. Country level, 1310-2018'!I277","v":{"v":-0.511474881713486,"d":"-0.511"}},{"$nulls":5},{"v":5.333333333333334,"d":"5.333"},{"v":2.534379624517045,"d":"2.534"},{"$f":"V281-W281","v":{"v":2.798953708816289,"d":"2.799"}},{"$f":"'VIII. Pers. sov. loans, 1312-'!C276","v":{"v":8.11111111111111,"d":"8.111"}}]
[1584,null,{"v":8.888847010719449,"d":"8.889"},{"v":3.4899763549274216,"d":"3.490"},{"v":5.398870655792028,"d":"5.399"},{"v":6.062857142857143,"d":"6.063"},{"v":0.1729140712423018,"d":"0.173"},{"v":5.889943071614842,"d":"5.890"},null,null,{"$f":"SUM('IV. Country level, 1310-2018'!AO278:AV278)","v":{"v":8.925651416708707,"d":"8.926"}},{"$f":"SUM('IV. Country level, 1310-2018'!AY278:BF278)","v":{"v":-1.8287504088692543,"d":"-1.8288"}},{"v":10.754401825577961,"d":"10.754"},{"$f":"P282+O282","v":{"v":5.81,"d":"5.810"}},{"$f":"'IV. Country level, 1310-2018'!AA278","v":{"v":3.5324454546900794,"d":"3.532"}},{"$f":"'IV. Country level, 1310-2018'!I278","v":{"v":2.27755454530992,"d":"2.278"}},{"$nulls":5},{"v":5.666666666666667,"d":"5.667"},{"v":1.784790695997469,"d":"1.785"},{"v":3.881875970669198,"d":"3.882"},{"$f":"'VIII. Pers. sov. loans, 1312-'!C277","v":{"v":8.11111111111111,"d":"8.111"}}]
[1585,null,{"v":8.840724386765737,"d":"8.841"},{"v":2.294082236951828,"d":"2.294"},{"v":6.546642149813911,"d":"6.547"},{"v":5.978571428571429,"d":"5.979"},{"v":1.665586953681619,"d":"1.666"},{"v":4.31298447488981,"d":"4.313"},null,null,{"$f":"SUM('IV. Country level, 1310-2018'!AO279:AV279)","v":{"v":8.747337037172516,"d":"8.747"}},{"$f":"SUM('IV. Country level, 1310-2018'!AY279:BF279)","v":{"v":-0.9953502889586981,"d":"-0.9954"}},{"v":9.742687326131215,"d":"9.743"},{"v":5.8100000000000005,"d":"5.810"},{"$f":"'IV. Country level, 1310-2018'!AA279","v":{"v":-12.54131850155846,"d":"-12.541"}},{"$f":"'IV. Country level, 1310-2018'!I279","v":{"v":18.35131850155846,"d":"18.351"}},{"$nulls":5},{"v":6,"d":"6.000"},{"v":2.551335356639653,"d":"2.551"},{"v":3.448664643360347,"d":"3.449"},{"$f":"'VIII. Pers. sov. loans, 1312-'!C278","v":{"v":8.11111111111111,"d":"8.111"}}]
[1586,null,{"v":8.854693143796004,"d":"8.855"},{"v":3.346873314954362,"d":"3.347"},{"v":5.507819828841641,"d":"5.508"},{"v":5.894285714285715,"d":"5.894"},{"v":0.7821471666092931,"d":"0.782"},{"v":5.1121385476764205,"d":"5.112"},null,null,{"$f":"SUM('IV. Country level, 1310-2018'!AO280:AV280)","v":{"v":8.760031551450432,"d":"8.760"}},{"$f":"SUM('IV. Country level, 1310-2018'!AY280:BF280)","v":{"v":18.18201023635267,"d":"18.1820"}},{"v":-9.421978684902239,"d":"-9.422"},{"v":5.81,"d":"5.810"},{"$f":"'IV. Country level, 1310-2018'!AA280","v":{"v":-6.515438586575363,"d":"-6.515"}},{"$f":"'IV. Country level, 1310-2018'!I280","v":{"v":12.325438586575363,"d":"12.325"}},{"$nulls":5},{"v":4.921963644784068,"d":"4.922"},{"v":5.0348520406751005,"d":"5.035"},{"v":-0.11288839589103272,"d":"-0.113"},{"$f":"'VIII. Pers. sov. loans, 1312-'!C279","v":{"v":8,"d":"8.000"}}]
[1587,null,{"v":8.807708622153061,"d":"8.808"},{"v":5.014716926181445,"d":"5.015"},{"v":3.792991695971616,"d":"3.793"},{"v":5.8100000000000005,"d":"5.810"},{"v":-0.3168676683937008,"d":"-0.317"},{"v":6.126867668393699,"d":"6.127"},null,null,{"$f":"SUM('IV. Country level, 1310-2018'!AO281:AV281)","v":{"v":8.693040715651593,"d":"8.693"}},{"$f":"SUM('IV. Country level, 1310-2018'!AY281:BF281)","v":{"v":5.17564982205548,"d":"5.1756"}},{"v":3.5173908935961133,"d":"3.517"},{"v":5.81,"d":"5.810"},{"$f":"'IV. Country level, 1310-2018'!AA281","v":{"v":2.991497007882467,"d":"2.991"}},{"$f":"'IV. Country level, 1310-2018'!I281","v":{"v":2.8185029921175326,"d":"2.819"}},{"$nulls":5},{"v":3.8439272895681365,"d":"3.844"},{"v":-5.089821820756669,"d":"-5.090"},{"v":8.933749110324804,"d":"8.934"},{"$f":"'VIII. Pers. sov. loans, 1312-'!C280","v":{"v":8,"d":"8.000"}}]
[1588,null,{"v":8.776640925916457,"d":"8.777"},{"v":6.419274690425999,"d":"6.419"},{"v":2.35736623549046,"d":"2.357"},{"v":5.8100000000000005,"d":"5.810"},{"v":-1.0665000477299666,"d":"-1.067"},{"v":6.876500047729967,"d":"6.877"},null,null,{"$f":"SUM('IV. Country level, 1310-2018'!AO282:AV282)","v":{"v":8.625968305501374,"d":"8.626"}},{"$f":"SUM('IV. Country level, 1310-2018'!AY282:BF282)","v":{"v":-11.192073244921628,"d":"-11.1921"}},{"v":19.818041550423004,"d":"19.818"},{"v":5.81,"d":"5.810"},{"$f":"'IV. Country level, 1310-2018'!AA282","v":{"v":4.707748022245188,"d":"4.708"}},{"$f":"'IV. Country level, 1310-2018'!I282","v":{"v":1.1022519777548112,"d":"1.102"}},{"$nulls":5},{"v":3.895647855310384,"d":"3.896"},{"v":-0.7758277732093092,"d":"-0.776"},{"v":4.671475628519693,"d":"4.671"},{"$f":"'VIII. Pers. sov. loans, 1312-'!C281","v":{"v":8.166666666666666,"d":"8.167"}}]
[1589,null,{"v":8.678774796090254,"d":"8.679"},{"v":5.448446843123709,"d":"5.448"},{"v":3.230327952966545,"d":"3.230"},{"v":5.8100000000000005,"d":"5.810"},{"v":1.8166784090708794,"d":"1.817"},{"v":3.9933215909291206,"d":"3.993"},null,null,{"$f":"SUM('IV. Country level, 1310-2018'!AO283:AV283)","v":{"v":9.150996904243565,"d":"9.151"}},{"$f":"SUM('IV. Country level, 1310-2018'!AY283:BF283)","v":{"v":10.104534393832008,"d":"10.1045"}},{"v":-0.9535374895884434,"d":"-0.954"},{"v":5.81,"d":"5.810"},{"$f":"'IV. Country level, 1310-2018'!AA283","v":{"v":6.388621887867653,"d":"6.389"}},{"$f":"'IV. Country level, 1310-2018'!I283","v":{"v":-0.5786218878676532,"d":"-0.579"}},{"$nulls":5},{"v":3.9473684210526314,"d":"3.947"},{"v":15.691295159782905,"d":"15.691"},{"v":-11.743926738730273,"d":"-11.744"},{"$f":"'VIII. Pers. sov. loans, 1312-'!C282","v":{"v":7.833068415267185,"d":"7.833"}}]
[1590,null,{"v":8.636088516861406,"d":"8.636"},{"v":2.688742772039462,"d":"2.689"},{"v":5.947345744821945,"d":"5.947"},{"v":5.8100000000000005,"d":"5.810"},{"v":3.26440347737167,"d":"3.264"},{"v":2.54559652262833,"d":"2.546"},null,null,{"$f":"SUM('IV. Country level, 1310-2018'!AO284:AV284)","v":{"v":8.75093442434324,"d":"8.751"}},{"$f":"SUM('IV. Country level, 1310-2018'!AY284:BF284)","v":{"v":15.65699797377954,"d":"15.6570"}},{"v":-6.906063549436299,"d":"-6.906"},{"v":5.8100000000000005,"d":"5.810"},{"$f":"'IV. Country level, 1310-2018'!AA284","v":{"v":-0.7816289633074693,"d":"-0.782"}},{"$f":"'IV. Country level, 1310-2018'!I284","v":{"v":6.591628963307469,"d":"6.592"}},{"$nulls":5},{"v":2,"d":"2.000"},{"v":9.53057150606996,"d":"9.531"},{"v":-7.530571506069959,"d":"-7.531"},{"$f":"'VIII. Pers. sov. loans, 1312-'!C283","v":{"v":7.833068415267185,"d":"7.833"}}]
[1591,null,{"v":8.640449534036822,"d":"8.640"},{"v":1.919186680104484,"d":"1.919"},{"v":6.7212628539323385,"d":"6.721"},{"v":5.8100000000000005,"d":"5.810"},{"v":4.211314981971571,"d":"4.211"},{"v":1.5986850180284284,"d":"1.599"},null,null,{"$f":"SUM('IV. Country level, 1310-2018'!AO285:AV285)","v":{"v":8.708177543052477,"d":"8.708"}},{"$f":"SUM('IV. Country level, 1310-2018'!AY285:BF285)","v":{"v":8.003153940842614,"d":"8.0032"}},{"v":0.705023602209863,"d":"0.705"},{"v":5.81,"d":"5.810"},{"$f":"'IV. Country level, 1310-2018'!AA285","v":{"v":-1.7149812006637815,"d":"-1.715"}},{"$f":"'IV. Country level, 1310-2018'!I285","v":{"v":7.524981200663781,"d":"7.525"}},{"$nulls":5},{"v":2.75,"d":"2.750"},{"v":-10.13274983885975,"d":"-10.133"},{"v":12.88274983885975,"d":"12.883"},{"$f":"'VIII. Pers. sov. loans, 1312-'!C284","v":{"v":7.730524691015863,"d":"7.731"}}]
[1592,null,{"v":8.666104104622113,"d":"8.666"},{"v":4.053054379336131,"d":"4.053"},{"v":4.613049725285982,"d":"4.613"},{"v":5.809285714285714,"d":"5.809"},{"v":0.9568436871268337,"d":"0.957"},{"v":4.85244202715888,"d":"4.852"},null,null,{"$f":"SUM('IV. Country level, 1310-2018'!AO286:AV286)","v":{"v":8.062274128389097,"d":"8.062"}},{"$f":"SUM('IV. Country level, 1310-2018'!AY286:BF286)","v":{"v":-7.791145220074721,"d":"-7.7911"}},{"v":15.853419348463818,"d":"15.853"},{"v":5.81,"d":"5.810"},{"$f":"'IV. Country level, 1310-2018'!AA286","v":{"v":7.6409306960474614,"d":"7.641"}},{"$f":"'IV. Country level, 1310-2018'!I286","v":{"v":-1.8309306960474618,"d":"-1.831"}},{"$nulls":5},{"v":3.5000000000000004,"d":"3.500"},{"v":-4.364184312514731,"d":"-4.364"},{"v":7.864184312514732,"d":"7.864"},{"$f":"'VIII. Pers. sov. loans, 1312-'!C285","v":{"v":7.497988065547081,"d":"7.498"}}]
[1593,null,{"v":8.563752890246574,"d":"8.564"},{"v":2.902519592218265,"d":"2.903"},{"v":5.661233298028309,"d":"5.661"},{"v":5.807857142857142,"d":"5.808"},{"v":0.330172317616544,"d":"0.330"},{"v":5.477684825240599,"d":"5.478"},null,null,{"$f":"SUM('IV. Country level, 1310-2018'!AO287:AV287)","v":{"v":8.461227596848495,"d":"8.461"}},{"$f":"SUM('IV. Country level, 1310-2018'!AY287:BF287)","v":{"v":-1.1359182612370566,"d":"-1.1359"}},{"v":9.597145858085552,"d":"9.597"},{"v":5.81,"d":"5.810"},{"$f":"'IV. Country level, 1310-2018'!AA287","v":{"v":3.618636891530168,"d":"3.619"}},{"$f":"'IV. Country level, 1310-2018'!I287","v":{"v":2.1913631084698317,"d":"2.191"}},{"$nulls":5},{"v":4.25,"d":"4.250"},{"v":8.63944888675354,"d":"8.639"},{"v":-4.38944888675354,"d":"-4.389"},{"$f":"'VIII. Pers. sov. loans, 1312-'!C286","v":{"v":7.255988065547082,"d":"7.256"}}]
[1594,null,{"v":8.54087508667381,"d":"8.541"},{"v":1.5058548569607701,"d":"1.506"},{"v":7.03502022971304,"d":"7.035"},{"v":5.805714285714286,"d":"5.806"},{"v":0.537376023216878,"d":"0.537"},{"v":5.268338262497407,"d":"5.268"},null,null,{"$f":"SUM('IV. Country level, 1310-2018'!AO288:AV288)","v":{"v":8.723567835879505,"d":"8.724"}},{"$f":"SUM('IV. Country level, 1310-2018'!AY288:BF288)","v":{"v":-0.21124282148936735,"d":"-0.2112"}},{"v":8.934810657368873,"d":"8.935"},{"v":5.81,"d":"5.810"},{"$f":"'IV. Country level, 1310-2018'!AA288","v":{"v":9.619877540081777,"d":"9.620"}},{"$f":"'IV. Country level, 1310-2018'!I288","v":{"v":-3.8098775400817777,"d":"-3.810"}},{"$nulls":5},{"v":5,"d":"5.000"},{"v":-1.0983175772181655,"d":"-1.098"},{"v":6.0983175772181655,"d":"6.098"},{"$f":"'VIII. Pers. sov. loans, 1312-'!C287","v":{"v":7.255988065547082,"d":"7.256"}}]
[1595,null,{"v":8.495053358573665,"d":"8.495"},{"v":-0.09831444509242772,"d":"-0.098"},{"v":8.593367803666093,"d":"8.593"},{"v":5.8028571428571425,"d":"5.803"},{"v":2.705657410533592,"d":"2.706"},{"v":3.0971997323235505,"d":"3.097"},null,null,{"$f":"SUM('IV. Country level, 1310-2018'!AO289:AV289)","v":{"v":8.805550299598409,"d":"8.806"}},{"$f":"SUM('IV. Country level, 1310-2018'!AY289:BF289)","v":{"v":3.7450006496999033,"d":"3.7450"}},{"v":5.060549649898505,"d":"5.061"},5.805,{"$f":"'IV. Country level, 1310-2018'!AA289","v":{"v":-18.073551041667972,"d":"-18.074"}},{"$f":"'IV. Country level, 1310-2018'!I289","v":{"v":23.878551041667972,"d":"23.879"}},{"$nulls":5},{"v":5,"d":"5.000"},{"v":-6.8893205702952045,"d":"-6.889"},{"v":11.889320570295205,"d":"11.889"},{"$f":"'VIII. Pers. sov. loans, 1312-'!C288","v":{"v":6.609772927371873,"d":"6.610"}}]
[1596,null,{"v":8.559550580901517,"d":"8.560"},{"v":0.11623924492489911,"d":"0.116"},{"v":8.443311335976617,"d":"8.443"},{"v":5.706530612244897,"d":"5.707"},{"v":1.6377422757746911,"d":"1.638"},{"v":4.068788336470208,"d":"4.069"},null,null,{"$f":"SUM('IV. Country level, 1310-2018'!AO290:AV290)","v":{"v":8.434538403614791,"d":"8.435"}},{"$f":"SUM('IV. Country level, 1310-2018'!AY290:BF290)","v":{"v":2.0507908840069424,"d":"2.0508"}},{"v":6.383747519607849,"d":"6.384"},{"v":5.8,"d":"5.800"},{"$f":"'IV. Country level, 1310-2018'!AA290","v":{"v":2.001922301295626,"d":"2.002"}},{"$f":"'IV. Country level, 1310-2018'!I290","v":{"v":3.7980776987043736,"d":"3.798"}},{"$nulls":5},{"v":5,"d":"5.000"},{"v":-3.135968386859367,"d":"-3.136"},{"v":8.135968386859368,"d":"8.136"},{"$f":"'VIII. Pers. sov. loans, 1312-'!C289","v":{"v":6.784999825450034,"d":"6.785"}}]
[1597,null,{"v":8.579394445411333,"d":"8.579"},{"v":0.17169467235923103,"d":"0.172"},{"v":8.407699773052103,"d":"8.408"},{"v":5.927891156462586,"d":"5.928"},{"v":0.3803262617010634,"d":"0.380"},{"v":5.547564894761522,"d":"5.548"},null,null,{"$f":"SUM('IV. Country level, 1310-2018'!AO291:AV291)","v":{"v":8.590789799333892,"d":"8.591"}},{"$f":"SUM('IV. Country level, 1310-2018'!AY291:BF291)","v":{"v":5.880344826977077,"d":"5.8803"}},{"v":2.7104449723568154,"d":"2.710"},5.795,{"$f":"'IV. Country level, 1310-2018'!AA291","v":{"v":0.6687969758948692,"d":"0.669"}},{"$f":"'IV. Country level, 1310-2018'!I291","v":{"v":5.126203024105131,"d":"5.126"}},{"$nulls":5},{"v":5.066666666666666,"d":"5.067"},{"v":5.669925208098327,"d":"5.670"},{"v":-0.6032585414316607,"d":"-0.603"},{"$f":"'VIII. Pers. sov. loans, 1312-'!C290","v":{"v":6.735937336359407,"d":"6.736"}}]
[1598,null,{"v":8.565872672736335,"d":"8.566"},{"v":0.4967243040586933,"d":"0.497"},{"v":8.069148368677642,"d":"8.069"},{"v":6.145510204081633,"d":"6.146"},{"v":-1.94130580834876,"d":"-1.941"},{"v":8.086816012430393,"d":"8.087"},null,null,{"$f":"SUM('IV. Country level, 1310-2018'!AO292:AV292)","v":{"v":8.387425446351456,"d":"8.387"}},{"$f":"SUM('IV. Country level, 1310-2018'!AY292:BF292)","v":{"v":-3.2260311735297713,"d":"-3.2260"}},{"v":11.613456619881227,"d":"11.613"},{"v":5.79,"d":"5.790"},{"$f":"'IV. Country level, 1310-2018'!AA292","v":{"v":13.462988510553211,"d":"13.463"}},{"$f":"'IV. Country level, 1310-2018'!I292","v":{"v":-7.672988510553211,"d":"-7.673"}},{"$nulls":5},{"v":5.133333333333333,"d":"5.133"},{"v":11.688792521098296,"d":"11.689"},{"v":-6.5554591877649635,"d":"-6.555"},{"$f":"'VIII. Pers. sov. loans, 1312-'!C291","v":{"v":6.829683877372614,"d":"6.830"}}]
[1599,null,{"v":8.524091267346433,"d":"8.524"},{"v":-0.010780769998125621,"d":"-0.011"},{"v":8.534872037344558,"d":"8.535"},{"v":6.360102040816328,"d":"6.360"},{"v":0.1828229859554932,"d":"0.183"},{"v":6.1772790548608345,"d":"6.177"},null,null,{"$f":"SUM('IV. Country level, 1310-2018'!AO293:AV293)","v":{"v":8.513754684684068,"d":"8.514"}},{"$f":"SUM('IV. Country level, 1310-2018'!AY293:BF293)","v":{"v":-6.289269389953434,"d":"-6.2893"}},{"v":14.803024074637502,"d":"14.803"},{"v":5.135714285714289,"d":"5.136"},{"$f":"'IV. Country level, 1310-2018'!W293","v":{"v":0.16552475273515652,"d":"0.166"}},{"$f":"'IV. Country level, 1310-2018'!E293","v":{"v":4.970189532979132,"d":"4.970"}},{"$nulls":5},{"v":5.199999999999999,"d":"5.200"},{"v":1.505369629867995,"d":"1.505"},{"v":3.6946303701320042,"d":"3.695"},{"$f":"'VIII. Pers. sov. loans, 1312-'!C292","v":{"v":6.88679613586412,"d":"6.887"}}]
[1600,null,{"v":8.531152534085441,"d":"8.531"},{"v":-0.4667350967168539,"d":"-0.467"},{"v":8.997887630802296,"d":"8.998"},{"v":6.571666666666668,"d":"6.572"},{"v":0.9002276699752683,"d":"0.900"},{"v":5.671438996691401,"d":"5.671"},null,null,{"$f":"SUM('IV. Country level, 1310-2018'!AO294:AV294)","v":{"v":8.60013464841721,"d":"8.600"}},{"$f":"SUM('IV. Country level, 1310-2018'!AY294:BF294)","v":{"v":-0.7477302691967336,"d":"-0.7477"}},{"v":9.347864917613943,"d":"9.348"},{"v":7.359523809523812,"d":"7.360"},{"$f":"'IV. Country level, 1310-2018'!W294","v":{"v":-5.183275206985225,"d":"-5.183"}},{"$f":"'IV. Country level, 1310-2018'!E294","v":{"v":12.542799016509036,"d":"12.543"}},{"$nulls":5},{"v":5.266666666666666,"d":"5.267"},{"v":4.600854201658541,"d":"4.601"},{"v":0.6658124650081243,"d":"0.666"},{"$f":"'VIII. Pers. sov. loans, 1312-'!C293","v":{"v":7.128796135864121,"d":"7.129"}}]
[1601,null,{"v":8.376556001373368,"d":"8.377"},{"v":-1.6750643363564817,"d":"-1.675"},{"v":10.05162033772985,"d":"10.052"},{"v":6.780204081632655,"d":"6.780"},{"v":0.403321043065747,"d":"0.403"},{"v":6.376883038566909,"d":"6.377"},null,null,{"$f":"SUM('IV. Country level, 1310-2018'!AO295:AV295)","v":{"v":8.628915427154517,"d":"8.629"}},{"$f":"SUM('IV. Country level, 1310-2018'!AY295:BF295)","v":{"v":2.063964600406868,"d":"2.0640"}},{"v":6.5649508267476495,"d":"6.565"},{"v":7.3333333333333375,"d":"7.333"},{"$f":"'IV. Country level, 1310-2018'!W295","v":{"v":-6.631546950266985,"d":"-6.632"}},{"$f":"'IV. Country level, 1310-2018'!E295","v":{"v":13.964880283600323,"d":"13.965"}},{"$nulls":5},{"v":5.333333333333333,"d":"5.333"},{"v":1.4715846207114582,"d":"1.472"},{"v":3.861748712621875,"d":"3.862"},{"$f":"'VIII. Pers. sov. loans, 1312-'!C294","v":{"v":6.901996377372614,"d":"6.902"}}]
[1602,null,{"v":8.224870503033152,"d":"8.225"},{"v":-0.8776811780088102,"d":"-0.878"},{"v":9.102551681041962,"d":"9.103"},{"v":6.878571428571432,"d":"6.879"},{"v":-2.252233817600194,"d":"-2.252"},{"v":9.130805246171628,"d":"9.131"},null,null,{"$f":"SUM('IV. Country level, 1310-2018'!AO296:AV296)","v":{"v":8.513080461869096,"d":"8.513"}},{"$f":"SUM('IV. Country level, 1310-2018'!AY296:BF296)","v":{"v":0.19246513130217147,"d":"0.1925"}},{"v":8.320615330566925,"d":"8.321"},{"v":7.30714285714286,"d":"7.307"},{"$f":"'IV. Country level, 1310-2018'!W296","v":{"v":-3.2046494815381985,"d":"-3.205"}},{"$f":"'IV. Country level, 1310-2018'!E296","v":{"v":10.511792338681058,"d":"10.512"}},{"$nulls":5},{"v":5.499999999999999,"d":"5.500"},{"v":-3.671235217863864,"d":"-3.671"},{"v":9.171235217863863,"d":"9.171"},{"$f":"'VIII. Pers. sov. loans, 1312-'!C295","v":{"v":7.0771838773726135,"d":"7.077"}}]
[1603,null,{"v":8.114585339413216,"d":"8.115"},{"v":0.216884467149105,"d":"0.217"},{"v":7.89770087226411,"d":"7.898"},{"v":7.066666666666671,"d":"7.067"},{"v":-3.0777171463287627,"d":"-3.078"},{"v":10.144383812995432,"d":"10.144"},null,null,{"$f":"SUM('IV. Country level, 1310-2018'!AO297:AV297)","v":{"v":8.483967270787861,"d":"8.484"}},{"$f":"SUM('IV. Country level, 1310-2018'!AY297:BF297)","v":{"v":-1.1408894030241554,"d":"-1.1409"}},{"v":9.624856673812017,"d":"9.625"},{"v":7.280952380952384,"d":"7.281"},{"$f":"'IV. Country level, 1310-2018'!W297","v":{"v":7.023755089434047,"d":"7.024"}},{"$f":"'IV. Country level, 1310-2018'!E297","v":{"v":0.25719729151833715,"d":"0.257"}},{"$nulls":5},{"v":5.666666666666666,"d":"5.667"},{"v":-6.11527394025801,"d":"-6.115"},{"v":11.781940606924676,"d":"11.782"},{"$f":"'VIII. Pers. sov. loans, 1312-'!C296","v":{"v":6.918799161588903,"d":"6.919"}}]
[1604,null,{"v":7.931644568515275,"d":"7.932"},{"v":0.6921816538701676,"d":"0.692"},{"v":7.239462914645109,"d":"7.239"},{"v":6.933333333333337,"d":"6.933"},{"v":-1.8123461893548196,"d":"-1.812"},{"v":8.745679522688155,"d":"8.746"},null,null,{"$f":"SUM('IV. Country level, 1310-2018'!AO298:AV298)","v":{"v":7.508614070349372,"d":"7.509"}},{"$f":"SUM('IV. Country level, 1310-2018'!AY298:BF298)","v":{"v":-2.5779598505003163,"d":"-2.5780"}},{"v":10.086573920849688,"d":"10.087"},{"v":7.254761904761908,"d":"7.255"},{"$f":"'IV. Country level, 1310-2018'!W298","v":{"v":-2.8095494124717777,"d":"-2.810"}},{"$f":"'IV. Country level, 1310-2018'!E298","v":{"v":10.064311317233686,"d":"10.064"}},{"$nulls":5},{"v":5.833333333333332,"d":"5.833"},{"v":-2.7823496267367163,"d":"-2.782"},{"v":8.615682960070048,"d":"8.616"},{"$f":"'VIII. Pers. sov. loans, 1312-'!C297","v":{"v":6.880337623127365,"d":"6.880"}}]
[1605,null,{"v":7.748245084739749,"d":"7.748"},{"v":0.821872443282614,"d":"0.822"},{"v":6.926372641457135,"d":"6.926"},{"v":6.800000000000003,"d":"6.800"},{"v":1.4734365599390535,"d":"1.473"},{"v":5.32656344006095,"d":"5.327"},null,null,{"$f":"SUM('IV. Country level, 1310-2018'!AO299:AV299)","v":{"v":7.325626957969947,"d":"7.326"}},{"$f":"SUM('IV. Country level, 1310-2018'!AY299:BF299)","v":{"v":2.3556509349039283,"d":"2.3557"}},{"v":4.969976023066018,"d":"4.970"},{"v":6.478571428571433,"d":"6.479"},{"$f":"'IV. Country level, 1310-2018'!W299","v":{"v":-5.125895514108377,"d":"-5.126"}},{"$f":"'IV. Country level, 1310-2018'!E299","v":{"v":11.60446694267981,"d":"11.604"}},{"$nulls":5},{"v":6,"d":"6.000"},{"v":4.3051740329603145,"d":"4.305"},{"v":1.6948259670396855,"d":"1.695"},{"$f":"'VIII. Pers. sov. loans, 1312-'!C298","v":{"v":6.578703703703703,"d":"6.579"}}]
[1606,null,{"v":7.577139662356499,"d":"7.577"},{"v":0.4620960743581755,"d":"0.462"},{"v":7.115043587998323,"d":"7.115"},{"v":6.666666666666671,"d":"6.667"},{"v":2.0503810506597957,"d":"2.050"},{"v":4.616285616006873,"d":"4.616"},null,null,{"$f":"SUM('IV. Country level, 1310-2018'!AO300:AV300)","v":{"v":7.741758539344501,"d":"7.742"}},{"$f":"SUM('IV. Country level, 1310-2018'!AY300:BF300)","v":{"v":1.3726901261519722,"d":"1.3727"}},{"v":6.3690684131925295,"d":"6.369"},{"v":6.452380952380956,"d":"6.452"},{"$f":"'IV. Country level, 1310-2018'!W300","v":{"v":-5.612858548364823,"d":"-5.613"}},{"$f":"'IV. Country level, 1310-2018'!E300","v":{"v":12.065239500745779,"d":"12.065"}},{"$nulls":5},{"v":6,"d":"6.000"},{"v":4.283337407378075,"d":"4.283"},{"v":1.7166625926219252,"d":"1.717"},{"$f":"'VIII. Pers. sov. loans, 1312-'!C299","v":{"v":6.404040404040404,"d":"6.404"}}]
[1607,null,{"v":7.404758154283009,"d":"7.405"},{"v":0.7225091242919521,"d":"0.723"},{"v":6.682249029991056,"d":"6.682"},{"v":6.479761904761909,"d":"6.480"},{"v":0.27204442509764754,"d":"0.272"},{"v":6.20771747966426,"d":"6.208"},null,null,{"$f":"SUM('IV. Country level, 1310-2018'!AO301:AV301)","v":{"v":7.319549252131638,"d":"7.320"}},{"$f":"SUM('IV. Country level, 1310-2018'!AY301:BF301)","v":{"v":2.579350037850704,"d":"2.5794"}},{"v":4.740199214280933,"d":"4.740"},{"v":6.426190476190481,"d":"6.426"},{"$f":"'IV. Country level, 1310-2018'!W301","v":{"v":3.67432149183238,"d":"3.674"}},{"$f":"'IV. Country level, 1310-2018'!E301","v":{"v":2.751868984358101,"d":"2.752"}},{"$nulls":5},{"v":6,"d":"6.000"},{"v":-3.8021593477810702,"d":"-3.802"},{"v":9.802159347781071,"d":"9.802"},{"$f":"'VIII. Pers. sov. loans, 1312-'!C300","v":{"v":6.449494949494949,"d":"6.449"}}]
[1608,null,{"v":7.363148342035579,"d":"7.363"},{"v":1.0285791424853297,"d":"1.029"},{"v":6.33456919955025,"d":"6.335"},{"v":6.339285714285718,"d":"6.339"},{"v":0.8385071677555571,"d":"0.839"},{"v":5.500778546530162,"d":"5.501"},null,null,{"$f":"SUM('IV. Country level, 1310-2018'!AO302:AV302)","v":{"v":7.345119040725828,"d":"7.345"}},{"$f":"SUM('IV. Country level, 1310-2018'!AY302:BF302)","v":{"v":2.971800126293993,"d":"2.9718"}},{"v":4.373318914431835,"d":"4.373"},{"v":6.400000000000004,"d":"6.400"},{"$f":"'IV. Country level, 1310-2018'!W302","v":{"v":16.368932294790124,"d":"16.369"}},{"$f":"'IV. Country level, 1310-2018'!E302","v":{"v":-9.96893229479012,"d":"-9.969"}},{"$nulls":5},{"v":10,"d":"10.000"},{"v":0.8592062151010892,"d":"0.859"},{"v":9.14079378489891,"d":"9.141"},{"$f":"'VIII. Pers. sov. loans, 1312-'!C301","v":{"v":6.813131313131313,"d":"6.813"}}]
[1609,null,{"v":7.356425187906439,"d":"7.356"},{"v":1.0895943151106853,"d":"1.090"},{"v":6.266830872795753,"d":"6.267"},{"v":6.305952380952385,"d":"6.306"},{"v":2.058040937012237,"d":"2.058"},{"v":4.247911443940148,"d":"4.248"},null,null,{"$f":"SUM('IV. Country level, 1310-2018'!AO303:AV303)","v":{"v":7.315342505186342,"d":"7.315"}},{"$f":"SUM('IV. Country level, 1310-2018'!AY303:BF303)","v":{"v":-2.325969451168897,"d":"-2.3260"}},{"v":9.641311956355239,"d":"9.641"},{"v":6.373809523809529,"d":"6.374"},{"$f":"'IV. Country level, 1310-2018'!W303","v":{"v":0.8339619535069984,"d":"0.834"}},{"$f":"'IV. Country level, 1310-2018'!E303","v":{"v":5.5398475703025305,"d":"5.540"}},{"$nulls":5},{"v":6,"d":"6.000"},{"v":0.11338463872372258,"d":"0.113"},{"v":5.886615361276277,"d":"5.887"},{"$f":"'VIII. Pers. sov. loans, 1312-'!C302","v":{"v":7.313131313131313,"d":"7.313"}}]
[1610,null,{"v":7.316999711184718,"d":"7.317"},{"v":0.4478837197849348,"d":"0.448"},{"v":6.8691159913997835,"d":"6.869"},{"v":6.2726190476190515,"d":"6.273"},{"v":2.9402167258578022,"d":"2.940"},{"v":3.3324023217612506,"d":"3.332"},null,null,{"$f":"SUM('IV. Country level, 1310-2018'!AO304:AV304)","v":{"v":7.277296714273432,"d":"7.277"}},{"$f":"SUM('IV. Country level, 1310-2018'!AY304:BF304)","v":{"v":0.6820019465122809,"d":"0.6820"}},{"v":6.5952947677611515,"d":"6.595"},{"v":5.972619047619052,"d":"5.973"},{"$f":"'IV. Country level, 1310-2018'!W304","v":{"v":-5.424601289500991,"d":"-5.425"}},{"$f":"'IV. Country level, 1310-2018'!E304","v":{"v":11.397220337120043,"d":"11.397"}},{"$nulls":5},{"v":6,"d":"6.000"},{"v":4.245652724068943,"d":"4.246"},{"v":1.7543472759310568,"d":"1.754"},{"$f":"'VIII. Pers. sov. loans, 1312-'!C303","v":{"v":7.642835129613976,"d":"7.643"}}]
[1611,null,{"v":7.362217213887483,"d":"7.362"},{"v":0.6143041439823093,"d":"0.614"},{"v":6.747913069905174,"d":"6.748"},{"v":6.239285714285719,"d":"6.239"},{"v":1.6786779134637189,"d":"1.679"},{"v":4.560607800822,"d":"4.561"},null,null,{"$f":"SUM('IV. Country level, 1310-2018'!AO305:AV305)","v":{"v":7.217345384617366,"d":"7.217"}},{"$f":"SUM('IV. Country level, 1310-2018'!AY305:BF305)","v":{"v":-0.4354697231466741,"d":"-0.4355"}},{"v":7.652815107764041,"d":"7.653"},{"v":6.271428571428576,"d":"6.271"},{"$f":"'IV. Country level, 1310-2018'!W305","v":{"v":1.1556897861335893,"d":"1.156"}},{"$f":"'IV. Country level, 1310-2018'!E305","v":{"v":5.115738785294987,"d":"5.116"}},{"$nulls":5},{"v":6,"d":"6.000"},{"v":-0.02306694099472994,"d":"-0.023"},{"v":6.02306694099473,"d":"6.023"},{"$f":"'VIII. Pers. sov. loans, 1312-'!C304","v":{"v":7.613071390415141,"d":"7.613"}}]
[1612,null,{"v":7.38818327450051,"d":"7.388"},{"v":-0.1649554143140297,"d":"-0.165"},{"v":7.55313868881454,"d":"7.553"},{"v":6.205952380952385,"d":"6.206"},{"v":-1.0819164074694065,"d":"-1.082"},{"v":7.287868788421791,"d":"7.288"},null,null,{"$f":"SUM('IV. Country level, 1310-2018'!AO306:AV306)","v":{"v":7.27856487906596,"d":"7.279"}},{"$f":"SUM('IV. Country level, 1310-2018'!AY306:BF306)","v":{"v":2.782757143281418,"d":"2.7828"}},{"v":4.495807735784542,"d":"4.496"},{"v":6.2452380952381,"d":"6.245"},{"$f":"'IV. Country level, 1310-2018'!W306","v":{"v":3.410840870688381,"d":"3.411"}},{"$f":"'IV. Country level, 1310-2018'!E306","v":{"v":2.834397224549719,"d":"2.834"}},{"$nulls":5},{"v":6,"d":"6.000"},{"v":2.242209305765171,"d":"2.242"},{"v":3.757790694234829,"d":"3.758"},{"$f":"'VIII. Pers. sov. loans, 1312-'!C305","v":{"v":7.613071390415141,"d":"7.613"}}]
[1613,null,{"v":7.425753850153322,"d":"7.426"},{"v":0.18585857255568122,"d":"0.186"},{"v":7.2398952775976415,"d":"7.240"},{"v":6.172619047619051,"d":"6.173"},{"v":-0.29689677674271636,"d":"-0.297"},{"v":6.469515824361769,"d":"6.470"},null,null,{"$f":"SUM('IV. Country level, 1310-2018'!AO307:AV307)","v":{"v":7.465780202292455,"d":"7.466"}},{"$f":"SUM('IV. Country level, 1310-2018'!AY307:BF307)","v":{"v":-3.1192840411282816,"d":"-3.1193"}},{"v":10.585064243420737,"d":"10.585"},{"v":6.219047619047624,"d":"6.219"},{"$f":"'IV. Country level, 1310-2018'!W307","v":{"v":0.5623719735541313,"d":"0.562"}},{"$f":"'IV. Country level, 1310-2018'!E307","v":{"v":5.656675645493492,"d":"5.657"}},{"$nulls":5},{"v":5,"d":"5.000"},{"v":-2.907405867952578,"d":"-2.907"},{"v":7.907405867952578,"d":"7.907"},{"$f":"'VIII. Pers. sov. loans, 1312-'!C306","v":{"v":7.613071390415141,"d":"7.613"}}]
[1614,null,{"v":7.51279436350872,"d":"7.513"},{"v":0.6506573863882693,"d":"0.651"},{"v":6.862136977120451,"d":"6.862"},{"v":6.192857142857148,"d":"6.193"},{"v":1.1463589841180482,"d":"1.146"},{"v":5.0464981587391,"d":"5.046"},null,null,{"$f":"SUM('IV. Country level, 1310-2018'!AO308:AV308)","v":{"v":7.63607177105099,"d":"7.636"}},{"$f":"SUM('IV. Country level, 1310-2018'!AY308:BF308)","v":{"v":3.7442930072323257,"d":"3.7443"}},{"v":3.8917787638186647,"d":"3.892"},{"v":6.1928571428571475,"d":"6.193"},{"$f":"'IV. Country level, 1310-2018'!W308","v":{"v":-5.156450194926205,"d":"-5.156"}},{"$f":"'IV. Country level, 1310-2018'!E308","v":{"v":11.349307337783353,"d":"11.349"}},{"$nulls":5},{"v":5.948148148148149,"d":"5.948"},{"v":9.839524249578291,"d":"9.840"},{"v":-3.8913761014301427,"d":"-3.891"},{"$f":"'VIII. Pers. sov. loans, 1312-'!C307","v":{"v":7.613071390415141,"d":"7.613"}}]
[1615,null,{"v":7.606160775577217,"d":"7.606"},{"v":1.079103820459061,"d":"1.079"},{"v":6.527056955118155,"d":"6.527"},{"v":6.166666666666671,"d":"6.167"},{"v":0.24494633050199952,"d":"0.245"},{"v":5.921720336164671,"d":"5.922"},null,null,{"$f":"SUM('IV. Country level, 1310-2018'!AO309:AV309)","v":{"v":7.526881465017023,"d":"7.527"}},{"$f":"SUM('IV. Country level, 1310-2018'!AY309:BF309)","v":{"v":-2.4830167817803797,"d":"-2.4830"}},{"v":10.009898246797402,"d":"10.010"},{"v":6.166666666666671,"d":"6.167"},{"$f":"'IV. Country level, 1310-2018'!W309","v":{"v":-2.955227951741748,"d":"-2.955"}},{"$f":"'IV. Country level, 1310-2018'!E309","v":{"v":9.121894618408419,"d":"9.122"}},{"$nulls":5},{"v":4.833333333333333,"d":"4.833"},{"v":-4.194289323283075,"d":"-4.194"},{"v":9.027622656616408,"d":"9.028"},{"$f":"'VIII. Pers. sov. loans, 1312-'!C308","v":{"v":7.238071390415141,"d":"7.238"}}]
[1616,null,{"v":7.682157391948744,"d":"7.682"},{"v":0.6352725473508779,"d":"0.635"},{"v":7.046884844597865,"d":"7.047"},{"v":6.140476190476194,"d":"6.140"},{"v":-0.8772842601912829,"d":"-0.877"},{"v":7.017760450667477,"d":"7.018"},null,null,{"$f":"SUM('IV. Country level, 1310-2018'!AO310:AV310)","v":{"v":7.578336534756032,"d":"7.578"}},{"$f":"SUM('IV. Country level, 1310-2018'!AY310:BF310)","v":{"v":0.12972845691907955,"d":"0.1297"}},{"v":7.448608077836952,"d":"7.449"},{"v":6.140476190476195,"d":"6.140"},{"$f":"'IV. Country level, 1310-2018'!W310","v":{"v":6.329099368593829,"d":"6.329"}},{"$f":"'IV. Country level, 1310-2018'!E310","v":{"v":-0.1886231781176333,"d":"-0.189"}},{"$nulls":5},{"v":5,"d":"5.000"},{"v":6.351430894249281,"d":"6.351"},{"v":-1.3514308942492814,"d":"-1.351"},{"$f":"'VIII. Pers. sov. loans, 1312-'!C309","v":{"v":6.699642742557069,"d":"6.700"}}]
[1617,null,{"v":7.7317788224752855,"d":"7.732"},{"v":1.0794923654717528,"d":"1.079"},{"v":6.652286457003533,"d":"6.652"},{"v":6.114285714285719,"d":"6.114"},{"v":-0.8741852025861728,"d":"-0.874"},{"v":6.988470916871891,"d":"6.988"},null,null,{"$f":"SUM('IV. Country level, 1310-2018'!AO311:AV311)","v":{"v":7.886580307761224,"d":"7.887"}},{"$f":"SUM('IV. Country level, 1310-2018'!AY311:BF311)","v":{"v":3.935593643340397,"d":"3.9356"}},{"v":3.950986664420827,"d":"3.951"},{"v":6.114285714285719,"d":"6.114"},{"$f":"'IV. Country level, 1310-2018'!W311","v":{"v":4.67818903652436,"d":"4.678"}},{"$f":"'IV. Country level, 1310-2018'!E311","v":{"v":1.436096677761359,"d":"1.436"}},{"$nulls":5},{"v":7.258695652173913,"d":"7.259"},{"v":-10.677072873213383,"d":"-10.677"},{"v":17.935768525387296,"d":"17.936"},{"$f":"'VIII. Pers. sov. loans, 1312-'!C310","v":{"v":5.9799016853932585,"d":"5.980"}}]
[1618,null,{"v":7.727108661421702,"d":"7.727"},{"v":2.7434824439442,"d":"2.743"},{"v":4.983626217477501,"d":"4.984"},{"v":6.088095238095242,"d":"6.088"},{"v":-0.4751840575829314,"d":"-0.475"},{"v":6.563279295678176,"d":"6.563"},null,null,{"$f":"SUM('IV. Country level, 1310-2018'!AO312:AV312)","v":{"v":7.870910269096836,"d":"7.871"}},{"$f":"SUM('IV. Country level, 1310-2018'!AY312:BF312)","v":{"v":2.5636553153488686,"d":"2.5637"}},{"v":5.307254953747967,"d":"5.307"},{"v":6.088095238095243,"d":"6.088"},{"$f":"'IV. Country level, 1310-2018'!W312","v":{"v":-5.154198789178751,"d":"-5.154"}},{"$f":"'IV. Country level, 1310-2018'!E312","v":{"v":11.242294027273994,"d":"11.242"}},{"$nulls":5},{"v":6.879347826086956,"d":"6.879"},{"v":-4.0988491872339665,"d":"-4.099"},{"v":10.978197013320923,"d":"10.978"},{"$f":"'VIII. Pers. sov. loans, 1312-'!C311","v":{"v":6.048459069020867,"d":"6.048"}}]
[1619,null,{"v":7.802515759000784,"d":"7.803"},{"v":5.27505157324547,"d":"5.275"},{"v":2.527464185755314,"d":"2.527"},{"v":6.061904761904766,"d":"6.062"},{"v":2.7960088929470865,"d":"2.796"},{"v":3.265895868957681,"d":"3.266"},null,null,{"$f":"SUM('IV. Country level, 1310-2018'!AO313:AV313)","v":{"v":7.810541193666642,"d":"7.811"}},{"$f":"SUM('IV. Country level, 1310-2018'!AY313:BF313)","v":{"v":-0.32406176847586365,"d":"-0.3241"}},{"v":8.134602962142505,"d":"8.135"},{"v":6.061904761904766,"d":"6.062"},{"$f":"'IV. Country level, 1310-2018'!W313","v":{"v":-4.4447732641645965,"d":"-4.445"}},{"$f":"'IV. Country level, 1310-2018'!E313","v":{"v":10.506678026069363,"d":"10.507"}},{"$nulls":5},{"v":6.5,"d":"6.500"},{"v":5.121958459408121,"d":"5.122"},{"v":1.3780415405918793,"d":"1.378"},{"$f":"'VIII. Pers. sov. loans, 1312-'!C312","v":{"v":6.6049016853932585,"d":"6.605"}}]
[1620,null,{"v":7.846414811256061,"d":"7.846"},{"v":5.281698234807149,"d":"5.282"},{"v":2.564716576448912,"d":"2.565"},{"v":6.035714285714291,"d":"6.036"},{"v":2.992465267412759,"d":"2.992"},{"v":3.043249018301531,"d":"3.043"},null,null,{"$f":"SUM('IV. Country level, 1310-2018'!AO314:AV314)","v":{"v":7.8131302159782505,"d":"7.813"}},{"$f":"SUM('IV. Country level, 1310-2018'!AY314:BF314)","v":{"v":-0.009745314282158524,"d":"-0.0097"}},{"v":7.822875530260409,"d":"7.823"},{"v":6.035714285714291,"d":"6.036"},{"$f":"'IV. Country level, 1310-2018'!W314","v":{"v":0.5840653767899026,"d":"0.584"}},{"$f":"'IV. Country level, 1310-2018'!E314","v":{"v":5.451648908924389,"d":"5.452"}},{"$nulls":5},{"v":5,"d":"5.000"},{"v":10.020248847672104,"d":"10.020"},{"v":-5.020248847672104,"d":"-5.020"},{"$f":"'VIII. Pers. sov. loans, 1312-'!C313","v":{"v":6.482134831460674,"d":"6.482"}}]
[1621,null,{"v":7.851178538914581,"d":"7.851"},{"v":3.916107505897199,"d":"3.916"},{"v":3.935071033017382,"d":"3.935"},{"v":6.009523809523814,"d":"6.010"},{"v":2.713757526255527,"d":"2.714"},{"v":3.295766283268288,"d":"3.296"},null,null,{"$f":"SUM('IV. Country level, 1310-2018'!AO315:AV315)","v":{"v":7.6033806436759015,"d":"7.603"}},{"$f":"SUM('IV. Country level, 1310-2018'!AY315:BF315)","v":{"v":15.392223556539458,"d":"15.3922"}},{"v":-7.788842912863556,"d":"-7.789"},{"v":6.009523809523815,"d":"6.010"},{"$f":"'IV. Country level, 1310-2018'!W315","v":{"v":-2.3634421799035166,"d":"-2.363"}},{"$f":"'IV. Country level, 1310-2018'!E315","v":{"v":8.372965989427332,"d":"8.373"}},{"$nulls":5},{"v":4,"d":"4.000"},{"v":95.63332153511325,"d":"95.633"},{"v":-91.63332153511325,"d":"-91.633"},{"$f":"'VIII. Pers. sov. loans, 1312-'!C314","v":{"v":6.6049016853932585,"d":"6.605"}}]
[1622,null,{"v":7.870904657344728,"d":"7.871"},{"v":3.596776109214068,"d":"3.597"},{"v":4.274128548130659,"d":"4.274"},{"v":5.983333333333339,"d":"5.983"},{"v":3.3180643977026416,"d":"3.318"},{"v":2.665268935630697,"d":"2.665"},null,null,{"$f":"SUM('IV. Country level, 1310-2018'!AO316:AV316)","v":{"v":8.054731148070605,"d":"8.055"}},{"$f":"SUM('IV. Country level, 1310-2018'!AY316:BF316)","v":{"v":15.23796712332851,"d":"15.2380"}},{"v":-7.1832359752579045,"d":"-7.183"},{"v":5.983333333333338,"d":"5.983"},{"$f":"'IV. Country level, 1310-2018'!W316","v":{"v":19.94312270196838,"d":"19.943"}},{"$f":"'IV. Country level, 1310-2018'!E316","v":{"v":-13.959789368635043,"d":"-13.960"}},{"$nulls":5},{"v":4,"d":"4.000"},{"v":79.52877270599286,"d":"79.529"},{"v":-75.52877270599286,"d":"-75.529"},{"$f":"'VIII. Pers. sov. loans, 1312-'!C315","v":{"v":6.973202247191011,"d":"6.973"}}]
[1623,null,{"v":7.991681074746865,"d":"7.992"},{"v":4.983567054347562,"d":"4.984"},{"v":3.0081140203993044,"d":"3.008"},{"v":5.957142857142863,"d":"5.957"},{"v":3.094239419392999,"d":"3.094"},{"v":2.8629034377498637,"d":"2.863"},null,null,{"$f":"SUM('IV. Country level, 1310-2018'!AO317:AV317)","v":{"v":7.8856299005429715,"d":"7.886"}},{"$f":"SUM('IV. Country level, 1310-2018'!AY317:BF317)","v":{"v":0.176255087850836,"d":"0.1763"}},{"v":7.709374812692135,"d":"7.709"},{"v":5.957142857142863,"d":"5.957"},{"$f":"'IV. Country level, 1310-2018'!W317","v":{"v":7.704293989853535,"d":"7.704"}},{"$f":"'IV. Country level, 1310-2018'!E317","v":{"v":-1.7471511327106723,"d":"-1.747"}},{"$nulls":5},{"v":4,"d":"4.000"},{"v":-10.87537622054715,"d":"-10.875"},{"v":14.87537622054715,"d":"14.875"},{"$f":"'VIII. Pers. sov. loans, 1312-'!C316","v":{"v":8.5,"d":"8.500"}}]
[1624,null,{"v":8.116257096812053,"d":"8.116"},{"v":4.321232559151722,"d":"4.321"},{"v":3.795024537660331,"d":"3.795"},{"v":5.9309523809523865,"d":"5.931"},{"v":3.2937142918194904,"d":"3.294"},{"v":2.637238089132896,"d":"2.637"},null,null,{"$f":"SUM('IV. Country level, 1310-2018'!AO318:AV318)","v":{"v":7.919926401370866,"d":"7.920"}},{"$f":"SUM('IV. Country level, 1310-2018'!AY318:BF318)","v":{"v":-5.623541459029252,"d":"-5.6235"}},{"v":13.543467860400117,"d":"13.543"},{"v":5.9309523809523865,"d":"5.931"},{"$f":"'IV. Country level, 1310-2018'!W318","v":{"v":2.7272348484237328,"d":"2.727"}},{"$f":"'IV. Country level, 1310-2018'!E318","v":{"v":3.2037175325286538,"d":"3.204"}},{"$nulls":5},{"v":4,"d":"4.000"},{"v":-25.146085771665728,"d":"-25.146"},{"v":29.146085771665728,"d":"29.146"},{"$f":"'VIII. Pers. sov. loans, 1312-'!C317","v":{"v":9.285714285714286,"d":"9.286"}}]
[1625,null,{"v":8.249888820854434,"d":"8.250"},{"v":1.8519474568389132,"d":"1.852"},{"v":6.397941364015522,"d":"6.398"},{"v":5.904761904761911,"d":"5.905"},{"v":4.636561035733064,"d":"4.637"},{"v":1.268200869028846,"d":"1.268"},null,null,{"$f":"SUM('IV. Country level, 1310-2018'!AO319:AV319)","v":{"v":8.008993098107855,"d":"8.009"}},{"$f":"SUM('IV. Country level, 1310-2018'!AY319:BF319)","v":{"v":0.32833553856694764,"d":"0.3283"}},{"v":7.680657559540907,"d":"7.681"},{"v":5.90476190476191,"d":"5.905"},{"$f":"'IV. Country level, 1310-2018'!W319","v":{"v":-0.924050689048949,"d":"-0.924"}},{"$f":"'IV. Country level, 1310-2018'!E319","v":{"v":6.828812593810859,"d":"6.829"}},{"$nulls":5},{"v":4,"d":"4.000"},{"v":7.012255326601887,"d":"7.012"},{"v":-3.0122553266018874,"d":"-3.012"},{"$f":"'VIII. Pers. sov. loans, 1312-'!C318","v":{"v":9.5,"d":"9.500"}}]
[1626,null,{"v":8.32321259396109,"d":"8.323"},{"v":-0.37595963293722734,"d":"-0.376"},{"v":8.699172226898318,"d":"8.699"},{"v":5.878571428571433,"d":"5.879"},{"v":3.440194768721356,"d":"3.440"},{"v":2.4383766598500785,"d":"2.438"},null,null,{"$f":"SUM('IV. Country level, 1310-2018'!AO320:AV320)","v":{"v":8.655976115481613,"d":"8.656"}},{"$f":"SUM('IV. Country level, 1310-2018'!AY320:BF320)","v":{"v":9.38347484745859,"d":"9.3835"}},{"v":-0.7274987319769775,"d":"-0.727"},{"v":5.878571428571433,"d":"5.879"},{"$f":"'IV. Country level, 1310-2018'!W320","v":{"v":-6.011548112332093,"d":"-6.012"}},{"$f":"'IV. Country level, 1310-2018'!E320","v":{"v":11.890119540903527,"d":"11.890"}},{"$nulls":5},{"v":4.846153846153846,"d":"4.846"},{"v":4.998340560255141,"d":"4.998"},{"v":-0.15218671410129492,"d":"-0.152"},{"$f":"'VIII. Pers. sov. loans, 1312-'!C319","v":{"v":10.142857142857142,"d":"10.143"}}]
[1627,null,{"v":8.42484771831209,"d":"8.425"},{"v":0.14170193243152093,"d":"0.142"},{"v":8.283145785880569,"d":"8.283"},{"v":5.852380952380959,"d":"5.852"},{"v":3.906847897274603,"d":"3.907"},{"v":1.9455330551063545,"d":"1.946"},null,null,{"$f":"SUM('IV. Country level, 1310-2018'!AO321:AV321)","v":{"v":8.685162370434565,"d":"8.685"}},{"$f":"SUM('IV. Country level, 1310-2018'!AY321:BF321)","v":{"v":-4.646086780653032,"d":"-4.6461"}},{"v":13.331249151087597,"d":"13.331"},{"v":5.852380952380958,"d":"5.852"},{"$f":"'IV. Country level, 1310-2018'!W321","v":{"v":1.980389483775341,"d":"1.980"}},{"$f":"'IV. Country level, 1310-2018'!E321","v":{"v":3.871991468605617,"d":"3.872"}},{"$nulls":5},{"v":4.564102564102564,"d":"4.564"},{"v":-8.787545714213781,"d":"-8.788"},{"v":13.351648278316345,"d":"13.352"},{"$f":"'VIII. Pers. sov. loans, 1312-'!C320","v":{"v":11.833333333333334,"d":"11.833"}}]
[1628,null,{"v":8.531755656181838,"d":"8.532"},{"v":2.078406190042713,"d":"2.078"},{"v":6.453349466139123,"d":"6.453"},{"v":5.773804761904768,"d":"5.774"},{"v":3.4671500735504197,"d":"3.467"},{"v":2.306654688354349,"d":"2.307"},null,null,{"$f":"SUM('IV. Country level, 1310-2018'!AO322:AV322)","v":{"v":8.538802711972574,"d":"8.539"}},{"$f":"SUM('IV. Country level, 1310-2018'!AY322:BF322)","v":{"v":-1.8927721596502032,"d":"-1.8928"}},{"v":10.431574871622777,"d":"10.432"},{"v":5.826190476190482,"d":"5.826"},{"$f":"'IV. Country level, 1310-2018'!W322","v":{"v":7.0364850274915,"d":"7.036"}},{"$f":"'IV. Country level, 1310-2018'!E322","v":{"v":-1.2102945513010175,"d":"-1.210"}},{"$nulls":5},{"v":4.282051282051282,"d":"4.282"},{"v":-1.058636237775108,"d":"-1.059"},{"v":5.34068751982639,"d":"5.341"},{"$f":"'VIII. Pers. sov. loans, 1312-'!C321","v":{"v":12.166666666666666,"d":"12.167"}}]
[1629,null,{"v":8.655992188365051,"d":"8.656"},{"v":1.8320353824278015,"d":"1.832"},{"v":6.823956805937251,"d":"6.824"},{"v":5.695228571428578,"d":"5.695"},{"v":1.1449633451637038,"d":"1.145"},{"v":4.550265226264874,"d":"4.550"},null,null,{"$f":"SUM('IV. Country level, 1310-2018'!AO323:AV323)","v":{"v":8.567997559817186,"d":"8.568"}},{"$f":"SUM('IV. Country level, 1310-2018'!AY323:BF323)","v":{"v":-0.3573825051044772,"d":"-0.3574"}},{"v":8.925380064921663,"d":"8.925"},{"v":5.800000000000006,"d":"5.800"},{"$f":"'IV. Country level, 1310-2018'!W323","v":{"v":11.568558832886422,"d":"11.569"}},{"$f":"'IV. Country level, 1310-2018'!E323","v":{"v":-5.768558832886416,"d":"-5.769"}},{"$nulls":5},{"v":4,"d":"4.000"},{"v":-1.1208624865703394,"d":"-1.121"},{"v":5.120862486570339,"d":"5.121"},{"$f":"'VIII. Pers. sov. loans, 1312-'!C322","v":{"v":12.214285714285714,"d":"12.214"}}]
[1630,null,{"v":8.69933399446779,"d":"8.699"},{"v":0.2642803215991793,"d":"0.264"},{"v":8.43505367286861,"d":"8.435"},{"v":5.616652380952388,"d":"5.617"},{"v":1.3870497686916035,"d":"1.387"},{"v":4.229602612260784,"d":"4.230"},null,null,{"$f":"SUM('IV. Country level, 1310-2018'!AO324:AV324)","v":{"v":8.597075770999973,"d":"8.597"}},{"$f":"SUM('IV. Country level, 1310-2018'!AY324:BF324)","v":{"v":3.799886045432074,"d":"3.7999"}},{"v":4.7971897255678995,"d":"4.797"},{"v":5.77380952380953,"d":"5.774"},{"$f":"'IV. Country level, 1310-2018'!W324","v":{"v":10.970865889726271,"d":"10.971"}},{"$f":"'IV. Country level, 1310-2018'!E324","v":{"v":-5.197056365916741,"d":"-5.197"}},{"$nulls":5},{"v":5,"d":"5.000"},{"v":-7.3368583367541875,"d":"-7.337"},{"v":12.336858336754187,"d":"12.337"},{"$f":"'VIII. Pers. sov. loans, 1312-'!C323","v":{"v":12.071428571428571,"d":"12.071"}}]
[1631,null,{"v":8.682271297543846,"d":"8.682"},{"v":1.0145929060793573,"d":"1.015"},{"v":7.66767839146449,"d":"7.668"},{"v":5.538076190476196,"d":"5.538"},{"v":2.0054456400031926,"d":"2.005"},{"v":3.5326305504730047,"d":"3.533"},null,null,{"$f":"SUM('IV. Country level, 1310-2018'!AO325:AV325)","v":{"v":8.668281966459094,"d":"8.668"}},{"$f":"SUM('IV. Country level, 1310-2018'!AY325:BF325)","v":{"v":7.933388344249092,"d":"7.9334"}},{"v":0.7348936222100022,"d":"0.735"},{"v":5.380919047619054,"d":"5.381"},{"$f":"'IV. Country level, 1310-2018'!W325","v":{"v":-0.3506499176455593,"d":"-0.351"}},{"$f":"'IV. Country level, 1310-2018'!E325","v":{"v":5.731568965264613,"d":"5.732"}},{"$nulls":5},{"v":5.277777777777778,"d":"5.278"},{"v":-1.698833616542275,"d":"-1.699"},{"v":6.976611394320052,"d":"6.977"},{"$f":"'VIII. Pers. sov. loans, 1312-'!C324","v":{"v":11.25,"d":"11.250"}}]
[1632,null,{"v":8.769097004418606,"d":"8.769"},{"v":1.2392722876937385,"d":"1.239"},{"v":7.5298247167248675,"d":"7.530"},{"v":5.4595000000000065,"d":"5.460"},{"v":-0.0836934391285372,"d":"-0.084"},{"v":5.543193439128544,"d":"5.543"},null,null,{"$f":"SUM('IV. Country level, 1310-2018'!AO326:AV326)","v":{"v":8.878648823390368,"d":"8.879"}},{"$f":"SUM('IV. Country level, 1310-2018'!AY326:BF326)","v":{"v":-1.3962601147374312,"d":"-1.3963"}},{"v":10.2749089381278,"d":"10.275"},{"v":5.354728571428577,"d":"5.355"},{"$f":"'IV. Country level, 1310-2018'!W326","v":{"v":-17.179357787755958,"d":"-17.179"}},{"$f":"'IV. Country level, 1310-2018'!E326","v":{"v":22.534086359184535,"d":"22.534"}},{"$nulls":5},{"v":5.555555555555555,"d":"5.556"},{"v":5.940177245397379,"d":"5.940"},{"v":-0.38462168984182377,"d":"-0.385"},{"$f":"'VIII. Pers. sov. loans, 1312-'!C325","v":11.375}]
[1633,null,{"v":8.793385957787256,"d":"8.793"},{"v":1.2916839144039522,"d":"1.292"},{"v":7.501702043383304,"d":"7.502"},{"v":5.380923809523816,"d":"5.381"},{"v":-1.8370655934744409,"d":"-1.837"},{"v":7.217989402998256,"d":"7.218"},null,null,{"$f":"SUM('IV. Country level, 1310-2018'!AO327:AV327)","v":{"v":8.959368758200766,"d":"8.959"}},{"$f":"SUM('IV. Country level, 1310-2018'!AY327:BF327)","v":{"v":-1.5908105783417679,"d":"-1.5908"}},{"v":10.550179336542534,"d":"10.550"},{"v":5.328538095238102,"d":"5.329"},{"$f":"'IV. Country level, 1310-2018'!W327","v":{"v":-4.316943147636795,"d":"-4.317"}},{"$f":"'IV. Country level, 1310-2018'!E327","v":{"v":9.645481242874897,"d":"9.645"}},{"$nulls":5},{"v":5.833333333333333,"d":"5.833"},{"v":12.37525873628985,"d":"12.375"},{"v":-6.541925402956516,"d":"-6.542"},{"$f":"'VIII. Pers. sov. loans, 1312-'!C326","v":{"v":11.233333333333333,"d":"11.233"}}]
[1634,null,{"v":8.780804827150993,"d":"8.781"},{"v":0.5367516645623918,"d":"0.537"},{"v":8.244053162588601,"d":"8.244"},{"v":5.302347619047625,"d":"5.302"},{"v":-2.0640156827181295,"d":"-2.064"},{"v":7.366363301765754,"d":"7.366"},null,null,{"$f":"SUM('IV. Country level, 1310-2018'!AO328:AV328)","v":{"v":8.56572349196697,"d":"8.566"}},{"$f":"SUM('IV. Country level, 1310-2018'!AY328:BF328)","v":{"v":0.6061013107082155,"d":"0.6061"}},{"v":7.959622181258755,"d":"7.960"},{"v":5.302347619047625,"d":"5.302"},{"$f":"'IV. Country level, 1310-2018'!W328","v":{"v":6.309160582956464,"d":"6.309"}},{"$f":"'IV. Country level, 1310-2018'!E328","v":{"v":-1.006812963908839,"d":"-1.007"}},{"$nulls":5},{"v":3.5277922303156433,"d":"3.528"},{"v":11.858527395175575,"d":"11.859"},{"v":-8.33073516485993,"d":"-8.331"},{"$f":"'VIII. Pers. sov. loans, 1312-'!C327","v":{"v":11.322222222222221,"d":"11.322"}}]
[1635,null,{"v":8.760683876117813,"d":"8.761"},{"v":-0.6356335577514536,"d":"-0.636"},{"v":9.39631743386927,"d":"9.396"},{"v":5.27615714285715,"d":"5.276"},{"v":-1.8812099436344165,"d":"-1.881"},{"v":7.1573670864915675,"d":"7.157"},null,null,{"$f":"SUM('IV. Country level, 1310-2018'!AO329:AV329)","v":{"v":9.146582660095884,"d":"9.147"}},{"$f":"SUM('IV. Country level, 1310-2018'!AY329:BF329)","v":{"v":-0.3200164883495342,"d":"-0.3200"}},{"$f":"K333-L333","v":{"v":9.466599148445418,"d":"9.467"}},{"v":5.27615714285715,"d":"5.276"},{"$f":"'IV. Country level, 1310-2018'!W329","v":{"v":-7.587488526430606,"d":"-7.587"}},{"$f":"'IV. Country level, 1310-2018'!E329","v":{"v":12.863645669287756,"d":"12.864"}},{"$nulls":5},{"v":3.8648254133425834,"d":"3.865"},{"v":2.81799509193962,"d":"2.818"},{"v":1.0468303214029633,"d":"1.047"},{"$f":"'VIII. Pers. sov. loans, 1312-'!C328","v":{"v":11.377777777777776,"d":"11.378"}}]
[1636,null,{"v":8.744055983769327,"d":"8.744"},{"v":-1.2172198297433916,"d":"-1.217"},{"v":9.961275813512717,"d":"9.961"},{"v":5.166638095238101,"d":"5.167"},{"v":0.08482959178539577,"d":"0.085"},{"v":5.081808503452706,"d":"5.082"},null,null,{"$f":"SUM('IV. Country level, 1310-2018'!AO330:AV330)","v":{"v":8.73802023339774,"d":"8.738"}},{"$f":"SUM('IV. Country level, 1310-2018'!AY330:BF330)","v":{"v":0.009498881867017084,"d":"0.0095"}},{"v":8.728521351530723,"d":"8.729"},{"v":5.249966666666673,"d":"5.250"},{"$f":"'IV. Country level, 1310-2018'!W330","v":{"v":-0.7050462475349013,"d":"-0.705"}},{"$f":"'IV. Country level, 1310-2018'!E330","v":{"v":5.955012914201574,"d":"5.955"}},{"$nulls":5},{"v":4.201858596369523,"d":"4.202"},{"v":-4.675027948610122,"d":"-4.675"},{"v":8.876886544979644,"d":"8.877"},{"$f":"'VIII. Pers. sov. loans, 1312-'!C329","v":{"v":11.322222222222221,"d":"11.322"}}]
[1637,null,{"v":8.681375005044844,"d":"8.681"},{"v":-1.3549665409109004,"d":"-1.355"},{"v":10.036341545955745,"d":"10.036"},{"v":5.057119047619054,"d":"5.057"},{"v":1.4454677791546557,"d":"1.445"},{"v":3.611651268464399,"d":"3.612"},null,null,{"$f":"SUM('IV. Country level, 1310-2018'!AO331:AV331)","v":{"v":8.509007856546127,"d":"8.509"}},{"$f":"SUM('IV. Country level, 1310-2018'!AY331:BF331)","v":{"v":-1.4846397034588499,"d":"-1.4846"}},{"v":9.993647560004977,"d":"9.994"},{"v":5.2237761904761975,"d":"5.224"},{"$f":"'IV. Country level, 1310-2018'!W331","v":{"v":9.382215265020449,"d":"9.382"}},{"$f":"'IV. Country level, 1310-2018'!E331","v":{"v":-4.158439074544251,"d":"-4.158"}},{"$nulls":5},{"v":3.988900450919181,"d":"3.989"},{"v":-1.6172435572428114,"d":"-1.617"},{"v":5.606144008161992,"d":"5.606"},{"$f":"'VIII. Pers. sov. loans, 1312-'!C330","v":{"v":10.870000000000001,"d":"10.870"}}]
[1638,null,{"$f":"AVERAGE(K333:K339)","v":{"v":8.67185599217164,"d":"8.672"}},{"$f":"AVERAGE(L333:L339)","v":{"v":-0.6609979261338584,"d":"-0.661"}},{"$f":"AVERAGE(M333:M339)","v":{"v":9.332853918305497,"d":"9.333"}},{"$f":"AVERAGE(N333:N339)","v":{"v":4.947600000000007,"d":"4.948"}},{"$f":"AVERAGE(O333:O339)","v":{"v":0.027442900159952734,"d":"0.027"}},{"$f":"AVERAGE(P333:P339)","v":{"v":4.920157099840054,"d":"4.920"}},null,null,{"$f":"SUM('IV. Country level, 1310-2018'!AO332:AV332)","v":{"v":8.527435309226847,"d":"8.527"}},{"$f":"SUM('IV. Country level, 1310-2018'!AY332:BF332)","v":{"v":-0.2733082119478238,"d":"-0.2733"}},{"v":8.80074352117467,"d":"8.801"},{"v":5.1975857142857205,"d":"5.198"},{"$f":"'IV. Country level, 1310-2018'!W332","v":{"v":0.928990255940433,"d":"0.929"}},{"$f":"'IV. Country level, 1310-2018'!E332","v":{"v":4.268595458345287,"d":"4.269"}},{"$nulls":5},{"v":4.325933633946121,"d":"4.326"},{"v":4.653660155500186,"d":"4.654"},{"v":-0.327726521554065,"d":"-0.328"},{"$f":"'VIII. Pers. sov. loans, 1312-'!C331","v":{"v":11.222222222222221,"d":"11.222"}}]
[1639,null,{"v":8.580383623113338,"d":"8.580"},{"v":-0.9320328257371205,"d":"-0.932"},{"v":9.512416448850459,"d":"9.512"},{"v":4.838080952380959,"d":"4.838"},{"v":0.6095838449639631,"d":"0.610"},{"v":4.228497107416996,"d":"4.228"},null,null,{"$f":"SUM('IV. Country level, 1310-2018'!AO333:AV333)","v":{"v":8.762253576950947,"d":"8.762"}},{"$f":"SUM('IV. Country level, 1310-2018'!AY333:BF333)","v":{"v":-5.467364018680997,"d":"-5.4674"}},{"v":14.229617595631943,"d":"14.230"},{"v":4.588095238095244,"d":"4.588"},{"$f":"'IV. Country level, 1310-2018'!W333","v":{"v":-3.417081039817272,"d":"-3.417"}},{"$f":"'IV. Country level, 1310-2018'!E333","v":{"v":8.005176277912517,"d":"8.005"}},{"$nulls":5},{"v":4.662966816973061,"d":"4.663"},{"v":-15.3525218342205,"d":"-15.353"},{"v":20.01548865119356,"d":"20.015"},{"$f":"'VIII. Pers. sov. loans, 1312-'!C332","v":{"v":10.879999999999999,"d":"10.880"}}]
[1640,null,{"v":8.54747571142236,"d":"8.547"},{"v":-0.4725984914564435,"d":"-0.473"},{"v":9.020074202878801,"d":"9.020"},{"v":4.728561904761911,"d":"4.729"},{"v":1.5080947772295088,"d":"1.508"},{"v":3.2204671275324026,"d":"3.220"},null,null,{"$f":"SUM('IV. Country level, 1310-2018'!AO334:AV334)","v":{"v":8.520601907129393,"d":"8.521"}},{"$f":"SUM('IV. Country level, 1310-2018'!AY334:BF334)","v":{"v":-2.55503755651433,"d":"-2.5550"}},{"v":11.075639463643723,"d":"11.076"},{"v":4.561904761904769,"d":"4.562"},{"$f":"'IV. Country level, 1310-2018'!W334","v":{"v":5.207524163948024,"d":"5.208"}},{"$f":"'IV. Country level, 1310-2018'!E334","v":{"v":-0.6456194020432555,"d":"-0.646"}},{"$nulls":5},{"v":5,"d":"5.000"},{"v":-5.36861030316026,"d":"-5.369"},{"v":10.36861030316026,"d":"10.369"},{"$f":"'VIII. Pers. sov. loans, 1312-'!C333","v":{"v":11.155555555555555,"d":"11.156"}}]
[1641,null,{"v":8.546657435374648,"d":"8.547"},{"v":-0.3617228752071802,"d":"-0.362"},{"v":8.908380310581828,"d":"8.908"},{"v":4.6190428571428646,"d":"4.619"},{"v":0.6904080896173888,"d":"0.690"},{"v":3.928634767525476,"d":"3.929"},null,null,{"$f":"SUM('IV. Country level, 1310-2018'!AO335:AV335)","v":{"v":8.499090401854527,"d":"8.499"}},{"$f":"SUM('IV. Country level, 1310-2018'!AY335:BF335)","v":{"v":5.463881614147509,"d":"5.4639"}},{"v":3.0352087877070186,"d":"3.035"},{"v":4.535714285714294,"d":"4.536"},{"$f":"'IV. Country level, 1310-2018'!W335","v":{"v":-3.617013570006458,"d":"-3.617"}},{"$f":"'IV. Country level, 1310-2018'!E335","v":{"v":8.152727855720752,"d":"8.153"}},{"$nulls":5},{"v":6,"d":"6.000"},{"v":7.890612256134501,"d":"7.891"},{"v":-1.8906122561345011,"d":"-1.891"},{"$f":"'VIII. Pers. sov. loans, 1312-'!C334","v":{"v":10.959999999999999,"d":"10.960"}}]
[1642,null,{"v":8.529512826910935,"d":"8.530"},{"v":-0.9685200169771923,"d":"-0.969"},{"v":9.498032843888128,"d":"9.498"},{"v":4.509523809523817,"d":"4.510"},{"v":-0.2749394604009029,"d":"-0.275"},{"v":4.78446326992472,"d":"4.784"},null,null,{"$f":"SUM('IV. Country level, 1310-2018'!AO336:AV336)","v":{"v":8.506276076687781,"d":"8.506"}},{"$f":"SUM('IV. Country level, 1310-2018'!AY336:BF336)","v":{"v":-2.2172607855723685,"d":"-2.2173"}},{"v":10.72353686226015,"d":"10.724"},{"v":4.509523809523817,"d":"4.510"},{"$f":"'IV. Country level, 1310-2018'!W336","v":{"v":-3.5125019128025325,"d":"-3.513"}},{"$f":"'IV. Country level, 1310-2018'!E336","v":{"v":8.02202572232635,"d":"8.022"}},{"$nulls":5},{"v":5.8,"d":"5.800"},{"v":0.3262181988129225,"d":"0.326"},{"v":5.473781801187077,"d":"5.474"},{"$f":"'VIII. Pers. sov. loans, 1312-'!C335","v":{"v":10.618181818181819,"d":"10.618"}}]
[1643,null,{"v":8.47820333720095,"d":"8.478"},{"v":-0.2516350902506384,"d":"-0.252"},{"v":8.729838427451588,"d":"8.730"},{"v":4.4833333333333405,"d":"4.483"},{"v":-0.3325682788271053,"d":"-0.333"},{"v":4.815901612160445,"d":"4.816"},null,null,{"$f":"SUM('IV. Country level, 1310-2018'!AO337:AV337)","v":{"v":8.507664851560888,"d":"8.508"}},{"$f":"SUM('IV. Country level, 1310-2018'!AY337:BF337)","v":{"v":3.2255392218317565,"d":"3.2255"}},{"v":5.282125629729132,"d":"5.282"},{"v":4.4833333333333405,"d":"4.483"},{"$f":"'IV. Country level, 1310-2018'!W337","v":{"v":5.584530278323918,"d":"5.585"}},{"$f":"'IV. Country level, 1310-2018'!E337","v":{"v":-1.1011969449905772,"d":"-1.101"}},{"$nulls":5},{"v":5.6,"d":"5.600"},{"v":-6.045723333676566,"d":"-6.046"},{"v":11.645723333676566,"d":"11.646"},{"$f":"'VIII. Pers. sov. loans, 1312-'!C336","v":{"v":10.4,"d":"10.400"}}]
[1644,null,{"v":8.458348233291131,"d":"8.458"},{"v":1.0684276379926267,"d":"1.068"},{"v":7.389920595298504,"d":"7.390"},{"v":4.457142857142864,"d":"4.457"},{"v":-0.5390841797961753,"d":"-0.539"},{"v":4.9962270369390405,"d":"4.996"},null,null,{"$f":"SUM('IV. Country level, 1310-2018'!AO338:AV338)","v":{"v":8.50327992421215,"d":"8.503"}},{"$f":"SUM('IV. Country level, 1310-2018'!AY338:BF338)","v":{"v":-0.7085103897140066,"d":"-0.7085"}},{"v":9.211790313926157,"d":"9.212"},{"v":4.457142857142864,"d":"4.457"},{"$f":"'IV. Country level, 1310-2018'!W338","v":{"v":3.6584084517356086,"d":"3.658"}},{"$f":"'IV. Country level, 1310-2018'!E338","v":{"v":0.7987344054072558,"d":"0.799"}},{"$nulls":5},{"v":5.3999999999999995,"d":"5.400"},{"v":-6.220784123451273,"d":"-6.221"},{"v":11.620784123451273,"d":"11.621"},{"$f":"'VIII. Pers. sov. loans, 1312-'!C337","v":{"v":10.416666666666666,"d":"10.417"}}]
[1645,null,{"v":8.381578126177265,"d":"8.382"},{"v":1.2981877447278865,"d":"1.298"},{"v":7.083390381449381,"d":"7.083"},{"v":4.430952380952389,"d":"4.431"},{"v":1.9592943910606055,"d":"1.959"},{"v":2.4716579898917836,"d":"2.472"},null,null,{"$f":"SUM('IV. Country level, 1310-2018'!AO339:AV339)","v":{"v":8.40742304998086,"d":"8.407"}},{"$f":"SUM('IV. Country level, 1310-2018'!AY339:BF339)","v":{"v":-4.520888204337908,"d":"-4.5209"}},{"v":12.928311254318768,"d":"12.928"},{"v":4.430952380952388,"d":"4.431"},{"$f":"'IV. Country level, 1310-2018'!W339","v":{"v":-5.8284425941876075,"d":"-5.828"}},{"$f":"'IV. Country level, 1310-2018'!E339","v":{"v":10.259394975139996,"d":"10.259"}},{"$nulls":5},{"v":5.199999999999999,"d":"5.200"},{"v":-1.182944088769982,"d":"-1.183"},{"v":6.382944088769982,"d":"6.383"},{"$f":"'VIII. Pers. sov. loans, 1312-'!C338","v":{"v":10.1,"d":"10.100"}}]
[1646,null,{"v":8.300791369677606,"d":"8.301"},{"v":2.32737294802821,"d":"2.327"},{"v":5.973418421649394,"d":"5.973"},{"v":4.404761904761912,"d":"4.405"},{"v":3.216170275743692,"d":"3.216"},{"v":1.1885916290182206,"d":"1.189"},null,null,{"$f":"SUM('IV. Country level, 1310-2018'!AO340:AV340)","v":{"v":8.403087148981049,"d":"8.403"}},{"$f":"SUM('IV. Country level, 1310-2018'!AY340:BF340)","v":{"v":-0.4491695315951205,"d":"-0.4492"}},{"v":8.85225668057617,"d":"8.852"},{"v":4.404761904761913,"d":"4.405"},{"$f":"'IV. Country level, 1310-2018'!W340","v":{"v":-3.82048276880069,"d":"-3.820"}},{"$f":"'IV. Country level, 1310-2018'!E340","v":{"v":8.225244673562603,"d":"8.225"}},{"$nulls":5},{"v":5,"d":"5.000"},{"v":7.1882733946939945,"d":"7.188"},{"v":-2.1882733946939945,"d":"-2.188"},{"$f":"'VIII. Pers. sov. loans, 1312-'!C339","v":{"v":9.945454545454545,"d":"9.945"}}]
[1647,null,{"v":8.114048793939004,"d":"8.114"},{"v":2.0669068106302038,"d":"2.067"},{"v":6.0471419833088,"d":"6.047"},{"v":4.378571428571436,"d":"4.379"},{"v":3.2670437287647034,"d":"3.267"},{"v":1.1115276998067332,"d":"1.112"},null,null,{"$f":"SUM('IV. Country level, 1310-2018'!AO341:AV341)","v":{"v":8.38161617976066,"d":"8.382"}},{"$f":"SUM('IV. Country level, 1310-2018'!AY341:BF341)","v":{"v":6.685401541188525,"d":"6.6854"}},{"v":1.696214638572136,"d":"1.696"},{"v":4.378571428571436,"d":"4.379"},{"$f":"'IV. Country level, 1310-2018'!W341","v":{"v":3.7619128571645346,"d":"3.762"}},{"$f":"'IV. Country level, 1310-2018'!E341","v":{"v":0.6166585714069015,"d":"0.617"}},{"$nulls":5},{"v":5.75,"d":"5.750"},{"v":1.1394132042127918,"d":"1.139"},{"$f":"V345-W345","v":{"v":4.610586795787208,"d":"4.611"}},{"$f":"'VIII. Pers. sov. loans, 1312-'!C340","v":{"v":9.518181818181818,"d":"9.518"}}]
[1648,null,{"v":8.115146183280547,"d":"8.115"},{"v":1.422316697479,"d":"1.422"},{"v":6.692829485801547,"d":"6.693"},{"v":4.35238095238096,"d":"4.352"},{"v":3.125594817893141,"d":"3.126"},{"v":1.226786134487819,"d":"1.227"},null,null,{"$f":"SUM('IV. Country level, 1310-2018'!AO342:AV342)","v":{"v":7.961699652057469,"d":"7.962"}},{"$f":"SUM('IV. Country level, 1310-2018'!AY342:BF342)","v":{"v":7.072202361294327,"d":"7.0722"}},{"v":0.889497290763142,"d":"0.889"},{"$f":"P346+O346","v":{"v":4.35238095238096,"d":"4.352"}},{"$f":"'IV. Country level, 1310-2018'!W342","v":{"v":13.871636425991007,"d":"13.872"}},{"$f":"'IV. Country level, 1310-2018'!E342","v":{"v":-9.519255473610047,"d":"-9.519"}},{"$nulls":5},{"v":6.5,"d":"6.500"},{"v":12.494453750750644,"d":"12.494"},{"v":-5.994453750750644,"d":"-5.994"},{"$f":"'VIII. Pers. sov. loans, 1312-'!C341","v":{"v":9.3,"d":"9.300"}}]
[1649,null,{"v":8.143029672571311,"d":"8.143"},{"v":2.1982552098176926,"d":"2.198"},{"v":5.944774462753618,"d":"5.945"},{"v":4.326190476190484,"d":"4.326"},{"v":4.34992896479883,"d":"4.350"},{"v":-0.023738488608346615,"d":"-0.024"},null,null,{"$f":"SUM('IV. Country level, 1310-2018'!AO343:AV343)","v":{"v":7.9407687811901555,"d":"7.941"}},{"$f":"SUM('IV. Country level, 1310-2018'!AY343:BF343)","v":{"v":4.987035637529899,"d":"4.9870"}},{"v":2.9537331436602567,"d":"2.954"},{"v":4.326190476190484,"d":"4.326"},{"$f":"'IV. Country level, 1310-2018'!W343","v":{"v":5.285629279979073,"d":"5.286"}},{"$f":"'IV. Country level, 1310-2018'!E343","v":{"v":-0.959438803788589,"d":"-0.959"}},{"$nulls":5},{"v":7.250000000000001,"d":"7.250"},{"v":9.149859146336082,"d":"9.150"},{"v":-1.8998591463360812,"d":"-1.900"},{"$f":"'VIII. Pers. sov. loans, 1312-'!C342","v":{"v":9.142857142857142,"d":"9.143"}}]
[1650,null,{"v":8.164956534769614,"d":"8.165"},{"v":0.8220070544712197,"d":"0.822"},{"v":7.342949480298395,"d":"7.343"},{"v":4.228571428571437,"d":"4.229"},{"v":3.4234070903298885,"d":"3.423"},{"v":0.8051643382415475,"d":"0.805"},null,null,{"$f":"SUM('IV. Country level, 1310-2018'!AO344:AV344)","v":{"v":7.200466821390687,"d":"7.200"}},{"$f":"SUM('IV. Country level, 1310-2018'!AY344:BF344)","v":{"v":1.40227626004571,"d":"1.4023"}},{"v":5.798190561344977,"d":"5.798"},{"v":4.300000000000008,"d":"4.300"},{"$f":"'IV. Country level, 1310-2018'!W344","v":{"v":5.940644449470999,"d":"5.941"}},{"$f":"'IV. Country level, 1310-2018'!E344","v":{"v":-1.640644449470991,"d":"-1.641"}},{"$nulls":5},{"v":8,"d":"8.000"},{"v":-16.183653394884097,"d":"-16.184"},{"v":24.183653394884097,"d":"24.184"},{"$f":"'VIII. Pers. sov. loans, 1312-'!C343","v":{"v":8.5,"d":"8.500"}}]
[1651,null,{"v":8.880285094781135,"d":"8.880"},{"v":-0.7635717117465282,"d":"-0.764"},{"v":9.643856806527664,"d":"9.644"},{"v":4.130952380952389,"d":"4.131"},{"v":0.9120132865268579,"d":"0.912"},{"v":3.2189390944255316,"d":"3.219"},null,null,{"$f":"SUM('IV. Country level, 1310-2018'!AO345:AV345)","v":{"v":8.510961649602947,"d":"8.511"}},{"$f":"SUM('IV. Country level, 1310-2018'!AY345:BF345)","v":{"v":-5.220641181772432,"d":"-5.2206"}},{"v":13.73160283137538,"d":"13.732"},{"v":4.273809523809532,"d":"4.274"},{"$f":"'IV. Country level, 1310-2018'!W345","v":{"v":2.6682660756346714,"d":"2.668"}},{"$f":"'IV. Country level, 1310-2018'!E345","v":{"v":1.6055434481748603,"d":"1.606"}},{"$nulls":5},{"v":5,"d":"5.000"},{"v":-1.266940832321777,"d":"-1.267"},{"v":6.266940832321777,"d":"6.267"},{"$f":"'VIII. Pers. sov. loans, 1312-'!C344","v":{"v":7.75,"d":"7.750"}}]
[1652,null,{"v":8.959021960919173,"d":"8.959"},{"v":-2.1666793615401283,"d":"-2.167"},{"v":11.125701322459303,"d":"11.126"},{"v":4.033333333333341,"d":"4.033"},{"v":-1.7954726747856722,"d":"-1.795"},{"v":5.828806008119012,"d":"5.829"},null,null,{"$f":"SUM('IV. Country level, 1310-2018'!AO346:AV346)","v":{"v":8.602607475016208,"d":"8.603"}},{"$f":"SUM('IV. Country level, 1310-2018'!AY346:BF346)","v":{"v":0.9106813820329409,"d":"0.9107"}},{"v":7.691926092983268,"d":"7.692"},{"v":4.247619047619056,"d":"4.248"},{"$f":"'IV. Country level, 1310-2018'!W346","v":{"v":2.74189643415222,"d":"2.742"}},{"$f":"'IV. Country level, 1310-2018'!E346","v":{"v":1.5057226134668356,"d":"1.506"}},{"$nulls":5},{"v":7.5,"d":"7.500"},{"v":-5.735416105961868,"d":"-5.735"},{"v":13.235416105961868,"d":"13.235"},{"$f":"'VIII. Pers. sov. loans, 1312-'!C345","v":{"v":7.666666666666667,"d":"7.667"}}]
[1653,null,{"v":9.037628518682348,"d":"9.038"},{"v":-2.8022243502937267,"d":"-2.802"},{"v":11.839852868976072,"d":"11.840"},{"v":3.9357142857142944,"d":"3.936"},{"v":-1.3065211904435283,"d":"-1.307"},{"v":5.242235476157822,"d":"5.242"},null,null,{"$f":"SUM('IV. Country level, 1310-2018'!AO347:AV347)","v":{"v":8.556575184369171,"d":"8.557"}},{"$f":"SUM('IV. Country level, 1310-2018'!AY347:BF347)","v":{"v":-10.082906619020433,"d":"-10.0829"}},{"v":18.639481803389604,"d":"18.639"},{"v":3.7214285714285804,"d":"3.721"},{"$f":"'IV. Country level, 1310-2018'!W347","v":{"v":-10.306135890083281,"d":"-10.306"}},{"$f":"'IV. Country level, 1310-2018'!E347","v":{"v":14.027564461511862,"d":"14.028"}},{"$nulls":5},{"v":6.999999999999999,"d":"7.000"},{"v":-3.2378706363005607,"d":"-3.238"},{"v":10.23787063630056,"d":"10.238"},{"$f":"'VIII. Pers. sov. loans, 1312-'!C346","v":{"v":10.633333333333333,"d":"10.633"}}]
[1654,null,{"v":9.224018036440615,"d":"9.224"},{"v":-3.096249791070275,"d":"-3.096"},{"v":12.32026782751089,"d":"12.320"},{"v":3.838095238095246,"d":"3.838"},{"v":-3.1077805670771412,"d":"-3.108"},{"v":6.945875805172387,"d":"6.946"},null,null,{"$f":"SUM('IV. Country level, 1310-2018'!AO348:AV348)","v":{"v":13.388916099841312,"d":"13.389"}},{"$f":"SUM('IV. Country level, 1310-2018'!AY348:BF348)","v":{"v":-4.413649822335709,"d":"-4.4136"}},{"v":17.80256592217702,"d":"17.803"},{"v":3.6952380952381034,"d":"3.695"},{"$f":"'IV. Country level, 1310-2018'!W348","v":{"v":-13.817843769456683,"d":"-13.818"}},{"$f":"'IV. Country level, 1310-2018'!E348","v":{"v":17.513081864694787,"d":"17.513"}},{"$nulls":5},{"v":6.499999999999999,"d":"6.500"},{"v":-4.290608601970393,"d":"-4.291"},{"v":10.790608601970392,"d":"10.791"},{"$f":"'VIII. Pers. sov. loans, 1312-'!C347","v":{"v":13.666666666666666,"d":"13.667"}}]
[1655,null,{"v":9.175350260383624,"d":"9.175"},{"v":-1.76316535199744,"d":"-1.763"},{"v":10.938515612381064,"d":"10.939"},{"v":3.7404761904761985,"d":"3.740"},{"v":-1.2876749486798438,"d":"-1.288"},{"v":5.028151139156043,"d":"5.028"},null,null,{"$f":"SUM('IV. Country level, 1310-2018'!AO349:AV349)","v":{"v":8.512857715023738,"d":"8.513"}},{"$f":"SUM('IV. Country level, 1310-2018'!AY349:BF349)","v":{"v":-2.7495511872608693,"d":"-2.7496"}},{"v":11.262408902284609,"d":"11.262"},{"v":3.6690476190476264,"d":"3.669"},{"$f":"'IV. Country level, 1310-2018'!W349","v":{"v":-5.080765303196701,"d":"-5.081"}},{"$f":"'IV. Country level, 1310-2018'!E349","v":{"v":8.749812922244327,"d":"8.750"}},{"$nulls":5},{"v":5.999999999999999,"d":"6.000"},{"v":-4.904201278288238,"d":"-4.904"},{"v":10.904201278288237,"d":"10.904"},{"$f":"'VIII. Pers. sov. loans, 1312-'!C348","v":13.575}]
[1656,null,{"v":9.031459706426578,"d":"9.031"},{"v":-1.4050051167914925,"d":"-1.405"},{"v":10.43646482321807,"d":"10.436"},{"v":3.6428571428571517,"d":"3.643"},{"v":0.04127928916242724,"d":"0.041"},{"v":3.601577853694724,"d":"3.602"},null,null,{"$f":"SUM('IV. Country level, 1310-2018'!AO350:AV350)","v":{"v":8.491014685532361,"d":"8.491"}},{"$f":"SUM('IV. Country level, 1310-2018'!AY350:BF350)","v":{"v":0.5382207162547065,"d":"0.5382"}},{"v":7.952793969277655,"d":"7.953"},{"v":3.6428571428571512,"d":"3.643"},{"$f":"'IV. Country level, 1310-2018'!W350","v":{"v":8.708289670374075,"d":"8.708"}},{"$f":"'IV. Country level, 1310-2018'!E350","v":{"v":-5.065432527516924,"d":"-5.065"}},{"$nulls":5},{"v":5.499999999999999,"d":"5.500"},{"v":2.760045613985335,"d":"2.760"},{"v":2.7399543860146642,"d":"2.740"},{"$f":"'VIII. Pers. sov. loans, 1312-'!C349","v":{"v":13.16,"d":"13.160"}}]
[1657,null,{"v":8.938851744124083,"d":"8.939"},{"v":0.35962988307611715,"d":"0.360"},{"v":8.579221861047966,"d":"8.579"},{"v":3.616666666666675,"d":"3.617"},{"v":0.8853820867351262,"d":"0.885"},{"v":2.731284579931549,"d":"2.731"},null,null,{"$f":"SUM('IV. Country level, 1310-2018'!AO351:AV351)","v":{"v":8.505193445698573,"d":"8.505"}},{"$f":"SUM('IV. Country level, 1310-2018'!AY351:BF351)","v":{"v":-0.6559018253901269,"d":"-0.6559"}},{"v":9.1610952710887,"d":"9.161"},{"v":3.616666666666675,"d":"3.617"},{"$f":"'IV. Country level, 1310-2018'!W351","v":{"v":-6.668171186964286,"d":"-6.668"}},{"$f":"'IV. Country level, 1310-2018'!E351","v":{"v":10.284837853630961,"d":"10.285"}},{"$nulls":5},{"v":5,"d":"5.000"},{"v":-3.2903424824285863,"d":"-3.290"},{"v":8.290342482428587,"d":"8.290"},{"$f":"'VIII. Pers. sov. loans, 1312-'!C350","v":{"v":14.440000000000001,"d":"14.440"}}]
[1658,null,{"v":8.048999130239006,"d":"8.049"},{"v":2.5322941944060284,"d":"2.532"},{"v":5.516704935832977,"d":"5.517"},{"v":3.590476190476199,"d":"3.590"},{"v":3.708639431293985,"d":"3.709"},{"v":-0.1181632408177863,"d":"-0.118"},null,null,{"$f":"SUM('IV. Country level, 1310-2018'!AO352:AV352)","v":{"v":8.170287217204004,"d":"8.170"}},{"$f":"SUM('IV. Country level, 1310-2018'!AY352:BF352)","v":{"v":4.110949891737413,"d":"4.1109"}},{"v":4.059337325466591,"d":"4.059"},{"v":3.590476190476199,"d":"3.590"},{"$f":"'IV. Country level, 1310-2018'!W352","v":{"v":15.40900540441575,"d":"15.409"}},{"$f":"'IV. Country level, 1310-2018'!E352","v":{"v":-11.81852921393955,"d":"-11.819"}},{"$nulls":5},{"v":5.952380952380952,"d":"5.952"},{"v":0.04630809531853547,"d":"0.046"},{"v":5.906072857062417,"d":"5.906"},{"$f":"'VIII. Pers. sov. loans, 1312-'!C351","v":{"v":13.766666666666667,"d":"13.767"}}]
[1659,null,{"v":7.862716885860045,"d":"7.863"},{"v":3.447062830619898,"d":"3.447"},{"v":4.415654055240146,"d":"4.416"},{"v":3.5642857142857234,"d":"3.564"},{"v":4.614222103510763,"d":"4.614"},{"v":-1.0499363892250404,"d":"-1.050"},null,null,{"$f":"SUM('IV. Country level, 1310-2018'!AO353:AV353)","v":{"v":7.595373597316888,"d":"7.595"}},{"$f":"SUM('IV. Country level, 1310-2018'!AY353:BF353)","v":{"v":3.417803028474573,"d":"3.4178"}},{"v":4.177570568842315,"d":"4.178"},{"v":3.564285714285724,"d":"3.564"},{"$f":"'IV. Country level, 1310-2018'!W353","v":{"v":12.044576099048115,"d":"12.045"}},{"$f":"'IV. Country level, 1310-2018'!E353","v":{"v":-8.480290384762391,"d":"-8.480"}},{"$nulls":5},{"v":5.476190476190476,"d":"5.476"},{"v":4.526526671008068,"d":"4.527"},{"v":0.949663805182408,"d":"0.950"},{"$f":"'VIII. Pers. sov. loans, 1312-'!C352","v":{"v":14.085714285714287,"d":"14.086"}}]
[1660,null,{"v":7.68651779440592,"d":"7.687"},{"v":2.2790403034884124,"d":"2.279"},{"v":5.407477490917507,"d":"5.407"},{"v":3.5380952380952473,"d":"3.538"},{"v":2.1151043130138576,"d":"2.115"},{"v":1.4229909250813897,"d":"1.423"},null,null,{"$f":"SUM('IV. Country level, 1310-2018'!AO354:AV354)","v":{"v":7.9083194482516985,"d":"7.908"}},{"$f":"SUM('IV. Country level, 1310-2018'!AY354:BF354)","v":{"v":2.269538380052833,"d":"2.2695"}},{"v":5.638781068198865,"d":"5.639"},{"v":3.538095238095247,"d":"3.538"},{"$f":"'IV. Country level, 1310-2018'!W354","v":{"v":-4.3974163070743835,"d":"-4.397"}},{"$f":"'IV. Country level, 1310-2018'!E354","v":{"v":7.93551154516963,"d":"7.936"}},{"$nulls":5},{"v":5,"d":"5.000"},{"v":9.936447317672137,"d":"9.936"},{"v":-4.936447317672137,"d":"-4.936"},{"$f":"'VIII. Pers. sov. loans, 1312-'!C353","v":{"v":13.616666666666667,"d":"13.617"}}]
[1661,null,{"v":7.507308722994476,"d":"7.507"},{"v":2.175736966815987,"d":"2.176"},{"v":5.331571756178489,"d":"5.332"},{"v":3.511904761904771,"d":"3.512"},{"v":1.445473468520639,"d":"1.445"},{"v":2.0664312933841322,"d":"2.066"},null,null,{"$f":"SUM('IV. Country level, 1310-2018'!AO355:AV355)","v":{"v":7.159947802645778,"d":"7.160"}},{"$f":"SUM('IV. Country level, 1310-2018'!AY355:BF355)","v":{"v":10.795000356973668,"d":"10.7950"}},{"v":-3.63505255432789,"d":"-3.635"},{"v":3.5119047619047707,"d":"3.512"},{"$f":"'IV. Country level, 1310-2018'!W355","v":{"v":5.9449576424553285,"d":"5.945"}},{"$f":"'IV. Country level, 1310-2018'!E355","v":{"v":-2.433052880550558,"d":"-2.433"}},{"$nulls":5},{"v":4.863945578231292,"d":"4.864"},{"v":11.583744214191697,"d":"11.584"},{"v":-6.719798635960404,"d":"-6.720"},{"$f":"'VIII. Pers. sov. loans, 1312-'!C354","v":{"v":11.6,"d":"11.600"}}]
[1662,null,{"v":7.359147105737096,"d":"7.359"},{"v":1.2696274028397612,"d":"1.270"},{"v":6.089519702897335,"d":"6.090"},{"v":3.4857142857142946,"d":"3.486"},{"v":1.144831995644339,"d":"1.145"},{"v":2.340882290069956,"d":"2.341"},null,null,{"$f":"SUM('IV. Country level, 1310-2018'!AO356:AV356)","v":{"v":7.208882004371004,"d":"7.209"}},{"$f":"SUM('IV. Country level, 1310-2018'!AY356:BF356)","v":{"v":3.6538292662362197,"d":"3.6538"}},{"v":3.5550527381347843,"d":"3.555"},{"v":3.4857142857142946,"d":"3.486"},{"$f":"'IV. Country level, 1310-2018'!W356","v":{"v":1.2583134023207465,"d":"1.258"}},{"$f":"'IV. Country level, 1310-2018'!E356","v":{"v":2.227400883393548,"d":"2.227"}},{"$nulls":5},{"v":4.727891156462586,"d":"4.728"},{"v":1.4826877223131505,"d":"1.483"},{"v":3.245203434149435,"d":"3.245"},{"$f":"'VIII. Pers. sov. loans, 1312-'!C355","v":{"v":11.26,"d":"11.260"}}]
[1663,null,{"v":7.26848164583935,"d":"7.268"},{"v":0.4507368202214712,"d":"0.451"},{"v":6.817744825617877,"d":"6.818"},{"v":3.4595238095238185,"d":"3.460"},{"v":-1.6307285969436571,"d":"-1.631"},{"v":5.090252406467476,"d":"5.090"},null,null,{"$f":"SUM('IV. Country level, 1310-2018'!AO357:AV357)","v":{"v":7.257621045353488,"d":"7.258"}},{"$f":"SUM('IV. Country level, 1310-2018'!AY357:BF357)","v":{"v":-7.637936973665692,"d":"-7.6379"}},{"v":14.89555801901918,"d":"14.896"},{"v":3.4595238095238194,"d":"3.460"},{"$f":"'IV. Country level, 1310-2018'!W357","v":{"v":-8.785534863104267,"d":"-8.786"}},{"$f":"'IV. Country level, 1310-2018'!E357","v":{"v":12.245058672628087,"d":"12.245"}},{"$nulls":5},{"v":4.591836734693878,"d":"4.592"},{"v":-2.0461092972374115,"d":"-2.046"},{"v":6.637946031931289,"d":"6.638"},{"$f":"'VIII. Pers. sov. loans, 1312-'!C356","v":{"v":11.2,"d":"11.200"}}]
[1664,null,{"v":7.124313483305427,"d":"7.124"},{"v":-0.6190102389415699,"d":"-0.619"},{"v":7.743323722246997,"d":"7.743"},{"v":3.433333333333343,"d":"3.433"},{"v":-2.2134502480090945,"d":"-2.213"},{"v":5.646783581342437,"d":"5.647"},null,null,{"$f":"SUM('IV. Country level, 1310-2018'!AO358:AV358)","v":{"v":7.250729945818474,"d":"7.251"}},{"$f":"SUM('IV. Country level, 1310-2018'!AY358:BF358)","v":{"v":-1.3790251820971065,"d":"-1.3790"}},{"v":8.62975512791558,"d":"8.630"},{"v":3.4333333333333425,"d":"3.433"},{"$f":"'IV. Country level, 1310-2018'!W358","v":{"v":-11.355587098416816,"d":"-11.356"}},{"$f":"'IV. Country level, 1310-2018'!E358","v":{"v":14.788920431750158,"d":"14.789"}},{"$nulls":5},{"v":4.45578231292517,"d":"4.456"},{"v":-3.3120129958254587,"d":"-3.312"},{"v":7.767795308750629,"d":"7.768"},{"$f":"'VIII. Pers. sov. loans, 1312-'!C357","v":{"v":8.85,"d":"8.850"}}]
[1665,null,{"v":7.078285880414548,"d":"7.078"},{"v":-2.2106643041943608,"d":"-2.211"},{"v":9.288950184608908,"d":"9.289"},{"v":3.4071428571428664,"d":"3.407"},{"v":-2.1599437344489214,"d":"-2.160"},{"v":5.567086591591789,"d":"5.567"},null,null,{"$f":"SUM('IV. Country level, 1310-2018'!AO359:AV359)","v":{"v":7.133155896402341,"d":"7.133"}},{"$f":"SUM('IV. Country level, 1310-2018'!AY359:BF359)","v":{"v":-2.231817056096169,"d":"-2.2318"}},{"v":9.36497295249851,"d":"9.365"},{"v":3.4071428571428672,"d":"3.407"},{"$f":"'IV. Country level, 1310-2018'!W359","v":{"v":13.30451509428165,"d":"13.305"}},{"$f":"'IV. Country level, 1310-2018'!E359","v":{"v":-9.897372237138782,"d":"-9.897"}},{"$nulls":5},{"v":5,"d":"5.000"},{"v":-4.609112971259071,"d":"-4.609"},{"v":9.609112971259071,"d":"9.609"},{"$f":"'VIII. Pers. sov. loans, 1312-'!C358","v":{"v":8.333333333333334,"d":"8.333"}}]
[1666,null,{"v":7.0165243311133025,"d":"7.017"},{"v":-3.1746419976111255,"d":"-3.175"},{"v":10.19116632872443,"d":"10.191"},{"v":3.3809523809523903,"d":"3.381"},{"v":-4.451170116735765,"d":"-4.451"},{"v":7.8321224976881565,"d":"7.832"},null,null,{"$f":"SUM('IV. Country level, 1310-2018'!AO360:AV360)","v":{"v":6.960715378032657,"d":"6.961"}},{"$f":"SUM('IV. Country level, 1310-2018'!AY360:BF360)","v":{"v":-2.3144310498534555,"d":"-2.3144"}},{"v":9.275146427886114,"d":"9.275"},{"v":3.3809523809523903,"d":"3.381"},{"$f":"'IV. Country level, 1310-2018'!W360","v":{"v":-7.384348049067857,"d":"-7.384"}},{"$f":"'IV. Country level, 1310-2018'!E360","v":{"v":10.765300430020247,"d":"10.765"}},{"$nulls":5},{"v":4.6482958665699785,"d":"4.648"},{"v":-4.283963337151434,"d":"-4.284"},{"v":8.932259203721411,"d":"8.932"},{"$f":"'VIII. Pers. sov. loans, 1312-'!C359","v":{"v":4.5,"d":"4.500"}}]
[1667,null,{"v":6.93908289810562,"d":"6.939"},{"v":-2.0903373563389853,"d":"-2.090"},{"v":9.029420254444606,"d":"9.029"},{"v":3.3547619047619146,"d":"3.355"},{"v":-2.2834489425369235,"d":"-2.283"},{"v":5.638210847298838,"d":"5.638"},null,null,{"$f":"SUM('IV. Country level, 1310-2018'!AO361:AV361)","v":{"v":6.899142310514243,"d":"6.899"}},{"$f":"SUM('IV. Country level, 1310-2018'!AY361:BF361)","v":{"v":-5.218691034088455,"d":"-5.2187"}},{"v":12.117833344602698,"d":"12.118"},{"v":3.354761904761915,"d":"3.355"},{"$f":"'IV. Country level, 1310-2018'!W361","v":{"v":-8.476467864532445,"d":"-8.476"}},{"$f":"'IV. Country level, 1310-2018'!E361","v":{"v":11.83122976929436,"d":"11.831"}},{"$nulls":5},{"v":4.296591733139957,"d":"4.297"},{"v":-7.051967073618639,"d":"-7.052"},{"v":11.348558806758597,"d":"11.349"},{"$f":"'VIII. Pers. sov. loans, 1312-'!C360","v":{"v":6.333333333333333,"d":"6.333"}}]
[1668,null,{"v":6.721374456113208,"d":"6.721"},{"v":-1.944705834032909,"d":"-1.945"},{"v":8.666080290146116,"d":"8.666"},{"v":3.4000000000000083,"d":"3.400"},{"v":-0.4412186418652277,"d":"-0.441"},{"v":3.841218641865236,"d":"3.841"},null,null,{"$f":"SUM('IV. Country level, 1310-2018'!AO362:AV362)","v":{"v":6.837754582409625,"d":"6.838"}},{"$f":"SUM('IV. Country level, 1310-2018'!AY362:BF362)","v":{"v":-0.34657809979586474,"d":"-0.3466"}},{"v":7.18433268220549,"d":"7.184"},{"v":3.328571428571438,"d":"3.329"},{"$f":"'IV. Country level, 1310-2018'!W362","v":{"v":6.319503237376535,"d":"6.320"}},{"$f":"'IV. Country level, 1310-2018'!E362","v":{"v":-2.9909318088050973,"d":"-2.991"}},{"$nulls":5},{"v":3.944887599709935,"d":"3.945"},{"v":-0.8637308940329222,"d":"-0.864"},{"v":4.808618493742857,"d":"4.809"},{"$f":"'VIII. Pers. sov. loans, 1312-'!C361","v":5.625}]
[1669,null,{"v":6.530707833104452,"d":"6.531"},{"v":-1.5925744249690525,"d":"-1.593"},{"v":8.123282258073504,"d":"8.123"},{"v":3.806122448979598,"d":"3.806"},{"v":-1.089614060199319,"d":"-1.090"},{"v":4.895736509178918,"d":"4.896"},null,null,{"$f":"SUM('IV. Country level, 1310-2018'!AO363:AV363)","v":{"v":6.7765511592622865,"d":"6.777"}},{"$f":"SUM('IV. Country level, 1310-2018'!AY363:BF363)","v":{"v":-3.094014587681137,"d":"-3.0940"}},{"v":9.870565746943424,"d":"9.871"},{"v":3.302380952380961,"d":"3.302"},{"$f":"'IV. Country level, 1310-2018'!W363","v":{"v":-14.780271273687159,"d":"-14.780"}},{"$f":"'IV. Country level, 1310-2018'!E363","v":{"v":18.08265222606812,"d":"18.083"}},{"$nulls":5},{"v":3.593183466279913,"d":"3.593"},{"v":-3.389774737405671,"d":"-3.390"},{"v":6.982958203685584,"d":"6.983"},{"$f":"'VIII. Pers. sov. loans, 1312-'!C362","v":{"v":6,"d":"6.000"}}]
[1670,null,{"v":6.354682446771384,"d":"6.355"},{"v":-1.3391417000152455,"d":"-1.339"},{"v":7.693824146786629,"d":"7.694"},{"v":4.0374149659864,"d":"4.037"},{"v":0.018918414208951247,"d":"0.019"},{"v":4.0184965517774485,"d":"4.018"},null,null,{"$f":"SUM('IV. Country level, 1310-2018'!AO364:AV364)","v":{"v":6.715531014299712,"d":"6.716"}},{"$f":"SUM('IV. Country level, 1310-2018'!AY364:BF364)","v":{"v":-0.04780448476070909,"d":"-0.0478"}},{"v":6.763335499060421,"d":"6.763"},{"v":3.276190476190486,"d":"3.276"},{"$f":"'IV. Country level, 1310-2018'!W364","v":{"v":6.388513356287628,"d":"6.389"}},{"$f":"'IV. Country level, 1310-2018'!E364","v":{"v":-3.1123228800971425,"d":"-3.112"}},{"$nulls":5},{"v":3.241479332849891,"d":"3.241"},{"v":-5.798009523328597,"d":"-5.798"},{"v":9.039488856178489,"d":"9.039"},{"$f":"'VIII. Pers. sov. loans, 1312-'!C363","v":{"v":6,"d":"6.000"}}]
[1671,null,{"v":6.186828243283521,"d":"6.187"},{"v":-0.07402754991987896,"d":"-0.074"},{"v":6.260855793203399,"d":"6.261"},{"v":4.272448979591841,"d":"4.272"},{"v":1.6361516193297878,"d":"1.636"},{"v":2.6362973602620525,"d":"2.636"},null,null,{"$f":"SUM('IV. Country level, 1310-2018'!AO365:AV365)","v":{"v":5.726770851871587,"d":"5.727"}},{"$f":"SUM('IV. Country level, 1310-2018'!AY365:BF365)","v":{"v":-0.35960452595457165,"d":"-0.3596"}},{"v":6.086375377826158,"d":"6.086"},{"v":3.75,"d":"3.750"},{"$f":"'IV. Country level, 1310-2018'!W365","v":{"v":1.5400250062850538,"d":"1.540"}},{"$f":"'IV. Country level, 1310-2018'!E365","v":{"v":2.209974993714946,"d":"2.210"}},{"$nulls":5},{"v":2.8897751994198693,"d":"2.890"},{"v":-0.06447771149544002,"d":"-0.064"},{"v":2.9542529109153093,"d":"2.954"},{"$f":"'VIII. Pers. sov. loans, 1312-'!C364","v":{"v":6.5,"d":"6.500"}}]
[1672,null,{"v":6.027119380655273,"d":"6.027"},{"v":0.798503437897306,"d":"0.799"},{"v":5.228615942757968,"d":"5.229"},{"v":4.511224489795921,"d":"4.511"},{"v":1.1644089253397298,"d":"1.164"},{"v":3.346815564456191,"d":"3.347"},null,null,{"$f":"SUM('IV. Country level, 1310-2018'!AO366:AV366)","v":{"v":5.798489535341055,"d":"5.798"}},{"$f":"SUM('IV. Country level, 1310-2018'!AY366:BF366)","v":{"v":0.2331028073508256,"d":"0.2331"}},{"v":5.565386727990229,"d":"5.565"},{"v":6.25,"d":"6.250"},{"$f":"'IV. Country level, 1310-2018'!W366","v":{"v":8.76574716594301,"d":"8.766"}},{"$f":"'IV. Country level, 1310-2018'!E366","v":{"v":-2.5157471659430097,"d":"-2.516"}},{"$nulls":5},{"v":2.5380710659898478,"d":"2.538"},{"v":1.161876298601195,"d":"1.162"},{"v":1.3761947673886528,"d":"1.376"},{"$f":"'VIII. Pers. sov. loans, 1312-'!C365","v":{"v":6.5,"d":"6.500"}}]
[1673,null,{"v":5.8755301611815165,"d":"5.876"},{"v":0.9881413077546506,"d":"0.988"},{"v":4.887388853426866,"d":"4.887"},{"v":4.753741496598641,"d":"4.754"},{"v":2.9810889286954056,"d":"2.981"},{"v":1.7726525679032359,"d":"1.773"},null,null,{"$f":"SUM('IV. Country level, 1310-2018'!AO367:AV367)","v":{"v":5.728537673701174,"d":"5.729"}},{"$f":"SUM('IV. Country level, 1310-2018'!AY367:BF367)","v":{"v":-0.5404019751768041,"d":"-0.5404"}},{"v":6.2689396488779785,"d":"6.269"},{"v":5,"d":"5.000"},{"$f":"'IV. Country level, 1310-2018'!W367","v":{"v":0.375379271790037,"d":"0.375"}},{"$f":"'IV. Country level, 1310-2018'!E367","v":{"v":4.624620728209963,"d":"4.625"}},{"$nulls":5},{"v":4.781725888324873,"d":"4.782"},{"v":2.6233905615595425,"d":"2.623"},{"v":2.1583353267653305,"d":"2.158"},{"$f":"'VIII. Pers. sov. loans, 1312-'!C366","v":{"v":6.5,"d":"6.500"}}]
[1674,null,{"v":5.722491052683313,"d":"5.722"},{"v":1.0037752538666234,"d":"1.004"},{"v":4.71871579881669,"d":"4.719"},{"v":4.821428571428571,"d":"4.821"},{"v":1.0810790994956614,"d":"1.081"},{"v":3.74034947193291,"d":"3.740"},null,null,{"$f":"SUM('IV. Country level, 1310-2018'!AO368:AV368)","v":{"v":5.724162886099203,"d":"5.724"}},{"$f":"SUM('IV. Country level, 1310-2018'!AY368:BF368)","v":{"v":3.6371080165791083,"d":"3.6371"}},{"v":2.0870548695200943,"d":"2.087"},{"v":5,"d":"5.000"},{"$f":"'IV. Country level, 1310-2018'!W368","v":{"v":2.84416457131341,"d":"2.844"}},{"$f":"'IV. Country level, 1310-2018'!E368","v":{"v":2.15583542868659,"d":"2.156"}},{"$nulls":5},{"v":7.025380710659898,"d":"7.025"},{"v":10.0048295705799,"d":"10.005"},{"v":-2.9794488599200024,"d":"-2.979"},{"$f":"'VIII. Pers. sov. loans, 1312-'!C367","v":{"v":5.333333333333333,"d":"5.333"}}]
[1675,null,{"v":5.711961817168006,"d":"5.712"},{"v":1.3675388819914096,"d":"1.368"},{"v":4.344422935176597,"d":"4.344"},{"v":4.857142857142857,"d":"4.857"},{"v":0.20811849976553848,"d":"0.208"},{"v":4.649024357377319,"d":"4.649"},null,null,{"$f":"SUM('IV. Country level, 1310-2018'!AO369:AV369)","v":{"v":5.719792544011901,"d":"5.720"}},{"$f":"SUM('IV. Country level, 1310-2018'!AY369:BF369)","v":{"v":5.76113881492443,"d":"5.7611"}},{"v":-0.04134627091252874,"d":"-0.041"},{"v":5,"d":"5.000"},{"$f":"'IV. Country level, 1310-2018'!W369","v":{"v":3.0173043794461294,"d":"3.017"}},{"$f":"'IV. Country level, 1310-2018'!E369","v":{"v":1.9826956205538706,"d":"1.983"}},{"$nulls":5},{"v":9.269035532994923,"d":"9.269"},{"v":8.750586331038408,"d":"8.751"},{"v":0.5184492019565159,"d":"0.518"},{"$f":"'VIII. Pers. sov. loans, 1312-'!C368","v":{"v":7.5,"d":"7.500"}}]
[1676,null,{"v":5.693741957803314,"d":"5.694"},{"v":1.4461566473040255,"d":"1.446"},{"v":4.2475853104992884,"d":"4.248"},{"v":4.595238095238095,"d":"4.595"},{"v":-1.5487771348688766,"d":"-1.549"},{"v":6.144015230106972,"d":"6.144"},null,null,{"$f":"SUM('IV. Country level, 1310-2018'!AO370:AV370)","v":{"v":5.715426622945983,"d":"5.715"}},{"$f":"SUM('IV. Country level, 1310-2018'!AY370:BF370)","v":{"v":-1.7665494986797263,"d":"-1.7665"}},{"v":7.481976121625709,"d":"7.482"},{"v":5,"d":"5.000"},{"$f":"'IV. Country level, 1310-2018'!W370","v":{"v":-2.0635112501974344,"d":"-2.064"}},{"$f":"'IV. Country level, 1310-2018'!E370","v":{"v":7.063511250197434,"d":"7.064"}},{"$nulls":5},{"v":11.51269035532995,"d":"11.513"},{"v":-3.6465364676679677,"d":"-3.647"},{"v":15.159226822997917,"d":"15.159"},{"$f":"'VIII. Pers. sov. loans, 1312-'!C369","v":{"v":7.214285714285714,"d":"7.214"}}]
[1677,null,{"v":5.68487783997643,"d":"5.685"},{"v":1.6632768624244363,"d":"1.663"},{"v":4.021600977551993,"d":"4.022"},{"v":4.511904761904762,"d":"4.512"},{"v":-1.0817680193965842,"d":"-1.082"},{"v":5.593672781301346,"d":"5.594"},null,null,{"$f":"SUM('IV. Country level, 1310-2018'!AO371:AV371)","v":{"v":5.644257254812291,"d":"5.644"}},{"$f":"SUM('IV. Country level, 1310-2018'!AY371:BF371)","v":{"v":0.061633138023101885,"d":"0.0616"}},{"v":5.582624116789189,"d":"5.583"},{"v":3.750000000000001,"d":"3.750"},{"$f":"'IV. Country level, 1310-2018'!W371","v":{"v":-6.911555448110575,"d":"-6.912"}},{"$f":"'IV. Country level, 1310-2018'!E371","v":{"v":10.661555448110576,"d":"10.662"}},{"$nulls":5},{"v":13.756345177664976,"d":"13.756"},{"v":-9.131351813656329,"d":"-9.131"},{"v":22.887696991321306,"d":"22.888"},{"$f":"'VIII. Pers. sov. loans, 1312-'!C370","v":{"v":6.928571428571429,"d":"6.929"}}]
[1678,null,{"v":5.68061847908318,"d":"5.681"},{"v":1.0040706133780402,"d":"1.004"},{"v":4.67654786570514,"d":"4.677"},{"v":4.428571428571429,"d":"4.429"},{"v":-1.3665761131858034,"d":"-1.367"},{"v":5.795147541757232,"d":"5.795"},null,null,{"$f":"SUM('IV. Country level, 1310-2018'!AO372:AV372)","v":{"v":5.65306620326444,"d":"5.653"}},{"$f":"SUM('IV. Country level, 1310-2018'!AY372:BF372)","v":{"v":2.186740870918931,"d":"2.1867"}},{"v":3.4663253323455088,"d":"3.466"},{"v":4,"d":"4.000"},{"$f":"'IV. Country level, 1310-2018'!W372","v":{"v":-4.570699191825806,"d":"-4.571"}},{"$f":"'IV. Country level, 1310-2018'!E372","v":{"v":8.570699191825806,"d":"8.571"}},{"$nulls":5},{"v":16,"d":"16.000"},{"v":1.6246958807521656,"d":"1.625"},{"v":14.375304119247835,"d":"14.375"},{"$f":"'VIII. Pers. sov. loans, 1312-'!C371","v":{"v":6.642857142857143,"d":"6.643"}}]
[1679,null,{"v":5.663989295487224,"d":"5.664"},{"v":-0.2916721803246305,"d":"-0.292"},{"v":5.955661475811854,"d":"5.956"},{"v":4.345238095238096,"d":"4.345"},{"v":-1.4076975613416647,"d":"-1.408"},{"v":5.75293565657976,"d":"5.753"},null,null,{"$f":"SUM('IV. Country level, 1310-2018'!AO373:AV373)","v":{"v":5.670950519788206,"d":"5.671"}},{"$f":"SUM('IV. Country level, 1310-2018'!AY373:BF373)","v":{"v":0.7834271645391369,"d":"0.7834"}},{"v":4.887523355249069,"d":"4.888"},{"v":4.416666666666667,"d":"4.417"},{"$f":"'IV. Country level, 1310-2018'!W373","v":{"v":-3.5325222764978967,"d":"-3.533"}},{"$f":"'IV. Country level, 1310-2018'!E373","v":{"v":7.949188943164564,"d":"7.949"}},{"$nulls":5},{"v":13.8,"d":"13.800"},{"v":3.4345844337346283,"d":"3.435"},{"v":10.365415566265373,"d":"10.365"},{"$f":"'VIII. Pers. sov. loans, 1312-'!C372","v":{"v":6.357142857142858,"d":"6.357"}}]
[1680,null,{"v":5.649449215649194,"d":"5.649"},{"v":0.31110192642129253,"d":"0.311"},{"v":5.338347289227903,"d":"5.338"},{"v":4.261904761904763,"d":"4.262"},{"v":-1.0610073384407825,"d":"-1.061"},{"v":5.322912100345545,"d":"5.323"},null,null,{"$f":"SUM('IV. Country level, 1310-2018'!AO374:AV374)","v":{"v":5.666488848912986,"d":"5.666"}},{"$f":"SUM('IV. Country level, 1310-2018'!AY374:BF374)","v":{"v":0.9794395306660724,"d":"0.9794"}},{"v":4.687049318246914,"d":"4.687"},{"v":4.416666666666667,"d":"4.417"},{"$f":"'IV. Country level, 1310-2018'!W374","v":{"v":3.644443080096085,"d":"3.644"}},{"$f":"'IV. Country level, 1310-2018'!E374","v":{"v":0.7722235865705818,"d":"0.772"}},{"$nulls":5},{"v":11.600000000000001,"d":"11.600"},{"v":0.9140001437425703,"d":"0.914"},{"v":10.685999856257432,"d":"10.686"},{"$f":"'VIII. Pers. sov. loans, 1312-'!C373","v":{"v":6.071428571428572,"d":"6.071"}}]
[1681,null,{"v":5.651131226067798,"d":"5.651"},{"v":0.894846881179482,"d":"0.895"},{"v":4.756284344888315,"d":"4.756"},{"v":4.3571428571428585,"d":"4.357"},{"v":0.5159607945350934,"d":"0.516"},{"v":3.841182062607764,"d":"3.841"},null,null,{"$f":"SUM('IV. Country level, 1310-2018'!AO375:AV375)","v":{"v":5.6943473598464545,"d":"5.694"}},{"$f":"SUM('IV. Country level, 1310-2018'!AY375:BF375)","v":{"v":-0.9773357267456637,"d":"-0.9773"}},{"v":6.671683086592118,"d":"6.672"},{"v":4.416666666666667,"d":"4.417"},{"$f":"'IV. Country level, 1310-2018'!W375","v":{"v":0.850507914788874,"d":"0.851"}},{"$f":"'IV. Country level, 1310-2018'!E375","v":{"v":3.566158751877793,"d":"3.566"}},{"$nulls":5},{"v":9.400000000000002,"d":"9.400"},{"v":-3.016377719540056,"d":"-3.016"},{"v":12.416377719540058,"d":"12.416"},{"$f":"'VIII. Pers. sov. loans, 1312-'!C374","v":{"v":5.7857142857142865,"d":"5.786"}}]
[1682,null,{"v":5.656717284985327,"d":"5.657"},{"v":0.44406939194100475,"d":"0.444"},{"v":5.2126478930443225,"d":"5.213"},{"v":4.416666666666667,"d":"4.417"},{"v":1.3313662385047234,"d":"1.331"},{"v":3.085300428161944,"d":"3.085"},null,null,{"$f":"SUM('IV. Country level, 1310-2018'!AO376:AV376)","v":{"v":5.603388258840208,"d":"5.603"}},{"$f":"SUM('IV. Country level, 1310-2018'!AY376:BF376)","v":{"v":-3.3090607409942656,"d":"-3.3091"}},{"v":8.912448999834474,"d":"8.912"},{"v":4.416666666666667,"d":"4.417"},{"$f":"'IV. Country level, 1310-2018'!W376","v":{"v":2.7294542423550996,"d":"2.729"}},{"$f":"'IV. Country level, 1310-2018'!E376","v":{"v":1.6872124243115674,"d":"1.687"}},{"$nulls":5},{"v":7.200000000000004,"d":"7.200"},{"v":-5.711956408077385,"d":"-5.712"},{"v":12.911956408077389,"d":"12.912"},{"$f":"'VIII. Pers. sov. loans, 1312-'!C375","v":{"v":5.5,"d":"5.500"}}]
[1683,null,{"v":5.6648948385682845,"d":"5.665"},{"v":-0.4143118595809443,"d":"-0.414"},{"v":6.079206698149228,"d":"6.079"},{"v":4.416666666666667,"d":"4.417"},{"v":1.0578661453156937,"d":"1.058"},{"v":3.358800521350974,"d":"3.359"},null,null,{"$f":"SUM('IV. Country level, 1310-2018'!AO377:AV377)","v":{"v":5.61364606407978,"d":"5.614"}},{"$f":"SUM('IV. Country level, 1310-2018'!AY377:BF377)","v":{"v":2.4528692485417354,"d":"2.4529"}},{"v":3.1607768155380445,"d":"3.161"},{"v":4.416666666666667,"d":"4.417"},{"$f":"'IV. Country level, 1310-2018'!W377","v":{"v":0.36332031010874183,"d":"0.363"}},{"$f":"'IV. Country level, 1310-2018'!E377","v":{"v":4.053346356557925,"d":"4.053"}},{"$nulls":5},{"v":5,"d":"5.000"},{"v":7.853516049978457,"d":"7.854"},{"v":-2.853516049978457,"d":"-2.854"},{"$f":"'VIII. Pers. sov. loans, 1312-'!C376","v":{"v":5.5,"d":"5.500"}}]
[1684,null,{"v":5.678840184851877,"d":"5.679"},{"v":-1.0183890134623035,"d":"-1.018"},{"v":6.69722919831418,"d":"6.697"},{"v":4.416666666666667,"d":"4.417"},{"v":-0.229024921137179,"d":"-0.229"},{"v":4.645691587803846,"d":"4.646"},null,null,{"$f":"SUM('IV. Country level, 1310-2018'!AO378:AV378)","v":{"v":5.656031327742512,"d":"5.656"}},{"$f":"SUM('IV. Country level, 1310-2018'!AY378:BF378)","v":{"v":4.147847821330428,"d":"4.1478"}},{"v":1.5081835064120837,"d":"1.508"},{"v":4.416666666666667,"d":"4.417"},{"$f":"'IV. Country level, 1310-2018'!W378","v":{"v":4.127221482720556,"d":"4.127"}},{"$f":"'IV. Country level, 1310-2018'!E378","v":{"v":0.2894451839461114,"d":"0.289"}},{"$nulls":5},{"v":5,"d":"5.000"},{"v":13.483068986701422,"d":"13.483"},{"v":-8.483068986701422,"d":"-8.483"},{"$f":"'VIII. Pers. sov. loans, 1312-'!C377","v":{"v":5.5,"d":"5.500"}}]
[1685,null,{"v":5.697788031677542,"d":"5.698"},{"v":-1.0119289185941285,"d":"-1.012"},{"v":6.709716950271671,"d":"6.710"},{"v":4.416666666666667,"d":"4.417"},{"v":-0.011802136703955832,"d":"-0.012"},{"v":4.428468803370622,"d":"4.428"},null,null,{"$f":"SUM('IV. Country level, 1310-2018'!AO379:AV379)","v":{"v":5.6921686156871445,"d":"5.692"}},{"$f":"SUM('IV. Country level, 1310-2018'!AY379:BF379)","v":{"v":-0.9687015537504108,"d":"-0.9687"}},{"v":6.660870169437556,"d":"6.661"},{"v":4.416666666666667,"d":"4.417"},{"$f":"'IV. Country level, 1310-2018'!W379","v":{"v":1.1371389159616032,"d":"1.137"}},{"$f":"'IV. Country level, 1310-2018'!E379","v":{"v":3.2795277507050637,"d":"3.280"}},{"$nulls":5},{"v":5,"d":"5.000"},{"v":-15.594505366406702,"d":"-15.595"},{"v":20.5945053664067,"d":"20.595"},{"$f":"'VIII. Pers. sov. loans, 1312-'!C378","v":{"v":6.5,"d":"6.500"}}]
[1686,null,{"v":5.7741096633251106,"d":"5.774"},{"v":-0.43878941016956985,"d":"-0.439"},{"v":6.21289907349468,"d":"6.213"},{"v":4.416666666666667,"d":"4.417"},{"v":-0.07281259199240887,"d":"-0.073"},{"v":4.489479258659076,"d":"4.489"},null,null,{"$f":"SUM('IV. Country level, 1310-2018'!AO380:AV380)","v":{"v":5.728193394868904,"d":"5.728"}},{"$f":"SUM('IV. Country level, 1310-2018'!AY380:BF380)","v":{"v":-5.225241596114506,"d":"-5.2252"}},{"v":10.95343499098341,"d":"10.953"},{"v":4.416666666666668,"d":"4.417"},{"$f":"'IV. Country level, 1310-2018'!W380","v":{"v":-5.447022928821106,"d":"-5.447"}},{"$f":"'IV. Country level, 1310-2018'!E380","v":{"v":9.863689595487774,"d":"9.864"}},{"$nulls":5},{"v":5,"d":"5.000"},{"v":0.895521942483721,"d":"0.896"},{"v":4.104478057516279,"d":"4.104"},{"$f":"'VIII. Pers. sov. loans, 1312-'!C379","v":{"v":6.5,"d":"6.500"}}]
[1687,null,{"v":5.8082236848263955,"d":"5.808"},{"v":-0.6431862218800504,"d":"-0.643"},{"v":6.451409906706447,"d":"6.451"},{"v":4.416666666666667,"d":"4.417"},{"v":0.020395417206403747,"d":"0.020"},{"v":4.396271249460263,"d":"4.396"},null,null,{"$f":"SUM('IV. Country level, 1310-2018'!AO381:AV381)","v":{"v":5.7641062728981325,"d":"5.764"}},{"$f":"SUM('IV. Country level, 1310-2018'!AY381:BF381)","v":{"v":-3.2491005465034424,"d":"-3.2491"}},{"v":9.013206819401574,"d":"9.013"},{"v":4.416666666666666,"d":"4.417"},{"$f":"'IV. Country level, 1310-2018'!W381","v":{"v":-5.363794385074021,"d":"-5.364"}},{"$f":"'IV. Country level, 1310-2018'!E381","v":{"v":9.780461051740687,"d":"9.780"}},{"$nulls":5},{"v":5.277777777777778,"d":"5.278"},{"v":-5.843763948276736,"d":"-5.844"},{"v":11.121541726054513,"d":"11.122"},{"$f":"'VIII. Pers. sov. loans, 1312-'!C380","v":{"v":6.5,"d":"6.500"}}]
[1688,null,{"v":5.8917519528647935,"d":"5.892"},{"v":-1.0301202859717375,"d":"-1.030"},{"v":6.92187223883653,"d":"6.922"},{"v":4.416666666666667,"d":"4.417"},{"v":-0.27297577096922077,"d":"-0.273"},{"v":4.6896424376358885,"d":"4.690"},null,null,{"$f":"SUM('IV. Country level, 1310-2018'!AO382:AV382)","v":{"v":5.826982287626121,"d":"5.827"}},{"$f":"SUM('IV. Country level, 1310-2018'!AY382:BF382)","v":{"v":-0.9321150626684385,"d":"-0.9321"}},{"v":6.75909735029456,"d":"6.759"},{"v":4.416666666666667,"d":"4.417"},{"$f":"'IV. Country level, 1310-2018'!W382","v":{"v":2.3710674058214365,"d":"2.371"}},{"$f":"'IV. Country level, 1310-2018'!E382","v":{"v":2.0455992608452305,"d":"2.046"}},{"$nulls":5},{"v":5.555555555555555,"d":"5.556"},{"v":7.594100069647275,"d":"7.594"},{"v":-2.0385445140917193,"d":"-2.039"},{"$f":"'VIII. Pers. sov. loans, 1312-'!C381","v":{"v":7,"d":"7.000"}}]
[1689,null,{"v":5.887527663332992,"d":"5.888"},{"v":-0.14044100331384485,"d":"-0.140"},{"v":6.027968666646838,"d":"6.028"},{"v":4.416666666666667,"d":"4.417"},{"v":0.2255921508093044,"d":"0.226"},{"v":4.191074515857363,"d":"4.191"},null,null,{"$f":"SUM('IV. Country level, 1310-2018'!AO383:AV383)","v":{"v":6.137639680373173,"d":"6.138"}},{"$f":"SUM('IV. Country level, 1310-2018'!AY383:BF383)","v":{"v":0.7029158179776451,"d":"0.7029"}},{"v":5.434723862395527,"d":"5.435"},{"v":4.416666666666667,"d":"4.417"},{"$f":"'IV. Country level, 1310-2018'!W383","v":{"v":2.302381055335927,"d":"2.302"}},{"$f":"'IV. Country level, 1310-2018'!E383","v":{"v":2.11428561133074,"d":"2.114"}},{"$nulls":5},{"v":5.833333333333333,"d":"5.833"},{"v":0.7036801677100822,"d":"0.704"},{"v":5.1296531656232505,"d":"5.130"},{"$f":"'VIII. Pers. sov. loans, 1312-'!C382","v":{"v":6.166666666666667,"d":"6.167"}}]
[1690,null,{"v":5.920353025846036,"d":"5.920"},{"v":2.087820696852598,"d":"2.088"},{"v":3.8325323289934397,"d":"3.833"},{"v":4.416666666666667,"d":"4.417"},{"v":2.088757926048125,"d":"2.089"},{"v":2.327908740618542,"d":"2.328"},null,null,{"$f":"SUM('IV. Country level, 1310-2018'!AO384:AV384)","v":{"v":5.852444214588787,"d":"5.852"}},{"$f":"SUM('IV. Country level, 1310-2018'!AY384:BF384)","v":{"v":1.022091566568371,"d":"1.0221"}},{"v":4.8303526480204155,"d":"4.830"},{"v":4.416666666666667,"d":"4.417"},{"$f":"'IV. Country level, 1310-2018'!W384","v":{"v":1.0157763745004305,"d":"1.016"}},{"$f":"'IV. Country level, 1310-2018'!E384","v":{"v":3.4008902921662365,"d":"3.401"}},{"$nulls":5},{"v":6.11111111111111,"d":"6.111"},{"v":-3.3595433187083836,"d":"-3.360"},{"v":9.470654429819493,"d":"9.471"},{"$f":"'VIII. Pers. sov. loans, 1312-'!C383","v":{"v":6.166666666666667,"d":"6.167"}}]
[1691,null,{"v":5.945324407745944,"d":"5.945"},{"v":3.282926819075023,"d":"3.283"},{"v":2.6623975886709212,"d":"2.662"},{"v":4.416666666666667,"d":"4.417"},{"v":2.342638759328882,"d":"2.343"},{"v":2.074027907337785,"d":"2.074"},null,null,{"$f":"SUM('IV. Country level, 1310-2018'!AO385:AV385)","v":{"v":6.240729204011287,"d":"6.241"}},{"$f":"SUM('IV. Country level, 1310-2018'!AY385:BF385)","v":{"v":1.439309372688619,"d":"1.4393"}},{"v":4.801419831322668,"d":"4.801"},{"v":4.416666666666667,"d":"4.417"},{"$f":"'IV. Country level, 1310-2018'!W385","v":{"v":2.073623165491184,"d":"2.074"}},{"$f":"'IV. Country level, 1310-2018'!E385","v":{"v":2.343043501175483,"d":"2.343"}},{"$nulls":5},{"v":6.388888888888888,"d":"6.389"},{"v":6.9361722292542085,"d":"6.936"},{"v":-0.5472833403653201,"d":"-0.547"},{"$f":"'VIII. Pers. sov. loans, 1312-'!C384","v":{"v":6.166666666666667,"d":"6.167"}}]
[1692,null,{"v":5.956626304468664,"d":"5.957"},{"v":2.0947483112386593,"d":"2.095"},{"v":3.861877993230004,"d":"3.862"},{"v":4.416666666666667,"d":"4.417"},{"v":2.8247314071707765,"d":"2.825"},{"v":1.5919352594958902,"d":"1.592"},null,null,{"$f":"SUM('IV. Country level, 1310-2018'!AO386:AV386)","v":{"v":5.662598588964544,"d":"5.663"}},{"$f":"SUM('IV. Country level, 1310-2018'!AY386:BF386)","v":{"v":5.259053424854837,"d":"5.2591"}},{"v":0.40354516410970653,"d":"0.404"},{"v":4.416666666666667,"d":"4.417"},{"$f":"'IV. Country level, 1310-2018'!W386","v":{"v":4.62711436841128,"d":"4.627"}},{"$f":"'IV. Country level, 1310-2018'!E386","v":{"v":-0.21044770174461291,"d":"-0.210"}},{"$nulls":5},{"v":6.666666666666667,"d":"6.667"},{"v":17.565256529367147,"d":"17.565"},{"v":-10.89858986270048,"d":"-10.899"},{"$f":"'VIII. Pers. sov. loans, 1312-'!C385","v":{"v":5.5,"d":"5.500"}}]
[1693,null,{"v":5.940850495673797,"d":"5.941"},{"v":1.8355567866360427,"d":"1.836"},{"v":4.105293709037754,"d":"4.105"},{"v":4.416666666666667,"d":"4.417"},{"v":2.1272517173306027,"d":"2.127"},{"v":2.2894149493360643,"d":"2.289"},null,null,{"$f":"SUM('IV. Country level, 1310-2018'!AO387:AV387)","v":{"v":5.957970932460216,"d":"5.958"}},{"$f":"SUM('IV. Country level, 1310-2018'!AY387:BF387)","v":{"v":10.372590305050595,"d":"10.3726"}},{"v":-4.414619372590379,"d":"-4.415"},{"v":4.416666666666667,"d":"4.417"},{"$f":"'IV. Country level, 1310-2018'!W387","v":{"v":7.595137497850637,"d":"7.595"}},{"$f":"'IV. Country level, 1310-2018'!E387","v":{"v":-3.1784708311839704,"d":"-3.178"}},{"$nulls":5},{"v":5,"d":"5.000"},{"v":6.917077622024334,"d":"6.917"},{"v":-1.9170776220243342,"d":"-1.917"},{"$f":"'VIII. Pers. sov. loans, 1312-'!C386","v":{"v":5.5,"d":"5.500"}}]
[1694,null,{"v":5.908953814602373,"d":"5.909"},{"v":2.1014219072580764,"d":"2.101"},{"v":3.807531907344297,"d":"3.808"},{"v":4.416666666666667,"d":"4.417"},{"v":3.0757377632143883,"d":"3.076"},{"v":1.3409289034522789,"d":"1.341"},null,null,{"$f":"SUM('IV. Country level, 1310-2018'!AO388:AV388)","v":{"v":5.938905946197482,"d":"5.939"}},{"$f":"SUM('IV. Country level, 1310-2018'!AY388:BF388)","v":{"v":5.116642309053536,"d":"5.1166"}},{"v":0.822263637143946,"d":"0.822"},{"v":4.416666666666667,"d":"4.417"},{"$f":"'IV. Country level, 1310-2018'!W388","v":{"v":-3.58662855210872,"d":"-3.587"}},{"$f":"'IV. Country level, 1310-2018'!E388","v":{"v":8.003295218775387,"d":"8.003"}},{"$nulls":5},{"v":5.416666666666667,"d":"5.417"},{"v":-8.005139528210787,"d":"-8.005"},{"v":13.421806194877455,"d":"13.422"},{"$f":"'VIII. Pers. sov. loans, 1312-'!C387","v":{"v":5.5,"d":"5.500"}}]
[1695,null,{"v":5.820986349929606,"d":"5.821"},{"v":2.8597439381163556,"d":"2.860"},{"v":2.961242411813251,"d":"2.961"},{"v":4.416666666666667,"d":"4.417"},{"v":3.9310425787339915,"d":"3.931"},{"v":0.48562408793267586,"d":"0.486"},null,null,{"$f":"SUM('IV. Country level, 1310-2018'!AO389:AV389)","v":{"v":5.906095564685153,"d":"5.906"}},{"$f":"SUM('IV. Country level, 1310-2018'!AY389:BF389)","v":{"v":-9.249364617522987,"d":"-9.2494"}},{"v":15.155460182208142,"d":"15.155"},{"v":4.416666666666667,"d":"4.417"},{"$f":"'IV. Country level, 1310-2018'!W389","v":{"v":5.745715940714699,"d":"5.746"}},{"$f":"'IV. Country level, 1310-2018'!E389","v":{"v":-1.3290492740480317,"d":"-1.329"}},{"$nulls":5},5.125,{"v":-8.870009080849627,"d":"-8.870"},{"v":13.995009080849627,"d":"13.995"},{"$f":"'VIII. Pers. sov. loans, 1312-'!C388","v":{"v":4.5,"d":"4.500"}}]
[1696,null,{"v":5.801736555579123,"d":"5.802"},{"v":2.761049986348467,"d":"2.761"},{"v":3.0406865692306555,"d":"3.041"},{"v":4.416666666666667,"d":"4.417"},{"v":3.8711357152120565,"d":"3.871"},{"v":0.5455309514546104,"d":"0.546"},null,null,{"$f":"SUM('IV. Country level, 1310-2018'!AO390:AV390)","v":{"v":6.027209018809108,"d":"6.027"}},{"$f":"SUM('IV. Country level, 1310-2018'!AY390:BF390)","v":{"v":-1.1114248542406733,"d":"-1.1114"}},{"v":7.138633873049781,"d":"7.139"},{"v":4.416666666666668,"d":"4.417"},{"$f":"'IV. Country level, 1310-2018'!W390","v":{"v":-2.5799767735452925,"d":"-2.580"}},{"$f":"'IV. Country level, 1310-2018'!E390","v":{"v":6.99664344021196,"d":"6.997"}},{"$nulls":5},{"v":4.9830135891286975,"d":"4.983"},{"v":-7.26740493178841,"d":"-7.267"},{"v":12.250418520917108,"d":"12.250"},{"$f":"'VIII. Pers. sov. loans, 1312-'!C389","v":{"v":5.25,"d":"5.250"}}]
[1697,null,{"v":5.736525950521804,"d":"5.737"},{"v":0.09828003028099148,"d":"0.098"},{"v":5.638245920240813,"d":"5.638"},{"v":4.966285714285715,"d":"4.966"},{"v":0.053229912272227765,"d":"0.053"},{"v":4.913055802013487,"d":"4.913"},null,null,{"$f":"SUM('IV. Country level, 1310-2018'!AO391:AV391)","v":{"v":5.629167447088818,"d":"5.629"}},{"$f":"SUM('IV. Country level, 1310-2018'!AY391:BF391)","v":{"v":2.883147410922605,"d":"2.8831"}},{"v":2.7460200361662133,"d":"2.746"},{"v":4.416666666666667,"d":"4.417"},{"$f":"'IV. Country level, 1310-2018'!W391","v":{"v":7.655178695686928,"d":"7.655"}},{"$f":"'IV. Country level, 1310-2018'!E391","v":{"v":-3.238512029020261,"d":"-3.239"}},{"$nulls":5},{"v":5.822009059419131,"d":"5.822"},{"v":0.7127743586472958,"d":"0.713"},{"v":5.109234700771836,"d":"5.109"},{"$f":"'VIII. Pers. sov. loans, 1312-'!C390","v":{"v":5.25,"d":"5.250"}}]
[1698,null,{"v":5.661933010549802,"d":"5.662"},{"v":-1.8170500335955453,"d":"-1.817"},{"v":7.478983044145346,"d":"7.479"},{"v":4.7639047619047625,"d":"4.764"},{"v":-0.054403113400165334,"d":"-0.054"},{"v":4.818307875304927,"d":"4.818"},null,null,{"$f":"SUM('IV. Country level, 1310-2018'!AO392:AV392)","v":{"v":5.624956951301918,"d":"5.625"}},{"$f":"SUM('IV. Country level, 1310-2018'!AY392:BF392)","v":{"v":6.747563588696572,"d":"6.7476"}},{"v":-1.1226066373946537,"d":"-1.123"},{"v":4.416666666666667,"d":"4.417"},{"$f":"'IV. Country level, 1310-2018'!W392","v":{"v":8.060756874128407,"d":"8.061"}},{"$f":"'IV. Country level, 1310-2018'!E392","v":{"v":-3.6440902074617396,"d":"-3.644"}},{"$nulls":5},{"v":6.661004529709566,"d":"6.661"},{"v":10.422527239672982,"d":"10.423"},{"v":-3.7615227099634163,"d":"-3.762"},{"$f":"'VIII. Pers. sov. loans, 1312-'!C391","v":{"v":5.333333333333333,"d":"5.333"}}]
[1699,null,{"v":5.69669966199456,"d":"5.697"},{"v":-1.2813265049740505,"d":"-1.281"},{"v":6.97802616696861,"d":"6.978"},{"v":4.56152380952381,"d":"4.562"},{"v":-1.9653435568668591,"d":"-1.965"},{"v":6.526867366390669,"d":"6.527"},null,null,{"$f":"SUM('IV. Country level, 1310-2018'!AO393:AV393)","v":{"v":5.527850028511161,"d":"5.528"}},{"$f":"SUM('IV. Country level, 1310-2018'!AY393:BF393)","v":{"v":4.568195762479622,"d":"4.5682"}},{"$f":"K397-L397","v":{"v":0.9596542660315395,"d":"0.960"}},{"v":4.416666666666667,"d":"4.417"},{"$f":"'IV. Country level, 1310-2018'!W393","v":{"v":4.207766323757738,"d":"4.208"}},{"$f":"'IV. Country level, 1310-2018'!E393","v":{"v":0.20890034290892867,"d":"0.209"}},{"$nulls":5},{"v":7.5,"d":"7.500"},{"v":13.03398940865953,"d":"13.034"},{"v":-5.533989408659529,"d":"-5.534"},{"$f":"'VIII. Pers. sov. loans, 1312-'!C392","v":{"v":5.333333333333333,"d":"5.333"}}]
[1700,null,{"v":5.6910687982431245,"d":"5.691"},{"v":-1.0135371618564477,"d":"-1.014"},{"v":6.704605960099571,"d":"6.705"},{"v":4.787714285714285,"d":"4.788"},{"v":-2.3182761678611103,"d":"-2.318"},{"v":7.105990453575396,"d":"7.106"},null,null,{"$f":"SUM('IV. Country level, 1310-2018'!AO394:AV394)","v":{"v":5.501496697058988,"d":"5.501"}},{"$f":"SUM('IV. Country level, 1310-2018'!AY394:BF394)","v":{"v":-8.266799387421734,"d":"-8.2668"}},{"v":13.768296084480722,"d":"13.768"},8.264,{"$f":"'IV. Country level, 1310-2018'!W394","v":{"v":-19.130203122728165,"d":"-19.130"}},{"$f":"'IV. Country level, 1310-2018'!E394","v":{"v":27.394203122728165,"d":"27.394"}},{"$nulls":5},{"v":0.5714285714285714,"d":"0.571"},{"v":-8.297233610127387,"d":"-8.297"},{"v":8.868662181555958,"d":"8.869"},{"$f":"'VIII. Pers. sov. loans, 1312-'!C393","v":{"v":5.333333333333333,"d":"5.333"}}]
[1701,null,{"v":5.810558136460967,"d":"5.811"},{"v":-1.6427222035072557,"d":"-1.643"},{"v":7.453280339968223,"d":"7.453"},{"v":5.013904761904762,"d":"5.014"},{"v":-2.8039703888255048,"d":"-2.804"},{"v":7.817875150730267,"d":"7.818"},null,null,{"$f":"SUM('IV. Country level, 1310-2018'!AO395:AV395)","v":{"v":5.416755366393464,"d":"5.417"}},{"$f":"SUM('IV. Country level, 1310-2018'!AY395:BF395)","v":{"v":-8.290668138082221,"d":"-8.2907"}},{"v":13.707423504475685,"d":"13.707"},{"v":3,"d":"3.000"},{"$f":"'IV. Country level, 1310-2018'!W395","v":{"v":-4.340059731815472,"d":"-4.340"}},{"$f":"'IV. Country level, 1310-2018'!E395","v":{"v":7.340059731815472,"d":"7.340"}},{"$nulls":5},{"v":8,"d":"8.000"},{"v":0.19046917880673658,"d":"0.190"},{"v":7.809530821193263,"d":"7.810"},{"$f":"'VIII. Pers. sov. loans, 1312-'!C394","v":{"v":5.5,"d":"5.500"}}]
[1702,null,{"$f":"AVERAGE(K397:K403)","v":{"v":5.883397162437974,"d":"5.883"}},{"$f":"AVERAGE(L397:L403)","v":{"v":-3.3967758996918547,"d":"-3.397"}},{"$f":"AVERAGE(M397:M403)","v":{"v":9.28017306212983,"d":"9.280"}},{"$f":"AVERAGE(N397:N403)","v":{"v":5.240095238095238,"d":"5.240"}},{"$f":"AVERAGE(O397:O403)","v":{"v":-5.267460437899245,"d":"-5.267"}},{"$f":"AVERAGE(P397:P403)","v":{"v":10.507555675994482,"d":"10.508"}},null,null,{"$f":"SUM('IV. Country level, 1310-2018'!AO396:AV396)","v":{"v":6.149462124798463,"d":"6.149"}},{"$f":"SUM('IV. Country level, 1310-2018'!AY396:BF396)","v":{"v":-5.4992999171725225,"d":"-5.4993"}},{"v":11.648762041970986,"d":"11.649"},{"v":3.000000000000001,"d":"3.000"},{"$f":"'IV. Country level, 1310-2018'!W396","v":{"v":-7.630867163552156,"d":"-7.631"}},{"$f":"'IV. Country level, 1310-2018'!E396","v":{"v":10.630867163552157,"d":"10.631"}},{"$nulls":5},{"v":7.428571428571429,"d":"7.429"},{"v":-10.223922648065527,"d":"-10.224"},{"v":17.652494076636955,"d":"17.652"},{"$f":"'VIII. Pers. sov. loans, 1312-'!C395","v":{"v":5.333333333333333,"d":"5.333"}}]
[1703,null,{"v":5.994324318003851,"d":"5.994"},{"v":-3.55266325340331,"d":"-3.553"},{"v":9.54698757140716,"d":"9.547"},{"v":5.466285714285713,"d":"5.466"},{"v":-3.9424061888052475,"d":"-3.942"},{"v":9.408691903090963,"d":"9.409"},null,null,{"$f":"SUM('IV. Country level, 1310-2018'!AO397:AV397)","v":{"v":5.987792972549061,"d":"5.988"}},{"$f":"SUM('IV. Country level, 1310-2018'!AY397:BF397)","v":{"v":0.7631005475825454,"d":"0.7631"}},{"v":5.224692424966515,"d":"5.225"},{"v":6,"d":"6.000"},{"$f":"'IV. Country level, 1310-2018'!V397","v":{"v":-5.050505050505052,"d":"-5.051"}},{"$f":"'IV. Country level, 1310-2018'!D397","v":{"v":11.050505050505052,"d":"11.051"}},{"$nulls":5},{"v":6.857142857142858,"d":"6.857"},{"v":2.9110226386100884,"d":"2.911"},{"v":3.9461202185327693,"d":"3.946"},{"$f":"'VIII. Pers. sov. loans, 1312-'!C396","v":7.625}]
[1704,null,{"v":6.015454081827455,"d":"6.015"},{"v":-2.573697703820059,"d":"-2.574"},{"v":8.589151785647514,"d":"8.589"},{"v":5.142857142857143,"d":"5.143"},{"v":-3.0482753325173477,"d":"-3.048"},{"v":8.19113247537449,"d":"8.191"},null,null,{"$f":"SUM('IV. Country level, 1310-2018'!AO398:AV398)","v":{"v":6.465592814613711,"d":"6.466"}},{"$f":"SUM('IV. Country level, 1310-2018'!AY398:BF398)","v":{"v":-1.5211478806330523,"d":"-1.5211"}},{"v":7.9867406952467626,"d":"7.987"},{"v":6,"d":"6.000"},{"$f":"'IV. Country level, 1310-2018'!V398","v":{"v":4.255319148936167,"d":"4.255"}},{"$f":"'IV. Country level, 1310-2018'!D398","v":{"v":1.7446808510638334,"d":"1.745"}},{"$nulls":5},{"v":5.416666666666667,"d":"5.417"},{"v":0.6441464630055133,"d":"0.644"},{"v":4.772520203661154,"d":"4.773"},{"$f":"'VIII. Pers. sov. loans, 1312-'!C397","v":{"v":7.604166666666667,"d":"7.604"}}]
[1705,null,{"v":6.065075080136788,"d":"6.065"},{"v":-0.37897272723004605,"d":"-0.379"},{"v":6.444047807366835,"d":"6.444"},{"v":5.571428571428571,"d":"5.571"},{"v":-1.778916150050204,"d":"-1.779"},{"v":7.350344721478775,"d":"7.350"},null,null,{"$f":"SUM('IV. Country level, 1310-2018'!AO399:AV399)","v":{"v":6.134830133140972,"d":"6.135"}},{"$f":"SUM('IV. Country level, 1310-2018'!AY399:BF399)","v":{"v":-5.530812284595622,"d":"-5.5308"}},{"v":11.665642417736594,"d":"11.666"},{"v":6,"d":"6.000"},{"$f":"'IV. Country level, 1310-2018'!V399","v":{"v":-9.18367346938777,"d":"-9.184"}},{"$f":"'IV. Country level, 1310-2018'!D399","v":{"v":15.18367346938777,"d":"15.184"}},{"$nulls":5},{"v":4,"d":"4.000"},{"v":-6.551053003024077,"d":"-6.551"},{"v":10.551053003024077,"d":"10.551"},{"$f":"'VIII. Pers. sov. loans, 1312-'!C398","v":8.025}]
[1706,null,{"v":6.029163832479769,"d":"6.029"},{"v":4.98830925665404,"d":"4.988"},{"v":1.0408545758257308,"d":"1.041"},{"v":6,"d":"6.000"},{"v":1.6404002770410955,"d":"1.640"},{"v":4.3595997229589045,"d":"4.360"},null,null,{"$f":"SUM('IV. Country level, 1310-2018'!AO400:AV400)","v":{"v":6.3043401174723,"d":"6.304"}},{"$f":"SUM('IV. Country level, 1310-2018'!AY400:BF400)","v":{"v":3.4769842864994374,"d":"3.4770"}},{"v":2.827355830972863,"d":"2.827"},{"v":6,"d":"6.000"},{"$f":"'IV. Country level, 1310-2018'!V400","v":{"v":13.483146067415717,"d":"13.483"}},{"$f":"'IV. Country level, 1310-2018'!D400","v":{"v":-7.483146067415717,"d":"-7.483"}},{"$nulls":5},{"v":3.428571428571429,"d":"3.429"},{"v":-3.6146235326924883,"d":"-3.615"},{"v":7.043194961263917,"d":"7.043"},{"$f":"'VIII. Pers. sov. loans, 1312-'!C399","v":{"v":8.354166666666666,"d":"8.354"}}]
[1707,null,{"v":5.962034514165319,"d":"5.962"},{"v":4.582722432055541,"d":"4.583"},{"v":1.3793120821097793,"d":"1.379"},{"v":6.328571428571428,"d":"6.329"},{"v":4.364571225511112,"d":"4.365"},{"v":1.9640002030603172,"d":"1.964"},null,null,{"$f":"SUM('IV. Country level, 1310-2018'!AO401:AV401)","v":{"v":5.6494050438242205,"d":"5.649"}},{"$f":"SUM('IV. Country level, 1310-2018'!AY401:BF401)","v":{"v":-1.4140405403389762,"d":"-1.4140"}},{"v":7.063445584163197,"d":"7.063"},{"v":6,"d":"6.000"},{"$f":"'IV. Country level, 1310-2018'!V401","v":{"v":-12.871287128712865,"d":"-12.871"}},{"$f":"'IV. Country level, 1310-2018'!D401","v":{"v":18.871287128712865,"d":"18.871"}},{"$nulls":5},{"v":2.857142857142857,"d":"2.857"},{"v":5.296987898005975,"d":"5.297"},{"v":-2.439845040863118,"d":"-2.440"},{"$f":"'VIII. Pers. sov. loans, 1312-'!C400","v":{"v":8.354166666666666,"d":"8.354"}}]
[1708,null,{"v":5.833377835782345,"d":"5.833"},{"v":3.280465019688528,"d":"3.280"},{"v":2.552912816093818,"d":"2.553"},{"v":6.714285714285714,"d":"6.714"},{"v":5.278916733508522,"d":"5.279"},{"v":1.4353689807771928,"d":"1.435"},null,null,{"$f":"SUM('IV. Country level, 1310-2018'!AO402:AV402)","v":{"v":5.764102354558794,"d":"5.764"}},{"$f":"SUM('IV. Country level, 1310-2018'!AY402:BF402)","v":{"v":7.0724066980478675,"d":"7.0724"}},{"v":-1.3083043434890733,"d":"-1.308"},{"v":6,"d":"6.000"},{"$f":"'IV. Country level, 1310-2018'!V402","v":{"v":4.5454545454545325,"d":"4.545"}},{"$f":"'IV. Country level, 1310-2018'!D402","v":{"v":1.4545454545454675,"d":"1.455"}},{"$nulls":5},{"v":4,"d":"4.000"},{"v":2.3159984008883483,"d":"2.316"},{"v":1.6840015991116517,"d":"1.684"},{"$f":"'VIII. Pers. sov. loans, 1312-'!C401","v":8.825}]
[1709,null,{"v":5.806953791389723,"d":"5.807"},{"v":3.555482008996208,"d":"3.555"},{"v":2.2514717823935144,"d":"2.251"},{"v":7.1000000000000005,"d":"7.100"},{"v":2.9929864883946067,"d":"2.993"},{"v":4.107013511605394,"d":"4.107"},null,null,{"$f":"SUM('IV. Country level, 1310-2018'!AO403:AV403)","v":{"v":5.898083391199331,"d":"5.898"}},{"$f":"SUM('IV. Country level, 1310-2018'!AY403:BF403)","v":{"v":32.07167397001608,"d":"32.0717"}},{"v":-26.173590578816746,"d":"-26.174"},{"v":6,"d":"6.000"},{"$f":"'IV. Country level, 1310-2018'!V403","v":{"v":16.30434782608694,"d":"16.304"}},{"$f":"'IV. Country level, 1310-2018'!D403","v":{"v":-10.30434782608694,"d":"-10.304"}},{"$nulls":5},{"v":4.25,"d":"4.250"},{"v":5.081793929375671,"d":"5.082"},{"v":-0.8317939293756709,"d":"-0.832"},{"$f":"'VIII. Pers. sov. loans, 1312-'!C402","v":8.825}]
[1710,null,{"v":5.592962093495077,"d":"5.593"},{"v":3.7644446627212824,"d":"3.764"},{"v":1.8285174307737948,"d":"1.829"},{"v":7.085714285714287,"d":"7.086"},{"v":0.5010519016775115,"d":"0.501"},{"v":6.5846623840367755,"d":"6.585"},null,null,{"$f":"SUM('IV. Country level, 1310-2018'!AO404:AV404)","v":{"v":5.517887744347908,"d":"5.518"}},{"$f":"SUM('IV. Country level, 1310-2018'!AY404:BF404)","v":{"v":-2.076007224606948,"d":"-2.0760"}},{"v":7.593894968954856,"d":"7.594"},{"v":8.3,"d":"8.300"},{"$f":"'IV. Country level, 1310-2018'!V404","v":{"v":14.01869158878506,"d":"14.019"}},{"$f":"'IV. Country level, 1310-2018'!D404","v":{"v":-5.71869158878506,"d":"-5.719"}},{"$nulls":5},{"v":4.5,"d":"4.500"},{"v":-1.132993359301586,"d":"-1.133"},{"v":5.632993359301586,"d":"5.633"},{"$f":"'VIII. Pers. sov. loans, 1312-'!C403","v":{"v":9.833333333333334,"d":"9.833"}}]
[1711,null,{"v":5.551594709763697,"d":"5.552"},{"v":4.008309314049462,"d":"4.008"},{"v":1.5432853957142372,"d":"1.543"},{"v":7.157142857142858,"d":"7.157"},{"v":3.223459635823531,"d":"3.223"},{"v":3.933683221319327,"d":"3.934"},null,null,{"$f":"SUM('IV. Country level, 1310-2018'!AO405:AV405)","v":{"v":5.564996065932892,"d":"5.565"}},{"$f":"SUM('IV. Country level, 1310-2018'!AY405:BF405)","v":{"v":-10.636949767202143,"d":"-10.6369"}},{"v":16.201945833135035,"d":"16.202"},{"v":8.700000000000001,"d":"8.700"},{"$f":"'IV. Country level, 1310-2018'!V405","v":{"v":10.655737704918039,"d":"10.656"}},{"$f":"'IV. Country level, 1310-2018'!D405","v":{"v":-1.9557377049180378,"d":"-1.956"}},{"$nulls":5},{"v":4.428571428571428,"d":"4.429"},{"v":3.8526374599391033,"d":"3.853"},{"$f":"V409-W409","v":{"v":0.5759339686323246,"d":"0.576"}},{"$f":"'VIII. Pers. sov. loans, 1312-'!C404","v":{"v":11,"d":"11.000"}}]
[1712,null,{"v":5.415148065013038,"d":"5.415"},{"v":2.642775742565454,"d":"2.643"},{"v":2.7723723224475862,"d":"2.772"},{"v":7.014285714285715,"d":"7.014"},{"v":2.7128052416739927,"d":"2.713"},{"v":4.301480472611723,"d":"4.301"},null,null,{"$f":"SUM('IV. Country level, 1310-2018'!AO406:AV406)","v":{"v":5.949861822392606,"d":"5.950"}},{"$f":"SUM('IV. Country level, 1310-2018'!AY406:BF406)","v":{"v":-3.605693359441861,"d":"-3.6057"}},{"v":9.555555181834468,"d":"9.556"},{"$f":"P410+O410","v":{"v":8.700000000000003,"d":"8.700"}},{"$f":"'IV. Country level, 1310-2018'!V406","v":{"v":-25.185185185185176,"d":"-25.185"}},{"$f":"'IV. Country level, 1310-2018'!D406","v":{"v":33.88518518518518,"d":"33.885"}},{"$nulls":5},{"v":4.357142857142857,"d":"4.357"},{"v":10.131858266914112,"d":"10.132"},{"v":-5.774715409771255,"d":"-5.775"},{"$f":"'VIII. Pers. sov. loans, 1312-'!C405","v":{"v":11,"d":"11.000"}}]
[1713,null,{"v":5.225661124315965,"d":"5.226"},{"v":-2.926702845092431,"d":"-2.927"},{"v":8.152363969408396,"d":"8.152"},{"v":6.871428571428573,"d":"6.871"},{"v":-0.30320049172304053,"d":"-0.303"},{"v":7.174629063151613,"d":"7.175"},null,null,{"$f":"SUM('IV. Country level, 1310-2018'!AO407:AV407)","v":{"v":4.806398232209785,"d":"4.806"}},{"$f":"SUM('IV. Country level, 1310-2018'!AY407:BF407)","v":{"v":4.939722862574959,"d":"4.9397"}},{"v":-0.1333246303651734,"d":"-0.133"},{"v":5.900000000000002,"d":"5.900"},{"$f":"'IV. Country level, 1310-2018'!V407","v":{"v":-3.9603960396039497,"d":"-3.960"}},{"$f":"'IV. Country level, 1310-2018'!D407","v":{"v":9.860396039603952,"d":"9.860"}},{"$nulls":5},{"v":4.285714285714285,"d":"4.286"},{"v":-5.633664169931473,"d":"-5.634"},{"v":9.919378455645758,"d":"9.919"},{"$f":"'VIII. Pers. sov. loans, 1312-'!C406","v":{"v":12,"d":"12.000"}}]
[1714,null,{"v":5.155893688794353,"d":"5.156"},{"v":-3.244874123493491,"d":"-3.245"},{"v":8.400767812287844,"d":"8.401"},{"v":6.32857142857143,"d":"6.329"},{"v":-2.8830712958929103,"d":"-2.883"},{"v":9.21164272446434,"d":"9.212"},null,null,{"$f":"SUM('IV. Country level, 1310-2018'!AO408:AV408)","v":{"v":5.359833357704569,"d":"5.360"}},{"$f":"SUM('IV. Country level, 1310-2018'!AY408:BF408)","v":{"v":0.2930120189582748,"d":"0.2930"}},{"v":5.066821338746294,"d":"5.067"},{"v":6.5,"d":"6.500"},{"$f":"'IV. Country level, 1310-2018'!V408","v":{"v":6.185567010309271,"d":"6.186"}},{"$f":"'IV. Country level, 1310-2018'!D408","v":{"v":0.3144329896907294,"d":"0.314"}},{"$nulls":5},{"v":4.2142857142857135,"d":"4.214"},{"v":-1.3101396189226515,"d":"-1.310"},{"v":5.524425333208365,"d":"5.524"},{"$f":"'VIII. Pers. sov. loans, 1312-'!C407","v":{"v":12,"d":"12.000"}}]
[1715,null,{"v":5.067435886609458,"d":"5.067"},{"v":-2.3859058254851155,"d":"-2.386"},{"v":7.453341712094574,"d":"7.453"},{"v":5.7285714285714295,"d":"5.729"},{"v":-4.706071419151876,"d":"-4.706"},{"v":10.434642847723307,"d":"10.435"},null,null,{"$f":"SUM('IV. Country level, 1310-2018'!AO409:AV409)","v":{"v":4.80897584130418,"d":"4.809"}},{"$f":"SUM('IV. Country level, 1310-2018'!AY409:BF409)","v":{"v":-2.4863283023401888,"d":"-2.4863"}},{"v":7.295304143644369,"d":"7.295"},{"v":5,"d":"5.000"},{"$f":"'IV. Country level, 1310-2018'!V409","v":{"v":0.9708737864077648,"d":"0.971"}},{"$f":"'IV. Country level, 1310-2018'!D409","v":{"v":4.029126213592235,"d":"4.029"}},{"$nulls":5},{"v":4.1428571428571415,"d":"4.143"},{"v":-5.5151517648517,"d":"-5.515"},{"v":9.65800890770884,"d":"9.658"},{"$f":"'VIII. Pers. sov. loans, 1312-'!C408","v":{"v":12,"d":"12.000"}}]
[1716,null,{"v":4.80008571924012,"d":"4.800"},{"v":-1.9186741936314236,"d":"-1.919"},{"v":6.718759912871545,"d":"6.719"},{"v":5.057142857142858,"d":"5.057"},{"v":-0.493748497151535,"d":"-0.494"},{"v":5.550891354294393,"d":"5.551"},null,null,{"$f":"SUM('IV. Country level, 1310-2018'!AO410:AV410)","v":{"v":4.571674806319819,"d":"4.572"}},{"$f":"SUM('IV. Country level, 1310-2018'!AY410:BF410)","v":{"v":-6.914676143589108,"d":"-6.9147"}},{"v":11.486350949908926,"d":"11.486"},{"v":5,"d":"5.000"},{"$f":"'IV. Country level, 1310-2018'!V410","v":{"v":-4.807692307692292,"d":"-4.808"}},{"$f":"'IV. Country level, 1310-2018'!D410","v":{"v":9.807692307692292,"d":"9.808"}},{"$nulls":5},{"v":4.07142857142857,"d":"4.071"},{"v":3.3955956183374334,"d":"3.396"},{"v":0.6758329530911369,"d":"0.676"},{"$f":"'VIII. Pers. sov. loans, 1312-'!C409","v":{"v":12,"d":"12.000"}}]
[1717,null,{"v":4.6805666308161875,"d":"4.681"},{"v":-2.8689906460257792,"d":"-2.869"},{"v":7.549557276841967,"d":"7.550"},{"v":4.785714285714286,"d":"4.786"},{"v":0.8083993906858495,"d":"0.808"},{"v":3.977314895028436,"d":"3.977"},null,null,{"$f":"SUM('IV. Country level, 1310-2018'!AO411:AV411)","v":{"v":5.029515695696624,"d":"5.030"}},{"$f":"SUM('IV. Country level, 1310-2018'!AY411:BF411)","v":{"v":-4.303206173414365,"d":"-4.3032"}},{"v":9.332721869110989,"d":"9.333"},{"v":4.5,"d":"4.500"},{"$f":"'IV. Country level, 1310-2018'!V411","v":{"v":-4.040404040404027,"d":"-4.040"}},{"$f":"'IV. Country level, 1310-2018'!D411","v":{"v":8.540404040404027,"d":"8.540"}},{"$nulls":5},{"v":4,"d":"4.000"},{"v":1.2546123730642154,"d":"1.255"},{"v":2.7453876269357846,"d":"2.745"},{"$f":"'VIII. Pers. sov. loans, 1312-'!C410","v":{"v":10,"d":"10.000"}}]
[1718,null,{"v":4.5220104207218546,"d":"4.522"},{"v":-3.1390046849422766,"d":"-3.139"},{"v":7.6610151056641325,"d":"7.661"},{"v":4.571428571428571,"d":"4.571"},{"v":-0.3553650841762582,"d":"-0.355"},{"v":4.92679365560483,"d":"4.927"},null,null,{"$f":"SUM('IV. Country level, 1310-2018'!AO412:AV412)","v":{"v":4.945791450638626,"d":"4.946"}},{"$f":"SUM('IV. Country level, 1310-2018'!AY412:BF412)","v":{"v":-4.624171681143519,"d":"-4.6242"}},{"v":9.569963131782146,"d":"9.570"},{"v":4.5,"d":"4.500"},{"$f":"'IV. Country level, 1310-2018'!V412","v":{"v":-2.1052631578947256,"d":"-2.105"}},{"$f":"'IV. Country level, 1310-2018'!D412","v":{"v":6.605263157894726,"d":"6.605"}},{"$nulls":5},{"v":4.0625,"d":"4.063"},{"v":-0.8336090372134803,"d":"-0.834"},{"v":4.89610903721348,"d":"4.896"},{"$f":"'VIII. Pers. sov. loans, 1312-'!C411","v":{"v":8,"d":"8.000"}}]
[1719,null,{"v":4.422647737227372,"d":"4.423"},{"v":-2.5861022859044667,"d":"-2.586"},{"v":7.008750023131838,"d":"7.009"},{"v":4.285714285714286,"d":"4.286"},{"v":-1.6369184822345102,"d":"-1.637"},{"v":5.922632767948796,"d":"5.923"},null,null,{"$f":"SUM('IV. Country level, 1310-2018'!AO413:AV413)","v":{"v":4.078410650807237,"d":"4.078"}},{"$f":"SUM('IV. Country level, 1310-2018'!AY413:BF413)","v":{"v":-0.3350719364660187,"d":"-0.3351"}},{"v":4.413482587273256,"d":"4.413"},{"v":4,"d":"4.000"},{"$f":"'IV. Country level, 1310-2018'!V413","v":{"v":4.301075268817215,"d":"4.301"}},{"$f":"'IV. Country level, 1310-2018'!D413","v":{"v":-0.3010752688172147,"d":"-0.301"}},{"$nulls":5},4.125,{"v":3.0721620287625893,"d":"3.072"},{"v":1.0528379712374107,"d":"1.053"},{"$f":"'VIII. Pers. sov. loans, 1312-'!C412","v":{"v":6,"d":"6.000"}}]
[1720,null,{"v":4.356844012281789,"d":"4.357"},{"v":-1.3599680000993877,"d":"-1.360"},{"v":5.716812012381177,"d":"5.717"},{"v":4,"d":"4.000"},{"v":-1.4159438047380957,"d":"-1.416"},{"v":5.415943804738096,"d":"5.416"},null,null,{"$f":"SUM('IV. Country level, 1310-2018'!AO414:AV414)","v":{"v":3.9697646132422535,"d":"3.970"}},{"$f":"SUM('IV. Country level, 1310-2018'!AY414:BF414)","v":{"v":-1.7124923041855318,"d":"-1.7125"}},{"v":5.682256917427785,"d":"5.682"},{"v":3.9999999999999996,"d":"4.000"},{"$f":"'IV. Country level, 1310-2018'!V414","v":{"v":5.154639175257742,"d":"5.155"}},{"$f":"'IV. Country level, 1310-2018'!D414","v":{"v":-1.1546391752577425,"d":"-1.155"}},{"$nulls":5},{"v":5,"d":"5.000"},{"v":0.09743241401225554,"d":"0.097"},{"v":4.902567585987745,"d":"4.903"},{"$f":"'VIII. Pers. sov. loans, 1312-'!C413","v":{"v":6,"d":"6.000"}}]
[1721,null,{"v":4.225297029361712,"d":"4.225"},{"v":0.1932569243693615,"d":"0.193"},{"v":4.03204010499235,"d":"4.032"},{"v":3.7857142857142856,"d":"3.786"},{"v":-0.03617500923896598,"d":"-0.036"},{"v":3.8218892949532517,"d":"3.822"},null,null,{"$f":"SUM('IV. Country level, 1310-2018'!AO415:AV415)","v":{"v":4.249939887044242,"d":"4.250"}},{"$f":"SUM('IV. Country level, 1310-2018'!AY415:BF415)","v":{"v":-1.59708625345721,"d":"-1.5971"}},{"v":5.847026140501452,"d":"5.847"},{"v":5,"d":"5.000"},{"$f":"'IV. Country level, 1310-2018'!V415","v":{"v":-1.9607843137254832,"d":"-1.961"}},{"$f":"'IV. Country level, 1310-2018'!D415","v":{"v":6.960784313725483,"d":"6.961"}},{"$nulls":5},{"v":4.25,"d":"4.250"},{"v":-8.287652046229377,"d":"-8.288"},{"v":12.537652046229377,"d":"12.538"},{"$f":"'VIII. Pers. sov. loans, 1312-'!C414","v":{"v":6,"d":"6.000"}}]
[1722,null,{"v":4.116193030945467,"d":"4.116"},{"v":1.653521612545966,"d":"1.654"},{"v":2.462671418399501,"d":"2.463"},{"v":3.5714285714285716,"d":"3.571"},{"v":0.7205039221320148,"d":"0.721"},{"v":2.8509246492965565,"d":"2.851"},null,null,{"$f":"SUM('IV. Country level, 1310-2018'!AO416:AV416)","v":{"v":4.1134370568427965,"d":"4.113"}},{"$f":"SUM('IV. Country level, 1310-2018'!AY416:BF416)","v":{"v":1.383988490924484,"d":"1.3840"}},{"v":2.7294485659183128,"d":"2.729"},{"v":3,"d":"3.000"},{"$f":"'IV. Country level, 1310-2018'!V416","v":{"v":-8,"d":"-8.000"}},{"$f":"'IV. Country level, 1310-2018'!D416","v":{"v":11,"d":"11.000"}},{"$nulls":5},{"v":4.1875,"d":"4.188"},{"v":-4.6052718051214585,"d":"-4.605"},{"v":8.792771805121458,"d":"8.793"},{"$f":"'VIII. Pers. sov. loans, 1312-'!C415","v":{"v":6,"d":"6.000"}}]
[1723,null,{"v":4.163059754532348,"d":"4.163"},{"v":1.6770330870195707,"d":"1.677"},{"v":2.486026667512778,"d":"2.486"},{"v":3.4285714285714284,"d":"3.429"},{"v":0.84244162305209,"d":"0.842"},{"v":2.5861298055193385,"d":"2.586"},null,null,{"$f":"SUM('IV. Country level, 1310-2018'!AO417:AV417)","v":{"v":4.111048731700746,"d":"4.111"}},{"$f":"SUM('IV. Country level, 1310-2018'!AY417:BF417)","v":{"v":1.6682638570464468,"d":"1.6683"}},{"v":2.442784874654299,"d":"2.443"},{"v":3,"d":"3.000"},{"$f":"'IV. Country level, 1310-2018'!V417","v":{"v":-3.2608695652173907,"d":"-3.261"}},{"$f":"'IV. Country level, 1310-2018'!D417","v":{"v":6.260869565217391,"d":"6.261"}},{"$nulls":5},{"v":4.124999999999999,"d":"4.125"},{"v":-0.39425736550477986,"d":"-0.394"},{"v":4.519257365504779,"d":"4.519"},{"$f":"'VIII. Pers. sov. loans, 1312-'!C416","v":{"v":6,"d":"6.000"}}]
[1724,null,{"v":4.263371701053573,"d":"4.263"},{"v":0.9388390828361645,"d":"0.939"},{"v":3.324532618217408,"d":"3.325"},{"v":3.367142857142857,"d":"3.367"},{"v":-0.7342715364385087,"d":"-0.734"},{"v":4.101414393581366,"d":"4.101"},null,null,{"$f":"SUM('IV. Country level, 1310-2018'!AO418:AV418)","v":{"v":4.108686815256082,"d":"4.109"}},{"$f":"SUM('IV. Country level, 1310-2018'!AY418:BF418)","v":{"v":6.569368297866879,"d":"6.5694"}},{"v":-2.4606814826107968,"d":"-2.461"},{"v":2.9999999999999996,"d":"3.000"},{"$f":"'IV. Country level, 1310-2018'!V418","v":{"v":5.617977528089881,"d":"5.618"}},{"$f":"'IV. Country level, 1310-2018'!D418","v":{"v":-2.6179775280898814,"d":"-2.618"}},{"$nulls":5},{"v":4.062499999999999,"d":"4.063"},{"v":5.9016109284859075,"d":"5.902"},{"v":-1.8391109284859084,"d":"-1.839"},{"$f":"'VIII. Pers. sov. loans, 1312-'!C417","v":{"v":6,"d":"6.000"}}]
[1725,null,{"v":4.340040511915774,"d":"4.340"},{"v":1.107018152822415,"d":"1.107"},{"v":3.233022359093359,"d":"3.233"},{"v":3.1392857142857147,"d":"3.139"},{"v":-0.007730920192009145,"d":"-0.008"},{"v":3.1470166344777235,"d":"3.147"},null,null,{"$f":"SUM('IV. Country level, 1310-2018'!AO419:AV419)","v":{"v":4.18206346172491,"d":"4.182"}},{"$f":"SUM('IV. Country level, 1310-2018'!AY419:BF419)","v":{"v":5.597681136092713,"d":"5.5977"}},{"v":-1.4156176743678026,"d":"-1.416"},{"v":3.0000000000000004,"d":"3.000"},{"$f":"'IV. Country level, 1310-2018'!V419","v":{"v":3.191489361702139,"d":"3.191"}},{"$f":"'IV. Country level, 1310-2018'!D419","v":{"v":-0.1914893617021387,"d":"-0.191"}},{"$nulls":5},{"v":4,"d":"4.000"},{"v":-2.794597260028027,"d":"-2.795"},{"v":6.794597260028027,"d":"6.795"},{"$f":"'VIII. Pers. sov. loans, 1312-'!C418","v":{"v":6,"d":"6.000"}}]
[1726,null,{"v":4.452465058866937,"d":"4.452"},{"v":1.531279594890424,"d":"1.531"},{"v":2.9211854639765127,"d":"2.921"},{"v":3.173571428571429,"d":"3.174"},{"v":1.8566269441658554,"d":"1.857"},{"v":1.316944484405573,"d":"1.317"},null,null,{"$f":"SUM('IV. Country level, 1310-2018'!AO420:AV420)","v":{"v":4.4064777159154085,"d":"4.406"}},{"$f":"SUM('IV. Country level, 1310-2018'!AY420:BF420)","v":{"v":-0.17049161515078537,"d":"-0.1705"}},{"v":4.576969331066194,"d":"4.577"},{"v":2.9999999999999996,"d":"3.000"},{"$f":"'IV. Country level, 1310-2018'!V420","v":{"v":5.154639175257742,"d":"5.155"}},{"$f":"'IV. Country level, 1310-2018'!D420","v":{"v":-2.1546391752577425,"d":"-2.155"}},{"$nulls":5},{"v":4.266666666666667,"d":"4.267"},{"v":10.501418639938068,"d":"10.501"},{"v":-6.234751973271401,"d":"-6.235"},{"$f":"'VIII. Pers. sov. loans, 1312-'!C419","v":{"v":6,"d":"6.000"}}]
[1727,null,{"v":4.588117270540751,"d":"4.588"},{"v":0.511386572040206,"d":"0.511"},{"v":4.076730698500545,"d":"4.077"},{"v":3.2164285714285716,"d":"3.216"},{"v":1.0862017172188883,"d":"1.086"},{"v":2.130226854209683,"d":"2.130"},null,null,{"$f":"SUM('IV. Country level, 1310-2018'!AO421:AV421)","v":{"v":4.671948238890824,"d":"4.672"}},{"$f":"SUM('IV. Country level, 1310-2018'!AY421:BF421)","v":{"v":-6.879850333469375,"d":"-6.8799"}},{"v":11.551798572360198,"d":"11.552"},{"v":3.5700000000000003,"d":"3.570"},{"$f":"'IV. Country level, 1310-2018'!V421","v":{"v":-5.88235294117645,"d":"-5.882"}},{"$f":"'IV. Country level, 1310-2018'!D421","v":{"v":9.45235294117645,"d":"9.452"}},{"$nulls":5},{"v":4.533333333333333,"d":"4.533"},{"v":-6.048840385278218,"d":"-6.049"},{"v":10.582173718611552,"d":"10.582"},{"$f":"'VIII. Pers. sov. loans, 1312-'!C420","v":{"v":6,"d":"6.000"}}]
[1728,null,{"v":4.62362629721189,"d":"4.624"},{"v":0.2128918228878908,"d":"0.213"},{"v":4.410734474323998,"d":"4.411"},{"v":3.233571428571429,"d":"3.234"},{"v":-0.7689980800270361,"d":"-0.769"},{"v":4.002569508598465,"d":"4.003"},null,null,{"$f":"SUM('IV. Country level, 1310-2018'!AO422:AV422)","v":{"v":4.786621563079654,"d":"4.787"}},{"$f":"SUM('IV. Country level, 1310-2018'!AY422:BF422)","v":{"v":-0.41983276355345434,"d":"-0.4198"}},{"v":5.206454326633109,"d":"5.206"},3.405,{"$f":"'IV. Country level, 1310-2018'!V422","v":{"v":3.125000000000014,"d":"3.125"}},{"$f":"'IV. Country level, 1310-2018'!D422","v":{"v":0.2799999999999856,"d":"0.280"}},{"$nulls":5},{"v":4.8,"d":"4.800"},{"v":-2.330737795294741,"d":"-2.331"},{"v":7.13073779529474,"d":"7.131"},{"$f":"'VIII. Pers. sov. loans, 1312-'!C421","v":{"v":4.5,"d":"4.500"}}]
[1729,null,{"v":4.78369084999805,"d":"4.784"},{"v":-1.263767669546119,"d":"-1.264"},{"v":6.047458519544169,"d":"6.047"},{"v":3.2378571428571425,"d":"3.238"},{"v":-1.0625874693611093,"d":"-1.063"},{"v":4.300444612218252,"d":"4.300"},null,null,{"$f":"SUM('IV. Country level, 1310-2018'!AO423:AV423)","v":{"v":4.900408885500935,"d":"4.900"}},{"$f":"SUM('IV. Country level, 1310-2018'!AY423:BF423)","v":{"v":4.353818585400546,"d":"4.3538"}},{"v":0.5465903001003891,"d":"0.547"},{"v":3.2400000000000007,"d":"3.240"},{"$f":"'IV. Country level, 1310-2018'!V423","v":{"v":5.050505050505052,"d":"5.051"}},{"$f":"'IV. Country level, 1310-2018'!D423","v":{"v":-1.8105050505050513,"d":"-1.811"}},{"$nulls":5},{"v":5.0666666666666655,"d":"5.067"},{"v":0.7692488427350921,"d":"0.769"},{"v":4.297417823931573,"d":"4.297"},{"$f":"'VIII. Pers. sov. loans, 1312-'!C422","v":{"v":3,"d":"3.000"}}]
[1730,null,{"v":4.936883166101017,"d":"4.937"},{"v":-0.9521667474726057,"d":"-0.952"},{"v":5.889049913573623,"d":"5.889"},{"v":3.2507142857142854,"d":"3.251"},{"v":-2.441019069036772,"d":"-2.441"},{"v":5.691733354751057,"d":"5.692"},null,null,{"$f":"SUM('IV. Country level, 1310-2018'!AO424:AV424)","v":{"v":5.060614213417443,"d":"5.061"}},{"$f":"SUM('IV. Country level, 1310-2018'!AY424:BF424)","v":{"v":-5.470987302905079,"d":"-5.4710"}},{"v":10.531601516322521,"d":"10.532"},{"v":3.299999999999999,"d":"3.300"},{"$f":"'IV. Country level, 1310-2018'!V424","v":{"v":-8.65384615384616,"d":"-8.654"}},{"$f":"'IV. Country level, 1310-2018'!D424","v":{"v":11.95384615384616,"d":"11.954"}},{"$nulls":5},{"v":5.333333333333332,"d":"5.333"},{"v":-5.787707152912934,"d":"-5.788"},{"v":11.121040486246265,"d":"11.121"},{"$f":"'VIII. Pers. sov. loans, 1312-'!C423","v":{"v":4.5,"d":"4.500"}}]
[1731,null,{"v":5.098856638045054,"d":"5.099"},{"v":0.9048809342378618,"d":"0.905"},{"v":4.193975703807191,"d":"4.194"},{"v":3.1964285714285716,"d":"3.196"},{"v":-1.0964812539107243,"d":"-1.096"},{"v":4.292909825339295,"d":"4.293"},null,null,{"$f":"SUM('IV. Country level, 1310-2018'!AO425:AV425)","v":{"v":4.357250001954041,"d":"4.357"}},{"$f":"SUM('IV. Country level, 1310-2018'!AY425:BF425)","v":{"v":4.47990505380067,"d":"4.4799"}},{"v":-0.12265505184662917,"d":"-0.123"},{"v":3.120000000000001,"d":"3.120"},{"$f":"'IV. Country level, 1310-2018'!V425","v":{"v":-7.368421052631589,"d":"-7.368"}},{"$f":"'IV. Country level, 1310-2018'!D425","v":{"v":10.48842105263159,"d":"10.488"}},{"$nulls":5},{"v":5.599999999999999,"d":"5.600"},{"v":16.517031058682754,"d":"16.517"},{"v":-10.917031058682756,"d":"-10.917"},{"$f":"'VIII. Pers. sov. loans, 1312-'!C424","v":{"v":4.666666666666667,"d":"4.667"}}]
[1732,null,{"v":5.0440853332897735,"d":"5.044"},{"v":0.672464881341237,"d":"0.672"},{"v":4.371620451948536,"d":"4.372"},{"v":3.165714285714286,"d":"3.166"},{"v":-1.3805721630016348,"d":"-1.381"},{"v":4.546286448715921,"d":"4.546"},null,null,{"$f":"SUM('IV. Country level, 1310-2018'!AO426:AV426)","v":{"v":5.3025153312280375,"d":"5.303"}},{"$f":"SUM('IV. Country level, 1310-2018'!AY426:BF426)","v":{"v":-4.738935310945356,"d":"-4.7389"}},{"v":10.041450642173395,"d":"10.041"},{"v":3.0299999999999994,"d":"3.030"},{"$f":"'IV. Country level, 1310-2018'!V426","v":{"v":1.136363636363626,"d":"1.136"}},{"$f":"'IV. Country level, 1310-2018'!D426","v":{"v":1.8936363636363733,"d":"1.894"}},{"$nulls":5},{"v":5.866666666666665,"d":"5.867"},{"v":-11.099322263398829,"d":"-11.099"},{"v":16.965988930065492,"d":"16.966"},{"$f":"'VIII. Pers. sov. loans, 1312-'!C425","v":{"v":5.25,"d":"5.250"}}]
[1733,null,{"v":4.961317330263973,"d":"4.961"},{"v":0.1839857684244779,"d":"0.184"},{"v":4.777331561839495,"d":"4.777"},{"v":3.111428571428571,"d":"3.111"},{"v":-2.4231001718217766,"d":"-2.423"},{"v":5.534528743250348,"d":"5.535"},null,null,{"$f":"SUM('IV. Country level, 1310-2018'!AO427:AV427)","v":{"v":5.4788239286361815,"d":"5.479"}},{"$f":"SUM('IV. Country level, 1310-2018'!AY427:BF427)","v":{"v":2.0107148393638097,"d":"2.0107"}},{"v":3.468109089272372,"d":"3.468"},{"v":3.09,"d":"3.090"},{"$f":"'IV. Country level, 1310-2018'!V427","v":{"v":-4.494382022471896,"d":"-4.494"}},{"$f":"'IV. Country level, 1310-2018'!D427","v":{"v":7.584382022471896,"d":"7.584"}},{"$nulls":5},{"v":6.133333333333332,"d":"6.133"},{"v":-0.9766432498946663,"d":"-0.977"},{"v":7.109976583227998,"d":"7.110"},{"$f":"'VIII. Pers. sov. loans, 1312-'!C426","v":{"v":5.6,"d":"5.600"}}]
[1734,null,{"v":4.812542088681492,"d":"4.813"},{"v":1.1390334714795447,"d":"1.139"},{"v":3.6735086172019487,"d":"3.674"},{"v":3.0442857142857145,"d":"3.044"},{"v":-0.2016147606811915,"d":"-0.202"},{"v":3.245900474966906,"d":"3.246"},null,null,{"$f":"SUM('IV. Country level, 1310-2018'!AO428:AV428)","v":{"v":5.805762542499081,"d":"5.806"}},{"$f":"SUM('IV. Country level, 1310-2018'!AY428:BF428)","v":{"v":6.119483438503896,"d":"6.1195"}},{"v":-0.31372089600481523,"d":"-0.314"},{"v":3.19,"d":"3.190"},{"$f":"'IV. Country level, 1310-2018'!V428","v":{"v":3.529411764705884,"d":"3.529"}},{"$f":"'IV. Country level, 1310-2018'!D428","v":{"v":-0.3394117647058841,"d":"-0.339"}},{"$nulls":5},{"v":6.399999999999999,"d":"6.400"},{"v":-2.998972467347052,"d":"-2.999"},{"v":9.39897246734705,"d":"9.399"},{"$f":"'VIII. Pers. sov. loans, 1312-'!C427","v":{"v":5.833333333333333,"d":"5.833"}}]
[1735,null,{"v":4.692111527947993,"d":"4.692"},{"v":0.6311004158317052,"d":"0.631"},{"v":4.061011112116288,"d":"4.061"},{"v":3.0071428571428567,"d":"3.007"},{"v":0.543797156207808,"d":"0.544"},{"v":2.4633457009350486,"d":"2.463"},null,null,{"$f":"SUM('IV. Country level, 1310-2018'!AO429:AV429)","v":{"v":4.4032224297926925,"d":"4.403"}},{"$f":"SUM('IV. Country level, 1310-2018'!AY429:BF429)","v":{"v":-2.0467451338298277,"d":"-2.0467"}},{"v":6.44996756362252,"d":"6.450"},{"v":3.19,"d":"3.190"},{"$f":"'IV. Country level, 1310-2018'!V429","v":{"v":1.1363636363636402,"d":"1.136"}},{"$f":"'IV. Country level, 1310-2018'!D429","v":{"v":2.0536363636363597,"d":"2.054"}},{"$nulls":5},{"v":6.666666666666667,"d":"6.667"},{"v":4.039016751424255,"d":"4.039"},{"v":2.6276499152424115,"d":"2.628"},{"$f":"'VIII. Pers. sov. loans, 1312-'!C428","v":{"v":6.5,"d":"6.500"}}]
[1736,null,{"v":4.501155175899627,"d":"4.501"},{"v":1.3931779370609545,"d":"1.393"},{"v":3.107977238838673,"d":"3.108"},{"v":3.011428571428571,"d":"3.011"},{"v":0.06748775132697508,"d":"0.067"},{"v":2.943940820101596,"d":"2.944"},null,null,{"$f":"SUM('IV. Country level, 1310-2018'!AO430:AV430)","v":{"v":4.321032864320333,"d":"4.321"}},{"$f":"SUM('IV. Country level, 1310-2018'!AY430:BF430)","v":{"v":0.9344647949832321,"d":"0.9345"}},{"v":3.386568069337101,"d":"3.387"},{"v":2.8600000000000003,"d":"2.860"},{"$f":"'IV. Country level, 1310-2018'!V430","v":{"v":-2.247191011235941,"d":"-2.247"}},{"$f":"'IV. Country level, 1310-2018'!D430","v":{"v":5.107191011235941,"d":"5.107"}},{"$nulls":5},{"v":6.133333333333333,"d":"6.133"},{"v":9.480735188082509,"d":"9.481"},{"v":-3.347401854749176,"d":"-3.347"},{"$f":"'VIII. Pers. sov. loans, 1312-'!C429","v":{"v":6.428571428571429,"d":"6.429"}}]
[1737,null,{"v":4.509067807335247,"d":"4.509"},{"v":2.6572278964419493,"d":"2.657"},{"v":1.851839910893298,"d":"1.852"},{"v":2.9985714285714287,"d":"2.999"},{"v":2.4751924062226403,"d":"2.475"},{"v":0.5233790223487882,"d":"0.523"},null,null,{"$f":"SUM('IV. Country level, 1310-2018'!AO431:AV431)","v":{"v":4.019187522340083,"d":"4.019"}},{"$f":"SUM('IV. Country level, 1310-2018'!AY431:BF431)","v":{"v":1.2143466184803882,"d":"1.2143"}},{"v":2.8048409038596946,"d":"2.805"},{"v":2.83,"d":"2.830"},{"$f":"'IV. Country level, 1310-2018'!V431","v":{"v":6.896551724137936,"d":"6.897"}},{"$f":"'IV. Country level, 1310-2018'!D431","v":{"v":-4.066551724137936,"d":"-4.067"}},{"$nulls":5},{"v":5.6,"d":"5.600"},{"v":5.523691922033076,"d":"5.524"},{"v":0.07630807796692363,"d":"0.076"},{"$f":"'VIII. Pers. sov. loans, 1312-'!C430","v":{"v":6.666666666666667,"d":"6.667"}}]
[1738,null,{"v":4.301150067561434,"d":"4.301"},{"v":2.8267839524822436,"d":"2.827"},{"v":1.4743661150791907,"d":"1.474"},{"v":2.9757142857142855,"d":"2.976"},{"v":3.113847868407514,"d":"3.114"},{"v":-0.13813358269322837,"d":"-0.138"},null,null,{"$f":"SUM('IV. Country level, 1310-2018'!AO432:AV432)","v":{"v":3.5142360768195426,"d":"3.514"}},{"$f":"SUM('IV. Country level, 1310-2018'!AY432:BF432)","v":{"v":0.9243736642657943,"d":"0.9244"}},{"v":2.5898624125537486,"d":"2.590"},{"v":2.8599999999999994,"d":"2.860"},{"$f":"'IV. Country level, 1310-2018'!V432","v":{"v":-2.150537634408593,"d":"-2.151"}},{"$f":"'IV. Country level, 1310-2018'!D432","v":{"v":5.010537634408593,"d":"5.011"}},{"$nulls":5},{"v":5.0666666666666655,"d":"5.067"},{"v":-2.7775722751925644,"d":"-2.778"},{"v":7.8442389418592295,"d":"7.844"},{"$f":"'VIII. Pers. sov. loans, 1312-'!C431","v":{"v":6.56060606060606,"d":"6.561"}}]
[1739,null,{"v":4.292190037861852,"d":"4.292"},{"v":1.3164238551404925,"d":"1.316"},{"v":2.975766182721359,"d":"2.976"},{"v":2.948571428571429,"d":"2.949"},{"v":1.7610340155936595,"d":"1.761"},{"v":1.187537412977769,"d":"1.188"},null,null,{"$f":"SUM('IV. Country level, 1310-2018'!AO433:AV433)","v":{"v":3.9658208668894765,"d":"3.966"}},{"$f":"SUM('IV. Country level, 1310-2018'!AY433:BF433)","v":{"v":0.5956073376593889,"d":"0.5956"}},{"v":3.370213529230088,"d":"3.370"},{"v":3.0600000000000005,"d":"3.060"},{"$f":"'IV. Country level, 1310-2018'!V433","v":{"v":-2.197802197802204,"d":"-2.198"}},{"$f":"'IV. Country level, 1310-2018'!D433","v":{"v":5.257802197802205,"d":"5.258"}},{"$nulls":5},{"v":4.533333333333332,"d":"4.533"},{"v":6.713294619821434,"d":"6.713"},{"v":-2.1799612864881013,"d":"-2.180"},{"$f":"'VIII. Pers. sov. loans, 1312-'!C432","v":{"v":6.437376725838264,"d":"6.437"}}]
[1740,null,{"v":4.293557731650032,"d":"4.294"},{"v":0.4662807981644638,"d":"0.466"},{"v":3.8272769334855674,"d":"3.827"},{"v":2.9642857142857144,"d":"2.964"},{"v":1.3605605814123578,"d":"1.361"},{"v":1.6037251328733564,"d":"1.604"},null,null,{"$f":"SUM('IV. Country level, 1310-2018'!AO434:AV434)","v":{"v":5.534212348685516,"d":"5.534"}},{"$f":"SUM('IV. Country level, 1310-2018'!AY434:BF434)","v":{"v":10.859064555030772,"d":"10.8591"}},{"v":-5.3248522063452555,"d":"-5.325"},{"v":3,"d":"3.000"},{"$f":"'IV. Country level, 1310-2018'!V434","v":{"v":12.35955056179776,"d":"12.360"}},{"$f":"'IV. Country level, 1310-2018'!D434","v":{"v":-9.35955056179776,"d":"-9.360"}},{"$nulls":5},{"v":4,"d":"4.000"},{"v":13.09846369568718,"d":"13.098"},{"v":-9.09846369568718,"d":"-9.098"},{"$f":"'VIII. Pers. sov. loans, 1312-'!C433","v":{"v":6.437376725838264,"d":"6.437"}}]
[1741,null,{"v":4.550546420202101,"d":"4.551"},{"v":-0.07388652473681548,"d":"-0.074"},{"v":4.624432944938917,"d":"4.624"},{"v":3.0228571428571436,"d":"3.023"},{"v":-1.144417932370264,"d":"-1.144"},{"v":4.167275075227407,"d":"4.167"},null,null,{"$f":"SUM('IV. Country level, 1310-2018'!AO435:AV435)","v":{"v":4.350338364082394,"d":"4.350"}},{"$f":"SUM('IV. Country level, 1310-2018'!AY435:BF435)","v":{"v":7.3063758307859565,"d":"7.3064"}},{"v":-2.9560374667035623,"d":"-2.956"},{"v":3.0299999999999994,"d":"3.030"},{"$f":"'IV. Country level, 1310-2018'!V435","v":{"v":8,"d":"8.000"}},{"$f":"'IV. Country level, 1310-2018'!D435","v":{"v":-4.970000000000001,"d":"-4.970"}},{"$nulls":5},{"v":4,"d":"4.000"},{"v":-2.4653745659081547,"d":"-2.465"},{"v":6.465374565908155,"d":"6.465"},{"$f":"'VIII. Pers. sov. loans, 1312-'!C434","v":{"v":6.334706959706959,"d":"6.335"}}]
[1742,null,{"v":4.686900976462051,"d":"4.687"},{"v":-0.023918862590958163,"d":"-0.024"},{"v":4.71081983905301,"d":"4.711"},{"v":3.1185714285714283,"d":"3.119"},{"v":-0.6671302431010113,"d":"-0.667"},{"v":3.7857016716724394,"d":"3.786"},null,null,{"$f":"SUM('IV. Country level, 1310-2018'!AO436:AV436)","v":{"v":4.340502221895618,"d":"4.341"}},{"$f":"SUM('IV. Country level, 1310-2018'!AY436:BF436)","v":{"v":-12.619265815222082,"d":"-12.6193"}},{"v":16.9597680371177,"d":"16.960"},{"v":3,"d":"3.000"},{"$f":"'IV. Country level, 1310-2018'!V436","v":{"v":-8.333333333333343,"d":"-8.333"}},{"$f":"'IV. Country level, 1310-2018'!D436","v":{"v":11.333333333333343,"d":"11.333"}},{"$nulls":5},{"v":4,"d":"4.000"},{"v":-3.3799799771007333,"d":"-3.380"},{"v":7.379979977100733,"d":"7.380"},{"$f":"'VIII. Pers. sov. loans, 1312-'!C435","v":{"v":6.334706959706959,"d":"6.335"}}]
[1743,null,{"v":4.810768768769906,"d":"4.811"},{"v":0.5735306553591479,"d":"0.574"},{"v":4.237238113410759,"d":"4.237"},{"v":3.1685714285714286,"d":"3.169"},{"v":0.9913793145682105,"d":"0.991"},{"v":2.177192114003218,"d":"2.177"},null,null,{"$f":"SUM('IV. Country level, 1310-2018'!AO437:AV437)","v":{"v":4.330606720837588,"d":"4.331"}},{"$f":"SUM('IV. Country level, 1310-2018'!AY437:BF437)","v":{"v":-5.01653660384897,"d":"-5.0165"}},{"v":9.34714332468656,"d":"9.347"},{"v":2.9700000000000006,"d":"2.970"},{"$f":"'IV. Country level, 1310-2018'!V437","v":{"v":-5.050505050505052,"d":"-5.051"}},{"$f":"'IV. Country level, 1310-2018'!D437","v":{"v":8.020505050505053,"d":"8.021"}},{"$nulls":5},{"v":4,"d":"4.000"},{"v":-6.432237972061262,"d":"-6.432"},{"v":10.432237972061262,"d":"10.432"},{"$f":"'VIII. Pers. sov. loans, 1312-'!C436","v":{"v":6.406135531135531,"d":"6.406"}}]
[1744,null,{"v":4.7313952825196015,"d":"4.731"},{"v":-0.8047829252107576,"d":"-0.805"},{"v":5.53617820773036,"d":"5.536"},{"v":3.262857142857143,"d":"3.263"},{"v":-1.2351002587761712,"d":"-1.235"},{"v":4.497957401633314,"d":"4.498"},null,null,{"$f":"SUM('IV. Country level, 1310-2018'!AO438:AV438)","v":{"v":5.818108342204571,"d":"5.818"}},{"$f":"SUM('IV. Country level, 1310-2018'!AY438:BF438)","v":{"v":-2.566824641828567,"d":"-2.5668"}},{"v":8.384932984033139,"d":"8.385"},{"v":3.24,"d":"3.240"},{"$f":"'IV. Country level, 1310-2018'!V438","v":{"v":-10.638297872340416,"d":"-10.638"}},{"$f":"'IV. Country level, 1310-2018'!D438","v":{"v":13.878297872340417,"d":"13.878"}},{"$nulls":5},{"v":4,"d":"4.000"},{"v":-5.554313411657027,"d":"-5.554"},{"v":9.554313411657027,"d":"9.554"},{"$f":"'VIII. Pers. sov. loans, 1312-'!C437","v":{"v":6.307158119658119,"d":"6.307"}}]
[1745,null,{"v":4.78766713221132,"d":"4.788"},{"v":-1.2019482694562293,"d":"-1.202"},{"v":5.9896154016675505,"d":"5.990"},{"v":3.317142857142857,"d":"3.317"},{"v":-1.7430367667126794,"d":"-1.743"},{"v":5.060179623855537,"d":"5.060"},null,null,{"$f":"SUM('IV. Country level, 1310-2018'!AO439:AV439)","v":{"v":4.468717970639194,"d":"4.469"}},{"$f":"SUM('IV. Country level, 1310-2018'!AY439:BF439)","v":{"v":1.2741472992867948,"d":"1.2741"}},{"v":3.194570671352399,"d":"3.195"},{"v":3.529999999999999,"d":"3.530"},{"$f":"'IV. Country level, 1310-2018'!V439","v":{"v":1.1904761904761756,"d":"1.190"}},{"$f":"'IV. Country level, 1310-2018'!D439","v":{"v":2.3395238095238233,"d":"2.340"}},{"$nulls":5},{"v":4,"d":"4.000"},{"v":5.6871831490296305,"d":"5.687"},{"v":-1.6871831490296305,"d":"-1.687"},{"$f":"'VIII. Pers. sov. loans, 1312-'!C438","v":{"v":6.502136752136753,"d":"6.502"}}]
[1746,null,{"v":4.7928007177312635,"d":"4.793"},{"v":0.35193449418159906,"d":"0.352"},{"v":4.440866223549665,"d":"4.441"},{"v":3.312857142857143,"d":"3.313"},{"v":-0.24860920845533283,"d":"-0.249"},{"v":3.5614663513124754,"d":"3.561"},null,null,{"$f":"SUM('IV. Country level, 1310-2018'!AO440:AV440)","v":{"v":4.832895413044463,"d":"4.833"}},{"$f":"SUM('IV. Country level, 1310-2018'!AY440:BF440)","v":{"v":4.77775396331013,"d":"4.7778"}},{"v":0.055141449734333214,"d":"0.055"},{"v":3.41,"d":"3.410"},{"$f":"'IV. Country level, 1310-2018'!V440","v":{"v":9.411764705882348,"d":"9.412"}},{"$f":"'IV. Country level, 1310-2018'!D440","v":{"v":-6.001764705882348,"d":"-6.002"}},{"$nulls":5},{"v":4,"d":"4.000"},{"v":4.588301051799664,"d":"4.588"},{"v":-0.5883010517996636,"d":"-0.588"},{"$f":"'VIII. Pers. sov. loans, 1312-'!C439","v":{"v":6.666666666666667,"d":"6.667"}}]
[1747,null,{"v":4.77900098059112,"d":"4.779"},{"v":1.38252856511427,"d":"1.383"},{"v":3.3964724154768495,"d":"3.396"},{"v":3.317142857142857,"d":"3.317"},{"v":0.3240819892358644,"d":"0.324"},{"v":2.9930608679069928,"d":"2.993"},null,null,{"$f":"SUM('IV. Country level, 1310-2018'!AO441:AV441)","v":{"v":4.97859794493338,"d":"4.979"}},{"$f":"SUM('IV. Country level, 1310-2018'!AY441:BF441)","v":{"v":1.2108694910414342,"d":"1.2109"}},{"v":3.767728453891946,"d":"3.768"},{"v":3.66,"d":"3.660"},{"$f":"'IV. Country level, 1310-2018'!V441","v":{"v":-3.225806451612911,"d":"-3.226"}},{"$f":"'IV. Country level, 1310-2018'!D441","v":{"v":6.885806451612911,"d":"6.886"}},{"$nulls":5},{"v":8,"d":"8.000"},{"v":-6.692666917069559,"d":"-6.693"},{"v":14.692666917069559,"d":"14.693"},{"$f":"'VIII. Pers. sov. loans, 1312-'!C440","v":{"v":6.6,"d":"6.600"}}]
[1748,null,{"v":4.558872013052951,"d":"4.559"},{"v":1.853761272965666,"d":"1.854"},{"v":2.705110740087285,"d":"2.705"},{"v":3.2871428571428574,"d":"3.287"},{"v":2.219778677765699,"d":"2.220"},{"v":1.067364179377158,"d":"1.067"},null,null,{"$f":"SUM('IV. Country level, 1310-2018'!AO442:AV442)","v":{"v":4.74424131192443,"d":"4.744"}},{"$f":"SUM('IV. Country level, 1310-2018'!AY442:BF442)","v":{"v":4.5262184210676555,"d":"4.5262"}},{"v":0.2180228908567745,"d":"0.218"},{"v":3.4099999999999997,"d":"3.410"},{"$f":"'IV. Country level, 1310-2018'!V442","v":{"v":4.444444444444443,"d":"4.444"}},{"$f":"'IV. Country level, 1310-2018'!D442","v":{"v":-1.0344444444444432,"d":"-1.034"}},{"$nulls":5},{"v":6.416666666666666,"d":"6.417"},{"v":0.3645911740419417,"d":"0.365"},{"v":6.052075492624724,"d":"6.052"},{"$f":"'VIII. Pers. sov. loans, 1312-'!C441","v":{"v":7,"d":"7.000"}}]
[1749,null,{"v":4.52053264072551,"d":"4.521"},{"v":2.013430430667473,"d":"2.013"},{"v":2.507102210058037,"d":"2.507"},{"v":3.1914285714285717,"d":"3.191"},{"v":2.9654615663057364,"d":"2.965"},{"v":0.22596700512283516,"d":"0.226"},null,null,{"$f":"SUM('IV. Country level, 1310-2018'!AO443:AV443)","v":{"v":4.376437320535219,"d":"4.376"}},{"$f":"SUM('IV. Country level, 1310-2018'!AY443:BF443)","v":{"v":-1.7420864697572838,"d":"-1.7421"}},{"v":6.118523790292503,"d":"6.119"},{"v":2.97,"d":"2.970"},{"$f":"'IV. Country level, 1310-2018'!V443","v":{"v":2.1276595744680833,"d":"2.128"}},{"$f":"'IV. Country level, 1310-2018'!D443","v":{"v":0.8423404255319169,"d":"0.842"}},{"$nulls":5},{"v":4.833333333333332,"d":"4.833"},{"v":-1.9513501016472277,"d":"-1.951"},{"v":6.784683434980559,"d":"6.785"},{"$f":"'VIII. Pers. sov. loans, 1312-'!C442","v":{"v":7,"d":"7.000"}}]
[1750,null,{"v":4.4066085284319865,"d":"4.407"},{"v":0.7279490116070351,"d":"0.728"},{"v":3.678659516824951,"d":"3.679"},{"v":3.1145074244450837,"d":"3.115"},{"v":1.4488067115927663,"d":"1.449"},{"v":1.6657007128523174,"d":"1.666"},null,null,{"$f":"SUM('IV. Country level, 1310-2018'!AO444:AV444)","v":{"v":4.234008560856582,"d":"4.234"}},{"$f":"SUM('IV. Country level, 1310-2018'!AY444:BF444)","v":{"v":2.1976218926797277,"d":"2.1976"}},{"v":2.036386668176854,"d":"2.036"},{"v":3,"d":"3.000"},{"$f":"'IV. Country level, 1310-2018'!V444","v":{"v":-1.0416666666666714,"d":"-1.042"}},{"$f":"'IV. Country level, 1310-2018'!D444","v":{"v":4.041666666666671,"d":"4.042"}},{"$nulls":5},{"v":3.25,"d":"3.250"},{"v":-3.6239229396495958,"d":"-3.624"},{"v":6.873922939649596,"d":"6.874"},{"$f":"'VIII. Pers. sov. loans, 1312-'!C443","v":{"v":7,"d":"7.000"}}]
[1751,null,{"v":4.267455105522636,"d":"4.267"},{"v":0.2475672369263297,"d":"0.248"},{"v":4.019887868596307,"d":"4.020"},{"v":3.0057500619130555,"d":"3.006"},{"v":1.7354201768057607,"d":"1.735"},{"v":1.2703298851072955,"d":"1.270"},null,null,{"$f":"SUM('IV. Country level, 1310-2018'!AO445:AV445)","v":{"v":4.277205569437389,"d":"4.277"}},{"$f":"SUM('IV. Country level, 1310-2018'!AY445:BF445)","v":{"v":0.7318043131312044,"d":"0.7318"}},{"v":3.5454012563061847,"d":"3.545"},{"v":3.03,"d":"3.030"},{"$f":"'IV. Country level, 1310-2018'!V445","v":{"v":2.631578947368425,"d":"2.632"}},{"$f":"'IV. Country level, 1310-2018'!D445","v":{"v":0.398421052631575,"d":"0.398"}},{"$nulls":5},{"v":4,"d":"4.000"},{"v":-2.596356632825234,"d":"-2.596"},{"v":6.596356632825234,"d":"6.596"},{"$f":"'VIII. Pers. sov. loans, 1312-'!C444","v":6.375}]
[1752,null,{"v":4.18279248499546,"d":"4.183"},{"v":-0.6498296062977517,"d":"-0.650"},{"v":4.832622091293212,"d":"4.833"},{"v":2.96633123561638,"d":"2.966"},{"v":0.39503216975108607,"d":"0.395"},{"v":2.571299065865294,"d":"2.571"},null,null,{"$f":"SUM('IV. Country level, 1310-2018'!AO446:AV446)","v":{"v":4.200342364347107,"d":"4.200"}},{"$f":"SUM('IV. Country level, 1310-2018'!AY446:BF446)","v":{"v":2.3918314031994443,"d":"2.3918"}},{"v":1.8085109611476629,"d":"1.809"},{"v":2.8599999999999994,"d":"2.860"},{"$f":"'IV. Country level, 1310-2018'!V446","v":{"v":6.410256410256437,"d":"6.410"}},{"$f":"'IV. Country level, 1310-2018'!D446","v":{"v":-3.550256410256438,"d":"-3.550"}},{"$nulls":5},{"v":4.5,"d":"4.500"},{"v":2.356276414854263,"d":"2.356"},{"v":2.143723585145737,"d":"2.144"},{"$f":"'VIII. Pers. sov. loans, 1312-'!C445","v":{"v":5.75,"d":"5.750"}}]
[1753,null,{"v":4.1484826167198525,"d":"4.148"},{"v":0.2727135412233493,"d":"0.273"},{"v":3.875769075496504,"d":"3.876"},{"v":3.0227095685836867,"d":"3.023"},{"v":1.2042533437139034,"d":"1.204"},{"v":1.8184562248697833,"d":"1.818"},null,null,{"$f":"SUM('IV. Country level, 1310-2018'!AO447:AV447)","v":{"v":4.035426626989795,"d":"4.035"}},{"$f":"SUM('IV. Country level, 1310-2018'!AY447:BF447)","v":{"v":-4.220615970112935,"d":"-4.2206"}},{"v":8.25604259710273,"d":"8.256"},{"v":2.8715519711155864,"d":"2.872"},{"$f":"'IV. Country level, 1310-2018'!V447","v":{"v":-1.2048192771084416,"d":"-1.205"}},{"$f":"'IV. Country level, 1310-2018'!D447","v":{"v":4.076371248224028,"d":"4.076"}},{"$nulls":5},{"v":5,"d":"5.000"},{"v":2.544920062798292,"d":"2.545"},{"v":2.455079937201708,"d":"2.455"},{"$f":"'VIII. Pers. sov. loans, 1312-'!C446","v":5.125}]
[1754,null,{"v":4.19871812849435,"d":"4.199"},{"v":1.5661938692278727,"d":"1.566"},{"v":2.6325242592664764,"d":"2.633"},{"v":3.0718775246769874,"d":"3.072"},{"v":5.311754778022567,"d":"5.312"},{"v":-2.2398772533455795,"d":"-2.240"},null,null,{"$f":"SUM('IV. Country level, 1310-2018'!AO448:AV448)","v":{"v":4.004523984567927,"d":"4.005"}},{"$f":"SUM('IV. Country level, 1310-2018'!AY448:BF448)","v":{"v":-2.1518029317235055,"d":"-2.1518"}},{"v":6.156326916291432,"d":"6.156"},{"v":2.8986984622758065,"d":"2.899"},{"$f":"'IV. Country level, 1310-2018'!V448","v":{"v":-1.2195121951219505,"d":"-1.220"}},{"$f":"'IV. Country level, 1310-2018'!D448","v":{"v":4.118210657397757,"d":"4.118"}},{"$nulls":5},{"v":4.75,"d":"4.750"},{"v":-0.3924198889283427,"d":"-0.392"},{"v":5.142419888928343,"d":"5.142"},{"$f":"'VIII. Pers. sov. loans, 1312-'!C447","v":{"v":4.5,"d":"4.500"}}]
[1755,null,{"v":4.244153588344596,"d":"4.244"},{"v":1.4694464481814742,"d":"1.469"},{"v":2.774707140163121,"d":"2.775"},{"v":3.1030178065385647,"d":"3.103"},{"v":4.12718959147128,"d":"4.127"},{"v":-1.0241717849327157,"d":"-1.024"},null,null,{"$f":"SUM('IV. Country level, 1310-2018'!AO449:AV449)","v":{"v":4.151602968234203,"d":"4.152"}},{"$f":"SUM('IV. Country level, 1310-2018'!AY449:BF449)","v":{"v":-1.7555594815009132,"d":"-1.7556"}},{"v":5.907162449735116,"d":"5.907"},{"v":3.1340682159232696,"d":"3.134"},{"$f":"'IV. Country level, 1310-2018'!V449","v":{"v":-4.938271604938279,"d":"-4.938"}},{"$f":"'IV. Country level, 1310-2018'!D449","v":{"v":8.072339820861549,"d":"8.072"}},{"$nulls":5},{"v":4.5,"d":"4.500"},{"v":2.2629259967562105,"d":"2.263"},{"v":2.2370740032437895,"d":"2.237"},{"$f":"'VIII. Pers. sov. loans, 1312-'!C448","v":{"v":4.75,"d":"4.750"}}]
[1756,null,{"v":4.314748989970493,"d":"4.315"},{"v":0.8054552897380833,"d":"0.805"},{"v":3.50929370023241,"d":"3.509"},{"v":3.21307078566783,"d":"3.213"},{"v":1.3542958185775038,"d":"1.354"},{"v":1.858774967090326,"d":"1.859"},null,null,{"$f":"SUM('IV. Country level, 1310-2018'!AO450:AV450)","v":{"v":4.1362682426059685,"d":"4.136"}},{"$f":"SUM('IV. Country level, 1310-2018'!AY450:BF450)","v":{"v":4.715715562890423,"d":"4.7157"}},{"v":-0.5794473202844541,"d":"-0.579"},{"v":3.3646483307711463,"d":"3.365"},{"$f":"'IV. Country level, 1310-2018'!V450","v":{"v":7.792207792207805,"d":"7.792"}},{"$f":"'IV. Country level, 1310-2018'!D450","v":{"v":-4.427559461436658,"d":"-4.428"}},{"$nulls":5},{"v":4.25,"d":"4.250"},{"v":8.011811691218792,"d":"8.012"},{"v":-3.761811691218792,"d":"-3.762"},{"$f":"'VIII. Pers. sov. loans, 1312-'!C449","v":{"v":4.75,"d":"4.750"}}]
[1757,null,{"v":4.4434753143988415,"d":"4.443"},{"v":1.0223684301410376,"d":"1.022"},{"v":3.421106884257804,"d":"3.421"},{"v":3.3285714428696695,"d":"3.329"},{"v":0.37698757080810147,"d":"0.377"},{"v":2.951583872061568,"d":"2.952"},null,null,{"$f":"SUM('IV. Country level, 1310-2018'!AO451:AV451)","v":{"v":4.585657143278057,"d":"4.586"}},{"$f":"SUM('IV. Country level, 1310-2018'!AY451:BF451)","v":{"v":11.251984188711392,"d":"11.2520"}},{"v":-6.666327045433334,"d":"-6.666"},{"v":3.3441756926531028,"d":"3.344"},{"$f":"'IV. Country level, 1310-2018'!V451","v":{"v":27.710843373493972,"d":"27.711"}},{"$f":"'IV. Country level, 1310-2018'!D451","v":{"v":-24.36666768084087,"d":"-24.367"}},{"$nulls":5},{"v":4,"d":"4.000"},{"v":-2.402704171039301,"d":"-2.403"},{"v":6.402704171039301,"d":"6.403"},{"$f":"'VIII. Pers. sov. loans, 1312-'!C450","v":{"v":4.75,"d":"4.750"}}]
[1758,null,{"v":4.538466123317187,"d":"4.538"},{"v":1.246528771041173,"d":"1.247"},{"v":3.291937352276014,"d":"3.292"},{"v":3.474470577862398,"d":"3.474"},{"v":0.3726321701112373,"d":"0.373"},{"v":3.101838407751162,"d":"3.102"},null,null,{"$f":"SUM('IV. Country level, 1310-2018'!AO452:AV452)","v":{"v":4.595253788389112,"d":"4.595"}},{"$f":"SUM('IV. Country level, 1310-2018'!AY452:BF452)","v":{"v":0.054572365806416334,"d":"0.0546"}},{"v":4.540681422582695,"d":"4.541"},{"v":3.2479819730310453,"d":"3.248"},{"$f":"'IV. Country level, 1310-2018'!V452","v":{"v":-5.660377358490578,"d":"-5.660"}},{"$f":"'IV. Country level, 1310-2018'!D452","v":{"v":8.908359331521623,"d":"8.908"}},{"$nulls":5},{"v":4,"d":"4.000"},{"v":8.755194315960619,"d":"8.755"},{"v":-4.755194315960619,"d":"-4.755"},{"$f":"'VIII. Pers. sov. loans, 1312-'!C451","v":{"v":4.75,"d":"4.750"}}]
[1759,null,{"v":4.611298741973762,"d":"4.611"},{"v":1.7029299873000208,"d":"1.703"},{"v":2.9083687546737416,"d":"2.908"},{"v":3.594183177298721,"d":"3.594"},{"v":1.620595021449619,"d":"1.621"},{"v":1.9735881558491022,"d":"1.974"},null,null,{"$f":"SUM('IV. Country level, 1310-2018'!AO453:AV453)","v":{"v":4.694510175728389,"d":"4.695"}},{"$f":"SUM('IV. Country level, 1310-2018'!AY453:BF453)","v":{"v":-2.256106705904294,"d":"-2.2561"}},{"v":6.950616881632683,"d":"6.951"},{"v":3.6303708539048536,"d":"3.630"},{"$f":"'IV. Country level, 1310-2018'!V453","v":{"v":-13,"d":"-13.000"}},{"$f":"'IV. Country level, 1310-2018'!D453","v":{"v":16.630370853904854,"d":"16.630"}},{"$nulls":5},{"v":4,"d":"4.000"},{"v":-7.6690702652059795,"d":"-7.669"},{"v":11.66907026520598,"d":"11.669"},{"$f":"'VIII. Pers. sov. loans, 1312-'!C452","v":{"v":4.75,"d":"4.750"}}]
[1760,null,{"v":4.635946039780762,"d":"4.636"},{"v":1.082869249608174,"d":"1.083"},{"v":3.5530767901725886,"d":"3.553"},{"v":3.5934429111801696,"d":"3.593"},{"v":0.8558545354547756,"d":"0.856"},{"v":2.737588375725394,"d":"2.738"},null,null,{"$f":"SUM('IV. Country level, 1310-2018'!AO454:AV454)","v":{"v":4.936510897988238,"d":"4.937"}},{"$f":"SUM('IV. Country level, 1310-2018'!AY454:BF454)","v":{"v":-2.702223987292255,"d":"-2.7022"}},{"v":7.638734885280493,"d":"7.639"},{"v":3.6800565715284623,"d":"3.680"},{"$f":"'IV. Country level, 1310-2018'!V454","v":{"v":-8.045977011494259,"d":"-8.046"}},{"$f":"'IV. Country level, 1310-2018'!D454","v":{"v":11.726033583022721,"d":"11.726"}},{"$nulls":5},{"v":4,"d":"4.000"},{"v":8.89734197069781,"d":"8.897"},{"v":-4.897341970697809,"d":"-4.897"},{"$f":"'VIII. Pers. sov. loans, 1312-'!C453","v":{"v":4.75,"d":"4.750"}}]
[1761,null,{"v":4.6418298246464404,"d":"4.642"},{"v":0.2804079803971607,"d":"0.280"},{"v":4.361421844249279,"d":"4.361"},{"v":3.619331325093953,"d":"3.619"},{"v":-1.742293157357287,"d":"-1.742"},{"v":5.361624482451241,"d":"5.362"},null,null,{"$f":"SUM('IV. Country level, 1310-2018'!AO455:AV455)","v":{"v":4.66945964699634,"d":"4.669"}},{"$f":"SUM('IV. Country level, 1310-2018'!AY455:BF455)","v":{"v":-0.5826805454225592,"d":"-0.5827"}},{"v":5.252140192418899,"d":"5.252"},{"v":3.919992407224912,"d":"3.920"},{"$f":"'IV. Country level, 1310-2018'!V455","v":{"v":-1.25,"d":"-1.250"}},{"$f":"'IV. Country level, 1310-2018'!D455","v":{"v":5.169992407224912,"d":"5.170"}},{"$nulls":5},{"v":4,"d":"4.000"},{"v":15.983993803435473,"d":"15.984"},{"v":-11.983993803435473,"d":"-11.984"},{"$f":"'VIII. Pers. sov. loans, 1312-'!C454","v":{"v":5,"d":"5.000"}}]
[1762,null,{"v":4.594778226657378,"d":"4.595"},{"v":0.7183696319323261,"d":"0.718"},{"v":3.876408594725052,"d":"3.876"},{"v":3.6364787484938477,"d":"3.636"},{"v":-0.15727030490210886,"d":"-0.157"},{"v":3.793749053395957,"d":"3.794"},null,null,{"$f":"SUM('IV. Country level, 1310-2018'!AO456:AV456)","v":{"v":4.661431298830233,"d":"4.661"}},{"$f":"SUM('IV. Country level, 1310-2018'!AY456:BF456)","v":{"v":1.4392490323110254,"d":"1.4392"}},{"v":3.2221822665192077,"d":"3.222"},{"v":3.972056411977526,"d":"3.972"},{"$f":"'IV. Country level, 1310-2018'!V456","v":{"v":3.797468354430393,"d":"3.797"}},{"$f":"'IV. Country level, 1310-2018'!D456","v":{"v":0.17458805754713325,"d":"0.175"}},{"$nulls":5},{"v":4,"d":"4.000"},{"v":0.9364312446916163,"d":"0.936"},{"v":3.063568755308384,"d":"3.064"},{"$f":"'VIII. Pers. sov. loans, 1312-'!C455","v":{"v":4.9772727272727275,"d":"4.977"}}]
[1763,null,{"v":4.577399314453032,"d":"4.577"},{"v":1.2001194621800466,"d":"1.200"},{"v":3.377279852272985,"d":"3.377"},{"v":3.597408542708765,"d":"3.597"},{"v":1.6998725522407483,"d":"1.700"},{"v":1.8975359904680165,"d":"1.898"},null,null,{"$f":"SUM('IV. Country level, 1310-2018'!AO457:AV457)","v":{"v":4.308799327254967,"d":"4.309"}},{"$f":"SUM('IV. Country level, 1310-2018'!AY457:BF457)","v":{"v":0.3752903990474933,"d":"0.3753"}},{"$f":"K461-L461","v":{"v":3.9335089282074733,"d":"3.934"}},{"v":3.3594664679412864,"d":"3.359"},{"$f":"'IV. Country level, 1310-2018'!V457","v":{"v":2.439024390243901,"d":"2.439"}},{"$f":"'IV. Country level, 1310-2018'!D457","v":{"v":0.9204420776973854,"d":"0.920"}},{"$nulls":5},{"v":4,"d":"4.000"},{"v":-14.307838854630022,"d":"-14.308"},{"v":18.30783885463002,"d":"18.308"},{"$f":"'VIII. Pers. sov. loans, 1312-'!C456","v":{"v":4.954545454545455,"d":"4.955"}}]
[1764,null,{"v":4.493583474200194,"d":"4.494"},{"v":2.3817158288938094,"d":"2.382"},{"v":2.1118676453063854,"d":"2.112"},{"v":3.552534967749535,"d":"3.553"},{"v":5.058428914707529,"d":"5.058"},{"v":-1.5058939469579948,"d":"-1.506"},null,null,{"$f":"SUM('IV. Country level, 1310-2018'!AO458:AV458)","v":{"v":4.626843637337798,"d":"4.627"}},{"$f":"SUM('IV. Country level, 1310-2018'!AY458:BF458)","v":{"v":5.634755304234298,"d":"5.6348"}},{"v":-1.0079116668965007,"d":"-1.008"},{"v":3.5253945900495864,"d":"3.525"},{"$f":"'IV. Country level, 1310-2018'!V458","v":{"v":9.523809523809533,"d":"9.524"}},{"$f":"'IV. Country level, 1310-2018'!D458","v":{"v":-5.998414933759946,"d":"-5.998"}},{"$nulls":5},{"v":4,"d":"4.000"},{"v":-1.1667036260391632,"d":"-1.167"},{"v":5.166703626039164,"d":"5.167"},{"$f":"'VIII. Pers. sov. loans, 1312-'!C457","v":{"v":4.9318181818181825,"d":"4.932"}}]
[1765,null,{"v":4.431912869040446,"d":"4.432"},{"v":2.661989897360317,"d":"2.662"},{"v":1.7699229716801288,"d":"1.770"},{"v":3.46367266223103,"d":"3.464"},{"v":4.854347282054468,"d":"4.854"},{"v":-1.3906746198234388,"d":"-1.391"},null,null,{"$f":"SUM('IV. Country level, 1310-2018'!AO459:AV459)","v":{"v":4.26589260246568,"d":"4.266"}},{"$f":"SUM('IV. Country level, 1310-2018'!AY459:BF459)","v":{"v":3.120303926552574,"d":"3.1203"}},{"v":1.145588675913106,"d":"1.146"},{"v":3.3680139368303075,"d":"3.368"},{"$f":"'IV. Country level, 1310-2018'!V459","v":{"v":5.43478260869567,"d":"5.435"}},{"$f":"'IV. Country level, 1310-2018'!D459","v":{"v":-2.0667686718653626,"d":"-2.067"}},{"$nulls":5},{"v":3.5000000000000004,"d":"3.500"},{"v":-2.9160186710931213,"d":"-2.916"},{"v":6.416018671093122,"d":"6.416"},{"$f":"'VIII. Pers. sov. loans, 1312-'!C458","v":{"v":4.90909090909091,"d":"4.909"}}]
[1766,null,{"$f":"AVERAGE(K461:K467)","v":{"v":4.442343694075786,"d":"4.442"}},{"$f":"AVERAGE(L461:L467)","v":{"v":1.849528490730228,"d":"1.850"}},{"$f":"AVERAGE(M461:M467)","v":{"v":2.592815203345558,"d":"2.593"}},{"$f":"AVERAGE(N461:N467)","v":{"v":3.38122533543756,"d":"3.381"}},{"$f":"AVERAGE(O461:O467)","v":{"v":2.345927818577518,"d":"2.346"}},{"$f":"AVERAGE(P461:P467)","v":{"v":1.0352975168600422,"d":"1.035"}},null,null,{"$f":"SUM('IV. Country level, 1310-2018'!AO460:AV460)","v":{"v":4.5728577902979675,"d":"4.573"}},{"$f":"SUM('IV. Country level, 1310-2018'!AY460:BF460)","v":{"v":1.1161421058297503,"d":"1.1161"}},{"v":3.456715684468217,"d":"3.457"},{"v":3.356879413409274,"d":"3.357"},{"$f":"'IV. Country level, 1310-2018'!V460","v":{"v":0,"d":"0.000"}},{"$f":"'IV. Country level, 1310-2018'!D460","v":{"v":3.356879413409274,"d":"3.357"}},{"$nulls":5},{"v":3,"d":"3.000"},{"v":-4.372800752072759,"d":"-4.373"},{"v":7.372800752072759,"d":"7.373"},{"$f":"'VIII. Pers. sov. loans, 1312-'!C459","v":{"v":4.886363636363638,"d":"4.886"}}]
[1767,null,{"v":4.5820778370583595,"d":"4.582"},{"v":2.6969952188891604,"d":"2.697"},{"v":1.8850826181692,"d":"1.885"},{"v":3.4180291372586304,"d":"3.418"},{"v":2.6053984983906986,"d":"2.605"},{"v":0.8126306388679314,"d":"0.813"},null,null,{"$f":"SUM('IV. Country level, 1310-2018'!AO461:AV461)","v":{"v":4.3498000162183725,"d":"4.350"}},{"$f":"SUM('IV. Country level, 1310-2018'!AY461:BF461)","v":{"v":5.568950579704082,"d":"5.5690"}},{"v":-1.2191505634857096,"d":"-1.219"},{"v":3.3659415468138523,"d":"3.366"},{"$f":"'IV. Country level, 1310-2018'!V461","v":{"v":15.463917525773212,"d":"15.464"}},{"$f":"'IV. Country level, 1310-2018'!D461","v":{"v":-12.09797597895936,"d":"-12.098"}},{"$nulls":5},{"v":5,"d":"5.000"},{"v":6.158246693465332,"d":"6.158"},{"v":-1.1582466934653324,"d":"-1.158"},{"$f":"'VIII. Pers. sov. loans, 1312-'!C460","v":{"v":4.863636363636365,"d":"4.864"}}]
[1768,null,{"v":4.665968372700005,"d":"4.666"},{"v":2.811579134032555,"d":"2.812"},{"v":1.8543892386674503,"d":"1.854"},{"v":3.4058807643052083,"d":"3.406"},{"v":2.0970389723677068,"d":"2.097"},{"v":1.3088417919375008,"d":"1.309"},null,null,{"$f":"SUM('IV. Country level, 1310-2018'!AO462:AV462)","v":{"v":4.2377654108781,"d":"4.238"}},{"$f":"SUM('IV. Country level, 1310-2018'!AY462:BF462)","v":{"v":1.3792379338429939,"d":"1.3792"}},{"v":2.858527477035106,"d":"2.859"},{"v":3.2979562685953745,"d":"3.298"},{"$f":"'IV. Country level, 1310-2018'!V462","v":{"v":-2.6785714285714306,"d":"-2.679"}},{"$f":"'IV. Country level, 1310-2018'!D462","v":{"v":5.976527697166805,"d":"5.977"}},{"$nulls":5},{"v":4.833333333333334,"d":"4.833"},{"v":-2.3989967392654363,"d":"-2.399"},{"v":7.232330072598771,"d":"7.232"},{"$f":"'VIII. Pers. sov. loans, 1312-'!C461","v":{"v":4.840909090909093,"d":"4.841"}}]
[1769,null,{"v":4.810171255344386,"d":"4.810"},{"v":2.3478242374146907,"d":"2.348"},{"v":2.462347017929695,"d":"2.462"},{"v":3.4089117036375987,"d":"3.409"},{"v":2.007876432713419,"d":"2.008"},{"v":1.4010352709241796,"d":"1.401"},null,null,{"$f":"SUM('IV. Country level, 1310-2018'!AO463:AV463)","v":{"v":4.734447074077618,"d":"4.734"}},{"$f":"SUM('IV. Country level, 1310-2018'!AY463:BF463)","v":{"v":-4.247980814099594,"d":"-4.2480"}},{"v":8.982427888177213,"d":"8.982"},{"v":3.3949251244232386,"d":"3.395"},{"$f":"'IV. Country level, 1310-2018'!V463","v":{"v":-13.76146788990826,"d":"-13.761"}},{"$f":"'IV. Country level, 1310-2018'!D463","v":{"v":17.1563930143315,"d":"17.156"}},{"$nulls":5},{"v":4.666666666666668,"d":"4.667"},{"v":-0.7239505317532081,"d":"-0.724"},{"v":5.390617198419876,"d":"5.391"},{"$f":"'VIII. Pers. sov. loans, 1312-'!C462","v":{"v":4.81818181818182,"d":"4.818"}}]
[1770,null,{"v":4.853565998789443,"d":"4.854"},{"v":1.6704930832549947,"d":"1.670"},{"v":3.183072915534449,"d":"3.183"},{"v":3.4231779999952967,"d":"3.423"},{"v":2.0636800041419883,"d":"2.064"},{"v":1.3594979958533084,"d":"1.359"},null,null,{"$f":"SUM('IV. Country level, 1310-2018'!AO464:AV464)","v":{"v":5.286938328132986,"d":"5.287"}},{"$f":"SUM('IV. Country level, 1310-2018'!AY464:BF464)","v":{"v":6.307557496160019,"d":"6.3076"}},{"v":-1.0206191680270331,"d":"-1.021"},{"v":3.6170930806887776,"d":"3.617"},{"$f":"'IV. Country level, 1310-2018'!V464","v":{"v":4.255319148936167,"d":"4.255"}},{"$f":"'IV. Country level, 1310-2018'!D464","v":{"v":-0.638226068247389,"d":"-0.638"}},{"$nulls":5},{"v":4.500000000000001,"d":"4.500"},{"v":25.256428840174944,"d":"25.256"},{"v":-20.756428840174944,"d":"-20.756"},{"$f":"'VIII. Pers. sov. loans, 1312-'!C463","v":{"v":4.795454545454548,"d":"4.795"}}]
[1771,null,{"v":4.89268682412748,"d":"4.893"},{"v":1.0639165977813583,"d":"1.064"},{"v":3.828770226346122,"d":"3.829"},{"v":3.4273804535535843,"d":"3.427"},{"v":-0.3539002093786995,"d":"-0.354"},{"v":3.7812806629322844,"d":"3.781"},null,null,{"$f":"SUM('IV. Country level, 1310-2018'!AO465:AV465)","v":{"v":5.21407738682931,"d":"5.214"}},{"$f":"SUM('IV. Country level, 1310-2018'!AY465:BF465)","v":{"v":6.436842710238057,"d":"6.4368"}},{"v":-1.2227653234087468,"d":"-1.223"},{"v":3.44035597937563,"d":"3.440"},{"$f":"'IV. Country level, 1310-2018'!V465","v":{"v":5.965292841648591,"d":"5.965"}},{"$f":"'IV. Country level, 1310-2018'!D465","v":{"v":-2.5249368622729604,"d":"-2.525"}},{"$nulls":5},{"v":4.333333333333335,"d":"4.333"},{"v":9.70755716802028,"d":"9.708"},{"v":-5.374223834686945,"d":"-5.374"},{"$f":"'VIII. Pers. sov. loans, 1312-'!C464","v":{"v":4.772727272727275,"d":"4.773"}}]
[1772,null,{"v":4.904869646572047,"d":"4.905"},{"v":0.8723483551330642,"d":"0.872"},{"v":4.032521291438984,"d":"4.033"},{"v":3.4392268148201417,"d":"3.439"},{"v":-0.09816859787921269,"d":"-0.098"},{"v":3.5373954126993543,"d":"3.537"},null,null,{"$f":"SUM('IV. Country level, 1310-2018'!AO466:AV466)","v":{"v":5.275312780976344,"d":"5.275"}},{"$f":"SUM('IV. Country level, 1310-2018'!AY466:BF466)","v":{"v":-0.12598034977247408,"d":"-0.1260"}},{"v":5.401293130748818,"d":"5.401"},{"v":3.3892305121570416,"d":"3.389"},{"$f":"'IV. Country level, 1310-2018'!V466","v":{"v":4.810644831115653,"d":"4.811"}},{"$f":"'IV. Country level, 1310-2018'!D466","v":{"v":-1.421414318958611,"d":"-1.421"}},{"$nulls":5},{"v":4.166666666666669,"d":"4.167"},{"v":-12.905837061366752,"d":"-12.906"},{"v":17.07250372803342,"d":"17.073"},{"$f":"'VIII. Pers. sov. loans, 1312-'!C465","v":{"v":4.75,"d":"4.750"}}]
[1773,null,{"v":4.8421649997496505,"d":"4.842"},{"v":0.8501735491696031,"d":"0.850"},{"v":3.991991450580048,"d":"3.992"},{"v":3.4629926653357352,"d":"3.463"},{"v":0.9571122446745578,"d":"0.957"},{"v":2.5058804206611773,"d":"2.506"},null,null,{"$f":"SUM('IV. Country level, 1310-2018'!AO467:AV467)","v":{"v":4.876620994413375,"d":"4.877"}},{"$f":"SUM('IV. Country level, 1310-2018'!AY467:BF467)","v":{"v":-3.62517597328812,"d":"-3.6252"}},{"v":8.501796967701495,"d":"8.502"},{"v":3.4567434879131618,"d":"3.457"},{"$f":"'IV. Country level, 1310-2018'!V467","v":{"v":0.3906249999999858,"d":"0.391"}},{"$f":"'IV. Country level, 1310-2018'!D467","v":{"v":3.066118487913176,"d":"3.066"}},{"$nulls":5},{"v":4,"d":"4.000"},{"v":-14.961195067420396,"d":"-14.961"},{"v":18.961195067420398,"d":"18.961"},{"$f":"'VIII. Pers. sov. loans, 1312-'!C466","v":{"v":4.75,"d":"4.750"}}]
[1774,null,{"v":4.732021068635759,"d":"4.732"},{"v":0.7163470246494963,"d":"0.716"},{"v":4.015674043986264,"d":"4.016"},{"v":3.4930560314396653,"d":"3.493"},{"v":0.9723098130636133,"d":"0.972"},{"v":2.5207462183760527,"d":"2.521"},null,null,{"$f":"SUM('IV. Country level, 1310-2018'!AO468:AV468)","v":{"v":4.623645793584627,"d":"4.624"}},{"$f":"SUM('IV. Country level, 1310-2018'!AY468:BF468)","v":{"v":1.322915181388627,"d":"1.3229"}},{"v":3.3007306121960003,"d":"3.301"},{"v":3.395358721721866,"d":"3.395"},{"$f":"'IV. Country level, 1310-2018'!V468","v":{"v":-1.4591439688716008,"d":"-1.459"}},{"$f":"'IV. Country level, 1310-2018'!D468","v":{"v":4.854502690593467,"d":"4.855"}},{"$nulls":5},{"v":3.9375,"d":"3.938"},{"v":-5.281528004955166,"d":"-5.282"},{"v":9.219028004955167,"d":"9.219"},{"$f":"'VIII. Pers. sov. loans, 1312-'!C467","v":{"v":4.75,"d":"4.750"}}]
[1775,null,{"v":4.69971783037076,"d":"4.700"},{"v":0.1344778039894903,"d":"0.134"},{"v":4.56524002638127,"d":"4.565"},{"v":3.675119199444429,"d":"3.675"},{"v":0.3385611196520415,"d":"0.339"},{"v":3.3365580797923875,"d":"3.337"},null,null,{"$f":"SUM('IV. Country level, 1310-2018'!AO469:AV469)","v":{"v":4.323045167990076,"d":"4.323"}},{"$f":"SUM('IV. Country level, 1310-2018'!AY469:BF469)","v":{"v":0.03826023530493594,"d":"0.0383"}},{"v":4.28478493268514,"d":"4.285"},{"v":3.380880797461276,"d":"3.381"},{"$f":"'IV. Country level, 1310-2018'!V469","v":{"v":-0.8884501480750231,"d":"-0.888"}},{"$f":"'IV. Country level, 1310-2018'!D469","v":{"v":4.269330945536299,"d":"4.269"}},{"$nulls":5},3.875,{"v":0.5285168638309838,"d":"0.529"},{"$f":"V473-W473","v":{"v":3.346483136169016,"d":"3.346"}},{"$f":"'VIII. Pers. sov. loans, 1312-'!C468","v":{"v":4.194443333333333,"d":"4.194"}}]
[1776,null,{"v":4.6601953076362586,"d":"4.660"},{"v":-0.8304543197475951,"d":"-0.830"},{"v":5.4906496273838545,"d":"5.491"},{"v":3.888395490416393,"d":"3.888"},{"v":-1.080171274466029,"d":"-1.080"},{"v":4.968566764882422,"d":"4.969"},null,null,{"$f":"SUM('IV. Country level, 1310-2018'!AO470:AV470)","v":{"v":4.295514546320838,"d":"4.296"}},{"$f":"SUM('IV. Country level, 1310-2018'!AY470:BF470)","v":{"v":-4.403204455843822,"d":"-4.4032"}},{"v":8.69871900216466,"d":"8.699"},{"$f":"P474+O474","v":{"v":3.561286078032392,"d":"3.561"}},{"$f":"'IV. Country level, 1310-2018'!V470","v":{"v":-6.374501992031867,"d":"-6.375"}},{"$f":"'IV. Country level, 1310-2018'!D470","v":{"v":9.935788070064259,"d":"9.936"}},{"$nulls":5},{"v":3.8125,"d":"3.813"},{"v":-2.2571223801033993,"d":"-2.257"},{"v":6.069622380103399,"d":"6.070"},{"$f":"'VIII. Pers. sov. loans, 1312-'!C469","v":{"v":4.2708325,"d":"4.271"}}]
[1777,null,{"v":4.657571638700223,"d":"4.658"},{"v":-0.506724913973226,"d":"-0.507"},{"v":5.1642965526734494,"d":"5.164"},{"v":4.09427472963184,"d":"4.094"},{"v":-0.9848032661515914,"d":"-0.985"},{"v":5.079077995783431,"d":"5.079"},null,null,{"$f":"SUM('IV. Country level, 1310-2018'!AO471:AV471)","v":{"v":4.515930810335748,"d":"4.516"}},{"$f":"SUM('IV. Country level, 1310-2018'!AY471:BF471)","v":{"v":5.37077182451927,"d":"5.3708"}},{"v":-0.8548410141835223,"d":"-0.855"},{"v":3.8275366434162925,"d":"3.828"},{"$f":"'IV. Country level, 1310-2018'!V471","v":{"v":4.361702127659555,"d":"4.362"}},{"$f":"'IV. Country level, 1310-2018'!D471","v":{"v":-0.5341654842432626,"d":"-0.534"}},{"$nulls":5},{"v":3.75,"d":"3.750"},{"v":5.643881424634534,"d":"5.644"},{"v":-1.8938814246345341,"d":"-1.894"},{"$f":"'VIII. Pers. sov. loans, 1312-'!C470","v":{"v":4.2708325,"d":"4.271"}}]
[1778,null,{"v":4.70309201349235,"d":"4.703"},{"v":0.22628516638343626,"d":"0.226"},{"v":4.476806847108913,"d":"4.477"},{"v":4.341141797966015,"d":"4.341"},{"v":0.6297790061404649,"d":"0.630"},{"v":3.7113627918255507,"d":"3.711"},null,null,{"$f":"SUM('IV. Country level, 1310-2018'!AO472:AV472)","v":{"v":4.987954718974312,"d":"4.988"}},{"$f":"SUM('IV. Country level, 1310-2018'!AY472:BF472)","v":{"v":2.3637581656180155,"d":"2.3638"}},{"v":2.6241965533562968,"d":"2.624"},{"v":4.714798155408974,"d":"4.715"},{"$f":"'IV. Country level, 1310-2018'!V472","v":{"v":1.5290519877675877,"d":"1.529"}},{"$f":"'IV. Country level, 1310-2018'!D472","v":{"v":3.185746167641386,"d":"3.186"}},{"$nulls":5},{"v":3.6875,"d":"3.688"},{"v":-0.4856538994236967,"d":"-0.486"},{"v":4.1731538994236965,"d":"4.173"},{"$f":"'VIII. Pers. sov. loans, 1312-'!C471","v":{"v":4.216666,"d":"4.217"}}]
[1779,null,{"v":4.8642434008024,"d":"4.864"},{"v":0.4388371608274156,"d":"0.439"},{"v":4.4254062399749845,"d":"4.425"},{"v":4.594459046030229,"d":"4.594"},{"v":0.8520293405175181,"d":"0.852"},{"v":3.7424297055127105,"d":"3.742"},null,null,{"$f":"SUM('IV. Country level, 1310-2018'!AO473:AV473)","v":{"v":4.998655121834842,"d":"4.999"}},{"$f":"SUM('IV. Country level, 1310-2018'!AY473:BF473)","v":{"v":-6.8805052159320725,"d":"-6.8805"}},{"v":11.879160337766915,"d":"11.879"},{"v":4.882164548960789,"d":"4.882"},{"$f":"'IV. Country level, 1310-2018'!V473","v":{"v":-5.120481927710841,"d":"-5.120"}},{"$f":"'IV. Country level, 1310-2018'!D473","v":{"v":10.00264647667163,"d":"10.003"}},{"$nulls":5},{"v":3.6249999999999996,"d":"3.625"},{"v":-1.7830828954088667,"d":"-1.783"},{"v":5.408082895408866,"d":"5.408"},{"$f":"'VIII. Pers. sov. loans, 1312-'!C472","v":{"v":4.266666,"d":"4.267"}}]
[1780,null,{"v":4.974343111438365,"d":"4.974"},{"v":1.0895257801962692,"d":"1.090"},{"v":3.884817331242097,"d":"3.885"},{"v":4.759478606862721,"d":"4.759"},{"v":1.8032568978207715,"d":"1.803"},{"v":2.956221709041949,"d":"2.956"},null,null,{"$f":"SUM('IV. Country level, 1310-2018'!AO474:AV474)","v":{"v":4.858255311861124,"d":"4.858"}},{"$f":"SUM('IV. Country level, 1310-2018'!AY474:BF474)","v":{"v":-1.3590701328675368,"d":"-1.3591"}},{"v":6.217325444728661,"d":"6.217"},{"v":4.897898162421285,"d":"4.898"},{"$f":"'IV. Country level, 1310-2018'!V474","v":{"v":1.0582010582010497,"d":"1.058"}},{"$f":"'IV. Country level, 1310-2018'!D474","v":{"v":3.8396971042202352,"d":"3.840"}},{"$nulls":5},{"v":3.5624999999999996,"d":"3.563"},{"v":0.012863442028314092,"d":"0.013"},{"v":3.5496365579716853,"d":"3.550"},{"$f":"'VIII. Pers. sov. loans, 1312-'!C473","v":{"v":4.388888333333333,"d":"4.389"}}]
[1781,null,{"v":5.042257239851125,"d":"5.042"},{"v":0.6795579681314122,"d":"0.680"},{"v":4.3626992717197135,"d":"4.363"},{"v":4.93824035841546,"d":"4.938"},{"v":0.4651963888242148,"d":"0.465"},{"v":4.473043969591245,"d":"4.473"},null,null,{"$f":"SUM('IV. Country level, 1310-2018'!AO475:AV475)","v":{"v":4.942288417129505,"d":"4.942"}},{"$f":"SUM('IV. Country level, 1310-2018'!AY475:BF475)","v":{"v":6.453985743885264,"d":"6.4540"}},{"v":-1.5116973267557592,"d":"-1.512"},{"v":5.123428200061102,"d":"5.123"},{"$f":"'IV. Country level, 1310-2018'!V475","v":{"v":9.842931937172793,"d":"9.843"}},{"$f":"'IV. Country level, 1310-2018'!D475","v":{"v":-4.719503737111691,"d":"-4.720"}},{"$nulls":5},{"v":3.5000000000000004,"d":"3.500"},{"v":5.518514801295527,"d":"5.519"},{"v":-2.018514801295527,"d":"-2.019"},{"$f":"'VIII. Pers. sov. loans, 1312-'!C474","v":{"v":4.3333328571428575,"d":"4.333"}}]
[1782,null,{"v":5.029807871674227,"d":"5.030"},{"v":-0.17352334059428287,"d":"-0.174"},{"v":5.203331212268511,"d":"5.203"},{"v":4.970751778456939,"d":"4.971"},{"v":-0.37806210303806764,"d":"-0.378"},{"v":5.348813881495007,"d":"5.349"},null,null,{"$f":"SUM('IV. Country level, 1310-2018'!AO476:AV476)","v":{"v":5.451104879160431,"d":"5.451"}},{"$f":"SUM('IV. Country level, 1310-2018'!AY476:BF476)","v":{"v":1.5261241964127907,"d":"1.5261"}},{"v":3.92498068274764,"d":"3.925"},{"v":5.154101533910766,"d":"5.154"},{"$f":"'IV. Country level, 1310-2018'!V476","v":{"v":0.6673021925643496,"d":"0.667"}},{"$f":"'IV. Country level, 1310-2018'!D476","v":{"v":4.4867993413464164,"d":"4.487"}},{"$nulls":5},{"v":3.416666666666667,"d":"3.417"},{"v":2.729300079749198,"d":"2.729"},{"v":0.6873665869174688,"d":"0.687"},{"$f":"'VIII. Pers. sov. loans, 1312-'!C475","v":{"v":4.5,"d":"4.500"}}]
[1783,null,{"v":5.248297036153091,"d":"5.248"},{"v":0.8056834091285561,"d":"0.806"},{"v":4.442613627024536,"d":"4.443"},{"v":4.855411922082216,"d":"4.855"},{"v":0.2643352261062485,"d":"0.264"},{"v":4.591076695975967,"d":"4.591"},null,null,{"$f":"SUM('IV. Country level, 1310-2018'!AO477:AV477)","v":{"v":5.066212520772596,"d":"5.066"}},{"$f":"SUM('IV. Country level, 1310-2018'!AY477:BF477)","v":{"v":0.15161587973815388,"d":"0.1516"}},{"v":4.914596641034442,"d":"4.915"},{"v":4.716423003859837,"d":"4.716"},{"$f":"'IV. Country level, 1310-2018'!V477","v":{"v":0.2840909090909065,"d":"0.284"}},{"$f":"'IV. Country level, 1310-2018'!D477","v":{"v":4.43233209476893,"d":"4.432"}},{"$nulls":5},{"v":3.333333333333334,"d":"3.333"},{"v":-4.175322454432497,"d":"-4.175"},{"v":7.508655787765831,"d":"7.509"},{"$f":"'VIII. Pers. sov. loans, 1312-'!C476","v":{"v":4.5,"d":"4.500"}}]
[1784,null,{"v":5.4122259020372505,"d":"5.412"},{"v":1.944407378161531,"d":"1.944"},{"v":3.46781852387572,"d":"3.468"},{"v":4.728885705547484,"d":"4.729"},{"v":0.36719831462385094,"d":"0.367"},{"v":4.361687390923634,"d":"4.362"},null,null,{"$f":"SUM('IV. Country level, 1310-2018'!AO478:AV478)","v":{"v":4.991329709225067,"d":"4.991"}},{"$f":"SUM('IV. Country level, 1310-2018'!AY478:BF478)","v":{"v":2.500997140065271,"d":"2.5010"}},{"v":2.4903325691597957,"d":"2.490"},{"v":5.078868904285468,"d":"5.079"},{"$f":"'IV. Country level, 1310-2018'!V478","v":{"v":-5.004721435316341,"d":"-5.005"}},{"$f":"'IV. Country level, 1310-2018'!D478","v":{"v":10.083590339601809,"d":"10.084"}},{"$nulls":5},{"v":3.25,"d":"3.250"},{"v":0.9641260697002407,"d":"0.964"},{"v":2.2858739302997595,"d":"2.286"},{"$f":"'VIII. Pers. sov. loans, 1312-'!C477","v":{"v":4.5,"d":"4.500"}}]
[1785,null,{"v":5.64478435669097,"d":"5.645"},{"v":1.0867728488170334,"d":"1.087"},{"v":4.558011507873936,"d":"4.558"},{"v":4.569090174561229,"d":"4.569"},{"v":-0.8187028415748188,"d":"-0.819"},{"v":5.387793016136048,"d":"5.388"},null,null,{"$f":"SUM('IV. Country level, 1310-2018'!AO479:AV479)","v":{"v":4.9008091417360236,"d":"4.901"}},{"$f":"SUM('IV. Country level, 1310-2018'!AY479:BF479)","v":{"v":-3.6078109954618496,"d":"-3.6078"}},{"v":8.508620137197873,"d":"8.509"},{"v":4.942378095699333,"d":"4.942"},{"$f":"'IV. Country level, 1310-2018'!V479","v":{"v":-4.3737574552683895,"d":"-4.374"}},{"$f":"'IV. Country level, 1310-2018'!D479","v":{"v":9.316135550967722,"d":"9.316"}},{"$nulls":5},{"v":3.2750000000000004,"d":"3.275"},{"v":3.7780425723065036,"d":"3.778"},{"v":-0.5030425723065033,"d":"-0.503"},{"$f":"'VIII. Pers. sov. loans, 1312-'!C478","v":{"v":4.666666666666667,"d":"4.667"}}]
[1786,null,{"v":5.651756352389713,"d":"5.652"},{"v":1.1296529936761035,"d":"1.130"},{"v":4.5221033587136095,"d":"4.522"},{"v":4.390967722848054,"d":"4.391"},{"v":-0.9574094011834912,"d":"-0.957"},{"v":5.348377124031545,"d":"5.348"},null,null,{"$f":"SUM('IV. Country level, 1310-2018'!AO480:AV480)","v":{"v":6.528079273186893,"d":"6.528"}},{"$f":"SUM('IV. Country level, 1310-2018'!AY480:BF480)","v":{"v":-0.026057967872201493,"d":"-0.0261"}},{"v":6.554137241059094,"d":"6.554"},{"v":4.074785554337722,"d":"4.075"},{"$f":"'IV. Country level, 1310-2018'!V480","v":{"v":-0.6237006237006284,"d":"-0.624"}},{"$f":"'IV. Country level, 1310-2018'!D480","v":{"v":4.69848617803835,"d":"4.698"}},{"$nulls":5},{"v":3.3000000000000003,"d":"3.300"},{"v":0.3012339748543111,"d":"0.301"},{"v":2.9987660251456894,"d":"2.999"},{"$f":"'VIII. Pers. sov. loans, 1312-'!C479","v":{"v":4.5,"d":"4.500"}}]
[1787,null,{"v":5.6174171738840935,"d":"5.617"},{"v":1.4232209387829682,"d":"1.423"},{"v":4.194196235101125,"d":"4.194"},{"v":4.273276066317428,"d":"4.273"},{"v":-0.06978496977733276,"d":"-0.070"},{"v":4.3430610360947615,"d":"4.343"},null,null,{"$f":"SUM('IV. Country level, 1310-2018'!AO481:AV481)","v":{"v":6.005757373050238,"d":"6.006"}},{"$f":"SUM('IV. Country level, 1310-2018'!AY481:BF481)","v":{"v":6.611997650363288,"d":"6.6120"}},{"v":-0.6062402773130504,"d":"-0.606"},{"v":4.012214646678166,"d":"4.012"},{"$f":"'IV. Country level, 1310-2018'!V481","v":{"v":1.7782426778242666,"d":"1.778"}},{"$f":"'IV. Country level, 1310-2018'!D481","v":{"v":2.2339719688538997,"d":"2.234"}},{"$nulls":5},3.325,{"v":8.235940924932008,"d":"8.236"},{"v":-4.9109409249320075,"d":"-4.911"},{"$f":"'VIII. Pers. sov. loans, 1312-'!C480","v":{"v":4,"d":"4.000"}}]
[1788,null,{"v":5.520409521966363,"d":"5.520"},{"v":0.41152423176516173,"d":"0.412"},{"v":5.108885290201202,"d":"5.109"},{"v":4.072882840658716,"d":"4.073"},{"v":0.48175429015005833,"d":"0.482"},{"v":3.591128550508657,"d":"3.591"},null,null,{"$f":"SUM('IV. Country level, 1310-2018'!AO482:AV482)","v":{"v":6.570197599705534,"d":"6.570"}},{"$f":"SUM('IV. Country level, 1310-2018'!AY482:BF482)","v":{"v":0.4505440384737812,"d":"0.4505"}},{"v":6.119653561231753,"d":"6.120"},{"v":4.004859483157308,"d":"4.005"},{"$f":"'IV. Country level, 1310-2018'!V482","v":{"v":1.541623843782105,"d":"1.542"}},{"$f":"'IV. Country level, 1310-2018'!D482","v":{"v":2.4632356393752026,"d":"2.463"}},{"$nulls":5},{"v":3.35,"d":"3.350"},{"v":3.1581820159837966,"d":"3.158"},{"v":0.19181798401620354,"d":"0.192"},{"$f":"'VIII. Pers. sov. loans, 1312-'!C481","v":{"v":4,"d":"4.000"}}]
[1789,null,{"v":5.44436879133592,"d":"5.444"},{"v":1.362828115935414,"d":"1.363"},{"v":4.081540675400507,"d":"4.082"},{"v":3.8422758149304417,"d":"3.842"},{"v":0.7759527308599802,"d":"0.776"},{"v":3.0663230840704614,"d":"3.066"},null,null,{"$f":"SUM('IV. Country level, 1310-2018'!AO483:AV483)","v":{"v":5.499908849051639,"d":"5.500"}},{"$f":"SUM('IV. Country level, 1310-2018'!AY483:BF483)","v":{"v":1.8262852104262817,"d":"1.8263"}},{"v":3.6736236386253576,"d":"3.674"},{"v":3.907244371918546,"d":"3.907"},{"$f":"'IV. Country level, 1310-2018'!V483","v":{"v":-0.30364372469635725,"d":"-0.304"}},{"$f":"'IV. Country level, 1310-2018'!D483","v":{"v":4.210888096614903,"d":"4.211"}},{"$nulls":5},3.375,{"v":2.6123595431385094,"d":"2.612"},{"v":0.7626404568614906,"d":"0.763"},{"$f":"'VIII. Pers. sov. loans, 1312-'!C482","v":{"v":4,"d":"4.000"}}]
[1790,null,{"v":5.186221455329142,"d":"5.186"},{"v":3.1314659476250166,"d":"3.131"},{"v":2.054755507704127,"d":"2.055"},{"v":3.82607237840962,"d":"3.826"},{"v":1.7394005847323146,"d":"1.739"},{"v":2.086671793677305,"d":"2.087"},null,null,{"$f":"SUM('IV. Country level, 1310-2018'!AO484:AV484)","v":{"v":4.825838271233256,"d":"4.826"}},{"$f":"SUM('IV. Country level, 1310-2018'!AY484:BF484)","v":{"v":2.2065914954862067,"d":"2.2066"}},{"v":2.6192467757470497,"d":"2.619"},{"v":3.892581408145457,"d":"3.893"},{"$f":"'IV. Country level, 1310-2018'!V484","v":{"v":6.497461928934015,"d":"6.497"}},{"$f":"'IV. Country level, 1310-2018'!D484","v":{"v":-2.6048805207885586,"d":"-2.605"}},{"$nulls":5},{"v":3.4000000000000004,"d":"3.400"},{"v":-2.5108076279364973,"d":"-2.511"},{"v":5.910807627936498,"d":"5.911"},{"$f":"'VIII. Pers. sov. loans, 1312-'!C483","v":{"v":4,"d":"4.000"}}]
[1791,null,{"v":5.021863418881994,"d":"5.022"},{"v":2.4049089522593703,"d":"2.405"},{"v":2.616954466622624,"d":"2.617"},{"v":3.887378136841002,"d":"3.887"},{"v":1.9239041224517714,"d":"1.924"},{"v":1.9634740143892309,"d":"1.963"},null,null,{"$f":"SUM('IV. Country level, 1310-2018'!AO485:AV485)","v":{"v":4.312276145800959,"d":"4.312"}},{"$f":"SUM('IV. Country level, 1310-2018'!AY485:BF485)","v":{"v":-4.580879809059374,"d":"-4.5809"}},{"v":8.893155954860333,"d":"8.893"},{"v":3.6761163246744744,"d":"3.676"},{"$f":"'IV. Country level, 1310-2018'!V485","v":{"v":-1.1439466158246034,"d":"-1.144"}},{"$f":"'IV. Country level, 1310-2018'!D485","v":{"v":4.820062940499078,"d":"4.820"}},{"$nulls":5},{"v":3.4250000000000003,"d":"3.425"},{"v":-5.655182804052405,"d":"-5.655"},{"v":9.080182804052406,"d":"9.080"},{"$f":"'VIII. Pers. sov. loans, 1312-'!C484","v":{"v":4,"d":"4.000"}}]
[1792,null,{"v":4.774026341941629,"d":"4.774"},{"v":3.6625660623308987,"d":"3.663"},{"v":1.1114602796107313,"d":"1.111"},{"v":3.961016859653185,"d":"3.961"},{"v":3.9470965903591235,"d":"3.947"},{"v":0.01392026929406168,"d":"0.014"},null,null,{"$f":"SUM('IV. Country level, 1310-2018'!AO486:AV486)","v":{"v":4.368524027322923,"d":"4.369"}},{"$f":"SUM('IV. Country level, 1310-2018'!AY486:BF486)","v":{"v":3.051316193729916,"d":"3.0513"}},{"v":1.3172078335930073,"d":"1.317"},{"v":3.328128915601418,"d":"3.328"},{"$f":"'IV. Country level, 1310-2018'!V486","v":{"v":-2.3143683702989364,"d":"-2.314"}},{"$f":"'IV. Country level, 1310-2018'!D486","v":{"v":5.642497285900355,"d":"5.642"}},{"$nulls":5},{"v":3.45,"d":"3.450"},{"v":-0.7038041076042316,"d":"-0.704"},{"v":4.153804107604232,"d":"4.154"},{"$f":"'VIII. Pers. sov. loans, 1312-'!C485","v":{"v":4.965361736334406,"d":"4.965"}}]
[1793,null,{"v":4.826991097779337,"d":"4.827"},{"v":3.1974113085865783,"d":"3.197"},{"v":1.62957978919276,"d":"1.630"},{"v":4.0912422288730905,"d":"4.091"},{"v":4.335916654439885,"d":"4.336"},{"v":-0.24467442556679384,"d":"-0.245"},null,null,{"$f":"SUM('IV. Country level, 1310-2018'!AO487:AV487)","v":{"v":4.721047921139453,"d":"4.721"}},{"$f":"SUM('IV. Country level, 1310-2018'!AY487:BF487)","v":{"v":12.354406853955016,"d":"12.3544"}},{"v":-7.633358932815563,"d":"-7.633"},{"v":3.9613614986919705,"d":"3.961"},{"$f":"'IV. Country level, 1310-2018'!V487","v":{"v":6.120434353405713,"d":"6.120"}},{"$f":"'IV. Country level, 1310-2018'!D487","v":{"v":-2.1590728547137426,"d":"-2.159"}},{"$nulls":5},{"v":3.4750000000000005,"d":"3.475"},{"v":-1.1206073030786259,"d":"-1.121"},{"v":4.595607303078626,"d":"4.596"},{"$f":"'VIII. Pers. sov. loans, 1312-'!C486","v":{"v":6.37965112540193,"d":"6.380"}}]
[1794,null,{"v":5.423222418119073,"d":"5.423"},{"v":2.4647356227365758,"d":"2.465"},{"v":2.9584867953824974,"d":"2.958"},{"v":4.357950575142049,"d":"4.358"},{"v":1.982400441547883,"d":"1.982"},{"v":2.375550133594165,"d":"2.376"},null,null,{"$f":"SUM('IV. Country level, 1310-2018'!AO488:AV488)","v":{"v":4.855251117920198,"d":"4.855"}},{"$f":"SUM('IV. Country level, 1310-2018'!AY488:BF488)","v":{"v":1.5260986828037653,"d":"1.5261"}},{"v":3.3291524351164328,"d":"3.329"},{"v":4.441354955697843,"d":"4.441"},{"$f":"'IV. Country level, 1310-2018'!V488","v":{"v":3.0697674418604635,"d":"3.070"}},{"$f":"'IV. Country level, 1310-2018'!D488","v":{"v":1.3715875138373796,"d":"1.372"}},{"$nulls":5},{"v":3.5000000000000004,"d":"3.500"},{"v":8.39845652529448,"d":"8.398"},{"v":-4.898456525294479,"d":"-4.898"},{"$f":"'VIII. Pers. sov. loans, 1312-'!C487","v":{"v":6.37965112540193,"d":"6.380"}}]
[1795,null,{"v":7.054225292030198,"d":"7.054"},{"v":3.0776714157076976,"d":"3.078"},{"v":3.9765538763225003,"d":"3.977"},{"v":4.6799955180255655,"d":"4.680"},{"v":2.339198229788719,"d":"2.339"},{"v":2.340797288236846,"d":"2.341"},null,null,{"$f":"SUM('IV. Country level, 1310-2018'!AO489:AV489)","v":{"v":4.835338061122977,"d":"4.835"}},{"$f":"SUM('IV. Country level, 1310-2018'!AY489:BF489)","v":{"v":9.254143808974476,"d":"9.2541"}},{"v":-4.418805747851499,"d":"-4.419"},{"v":4.520330542842588,"d":"4.520"},{"$f":"'IV. Country level, 1310-2018'!V489","v":{"v":15.70397111913357,"d":"15.704"}},{"$f":"'IV. Country level, 1310-2018'!D489","v":{"v":-11.183640576290982,"d":"-11.184"}},{"$nulls":5},{"v":4,"d":"4.000"},{"v":6.421701227832631,"d":"6.422"},{"v":-2.4217012278326306,"d":"-2.422"},{"$f":"'VIII. Pers. sov. loans, 1312-'!C488","v":{"v":6.37965112540193,"d":"6.380"}}]
[1796,null,{"v":7.760724638571356,"d":"7.761"},{"v":3.9621965940809436,"d":"3.962"},{"v":3.7985280444904133,"d":"3.799"},{"v":4.931533339876017,"d":"4.932"},{"v":5.662905993635387,"d":"5.663"},{"v":-0.7313726537593703,"d":"-0.731"},null,null,{"$f":"SUM('IV. Country level, 1310-2018'!AO490:AV490)","v":{"v":5.870662139915598,"d":"5.871"}},{"$f":"SUM('IV. Country level, 1310-2018'!AY490:BF490)","v":{"v":-1.4297980657839604,"d":"-1.4298"}},{"v":7.300460205699558,"d":"7.300"},{"v":4.818821956457884,"d":"4.819"},{"$f":"'IV. Country level, 1310-2018'!V490","v":{"v":2.4180967238689703,"d":"2.418"}},{"$f":"'IV. Country level, 1310-2018'!D490","v":{"v":2.400725232588914,"d":"2.401"}},{"$nulls":5},{"v":4.25,"d":"4.250"},{"v":-0.6747545277314121,"d":"-0.675"},{"v":4.924754527731412,"d":"4.925"},{"$f":"'VIII. Pers. sov. loans, 1312-'!C489","v":{"v":6.37965112540193,"d":"6.380"}}]
[1797,null,{"v":7.967706301093036,"d":"7.968"},{"v":4.683829538977507,"d":"4.684"},{"v":3.283876762115527,"d":"3.284"},{"v":5.037472744738151,"d":"5.037"},{"v":10.002843943148857,"d":"10.003"},{"v":-4.965371198410706,"d":"-4.965"},null,null,{"$f":"SUM('IV. Country level, 1310-2018'!AO491:AV491)","v":{"v":8.9994575136114,"d":"8.999"}},{"$f":"SUM('IV. Country level, 1310-2018'!AY491:BF491)","v":{"v":-2.9221383054638115,"d":"-2.9221"}},{"v":11.921595819075211,"d":"11.922"},{"v":5.75953983202816,"d":"5.760"},{"$f":"'IV. Country level, 1310-2018'!V491","v":{"v":-9.977151561309995,"d":"-9.977"}},{"$f":"'IV. Country level, 1310-2018'!D491","v":{"v":15.736691393338155,"d":"15.737"}},{"$nulls":5},{"v":4.5,"d":"4.500"},{"v":0.8968935638350223,"d":"0.897"},{"v":3.603106436164978,"d":"3.603"},{"$f":"'VIII. Pers. sov. loans, 1312-'!C490","v":{"v":6.974563906752412,"d":"6.975"}}]
[1798,null,{"v":8.068429087271857,"d":"8.068"},{"v":5.280197060266187,"d":"5.280"},{"v":2.7882320270056726,"d":"2.788"},{"v":5.103116119108018,"d":"5.103"},{"v":11.235734308597362,"d":"11.236"},{"v":-6.132618189489343,"d":"-6.133"},null,null,{"$f":"SUM('IV. Country level, 1310-2018'!AO492:AV492)","v":{"v":15.729296263178835,"d":"15.729"}},{"$f":"SUM('IV. Country level, 1310-2018'!AY492:BF492)","v":{"v":-0.29032925826151934,"d":"-0.2903"}},{"v":16.019625521440354,"d":"16.020"},{"v":5.930430924859091,"d":"5.930"},{"$f":"'IV. Country level, 1310-2018'!V492","v":{"v":1.3536379018612479,"d":"1.354"}},{"$f":"'IV. Country level, 1310-2018'!D492","v":{"v":4.576793022997843,"d":"4.577"}},{"$nulls":5},{"v":3,"d":"3.000"},{"v":2.5285969982765417,"d":"2.529"},{"v":0.4714030017234583,"d":"0.471"},{"$f":"'VIII. Pers. sov. loans, 1312-'!C491","v":{"v":6.974563906752412,"d":"6.975"}}]
[1799,null,{"v":8.25393913304762,"d":"8.254"},{"v":2.551098589188793,"d":"2.551"},{"v":5.7028405438588265,"d":"5.703"},{"v":5.060993275759721,"d":"5.061"},{"v":5.706595577292567,"d":"5.707"},{"v":-0.6456023015328454,"d":"-0.646"},null,null,{"$f":"SUM('IV. Country level, 1310-2018'!AO493:AV493)","v":{"v":9.314019453111037,"d":"9.314"}},{"$f":"SUM('IV. Country level, 1310-2018'!AY493:BF493)","v":{"v":9.242992442342636,"d":"9.2430"}},{"v":0.07102701076840034,"d":"0.071"},{"v":5.088893668554579,"d":"5.089"},{"$f":"'IV. Country level, 1310-2018'!V493","v":{"v":20.95158597662774,"d":"20.952"}},{"$f":"'IV. Country level, 1310-2018'!D493","v":{"v":-15.86269230807316,"d":"-15.863"}},{"$nulls":5},{"v":3.3000000000000003,"d":"3.300"},{"v":1.7182193036234874,"d":"1.718"},{"v":1.5817806963765129,"d":"1.582"},{"$f":"'VIII. Pers. sov. loans, 1312-'!C492","v":{"v":7.334056806002143,"d":"7.334"}}]
[1800,null,{"v":8.347964832035574,"d":"8.348"},{"v":2.7279486117403358,"d":"2.728"},{"v":5.620016220295237,"d":"5.620"},{"v":5.098264379113423,"d":"5.098"},{"v":4.518296045311286,"d":"4.518"},{"v":0.5799683338021373,"d":"0.580"},null,null,{"$f":"SUM('IV. Country level, 1310-2018'!AO494:AV494)","v":{"v":6.169919558791199,"d":"6.170"}},{"$f":"SUM('IV. Country level, 1310-2018'!AY494:BF494)","v":{"v":17.405837468230967,"d":"17.4058"}},{"v":-11.235917909439767,"d":"-11.236"},{"v":4.702937332726915,"d":"4.703"},{"$f":"'IV. Country level, 1310-2018'!V494","v":{"v":36.5,"d":"36.500"}},{"$f":"'IV. Country level, 1310-2018'!D494","v":{"v":-31.797062667273085,"d":"-31.797"}},{"$nulls":5},{"v":3.6000000000000005,"d":"3.600"},{"v":2.272727272727273,"d":"2.273"},{"v":1.3272727272727276,"d":"1.327"},{"$f":"'VIII. Pers. sov. loans, 1312-'!C493","v":{"v":5.333333333333333,"d":"5.333"}}]
[1801,null,{"v":7.984343548198354,"d":"7.984"},{"v":3.2177899116002115,"d":"3.218"},{"v":4.766553636598142,"d":"4.767"},{"v":5.02592467869979,"d":"5.026"},{"v":6.4007462683555705,"d":"6.401"},{"v":-1.3748215896557787,"d":"-1.375"},null,null,{"$f":"SUM('IV. Country level, 1310-2018'!AO495:AV495)","v":{"v":5.560310621171968,"d":"5.560"}},{"$f":"SUM('IV. Country level, 1310-2018'!AY495:BF495)","v":{"v":5.700671331824518,"d":"5.7007"}},{"v":-0.14036071065254951,"d":"-0.140"},{"v":4.90085857628691,"d":"4.901"},{"$f":"'IV. Country level, 1310-2018'!V495","v":{"v":11.7,"d":"11.700"}},{"$f":"'IV. Country level, 1310-2018'!D495","v":{"v":-6.799141423713089,"d":"-6.799"}},{"$nulls":5},{"v":3.900000000000001,"d":"3.900"},{"v":-0.7407407407407408,"d":"-0.741"},{"v":4.640740740740742,"d":"4.641"},{"$f":"'VIII. Pers. sov. loans, 1312-'!C494","v":5.125}]
[1802,null,{"v":6.638938261143696,"d":"6.639"},{"v":4.0995382015517965,"d":"4.100"},{"v":2.5394000595919004,"d":"2.539"},{"v":4.9029069782979215,"d":"4.903"},{"v":8.521655139518248,"d":"8.522"},{"v":-3.6187481612203265,"d":"-3.619"},null,null,{"$f":"SUM('IV. Country level, 1310-2018'!AO496:AV496)","v":{"v":6.133908381553302,"d":"6.134"}},{"$f":"SUM('IV. Country level, 1310-2018'!AY496:BF496)","v":{"v":-9.84954548856728,"d":"-9.8495"}},{"v":15.98345387012058,"d":"15.983"},{"v":4.225470639404502,"d":"4.225"},{"$f":"'IV. Country level, 1310-2018'!V496","v":{"v":-23,"d":"-23.000"}},{"$f":"'IV. Country level, 1310-2018'!D496","v":{"v":27.225470639404502,"d":"27.225"}},{"$nulls":5},{"v":4.200000000000001,"d":"4.200"},{"v":-2.2388059701492535,"d":"-2.239"},{"v":6.438805970149255,"d":"6.439"},{"$f":"'VIII. Pers. sov. loans, 1312-'!C495","v":5.125}]
[1803,null,{"v":6.190937406303595,"d":"6.191"},{"v":2.3827512973814082,"d":"2.383"},{"v":3.8081861089221873,"d":"3.808"},{"v":4.874127365860675,"d":"4.874"},{"v":4.9,"d":"4.900"},{"v":-0.02587263413932536,"d":"-0.026"},null,null,{"$f":"SUM('IV. Country level, 1310-2018'!AO497:AV497)","v":{"v":6.528842032831264,"d":"6.529"}},{"$f":"SUM('IV. Country level, 1310-2018'!AY497:BF497)","v":{"v":-0.19184790792316253,"d":"-0.1918"}},{"v":6.7206899407544265,"d":"6.721"},{"v":5.079719679933797,"d":"5.080"},{"$f":"'IV. Country level, 1310-2018'!V497","v":{"v":-5.9,"d":"-5.900"}},{"$f":"'IV. Country level, 1310-2018'!D497","v":{"v":10.979719679933797,"d":"10.980"}},{"$nulls":5},{"v":4.5,"d":"4.500"},{"v":6.106870229007633,"d":"6.107"},{"v":-1.606870229007633,"d":"-1.607"},{"$f":"'VIII. Pers. sov. loans, 1312-'!C496","v":{"v":5.1,"d":"5.100"}}]
[1804,null,{"v":6.131171095442576,"d":"6.131"},{"v":-0.695378281656278,"d":"-0.695"},{"v":6.826549377098855,"d":"6.827"},{"v":4.883102443191421,"d":"4.883"},{"v":-0.5857142857142864,"d":"-0.586"},{"v":5.468816728905708,"d":"5.469"},null,null,{"$f":"SUM('IV. Country level, 1310-2018'!AO498:AV498)","v":{"v":6.454108526750875,"d":"6.454"}},{"$f":"SUM('IV. Country level, 1310-2018'!AY498:BF498)","v":{"v":0.5067507935553199,"d":"0.5068"}},{"v":5.947357733195554,"d":"5.947"},{"v":5.2531619291327365,"d":"5.253"},{"$f":"'IV. Country level, 1310-2018'!V498","v":{"v":3.2,"d":"3.200"}},{"$f":"'IV. Country level, 1310-2018'!D498","v":{"v":2.0531619291327363,"d":"2.053"}},{"$nulls":5},{"v":4.5475,"d":"4.548"},{"v":-2.158273381294964,"d":"-2.158"},{"v":6.705773381294964,"d":"6.706"},{"$f":"'VIII. Pers. sov. loans, 1312-'!C497","v":{"v":5.5,"d":"5.500"}}]
[1805,null,{"v":6.192596535393718,"d":"6.193"},{"v":-0.9437111470504927,"d":"-0.944"},{"v":7.13630768244421,"d":"7.136"},{"v":4.829001148865748,"d":"4.829"},{"v":-1.7714285714285716,"d":"-1.771"},{"v":6.600429720294319,"d":"6.600"},null,null,{"$f":"SUM('IV. Country level, 1310-2018'!AO499:AV499)","v":{"v":6.311459253796231,"d":"6.311"}},{"$f":"SUM('IV. Country level, 1310-2018'!AY499:BF499)","v":{"v":5.8819087713995755,"d":"5.8819"}},{"v":0.42955048239665583,"d":"0.430"},{"v":5.0693070220460115,"d":"5.069"},{"$f":"'IV. Country level, 1310-2018'!V499","v":{"v":16.2,"d":"16.200"}},{"$f":"'IV. Country level, 1310-2018'!D499","v":{"v":-11.130692977953988,"d":"-11.131"}},{"$nulls":5},{"v":4.595000000000001,"d":"4.595"},{"v":14.705882352941178,"d":"14.706"},{"v":-10.110882352941177,"d":"-10.111"},{"$f":"'VIII. Pers. sov. loans, 1312-'!C498","v":{"v":5.5,"d":"5.500"}}]
[1806,null,{"v":6.184987864772596,"d":"6.185"},{"v":0.3884290856611877,"d":"0.388"},{"v":5.796558779111409,"d":"5.797"},{"v":4.851652496619214,"d":"4.852"},{"v":2.8999999999999995,"d":"2.900"},{"v":1.9516524966192141,"d":"1.952"},null,null,{"$f":"SUM('IV. Country level, 1310-2018'!AO500:AV500)","v":{"v":6.178013469230325,"d":"6.178"}},{"$f":"SUM('IV. Country level, 1310-2018'!AY500:BF500)","v":{"v":-2.7745158868500823,"d":"-2.7745"}},{"v":8.952529356080408,"d":"8.953"},{"v":4.887436381493851,"d":"4.887"},{"$f":"'IV. Country level, 1310-2018'!V500","v":{"v":-4.4,"d":"-4.400"}},{"$f":"'IV. Country level, 1310-2018'!D500","v":{"v":9.287436381493851,"d":"9.287"}},{"$nulls":5},{"v":4.642500000000001,"d":"4.643"},{"v":0.641025641025641,"d":"0.641"},{"v":4.0014743589743595,"d":"4.001"},{"$f":"'VIII. Pers. sov. loans, 1312-'!C499","v":{"v":5.666666666666667,"d":"5.667"}}]
[1807,null,{"v":6.428874670700628,"d":"6.429"},{"v":0.9913985448898314,"d":"0.991"},{"v":5.437476125810797,"d":"5.437"},{"v":4.7557690313485805,"d":"4.756"},{"v":4.199999999999999,"d":"4.200"},{"v":0.5557690313485815,"d":"0.556"},null,null,{"$f":"SUM('IV. Country level, 1310-2018'!AO501:AV501)","v":{"v":5.751555382764071,"d":"5.752"}},{"$f":"SUM('IV. Country level, 1310-2018'!AY501:BF501)","v":{"v":-4.141069585032835,"d":"-4.1411"}},{"v":9.892624967796905,"d":"9.893"},{"v":4.765762874042146,"d":"4.766"},{"$f":"'IV. Country level, 1310-2018'!V501","v":{"v":-1.9,"d":"-1.900"}},{"$f":"'IV. Country level, 1310-2018'!D501","v":{"v":6.665762874042146,"d":"6.666"}},{"$nulls":5},{"v":4.69,"d":"4.690"},{"v":-5.7324840764331215,"d":"-5.732"},{"v":10.422484076433122,"d":"10.422"},{"$f":"'VIII. Pers. sov. loans, 1312-'!C500","v":{"v":5.5,"d":"5.500"}}]
[1808,null,{"v":6.911100942544181,"d":"6.911"},{"v":2.612350960376318,"d":"2.612"},{"v":4.298749982167863,"d":"4.299"},{"v":4.673055678910582,"d":"4.673"},{"v":3.3285714285714287,"d":"3.329"},{"v":1.3444842503391539,"d":"1.344"},null,null,{"$f":"SUM('IV. Country level, 1310-2018'!AO502:AV502)","v":{"v":5.990288700829958,"d":"5.990"}},{"$f":"SUM('IV. Country level, 1310-2018'!AY502:BF502)","v":{"v":3.9623412740650155,"d":"3.9623"}},{"v":2.0279474267649427,"d":"2.028"},{"v":4.522149516007191,"d":"4.522"},{"$f":"'IV. Country level, 1310-2018'!V502","v":{"v":3.4,"d":"3.400"}},{"$f":"'IV. Country level, 1310-2018'!D502","v":{"v":1.1221495160071915,"d":"1.122"}},{"$nulls":5},{"v":5.904999999999999,"d":"5.905"},{"v":18.91891891891892,"d":"18.919"},{"v":-13.01391891891892,"d":"-13.014"},{"$f":"'VIII. Pers. sov. loans, 1312-'!C501","v":{"v":5.75,"d":"5.750"}}]
[1809,null,{"v":7.2992339762123075,"d":"7.299"},{"v":3.3736222402160925,"d":"3.374"},{"v":3.9256117359962146,"d":"3.926"},{"v":4.6649971218057305,"d":"4.665"},{"v":2.8999999999999995,"d":"2.900"},{"v":1.7649971218057305,"d":"1.765"},null,null,{"$f":"SUM('IV. Country level, 1310-2018'!AO503:AV503)","v":{"v":6.080647687205451,"d":"6.081"}},{"$f":"SUM('IV. Country level, 1310-2018'!AY503:BF503)","v":{"v":-0.5245638595855164,"d":"-0.5246"}},{"v":6.605211546790967,"d":"6.605"},{"v":4.384030073678764,"d":"4.384"},{"$f":"'IV. Country level, 1310-2018'!V503","v":{"v":9.7,"d":"9.700"}},{"$f":"'IV. Country level, 1310-2018'!D503","v":{"v":-5.315969926321236,"d":"-5.316"}},{"$nulls":5},5.798,{"v":-11.363636363636363,"d":"-11.364"},{"v":17.16163636363636,"d":"17.162"},{"$f":"'VIII. Pers. sov. loans, 1312-'!C502","v":{"v":5.75,"d":"5.750"}}]
[1810,null,{"v":7.705644262741068,"d":"7.706"},{"v":2.880270609592432,"d":"2.880"},{"v":4.8253736531486355,"d":"4.825"},{"v":4.687861392242306,"d":"4.688"},{"v":3.8857142857142852,"d":"3.886"},{"v":0.8021471065280207,"d":"0.802"},null,null,{"$f":"SUM('IV. Country level, 1310-2018'!AO504:AV504)","v":{"v":8.236049674327482,"d":"8.236"}},{"$f":"SUM('IV. Country level, 1310-2018'!AY504:BF504)","v":{"v":4.028938306677342,"d":"4.0289"}},{"v":4.20711136765014,"d":"4.207"},{"v":4.408535423039369,"d":"4.409"},{"$f":"'IV. Country level, 1310-2018'!V504","v":{"v":3.2,"d":"3.200"}},{"$f":"'IV. Country level, 1310-2018'!D504","v":{"v":1.2085354230393692,"d":"1.209"}},{"$nulls":5},5.766,{"v":-15.384615384615385,"d":"-15.385"},{"v":21.150615384615385,"d":"21.151"},{"$f":"'VIII. Pers. sov. loans, 1312-'!C503","v":{"v":6,"d":"6.000"}}]
[1811,null,{"v":8.021347377107661,"d":"8.021"},{"v":2.6508197322837463,"d":"2.651"},{"v":5.370527644823915,"d":"5.371"},{"v":4.652963625159702,"d":"4.653"},{"v":2.342857142857143,"d":"2.343"},{"v":2.3101064823025603,"d":"2.310"},null,null,{"$f":"SUM('IV. Country level, 1310-2018'!AO505:AV505)","v":{"v":9.829692429655747,"d":"9.830"}},{"$f":"SUM('IV. Country level, 1310-2018'!AY505:BF505)","v":{"v":11.853417701960728,"d":"11.8534"}},{"v":-2.023725272304981,"d":"-2.024"},{"v":4.674168462066744,"d":"4.674"},{"$f":"'IV. Country level, 1310-2018'!V505","v":{"v":-2.9,"d":"-2.900"}},{"$f":"'IV. Country level, 1310-2018'!D505","v":{"v":7.574168462066744,"d":"7.574"}},{"$nulls":5},6.336,{"v":-6.8181818181818175,"d":"-6.818"},{"v":13.154181818181819,"d":"13.154"},{"$f":"'VIII. Pers. sov. loans, 1312-'!C504","v":{"v":5.833333333333333,"d":"5.833"}}]
[1812,null,{"v":8.322451027213862,"d":"8.322"},{"v":1.8872497814789024,"d":"1.887"},{"v":6.43520124573496,"d":"6.435"},{"v":4.726293397909684,"d":"4.726"},{"v":0.3285714285714282,"d":"0.329"},{"v":4.397721969338256,"d":"4.398"},null,null,{"$f":"SUM('IV. Country level, 1310-2018'!AO506:AV506)","v":{"v":9.028390489473118,"d":"9.028"}},{"$f":"SUM('IV. Country level, 1310-2018'!AY506:BF506)","v":{"v":11.210807730277995,"d":"11.2108"}},{"v":-2.1824172408048774,"d":"-2.182"},{"v":5.012897122312044,"d":"5.013"},{"$f":"'IV. Country level, 1310-2018'!V506","v":{"v":13.2,"d":"13.200"}},{"$f":"'IV. Country level, 1310-2018'!D506","v":{"v":-8.187102877687956,"d":"-8.187"}},{"$nulls":5},{"v":7.4959999999999996,"d":"7.496"},{"v":11.38211382113821,"d":"11.382"},{"v":-3.8861138211382107,"d":"-3.886"},{"$f":"'VIII. Pers. sov. loans, 1312-'!C505","v":{"v":5.85,"d":"5.850"}}]
[1813,null,{"v":8.667487483624226,"d":"8.667"},{"v":2.349546947291515,"d":"2.350"},{"v":6.317940536332711,"d":"6.318"},{"v":4.787003461476234,"d":"4.787"},{"v":-2.257142857142857,"d":"-2.257"},{"v":7.044146318619091,"d":"7.044"},null,null,{"$f":"SUM('IV. Country level, 1310-2018'!AO507:AV507)","v":{"v":9.022885474931645,"d":"9.023"}},{"$f":"SUM('IV. Country level, 1310-2018'!AY507:BF507)","v":{"v":-6.227977301215706,"d":"-6.2280"}},{"v":15.25086277614735,"d":"15.251"},{"v":5.047486274549886,"d":"5.047"},{"$f":"'IV. Country level, 1310-2018'!V507","v":{"v":2.5,"d":"2.500"}},{"$f":"'IV. Country level, 1310-2018'!D507","v":{"v":2.547486274549886,"d":"2.547"}},{"$nulls":5},{"v":6.470000000000001,"d":"6.470"},{"v":-12.408759124087592,"d":"-12.409"},{"v":18.878759124087594,"d":"18.879"},{"$f":"'VIII. Pers. sov. loans, 1312-'!C506","v":{"v":5.828571428571428,"d":"5.829"}}]
[1814,null,{"v":8.657607557037274,"d":"8.658"},{"v":3.393296726696838,"d":"3.393"},{"v":5.264310830340436,"d":"5.264"},{"v":4.7278686407546076,"d":"4.728"},{"v":-0.7857142857142857,"d":"-0.786"},{"v":5.513582926468893,"d":"5.514"},null,null,{"$f":"SUM('IV. Country level, 1310-2018'!AO508:AV508)","v":{"v":7.961477183330231,"d":"7.961"}},{"$f":"SUM('IV. Country level, 1310-2018'!AY508:BF508)","v":{"v":-5.747225726193634,"d":"-5.7472"}},{"v":13.708702909523865,"d":"13.709"},{"v":4.521478504463921,"d":"4.521"},{"$f":"'IV. Country level, 1310-2018'!V508","v":{"v":-12.7,"d":"-12.700"}},{"$f":"'IV. Country level, 1310-2018'!D508","v":{"v":17.22147850446392,"d":"17.221"}},{"$nulls":5},{"v":4.904999999999999,"d":"4.905"},{"v":-8.333333333333332,"d":"-8.333"},{"v":13.238333333333332,"d":"13.238"},{"$f":"'VIII. Pers. sov. loans, 1312-'!C507","v":{"v":5.828571428571428,"d":"5.829"}}]
[1815,null,{"v":8.60645602189535,"d":"8.606"},{"v":0.05101463171219223,"d":"0.051"},{"v":8.555441390183157,"d":"8.555"},{"v":4.610011776261081,"d":"4.610"},{"v":-0.3285714285714288,"d":"-0.329"},{"v":4.9385832048325105,"d":"4.939"},null,null,{"$f":"SUM('IV. Country level, 1310-2018'!AO509:AV509)","v":{"v":8.098014251573362,"d":"8.098"}},{"$f":"SUM('IV. Country level, 1310-2018'!AY509:BF509)","v":{"v":-1.382648381568892,"d":"-1.3826"}},{"v":9.480662633142254,"d":"9.481"},{"v":5.035457925257058,"d":"5.035"},{"$f":"'IV. Country level, 1310-2018'!V509","v":{"v":-10.7,"d":"-10.700"}},{"$f":"'IV. Country level, 1310-2018'!D509","v":{"v":15.735457925257057,"d":"15.735"}},{"$nulls":5},{"v":5.15375,"d":"5.154"},{"v":1.8181818181818181,"d":"1.818"},{"v":3.3355681818181813,"d":"3.336"},{"$f":"'VIII. Pers. sov. loans, 1312-'!C508","v":{"v":5.828571428571428,"d":"5.829"}}]
[1816,null,{"v":8.836208351773204,"d":"8.836"},{"v":-2.834459982956165,"d":"-2.834"},{"v":11.670668334729369,"d":"11.671"},{"v":4.491959618576503,"d":"4.492"},{"v":-2.5714285714285707,"d":"-2.571"},{"v":7.063388190005076,"d":"7.063"},null,null,{"$f":"SUM('IV. Country level, 1310-2018'!AO510:AV510)","v":{"v":8.495902882077996,"d":"8.496"}},{"$f":"SUM('IV. Country level, 1310-2018'!AY510:BF510)","v":{"v":2.7115163011027716,"d":"2.7115"}},{"v":5.784386580975224,"d":"5.784"},{"v":4.8090005186446145,"d":"4.809"},{"$f":"'IV. Country level, 1310-2018'!V510","v":{"v":-8.4,"d":"-8.400"}},{"$f":"'IV. Country level, 1310-2018'!D510","v":{"v":13.209000518644615,"d":"13.209"}},{"$nulls":5},{"v":4.9486,"d":"4.949"},{"v":10.714285714285714,"d":"10.714"},{"v":-5.765685714285714,"d":"-5.766"},{"$f":"'VIII. Pers. sov. loans, 1312-'!C509","v":{"v":5.828571428571428,"d":"5.829"}}]
[1817,null,{"v":8.403196826312355,"d":"8.403"},{"v":-2.9772048943839855,"d":"-2.977"},{"v":11.38040172069634,"d":"11.380"},{"v":4.39594578812516,"d":"4.396"},{"v":-4.257142857142857,"d":"-4.257"},{"v":8.653088645268017,"d":"8.653"},null,null,{"$f":"SUM('IV. Country level, 1310-2018'!AO511:AV511)","v":{"v":8.166890188218824,"d":"8.167"}},{"$f":"SUM('IV. Country level, 1310-2018'!AY511:BF511)","v":{"v":11.335186762514603,"d":"11.3352"}},{"v":-3.1682965742957787,"d":"-3.168"},{"v":3.994591677987982,"d":"3.995"},{"$f":"'IV. Country level, 1310-2018'!V511","v":{"v":13.5,"d":"13.500"}},{"$f":"'IV. Country level, 1310-2018'!D511","v":{"v":-9.505408322012018,"d":"-9.505"}},{"$nulls":5},{"v":5.054499999999999,"d":"5.055"},{"v":19.35483870967742,"d":"19.355"},{"v":-14.30033870967742,"d":"-14.300"},{"$f":"'VIII. Pers. sov. loans, 1312-'!C510","v":{"v":5.76,"d":"5.760"}}]
[1818,null,{"v":8.085260229379818,"d":"8.085"},{"v":-3.3097071139672005,"d":"-3.310"},{"v":11.39496734334702,"d":"11.395"},{"v":4.3212576500627735,"d":"4.321"},{"v":-4.1571428571428575,"d":"-4.157"},{"v":8.478400507205631,"d":"8.478"},null,null,{"$f":"SUM('IV. Country level, 1310-2018'!AO512:AV512)","v":{"v":9.471631683662263,"d":"9.472"}},{"$f":"SUM('IV. Country level, 1310-2018'!AY512:BF512)","v":{"v":-11.542556962931792,"d":"-11.5426"}},{"v":21.014188646594057,"d":"21.014"},{"v":3.8491704106120608,"d":"3.849"},{"$f":"'IV. Country level, 1310-2018'!V512","v":{"v":0.3,"d":"0.300"}},{"$f":"'IV. Country level, 1310-2018'!D512","v":{"v":3.549170410612061,"d":"3.549"}},{"$nulls":5},{"v":4.849333333333333,"d":"4.849"},{"v":-12.162162162162163,"d":"-12.162"},{"v":17.011495495495495,"d":"17.011"},{"$f":"'VIII. Pers. sov. loans, 1312-'!C511","v":{"v":5.433333333333334,"d":"5.433"}}]
[1819,null,{"v":7.665376051043111,"d":"7.665"},{"v":-3.4191727472267623,"d":"-3.419"},{"v":11.084548798269875,"d":"11.085"},{"v":4.139572047770614,"d":"4.140"},{"v":-4.557142857142858,"d":"-4.557"},{"v":8.696714904913472,"d":"8.697"},null,null,{"$f":"SUM('IV. Country level, 1310-2018'!AO513:AV513)","v":{"v":10.636656798618112,"d":"10.637"}},{"$f":"SUM('IV. Country level, 1310-2018'!AY513:BF513)","v":{"v":-8.987514572400508,"d":"-8.9875"}},{"v":19.62417137101862,"d":"19.624"},{"v":4.186532018520002,"d":"4.187"},{"$f":"'IV. Country level, 1310-2018'!V513","v":{"v":-2.5,"d":"-2.500"}},{"$f":"'IV. Country level, 1310-2018'!D513","v":{"v":6.686532018520002,"d":"6.687"}},{"$nulls":5},{"v":5.016749999999999,"d":"5.017"},{"v":-20.76923076923077,"d":"-20.769"},{"v":25.78598076923077,"d":"25.786"},{"$f":"'VIII. Pers. sov. loans, 1312-'!C512","v":{"v":4.5,"d":"4.500"}}]
[1820,null,{"v":7.261865332901944,"d":"7.262"},{"v":-3.4732155850834374,"d":"-3.473"},{"v":10.735080917985382,"d":"10.735"},{"v":3.992606136961462,"d":"3.993"},{"v":-2.3857142857142857,"d":"-2.386"},{"v":6.378320422675747,"d":"6.378"},null,null,{"$f":"SUM('IV. Country level, 1310-2018'!AO514:AV514)","v":{"v":5.991804796705696,"d":"5.992"}},{"$f":"SUM('IV. Country level, 1310-2018'!AY514:BF514)","v":{"v":-7.2271916812104475,"d":"-7.2272"}},{"v":13.218996477916143,"d":"13.219"},{"v":4.375389461390482,"d":"4.375"},{"$f":"'IV. Country level, 1310-2018'!V514","v":{"v":-9.3,"d":"-9.300"}},{"$f":"'IV. Country level, 1310-2018'!D514","v":{"v":13.675389461390482,"d":"13.675"}},{"$nulls":5},{"v":4.9695,"d":"4.970"},{"v":-12.62135922330097,"d":"-12.621"},{"v":17.59085922330097,"d":"17.591"},{"$f":"'VIII. Pers. sov. loans, 1312-'!C513","v":{"v":4.5,"d":"4.500"}}]
[1821,null,{"v":6.904682151017333,"d":"6.905"},{"v":-5.498346098666691,"d":"-5.498"},{"v":12.403028249684025,"d":"12.403"},{"v":3.880699325430626,"d":"3.881"},{"v":-3.085714285714286,"d":"-3.086"},{"v":6.966413611144911,"d":"6.966"},null,null,{"$f":"SUM('IV. Country level, 1310-2018'!AO515:AV515)","v":{"v":5.73592100480248,"d":"5.736"}},{"$f":"SUM('IV. Country level, 1310-2018'!AY515:BF515)","v":{"v":-8.074741263276138,"d":"-8.0747"}},{"v":13.810662268078618,"d":"13.811"},{"v":3.998661538027216,"d":"3.999"},{"$f":"'IV. Country level, 1310-2018'!V515","v":{"v":-12,"d":"-12.000"}},{"$f":"'IV. Country level, 1310-2018'!D515","v":{"v":15.998661538027216,"d":"15.999"}},{"$nulls":5},{"v":4.8815,"d":"4.882"},{"v":-13.580148154774848,"d":"-13.580"},{"v":18.46164815477485,"d":"18.462"},{"$f":"'VIII. Pers. sov. loans, 1312-'!C514","v":{"v":4.428571428571429,"d":"4.429"}}]
[1822,null,{"v":6.585665436117546,"d":"6.586"},{"v":-3.2121680441549962,"d":"-3.212"},{"v":9.797833480272542,"d":"9.798"},{"v":3.814699079229593,"d":"3.815"},{"v":-0.6428571428571429,"d":"-0.643"},{"v":4.457556222086735,"d":"4.458"},null,null,{"$f":"SUM('IV. Country level, 1310-2018'!AO516:AV516)","v":{"v":5.158825003216403,"d":"5.159"}},{"$f":"SUM('IV. Country level, 1310-2018'!AY516:BF516)","v":{"v":-2.148907814385824,"d":"-2.1489"}},{"v":7.307732817602227,"d":"7.308"},{"v":3.7636587092119456,"d":"3.764"},{"$f":"'IV. Country level, 1310-2018'!V516","v":{"v":-13.5,"d":"-13.500"}},{"$f":"'IV. Country level, 1310-2018'!D516","v":{"v":17.263658709211946,"d":"17.264"}},{"$nulls":5},{"v":4.7834,"d":"4.783"},{"v":0,"d":"0.000"},{"v":4.7834,"d":"4.783"},{"$f":"'VIII. Pers. sov. loans, 1312-'!C515","v":{"v":4.357142857142858,"d":"4.357"}}]
[1823,null,{"v":6.092536593993964,"d":"6.093"},{"v":-1.8373432741107665,"d":"-1.837"},{"v":7.92987986810473,"d":"7.930"},{"v":3.760553527085194,"d":"3.761"},{"v":-1.0714285714285714,"d":"-1.071"},{"v":4.831982098513764,"d":"4.832"},null,null,{"$f":"SUM('IV. Country level, 1310-2018'!AO517:AV517)","v":{"v":5.671327855089828,"d":"5.671"}},{"$f":"SUM('IV. Country level, 1310-2018'!AY517:BF517)","v":{"v":2.333216436106041,"d":"2.3332"}},{"v":3.3381114189837873,"d":"3.338"},{"v":3.780239142980547,"d":"3.780"},{"$f":"'IV. Country level, 1310-2018'!V517","v":{"v":6.8,"d":"6.800"}},{"$f":"'IV. Country level, 1310-2018'!D517","v":{"v":-3.019760857019453,"d":"-3.020"}},{"$nulls":5},{"v":4.8675,"d":"4.868"},{"v":5.4284921098309935,"d":"5.428"},{"v":-0.5609921098309938,"d":"-0.561"},{"$f":"'VIII. Pers. sov. loans, 1312-'!C516","v":{"v":4.2857142857142865,"d":"4.286"}}]
[1824,null,{"v":6.328635170200369,"d":"6.329"},{"v":-0.28964683186547413,"d":"-0.290"},{"v":6.6182820020658415,"d":"6.618"},{"v":3.6476104189854204,"d":"3.648"},{"v":-0.6714285714285716,"d":"-0.671"},{"v":4.3190389904139925,"d":"4.319"},null,null,{"$f":"SUM('IV. Country level, 1310-2018'!AO518:AV518)","v":{"v":5.666607915026555,"d":"5.667"}},{"$f":"SUM('IV. Country level, 1310-2018'!AY518:BF518)","v":{"v":-2.840726832568172,"d":"-2.8407"}},{"v":8.507334747594726,"d":"8.507"},{"v":3.2112439972721276,"d":"3.211"},{"$f":"'IV. Country level, 1310-2018'!V518","v":{"v":8.6,"d":"8.600"}},{"$f":"'IV. Country level, 1310-2018'!D518","v":{"v":-5.388756002727872,"d":"-5.389"}},{"$nulls":5},{"v":4.82775,"d":"4.828"},{"v":-25.203245782102744,"d":"-25.203"},{"v":30.030995782102742,"d":"30.031"},{"$f":"'VIII. Pers. sov. loans, 1312-'!C517","v":{"v":4.214285714285715,"d":"4.214"}}]
[1825,null,{"v":6.603003689457651,"d":"6.603"},{"v":0.9868283589764945,"d":"0.987"},{"v":5.6161753304811555,"d":"5.616"},{"v":3.577888982089069,"d":"3.578"},{"v":0.6285714285714281,"d":"0.629"},{"v":2.949317553517641,"d":"2.949"},null,null,{"$f":"SUM('IV. Country level, 1310-2018'!AO519:AV519)","v":{"v":7.238514679363743,"d":"7.239"}},{"$f":"SUM('IV. Country level, 1310-2018'!AY519:BF519)","v":{"v":4.460689418650074,"d":"4.4607"}},{"v":2.7778252607136693,"d":"2.778"},{"v":3.387168687204829,"d":"3.387"},{"$f":"'IV. Country level, 1310-2018'!V519","v":{"v":17.4,"d":"17.400"}},{"$f":"'IV. Country level, 1310-2018'!D519","v":{"v":-14.01283131279517,"d":"-14.013"}},{"$nulls":5},{"v":4.72475,"d":"4.725"},{"v":-3.2607715423931776,"d":"-3.261"},{"v":7.985521542393178,"d":"7.986"},{"$f":"'VIII. Pers. sov. loans, 1312-'!C518","v":{"v":4.142857142857144,"d":"4.143"}}]
[1826,null,{"v":6.878101657545301,"d":"6.878"},{"v":1.264585369835427,"d":"1.265"},{"v":5.6135162877098725,"d":"5.614"},{"v":3.524458566797626,"d":"3.524"},{"v":2.414285714285714,"d":"2.414"},{"v":1.110172852511912,"d":"1.110"},null,null,{"$f":"SUM('IV. Country level, 1310-2018'!AO520:AV520)","v":{"v":7.1847549037530465,"d":"7.185"}},{"$f":"SUM('IV. Country level, 1310-2018'!AY520:BF520)","v":{"v":0.6362588179091013,"d":"0.6363"}},{"v":6.548496085843945,"d":"6.548"},{"v":3.807513153509211,"d":"3.808"},{"$f":"'IV. Country level, 1310-2018'!V520","v":{"v":-5.5,"d":"-5.500"}},{"$f":"'IV. Country level, 1310-2018'!D520","v":{"v":9.30751315350921,"d":"9.308"}},{"$nulls":5},{"v":4.73175,"d":"4.732"},{"v":13.857361617286564,"d":"13.857"},{"v":-9.125611617286564,"d":"-9.126"},{"$f":"'VIII. Pers. sov. loans, 1312-'!C519","v":{"v":4.071428571428573,"d":"4.071"}}]
[1827,null,{"v":7.055813473377546,"d":"7.056"},{"v":0.977724318972764,"d":"0.978"},{"v":6.078089154404781,"d":"6.078"},{"v":3.469324538271156,"d":"3.469"},{"v":0.9285714285714286,"d":"0.929"},{"v":2.540753109699728,"d":"2.541"},null,null,{"$f":"SUM('IV. Country level, 1310-2018'!AO521:AV521)","v":{"v":7.6444948301505224,"d":"7.644"}},{"$f":"SUM('IV. Country level, 1310-2018'!AY521:BF521)","v":{"v":3.6066834145066005,"d":"3.6067"}},{"$f":"K525-L525","v":{"v":4.037811415643922,"d":"4.038"}},{"v":3.5847877046920686,"d":"3.585"},{"$f":"'IV. Country level, 1310-2018'!V521","v":{"v":-6.5,"d":"-6.500"}},{"$f":"'IV. Country level, 1310-2018'!D521","v":{"v":10.084787704692069,"d":"10.085"}},{"$nulls":5},{"v":4.656000000000001,"d":"4.656"},{"v":18.092301328349546,"d":"18.092"},{"v":-13.436301328349545,"d":"-13.436"},{"$f":"'VIII. Pers. sov. loans, 1312-'!C520","v":{"v":4.000000000000002,"d":"4.000"}}]
[1828,null,{"v":7.203817269101213,"d":"7.204"},{"v":2.4749705255066075,"d":"2.475"},{"v":4.728846743594606,"d":"4.729"},{"v":3.5413446767855583,"d":"3.541"},{"v":1.114285714285714,"d":"1.114"},{"v":2.427058962499845,"d":"2.427"},null,null,{"$f":"SUM('IV. Country level, 1310-2018'!AO522:AV522)","v":{"v":7.656500639603454,"d":"7.657"}},{"$f":"SUM('IV. Country level, 1310-2018'!AY522:BF522)","v":{"v":0.8605850726176398,"d":"0.8606"}},{"v":6.795915566985814,"d":"6.796"},{"v":3.5106114797527543,"d":"3.511"},{"$f":"'IV. Country level, 1310-2018'!V522","v":{"v":-2.9,"d":"-2.900"}},{"$f":"'IV. Country level, 1310-2018'!D522","v":{"v":6.410611479752754,"d":"6.411"}},{"$nulls":5},{"v":4.629999999999999,"d":"4.630"},{"v":2.785517458073675,"d":"2.786"},{"v":1.844482541926324,"d":"1.844"},{"$f":"'VIII. Pers. sov. loans, 1312-'!C521","v":{"v":3.92857142857143,"d":"3.929"}}]
[1829,null,{"v":7.05876963738661,"d":"7.059"},{"v":1.532782357433712,"d":"1.533"},{"v":5.525987279952899,"d":"5.526"},{"v":3.5731218872190533,"d":"3.573"},{"v":-2.4285714285714284,"d":"-2.429"},{"v":6.001693315790482,"d":"6.002"},null,null,{"$f":"SUM('IV. Country level, 1310-2018'!AO523:AV523)","v":{"v":7.0845107798299525,"d":"7.085"}},{"$f":"SUM('IV. Country level, 1310-2018'!AY523:BF523)","v":{"v":-0.20460873837329452,"d":"-0.2046"}},{"v":7.289119518203247,"d":"7.289"},{"v":3.3896458021718434,"d":"3.390"},{"$f":"'IV. Country level, 1310-2018'!V523","v":{"v":-1,"d":"-1.000"}},{"$f":"'IV. Country level, 1310-2018'!D523","v":{"v":4.389645802171843,"d":"4.390"}},{"$nulls":5},{"v":4.66625,"d":"4.666"},{"v":0,"d":"0.000"},{"v":4.66625,"d":"4.666"},{"$f":"'VIII. Pers. sov. loans, 1312-'!C522","v":{"v":3.8571428571428585,"d":"3.857"}}]
[1830,null,{"$f":"AVERAGE(K525:K531)","v":{"v":6.816220178483918,"d":"6.816"}},{"$f":"AVERAGE(L525:L531)","v":{"v":0.7239386384847022,"d":"0.724"}},{"$f":"AVERAGE(M525:M531)","v":{"v":6.092281539999216,"d":"6.092"}},{"$f":"AVERAGE(N525:N531)","v":{"v":3.5198437600741315,"d":"3.520"}},{"$f":"AVERAGE(O525:O531)","v":{"v":-2.5142857142857147,"d":"-2.514"}},{"$f":"AVERAGE(P525:P531)","v":{"v":6.034129474359845,"d":"6.034"}},null,null,{"$f":"SUM('IV. Country level, 1310-2018'!AO524:AV524)","v":{"v":6.915310565915541,"d":"6.915"}},{"$f":"SUM('IV. Country level, 1310-2018'!AY524:BF524)","v":{"v":0.3251890800673976,"d":"0.3252"}},{"v":6.590121485848143,"d":"6.590"},{"v":3.3943009432952596,"d":"3.394"},{"$f":"'IV. Country level, 1310-2018'!V524","v":{"v":-3.6,"d":"-3.600"}},{"$f":"'IV. Country level, 1310-2018'!D524","v":{"v":6.99430094329526,"d":"6.994"}},{"$nulls":5},4.564,{"v":7.317103702462273,"d":"7.317"},{"v":-2.7531037024622727,"d":"-2.753"},{"$f":"'VIII. Pers. sov. loans, 1312-'!C523","v":{"v":3.785714285714287,"d":"3.786"}}]
[1831,null,{"v":6.363963286636911,"d":"6.364"},{"v":-1.0220528564424498,"d":"-1.022"},{"v":7.3860161430793605,"d":"7.386"},{"v":3.482867586955163,"d":"3.483"},{"v":-2.6999999999999997,"d":"-2.700"},{"v":6.182867586955163,"d":"6.183"},null,null,{"$f":"SUM('IV. Country level, 1310-2018'!AO525:AV525)","v":{"v":6.702634485092234,"d":"6.703"}},{"$f":"SUM('IV. Country level, 1310-2018'!AY525:BF525)","v":{"v":7.639996613168736,"d":"7.6400"}},{"v":-0.9373621280765025,"d":"-0.937"},{"v":3.7153849668729446,"d":"3.715"},{"$f":"'IV. Country level, 1310-2018'!V525","v":{"v":9.9,"d":"9.900"}},{"$f":"'IV. Country level, 1310-2018'!D525","v":{"v":-6.184615033127056,"d":"-6.185"}},{"$nulls":5},{"v":4.377500000000001,"d":"4.378"},{"v":16.414032455567963,"d":"16.414"},{"v":-12.036532455567961,"d":"-12.037"},{"$f":"'VIII. Pers. sov. loans, 1312-'!C524","v":{"v":3.7142857142857153,"d":"3.714"}}]
[1832,null,{"v":5.897226461878099,"d":"5.897"},{"v":-0.49815505429789475,"d":"-0.498"},{"v":6.395381516175993,"d":"6.395"},{"v":3.4553823979578033,"d":"3.455"},{"v":-2.042857142857143,"d":"-2.043"},{"v":5.498239540814946,"d":"5.498"},null,null,{"$f":"SUM('IV. Country level, 1310-2018'!AO526:AV526)","v":{"v":6.22318125736152,"d":"6.223"}},{"$f":"SUM('IV. Country level, 1310-2018'!AY526:BF526)","v":{"v":-2.1346277578601978,"d":"-2.1346"}},{"v":8.357809015221719,"d":"8.358"},{"v":3.6096091602392963,"d":"3.610"},{"$f":"'IV. Country level, 1310-2018'!V526","v":{"v":-7.4,"d":"-7.400"}},{"$f":"'IV. Country level, 1310-2018'!D526","v":{"v":11.009609160239297,"d":"11.010"}},{"$nulls":5},{"v":4.233499999999999,"d":"4.234"},{"v":-6.073641025661428,"d":"-6.074"},{"v":10.307141025661426,"d":"10.307"},{"$f":"'VIII. Pers. sov. loans, 1312-'!C525","v":{"v":3.6428571428571437,"d":"3.643"}}]
[1833,null,{"v":5.666519821131804,"d":"5.667"},{"v":0.2959963890336204,"d":"0.296"},{"v":5.370523432098183,"d":"5.371"},{"v":3.4490356324425813,"d":"3.449"},{"v":-0.3285714285714287,"d":"-0.329"},{"v":3.7776070610140096,"d":"3.778"},null,null,{"$f":"SUM('IV. Country level, 1310-2018'!AO527:AV527)","v":{"v":5.486908691434203,"d":"5.487"}},{"$f":"SUM('IV. Country level, 1310-2018'!AY527:BF527)","v":{"v":-5.025647214733967,"d":"-5.0256"}},{"v":10.51255590616817,"d":"10.513"},{"v":3.4345662634947516,"d":"3.435"},{"$f":"'IV. Country level, 1310-2018'!V527","v":{"v":-6.1,"d":"-6.100"}},{"$f":"'IV. Country level, 1310-2018'!D527","v":{"v":9.534566263494751,"d":"9.535"}},{"$nulls":5},4.227,{"v":-6.466599506390884,"d":"-6.467"},{"v":10.693599506390886,"d":"10.694"},{"$f":"'VIII. Pers. sov. loans, 1312-'!C526","v":{"v":3.571428571428572,"d":"3.571"}}]
[1834,null,{"v":5.46147660338953,"d":"5.461"},{"v":1.0190623967077233,"d":"1.019"},{"v":4.442414206681806,"d":"4.442"},{"v":3.4373449926014814,"d":"3.437"},{"v":0.5428571428571429,"d":"0.543"},{"v":2.8944878497443383,"d":"2.894"},null,null,{"$f":"SUM('IV. Country level, 1310-2018'!AO528:AV528)","v":{"v":4.478696587221478,"d":"4.479"}},{"$f":"SUM('IV. Country level, 1310-2018'!AY528:BF528)","v":{"v":-8.615257049983464,"d":"-8.6153"}},{"v":13.093953637204942,"d":"13.094"},{"v":3.3259544928592897,"d":"3.326"},{"$f":"'IV. Country level, 1310-2018'!V528","v":{"v":-7.8,"d":"-7.800"}},{"$f":"'IV. Country level, 1310-2018'!D528","v":{"v":11.12595449285929,"d":"11.126"}},{"$nulls":5},{"v":4.2185,"d":"4.219"},{"v":-15.802532784822471,"d":"-15.803"},{"v":20.02103278482247,"d":"20.021"},{"$f":"'VIII. Pers. sov. loans, 1312-'!C527","v":{"v":3.5000000000000004,"d":"3.500"}}]
[1835,null,{"v":5.31856896076346,"d":"5.319"},{"v":0.30794261254309385,"d":"0.308"},{"v":5.0106263482203675,"d":"5.011"},{"v":3.3681669218758765,"d":"3.368"},{"v":-0.7714285714285716,"d":"-0.771"},{"v":4.139595493304447,"d":"4.140"},null,null,{"$f":"SUM('IV. Country level, 1310-2018'!AO529:AV529)","v":{"v":4.389342866291759,"d":"4.389"}},{"$f":"SUM('IV. Country level, 1310-2018'!AY529:BF529)","v":{"v":4.5278696876295275,"d":"4.5279"}},{"v":-0.13852682133776817,"d":"-0.139"},{"v":3.31821515677124,"d":"3.318"},{"$f":"'IV. Country level, 1310-2018'!V529","v":{"v":1.7,"d":"1.700"}},{"$f":"'IV. Country level, 1310-2018'!D529","v":{"v":1.61821515677124,"d":"1.618"}},{"$nulls":5},{"v":4.2145,"d":"4.215"},{"v":2.6394910720628104,"d":"2.639"},{"v":1.5750089279371897,"d":"1.575"},{"$f":"'VIII. Pers. sov. loans, 1312-'!C528","v":{"v":3.428571428571429,"d":"3.429"}}]
[1836,null,{"v":5.1690728421103955,"d":"5.169"},{"v":1.1414157805546146,"d":"1.141"},{"v":4.027657061555781,"d":"4.028"},{"v":3.3227221744516293,"d":"3.323"},{"v":1.3285714285714287,"d":"1.329"},{"v":1.9941507458802,"d":"1.994"},null,null,{"$f":"SUM('IV. Country level, 1310-2018'!AO530:AV530)","v":{"v":5.469564294605897,"d":"5.470"}},{"$f":"SUM('IV. Country level, 1310-2018'!AY530:BF530)","v":{"v":5.35445136494731,"d":"5.3545"}},{"v":0.11511292965858733,"d":"0.115"},{"v":3.3452184435652867,"d":"3.345"},{"$f":"'IV. Country level, 1310-2018'!V530","v":{"v":11,"d":"11.000"}},{"$f":"'IV. Country level, 1310-2018'!D530","v":{"v":-7.654781556434713,"d":"-7.655"}},{"$nulls":5},{"v":4.1985,"d":"4.199"},{"v":-2.571613561693942,"d":"-2.572"},{"v":6.770113561693942,"d":"6.770"},{"$f":"'VIII. Pers. sov. loans, 1312-'!C529","v":{"v":3.357142857142857,"d":"3.357"}}]
[1837,null,{"v":5.121894145107324,"d":"5.122"},{"v":1.463158835270119,"d":"1.463"},{"v":3.658735309837205,"d":"3.659"},{"v":3.3110890158412394,"d":"3.311"},{"v":2.457142857142857,"d":"2.457"},{"v":0.8539461586983818,"d":"0.854"},null,null,{"$f":"SUM('IV. Country level, 1310-2018'!AO531:AV531)","v":{"v":5.480008041719623,"d":"5.480"}},{"$f":"SUM('IV. Country level, 1310-2018'!AY531:BF531)","v":{"v":5.386651133786117,"d":"5.3867"}},{"v":0.09335690793350615,"d":"0.093"},{"v":3.3124664644075636,"d":"3.312"},{"$f":"'IV. Country level, 1310-2018'!V531","v":{"v":2.5,"d":"2.500"}},{"$f":"'IV. Country level, 1310-2018'!D531","v":{"v":0.8124664644075636,"d":"0.812"}},{"$nulls":5},4.045,{"v":2.6394910720628104,"d":"2.639"},{"v":1.4055089279371895,"d":"1.406"},{"$f":"'VIII. Pers. sov. loans, 1312-'!C530","v":{"v":3.2857142857142856,"d":"3.286"}}]
[1838,null,{"v":5.222555979232115,"d":"5.223"},{"v":2.323998379038817,"d":"2.324"},{"v":2.8985576001932993,"d":"2.899"},{"v":3.319378874748805,"d":"3.319"},{"v":3.242857142857143,"d":"3.243"},{"v":0.07652173189166143,"d":"0.077"},null,null,{"$f":"SUM('IV. Country level, 1310-2018'!AO532:AV532)","v":{"v":5.702280986709747,"d":"5.702"}},{"$f":"SUM('IV. Country level, 1310-2018'!AY532:BF532)","v":{"v":2.6621581240163317,"d":"2.6622"}},{"v":3.040122862693415,"d":"3.040"},{"v":3.231138471793707,"d":"3.231"},{"$f":"'IV. Country level, 1310-2018'!V532","v":{"v":0.7,"d":"0.700"}},{"$f":"'IV. Country level, 1310-2018'!D532","v":{"v":2.5311384717937067,"d":"2.531"}},{"$nulls":5},{"v":4.1259999999999994,"d":"4.126"},{"v":15.714153478411887,"d":"15.714"},{"v":-11.588153478411888,"d":"-11.588"},{"$f":"'VIII. Pers. sov. loans, 1312-'!C531","v":{"v":3.214285714285714,"d":"3.214"}}]
[1839,null,{"v":5.341208068297431,"d":"5.341"},{"v":1.6339375528435187,"d":"1.634"},{"v":3.7072705154539114,"d":"3.707"},{"v":3.315086284307881,"d":"3.315"},{"v":1.9142857142857144,"d":"1.914"},{"v":1.400800570022167,"d":"1.401"},null,null,{"$f":"SUM('IV. Country level, 1310-2018'!AO533:AV533)","v":{"v":5.176708426790068,"d":"5.177"}},{"$f":"SUM('IV. Country level, 1310-2018'!AY533:BF533)","v":{"v":3.6996844182204462,"d":"3.6997"}},{"v":1.4770240085696216,"d":"1.477"},{"v":3.2914959282695637,"d":"3.291"},{"$f":"'IV. Country level, 1310-2018'!V533","v":{"v":7.3,"d":"7.300"}},{"$f":"'IV. Country level, 1310-2018'!D533","v":{"v":-4.008504071730436,"d":"-4.009"}},{"$nulls":5},{"v":3.9737500000000003,"d":"3.974"},{"v":4.691295084867874,"d":"4.691"},{"$f":"V537-W537","v":{"v":-0.7175450848678735,"d":"-0.718"}},{"$f":"'VIII. Pers. sov. loans, 1312-'!C532","v":{"v":3.1428571428571423,"d":"3.143"}}]
[1840,null,{"v":5.304874229336758,"d":"5.305"},{"v":0.35236840663898716,"d":"0.352"},{"v":4.952505822697772,"d":"4.953"},{"v":3.2891397289162723,"d":"3.289"},{"v":-1.2714285714285716,"d":"-1.271"},{"v":4.560568300344845,"d":"4.561"},null,null,{"$f":"SUM('IV. Country level, 1310-2018'!AO534:AV534)","v":{"v":5.1566578124126945,"d":"5.157"}},{"$f":"SUM('IV. Country level, 1310-2018'!AY534:BF534)","v":{"v":-2.7734458317254362,"d":"-2.7734"}},{"v":7.93010364413813,"d":"7.930"},{"$f":"P538+O538","v":{"v":3.353134153222021,"d":"3.353"}},{"$f":"'IV. Country level, 1310-2018'!V534","v":{"v":1.8,"d":"1.800"}},{"$f":"'IV. Country level, 1310-2018'!D534","v":{"v":1.553134153222021,"d":"1.553"}},{"$nulls":5},{"v":3.9495000000000005,"d":"3.950"},{"v":-2.1225799843065345,"d":"-2.123"},{"v":6.072079984306535,"d":"6.072"},{"$f":"'VIII. Pers. sov. loans, 1312-'!C533","v":{"v":3.0714285714285707,"d":"3.071"}}]
[1841,null,{"v":5.214062782020969,"d":"5.214"},{"v":-0.7836883795470699,"d":"-0.784"},{"v":5.997751161568039,"d":"5.998"},{"v":3.2505157390498667,"d":"3.251"},{"v":-1.6428571428571426,"d":"-1.643"},{"v":4.893372881907011,"d":"4.893"},null,null,{"$f":"SUM('IV. Country level, 1310-2018'!AO535:AV535)","v":{"v":5.183329426095024,"d":"5.183"}},{"$f":"SUM('IV. Country level, 1310-2018'!AY535:BF535)","v":{"v":-2.58938024360258,"d":"-2.5894"}},{"v":7.772709669697604,"d":"7.773"},{"v":3.3839835052122487,"d":"3.384"},{"$f":"'IV. Country level, 1310-2018'!V535","v":{"v":-2.3,"d":"-2.300"}},{"$f":"'IV. Country level, 1310-2018'!D535","v":{"v":5.6839835052122485,"d":"5.684"}},{"$nulls":5},{"v":3.9517499999999997,"d":"3.952"},{"v":-4.5782514641769,"d":"-4.578"},{"v":8.5300014641769,"d":"8.530"},{"$f":"'VIII. Pers. sov. loans, 1312-'!C534","v":{"v":3,"d":"3.000"}}]
[1842,null,{"v":5.097706793599996,"d":"5.098"},{"v":-0.5623225157438941,"d":"-0.562"},{"v":5.66002930934389,"d":"5.660"},{"v":3.2277812529440255,"d":"3.228"},{"v":-1.042857142857143,"d":"-1.043"},{"v":4.270638395801168,"d":"4.271"},null,null,{"$f":"SUM('IV. Country level, 1310-2018'!AO536:AV536)","v":{"v":5.21990748974896,"d":"5.220"}},{"$f":"SUM('IV. Country level, 1310-2018'!AY536:BF536)","v":{"v":-0.3025560957375571,"d":"-0.3026"}},{"v":5.522463585486517,"d":"5.522"},{"v":3.28816702368478,"d":"3.288"},{"$f":"'IV. Country level, 1310-2018'!V536","v":{"v":-7.6,"d":"-7.600"}},{"$f":"'IV. Country level, 1310-2018'!D536","v":{"v":10.88816702368478,"d":"10.888"}},{"$nulls":5},{"v":3.9462499999999996,"d":"3.946"},{"v":9.343462020719777,"d":"9.343"},{"v":-5.397212020719778,"d":"-5.397"},{"$f":"'VIII. Pers. sov. loans, 1312-'!C535","v":{"v":4.5,"d":"4.500"}}]
[1843,null,{"v":5.090274887438333,"d":"5.090"},{"v":0.20729859796260452,"d":"0.207"},{"v":4.882976289475728,"d":"4.883"},{"v":3.2094503563314207,"d":"3.209"},{"v":-1.5142857142857142,"d":"-1.514"},{"v":4.723736070617136,"d":"4.724"},null,null,{"$f":"SUM('IV. Country level, 1310-2018'!AO537:AV537)","v":{"v":5.215227421881191,"d":"5.215"}},{"$f":"SUM('IV. Country level, 1310-2018'!AY537:BF537)","v":{"v":-3.616532658484411,"d":"-3.6165"}},{"v":8.831760080365601,"d":"8.832"},{"v":3.1635925558240263,"d":"3.164"},{"$f":"'IV. Country level, 1310-2018'!V537","v":{"v":-11.3,"d":"-11.300"}},{"$f":"'IV. Country level, 1310-2018'!D537","v":{"v":14.463592555824027,"d":"14.464"}},{"$nulls":5},{"v":3.94725,"d":"3.947"},{"v":4.156916800099875,"d":"4.157"},{"v":-0.20966680009987515,"d":"-0.210"},{"$f":"'VIII. Pers. sov. loans, 1312-'!C536","v":{"v":4.5,"d":"4.500"}}]
[1844,null,{"v":5.175625203575144,"d":"5.176"},{"v":1.8491523891262125,"d":"1.849"},{"v":3.3264728144489317,"d":"3.326"},{"v":3.2250602147666187,"d":"3.225"},{"v":-0.05714285714285694,"d":"-0.057"},{"v":3.282203071909476,"d":"3.282"},null,null,{"$f":"SUM('IV. Country level, 1310-2018'!AO538:AV538)","v":{"v":4.8443279105091,"d":"4.844"}},{"$f":"SUM('IV. Country level, 1310-2018'!AY538:BF538)","v":{"v":-2.5657463695162828,"d":"-2.5657"}},{"v":7.410074280025382,"d":"7.410"},{"v":3.042098535342724,"d":"3.042"},{"$f":"'IV. Country level, 1310-2018'!V538","v":{"v":-0.1,"d":"-0.100"}},{"$f":"'IV. Country level, 1310-2018'!D538","v":{"v":3.142098535342724,"d":"3.142"}},{"$nulls":5},{"v":3.9647500000000004,"d":"3.965"},{"v":-10.19953031720364,"d":"-10.200"},{"v":14.164280317203641,"d":"14.164"},{"$f":"'VIII. Pers. sov. loans, 1312-'!C537","v":{"v":4.5,"d":"4.500"}}]
[1845,null,{"v":5.447478149261414,"d":"5.447"},{"v":0.19755284611187207,"d":"0.198"},{"v":5.249925303149543,"d":"5.250"},{"v":3.2446412584801294,"d":"3.245"},{"v":-1.457142857142857,"d":"-1.457"},{"v":4.701784115622987,"d":"4.702"},null,null,{"$f":"SUM('IV. Country level, 1310-2018'!AO539:AV539)","v":{"v":4.8877890677629345,"d":"4.888"}},{"$f":"SUM('IV. Country level, 1310-2018'!AY539:BF539)","v":{"v":4.211719170638562,"d":"4.2117"}},{"v":0.6760698971243722,"d":"0.676"},{"v":3.0719970690528124,"d":"3.072"},{"$f":"'IV. Country level, 1310-2018'!V539","v":{"v":4.9,"d":"4.900"}},{"$f":"'IV. Country level, 1310-2018'!D539","v":{"v":-1.828002930947188,"d":"-1.828"}},{"$nulls":5},{"v":4.01525,"d":"4.015"},{"v":11.357992172236521,"d":"11.358"},{"v":-7.342742172236521,"d":"-7.343"},{"$f":"'VIII. Pers. sov. loans, 1312-'!C538","v":{"v":4.5,"d":"4.500"}}]
[1846,null,{"v":5.544533661382653,"d":"5.545"},{"v":-0.2637204670163186,"d":"-0.264"},{"v":5.808254128398972,"d":"5.808"},{"v":3.239658133897002,"d":"3.240"},{"v":-1.2714285714285711,"d":"-1.271"},{"v":4.511086705325573,"d":"4.511"},null,null,{"$f":"SUM('IV. Country level, 1310-2018'!AO540:AV540)","v":{"v":5.1246850836584255,"d":"5.125"}},{"$f":"SUM('IV. Country level, 1310-2018'!AY540:BF540)","v":{"v":9.087032214165937,"d":"9.0870"}},{"v":-3.9623471305075117,"d":"-3.962"},{"v":3.1631796519813355,"d":"3.163"},{"$f":"'IV. Country level, 1310-2018'!V540","v":{"v":4,"d":"4.000"}},{"$f":"'IV. Country level, 1310-2018'!D540","v":{"v":-0.8368203480186645,"d":"-0.837"}},{"$nulls":5},4.041,{"v":22.616358261345283,"d":"22.616"},{"v":-18.575358261345283,"d":"-18.575"},{"$f":"'VIII. Pers. sov. loans, 1312-'!C539","v":{"v":4.5,"d":"4.500"}}]
[1847,null,{"v":5.656940212565802,"d":"5.657"},{"v":-0.46941083262121136,"d":"-0.469"},{"v":6.126351045187015,"d":"6.126"},{"v":3.2355496735411884,"d":"3.236"},{"v":-0.5714285714285713,"d":"-0.571"},{"v":3.8069782449697596,"d":"3.807"},null,null,{"$f":"SUM('IV. Country level, 1310-2018'!AO541:AV541)","v":{"v":5.754110025370371,"d":"5.754"}},{"$f":"SUM('IV. Country level, 1310-2018'!AY541:BF541)","v":{"v":8.719530706419818,"d":"8.7195"}},{"v":-2.965420681049446,"d":"-2.965"},{"v":3.462403162268405,"d":"3.462"},{"$f":"'IV. Country level, 1310-2018'!V541","v":{"v":12,"d":"12.000"}},{"$f":"'IV. Country level, 1310-2018'!D541","v":{"v":-8.537596837731595,"d":"-8.538"}},{"$nulls":5},{"v":4.1725,"d":"4.173"},{"v":18.264098336371312,"d":"18.264"},{"v":-14.091598336371312,"d":"-14.092"},{"$f":"'VIII. Pers. sov. loans, 1312-'!C540","v":{"v":4.5,"d":"4.500"}}]
[1848,null,{"v":5.595151951887573,"d":"5.595"},{"v":0.7135051715191374,"d":"0.714"},{"v":4.881646780368436,"d":"4.882"},{"v":3.2455355970636552,"d":"3.246"},{"v":-0.9857142857142859,"d":"-0.986"},{"v":4.231249882777942,"d":"4.231"},null,null,{"$f":"SUM('IV. Country level, 1310-2018'!AO542:AV542)","v":{"v":7.08630004589892,"d":"7.086"}},{"$f":"SUM('IV. Country level, 1310-2018'!AY542:BF542)","v":{"v":-14.150577044702963,"d":"-14.1506"}},{"v":21.236877090601883,"d":"21.237"},{"v":3.5210508112068215,"d":"3.521"},{"$f":"'IV. Country level, 1310-2018'!V542","v":{"v":-12.1,"d":"-12.100"}},{"$f":"'IV. Country level, 1310-2018'!D542","v":{"v":15.621050811206821,"d":"15.621"}},{"$nulls":5},{"v":4.5835,"d":"4.584"},{"v":-33.791988256330235,"d":"-33.792"},{"v":38.375488256330236,"d":"38.375"},{"$f":"'VIII. Pers. sov. loans, 1312-'!C541","v":{"v":6,"d":"6.000"}}]
[1849,null,{"v":5.47000593328598,"d":"5.470"},{"v":0.6443555560267444,"d":"0.644"},{"v":4.825650377259235,"d":"4.826"},{"v":3.239702682437064,"d":"3.240"},{"v":-1.6857142857142857,"d":"-1.686"},{"v":4.925416968151349,"d":"4.925"},null,null,{"$f":"SUM('IV. Country level, 1310-2018'!AO543:AV543)","v":{"v":5.899296074597635,"d":"5.899"}},{"$f":"SUM('IV. Country level, 1310-2018'!AY543:BF543)","v":{"v":-3.5314692876348905,"d":"-3.5315"}},{"v":9.430765362232526,"d":"9.431"},{"v":3.253285151602884,"d":"3.253"},{"$f":"'IV. Country level, 1310-2018'!V543","v":{"v":-6.3,"d":"-6.300"}},{"$f":"'IV. Country level, 1310-2018'!D543","v":{"v":9.553285151602884,"d":"9.553"}},{"$nulls":5},{"v":4.518999999999999,"d":"4.519"},{"v":-12.702187992815173,"d":"-12.702"},{"v":17.22118799281517,"d":"17.221"},{"$f":"'VIII. Pers. sov. loans, 1312-'!C542","v":{"v":5.5,"d":"5.500"}}]
[1850,null,{"v":5.330758450214064,"d":"5.331"},{"v":0.5734542753457185,"d":"0.573"},{"v":4.757304174868345,"d":"4.757"},{"v":3.2309032083444924,"d":"3.231"},{"v":-0.9285714285714286,"d":"-0.929"},{"v":4.1594746369159195,"d":"4.159"},null,null,{"$f":"SUM('IV. Country level, 1310-2018'!AO544:AV544)","v":{"v":6.002073280163234,"d":"6.002"}},{"$f":"SUM('IV. Country level, 1310-2018'!AY544:BF544)","v":{"v":-5.05636521771866,"d":"-5.0564"}},{"v":11.058438497881895,"d":"11.058"},{"v":3.134833333333333,"d":"3.135"},{"$f":"'IV. Country level, 1310-2018'!V544","v":{"v":-6.4,"d":"-6.400"}},{"$f":"'IV. Country level, 1310-2018'!D544","v":{"v":9.534833333333333,"d":"9.535"}},{"$nulls":5},4.579,{"v":-2.3808824495803655,"d":"-2.381"},{"v":6.959882449580365,"d":"6.960"},{"$f":"'VIII. Pers. sov. loans, 1312-'!C543","v":{"v":5,"d":"5.000"}}]
[1851,null,{"v":5.145072898147454,"d":"5.145"},{"v":1.1346492968172048,"d":"1.135"},{"v":4.010423601330248,"d":"4.010"},{"v":3.207690851829958,"d":"3.208"},{"v":-0.48571428571428527,"d":"-0.486"},{"v":3.6934051375442434,"d":"3.693"},null,null,{"$f":"SUM('IV. Country level, 1310-2018'!AO545:AV545)","v":{"v":4.411810085761491,"d":"4.412"}},{"$f":"SUM('IV. Country level, 1310-2018'!AY545:BF545)","v":{"v":5.714665659466158,"d":"5.7147"}},{"v":-1.302855573704667,"d":"-1.303"},3.112,{"$f":"'IV. Country level, 1310-2018'!V545","v":{"v":-3,"d":"-3.000"}},{"$f":"'IV. Country level, 1310-2018'!D545","v":6.112},{"$nulls":5},4.553,{"v":17.344236528638294,"d":"17.344"},{"v":-12.791236528638294,"d":"-12.791"},{"$f":"'VIII. Pers. sov. loans, 1312-'!C544","v":{"v":4.5,"d":"4.500"}}]
[1852,null,{"v":4.760532427299583,"d":"4.761"},{"v":3.664643368152929,"d":"3.665"},{"v":1.095889059146654,"d":"1.096"},{"v":3.183302640705173,"d":"3.183"},{"v":1.7142857142857142,"d":"1.714"},{"v":1.4690169264194597,"d":"1.469"},null,null,{"$f":"SUM('IV. Country level, 1310-2018'!AO546:AV546)","v":{"v":4.011766937551779,"d":"4.012"}},{"$f":"SUM('IV. Country level, 1310-2018'!AY546:BF546)","v":{"v":3.727671862191812,"d":"3.7277"}},{"v":0.2840950753599669,"d":"0.284"},{"v":3.031166666666666,"d":"3.031"},{"$f":"'IV. Country level, 1310-2018'!V546","v":{"v":0,"d":"0.000"}},{"$f":"'IV. Country level, 1310-2018'!D546","v":{"v":3.031166666666666,"d":"3.031"}},{"$nulls":5},{"v":4.5255,"d":"4.526"},{"v":17.089902181297482,"d":"17.090"},{"v":-12.564402181297481,"d":"-12.564"},{"$f":"'VIII. Pers. sov. loans, 1312-'!C545","v":{"v":4,"d":"4.000"}}]
[1853,null,{"v":4.5386508218749215,"d":"4.539"},{"v":4.303825124554454,"d":"4.304"},{"v":0.23482569732046846,"d":"0.235"},{"v":3.1800238095238096,"d":"3.180"},{"v":2.6142857142857143,"d":"2.614"},{"v":0.5657380952380953,"d":"0.566"},null,null,{"$f":"SUM('IV. Country level, 1310-2018'!AO547:AV547)","v":{"v":4.149952702155017,"d":"4.150"}},{"$f":"SUM('IV. Country level, 1310-2018'!AY547:BF547)","v":{"v":8.590723249398756,"d":"8.5907"}},{"v":-4.44077054724374,"d":"-4.441"},{"v":3.1015833333333322,"d":"3.102"},{"$f":"'IV. Country level, 1310-2018'!V547","v":{"v":9.3,"d":"9.300"}},{"$f":"'IV. Country level, 1310-2018'!D547","v":{"v":-6.1984166666666685,"d":"-6.198"}},{"$nulls":5},{"v":4.4632499999999995,"d":"4.463"},{"v":10.848235207462722,"d":"10.848"},{"v":-6.384985207462722,"d":"-6.385"},{"$f":"'VIII. Pers. sov. loans, 1312-'!C546","v":{"v":4,"d":"4.000"}}]
[1854,null,{"v":4.306835669878998,"d":"4.307"},{"v":4.113090638623624,"d":"4.113"},{"v":0.193745031255375,"d":"0.194"},{"v":3.2014047619047616,"d":"3.201"},{"v":2.7285714285714286,"d":"2.729"},{"v":0.4728333333333331,"d":"0.473"},null,null,{"$f":"SUM('IV. Country level, 1310-2018'!AO548:AV548)","v":{"v":4.454311160904099,"d":"4.454"}},{"$f":"SUM('IV. Country level, 1310-2018'!AY548:BF548)","v":{"v":12.64789585672022,"d":"12.6479"}},{"v":-8.19358469581612,"d":"-8.194"},{"v":3.2999166666666664,"d":"3.300"},{"$f":"'IV. Country level, 1310-2018'!V548","v":{"v":15.1,"d":"15.100"}},{"$f":"'IV. Country level, 1310-2018'!D548","v":{"v":-11.800083333333333,"d":"-11.800"}},{"$nulls":5},{"v":4.51675,"d":"4.517"},{"v":19.750787538937427,"d":"19.751"},{"v":-15.234037538937427,"d":"-15.234"},{"$f":"'VIII. Pers. sov. loans, 1312-'!C547","v":{"v":4,"d":"4.000"}}]
[1855,null,{"v":4.258067457239784,"d":"4.258"},{"v":2.4966109480203404,"d":"2.497"},{"v":1.761456509219444,"d":"1.761"},{"v":3.2016309523809516,"d":"3.202"},{"v":1.9571428571428573,"d":"1.957"},{"v":1.244488095238095,"d":"1.244"},null,null,{"$f":"SUM('IV. Country level, 1310-2018'!AO549:AV549)","v":{"v":4.394516749963825,"d":"4.395"}},{"$f":"SUM('IV. Country level, 1310-2018'!AY549:BF549)","v":{"v":3.5593814546471068,"d":"3.5594"}},{"v":0.8351352953167179,"d":"0.835"},{"v":3.350333333333334,"d":"3.350"},{"$f":"'IV. Country level, 1310-2018'!V549","v":{"v":3.3,"d":"3.300"}},{"$f":"'IV. Country level, 1310-2018'!D549","v":{"v":0.05033333333333401,"d":"0.050"}},{"$nulls":5},4.497,{"v":6.835049668802215,"d":"6.835"},{"v":-2.338049668802215,"d":"-2.338"},{"$f":"'VIII. Pers. sov. loans, 1312-'!C548","v":{"v":4,"d":"4.000"}}]
[1856,null,{"v":4.279116076865025,"d":"4.279"},{"v":1.8379800182920836,"d":"1.838"},{"v":2.441136058572941,"d":"2.441"},{"v":3.225095238095238,"d":"3.225"},{"v":1.7,"d":"1.700"},{"v":1.5250952380952383,"d":"1.525"},null,null,{"$f":"SUM('IV. Country level, 1310-2018'!AO550:AV550)","v":{"v":4.34612483662501,"d":"4.346"}},{"$f":"SUM('IV. Country level, 1310-2018'!AY550:BF550)","v":{"v":0.9428030071757819,"d":"0.9428"}},{"v":3.403321829449228,"d":"3.403"},{"v":3.2303333333333337,"d":"3.230"},{"$f":"'IV. Country level, 1310-2018'!V550","v":{"v":0,"d":"0.000"}},{"$f":"'IV. Country level, 1310-2018'!D550","v":{"v":3.2303333333333337,"d":"3.230"}},{"$nulls":5},{"v":4.6187499999999995,"d":"4.619"},{"v":-2.642524918563873,"d":"-2.643"},{"v":7.261274918563872,"d":"7.261"},{"$f":"'VIII. Pers. sov. loans, 1312-'!C549","v":{"v":4,"d":"4.000"}}]
[1857,null,{"v":4.363053294286179,"d":"4.363"},{"v":1.0053480280857503,"d":"1.005"},{"v":3.357705266200429,"d":"3.358"},{"v":3.2419761904761906,"d":"3.242"},{"v":0.8999999999999998,"d":"0.900"},{"v":2.3419761904761907,"d":"2.342"},null,null,{"$f":"SUM('IV. Country level, 1310-2018'!AO551:AV551)","v":{"v":4.379367216191769,"d":"4.379"}},{"$f":"SUM('IV. Country level, 1310-2018'!AY551:BF551)","v":{"v":-6.391506619234471,"d":"-6.3915"}},{"v":10.77087383542624,"d":"10.771"},{"v":3.2844999999999995,"d":"3.285"},{"$f":"'IV. Country level, 1310-2018'!V551","v":{"v":-5.6,"d":"-5.600"}},{"$f":"'IV. Country level, 1310-2018'!D551","v":{"v":8.8845,"d":"8.885"}},{"$nulls":5},{"v":4.68025,"d":"4.680"},{"v":-18.428556174759557,"d":"-18.429"},{"v":23.108806174759557,"d":"23.109"},{"$f":"'VIII. Pers. sov. loans, 1312-'!C550","v":{"v":4,"d":"4.000"}}]
[1858,null,{"v":4.44753912134147,"d":"4.448"},{"v":-0.35786995240452885,"d":"-0.358"},{"v":4.805409073745999,"d":"4.805"},{"v":3.2404523809523806,"d":"3.240"},{"v":-0.8714285714285716,"d":"-0.871"},{"v":4.111880952380952,"d":"4.112"},null,null,{"$f":"SUM('IV. Country level, 1310-2018'!AO552:AV552)","v":{"v":4.070432597286996,"d":"4.070"}},{"$f":"SUM('IV. Country level, 1310-2018'!AY552:BF552)","v":{"v":-5.60069217475682,"d":"-5.6007"}},{"v":9.671124772043816,"d":"9.671"},{"v":3.1135833333333327,"d":"3.114"},{"$f":"'IV. Country level, 1310-2018'!V552","v":{"v":-8.4,"d":"-8.400"}},{"$f":"'IV. Country level, 1310-2018'!D552","v":{"v":11.513583333333333,"d":"11.514"}},{"$nulls":5},{"v":4.5155,"d":"4.516"},{"v":-4.728567947345885,"d":"-4.729"},{"v":9.244067947345886,"d":"9.244"},{"$f":"'VIII. Pers. sov. loans, 1312-'!C551","v":{"v":4,"d":"4.000"}}]
[1859,null,{"v":4.495968490366243,"d":"4.496"},{"v":-0.6774991344699614,"d":"-0.677"},{"v":5.173467624836205,"d":"5.173"},{"v":3.2241785714285713,"d":"3.224"},{"v":-1.7142857142857146,"d":"-1.714"},{"v":4.938464285714285,"d":"4.938"},null,null,{"$f":"SUM('IV. Country level, 1310-2018'!AO553:AV553)","v":{"v":4.159107274928457,"d":"4.159"}},{"$f":"SUM('IV. Country level, 1310-2018'!AY553:BF553)","v":{"v":-0.882744645905987,"d":"-0.8827"}},{"v":5.0418519208344446,"d":"5.042"},{"v":3.1954166666666666,"d":"3.195"},{"$f":"'IV. Country level, 1310-2018'!V553","v":{"v":-1.8,"d":"-1.800"}},{"$f":"'IV. Country level, 1310-2018'!D553","v":{"v":4.995416666666666,"d":"4.995"}},{"$nulls":5},{"v":4.5775,"d":"4.578"},{"v":0,"d":"0.000"},{"v":4.5775,"d":"4.578"},{"$f":"'VIII. Pers. sov. loans, 1312-'!C552","v":{"v":4,"d":"4.000"}}]
[1860,null,{"v":4.537179583257602,"d":"4.537"},{"v":-0.775828696305202,"d":"-0.776"},{"v":5.313008279562803,"d":"5.313"},{"v":3.2280476190476186,"d":"3.228"},{"v":-2.2285714285714286,"d":"-2.229"},{"v":5.456619047619047,"d":"5.457"},null,null,{"$f":"SUM('IV. Country level, 1310-2018'!AO554:AV554)","v":{"v":4.737513224103098,"d":"4.738"}},{"$f":"SUM('IV. Country level, 1310-2018'!AY554:BF554)","v":{"v":2.7622993179544197,"d":"2.7623"}},{"v":1.975213906148678,"d":"1.975"},{"v":3.21975,"d":"3.220"},{"$f":"'IV. Country level, 1310-2018'!V554","v":{"v":3.7,"d":"3.700"}},{"$f":"'IV. Country level, 1310-2018'!D554","v":{"v":-0.4802500000000003,"d":"-0.480"}},{"$nulls":5},{"v":4.4925,"d":"4.493"},{"v":6.617622199575961,"d":"6.618"},{"v":-2.1251221995759613,"d":"-2.125"},{"$f":"'VIII. Pers. sov. loans, 1312-'!C553","v":{"v":3.998173515981735,"d":"3.998"}}]
[1861,null,{"v":4.576982629552093,"d":"4.577"},{"v":1.0017956839019555,"d":"1.002"},{"v":3.5751869456501386,"d":"3.575"},{"v":3.2370119047619044,"d":"3.237"},{"v":-1.5571428571428572,"d":"-1.557"},{"v":4.794154761904762,"d":"4.794"},null,null,{"$f":"SUM('IV. Country level, 1310-2018'!AO555:AV555)","v":{"v":5.045711950291135,"d":"5.046"}},{"$f":"SUM('IV. Country level, 1310-2018'!AY555:BF555)","v":{"v":3.1053699932882672,"d":"3.1054"}},{"v":1.9403419570028682,"d":"1.940"},{"v":3.28925,"d":"3.289"},{"$f":"'IV. Country level, 1310-2018'!V555","v":{"v":2.7,"d":"2.700"}},{"$f":"'IV. Country level, 1310-2018'!D555","v":{"v":0.5892499999999998,"d":"0.589"}},{"$nulls":5},{"v":4.39475,"d":"4.395"},{"v":4.827657496131601,"d":"4.828"},{"v":-0.43290749613160084,"d":"-0.433"},{"$f":"'VIII. Pers. sov. loans, 1312-'!C554","v":{"v":3.99634703196347,"d":"3.996"}}]
[1862,null,{"v":4.6787809893297,"d":"4.679"},{"v":1.764259233554777,"d":"1.764"},{"v":2.9145217557749215,"d":"2.915"},{"v":3.2735714285714286,"d":"3.274"},{"v":-0.2285714285714285,"d":"-0.229"},{"v":3.502142857142857,"d":"3.502"},null,null,{"$f":"SUM('IV. Country level, 1310-2018'!AO556:AV556)","v":{"v":4.7335223331372385,"d":"4.734"}},{"$f":"SUM('IV. Country level, 1310-2018'!AY556:BF556)","v":{"v":1.3219771801890807,"d":"1.3220"}},{"v":3.4115451529481575,"d":"3.412"},{"v":3.2364166666666665,"d":"3.236"},{"$f":"'IV. Country level, 1310-2018'!V556","v":{"v":-2.6,"d":"-2.600"}},{"$f":"'IV. Country level, 1310-2018'!D556","v":{"v":5.836416666666667,"d":"5.836"}},{"$nulls":5},{"v":4.37375,"d":"4.374"},{"v":0,"d":"0.000"},{"v":4.37375,"d":"4.374"},{"$f":"'VIII. Pers. sov. loans, 1312-'!C555","v":{"v":3.9945205479452053,"d":"3.995"}}]
[1863,null,{"v":4.796991687718797,"d":"4.797"},{"v":2.4432602755350845,"d":"2.443"},{"v":2.3537314121837127,"d":"2.354"},{"v":3.306666666666666,"d":"3.307"},{"v":0.9571428571428572,"d":"0.957"},{"v":2.3495238095238093,"d":"2.350"},null,null,{"$f":"SUM('IV. Country level, 1310-2018'!AO557:AV557)","v":{"v":4.6346024868645195,"d":"4.635"}},{"$f":"SUM('IV. Country level, 1310-2018'!AY557:BF557)","v":{"v":0.2544960743290985,"d":"0.2545"}},{"v":4.3801064125354205,"d":"4.380"},{"v":3.2574166666666655,"d":"3.257"},{"$f":"'IV. Country level, 1310-2018'!V557","v":{"v":-3.6,"d":"-3.600"}},{"$f":"'IV. Country level, 1310-2018'!D557","v":{"v":6.857416666666666,"d":"6.857"}},{"$nulls":5},{"v":4.4014999999999995,"d":"4.402"},{"v":-9.046136915980627,"d":"-9.046"},{"v":13.447636915980627,"d":"13.448"},{"$f":"'VIII. Pers. sov. loans, 1312-'!C556","v":{"v":3.9926940639269404,"d":"3.993"}}]
[1864,null,{"v":4.838192967489585,"d":"4.838"},{"v":2.8132294131882047,"d":"2.813"},{"v":2.024963554301379,"d":"2.025"},{"v":3.309654761904762,"d":"3.310"},{"v":1.3,"d":"1.300"},{"v":2.0096547619047618,"d":"2.010"},null,null,{"$f":"SUM('IV. Country level, 1310-2018'!AO558:AV558)","v":{"v":4.657988540253214,"d":"4.658"}},{"$f":"SUM('IV. Country level, 1310-2018'!AY558:BF558)","v":{"v":6.05186404221563,"d":"6.0519"}},{"v":-1.393875501962416,"d":"-1.394"},{"v":3.347250000000001,"d":"3.347"},{"$f":"'IV. Country level, 1310-2018'!V558","v":{"v":-0.9,"d":"-0.900"}},{"$f":"'IV. Country level, 1310-2018'!D558","v":{"v":4.247250000000001,"d":"4.247"}},{"$nulls":5},{"v":4.40825,"d":"4.408"},{"v":9.94585233573222,"d":"9.946"},{"v":-5.5376023357322195,"d":"-5.538"},{"$f":"'VIII. Pers. sov. loans, 1312-'!C557","v":{"v":3.9908675799086755,"d":"3.991"}}]
[1865,null,{"v":4.834113388338616,"d":"4.834"},{"v":2.248844279851101,"d":"2.249"},{"v":2.585269108487515,"d":"2.585"},{"v":3.2995357142857142,"d":"3.300"},{"v":0.6714285714285714,"d":"0.671"},{"v":2.6281071428571425,"d":"2.628"},null,null,{"$f":"SUM('IV. Country level, 1310-2018'!AO559:AV559)","v":{"v":4.783021115730229,"d":"4.783"}},{"$f":"SUM('IV. Country level, 1310-2018'!AY559:BF559)","v":{"v":-0.2634473271870691,"d":"-0.2634"}},{"v":5.0464684429172975,"d":"5.046"},{"v":3.3695000000000004,"d":"3.370"},{"$f":"'IV. Country level, 1310-2018'!V559","v":{"v":0.9,"d":"0.900"}},{"$f":"'IV. Country level, 1310-2018'!D559","v":{"v":2.4695000000000005,"d":"2.470"}},{"$nulls":5},{"v":4.43425,"d":"4.434"},{"v":-12.171094110578508,"d":"-12.171"},{"v":16.605344110578507,"d":"16.605"},{"$f":"'VIII. Pers. sov. loans, 1312-'!C558","v":{"v":3.9890410958904106,"d":"3.989"}}]
[1866,null,{"v":4.882518010725794,"d":"4.883"},{"v":1.3846374332012619,"d":"1.385"},{"v":3.4978805775245303,"d":"3.498"},{"v":3.300702380952381,"d":"3.301"},{"v":0.32857142857142857,"d":"0.329"},{"v":2.972130952380953,"d":"2.972"},null,null,{"$f":"SUM('IV. Country level, 1310-2018'!AO560:AV560)","v":{"v":4.986582163652146,"d":"4.987"}},{"$f":"SUM('IV. Country level, 1310-2018'!AY560:BF560)","v":{"v":3.8702626479561624,"d":"3.8703"}},{"v":1.116319515695984,"d":"1.116"},{"v":3.4270833333333335,"d":"3.427"},{"$f":"'IV. Country level, 1310-2018'!V560","v":{"v":6.5,"d":"6.500"}},{"$f":"'IV. Country level, 1310-2018'!D560","v":{"v":-3.0729166666666665,"d":"-3.073"}},{"$nulls":5},{"v":4.80325,"d":"4.803"},{"v":8.614209640660503,"d":"8.614"},{"v":-3.810959640660503,"d":"-3.811"},{"$f":"'VIII. Pers. sov. loans, 1312-'!C559","v":{"v":3.9872146118721457,"d":"3.987"}}]
[1867,null,{"v":5.021322222216256,"d":"5.021"},{"v":1.2719697925511972,"d":"1.272"},{"v":3.749352429665058,"d":"3.749"},{"v":3.3024404761904766,"d":"3.302"},{"v":0.8428571428571429,"d":"0.843"},{"v":2.4595833333333337,"d":"2.460"},null,null,{"$f":"SUM('IV. Country level, 1310-2018'!AO561:AV561)","v":{"v":5.025922182498609,"d":"5.026"}},{"$f":"SUM('IV. Country level, 1310-2018'!AY561:BF561)","v":{"v":5.352083281526266,"d":"5.3521"}},{"v":-0.3261610990276571,"d":"-0.326"},{"v":3.240666666666667,"d":"3.241"},{"$f":"'IV. Country level, 1310-2018'!V561","v":{"v":6.1,"d":"6.100"}},{"$f":"'IV. Country level, 1310-2018'!D561","v":{"v":-2.859333333333333,"d":"-2.859"}},{"$nulls":5},4.843,{"v":20.689688027545312,"d":"20.690"},{"v":-15.846688027545312,"d":"-15.847"},{"$f":"'VIII. Pers. sov. loans, 1312-'!C560","v":{"v":3.9853881278538807,"d":"3.985"}}]
[1868,null,{"v":5.089675308541072,"d":"5.090"},{"v":0.8575729989128765,"d":"0.858"},{"v":4.232102309628195,"d":"4.232"},{"v":3.288559523809524,"d":"3.289"},{"v":1.1714285714285715,"d":"1.171"},{"v":2.1171309523809527,"d":"2.117"},null,null,{"$f":"SUM('IV. Country level, 1310-2018'!AO562:AV562)","v":{"v":5.017154896234356,"d":"5.017"}},{"$f":"SUM('IV. Country level, 1310-2018'!AY562:BF562)","v":{"v":-0.8453259400714617,"d":"-0.8453"}},{"v":5.862480836305817,"d":"5.862"},{"v":3.218416666666667,"d":"3.218"},{"$f":"'IV. Country level, 1310-2018'!V562","v":{"v":-1.7,"d":"-1.700"}},{"$f":"'IV. Country level, 1310-2018'!D562","v":{"v":4.918416666666667,"d":"4.918"}},{"$nulls":5},{"v":5.04725,"d":"5.047"},{"v":0,"d":"0.000"},{"v":5.04725,"d":"5.047"},{"$f":"'VIII. Pers. sov. loans, 1312-'!C561","v":{"v":3.983561643835616,"d":"3.984"}}]
[1869,null,{"v":5.156352341565613,"d":"5.156"},{"v":0.9667967435420646,"d":"0.967"},{"v":4.1895555980235475,"d":"4.190"},{"v":3.2731428571428576,"d":"3.273"},{"v":1.7142857142857142,"d":"1.714"},{"v":1.558857142857143,"d":"1.559"},null,null,{"$f":"SUM('IV. Country level, 1310-2018'!AO563:AV563)","v":{"v":5.072354689847477,"d":"5.072"}},{"$f":"SUM('IV. Country level, 1310-2018'!AY563:BF563)","v":{"v":-4.727470746359793,"d":"-4.7275"}},{"v":9.79982543620727,"d":"9.800"},{"v":3.244583333333333,"d":"3.245"},{"$f":"'IV. Country level, 1310-2018'!V563","v":{"v":-5,"d":"-5.000"}},{"$f":"'IV. Country level, 1310-2018'!D563","v":{"v":8.244583333333333,"d":"8.245"}},{"$nulls":5},5.064,{"v":-9.142895602057193,"d":"-9.143"},{"v":14.206895602057193,"d":"14.207"},{"$f":"'VIII. Pers. sov. loans, 1312-'!C562","v":{"v":3.981735159817351,"d":"3.982"}}]
[1870,null,{"v":5.2333182770764255,"d":"5.233"},{"v":1.0134973831798018,"d":"1.013"},{"v":4.219820893896623,"d":"4.220"},{"v":3.248809523809524,"d":"3.249"},{"v":1.2285714285714284,"d":"1.229"},{"v":2.0202380952380956,"d":"2.020"},null,null,{"$f":"SUM('IV. Country level, 1310-2018'!AO564:AV564)","v":{"v":5.606231967297756,"d":"5.606"}},{"$f":"SUM('IV. Country level, 1310-2018'!AY564:BF564)","v":{"v":-0.5341774102213552,"d":"-0.5342"}},{"v":6.140409377519111,"d":"6.140"},{"v":3.2695833333333333,"d":"3.270"},{"$f":"'IV. Country level, 1310-2018'!V564","v":{"v":0,"d":"0.000"}},{"$f":"'IV. Country level, 1310-2018'!D564","v":{"v":3.2695833333333333,"d":"3.270"}},{"$nulls":5},{"v":4.978250000000001,"d":"4.978"},{"v":3.6164893902534647,"d":"3.616"},{"v":1.3617606097465362,"d":"1.362"},{"$f":"'VIII. Pers. sov. loans, 1312-'!C563","v":{"v":3.979908675799086,"d":"3.980"}}]
[1871,null,{"v":5.265091250915519,"d":"5.265"},{"v":0.6520737326920074,"d":"0.652"},{"v":4.613017518223512,"d":"4.613"},{"v":3.2519285714285715,"d":"3.252"},{"v":-0.11428571428571432,"d":"-0.114"},{"v":3.3662142857142854,"d":"3.366"},null,null,{"$f":"SUM('IV. Country level, 1310-2018'!AO565:AV565)","v":{"v":5.1364601445269304,"d":"5.136"}},{"$f":"SUM('IV. Country level, 1310-2018'!AY565:BF565)","v":{"v":3.1510864867473853,"d":"3.1511"}},{"v":1.985373657779545,"d":"1.985"},{"v":3.250083333333334,"d":"3.250"},{"$f":"'IV. Country level, 1310-2018'!V565","v":{"v":1.4,"d":"1.400"}},{"$f":"'IV. Country level, 1310-2018'!D565","v":{"v":1.850083333333334,"d":"1.850"}},{"$nulls":5},{"v":4.987500000000001,"d":"4.988"},{"v":8.952920634396994,"d":"8.953"},{"v":-3.9654206343969935,"d":"-3.965"},{"$f":"'VIII. Pers. sov. loans, 1312-'!C564","v":{"v":3.978082191780821,"d":"3.978"}}]
[1872,null,{"v":5.279855139920673,"d":"5.280"},{"v":0.05095217664243482,"d":"0.051"},{"v":5.228902963278238,"d":"5.229"},{"v":3.251416666666666,"d":"3.251"},{"v":-0.1428571428571428,"d":"-0.143"},{"v":3.3942738095238094,"d":"3.394"},null,null,{"$f":"SUM('IV. Country level, 1310-2018'!AO566:AV566)","v":{"v":5.249760346902013,"d":"5.250"}},{"$f":"SUM('IV. Country level, 1310-2018'!AY566:BF566)","v":{"v":0.5011188852172481,"d":"0.5011"}},{"v":4.748641461684765,"d":"4.749"},{"v":3.261583333333333,"d":"3.262"},{"$f":"'IV. Country level, 1310-2018'!V566","v":{"v":4.7,"d":"4.700"}},{"$f":"'IV. Country level, 1310-2018'!D566","v":{"v":-1.4384166666666673,"d":"-1.438"}},{"$nulls":5},{"v":4.9235,"d":"4.924"},{"v":0.8356294707013286,"d":"0.836"},{"v":4.087870529298671,"d":"4.088"},{"$f":"'VIII. Pers. sov. loans, 1312-'!C565","v":{"v":3.976255707762556,"d":"3.976"}}]
[1873,null,{"v":5.302074572150519,"d":"5.302"},{"v":0.5536494843465207,"d":"0.554"},{"v":4.748425087803999,"d":"4.748"},{"v":3.24122619047619,"d":"3.241"},{"v":0.5285714285714286,"d":"0.529"},{"v":2.7126547619047616,"d":"2.713"},null,null,{"$f":"SUM('IV. Country level, 1310-2018'!AO567:AV567)","v":{"v":5.5253437122278335,"d":"5.525"}},{"$f":"SUM('IV. Country level, 1310-2018'!AY567:BF567)","v":{"v":4.197167125420322,"d":"4.1972"}},{"v":1.328176586807511,"d":"1.328"},{"v":3.25675,"d":"3.257"},{"$f":"'IV. Country level, 1310-2018'!V567","v":{"v":3.1,"d":"3.100"}},{"$f":"'IV. Country level, 1310-2018'!D567","v":{"v":0.15674999999999972,"d":"0.157"}},{"$nulls":5},{"v":4.946249999999999,"d":"4.946"},{"v":12.9834643044504,"d":"12.983"},{"v":-8.037214304450401,"d":"-8.037"},{"$f":"'VIII. Pers. sov. loans, 1312-'!C566","v":{"v":3.9744292237442913,"d":"3.974"}}]
[1874,null,{"v":5.245462911798592,"d":"5.245"},{"v":0.5734713851195374,"d":"0.573"},{"v":4.671991526679055,"d":"4.672"},{"v":3.2258928571428567,"d":"3.226"},{"v":0.42857142857142855,"d":"0.429"},{"v":2.7973214285714283,"d":"2.797"},null,null,{"$f":"SUM('IV. Country level, 1310-2018'!AO568:AV568)","v":{"v":5.24833299937227,"d":"5.248"}},{"$f":"SUM('IV. Country level, 1310-2018'!AY568:BF568)","v":{"v":2.8221177281117056,"d":"2.8221"}},{"v":2.4262152712605642,"d":"2.426"},{"v":3.2624999999999993,"d":"3.263"},{"$f":"'IV. Country level, 1310-2018'!V568","v":{"v":-3.3,"d":"-3.300"}},{"$f":"'IV. Country level, 1310-2018'!D568","v":{"v":6.562499999999999,"d":"6.563"}},{"$nulls":5},{"v":4.8950000000000005,"d":"4.895"},{"v":1.4669484179512629,"d":"1.467"},{"v":3.4280515820487376,"d":"3.428"},{"$f":"'VIII. Pers. sov. loans, 1312-'!C567","v":{"v":3.9726027397260264,"d":"3.973"}}]
[1875,null,{"v":5.226010409382664,"d":"5.226"},{"v":-0.39198126206286193,"d":"-0.392"},{"v":5.617991671445526,"d":"5.618"},{"v":3.2146190476190477,"d":"3.215"},{"v":-0.08571428571428556,"d":"-0.086"},{"v":3.300333333333333,"d":"3.300"},null,null,{"$f":"SUM('IV. Country level, 1310-2018'!AO569:AV569)","v":{"v":5.120502119270431,"d":"5.121"}},{"$f":"SUM('IV. Country level, 1310-2018'!AY569:BF569)","v":{"v":-5.05317683241847,"d":"-5.0532"}},{"v":10.1736789516889,"d":"10.174"},{"v":3.2148333333333325,"d":"3.215"},{"$f":"'IV. Country level, 1310-2018'!V569","v":{"v":-1.9,"d":"-1.900"}},{"$f":"'IV. Country level, 1310-2018'!D569","v":{"v":5.1148333333333325,"d":"5.115"}},{"$nulls":5},{"v":4.8965,"d":"4.897"},{"v":-10.60235464193026,"d":"-10.602"},{"v":15.49885464193026,"d":"15.499"},{"$f":"'VIII. Pers. sov. loans, 1312-'!C568","v":{"v":3.9707762557077615,"d":"3.971"}}]
[1876,null,{"v":5.143347321134357,"d":"5.143"},{"v":0.019824548690198136,"d":"0.020"},{"v":5.12352277244416,"d":"5.124"},{"v":3.1901309523809522,"d":"3.190"},{"v":-1.3857142857142857,"d":"-1.386"},{"v":4.575845238095239,"d":"4.576"},null,null,{"$f":"SUM('IV. Country level, 1310-2018'!AO570:AV570)","v":{"v":5.227890715456402,"d":"5.228"}},{"$f":"SUM('IV. Country level, 1310-2018'!AY570:BF570)","v":{"v":-1.2085895924311916,"d":"-1.2086"}},{"v":6.436480307887594,"d":"6.436"},{"v":3.1732499999999995,"d":"3.173"},{"$f":"'IV. Country level, 1310-2018'!V570","v":{"v":-0.3,"d":"-0.300"}},{"$f":"'IV. Country level, 1310-2018'!D570","v":{"v":3.4732499999999993,"d":"3.473"}},{"$nulls":5},{"v":4.929608302609186,"d":"4.930"},{"v":2.290994186016439,"d":"2.291"},{"v":2.6386141165927466,"d":"2.639"},{"$f":"'VIII. Pers. sov. loans, 1312-'!C569","v":{"v":3.9689497716894966,"d":"3.969"}}]
[1877,null,{"v":4.972156338256644,"d":"4.972"},{"v":0.0580796815666781,"d":"0.058"},{"v":4.914076656689965,"d":"4.914"},{"v":3.161833333333333,"d":"3.162"},{"v":-1.4,"d":"-1.400"},{"v":4.561833333333333,"d":"4.562"},null,null,{"$f":"SUM('IV. Country level, 1310-2018'!AO571:AV571)","v":{"v":5.20995034483427,"d":"5.210"}},{"$f":"SUM('IV. Country level, 1310-2018'!AY571:BF571)","v":{"v":-0.3954241048102385,"d":"-0.3954"}},{"v":5.605374449644508,"d":"5.605"},{"v":3.1622500000000002,"d":"3.162"},{"$f":"'IV. Country level, 1310-2018'!V571","v":{"v":-0.7,"d":"-0.700"}},{"$f":"'IV. Country level, 1310-2018'!D571","v":{"v":3.8622500000000004,"d":"3.862"}},{"$nulls":5},{"v":4.9372783769569635,"d":"4.937"},{"v":1.5811031557858573,"d":"1.581"},{"v":3.3561752211711062,"d":"3.356"},{"$f":"'VIII. Pers. sov. loans, 1312-'!C570","v":{"v":3.9671232876712317,"d":"3.967"}}]
[1878,null,{"v":4.791830501421113,"d":"4.792"},{"v":-0.18006639128335336,"d":"-0.180"},{"v":4.971896892704466,"d":"4.972"},{"v":3.113690476190476,"d":"3.114"},{"v":-1.0857142857142856,"d":"-1.086"},{"v":4.199404761904762,"d":"4.199"},null,null,{"$f":"SUM('IV. Country level, 1310-2018'!AO572:AV572)","v":{"v":5.000292627615432,"d":"5.000"}},{"$f":"SUM('IV. Country level, 1310-2018'!AY572:BF572)","v":{"v":-3.6070820435294095,"d":"-3.6071"}},{"v":8.607374671144841,"d":"8.607"},{"v":3.171166666666667,"d":"3.171"},{"$f":"'IV. Country level, 1310-2018'!V572","v":{"v":-2.2,"d":"-2.200"}},{"$f":"'IV. Country level, 1310-2018'!D572","v":{"v":5.371166666666667,"d":"5.371"}},{"$nulls":5},{"v":4.92564099023836,"d":"4.926"},{"v":-7.652369875217602,"d":"-7.652"},{"v":12.578010865455962,"d":"12.578"},{"$f":"'VIII. Pers. sov. loans, 1312-'!C571","v":{"v":3.9652968036529668,"d":"3.965"}}]
[1879,null,{"v":4.637666649731929,"d":"4.638"},{"v":0.256571119715932,"d":"0.257"},{"v":4.3810955300159975,"d":"4.381"},{"v":3.0744642857142854,"d":"3.074"},{"v":-0.6714285714285716,"d":"-0.671"},{"v":3.745892857142857,"d":"3.746"},null,null,{"$f":"SUM('IV. Country level, 1310-2018'!AO573:AV573)","v":{"v":4.671118729163864,"d":"4.671"}},{"$f":"SUM('IV. Country level, 1310-2018'!AY573:BF573)","v":{"v":3.3837595604886683,"d":"3.3838"}},{"v":1.287359168675196,"d":"1.287"},{"v":3.0901666666666667,"d":"3.090"},{"$f":"'IV. Country level, 1310-2018'!V573","v":{"v":-4.4,"d":"-4.400"}},{"$f":"'IV. Country level, 1310-2018'!D573","v":{"v":7.490166666666667,"d":"7.490"}},{"$nulls":5},{"v":4.84070540688505,"d":"4.841"},{"v":3.370684314299894,"d":"3.371"},{"v":1.470021092585156,"d":"1.470"},{"$f":"'VIII. Pers. sov. loans, 1312-'!C572","v":{"v":3.963470319634702,"d":"3.963"}}]
[1880,null,{"v":4.441364372412826,"d":"4.441"},{"v":0.10231429529093765,"d":"0.102"},{"v":4.339050077121888,"d":"4.339"},{"v":3.0284761904761903,"d":"3.028"},{"v":-0.7000000000000001,"d":"-0.700"},{"v":3.7284761904761905,"d":"3.728"},null,null,{"$f":"SUM('IV. Country level, 1310-2018'!AO574:AV574)","v":{"v":4.32700683208384,"d":"4.327"}},{"$f":"SUM('IV. Country level, 1310-2018'!AY574:BF574)","v":{"v":4.464953055555682,"d":"4.4650"}},{"v":-0.13794622347184227,"d":"-0.138"},{"v":3.058666666666666,"d":"3.059"},{"$f":"'IV. Country level, 1310-2018'!V574","v":{"v":3,"d":"3.000"}},{"$f":"'IV. Country level, 1310-2018'!D574","v":{"v":0.05866666666666598,"d":"0.059"}},{"$nulls":5},{"v":4.601114230094892,"d":"4.601"},{"v":3.9403112905850626,"d":"3.940"},{"v":0.6608029395098298,"d":"0.661"},{"$f":"'VIII. Pers. sov. loans, 1312-'!C573","v":{"v":3.961643835616437,"d":"3.962"}}]
[1881,null,{"v":4.229794703804305,"d":"4.230"},{"v":-0.42602770988515004,"d":"-0.426"},{"v":4.655822413689455,"d":"4.656"},{"v":2.9672976190476197,"d":"2.967"},{"v":-0.9857142857142859,"d":"-0.986"},{"v":3.953011904761905,"d":"3.953"},null,null,{"$f":"SUM('IV. Country level, 1310-2018'!AO575:AV575)","v":{"v":3.986052141523554,"d":"3.986"}},{"$f":"SUM('IV. Country level, 1310-2018'!AY575:BF575)","v":{"v":1.1550952181614853,"d":"1.1551"}},{"v":2.830956923362069,"d":"2.831"},{"v":2.925500000000001,"d":"2.926"},{"$f":"'IV. Country level, 1310-2018'!V575","v":{"v":-1.1,"d":"-1.100"}},{"$f":"'IV. Country level, 1310-2018'!D575","v":{"v":4.025500000000001,"d":"4.026"}},{"$nulls":5},{"v":4.493343337794871,"d":"4.493"},{"v":1.5685801541570152,"d":"1.569"},{"v":2.9247631836378556,"d":"2.925"},{"$f":"'VIII. Pers. sov. loans, 1312-'!C574","v":{"v":3.959817351598172,"d":"3.960"}}]
[1882,null,{"v":4.05236493668233,"d":"4.052"},{"v":0.1186631854235466,"d":"0.119"},{"v":3.9337017512587833,"d":"3.934"},{"v":2.923309523809524,"d":"2.923"},{"v":-1.1,"d":"-1.100"},{"v":4.023309523809524,"d":"4.023"},null,null,{"$f":"SUM('IV. Country level, 1310-2018'!AO576:AV576)","v":{"v":4.0413551574461435,"d":"4.041"}},{"$f":"SUM('IV. Country level, 1310-2018'!AY576:BF576)","v":{"v":-1.9967142554234727,"d":"-1.9967"}},{"v":6.038069412869616,"d":"6.038"},{"v":2.9402500000000003,"d":"2.940"},{"$f":"'IV. Country level, 1310-2018'!V576","v":{"v":1,"d":"1.000"}},{"$f":"'IV. Country level, 1310-2018'!D576","v":{"v":1.9402500000000003,"d":"1.940"}},{"$nulls":5},{"v":4.409624547603512,"d":"4.410"},{"v":-3.8610081014296562,"d":"-3.861"},{"v":8.270632649033168,"d":"8.271"},{"$f":"'VIII. Pers. sov. loans, 1312-'!C575","v":{"v":3.957990867579907,"d":"3.958"}}]
[1883,null,{"v":3.90001070111217,"d":"3.900"},{"v":-0.5445746637729509,"d":"-0.545"},{"v":4.444585364885121,"d":"4.445"},{"v":2.886261904761905,"d":"2.886"},{"v":-0.7000000000000001,"d":"-0.700"},{"v":3.586261904761905,"d":"3.586"},null,null,{"$f":"SUM('IV. Country level, 1310-2018'!AO577:AV577)","v":{"v":3.853774774222673,"d":"3.854"}},{"$f":"SUM('IV. Country level, 1310-2018'!AY577:BF577)","v":{"v":-2.2883873634061516,"d":"-2.2884"}},{"v":6.142162137628825,"d":"6.142"},{"v":2.8513333333333333,"d":"2.851"},{"$f":"'IV. Country level, 1310-2018'!V577","v":{"v":-0.5,"d":"-0.500"}},{"$f":"'IV. Country level, 1310-2018'!D577","v":{"v":3.3513333333333333,"d":"3.351"}},{"$nulls":5},{"v":4.437928705715426,"d":"4.438"},{"v":0,"d":"0.000"},{"v":4.437928705715426,"d":"4.438"},{"$f":"'VIII. Pers. sov. loans, 1312-'!C576","v":{"v":3.9561643835616422,"d":"3.956"}}]
[1884,null,{"v":3.798738332995647,"d":"3.799"},{"v":-1.205051986030437,"d":"-1.205"},{"v":5.003790319026083,"d":"5.004"},{"v":2.8419761904761907,"d":"2.842"},{"v":-1.2,"d":"-1.200"},{"v":4.04197619047619,"d":"4.042"},null,null,{"$f":"SUM('IV. Country level, 1310-2018'!AO578:AV578)","v":{"v":3.7289626645746266,"d":"3.729"}},{"$f":"SUM('IV. Country level, 1310-2018'!AY578:BF578)","v":{"v":-4.093818141042853,"d":"-4.0938"}},{"v":7.822780805617479,"d":"7.823"},2.734,{"$f":"'IV. Country level, 1310-2018'!V578","v":{"v":-2.7,"d":"-2.700"}},{"$f":"'IV. Country level, 1310-2018'!D578","v":5.434},{"$nulls":5},{"v":3.662178699258468,"d":"3.662"},{"v":-6.961136233683953,"d":"-6.961"},{"v":10.62331493294242,"d":"10.623"},{"$f":"'VIII. Pers. sov. loans, 1312-'!C577","v":{"v":3.9543378995433773,"d":"3.954"}}]
[1885,null,{"v":3.734824501021449,"d":"3.735"},{"v":-1.3194378954005441,"d":"-1.319"},{"v":5.054262396421993,"d":"5.054"},{"v":2.8016785714285715,"d":"2.802"},{"v":-0.942857142857143,"d":"-0.943"},{"v":3.744535714285714,"d":"3.745"},null,null,{"$f":"SUM('IV. Country level, 1310-2018'!AO579:AV579)","v":{"v":3.7582842577616047,"d":"3.758"}},{"$f":"SUM('IV. Country level, 1310-2018'!AY579:BF579)","v":{"v":0.20575422363146778,"d":"0.2058"}},{"v":3.552530034130137,"d":"3.553"},{"v":2.8632500000000007,"d":"2.863"},{"$f":"'IV. Country level, 1310-2018'!V579","v":{"v":-3,"d":"-3.000"}},{"$f":"'IV. Country level, 1310-2018'!D579","v":{"v":5.863250000000001,"d":"5.863"}},{"$nulls":5},{"v":3.6031062160106564,"d":"3.603"},{"v":0,"d":"0.000"},{"v":3.6031062160106564,"d":"3.603"},{"$f":"'VIII. Pers. sov. loans, 1312-'!C578","v":{"v":3.9525114155251124,"d":"3.953"}}]
[1886,null,{"v":3.659521041690401,"d":"3.660"},{"v":-0.6493876004279618,"d":"-0.649"},{"v":4.308908642118363,"d":"4.309"},{"v":2.759571428571429,"d":"2.760"},{"v":-0.8857142857142859,"d":"-0.886"},{"v":3.645285714285714,"d":"3.645"},null,null,{"$f":"SUM('IV. Country level, 1310-2018'!AO580:AV580)","v":{"v":3.604639080172749,"d":"3.605"}},{"$f":"SUM('IV. Country level, 1310-2018'!AY580:BF580)","v":{"v":-1.2589053838868156,"d":"-1.2589"}},{"v":4.863544464059565,"d":"4.864"},{"v":2.830833333333334,"d":"2.831"},{"$f":"'IV. Country level, 1310-2018'!V580","v":{"v":-1.6,"d":"-1.600"}},{"$f":"'IV. Country level, 1310-2018'!D580","v":{"v":4.430833333333334,"d":"4.431"}},{"$nulls":5},{"v":3.5097883438747624,"d":"3.510"},{"v":0,"d":"0.000"},{"v":3.5097883438747624,"d":"3.510"},{"$f":"'VIII. Pers. sov. loans, 1312-'!C579","v":{"v":3.9506849315068475,"d":"3.951"}}]
[1887,null,{"v":3.614110753897754,"d":"3.614"},{"v":-0.1885366332708682,"d":"-0.189"},{"v":3.8026473871686224,"d":"3.803"},{"v":2.736035714285715,"d":"2.736"},{"v":-0.7857142857142858,"d":"-0.786"},{"v":3.5217500000000004,"d":"3.522"},null,null,{"$f":"SUM('IV. Country level, 1310-2018'!AO581:AV581)","v":{"v":3.618100255268176,"d":"3.618"}},{"$f":"SUM('IV. Country level, 1310-2018'!AY581:BF581)","v":{"v":-0.15838820024671896,"d":"-0.1584"}},{"v":3.7764884555148948,"d":"3.776"},{"v":2.748666666666667,"d":"2.749"},{"$f":"'IV. Country level, 1310-2018'!V581","v":{"v":-0.5,"d":"-0.500"}},{"$f":"'IV. Country level, 1310-2018'!D581","v":{"v":3.248666666666667,"d":"3.249"}},{"$nulls":5},{"v":3.571795798276372,"d":"3.572"},{"v":0.7193583864972393,"d":"0.719"},{"v":2.8524374117791327,"d":"2.852"},{"$f":"'VIII. Pers. sov. loans, 1312-'!C580","v":{"v":3.9488584474885826,"d":"3.949"}}]
[1888,null,{"v":3.605572213751852,"d":"3.606"},{"v":0.4042929858060145,"d":"0.404"},{"v":3.2012792279458373,"d":"3.201"},{"v":2.7317142857142858,"d":"2.732"},{"v":-0.29999999999999993,"d":"-0.300"},{"v":3.031714285714286,"d":"3.032"},null,null,{"$f":"SUM('IV. Country level, 1310-2018'!AO582:AV582)","v":{"v":3.5386553177041686,"d":"3.539"}},{"$f":"SUM('IV. Country level, 1310-2018'!AY582:BF582)","v":{"v":0.35439385257073586,"d":"0.3544"}},{"v":3.184261465133433,"d":"3.184"},{"v":2.643416666666667,"d":"2.643"},{"$f":"'IV. Country level, 1310-2018'!V582","v":{"v":0.7,"d":"0.700"}},{"$f":"'IV. Country level, 1310-2018'!D582","v":{"v":1.943416666666667,"d":"1.943"}},{"$nulls":5},{"v":3.4707910677866947,"d":"3.471"},{"v":0.8571175556371416,"d":"0.857"},{"v":2.613673512149553,"d":"2.614"},{"$f":"'VIII. Pers. sov. loans, 1312-'!C581","v":{"v":3.9470319634703177,"d":"3.947"}}]
[1889,null,{"v":3.5938552160963795,"d":"3.594"},{"v":0.10866422257002875,"d":"0.109"},{"v":3.48519099352635,"d":"3.485"},{"v":2.703964285714286,"d":"2.704"},{"v":0.1857142857142857,"d":"0.186"},{"v":2.5182499999999997,"d":"2.518"},null,null,{"$f":"SUM('IV. Country level, 1310-2018'!AO583:AV583)","v":{"v":3.5142309421288127,"d":"3.514"}},{"$f":"SUM('IV. Country level, 1310-2018'!AY583:BF583)","v":{"v":2.693637809384603,"d":"2.6936"}},{"v":0.8205931327442095,"d":"0.821"},{"v":2.6455,"d":"2.646"},{"$f":"'IV. Country level, 1310-2018'!V583","v":{"v":1.4,"d":"1.400"}},{"$f":"'IV. Country level, 1310-2018'!D583","v":{"v":1.2455000000000003,"d":"1.246"}},{"$nulls":5},{"v":3.452903554261058,"d":"3.453"},{"v":8.357045318647712,"d":"8.357"},{"v":-4.9041417643866545,"d":"-4.904"},{"$f":"'VIII. Pers. sov. loans, 1312-'!C582","v":{"v":3.945205479452053,"d":"3.945"}}]
[1890,null,{"v":3.6050795329007927,"d":"3.605"},{"v":-0.045240703039328256,"d":"-0.045"},{"v":3.6503202359401206,"d":"3.650"},{"v":2.673630952380953,"d":"2.674"},{"v":0.31428571428571433,"d":"0.314"},{"v":2.359345238095238,"d":"2.359"},null,null,{"$f":"SUM('IV. Country level, 1310-2018'!AO584:AV584)","v":{"v":3.535902759674142,"d":"3.536"}},{"$f":"SUM('IV. Country level, 1310-2018'!AY584:BF584)","v":{"v":0.9375694066935039,"d":"0.9376"}},{"v":2.598333352980638,"d":"2.598"},{"v":2.686583333333333,"d":"2.687"},{"$f":"'IV. Country level, 1310-2018'!V584","v":{"v":0.2,"d":"0.200"}},{"$f":"'IV. Country level, 1310-2018'!D584","v":{"v":2.486583333333333,"d":"2.487"}},{"$nulls":5},{"v":3.566988641267427,"d":"3.567"},{"v":-3.790936588182007,"d":"-3.791"},{"v":7.3579252294494335,"d":"7.358"},{"$f":"'VIII. Pers. sov. loans, 1312-'!C583","v":{"v":3.943378995433788,"d":"3.943"}}]
[1891,null,{"v":3.593560866547158,"d":"3.594"},{"v":-0.2695057399938856,"d":"-0.270"},{"v":3.8630666065410435,"d":"3.863"},{"v":2.643511904761905,"d":"2.644"},{"v":0.10000000000000002,"d":"0.100"},{"v":2.5435119047619046,"d":"2.544"},null,null,{"$f":"SUM('IV. Country level, 1310-2018'!AO585:AV585)","v":{"v":3.6691928835533134,"d":"3.669"}},{"$f":"SUM('IV. Country level, 1310-2018'!AY585:BF585)","v":{"v":0.0559891924953253,"d":"0.0560"}},{"$f":"K589-L589","v":{"v":3.613203691057988,"d":"3.613"}},{"v":2.7037500000000003,"d":"2.704"},{"$f":"'IV. Country level, 1310-2018'!V585","v":{"v":0.7,"d":"0.700"}},{"$f":"'IV. Country level, 1310-2018'!D585","v":{"v":2.00375,"d":"2.004"}},{"$nulls":5},{"v":3.6524430362205735,"d":"3.652"},{"v":4.75550477040457,"d":"4.756"},{"v":-1.1030617341839961,"d":"-1.103"},{"$f":"'VIII. Pers. sov. loans, 1312-'!C584","v":{"v":3.941552511415523,"d":"3.942"}}]
[1892,null,{"v":3.597057153018574,"d":"3.597"},{"v":-0.4430408104479513,"d":"-0.443"},{"v":4.0400979634665255,"d":"4.040"},{"v":2.6096666666666666,"d":"2.610"},{"v":-0.14285714285714288,"d":"-0.143"},{"v":2.7525238095238094,"d":"2.753"},null,null,{"$f":"SUM('IV. Country level, 1310-2018'!AO586:AV586)","v":{"v":3.6762652741732915,"d":"3.676"}},{"$f":"SUM('IV. Country level, 1310-2018'!AY586:BF586)","v":{"v":-1.8636471190204327,"d":"-1.8636"}},{"v":5.539912393193724,"d":"5.540"},2.669,{"$f":"'IV. Country level, 1310-2018'!V586","v":{"v":0.4,"d":"0.400"}},{"$f":"'IV. Country level, 1310-2018'!D586","v":2.269},{"$nulls":5},{"v":3.6061615109994922,"d":"3.606"},{"v":-1.5564933896819968,"d":"-1.556"},{"v":5.162654900681489,"d":"5.163"},{"$f":"'VIII. Pers. sov. loans, 1312-'!C585","v":{"v":3.939726027397258,"d":"3.940"}}]
[1893,null,{"v":3.5855433943138815,"d":"3.586"},{"v":-0.7789690835942638,"d":"-0.779"},{"v":4.3645124779081454,"d":"4.365"},{"v":2.5604999999999998,"d":"2.561"},{"v":-0.38571428571428573,"d":"-0.386"},{"v":2.946214285714286,"d":"2.946"},null,null,{"$f":"SUM('IV. Country level, 1310-2018'!AO587:AV587)","v":{"v":3.6832092978036433,"d":"3.683"}},{"$f":"SUM('IV. Country level, 1310-2018'!AY587:BF587)","v":{"v":-2.3362398631523145,"d":"-2.3362"}},{"v":6.019449160955958,"d":"6.019"},{"v":2.6185,"d":"2.619"},{"$f":"'IV. Country level, 1310-2018'!V587","v":{"v":-0.7,"d":"-0.700"}},{"$f":"'IV. Country level, 1310-2018'!D587","v":{"v":3.3185000000000002,"d":"3.319"}},{"$nulls":5},{"v":3.582179238819314,"d":"3.582"},{"v":-2.239683174698899,"d":"-2.240"},{"v":5.821862413518213,"d":"5.822"},{"$f":"'VIII. Pers. sov. loans, 1312-'!C586","v":{"v":3.937899543378993,"d":"3.938"}}]
[1894,null,{"$f":"AVERAGE(K589:K595)","v":{"v":3.5450518759927854,"d":"3.545"}},{"$f":"AVERAGE(L589:L595)","v":{"v":-0.6568019906066583,"d":"-0.657"}},{"$f":"AVERAGE(M589:M595)","v":{"v":4.201853866599444,"d":"4.202"}},{"$f":"AVERAGE(N589:N595)","v":{"v":2.500083333333333,"d":"2.500"}},{"$f":"AVERAGE(O589:O595)","v":{"v":-0.19999999999999993,"d":"-0.200"}},{"$f":"AVERAGE(P589:P595)","v":{"v":2.7000833333333327,"d":"2.700"}},null,null,{"$f":"SUM('IV. Country level, 1310-2018'!AO588:AV588)","v":{"v":3.5374695907927345,"d":"3.537"}},{"$f":"SUM('IV. Country level, 1310-2018'!AY588:BF588)","v":{"v":-1.7282434589286206,"d":"-1.7282"}},{"v":5.265713049721355,"d":"5.266"},{"v":2.5378333333333334,"d":"2.538"},{"$f":"'IV. Country level, 1310-2018'!V588","v":{"v":-2,"d":"-2.000"}},{"$f":"'IV. Country level, 1310-2018'!D588","v":{"v":4.537833333333333,"d":"4.538"}},{"$nulls":5},{"v":3.499811432485828,"d":"3.500"},{"v":-0.8087254689718629,"d":"-0.809"},{"v":4.308536901457691,"d":"4.309"},{"$f":"'VIII. Pers. sov. loans, 1312-'!C587","v":{"v":3.9360730593607283,"d":"3.936"}}]
[1895,null,{"v":3.5015700419373204,"d":"3.502"},{"v":-0.6498501897012989,"d":"-0.650"},{"v":4.151420231638619,"d":"4.151"},{"v":2.440857142857143,"d":"2.441"},{"v":-0.25714285714285706,"d":"-0.257"},{"v":2.6979999999999995,"d":"2.698"},null,null,{"$f":"SUM('IV. Country level, 1310-2018'!AO589:AV589)","v":{"v":3.5631293230040817,"d":"3.563"}},{"$f":"SUM('IV. Country level, 1310-2018'!AY589:BF589)","v":{"v":-0.8603516406077236,"d":"-0.8604"}},{"v":4.423480963611805,"d":"4.423"},{"v":2.4065,"d":"2.407"},{"$f":"'IV. Country level, 1310-2018'!V589","v":{"v":-1,"d":"-1.000"}},{"$f":"'IV. Country level, 1310-2018'!D589","v":{"v":3.4065,"d":"3.407"}},{"$nulls":5},{"v":3.456545364810308,"d":"3.457"},{"v":0,"d":"0.000"},{"v":3.456545364810308,"d":"3.457"},{"$f":"'VIII. Pers. sov. loans, 1312-'!C588","v":{"v":3.9342465753424634,"d":"3.934"}}]
[1896,null,{"v":3.4465672469219166,"d":"3.447"},{"v":-0.12965896998353593,"d":"-0.130"},{"v":3.576226216905453,"d":"3.576"},{"v":2.3993095238095234,"d":"2.399"},{"v":-0.21428571428571433,"d":"-0.214"},{"v":2.6135952380952374,"d":"2.614"},null,null,{"$f":"SUM('IV. Country level, 1310-2018'!AO590:AV590)","v":{"v":3.433634631195969,"d":"3.434"}},{"$f":"SUM('IV. Country level, 1310-2018'!AY590:BF590)","v":{"v":0.3421398973604168,"d":"0.3421"}},{"v":3.0914947338355523,"d":"3.091"},{"v":2.3013333333333326,"d":"2.301"},{"$f":"'IV. Country level, 1310-2018'!V590","v":{"v":-0.3,"d":"-0.300"}},{"$f":"'IV. Country level, 1310-2018'!D590","v":{"v":2.6013333333333324,"d":"2.601"}},{"$nulls":5},{"v":3.4892047873651335,"d":"3.489"},{"v":-0.815193479819489,"d":"-0.815"},{"v":4.304398267184623,"d":"4.304"},{"$f":"'VIII. Pers. sov. loans, 1312-'!C589","v":{"v":3.9324200913241985,"d":"3.932"}}]
[1897,null,{"v":3.389119675778016,"d":"3.389"},{"v":0.5908231656161146,"d":"0.591"},{"v":2.798296510161903,"d":"2.798"},{"v":2.3891547619047615,"d":"2.389"},{"v":0.6142857142857142,"d":"0.614"},{"v":1.7748690476190474,"d":"1.775"},null,null,{"$f":"SUM('IV. Country level, 1310-2018'!AO591:AV591)","v":{"v":3.2524621314264657,"d":"3.252"}},{"$f":"SUM('IV. Country level, 1310-2018'!AY591:BF591)","v":{"v":1.792739057606742,"d":"1.7927"}},{"v":1.4597230738197238,"d":"1.460"},{"v":2.263666666666666,"d":"2.264"},{"$f":"'IV. Country level, 1310-2018'!V591","v":{"v":1.5,"d":"1.500"}},{"$f":"'IV. Country level, 1310-2018'!D591","v":{"v":0.763666666666666,"d":"0.764"}},{"$nulls":5},{"v":3.49052477341669,"d":"3.491"},{"v":6.4383770957685895,"d":"6.438"},{"v":-2.9478523223518995,"d":"-2.948"},{"$f":"'VIII. Pers. sov. loans, 1312-'!C590","v":{"v":3.9305936073059335,"d":"3.931"}}]
[1898,null,{"v":3.3522930769410206,"d":"3.352"},{"v":0.9204946054393915,"d":"0.920"},{"v":2.431798471501629,"d":"2.432"},{"v":2.4109880952380953,"d":"2.411"},{"v":0.9714285714285714,"d":"0.971"},{"v":1.4395595238095236,"d":"1.440"},null,null,{"$f":"SUM('IV. Country level, 1310-2018'!AO592:AV592)","v":{"v":3.3648200451650556,"d":"3.365"}},{"$f":"SUM('IV. Country level, 1310-2018'!AY592:BF592)","v":{"v":0.10465179883284059,"d":"0.1047"}},{"v":3.2601682463322152,"d":"3.260"},{"v":2.289166666666667,"d":"2.289"},{"$f":"'IV. Country level, 1310-2018'!V592","v":{"v":0.3,"d":"0.300"}},{"$f":"'IV. Country level, 1310-2018'!D592","v":{"v":1.989166666666667,"d":"1.989"}},{"$nulls":5},{"v":3.4964970691267734,"d":"3.496"},{"v":-3.8610081014296562,"d":"-3.861"},{"v":7.357505170556429,"d":"7.358"},{"$f":"'VIII. Pers. sov. loans, 1312-'!C591","v":{"v":3.9287671232876686,"d":"3.929"}}]
[1899,null,{"v":3.30500780056646,"d":"3.305"},{"v":1.2005181752148246,"d":"1.201"},{"v":2.104489625351635,"d":"2.104"},{"v":2.4494166666666666,"d":"2.449"},{"v":1.1142857142857143,"d":"1.114"},{"v":1.3351309523809523,"d":"1.335"},null,null,{"$f":"SUM('IV. Country level, 1310-2018'!AO593:AV593)","v":{"v":3.291245709065464,"d":"3.291"}},{"$f":"SUM('IV. Country level, 1310-2018'!AY593:BF593)","v":{"v":1.777691419003909,"d":"1.7777"}},{"v":1.513554290061555,"d":"1.514"},{"v":2.3781666666666665,"d":"2.378"},{"$f":"'IV. Country level, 1310-2018'!V593","v":{"v":0.7,"d":"0.700"}},{"$f":"'IV. Country level, 1310-2018'!D593","v":{"v":1.6781666666666666,"d":"1.678"}},{"$nulls":5},{"v":3.6136208520126667,"d":"3.614"},{"v":1.6063780851902187,"d":"1.606"},{"v":2.007242766822448,"d":"2.007"},{"$f":"'VIII. Pers. sov. loans, 1312-'!C592","v":{"v":3.9269406392694037,"d":"3.927"}}]
[1900,null,{"v":3.2857791757825057,"d":"3.286"},{"v":1.3383148248469716,"d":"1.338"},{"v":1.9474643509355347,"d":"1.947"},{"v":2.5187976190476187,"d":"2.519"},{"v":1.2142857142857142,"d":"1.214"},{"v":1.3045119047619045,"d":"1.305"},null,null,{"$f":"SUM('IV. Country level, 1310-2018'!AO594:AV594)","v":{"v":3.281076299796346,"d":"3.281"}},{"$f":"SUM('IV. Country level, 1310-2018'!AY594:BF594)","v":{"v":2.7071350860452377,"d":"2.7071"}},{"v":0.5739412137511084,"d":"0.574"},{"v":2.5474166666666664,"d":"2.547"},{"$f":"'IV. Country level, 1310-2018'!V594","v":{"v":5.1,"d":"5.100"}},{"$f":"'IV. Country level, 1310-2018'!D594","v":{"v":-2.552583333333333,"d":"-2.553"}},{"$nulls":5},{"v":3.743120486329745,"d":"3.743"},{"v":3.1620846999202,"d":"3.162"},{"v":0.581035786409545,"d":"0.581"},{"$f":"'VIII. Pers. sov. loans, 1312-'!C593","v":{"v":3.925114155251139,"d":"3.925"}}]
[1901,null,{"v":3.2998368211675455,"d":"3.300"},{"v":1.2632814379102566,"d":"1.263"},{"v":2.036555383257289,"d":"2.037"},{"v":2.6040238095238095,"d":"2.604"},{"v":0.9714285714285714,"d":"0.971"},{"v":1.632595238095238,"d":"1.633"},null,null,{"$f":"SUM('IV. Country level, 1310-2018'!AO595:AV595)","v":{"v":3.279683398933762,"d":"3.280"}},{"$f":"SUM('IV. Country level, 1310-2018'!AY595:BF595)","v":{"v":0.5794566198343187,"d":"0.5795"}},{"v":2.7002267790994434,"d":"2.700"},{"v":2.6906666666666665,"d":"2.691"},{"$f":"'IV. Country level, 1310-2018'!V595","v":{"v":0.5,"d":"0.500"}},{"$f":"'IV. Country level, 1310-2018'!D595","v":{"v":2.1906666666666665,"d":"2.191"}},{"$nulls":5},{"v":3.6483333333333334,"d":"3.648"},{"v":0.7662608880981119,"d":"0.766"},{"v":2.8820724452352215,"d":"2.882"},{"$f":"'VIII. Pers. sov. loans, 1312-'!C594","v":{"v":3.923287671232874,"d":"3.923"}}]
[1902,null,{"v":3.2898852184962,"d":"3.290"},{"v":1.7392350363398352,"d":"1.739"},{"v":1.5506501821563645,"d":"1.551"},{"v":2.6784999999999997,"d":"2.679"},{"v":0.9857142857142858,"d":"0.986"},{"v":1.6927857142857141,"d":"1.693"},null,null,{"$f":"SUM('IV. Country level, 1310-2018'!AO596:AV596)","v":{"v":3.232132388382155,"d":"3.232"}},{"$f":"SUM('IV. Country level, 1310-2018'!AY596:BF596)","v":{"v":1.0998133478203087,"d":"1.0998"}},{"v":2.132319040561846,"d":"2.132"},{"v":2.6754999999999995,"d":"2.676"},{"$f":"'IV. Country level, 1310-2018'!V596","v":{"v":0,"d":"0.000"}},{"$f":"'IV. Country level, 1310-2018'!D596","v":{"v":2.6754999999999995,"d":"2.676"}},{"$nulls":5},{"v":3.523333333333333,"d":"3.523"},{"v":-0.7604339799300996,"d":"-0.760"},{"v":4.283767313263432,"d":"4.284"},{"$f":"'VIII. Pers. sov. loans, 1312-'!C595","v":{"v":3.921461187214609,"d":"3.921"}}]
[1903,null,{"v":3.288058623526184,"d":"3.288"},{"v":1.761308492639624,"d":"1.761"},{"v":1.52675013088656,"d":"1.527"},{"v":2.7471190476190475,"d":"2.747"},{"v":0.8857142857142858,"d":"0.886"},{"v":1.8614047619047618,"d":"1.861"},null,null,{"$f":"SUM('IV. Country level, 1310-2018'!AO597:AV597)","v":{"v":3.2990342577082927,"d":"3.299"}},{"$f":"SUM('IV. Country level, 1310-2018'!AY597:BF597)","v":{"v":1.306716444785443,"d":"1.3067"}},{"v":1.9923178129228498,"d":"1.992"},{"v":2.7869999999999995,"d":"2.787"},{"$f":"'IV. Country level, 1310-2018'!V597","v":{"v":0.4,"d":"0.400"}},{"$f":"'IV. Country level, 1310-2018'!D597","v":{"v":2.3869999999999996,"d":"2.387"}},{"$nulls":5},{"v":3.525833333333334,"d":"3.526"},{"v":0.7662608880981119,"d":"0.766"},{"$f":"V601-W601","v":{"v":2.759572445235222,"d":"2.760"}},{"$f":"'VIII. Pers. sov. loans, 1312-'!C596","v":{"v":3.919634703196344,"d":"3.920"}}]
[1904,null,{"v":3.313585834456248,"d":"3.314"},{"v":1.6486163942556278,"d":"1.649"},{"v":1.6649694402006197,"d":"1.665"},{"v":2.811642857142857,"d":"2.812"},{"v":0.32857142857142857,"d":"0.329"},{"v":2.4830714285714284,"d":"2.483"},null,null,{"$f":"SUM('IV. Country level, 1310-2018'!AO598:AV598)","v":{"v":3.350865649121742,"d":"3.351"}},{"$f":"SUM('IV. Country level, 1310-2018'!AY598:BF598)","v":{"v":1.2675053490497388,"d":"1.2675"}},{"v":2.083360300072003,"d":"2.083"},{"$f":"P602+O602","v":{"v":2.8602499999999993,"d":"2.860"}},{"$f":"'IV. Country level, 1310-2018'!V598","v":{"v":-0.2,"d":"-0.200"}},{"$f":"'IV. Country level, 1310-2018'!D598","v":{"v":3.0602499999999995,"d":"3.060"}},{"$nulls":5},{"v":3.5658333333333325,"d":"3.566"},{"v":0.760551093893938,"d":"0.761"},{"v":2.8052822394393946,"d":"2.805"},{"$f":"'VIII. Pers. sov. loans, 1312-'!C597","v":{"v":3.917808219178079,"d":"3.918"}}]
[1905,null,{"v":3.3287110940514366,"d":"3.329"},{"v":1.199083009764516,"d":"1.199"},{"v":2.1296280842869204,"d":"2.130"},{"v":2.845130952380952,"d":"2.845"},{"v":0.32857142857142857,"d":"0.329"},{"v":2.5165595238095233,"d":"2.517"},null,null,{"$f":"SUM('IV. Country level, 1310-2018'!AO599:AV599)","v":{"v":3.295158826465639,"d":"3.295"}},{"$f":"SUM('IV. Country level, 1310-2018'!AY599:BF599)","v":{"v":3.4363269878398914,"d":"3.4363"}},{"v":-0.1411681613742526,"d":"-0.141"},{"v":2.8105000000000007,"d":"2.811"},{"$f":"'IV. Country level, 1310-2018'!V599","v":{"v":0.4,"d":"0.400"}},{"$f":"'IV. Country level, 1310-2018'!D599","v":{"v":2.4105000000000008,"d":"2.411"}},{"$nulls":5},{"v":3.5649999999999995,"d":"3.565"},{"v":5.157154355527694,"d":"5.157"},{"v":-1.5921543555276942,"d":"-1.592"},{"$f":"'VIII. Pers. sov. loans, 1312-'!C598","v":{"v":3.9159817351598143,"d":"3.916"}}]
[1906,null,{"v":3.35666055534391,"d":"3.357"},{"v":1.7692892218365626,"d":"1.769"},{"v":1.5873713335073472,"d":"1.587"},{"v":2.893666666666666,"d":"2.894"},{"v":0.39999999999999997,"d":"0.400"},{"v":2.4936666666666665,"d":"2.494"},null,null,{"$f":"SUM('IV. Country level, 1310-2018'!AO600:AV600)","v":{"v":3.278459544275354,"d":"3.278"}},{"$f":"SUM('IV. Country level, 1310-2018'!AY600:BF600)","v":{"v":1.932205613102431,"d":"1.9322"}},{"v":1.346253931172923,"d":"1.346"},{"v":2.8585,"d":"2.859"},{"$f":"'IV. Country level, 1310-2018'!V600","v":{"v":0,"d":"0.000"}},{"$f":"'IV. Country level, 1310-2018'!D600","v":{"v":2.8585,"d":"2.859"}},{"$nulls":5},{"v":3.6291666666666664,"d":"3.629"},{"v":5.622028065601116,"d":"5.622"},{"v":-1.9928613989344495,"d":"-1.993"},{"$f":"'VIII. Pers. sov. loans, 1312-'!C599","v":{"v":3.9141552511415494,"d":"3.914"}}]
[1907,null,{"v":3.3812762797615528,"d":"3.381"},{"v":1.660161648316335,"d":"1.660"},{"v":1.7211146314452175,"d":"1.721"},{"v":2.9411904761904757,"d":"2.941"},{"v":0.4714285714285714,"d":"0.471"},{"v":2.469761904761905,"d":"2.470"},null,null,{"$f":"SUM('IV. Country level, 1310-2018'!AO601:AV601)","v":{"v":3.4597667763067905,"d":"3.460"}},{"$f":"SUM('IV. Country level, 1310-2018'!AY601:BF601)","v":{"v":1.9182903973572645,"d":"1.9183"}},{"v":1.541476378949526,"d":"1.541"},{"v":2.9990833333333335,"d":"2.999"},{"$f":"'IV. Country level, 1310-2018'!V601","v":{"v":1.2,"d":"1.200"}},{"$f":"'IV. Country level, 1310-2018'!D601","v":{"v":1.7990833333333336,"d":"1.799"}},{"$nulls":5},{"v":3.7533333333333334,"d":"3.753"},{"v":0.6794815260622665,"d":"0.679"},{"v":3.0738518072710668,"d":"3.074"},{"$f":"'VIII. Pers. sov. loans, 1312-'!C600","v":{"v":3.9123287671232845,"d":"3.912"}}]
[1908,null,{"v":3.4101768738346094,"d":"3.410"},{"v":1.999237253156728,"d":"1.999"},{"v":1.4109396206778813,"d":"1.411"},{"v":2.9878452380952383,"d":"2.988"},{"v":0.5142857142857143,"d":"0.514"},{"v":2.473559523809524,"d":"2.474"},null,null,{"$f":"SUM('IV. Country level, 1310-2018'!AO602:AV602)","v":{"v":3.385560216100084,"d":"3.386"}},{"$f":"SUM('IV. Country level, 1310-2018'!AY602:BF602)","v":{"v":-2.5672770716034643,"d":"-2.5673"}},{"v":5.952837287703549,"d":"5.953"},{"v":2.925083333333333,"d":"2.925"},{"$f":"'IV. Country level, 1310-2018'!V602","v":{"v":0.5,"d":"0.500"}},{"$f":"'IV. Country level, 1310-2018'!D602","v":{"v":2.425083333333333,"d":"2.425"}},{"$nulls":5},{"v":3.8041666666666667,"d":"3.804"},{"v":0,"d":"0.000"},{"v":3.8041666666666667,"d":"3.804"},{"$f":"'VIII. Pers. sov. loans, 1312-'!C601","v":{"v":3.9105022831050196,"d":"3.911"}}]
[1909,null,{"v":3.4596354034007484,"d":"3.460"},{"v":1.8849840368016693,"d":"1.885"},{"v":1.5746513665990787,"d":"1.575"},{"v":3.060619047619047,"d":"3.061"},{"v":0.8857142857142858,"d":"0.886"},{"v":2.1749047619047617,"d":"2.175"},null,null,{"$f":"SUM('IV. Country level, 1310-2018'!AO603:AV603)","v":{"v":3.427778617429468,"d":"3.428"}},{"$f":"SUM('IV. Country level, 1310-2018'!AY603:BF603)","v":{"v":5.091256832324635,"d":"5.0913"}},{"v":-1.6634782148951675,"d":"-1.663"},{"v":3.01525,"d":"3.015"},{"$f":"'IV. Country level, 1310-2018'!V603","v":{"v":0.5,"d":"0.500"}},{"$f":"'IV. Country level, 1310-2018'!D603","v":{"v":2.51525,"d":"2.515"}},{"$nulls":5},{"v":3.6991666666666667,"d":"3.699"},{"v":2.5871696828055413,"d":"2.587"},{"v":1.1119969838611254,"d":"1.112"},{"$f":"'VIII. Pers. sov. loans, 1312-'!C602","v":{"v":3.9086757990867547,"d":"3.909"}}]
[1910,null,{"v":3.5269975084306497,"d":"3.527"},{"v":1.5168262480646484,"d":"1.517"},{"v":2.010171260366002,"d":"2.010"},{"v":3.1419047619047618,"d":"3.142"},{"v":0.8285714285714285,"d":"0.829"},{"v":2.313333333333333,"d":"2.313"},null,null,{"$f":"SUM('IV. Country level, 1310-2018'!AO604:AV604)","v":{"v":3.4713443286317918,"d":"3.471"}},{"$f":"SUM('IV. Country level, 1310-2018'!AY604:BF604)","v":{"v":0.5428234301438486,"d":"0.5428"}},{"v":2.9285208984879434,"d":"2.929"},{"v":3.119666666666667,"d":"3.120"},{"$f":"'IV. Country level, 1310-2018'!V604","v":{"v":0.9,"d":"0.900"}},{"$f":"'IV. Country level, 1310-2018'!D604","v":{"v":2.219666666666667,"d":"2.220"}},{"$nulls":5},3.755,{"v":0,"d":"0.000"},3.755,{"$f":"'VIII. Pers. sov. loans, 1312-'!C603","v":{"v":3.9068493150684898,"d":"3.907"}}]
[1911,null,{"v":3.5959772192310173,"d":"3.596"},{"v":1.7124324282013956,"d":"1.712"},{"v":1.8835447910296215,"d":"1.884"},{"v":3.2109404761904763,"d":"3.211"},{"v":0.6142857142857142,"d":"0.614"},{"v":2.596654761904762,"d":"2.597"},null,null,{"$f":"SUM('IV. Country level, 1310-2018'!AO605:AV605)","v":{"v":3.5531698076331386,"d":"3.553"}},{"$f":"SUM('IV. Country level, 1310-2018'!AY605:BF605)","v":{"v":3.6410345829324893,"d":"3.6410"}},{"v":-0.08786477529935066,"d":"-0.088"},{"v":3.186833333333333,"d":"3.187"},{"$f":"'IV. Country level, 1310-2018'!V605","v":{"v":0.1,"d":"0.100"}},{"$f":"'IV. Country level, 1310-2018'!D605","v":{"v":3.086833333333333,"d":"3.087"}},{"$nulls":5},{"v":3.791666666666667,"d":"3.792"},{"v":7.785129269326391,"d":"7.785"},{"v":-3.993462602659724,"d":"-3.993"},{"$f":"'VIII. Pers. sov. loans, 1312-'!C604","v":{"v":3.905022831050225,"d":"3.905"}}]
[1912,null,{"v":3.73106776165578,"d":"3.731"},{"v":3.232256402392695,"d":"3.232"},{"v":0.49881135926308573,"d":"0.499"},{"v":3.344214285714286,"d":"3.344"},{"v":2.3285714285714287,"d":"2.329"},{"v":1.0156428571428573,"d":"1.016"},null,null,{"$f":"SUM('IV. Country level, 1310-2018'!AO606:AV606)","v":{"v":3.6413685334286097,"d":"3.641"}},{"$f":"SUM('IV. Country level, 1310-2018'!AY606:BF606)","v":{"v":2.6365544733544812,"d":"2.6366"}},{"v":1.0048140600741284,"d":"1.005"},{"v":3.319916666666666,"d":"3.320"},{"$f":"'IV. Country level, 1310-2018'!V606","v":{"v":3,"d":"3.000"}},{"$f":"'IV. Country level, 1310-2018'!D606","v":{"v":0.31991666666666596,"d":"0.320"}},{"$nulls":5},{"v":3.9091666666666662,"d":"3.909"},{"v":3.5604856056638807,"d":"3.560"},{"v":0.3486810610027855,"d":"0.349"},{"$f":"'VIII. Pers. sov. loans, 1312-'!C605","v":{"v":3.90319634703196,"d":"3.903"}}]
[1913,null,{"v":3.8855038595632636,"d":"3.886"},{"v":4.472000807637383,"d":"4.472"},{"v":-0.5864969480741202,"d":"-0.586"},{"v":3.5301071428571427,"d":"3.530"},{"v":4.842857142857143,"d":"4.843"},{"v":-1.31275,"d":"-1.313"},null,null,{"$f":"SUM('IV. Country level, 1310-2018'!AO607:AV607)","v":{"v":3.749994279484668,"d":"3.750"}},{"$f":"SUM('IV. Country level, 1310-2018'!AY607:BF607)","v":{"v":-0.6448989080567161,"d":"-0.6449"}},{"v":4.394893187541384,"d":"4.395"},{"v":3.4275,"d":"3.428"},{"$f":"'IV. Country level, 1310-2018'!V607","v":{"v":-0.4,"d":"-0.400"}},{"$f":"'IV. Country level, 1310-2018'!D607","v":{"v":3.8275,"d":"3.828"}},{"$nulls":5},{"v":4.085833333333333,"d":"4.086"},{"v":-3.438073493804815,"d":"-3.438"},{"v":7.523906827138148,"d":"7.524"},{"$f":"'VIII. Pers. sov. loans, 1312-'!C606","v":{"v":3.901369863013695,"d":"3.901"}}]
[1914,null,{"v":4.06123251775736,"d":"4.061"},{"v":7.538231697943644,"d":"7.538"},{"v":-3.476999180186285,"d":"-3.477"},{"v":3.7390476190476183,"d":"3.739"},{"v":8.314285714285715,"d":"8.314"},{"v":-4.575238095238096,"d":"-4.575"},null,null,{"$f":"SUM('IV. Country level, 1310-2018'!AO608:AV608)","v":{"v":3.942624751909361,"d":"3.943"}},{"$f":"SUM('IV. Country level, 1310-2018'!AY608:BF608)","v":{"v":3.2875336583144943,"d":"3.2875"}},{"v":0.6550910935948666,"d":"0.655"},{"v":3.4823333333333335,"d":"3.482"},{"$f":"'IV. Country level, 1310-2018'!V608","v":{"v":-0.3,"d":"-0.300"}},{"$f":"'IV. Country level, 1310-2018'!D608","v":{"v":3.7823333333333333,"d":"3.782"}},{"$nulls":5},{"v":4.587121212121213,"d":"4.587"},{"v":22.176975616726512,"d":"22.177"},{"v":-17.589854404605298,"d":"-17.590"},{"$f":"'VIII. Pers. sov. loans, 1312-'!C607","v":{"v":3.89954337899543,"d":"3.900"}}]
[1915,null,{"v":4.221784144923235,"d":"4.222"},{"v":10.294472165419863,"d":"10.294"},{"v":-6.07268802049663,"d":"-6.073"},{"v":3.91645238095238,"d":"3.916"},{"v":11.442857142857145,"d":"11.443"},{"v":-7.526404761904763,"d":"-7.526"},null,null,{"$f":"SUM('IV. Country level, 1310-2018'!AO609:AV609)","v":{"v":4.331194013073424,"d":"4.331"}},{"$f":"SUM('IV. Country level, 1310-2018'!AY609:BF609)","v":{"v":8.071490747735629,"d":"8.0715"}},{"v":-3.7402967346622047,"d":"-3.740"},{"v":3.8580000000000005,"d":"3.858"},{"$f":"'IV. Country level, 1310-2018'!V609","v":{"v":12.5,"d":"12.500"}},{"$f":"'IV. Country level, 1310-2018'!D609","v":-8.642},{"$nulls":5},{"v":5.088409090909091,"d":"5.088"},{"v":12.239823906873626,"d":"12.240"},{"v":-7.151414815964535,"d":"-7.151"},{"$f":"'VIII. Pers. sov. loans, 1312-'!C608","v":{"v":3.8977168949771652,"d":"3.898"}}]
[1916,null,{"v":4.414914337860584,"d":"4.415"},{"v":11.687203056103469,"d":"11.687"},{"v":-7.2722887182428835,"d":"-7.272"},{"v":4.104630952380952,"d":"4.105"},{"v":12.457142857142856,"d":"12.457"},{"v":-8.352511904761906,"d":"-8.353"},null,null,{"$f":"SUM('IV. Country level, 1310-2018'!AO610:AV610)","v":{"v":4.508831302781849,"d":"4.509"}},{"$f":"SUM('IV. Country level, 1310-2018'!AY610:BF610)","v":{"v":13.769467669037457,"d":"13.7695"}},{"v":-9.260636366255607,"d":"-9.261"},{"v":4.3165,"d":"4.317"},{"$f":"'IV. Country level, 1310-2018'!V610","v":{"v":18.1,"d":"18.100"}},{"$f":"'IV. Country level, 1310-2018'!D610","v":{"v":-13.783500000000002,"d":"-13.784"}},{"$nulls":5},{"v":5.58969696969697,"d":"5.590"},{"v":44.06527534422882,"d":"44.065"},{"v":-38.47557837453185,"d":"-38.476"},{"$f":"'VIII. Pers. sov. loans, 1312-'!C609","v":{"v":3.8958904109589003,"d":"3.896"}}]
[1917,null,{"v":4.669727650702206,"d":"4.670"},{"v":13.538186630102503,"d":"13.538"},{"v":-8.868458979400296,"d":"-8.868"},{"v":4.386416666666666,"d":"4.386"},{"v":12.892214663643234,"d":"12.892"},{"v":-8.50579799697657,"d":"-8.506"},null,null,{"$f":"SUM('IV. Country level, 1310-2018'!AO611:AV611)","v":{"v":4.701444935990467,"d":"4.701"}},{"$f":"SUM('IV. Country level, 1310-2018'!AY611:BF611)","v":{"v":22.006439662287676,"d":"22.0064"}},{"v":-17.30499472629721,"d":"-17.305"},{"v":4.582249999999998,"d":"4.582"},{"$f":"'IV. Country level, 1310-2018'!V611","v":{"v":25.2,"d":"25.200"}},{"$f":"'IV. Country level, 1310-2018'!D611","v":{"v":-20.61775,"d":"-20.618"}},{"$nulls":5},{"v":6.090984848484849,"d":"6.091"},{"v":50.3089745021269,"d":"50.309"},{"v":-44.21798965364205,"d":"-44.218"},{"$f":"'VIII. Pers. sov. loans, 1312-'!C610","v":{"v":3.8940639269406354,"d":"3.894"}}]
[1918,null,{"v":4.8199845600207505,"d":"4.820"},{"v":11.501380312931056,"d":"11.501"},{"v":-6.681395752910305,"d":"-6.681"},{"v":4.527511904761903,"d":"4.528"},{"v":11.388680053923057,"d":"11.389"},{"v":-6.861168149161155,"d":"-6.861"},null,null,{"$f":"SUM('IV. Country level, 1310-2018'!AO612:AV612)","v":{"v":4.67703119779426,"d":"4.677"}},{"$f":"SUM('IV. Country level, 1310-2018'!AY612:BF612)","v":{"v":22.934717855266026,"d":"22.9347"}},{"v":-18.257686657471766,"d":"-18.258"},{"v":4.428666666666665,"d":"4.429"},{"$f":"'IV. Country level, 1310-2018'!V612","v":{"v":22,"d":"22.000"}},{"$f":"'IV. Country level, 1310-2018'!D612","v":{"v":-17.571333333333335,"d":"-17.571"}},{"$nulls":5},{"v":6.592272727272727,"d":"6.592"},{"v":9.695108009677451,"d":"9.695"},{"v":-3.1028352824047243,"d":"-3.103"},{"$f":"'VIII. Pers. sov. loans, 1312-'!C611","v":{"v":3.8922374429223705,"d":"3.892"}}]
[1919,null,{"v":4.8655117611547345,"d":"4.866"},{"v":9.737052491130495,"d":"9.737"},{"v":-4.8715407299757585,"d":"-4.872"},{"v":4.593511904761904,"d":"4.594"},{"v":9.272660235591099,"d":"9.273"},{"v":-4.6791483308291975,"d":"-4.679"},null,null,{"$f":"SUM('IV. Country level, 1310-2018'!AO613:AV613)","v":{"v":4.993279883990064,"d":"4.993"}},{"$f":"SUM('IV. Country level, 1310-2018'!AY613:BF613)","v":{"v":12.385670708139711,"d":"12.3857"}},{"v":-7.392390824149648,"d":"-7.392"},{"v":4.637166666666667,"d":"4.637"},{"$f":"'IV. Country level, 1310-2018'!V613","v":{"v":10.1,"d":"10.100"}},{"$f":"'IV. Country level, 1310-2018'!D613","v":{"v":-5.462833333333332,"d":"-5.463"}},{"$nulls":5},{"v":7.093560606060606,"d":"7.094"},{"v":87.32041809805389,"d":"87.320"},{"v":-80.22685749199329,"d":"-80.227"},{"$f":"'VIII. Pers. sov. loans, 1312-'!C612","v":{"v":3.8904109589041056,"d":"3.890"}}]
[1920,null,{"v":4.893812525273104,"d":"4.894"},{"v":8.182165346308858,"d":"8.182"},{"v":-3.2883528210357547,"d":"-3.288"},{"v":4.598297619047619,"d":"4.598"},{"v":7.0250693649233105,"d":"7.025"},{"v":-2.4267717458756906,"d":"-2.427"},null,null,{"$f":"SUM('IV. Country level, 1310-2018'!AO614:AV614)","v":{"v":5.533687469376018,"d":"5.534"}},{"$f":"SUM('IV. Country level, 1310-2018'!AY614:BF614)","v":{"v":12.311986109936527,"d":"12.3120"}},{"v":-6.778298640560509,"d":"-6.778"},{"v":5.4,"d":"5.400"},{"$f":"'IV. Country level, 1310-2018'!Z614","v":{"v":2.6455026455026456,"d":"2.646"}},{"$f":"'IV. Country level, 1310-2018'!H614","v":{"v":2.7544973544973548,"d":"2.754"}},{"$nulls":5},{"v":7.594848484848485,"d":"7.595"},{"v":93.06435080029338,"d":"93.064"},{"v":-85.4695023154449,"d":"-85.470"},{"$f":"'VIII. Pers. sov. loans, 1312-'!C613","v":{"v":3.8885844748858407,"d":"3.889"}}]
[1921,null,{"v":4.937402263987434,"d":"4.937"},{"v":5.220355442211288,"d":"5.220"},{"v":-0.2829531782238543,"d":"-0.283"},{"v":4.5094047619047615,"d":"4.509"},{"v":3.4250693649233095,"d":"3.425"},{"v":1.0843353969814529,"d":"1.084"},null,null,{"$f":"SUM('IV. Country level, 1310-2018'!AO615:AV615)","v":{"v":4.99442311713917,"d":"4.994"}},{"$f":"SUM('IV. Country level, 1310-2018'!AY615:BF615)","v":{"v":-10.97011056188564,"d":"-10.9701"}},{"v":15.964533679024811,"d":"15.965"},{"v":4.469999999999999,"d":"4.470"},{"$f":"'IV. Country level, 1310-2018'!Z615","v":{"v":-10.824742268041227,"d":"-10.825"}},{"$f":"'IV. Country level, 1310-2018'!H615","v":{"v":15.294742268041226,"d":"15.295"}},{"$nulls":5},{"v":8.096136363636363,"d":"8.096"},{"v":66.49395225679302,"d":"66.494"},{"v":-58.39781589315666,"d":"-58.398"},{"$f":"'VIII. Pers. sov. loans, 1312-'!C614","v":{"v":3.886757990867576,"d":"3.887"}}]
[1922,null,{"v":4.985262792161388,"d":"4.985"},{"v":2.4048175174864532,"d":"2.405"},{"v":2.5804452746749353,"d":"2.580"},{"v":4.419595238095238,"d":"4.420"},{"v":0.7776705209926715,"d":"0.778"},{"v":3.6419247171025666,"d":"3.642"},null,null,{"$f":"SUM('IV. Country level, 1310-2018'!AO616:AV616)","v":{"v":4.649884421011316,"d":"4.650"}},{"$f":"SUM('IV. Country level, 1310-2018'!AY616:BF616)","v":{"v":-4.278804004868304,"d":"-4.2788"}},{"v":8.92868842587962,"d":"8.929"},{"v":4.32,"d":"4.320"},{"$f":"'IV. Country level, 1310-2018'!Z616","v":{"v":-2.3121387283237116,"d":"-2.312"}},{"$f":"'IV. Country level, 1310-2018'!H616","v":{"v":6.632138728323712,"d":"6.632"}},{"$nulls":5},{"v":8.597424242424243,"d":"8.597"},{"v":0,"d":"0.000"},{"v":8.597424242424243,"d":"8.597"},{"$f":"'VIII. Pers. sov. loans, 1312-'!C615","v":{"v":3.884931506849311,"d":"3.885"}}]
[1923,null,{"v":4.91892525400232,"d":"4.919"},{"v":0.9257416451703292,"d":"0.926"},{"v":3.9931836088319916,"d":"3.993"},{"v":4.265714285714286,"d":"4.266"},{"v":-0.8248035412579264,"d":"-0.825"},{"v":5.090517826972212,"d":"5.091"},null,null,{"$f":"SUM('IV. Country level, 1310-2018'!AO617:AV617)","v":{"v":4.70693665161043,"d":"4.707"}},{"$f":"SUM('IV. Country level, 1310-2018'!AY617:BF617)","v":{"v":2.885257655286011,"d":"2.8853"}},{"v":1.8216789963244193,"d":"1.822"},{"v":4.35,"d":"4.350"},{"$f":"'IV. Country level, 1310-2018'!Z617","v":{"v":2.3668639053254568,"d":"2.367"}},{"$f":"'IV. Country level, 1310-2018'!H617","v":{"v":1.9831360946745429,"d":"1.983"}},{"$nulls":5},{"v":9.098712121212122,"d":"9.099"},{"v":0,"d":"0.000"},{"v":9.098712121212122,"d":"9.099"},{"$f":"'VIII. Pers. sov. loans, 1312-'!C616","v":{"v":3.883105022831046,"d":"3.883"}}]
[1924,null,{"v":4.744097834203196,"d":"4.744"},{"v":-1.2995185717049402,"d":"-1.300"},{"v":6.043616405908137,"d":"6.044"},{"v":3.9471428571428566,"d":"3.947"},{"v":-1.5255734914225485,"d":"-1.526"},{"v":5.472716348565406,"d":"5.473"},null,null,{"$f":"SUM('IV. Country level, 1310-2018'!AO618:AV618)","v":{"v":5.006573106990781,"d":"5.007"}},{"$f":"SUM('IV. Country level, 1310-2018'!AY618:BF618)","v":{"v":1.2737703336046882,"d":"1.2738"}},{"v":3.732802773386093,"d":"3.733"},{"v":3.96,"d":"3.960"},{"$f":"'IV. Country level, 1310-2018'!Z618","v":{"v":0,"d":"0.000"}},{"$f":"'IV. Country level, 1310-2018'!H618","v":{"v":3.96,"d":"3.960"}},{"$nulls":5},{"v":9.6,"d":"9.600"},{"v":-3.299566537964558,"d":"-3.300"},{"v":12.899566537964557,"d":"12.900"},{"$f":"'VIII. Pers. sov. loans, 1312-'!C617","v":{"v":3.881278538812781,"d":"3.881"}}]
[1925,null,{"v":4.660846336747992,"d":"4.661"},{"v":0.4362490075675301,"d":"0.436"},{"v":4.224597329180463,"d":"4.225"},{"v":3.8014285714285707,"d":"3.801"},{"v":-0.14433450515406557,"d":"-0.144"},{"v":3.9457630765826375,"d":"3.946"},null,null,{"$f":"SUM('IV. Country level, 1310-2018'!AO619:AV619)","v":{"v":5.012054895011938,"d":"5.012"}},{"$f":"SUM('IV. Country level, 1310-2018'!AY619:BF619)","v":{"v":3.225952382192177,"d":"3.2260"}},{"v":1.7861025128197614,"d":"1.786"},{"v":3.8,"d":"3.800"},{"$f":"'IV. Country level, 1310-2018'!Z619","v":{"v":3.468208092485537,"d":"3.468"}},{"$f":"'IV. Country level, 1310-2018'!H619","v":{"v":0.33179190751446264,"d":"0.332"}},{"$nulls":5},{"v":9,"d":"9.000"},{"v":4.283874865822863,"d":"4.284"},{"v":4.716125134177137,"d":"4.716"},{"$f":"'VIII. Pers. sov. loans, 1312-'!C618","v":{"v":3.879452054794516,"d":"3.879"}}]
[1926,null,{"v":4.614921992433111,"d":"4.615"},{"v":1.02401439630554,"d":"1.024"},{"v":3.5909075961275705,"d":"3.591"},{"v":3.664285714285714,"d":"3.664"},{"v":0.2695132162689525,"d":"0.270"},{"v":3.3947724980167613,"d":"3.395"},null,null,{"$f":"SUM('IV. Country level, 1310-2018'!AO620:AV620)","v":{"v":4.528917116876592,"d":"4.529"}},{"$f":"SUM('IV. Country level, 1310-2018'!AY620:BF620)","v":{"v":2.0321396019268465,"d":"2.0321"}},{"v":2.4967775149497453,"d":"2.497"},{"v":3.56,"d":"3.560"},{"$f":"'IV. Country level, 1310-2018'!Z620","v":{"v":-1.117318435754186,"d":"-1.117"}},{"$f":"'IV. Country level, 1310-2018'!H620","v":{"v":4.677318435754186,"d":"4.677"}},{"$nulls":5},{"v":7.75,"d":"7.750"},{"v":2.195777551812995,"d":"2.196"},{"v":5.554222448187005,"d":"5.554"},{"$f":"'VIII. Pers. sov. loans, 1312-'!C619","v":{"v":3.8776255707762513,"d":"3.878"}}]
[1927,null,{"v":4.545717311588951,"d":"4.546"},{"v":-0.1355449244246078,"d":"-0.136"},{"v":4.681262236013559,"d":"4.681"},{"v":3.5028571428571427,"d":"3.503"},{"v":-0.9822314612360113,"d":"-0.982"},{"v":4.485088604093154,"d":"4.485"},null,null,{"$f":"SUM('IV. Country level, 1310-2018'!AO621:AV621)","v":{"v":4.309895530782146,"d":"4.310"}},{"$f":"SUM('IV. Country level, 1310-2018'!AY621:BF621)","v":{"v":-3.2648354081903603,"d":"-3.2648"}},{"v":7.574730938972507,"d":"7.575"},{"v":3.1699999999999995,"d":"3.170"},{"$f":"'IV. Country level, 1310-2018'!Z621","v":{"v":-2.2598870056497096,"d":"-2.260"}},{"$f":"'IV. Country level, 1310-2018'!H621","v":{"v":5.429887005649709,"d":"5.430"}},{"$nulls":5},{"v":7.33,"d":"7.330"},{"v":4.850552861278761,"d":"4.851"},{"v":2.4794471387212393,"d":"2.479"},{"$f":"'VIII. Pers. sov. loans, 1312-'!C620","v":{"v":3.8757990867579863,"d":"3.876"}}]
[1928,null,{"v":4.485533282757403,"d":"4.486"},{"v":-1.4161757771603563,"d":"-1.416"},{"v":5.901709059917758,"d":"5.902"},{"v":3.4985714285714278,"d":"3.499"},{"v":-2.313198630712499,"d":"-2.313"},{"v":5.811770059283928,"d":"5.812"},null,null,{"$f":"SUM('IV. Country level, 1310-2018'!AO622:AV622)","v":{"v":4.4116626349527435,"d":"4.412"}},{"$f":"SUM('IV. Country level, 1310-2018'!AY622:BF622)","v":{"v":1.180262493021653,"d":"1.1803"}},{"v":3.2314001419310907,"d":"3.231"},{"v":3.4499999999999997,"d":"3.450"},{"$f":"'IV. Country level, 1310-2018'!Z622","v":{"v":-1.1560693641618456,"d":"-1.156"}},{"$f":"'IV. Country level, 1310-2018'!H622","v":{"v":4.606069364161845,"d":"4.606"}},{"$nulls":5},{"v":8.26,"d":"8.260"},{"v":0.9256813783147244,"d":"0.926"},{"v":7.334318621685275,"d":"7.334"},{"$f":"'VIII. Pers. sov. loans, 1312-'!C621","v":{"v":3.8739726027397214,"d":"3.874"}}]
[1929,null,{"v":4.388585042134196,"d":"4.389"},{"v":-2.8326106416234915,"d":"-2.833"},{"v":7.221195683757686,"d":"7.221"},{"v":3.434285714285714,"d":"3.434"},{"v":-4.276367301458966,"d":"-4.276"},{"v":7.71065301574468,"d":"7.711"},null,null,{"$f":"SUM('IV. Country level, 1310-2018'!AO623:AV623)","v":{"v":4.3284140108071405,"d":"4.328"}},{"$f":"SUM('IV. Country level, 1310-2018'!AY623:BF623)","v":{"v":-0.16444628370223568,"d":"-0.1644"}},{"v":4.492860294509376,"d":"4.493"},{"v":3.3599999999999994,"d":"3.360"},{"$f":"'IV. Country level, 1310-2018'!Z623","v":{"v":0.5847953216374144,"d":"0.585"}},{"$f":"'IV. Country level, 1310-2018'!H623","v":{"v":2.775204678362585,"d":"2.775"}},{"$nulls":5},{"v":7.400000000000001,"d":"7.400"},{"v":-0.06571287219867032,"d":"-0.066"},{"v":7.465712872198671,"d":"7.466"},{"$f":"'VIII. Pers. sov. loans, 1312-'!C622","v":{"v":3.8721461187214565,"d":"3.872"}}]
[1930,null,{"v":4.351407479354444,"d":"4.351"},{"v":-3.0659203567164623,"d":"-3.066"},{"v":7.417327836070906,"d":"7.417"},{"v":3.4299999999999997,"d":"3.430"},{"v":-4.007699127976089,"d":"-4.008"},{"v":7.437699127976089,"d":"7.438"},null,null,{"$f":"SUM('IV. Country level, 1310-2018'!AO624:AV624)","v":{"v":4.2225038857013155,"d":"4.223"}},{"$f":"SUM('IV. Country level, 1310-2018'!AY624:BF624)","v":{"v":-5.231657589825024,"d":"-5.2317"}},{"v":9.45416147552634,"d":"9.454"},{"v":3.2199999999999998,"d":"3.220"},{"$f":"'IV. Country level, 1310-2018'!Z624","v":{"v":-6.39534883720929,"d":"-6.395"}},{"$f":"'IV. Country level, 1310-2018'!H624","v":{"v":9.61534883720929,"d":"9.615"}},{"$nulls":5},{"v":7.15,"d":"7.150"},{"v":-7.208613053595696,"d":"-7.209"},{"v":14.358613053595697,"d":"14.359"},{"$f":"'VIII. Pers. sov. loans, 1312-'!C623","v":{"v":3.8703196347031916,"d":"3.870"}}]
[1931,null,{"v":4.294546203599074,"d":"4.295"},{"v":-2.6908587872910026,"d":"-2.691"},{"v":6.985404990890076,"d":"6.985"},{"v":3.404285714285714,"d":"3.404"},{"v":-3.46840791071877,"d":"-3.468"},{"v":6.8726936250044846,"d":"6.873"},null,null,{"$f":"SUM('IV. Country level, 1310-2018'!AO625:AV625)","v":{"v":4.585284905169944,"d":"4.585"}},{"$f":"SUM('IV. Country level, 1310-2018'!AY625:BF625)","v":{"v":-7.6906456355455495,"d":"-7.6906"}},{"v":12.275930540715493,"d":"12.276"},{"v":3.9299999999999997,"d":"3.930"},{"$f":"'IV. Country level, 1310-2018'!Z625","v":{"v":-9.316770186335415,"d":"-9.317"}},{"$f":"'IV. Country level, 1310-2018'!H625","v":{"v":13.246770186335414,"d":"13.247"}},{"$nulls":5},{"v":7.04,"d":"7.040"},{"v":-7.626894178082722,"d":"-7.627"},{"v":14.666894178082721,"d":"14.667"},{"$f":"'VIII. Pers. sov. loans, 1312-'!C624","v":{"v":3.8684931506849267,"d":"3.868"}}]
[1932,null,{"v":4.185583351873276,"d":"4.186"},{"v":-2.626787649315382,"d":"-2.627"},{"v":6.812371001188659,"d":"6.812"},{"v":3.3142857142857136,"d":"3.314"},{"v":-2.876815912000553,"d":"-2.877"},{"v":6.191101626286268,"d":"6.191"},null,null,{"$f":"SUM('IV. Country level, 1310-2018'!AO626:AV626)","v":{"v":4.333417210649485,"d":"4.333"}},{"$f":"SUM('IV. Country level, 1310-2018'!AY626:BF626)","v":{"v":-6.689091669049768,"d":"-6.6891"}},{"v":11.022508879699252,"d":"11.023"},{"v":3.3499999999999996,"d":"3.350"},{"$f":"'IV. Country level, 1310-2018'!Z626","v":{"v":-10.273972602739727,"d":"-10.274"}},{"$f":"'IV. Country level, 1310-2018'!H626","v":{"v":13.623972602739727,"d":"13.624"}},{"$nulls":5},{"v":8.38,"d":"8.380"},{"v":-9.632938272367893,"d":"-9.633"},{"v":18.012938272367894,"d":"18.013"},{"$f":"'VIII. Pers. sov. loans, 1312-'!C625","v":{"v":3.8666666666666667,"d":"3.867"}}]
[1933,null,{"v":4.0536905886645975,"d":"4.054"},{"v":-2.086590505238937,"d":"-2.087"},{"v":6.140281093903536,"d":"6.140"},{"v":3.1942857142857144,"d":"3.194"},{"v":-2.753318763331779,"d":"-2.753"},{"v":5.947604477617494,"d":"5.948"},null,null,{"$f":"SUM('IV. Country level, 1310-2018'!AO627:AV627)","v":{"v":4.268674177418331,"d":"4.269"}},{"$f":"SUM('IV. Country level, 1310-2018'!AY627:BF627)","v":{"v":0.39897159627604334,"d":"0.3990"}},{"v":3.8697025811422883,"d":"3.870"},{"v":3.53,"d":"3.530"},{"$f":"'IV. Country level, 1310-2018'!Z627","v":{"v":0.7633587786259515,"d":"0.763"}},{"$f":"'IV. Country level, 1310-2018'!H627","v":{"v":2.7666412213740483,"d":"2.767"}},{"$nulls":5},{"v":7.15,"d":"7.150"},{"v":2.030230360674061,"d":"2.030"},{"v":5.1197696393259395,"d":"5.120"},{"$f":"'VIII. Pers. sov. loans, 1312-'!C626","v":{"v":3.8666666666666667,"d":"3.867"}}]
[1934,null,{"v":3.9371654538019842,"d":"3.937"},{"v":-0.4824797277442937,"d":"-0.482"},{"v":4.419645181546278,"d":"4.420"},{"v":3.1171428571428565,"d":"3.117"},{"v":-1.4315342355671858,"d":"-1.432"},{"v":4.548677092710042,"d":"4.549"},null,null,{"$f":"SUM('IV. Country level, 1310-2018'!AO628:AV628)","v":{"v":3.911866600494554,"d":"3.912"}},{"$f":"SUM('IV. Country level, 1310-2018'!AY628:BF628)","v":{"v":-0.6394044222121397,"d":"-0.6394"}},{"v":4.551271022706693,"d":"4.551"},{"v":2.99,"d":"2.990"},{"$f":"'IV. Country level, 1310-2018'!Z628","v":{"v":1.5151515151515234,"d":"1.515"}},{"$f":"'IV. Country level, 1310-2018'!H628","v":{"v":1.4748484848484769,"d":"1.475"}},{"$nulls":5},{"v":6.570000000000001,"d":"6.570"},{"v":1.327024639923161,"d":"1.327"},{"v":5.24297536007684,"d":"5.243"},{"$f":"'VIII. Pers. sov. loans, 1312-'!C627","v":{"v":3.8666666666666667,"d":"3.867"}}]
[1935,null,{"v":3.7515451871386225,"d":"3.752"},{"v":0.8844799694978489,"d":"0.884"},{"v":2.8670652176407745,"d":"2.867"},{"v":2.91,"d":"2.910"},{"v":-0.4973924629160947,"d":"-0.497"},{"v":3.407392462916094,"d":"3.407"},null,null,{"$f":"SUM('IV. Country level, 1310-2018'!AO629:AV629)","v":{"v":3.6489226728721618,"d":"3.649"}},{"$f":"SUM('IV. Country level, 1310-2018'!AY629:BF629)","v":{"v":1.6287604588509932,"d":"1.6288"}},{"v":2.020162214021169,"d":"2.020"},{"v":2.82,"d":"2.820"},{"$f":"'IV. Country level, 1310-2018'!Z629","v":{"v":2.9850746268656745,"d":"2.985"}},{"$f":"'IV. Country level, 1310-2018'!H629","v":{"v":-0.16507462686567465,"d":"-0.165"}},{"$nulls":5},{"v":5.08,"d":"5.080"},{"v":0.9818862197069896,"d":"0.982"},{"v":4.09811378029301,"d":"4.098"},{"$f":"'VIII. Pers. sov. loans, 1312-'!C628","v":{"v":3.8666666666666667,"d":"3.867"}}]
[1936,null,{"v":3.6070089467455335,"d":"3.607"},{"v":2.476778809943325,"d":"2.477"},{"v":1.130230136802208,"d":"1.130"},{"v":2.7600000000000002,"d":"2.760"},{"v":0.9703179089038664,"d":"0.970"},{"v":1.789682091096134,"d":"1.790"},null,null,{"$f":"SUM('IV. Country level, 1310-2018'!AO630:AV630)","v":{"v":3.4051646683463908,"d":"3.405"}},{"$f":"SUM('IV. Country level, 1310-2018'!AY630:BF630)","v":{"v":3.616933724832881,"d":"3.6169"}},{"v":-0.21176905648649003,"d":"-0.212"},{"v":2.52,"d":"2.520"},{"$f":"'IV. Country level, 1310-2018'!Z630","v":{"v":1.4492753623188355,"d":"1.449"}},{"$f":"'IV. Country level, 1310-2018'!H630","v":{"v":1.0707246376811645,"d":"1.071"}},{"$nulls":5},{"v":4.57,"d":"4.570"},{"v":0.7290825795764175,"d":"0.729"},{"v":3.8409174204235828,"d":"3.841"},{"$f":"'VIII. Pers. sov. loans, 1312-'!C629","v":{"v":3.8666666666666667,"d":"3.867"}}]
[1937,null,{"v":3.4406996993890147,"d":"3.441"},{"v":3.4789281955735873,"d":"3.479"},{"v":-0.038228496184572816,"d":"-0.038"},{"v":2.524285714285714,"d":"2.524"},{"v":0.9633074711409749,"d":"0.963"},{"v":1.560978243144739,"d":"1.561"},null,null,{"$f":"SUM('IV. Country level, 1310-2018'!AO631:AV631)","v":{"v":3.406827941663026,"d":"3.407"}},{"$f":"SUM('IV. Country level, 1310-2018'!AY631:BF631)","v":{"v":5.9971178526374835,"d":"5.9971"}},{"v":-2.5902899109744575,"d":"-2.590"},{"v":2.68,"d":"2.680"},{"$f":"'IV. Country level, 1310-2018'!Z631","v":{"v":2.85714285714286,"d":"2.857"}},{"$f":"'IV. Country level, 1310-2018'!H631","v":{"v":-0.1771428571428597,"d":"-0.177"}},{"$nulls":5},{"v":4.54,"d":"4.540"},{"v":0.3721637432542914,"d":"0.372"},{"v":4.167836256745709,"d":"4.168"},{"$f":"'VIII. Pers. sov. loans, 1312-'!C630","v":{"v":3.8666666666666667,"d":"3.867"}}]
[1938,null,{"v":3.314088210868309,"d":"3.314"},{"v":4.866819007374849,"d":"4.867"},{"v":-1.5527307965065396,"d":"-1.553"},{"v":2.392857142857143,"d":"2.393"},{"v":2.1652969710028143,"d":"2.165"},{"v":0.22756017185432828,"d":"0.228"},null,null,{"$f":"SUM('IV. Country level, 1310-2018'!AO632:AV632)","v":{"v":3.285943038526413,"d":"3.286"}},{"$f":"SUM('IV. Country level, 1310-2018'!AY632:BF632)","v":{"v":1.8780722451494494,"d":"1.8781"}},{"v":1.4078707933769634,"d":"1.408"},{"v":2.48,"d":"2.480"},{"$f":"'IV. Country level, 1310-2018'!Z632","v":{"v":-2.77777777777778,"d":"-2.778"}},{"$f":"'IV. Country level, 1310-2018'!H632","v":{"v":5.25777777777778,"d":"5.258"}},{"$nulls":5},{"v":4.5,"d":"4.500"},{"v":0.4934705672479725,"d":"0.493"},{"v":4.0065294327520276,"d":"4.007"},{"$f":"'VIII. Pers. sov. loans, 1312-'!C631","v":{"v":3.8666666666666667,"d":"3.867"}}]
[1939,null,{"v":3.2114082130941846,"d":"3.211"},{"v":5.759978891209589,"d":"5.760"},{"v":-2.548570678115404,"d":"-2.549"},{"v":2.2914285714285714,"d":"2.291"},{"v":3.029180319238592,"d":"3.029"},{"v":-0.7377517478100213,"d":"-0.738"},null,null,{"$f":"SUM('IV. Country level, 1310-2018'!AO633:AV633)","v":{"v":3.321663527897857,"d":"3.322"}},{"$f":"SUM('IV. Country level, 1310-2018'!AY633:BF633)","v":{"v":4.457000214068567,"d":"4.4570"}},{"v":-1.1353366861707102,"d":"-1.135"},{"v":2.3,"d":"2.300"},{"$f":"'IV. Country level, 1310-2018'!Z633","v":{"v":0,"d":"0.000"}},{"$f":"'IV. Country level, 1310-2018'!H633","v":{"v":2.3,"d":"2.300"}},{"$nulls":5},{"v":4.54,"d":"4.540"},{"v":0.8600112202212119,"d":"0.860"},{"v":3.679988779778788,"d":"3.680"},{"$f":"'VIII. Pers. sov. loans, 1312-'!C632","v":{"v":3.6326576576576577,"d":"3.633"}}]
[1940,null,{"v":3.1345183860392387,"d":"3.135"},{"v":6.284357913841875,"d":"6.284"},{"v":-3.149839527802636,"d":"-3.150"},{"v":2.2342857142857144,"d":"2.234"},{"v":3.2447952505725888,"d":"3.245"},{"v":-1.010509536286874,"d":"-1.011"},null,null,{"$f":"SUM('IV. Country level, 1310-2018'!AO634:AV634)","v":{"v":3.1045094459227,"d":"3.105"}},{"$f":"SUM('IV. Country level, 1310-2018'!AY634:BF634)","v":{"v":7.414017295687878,"d":"7.4140"}},{"v":-4.309507849765178,"d":"-4.310"},{"v":1.88,"d":"1.880"},{"$f":"'IV. Country level, 1310-2018'!Z634","v":{"v":0.7142857142857117,"d":"0.714"}},{"$f":"'IV. Country level, 1310-2018'!H634","v":{"v":1.1657142857142881,"d":"1.166"}},{"$nulls":5},{"v":4.46,"d":"4.460"},{"v":3.410710921665123,"d":"3.411"},{"v":1.0492890783348772,"d":"1.049"},{"$f":"'VIII. Pers. sov. loans, 1312-'!C633","v":{"v":3.6326576576576577,"d":"3.633"}}]
[1941,null,{"v":2.95270594007735,"d":"2.953"},{"v":8.601659502276963,"d":"8.602"},{"v":-5.648953562199614,"d":"-5.649"},{"v":2.1514285714285717,"d":"2.151"},{"v":3.1650392102254163,"d":"3.165"},{"v":-1.0136106387968449,"d":"-1.014"},null,null,{"$f":"SUM('IV. Country level, 1310-2018'!AO635:AV635)","v":{"v":3.025586180849616,"d":"3.026"}},{"$f":"SUM('IV. Country level, 1310-2018'!AY635:BF635)","v":{"v":9.07583126039669,"d":"9.0758"}},{"v":-6.050245079547074,"d":"-6.050"},{"v":2.0700000000000003,"d":"2.070"},{"$f":"'IV. Country level, 1310-2018'!Z635","v":{"v":9.9290780141844,"d":"9.929"}},{"$f":"'IV. Country level, 1310-2018'!H635","v":{"v":-7.8590780141844,"d":"-7.859"}},{"$nulls":5},{"v":4.354136429608127,"d":"4.354"},{"v":1.766809421240986,"d":"1.767"},{"v":2.5873270083671414,"d":"2.587"},{"$f":"'VIII. Pers. sov. loans, 1312-'!C634","v":{"v":3.6326576576576577,"d":"3.633"}}]
[1942,null,{"v":2.7501655349473886,"d":"2.750"},{"v":9.608861759957971,"d":"9.609"},{"v":-6.858696225010582,"d":"-6.859"},{"v":2.0357142857142856,"d":"2.036"},{"v":3.8828918943702346,"d":"3.883"},{"v":-1.8471776086559488,"d":"-1.847"},null,null,{"$f":"SUM('IV. Country level, 1310-2018'!AO636:AV636)","v":{"v":2.930162688453291,"d":"2.930"}},{"$f":"SUM('IV. Country level, 1310-2018'!AY636:BF636)","v":{"v":7.880879645694173,"d":"7.8809"}},{"v":-4.950716957240882,"d":"-4.951"},{"v":2.1099999999999994,"d":"2.110"},{"$f":"'IV. Country level, 1310-2018'!Z636","v":{"v":9.032258064516121,"d":"9.032"}},{"$f":"'IV. Country level, 1310-2018'!H636","v":{"v":-6.922258064516122,"d":"-6.922"}},{"$nulls":5},{"v":4.3478260869565215,"d":"4.348"},{"v":2.0831072046236336,"d":"2.083"},{"v":2.264718882332888,"d":"2.265"},{"$f":"'VIII. Pers. sov. loans, 1312-'!C635","v":{"v":3.088438438438439,"d":"3.088"}}]
[1943,null,{"v":2.6341921419674583,"d":"2.634"},{"v":11.765532288227368,"d":"11.766"},{"v":-9.13134014625991,"d":"-9.131"},{"v":1.967142857142857,"d":"1.967"},{"v":6.4731587703513975,"d":"6.473"},{"v":-4.5060159132085404,"d":"-4.506"},null,null,{"$f":"SUM('IV. Country level, 1310-2018'!AO637:AV637)","v":{"v":2.8669358789617694,"d":"2.867"}},{"$f":"SUM('IV. Country level, 1310-2018'!AY637:BF637)","v":{"v":7.287586883258883,"d":"7.2876"}},{"v":-4.420651004297113,"d":"-4.421"},{"v":2.12,"d":"2.120"},{"$f":"'IV. Country level, 1310-2018'!Z637","v":{"v":2.9585798816568047,"d":"2.959"}},{"$f":"'IV. Country level, 1310-2018'!H637","v":{"v":-0.8385798816568046,"d":"-0.839"}},{"$nulls":5},{"v":4.3478260869565215,"d":"4.348"},{"v":1.9273018825843886,"d":"1.927"},{"v":2.420524204372133,"d":"2.421"},{"$f":"'VIII. Pers. sov. loans, 1312-'!C636","v":{"v":3.088438438438439,"d":"3.088"}}]
[1944,null,{"v":2.605691792957287,"d":"2.606"},{"v":12.71583669687662,"d":"12.716"},{"v":-10.110144903919334,"d":"-10.110"},{"v":2.0100000000000002,"d":"2.010"},{"v":7.633576425785662,"d":"7.634"},{"v":-5.6235764257856635,"d":"-5.624"},null,null,{"$f":"SUM('IV. Country level, 1310-2018'!AO638:AV638)","v":{"v":2.1341408199298026,"d":"2.134"}},{"$f":"SUM('IV. Country level, 1310-2018'!AY638:BF638)","v":{"v":22.218228971683104,"d":"22.2182"}},{"v":-20.0840881517533,"d":"-20.084"},{"v":2.1,"d":"2.100"},{"$f":"'IV. Country level, 1310-2018'!Z638","v":{"v":2.298850574712656,"d":"2.299"}},{"$f":"'IV. Country level, 1310-2018'!H638","v":{"v":-0.19885057471265588,"d":"-0.199"}},{"$nulls":5},{"v":4.614803312629399,"d":"4.615"},{"v":1.8908593154016309,"d":"1.891"},{"v":2.723943997227768,"d":"2.724"},{"$f":"'VIII. Pers. sov. loans, 1312-'!C637","v":{"v":3.088438438438439,"d":"3.088"}}]
[1945,null,{"v":2.624369599339665,"d":"2.624"},{"v":12.9982492708116,"d":"12.998"},{"v":-10.373879671471936,"d":"-10.374"},{"v":2.0171428571428573,"d":"2.017"},{"v":6.642487136824035,"d":"6.642"},{"v":-4.625344279681178,"d":"-4.625"},null,null,{"$f":"SUM('IV. Country level, 1310-2018'!AO639:AV639)","v":{"v":1.8681602026166821,"d":"1.868"}},{"$f":"SUM('IV. Country level, 1310-2018'!AY639:BF639)","v":{"v":8.928488048916494,"d":"8.9285"}},{"v":-7.060327846299812,"d":"-7.060"},{"v":1.67,"d":"1.670"},{"$f":"'IV. Country level, 1310-2018'!Z639","v":{"v":2.2471910112359472,"d":"2.247"}},{"$f":"'IV. Country level, 1310-2018'!H639","v":{"v":-0.5771910112359473,"d":"-0.577"}},{"$nulls":5},{"v":4.881780538302277,"d":"4.882"},{"v":4.677696437380987,"d":"4.678"},{"v":0.2040841009212908,"d":"0.204"},{"$f":"'VIII. Pers. sov. loans, 1312-'!C638","v":{"v":2.6993243243243246,"d":"2.699"}}]
[1946,null,{"v":2.640173189652575,"d":"2.640"},{"v":11.734366865363127,"d":"11.734"},{"v":-9.094193675710553,"d":"-9.094"},{"v":1.972857142857143,"d":"1.973"},{"v":5.055780442367374,"d":"5.056"},{"v":-3.082923299510232,"d":"-3.083"},null,null,{"$f":"SUM('IV. Country level, 1310-2018'!AO640:AV640)","v":{"v":2.5098497770383483,"d":"2.510"}},{"$f":"SUM('IV. Country level, 1310-2018'!AY640:BF640)","v":{"v":19.553693911954355,"d":"19.5537"}},{"v":-17.043844134916007,"d":"-17.044"},{"v":1.8200000000000003,"d":"1.820"},{"$f":"'IV. Country level, 1310-2018'!Z640","v":{"v":18.13186813186814,"d":"18.132"}},{"$f":"'IV. Country level, 1310-2018'!H640","v":{"v":-16.311868131868138,"d":"-16.312"}},{"$nulls":5},{"v":5.148757763975155,"d":"5.149"},{"v":10.291001822736643,"d":"10.291"},{"v":-5.142244058761488,"d":"-5.142"},{"$f":"'VIII. Pers. sov. loans, 1312-'!C639","v":{"v":2,"d":"2.000"}}]
[1947,null,{"v":2.70987182244858,"d":"2.710"},{"v":11.356776944761213,"d":"11.357"},{"v":-8.646905122312635,"d":"-8.647"},{"v":1.9814285714285715,"d":"1.981"},{"v":5.480583800677904,"d":"5.481"},{"v":-3.4991552292493324,"d":"-3.499"},null,null,{"$f":"SUM('IV. Country level, 1310-2018'!AO641:AV641)","v":{"v":2.905007002851502,"d":"2.905"}},{"$f":"SUM('IV. Country level, 1310-2018'!AY641:BF641)","v":{"v":14.06614815623265,"d":"14.0661"}},{"v":-11.161141153381148,"d":"-11.161"},{"v":2.1799999999999997,"d":"2.180"},{"$f":"'IV. Country level, 1310-2018'!Z641","v":{"v":8.837209302325574,"d":"8.837"}},{"$f":"'IV. Country level, 1310-2018'!H641","v":{"v":-6.657209302325574,"d":"-6.657"}},{"$nulls":5},{"v":5.4157349896480325,"d":"5.416"},{"v":2.7627396983480943,"d":"2.763"},{"v":2.652995291299938,"d":"2.653"},{"$f":"'VIII. Pers. sov. loans, 1312-'!C640","v":{"v":2,"d":"2.000"}}]
[1948,null,{"v":2.920164368387453,"d":"2.920"},{"v":9.49187758257945,"d":"9.492"},{"v":-6.571713214191999,"d":"-6.572"},{"v":2.04,"d":"2.040"},{"v":6.00931943286181,"d":"6.009"},{"v":-3.96931943286181,"d":"-3.969"},null,null,{"$f":"SUM('IV. Country level, 1310-2018'!AO642:AV642)","v":{"v":3.156330825526261,"d":"3.156"}},{"$f":"SUM('IV. Country level, 1310-2018'!AY642:BF642)","v":{"v":11.05271927794155,"d":"11.0527"}},{"v":-7.896388452415289,"d":"-7.896"},{"v":2.12,"d":"2.120"},{"$f":"'IV. Country level, 1310-2018'!Z642","v":{"v":2.991452991453004,"d":"2.991"}},{"$f":"'IV. Country level, 1310-2018'!H642","v":{"v":-0.8714529914530038,"d":"-0.871"}},{"$nulls":5},{"v":5.682712215320911,"d":"5.683"},{"v":19.268851169678584,"d":"19.269"},{"v":-13.586138954357672,"d":"-13.586"},{"$f":"'VIII. Pers. sov. loans, 1312-'!C641","v":{"v":2,"d":"2.000"}}]
[1949,null,{"v":3.167813071720356,"d":"3.168"},{"v":8.546042256362421,"d":"8.546"},{"v":-5.378229184642066,"d":"-5.378"},{"v":2.1614285714285715,"d":"2.161"},{"v":5.796108857132685,"d":"5.796"},{"v":-3.634680285704114,"d":"-3.635"},null,null,{"$f":"SUM('IV. Country level, 1310-2018'!AO643:AV643)","v":{"v":3.0407878206436565,"d":"3.041"}},{"$f":"SUM('IV. Country level, 1310-2018'!AY643:BF643)","v":{"v":-0.9662971924451513,"d":"-0.9663"}},{"v":4.007085013088808,"d":"4.007"},{"v":1.7999999999999998,"d":"1.800"},{"$f":"'IV. Country level, 1310-2018'!Z643","v":{"v":-2.0746887966804977,"d":"-2.075"}},{"$f":"'IV. Country level, 1310-2018'!H643","v":{"v":3.8746887966804975,"d":"3.875"}},{"$nulls":5},{"v":5.949689440993788,"d":"5.950"},{"v":-7.142735403098328,"d":"-7.143"},{"v":13.092424844092116,"d":"13.092"},{"$f":"'VIII. Pers. sov. loans, 1312-'!C642","v":{"v":2.1724137931034484,"d":"2.172"}}]
[1950,null,{"v":3.3838451544100954,"d":"3.384"},{"v":5.91558943523957,"d":"5.916"},{"v":-2.5317442808294754,"d":"-2.532"},{"v":2.2714285714285714,"d":"2.271"},{"v":3.3128510769246624,"d":"3.313"},{"v":-1.041422505496091,"d":"-1.041"},null,null,{"$f":"SUM('IV. Country level, 1310-2018'!AO644:AV644)","v":{"v":3.354826308533807,"d":"3.355"}},{"$f":"SUM('IV. Country level, 1310-2018'!AY644:BF644)","v":{"v":4.6444574390454925,"d":"4.6445"}},{"v":-1.2896311305116854,"d":"-1.290"},{"v":2.18,"d":"2.180"},{"$f":"'IV. Country level, 1310-2018'!Z644","v":{"v":5.932203389830502,"d":"5.932"}},{"$f":"'IV. Country level, 1310-2018'!H644","v":{"v":-3.7522033898305023,"d":"-3.752"}},{"$nulls":5},{"v":6.216666666666669,"d":"6.217"},{"v":-3.2054896622135924,"d":"-3.205"},{"v":9.422156328880261,"d":"9.422"},{"$f":"'VIII. Pers. sov. loans, 1312-'!C643","v":{"v":2.344827586206897,"d":"2.345"}}]
[1951,null,{"v":3.50156675753194,"d":"3.502"},{"v":4.0321395190500136,"d":"4.032"},{"v":-0.5305727615180731,"d":"-0.531"},{"v":2.318571428571428,"d":"2.319"},{"v":1.9441791160507493,"d":"1.944"},{"v":0.37439231252067934,"d":"0.374"},null,null,{"$f":"SUM('IV. Country level, 1310-2018'!AO645:AV645)","v":{"v":3.6061886415019164,"d":"3.606"}},{"$f":"SUM('IV. Country level, 1310-2018'!AY645:BF645)","v":{"v":9.16393343641077,"d":"9.1639"}},{"v":-5.557744794908855,"d":"-5.558"},{"v":2.51,"d":"2.510"},{"$f":"'IV. Country level, 1310-2018'!Z645","v":{"v":6,"d":"6.000"}},{"$f":"'IV. Country level, 1310-2018'!H645","v":{"v":-3.49,"d":"-3.490"}},{"$nulls":5},{"v":6.391666666666667,"d":"6.392"},{"v":12.743764429563026,"d":"12.744"},{"v":-6.352097762896359,"d":"-6.352"},{"$f":"'VIII. Pers. sov. loans, 1312-'!C644","v":{"v":2.517241379310345,"d":"2.517"}}]
[1952,null,{"v":3.649517495820896,"d":"3.650"},{"v":2.673909733739471,"d":"2.674"},{"v":0.9756077620814251,"d":"0.976"},{"v":2.4385714285714286,"d":"2.439"},{"v":1.570333236586891,"d":"1.570"},{"v":0.8682381919845373,"d":"0.868"},null,null,{"$f":"SUM('IV. Country level, 1310-2018'!AO646:AV646)","v":{"v":3.601701125946998,"d":"3.602"}},{"$f":"SUM('IV. Country level, 1310-2018'!AY646:BF646)","v":{"v":2.307640765397281,"d":"2.3076"}},{"v":1.2940603605497172,"d":"1.294"},{"v":2.52,"d":"2.520"},{"$f":"'IV. Country level, 1310-2018'!Z646","v":{"v":0.7547169811320728,"d":"0.755"}},{"$f":"'IV. Country level, 1310-2018'!H646","v":{"v":1.7652830188679274,"d":"1.765"}},{"$nulls":5},{"v":5.941666666666666,"d":"5.942"},{"v":4.762005031736112,"d":"4.762"},{"v":1.1796616349305546,"d":"1.180"},{"$f":"'VIII. Pers. sov. loans, 1312-'!C645","v":{"v":2.6896551724137936,"d":"2.690"}}]
[1953,null,{"v":3.9182610433332377,"d":"3.918"},{"v":3.24587851283659,"d":"3.246"},{"v":0.6723825304966475,"d":"0.672"},{"v":2.6942857142857144,"d":"2.694"},{"v":2.2931565828077725,"d":"2.293"},{"v":0.4011291314779414,"d":"0.401"},null,null,{"$f":"SUM('IV. Country level, 1310-2018'!AO647:AV647)","v":{"v":4.022074355866524,"d":"4.022"}},{"$f":"SUM('IV. Country level, 1310-2018'!AY647:BF647)","v":{"v":1.140524164094399,"d":"1.1405"}},{"v":2.8815501917721247,"d":"2.882"},{"v":2.59,"d":"2.590"},{"$f":"'IV. Country level, 1310-2018'!Z647","v":{"v":0.7490636704119823,"d":"0.749"}},{"$f":"'IV. Country level, 1310-2018'!H647","v":{"v":1.8409363295880175,"d":"1.841"}},{"$nulls":5},{"v":6.108333333333334,"d":"6.108"},{"v":-2.7275681673893337,"d":"-2.728"},{"v":8.835901500722668,"d":"8.836"},{"$f":"'VIII. Pers. sov. loans, 1312-'!C646","v":{"v":2.862068965517242,"d":"2.862"}}]
[1954,null,{"v":4.1730901602588855,"d":"4.173"},{"v":3.11162606019381,"d":"3.112"},{"v":1.061464100065075,"d":"1.061"},{"v":2.8414285714285716,"d":"2.841"},{"v":1.8597776306373686,"d":"1.860"},{"v":0.981650940791203,"d":"0.982"},null,null,{"$f":"SUM('IV. Country level, 1310-2018'!AO648:AV648)","v":{"v":3.7290582247044175,"d":"3.729"}},{"$f":"SUM('IV. Country level, 1310-2018'!AY648:BF648)","v":{"v":0.8819987429057489,"d":"0.8820"}},{"v":2.8470594817986687,"d":"2.847"},{"v":2.51,"d":"2.510"},{"$f":"'IV. Country level, 1310-2018'!Z648","v":{"v":-0.743494423791819,"d":"-0.743"}},{"$f":"'IV. Country level, 1310-2018'!H648","v":{"v":3.253494423791819,"d":"3.253"}},{"$nulls":5},{"v":6.366666666666668,"d":"6.367"},{"v":2.8040505578014288,"d":"2.804"},{"v":3.5626161088652393,"d":"3.563"},{"$f":"'VIII. Pers. sov. loans, 1312-'!C647","v":{"v":3.0344827586206904,"d":"3.034"}}]
[1955,null,{"v":4.364776603702904,"d":"4.365"},{"v":2.1399694605120367,"d":"2.140"},{"v":2.224807143190867,"d":"2.225"},{"v":3.0342857142857143,"d":"3.034"},{"v":1.254143827820467,"d":"1.254"},{"v":1.780141886465247,"d":"1.780"},null,null,{"$f":"SUM('IV. Country level, 1310-2018'!AO649:AV649)","v":{"v":4.191985993548953,"d":"4.192"}},{"$f":"SUM('IV. Country level, 1310-2018'!AY649:BF649)","v":{"v":1.545110780767756,"d":"1.5451"}},{"$f":"K653-L653","v":{"v":2.646875212781197,"d":"2.647"}},{"v":2.96,"d":"2.960"},{"$f":"'IV. Country level, 1310-2018'!Z649","v":{"v":0.37453183520599787,"d":"0.375"}},{"$f":"'IV. Country level, 1310-2018'!H649","v":{"v":2.585468164794002,"d":"2.585"}},{"$nulls":5},{"v":6.1,"d":"6.100"},{"v":1.3429199036555257,"d":"1.343"},{"v":4.757080096344474,"d":"4.757"},{"$f":"'VIII. Pers. sov. loans, 1312-'!C648","v":{"v":3.206896551724139,"d":"3.207"}}]
[1956,null,{"v":4.636034593264561,"d":"4.636"},{"v":2.11560903537106,"d":"2.116"},{"v":2.520425557893501,"d":"2.520"},{"v":3.3442857142857143,"d":"3.344"},{"v":1.3934848028342246,"d":"1.393"},{"v":1.95080091145149,"d":"1.951"},null,null,{"$f":"SUM('IV. Country level, 1310-2018'!AO650:AV650)","v":{"v":4.921992653230046,"d":"4.922"}},{"$f":"SUM('IV. Country level, 1310-2018'!AY650:BF650)","v":{"v":3.0374842612346815,"d":"3.0375"}},{"v":1.884508391995365,"d":"1.885"},{"v":3.59,"d":"3.590"},{"$f":"'IV. Country level, 1310-2018'!Z650","v":{"v":2.9850746268656745,"d":"2.985"}},{"$f":"'IV. Country level, 1310-2018'!H650","v":{"v":0.6049253731343254,"d":"0.605"}},{"$nulls":5},{"v":6.1833333333333345,"d":"6.183"},{"v":1.6375009772515774,"d":"1.638"},{"v":4.545832356081757,"d":"4.546"},{"$f":"'VIII. Pers. sov. loans, 1312-'!C649","v":{"v":3.379310344827587,"d":"3.379"}}]
[1957,null,{"v":4.795588777549791,"d":"4.796"},{"v":2.184286426341682,"d":"2.184"},{"v":2.61130235120811,"d":"2.611"},{"v":3.5228571428571427,"d":"3.523"},{"v":1.4808391667306673,"d":"1.481"},{"v":2.0420179761264756,"d":"2.042"},null,null,{"$f":"SUM('IV. Country level, 1310-2018'!AO651:AV651)","v":{"v":5.138630127013343,"d":"5.139"}},{"$f":"SUM('IV. Country level, 1310-2018'!AY651:BF651)","v":{"v":3.704690270546035,"d":"3.7047"}},{"v":1.4339398564673078,"d":"1.434"},{"v":3.21,"d":"3.210"},{"$f":"'IV. Country level, 1310-2018'!Z651","v":{"v":2.898550724637671,"d":"2.899"}},{"$f":"'IV. Country level, 1310-2018'!H651","v":{"v":0.311449275362329,"d":"0.311"}},{"$nulls":5},{"v":6.758333333333335,"d":"6.758"},{"v":2.1307593433563747,"d":"2.131"},{"v":4.62757398997696,"d":"4.628"},{"$f":"'VIII. Pers. sov. loans, 1312-'!C650","v":{"v":3.5517241379310356,"d":"3.552"}}]
[1958,null,{"$f":"AVERAGE(K653:K659)","v":{"v":5.088655467027432,"d":"5.089"}},{"$f":"AVERAGE(L653:L659)","v":{"v":2.4098581445032217,"d":"2.410"}},{"$f":"AVERAGE(M653:M659)","v":{"v":2.678797322524211,"d":"2.679"}},{"$f":"AVERAGE(N653:N659)","v":{"v":3.7442857142857138,"d":"3.744"}},{"$f":"AVERAGE(O653:O659)","v":{"v":1.6829299329291147,"d":"1.683"}},{"$f":"AVERAGE(P653:P659)","v":{"v":2.0613557813565997,"d":"2.061"}},null,null,{"$f":"SUM('IV. Country level, 1310-2018'!AO652:AV652)","v":{"v":4.947993745610045,"d":"4.948"}},{"$f":"SUM('IV. Country level, 1310-2018'!AY652:BF652)","v":{"v":2.3623372386383568,"d":"2.3623"}},{"v":2.5856565069716884,"d":"2.586"},{"v":3.8599999999999994,"d":"3.860"},{"$f":"'IV. Country level, 1310-2018'!Z652","v":{"v":1.7605633802816902,"d":"1.761"}},{"$f":"'IV. Country level, 1310-2018'!H652","v":{"v":2.0994366197183094,"d":"2.099"}},{"$nulls":5},{"v":6.458333333333332,"d":"6.458"},{"v":1.0965499236423617,"d":"1.097"},{"v":5.36178340969097,"d":"5.362"},{"$f":"'VIII. Pers. sov. loans, 1312-'!C651","v":{"v":3.724137931034484,"d":"3.724"}}]
[1959,null,{"v":5.233367497843929,"d":"5.233"},{"v":2.6314528639477888,"d":"2.631"},{"v":2.6019146338961407,"d":"2.602"},{"v":3.8714285714285714,"d":"3.871"},{"v":1.8199015755187333,"d":"1.820"},{"v":2.051526995909838,"d":"2.052"},null,null,{"$f":"SUM('IV. Country level, 1310-2018'!AO653:AV653)","v":{"v":5.500507052878599,"d":"5.501"}},{"$f":"SUM('IV. Country level, 1310-2018'!AY653:BF653)","v":{"v":2.1371177894104423,"d":"2.1371"}},{"v":3.363389263468157,"d":"3.363"},{"v":4.69,"d":"4.690"},{"$f":"'IV. Country level, 1310-2018'!Z653","v":{"v":1.7301038062283738,"d":"1.730"}},{"$f":"'IV. Country level, 1310-2018'!H653","v":{"v":2.959896193771627,"d":"2.960"}},{"$nulls":5},{"v":5.824999999999999,"d":"5.825"},{"v":2.1689343509607073,"d":"2.169"},{"v":3.656065649039292,"d":"3.656"},{"$f":"'VIII. Pers. sov. loans, 1312-'!C652","v":{"v":3.8965517241379324,"d":"3.897"}}]
[1960,null,{"v":5.296791913147108,"d":"5.297"},{"v":2.6510277566773124,"d":"2.651"},{"v":2.645764156469795,"d":"2.646"},{"v":3.95,"d":"3.950"},{"v":1.6284247491243888,"d":"1.628"},{"v":2.321575250875611,"d":"2.322"},null,null,{"$f":"SUM('IV. Country level, 1310-2018'!AO654:AV654)","v":{"v":5.138953645863137,"d":"5.139"}},{"$f":"SUM('IV. Country level, 1310-2018'!AY654:BF654)","v":{"v":1.6212659008887522,"d":"1.6213"}},{"v":3.517687744974385,"d":"3.518"},{"v":3.84,"d":"3.840"},{"$f":"'IV. Country level, 1310-2018'!Z654","v":{"v":1.3605442176870821,"d":"1.361"}},{"$f":"'IV. Country level, 1310-2018'!H654","v":{"v":2.4794557823129177,"d":"2.479"}},{"$nulls":5},{"v":6.283333333333332,"d":"6.283"},{"v":0.8496733793099835,"d":"0.850"},{"v":5.433659954023349,"d":"5.434"},{"$f":"'VIII. Pers. sov. loans, 1312-'!C653","v":{"v":4.068965517241381,"d":"4.069"}}]
[1961,null,{"v":5.365022991445962,"d":"5.365"},{"v":2.4900822526240733,"d":"2.490"},{"v":2.874940738821889,"d":"2.875"},{"v":4.092857142857143,"d":"4.093"},{"v":1.3530423293772602,"d":"1.353"},{"v":2.7398148134798825,"d":"2.740"},null,null,{"$f":"SUM('IV. Country level, 1310-2018'!AO655:AV655)","v":{"v":5.780525051047905,"d":"5.781"}},{"$f":"SUM('IV. Country level, 1310-2018'!AY655:BF655)","v":{"v":2.4610007700365273,"d":"2.4610"}},{"v":3.319524281011378,"d":"3.320"},{"v":4.06,"d":"4.060"},{"$f":"'IV. Country level, 1310-2018'!Z655","v":{"v":0.671140939597313,"d":"0.671"}},{"$f":"'IV. Country level, 1310-2018'!H655","v":{"v":3.3888590604026865,"d":"3.389"}},{"$nulls":5},{"v":5.974999999999999,"d":"5.975"},{"v":2.7366160773939745,"d":"2.737"},{"v":3.2383839226060243,"d":"3.238"},{"$f":"'VIII. Pers. sov. loans, 1312-'!C654","v":{"v":4.241379310344829,"d":"4.241"}}]
[1962,null,{"v":5.491091315147585,"d":"5.491"},{"v":2.642211780499004,"d":"2.642"},{"v":2.8488795346485816,"d":"2.849"},{"v":4.205714285714286,"d":"4.206"},{"v":1.3762585497765798,"d":"1.376"},{"v":2.829455735937706,"d":"2.829"},null,null,{"$f":"SUM('IV. Country level, 1310-2018'!AO656:AV656)","v":{"v":5.20497020926443,"d":"5.205"}},{"$f":"SUM('IV. Country level, 1310-2018'!AY656:BF656)","v":{"v":3.0962738168797266,"d":"3.0963"}},{"v":2.1086963923847035,"d":"2.109"},{"v":3.85,"d":"3.850"},{"$f":"'IV. Country level, 1310-2018'!Z656","v":{"v":1.3333333333333286,"d":"1.333"}},{"$f":"'IV. Country level, 1310-2018'!H656","v":{"v":2.5166666666666715,"d":"2.517"}},{"$nulls":5},{"v":6.033333333333334,"d":"6.033"},{"v":2.8686494489852836,"d":"2.869"},{"v":3.1646838843480505,"d":"3.165"},{"$f":"'VIII. Pers. sov. loans, 1312-'!C655","v":{"v":4.413793103448278,"d":"4.414"}}]
[1963,null,{"v":5.529511656583566,"d":"5.530"},{"v":2.8317467328049406,"d":"2.832"},{"v":2.697764923778625,"d":"2.698"},{"v":4.198571428571428,"d":"4.199"},{"v":1.6232607912947175,"d":"1.623"},{"v":2.575310637276711,"d":"2.575"},null,null,{"$f":"SUM('IV. Country level, 1310-2018'!AO657:AV657)","v":{"v":5.365963560352292,"d":"5.366"}},{"$f":"SUM('IV. Country level, 1310-2018'!AY657:BF657)","v":{"v":3.174508510341347,"d":"3.1745"}},{"v":2.1914550500109455,"d":"2.191"},{"v":4.14,"d":"4.140"},{"$f":"'IV. Country level, 1310-2018'!Z657","v":{"v":1.644736842105263,"d":"1.645"}},{"$f":"'IV. Country level, 1310-2018'!H657","v":{"v":2.495263157894737,"d":"2.495"}},{"$nulls":5},6.125,{"v":3.3866419146369253,"d":"3.387"},{"v":2.7383580853630747,"d":"2.738"},{"$f":"'VIII. Pers. sov. loans, 1312-'!C656","v":{"v":4.586206896551726,"d":"4.586"}}]
[1964,null,{"v":5.680258230553096,"d":"5.680"},{"v":3.052175146949675,"d":"3.052"},{"v":2.628083083603422,"d":"2.628"},{"v":4.464285714285714,"d":"4.464"},{"v":1.8631135713124987,"d":"1.863"},{"v":2.6011721429732155,"d":"2.601"},null,null,{"$f":"SUM('IV. Country level, 1310-2018'!AO658:AV658)","v":{"v":5.616247675105328,"d":"5.616"}},{"$f":"SUM('IV. Country level, 1310-2018'!AY658:BF658)","v":{"v":2.578071742173359,"d":"2.5781"}},{"v":3.0381759329319684,"d":"3.038"},{"v":4.21,"d":"4.210"},{"$f":"'IV. Country level, 1310-2018'!Z658","v":{"v":0.9708737864077693,"d":"0.971"}},{"$f":"'IV. Country level, 1310-2018'!H658","v":{"v":3.2391262135922307,"d":"3.239"}},{"$nulls":5},{"v":6.166666666666668,"d":"6.167"},{"v":2.119239260341588,"d":"2.119"},{"v":4.047427406325079,"d":"4.047"},{"$f":"'VIII. Pers. sov. loans, 1312-'!C657","v":{"v":4.758620689655174,"d":"4.759"}}]
[1965,null,{"v":5.7808749015246645,"d":"5.781"},{"v":3.270911489571449,"d":"3.271"},{"v":2.509963411953216,"d":"2.510"},{"v":4.764285714285714,"d":"4.764"},{"v":2.441488295912799,"d":"2.441"},{"v":2.3227974183729154,"d":"2.323"},null,null,{"$f":"SUM('IV. Country level, 1310-2018'!AO659:AV659)","v":{"v":5.8304720115214055,"d":"5.830"}},{"$f":"SUM('IV. Country level, 1310-2018'!AY659:BF659)","v":{"v":3.4272439337628753,"d":"3.4272"}},{"v":2.40322807775853,"d":"2.403"},{"v":4.65,"d":"4.650"},{"$f":"'IV. Country level, 1310-2018'!Z659","v":{"v":1.9230769230769278,"d":"1.923"}},{"$f":"'IV. Country level, 1310-2018'!H659","v":{"v":2.7269230769230726,"d":"2.727"}},{"$nulls":5},{"v":6.7333333333333325,"d":"6.733"},{"v":3.9624851507970855,"d":"3.962"},{"v":2.770848182536247,"d":"2.771"},{"$f":"'VIII. Pers. sov. loans, 1312-'!C658","v":{"v":4.931034482758623,"d":"4.931"}}]
[1966,null,{"v":6.136257963819661,"d":"6.136"},{"v":3.6072920542456286,"d":"3.607"},{"v":2.528965909574033,"d":"2.529"},{"v":5.340000000000001,"d":"5.340"},{"v":3.1363239766639746,"d":"3.136"},{"v":2.2036760233360257,"d":"2.204"},null,null,{"$f":"SUM('IV. Country level, 1310-2018'!AO660:AV660)","v":{"v":5.769449442930461,"d":"5.769"}},{"$f":"SUM('IV. Country level, 1310-2018'!AY660:BF660)","v":{"v":3.463862455551997,"d":"3.4639"}},{"v":2.3055869873784642,"d":"2.306"},{"v":4.64,"d":"4.640"},{"$f":"'IV. Country level, 1310-2018'!Z660","v":{"v":3.459119496855339,"d":"3.459"}},{"$f":"'IV. Country level, 1310-2018'!H660","v":{"v":1.1808805031446608,"d":"1.181"}},{"$nulls":5},{"v":7.641666666666666,"d":"7.642"},{"v":2.903966912870879,"d":"2.904"},{"v":4.737699753795787,"d":"4.738"},{"$f":"'VIII. Pers. sov. loans, 1312-'!C659","v":{"v":5.103448275862071,"d":"5.103"}}]
[1967,null,{"v":6.432760550776822,"d":"6.433"},{"v":3.9741496478706027,"d":"3.974"},{"v":2.45861090290622,"d":"2.459"},{"v":5.677142857142857,"d":"5.677"},{"v":3.6971175388186954,"d":"3.697"},{"v":1.9800253183241614,"d":"1.980"},null,null,{"$f":"SUM('IV. Country level, 1310-2018'!AO661:AV661)","v":{"v":6.194179663649858,"d":"6.194"}},{"$f":"SUM('IV. Country level, 1310-2018'!AY661:BF661)","v":{"v":3.1642647999018916,"d":"3.1643"}},{"v":3.0299148637479663,"d":"3.030"},{"v":5.7,"d":"5.700"},{"$f":"'IV. Country level, 1310-2018'!Z661","v":{"v":3.0395136778115504,"d":"3.040"}},{"$f":"'IV. Country level, 1310-2018'!H661","v":{"v":2.66048632218845,"d":"2.660"}},{"$nulls":5},{"v":7.008333333333333,"d":"7.008"},{"v":0.5288213321317033,"d":"0.529"},{"$f":"V665-W665","v":{"v":6.47951200120163,"d":"6.480"}},{"$f":"'VIII. Pers. sov. loans, 1312-'!C660","v":{"v":5.27586206896552,"d":"5.276"}}]
[1968,null,{"v":6.6316940640519375,"d":"6.632"},{"v":4.31029848795109,"d":"4.310"},{"v":2.3213955761008487,"d":"2.321"},{"v":5.917142857142857,"d":"5.917"},{"v":4.0250400919449385,"d":"4.025"},{"v":1.8921027651979185,"d":"1.892"},null,null,{"$f":"SUM('IV. Country level, 1310-2018'!AO662:AV662)","v":{"v":6.48484174784888,"d":"6.485"}},{"$f":"SUM('IV. Country level, 1310-2018'!AY662:BF662)","v":{"v":3.9921551683889436,"d":"3.9922"}},{"v":2.4926865794599364,"d":"2.493"},{"$f":"P666+O666","v":{"v":6.16,"d":"6.160"}},{"$f":"'IV. Country level, 1310-2018'!Z662","v":{"v":4.719764011799414,"d":"4.720"}},{"$f":"'IV. Country level, 1310-2018'!H662","v":{"v":1.4402359882005857,"d":"1.440"}},{"$nulls":5},{"v":6.841666666666665,"d":"6.842"},{"v":2.280827061647026,"d":"2.281"},{"v":4.560839605019639,"d":"4.561"},{"$f":"'VIII. Pers. sov. loans, 1312-'!C661","v":{"v":5.448275862068968,"d":"5.448"}}]
[1969,null,{"v":6.8371959166672,"d":"6.837"},{"v":4.557101009402351,"d":"4.557"},{"v":2.28009490726485,"d":"2.280"},{"v":6.168571428571427,"d":"6.169"},{"v":4.236932822085842,"d":"4.237"},{"v":1.931638606485586,"d":"1.932"},null,null,{"$f":"SUM('IV. Country level, 1310-2018'!AO663:AV663)","v":{"v":7.6926516453294065,"d":"7.693"}},{"$f":"SUM('IV. Country level, 1310-2018'!AY663:BF663)","v":{"v":5.450937769598986,"d":"5.4509"}},{"v":2.2417138757304205,"d":"2.242"},{"v":7.88,"d":"7.880"},{"$f":"'IV. Country level, 1310-2018'!Z663","v":{"v":6.197183098591557,"d":"6.197"}},{"$f":"'IV. Country level, 1310-2018'!H663","v":{"v":1.6828169014084429,"d":"1.683"}},{"$nulls":5},{"v":7.016666666666667,"d":"7.017"},{"v":2.058429779825234,"d":"2.058"},{"v":4.958236886841433,"d":"4.958"},{"$f":"'VIII. Pers. sov. loans, 1312-'!C662","v":{"v":5.620689655172416,"d":"5.621"}}]
[1970,null,{"v":7.156998523993188,"d":"7.157"},{"v":5.583909386049421,"d":"5.584"},{"v":1.5730891379437657,"d":"1.573"},{"v":6.49142857142857,"d":"6.491"},{"v":4.986470372955249,"d":"4.986"},{"v":1.5049581984733227,"d":"1.505"},null,null,{"$f":"SUM('IV. Country level, 1310-2018'!AO664:AV664)","v":{"v":7.441481669052421,"d":"7.441"}},{"$f":"SUM('IV. Country level, 1310-2018'!AY664:BF664)","v":{"v":5.742511665716165,"d":"5.7425"}},{"v":1.6989700033362558,"d":"1.699"},{"v":6.5,"d":"6.500"},{"$f":"'IV. Country level, 1310-2018'!Z664","v":{"v":5.570291777188313,"d":"5.570"}},{"$f":"'IV. Country level, 1310-2018'!H664","v":{"v":0.9297082228116871,"d":"0.930"}},{"$nulls":5},{"v":8.15,"d":"8.150"},{"v":4.033240804493707,"d":"4.033"},{"v":4.116759195506293,"d":"4.117"},{"$f":"'VIII. Pers. sov. loans, 1312-'!C663","v":{"v":5.793103448275865,"d":"5.793"}}]
[1971,null,{"v":7.606771713521931,"d":"7.607"},{"v":7.2187292938208145,"d":"7.219"},{"v":0.3880424197011162,"d":"0.388"},{"v":6.734285714285714,"d":"6.734"},{"v":6.3147773243625025,"d":"6.315"},{"v":0.4195083899232114,"d":"0.420"},null,null,{"$f":"SUM('IV. Country level, 1310-2018'!AO665:AV665)","v":{"v":7.008782268031137,"d":"7.009"}},{"$f":"SUM('IV. Country level, 1310-2018'!AY665:BF665)","v":{"v":4.931113622736768,"d":"4.9311"}},{"v":2.077668645294369,"d":"2.078"},{"v":5.89,"d":"5.890"},{"$f":"'IV. Country level, 1310-2018'!Z665","v":{"v":3.266331658291468,"d":"3.266"}},{"$f":"'IV. Country level, 1310-2018'!H665","v":{"v":2.6236683417085316,"d":"2.624"}},{"$nulls":5},{"v":8.283333333333333,"d":"8.283"},{"v":5.4930388863439505,"d":"5.493"},{"v":2.7902944469893827,"d":"2.790"},{"$f":"'VIII. Pers. sov. loans, 1312-'!C664","v":{"v":5.965517241379313,"d":"5.966"}}]
[1972,null,{"v":7.984685100683314,"d":"7.985"},{"v":7.960733557108367,"d":"7.961"},{"v":0.02395154357494711,"d":"0.024"},{"v":6.962857142857142,"d":"6.963"},{"v":6.631441920529887,"d":"6.631"},{"v":0.33141522232725595,"d":"0.331"},null,null,{"$f":"SUM('IV. Country level, 1310-2018'!AO666:AV666)","v":{"v":7.268984979828245,"d":"7.269"}},{"$f":"SUM('IV. Country level, 1310-2018'!AY666:BF666)","v":{"v":5.15486158392171,"d":"5.1549"}},{"v":2.1141233959065353,"d":"2.114"},{"v":6.41,"d":"6.410"},{"$f":"'IV. Country level, 1310-2018'!Z666","v":{"v":3.406326034063257,"d":"3.406"}},{"$f":"'IV. Country level, 1310-2018'!H666","v":{"v":3.003673965936743,"d":"3.004"}},{"$nulls":5},{"v":8.358333333333333,"d":"8.358"},{"v":6.431663118442622,"d":"6.432"},{"v":1.9266702148907102,"d":"1.927"},{"$f":"'VIII. Pers. sov. loans, 1312-'!C665","v":{"v":6.137931034482762,"d":"6.138"}}]
[1973,null,{"v":8.145142182737604,"d":"8.145"},{"v":8.423509158239991,"d":"8.424"},{"v":-0.27836697550238526,"d":"-0.278"},{"v":6.8100000000000005,"d":"6.810"},{"v":6.441110744283217,"d":"6.441"},{"v":0.3688892557167827,"d":"0.369"},null,null,{"$f":"SUM('IV. Country level, 1310-2018'!AO667:AV667)","v":{"v":8.008067694212365,"d":"8.008"}},{"$f":"SUM('IV. Country level, 1310-2018'!AY667:BF667)","v":{"v":10.65152109208149,"d":"10.6515"}},{"v":-2.6434533978691253,"d":"-2.643"},{"v":6.9,"d":"6.900"},{"$f":"'IV. Country level, 1310-2018'!Z667","v":{"v":8.705882352941183,"d":"8.706"}},{"$f":"'IV. Country level, 1310-2018'!H667","v":{"v":-1.8058823529411825,"d":"-1.806"}},{"$nulls":5},{"v":9.591666666666667,"d":"9.592"},{"v":7.76996165161026,"d":"7.770"},{"v":1.8217050150564065,"d":"1.822"},{"$f":"'VIII. Pers. sov. loans, 1312-'!C666","v":{"v":6.31034482758621,"d":"6.310"}}]
[1974,null,{"v":8.329607725400235,"d":"8.330"},{"v":8.772662466475976,"d":"8.773"},{"v":-0.4430547410757409,"d":"-0.443"},{"v":6.992857142857143,"d":"6.993"},{"v":6.602644908661323,"d":"6.603"},{"v":0.3902122341958206,"d":"0.390"},null,null,{"$f":"SUM('IV. Country level, 1310-2018'!AO668:AV668)","v":{"v":9.34259199035106,"d":"9.343"}},{"$f":"SUM('IV. Country level, 1310-2018'!AY668:BF668)","v":{"v":14.60800415430164,"d":"14.6080"}},{"v":-5.265412163950579,"d":"-5.265"},{"v":7.4,"d":"7.400"},{"$f":"'IV. Country level, 1310-2018'!Z668","v":{"v":12.337662337662328,"d":"12.338"}},{"$f":"'IV. Country level, 1310-2018'!H668","v":{"v":-4.937662337662328,"d":"-4.938"}},{"$nulls":5},{"v":10.708333333333334,"d":"10.708"},{"v":5.740830218570814,"d":"5.741"},{"v":4.96750311476252,"d":"4.968"},{"$f":"'VIII. Pers. sov. loans, 1312-'!C667","v":{"v":6.482758620689658,"d":"6.483"}}]
[1975,null,{"v":8.628637706107172,"d":"8.629"},{"v":9.177954202255183,"d":"9.178"},{"v":-0.5493164961480128,"d":"-0.549"},{"v":7.458571428571429,"d":"7.459"},{"v":7.424270866839606,"d":"7.424"},{"v":0.03430056173182245,"d":"0.034"},null,null,{"$f":"SUM('IV. Country level, 1310-2018'!AO669:AV669)","v":{"v":9.130235457978563,"d":"9.130"}},{"$f":"SUM('IV. Country level, 1310-2018'!AY669:BF669)","v":{"v":9.18618501140181,"d":"9.1862"}},{"v":-0.05594955342324681,"d":"-0.056"},{"v":7.76,"d":"7.760"},{"$f":"'IV. Country level, 1310-2018'!Z669","v":{"v":6.936416184971102,"d":"6.936"}},{"$f":"'IV. Country level, 1310-2018'!H669","v":{"v":0.8235838150288979,"d":"0.824"}},{"$nulls":5},{"v":8.999999999999998,"d":"9.000"},{"v":5.429371323725478,"d":"5.429"},{"v":3.57062867627452,"d":"3.571"},{"$f":"'VIII. Pers. sov. loans, 1312-'!C668","v":{"v":6.655172413793107,"d":"6.655"}}]
[1976,null,{"v":9.062666876777149,"d":"9.063"},{"v":10.067586276422881,"d":"10.068"},{"v":-1.004919399645734,"d":"-1.005"},{"v":8.018571428571429,"d":"8.019"},{"v":8.836787700546965,"d":"8.837"},{"v":-0.8182162719755368,"d":"-0.818"},null,null,{"$f":"SUM('IV. Country level, 1310-2018'!AO670:AV670)","v":{"v":8.815851219709439,"d":"8.816"}},{"$f":"SUM('IV. Country level, 1310-2018'!AY670:BF670)","v":{"v":8.690366977520345,"d":"8.6904"}},{"v":0.12548424218909382,"d":"0.125"},{"v":6.81,"d":"6.810"},{"$f":"'IV. Country level, 1310-2018'!Z670","v":{"v":4.86486486486487,"d":"4.865"}},{"$f":"'IV. Country level, 1310-2018'!H670","v":{"v":1.9451351351351294,"d":"1.945"}},{"$nulls":5},{"v":8.241666666666665,"d":"8.242"},{"v":3.712567627797706,"d":"3.713"},{"v":4.529099038868959,"d":"4.529"},{"$f":"'VIII. Pers. sov. loans, 1312-'!C669","v":{"v":6.827586206896555,"d":"6.828"}}]
[1977,null,{"v":9.635158954590581,"d":"9.635"},{"v":10.250700630306161,"d":"10.251"},{"v":-0.6155416757155806,"d":"-0.616"},{"v":8.808571428571428,"d":"8.809"},{"v":9.381132687563936,"d":"9.381"},{"v":-0.572561258992506,"d":"-0.573"},null,null,{"$f":"SUM('IV. Country level, 1310-2018'!AO671:AV671)","v":{"v":8.732740467690837,"d":"8.733"}},{"$f":"SUM('IV. Country level, 1310-2018'!AY671:BF671)","v":{"v":8.18658482336807,"d":"8.1866"}},{"v":0.5461556443227664,"d":"0.546"},{"v":7.78,"d":"7.780"},{"$f":"'IV. Country level, 1310-2018'!Z671","v":{"v":6.701030927835048,"d":"6.701"}},{"$f":"'IV. Country level, 1310-2018'!H671","v":{"v":1.078969072164952,"d":"1.079"}},{"$nulls":5},{"v":6.616666666666666,"d":"6.617"},{"v":3.464190154985289,"d":"3.464"},{"v":3.1524765116813773,"d":"3.152"},{"$f":"'VIII. Pers. sov. loans, 1312-'!C670","v":{"v":7,"d":"7.000"}}]
[1978,null,{"v":10.19000005616837,"d":"10.190"},{"v":9.597682289629619,"d":"9.598"},{"v":0.5923177665387512,"d":"0.592"},{"v":9.740195065978199,"d":"9.740"},{"v":9.10122521075503,"d":"9.101"},{"v":0.638969855223168,"d":"0.639"},null,null,{"$f":"SUM('IV. Country level, 1310-2018'!AO672:AV672)","v":{"v":9.101992132979687,"d":"9.102"}},{"$f":"SUM('IV. Country level, 1310-2018'!AY672:BF672)","v":{"v":7.768155773191221,"d":"7.7682"}},{"v":1.3338363597884655,"d":"1.334"},{"v":9.15,"d":"9.150"},{"$f":"'IV. Country level, 1310-2018'!Z672","v":{"v":9.017713365539455,"d":"9.018"}},{"$f":"'IV. Country level, 1310-2018'!H672","v":{"v":0.13228663446054512,"d":"0.132"}},{"$nulls":5},{"v":6.366666666666666,"d":"6.367"},{"v":2.4552966550593833,"d":"2.455"},{"v":3.911370011607283,"d":"3.911"},{"$f":"'VIII. Pers. sov. loans, 1312-'!C671","v":{"v":7.8,"d":"7.800"}}]
[1979,null,{"v":10.631495181721856,"d":"10.631"},{"v":9.251194238627207,"d":"9.251"},{"v":1.3803009430946476,"d":"1.380"},{"v":10.489552495697072,"d":"10.490"},{"v":8.990074327187731,"d":"8.990"},{"v":1.4994781685093435,"d":"1.499"},null,null,{"$f":"SUM('IV. Country level, 1310-2018'!AO673:AV673)","v":{"v":10.307189174518088,"d":"10.307"}},{"$f":"SUM('IV. Country level, 1310-2018'!AY673:BF673)","v":{"v":11.3822861030956,"d":"11.3823"}},{"v":-1.075096928577512,"d":"-1.075"},{"v":10.33,"d":"10.330"},{"$f":"'IV. Country level, 1310-2018'!Z673","v":{"v":13.293943870014772,"d":"13.294"}},{"$f":"'IV. Country level, 1310-2018'!H673","v":{"v":-2.9639438700147718,"d":"-2.964"}},{"$nulls":5},7.675,{"v":5.446732884512882,"d":"5.447"},{"v":2.2282671154871174,"d":"2.228"},{"$f":"'VIII. Pers. sov. loans, 1312-'!C672","v":{"v":8.166666666666666,"d":"8.167"}}]
[1980,null,{"v":10.935410790845157,"d":"10.935"},{"v":8.649024703065923,"d":"8.649"},{"v":2.286386087779237,"d":"2.286"},{"v":11.102838209982787,"d":"11.103"},{"v":8.746455060778462,"d":"8.746"},{"v":2.3563831492043255,"d":"2.356"},null,null,{"$f":"SUM('IV. Country level, 1310-2018'!AO674:AV674)","v":{"v":12.015512238906398,"d":"12.016"}},{"$f":"SUM('IV. Country level, 1310-2018'!AY674:BF674)","v":{"v":11.93332156926445,"d":"11.9333"}},{"v":0.08219066964194788,"d":"0.082"},{"v":12.43,"d":"12.430"},{"$f":"'IV. Country level, 1310-2018'!Z674","v":{"v":12.516297262059966,"d":"12.516"}},{"$f":"'IV. Country level, 1310-2018'!H674","v":{"v":-0.08629726205996668,"d":"-0.086"}},{"$nulls":5},{"v":8.708333333333334,"d":"8.708"},{"v":5.475142358527461,"d":"5.475"},{"v":3.233190974805873,"d":"3.233"},{"$f":"'VIII. Pers. sov. loans, 1312-'!C673","v":{"v":8,"d":"8.000"}}]
[1981,null,{"v":11.231342795930207,"d":"11.231"},{"v":8.129430940641594,"d":"8.129"},{"v":3.101911855288612,"d":"3.102"},{"v":11.771139988525531,"d":"11.771"},{"v":8.41319349965917,"d":"8.413"},{"v":3.35794648886636,"d":"3.358"},null,null,{"$f":"SUM('IV. Country level, 1310-2018'!AO675:AV675)","v":{"v":13.226479701395577,"d":"13.226"}},{"$f":"SUM('IV. Country level, 1310-2018'!AY675:BF675)","v":{"v":10.036875769565833,"d":"10.0369"}},{"v":3.189603931829744,"d":"3.190"},{"v":13.92136546184739,"d":"13.921"},{"$f":"'IV. Country level, 1310-2018'!Z675","v":{"v":10.37831,"d":"10.378"}},{"$f":"'IV. Country level, 1310-2018'!H675","v":{"v":3.5430554618473895,"d":"3.543"}},{"$nulls":5},{"v":10.633333333333335,"d":"10.633"},{"v":6.758107895292205,"d":"6.758"},{"v":3.87522543804113,"d":"3.875"},{"$f":"'VIII. Pers. sov. loans, 1312-'!C674","v":{"v":7.9,"d":"7.900"}}]
[1982,null,{"v":11.298560336345203,"d":"11.299"},{"v":7.555727887897369,"d":"7.556"},{"v":3.7428324484478344,"d":"3.743"},{"v":11.981111186682213,"d":"11.981"},{"v":7.628934447439249,"d":"7.629"},{"v":4.352176739242965,"d":"4.352"},null,null,{"$f":"SUM('IV. Country level, 1310-2018'!AO676:AV676)","v":{"v":12.220701336852965,"d":"12.221"}},{"$f":"SUM('IV. Country level, 1310-2018'!AY676:BF676)","v":{"v":6.760768654384938,"d":"6.7608"}},{"v":5.459932682468027,"d":"5.460"},{"v":13.005502008032128,"d":"13.006"},{"$f":"'IV. Country level, 1310-2018'!Z676","v":{"v":6.15836,"d":"6.158"}},{"$f":"'IV. Country level, 1310-2018'!H676","v":{"v":6.847142008032128,"d":"6.847"}},{"$nulls":5},{"v":9.091666666666667,"d":"9.092"},{"v":4.587245262401681,"d":"4.587"},{"v":4.504421404264986,"d":"4.504"},{"$f":"'VIII. Pers. sov. loans, 1312-'!C675","v":{"v":7.833333333333333,"d":"7.833"}}]
[1983,null,{"v":10.917082752085804,"d":"10.917"},{"v":6.169384854838266,"d":"6.169"},{"v":4.747697897247539,"d":"4.748"},{"v":11.601516900967926,"d":"11.602"},{"v":6.007503894579997,"d":"6.008"},{"v":5.594013006387931,"d":"5.594"},null,null,{"$f":"SUM('IV. Country level, 1310-2018'!AO677:AV677)","v":{"v":10.943260483572557,"d":"10.943"}},{"$f":"SUM('IV. Country level, 1310-2018'!AY677:BF677)","v":{"v":4.475180228591339,"d":"4.4752"}},{"v":6.468080254981218,"d":"6.468"},11.103,{"$f":"'IV. Country level, 1310-2018'!Z677","v":{"v":3.15953,"d":"3.160"}},{"$f":"'IV. Country level, 1310-2018'!H677","v":{"v":7.94347,"d":"7.943"}},{"$nulls":5},{"v":7.991666666666668,"d":"7.992"},{"v":2.631414344720971,"d":"2.631"},{"v":5.360252321945698,"d":"5.360"},{"$f":"'VIII. Pers. sov. loans, 1312-'!C676","v":{"v":7.771428571428571,"d":"7.771"}}]
[1984,null,{"v":10.351807860936916,"d":"10.352"},{"v":4.873793743213027,"d":"4.874"},{"v":5.478014117723886,"d":"5.478"},{"v":11.024756900967926,"d":"11.025"},{"v":4.730634285714285,"d":"4.731"},{"v":6.294122615253641,"d":"6.294"},null,null,{"$f":"SUM('IV. Country level, 1310-2018'!AO678:AV678)","v":{"v":10.80426450328617,"d":"10.804"}},{"$f":"SUM('IV. Country level, 1310-2018'!AY678:BF678)","v":{"v":4.549428486397778,"d":"4.5494"}},{"v":6.254836016888392,"d":"6.255"},{"v":12.458112449799197,"d":"12.458"},{"$f":"'IV. Country level, 1310-2018'!Z678","v":{"v":4.3682,"d":"4.368"}},{"$f":"'IV. Country level, 1310-2018'!H678","v":{"v":8.089912449799197,"d":"8.090"}},{"$nulls":5},{"v":7.808333333333334,"d":"7.808"},{"v":1.9659200625324453,"d":"1.966"},{"v":5.842413270800888,"d":"5.842"},{"$f":"'VIII. Pers. sov. loans, 1312-'!C677","v":{"v":7.628571428571428,"d":"7.629"}}]
[1985,null,{"v":9.622262521577522,"d":"9.622"},{"v":3.9231705172022155,"d":"3.923"},{"v":5.6990920043753075,"d":"5.699"},{"v":10.2999904064183,"d":"10.300"},{"v":3.833738571428571,"d":"3.834"},{"v":6.466251834989728,"d":"6.466"},null,null,{"$f":"SUM('IV. Country level, 1310-2018'!AO679:AV679)","v":{"v":9.572514915884657,"d":"9.573"}},{"$f":"SUM('IV. Country level, 1310-2018'!AY679:BF679)","v":{"v":3.7522344039816367,"d":"3.7522"}},{"v":5.82028051190302,"d":"5.820"},{"v":10.619798387096774,"d":"10.620"},{"$f":"'IV. Country level, 1310-2018'!Z679","v":{"v":3.5279,"d":"3.528"}},{"$f":"'IV. Country level, 1310-2018'!H679","v":{"v":7.091898387096774,"d":"7.092"}},{"$nulls":5},{"v":7.000000000000001,"d":"7.000"},{"v":1.7602174502731252,"d":"1.760"},{"v":5.2397825497268755,"d":"5.240"},{"$f":"'VIII. Pers. sov. loans, 1312-'!C678","v":{"v":7.257142857142857,"d":"7.257"}}]
[1986,null,{"v":9.09436596589434,"d":"9.094"},{"v":3.6000758175857976,"d":"3.600"},{"v":5.494290148308543,"d":"5.494"},{"v":9.655450119556566,"d":"9.655"},{"v":3.638414285714286,"d":"3.638"},{"v":6.0170358338422805,"d":"6.017"},null,null,{"$f":"SUM('IV. Country level, 1310-2018'!AO680:AV680)","v":{"v":7.636846084702306,"d":"7.637"}},{"$f":"SUM('IV. Country level, 1310-2018'!AY680:BF680)","v":{"v":1.6778848716818837,"d":"1.6779"}},{"v":5.958961213020422,"d":"5.959"},{"v":7.67284,"d":"7.673"},{"$f":"'IV. Country level, 1310-2018'!Z680","v":{"v":1.94393,"d":"1.944"}},{"$f":"'IV. Country level, 1310-2018'!H680","v":{"v":5.72891,"d":"5.729"}},{"$nulls":5},{"v":6.141666666666667,"d":"6.142"},{"v":-1.0707551642717323,"d":"-1.071"},{"v":7.212421830938399,"d":"7.212"},{"$f":"'VIII. Pers. sov. loans, 1312-'!C679","v":{"v":6.8428571428571425,"d":"6.843"}}]
[1987,null,{"v":8.831050116296588,"d":"8.831"},{"v":3.684186092669418,"d":"3.684"},{"v":5.146864023627169,"d":"5.147"},{"v":9.29107869098514,"d":"9.291"},{"v":3.9612271428571426,"d":"3.961"},{"v":5.329851548127996,"d":"5.330"},null,null,{"$f":"SUM('IV. Country level, 1310-2018'!AO681:AV681)","v":{"v":8.058588000864162,"d":"8.059"}},{"$f":"SUM('IV. Country level, 1310-2018'!AY681:BF681)","v":{"v":2.8641837878877885,"d":"2.8642"}},{"v":5.194404212976374,"d":"5.194"},{"v":8.39268,"d":"8.393"},{"$f":"'IV. Country level, 1310-2018'!Z681","v":{"v":3.57821,"d":"3.578"}},{"$f":"'IV. Country level, 1310-2018'!H681","v":{"v":4.81447,"d":"4.814"}},{"$nulls":5},{"v":5.925000000000001,"d":"5.925"},{"v":0.9992208428138577,"d":"0.999"},{"v":4.925779157186143,"d":"4.926"},{"$f":"'VIII. Pers. sov. loans, 1312-'!C680","v":{"v":6.628571428571428,"d":"6.629"}}]
[1988,null,{"v":8.458623841238943,"d":"8.459"},{"v":3.6113515120969164,"d":"3.611"},{"v":4.847272329142025,"d":"4.847"},{"v":8.634554055299537,"d":"8.635"},{"v":3.93946,"d":"3.939"},{"v":4.695094055299539,"d":"4.695"},null,null,{"$f":"SUM('IV. Country level, 1310-2018'!AO682:AV682)","v":{"v":8.11966232587984,"d":"8.120"}},{"$f":"SUM('IV. Country level, 1310-2018'!AY682:BF682)","v":{"v":3.3825131874901424,"d":"3.3825"}},{"v":4.737149138389698,"d":"4.737"},8.848,{"$f":"'IV. Country level, 1310-2018'!Z682","v":{"v":4.10004,"d":"4.100"}},{"$f":"'IV. Country level, 1310-2018'!H682","v":{"v":4.747960000000001,"d":"4.748"}},{"$nulls":5},{"v":6.050000000000001,"d":"6.050"},{"v":1.6486053723941705,"d":"1.649"},{"v":4.40139462760583,"d":"4.401"},{"$f":"'VIII. Pers. sov. loans, 1312-'!C681","v":{"v":6.414285714285714,"d":"6.414"}}]
[1989,null,{"v":8.16861746730179,"d":"8.169"},{"v":3.47929390787437,"d":"3.479"},{"v":4.689323559427421,"d":"4.689"},{"v":8.118703517359135,"d":"8.119"},{"v":3.8699914285714283,"d":"3.870"},{"v":4.248712088787706,"d":"4.249"},null,null,{"$f":"SUM('IV. Country level, 1310-2018'!AO683:AV683)","v":{"v":8.525425447070687,"d":"8.525"}},{"$f":"SUM('IV. Country level, 1310-2018'!AY683:BF683)","v":{"v":4.499105757070012,"d":"4.4991"}},{"v":4.026319690000674,"d":"4.026"},{"v":8.49372,"d":"8.494"},{"$f":"'IV. Country level, 1310-2018'!Z683","v":{"v":4.79109,"d":"4.791"}},{"$f":"'IV. Country level, 1310-2018'!H683","v":{"v":3.70263,"d":"3.703"}},{"$nulls":5},{"v":7.216666666666669,"d":"7.217"},{"v":3.263341095893418,"d":"3.263"},{"v":3.9533255707732504,"d":"3.953"},{"$f":"'VIII. Pers. sov. loans, 1312-'!C682","v":{"v":6.2,"d":"6.200"}}]
[1990,null,{"v":7.898864712155995,"d":"7.899"},{"v":3.627188047418077,"d":"3.627"},{"v":4.271676664737918,"d":"4.272"},{"v":7.860623517359135,"d":"7.861"},{"v":4.016522857142857,"d":"4.017"},{"v":3.8441006602162777,"d":"3.844"},null,null,{"$f":"SUM('IV. Country level, 1310-2018'!AO684:AV684)","v":{"v":9.10004953638829,"d":"9.100"}},{"$f":"SUM('IV. Country level, 1310-2018'!AY684:BF684)","v":{"v":5.063952154176684,"d":"5.0640"}},{"v":4.036097382211606,"d":"4.036"},{"v":8.5524,"d":"8.552"},{"$f":"'IV. Country level, 1310-2018'!Z684","v":{"v":5.41922,"d":"5.419"}},{"$f":"'IV. Country level, 1310-2018'!H684","v":{"v":3.1331800000000003,"d":"3.133"}},{"$nulls":5},{"v":8.95,"d":"8.950"},{"v":2.7397615372378037,"d":"2.740"},{"v":6.210238462762195,"d":"6.210"},{"$f":"'VIII. Pers. sov. loans, 1312-'!C683","v":{"v":5.728571428571429,"d":"5.729"}}]
[1991,null,{"v":7.811555557325341,"d":"7.812"},{"v":3.546735511424564,"d":"3.547"},{"v":4.264820045900778,"d":"4.265"},{"v":7.6738379063436435,"d":"7.674"},{"v":3.87615,"d":"3.876"},{"v":3.7976879063436444,"d":"3.798"},null,null,{"$f":"SUM('IV. Country level, 1310-2018'!AO685:AV685)","v":{"v":8.197280577882648,"d":"8.197"}},{"$f":"SUM('IV. Country level, 1310-2018'!AY685:BF685)","v":{"v":4.0395864223902676,"d":"4.0396"}},{"v":4.15769415549238,"d":"4.158"},{"v":7.86244,"d":"7.862"},{"$f":"'IV. Country level, 1310-2018'!Z685","v":{"v":4.21583,"d":"4.216"}},{"$f":"'IV. Country level, 1310-2018'!H685","v":{"v":3.64661,"d":"3.647"}},{"$nulls":5},{"v":8.883333333333335,"d":"8.883"},{"v":3.245857076318782,"d":"3.246"},{"v":5.637476257014553,"d":"5.637"},{"$f":"'VIII. Pers. sov. loans, 1312-'!C684","v":{"v":5.457142857142857,"d":"5.457"}}]
[1992,null,{"v":7.576681090775864,"d":"7.577"},{"v":3.394381677235743,"d":"3.394"},{"v":4.18229941354012,"d":"4.182"},{"v":7.348969334915073,"d":"7.349"},{"v":3.691204285714286,"d":"3.691"},{"v":3.6577650492007874,"d":"3.658"},null,null,{"$f":"SUM('IV. Country level, 1310-2018'!AO686:AV686)","v":{"v":7.542470298324598,"d":"7.542"}},{"$f":"SUM('IV. Country level, 1310-2018'!AY686:BF686)","v":{"v":2.8278311744238107,"d":"2.8278"}},{"v":4.7146391239007865,"d":"4.715"},{"v":7.008844621513944,"d":"7.009"},{"$f":"'IV. Country level, 1310-2018'!Z686","v":{"v":3.04162,"d":"3.042"}},{"$f":"'IV. Country level, 1310-2018'!H686","v":{"v":3.967224621513944,"d":"3.967"}},{"$nulls":5},{"v":8.316666666666666,"d":"8.317"},{"v":3.329379979355703,"d":"3.329"},{"v":4.987286687310963,"d":"4.987"},{"$f":"'VIII. Pers. sov. loans, 1312-'!C685","v":{"v":5.185714285714286,"d":"5.186"}}]
[1993,null,{"v":7.197970460227581,"d":"7.198"},{"v":3.070505045587939,"d":"3.071"},{"v":4.127465414639643,"d":"4.127"},{"v":7.056085298633894,"d":"7.056"},{"v":3.4262871428571424,"d":"3.426"},{"v":3.6297981557767507,"d":"3.630"},null,null,{"$f":"SUM('IV. Country level, 1310-2018'!AO687:AV687)","v":{"v":5.748576798681738,"d":"5.749"}},{"$f":"SUM('IV. Country level, 1310-2018'!AY687:BF687)","v":{"v":2.7131438484878307,"d":"2.7131"}},{"v":3.0354329501939077,"d":"3.035"},{"v":5.86628,"d":"5.866"},{"$f":"'IV. Country level, 1310-2018'!Z687","v":{"v":2.96965,"d":"2.970"}},{"$f":"'IV. Country level, 1310-2018'!H687","v":{"v":2.8966299999999996,"d":"2.897"}},{"$nulls":5},{"v":6.474999999999999,"d":"6.475"},{"v":4.257753293845186,"d":"4.258"},{"v":2.217246706154813,"d":"2.217"},{"$f":"'VIII. Pers. sov. loans, 1312-'!C686","v":{"v":4.965714285714286,"d":"4.966"}}]
[1994,null,{"v":6.665557417084925,"d":"6.666"},{"v":2.6544565169535965,"d":"2.654"},{"v":4.011100900131329,"d":"4.011"},{"v":6.742022441491037,"d":"6.742"},{"v":2.986051428571429,"d":"2.986"},{"v":3.755971012919608,"d":"3.756"},null,null,{"$f":"SUM('IV. Country level, 1310-2018'!AO688:AV688)","v":{"v":7.447423917049583,"d":"7.447"}},{"$f":"SUM('IV. Country level, 1310-2018'!AY688:BF688)","v":{"v":2.301016035933197,"d":"2.3010"}},{"v":5.146407881116385,"d":"5.146"},{"v":7.085180722891566,"d":"7.085"},{"$f":"'IV. Country level, 1310-2018'!Z688","v":{"v":2.5956,"d":"2.596"}},{"$f":"'IV. Country level, 1310-2018'!H688","v":{"v":4.489580722891566,"d":"4.490"}},{"$nulls":5},{"v":6.7749999999999995,"d":"6.775"},{"v":2.595570229001994,"d":"2.596"},{"v":4.179429770998006,"d":"4.179"},{"$f":"'VIII. Pers. sov. loans, 1312-'!C687","v":{"v":4.913571428571429,"d":"4.914"}}]
[1995,null,{"v":6.118267759172911,"d":"6.118"},{"v":2.2640385940260583,"d":"2.264"},{"v":3.8542291651468514,"d":"3.854"},{"v":6.370656727205323,"d":"6.371"},{"v":2.6047914285714286,"d":"2.605"},{"v":3.7658652986338934,"d":"3.766"},null,null,{"$f":"SUM('IV. Country level, 1310-2018'!AO689:AV689)","v":{"v":6.4755410600335015,"d":"6.476"}},{"$f":"SUM('IV. Country level, 1310-2018'!AY689:BF689)","v":{"v":2.316036348168398,"d":"2.3160"}},{"v":4.159504711865104,"d":"4.160"},{"v":6.57392,"d":"6.574"},{"$f":"'IV. Country level, 1310-2018'!Z689","v":{"v":2.80542,"d":"2.805"}},{"$f":"'IV. Country level, 1310-2018'!H689","v":{"v":3.7685000000000004,"d":"3.769"}},{"$nulls":5},{"v":6.591666666666667,"d":"6.592"},{"v":1.507537688442215,"d":"1.508"},{"v":5.084128978224452,"d":"5.084"},{"$f":"'VIII. Pers. sov. loans, 1312-'!C688","v":{"v":4.746428571428571,"d":"4.746"}}]
[1996,null,{"v":5.7422291461323445,"d":"5.742"},{"v":2.0691844167070026,"d":"2.069"},{"v":3.673044729425341,"d":"3.673"},{"v":6.175983989584377,"d":"6.176"},{"v":2.48358,"d":"2.484"},{"v":3.692403989584377,"d":"3.692"},null,null,{"$f":"SUM('IV. Country level, 1310-2018'!AO690:AV690)","v":{"v":5.874451033232712,"d":"5.874"}},{"$f":"SUM('IV. Country level, 1310-2018'!AY690:BF690)","v":{"v":2.231969335535383,"d":"2.2320"}},{"v":3.6424816976973293,"d":"3.642"},{"v":6.443531746031746,"d":"6.444"},{"$f":"'IV. Country level, 1310-2018'!Z690","v":{"v":2.93667,"d":"2.937"}},{"$f":"'IV. Country level, 1310-2018'!H690","v":{"v":3.506861746031746,"d":"3.507"}},{"$nulls":5},5.575,{"v":1.4851485148514887,"d":"1.485"},{"v":4.089851485148511,"d":"4.090"},{"$f":"'VIII. Pers. sov. loans, 1312-'!C689","v":{"v":4.567857142857142,"d":"4.568"}}]
[1997,null,{"v":5.633207237866715,"d":"5.633"},{"v":2.030031933298702,"d":"2.030"},{"v":3.603175304568014,"d":"3.603"},{"v":6.199412401650399,"d":"6.199"},{"v":2.5402985714285715,"d":"2.540"},{"v":3.6591138302218273,"d":"3.659"},null,null,{"$f":"SUM('IV. Country level, 1310-2018'!AO691:AV691)","v":{"v":5.373158234389696,"d":"5.373"}},{"$f":"SUM('IV. Country level, 1310-2018'!AY691:BF691)","v":{"v":2.151612453736287,"d":"2.1516"}},{"v":3.2215457806534094,"d":"3.222"},{"v":6.353959999999999,"d":"6.354"},{"$f":"'IV. Country level, 1310-2018'!Z691","v":{"v":2.33757,"d":"2.338"}},{"$f":"'IV. Country level, 1310-2018'!H691","v":{"v":4.0163899999999995,"d":"4.016"}},{"$nulls":5},{"v":5.058333333333333,"d":"5.058"},{"v":2.0731707317073207,"d":"2.073"},{"v":2.985162601626012,"d":"2.985"},{"$f":"'VIII. Pers. sov. loans, 1312-'!C690","v":{"v":4.7871428571428565,"d":"4.787"}}]
[1998,null,{"v":5.208219465561517,"d":"5.208"},{"v":1.9619009160323237,"d":"1.962"},{"v":3.2463185495291933,"d":"3.246"},{"v":5.904484510361742,"d":"5.904"},{"v":2.571874285714286,"d":"2.572"},{"v":3.332610224647456,"d":"3.333"},null,null,{"$f":"SUM('IV. Country level, 1310-2018'!AO692:AV692)","v":{"v":4.366252972498548,"d":"4.366"}},{"$f":"SUM('IV. Country level, 1310-2018'!AY692:BF692)","v":{"v":1.3066609618975034,"d":"1.3067"}},{"v":3.0595920106010444,"d":"3.060"},{"v":5.26288,"d":"5.263"},{"$f":"'IV. Country level, 1310-2018'!Z692","v":{"v":1.54701,"d":"1.547"}},{"$f":"'IV. Country level, 1310-2018'!H692","v":{"v":3.71587,"d":"3.716"}},{"$nulls":5},{"v":4.516666666666667,"d":"4.517"},{"v":0.3584229390680969,"d":"0.358"},{"v":4.1582437275985695,"d":"4.158"},{"$f":"'VIII. Pers. sov. loans, 1312-'!C691","v":{"v":4.813571428571428,"d":"4.814"}}]
[1999,null,{"v":4.851490819923427,"d":"4.851"},{"v":1.8473471514634632,"d":"1.847"},{"v":3.004143668459964,"d":"3.004"},{"v":5.624364510361742,"d":"5.624"},{"v":2.399052857142857,"d":"2.399"},{"v":3.2253116532188852,"d":"3.225"},null,null,{"$f":"SUM('IV. Country level, 1310-2018'!AO693:AV693)","v":{"v":4.910200007040628,"d":"4.910"}},{"$f":"SUM('IV. Country level, 1310-2018'!AY693:BF693)","v":{"v":1.4638519331904216,"d":"1.4639"}},{"v":3.4463480738502064,"d":"3.446"},{"v":5.646135458167331,"d":"5.646"},{"$f":"'IV. Country level, 1310-2018'!Z693","v":{"v":2.19314,"d":"2.193"}},{"$f":"'IV. Country level, 1310-2018'!H693","v":{"v":3.4529954581673308,"d":"3.453"}},{"$nulls":5},4.325,{"v":1.1904761904761905,"d":"1.190"},{"v":3.1345238095238095,"d":"3.135"},{"$f":"'VIII. Pers. sov. loans, 1312-'!C692","v":{"v":4.742857142857142,"d":"4.743"}}]
[2000,null,{"v":4.549575609982848,"d":"4.550"},{"v":1.7887973375269794,"d":"1.789"},{"v":2.7607782724558687,"d":"2.761"},{"v":5.27727140378578,"d":"5.277"},{"v":2.3078142857142856,"d":"2.308"},{"v":2.969457118071493,"d":"2.969"},null,null,{"$f":"SUM('IV. Country level, 1310-2018'!AO694:AV694)","v":{"v":4.985423440822344,"d":"4.985"}},{"$f":"SUM('IV. Country level, 1310-2018'!AY694:BF694)","v":{"v":2.439076464629726,"d":"2.4391"}},{"v":2.546346976192618,"d":"2.546"},{"v":6.0302788844621515,"d":"6.030"},{"$f":"'IV. Country level, 1310-2018'!Z694","v":{"v":3.36668,"d":"3.367"}},{"$f":"'IV. Country level, 1310-2018'!H694","v":{"v":2.6635988844621514,"d":"2.664"}},{"$nulls":5},{"v":5.558333333333334,"d":"5.558"},{"v":2.0000000000000036,"d":"2.000"},{"v":3.55833333333333,"d":"3.558"},{"$f":"'VIII. Pers. sov. loans, 1312-'!C693","v":{"v":4.482142857142857,"d":"4.482"}}]
[2001,null,{"v":4.313205454467085,"d":"4.313"},{"v":1.7954265453747555,"d":"1.795"},{"v":2.5177789090923284,"d":"2.518"},{"v":4.979751403785778,"d":"4.980"},{"v":2.3549571428571427,"d":"2.355"},{"v":2.6247942609286357,"d":"2.625"},null,null,{"$f":"SUM('IV. Country level, 1310-2018'!AO695:AV695)","v":{"v":4.47250951091319,"d":"4.473"}},{"$f":"SUM('IV. Country level, 1310-2018'!AY695:BF695)","v":{"v":1.8240989150685456,"d":"1.8241"}},{"v":2.648410595844644,"d":"2.648"},{"v":5.020685483870968,"d":"5.021"},{"$f":"'IV. Country level, 1310-2018'!Z695","v":{"v":2.81663,"d":"2.817"}},{"$f":"'IV. Country level, 1310-2018'!H695","v":{"v":2.2040554838709676,"d":"2.204"}},{"$nulls":5},{"v":4.908333333333333,"d":"4.908"},{"v":1.6147635524798056,"d":"1.615"},{"v":3.2935697808535274,"d":"3.294"},{"$f":"'VIII. Pers. sov. loans, 1312-'!C694","v":{"v":4.1121428571428575,"d":"4.112"}}]
[2002,null,{"v":4.204306688758254,"d":"4.204"},{"v":1.9376026730753058,"d":"1.938"},{"v":2.2667040156829477,"d":"2.267"},{"v":4.840608546642921,"d":"4.841"},{"v":2.6147885714285715,"d":"2.615"},{"v":2.22581997521435,"d":"2.226"},null,null,{"$f":"SUM('IV. Country level, 1310-2018'!AO696:AV696)","v":{"v":3.9784405405668712,"d":"3.978"}},{"$f":"SUM('IV. Country level, 1310-2018'!AY696:BF696)","v":{"v":1.5141599961863759,"d":"1.5142"}},{"v":2.4642805443804954,"d":"2.464"},{"v":4.61308,"d":"4.613"},{"$f":"'IV. Country level, 1310-2018'!Z696","v":{"v":1.59567,"d":"1.596"}},{"$f":"'IV. Country level, 1310-2018'!H696","v":{"v":3.01741,"d":"3.017"}},{"$nulls":5},{"v":4.741666666666666,"d":"4.742"},{"v":1.135073779795687,"d":"1.135"},{"v":3.6065928868709793,"d":"3.607"},{"$f":"'VIII. Pers. sov. loans, 1312-'!C695","v":{"v":3.924285714285714,"d":"3.924"}}]
[2003,null,{"v":4.081983064708335,"d":"4.082"},{"v":2.065207709909773,"d":"2.065"},{"v":2.0167753547985625,"d":"2.017"},{"v":4.719017766904732,"d":"4.719"},{"v":2.7617814285714286,"d":"2.762"},{"v":1.9572363383333027,"d":"1.957"},null,null,{"$f":"SUM('IV. Country level, 1310-2018'!AO697:AV697)","v":{"v":3.761044563648659,"d":"3.761"}},{"$f":"SUM('IV. Country level, 1310-2018'!AY697:BF697)","v":{"v":1.8221206379799983,"d":"1.8221"}},{"v":1.9389239256686606,"d":"1.939"},{"v":4.01388,"d":"4.014"},{"$f":"'IV. Country level, 1310-2018'!Z697","v":2.298},{"$f":"'IV. Country level, 1310-2018'!H697","v":{"v":1.7158800000000003,"d":"1.716"}},{"$nulls":5},{"v":3.7249999999999996,"d":"3.725"},{"v":1.122334455667789,"d":"1.122"},{"v":2.6026655443322104,"d":"2.603"},{"$f":"'VIII. Pers. sov. loans, 1312-'!C696","v":{"v":3.8528571428571428,"d":"3.853"}}]
[2004,null,{"v":3.9554354243286807,"d":"3.955"},{"v":2.103527064254682,"d":"2.104"},{"v":1.8519083600739978,"d":"1.852"},{"v":4.519643834064662,"d":"4.520"},{"v":2.6909057142857145,"d":"2.691"},{"v":1.828738119778949,"d":"1.829"},null,null,{"$f":"SUM('IV. Country level, 1310-2018'!AO698:AV698)","v":{"v":3.718567145779353,"d":"3.719"}},{"$f":"SUM('IV. Country level, 1310-2018'!AY698:BF698)","v":{"v":2.1980169086707186,"d":"2.1980"}},{"v":1.5205502371086346,"d":"1.521"},{"v":4.27132,"d":"4.271"},{"$f":"'IV. Country level, 1310-2018'!Z698","v":{"v":2.66757,"d":"2.668"}},{"$f":"'IV. Country level, 1310-2018'!H698","v":{"v":1.6037500000000002,"d":"1.604"}},{"$nulls":5},{"v":3.5500000000000003,"d":"3.550"},{"v":2.219755826859046,"d":"2.220"},{"v":1.3302441731409544,"d":"1.330"},{"$f":"'VIII. Pers. sov. loans, 1312-'!C697","v":{"v":3.6378571428571433,"d":"3.638"}}]
[2005,null,{"v":3.7912886274110718,"d":"3.791"},{"v":2.2201014492057185,"d":"2.220"},{"v":1.571187178205354,"d":"1.571"},{"v":4.325869186112692,"d":"4.326"},{"v":2.833522857142857,"d":"2.834"},{"v":1.492346328969835,"d":"1.492"},null,null,{"$f":"SUM('IV. Country level, 1310-2018'!AO699:AV699)","v":{"v":3.6039616125367315,"d":"3.604"}},{"$f":"SUM('IV. Country level, 1310-2018'!AY699:BF699)","v":{"v":2.301893855801355,"d":"2.3019"}},{"v":1.3020677567353767,"d":"1.302"},{"v":4.28888,"d":"4.289"},{"$f":"'IV. Country level, 1310-2018'!Z699","v":{"v":3.36583,"d":"3.366"}},{"$f":"'IV. Country level, 1310-2018'!H699","v":{"v":0.9230499999999999,"d":"0.923"}},{"$nulls":5},{"v":3.058333333333333,"d":"3.058"},{"v":1.411509229098818,"d":"1.412"},{"v":1.646824104234515,"d":"1.647"},{"$f":"'VIII. Pers. sov. loans, 1312-'!C698","v":{"v":3.4214285714285713,"d":"3.421"}}]
[2006,null,{"v":3.678097713497631,"d":"3.678"},{"v":1.9730141686864469,"d":"1.973"},{"v":1.7050835448111836,"d":"1.705"},{"v":4.133160614684121,"d":"4.133"},{"v":2.5598042857142853,"d":"2.560"},{"v":1.5733563289698351,"d":"1.573"},null,null,{"$f":"SUM('IV. Country level, 1310-2018'!AO700:AV700)","v":{"v":4.053934638691198,"d":"4.054"}},{"$f":"SUM('IV. Country level, 1310-2018'!AY700:BF700)","v":{"v":2.3570871910316913,"d":"2.3571"}},{"v":1.6968474476595063,"d":"1.697"},4.795,{"$f":"'IV. Country level, 1310-2018'!Z700","v":{"v":3.22209,"d":"3.222"}},{"$f":"'IV. Country level, 1310-2018'!H700","v":{"v":1.5729099999999998,"d":"1.573"}},{"$nulls":5},{"v":3.783333333333333,"d":"3.783"},{"v":1.3918629550321167,"d":"1.392"},{"v":2.3914703783012166,"d":"2.391"},{"$f":"'VIII. Pers. sov. loans, 1312-'!C699","v":{"v":3.18,"d":"3.180"}}]
[2007,null,{"v":3.5957129832136765,"d":"3.596"},{"v":1.942382751831703,"d":"1.942"},{"v":1.6533302313819738,"d":"1.653"},{"v":4.01904343767786,"d":"4.019"},{"v":2.46581,"d":"2.466"},{"v":1.55323343767786,"d":"1.553"},null,null,{"$f":"SUM('IV. Country level, 1310-2018'!AO701:AV701)","v":{"v":4.099589958164762,"d":"4.100"}},{"$f":"SUM('IV. Country level, 1310-2018'!AY701:BF701)","v":{"v":2.7073119450440926,"d":"2.7073"}},{"v":1.3922780131206691,"d":"1.392"},{"v":4.634661354581674,"d":"4.635"},{"$f":"'IV. Country level, 1310-2018'!Z701","v":{"v":2.87055,"d":"2.871"}},{"$f":"'IV. Country level, 1310-2018'!H701","v":{"v":1.7641113545816736,"d":"1.764"}},{"$nulls":5},{"v":4.416666666666667,"d":"4.417"},{"v":3.167898627243928,"d":"3.168"},{"v":1.248768039422739,"d":"1.249"},{"$f":"'VIII. Pers. sov. loans, 1312-'!C700","v":3.065}]
[2008,null,{"v":3.480195033788257,"d":"3.480"},{"v":1.9998798820065442,"d":"2.000"},{"v":1.4803151517817128,"d":"1.480"},{"v":3.8062320091064317,"d":"3.806"},{"v":2.53325,"d":"2.533"},{"v":1.2729820091064314,"d":"1.273"},null,null,{"$f":"SUM('IV. Country level, 1310-2018'!AO702:AV702)","v":{"v":3.3234819324899285,"d":"3.323"}},{"$f":"SUM('IV. Country level, 1310-2018'!AY702:BF702)","v":{"v":2.640119609725796,"d":"2.6401"}},{"v":0.6833623227641326,"d":"0.683"},{"v":3.6642629482071714,"d":"3.664"},{"$f":"'IV. Country level, 1310-2018'!Z702","v":{"v":3.81495,"d":"3.815"}},{"$f":"'IV. Country level, 1310-2018'!H702","v":{"v":-0.1506870517928287,"d":"-0.151"}},{"$nulls":5},{"v":4.458333333333333,"d":"4.458"},{"v":1.1258955987717443,"d":"1.126"},{"v":3.332437734561589,"d":"3.332"},{"$f":"'VIII. Pers. sov. loans, 1312-'!C701","v":{"v":2.841428571428571,"d":"2.841"}}]
[2009,null,{"v":3.2636065301145654,"d":"3.264"},{"v":1.933425214353454,"d":"1.933"},{"v":1.3301813157611115,"d":"1.330"},{"v":3.4511691519635748,"d":"3.451"},{"v":2.3485871428571428,"d":"2.349"},{"v":1.1025820091064313,"d":"1.103"},null,null,{"$f":"SUM('IV. Country level, 1310-2018'!AO703:AV703)","v":{"v":3.1861041431727837,"d":"3.186"}},{"$f":"SUM('IV. Country level, 1310-2018'!AY703:BF703)","v":{"v":-0.21545096744852235,"d":"-0.2155"}},{"v":3.401555110621306,"d":"3.402"},{"v":3.26412,"d":"3.264"},{"$f":"'IV. Country level, 1310-2018'!Z703","v":{"v":-0.32036,"d":"-0.320"}},{"$f":"'IV. Country level, 1310-2018'!H703","v":{"v":3.58448,"d":"3.584"}},{"$nulls":5},{"v":3.2750000000000004,"d":"3.275"},{"v":0.8097165991902806,"d":"0.810"},{"v":2.46528340080972,"d":"2.465"},{"$f":"'VIII. Pers. sov. loans, 1312-'!C702","v":{"v":2.442142857142857,"d":"2.442"}}]
[2010,null,{"v":3.026747296360848,"d":"3.027"},{"v":1.777783247515771,"d":"1.778"},{"v":1.2489640488450768,"d":"1.249"},{"v":3.1019062948207163,"d":"3.102"},{"v":2.097712857142857,"d":"2.098"},{"v":1.0041934376778598,"d":"1.004"},null,null,{"$f":"SUM('IV. Country level, 1310-2018'!AO704:AV704)","v":{"v":3.184351451660979,"d":"3.184"}},{"$f":"SUM('IV. Country level, 1310-2018'!AY704:BF704)","v":{"v":1.6077007199967885,"d":"1.6077"}},{"v":1.5766507316641907,"d":"1.577"},{"v":3.2150597609561755,"d":"3.215"},{"$f":"'IV. Country level, 1310-2018'!Z704","v":{"v":1.64004,"d":"1.640"}},{"$f":"'IV. Country level, 1310-2018'!H704","v":{"v":1.5750197609561756,"d":"1.575"}},{"$nulls":5},{"v":2.4499999999999997,"d":"2.450"},{"v":1.3052208835341481,"d":"1.305"},{"v":1.1447791164658516,"d":"1.145"},{"$f":"'VIII. Pers. sov. loans, 1312-'!C703","v":{"v":1.968571428571429,"d":"1.969"}}]
[2011,null,{"v":2.6970722575001034,"d":"2.697"},{"v":1.6126891533525647,"d":"1.613"},{"v":1.0843831041475387,"d":"1.084"},{"v":2.8026061013090495,"d":"2.803"},{"v":1.917892857142857,"d":"1.918"},{"v":0.8847132441661925,"d":"0.885"},null,null,{"$f":"SUM('IV. Country level, 1310-2018'!AO705:AV705)","v":{"v":2.9099414998014144,"d":"2.910"}},{"$f":"SUM('IV. Country level, 1310-2018'!AY705:BF705)","v":{"v":2.6004968198946066,"d":"2.6005"}},{"v":0.3094446799068078,"d":"0.309"},{"v":2.78164,"d":"2.782"},{"$f":"'IV. Country level, 1310-2018'!Z705","v":{"v":3.13965,"d":"3.140"}},{"$f":"'IV. Country level, 1310-2018'!H705","v":{"v":-0.35801000000000016,"d":"-0.358"}},{"$nulls":5},{"v":2.7416666666666667,"d":"2.742"},{"v":1.9821605550049552,"d":"1.982"},{"v":0.7595061116617114,"d":"0.760"},{"$f":"'VIII. Pers. sov. loans, 1312-'!C704","v":{"v":1.5864285714285717,"d":"1.586"}}]
[2012,null,{"v":2.443433176668127,"d":"2.443"},{"v":1.265111106254572,"d":"1.265"},{"v":1.1783220704135555,"d":"1.178"},{"v":2.584609516220831,"d":"2.585"},{"v":1.3901757142857143,"d":"1.390"},{"v":1.1944338019351164,"d":"1.194"},null,null,{"$f":"SUM('IV. Country level, 1310-2018'!AO706:AV706)","v":{"v":2.0878420868208964,"d":"2.088"}},{"$f":"SUM('IV. Country level, 1310-2018'!AY706:BF706)","v":{"v":1.8367111822297282,"d":"1.8367"}},{"v":0.25113090459116827,"d":"0.251"},{"v":1.80344,"d":"1.803"},{"$f":"'IV. Country level, 1310-2018'!Z706","v":{"v":2.07319,"d":"2.073"}},{"$f":"'IV. Country level, 1310-2018'!H706","v":{"v":-0.26974999999999993,"d":"-0.270"}},{"$nulls":5},{"v":1.4333333333333333,"d":"1.433"},{"v":2.0408163265306065,"d":"2.041"},{"v":-0.6074829931972732,"d":"-0.607"},{"$f":"'VIII. Pers. sov. loans, 1312-'!C705","v":{"v":1.3864285714285711,"d":"1.386"}}]
[2013,null,{"v":2.1655807002784617,"d":"2.166"},{"v":1.4070550721709592,"d":"1.407"},{"v":0.7585256281075025,"d":"0.759"},{"v":2.380798087649403,"d":"2.381"},{"v":1.6161685714285716,"d":"1.616"},{"v":0.7646295162208309,"d":"0.765"},null,null,{"$f":"SUM('IV. Country level, 1310-2018'!AO707:AV707)","v":{"v":2.3959200024151732,"d":"2.396"}},{"$f":"SUM('IV. Country level, 1310-2018'!AY707:BF707)","v":{"v":1.2675934231679087,"d":"1.2676"}},{"v":1.1283265792472645,"d":"1.128"},{"v":2.35016,"d":"2.350"},{"$f":"'IV. Country level, 1310-2018'!Z707","v":{"v":1.46597,"d":"1.466"}},{"$f":"'IV. Country level, 1310-2018'!H707","v":{"v":0.8841899999999998,"d":"0.884"}},{"$nulls":5},{"v":1.2583333333333335,"d":"1.258"},{"v":1.4285714285714286,"d":"1.429"},{"v":-0.17023809523809508,"d":"-0.170"},{"$f":"'VIII. Pers. sov. loans, 1312-'!C706","v":{"v":1.282857142857143,"d":"1.283"}}]
[2014,null,{"v":1.929107784526527,"d":"1.929"},{"v":1.4318987954730442,"d":"1.432"},{"v":0.4972089890534826,"d":"0.497"},{"v":2.2542866932270913,"d":"2.254"},{"v":1.6874,"d":"1.687"},{"v":0.5668866932270916,"d":"0.567"},null,null,{"$f":"SUM('IV. Country level, 1310-2018'!AO708:AV708)","v":{"v":1.791864686139546,"d":"1.792"}},{"$f":"SUM('IV. Country level, 1310-2018'!AY708:BF708)","v":{"v":1.5516532859016463,"d":"1.5517"}},{"v":0.24021140023789966,"d":"0.240"},{"v":2.53956,"d":"2.540"},{"$f":"'IV. Country level, 1310-2018'!Z708","v":{"v":1.61181,"d":"1.612"}},{"$f":"'IV. Country level, 1310-2018'!H708","v":{"v":0.9277499999999999,"d":"0.928"}},{"$nulls":5},{"v":0.8500000000000001,"d":"0.850"},{"v":0.8,"d":"0.800"},{"v":0.050000000000000044,"d":"0.050"},{"$f":"'VIII. Pers. sov. loans, 1312-'!C707","v":{"v":1.26,"d":"1.260"}}]
[2015,null,{"v":1.772990089733334,"d":"1.773"},{"v":1.353789977070914,"d":"1.354"},{"v":0.4192001126624198,"d":"0.419"},{"v":2.2626238360842343,"d":"2.263"},{"v":1.58745,"d":"1.587"},{"v":0.6751738360842346,"d":"0.675"},null,null,{"$f":"SUM('IV. Country level, 1310-2018'!AO709:AV709)","v":{"v":1.548008366666098,"d":"1.548"}},{"$f":"SUM('IV. Country level, 1310-2018'!AY709:BF709)","v":{"v":0.2070732800398464,"d":"0.2071"}},{"v":1.3409350866262515,"d":"1.341"},{"v":2.1382868525896415,"d":"2.138"},{"$f":"'IV. Country level, 1310-2018'!Z709","v":{"v":0.12093,"d":"0.121"}},{"$f":"'IV. Country level, 1310-2018'!H709","v":{"v":2.0173568525896415,"d":"2.017"}},{"$nulls":5},{"v":0.4000000000000001,"d":"0.400"},{"v":0.7,"d":"0.700"},{"v":-0.2999999999999999,"d":"-0.300"},{"$f":"'VIII. Pers. sov. loans, 1312-'!C708","v":{"v":1.3871428571428572,"d":"1.387"}}]
[2016,null,{"v":1.7205147568854071,"d":"1.721"},{"v":1.273303109544445,"d":"1.273"},{"v":0.44721164734096175,"d":"0.447"},{"v":2.339154475431607,"d":"2.339"},{"v":1.5064933333333332,"d":"1.506"},{"v":0.8326611420982735,"d":"0.833"},null,null,{"$f":"SUM('IV. Country level, 1310-2018'!AO710:AV710)","v":{"v":1.2411368084451249,"d":"1.241"}},{"$f":"SUM('IV. Country level, 1310-2018'!AY710:BF710)","v":{"v":0.7781567939661903,"d":"0.7782"}},{"v":0.46298001447893455,"d":"0.463"},{"v":1.83744,"d":"1.837"},{"$f":"'IV. Country level, 1310-2018'!Z710","v":{"v":1.26159,"d":"1.262"}},{"$f":"'IV. Country level, 1310-2018'!H710","v":{"v":0.57585,"d":"0.576"}},{"$nulls":5},{"v":0.15,"d":"0.150"},{"v":0.4,"d":"0.400"},{"v":-0.25,"d":"-0.250"},{"$f":"'VIII. Pers. sov. loans, 1312-'!C709","v":{"v":1.4983333333333333,"d":"1.498"}}]
[2017,null,{"v":1.5854337077794536,"d":"1.585"},{"v":1.2744450468197523,"d":"1.274"},{"v":0.3109886609597011,"d":"0.311"},{"v":2.336953370517928,"d":"2.337"},{"v":1.5145979999999999,"d":"1.515"},{"v":0.8223553705179285,"d":"0.822"},null,null,{"$f":"SUM('IV. Country level, 1310-2018'!AO711:AV711)","v":{"v":1.529041041397436,"d":"1.529"}},{"$f":"SUM('IV. Country level, 1310-2018'!AY711:BF711)","v":{"v":1.7816067831113842,"d":"1.7816"}},{"v":-0.2525657417139482,"d":"-0.253"},{"v":2.32948,"d":"2.329"},{"$f":"'IV. Country level, 1310-2018'!Z711","v":{"v":2.13866,"d":"2.139"}},{"$f":"'IV. Country level, 1310-2018'!H711","v":{"v":0.19082000000000043,"d":"0.191"}},{"$nulls":5},{"v":0.28333333333333327,"d":"0.283"},{"v":1.7,"d":"1.700"},{"v":-1.4166666666666667,"d":"-1.417"},{"$f":"'VIII. Pers. sov. loans, 1312-'!C710","v":1.611}]
[2018,null,{"v":2.793952714634183,"d":"2.794"},{"v":1.2704236593205511,"d":"1.270"},{"v":1.5318124771216974,"d":"1.532"},{"v":3.0591186845021943,"d":"3.059"},{"v":1.4953026991474587,"d":"1.495"},{"v":1.563815985354736,"d":"1.564"},null,null,{"$f":"SUM('IV. Country level, 1310-2018'!AO712:AV712)","v":{"v":1.8171176362490633,"d":"1.817"}},{"$f":"SUM('IV. Country level, 1310-2018'!AY712:BF712)","v":{"v":2.053735091079695,"d":"2.0537"}},{"v":-0.23661745483063168,"d":"-0.237"},{"v":2.84,"d":"2.840"},{"$f":"'IV. Country level, 1310-2018'!Z712","v":{"v":2.44,"d":"2.440"}},{"$f":"'IV. Country level, 1310-2018'!H712","v":{"v":0.3999999999999999,"d":"0.400"}},{"$nulls":5},{"v":0.4333333333333333,"d":"0.433"},{"v":1.9,"d":"1.900"},{"v":-1.4666666666666666,"d":"-1.467"},{"$f":"'VIII. Pers. sov. loans, 1312-'!C711","v":{"v":1.6500000000000001,"d":"1.650"}}]
[]
[]
["All-time average",null,{"$f":"AVERAGE(C15:C716)","v":{"v":7.823617402412575,"d":"7.82"}},{"$f":"AVERAGE(D12:D716)","v":{"v":1.5051171319191097,"d":"1.51"}},{"$f":"AVERAGE(E15:E716)","v":{"v":6.320126332978765,"d":"6.32"}},{"v":6.1437208316138054,"d":"6.14"},{"v":1.5399102742076667,"d":"1.54"},{"v":4.603810557406143,"d":"4.60"},null,null,{"$f":"AVERAGE(K12:K716)","v":{"v":7.834459720413194,"d":"7.83"}},{"$f":"AVERAGE(L9:L716)","v":{"v":1.5315463484056393,"d":"1.53"}},{"v":6.344330481047881,"d":"6.34"},{"v":6.150386569921329,"d":"6.15"},{"v":1.5153334957372944,"d":"1.52"},{"$f":"AVERAGE(P12:P716)","v":{"v":4.635053074184039,"d":"4.64"}}]

{"sheet":"III. GDP shares, 1310-2018","index":3,"n_rows":716,"n_cols":17,"rows_kept":716,"merged":[[3,2,3,9]]}
["back to contents"]
["Year",null,"Italy","UK","Holland/NL","Germany","France","United States","Spain","Japan",null,null,"Total real GDP covered, 1990 US$ M","Total DM GDP (Maddison basis, 1990 US$ M)","% of advanced economy real GDP covered"]
[]
[null,"Source","Maddison (2010, horizontal file)"]
[]
[{"$f":"'II. Headline series'!A8","v":1310},null,0.7965421426366163,0.20345785736338376,0,0,0,{"$nulls":5},15820,32677,{"$f":"M6/N6","v":0.48413257030939194}]
[{"$f":"'II. Headline series'!A9","v":1311},null,0.7965421426366163,0.20345785736338376,0,0,0,{"$nulls":5},15820,32677,{"$f":"M7/N7","v":0.48413257030939194}]
[{"$f":"'II. Headline series'!A10","v":1312},null,0.7965421426366163,0.20345785736338376,0,0,0,{"$nulls":5},15820,32677,0.48413257030939194]
[{"$f":"'II. Headline series'!A11","v":1313},null,0.7965421426366163,0.20345785736338376,0,0,0,{"$nulls":5},15820,32677,0.48413257030939194]
[{"$f":"'II. Headline series'!A12","v":1314},null,0.7965421426366163,0.20345785736338376,0,0,0,{"$nulls":5},15827.414130434783,32743.68253968254,0.4833730632238238]
[{"$f":"'II. Headline series'!A13","v":1315},null,0.7965421426366163,0.20345785736338376,0,0,0,{"$nulls":5},15834.828260869564,32810.36507936508,0.4826166433249571]
[{"$f":"'II. Headline series'!A14","v":1316},null,0.7965421426366163,0.20345785736338376,0,0,0,{"$nulls":5},15842.242391304346,32877.04761904762,0.48186329182812626]
[{"$f":"'II. Headline series'!A15","v":1317},null,0.7965421426366163,0.20345785736338376,0,0,0,{"$nulls":5},15849.656521739129,32943.73015873016,0.4811129901007562]
[{"$f":"'II. Headline series'!A16","v":1318},null,0.7965421426366163,0.20345785736338376,0,0,0,{"$nulls":5},15857.070652173912,33010.4126984127,0.4803657196608268]
[{"$f":"'II. Headline series'!A17","v":1319},null,0.7965421426366163,0.20345785736338376,0,0,0,{"$nulls":5},15864.484782608693,33077.095238095244,0.4796214621753544]
[{"$f":"'II. Headline series'!A18","v":1320},null,0.7965421426366163,0.20345785736338376,0,0,0,{"$nulls":5},15871.898913043475,33143.77777777778,0.47888019945889376]
[{"$f":"'II. Headline series'!A19","v":1321},null,0.7965421426366163,0.20345785736338376,0,0,0,{"$nulls":5},15879.313043478258,33210.460317460325,0.4781419134720558]
[{"$f":"'II. Headline series'!A20","v":1322},null,0.7965421426366163,0.20345785736338376,0,0,0,{"$nulls":5},15886.727173913041,33277.14285714286,0.47740658632004496]
[{"$f":"'II. Headline series'!A21","v":1323},null,0.7965421426366163,0.20345785736338376,0,0,0,{"$nulls":5},15894.141304347822,33343.82539682541,0.4766742002512126]
[{"$f":"'II. Headline series'!A22","v":1324},null,0.7965421426366163,0.20345785736338376,0,0,0,{"$nulls":5},15901.555434782604,33410.507936507944,0.4759447376556296]
[{"$f":"'II. Headline series'!A23","v":1325},null,0.7965421426366163,0.20345785736338376,0,0,0,{"$nulls":5},15908.969565217387,33477.19047619048,0.47521818106367386]
[{"$f":"'II. Headline series'!A24","v":1326},null,0.5065535082697465,0.12938711703479183,0,0.36405937469546157,0,{"$nulls":5},15916.38369565217,33543.873015873025,0.4744945131446362]
[{"$f":"'II. Headline series'!A25","v":1327},null,0.5063176566328741,0.12932687431048995,0,0.36435546905663596,0,{"$nulls":5},15923.797826086951,33610.55555555556,0.47377371670534235]
[{"$f":"'II. Headline series'!A26","v":1328},null,0.506082024519137,0.12926668765818267,0,0.3646512878226804,0,{"$nulls":5},15931.211956521733,33677.238095238106,0.4730557746887912]
[{"$f":"'II. Headline series'!A27","v":1329},null,0.5058466116221901,0.1292065569996214,0,0.3649468313781885,0,{"$nulls":5},15938.626086956516,33743.92063492064,0.4723406701728096]
[{"$f":"'II. Headline series'!A28","v":1330},null,0.505611417636258,0.12914648225670314,0,0.3652421001070387,0,{"$nulls":5},15946.040217391299,33810.60317460319,0.47162838636872223]
[{"$f":"'II. Headline series'!A29","v":1331},null,0.5053764422561342,0.12908646335146992,0,0.3655370943923959,0,{"$nulls":5},15953.45434782608,33877.285714285725,0.4709189066200384]
[{"$f":"'II. Headline series'!A30","v":1332},null,0.5051416851771785,0.12902650020610876,0,0.3658318146167128,0,{"$nulls":5},15960.868478260862,33943.96825396827,0.4702122144011531]
[{"$f":"'II. Headline series'!A31","v":1333},null,0.504907146095317,0.1289665927429511,0,0.366126261161732,0,{"$nulls":5},15968.282608695645,34010.650793650806,0.46950829331606453]
[{"$f":"'II. Headline series'!A32","v":1334},null,0.5046728247070399,0.1289067408844726,0,0.36642043440848737,0,{"$nulls":5},15975.696739130428,34077.33333333335,0.4688071270971052]
[{"$f":"'II. Headline series'!A33","v":1335},null,0.5044387207094012,0.1288469445532928,0,0.36671433473730597,0,{"$nulls":5},15983.11086956521,34144.01587301589,0.4681086996036898]
[{"$f":"'II. Headline series'!A34","v":1336},null,0.5042048338000162,0.1287872036721747,0,0.3670079625278091,0,{"$nulls":5},15990.52499999999,34210.698412698424,0.4674129948210757]
[{"$f":"'II. Headline series'!A35","v":1337},null,0.5039711636770609,0.12872751816402445,0,0.3673013181589147,0,{"$nulls":5},15997.939130434774,34277.38095238097,0.4667199968591395]
[{"$f":"'II. Headline series'!A36","v":1338},null,0.5037377100392704,0.12866788795189116,0,0.36759440200883836,0,{"$nulls":5},16005.353260869557,34344.063492063506,0.4660296899511672]
[{"$f":"'II. Headline series'!A37","v":1339},null,0.5035044725859382,0.12860831295896638,0,0.3678872144550954,0,{"$nulls":5},16012.767391304338,34410.74603174605,0.46534205845265797]
[{"$f":"'II. Headline series'!A38","v":1340},null,0.503271451016914,0.12854879310858386,0,0.3681797558745022,0,{"$nulls":5},16020.18152173912,34477.42857142859,0.46465708684014295]
[{"$f":"'II. Headline series'!A39","v":1341},null,0.5030386450326031,0.12848932832421917,0,0.3684720266431778,0,{"$nulls":5},16027.595652173903,34544.11111111113,0.4639747597100166]
[{"$f":"'II. Headline series'!A40","v":1342},null,0.5028060543339649,0.12842991852948946,0,0.36876402713654566,0,{"$nulls":5},16035.009782608686,34610.79365079367,0.4632950617773824]
[{"$f":"'II. Headline series'!A41","v":1343},null,0.5025736786225115,0.1283705636481531,0,0.3690557577293354,0,{"$nulls":5},16042.423913043467,34677.47619047621,0.4626179778749107]
[{"$f":"'II. Headline series'!A42","v":1344},null,0.5023415176003067,0.12831126360410933,0,0.3693472187955841,0,{"$nulls":5},16049.838043478248,34744.15873015875,0.46194349295171194]
[{"$f":"'II. Headline series'!A43","v":1345},null,0.5021095709699643,0.12825201832139788,0,0.36963841070863773,0,{"$nulls":5},16057.252173913032,34810.84126984129,0.46127159207222]
[{"$f":"'II. Headline series'!A44","v":1346},null,0.5018778384346476,0.12819282772419874,0,0.36992933384115356,0,{"$nulls":5},16064.666304347815,34877.52380952383,0.4606022604150905]
[{"$f":"'II. Headline series'!A45","v":1347},null,0.5016463196980672,0.12813369173683187,0,0.37021998856510097,0,{"$nulls":5},16072.080434782596,34944.20634920637,0.45993548327211087]
[{"$f":"'II. Headline series'!A46","v":1348},null,0.5014150144644801,0.12807461028375672,0,0.3705103752517633,0,{"$nulls":5},16079.494565217377,35010.88888888891,0.45927124604712277]
[{"$f":"'II. Headline series'!A47","v":1349},null,0.5011839224386887,0.12801558328957205,0,0.3708004942717392,0,{"$nulls":5},16086.90869565216,35077.57142857145,0.4586095342549576]
[{"$f":"'II. Headline series'!A48","v":1350},null,0.5009530433260395,0.12795661067901554,0,0.37109034599494484,0,{"$nulls":5},16094.322826086944,35144.253968253994,0.45795033352038256]
[{"$f":"'II. Headline series'!A49","v":1351},null,0.5007223768324216,0.1278976923769635,0,0.37137993079061493,0,{"$nulls":5},16101.736956521725,35210.93650793653,0.45729362957706055]
[{"$f":"'II. Headline series'!A50","v":1352},null,0.5004919226642652,0.12783882830843055,0,0.3716692490273043,0,{"$nulls":5},16109.151086956506,35277.619047619075,0.4566394082665205]
[{"$f":"'II. Headline series'!A51","v":1353},null,0.5002616805285411,0.12778001839856923,0,0.3719583010728896,0,{"$nulls":5},16116.56521739129,35344.30158730161,0.4559876555371403]
[{"$f":"'II. Headline series'!A52","v":1354},null,0.5000316501327591,0.12772126257266986,0,0.37224708729457096,0,{"$nulls":5},16123.979347826073,35410.984126984156,0.4553383574431401]
[{"$f":"'II. Headline series'!A53","v":1355},null,0.49980183118496646,0.12766256075616003,0,0.37253560805887354,0,{"$nulls":5},16131.393478260854,35477.66666666669,0.4546915001435882]
[{"$f":"'II. Headline series'!A54","v":1356},null,0.499572223393747,0.12760391287460437,0,0.37282386373164866,0,{"$nulls":5},16138.807608695635,35544.34920634923,0.4540470699014173]
[{"$f":"'II. Headline series'!A55","v":1357},null,0.49934282646821987,0.12754531885370424,0,0.3731118546780759,0,{"$nulls":5},16146.221739130418,35611.031746031775,0.45340505308245194]
[{"$f":"'II. Headline series'!A56","v":1358},null,0.49911364011803827,0.12748677861929736,0,0.3733995812626643,0,{"$nulls":5},16153.635869565202,35677.71428571431,0.4527654361544475]
[{"$f":"'II. Headline series'!A57","v":1359},null,0.49888466405338816,0.12742829209735768,0,0.37368704384925416,0,{"$nulls":5},16161.049999999983,35744.396825396856,0.45212820568613843]
[{"$f":"'II. Headline series'!A58","v":1360},null,0.49865589798498705,0.12736985921399474,0,0.37397424280101826,0,{"$nulls":5},16168.464130434764,35811.07936507939,0.4514933483462994]
[{"$f":"'II. Headline series'!A59","v":1361},null,0.4984273416240828,0.12731147989545372,0,0.37426117848046353,0,{"$nulls":5},16175.878260869547,35877.76190476194,0.4508608509028144]
[{"$f":"'II. Headline series'!A60","v":1362},null,0.4981989946824525,0.1272531540681148,0,0.37454785124943263,0,{"$nulls":5},16183.29239130433,35944.444444444474,0.45023070022175843]
[{"$f":"'II. Headline series'!A61","v":1363},null,0.4979708568724012,0.1271948816584932,0,0.37483426146910565,0,{"$nulls":5},16190.706521739112,36011.12698412702,0.44960288326648734]
[{"$f":"'II. Headline series'!A62","v":1364},null,0.4977429279067606,0.12713666259323847,0,0.37512040950000103,0,{"$nulls":5},16198.120652173893,36077.809523809556,0.4489773870967399]
[{"$f":"'II. Headline series'!A63","v":1365},null,0.49751520749888783,0.12707849679913452,0,0.37540629570197764,0,{"$nulls":5},16205.534782608676,36144.4920634921,0.448354198867748]
[{"$f":"'II. Headline series'!A64","v":1366},null,0.4972876953626646,0.12702038420309922,0,0.37569192043423616,0,{"$nulls":5},16212.94891304346,36211.17460317464,0.44773330582935766]
[{"$f":"'II. Headline series'!A65","v":1367},null,0.49706039121249557,0.12696232473218394,0,0.37597728405532044,0,{"$nulls":5},16220.36304347824,36277.857142857174,0.44711469532515935]
[{"$f":"'II. Headline series'!A66","v":1368},null,0.4968332947633074,0.1269043183135735,0,0.3762623869231192,0,{"$nulls":5},16227.777173913022,36344.53968253972,0.446498354791628]
[{"$f":"'II. Headline series'!A67","v":1369},null,0.4966064057305473,0.12684636487458553,0,0.3765472293948671,0,{"$nulls":5},16235.191304347805,36411.222222222255,0.44588427175727297]
[{"$f":"'II. Headline series'!A68","v":1370},null,0.49637972383018236,0.1267884643426706,0,0.376831811827147,0,{"$nulls":5},16242.605434782588,36477.9047619048,0.44527243384179593]
[{"$f":"'II. Headline series'!A69","v":1371},null,0.49615324877869776,0.12673061664541158,0,0.37711613457589066,0,{"$nulls":5},16250.01956521737,36544.58730158734,0.44466282875525975]
[{"$f":"'II. Headline series'!A70","v":1372},null,0.49592698029309606,0.12667282171052338,0,0.37740019799638064,0,{"$nulls":5},16257.433695652151,36611.26984126988,0.4440554442972649]
[{"$f":"'II. Headline series'!A71","v":1373},null,0.49570091809089556,0.1266150794658528,0,0.3776840024432517,0,{"$nulls":5},16264.847826086934,36677.95238095242,0.4434502683561362]
[{"$f":"'II. Headline series'!A72","v":1374},null,0.49547506189012963,0.1265573898393781,0,0.3779675482704922,0,{"$nulls":5},16272.261956521717,36744.63492063496,0.44284728890811703]
[{"$f":"'II. Headline series'!A73","v":1375},null,0.5213616686571219,0.13062299801450114,0,0.34801533332837714,0,{"$nulls":5},17694.051086956497,36878,{"$f":"M71/N71","v":0.47979963899768147}]
[{"$f":"'II. Headline series'!A74","v":1376},null,0.5211433001001889,0.13056828751832647,0,0.34828841238148467,0,{"$nulls":5},17701.46521739128,36944.682539682544,0.4791343165116661]
[{"$f":"'II. Headline series'!A75","v":1377},null,0.520925114390847,0.13051362283315393,0,0.3485612627759991,0,{"$nulls":5},17708.879347826063,37011.36507936508,0.47847139141861267]
[{"$f":"'II. Headline series'!A76","v":1378},null,0.5207071112995352,0.13045900390146892,0,0.34883388479899585,0,{"$nulls":5},17716.293478260846,37078.04761904762,0.4778108507838392]
[{"$f":"'II. Headline series'!A77","v":1379},null,0.5204892905970767,0.13040443066585297,0,0.3491062787370702,0,{"$nulls":5},17723.70760869563,37144.73015873016,0.4771526817655454]
[{"$f":"'II. Headline series'!A78","v":1380},null,0.5202716520546784,0.13034990306898378,0,0.3493784448763379,0,{"$nulls":5},17731.12173913041,37211.41269841271,0.47649687161398063]
[{"$f":"'II. Headline series'!A79","v":1381},null,0.520054195443929,0.13029542105363476,0,0.3496503835024363,0,{"$nulls":5},17738.535869565192,37278.095238095244,0.47584340767062105]
[{"$f":"'II. Headline series'!A80","v":1382},null,0.5198369205367993,0.13024098456267505,0,0.3499220949005256,0,{"$nulls":5},17745.949999999975,37344.77777777778,0.4751922773673539]
[{"$f":"'II. Headline series'!A81","v":1383},null,0.5196198271056413,0.1301865935390692,0,0.35019357935528966,0,{"$nulls":5},17753.364130434755,37411.460317460325,0.47454346822567284]
[{"$f":"'II. Headline series'!A82","v":1384},null,0.5194029149231865,0.13013224792587694,0,0.3504648371509367,0,{"$nulls":5},17760.778260869538,37478.14285714287,0.47389696785588065]
[{"$f":"'II. Headline series'!A83","v":1385},null,0.5191861837625462,0.1300779476662531,0,0.3507358685712007,0,{"$nulls":5},17768.19239130432,37544.82539682541,0.4732527639563002]
[{"$f":"'II. Headline series'!A84","v":1386},null,0.5189696333972101,0.13002369270344735,0,0.3510066738993425,0,{"$nulls":5},17775.606521739104,37611.507936507944,0.47261084431249445]
[{"$f":"'II. Headline series'!A85","v":1387},null,0.34605294345000753,0.08670079843347749,0,0.23433207276334916,0.33291418535316575,{"$nulls":5},26657.770652173887,37678.19047619049,0.7075119668769497]
[{"$f":"'II. Headline series'!A86","v":1388},null,0.34595672504083486,0.08667669168028505,0,0.23454496316439244,0.3328216201144877,{"$nulls":5},26665.184782608667,37744.87301587303,0.7064584578518791]
[{"$f":"'II. Headline series'!A87","v":1389},null,0.3458605601229502,0.08665259832890716,0,0.23475773521197438,0.33272910633616826,{"$nulls":5},26672.59891304345,37811.55555555557,0.7054086646568685]
[{"$f":"'II. Headline series'!A88","v":1390},null,0.34576444865175937,0.08662851836817115,0,0.23497038900476303,0.3326366439753064,{"$nulls":5},26680.013043478233,37878.238095238106,0.7043625676673787]
[{"$f":"'II. Headline series'!A89","v":1391},null,0.3456683905827178,0.0866044517869167,0,0.23518292464131682,0.3325442329890488,{"$nulls":5},26687.427173913013,37944.92063492065,0.7033201473968196]
[{"$f":"'II. Headline series'!A90","v":1392},null,0.3455723858713302,0.08658039857399587,0,0.2353953422200845,0.3324518733345895,{"$nulls":5},26694.841304347796,38011.603174603195,0.70228138449534]
[{"$f":"'II. Headline series'!A91","v":1393},null,0.34547643447315085,0.08655635871827316,0,0.23560764183940572,0.33235956496917024,{"$nulls":5},26702.25543478258,38078.28571428573,0.7012462597486305]
[{"$f":"'II. Headline series'!A92","v":1394},null,0.3453805363437834,0.0865323322086254,0,0.2358198235975108,0.3322673078500804,{"$nulls":5},26709.669565217362,38144.96825396827,0.7002147540767378]
[{"$f":"'II. Headline series'!A93","v":1395},null,0.34528469143888063,0.08650831903394178,0,0.23603188759252103,0.3321751019346565,{"$nulls":5},26717.083695652145,38211.65079365081,0.6991868485328934]
[{"$f":"'II. Headline series'!A94","v":1396},null,0.3451888997141448,0.08648431918312381,0,0.23624383392244888,0.33208294718028253,{"$nulls":5},26724.497826086925,38278.33333333336,0.6981625243023531]
[{"$f":"'II. Headline series'!A95","v":1397},null,0.34509316112532695,0.0864603326450853,0,0.236455662685198,0.33199084354438974,{"$nulls":5},26731.911956521708,38345.015873015895,0.69714176270125]
[{"$f":"'II. Headline series'!A96","v":1398},null,0.3449974756282275,0.0864363594087524,0,0.23666737397856347,0.33189879098445657,{"$nulls":5},26739.32608695649,38411.69841269843,0.6961245451754563]
[{"$f":"'II. Headline series'!A97","v":1399},null,0.3449018431786958,0.08641239946306349,0,0.23687896790023205,0.33180678945800873,{"$nulls":5},26746.74021739127,38478.380952380976,0.6951108532994611]
[{"$f":"'II. Headline series'!A98","v":1400},null,0.3375624159350465,0.08457356464280501,0.021008457674656755,0.2321095399784344,0.32474602176905737,{"$nulls":5},27328.279347826054,38545.06349206352,0.7089955722463133]
[{"$f":"'II. Headline series'!A99","v":1401},null,0.3374708604826994,0.08455062615616683,0.021002759650366375,0.23231781126428094,0.3246579424464864,{"$nulls":5},27335.693478260837,38611.74603174606,0.7079631533830612]
[{"$f":"'II. Headline series'!A100","v":1402},null,0.3373793546811876,0.08452770010914851,0.020997064716134075,0.23252596960389615,0.3245699108896336,{"$nulls":5},27343.10760869562,38678.428571428594,0.7069342943496346]
[{"$f":"'II. Headline series'!A101","v":1403},null,0.3372878984901333,0.08450478649163368,0.020991372869446915,0.23273401508913175,0.3244819270596543,{"$nulls":5},27350.521739130403,38745.11111111114,0.7059089767660248]
[{"$f":"'II. Headline series'!A102","v":1404},null,0.33719649186920253,0.084481885293517,0.020985684107794677,0.23294194781174005,0.3243939909177458,{"$nulls":5},27357.935869565183,38811.79365079368,0.7048871823785378]
[{"$f":"'II. Headline series'!A103","v":1405},null,0.33710513477810483,0.08445899650470405,0.02097999842866986,0.2331497678633737,0.3243061024251475,{"$nulls":5},27365.349999999966,38878.47619047622,0.7038688930587115]
[{"$f":"'II. Headline series'!A104","v":1406},null,0.3370138271765937,0.08443612011511135,0.020974315829567682,0.2333574753355863,0.32421826154314093,{"$nulls":5},27372.76413043475,38945.15873015876,0.7028540908022425]
[{"$f":"'II. Headline series'!A105","v":1407},null,0.3369225690244661,0.08441325611466637,0.02096863630798608,0.23356507031983212,0.32413046823304936,{"$nulls":5},27380.17826086953,39011.8412698413,0.7018427577279259]
[{"$f":"'II. Headline series'!A106","v":1408},null,0.3368313602815624,0.08439040449330744,0.020962959861425694,0.23377255290746643,0.32404272245623805,{"$nulls":5},27387.59239130431,39078.523809523846,0.7008348760766052]
[{"$f":"'II. Headline series'!A107","v":1409},null,0.33674020090776663,0.08436756524098381,0.020957286487389867,0.23397992318974567,0.32395502417411404,{"$nulls":5},27395.006521739095,39145.20634920638,0.6998304282101323]
[{"$f":"'II. Headline series'!A108","v":1410},null,0.33664909086300615,0.0843447383476556,0.02095161618338465,0.2341871812578274,0.32386737334812615,{"$nulls":5},27402.420652173878,39211.88888888892,0.6988293966103385]
[{"$f":"'II. Headline series'!A109","v":1411},null,0.33655803010725166,0.08432192380329381,0.020945948946918792,0.23439432720277067,0.323779769939765,{"$nulls":5},27409.83478260866,39278.571428571464,0.6978317638780158]
[{"$f":"'II. Headline series'!A110","v":1412},null,0.3364670186005173,0.08429912159788028,0.020940284775503738,0.234601361115536,0.3236922139105627,{"$nulls":5},27417.24891304344,39345.25396825401,0.6968375127319102]
[{"$f":"'II. Headline series'!A111","v":1413},null,0.33637605630286016,0.08427633172140765,0.020934623666653617,0.23480828308698548,0.32360470522209306,{"$nulls":5},27424.663043478224,39411.936507936545,0.6958466260077224]
[{"$f":"'II. Headline series'!A112","v":1414},null,0.33628514317438085,0.08425355416387943,0.020928965617885247,0.23501509320788302,0.3235172438359714,{"$nulls":5},27432.077173913007,39478.61904761908,0.6948590866571208]
[{"$f":"'II. Headline series'!A113","v":1415},null,0.3361942791752229,0.0842307889153099,0.02092331062671814,0.2352217915688945,0.32342982971385464,{"$nulls":5},27439.491304347786,39545.30158730163,0.6938748777467629]
[{"$f":"'II. Headline series'!A114","v":1416},null,0.3361034642655728,0.08420803596572414,0.02091765869067447,0.23542837826058768,0.3233424628174409,{"$nulls":5},27446.90543478257,39611.98412698417,0.6928939824573291]
[{"$f":"'II. Headline series'!A115","v":1417},null,0.3360126984056604,0.084185295305158,0.02091200980727911,0.2356348533734326,0.32325514310846987,{"$nulls":5},27454.319565217353,39678.66666666671,0.6919163840825631]
[{"$f":"'II. Headline series'!A116","v":1418},null,0.29273712759353776,0.07334294700819123,0.018218721233565296,0.20552236597425855,0.2816226366515717,null,0.12855620153887537,{"$nulls":3},31512.91425120769,39745.349206349245,0.7928704837287871]
[{"$f":"'II. Headline series'!A117","v":1419},null,0.2926186298405329,0.07331325834351562,0.018211346434384382,0.2056743496178096,0.2815086379595956,null,0.12867377780416198,{"$nulls":3},31525.675603864693,39812.03174603179,0.7918630178176469]
[{"$f":"'II. Headline series'!A118","v":1420},null,0.29250022798268077,0.0732835937046039,0.01820397760331237,0.2058262102675118,0.2813947315218749,null,0.12879125892001633,{"$nulls":3},31538.436956521695,39878.71428571433,0.7908589211417892]
[{"$f":"'II. Headline series'!A119","v":1421},null,0.2923819219036227,0.07325395306230331,0.018196614733107578,0.20597794807260528,0.2812809172264689,null,0.12890864500189225,{"$nulls":3},31551.1983091787,39945.39682539687,0.7898581768279938]
[{"$f":"'II. Headline series'!A120","v":1422},null,0.29226371148718827,0.07322433638750829,0.01818925781654005,0.20612956318208875,0.2811671949616178,null,0.1290259361650568,{"$nulls":3},31563.959661835706,40012.07936507941,0.7888607681155204]
[{"$f":"'II. Headline series'!A121","v":1423},null,0.2921455966173948,0.0731947436511603,0.01818190684639152,0.20628105574472014,0.2810535646157425,null,0.12914313252459084,{"$nulls":3},31576.72101449271,40078.76190476195,0.7878666783551745]
[{"$f":"'II. Headline series'!A122","v":1424},null,0.2920275771784469,0.07316517482424774,0.018174561815455372,0.20643242590901686,0.28094002607744406,null,0.1292602341953891,{"$nulls":3},31589.482367149714,40145.444444444496,0.7868758910083808]
[{"$f":"'II. Headline series'!A123","v":1425},null,0.2919096530547363,0.07313562987780589,0.01816722271653664,0.2065836738232566,0.2808265792355037,null,0.12937724129216083,{"$nulls":3},31602.24371980672,40212.12698412703,0.7858883896462652]
[{"$f":"'II. Headline series'!A124","v":1426},null,0.2917918241308416,0.07310610878291682,0.01815988954245197,0.2067347996354775,0.280713223978882,null,0.1294941539294301,{"$nulls":3},31615.005072463726,40278.80952380957,0.7849041579487471]
[{"$f":"'II. Headline series'!A125","v":1427},null,0.2916740902915273,0.07307661151070921,0.018152562286029607,0.20688580349347882,0.2805999601967189,null,0.12961097222153603,{"$nulls":3},31627.76642512073,40345.492063492115,0.7839231797036406]
[{"$f":"'II. Headline series'!A126","v":1428},null,0.2915564514217438,0.0730471380323583,0.018145240940109338,0.20703668554482255,0.28048678777833286,null,0.12972769628263325,{"$nulls":3},31640.527777777774,40412.17460317466,0.782945438805765]
[{"$f":"'II. Headline series'!A127","v":1429},null,0.29150718695564587,0.07303479521422618,0.018142174928011946,0.20700170243357152,0.2804393937598502,null,0.1298747467086942,{"$nulls":3},31645.875,40478.857142857196,0.7817877586888383]
[{"$f":"'II. Headline series'!A128","v":1430},null,0.2914579391352274,0.07302245656653597,0.018139109951871266,0.20696673114255726,0.2803920157550525,null,0.13002174744875566,{"$nulls":3},31651.22222222222,40545.53968253973,0.7806338864901654]
[{"$f":"'II. Headline series'!A129","v":1431},null,0.29140870795205315,0.07301012208717429,0.01813604601116233,0.2069317716657899,0.2803446537558248,null,0.1301686985279955,{"$nulls":3},31656.569444444445,40612.22222222228,0.7794838034527088]
[{"$f":"'II. Headline series'!A130","v":1432},null,0.2913594933976939,0.07299779177402926,0.01813298310536054,0.20689682399728382,0.28029730775405787,null,0.13031559997157469,{"$nulls":3},31661.916666666664,40678.90476190482,0.7783374909424201]
[{"$f":"'II. Headline series'!A131","v":1433},null,0.2913102954637259,0.0729854656249904,0.01812992123394164,0.20686188813105716,0.28024997774164784,null,0.130462451804637,{"$nulls":3},31667.26388888889,40745.58730158736,0.7771949304472341]
[{"$f":"'II. Headline series'!A132","v":1434},null,0.2912611141417313,0.07297314363794867,0.01812686039638173,0.2068269640611324,0.28020266371049646,null,0.1306092540523095,{"$nulls":3},31672.61111111111,40812.269841269896,0.776056103576071]
[{"$f":"'II. Headline series'!A133","v":1435},null,0.2912119494232977,0.07296082581079641,0.01812380059215727,0.20679205178153579,0.2801553656525107,null,0.13075600673970203,{"$nulls":3},31677.958333333336,40878.95238095244,0.7749209920578515]
[{"$f":"'II. Headline series'!A134","v":1436},null,0.2911628013000187,0.07294851214142745,0.018120741820745065,0.20675715128629782,0.2801080835596033,null,0.13090270989190772,{"$nulls":3},31683.305555555555,40945.634920634984,0.773789577740518]
[{"$f":"'II. Headline series'!A135","v":1437},null,0.2911136697634931,0.07293620262773697,0.018117684081622277,0.20672226256945286,0.2800608174236922,null,0.1310493635340025,{"$nulls":3},31688.65277777778,41012.31746031752,0.7726618425900686]
[{"$f":"'II. Headline series'!A136","v":1438},null,0.29632799336738785,0.07311919980744029,0.01850177850284828,0.21119877332334874,0.28223190963957456,null,0.1186203453594002,{"$nulls":3},35054.0625,41079,0.8533329073249105]
[{"$f":"'II. Headline series'!A137","v":1439},null,0.296282068902459,0.07310786790427101,0.018498911125155337,0.21116604205638914,0.2821881697644154,null,0.11875694024731001,{"$nulls":3},35059.49596774194,41146.74193548387,{"$f":"M135/N135","v":0.8520600737407972}]
[{"$f":"'II. Headline series'!A138","v":1440},null,0.29623615866993286,0.07309653951295997,0.018496044636088407,0.21113332093314216,0.28214444344463513,null,0.11889349280324146,{"$nulls":3},35064.92943548387,41214.48387096774,0.8507914243270257]
[{"$f":"'II. Headline series'!A139","v":1441},null,0.2961902626631944,0.07308521463187487,0.018493179035234467,0.2111006099488931,0.2821007306739332,null,0.11903000304687009,{"$nulls":3},35070.3629032258,41282.22580645161,0.8495269384855936]
[{"$f":"'II. Headline series'!A140","v":1442},null,0.2961443808756325,0.07307389325938442,0.018490314322180738,0.21106790909893006,0.2820570314460131,null,0.1191664709978592,{"$nulls":3},35075.79637096774,41349.967741935485,0.848266595753478]
[{"$f":"'II. Headline series'!A141","v":1443},null,0.29609851330064035,0.07306257539385837,0.01848745049651471,0.21103521837854425,0.2820133457545822,null,0.11930289667586,{"$nulls":3},35081.22983870968,41417.709677419356,0.8470103758015312]
[{"$f":"'II. Headline series'!A142","v":1444},null,0.29605265993161517,0.0730512610336675,0.01848458755782413,0.21100253778302974,0.28196967359335195,null,0.11943928010051151,{"$nulls":3},35086.66330645161,41485.45161290323,0.8457582584333878]
[{"$f":"'II. Headline series'!A143","v":1445},null,0.29600682076195817,0.07303995017718355,0.018481725505696992,0.2109698673076835,0.28192601495603736,null,0.11957562129144053,{"$nulls":3},35092.096774193546,41553.1935483871,0.8445102235843834]
[{"$f":"'II. Headline series'!A144","v":1446},null,0.29596099578507473,0.07302864282277927,0.01847886433972154,0.2109372069478053,0.2818823698363575,null,0.1197119202682617,{"$nulls":3},35097.530241935485,41620.93548387097,0.8432662513204815]
[{"$f":"'II. Headline series'!A145","v":1447},null,0.29591518499437425,0.07301733896882845,0.018476004059486288,0.21090455669869798,0.28183873822803535,null,0.11984817705057761,{"$nulls":3},35102.963709677424,41688.67741935484,0.8420263218372128]
[{"$f":"'II. Headline series'!A146","v":1448},null,0.29586938838327037,0.07300603861370587,0.018473144664580003,0.2108719165556673,0.2817951201247978,null,0.11998439165797864,{"$nulls":3},35108.397177419356,41756.41935483871,0.8407904154586237]
[{"$f":"'II. Headline series'!A147","v":1449},null,0.2958236059451806,0.07299474175578735,0.018470286154591693,0.2108392865140218,0.2817515155203756,null,0.12012056411004307,{"$nulls":3},35113.83064516129,41824.16129032258,0.8395585126362366]
[{"$f":"'II. Headline series'!A148","v":1450},null,0.2957778376735266,0.07298344839344963,0.018467428529110624,0.21080666656907296,0.2817079244085032,null,0.12025669442633702,{"$nulls":3},35119.26411290323,41891.903225806454,0.8383305939480182]
[{"$f":"'II. Headline series'!A149","v":1451},null,0.2957320835617342,0.07297215852507052,0.01846457178772633,0.21077405671613517,0.28166434678291913,null,0.12039278262641456,{"$nulls":3},35124.69758064517,41959.645161290326,0.8371066400973594]
[{"$f":"'II. Headline series'!A150","v":1452},null,0.29568634360323326,0.07296087214902885,0.01846171593002859,0.21074145695052582,0.28162078263736584,null,0.12052882872981767,{"$nulls":3},35130.1310483871,42027.3870967742,0.8358866319120635]
[{"$f":"'II. Headline series'!A151","v":1453},null,0.2956406177914575,0.07294958926370441,0.01845886095560743,0.21070886726756505,0.28157723196558954,null,0.12066483275607617,{"$nulls":3},35135.56451612903,42095.12903225807,0.8346705503433466]
[{"$f":"'II. Headline series'!A152","v":1454},null,0.29559490611984496,0.07293830986747799,0.018456006864053135,0.2106762876625759,0.28153369476134016,null,0.12080079472470785,{"$nulls":3},35140.99798387097,42162.87096774194,0.8334583764648456]
[{"$f":"'II. Headline series'!A153","v":1455},null,0.2955492085818376,0.0729270339587314,0.01845315365495625,0.2106437181308844,0.2814901710183718,null,0.12093671465521844,{"$nulls":3},35146.43145161291,42230.6129032258,0.8322500914716355]
[{"$f":"'II. Headline series'!A154","v":1456},null,0.2955035251708815,0.07291576153584747,0.018450301327907564,0.2106111586678195,0.28144666073044233,null,0.12107259256710161,{"$nulls":3},35151.86491935484,42298.354838709674,0.8310456766792578]
[{"$f":"'II. Headline series'!A155","v":1457},null,0.2954578558804268,0.07290449259721,0.018447449882498128,0.21057860926871286,0.28140316389131337,null,0.12120842847983895,{"$nulls":3},35157.29838709677,42366.096774193546,0.8298451135227575]
[{"$f":"'II. Headline series'!A156","v":1458},null,0.29541220070392754,0.07289322714120378,0.01844459931831923,0.21054606992889913,0.28135968049475035,null,0.1213442224129,{"$nulls":3},35162.73185483871,42433.83870967742,0.828648383555729]
[{"$f":"'II. Headline series'!A157","v":1459},null,0.295366559634842,0.07288196516621462,0.018441749634962427,0.21051354064371583,0.2813162105345227,null,0.12147997438574229,{"$nulls":3},35168.16532258065,42501.58064516129,0.8274554684493709]
[{"$f":"'II. Headline series'!A158","v":1460},null,0.29532093266663245,0.07287070667062934,0.018438900832019524,0.2104810214085035,0.2812727540044038,null,0.12161568441781137,{"$nulls":3},35173.59879032258,42569.32258064516,0.8262663499915509]
[{"$f":"'II. Headline series'!A159","v":1461},null,0.2952753197927651,0.07285945165283572,0.018436052909082574,0.2104485122186053,0.28122931089817066,null,0.12175135252854072,{"$nulls":3},35179.032258064515,42637.06451612903,0.8250810100858786]
[{"$f":"'II. Headline series'!A160","v":1462},null,0.2952297210067103,0.07284820011122256,0.01843320586574388,0.21041601306936739,0.2811858812096041,null,0.1218869787373518,{"$nulls":3},35184.465725806454,42704.8064516129,0.8238994307507881]
[{"$f":"'II. Headline series'!A161","v":1463},null,0.29518413630194235,0.07283695204417964,0.018430359701596004,0.21038352395613885,0.28114246493248896,null,0.12202256306365412,{"$nulls":3},35189.899193548394,42772.54838709677,0.8227215941186277]
[{"$f":"'II. Headline series'!A162","v":1464},null,0.29513856567193975,0.07282570745009777,0.01842751441623176,0.21035104487427164,0.28109906206061386,null,0.12215810552684521,{"$nulls":3},35195.332661290326,42840.290322580644,0.8215474824347596]
[{"$f":"'II. Headline series'!A163","v":1465},null,0.29509300911018477,0.0728144663273687,0.01842467000924421,0.2103185758191205,0.2810556725877713,null,0.1222936061463106,{"$nulls":3},35200.76612903226,42908.032258064515,0.8203770780566688]
[{"$f":"'II. Headline series'!A164","v":1466},null,0.2950474666101639,0.0728032286743852,0.01842182648022666,0.21028611678604303,0.2810122965077574,null,0.1224290649414238,{"$nulls":3},35206.1995967742,42975.77419354839,0.8192103634530783]
[{"$f":"'II. Headline series'!A165","v":1467},null,0.2950019381653675,0.07279199448954105,0.018418983828772675,0.2102536677703998,0.2809689338143724,null,0.12256448193154648,{"$nulls":3},35211.633064516136,43043.51612903226,0.8180473212030738]
[{"$f":"'II. Headline series'!A166","v":1468},null,0.29495642376929027,0.07278076377123101,0.018416142054476083,0.2102212287675542,0.2809255845014202,null,0.12269985713602828,{"$nulls":3},35217.06653225807,43111.25806451613,0.8168879339952367]
[{"$f":"'II. Headline series'!A167","v":1469},null,0.29491092341543046,0.0727695365178508,0.01841330115693094,0.21018879977287244,0.2808822485627085,null,0.12283519057420693,{"$nulls":3},35222.5,43179,0.8157321846267862]
[{"$f":"'II. Headline series'!A168","v":1470},null,0.29486543709729063,0.07275831272779716,0.018410461135731557,0.2101563807817236,0.28083892599204885,null,0.12297048226540817,{"$nulls":3},35227.93346774194,43246.74193548387,0.8145800560027271]
[{"$f":"'II. Headline series'!A169","v":1471},null,0.29481996480837724,0.07274709239946782,0.01840762199047251,0.21012397178947967,0.28079561678325676,null,0.12310573222894591,{"$nulls":3},35233.36693548388,43314.48387096774,0.8134315311350075]
[{"$f":"'II. Headline series'!A170","v":1472},null,0.29477450654220094,0.0727358755312615,0.01840478372074861,0.21009157279151547,0.28075232093015134,null,0.12324094048412211,{"$nulls":3},35238.80040322581,43382.22580645161,0.8122865931416836]
[{"$f":"'II. Headline series'!A171","v":1473},null,0.29472906229227613,0.07272466212157788,0.018401946326154932,0.21005918378320865,0.2807090384265557,null,0.12337610705022682,{"$nulls":3},35244.23387096774,43449.967741935485,0.8111452252460932]
[{"$f":"'II. Headline series'!A172","v":1474},null,0.2946836320521213,0.07271345216881764,0.018399109806286777,0.21002680475993965,0.2806657692662965,null,0.12351123194653815,{"$nulls":3},35249.66733870968,43517.709677419356,0.8100074107760357]
[{"$f":"'II. Headline series'!A173","v":1475},null,0.2946382158152589,0.07270224567138248,0.01839627416073972,0.20999443571709192,0.2806225134432045,null,0.12364631519232241,{"$nulls":3},35255.10080645162,43585.45161290323,0.80887313316296]
[{"$f":"'II. Headline series'!A174","v":1476},null,0.29459281357521555,0.07269104262767503,0.01839343938910958,0.20996207665005165,0.2805792709511141,null,0.12378135680683404,{"$nulls":3},35260.53427419355,43653.1935483871,0.8077423759411609]
[{"$f":"'II. Headline series'!A175","v":1477},null,0.2945474253255217,0.07267984303609895,0.01839060549099241,0.20992972755420788,0.28053604178386365,null,0.12391635680931551,{"$nulls":3},35265.967741935485,43720.93548387097,0.8066151227469825]
[{"$f":"'II. Headline series'!A176","v":1478},null,0.2945020510597118,0.07266864689505884,0.01838777246598453,0.20989738842495245,0.2804928259352949,null,0.12405131521899751,{"$nulls":3},35271.401209677424,43788.67741935484,0.8054913573180282]
[{"$f":"'II. Headline series'!A177","v":1479},null,0.2944566907713242,0.07265745420296033,0.0183849403136825,0.20986505925768012,0.2804496233992539,null,0.12418623205509886,{"$nulls":3},35276.83467741936,43856.41935483871,0.8043710634923789]
[{"$f":"'II. Headline series'!A178","v":1480},null,0.29441134445390155,0.07264626495821,0.01838210903368313,0.20983274004778854,0.2804064341695902,null,0.1243211073368266,{"$nulls":3},35282.268145161295,43924.16129032258,0.803254225207818]
[{"$f":"'II. Headline series'!A179","v":1481},null,0.2943660121009901,0.07263507915921544,0.01837927862558348,0.209800430790678,0.28036325824015723,null,0.12445594108337585,{"$nulls":3},35287.70161290323,43991.903225806454,0.8021408265010643]
[{"$f":"'II. Headline series'!A180","v":1482},null,0.2943206937061403,0.07262389680438515,0.01837644908898085,0.20976813148175175,0.2803200956048121,null,0.12459073331392992,{"$nulls":3},35293.13508064517,44059.645161290326,0.8010308515070115]
[{"$f":"'II. Headline series'!A181","v":1483},null,0.29427538926290636,0.07261271789212871,0.018373620423472802,0.20973584211641585,0.2802769462574158,null,0.12472548404766037,{"$nulls":3},35298.568548387106,44127.3870967742,0.7999242844579734]
[{"$f":"'II. Headline series'!A182","v":1484},null,0.2942300987648469,0.07260154242085662,0.018370792628657137,0.20970356269007925,0.2802338101918332,null,0.12486019330372695,{"$nulls":3},35304.00201612904,44195.12903225807,0.7988211096829384]
[{"$f":"'II. Headline series'!A183","v":1485},null,0.29418482220552394,0.07259037038898038,0.018367965704131902,0.20967129319815364,0.28019068740193265,null,0.12499486110127757,{"$nulls":3},35309.43548387097,44262.87096774194,0.7977213116068298]
[{"$f":"'II. Headline series'!A184","v":1486},null,0.2941395595785038,0.07257920179491241,0.01836513964949539,0.2096390336360535,0.28014757788158656,null,0.12512948745944832,{"$nulls":3},35314.86895161291,44330.6129032258,0.7966248747497726]
[{"$f":"'II. Headline series'!A185","v":1487},null,0.2940943108773567,0.07256803663706618,0.018362314464346153,0.20960678399919624,0.28010448162467094,null,0.12526407239736365,{"$nulls":3},35320.30241935485,44398.354838709674,0.7955317837263661]
[{"$f":"'II. Headline series'!A186","v":1488},null,0.29404907609565695,0.07255687491385614,0.018359490148282986,0.2095745442830021,0.2800613986250657,null,0.12539861593413618,{"$nulls":3},35325.73588709678,44466.096774193546,0.794442023244966]
[{"$f":"'II. Headline series'!A187","v":1489},null,0.29400385522698247,0.07254571662369766,0.018356666700904915,0.20954231448289398,0.2800183288766544,null,0.1255331180888667,{"$nulls":3},35331.16935483871,44533.83870967742,0.7933555781069705]
[{"$f":"'II. Headline series'!A188","v":1490},null,0.29395864826491536,0.07253456176500708,0.01835384412181123,0.20951009459429773,0.27997527237332437,null,0.12566757888064428,{"$nulls":3},35336.60282258065,44601.58064516129,0.792272433206114]
[{"$f":"'II. Headline series'!A189","v":1491},null,0.29391345520304163,0.07252341033620179,0.01835102241060146,0.20947788461264194,0.27993222910896676,null,0.12580199832854635,{"$nulls":3},35342.03629032259,44669.32258064516,0.791192573527766]
[{"$f":"'II. Headline series'!A190","v":1492},null,0.29386827603495136,0.07251226233570009,0.018348201566875392,0.20944568453335816,0.27988919907747645,null,0.12593637645163855,{"$nulls":3},35347.46975806452,44737.06451612903,0.7901159841482384]
[{"$f":"'II. Headline series'!A191","v":1493},null,0.29382311075423834,0.07250111776192127,0.01834538159023304,0.20941349435188056,0.27984618227275215,null,0.12607071326897476,{"$nulls":3},35352.903225806454,44804.8064516129,0.7890426502340979]
[{"$f":"'II. Headline series'!A192","v":1494},null,0.2937779593545004,0.07248997661328557,0.018342562480274674,0.20938131406364616,0.2798031786886961,null,0.12620500879959715,{"$nulls":3},35358.336693548394,44872.54838709677,0.7879725570414847]
[{"$f":"'II. Headline series'!A193","v":1495},null,0.29373282182933935,0.07247883888821424,0.018339744236600806,0.20934914366409482,0.27976018831921445,null,0.12633926306253626,{"$nulls":3},35363.77016129033,44940.290322580644,0.7869056899154364]
[{"$f":"'II. Headline series'!A194","v":1496},null,0.2936876981723609,0.0724677045851295,0.01833692685881221,0.2093169831486693,0.2797172111582172,null,0.1264734760768109,{"$nulls":3},35369.203629032265,45008.032258064515,0.7858420342892203]
[{"$f":"'II. Headline series'!A195","v":1497},null,0.2936425883771747,0.07245657370245448,0.01833411034650988,0.209284832512815,0.27967424719961786,null,0.12660764786142814,{"$nulls":3},35374.6370967742,45075.77419354839,0.7847815756836697]
[{"$f":"'II. Headline series'!A196","v":1498},null,0.2935974924373942,0.07244544623861333,0.018331294699295064,0.2092526917519801,0.2796312964373338,null,0.12674177843538345,{"$nulls":3},35380.070564516136,45143.51612903226,0.7837242997065276]
[{"$f":"'II. Headline series'!A197","v":1499},null,0.293552410346637,0.07243432219203118,0.018328479916769266,0.20922056086161575,0.2795883588652861,null,0.1268758678176606,{"$nulls":3},35385.504032258075,45211.25806451613,0.7826701920517943]
[{"$f":"'II. Headline series'!A198","v":1500},null,0.298056824340017,0.07264328662486129,0.018657583030115353,0.2130525663853836,0.28159273309075894,null,0.11599700652886377,{"$nulls":3},38751,45279,0.855827204664414]
[{"$f":"'II. Headline series'!A199","v":1501},null,0.29733837140563546,0.07310888676715076,0.018913058327996172,0.2131439450941197,0.2814134371078985,null,0.11608230129719917,{"$nulls":3},38940.82000000001,45490.49,0.8560211156221885]
[{"$f":"'II. Headline series'!A200","v":1502},null,0.2966268888012054,0.07356996972193658,0.019166055040244677,0.2132344372593957,0.2812358806296038,null,0.11616676854761385,{"$nulls":3},39130.64,45701.979999999996,0.8562132318993619]
[{"$f":"'II. Headline series'!A201","v":1503},null,0.2959222755786683,0.07402660090955195,0.019416609063067934,0.2133240557206096,0.2810600384634361,null,0.11625042026466632,{"$nulls":3},39320.45999999999,45913.469999999994,{"$f":"M199/N199","v":0.8564035782963039}]
[{"$f":"'II. Headline series'!A202","v":1504},null,0.2952244327299124,0.07447884449312939,0.01966475560284564,0.21341281307042118,0.28088588590108693,null,0.1163332682026045,{"$nulls":3},39510.28,46124.95999999999,0.8565921791585295]
[{"$f":"'II. Headline series'!A203","v":1505},null,0.29453326314039513,0.0749267634086564,0.01991052919262168,0.2135007216606507,0.2807133987068041,null,0.11641532389087181,{"$nulls":3},39700.100000000006,46336.44999999999,0.85677905838708]
[{"$f":"'II. Headline series'!A204","v":1506},null,0.29384867154408933,0.07537041939417276,0.020153963708124757,0.21358779360800922,0.280542553106148,null,0.11649659863945579,{"$nulls":3},39889.920000000006,46547.93999999999,0.8569642394486204]
[{"$f":"'II. Headline series'!A205","v":1507},null,0.29317056447970974,0.07580987301813834,0.020395092383333823,0.21367404079966584,0.28037332577506724,null,0.11657710354408488,{"$nulls":3},40079.740000000005,46759.429999999986,0.8571477453852627]
[{"$f":"'II. Headline series'!A206","v":1508},null,0.2924988502481776,0.07624518370699855,0.020633947825603263,0.21375947489865796,0.28020569382928434,null,0.11665684949127832,{"$nulls":3},40269.56,46970.919999999984,0.8573295988241237]
[{"$f":"'II. Headline series'!A207","v":1509},null,0.2918334388712828,0.07667640977197378,0.020870562030362305,0.2138441073491487,0.2800396348139787,null,0.11673584716325364,{"$nulls":3},40459.380000000005,47182.40999999998,0.8575098219866264]
[{"$f":"'II. Headline series'!A208","v":1510},null,0.29117424205150416,0.07710360843509836,0.021104966395402616,0.2139279493815376,0.2798751266937601,null,0.11681410704269705,{"$nulls":3},40649.200000000004,47393.89999999998,0.8576884366975501]
[{"$f":"'II. Headline series'!A209","v":1511},null,0.2905211731329499,0.07752683585453325,0.021337191734767388,0.21401101201742842,0.2797121478429206,null,0.11689163941740034,{"$nulls":3},40839.020000000004,47605.38999999998,0.8578654643938433]
[{"$f":"'II. Headline series'!A210","v":1512},null,0.2898741470633829,0.07794614714917607,0.021567268292254915,0.21409330607445887,0.27955067703595793,null,0.1169684543847694,{"$nulls":3},41028.84,47816.879999999976,0.8580409261331985]
[{"$f":"'II. Headline series'!A211","v":1513},null,0.28923308035729456,0.07836159642259115,0.021795225754549032,0.2141748421709973,0.27939069343836,null,0.11704456185620787,{"$nulls":3},41218.66,48028.36999999997,0.8582148426024041]
[{"$f":"'II. Headline series'!A212","v":1514},null,0.28859789105999556,0.07877323678628148,0.02202109326398844,0.21425563073071022,0.27923217659764354,null,0.11711997156138071,{"$nulls":3},41408.48,48239.85999999997,0.8583872341254728]
[{"$f":"'II. Headline series'!A213","v":1515},null,0.28796849871268787,0.07918112038232333,0.022244899430986363,0.21433568198700426,0.2790751064346377,null,0.11719469305236035,{"$nulls":3},41598.3,48451.34999999997,0.8585581206715608]
[{"$f":"'II. Headline series'!A214","v":1516},null,0.2873448243184907,0.07958529840538416,0.02246667234611177,0.2144150059873476,0.2789194632350053,null,0.11726873570766053,{"$nulls":3},41788.119999999995,48662.83999999997,0.8587275218626784]
[{"$f":"'II. Headline series'!A215","v":1517},null,0.28672679030938647,0.07998582112414285,0.022686439591842765,0.2144936125974738,0.27876522764099404,null,0.11734210873616005,{"$nulls":3},41977.94,48874.329999999965,0.8588954569812012]
[{"$f":"'II. Headline series'!A216","v":1518},null,0.2861143205140611,0.08038273790213189,0.022904228254002585,0.2145715115054724,0.2786123806434107,null,0.11741482118092121,{"$nulls":3},42167.76,49085.81999999996,0.8590619449771856]
[{"$f":"'II. Headline series'!A217","v":1519},null,0.28550734012660794,0.08077609721801862,0.023120064932888047,0.21464871222576926,0.27846090357381104,null,0.117486881922905,{"$nulls":3},42357.58,49297.30999999996,0.8592270044754985]
[{"$f":"'II. Headline series'!A218","v":1520},null,0.28490577567606973,0.08116594668534392,0.02333397575410014,0.21472522410300046,0.2783107780968987,null,0.11755829968458716,{"$nulls":3},42547.399999999994,49508.79999999996,0.8593906537827625]
[{"$f":"'II. Headline series'!A219","v":1521},null,0.28430955499679217,0.08155233307173469,0.023545986379085962,0.2148010563157828,0.2781619862031266,null,0.11762908303347767,{"$nulls":3},42737.22,49720.28999999996,0.8595529108941247]
[{"$f":"'II. Headline series'!A220","v":1522},null,0.2837186071995648,0.08193530231760685,0.02375612201540102,0.21487621788038494,0.27801451020149504,null,0.11769924038554727,{"$nulls":3},42927.04,49931.779999999955,0.859713793499852]
[{"$f":"'II. Headline series'!A221","v":1523},null,0.28313286264352294,0.08231489955437389,0.023964407426700373,0.21495071765430043,0.27786833271253947,null,0.11776878000856285,{"$nulls":3},43116.86,50143.26999999995,0.8598733189917618]
[{"$f":"'II. Headline series'!A222","v":1524},null,0.2825522529087893,0.08269116912217703,0.02417086694246708,0.21502456433972772,0.2777234366615031,null,0.11783771002533566,{"$nulls":3},43306.68,50354.75999999995,0.860031504469489]
[{"$f":"'II. Headline series'!A223","v":1525},null,0.2819767107698323,0.08306415458715073,0.024375524467485896,0.21509776648695872,0.27757980527168813,null,0.1179060384168842,{"$nulls":3},43496.5,50566.24999999995,0.8601883667465957]
[{"$f":"'II. Headline series'!A224","v":1526},null,0.2814061701695178,0.08343389875823833,0.02457840349106998,0.21517033249767892,0.2774374220579802,null,0.1179737730255147,{"$nulls":3},43686.32,50777.73999999995,0.8603439223565296]
[{"$f":"'II. Headline series'!A225","v":1527},null,0.28084056619383585,0.08380044370357105,0.02477952709604811,0.21524227062818196,0.27729627082054126,null,0.11804092155782173,{"$nulls":3},43876.14,50989.229999999945,0.8604981875584323]
[{"$f":"'II. Headline series'!A226","v":1528},null,0.2802798350472794,0.08416383076642384,0.024978917967519606,0.21531358899250125,0.2771563356386649,null,0.11810749158761102,{"$nulls":3},44065.96,51200.71999999994,0.8606511783428055]
[{"$f":"'II. Headline series'!A227","v":1529},null,0.27972391402885705,0.08452410058076035,0.025176598401383962,0.2153842955654606,0.27701760086479055,null,0.11817349055874746,{"$nulls":3},44255.78,51412.20999999994,0.8608029104370353]
[{"$f":"'II. Headline series'!A228","v":1530},null,0.279172741508721,0.0848812930863798,0.025372590312651877,0.21545439818564718,0.2768800511186705,null,0.11823892578792962,{"$nulls":3},44445.6,51623.69999999994,0.8609533993107826]
[{"$f":"'II. Headline series'!A229","v":1531},null,0.27862625690539067,0.08523544754367725,0.02556691524354426,0.2155239045583082,0.2767436712816857,null,0.11830380446739394,{"$nulls":3},44635.42,51835.18999999994,0.8611026601812408]
[{"$f":"'II. Headline series'!A230","v":1532},null,0.278084400663555,0.0855866025480288,0.025759594371385416,0.2155928222581742,0.27660844649130667,null,0.1183681336675499,{"$nulls":3},44825.24,52046.679999999935,0.8612507080182646]
[{"$f":"'II. Headline series'!A231","v":1533},null,0.27754711423243716,0.08593479604381295,0.025950648516296554,0.21566115873221098,0.27647436213569365,null,0.1184319203395487,{"$nulls":3},45015.06,52258.16999999993,0.8613975575493756]
[{"$f":"'II. Headline series'!A232","v":1534},null,0.27701434004470343,0.08628006533807861,0.02614009814869546,0.2157289213023019,0.2763414038484336,null,0.11849517131778704,{"$nulls":3},45204.88,52469.65999999993,0.8615432232646458]
[{"$f":"'II. Headline series'!A233","v":1535},null,0.2764860214959018,0.08662244711387018,0.026327963396607982,0.21579611716786323,0.2762095575034085,null,0.11855789332234833,{"$nulls":3},45394.7,52681.14999999993,0.861687719421464]
[{"$f":"'II. Headline series'!A234","v":1536},null,0.27596210292441414,0.08696197744321982,0.02651426405279688,0.21586275340839392,0.27607880920979266,null,0.11862009296138262,{"$nulls":3},45584.52,52892.63999999993,0.8618310600491875]
[{"$f":"'II. Headline series'!A235","v":1537},null,0.27544252959190707,0.0872986917998163,0.02669901958171326,0.21592883698596202,0.2759491453071738,null,0.11868177673342763,{"$nulls":3},45774.34,53104.129999999925,0.8619732589536833]
[{"$f":"'II. Headline series'!A236","v":1538},null,0.27492724766426746,0.08763262507136002,0.026882249126275785,0.21599437474762948,0.2758205523607954,null,0.11874295102967194,{"$nulls":3},45964.159999999996,53315.61999999992,0.86211432972176]
[{"$f":"'II. Headline series'!A237","v":1539},null,0.27441620419300816,0.08796381157161318,0.02706397151448262,0.2160593734278171,0.2756930171569164,null,0.1188036221361626,{"$nulls":3},46153.979999999996,53527.10999999992,0.8622542857254962]
[{"$f":"'II. Headline series'!A238","v":1540},null,0.27390934709713094,0.08829228505215375,0.027244205265860817,0.21612383965061133,0.2755665266982849,null,0.11886379623595834,{"$nulls":3},46343.799999999996,53738.59999999992,0.8623931401264653]
[{"$f":"'II. Headline series'!A239","v":1541},null,0.27340662514543285,0.08861807871384181,0.027422968597757932,0.21618777993201477,0.2754410681997226,null,0.11892347941123013,{"$nulls":3},46533.619999999995,53950.08999999992,0.8625309058798617]
[{"$f":"'II. Headline series'!A240","v":1542},null,0.27290798793924453,0.08894122521800628,0.02760027943148023,0.21625120068214157,0.2753166290838169,null,0.11898267764531051,{"$nulls":3},46723.439999999995,54161.579999999914,0.8626675957385304]
[{"$f":"'II. Headline series'!A241","v":1543},null,0.2724133858955872,0.08926175669736026,0.027776155398281863,0.21631410820735975,0.27519319697671774,null,0.11904139682469321,{"$nulls":3},46913.259999999995,54373.06999999991,0.8628032222569016]
[{"$f":"'II. Headline series'!A242","v":1544},null,0.27192277023073685,0.08957970476665227,0.02795061384520928,0.21637650871238143,0.2750707597040357,null,0.11909964274098438,{"$nulls":3},47103.08,54584.55999999991,0.8629377977948357]
[{"$f":"'II. Headline series'!A243","v":1545},null,0.2714360929441844,0.08989510053306107,0.02812367184080487,0.21643840830230332,0.27494930528683953,null,0.1191574210928069,{"$nulls":3},47292.899999999994,54796.04999999991,0.8630713345213765]
[{"$f":"'II. Headline series'!A244","v":1546},null,0.2709533068029805,0.09020797460634108,0.02829534618067374,0.21649981298459736,0.27482882193774855,null,0.11921473748765883,{"$nulls":3},47482.719999999994,55007.539999999906,0.8632038444184211]
[{"$f":"'II. Headline series'!A245","v":1547},null,0.2704743653264546,0.09051835710872556,0.028465653392917612,0.2165607286710547,0.2747092980571199,null,0.11927159744372773,{"$nulls":3},47672.53999999999,55219.029999999904,0.8633353392843025]
[{"$f":"'II. Headline series'!A246","v":1548},null,0.26999922277129706,0.09082627768459398,0.028634609743439322,0.21662116117968275,0.2745907222293253,null,0.11932800639166156,{"$nulls":3},47862.36,55430.5199999999,0.8634658307372921]
[{"$f":"'II. Headline series'!A247","v":1549},null,0.2695278341169957,0.09113176550991035,0.028802231241121645,0.21668111623655786,0.27447308321911656,null,0.11938396967629789,{"$nulls":3},48052.17999999999,55642.0099999999,0.8635953302190212]
[{"$f":"'II. Headline series'!A248","v":1550},null,0.2690601550516152,0.09143484930143866,0.028968533642883806,0.21674059947763363,0.274356369968077,null,0.11943949255835182,{"$nulls":3},48241.99999999999,55853.4999999999,0.8637238489978261]
[{"$f":"'II. Headline series'!A249","v":1551},null,0.2685961419579116,0.09173555732574172,0.02913353245861916,0.21679961645050716,0.2742405715911557,null,0.11949458021606474,{"$nulls":3},48431.81999999999,56064.989999999896,0.8638513981720157]
[{"$f":"'II. Headline series'!A250","v":1552},null,0.2681357518997718,0.09203391740796904,0.029297242956017124,0.21685817261614376,0.27412567737328414,null,0.11954923774681413,{"$nulls":3},48621.64,56276.479999999894,0.8639779886730672]
[{"$f":"'II. Headline series'!A251","v":1553},null,0.26767894260896974,0.0923299569404399,0.02945968016527268,0.21691627335056157,0.27401167676607024,null,0.11960347016868597,{"$nulls":3},48811.45999999999,56487.96999999989,0.8641036312687478]
[{"$f":"'II. Headline series'!A252","v":1554},null,0.2672256724722297,0.09262370289102662,0.02962085888368632,0.21697392394647655,0.27389855938457053,null,0.11965728242201037,{"$nulls":3},49001.27999999999,56699.45999999989,0.8642283365661699]
[{"$f":"'II. Headline series'!A253","v":1555},null,0.2667759005185902,0.09291518181134402,0.029780793680157604,0.21703112961491006,0.27378631500413625,null,0.11971067937086198,{"$nulls":3},49191.09999999999,56910.94999999989,0.8643521150147746]
[{"$f":"'II. Headline series'!A254","v":1556},null,0.26632958640705806,0.09320441984474984,0.02993949889957499,0.21708789548675886,0.27367493355733274,null,0.11976366580452548,{"$nulls":3},49380.92,57122.439999999886,0.8644749769092513]
[{"$f":"'II. Headline series'!A255","v":1557},null,0.26588669041454743,0.09349144273416142,0.030096988667104845,0.2171442266143294,0.27356440513092933,null,0.11981624643892767,{"$nulls":3},49570.73999999999,57333.929999999884,0.8645969323923912]
[{"$f":"'II. Headline series'!A256","v":1558},null,0.26544717342409374,0.09377627582969332,0.03025327689238225,0.21720012797283633,0.2734547199629579,null,0.11986842591803647,{"$nulls":3},49760.56,57545.41999999988,0.8647179914578798]
[{"$f":"'II. Headline series'!A257","v":1559},null,0.2650109969133373,0.09405894409612109,0.030408377273606343,0.217255604461868,0.273345868439839,null,0.11992020881522843,{"$nulls":3},49950.37999999999,57756.90999999988,0.8648381639530247]
[{"$f":"'II. Headline series'!A258","v":1560},null,0.26457812294326755,0.09433947212017513,0.030562303301542488,0.2173106609068173,0.27323784109357285,null,0.1199715996346247,{"$nulls":3},50140.2,57968.39999999988,0.8649574595814289]
[{"$f":"'II. Headline series'!A259","v":1561},null,0.2641485141472232,0.09461788411766985,0.030715068263434047,0.21736530206028137,0.27313062859899445,null,0.12002260281239725,{"$nulls":3},50330.01999999999,58179.889999999876,0.8650758879055993]
[{"$f":"'II. Headline series'!A260","v":1562},null,0.2637221337201389,0.0948942039404718,0.030866685246825815,0.2174195326034287,0.27302422177108954,null,0.12007322271804521,{"$nulls":3},50519.84,58391.379999999874,0.8651934583495048]
[{"$f":"'II. Headline series'!A261","v":1563},null,0.26329894540803517,0.09516845508331165,0.03101716714330171,0.21747335714733648,0.2729186115623722,null,0.12012346365564294,{"$nulls":3},50709.65999999999,58602.86999999987,0.8653101802010738]
[{"$f":"'II. Headline series'!A262","v":1564},null,0.2628789134977415,0.0954406606904433,0.0311665266521387,0.2175267802342971,0.27281378906031967,null,0.12017332986505971,{"$nulls":3},50899.479999999996,58814.35999999987,0.8654260626146422]
[{"$f":"'II. Headline series'!A263","v":1565},null,0.2624620028068504,0.09571084356215498,0.031314776283879416,0.21757980633909643,0.2727097454848659,null,0.12022282552315278,{"$nulls":3},51089.3,59025.84999999987,0.8655411146133452]
[{"$f":"'II. Headline series'!A264","v":1566},null,0.2620481786738935,0.09597902616113548,0.03146192836382529,0.217632439870263,0.27260647218594936,null,0.12027195474493342,{"$nulls":3},51279.119999999995,59237.339999999866,0.8656553450914594]
[{"$f":"'II. Headline series'!A265","v":1567},null,0.261637406948735,0.09624523061869944,0.03160799503545246,0.2176846851712897,0.27250396064111587,null,0.12032072158470739,{"$nulls":3},51468.94,59448.82999999986,{"$f":"M263/N263","v":0.8657687628166967}]
[{"$f":"'II. Headline series'!A266","v":1568},null,0.2612296539831778,0.0965094787408758,0.03175298826375238,0.21773654652182903,0.2724022024531746,null,0.12036913003719041,{"$nulls":3},51658.759999999995,59660.31999999986,0.8658813764324448]
[{"$f":"'II. Headline series'!A267","v":1569},null,0.2608248866217749,0.09677179201436191,0.03189691983849896,0.21778802813886128,0.2723011893479041,null,0.12041718403859875,{"$nulls":3},51848.58,59871.80999999986,0.8659931944599658]
[{"$f":"'II. Headline series'!A268","v":1570},null,0.2604230721928427,0.09703219161234791,0.03203980137744437,0.21783913417783793,0.2722009131718107,null,0.12046488746771636,{"$nulls":3},52038.399999999994,60083.29999999986,0.8661042253005431]
[{"$f":"'II. Headline series'!A269","v":1571},null,0.2600241784996698,0.09729069840021362,0.0321816443294449,0.21788986873379945,0.2721013658899337,null,0.12051224414693838,{"$nulls":3},52228.22,60294.789999999855,0.8662144772375876]
[{"$f":"'II. Headline series'!A270","v":1572},null,0.2596281738119172,0.09754733294110207,0.03232245997751921,0.21794023584246952,0.2720025395836997,null,0.12055925784329233,{"$nulls":3},52418.03999999999,60506.27999999985,0.8663239584386963]
[{"$f":"'II. Headline series'!A271","v":1573},null,0.25923502685720395,0.09780211550137195,0.03246225944184007,0.21799023948132465,0.2719044264488225,null,0.12060593226943675,{"$nulls":3},52607.86,60717.76999999985,0.8664326769576703]
[{"$f":"'II. Headline series'!A272","v":1574},null,0.25884470681287564,0.09805506605593287,0.03260105368266183,0.21803988357064175,0.2718070187932491,null,0.12065227108463877,{"$nulls":3},52797.68,60929.25999999985,0.8665406407364891]
[{"$f":"'II. Headline series'!A273","v":1575},null,0.25845718329794815,0.09830620429346554,0.03273885350318473,0.2180891719745223,0.27171030903514887,null,0.12069827789573033,{"$nulls":3},52987.5,61140.74999999985,0.8666478576072445]
[{"$f":"'II. Headline series'!A274","v":1576},null,0.2580724263652254,0.0985555496215305,0.03287566955235805,0.2181381085018952,0.2716142897009468,null,0.12074395625804407,{"$nulls":3},53177.31999999999,61352.239999999845,0.8667543352940353]
[{"$f":"'II. Headline series'!A275","v":1577},null,0.25769040649358443,0.09880312117156748,0.03301151232762334,0.21818669690749776,0.2715189534233978,null,0.12078930967632913,{"$nulls":3},53367.14,61563.72999999984,0.8668600814148223]
[{"$f":"'II. Headline series'!A276","v":1578},null,0.25731109458042484,0.09904893780378882,0.03314639217759934,0.21823494089283635,0.2714242929397029,null,0.12083434160564774,{"$nulls":3},53556.96,61775.21999999984,0.8669651034832435]
[{"$f":"'II. Headline series'!A277","v":1579},null,0.25693446193427827,0.09929301811196886,0.03328031930470999,0.21828284410712606,0.2713303010896643,null,0.12087905545225243,{"$nulls":3},53746.78,61986.70999999984,0.8670694089103961]
[{"$f":"'II. Headline series'!A278","v":1580},null,0.256560480267574,0.09953538042813241,0.03341330376775698,0.21833041014821108,0.27123697081388054,null,0.12092345457444505,{"$nulls":3},53936.59999999999,62198.19999999984,0.8671730050065779]
[{"$f":"'II. Headline series'!A279","v":1581},null,0.2561891216895562,0.09977604282714442,0.033545355484438114,0.2183776425634653,0.2711442951519784,null,0.12096754228341745,{"$nulls":3},54126.42,62409.689999999835,0.8672758989829967]
[{"$f":"'II. Headline series'!A280","v":1582},null,0.2558203586993509,0.1000150231312036,0.03367648423381296,0.2184245448506745,0.27105226724088316,null,0.12101132184407486,{"$nulls":3},54316.24,62621.17999999983,0.8673780979534423]
[{"$f":"'II. Headline series'!A281","v":1583},null,0.2554541641791762,0.10025233891424194,0.03380669965871686,0.21847112045889944,0.2709608803131238,null,0.12105479647584162,{"$nulls":3},54506.06,62832.66999999983,0.8674796089359269]
[{"$f":"'II. Headline series'!A282","v":1584},null,0.25509051138769556,0.10048800750623277,0.03393601126812478,0.21851737278932162,0.2708701276951746,null,0.12109796935345062,{"$nulls":3},54695.88,63044.15999999983,0.8675804388542911]
[{"$f":"'II. Headline series'!A283","v":1585},null,0.2547293739535076,0.10072204599740928,0.034064428439466034,0.21856330519607112,0.27078000280583003,null,0.1211408436077159,{"$nulls":3},54885.7,63255.64999999983,0.8676805945397786]
[{"$f":"'II. Headline series'!A284","v":1586},null,0.2543707258687713,0.10095447124239601,0.03419196042089118,0.21860892098703744,0.27069049915461435,null,0.12118342232628966,{"$nulls":3},55075.52,63467.139999999825,0.8677800827325786]
[{"$f":"'II. Headline series'!A285","v":1587},null,0.2540145414829626,0.10118529986425501,0.03431861633349222,0.21865422342466365,0.27060161034022306,null,0.12122570855440341,{"$nulls":3},55265.34,63678.62999999982,0.8678789100833381]
[{"$f":"'II. Headline series'!A286","v":1588},null,0.2536607954967587,0.10141454825844894,0.03444440517347711,0.2186992157267241,0.27051333004899714,null,0.12126770529559401,{"$nulls":3},55455.159999999996,63890.11999999982,0.8679770831546435]
[{"$f":"'II. Headline series'!A287","v":1589},null,0.253309462956048,0.10164223259672313,0.034569335814299884,0.21874390106708638,0.27042565205342767,null,0.12130941551241484,{"$nulls":3},55644.979999999996,64101.60999999982,0.8680746084224742]
[{"$f":"'II. Headline series'!A288","v":1590},null,0.2529605192460622,0.10186836883090845,0.03469341700874725,0.21878828257645772,0.27033857021069196,null,0.12135084212713243,{"$nulls":3},55834.799999999996,64313.09999999982,0.8681714922776255]
[{"$f":"'II. Headline series'!A289","v":1591},null,0.25261394008562726,0.1020929726966467,0.03481665739098277,0.21883236334311595,0.27025207846121835,null,0.12139198802240897,{"$nulls":3},56024.619999999995,64524.589999999815,0.8682677410271055]
[{"$f":"'II. Headline series'!A290","v":1592},null,0.2522697015215314,0.1023160597170408,0.03493906547854966,0.21887614641362613,0.27016617082728106,null,0.12143285604197096,{"$nulls":3},56214.439999999995,64736.07999999981,0.868363360895503]
[{"$f":"'II. Headline series'!A291","v":1593},null,0.2519277799230064,0.102537645206231,0.03506064967433313,0.2189196347935422,0.2700808414116228,null,0.12147344899126439,{"$nulls":3},56404.259999999995,64947.56999999981,0.8684583580263304]
[{"$f":"'II. Headline series'!A292","v":1594},null,0.2515881519763204,0.10275774427289934,0.03518141826848322,0.21896283144809495,0.2699960843961054,null,0.12151376963809668,{"$nulls":3},56594.079999999994,65159.05999999981,0.8685527384833385]
[{"$f":"'II. Headline series'!A293","v":1595},null,0.2512507946794784,0.10297637182370369,0.03530137944029912,0.2190057393028658,0.2699118940403871,null,0.12155382071326581,{"$nulls":3},56783.899999999994,65370.54999999981,0.868646508251807]
[{"$f":"'II. Headline series'!A294","v":1596},null,0.25091568533702974,0.10319354256664313,0.03542054126007572,0.21904836124444746,0.2698282646806271,null,0.12159360491117685,{"$nulls":3},56973.719999999994,65582.0399999998,0.8687396732398103]
[{"$f":"'II. Headline series'!A295","v":1597},null,0.2505828015549778,0.10340927101435649,0.03553891169091349,0.2190907001210912,0.26974519072821485,null,0.12163312489044617,{"$nulls":3},57163.53999999999,65793.5299999998,0.8688322392794576]
[{"$f":"'II. Headline series'!A296","v":1598},null,0.25025212123579227,0.10362357148735502,0.035656498590492365,0.21913275874334132,0.2696626666685254,null,0.12167238327449369,{"$nulls":3},57353.35999999999,66005.0199999998,0.8689242121281103]
[{"$f":"'II. Headline series'!A297","v":1599},null,0.2499236225735185,0.10383645811719143,0.03577330971281047,0.21917453988465707,0.2695806870596991,null,0.12171138265212342,{"$nulls":3},57543.17999999999,66216.5099999998,0.8690155974695761]
[{"$f":"'II. Headline series'!A298","v":1600},null,0.24959728404898412,0.1040479448495661,0.035889352709888626,0.2192160462820224,0.26949924653144647,null,0.12175012557809226,{"$nulls":3},57733,66428,0.8691064009152767]
[{"$f":"'II. Headline series'!A299","v":1601},null,0.24910368338897987,0.10463903368746977,0.03615427413780676,0.21892093556735373,0.26961314278514165,null,0.12156893043324805,{"$nulls":3},57856.23000000001,66581.32,0.8689558873269561]
[{"$f":"'II. Headline series'!A300","v":1602},null,0.24861218093442056,0.10522760991564944,0.03641806943355457,0.21862707931395015,0.26972655488685127,null,0.12138850551557397,{"$nulls":3},57979.46000000001,66734.64,0.8688060653357838]
[{"$f":"'II. Headline series'!A301","v":1603},null,0.24812276333505387,0.10581368952108759,0.03668074576237348,0.21833446954005056,0.2698394859170892,null,0.12120884592434535,{"$nulls":3},58102.69,66887.96,0.8686569301859407]
[{"$f":"'II. Headline series'!A302","v":1604},null,0.24763541735364597,0.10639728835542661,0.03694231022884653,0.21804309833146476,0.2699519389302908,null,0.12102994680032537,{"$nulls":3},58225.920000000006,67041.28000000001,0.8685084771651137]
[{"$f":"'II. Headline series'!A303","v":1605},null,0.24715012986478813,0.1069784221363979,0.03720276987753891,0.21775295784085974,0.27006391695508836,null,0.12085180332532695,{"$nulls":3},58349.15000000001,67194.6,0.868360701603998]
[{"$f":"'II. Headline series'!A304","v":1606},null,0.24666688785371835,0.10755710644923298,0.03746213169363039,0.2174640402870552,0.27017542299458297,null,0.12067441072178013,{"$nulls":3},58472.380000000005,67347.92000000001,0.8682135988758078]
[{"$f":"'II. Headline series'!A305","v":1607},null,0.24618567841515782,0.10813335674805677,0.03772040260353975,0.21717633795432803,0.27028646002661283,null,0.12049776425230496,{"$nulls":3},58595.61,67501.24000000002,0.8680671643957946]
[{"$f":"'II. Headline series'!A306","v":1608},null,0.24570648875216206,0.10870718835726323,0.037977589475541404,0.21688984319172522,0.2703970310040183,null,0.1203218592192898,{"$nulls":3},58718.84000000001,67654.56000000001,0.86792139362077]
[{"$f":"'II. Headline series'!A307","v":1609},null,0.24522930617498673,0.10927861647287394,0.038233699120374234,0.2166045484123859,0.27050713885490413,null,0.12014669096447493,{"$nulls":3},58842.07000000002,67807.88000000002,0.8677762820486351]
[{"$f":"'II. Headline series'!A308","v":1610},null,0.24475411809996733,0.10984765616387948,0.038488738291842815,0.2163204460928716,0.2706167864828974,null,0.11997225486854136,{"$nulls":3},58965.30000000002,67961.20000000003,0.8676318252179184]
[{"$f":"'II. Headline series'!A309","v":1611},null,0.24428091204841287,0.11041432237356393,0.03874271368741107,0.21603752877250462,0.2707259767674029,null,0.11979854635070467,{"$nulls":3},59088.53000000001,68114.52000000002,0.8674880187073182]
[{"$f":"'II. Headline series'!A310","v":1612},null,0.24380967564551373,0.11097862992081309,0.038995631948788544,0.21575578905271525,0.27083471256385533,null,0.11962556086831405,{"$nulls":3},59211.76000000002,68267.84000000003,0.8673448581352508]
[{"$f":"'II. Headline series'!A311","v":1613},null,0.24334039661926302,0.11154059350140623,0.03924749966250941,0.2154752195963967,0.2709429967039682,null,0.11945329391645643,{"$nulls":3},59334.99000000002,68421.16000000003,0.8672023391594061]
[{"$f":"'II. Headline series'!A312","v":1614},null,0.242873062799391,0.11210022768929181,0.039498323360504226,0.21519581312726827,0.27105083199597946,null,0.11928174102756531,{"$nulls":3},59458.220000000016,68574.48000000004,0.8670604574763087]
[{"$f":"'II. Headline series'!A313","v":1615},null,0.24240766211631318,0.11265754693784735,0.039748109520664564,0.2149175624292461,0.2711582212248944,null,0.11911089777103452,{"$nulls":3},59581.45000000001,68727.80000000003,0.8669192088208845]
[{"$f":"'II. Headline series'!A314","v":1616},null,0.2419441826000911,0.11321256558112369,0.03999686456740073,0.21464046034582218,0.2712651671527254,null,0.11894075975283687,{"$nulls":3},59704.68000000002,68881.12000000004,0.8667785889660329]
[{"$f":"'II. Headline series'!A315","v":1617},null,0.24148261237940627,0.11376529783507403,0.04024459487219257,0.2143644997794508,0.2713716725187288,null,0.1187713226151474,{"$nulls":3},59827.91000000003,69034.44000000005,0.8666385937222058]
[{"$f":"'II. Headline series'!A316","v":1618},null,0.24102293968054664,0.11431575779876754,0.04049130675413343,0.21408967369094237,0.2714777400396386,null,0.11860258203597136,{"$nulls":3},59951.14000000003,69187.76000000004,0.8664992189369911]
[{"$f":"'II. Headline series'!A317","v":1619},null,0.24056515282640514,0.11486395945558822,0.04073700648046744,0.21381597509886502,0.2715833724098976,null,0.1184345337287766,{"$nulls":3},60074.370000000024,69341.08000000005,0.8663604604947022]
[{"$f":"'II. Headline series'!A318","v":1620},null,0.24010924023549124,0.11540991667441901,0.040981700267120266,0.2135433970789534,0.2716885723018854,null,0.11826717344213067,{"$nulls":3},60197.60000000003,69494.40000000005,0.8662223143159734]
[{"$f":"'II. Headline series'!A319","v":1621},null,0.2396551904209542,0.11595364321081135,0.04122539427922326,0.2132719327635247,0.2717933423661441,null,0.11810049695934233,{"$nulls":3},60320.83000000003,69647.72000000004,0.8660847763573595]
[{"$f":"'II. Headline series'!A320","v":1622},null,0.23920299198961834,0.1164951527081405,0.04146809463163128,0.21300157534090208,0.2718976852316005,null,0.11793450009810735,{"$nulls":3},60444.06000000003,69801.04000000005,0.8659478426109408]
[{"$f":"'II. Headline series'!A321","v":1623},null,0.23875263364102986,0.1170344586987466,0.04170980738943412,0.21273231805484458,0.27200160350578634,null,0.11776917871015868,{"$nulls":3},60567.29000000002,69954.36000000006,0.8658115091039353]
[{"$f":"'II. Headline series'!A322","v":1624},null,0.2383041041665158,0.11757157460506198,0.04195053856846174,0.21246415420398448,0.27210509977505504,null,0.11760452868092094,{"$nulls":3},60690.52000000003,70107.68000000005,0.865675771898314]
[{"$f":"'II. Headline series'!A323","v":1625},null,0.23785739244825402,0.11810651374072485,0.04219029413578341,0.21219707714127156,0.27220817660479696,null,0.11744054592916907,{"$nulls":3},60813.750000000044,70261.00000000006,0.8655406270904199]
[{"$f":"'II. Headline series'!A324","v":1626},null,0.23741248745835467,0.11863928931167916,0.042429080010200675,0.21193108027342353,0.2723108365396508,null,0.11727722640669108,{"$nulls":3},60936.98000000004,70414.32000000007,0.8654060708105963]
[{"$f":"'II. Headline series'!A325","v":1627},null,0.23696937825795245,0.11916991441726138,0.04266690206273445,0.2116661570603836,0.27241308210371323,null,0.11711456609795491,{"$nulls":3},61060.210000000036,70567.64000000006,0.8652720992228163]
[{"$f":"'II. Headline series'!A326","v":1628},null,0.2365280539963103,0.11969840205127413,0.04290376611710617,0.2114023010147845,0.2725149158007456,null,0.11695256101977933,{"$nulls":3},61183.44000000004,70720.96000000006,0.8651387085243184]
[{"$f":"'II. Headline series'!A327","v":1629},null,0.23608850390993363,0.12022476510304682,0.043139677950213215,0.21113950570141887,0.2726163401143785,null,0.11679120722100887,{"$nulls":3},61306.67000000004,70874.28000000007,0.8650058949452464]
[{"$f":"'II. Headline series'!A328","v":1630},null,0.23565071732169535,0.12074901635848355,0.043374643292598526,0.21087776473671627,0.27271735750831383,null,0.11663050078219253,{"$nulls":3},61429.90000000004,71027.60000000006,0.8648736547482948]
[{"$f":"'II. Headline series'!A329","v":1631},null,0.2352146836399711,0.12127116850109831,0.04360866782891461,0.21061707178822603,0.27281797042652367,null,0.11647043781526642,{"$nulls":3},61553.130000000034,71180.92000000007,{"$f":"M327/N327","v":0.8647419842283575}]
[{"$f":"'II. Headline series'!A330","v":1632},null,0.23478039235778528,0.12179123411303794,0.04384175719838197,0.21035742057410664,0.272918181293448,null,0.11631101446324019,{"$nulls":3},61676.360000000044,71334.24000000008,0.8646108797121828]
[{"$f":"'II. Headline series'!A331","v":1633},null,0.23434783305196702,0.1223092256760928,0.044073916995242164,0.21009880486262134,0.2730179925141892,null,0.11615222689988733,{"$nulls":3},61799.590000000055,71487.56000000007,0.864480337558031]
[{"$f":"'II. Headline series'!A332","v":1634},null,0.23391699538231644,0.12282515557269531,0.04430515276920524,0.20984121847163947,0.2731174064747045,null,0.11599407132943895,{"$nulls":3},61922.82000000005,71640.88000000008,0.8643503541553368]
[{"$f":"'II. Headline series'!A333","v":1635},null,0.2334878690907804,0.12333903608690658,0.044535470025892025,0.2095846552681437,0.273216425541996,null,0.11583654398628132,{"$nulls":3},62046.05000000005,71794.20000000008,0.8642209259243779]
[{"$f":"'II. Headline series'!A334","v":1636},null,0.2330604440006385,0.12385087940539137,0.04476487422727105,0.20932910916774342,0.2733150520642986,null,0.11567964113465702,{"$nulls":3},62169.28000000005,71947.52000000008,0.8640920493159456]
[{"$f":"'II. Headline series'!A335","v":1637},null,0.23263471001569874,0.12436069761838156,0.04499337079209038,0.20907457413419378,0.27341328837126583,null,0.11552335906836969,{"$nulls":3},62292.51000000005,72100.84000000008,0.8639637208110194]
[{"$f":"'II. Headline series'!A336","v":1638},null,0.23221065711950248,0.12486850272062801,0.045220965096304196,0.2088210441789204,0.2735111367741528,null,0.11536769411049218,{"$nulls":3},62415.74000000005,72254.16000000009,0.8638359369204481]
[{"$f":"'II. Headline series'!A337","v":1639},null,0.23178827537453875,0.12537430661234125,0.04544766247349449,0.2085685133605496,0.273608599565998,null,0.11521264261307808,{"$nulls":3},62538.970000000045,72407.4800000001,0.8637086941846334]
[{"$f":"'II. Headline series'!A338","v":1640},null,0.23136755492146807,0.12587812110012114,0.045673468215287644,0.20831697578444436,0.27370567902180193,null,0.1150582009568769,{"$nulls":3},62662.200000000055,72560.80000000009,0.8635819891732172]
[{"$f":"'II. Headline series'!A339","v":1641},null,0.2309484859783554,0.1263799578978755,0.0458983875717662,0.20806642560224572,0.2738023773987046,null,0.11490436555105238,{"$nulls":3},62785.430000000066,72714.1200000001,0.8634558184847727]
[{"$f":"'II. Headline series'!A340","v":1642},null,0.23053105883991196,0.12687982862772806,0.04612242575187577,0.20781685701141955,0.2738986969361603,null,0.11475113283290427,{"$nulls":3},62908.66000000006,72867.4400000001,0.8633301787465015]
[{"$f":"'II. Headline series'!A341","v":1643},null,0.23011526387674586,0.12737774482091543,0.046345587923827085,0.20756826425480832,0.27399463985611017,null,0.11459849926759315,{"$nulls":3},63031.89000000006,73020.7600000001,0.8632050666139325]
[{"$f":"'II. Headline series'!A342","v":1644},null,0.2297010915346217,0.12787371791867408,0.04656787921549349,0.20732064162018868,0.27409020836315334,null,0.11444646134786875,{"$nulls":3},63155.12000000006,73174.0800000001,0.8630804787706244]
[{"$f":"'II. Headline series'!A343","v":1645},null,0.22928853233372895,0.1283677592731165,0.04678930471480367,0.20707398343983385,0.27418540464471575,null,0.11429501559380123,{"$nulls":3},63278.350000000064,73327.40000000011,0.8629564119278738]
[{"$f":"'II. Headline series'!A344","v":1646},null,0.22887757686795848,0.12885988014809746,0.04700986947012988,0.20682828409008122,0.2742802308712172,null,0.11414415855251578,{"$nulls":3},63401.58000000006,73480.7200000001,0.8628328628244248]
[{"$f":"'II. Headline series'!A345","v":1647},null,0.22846821580418772,0.1293500917200699,0.04722957849067155,0.20658353799090484,0.2743746891962361,null,0.11399388679793004,{"$nulls":3},63524.810000000056,73634.04000000011,0.862709828226184]
[{"$f":"'II. Headline series'!A346","v":1648},null,0.22806043988157404,0.12983840507893113,0.04744843674683458,0.20633973960549312,0.2744687817566723,null,0.11384419693049484,{"$nulls":3},63648.040000000066,73787.36000000012,0.862587304925938]
[{"$f":"'II. Headline series'!A347","v":1649},null,0.2276542399108567,0.13032483122885918,0.04766644917060608,0.20609688343983126,0.2745625106729087,null,0.1136950855769379,{"$nulls":3},63771.27000000008,73940.68000000011,0.8624652897430749]
[{"$f":"'II. Headline series'!A348","v":1650},null,0.22724960677366626,0.1308093810891393,0.04788362065592495,0.20585496404228862,0.27465587804897046,null,0.11354654939001031,{"$nulls":3},63894.50000000007,74094.00000000012,0.8623437795233079]
[{"$f":"'II. Headline series'!A349","v":1651},null,0.22684653142184238,0.13129206549498104,0.04809995605904797,0.20561397600321055,0.274748885972682,null,0.11339858504823608,{"$nulls":3},64017.73000000007,74247.32000000012,0.8622227711384056]
[{"$f":"'II. Headline series'!A350","v":1652},null,0.22644500487675928,0.13177289519832588,0.04831546019891184,0.20537391395451537,0.274841536515823,null,0.11325118925566463,{"$nulls":3},64140.96000000007,74400.64000000012,0.8621022614859223]
[{"$f":"'II. Headline series'!A351","v":1653},null,0.22604501822865924,0.13225188086864573,0.04853013785749103,0.20513477256929577,0.2749338317342822,null,0.11310435874162601,{"$nulls":3},64264.190000000075,74553.96000000012,0.8619822474889325]
[{"$f":"'II. Headline series'!A352","v":1654},null,0.22564656263599353,0.13272903309373188,0.04874399378015141,0.20489654656142478,0.2750257736682094,null,0.11295809026048902,{"$nulls":3},64387.42000000007,74707.28000000013,0.8618627260957695]
[{"$f":"'II. Headline series'!A353","v":1655},null,0.2252496293247708,0.1332043623804754,0.04895703267599996,0.20465923068516617,0.2751173643421658,null,0.11281238059142198,{"$nulls":3},64510.65000000007,74860.60000000012,0.8617436942797675]
[{"$f":"'II. Headline series'!A354","v":1656},null,0.22485420958791308,0.13367787915563809,0.04916925921823038,0.20442281973478943,0.2752086057652726,null,0.11266722653815639,{"$nulls":3},64633.88000000008,75013.92000000013,0.8616251490390046]
[{"$f":"'II. Headline series'!A355","v":1657},null,0.22446029478461935,0.13414959376661517,0.04938067804446486,0.20418730854418937,0.2752994999313579,null,0.11252262492875323,{"$nulls":3},64757.11000000009,75167.24000000014,0.8615070873960514]
[{"$f":"'II. Headline series'!A356","v":1658},null,0.22406787633973593,0.1346195164821888,0.049591293757091835,0.2039526919865095,0.27539004881910195,null,0.11237857261537186,{"$nulls":3},64880.340000000084,75320.56000000013,0.8613895063977216]
[{"$f":"'II. Headline series'!A357","v":1659},null,0.22367694574313418,0.13508765749327328,0.049801110923599984,0.20371896497377012,0.2754802543921808,null,0.1122350664740416,{"$nulls":3},65003.57000000008,75473.88000000014,0.8612724031148254]
[{"$f":"'II. Headline series'!A358","v":1660},null,0.22328749454909538,0.13555402691365176,0.050010134076908366,0.20348612245650044,0.2755701185994081,null,0.11209210340443591,{"$nulls":3},65126.80000000008,75627.20000000014,0.8611557746419273]
[{"$f":"'II. Headline series'!A359","v":1661},null,0.2228995143757026,0.13601863478070456,0.050218367715692935,0.20325415942337519,0.2756596433748756,null,0.11194968032964915,{"$nulls":3},65250.030000000086,75780.52000000014,0.8610396180971043]
[{"$f":"'II. Headline series'!A360","v":1662},null,0.22251299690423923,0.1364814910561293,0.050425816304709235,0.2030230709008548,0.2757488306380917,null,0.11180779419597582,{"$nulls":3},65373.26000000008,75933.84000000014,0.8609239306217091]
[{"$f":"'II. Headline series'!A361","v":1663},null,0.22212793387859453,0.13694260562665292,0.050632484275111474,0.2027928519528301,0.27583768229411887,null,0.11166644197269227,{"$nulls":3},65496.49000000008,76087.16000000015,0.8608087093801365]
[{"$f":"'II. Headline series'!A362","v":1664},null,0.22174431710467565,0.13740198830473546,0.050838376024768095,0.20256349768027074,0.2759262002337092,null,0.1115256206518409,{"$nulls":3},65619.72000000009,76240.48000000016,0.8606939515595908]
[{"$f":"'II. Headline series'!A363","v":1665},null,0.22136213844982658,0.13785964882926632,0.051043495918573704,0.20233500322087788,0.27601438633343844,null,0.11138532724801697,{"$nulls":3},65742.9500000001,76393.80000000015,0.8605796543698568]
[{"$f":"'II. Headline series'!A364","v":1666},null,0.2209813898422533,0.1383155968662524,0.05124784828875752,0.20210736374874047,0.27610224245583886,null,0.1112455587981574,{"$nulls":3},65866.1800000001,76547.12000000016,0.8604658150430736]
[{"$f":"'II. Headline series'!A365","v":1667},null,0.2206020632704555,0.13876984200949843,0.051451437435188395,0.20188057447399538,0.2761897704495301,null,0.11110631236133221,{"$nulls":3},65989.41000000009,76700.44000000016,0.8603524308335122]
[{"$f":"'II. Headline series'!A366","v":1668},null,0.22022415078266466,0.13922239378128018,0.05165426762567634,0.20165463064249156,0.27627697214934877,null,0.11096758501853833,{"$nulls":3},66112.6400000001,76853.76000000015,0.8602394990173541]
[{"$f":"'II. Headline series'!A367","v":1669},null,0.2198476444862886,0.13967326163300967,0.05185634309627087,0.20142952753545798,0.2763638493764772,null,0.11082937387249567,{"$nulls":3},66235.8700000001,77007.08000000016,0.8601270168924722]
[{"$f":"'II. Headline series'!A368","v":1670},null,0.2194725365473617,0.14012245494589315,0.05205766805155578,0.20120526046917478,0.27645040393856946,null,0.11069167604744519,{"$nulls":3},66359.1000000001,77160.40000000017,0.8600149817782171]
[{"$f":"'II. Headline series'!A369","v":1671},null,0.2190988191900018,0.14056998303158175,0.052258246664940826,0.2009818247946487,0.27653663762987735,null,0.1105544886889497,{"$nulls":3},66482.33000000009,77313.72000000016,0.8599033910152034]
[{"$f":"'II. Headline series'!A370","v":1672},null,0.2187264846958727,0.141015855132815,0.052458083078950085,0.2007592158972917,0.27662255223137405,null,0.11041780896369643,{"$nulls":3},66605.5600000001,77467.04000000017,0.8597922419650984]
[{"$f":"'II. Headline series'!A371","v":1673},null,0.21835552540365305,0.14146008042405708,0.052657181405507195,0.20053742919660336,0.276708149510877,null,0.11028163405930214,{"$nulls":3},66728.79000000011,77620.36000000018,0.8596815320104153]
[{"$f":"'II. Headline series'!A372","v":1674},null,0.2179859337085107,0.14190266801212614,0.05285554572621731,0.20031646014585672,0.27679343122316896,null,0.1101459611841201,{"$nulls":3},66852.0200000001,77773.68000000017,0.8595712585543074]
[{"$f":"'II. Headline series'!A373","v":1675},null,0.21761770206158293,0.1423436269368165,0.053053180092646084,0.20009630423178737,0.2768783991101178,null,0.11001078756704934,{"$nulls":3},66975.2500000001,77927.00000000017,0.8594614190203645]
[{"$f":"'II. Headline series'!A374","v":1676},null,0.21725082296946271,0.14278296617151415,0.053250088526595456,0.19987695697428645,0.2769630549007953,null,0.10987611045734602,{"$nulls":3},67098.4800000001,78080.32000000018,0.8593520108524138]
[{"$f":"'II. Headline series'!A375","v":1677},null,0.21688528899369017,0.14322069462380557,0.053446275020376514,0.19965841392609646,0.27704740031159447,null,0.10974192712443676,{"$nulls":3},67221.71000000011,78233.64000000017,0.8592430315143199]
[{"$f":"'II. Headline series'!A376","v":1678},null,0.2165210927502502,0.1436568211360797,0.05364174353707932,0.1994406706725111,0.2771314370463455,null,0.10960823485773427,{"$nulls":3},67344.9400000001,78386.96000000018,0.859134478489789]
[{"$f":"'II. Headline series'!A377","v":1679},null,0.21615822690907485,0.14409135448612317,0.0538364980108397,0.19922372283107753,0.2772151667964303,null,0.1094750309664546,{"$nulls":3},67468.1700000001,78540.28000000019,0.8590263492821765]
[{"$f":"'II. Headline series'!A378","v":1680},null,0.21579668419355175,0.14452430338770936,0.05403054234710324,0.19900756605130265,0.2772985912408962,null,0.10934231277943678,{"$nulls":3},67591.40000000011,78693.60000000018,0.8589186414142949]
[{"$f":"'II. Headline series'!A379","v":1681},null,0.21543645738003786,0.14495567649118096,0.05422388042288636,0.1987921960143623,0.2773817120465682,null,0.1092100776449642,{"$nulls":3},67714.63000000012,78846.92000000019,0.8588113524282237]
[{"$f":"'II. Headline series'!A380","v":1682},null,0.2150775392973781,0.14538548238402596,0.05441651608703449,0.19857760843281347,0.27746453086815986,null,0.10907832293058807,{"$nulls":3},67837.86000000012,79000.2400000002,0.8587044798851238]
[{"$f":"'II. Headline series'!A381","v":1683},null,0.2147199228264296,0.1458137295914474,0.05460845316047747,0.19836379905030982,0.27754704934838315,null,0.1089470460229526,{"$nulls":3},67961.09000000011,79153.56000000019,0.8585980213650524]
[{"$f":"'II. Headline series'!A382","v":1684},null,0.2143636008995909,0.14624042657692723,0.05479969543648219,0.19815076364132034,0.2776292691180569,null,0.10881624432762232,{"$nulls":3},68084.32000000012,79306.8800000002,0.8584919744667796]
[{"$f":"'II. Headline series'!A383","v":1685},null,0.21400856650033664,0.1466655817427839,0.05499024668090253,0.197938498010851,0.27771119179621473,null,0.1086859152689112,{"$nulls":3},68207.55000000012,79460.2000000002,0.8583863368076087]
[{"$f":"'II. Headline series'!A384","v":1686},null,0.21365481266275663,0.14708920343072363,0.05518011063242646,0.19772699799416926,0.27779281899021063,null,0.10855605628971343,{"$nulls":3},68330.78000000012,79613.5200000002,0.8582811060231974]
[{"$f":"'II. Headline series'!A385","v":1687},null,0.21330233247110053,0.14751129992238615,0.055369291002820634,0.1975162594565318,0.2778741522958247,null,0.10842666485133634,{"$nulls":3},68454.01000000011,79766.8400000002,0.8581762797673813]
[{"$f":"'II. Headline series'!A386","v":1688},null,0.21295111905932695,0.14793187943988442,0.055557791477172214,0.19730627829291497,0.2779551932973666,null,0.1082977384333348,{"$nulls":3},68577.24000000012,79920.1600000002,0.8580718557119998]
[{"$f":"'II. Headline series'!A387","v":1689},null,0.21260116561065792,0.14835095014633842,0.05574561571412819,0.19709705042774844,0.27803594356777905,null,0.1081692745333478,{"$nulls":3},68700.47000000013,80073.4800000002,0.8579678315467238]
[{"$f":"'II. Headline series'!A388","v":1690},null,0.2122524653571377,0.14876852014640335,0.05593276734613212,0.19688857181465136,0.2781164046687391,null,0.10804127066693632,{"$nulls":3},68823.70000000013,80226.8000000002,0.8578642049788843]
[{"$f":"'II. Headline series'!A389","v":1691},null,0.21190501157919633,0.14918459748679197,0.05611924997965817,0.19668083843617146,0.2781965781507588,null,0.10791372436742327,{"$nulls":3},68946.93000000012,80380.12000000021,0.8577609737333055]
[{"$f":"'II. Headline series'!A390","v":1692},null,0.21155879760521826,0.14959919015679163,0.05630506719544291,0.19647384630352707,0.2782764655532852,null,0.10778663318573502,{"$nulls":3},69070.16000000012,80533.44000000022,0.8576581355521374]
[{"$f":"'II. Headline series'!A391","v":1693},null,0.21121381681111506,0.15001230608877555,0.05649022254871445,0.19626759145635186,0.27835606840479843,null,0.10765999469024463,{"$nulls":3},69193.39000000013,80686.76000000021,0.857555688194692]
[{"$f":"'II. Headline series'!A392","v":1694},null,0.2108700626199033,0.15042395315870885,0.05667471956941918,0.19606206996244224,0.27843538822290953,null,0.10753380646661692,{"$nulls":3},69316.62000000013,80840.08000000022,0.8574536294372783]
[{"$f":"'II. Headline series'!A393","v":1695},null,0.21052752850128628,0.15083413918664892,0.0568585617624461,0.19585727791750737,0.27851442651445674,null,0.10740806611765476,{"$nulls":3},69439.85000000012,80993.40000000023,{"$f":"M391/N391","v":0.8573519570730446}]
[{"$f":"'II. Headline series'!A394","v":1696},null,0.21018620797124052,0.1512428719372406,0.057041752607848765,0.19565321144492198,0.2785931847756007,null,0.10728277126314746,{"$nulls":3},69563.08000000013,81146.72000000022,0.8572506689118173]
[{"$f":"'II. Headline series'!A395","v":1697},null,0.20984609459160689,0.15165015912020627,0.05722429556106489,0.1954498666954818,0.27867166449191944,null,0.1071579195397206,{"$nulls":3},69686.31000000014,81300.04000000023,0.8571497627799439]
[{"$f":"'II. Headline series'!A396","v":1698},null,0.20950718196968554,0.15205600839083055,0.057406194053133595,0.1952472398471616,0.27874986713850125,null,0.10703350860068736,{"$nulls":3},69809.54000000014,81453.36000000023,0.8570492365201379]
[{"$f":"'II. Headline series'!A397","v":1699},null,0.20916946375783546,0.1524604273504399,0.05758745149091037,0.1950453271048755,0.27882779418003734,null,0.10690953611590144,{"$nulls":3},69932.77000000014,81606.68000000023,0.8569490879913255]
[{"$f":"'II. Headline series'!A398","v":1700},null,0.20883293365307753,0.1528634235468768,0.05776807125727989,0.19484412470023982,0.2789054470709147,null,0.10678599977161128,{"$nulls":3},70056,81760,0.8568493150684932]
[{"$f":"'II. Headline series'!A399","v":1701},null,0.20795311392838536,0.15525380525997842,0.057295254024591825,0.19470641431241653,0.27836382222753653,null,0.10642759024709147,{"$nulls":3},70669.17499999999,82514.99166666667,0.8564404306732543]
[{"$f":"'II. Headline series'!A400","v":1702},null,0.20708843072654032,0.15760306256270545,0.056830571195627906,0.19457107311043106,0.277831515562174,null,0.10607534684252133,{"$nulls":3},71282.34999999999,83269.98333333334,0.8560389608180137]
[{"$f":"'II. Headline series'!A401","v":1703},null,0.2062384967631852,0.15991224766770948,0.0563738146428446,0.19443804047609364,0.27730828865913415,null,0.10572911179103288,{"$nulls":3},71895.525,84024.97499999999,0.8556447056366278]
[{"$f":"'II. Headline series'!A402","v":1704},null,0.20540293785435407,0.16218237719519635,0.055924783278880105,0.19430725784170272,0.2767939111674415,null,0.10538873266242534,{"$nulls":3},72508.69999999998,84779.96666666666,0.8552574723824299]
[{"$f":"'II. Headline series'!A403","v":1705},null,0.20458139236719522,0.16441443366525635,0.05548328276137157,0.19417866860407146,0.2762881604626978,null,0.10505406213940767,{"$nulls":3},73121.87499999999,85534.95833333333,0.8548770751140249]
[{"$f":"'II. Headline series'!A404","v":1706},null,0.20377351069810087,0.16660936691573408,0.0550491252125007,0.19405221804284398,0.27579082132581445,null,0.10472495780500589,{"$nulls":3},73735.04999999999,86289.95,0.8545033343975745]
[{"$f":"'II. Headline series'!A405","v":1707},null,0.2029789547766608,0.16876809544993618,0.05462212895241726,0.19392785324285375,0.27530168563764174,null,0.10440128194049016,{"$nulls":3},74348.22499999999,87044.94166666667,0.854136077024579]
[{"$f":"'II. Headline series'!A406","v":1708},null,0.20219739759396174,0.1708915077181945,0.054202118245746035,0.19380552302029228,0.2748205520885859,null,0.10408290133321949,{"$nulls":3},74961.39999999998,87799.93333333332,0.8537751357442184]
[{"$f":"'II. Headline series'!A407","v":1709},null,0.2014285227538495,0.17298046333704162,0.05378892306043402,0.1936851778524723,0.27434722590236194,null,0.10376968709384075,{"$nulls":3},75574.57499999997,88554.92499999999,0.8534203490093857]
[{"$f":"'II. Headline series'!A408","v":1710},null,0.20067202404586046,0.175035794249513,0.05338237883824281,0.1935667698109824,0.27388151857308635,null,0.10346151448231507,{"$nulls":3},76187.74999999997,89309.91666666666,0.8530715607356031]
[{"$f":"'II. Headline series'!A409","v":1711},null,0.19992760503861126,0.17705830582986684,0.05298232627623517,0.19345025249804398,0.27342324761496456,null,0.10315826274227816,{"$nulls":3},76800.92499999997,90064.90833333333,0.8527286200720607]
[{"$f":"'II. Headline series'!A410","v":1712},null,0.19919497869251215,0.17904877793580237,0.05258861111864634,0.19333558098589282,0.27297223632387363,null,0.10285981494327258,{"$nulls":3},77414.09999999998,90819.9,0.8523913811840795]
[{"$f":"'II. Headline series'!A411","v":1713},null,0.19847386699074146,0.1810079659110655,0.05220108395856876,0.19322271175901856,0.2725283135501868,null,0.1025660578304189,{"$nulls":3},78027.27499999997,91574.89166666665,0.8520597030463315]
[{"$f":"'II. Headline series'!A412","v":1714},null,0.197764000587484,0.18293660154114919,0.05181960004891461,0.19311160265910662,0.272091313482226,null,0.10227688168111955,{"$nulls":3},78640.44999999997,92329.88333333332,0.8517334492462081]
[{"$f":"'II. Headline series'!A413","v":1715},null,0.19706511847249897,0.18483539396462936,0.05144401912215371,0.19300221283253616,0.27166107543976675,null,0.10199218016841498,{"$nulls":3},79253.62499999997,93084.87499999999,0.8514124877967552]
[{"$f":"'II. Headline series'!A414","v":1716},null,0.19637696765113924,0.18670503054251997,0.05107420521835523,0.19289450268029615,0.27123744367705543,null,0.10171185023063399,{"$nulls":3},79866.79999999996,93839.86666666665,0.8510966909586398]
[{"$f":"'II. Headline series'!A415","v":1717},null,0.19569930283899828,0.18854617768788656,0.050710026521090086,0.19278843381019123,0.270820267194831,null,0.10143579194700296,{"$nulls":3},80479.97499999995,94594.85833333332,0.8507859350706425]
[{"$f":"'II. Headline series'!A416","v":1718},null,0.1950318861704103,0.1903594816578219,0.05035135520077837,0.19268396899121581,0.2704093995608752,null,0.1011639084188985,{"$nulls":3},81093.14999999995,95349.84999999998,0.8504801003882017]
[{"$f":"'II. Headline series'!A417","v":1719},null,0.19437448692007636,0.1921455693097607,0.04999806726509035,0.19258107210998265,0.2700046987386429,null,0.10089610565644701,{"$nulls":3},81706.32499999995,96104.84166666665,0.8501790709295687]
[{"$f":"'II. Headline series'!A418","v":1720},null,0.19372688123713108,0.1939050488239927,0.04965004241603347,0.1924797081290988,0.26960602692355173,null,0.10063229247019234,{"$nulls":3},82319.49999999994,96859.83333333331,0.8498827343291591]
[{"$f":"'II. Headline series'!A419","v":1721},null,0.1930888518910069,0.19563851039412392,0.04930716391337914,0.1923798430473877,0.26921325038653315,null,0.10037238036756921,{"$nulls":3},82932.67499999994,97614.82499999998,0.8495909816977079]
[{"$f":"'II. Headline series'!A420","v":1722},null,0.19246018802848985,0.19734652688713242,0.04896931844410384,0.19228144386186363,0.26882623932447447,null,0.10011628345393574,{"$nulls":3},83545.84999999995,98369.81666666665,0.8493037074888652]
[{"$f":"'II. Headline series'!A421","v":1723},null,0.19184068494139528,0.1990296544745696,0.04863639599753759,0.1921844785313678,0.2684448677171974,null,0.09986391833793222,{"$nulls":3},84159.02499999995,99124.80833333332,0.8490208093718883]
[{"$f":"'II. Headline series'!A422","v":1724},null,0.19123014384432646,0.2006884332363676,0.04830828974593086,0.19208891594178298,0.26806901319064474,null,0.09961520404094736,{"$nulls":3},84772.19999999994,99879.79999999997,0.8487421881101079]
[{"$f":"'II. Headline series'!A423","v":1725},null,0.19062837166200902,0.20232338773863012,0.047984895930167595,0.19199472587274674,0.2676985568859614,null,0.09937006191048524,{"$nulls":3},85385.37499999993,100634.79166666664,0.8484677474448651]
[{"$f":"'II. Headline series'!A424","v":1726},null,0.19003518082572338,0.20393502758670545,0.0476661137503675,0.19190187896578892,0.26733338333417606,null,0.09912841553723868,{"$nulls":3},85998.54999999993,101389.78333333331,0.8481973939846333]
[{"$f":"'II. Headline series'!A425","v":1727},null,0.18945038907838418,0.20552384795476597,0.04735184526113526,0.1918103466938225,0.2669733803362071,null,0.09889019067568505,{"$nulls":3},86611.72499999992,102144.77499999998,0.847931037099058]
[{"$f":"'II. Headline series'!A426","v":1728},null,0.18887381928784117,0.20709033009305072,0.04704199527122799,0.19172010133192105,0.26661843884792813,null,0.09865531516803114,{"$nulls":3},87224.8999999999,102899.76666666665,0.8476685888176609]
[{"$f":"'II. Headline series'!A427","v":1729},null,0.18830529926799983,0.20863494181386225,0.04673647124742507,0.19163111592932042,0.2662684528700487,null,0.09842371887134363,{"$nulls":3},87838.07499999992,103654.7583333333,0.8474099637329717]
[{"$f":"'II. Headline series'!A428","v":1730},null,0.1877446616073828,0.21015813795734942,0.04643518322239652,0.19154336428258514,0.2659233193425754,null,0.09819533358771072,{"$nulls":3},88451.24999999991,104409.74999999997,0.84715507890786]
[{"$f":"'II. Headline series'!A429","v":1731},null,0.20752276842657877,0.2346489392367924,0.051149128591185686,0.2122510788428959,0.2944280849025472,{"$nulls":5},80338.77499999992,105164.74166666664,0.7639326044716027]
[{"$f":"'II. Headline series'!A430","v":1732},null,0.20686723073766766,0.23623336357202127,0.05081170690389618,0.21210420894521367,0.2939834898412012,{"$nulls":5},80911.79999999992,105919.73333333331,0.7638973159549741]
[{"$f":"'II. Headline series'!A431","v":1733},null,0.20622091291231243,0.23779550364132224,0.05047903091158385,0.21195940471124539,0.2935451478235361,{"$nulls":5},81484.82499999991,106674.72499999998,0.7638625269481588]
[{"$f":"'II. Headline series'!A432","v":1734},null,0.20558362179852407,0.23933582629003003,0.050151001194076304,0.21181662286626657,0.29311292785110304,{"$nulls":5},82057.8499999999,107429.71666666663,0.7638282269198321]
[{"$f":"'II. Headline series'!A433","v":1735},null,0.20495516960216167,0.2408547854136444,0.0498275210890199,0.21167582133595148,0.29268670255922263,{"$nulls":5},82630.8749999999,108184.7083333333,0.7637944056326499]
[{"$f":"'II. Headline series'!A434","v":1736},null,0.20433537370243485,0.24235282240375758,0.04950849659691433,0.2115369592050373,0.29226634809185587,{"$nulls":5},83203.8999999999,108939.69999999997,0.7637610531330629]
[{"$f":"'II. Headline series'!A435","v":1737},null,0.2037240564749783,0.24383036657568108,0.04919383629004447,0.21139999667768503,0.29185174398161107,{"$nulls":5},83776.9249999999,109694.69166666664,0.7637281597415486]
[{"$f":"'II. Headline series'!A436","v":1738},null,0.20312104512213724,0.245287835578642,0.048883451225124226,0.21126489503945567,0.2914427730346408,{"$nulls":5},84349.9499999999,110449.6833333333,0.7636957160432473]
[{"$f":"'II. Headline series'!A437","v":1739},null,0.2025261715101246,0.24672563578937276,0.04857725485947708,0.2111316166208261,0.29103932122019943,{"$nulls":5},84922.97499999989,111204.67499999996,0.7636637128789767]
[{"$f":"'II. Headline series'!A438","v":1740},null,0.20193927201272602,0.24814416268987255,0.04827516297058733,0.21100012476217211,0.290641277564642,{"$nulls":5},85495.99999999988,111959.66666666663,0.7636321413366115]
[{"$f":"'II. Headline series'!A439","v":1741},null,0.201360187361249,0.24954380123007874,0.04797709357886496,0.2108703837801501,0.2902485340496572,{"$nulls":5},86069.02499999988,112714.6583333333,0.7636009927428093]
[{"$f":"'II. Headline series'!A440","v":1742},null,0.2007887625004259,0.2509249261761467,0.04768296687347542,0.210742358935413,0.28986098551453904,{"$nulls":5},86642.04999999987,113469.64999999997,0.7635702586550668]
[{"$f":"'II. Headline series'!A441","v":1743},null,0.20022484644999763,0.2522879024449999,0.04739270514109326,0.21061601640159874,0.28947852956231057,{"$nulls":5},87215.07499999987,114224.64166666663,0.7635399308540901]
[{"$f":"'II. Headline series'!A442","v":1744},null,0.19966829217171836,0.2536330854257773,0.0471062326974461,0.21049132323553343,0.2891010664695249,{"$nulls":5},87788.09999999986,114979.6333333333,0.7635100013364675]
[{"$f":"'II. Headline series'!A443","v":1745},null,0.19911895644153496,0.2549608212887739,0.0468234758215222,0.21036824734859358,0.2887284990995753,{"$nulls":5},88361.12499999987,115734.62499999996,0.7634804623076274]
[{"$f":"'II. Headline series'!A444","v":1746},null,0.19857669972670822,0.256271447282437,0.046544362692321616,0.210246757479176,0.2883607328193571,{"$nulls":5},88934.14999999986,116489.61666666662,0.7634513061750702]
[{"$f":"'II. Headline series'!A445","v":1747},null,0.19804138606765356,0.2575652920189547,0.046268823328036744,0.2101268231662247,0.2879976754191303,{"$nulls":5},89507.17499999986,117244.6083333333,0.763422525541863]
[{"$f":"'II. Headline series'!A446","v":1748},null,0.19751288296429215,0.2588426757489439,0.045996789527554344,0.2100084147237683,0.2876392370354413,{"$nulls":5},90080.19999999985,117999.59999999996,0.7633941132003828]
[{"$f":"'II. Headline series'!A447","v":1749},null,0.19699106126671204,0.2601039106257207,0.045728194814176046,0.20989150321642347,0.28728533007696777,{"$nulls":5},90653.22499999985,118754.59166666663,0.7633660621262984]
[{"$f":"'II. Headline series'!A448","v":1750},null,0.19647579506995005,0.2613493009596107,0.045462974381460027,0.20977606043582112,0.28693586915315816,{"$nulls":5},91226.24999999984,119509.58333333328,0.7633383654727819]
[{"$f":"'II. Headline series'!A449","v":1751},null,0.19596696161271462,0.26257914346273453,0.045201065041091025,0.2096620588779159,0.28659077100554403,{"$nulls":5},91799.27499999983,120264.57499999995,0.763311016564935]
[{"$f":"'II. Headline series'!A450","v":1752},null,0.19546444117987788,0.26379372748468266,0.04494240517269067,0.20954947172113997,0.2862499544416089,{"$nulls":5},92372.29999999983,121019.56666666662,0.7632840088944284]
[{"$f":"'II. Headline series'!A451","v":1753},null,0.194968117008575,0.26499333523947205,0.0446869346754844,0.2094382728053651,0.2859133402711034,{"$nulls":5},92945.32499999984,121774.55833333329,0.7632573361143364]
[{"$f":"'II. Headline series'!A452","v":1754},null,0.19447787519775567,0.2661782420241591,0.04443459492174531,0.2093284366116381,0.2855808512447018,{"$nulls":5},93518.34999999983,122529.54999999996,0.7632309920341653]
[{"$f":"'II. Headline series'!A453","v":1755},null,0.1939936046210403,0.26734871642946395,0.044185328711939156,0.20921993824265672,0.28525241199489987,{"$nulls":5},94091.37499999983,123284.54166666663,0.7632049706150631]
[{"$f":"'II. Headline series'!A454","v":1756},null,0.19351519684274168,0.2685050205427456,0.04393908023149851,0.2091127534039546,0.2849279489790596,{"$nulls":5},94664.39999999982,124039.53333333328,0.7631792659652046]
[{"$f":"'II. Headline series'!A455","v":1757},null,0.19304254603691812,0.2696474101436491,0.04369579500915739,0.20900685838576574,0.28460739042450967,{"$nulls":5},95237.42499999981,124794.52499999995,0.7631538723353436]
[{"$f":"'II. Headline series'!A456","v":1758},null,0.19257554890933126,0.270776134892732,0.043455419876781025,0.20890223004553943,0.28429066627561633,{"$nulls":5},95810.44999999981,125549.51666666662,0.7631287841145268]
[{"$f":"'II. Headline series'!A457","v":1759},null,0.19211410462218798,0.2718914385133623,0.0432179029306286,0.208798845791079,0.2839777081427422,{"$nulls":5},96383.4749999998,126304.50833333329,{"$f":"M455/N455","v":0.7631039958259592}]
[{"$f":"'II. Headline series'!A458","v":1760},null,0.19165811472155075,0.27299355896716593,0.04298319349398958,0.20869668356427865,0.28366844925301504,{"$nulls":5},96956.49999999981,127059.49999999996,0.7630795021230199]
[{"$f":"'II. Headline series'!A459","v":1761},null,0.19120748306730745,0.2740827286232898,0.04275124208113732,0.20859572182543334,0.28336282440283206,{"$nulls":5},97529.5249999998,127814.49166666661,0.7630552977854156]
[{"$f":"'II. Headline series'!A460","v":1762},null,0.19076211576559468,0.2751591744217321,0.04252200036254581,0.20849593953809883,0.28306076991202866,{"$nulls":5},98102.54999999978,128569.48333333328,0.7630313777154726]
[{"$f":"'II. Headline series'!A461","v":1763},null,0.19032192110357643,0.2762231180309821,0.04229542113131848,0.20839731615447876,0.2827622235796442,{"$nulls":5},98675.5749999998,129324.47499999995,0.763007736934558]
[{"$f":"'II. Headline series'!A462","v":1764},null,0.18988680948648182,0.2772747760001991,0.04207145827077999,0.20829983160131876,0.2824671246412203,{"$nulls":5},99248.59999999979,130079.46666666662,0.7629843705796239]
[{"$f":"'II. Headline series'!A463","v":1765},null,0.1894566933768113,0.27831435990614956,0.04185006672318416,0.2082034662662856,0.2821754137275694,{"$nulls":5},99821.62499999978,130834.45833333328,0.7629612738998727]
[{"$f":"'II. Headline series'!A464","v":1766},null,0.189031487235625,0.2793420764951123,0.041631202459493616,0.2081082009848132,0.2818870328249558,{"$nulls":5},100394.64999999979,131589.44999999995,0.762938442253538]
[{"$f":"'II. Headline series'!A465","v":1767},null,0.18861110746583046,0.28035812781995195,0.04141482245018849,0.20801401702739658,0.2816019252366326,{"$nulls":5},100967.67499999977,132344.44166666662,0.7629158711047729]
[{"$f":"'II. Headline series'!A466","v":1768},null,0.18819547235739012,0.28136271137255014,0.041200884637063444,0.20792089608731584,0.2813200355456805,{"$nulls":5},101540.69999999976,133099.4333333333,0.7628935560206477]
[{"$f":"'II. Headline series'!A467","v":1769},null,0.18778450203437436,0.28235602021177886,0.04098934790597445,0.2078288202687736,0.2810413095790987,{"$nulls":5},102113.72499999977,133854.42499999993,0.7628714926682463]
[{"$f":"'II. Headline series'!A468","v":1770},null,0.1873781184037867,0.28333824308718863,0.040780172060497916,0.2077377720754298,0.28076569437309695,{"$nulls":5},102686.74999999977,134609.4166666666,0.7628496768118611]
[{"$f":"'II. Headline series'!A469","v":1771},null,0.1869762451060933,0.28430956455857764,0.0405733177964669,0.2076477343993177,0.28049313813954446,{"$nulls":5},103259.77499999976,135364.40833333327,0.7628281043102835]
[{"$f":"'II. Headline series'!A470","v":1772},null,0.1865788074673903,0.28527016511160286,0.04036874667735052,0.20755869051012754,0.2802235902335288,{"$nulls":5},103832.79999999976,136119.39999999994,0.7628067711141822]
[{"$f":"'II. Headline series'!A471","v":1773},null,0.18618573245314662,0.2862202212695831,0.04016642111044412,0.2074706240448427,0.2799570011219835,{"$nulls":5},104405.82499999975,136874.3916666666,0.7627856732635692]
[{"$f":"'II. Headline series'!A472","v":1774},null,0.18579694862346127,0.2871599057016409,0.039966304323839213,0.2073835189977153,0.2796933223533434,{"$nulls":5},104978.84999999974,137629.38333333327,0.7627648068853499]
[{"$f":"'II. Headline series'!A473","v":1775},null,0.18541238608977859,0.28808938732732164,0.03976836034414359,0.2072973597105686,0.27943250652818763,{"$nulls":5},105551.87499999974,138384.37499999994,0.762744168190952]
[{"$f":"'II. Headline series'!A474","v":1776},null,0.18503197647300537,0.2890088314178234,0.039572553974923264,0.20721213086341314,0.2791745072708347,{"$nulls":5},106124.89999999975,139139.3666666666,0.7627237534740333]
[{"$f":"'II. Headline series'!A475","v":1777},null,0.18465565286297786,0.28991839969396505,0.03937885077583906,0.2071278174653659,0.2789192792018521,{"$nulls":5},106697.92499999974,139894.35833333325,0.7627035591082614]
[{"$f":"'II. Headline series'!A476","v":1778},null,0.18428334977922775,0.2908182504210137,0.03918721704245186,0.20704440484585965,0.2786667779114471,{"$nulls":5},107270.94999999972,140649.34999999992,0.7626835815451674]
[{"$f":"'II. Headline series'!A477","v":1779},null,0.18391500313299886,0.29170853850048994,0.03899761978667176,0.2069618786461333,0.27841695993370613,{"$nulls":5},107843.97499999973,141404.34166666662,0.762663817312067]
[{"$f":"'II. Headline series'!A478","v":1780},null,0.18355055019046876,0.29258941555906093,0.03881002671782716,0.2068802248109918,0.2781697827216513,{"$nulls":5},108416.99999999972,142159.33333333328,0.7626442630100481]
[{"$f":"'II. Headline series'!A479","v":1781},null,0.18318992953713015,0.2934610300346297,0.03862440622433109,0.206799429580826,0.27792520462308307,{"$nulls":5},108990.02499999972,142914.32499999995,0.7626249153120217]
[{"$f":"'II. Headline series'!A480","v":1782},null,0.18283308104329013,0.29432352725972283,0.038440727355922764,0.20671947948388283,0.27768318485718135,{"$nulls":5},109563.04999999973,143669.31666666665,0.7626057709608355]
[{"$f":"'II. Headline series'!A481","v":1783},null,0.1824799458306468,0.29517704954227497,0.03825895980646367,0.2066403613287771,0.27744368349183746,{"$nulls":5},110136.0749999997,144424.30833333332,0.7625868267674449]
[{"$f":"'II. Headline series'!A482","v":1784},null,0.1821304662399031,0.2960217362439045,0.038079073897267716,0.2065620621972355,0.27720666142168926,{"$nulls":5},110709.0999999997,145179.30000000002,0.7625680796091432]
[{"$f":"'II. Headline series'!A483","v":1785},null,0.181784585799382,0.2968577238557709,0.03790104056094664,0.2064845694370648,0.2769720803468356,{"$nulls":5},111282.12499999971,145934.2916666667,0.7625495264278451]
[{"$f":"'II. Headline series'!A484","v":1786},null,0.16228226531364298,0.26625011577644886,0.03374115517908868,0.18461156085310051,0.24751665348425422,0.10559824939346475,{"$nulls":4},125061.41666666634,146689.28333333335,0.8525600086441192]
[{"$f":"'II. Headline series'!A485","v":1787},null,0.16187646272565148,0.26681328291536477,0.033563858067786,0.184426611544787,0.24715425016521606,0.1061655345811947,{"$nulls":4},125781.87499999967,147444.27500000005,0.8530807655977122]
[{"$f":"'II. Headline series'!A486","v":1788},null,0.16147528240585857,0.267370035335317,0.033388580447791485,0.18424376888963806,0.24679597477780332,0.10672635814359162,{"$nulls":4},126502.333333333,148199.26666666672,0.8535962166254508]
[{"$f":"'II. Headline series'!A487","v":1789},null,0.1610786458270224,0.26792048201531016,0.03321528801017376,0.1840629970979384,0.24644175719300768,0.10728082985654766,{"$nulls":4},127222.79166666632,148954.2583333334,0.8541064424084078]
[{"$f":"'II. Headline series'!A488","v":1790},null,0.16068647623067303,0.26846472947967204,0.03304394721878646,0.18388426118611145,0.24609152886142827,0.10782905702332878,{"$nulls":4},127943.24999999965,149709.2500000001,0.8546115220001408]
[{"$f":"'II. Headline series'!A489","v":1791},null,0.1602986985775908,0.26900288186677906,0.03287452528863197,0.1837075269541492,0.2457452227690463,0.10837114454380273,{"$nulls":4},128663.70833333298,150464.24166666676,0.855111532867524]
[{"$f":"'II. Headline series'!A490","v":1792},null,0.15991523949993924,0.2695350409954854,0.032706990164948054,0.18353276096379606,0.24540277339447714,0.10890719498135402,{"$nulls":4},129384.16666666632,151219.23333333345,0.8556065509303571]
[{"$f":"'II. Headline series'!A491","v":1793},null,0.15953602725498847,0.2700613064293452,0.032541310502989425,0.18335993051745816,0.24506411666764288,0.10943730862757574,{"$nulls":4},130104.62499999965,151974.22500000012,0.8560966505997945]
[{"$f":"'II. Headline series'!A492","v":1794},null,0.15916099168036754,0.2705817755387127,0.0323774556484772,0.18318900363780863,0.24472918992981033,0.10996158356482358,{"$nulls":4},130825.08333333296,152729.2166666668,0.856581904815633]
[{"$f":"'II. Headline series'!A493","v":1795},null,0.15879006415078725,0.27109654356080143,0.032215395618690995,0.18301994904806376,0.24439793189494202,0.11048011572671447,{"$nulls":4},131545.5416666663,153484.2083333335,0.8570623850825012]
[{"$f":"'II. Headline series'!A494","v":1796},null,0.15842317753617755,0.271605703657781,0.032055101084178854,0.18285273615290362,0.244070282612311,0.11099299895664802,{"$nulls":4},132265.99999999962,154239.20000000016,0.8575381615049837]
[{"$f":"'II. Headline series'!A495","v":1797},null,0.1580602661611854,0.2721093469729848,0.03189654335106175,0.1826873350200126,0.24374618343032992,0.11150032506442546,{"$nulls":4},132986.45833333296,154994.19166666683,0.8580093028217207]
[{"$f":"'II. Headline series'!A496","v":1798},null,0.1577012657659824,0.27260756268530156,0.03173969434391016,0.18252371636221723,0.24342557696155032,0.11200218388103837,{"$nulls":4},133706.91666666628,155749.18333333352,0.8584758764385139]
[{"$f":"'II. Headline series'!A497","v":1799},null,0.15734611346833235,0.2731004380618164,0.0315845265891713,0.1823618515201978,0.24310840704878697,0.11249866331169532,{"$nulls":4},134427.3749999996,156504.1750000002,0.8589379484604767]
[{"$f":"'II. Headline series'!A498","v":1800},null,0.1446872979088794,0.25214039003799493,0.028967009636727537,0.167918187263244,0.22376097187857605,0.10413212056877041,0.07839402270580759,{"$nulls":3},146643.8333333329,157259.1666666669,0.9324978406134207]
[{"$f":"'II. Headline series'!A499","v":1801},null,0.14438760975825454,0.25262123207164816,0.02883116423504425,0.16779622142774606,0.22350689002869775,0.1045949938301837,0.07826188864842548,{"$nulls":3},147404.44166666624,158014.15833333356,0.9328559112767228]
[{"$f":"'II. Headline series'!A500","v":1802},null,0.14409099851820698,0.25309713728035094,0.0286967135636913,0.16767550782050114,0.2232554168476299,0.10505311475277068,0.07813111121684901,{"$nulls":3},148165.04999999958,158769.15000000023,0.9332105764879346]
[{"$f":"'II. Headline series'!A501","v":1803},null,0.1437974170446008,0.2535681813056731,0.028563636252741092,0.16755602725498517,0.22300651236559316,0.10550655615142213,0.07800166962498457,{"$nulls":3},148925.6583333329,159524.14166666692,0.9335618845987583]
[{"$f":"'II. Headline series'!A502","v":1804},null,0.14350681915152352,0.2540344382517393,0.02843191136661835,0.16743776093464777,0.22276013742520978,0.10595538936103692,0.07787354350922414,{"$nulls":3},149686.26666666626,160279.1333333336,0.9339098830498586]
[{"$f":"'II. Headline series'!A503","v":1805},null,0.14321915958706397,0.2544959807240932,0.028301518393120492,0.16732069044305464,0.22251625366096794,0.10639968427393394,0.07774671291776579,{"$nulls":3},150446.87499999956,161034.12500000026,0.9342546183922155]
[{"$f":"'II. Headline series'!A504","v":1806},null,0.14293439400982072,0.25495287986738796,0.028172437232769236,0.16720479773432692,0.22227482347930494,0.10683950937613432,0.07762115830025607,{"$nulls":3},151207.48333333287,161789.11666666696,0.9345961363078867]
[{"$f":"'II. Headline series'!A505","v":1807},null,0.1426524789661167,0.25540520540194583,0.02804464818848211,0.16709006512386798,0.22203581003928913,0.10727493178255461,0.07749686049774372,{"$nulls":3},151968.0916666662,162544.10833333363,0.9349344816301869]
[{"$f":"'II. Headline series'!A506","v":1808},null,0.14237337186789428,0.2558530256592249,0.027918131955552556,0.16697647527936751,0.22179917723387907,0.10770601727114815,0.0773738007329336,{"$nulls":3},152728.69999999955,163299.10000000033,0.9352696983633054]
[{"$f":"'II. Headline series'!A507","v":1809},null,0.1420970309712673,0.25629640761623124,0.027792869611927905,0.1668640112120726,0.22156488967173954,0.10813283031603127,0.0772519606007302,{"$nulls":3},153489.30833333288,164054.091666667,0.935601829701388]
[{"$f":"'II. Headline series'!A508","v":1810},null,0.14182341535570833,0.25673541692891283,0.02766884260877504,0.16675265626831737,0.22133291265959593,0.1085554341196295,0.07713132205906105,{"$nulls":3},154249.91666666622,164809.08333333366,0.9359309180470893]
[{"$f":"'II. Headline series'!A509","v":1811},null,0.14155248490384806,0.25717011796457084,0.02754603276132378,0.16664239412130194,0.22110321218510776,0.10897389064387729,0.0770118674199703,{"$nulls":3},155010.52499999956,165564.07500000036,0.9362570050296191]
[{"$f":"'II. Headline series'!A510","v":1812},null,0.14128420028186692,0.2576005738333208,0.027424422239978558,0.16653320876311226,0.22087575490024436,0.10938826064050383,0.07689357934097327,{"$nulls":3},155771.1333333329,166319.06666666703,0.9365801315222982]
[{"$f":"'II. Headline series'!A511","v":1813},null,0.1410185229204581,0.25802684641863677,0.027303993561689208,0.1664250844969724,0.22065050810514492,0.10979860368043569,0.07677644081666285,{"$nulls":3},156531.74166666623,167074.0583333337,0.936900337659637]
[{"$f":"'II. Headline series'!A512","v":1814},null,0.1407554149963432,0.2584489964070094,0.02718472958157214,0.16631800592972212,0.220427439732447,0.11020497818234652,0.07666043517055975,{"$nulls":3},157292.34999999954,167829.0500000004,0.9372176628539527]
[{"$f":"'II. Headline series'!A513","v":1815},null,0.14049483941432117,0.2588670833167473,0.027066613484773416,0.16621195796451085,0.2202065183320672,0.11060744144038226,0.07654554604719772,{"$nulls":3},158052.9583333329,168584.04166666706,0.9375321458115428]
[{"$f":"'II. Headline series'!A514","v":1816},null,0.14023675978983363,0.2592811655259515,0.026949628778565715,0.1661069257937027,0.21998771305642,0.11100604965108993,0.07643175740443664,{"$nulls":3},158813.56666666621,169339.03333333376,0.9378438245484206]
[{"$f":"'II. Headline series'!A515","v":1817},null,0.13998114043202833,0.25969130029968857,0.026833759284671205,0.1660028948919831,0.2197709936460581,0.11140085793957584,0.07631905350599488,{"$nulls":3},159574.17499999955,170094.02500000043,0.9381527364056389]
[{"$f":"'II. Headline series'!A516","v":1818},null,0.13972794632730492,0.26009754381639205,0.026718989131803053,0.1658998510096629,0.21955633041572262,0.11179192038491968,0.07620741891419479,{"$nulls":3},160334.7833333329,170849.0166666671,0.9384589180642]
[{"$f":"'II. Headline series'!A517","v":1819},null,0.13947714312332687,0.26049995119351427,0.026605302748418148,0.16579778016617122,0.2193436942407879,0.11217929004486846,0.0760968384829133,{"$nulls":3},161095.3916666662,171604.0083333338,0.9387624055595774]
[{"$f":"'II. Headline series'!A518","v":1820},null,0.1392286971134836,0.2608985765124555,0.02649268485567418,0.1656966686437327,0.21913305654408857,0.11256301897983392,0.07598729735073151,{"$nulls":3},161856,172359,0.9390632342958593]
[{"$f":"'II. Headline series'!A519","v":1821},null,0.13736497450981772,0.25347534762738255,0.026759332663703502,0.1672434281313085,0.23124193170401833,0.10936031444594305,0.07455467091782617,{"$nulls":3},166596.08279569895,176361.6888860839,0.9446273952576357]
[{"$f":"'II. Headline series'!A520","v":1822},null,0.1392144085169829,0.25302414182367544,0.02695137325762272,0.17319582798715788,0.22329853872650643,0.1091656445932922,0.07515006509476244,{"$nulls":3},166893.16559139785,180364.3777721678,0.9253111265807349]
[{"$f":"'II. Headline series'!A521","v":1823},null,0.13868489004682624,0.24832659993458864,0.02765065058474083,0.17611441491003693,0.22761507476243698,0.10713892024742518,0.07446944951394538,{"$nulls":3},170050.24838709674,184367.06665825172,{"$f":"M519/N519","v":0.9223461189102007}]
[{"$f":"'II. Headline series'!A522","v":1824},null,0.1382984355257619,0.2440186717588591,0.028147554943104166,0.17908686804839216,0.23128841851729506,0.10528029224151401,0.07387975896507357,{"$nulls":3},173052.3311827957,188369.7555443356,0.9186842690469239]
[{"$f":"'II. Headline series'!A523","v":1825},null,0.14030563452199418,0.2439974055731095,0.028145101888477228,0.18509839179766446,0.22260689701405742,0.10527111708194757,0.07457545212274946,{"$nulls":3},173067.41397849465,192372.4444304195,0.899647631400206]
[{"$f":"'II. Headline series'!A524","v":1826},null,0.14005726093380388,0.2401098585857578,0.027872940389963644,0.1880803698578256,0.22620750459688366,0.10359385984592975,0.07407820578983565,{"$nulls":3},175869.49677419354,196375.1333165034,0.8955792609990983]
[{"$f":"'II. Headline series'!A525","v":1827},null,0.14113504293197263,0.23857279426442238,0.028954380283346706,0.1927695069919976,0.22134705660902257,0.10293070329410607,0.07429051562513223,{"$nulls":3},177002.57956989243,200377.82220258733,0.8833441626635612]
[{"$f":"'II. Headline series'!A526","v":1828},null,0.1417154208327868,0.23624893571683356,0.03005980703813931,0.19672753447379912,0.2190735015818833,0.10192808941519822,0.07424671094135972,{"$nulls":3},178743.6623655914,204380.51108867122,0.874563144076114]
[{"$f":"'II. Headline series'!A527","v":1829},null,0.14138452068582327,0.23248983806671847,0.030236672128976457,0.19934016098081525,0.22250821268983675,0.10030625082261874,0.07373434462521092,{"$nulls":3},181633.74516129034,208383.19997475512,0.8716333427229]
[{"$f":"'II. Headline series'!A528","v":1830},null,0.14286642542007857,0.23177259585751167,0.029089579379672537,0.20445034564015133,0.2176504283586631,0.09999680126759508,0.07417382407632762,{"$nulls":3},182195.82795698926,212385.888860839,0.8578527930185085]
[{"$f":"'II. Headline series'!A529","v":1831},null,0.14103716963384266,0.2365791794699309,0.028325984606018078,0.20223383168110964,0.21588271166889353,0.1030373878187872,0.07290373512141814,{"$nulls":3},187036.74642520276,216823.9777469229,0.8626202155718782]
[{"$f":"'II. Headline series'!A530","v":1832},null,0.1386779347816942,0.22725071808617753,0.02925204448789655,0.19923514470077341,0.22875534612830062,0.10545136631923308,0.07137744549592455,{"$nulls":3},192738.66489341634,221262.06663300682,0.8710877007810814]
[{"$f":"'II. Headline series'!A531","v":1833},null,0.13906399855207488,0.2272482355435553,0.029489013728922566,0.20016514778212194,0.2229702229284051,0.10978691678063753,0.07127646468428242,{"$nulls":3},194716.58336162992,225700.1555190907,0.8627224155597001]
[{"$f":"'II. Headline series'!A532","v":1834},null,0.1379186296451851,0.23154109935668746,0.028913723695890042,0.19887931016897867,0.21955824656237338,0.11278922350170084,0.07039976706918454,{"$nulls":3},198867.50182984342,230138.24440517463,0.8641219209082135]
[{"$f":"'II. Headline series'!A533","v":1835},null,0.13539227182278735,0.2364843882358128,0.028382805876231796,0.19558346097580695,0.22086239049696293,0.11446166524926221,0.0688330173431359,{"$nulls":3},205159.42029805697,234576.33329125852,0.874595563071248]
[{"$f":"'II. Headline series'!A534","v":1836},null,0.13476768906972714,0.24107903734279634,0.028653111327064478,0.19501818997731774,0.21467313491412537,0.11756240610096069,0.06824643126800825,{"$nulls":3},208703.3387662705,239014.4221773424,0.8731830358396453]
[{"$f":"'II. Headline series'!A535","v":1837},null,0.13481693717784893,0.23501644996740234,0.029377056245925293,0.19541828620927026,0.2162160808533702,0.12114636127158404,0.06800882827459902,{"$nulls":3},211219.25723448402,243452.51106342633,0.867599419335853]
[{"$f":"'II. Headline series'!A536","v":1838},null,0.13197284490825043,0.2396126614415825,0.029209889559715995,0.19160983930669523,0.21929851097505274,0.12197290891018221,0.06632334489852085,{"$nulls":3},218419.1757026976,247890.59994951022,0.8811111665677711]
[{"$f":"'II. Headline series'!A537","v":1839},null,0.1316786540337327,0.24736292355427225,0.02926957922945399,0.19148858788314174,0.20927410641975222,0.12499486926453335,0.06593127961511377,{"$nulls":3},221561.09417091112,252328.6888355941,0.8780654121944502]
[{"$f":"'II. Headline series'!A538","v":1840},null,0.13145340121732724,0.23701772640883326,0.02933224596275676,0.19145915155906387,0.22185293743658832,0.1233040709915886,0.06558046642384195,{"$nulls":3},224599.2348613469,256766.77772167802,0.8747207752273969]
[{"$f":"'II. Headline series'!A539","v":1841},null,0.1312904905538188,0.2290193665770692,0.02959483438295147,0.19151266851671578,0.22433447001451703,0.12898115004687466,0.06526701990805281,{"$nulls":3},227539.70888511604,261839.96660776192,0.8690029709099837]
[{"$f":"'II. Headline series'!A540","v":1842},null,0.1325423849960172,0.22360492003435287,0.029628046594337647,0.19362557644929665,0.21897827865527852,0.13596039854184705,0.06566039472887016,{"$nulls":3},228027.18290888506,266913.1554938458,0.8543122668007372]
[{"$f":"'II. Headline series'!A541","v":1843},null,0.13053463578084973,0.22153466091108961,0.028521210632657723,0.19096851632982487,0.22456183730907678,0.13943370892675197,0.06444543010974921,{"$nulls":3},234211.6569326542,271986.3443799297,0.8611154999954367]
[{"$f":"'II. Headline series'!A542","v":1844},null,0.12777656080048358,0.22739882406204634,0.027780747109250013,0.18719756866303466,0.2251922319221773,0.14178112067745255,0.06287294676555545,{"$nulls":3},242002.1309564233,277059.5332660136,0.873466175675931]
[{"$f":"'II. Headline series'!A543","v":1845},null,0.12709858387812226,0.2355323786490772,0.02766594021611825,0.18646107418975646,0.21473110319350305,0.14617658055425836,0.0623343393191644,{"$nulls":3},246042.60498019238,282132.72215209756,0.8720810656182978]
[{"$f":"'II. Headline series'!A544","v":1846},null,0.12512117348674828,0.24441675776779365,0.02705321957031577,0.18380728302134317,0.20957638943129658,0.14885799623157514,0.061167180490927356,{"$nulls":3},252724.0790039615,287205.91103818145,0.8799403817645107]
[{"$f":"'II. Headline series'!A545","v":1847},null,0.12214334679934796,0.23770704630218475,0.026242943490729632,0.17966878137090103,0.2246677150845606,0.15004718449595952,0.059522982456316625,{"$nulls":3},261746.55302773055,292279.09992426535,0.8955363318675666]
[{"$f":"'II. Headline series'!A546","v":1848},null,0.12355614424649893,0.24043318537178307,0.026523228977937623,0.18198055364060303,0.21101602668264643,0.15646589763068364,0.06002496344984721,{"$nulls":3},261582.0270514997,297352.28881034924,0.8797040981189025]
[{"$f":"'II. Headline series'!A547","v":1849},null,0.12221064598965685,0.23947194573763536,0.02663085450053465,0.1802249344187045,0.2129757605392526,0.159295080375933,0.05919077843828302,{"$nulls":3},267321.5010752688,302425.47769643314,0.8839252007187013]
[{"$f":"'II. Headline series'!A548","v":1850},null,0.1229428235259074,0.23584737053750948,0.027348346067348792,0.17938578854087545,0.21610219978255366,0.15855338605662542,0.05982008548917981,{"$nulls":3},268572,307498.6665825167,0.8734086654256409]
[{"$f":"'II. Headline series'!A549","v":1851},null,0.12227816532040835,0.24092190745074996,0.027548212716516696,0.17490251169944734,0.20863821862430892,0.16620378016008194,0.0595072040284868,{"$nulls":3},274101.26666666666,315910.6995047487,0.8676542677926818]
[{"$f":"'II. Headline series'!A550","v":1852},null,0.11967537883727847,0.23629538377241335,0.026887571810434528,0.17201431376761894,0.21437930358303928,0.17074886449677104,0.05999918373244439,{"$nulls":3},284220.5333333333,324322.73242698074,0.8763509458817347]
[{"$f":"'II. Headline series'!A551","v":1853},null,0.12023391959553899,0.2425839294199948,0.02640061204269249,0.16949973313712294,0.2019552757327581,0.1794321882616566,0.05989434181023611,{"$nulls":3},287038.8,332734.76534921274,0.862665491833251]
[{"$f":"'II. Headline series'!A552","v":1854},null,0.11795060925908497,0.24064897193776308,0.026245386842627182,0.1679165699918535,0.20471738648505206,0.18354139100774872,0.05897968447587053,{"$nulls":3},296814.06666666665,341146.79827144474,0.8700479329443881]
[{"$f":"'II. Headline series'!A553","v":1855},null,0.11856877302730438,0.2377686750742996,0.02651743674796024,0.16405347343581297,0.19983080844622048,0.1918476385534122,0.061413194714990155,{"$nulls":3},299463.3333333333,349558.83119367674,0.856689365594693]
[{"$f":"'II. Headline series'!A554","v":1856},null,0.11453352954237611,0.2429391147562052,0.025563162579296386,0.1691125994326225,0.1987189152770117,0.19221678681607562,0.056915891596412506,{"$nulls":3},314358.6,357970.86411590874,0.8781681178896521]
[{"$f":"'II. Headline series'!A555","v":1857},null,0.11228099604364071,0.2390579792320361,0.025158655276693944,0.17155809765827745,0.20313330201275395,0.19501469613261932,0.05379627364397853,{"$nulls":3},325096.86666666664,366382.8970381408,0.8873145261276313]
[{"$f":"'II. Headline series'!A556","v":1858},null,0.11096517833900023,0.23375391029406534,0.024109564610274192,0.16655663393409473,0.21186965939704197,0.19905561124949062,0.053689442176032914,{"$nulls":3},333436.1333333333,374794.9299603728,0.8896495301272822]
[{"$f":"'II. Headline series'!A557","v":1859},null,0.1118869809426848,0.23860135753681191,0.023303944304468274,0.1664188073870818,0.19707199814761991,0.2069187351776769,0.05579817650365643,{"$nulls":3},335136.39999999997,383206.9628826048,0.8745571778732757]
[{"$f":"'II. Headline series'!A558","v":1860},null,0.10981309086494966,0.2363026269013893,0.02279499533232947,0.17079916877892004,0.2039815374121741,0.20042370309569157,0.05588487761454579,{"$nulls":3},345997,391618.9958048368,0.8835041295403032]
[{"$f":"'II. Headline series'!A559","v":1861},null,0.10981171556178974,0.24279386206604214,0.023141529319732873,0.166681438607173,0.1911957950065703,0.20974292969969288,0.056632729738999084,{"$nulls":3},346001.3333333333,400226.2287270688,0.8645143883593053]
[{"$f":"'II. Headline series'!A560","v":1862},null,0.10878493243963111,0.23535188367665522,0.022576326772620104,0.16820377893376445,0.1995877358359467,0.2106623556496403,0.05483298669174221,{"$nulls":3},359801.6666666666,408833.4616493008,0.8800690266769459]
[{"$f":"'II. Headline series'!A561","v":1863},null,0.10349365586613271,0.23017946954680907,0.022725617895716192,0.1753677709909254,0.20068228092175344,0.2131035691652171,0.05444763561344606,{"$nulls":3},370815,417440.69457153283,0.8883058236107284]
[{"$f":"'II. Headline series'!A562","v":1864},null,0.10386567165486559,0.23021108815034852,0.023021108815034854,0.17588547611559963,0.19777129737263274,0.21614438475035497,0.05310097314116372,{"$nulls":3},380520.3333333333,426047.92749376484,0.8931397356437139]
[{"$f":"'II. Headline series'!A563","v":1865},null,0.10514943093708463,0.23441653743907845,0.023403750830748783,0.17436638098139123,0.18992215191626055,0.2218947302835622,0.05084701761187418,{"$nulls":3},385194.6666666666,434655.16041599686,0.8862075082647289]
[{"$f":"'II. Headline series'!A564","v":1866},null,0.10782726114391013,0.23260961160662164,0.023490920905015967,0.1716829702879827,0.18694001248788017,0.2251321126345873,0.05231711093400206,{"$nulls":3},393982,443262.39333822887,0.8888234281119677]
[{"$f":"'II. Headline series'!A565","v":1867},null,0.10020469714341577,0.23345507682360114,0.024015682871214025,0.17462372857518954,0.17830518997730066,0.2364865154577643,0.05290910915151448,{"$nulls":3},388704.3333333333,451869.6262604609,0.8602134570321426]
[{"$f":"'II. Headline series'!A566","v":1868},null,0.1003831713953544,0.23119872501096364,0.022921169705352143,0.1775045397212237,0.1874915150203681,0.23486094506834465,0.0456399340783934,{"$nulls":3},405127.6666666666,460476.8591826929,0.8798002735375967]
[{"$f":"'II. Headline series'!A567","v":1869},null,0.09965148862070386,0.2284796039709469,0.02313398676189577,0.17531163795504473,0.18897841845100136,0.23825196961000142,0.04619289463040599,{"$nulls":3},412898.99999999994,469084.0921049249,0.8802238382188465]
[{"$f":"'II. Headline series'!A568","v":1870},null,0.09513612910948789,0.227930884955959,0.022643008487531056,0.1641548220528805,0.16404352502251632,0.2238226805619353,0.04449423974901098,0.057774710060678865,null,null,439517.56700000004,503084.3250271565,0.8736459180601083]
[{"$f":"'II. Headline series'!A569","v":1871},null,0.09377161580728045,0.23418440014604358,0.022054098336333528,0.15899328771276705,0.1589761626233327,0.22817628878213028,0.04681449318949736,0.05702965340261503,null,null,450800.56542691775,516383.15087625105,0.8729962715901048]
[{"$f":"'II. Headline series'!A570","v":1872},null,0.08867494280846383,0.22525706099409268,0.021602688745558315,0.16321939799837898,0.1667427739634418,0.22796095708093841,0.051172779549649966,0.055369398859476046,null,null,469663.7589654713,530022.6297253456,0.8861202005824695]
[{"$f":"'II. Headline series'!A571","v":1873},null,0.0902023368125967,0.22567362377393788,0.021828246124020435,0.16671528086026816,0.1517939737322048,0.23436599323914836,0.05452058877195173,0.05489995668587187,null,null,479745.3693943971,545645.5635744402,0.8792252726324006]
[{"$f":"'II. Headline series'!A572","v":1874},null,0.08735502042150661,0.22291782973456215,0.020685094158763906,0.17400792965958753,0.16622153605271733,0.22630461136096006,0.04854404551035477,0.05396393310154759,null,null,493737.1771968915,554229.7684235348,0.8908528652318515]
[{"$f":"'II. Headline series'!A573","v":1875},null,0.08695991219866178,0.2210183134971871,0.021380857391448696,0.16933146674913252,0.1662466390752282,0.23045577063483658,0.04835586283892916,0.056251177614575966,null,null,510175.9859435137,571256.3462726293,0.8930771435141915]
[{"$f":"'II. Headline series'!A574","v":1876},null,0.08611906599795344,0.22581671131865252,0.02195877365480235,0.17036031426702564,0.15442837925971728,0.2359150385413089,0.04984249002953873,0.055559226931001175,null,null,504308.6728833845,579994.1181217239,0.8695065296809524]
[{"$f":"'II. Headline series'!A575","v":1877},null,0.08400852866799019,0.22256406641970114,0.021992355935214553,0.16534814631941944,0.1588267509238636,0.2377028425250438,0.05360878667382773,0.055948522534939524,null,null,516724.994515197,594188.1469708185,0.8696319459576398]
[{"$f":"'II. Headline series'!A576","v":1878},null,0.08386181138696844,0.21979628602333176,0.021832343667358128,0.17033752160774002,0.1543157739649269,0.24361301229942584,0.051367308757643615,0.05487594229260534,null,null,525275.7182063776,608385.596819913,0.8633927577379242]
[{"$f":"'II. Headline series'!A577","v":1879},null,0.08348883667341836,0.2154702456724815,0.020748051105942397,0.16363526631278597,0.14239453424107504,0.26928249893919787,0.04776136163921651,0.057219205415882324,null,null,533736.8769459182,634873.2036690076,0.8406983849080247]
[{"$f":"'II. Headline series'!A578","v":1880},null,0.08205546854302002,0.21159046482070337,0.021639669643251373,0.1522425012309615,0.1455044093331428,0.28234733746497137,0.04876966073257741,0.05585048823137216,null,null,569001.2926717658,662501.7985181023,0.8588675441251928]
[{"$f":"'II. Headline series'!A579","v":1881},null,0.07492909702879207,0.21453195315854087,0.021580027020113208,0.15275039743252214,0.14794701210884662,0.28631739677235846,0.04898012193352967,0.05296399454529698,null,null,581092.8776091132,677566.4873671968,0.8576175009290251]
[{"$f":"'II. Headline series'!A580","v":1882},null,0.07812874148506747,0.2116080053253999,0.02124215957107987,0.1487960234425585,0.1485163479322383,0.2920314352155557,0.04756758855097505,0.052109698477125176,null,null,606105.9826294057,697297.1412162913,0.8692219525985415]
[{"$f":"'II. Headline series'!A581","v":1883},null,0.07639332685783605,0.20896061739989474,0.022352925294979616,0.15397588671897433,0.14610559419089778,0.29336111177882845,0.047695732317313194,0.051154805441275736,null,null,618084.6496678903,711535.157065386,0.8686635418228419]
[{"$f":"'II. Headline series'!A582","v":1884},null,0.07622848034239037,0.20738531380715755,0.022545023652329785,0.15635403003696374,0.14313116929299063,0.2958840000716109,0.04738382112950734,0.05108816166704976,null,null,623862.7298377899,724537.8679144805,0.8610491700503173]
[{"$f":"'II. Headline series'!A583","v":1885},null,0.07741162291810838,0.20525133713366434,0.022929009614165073,0.15934014646017108,0.13986540059644223,0.2966067850993038,0.045886724345387805,0.05270897383275727,null,null,627065.8978274214,735652.2607635751,0.8523944413309548]
[{"$f":"'II. Headline series'!A584","v":1886},null,0.07909477185427856,0.20396133196522623,0.022769560125129977,0.15700101297065608,0.13909139031736203,0.2989280965968482,0.043930553956645524,0.05522328221385333,null,null,640943.4314847877,752358.4806126696,0.8519122838395428]
[{"$f":"'II. Headline series'!A585","v":1887},null,0.07862241672760929,0.2051116559006401,0.022908938093242567,0.15797388497401116,0.135430597863484,0.3022265204927209,0.04190714627479772,0.055818839673494304,null,null,662536.1655011432,772670.1964617642,{"$f":"M583/N583","v":0.8574630787301617}]
[{"$f":"'II. Headline series'!A586","v":1888},null,0.07719106616496882,0.21105389988954032,0.02335204887913929,0.16195737602623056,0.13468960319871517,0.29630801844465643,0.04295159432853722,0.052496393068212154,null,null,672617.6397323012,779325.8753108588,0.863076231703466]
[{"$f":"'II. Headline series'!A587","v":1889},null,0.07124130915413206,0.2144946448847977,0.022521168118979,0.16061864821992636,0.13321202405301139,0.30351027090400695,0.04132728265698935,0.0530746520081573,null,null,697432.7404786532,803193.5511599533,0.8683246266998]
[{"$f":"'II. Headline series'!A588","v":1890},null,0.07414489304202024,0.21076688065617188,0.02113707783308672,0.1621126684611414,0.13334980141196828,0.30115629511042474,0.04044938205895075,0.05688300142623597,null,null,712965.1562530713,818600.977009048,0.870955662498789]
[{"$f":"'II. Headline series'!A589","v":1891},null,0.07287711655886452,0.208006063761187,0.02046293377852316,0.15966064897306956,0.13460313390123432,0.31010257532766483,0.040827587891330626,0.053459939808126106,null,null,722428.1796540569,841209.8670060423,0.8587966071121558]
[{"$f":"'II. Headline series'!A590","v":1892},null,0.06626702459707086,0.1956138788155281,0.020012754582851722,0.16015803930112135,0.1329614686709281,0.3277537669639675,0.04228604621874447,0.054947020849787934,null,null,749821.8167756953,877579.0810030367,0.8544207958087149]
[{"$f":"'II. Headline series'!A591","v":1893},null,0.06956291823127841,0.19633911004761895,0.02028907892171153,0.16869410288064243,0.13577536481309377,0.3130398814361581,0.040956980125856544,0.05534256354364041,null,null,747052.1485221469,878967.293000031,0.8499203036012405]
[{"$f":"'II. Headline series'!A592","v":1894},null,0.06723953077571147,0.2054652331675238,0.02037345316813306,0.16944010427021705,0.13804706447191156,0.2980833279241377,0.04060385645251667,0.06074742976984861,null,null,761971.9579144155,891949.2679970255,0.8542772389123778]
[{"$f":"'II. Headline series'!A593","v":1895},null,0.06503436324948624,0.2018765393193364,0.02001886025231558,0.1690999813049928,0.1287765304767241,0.318192297419326,0.03833521112819321,0.05866621684962567,null,null,799995.5940622317,933120.2319940199,0.8573338854229865]
[{"$f":"'II. Headline series'!A594","v":1896},null,0.0662393722082324,0.20847056922965018,0.01908886388690315,0.1735108707539003,0.13374383304469964,0.30901358430637127,0.03497332647477796,0.05495958009546511,null,null,807015.0267334325,940144.9989910143,0.8583942132325758]
[{"$f":"'II. Headline series'!A595","v":1897},null,0.061025620805331963,0.20363576044297121,0.020256665427686258,0.17207298991716297,0.1271949849008177,0.3262975343886746,0.03542617134971088,0.05409027276764445,null,null,837205.9093606246,979354.6399880087,0.8548546922398566]
[{"$f":"'II. Headline series'!A596","v":1898},null,0.06335111981668408,0.20355415534547627,0.019706950087980724,0.17103396261996795,0.12715593276751683,0.3174850419423619,0.03636848761181653,0.06134434980819586,null,null,878370.317208921,1010032.6239850031,0.8696454909974898]
[{"$f":"'II. Headline series'!A597","v":1899},null,0.06182820768985113,0.20217962953788343,0.019072656551099038,0.16904348920232531,0.12817258750770802,0.33031461570385046,0.035240875195207876,0.0541479386120748,null,null,921004.3683708959,1046637.7289819975,0.8799648081353825]
[{"$f":"'II. Headline series'!A598","v":1900},null,0.06399532662302738,0.19679760079236833,0.018740741412602107,0.17281753615087522,0.12428581212565873,0.3326783215532206,0.03530549580819906,0.05537916553404861,null,null,939343.8398420187,1072875.5319789916,0.8755385054865921]
[{"$f":"'II. Headline series'!A599","v":1901},null,0.06550451207878275,0.1891589476519644,0.01837555501105269,0.16222405747956056,0.11753965511491446,0.3557655780714163,0.03629576299126016,0.05513593160104871,null,null,977276.6041188125,1133552.4145809747,0.8621362290336344]
[{"$f":"'II. Headline series'!A600","v":1902},null,0.06332266983047968,0.19290288537346703,0.019125691993596403,0.1651825331369104,0.11497231061831618,0.35746510239363916,0.03504409620448287,0.05198471044910817,null,null,982761.826672374,1159279.8451829576,0.8477347646092084]
[{"$f":"'II. Headline series'!A601","v":1903},null,0.06414440622802006,0.18453017784852804,0.018887293701824424,0.16858924489990557,0.1135842026132544,0.36243365370941766,0.03404179622248919,0.0537892247765608,null,null,1016397.6005808424,1204820.7537849406,0.8436089745199297]
[{"$f":"'II. Headline series'!A602","v":1904},null,0.0644091961251131,0.18467630675649485,0.018923830654022932,0.1744550617131586,0.11384605982890976,0.35600395145934904,0.033753403336297755,0.053932190126654095,null,null,1021674.7525105268,1224731.5323869234,0.8342030277601721]
[{"$f":"'II. Headline series'!A603","v":1905},null,0.06536591754428783,0.1827977693261204,0.018772340839808752,0.1712623469894456,0.11133428270630787,0.3675101471280355,0.031992855723835846,0.05096433974215813,null,null,1062893.5501579822,1276391.5029889066,0.8327331760427897]
[{"$f":"'II. Headline series'!A604","v":1906},null,0.06355721135931755,0.17704657511086427,0.018216158350342904,0.1653060869244872,0.10624445942781902,0.38408708253051355,0.03152847503065013,0.05401395126600541,null,null,1134212.8017684405,1355092.5145908894,0.8370002708714439]
[{"$f":"'II. Headline series'!A605","v":1907},null,0.06859029476993993,0.17497412688802186,0.01768236843271974,0.16742532465405718,0.10748922710254173,0.37825891420939556,0.03153992744527625,0.054039816498047615,null,null,1169470.0333092962,1388996.9181928725,0.8419529359581391]
[{"$f":"'II. Headline series'!A606","v":1908},null,0.07261055421560128,0.1735209493215069,0.018291123040562268,0.1760006153713746,0.11047062707121622,0.35898618672053517,0.03388020862413223,0.05623973563507115,null,null,1131368.4760694643,1375083.8667948556,0.8227632534927047]
[{"$f":"'II. Headline series'!A607","v":1909},null,0.07359336747728837,0.16699686652428694,0.01784412466486539,0.16894926674219735,0.10826443750572136,0.37906554448691265,0.032431615495196,0.05285477710353214,null,null,1202468.6221929544,1451753.4603968381,0.8282870714592673]
[{"$f":"'II. Headline series'!A608","v":1910},null,0.07046978974207956,0.1711219379961866,0.018540197524644034,0.1739442719922004,0.10100325304024399,0.3804804743802783,0.03109560805084807,0.05334446727351905,null,null,1210235.2183775238,1484683.4239988213,0.8151469860947842]
[{"$f":"'II. Headline series'!A609","v":1911},null,0.07192253431490378,0.16877405243656696,0.018418770249784656,0.17231399233569938,0.10627849831505115,0.37646324037676326,0.03193336378430618,0.053895548186924686,null,null,1263005.058672252,1528478.4556008046,0.8263152509897812]
[{"$f":"'II. Headline series'!A610","v":1912},null,0.06976419582038296,0.16479054854841005,0.01828253886469017,0.17303330105591125,0.11073737447155342,0.37918284702157073,0.030494768967239693,0.05371442525024162,null,null,1312618.5688765764,1578655.0632027874,0.8314790225380367]
[{"$f":"'II. Headline series'!A611","v":1913},null,0.07033670455298806,0.1654559249246816,0.01838210920983817,0.17482118785771636,0.10643208085034289,0.38110962970601886,0.030682027446098544,0.05278033545231554,null,null,1357570,1556673.9679988218,0.8720965519486529]
[{"$f":"'II. Headline series'!A612","v":1914},null,0.07506193352985593,0.17847609228506164,0.019102250382292272,0.1590779598609922,0.10560017019524968,0.3756885633444136,0.032314072193366565,0.054678958208768245,null,null,1271118.0365695872,1462280.4570663318,0.8692710282949004]
[{"$f":"'II. Headline series'!A613","v":1915},null,0.08153062736639057,0.18719971155094833,0.019177474925631512,0.14666979647068232,0.10044123552899832,0.3750716472340535,0.03188972230513585,0.058019784618159646,null,null,1309073.8012879088,1497642.4927995407,0.8740896492866326]
[{"$f":"'II. Headline series'!A614","v":1916},null,0.084437210539153,0.1766002369120245,0.01817731587599897,0.13672571843728293,0.09740125127799246,0.3940104756795236,0.030805203429086856,0.06184258784893762,null,null,1418169.501804033,1612496.2307936435,0.8794870181532356]
[{"$f":"'II. Headline series'!A615","v":1917},null,0.09007548754081314,0.18153669240141207,0.017336099391002755,0.13946876095956592,0.08407892380325303,0.3913883242622484,0.030999032538684166,0.06511667910302053,null,null,1391978.9253471848,1576228.0748164814,0.8831075575844259]
[{"$f":"'II. Headline series'!A616","v":1918},null,0.08964600020584909,0.17912929377823683,0.015945586291725853,0.13710262889280359,0.0650446040585781,0.4184366087262719,0.030183225023684417,0.06451205302285015,null,null,1419463.9561008085,1595291.6133038527,0.8897833751918843]
[{"$f":"'II. Headline series'!A617","v":1919},null,0.08739373144038409,0.18689309945183985,0.02313030873941781,0,0.08971959527596841,0.49405836675829107,0.03555131872152011,0.08325357961257865,null,null,1212669.5028587847,1549633.8873523732,0.7825522613800677]
[{"$f":"'II. Headline series'!A618","v":1920},null,0.0807144479581918,0.17763163765259454,0.024106466689289868,0,0.10498333546924456,0.49504308567875627,0.038561484218367276,0.07895954233355564,null,null,1198760.9122675322,1561043.6608049292,0.767922731673891]
[{"$f":"'II. Headline series'!A619","v":1921},null,0.0811194038805385,0.16655416622827895,0.026109721944663804,0,0.10271031250040835,0.4937539205209706,0.04032702407111399,0.08942545085402576,null,null,1174646.5575160268,1563800.6075500567,0.7511485491467471]
[{"$f":"'II. Headline series'!A620","v":1922},null,0.08037165657246473,0.1650179817130719,0.02593903512114184,0,0.11414641004840761,0.4908944711889019,0.039612318983837436,0.08401812637217447,null,null,1246834.350196767,1670590.6449159824,0.7463434288891716]
[{"$f":"'II. Headline series'!A621","v":1923},null,0.07877422368062834,0.15734998328386957,0.02456665267947885,0,0.11096470870003981,0.5135503959028135,0.037085443564952095,0.07770859218821793,null,null,1348992.898315483,1747589.7708923833,0.7719162247251183]
[{"$f":"'II. Headline series'!A622","v":1924},null,0.06681432189224763,0.13761318053377444,0.022140774900224397,0.12487002616398793,0.10489474072376559,0.44454079224653115,0.032029242339853665,0.06709692119961534,null,null,1606126.0348949933,1841589.6446192772,0.872141108953204]
[{"$f":"'II. Headline series'!A623","v":1925},null,0.06838138345344673,0.13856361525169048,0.022151797902696845,0.1333489136939263,0.10113852908049564,0.43668854928390005,0.03265369284997495,0.06707351848386903,null,null,1672919.5148303695,1919319.9682768143,0.871620960799118]
[{"$f":"'II. Headline series'!A624","v":1926},null,0.06690632292777099,0.12922892161216945,0.023168115949281903,0.1327553830929375,0.10052359989341772,0.45039003269770195,0.031500629872516624,0.06552699395420376,null,null,1727711.4845085477,1982696.6661924676,0.871394759454764]
[{"$f":"'II. Headline series'!A625","v":1927},null,0.06359604210121206,0.1356557510003091,0.02344894979340072,0.14188705344834737,0.09563142359980682,0.44193591932304693,0.03325605217534515,0.06458880855853179,null,null,1778322.925649133,2045596.0138521437,0.8693421934765614]
[{"$f":"'II. Headline series'!A626","v":1928},null,0.06611656865597544,0.13321250783778021,0.023962997712905644,0.14369189128282775,0.09925020666435698,0.4335850254045795,0.03239255972598225,0.06778824271559225,null,null,1832859.1658774717,2111440.394989128,0.8680610498061959]
[{"$f":"'II. Headline series'!A627","v":1929},null,0.06546084436885122,0.13143762338967924,0.02315027982989814,0.13715664509318584,0.10154980862887703,0.44100632104300636,0.03324277473492026,0.06699570291158187,null,null,1912295.2433095833,2197158.383108521,0.8703492920724651]
[{"$f":"'II. Headline series'!A628","v":1930},null,0.06581012731979644,0.13799184893197322,0.024424498732206538,0.14299692488617535,0.10426537651387677,0.42484785234743094,0.033971183828362436,0.06569218744017837,null,null,1808444.4837247063,2089126.3362576654,0.8656463002444574]
[{"$f":"'II. Headline series'!A629","v":1931},null,0.06953093113565986,0.13912128763554826,0.02437232807025527,0.14038213597200574,0.10418081962783071,0.41682910059664124,0.03518235721758258,0.07040103974447622,null,null,1701733.6169299972,1967117.1504570544,0.865090122636877]
[{"$f":"'II. Headline series'!A630","v":1932},null,0.07658113635634893,0.14956555038646413,0.025644783000893696,0.13851272452526645,0.10391080373019207,0.38603049780974014,0.03834875595311734,0.08140574823797712,null,null,1594914.8409083686,1854273.4204982768,0.8601292685734481]
[{"$f":"'II. Headline series'!A631","v":1933},null,0.07464248685338705,0.1510524370581872,0.02511908943050602,0.14445095495401117,0.10925710451277507,0.37085240404731873,0.036895049641671,0.08773047350214384,null,null,1625312.8965104192,1889177.2599159686,0.8603284249688214]
[{"$f":"'II. Headline series'!A632","v":1934},null,0.07124060195943405,0.1530229604182833,0.023436309976054514,0.14983012615895877,0.10282802203174635,0.3797012255246984,0.03639090852001469,0.08354984541081002,null,null,1710069.9743666328,1985290.7111391928,0.8613700576805531]
[{"$f":"'II. Headline series'!A633","v":1935},null,0.07407335231881658,0.15073651653436815,0.02305797264693744,0.15279313646534173,0.09504034907498674,0.38766451730158885,0.035207821126596484,0.08142633453136405,null,null,1803065.2840384038,2089944.1775772641,0.8627337052267968]
[{"$f":"'II. Headline series'!A634","v":1936},null,0.06879098103340513,0.14609535098222012,0.022723616438868763,0.1541220769581798,0.09145219904801102,0.4104680852022286,0.02537037375221421,0.08097731658487232,null,null,1944906.3100890885,2241253.9839304006,0.8677759522275924]
[{"$f":"'II. Headline series'!A635","v":1937},null,0.07033884441122709,0.14467166545517607,0.02298596267552377,0.15636154002238153,0.0925646254465929,0.4096071013307581,0.022275576855568913,0.08119468380277166,null,null,2032360.3870524215,2345496.784660035,0.8664946378713537]
[{"$f":"'II. Headline series'!A636","v":1938},null,0.07066193849229035,0.14606275447006895,0.022375624934582075,0.16801600454938448,0.09197161519111323,0.39230124878952044,0.02220984979124464,0.08640096378179586,null,null,2037609.458207142,2359572.3980543558,0.863550302540962]
[{"$f":"'II. Headline series'!A637","v":1939},null,0.07038182266264863,0.1369356779716505,0.02218353690705703,0.17066994714596373,0.09150936306957096,0.3932096322324094,0.022260445616690838,0.09284957439400886,null,null,2194744.9229573314,2529994.610842726,0.867489959682671]
[{"$f":"'II. Headline series'!A638","v":1940},null,0.06861903986171287,0.14597545935394843,0.018939169700957537,0.16656964971984042,0.07316875878587593,0.41047594976346025,0.023657601913247443,0.09259437090095722,null,null,2265022.4733891664,2592861.015488925,0.8735610817003474]
[{"$f":"'II. Headline series'!A639","v":1941},null,0.06262540842838525,0.14715846332423535,0.01657322864663658,0.16365449034517127,0.053461017427658554,0.4482928522352277,0.021508987765756257,0.08672555182692918,null,null,2451347.3425254957,2789390.4762144526,0.8788111106811681]
[{"$f":"'II. Headline series'!A640","v":1942},null,0.0568157564459882,0.13855318314504295,0.013915622101775034,0.15236677270118193,0.044021765082388135,0.49422431839383285,0.020862355530433706,0.07924022659935716,null,null,2668442.684661825,3018799.8465210316,0.8839415729191288]
[{"$f":"'II. Headline series'!A641","v":1943},null,0.04684808909196997,0.1289051855357066,0.012363004616995053,0.14149128383292073,0.03805852270751425,0.5394675739929261,0.019695012413844158,0.07317132780812319,null,null,2930894.3191842944,3290496.4010101613,0.8907149444942498]
[{"$f":"'II. Headline series'!A642","v":1944},null,0.037220854035490206,0.12110353950640508,0.008109376331590772,0.14180833201428583,0.03143064585072198,0.5717068646161582,0.020153857891325695,0.06846652975402232,null,null,2997292.147524739,3363092.3683572803,0.8912309919661178]
[{"$f":"'II. Headline series'!A643","v":1945},null,0.032742402893554436,0.1300943891478177,0.009326920157491519,0.11338331926552699,0.03829479294270329,0.6165782618675613,0.021115162951923987,0.03846475077342094,null,null,2667561.70095612,3017918.6572871716,0.8839077536152052]
[{"$f":"'II. Headline series'!A644","v":1946},null,0.050566320276593274,0.14671332071951307,0.01856061008010105,0.06336393824737097,0.068642612891047,0.5768726673564164,0.026009172914199026,0.04927135751475916,null,null,2262817.0528202457,2631804.670344531,0.8597967312384239]
[{"$f":"'II. Headline series'!A645","v":1947},null,0.05831947092515357,0.14186355726782976,0.0210871233173172,0.06984261025743237,0.07301727574023736,0.5577036188130655,0.025949745504533085,0.05221659817443122,null,null,2305340.527888788,2700174.738096047,0.853774570720684]
[{"$f":"'II. Headline series'!A646","v":1948},null,0.05829525590554348,0.1384305311771491,0.02207658840397796,0.07824501943529436,0.07410750552706052,0.5474959281290858,0.024606590710478,0.056742580711410855,null,null,2437151.928343471,2847982.106796233,0.8557469242968962]
[{"$f":"'II. Headline series'!A647","v":1949},null,0.060158066383641275,0.13799277467336057,0.02308562125811457,0.08800264375266446,0.08090352933673482,0.5281880157310349,0.0234945268920548,0.058174821972394694,null,null,2536037.44709366,2964756.550040841,0.855394837413792]
[{"$f":"'II. Headline series'!A648","v":1950},null,0.060255931642464254,0.12706357306347224,0.022151471029797566,0.09692921479570106,0.08054190413083548,0.531820868306104,0.02243894848272542,0.05879808854890002,null,null,2737606,3192743.034377043,0.8574463934377206]
[{"$f":"'II. Headline series'!A649","v":1951},null,0.060368157492810354,0.12199290655760314,0.02108417631103536,0.0986472059567208,0.07971149474802615,0.533552186860956,0.022997669005606985,0.06164620306724127,null,null,2936515,3413381.497926705,{"$f":"M647/N647","v":0.8602949895239208}]
[{"$f":"'II. Headline series'!A650","v":1952},null,0.06213300907207606,0.11660394376558493,0.0205963289738716,0.10265034012540668,0.07835455020652742,0.5299718293141438,0.0238187241310832,0.06587127441130636,null,null,3066663,3555381.1498128064,0.8625412777928078]
[{"$f":"'II. Headline series'!A651","v":1953},null,0.0633918198337752,0.11532403407906104,0.021303136822663767,0.10586093816715819,0.07671481376666965,0.5275111213719007,0.02259214851003406,0.06730198744873743,null,null,3222624,3731149.5513947476,0.863708075918679]
[{"$f":"'II. Headline series'!A652","v":1954},null,0.06517401301332906,0.1173125561671066,0.02223754891068797,0.11118440826901128,0.07861954255900902,0.5122118625535739,0.023758894610111186,0.06950117391717098,null,null,3297081,3826421.8897923296,0.8616616502209435]
[{"$f":"'II. Headline series'!A653","v":1955},null,0.0644808839242571,0.11366936096749825,0.02233375377432754,0.11539120295276617,0.07772619309584466,0.5127317624266402,0.023098827831681438,0.07056801502698459,null,null,3526456,4086822.402855181,0.8628845720176899]
[{"$f":"'II. Headline series'!A654","v":1956},null,0.06515268048081072,0.11123558179094152,0.022381149992133403,0.1195300435431147,0.07893155732829579,0.505286242667209,0.02414332224700672,0.07333942195048813,null,null,3648338,4237682.005228093,0.8609277419822888]
[{"$f":"'II. Headline series'!A655","v":1957},null,0.0667640904184359,0.10935374104554604,0.02226512875052712,0.12228475495097428,0.08097345954217909,0.49809784987017536,0.02410866549793527,0.07615230992422695,null,null,3770470,4380500.094538154,0.8607396230172959]
[{"$f":"'II. Headline series'!A656","v":1958},null,0.06955523696967122,0.10791615980561715,0.021953312654976208,0.12631501919121502,0.08208552404842576,0.4876063621356305,0.024871992996006485,0.07969639219845767,null,null,3812682,4433761.094538154,0.859920487077383]
[{"$f":"'II. Headline series'!A657","v":1959},null,0.0694264194355627,0.10550655874827547,0.02163650048279367,0.12737003879600772,0.0793378604378808,0.4921737643168408,0.02283374991435896,0.08171510786827989,null,null,4057634,4708699.995511776,0.861731264227418]
[{"$f":"'II. Headline series'!A658","v":1960},null,0.06964917086386445,0.10618496063280203,0.022321993941776135,0.13097743034871842,0.08081907974660152,0.48000659481476826,0.02207316398199231,0.0879676056694769,null,null,4263956,4946543.2492311895,0.8620072210351583]
[{"$f":"'II. Headline series'!A659","v":1961},null,0.07233806710128997,0.10507118175256126,0.02144472594087317,0.13063568543481763,0.08172023298828117,0.4705227408900634,0.023855755209088045,0.09441161068302537,null,null,4451211,5166030.212712132,0.8616308493602757]
[{"$f":"'II. Headline series'!A660","v":1962},null,0.0736526536964254,0.10025264003103147,0.021642461519396583,0.12865246908629016,0.08231850807849708,0.4712294653053897,0.02512098329723887,0.0971308189857307,null,null,4712634,5464248.226503951,0.862448740366827]
[{"$f":"'II. Headline series'!A661","v":1963},null,0.07521643675224204,0.09924927594808472,0.021379381356125923,0.12610489098408956,0.08255314552184233,0.46866190836558363,0.026394390375293248,0.10044057069673852,null,null,4943361,5732056.202157913,0.862406233584905]
[{"$f":"'II. Headline series'!A662","v":1964},null,0.07341099577319517,0.09816129049421161,0.021747028657295893,0.12565509394208646,0.08271494492080346,0.4657228626740678,0.027231385831044858,0.10535639770729471,null,null,5262604,6102276.921860265,0.8624000626958941]
[{"$f":"'II. Headline series'!A663","v":1965},null,0.07125775475116339,0.09560610851880307,0.021725299208790346,0.125334781746744,0.08234020986961935,0.4703304045774386,0.02756254716077479,0.10584289416666652,null,null,5543537,6427192.4110362455,0.8625129987521604]
[{"$f":"'II. Headline series'!A664","v":1966},null,0.07085495633009857,0.09208285501633637,0.0210966349781301,0.12195472458998843,0.0817638228355893,0.4735868438988117,0.027991389100748134,0.11066877325029739,null,null,5866054,6786817.027918231,0.8643306539530118]
[{"$f":"'II. Headline series'!A665","v":1967},null,0.07309558399453103,0.09066960560280396,0.021386473659161007,0.11781300991464093,0.08238242299042224,0.46749392925046457,0.02876774332619778,0.11839123126177847,null,null,6091093,7047602.722734945,0.8642787114476063]
[{"$f":"'II. Headline series'!A666","v":1968},null,0.07470642321448424,0.08900055217427524,0.021465581394916715,0.1169790337910217,0.08113323008324731,0.4619126722292883,0.028761838223157067,0.12604066888960944,null,null,6458106,7459579.864772368,0.8657466126876935]
[{"$f":"'II. Headline series'!A667","v":1969},null,0.07497392711646035,0.08602133309422472,0.021689111272966737,0.11838963287763053,0.08235723856008596,0.4522264662368101,0.02976196688394682,0.13458032395787475,null,null,6803045,7864869.956498915,0.864991415958314]
[{"$f":"'II. Headline series'!A668","v":1970},null,0.07427230005493096,0.08531118738749799,0.022210936317255712,0.12007378437297454,0.08436737747454583,0.4389207440361026,0.030487609486293678,0.14435606087039868,null,null,7021541,8134761.444595696,0.8631526625362492]
[{"$f":"'II. Headline series'!A669","v":1971},null,0.07319094533305713,0.08425391611535461,0.02238750258944037,0.11954358083241141,0.08554174949202893,0.43774021191539253,0.031172316788829486,0.14616977693348554,null,null,7260256,8424153.153003149,0.8618380824916237]
[{"$f":"'II. Headline series'!A670","v":1972},null,0.07156279848744554,0.08287018985437083,0.02197116202389208,0.11824865557983436,0.08487419367501015,0.4378758815601816,0.03205921990919439,0.15053789891007105,null,null,7642700,8866300.938725296,0.8619942017328804]
[{"$f":"'II. Headline series'!A671","v":1973},null,0.07185458249251044,0.08335056596398226,0.021676861355317115,0.11649813215547224,0.0843400087427085,0.43610233038189855,0.03291105681342456,0.15326646209468636,null,null,8109615,9402254.657211011,0.8625181188620936]
[{"$f":"'II. Headline series'!A672","v":1974},null,0.07478452130563251,0.08173718691091897,0.022404831596913834,0.11677523809033451,0.08630450530034253,0.43233946317796457,0.035150343195539016,0.15050391042235406,null,null,8157303,9485361.927735336,0.8599885868506427]
[{"$f":"'II. Headline series'!A673","v":1975},null,0.0730537581114446,0.08150257149238342,0.02234594756664311,0.11593994853955754,0.08555601447745623,0.43038613688722455,0.036325075798600594,0.15489054712668998,null,null,8171325,9506166.011300724,0.859581558988777]
[{"$f":"'II. Headline series'!A674","v":1976},null,0.074294404917987,0.07957616439505588,0.022343586190342244,0.11606080965086232,0.08523153625039251,0.43253059455320597,0.03617460658219233,0.15378829745996173,null,null,8556997,9947302.169626884,0.8602329409604098]
[{"$f":"'II. Headline series'!A675","v":1977},null,0.07358712424450652,0.07826611010686146,0.022094092267067707,0.11494233477018283,0.08511128271105105,0.43524311016491146,0.03621013732645194,0.15454580840896706,null,null,8888892,10309791.75555683,0.8621795872073764]
[{"$f":"'II. Headline series'!A676","v":1978},null,0.07298556185449294,0.07750425250882692,0.021624140502698015,0.11299189987561688,0.08364036484713182,0.4399124509736532,0.03577744079699863,0.1555638886405816,null,null,9296277,10755144.860954547,0.8643562797326126]
[{"$f":"'II. Headline series'!A677","v":1979},null,0.07430334140359553,0.07672690726010625,0.02129672483874157,0.113231181403894,0.08316470485577472,0.43822819158626974,0.03495889596657539,0.15809005268504275,null,null,9649418,11167905.11010571,0.864031159368318]
[{"$f":"'II. Headline series'!A678","v":1980},null,0.07620070942822597,0.07475584019736041,0.02135008580932079,0.11344394615703793,0.08353684688574477,0.4342879633102791,0.0354146430798309,0.16100996513220014,null,null,9741366,11296456.941691134,0.8623381694173634]
[{"$f":"'II. Headline series'!A679","v":1981},null,0.07530482756392393,0.07257026482336358,0.02089315788835981,0.11200327949628229,0.08300881667535007,0.43781891283890484,0.035013065480878354,0.16338767523293712,null,null,9903960,11484540.957198974,0.8623731707615008]
[{"$f":"'II. Headline series'!A680","v":1982},null,0.0756671153102109,0.07371068338878005,0.020654738141403815,0.11107174637403136,0.08511539282298927,0.4297111031147281,0.03564832661546266,0.16842089423239384,null,null,9901699,11481837.689332433,0.8623792870020701]
[{"$f":"'II. Headline series'!A681","v":1983},null,0.07438109098413218,0.07412794261682636,0.020402326414860054,0.1097918494660737,0.08362860770751938,0.4348079691616052,0.035495893229257086,0.16736432041972607,null,null,10195602,11800908.266481187,0.863967566713417]
[{"$f":"'II. Headline series'!A682","v":1984},null,0.0728326863507429,0.07253530345134578,0.020117728421621534,0.1077686226209134,0.08100987337443634,0.44532134113695027,0.0343797478500134,0.1660346967939764,null,null,10679834,12350107.14614529,0.8647563841851676]
[{"$f":"'II. Headline series'!A683","v":1985},null,0.07241711618512771,0.07262566594656779,0.020055369373050337,0.10650535799925527,0.07944496242300955,0.44737980723952925,0.03392460767651478,0.16764711315694533,null,null,11042928,12775547.560664356,0.8643800156167822]
[{"$f":"'II. Headline series'!A684","v":1986},null,0.07220448238048872,0.07351054835279935,0.0199799296396027,0.10554507358693162,0.07885289900815896,0.44868405688182456,0.03397720618124958,0.1672458039689445,null,null,11389930,13164582.362313297,0.8651949364232279]
[{"$f":"'II. Headline series'!A685","v":1987},null,0.07197412948246656,0.07445906077186262,0.019591170102727415,0.10358767101251634,0.07816689098364588,0.44906934981182417,0.034721551959409874,0.16843017587554715,null,null,11780205,13609829.63187907,0.8655659415755331]
[{"$f":"'II. Headline series'!A686","v":1988},null,0.0715300644092301,0.07479276147467084,0.0192353739065457,0.1024198539624266,0.07807787587618482,0.44776557639357045,0.035038377504690583,0.1711401164726809,null,null,12311900,14215024.891423589,0.8661187788301511]
[{"$f":"'II. Headline series'!A687","v":1989},null,0.07098553656363919,0.07371628286316653,0.01942241836553219,0.10202296945058371,0.07836830563675237,0.44684747855476886,0.035582043433399324,0.1730549651321578,null,null,12763910,14731076.791019708,0.866461439382427]
[{"$f":"'II. Headline series'!A688","v":1990},null,0.07110566702765385,0.07256180401207374,0.01982592418531686,0.09712992911510411,0.07885163057998283,0.44578255686777224,0.036439221183336375,0.17830326702876,null,null,13018006,15020238,0.8666977181053989]
[{"$f":"'II. Headline series'!A689","v":1991},null,0.07119661089453815,0.07068032334880053,0.02002374055098481,0.10102319137839742,0.0788129865656465,0.439377890299497,0.03690176142432981,0.18198349553780585,null,null,13182117.215616144,15186447.652124107,0.8680184805280898]
[{"$f":"'II. Headline series'!A690","v":1992},null,0.07021886907409254,0.0693185183606732,0.019996673894290624,0.10108478594383118,0.07864404086091677,0.44442030037331615,0.036455907868074726,0.17986090362480464,null,null,13467322.478373528,15496035.070513673,0.8690818275185476]
[{"$f":"'II. Headline series'!A691","v":1993},null,0.06880109056399966,0.07012249261025044,0.01991815327529775,0.09912528236936351,0.07697368824700089,0.45115183320512725,0.03566658363019643,0.17824087609876405,null,null,13623373.296148203,15674727.622202147,0.8691298263359712]
[{"$f":"'II. Headline series'!A692","v":1994},null,0.06824125708685855,0.07106165553460629,0.019782938117090858,0.09875125396047901,0.07625354730412712,0.4555995740469252,0.035437197612066935,0.17487257633784592,null,null,14038332.88633934,16166907.14289753,0.8683375714511159]
[{"$f":"'II. Headline series'!A693","v":1995},null,0.0685678801316704,0.07135228867802736,0.01989870988781643,0.09822779084902365,0.0761943116176075,0.4560615196075028,0.035549251821925754,0.17414824740642607,null,null,14379969.336715188,16575615.745264284,0.8675375658864196]
[{"$f":"'II. Headline series'!A694","v":1996},null,0.06735768057966644,0.0712882860719684,0.019923836811482794,0.09639955649336986,0.07485054051789894,0.4597656440271252,0.03537691657177321,0.17503753892671495,null,null,14798340.91808356,17050420.591424417,0.8679164738919373]
[{"$f":"'II. Headline series'!A695","v":1997},null,0.06651752559451353,0.07126231444711179,0.02002481767226217,0.09499018930164012,0.0741886301437176,0.4650286331164809,0.035565533597327656,0.17242235612694617,null,null,15288896.304516125,17630190.64271005,0.8671997152134012]
[{"$f":"'II. Headline series'!A696","v":1998},null,0.06556015023137825,0.07173581526737433,0.020694245878620926,0.09445959513565934,0.07429226285917667,0.473536021433739,0.03628894666975145,0.16343296252430006,null,null,15655318,18086848,0.8655636404972276]
[{"$f":"'II. Headline series'!A697","v":1999},null,0.06478268260578367,0.07166310733513359,0.021001449432875713,0.09342125919519782,0.07440739994160157,0.4797074133490879,0.03679639725669825,0.15822029088362147,null,null,16147695,18680331,0.864422316713767]
[{"$f":"'II. Headline series'!A698","v":2000},null,0.06473715031508936,0.07237556267238031,0.02106177725432487,0.09301519748631083,0.07459010781539435,0.47986644622379665,0.037346402821866284,0.15700735541083732,null,null,16738426,19373012,0.864007414025243]
[{"$f":"'II. Headline series'!A699","v":2001},null,0.06521434903926566,0.07270358051979188,0.02124443911023399,0.09319106757554518,0.07518184024545514,0.47849107404951613,0.03830823019075748,0.15566541926943456,null,null,16913885,19604610,0.8627503939124522]
[{"$f":"'II. Headline series'!A700","v":2002},null,0.06468466937400007,0.07333884010431618,0.02101290534026655,0.09211722526067356,0.07507736518424112,0.48060487909103916,0.03888953434551322,0.15427458129995017,null,null,17111056,19869223,0.8611839526890407]
[{"$f":"'II. Headline series'!A701","v":2003},null,0.06351256414611631,0.07398096022173552,0.020694430987902534,0.0902205348913743,0.07450491924325266,0.48363935947587117,0.039355781656053544,0.15409144937769398,null,null,17432661,20247369,0.8609840122931528]
[{"$f":"'II. Headline series'!A702","v":2004},null,0.062465429508084126,0.07424027424260449,0.02056105964181263,0.0886079964606952,0.07412281401044687,0.48717091205222257,0.039495292280861405,0.15333622180327267,null,null,17937986,20835089,0.8609507739563772]
[{"$f":"'II. Headline series'!A703","v":2005},null,0.06143155736011359,0.07409905168148873,0.020481759066240852,0.08714139159343022,0.0737646578372972,0.49052615199958755,0.03996017326849512,0.15259525719334677,null,null,18367563,21345667,0.860482036002904]
[{"$f":"'II. Headline series'!A704","v":2006},null,0.061040889101790716,0.07427751569308279,0.02063086945905139,0.08760600216263187,0.07358305077050921,0.4907520650970437,0.04048464253460285,0.15162496518128749,null,null,18854804,21928358,0.8598365641421943]
[{"$f":"'II. Headline series'!A705","v":2007},null,0.06063605032589578,0.07451110966146395,0.020897476331369846,0.08779579500223653,0.07359860977684227,0.4898961781827018,0.041007735480922236,0.15165704523856763,null,null,19284386,22451214,0.8589462467374815]
[{"$f":"'II. Headline series'!A706","v":2008},null,0.059857637772345464,0.07481760043177235,0.021254333222629103,0.08859466693099176,0.07360781674246106,0.4904459043338612,0.04125824122157077,0.1501637993443683,null,null,19339821,22535848,0.8581803089903695]
[{"$f":"'II. Headline series'!A707","v":2009},null,0.059857637772345464,0.07481760043177235,0.021254333222629103,0.08859466693099176,0.07360781674246106,0.4904459043338612,0.04125824122157077,0.1501637993443683,null,null,19339821,22535848,0.8581803089903695,null,"Maddison (2010) shares kept constant 2008-2018."]
[{"$f":"'II. Headline series'!A708","v":2010},null,0.059857637772345464,0.07481760043177235,0.021254333222629103,0.08859466693099176,0.07360781674246106,0.4904459043338612,0.04125824122157077,0.1501637993443683,null,null,19339821,22535848,0.8581803089903695]
[{"$f":"'II. Headline series'!A709","v":2011},null,0.059857637772345464,0.07481760043177235,0.021254333222629103,0.08859466693099176,0.07360781674246106,0.4904459043338612,0.04125824122157077,0.1501637993443683,null,null,19339821,22535848,0.8581803089903695]
[{"$f":"'II. Headline series'!A710","v":2012},null,0.059857637772345464,0.07481760043177235,0.021254333222629103,0.08859466693099176,0.07360781674246106,0.4904459043338612,0.04125824122157077,0.1501637993443683,null,null,19339821,22535848,0.8581803089903695]
[{"$f":"'II. Headline series'!A711","v":2013},null,0.059857637772345464,0.07481760043177235,0.021254333222629103,0.08859466693099176,0.07360781674246106,0.4904459043338612,0.04125824122157077,0.1501637993443683,null,null,19339821,22535848,0.8581803089903695]
[{"$f":"'II. Headline series'!A712","v":2014},null,0.059857637772345464,0.07481760043177235,0.021254333222629103,0.08859466693099176,0.07360781674246106,0.4904459043338612,0.04125824122157077,0.1501637993443683,null,null,19339821,22535848,0.8581803089903695]
[{"$f":"'II. Headline series'!A713","v":2015},null,0.059857637772345464,0.07481760043177235,0.021254333222629103,0.08859466693099176,0.07360781674246106,0.4904459043338612,0.04125824122157077,0.1501637993443683,null,null,19339821,22535848,{"$f":"M711/N711","v":0.8581803089903695}]
[{"$f":"'II. Headline series'!A714","v":2016},null,0.059857637772345464,0.07481760043177235,0.021254333222629103,0.08859466693099176,0.07360781674246106,0.4904459043338612,0.04125824122157077,0.1501637993443683,null,null,19339821,22535848,0.8581803089903695]
[{"$f":"'II. Headline series'!A715","v":2017},null,0.059857637772345464,0.07481760043177235,0.021254333222629103,0.08859466693099176,0.07360781674246106,0.4904459043338612,0.04125824122157077,0.1501637993443683,null,null,19339821,22535848,0.8581803089903695]
[{"$f":"'II. Headline series'!A716","v":2018},null,0.059857637772345464,0.07481760043177235,0.021254333222629103,0.08859466693099176,0.07360781674246106,0.4904459043338612,0.04125824122157077,0.1501637993443683,null,null,19339821,22535848,0.8581803089903695]
[]
["All-time average",{"$nulls":13},{"$f":"AVERAGE(O6:O714)","v":{"v":0.8006196927991668,"d":"80.1%"}}]

{"sheet":"IV. Country level, 1310-2018","index":4,"n_rows":715,"n_cols":70,"rows_kept":715,"merged":[[0,2,0,9],[0,11,0,18],[0,20,0,27],[0,30,0,37],[0,40,0,47],[0,50,0,57]]}
["back to contents",null,"Real rates, not averaged",{"$nulls":8},"Real rates, 7-Y averaged",{"$nulls":8},"Inflation, not averaged",{"$nulls":9},"Nominal, not averaged",{"$nulls":9},"GDP-weighted nominal",{"$nulls":9},"GDP-weighted inflation",{"$nulls":9},"World nominal rate, GDP-weighted (%)","World nominal rate, arithmetically-weighted (%)",{"$nulls":3},"Global inflation, GDP-weighted (7-Y centered avg, %)","Global inflation, arithmetically-weighted (7-Y centered avg, %)"]
["Year",null,"Italy","UK","Holland","Germany","France","United States","Spain","Japan",null,{"$f":"C2","v":"Italy"},{"$f":"D2","v":"UK"},"Holland","Germany","France","United States","Spain",{"$f":"J2","v":"Japan"},null,{"$f":"L2","v":"Italy"},{"$f":"M2","v":"UK"},{"$f":"N2","v":"Holland"},{"$f":"O2","v":"Germany"},{"$f":"P2","v":"France"},{"$f":"Q2","v":"United States"},{"$f":"R2","v":"Spain"},{"$f":"S2","v":"Japan"},null,null,{"$f":"U2","v":"Italy"},{"$f":"V2","v":"UK"},"Holland","Germany","France","United States","Spain",{"$f":"AB2","v":"Japan"},null,null,{"$f":"L2","v":"Italy"},"UK","Holland","Germany","France","United States","Spain","Japan",null,null,{"$f":"AO2","v":"Italy"},{"$f":"AP2","v":"UK"},"Holland","Germany","France","United States","Spain",{"$f":"AV2","v":"Japan"}]
[]
[{"$f":"'[1]Nominal weighted'!B4","v":1310},{"$nulls":20},5.412023698372067,{"$nulls":8},7.813421052631579,22,{"$nulls":9},{"$f":"AF4*'III. GDP shares, 1310-2018'!D6","v":4.476072861994442},{"$f":"AG4*'III. GDP shares, 1310-2018'!E6","v":0},{"$f":"AH4*'III. GDP shares, 1310-2018'!F6","v":0},{"$f":"AI4*'III. GDP shares, 1310-2018'!G6","v":0},{"$f":"AJ4*'III. GDP shares, 1310-2018'!H6","v":0},{"$f":"AK4*'III. GDP shares, 1310-2018'!I6","v":0},{"$f":"AL4*'III. GDP shares, 1310-2018'!J6","v":0},null,null,{"$f":"U4*'III. GDP shares, 1310-2018'!C6","v":0},{"$f":"V4*'III. GDP shares, 1310-2018'!D6","v":1.1011187456706366},{"$f":"W4*'III. GDP shares, 1310-2018'!E6","v":0},{"$f":"X4*'III. GDP shares, 1310-2018'!F6","v":0},{"$f":"Y4*'III. GDP shares, 1310-2018'!G6","v":0},{"$f":"Z4*'III. GDP shares, 1310-2018'!H6","v":0},{"$f":"AA4*'III. GDP shares, 1310-2018'!I6","v":0},{"$f":"AB4*'III. GDP shares, 1310-2018'!J6","v":0},null,null,{"$f":"AVERAGE(AE4:AL4)","v":14.90671052631579},{"$f":"SUM(AO4:AV4)","v":4.476072861994442},null,{"$f":"SUM(AY4:BF4)","v":1.1011187456706366},{"$f":"AVERAGE(U4:AB4)","v":5.412023698372067},{"$nulls":4},{"$f":"((AO4+SUM(AQ4:AV4))-((AY4+(SUM(BA4:BF4)))))","v":0}]
[{"$f":"'[1]Nominal weighted'!B5","v":1311},{"$nulls":19},60,0.8814871277802752,{"$nulls":8},7.813421052631579,22,{"$nulls":9},{"$f":"AF5*'III. GDP shares, 1310-2018'!D7","v":4.476072861994442},{"$f":"AG5*'III. GDP shares, 1310-2018'!E7","v":0},{"$f":"AH5*'III. GDP shares, 1310-2018'!F7","v":0},{"$f":"AI5*'III. GDP shares, 1310-2018'!G7","v":0},{"$f":"AJ5*'III. GDP shares, 1310-2018'!H7","v":0},{"$f":"AK5*'III. GDP shares, 1310-2018'!I7","v":0},{"$f":"AL5*'III. GDP shares, 1310-2018'!J7","v":0},null,null,{"$f":"U5*'III. GDP shares, 1310-2018'!C7","v":47.79252855819698},{"$f":"V5*'III. GDP shares, 1310-2018'!D7","v":0.17934548231157807},{"$f":"W5*'III. GDP shares, 1310-2018'!E7","v":0},{"$f":"X5*'III. GDP shares, 1310-2018'!F7","v":0},{"$f":"Y5*'III. GDP shares, 1310-2018'!G7","v":0},{"$f":"Z5*'III. GDP shares, 1310-2018'!H7","v":0},{"$f":"AA5*'III. GDP shares, 1310-2018'!I7","v":0},{"$f":"AB5*'III. GDP shares, 1310-2018'!J7","v":0},null,null,{"$f":"AVERAGE(AE5:AL5)","v":14.90671052631579},{"$f":"SUM(AO5:AV5)","v":4.476072861994442},null,{"$f":"SUM(AY5:BF5)","v":47.97187404050855},{"$f":"AVERAGE(U5:AB5)","v":30.440743563890138},{"$nulls":4},{"$f":"((AO5+SUM(AQ5:AV5))-((AY5+(SUM(BA5:BF5)))))","v":-47.79252855819698}]
[{"$f":"'[1]Nominal weighted'!B6","v":1312},{"$nulls":19},-12.5,-18.28074212863426,{"$nulls":8},7.813421052631579,22,{"$nulls":9},{"$f":"AF6*'III. GDP shares, 1310-2018'!D8","v":4.476072861994442},{"$f":"AG6*'III. GDP shares, 1310-2018'!E8","v":0},{"$f":"AH6*'III. GDP shares, 1310-2018'!F8","v":0},{"$f":"AI6*'III. GDP shares, 1310-2018'!G8","v":0},{"$f":"AJ6*'III. GDP shares, 1310-2018'!H8","v":0},{"$f":"AK6*'III. GDP shares, 1310-2018'!I8","v":0},{"$f":"AL6*'III. GDP shares, 1310-2018'!J8","v":0},null,null,{"$f":"U6*'III. GDP shares, 1310-2018'!C8","v":-9.956776782957704},{"$f":"V6*'III. GDP shares, 1310-2018'!D8","v":-3.7193606245044695},{"$f":"W6*'III. GDP shares, 1310-2018'!E8","v":0},{"$f":"X6*'III. GDP shares, 1310-2018'!F8","v":0},{"$f":"Y6*'III. GDP shares, 1310-2018'!G8","v":0},{"$f":"Z6*'III. GDP shares, 1310-2018'!H8","v":0},{"$f":"AA6*'III. GDP shares, 1310-2018'!I8","v":0},{"$f":"AB6*'III. GDP shares, 1310-2018'!J8","v":0},null,null,14.90671052631579,4.476072861994442,null,-13.676137407462173,-15.39037106431713,{"$nulls":4},9.956776782957704]
[{"$f":"'[1]Nominal weighted'!B7","v":1313},{"$nulls":19},0,-2.4675169634576832,{"$nulls":8},7.813421052631579,22,{"$nulls":9},{"$f":"AF7*'III. GDP shares, 1310-2018'!D9","v":4.476072861994442},{"$f":"AG7*'III. GDP shares, 1310-2018'!E9","v":0},{"$f":"AH7*'III. GDP shares, 1310-2018'!F9","v":0},{"$f":"AI7*'III. GDP shares, 1310-2018'!G9","v":0},{"$f":"AJ7*'III. GDP shares, 1310-2018'!H9","v":0},{"$f":"AK7*'III. GDP shares, 1310-2018'!I9","v":0},{"$f":"AL7*'III. GDP shares, 1310-2018'!J9","v":0},null,null,{"$f":"U7*'III. GDP shares, 1310-2018'!C9","v":0},{"$f":"V7*'III. GDP shares, 1310-2018'!D9","v":-0.5020357143929032},{"$f":"W7*'III. GDP shares, 1310-2018'!E9","v":0},{"$f":"X7*'III. GDP shares, 1310-2018'!F9","v":0},{"$f":"Y7*'III. GDP shares, 1310-2018'!G9","v":0},{"$f":"Z7*'III. GDP shares, 1310-2018'!H9","v":0},{"$f":"AA7*'III. GDP shares, 1310-2018'!I9","v":0},{"$f":"AB7*'III. GDP shares, 1310-2018'!J9","v":0},null,null,14.90671052631579,4.476072861994442,null,-0.5020357143929032,-1.2337584817288416,{"$f":"AVERAGE(BL4:BL10)","v":2.1733088636947526},{"$f":"AVERAGE(BM4:BM10)","v":4.0171594002423},null,null,0]
[{"$f":"'[1]Nominal weighted'!B8","v":1314},null,{"$f":"AE8-U8","v":22.099135338345864},{"$f":"AF8-V8","v":13.43097534126791},{"$nulls":16},-14.285714285714285,8.56902465873209,{"$nulls":8},7.813421052631579,22,{"$nulls":8},{"$f":"AE8*'III. GDP shares, 1310-2018'!C10","v":6.2237191465852035},{"$f":"AF8*'III. GDP shares, 1310-2018'!D10","v":4.476072861994442},{"$f":"AG8*'III. GDP shares, 1310-2018'!E10","v":0},{"$f":"AH8*'III. GDP shares, 1310-2018'!F10","v":0},{"$f":"AI8*'III. GDP shares, 1310-2018'!G10","v":0},{"$f":"AJ8*'III. GDP shares, 1310-2018'!H10","v":0},{"$f":"AK8*'III. GDP shares, 1310-2018'!I10","v":0},{"$f":"AL8*'III. GDP shares, 1310-2018'!J10","v":0},null,null,{"$f":"U8*'III. GDP shares, 1310-2018'!C10","v":-11.379173466237374},{"$f":"V8*'III. GDP shares, 1310-2018'!D10","v":1.7434353967596317},{"$f":"W8*'III. GDP shares, 1310-2018'!E10","v":0},{"$f":"X8*'III. GDP shares, 1310-2018'!F10","v":0},{"$f":"Y8*'III. GDP shares, 1310-2018'!G10","v":0},{"$f":"Z8*'III. GDP shares, 1310-2018'!H10","v":0},{"$f":"AA8*'III. GDP shares, 1310-2018'!I10","v":0},{"$f":"AB8*'III. GDP shares, 1310-2018'!J10","v":0},null,null,14.90671052631579,10.699792008579646,null,-9.635738069477743,-2.8583448134910974,{"$f":"AVERAGE(BL5:BL11)","v":7.121745201369235},6.537384382801217,null,null,17.60289261282258]
[{"$f":"'[1]Nominal weighted'!B9","v":1315},null,{"$f":"AE9-U9","v":32.937123287671234},{"$f":"AF9-V9","v":15.084853503610844},{"$nulls":16},-25,6.915146496389156,{"$nulls":8},7.937123287671232,22,{"$nulls":8},{"$f":"AE9*'III. GDP shares, 1310-2018'!C11","v":6.322253189932628},{"$f":"AF9*'III. GDP shares, 1310-2018'!D11","v":4.476072861994442},{"$f":"AG9*'III. GDP shares, 1310-2018'!E11","v":0},{"$f":"AH9*'III. GDP shares, 1310-2018'!F11","v":0},{"$f":"AI9*'III. GDP shares, 1310-2018'!G11","v":0},{"$f":"AJ9*'III. GDP shares, 1310-2018'!H11","v":0},{"$f":"AK9*'III. GDP shares, 1310-2018'!I11","v":0},{"$f":"AL9*'III. GDP shares, 1310-2018'!J11","v":0},null,null,{"$f":"U9*'III. GDP shares, 1310-2018'!C11","v":-19.913553565915407},{"$f":"V9*'III. GDP shares, 1310-2018'!D11","v":1.4069408895092477},{"$f":"W9*'III. GDP shares, 1310-2018'!E11","v":0},{"$f":"X9*'III. GDP shares, 1310-2018'!F11","v":0},{"$f":"Y9*'III. GDP shares, 1310-2018'!G11","v":0},{"$f":"Z9*'III. GDP shares, 1310-2018'!H11","v":0},{"$f":"AA9*'III. GDP shares, 1310-2018'!I11","v":0},{"$f":"AB9*'III. GDP shares, 1310-2018'!J11","v":0},null,null,14.968561643835617,10.79832605192707,null,-18.50661267640616,-9.042426751805422,{"$f":"AVERAGE(BL6:BL12)","v":-0.47611728245358076},0.35850555170272663,null,null,26.235806755848035]
[{"$f":"'[1]Nominal weighted'!B10","v":1316},null,8.073571428571428,-19.584499301552768,{"$nulls":16},0,41.58449930155277,{"$nulls":8},8.073571428571428,22,{"$nulls":8},{"$f":"AE10*'III. GDP shares, 1310-2018'!C12","v":6.430939884444053},{"$f":"AF10*'III. GDP shares, 1310-2018'!D12","v":4.476072861994442},{"$f":"AG10*'III. GDP shares, 1310-2018'!E12","v":0},{"$f":"AH10*'III. GDP shares, 1310-2018'!F12","v":0},{"$f":"AI10*'III. GDP shares, 1310-2018'!G12","v":0},{"$f":"AJ10*'III. GDP shares, 1310-2018'!H12","v":0},{"$f":"AK10*'III. GDP shares, 1310-2018'!I12","v":0},{"$f":"AL10*'III. GDP shares, 1310-2018'!J12","v":0},null,null,{"$f":"U10*'III. GDP shares, 1310-2018'!C12","v":0},{"$f":"V10*'III. GDP shares, 1310-2018'!D12","v":8.460693127423054},{"$f":"W10*'III. GDP shares, 1310-2018'!E12","v":0},{"$f":"X10*'III. GDP shares, 1310-2018'!F12","v":0},{"$f":"Y10*'III. GDP shares, 1310-2018'!G12","v":0},{"$f":"Z10*'III. GDP shares, 1310-2018'!H12","v":0},{"$f":"AA10*'III. GDP shares, 1310-2018'!I12","v":0},{"$f":"AB10*'III. GDP shares, 1310-2018'!J12","v":0},null,null,15.036785714285713,10.907012746438495,null,8.460693127423054,20.792249650776384,{"$f":"AVERAGE(BL7:BL13)","v":-0.9970640802921287},-0.3211043110273048,null,null,6.430939884444053]
[{"$f":"'[1]Nominal weighted'!B11","v":1317},null,-36.483174603174604,20.33724729187547,{"$nulls":7},{"$f":"AVERAGE(C8:C14)","v":11.894460562640344},{"$f":"AVERAGE(D8:D14)","v":19.044056500147487},{"$nulls":7},44.44444444444444,1.662752708124529,{"$nulls":8},7.961269841269841,22,{"$nulls":8},{"$f":"AE11*'III. GDP shares, 1310-2018'!C13","v":6.341486937473353},{"$f":"AF11*'III. GDP shares, 1310-2018'!D13","v":4.476072861994442},{"$f":"AG11*'III. GDP shares, 1310-2018'!E13","v":0},{"$f":"AH11*'III. GDP shares, 1310-2018'!F13","v":0},{"$f":"AI11*'III. GDP shares, 1310-2018'!G13","v":0},{"$f":"AJ11*'III. GDP shares, 1310-2018'!H13","v":0},{"$f":"AK11*'III. GDP shares, 1310-2018'!I13","v":0},{"$f":"AL11*'III. GDP shares, 1310-2018'!J13","v":0},null,null,{"$f":"U11*'III. GDP shares, 1310-2018'!C13","v":35.40187300607183},{"$f":"V11*'III. GDP shares, 1310-2018'!D13","v":0.3383001033201805},{"$f":"W11*'III. GDP shares, 1310-2018'!E13","v":0},{"$f":"X11*'III. GDP shares, 1310-2018'!F13","v":0},{"$f":"Y11*'III. GDP shares, 1310-2018'!G13","v":0},{"$f":"Z11*'III. GDP shares, 1310-2018'!H13","v":0},{"$f":"AA11*'III. GDP shares, 1310-2018'!I13","v":0},{"$f":"AB11*'III. GDP shares, 1310-2018'!J13","v":0},null,null,14.98063492063492,10.817559799467794,null,35.74017310939201,23.053598576284486,{"$f":"AVERAGE(BL8:BL14)","v":-2.6311519175695834},-0.5511499220525595,null,null,-29.06038606859848]
[{"$f":"'[1]Nominal weighted'!B12","v":1318},null,7.8489682539682555,47.622816507598586,{"$nulls":7},{"$f":"AVERAGE(C9:C15)","v":11.371912128061835},19.261276819825333,{"$nulls":7},0,-25.622816507598586,{"$nulls":8},7.8489682539682555,22,{"$nulls":8},{"$f":"AE12*'III. GDP shares, 1310-2018'!C14","v":6.252033990502655},{"$f":"AF12*'III. GDP shares, 1310-2018'!D14","v":4.476072861994442},{"$f":"AG12*'III. GDP shares, 1310-2018'!E14","v":0},{"$f":"AH12*'III. GDP shares, 1310-2018'!F14","v":0},{"$f":"AI12*'III. GDP shares, 1310-2018'!G14","v":0},{"$f":"AJ12*'III. GDP shares, 1310-2018'!H14","v":0},{"$f":"AK12*'III. GDP shares, 1310-2018'!I14","v":0},{"$f":"AL12*'III. GDP shares, 1310-2018'!J14","v":0},null,null,{"$f":"U12*'III. GDP shares, 1310-2018'!C14","v":0},{"$f":"V12*'III. GDP shares, 1310-2018'!D14","v":-5.2131633462511475},{"$f":"W12*'III. GDP shares, 1310-2018'!E14","v":0},{"$f":"X12*'III. GDP shares, 1310-2018'!F14","v":0},{"$f":"Y12*'III. GDP shares, 1310-2018'!G14","v":0},{"$f":"Z12*'III. GDP shares, 1310-2018'!H14","v":0},{"$f":"AA12*'III. GDP shares, 1310-2018'!I14","v":0},{"$f":"AB12*'III. GDP shares, 1310-2018'!J14","v":0},null,null,14.924484126984128,10.728106852497097,null,-5.2131633462511475,-12.811408253799293,{"$f":"AVERAGE(BL9:BL15)","v":-2.314103496284254},-0.43300271227696996,null,null,6.252033990502655]
[{"$f":"'[1]Nominal weighted'!B13","v":1319},null,23.12128205128205,46.91066482223931,{"$nulls":7},{"$f":"AVERAGE(C10:C16)","v":-3.022266860124003},15.270128963123417,{"$nulls":7},-15.384615384615385,-24.910664822239312,{"$nulls":8},7.736666666666666,22,{"$nulls":8},{"$f":"AE13*'III. GDP shares, 1310-2018'!C15","v":6.162581043531954},{"$f":"AF13*'III. GDP shares, 1310-2018'!D15","v":4.476072861994442},{"$f":"AG13*'III. GDP shares, 1310-2018'!E15","v":0},{"$f":"AH13*'III. GDP shares, 1310-2018'!F15","v":0},{"$f":"AI13*'III. GDP shares, 1310-2018'!G15","v":0},{"$f":"AJ13*'III. GDP shares, 1310-2018'!H15","v":0},{"$f":"AK13*'III. GDP shares, 1310-2018'!I15","v":0},{"$f":"AL13*'III. GDP shares, 1310-2018'!J15","v":0},null,null,{"$f":"U13*'III. GDP shares, 1310-2018'!C15","v":-12.254494502101789},{"$f":"V13*'III. GDP shares, 1310-2018'!D15","v":-5.068270490230227},{"$f":"W13*'III. GDP shares, 1310-2018'!E15","v":0},{"$f":"X13*'III. GDP shares, 1310-2018'!F15","v":0},{"$f":"Y13*'III. GDP shares, 1310-2018'!G15","v":0},{"$f":"Z13*'III. GDP shares, 1310-2018'!H15","v":0},{"$f":"AA13*'III. GDP shares, 1310-2018'!I15","v":0},{"$f":"AB13*'III. GDP shares, 1310-2018'!J15","v":0},null,null,14.868333333333332,10.638653905526397,null,-17.322764992332015,-20.14764010342735,{"$f":"AVERAGE(BL10:BL16)","v":9.877100361298153},8.705428358931131,null,null,18.417075545633743]
[{"$f":"'[1]Nominal weighted'!B14","v":1320},null,25.66431818181818,9.506337335993067,{"$nulls":7},{"$f":"AVERAGE(C11:C17)","v":-8.274024229738515},23.19722037996362,{"$nulls":7},-18.181818181818183,12.493662664006933,{"$nulls":8},7.4825,22,{"$nulls":8},{"$f":"AE14*'III. GDP shares, 1310-2018'!C16","v":5.960126582278481},{"$f":"AF14*'III. GDP shares, 1310-2018'!D16","v":4.476072861994442},{"$f":"AG14*'III. GDP shares, 1310-2018'!E16","v":0},{"$f":"AH14*'III. GDP shares, 1310-2018'!F16","v":0},{"$f":"AI14*'III. GDP shares, 1310-2018'!G16","v":0},{"$f":"AJ14*'III. GDP shares, 1310-2018'!H16","v":0},{"$f":"AK14*'III. GDP shares, 1310-2018'!I16","v":0},{"$f":"AL14*'III. GDP shares, 1310-2018'!J16","v":0},null,null,{"$f":"U14*'III. GDP shares, 1310-2018'!C16","v":-14.482584411574843},{"$f":"V14*'III. GDP shares, 1310-2018'!D16","v":2.541933836239756},{"$f":"W14*'III. GDP shares, 1310-2018'!E16","v":0},{"$f":"X14*'III. GDP shares, 1310-2018'!F16","v":0},{"$f":"Y14*'III. GDP shares, 1310-2018'!G16","v":0},{"$f":"Z14*'III. GDP shares, 1310-2018'!H16","v":0},{"$f":"AA14*'III. GDP shares, 1310-2018'!I16","v":0},{"$f":"AB14*'III. GDP shares, 1310-2018'!J16","v":0},null,null,14.74125,10.436199444272923,null,-11.940650575335088,-2.844077758905625,{"$f":"AVERAGE(BL11:BL17)","v":12.328261850160382},7.2929030586742964,null,null,20.442710993853325]
[{"$f":"'[1]Nominal weighted'!B15","v":1321},null,18.441296296296297,14.95151757901283,{"$nulls":7},{"$f":"AVERAGE(C12:C18)","v":0.965758713222432},25.517475608337254,{"$nulls":7},-11.11111111111111,7.04848242098717,{"$nulls":8},7.330185185185186,22,{"$nulls":8},{"$f":"AE15*'III. GDP shares, 1310-2018'!C17","v":5.838801413330589},{"$f":"AF15*'III. GDP shares, 1310-2018'!D17","v":4.476072861994442},{"$f":"AG15*'III. GDP shares, 1310-2018'!E17","v":0},{"$f":"AH15*'III. GDP shares, 1310-2018'!F17","v":0},{"$f":"AI15*'III. GDP shares, 1310-2018'!G17","v":0},{"$f":"AJ15*'III. GDP shares, 1310-2018'!H17","v":0},{"$f":"AK15*'III. GDP shares, 1310-2018'!I17","v":0},{"$f":"AL15*'III. GDP shares, 1310-2018'!J17","v":0},null,null,{"$f":"U15*'III. GDP shares, 1310-2018'!C17","v":-8.850468251517958},{"$f":"V15*'III. GDP shares, 1310-2018'!D17","v":1.4340691310375255},{"$f":"W15*'III. GDP shares, 1310-2018'!E17","v":0},{"$f":"X15*'III. GDP shares, 1310-2018'!F17","v":0},{"$f":"Y15*'III. GDP shares, 1310-2018'!G17","v":0},{"$f":"Z15*'III. GDP shares, 1310-2018'!H17","v":0},{"$f":"AA15*'III. GDP shares, 1310-2018'!I17","v":0},{"$f":"AB15*'III. GDP shares, 1310-2018'!J17","v":0},null,null,14.665092592592593,10.314874275325032,null,-7.416399120480432,-2.03131434506197,{"$f":"AVERAGE(BL12:BL18)","v":4.403161796844172},1.4544128713880617,null,null,14.689269664848547]
[{"$f":"'[1]Nominal weighted'!B16","v":1322},null,-67.82212962962963,-12.853181493302571,{"$nulls":7},{"$f":"AVERAGE(C13:C19)","v":4.69901016195007},20.751338154591945,{"$nulls":7},75,34.85318149330257,{"$nulls":8},7.17787037037037,22,{"$nulls":8},{"$f":"AE16*'III. GDP shares, 1310-2018'!C18","v":5.717476244382697},{"$f":"AF16*'III. GDP shares, 1310-2018'!D18","v":4.476072861994442},{"$f":"AG16*'III. GDP shares, 1310-2018'!E18","v":0},{"$f":"AH16*'III. GDP shares, 1310-2018'!F18","v":0},{"$f":"AI16*'III. GDP shares, 1310-2018'!G18","v":0},{"$f":"AJ16*'III. GDP shares, 1310-2018'!H18","v":0},{"$f":"AK16*'III. GDP shares, 1310-2018'!I18","v":0},{"$f":"AL16*'III. GDP shares, 1310-2018'!J18","v":0},null,null,{"$f":"U16*'III. GDP shares, 1310-2018'!C18","v":59.74066069774622},{"$f":"V16*'III. GDP shares, 1310-2018'!D18","v":7.091153628924481},{"$f":"W16*'III. GDP shares, 1310-2018'!E18","v":0},{"$f":"X16*'III. GDP shares, 1310-2018'!F18","v":0},{"$f":"Y16*'III. GDP shares, 1310-2018'!G18","v":0},{"$f":"Z16*'III. GDP shares, 1310-2018'!H18","v":0},{"$f":"AA16*'III. GDP shares, 1310-2018'!I18","v":0},{"$f":"AB16*'III. GDP shares, 1310-2018'!J18","v":0},null,null,14.588935185185186,10.193549106377139,null,66.8318143266707,54.926590746651286,{"$f":"AVERAGE(BL13:BL19)","v":2.3384236534192646},1.9327196934988131,null,null,-54.02318445336353]
[{"$f":"'[1]Nominal weighted'!B17","v":1323},null,-28.68873015873016,35.90514061632865,{"$nulls":7},{"$f":"AVERAGE(C14:C20)","v":3.7421711676110756},19.35990297598645,{"$nulls":7},35.714285714285715,-13.905140616328652,{"$nulls":8},7.025555555555556,22,{"$nulls":8},{"$f":"AE17*'III. GDP shares, 1310-2018'!C19","v":5.596151075434806},{"$f":"AF17*'III. GDP shares, 1310-2018'!D19","v":4.476072861994442},{"$f":"AG17*'III. GDP shares, 1310-2018'!E19","v":0},{"$f":"AH17*'III. GDP shares, 1310-2018'!F19","v":0},{"$f":"AI17*'III. GDP shares, 1310-2018'!G19","v":0},{"$f":"AJ17*'III. GDP shares, 1310-2018'!H19","v":0},{"$f":"AK17*'III. GDP shares, 1310-2018'!I19","v":0},{"$f":"AL17*'III. GDP shares, 1310-2018'!J19","v":0},null,null,{"$f":"U17*'III. GDP shares, 1310-2018'!C19","v":28.44793366559344},{"$f":"V17*'III. GDP shares, 1310-2018'!D19","v":-2.829110116134789},{"$f":"W17*'III. GDP shares, 1310-2018'!E19","v":0},{"$f":"X17*'III. GDP shares, 1310-2018'!F19","v":0},{"$f":"Y17*'III. GDP shares, 1310-2018'!G19","v":0},{"$f":"Z17*'III. GDP shares, 1310-2018'!H19","v":0},{"$f":"AA17*'III. GDP shares, 1310-2018'!I19","v":0},{"$f":"AB17*'III. GDP shares, 1310-2018'!J19","v":0},null,null,14.512777777777778,10.072223937429248,null,25.61882354945865,10.904572548978532,{"$f":"AVERAGE(BL14:BL20)","v":3.8871291420455196},3.6669034723558758,null,null,-22.851782590158635]
[{"$f":"'[1]Nominal weighted'!B18","v":1324},null,28.19530599755202,36.57903389049092,{"$nulls":7},{"$f":"AVERAGE(C15:C21)","v":-0.2242574923672503},23.047360997914858,{"$nulls":7},-21.052631578947366,-14.57903389049092,{"$nulls":8},7.142674418604651,22,{"$nulls":8},{"$f":"AE18*'III. GDP shares, 1310-2018'!C20","v":5.689441185551096},{"$f":"AF18*'III. GDP shares, 1310-2018'!D20","v":4.476072861994442},{"$f":"AG18*'III. GDP shares, 1310-2018'!E20","v":0},{"$f":"AH18*'III. GDP shares, 1310-2018'!F20","v":0},{"$f":"AI18*'III. GDP shares, 1310-2018'!G20","v":0},{"$f":"AJ18*'III. GDP shares, 1310-2018'!H20","v":0},{"$f":"AK18*'III. GDP shares, 1310-2018'!I20","v":0},{"$f":"AL18*'III. GDP shares, 1310-2018'!J20","v":0},null,null,{"$f":"U18*'III. GDP shares, 1310-2018'!C20","v":-16.769308266034024},{"$f":"V18*'III. GDP shares, 1310-2018'!D20","v":-2.9662189977874394},{"$f":"W18*'III. GDP shares, 1310-2018'!E20","v":0},{"$f":"X18*'III. GDP shares, 1310-2018'!F20","v":0},{"$f":"Y18*'III. GDP shares, 1310-2018'!G20","v":0},{"$f":"Z18*'III. GDP shares, 1310-2018'!H20","v":0},{"$f":"AA18*'III. GDP shares, 1310-2018'!I20","v":0},{"$f":"AB18*'III. GDP shares, 1310-2018'!J20","v":0},null,null,14.571337209302325,10.165514047545539,null,-19.735527263821464,-17.815832734719145,{"$f":"AVERAGE(BL15:BL21)","v":6.033465689110601},3.8941461999822873,null,null,22.45874945158512]
[{"$f":"'[1]Nominal weighted'!B19","v":1325},null,33.98172839506173,14.259854331381405,{"$nulls":7},{"$f":"AVERAGE(C16:C22)","v":-3.466663774355948},22.576002520849904,{"$nulls":7},-26.666666666666668,7.740145668618595,{"$nulls":8},7.315061728395062,22,{"$nulls":8},{"$f":"AE19*'III. GDP shares, 1310-2018'!C21","v":5.826754942654912},{"$f":"AF19*'III. GDP shares, 1310-2018'!D21","v":4.476072861994442},{"$f":"AG19*'III. GDP shares, 1310-2018'!E21","v":0},{"$f":"AH19*'III. GDP shares, 1310-2018'!F21","v":0},{"$f":"AI19*'III. GDP shares, 1310-2018'!G21","v":0},{"$f":"AJ19*'III. GDP shares, 1310-2018'!H21","v":0},{"$f":"AK19*'III. GDP shares, 1310-2018'!I21","v":0},{"$f":"AL19*'III. GDP shares, 1310-2018'!J21","v":0},null,null,{"$f":"U19*'III. GDP shares, 1310-2018'!C21","v":-21.241123803643102},{"$f":"V19*'III. GDP shares, 1310-2018'!D21","v":1.5747934534176147},{"$f":"W19*'III. GDP shares, 1310-2018'!E21","v":0},{"$f":"X19*'III. GDP shares, 1310-2018'!F21","v":0},{"$f":"Y19*'III. GDP shares, 1310-2018'!G21","v":0},{"$f":"Z19*'III. GDP shares, 1310-2018'!H21","v":0},{"$f":"AA19*'III. GDP shares, 1310-2018'!I21","v":0},{"$f":"AB19*'III. GDP shares, 1310-2018'!J21","v":0},null,null,14.65753086419753,10.302827804649354,null,-19.666330350225486,-9.463260499024036,{"$f":"AVERAGE(BL16:BL22)","v":8.099634150642045},5.181954363805354,null,null,27.067878746298014]
[{"$f":"'[1]Nominal weighted'!B20","v":1326},null,16.423409090909093,37.17061857200086,null,{"$f":"AH20-X20","v":8.67669995804044},{"$nulls":5},{"$f":"AVERAGE(C17:C23)","v":2.5807772750344404},25.890677317443053,null,9.495229479281969,{"$nulls":5},-9.090909090909092,-15.170618572000862,null,0.23646670862622374,{"$nulls":6},7.3325000000000005,22,null,8.913166666666664,{"$nulls":6},{"$f":"AE20*'III. GDP shares, 1310-2018'!C22","v":3.7143035993879168},{"$f":"AF20*'III. GDP shares, 1310-2018'!D22","v":2.8465165747654204},{"$f":"AG20*'III. GDP shares, 1310-2018'!E22","v":0},{"$f":"AH20*'III. GDP shares, 1310-2018'!F22","v":3.244921883223097},{"$f":"AI20*'III. GDP shares, 1310-2018'!G22","v":0},{"$f":"AJ20*'III. GDP shares, 1310-2018'!H22","v":0},{"$f":"AK20*'III. GDP shares, 1310-2018'!I22","v":0},{"$f":"AL20*'III. GDP shares, 1310-2018'!J22","v":0},null,null,{"$f":"U20*'III. GDP shares, 1310-2018'!C22","v":-4.605031893361333},{"$f":"V20*'III. GDP shares, 1310-2018'!D22","v":-1.9628826006656621},{"$f":"W20*'III. GDP shares, 1310-2018'!E22","v":0},{"$f":"X20*'III. GDP shares, 1310-2018'!F22","v":0.08608792207875691},{"$f":"Y20*'III. GDP shares, 1310-2018'!G22","v":0},{"$f":"Z20*'III. GDP shares, 1310-2018'!H22","v":0},{"$f":"AA20*'III. GDP shares, 1310-2018'!I22","v":0},{"$f":"AB20*'III. GDP shares, 1310-2018'!J22","v":0},null,null,12.748555555555555,9.805742057376435,null,-6.481826571948239,-8.00835365142791,{"$f":"AVERAGE(BL17:BL23)","v":1.1089688469610393},-0.5991891432682578,null,null,11.47816945389359]
[{"$f":"'[1]Nominal weighted'!B21","v":1327},null,-2.1006824380301135,35.3185434894919,null,9.041946930916046,{"$nulls":5},{"$f":"AVERAGE(C18:C24)","v":8.327545386551071},24.39605066246471,null,9.77077451788916,{"$nulls":5},9.322854423845717,-13.318543489491901,null,0.23555306908395043,{"$nulls":6},7.222171985815604,22,null,9.277499999999996,{"$nulls":6},{"$f":"AE21*'III. GDP shares, 1310-2018'!C23","v":3.656713195657747},{"$f":"AF21*'III. GDP shares, 1310-2018'!D23","v":2.8451912348307786},{"$f":"AG21*'III. GDP shares, 1310-2018'!E23","v":0},{"$f":"AH21*'III. GDP shares, 1310-2018'!F23","v":3.3803078641729387},{"$f":"AI21*'III. GDP shares, 1310-2018'!G23","v":0},{"$f":"AJ21*'III. GDP shares, 1310-2018'!H23","v":0},{"$f":"AK21*'III. GDP shares, 1310-2018'!I23","v":0},{"$f":"AL21*'III. GDP shares, 1310-2018'!J23","v":0},null,null,{"$f":"U21*'III. GDP shares, 1310-2018'!C23","v":4.720325805010987},{"$f":"V21*'III. GDP shares, 1310-2018'!D23","v":-1.7224455998643133},{"$f":"W21*'III. GDP shares, 1310-2018'!E23","v":0},{"$f":"X21*'III. GDP shares, 1310-2018'!F23","v":0.08582504897381293},{"$f":"Y21*'III. GDP shares, 1310-2018'!G23","v":0},{"$f":"Z21*'III. GDP shares, 1310-2018'!H23","v":0},{"$f":"AA21*'III. GDP shares, 1310-2018'!I23","v":0},{"$f":"AB21*'III. GDP shares, 1310-2018'!J23","v":0},null,null,12.833223995271865,9.882212294661464,null,3.083705254120486,-1.2533786655207446,{"$f":"AVERAGE(BL18:BL24)","v":-2.8641197883667915},-2.3406693827614773,null,null,2.2308702058458856]
[{"$f":"'[1]Nominal weighted'!B22","v":1328},null,-4.255547677624577,11.652008239558157,null,9.906775365847075,{"$nulls":5},{"$f":"AVERAGE(C19:C25)","v":9.055378785317426},21.8004976073067,null,10.248662250858024,{"$nulls":5},11.367391649255783,9.347991760441843,null,0.23464499540086864,{"$nulls":6},7.111843971631206,21,null,10.141420361247944,{"$nulls":6},{"$f":"AE22*'III. GDP shares, 1310-2018'!C24","v":3.5991763952273406},{"$f":"AF22*'III. GDP shares, 1310-2018'!D24","v":2.714600440821836},{"$f":"AG22*'III. GDP shares, 1310-2018'!E24","v":0},{"$f":"AH22*'III. GDP shares, 1310-2018'!F24","v":3.6980819950802153},{"$f":"AI22*'III. GDP shares, 1310-2018'!G24","v":0},{"$f":"AJ22*'III. GDP shares, 1310-2018'!H24","v":0},{"$f":"AK22*'III. GDP shares, 1310-2018'!I24","v":0},{"$f":"AL22*'III. GDP shares, 1310-2018'!J24","v":0},null,null,{"$f":"U22*'III. GDP shares, 1310-2018'!C24","v":5.752832579357298},{"$f":"V22*'III. GDP shares, 1310-2018'!D24","v":1.208383931128301},{"$f":"W22*'III. GDP shares, 1310-2018'!E24","v":0},{"$f":"X22*'III. GDP shares, 1310-2018'!F24","v":0.08556359975407367},{"$f":"Y22*'III. GDP shares, 1310-2018'!G24","v":0},{"$f":"Z22*'III. GDP shares, 1310-2018'!H24","v":0},{"$f":"AA22*'III. GDP shares, 1310-2018'!I24","v":0},{"$f":"AB22*'III. GDP shares, 1310-2018'!J24","v":0},null,null,12.751088110959715,10.011858831129391,null,7.0467801102396725,6.983342801699497,{"$f":"AVERAGE(BL19:BL25)","v":-1.806563408958039},-0.6854308367419469,null,null,1.4588622111961849]
[{"$f":"'[1]Nominal weighted'!B23","v":1329},null,-25.490042283896912,10.349542082849482,null,10.355495662324316,{"$nulls":5},{"$f":"AVERAGE(C20:C26)","v":6.536345221322642},23.51593805736056,null,9.92023966434324,{"$nulls":5},32.49155824134372,10.650457917150518,null,0.2337424329137751,{"$nulls":6},7.0015159574468075,21,null,10.589238095238091,{"$nulls":6},{"$f":"AE23*'III. GDP shares, 1310-2018'!C25","v":3.541693123293162},{"$f":"AF23*'III. GDP shares, 1310-2018'!D25","v":2.7133376969920495},{"$f":"AG23*'III. GDP shares, 1310-2018'!E25","v":0},{"$f":"AH23*'III. GDP shares, 1310-2018'!F25","v":3.8645088895663458},{"$f":"AI23*'III. GDP shares, 1310-2018'!G25","v":0},{"$f":"AJ23*'III. GDP shares, 1310-2018'!H25","v":0},{"$f":"AK23*'III. GDP shares, 1310-2018'!I25","v":0},{"$f":"AL23*'III. GDP shares, 1310-2018'!J25","v":0},null,null,{"$f":"U23*'III. GDP shares, 1310-2018'!C25","v":16.435744642708766},{"$f":"V23*'III. GDP shares, 1310-2018'!D25","v":1.3761089979443777},{"$f":"W23*'III. GDP shares, 1310-2018'!E25","v":0},{"$f":"X23*'III. GDP shares, 1310-2018'!F25","v":0.08530356025051103},{"$f":"Y23*'III. GDP shares, 1310-2018'!G25","v":0},{"$f":"Z23*'III. GDP shares, 1310-2018'!H25","v":0},{"$f":"AA23*'III. GDP shares, 1310-2018'!I25","v":0},{"$f":"AB23*'III. GDP shares, 1310-2018'!J25","v":0},null,null,12.8635846842283,10.119539709851558,null,17.897157200903656,14.458586197136002,{"$f":"AVERAGE(BL20:BL26)","v":0.35040502485677943},0.3074239137282238,null,null,-9.11484619009977]
[{"$f":"'[1]Nominal weighted'!B24","v":1330},null,11.53864662188627,25.442754031480234,null,10.872954672317924,{"$nulls":5},{"$f":"AVERAGE(C21:C27)","v":2.2923421023775883},25.038954717622065,null,10.036989254814713,{"$nulls":5},-4.64745867862386,0.5572459685197657,null,0.23284532768207572,{"$nulls":6},6.891187943262411,26,null,11.1058,{"$nulls":6},{"$f":"AE24*'III. GDP shares, 1310-2018'!C26","v":3.484263305190797},{"$f":"AF24*'III. GDP shares, 1310-2018'!D26","v":3.3578085386742815},{"$f":"AG24*'III. GDP shares, 1310-2018'!E26","v":0},{"$f":"AH24*'III. GDP shares, 1310-2018'!F26","v":4.056305715368751},{"$f":"AI24*'III. GDP shares, 1310-2018'!G26","v":0},{"$f":"AJ24*'III. GDP shares, 1310-2018'!H26","v":0},{"$f":"AK24*'III. GDP shares, 1310-2018'!I26","v":0},{"$f":"AL24*'III. GDP shares, 1310-2018'!J26","v":0},null,null,{"$f":"U24*'III. GDP shares, 1310-2018'!C26","v":-2.3498081709049403},{"$f":"V24*'III. GDP shares, 1310-2018'!D26","v":0.07196635658605728},{"$f":"W24*'III. GDP shares, 1310-2018'!E26","v":0},{"$f":"X24*'III. GDP shares, 1310-2018'!F26","v":0.08504491648271294},{"$f":"Y24*'III. GDP shares, 1310-2018'!G26","v":0},{"$f":"Z24*'III. GDP shares, 1310-2018'!H26","v":0},{"$f":"AA24*'III. GDP shares, 1310-2018'!I26","v":0},{"$f":"AB24*'III. GDP shares, 1310-2018'!J26","v":0},null,null,14.665662647754138,10.898377559233829,null,-2.1927968978361703,-1.285789127474006,{"$f":"AVERAGE(BL21:BL27)","v":2.3973488365458606},1.5764789741449443,null,null,9.805332274981776]
[{"$f":"'[1]Nominal weighted'!B25","v":1331},null,33.29013978891649,18.410162504384843,null,12.638100915702344,{"$nulls":5},{"$f":"AVERAGE(C22:C28)","v":2.7129441847989844},25.468058616854513,null,9.975633368556512,{"$nulls":5},-26.509279859838475,7.589837495615157,null,0.23195362647603748,{"$nulls":6},6.780859929078015,26,null,12.870054542178382,{"$nulls":6},{"$f":"AE25*'III. GDP shares, 1310-2018'!C27","v":3.42688686639463},{"$f":"AF25*'III. GDP shares, 1310-2018'!D27","v":3.356248047138218},{"$f":"AG25*'III. GDP shares, 1310-2018'!E27","v":0},{"$f":"AH25*'III. GDP shares, 1310-2018'!F27","v":4.704482342019543},{"$f":"AI25*'III. GDP shares, 1310-2018'!G27","v":0},{"$f":"AJ25*'III. GDP shares, 1310-2018'!H27","v":0},{"$f":"AK25*'III. GDP shares, 1310-2018'!I27","v":0},{"$f":"AL25*'III. GDP shares, 1310-2018'!J27","v":0},null,null,{"$f":"U25*'III. GDP shares, 1310-2018'!C27","v":-13.39716554233736},{"$f":"V25*'III. GDP shares, 1310-2018'!D27","v":0.9797452797213382},{"$f":"W25*'III. GDP shares, 1310-2018'!E27","v":0},{"$f":"X25*'III. GDP shares, 1310-2018'!F27","v":0.08478765465582985},{"$f":"Y25*'III. GDP shares, 1310-2018'!G27","v":0},{"$f":"Z25*'III. GDP shares, 1310-2018'!H27","v":0},{"$f":"AA25*'III. GDP shares, 1310-2018'!I27","v":0},{"$f":"AB25*'III. GDP shares, 1310-2018'!J27","v":0},null,null,15.216971490418798,11.48761725555239,null,-12.332632607960191,-6.229162912582427,{"$f":"AVERAGE(BL22:BL28)","v":2.2733890342707883},1.7647284721566245,null,null,21.443747096095702]
[{"$f":"'[1]Nominal weighted'!B26","v":1332},null,16.348493447098246,26.267937481758462,null,7.949704145254543,{"$nulls":5},{"$f":"AVERAGE(C23:C29)","v":4.29203588572154},28.890900243120075,null,9.061336424102999,{"$nulls":5},-9.702961532204627,1.932062518241537,null,0.23106727676455532,{"$nulls":6},6.645531914893618,28.2,null,8.180771422019099,{"$nulls":6},{"$f":"AE26*'III. GDP shares, 1310-2018'!C28","v":3.356935190388084},{"$f":"AF26*'III. GDP shares, 1310-2018'!D28","v":3.638547305812267},{"$f":"AG26*'III. GDP shares, 1310-2018'!E28","v":0},{"$f":"AH26*'III. GDP shares, 1310-2018'!F28","v":2.9927864542817932},{"$f":"AI26*'III. GDP shares, 1310-2018'!G28","v":0},{"$f":"AJ26*'III. GDP shares, 1310-2018'!H28","v":0},{"$f":"AK26*'III. GDP shares, 1310-2018'!I28","v":0},{"$f":"AL26*'III. GDP shares, 1310-2018'!J28","v":0},null,null,{"$f":"U26*'III. GDP shares, 1310-2018'!C28","v":-4.901370339587183},{"$f":"V26*'III. GDP shares, 1310-2018'!D28","v":0.24928726490810668},{"$f":"W26*'III. GDP shares, 1310-2018'!E28","v":0},{"$f":"X26*'III. GDP shares, 1310-2018'!F28","v":0.08453176115731947},{"$f":"Y26*'III. GDP shares, 1310-2018'!G28","v":0},{"$f":"Z26*'III. GDP shares, 1310-2018'!H28","v":0},{"$f":"AA26*'III. GDP shares, 1310-2018'!I28","v":0},{"$f":"AB26*'III. GDP shares, 1310-2018'!J28","v":0},null,null,14.34210111230424,9.988268950482144,null,-4.567551313521757,-2.5132772457328447,{"$f":"AVERAGE(BL23:BL29)","v":1.5130410816406834},0.96943497541948,null,null,11.16656022309974]
[{"$f":"'[1]Nominal weighted'!B27","v":1333},null,-13.28461274170629,47.831735193831385,null,9.493947091340747,{"$nulls":5},{"$f":"AVERAGE(C24:C30)","v":9.077777277598223},32.04238603698685,null,8.110501351382412,{"$nulls":5},19.826644281594973,-17.431735193831386,null,0.23018622670381989,{"$nulls":6},6.542031539888684,30.4,null,9.724133318044567,{"$nulls":6},{"$f":"AE27*'III. GDP shares, 1310-2018'!C29","v":3.303118474470747},{"$f":"AF27*'III. GDP shares, 1310-2018'!D29","v":3.9205844193857136},{"$f":"AG27*'III. GDP shares, 1310-2018'!E29","v":0},{"$f":"AH27*'III. GDP shares, 1310-2018'!F29","v":3.560260574773885},{"$f":"AI27*'III. GDP shares, 1310-2018'!G29","v":0},{"$f":"AJ27*'III. GDP shares, 1310-2018'!H29","v":0},{"$f":"AK27*'III. GDP shares, 1310-2018'!I29","v":0},{"$f":"AL27*'III. GDP shares, 1310-2018'!J29","v":0},null,null,{"$f":"U27*'III. GDP shares, 1310-2018'!C29","v":10.010614380867153},{"$f":"V27*'III. GDP shares, 1310-2018'!D29","v":-2.2481114935458204},{"$f":"W27*'III. GDP shares, 1310-2018'!E29","v":0},{"$f":"X27*'III. GDP shares, 1310-2018'!F29","v":0.08427722255399642},{"$f":"Y27*'III. GDP shares, 1310-2018'!G29","v":0},{"$f":"Z27*'III. GDP shares, 1310-2018'!H29","v":0},{"$f":"AA27*'III. GDP shares, 1310-2018'!I29","v":0},{"$f":"AB27*'III. GDP shares, 1310-2018'!J29","v":0},null,null,15.555388285977749,10.783963468630345,null,7.846780109875329,0.8750317714891356,{"$f":"AVERAGE(BL24:BL30)","v":-0.7693267605511267},-0.6873641194353493,null,null,-3.2315125541765184]
[{"$f":"'[1]Nominal weighted'!B28","v":1334},null,0.8435321389196586,38.32227078411905,null,8.612455727108625,{"$nulls":5},{"$f":"AVERAGE(C25:C31)","v":8.41116878006645},34.91571235127635,null,7.0797174179560205,{"$nulls":5},5.686063820676302,-5.722270784119047,null,0.22931042512579228,{"$nulls":6},6.5295959595959605,32.6,null,8.841766152234417,{"$nulls":6},{"$f":"AE28*'III. GDP shares, 1310-2018'!C30","v":3.295309637124968},{"$f":"AF28*'III. GDP shares, 1310-2018'!D30","v":4.202359752833807},{"$f":"AG28*'III. GDP shares, 1310-2018'!E30","v":0},{"$f":"AH28*'III. GDP shares, 1310-2018'!F30","v":3.239803794439995},{"$f":"AI28*'III. GDP shares, 1310-2018'!G30","v":0},{"$f":"AJ28*'III. GDP shares, 1310-2018'!H30","v":0},{"$f":"AK28*'III. GDP shares, 1310-2018'!I30","v":0},{"$f":"AL28*'III. GDP shares, 1310-2018'!J30","v":0},null,null,{"$f":"U28*'III. GDP shares, 1310-2018'!C30","v":2.869601889845213},{"$f":"V28*'III. GDP shares, 1310-2018'!D30","v":-0.7376392772392218},{"$f":"W28*'III. GDP shares, 1310-2018'!E30","v":0},{"$f":"X28*'III. GDP shares, 1310-2018'!F30","v":0.08402402558898772},{"$f":"Y28*'III. GDP shares, 1310-2018'!G30","v":0},{"$f":"Z28*'III. GDP shares, 1310-2018'!H30","v":0},{"$f":"AA28*'III. GDP shares, 1310-2018'!I30","v":0},{"$f":"AB28*'III. GDP shares, 1310-2018'!J30","v":0},null,null,15.990454037276791,10.73747318439877,null,2.2159866381949787,0.06436782056101573,{"$f":"AVERAGE(BL25:BL31)","v":-0.3007615529571745},-0.557557560131488,null,null,3.5814875161307618]
[{"$f":"'[1]Nominal weighted'!B29","v":1335},null,6.79809422883331,35.61189962341705,null,3.506696754672486,{"$nulls":5},{"$f":"AVERAGE(C26:C32)","v":4.689053483538236},39.58139703511087,null,5.723898964662432,{"$nulls":5},-0.19531540971428527,-0.8118996234170481,null,5.256080006749787,{"$nulls":6},6.602778819119025,34.800000000000004,null,8.762776761422273,{"$nulls":6},{"$f":"AE29*'III. GDP shares, 1310-2018'!C31","v":3.3306973006435316},{"$f":"AF29*'III. GDP shares, 1310-2018'!D31","v":4.48387367045459},{"$f":"AG29*'III. GDP shares, 1310-2018'!E31","v":0},{"$f":"AH29*'III. GDP shares, 1310-2018'!F31","v":3.2134358505164933},{"$f":"AI29*'III. GDP shares, 1310-2018'!G31","v":0},{"$f":"AJ29*'III. GDP shares, 1310-2018'!H31","v":0},{"$f":"AK29*'III. GDP shares, 1310-2018'!I31","v":0},{"$f":"AL29*'III. GDP shares, 1310-2018'!J31","v":0},null,null,{"$f":"U29*'III. GDP shares, 1310-2018'!C31","v":-0.09852465541110661},{"$f":"V29*'III. GDP shares, 1310-2018'!D31","v":-0.1046107857612557},{"$f":"W29*'III. GDP shares, 1310-2018'!E31","v":0},{"$f":"X29*'III. GDP shares, 1310-2018'!F31","v":1.927479883001303},{"$f":"Y29*'III. GDP shares, 1310-2018'!G31","v":0},{"$f":"Z29*'III. GDP shares, 1310-2018'!H31","v":0},{"$f":"AA29*'III. GDP shares, 1310-2018'!I31","v":0},{"$f":"AB29*'III. GDP shares, 1310-2018'!J31","v":0},null,null,16.721851860180433,11.028006821614614,null,1.7243444418289406,1.4162883245394846,{"$f":"AVERAGE(BL26:BL32)","v":1.5101044284589826},0.08686877035456428,null,null,4.715177923569829]
[{"$f":"'[1]Nominal weighted'!B30","v":1336},null,8.01014745923987,32.409942639916885,null,3.699650153280208,{"$nulls":5},{"$f":"AVERAGE(C27:C33)","v":2.91347860030451},39.76586877446244,null,3.7574777503816432,{"$nulls":5},-0.9912169779564464,4.590057360083122,null,4.984137217329918,{"$nulls":6},7.018930481283422,37.00000000000001,null,8.683787370610126,{"$nulls":6},{"$f":"AE30*'III. GDP shares, 1310-2018'!C32","v":3.538978676769376},{"$f":"AF30*'III. GDP shares, 1310-2018'!D32","v":4.765126535870465},{"$f":"AG30*'III. GDP shares, 1310-2018'!E32","v":0},{"$f":"AH30*'III. GDP shares, 1310-2018'!F32","v":3.187019109912343},{"$f":"AI30*'III. GDP shares, 1310-2018'!G32","v":0},{"$f":"AJ30*'III. GDP shares, 1310-2018'!H32","v":0},{"$f":"AK30*'III. GDP shares, 1310-2018'!I32","v":0},{"$f":"AL30*'III. GDP shares, 1310-2018'!J32","v":0},null,null,{"$f":"U30*'III. GDP shares, 1310-2018'!C32","v":-0.4997763916302844},{"$f":"V30*'III. GDP shares, 1310-2018'!D32","v":0.5911406520999896},{"$f":"W30*'III. GDP shares, 1310-2018'!E32","v":0},{"$f":"X30*'III. GDP shares, 1310-2018'!F32","v":1.8292180450912774},{"$f":"Y30*'III. GDP shares, 1310-2018'!G32","v":0},{"$f":"Z30*'III. GDP shares, 1310-2018'!H32","v":0},{"$f":"AA30*'III. GDP shares, 1310-2018'!I32","v":0},{"$f":"AB30*'III. GDP shares, 1310-2018'!J32","v":0},null,null,17.567572617297852,11.491124322552183,null,1.9205823055609825,2.860992533152198,{"$f":"AVERAGE(BL27:BL33)","v":2.9482113999181885},0.8487508652232229,null,null,5.3965561332207255]
[{"$f":"'[1]Nominal weighted'!B31","v":1337},null,6.8723871391638625,45.55603823150677,null,3.6574671383331854,{"$nulls":5},{"$f":"AVERAGE(C28:C34)","v":5.811078447081388},31.340463769084085,null,6.3538470688152655,{"$nulls":5},-0.09986871164543443,-6.3560382315067585,null,5.324477306111259,{"$nulls":6},6.772518427518428,39.20000000000001,null,8.981944444444444,{"$nulls":6},{"$f":"AE31*'III. GDP shares, 1310-2018'!C33","v":3.4131539929408},{"$f":"AF31*'III. GDP shares, 1310-2018'!D33","v":5.0461187120297595},{"$f":"AG31*'III. GDP shares, 1310-2018'!E33","v":0},{"$f":"AH31*'III. GDP shares, 1310-2018'!F33","v":3.2990800340745854},{"$f":"AI31*'III. GDP shares, 1310-2018'!G33","v":0},{"$f":"AJ31*'III. GDP shares, 1310-2018'!H33","v":0},{"$f":"AK31*'III. GDP shares, 1310-2018'!I33","v":0},{"$f":"AL31*'III. GDP shares, 1310-2018'!J33","v":0},null,null,{"$f":"U31*'III. GDP shares, 1310-2018'!C33","v":-0.050330950822878424},{"$f":"V31*'III. GDP shares, 1310-2018'!D33","v":-0.81819702689752},{"$f":"W31*'III. GDP shares, 1310-2018'!E33","v":0},{"$f":"X31*'III. GDP shares, 1310-2018'!F33","v":1.9556875330418926},{"$f":"Y31*'III. GDP shares, 1310-2018'!G33","v":0},{"$f":"Z31*'III. GDP shares, 1310-2018'!H33","v":0},{"$f":"AA31*'III. GDP shares, 1310-2018'!I33","v":0},{"$f":"AB31*'III. GDP shares, 1310-2018'!J33","v":0},null,null,18.318154290654295,11.758352739045144,null,1.087159555321494,-0.3771432123469782,{"$f":"AVERAGE(BL28:BL34)","v":1.410614288784298},1.2912376386793165,null,null,4.806877444796372]
[{"$f":"'[1]Nominal weighted'!B32","v":1338},null,7.235332713218988,51.069955291226485,null,3.1473717426472314,{"$nulls":5},{"$f":"AVERAGE(C29:C35)","v":6.4950246783829275},30.70566107678516,null,9.519064388660668,{"$nulls":5},-0.5303304567881602,-9.669955291226486,null,5.045749950474463,{"$nulls":6},6.705002256430828,41.4,null,8.193121693121695,{"$nulls":6},{"$f":"AE32*'III. GDP shares, 1310-2018'!C34","v":3.377562482462606},{"$f":"AF32*'III. GDP shares, 1310-2018'!D34","v":5.3268505612082935},{"$f":"AG32*'III. GDP shares, 1310-2018'!E34","v":0},{"$f":"AH32*'III. GDP shares, 1310-2018'!F34","v":3.0117456693687106},{"$f":"AI32*'III. GDP shares, 1310-2018'!G34","v":0},{"$f":"AJ32*'III. GDP shares, 1310-2018'!H34","v":0},{"$f":"AK32*'III. GDP shares, 1310-2018'!I34","v":0},{"$f":"AL32*'III. GDP shares, 1310-2018'!J34","v":0},null,null,{"$f":"U32*'III. GDP shares, 1310-2018'!C34","v":-0.26714744986654804},{"$f":"V32*'III. GDP shares, 1310-2018'!D34","v":-1.2442127239113265},{"$f":"W32*'III. GDP shares, 1310-2018'!E34","v":0},{"$f":"X32*'III. GDP shares, 1310-2018'!F34","v":1.8547894357307861},{"$f":"Y32*'III. GDP shares, 1310-2018'!G34","v":0},{"$f":"Z32*'III. GDP shares, 1310-2018'!H34","v":0},{"$f":"AA32*'III. GDP shares, 1310-2018'!I34","v":0},{"$f":"AB32*'III. GDP shares, 1310-2018'!J34","v":0},null,null,18.76604131651751,11.716158713039611,null,0.34342926195291157,-1.718178599180061,{"$f":"AVERAGE(BL29:BL35)","v":-0.25487414642013384},-0.41364465944196177,null,null,4.801666165967079]
[{"$f":"'[1]Nominal weighted'!B33","v":1339},null,3.919469264462169,27.559239657219482,null,-5.815244354710984,{"$nulls":5},{"$f":"AVERAGE(C30:C36)","v":6.945999196633094},29.94846187936392,null,12.129970835360496,{"$nulls":5},2.7180168208810587,-8.435239657219483,null,14.176915091381723,{"$nulls":6},6.637486085343228,19.124,null,8.361670736670739,{"$nulls":6},{"$f":"AE33*'III. GDP shares, 1310-2018'!C35","v":3.3420039306972456},{"$f":"AF33*'III. GDP shares, 1310-2018'!D35","v":2.459505377027273},{"$f":"AG33*'III. GDP shares, 1310-2018'!E35","v":0},{"$f":"AH33*'III. GDP shares, 1310-2018'!F35","v":3.0761517555044837},{"$f":"AI33*'III. GDP shares, 1310-2018'!G35","v":0},{"$f":"AJ33*'III. GDP shares, 1310-2018'!H35","v":0},{"$f":"AK33*'III. GDP shares, 1310-2018'!I35","v":0},{"$f":"AL33*'III. GDP shares, 1310-2018'!J35","v":0},null,null,{"$f":"U33*'III. GDP shares, 1310-2018'!C35","v":1.3685336258774259},{"$f":"V33*'III. GDP shares, 1310-2018'!D35","v":-1.0848419417195676},{"$f":"W33*'III. GDP shares, 1310-2018'!E35","v":0},{"$f":"X33*'III. GDP shares, 1310-2018'!F35","v":5.215505802534826},{"$f":"Y33*'III. GDP shares, 1310-2018'!G35","v":0},{"$f":"Z33*'III. GDP shares, 1310-2018'!H35","v":0},{"$f":"AA33*'III. GDP shares, 1310-2018'!I35","v":0},{"$f":"AB33*'III. GDP shares, 1310-2018'!J35","v":0},null,null,11.37438560733799,8.877661063229002,null,5.499197486692685,2.819897418347766,{"$f":"AVERAGE(BL30:BL36)","v":-1.3249068363423326},-1.1574559027170828,null,null,-0.16588374221052327]
[{"$f":"'[1]Nominal weighted'!B34","v":1340},null,6.9985861857318605,-11.146099843817122,null,27.668532320376105,{"$nulls":5},{"$f":"AVERAGE(C31:C37)","v":6.193434934773237},30.633178742254675,null,12.530413673176648,{"$nulls":5},-0.3735356806813572,30.27009984381712,null,-17.979246606090392,{"$nulls":6},6.6250505050505035,19.124,null,9.689285714285713,{"$nulls":6},{"$f":"AE34*'III. GDP shares, 1310-2018'!C36","v":3.3341987807371054},{"$f":"AF34*'III. GDP shares, 1310-2018'!D36","v":2.4583671194085577},{"$f":"AG34*'III. GDP shares, 1310-2018'!E36","v":0},{"$f":"AH34*'III. GDP shares, 1310-2018'!F36","v":3.5673988488840154},{"$f":"AI34*'III. GDP shares, 1310-2018'!G36","v":0},{"$f":"AJ34*'III. GDP shares, 1310-2018'!H36","v":0},{"$f":"AK34*'III. GDP shares, 1310-2018'!I36","v":0},{"$f":"AL34*'III. GDP shares, 1310-2018'!J36","v":0},null,null,{"$f":"U34*'III. GDP shares, 1310-2018'!C36","v":-0.18798984402309726},{"$f":"V34*'III. GDP shares, 1310-2018'!D36","v":3.8911848021990236},{"$f":"W34*'III. GDP shares, 1310-2018'!E36","v":0},{"$f":"X34*'III. GDP shares, 1310-2018'!F36","v":-6.6195946262378325},{"$f":"Y34*'III. GDP shares, 1310-2018'!G36","v":0},{"$f":"Z34*'III. GDP shares, 1310-2018'!H36","v":0},{"$f":"AA34*'III. GDP shares, 1310-2018'!I36","v":0},{"$f":"AB34*'III. GDP shares, 1310-2018'!J36","v":0},null,null,11.812778739778738,9.359964749029679,null,-2.916399668061906,3.972439185681791,{"$f":"AVERAGE(BL31:BL37)","v":-1.2142378170535266},-1.357090864149171,null,null,13.70918209988205]
[{"$f":"'[1]Nominal weighted'!B35","v":1341},null,5.63115575803043,33.87865193802655,null,30.768976966026447,{"$nulls":5},{"$f":"AVERAGE(C32:C38)","v":5.723036847150829},27.40910906079359,null,12.876648937834343,{"$nulls":5},1.023904232740219,-14.754651938026555,null,-21.878677093577465,{"$nulls":6},6.655059990770649,19.124,null,8.890299872448981,{"$nulls":6},{"$f":"AE35*'III. GDP shares, 1310-2018'!C37","v":3.3477523603679553},{"$f":"AF35*'III. GDP shares, 1310-2018'!D37","v":2.457229914872367},{"$f":"AG35*'III. GDP shares, 1310-2018'!E37","v":0},{"$f":"AH35*'III. GDP shares, 1310-2018'!F37","v":3.275826811466861},{"$f":"AI35*'III. GDP shares, 1310-2018'!G37","v":0},{"$f":"AJ35*'III. GDP shares, 1310-2018'!H37","v":0},{"$f":"AK35*'III. GDP shares, 1310-2018'!I37","v":0},{"$f":"AL35*'III. GDP shares, 1310-2018'!J37","v":0},null,null,{"$f":"U35*'III. GDP shares, 1310-2018'!C37","v":0.5150633978807868},{"$f":"V35*'III. GDP shares, 1310-2018'!D37","v":-1.8958153171746706},{"$f":"W35*'III. GDP shares, 1310-2018'!E37","v":0},{"$f":"X35*'III. GDP shares, 1310-2018'!F37","v":-8.06168048894216},{"$f":"Y35*'III. GDP shares, 1310-2018'!G37","v":0},{"$f":"Z35*'III. GDP shares, 1310-2018'!H37","v":0},{"$f":"AA35*'III. GDP shares, 1310-2018'!I37","v":0},{"$f":"AB35*'III. GDP shares, 1310-2018'!J37","v":0},null,null,11.556453287739876,9.080809086707184,null,-9.442432408236044,-11.869808266287933,{"$f":"AVERAGE(BL32:BL38)","v":-0.8548945264087374},-0.5085882032480054,null,null,14.17019626289619]
[{"$f":"'[1]Nominal weighted'!B36","v":1342},null,9.95491585658448,30.31150524146838,null,21.783041881571283,{"$nulls":5},5.518043734914076,26.735041928799653,null,13.234886151498957,{"$nulls":5},-3.325824947493572,4.688494758531618,null,-12.733840946197134,{"$nulls":6},6.629090909090908,35,null,9.049200935374149,{"$nulls":6},{"$f":"AE36*'III. GDP shares, 1310-2018'!C38","v":3.3331470438211555},{"$f":"AF36*'III. GDP shares, 1310-2018'!D38","v":4.495047148532131},{"$f":"AG36*'III. GDP shares, 1310-2018'!E38","v":0},{"$f":"AH36*'III. GDP shares, 1310-2018'!F38","v":3.3370197792963667},{"$f":"AI36*'III. GDP shares, 1310-2018'!G38","v":0},{"$f":"AJ36*'III. GDP shares, 1310-2018'!H38","v":0},{"$f":"AK36*'III. GDP shares, 1310-2018'!I38","v":0},{"$f":"AL36*'III. GDP shares, 1310-2018'!J38","v":0},null,null,{"$f":"U36*'III. GDP shares, 1310-2018'!C38","v":-1.6722449192547089},{"$f":"V36*'III. GDP shares, 1310-2018'!D38","v":0.6021429998641541},{"$f":"W36*'III. GDP shares, 1310-2018'!E38","v":0},{"$f":"X36*'III. GDP shares, 1310-2018'!F38","v":-4.695782468235896},{"$f":"Y36*'III. GDP shares, 1310-2018'!G38","v":0},{"$f":"Z36*'III. GDP shares, 1310-2018'!H38","v":0},{"$f":"AA36*'III. GDP shares, 1310-2018'!I38","v":0},{"$f":"AB36*'III. GDP shares, 1310-2018'!J38","v":0},null,null,16.892763948155018,11.165213971649653,null,-5.765884387626451,-3.7903903783863626,{"$f":"AVERAGE(BL33:BL39)","v":-1.0039075905499197},-0.7092894397428159,null,null,13.038194210608127]
[{"$f":"'[1]Nominal weighted'!B37","v":1343},null,2.7421976262208685,37.20296068015219,null,6.502750017993263,{"$nulls":5},5.740340628874198,27.00322613454544,null,15.295012643203279,{"$nulls":5},3.902802373779133,-2.3008442780357825,null,2.7886853136393914,{"$nulls":6},6.645000000000001,34.902116402116405,null,9.291435331632654,{"$nulls":6},{"$f":"AE37*'III. GDP shares, 1310-2018'!C39","v":3.3396020944465894},{"$f":"AF37*'III. GDP shares, 1310-2018'!D39","v":4.480404355053133},{"$f":"AG37*'III. GDP shares, 1310-2018'!E39","v":0},{"$f":"AH37*'III. GDP shares, 1310-2018'!F39","v":3.4290577067088077},{"$f":"AI37*'III. GDP shares, 1310-2018'!G39","v":0},{"$f":"AJ37*'III. GDP shares, 1310-2018'!H39","v":0},{"$f":"AK37*'III. GDP shares, 1310-2018'!I39","v":0},{"$f":"AL37*'III. GDP shares, 1310-2018'!J39","v":0},null,null,{"$f":"U37*'III. GDP shares, 1310-2018'!C39","v":1.9614457459268488},{"$f":"V37*'III. GDP shares, 1310-2018'!D39","v":-0.2953606768380813},{"$f":"W37*'III. GDP shares, 1310-2018'!E39","v":0},{"$f":"X37*'III. GDP shares, 1310-2018'!F39","v":1.029180371493855},{"$f":"Y37*'III. GDP shares, 1310-2018'!G39","v":0},{"$f":"Z37*'III. GDP shares, 1310-2018'!H39","v":0},{"$f":"AA37*'III. GDP shares, 1310-2018'!I39","v":0},{"$f":"AB37*'III. GDP shares, 1310-2018'!J39","v":0},null,null,16.946183911249687,11.24906415620853,null,2.6952654405826224,1.4635478031275806,{"$f":"AVERAGE(BL34:BL40)","v":-1.5214806633497078},-0.7186593191073316,null,null,3.7780336837346935]
[{"$f":"'[1]Nominal weighted'!B38","v":1344},null,3.5796005258070003,22.98755046127917,null,6.081113990937058,{"$nulls":5},4.454964224056514,30.300801863654808,null,12.230409923048272,{"$nulls":5},2.1614779055655498,11.81668234295364,null,2.708965993364356,{"$nulls":6},5.74107843137255,34.80423280423281,null,8.790079984301414,{"$nulls":6},{"$f":"AE38*'III. GDP shares, 1310-2018'!C40","v":2.8839820518780748},{"$f":"AF38*'III. GDP shares, 1310-2018'!D40","v":4.4657750898827056},{"$f":"AG38*'III. GDP shares, 1310-2018'!E40","v":0},{"$f":"AH38*'III. GDP shares, 1310-2018'!F40","v":3.2465915951924584},{"$f":"AI38*'III. GDP shares, 1310-2018'!G40","v":0},{"$f":"AJ38*'III. GDP shares, 1310-2018'!H40","v":0},{"$f":"AK38*'III. GDP shares, 1310-2018'!I40","v":0},{"$f":"AL38*'III. GDP shares, 1310-2018'!J40","v":0},null,null,{"$f":"U38*'III. GDP shares, 1310-2018'!C40","v":1.0858000913413306},{"$f":"V38*'III. GDP shares, 1310-2018'!D40","v":1.5162134430327487},{"$f":"W38*'III. GDP shares, 1310-2018'!E40","v":0},{"$f":"X38*'III. GDP shares, 1310-2018'!F40","v":1.0005490554609415},{"$f":"Y38*'III. GDP shares, 1310-2018'!G40","v":0},{"$f":"Z38*'III. GDP shares, 1310-2018'!H40","v":0},{"$f":"AA38*'III. GDP shares, 1310-2018'!I40","v":0},{"$f":"AB38*'III. GDP shares, 1310-2018'!J40","v":0},null,null,16.44513040663559,10.596348736953239,null,3.602562589835021,5.562375413961182,{"$f":"AVERAGE(BL35:BL41)","v":0.09544698658296102},0.358085493298193,null,null,4.044224500268261]
[{"$f":"'[1]Nominal weighted'!B39","v":1345},null,5.800380927561724,46.35148536726892,null,5.655032238299528,{"$nulls":5},4.930660122776605,30.407072933346853,null,8.702889825208988,{"$nulls":5},-0.3578180016821517,-11.645136160919705,null,2.633692398670646,{"$nulls":6},5.442562925879572,34.706349206349216,null,8.288724636970175,{"$nulls":6},{"$f":"AE39*'III. GDP shares, 1310-2018'!C41","v":2.7327629356904257},{"$f":"AF39*'III. GDP shares, 1310-2018'!D41","v":4.451159334281532},{"$f":"AG39*'III. GDP shares, 1310-2018'!E41","v":0},{"$f":"AH39*'III. GDP shares, 1310-2018'!F41","v":3.0638310016111854},{"$f":"AI39*'III. GDP shares, 1310-2018'!G41","v":0},{"$f":"AJ39*'III. GDP shares, 1310-2018'!H41","v":0},{"$f":"AK39*'III. GDP shares, 1310-2018'!I41","v":0},{"$f":"AL39*'III. GDP shares, 1310-2018'!J41","v":0},null,null,{"$f":"U39*'III. GDP shares, 1310-2018'!C41","v":-0.1796638433099552},{"$f":"V39*'III. GDP shares, 1310-2018'!D41","v":-1.4935122162654468},{"$f":"W39*'III. GDP shares, 1310-2018'!E41","v":0},{"$f":"X39*'III. GDP shares, 1310-2018'!F41","v":0.9735138725400376},{"$f":"Y39*'III. GDP shares, 1310-2018'!G41","v":0},{"$f":"Z39*'III. GDP shares, 1310-2018'!H41","v":0},{"$f":"AA39*'III. GDP shares, 1310-2018'!I41","v":0},{"$f":"AB39*'III. GDP shares, 1310-2018'!J41","v":0},null,null,16.14587892306632,10.247753271583143,null,-0.6996621870353643,-3.1230872546437367,{"$f":"AVERAGE(BL36:BL42)","v":1.405893572440531},2.0649289134883277,null,null,5.002743908071529]
[{"$f":"'[1]Nominal weighted'!B40","v":1346},null,5.475547522183017,29.436529097440015,null,8.605641087219272,{"$nulls":5},2.9921246068747465,33.8980389549249,null,6.866318563389011,{"$nulls":5},0.5284908441739743,5.171936511025606,null,2.5624974331888914,{"$nulls":6},6.004038366356991,34.60846560846562,null,11.168138520408164,{"$nulls":6},{"$f":"AE40*'III. GDP shares, 1310-2018'!C42","v":3.01329379718594},{"$f":"AF40*'III. GDP shares, 1310-2018'!D42","v":4.43655706954489},{"$f":"AG40*'III. GDP shares, 1310-2018'!E42","v":0},{"$f":"AH40*'III. GDP shares, 1310-2018'!F42","v":4.131422043100319},{"$f":"AI40*'III. GDP shares, 1310-2018'!G42","v":0},{"$f":"AJ40*'III. GDP shares, 1310-2018'!H42","v":0},{"$f":"AK40*'III. GDP shares, 1310-2018'!I42","v":0},{"$f":"AL40*'III. GDP shares, 1310-2018'!J42","v":0},null,null,{"$f":"U40*'III. GDP shares, 1310-2018'!C42","v":0.2652378425065364},{"$f":"V40*'III. GDP shares, 1310-2018'!D42","v":0.663005166158399},{"$f":"W40*'III. GDP shares, 1310-2018'!E42","v":0},{"$f":"X40*'III. GDP shares, 1310-2018'!F42","v":0.9479429684292325},{"$f":"Y40*'III. GDP shares, 1310-2018'!G42","v":0},{"$f":"Z40*'III. GDP shares, 1310-2018'!H42","v":0},{"$f":"AA40*'III. GDP shares, 1310-2018'!I42","v":0},{"$f":"AB40*'III. GDP shares, 1310-2018'!J42","v":0},null,null,17.260214165076928,11.58127290983115,null,1.8761859770941678,2.754308262796157,{"$f":"AVERAGE(BL37:BL43)","v":2.5490415177329635},2.1036236479475368,null,null,5.931535029350489]
[{"$f":"'[1]Nominal weighted'!B41","v":1347},null,-1.9990486479919172,11.93693025994844,null,6.216313279291064,{"$nulls":5},2.1857706928328478,30.67225428117862,null,7.230306004132738,{"$nulls":5},8.244580562885535,22.573651750633587,null,3.7107263040422707,{"$nulls":6},6.2455319148936175,34.51058201058203,null,9.927039583333334,{"$nulls":6},{"$f":"AE41*'III. GDP shares, 1310-2018'!C43","v":3.1330480996632053},{"$f":"AF41*'III. GDP shares, 1310-2018'!D43","v":4.421968277002573},{"$f":"AG41*'III. GDP shares, 1310-2018'!E43","v":0},{"$f":"AH41*'III. GDP shares, 1310-2018'!F43","v":3.6751884810269715},{"$f":"AI41*'III. GDP shares, 1310-2018'!G43","v":0},{"$f":"AJ41*'III. GDP shares, 1310-2018'!H43","v":0},{"$f":"AK41*'III. GDP shares, 1310-2018'!I43","v":0},{"$f":"AL41*'III. GDP shares, 1310-2018'!J43","v":0},null,null,{"$f":"U41*'III. GDP shares, 1310-2018'!C43","v":4.135863496825747},{"$f":"V41*'III. GDP shares, 1310-2018'!D43","v":2.892445334790279},{"$f":"W41*'III. GDP shares, 1310-2018'!E43","v":0},{"$f":"X41*'III. GDP shares, 1310-2018'!F43","v":1.373785049850749},{"$f":"Y41*'III. GDP shares, 1310-2018'!G43","v":0},{"$f":"Z41*'III. GDP shares, 1310-2018'!H43","v":0},{"$f":"AA41*'III. GDP shares, 1310-2018'!I43","v":0},{"$f":"AB41*'III. GDP shares, 1310-2018'!J43","v":0},null,null,16.894384502936326,11.23020485769275,null,8.402093881466776,11.509652872520464,{"$f":"AVERAGE(BL38:BL44)","v":3.198396003726193},3.2864802407110356,null,null,1.2985880340136804]
[{"$f":"'[1]Nominal weighted'!B42","v":1348},null,8.961027049071067,34.622549425870815,null,6.076336281151466,{"$nulls":5},1.3826281801377998,29.531143739244417,null,7.528268302992902,{"$nulls":5},-3.1090378017592375,-0.20985101317238275,null,3.5531758400606557,{"$nulls":6},5.8519892473118285,34.41269841269843,null,9.629512121212121,{"$nulls":6},{"$f":"AE42*'III. GDP shares, 1310-2018'!C44","v":2.9342752730868424},{"$f":"AF42*'III. GDP shares, 1310-2018'!D44","v":4.4073929380188055},{"$f":"AG42*'III. GDP shares, 1310-2018'!E44","v":0},{"$f":"AH42*'III. GDP shares, 1310-2018'!F44","v":3.567834149521706},{"$f":"AI42*'III. GDP shares, 1310-2018'!G44","v":0},{"$f":"AJ42*'III. GDP shares, 1310-2018'!H44","v":0},{"$f":"AK42*'III. GDP shares, 1310-2018'!I44","v":0},{"$f":"AL42*'III. GDP shares, 1310-2018'!J44","v":0},null,null,{"$f":"U42*'III. GDP shares, 1310-2018'!C44","v":-1.5589182343397234},{"$f":"V42*'III. GDP shares, 1310-2018'!D44","v":-0.02687658672970442},{"$f":"W42*'III. GDP shares, 1310-2018'!E44","v":0},{"$f":"X42*'III. GDP shares, 1310-2018'!F44","v":1.3164885138363727},{"$f":"Y42*'III. GDP shares, 1310-2018'!G44","v":0},{"$f":"Z42*'III. GDP shares, 1310-2018'!H44","v":0},{"$f":"AA42*'III. GDP shares, 1310-2018'!I44","v":0},{"$f":"AB42*'III. GDP shares, 1310-2018'!J44","v":0},null,null,16.631399927074128,10.909502360627354,null,-0.26930630723305526,0.0780956750430118,{"$f":"AVERAGE(BL39:BL45)","v":3.622386292101593},3.803209942044872,null,null,6.744539143111899]
[{"$f":"'[1]Nominal weighted'!B43","v":1349},null,-3.6148327547285373,54.74826739251472,null,8.927043048831434,{"$nulls":5},1.4263406657202324,25.791469858165193,null,7.895070252286108,{"$nulls":5},9.1295695968338,-20.43345257769988,null,0.7453012693503837,{"$nulls":6},5.514736842105263,34.31481481481484,null,9.672344318181818,{"$nulls":6},{"$f":"AE43*'III. GDP shares, 1310-2018'!C45","v":2.763897441743463},{"$f":"AF43*'III. GDP shares, 1310-2018'!D45","v":4.39283103399217},{"$f":"AG43*'III. GDP shares, 1310-2018'!E45","v":0},{"$f":"AH43*'III. GDP shares, 1310-2018'!F45","v":3.5865100539482664},{"$f":"AI43*'III. GDP shares, 1310-2018'!G45","v":0},{"$f":"AJ43*'III. GDP shares, 1310-2018'!H45","v":0},{"$f":"AK43*'III. GDP shares, 1310-2018'!I45","v":0},{"$f":"AL43*'III. GDP shares, 1310-2018'!J45","v":0},null,null,{"$f":"U43*'III. GDP shares, 1310-2018'!C45","v":4.575593500718162},{"$f":"V43*'III. GDP shares, 1310-2018'!D45","v":-2.6158003503540597},{"$f":"W43*'III. GDP shares, 1310-2018'!E45","v":0},{"$f":"X43*'III. GDP shares, 1310-2018'!F45","v":0.2763580790564769},{"$f":"Y43*'III. GDP shares, 1310-2018'!G45","v":0},{"$f":"Z43*'III. GDP shares, 1310-2018'!H45","v":0},{"$f":"AA43*'III. GDP shares, 1310-2018'!I45","v":0},{"$f":"AB43*'III. GDP shares, 1310-2018'!J45","v":0},null,null,16.50063199170064,10.7432385296839,null,2.236151229420579,-3.5195272371718995,{"$f":"AVERAGE(BL40:BL46)","v":4.047405084602011},4.964235355391714,null,null,1.4984559159170914]
[{"$f":"'[1]Nominal weighted'!B44","v":1350},null,-2.9022797720724185,14.622467963928273,null,9.050662103199347,{"$nulls":5},0.09515705829056653,29.436346183501055,null,7.847444822743462,{"$nulls":5},8.914157944661252,19.59446325300297,null,0.7220106597519872,{"$nulls":6},6.011878172588833,34.21693121693124,null,9.772672762951334,{"$nulls":6},{"$f":"AE44*'III. GDP shares, 1310-2018'!C46","v":3.011668666663765},{"$f":"AF44*'III. GDP shares, 1310-2018'!D46","v":4.378282546355525},{"$f":"AG44*'III. GDP shares, 1310-2018'!E46","v":0},{"$f":"AH44*'III. GDP shares, 1310-2018'!F46","v":3.626544516898984},{"$f":"AI44*'III. GDP shares, 1310-2018'!G46","v":0},{"$f":"AJ44*'III. GDP shares, 1310-2018'!H46","v":0},{"$f":"AK44*'III. GDP shares, 1310-2018'!I46","v":0},{"$f":"AL44*'III. GDP shares, 1310-2018'!J46","v":0},null,null,{"$f":"U44*'III. GDP shares, 1310-2018'!C46","v":4.465574551067047},{"$f":"V44*'III. GDP shares, 1310-2018'!D46","v":2.5072411059287774},{"$f":"W44*'III. GDP shares, 1310-2018'!E46","v":0},{"$f":"X44*'III. GDP shares, 1310-2018'!F46","v":0.2679311855394033},{"$f":"Y44*'III. GDP shares, 1310-2018'!G46","v":0},{"$f":"Z44*'III. GDP shares, 1310-2018'!H46","v":0},{"$f":"AA44*'III. GDP shares, 1310-2018'!I46","v":0},{"$f":"AB44*'III. GDP shares, 1310-2018'!J46","v":0},null,null,16.66716071749047,11.016495729918272,null,7.240746842535228,9.74354395247207,{"$f":"AVERAGE(BL41:BL47)","v":4.173286536019085},4.093964664001513,null,null,1.9047074469562988]
[{"$f":"'[1]Nominal weighted'!B45","v":1351},null,-2.0423970630583375,14.999776667739738,null,8.1668500829582,{"$nulls":5},1.685632500490662,33.314794996620996,null,8.1550966478274,{"$nulls":5},7.71958381165572,19.11927095130791,null,0.6995952069304819,{"$nulls":6},5.677186748597382,34.11904761904765,null,8.866445289888683,{"$nulls":6},{"$f":"AE45*'III. GDP shares, 1310-2018'!C47","v":2.8426944424792087},{"$f":"AF45*'III. GDP shares, 1310-2018'!D47","v":4.363747456575925},{"$f":"AG45*'III. GDP shares, 1310-2018'!E47","v":0},{"$f":"AH45*'III. GDP shares, 1310-2018'!F47","v":3.292819838117633},{"$f":"AI45*'III. GDP shares, 1310-2018'!G47","v":0},{"$f":"AJ45*'III. GDP shares, 1310-2018'!H47","v":0},{"$f":"AK45*'III. GDP shares, 1310-2018'!I47","v":0},{"$f":"AL45*'III. GDP shares, 1310-2018'!J47","v":0},null,null,{"$f":"U45*'III. GDP shares, 1310-2018'!C47","v":3.8653683543293367},{"$f":"V45*'III. GDP shares, 1310-2018'!D47","v":2.4453106346021936},{"$f":"W45*'III. GDP shares, 1310-2018'!E47","v":0},{"$f":"X45*'III. GDP shares, 1310-2018'!F47","v":0.2598156195312883},{"$f":"Y45*'III. GDP shares, 1310-2018'!G47","v":0},{"$f":"Z45*'III. GDP shares, 1310-2018'!H47","v":0},{"$f":"AA45*'III. GDP shares, 1310-2018'!I47","v":0},{"$f":"AB45*'III. GDP shares, 1310-2018'!J47","v":0},null,null,16.220893219177903,10.499261737172766,null,6.570494608462818,9.179483323298038,{"$f":"AVERAGE(BL42:BL48)","v":2.7382031145668364},2.1118936966695268,null,null,2.0103303067362166]
[{"$f":"'[1]Nominal weighted'!B46","v":1352},null,6.106368326638752,20.173768199714374,null,8.222645883351968,{"$nulls":5},1.9465016935552022,32.57151788255912,null,8.662839005207257,{"$nulls":5},0.561126997967178,13.84739582144968,null,0.6037490969356022,{"$nulls":6},6.66749532460593,34.021164021164054,null,8.826394980287569,{"$nulls":6},{"$f":"AE46*'III. GDP shares, 1310-2018'!C48","v":3.337027554367021},{"$f":"AF46*'III. GDP shares, 1310-2018'!D48","v":4.349225746154546},{"$f":"AG46*'III. GDP shares, 1310-2018'!E48","v":0},{"$f":"AH46*'III. GDP shares, 1310-2018'!F48","v":3.2804995939418493},{"$f":"AI46*'III. GDP shares, 1310-2018'!G48","v":0},{"$f":"AJ46*'III. GDP shares, 1310-2018'!H48","v":0},{"$f":"AK46*'III. GDP shares, 1310-2018'!I48","v":0},{"$f":"AL46*'III. GDP shares, 1310-2018'!J48","v":0},null,null,{"$f":"U46*'III. GDP shares, 1310-2018'!C48","v":0.28083953007142015},{"$f":"V46*'III. GDP shares, 1310-2018'!D48","v":1.7702348569371842},{"$f":"W46*'III. GDP shares, 1310-2018'!E48","v":0},{"$f":"X46*'III. GDP shares, 1310-2018'!F48","v":0.22439497345896842},{"$f":"Y46*'III. GDP shares, 1310-2018'!G48","v":0},{"$f":"Z46*'III. GDP shares, 1310-2018'!H48","v":0},{"$f":"AA46*'III. GDP shares, 1310-2018'!I48","v":0},{"$f":"AB46*'III. GDP shares, 1310-2018'!J48","v":0},null,null,16.50501810868585,10.966752894463417,null,2.275469360467573,5.004090638784153,{"$f":"AVERAGE(BL43:BL49)","v":2.6129738386144106},2.1484581814130173,null,null,6.112292644778481]
[{"$f":"'[1]Nominal weighted'!B47","v":1353},null,-3.842737729824643,54.95066337479102,null,8.272263080420755,{"$nulls":5},3.556486349924928,28.84242791842933,null,8.778761713103306,{"$nulls":5},10.500541630439123,-21.02738295151056,null,0.5140815902656998,{"$nulls":6},6.65780390061448,33.92328042328046,null,8.786344670686455,{"$nulls":6},{"$f":"AE47*'III. GDP shares, 1310-2018'!C49","v":3.3306441679508763},{"$f":"AF47*'III. GDP shares, 1310-2018'!D49","v":4.3347173966266},{"$f":"AG47*'III. GDP shares, 1310-2018'!E49","v":0},{"$f":"AH47*'III. GDP shares, 1310-2018'!F49","v":3.2681538363493714},{"$f":"AI47*'III. GDP shares, 1310-2018'!G49","v":0},{"$f":"AJ47*'III. GDP shares, 1310-2018'!H49","v":0},{"$f":"AK47*'III. GDP shares, 1310-2018'!I49","v":0},{"$f":"AL47*'III. GDP shares, 1310-2018'!J49","v":0},null,null,{"$f":"U47*'III. GDP shares, 1310-2018'!C49","v":5.253018602503383},{"$f":"V47*'III. GDP shares, 1310-2018'!D49","v":-2.68687938041778},{"$f":"W47*'III. GDP shares, 1310-2018'!E49","v":0},{"$f":"X47*'III. GDP shares, 1310-2018'!F49","v":0.19121691492807902},{"$f":"Y47*'III. GDP shares, 1310-2018'!G49","v":0},{"$f":"Z47*'III. GDP shares, 1310-2018'!H49","v":0},{"$f":"AA47*'III. GDP shares, 1310-2018'!I49","v":0},{"$f":"AB47*'III. GDP shares, 1310-2018'!J49","v":0},null,null,16.455809664860464,10.933515400926849,null,2.757356137013682,-3.3375865769352457,{"$f":"AVERAGE(BL44:BL50)","v":2.35447512101612},2.871811081232064,null,null,1.1545624868687856]
[{"$f":"'[1]Nominal weighted'!B48","v":1354},null,9.134279447408751,39.08607195178804,null,8.369876054878622,{"$nulls":5},5.3914918520261725,31.05750418733402,null,8.928151319937358,{"$nulls":5},-2.2611669707857227,-5.2606751263911775,null,0.42731040076657256,{"$nulls":6},6.873112476623029,33.825396825396865,null,8.797186455645194,{"$nulls":6},{"$f":"AE48*'III. GDP shares, 1310-2018'!C50","v":3.4367737732338677},{"$f":"AF48*'III. GDP shares, 1310-2018'!D50","v":4.320222389561266},{"$f":"AG48*'III. GDP shares, 1310-2018'!E50","v":0},{"$f":"AH48*'III. GDP shares, 1310-2018'!F50","v":3.274727034501174},{"$f":"AI48*'III. GDP shares, 1310-2018'!G50","v":0},{"$f":"AJ48*'III. GDP shares, 1310-2018'!H50","v":0},{"$f":"AK48*'III. GDP shares, 1310-2018'!I50","v":0},{"$f":"AL48*'III. GDP shares, 1310-2018'!J50","v":0},null,null,{"$f":"U48*'III. GDP shares, 1310-2018'!C50","v":-1.1306550516276772},{"$f":"V48*'III. GDP shares, 1310-2018'!D50","v":-0.6719000691273208},{"$f":"W48*'III. GDP shares, 1310-2018'!E50","v":0},{"$f":"X48*'III. GDP shares, 1310-2018'!F50","v":0.15906505205603244},{"$f":"Y48*'III. GDP shares, 1310-2018'!G50","v":0},{"$f":"Z48*'III. GDP shares, 1310-2018'!H50","v":0},{"$f":"AA48*'III. GDP shares, 1310-2018'!I50","v":0},{"$f":"AB48*'III. GDP shares, 1310-2018'!J50","v":0},null,null,16.49856525255503,11.031723197296309,null,-1.6434900686989655,-2.364843898803443,{"$f":"AVERAGE(BL45:BL51)","v":1.2049869756738776},1.5258883006961728,null,null,7.683090807306686]
[{"$f":"'[1]Nominal weighted'!B49","v":1355},null,10.787111400522846,29.419609627437723,null,9.630532782810468,{"$nulls":5},7.142339474186799,33.53798410579295,null,8.825503194726673,{"$nulls":5},-3.6486903478912653,4.307903600075548,null,0.34292795255805897,{"$nulls":6},7.13842105263158,33.72751322751327,null,9.973460735368526,{"$nulls":6},{"$f":"AE49*'III. GDP shares, 1310-2018'!C51","v":3.5677959138745794},{"$f":"AF49*'III. GDP shares, 1310-2018'!D51","v":4.305740706561604},{"$f":"AG49*'III. GDP shares, 1310-2018'!E51","v":0},{"$f":"AH49*'III. GDP shares, 1310-2018'!F51","v":3.715469259501814},{"$f":"AI49*'III. GDP shares, 1310-2018'!G51","v":0},{"$f":"AJ49*'III. GDP shares, 1310-2018'!H51","v":0},{"$f":"AK49*'III. GDP shares, 1310-2018'!I51","v":0},{"$f":"AL49*'III. GDP shares, 1310-2018'!J51","v":0},null,null,{"$f":"U49*'III. GDP shares, 1310-2018'!C51","v":-1.8236221173029667},{"$f":"V49*'III. GDP shares, 1310-2018'!D51","v":0.5499580050763252},{"$f":"W49*'III. GDP shares, 1310-2018'!E51","v":0},{"$f":"X49*'III. GDP shares, 1310-2018'!F51","v":0.12775287332660104},{"$f":"Y49*'III. GDP shares, 1310-2018'!G51","v":0},{"$f":"Z49*'III. GDP shares, 1310-2018'!H51","v":0},{"$f":"AA49*'III. GDP shares, 1310-2018'!I51","v":0},{"$f":"AB49*'III. GDP shares, 1310-2018'!J51","v":0},null,null,16.946465005171124,11.589005879937998,null,-1.1459112389000403,0.33404706824744723,{"$f":"AVERAGE(BL46:BL52)","v":0.18875868006442728},0.22354317423022718,null,null,8.979134417352759]
[{"$f":"'[1]Nominal weighted'!B50","v":1356},null,7.655059839859547,28.644637643606117,null,9.738502004103776,{"$nulls":5},7.534285824887986,36.19719963164156,null,8.309100251688664,{"$nulls":5},-0.6136312684309756,4.984991986023559,null,0.2604684670916952,{"$nulls":6},7.041428571428571,33.629629629629676,null,9.99897047119547,{"$nulls":6},{"$f":"AE50*'III. GDP shares, 1310-2018'!C52","v":3.5177021272968267},{"$f":"AF50*'III. GDP shares, 1310-2018'!D52","v":4.291272329264479},{"$f":"AG50*'III. GDP shares, 1310-2018'!E52","v":0},{"$f":"AH50*'III. GDP shares, 1310-2018'!F52","v":3.7278548044097586},{"$f":"AI50*'III. GDP shares, 1310-2018'!G52","v":0},{"$f":"AJ50*'III. GDP shares, 1310-2018'!H52","v":0},{"$f":"AK50*'III. GDP shares, 1310-2018'!I52","v":0},{"$f":"AL50*'III. GDP shares, 1310-2018'!J52","v":0},null,null,{"$f":"U50*'III. GDP shares, 1310-2018'!C52","v":-0.3065531371139877},{"$f":"V50*'III. GDP shares, 1310-2018'!D52","v":0.6361044830651512},{"$f":"W50*'III. GDP shares, 1310-2018'!E52","v":0},{"$f":"X50*'III. GDP shares, 1310-2018'!F52","v":0.09710886028138559},{"$f":"Y50*'III. GDP shares, 1310-2018'!G52","v":0},{"$f":"Z50*'III. GDP shares, 1310-2018'!H52","v":0},{"$f":"AA50*'III. GDP shares, 1310-2018'!I52","v":0},{"$f":"AB50*'III. GDP shares, 1310-2018'!J52","v":0},null,null,16.890009557417905,11.536829260971064,null,0.42666020623254913,1.543943061561426,{"$f":"AVERAGE(BL47:BL53)","v":-0.2645232963791971},-0.7480929014200328,null,null,7.455001208539187]
[{"$f":"'[1]Nominal weighted'!B51","v":1357},null,9.942758742636292,30.128001846261114,null,10.096389351037711,{"$nulls":5},{"$f":"AVERAGE(C48:C54)","v":8.423819532724982},{"$f":"AVERAGE(D48:D54)","v":32.974410984553025},null,{"$f":"AVERAGE(F48:F54)","v":7.862759975069759},{"$nulls":5},-2.61698951186706,3.4037441854849675,null,0.17949879254459367,{"$nulls":6},7.3257692307692315,33.53174603174608,null,10.275888143582305,{"$nulls":6},{"$f":"AE51*'III. GDP shares, 1310-2018'!C53","v":3.658070313746225},{"$f":"AF51*'III. GDP shares, 1310-2018'!D53","v":4.2768172393404855},{"$f":"AG51*'III. GDP shares, 1310-2018'!E53","v":0},{"$f":"AH51*'III. GDP shares, 1310-2018'!F53","v":3.834055683716444},{"$f":"AI51*'III. GDP shares, 1310-2018'!G53","v":0},{"$f":"AJ51*'III. GDP shares, 1310-2018'!H53","v":0},{"$f":"AK51*'III. GDP shares, 1310-2018'!I53","v":0},{"$f":"AL51*'III. GDP shares, 1310-2018'!J53","v":0},null,null,{"$f":"U51*'III. GDP shares, 1310-2018'!C53","v":-1.3067749396933848},{"$f":"V51*'III. GDP shares, 1310-2018'!D53","v":0.434131637434122},{"$f":"W51*'III. GDP shares, 1310-2018'!E53","v":0},{"$f":"X51*'III. GDP shares, 1310-2018'!F53","v":0.06697312739878852},{"$f":"Y51*'III. GDP shares, 1310-2018'!G53","v":0},{"$f":"Z51*'III. GDP shares, 1310-2018'!H53","v":0},{"$f":"AA51*'III. GDP shares, 1310-2018'!I53","v":0},{"$f":"AB51*'III. GDP shares, 1310-2018'!J53","v":0},null,null,17.04446780203254,11.768943236803155,null,-0.8056701748604742,0.3220844887208337,{"$f":"AVERAGE(BL48:BL54)","v":-0.2048699332110371},0.08353087519312886,null,null,8.731927809757265]
[{"$f":"'[1]Nominal weighted'!B52","v":1358},null,10.213536292066047,32.36313609695232,null,7.448313206483407,{"$nulls":5},9.757109714082205,32.21272696808395,null,7.530527059645832,{"$nulls":5},-2.787645347567507,1.0707263369101696,null,1.9061213247665934,{"$nulls":6},7.42589094449854,33.43386243386249,null,9.35443453125,{"$nulls":6},{"$f":"AE52*'III. GDP shares, 1310-2018'!C54","v":3.7063634604282436},{"$f":"AF52*'III. GDP shares, 1310-2018'!D54","v":4.262375418493869},{"$f":"AG52*'III. GDP shares, 1310-2018'!E54","v":0},{"$f":"AH52*'III. GDP shares, 1310-2018'!F54","v":3.4929419369177577},{"$f":"AI52*'III. GDP shares, 1310-2018'!G54","v":0},{"$f":"AJ52*'III. GDP shares, 1310-2018'!H54","v":0},{"$f":"AK52*'III. GDP shares, 1310-2018'!I54","v":0},{"$f":"AL52*'III. GDP shares, 1310-2018'!J54","v":0},null,null,{"$f":"U52*'III. GDP shares, 1310-2018'!C54","v":-1.3913518167825325},{"$f":"V52*'III. GDP shares, 1310-2018'!D54","v":0.13650345147551798},{"$f":"W52*'III. GDP shares, 1310-2018'!E54","v":0},{"$f":"X52*'III. GDP shares, 1310-2018'!F54","v":0.7117449045036809},{"$f":"Y52*'III. GDP shares, 1310-2018'!G54","v":0},{"$f":"Z52*'III. GDP shares, 1310-2018'!H54","v":0},{"$f":"AA52*'III. GDP shares, 1310-2018'!I54","v":0},{"$f":"AB52*'III. GDP shares, 1310-2018'!J54","v":0},null,null,16.73806263653701,11.46168081583987,null,-0.5431034608033337,0.06306743803641861,{"$f":"AVERAGE(BL49:BL55)","v":-0.6944570672054157},-0.06381785826454582,null,null,7.878912309624853]
[{"$f":"'[1]Nominal weighted'!B53","v":1359},null,8.84999278154706,38.78827688065455,null,4.607825282085906,{"$nulls":5},9.88532253487955,33.35268011628439,null,7.336709021655508,{"$nulls":5},-1.7989801233192124,-5.452298044675658,null,1.8591924956918724,{"$nulls":6},7.051012658227848,33.33597883597889,null,6.467017777777778,{"$nulls":6},{"$f":"AE53*'III. GDP shares, 1310-2018'!C55","v":3.5176420812361875},{"$f":"AF53*'III. GDP shares, 1310-2018'!D55","v":4.247946848462452},{"$f":"AG53*'III. GDP shares, 1310-2018'!E55","v":0},{"$f":"AH53*'III. GDP shares, 1310-2018'!F55","v":2.4166407558983507},{"$f":"AI53*'III. GDP shares, 1310-2018'!G55","v":0},{"$f":"AJ53*'III. GDP shares, 1310-2018'!H55","v":0},{"$f":"AK53*'III. GDP shares, 1310-2018'!I55","v":0},{"$f":"AL53*'III. GDP shares, 1310-2018'!J55","v":0},null,null,{"$f":"U53*'III. GDP shares, 1310-2018'!C55","v":-0.897483594460828},{"$f":"V53*'III. GDP shares, 1310-2018'!D55","v":-0.6947770278387818},{"$f":"W53*'III. GDP shares, 1310-2018'!E55","v":0},{"$f":"X53*'III. GDP shares, 1310-2018'!F55","v":0.694756147661813},{"$f":"Y53*'III. GDP shares, 1310-2018'!G55","v":0},{"$f":"Z53*'III. GDP shares, 1310-2018'!H55","v":0},{"$f":"AA53*'III. GDP shares, 1310-2018'!I55","v":0},{"$f":"AB53*'III. GDP shares, 1310-2018'!J55","v":0},null,null,15.618003090661505,10.18222968559699,null,-0.8975044746377968,-1.797361890767666,{"$f":"AVERAGE(BL50:BL56)","v":-1.0107942525104623},-0.5969938906794842,null,null,6.137010283933553]
[{"$f":"'[1]Nominal weighted'!B54","v":1360},null,2.383998225034343,32.3911428451713,null,5.147881144088433,{"$nulls":5},9.056903937021158,31.717435571821362,null,7.186713881057882,{"$nulls":5},4.789660311551024,0.8469523929239955,null,1.814726873595637,{"$nulls":6},7.173658536585367,33.2380952380953,null,6.96260801768407,{"$nulls":6},{"$f":"AE54*'III. GDP shares, 1310-2018'!C56","v":3.577187139398644},{"$f":"AF54*'III. GDP shares, 1310-2018'!D56","v":4.233531511017547},{"$f":"AG54*'III. GDP shares, 1310-2018'!E56","v":0},{"$f":"AH54*'III. GDP shares, 1310-2018'!F56","v":2.603836061333699},{"$f":"AI54*'III. GDP shares, 1310-2018'!G56","v":0},{"$f":"AJ54*'III. GDP shares, 1310-2018'!H56","v":0},{"$f":"AK54*'III. GDP shares, 1310-2018'!I56","v":0},{"$f":"AL54*'III. GDP shares, 1310-2018'!J56","v":0},null,null,{"$f":"U54*'III. GDP shares, 1310-2018'!C56","v":2.3883923636995283},{"$f":"V54*'III. GDP shares, 1310-2018'!D56","v":0.10787620704768526},{"$f":"W54*'III. GDP shares, 1310-2018'!E56","v":0},{"$f":"X54*'III. GDP shares, 1310-2018'!F56","v":0.6786611084435875},{"$f":"Y54*'III. GDP shares, 1310-2018'!G56","v":0},{"$f":"Z54*'III. GDP shares, 1310-2018'!H56","v":0},{"$f":"AA54*'III. GDP shares, 1310-2018'!I56","v":0},{"$f":"AB54*'III. GDP shares, 1310-2018'!J56","v":0},null,null,15.791453930788244,10.41455471174989,null,3.174929679190801,2.4837798593568854,{"$f":"AVERAGE(BL51:BL57)","v":-0.5160698513444512},0.10253660942873324,null,null,3.1139697285892267]
[{"$f":"'[1]Nominal weighted'!B55","v":1361},null,18.4673107169093,33.75428383650453,null,6.044245646911124,{"$nulls":5},8.226881215278029,31.123990196554058,null,6.994747515769516,{"$nulls":5},-11.3473107169093,-0.614072196292824,null,1.7725278141806293,{"$nulls":6},7.12,33.1402116402117,null,7.816773461091753,{"$nulls":6},{"$f":"AE55*'III. GDP shares, 1310-2018'!C57","v":3.5488026723634696},{"$f":"AF55*'III. GDP shares, 1310-2018'!D57","v":4.219129387963894},{"$f":"AG55*'III. GDP shares, 1310-2018'!E57","v":0},{"$f":"AH55*'III. GDP shares, 1310-2018'!F57","v":2.925514847463011},{"$f":"AI55*'III. GDP shares, 1310-2018'!G57","v":0},{"$f":"AJ55*'III. GDP shares, 1310-2018'!H57","v":0},{"$f":"AK55*'III. GDP shares, 1310-2018'!I57","v":0},{"$f":"AL55*'III. GDP shares, 1310-2018'!J57","v":0},null,null,{"$f":"U55*'III. GDP shares, 1310-2018'!C57","v":-5.6558099152115675},{"$f":"V55*'III. GDP shares, 1310-2018'!D57","v":-0.07817844007269097},{"$f":"W55*'III. GDP shares, 1310-2018'!E57","v":0},{"$f":"X55*'III. GDP shares, 1310-2018'!F57","v":0.6633883486246424},{"$f":"Y55*'III. GDP shares, 1310-2018'!G57","v":0},{"$f":"Z55*'III. GDP shares, 1310-2018'!H57","v":0},{"$f":"AA55*'III. GDP shares, 1310-2018'!I57","v":0},{"$f":"AB55*'III. GDP shares, 1310-2018'!J57","v":0},null,null,16.025661700434483,10.693446907790374,null,-5.070600006659616,-3.396285033007165,{"$f":"AVERAGE(BL52:BL58)","v":-0.119835494807911},0.47790823700332774,null,null,11.466739086413405]
[{"$f":"'[1]Nominal weighted'!B56","v":1362},null,11.684601146104272,37.3992816648408,null,8.27380651687821,{"$nulls":5},8.526262739721217,32.45832244040358,null,7.10632413644546,{"$nulls":5},-5.009045590548716,-4.356953622512691,null,-0.8285562629099571,{"$nulls":6},6.675555555555556,33.04232804232811,null,7.445250253968253,{"$nulls":6},{"$f":"AE56*'III. GDP shares, 1310-2018'!C58","v":3.3257550667246387},{"$f":"AF56*'III. GDP shares, 1310-2018'!D58","v":4.2047404611395685},{"$f":"AG56*'III. GDP shares, 1310-2018'!E58","v":0},{"$f":"AH56*'III. GDP shares, 1310-2018'!F58","v":2.7886024846381017},{"$f":"AI56*'III. GDP shares, 1310-2018'!G58","v":0},{"$f":"AJ56*'III. GDP shares, 1310-2018'!H58","v":0},{"$f":"AK56*'III. GDP shares, 1310-2018'!I58","v":0},{"$f":"AL56*'III. GDP shares, 1310-2018'!J58","v":0},null,null,{"$f":"U56*'III. GDP shares, 1310-2018'!C58","v":-2.495501477529942},{"$f":"V56*'III. GDP shares, 1310-2018'!D58","v":-0.5544360905932384},{"$f":"W56*'III. GDP shares, 1310-2018'!E58","v":0},{"$f":"X56*'III. GDP shares, 1310-2018'!F58","v":-0.3103339679121844},{"$f":"Y56*'III. GDP shares, 1310-2018'!G58","v":0},{"$f":"Z56*'III. GDP shares, 1310-2018'!H58","v":0},{"$f":"AA56*'III. GDP shares, 1310-2018'!I58","v":0},{"$f":"AB56*'III. GDP shares, 1310-2018'!J58","v":0},null,null,15.721044617283972,10.319098012502309,null,-3.360271536035365,-3.3981851586571215,{"$f":"AVERAGE(BL53:BL59)","v":-0.636671279742256},-0.2578428189672594,null,null,8.920192996804866]
[{"$f":"'[1]Nominal weighted'!B57","v":1363},null,1.8561296548507924,17.197925832364916,null,8.688536019920376,{"$nulls":5},13.044953764037876,32.78071143833863,null,7.812411754768662,{"$nulls":5},4.439402260042826,15.746518612079598,null,-0.8639511851655787,{"$nulls":6},6.295531914893618,32.944444444444514,null,7.824584834754797,{"$nulls":6},{"$f":"AE57*'III. GDP shares, 1310-2018'!C59","v":3.134991422127124},{"$f":"AF57*'III. GDP shares, 1310-2018'!D59","v":4.190364712415923},{"$f":"AG57*'III. GDP shares, 1310-2018'!E59","v":0},{"$f":"AH57*'III. GDP shares, 1310-2018'!F59","v":2.9329224778376783},{"$f":"AI57*'III. GDP shares, 1310-2018'!G59","v":0},{"$f":"AJ57*'III. GDP shares, 1310-2018'!H59","v":0},{"$f":"AK57*'III. GDP shares, 1310-2018'!I59","v":0},{"$f":"AL57*'III. GDP shares, 1310-2018'!J59","v":0},null,null,{"$f":"U57*'III. GDP shares, 1310-2018'!C59","v":2.2106929474348007},{"$f":"V57*'III. GDP shares, 1310-2018'!D59","v":2.0028765713967247},{"$f":"W57*'III. GDP shares, 1310-2018'!E59","v":0},{"$f":"X57*'III. GDP shares, 1310-2018'!F59","v":-0.3238385044368982},{"$f":"Y57*'III. GDP shares, 1310-2018'!G59","v":0},{"$f":"Z57*'III. GDP shares, 1310-2018'!H59","v":0},{"$f":"AA57*'III. GDP shares, 1310-2018'!I59","v":0},{"$f":"AB57*'III. GDP shares, 1310-2018'!J59","v":0},null,null,15.688187064697642,10.258278612380725,null,3.8897310143946267,6.4406565623189485,{"$f":"AVERAGE(BL54:BL60)","v":-3.1522354897438816},-2.08224479971186,null,null,4.181059456966899]
[{"$f":"'[1]Nominal weighted'!B58","v":1364},null,4.132599690434383,25.973884219390015,null,8.752624794019155,{"$nulls":5},10.188289946678841,32.509281057590954,null,8.30819978061159,{"$nulls":5},2.877287950015055,6.872676627170904,null,-0.900906931956977,{"$nulls":6},7.009887640449438,32.84656084656092,null,7.851717862062179,{"$nulls":6},{"$f":"AE58*'III. GDP shares, 1310-2018'!C60","v":3.489121998454717},{"$f":"AF58*'III. GDP shares, 1310-2018'!D60","v":4.176002123697493},{"$f":"AG58*'III. GDP shares, 1310-2018'!E60","v":0},{"$f":"AH58*'III. GDP shares, 1310-2018'!F60","v":2.945339619695237},{"$f":"AI58*'III. GDP shares, 1310-2018'!G60","v":0},{"$f":"AJ58*'III. GDP shares, 1310-2018'!H60","v":0},{"$f":"AK58*'III. GDP shares, 1310-2018'!I60","v":0},{"$f":"AL58*'III. GDP shares, 1310-2018'!J60","v":0},null,null,{"$f":"U58*'III. GDP shares, 1310-2018'!C60","v":1.4321497286713345},{"$f":"V58*'III. GDP shares, 1310-2018'!D60","v":0.8737691694610634},{"$f":"W58*'III. GDP shares, 1310-2018'!E60","v":0},{"$f":"X58*'III. GDP shares, 1310-2018'!F60","v":-0.33794857723709076},{"$f":"Y58*'III. GDP shares, 1310-2018'!G60","v":0},{"$f":"Z58*'III. GDP shares, 1310-2018'!H60","v":0},{"$f":"AA58*'III. GDP shares, 1310-2018'!I60","v":0},{"$f":"AB58*'III. GDP shares, 1310-2018'!J60","v":0},null,null,15.902722116357511,10.610463741847447,null,1.9679703208953072,2.9496858817429943,{"$f":"AVERAGE(BL55:BL61)","v":-1.9203482009769353},-1.2455520630861894,null,null,5.34026046671571]
[{"$f":"'[1]Nominal weighted'!B59","v":1365},null,12.309206963168378,41.70346180389893,null,8.229349551215018,{"$nulls":5},6.5609569684626,30.984665950732808,null,8.761727804551217,{"$nulls":5},-5.367228941190355,-8.954784555221607,null,-0.9395563648611136,{"$nulls":6},6.941978021978024,32.748677248677325,null,7.289793186353904,{"$nulls":6},{"$f":"AE59*'III. GDP shares, 1310-2018'!C61","v":3.4537396360571155},{"$f":"AF59*'III. GDP shares, 1310-2018'!D61","v":4.161652676921931},{"$f":"AG59*'III. GDP shares, 1310-2018'!E61","v":0},{"$f":"AH59*'III. GDP shares, 1310-2018'!F61","v":2.7366342565226356},{"$f":"AI59*'III. GDP shares, 1310-2018'!G61","v":0},{"$f":"AJ59*'III. GDP shares, 1310-2018'!H61","v":0},{"$f":"AK59*'III. GDP shares, 1310-2018'!I61","v":0},{"$f":"AL59*'III. GDP shares, 1310-2018'!J61","v":0},null,null,{"$f":"U59*'III. GDP shares, 1310-2018'!C61","v":-2.6702780203703553},{"$f":"V59*'III. GDP shares, 1310-2018'!D61","v":-1.1379605604376684},{"$f":"W59*'III. GDP shares, 1310-2018'!E61","v":0},{"$f":"X59*'III. GDP shares, 1310-2018'!F61","v":-0.35271537453572643},{"$f":"Y59*'III. GDP shares, 1310-2018'!G61","v":0},{"$f":"Z59*'III. GDP shares, 1310-2018'!H61","v":0},{"$f":"AA59*'III. GDP shares, 1310-2018'!I61","v":0},{"$f":"AB59*'III. GDP shares, 1310-2018'!J61","v":0},null,null,15.66014948566975,10.352026569501682,null,-4.16095395534375,-5.087189953757692,{"$f":"AVERAGE(BL56:BL62)","v":-0.10273865789271117},0.2930990779132695,null,null,9.213367287485834]
[{"$f":"'[1]Nominal weighted'!B60","v":1366},null,40.480829951763674,41.04499986619989,null,9.550438610348321,{"$nulls":5},6.4307440412925905,30.283865904651588,null,8.964424931152516,{"$nulls":5},-34.33027439620812,-8.394206215406157,null,-0.9800466563253335,{"$nulls":6},6.150555555555556,32.65079365079373,null,8.570391954022988,{"$nulls":6},{"$f":"AE60*'III. GDP shares, 1310-2018'!C62","v":3.0585955974222556},{"$f":"AF60*'III. GDP shares, 1310-2018'!D62","v":4.1473163540599325},{"$f":"AG60*'III. GDP shares, 1310-2018'!E62","v":0},{"$f":"AH60*'III. GDP shares, 1310-2018'!F62","v":3.219827012081022},{"$f":"AI60*'III. GDP shares, 1310-2018'!G62","v":0},{"$f":"AJ60*'III. GDP shares, 1310-2018'!H62","v":0},{"$f":"AK60*'III. GDP shares, 1310-2018'!I62","v":0},{"$f":"AL60*'III. GDP shares, 1310-2018'!J62","v":0},null,null,{"$f":"U60*'III. GDP shares, 1310-2018'!C62","v":-17.072023035658226},{"$f":"V60*'III. GDP shares, 1310-2018'!D62","v":-1.0662352985609336},{"$f":"W60*'III. GDP shares, 1310-2018'!E62","v":0},{"$f":"X60*'III. GDP shares, 1310-2018'!F62","v":-0.36819561043001636},{"$f":"Y60*'III. GDP shares, 1310-2018'!G62","v":0},{"$f":"Z60*'III. GDP shares, 1310-2018'!H62","v":0},{"$f":"AA60*'III. GDP shares, 1310-2018'!I62","v":0},{"$f":"AB60*'III. GDP shares, 1310-2018'!J62","v":0},null,null,15.790580386790758,10.425738963563209,null,-18.506453944649177,-14.56817575597987,{"$f":"AVERAGE(BL57:BL63)","v":0.04604836953501953},0.5385412714836931,null,null,23.71864125559152]
[{"$f":"'[1]Nominal weighted'!B61","v":1367},null,-17.6126484964789,30.491130179937613,null,8.61839732498893,{"$nulls":5},4.807603814260409,26.790929102065178,null,9.13855293947878,{"$nulls":5},23.9826484964789,2.0617798729725223,null,-1.0225413222416786,{"$nulls":6},6.370000000000001,32.552910052910136,null,7.595856002747251,{"$nulls":6},{"$f":"AE61*'III. GDP shares, 1310-2018'!C63","v":3.166274692023597},{"$f":"AF61*'III. GDP shares, 1310-2018'!D63","v":4.132993137115152},{"$f":"AG61*'III. GDP shares, 1310-2018'!E63","v":0},{"$f":"AH61*'III. GDP shares, 1310-2018'!F63","v":2.855869309988214},{"$f":"AI61*'III. GDP shares, 1310-2018'!G63","v":0},{"$f":"AJ61*'III. GDP shares, 1310-2018'!H63","v":0},{"$f":"AK61*'III. GDP shares, 1310-2018'!I63","v":0},{"$f":"AL61*'III. GDP shares, 1310-2018'!J63","v":0},null,null,{"$f":"U61*'III. GDP shares, 1310-2018'!C63","v":11.92082464397157},{"$f":"V61*'III. GDP shares, 1310-2018'!D63","v":0.26176836575861834},{"$f":"W61*'III. GDP shares, 1310-2018'!E63","v":0},{"$f":"X61*'III. GDP shares, 1310-2018'!F63","v":-0.38445230917076256},{"$f":"Y61*'III. GDP shares, 1310-2018'!G63","v":0},{"$f":"Z61*'III. GDP shares, 1310-2018'!H63","v":0},{"$f":"AA61*'III. GDP shares, 1310-2018'!I63","v":0},{"$f":"AB61*'III. GDP shares, 1310-2018'!J63","v":0},null,null,15.506255351885798,10.155137139126964,null,11.798140700559426,8.340629015736582,{"$f":"AVERAGE(BL58:BL64)","v":1.3081561148276593},2.226721662847955,null,null,-5.5142283327889965]
[{"$f":"'[1]Nominal weighted'!B62","v":1368},null,-6.924020130604396,23.081978088497465,null,9.218941814488515,{"$nulls":5},6.8547041189287325,31.396229592582586,null,9.407721933191374,{"$nulls":5},13.81699310357737,9.373048366529076,null,-1.0672226081393092,{"$nulls":6},6.8929729729729745,32.45502645502654,null,8.151719206349206,{"$nulls":6},{"$f":"AE62*'III. GDP shares, 1310-2018'!C64","v":3.424658472876593},{"$f":"AF62*'III. GDP shares, 1310-2018'!D64","v":4.118683008124137},{"$f":"AG62*'III. GDP shares, 1310-2018'!E64","v":0},{"$f":"AH62*'III. GDP shares, 1310-2018'!F64","v":3.067185326107987},{"$f":"AI62*'III. GDP shares, 1310-2018'!G64","v":0},{"$f":"AJ62*'III. GDP shares, 1310-2018'!H64","v":0},{"$f":"AK62*'III. GDP shares, 1310-2018'!I64","v":0},{"$f":"AL62*'III. GDP shares, 1310-2018'!J64","v":0},null,null,{"$f":"U62*'III. GDP shares, 1310-2018'!C64","v":6.864742207372242},{"$f":"V62*'III. GDP shares, 1310-2018'!D64","v":1.189480313474526},{"$f":"W62*'III. GDP shares, 1310-2018'!E64","v":0},{"$f":"X62*'III. GDP shares, 1310-2018'!F64","v":-0.4015557259168132},{"$f":"Y62*'III. GDP shares, 1310-2018'!G64","v":0},{"$f":"Z62*'III. GDP shares, 1310-2018'!H64","v":0},{"$f":"AA62*'III. GDP shares, 1310-2018'!I64","v":0},{"$f":"AB62*'III. GDP shares, 1310-2018'!J64","v":0},null,null,15.833239544782908,10.610526807108716,null,7.652666794929955,7.3742729539890455,{"$f":"AVERAGE(BL59:BL65)","v":-0.30237897420228016},-0.02530863495780698,null,null,0.02865731752915135]
[{"$f":"'[1]Nominal weighted'!B63","v":1369},null,10.773110655914202,32.49368134227231,null,9.692686403087302,{"$nulls":5},11.00510330077742,31.298086037588664,null,9.969592766353129,{"$nulls":5},-3.789436622765031,-0.13653848512936406,null,-1.1142943030980714,{"$nulls":6},6.983674033149172,32.35714285714295,null,8.57839209998923,{"$nulls":6},{"$f":"AE63*'III. GDP shares, 1310-2018'!C65","v":3.4681372603959653},{"$f":"AF63*'III. GDP shares, 1310-2018'!D65","v":4.104385949156243},{"$f":"AG63*'III. GDP shares, 1310-2018'!E65","v":0},{"$f":"AH63*'III. GDP shares, 1310-2018'!F65","v":3.2301697779137606},{"$f":"AI63*'III. GDP shares, 1310-2018'!G65","v":0},{"$f":"AJ63*'III. GDP shares, 1310-2018'!H65","v":0},{"$f":"AK63*'III. GDP shares, 1310-2018'!I65","v":0},{"$f":"AL63*'III. GDP shares, 1310-2018'!J65","v":0},null,null,{"$f":"U63*'III. GDP shares, 1310-2018'!C65","v":-1.881858500975046},{"$f":"V63*'III. GDP shares, 1310-2018'!D65","v":-0.017319410504142485},{"$f":"W63*'III. GDP shares, 1310-2018'!E65","v":0},{"$f":"X63*'III. GDP shares, 1310-2018'!F65","v":-0.41958443256206307},{"$f":"Y63*'III. GDP shares, 1310-2018'!G65","v":0},{"$f":"Z63*'III. GDP shares, 1310-2018'!H65","v":0},{"$f":"AA63*'III. GDP shares, 1310-2018'!I65","v":0},{"$f":"AB63*'III. GDP shares, 1310-2018'!J65","v":0},null,null,15.973069663427117,10.802692987465969,null,-2.3187623440412515,-1.6800898036641554,{"$f":"AVERAGE(BL60:BL66)","v":-2.288499123269387},-1.3486392534706764,null,null,8.999749971846835]
[{"$f":"'[1]Nominal weighted'!B64","v":1370},null,-9.505851934374483,-7.252631785739993,null,9.90743207820422,{"$nulls":5},7.210759402198526,28.617074200744764,null,10.43640888451021,{"$nulls":5},16.425851934374485,39.511891044999345,null,-1.1639850737674766,{"$nulls":6},6.920000000000001,32.25925925925935,null,8.743447004436744,{"$nulls":6},{"$f":"AE64*'III. GDP shares, 1310-2018'!C66","v":3.4349476889048622},{"$f":"AF64*'III. GDP shares, 1310-2018'!D66","v":4.090101942313571},{"$f":"AG64*'III. GDP shares, 1310-2018'!E66","v":0},{"$f":"AH64*'III. GDP shares, 1310-2018'!F66","v":3.294808976296539},{"$f":"AI64*'III. GDP shares, 1310-2018'!G66","v":0},{"$f":"AJ64*'III. GDP shares, 1310-2018'!H66","v":0},{"$f":"AK64*'III. GDP shares, 1310-2018'!I66","v":0},{"$f":"AL64*'III. GDP shares, 1310-2018'!J66","v":0},null,null,{"$f":"U64*'III. GDP shares, 1310-2018'!C66","v":8.153459846860274},{"$f":"V64*'III. GDP shares, 1310-2018'!D66","v":5.009651988870385},{"$f":"W64*'III. GDP shares, 1310-2018'!E66","v":0},{"$f":"X64*'III. GDP shares, 1310-2018'!F66","v":-0.43862660428755357},{"$f":"Y64*'III. GDP shares, 1310-2018'!G66","v":0},{"$f":"Z64*'III. GDP shares, 1310-2018'!H66","v":0},{"$f":"AA64*'III. GDP shares, 1310-2018'!I66","v":0},{"$f":"AB64*'III. GDP shares, 1310-2018'!J66","v":0},null,null,15.974235421232033,10.819858607514972,null,12.724485231443106,18.257919301868785,{"$f":"AVERAGE(BL61:BL67)","v":0.026573796588984067},0.8567750819509122,null,null,-0.985076577371319]
[{"$f":"'[1]Nominal weighted'!B65","v":1371},null,18.46230182311266,58.210987653011856,null,10.636807750007327,{"$nulls":5},0.2089002248643632,30.578238076739584,null,10.739856439412055,{"$nulls":5},-11.17741418266322,-26.049611991636098,null,-1.2165524343927088,{"$nulls":6},7.284887640449439,32.16137566137576,null,9.420255315614618,{"$nulls":6},{"$f":"AE65*'III. GDP shares, 1310-2018'!C67","v":3.614420669796771},{"$f":"AF65*'III. GDP shares, 1310-2018'!D67","v":4.075830969730881},{"$f":"AG65*'III. GDP shares, 1310-2018'!E67","v":0},{"$f":"AH65*'III. GDP shares, 1310-2018'!F67","v":3.5525302713425715},{"$f":"AI65*'III. GDP shares, 1310-2018'!G67","v":0},{"$f":"AJ65*'III. GDP shares, 1310-2018'!H67","v":0},{"$f":"AK65*'III. GDP shares, 1310-2018'!I67","v":0},{"$f":"AL65*'III. GDP shares, 1310-2018'!J67","v":0},null,null,{"$f":"U65*'III. GDP shares, 1310-2018'!C67","v":-5.54571035967345},{"$f":"V65*'III. GDP shares, 1310-2018'!D67","v":-3.301283391073751},{"$f":"W65*'III. GDP shares, 1310-2018'!E67","v":0},{"$f":"X65*'III. GDP shares, 1310-2018'!F67","v":-0.4587815515670682},{"$f":"Y65*'III. GDP shares, 1310-2018'!G67","v":0},{"$f":"Z65*'III. GDP shares, 1310-2018'!H67","v":0},{"$f":"AA65*'III. GDP shares, 1310-2018'!I67","v":0},{"$f":"AB65*'III. GDP shares, 1310-2018'!J67","v":0},null,null,16.288839539146604,11.242781910870224,null,-9.305775302314268,-12.814526202897342,{"$f":"AVERAGE(BL62:BL68)","v":3.3723207022829627},2.6138277745844958,null,null,13.171442852379862]
[{"$f":"'[1]Nominal weighted'!B66","v":1372},null,41.362001236109194,41.016456918941515,null,12.162445383347283,{"$nulls":5},-2.6323621423528465,29.211367189809465,null,10.852067395549478,{"$nulls":5},-34.261445680553635,-8.952964855449352,null,0.16289768595964693,{"$nulls":6},7.100555555555556,32.06349206349216,null,12.32534306930693,{"$nulls":6},{"$f":"AE66*'III. GDP shares, 1310-2018'!C68","v":3.5213570750700343},{"$f":"AF66*'III. GDP shares, 1310-2018'!D68","v":4.061573013575524},{"$f":"AG66*'III. GDP shares, 1310-2018'!E68","v":0},{"$f":"AH66*'III. GDP shares, 1310-2018'!F68","v":4.651586914729753},{"$f":"AI66*'III. GDP shares, 1310-2018'!G68","v":0},{"$f":"AJ66*'III. GDP shares, 1310-2018'!H68","v":0},{"$f":"AK66*'III. GDP shares, 1310-2018'!I68","v":0},{"$f":"AL66*'III. GDP shares, 1310-2018'!J68","v":0},null,null,{"$f":"U66*'III. GDP shares, 1310-2018'!C68","v":-16.991175296832903},{"$f":"V66*'III. GDP shares, 1310-2018'!D68","v":-1.1340973209149174},{"$f":"W66*'III. GDP shares, 1310-2018'!E68","v":0},{"$f":"X66*'III. GDP shares, 1310-2018'!F68","v":0.061477618934322985},{"$f":"Y66*'III. GDP shares, 1310-2018'!G68","v":0},{"$f":"Z66*'III. GDP shares, 1310-2018'!H68","v":0},{"$f":"AA66*'III. GDP shares, 1310-2018'!I68","v":0},{"$f":"AB66*'III. GDP shares, 1310-2018'!J68","v":0},null,null,17.16313022945155,12.234517003375311,null,-18.0637949988135,-14.35050428334778,{"$f":"AVERAGE(BL63:BL69)","v":5.13018942494704},4.037126569955689,null,null,25.102641667698368]
[{"$f":"'[1]Nominal weighted'!B67","v":1373},null,13.920422661711406,22.277917008292587,null,12.818151437447879,{"$nulls":5},3.4439151265910186,29.318003080389197,null,11.029796359244157,{"$nulls":5},-7.237169649663214,9.687691457315978,null,0.15865196826099506,{"$nulls":6},6.683253012048193,31.965608465608565,null,12.976803405708875,{"$nulls":6},{"$f":"AE67*'III. GDP shares, 1310-2018'!C69","v":3.3128946539060324},{"$f":"AF67*'III. GDP shares, 1310-2018'!D69","v":4.047328056047365},{"$f":"AG67*'III. GDP shares, 1310-2018'!E69","v":0},{"$f":"AH67*'III. GDP shares, 1310-2018'!F69","v":4.901131049187347},{"$f":"AI67*'III. GDP shares, 1310-2018'!G69","v":0},{"$f":"AJ67*'III. GDP shares, 1310-2018'!H69","v":0},{"$f":"AK67*'III. GDP shares, 1310-2018'!I69","v":0},{"$f":"AL67*'III. GDP shares, 1310-2018'!J69","v":0},null,null,{"$f":"U67*'III. GDP shares, 1310-2018'!C69","v":-3.58747163971762},{"$f":"V67*'III. GDP shares, 1310-2018'!D69","v":1.226607823708726},{"$f":"W67*'III. GDP shares, 1310-2018'!E69","v":0},{"$f":"X67*'III. GDP shares, 1310-2018'!F69","v":0.05992031036831235},{"$f":"Y67*'III. GDP shares, 1310-2018'!G69","v":0},{"$f":"Z67*'III. GDP shares, 1310-2018'!H69","v":0},{"$f":"AA67*'III. GDP shares, 1310-2018'!I69","v":0},{"$f":"AB67*'III. GDP shares, 1310-2018'!J69","v":0},null,null,17.208554961121877,12.261353759140745,null,-2.300943505640582,0.8697245919712532,{"$f":"AVERAGE(BL64:BL70)","v":1.9865758062851693},1.9748032385255883,null,null,11.741577032442688]
[{"$f":"'[1]Nominal weighted'!B68","v":1374},null,-66.62566273781803,44.219277311901344,null,10.742530209301865,{"$nulls":5},7.837920774021467,37.98114374287193,null,11.899152420133097,{"$nulls":5},74.1170913092466,-12.351552444176377,null,0.15445472744476393,{"$nulls":6},7.491428571428571,31.867724867724966,null,10.896984936746628,{"$nulls":6},{"$f":"AE68*'III. GDP shares, 1310-2018'!C70","v":3.7118160350740568},{"$f":"AF68*'III. GDP shares, 1310-2018'!D70","v":4.033096079378712},{"$f":"AG68*'III. GDP shares, 1310-2018'!E70","v":0},{"$f":"AH68*'III. GDP shares, 1310-2018'!F70","v":4.1187066800826075},{"$f":"AI68*'III. GDP shares, 1310-2018'!G70","v":0},{"$f":"AJ68*'III. GDP shares, 1310-2018'!H70","v":0},{"$f":"AK68*'III. GDP shares, 1310-2018'!I70","v":0},{"$f":"AL68*'III. GDP shares, 1310-2018'!J70","v":0},null,null,{"$f":"U68*'III. GDP shares, 1310-2018'!C70","v":36.72317040356535},{"$f":"V68*'III. GDP shares, 1310-2018'!D70","v":-1.563180237799153},{"$f":"W68*'III. GDP shares, 1310-2018'!E70","v":0},{"$f":"X68*'III. GDP shares, 1310-2018'!F70","v":0.05837887465108453},{"$f":"Y68*'III. GDP shares, 1310-2018'!G70","v":0},{"$f":"Z68*'III. GDP shares, 1310-2018'!H70","v":0},{"$f":"AA68*'III. GDP shares, 1310-2018'!I70","v":0},{"$f":"AB68*'III. GDP shares, 1310-2018'!J70","v":0},null,null,16.752046125300055,11.863618794535377,null,35.21836904041728,20.639997864171665,{"$f":"AVERAGE(BL65:BL71)","v":-1.2266738408539566},-2.329205364945683,null,null,-28.951026563059767]
[{"$f":"'[1]Nominal weighted'!B69","v":1375},null,-26.812856701124872,13.51388187998663,null,10.004418507450454,{"$nulls":5},6.400243825705801,35.0398741626254,null,12.616714571282065,{"$nulls":5},33.60582967409785,18.255959389854738,null,0.15030450080960522,{"$nulls":6},6.792972972972974,31.76984126984137,null,10.15472300826006,{"$nulls":6},{"$f":"AE69*'III. GDP shares, 1310-2018'!C71","v":3.54159572433192},{"$f":"AF69*'III. GDP shares, 1310-2018'!D71","v":4.149871913111506},{"$f":"AG69*'III. GDP shares, 1310-2018'!E71","v":0},{"$f":"AH69*'III. GDP shares, 1310-2018'!F71","v":3.5339993125769653},{"$f":"AI69*'III. GDP shares, 1310-2018'!G71","v":0},{"$f":"AJ69*'III. GDP shares, 1310-2018'!H71","v":0},{"$f":"AK69*'III. GDP shares, 1310-2018'!I71","v":0},{"$f":"AL69*'III. GDP shares, 1310-2018'!J71","v":0},null,null,{"$f":"U69*'III. GDP shares, 1310-2018'!C71","v":17.520791435494676},{"$f":"V69*'III. GDP shares, 1310-2018'!D71","v":2.384648147133809},{"$f":"W69*'III. GDP shares, 1310-2018'!E71","v":0},{"$f":"X69*'III. GDP shares, 1310-2018'!F71","v":0.052308270950010095},{"$f":"Y69*'III. GDP shares, 1310-2018'!G71","v":0},{"$f":"Z69*'III. GDP shares, 1310-2018'!H71","v":0},{"$f":"AA69*'III. GDP shares, 1310-2018'!I71","v":0},{"$f":"AB69*'III. GDP shares, 1310-2018'!J71","v":0},null,null,{"$f":"AVERAGE(AE69:AL69)","v":16.239179083691468},{"$f":"SUM(AO69:AV69)","v":11.22546695002039},null,{"$f":"SUM(AY69:BF69)","v":19.957747853578496},{"$f":"AVERAGE(U69:AB69)","v":17.337364521587396},{"$f":"AVERAGE(BL66:BL72)","v":0.027744731776035345},-0.79061814046516,null,null,{"$f":"((AO69+SUM(AQ69:AV69))-((AY69+(SUM(BA69:BF69)))))","v":-10.497504669535802}]
[{"$f":"'[1]Nominal weighted'!B70","v":1376},null,53.307051538521264,33.24013257633045,null,10.936789148950064,{"$nulls":5},3.8396984773065506,34.307740752686975,null,13.217016747273842,{"$nulls":5},-45.27533982680956,-1.5681749043726825,null,-1.5055446398423462,{"$nulls":6},8.031711711711711,31.67195767195777,null,9.431244509107717,{"$nulls":6},{"$f":"AE70*'III. GDP shares, 1310-2018'!C72","v":4.185672746894778},{"$f":"AF70*'III. GDP shares, 1310-2018'!D72","v":4.135353275580448},{"$f":"AG70*'III. GDP shares, 1310-2018'!E72","v":0},{"$f":"AH70*'III. GDP shares, 1310-2018'!F72","v":3.2847931768587215},{"$f":"AI70*'III. GDP shares, 1310-2018'!G72","v":0},{"$f":"AJ70*'III. GDP shares, 1310-2018'!H72","v":0},{"$f":"AK70*'III. GDP shares, 1310-2018'!I72","v":0},{"$f":"AL70*'III. GDP shares, 1310-2018'!J72","v":0},null,null,{"$f":"U70*'III. GDP shares, 1310-2018'!C72","v":-23.59494001050105},{"$f":"V70*'III. GDP shares, 1310-2018'!D72","v":-0.20475391179315652},{"$f":"W70*'III. GDP shares, 1310-2018'!E72","v":0},{"$f":"X70*'III. GDP shares, 1310-2018'!F72","v":-0.5243637523801449},{"$f":"Y70*'III. GDP shares, 1310-2018'!G72","v":0},{"$f":"Z70*'III. GDP shares, 1310-2018'!H72","v":0},{"$f":"AA70*'III. GDP shares, 1310-2018'!I72","v":0},{"$f":"AB70*'III. GDP shares, 1310-2018'!J72","v":0},null,null,16.37830463092573,11.605819199333949,null,-24.324057674674346,-16.116353123674863,{"$f":"AVERAGE(BL67:BL73)","v":1.544968874121894},0.3921766972495439,null,null,31.58976968663469]
[{"$f":"'[1]Nominal weighted'!B71","v":1377},null,21.252187597638645,53.38935285163909,null,15.99292450442681,{"$nulls":5},4.765424473428771,32.72061119669672,null,13.501555152599167,{"$nulls":5},-12.256737147188195,-21.815278777564913,null,-1.5384068425372144,{"$nulls":6},8.995450450450452,31.574074074074172,null,14.454517661889597,{"$nulls":6},{"$f":"AE71*'III. GDP shares, 1310-2018'!C73","v":4.685956054898098},{"$f":"AF71*'III. GDP shares, 1310-2018'!D73","v":4.12084679500978},{"$f":"AG71*'III. GDP shares, 1310-2018'!E73","v":0},{"$f":"AH71*'III. GDP shares, 1310-2018'!F73","v":5.0382849290462195},{"$f":"AI71*'III. GDP shares, 1310-2018'!G73","v":0},{"$f":"AJ71*'III. GDP shares, 1310-2018'!H73","v":0},{"$f":"AK71*'III. GDP shares, 1310-2018'!I73","v":0},{"$f":"AL71*'III. GDP shares, 1310-2018'!J73","v":0},null,null,{"$f":"U71*'III. GDP shares, 1310-2018'!C73","v":-6.3848422004575545},{"$f":"V71*'III. GDP shares, 1310-2018'!D73","v":-2.8471910663752142},{"$f":"W71*'III. GDP shares, 1310-2018'!E73","v":0},{"$f":"X71*'III. GDP shares, 1310-2018'!F73","v":-0.5362290316980091},{"$f":"Y71*'III. GDP shares, 1310-2018'!G73","v":0},{"$f":"Z71*'III. GDP shares, 1310-2018'!H73","v":0},{"$f":"AA71*'III. GDP shares, 1310-2018'!I73","v":0},{"$f":"AB71*'III. GDP shares, 1310-2018'!J73","v":0},null,null,18.341347395471406,13.845087778954099,null,-9.768262298530777,-11.870140922430108,{"$f":"AVERAGE(BL68:BL74)","v":1.5703324043208784},0.7655901894483017,null,null,16.64531221609988]
[{"$f":"'[1]Nominal weighted'!B72","v":1378},null,8.398563184903004,37.622100591286205,null,15.659742808050114,{"$nulls":5},10.615670803129804,30.655620980871834,null,14.202716081832989,{"$nulls":5},1.5856260042861856,-6.1459101150956315,null,-1.5729627837916076,{"$nulls":6},9.98418918918919,31.476190476190574,null,14.086780024258506,{"$nulls":6},{"$f":"AE72*'III. GDP shares, 1310-2018'!C74","v":5.198838311370751},{"$f":"AF72*'III. GDP shares, 1310-2018'!D74","v":4.106352456136725},{"$f":"AG72*'III. GDP shares, 1310-2018'!E74","v":0},{"$f":"AH72*'III. GDP shares, 1310-2018'!F74","v":4.9139462001709875},{"$f":"AI72*'III. GDP shares, 1310-2018'!G74","v":0},{"$f":"AJ72*'III. GDP shares, 1310-2018'!H74","v":0},{"$f":"AK72*'III. GDP shares, 1310-2018'!I74","v":0},{"$f":"AL72*'III. GDP shares, 1310-2018'!J74","v":0},null,null,{"$f":"U72*'III. GDP shares, 1310-2018'!C74","v":0.8256467362932841},{"$f":"V72*'III. GDP shares, 1310-2018'!D74","v":-0.8017893116833382},{"$f":"W72*'III. GDP shares, 1310-2018'!E74","v":0},{"$f":"X72*'III. GDP shares, 1310-2018'!F74","v":-0.5487027185142694},{"$f":"Y72*'III. GDP shares, 1310-2018'!G74","v":0},{"$f":"Z72*'III. GDP shares, 1310-2018'!H74","v":0},{"$f":"AA72*'III. GDP shares, 1310-2018'!I74","v":0},{"$f":"AB72*'III. GDP shares, 1310-2018'!J74","v":0},null,null,18.515719896546088,14.219136967678462,null,-0.5248452939043236,-2.0444156315336848,{"$f":"AVERAGE(BL69:BL75)","v":-0.6762804488664698},-0.3739066340462084,null,null,9.835840493762724]
[{"$f":"'[1]Nominal weighted'!B73","v":1379},null,{"$f":"AE73-U73","v":23.438183797314444},{"$f":"AF73-V73","v":35.89152304937254},null,{"$f":"AH73-X73","v":16.364560615289697},{"$nulls":5},16.145540060748065,34.294809617676826,null,14.910795278298,{"$nulls":5},-12.090255869386517,-4.513216171065565,null,-1.6093492175824702,{"$nulls":6},11.347927927927929,31.378306878306976,null,14.755211397707228,{"$nulls":6},{"$f":"AE73*'III. GDP shares, 1310-2018'!C75","v":5.9064749569539625},{"$f":"AF73*'III. GDP shares, 1310-2018'!D75","v":4.091870243724039},{"$f":"AG73*'III. GDP shares, 1310-2018'!E75","v":0},{"$f":"AH73*'III. GDP shares, 1310-2018'!F75","v":5.151136943032374},{"$f":"AI73*'III. GDP shares, 1310-2018'!G75","v":0},{"$f":"AJ73*'III. GDP shares, 1310-2018'!H75","v":0},{"$f":"AK73*'III. GDP shares, 1310-2018'!I75","v":0},{"$f":"AL73*'III. GDP shares, 1310-2018'!J75","v":0},null,null,{"$f":"U73*'III. GDP shares, 1310-2018'!C75","v":-6.292848700594131},{"$f":"V73*'III. GDP shares, 1310-2018'!D75","v":-0.5885433852597259},{"$f":"W73*'III. GDP shares, 1310-2018'!E75","v":0},{"$f":"X73*'III. GDP shares, 1310-2018'!F75","v":-0.5618339165386317},{"$f":"Y73*'III. GDP shares, 1310-2018'!G75","v":0},{"$f":"Z73*'III. GDP shares, 1310-2018'!H75","v":0},{"$f":"AA73*'III. GDP shares, 1310-2018'!I75","v":0},{"$f":"AB73*'III. GDP shares, 1310-2018'!J75","v":0},null,null,19.160482067980713,15.149482143710376,null,-7.443226002392489,-6.070940419344851,{"$f":"AVERAGE(BL70:BL76)","v":-3.977239583385018},-3.444380521806792,null,null,17.9122945171191]
[{"$f":"'[1]Nominal weighted'!B74","v":1380},null,20.400504634566943,11.16801011636079,null,14.809920274725163,{"$nulls":5},7.775572396884337,34.12516155049629,null,15.400023066820106,{"$nulls":5},-8.013837967900276,20.112413164062588,null,-1.6477180840746526,{"$nulls":6},12.386666666666668,31.280423280423378,null,13.162202190650511,{"$nulls":6},{"$f":"AE74*'III. GDP shares, 1310-2018'!C76","v":6.444431530117284},{"$f":"AF74*'III. GDP shares, 1310-2018'!D76","v":4.077400142559971},{"$f":"AG74*'III. GDP shares, 1310-2018'!E76","v":0},{"$f":"AH74*'III. GDP shares, 1310-2018'!F76","v":4.598589732517404},{"$f":"AI74*'III. GDP shares, 1310-2018'!G76","v":0},{"$f":"AJ74*'III. GDP shares, 1310-2018'!H76","v":0},{"$f":"AK74*'III. GDP shares, 1310-2018'!I76","v":0},{"$f":"AL74*'III. GDP shares, 1310-2018'!J76","v":0},null,null,{"$f":"U74*'III. GDP shares, 1310-2018'!C76","v":-4.169372718857983},{"$f":"V74*'III. GDP shares, 1310-2018'!D76","v":2.621651106418912},{"$f":"W74*'III. GDP shares, 1310-2018'!E76","v":0},{"$f":"X74*'III. GDP shares, 1310-2018'!F76","v":-0.5756771818086212},{"$f":"Y74*'III. GDP shares, 1310-2018'!G76","v":0},{"$f":"Z74*'III. GDP shares, 1310-2018'!H76","v":0},{"$f":"AA74*'III. GDP shares, 1310-2018'!I76","v":0},{"$f":"AB74*'III. GDP shares, 1310-2018'!J76","v":0},null,null,18.943097379246854,15.120421405194659,null,-2.1233987942476924,3.483619037362553,{"$f":"AVERAGE(BL71:BL77)","v":0.47634337976809066},-0.5760581529528466,null,null,15.788071163301293]
[{"$f":"'[1]Nominal weighted'!B75","v":1381},null,-25.67393842991079,29.76434580112713,null,15.650656713938615,{"$nulls":5},5.188422621652641,30.795534970124603,null,15.074555395318086,{"$nulls":5},38.26060509657746,1.4181938814126482,null,-1.6882386788598165,{"$nulls":6},12.586666666666668,31.18253968253978,null,13.962418035078798,{"$nulls":6},{"$f":"AE75*'III. GDP shares, 1310-2018'!C77","v":6.545748806654253},{"$f":"AF75*'III. GDP shares, 1310-2018'!D77","v":4.062942137458195},{"$f":"AG75*'III. GDP shares, 1310-2018'!E77","v":0},{"$f":"AH75*'III. GDP shares, 1310-2018'!F77","v":4.881964820586635},{"$f":"AI75*'III. GDP shares, 1310-2018'!G77","v":0},{"$f":"AJ75*'III. GDP shares, 1310-2018'!H77","v":0},{"$f":"AK75*'III. GDP shares, 1310-2018'!I77","v":0},{"$f":"AL75*'III. GDP shares, 1310-2018'!J77","v":0},null,null,{"$f":"U75*'III. GDP shares, 1310-2018'!C77","v":19.897588200698475},{"$f":"V75*'III. GDP shares, 1310-2018'!D77","v":0.18478416891434957},{"$f":"W75*'III. GDP shares, 1310-2018'!E77","v":0},{"$f":"X75*'III. GDP shares, 1310-2018'!F77","v":-0.5902933015069812},{"$f":"Y75*'III. GDP shares, 1310-2018'!G77","v":0},{"$f":"Z75*'III. GDP shares, 1310-2018'!H77","v":0},{"$f":"AA75*'III. GDP shares, 1310-2018'!I77","v":0},{"$f":"AB75*'III. GDP shares, 1310-2018'!J77","v":0},null,null,19.243874794761748,15.490655764699083,null,19.49207906810584,12.663520099710096,{"$f":"AVERAGE(BL72:BL78)","v":2.2652404255955063},1.376471839403983,null,null,-7.879581271950606]
[{"$f":"'[1]Nominal weighted'!B76","v":1382},null,11.896228102202958,38.98820233762158,null,14.960972882705553,{"$nulls":5},5.065690753279966,30.3835103551999,null,14.819074905585415,{"$nulls":5},-3.0747575139676657,-7.903546252965398,null,-1.4895543112769845,{"$nulls":6},8.821470588235293,31.08465608465618,null,13.471418571428568,{"$nulls":6},{"$f":"AE76*'III. GDP shares, 1310-2018'!C78","v":4.5857261051941824},{"$f":"AF76*'III. GDP shares, 1310-2018'!D78","v":4.048496213257769},{"$f":"AG76*'III. GDP shares, 1310-2018'!E78","v":0},{"$f":"AH76*'III. GDP shares, 1310-2018'!F78","v":4.713947007796131},{"$f":"AI76*'III. GDP shares, 1310-2018'!G78","v":0},{"$f":"AJ76*'III. GDP shares, 1310-2018'!H78","v":0},{"$f":"AK76*'III. GDP shares, 1310-2018'!I78","v":0},{"$f":"AL76*'III. GDP shares, 1310-2018'!J78","v":0},null,null,{"$f":"U76*'III. GDP shares, 1310-2018'!C78","v":-1.598372477458336},{"$f":"V76*'III. GDP shares, 1310-2018'!D78","v":-1.0293656455228546},{"$f":"W76*'III. GDP shares, 1310-2018'!E78","v":0},{"$f":"X76*'III. GDP shares, 1310-2018'!F78","v":-0.521227965070152},{"$f":"Y76*'III. GDP shares, 1310-2018'!G78","v":0},{"$f":"Z76*'III. GDP shares, 1310-2018'!H78","v":0},{"$f":"AA76*'III. GDP shares, 1310-2018'!I78","v":0},{"$f":"AB76*'III. GDP shares, 1310-2018'!J78","v":0},null,null,17.792515081440015,13.348169326248081,null,-3.1489660880513424,-4.155952692736682,{"$f":"AVERAGE(BL73:BL79)","v":2.3428178780862523},1.5041321985064198,null,null,11.419273555518801]
[{"$f":"'[1]Nominal weighted'!B77","v":1383},null,-5.282722108524842,32.0525961060667,null,14.361383668604784,{"$nulls":5},2.6178479204430825,28.792426764555817,null,13.573170722004862,{"$nulls":5},14.485565245779744,-1.0658236192941217,null,-1.5340312515773713,{"$nulls":6},9.202843137254902,30.986772486772583,null,12.827352417027413,{"$nulls":6},{"$f":"AE77*'III. GDP shares, 1310-2018'!C79","v":4.78197975986073},{"$f":"AF77*'III. GDP shares, 1310-2018'!D79","v":4.0340623548230745},{"$f":"AG77*'III. GDP shares, 1310-2018'!E79","v":0},{"$f":"AH77*'III. GDP shares, 1310-2018'!F79","v":4.492056456570556},{"$f":"AI77*'III. GDP shares, 1310-2018'!G79","v":0},{"$f":"AJ77*'III. GDP shares, 1310-2018'!H79","v":0},{"$f":"AK77*'III. GDP shares, 1310-2018'!I79","v":0},{"$f":"AL77*'III. GDP shares, 1310-2018'!J79","v":0},null,null,{"$f":"U77*'III. GDP shares, 1310-2018'!C79","v":7.526986908539556},{"$f":"V77*'III. GDP shares, 1310-2018'!D79","v":-0.13875594630938345},{"$f":"W77*'III. GDP shares, 1310-2018'!E79","v":0},{"$f":"X77*'III. GDP shares, 1310-2018'!F79","v":-0.5372078948327546},{"$f":"Y77*'III. GDP shares, 1310-2018'!G79","v":0},{"$f":"Z77*'III. GDP shares, 1310-2018'!H79","v":0},{"$f":"AA77*'III. GDP shares, 1310-2018'!I79","v":0},{"$f":"AB77*'III. GDP shares, 1310-2018'!J79","v":0},null,null,17.67232268035163,13.308098571254359,null,6.851023067397419,3.9619034583027504,{"$f":"AVERAGE(BL74:BL80)","v":3.9172709797270273},2.9651722583940807,null,null,2.2842572027244845]
[{"$f":"'[1]Nominal weighted'!B78","v":1384},null,3.1421391710167734,30.08196678903724,null,13.71465080391268,{"$nulls":5},5.227617897400416,32.53370027157511,null,12.648475730773908,{"$f":"AVERAGE(G75:G81)","v":20.626025024707126},{"$nulls":4},6.167076515257738,0.8069220998517466,null,-1.581291542906391,{"$nulls":6},9.309215686274511,30.888888888888985,null,12.133359261006289,{"$nulls":6},{"$f":"AE78*'III. GDP shares, 1310-2018'!C80","v":4.835233763099633},{"$f":"AF78*'III. GDP shares, 1310-2018'!D80","v":4.019640547043767},{"$f":"AG78*'III. GDP shares, 1310-2018'!E80","v":0},{"$f":"AH78*'III. GDP shares, 1310-2018'!F80","v":4.252315777502378},{"$f":"AI78*'III. GDP shares, 1310-2018'!G80","v":0},{"$f":"AJ78*'III. GDP shares, 1310-2018'!H80","v":0},{"$f":"AK78*'III. GDP shares, 1310-2018'!I80","v":0},{"$f":"AL78*'III. GDP shares, 1310-2018'!J80","v":0},null,null,{"$f":"U78*'III. GDP shares, 1310-2018'!C80","v":3.203197518579196},{"$f":"V78*'III. GDP shares, 1310-2018'!D80","v":0.10500658675477671},{"$f":"W78*'III. GDP shares, 1310-2018'!E80","v":0},{"$f":"X78*'III. GDP shares, 1310-2018'!F80","v":-0.5541870830728417},{"$f":"Y78*'III. GDP shares, 1310-2018'!G80","v":0},{"$f":"Z78*'III. GDP shares, 1310-2018'!H80","v":0},{"$f":"AA78*'III. GDP shares, 1310-2018'!I80","v":0},{"$f":"AB78*'III. GDP shares, 1310-2018'!J80","v":0},null,null,17.443821278723263,13.107190087645778,null,2.754017022261131,1.7975690240676976,{"$f":"AVERAGE(BL75:BL81)","v":2.669849022013678},1.1995494130574813,null,null,6.438539105095658]
[{"$f":"'[1]Nominal weighted'!B79","v":1385},null,7.539440106294276,34.73792828681336,null,13.871379379921425,{"$nulls":5},5.940001075912668,33.66761941711983,null,11.865037544124684,{"$f":"AVERAGE(G76:G82)","v":16.04491804570476},{"$nulls":4},2.1261481289998416,-3.9469229958079666,null,-1.6316044866417565,{"$nulls":6},9.665588235294118,30.791005291005387,null,12.23977489327967,{"$nulls":6},{"$f":"AE79*'III. GDP shares, 1310-2018'!C81","v":5.018239869702517},{"$f":"AF79*'III. GDP shares, 1310-2018'!D81","v":4.005230774834721},{"$f":"AG79*'III. GDP shares, 1310-2018'!E81","v":0},{"$f":"AH79*'III. GDP shares, 1310-2018'!F81","v":4.29292807831042},{"$f":"AI79*'III. GDP shares, 1310-2018'!G81","v":0},{"$f":"AJ79*'III. GDP shares, 1310-2018'!H81","v":0},{"$f":"AK79*'III. GDP shares, 1310-2018'!I81","v":0},{"$f":"AL79*'III. GDP shares, 1310-2018'!J81","v":0},null,null,{"$f":"U79*'III. GDP shares, 1310-2018'!C81","v":1.1038667332093055},{"$f":"V79*'III. GDP shares, 1310-2018'!D81","v":-0.5134076428914396},{"$f":"W79*'III. GDP shares, 1310-2018'!E81","v":0},{"$f":"X79*'III. GDP shares, 1310-2018'!F81","v":-0.5722622167869645},{"$f":"Y79*'III. GDP shares, 1310-2018'!G81","v":0},{"$f":"Z79*'III. GDP shares, 1310-2018'!H81","v":0},{"$f":"AA79*'III. GDP shares, 1310-2018'!I81","v":0},{"$f":"AB79*'III. GDP shares, 1310-2018'!J81","v":0},null,null,17.565456139859723,13.316398722847659,null,0.01819687353090138,-1.150793117816627,{"$f":"AVERAGE(BL76:BL82)","v":1.6170851103977697},0.4735537650251272,null,null,8.779563431590596]
[{"$f":"'[1]Nominal weighted'!B80","v":1386},null,6.30328396745626,24.75393791486392,null,7.643231330225836,{"$nulls":5},-0.5280454549379081,33.39898274145643,null,10.867814126633208,{"$f":"AVERAGE(G77:G83)","v":17.416656725992556},{"$nulls":4},3.0583826992104077,5.9391837782578705,null,3.4714535221380483,{"$nulls":6},9.361666666666668,30.69312169312179,null,11.114684852363885,{"$nulls":6},{"$f":"AE80*'III. GDP shares, 1310-2018'!C82","v":4.858420717986883},{"$f":"AF80*'III. GDP shares, 1310-2018'!D82","v":3.990833023135981},{"$f":"AG80*'III. GDP shares, 1310-2018'!E82","v":0},{"$f":"AH80*'III. GDP shares, 1310-2018'!F82","v":3.901328561467652},{"$f":"AI80*'III. GDP shares, 1310-2018'!G82","v":0},{"$f":"AJ80*'III. GDP shares, 1310-2018'!H82","v":0},{"$f":"AK80*'III. GDP shares, 1310-2018'!I82","v":0},{"$f":"AL80*'III. GDP shares, 1310-2018'!J82","v":0},null,null,{"$f":"U80*'III. GDP shares, 1310-2018'!C82","v":1.5872077481975952},{"$f":"V80*'III. GDP shares, 1310-2018'!D82","v":0.7722346064935007},{"$f":"W80*'III. GDP shares, 1310-2018'!E82","v":0},{"$f":"X80*'III. GDP shares, 1310-2018'!F82","v":1.2185033544018338},{"$f":"Y80*'III. GDP shares, 1310-2018'!G82","v":0},{"$f":"Z80*'III. GDP shares, 1310-2018'!H82","v":0},{"$f":"AA80*'III. GDP shares, 1310-2018'!I82","v":0},{"$f":"AB80*'III. GDP shares, 1310-2018'!J82","v":0},null,null,17.05649107071745,12.750582302590516,null,3.57794570909293,4.156339999868776,{"$f":"AVERAGE(BL77:BL83)","v":4.010069448523905},2.3044154335964953,null,null,5.954038176855106]
[{"$f":"'[1]Nominal weighted'!B81","v":1387},null,38.668894473268274,37.35692466549581,null,8.33705533610847,{"$f":"AI81-Y81","v":20.626025024707126},{"$nulls":4},4.224986674534384,29.20835118955509,null,10.194452647930083,{"$f":"AVERAGE(G78:G84)","v":17.503284885307757},{"$nulls":4},-29.757357005568014,-6.761686570257623,null,3.1421050805581983,-2.1260250247071255,{"$nulls":5},8.91153746770026,30.59523809523819,null,11.479160416666668,18.5,{"$nulls":5},{"$f":"AE81*'III. GDP shares, 1310-2018'!C83","v":3.0838637713627013},{"$f":"AF81*'III. GDP shares, 1310-2018'!D83","v":2.652631571119498},{"$f":"AG81*'III. GDP shares, 1310-2018'!E83","v":0},{"$f":"AH81*'III. GDP shares, 1310-2018'!F83","v":2.689935454020491},{"$f":"AI81*'III. GDP shares, 1310-2018'!G83","v":6.158912429033566},{"$f":"AJ81*'III. GDP shares, 1310-2018'!H83","v":0},{"$f":"AK81*'III. GDP shares, 1310-2018'!I83","v":0},{"$f":"AL81*'III. GDP shares, 1310-2018'!J83","v":0},null,null,{"$f":"U81*'III. GDP shares, 1310-2018'!C83","v":-10.297620981069514},{"$f":"V81*'III. GDP shares, 1310-2018'!D83","v":-0.586243624398258},{"$f":"W81*'III. GDP shares, 1310-2018'!E83","v":0},{"$f":"X81*'III. GDP shares, 1310-2018'!F83","v":0.7362959963674528},{"$f":"Y81*'III. GDP shares, 1310-2018'!G83","v":-0.7077838891408168},{"$f":"Z81*'III. GDP shares, 1310-2018'!H83","v":0},{"$f":"AA81*'III. GDP shares, 1310-2018'!I83","v":0},{"$f":"AB81*'III. GDP shares, 1310-2018'!J83","v":0},null,null,17.37148399490128,14.585343225536256,null,-10.855352498241135,-8.875740879993641,{"$f":"AVERAGE(BL78:BL84)","v":2.48936224755614},2.0997771102734872,null,null,22.20182052825964]
[{"$f":"'[1]Nominal weighted'!B82","v":1388},null,-20.687256180325022,37.70177981994023,null,10.166589407394035,11.4638110667024,{"$nulls":4},5.274990898585997,26.762587314324175,null,9.211905818662492,{"$f":"AVERAGE(G79:G85)","v":17.288540036029406},{"$nulls":4},29.19866444905887,-7.204425322585635,null,1.2957741941636354,7.0361889332976,{"$nulls":5},8.51140826873385,30.497354497354593,null,11.462363601557671,18.5,{"$nulls":5},{"$f":"AE82*'III. GDP shares, 1310-2018'!C84","v":2.944578930136645},{"$f":"AF82*'III. GDP shares, 1310-2018'!D84","v":2.6434097928315587},{"$f":"AG82*'III. GDP shares, 1310-2018'!E84","v":0},{"$f":"AH82*'III. GDP shares, 1310-2018'!F84","v":2.688439648704217},{"$f":"AI82*'III. GDP shares, 1310-2018'!G84","v":6.157199972118022},{"$f":"AJ82*'III. GDP shares, 1310-2018'!H84","v":0},{"$f":"AK82*'III. GDP shares, 1310-2018'!I84","v":0},{"$f":"AL82*'III. GDP shares, 1310-2018'!J84","v":0},null,null,{"$f":"U82*'III. GDP shares, 1310-2018'!C84","v":10.10147432836266},{"$f":"V82*'III. GDP shares, 1310-2018'!D84","v":-0.6244557524193932},{"$f":"W82*'III. GDP shares, 1310-2018'!E84","v":0},{"$f":"X82*'III. GDP shares, 1310-2018'!F84","v":0.30391731063948013},{"$f":"Y82*'III. GDP shares, 1310-2018'!G84","v":2.3417958002117363},{"$f":"Z82*'III. GDP shares, 1310-2018'!H84","v":0},{"$f":"AA82*'III. GDP shares, 1310-2018'!I84","v":0},{"$f":"AB82*'III. GDP shares, 1310-2018'!J84","v":0},null,null,17.24278159191153,14.433628343790442,null,12.122731686794483,7.581550563483617,{"$f":"AVERAGE(BL79:BL85)","v":2.2397629576737934},2.421898960113169,null,null,-0.9569688882549929]
[{"$f":"'[1]Nominal weighted'!B83","v":1389},null,-33.380097613751076,37.10774560797775,null,7.980408960265237,20.16013408656815,{"$nulls":4},7.162352583671625,28.8000857474971,null,8.273415022837128,{"$f":"AVERAGE(G80:G86)","v":17.11930347325016},{"$nulls":4},41.766376683518516,-6.70827470850675,null,1.2566849781706784,-1.6744710041308737,{"$nulls":5},8.386279069767442,30.399470899470995,null,9.237093938435915,18.485663082437277,{"$nulls":5},{"$f":"AE83*'III. GDP shares, 1310-2018'!C85","v":2.900483176417141},{"$f":"AF83*'III. GDP shares, 1310-2018'!D85","v":2.6341931412631623},{"$f":"AG83*'III. GDP shares, 1310-2018'!E85","v":0},{"$f":"AH83*'III. GDP shares, 1310-2018'!F85","v":2.1684792529274723},{"$f":"AI83*'III. GDP shares, 1310-2018'!G85","v":6.150718157450853},{"$f":"AJ83*'III. GDP shares, 1310-2018'!H85","v":0},{"$f":"AK83*'III. GDP shares, 1310-2018'!I85","v":0},{"$f":"AL83*'III. GDP shares, 1310-2018'!J85","v":0},null,null,{"$f":"U83*'III. GDP shares, 1310-2018'!C85","v":14.445342434067841},{"$f":"V83*'III. GDP shares, 1310-2018'!D85","v":-0.5812894337962021},{"$f":"W83*'III. GDP shares, 1310-2018'!E85","v":0},{"$f":"X83*'III. GDP shares, 1310-2018'!F85","v":0.2950165193502579},{"$f":"Y83*'III. GDP shares, 1310-2018'!G85","v":-0.5571452407902919},{"$f":"Z83*'III. GDP shares, 1310-2018'!H85","v":0},{"$f":"AA83*'III. GDP shares, 1310-2018'!I85","v":0},{"$f":"AB83*'III. GDP shares, 1310-2018'!J85","v":0},null,null,16.62712674752791,13.853873728058627,null,13.601924278831603,8.660078987262892,{"$f":"AVERAGE(BL80:BL86)","v":1.4322185819583027},1.5040874015710344,null,null,-2.963533125832342]
[{"$f":"'[1]Nominal weighted'!B84","v":1390},null,27.9885027977812,2.7181752427573187,null,9.647853317682898,17.763169363253354,{"$nulls":4},8.913351592111464,31.46570181063723,null,8.098135688549725,{"$f":"AVERAGE(G81:G87)","v":17.449975240631606},{"$nulls":4},-19.393502797781203,27.583412058830078,null,1.219674717496709,0.7081568016211985,{"$nulls":5},8.595,30.301587301587396,null,10.867528035179607,18.471326164874554,{"$nulls":5},{"$f":"AE84*'III. GDP shares, 1310-2018'!C86","v":2.971845436161872},{"$f":"AF84*'III. GDP shares, 1310-2018'!D86","v":2.6249816121403056},{"$f":"AG84*'III. GDP shares, 1310-2018'!E86","v":0},{"$f":"AH84*'III. GDP shares, 1310-2018'!F86","v":2.5535472899463203},{"$f":"AI84*'III. GDP shares, 1310-2018'!G86","v":6.144239945257139},{"$f":"AJ84*'III. GDP shares, 1310-2018'!H86","v":0},{"$f":"AK84*'III. GDP shares, 1310-2018'!I86","v":0},{"$f":"AL84*'III. GDP shares, 1310-2018'!J86","v":0},null,null,{"$f":"U84*'III. GDP shares, 1310-2018'!C86","v":-6.70558380230117},{"$f":"V84*'III. GDP shares, 1310-2018'!D86","v":2.389510118195195},{"$f":"W84*'III. GDP shares, 1310-2018'!E86","v":0},{"$f":"X84*'III. GDP shares, 1310-2018'!F86","v":0.2865874428294762},{"$f":"Y84*'III. GDP shares, 1310-2018'!G86","v":0.2355589018995623},{"$f":"Z84*'III. GDP shares, 1310-2018'!H86","v":0},{"$f":"AA84*'III. GDP shares, 1310-2018'!I86","v":0},{"$f":"AB84*'III. GDP shares, 1310-2018'!J86","v":0},null,null,17.05886037541039,14.294614283505636,null,-3.7939273393769364,2.5294351950416956,{"$f":"AVERAGE(BL81:BL87)","v":0.19796190176936435},0.030988301503279154,null,null,17.853070128937464]
[{"$f":"'[1]Nominal weighted'!B85","v":1391},null,10.492168739378059,12.961619662420862,null,6.836822999039556,16.429560638915998,{"$nulls":4},8.33892288713207,29.956042518251497,null,8.23936645957072,{"$f":"AVERAGE(G82:G88)","v":15.459270530635361},{"$nulls":4},-2.115910682724844,17.242084041282936,null,1.1845805484838732,-0.1010660152600835,{"$nulls":5},8.376258056653214,30.2037037037038,null,8.021403547523429,16.328494623655914,{"$nulls":5},{"$f":"AE85*'III. GDP shares, 1310-2018'!C87","v":2.89540764154884},{"$f":"AF85*'III. GDP shares, 1310-2018'!D87","v":2.615775201193733},{"$f":"AG85*'III. GDP shares, 1310-2018'!E87","v":0},{"$f":"AH85*'III. GDP shares, 1310-2018'!F87","v":1.886497146034794},{"$f":"AI85*'III. GDP shares, 1310-2018'!G87","v":5.429946720489463},{"$f":"AJ85*'III. GDP shares, 1310-2018'!H87","v":0},{"$f":"AK85*'III. GDP shares, 1310-2018'!I87","v":0},{"$f":"AL85*'III. GDP shares, 1310-2018'!J87","v":0},null,null,{"$f":"U85*'III. GDP shares, 1310-2018'!C87","v":-0.7314034403142765},{"$f":"V85*'III. GDP shares, 1310-2018'!D87","v":1.493241236059254},{"$f":"W85*'III. GDP shares, 1310-2018'!E87","v":0},{"$f":"X85*'III. GDP shares, 1310-2018'!F87","v":0.2785931178656525},{"$f":"Y85*'III. GDP shares, 1310-2018'!G87","v":-0.03360892052592397},{"$f":"Z85*'III. GDP shares, 1310-2018'!H87","v":0},{"$f":"AA85*'III. GDP shares, 1310-2018'!I87","v":0},{"$f":"AB85*'III. GDP shares, 1310-2018'!J87","v":0},null,null,15.732464982884087,12.827626709266829,null,1.006821993084706,4.05242197294547,{"$f":"AVERAGE(BL82:BL88)","v":1.0290477445965178},0.8827718067079059,null,null,10.698270751047644]
[{"$f":"'[1]Nominal weighted'!B86","v":1392},null,20.750971901893678,49.000417319023796,null,7.301943809143863,16.27312065935393,{"$nulls":4},8.51874782582509,28.387923994805014,null,8.07018980731057,{"$f":"AVERAGE(G83:G89)","v":18.050737426957223},{"$nulls":4},-12.850120838063889,-18.894597213203596,null,0.3887831019672507,1.0540388388539572,{"$nulls":5},7.900851063829788,30.1058201058202,null,7.690726911111113,17.327159498207884,{"$nulls":5},{"$f":"AE86*'III. GDP shares, 1310-2018'!C88","v":2.730315952541697},{"$f":"AF86*'III. GDP shares, 1310-2018'!D88","v":2.6065739041589313},{"$f":"AG86*'III. GDP shares, 1310-2018'!E88","v":0},{"$f":"AH86*'III. GDP shares, 1310-2018'!F88","v":1.810361293162214},{"$f":"AI86*'III. GDP shares, 1310-2018'!G88","v":5.760446634746437},{"$f":"AJ86*'III. GDP shares, 1310-2018'!H88","v":0},{"$f":"AK86*'III. GDP shares, 1310-2018'!I88","v":0},{"$f":"AL86*'III. GDP shares, 1310-2018'!J88","v":0},null,null,{"$f":"U86*'III. GDP shares, 1310-2018'!C88","v":-4.440646916744635},{"$f":"V86*'III. GDP shares, 1310-2018'!D88","v":-1.635901757614279},{"$f":"W86*'III. GDP shares, 1310-2018'!E88","v":0},{"$f":"X86*'III. GDP shares, 1310-2018'!F88","v":0.09151773133696699},{"$f":"Y86*'III. GDP shares, 1310-2018'!G88","v":0.35041718654441356},{"$f":"Z86*'III. GDP shares, 1310-2018'!H88","v":0},{"$f":"AA86*'III. GDP shares, 1310-2018'!I88","v":0},{"$f":"AB86*'III. GDP shares, 1310-2018'!J88","v":0},null,null,15.756139394742247,12.90769778460928,null,-5.634613756477534,-7.57547402761157,{"$f":"AVERAGE(BL83:BL89)","v":0.12185224256866789},0.46890476649236373,null,null,14.299835879313601]
[{"$f":"'[1]Nominal weighted'!B87","v":1393},null,18.56027702653514,43.41325035684484,null,6.416275990214009,19.434005844920275,{"$nulls":4},13.924789747742475,27.22915112168209,null,8.134833949612277,{"$f":"AVERAGE(G84:G90)","v":17.646612419251536},{"$nulls":4},-10.482668330882966,-13.405313848908236,null,0.37474884952958004,-1.1081814721604173,{"$nulls":5},8.077608695652176,30.007936507936602,null,6.7910248397435895,18.325824372759858,{"$nulls":5},{"$f":"AE87*'III. GDP shares, 1310-2018'!C89","v":2.790623451243232},{"$f":"AF87*'III. GDP shares, 1310-2018'!D89","v":2.597377716776126},{"$f":"AG87*'III. GDP shares, 1310-2018'!E89","v":0},{"$f":"AH87*'III. GDP shares, 1310-2018'!F89","v":1.6000173481648152},{"$f":"AI87*'III. GDP shares, 1310-2018'!G89","v":6.090763016231883},{"$f":"AJ87*'III. GDP shares, 1310-2018'!H89","v":0},{"$f":"AK87*'III. GDP shares, 1310-2018'!I89","v":0},{"$f":"AL87*'III. GDP shares, 1310-2018'!J89","v":0},null,null,{"$f":"U87*'III. GDP shares, 1310-2018'!C89","v":-3.6215148787180627},{"$f":"V87*'III. GDP shares, 1310-2018'!D89","v":-1.1603151542371364},{"$f":"W87*'III. GDP shares, 1310-2018'!E89","v":0},{"$f":"X87*'III. GDP shares, 1310-2018'!F89","v":0.08829369271969464},{"$f":"Y87*'III. GDP shares, 1310-2018'!G89","v":-0.3683147119941309},{"$f":"Z87*'III. GDP shares, 1310-2018'!H89","v":0},{"$f":"AA87*'III. GDP shares, 1310-2018'!I89","v":0},{"$f":"AB87*'III. GDP shares, 1310-2018'!J89","v":0},null,null,15.800598604023058,13.078781532416055,null,-5.061851052229636,-6.1553537006055095,{"$f":"AVERAGE(BL84:BL90)","v":-1.645267236121061},-0.616027385632235,null,null,14.38293971363243]
[{"$f":"'[1]Nominal weighted'!B88","v":1394},null,34.647893538412504,26.78930961879565,null,9.32567073325544,6.691092054733421,{"$nulls":4},7.098706957500424,28.57588713846949,null,8.127003075599962,{"$f":"AVERAGE(G85:G91)","v":17.987157446791464},{"$nulls":4},-27.768244415605487,3.120743291257355,null,0.36107855752470347,12.633397192578407,{"$nulls":5},6.8796491228070185,29.910052910053004,null,9.686749290780142,19.324489247311828,{"$nulls":5},{"$f":"AE88*'III. GDP shares, 1310-2018'!C90","v":2.376096903892127},{"$f":"AF88*'III. GDP shares, 1310-2018'!D90","v":2.5881866347902696},{"$f":"AG88*'III. GDP shares, 1310-2018'!E90","v":0},{"$f":"AH88*'III. GDP shares, 1310-2018'!F90","v":2.284327508985086},{"$f":"AI88*'III. GDP shares, 1310-2018'!G90","v":6.420896017782128},{"$f":"AJ88*'III. GDP shares, 1310-2018'!H90","v":0},{"$f":"AK88*'III. GDP shares, 1310-2018'!I90","v":0},{"$f":"AL88*'III. GDP shares, 1310-2018'!J90","v":0},null,null,{"$f":"U88*'III. GDP shares, 1310-2018'!C90","v":-9.590611149587092},{"$f":"V88*'III. GDP shares, 1310-2018'!D90","v":0.27004519521692044},{"$f":"W88*'III. GDP shares, 1310-2018'!E90","v":0},{"$f":"X88*'III. GDP shares, 1310-2018'!F90","v":0.08514948174031924},{"$f":"Y88*'III. GDP shares, 1310-2018'!G90","v":4.197664874178791},{"$f":"Z88*'III. GDP shares, 1310-2018'!H90","v":0},{"$f":"AA88*'III. GDP shares, 1310-2018'!I90","v":0},{"$f":"AB88*'III. GDP shares, 1310-2018'!J90","v":0},null,null,16.450235142738,13.669507065449611,null,-5.037751598451061,-2.9132563435612555,{"$f":"AVERAGE(BL85:BL91)","v":0.34093328507326653},0.5375948748734383,null,null,16.38911722432732]
[{"$f":"'[1]Nominal weighted'!B89","v":1395},null,-19.42848160947388,26.724950155814884,null,8.982352841572993,29.604079340955415,{"$nulls":4},8.461331742069168,31.250870108463427,null,8.374344450350199,{"$f":"AVERAGE(G86:G92)","v":18.20534856165205},{"$nulls":4},25.93158485940198,3.0872191563545215,null,0.347754664567738,-10.628633552424953,{"$nulls":5},6.503103249928099,29.812169312169406,null,9.330107506140731,18.975445788530465,{"$nulls":5},{"$f":"AE89*'III. GDP shares, 1310-2018'!C91","v":2.2454219990466053},{"$f":"AF89*'III. GDP shares, 1310-2018'!D91","v":2.5790006539510397},{"$f":"AG89*'III. GDP shares, 1310-2018'!E91","v":0},{"$f":"AH89*'III. GDP shares, 1310-2018'!F91","v":2.2022028861155456},{"$f":"AI89*'III. GDP shares, 1310-2018'!G91","v":6.303170639060656},{"$f":"AJ89*'III. GDP shares, 1310-2018'!H91","v":0},{"$f":"AK89*'III. GDP shares, 1310-2018'!I91","v":0},{"$f":"AL89*'III. GDP shares, 1310-2018'!J91","v":0},null,null,{"$f":"U89*'III. GDP shares, 1310-2018'!C91","v":8.95377927669976},{"$f":"V89*'III. GDP shares, 1310-2018'!D91","v":0.26707013970561355},{"$f":"W89*'III. GDP shares, 1310-2018'!E91","v":0},{"$f":"X89*'III. GDP shares, 1310-2018'!F91","v":0.08208118989702719},{"$f":"Y89*'III. GDP shares, 1310-2018'!G91","v":-3.5305674337028687},{"$f":"Z89*'III. GDP shares, 1310-2018'!H91","v":0},{"$f":"AA89*'III. GDP shares, 1310-2018'!I91","v":0},{"$f":"AB89*'III. GDP shares, 1310-2018'!J91","v":0},null,null,16.155206464192176,13.329796178173847,null,5.7723631725995315,4.684481281974822,{"$f":"AVERAGE(BL86:BL92)","v":-0.47044125155074273},-0.5796474080752054,null,null,5.245502491328889]
[{"$f":"'[1]Nominal weighted'!B90","v":1396},null,4.462195839670617,28.99633549611727,null,8.4329179563772,17.331259032628363,{"$nulls":4},5.574123260147786,29.12233203603688,null,8.774035123935374,{"$f":"AVERAGE(G87:G93)","v":18.69795109139093},{"$nulls":4},1.9143615373785636,0.7179502181685393,null,0.334760636894971,1.2951432971207415,{"$nulls":5},6.37655737704918,29.714285714285808,null,8.767678593272171,18.626402329749105,{"$nulls":5},{"$f":"AE90*'III. GDP shares, 1310-2018'!C92","v":2.2011168249477198},{"$f":"AF90*'III. GDP shares, 1310-2018'!D92","v":2.56981977001283},{"$f":"AG90*'III. GDP shares, 1310-2018'!E92","v":0},{"$f":"AH90*'III. GDP shares, 1310-2018'!F92","v":2.071310005474401},{"$f":"AI90*'III. GDP shares, 1310-2018'!G92","v":6.185510581028764},{"$f":"AJ90*'III. GDP shares, 1310-2018'!H92","v":0},{"$f":"AK90*'III. GDP shares, 1310-2018'!I92","v":0},{"$f":"AL90*'III. GDP shares, 1310-2018'!J92","v":0},null,null,{"$f":"U90*'III. GDP shares, 1310-2018'!C92","v":0.660816352742785},{"$f":"V90*'III. GDP shares, 1310-2018'!D92","v":0.06209143582568133},{"$f":"W90*'III. GDP shares, 1310-2018'!E92","v":0},{"$f":"X90*'III. GDP shares, 1310-2018'!F92","v":0.07908513630638873},{"$f":"Y90*'III. GDP shares, 1310-2018'!G92","v":0.4300950031286442},{"$f":"Z90*'III. GDP shares, 1310-2018'!H92","v":0},{"$f":"AA90*'III. GDP shares, 1310-2018'!I92","v":0},{"$f":"AB90*'III. GDP shares, 1310-2018'!J92","v":0},null,null,15.871231003589067,13.027757181463713,null,1.2320879280034993,1.0655539223907038,{"$f":"AVERAGE(BL87:BL93)","v":0.47399448479062206},0.47895423617002564,null,null,9.287940919273066]
[{"$f":"'[1]Nominal weighted'!B91","v":1397},null,-19.794076733913148,12.145327360269132,null,9.593037199596678,20.146984556032844,{"$nulls":4},7.517605438044346,26.723387278659384,{"$f":"AVERAGE(E88:E94)","v":17.272677404950464},9.589718220393335,{"$f":"AVERAGE(G88:G94)","v":18.129474907687158},{"$nulls":4},26.495634110962328,17.471074756133078,null,0.3220808922953101,-1.8696256850650985,{"$nulls":5},6.7015573770491805,29.61640211640221,null,9.915118091891987,18.277358870967745,{"$nulls":5},{"$f":"AE91*'III. GDP shares, 1310-2018'!C93","v":2.3126616197086562},{"$f":"AF91*'III. GDP shares, 1310-2018'!D93","v":2.5606439787347437},{"$f":"AG91*'III. GDP shares, 1310-2018'!E93","v":0},{"$f":"AH91*'III. GDP shares, 1310-2018'!F93","v":2.3444858190203157},{"$f":"AI91*'III. GDP shares, 1310-2018'!G93","v":6.067915789336117},{"$f":"AJ91*'III. GDP shares, 1310-2018'!H93","v":0},{"$f":"AK91*'III. GDP shares, 1310-2018'!I93","v":0},{"$f":"AL91*'III. GDP shares, 1310-2018'!J93","v":0},null,null,{"$f":"U91*'III. GDP shares, 1310-2018'!C93","v":9.143462131372031},{"$f":"V91*'III. GDP shares, 1310-2018'!D93","v":1.5105549350824186},{"$f":"W91*'III. GDP shares, 1310-2018'!E93","v":0},{"$f":"X91*'III. GDP shares, 1310-2018'!F93","v":0.07615785082592744},{"$f":"Y91*'III. GDP shares, 1310-2018'!G93","v":-0.6206986082970196},{"$f":"Z91*'III. GDP shares, 1310-2018'!H93","v":0},{"$f":"AA91*'III. GDP shares, 1310-2018'!I93","v":0},{"$f":"AB91*'III. GDP shares, 1310-2018'!J93","v":0},null,null,16.12760911407778,13.285707206799831,null,10.109476308983359,10.604791018581405,{"$f":"AVERAGE(BL88:BL94)","v":-0.04578302303697918},0.651798204654983,null,null,2.1261418541641497]
[{"$f":"'[1]Nominal weighted'!B92","v":1398},null,20.030542231359277,31.686500452378404,null,8.568212622291206,17.956898442940087,{"$nulls":4},0.5565027731369884,26.07848101919821,18.06189611122354,10.05320526544065,{"$f":"AVERAGE(G89:G95)","v":19.629195306058698},{"$nulls":4},-13.18623179680294,-2.1679819338597923,null,0.3097007306362983,-0.028583030753706287,{"$nulls":5},6.844310434556338,29.51851851851861,null,8.877913352927504,17.928315412186382,{"$nulls":5},{"$f":"AE92*'III. GDP shares, 1310-2018'!C94","v":2.3612698223378734},{"$f":"AF92*'III. GDP shares, 1310-2018'!D94","v":2.5514732758805883},{"$f":"AG92*'III. GDP shares, 1310-2018'!E94","v":0},{"$f":"AH92*'III. GDP shares, 1310-2018'!F94","v":2.1011124396465757},{"$f":"AI92*'III. GDP shares, 1310-2018'!G94","v":5.95038620969266},{"$f":"AJ92*'III. GDP shares, 1310-2018'!H94","v":0},{"$f":"AK92*'III. GDP shares, 1310-2018'!I94","v":0},{"$f":"AL92*'III. GDP shares, 1310-2018'!J94","v":0},null,null,{"$f":"U92*'III. GDP shares, 1310-2018'!C94","v":-4.549216682945681},{"$f":"V92*'III. GDP shares, 1310-2018'!D94","v":-0.18739246562678707},{"$f":"W92*'III. GDP shares, 1310-2018'!E94","v":0},{"$f":"X92*'III. GDP shares, 1310-2018'!F94","v":0.07329605863893517},{"$f":"Y92*'III. GDP shares, 1310-2018'!G94","v":-0.009486673349826657},{"$f":"Z92*'III. GDP shares, 1310-2018'!H94","v":0},{"$f":"AA92*'III. GDP shares, 1310-2018'!I94","v":0},{"$f":"AB92*'III. GDP shares, 1310-2018'!J94","v":0},null,null,15.79226442954721,12.964241747557697,null,-4.672799763283359,-3.768274007695035,{"$f":"AVERAGE(BL89:BL95)","v":1.7394316063558561},1.8122393744644956,null,null,14.89817576933368]
[{"$f":"'[1]Nominal weighted'!B93","v":1399},null,0.5405125284439967,34.10065081203801,null,10.099778524240085,19.7213383675261,{"$nulls":4},4.543619711728728,24.637357160819,18.037983669334476,10.150125512893515,{"$f":"AVERAGE(G90:G96)","v":18.470893411935467},{"$nulls":4},5.771550963619496,-4.680015891403002,null,0.297606270324779,-2.050191414121082,{"$nulls":5},6.312063492063492,29.420634920635013,null,10.397384794564864,17.67114695340502,{"$nulls":5},{"$f":"AE93*'III. GDP shares, 1310-2018'!C95","v":2.1770423326736537},{"$f":"AF93*'III. GDP shares, 1310-2018'!D95","v":2.542307657218868},{"$f":"AG93*'III. GDP shares, 1310-2018'!E95","v":0},{"$f":"AH93*'III. GDP shares, 1310-2018'!F95","v":2.4629217789980915},{"$f":"AI93*'III. GDP shares, 1310-2018'!G95","v":5.863406536649992},{"$f":"AJ93*'III. GDP shares, 1310-2018'!H95","v":0},{"$f":"AK93*'III. GDP shares, 1310-2018'!I95","v":0},{"$f":"AL93*'III. GDP shares, 1310-2018'!J95","v":0},null,null,{"$f":"U93*'III. GDP shares, 1310-2018'!C95","v":1.990618565352142},{"$f":"V93*'III. GDP shares, 1310-2018'!D95","v":-0.4044114027014014},{"$f":"W93*'III. GDP shares, 1310-2018'!E95","v":0},{"$f":"X93*'III. GDP shares, 1310-2018'!F95","v":0.0704966661551711},{"$f":"Y93*'III. GDP shares, 1310-2018'!G95","v":-0.6802674308938911},{"$f":"Z93*'III. GDP shares, 1310-2018'!H95","v":0},{"$f":"AA93*'III. GDP shares, 1310-2018'!I95","v":0},{"$f":"AB93*'III. GDP shares, 1310-2018'!J95","v":0},null,null,15.950307540167097,13.045678305540605,null,0.9764363979120206,-0.1652625178949524,{"$f":"AVERAGE(BL90:BL96)","v":0.6936137420873922},1.246801145285217,null,null,9.122522847708316]
[{"$f":"'[1]Nominal weighted'!B94","v":1400},null,32.16465227181105,26.620637055202337,{"$f":"AG94-W94","v":17.272677404950464},12.126057665419747,15.454672558993854,null,{"$f":"AK94-AA94","v":4},null,null,6.286766536200164,26.319111707727245,17.57831406201699,10.743762735597633,{"$f":"AVERAGE(G91:G97)","v":18.032002723747414},{"$nulls":4},-25.9922713194301,2.702114267549078,0.013036880763814094,-3.4094153705666277,1.959305935629802,{"$nulls":5},6.172380952380953,29.322751322751415,{"v":17.285714285714278,"d":"17.29"},8.71664229485312,17.413978494623656,null,4,{"$nulls":3},{"$f":"AE94*'III. GDP shares, 1310-2018'!C96","v":2.0835638263571776},{"$f":"AF94*'III. GDP shares, 1310-2018'!D96","v":2.479929604499613},{"$f":"AG94*'III. GDP shares, 1310-2018'!E96","v":0.363146196947638},{"$f":"AH94*'III. GDP shares, 1310-2018'!F96","v":2.0232158332149224},{"$f":"AI94*'III. GDP shares, 1310-2018'!G96","v":5.655120239300951},{"$f":"AJ94*'III. GDP shares, 1310-2018'!H96","v":0},{"$f":"AK94*'III. GDP shares, 1310-2018'!I96","v":0},{"$f":"AL94*'III. GDP shares, 1310-2018'!J96","v":0},null,null,{"$f":"U94*'III. GDP shares, 1310-2018'!C96","v":-8.774013902226043},{"$f":"V94*'III. GDP shares, 1310-2018'!D96","v":0.22852743567880765},{"$f":"W94*'III. GDP shares, 1310-2018'!E96","v":2.7388475773613524E-4},{"$f":"X94*'III. GDP shares, 1310-2018'!F96","v":-0.7913578332576234},{"$f":"Y94*'III. GDP shares, 1310-2018'!G96","v":0.636276808024279},{"$f":"Z94*'III. GDP shares, 1310-2018'!H96","v":0},{"$f":"AA94*'III. GDP shares, 1310-2018'!I96","v":0},{"$f":"AB94*'III. GDP shares, 1310-2018'!J96","v":0},null,null,13.81857789172057,12.604975700320303,null,-8.700293607022845,-4.945445921210807,{"$f":"AVERAGE(BL91:BL97)","v":-0.06963667661406017},0.4683512631118449,null,null,19.053867138522342]
[{"$f":"'[1]Nominal weighted'!B95","v":1401},null,-14.079825115938998,22.274965802567404,18.851114817496615,12.570080048586629,17.18913484333422,null,4,null,null,10.330340610818206,30.358833571209892,17.278065971554177,11.28809422546685,{"$f":"AVERAGE(G92:G98)","v":17.44195976229522},{"$nulls":4},20.087523528637412,6.949901922300413,-1.5368291032109107,0.5808876852916639,-0.03232480749192111,{"$nulls":5},6.007698412698413,29.224867724867817,{"v":17.314285714285706,"d":"17.31"},13.150967733878293,17.156810035842298,null,4,{"$nulls":3},{"$f":"AE95*'III. GDP shares, 1310-2018'!C97","v":2.027423152853881},{"$f":"AF95*'III. GDP shares, 1310-2018'!D97","v":2.4709808654687246},{"$f":"AG95*'III. GDP shares, 1310-2018'!E97","v":0.36364778137491477},{"$f":"AH95*'III. GDP shares, 1310-2018'!F97","v":3.0552040399417857},{"$f":"AI95*'III. GDP shares, 1310-2018'!G97","v":5.570094645181789},{"$f":"AJ95*'III. GDP shares, 1310-2018'!H97","v":0},{"$f":"AK95*'III. GDP shares, 1310-2018'!I97","v":0},{"$f":"AL95*'III. GDP shares, 1310-2018'!J97","v":0},null,null,{"$f":"U95*'III. GDP shares, 1310-2018'!C97","v":6.778953850175738},{"$f":"V95*'III. GDP shares, 1310-2018'!D97","v":0.5876185592544474},{"$f":"W95*'III. GDP shares, 1310-2018'!E97","v":-0.032277652278426855},{"$f":"X95*'III. GDP shares, 1310-2018'!F97","v":0.1349505556373338},{"$f":"Y95*'III. GDP shares, 1310-2018'!G97","v":-0.010494505490305877},{"$f":"Z95*'III. GDP shares, 1310-2018'!H97","v":0},{"$f":"AA95*'III. GDP shares, 1310-2018'!I97","v":0},{"$f":"AB95*'III. GDP shares, 1310-2018'!J97","v":0},null,null,14.47577160359542,13.487350484821095,null,7.458750807298786,5.209831845105332,{"$f":"AVERAGE(BL92:BL98)","v":-1.6936679016991096},-1.403419090785643,null,null,4.145237371308032]
[{"$f":"'[1]Nominal weighted'!B96","v":1402},null,8.481336960668296,16.637083147160432,17.990158785556346,9.660794573743061,21.49596608209283,null,4,null,null,5.989621528418014,30.20009981384964,18.90074287889018,11.975144874672718,{"$f":"AVERAGE(G93:G99)","v":18.142139719547007},{"$nulls":4},-2.4633210876524223,12.489900979823787,-0.6473016426992106,-1.1508853558408907,-4.596324505031898,{"$nulls":5},6.018015873015874,29.12698412698422,{"v":17.342857142857135,"d":"17.34"},8.50990921790217,16.899641577060933,null,4,{"$nulls":3},{"$f":"AE96*'III. GDP shares, 1310-2018'!C98","v":2.0303543116992397},{"$f":"AF96*'III. GDP shares, 1310-2018'!D98","v":2.4620369793696506},{"$f":"AG96*'III. GDP shares, 1310-2018'!E98","v":0.36414909379123933},{"$f":"AH96*'III. GDP shares, 1310-2018'!F98","v":1.9787748921338355},{"$f":"AI96*'III. GDP shares, 1310-2018'!G98","v":5.4851151607334145},{"$f":"AJ96*'III. GDP shares, 1310-2018'!H98","v":0},{"$f":"AK96*'III. GDP shares, 1310-2018'!I98","v":0},{"$f":"AL96*'III. GDP shares, 1310-2018'!J98","v":0},null,null,{"$f":"U96*'III. GDP shares, 1310-2018'!C98","v":-0.8310736789247355},{"$f":"V96*'III. GDP shares, 1310-2018'!D98","v":1.0557426044155052},{"$f":"W96*'III. GDP shares, 1310-2018'!E98","v":-0.013591434482615222},{"$f":"X96*'III. GDP shares, 1310-2018'!F98","v":-0.26761073326982815},{"$f":"Y96*'III. GDP shares, 1310-2018'!G98","v":-1.4918286350180425},{"$f":"Z96*'III. GDP shares, 1310-2018'!H98","v":0},{"$f":"AA96*'III. GDP shares, 1310-2018'!I98","v":0},{"$f":"AB96*'III. GDP shares, 1310-2018'!J98","v":0},null,null,13.649567989636722,12.32043043772738,null,-1.5483618772797163,0.7264136777198729,{"$f":"AVERAGE(BL93:BL99)","v":-0.48713876692584546},-0.8864622930567727,null,null,12.46249794005295]
[{"$f":"'[1]Nominal weighted'!B97","v":1403},null,16.66422361097068,40.76861732447502,16.199305240064533,12.588378515306017,14.259024215311957,null,4,null,null,7.50047880653065,30.383276203280523,18.621348405175855,12.04467876325768,{"$f":"AVERAGE(G94:G100)","v":18.08466743058056},{"$nulls":4},-10.685890277637347,-11.7395167953744,-0.7028766686359689,-1.1731414254344055,2.383448902967615,{"$nulls":5},5.978333333333334,29.02910052910062,{"v":15.496428571428563,"d":"15.50"},11.415237089871612,16.64247311827957,null,4,{"$nulls":3},{"$f":"AE97*'III. GDP shares, 1310-2018'!C99","v":2.016419486473514},{"$f":"AF97*'III. GDP shares, 1310-2018'!D99","v":2.4530979422558183},{"$f":"AG97*'III. GDP shares, 1310-2018'!E99","v":0.32529131028760755},{"$f":"AH97*'III. GDP shares, 1310-2018'!F99","v":2.656713961120196},{"$f":"AI97*'III. GDP shares, 1310-2018'!G99","v":5.400181748457849},{"$f":"AJ97*'III. GDP shares, 1310-2018'!H99","v":0},{"$f":"AK97*'III. GDP shares, 1310-2018'!I99","v":0},{"$f":"AL97*'III. GDP shares, 1310-2018'!J99","v":0},null,null,{"$f":"U97*'III. GDP shares, 1310-2018'!C99","v":-3.604221475240448},{"$f":"V97*'III. GDP shares, 1310-2018'!D99","v":-0.9920453603080612},{"$f":"W97*'III. GDP shares, 1310-2018'!E99","v":-0.014754346232572307},{"$f":"X97*'III. GDP shares, 1310-2018'!F99","v":-0.27302991420873646},{"$f":"Y97*'III. GDP shares, 1310-2018'!G99","v":0.7733860930831506},{"$f":"Z97*'III. GDP shares, 1310-2018'!H99","v":0},{"$f":"AA97*'III. GDP shares, 1310-2018'!I99","v":0},{"$f":"AB97*'III. GDP shares, 1310-2018'!J99","v":0},null,null,13.760262107002283,12.851704448594987,null,-4.110665002906667,-4.383595252822902,{"$f":"AVERAGE(BL94:BL100)","v":-0.9756379964969216},-1.2699910279517772,null,null,13.517226148937773]
[{"$f":"'[1]Nominal weighted'!B98","v":1404},null,8.510941788413142,40.423380404647645,16.07707360970292,13.403357628681205,16.016683825867467,null,4,null,null,5.126925347882887,29.617697285300945,18.01256376205873,11.990273389255702,{"$f":"AVERAGE(G95:G101)","v":18.308070467474803},{"$nulls":4},-1.856692704164057,-11.492163473430622,0.3229263902970699,-1.7160029993363881,2.2539254931289525,{"$nulls":5},6.654249084249085,28.931216931217023,{"v":16.39999999999999,"d":"16.40"},11.687354629344817,18.27060931899642,null,4,{"$nulls":3},{"$f":"AE98*'III. GDP shares, 1310-2018'!C100","v":2.243789447232645},{"$f":"AF98*'III. GDP shares, 1310-2018'!D100","v":2.4441637501849334},{"$f":"AG98*'III. GDP shares, 1310-2018'!E100","v":0.3441652193678325},{"$f":"AH98*'III. GDP shares, 1310-2018'!F100","v":2.722475152126139},{"$f":"AI98*'III. GDP shares, 1310-2018'!G100","v":5.926875873488206},{"$f":"AJ98*'III. GDP shares, 1310-2018'!H100","v":0},{"$f":"AK98*'III. GDP shares, 1310-2018'!I100","v":0},{"$f":"AL98*'III. GDP shares, 1310-2018'!J100","v":0},null,null,{"$f":"U98*'III. GDP shares, 1310-2018'!C100","v":-0.6260702663232631},{"$f":"V98*'III. GDP shares, 1310-2018'!D100","v":-0.9708796363367117},{"$f":"W98*'III. GDP shares, 1310-2018'!E100","v":0.006776831216844721},{"$f":"X98*'III. GDP shares, 1310-2018'!F100","v":-0.3997290811162063},{"$f":"Y98*'III. GDP shares, 1310-2018'!G100","v":0.7311598859473492},{"$f":"Z98*'III. GDP shares, 1310-2018'!H100","v":0},{"$f":"AA98*'III. GDP shares, 1310-2018'!I100","v":0},{"$f":"AB98*'III. GDP shares, 1310-2018'!J100","v":0},null,null,14.323904993967892,13.681469442399756,null,-1.258742266611987,-2.497601458701009,{"$f":"AVERAGE(BL95:BL101)","v":-1.678756189252046E-4},-0.4970189956088876,null,null,11.5251683224901]
[{"$f":"'[1]Nominal weighted'!B99","v":1405},null,-10.354491345442069,30.575364150856654,27.0141274155702,13.377567166732279,22.85815814370261,null,4,null,null,4.511484606166174,29.15868780998995,17.544330428372408,11.69023859761971,{"$f":"AVERAGE(G96:G102)","v":18.14137483536732},{"$nulls":4},17.909656180606905,-1.7420308175232293,-10.585555986998779,-1.7280657517807063,-4.601885742268914,{"$nulls":5},7.555164835164836,28.833333333333425,{"v":16.42857142857142,"d":"16.43"},11.649501414951573,18.256272401433698,null,4,{"$nulls":3},{"$f":"AE99*'III. GDP shares, 1310-2018'!C101","v":2.5468848600290404},{"$f":"AF99*'III. GDP shares, 1310-2018'!D101","v":2.4352343992189747},{"$f":"AG99*'III. GDP shares, 1310-2018'!E101","v":0.3446714027567189},{"$f":"AH99*'III. GDP shares, 1310-2018'!F101","v":2.716078550620003},{"$f":"AI99*'III. GDP shares, 1310-2018'!G101","v":5.920620547320751},{"$f":"AJ99*'III. GDP shares, 1310-2018'!H101","v":0},{"$f":"AK99*'III. GDP shares, 1310-2018'!I101","v":0},{"$f":"AL99*'III. GDP shares, 1310-2018'!J101","v":0},null,null,{"$f":"U99*'III. GDP shares, 1310-2018'!C101","v":6.037437060593009},{"$f":"V99*'III. GDP shares, 1310-2018'!D101","v":-0.14713017472828116},{"$f":"W99*'III. GDP shares, 1310-2018'!E101","v":-0.22208494797383121},{"$f":"X99*'III. GDP shares, 1310-2018'!F101","v":-0.40289812888031806},{"$f":"Y99*'III. GDP shares, 1310-2018'!G101","v":-1.4924196288810885},{"$f":"Z99*'III. GDP shares, 1310-2018'!H101","v":0},{"$f":"AA99*'III. GDP shares, 1310-2018'!I101","v":0},{"$f":"AB99*'III. GDP shares, 1310-2018'!J101","v":0},null,null,14.453807235575823,13.963489759945489,null,3.7729041801294896,-0.1495764235929446,{"$f":"AVERAGE(BL96:BL102)","v":0.3048684409064294},-0.2124498680800808,null,null,7.608221005868741]
[{"$f":"'[1]Nominal weighted'!B100","v":1406},null,11.116513475232445,35.38288553805415,16.944981562889886,10.586515744334816,19.319032344760984,null,4,null,null,4.550281675397431,29.672029514660725,17.41368500728448,12.07862391569502,{"$f":"AVERAGE(G97:G103)","v":17.884026278056517},{"$nulls":4},-3.2457915227663046,-6.6474358026043205,-1.5378387057470386,-1.7416554187922448,-1.0770968608900076,{"$nulls":5},7.870721952466139,28.735449735449826,{"v":15.407142857142848,"d":"15.41"},8.844860325542571,18.241935483870975,null,4,{"$nulls":3},{"$f":"AE100*'III. GDP shares, 1310-2018'!C102","v":2.652542127843446},{"$f":"AF100*'III. GDP shares, 1310-2018'!D102","v":2.4263098854241862},{"$f":"AG100*'III. GDP shares, 1310-2018'!E102","v":0.3231542803169819},{"$f":"AH100*'III. GDP shares, 1310-2018'!F102","v":2.064014275264506},{"$f":"AI100*'III. GDP shares, 1310-2018'!G102","v":5.914368609762783},{"$f":"AJ100*'III. GDP shares, 1310-2018'!H102","v":0},{"$f":"AK100*'III. GDP shares, 1310-2018'!I102","v":0},{"$f":"AL100*'III. GDP shares, 1310-2018'!J102","v":0},null,null,{"$f":"U100*'III. GDP shares, 1310-2018'!C102","v":-1.0938766233048163},{"$f":"V100*'III. GDP shares, 1310-2018'!D102","v":-0.5612836878861901},{"$f":"W100*'III. GDP shares, 1310-2018'!E102","v":-0.03225511470927199},{"$f":"X100*'III. GDP shares, 1310-2018'!F102","v":-0.40642831143390146},{"$f":"Y100*'III. GDP shares, 1310-2018'!G102","v":-0.3492144717513326},{"$f":"Z100*'III. GDP shares, 1310-2018'!H102","v":0},{"$f":"AA100*'III. GDP shares, 1310-2018'!I102","v":0},{"$f":"AB100*'III. GDP shares, 1310-2018'!J102","v":0},null,null,13.85001839241206,13.380389178611903,null,-2.443058209085512,-2.849963662159983,{"$f":"AVERAGE(BL97:BL103)","v":0.4081574732198974},-0.24194416896613322,null,null,12.83585381438704]
[{"$f":"'[1]Nominal weighted'!B101","v":1407},null,15.54977806127671,21.26158462934531,13.011184903130609,11.745220047405914,17.018493817253553,null,4,null,null,5.014046614308393,26.658004103494303,18.155585497770517,12.108616169651727,{"$f":"AVERAGE(G98:G104)","v":18.61868859648619},{"$nulls":4},-7.538498991509268,7.375981508220917,3.037029382583668,-1.7568251224029108,1.2091047490546962,{"$nulls":5},8.011279069767442,28.63756613756623,{"v":16.048214285714277,"d":"16.05"},9.988394925003004,18.22759856630825,null,4,{"$nulls":3},{"$f":"AE101*'III. GDP shares, 1310-2018'!C103","v":2.6991807253579814},{"$f":"AF101*'III. GDP shares, 1310-2018'!D103","v":2.417390204871075},{"$f":"AG101*'III. GDP shares, 1310-2018'!E103","v":0.33650916874976927},{"$f":"AH101*'III. GDP shares, 1310-2018'!F103","v":2.332940163040581},{"$f":"AI101*'III. GDP shares, 1310-2018'!G103","v":5.908120058061552},{"$f":"AJ101*'III. GDP shares, 1310-2018'!H103","v":0},{"$f":"AK101*'III. GDP shares, 1310-2018'!I103","v":0},{"$f":"AL101*'III. GDP shares, 1310-2018'!J103","v":0},null,null,{"$f":"U101*'III. GDP shares, 1310-2018'!C103","v":-2.5398904468076493},{"$f":"V101*'III. GDP shares, 1310-2018'!D103","v":0.6226306161504954},{"$f":"W101*'III. GDP shares, 1310-2018'!E103","v":0.06368236458006445},{"$f":"X101*'III. GDP shares, 1310-2018'!F103","v":-0.4103329832536835},{"$f":"Y101*'III. GDP shares, 1310-2018'!G103","v":0.39190768845390234},{"$f":"Z101*'III. GDP shares, 1310-2018'!H103","v":0},{"$f":"AA101*'III. GDP shares, 1310-2018'!I103","v":0},{"$f":"AB101*'III. GDP shares, 1310-2018'!J103","v":0},null,null,14.1521754973932,13.694140320080958,null,-1.8720027608768703,0.46535830518942045,{"$f":"AVERAGE(BL98:BL104)","v":0.3495220218569693},0.06683909084919966,null,null,13.77138349223725]
[{"$f":"'[1]Nominal weighted'!B102","v":1408},null,-18.38791030795598,19.061899475390433,15.573481481692362,10.469836507134666,16.02226541858184,null,4,null,null,3.1813711175396833,26.893669611225928,17.706279404866667,11.750493546053269,{"$f":"AVERAGE(G99:G105)","v":19.052563272093728},{"$nulls":4},25.17313170160658,9.477783064292197,0.9408042325933428,-1.7736365396209084,2.1909962301636865,{"$nulls":5},6.785221393650598,28.53968253968263,{"v":16.514285714285705,"d":"16.51"},8.696199967513758,18.213261648745526,null,4,{"$nulls":3},{"$f":"AE102*'III. GDP shares, 1310-2018'!C104","v":2.2854753518348896},{"$f":"AF102*'III. GDP shares, 1310-2018'!D104","v":2.408475353634401},{"$f":"AG102*'III. GDP shares, 1310-2018'!E104","v":0.346188308568687},{"$f":"AH102*'III. GDP shares, 1310-2018'!F104","v":2.0329328669995177},{"$f":"AI102*'III. GDP shares, 1310-2018'!G104","v":5.901874889467291},{"$f":"AJ102*'III. GDP shares, 1310-2018'!H104","v":0},{"$f":"AK102*'III. GDP shares, 1310-2018'!I104","v":0},{"$f":"AL102*'III. GDP shares, 1310-2018'!J104","v":0},null,null,{"$f":"U102*'III. GDP shares, 1310-2018'!C104","v":8.479100193599066},{"$f":"V102*'III. GDP shares, 1310-2018'!D104","v":0.7998339464954374},{"$f":"W102*'III. GDP shares, 1310-2018'!E104","v":0.019722041365313647},{"$f":"X102*'III. GDP shares, 1310-2018'!F104","v":-0.4146275417971445},{"$f":"Y102*'III. GDP shares, 1310-2018'!G104","v":0.7099763833135954},{"$f":"Z102*'III. GDP shares, 1310-2018'!H104","v":0},{"$f":"AA102*'III. GDP shares, 1310-2018'!I104","v":0},{"$f":"AB102*'III. GDP shares, 1310-2018'!J104","v":0},null,null,13.791441877313035,12.974946770504786,null,9.594005022976269,7.201815737806979,{"$f":"AVERAGE(BL99:BL105)","v":0.8091365724315056},0.3607689860693207,null,null,1.7723003403895543]
[{"$f":"'[1]Nominal weighted'!B103","v":1409},null,8.752916445287097,20.230475079855847,17.075640837940853,12.37949180027025,19.69452618091721,null,4,null,null,8.530761399832084,27.615622356980534,15.683433172675644,11.226848049226488,{"$f":"AVERAGE(G100:G106)","v":18.38258335656563},{"$nulls":4},-1.7910102033808533,8.211323861943185,-0.5327836950837195,-1.792160656156669,-1.4956014497344083,{"$nulls":5},6.961906241906243,28.441798941799032,{"v":16.542857142857134,"d":"16.54"},10.58733114411358,18.198924731182803,null,4,{"$nulls":3},{"$f":"AE103*'III. GDP shares, 1310-2018'!C105","v":2.344353706600543},{"$f":"AF103*'III. GDP shares, 1310-2018'!D105","v":2.399565327793174},{"$f":"AG103*'III. GDP shares, 1310-2018'!E105","v":0.34669339646282077},{"$f":"AH103*'III. GDP shares, 1310-2018'!F105","v":2.477222927884098},{"$f":"AI103*'III. GDP shares, 1310-2018'!G105","v":5.895633101233207},{"$f":"AJ103*'III. GDP shares, 1310-2018'!H105","v":0},{"$f":"AK103*'III. GDP shares, 1310-2018'!I105","v":0},{"$f":"AL103*'III. GDP shares, 1310-2018'!J105","v":0},null,null,{"$f":"U103*'III. GDP shares, 1310-2018'!C105","v":-0.6031051357143284},{"$f":"V103*'III. GDP shares, 1310-2018'!D105","v":0.6927694016373388},{"$f":"W103*'III. GDP shares, 1310-2018'!E105","v":-0.011165700533679677},{"$f":"X103*'III. GDP shares, 1310-2018'!F105","v":-0.4193296126712216},{"$f":"Y103*'III. GDP shares, 1310-2018'!G105","v":-0.48450760380355024},{"$f":"Z103*'III. GDP shares, 1310-2018'!H105","v":0},{"$f":"AA103*'III. GDP shares, 1310-2018'!I105","v":0},{"$f":"AB103*'III. GDP shares, 1310-2018'!J105","v":0},null,null,14.122136366976465,13.463468459973843,null,-0.8253386510854412,0.519953571517507,{"$f":"AVERAGE(BL100:BL106)","v":-0.7441579056122459},-0.28574396620259906,null,null,12.58201118490345]
[{"$f":"'[1]Nominal weighted'!B104","v":1410},null,19.910578183347408,19.670439446310105,21.39260867346678,12.79832429300296,19.401660444319685,null,4,null,null,11.377369430201641,26.490852117821028,15.456592841020768,11.040186875528757,{"$f":"AVERAGE(G101:G107)","v":18.18349056021314},{"$nulls":4},-12.933306675785202,8.673475897605329,-3.821180102038217,-1.8124786596601594,-1.2170726306996074,{"$nulls":5},6.9772715075622065,28.343915343915434,{"v":17.571428571428562,"d":"17.57"},10.9858456333428,18.184587813620077,null,4,{"$nulls":3},{"$f":"AE104*'III. GDP shares, 1310-2018'!C106","v":2.348892109725173},{"$f":"AF104*'III. GDP shares, 1310-2018'!D106","v":2.390660123430648},{"$f":"AG104*'III. GDP shares, 1310-2018'!E106","v":0.3681498272223301},{"$f":"AH104*'III. GDP shares, 1310-2018'!F106","v":2.5727442226061616},{"$f":"AI104*'III. GDP shares, 1310-2018'!G106","v":5.889394690615479},{"$f":"AJ104*'III. GDP shares, 1310-2018'!H106","v":0},{"$f":"AK104*'III. GDP shares, 1310-2018'!I106","v":0},{"$f":"AL104*'III. GDP shares, 1310-2018'!J106","v":0},null,null,{"$f":"U104*'III. GDP shares, 1310-2018'!C106","v":-4.353985934255537},{"$f":"V104*'III. GDP shares, 1310-2018'!D106","v":0.7315620551482187},{"$f":"W104*'III. GDP shares, 1310-2018'!E106","v":-0.08005989886549132},{"$f":"X104*'III. GDP shares, 1310-2018'!F106","v":-0.4244592683957778},{"$f":"Y104*'III. GDP shares, 1310-2018'!G106","v":-0.3941701160785758},{"$f":"Z104*'III. GDP shares, 1310-2018'!H106","v":0},{"$f":"AA104*'III. GDP shares, 1310-2018'!I106","v":0},{"$f":"AB104*'III. GDP shares, 1310-2018'!J106","v":0},null,null,14.343841478311512,13.569840973599792,null,-4.521113162447163,-2.222112434115572,{"$f":"AVERAGE(BL101:BL107)","v":-1.5283830607175537},-0.5115496606668047,null,null,16.431856067764524]
[{"$f":"'[1]Nominal weighted'!B105","v":1411},null,-4.317786688967829,42.073038958768976,12.931930959375968,10.896499263491998,19.053806555120214,null,4,null,null,6.741393538740278,27.868016329958703,15.697466345933009,10.626302441515373,{"$f":"AVERAGE(G102:G108)","v":18.320654334505328},null,5.518096747115636,null,null,11.216715864814814,-13.827007212737144,3.128069040624023,-1.8346829944396459,-0.883555659062861,{"$nulls":5},6.898929175846985,28.246031746031836,{"v":16.05999999999999,"d":"16.06"},9.061816269052352,18.170250896057354,null,4,{"$nulls":3},{"$f":"AE105*'III. GDP shares, 1310-2018'!C107","v":2.3218900132725064},{"$f":"AF105*'III. GDP shares, 1310-2018'!D107","v":2.3817597366343146},{"$f":"AG105*'III. GDP shares, 1310-2018'!E107","v":0.3363919400875156},{"$f":"AH105*'III. GDP shares, 1310-2018'!F107","v":2.1240383276196475},{"$f":"AI105*'III. GDP shares, 1310-2018'!G107","v":5.883159654873259},{"$f":"AJ105*'III. GDP shares, 1310-2018'!H107","v":0},{"$f":"AK105*'III. GDP shares, 1310-2018'!I107","v":0},{"$f":"AL105*'III. GDP shares, 1310-2018'!J107","v":0},null,null,{"$f":"U105*'III. GDP shares, 1310-2018'!C107","v":3.7750757957348315},{"$f":"V105*'III. GDP shares, 1310-2018'!D107","v":-1.1659198486200153},{"$f":"W105*'III. GDP shares, 1310-2018'!E107","v":0.06552037442734802},{"$f":"X105*'III. GDP shares, 1310-2018'!F107","v":-0.43003928611204545},{"$f":"Y105*'III. GDP shares, 1310-2018'!G107","v":-0.28607744802035057},{"$f":"Z105*'III. GDP shares, 1310-2018'!H107","v":0},{"$f":"AA105*'III. GDP shares, 1310-2018'!I107","v":0},{"$f":"AB105*'III. GDP shares, 1310-2018'!J107","v":0},null,null,13.739504681164751,13.047239672487244,null,1.9585595874097683,-0.4400921921601627,{"$f":"AVERAGE(BL102:BL108)","v":-0.1414784903316097},-0.2890804482823945,null,null,7.541000499823145]
[{"$f":"'[1]Nominal weighted'!B106","v":1412},null,27.09124063060473,35.62903337113893,12.854203790233026,9.712048688944806,18.168298735005916,null,4,null,null,9.13505856162289,28.952089008772898,15.38638640139665,10.334527285505386,{"$f":"AVERAGE(G103:G109)","v":18.42555109487471},null,6.006028204828916,null,null,-18.976064972929073,-7.480885222990693,3.7743676383383926,-0.6808681333892516,-0.012384756511285865,{"$nulls":5},8.115175657675659,28.148148148148238,{"v":16.62857142857142,"d":"16.63"},9.031180555555554,18.15591397849463,null,4,{"$nulls":3},{"$f":"AE106*'III. GDP shares, 1310-2018'!C108","v":2.730488958957621},{"$f":"AF106*'III. GDP shares, 1310-2018'!D108","v":2.3728641634958967},{"$f":"AG106*'III. GDP shares, 1310-2018'!E108","v":0.3482070211240905},{"$f":"AH106*'III. GDP shares, 1310-2018'!F108","v":2.1187272508134956},{"$f":"AI106*'III. GDP shares, 1310-2018'!G108","v":5.876927991268659},{"$f":"AJ106*'III. GDP shares, 1310-2018'!H108","v":0},{"$f":"AK106*'III. GDP shares, 1310-2018'!I108","v":0},{"$f":"AL106*'III. GDP shares, 1310-2018'!J108","v":0},null,null,{"$f":"U106*'III. GDP shares, 1310-2018'!C108","v":-6.384820006211151},{"$f":"V106*'III. GDP shares, 1310-2018'!D108","v":-0.6306320530726781},{"$f":"W106*'III. GDP shares, 1310-2018'!E108","v":0.07903633319425143},{"$f":"X106*'III. GDP shares, 1310-2018'!F108","v":-0.15973259083331273},{"$f":"Y106*'III. GDP shares, 1310-2018'!G108","v":-0.004008849253881378},{"$f":"Z106*'III. GDP shares, 1310-2018'!H108","v":0},{"$f":"AA106*'III. GDP shares, 1310-2018'!I108","v":0},{"$f":"AB106*'III. GDP shares, 1310-2018'!J108","v":0},null,null,14.013164961407583,13.447215385659764,null,-7.100157166176772,-4.675167089496382,{"$f":"AVERAGE(BL103:BL109)","v":-1.0196433262519273},-1.063013105367139,null,null,17.54387633526796]
[{"$f":"'[1]Nominal weighted'!B107","v":1413},null,31.04276968781936,27.509493863937603,15.357099241305772,9.279887528450702,17.92538277029356,null,4,null,null,4.313829273972237,28.2554507866374,15.220705168218236,9.828943013158957,{"$f":"AVERAGE(G104:G110)","v":18.29312756885965},null,6.182345910131154,null,null,-23.537694236954433,0.5407706863270363,1.3000436158370756,-0.6723319728951478,0.21619429063834938,{"$nulls":5},7.505075450864926,28.05026455026464,{"v":16.657142857142848,"d":"16.66"},8.607555555555555,18.14157706093191,null,4,{"$nulls":3},{"$f":"AE107*'III. GDP shares, 1310-2018'!C109","v":2.5245276824173537},{"$f":"AF107*'III. GDP shares, 1310-2018'!D109","v":2.363973400111344},{"$f":"AG107*'III. GDP shares, 1310-2018'!E109","v":0.3487110170759729},{"$f":"AH107*'III. GDP shares, 1310-2018'!F109","v":2.0211253415758432},{"$f":"AI107*'III. GDP shares, 1310-2018'!G109","v":5.8706996970667555},{"$f":"AJ107*'III. GDP shares, 1310-2018'!H109","v":0},{"$f":"AK107*'III. GDP shares, 1310-2018'!I109","v":0},{"$f":"AL107*'III. GDP shares, 1310-2018'!J109","v":0},null,null,{"$f":"U107*'III. GDP shares, 1310-2018'!C109","v":-7.917516761889291},{"$f":"V107*'III. GDP shares, 1310-2018'!D109","v":0.045574169746110595},{"$f":"W107*'III. GDP shares, 1310-2018'!E109","v":0.027215923847784786},{"$f":"X107*'III. GDP shares, 1310-2018'!F109","v":-0.1578691162199953},{"$f":"Y107*'III. GDP shares, 1310-2018'!G109","v":0.06996148969272256},{"$f":"Z107*'III. GDP shares, 1310-2018'!H109","v":0},{"$f":"AA107*'III. GDP shares, 1310-2018'!I109","v":0},{"$f":"AB107*'III. GDP shares, 1310-2018'!J109","v":0},null,null,13.826935912459978,13.12903713824727,null,-7.932634294822668,-4.430603523409424,{"$f":"AVERAGE(BL104:BL110)","v":0.7234669631717701},-0.1262233769438524,null,null,18.743272202704706]
[{"$f":"'[1]Nominal weighted'!B108","v":1414},null,-16.902053178952833,30.901734114309043,14.697299437516296,8.848029009312208,17.97864023729885,null,14.626677229809454,null,null,3.810098390583257,28.119261718011035,16.31278410701573,9.322562150832466,{"$f":"AVERAGE(G105:G111)","v":17.156536837725504},null,6.713511152298374,null,null,24.238970842507552,-2.949353161928002,1.9884148481979804,-0.6640984537566534,0.14859990607033366,null,-10.626677229809454,{"$nulls":3},7.336917663554719,27.95238095238104,{"v":16.685714285714276,"d":"16.69"},8.183930555555555,18.127240143369185,null,4,{"$nulls":3},{"$f":"AE108*'III. GDP shares, 1310-2018'!C110","v":2.467296406947143},{"$f":"AF108*'III. GDP shares, 1310-2018'!D110","v":2.3550874425808277},{"$f":"AG108*'III. GDP shares, 1310-2018'!E110","v":0.3492147405955708},{"$f":"AH108*'III. GDP shares, 1310-2018'!F110","v":1.9233472023207308},{"$f":"AI108*'III. GDP shares, 1310-2018'!G110","v":5.864474769535578},{"$f":"AJ108*'III. GDP shares, 1310-2018'!H110","v":0},{"$f":"AK108*'III. GDP shares, 1310-2018'!I110","v":0},{"$f":"AL108*'III. GDP shares, 1310-2018'!J110","v":0},null,null,{"$f":"U108*'III. GDP shares, 1310-2018'!C110","v":8.151205780172296},{"$f":"V108*'III. GDP shares, 1310-2018'!D110","v":-0.24849348637691},{"$f":"W108*'III. GDP shares, 1310-2018'!E110","v":0.04161546599202805},{"$f":"X108*'III. GDP shares, 1310-2018'!F110","v":-0.1560731600088309},{"$f":"Y108*'III. GDP shares, 1310-2018'!G110","v":0.04807463204615858},{"$f":"Z108*'III. GDP shares, 1310-2018'!H110","v":0},{"$f":"AA108*'III. GDP shares, 1310-2018'!I110","v":0},{"$f":"AB108*'III. GDP shares, 1310-2018'!J110","v":0},null,null,13.714363933429132,12.959420561979849,null,7.836329231824741,2.0226427918802927,{"$f":"AVERAGE(BL105:BL111)","v":1.2463479296772049},-0.07133423948618721,null,null,2.519510401197371]
[{"$f":"'[1]Nominal weighted'!B109","v":1415},null,-1.632255147777717,26.650408227089773,13.395921869937851,8.427410415064788,16.756542741167515,null,7.415520203992964,null,null,7.904780167038423,27.912827993795855,16.93308096002817,9.084157177940847,{"$f":"AVERAGE(G106:G112)","v":18.05528688065859},null,6.477934779462638,null,null,8.89858381910639,1.20408912740767,3.3183638443478527,-0.6561542422252822,1.3563604846389443,null,-3.4155202039929637,{"$nulls":3},7.266328671328673,27.854497354497443,{"v":16.714285714285705,"d":"16.71"},7.7712561728395055,18.11290322580646,null,4,{"$nulls":3},{"$f":"AE109*'III. GDP shares, 1310-2018'!C111","v":2.4428981299075985},{"$f":"AF109*'III. GDP shares, 1310-2018'!D111","v":2.346206287008732},{"$f":"AG109*'III. GDP shares, 1310-2018'!E111","v":0.3497181919037173},{"$f":"AH109*'III. GDP shares, 1310-2018'!F111","v":1.827968799716139},{"$f":"AI109*'III. GDP shares, 1310-2018'!G111","v":5.858253205946111},{"$f":"AJ109*'III. GDP shares, 1310-2018'!H111","v":0},{"$f":"AK109*'III. GDP shares, 1310-2018'!I111","v":0},{"$f":"AL109*'III. GDP shares, 1310-2018'!J111","v":0},null,null,{"$f":"U109*'III. GDP shares, 1310-2018'!C111","v":2.9916529727447747},{"$f":"V109*'III. GDP shares, 1310-2018'!D111","v":0.10142137712589513},{"$f":"W109*'III. GDP shares, 1310-2018'!E111","v":0.06943115748776069},{"$f":"X109*'III. GDP shares, 1310-2018'!F111","v":-0.15434177640176125},{"$f":"Y109*'III. GDP shares, 1310-2018'!G111","v":0.43868744057737513},{"$f":"Z109*'III. GDP shares, 1310-2018'!H111","v":0},{"$f":"AA109*'III. GDP shares, 1310-2018'!I111","v":0},{"$f":"AB109*'III. GDP shares, 1310-2018'!J111","v":0},null,null,13.619878523126298,12.825044614482298,null,3.446851171534045,1.7842871382137684,{"$f":"AVERAGE(BL106:BL112)","v":-0.1352997825898574},-0.8488800842244236,null,null,7.133408533065417]
[{"$f":"'[1]Nominal weighted'!B110","v":1416},null,-24.995688568267457,15.354007524907388,15.915872205691976,8.840401893845236,18.76756149881181,null,5.234223937115664,null,null,2.5879046039115243,25.981231779702377,18.445373213373255,9.092714953662004,{"$f":"AVERAGE(G107:G113)","v":18.40520123648268},null,6.846024785040979,null,null,31.787004752083643,12.402606231706457,0.8269849371651582,-0.6484867703884458,-0.6689951905680738,null,-1.2342239371156642,{"$nulls":3},6.791316183816185,27.756613756613845,{"v":16.742857142857133,"d":"16.74"},8.19191512345679,18.098566308243736,null,4,{"$nulls":3},{"$f":"AE110*'III. GDP shares, 1310-2018'!C112","v":2.282584896303469},{"$f":"AF110*'III. GDP shares, 1310-2018'!D112","v":2.3373299295036523},{"$f":"AG110*'III. GDP shares, 1310-2018'!E112","v":0.35022137122100666},{"$f":"AH110*'III. GDP shares, 1310-2018'!F112","v":1.9286092923638138},{"$f":"AI110*'III. GDP shares, 1310-2018'!G112","v":5.852035003572289},{"$f":"AJ110*'III. GDP shares, 1310-2018'!H112","v":0},{"$f":"AK110*'III. GDP shares, 1310-2018'!I112","v":0},{"$f":"AL110*'III. GDP shares, 1310-2018'!J112","v":0},null,null,{"$f":"U110*'III. GDP shares, 1310-2018'!C112","v":10.683722415801538},{"$f":"V110*'III. GDP shares, 1310-2018'!D112","v":1.0443991116282516},{"$f":"W110*'III. GDP shares, 1310-2018'!E112","v":0.017298588657949653},{"$f":"X110*'III. GDP shares, 1310-2018'!F112","v":-0.15267218867599788},{"$f":"Y110*'III. GDP shares, 1310-2018'!G112","v":-0.2163145525313042},{"$f":"Z110*'III. GDP shares, 1310-2018'!H112","v":0},{"$f":"AA110*'III. GDP shares, 1310-2018'!I112","v":0},{"$f":"AB110*'III. GDP shares, 1310-2018'!J112","v":0},null,null,13.59687808583128,12.750780492964232,null,11.376433374880436,7.077481670480513,{"$f":"AVERAGE(BL107:BL113)","v":1.5233325537519653},0.11234619702322497,null,null,0.0814163002083923]
[{"$f":"'[1]Nominal weighted'!B111","v":1417},null,16.38446199962455,18.71711596592554,29.037161245049234,9.25365825671751,11.445525326380679,null,7.7181566951705385,null,null,-6.318850109090059,27.596036635244495,17.855307491823716,9.181597971646775,{"$f":"AVERAGE(G108:G114)","v":17.953792301140822},null,6.368037963227269,null,null,-9.812220991687337,8.941614192804707,-12.26573267362067,-0.6410841826434351,6.468249518845787,null,-3.718156695170539,{"$nulls":3},6.57224100793721,27.658730158730247,{"v":16.77142857142856,"d":"16.77"},8.612574074074073,17.913774845226467,null,4,{"$nulls":3},{"$f":"AE111*'III. GDP shares, 1310-2018'!C113","v":2.208356435649319},{"$f":"AF111*'III. GDP shares, 1310-2018'!D113","v":2.3284583661783858},{"$f":"AG111*'III. GDP shares, 1310-2018'!E113","v":0.35072427876779516},{"$f":"AH111*'III. GDP shares, 1310-2018'!F113","v":2.0294226291122714},{"$f":"AI111*'III. GDP shares, 1310-2018'!G113","v":5.790719851206589},{"$f":"AJ111*'III. GDP shares, 1310-2018'!H113","v":0},{"$f":"AK111*'III. GDP shares, 1310-2018'!I113","v":0},{"$f":"AL111*'III. GDP shares, 1310-2018'!J113","v":0},null,null,{"$f":"U111*'III. GDP shares, 1310-2018'!C113","v":-3.297030852769527},{"$f":"V111*'III. GDP shares, 1310-2018'!D113","v":0.7527524313260563},{"$f":"W111*'III. GDP shares, 1310-2018'!E113","v":-0.25650112196421926},{"$f":"X111*'III. GDP shares, 1310-2018'!F113","v":-0.1510617773772127},{"$f":"Y111*'III. GDP shares, 1310-2018'!G113","v":2.090894923875786},{"$f":"Z111*'III. GDP shares, 1310-2018'!H113","v":0},{"$f":"AA111*'III. GDP shares, 1310-2018'!I113","v":0},{"$f":"AB111*'III. GDP shares, 1310-2018'!J113","v":0},null,null,13.58812477623276,12.70768156091436,null,-0.8609463969091165,-1.8378884719119146,{"$f":"AVERAGE(BL108:BL114)","v":4.313424457033699},1.6734850189424963,null,null,11.992922022971147]
[{"$f":"'[1]Nominal weighted'!B112","v":1418},null,24.344985746218327,40.62800288926271,17.274008930463058,9.22766445325068,25.3450568556518,null,2.350965390149843,null,null,-0.3859260872912153,25.936183218476156,17.902298116516068,9.097818758401178,{"$f":"AVERAGE(G109:G115)","v":17.54480510429858},null,4.080915868963544,null,null,-16.65533922291132,-13.067156328416061,-0.47400893046306736,-0.6339352865840148,-7.6160734734426,null,3.149034609850157,{"$nulls":3},7.689646523307007,27.56084656084665,{"v":16.79999999999999,"d":"16.80"},8.593729166666666,17.7289833822092,null,5.5,{"$nulls":3},{"$f":"AE112*'III. GDP shares, 1310-2018'!C114","v":2.2510450354425275},{"$f":"AF112*'III. GDP shares, 1310-2018'!D114","v":2.0213937088130653},{"$f":"AG112*'III. GDP shares, 1310-2018'!E114","v":0.3060745167238968},{"$f":"AH112*'III. GDP shares, 1310-2018'!F114","v":1.7662035508753264},{"$f":"AI112*'III. GDP shares, 1310-2018'!G114","v":4.992883045249655},{"$f":"AJ112*'III. GDP shares, 1310-2018'!H114","v":0},{"$f":"AK112*'III. GDP shares, 1310-2018'!I114","v":0.7070591084638145},{"$f":"AL112*'III. GDP shares, 1310-2018'!J114","v":0},null,null,{"$f":"U112*'III. GDP shares, 1310-2018'!C114","v":-4.875636163211045},{"$f":"V112*'III. GDP shares, 1310-2018'!D114","v":-0.9583837541427699},{"$f":"W112*'III. GDP shares, 1310-2018'!E114","v":-0.00863583656632706},{"$f":"X112*'III. GDP shares, 1310-2018'!F114","v":-0.13028787997331637},{"$f":"Y112*'III. GDP shares, 1310-2018'!G114","v":-2.144858692522999},{"$f":"Z112*'III. GDP shares, 1310-2018'!H114","v":0},{"$f":"AA112*'III. GDP shares, 1310-2018'!I114","v":0.40482792795679057},{"$f":"AB112*'III. GDP shares, 1310-2018'!J114","v":0},null,null,13.978867605504917,12.044658965568287,null,-7.712974398459667,-5.882913105327819,{"$f":"AVERAGE(BL109:BL115)","v":2.7201795306142165},1.387915447966544,null,null,16.777855901072115]
[{"$f":"'[1]Nominal weighted'!B113","v":1419},null,-10.126888311283558,22.107859872484585,23.440249563648617,9.771953118992899,20.61769922577453,null,6.576630039048379,null,null,5.458192633501777,26.706457860346234,18.257768786912823,8.750682770720784,{"$f":"AVERAGE(G110:G116)","v":17.907153960241626},null,4.121165871944802,null,null,18.354243173534464,5.355103090478465,-6.6116781350772,-0.627029507881789,-3.0735073065826097,null,-1.0766300390483792,{"$nulls":3},8.227354862250905,27.46296296296305,{"v":16.82857142857142,"d":"16.83"},9.14492361111111,17.54419191919192,null,5.5,{"$nulls":3},{"$f":"AE113*'III. GDP shares, 1310-2018'!C115","v":2.407477307003706},{"$f":"AF113*'III. GDP shares, 1310-2018'!D115","v":2.0133992985821116},{"$f":"AG113*'III. GDP shares, 1310-2018'!E115","v":0.306470944281497},{"$f":"AH113*'III. GDP shares, 1310-2018'!F115","v":1.8808762160198282},{"$f":"AI113*'III. GDP shares, 1310-2018'!G115","v":4.938841571273461},{"$f":"AJ113*'III. GDP shares, 1310-2018'!H115","v":0},{"$f":"AK113*'III. GDP shares, 1310-2018'!I115","v":0.7077057779228909},{"$f":"AL113*'III. GDP shares, 1310-2018'!J115","v":0},null,null,{"$f":"U113*'III. GDP shares, 1310-2018'!C115","v":5.370793489199609},{"$f":"V113*'III. GDP shares, 1310-2018'!D115","v":0.39260005632840667},{"$f":"W113*'III. GDP shares, 1310-2018'!E115","v":-0.12040756103053535},{"$f":"X113*'III. GDP shares, 1310-2018'!F115","v":-0.12896388622476215},{"$f":"Y113*'III. GDP shares, 1310-2018'!G115","v":-0.8652188556349356},{"$f":"Z113*'III. GDP shares, 1310-2018'!H115","v":0},{"$f":"AA113*'III. GDP shares, 1310-2018'!I115","v":-0.13853405442179736},{"$f":"AB113*'III. GDP shares, 1310-2018'!J115","v":0},null,null,14.118000797348067,12.254771115083495,null,4.510269188215985,2.0534168792371585,{"$f":"AVERAGE(BL110:BL116)","v":0.691748947649472},0.16401214905287173,null,null,6.1237026846138045]
[{"$f":"'[1]Nominal weighted'!B114","v":1420},null,-31.304513303191726,38.81312785273239,11.22663919045898,9.902068654344099,14.765520222900559,null,0.6540922473040345,null,null,8.140424904167785,29.438507310434993,18.443788352448223,8.571785350477706,{"$f":"AVERAGE(G111:G117)","v":17.603167424497446},null,4.996443770778776,null,null,37.8290972574888,-11.44804848765294,5.630503666683866,-0.6203568487885434,2.7471060397257046,null,4.8459077526959655,{"$nulls":3},6.52458395429707,27.365079365079453,{"v":16.857142857142847,"d":"16.86"},9.281711805555556,17.512626262626263,null,5.5,{"$nulls":3},{"$f":"AE114*'III. GDP shares, 1310-2018'!C116","v":1.9084422941240338},{"$f":"AF114*'III. GDP shares, 1310-2018'!D116","v":2.005411357884723},{"$f":"AG114*'III. GDP shares, 1310-2018'!E116","v":0.30686705102726547},{"$f":"AH114*'III. GDP shares, 1310-2018'!F116","v":1.9104195657327245},{"$f":"AI114*'III. GDP shares, 1310-2018'!G116","v":4.927960765414652},{"$f":"AJ114*'III. GDP shares, 1310-2018'!H116","v":0},{"$f":"AK114*'III. GDP shares, 1310-2018'!I116","v":0.7083519240600898},{"$f":"AL114*'III. GDP shares, 1310-2018'!J116","v":0},null,null,{"$f":"U114*'III. GDP shares, 1310-2018'!C116","v":11.065019572194478},{"$f":"V114*'III. GDP shares, 1310-2018'!D116","v":-0.8389541340797632},{"$f":"W114*'III. GDP shares, 1310-2018'!E116","v":0.10249756264368128},{"$f":"X114*'III. GDP shares, 1310-2018'!F116","v":-0.12768569919964176},{"$f":"Y114*'III. GDP shares, 1310-2018'!G116","v":0.7730211665107356},{"$f":"Z114*'III. GDP shares, 1310-2018'!H116","v":0},{"$f":"AA114*'III. GDP shares, 1310-2018'!I116","v":0.6241105600799806},{"$f":"AB114*'III. GDP shares, 1310-2018'!J116","v":0},null,null,13.8401907074502,11.767452958243489,null,11.59800902814947,6.497368230025475,{"$f":"AVERAGE(BL111:BL117)","v":-0.5657184844836148},-0.8509998941883958,null,null,-2.674921561870468]
[{"$f":"'[1]Nominal weighted'!B115","v":1421},null,24.628414973639075,19.282760196930735,15.026233810362745,8.261574516593043,15.11572985940314,null,-1.383177430036616,null,null,{"$f":"AVERAGE(C112:C118)","v":10.130917558921668},{"$f":"AVERAGE(D112:D118)","v":30.493067166547974},{"$f":"AVERAGE(E112:E118)","v":16.769236306944425},{"$f":"AVERAGE(F112:F118)","v":8.136619048665766},{"$f":"AVERAGE(G112:G118)","v":18.567361770971655},null,4.504950517192125,null,null,-18.336581602092586,7.98443557026512,1.8594804753515297,-0.6139078499263776,2.365330746657468,null,6.883177430036616,{"$nulls":3},6.291833371546487,27.267195767195854,{"v":16.885714285714275,"d":"16.89"},7.647666666666666,17.48106060606061,null,5.5,{"$nulls":3},{"$f":"AE115*'III. GDP shares, 1310-2018'!C117","v":1.8396183334701124},{"$f":"AF115*'III. GDP shares, 1310-2018'!D117","v":1.9974298788708007},{"$f":"AG115*'III. GDP shares, 1310-2018'!E117","v":0.3072628373504735},{"$f":"AH115*'III. GDP shares, 1310-2018'!F117","v":1.5752506875432608},{"$f":"AI115*'III. GDP shares, 1310-2018'!G117","v":4.917088761364221},{"$f":"AJ115*'III. GDP shares, 1310-2018'!H117","v":0},{"$f":"AK115*'III. GDP shares, 1310-2018'!I117","v":0.7089975475104073},{"$f":"AL115*'III. GDP shares, 1310-2018'!J117","v":0},null,null,{"$f":"U115*'III. GDP shares, 1310-2018'!C117","v":-5.36128496996244},{"$f":"V115*'III. GDP shares, 1310-2018'!D117","v":0.5848914684931861},{"$f":"W115*'III. GDP shares, 1310-2018'!E117","v":0.03383624981370753},{"$f":"X115*'III. GDP shares, 1310-2018'!F117","v":-0.12645147923350017},{"$f":"Y115*'III. GDP shares, 1310-2018'!G117","v":0.6653224019637812},{"$f":"Z115*'III. GDP shares, 1310-2018'!H117","v":0},{"$f":"AA115*'III. GDP shares, 1310-2018'!I117","v":0.8873010758136272},{"$f":"AB115*'III. GDP shares, 1310-2018'!J117","v":0},null,null,13.512245116197315,11.345648046109275,null,-3.316385253111638,0.02365579504862847,{"$f":"AVERAGE(BL112:BL118)","v":-1.4270024418803828},-1.1027408209392497,null,null,13.249494888843298]
[{"$f":"'[1]Nominal weighted'!B116","v":1422},null,39.27657589777323,32.042330720180296,15.884216562715132,5.997458501302029,19.29298473276887,null,7.697270224861769,null,null,5.548664209702605,27.40686107378914,16.889272958380072,8.08473704362507,{"$f":"AVERAGE(G113:G119)","v":17.368172892083283},null,4.610363151317666,null,null,-33.06704781635646,-4.873018550868039,1.030069151570572,0.25254149869797066,-1.8434897832739143,null,-2.197270224861769,{"$nulls":3},6.209528081416769,27.169312169312256,{"v":16.914285714285704,"d":"16.91"},6.25,17.449494949494955,null,5.5,{"$nulls":3},{"$f":"AE116*'III. GDP shares, 1310-2018'!C118","v":1.8148197236587844},{"$f":"AF116*'III. GDP shares, 1310-2018'!D118","v":1.9894548537029433},{"$f":"AG116*'III. GDP shares, 1310-2018'!E118","v":0.307658303639763},{"$f":"AH116*'III. GDP shares, 1310-2018'!F118","v":1.2883097698880546},{"$f":"AI116*'III. GDP shares, 1310-2018'!G118","v":4.906225548446413},{"$f":"AJ116*'III. GDP shares, 1310-2018'!H118","v":0},{"$f":"AK116*'III. GDP shares, 1310-2018'!I118","v":0.7096426489078125},{"$f":"AL116*'III. GDP shares, 1310-2018'!J118","v":0},null,null,{"$f":"U116*'III. GDP shares, 1310-2018'!C118","v":-9.664298122732662},{"$f":"V116*'III. GDP shares, 1310-2018'!D118","v":-0.3568235495913295},{"$f":"W116*'III. GDP shares, 1310-2018'!E118","v":0.018736193366781805},{"$f":"X116*'III. GDP shares, 1310-2018'!F118","v":0.05205626881196273},{"$f":"Y116*'III. GDP shares, 1310-2018'!G118","v":-0.5183288513035272},{"$f":"Z116*'III. GDP shares, 1310-2018'!H118","v":0},{"$f":"AA116*'III. GDP shares, 1310-2018'!I118","v":-0.2835048477703946},{"$f":"AB116*'III. GDP shares, 1310-2018'!J118","v":0},null,null,13.248770152418281,11.01611084824377,null,-10.752162909219168,-6.78303595418194,{"$f":"AVERAGE(BL113:BL119)","v":0.4186499536743125},0.31153730595544965,null,null,19.421995354168665]
[{"$f":"'[1]Nominal weighted'!B117","v":1423},null,-6.220062673605392,34.47835367552871,17.218009164439803,7.588119952143677,16.639655748602515,null,11.361169228953486,null,null,7.30844651306097,28.639042534370226,15.539310269258412,8.083440165736912,{"$f":"AVERAGE(G114:G120)","v":17.933509255446925},null,3.9246350843156463,null,null,12.350810302536285,-7.406925104100054,-0.2751520215826714,0.24854671452299051,0.7782735443267821,null,-5.861169228953486,{"$nulls":3},6.130747628930893,27.071428571428658,{"v":16.942857142857132,"d":"16.94"},7.836666666666667,17.417929292929298,null,5.5,{"$nulls":3},{"$f":"AE117*'III. GDP shares, 1310-2018'!C119","v":1.7910709237646942},{"$f":"AF117*'III. GDP shares, 1310-2018'!D119","v":1.9814862745564172},{"$f":"AG117*'III. GDP shares, 1310-2018'!E119","v":0.30805345028314757},{"$f":"AH117*'III. GDP shares, 1310-2018'!F119","v":1.616555873519457},{"$f":"AI117*'III. GDP shares, 1310-2018'!G119","v":4.895371116002738},{"$f":"AJ117*'III. GDP shares, 1310-2018'!H119","v":0},{"$f":"AK117*'III. GDP shares, 1310-2018'!I119","v":0.7102872288852496},{"$f":"AL117*'III. GDP shares, 1310-2018'!J119","v":0},null,null,{"$f":"U117*'III. GDP shares, 1310-2018'!C119","v":3.6082348445427295},{"$f":"V117*'III. GDP shares, 1310-2018'!D119","v":-0.5421479842379473},{"$f":"W117*'III. GDP shares, 1310-2018'!E119","v":-0.00500278842501244},{"$f":"X117*'III. GDP shares, 1310-2018'!F119","v":0.05127047867368405},{"$f":"Y117*'III. GDP shares, 1310-2018'!G119","v":0.21873655387917018},{"$f":"Z117*'III. GDP shares, 1310-2018'!H119","v":0},{"$f":"AA117*'III. GDP shares, 1310-2018'!I119","v":-0.756929754483794},{"$f":"AB117*'III. GDP shares, 1310-2018'!J119","v":0},null,null,13.483271550468773,11.302824867011704,null,2.57416134994883,-0.0276026322083589,{"$f":"AVERAGE(BL114:BL120)","v":-0.2743778283063257},0.024701219379123587,null,null,6.2050292582685085]
[{"$f":"'[1]Nominal weighted'!B118","v":1424},null,30.31791058290172,26.099034958716402,17.315296926522628,6.2074941440339275,18.194885751700145,null,4.277703920063979,null,null,13.56504285505124,27.52879084219785,16.144411143430574,7.630469680584954,{"$f":"AVERAGE(G115:G121)","v":19.064456803663074},null,4.1245511562614565,null,null,-23.789514092450396,0.8745100148286582,0.6561316449059319,0.24464871310892886,-0.8085221153365032,null,1.2222960799360214,{"$nulls":3},6.528396490451324,26.97354497354506,{"v":17.97142857142856,"d":"17.97"},6.4521428571428565,17.38636363636364,null,5.5,{"$nulls":3},{"$f":"AE118*'III. GDP shares, 1310-2018'!C120","v":1.906471809966776},{"$f":"AF118*'III. GDP shares, 1310-2018'!D120","v":1.9735241336191331},{"$f":"AG118*'III. GDP shares, 1310-2018'!E120","v":0.3266228394834692},{"$f":"AH118*'III. GDP shares, 1310-2018'!F120","v":1.331931502311535},{"$f":"AI118*'III. GDP shares, 1310-2018'!G120","v":4.884525453391927},{"$f":"AJ118*'III. GDP shares, 1310-2018'!H120","v":0},{"$f":"AK118*'III. GDP shares, 1310-2018'!I120","v":0.71093128807464},{"$f":"AL118*'III. GDP shares, 1310-2018'!J120","v":0},null,null,{"$f":"U118*'III. GDP shares, 1310-2018'!C120","v":-6.947194162670808},{"$f":"V118*'III. GDP shares, 1310-2018'!D120","v":0.06398367812049426},{"$f":"W118*'III. GDP shares, 1310-2018'!E120","v":0.011924905139419273},{"$f":"X118*'III. GDP shares, 1310-2018'!F120","v":0.05050342734259528},{"$f":"Y118*'III. GDP shares, 1310-2018'!G120","v":-0.22714622416682745},{"$f":"Z118*'III. GDP shares, 1310-2018'!H120","v":0},{"$f":"AA118*'III. GDP shares, 1310-2018'!I120","v":0.15799427754863615},{"$f":"AB118*'III. GDP shares, 1310-2018'!J120","v":0},null,null,13.46864608815524,11.13400702684748,null,-6.889934098686491,-3.600074959167893,{"$f":"AVERAGE(BL115:BL121)","v":-2.3450055146525126},-1.1544236038218887,null,null,16.11440067003533]
[{"$f":"'[1]Nominal weighted'!B119","v":1425},null,-7.73078769831512,19.024560239950855,18.114265490512608,8.864490417965815,16.95073470343323,null,3.0888538290286345,null,null,13.42451033634329,28.343640711621365,16.018844288160416,6.997222569509302,{"$f":"AVERAGE(G116:G122)","v":18.798362776222927},null,6.175955084674746,null,null,14.348997229391353,7.851101135710607,-1.1142654905126095,0.24084291536751873,0.3643807366822145,null,2.4111461709713655,{"$nulls":3},6.618209531076233,26.875661375661462,{"v":17,"d":"17.00"},9.105333333333334,17.315115440115445,null,5.5,{"$nulls":3},{"$f":"AE119*'III. GDP shares, 1310-2018'!C121","v":1.9319192480600123},{"$f":"AF119*'III. GDP shares, 1310-2018'!D121","v":1.9655684230916202},{"$f":"AG119*'III. GDP shares, 1310-2018'!E121","v":0.3088427861811229},{"$f":"AH119*'III. GDP shares, 1310-2018'!F121","v":1.8810132113853593},{"$f":"AI119*'III. GDP shares, 1310-2018'!G121","v":4.862544638115473},{"$f":"AJ119*'III. GDP shares, 1310-2018'!H121","v":0},{"$f":"AK119*'III. GDP shares, 1310-2018'!I121","v":0.7115748271068846},{"$f":"AL119*'III. GDP shares, 1310-2018'!J121","v":0},null,null,{"$f":"U119*'III. GDP shares, 1310-2018'!C121","v":4.188610802915003},{"$f":"V119*'III. GDP shares, 1310-2018'!D121","v":0.5741952267945525},{"$f":"W119*'III. GDP shares, 1310-2018'!E121","v":-0.02024310933149352},{"$f":"X119*'III. GDP shares, 1310-2018'!F121","v":0.04975421427092568},{"$f":"Y119*'III. GDP shares, 1310-2018'!G121","v":0.10232779582177912},{"$f":"Z119*'III. GDP shares, 1310-2018'!H121","v":0},{"$f":"AA119*'III. GDP shares, 1310-2018'!I121","v":0.311947439952432},{"$f":"AB119*'III. GDP shares, 1310-2018'!J121","v":0},null,null,13.735719946697747,11.661463133940472,null,5.206592370423198,4.0170337829350755,{"$f":"AVERAGE(BL116:BL122)","v":-2.383922881487833},-1.4598954312045405,null,null,5.063497567220207]
[{"$f":"'[1]Nominal weighted'!B120","v":1426},null,2.1915878122250048,30.73313009655221,13.990510739796983,9.762874973775789,24.57505376932003,null,1.7765335700342395,null,null,9.405500817787827,23.988122024552293,17.15527160450639,7.115990392865642,{"$f":"AVERAGE(G117:G123)","v":16.4418895382723},null,6.795421517598308,null,null,4.886140063347699,-3.955352318774345,2.7131929639067196,0.2371250262242104,-7.331186525452779,null,3.7234664299657605,{"$nulls":3},7.0777278755727036,26.777777777777864,{"v":16.703703703703702,"d":"16.70"},10,17.24386724386725,null,5.5,{"$nulls":3},{"$f":"AE120*'III. GDP shares, 1310-2018'!C122","v":2.065223127515065},{"$f":"AF120*'III. GDP shares, 1310-2018'!D122","v":1.9576191351870011},{"$f":"AG120*'III. GDP shares, 1310-2018'!E122","v":0.3033374142091051},{"$f":"AH120*'III. GDP shares, 1310-2018'!F122","v":2.067347996354775},{"$f":"AI120*'III. GDP shares, 1310-2018'!G122","v":4.840581567889814},{"$f":"AJ120*'III. GDP shares, 1310-2018'!H122","v":0},{"$f":"AK120*'III. GDP shares, 1310-2018'!I122","v":0.7122178466118655},{"$f":"AL120*'III. GDP shares, 1310-2018'!J122","v":0},null,null,{"$f":"U120*'III. GDP shares, 1310-2018'!C122","v":1.425735722043011},{"$f":"V120*'III. GDP shares, 1310-2018'!D122","v":-0.2891604168910796},{"$f":"W120*'III. GDP shares, 1310-2018'!E122","v":0.0492712845319039},{"$f":"X120*'III. GDP shares, 1310-2018'!F122","v":0.049021994785019486},{"$f":"Y120*'III. GDP shares, 1310-2018'!G122","v":-2.0579610051503874},{"$f":"Z120*'III. GDP shares, 1310-2018'!H122","v":0},{"$f":"AA120*'III. GDP shares, 1310-2018'!I122","v":0.4821671350330517},{"$f":"AB120*'III. GDP shares, 1310-2018'!J122","v":0},null,null,13.883846100153585,11.946327087767626,null,-0.34092528564848096,0.04556427320287759,{"$f":"AVERAGE(BL117:BL123)","v":-0.31408842314421054},0.010124044469462514,null,null,10.040472821338025]
[{"$f":"'[1]Nominal weighted'!B121","v":1427},null,12.491661090740163,31.041366007525756,15.462345309664098,6.731275258280406,22.68215306041362,null,2.053504750924711,null,null,8.85968273896452,22.92889590397737,16.347589177240767,6.704358549747412,{"$f":"AVERAGE(G118:G124)","v":16.86044461280164},null,4.10178203776956,null,null,-5.293075713706508,-4.36147182763149,0.9450620977433108,0.2334910130242884,-5.509534012794569,null,3.446495249075289,{"$nulls":3},7.198585377033654,26.679894179894266,{"v":16.40740740740741,"d":"16.41"},6.964766271304694,17.17261904761905,null,5.5,{"$nulls":3},{"$f":"AE121*'III. GDP shares, 1310-2018'!C123","v":2.099640841232182},{"$f":"AF121*'III. GDP shares, 1310-2018'!D123","v":1.949676262130965},{"$f":"AG121*'III. GDP shares, 1310-2018'!E123","v":0.2978364849152265},{"$f":"AH121*'III. GDP shares, 1310-2018'!F123","v":1.4409112661831522},{"$f":"AI121*'III. GDP shares, 1310-2018'!G123","v":4.818636221235322},{"$f":"AJ121*'III. GDP shares, 1310-2018'!H123","v":0},{"$f":"AK121*'III. GDP shares, 1310-2018'!I123","v":0.7128603472184482},{"$f":"AL121*'III. GDP shares, 1310-2018'!J123","v":0},null,null,{"$f":"U121*'III. GDP shares, 1310-2018'!C123","v":-1.5438530436395224},{"$f":"V121*'III. GDP shares, 1310-2018'!D123","v":-0.3187215823627293},{"$f":"W121*'III. GDP shares, 1310-2018'!E123","v":0.01715529859345125},{"$f":"X121*'III. GDP shares, 1310-2018'!F123","v":0.04830597583803623},{"$f":"Y121*'III. GDP shares, 1310-2018'!G123","v":-1.5459750246926252},{"$f":"Z121*'III. GDP shares, 1310-2018'!H123","v":0},{"$f":"AA121*'III. GDP shares, 1310-2018'!I123","v":0.44670359998955317},{"$f":"AB121*'III. GDP shares, 1310-2018'!J123","v":0},null,null,13.32054538054318,11.319561422915296,null,-2.896384776273836,-1.7565055323816132,{"$f":"AVERAGE(BL118:BL124)","v":0.2704831419087916},0.815428437839672,null,null,11.947548354695439]
[{"$f":"'[1]Nominal weighted'!B122","v":1428},null,23.64468734268342,24.98670928289532,14.14726582347167,3.8288447390634692,13.253071667322114,null,12.976650068856411,null,null,-1.79219746546754,24.49392831792128,16.655654116991315,6.542910356100167,{"$f":"AVERAGE(G119:G125)","v":17.397595161860615},null,4.698603885413749,null,null,-16.670549411648935,1.5953012991153486,1.0888452876394417,5.001871729922212,3.8482991840487415,null,-7.5516500688564125,{"$nulls":3},6.974137931034482,26.582010582010668,{"v":15.236111111111112,"d":"15.24"},8.830716468985681,17.101370851370856,null,5.425,{"$nulls":3},{"$f":"AE122*'III. GDP shares, 1310-2018'!C124","v":2.0333549068981958},{"$f":"AF122*'III. GDP shares, 1310-2018'!D124","v":1.941739796161742},{"$f":"AG122*'III. GDP shares, 1310-2018'!E124","v":0.2764629071013881},{"$f":"AH122*'III. GDP shares, 1310-2018'!F124","v":1.828282268724874},{"$f":"AI122*'III. GDP shares, 1310-2018'!G124","v":4.796708576707025},{"$f":"AJ122*'III. GDP shares, 1310-2018'!H124","v":0},{"$f":"AK122*'III. GDP shares, 1310-2018'!I124","v":0.7037727523332854},{"$f":"AL122*'III. GDP shares, 1310-2018'!J124","v":0},null,null,{"$f":"U122*'III. GDP shares, 1310-2018'!C124","v":-4.860406229711202},{"$f":"V122*'III. GDP shares, 1310-2018'!D124","v":0.11653219419967938},{"$f":"W122*'III. GDP shares, 1310-2018'!E124","v":0.019757360090720325},{"$f":"X122*'III. GDP shares, 1310-2018'!F124","v":1.0355709444834427},{"$f":"Y122*'III. GDP shares, 1310-2018'!G124","v":1.0793970765438108},{"$f":"Z122*'III. GDP shares, 1310-2018'!H124","v":0},{"$f":"AA122*'III. GDP shares, 1310-2018'!I124","v":-0.9796581665653312},{"$f":"AB122*'III. GDP shares, 1310-2018'!J124","v":0},null,null,13.358224490752134,11.580321207926511,null,-3.5888068209588804,-2.1146469966299337,{"$f":"AVERAGE(BL119:BL125)","v":3.1722740937504446},2.1178747869671457,null,null,13.343920426923328]
[{"$f":"'[1]Nominal weighted'!B123","v":1429},null,11.143509267884998,1.5536999106968032,23.83920777713692,6.828833264796414,2.7976720671144655,null,12.033535255326704,null,null,-1.0687494490397829,27.13656643765324,15.068377898031827,4.275014235348076,{"$f":"AVERAGE(G120:G126)","v":17.80975132643234},null,4.235216835001742,null,null,-4.138211438945402,24.930427073430266,-8.024392962322104,0.6508642483722515,14.232450588008195,null,-6.608535255326705,{"$nulls":3},7.005297828939596,26.48412698412707,{"v":15.814814814814817,"d":"15.81"},7.479697513168665,17.03012265512266,null,5.425,{"$nulls":3},{"$f":"AE123*'III. GDP shares, 1310-2018'!C125","v":2.042094663900675},{"$f":"AF123*'III. GDP shares, 1310-2018'!D125","v":1.934262790713282},{"$f":"AG123*'III. GDP shares, 1310-2018'!E125","v":0.2869151368244853},{"$f":"AH123*'III. GDP shares, 1310-2018'!F125","v":1.548310118914065},{"$f":"AI123*'III. GDP shares, 1310-2018'!G125","v":4.775917273058489},{"$f":"AJ123*'III. GDP shares, 1310-2018'!H125","v":0},{"$f":"AK123*'III. GDP shares, 1310-2018'!I125","v":0.704570500894666},{"$f":"AL123*'III. GDP shares, 1310-2018'!J125","v":0},null,null,{"$f":"U123*'III. GDP shares, 1310-2018'!C125","v":-1.2063183755946496},{"$f":"V123*'III. GDP shares, 1310-2018'!D125","v":1.8207886359111796},{"$f":"W123*'III. GDP shares, 1310-2018'!E125","v":-0.14557994081355558},{"$f":"X123*'III. GDP shares, 1310-2018'!F125","v":0.134730007466203},{"$f":"Y123*'III. GDP shares, 1310-2018'!G125","v":3.991339814618042},{"$f":"Z123*'III. GDP shares, 1310-2018'!H125","v":0},{"$f":"AA123*'III. GDP shares, 1310-2018'!I125","v":-0.8582818424010316},{"$f":"AB123*'III. GDP shares, 1310-2018'!J125","v":0},null,null,13.206509966028802,11.292070484305663,null,3.7366782991861873,3.5071003755360834,{"$f":"AVERAGE(BL120:BL126)","v":3.2857376161793477},2.19295869807248,null,null,7.441918030317371]
[{"$f":"'[1]Nominal weighted'!B124","v":1430},null,-10.040789225368547,27.06377083150425,11.564232173580463,4.706697050316069,19.569541270307894,null,-7.494307129847763,null,null,4.834500331460682,23.424346883804397,14.334279348720758,2.5013592950252703,{"$f":"AVERAGE(G121:G127)","v":16.59241052087142},null,5.644690234225649,null,null,18.249715475769452,-0.6775274452607789,3.9542863449380588,1.8220540344375775,-2.6106668114334326,null,12.919307129847763,{"$nulls":3},8.208926250400905,26.38624338624347,{"v":15.51851851851852,"d":"15.52"},6.5287510847536465,16.95887445887446,null,5.425,{"$nulls":3},{"$f":"AE124*'III. GDP shares, 1310-2018'!C126","v":2.3925567274549175},{"$f":"AF124*'III. GDP shares, 1310-2018'!D126","v":1.926788311626011},{"$f":"AG124*'III. GDP shares, 1310-2018'!E126","v":0.28149211369755783},{"$f":"AH124*'III. GDP shares, 1310-2018'!F126","v":1.351234270454887},{"$f":"AI124*'III. GDP shares, 1310-2018'!G126","v":4.755132994460686},{"$f":"AJ124*'III. GDP shares, 1310-2018'!H126","v":0},{"$f":"AK124*'III. GDP shares, 1310-2018'!I126","v":0.7053679799094995},{"$f":"AL124*'III. GDP shares, 1310-2018'!J126","v":0},null,null,{"$f":"U124*'III. GDP shares, 1310-2018'!C126","v":5.31902446237203},{"$f":"V124*'III. GDP shares, 1310-2018'!D126","v":-0.0494747184441913},{"$f":"W124*'III. GDP shares, 1310-2018'!E126","v":0.0717272347920146},{"$f":"X124*'III. GDP shares, 1310-2018'!F126","v":0.37710456747265386},{"$f":"Y124*'III. GDP shares, 1310-2018'!G126","v":-0.7320101297226358},{"$f":"Z124*'III. GDP shares, 1310-2018'!H126","v":0},{"$f":"AA124*'III. GDP shares, 1310-2018'!I126","v":1.6797908888499742},{"$f":"AB124*'III. GDP shares, 1310-2018'!J126","v":0},null,null,13.171052283131834,11.41257239760356,null,6.666162305319846,5.609528121383107,{"$f":"AVERAGE(BL121:BL127)","v":2.435005890406432},2.192269424941911,null,null,2.7701470622135105]
[{"$f":"'[1]Nominal weighted'!B125","v":1431},null,-44.2452508481227,37.05426185632379,19.471751504776467,5.077356788503213,21.95493959511293,null,8.455456853573306,null,null,5.083015681699428,24.046361302304266,15.83619740139734,3.1722588357651893,{"$f":"AVERAGE(G122:G128)","v":21.19433554206763},null,6.850101980391357,null,null,53.77595804415248,-10.765902067963921,-4.249529282554241,1.4645404007721778,-5.067313332486663,null,-2.0554568535733058,{"$nulls":3},9.530707196029779,26.288359788359873,{"v":15.222222222222225,"d":"15.22"},6.5418971892753905,16.887626262626267,null,6.4,{"$nulls":3},{"$f":"AE125*'III. GDP shares, 1310-2018'!C127","v":2.777331069864373},{"$f":"AF125*'III. GDP shares, 1310-2018'!D127","v":1.9193163576197176},{"$f":"AG125*'III. GDP shares, 1310-2018'!E127","v":0.27607092261435995},{"$f":"AH125*'III. GDP shares, 1310-2018'!F127","v":1.353726375432208},{"$f":"AI125*'III. GDP shares, 1310-2018'!G127","v":4.734355737353734},{"$f":"AJ125*'III. GDP shares, 1310-2018'!H127","v":0},{"$f":"AK125*'III. GDP shares, 1310-2018'!I127","v":0.8330796705791713},{"$f":"AL125*'III. GDP shares, 1310-2018'!J127","v":0},null,null,{"$f":"U125*'III. GDP shares, 1310-2018'!C127","v":15.670782452530293},{"$f":"V125*'III. GDP shares, 1310-2018'!D127","v":-0.786019824360608},{"$f":"W125*'III. GDP shares, 1310-2018'!E127","v":-0.07706965859418537},{"$f":"X125*'III. GDP shares, 1310-2018'!F127","v":0.30305993980791274},{"$f":"Y125*'III. GDP shares, 1310-2018'!G127","v":-1.420594201668248},{"$f":"Z125*'III. GDP shares, 1310-2018'!H127","v":0},{"$f":"AA125*'III. GDP shares, 1310-2018'!I127","v":-0.26755614351008583},{"$f":"AB125*'III. GDP shares, 1310-2018'!J127","v":0},null,null,13.478468776418923,11.893880133463565,null,13.422602564205079,5.517049484724422,{"$f":"AVERAGE(BL122:BL128)","v":0.8845919961029478},0.789621521712782,null,null,-4.234058612721839]
[{"$f":"'[1]Nominal weighted'!B126","v":1432},null,-2.66665158332081,37.523027078074534,7.003331957796177,-7.01078242729883,19.835827855435326,null,-0.15485552385541812,null,null,1.3713383890029185,24.850917202285718,17.06640678829382,4.949803721643897,{"$f":"AVERAGE(G123:G129)","v":22.68549688622664},null,3.4988426127748915,null,null,12.590216431524148,-11.33255088759826,7.922593968129752,14.54006171718068,-3.0194497890572545,null,6.5548555238554185,{"$nulls":3},9.923564848203338,26.190476190476275,{"v":14.92592592592593,"d":"14.93"},7.529279289881851,16.81637806637807,null,6.4,{"$nulls":3},{"$f":"AE126*'III. GDP shares, 1310-2018'!C128","v":2.8913248268716876},{"$f":"AF126*'III. GDP shares, 1310-2018'!D128","v":1.9118469274150582},{"$f":"AG126*'III. GDP shares, 1310-2018'!E128","v":0.2706515626466778},{"$f":"AH126*'III. GDP shares, 1310-2018'!F128","v":1.5577839720650795},{"$f":"AI126*'III. GDP shares, 1310-2018'!G128","v":4.713585498180163},{"$f":"AJ126*'III. GDP shares, 1310-2018'!H128","v":0},{"$f":"AK126*'III. GDP shares, 1310-2018'!I128","v":0.834019839818078},{"$f":"AL126*'III. GDP shares, 1310-2018'!J128","v":0},null,null,{"$f":"U126*'III. GDP shares, 1310-2018'!C128","v":3.6682790812561974},{"$f":"V126*'III. GDP shares, 1310-2018'!D128","v":-0.8272511899614883},{"$f":"W126*'III. GDP shares, 1310-2018'!E128","v":0.14366026257472814},{"$f":"X126*'III. GDP shares, 1310-2018'!F128","v":3.0082925900091757},{"$f":"Y126*'III. GDP shares, 1310-2018'!G128","v":-0.8463436467713064},{"$f":"Z126*'III. GDP shares, 1310-2018'!H128","v":0},{"$f":"AA126*'III. GDP shares, 1310-2018'!I128","v":0.8541999303182094},{"$f":"AB126*'III. GDP shares, 1310-2018'!J128","v":0},null,null,13.630937386810913,12.179212626996744,null,6.000837027425517,4.5426211606724145,{"$f":"AVERAGE(BL123:BL129)","v":1.7065721716858686},1.1607520373941138,null,null,3.4392774821946803]
[{"$f":"'[1]Nominal weighted'!B127","v":1433},null,43.51433627572827,4.747593219610334,8.851820894619513,-2.6527096084838533,16.05366813039361,null,11.642847364601586,null,null,-3.1372275962839664,27.338368879993304,14.655392505400942,4.41419597525905,{"$f":"AVERAGE(G124:G130)","v":23.224625222436373},null,3.4669466738081907,null,null,-33.74673675222101,21.344999372982343,5.777808735010121,11.419750436827242,0.6914617397362708,null,-5.2428473646015865,{"$nulls":3},9.767599523507254,26.092592592592677,{"v":14.629629629629633,"d":"14.63"},8.767040828343388,16.74512987012988,null,6.4,{"$nulls":3},{"$f":"AE127*'III. GDP shares, 1310-2018'!C129","v":2.8454023031642466},{"$f":"AF127*'III. GDP shares, 1310-2018'!D129","v":1.904380019733552},{"$f":"AG127*'III. GDP shares, 1310-2018'!E129","v":0.26523403286692404},{"$f":"AH127*'III. GDP shares, 1310-2018'!F129","v":1.8135666190731807},{"$f":"AI127*'III. GDP shares, 1310-2018'!G129","v":4.692822273384901},{"$f":"AJ127*'III. GDP shares, 1310-2018'!H129","v":0},{"$f":"AK127*'III. GDP shares, 1310-2018'!I129","v":0.8349596915496769},{"$f":"AL127*'III. GDP shares, 1310-2018'!J129","v":0},null,null,{"$f":"U127*'III. GDP shares, 1310-2018'!C129","v":-9.83077185422608},{"$f":"V127*'III. GDP shares, 1310-2018'!D129","v":1.5578747180022445},{"$f":"W127*'III. GDP shares, 1310-2018'!E129","v":0.10475121727051348},{"$f":"X127*'III. GDP shares, 1310-2018'!F129","v":2.362311137347548},{"$f":"Y127*'III. GDP shares, 1310-2018'!G129","v":0.19378213717029097},{"$f":"Z127*'III. GDP shares, 1310-2018'!H129","v":0},{"$f":"AA127*'III. GDP shares, 1310-2018'!I129","v":-0.6839947216234026},{"$f":"AB127*'III. GDP shares, 1310-2018'!J129","v":0},null,null,13.733665407367141,12.356364939772483,null,-6.296047366058886,0.040739361288896436,{"$f":"AVERAGE(BL124:BL130)","v":3.088640056958108},2.02142375361025,null,null,18.305907004100057]
[{"$f":"'[1]Nominal weighted'!B128","v":1434},null,14.231268542411366,35.39546693702484,25.975771678400186,11.427572043459847,54.895628208787095,null,10.49138697408467,null,null,2.9311631646116787,27.45844050502937,9.773026829632377,2.1346492233867638,{"$f":"AVERAGE(G125:G131)","v":17.324853283001335},null,5.982690924590089,null,null,-3.999294513989806,-9.400757942315764,-11.642438345066846,-1.9587844337141997,-38.3575829207418,null,-4.09138697408467,{"$nulls":3},10.23197402842156,25.99470899470908,{"v":14.333333333333337,"d":"14.33"},9.468787609745647,16.538045288045296,null,6.4,{"$nulls":3},{"$f":"AE128*'III. GDP shares, 1310-2018'!C130","v":2.980176155387322},{"$f":"AF128*'III. GDP shares, 1310-2018'!D130","v":1.8969156332975818},{"$f":"AG128*'III. GDP shares, 1310-2018'!E130","v":0.2598183323481382},{"$f":"AH128*'III. GDP shares, 1310-2018'!F130","v":1.9584005946633587},{"$f":"AI128*'III. GDP shares, 1310-2018'!G130","v":4.634004342275117},{"$f":"AJ128*'III. GDP shares, 1310-2018'!H130","v":0},{"$f":"AK128*'III. GDP shares, 1310-2018'!I130","v":0.8358992259347808},{"$f":"AL128*'III. GDP shares, 1310-2018'!J130","v":0},null,null,{"$f":"U128*'III. GDP shares, 1310-2018'!C130","v":-1.1648389759255846},{"$f":"V128*'III. GDP shares, 1310-2018'!D130","v":-0.686002859630195},{"$f":"W128*'III. GDP shares, 1310-2018'!E130","v":-0.21104085455450827},{"$f":"X128*'III. GDP shares, 1310-2018'!F130","v":-0.4051294376753124},{"$f":"Y128*'III. GDP shares, 1310-2018'!G130","v":-10.747896907888096},{"$f":"Z128*'III. GDP shares, 1310-2018'!H130","v":0},{"$f":"AA128*'III. GDP shares, 1310-2018'!I130","v":-0.5343730007245344},{"$f":"AB128*'III. GDP shares, 1310-2018'!J130","v":0},null,null,13.827808209042487,12.5652142839063,null,-13.74928203639823,-11.575040854985515,{"$f":"AVERAGE(BL125:BL131)","v":3.276678236611737},2.745907761338274,null,null,23.731577827376753]
[{"$f":"'[1]Nominal weighted'!B129","v":1435},null,-2.3370537061921492,30.618600582765442,22.758731531747,16.27165894021442,23.691201076435163,null,-10.48216550445885,null,null,12.3036322523641,21.412775252517203,10.111247852303197,4.742301810087449,{"$f":"AVERAGE(G126:G132)","v":13.072625198559717},null,5.544477792171691,null,null,13.167951914077456,-4.721775185939961,-8.721694494709958,-6.346807688575597,-7.360240370474451,null,16.88216550445885,{"$nulls":3},10.830898207885307,25.89682539682548,{"v":14.037037037037042,"d":"14.04"},9.924851251638822,16.330960705960713,null,6.4,{"$nulls":3},{"$f":"AE129*'III. GDP shares, 1310-2018'!C131","v":3.1540869811235814},{"$f":"AF129*'III. GDP shares, 1310-2018'!D131","v":1.8894537668303926},{"$f":"AG129*'III. GDP shares, 1310-2018'!E131","v":0.2544044601639855},{"$f":"AH129*'III. GDP shares, 1310-2018'!F131","v":2.0523803539529357},{"$f":"AI129*'III. GDP shares, 1310-2018'!G131","v":4.575206268035208},{"$f":"AJ129*'III. GDP shares, 1310-2018'!H131","v":0},{"$f":"AK129*'III. GDP shares, 1310-2018'!I131","v":0.8368384431340931},{"$f":"AL129*'III. GDP shares, 1310-2018'!J131","v":0},null,null,{"$f":"U129*'III. GDP shares, 1310-2018'!C131","v":3.83466494681074},{"$f":"V129*'III. GDP shares, 1310-2018'!D131","v":-0.3445046168591063},{"$f":"W129*'III. GDP shares, 1310-2018'!E131","v":-0.15807025184783913},{"$f":"X129*'III. GDP shares, 1310-2018'!F131","v":-1.3124693841833743},{"$f":"Y129*'III. GDP shares, 1310-2018'!G131","v":-2.0620108322806407},{"$f":"Z129*'III. GDP shares, 1310-2018'!H131","v":0},{"$f":"AA129*'III. GDP shares, 1310-2018'!I131","v":2.2074445464817867},{"$f":"AB129*'III. GDP shares, 1310-2018'!J131","v":0},null,null,13.903428766557894,12.762370273240196,null,2.1650544081215664,0.48326661313938973,{"$f":"AVERAGE(BL126:BL132)","v":1.7063006312373723},2.4403821972682676,null,null,8.363357481429132]
[{"$f":"'[1]Nominal weighted'!B130","v":1436},null,-20.416452629123185,18.9658616546499,6.962107796886787,3.0795790401024865,6.571570420582582,null,11.810263682559805,null,null,10.14585930721053,18.96924612865746,13.431691992502973,8.385237686855907,{"$f":"AVERAGE(G127:G133)","v":14.925799013480818},null,5.998839598670928,null,null,31.61521439514739,6.8330801442919835,6.7786329438539585,7.821844830267152,9.552305703293552,null,-5.410263682559805,{"$nulls":3},11.198761766024205,25.798941798941883,{"v":13.740740740740746,"d":"13.74"},10.901423870369639,16.123876123876133,null,6.4,{"$nulls":3},{"$f":"AE130*'III. GDP shares, 1310-2018'!C132","v":3.2606628468871524},{"$f":"AF130*'III. GDP shares, 1310-2018'!D132","v":1.881994419056092},{"$f":"AG130*'III. GDP shares, 1310-2018'!E132","v":0.24899241538875636},{"$f":"AH130*'III. GDP shares, 1310-2018'!F132","v":2.2539473444020737},{"$f":"AI130*'III. GDP shares, 1310-2018'!G132","v":4.516428040611389},{"$f":"AJ130*'III. GDP shares, 1310-2018'!H132","v":0},{"$f":"AK130*'III. GDP shares, 1310-2018'!I132","v":0.8377773433082094},{"$f":"AL130*'III. GDP shares, 1310-2018'!J132","v":0},null,null,{"$f":"U130*'III. GDP shares, 1310-2018'!C132","v":9.205174386991791},{"$f":"V130*'III. GDP shares, 1310-2018'!D132","v":0.4984630298692306},{"$f":"W130*'III. GDP shares, 1310-2018'!E132","v":0.12283385747317466},{"$f":"X130*'III. GDP shares, 1310-2018'!F132","v":1.6172223549094922},{"$f":"Y130*'III. GDP shares, 1310-2018'!G132","v":2.6756780441250254},{"$f":"Z130*'III. GDP shares, 1310-2018'!H132","v":0},{"$f":"AA130*'III. GDP shares, 1310-2018'!I132","v":-0.7082181772768504},{"$f":"AB130*'III. GDP shares, 1310-2018'!J132","v":0},null,null,14.027290716658769,12.999802409653674,null,13.411153496091863,9.531802389049039,{"$f":"AVERAGE(BL127:BL133)","v":1.280944166022431},1.7066609609780563,null,null,-1.7948824756250517]
[{"$f":"'[1]Nominal weighted'!B131","v":1437},null,32.43794610090096,27.904272206756726,-22.612327556799478,-11.250130212789939,-21.728862305737366,null,10.115902625625525,null,null,4.763465251766126,24.31309280966036,13.888597748839626,9.86038711807491,{"$f":"AVERAGE(G128:G134)","v":19.537204143916913},null,5.694789043341847,null,null,-21.350839566638555,-2.2032140056984417,36.05677200124393,17.65302740206533,37.64565384752892,null,-3.715902625625525,{"$nulls":3},11.087106534262407,25.701058201058284,{"v":13.44444444444445,"d":"13.44"},6.402897189275391,15.916791541791552,null,6.4,{"$nulls":3},{"$f":"AE131*'III. GDP shares, 1310-2018'!C133","v":3.227608270247933},{"$f":"AF131*'III. GDP shares, 1310-2018'!D133","v":1.8745375886996478},{"$f":"AG131*'III. GDP shares, 1310-2018'!E133","v":0.24358219709736625},{"$f":"AH131*'III. GDP shares, 1310-2018'!F133","v":1.323621393966599},{"$f":"AI131*'III. GDP shares, 1310-2018'!G133","v":4.457669649956652},{"$f":"AJ131*'III. GDP shares, 1310-2018'!H133","v":0},{"$f":"AK131*'III. GDP shares, 1310-2018'!I133","v":0.8387159266176161},{"$f":"AL131*'III. GDP shares, 1310-2018'!J133","v":0},null,null,{"$f":"U131*'III. GDP shares, 1310-2018'!C133","v":-6.215521258775739},{"$f":"V131*'III. GDP shares, 1310-2018'!D133","v":-0.16069406315188958},{"$f":"W131*'III. GDP shares, 1310-2018'!E133","v":0.6532652041216209},{"$f":"X131*'III. GDP shares, 1310-2018'!F133","v":3.6492737657554954},{"$f":"Y131*'III. GDP shares, 1310-2018'!G133","v":10.543072588988313},{"$f":"Z131*'III. GDP shares, 1310-2018'!H133","v":0},{"$f":"AA131*'III. GDP shares, 1310-2018'!I133","v":-0.48696667404255384},{"$f":"AB131*'III. GDP shares, 1310-2018'!J133","v":0},null,null,13.158716318472015,11.965735026585815,null,7.982429562895247,10.680916175479275,{"$f":"AVERAGE(BL128:BL134)","v":1.0824983042642544},0.6789960604353198,null,null,1.9480738118390306]
[{"$f":"'[1]Nominal weighted'!B132","v":1438},null,21.36203276614425,-5.26539491126136,21.839298663472192,23.330924895408014,-7.810656995978402,null,5.387964926644513,null,null,3.81076980870537,26.35555662091306,11.342992087827763,8.985969540831242,{"$f":"AVERAGE(G129:G135)","v":13.79114621886076},null,6.057114879781744,null,null,-9.87392139454811,30.868569514436047,-8.69115051532404,-16.565673416198496,23.52036395568536,null,1.0120350733554868,{"$nulls":3},11.488111371596139,25.603174603174686,{"v":13.148148148148154,"d":"13.15"},6.7652514792095175,15.70970695970696,null,6.4,{"$nulls":3},{"$f":"AE132*'III. GDP shares, 1310-2018'!C134","v":3.4042489903261535},{"$f":"AF132*'III. GDP shares, 1310-2018'!D134","v":1.8720836395143108},{"$f":"AG132*'III. GDP shares, 1310-2018'!E134","v":0.24326412475967193},{"$f":"AH132*'III. GDP shares, 1310-2018'!F134","v":1.4288128136330207},{"$f":"AI132*'III. GDP shares, 1310-2018'!G134","v":4.43378059511621},{"$f":"AJ132*'III. GDP shares, 1310-2018'!H134","v":0},{"$f":"AK132*'III. GDP shares, 1310-2018'!I134","v":0.7591702103001614},{"$f":"AL132*'III. GDP shares, 1310-2018'!J134","v":0},null,null,{"$f":"U132*'III. GDP shares, 1310-2018'!C134","v":-2.9259193135137616},{"$f":"V132*'III. GDP shares, 1310-2018'!D134","v":2.2570851020959095},{"$f":"W132*'III. GDP shares, 1310-2018'!E134","v":-0.16080174176944106},{"$f":"X132*'III. GDP shares, 1310-2018'!F134","v":-3.4986499047763306},{"$f":"Y132*'III. GDP shares, 1310-2018'!G134","v":6.638197234630898},{"$f":"Z132*'III. GDP shares, 1310-2018'!H134","v":0},{"$f":"AA132*'III. GDP shares, 1310-2018'!I134","v":0.12004794991725377},{"$f":"AB132*'III. GDP shares, 1310-2018'!J134","v":0},null,null,13.185732093639244,12.14136037364953,null,2.4299593265845276,3.3783705362343746,{"$f":"AVERAGE(BL129:BL135)","v":3.1960296873954688},1.986104487743622,null,null,10.0964025096466]
[{"$f":"'[1]Nominal weighted'!B133","v":1439},null,-17.77106219939578,20.418323211056336,30.2464409391946,18.489768710080384,32.80804455988304,null,3.025677121639246,null,null,6.257409124510947,25.033097297303105,8.919592228917256,6.303146362926522,{"$f":"AVERAGE(G130:G136)","v":12.574149119877921},null,7.138444150011023,null,null,33.45540594553728,5.086967794234752,-16.39458908734274,-11.947704854138324,-17.134967636806113,null,3.374322878360754,{"$nulls":3},15.684343746141499,25.505291005291088,{"v":13.851851851851858,"d":"13.85"},6.542063855942057,15.673076923076923,null,6.4,{"$nulls":3},{"$f":"AE133*'III. GDP shares, 1310-2018'!C135","v":4.646989814484147},{"$f":"AF133*'III. GDP shares, 1310-2018'!D135","v":1.8646374456748125},{"$f":"AG133*'III. GDP shares, 1310-2018'!E135","v":0.2562441763262259},{"$f":"AH133*'III. GDP shares, 1310-2018'!F135","v":1.3814617313394437},{"$f":"AI133*'III. GDP shares, 1310-2018'!G135","v":4.422756891499972},{"$f":"AJ133*'III. GDP shares, 1310-2018'!H135","v":0},{"$f":"AK133*'III. GDP shares, 1310-2018'!I135","v":0.7600444175827841},{"$f":"AL133*'III. GDP shares, 1310-2018'!J135","v":0},null,null,{"$f":"U133*'III. GDP shares, 1310-2018'!C135","v":9.912236889515412},{"$f":"V133*'III. GDP shares, 1310-2018'!D135","v":0.37189736953419517},{"$f":"W133*'III. GDP shares, 1310-2018'!E135","v":-0.3032820464601949},{"$f":"X133*'III. GDP shares, 1310-2018'!F135","v":-2.522949545706298},{"$f":"Y133*'III. GDP shares, 1310-2018'!G135","v":-4.835285156402807},{"$f":"Z133*'III. GDP shares, 1310-2018'!H135","v":0},{"$f":"AA133*'III. GDP shares, 1310-2018'!I135","v":0.4007242604406192},{"$f":"AB133*'III. GDP shares, 1310-2018'!J135","v":0},null,null,{"$f":"AVERAGE(AE133:AL133)","v":13.942771230383904},{"$f":"SUM(AO133:AV133)","v":13.332134476907385},null,{"$f":"SUM(AY133:BF133)","v":3.023341770920927},{"$f":"AVERAGE(U133:AB133)","v":-0.5934274933590654},{"$f":"AVERAGE(BL130:BL136)","v":3.5314773742763057},2.6836388472350245,null,null,{"$f":"((AO133+SUM(AQ133:AV133))-((AY133+(SUM(BA133:BF133)))))","v":8.816052629845839}]
[{"$f":"'[1]Nominal weighted'!B134","v":1440},null,5.837577887617419,42.154519986630646,12.050161188976094,7.673336410049144,48.3335040434463,null,9.514493477298013,null,null,18.60333366283515,25.67700517837329,11.638760387491127,6.120813982211159,{"$f":"AVERAGE(G131:G137)","v":13.455715616128215},null,7.023396729198099,null,null,11.341497850508384,-16.747112579223156,-0.6946056334205339,-1.005718658628831,-32.697057156999406,null,-3.1144934772980117,{"$nulls":3},17.179075738125803,25.40740740740749,{"v":11.355555555555561,"d":"11.36"},6.6676177514203125,15.636446886446887,null,6.4,{"$nulls":3},{"$f":"AE134*'III. GDP shares, 1310-2018'!C136","v":5.0890634061622295},{"$f":"AF134*'III. GDP shares, 1310-2018'!D136","v":1.8571935594774334},{"$f":"AG134*'III. GDP shares, 1310-2018'!E136","v":0.21003286242313735},{"$f":"AH134*'III. GDP shares, 1310-2018'!F136","v":1.4077562785701405},{"$f":"AI134*'III. GDP shares, 1310-2018'!G136","v":4.411736604228155},{"$f":"AJ134*'III. GDP shares, 1310-2018'!H136","v":0},{"$f":"AK134*'III. GDP shares, 1310-2018'!I136","v":0.7609183539407454},{"$f":"AL134*'III. GDP shares, 1310-2018'!J136","v":0},null,null,{"$f":"U134*'III. GDP shares, 1310-2018'!C136","v":3.359761756797904},{"$f":"V134*'III. GDP shares, 1310-2018'!D136","v":-1.2241559763751744},{"$f":"W134*'III. GDP shares, 1310-2018'!E136","v":-0.012847456800224658},{"$f":"X134*'III. GDP shares, 1310-2018'!F136","v":-0.2123407203207302},{"$f":"Y134*'III. GDP shares, 1310-2018'!G136","v":-9.225292993839021},{"$f":"Z134*'III. GDP shares, 1310-2018'!H136","v":0},{"$f":"AA134*'III. GDP shares, 1310-2018'!I136","v":-0.37029300782887364},{"$f":"AB134*'III. GDP shares, 1310-2018'!J136","v":0},null,null,13.774350556492678,13.73670106480184,null,-7.68516839836612,-7.15291494251026,{"$f":"AVERAGE(BL131:BL137)","v":-0.3718757298869946},-0.12501917523499323,null,null,18.340519927315356]
[{"$f":"'[1]Nominal weighted'!B135","v":1441},null,7.562400440986078,49.69271361579375,8.15653205131714,5.306649002754186,14.673222733394018,null,13.027667829163956,null,null,13.313572468893467,25.443965559483225,16.955174447323568,9.301775778974086,{"$f":"AVERAGE(G132:G138)","v":20.148006918012506},null,6.815041466633679,null,null,10.180638608249918,-24.383189806269854,4.102727207942128,1.2492065198545395,0.9265941164228318,null,-6.627667829163957,{"$nulls":3},17.743039049235996,25.309523809523892,{"v":12.259259259259267,"d":"12.26"},6.555855522608725,15.59981684981685,null,6.4,{"$nulls":3},{"$f":"AE135*'III. GDP shares, 1310-2018'!C137","v":5.255315396436525},{"$f":"AF135*'III. GDP shares, 1310-2018'!D137","v":1.849751979849601},{"$f":"AG135*'III. GDP shares, 1310-2018'!E137","v":0.2267126763208375},{"$f":"AH135*'III. GDP shares, 1310-2018'!F137","v":1.3839450995595213},{"$f":"AI135*'III. GDP shares, 1310-2018'!G137","v":4.400719731712869},{"$f":"AJ135*'III. GDP shares, 1310-2018'!H137","v":0},{"$f":"AK135*'III. GDP shares, 1310-2018'!I137","v":0.7617920194999686},{"$f":"AL135*'III. GDP shares, 1310-2018'!J137","v":0},null,null,{"$f":"U135*'III. GDP shares, 1310-2018'!C137","v":3.0154060234566016},{"$f":"V135*'III. GDP shares, 1310-2018'!D137","v":-1.7820506604009756},{"$f":"W135*'III. GDP shares, 1310-2018'!E137","v":0.0758724687892014},{"$f":"X135*'III. GDP shares, 1310-2018'!F137","v":0.2637082582934273},{"$f":"Y135*'III. GDP shares, 1310-2018'!G137","v":0.2613928772810484},{"$f":"Z135*'III. GDP shares, 1310-2018'!H137","v":0},{"$f":"AA135*'III. GDP shares, 1310-2018'!I137","v":-0.7888913218990287},{"$f":"AB135*'III. GDP shares, 1310-2018'!J137","v":0},null,null,13.977915748407455,13.878236903379321,null,1.0454376455202743,-2.425281863827399,{"$f":"AVERAGE(BL132:BL138)","v":-1.255622948328057},-1.673148606229941,null,null,9.200996617608471]
[{"$f":"'[1]Nominal weighted'!B136","v":1442},null,14.789421504446878,21.361385317495724,5.794932519373452,-2.5081033051186257,15.172221383555295,null,-2.9128606128538976,null,null,14.312064032023885,30.443280489520927,13.314128491898142,6.522258230326839,{"$f":"AVERAGE(G133:G139)","v":23.95046480007206},null,6.510733460329938,null,null,3.1134857038366723,3.8502548941445696,6.168030443589519,9.360445693419052,0.3909654296315198,null,9.312860612853898,{"$nulls":3},17.90290720828355,25.211640211640294,{"v":11.96296296296297,"d":"11.96"},6.852342388300427,15.563186813186814,null,6.4,{"$nulls":3},{"$f":"AE136*'III. GDP shares, 1310-2018'!C138","v":5.30184537107103},{"$f":"AF136*'III. GDP shares, 1310-2018'!D138","v":1.8423127057194069},{"$f":"AG136*'III. GDP shares, 1310-2018'!E138","v":0.22119894540979193},{"$f":"AH136*'III. GDP shares, 1310-2018'!F138","v":1.4463095803285397},{"$f":"AI136*'III. GDP shares, 1310-2018'!G138","v":4.389706272367209},{"$f":"AJ136*'III. GDP shares, 1310-2018'!H138","v":0},{"$f":"AK136*'III. GDP shares, 1310-2018'!I138","v":0.7626654143862989},{"$f":"AL136*'III. GDP shares, 1310-2018'!J138","v":0},null,null,{"$f":"U136*'III. GDP shares, 1310-2018'!C138","v":0.9220412961278442},{"$f":"V136*'III. GDP shares, 1310-2018'!D138","v":0.28135311515614275},{"$f":"W136*'III. GDP shares, 1310-2018'!E138","v":0.11404882165075009},{"$f":"X136*'III. GDP shares, 1310-2018'!F138","v":1.975689700744044},{"$f":"Y136*'III. GDP shares, 1310-2018'!G138","v":0.11027454847988159},{"$f":"Z136*'III. GDP shares, 1310-2018'!H138","v":0},{"$f":"AA136*'III. GDP shares, 1310-2018'!I138","v":1.1097807341287593},{"$f":"AB136*'III. GDP shares, 1310-2018'!J138","v":0},null,null,13.982173264062345,13.964038289282277,null,4.513188216287421,5.366007129579206,{"$f":"AVERAGE(BL133:BL139)","v":-2.269894820952937},-2.263370197931032,null,null,7.889890482431591]
[{"$f":"'[1]Nominal weighted'!B137","v":1443},null,{"$f":"AE137-U137","v":66.00501913914624},{"$f":"AF137-V137","v":23.473216822141215},{"$f":"AG137-W137","v":25.996284906903867},{"$f":"AH137-X137","v":1.8032523750949405},{"$f":"AI137-Y137","v":12.742535894334626},null,{"$f":"AK137-AA137","v":11.004931736869349},null,null,19.995764795097553,28.910867684481136,10.11607598426342,6.394339606133927,{"$f":"AVERAGE(G134:G140)","v":20.69708342373226},null,6.454872375784818,null,null,-49.844347202387354,1.6405397916154811,-14.329618240237194,3.5815138962097537,2.7840208822221517,null,-4.604931736869347,{"$nulls":3},16.160671936758895,25.113756613756696,{"v":11.666666666666675,"d":"11.67"},5.384766271304694,15.526556776556777,null,6.4,{"$nulls":3},{"$f":"AE137*'III. GDP shares, 1310-2018'!C139","v":4.785150934413689},{"$f":"AF137*'III. GDP shares, 1310-2018'!D139","v":1.8348757360156078},{"$f":"AG137*'III. GDP shares, 1310-2018'!E139","v":0.21568692245933843},{"$f":"AH137*'III. GDP shares, 1310-2018'!F139","v":1.1363753259822056},{"$f":"AI137*'III. GDP shares, 1310-2018'!G139","v":4.378696224605258},{"$f":"AJ137*'III. GDP shares, 1310-2018'!H139","v":0},{"$f":"AK137*'III. GDP shares, 1310-2018'!I139","v":0.763538538725504},{"$f":"AL137*'III. GDP shares, 1310-2018'!J139","v":0},null,null,{"$f":"U137*'III. GDP shares, 1310-2018'!C139","v":-14.758837103067828},{"$f":"V137*'III. GDP shares, 1310-2018'!D139","v":0.11986206221153078},{"$f":"W137*'III. GDP shares, 1310-2018'!E139","v":-0.26491810785033937},{"$f":"X137*'III. GDP shares, 1310-2018'!F139","v":0.7558255672124162},{"$f":"Y137*'III. GDP shares, 1310-2018'!G139","v":0.7851310436460927},{"$f":"Z137*'III. GDP shares, 1310-2018'!H139","v":0},{"$f":"AA137*'III. GDP shares, 1310-2018'!I139","v":-0.5493816952031123},{"$f":"AB137*'III. GDP shares, 1310-2018'!J139","v":0},null,null,13.375403044173957,13.114323682201602,null,-13.912318233051241,-10.128803768241085,{"$f":"AVERAGE(BL134:BL140)","v":-2.6190380016762984},-1.7439951160059963,null,null,25.311628241448766]
[{"$f":"'[1]Nominal weighted'!B138","v":1444},null,-4.590382256690813,26.272994874526262,14.60257086202763,11.016602364550545,25.11717680745268,null,8.657415787674575,null,null,17.139318115477675,25.91599123126877,11.921148993464149,7.145806761454432,{"$f":"AVERAGE(G135:G141)","v":15.690763076618444},null,6.672772119549708,null,null,19.688724093425506,-1.2571218586531643,-3.2322004916572498,-4.25067493682674,-9.627250067525939,null,-2.257415787674574,{"$nulls":3},15.098341836734694,25.015873015873098,{"v":11.37037037037038,"d":"11.37"},6.765927427723805,15.48992673992674,null,6.4,{"$nulls":3},{"$f":"AE138*'III. GDP shares, 1310-2018'!C140","v":4.469904261322094},{"$f":"AF138*'III. GDP shares, 1310-2018'!D140","v":1.8274410696676249},{"$f":"AG138*'III. GDP shares, 1310-2018'!E140","v":0.21017660667600047},{"$f":"AH138*'III. GDP shares, 1310-2018'!F140","v":1.4276278577055295},{"$f":"AI138*'III. GDP shares, 1310-2018'!G140","v":4.3676895868420775},{"$f":"AJ138*'III. GDP shares, 1310-2018'!H140","v":0},{"$f":"AK138*'III. GDP shares, 1310-2018'!I140","v":0.7644113926432737},{"$f":"AL138*'III. GDP shares, 1310-2018'!J140","v":0},null,null,{"$f":"U138*'III. GDP shares, 1310-2018'!C140","v":5.8288991385183},{"$f":"V138*'III. GDP shares, 1310-2018'!D140","v":-0.09183433704760156},{"$f":"W138*'III. GDP shares, 1310-2018'!E140","v":-0.059745892992480634},{"$f":"X138*'III. GDP shares, 1310-2018'!F140","v":-0.8969031989611618},{"$f":"Y138*'III. GDP shares, 1310-2018'!G140","v":-2.7145925591418645},{"$f":"Z138*'III. GDP shares, 1310-2018'!H140","v":0},{"$f":"AA138*'III. GDP shares, 1310-2018'!I140","v":-0.2696241165673803},{"$f":"AB138*'III. GDP shares, 1310-2018'!J140","v":0},null,null,13.35673989843812,13.0672507748566,null,1.7961990338078115,-0.15598984148536008,{"$f":"AVERAGE(BL135:BL141)","v":-0.2595625205255647},-0.325642909102911,null,null,9.351776334333563]
[{"$f":"'[1]Nominal weighted'!B139","v":1445},null,28.351473708057167,29.729809599002547,-3.6480230245057967,3.8743020548773006,18.806548178438447,null,3.257808882518329,null,null,17.527859927130468,23.471357199097984,12.413620061697591,9.115470492767134,{"$f":"AVERAGE(G136:G142)","v":18.655105993301685},null,7.102318126044328,null,null,-15.405518621477082,-4.811820181013047,13.22209709857988,2.687218427530753,-3.3532514751417413,null,3.1421911174816715,{"$nulls":3},12.945955086580085,24.9179894179895,{"v":9.574074074074083,"d":"9.57"},6.561520482408054,15.453296703296704,null,6.4,{"$nulls":3},{"$f":"AE139*'III. GDP shares, 1310-2018'!C141","v":3.8320910069056717},{"$f":"AF139*'III. GDP shares, 1310-2018'!D141","v":1.82000870560554},{"$f":"AG139*'III. GDP shares, 1310-2018'!E141","v":0.1769454090082473},{"$f":"AH139*'III. GDP shares, 1310-2018'!F141","v":1.3842831055102744},{"$f":"AI139*'III. GDP shares, 1310-2018'!G141","v":4.356686357493709},{"$f":"AJ139*'III. GDP shares, 1310-2018'!H141","v":0},{"$f":"AK139*'III. GDP shares, 1310-2018'!I141","v":0.7652839762652195},{"$f":"AL139*'III. GDP shares, 1310-2018'!J141","v":0},null,null,{"$f":"U139*'III. GDP shares, 1310-2018'!C141","v":-4.560138589332576},{"$f":"V139*'III. GDP shares, 1310-2018'!D141","v":-0.35145510628275933},{"$f":"W139*'III. GDP shares, 1310-2018'!E141","v":0.24436716918562595},{"$f":"X139*'III. GDP shares, 1310-2018'!F141","v":0.5669221150829249},{"$f":"Y139*'III. GDP shares, 1310-2018'!G141","v":-0.945368825532165},{"$f":"Z139*'III. GDP shares, 1310-2018'!H141","v":0},{"$f":"AA139*'III. GDP shares, 1310-2018'!I141","v":0.37572945508931666},{"$f":"AB139*'III. GDP shares, 1310-2018'!J141","v":0},null,null,12.642139294058074,12.335298560788662,null,-4.669943781789632,-0.753180605673261,{"$f":"AVERAGE(BL136:BL142)","v":-1.4484167455287478},-0.9377645644807363,null,null,14.833778530689997]
[{"$f":"'[1]Nominal weighted'!B140","v":1446},null,22.014843142119894,9.6914335757778,7.860073385751562,17.594338340729994,10.03437492550447,null,2.6346495298234047,null,null,18.139815373019463,23.37020171924717,12.880585170933996,10.152892877028778,{"$f":"AVERAGE(G137:G143)","v":17.54021893552309},null,6.547480755909097,null,null,-7.778757798891692,15.1286722443281,2.917704392026225,-1.1620725681043342,5.3822917411621995,null,3.7653504701765956,{"$nulls":3},14.2360853432282,24.8201058201059,{"v":10.777777777777787,"d":"10.78"},16.43226577262566,15.416666666666668,null,6.4,{"$nulls":3},{"$f":"AE140*'III. GDP shares, 1310-2018'!C142","v":4.213325994263125},{"$f":"AF140*'III. GDP shares, 1310-2018'!D142","v":1.8125786427600987},{"$f":"AG140*'III. GDP shares, 1310-2018'!E142","v":0.19916109343922123},{"$f":"AH140*'III. GDP shares, 1310-2018'!F142","v":3.4661762459016763},{"$f":"AI140*'III. GDP shares, 1310-2018'!G142","v":4.345686534977179},{"$f":"AJ140*'III. GDP shares, 1310-2018'!H142","v":0},{"$f":"AK140*'III. GDP shares, 1310-2018'!I142","v":0.766156289716875},{"$f":"AL140*'III. GDP shares, 1310-2018'!J142","v":0},null,null,{"$f":"U140*'III. GDP shares, 1310-2018'!C142","v":-2.302208904130901},{"$f":"V140*'III. GDP shares, 1310-2018'!D142","v":1.1048264017139313},{"$f":"W140*'III. GDP shares, 1310-2018'!E142","v":0.053915863643662326},{"$f":"X140*'III. GDP shares, 1310-2018'!F142","v":-0.2451243417865915},{"$f":"Y140*'III. GDP shares, 1310-2018'!G142","v":1.5171731511494557},{"$f":"Z140*'III. GDP shares, 1310-2018'!H142","v":0},{"$f":"AA140*'III. GDP shares, 1310-2018'!I142","v":0.45075733526784234},{"$f":"AB140*'III. GDP shares, 1310-2018'!J142","v":0},null,null,14.680483563400704,14.803084801058176,null,0.579339505857399,3.0421980801161825,{"$f":"AVERAGE(BL137:BL143)","v":-1.5024101693596232},-1.0426632029868945,null,null,13.515993054154611]
[{"$f":"'[1]Nominal weighted'!B141","v":1447},null,-14.157548869721735,21.190384814144057,24.685672253381192,12.933606497292685,13.28926161364959,null,11.039791683652247,null,null,11.603009879405915,23.83470501086706,11.2078572852591,11.954769803238534,{"$f":"AVERAGE(G138:G144)","v":17.62206277157154},null,6.861690661317087,null,null,29.442341588645977,3.531837408078246,-14.2041907718997,0.44778477401201,2.075321719683745,null,-4.639791683652246,{"$nulls":3},15.284792718924242,24.722222222222303,{"v":10.481481481481492,"d":"10.48"},13.381391271304695,15.364583333333334,null,6.4,{"$nulls":3},{"$f":"AE141*'III. GDP shares, 1310-2018'!C143","v":4.523002265021132},{"$f":"AF141*'III. GDP shares, 1310-2018'!D143","v":1.8051508800627092},{"$f":"AG141*'III. GDP shares, 1310-2018'!E143","v":0.1936558944012824},{"$f":"AH141*'III. GDP shares, 1310-2018'!F143","v":2.8221963940863435},{"$f":"AI141*'III. GDP shares, 1310-2018'!G143","v":4.330334780066169},{"$f":"AJ141*'III. GDP shares, 1310-2018'!H143","v":0},{"$f":"AK141*'III. GDP shares, 1310-2018'!I143","v":0.7670283331236968},{"$f":"AL141*'III. GDP shares, 1310-2018'!J143","v":0},null,null,{"$f":"U141*'III. GDP shares, 1310-2018'!C143","v":8.712435957871733},{"$f":"V141*'III. GDP shares, 1310-2018'!D143","v":0.2578853692084378},{"$f":"W141*'III. GDP shares, 1310-2018'!E143","v":-0.26243668636333656},{"$f":"X141*'III. GDP shares, 1310-2018'!F143","v":0.09443984925942962},{"$f":"Y141*'III. GDP shares, 1310-2018'!G143","v":0.5849060548929031},{"$f":"Z141*'III. GDP shares, 1310-2018'!H143","v":0},{"$f":"AA141*'III. GDP shares, 1310-2018'!I143","v":-0.5560705751801519},{"$f":"AB141*'III. GDP shares, 1310-2018'!J143","v":0},null,null,14.272411837877677,14.441368546761334,null,8.831159969689015,2.7755505058113386,{"$f":"AVERAGE(BL138:BL144)","v":0.02237460711353772},-0.12781809644383044,null,null,4.062943066218047]
[{"$f":"'[1]Nominal weighted'!B142","v":1448},null,10.282193122555643,32.58027539059826,11.603829528951241,19.0942951219431,35.42362315017671,null,16.03448987462629,null,null,13.02402265316574,23.009883188806565,9.822802087234384,11.671277069482226,{"$f":"AVERAGE(G139:G145)","v":15.876146125558398},null,6.750741169370342,null,null,4.638055412286302,-7.955936766259555,-1.418644343766046,-5.778661986290756,-20.111123150176706,null,-9.63448987462629,{"$nulls":3},14.920248534841946,24.624338624338705,{"v":10.185185185185196,"d":"10.19"},13.315633135652346,15.3125,null,6.4,{"$nulls":3},{"$f":"AE142*'III. GDP shares, 1310-2018'!C144","v":4.414444808530073},{"$f":"AF142*'III. GDP shares, 1310-2018'!D144","v":1.7977254164454404},{"$f":"AG142*'III. GDP shares, 1310-2018'!E144","v":0.1881523993614632},{"$f":"AH142*'III. GDP shares, 1310-2018'!F144","v":2.8078930794671604},{"$f":"AI142*'III. GDP shares, 1310-2018'!G144","v":4.314987776910966},{"$f":"AJ142*'III. GDP shares, 1310-2018'!H144","v":0},{"$f":"AK142*'III. GDP shares, 1310-2018'!I144","v":0.7679001066110633},{"$f":"AL142*'III. GDP shares, 1310-2018'!J144","v":0},null,null,{"$f":"U142*'III. GDP shares, 1310-2018'!C144","v":1.372258618120865},{"$f":"V142*'III. GDP shares, 1310-2018'!D144","v":-0.5808314267657473},{"$f":"W142*'III. GDP shares, 1310-2018'!E144","v":-0.026206822189978333},{"$f":"X142*'III. GDP shares, 1310-2018'!F144","v":-1.218557528176511},{"$f":"Y142*'III. GDP shares, 1310-2018'!G144","v":-5.667216363948647},{"$f":"Z142*'III. GDP shares, 1310-2018'!H144","v":0},{"$f":"AA142*'III. GDP shares, 1310-2018'!I144","v":-1.1559884065419903},{"$f":"AB142*'III. GDP shares, 1310-2018'!J144","v":0},null,null,14.126317580003033,14.291103587326168,null,-7.276541929502009,-6.710133451472175,{"$f":"AVERAGE(BL139:BL145)","v":0.3030312350366617},0.3428461155881287,null,null,19.189088673616986]
[{"$f":"'[1]Nominal weighted'!B143","v":1449},null,19.07310962566984,20.653296958540036,9.063688284028277,4.753853384712887,7.36801197910512,null,-6.796722203800522,null,null,10.174884149348072,21.98685795658545,11.541163987013523,11.982693462282802,{"$f":"AVERAGE(G140:G146)","v":16.444792717797302},null,6.829618118178845,null,null,-4.634905274910188,3.873158067915071,0.8252006048606226,6.637719670989011,7.892404687561548,null,13.196722203800523,{"$nulls":3},14.438204350759651,24.526455026455107,{"v":9.8888888888889,"d":"9.89"},11.391573055701897,15.260416666666668,null,6.4,{"$nulls":3},{"$f":"AE143*'III. GDP shares, 1310-2018'!C145","v":4.271161674415115},{"$f":"AF143*'III. GDP shares, 1310-2018'!D145","v":1.7903022508410231},{"$f":"AG143*'III. GDP shares, 1310-2018'!E145","v":0.18265060752874027},{"$f":"AH143*'III. GDP shares, 1310-2018'!F145","v":2.4017911353365435},{"$f":"AI143*'III. GDP shares, 1310-2018'!G145","v":4.299645523305732},{"$f":"AJ143*'III. GDP shares, 1310-2018'!H145","v":0},{"$f":"AK143*'III. GDP shares, 1310-2018'!I145","v":0.7687716103042757},{"$f":"AL143*'III. GDP shares, 1310-2018'!J145","v":0},null,null,{"$f":"U143*'III. GDP shares, 1310-2018'!C145","v":-1.3711143916382702},{"$f":"V143*'III. GDP shares, 1310-2018'!D145","v":0.2827201729468049},{"$f":"W143*'III. GDP shares, 1310-2018'!E145","v":0.015241691306717849},{"$f":"X143*'III. GDP shares, 1310-2018'!F145","v":1.3994920795114105},{"$f":"Y143*'III. GDP shares, 1310-2018'!G145","v":2.2236969818205825},{"$f":"Z143*'III. GDP shares, 1310-2018'!H145","v":0},{"$f":"AA143*'III. GDP shares, 1310-2018'!I145","v":1.5851977155240495},{"$f":"AB143*'III. GDP shares, 1310-2018'!J145","v":0},null,null,13.650922998078705,13.714322801731429,null,4.135234249471296,4.631716660036098,{"$f":"AVERAGE(BL140:BL146)","v":1.1441212897695345},0.6460101147941811,null,null,8.071506474365917]
[{"$f":"'[1]Nominal weighted'!B144","v":1450},null,20.24738068385141,26.724739863480472,14.287189707179602,14.416390858563233,13.31544274667375,null,13.204401074725281,null,null,9.249238174276842,24.422443884609784,12.278892037366717,10.227269360464387,{"$f":"AVERAGE(G141:G147)","v":17.36746351057542},null,7.61865130435133,null,null,-5.851450951690207,-2.2961684349089637,-4.694597114586998,-4.595601145385949,1.892890586659586,null,-6.8044010747252806,{"$nulls":3},14.395929732161205,24.42857142857151,{"v":9.592592592592604,"d":"9.59"},9.820789713177284,15.208333333333336,null,6.4,{"$nulls":3},{"$f":"AE144*'III. GDP shares, 1310-2018'!C146","v":4.257996967478673},{"$f":"AF144*'III. GDP shares, 1310-2018'!D146","v":1.7828813821828466},{"$f":"AG144*'III. GDP shares, 1310-2018'!E146","v":0.1771505181125799},{"$f":"AH144*'III. GDP shares, 1310-2018'!F146","v":2.0702879425107454},{"$f":"AI144*'III. GDP shares, 1310-2018'!G146","v":4.284308017045986},{"$f":"AJ144*'III. GDP shares, 1310-2018'!H146","v":0},{"$f":"AK144*'III. GDP shares, 1310-2018'!I146","v":0.769642844328557},{"$f":"AL144*'III. GDP shares, 1310-2018'!J146","v":0},null,null,{"$f":"U144*'III. GDP shares, 1310-2018'!C146","v":-1.730729509743629},{"$f":"V144*'III. GDP shares, 1310-2018'!D146","v":-0.16758229047184636},{"$f":"W144*'III. GDP shares, 1310-2018'!E146","v":-0.08669713668660434},{"$f":"X144*'III. GDP shares, 1310-2018'!F146","v":-0.9687833583398255},{"$f":"Y144*'III. GDP shares, 1310-2018'!G146","v":0.5332422783002658},{"$f":"Z144*'III. GDP shares, 1310-2018'!H146","v":0},{"$f":"AA144*'III. GDP shares, 1310-2018'!I146","v":-0.8182747807974773},{"$f":"AB144*'III. GDP shares, 1310-2018'!J146","v":0},null,null,13.307702799972658,13.342267671659387,null,-3.2388247977391167,-3.7248880224396355,{"$f":"AVERAGE(BL141:BL147)","v":1.10195026526351},0.10704323126538964,null,null,14.630628796743814]
[{"$f":"'[1]Nominal weighted'!B145","v":1451},null,5.356707159627961,20.499242120102796,4.907184475854626,9.032153228256377,12.895760285360694,null,7.880769344047363,null,null,14.525346864076425,25.40820839498698,8.552504313594694,10.354324102802732,{"$f":"AVERAGE(G142:G148)","v":17.808467730798217},null,7.674121302988829,null,null,10.242256834243685,3.8314457105851147,4.389111820441682,-0.4008869569516826,2.2507997921586873,null,-1.4807693440473628,{"$nulls":3},15.598963993871646,24.33068783068791,{"v":9.296296296296308,"d":"9.30"},8.631266271304694,15.146560077519382,null,6.4,{"$nulls":3},{"$f":"AE145*'III. GDP shares, 1310-2018'!C147","v":4.613114123312132},{"$f":"AF145*'III. GDP shares, 1310-2018'!D147","v":1.7754628094049625},{"$f":"AG145*'III. GDP shares, 1310-2018'!E147","v":0.1716521303229376},{"$f":"AH145*'III. GDP shares, 1310-2018'!F147","v":1.8192470066000401},{"$f":"AI145*'III. GDP shares, 1310-2018'!G147","v":4.2662459502427375},{"$f":"AJ145*'III. GDP shares, 1310-2018'!H147","v":0},{"$f":"AK145*'III. GDP shares, 1310-2018'!I147","v":0.7705138088090533},{"$f":"AL145*'III. GDP shares, 1310-2018'!J147","v":0},null,null,{"$f":"U145*'III. GDP shares, 1310-2018'!C147","v":3.0289639539652966},{"$f":"V145*'III. GDP shares, 1310-2018'!D147","v":0.27958886377301845},{"$f":"W145*'III. GDP shares, 1310-2018'!E147","v":0.08104307029290364},{"$f":"X145*'III. GDP shares, 1310-2018'!F147","v":-0.08449657020129278},{"$f":"Y145*'III. GDP shares, 1310-2018'!G147","v":0.6339700531975068},{"$f":"Z145*'III. GDP shares, 1310-2018'!H147","v":0},{"$f":"AA145*'III. GDP shares, 1310-2018'!I147","v":-0.17827394175775263},{"$f":"AB145*'III. GDP shares, 1310-2018'!J147","v":0},null,null,13.233962411613325,13.416235828691862,null,3.76079542926968,3.1386596427383537,{"$f":"AVERAGE(BL142:BL148)","v":-0.7386609494379748},-0.5595009188826268,null,null,8.159566453790239]
[{"$f":"'[1]Nominal weighted'!B146","v":1452},null,8.407504181333481,22.56863297345474,8.38051027394816,6.054216804481335,22.787074324110762,null,3.809947524177849,null,null,14.286473321082727,24.965866660305505,-0.7984886426121065,9.508588429914695,{"$f":"AVERAGE(G143:G149)","v":12.841497006555898},null,5.615831479577001,null,null,7.236359153613675,1.6641712593495726,0.6194897260518407,3.8060192201827285,-7.702287502405332,null,2.5900524758221515,{"$nulls":3},15.643863334947156,24.232804232804313,{"v":9,"d":"9.00"},9.860236024664063,15.084786821705428,null,6.4,{"$nulls":3},{"$f":"AE146*'III. GDP shares, 1310-2018'!C148","v":4.625676749339207},{"$f":"AF146*'III. GDP shares, 1310-2018'!D148","v":1.7680465314420808},{"$f":"AG146*'III. GDP shares, 1310-2018'!E148","v":0.1661554433702573},{"$f":"AH146*'III. GDP shares, 1310-2018'!F148","v":2.0779605057137656},{"$f":"AI146*'III. GDP shares, 1310-2018'!G148","v":4.248189470646505},{"$f":"AJ146*'III. GDP shares, 1310-2018'!H148","v":0},{"$f":"AK146*'III. GDP shares, 1310-2018'!I148","v":0.7713845038708331},{"$f":"AL146*'III. GDP shares, 1310-2018'!J148","v":0},null,null,{"$f":"U146*'III. GDP shares, 1310-2018'!C148","v":2.139692579131815},{"$f":"V146*'III. GDP shares, 1310-2018'!D148","v":0.12141938648749251},{"$f":"W146*'III. GDP shares, 1310-2018'!E148","v":0.011436843343940314},{"$f":"X146*'III. GDP shares, 1310-2018'!F148","v":0.8020860356430123},{"$f":"Y146*'III. GDP shares, 1310-2018'!G148","v":-2.169124234525391},{"$f":"Z146*'III. GDP shares, 1310-2018'!H148","v":0},{"$f":"AA146*'III. GDP shares, 1310-2018'!I148","v":0.3121759912596083},{"$f":"AB146*'III. GDP shares, 1310-2018'!J148","v":0},null,null,13.370281735686826,13.657413204382648,null,1.2176866013404772,1.368967388769106,{"$f":"AVERAGE(BL143:BL149)","v":1.2728647867001734},2.2782195997161634,null,null,10.793099458087584]
[{"$f":"'[1]Nominal weighted'!B147","v":1453},null,15.535321316621303,26.74053507194817,13.024169738223925,5.306369628001086,16.493070474951317,null,8.157881833030793,null,null,8.491500515289882,24.59122967831654,2.5946443061180844,9.198733262520646,{"$f":"AVERAGE(G144:G150)","v":12.796905656077707},null,6.613809989162385,null,null,0.24805169925171405,-2.605614437027455,-4.024169738223926,5.22625059057815,-1.4700569090598388,null,-1.7578818330307917,{"$nulls":3},15.783373015873018,24.134920634920714,{"v":9,"d":"9.00"},10.532620218579236,15.023013565891477,null,6.4,{"$nulls":3},{"$f":"AE147*'III. GDP shares, 1310-2018'!C149","v":4.666206149245719},{"$f":"AF147*'III. GDP shares, 1310-2018'!D149","v":1.7606325472295703},{"$f":"AG147*'III. GDP shares, 1310-2018'!E149","v":0.16612974860046686},{"$f":"AH147*'III. GDP shares, 1310-2018'!F149","v":2.219316475616284},{"$f":"AI147*'III. GDP shares, 1310-2018'!G149","v":4.230138575665222},{"$f":"AJ147*'III. GDP shares, 1310-2018'!H149","v":0},{"$f":"AK147*'III. GDP shares, 1310-2018'!I149","v":0.7722549296388875},{"$f":"AL147*'III. GDP shares, 1310-2018'!J149","v":0},null,null,{"$f":"U147*'III. GDP shares, 1310-2018'!C149","v":0.07333415761099756},{"$f":"V147*'III. GDP shares, 1310-2018'!D149","v":-0.19007850296073128},{"$f":"W147*'III. GDP shares, 1310-2018'!E149","v":-0.0742815896596386},{"$f":"X147*'III. GDP shares, 1310-2018'!F149","v":1.101217341997165},{"$f":"Y147*'III. GDP shares, 1310-2018'!G149","v":-0.41393455528495976},{"$f":"Z147*'III. GDP shares, 1310-2018'!H149","v":0},{"$f":"AA147*'III. GDP shares, 1310-2018'!I149","v":-0.2121145173876051},{"$f":"AB147*'III. GDP shares, 1310-2018'!J149","v":0},null,null,13.478987905877409,13.81467842599615,null,0.28414233431522773,-0.730570104585358,{"$f":"AVERAGE(BL144:BL150)","v":2.9013454784906743},2.586169855072196,null,null,11.57982504149062]
[{"$f":"'[1]Nominal weighted'!B148","v":1454},null,22.77521195887534,28.090736386784364,-1.3990418130229667,13.822989693661103,16.37629115520918,null,11.428081674114754,null,null,8.806240763214642,23.95933411927454,3.654811704535574,8.853123395758962,{"$f":"AVERAGE(G145:G151)","v":13.532493523055612},null,5.867389611444212,null,null,-6.7654500541134315,-4.053699349747248,10.400529908261062,-4.479799256502635,-1.4150508451316548,null,-5.028081674114753,{"$nulls":3},16.009761904761906,24.037037037037116,{"v":9.001488095238095,"d":"9.00"},9.34319043715847,14.961240310077525,null,6.4,{"$nulls":3},{"$f":"AE148*'III. GDP shares, 1310-2018'!C150","v":4.732404067239166},{"$f":"AF148*'III. GDP shares, 1310-2018'!D150","v":1.753220855703458},{"$f":"AG148*'III. GDP shares, 1310-2018'!E150","v":0.16613152607240686},{"$f":"AH148*'III. GDP shares, 1310-2018'!F150","v":1.968388676225026},{"$f":"AI148*'III. GDP shares, 1310-2018'!G150","v":4.212093262708424},{"$f":"AJ148*'III. GDP shares, 1310-2018'!H150","v":0},{"$f":"AK148*'III. GDP shares, 1310-2018'!I150","v":0.7731250862381303},{"$f":"AL148*'III. GDP shares, 1310-2018'!J150","v":0},null,null,{"$f":"U148*'III. GDP shares, 1310-2018'!C150","v":-1.9998325736041598},{"$f":"V148*'III. GDP shares, 1310-2018'!D150","v":-0.2956699792814588},{"$f":"W148*'III. GDP shares, 1310-2018'!E150","v":0.19195225137665609},{"$f":"X148*'III. GDP shares, 1310-2018'!F150","v":-0.9437874768335428},{"$f":"Y148*'III. GDP shares, 1310-2018'!G150","v":-0.3983844927050717},{"$f":"Z148*'III. GDP shares, 1310-2018'!H150","v":0},{"$f":"AA148*'III. GDP shares, 1310-2018'!I150","v":-0.6073962621738016},{"$f":"AB148*'III. GDP shares, 1310-2018'!J150","v":0},null,null,13.292119630712186,13.605363474186612,null,-4.053118533221379,-1.8902585452247767,{"$f":"AVERAGE(BL145:BL151)","v":2.838105004602338},2.518277555242133,null,null,15.609591172423073]
[{"$f":"'[1]Nominal weighted'!B149","v":1455},null,8.610078321599758,29.483883247827965,-53.85312116449637,13.174145411726835,0.654828080480458,null,1.6264611107434916,null,null,14.112889950099609,23.506057143398717,4.462898813085933,8.469832700023499,{"$f":"AVERAGE(G146:G152)","v":16.05176848547781},null,6.576772623395685,null,null,7.383572472051042,-5.544729808674447,61.35609735497256,-3.289656809072658,14.244638973783113,null,4.773538889256509,{"$nulls":3},15.993650793650799,23.939153439153518,{"v":7.50297619047619,"d":"7.50"},9.884488602654177,14.899467054263571,null,6.4,{"$nulls":3},{"$f":"AE149*'III. GDP shares, 1310-2018'!C151","v":4.726910834397772},{"$f":"AF149*'III. GDP shares, 1310-2018'!D151","v":1.7458114558004303},{"$f":"AG149*'III. GDP shares, 1310-2018'!E151","v":0.13845357251233542},{"$f":"AH149*'III. GDP shares, 1310-2018'!F151","v":2.082105431085426},{"$f":"AI149*'III. GDP shares, 1310-2018'!G151","v":4.194053529187249},{"$f":"AJ149*'III. GDP shares, 1310-2018'!H151","v":0},{"$f":"AK149*'III. GDP shares, 1310-2018'!I151","v":0.773994973793398},{"$f":"AL149*'III. GDP shares, 1310-2018'!J151","v":0},null,null,{"$f":"U149*'III. GDP shares, 1310-2018'!C151","v":2.1822090006213277},{"$f":"V149*'III. GDP shares, 1310-2018'!D151","v":-0.40436069904919164},{"$f":"W149*'III. GDP shares, 1310-2018'!E151","v":1.1322134921597633},{"$f":"X149*'III. GDP shares, 1310-2018'!F151","v":-0.6929455416376455},{"$f":"Y149*'III. GDP shares, 1310-2018'!G151","v":4.0097258608251725},{"$f":"Z149*'III. GDP shares, 1310-2018'!H151","v":0},{"$f":"AA149*'III. GDP shares, 1310-2018'!I151","v":0.5772961105456027},{"$f":"AB149*'III. GDP shares, 1310-2018'!J151","v":0},null,null,13.10328934669971,13.661329796776611,null,6.804138223465029,13.153910178719356,{"$f":"AVERAGE(BL146:BL152)","v":0.5360859896558706},1.063442718462993,null,null,4.707019418461961]
[{"$f":"'[1]Nominal weighted'!B150","v":1456},null,-21.491700014880074,18.030838084617244,32.81561892513962,2.584867212954559,7.055872525757783,null,0.1891273632971613,null,null,18.451635312682015,23.845187579707765,4.302921656218181,9.116843371595722,{"$f":"AVERAGE(G147:G153)","v":13.818367912534029},null,6.313130008862706,null,null,37.54173969741976,5.810431756652676,-23.81115463942533,7.190499961128189,7.781821272691834,null,6.210872636702839,{"$nulls":3},16.050039682539683,23.84126984126992,{"v":9.004464285714285,"d":"9.00"},9.775367174082747,14.837693798449617,null,6.4,{"$nulls":3},{"$f":"AE150*'III. GDP shares, 1310-2018'!C152","v":4.742843305323013},{"$f":"AF150*'III. GDP shares, 1310-2018'!D152","v":1.7384043464578296},{"$f":"AG150*'III. GDP shares, 1310-2018'!E152","v":0.1661350793678105},{"$f":"AH150*'III. GDP shares, 1310-2018'!F152","v":2.0588014069369356},{"$f":"AI150*'III. GDP shares, 1310-2018'!G152","v":4.176019372514437},{"$f":"AJ150*'III. GDP shares, 1310-2018'!H152","v":0},{"$f":"AK150*'III. GDP shares, 1310-2018'!I152","v":0.7748645924294504},{"$f":"AL150*'III. GDP shares, 1310-2018'!J152","v":0},null,null,{"$f":"U150*'III. GDP shares, 1310-2018'!C152","v":11.093716421635161},{"$f":"V150*'III. GDP shares, 1310-2018'!D152","v":0.42367205638840183},{"$f":"W150*'III. GDP shares, 1310-2018'!E152","v":-0.4393229780628015},{"$f":"X150*'III. GDP shares, 1310-2018'!F152","v":1.5143995282141187},{"$f":"Y150*'III. GDP shares, 1310-2018'!G152","v":2.1901676116002378},{"$f":"Z150*'III. GDP shares, 1310-2018'!H152","v":0},{"$f":"AA150*'III. GDP shares, 1310-2018'!I152","v":0.751966452229683},{"$f":"AB150*'III. GDP shares, 1310-2018'!J152","v":0},null,null,13.31813913034271,13.657068103029477,null,15.5345990920048,6.787368447528327,{"$f":"AVERAGE(BL147:BL153)","v":-0.36876569039308343},0.5323978888574554,null,null,-3.1922632790447523]
[{"$f":"'[1]Nominal weighted'!B151","v":1457},null,22.450562419324726,22.30147095018651,21.708361496102025,11.997121791231443,18.464557815519097,null,7.97945843069807,null,null,18.837157016575244,23.53899103674059,4.147632905102266,10.203490337958627,{"$f":"AVERAGE(G148:G154)","v":13.768972372038844},null,6.186639782242013,null,null,-5.851633847896152,1.4419152931998127,-12.702409115149646,-2.8205813540729743,-3.688637272883432,null,-1.5794584306980695,{"$nulls":3},16.598928571428573,23.743386243386322,{"v":9.00595238095238,"d":"9.01"},9.176540437158469,14.775920542635665,null,6.4,{"$nulls":3},{"$f":"AE151*'III. GDP shares, 1310-2018'!C153","v":4.904283845626642},{"$f":"AF151*'III. GDP shares, 1310-2018'!D153","v":1.730999526613656},{"$f":"AG151*'III. GDP shares, 1310-2018'!E153","v":0.1661368551917837},{"$f":"AH151*'III. GDP shares, 1310-2018'!F153","v":1.9323831231549367},{"$f":"AI151*'III. GDP shares, 1310-2018'!G153","v":4.1579907901043285},{"$f":"AJ151*'III. GDP shares, 1310-2018'!H153","v":0},{"$f":"AK151*'III. GDP shares, 1310-2018'!I153","v":0.7757339422709694},{"$f":"AL151*'III. GDP shares, 1310-2018'!J153","v":0},null,null,{"$f":"U151*'III. GDP shares, 1310-2018'!C153","v":-1.7289111900967284},{"$f":"V151*'III. GDP shares, 1310-2018'!D153","v":0.10512210281888965},{"$f":"W151*'III. GDP shares, 1310-2018'!E153","v":-0.23432705553871047},{"$f":"X151*'III. GDP shares, 1310-2018'!F153","v":-0.5939540988699499},{"$f":"Y151*'III. GDP shares, 1310-2018'!G153","v":-1.0379941990368236},{"$f":"Z151*'III. GDP shares, 1310-2018'!H153","v":0},{"$f":"AA151*'III. GDP shares, 1310-2018'!I153","v":-0.19144367423414563},{"$f":"AB151*'III. GDP shares, 1310-2018'!J153","v":0},null,null,13.2834546959269,13.667528082962317,null,-3.6815081149574684,-4.200134121250077,{"$f":"AVERAGE(BL148:BL154)","v":-0.8924102211333022},0.23756073472987507,null,null,15.723158774125018]
[{"$f":"'[1]Nominal weighted'!B152","v":1458},null,42.50325146782273,17.32630328897205,10.563794235707139,6.349118358108125,30.530685022316085,null,12.846450427707676,null,null,17.43641529557879,21.089442330549677,6.683858215090399,9.164729281542952,{"$f":"AVERAGE(G149:G155)","v":13.934367596918369},null,5.979836214936761,null,null,-27.54283480115606,6.3191993565306745,-1.5563537595166634,2.7718720790503437,-15.816537735494373,null,-6.446450427707677,{"$nulls":3},14.960416666666665,23.645502645502724,{"v":9.007440476190474,"d":"9.01"},9.120990437158468,14.714147286821714,null,6.4,{"$nulls":3},{"$f":"AE152*'III. GDP shares, 1310-2018'!C154","v":4.419489610947716},{"$f":"AF152*'III. GDP shares, 1310-2018'!D154","v":1.7235969952065648},{"$f":"AG152*'III. GDP shares, 1310-2018'!E154","v":0.16613863046694388},{"$f":"AH152*'III. GDP shares, 1310-2018'!F154","v":1.9203886904027871},{"$f":"AI152*'III. GDP shares, 1310-2018'!G154","v":4.1399677793728555},{"$f":"AJ152*'III. GDP shares, 1310-2018'!H154","v":0},{"$f":"AK152*'III. GDP shares, 1310-2018'!I154","v":0.77660302344256},{"$f":"AL152*'III. GDP shares, 1310-2018'!J154","v":0},null,null,{"$f":"U152*'III. GDP shares, 1310-2018'!C154","v":-8.136489442234234},{"$f":"V152*'III. GDP shares, 1310-2018'!D154","v":0.4606268340461392},{"$f":"W152*'III. GDP shares, 1310-2018'!E154","v":-0.028706321491844624},{"$f":"X152*'III. GDP shares, 1310-2018'!F154","v":0.5836067725896967},{"$f":"Y152*'III. GDP shares, 1310-2018'!G154","v":-4.450136003791859},{"$f":"Z152*'III. GDP shares, 1310-2018'!H154","v":0},{"$f":"AA152*'III. GDP shares, 1310-2018'!I154","v":-0.7822395144734946},{"$f":"AB152*'III. GDP shares, 1310-2018'!J154","v":0},null,null,12.97474958539001,13.146184729839428,null,-12.353337675355597,-7.045184214715626,{"$f":"AVERAGE(BL149:BL155)","v":-0.32777010250524097},0.521036717002476,null,null,24.2365522440346]
[{"$f":"'[1]Nominal weighted'!B153","v":1459},null,38.77872171941032,24.942546027618082,7.2606701758739005,10.583291505486912,7.153270313504301,null,1.9644492224469996,null,null,17.540467344559087,20.123848599805942,16.25890055628003,9.125311679964904,{"$f":"AVERAGE(G150:G156)","v":16.2854113847909},null,5.8341813002370575,null,null,-25.247909937801126,-1.3949269799989565,1.7482583955546687,-1.13015448362899,7.499103717503459,null,4.435550777553001,{"$nulls":3},13.530811781609195,23.547619047619126,{"v":9.00892857142857,"d":"9.01"},9.453137021857922,14.65237403100776,null,6.4,{"$nulls":3},{"$f":"AE153*'III. GDP shares, 1310-2018'!C155","v":3.996549325000495},{"$f":"AF153*'III. GDP shares, 1310-2018'!D155","v":1.716196751175869},{"$f":"AG153*'III. GDP shares, 1310-2018'!E155","v":0.1661404051935454},{"$f":"AH153*'III. GDP shares, 1310-2018'!F155","v":1.9900133446615025},{"$f":"AI153*'III. GDP shares, 1310-2018'!G155","v":4.121950337737553},{"$f":"AJ153*'III. GDP shares, 1310-2018'!H155","v":0},{"$f":"AK153*'III. GDP shares, 1310-2018'!I155","v":0.7774718360687507},{"$f":"AL153*'III. GDP shares, 1310-2018'!J155","v":0},null,null,{"$f":"U153*'III. GDP shares, 1310-2018'!C155","v":-7.457388296298656},{"$f":"V153*'III. GDP shares, 1310-2018'!D155","v":-0.1016650195656969},{"$f":"W153*'III. GDP shares, 1310-2018'!E155","v":0.03224094362804031},{"$f":"X153*'III. GDP shares, 1310-2018'!F155","v":-0.23791282182310908},{"$f":"Y153*'III. GDP shares, 1310-2018'!G155","v":2.109619440213425},{"$f":"Z153*'III. GDP shares, 1310-2018'!H155","v":0},{"$f":"AA153*'III. GDP shares, 1310-2018'!I155","v":0.5388305948437978},{"$f":"AB153*'III. GDP shares, 1310-2018'!J155","v":0},null,null,12.76547840892043,12.768321999837715,null,-5.116275159002198,-2.348346418469657,{"$f":"AVERAGE(BL150:BL156)","v":-1.2914226557714081},-1.3885846998245313,null,null,16.066735388098348]
[{"$f":"'[1]Nominal weighted'!B154","v":1460},null,18.23397324387389,24.597159271177944,11.937148480412517,12.91289839254141,16.14730169148502,null,7.2724502466859375,null,null,17.25874995759675,23.768744979717066,14.603336468101919,10.795281008524231,{"$f":"AVERAGE(G151:G157)","v":18.651593043706214},null,6.4526205965187415,null,null,-6.360266347322169,-1.1474238214424162,-2.9267318137458522,-3.903007955382941,-1.556700916291211,null,-0.8724502466859371,{"$nulls":3},11.873706896551724,23.449735449735527,{"v":9.010416666666664,"d":"9.01"},9.009890437158468,14.590600775193806,null,6.4,{"$nulls":3},{"$f":"AE154*'III. GDP shares, 1310-2018'!C156","v":3.506554194899881},{"$f":"AF154*'III. GDP shares, 1310-2018'!D156","v":1.7087987934615358},{"$f":"AG154*'III. GDP shares, 1310-2018'!E156","v":0.16614217937184253},{"$f":"AH154*'III. GDP shares, 1310-2018'!F156","v":1.8964109419918225},{"$f":"AI154*'III. GDP shares, 1310-2018'!G156","v":4.103938462617551},{"$f":"AJ154*'III. GDP shares, 1310-2018'!H156","v":0},{"$f":"AK154*'III. GDP shares, 1310-2018'!I156","v":0.7783403802739928},{"$f":"AL154*'III. GDP shares, 1310-2018'!J156","v":0},null,null,{"$f":"U154*'III. GDP shares, 1310-2018'!C156","v":-1.8783197896993784},{"$f":"V154*'III. GDP shares, 1310-2018'!D156","v":-0.08361358471922288},{"$f":"W154*'III. GDP shares, 1310-2018'!E156","v":-0.053965717675576404},{"$f":"X154*'III. GDP shares, 1310-2018'!F156","v":-0.8215091010145162},{"$f":"Y154*'III. GDP shares, 1310-2018'!G156","v":-0.43785755388640785},{"$f":"Z154*'III. GDP shares, 1310-2018'!H156","v":0},{"$f":"AA154*'III. GDP shares, 1310-2018'!I156","v":-0.1061036338711986},{"$f":"AB154*'III. GDP shares, 1310-2018'!J156","v":0},null,null,12.389058370884365,12.160184952616625,null,-3.3813693808663006,-2.7944301834784206,{"$f":"AVERAGE(BL151:BL157)","v":-2.697724736947803},-2.555681564601652,null,null,13.749141955302168]
[{"$f":"'[1]Nominal weighted'!B155","v":1461},null,12.970019911900186,10.943895443447925,16.354535356893965,6.551662298751393,17.534057729365834,null,9.980456702977994,null,null,12.09846732159444,24.864472336328078,12.00686997219594,10.534838806787016,{"$f":"AVERAGE(G152:G158)","v":18.691666241877268},null,6.1472692036107075,null,null,-0.31787705475733063,12.407956408404004,-7.342630594989206,2.402678138407075,-3.0052302099859802,null,-3.580456702977994,{"$nulls":3},12.652142857142856,23.35185185185193,{"v":9.01190476190476,"d":"9.01"},8.954340437158468,14.528827519379854,null,6.4,{"$nulls":3},{"$f":"AE155*'III. GDP shares, 1310-2018'!C157","v":3.7358655282066056},{"$f":"AF155*'III. GDP shares, 1310-2018'!D157","v":1.701403121004188},{"$f":"AG155*'III. GDP shares, 1310-2018'!E157","v":0.16614395300208934},{"$f":"AH155*'III. GDP shares, 1310-2018'!F157","v":1.8844276228988954},{"$f":"AI155*'III. GDP shares, 1310-2018'!G157","v":4.085932151433575},{"$f":"AJ155*'III. GDP shares, 1310-2018'!H157","v":0},{"$f":"AK155*'III. GDP shares, 1310-2018'!I157","v":0.7792086561826607},{"$f":"AL155*'III. GDP shares, 1310-2018'!J157","v":0},null,null,{"$f":"U155*'III. GDP shares, 1310-2018'!C157","v":-0.09386124899825311},{"$f":"V155*'III. GDP shares, 1310-2018'!D157","v":0.9040369000486047},{"$f":"W155*'III. GDP shares, 1310-2018'!E157","v":-0.13536912614106947},{"$f":"X155*'III. GDP shares, 1310-2018'!F157","v":0.5056400395679371},{"$f":"Y155*'III. GDP shares, 1310-2018'!G157","v":-0.845158821044722},{"$f":"Z155*'III. GDP shares, 1310-2018'!H157","v":0},{"$f":"AA155*'III. GDP shares, 1310-2018'!I157","v":-0.43592544625745033},{"$f":"AB155*'III. GDP shares, 1310-2018'!J157","v":0},null,null,12.483177904572978,12.352981032728014,null,-0.10063770282495299,0.09407333068342805,{"$f":"AVERAGE(BL152:BL158)","v":-1.3050835670468028},-1.4744907765175252,null,null,11.656252514597384]
[{"$f":"'[1]Nominal weighted'!B156","v":1462},null,9.338442664461855,22.72472713262183,13.17217522383105,12.898222200680479,17.112134595588202,null,0.6068767078455659,null,null,6.839393028286929,24.155883493130826,9.767854239648651,10.926968426146228,{"$f":"AVERAGE(G153:G159)","v":15.98093734694602},null,6.13576749162159,null,null,3.5664118328926424,0.5292411213465016,-4.158782366688196,-4.365551982101244,-2.645080332022301,null,5.7931232921544344,{"$nulls":3},12.904854497354497,23.25396825396833,{"v":9.013392857142854,"d":"9.01"},8.532670218579234,14.467054263565903,null,6.4,{"$nulls":3},{"$f":"AE156*'III. GDP shares, 1310-2018'!C158","v":3.809896592886159},{"$f":"AF156*'III. GDP shares, 1310-2018'!D158","v":1.6940097327451016},{"$f":"AG156*'III. GDP shares, 1310-2018'!E158","v":0.16614572608453965},{"$f":"AH156*'III. GDP shares, 1310-2018'!F158","v":1.79541044822917},{"$f":"AI156*'III. GDP shares, 1310-2018'!G158","v":4.067931401607938},{"$f":"AJ156*'III. GDP shares, 1310-2018'!H158","v":0},{"$f":"AK156*'III. GDP shares, 1310-2018'!I158","v":0.7800766639190515},{"$f":"AL156*'III. GDP shares, 1310-2018'!J158","v":0},null,null,{"$f":"U156*'III. GDP shares, 1310-2018'!C158","v":1.0529107704199252},{"$f":"V156*'III. GDP shares, 1310-2018'!D158","v":0.03855426311493777},{"$f":"W156*'III. GDP shares, 1310-2018'!E158","v":-0.07665969151598907},{"$f":"X156*'III. GDP shares, 1310-2018'!F158","v":-0.918582042920818},{"$f":"Y156*'III. GDP shares, 1310-2018'!G158","v":-0.7437592440298828},{"$f":"Z156*'III. GDP shares, 1310-2018'!H158","v":0},{"$f":"AA156*'III. GDP shares, 1310-2018'!I158","v":0.706106295533685},{"$f":"AB156*'III. GDP shares, 1310-2018'!J158","v":0},null,null,12.428656681768471,12.31347056547196,null,0.058570350601858,-0.21343973906969374,{"$f":"AVERAGE(BL153:BL159)","v":0.9153886887116799},0.20943320479685992,null,null,10.599444745239937]
[{"$f":"'[1]Nominal weighted'!B157","v":1463},null,-23.463721723616473,43.54511274399512,21.226670307892846,14.27465251286986,23.619144138164962,null,4.51820243726895,null,null,5.959225206219855,23.544394586596926,11.243433617951561,10.400904135283493,{"$f":"AVERAGE(G154:G160)","v":16.208437590223973},null,7.556327320260762,null,null,36.61628786118261,-20.38902808791039,-12.211789355511895,-4.977262485547459,-9.213863130413014,null,1.88179756273105,{"$nulls":3},13.15256613756614,23.156084656084733,{"v":9.014880952380949,"d":"9.01"},9.297390027322402,14.405281007751949,null,6.4,{"$nulls":3},{"$f":"AE157*'III. GDP shares, 1310-2018'!C159","v":3.8824288754716347},{"$f":"AF157*'III. GDP shares, 1310-2018'!D159","v":1.6866186276262078},{"$f":"AG157*'III. GDP shares, 1310-2018'!E159","v":0.16614749861944725},{"$f":"AH157*'III. GDP shares, 1310-2018'!F159","v":1.9560176775427491},{"$f":"AI157*'III. GDP shares, 1310-2018'!G159","v":4.049936210564551},{"$f":"AJ157*'III. GDP shares, 1310-2018'!H159","v":0},{"$f":"AK157*'III. GDP shares, 1310-2018'!I159","v":0.7809444036073865},{"$f":"AL157*'III. GDP shares, 1310-2018'!J159","v":0},null,null,{"$f":"U157*'III. GDP shares, 1310-2018'!C159","v":10.808547306886485},{"$f":"V157*'III. GDP shares, 1310-2018'!D159","v":-1.4850746610665608},{"$f":"W157*'III. GDP shares, 1310-2018'!E159","v":-0.22506767042220546},{"$f":"X157*'III. GDP shares, 1310-2018'!F159","v":-1.047134021364165},{"$f":"Y157*'III. GDP shares, 1310-2018'!G159","v":-2.590408192034894},{"$f":"Z157*'III. GDP shares, 1310-2018'!H159","v":0},{"$f":"AA157*'III. GDP shares, 1310-2018'!I159","v":0.22962176177138016},{"$f":"AB157*'III. GDP shares, 1310-2018'!J159","v":0},null,null,12.571033796851028,12.522093293431976,null,5.690484523770039,-1.3823096059115156,{"$f":"AVERAGE(BL154:BL160)","v":1.1006177736705578},0.029723483050626522,null,null,3.6599154809691683]
[{"$f":"'[1]Nominal weighted'!B158","v":1464},null,-13.67141603269142,29.971562446463594,3.5330960247601597,10.174026379070916,18.745070202716484,null,5.8419986803418364,null,null,6.60404921327752,22.551543593875994,9.366100196840907,9.09978774335457,{"$f":"AVERAGE(G155:G161)","v":15.569125112489322},null,5.968834253299295,null,null,26.8691938104692,-6.913361388262459,5.483273022858884,-1.3863359419124501,-4.401562450778487,null,0.5580013196581638,{"$nulls":3},13.197777777777778,23.058201058201135,{"v":9.016369047619044,"d":"9.02"},8.787690437158467,14.343507751937995,null,6.4,{"$nulls":3},{"$f":"AE158*'III. GDP shares, 1310-2018'!C160","v":3.8951732033903337},{"$f":"AF158*'III. GDP shares, 1310-2018'!D160","v":1.6792298045900906},{"$f":"AG158*'III. GDP shares, 1310-2018'!E160","v":0.16614927060706575},{"$f":"AH158*'III. GDP shares, 1310-2018'!F160","v":1.8484998654879286},{"$f":"AI158*'III. GDP shares, 1310-2018'!G160","v":4.031946575728915},{"$f":"AJ158*'III. GDP shares, 1310-2018'!H160","v":0},{"$f":"AK158*'III. GDP shares, 1310-2018'!I160","v":0.7818118753718094},{"$f":"AL158*'III. GDP shares, 1310-2018'!J160","v":0},null,null,{"$f":"U158*'III. GDP shares, 1310-2018'!C160","v":7.930135321983241},{"$f":"V158*'III. GDP shares, 1310-2018'!D160","v":-0.5034704339584036},{"$f":"W158*'III. GDP shares, 1310-2018'!E160","v":0.10104309267686679},{"$f":"X158*'III. GDP shares, 1310-2018'!F160","v":-0.29161721392804146},{"$f":"Y158*'III. GDP shares, 1310-2018'!G160","v":-1.2372750765150495},{"$f":"Z158*'III. GDP shares, 1310-2018'!H160","v":0},{"$f":"AA158*'III. GDP shares, 1310-2018'!I160","v":0.06816438409092086},{"$f":"AB158*'III. GDP shares, 1310-2018'!J160","v":0},null,null,12.467257678782405,12.402810595176144,null,6.066980074349535,3.3682013953388084,{"$f":"AVERAGE(BL155:BL161)","v":1.8090460209676753},1.0581792537341848,null,null,4.153130282278115]
[{"$f":"'[1]Nominal weighted'!B159","v":1465},null,5.689731414670141,12.366181386591318,-5.109315892123881,9.09402569362263,11.55558275779734,null,12.765938443783845,null,null,7.436609606611522,23.578168299518957,5.892383190117264,8.354653492211172,{"$f":"AVERAGE(G156:G162)","v":15.675159797989181},null,5.465656591214942,null,null,7.314470712989434,10.594136073726219,14.12717303498102,0.05770881067088937,2.726151738326703,null,-6.365938443783846,{"$nulls":3},13.004202127659575,22.960317460317537,{"v":9.017857142857139,"d":"9.02"},9.151734504293518,14.281734496124043,null,6.4,{"$nulls":3},{"$f":"AE159*'III. GDP shares, 1310-2018'!C161","v":3.837449136928131},{"$f":"AF159*'III. GDP shares, 1310-2018'!D161","v":1.6718432625799868},{"$f":"AG159*'III. GDP shares, 1310-2018'!E161","v":0.1661510420476486},{"$f":"AH159*'III. GDP shares, 1310-2018'!F161","v":1.9247797672177176},{"$f":"AI159*'III. GDP shares, 1310-2018'!G161","v":4.013962494528118},{"$f":"AJ159*'III. GDP shares, 1310-2018'!H161","v":0},{"$f":"AK159*'III. GDP shares, 1310-2018'!I161","v":0.7826790793363879},{"$f":"AL159*'III. GDP shares, 1310-2018'!J161","v":0},null,null,{"$f":"U159*'III. GDP shares, 1310-2018'!C161","v":2.1584491727443704},{"$f":"V159*'III. GDP shares, 1310-2018'!D161","v":0.7714063644078998},{"$f":"W159*'III. GDP shares, 1310-2018'!E161","v":0.2602885013330183},{"$f":"X159*'III. GDP shares, 1310-2018'!F161","v":0.012137234872516717},{"$f":"Y159*'III. GDP shares, 1310-2018'!G161","v":0.7662004103917335},{"$f":"Z159*'III. GDP shares, 1310-2018'!H161","v":0},{"$f":"AA159*'III. GDP shares, 1310-2018'!I161","v":-0.7785135687957591},{"$f":"AB159*'III. GDP shares, 1310-2018'!J161","v":0},null,null,12.469307621875302,12.396864782637989,null,3.1899681149537793,4.74228365448507,{"$f":"AVERAGE(BL156:BL162)","v":1.8620739333012264},1.5730669532423358,null,null,8.306459769512124]
[{"$f":"'[1]Nominal weighted'!B160","v":1466},null,32.6175469649408,20.66212368188075,17.589725823994264,6.90084146944775,8.745772016449976,null,11.908368022921207,null,null,8.957054733638364,23.778575622073873,6.934476165867205,6.539602572402204,{"$f":"AVERAGE(G157:G163)","v":14.335528917371935},null,6.06870756335835,null,null,-17.49012761010209,2.2003101805531884,-8.570380585899033,2.25648999034928,5.474189223860114,null,-5.508368022921207,{"$nulls":3},15.12741935483871,22.86243386243394,{"v":9.019345238095234,"d":"9.02"},9.15733145979703,14.219961240310091,null,6.4,{"$nulls":3},{"$f":"AE160*'III. GDP shares, 1310-2018'!C162","v":4.463306756994721},{"$f":"AF160*'III. GDP shares, 1310-2018'!D162","v":1.6644590005397857},{"$f":"AG160*'III. GDP shares, 1310-2018'!E162","v":0.166152812941449},{"$f":"AH160*'III. GDP shares, 1310-2018'!F162","v":1.9256596728033841},{"$f":"AI160*'III. GDP shares, 1310-2018'!G162","v":3.995983964390837},{"$f":"AJ160*'III. GDP shares, 1310-2018'!H162","v":0},{"$f":"AK160*'III. GDP shares, 1310-2018'!I162","v":0.7835460156251124},{"$f":"AL160*'III. GDP shares, 1310-2018'!J162","v":0},null,null,{"$f":"U160*'III. GDP shares, 1310-2018'!C162","v":-5.160417842049102},{"$f":"V160*'III. GDP shares, 1310-2018'!D162","v":0.16018968522939156},{"$f":"W160*'III. GDP shares, 1310-2018'!E162","v":-0.15788206402293528},{"$f":"X160*'III. GDP shares, 1310-2018'!F162","v":0.4745085176371258},{"$f":"Y160*'III. GDP shares, 1310-2018'!G162","v":1.5383144853149489},{"$f":"Z160*'III. GDP shares, 1310-2018'!H162","v":0},{"$f":"AA160*'III. GDP shares, 1310-2018'!I162","v":-0.6743843463994827},{"$f":"AB160*'III. GDP shares, 1310-2018'!J162","v":0},null,null,12.797748525912501,12.99910822329529,null,-3.819671564290054,-3.6063144706932913,{"$f":"AVERAGE(BL157:BL163)","v":2.203624220500733},1.6059456090537074,null,null,15.31451047227495]
[{"$f":"'[1]Nominal weighted'!B161","v":1467},null,22.74774129327755,17.647202322131424,-1.2041854673620485,3.8050836490389726,11.672114347342458,null,-3.8400012220443376,null,null,16.300047042197157,20.390189118894288,4.801858161471996,6.766834448589425,{"$f":"AVERAGE(G158:G164)","v":14.047213153209755},null,6.254350824865677,null,null,-6.985241293277548,5.117347942418917,10.225018800695377,5.345360958804162,2.486073637153681,null,10.240001222044338,{"$nulls":3},15.762500000000001,22.76455026455034,{"v":9.020833333333329,"d":"9.02"},9.150444607843134,14.158187984496138,null,6.4,{"$nulls":3},{"$f":"AE161*'III. GDP shares, 1310-2018'!C163","v":4.649968050331606},{"$f":"AF161*'III. GDP shares, 1310-2018'!D163","v":1.6570770174140286},{"$f":"AG161*'III. GDP shares, 1310-2018'!E163","v":0.1661545832887201},{"$f":"AH161*'III. GDP shares, 1310-2018'!F163","v":1.9239145405288967},{"$f":"AI161*'III. GDP shares, 1310-2018'!G163","v":3.9780109827473376},{"$f":"AJ161*'III. GDP shares, 1310-2018'!H163","v":0},{"$f":"AK161*'III. GDP shares, 1310-2018'!I163","v":0.7844126843618975},{"$f":"AL161*'III. GDP shares, 1310-2018'!J163","v":0},null,null,{"$f":"U161*'III. GDP shares, 1310-2018'!C163","v":-2.0606597200696353},{"$f":"V161*'III. GDP shares, 1310-2018'!D163","v":0.372501963225622},{"$f":"W161*'III. GDP shares, 1310-2018'!E163","v":0.18833445593890472},{"$f":"X161*'III. GDP shares, 1310-2018'!F163","v":1.123881747145276},{"$f":"Y161*'III. GDP shares, 1310-2018'!G163","v":0.6985094592150887},{"$f":"Z161*'III. GDP shares, 1310-2018'!H163","v":0},{"$f":"AA161*'III. GDP shares, 1310-2018'!I163","v":1.2550604447582672},{"$f":"AB161*'III. GDP shares, 1310-2018'!J163","v":0},null,null,12.876086031703826,13.159537858672486,null,1.5776283502135233,4.404760211306487,{"$f":"AVERAGE(BL158:BL164)","v":0.45522912229241363},1.3338887174148268,null,null,10.297334454270556]
[{"$f":"'[1]Nominal weighted'!B162","v":1468},null,18.797942665238207,18.13026838294867,-7.961483690171551,1.3357225407476099,18.276300527864855,null,6.458213068387526,null,null,20.607248118184856,19.242386757372593,7.894453694691967,7.115038126458837,{"$f":"AVERAGE(G159:G165)","v":12.427855702091753},null,6.838916918393076,null,null,-2.6280352578307986,4.536398283718071,16.983805118742975,7.5356540863828565,-4.179885799182672,null,-0.058213068387524866,{"$nulls":3},16.169907407407408,22.666666666666742,{"v":9.022321428571423,"d":"9.02"},8.871376627130466,14.096414728682184,null,6.4,{"$nulls":3},{"$f":"AE162*'III. GDP shares, 1310-2018'!C164","v":4.769418061569445},{"$f":"AF162*'III. GDP shares, 1310-2018'!D164","v":1.6496973121479084},{"$f":"AG162*'III. GDP shares, 1310-2018'!E164","v":0.16615635308971494},{"$f":"AH162*'III. GDP shares, 1310-2018'!F164","v":1.864951695415127},{"$f":"AI162*'III. GDP shares, 1310-2018'!G164","v":3.9600435470294713},{"$f":"AJ162*'III. GDP shares, 1310-2018'!H164","v":0},{"$f":"AK162*'III. GDP shares, 1310-2018'!I164","v":0.785279085670581},{"$f":"AL162*'III. GDP shares, 1310-2018'!J164","v":0},null,null,{"$f":"U162*'III. GDP shares, 1310-2018'!C164","v":-0.7751558811893771},{"$f":"V162*'III. GDP shares, 1310-2018'!D164","v":0.33016253185950273},{"$f":"W162*'III. GDP shares, 1310-2018'!E164","v":0.31277616769230865},{"$f":"X162*'III. GDP shares, 1310-2018'!F164","v":1.5841544616066452},{"$f":"Y162*'III. GDP shares, 1310-2018'!G164","v":-1.174236861284578},{"$f":"Z162*'III. GDP shares, 1310-2018'!H164","v":0},{"$f":"AA162*'III. GDP shares, 1310-2018'!I164","v":-0.007142735174599145},{"$f":"AB162*'III. GDP shares, 1310-2018'!J164","v":0},null,null,12.871114476409707,13.195546054922247,null,0.27055768350990245,3.6982872272404848,{"$f":"AVERAGE(BL159:BL165)","v":-0.30436744173574815},0.49163210954894543,null,null,11.60545359112394]
[{"$f":"'[1]Nominal weighted'!B163","v":1469},null,19.98155855364974,24.127578390506226,20.466826054080663,0.19286576201769812,7.734718431267488,null,4.828233512849413,null,null,21.907022281724124,21.135344530350274,8.971550641322912,7.05518814828124,{"$f":"AVERAGE(G160:G166)","v":13.426600670167636},null,6.282102450891772,null,null,-3.40424373883493,-1.5587953217230819,-11.443016530271143,8.63463117173727,6.299923041600744,null,1.5717664871505874,{"$nulls":3},16.577314814814812,22.568783068783144,{"v":9.023809523809518,"d":"9.02"},8.827496933754968,14.034641472868232,null,6.4,{"$nulls":3},{"$f":"AE163*'III. GDP shares, 1310-2018'!C165","v":4.888831219785332},{"$f":"AF163*'III. GDP shares, 1310-2018'!D165","v":1.642319883687268},{"$f":"AG163*'III. GDP shares, 1310-2018'!E165","v":0.16615812234468624},{"$f":"AH163*'III. GDP shares, 1310-2018'!F165","v":1.8554409855046685},{"$f":"AI163*'III. GDP shares, 1310-2018'!G165","v":3.942081654670672},{"$f":"AJ163*'III. GDP shares, 1310-2018'!H165","v":0},{"$f":"AK163*'III. GDP shares, 1310-2018'!I165","v":0.7861452196749243},{"$f":"AL163*'III. GDP shares, 1310-2018'!J165","v":0},null,null,{"$f":"U163*'III. GDP shares, 1310-2018'!C165","v":-1.0039486645510067},{"$f":"V163*'III. GDP shares, 1310-2018'!D165","v":-0.1134328130879828},{"$f":"W163*'III. GDP shares, 1310-2018'!E165","v":-0.2107037095156215},{"$f":"X163*'III. GDP shares, 1310-2018'!F165","v":1.814902762468888},{"$f":"Y163*'III. GDP shares, 1310-2018'!G165","v":1.7695365496968347},{"$f":"Z163*'III. GDP shares, 1310-2018'!H165","v":0},{"$f":"AA163*'III. GDP shares, 1310-2018'!I165","v":0.19306823598729417},{"$f":"AB163*'III. GDP shares, 1310-2018'!J165","v":0},null,null,12.905340969005115,13.280977085667551,null,2.4494223609984056,0.016710851609907817,{"$f":"AVERAGE(BL160:BL166)","v":-0.8208022643200067},-0.17072897089359906,null,null,9.075802027893895]
[{"$f":"'[1]Nominal weighted'!B164","v":1470},null,27.937224436295068,19.82640722173803,6.298344277126363,15.865275646180395,21.600933789029696,null,5.817705267820245,null,null,15.484861079385585,22.706766413972762,6.0737218426835184,6.289101821632586,{"$f":"AVERAGE(G161:G167)","v":13.266131676379304},null,3.646966055243038,null,null,-10.952502214072844,2.644492249161516,2.726953341921251,-7.093419621516336,-7.628065571975416,null,0.5822947321797555,{"$nulls":3},16.984722222222224,22.470899470899546,{"v":9.025297619047613,"d":"9.03"},8.771856024664059,13.97286821705428,null,6.4,{"$nulls":3},{"$f":"AE164*'III. GDP shares, 1310-2018'!C166","v":5.008207542031622},{"$f":"AF164*'III. GDP shares, 1310-2018'!D166","v":1.634944730978601},{"$f":"AG164*'III. GDP shares, 1310-2018'!E166","v":0.16615989105388665},{"$f":"AH164*'III. GDP shares, 1310-2018'!F166","v":1.8434615148817564},{"$f":"AI164*'III. GDP shares, 1310-2018'!G166","v":3.9241253031059586},{"$f":"AJ164*'III. GDP shares, 1310-2018'!H166","v":0},{"$f":"AK164*'III. GDP shares, 1310-2018'!I166","v":0.7870110864986124},{"$f":"AL164*'III. GDP shares, 1310-2018'!J166","v":0},null,null,{"$f":"U164*'III. GDP shares, 1310-2018'!C166","v":-3.2295143526616323},{"$f":"V164*'III. GDP shares, 1310-2018'!D166","v":0.19240879407072928},{"$f":"W164*'III. GDP shares, 1310-2018'!E166","v":0.05020446852039448},{"$f":"X164*'III. GDP shares, 1310-2018'!F166","v":-1.4907273950239368},{"$f":"Y164*'III. GDP shares, 1310-2018'!G166","v":-2.1422577426304996},{"$f":"Z164*'III. GDP shares, 1310-2018'!H166","v":0},{"$f":"AA164*'III. GDP shares, 1310-2018'!I166","v":0.07160506403675122},{"$f":"AB164*'III. GDP shares, 1310-2018'!J166","v":0},null,null,12.937607258981288,13.363910068550437,null,-6.548281163688195,-3.286707847383679,{"$f":"AVERAGE(BL161:BL167)","v":1.6354445985491777},1.743491843241214,null,null,18.46965529533076]
[{"$f":"'[1]Nominal weighted'!B165","v":1471},null,16.478991499222484,21.93694591581171,25.181264757299957,12.61145212415681,7.4095680448904675,null,9.933961335033626,null,null,11.388469689347543,23.37925163720376,6.052977974277624,7.980311077928095,{"$f":"AVERAGE(G162:G168)","v":13.405176079635012},null,3.76139782364211,null,null,1.5619302179492325,0.43606995720423924,-16.15447904301425,-3.9766558717896237,6.501526916349859,null,-3.5339613350336245,{"$nulls":3},18.040921717171717,22.373015873015948,{"v":9.026785714285708,"d":"9.03"},8.634796252367185,13.911094961240327,null,6.4,{"$nulls":3},{"$f":"AE165*'III. GDP shares, 1310-2018'!C167","v":5.318823905767254},{"$f":"AF165*'III. GDP shares, 1310-2018'!D167","v":1.6275718529690513},{"$f":"AG165*'III. GDP shares, 1310-2018'!E167","v":0.1661616592175687},{"$f":"AH165*'III. GDP shares, 1310-2018'!F167","v":1.814377684140307},{"$f":"AI165*'III. GDP shares, 1310-2018'!G167","v":3.906174489771933},{"$f":"AJ165*'III. GDP shares, 1310-2018'!H167","v":0},{"$f":"AK165*'III. GDP shares, 1310-2018'!I167","v":0.7878766862652539},{"$f":"AL165*'III. GDP shares, 1310-2018'!J167","v":0},null,null,{"$f":"U165*'III. GDP shares, 1310-2018'!C167","v":0.46048821188893374},{"$f":"V165*'III. GDP shares, 1310-2018'!D167","v":0.03172282146936877},{"$f":"W165*'III. GDP shares, 1310-2018'!E167","v":-0.2973655436768164},{"$f":"X165*'III. GDP shares, 1310-2018'!F167","v":-0.8355907262203915},{"$f":"Y165*'III. GDP shares, 1310-2018'!G167","v":1.8256002605094042},{"$f":"Z165*'III. GDP shares, 1310-2018'!H167","v":0},{"$f":"AA165*'III. GDP shares, 1310-2018'!I167","v":-0.4350508978180976},{"$f":"AB165*'III. GDP shares, 1310-2018'!J167","v":0},null,null,13.064435753013482,13.620986278131367,null,0.7498041261524011,-2.527594859722361,{"$f":"AVERAGE(BL162:BL168)","v":2.452418125238071},2.0063838388889548,null,null,11.275333120479285]
[{"$f":"'[1]Nominal weighted'!B166","v":1472},null,14.788150559445025,25.616885797435117,2.4303627342927445,8.67507584637944,18.546797534328523,null,8.868237171274732,null,null,11.970354600501947,23.86253402502486,9.773228043893024,9.346179363096622,{"$f":"AVERAGE(G163:G169)","v":12.881839317598011},null,5.838317010647947,null,null,4.308970652676187,-3.341753522302767,6.597911075231059,0.23512134289594575,-4.6974758289021485,null,-2.4682371712747315,{"$nulls":3},19.097121212121213,22.27513227513235,{"v":9.028273809523803,"d":"9.03"},8.910197189275387,13.849321705426373,null,6.4,{"$nulls":3},{"$f":"AE166*'III. GDP shares, 1310-2018'!C168","v":5.629344481679629},{"$f":"AF166*'III. GDP shares, 1310-2018'!D168","v":1.6202012486064123},{"$f":"AG166*'III. GDP shares, 1310-2018'!E168","v":0.16616342683598473},{"$f":"AH166*'III. GDP shares, 1310-2018'!F168","v":1.8719573413774064},{"$f":"AI166*'III. GDP shares, 1310-2018'!G168","v":3.888229212106776},{"$f":"AJ166*'III. GDP shares, 1310-2018'!H168","v":0},{"$f":"AK166*'III. GDP shares, 1310-2018'!I168","v":0.7887420190983816},{"$f":"AL166*'III. GDP shares, 1310-2018'!J168","v":0},null,null,{"$f":"U166*'III. GDP shares, 1310-2018'!C168","v":1.2701746978474486},{"$f":"V166*'III. GDP shares, 1310-2018'!D168","v":-0.24306536825436875},{"$f":"W166*'III. GDP shares, 1310-2018'!E168","v":0.12143312634835955},{"$f":"X166*'III. GDP shares, 1310-2018'!F168","v":0.04939701272586245},{"$f":"Y166*'III. GDP shares, 1310-2018'!G168","v":-1.3188272414775648},{"$f":"Z166*'III. GDP shares, 1310-2018'!H168","v":0},{"$f":"AA166*'III. GDP shares, 1310-2018'!I168","v":-0.3041878703257671},{"$f":"AB166*'III. GDP shares, 1310-2018'!J168","v":0},null,null,13.260007698579855,13.964637729704592,null,-0.4250756431360302,0.10575609138725743,{"$f":"AVERAGE(BL163:BL169)","v":1.8740686110453086},0.7609968881742809,null,null,12.52644675597984]
[{"$f":"'[1]Nominal weighted'!B167","v":1473},null,-12.337581451428989,31.662076867238166,-2.6950757664814944,1.5382371829071717,7.622489059931654,null,-6.537586746619937,null,null,13.11724700957636,22.751059397928177,8.65795473331658,9.418486650996977,{"$f":"AVERAGE(G164:G170)","v":13.818950978485974},null,6.999696549679984,null,null,31.4347026635502,-9.484828189989415,11.724837671243392,5.9820290883975185,6.165059389680767,null,12.937586746619937,{"$nulls":3},19.097121212121213,22.177248677248752,{"v":9.029761904761898,"d":"9.03"},7.52026627130469,13.787548449612421,null,6.4,{"$nulls":3},{"$f":"AE167*'III. GDP shares, 1310-2018'!C169","v":5.6284766273304205},{"$f":"AF167*'III. GDP shares, 1310-2018'!D169","v":1.6128329168391256},{"$f":"AG167*'III. GDP shares, 1310-2018'!E169","v":0.16616519390938697},{"$f":"AH167*'III. GDP shares, 1310-2018'!F169","v":1.5797009947826572},{"$f":"AI167*'III. GDP shares, 1310-2018'!G169","v":3.8702894675502515},{"$f":"AJ167*'III. GDP shares, 1310-2018'!H169","v":0},{"$f":"AK167*'III. GDP shares, 1310-2018'!I169","v":0.7896070851214517},{"$f":"AL167*'III. GDP shares, 1310-2018'!J169","v":0},null,null,{"$f":"U167*'III. GDP shares, 1310-2018'!C169","v":9.264720439464666},{"$f":"V167*'III. GDP shares, 1310-2018'!D169","v":-0.6897809253981972},{"$f":"W167*'III. GDP shares, 1310-2018'!E169","v":0.2157598335091003},{"$f":"X167*'III. GDP shares, 1310-2018'!F169","v":1.2565801476761944},{"$f":"Y167*'III. GDP shares, 1310-2018'!G169","v":1.7305878931198966},{"$f":"Z167*'III. GDP shares, 1310-2018'!H169","v":0},{"$f":"AA167*'III. GDP shares, 1310-2018'!I169","v":1.596189087422577},{"$f":"AB167*'III. GDP shares, 1310-2018'!J169","v":0},null,null,13.001991085841496,13.647072285533293,null,13.374056475794236,9.7932312282504,{"$f":"AVERAGE(BL164:BL170)","v":1.2738397943030129},0.5958013646005279,null,null,-2.029598032498267]
[{"$f":"'[1]Nominal weighted'!B168","v":1474},null,-5.926998436988743,22.35459888474842,-1.3493925462033118,15.643548443107534,12.645425170132402,null,-3.038978843250831,null,null,10.293368605445673,22.88287898979862,6.925683400156241,7.692389722575256,{"$f":"AVERAGE(G165:G171)","v":11.76102993786167},null,7.0668569510936825,null,null,25.024119649109956,-0.2752338053832659,10.380642546203305,-8.178832171802844,1.080350023666068,null,9.438978843250831,{"$nulls":3},19.097121212121213,22.079365079365154,{"v":9.031249999999993,"d":"9.03"},7.46471627130469,13.72577519379847,null,6.4,{"$nulls":3},{"$f":"AE168*'III. GDP shares, 1310-2018'!C170","v":5.627609040527488},{"$f":"AF168*'III. GDP shares, 1310-2018'!D170","v":1.6054668566162806},{"$f":"AG168*'III. GDP shares, 1310-2018'!E170","v":0.16616696043802734},{"$f":"AH168*'III. GDP shares, 1310-2018'!F170","v":1.567790506901655},{"$f":"AI168*'III. GDP shares, 1310-2018'!G170","v":3.8523552535436973},{"$f":"AJ168*'III. GDP shares, 1310-2018'!H170","v":0},{"$f":"AK168*'III. GDP shares, 1310-2018'!I170","v":0.7904718844578442},{"$f":"AL168*'III. GDP shares, 1310-2018'!J170","v":0},null,null,{"$f":"U168*'III. GDP shares, 1310-2018'!C170","v":7.374198467106576},{"$f":"V168*'III. GDP shares, 1310-2018'!D170","v":-0.02001320014297777},{"$f":"W168*'III. GDP shares, 1310-2018'!E170","v":0.19099458206740696},{"$f":"X168*'III. GDP shares, 1310-2018'!F170","v":-1.717773987711549},{"$f":"Y168*'III. GDP shares, 1310-2018'!G170","v":0.3032172704690986},{"$f":"Z168*'III. GDP shares, 1310-2018'!H170","v":0},{"$f":"AA168*'III. GDP shares, 1310-2018'!I170","v":1.1658199052472198},{"$f":"AB168*'III. GDP shares, 1310-2018'!J170","v":0},null,null,12.96637129276492,13.609860502484992,null,7.296443037035775,6.245004180840675,{"$f":"AVERAGE(BL165:BL171)","v":3.0064075204541214},1.9049623459697587,null,null,4.687937408689957]
[{"$f":"'[1]Nominal weighted'!B169","v":1475},null,22.87113704331904,21.51324509769633,18.080266797136254,10.896800536927296,14.61294319360586,null,20.99664737742839,null,null,12.33902020706331,21.717863763383146,2.607002573063506,7.24775310142757,{"$f":"AVERAGE(G166:G172)","v":12.487585499790375},null,5.334171100679394,null,null,-3.670009921329305,0.46823638378522503,-9.047528701898166,-2.2435126940814185,-1.027066255621347,null,-14.596647377428388,{"$nulls":3},19.201127121989735,21.981481481481556,{"v":9.032738095238088,"d":"9.03"},8.653287842845877,13.585876937984512,null,6.4,{"$nulls":3},{"$f":"AE169*'III. GDP shares, 1310-2018'!C171","v":5.657385836865033},{"$f":"AF169*'III. GDP shares, 1310-2018'!D171","v":1.5981030668876164},{"$f":"AG169*'III. GDP shares, 1310-2018'!E171","v":0.16616872642215777},{"$f":"AH169*'III. GDP shares, 1310-2018'!F171","v":1.8171422976559917},{"$f":"AI169*'III. GDP shares, 1310-2018'!G171","v":3.8125029336672807},{"$f":"AJ169*'III. GDP shares, 1310-2018'!H171","v":0},{"$f":"AK169*'III. GDP shares, 1310-2018'!I171","v":0.7913364172308635},{"$f":"AL169*'III. GDP shares, 1310-2018'!J171","v":0},null,null,{"$f":"U169*'III. GDP shares, 1310-2018'!C171","v":-1.0813251752447652},{"$f":"V169*'III. GDP shares, 1310-2018'!D171","v":0.03404183660623316},{"$f":"W169*'III. GDP shares, 1310-2018'!E171","v":-0.16644081847728023},{"$f":"X169*'III. GDP shares, 1310-2018'!F171","v":-0.4711251822177602},{"$f":"Y169*'III. GDP shares, 1310-2018'!G171","v":-0.2882179141251632},{"$f":"Z169*'III. GDP shares, 1310-2018'!H171","v":0},{"$f":"AA169*'III. GDP shares, 1310-2018'!I171","v":-1.8048216623806967},{"$f":"AB169*'III. GDP shares, 1310-2018'!J171","v":0},null,null,13.142418579923296,13.842639278728942,null,-3.7778889158394326,-5.019421427762233,{"$f":"AVERAGE(BL166:BL172)","v":2.521010699317075},2.620122492219663,null,null,16.05646696428699]
[{"$f":"'[1]Nominal weighted'!B170","v":1476},null,28.009805417170625,16.347256000829447,12.659912880045546,0.6990167773201863,14.294500057483218,null,12.95789028607367,null,null,15.021522793077727,21.03021038285694,4.64779751653262,6.403110856377678,{"$f":"AVERAGE(G167:G173)","v":13.145120847102675},null,4.777712281234796,null,null,-8.814805417170627,5.536341882768511,-3.625686689569364,7.618448338252963,-0.9943547086459922,null,-6.55789028607367,{"$nulls":3},19.195,21.883597883597957,{"v":9.034226190476183,"d":"9.03"},8.31746511557315,13.300145348837225,null,6.4,{"$nulls":3},{"$f":"AE170*'III. GDP shares, 1310-2018'!C172","v":5.654709056576262},{"$f":"AF170*'III. GDP shares, 1310-2018'!D172","v":1.5907415466035182},{"$f":"AG170*'III. GDP shares, 1310-2018'!E172","v":0.16617049186203},{"$f":"AH170*'III. GDP shares, 1310-2018'!F172","v":1.7463522481301004},{"$f":"AI170*'III. GDP shares, 1310-2018'!G172","v":3.7317450855206},{"$f":"AJ170*'III. GDP shares, 1310-2018'!H172","v":0},{"$f":"AK170*'III. GDP shares, 1310-2018'!I172","v":0.7922006835637379},{"$f":"AL170*'III. GDP shares, 1310-2018'!J172","v":0},null,null,{"$f":"U170*'III. GDP shares, 1310-2018'!C172","v":-2.5967783289623467},{"$f":"V170*'III. GDP shares, 1310-2018'!D172","v":0.4024424638017085},{"$f":"W170*'III. GDP shares, 1310-2018'!E172","v":-0.06668884836849545},{"$f":"X170*'III. GDP shares, 1310-2018'!F172","v":1.5995852339507273},{"$f":"Y170*'III. GDP shares, 1310-2018'!G172","v":-0.27899531921869997},{"$f":"Z170*'III. GDP shares, 1310-2018'!H172","v":0},{"$f":"AA170*'III. GDP shares, 1310-2018'!I172","v":-0.811744557400556},{"$f":"AB170*'III. GDP shares, 1310-2018'!J172","v":0},null,null,13.02173908974742,13.68191911225625,null,-1.7521793561976626,-1.139657813406363,{"$f":"AVERAGE(BL167:BL173)","v":1.5102851801359845},1.8865725591690712,null,null,14.245799385652102]
[{"$f":"'[1]Nominal weighted'!B171","v":1477},null,8.17007560738026,20.74914436483115,-5.827555054996006,3.782597147228354,7.195486504659576,null,6.287828077716131,null,null,19.681423989341248,20.600513337466616,5.212920865408591,7.793550181680877,{"$f":"AVERAGE(G168:G174)","v":14.815403817227537},null,7.58028235736857,null,null,9.035757725953074,1.0365699208832098,14.863269340710284,4.397817968344795,5.818927255030363,null,0.11217192228386991,{"$nulls":3},17.205833333333334,21.78571428571436,{"v":9.035714285714278,"d":"9.04"},8.18041511557315,13.014413759689939,null,6.4,{"$nulls":3},{"$f":"AE171*'III. GDP shares, 1310-2018'!C173","v":5.067933908913372},{"$f":"AF171*'III. GDP shares, 1310-2018'!D173","v":1.5833822947150182},{"$f":"AG171*'III. GDP shares, 1310-2018'!E173","v":0.16617225675789557},{"$f":"AH171*'III. GDP shares, 1310-2018'!F173","v":1.7173123164925952},{"$f":"AI171*'III. GDP shares, 1310-2018'!G173","v":3.651012122280867},{"$f":"AJ171*'III. GDP shares, 1310-2018'!H173","v":0},{"$f":"AK171*'III. GDP shares, 1310-2018'!I173","v":0.7930646835796193},{"$f":"AL171*'III. GDP shares, 1310-2018'!J173","v":0},null,null,{"$f":"U171*'III. GDP shares, 1310-2018'!C173","v":2.6614591740446687},{"$f":"V171*'III. GDP shares, 1310-2018'!D173","v":0.07533773914573319},{"$f":"W171*'III. GDP shares, 1310-2018'!E173","v":0.27334452275136567},{"$f":"X171*'III. GDP shares, 1310-2018'!F173","v":0.9232327279276229},{"$f":"Y171*'III. GDP shares, 1310-2018'!G173","v":1.6324188195544609},{"$f":"Z171*'III. GDP shares, 1310-2018'!H173","v":0},{"$f":"AA171*'III. GDP shares, 1310-2018'!I173","v":0.013899935945714833},{"$f":"AB171*'III. GDP shares, 1310-2018'!J173","v":0},null,null,12.603681796670843,12.978877582739365,null,5.579692919369567,5.877419022200932,{"$f":"AVERAGE(BL168:BL174)","v":-1.3117372963268221},-0.11987676961745006,null,null,5.891140107800517]
[{"$f":"'[1]Nominal weighted'!B172","v":1478},null,30.798552710545945,13.781839330903416,-5.049501032349193,9.498995776123003,12.495456978391399,null,-2.1948396178663963,null,null,21.085929337499472,20.316548297048637,-2.719434046479488,5.619936909891075,{"$f":"AVERAGE(G169:G175)","v":10.940961285423237},null,9.740759818510117,null,null,-15.581886043879278,7.905991356927345,14.086703413301565,-1.1177165522054646,0.9832251921512593,null,8.594839617866397,{"$nulls":3},15.216666666666667,21.68783068783076,{"v":9.037202380952372,"d":"9.04"},8.381279223917538,13.478682170542658,null,6.4,{"$nulls":3},{"$f":"AE172*'III. GDP shares, 1310-2018'!C174","v":4.481339543625281},{"$f":"AF172*'III. GDP shares, 1310-2018'!D174","v":1.5760253101737947},{"$f":"AG172*'III. GDP shares, 1310-2018'!E174","v":0.16617402111000587},{"$f":"AH172*'III. GDP shares, 1310-2018'!F174","v":1.7592086207606035},{"$f":"AI172*'III. GDP shares, 1310-2018'!G174","v":3.7806736518991846},{"$f":"AJ172*'III. GDP shares, 1310-2018'!H174","v":0},{"$f":"AK172*'III. GDP shares, 1310-2018'!I174","v":0.7939284174015842},{"$f":"AL172*'III. GDP shares, 1310-2018'!J174","v":0},null,null,{"$f":"U172*'III. GDP shares, 1310-2018'!C174","v":-4.588897399301145},{"$f":"V172*'III. GDP shares, 1310-2018'!D174","v":0.5745176942719403},{"$f":"W172*'III. GDP shares, 1310-2018'!E174","v":0.2590230971595968},{"$f":"X172*'III. GDP shares, 1310-2018'!F174","v":-0.23460578530726905},{"$f":"Y172*'III. GDP shares, 1310-2018'!G174","v":0.27578761267728},{"$f":"Z172*'III. GDP shares, 1310-2018'!H174","v":0},{"$f":"AA172*'III. GDP shares, 1310-2018'!I174","v":1.0662011586926725},{"$f":"AB172*'III. GDP shares, 1310-2018'!J174","v":0},null,null,12.366943521651669,12.557349564970455,null,-2.6479736218069245,2.4785261640269707,{"$f":"AVERAGE(BL169:BL175)","v":-0.7287051296609702},1.3877835201105173,null,null,14.203815570875523]
[{"$f":"'[1]Nominal weighted'!B173","v":1479},null,33.56566866154595,20.80331213375162,16.71592733857654,2.7625801310302007,23.1495449655146,null,4.973025435162541,null,null,16.76441593321093,18.32848523139869,-3.2371733656773825,2.691341937938023,{"$f":"AVERAGE(G170:G176)","v":8.760885286347124},null,6.715917780260788,null,null,-20.338168661545954,0.7866349561955417,-7.677236862386076,5.359871413883618,-9.732636050785896,null,1.4269745648374592,{"$nulls":3},13.227499999999997,21.589947089947163,{"v":9.038690476190467,"d":"9.04"},8.122451544913819,13.416908914728705,null,6.4,{"$nulls":3},{"$f":"AE173*'III. GDP shares, 1310-2018'!C175","v":3.89492587717769},{"$f":"AF173*'III. GDP shares, 1310-2018'!D175","v":1.5686705919321726},{"$f":"AG173*'III. GDP shares, 1310-2018'!E175","v":0.16617578491861218},{"$f":"AH173*'III. GDP shares, 1310-2018'!F175","v":1.704618774790974},{"$f":"AI173*'III. GDP shares, 1310-2018'!G175","v":3.7627670523177574},{"$f":"AJ173*'III. GDP shares, 1310-2018'!H175","v":0},{"$f":"AK173*'III. GDP shares, 1310-2018'!I175","v":0.7947918851526328},{"$f":"AL173*'III. GDP shares, 1310-2018'!J175","v":0},null,null,{"$f":"U173*'III. GDP shares, 1310-2018'!C175","v":-5.988709840427873},{"$f":"V173*'III. GDP shares, 1310-2018'!D175","v":0.057154893304225275},{"$f":"W173*'III. GDP shares, 1310-2018'!E175","v":-0.1411455414889711},{"$f":"X173*'III. GDP shares, 1310-2018'!F175","v":1.1248497318882313},{"$f":"Y173*'III. GDP shares, 1310-2018'!G175","v":-2.729514115124906},{"$f":"Z173*'III. GDP shares, 1310-2018'!H175","v":0},{"$f":"AA173*'III. GDP shares, 1310-2018'!I175","v":0.17721059444562842},{"$f":"AB173*'III. GDP shares, 1310-2018'!J175","v":0},null,null,11.965916337630027,11.891949966289838,null,-7.500154277403666,-5.029093439966885,{"$f":"AVERAGE(BL170:BL176)","v":1.7385117799315954},3.5332889034144577,null,null,17.880588545065557]
[{"$f":"'[1]Nominal weighted'!B174","v":1480},null,20.281726922415654,28.654197549505938,1.2607876756502971,11.27131246002957,19.314469850805708,null,13.080403786316499,null,null,6.229403641043746,17.29879694228,-0.060699373973342574,5.172081043266304,{"$f":"AVERAGE(G171:G177)","v":11.362811676101147},null,5.336385727946057,null,null,-9.043393589082322,-7.162134057442373,7.779390895778265,-3.3456097105776044,-5.959334191890956,null,-7.780403786316499,{"$nulls":3},11.238333333333332,21.492063492063565,{"v":9.040178571428562,"d":"9.04"},7.9257027494519665,13.355135658914751,null,5.3,{"$nulls":3},{"$f":"AE174*'III. GDP shares, 1310-2018'!C176","v":3.308692826087763},{"$f":"AF174*'III. GDP shares, 1310-2018'!D176","v":1.5613181389431219},{"$f":"AG174*'III. GDP shares, 1310-2018'!E176","v":0.16617754818396563},{"$f":"AH174*'III. GDP shares, 1310-2018'!F176","v":1.6630719247217973},{"$f":"AI174*'III. GDP shares, 1310-2018'!G176","v":3.744865967967426},{"$f":"AJ174*'III. GDP shares, 1310-2018'!H176","v":0},{"$f":"AK174*'III. GDP shares, 1310-2018'!I176","v":0.6589018688851809},{"$f":"AL174*'III. GDP shares, 1310-2018'!J176","v":0},null,null,{"$f":"U174*'III. GDP shares, 1310-2018'!C176","v":-2.6624776649875206},{"$f":"V174*'III. GDP shares, 1310-2018'!D176","v":-0.5203022884031783},{"$f":"W174*'III. GDP shares, 1310-2018'!E176","v":0.14300161166183795},{"$f":"X174*'III. GDP shares, 1310-2018'!F176","v":-0.7020184527009875},{"$f":"Y174*'III. GDP shares, 1310-2018'!G176","v":-1.6710356507730593},{"$f":"Z174*'III. GDP shares, 1310-2018'!H176","v":0},{"$f":"AA174*'III. GDP shares, 1310-2018'!I176","v":-0.9672684142425055},{"$f":"AB174*'III. GDP shares, 1310-2018'!J176","v":0},null,null,11.391902300865361,11.103028274789255,null,-6.380100859445413,-4.251914073255247,{"$f":"AVERAGE(BL171:BL177)","v":3.253633210700472},3.9837310893205777,null,null,15.401508706888368]
[{"$f":"'[1]Nominal weighted'!B175","v":1481},null,3.904539000118831,20.366843601822577,-56.87587692941986,0.4282555405789159,-14.475672552497715,null,12.084363384739998,null,null,4.834620066068611,18.912324041387954,3.868684569178836,6.180042778181629,{"$f":"AVERAGE(G172:G178)","v":14.034264743222158},null,4.7275742468977855,null,null,5.344627666547835,1.0273362923573899,65.91754359608652,7.517578127768425,27.769034955598514,null,-6.784363384739998,{"$nulls":3},9.249166666666666,21.394179894179967,{"v":9.041666666666657,"d":"9.04"},7.9458336683473405,13.293362403100799,null,5.3,{"$nulls":3},{"$f":"AE175*'III. GDP shares, 1310-2018'!C177","v":2.7226403069240743},{"$f":"AF175*'III. GDP shares, 1310-2018'!D177","v":1.5539679501602572},{"$f":"AG175*'III. GDP shares, 1310-2018'!E177","v":0.16617931090631713},{"$f":"AH175*'III. GDP shares, 1310-2018'!F177","v":1.6670393266103454},{"$f":"AI175*'III. GDP shares, 1310-2018'!G177","v":3.7269703963005463},{"$f":"AJ175*'III. GDP shares, 1310-2018'!H177","v":0},{"$f":"AK175*'III. GDP shares, 1310-2018'!I177","v":0.659616487741892},{"$f":"AL175*'III. GDP shares, 1310-2018'!J177","v":0},null,null,{"$f":"U175*'III. GDP shares, 1310-2018'!C177","v":1.5732767323663064},{"$f":"V175*'III. GDP shares, 1310-2018'!D177","v":0.07462065291851391},{"$f":"W175*'III. GDP shares, 1310-2018'!E177","v":1.21151690006652},{"$f":"X175*'III. GDP shares, 1310-2018'!F177","v":1.577191129708394},{"$f":"Y175*'III. GDP shares, 1310-2018'!G177","v":7.78541711833642},{"$f":"Z175*'III. GDP shares, 1310-2018'!H177","v":0},{"$f":"AA175*'III. GDP shares, 1310-2018'!I177","v":-0.8443543296994136},{"$f":"AB175*'III. GDP shares, 1310-2018'!J177","v":0},null,null,11.03736821649357,10.496413778643433,null,11.37766820369674,16.798626208936447,{"$f":"AVERAGE(BL172:BL178)","v":2.1314422971049583},2.4805858670607757,null,null,-2.3606017222950513]
[{"$f":"'[1]Nominal weighted'!B176","v":1482},null,-7.3794567867007625,7.59680363814666,14.456091562751,-9.603364266744073,-0.6475887999269254,null,-0.1772468903169404,null,null,7.04659566244177,21.675522310672388,5.331466110320444,5.290537577173663,{"$f":"AVERAGE(G173:G179)","v":14.157497159092854},null,5.30711742815224,null,null,14.639456786700764,13.699492658149708,-5.412936800846248,17.712260050657154,13.879177947213773,null,5.47724689031694,{"$nulls":3},7.260000000000002,21.29629629629637,{"v":9.043154761904752,"d":"9.04"},8.10889578391308,13.231589147286847,null,5.3,{"$nulls":3},{"$f":"AE176*'III. GDP shares, 1310-2018'!C178","v":2.1367682363065787},{"$f":"AF176*'III. GDP shares, 1310-2018'!D178","v":1.5466200245378372},{"$f":"AG176*'III. GDP shares, 1310-2018'!E178","v":0.16618107308591742},{"$f":"AH176*'III. GDP shares, 1310-2018'!F178","v":1.7009879169717015},{"$f":"AI176*'III. GDP shares, 1310-2018'!G178","v":3.709080334771043},{"$f":"AJ176*'III. GDP shares, 1310-2018'!H178","v":0},{"$f":"AK176*'III. GDP shares, 1310-2018'!I178","v":0.6603308865638285},{"$f":"AL176*'III. GDP shares, 1310-2018'!J178","v":0},null,null,{"$f":"U176*'III. GDP shares, 1310-2018'!C178","v":4.308695076942832},{"$f":"V176*'III. GDP shares, 1310-2018'!D178","v":0.9949105410778964},{"$f":"W176*'III. GDP shares, 1310-2018'!E178","v":-0.09947055754262195},{"$f":"X176*'III. GDP shares, 1310-2018'!F178","v":3.715467695145229},{"$f":"Y176*'III. GDP shares, 1310-2018'!G178","v":3.8906124890791642},{"$f":"Z176*'III. GDP shares, 1310-2018'!H178","v":0},{"$f":"AA176*'III. GDP shares, 1310-2018'!I178","v":0.6824142066060298},{"$f":"AB176*'III. GDP shares, 1310-2018'!J178","v":0},null,null,10.70665599823351,9.919968472236906,null,13.492629451308527,9.99911625536535,{"$f":"AVERAGE(BL173:BL179)","v":0.9318230865787093},1.1679261749637095,null,null,-4.124370462531562]
[{"$f":"'[1]Nominal weighted'!B177","v":1483},null,-45.73528062799966,9.13943797699864,34.895230821973826,18.064190514618154,32.50798478576138,null,3.301165919870562,null,null,3.828567565569622,21.774770436473453,1.165638665833392,5.144698876939826,{"$f":"AVERAGE(G174:G180)","v":10.888857479368253},null,6.083578049308197,null,null,53.91194729466633,12.058974721414131,-25.85058796483098,-10.743395142804916,-19.29514806095516,null,1.9988340801294378,{"$nulls":3},8.176666666666668,21.19841269841277,{"v":9.044642857142847,"d":"9.04"},7.320795371813239,13.212836724806222,null,5.3,{"$nulls":3},{"$f":"AE177*'III. GDP shares, 1310-2018'!C179","v":2.4061917662063648},{"$f":"AF177*'III. GDP shares, 1310-2018'!D179","v":1.5392743610307655},{"$f":"AG177*'III. GDP shares, 1310-2018'!E179","v":0.1661828347230172},{"$f":"AH177*'III. GDP shares, 1310-2018'!F179","v":1.5354331822692096},{"$f":"AI177*'III. GDP shares, 1310-2018'!G179","v":3.703253528626523},{"$f":"AJ177*'III. GDP shares, 1310-2018'!H179","v":0},{"$f":"AK177*'III. GDP shares, 1310-2018'!I179","v":0.6610450654526},{"$f":"AL177*'III. GDP shares, 1310-2018'!J179","v":0},null,null,{"$f":"U177*'III. GDP shares, 1310-2018'!C179","v":15.864959276059224},{"$f":"V177*'III. GDP shares, 1310-2018'!D179","v":0.8756349295143557},{"$f":"W177*'III. GDP shares, 1310-2018'!E179","v":-0.4749688909893987},{"$f":"X177*'III. GDP shares, 1310-2018'!F179","v":-2.253275027465601},{"$f":"Y177*'III. GDP shares, 1310-2018'!G179","v":-5.40798517610921},{"$f":"Z177*'III. GDP shares, 1310-2018'!H179","v":0},{"$f":"AA177*'III. GDP shares, 1310-2018'!I179","v":0.24930554817510409},{"$f":"AB177*'III. GDP shares, 1310-2018'!J179","v":0},null,null,10.708892386473623,10.01138073830848,null,8.853670659184473,2.013437487936475,{"$f":"AVERAGE(BL174:BL180)","v":2.4727092209593673},2.5930653411988325,null,null,0.4940706476075958]
[{"$f":"'[1]Nominal weighted'!B178","v":1484},null,-1.593409417445688,32.04383405858681,21.678132547069247,10.838329291635626,25.89565797450667,null,2.026147710378233,null,null,0.04323804249003998,20.034637466087528,2.952463867648273,4.731069547830452,{"$f":"AVERAGE(G175:G181)","v":9.83844311853393},null,5.262939265107119,null,null,9.770076084112356,-10.943304958057638,-12.632001594688303,-4.61765418384652,-12.718552838847733,null,3.2738522896217668,{"$nulls":3},8.176666666666668,21.100529100529172,{"v":9.046130952380942,"d":"9.05"},6.220675107789106,13.177105135658936,null,5.3,{"$nulls":3},{"$f":"AE178*'III. GDP shares, 1310-2018'!C180","v":2.405821440900565},{"$f":"AF178*'III. GDP shares, 1310-2018'!D180","v":1.5319309585945882},{"$f":"AG178*'III. GDP shares, 1310-2018'!E180","v":0.166184595817867},{"$f":"AH178*'III. GDP shares, 1310-2018'!F180","v":1.3044977324408682},{"$f":"AI178*'III. GDP shares, 1310-2018'!G180","v":3.6926703794640763},{"$f":"AJ178*'III. GDP shares, 1310-2018'!H180","v":0},{"$f":"AK178*'III. GDP shares, 1310-2018'!I180","v":0.6617590245097529},{"$f":"AL178*'III. GDP shares, 1310-2018'!J180","v":0},null,null,{"$f":"U178*'III. GDP shares, 1310-2018'!C180","v":2.874650451168447},{"$f":"V178*'III. GDP shares, 1310-2018'!D180","v":-0.7945008191367922},{"$f":"W178*'III. GDP shares, 1310-2018'!E180","v":-0.23205988178088507},{"$f":"X178*'III. GDP shares, 1310-2018'!F180","v":-0.9683385336233655},{"$f":"Y178*'III. GDP shares, 1310-2018'!G180","v":-3.5641685221564567},{"$f":"Z178*'III. GDP shares, 1310-2018'!H180","v":0},{"$f":"AA178*'III. GDP shares, 1310-2018'!I180","v":0.4087738297300229},{"$f":"AB178*'III. GDP shares, 1310-2018'!J180","v":0},null,null,10.503517827170803,9.762864131727717,null,-2.275643475799029,-4.644597533617679,{"$f":"AVERAGE(BL175:BL181)","v":3.9448147274242813},3.4449645812259573,null,null,9.712075829795367]
[{"$f":"'[1]Nominal weighted'!B179","v":1485},null,46.28238188515807,33.124227215894464,5.189969755642057,3.2724593690672417,13.35808388948625,null,1.8619626509147897,null,null,{"$f":"AVERAGE(C176:C182)","v":1.1443062140498668},20.456141193028127,9.782263533808779,5.520635561489023,{"$f":"AVERAGE(G176:G182)","v":14.090003561521007},null,4.615312951568481,null,null,-38.1057152184914,-12.121581713248887,3.8576492919769794,2.8967250951922936,-0.2256648884291474,null,3.43803734908521,{"$nulls":3},8.176666666666668,21.002645502645574,{"v":9.047619047619037,"d":"9.05"},6.169184464259535,13.132419001057103,null,5.3,{"$nulls":3},{"$f":"AE179*'III. GDP shares, 1310-2018'!C181","v":2.4054512295671677},{"$f":"AF179*'III. GDP shares, 1310-2018'!D181","v":1.5245898161854952},{"$f":"AG179*'III. GDP shares, 1310-2018'!E181","v":0.16618635637071702},{"$f":"AH179*'III. GDP shares, 1310-2018'!F181","v":1.2935008845992555},{"$f":"AI179*'III. GDP shares, 1310-2018'!G181","v":3.6795815071563913},{"$f":"AJ179*'III. GDP shares, 1310-2018'!H181","v":0},{"$f":"AK179*'III. GDP shares, 1310-2018'!I181","v":0.6624727638367711},{"$f":"AL179*'III. GDP shares, 1310-2018'!J181","v":0},null,null,{"$f":"U179*'III. GDP shares, 1310-2018'!C181","v":-11.21012305656622},{"$f":"V179*'III. GDP shares, 1310-2018'!D181","v":-0.879910106265028},{"$f":"W179*'III. GDP shares, 1310-2018'!E181","v":0.07085716989360187},{"$f":"X179*'III. GDP shares, 1310-2018'!F181","v":0.6073600967485129},{"$f":"Y179*'III. GDP shares, 1310-2018'!G181","v":-0.06322920021144325},{"$f":"Z179*'III. GDP shares, 1310-2018'!H181","v":0},{"$f":"AA179*'III. GDP shares, 1310-2018'!I181","v":0.42973700090991035},{"$f":"AB179*'III. GDP shares, 1310-2018'!J181","v":0},null,null,10.471422447041318,9.731782557715796,null,-11.045308095490666,-6.710091680652492,{"$f":"AVERAGE(BL176:BL182)","v":2.036248509449113},1.2027275784792002,null,null,18.372590730755938]
[{"$f":"'[1]Nominal weighted'!B180","v":1486},null,11.03947198344091,21.49804901435906,-12.444864772832823,1.7417092293933472,0.26906720744240076,null,10.408249783254242,null,null,3.4651418249124726,22.026550509816,7.995141046733544,6.097010495903627,{"$f":"AVERAGE(G177:G183)","v":16.525712407756085},null,4.7870051904286886,null,null,-2.8628053167742418,-0.5932871095970853,21.493971915689954,3.9329889769966027,12.81866565901287,null,-5.108249783254243,{"$nulls":3},8.176666666666668,20.904761904761976,{"v":9.049107142857132,"d":"9.05"},5.67469820638995,13.087732866455271,null,5.3,{"$nulls":3},{"$f":"AE180*'III. GDP shares, 1310-2018'!C182","v":2.4050811321535663},{"$f":"AF180*'III. GDP shares, 1310-2018'!D182","v":1.517250932760317},{"$f":"AG180*'III. GDP shares, 1310-2018'!E182","v":0.16618811638181746},{"$f":"AH180*'III. GDP shares, 1310-2018'!F182","v":1.189638248163835},{"$f":"AI180*'III. GDP shares, 1310-2018'!G182","v":3.666496662498678},{"$f":"AJ180*'III. GDP shares, 1310-2018'!H182","v":0},{"$f":"AK180*'III. GDP shares, 1310-2018'!I182","v":0.6631862835350761},{"$f":"AL180*'III. GDP shares, 1310-2018'!J182","v":0},null,null,{"$f":"U180*'III. GDP shares, 1310-2018'!C182","v":-0.8420642950349745},{"$f":"V180*'III. GDP shares, 1310-2018'!D182","v":-0.04306030484976717},{"$f":"W180*'III. GDP shares, 1310-2018'!E182","v":0.39473979585397795},{"$f":"X180*'III. GDP shares, 1310-2018'!F182","v":0.8245080084388184},{"$f":"Y180*'III. GDP shares, 1310-2018'!G182","v":3.5911181360463273},{"$f":"Z180*'III. GDP shares, 1310-2018'!H182","v":0},{"$f":"AA180*'III. GDP shares, 1310-2018'!I182","v":-0.6391926771934414},{"$f":"AB180*'III. GDP shares, 1310-2018'!J182","v":0},null,null,10.365494464521833,9.607841375493289,null,3.286048663260941,4.9468807236789765,{"$f":"AVERAGE(BL177:BL183)","v":0.42580661412870846},0.27859508147956735,null,null,4.761481474622265]
[{"$f":"'[1]Nominal weighted'!B181","v":1487},null,-6.215579739141415,16.473266756804467,13.768564088354466,8.375907156263954,11.961569324965431,null,7.335932296908945,null,null,13.428919249350034,23.833850191589075,8.221077356821343,2.8143474766181638,{"$f":"AVERAGE(G178:G184)","v":12.834595287619056},null,5.08523319886274,null,null,14.392246405808082,4.333611550073911,-4.717968850259239,-2.7851505739940543,1.0814774068880086,null,-2.0359322969089453,{"$nulls":3},8.176666666666668,20.806878306878378,{"v":9.050595238095227,"d":"9.05"},5.590756582269901,13.04304673185344,null,5.3,{"$nulls":3},{"$f":"AE181*'III. GDP shares, 1310-2018'!C183","v":2.404711148607187},{"$f":"AF181*'III. GDP shares, 1310-2018'!D183","v":1.5099143072765278},{"$f":"AG181*'III. GDP shares, 1310-2018'!E183","v":0.1661898758514184},{"$f":"AH181*'III. GDP shares, 1310-2018'!F183","v":1.1718605073319317},{"$f":"AI181*'III. GDP shares, 1310-2018'!G183","v":3.653415843632166},{"$f":"AJ181*'III. GDP shares, 1310-2018'!H183","v":0},{"$f":"AK181*'III. GDP shares, 1310-2018'!I183","v":0.6638995837060273},{"$f":"AL181*'III. GDP shares, 1310-2018'!J183","v":0},null,null,{"$f":"U181*'III. GDP shares, 1310-2018'!C183","v":4.232677788693242},{"$f":"V181*'III. GDP shares, 1310-2018'!D183","v":0.31448168173657676},{"$f":"W181*'III. GDP shares, 1310-2018'!E183","v":-0.08663282766144981},{"$f":"X181*'III. GDP shares, 1310-2018'!F183","v":-0.5837864547684092},{"$f":"Y181*'III. GDP shares, 1310-2018'!G183","v":0.302926668445159},{"$f":"Z181*'III. GDP shares, 1310-2018'!H183","v":0},{"$f":"AA181*'III. GDP shares, 1310-2018'!I183","v":-0.255029170636133},{"$f":"AB181*'III. GDP shares, 1310-2018'!J183","v":0},null,null,10.327990587627268,9.569991266405257,null,3.9246376858089853,1.7113806069346271,{"$f":"AVERAGE(BL178:BL184)","v":-0.9867231138177884},-0.6497744752480547,null,null,4.449920955056322]
[{"$f":"'[1]Nominal weighted'!B182","v":1488},null,11.61201620103762,23.317369690406792,-9.067279266296303,5.955217636188914,15.285250548411838,null,7.550979189969531,null,null,15.015322671441266,21.30412260135805,6.437333407860192,1.1958611621369155,{"$f":"AVERAGE(G179:G185)","v":9.463187673992268},null,5.2343831980433935,null,null,-3.4353495343709524,-2.6083749814120125,18.119362599629625,-0.919965804462031,-2.286889951160229,null,-2.250979189969531,{"$nulls":3},8.176666666666668,20.70899470899478,{"v":9.052083333333321,"d":"9.05"},5.0352518317268835,12.998360597251608,null,5.3,{"$nulls":3},{"$f":"AE182*'III. GDP shares, 1310-2018'!C184","v":2.4043412788754885},{"$f":"AF182*'III. GDP shares, 1310-2018'!D184","v":1.5025799386922427},{"$f":"AG182*'III. GDP shares, 1310-2018'!E184","v":0.16619163477976973},{"$f":"AH182*'III. GDP shares, 1310-2018'!F184","v":1.0552606079843132},{"$f":"AI182*'III. GDP shares, 1310-2018'!G184","v":3.6403390486992295},{"$f":"AJ182*'III. GDP shares, 1310-2018'!H184","v":0},{"$f":"AK182*'III. GDP shares, 1310-2018'!I184","v":0.6646126644509217},{"$f":"AL182*'III. GDP shares, 1310-2018'!J184","v":0},null,null,{"$f":"U182*'III. GDP shares, 1310-2018'!C184","v":-1.010161356647424},{"$f":"V182*'III. GDP shares, 1310-2018'!D184","v":-0.18925553725474323},{"$f":"W182*'III. GDP shares, 1310-2018'!E184","v":0.3326622591410673},{"$f":"X182*'III. GDP shares, 1310-2018'!F184","v":-0.19280141422607558},{"$f":"Y182*'III. GDP shares, 1310-2018'!G184","v":-0.640469598223542},{"$f":"Z182*'III. GDP shares, 1310-2018'!H184","v":0},{"$f":"AA182*'III. GDP shares, 1310-2018'!I184","v":-0.2822696749187221},{"$f":"AB182*'III. GDP shares, 1310-2018'!J184","v":0},null,null,10.211892856328875,9.433325173481965,null,-1.9822953221294397,1.1029671897091446,{"$f":"AVERAGE(BL179:BL185)","v":0.024995846122211316},0.5923241039858472,null,null,9.723785019664419]
[{"$f":"'[1]Nominal weighted'!B183","v":1489},null,8.86639248933747,18.58966885566178,1.9462341532243412,-5.568739725841846,16.402373123718615,null,1.0245987817045226,null,null,11.9227717938884,19.897560747555854,7.656413277075331,2.94085232956018,{"$f":"AVERAGE(G180:G186)","v":8.589635962285918},null,7.238231303872373,null,null,0.2269408439958642,2.0214422554494007,7.107337275347075,10.998709726188531,-3.4486986610688377,null,4.275401218295477,{"$nulls":3},9.093333333333334,20.61111111111118,{"v":9.053571428571416,"d":"9.05"},5.429970000346685,12.953674462649776,null,5.3,{"$nulls":3},{"$f":"AE183*'III. GDP shares, 1310-2018'!C185","v":2.6734750568640275},{"$f":"AF183*'III. GDP shares, 1310-2018'!D185","v":1.495247825966218},{"$f":"AG183*'III. GDP shares, 1310-2018'!E185","v":0.16619339316712106},{"$f":"AH183*'III. GDP shares, 1310-2018'!F185","v":1.137808481445325},{"$f":"AI183*'III. GDP shares, 1310-2018'!G185","v":3.6272662758433842},{"$f":"AJ183*'III. GDP shares, 1310-2018'!H185","v":0},{"$f":"AK183*'III. GDP shares, 1310-2018'!I185","v":0.6653255258709935},{"$f":"AL183*'III. GDP shares, 1310-2018'!J185","v":0},null,null,{"$f":"U183*'III. GDP shares, 1310-2018'!C185","v":0.06672148304324928},{"$f":"V183*'III. GDP shares, 1310-2018'!D185","v":0.1466469770350005},{"$f":"W183*'III. GDP shares, 1310-2018'!E185","v":0.13046702149446393},{"$f":"X183*'III. GDP shares, 1310-2018'!F185","v":2.304695092351062},{"$f":"Y183*'III. GDP shares, 1310-2018'!G185","v":-0.9656988358716515},{"$f":"Z183*'III. GDP shares, 1310-2018'!H185","v":0},{"$f":"AA183*'III. GDP shares, 1310-2018'!I185","v":0.5367044460135707},{"$f":"AB183*'III. GDP shares, 1310-2018'!J185","v":0},null,null,10.406943389335398,9.76531655915707,null,2.219536184065695,3.5301887763679183,{"$f":"AVERAGE(BL180:BL186)","v":0.6349681732881464},0.6372079791447828,null,null,6.197179526160156]
[{"$f":"'[1]Nominal weighted'!B184","v":1490},null,24.01116134306327,21.790535749410132,36.47678499258842,-4.9144506203800935,6.670164944802194,null,5.38876197890892,null,null,12.160094666516882,20.798108854368515,10.940525358245585,4.02480406539645,{"$f":"AVERAGE(G181:G187)","v":12.228746001186925},null,5.955841145916793,null,null,-14.917828009729938,-1.2773082361825487,-27.421725468778913,10.555903855413288,6.23882338324575,null,-0.08876197890891963,{"$nulls":3},9.093333333333334,20.513227513227584,{"v":9.055059523809511,"d":"9.06"},5.641453235033194,12.908988328047943,null,5.3,{"$nulls":3},{"$f":"AE184*'III. GDP shares, 1310-2018'!C186","v":2.6730639748889637},{"$f":"AF184*'III. GDP shares, 1310-2018'!D186","v":1.4879179680578487},{"$f":"AG184*'III. GDP shares, 1310-2018'!E186","v":0.16619515101372198},{"$f":"AH184*'III. GDP shares, 1310-2018'!F186","v":1.1819414009211113},{"$f":"AI184*'III. GDP shares, 1310-2018'!G186","v":3.614197523209288},{"$f":"AJ184*'III. GDP shares, 1310-2018'!H186","v":0},{"$f":"AK184*'III. GDP shares, 1310-2018'!I186","v":0.6660381680674147},{"$f":"AL184*'III. GDP shares, 1310-2018'!J186","v":0},null,null,{"$f":"U184*'III. GDP shares, 1310-2018'!C186","v":-4.385224556788705},{"$f":"V184*'III. GDP shares, 1310-2018'!D186","v":-0.09264899315033534},{"$f":"W184*'III. GDP shares, 1310-2018'!E186","v":-0.5032940748050692},{"$f":"X184*'III. GDP shares, 1310-2018'!F186","v":2.21156841527595},{"$f":"Y184*'III. GDP shares, 1310-2018'!G186","v":1.746716276013294},{"$f":"Z184*'III. GDP shares, 1310-2018'!H186","v":0},{"$f":"AA184*'III. GDP shares, 1310-2018'!I186","v":-0.01115450298613874},{"$f":"AB184*'III. GDP shares, 1310-2018'!J186","v":0},null,null,10.418676988908594,9.789354186158349,null,-1.034037436441004,-4.485149409156879,{"$f":"AVERAGE(BL181:BL187)","v":-0.6264050538573225},-0.6780661620833703,null,null,9.24282466139117]
[{"$f":"'[1]Nominal weighted'!B185","v":1491},null,9.511414537192936,14.335740926969624,9.191924904341176,-0.4910749097331113,2.295804679119147,null,3.0701977046428035,null,null,9.3135676745983,21.332381475996677,12.718834980200539,3.9213821848649144,{"$f":"AVERAGE(G182:G188)","v":13.268588998131268},null,5.090287108662406,null,null,-0.41808120385960224,6.079602988374361,-0.13537728529357,5.976110817212456,10.568497514326964,null,2.2298022953571963,{"$nulls":3},9.093333333333334,20.415343915343986,{"v":9.056547619047606,"d":"9.06"},5.485035907479345,12.864302193446111,null,5.3,{"$nulls":3},{"$f":"AE185*'III. GDP shares, 1310-2018'!C187","v":2.672653019312992},{"$f":"AF185*'III. GDP shares, 1310-2018'!D187","v":1.4805903639271722},{"$f":"AG185*'III. GDP shares, 1310-2018'!E187","v":0.16619690831982192},{"$f":"AH185*'III. GDP shares, 1310-2018'!F187","v":1.148993718923156},{"$f":"AI185*'III. GDP shares, 1310-2018'!G187","v":3.6011327889427402},{"$f":"AJ185*'III. GDP shares, 1310-2018'!H187","v":0},{"$f":"AK185*'III. GDP shares, 1310-2018'!I187","v":0.6667505911412956},{"$f":"AL185*'III. GDP shares, 1310-2018'!J187","v":0},null,null,{"$f":"U185*'III. GDP shares, 1310-2018'!C187","v":-0.12287969118182292},{"$f":"V185*'III. GDP shares, 1310-2018'!D187","v":0.4409135422070724},{"$f":"W185*'III. GDP shares, 1310-2018'!E187","v":-2.4843115963086903E-3},{"$f":"X185*'III. GDP shares, 1310-2018'!F187","v":1.2518630522003922},{"$f":"Y185*'III. GDP shares, 1310-2018'!G187","v":2.9584630675181214},{"$f":"Z185*'III. GDP shares, 1310-2018'!H187","v":0},{"$f":"AA185*'III. GDP shares, 1310-2018'!I187","v":0.28051358463351483},{"$f":"AB185*'III. GDP shares, 1310-2018'!J187","v":0},null,null,10.369093828108396,9.73631739056718,null,4.806389243780969,4.050092521019635,{"$f":"AVERAGE(BL182:BL188)","v":-0.04934260055310613},-0.653265602539382,null,null,3.8902513250661093]
[{"$f":"'[1]Nominal weighted'!B186","v":1492},null,24.634525742288,23.27829423927915,13.723528840148042,15.487397541030095,7.243221907541803,null,15.88889939171765,null,null,7.117310527156372,21.22065592820339,16.228758862157974,4.544091323384452,{"$f":"AVERAGE(G183:G189)","v":12.752750581509888},null,4.775068538731847,null,null,-15.541192408954668,-2.960833921818761,-4.66549312586234,-10.195402630188726,5.576394151302478,null,-10.58889939171765,{"$nulls":3},9.093333333333334,20.317460317460387,{"v":9.058035714285701,"d":"9.06"},5.291994910841369,12.81961605884428,null,5.3,{"$nulls":3},{"$f":"AE186*'III. GDP shares, 1310-2018'!C188","v":2.6722421900778244},{"$f":"AF186*'III. GDP shares, 1310-2018'!D188","v":1.473265012534864},{"$f":"AG186*'III. GDP shares, 1310-2018'!E188","v":0.16619866508567016},{"$f":"AH186*'III. GDP shares, 1310-2018'!F188","v":1.1083854966482183},{"$f":"AI186*'III. GDP shares, 1310-2018'!G188","v":3.588072071190681},{"$f":"AJ186*'III. GDP shares, 1310-2018'!H188","v":0},{"$f":"AK186*'III. GDP shares, 1310-2018'!I188","v":0.6674627951936842},{"$f":"AL186*'III. GDP shares, 1310-2018'!J188","v":0},null,null,{"$f":"U186*'III. GDP shares, 1310-2018'!C188","v":-4.567063420746981},{"$f":"V186*'III. GDP shares, 1310-2018'!D188","v":-0.2146967660713617},{"$f":"W186*'III. GDP shares, 1310-2018'!E188","v":-0.08560340828219375},{"$f":"X186*'III. GDP shares, 1310-2018'!F188","v":-2.1353830829730778},{"$f":"Y186*'III. GDP shares, 1310-2018'!G188","v":1.5607724927483746},{"$f":"Z186*'III. GDP shares, 1310-2018'!H188","v":0},{"$f":"AA186*'III. GDP shares, 1310-2018'!I188","v":-1.3335276200038804},{"$f":"AB186*'III. GDP shares, 1310-2018'!J188","v":0},null,null,10.313406722460845,9.675626230730941,null,-6.775501805329121,-6.395904554539945,{"$f":"AVERAGE(BL183:BL189)","v":0.5165223984435618},-0.8741237190564002,null,null,14.763166257453836]
[{"$f":"'[1]Nominal weighted'!B187","v":1493},null,12.700732091840301,27.80188576204767,10.543919795358953,9.329371380247235,25.742837479749458,null,1.4315186775651765,null,null,2.556369000855154,22.596941581931137,17.509520243413853,5.549956731867845,{"$f":"AVERAGE(G184:G190)","v":12.484272036778501},null,4.947636665851482,null,null,-3.2800178061260157,-7.582309042470882,-1.4843959858351576,-4.114080522004306,-12.96790755550703,null,3.8684813224348233,{"$nulls":3},9.420714285714286,20.21957671957679,{"v":9.059523809523796,"d":"9.06"},5.215290858242928,12.774929924242429,null,5.3,{"$nulls":3},{"$f":"AE187*'III. GDP shares, 1310-2018'!C189","v":2.768023576955464},{"$f":"AF187*'III. GDP shares, 1310-2018'!D189","v":1.4659419128422384},{"$f":"AG187*'III. GDP shares, 1310-2018'!E189","v":0.16620042131151574},{"$f":"AH187*'III. GDP shares, 1310-2018'!F189","v":1.0921522826860697},{"$f":"AI187*'III. GDP shares, 1310-2018'!G189","v":3.5750153681011825},{"$f":"AJ187*'III. GDP shares, 1310-2018'!H189","v":0},{"$f":"AK187*'III. GDP shares, 1310-2018'!I189","v":0.6681747803255662},{"$f":"AL187*'III. GDP shares, 1310-2018'!J189","v":0},null,null,{"$f":"U187*'III. GDP shares, 1310-2018'!C189","v":-0.9637450351252381},{"$f":"V187*'III. GDP shares, 1310-2018'!D189","v":-0.5497258807954619},{"$f":"W187*'III. GDP shares, 1310-2018'!E189","v":-0.027231810791156125},{"$f":"X187*'III. GDP shares, 1310-2018'!F189","v":-0.8615439781579305},{"$f":"Y187*'III. GDP shares, 1310-2018'!G189","v":-3.62901942147462},{"$f":"Z187*'III. GDP shares, 1310-2018'!H189","v":0},{"$f":"AA187*'III. GDP shares, 1310-2018'!I189","v":0.4877021995870649},{"$f":"AB187*'III. GDP shares, 1310-2018'!J189","v":0},null,null,10.331672599550037,9.735508342222037,null,-5.543563926757343,-4.2600382649180935,{"$f":"AVERAGE(BL184:BL190)","v":1.4490541364195617},-0.7968770406823188,null,null,13.263404475341678]
[{"$f":"'[1]Nominal weighted'!B188","v":1494},null,-26.14126868257149,20.213175108201604,26.216731442039137,7.651953992543207,19.24047030357582,null,1.2770540361282263,null,null,-7.550871937984916,19.29788110864584,11.494792082118142,5.503641592023856,{"$f":"AVERAGE(G185:G191)","v":13.137616435759702},null,4.9411783841457275,null,null,35.561982968285776,-0.09148198650841266,-18.155719537277246,-2.193950341128676,-7.833869924787941,null,4.0229459638717735,{"$nulls":3},9.420714285714286,20.12169312169319,{"v":8.061011904761891,"d":"8.06"},5.458003651414532,11.406600378787877,null,5.3,{"$nulls":3},{"$f":"AE188*'III. GDP shares, 1310-2018'!C190","v":2.7675982185189327},{"$f":"AF188*'III. GDP shares, 1310-2018'!D190","v":1.4586210638112487},{"$f":"AG188*'III. GDP shares, 1310-2018'!E190","v":0.14785961451733295},{"$f":"AH188*'III. GDP shares, 1310-2018'!F190","v":1.1428039766973537},{"$f":"AI188*'III. GDP shares, 1310-2018'!G190","v":3.191603044016533},{"$f":"AJ188*'III. GDP shares, 1310-2018'!H190","v":0},{"$f":"AK188*'III. GDP shares, 1310-2018'!I190","v":0.6688865466378648},{"$f":"AL188*'III. GDP shares, 1310-2018'!J190","v":0},null,null,{"$f":"U188*'III. GDP shares, 1310-2018'!C190","v":10.447326787022494},{"$f":"V188*'III. GDP shares, 1310-2018'!D190","v":-0.00663152706253174},{"$f":"W188*'III. GDP shares, 1310-2018'!E190","v":-0.3330224199868515},{"$f":"X188*'III. GDP shares, 1310-2018'!F190","v":-0.45937220541590695},{"$f":"Y188*'III. GDP shares, 1310-2018'!G190","v":-2.1919417063894424},{"$f":"Z188*'III. GDP shares, 1310-2018'!H190","v":0},{"$f":"AA188*'III. GDP shares, 1310-2018'!I190","v":0.507715930770741},{"$f":"AB188*'III. GDP shares, 1310-2018'!J190","v":0},null,null,9.961337223728629,9.377372464199265,null,7.964074858938502,1.8849845237425455,{"$f":"AVERAGE(BL185:BL191)","v":4.483380876897749},2.262076435852092,null,null,-0.05195498561301726]
[{"$f":"'[1]Nominal weighted'!B189","v":1495},null,-3.7617838310558733,22.53529085585375,15.50218790740576,10.31418160582568,11.674381632062179,null,5.344449200455634,null,null,-1.72900368312926,21.002032092171444,10.081989977796255,6.750004256806572,{"$f":"AVERAGE(G186:G192)","v":15.425103744686242},null,5.3588090079194135,null,null,11.709283831055874,-2.5114813320441556,-6.439687907405775,-4.9417032005945325,-0.4301999460156681,null,-0.044449200455634545,{"$nulls":3},7.947500000000001,20.023809523809593,{"v":9.062499999999986,"d":"9.06"},5.372478405231149,11.244181686046511,null,5.3,{"$nulls":3},{"$f":"AE189*'III. GDP shares, 1310-2018'!C191","v":2.334441601488675},{"$f":"AF189*'III. GDP shares, 1310-2018'!D191","v":1.4513024644044854},{"$f":"AG189*'III. GDP shares, 1310-2018'!E191","v":0.16620393214419454},{"$f":"AH189*'III. GDP shares, 1310-2018'!F191","v":1.124723753488983},{"$f":"AI189*'III. GDP shares, 1310-2018'!G191","v":3.1456743859838343},{"$f":"AJ189*'III. GDP shares, 1310-2018'!H191","v":0},{"$f":"AK189*'III. GDP shares, 1310-2018'!I191","v":0.6695980942314421},{"$f":"AL189*'III. GDP shares, 1310-2018'!J191","v":0},null,null,{"$f":"U189*'III. GDP shares, 1310-2018'!C191","v":3.439400981296699},{"$f":"V189*'III. GDP shares, 1310-2018'!D191","v":-0.18202925083598606},{"$f":"W189*'III. GDP shares, 1310-2018'!E191","v":-0.11810222918535296},{"$f":"X189*'III. GDP shares, 1310-2018'!F191","v":-1.034541333286582},{"$f":"Y189*'III. GDP shares, 1310-2018'!G191","v":-0.1203528179122592},{"$f":"Z189*'III. GDP shares, 1310-2018'!H191","v":0},{"$f":"AA189*'III. GDP shares, 1310-2018'!I191","v":-5.6156792292838195E-3},{"$f":"AB189*'III. GDP shares, 1310-2018'!J191","v":0},null,null,9.825078269181207,8.891944231741615,null,1.978759670847235,-0.44303962590998186,{"$f":"AVERAGE(BL186:BL192)","v":1.6253471354197686},0.5154573049292966,null,null,5.279852845653908]
[{"$f":"'[1]Nominal weighted'!B190","v":1496},null,-23.060198194771054,28.223668431755996,10.911563822015502,1.4723181335419007,14.523023310598909,null,2.232575671541956,null,null,-1.1109364866630724,20.178417998805987,12.222588800879208,6.2321311060171425,{"$f":"AVERAGE(G187:G193)","v":16.295582252667103},null,4.512938710924144,null,null,31.31357743205919,-8.297742505830001,-1.8475757267774215,3.622115393848338,-3.432305771839218,null,3.067424328458044,{"$nulls":3},8.253379237288136,19.925925925925995,{"v":9.06398809523808,"d":"9.06"},5.094433527390239,11.09071753875969,null,5.3,{"$nulls":3},{"$f":"AE190*'III. GDP shares, 1310-2018'!C192","v":2.4239159503427086},{"$f":"AF190*'III. GDP shares, 1310-2018'!D192","v":1.443986113585178},{"$f":"AG190*'III. GDP shares, 1310-2018'!E192","v":0.16620568675152528},{"$f":"AH190*'III. GDP shares, 1310-2018'!F192","v":1.0663514568047585},{"$f":"AI190*'III. GDP shares, 1310-2018'!G192","v":3.102264579685387},{"$f":"AJ190*'III. GDP shares, 1310-2018'!H192","v":0},{"$f":"AK190*'III. GDP shares, 1310-2018'!I192","v":0.6703094232070977},{"$f":"AL190*'III. GDP shares, 1310-2018'!J192","v":0},null,null,{"$f":"U190*'III. GDP shares, 1310-2018'!C192","v":9.196412477563452},{"$f":"V190*'III. GDP shares, 1310-2018'!D192","v":-0.6013183526359607},{"$f":"W190*'III. GDP shares, 1310-2018'!E192","v":-0.033878860968034386},{"$f":"X190*'III. GDP shares, 1310-2018'!F192","v":0.7581702668566882},{"$f":"Y190*'III. GDP shares, 1310-2018'!G192","v":-0.9600749983411181},{"$f":"Z190*'III. GDP shares, 1310-2018'!H192","v":0},{"$f":"AA190*'III. GDP shares, 1310-2018'!I192","v":0.3879478174226661},{"$f":"AB190*'III. GDP shares, 1310-2018'!J192","v":0},null,null,9.788074054100356,8.873033210376654,null,8.747258349897693,4.070915524986489,{"$f":"AVERAGE(BL187:BL193)","v":1.3688656440419862},0.22690067548351373,null,null,-1.9195296057421771]
[{"$f":"'[1]Nominal weighted'!B191","v":1497},null,-46.73952522881724,-1.3028875635869106,-5.626312136481555,-5.238656599288023,11.243575737670609,null,5.3435540069686445,null,null,-1.049210994189989,19.83492730310596,10.384447277959113,3.100079413064158,{"$f":"AVERAGE(G188:G194)","v":13.167816265153144},null,5.403874641750154,null,null,55.29878370339352,21.130929891629307,14.691788326957731,10.793523990689813,-0.3063223461977402,null,-0.04355400696864454,{"$nulls":3},8.559258474576271,19.828042328042397,{"v":9.065476190476176,"d":"9.07"},5.55486739140179,10.937253391472868,null,5.3,{"$nulls":3},{"$f":"AE191*'III. GDP shares, 1310-2018'!C193","v":2.5133628130638446},{"$f":"AF191*'III. GDP shares, 1310-2018'!D193","v":1.436672010317191},{"$f":"AG191*'III. GDP shares, 1310-2018'!E193","v":0.16620744081984823},{"$f":"AH191*'III. GDP shares, 1310-2018'!F193","v":1.162549491640421},{"$f":"AI191*'III. GDP shares, 1310-2018'!G193","v":3.058868108691642},{"$f":"AJ191*'III. GDP shares, 1310-2018'!H193","v":0},{"$f":"AK191*'III. GDP shares, 1310-2018'!I193","v":0.6710205336655691},{"$f":"AL191*'III. GDP shares, 1310-2018'!J193","v":0},null,null,{"$f":"U191*'III. GDP shares, 1310-2018'!C193","v":16.238077980774},{"$f":"V191*'III. GDP shares, 1310-2018'!D193","v":1.5310747790942374},{"$f":"W191*'III. GDP shares, 1310-2018'!E193","v":0.2693608683740088},{"$f":"X191*'III. GDP shares, 1310-2018'!F193","v":2.258920860614568},{"$f":"Y191*'III. GDP shares, 1310-2018'!G193","v":-0.0856704715732737},{"$f":"Z191*'III. GDP shares, 1310-2018'!H193","v":0},{"$f":"AA191*'III. GDP shares, 1310-2018'!I193","v":-0.005514270377240335},{"$f":"AB191*'III. GDP shares, 1310-2018'!J193","v":0},null,null,9.874149629328251,9.008680398198516,null,20.206249746906302,16.927524926584,{"$f":"AVERAGE(BL188:BL194)","v":2.7873920238012557},1.3959118105212605,null,null,-11.10316657993074]
[{"$f":"'[1]Nominal weighted'!B192","v":1498},null,50.264492321182544,26.26479781164884,-0.6976898259120468,8.233463743745915,18.308215841604913,null,5.9936120710586085,null,null,-1.3876096743975137,17.148122017572963,5.423859912411125,0.9733291682653601,{"$f":"AVERAGE(G189:G195)","v":9.389356251761118},null,5.652777312818469,null,null,-41.39935460931814,-6.534639081490042,9.764654111626317,-2.6700701249802807,-7.524426597418866,null,-0.6936120710586089,{"$nulls":3},8.865137711864406,19.7301587301588,{"v":9.06696428571427,"d":"9.07"},5.563393618765634,10.783789244186046,null,5.3,{"$nulls":3},{"$f":"AE192*'III. GDP shares, 1310-2018'!C194","v":2.6027822023155682},{"$f":"AF192*'III. GDP shares, 1310-2018'!D194","v":1.4293601535650269},{"$f":"AG192*'III. GDP shares, 1310-2018'!E194","v":0.16620919434941167},{"$f":"AH192*'III. GDP shares, 1310-2018'!F194","v":1.1641550900024984},{"$f":"AI192*'III. GDP shares, 1310-2018'!G194","v":3.01548496685872},{"$f":"AJ192*'III. GDP shares, 1310-2018'!H194","v":0},{"$f":"AK192*'III. GDP shares, 1310-2018'!I194","v":0.6717314257075323},{"$f":"AL192*'III. GDP shares, 1310-2018'!J194","v":0},null,null,{"$f":"U192*'III. GDP shares, 1310-2018'!C194","v":-12.154746701822283},{"$f":"V192*'III. GDP shares, 1310-2018'!D194","v":-0.47340484426682844},{"$f":"W192*'III. GDP shares, 1310-2018'!E194","v":0.17899875215690528},{"$f":"X192*'III. GDP shares, 1310-2018'!F194","v":-0.5587193608186697},{"$f":"Y192*'III. GDP shares, 1310-2018'!G194","v":-2.104065164383794},{"$f":"Z192*'III. GDP shares, 1310-2018'!H194","v":0},{"$f":"AA192*'III. GDP shares, 1310-2018'!I194","v":-0.08790962743021764},{"$f":"AB192*'III. GDP shares, 1310-2018'!J194","v":0},null,null,9.884907265114858,9.049723032798758,null,-15.199846946564888,-8.176241395439936,{"$f":"AVERAGE(BL189:BL195)","v":4.544954647208382},3.57076387437499,null,null,22.34680498153179]
[{"$f":"'[1]Nominal weighted'!B193","v":1499},null,28.960996117551304,17.512995585720947,28.707720601728703,11.862285485504081,13.336571463407852,null,9.967807312750761,null,null,-0.25788055296090057,16.135589665631134,4.459842973039424,-0.23367728411076388,{"$f":"AVERAGE(G190:G196)","v":8.53633913932371},null,3.2778110462317778,null,null,-19.789979168398762,2.119279546554253,-19.639268220776337,-5.94686663556602,-2.570163973024917,null,-4.667807312750762,{"$nulls":3},9.171016949152543,19.6322751322752,{"v":9.068452380952365,"d":"9.07"},5.915418849938061,10.766407490382935,null,5.3,{"$nulls":3},{"$f":"AE193*'III. GDP shares, 1310-2018'!C195","v":2.6921741307535902},{"$f":"AF193*'III. GDP shares, 1310-2018'!D195","v":1.4220505422938234},{"$f":"AG193*'III. GDP shares, 1310-2018'!E195","v":0.16621094734046388},{"$f":"AH193*'III. GDP shares, 1310-2018'!F195","v":1.2376272495154153},{"$f":"AI193*'III. GDP shares, 1310-2018'!G195","v":3.0101622011110885},{"$f":"AJ193*'III. GDP shares, 1310-2018'!H195","v":0},{"$f":"AK193*'III. GDP shares, 1310-2018'!I195","v":0.6724420994336012},{"$f":"AL193*'III. GDP shares, 1310-2018'!J195","v":0},null,null,{"$f":"U193*'III. GDP shares, 1310-2018'!C195","v":-5.809396085593191},{"$f":"V193*'III. GDP shares, 1310-2018'!D195","v":0.1535085774900925},{"$f":"W193*'III. GDP shares, 1310-2018'!E195","v":-0.359957933164544},{"$f":"X193*'III. GDP shares, 1310-2018'!F195","v":-1.2442067728623527},{"$f":"Y193*'III. GDP shares, 1310-2018'!G195","v":-0.71858792723272},{"$f":"Z193*'III. GDP shares, 1310-2018'!H195","v":0},{"$f":"AA193*'III. GDP shares, 1310-2018'!I195","v":-0.5922321036108753},{"$f":"AB193*'III. GDP shares, 1310-2018'!J195","v":0},null,null,9.975595133783516,9.200667170447982,null,-8.570872244973591,-8.415800960660425,{"$f":"AVERAGE(BL190:BL196)","v":5.048945370830615},4.392422086265992,null,null,16.50299745061784]
[{"$f":"'[1]Nominal weighted'!B194","v":1500},null,13.132810539151892,25.39745089214749,-2.323070865081702,-12.594990470423651,3.8484755671517172,null,7.668070193347244,null,null,1.3379485533524973,15.830255787137498,4.195502417603272,1.8084441179710866,{"$f":"AVERAGE(G191:G197)","v":10.969209965593375},null,2.62882031691429,null,null,-3.3318105391518924,-5.863059357755887,9.393011341272162,18.337616661631554,6.9005501694281035,null,-1.8980701933472444,{"$nulls":3},9.801,19.534391534391602,{"v":7.06994047619046,"d":"7.07"},5.742626191207902,10.74902573657982,null,5.77,{"$nulls":3},{"$f":"AE194*'III. GDP shares, 1310-2018'!C196","v":2.9212549353565067},{"$f":"AF194*'III. GDP shares, 1310-2018'!D196","v":1.419042403275073},{"$f":"AG194*'III. GDP shares, 1310-2018'!E196","v":0.1319080014524968},{"$f":"AH194*'III. GDP shares, 1310-2018'!F196","v":1.2234812478287642},{"$f":"AI194*'III. GDP shares, 1310-2018'!G196","v":3.02684753522642},{"$f":"AJ194*'III. GDP shares, 1310-2018'!H196","v":0},{"$f":"AK194*'III. GDP shares, 1310-2018'!I196","v":0.6693027276715439},{"$f":"AL194*'III. GDP shares, 1310-2018'!J196","v":0},null,null,{"$f":"U194*'III. GDP shares, 1310-2018'!C196","v":-0.993068868602213},{"$f":"V194*'III. GDP shares, 1310-2018'!D196","v":-0.42591190142403607},{"$f":"W194*'III. GDP shares, 1310-2018'!E196","v":0.17525088900260055},{"$f":"X194*'III. GDP shares, 1310-2018'!F196","v":3.906876291151973},{"$f":"Y194*'III. GDP shares, 1310-2018'!G196","v":1.9431447820391594},{"$f":"Z194*'III. GDP shares, 1310-2018'!H196","v":0},{"$f":"AA194*'III. GDP shares, 1310-2018'!I196","v":-0.22017046060994203},{"$f":"AB194*'III. GDP shares, 1310-2018'!J196","v":0},null,null,9.777830656394963,9.391836850810805,null,4.386120731557543,3.923039680346133,{"$f":"AVERAGE(BL191:BL197)","v":3.5801013351400672},3.5750849767717243,null,null,3.160761814554154]
[{"$f":"'[1]Nominal weighted'!B195","v":1501},null,-28.510059444024165,1.4055381094706227,-8.50738011679679,-7.235297721048382,-7.208749790168348,null,3.019372733606433,null,null,{"$f":"AVERAGE(C192:C198)","v":11.10425198642238},{"$f":"AVERAGE(D192:D198)","v":18.45970547576572},{"$f":"AVERAGE(E192:E198)","v":4.925405998072966},{"$f":"AVERAGE(F192:F198)","v":3.777900230622461},{"$f":"AVERAGE(G192:G198)","v":9.279123018715444},null,4.609136830313596,null,null,35.9533927773575,18.03096982703738,15.578808688225346,11.950063992353076,17.919831272945057,null,3.2206272663935662,{"$nulls":3},7.443333333333333,19.436507936508004,{"v":7.071428571428555,"d":"7.07"},4.714766271304694,10.71108148277671,null,6.239999999999999,{"$nulls":3},{"$f":"AE195*'III. GDP shares, 1310-2018'!C197","v":2.213188611162613},{"$f":"AF195*'III. GDP shares, 1310-2018'!D197","v":1.4209814578789908},{"$f":"AG195*'III. GDP shares, 1310-2018'!E197","v":0.1337423410336869},{"$f":"AH195*'III. GDP shares, 1310-2018'!F197","v":1.0049238832625753},{"$f":"AI195*'III. GDP shares, 1310-2018'!G197","v":3.01424225521096},{"$f":"AJ195*'III. GDP shares, 1310-2018'!H197","v":0},{"$f":"AK195*'III. GDP shares, 1310-2018'!I197","v":0.7243535600945227},{"$f":"AL195*'III. GDP shares, 1310-2018'!J197","v":0},null,null,{"$f":"U195*'III. GDP shares, 1310-2018'!C197","v":10.690323254926616},{"$f":"V195*'III. GDP shares, 1310-2018'!D197","v":1.3182241313867877},{"$f":"W195*'III. GDP shares, 1310-2018'!E197","v":0.2946429174010995},{"$f":"X195*'III. GDP shares, 1310-2018'!F197","v":2.547083783457321},{"$f":"Y195*'III. GDP shares, 1310-2018'!G197","v":5.042881310913077},{"$f":"Z195*'III. GDP shares, 1310-2018'!H197","v":0},{"$f":"AA195*'III. GDP shares, 1310-2018'!I197","v":0.3738578247034729},{"$f":"AB195*'III. GDP shares, 1310-2018'!J197","v":0},null,null,9.269519599225216,8.511432108643348,null,20.267013222788375,17.108948970718654,{"$f":"AVERAGE(BL192:BL198)","v":0.27893990697211646},0.9511199898031242,null,null,-11.85833844063723]
[{"$f":"'[1]Nominal weighted'!B196","v":1502},null,4.146320019000413,15.447564392260965,8.75406933180386,1.8651364391928134,5.70326184500031,null,-11.280314665651202,null,null,-0.4207599986280875,18.510453739289265,6.576721982560245,4.776152489122686,{"$f":"AVERAGE(G193:G199)","v":8.147920036921525},null,4.767332425696268,null,null,4.081679980999587,3.891059946363441,-1.6811526651372095,2.599629832111881,4.969875383973286,null,17.9903146656512,{"$nulls":3},8.228,19.338624338624406,{"v":7.07291666666665,"d":"7.07"},4.464766271304694,10.673137228973596,null,6.709999999999999,{"$nulls":3},{"$f":"AE196*'III. GDP shares, 1310-2018'!C198","v":2.440646041056318},{"$f":"AF196*'III. GDP shares, 1310-2018'!D198","v":1.4227420070565033},{"$f":"AG196*'III. GDP shares, 1310-2018'!E198","v":0.13555991012839694},{"$f":"AH196*'III. GDP shares, 1310-2018'!F198","v":0.9520419233563869},{"$f":"AI196*'III. GDP shares, 1310-2018'!G198","v":3.0016691476709987},{"$f":"AJ196*'III. GDP shares, 1310-2018'!H198","v":0},{"$f":"AK196*'III. GDP shares, 1310-2018'!I198","v":0.7794790169544888},{"$f":"AL196*'III. GDP shares, 1310-2018'!J198","v":0},null,null,{"$f":"U196*'III. GDP shares, 1310-2018'!C198","v":1.2107360338460706},{"$f":"V196*'III. GDP shares, 1310-2018'!D198","v":0.28626516244019856},{"$f":"W196*'III. GDP shares, 1310-2018'!E198","v":-0.03222106451107379},{"$f":"X196*'III. GDP shares, 1310-2018'!F198","v":0.5543306043331142},{"$f":"Y196*'III. GDP shares, 1310-2018'!G198","v":1.3977072802311175},{"$f":"Z196*'III. GDP shares, 1310-2018'!H198","v":0},{"$f":"AA196*'III. GDP shares, 1310-2018'!I198","v":2.089876719863446},{"$f":"AB196*'III. GDP shares, 1310-2018'!J198","v":0},null,null,9.414574084261558,8.732138046223094,null,5.506694736202873,5.308567857327032,{"$f":"AVERAGE(BL193:BL199)","v":3.68089470202295},2.5767549770274605,null,null,2.0889664654039146]
[{"$f":"'[1]Nominal weighted'!B197","v":1503},null,-11.889394450577262,26.086331282300524,9.061179933962437,15.767167948114855,31.553119094486565,null,-2.3103594336804525,null,null,6.36815578002649,19.161733279639996,4.395242329218921,3.950403135265936,{"$f":"AVERAGE(G194:G200)","v":7.110843552443491},null,3.794646417214684,null,null,19.094394450577262,-6.845590541559716,-1.9867751720576925,-8.737127500164519,-20.917926119316082,null,9.490359433680451,{"$nulls":3},7.205,19.240740740740808,{"v":7.074404761904745,"d":"7.07"},7.030040447950336,10.635192975170483,null,7.179999999999999,{"$nulls":3},{"$f":"AE197*'III. GDP shares, 1310-2018'!C199","v":2.132119995544305},{"$f":"AF197*'III. GDP shares, 1310-2018'!D199","v":1.4243266360189766},{"$f":"AG197*'III. GDP shares, 1310-2018'!E199","v":0.13736095161581063},{"$f":"AH197*'III. GDP shares, 1310-2018'!F199","v":1.4996767402366968},{"$f":"AI197*'III. GDP shares, 1310-2018'!G199","v":2.989127746667481},{"$f":"AJ197*'III. GDP shares, 1310-2018'!H199","v":0},{"$f":"AK197*'III. GDP shares, 1310-2018'!I199","v":0.834678017500304},{"$f":"AL197*'III. GDP shares, 1310-2018'!J199","v":0},null,null,{"$f":"U197*'III. GDP shares, 1310-2018'!C199","v":5.650456656611519},{"$f":"V197*'III. GDP shares, 1310-2018'!D199","v":-0.5067557990102447},{"$f":"W197*'III. GDP shares, 1310-2018'!E199","v":-0.03857643681205375},{"$f":"X197*'III. GDP shares, 1310-2018'!F199","v":-1.8638394736831663},{"$f":"Y197*'III. GDP shares, 1310-2018'!G199","v":-5.879193119670292},{"$f":"Z197*'III. GDP shares, 1310-2018'!H199","v":0},{"$f":"AA197*'III. GDP shares, 1310-2018'!I199","v":1.103258272628093},{"$f":"AB197*'III. GDP shares, 1310-2018'!J199","v":0},null,null,{"$f":"AVERAGE(AE197:AL197)","v":9.727563154294396},{"$f":"SUM(AO197:AV197)","v":9.017290087583575},null,{"$f":"SUM(AY197:BF197)","v":-1.5346498999361449},{"$f":"AVERAGE(U197:AB197)","v":-1.6504442414733829},{"$f":"AVERAGE(BL194:BL200)","v":2.168002624941427},2.1274907570263966,null,null,{"$f":"((AO197+SUM(AQ197:AV197))-((AY197+(SUM(BA197:BF197)))))","v":8.620857552490499}]
[{"$f":"'[1]Nominal weighted'!B198","v":1504},null,21.624598802671933,17.10326025681063,-0.5169870731937021,8.547536189271598,-0.5870328904749034,null,19.20576960076378,null,null,2.887900884932035,17.666206194332833,6.573490475025527,6.234253464077828,{"$f":"AVERAGE(G195:G201)","v":7.150246326860592},null,4.570881987585335,null,null,-14.419598802671935,2.0395968860465814,7.592879930336542,-3.482769917966904,11.184281611842275,null,-11.55576960076378,{"$nulls":3},7.205,19.14285714285721,{"v":7.07589285714284,"d":"7.08"},5.064766271304694,10.597248721367372,null,7.649999999999999,{"$nulls":3},{"$f":"AE198*'III. GDP shares, 1310-2018'!C200","v":2.127092037819019},{"$f":"AF198*'III. GDP shares, 1310-2018'!D200","v":1.4257378802970533},{"$f":"AG198*'III. GDP shares, 1310-2018'!E200","v":0.1391457037076351},{"$f":"AH198*'III. GDP shares, 1310-2018'!F200","v":1.0808860175033228},{"$f":"AI198*'III. GDP shares, 1310-2018'!G200","v":2.976617595215435},{"$f":"AJ198*'III. GDP shares, 1310-2018'!H200","v":0},{"$f":"AK198*'III. GDP shares, 1310-2018'!I200","v":0.8899495017499243},{"$f":"AL198*'III. GDP shares, 1310-2018'!J200","v":0},null,null,{"$f":"U198*'III. GDP shares, 1310-2018'!C200","v":-4.257017876711746},{"$f":"V198*'III. GDP shares, 1310-2018'!D200","v":0.15190681930453429},{"$f":"W198*'III. GDP shares, 1310-2018'!E200","v":0.14931212815181974},{"$f":"X198*'III. GDP shares, 1310-2018'!F200","v":-0.743267725470357},{"$f":"Y198*'III. GDP shares, 1310-2018'!G200","v":3.141506848709554},{"$f":"Z198*'III. GDP shares, 1310-2018'!H200","v":0},{"$f":"AA198*'III. GDP shares, 1310-2018'!I200","v":-1.3443204442531569},{"$f":"AB198*'III. GDP shares, 1310-2018'!J200","v":0},null,null,9.455960832112018,8.63942873629239,null,-2.901880250269352,-1.4402299821962032,{"$f":"AVERAGE(BL195:BL201)","v":2.553826623400018},2.061045522125117,null,null,10.26747792556922]
[{"$f":"'[1]Nominal weighted'!B199","v":1505},null,-30.410591574170724,26.620035656313686,10.86152206549891,15.22122955324749,10.389794969047488,null,7.1009812387373135,null,null,6.718813051968275,20.21436338225862,8.053634234084022,7.982476399537737,{"$f":"AVERAGE(G196:G202)","v":10.899125057838534},null,5.121674622464311,null,null,37.61559157417072,-7.575062111340074,-2.584141113117977,-9.425695518709613,0.169509498516773,null,1.0190187612626855,{"$nulls":3},7.205,19.04497354497361,{"v":8.277380952380934,"d":"8.28"},5.7955340345378765,10.55930446756426,null,8.12,{"$nulls":3},{"$f":"AE199*'III. GDP shares, 1310-2018'!C201","v":2.1221121609265468},{"$f":"AF199*'III. GDP shares, 1310-2018'!D201","v":1.426978226928358},{"$f":"AG199*'III. GDP shares, 1310-2018'!E201","v":0.16480703509083122},{"$f":"AH199*'III. GDP shares, 1310-2018'!F201","v":1.2373506987826992},{"$f":"AI199*'III. GDP shares, 1310-2018'!G201","v":2.964138245069904},{"$f":"AJ199*'III. GDP shares, 1310-2018'!H201","v":0},{"$f":"AK199*'III. GDP shares, 1310-2018'!I201","v":0.945292429993879},{"$f":"AL199*'III. GDP shares, 1310-2018'!J201","v":0},null,null,{"$f":"U199*'III. GDP shares, 1310-2018'!C201","v":11.079042931296856},{"$f":"V199*'III. GDP shares, 1310-2018'!D201","v":-0.5675748866222549},{"$f":"W199*'III. GDP shares, 1310-2018'!E201","v":-0.05145161707058936},{"$f":"X199*'III. GDP shares, 1310-2018'!F201","v":-2.0123927953980636},{"$f":"Y199*'III. GDP shares, 1310-2018'!G201","v":0.047583587441729316},{"$f":"Z199*'III. GDP shares, 1310-2018'!H201","v":0},{"$f":"AA199*'III. GDP shares, 1310-2018'!I201","v":0.11862939914327052},{"$f":"AB199*'III. GDP shares, 1310-2018'!J201","v":0},null,null,9.833698833242781,8.860678796792218,null,8.613836618790947,3.20320351513042,{"$f":"AVERAGE(BL196:BL202)","v":-0.22708351617343944},-0.15906052249391342,null,null,-1.7477109355493425]
[{"$f":"'[1]Nominal weighted'!B200","v":1506},null,76.48340656813335,22.07195236817605,13.437363028339432,6.082040008506825,6.077036072061612,null,3.159005253379677,null,null,8.225266994376321,22.963667516772652,8.518758225306296,8.784823594432188,{"$f":"AVERAGE(G197:G203)","v":13.112462251248717},null,9.33739962824595,null,null,-69.27840656813335,-3.1248624210860356,-5.233493980720402,-1.602458922387315,4.444324141699535,null,5.430994746620323,{"$nulls":3},7.205,18.947089947090014,{"v":8.20386904761903,"d":"8.20"},4.479581086119509,10.521360213761147,null,8.59,{"$nulls":3},{"$f":"AE200*'III. GDP shares, 1310-2018'!C202","v":2.1171796784751638},{"$f":"AF200*'III. GDP shares, 1310-2018'!D202","v":1.4280501156112888},{"$f":"AG200*'III. GDP shares, 1310-2018'!E202","v":0.16534047905192195},{"$f":"AH200*'III. GDP shares, 1310-2018'!F202","v":0.9567838404724356},{"$f":"AI200*'III. GDP shares, 1310-2018'!G202","v":2.9516892565179993},{"$f":"AJ200*'III. GDP shares, 1310-2018'!H202","v":0},{"$f":"AK200*'III. GDP shares, 1310-2018'!I202","v":1.0007057823129253},{"$f":"AL200*'III. GDP shares, 1310-2018'!J202","v":0},null,null,{"$f":"U200*'III. GDP shares, 1310-2018'!C202","v":-20.3573677367373},{"$f":"V200*'III. GDP shares, 1310-2018'!D202","v":-0.23552219122634457},{"$f":"W200*'III. GDP shares, 1310-2018'!E202","v":-0.10547564775412835},{"$f":"X200*'III. GDP shares, 1310-2018'!F202","v":-0.3422656655801747},{"$f":"Y200*'III. GDP shares, 1310-2018'!G202","v":1.2468220415436775},{"$f":"Z200*'III. GDP shares, 1310-2018'!H202","v":0},{"$f":"AA200*'III. GDP shares, 1310-2018'!I202","v":0.6326924152100206},{"$f":"AB200*'III. GDP shares, 1310-2018'!J202","v":0},null,null,9.65781671576495,8.619749152441734,null,-19.16111678454425,-11.56065050066787,{"$f":"AVERAGE(BL197:BL203)","v":-2.127620064627014},-2.062650148361729,null,null,26.11729363014835]
[{"$f":"'[1]Nominal weighted'!B201","v":1507},null,{"$f":"AE201-U201","v":-11.228973726509297},{"$f":"AF201-V201","v":14.928761294997376},{"$f":"AG201-W201","v":12.924666155564534},{"$f":"AH201-X201","v":3.3919618312596023},{"$f":"AI201-Y201","v":4.1242949880714255},null,{"$f":"AK201-AA201","v":13.1017191859418},null,null,12.447497486668855,21.337590783679378,8.405562914301942,7.456693963462842,{"$f":"AVERAGE(G198:G204)","v":10.44889856440021},null,10.966660411508245,null,null,18.433973726509297,3.92044505420904,-4.719309012707409,0.7950266622673144,6.359120971886608,null,-4.0417191859418,{"$nulls":3},7.205,18.849206349206415,{"v":8.205357142857125,"d":"8.21"},4.186988493526917,10.483415959958034,null,9.06,{"$nulls":3},{"$f":"AE201*'III. GDP shares, 1310-2018'!C203","v":2.112293917076309},{"$f":"AF201*'III. GDP shares, 1310-2018'!D203","v":1.4289559398260252},{"$f":"AG201*'III. GDP shares, 1310-2018'!E203","v":0.16734901696681911},{"$f":"AH201*'III. GDP shares, 1310-2018'!F203","v":0.8946507501936019},{"$f":"AI201*'III. GDP shares, 1310-2018'!G203","v":2.939270198176853},{"$f":"AJ201*'III. GDP shares, 1310-2018'!H203","v":0},{"$f":"AK201*'III. GDP shares, 1310-2018'!I203","v":1.056188558109409},{"$f":"AL201*'III. GDP shares, 1310-2018'!J203","v":0},null,null,{"$f":"U201*'III. GDP shares, 1310-2018'!C203","v":5.404298483004869},{"$f":"V201*'III. GDP shares, 1310-2018'!D203","v":0.29720844173417577},{"$f":"W201*'III. GDP shares, 1310-2018'!E203","v":-0.09625074329966755},{"$f":"X201*'III. GDP shares, 1310-2018'!F203","v":0.1698765594701283},{"$f":"Y201*'III. GDP shares, 1310-2018'!G203","v":1.7829278958938262},{"$f":"Z201*'III. GDP shares, 1310-2018'!H203","v":0},{"$f":"AA201*'III. GDP shares, 1310-2018'!I203","v":-0.47117191603565167},{"$f":"AB201*'III. GDP shares, 1310-2018'!J203","v":0},null,null,9.664994657591416,8.598708380349017,null,7.086888720767679,3.4579230360371747,{"$f":"AVERAGE(BL198:BL204)","v":-2.4392904703438947},-2.046519746831309,null,null,0.38007216148948686]
[{"$f":"'[1]Nominal weighted'!B202","v":1508},null,-1.6936742747704905,19.24263842495111,1.853626196612689,5.002262827170982,19.033401326677236,null,6.874921177759258,null,null,7.056727702823022,21.12107953257734,9.107133988036129,6.1520006128139135,{"$f":"AVERAGE(G199:G205)","v":11.333857741730396},null,9.281298898662175,null,null,9.870340941437158,-0.49131567362829287,6.3532190414825305,-0.3901535606972058,-8.587929620522312,null,2.6550788222407435,{"$nulls":3},8.176666666666668,18.751322751322817,{"v":8.20684523809522,"d":"8.21"},4.612109266473777,10.445471706154922,null,9.530000000000001,{"$nulls":3},{"$f":"AE202*'III. GDP shares, 1310-2018'!C204","v":2.391665598862599},{"$f":"AF202*'III. GDP shares, 1310-2018'!D204","v":1.4296980479238297},{"$f":"AG202*'III. GDP shares, 1310-2018'!E204","v":0.16933961645565734},{"$f":"AH202*'III. GDP shares, 1310-2018'!F204","v":0.985882054976669},{"$f":"AI202*'III. GDP shares, 1310-2018'!G204","v":2.9268806467972985},{"$f":"AJ202*'III. GDP shares, 1310-2018'!H204","v":0},{"$f":"AK202*'III. GDP shares, 1310-2018'!I204","v":1.1117397756518825},{"$f":"AL202*'III. GDP shares, 1310-2018'!J204","v":0},null,null,{"$f":"U202*'III. GDP shares, 1310-2018'!C204","v":2.887063376927884},{"$f":"V202*'III. GDP shares, 1310-2018'!D204","v":-0.03746045379391693},{"$f":"W202*'III. GDP shares, 1310-2018'!E204","v":0.1310919902265797},{"$f":"X202*'III. GDP shares, 1310-2018'!F204","v":-0.08339902026447639},{"$f":"Y202*'III. GDP shares, 1310-2018'!G204","v":-2.406386777875517},{"$f":"Z202*'III. GDP shares, 1310-2018'!H204","v":0},{"$f":"AA202*'III. GDP shares, 1310-2018'!I204","v":0.3097331305536189},{"$f":"AB202*'III. GDP shares, 1310-2018'!J204","v":0},null,null,9.953735938118902,9.015205740667936,null,0.8006422457741726,1.5682066583854368,{"$f":"AVERAGE(BL199:BL205)","v":-0.6296153406143189},-0.8546591486897042,null,null,6.747404993176017]
[{"$f":"'[1]Nominal weighted'!B203","v":1509},null,14.691497615856731,34.69269333385917,12.009937270359778,7.48156680345398,21.196622198871605,null,18.2297603748203,null,null,10.050701887403543,17.997931819623215,7.93884429082984,5.036508318581943,{"$f":"AVERAGE(G200:G206)","v":9.972173405653376},null,9.698742074731422,null,null,-6.795307139666254,-16.039254180419945,-3.8016039370264454,-2.444336764033343,-10.789094746519796,null,-8.229760374820302,{"$nulls":3},7.896190476190477,18.65343915343922,{"v":8.208333333333332,"d":"8.21"},5.037230039420637,10.40752745235181,null,10,{"$nulls":3},{"$f":"AE203*'III. GDP shares, 1310-2018'!C205","v":2.3043724206493392},{"$f":"AF203*'III. GDP shares, 1310-2018'!D205","v":1.4302787441856852},{"$f":"AG203*'III. GDP shares, 1310-2018'!E205","v":0.1713125299992239},{"$f":"AH203*'III. GDP shares, 1310-2018'!F205","v":1.077181961292223},{"$f":"AI203*'III. GDP shares, 1310-2018'!G205","v":2.914520187073059},{"$f":"AJ203*'III. GDP shares, 1310-2018'!H205","v":0},{"$f":"AK203*'III. GDP shares, 1310-2018'!I205","v":1.1673584716325363},{"$f":"AL203*'III. GDP shares, 1310-2018'!J205","v":0},null,null,{"$f":"U203*'III. GDP shares, 1310-2018'!C205","v":-1.9830978507553834},{"$f":"V203*'III. GDP shares, 1310-2018'!D205","v":-1.229832425974723},{"$f":"W203*'III. GDP shares, 1310-2018'!E205","v":-0.07934161078257998},{"$f":"X203*'III. GDP shares, 1310-2018'!F205","v":-0.5227070133654169},{"$f":"Y203*'III. GDP shares, 1310-2018'!G205","v":-3.0213741527888196},{"$f":"Z203*'III. GDP shares, 1310-2018'!H205","v":0},{"$f":"AA203*'III. GDP shares, 1310-2018'!I205","v":-0.9607080493052237},{"$f":"AB203*'III. GDP shares, 1310-2018'!J205","v":0},null,null,10.033786742455911,9.065024314832065,null,-7.797061102972146,-8.01655952374768,{"$f":"AVERAGE(BL200:BL206)","v":-0.6961190907527326},-0.3264436083638312,null,null,14.201974247643804]
[{"$f":"'[1]Nominal weighted'!B204","v":1510},null,17.666218995470494,14.703794150647617,8.26881275693196,6.470260531329433,12.908173286547003,null,9.094466049155582,null,null,2.5393600080148255,14.882904217763471,6.710646331167973,5.1445893510429315,{"$f":"AVERAGE(G201:G207)","v":10.188610183069738},null,9.562458895496807,null,null,-10.050504709756208,3.851761404908004,2.3145205764013728,-1.0079097189619362,-2.538590087998307,null,-1.7944660491555817,{"$nulls":3},7.6157142857142865,18.55555555555562,{"v":10.583333333333332,"d":"10.58"},5.462350812367497,10.369583198548696,null,7.3,{"$nulls":3},{"$f":"AE204*'III. GDP shares, 1310-2018'!C206","v":2.21749983482367},{"$f":"AF204*'III. GDP shares, 1310-2018'!D206","v":1.4307002898512746},{"$f":"AG204*'III. GDP shares, 1310-2018'!E206","v":0.22336089435134432},{"$f":"AH204*'III. GDP shares, 1310-2018'!F206","v":1.1685495080923547},{"$f":"AI204*'III. GDP shares, 1310-2018'!G206","v":2.902188411455302},{"$f":"AJ204*'III. GDP shares, 1310-2018'!H206","v":0},{"$f":"AK204*'III. GDP shares, 1310-2018'!I206","v":0.8527429814116885},{"$f":"AL204*'III. GDP shares, 1310-2018'!J206","v":0},null,null,{"$f":"U204*'III. GDP shares, 1310-2018'!C206","v":-2.9264480910983366},{"$f":"V204*'III. GDP shares, 1310-2018'!D206","v":0.2969847031494511},{"$f":"W204*'III. GDP shares, 1310-2018'!E206","v":0.04884787898641887},{"$f":"X204*'III. GDP shares, 1310-2018'!F206","v":-0.21562005933924888},{"$f":"Y204*'III. GDP shares, 1310-2018'!G206","v":-0.7104882225020497},{"$f":"Z204*'III. GDP shares, 1310-2018'!H206","v":0},{"$f":"AA204*'III. GDP shares, 1310-2018'!I206","v":-0.2096189491505458},{"$f":"AB204*'III. GDP shares, 1310-2018'!J206","v":0},null,null,9.981089530919904,8.795041919985634,null,-3.7163427399543103,-1.5375314307604426,{"$f":"AVERAGE(BL201:BL207)","v":1.742277252753709},1.6462109076319167,null,null,11.377669073238122]
[{"$f":"'[1]Nominal weighted'!B205","v":1511},null,-16.110789684248907,15.58768149909638,4.394010442945607,-0.5853172652709127,5.607681350836395,null,7.408239010841304,null,null,2.8592304918367515,17.261837505667906,3.352944870194488,5.597288458197397,{"$f":"AVERAGE(G202:G208)","v":11.914740646582901},null,8.442426851361532,null,null,23.446027779487004,2.869990458575643,4.512239557054393,6.472788850585269,4.72395759390919,null,-0.6082390108413032,{"$nulls":3},7.335238095238096,18.457671957672023,{"v":8.90625,"d":"8.91"},5.887471585314357,10.331638944745585,null,6.800000000000001,{"$nulls":3},{"$f":"AE205*'III. GDP shares, 1310-2018'!C207","v":2.1310419766380764},{"$f":"AF205*'III. GDP shares, 1310-2018'!D207","v":1.4309649041192603},{"$f":"AG205*'III. GDP shares, 1310-2018'!E207","v":0.19003436388777203},{"$f":"AH205*'III. GDP shares, 1310-2018'!F207","v":1.2599837521969792},{"$f":"AI205*'III. GDP shares, 1310-2018'!G207","v":2.889884919972353},{"$f":"AJ205*'III. GDP shares, 1310-2018'!H207","v":0},{"$f":"AK205*'III. GDP shares, 1310-2018'!I207","v":0.7948631480383224},{"$f":"AL205*'III. GDP shares, 1310-2018'!J207","v":0},null,null,{"$f":"U205*'III. GDP shares, 1310-2018'!C207","v":6.811567495804296},{"$f":"V205*'III. GDP shares, 1310-2018'!D207","v":0.2225012791860705},{"$f":"W205*'III. GDP shares, 1310-2018'!E207","v":0.09627852058207145},{"$f":"X205*'III. GDP shares, 1310-2018'!F207","v":1.3852480924888808},{"$f":"Y205*'III. GDP shares, 1310-2018'!G207","v":1.3213483249112148},{"$f":"Z205*'III. GDP shares, 1310-2018'!H207","v":0},{"$f":"AA205*'III. GDP shares, 1310-2018'!I207","v":-0.07109805513485787},{"$f":"AB205*'III. GDP shares, 1310-2018'!J207","v":0},null,null,9.619711763828343,8.696773064852763,null,9.765845657837676,6.902794204795033,{"$f":"AVERAGE(BL202:BL208)","v":1.12302411306239},1.664784022706309,null,null,-2.2775362179181027]
[{"$f":"'[1]Nominal weighted'!B206","v":1512},null,-9.452772282107079,4.758001665634808,2.683494185054882,7.412783493623687,0.8580046165083548,null,10.023083471222016,null,null,3.6370948463240396,17.084483490287507,5.880353430343415,5.055869333457339,{"$f":"AVERAGE(G203:G209)","v":9.509522424444},null,9.348088063296107,null,null,16.507534186868984,13.601786694153617,5.691505814945118,-0.12972201471062123,9.456252574434117,null,-3.723083471222016,{"$nulls":3},7.0547619047619055,18.359788359788425,{"v":8.375,"d":"8.38"},7.283061478913066,10.314257190942472,null,6.3,{"$nulls":3},{"$f":"AE206*'III. GDP shares, 1310-2018'!C208","v":2.044993089878104},{"$f":"AF206*'III. GDP shares, 1310-2018'!D208","v":1.4310747651197986},{"$f":"AG206*'III. GDP shares, 1310-2018'!E208","v":0.1806258719476349},{"$f":"AH206*'III. GDP shares, 1310-2018'!F208","v":1.559254710364036},{"$f":"AI206*'III. GDP shares, 1310-2018'!G208","v":2.8833575808509657},{"$f":"AJ206*'III. GDP shares, 1310-2018'!H208","v":0},{"$f":"AK206*'III. GDP shares, 1310-2018'!I208","v":0.7369012626240472},{"$f":"AL206*'III. GDP shares, 1310-2018'!J208","v":0},null,null,{"$f":"U206*'III. GDP shares, 1310-2018'!C208","v":4.78510739253828},{"$f":"V206*'III. GDP shares, 1310-2018'!D208","v":1.0602068671542029},{"$f":"W206*'III. GDP shares, 1310-2018'!E208","v":0.12275023289785031},{"$f":"X206*'III. GDP shares, 1310-2018'!F208","v":-0.027772615000036485},{"$f":"Y206*'III. GDP shares, 1310-2018'!G208","v":2.643501809406078},{"$f":"Z206*'III. GDP shares, 1310-2018'!H208","v":0},{"$f":"AA206*'III. GDP shares, 1310-2018'!I208","v":-0.43548331917432126},{"$f":"AB206*'III. GDP shares, 1310-2018'!J208","v":0},null,null,9.61447815573431,8.836207280784587,null,8.148310367822052,6.900712297411533,{"$f":"AVERAGE(BL203:BL209)","v":1.5381844971766832},1.578879762195341,null,null,0.3170290149969368]
[{"$f":"'[1]Nominal weighted'!B207","v":1513},null,23.90401341241233,0.266759155157839,4.839977310706359,6.838607235733744,7.592093513976137,null,2.2050229987373884,null,null,1.2622456802851212,13.591351522606761,8.150265960954446,3.960820564050537,{"$f":"AVERAGE(G204:G210)","v":8.117848084129182},null,7.317338428286299,null,null,-17.129727698126615,17.995145606746988,4.773303939293641,-0.10089410452566708,2.704781923163222,null,5.244977001262611,{"$nulls":3},6.774285714285715,18.261904761904827,{"v":9.61328125,"d":"9.61"},6.737713131208077,10.29687543713936,null,7.449999999999999,{"$nulls":3},{"$f":"AE207*'III. GDP shares, 1310-2018'!C209","v":1.9593475243632728},{"$f":"AF207*'III. GDP shares, 1310-2018'!D209","v":1.4310320108601815},{"$f":"AG207*'III. GDP shares, 1310-2018'!E209","v":0.2095236350857233},{"$f":"AH207*'III. GDP shares, 1310-2018'!F209","v":1.443048646469946},{"$f":"AI207*'III. GDP shares, 1310-2018'!G209","v":2.8768511686307816},{"$f":"AJ207*'III. GDP shares, 1310-2018'!H209","v":0},{"$f":"AK207*'III. GDP shares, 1310-2018'!I209","v":0.8719819858287485},{"$f":"AL207*'III. GDP shares, 1310-2018'!J209","v":0},null,null,{"$f":"U207*'III. GDP shares, 1310-2018'!C209","v":-4.95448390781083},{"$f":"V207*'III. GDP shares, 1310-2018'!D209","v":1.4101283376016716},{"$f":"W207*'III. GDP shares, 1310-2018'!E209","v":0.10403523695198312},{"$f":"X207*'III. GDP shares, 1310-2018'!F209","v":-0.02160897891276885},{"$f":"Y207*'III. GDP shares, 1310-2018'!G209","v":0.7556908971121135},{"$f":"Z207*'III. GDP shares, 1310-2018'!H209","v":0},{"$f":"AA207*'III. GDP shares, 1310-2018'!I209","v":0.6138960350586693},{"$f":"AB207*'III. GDP shares, 1310-2018'!J209","v":0},null,null,9.85567671575633,8.791784971238654,null,-2.0923423799991614,2.2479311113023637,{"$f":"AVERAGE(BL204:BL210)","v":3.3072000713757284},3.045350369299191,null,null,10.863223677979306]
[{"$f":"'[1]Nominal weighted'!B208","v":1514},null,-8.989880339755812,31.58129431032841,-10.579244071249857,6.560855581340871,16.20720823266358,null,5.261494876994868,null,null,-1.0029384123848082,15.883874780538608,7.307089197745722,3.442246616192663,{"$f":"AVERAGE(G205:G211)","v":7.452693762249391},null,7.793971905324808,null,null,15.483689863565337,-13.417273146307181,21.430806571249857,0.6195951871617191,-5.927714549327333,null,3.338505123005132,{"$nulls":3},6.493809523809524,18.16402116402123,{"v":10.8515625,"d":"10.85"},7.18045076850259,10.279493683336247,null,8.6,{"$nulls":3},{"$f":"AE208*'III. GDP shares, 1310-2018'!C210","v":1.8740997335167429},{"$f":"AF208*'III. GDP shares, 1310-2018'!D210","v":1.4308387401444724},{"$f":"AG208*'III. GDP shares, 1310-2018'!E210","v":0.23896326987249955},{"$f":"AH208*'III. GDP shares, 1310-2018'!F210","v":1.5384520083363353},{"$f":"AI208*'III. GDP shares, 1310-2018'!G210","v":2.870365395519708},{"$f":"AJ208*'III. GDP shares, 1310-2018'!H210","v":0},{"$f":"AK208*'III. GDP shares, 1310-2018'!I210","v":1.007231755427874},{"$f":"AL208*'III. GDP shares, 1310-2018'!J210","v":0},null,null,{"$f":"U208*'III. GDP shares, 1310-2018'!C210","v":4.468560240451986},{"$f":"V208*'III. GDP shares, 1310-2018'!D210","v":-1.0569220345802715},{"$f":"W208*'III. GDP shares, 1310-2018'!E210","v":0.4719297902279894},{"$f":"X208*'III. GDP shares, 1310-2018'!F210","v":0.13275175762304658},{"$f":"Y208*'III. GDP shares, 1310-2018'!G210","v":-1.6552086358581908},{"$f":"Z208*'III. GDP shares, 1310-2018'!H210","v":0},{"$f":"AA208*'III. GDP shares, 1310-2018'!I210","v":0.39100562506388487},{"$f":"AB208*'III. GDP shares, 1310-2018'!J210","v":0},null,null,10.261556273278265,8.959950902817631,null,2.752116742928445,3.587934841557921,{"$f":"AVERAGE(BL205:BL211)","v":4.05029305103887},3.3311179072586987,null,null,3.720073385164443]
[{"$f":"'[1]Nominal weighted'!B209","v":1515},null,3.7513762066405225,18.001160317288328,19.545486117655177,1.2123289539905713,2.196873771704926,null,13.21454966130129,null,null,5.592616189714755,14.529852327670897,10.037367672844068,6.538082072382768,{"$f":"AVERAGE(G206:G212)","v":8.086044984919047},null,7.617053575711564,null,null,2.4619571266928113,0.06497724884930278,-7.455642367655176,6.1292805044381105,8.065238157828208,null,-3.4645496613012896,{"$nulls":3},6.213333333333334,18.06613756613763,{"v":12.08984375,"d":"12.09"},7.341609458428682,10.262111929533134,null,9.75,{"$nulls":3},{"$f":"AE209*'III. GDP shares, 1310-2018'!C211","v":1.7892442720015007},{"$f":"AF209*'III. GDP shares, 1310-2018'!D211","v":1.4304970134679575},{"$f":"AG209*'III. GDP shares, 1310-2018'!E211","v":0.26893735835508903},{"$f":"AH209*'III. GDP shares, 1310-2018'!F211","v":1.5735688701545525},{"$f":"AI209*'III. GDP shares, 1310-2018'!G211","v":2.8638999789786244},{"$f":"AJ209*'III. GDP shares, 1310-2018'!H211","v":0},{"$f":"AK209*'III. GDP shares, 1310-2018'!I211","v":1.1426482572605134},{"$f":"AL209*'III. GDP shares, 1310-2018'!J211","v":0},null,null,{"$f":"U209*'III. GDP shares, 1310-2018'!C211","v":0.7089660976687315},{"$f":"V209*'III. GDP shares, 1310-2018'!D211","v":0.005144971363248824},{"$f":"W209*'III. GDP shares, 1310-2018'!E211","v":-0.16585001466189045},{"$f":"X209*'III. GDP shares, 1310-2018'!F211","v":1.3137235170083919},{"$f":"Y209*'III. GDP shares, 1310-2018'!G211","v":2.2508071973166084},{"$f":"Z209*'III. GDP shares, 1310-2018'!H211","v":0},{"$f":"AA209*'III. GDP shares, 1310-2018'!I211","v":-0.40602683412086366},{"$f":"AB209*'III. GDP shares, 1310-2018'!J211","v":0},null,null,10.620506006238797,9.068795750218237,null,3.7067649345742266,0.9668768348086614,{"$f":"AVERAGE(BL206:BL212)","v":1.3806999424069863},1.4905109211105452,null,null,3.9366787735393025]
[{"$f":"'[1]Nominal weighted'!B210","v":1516},null,-1.9324465464156972,10.240769560093952,27.89932498463699,-0.18377458239363254,11.454901816667883,null,4.014512929751649,null,null,7.716556608175054,16.343425421583344,11.732088197982932,6.8059435186688075,{"$f":"AVERAGE(G207:G213)","v":10.231503116570504},null,7.226428022571288,null,null,7.8653036892728405,7.72748440816008,-14.57119998463699,7.950504813769174,-1.2151716409378615,null,5.735487070248351,{"$nulls":3},5.932857142857143,17.968253968254032,{"v":13.328125,"d":"13.33"},7.766730231375542,10.239730175730022,null,9.75,{"$nulls":3},{"$f":"AE210*'III. GDP shares, 1310-2018'!C212","v":1.7047757934209884},{"$f":"AF210*'III. GDP shares, 1310-2018'!D212","v":1.430008853887225},{"$f":"AG210*'III. GDP shares, 1310-2018'!E212","v":0.29943861736302096},{"$f":"AH210*'III. GDP shares, 1310-2018'!F212","v":1.6653035090625006},{"$f":"AI210*'III. GDP shares, 1310-2018'!G212","v":2.8560600442859045},{"$f":"AJ210*'III. GDP shares, 1310-2018'!H212","v":0},{"$f":"AK210*'III. GDP shares, 1310-2018'!I212","v":1.1433701731496901},{"$f":"AL210*'III. GDP shares, 1310-2018'!J212","v":0},null,null,{"$f":"U210*'III. GDP shares, 1310-2018'!C212","v":2.260054306805681},{"$f":"V210*'III. GDP shares, 1310-2018'!D212","v":0.6149941525463734},{"$f":"W210*'III. GDP shares, 1310-2018'!E212","v":-0.32736637574450816},{"$f":"X210*'III. GDP shares, 1310-2018'!F212","v":1.7047075372467535},{"$f":"Y210*'III. GDP shares, 1310-2018'!G212","v":-0.33893502182878893},{"$f":"Z210*'III. GDP shares, 1310-2018'!H212","v":0},{"$f":"AA210*'III. GDP shares, 1310-2018'!I212","v":0.6725933173956581},{"$f":"AB210*'III. GDP shares, 1310-2018'!J212","v":0},null,null,10.83094941970279,9.09895699116933,null,4.58604791642117,2.2487347259792654,{"$f":"AVERAGE(BL207:BL213)","v":-0.024878371026448028},0.268312758570885,null,null,3.697894373407309]
[{"$f":"'[1]Nominal weighted'!B211","v":1517},null,1.809930346780984,30.75145695617054,2.3665754144708924,2.8402428963243107,8.252093033388453,null,12.43090038842514,null,null,2.360420406071538,16.909483763738233,8.203748477839511,6.267444592920259,{"$f":"AVERAGE(G208:G214)","v":10.016355970429299},null,8.683719588837906,null,null,3.8424506055999688,-12.881086585800105,8.554720881825403,5.351608107998091,1.9652553885384574,null,-4.0559003884251394,{"$nulls":3},5.652380952380953,17.870370370370434,{"v":10.921296296296296,"d":"10.92"},8.191851004322402,10.21734842192691,null,8.375,{"$nulls":3},{"$f":"AE211*'III. GDP shares, 1310-2018'!C213","v":1.6206890480821037},{"$f":"AF211*'III. GDP shares, 1310-2018'!D213","v":1.4293762478666319},{"$f":"AG211*'III. GDP shares, 1310-2018'!E213","v":0.24776532869054205},{"$f":"AH211*'III. GDP shares, 1310-2018'!F213","v":1.7570997157773558},{"$f":"AI211*'III. GDP shares, 1310-2018'!G213","v":2.8482414587258065},{"$f":"AJ211*'III. GDP shares, 1310-2018'!H213","v":0},{"$f":"AK211*'III. GDP shares, 1310-2018'!I213","v":0.9827401606653404},{"$f":"AL211*'III. GDP shares, 1310-2018'!J213","v":0},null,null,{"$f":"U211*'III. GDP shares, 1310-2018'!C213","v":1.1017335290660373},{"$f":"V211*'III. GDP shares, 1310-2018'!D213","v":-1.030304287536403},{"$f":"W211*'III. GDP shares, 1310-2018'!E213","v":0.1940761585106079},{"$f":"X211*'III. GDP shares, 1310-2018'!F213","v":1.1478857562904423},{"$f":"Y211*'III. GDP shares, 1310-2018'!G213","v":0.5478448657586132},{"$f":"Z211*'III. GDP shares, 1310-2018'!H213","v":0},{"$f":"AA211*'III. GDP shares, 1310-2018'!I213","v":-0.4759279044016165},{"$f":"AB211*'III. GDP shares, 1310-2018'!J213","v":0},null,null,10.204707840882833,8.885911959807782,null,1.4853081176876812,0.4628413349561125,{"$f":"AVERAGE(BL208:BL214)","v":1.5911827569799146},1.5809976652412225,null,null,4.940923306717064]
[{"$f":"'[1]Nominal weighted'!B212","v":1518},null,30.058092530448036,6.109524329022413,23.50595976863402,21.08553092805983,10.041139909524,null,6.1698107035486025,null,null,3.65056457428545,13.932962406662051,7.849193116782076,7.299834872762672,{"$f":"AVERAGE(G209:G215)","v":6.041664626368091},null,5.4028981798365185,null,null,-24.686187768543274,11.662962443464423,-11.380959768634023,-12.468559150790567,0.1538267585997974,null,0.8301892964513988,{"$nulls":3},5.371904761904762,17.772486772486836,{"v":12.125,"d":"12.13"},8.616971777269262,10.194966668123797,null,7.000000000000001,{"$nulls":3},{"$f":"AE212*'III. GDP shares, 1310-2018'!C214","v":1.5369788808186302},{"$f":"AF212*'III. GDP shares, 1310-2018'!D214","v":1.4286011461019152},{"$f":"AG212*'III. GDP shares, 1310-2018'!E214","v":0.27771376757978133},{"$f":"AH212*'III. GDP shares, 1310-2018'!F214","v":1.8489566588486623},{"$f":"AI212*'III. GDP shares, 1310-2018'!G214","v":2.840443933986192},{"$f":"AJ212*'III. GDP shares, 1310-2018'!H214","v":0},{"$f":"AK212*'III. GDP shares, 1310-2018'!I214","v":0.8219037482664486},{"$f":"AL212*'III. GDP shares, 1310-2018'!J214","v":0},null,null,{"$f":"U212*'III. GDP shares, 1310-2018'!C214","v":-7.063071839479285},{"$f":"V212*'III. GDP shares, 1310-2018'!D214","v":0.9375008532554084},{"$f":"W212*'III. GDP shares, 1310-2018'!E214","v":-0.2606721002904141},{"$f":"X212*'III. GDP shares, 1310-2018'!F214","v":-2.6753975832805215},{"$f":"Y212*'III. GDP shares, 1310-2018'!G214","v":0.0428580394201488},{"$f":"Z212*'III. GDP shares, 1310-2018'!H214","v":0},{"$f":"AA212*'III. GDP shares, 1310-2018'!I214","v":0.09747652778915578},{"$f":"AB212*'III. GDP shares, 1310-2018'!J214","v":0},null,null,10.180221663297443,8.75459813560163,null,-8.921306102585508,-5.9814546982420405,{"$f":"AVERAGE(BL209:BL215)","v":2.75399409111878},3.046676598442322,null,null,17.18480394534063]
[{"$f":"'[1]Nominal weighted'!B213","v":1519},null,5.41481064711502,17.45301332302194,14.546537861026941,9.28781361762596,15.876211538068539,null,7.288704599240078,null,null,2.0444201221026836,15.352892227900915,6.358035299237238,8.900780468814332,{"$f":"AVERAGE(G210:G216)","v":5.993383633493977},null,1.2531064526889264,null,null,-0.3233820756864483,0.2215898515812995,-5.08820452769361,-0.24572106740983757,-5.703626623747855,null,1.2112954007599217,{"$nulls":3},5.091428571428572,17.674603174603238,{"v":9.458333333333332,"d":"9.46"},9.042092550216122,10.172584914320684,null,8.5,{"$nulls":3},{"$f":"AE213*'III. GDP shares, 1310-2018'!C215","v":1.453640228873187},{"$f":"AF213*'III. GDP shares, 1310-2018'!D215","v":1.4276854643216517},{"$f":"AG213*'III. GDP shares, 1310-2018'!E215","v":0.21867728082356608},{"$f":"AH213*'III. GDP shares, 1310-2018'!F215","v":1.9408735217301123},{"$f":"AI213*'III. GDP shares, 1310-2018'!G215","v":2.832667186923057},{"$f":"AJ213*'III. GDP shares, 1310-2018'!H215","v":0},{"$f":"AK213*'III. GDP shares, 1310-2018'!I215","v":0.9986384963446925},{"$f":"AL213*'III. GDP shares, 1310-2018'!J215","v":0},null,null,{"$f":"U213*'III. GDP shares, 1310-2018'!C215","v":-0.09232795627385926},{"$f":"V213*'III. GDP shares, 1310-2018'!D215","v":0.017899163393857366},{"$f":"W213*'III. GDP shares, 1310-2018'!E215","v":-0.11763961907209122},{"$f":"X213*'III. GDP shares, 1310-2018'!F215","v":-0.05274371068626307},{"$f":"Y213*'III. GDP shares, 1310-2018'!G215","v":-1.5882370232964729},{"$f":"Z213*'III. GDP shares, 1310-2018'!H215","v":0},{"$f":"AA213*'III. GDP shares, 1310-2018'!I215","v":0.1423113197228388},{"$f":"AB213*'III. GDP shares, 1310-2018'!J215","v":0},null,null,9.989840423983658,8.872182179016267,null,-1.6907378262119903,-1.6546748403660885,{"$f":"AVERAGE(BL210:BL216)","v":3.2982403055965057},3.6688265200714865,null,null,9.153133704300462]
[{"$f":"'[1]Nominal weighted'!B214","v":1520},null,-13.588940002312283,4.229167550242067,-19.85840073029759,3.069114755493908,6.086063490987715,null,12.406063962603726,null,null,2.2907589492329286,16.42598290720147,5.801122408314754,9.970312728722561,{"$f":"AVERAGE(G211:G217)","v":9.855399229038339},null,5.561522673449038,null,null,18.399892383264664,13.347552026477572,28.81673406363092,6.398098567669074,4.064139669529857,null,-2.406063962603726,{"$nulls":3},4.810952380952381,17.57671957671964,{"v":8.958333333333332,"d":"8.96"},9.467213323162982,10.150203160517572,null,10,{"$nulls":3},{"$f":"AE214*'III. GDP shares, 1310-2018'!C216","v":1.3706681198358726},{"$f":"AF214*'III. GDP shares, 1310-2018'!D216","v":1.4266310840672671},{"$f":"AG214*'III. GDP shares, 1310-2018'!E216","v":0.20903353279714706},{"$f":"AH214*'III. GDP shares, 1310-2018'!F216","v":2.032849502447083},{"$f":"AI214*'III. GDP shares, 1310-2018'!G216","v":2.8249109394452456},{"$f":"AJ214*'III. GDP shares, 1310-2018'!H216","v":0},{"$f":"AK214*'III. GDP shares, 1310-2018'!I216","v":1.1755829968458715},{"$f":"AL214*'III. GDP shares, 1310-2018'!J216","v":0},null,null,{"$f":"U214*'III. GDP shares, 1310-2018'!C216","v":5.2422356118102265},{"$f":"V214*'III. GDP shares, 1310-2018'!D216","v":1.083366696160933},{"$f":"W214*'III. GDP shares, 1310-2018'!E216","v":0.6724089739531155},{"$f":"X214*'III. GDP shares, 1310-2018'!F216","v":1.3738331487758282},{"$f":"Y214*'III. GDP shares, 1310-2018'!G216","v":1.1310938737213272},{"$f":"Z214*'III. GDP shares, 1310-2018'!H216","v":0},{"$f":"AA214*'III. GDP shares, 1310-2018'!I216","v":-0.28285278837605415},{"$f":"AB214*'III. GDP shares, 1310-2018'!J216","v":0},null,null,10.160570295780984,9.039676175438487,null,9.220085516045376,11.436725457994726,{"$f":"AVERAGE(BL211:BL217)","v":1.2955894079393808},1.989794162069505,null,null,-0.5236737285132218]
[{"$f":"'[1]Nominal weighted'!B215","v":1521},null,0.04112883774156906,10.745644810795124,-13.061131598651905,13.787587540237755,-11.615631175764872,null,-17.704254986014853,null,null,3.474083282481683,15.004341469398984,5.985184800061829,10.877872483126922,{"$f":"AVERAGE(G212:G218)","v":6.4893786612066595},null,5.141012620174621,null,null,4.4893473527346215,6.733191168040918,26.561131598651905,-3.8952534441279143,21.743452582479332,null,27.454254986014853,{"$nulls":3},4.5304761904761905,17.47883597883604,{"v":13.5,"d":"13.50"},9.89233409610984,10.12782140671446,null,9.75,{"$nulls":3},{"$f":"AE215*'III. GDP shares, 1310-2018'!C217","v":1.288057669637848},{"$f":"AF215*'III. GDP shares, 1310-2018'!D217","v":1.4254398534522568},{"$f":"AG215*'III. GDP shares, 1310-2018'!E217","v":0.3178708161176605},{"$f":"AH215*'III. GDP shares, 1310-2018'!F217","v":2.124883813273028},{"$f":"AI215*'III. GDP shares, 1310-2018'!G217","v":2.817174918402238},{"$f":"AJ215*'III. GDP shares, 1310-2018'!H217","v":0},{"$f":"AK215*'III. GDP shares, 1310-2018'!I217","v":1.1468835595764073},{"$f":"AL215*'III. GDP shares, 1310-2018'!J217","v":0},null,null,{"$f":"U215*'III. GDP shares, 1310-2018'!C217","v":1.2763643480820073},{"$f":"V215*'III. GDP shares, 1310-2018'!D217","v":0.5491074487717352},{"$f":"W215*'III. GDP shares, 1310-2018'!E217","v":0.6254080428349675},{"$f":"X215*'III. GDP shares, 1310-2018'!F217","v":-0.836704554416367},{"$f":"Y215*'III. GDP shares, 1310-2018'!G217","v":6.048201957255953},{"$f":"Z215*'III. GDP shares, 1310-2018'!H217","v":0},{"$f":"AA215*'III. GDP shares, 1310-2018'!I217","v":3.2294188393722094},{"$f":"AB215*'III. GDP shares, 1310-2018'!J217","v":0},null,null,10.879911278689422,9.12031063045944,null,10.891796081900505,13.847687373965618,{"$f":"AVERAGE(BL212:BL218)","v":1.9011452562023459},2.5847627151739507,null,null,-2.6478178561215877]
[{"$f":"'[1]Nominal weighted'!B216","v":1522},null,-7.491634958638841,27.94066906596037,9.107381394841308,12.418948126352209,1.858906821586121,null,-15.833992428731861,null,null,1.8452778015912834,17.854479369615824,7.580094161605835,9.871574289403144,{"$f":"AVERAGE(G213:G219)","v":6.012377797117668},null,6.3251025089786435,null,null,11.74163495863884,-10.559716685007928,-2.010381394841309,-0.8205044215698303,8.246532831325226,null,25.33399242873186,{"$nulls":3},4.25,17.380952380952444,{"v":7.0969999999999995,"d":"7.10"},11.598443704782378,10.105439652911347,null,9.5,{"$nulls":3},{"$f":"AE216*'III. GDP shares, 1310-2018'!C218","v":1.2058040805981505},{"$f":"AF216*'III. GDP shares, 1310-2018'!D218","v":1.424113587901267},{"$f":"AG216*'III. GDP shares, 1310-2018'!E218","v":0.16859719794330102},{"$f":"AH216*'III. GDP shares, 1310-2018'!F218","v":2.492229716582197},{"$f":"AI216*'III. GDP shares, 1310-2018'!G218","v":2.8094588554749143},{"$f":"AJ216*'III. GDP shares, 1310-2018'!H218","v":0},{"$f":"AK216*'III. GDP shares, 1310-2018'!I218","v":1.1181427836626991},{"$f":"AL216*'III. GDP shares, 1310-2018'!J218","v":0},null,null,{"$f":"U216*'III. GDP shares, 1310-2018'!C218","v":3.3313203167107317},{"$f":"V216*'III. GDP shares, 1310-2018'!D218","v":-0.8652135789744018},{"$f":"W216*'III. GDP shares, 1310-2018'!E218","v":-0.04775886571334223},{"$f":"X216*'III. GDP shares, 1310-2018'!F218","v":-0.17630688686105805},{"$f":"Y216*'III. GDP shares, 1310-2018'!G218","v":2.2926557859614305},{"$f":"Z216*'III. GDP shares, 1310-2018'!H218","v":0},{"$f":"AA216*'III. GDP shares, 1310-2018'!I218","v":2.981791664794946},{"$f":"AB216*'III. GDP shares, 1310-2018'!J218","v":0},null,null,9.988639289774362,9.218346222162529,null,7.516488435918305,5.32192628621281,{"$f":"AVERAGE(BL213:BL219)","v":2.3296402533155027},2.244652117647389,null,null,-0.5874693806314468]
[{"$f":"'[1]Nominal weighted'!B217","v":1523},null,-0.2080747565039811,17.752404315197825,24.000934748179603,7.302951236963967,38.489010985478416,null,34.17342647507243,null,null,0.11258178509760544,18.061891733489784,7.780103514959445,10.373699872171315,{"$f":"AVERAGE(G214:G220)","v":8.426894890808018},null,6.565826192074953,null,null,3.208074756503981,-0.46933553212898005,-10.125934748179603,3.4396244050395937,-28.405953086370182,null,-24.67342647507243,{"$nulls":3},3,17.283068783068845,{"v":13.875,"d":"13.88"},10.74257564200356,10.083057899108235,null,9.5,{"$nulls":3},{"$f":"AE217*'III. GDP shares, 1310-2018'!C219","v":0.8493985879305688},{"$f":"AF217*'III. GDP shares, 1310-2018'!D219","v":1.422654070869647},{"$f":"AG217*'III. GDP shares, 1310-2018'!E219","v":0.33250615304546766},{"$f":"AH217*'III. GDP shares, 1310-2018'!F219","v":2.3091243437042723},{"$f":"AI217*'III. GDP shares, 1310-2018'!G219","v":2.8017624870692064},{"$f":"AJ217*'III. GDP shares, 1310-2018'!H219","v":0},{"$f":"AK217*'III. GDP shares, 1310-2018'!I219","v":1.118803410081347},{"$f":"AL217*'III. GDP shares, 1310-2018'!J219","v":0},null,null,{"$f":"U217*'III. GDP shares, 1310-2018'!C219","v":0.908311389383395},{"$f":"V217*'III. GDP shares, 1310-2018'!D219","v":-0.03863330718449561},{"$f":"W217*'III. GDP shares, 1310-2018'!E219","v":-0.24266202588155864},{"$f":"X217*'III. GDP shares, 1310-2018'!F219","v":0.7393497343245068},{"$f":"Y217*'III. GDP shares, 1310-2018'!G219","v":-7.893114823220297},{"$f":"Z217*'III. GDP shares, 1310-2018'!H219","v":0},{"$f":"AA217*'III. GDP shares, 1310-2018'!I219","v":-2.9057593346002553},{"$f":"AB217*'III. GDP shares, 1310-2018'!J219","v":0},null,null,10.747283720696771,8.834249052700509,null,-9.432508367178704,-9.504491780034604,{"$f":"AVERAGE(BL214:BL220)","v":2.105539165688364},2.1083326324578193,null,null,16.805470041825075]
[{"$f":"'[1]Nominal weighted'!B218","v":1524},null,10.093200679522266,20.799966891553154,3.6550121567004243,9.19316117715483,-15.310050941433293,null,9.487330015504224,null,null,-1.182272797288204,18.030886220876955,10.141857141830377,10.929617210311902,{"$f":"AVERAGE(G215:G221)","v":8.11669636238062},null,5.166274553861046,null,null,-6.0932006795222655,-3.614781706367907,9.969987843299576,2.1153247114798024,25.375727086738415,null,0.012669984495776774,{"$nulls":3},4,17.185185185185247,{"v":13.625,"d":"13.63"},11.308485888634632,10.065676145305122,null,9.5,{"$nulls":3},{"$f":"AE218*'III. GDP shares, 1310-2018'!C220","v":1.1302090116351573},{"$f":"AF218*'III. GDP shares, 1310-2018'!D220","v":1.4210630545440843},{"$f":"AG218*'III. GDP shares, 1310-2018'!E220","v":0.329328062091114},{"$f":"AH218*'III. GDP shares, 1310-2018'!F220","v":2.4316022515456206},{"$f":"AI218*'III. GDP shares, 1310-2018'!G220","v":2.79547417139585},{"$f":"AJ218*'III. GDP shares, 1310-2018'!H220","v":0},{"$f":"AK218*'III. GDP shares, 1310-2018'!I220","v":1.1194582452406887},{"$f":"AL218*'III. GDP shares, 1310-2018'!J220","v":0},null,null,{"$f":"U218*'III. GDP shares, 1310-2018'!C220","v":-1.7216475794243822},{"$f":"V218*'III. GDP shares, 1310-2018'!D220","v":-0.29891052542102026},{"$f":"W218*'III. GDP shares, 1310-2018'!E220","v":0.24098324957840836},{"$f":"X218*'III. GDP shares, 1310-2018'!F220","v":0.45484677452300476},{"$f":"Y218*'III. GDP shares, 1310-2018'!G220","v":7.047434134313385},{"$f":"Z218*'III. GDP shares, 1310-2018'!H220","v":0},{"$f":"AA218*'III. GDP shares, 1310-2018'!I220","v":1.4930019590388421E-3},{"$f":"AB218*'III. GDP shares, 1310-2018'!J220","v":0},null,null,10.9473912031875,9.227134796452514,null,5.724199055528435,4.627621206687233,{"$f":"AVERAGE(BL215:BL221)","v":2.6892429773248705},2.3021863333133985,null,null,1.7829621609589754]
[{"$f":"'[1]Nominal weighted'!B219","v":1525},null,18.656454164215234,26.060489630540285,34.67032529944206,14.041443571993385,6.702133860901052,null,14.458439925176757,null,null,-4.756738887678176,13.142299963902213,12.61304074863155,10.045505786820241,{"$f":"AVERAGE(G216:G222)","v":10.018496622232007},null,10.151896858279574,null,null,-15.781454164215234,-8.973188043238636,-21.107825299442062,-2.4486263840961056,3.3461605306009576,null,-5.208439925176757,{"$nulls":3},2.875,17.08730158730165,{"v":13.5625,"d":"13.56"},11.59281718789728,10.04829439150201,null,9.25,{"$nulls":3},{"$f":"AE219*'III. GDP shares, 1310-2018'!C221","v":0.8106830434632678},{"$f":"AF219*'III. GDP shares, 1310-2018'!D221","v":1.4193422605248902},{"$f":"AG219*'III. GDP shares, 1310-2018'!E221","v":0.3305930505902775},{"$f":"AH219*'III. GDP shares, 1310-2018'!F221","v":2.4935890844083306},{"$f":"AI219*'III. GDP shares, 1310-2018'!G221","v":2.789203600505724},{"$f":"AJ219*'III. GDP shares, 1310-2018'!H221","v":0},{"$f":"AK219*'III. GDP shares, 1310-2018'!I221","v":1.0906308553561788},{"$f":"AL219*'III. GDP shares, 1310-2018'!J221","v":0},null,null,{"$f":"U219*'III. GDP shares, 1310-2018'!C221","v":-4.450002536390284},{"$f":"V219*'III. GDP shares, 1310-2018'!D221","v":-0.7453502787631466},{"$f":"W219*'III. GDP shares, 1310-2018'!E221","v":-0.5145143120419678},{"$f":"X219*'III. GDP shares, 1310-2018'!F221","v":-0.5266940661801102},{"$f":"Y219*'III. GDP shares, 1310-2018'!G221","v":0.9288265884920225},{"$f":"Z219*'III. GDP shares, 1310-2018'!H221","v":0},{"$f":"AA219*'III. GDP shares, 1310-2018'!I221","v":-0.6141065179099241},{"$f":"AB219*'III. GDP shares, 1310-2018'!J221","v":0},null,null,10.735985527783491,8.934041894848669,null,-5.921841122793411,-8.362228880927974,{"$f":"AVERAGE(BL216:BL222)","v":3.3296829490063584},2.4922383628831497,null,null,12.691190478354041]
[{"$f":"'[1]Nominal weighted'!B220","v":1526},null,-6.714061468340727,18.904899870139666,15.946603334502218,12.802692697003147,32.777831193900994,null,8.973770380914244,null,null,-2.349211530052646,14.299883851193743,13.81026325113895,7.447090207164819,{"$f":"AVERAGE(G217:G223)","v":8.724919226627748},null,11.4919237660795,null,null,12.214061468340727,-1.9154818807216145,-2.446603334502218,-0.7847547361590077,-22.7469185562021,null,0.026229619085755405,{"$nulls":3},5.5,16.98941798941805,{"v":13.5,"d":"13.50"},12.01793796084414,10.030912637698897,null,9,{"$nulls":3},{"$f":"AE220*'III. GDP shares, 1310-2018'!C222","v":1.5477339359323479},{"$f":"AF220*'III. GDP shares, 1310-2018'!D222","v":1.4174933804904986},{"$f":"AG220*'III. GDP shares, 1310-2018'!E222","v":0.3318084471294447},{"$f":"AH220*'III. GDP shares, 1310-2018'!F222","v":2.585903706971311},{"$f":"AI220*'III. GDP shares, 1310-2018'!G222","v":2.7829505430919967},{"$f":"AJ220*'III. GDP shares, 1310-2018'!H222","v":0},{"$f":"AK220*'III. GDP shares, 1310-2018'!I222","v":1.0617639572296325},{"$f":"AL220*'III. GDP shares, 1310-2018'!J222","v":0},null,null,{"$f":"U220*'III. GDP shares, 1310-2018'!C222","v":3.4371122600208412},{"$f":"V220*'III. GDP shares, 1310-2018'!D222","v":-0.15981612130936712},{"$f":"W220*'III. GDP shares, 1310-2018'!E222","v":-0.06013360393799277},{"$f":"X220*'III. GDP shares, 1310-2018'!F222","v":-0.16885593750846198},{"$f":"Y220*'III. GDP shares, 1310-2018'!G222","v":-6.310846443995544},{"$f":"Z220*'III. GDP shares, 1310-2018'!H222","v":0},{"$f":"AA220*'III. GDP shares, 1310-2018'!I222","v":3.0944071285686167E-3},{"$f":"AB220*'III. GDP shares, 1310-2018'!J222","v":0},null,null,11.173044764660181,9.727653970845232,null,-3.2594454396019565,-2.6089112366930762,{"$f":"AVERAGE(BL217:BL223)","v":3.3287682903739215},2.2760635945103513,null,null,11.409789908647323]
[{"$f":"'[1]Nominal weighted'!B221","v":1527},null,-22.652922079012946,4.012128961952246,-3.3261253422010704,6.960536122478015,3.914673791995927,null,2.609202495106378,null,null,-7.43720588904457,14.122982513530653,11.811951467795053,6.533426402829761,{"$f":"AVERAGE(G218:G224)","v":5.439986408511957},null,8.108509658970187,null,null,29.152922079012946,12.879405429582206,16.76362534220107,5.4825226113129855,6.092935216899857,null,6.390797504893622,{"$nulls":3},6.5,16.891534391534453,{"v":13.4375,"d":"13.44"},12.443058733791,10.007609008895784,null,9,{"$nulls":3},{"$f":"AE221*'III. GDP shares, 1310-2018'!C223","v":1.825463680259933},{"$f":"AF221*'III. GDP shares, 1310-2018'!D223","v":1.4155180768447173},{"$f":"AG221*'III. GDP shares, 1310-2018'!E223","v":0.33297489535314645},{"$f":"AH221*'III. GDP shares, 1310-2018'!F223","v":2.6782722154210057},{"$f":"AI221*'III. GDP shares, 1310-2018'!G223","v":2.7750726579968537},{"$f":"AJ221*'III. GDP shares, 1310-2018'!H223","v":0},{"$f":"AK221*'III. GDP shares, 1310-2018'!I223","v":1.0623682940203956},{"$f":"AL221*'III. GDP shares, 1310-2018'!J223","v":0},null,null,{"$f":"U221*'III. GDP shares, 1310-2018'!C223","v":8.187323142874774},{"$f":"V221*'III. GDP shares, 1310-2018'!D223","v":1.079299889637171},{"$f":"W221*'III. GDP shares, 1310-2018'!E223","v":0.4153947083950702},{"$f":"X221*'III. GDP shares, 1310-2018'!F223","v":1.1800706156293566},{"$f":"Y221*'III. GDP shares, 1310-2018'!G223","v":1.689548213997476},{"$f":"Z221*'III. GDP shares, 1310-2018'!H223","v":0},{"$f":"AA221*'III. GDP shares, 1310-2018'!I223","v":0.7543756269670708},{"$f":"AB221*'III. GDP shares, 1310-2018'!J223","v":0},null,null,11.379950355703537,10.08966981989605,null,13.30601219750092,12.793701363983784,{"$f":"AVERAGE(BL218:BL224)","v":6.508345080744164},4.896431140660138,null,null,-3.5525605648124134]
[{"$f":"'[1]Nominal weighted'!B222","v":1528},null,-24.980133794988234,-23.474458988028076,4.237153648956308,7.598807575796148,1.6969706431948506,null,17.19510114491484,null,null,-5.6726244694568075,13.270132285804745,12.144512903951801,7.66096129918252,{"$f":"AVERAGE(G219:G225)","v":6.443861135667267},null,8.901336113239934,null,null,30.230133794988234,40.26810978167893,9.137846351043692,6.339985966029432,8.287334736897822,null,-3.195101144914837,{"$nulls":3},5.25,16.793650793650855,{"v":13.375,"d":"13.38"},13.93879354182558,9.984305380092673,null,14.000000000000002,{"$nulls":3},{"$f":"AE222*'III. GDP shares, 1310-2018'!C224","v":1.4714691339982167},{"$f":"AF222*'III. GDP shares, 1310-2018'!D224","v":1.4134179833472498},{"$f":"AG222*'III. GDP shares, 1310-2018'!E224","v":0.3340930278155747},{"$f":"AH222*'III. GDP shares, 1310-2018'!F224","v":3.0012116637159636},{"$f":"AI222*'III. GDP shares, 1310-2018'!G224","v":2.7672134930438923},{"$f":"AJ222*'III. GDP shares, 1310-2018'!H224","v":0},{"$f":"AK222*'III. GDP shares, 1310-2018'!I224","v":1.6535048822265546},{"$f":"AL222*'III. GDP shares, 1310-2018'!J224","v":0},null,null,{"$f":"U222*'III. GDP shares, 1310-2018'!C224","v":8.472896913516488},{"$f":"V222*'III. GDP shares, 1310-2018'!D224","v":3.3891183769490016},{"$f":"W222*'III. GDP shares, 1310-2018'!E224","v":0.22825351440251873},{"$f":"X222*'III. GDP shares, 1310-2018'!F224","v":1.365085132507887},{"$f":"Y222*'III. GDP shares, 1310-2018'!G224","v":2.2968873278896194},{"$f":"Z222*'III. GDP shares, 1310-2018'!H224","v":0},{"$f":"AA222*'III. GDP shares, 1310-2018'!I224","v":-0.3773653815945955},{"$f":"AB222*'III. GDP shares, 1310-2018'!J224","v":0},null,null,12.223624952594852,10.640910184147453,null,15.37487588367092,15.178051580953877,{"$f":"AVERAGE(BL219:BL225)","v":5.5748269534792945},4.289471585871577,null,null,-2.758265305921716]
[{"$f":"'[1]Nominal weighted'!B223","v":1529},null,9.361056544739862,36.043756277001094,17.487938912393112,-5.76996093123576,-7.196134947643717,null,-6.453804074132366,null,null,-4.728103950935932,10.732027917942274,11.803298557248976,7.415923590169803,{"$f":"AVERAGE(G220:G226)","v":7.595342248842649},null,9.08746429131858,null,null,-5.111056544739862,-19.347989081233834,-4.362938912393114,19.06326121092048,17.15713669893328,null,15.453804074132366,{"$nulls":3},4.25,16.695767195767257,{"v":13.125,"d":"13.13"},13.29330027968472,9.961001751289562,null,9,{"$nulls":3},{"$f":"AE223*'III. GDP shares, 1310-2018'!C225","v":1.1888266346226424},{"$f":"AF223*'III. GDP shares, 1310-2018'!D225","v":1.4111947057279908},{"$f":"AG223*'III. GDP shares, 1310-2018'!E225","v":0.3304428540181645},{"$f":"AH223*'III. GDP shares, 1310-2018'!F225","v":2.863168116480034},{"$f":"AI223*'III. GDP shares, 1310-2018'!G225","v":2.7593728073522112},{"$f":"AJ223*'III. GDP shares, 1310-2018'!H225","v":0},{"$f":"AK223*'III. GDP shares, 1310-2018'!I225","v":1.0635614150287271},{"$f":"AL223*'III. GDP shares, 1310-2018'!J225","v":0},null,null,{"$f":"U223*'III. GDP shares, 1310-2018'!C225","v":-1.4296847415174403},{"$f":"V223*'III. GDP shares, 1310-2018'!D225","v":-1.6353713751376615},{"$f":"W223*'III. GDP shares, 1310-2018'!E225","v":-0.10984396084709235},{"$f":"X223*'III. GDP shares, 1310-2018'!F225","v":4.105927087094477},{"$f":"Y223*'III. GDP shares, 1310-2018'!G225","v":4.752828846047749},{"$f":"Z223*'III. GDP shares, 1310-2018'!H225","v":0},{"$f":"AA223*'III. GDP shares, 1310-2018'!I225","v":1.826229969851214},{"$f":"AB223*'III. GDP shares, 1310-2018'!J225","v":0},null,null,11.054178204456925,9.61656653322977,null,7.510085825491246,3.8087029076032195,{"$f":"AVERAGE(BL220:BL226)","v":5.330222595364673},4.376979445329792,null,null,-0.940085373127129]
[{"$f":"'[1]Nominal weighted'!B224","v":1530},null,-35.82403526944744,16.51409495155618,10.012752264772297,0.9073046066185615,15.494481258667884,null,10.489527725307209,null,null,-3.5646851551108827,9.702466799551882,11.077758076521226,6.23479377278622,{"$f":"AVERAGE(G221:G227)","v":7.020316729937591},null,9.61118282825736,null,null,39.82403526944744,0.08378864632747707,3.3622477352277027,13.804725468569409,-5.556783136181435,null,1.5104722746927912,{"$nulls":3},4,16.59788359788366,{"v":13.375,"d":"13.38"},14.71203007518797,9.937698122486449,null,12,{"$nulls":3},{"$f":"AE224*'III. GDP shares, 1310-2018'!C226","v":1.116690966034884},{"$f":"AF224*'III. GDP shares, 1310-2018'!D226","v":1.408849822285579},{"$f":"AG224*'III. GDP shares, 1310-2018'!E226","v":0.33935839543171886},{"$f":"AH224*'III. GDP shares, 1310-2018'!F226","v":3.169771585938766},{"$f":"AI224*'III. GDP shares, 1310-2018'!G226","v":2.7515503641559635},{"$f":"AJ224*'III. GDP shares, 1310-2018'!H226","v":0},{"$f":"AK224*'III. GDP shares, 1310-2018'!I226","v":1.4188671094551555},{"$f":"AL224*'III. GDP shares, 1310-2018'!J226","v":0},null,null,{"$f":"U224*'III. GDP shares, 1310-2018'!C226","v":11.11778510411164},{"$f":"V224*'III. GDP shares, 1310-2018'!D226","v":0.007112088646233601},{"$f":"W224*'III. GDP shares, 1310-2018'!E226","v":0.08530893431557413},{"$f":"X224*'III. GDP shares, 1310-2018'!F226","v":2.974288817948698},{"$f":"Y224*'III. GDP shares, 1310-2018'!G226","v":-1.5385623988012818},{"$f":"Z224*'III. GDP shares, 1310-2018'!H226","v":0},{"$f":"AA224*'III. GDP shares, 1310-2018'!I226","v":0.1785966191921262},{"$f":"AB224*'III. GDP shares, 1310-2018'!J226","v":0},null,null,11.77043529925968,10.205088243302066,null,12.824529165412988,8.838081043013899,{"$f":"AVERAGE(BL221:BL227)","v":5.351253216204029},4.511506485963307,null,null,-4.021178655750269]
[{"$f":"'[1]Nominal weighted'!B225","v":1531},null,22.4452706166366,14.830015297471817,5.9829422097976614,17.085905451624143,-8.282927851346123,null,15.037115195392472,null,null,3.0980932667501135,12.246153972876856,14.224577810317806,6.775655220973321,{"$f":"AVERAGE(G222:G228)","v":8.046146485086386},null,10.832430231637332,null,null,-18.4452706166366,1.6699847025281827,6.992057790202338,-3.103553086727052,18.19732234502946,null,-3.0371151953924724,{"$nulls":3},4,16.5,{"v":12.975,"d":"12.98"},13.98235236489709,9.914394493683336,null,12,{"$nulls":3},{"$f":"AE225*'III. GDP shares, 1310-2018'!C227","v":1.1145050276215627},{"$f":"AF225*'III. GDP shares, 1310-2018'!D227","v":1.4063848844706746},{"$f":"AG225*'III. GDP shares, 1310-2018'!E227","v":0.33173072528498676},{"$f":"AH225*'III. GDP shares, 1310-2018'!F227","v":3.0135311765927155},{"$f":"AI225*'III. GDP shares, 1310-2018'!G227","v":2.7437459307168557},{"$f":"AJ225*'III. GDP shares, 1310-2018'!H227","v":0},{"$f":"AK225*'III. GDP shares, 1310-2018'!I227","v":1.4196456536087272},{"$f":"AL225*'III. GDP shares, 1310-2018'!J227","v":0},null,null,{"$f":"U225*'III. GDP shares, 1310-2018'!C227","v":-5.1393367095204425},{"$f":"V225*'III. GDP shares, 1310-2018'!D227","v":0.14234189351108437},{"$f":"W225*'III. GDP shares, 1310-2018'!E227","v":0.17876534890006657},{"$f":"X225*'III. GDP shares, 1310-2018'!F227","v":-0.668889879255404},{"$f":"Y225*'III. GDP shares, 1310-2018'!G227","v":5.035993793259706},{"$f":"Z225*'III. GDP shares, 1310-2018'!H227","v":0},{"$f":"AA225*'III. GDP shares, 1310-2018'!I227","v":-0.359302282220662},{"$f":"AB225*'III. GDP shares, 1310-2018'!J227","v":0},null,null,11.561957809763404,10.029543398295521,null,-0.8104278353256507,0.3789043231673095,{"$f":"AVERAGE(BL222:BL228)","v":2.504648591711796},1.78353523598001,null,null,9.575928242661583]
[{"$f":"'[1]Nominal weighted'!B226","v":1532},null,25.26809779386137,8.293759055502974,32.2818248725223,12.326179608904367,14.762501653128727,null,15.761337171727277,null,null,11.268003738305357,15.153633368495244,11.288419156728649,9.502754422651268,{"$f":"AVERAGE(G223:G229)","v":9.674129411998438},null,10.651414031536692,null,null,-20.14309779386137,1.7062409444970257,-20.0318248725223,0.6033864935396214,-4.871410788248503,null,-3.761337171727276,{"$nulls":3},5.125,10,12.25,12.929566102443989,9.891090864880223,null,12,{"$nulls":3},{"$f":"AE226*'III. GDP shares, 1310-2018'!C228","v":1.4251825534007194},{"$f":"AF226*'III. GDP shares, 1310-2018'!D228","v":0.855866025480288},{"$f":"AG226*'III. GDP shares, 1310-2018'!E228","v":0.31555503104947136},{"$f":"AH226*'III. GDP shares, 1310-2018'!F228","v":2.787521646599521},{"$f":"AI226*'III. GDP shares, 1310-2018'!G228","v":2.735959278238873},{"$f":"AJ226*'III. GDP shares, 1310-2018'!H228","v":0},{"$f":"AK226*'III. GDP shares, 1310-2018'!I228","v":1.420417604010599},{"$f":"AL226*'III. GDP shares, 1310-2018'!J228","v":0},null,null,{"$f":"U226*'III. GDP shares, 1310-2018'!C228","v":-5.601481277513316},{"$f":"V226*'III. GDP shares, 1310-2018'!D228","v":0.14603136556784022},{"$f":"W226*'III. GDP shares, 1310-2018'!E228","v":-0.5160116832348038},{"$f":"X226*'III. GDP shares, 1310-2018'!F228","v":0.13008579705467055},{"$f":"Y226*'III. GDP shares, 1310-2018'!G228","v":-1.34747337035841},{"$f":"Z226*'III. GDP shares, 1310-2018'!H228","v":0},{"$f":"AA226*'III. GDP shares, 1310-2018'!I228","v":-0.44522246111173835},{"$f":"AB226*'III. GDP shares, 1310-2018'!J228","v":0},null,null,10.365942827887368,9.540502138779472,null,-7.634071629595757,-7.749673864720466,{"$f":"AVERAGE(BL223:BL229)","v":-1.2203736427431704},-0.6326226351956387,null,null,16.464739108462783]
[{"$f":"'[1]Nominal weighted'!B227","v":1533},null,1.4298701024346232,11.697972041406928,10.867819969407982,4.534783975318066,28.752652561565583,null,12.639800139485718,null,null,9.567742733193132,10.874037741739082,12.254428807621183,11.692526994385755,{"$f":"AVERAGE(G224:G230)","v":9.97537491096549},null,12.830417281769959,null,null,2.570129897565377,-1.6979720414069277,1.3071800305920165,7.34199586467282,-18.884865325488473,null,-0.639800139485719,{"$nulls":3},4,10,{"v":12.174999999999999,"d":"12.18"},11.876779839990887,9.867787236077112,null,12,{"$nulls":3},{"$f":"AE227*'III. GDP shares, 1310-2018'!C229","v":1.1101884569297487},{"$f":"AF227*'III. GDP shares, 1310-2018'!D229","v":0.8593479604381294},{"$f":"AG227*'III. GDP shares, 1310-2018'!E229","v":0.31594914568591054},{"$f":"AH227*'III. GDP shares, 1310-2018'!F229","v":2.561360102299798},{"$f":"AI227*'III. GDP shares, 1310-2018'!G229","v":2.728190181785159},{"$f":"AJ227*'III. GDP shares, 1310-2018'!H229","v":0},{"$f":"AK227*'III. GDP shares, 1310-2018'!I229","v":1.4211830440745845},{"$f":"AL227*'III. GDP shares, 1310-2018'!J229","v":0},null,null,{"$f":"U227*'III. GDP shares, 1310-2018'!C229","v":0.7133321362717797},{"$f":"V227*'III. GDP shares, 1310-2018'!D229","v":-0.14591488106640105},{"$f":"W227*'III. GDP shares, 1310-2018'!E229","v":0.0339221695214152},{"$f":"X227*'III. GDP shares, 1310-2018'!F229","v":1.5833833355824416},{"$f":"Y227*'III. GDP shares, 1310-2018'!G229","v":-5.221181094882905},{"$f":"Z227*'III. GDP shares, 1310-2018'!H229","v":0},{"$f":"AA227*'III. GDP shares, 1310-2018'!I229","v":-0.07577275915280482},{"$f":"AB227*'III. GDP shares, 1310-2018'!J229","v":0},null,null,9.986594512678,8.996218891213331,null,-3.112231093726474,-1.6672219522584844,{"$f":"AVERAGE(BL224:BL230)","v":-1.4636221968312595},-0.9043109808648856,null,null,11.103187143435274]
[{"$f":"'[1]Nominal weighted'!B228","v":1534},null,23.98652687401402,21.81793917522708,18.701612794374984,10.746566259787729,11.095482078037502,null,11.15793431876617,null,null,16.47842689393873,9.761369421123861,15.063252242564468,12.541888934391336,{"$f":"AVERAGE(G225:G231)","v":9.72864872794663},null,13.455878877307532,null,null,-18.73652687401402,-11.817939175227082,-6.926612794374985,0.07742731775005618,-1.2509984707635062,null,0.842065681233831,{"$nulls":3},5.25,10,{"v":11.774999999999999,"d":"11.78"},10.823993577537784,9.844483607273997,null,12,{"$nulls":3},{"$f":"AE228*'III. GDP shares, 1310-2018'!C230","v":1.454325285234693},{"$f":"AF228*'III. GDP shares, 1310-2018'!D230","v":0.8628006533807862},{"$f":"AG228*'III. GDP shares, 1310-2018'!E230","v":0.307799655700889},{"$f":"AH228*'III. GDP shares, 1310-2018'!F230","v":2.3350484586652698},{"$f":"AI228*'III. GDP shares, 1310-2018'!G230","v":2.720438420196988},{"$f":"AJ228*'III. GDP shares, 1310-2018'!H230","v":0},{"$f":"AK228*'III. GDP shares, 1310-2018'!I230","v":1.4219420558134446},{"$f":"AL228*'III. GDP shares, 1310-2018'!J230","v":0},null,null,{"$f":"U228*'III. GDP shares, 1310-2018'!C230","v":-5.190286626734845},{"$f":"V228*'III. GDP shares, 1310-2018'!D230","v":-1.0196525642000314},{"$f":"W228*'III. GDP shares, 1310-2018'!E230","v":-0.18106233828297183},{"$f":"X228*'III. GDP shares, 1310-2018'!F230","v":0.016703311737550193},{"$f":"Y228*'III. GDP shares, 1310-2018'!G230","v":-0.3457026736230309},{"$f":"Z228*'III. GDP shares, 1310-2018'!H230","v":0},{"$f":"AA228*'III. GDP shares, 1310-2018'!I230","v":0.09978071715863185},{"$f":"AB228*'III. GDP shares, 1310-2018'!J230","v":0},null,null,9.948912864135297,9.10235452899207,null,-6.6202201739446975,-6.302097385899284,{"$f":"AVERAGE(BL225:BL231)","v":-3.847166168914001},-2.9613082863195195,null,null,13.840121485355949]
[{"$f":"'[1]Nominal weighted'!B229","v":1535},null,32.209239505898466,-3.1221032186993654,-16.315956926167786,26.688501987541777,13.092851131579208,null,15.927987744210366,null,null,12.831445484055706,10.81257797838356,14.05319940973215,9.24706192113554,{"$f":"AVERAGE(G226:G232)","v":12.655289601111397},null,11.939280529973114,null,null,-27.95923950589847,13.122103218699365,27.690956926167786,-16.070404720303983,-3.2657492781083217,null,-3.9279877442103666,{"$nulls":3},4.25,10,{"v":11.375,"d":"11.38"},10.618097267237793,9.827101853470886,null,12,{"$nulls":3},{"$f":"AE229*'III. GDP shares, 1310-2018'!C231","v":1.1750655913575827},{"$f":"AF229*'III. GDP shares, 1310-2018'!D231","v":0.8662244711387018},{"$f":"AG229*'III. GDP shares, 1310-2018'!E231","v":0.2994805836364158},{"$f":"AH229*'III. GDP shares, 1310-2018'!F231","v":2.291344161980615},{"$f":"AI229*'III. GDP shares, 1310-2018'!G231","v":2.7143394544881185},{"$f":"AJ229*'III. GDP shares, 1310-2018'!H231","v":0},{"$f":"AK229*'III. GDP shares, 1310-2018'!I231","v":1.4226947198681799},{"$f":"AL229*'III. GDP shares, 1310-2018'!J231","v":0},null,null,{"$f":"U229*'III. GDP shares, 1310-2018'!C231","v":-7.730338895036911},{"$f":"V229*'III. GDP shares, 1310-2018'!D231","v":1.1366686920845315},{"$f":"W229*'III. GDP shares, 1310-2018'!E231","v":0.7290465003691937},{"$f":"X229*'III. GDP shares, 1310-2018'!F231","v":-3.467930939957701},{"$f":"Y229*'III. GDP shares, 1310-2018'!G231","v":-0.9020311630233752},{"$f":"Z229*'III. GDP shares, 1310-2018'!H231","v":0},{"$f":"AA229*'III. GDP shares, 1310-2018'!I231","v":-0.4656939519495843},{"$f":"AB229*'III. GDP shares, 1310-2018'!J231","v":0},null,null,9.678366520118113,8.769148982469613,null,-10.700279757513847,-1.735053517275665,{"$f":"AVERAGE(BL226:BL232)","v":-3.011839599382011},-2.396755605585365,null,null,19.73987296092929]
[{"$f":"'[1]Nominal weighted'!B230","v":1536},null,-2.5407704910457003,6.086586889707959,24.250006468640848,9.558447070905643,-5.0874164548743455,null,8.799218677500512,null,null,2.510249198988179,11.673340627275063,8.860317277035733,8.422242707724788,{"$f":"AVERAGE(G227:G233)","v":10.326958466713617},null,9.262389973779495,null,null,7.1657704910457,3.9134131102920406,-12.875006468640848,-0.8400260182740643,14.876374490588631,null,-0.7992186775005118,{"$nulls":3},4.625,10,{"v":11.375,"d":"11.38"},8.718421052631578,9.788958035714286,null,8,{"$nulls":3},{"$f":"AE230*'III. GDP shares, 1310-2018'!C232","v":1.2763247260254154},{"$f":"AF230*'III. GDP shares, 1310-2018'!D232","v":0.8696197744321982},{"$f":"AG230*'III. GDP shares, 1310-2018'!E232","v":0.3015997536005645},{"$f":"AH230*'III. GDP shares, 1310-2018'!F232","v":1.8819823737947605},{"$f":"AI230*'III. GDP shares, 1310-2018'!G232","v":2.702523877904631},{"$f":"AJ230*'III. GDP shares, 1310-2018'!H232","v":0},{"$f":"AK230*'III. GDP shares, 1310-2018'!I232","v":0.948960743691061},{"$f":"AL230*'III. GDP shares, 1310-2018'!J232","v":0},null,null,{"$f":"U230*'III. GDP shares, 1310-2018'!C232","v":1.9774810937826832},{"$f":"V230*'III. GDP shares, 1310-2018'!D232","v":0.34031814262321713},{"$f":"W230*'III. GDP shares, 1310-2018'!E232","v":-0.3413713211910113},{"$f":"X230*'III. GDP shares, 1310-2018'!F232","v":-0.18133032923932935},{"$f":"Y230*'III. GDP shares, 1310-2018'!G232","v":4.107051754720645},{"$f":"Z230*'III. GDP shares, 1310-2018'!H232","v":0},{"$f":"AA230*'III. GDP shares, 1310-2018'!I232","v":-0.09480339382158398},{"$f":"AB230*'III. GDP shares, 1310-2018'!J232","v":0},null,null,8.751229848057644,7.981011249448631,null,5.807345946874621,1.9068844879184912,{"$f":"AVERAGE(BL227:BL233)","v":0.9294951586393759},0.834085797660977,null,null,1.6443636707650287]
[{"$f":"'[1]Nominal weighted'!B231","v":1537},null,12.55075385577176,8.725416707249636,29.674516309375285,6.852838186657614,13.767397977535849,null,14.867758894070207,null,null,-1.5601650017474245,10.727518228469636,9.849038436207488,6.71284870750413,{"$f":"AVERAGE(G228:G234)","v":9.17768732586467},null,7.01327339815419,null,null,-8.30075385577176,1.2745832927503642,-18.549516309375285,2.006372339658176,-2.9283271442025147,null,-6.867758894070206,{"$nulls":3},4.25,10,{"v":11.125,"d":"11.13"},8.85921052631579,10.839070833333334,null,8,{"$nulls":3},{"$f":"AE231*'III. GDP shares, 1310-2018'!C233","v":1.170630750765605},{"$f":"AF231*'III. GDP shares, 1310-2018'!D233","v":0.872986917998163},{"$f":"AG231*'III. GDP shares, 1310-2018'!E233","v":0.29702659284656},{"$f":"AH231*'III. GDP shares, 1310-2018'!F233","v":1.912959025561161},{"$f":"AI231*'III. GDP shares, 1310-2018'!G233","v":2.9910323323822494},{"$f":"AJ231*'III. GDP shares, 1310-2018'!H233","v":0},{"$f":"AK231*'III. GDP shares, 1310-2018'!I233","v":0.949454213867421},{"$f":"AL231*'III. GDP shares, 1310-2018'!J233","v":0},null,null,{"$f":"U231*'III. GDP shares, 1310-2018'!C233","v":-2.2863806395535495},{"$f":"V231*'III. GDP shares, 1310-2018'!D233","v":0.11126945404700907},{"$f":"W231*'III. GDP shares, 1310-2018'!E233","v":-0.4952538991753202},{"$f":"X231*'III. GDP shares, 1310-2018'!F233","v":0.4332336458631935},{"$f":"Y231*'III. GDP shares, 1310-2018'!G233","v":-0.808069372622481},{"$f":"Z231*'III. GDP shares, 1310-2018'!H233","v":0},{"$f":"AA231*'III. GDP shares, 1310-2018'!I233","v":-0.815077827725052},{"$f":"AB231*'III. GDP shares, 1310-2018'!J233","v":0},null,null,8.845546893274856,8.19408983342116,null,-3.8602786391662005,-5.560900095168537,{"$f":"AVERAGE(BL228:BL234)","v":3.0008905026315165},2.19844502240433,null,null,11.292651008636206]
[{"$f":"'[1]Nominal weighted'!B232","v":1538},null,-3.0835992525445945,22.18847519828971,-1.0874276200285493,-5.9778836411664145,12.203558260807254,null,4.420926764051556,null,null,-0.3451632576585086,7.780747055675541,10.147833986970417,8.661126447642866,{"$f":"AVERAGE(G229:G235)","v":10.344417608091685},null,8.492090670767118,null,null,9.021099252544595,-12.188475198289709,11.96242762002855,14.63917396374706,-1.0286603441405888,null,3.579073235948444,{"$nulls":3},5.9375,10,{"v":10.875,"d":"10.88"},8.661290322580646,11.174897916666666,null,8,{"$nulls":3},{"$f":"AE232*'III. GDP shares, 1310-2018'!C234","v":1.6323805330065881},{"$f":"AF232*'III. GDP shares, 1310-2018'!D234","v":0.8763262507136003},{"$f":"AG232*'III. GDP shares, 1310-2018'!E234","v":0.29234445924824914},{"$f":"AH232*'III. GDP shares, 1310-2018'!F234","v":1.8707899877335006},{"$f":"AI232*'III. GDP shares, 1310-2018'!G234","v":3.0822665159505016},{"$f":"AJ232*'III. GDP shares, 1310-2018'!H234","v":0},{"$f":"AK232*'III. GDP shares, 1310-2018'!I234","v":0.9499436082373756},{"$f":"AL232*'III. GDP shares, 1310-2018'!J234","v":0},null,null,{"$f":"U232*'III. GDP shares, 1310-2018'!C234","v":2.4801459884082657},{"$f":"V232*'III. GDP shares, 1310-2018'!D234","v":-1.0681080772432925},{"$f":"W232*'III. GDP shares, 1310-2018'!E234","v":0.32157695943664977},{"$f":"X232*'III. GDP shares, 1310-2018'!F234","v":3.1619792271213227},{"$f":"Y232*'III. GDP shares, 1310-2018'!G234","v":-0.28372566431250307},{"$f":"Z232*'III. GDP shares, 1310-2018'!H234","v":0},{"$f":"AA232*'III. GDP shares, 1310-2018'!I234","v":0.4249897179878356},{"$f":"AB232*'III. GDP shares, 1310-2018'!J234","v":0},null,null,9.108114706541219,8.704051354889815,null,5.0368581513982775,4.330773088306391,{"$f":"AVERAGE(BL229:BL235)","v":1.8566445494923756},1.4598044318055312,null,null,1.7227588755346446]
[{"$f":"'[1]Nominal weighted'!B233","v":1539},null,-46.98027620161133,14.319097597743493,-4.068350056352632,6.552445115029091,-1.5358162876557468,null,-2.976896721628055,null,null,-0.4835337719449565,10.109981628816113,11.641930764312832,5.340285648412034,{"$f":"AVERAGE(G230:G236)","v":10.284551616463181},null,5.874508098848836,null,null,53.41777620161133,-4.319097597743493,14.530850056352632,2.044329078519297,13.046541287655748,null,10.476896721628055,{"$nulls":3},6.4375,10,{"v":10.4625,"d":"10.46"},8.596774193548388,11.510725,null,7.5,{"$nulls":3},{"$f":"AE233*'III. GDP shares, 1310-2018'!C235","v":1.76655431449249},{"$f":"AF233*'III. GDP shares, 1310-2018'!D235","v":0.8796381157161317},{"$f":"AG233*'III. GDP shares, 1310-2018'!E235","v":0.28315680197027443},{"$f":"AH233*'III. GDP shares, 1310-2018'!F235","v":1.8574136457584922},{"$f":"AI233*'III. GDP shares, 1310-2018'!G235","v":3.173426504913547},{"$f":"AJ233*'III. GDP shares, 1310-2018'!H235","v":0},{"$f":"AK233*'III. GDP shares, 1310-2018'!I235","v":0.8910271660212196},{"$f":"AL233*'III. GDP shares, 1310-2018'!J235","v":0},null,null,{"$f":"U233*'III. GDP shares, 1310-2018'!C235","v":14.658703381677787},{"$f":"V233*'III. GDP shares, 1310-2018'!D235","v":-0.37992428724731575},{"$f":"W233*'III. GDP shares, 1310-2018'!E235","v":0.39326251200634577},{"$f":"X233*'III. GDP shares, 1310-2018'!F235","v":0.441696459785146},{"$f":"Y233*'III. GDP shares, 1310-2018'!G235","v":3.5968403310560944},{"$f":"Z233*'III. GDP shares, 1310-2018'!H235","v":0},{"$f":"AA233*'III. GDP shares, 1310-2018'!I235","v":1.2446932792759002},{"$f":"AB233*'III. GDP shares, 1310-2018'!J235","v":0},null,null,9.084583198924731,8.851216548872154,null,19.955271676553956,14.866215958003927,{"$f":"AVERAGE(BL230:BL236)","v":2.6001293850167264},1.6414820496057563,null,null,-12.36361753064525]
[{"$f":"'[1]Nominal weighted'!B234","v":1540},null,-27.063029302714597,5.0772152497689405,17.788868083610254,-7.430974026226524,20.707754575622964,null,-3.1040158898914205,null,null,-0.0424792527246552,9.505261513032066,9.474082160750438,3.3708288218330655,{"$f":"AVERAGE(G231:G237)","v":11.492429149763753},null,6.809989169020775,null,null,32.9380293027146,4.9227847502310595,-7.413868083610255,15.609996358732728,-8.86120249228963,null,10.104015889891421,{"$nulls":3},5.875,10,{"v":10.375,"d":"10.38"},8.179022332506204,11.846552083333332,null,7.000000000000001,{"$nulls":3},{"$f":"AE234*'III. GDP shares, 1310-2018'!C236","v":1.6092174141956443},{"$f":"AF234*'III. GDP shares, 1310-2018'!D236","v":0.8829228505215375},{"$f":"AG234*'III. GDP shares, 1310-2018'!E236","v":0.28265862963330596},{"$f":"AH234*'III. GDP shares, 1310-2018'!F236","v":1.76768171108934},{"$f":"AI234*'III. GDP shares, 1310-2018'!G236","v":3.2645132109544974},{"$f":"AJ234*'III. GDP shares, 1310-2018'!H236","v":0},{"$f":"AK234*'III. GDP shares, 1310-2018'!I236","v":0.8320465736517085},{"$f":"AL234*'III. GDP shares, 1310-2018'!J236","v":0},null,null,{"$f":"U234*'III. GDP shares, 1310-2018'!C236","v":9.022034100972721},{"$f":"V234*'III. GDP shares, 1310-2018'!D236","v":0.4346439144177962},{"$f":"W234*'III. GDP shares, 1310-2018'!E236","v":-0.20198494388389193},{"$f":"X234*'III. GDP shares, 1310-2018'!F236","v":3.3736923499813787},{"$f":"Y234*'III. GDP shares, 1310-2018'!G236","v":-2.441850793170439},{"$f":"Z234*'III. GDP shares, 1310-2018'!H236","v":0},{"$f":"AA234*'III. GDP shares, 1310-2018'!I236","v":1.2010016859009391},{"$f":"AB234*'III. GDP shares, 1310-2018'!J236","v":0},null,null,8.879262402639924,8.639040390046034,null,11.387536314218506,7.883292620944988,{"$f":"AVERAGE(BL231:BL237)","v":2.653354496026915},1.992512073570825,null,null,-3.1967748602762125]
[{"$f":"'[1]Nominal weighted'!B235","v":1541},null,32.491539082636436,1.1905409656684185,20.79318164971551,24.38451044075888,19.262594053626614,null,21.509655227056655,null,null,0.472538011620384,8.710660724406992,1.2322822113523355,3.4520990981724258,{"$f":"AVERAGE(G232:G238)","v":9.940709551116138},null,6.074849629970914,null,null,-28.491539082636436,8.809459034331582,-10.66818164971551,-16.8953573085083,-7.080214886959945,null,-14.509655227056653,{"$nulls":3},4,10,{"v":10.125,"d":"10.13"},7.48915313225058,12.182379166666667,null,7.000000000000001,{"$nulls":3},{"$f":"AE235*'III. GDP shares, 1310-2018'!C237","v":1.0936265005817314},{"$f":"AF235*'III. GDP shares, 1310-2018'!D237","v":0.8861807871384181},{"$f":"AG235*'III. GDP shares, 1310-2018'!E237","v":0.27765755705229905},{"$f":"AH235*'III. GDP shares, 1310-2018'!F237","v":1.6190633892321475},{"$f":"AI235*'III. GDP shares, 1310-2018'!G237","v":3.355527530880713},{"$f":"AJ235*'III. GDP shares, 1310-2018'!H237","v":0},{"$f":"AK235*'III. GDP shares, 1310-2018'!I237","v":0.832464355878611},{"$f":"AL235*'III. GDP shares, 1310-2018'!J237","v":0},null,null,{"$f":"U235*'III. GDP shares, 1310-2018'!C237","v":-7.789775545782829},{"$f":"V235*'III. GDP shares, 1310-2018'!D237","v":0.7806773341307609},{"$f":"W235*'III. GDP shares, 1310-2018'!E237","v":-0.29255321037532583},{"$f":"X235*'III. GDP shares, 1310-2018'!F237","v":-3.6525697876845493},{"$f":"Y235*'III. GDP shares, 1310-2018'!G237","v":-1.9501819515478254},{"$f":"Z235*'III. GDP shares, 1310-2018'!H237","v":0},{"$f":"AA235*'III. GDP shares, 1310-2018'!I237","v":-1.7255386846589196},{"$f":"AB235*'III. GDP shares, 1310-2018'!J237","v":0},null,null,8.466088716486206,8.064520120763921,null,-14.629941845918689,-11.472581520090877,{"$f":"AVERAGE(BL232:BL238)","v":3.4148033831854683},3.841687594234046,null,null,22.588958513674953]
[{"$f":"'[1]Nominal weighted'!B236","v":1542},null,31.24064590589333,13.182538793284635,-5.857279484770885,3.44261639292595,12.673789190179694,null,-2.395090259217606,null,null,1.2698481914363842,5.026172780090742,2.2006994428908286,4.960048142704151,{"$f":"AVERAGE(G233:G239)","v":8.869379681064666},null,4.593572111499934,null,null,-27.36564590589333,-3.1825387932846354,14.982279484770885,3.54653673932463,-0.1555829401796906,null,9.395090259217607,{"$nulls":3},3.875,10,{"v":9.125,"d":"9.13"},6.98915313225058,12.518206250000002,null,7.000000000000001,{"$nulls":3},{"$f":"AE236*'III. GDP shares, 1310-2018'!C238","v":1.0575184532645725},{"$f":"AF236*'III. GDP shares, 1310-2018'!D238","v":0.8894122521800628},{"$f":"AG236*'III. GDP shares, 1310-2018'!E238","v":0.2518525498122571},{"$f":"AH236*'III. GDP shares, 1310-2018'!F238","v":1.5114127566005386},{"$f":"AI236*'III. GDP shares, 1310-2018'!G238","v":3.446470346925969},{"$f":"AJ236*'III. GDP shares, 1310-2018'!H238","v":0},{"$f":"AK236*'III. GDP shares, 1310-2018'!I238","v":0.8328787435171736},{"$f":"AL236*'III. GDP shares, 1310-2018'!J238","v":0},null,null,{"$f":"U236*'III. GDP shares, 1310-2018'!C238","v":-7.468303362835174},{"$f":"V236*'III. GDP shares, 1310-2018'!D238","v":-0.28305889957857067},{"$f":"W236*'III. GDP shares, 1310-2018'!E238","v":0.41351510030021005},{"$f":"X236*'III. GDP shares, 1310-2018'!F238","v":0.7669428281422785},{"$f":"Y236*'III. GDP shares, 1310-2018'!G238","v":-0.04283457063322155},{"$f":"Z236*'III. GDP shares, 1310-2018'!H238","v":0},{"$f":"AA236*'III. GDP shares, 1310-2018'!I238","v":1.1178529957610852},{"$f":"AB236*'III. GDP shares, 1310-2018'!J238","v":0},null,null,8.25122656370843,7.989545102300573,null,-5.495885908843392,-0.4633101926740893,{"$f":"AVERAGE(BL233:BL239)","v":3.5934270134400745},4.270786941692641,null,null,12.312959859385334]
[{"$f":"'[1]Nominal weighted'!B237","v":1543},null,0.5466111434964178,1.853546079219626,9.075066243704086,-4.227750715147135,3.3677262782296538,null,15.34758616870409,null,null,9.755283461287922,3.269062282944142,5.914437340594259,5.650973254367961,{"$f":"AVERAGE(G234:G240)","v":8.488848642221074},null,4.4058805058901624,null,null,5.465888856503582,8.146453920780374,0.04993375629591453,10.716903847397715,9.152973721770348,null,-7.347586168704091,{"$nulls":3},6.0125,10,{"v":9.125,"d":"9.13"},6.48915313225058,12.520700000000001,null,8,{"$nulls":3},{"$f":"AE237*'III. GDP shares, 1310-2018'!C239","v":1.6378854826972182},{"$f":"AF237*'III. GDP shares, 1310-2018'!D239","v":0.8926175669736026},{"$f":"AG237*'III. GDP shares, 1310-2018'!E239","v":0.253457418009322},{"$f":"AH237*'III. GDP shares, 1310-2018'!F239","v":1.4036953728237795},{"$f":"AI237*'III. GDP shares, 1310-2018'!G239","v":3.44561146138639},{"$f":"AJ237*'III. GDP shares, 1310-2018'!H239","v":0},{"$f":"AK237*'III. GDP shares, 1310-2018'!I239","v":0.9523311745975457},{"$f":"AL237*'III. GDP shares, 1310-2018'!J239","v":0},null,null,{"$f":"U237*'III. GDP shares, 1310-2018'!C239","v":1.4889812903291004},{"$f":"V237*'III. GDP shares, 1310-2018'!D239","v":0.7271667878229543},{"$f":"W237*'III. GDP shares, 1310-2018'!E239","v":1.3869677744952574E-3},{"$f":"X237*'III. GDP shares, 1310-2018'!F239","v":2.3182174984938593},{"$f":"Y237*'III. GDP shares, 1310-2018'!G239","v":2.5188361003378685},{"$f":"Z237*'III. GDP shares, 1310-2018'!H239","v":0},{"$f":"AA237*'III. GDP shares, 1310-2018'!I239","v":-0.874666920812331},{"$f":"AB237*'III. GDP shares, 1310-2018'!J239","v":0},null,null,8.691225522041764,8.585598476487858,null,6.179921723945947,4.364094655673974,{"$f":"AVERAGE(BL234:BL240)","v":1.3995673200258563},2.5625485006300344,null,null,2.2402259733912624]
[{"$f":"'[1]Nominal weighted'!B238","v":1544},null,16.15587470618702,3.163211186874122,-28.018083336411436,7.421730121033136,2.905360787002518,null,9.721782120721182,null,null,10.88751703893819,8.25080460591631,7.55303091432002,8.314498851908985,{"$f":"AVERAGE(G235:G241)","v":11.944490969391037},null,8.08085635576781,null,null,-9.143374706187021,6.836788813125878,39.143083336411436,-1.4325769887825552,9.617832962997483,null,-0.721782120721181,{"$nulls":3},7.0125,10,{"v":11.125,"d":"11.13"},5.98915313225058,12.52319375,null,9,{"$nulls":3},{"$f":"AE238*'III. GDP shares, 1310-2018'!C240","v":1.9068584262430421},{"$f":"AF238*'III. GDP shares, 1310-2018'!D240","v":0.8957970476665227},{"$f":"AG238*'III. GDP shares, 1310-2018'!E240","v":0.31095057902795326},{"$f":"AH238*'III. GDP shares, 1310-2018'!F240","v":1.2959120449002042},{"$f":"AI238*'III. GDP shares, 1310-2018'!G240","v":3.444764418733332},{"$f":"AJ238*'III. GDP shares, 1310-2018'!H240","v":0},{"$f":"AK238*'III. GDP shares, 1310-2018'!I240","v":1.0718967846688594},{"$f":"AL238*'III. GDP shares, 1310-2018'!J240","v":0},null,null,{"$f":"U238*'III. GDP shares, 1310-2018'!C240","v":-2.4862917793640245},{"$f":"V238*'III. GDP shares, 1310-2018'!D240","v":0.612437523431767},{"$f":"W238*'III. GDP shares, 1310-2018'!E240","v":1.0940732070468822},{"$f":"X238*'III. GDP shares, 1310-2018'!F240","v":-0.3099760072944657},{"$f":"Y238*'III. GDP shares, 1310-2018'!G240","v":2.6455846198382345},{"$f":"Z238*'III. GDP shares, 1310-2018'!H240","v":0},{"$f":"AA238*'III. GDP shares, 1310-2018'!I240","v":-0.08596399271472271},{"$f":"AB238*'III. GDP shares, 1310-2018'!J240","v":0},null,null,9.274974480375098,8.926179301239912,null,1.469863570943671,7.383328549474007,{"$f":"AVERAGE(BL235:BL241)","v":-1.2479167232510784},-0.19965927380203194,null,null,7.172956206061487]
[{"$f":"'[1]Nominal weighted'!B239","v":1545},null,2.497572006167414,-3.6029404119240382,5.691493000740904,4.577759670555663,4.704249170446962,null,-5.948015865245303,null,null,7.000010913554939,10.28978645965867,5.860399196424425,5.700195528906841,{"$f":"AVERAGE(G236:G242)","v":10.692494814662709},null,6.417834043214602,null,null,4.927427993832586,13.602940411924038,5.308506999259096,1.1484815232852985,6.821438329553038,null,12.198015865245303,{"$nulls":3},7.425,10,{"v":11,"d":"11.00"},5.726241193840961,11.5256875,null,6.25,{"$nulls":3},{"$f":"AE239*'III. GDP shares, 1310-2018'!C241","v":2.015412990110569},{"$f":"AF239*'III. GDP shares, 1310-2018'!D241","v":0.8989510053306107},{"$f":"AG239*'III. GDP shares, 1310-2018'!E241","v":0.3093603902488536},{"$f":"AH239*'III. GDP shares, 1310-2018'!F241","v":1.2393785295500188},{"$f":"AI239*'III. GDP shares, 1310-2018'!G241","v":3.1689797710782104},{"$f":"AJ239*'III. GDP shares, 1310-2018'!H241","v":0},{"$f":"AK239*'III. GDP shares, 1310-2018'!I241","v":0.7447338818300431},{"$f":"AL239*'III. GDP shares, 1310-2018'!J241","v":0},null,null,{"$f":"U239*'III. GDP shares, 1310-2018'!C241","v":1.337481802909718},{"$f":"V239*'III. GDP shares, 1310-2018'!D241","v":1.2228376958751506},{"$f":"W239*'III. GDP shares, 1310-2018'!E241","v":0.14929470881177861},{"$f":"X239*'III. GDP shares, 1310-2018'!F241","v":0.2485755128644747},{"$f":"Y239*'III. GDP shares, 1310-2018'!G241","v":1.875549729767627},{"$f":"Z239*'III. GDP shares, 1310-2018'!H241","v":0},{"$f":"AA239*'III. GDP shares, 1310-2018'!I241","v":1.453484112951774},{"$f":"AB239*'III. GDP shares, 1310-2018'!J241","v":0},null,null,8.654488115640161,8.376816568148305,null,6.287223563180522,7.33446852051656,{"$f":"AVERAGE(BL236:BL242)","v":0.987870081989512},1.5089515069616464,null,null,2.413479695512323]
[{"$f":"'[1]Nominal weighted'!B240","v":1546},null,12.417770687349428,2.0193241177172894,21.92781522757138,11.388920896675756,-4.199533559560898,null,-4.2907379608964575,null,null,1.8737261020247027,6.825876804593506,7.590389004886359,5.061523049401388,{"$f":"AVERAGE(G237:G243)","v":8.986639726397517},null,6.886517145518337,null,null,-5.667770687349428,7.980675882282711,-14.227815227571378,-2.149767764425177,16.225221059560898,null,15.290737960896458,{"$nulls":3},6.75,10,{"v":7.7,"d":"7.70"},9.23915313225058,12.0256875,null,11,{"$nulls":3},{"$f":"AE240*'III. GDP shares, 1310-2018'!C242","v":1.8289348209201186},{"$f":"AF240*'III. GDP shares, 1310-2018'!D242","v":0.9020797460634109},{"$f":"AG240*'III. GDP shares, 1310-2018'!E242","v":0.2178741655911878},{"$f":"AH240*'III. GDP shares, 1310-2018'!F242","v":2.0002749252683074},{"$f":"AI240*'III. GDP shares, 1310-2018'!G242","v":3.3050055286165083},{"$f":"AJ240*'III. GDP shares, 1310-2018'!H242","v":0},{"$f":"AK240*'III. GDP shares, 1310-2018'!I242","v":1.3113621123642472},{"$f":"AL240*'III. GDP shares, 1310-2018'!J242","v":0},null,null,{"$f":"U240*'III. GDP shares, 1310-2018'!C242","v":-1.5357012099383294},{"$f":"V240*'III. GDP shares, 1310-2018'!D242","v":0.7199206073303975},{"$f":"W240*'III. GDP shares, 1310-2018'!E242","v":-0.40258095725879345},{"$f":"X240*'III. GDP shares, 1310-2018'!F242","v":-0.46542431895836683},{"$f":"Y240*'III. GDP shares, 1310-2018'!G242","v":4.45915838947867},{"$f":"Z240*'III. GDP shares, 1310-2018'!H242","v":0},{"$f":"AA240*'III. GDP shares, 1310-2018'!I242","v":1.822881312000851},{"$f":"AB240*'III. GDP shares, 1310-2018'!J242","v":0},null,null,9.45247343870843,9.56553129882378,null,4.598253822654429,2.9085468705656807,{"$f":"AVERAGE(BL237:BL243)","v":3.3370735388613193},3.099923736372495,null,null,4.785118337436338]
[{"$f":"'[1]Nominal weighted'!B241","v":1547},null,-19.137394259162722,39.94941151057411,29.25902309969059,11.21370515656065,44.89725086581271,null,22.62081505925211,null,null,3.433025452022649,4.696217355748971,4.524205011465125,5.358689821824131,{"$f":"AVERAGE(G238:G244)","v":8.09326442029504},null,5.715104744270109,null,null,24.71239425916272,-25.94941151057411,-20.13402309969059,-2.3495520243100705,-32.371563365812705,null,-12.620815059252111,{"$nulls":3},5.575,14,{"v":9.125,"d":"9.13"},8.86415313225058,12.5256875,null,10,{"$nulls":3},{"$f":"AE241*'III. GDP shares, 1310-2018'!C243","v":1.5078945866949844},{"$f":"AF241*'III. GDP shares, 1310-2018'!D243","v":1.2672569995221579},{"$f":"AG241*'III. GDP shares, 1310-2018'!E243","v":0.2597490872103732},{"$f":"AH241*'III. GDP shares, 1310-2018'!F243","v":1.9196274613719975},{"$f":"AI241*'III. GDP shares, 1310-2018'!G243","v":3.4409228208078413},{"$f":"AJ241*'III. GDP shares, 1310-2018'!H243","v":0},{"$f":"AK241*'III. GDP shares, 1310-2018'!I243","v":1.1927159744372773},{"$f":"AL241*'III. GDP shares, 1310-2018'!J243","v":0},null,null,{"$f":"U241*'III. GDP shares, 1310-2018'!C243","v":6.684069152944157},{"$f":"V241*'III. GDP shares, 1310-2018'!D243","v":-2.348898097875421},{"$f":"W241*'III. GDP shares, 1310-2018'!E243","v":-0.5731281229607891},{"$f":"X241*'III. GDP shares, 1310-2018'!F243","v":-0.5088206984351404},{"$f":"Y241*'III. GDP shares, 1310-2018'!G243","v":-8.892769449233986},{"$f":"Z241*'III. GDP shares, 1310-2018'!H243","v":0},{"$f":"AA241*'III. GDP shares, 1310-2018'!I243","v":-1.5053047731588545},{"$f":"AB241*'III. GDP shares, 1310-2018'!J243","v":0},null,null,10.01497343870843,9.588166930044633,null,-7.144851988720035,-11.452161800079478,{"$f":"AVERAGE(BL238:BL244)","v":3.5047096449777415},4.037063562333698,null,null,13.116863821367087]
[{"$f":"'[1]Nominal weighted'!B242","v":1548},null,5.278996204953671,15.463413941864943,8.944759624446343,6.084387179743862,10.498620970528325,null,9.868499039184192,null,null,1.2238503306650526,4.744261360573499,8.952161425077392,4.018390947750921,{"$f":"AVERAGE(G239:G245)","v":9.759867162910624},null,4.246157692066521,null,null,0.646003795046329,-1.4634139418649426,0.18024037555365785,2.4047659525067178,2.027066529471675,null,-0.8684990391841924,{"$nulls":3},5.925,14,{"v":9.125,"d":"9.13"},8.48915313225058,12.5256875,null,9,{"$nulls":3},{"$f":"AE242*'III. GDP shares, 1310-2018'!C244","v":1.5997453949199352},{"$f":"AF242*'III. GDP shares, 1310-2018'!D244","v":1.2715678875843157},{"$f":"AG242*'III. GDP shares, 1310-2018'!E244","v":0.2612908139088838},{"$f":"AH242*'III. GDP shares, 1310-2018'!F244","v":1.8389302089402615},{"$f":"AI242*'III. GDP shares, 1310-2018'!G244","v":3.439437577043832},{"$f":"AJ242*'III. GDP shares, 1310-2018'!H244","v":0},{"$f":"AK242*'III. GDP shares, 1310-2018'!I244","v":1.0739520575249542},{"$f":"AL242*'III. GDP shares, 1310-2018'!J244","v":0},null,null,{"$f":"U242*'III. GDP shares, 1310-2018'!C244","v":0.1744205225698171},{"$f":"V242*'III. GDP shares, 1310-2018'!D244","v":-0.13291644105133155},{"$f":"W242*'III. GDP shares, 1310-2018'!E244","v":5.1611128139899334E-3},{"$f":"X242*'III. GDP shares, 1310-2018'!F244","v":0.520923192997371},{"$f":"Y242*'III. GDP shares, 1310-2018'!G244","v":0.5566136623345191},{"$f":"Z242*'III. GDP shares, 1310-2018'!H244","v":0},{"$f":"AA242*'III. GDP shares, 1310-2018'!I244","v":-0.10363625889892324},{"$f":"AB242*'III. GDP shares, 1310-2018'!J244","v":0},null,null,9.844140105375097,9.484923939922181,null,1.0205657907654424,0.48769394525487414,{"$f":"AVERAGE(BL239:BL245)","v":3.968291582885127},3.8340908787481602,null,null,7.0598738205210925]
[{"$f":"'[1]Nominal weighted'!B243","v":1549},null,-4.64334777481831,-11.064828792171511,6.252649174462647,-1.0280909636122164,0.7328035723233519,null,0.8856914569085452,null,null,3.459707381588931,8.871886922679835,9.31509536702104,5.128064994333881,{"$f":"AVERAGE(G240:G246)","v":9.514199663976243},null,5.370009307006479,null,null,10.25584777481831,25.06482879217151,1.872350825537353,8.265387615915829,11.843248927676647,null,6.739308543091455,{"$nulls":3},5.6125,14,{"v":8.125,"d":"8.13"},7.237296652303613,12.5760525,null,7.625,{"$nulls":3},{"$f":"AE243*'III. GDP shares, 1310-2018'!C245","v":1.5127249689816384},{"$f":"AF243*'III. GDP shares, 1310-2018'!D245","v":1.275844717138745},{"$f":"AG243*'III. GDP shares, 1310-2018'!E245","v":0.23401812883411335},{"$f":"AH243*'III. GDP shares, 1310-2018'!F245","v":1.5681855171562502},{"$f":"AI243*'III. GDP shares, 1310-2018'!G245","v":3.451787904400479},{"$f":"AJ243*'III. GDP shares, 1310-2018'!H245","v":0},{"$f":"AK243*'III. GDP shares, 1310-2018'!I245","v":0.9103027687817714},{"$f":"AL243*'III. GDP shares, 1310-2018'!J245","v":0},null,null,{"$f":"U243*'III. GDP shares, 1310-2018'!C245","v":2.764236437780389},{"$f":"V243*'III. GDP shares, 1310-2018'!D245","v":2.2842021000342236},{"$f":"W243*'III. GDP shares, 1310-2018'!E245","v":0.05392788144163185},{"$f":"X243*'III. GDP shares, 1310-2018'!F245","v":1.7909534147444637},{"$f":"Y243*'III. GDP shares, 1310-2018'!G245","v":3.2506530485109053},{"$f":"Z243*'III. GDP shares, 1310-2018'!H245","v":0},{"$f":"AA243*'III. GDP shares, 1310-2018'!I245","v":0.8045654067476455},{"$f":"AB243*'III. GDP shares, 1310-2018'!J245","v":0},null,null,9.19597485871727,8.952864005292998,null,10.94853828925926,10.67349541320185,{"$f":"AVERAGE(BL240:BL246)","v":2.840675578391871},2.558644196018929,null,null,-0.9873169010707841]
[{"$f":"'[1]Nominal weighted'!B244","v":1550},null,11.461706593482042,-13.05407006269212,-12.388221710244554,-2.1475833081879365,-2.88590086448769,null,7.147699359966497,null,null,2.470519984451567,11.962596060326712,9.079570645538647,5.752409835199844,{"$f":"AVERAGE(G241:G247)","v":13.174676347610054},null,6.687581177991085,null,null,-5.524206593482043,27.05407006269212,21.513221710244554,9.886736440438517,13.51231836448769,null,-0.8976993599664967,{"$nulls":3},5.9375,14,{"v":9.125,"d":"9.13"},7.73915313225058,10.6264175,null,6.25,{"$nulls":3},{"$f":"AE244*'III. GDP shares, 1310-2018'!C246","v":1.597544670618965},{"$f":"AF244*'III. GDP shares, 1310-2018'!D246","v":1.2800878902201414},{"$f":"AG244*'III. GDP shares, 1310-2018'!E246","v":0.2643378694913147},{"$f":"AH244*'III. GDP shares, 1310-2018'!F246","v":1.6773886893331968},{"$f":"AI244*'III. GDP shares, 1310-2018'!G246","v":2.915425331065248},{"$f":"AJ244*'III. GDP shares, 1310-2018'!H246","v":0},{"$f":"AK244*'III. GDP shares, 1310-2018'!I246","v":0.7464968284896989},{"$f":"AL244*'III. GDP shares, 1310-2018'!J246","v":0},null,null,{"$f":"U244*'III. GDP shares, 1310-2018'!C246","v":-1.4863438825794333},{"$f":"V244*'III. GDP shares, 1310-2018'!D246","v":2.473684819172817},{"$f":"W244*'III. GDP shares, 1310-2018'!E246","v":0.6232064868800377},{"$f":"X244*'III. GDP shares, 1310-2018'!F246","v":2.14285718297801},{"$f":"Y244*'III. GDP shares, 1310-2018'!G246","v":3.707190616333826},{"$f":"Z244*'III. GDP shares, 1310-2018'!H246","v":0},{"$f":"AA244*'III. GDP shares, 1310-2018'!I246","v":-0.10722075602435557},{"$f":"AB244*'III. GDP shares, 1310-2018'!J246","v":0},null,null,8.946345105375096,8.481281279218566,null,7.353374466760902,10.924073437402392,{"$f":"AVERAGE(BL241:BL247)","v":1.569367668110557},1.462496031794625,null,null,2.321503741410339]
[{"$f":"'[1]Nominal weighted'!B245","v":1551},null,0.6916488566838463,3.4995192206458228,2.977611558874428,-1.9603619974793318,14.571579985311613,null,-0.5608472447039361,null,null,-0.41326004219318285,8.18816603958299,6.210809577127096,5.631934088569887,{"$f":"AVERAGE(G242:G248)","v":9.5848049267428},null,4.87810622903194,null,null,5.508351143316154,10.500480779354177,6.147388441125572,10.449515129729912,-3.56146415197828,null,6.730847244703937,{"$nulls":3},6.2,14,{"v":9.125,"d":"9.13"},8.48915313225058,11.010115833333334,null,6.170000000000001,{"$nulls":3},{"$f":"AE245*'III. GDP shares, 1310-2018'!C247","v":1.665296080139052},{"$f":"AF245*'III. GDP shares, 1310-2018'!D247","v":1.2842978025603842},{"$f":"AG245*'III. GDP shares, 1310-2018'!E247","v":0.26584348368489985},{"$f":"AH245*'III. GDP shares, 1310-2018'!F247","v":1.8404451430615474},{"$f":"AI245*'III. GDP shares, 1310-2018'!G247","v":3.0194204594181673},{"$f":"AJ245*'III. GDP shares, 1310-2018'!H247","v":0},{"$f":"AK245*'III. GDP shares, 1310-2018'!I247","v":0.7372815599331195},{"$f":"AL245*'III. GDP shares, 1310-2018'!J247","v":0},null,null,{"$f":"U245*'III. GDP shares, 1310-2018'!C247","v":1.4795218656441702},{"$f":"V245*'III. GDP shares, 1310-2018'!D247","v":0.9632674564822942},{"$f":"W245*'III. GDP shares, 1310-2018'!E247","v":0.1790951406852721},{"$f":"X245*'III. GDP shares, 1310-2018'!F247","v":2.2654508722192164},{"$f":"Y245*'III. GDP shares, 1310-2018'!G247","v":-0.9766979647399342},{"$f":"Z245*'III. GDP shares, 1310-2018'!H247","v":0},{"$f":"AA245*'III. GDP shares, 1310-2018'!I247","v":0.8042997660043529},{"$f":"AB245*'III. GDP shares, 1310-2018'!J247","v":0},null,null,9.165711494263986,8.81258452879717,null,4.714937136295371,5.962519764375244,{"$f":"AVERAGE(BL242:BL248)","v":4.063955520790612},4.035540777761868,null,null,3.7766170464237088]
[{"$f":"'[1]Nominal weighted'!B246","v":1552},null,18.148571362634563,25.29043852282031,8.232030594346455,12.345477996636383,2.9845766779062775,null,1.9189454393344114,null,null,-4.0624698347935295,4.621540337146617,4.657924963061889,5.566637415362725,{"$f":"AVERAGE(G243:G249)","v":10.049701230517561},null,4.144257632510245,null,null,-10.023571362634561,-11.29043852282031,2.6846360723202114,-3.512867787819679,8.40923748876039,null,4.171054560665588,{"$nulls":3},8.125,14,{"v":10.916666666666666,"d":"10.92"},8.832610208816705,11.393814166666667,null,6.09,{"$nulls":3},{"$f":"AE246*'III. GDP shares, 1310-2018'!C248","v":2.1786029841856456},{"$f":"AF246*'III. GDP shares, 1310-2018'!D248","v":1.2884748437115665},{"$f":"AG246*'III. GDP shares, 1310-2018'!E248","v":0.3198282356031869},{"$f":"AH246*'III. GDP shares, 1310-2018'!F248","v":1.9154237093146866},{"$f":"AI246*'III. GDP shares, 1310-2018'!G248","v":3.123337026302821},{"$f":"AJ246*'III. GDP shares, 1310-2018'!H248","v":0},{"$f":"AK246*'III. GDP shares, 1310-2018'!I248","v":0.728054857878098},{"$f":"AL246*'III. GDP shares, 1310-2018'!J248","v":0},null,null,{"$f":"U246*'III. GDP shares, 1310-2018'!C248","v":-2.6876778440410383},{"$f":"V246*'III. GDP shares, 1310-2018'!D248","v":-1.0391032865089964},{"$f":"W246*'III. GDP shares, 1310-2018'!E248","v":0.07865243525925279},{"$f":"X246*'III. GDP shares, 1310-2018'!F248","v":-0.761794089108691},{"$f":"Y246*'III. GDP shares, 1310-2018'!G248","v":2.3051879227992567},{"$f":"Z246*'III. GDP shares, 1310-2018'!H248","v":0},{"$f":"AA246*'III. GDP shares, 1310-2018'!I248","v":0.4986463933279438},{"$f":"AB246*'III. GDP shares, 1310-2018'!J248","v":0},null,null,9.893015173691673,9.553721656996004,null,-1.6060884682722727,-1.5936582585880608,{"$f":"AVERAGE(BL243:BL249)","v":5.506216011333467},5.625734646411354,null,null,8.832231995047714]
[{"$f":"'[1]Nominal weighted'!B247","v":1553},null,5.493458907387878,23.654288081245426,20.279142177194615,15.759334782737493,21.423803225875808,null,4.932265135995772,null,null,-1.5103381958577609,4.536136222486809,3.1410117049312336,6.091957716010372,{"$f":"AVERAGE(G244:G250)","v":10.025180103208529},null,6.102159345192829,null,null,2.819041092612122,-9.654288081245426,-6.497957173034878,-6.770181650486913,-9.646290725875808,null,1.162734864004228,{"$nulls":3},8.3125,14,{"v":13.781185004159735,"d":"13.78"},8.98915313225058,11.7775125,null,6.095000000000001,{"$nulls":3},{"$f":"AE247*'III. GDP shares, 1310-2018'!C249","v":2.225081210437061},{"$f":"AF247*'III. GDP shares, 1310-2018'!D249","v":1.2926193971661586},{"$f":"AG247*'III. GDP shares, 1310-2018'!E249","v":0.4059893025209978},{"$f":"AH247*'III. GDP shares, 1310-2018'!F249","v":1.9498935980253236},{"$f":"AI247*'III. GDP shares, 1310-2018'!G249","v":3.2271759482583517},{"$f":"AJ247*'III. GDP shares, 1310-2018'!H249","v":0},{"$f":"AK247*'III. GDP shares, 1310-2018'!I249","v":0.7289831506781411},{"$f":"AL247*'III. GDP shares, 1310-2018'!J249","v":0},null,null,{"$f":"U247*'III. GDP shares, 1310-2018'!C249","v":0.7545979388416475},{"$f":"V247*'III. GDP shares, 1310-2018'!D249","v":-0.8913800028319923},{"$f":"W247*'III. GDP shares, 1310-2018'!E249","v":-0.19142774004524693},{"$f":"X247*'III. GDP shares, 1310-2018'!F249","v":-1.4685625735299754},{"$f":"Y247*'III. GDP shares, 1310-2018'!G249","v":-2.643196296370223},{"$f":"Z247*'III. GDP shares, 1310-2018'!H249","v":0},{"$f":"AA247*'III. GDP shares, 1310-2018'!I249","v":0.13906712462102083},{"$f":"AB247*'III. GDP shares, 1310-2018'!J249","v":0},null,null,10.49255843940172,9.829742607086034,null,-4.300901549314769,-4.764490279004446,{"$f":"AVERAGE(BL244:BL250)","v":4.720679085671625},5.212128875803608,null,null,11.946644756402653]
[{"$f":"'[1]Nominal weighted'!B248","v":1554},null,-39.32385444567597,13.528401365368055,9.177695620809741,10.370374930150955,19.768150919741903,null,9.954490416538093,null,null,0.7158773004164826,6.834612206999545,7.559965098406785,7.922704047574016,{"$f":"AVERAGE(G245:G251)","v":11.140398990939378},null,3.4184212262794023,null,null,48.94885444567597,-1.5284013653680546,4.3274727506864625,-0.8812217979003752,-7.657305086408569,null,-3.854490416538092,{"$nulls":3},9.625,12,{"v":13.505168371496204,"d":"13.51"},9.48915313225058,12.110845833333332,null,6.1,{"$nulls":3},{"$f":"AE248*'III. GDP shares, 1310-2018'!C250","v":2.572047097545211},{"$f":"AF248*'III. GDP shares, 1310-2018'!D250","v":1.1114844346923194},{"$f":"AG248*'III. GDP shares, 1310-2018'!E250","v":0.40003468653251284},{"$f":"AH248*'III. GDP shares, 1310-2018'!F250","v":2.0588987900334073},{"$f":"AI248*'III. GDP shares, 1310-2018'!G250","v":3.3171432266786285},{"$f":"AJ248*'III. GDP shares, 1310-2018'!H250","v":0},{"$f":"AK248*'III. GDP shares, 1310-2018'!I250","v":0.7299094227742633},{"$f":"AL248*'III. GDP shares, 1310-2018'!J250","v":0},null,null,{"$f":"U248*'III. GDP shares, 1310-2018'!C250","v":13.080390545991053},{"$f":"V248*'III. GDP shares, 1310-2018'!D250","v":-0.1415661939640901},{"$f":"W248*'III. GDP shares, 1310-2018'!E250","v":0.12818345967108158},{"$f":"X248*'III. GDP shares, 1310-2018'!F250","v":-0.19120215135761334},{"$f":"Y248*'III. GDP shares, 1310-2018'!G250","v":-2.0973248319354516},{"$f":"Z248*'III. GDP shares, 1310-2018'!H250","v":0},{"$f":"AA248*'III. GDP shares, 1310-2018'!I250","v":-0.4612178483646309},{"$f":"AB248*'III. GDP shares, 1310-2018'!J250","v":0},null,null,10.47169455618002,10.189517658256342,null,10.317262980040349,6.559151421691223,{"$f":"AVERAGE(BL245:BL251)","v":3.7963729291398494},3.9681554996250976,null,null,-1.380795950440417]
[{"$f":"'[1]Nominal weighted'!B249","v":1555},null,-20.265472343248756,-9.502965975189667,-1.9254326740101,5.627310467293727,13.752895096951669,null,4.731558863532331,null,null,1.9978640226557773,12.647066024605412,11.839449298870091,8.732742537876875,{"$f":"AVERAGE(G246:G252)","v":13.188356878476712},null,6.855821200005885,null,null,30.765472343248756,19.502965975189667,13.989967501067433,2.6118426649568534,-1.4743834661227138,null,4.318441136467668,{"$nulls":3},10.5,10,{"v":12.064534827057333,"d":"12.06"},8.23915313225058,12.278511630828955,null,9.049999999999999,{"$nulls":3},{"$f":"AE249*'III. GDP shares, 1310-2018'!C251","v":2.801146955445197},{"$f":"AF249*'III. GDP shares, 1310-2018'!D251","v":0.9291518181134402},{"$f":"AG249*'III. GDP shares, 1310-2018'!E251","v":0.35929142253167035},{"$f":"AH249*'III. GDP shares, 1310-2018'!F251","v":1.788152711362568},{"$f":"AI249*'III. GDP shares, 1310-2018'!G251","v":3.3616884531400872},{"$f":"AJ249*'III. GDP shares, 1310-2018'!H251","v":0},{"$f":"AK249*'III. GDP shares, 1310-2018'!I251","v":1.0833816483063008},{"$f":"AL249*'III. GDP shares, 1310-2018'!J251","v":0},null,null,{"$f":"U249*'III. GDP shares, 1310-2018'!C251","v":8.207486589249967},{"$f":"V249*'III. GDP shares, 1310-2018'!D251","v":1.8121216294452043},{"$f":"W249*'III. GDP shares, 1310-2018'!E251","v":0.4166323357413993},{"$f":"X249*'III. GDP shares, 1310-2018'!F251","v":0.566851163952003},{"$f":"Y249*'III. GDP shares, 1310-2018'!G251","v":-0.40366601609276354},{"$f":"Z249*'III. GDP shares, 1310-2018'!H251","v":0},{"$f":"AA249*'III. GDP shares, 1310-2018'!I251","v":0.5169635222696218},{"$f":"AB249*'III. GDP shares, 1310-2018'!J251","v":0},null,null,10.355366598356143,10.322813008899264,null,11.116389224565433,11.619051025801278,{"$f":"AVERAGE(BL246:BL252)","v":2.002681627423123},1.3536507065217251,null,null,0.08939359566559624]
[{"$f":"'[1]Nominal weighted'!B250","v":1556},null,13.221573697732072,-11.662657594790161,-4.365743632451949,2.649151140921317,0.5611556811601162,null,14.591003445686631,null,null,3.658631106101077,9.830658908057712,8.320598289009112,6.6456895070130235,{"$f":"AVERAGE(G247:G253)","v":14.571846660351866},null,8.891078007789854,null,null,-4.121573697732074,21.66265759479016,14.532410299118615,5.30201761603122,11.885021747164464,null,-2.591003445686632,{"$nulls":3},9.1,10,{"v":10.166666666666666,"d":"10.17"},7.951168756952537,12.44617742832458,null,12,{"$nulls":3},{"$f":"AE250*'III. GDP shares, 1310-2018'!C252","v":2.4235992363042285},{"$f":"AF250*'III. GDP shares, 1310-2018'!D252","v":0.9320441984474983},{"$f":"AG250*'III. GDP shares, 1310-2018'!E252","v":0.30438490547901237},{"$f":"AH250*'III. GDP shares, 1310-2018'!F252","v":1.7261024921068948},{"$f":"AI250*'III. GDP shares, 1310-2018'!G252","v":3.406206780739504},{"$f":"AJ250*'III. GDP shares, 1310-2018'!H252","v":0},{"$f":"AK250*'III. GDP shares, 1310-2018'!I252","v":1.4371639896543058},{"$f":"AL250*'III. GDP shares, 1310-2018'!J252","v":0},null,null,{"$f":"U250*'III. GDP shares, 1310-2018'!C252","v":-1.097697018263192},{"$f":"V250*'III. GDP shares, 1310-2018'!D252","v":2.019055433417881},{"$f":"W250*'III. GDP shares, 1310-2018'!E252","v":0.435093082158634},{"$f":"X250*'III. GDP shares, 1310-2018'!F252","v":1.15100384609794},{"$f":"Y250*'III. GDP shares, 1310-2018'!G252","v":3.252632536982689},{"$f":"Z250*'III. GDP shares, 1310-2018'!H252","v":0},{"$f":"AA250*'III. GDP shares, 1310-2018'!I252","v":-0.3103080707675878},{"$f":"AB250*'III. GDP shares, 1310-2018'!J252","v":0},null,null,10.277335475323964,10.229501602731442,null,5.449779809626364,7.778255018947626,{"$f":"AVERAGE(BL247:BL253)","v":1.990442375395643},2.0548432644598003,null,null,5.866733028075462]
[{"$f":"'[1]Nominal weighted'!B251","v":1557},null,27.04521506740174,3.0352618288970348,18.544452044084302,10.66764101275757,4.920631349628257,null,-11.638467472427493,null,null,3.3505116988306356,7.707962381124856,7.655387489386752,4.831802449961436,{"$f":"AVERAGE(G248:G254)","v":13.060973901366367},null,8.825054664957465,null,null,-18.157715067401742,6.964738171102965,-8.127785377417634,-3.004456631103077,10.984310257308893,null,24.638467472427493,{"$nulls":3},8.8875,10,{"v":10.416666666666666,"d":"10.42"},7.663184381654494,15.90494160693715,null,13,{"$nulls":3},{"$f":"AE251*'III. GDP shares, 1310-2018'!C253","v":2.36306796105929},{"$f":"AF251*'III. GDP shares, 1310-2018'!D253","v":0.9349144273416142},{"$f":"AG251*'III. GDP shares, 1310-2018'!E253","v":0.3135102986156755},{"$f":"AH251*'III. GDP shares, 1310-2018'!F253","v":1.664016245957373},{"$f":"AI251*'III. GDP shares, 1310-2018'!G253","v":4.351025889343929},{"$f":"AJ251*'III. GDP shares, 1310-2018'!H253","v":0},{"$f":"AK251*'III. GDP shares, 1310-2018'!I253","v":1.5576112037060597},{"$f":"AL251*'III. GDP shares, 1310-2018'!J253","v":0},null,null,{"$f":"U251*'III. GDP shares, 1310-2018'!C253","v":-4.82789476476181},{"$f":"V251*'III. GDP shares, 1310-2018'!D253","v":0.651143419882101},{"$f":"W251*'III. GDP shares, 1310-2018'!E253","v":-0.244621864392799},{"$f":"X251*'III. GDP shares, 1310-2018'!F253","v":-0.6524004115571712},{"$f":"Y251*'III. GDP shares, 1310-2018'!G253","v":3.004916301314273},{"$f":"Z251*'III. GDP shares, 1310-2018'!H253","v":0},{"$f":"AA251*'III. GDP shares, 1310-2018'!I253","v":2.952088690553876},{"$f":"AB251*'III. GDP shares, 1310-2018'!J253","v":0},null,null,10.978715442543054,11.184146026023942,null,0.8832313710384696,2.216259804152816,{"$f":"AVERAGE(BL248:BL254)","v":3.18941406814199},3.039256592282815,null,null,10.017143647525959]
[{"$f":"'[1]Nominal weighted'!B252","v":1558},null,9.665555912358911,44.18669594388689,32.93400096211756,3.709907434640682,28.907285198072948,null,23.500952571381447,null,null,11.629846186687564,6.256398759193266,7.072044501696958,4.14414796211842,{"$f":"AVERAGE(G249:G255)","v":11.6741405300037},null,7.669230564867037,null,null,-1.1655559123589119,-31.18669594388689,-22.77178337484738,3.665292571715769,-13.074387493331308,null,-9.500952571381447,{"$nulls":3},8.5,13,{"v":10.162217587270176,"d":"10.16"},7.375200006356451,15.832897704741638,null,14.000000000000002,{"$nulls":3},{"$f":"AE252*'III. GDP shares, 1310-2018'!C254","v":2.256300974104797},{"$f":"AF252*'III. GDP shares, 1310-2018'!D254","v":1.2190915857860132},{"$f":"AG252*'III. GDP shares, 1310-2018'!E254","v":0.3074403825083213},{"$f":"AH252*'III. GDP shares, 1310-2018'!F254","v":1.6018943852058845},{"$f":"AI252*'III. GDP shares, 1310-2018'!G254","v":4.329580608052283},{"$f":"AJ252*'III. GDP shares, 1310-2018'!H254","v":0},{"$f":"AK252*'III. GDP shares, 1310-2018'!I254","v":1.6781579628525107},{"$f":"AL252*'III. GDP shares, 1310-2018'!J254","v":0},null,null,{"$f":"U252*'III. GDP shares, 1310-2018'!C254","v":-0.3093935224034139},{"$f":"V252*'III. GDP shares, 1310-2018'!D254","v":-2.9245722010507147},{"$f":"W252*'III. GDP shares, 1310-2018'!E254","v":-0.6889210677726045},{"$f":"X252*'III. GDP shares, 1310-2018'!F254","v":0.7961020156345514},{"$f":"Y252*'III. GDP shares, 1310-2018'!G254","v":-3.575252970676112},{"$f":"Z252*'III. GDP shares, 1310-2018'!H254","v":0},{"$f":"AA252*'III. GDP shares, 1310-2018'!I254","v":-1.138864229453415},{"$f":"AB252*'III. GDP shares, 1310-2018'!J254","v":0},null,null,11.478385883061378,11.39246589850981,null,-7.840901975721709,-12.339013787348362,{"$f":"AVERAGE(BL249:BL255)","v":1.8543138329430204},2.446236205085948,null,null,15.08970408739479]
[{"$f":"'[1]Nominal weighted'!B253","v":1559},null,29.773940946751665,5.575588706986409,-16.399926474680388,-2.263893219410585,12.669005151032371,null,16.165743093822204,null,null,15.27556943530912,9.501117663423685,7.383492115405581,4.212644195535677,{"$f":"AVERAGE(G250:G256)","v":10.439462456856665},null,6.95311884570669,null,null,-20.248940946751663,7.424411293013591,26.04545312744832,9.351108850468993,3.0918486515137573,null,-5.775743093822204,{"$nulls":3},9.525,13,{"v":9.64552665276793,"d":"9.65"},7.087215631058408,15.760853802546128,null,10.39,{"$nulls":3},{"$f":"AE253*'III. GDP shares, 1310-2018'!C255","v":2.5242297455995377},{"$f":"AF253*'III. GDP shares, 1310-2018'!D255","v":1.222766273249574},{"$f":"AG253*'III. GDP shares, 1310-2018'!E255","v":0.2933048134599926},{"$f":"AH253*'III. GDP shares, 1310-2018'!F255","v":1.5397373158771936},{"$f":"AI253*'III. GDP shares, 1310-2018'!G255","v":4.30816427001031},{"$f":"AJ253*'III. GDP shares, 1310-2018'!H255","v":0},{"$f":"AK253*'III. GDP shares, 1310-2018'!I255","v":1.2459709695902235},{"$f":"AL253*'III. GDP shares, 1310-2018'!J255","v":0},null,null,{"$f":"U253*'III. GDP shares, 1310-2018'!C255","v":-5.366192026737954},{"$f":"V253*'III. GDP shares, 1310-2018'!D255","v":0.6983322867561754},{"$f":"W253*'III. GDP shares, 1310-2018'!E255","v":0.7919999649614787},{"$f":"X253*'III. GDP shares, 1310-2018'!F255","v":2.0315808056973648},{"$f":"Y253*'III. GDP shares, 1310-2018'!G255","v":0.8451440547325731},{"$f":"Z253*'III. GDP shares, 1310-2018'!H255","v":0},{"$f":"AA253*'III. GDP shares, 1310-2018'!I255","v":-0.6926283178742721},{"$f":"AB253*'III. GDP shares, 1310-2018'!J255","v":0},null,null,10.901432681062078,11.13417338778683,null,-1.6917632324646343,3.3146896469784655,{"$f":"AVERAGE(BL250:BL256)","v":0.996597145724147},1.4698340993072259,null,null,12.301502633758066]
[{"$f":"'[1]Nominal weighted'!B254","v":1560},null,3.3366230564947843,8.795412392715434,15.622666579838087,3.06212538337638,10.847693912977302,null,4.470101736169042,null,null,13.99085349121206,12.470383785918115,8.665099121793464,5.004534558967437,{"$f":"AVERAGE(G251:G257)","v":10.914163250829388},null,5.687660690768631,null,null,5.788376943505216,4.204587607284566,-8.122666579838087,3.7371058723839847,4.841115987373317,null,2.309898263830958,{"$nulls":3},9.125,13,{"v":7.5,"d":"7.50"},6.799231255760365,15.688809900350618,null,6.78,{"$nulls":3},{"$f":"AE254*'III. GDP shares, 1310-2018'!C256","v":2.4142753718573164},{"$f":"AF254*'III. GDP shares, 1310-2018'!D256","v":1.2264131375622767},{"$f":"AG254*'III. GDP shares, 1310-2018'!E256","v":0.22921727476156867},{"$f":"AH254*'III. GDP shares, 1310-2018'!F256","v":1.4775454378475743},{"$f":"AI254*'III. GDP shares, 1310-2018'!G256","v":4.286776546499275},{"$f":"AJ254*'III. GDP shares, 1310-2018'!H256","v":0},{"$f":"AK254*'III. GDP shares, 1310-2018'!I256","v":0.8134074455227555},{"$f":"AL254*'III. GDP shares, 1310-2018'!J256","v":0},null,null,{"$f":"U254*'III. GDP shares, 1310-2018'!C256","v":1.5314779066006983},{"$f":"V254*'III. GDP shares, 1310-2018'!D256","v":0.39665857535425614},{"$f":"W254*'III. GDP shares, 1310-2018'!E256","v":-0.24824739963031442},{"$f":"X254*'III. GDP shares, 1310-2018'!F256","v":0.8121129470065118},{"$f":"Y254*'III. GDP shares, 1310-2018'!G256","v":1.3227760808734654},{"$f":"Z254*'III. GDP shares, 1310-2018'!H256","v":0},{"$f":"AA254*'III. GDP shares, 1310-2018'!I256","v":0.2771221897050424},{"$f":"AB254*'III. GDP shares, 1310-2018'!J256","v":0},null,null,9.81550685935183,10.447635214050766,null,4.09190029990966,2.126403015756659,{"$f":"AVERAGE(BL251:BL257)","v":0.8805622117757366},0.8761947655527548,null,null,5.525980351933086]
[{"$f":"'[1]Nominal weighted'!B255","v":1561},null,18.63148696932253,3.367456011846926,5.094294706981193,5.556793515249849,10.060317320203229,null,1.8637217159051005,null,null,13.301208541832908,13.34851344064853,7.296798971458377,4.617618335885239,{"$f":"AVERAGE(G252:G258)","v":15.326501103738362},null,9.429922395036856,null,null,-8.881486969322529,9.632543988153074,2.1557052930188068,1.0685629939827732,5.556448677951878,null,4.9162782840949,{"$nulls":3},9.75,13,7.25,6.625356509232622,15.616765998155106,null,6.78,{"$nulls":3},{"$f":"AE255*'III. GDP shares, 1310-2018'!C257","v":2.575448012935426},{"$f":"AF255*'III. GDP shares, 1310-2018'!D257","v":1.230032493529708},{"$f":"AG255*'III. GDP shares, 1310-2018'!E257","v":0.22268424490989683},{"$f":"AH255*'III. GDP shares, 1310-2018'!F257","v":1.4401226188864003},{"$f":"AI255*'III. GDP shares, 1310-2018'!G257","v":4.265417113759507},{"$f":"AJ255*'III. GDP shares, 1310-2018'!H257","v":0},{"$f":"AK255*'III. GDP shares, 1310-2018'!I257","v":0.8137532470680534},{"$f":"AL255*'III. GDP shares, 1310-2018'!J257","v":0},null,null,{"$f":"U255*'III. GDP shares, 1310-2018'!C257","v":-2.3460315863644703},{"$f":"V255*'III. GDP shares, 1310-2018'!D257","v":0.9114109308294249},{"$f":"W255*'III. GDP shares, 1310-2018'!E257","v":0.06621263523091875},{"$f":"X255*'III. GDP shares, 1310-2018'!F257","v":0.23226851795750414},{"$f":"Y255*'III. GDP shares, 1310-2018'!G257","v":1.5176363201870482},{"$f":"Z255*'III. GDP shares, 1310-2018'!H257","v":0},{"$f":"AA255*'III. GDP shares, 1310-2018'!I257","v":0.590064515807136},{"$f":"AB255*'III. GDP shares, 1310-2018'!J257","v":0},null,null,9.837020417897955,10.547457731088992,null,0.9715613336475617,2.4080087113131508,{"$f":"AVERAGE(BL252:BL258)","v":-0.6438059714937429},-0.41053767413773085,null,null,9.257274834741148]
[{"$f":"'[1]Nominal weighted'!B256","v":1562},null,5.254590397102123,13.210066354423262,0.2547006219502661,6.106784101214518,5.1101485849224435,null,-0.28122317059010005,null,null,12.655708848037209,11.010067198923236,-1.8226161175488806,4.17699117507568,{"$f":"AVERAGE(G253:G259)","v":10.107727597932856},null,7.566826201715982,null,null,4.557909602897877,-0.21006635442326171,6.745299378049734,0.11647840394976039,10.434573511037152,null,7.0612231705901,{"$nulls":3},9.8125,13,{"v":7,"d":"7.00"},6.2232625051642785,15.544722095959596,null,6.78,{"$nulls":3},{"$f":"AE256*'III. GDP shares, 1310-2018'!C258","v":2.587773437128863},{"$f":"AF256*'III. GDP shares, 1310-2018'!D258","v":1.2336246512261333},{"$f":"AG256*'III. GDP shares, 1310-2018'!E258","v":0.2160667967277807},{"$f":"AH256*'III. GDP shares, 1310-2018'!F258","v":1.35305882514126},{"$f":"AI256*'III. GDP shares, 1310-2018'!G258","v":4.244085652897229},{"$f":"AJ256*'III. GDP shares, 1310-2018'!H258","v":0},{"$f":"AK256*'III. GDP shares, 1310-2018'!I258","v":0.8140964500283466},{"$f":"AL256*'III. GDP shares, 1310-2018'!J258","v":0},null,null,{"$f":"U256*'III. GDP shares, 1310-2018'!C258","v":1.2020216457797392},{"$f":"V256*'III. GDP shares, 1310-2018'!D258","v":-0.019934079477672426},{"$f":"W256*'III. GDP shares, 1310-2018'!E258","v":0.20820503279787106},{"$f":"X256*'III. GDP shares, 1310-2018'!F258","v":0.025324680145150266},{"$f":"Y256*'III. GDP shares, 1310-2018'!G258","v":2.848891312364144},{"$f":"Z256*'III. GDP shares, 1310-2018'!H258","v":0},{"$f":"AA256*'III. GDP shares, 1310-2018'!I258","v":0.8478638224240865},{"$f":"AB256*'III. GDP shares, 1310-2018'!J258","v":0},null,null,9.726747433520645,10.448705813149612,null,5.112372414033318,4.784236285350227,{"$f":"AVERAGE(BL253:BL259)","v":1.6824195906611281},2.6471229531338216,null,null,4.082774668412488]
[{"$f":"'[1]Nominal weighted'!B257","v":1563},null,4.228562089052673,9.122205262670846,4.6055054122632235,8.192383684943648,3.8840612389691636,null,5.732796361120225,null,null,10.345594545778344,11.579894877347213,4.221276120961378,3.376829198995314,{"$f":"AVERAGE(G254:G260)","v":6.041332735101356},null,4.298243932982365,null,null,5.396437910947327,3.877794737329154,2.144494587736776,-2.257105555077412,11.527852776182351,null,1.0472036388797752,{"$nulls":3},9.625,13,6.75,5.935278129866235,15.411914015151515,null,6.78,{"$nulls":3},{"$f":"AE257*'III. GDP shares, 1310-2018'!C259","v":2.5342523495523386},{"$f":"AF257*'III. GDP shares, 1310-2018'!D259","v":1.2371899160830515},{"$f":"AG257*'III. GDP shares, 1310-2018'!E259","v":0.20936587821728653},{"$f":"AH257*'III. GDP shares, 1310-2018'!F259","v":1.2907648605051751},{"$f":"AI257*'III. GDP shares, 1310-2018'!G259","v":4.206198174533816},{"$f":"AJ257*'III. GDP shares, 1310-2018'!H259","v":0},{"$f":"AK257*'III. GDP shares, 1310-2018'!I259","v":0.8144370835852591},{"$f":"AL257*'III. GDP shares, 1310-2018'!J259","v":0},null,null,{"$f":"U257*'III. GDP shares, 1310-2018'!C259","v":1.4208764109123717},{"$f":"V257*'III. GDP shares, 1310-2018'!D259","v":0.36904373428181186},{"$f":"W257*'III. GDP shares, 1310-2018'!E259","v":0.06651614706573747},{"$f":"X257*'III. GDP shares, 1310-2018'!F259","v":-0.4908603224985872},{"$f":"Y257*'III. GDP shares, 1310-2018'!G259","v":3.146165573971125},{"$f":"Z257*'III. GDP shares, 1310-2018'!H259","v":0},{"$f":"AA257*'III. GDP shares, 1310-2018'!I259","v":0.1257937282550317},{"$f":"AB257*'III. GDP shares, 1310-2018'!J259","v":0},null,null,9.583698690836291,10.292208262476928,null,4.637535271987491,3.6227796826663283,{"$f":"AVERAGE(BL254:BL260)","v":3.6179904157200093},3.083381324099416,null,null,4.786526808688197]
[{"$f":"'[1]Nominal weighted'!B258","v":1564},null,22.217700421747665,9.18216941200994,8.966350991738693,7.959227451182182,35.80699631999108,null,14.557364457450081,null,null,11.383755710153833,13.206387025827349,1.586433966350808,2.572099555534305,{"$f":"AVERAGE(G255:G261)","v":9.71034552829836},null,3.995854442025756,null,null,-11.905200421747663,3.817830587990059,-2.466350991738694,-1.8862279734894756,-20.52789038564764,null,-7.777364457450081,{"$nulls":3},10.3125,13,{"v":6.5,"d":"6.50"},6.072999477692706,15.279105934343436,null,6.78,{"$nulls":3},{"$f":"AE258*'III. GDP shares, 1310-2018'!C260","v":2.7109387954454593},{"$f":"AF258*'III. GDP shares, 1310-2018'!D260","v":1.2407285889757629},{"$f":"AG258*'III. GDP shares, 1310-2018'!E260","v":0.20258242323890155},{"$f":"AH258*'III. GDP shares, 1310-2018'!F260","v":1.3210400227470624},{"$f":"AI258*'III. GDP shares, 1310-2018'!G260","v":4.168350783402248},{"$f":"AJ258*'III. GDP shares, 1310-2018'!H260","v":0},{"$f":"AK258*'III. GDP shares, 1310-2018'!I260","v":0.8147751764851049},{"$f":"AL258*'III. GDP shares, 1310-2018'!J260","v":0},null,null,{"$f":"U258*'III. GDP shares, 1310-2018'!C260","v":-3.1296261518418795},{"$f":"V258*'III. GDP shares, 1310-2018'!D260","v":0.36437627372195486},{"$f":"W258*'III. GDP shares, 1310-2018'!E260","v":-0.07686759391755273},{"$f":"X258*'III. GDP shares, 1310-2018'!F260","v":-0.41030509786102876},{"$f":"Y258*'III. GDP shares, 1310-2018'!G260","v":-5.600291557523439},{"$f":"Z258*'III. GDP shares, 1310-2018'!H260","v":0},{"$f":"AA258*'III. GDP shares, 1310-2018'!I260","v":-0.9346317844259397},{"$f":"AB258*'III. GDP shares, 1310-2018'!J260","v":0},null,null,9.657434235339357,10.45841579029454,null,-9.787345911847886,-6.7908672736805835,{"$f":"AVERAGE(BL255:BL261)","v":2.319506773003996},2.5102671485821935,null,null,19.369409386888616]
[{"$f":"'[1]Nominal weighted'!B259","v":1565},null,5.147058055789023,27.817572251809835,-30.90190466093324,0.6255173089737731,-7.624129342565599,null,10.459279218135324,null,null,{"$f":"AVERAGE(C256:C262)","v":10.163737672356445},{"$f":"AVERAGE(D256:D262)","v":14.501562630409964},{"$f":"AVERAGE(E256:E262)","v":2.4576214643184042},{"$f":"AVERAGE(F256:F262)","v":3.345314904958297},{"$f":"AVERAGE(G256:G262)","v":9.327578331262066},null,5.398346341058649,null,null,6.977941944210977,-14.817572251809835,38.25190466093324,4.857241290015015,22.797427196100955,null,-3.6792792181353238,{"$nulls":3},12.125,13,7.35,5.482758598988788,15.173297853535356,null,6.78,{"$nulls":3},{"$f":"AE259*'III. GDP shares, 1310-2018'!C261","v":3.182351784033061},{"$f":"AF259*'III. GDP shares, 1310-2018'!D261","v":1.2442409663080147},{"$f":"AG259*'III. GDP shares, 1310-2018'!E261","v":0.2301636056865137},{"$f":"AH259*'III. GDP shares, 1310-2018'!F261","v":1.1929375541719962},{"$f":"AI259*'III. GDP shares, 1310-2018'!G261","v":4.137906195803689},{"$f":"AJ259*'III. GDP shares, 1310-2018'!H261","v":0},{"$f":"AK259*'III. GDP shares, 1310-2018'!I261","v":0.8151107570469759},{"$f":"AL259*'III. GDP shares, 1310-2018'!J261","v":0},null,null,{"$f":"U259*'III. GDP shares, 1310-2018'!C261","v":1.8314446181475406},{"$f":"V259*'III. GDP shares, 1310-2018'!D261","v":-1.4182023397638996},{"$f":"W259*'III. GDP shares, 1310-2018'!E261","v":1.1978498368894088},{"$f":"X259*'III. GDP shares, 1310-2018'!F261","v":1.0568376192237299},{"$f":"Y259*'III. GDP shares, 1310-2018'!G261","v":6.217080568358451},{"$f":"Z259*'III. GDP shares, 1310-2018'!H261","v":0},{"$f":"AA259*'III. GDP shares, 1310-2018'!I261","v":-0.442333343492845},{"$f":"AB259*'III. GDP shares, 1310-2018'!J261","v":0},null,null,9.985176075420691,10.80271086305025,null,8.442676959362387,9.064610603552504,{"$f":"AVERAGE(BL256:BL262)","v":2.072344254518335},1.9019495288293145,null,null,-0.30240940238405045]
[{"$f":"'[1]Nominal weighted'!B260","v":1566},null,13.603140830939612,9.564382455954245,25.90731919489142,-7.865027051973149,-15.795758888788122,null,-6.71433278731311,null,null,8.098203069737787,13.252697319869853,3.994945254664828,2.0918295612303908,{"$f":"AVERAGE(G257:G263)","v":12.552173408879456},null,6.2014550825621955,null,null,-2.8781408309396124,3.435617544045755,-19.90731919489142,13.183250495382534,30.863248661515396,null,13.51433278731311,{"$nulls":3},10.725,13,{"v":6,"d":"6.00"},5.318223443409385,15.067489772727274,null,6.800000000000001,{"$nulls":3},{"$f":"AE260*'III. GDP shares, 1310-2018'!C262","v":2.810466716277508},{"$f":"AF260*'III. GDP shares, 1310-2018'!D262","v":1.2477273400947613},{"$f":"AG260*'III. GDP shares, 1310-2018'!E262","v":0.18877157018295174},{"$f":"AH260*'III. GDP shares, 1310-2018'!F262","v":1.157417943764416},{"$f":"AI260*'III. GDP shares, 1310-2018'!G262","v":4.107495231641054},{"$f":"AJ260*'III. GDP shares, 1310-2018'!H262","v":0},{"$f":"AK260*'III. GDP shares, 1310-2018'!I262","v":0.8178492922655474},{"$f":"AL260*'III. GDP shares, 1310-2018'!J262","v":0},null,null,{"$f":"U260*'III. GDP shares, 1310-2018'!C262","v":-0.7542115627146919},{"$f":"V260*'III. GDP shares, 1310-2018'!D262","v":0.3297472261396235},{"$f":"W260*'III. GDP shares, 1310-2018'!E262","v":-0.6263226504254781},{"$f":"X260*'III. GDP shares, 1310-2018'!F262","v":2.8691029707309545},{"$f":"Y260*'III. GDP shares, 1310-2018'!G262","v":8.413521337813435},{"$f":"Z260*'III. GDP shares, 1310-2018'!H262","v":0},{"$f":"AA260*'III. GDP shares, 1310-2018'!I262","v":1.6253952214036924},{"$f":"AB260*'III. GDP shares, 1310-2018'!J262","v":0},null,null,9.485118869356109,10.329728094226239,null,11.857232542947536,6.368498243737626,{"$f":"AVERAGE(BL257:BL263)","v":1.8059834566673507},1.6005907470386844,null,null,-2.445484562676434]
[{"$f":"'[1]Nominal weighted'!B261","v":1567},null,10.603751207123203,20.18085743207638,-2.8212285024359014,-2.570982120850685,36.53078346535633,null,2.353375299472777,null,null,6.779727074935235,14.08534885236001,2.645500179943828,-1.12551055942174,{"$f":"AVERAGE(G258:G264)","v":13.698214568364586},null,5.7163666410946945,null,null,-3.528751207123203,-7.18085743207638,8.795038026245425,7.724670408680668,-21.569101773437136,null,4.446624700527224,{"$nulls":3},7.075,13,{"v":5.973809523809524,"d":"5.97"},5.153688287829983,14.961681691919194,null,6.800000000000001,{"$nulls":3},{"$f":"AE261*'III. GDP shares, 1310-2018'!C263","v":1.8510846541623},{"$f":"AF261*'III. GDP shares, 1310-2018'!D263","v":1.2511879980430927},{"$f":"AG261*'III. GDP shares, 1310-2018'!E263","v":0.18882014177131007},{"$f":"AH261*'III. GDP shares, 1310-2018'!F263","v":1.1218790124072329},{"$f":"AI261*'III. GDP shares, 1310-2018'!G263","v":4.0771175188996525},{"$f":"AJ261*'III. GDP shares, 1310-2018'!H263","v":0},{"$f":"AK261*'III. GDP shares, 1310-2018'!I263","v":0.8181809067760103},{"$f":"AL261*'III. GDP shares, 1310-2018'!J263","v":0},null,null,{"$f":"U261*'III. GDP shares, 1310-2018'!C263","v":-0.9232533155989333},{"$f":"V261*'III. GDP shares, 1310-2018'!D263","v":-0.691123279590193},{"$f":"W261*'III. GDP shares, 1310-2018'!E263","v":0.277993518270181},{"$f":"X261*'III. GDP shares, 1310-2018'!F263","v":1.6815424459656287},{"$f":"Y261*'III. GDP shares, 1310-2018'!G263","v":-5.877665660732936},{"$f":"Z261*'III. GDP shares, 1310-2018'!H263","v":0},{"$f":"AA261*'III. GDP shares, 1310-2018'!I263","v":0.5350210925838189},{"$f":"AB261*'III. GDP shares, 1310-2018'!J263","v":0},null,null,{"$f":"AVERAGE(AE261:AL261)","v":8.827363250593116},{"$f":"SUM(AO261:AV261)","v":9.308270232059598},null,{"$f":"SUM(AY261:BF261)","v":-4.997485199102434},{"$f":"AVERAGE(U261:AB261)","v":-1.8853962128639006},{"$f":"AVERAGE(BL258:BL264)","v":2.3811419914066767},2.2204348567920453,null,null,{"$f":"((AO261+SUM(AQ261:AV261))-((AY261+(SUM(BA261:BF261)))))","v":12.363444153528746}]
[{"$f":"'[1]Nominal weighted'!B262","v":1568},null,10.091360704740811,12.43368524392524,11.192607192754366,10.969300961217794,7.3809469409491735,null,11.68116500913535,null,null,5.0744783941959515,15.170958101975874,2.153098819817352,-1.9375720353055108,{"$f":"AVERAGE(G259:G265)","v":8.625880212877751},null,2.6910413656316714,null,null,-3.0288607047408114,0.5663147560747603,-5.244988145135319,-5.980147828967213,7.46755917016194,null,-4.88116500913535,{"$nulls":3},7.0625,13,{"v":5.947619047619048,"d":"5.95"},4.98915313225058,14.848506111111114,null,6.800000000000001,{"$nulls":3},{"$f":"AE262*'III. GDP shares, 1310-2018'!C264","v":1.8449344312561933},{"$f":"AF262*'III. GDP shares, 1310-2018'!D264","v":1.2546232236313855},{"$f":"AG262*'III. GDP shares, 1310-2018'!E264","v":0.1888546778163177},{"$f":"AH262*'III. GDP shares, 1310-2018'!F264","v":1.0863209730848076},{"$f":"AI262*'III. GDP shares, 1310-2018'!G264","v":4.04476576780609},{"$f":"AJ262*'III. GDP shares, 1310-2018'!H264","v":0},{"$f":"AK262*'III. GDP shares, 1310-2018'!I264","v":0.8185100842528948},{"$f":"AL262*'III. GDP shares, 1310-2018'!J264","v":0},null,null,{"$f":"U262*'III. GDP shares, 1310-2018'!C264","v":-0.7912282338626863},{"$f":"V262*'III. GDP shares, 1310-2018'!D264","v":0.054654741912041345},{"$f":"W262*'III. GDP shares, 1310-2018'!E264","v":-0.16654404701600214},{"$f":"X262*'III. GDP shares, 1310-2018'!F264","v":-1.3020967359693343},{"$f":"Y262*'III. GDP shares, 1310-2018'!G264","v":2.034179564901513},{"$f":"Z262*'III. GDP shares, 1310-2018'!H264","v":0},{"$f":"AA262*'III. GDP shares, 1310-2018'!I264","v":-0.5875415857175966},{"$f":"AB262*'III. GDP shares, 1310-2018'!J264","v":0},null,null,8.774629715163456,9.238009157847687,null,-0.7585762957520649,-1.8502146269569988,{"$f":"AVERAGE(BL259:BL265)","v":4.507675841428634},3.78091657786551,null,null,8.79661697188041]
[{"$f":"'[1]Nominal weighted'!B263","v":1569},null,-9.204151821228496,4.468009180642483,11.015967154375232,-2.6676133048808275,27.68231412824418,null,5.340538019934721,null,null,5.055261825435651,11.169492119957487,3.0050333429482947,-0.04740625705969949,{"$f":"AVERAGE(G260:G266)","v":10.998609539443791},null,2.558668797147273,null,null,15.941651821228497,8.531990819357517,-5.094538582946662,8.156766437131408,-12.946983597941147,null,1.45946198006528,{"$nulls":3},6.7375,13,{"v":5.921428571428572,"d":"5.92"},5.48915313225058,14.735330530303033,null,6.800000000000001,{"$nulls":3},{"$f":"AE263*'III. GDP shares, 1310-2018'!C265","v":1.7573076736142084},{"$f":"AF263*'III. GDP shares, 1310-2018'!D265","v":1.258033296186705},{"$f":"AG263*'III. GDP shares, 1310-2018'!E265","v":0.18887533247225458},{"$f":"AH263*'III. GDP shares, 1310-2018'!F265","v":1.1954718368251078},{"$f":"AI263*'III. GDP shares, 1310-2018'!G265","v":4.0124480288359985},{"$f":"AJ263*'III. GDP shares, 1310-2018'!H265","v":0},{"$f":"AK263*'III. GDP shares, 1310-2018'!I265","v":0.8188368514624715},{"$f":"AL263*'III. GDP shares, 1310-2018'!J265","v":0},null,null,{"$f":"U263*'III. GDP shares, 1310-2018'!C265","v":4.1579795288357335},{"$f":"V263*'III. GDP shares, 1310-2018'!D265","v":0.8256560410393109},{"$f":"W263*'III. GDP shares, 1310-2018'!E265","v":-0.16250008879438976},{"$f":"X263*'III. GDP shares, 1310-2018'!F265","v":1.7764460783320943},{"$f":"Y263*'III. GDP shares, 1310-2018'!G265","v":-3.5254790321871807},{"$f":"Z263*'III. GDP shares, 1310-2018'!H265","v":0},{"$f":"AA263*'III. GDP shares, 1310-2018'!I265","v":0.17574430185085854},{"$f":"AB263*'III. GDP shares, 1310-2018'!J265","v":0},null,null,8.780568705663697,9.230973019396746,null,3.2478468290764266,2.674724812815816,{"$f":"AVERAGE(BL260:BL266)","v":3.5645041811726004},3.378742903029579,null,null,5.550748935172925]
[{"$f":"'[1]Nominal weighted'!B264","v":1570},null,-5.000769874565184,14.950765990101942,-4.840610110783775,-14.328997159621268,11.906349355365066,null,2.33717727084772,null,null,5.437328699545593,10.498827945899484,-2.9542539991613395,1.2147461431857163,{"$f":"AVERAGE(G261:G267)","v":10.9351729582177},null,5.494928119301095,null,null,11.488269874565184,-1.9507659901019423,11.73584820602187,19.31815029187185,2.715805594129886,null,4.462822729152281,{"$nulls":3},6.4875,13,{"v":6.895238095238096,"d":"6.90"},4.98915313225058,14.622154949494952,null,6.800000000000001,{"$nulls":3},{"$f":"AE264*'III. GDP shares, 1310-2018'!C266","v":1.6894946808510671},{"$f":"AF264*'III. GDP shares, 1310-2018'!D266","v":1.2614184909605228},{"$f":"AG264*'III. GDP shares, 1310-2018'!E266","v":0.2209220590216164},{"$f":"AH264*'III. GDP shares, 1310-2018'!F266","v":1.0868327986101145},{"$f":"AI264*'III. GDP shares, 1310-2018'!G266","v":3.980163929792238},{"$f":"AJ264*'III. GDP shares, 1310-2018'!H266","v":0},{"$f":"AK264*'III. GDP shares, 1310-2018'!I266","v":0.8191612347804713},{"$f":"AL264*'III. GDP shares, 1310-2018'!J266","v":0},null,null,{"$f":"U264*'III. GDP shares, 1310-2018'!C266","v":2.991810534914749},{"$f":"V264*'III. GDP shares, 1310-2018'!D266","v":-0.18928709934242324},{"$f":"W264*'III. GDP shares, 1310-2018'!E266","v":0.37601424551677753},{"$f":"X264*'III. GDP shares, 1310-2018'!F266","v":4.20824913349871},{"$f":"Y264*'III. GDP shares, 1310-2018'!G266","v":0.739244762719267},{"$f":"Z264*'III. GDP shares, 1310-2018'!H266","v":0},{"$f":"AA264*'III. GDP shares, 1310-2018'!I266","v":0.5376134378556963},{"$f":"AB264*'III. GDP shares, 1310-2018'!J266","v":0},null,null,8.799007696163939,9.05799319401603,null,8.663645015162777,7.961688450939856,{"$f":"AVERAGE(BL261:BL267)","v":2.9071815246682826},3.5570540998463183,null,null,-1.0563574114496914]
[{"$f":"'[1]Nominal weighted'!B265","v":1571},null,{"$f":"AE265-U265","v":10.280959656572696},{"$f":"AF265-V265","v":16.781434159320995},{"$f":"AG265-W265","v":5.519541470853361},{"$f":"AH265-X265","v":2.274797119995786},{"$f":"AI265-Y265","v":0.30065583158323683},null,{"$f":"AK265-AA265","v":-6.61991247079108},null,null,5.19622705992833,6.668252674381244,-1.7987130082388685,1.7681863013558856,{"$f":"AVERAGE(G262:G268)","v":7.377581309449053},null,5.575400260213574,null,null,-3.768459656572697,-3.7814341593209946,0.3495061481942584,4.367180302806711,14.208323537103634,null,13.41991247079108,{"$nulls":3},6.512499999999999,13,{"v":5.8690476190476195,"d":"5.87"},6.641977422802497,14.508979368686871,null,6.800000000000001,{"$nulls":3},{"$f":"AE265*'III. GDP shares, 1310-2018'!C267","v":1.6934074624790993},{"$f":"AF265*'III. GDP shares, 1310-2018'!D267","v":1.264779079202777},{"$f":"AG265*'III. GDP shares, 1310-2018'!E267","v":0.1888756030287659},{"$f":"AH265*'III. GDP shares, 1310-2018'!F267","v":1.4472195887872956},{"$f":"AI265*'III. GDP shares, 1310-2018'!G267","v":3.947913103888566},{"$f":"AJ265*'III. GDP shares, 1310-2018'!H267","v":0},{"$f":"AK265*'III. GDP shares, 1310-2018'!I267","v":0.819483260199181},{"$f":"AL265*'III. GDP shares, 1310-2018'!J267","v":0},null,null,{"$f":"U265*'III. GDP shares, 1310-2018'!C267","v":-0.9798906264094633},{"$f":"V265*'III. GDP shares, 1310-2018'!D267","v":-0.36789837031476424},{"$f":"W265*'III. GDP shares, 1310-2018'!E267","v":0.011247682552141884},{"$f":"X265*'III. GDP shares, 1310-2018'!F267","v":0.9515643429153887},{"$f":"Y265*'III. GDP shares, 1310-2018'!G267","v":3.8661042414519935},{"$f":"Z265*'III. GDP shares, 1310-2018'!H267","v":0},{"$f":"AA265*'III. GDP shares, 1310-2018'!I267","v":1.6172637681105178},{"$f":"AB265*'III. GDP shares, 1310-2018'!J267","v":0},null,null,8.888750735089497,9.361678097585685,null,5.098391038305815,4.1325047738336655,{"$f":"AVERAGE(BL262:BL268)","v":4.10440846344946},4.456605949085777,null,null,2.6306096097623293]
[{"$f":"'[1]Nominal weighted'!B266","v":1572},null,5.012542074466914,-0.19268962231886633,-24.93836299901664,13.856677756694456,8.984975943396659,null,9.53267123874453,null,null,3.4171162198712106,8.18099470235531,0.0761854573435795,3.1499278507387487,{"$f":"AVERAGE(G263:G269)","v":12.46830207507515},null,4.64425322033964,null,null,1.2124579255330856,10.192689622318866,30.78122014187378,-7.368155017257398,5.4108278444821325,null,-2.7326712387445293,{"$nulls":3},6.225,10,{"v":5.842857142857143,"d":"5.84"},6.488522739437059,14.39580378787879,null,6.800000000000001,{"$nulls":3},{"$f":"AE266*'III. GDP shares, 1310-2018'!C268","v":1.6161853819791845},{"$f":"AF266*'III. GDP shares, 1310-2018'!D268","v":0.9754733294110207},{"$f":"AG266*'III. GDP shares, 1310-2018'!E268","v":0.18885551615436225},{"$f":"AH266*'III. GDP shares, 1310-2018'!F268","v":1.414110176102139},{"$f":"AI266*'III. GDP shares, 1310-2018'!G268","v":3.9156951896516747},{"$f":"AJ266*'III. GDP shares, 1310-2018'!H268","v":0},{"$f":"AK266*'III. GDP shares, 1310-2018'!I268","v":0.8198029533343879},{"$f":"AL266*'III. GDP shares, 1310-2018'!J268","v":0},null,null,{"$f":"U266*'III. GDP shares, 1310-2018'!C268","v":0.3147882370299405},{"$f":"V266*'III. GDP shares, 1310-2018'!D268","v":0.9942696881536544},{"$f":"W266*'III. GDP shares, 1310-2018'!E268","v":0.9949247560949235},{"$f":"X266*'III. GDP shares, 1310-2018'!F268","v":-1.6058174421849525},{"$f":"Y266*'III. GDP shares, 1310-2018'!G268","v":1.4717589149493358},{"$f":"Z266*'III. GDP shares, 1310-2018'!H268","v":0},{"$f":"AA266*'III. GDP shares, 1310-2018'!I268","v":-0.32944881647275076},{"$f":"AB266*'III. GDP shares, 1310-2018'!J268","v":0},null,null,8.2920306116955,8.93012254663277,null,1.8404753375701512,6.24939487970099,{"$f":"AVERAGE(BL263:BL269)","v":2.780548143266188},3.2161383407299198,null,null,7.108443567805251]
[{"$f":"'[1]Nominal weighted'!B267","v":1573},null,16.2776089497092,4.869733237548218,-15.807692199876023,0.9700397497447604,-16.239814957370754,null,13.839482467763652,null,null,5.499557686515183,8.711929551533453,1.1671992888917349,5.025832871651372,{"$f":"AVERAGE(G264:G270)","v":10.725404172737143},null,3.5260697515863013,null,null,-10.527608949709201,5.130266762451782,21.62435886654269,5.518798186099059,30.993727331108133,null,-7.039482467763652,{"$nulls":3},5.75,10,{"v":5.816666666666667,"d":"5.82"},6.4888379358438195,14.753912373737377,null,6.800000000000001,{"$nulls":3},{"$f":"AE267*'III. GDP shares, 1310-2018'!C269","v":1.4906014044289226},{"$f":"AF267*'III. GDP shares, 1310-2018'!D269","v":0.9780211550137196},{"$f":"AG267*'III. GDP shares, 1310-2018'!E269","v":0.18882214242003645},{"$f":"AH267*'III. GDP shares, 1310-2018'!F269","v":1.4145033355900984},{"$f":"AI267*'III. GDP shares, 1310-2018'!G269","v":4.011654081857247},{"$f":"AJ267*'III. GDP shares, 1310-2018'!H269","v":0},{"$f":"AK267*'III. GDP shares, 1310-2018'!I269","v":0.82012033943217},{"$f":"AL267*'III. GDP shares, 1310-2018'!J269","v":0},null,null,{"$f":"U267*'III. GDP shares, 1310-2018'!C269","v":-2.7291249888200055},{"$f":"V267*'III. GDP shares, 1310-2018'!D269","v":0.5017509424541587},{"$f":"W267*'III. GDP shares, 1310-2018'!E269","v":0.7019755477891635},{"$f":"X267*'III. GDP shares, 1310-2018'!F269","v":1.203044138236834},{"$f":"Y267*'III. GDP shares, 1310-2018'!G269","v":8.427331653476152},{"$f":"Z267*'III. GDP shares, 1310-2018'!H269","v":0},{"$f":"AA267*'III. GDP shares, 1310-2018'!I269","v":-0.8490033457189905},{"$f":"AB267*'III. GDP shares, 1310-2018'!J269","v":0},null,null,8.268236162707977,8.903722458742195,null,7.255973947417312,7.616676621454801,{"$f":"AVERAGE(BL264:BL270)","v":2.321966092505662},2.694482048292753,null,null,1.1714782987653223]
[{"$f":"'[1]Nominal weighted'!B268","v":1574},null,8.916039729802367,-6.633169468551301,5.267558434021398,1.3030989863404976,11.62764192397581,null,2.916680285860123,null,null,8.214711495706421,6.7923695135900335,0.286311358134459,8.646609718249312,{"$f":"AVERAGE(G265:G271)","v":11.303663742519857},null,4.9669638755521675,null,null,-3.041039729802368,16.6331694685513,0.522917756454794,5.186054145910083,3.4843790356201527,null,3.6833197141398775,{"$nulls":3},5.875,10,{"v":5.790476190476191,"d":"5.79"},6.48915313225058,15.112020959595963,null,6.6000000000000005,{"$nulls":3},{"$f":"AE268*'III. GDP shares, 1310-2018'!C270","v":1.5207126525256442},{"$f":"AF268*'III. GDP shares, 1310-2018'!D270","v":0.9805506605593286},{"$f":"AG268*'III. GDP shares, 1310-2018'!E270","v":0.18877562513388946},{"$f":"AH268*'III. GDP shares, 1310-2018'!F270","v":1.4148941934279817},{"$f":"AI268*'III. GDP shares, 1310-2018'!G270","v":4.107553364968874},{"$f":"AJ268*'III. GDP shares, 1310-2018'!H270","v":0},{"$f":"AK268*'III. GDP shares, 1310-2018'!I270","v":0.7963049891586159},{"$f":"AL268*'III. GDP shares, 1310-2018'!J270","v":0},null,null,{"$f":"U268*'III. GDP shares, 1310-2018'!C270","v":-0.7871570372670005},{"$f":"V268*'III. GDP shares, 1310-2018'!D270","v":1.6309665309583237},{"$f":"W268*'III. GDP shares, 1310-2018'!E270","v":0.017047669849799822},{"$f":"X268*'III. GDP shares, 1310-2018'!F270","v":1.1307666421652784},{"$f":"Y268*'III. GDP shares, 1310-2018'!G270","v":0.94707867801761},{"$f":"Z268*'III. GDP shares, 1310-2018'!H270","v":0},{"$f":"AA268*'III. GDP shares, 1310-2018'!I270","v":0.44440088864179866},{"$f":"AB268*'III. GDP shares, 1310-2018'!J270","v":0},null,null,8.311108380387122,9.008791485774333,null,3.38310337236581,4.411466731812307,{"$f":"AVERAGE(BL265:BL271)","v":0.7114109048774498},1.6961120478309717,null,null,6.276103983807517]
[{"$f":"'[1]Nominal weighted'!B269","v":1575},null,-2.362415175659023,23.022879439743704,24.3168964518315,20.64149180689784,43.01599230033185,null,5.163135730017803,null,null,6.1899154678937025,6.876284988650783,-0.3951362508781592,9.05566853105505,{"$f":"AVERAGE(G266:G272)","v":14.4637014013009},null,5.451578967363102,null,null,8.835900024143871,-13.022879439743704,-18.552610737545784,-14.152338674647257,-27.545862754877305,null,1.2368642699821972,{"$nulls":3},6.473484848484849,10,{"v":5.764285714285715,"d":"5.76"},6.48915313225058,15.470129545454549,null,6.4,{"$nulls":3},{"$f":"AE269*'III. GDP shares, 1310-2018'!C271","v":1.6731186600613386},{"$f":"AF269*'III. GDP shares, 1310-2018'!D271","v":0.9830620429346554},{"$f":"AG269*'III. GDP shares, 1310-2018'!E271","v":0.18871610555050056},{"$f":"AH269*'III. GDP shares, 1310-2018'!F271","v":1.415214033428407},{"$f":"AI269*'III. GDP shares, 1310-2018'!G271","v":4.203393679609243},{"$f":"AJ269*'III. GDP shares, 1310-2018'!H271","v":0},{"$f":"AK269*'III. GDP shares, 1310-2018'!I271","v":0.7724689785326742},{"$f":"AL269*'III. GDP shares, 1310-2018'!J271","v":0},null,null,{"$f":"U269*'III. GDP shares, 1310-2018'!C271","v":2.283701832142497},{"$f":"V269*'III. GDP shares, 1310-2018'!D271","v":-1.2802298466926165},{"$f":"W269*'III. GDP shares, 1310-2018'!E271","v":-0.6073912050381234},{"$f":"X269*'III. GDP shares, 1310-2018'!F271","v":-3.086471823056829},{"$f":"Y269*'III. GDP shares, 1310-2018'!G271","v":-7.484494881767509},{"$f":"Z269*'III. GDP shares, 1310-2018'!H271","v":0},{"$f":"AA269*'III. GDP shares, 1310-2018'!I271","v":0.14928738737761085},{"$f":"AB269*'III. GDP shares, 1310-2018'!J271","v":0},null,null,8.432842206745947,9.235973500116819,null,-10.025598537034972,-10.533487885447995,{"$f":"AVERAGE(BL266:BL272)","v":0.1681722069270248},1.356335592901583,null,null,16.998280147524518]
[{"$f":"'[1]Nominal weighted'!B270","v":1576},null,5.372938445279308,8.184553124889476,18.653063975212326,10.46372184150753,15.482028811878124,null,-2.4867462613386415,null,null,4.5596379375429565,8.310851616311714,4.470412307836628,5.893871067994188,{"$f":"AVERAGE(G267:G273)","v":16.023288194074592},null,4.823679870904984,null,null,0.8240312516903887,1.8154468751105242,-12.914968737117086,-3.97456870925695,-0.49790234723165505,null,8.886746261338642,{"$nulls":3},6.196969696969697,10,{"v":5.738095238095239,"d":"5.74"},6.48915313225058,14.984126464646469,null,6.4,{"$nulls":3},{"$f":"AE270*'III. GDP shares, 1310-2018'!C272","v":1.5992670058087455},{"$f":"AF270*'III. GDP shares, 1310-2018'!D272","v":0.985555496215305},{"$f":"AG270*'III. GDP shares, 1310-2018'!E272","v":0.18864372290757836},{"$f":"AH270*'III. GDP shares, 1310-2018'!F272","v":1.41553159004829},{"$f":"AI270*'III. GDP shares, 1310-2018'!G272","v":4.06990286648411},{"$f":"AJ270*'III. GDP shares, 1310-2018'!H272","v":0},{"$f":"AK270*'III. GDP shares, 1310-2018'!I272","v":0.7727613200514821},{"$f":"AL270*'III. GDP shares, 1310-2018'!J272","v":0},null,null,{"$f":"U270*'III. GDP shares, 1310-2018'!C272","v":0.2126597445245124},{"$f":"V270*'III. GDP shares, 1310-2018'!D272","v":0.17892236458520774},{"$f":"W270*'III. GDP shares, 1310-2018'!E272","v":-0.4245882444804963},{"$f":"X270*'III. GDP shares, 1310-2018'!F272","v":-0.8670049003481302},{"$f":"Y270*'III. GDP shares, 1310-2018'!G272","v":-0.13523739238376017},{"$f":"Z270*'III. GDP shares, 1310-2018'!H272","v":0},{"$f":"AA270*'III. GDP shares, 1310-2018'!I272","v":1.0730209018554098},{"$f":"AB270*'III. GDP shares, 1310-2018'!J272","v":0},null,null,8.301390755326997,9.03166200151551,null,0.037772473752743174,-0.9768692342443558,{"$f":"AVERAGE(BL267:BL273)","v":0.6241997377804559},0.9358097479322989,null,null,8.187256396132671]
[{"$f":"'[1]Nominal weighted'!B271","v":1577},null,14.005306789773485,1.5138457244980117,-11.006825626084709,11.016440766564315,15.954166343844069,null,12.423436138608782,null,null,2.490276447248571,9.945467186785121,6.0555029234351725,6.357557976432509,{"$f":"AVERAGE(G268:G274)","v":19.72770124585174},null,3.93712833076703,null,null,-7.834852244318941,8.486154275501988,16.71873038798947,-4.527287634313734,-0.9807179600056815,null,-6.023436138608781,{"$nulls":3},6.170454545454545,10,{"v":5.711904761904763,"d":"5.71"},6.48915313225058,14.973448383838388,null,6.4,{"$nulls":3},{"$f":"AE271*'III. GDP shares, 1310-2018'!C273","v":1.5900669400683676},{"$f":"AF271*'III. GDP shares, 1310-2018'!D273","v":0.9880312117156748},{"$f":"AG271*'III. GDP shares, 1310-2018'!E273","v":0.18855861446182953},{"$f":"AH271*'III. GDP shares, 1310-2018'!F273","v":1.415846887652697},{"$f":"AI271*'III. GDP shares, 1310-2018'!G273","v":4.065575034319067},{"$f":"AJ271*'III. GDP shares, 1310-2018'!H273","v":0},{"$f":"AK271*'III. GDP shares, 1310-2018'!I273","v":0.7730515819285064},{"$f":"AL271*'III. GDP shares, 1310-2018'!J273","v":0},null,null,{"$f":"U271*'III. GDP shares, 1310-2018'!C273","v":-2.0189662596557203},{"$f":"V271*'III. GDP shares, 1310-2018'!D273","v":0.8384585291630383},{"$f":"W271*'III. GDP shares, 1310-2018'!E273","v":0.5519105743053253},{"$f":"X271*'III. GDP shares, 1310-2018'!F273","v":-0.9877939348810733},{"$f":"Y271*'III. GDP shares, 1310-2018'!G273","v":-0.26628351410427237},{"$f":"Z271*'III. GDP shares, 1310-2018'!H273","v":0},{"$f":"AA271*'III. GDP shares, 1310-2018'!I273","v":-0.7275666930620082},{"$f":"AB271*'III. GDP shares, 1310-2018'!J273","v":0},null,null,8.290826803908045,9.021130270146141,null,-2.61024129823471,0.9730984477073871,{"$f":"AVERAGE(BL268:BL274)","v":-0.03334891530568283},0.20200268038559743,null,null,11.481798885828216]
[{"$f":"'[1]Nominal weighted'!B272","v":1578},null,-3.892612538116339,17.36884248474624,0.7494082077650344,5.138208809635939,22.42091944305055,null,-3.2276068281145385,null,null,3.120082344800603,10.173110400632167,6.603571851860904,7.60706245046908,{"$f":"AVERAGE(G269:G275)","v":20.650455468906056},null,5.254882883477017,null,null,9.436551932055732,-7.368842484746239,4.9363060779492525,1.3509443226146414,-7.458149140020243,null,9.627606828114539,{"$nulls":3},5.543939393939393,10,{"v":5.685714285714287,"d":"5.69"},6.48915313225058,14.962770303030307,null,6.4,{"$nulls":3},{"$f":"AE272*'III. GDP shares, 1310-2018'!C274","v":1.4265171137420822},{"$f":"AF272*'III. GDP shares, 1310-2018'!D274","v":0.9904893780378882},{"$f":"AG272*'III. GDP shares, 1310-2018'!E274","v":0.18846091552406485},{"$f":"AH272*'III. GDP shares, 1310-2018'!F274","v":1.4161599502612692},{"$f":"AI272*'III. GDP shares, 1310-2018'!G274","v":4.061259349919185},{"$f":"AJ272*'III. GDP shares, 1310-2018'!H274","v":0},{"$f":"AK272*'III. GDP shares, 1310-2018'!I274","v":0.7733397862761455},{"$f":"AL272*'III. GDP shares, 1310-2018'!J274","v":0},null,null,{"$f":"U272*'III. GDP shares, 1310-2018'!C274","v":2.428129506702283},{"$f":"V272*'III. GDP shares, 1310-2018'!D274","v":-0.7298760209575468},{"$f":"W272*'III. GDP shares, 1310-2018'!E274","v":0.1636207371683732},{"$f":"X272*'III. GDP shares, 1310-2018'!F274","v":0.2948232543953191},{"$f":"Y272*'III. GDP shares, 1310-2018'!G274","v":-2.0243228569688476},{"$f":"Z272*'III. GDP shares, 1310-2018'!H274","v":0},{"$f":"AA272*'III. GDP shares, 1310-2018'!I274","v":1.1633455323132589},{"$f":"AB272*'III. GDP shares, 1310-2018'!J274","v":0},null,null,8.180262852489095,8.856226493760634,null,1.29572015265284,1.754069589327947,{"$f":"AVERAGE(BL269:BL275)","v":-0.9196228855140086},-0.6220947951840972,null,null,5.84014094211236]
[{"$f":"'[1]Nominal weighted'!B273","v":1579},null,-6.399400637988307,9.849276771307657,9.120476911986872,-8.275904484731567,19.9020834928125,null,5.137377563537704,null,null,4.143112061188268,8.41790451576595,5.0010997683277525,5.79338280147172,{"$f":"AVERAGE(G270:G276)","v":15.868814456426735},null,3.635477722421055,null,null,12.066824880412549,0.15072322869234256,-3.460953102463061,14.765057616982148,-4.949991270590276,null,1.2626224364622964,{"$nulls":3},5.667424242424242,10,{"v":5.659523809523811,"d":"5.66"},6.48915313225058,14.952092222222227,null,6.4,{"$nulls":3},{"$f":"AE273*'III. GDP shares, 1310-2018'!C275","v":1.4561565982805573},{"$f":"AF273*'III. GDP shares, 1310-2018'!D275","v":0.9929301811196887},{"$f":"AG273*'III. GDP shares, 1310-2018'!E275","v":0.1883507594935611},{"$f":"AH273*'III. GDP shares, 1310-2018'!F275","v":1.4164708015543221},{"$f":"AI273*'III. GDP shares, 1310-2018'!G275","v":4.056955684575985},{"$f":"AJ273*'III. GDP shares, 1310-2018'!H275","v":0},{"$f":"AK273*'III. GDP shares, 1310-2018'!I275","v":0.7736259548944155},{"$f":"AL273*'III. GDP shares, 1310-2018'!J275","v":0},null,null,{"$f":"U273*'III. GDP shares, 1310-2018'!C275","v":3.10038315790396},{"$f":"V273*'III. GDP shares, 1310-2018'!D275","v":0.014965764276443194},{"$f":"W273*'III. GDP shares, 1310-2018'!E275","v":-0.11518162434859734},{"$f":"X273*'III. GDP shares, 1310-2018'!F275","v":3.2229587700404485},{"$f":"Y273*'III. GDP shares, 1310-2018'!G275","v":-1.3430826218404697},{"$f":"Z273*'III. GDP shares, 1310-2018'!H275","v":0},{"$f":"AA273*'III. GDP shares, 1310-2018'!I275","v":0.152624607512384},{"$f":"AB273*'III. GDP shares, 1310-2018'!J275","v":0},null,null,8.194698901070144,8.884489979918529,null,5.032668053544168,3.3057139649160003,{"$f":"AVERAGE(BL270:BL276)","v":0.9033193123215967},1.1202569327692844,null,null,2.873857509531116]
[{"$f":"'[1]Nominal weighted'!B274","v":1580},null,1.792078517648501,16.312042230862062,-4.71205789068622,4.215848108813004,9.691076405069277,null,7.633621686797978,null,null,3.948827706943102,9.372115385614245,3.8188240958563138,5.021307776702879,{"$f":"AVERAGE(G271:G277)","v":14.283579151243341},null,3.9176593480817914,null,null,4.43633057326059,-6.312042230862062,10.345391224019554,2.39376727580238,5.2503377363448696,null,-1.2336216867979775,{"$nulls":3},6.228409090909091,10,{"v":5.633333333333335,"d":"5.63"},6.609615384615385,14.941414141414146,null,6.4,{"$nulls":3},{"$f":"AE274*'III. GDP shares, 1310-2018'!C276","v":1.5979636276665603},{"$f":"AF274*'III. GDP shares, 1310-2018'!D276","v":0.9953538042813241},{"$f":"AG274*'III. GDP shares, 1310-2018'!E276","v":0.18822827789169772},{"$f":"AH274*'III. GDP shares, 1310-2018'!F276","v":1.4430800378450028},{"$f":"AI274*'III. GDP shares, 1310-2018'!G276","v":4.052663911392851},{"$f":"AJ274*'III. GDP shares, 1310-2018'!H276","v":0},{"$f":"AK274*'III. GDP shares, 1310-2018'!I276","v":0.7739101092764483},{"$f":"AL274*'III. GDP shares, 1310-2018'!J276","v":0},null,null,{"$f":"U274*'III. GDP shares, 1310-2018'!C276","v":1.138187102501459},{"$f":"V274*'III. GDP shares, 1310-2018'!D276","v":-0.6282715247272929},{"$f":"W274*'III. GDP shares, 1310-2018'!E276","v":0.3456736995644526},{"$f":"X274*'III. GDP shares, 1310-2018'!F276","v":0.5226321911252996},{"$f":"Y274*'III. GDP shares, 1310-2018'!G276","v":1.424085703355989},{"$f":"Z274*'III. GDP shares, 1310-2018'!H276","v":0},{"$f":"AA274*'III. GDP shares, 1310-2018'!I276","v":-0.1491737960055655},{"$f":"AB274*'III. GDP shares, 1310-2018'!J276","v":0},null,null,8.302128658378658,9.051199768353884,null,2.653133375814342,2.4800271486278924,{"$f":"AVERAGE(BL271:BL277)","v":1.4667936296697708},1.5431412124310917,null,null,4.774441063530926]
[{"$f":"'[1]Nominal weighted'!B275","v":1581},null,13.324681012666595,-5.039666971621983,9.104040933001524,10.0496303045965,18.08692148535602,null,12.140962154830031,null,null,3.4939950847264094,10.620437366578404,6.3743338213124465,4.597706626587543,{"$f":"AVERAGE(G272:G278)","v":14.480587049347516},null,2.468247691896239,null,null,-7.847787073272657,15.039666971621983,-3.4968980758586654,-2.9209978259640215,-3.1763154247499545,null,-5.740962154830031,{"$nulls":3},5.476893939393939,10,{"v":5.6071428571428585,"d":"5.61"},7.128632478632478,14.910606060606066,null,6.4,{"$nulls":3},{"$f":"AE275*'III. GDP shares, 1310-2018'!C277","v":1.4031206479201868},{"$f":"AF275*'III. GDP shares, 1310-2018'!D277","v":0.9977604282714442},{"$f":"AG275*'III. GDP shares, 1310-2018'!E277","v":0.18809360039488518},{"$f":"AH275*'III. GDP shares, 1310-2018'!F277","v":1.5567339553851132},{"$f":"AI275*'III. GDP shares, 1310-2018'!G277","v":4.042925770591849},{"$f":"AJ275*'III. GDP shares, 1310-2018'!H277","v":0},{"$f":"AK275*'III. GDP shares, 1310-2018'!I277","v":0.7741922706138717},{"$f":"AL275*'III. GDP shares, 1310-2018'!J277","v":0},null,null,{"$f":"U275*'III. GDP shares, 1310-2018'!C277","v":-2.010517677508375},{"$f":"V275*'III. GDP shares, 1310-2018'!D277","v":1.5005984558665444},{"$f":"W275*'III. GDP shares, 1310-2018'!E277","v":-0.11730468904752657},{"$f":"X275*'III. GDP shares, 1310-2018'!F277","v":-0.6378806191670303},{"$f":"Y275*'III. GDP shares, 1310-2018'!G277","v":-0.8612398070241833},{"$f":"Z275*'III. GDP shares, 1310-2018'!H277","v":0},{"$f":"AA275*'III. GDP shares, 1310-2018'!I277","v":-0.6944700822119012},{"$f":"AB275*'III. GDP shares, 1310-2018'!J277","v":0},null,null,8.253879222629223,8.962826673177352,null,-2.8208144190924718,-1.3572155971755577,{"$f":"AVERAGE(BL272:BL278)","v":1.5784351852934073},1.249021749143142,null,null,12.286479119864921]
[{"$f":"'[1]Nominal weighted'!B276","v":1582},null,4.798792839054631,10.736438245680176,13.09959186709943,7.945734263916319,9.544505212976613,null,-6.172700397373934,null,null,4.895305731745372,8.646293961960689,7.436352968349617,4.620791722304224,{"$f":"AVERAGE(G273:G279)","v":13.502817481117376},null,5.550951310420953,null,null,0.6230145202527279,-0.7364382456801764,-7.518639486147048,-0.29808469126674736,5.3352927668213725,null,12.572700397373934,{"$nulls":3},5.421807359307358,10,{"v":5.580952380952382,"d":"5.58"},7.647649572649572,14.879797979797985,null,6.4,{"$nulls":3},{"$f":"AE276*'III. GDP shares, 1310-2018'!C278","v":1.3870087034567888},{"$f":"AF276*'III. GDP shares, 1310-2018'!D278","v":1.000150231312036},{"$f":"AG276*'III. GDP shares, 1310-2018'!E278","v":0.18794685486680382},{"$f":"AH276*'III. GDP shares, 1310-2018'!F278","v":1.670434377083438},{"$f":"AI276*'III. GDP shares, 1310-2018'!G278","v":4.033202978510557},{"$f":"AJ276*'III. GDP shares, 1310-2018'!H278","v":0},{"$f":"AK276*'III. GDP shares, 1310-2018'!I278","v":0.7744724598020791},{"$f":"AL276*'III. GDP shares, 1310-2018'!J278","v":0},null,null,{"$f":"U276*'III. GDP shares, 1310-2018'!C278","v":0.15937979804595684},{"$f":"V276*'III. GDP shares, 1310-2018'!D278","v":-0.07365488817640584},{"$f":"W276*'III. GDP shares, 1310-2018'!E278","v":-0.25320134411495465},{"$f":"X276*'III. GDP shares, 1310-2018'!F278","v":-0.06510901301689312},{"$f":"Y276*'III. GDP shares, 1310-2018'!G278","v":1.4461432008408175},{"$f":"Z276*'III. GDP shares, 1310-2018'!H278","v":0},{"$f":"AA276*'III. GDP shares, 1310-2018'!I278","v":1.521439094235745},{"$f":"AB276*'III. GDP shares, 1310-2018'!J278","v":0},null,null,8.321701215451215,9.053215605031703,null,2.7349968478142657,1.662974210225677,{"$f":"AVERAGE(BL273:BL279)","v":1.2511394079203302},0.7950134177641824,null,null,5.244413637728996]
[{"$f":"'[1]Nominal weighted'!B277","v":1583},null,4.012947965563146,14.86402921382755,10.377134267912265,5.059196668125644,4.385381675594363,null,-0.511474881713486,null,null,2.8722612189363455,6.0054512734745265,6.303538307119014,4.762933032293084,{"$f":"AVERAGE(G274:G280)","v":8.937764447759543},null,6.577817170854904,null,null,1.1037728136576326,-4.86402921382755,-4.822372363150357,3.107469998541022,10.463608223395541,null,6.911474881713486,{"$nulls":3},5.1167207792207785,10,{"v":5.554761904761906,"d":"5.55"},8.166666666666666,14.848989898989904,null,6.4,{"$nulls":3},{"$f":"AE277*'III. GDP shares, 1310-2018'!C279","v":1.3070876299940672},{"$f":"AF277*'III. GDP shares, 1310-2018'!D279","v":1.0025233891424195},{"$f":"AG277*'III. GDP shares, 1310-2018'!E279","v":0.18778816738996776},{"$f":"AH277*'III. GDP shares, 1310-2018'!F279","v":1.7841808170810118},{"$f":"AI277*'III. GDP shares, 1310-2018'!G279","v":4.023495374790988},{"$f":"AJ277*'III. GDP shares, 1310-2018'!H279","v":0},{"$f":"AK277*'III. GDP shares, 1310-2018'!I279","v":0.7747506974453864},{"$f":"AL277*'III. GDP shares, 1310-2018'!J279","v":0},null,null,{"$f":"U277*'III. GDP shares, 1310-2018'!C279","v":0.28196336155660817},{"$f":"V277*'III. GDP shares, 1310-2018'!D279","v":-0.48763030523341333},{"$f":"W277*'III. GDP shares, 1310-2018'!E279","v":-0.1630284941235208},{"$f":"X277*'III. GDP shares, 1310-2018'!F279","v":0.6788924523736717},{"$f":"Y277*'III. GDP shares, 1310-2018'!G279","v":2.8352284954628972},{"$f":"Z277*'III. GDP shares, 1310-2018'!H279","v":0},{"$f":"AA277*'III. GDP shares, 1310-2018'!I279","v":0.8366671851537176},{"$f":"AB277*'III. GDP shares, 1310-2018'!J279","v":0},null,null,8.347856541606543,9.07982607584384,null,3.9820926951899605,1.983320723388296,{"$f":"AVERAGE(BL274:BL280)","v":3.1296168626072594},2.3068103216864237,null,null,3.607579686278047]
[{"$f":"'[1]Nominal weighted'!B278","v":1584},null,10.821478434256639,10.25209959124713,6.881742452108219,8.051232715756965,17.3332216305733,null,2.27755454530992,null,null,4.612301638165013,5.117551313196805,4.404077477752332,6.5485327621240685,{"$f":"AVERAGE(G275:G281)","v":5.213614934949491},null,5.889943071614842,null,null,-5.69734423512244,-0.25209959124713066,-1.3531710235367893,-0.21789938242363255,-2.526357994209657,null,3.5324454546900794,{"$nulls":3},5.124134199134199,10,{"v":5.52857142857143,"d":"5.53"},7.833333333333333,14.80686363636364,null,5.81,{"$nulls":3},{"$f":"AE278*'III. GDP shares, 1310-2018'!C280","v":1.3071180132763225},{"$f":"AF278*'III. GDP shares, 1310-2018'!D280","v":1.0048800750623277},{"$f":"AG278*'III. GDP shares, 1310-2018'!E280","v":0.18761766229663276},{"$f":"AH278*'III. GDP shares, 1310-2018'!F280","v":1.7117194201830193},{"$f":"AI278*'III. GDP shares, 1310-2018'!G280","v":4.010737043946857},{"$f":"AJ278*'III. GDP shares, 1310-2018'!H280","v":0},{"$f":"AK278*'III. GDP shares, 1310-2018'!I280","v":0.7035792019435481},{"$f":"AL278*'III. GDP shares, 1310-2018'!J280","v":0},null,null,{"$f":"U278*'III. GDP shares, 1310-2018'!C280","v":-1.4533384544891224},{"$f":"V278*'III. GDP shares, 1310-2018'!D280","v":-0.025332985617559877},{"$f":"W278*'III. GDP shares, 1310-2018'!E280","v":-0.04592122710244442},{"$f":"X278*'III. GDP shares, 1310-2018'!F280","v":-0.04761480057962787},{"$f":"Y278*'III. GDP shares, 1310-2018'!G280","v":-0.6843149124952949},{"$f":"Z278*'III. GDP shares, 1310-2018'!H280","v":0},{"$f":"AA278*'III. GDP shares, 1310-2018'!I280","v":0.42777197141479517},{"$f":"AB278*'III. GDP shares, 1310-2018'!J280","v":0},null,null,8.1838170995671,8.925651416708707,null,-1.8287504088692543,-1.0857377953082614,{"$f":"AVERAGE(BL275:BL281)","v":3.4899763549274216},2.875527713564156,null,null,9.724188764898072]
[{"$f":"'[1]Nominal weighted'!B279","v":1585},null,5.916561991016404,3.549838652422224,8.183542237025222,5.299804479652701,15.576532465439557,null,18.35131850155846,null,null,5.014130197440147,9.639250483721026,4.201658184779758,5.9478513386163225,{"$f":"AVERAGE(G276:G282)","v":8.623144939370619},null,4.31298447488981,null,null,-1.1600143719687852,6.450161347577776,-2.6811612846442676,2.2001955203472994,-0.8117950917021783,null,-12.54131850155846,{"$nulls":3},4.756547619047619,10,{"v":5.502380952380954,"d":"5.50"},7.5,14.764737373737379,null,5.81,{"$nulls":3},{"$f":"AE279*'III. GDP shares, 1310-2018'!C281","v":1.2116323971800471},{"$f":"AF279*'III. GDP shares, 1310-2018'!D281","v":1.0072204599740928},{"$f":"AG279*'III. GDP shares, 1310-2018'!E281","v":0.187435462199062},{"$f":"AH279*'III. GDP shares, 1310-2018'!F281","v":1.6392247889705334},{"$f":"AI279*'III. GDP shares, 1310-2018'!G281","v":3.997995627487951},{"$f":"AJ279*'III. GDP shares, 1310-2018'!H281","v":0},{"$f":"AK279*'III. GDP shares, 1310-2018'!I281","v":0.7038283013608293},{"$f":"AL279*'III. GDP shares, 1310-2018'!J281","v":0},null,null,{"$f":"U279*'III. GDP shares, 1310-2018'!C281","v":-0.29548973474867996},{"$f":"V279*'III. GDP shares, 1310-2018'!D281","v":0.6496734479414401},{"$f":"W279*'III. GDP shares, 1310-2018'!E281","v":-0.09133222671543148},{"$f":"X279*'III. GDP shares, 1310-2018'!F281","v":0.4808820050046953},{"$f":"Y279*'III. GDP shares, 1310-2018'!G281","v":-0.2198178772088749},{"$f":"Z279*'III. GDP shares, 1310-2018'!H281","v":0},{"$f":"AA279*'III. GDP shares, 1310-2018'!I281","v":-1.5192659032318472},{"$f":"AB279*'III. GDP shares, 1310-2018'!J281","v":0},null,null,8.055610990860993,8.747337037172516,null,-0.9953502889586981,-1.4239887303247691,{"$f":"AVERAGE(BL276:BL282)","v":2.294082236951828},1.838782277982602,null,null,9.38514031409856]
[{"$f":"'[1]Nominal weighted'!B280","v":1586},null,-20.560712227651493,-8.636622048095475,1.190774283372665,-7.280915314809543,-12.053287740692337,null,12.325438586575363,null,null,3.5455178123177506,8.935601524769071,3.8391323617538755,4.14598549978439,{"$f":"AVERAGE(G277:G283)","v":7.560951008411759},null,5.1121385476764205,null,null,25.699673266612532,18.636622048095475,4.285416192817813,14.44758198147621,26.775898851803454,null,-6.515438586575363,{"$nulls":3},5.138961038961039,10,{"v":5.476190476190478,"d":"5.48"},7.166666666666667,14.722611111111117,null,5.81,{"$nulls":3},{"$f":"AE280*'III. GDP shares, 1310-2018'!C282","v":1.3072012496918546},{"$f":"AF280*'III. GDP shares, 1310-2018'!D282","v":1.00954471242396},{"$f":"AG280*'III. GDP shares, 1310-2018'!E282","v":0.18724168801916607},{"$f":"AH280*'III. GDP shares, 1310-2018'!F282","v":1.5666972670737684},{"$f":"AI280*'III. GDP shares, 1310-2018'!G282","v":3.9852709505259396},{"$f":"AJ280*'III. GDP shares, 1310-2018'!H282","v":0},{"$f":"AK280*'III. GDP shares, 1310-2018'!I282","v":0.7040756837157429},{"$f":"AL280*'III. GDP shares, 1310-2018'!J282","v":0},null,null,{"$f":"U280*'III. GDP shares, 1310-2018'!C282","v":6.5372445434184865},{"$f":"V280*'III. GDP shares, 1310-2018'!D282","v":1.8814503246098582},{"$f":"W280*'III. GDP shares, 1310-2018'!E282","v":0.14652678085187285},{"$f":"X280*'III. GDP shares, 1310-2018'!F282","v":3.1583703078422785},{"$f":"Y280*'III. GDP shares, 1310-2018'!G282","v":7.247981425508142},{"$f":"Z280*'III. GDP shares, 1310-2018'!H282","v":0},{"$f":"AA280*'III. GDP shares, 1310-2018'!I282","v":-0.7895631458779659},{"$f":"AB280*'III. GDP shares, 1310-2018'!J282","v":0},null,null,8.052404882154883,8.760031551450432,null,18.18201023635267,13.888292292371688,{"$f":"AVERAGE(BL277:BL283)","v":3.346873314954362},2.608098155462309,null,null,-8.550073072716344]
[{"$f":"'[1]Nominal weighted'!B281","v":1587},null,13.972361452249165,10.096742508918013,-18.008283696253006,16.715046217629897,-16.377970184601075,null,2.8185029921175326,null,null,1.5995070761826269,6.417554594184277,2.3558130895814253,3.333637134050081,{"$f":"AVERAGE(G278:G284)","v":4.36816336153487},null,6.126867668393699,null,null,-8.763486993374707,-0.0967425089180125,23.45828369625301,-9.881712884296565,31.05845503308593,null,2.991497007882467,{"$nulls":3},5.208874458874458,10,{"v":5.450000000000002,"d":"5.45"},6.833333333333334,14.680484848484854,null,5.81,{"$nulls":3},{"$f":"AE281*'III. GDP shares, 1310-2018'!C283","v":1.3231298573133103},{"$f":"AF281*'III. GDP shares, 1310-2018'!D283","v":1.0118529986425502},{"$f":"AG281*'III. GDP shares, 1310-2018'!E283","v":0.18703645901753269},{"$f":"AH281*'III. GDP shares, 1310-2018'!F283","v":1.4941371934018683},{"$f":"AI281*'III. GDP shares, 1310-2018'!G283","v":3.972562840575247},{"$f":"AJ281*'III. GDP shares, 1310-2018'!H283","v":0},{"$f":"AK281*'III. GDP shares, 1310-2018'!I283","v":0.7043213667010838},{"$f":"AL281*'III. GDP shares, 1310-2018'!J283","v":0},null,null,{"$f":"U281*'III. GDP shares, 1310-2018'!C283","v":-2.2260531304139826},{"$f":"V281*'III. GDP shares, 1310-2018'!D283","v":-0.009788919774489459},{"$f":"W281*'III. GDP shares, 1310-2018'!E283","v":0.8050558380139228},{"$f":"X281*'III. GDP shares, 1310-2018'!F283","v":-2.1606782568213587},{"$f":"Y281*'III. GDP shares, 1310-2018'!G283","v":8.404467946632458},{"$f":"Z281*'III. GDP shares, 1310-2018'!H283","v":0},{"$f":"AA281*'III. GDP shares, 1310-2018'!I283","v":0.3626463444189298},{"$f":"AB281*'III. GDP shares, 1310-2018'!J283","v":0},null,null,7.997115440115441,8.693040715651593,null,5.17564982205548,6.46104889177202,{"$f":"AVERAGE(BL278:BL284)","v":5.014716926181445},4.055843546898586,null,null,2.4957489751790725]
[{"$f":"'[1]Nominal weighted'!B282","v":1588},null,16.13748092759253,26.612227222047565,7.687105882193513,5.844860340042281,41.95363151630391,null,1.1022519777548112,null,null,-1.885877258544238,6.555157162300347,1.8231518850487018,5.318637069622682,{"$f":"AVERAGE(G279:G285)","v":0.39273233191818263},null,6.876500047729967,null,null,-10.858693048804653,-16.612227222047565,-2.263296358383987,0.655139659957719,-27.315272930445317,null,4.707748022245188,{"$nulls":3},5.2787878787878775,10,{"v":5.423809523809526,"d":"5.42"},6.5,14.63835858585859,null,5.81,{"$nulls":3},{"$f":"AE282*'III. GDP shares, 1310-2018'!C284","v":1.3390215325919803},{"$f":"AF282*'III. GDP shares, 1310-2018'!D284","v":1.0141454825844893},{"$f":"AG282*'III. GDP shares, 1310-2018'!E284","v":0.18681989282185926},{"$f":"AH282*'III. GDP shares, 1310-2018'!F284","v":1.4215449022237066},{"$f":"AI282*'III. GDP shares, 1310-2018'!G284","v":3.959871127511936},{"$f":"AJ282*'III. GDP shares, 1310-2018'!H284","v":0},{"$f":"AK282*'III. GDP shares, 1310-2018'!I284","v":0.7045653677674012},{"$f":"AL282*'III. GDP shares, 1310-2018'!J284","v":0},null,null,{"$f":"U282*'III. GDP shares, 1310-2018'!C284","v":-2.754424716814912},{"$f":"V282*'III. GDP shares, 1310-2018'!D284","v":-1.684721519290662},{"$f":"W282*'III. GDP shares, 1310-2018'!E284","v":-0.0779578967958333},{"$f":"X282*'III. GDP shares, 1310-2018'!F284","v":0.14327852982422584},{"$f":"Y282*'III. GDP shares, 1310-2018'!G284","v":-7.3891454416119915},{"$f":"Z282*'III. GDP shares, 1310-2018'!H284","v":0},{"$f":"AA282*'III. GDP shares, 1310-2018'!I284","v":0.5708977997675451},{"$f":"AB282*'III. GDP shares, 1310-2018'!J284","v":0},null,null,7.941825998075999,8.625968305501374,null,-11.192073244921628,-8.614433646246436,{"$f":"AVERAGE(BL279:BL285)","v":6.419274690425999},4.883714567240263,null,null,17.11917454854785]
[{"$f":"'[1]Nominal weighted'!B283","v":1589},null,-5.481493856802141,5.810895533016492,10.561911105918249,-4.667326607907206,2.1091476962645963,null,-0.5786218878676532,null,null,-1.5190721117330632,8.948924112858352,3.548488717480226,5.20913950854586,{"$f":"AVERAGE(G280:G286)","v":3.5386333770564216},null,3.9933215909291206,null,null,10.721266584074867,4.189104466983508,-5.164292058299198,13.667326607907206,12.487084626967732,null,6.388621887867653,{"$nulls":3},5.239772727272726,10,{"v":5.39761904761905,"d":"5.40"},9,14.596232323232329,null,5.81,{"$nulls":3},{"$f":"AE283*'III. GDP shares, 1310-2018'!C285","v":1.3272840155572012},{"$f":"AF283*'III. GDP shares, 1310-2018'!D285","v":1.0164223259672314},{"$f":"AG283*'III. GDP shares, 1310-2018'!E285","v":0.18659210545480445},{"$f":"AH283*'III. GDP shares, 1310-2018'!F285","v":1.9686951096037775},{"$f":"AI283*'III. GDP shares, 1310-2018'!G285","v":3.9471956435334197},{"$f":"AJ283*'III. GDP shares, 1310-2018'!H285","v":0},{"$f":"AK283*'III. GDP shares, 1310-2018'!I285","v":0.7048077041271301},{"$f":"AL283*'III. GDP shares, 1310-2018'!J285","v":0},null,null,{"$f":"U283*'III. GDP shares, 1310-2018'!C285","v":2.7157982806206276},{"$f":"V283*'III. GDP shares, 1310-2018'!D285","v":0.4257899306051096},{"$f":"W283*'III. GDP shares, 1310-2018'!E285","v":-0.17852614640646694},{"$f":"X283*'III. GDP shares, 1310-2018'!F285","v":2.9896443393716114},{"$f":"Y283*'III. GDP shares, 1310-2018'!G285","v":3.3768280024940815},{"$f":"Z283*'III. GDP shares, 1310-2018'!H285","v":0},{"$f":"AA283*'III. GDP shares, 1310-2018'!I285","v":0.7749999871470452},{"$f":"AB283*'III. GDP shares, 1310-2018'!J285","v":0},null,null,8.340604016354018,9.150996904243565,null,10.104534393832008,7.048185352583627,{"$f":"AVERAGE(BL280:BL286)","v":5.448446843123709},4.034346109681538,null,null,-1.5441698849505663]
[{"$f":"'[1]Nominal weighted'!B284","v":1590},null,-9.609127187382716,-2.762299300266008,-0.006100637294887079,-0.6272418920145295,-17.964131852543865,null,6.591628963307469,null,null,3.701544091220062,10.91190442949495,3.3293454907758027,5.771244351757203,{"$f":"AVERAGE(G281:G287)","v":8.183170895676119},null,2.54559652262833,null,null,14.03488476314029,12.762299300266008,5.377529208723461,8.793908558681197,32.51823791314993,null,-0.7816289633074693,{"$nulls":3},4.425757575757574,10,{"v":5.371428571428574,"d":"5.37"},8.166666666666668,14.554106060606067,null,5.81,{"$nulls":3},{"$f":"AE284*'III. GDP shares, 1310-2018'!C286","v":1.1195419344208295},{"$f":"AF284*'III. GDP shares, 1310-2018'!D286","v":1.0186836883090846},{"$f":"AG284*'III. GDP shares, 1310-2018'!E286","v":0.18635321136127103},{"$f":"AH284*'III. GDP shares, 1310-2018'!F286","v":1.786770974374405},{"$f":"AI284*'III. GDP shares, 1310-2018'!G286","v":3.9345362231190104},{"$f":"AJ284*'III. GDP shares, 1310-2018'!H286","v":0},{"$f":"AK284*'III. GDP shares, 1310-2018'!I286","v":0.7050483927586394},{"$f":"AL284*'III. GDP shares, 1310-2018'!J286","v":0},null,null,{"$f":"U284*'III. GDP shares, 1310-2018'!C286","v":3.550271737242615},{"$f":"V284*'III. GDP shares, 1310-2018'!D286","v":1.3000746122499427},{"$f":"W284*'III. GDP shares, 1310-2018'!E286","v":0.18656486331496167},{"$f":"X284*'III. GDP shares, 1310-2018'!F286","v":1.9240041506882717},{"$f":"Y284*'III. GDP shares, 1310-2018'!G286","v":8.790933943212067},{"$f":"Z284*'III. GDP shares, 1310-2018'!H286","v":0},{"$f":"AA284*'III. GDP shares, 1310-2018'!I286","v":-0.0948513329283189},{"$f":"AB284*'III. GDP shares, 1310-2018'!J286","v":0},null,null,8.054659812409815,8.75093442434324,null,15.65699797377954,12.117538463442235,{"$f":"AVERAGE(BL281:BL287)","v":2.688742772039462},2.213681660609119,null,null,-6.62467262549544]
[{"$f":"'[1]Nominal weighted'!B285","v":1591},null,-13.576211908831418,11.215317568059618,3.1531140203791566,21.946232264765168,-10.494795576743508,null,7.524981200663781,null,null,3.001426231144523,8.710313290132747,4.49945704282537,3.9085972661653794,{"$f":"AVERAGE(G282:G288)","v":14.333486781094495},null,1.5986850180284284,null,null,18.60045433307384,-1.2153175680596178,2.192124074858941,-14.612898931431834,25.00677537472331,null,-1.7149812006637815,{"$nulls":3},5.024242424242423,10,{"v":5.345238095238098,"d":"5.35"},7.333333333333334,14.511979797979803,null,5.81,{"$nulls":3},{"$f":"AE285*'III. GDP shares, 1310-2018'!C287","v":1.269193674733242},{"$f":"AF285*'III. GDP shares, 1310-2018'!D287","v":1.020929726966467},{"$f":"AG285*'III. GDP shares, 1310-2018'!E287","v":0.18610332343513417},{"$f":"AH285*'III. GDP shares, 1310-2018'!F287","v":1.6047706645161839},{"$f":"AI285*'III. GDP shares, 1310-2018'!G287","v":3.9218927029912534},{"$f":"AJ285*'III. GDP shares, 1310-2018'!H287","v":0},{"$f":"AK285*'III. GDP shares, 1310-2018'!I287","v":0.705287450410196},{"$f":"AL285*'III. GDP shares, 1310-2018'!J287","v":0},null,null,{"$f":"U285*'III. GDP shares, 1310-2018'!C287","v":4.6987340564605615},{"$f":"V285*'III. GDP shares, 1310-2018'!D287","v":-0.12407538329366563},{"$f":"W285*'III. GDP shares, 1310-2018'!E287","v":0.07632243287288881},{"$f":"X285*'III. GDP shares, 1310-2018'!F287","v":-3.197775208459322},{"$f":"Y285*'III. GDP shares, 1310-2018'!G287","v":6.758133020631787},{"$f":"Z285*'III. GDP shares, 1310-2018'!H287","v":0},{"$f":"AA285*'III. GDP shares, 1310-2018'!I287","v":-0.20818497736963432},{"$f":"AB285*'III. GDP shares, 1310-2018'!J287","v":0},null,null,8.004132275132276,8.708177543052477,null,8.003153940842614,4.709359347083477,{"$f":"AVERAGE(BL282:BL288)","v":1.919186680104484},1.9446767337258493,null,null,-0.4399815080502707]
[{"$f":"'[1]Nominal weighted'!B286","v":1592},null,8.48419801869463,20.30620730632826,20.26090006404589,4.533321552114959,37.59783978140723,null,-1.8309306960474618,null,null,0.4090521487507817,4.661373862272536,1.4868743919593892,5.192313319027975,{"$f":"AVERAGE(G283:G289)","v":8.375058543232017},null,4.85244202715888,null,null,-3.948970745967361,-10.306207306328261,-14.941852444998268,0.4666784478850411,-23.127986246053688,null,7.6409306960474614,{"$nulls":3},4.535227272727271,10,{"v":5.3190476190476215,"d":"5.32"},5,14.46985353535354,null,5.81,{"$nulls":3},{"$f":"AE286*'III. GDP shares, 1310-2018'!C288","v":1.1441004304232174},{"$f":"AF286*'III. GDP shares, 1310-2018'!D288","v":1.023160597170408},{"$f":"AG286*'III. GDP shares, 1310-2018'!E288","v":0.1858425530454285},{"$f":"AH286*'III. GDP shares, 1310-2018'!F288","v":1.0943807320681307},{"$f":"AI286*'III. GDP shares, 1310-2018'!G288","v":3.9092649220780613},{"$f":"AJ286*'III. GDP shares, 1310-2018'!H288","v":0},{"$f":"AK286*'III. GDP shares, 1310-2018'!I288","v":0.7055248936038512},{"$f":"AL286*'III. GDP shares, 1310-2018'!J288","v":0},null,null,{"$f":"U286*'III. GDP shares, 1310-2018'!C288","v":-0.9962056714024453},{"$f":"V286*'III. GDP shares, 1310-2018'!D288","v":-1.0544905222104846},{"$f":"W286*'III. GDP shares, 1310-2018'!E288","v":-0.5220543609466218},{"$f":"X286*'III. GDP shares, 1310-2018'!F288","v":0.10214478028737005},{"$f":"Y286*'III. GDP shares, 1310-2018'!G288","v":-6.2483994830423475},{"$f":"Z286*'III. GDP shares, 1310-2018'!H288","v":0},{"$f":"AA286*'III. GDP shares, 1310-2018'!I288","v":0.9278600372398084},{"$f":"AB286*'III. GDP shares, 1310-2018'!J288","v":0},null,null,7.522354737854738,8.062274128389097,null,-7.791145220074721,-7.369567933235846,{"$f":"AVERAGE(BL283:BL289)","v":4.053054379336131},3.805186598212051,null,null,13.775768229082924]
[{"$f":"'[1]Nominal weighted'!B287","v":1593},null,15.983601193020382,5.104240168360704,-0.3432283035582975,-3.3461814123301465,20.458474889645547,null,2.1913631084698317,null,null,1.0180963641650116,4.406595502858857,0.24835777408640775,7.136958166427888,{"$f":"AVERAGE(G284:G290)","v":10.07795025228205},null,5.477684825240599,null,null,-11.237389071808263,4.895759831639296,5.636085446415443,9.979501412330146,-6.030747616918269,null,3.618636891530168,{"$nulls":3},4.746212121212119,10,{"v":5.292857142857145,"d":"5.29"},6.633319999999999,14.427727272727278,null,5.81,{"$nulls":3},{"$f":"AE287*'III. GDP shares, 1310-2018'!C289","v":1.1957026827406323},{"$f":"AF287*'III. GDP shares, 1310-2018'!D289","v":1.02537645206231},{"$f":"AG287*'III. GDP shares, 1310-2018'!E289","v":0.18557101006200616},{"$f":"AH287*'III. GDP shares, 1310-2018'!F289","v":1.4521639918686993},{"$f":"AI287*'III. GDP shares, 1310-2018'!G289","v":3.896652721475601},{"$f":"AJ287*'III. GDP shares, 1310-2018'!H289","v":0},{"$f":"AK287*'III. GDP shares, 1310-2018'!I289","v":0.705760738639246},{"$f":"AL287*'III. GDP shares, 1310-2018'!J289","v":0},null,null,{"$f":"U287*'III. GDP shares, 1310-2018'!C289","v":-2.831010480991709},{"$f":"V287*'III. GDP shares, 1310-2018'!D289","v":0.5019996846315473},{"$f":"W287*'III. GDP shares, 1310-2018'!E289","v":0.1976048173713793},{"$f":"X287*'III. GDP shares, 1310-2018'!F289","v":2.1847088046089542},{"$f":"Y287*'III. GDP shares, 1310-2018'!G289","v":-1.6287893907184252},{"$f":"Z287*'III. GDP shares, 1310-2018'!H289","v":0},{"$f":"AA287*'III. GDP shares, 1310-2018'!I289","v":0.4395683038611974},{"$f":"AB287*'III. GDP shares, 1310-2018'!J289","v":0},null,null,7.818352756132758,8.461227596848495,null,-1.1359182612370566,1.1436411488647533,{"$f":"AVERAGE(BL284:BL290)","v":2.902519592218265},3.159647621609635,null,null,9.073769090654789]
[{"$f":"'[1]Nominal weighted'!B288","v":1594},null,9.07153643172039,-5.314395466617398,-9.817502831906033,3.6765166184871285,26.67424101332756,null,-3.8098775400817777,null,null,1.8605143614297985,4.106341731318606,-0.3400217592684006,7.287642417627891,{"$f":"AVERAGE(G285:G291)","v":14.536543700127257},null,5.268338262497407,null,null,-3.3518394620234213,15.314395466617398,15.084169498572702,3.0901233815128712,-12.288640003226543,null,9.619877540081777,{"$nulls":3},5.719696969696968,10,{"v":5.266666666666669,"d":"5.27"},6.76664,14.385601010101016,null,5.81,{"$nulls":3},{"$f":"AE288*'III. GDP shares, 1310-2018'!C290","v":1.4390079904706201},{"$f":"AF288*'III. GDP shares, 1310-2018'!D290","v":1.0275774427289934},{"$f":"AG288*'III. GDP shares, 1310-2018'!E290","v":0.1852888028806784},{"$f":"AH288*'III. GDP shares, 1310-2018'!F290","v":1.4816426537899372},{"$f":"AI288*'III. GDP shares, 1310-2018'!G290","v":3.884055944411933},{"$f":"AJ288*'III. GDP shares, 1310-2018'!H290","v":0},{"$f":"AK288*'III. GDP shares, 1310-2018'!I290","v":0.7059950015973416},{"$f":"AL288*'III. GDP shares, 1310-2018'!J290","v":0},null,null,{"$f":"U288*'III. GDP shares, 1310-2018'!C290","v":-0.8432830959717765},{"$f":"V288*'III. GDP shares, 1310-2018'!D290","v":1.5736727330527196},{"$f":"W288*'III. GDP shares, 1310-2018'!E290","v":0.5306824763619831},{"$f":"X288*'III. GDP shares, 1310-2018'!F290","v":0.67662216514002},{"$f":"Y288*'III. GDP shares, 1310-2018'!G290","v":-3.3178846834245106},{"$f":"Z288*'III. GDP shares, 1310-2018'!H290","v":0},{"$f":"AA288*'III. GDP shares, 1310-2018'!I290","v":1.1689475833521972},{"$f":"AB288*'III. GDP shares, 1310-2018'!J290","v":0},null,null,7.99143410774411,8.723567835879505,null,-0.21124282148936735,4.578014403589131,{"$f":"AVERAGE(BL285:BL291)","v":1.5058548569607701},2.4118235068262,null,null,9.480905947692598]
[{"$f":"'[1]Nominal weighted'!B289","v":1595},null,-2.0091376491636552,-1.7303487729739118,-13.400972673868356,14.830872710080454,0.24463385126654913,null,23.878551041667972,null,null,6.7905940829129525,5.274373602281642,-0.07820059816057157,3.9932890255803817,{"$f":"AVERAGE(G286:G292)","v":18.878055303250527},null,3.0971997323235505,null,null,7.977319467345471,11.730348772973912,18.64144886434455,-7.930912710080454,14.110159078026388,null,-18.073551041667972,{"$nulls":3},5.968181818181816,10,{"v":5.240476190476193,"d":"5.24"},6.89996,14.354792929292937,null,5.805,{"$nulls":3},{"$f":"AE289*'III. GDP shares, 1310-2018'!C291","v":1.4995104246097957},{"$f":"AF289*'III. GDP shares, 1310-2018'!D291","v":1.029763718237037},{"$f":"AG289*'III. GDP shares, 1310-2018'!E291","v":0.18499603844785334},{"$f":"AH289*'III. GDP shares, 1310-2018'!F291","v":1.5111308409602018},{"$f":"AI289*'III. GDP shares, 1310-2018'!G291","v":3.8745293481030134},{"$f":"AJ289*'III. GDP shares, 1310-2018'!H291","v":0},{"$f":"AK289*'III. GDP shares, 1310-2018'!I291","v":0.705619929240508},{"$f":"AL289*'III. GDP shares, 1310-2018'!J291","v":0},null,null,{"$f":"U289*'III. GDP shares, 1310-2018'!C291","v":2.0043078555826233},{"$f":"V289*'III. GDP shares, 1310-2018'!D291","v":1.2079487568674878},{"$f":"W289*'III. GDP shares, 1310-2018'!E291","v":0.65806885967716},{"$f":"X289*'III. GDP shares, 1310-2018'!F291","v":-1.7369154014176649},{"$f":"Y289*'III. GDP shares, 1310-2018'!G291","v":3.808499761961265},{"$f":"Z289*'III. GDP shares, 1310-2018'!H291","v":0},{"$f":"AA289*'III. GDP shares, 1310-2018'!I291","v":-2.1969091829709675},{"$f":"AB289*'III. GDP shares, 1310-2018'!J291","v":0},null,null,8.044735156325158,8.805550299598409,null,3.7450006496999033,4.409135405156983,{"$f":"AVERAGE(BL286:BL292)","v":-0.09831444509242772},1.5032203112807565,null,null,5.238734688528956]
[{"$f":"'[1]Nominal weighted'!B290","v":1596},null,-1.218184348902529,4.0274470171207355,1.892294780807379,8.945187323892185,14.02938965961485,null,3.7980776987043736,null,null,7.268596640506999,6.719522898765645,-2.262587816884394,4.429134950526847,{"$f":"AVERAGE(G287:G293)","v":17.907365662716728},null,1.6491716536094823,null,null,6.509851015569193,5.9725529828792645,3.321990933478338,-2.945187323892185,0.31534518887000573,null,2.001922301295626,{"$nulls":3},5.291666666666664,10,{"v":5.214285714285717,"d":"5.21"},6,14.344734848484856,null,5.8,{"$nulls":3},{"$f":"AE290*'III. GDP shares, 1310-2018'!C292","v":1.3277621682417817},{"$f":"AF290*'III. GDP shares, 1310-2018'!D292","v":1.0319354256664313},{"$f":"AG290*'III. GDP shares, 1310-2018'!E292","v":0.18469282228468062},{"$f":"AH290*'III. GDP shares, 1310-2018'!F292","v":1.3142901674666847},{"$f":"AI290*'III. GDP shares, 1310-2018'!G292","v":3.870614911470387},{"$f":"AJ290*'III. GDP shares, 1310-2018'!H292","v":0},{"$f":"AK290*'III. GDP shares, 1310-2018'!I292","v":0.7052429084848257},{"$f":"AL290*'III. GDP shares, 1310-2018'!J292","v":0},null,null,{"$f":"U290*'III. GDP shares, 1310-2018'!C292","v":1.6334237290135032},{"$f":"V290*'III. GDP shares, 1310-2018'!D292","v":0.6163289004702828},{"$f":"W290*'III. GDP shares, 1310-2018'!E292","v":0.11766671692486692},{"$f":"X290*'III. GDP shares, 1310-2018'!F292","v":-0.6451384568565028},{"$f":"Y290*'III. GDP shares, 1310-2018'!G292","v":0.08508904508817824},{"$f":"Z290*'III. GDP shares, 1310-2018'!H292","v":0},{"$f":"AA290*'III. GDP shares, 1310-2018'!I292","v":0.24342094936661432},{"$f":"AB290*'III. GDP shares, 1310-2018'!J292","v":0},null,null,7.775114538239539,8.434538403614791,null,2.0507908840069424,2.529412516366707,{"$f":"AVERAGE(BL287:BL293)","v":0.11623924492489911},1.948051687218803,null,null,5.968140994411699]
[{"$f":"'[1]Nominal weighted'!B291","v":1597},null,-3.712201206529209,-4.864075701047767,-4.124757370778544,0.4275478663854848,13.24602228237257,null,5.126203024105131,null,null,5.281918689680147,7.1851300735265875,-0.42172677116048896,4.9822294929909345,{"$f":"AVERAGE(G288:G294)","v":17.92002600845345},null,3.5144801219515096,null,null,8.623186055014056,14.864075701047767,9.312852608873785,6.739052133614515,1.088654485304205,null,0.6687969758948692,{"$nulls":3},4.910984848484847,10,{"v":5.188095238095241,"d":"5.19"},7.1666,14.334676767676775,null,5.795,{"$nulls":3},{"$f":"AE291*'III. GDP shares, 1310-2018'!C293","v":1.2306083417273812},{"$f":"AF291*'III. GDP shares, 1310-2018'!D293","v":1.0340927101435649},{"$f":"AG291*'III. GDP shares, 1310-2018'!E293","v":0.18437925851071557},{"$f":"AH291*'III. GDP shares, 1310-2018'!F293","v":1.570135411487812},{"$f":"AI291*'III. GDP shares, 1310-2018'!G293","v":3.8667101187242823},{"$f":"AJ291*'III. GDP shares, 1310-2018'!H293","v":0},{"$f":"AK291*'III. GDP shares, 1310-2018'!I293","v":0.7048639587401355},{"$f":"AL291*'III. GDP shares, 1310-2018'!J293","v":0},null,null,{"$f":"U291*'III. GDP shares, 1310-2018'!C293","v":2.160822119995239},{"$f":"V291*'III. GDP shares, 1310-2018'!D293","v":1.5370832325475594},{"$f":"W291*'III. GDP shares, 1310-2018'!E293","v":0.33096864645725876},{"$f":"X291*'III. GDP shares, 1310-2018'!F293","v":1.4764636501061374},{"$f":"Y291*'III. GDP shares, 1310-2018'!G293","v":0.29365931177550936},{"$f":"Z291*'III. GDP shares, 1310-2018'!H293","v":0},{"$f":"AA291*'III. GDP shares, 1310-2018'!I293","v":0.08134786609537334},{"$f":"AB291*'III. GDP shares, 1310-2018'!J293","v":0},null,null,7.899226142376143,8.590789799333892,null,5.880344826977077,6.8827696599582,{"$f":"AVERAGE(BL288:BL294)","v":0.17169467235923103},1.57121455567547,null,null,3.213435494760808]
[{"$f":"'[1]Nominal weighted'!B292","v":1598},null,20.934346141550655,19.39154066480087,4.98586214813396,-1.1142414795673945,19.895785645119386,null,-7.672988510553211,null,null,2.1559600460290436,9.5548242705448,2.9757565310547043,4.946696210524232,{"$f":"AVERAGE(G289:G295)","v":17.374537485880293},null,5.420508950736896,null,null,-16.529043111247628,-9.391540664800871,0.17604261377080427,7.947541479567394,-5.571166958250692,null,13.462988510553211,{"$nulls":3},4.4053030303030285,10,{"v":5.161904761904765,"d":"5.16"},6.8332999999999995,14.324618686868694,null,5.79,{"$nulls":3},{"$f":"AE292*'III. GDP shares, 1310-2018'!C294","v":1.1024364280197965},{"$f":"AF292*'III. GDP shares, 1310-2018'!D294","v":1.0362357148735502},{"$f":"AG292*'III. GDP shares, 1310-2018'!E294","v":0.18405544986711309},{"$f":"AH292*'III. GDP shares, 1310-2018'!F294","v":1.4973998803208741},{"$f":"AI292*'III. GDP shares, 1310-2018'!G294","v":3.8628148741108026},{"$f":"AJ292*'III. GDP shares, 1310-2018'!H294","v":0},{"$f":"AK292*'III. GDP shares, 1310-2018'!I294","v":0.7044830991593185},{"$f":"AL292*'III. GDP shares, 1310-2018'!J294","v":0},null,null,{"$f":"U292*'III. GDP shares, 1310-2018'!C294","v":-4.136428100587579},{"$f":"V292*'III. GDP shares, 1310-2018'!D294","v":-0.9731849854553948},{"$f":"W292*'III. GDP shares, 1310-2018'!E294","v":6.2770632097852745E-3},{"$f":"X292*'III. GDP shares, 1310-2018'!F294","v":1.7415666896447397},{"$f":"Y292*'III. GDP shares, 1310-2018'!G294","v":-1.502335738417459},{"$f":"Z292*'III. GDP shares, 1310-2018'!H294","v":0},{"$f":"AA292*'III. GDP shares, 1310-2018'!I294","v":1.6380738980761351},{"$f":"AB292*'III. GDP shares, 1310-2018'!J294","v":0},null,null,7.752521079846081,8.387425446351456,null,-3.2260311735297713,-1.6508630217346303,{"$f":"AVERAGE(BL289:BL295)","v":0.4967243040586933},0.9684141481780709,null,null,9.604035919552283]
[{"$f":"'[1]Nominal weighted'!B293","v":1599},null,11.83021592185295,30.422252381716277,4.970189532979132,7.584243026740216,30.803012297670634,null,-11.967127247045946,null,null,1.8818217875103314,11.998848700067699,6.391865818561764,3.783508840387854,{"$f":"AVERAGE(G290:G296)","v":19.73428008345676},null,3.553935879497666,null,null,-7.430594709731741,-18.422252381716277,0.16552475273515652,-1.0842430267402157,-16.48845169161002,null,17.725527247045946,{"$nulls":3},4.39962121212121,12,{"v":5.135714285714289,"d":"5.14"},6.5,14.314560606060613,null,5.7584,{"$nulls":3},{"$f":"AE293*'III. GDP shares, 1310-2018'!C295","v":1.0995692712846272},{"$f":"AF293*'III. GDP shares, 1310-2018'!D295","v":1.246037497406297},{"$f":"AG293*'III. GDP shares, 1310-2018'!E295","v":0.18372149773936244},{"$f":"AH293*'III. GDP shares, 1310-2018'!F295","v":1.424634509250271},{"$f":"AI293*'III. GDP shares, 1310-2018'!G295","v":3.858929083139523},{"$f":"AJ293*'III. GDP shares, 1310-2018'!H295","v":0},{"$f":"AK293*'III. GDP shares, 1310-2018'!I295","v":0.7008628258639875},{"$f":"AL293*'III. GDP shares, 1310-2018'!J295","v":0},null,null,{"$f":"U293*'III. GDP shares, 1310-2018'!C295","v":-1.8570811477317788},{"$f":"V293*'III. GDP shares, 1310-2018'!D295","v":-1.9129014378584122},{"$f":"W293*'III. GDP shares, 1310-2018'!E295","v":0.005921368244731126},{"$f":"X293*'III. GDP shares, 1310-2018'!F295","v":-0.2376384665089347},{"$f":"Y293*'III. GDP shares, 1310-2018'!G295","v":-4.444968135574888},{"$f":"Z293*'III. GDP shares, 1310-2018'!H295","v":0},{"$f":"AA293*'III. GDP shares, 1310-2018'!I295","v":2.157398429475849},{"$f":"AB293*'III. GDP shares, 1310-2018'!J295","v":0},null,null,8.018049350649353,8.513754684684068,null,-6.289269389953434,-4.255748301669525,{"$f":"AVERAGE(BL290:BL296)","v":-0.010780769998125621},0.18804660621186314,null,null,11.644085139372793]
[{"$f":"'[1]Nominal weighted'!B294","v":1600},null,2.0768555372324276,8.363490391687307,12.542799016509036,0.5254803849184659,20.54709730980261,null,15.248522386864025,null,null,4.046600946511567,13.870008828539577,6.158280462949043,4.459252732342819,{"$f":"AVERAGE(G291:G297)","v":18.56371007016686},null,2.7582059615644154,null,null,2.3712505233736305,3.636509608312693,-5.183275206985225,5.974519615081534,-6.242594784550079,null,-9.521722386864024,{"$nulls":3},4.448106060606058,12,{"v":7.359523809523813,"d":"7.36"},6.5,14.304502525252532,null,5.7268,{"$nulls":3},{"$f":"AE294*'III. GDP shares, 1310-2018'!C296","v":1.110235191889098},{"$f":"AF294*'III. GDP shares, 1310-2018'!D296","v":1.2485753381947933},{"$f":"AG294*'III. GDP shares, 1310-2018'!E296","v":0.2641285457768233},{"$f":"AH294*'III. GDP shares, 1310-2018'!F296","v":1.4249043008331457},{"$f":"AI294*'III. GDP shares, 1310-2018'!G296","v":3.8550526525627307},{"$f":"AJ294*'III. GDP shares, 1310-2018'!H296","v":0},{"$f":"AK294*'III. GDP shares, 1310-2018'!I296","v":0.6972386191606187},{"$f":"AL294*'III. GDP shares, 1310-2018'!J296","v":0},null,null,{"$f":"U294*'III. GDP shares, 1310-2018'!C296","v":0.5918576904337903},{"$f":"V294*'III. GDP shares, 1310-2018'!D296","v":0.3783713511706363},{"$f":"W294*'III. GDP shares, 1310-2018'!E296","v":-0.1860243920959137},{"$f":"X294*'III. GDP shares, 1310-2018'!F296","v":1.3097105684525643},{"$f":"Y294*'III. GDP shares, 1310-2018'!G296","v":-1.6823745908373835},{"$f":"Z294*'III. GDP shares, 1310-2018'!H296","v":0},{"$f":"AA294*'III. GDP shares, 1310-2018'!I296","v":-1.1592708963204272},{"$f":"AB294*'III. GDP shares, 1310-2018'!J296","v":0},null,null,8.389822065897066,8.60013464841721,null,-0.7477302691967336,-1.4942187719385782,{"$f":"AVERAGE(BL291:BL297)","v":-0.4667350967168539},-0.15643449397245549,null,null,8.477660930589785]
[{"$f":"'[1]Nominal weighted'!B295","v":1601},null,-12.810174073837334,11.273463912510095,13.964880283600323,3.427783641220207,22.85582135531544,null,9.532324261415928,null,null,5.666058277564313,15.440227082647894,8.18529027552222,5.723887601803706,{"$f":"AVERAGE(G292:G298)","v":18.944063754696238},null,3.037317635436455,null,null,17.381764982928242,0.7265360874899045,-6.631546950266985,3.072216358779793,-8.56137691087099,null,-3.8371242614159278,{"$nulls":3},4.571590909090907,12,{"v":7.333333333333337,"d":"7.33"},6.5,14.294444444444453,null,5.6952,{"$nulls":3},{"$f":"AE295*'III. GDP shares, 1310-2018'!C297","v":1.13880013440212},{"$f":"AF295*'III. GDP shares, 1310-2018'!D297","v":1.2556684042496373},{"$f":"AG295*'III. GDP shares, 1310-2018'!E297","v":0.26513134367724966},{"$f":"AH295*'III. GDP shares, 1310-2018'!F297","v":1.4229860811877992},{"$f":"AI295*'III. GDP shares, 1310-2018'!G297","v":3.853970091034277},{"$f":"AJ295*'III. GDP shares, 1310-2018'!H297","v":0},{"$f":"AK295*'III. GDP shares, 1310-2018'!I297","v":0.6923593726034343},{"$f":"AL295*'III. GDP shares, 1310-2018'!J297","v":0},null,null,{"$f":"U295*'III. GDP shares, 1310-2018'!C297","v":4.329861681049014},{"$f":"V295*'III. GDP shares, 1310-2018'!D297","v":0.0760240341340186},{"$f":"W295*'III. GDP shares, 1310-2018'!E297","v":-0.23975876639768895},{"$f":"X295*'III. GDP shares, 1310-2018'!F297","v":0.6725724795294011},{"$f":"Y295*'III. GDP shares, 1310-2018'!G297","v":-2.3082597355080754},{"$f":"Z295*'III. GDP shares, 1310-2018'!H297","v":0},{"$f":"AA295*'III. GDP shares, 1310-2018'!I297","v":-0.4664750923998012},{"$f":"AB295*'III. GDP shares, 1310-2018'!J297","v":0},null,null,8.399094781144782,8.628915427154517,null,2.063964600406868,0.35841155110733935,{"$f":"AVERAGE(BL292:BL298)","v":-1.6750643363564817},-1.4422807123559112,null,null,5.38530645663203]
[{"$f":"'[1]Nominal weighted'!B296","v":1602},null,-3.928105458794639,15.377822233686373,10.511792338681058,6.688561119125817,16.762832034301844,null,10.81253954299336,null,null,2.7944318436115583,12.842893278075193,9.130805246171628,6.381354254552304,{"$f":"AVERAGE(G293:G299)","v":18.445048882872985},null,2.967479844479238,null,null,8.498181216370394,-3.3778222336863735,-3.2046494815381985,-0.1885611191258164,-2.898833170665472,null,-5.14893954299336,{"$nulls":3},4.570075757575755,12,{"v":7.3071428571428605,"d":"7.31"},6.5,13.863998863636372,null,5.6636,{"$nulls":3},{"$f":"AE296*'III. GDP shares, 1310-2018'!C298","v":1.1361765011264326},{"$f":"AF296*'III. GDP shares, 1310-2018'!D298","v":1.2627313189877933},{"$f":"AG296*'III. GDP shares, 1310-2018'!E298","v":0.266112035932331},{"$f":"AH296*'III. GDP shares, 1310-2018'!F298","v":1.4210760155406759},{"$f":"AI296*'III. GDP shares, 1310-2018'!G298","v":3.7394886504438594},{"$f":"AJ296*'III. GDP shares, 1310-2018'!H298","v":0},{"$f":"AK296*'III. GDP shares, 1310-2018'!I298","v":0.6874959398380047},{"$f":"AL296*'III. GDP shares, 1310-2018'!J298","v":0},null,null,{"$f":"U296*'III. GDP shares, 1310-2018'!C298","v":2.1127513661777706},{"$f":"V296*'III. GDP shares, 1310-2018'!D298","v":-0.3554401603707574},{"$f":"W296*'III. GDP shares, 1310-2018'!E298","v":-0.11670714732886277},{"$f":"X296*'III. GDP shares, 1310-2018'!F298","v":-0.04122456674664707},{"$f":"Y296*'III. GDP shares, 1310-2018'!G298","v":-0.7818922843153255},{"$f":"Z296*'III. GDP shares, 1310-2018'!H298","v":0},{"$f":"AA296*'III. GDP shares, 1310-2018'!I298","v":-0.6250220761140064},{"$f":"AB296*'III. GDP shares, 1310-2018'!J298","v":0},null,null,8.317469579725831,8.513080461869096,null,0.19246513130217147,-1.053437388606471,{"$f":"AVERAGE(BL293:BL299)","v":-0.8776811780088102},-0.8109888952346529,null,null,6.7024438512083755]
[{"$f":"'[1]Nominal weighted'!B297","v":1603},null,13.935269764106115,17.125567916423876,0.25719729151833715,13.675394567576934,5.835399566585537,null,-1.772031726828378,null,null,2.075720082818062,9.513890391623281,10.144383812995432,5.387425459044455,{"$f":"AVERAGE(G294:G300)","v":15.685241328645489},null,4.955414205889194,null,null,-9.016709158045511,-5.125567916423876,7.023755089434047,-7.175394567576933,7.598153716242755,null,7.404031726828378,{"$nulls":3},4.918560606060604,12,{"v":7.280952380952384,"d":"7.28"},6.5,13.433553282828292,null,5.632,{"$nulls":3},{"$f":"AE297*'III. GDP shares, 1310-2018'!C299","v":1.2204068492066944},{"$f":"AF297*'III. GDP shares, 1310-2018'!D299","v":1.269764274253051},{"$f":"AG297*'III. GDP shares, 1310-2018'!E299","v":0.26707076319366224},{"$f":"AH297*'III. GDP shares, 1310-2018'!F299","v":1.4191740520103286},{"$f":"AI297*'III. GDP shares, 1310-2018'!G299","v":3.624903111878212},{"$f":"AJ297*'III. GDP shares, 1310-2018'!H299","v":0},{"$f":"AK297*'III. GDP shares, 1310-2018'!I299","v":0.682648220245913},{"$f":"AL297*'III. GDP shares, 1310-2018'!J299","v":0},null,null,{"$f":"U297*'III. GDP shares, 1310-2018'!C299","v":-2.2372507924827394},{"$f":"V297*'III. GDP shares, 1310-2018'!D299","v":-0.5423552521277238},{"$f":"W297*'III. GDP shares, 1310-2018'!E299","v":0.25763657473270707},{"$f":"X297*'III. GDP shares, 1310-2018'!F299","v":-1.56663596665247},{"$f":"Y297*'III. GDP shares, 1310-2018'!G299","v":2.0502818927099655},{"$f":"Z297*'III. GDP shares, 1310-2018'!H299","v":0},{"$f":"AA297*'III. GDP shares, 1310-2018'!I299","v":0.8974341407961054},{"$f":"AB297*'III. GDP shares, 1310-2018'!J299","v":0},null,null,8.294177711640213,8.483967270787861,null,-1.1408894030241554,0.1180448150764765,{"$f":"AVERAGE(BL294:BL300)","v":0.216884467149105},-0.11571287752381523,null,null,7.812737147431242]
[{"$f":"'[1]Nominal weighted'!B298","v":1604},null,7.624000110840031,6.127452077710458,10.064311317233686,9.279991952611699,15.908498074078228,null,7.079984741209408,null,null,1.6354550854588485,9.15569970594137,8.745679522688155,6.062471169225733,{"$f":"AVERAGE(G295:G301)","v":14.199058814697432},null,3.2139103433366545,null,null,-3.356954656294579,1.8725479222895416,-2.8095494124717777,-4.0299919526117,-2.905390372058015,null,-1.479584741209408,{"$nulls":3},4.2670454545454515,8,{"v":7.254761904761908,"d":"7.25"},5.25,13.003107702020213,null,5.6004,{"$nulls":3},{"$f":"AE298*'III. GDP shares, 1310-2018'!C300","v":1.0566715820033408},{"$f":"AF298*'III. GDP shares, 1310-2018'!D300","v":0.8511783068434129},{"$f":"AG298*'III. GDP shares, 1310-2018'!E300","v":0.26800766492213196},{"$f":"AH298*'III. GDP shares, 1310-2018'!F300","v":1.14472626624019},{"$f":"AI298*'III. GDP shares, 1310-2018'!G300","v":3.510214136279754},{"$f":"AJ298*'III. GDP shares, 1310-2018'!H300","v":0},{"$f":"AK298*'III. GDP shares, 1310-2018'!I300","v":0.6778161140605422},{"$f":"AL298*'III. GDP shares, 1310-2018'!J300","v":0},null,null,{"$f":"U298*'III. GDP shares, 1310-2018'!C300","v":-0.8313008673487733},{"$f":"V298*'III. GDP shares, 1310-2018'!D300","v":0.19923402124719533},{"$f":"W298*'III. GDP shares, 1310-2018'!E300","v":-0.10379124599880592},{"$f":"X298*'III. GDP shares, 1310-2018'!F300","v":-0.8787119315983245},{"$f":"Y298*'III. GDP shares, 1310-2018'!G300","v":-0.7843157642864602},{"$f":"Z298*'III. GDP shares, 1310-2018'!H300","v":0},{"$f":"AA298*'III. GDP shares, 1310-2018'!I300","v":-0.17907406251514785},{"$f":"AB298*'III. GDP shares, 1310-2018'!J300","v":0},null,null,7.22921917688793,7.508614070349372,null,-2.5779598505003163,-2.1181538687259898,{"$f":"AVERAGE(BL295:BL301)","v":0.6921816538701676},0.47417542052566347,null,null,9.43462963525347]
[{"$f":"'[1]Nominal weighted'!B299","v":1605},null,0.8329611038813587,1.2102040327919639,11.60446694267981,3.48802508967278,16.40268154235662,null,-8.161853047253732,null,null,4.790053390147521,6.394921068861718,5.32656344006095,6.3804519025623945,{"$f":"AVERAGE(G296:G302)","v":11.037299083940923},null,4.140271682836516,null,null,3.2825691991489414,6.789795967208036,-5.125895514108377,1.76197491032722,-3.830019421144492,null,13.730653047253732,{"$nulls":3},4.1155303030303,8,{"v":6.478571428571433,"d":"6.48"},5.25,12.57266212121213,null,5.5687999999999995,{"$nulls":3},{"$f":"AE299*'III. GDP shares, 1310-2018'!C301","v":1.0171538488564096},{"$f":"AF299*'III. GDP shares, 1310-2018'!D301","v":0.8558273770911832},{"$f":"AG299*'III. GDP shares, 1310-2018'!E301","v":0.24102080199234155},{"$f":"AH299*'III. GDP shares, 1310-2018'!F301","v":1.1432030286645136},{"$f":"AI299*'III. GDP shares, 1310-2018'!G301","v":3.3954223790074174},{"$f":"AJ299*'III. GDP shares, 1310-2018'!H301","v":0},{"$f":"AK299*'III. GDP shares, 1310-2018'!I301","v":0.6729995223580807},{"$f":"AL299*'III. GDP shares, 1310-2018'!J301","v":0},null,null,{"$f":"U299*'III. GDP shares, 1310-2018'!C301","v":0.8112874038598145},{"$f":"V299*'III. GDP shares, 1310-2018'!D301","v":0.7263616591999933},{"$f":"W299*'III. GDP shares, 1310-2018'!E301","v":-0.19069751122768297},{"$f":"X299*'III. GDP shares, 1310-2018'!F301","v":0.3836752483651358},{"$f":"Y299*'III. GDP shares, 1310-2018'!G301","v":-1.0343500468883415},{"$f":"Z299*'III. GDP shares, 1310-2018'!H301","v":0},{"$f":"AA299*'III. GDP shares, 1310-2018'!I301","v":1.6593741815950092},{"$f":"AB299*'III. GDP shares, 1310-2018'!J301","v":0},null,null,6.997593975468976,7.325626957969947,null,2.3556509349039283,2.7681796981141766,{"$f":"AVERAGE(BL296:BL302)","v":0.821872443282614},1.0962443605319534,null,null,4.8405103051748295]
[{"$f":"'[1]Nominal weighted'!B300","v":1606},null,6.7992335962984765,7.119232176552899,12.065239500745779,0.6267414581852888,11.484359418078144,null,1.948413282823751,null,null,7.734198126479467,5.102451699876342,4.616285616006873,5.558463223898093,{"$f":"AVERAGE(G297:G303)","v":10.428497927735341},null,3.8594897527529604,null,null,-1.5852184447833282,0.8807678234471013,-5.612858548364823,5.3454807640369335,1.0501446223259059,null,3.5887867171762484,{"$nulls":3},5.214015151515149,8,{"v":6.452380952380956,"d":"6.45"},5.972222222222222,12.53450404040405,null,5.5371999999999995,{"$nulls":3},{"$f":"AE300*'III. GDP shares, 1310-2018'!C302","v":1.2861248906463754},{"$f":"AF300*'III. GDP shares, 1310-2018'!D302","v":0.8604568515938639},{"$f":"AG300*'III. GDP shares, 1310-2018'!E302","v":0.24171994497556767},{"$f":"AH300*'III. GDP shares, 1310-2018'!F302","v":1.2987435739365798},{"$f":"AI300*'III. GDP shares, 1310-2018'!G302","v":3.3865149311434735},{"$f":"AJ300*'III. GDP shares, 1310-2018'!H302","v":0},{"$f":"AK300*'III. GDP shares, 1310-2018'!I302","v":0.6681983470486409},{"$f":"AL300*'III. GDP shares, 1310-2018'!J302","v":0},null,null,{"$f":"U300*'III. GDP shares, 1310-2018'!C302","v":-0.391020900343015},{"$f":"V300*'III. GDP shares, 1310-2018'!D302","v":0.09473283854355911},{"$f":"W300*'III. GDP shares, 1310-2018'!E302","v":-0.2102696461165621},{"$f":"X300*'III. GDP shares, 1310-2018'!F302","v":1.1624498442242064},{"$f":"Y300*'III. GDP shares, 1310-2018'!G302","v":0.2837232675423882},{"$f":"Z300*'III. GDP shares, 1310-2018'!H302","v":0},{"$f":"AA300*'III. GDP shares, 1310-2018'!I302","v":0.4330747223013956},{"$f":"AB300*'III. GDP shares, 1310-2018'!J302","v":0},null,null,7.28505372775373,7.741758539344501,null,1.3726901261519722,0.6111838223063397,{"$f":"AVERAGE(BL297:BL303)","v":0.4620960743581755},1.0305466688799654,null,null,5.603344400142224]
[{"$f":"'[1]Nominal weighted'!B301","v":1607},null,-1.0049994442820678,5.856155591913918,2.751868984358101,5.250800356187413,10.143819712166199,null,3.0579953489962475,null,null,5.076502278090892,5.456049166521849,6.20771747966426,2.494312460294577,{"$f":"AVERAGE(G298:G304)","v":12.537456031266089},null,5.6053649757220665,null,null,5.192499444282068,2.143844408086082,3.67432149183238,-8.0035618741283038E-4,2.352526247429771,null,2.447604651003752,{"$nulls":3},4.1875,8,{"v":6.426190476190481,"d":"6.43"},5.25,12.496345959595969,null,5.505599999999999,{"$nulls":3},{"$f":"AE301*'III. GDP shares, 1310-2018'!C303","v":1.0309025283634734},{"$f":"AF301*'III. GDP shares, 1310-2018'!D303","v":0.8650668539844542},{"$f":"AG301*'III. GDP shares, 1310-2018'!E303","v":0.24239849196893778},{"$f":"AH301*'III. GDP shares, 1310-2018'!F303","v":1.140175774260222},{"$f":"AI301*'III. GDP shares, 1310-2018'!G303","v":3.3775931126870606},{"$f":"AJ301*'III. GDP shares, 1310-2018'!H303","v":0},{"$f":"AK301*'III. GDP shares, 1310-2018'!I303","v":0.6634124908674901},{"$f":"AL301*'III. GDP shares, 1310-2018'!J303","v":0},null,null,{"$f":"U301*'III. GDP shares, 1310-2018'!C303","v":1.278318998360911},{"$f":"V301*'III. GDP shares, 1310-2018'!D303","v":0.2318210921918989},{"$f":"W301*'III. GDP shares, 1310-2018'!E303","v":0.13859688596675618},{"$f":"X301*'III. GDP shares, 1310-2018'!F303","v":-1.7381842584140636E-4},{"$f":"Y301*'III. GDP shares, 1310-2018'!G303","v":0.6358559915374843},{"$f":"Z301*'III. GDP shares, 1310-2018'!H303","v":0},{"$f":"AA301*'III. GDP shares, 1310-2018'!I303","v":0.29493088821949526},{"$f":"AB301*'III. GDP shares, 1310-2018'!J303","v":0},null,null,6.977606072631075,7.319549252131638,null,2.579350037850704,2.634999314407773,{"$f":"AVERAGE(BL298:BL304)","v":0.7225091242919521},0.8144739430373045,null,null,4.106953452488378]
[{"$f":"'[1]Nominal weighted'!B302","v":1608},null,9.27201405898337,-8.051986547047463,-9.96893229479012,5.653648774576838,0.7235032400198751,null,16.016853637914952,null,null,5.094706789286541,5.296152026428855,5.500778546530162,2.0095853826449175,{"$f":"AVERAGE(G299:G305)","v":11.683780711098452},null,5.84278016160391,null,null,-4.931736281205591,16.051986547047463,16.368932294790124,-0.4036487745768375,11.734684638768012,null,-10.542853637914954,{"$nulls":3},4.340277777777778,8,{"v":6.400000000000004,"d":"6.40"},5.25,12.458187878787887,null,5.473999999999999,{"$nulls":3},{"$f":"AE302*'III. GDP shares, 1310-2018'!C304","v":1.0664344129868144},{"$f":"AF302*'III. GDP shares, 1310-2018'!D304","v":0.8696575068581058},{"$f":"AG302*'III. GDP shares, 1310-2018'!E304","v":0.24305657264346514},{"$f":"AH302*'III. GDP shares, 1310-2018'!F304","v":1.1386716767565574},{"$f":"AI302*'III. GDP shares, 1310-2018'!G304","v":3.3686570141144934},{"$f":"AJ302*'III. GDP shares, 1310-2018'!H304","v":0},{"$f":"AK302*'III. GDP shares, 1310-2018'!I304","v":0.6586418573663922},{"$f":"AL302*'III. GDP shares, 1310-2018'!J304","v":0},null,null,{"$f":"U302*'III. GDP shares, 1310-2018'!C304","v":-1.211759605106671},{"$f":"V302*'III. GDP shares, 1310-2018'!D304","v":1.744966325078144},{"$f":"W302*'III. GDP shares, 1310-2018'!E304","v":0.6216525908444712},{"$f":"X302*'III. GDP shares, 1310-2018'!F304","v":-0.08754731942250232},{"$f":"Y302*'III. GDP shares, 1310-2018'!G304","v":3.1730238860913316},{"$f":"Z302*'III. GDP shares, 1310-2018'!H304","v":0},{"$f":"AA302*'III. GDP shares, 1310-2018'!I304","v":-1.2685357511907804},{"$f":"AB302*'III. GDP shares, 1310-2018'!J304","v":0},null,null,6.987077609427612,7.345119040725828,null,2.971800126293993,4.712894131151369,{"$f":"AVERAGE(BL299:BL305)","v":1.0285791424853297},1.0880446495931146,null,null,5.248627732651875]
[{"$f":"'[1]Nominal weighted'!B303","v":1609},null,16.68090769552898,6.330536650788744,5.5398475703025305,0.9346403684756899,12.5012239408628,null,8.847066032408474,null,null,4.945982293548751,5.531878828852685,4.247911443940148,2.21072429812745,{"$f":"AVERAGE(G300:G306)","v":11.085878046104273},null,6.714222173989688,null,null,-12.412852139973426,1.6694633492112558,0.8339619535069984,4.31535963152431,-0.08119414288299233,null,-3.404666032408475,{"$nulls":3},4.268055555555556,8,{"v":6.373809523809529,"d":"6.37"},5.25,12.420029797979808,null,5.442399999999999,{"$nulls":3},{"$f":"AE303*'III. GDP shares, 1310-2018'!C305","v":1.0466523026051864},{"$f":"AF303*'III. GDP shares, 1310-2018'!D305","v":0.8742289317829915},{"$f":"AG303*'III. GDP shares, 1310-2018'!E305","v":0.2436943155839093},{"$f":"AH303*'III. GDP shares, 1310-2018'!F305","v":1.137173879165026},{"$f":"AI303*'III. GDP shares, 1310-2018'!G305","v":3.3597067251441706},{"$f":"AJ303*'III. GDP shares, 1310-2018'!H305","v":0},{"$f":"AK303*'III. GDP shares, 1310-2018'!I305","v":0.6538863509050583},{"$f":"AL303*'III. GDP shares, 1310-2018'!J305","v":0},null,null,{"$f":"U303*'III. GDP shares, 1310-2018'!C305","v":-3.0439951179383824},{"$f":"V303*'III. GDP shares, 1310-2018'!D305","v":0.18243664505397644},{"$f":"W303*'III. GDP shares, 1310-2018'!E305","v":0.0318854504082261},{"$f":"X303*'III. GDP shares, 1310-2018'!F305","v":0.9347265242233632},{"$f":"Y303*'III. GDP shares, 1310-2018'!G305","v":-0.02196359528305453},{"$f":"Z303*'III. GDP shares, 1310-2018'!H305","v":0},{"$f":"AA303*'III. GDP shares, 1310-2018'!I305","v":-0.40905935763302603},{"$f":"AB303*'III. GDP shares, 1310-2018'!J305","v":0},null,null,6.959049146224149,7.315342505186342,null,-2.325969451168897,-1.5133212301703882,{"$f":"AVERAGE(BL300:BL306)","v":1.0895943151106853},1.1925690404997236,null,null,8.949519669626223]
[{"$f":"'[1]Nominal weighted'!B304","v":1610},null,-4.6686011746139044,19.60075018294242,11.397220337120043,-7.7736607776476685,20.598106291300752,null,10.449094833955368,null,null,5.978226917394749,4.856297735590366,3.3324023217612506,3.1927234457079803,{"$f":"AVERAGE(G301:G307)","v":11.80224621214663},null,7.149992318382842,null,null,8.889434507947238,-11.60075018294242,-5.424601289500991,13.023660777647668,-8.216234574129027,null,-5.0382948339553675,{"$nulls":3},4.220833333333333,8,{"v":5.972619047619052,"d":"5.97"},5.25,12.381871717171727,null,5.410799999999999,{"$nulls":3},{"$f":"AE304*'III. GDP shares, 1310-2018'!C306","v":1.0330663401469453},{"$f":"AF304*'III. GDP shares, 1310-2018'!D306","v":0.8787812493110359},{"$f":"AG304*'III. GDP shares, 1310-2018'!E306","v":0.22987857144068516},{"$f":"AH304*'III. GDP shares, 1310-2018'!F306","v":1.135682341987576},{"$f":"AI304*'III. GDP shares, 1310-2018'!G306","v":3.350742334744487},{"$f":"AJ304*'III. GDP shares, 1310-2018'!H306","v":0},{"$f":"AK304*'III. GDP shares, 1310-2018'!I306","v":0.6491458766427035},{"$f":"AL304*'III. GDP shares, 1310-2018'!J306","v":0},null,null,{"$f":"U304*'III. GDP shares, 1310-2018'!C306","v":2.175725703400043},{"$f":"V304*'III. GDP shares, 1310-2018'!D306","v":-1.274315217338921},{"$f":"W304*'III. GDP shares, 1310-2018'!E306","v":-0.20878605936919672},{"$f":"X304*'III. GDP shares, 1310-2018'!F306","v":2.8172841091829786},{"$f":"Y304*'III. GDP shares, 1310-2018'!G306","v":-2.2234509974404744},{"$f":"Z304*'III. GDP shares, 1310-2018'!H306","v":0},{"$f":"AA304*'III. GDP shares, 1310-2018'!I306","v":-0.6044555919221486},{"$f":"AB304*'III. GDP shares, 1310-2018'!J306","v":0},null,null,6.872687349687353,7.277296714273432,null,0.6820019465122809,-1.39446426582215,{"$f":"AVERAGE(BL301:BL307)","v":0.4478837197849348},0.8882419292852871,null,null,4.442198301111194]
[{"$f":"'[1]Nominal weighted'!B305","v":1611},null,7.751431689209577,5.0081720970595,5.115738785294987,5.886902409064079,9.932770832904785,null,8.741891042382303,null,null,6.846791222315152,5.368607778829881,4.560607800822,1.3969820036531762,{"$f":"AVERAGE(G302:G308)","v":12.172935107376565},null,5.8445164543439265,null,null,-3.7778205780984666,2.9918279029405,1.1556897861335893,-0.6369024090640787,2.410942803458861,null,-3.362691042382303,{"$nulls":3},3.9736111111111105,8,{"v":6.271428571428576,"d":"6.27"},5.25,12.343713636363645,null,5.379199999999999,{"$nulls":3},{"$f":"AE305*'III. GDP shares, 1310-2018'!C307","v":0.9706773463479293},{"$f":"AF305*'III. GDP shares, 1310-2018'!D307","v":0.8833145789885114},{"$f":"AG305*'III. GDP shares, 1310-2018'!E307","v":0.24297216155390675},{"$f":"AH305*'III. GDP shares, 1310-2018'!F307","v":1.1341970260556493},{"$f":"AI305*'III. GDP shares, 1310-2018'!G307","v":3.3417639311416587},{"$f":"AJ305*'III. GDP shares, 1310-2018'!H307","v":0},{"$f":"AK305*'III. GDP shares, 1310-2018'!I307","v":0.6444203405297104},{"$f":"AL305*'III. GDP shares, 1310-2018'!J307","v":0},null,null,{"$f":"U305*'III. GDP shares, 1310-2018'!C307","v":-0.9228494563731559},{"$f":"V305*'III. GDP shares, 1310-2018'!D307","v":0.3303406505614961},{"$f":"W305*'III. GDP shares, 1310-2018'!E307","v":0.04477455849563898},{"$f":"X305*'III. GDP shares, 1310-2018'!F307","v":-0.13759482252345842},{"$f":"Y305*'III. GDP shares, 1310-2018'!G307","v":0.6527048453967409},{"$f":"Z305*'III. GDP shares, 1310-2018'!H307","v":0},{"$f":"AA305*'III. GDP shares, 1310-2018'!I307","v":-0.4028454987039357},{"$f":"AB305*'III. GDP shares, 1310-2018'!J307","v":0},null,null,6.8696588864838874,7.217345384617366,null,-0.4354697231466741,-0.20315892283531634,{"$f":"AVERAGE(BL302:BL308)","v":0.6143041439823093},0.926142158593772,null,null,7.099841179337025]
[{"$f":"'[1]Nominal weighted'!B306","v":1612},null,-0.20811036628317492,2.8602916497587785,2.834397224549719,4.895997498050513,12.217362887397377,null,-2.061758960553287,null,null,6.3347167234536546,8.081328082682385,7.287868788421791,2.0251274504622896,{"$f":"AVERAGE(G303:G309)","v":14.052258058297282},null,4.891381852315651,null,null,3.5969992551720633,5.1397083502412215,3.410840870688381,1.3540025019494868,0.0881926681581896,null,7.409358960553286,{"$nulls":3},3.3888888888888884,8,{"v":6.2452380952381,"d":"6.25"},6.25,12.305555555555566,null,5.347599999999999,{"$nulls":3},{"$f":"AE306*'III. GDP shares, 1310-2018'!C308","v":0.8262439007986853},{"$f":"AF306*'III. GDP shares, 1310-2018'!D308","v":0.8878290393665047},{"$f":"AG306*'III. GDP shares, 1310-2018'!E308","v":0.24353700619445814},{"$f":"AH306*'III. GDP shares, 1310-2018'!F308","v":1.3484736815794702},{"$f":"AI306*'III. GDP shares, 1310-2018'!G308","v":3.332771601827445},{"$f":"AJ306*'III. GDP shares, 1310-2018'!H308","v":0},{"$f":"AK306*'III. GDP shares, 1310-2018'!I308","v":0.6397096492993961},{"$f":"AL306*'III. GDP shares, 1310-2018'!J308","v":0},null,null,{"$f":"U306*'III. GDP shares, 1310-2018'!C308","v":0.8769832217006552},{"$f":"V306*'III. GDP shares, 1310-2018'!D308","v":0.5703977909023333},{"$f":"W306*'III. GDP shares, 1310-2018'!E308","v":0.13300789522924955},{"$f":"X306*'III. GDP shares, 1310-2018'!F308","v":0.29213387818746217},{"$f":"Y306*'III. GDP shares, 1310-2018'!G308","v":0.023885635930862757},{"$f":"Z306*'III. GDP shares, 1310-2018'!H308","v":0},{"$f":"AA306*'III. GDP shares, 1310-2018'!I308","v":0.8863487213308552},{"$f":"AB306*'III. GDP shares, 1310-2018'!J308","v":0},null,null,6.922880423280426,7.27856487906596,null,2.782757143281418,3.4998504344604378,{"$f":"AVERAGE(BL303:BL309)","v":-0.1649554143140297},-0.1497903312298452,null,null,4.178376487320371]
[{"$f":"'[1]Nominal weighted'!B307","v":1613},null,14.024945963220464,2.3901645237166633,5.656675645493492,7.500735491248998,16.49893658037462,null,4.99880429357583,null,null,4.621188052095905,8.090902645495849,6.469515824361769,2.3096961158105875,{"$f":"AVERAGE(G304:G310)","v":14.580327665532641},null,4.319362394093467,null,null,-10.795779296553798,5.609835476283337,0.5623719735541313,-2.250735491248998,-2.557524105627137,null,0.3171957064241687,{"$nulls":3},3.229166666666666,8,{"v":6.219047619047624,"d":"6.22"},5.25,13.941412474747485,null,5.315999999999999,{"$nulls":3},{"$f":"AE307*'III. GDP shares, 1310-2018'!C309","v":0.78578669741637},{"$f":"AF307*'III. GDP shares, 1310-2018'!D309","v":0.8923247480112498},{"$f":"AG307*'III. GDP shares, 1310-2018'!E309","v":0.24408206932970153},{"$f":"AH307*'III. GDP shares, 1310-2018'!F309","v":1.1312449028810827},{"$f":"AI307*'III. GDP shares, 1310-2018'!G309","v":3.7773280741941693},{"$f":"AJ307*'III. GDP shares, 1310-2018'!H309","v":0},{"$f":"AK307*'III. GDP shares, 1310-2018'!I309","v":0.6350137104598822},{"$f":"AL307*'III. GDP shares, 1310-2018'!J309","v":0},null,null,{"$f":"U307*'III. GDP shares, 1310-2018'!C309","v":-2.6270492158374297},{"$f":"V307*'III. GDP shares, 1310-2018'!D309","v":0.6257243784698873},{"$f":"W307*'III. GDP shares, 1310-2018'!E309","v":0.022071693842270517},{"$f":"X307*'III. GDP shares, 1310-2018'!F309","v":-0.4849777242302817},{"$f":"Y307*'III. GDP shares, 1310-2018'!G309","v":-0.6929432453212526},{"$f":"Z307*'III. GDP shares, 1310-2018'!H309","v":0},{"$f":"AA307*'III. GDP shares, 1310-2018'!I309","v":0.03789007194852425},{"$f":"AB307*'III. GDP shares, 1310-2018'!J309","v":0},null,null,6.9926044600769615,7.465780202292455,null,-3.1192840411282816,-1.519105956194716,{"$f":"AVERAGE(BL304:BL310)","v":0.18585857255568122},0.2428450819404971,null,null,10.318463873879374]
[{"$f":"'[1]Nominal weighted'!B308","v":1614},null,5.074950690160746,9.442325894590525,11.349307337783353,-7.319389738196218,12.738641978775744,null,-6.0803356992761595,null,null,4.232514720653434,6.437901809717021,5.0464981587391,5.6200066712923,{"$f":"AVERAGE(G305:G311)","v":12.437276657471324},null,2.759738286072165,null,null,-1.105506245716302,-1.4423258945905246,-5.156450194926205,12.569389738196218,1.1719624151636612,null,11.364735699276158,{"$nulls":3},3.9694444444444437,8,{"v":6.1928571428571475,"d":"6.19"},5.25,13.910604393939405,null,5.284399999999999,{"$nulls":3},{"$f":"AE308*'III. GDP shares, 1310-2018'!C310","v":0.964071129834249},{"$f":"AF308*'III. GDP shares, 1310-2018'!D310","v":0.8968018215143345},{"$f":"AG308*'III. GDP shares, 1310-2018'!E310","v":0.24460747395397991},{"$f":"AH308*'III. GDP shares, 1310-2018'!F310","v":1.1297780189181583},{"$f":"AI308*'III. GDP shares, 1310-2018'!G310","v":3.770480894544203},{"$f":"AJ308*'III. GDP shares, 1310-2018'!H310","v":0},{"$f":"AK308*'III. GDP shares, 1310-2018'!I310","v":0.630332432286066},{"$f":"AL308*'III. GDP shares, 1310-2018'!J310","v":0},null,null,{"$f":"U308*'III. GDP shares, 1310-2018'!C310","v":-0.2684976878409744},{"$f":"V308*'III. GDP shares, 1310-2018'!D310","v":-0.16168506118575932},{"$f":"W308*'III. GDP shares, 1310-2018'!E310","v":-0.2036711371915303},{"$f":"X308*'III. GDP shares, 1310-2018'!F310","v":2.7048800452246766},{"$f":"Y308*'III. GDP shares, 1310-2018'!G310","v":0.31766138769812785},{"$f":"Z308*'III. GDP shares, 1310-2018'!H310","v":0},{"$f":"AA308*'III. GDP shares, 1310-2018'!I310","v":1.355605460527785},{"$f":"AB308*'III. GDP shares, 1310-2018'!J310","v":0},null,null,7.101217663540165,7.63607177105099,null,3.7442930072323257,2.9003009195671674,{"$f":"AVERAGE(BL305:BL311)","v":0.6506573863882693},0.9648173800783759,null,null,2.83329188111857]
[{"$f":"'[1]Nominal weighted'!B309","v":1615},null,5.6874925669528995,10.937055579920056,9.121894618408419,10.050666902240634,13.878763896464886,null,9.34491142371703,null,null,2.664503836618818,7.171061656750467,5.921720336164671,6.16143554837025,{"$f":"AVERAGE(G306:G312)","v":11.436414724222132},null,3.4426646451495655,null,null,-2.1277703447306777,-2.937055579920056,-2.955227951741748,-4.800666902240634,1.0324166664386688E-3,null,-4.0921114237170295,{"$nulls":3},3.5597222222222213,8,{"v":6.166666666666671,"d":"6.17"},5.25,13.879796313131324,null,5.252799999999999,{"$nulls":3},{"$f":"AE309*'III. GDP shares, 1310-2018'!C311","v":0.8629039416723757},{"$f":"AF309*'III. GDP shares, 1310-2018'!D311","v":0.9012603755027788},{"$f":"AG309*'III. GDP shares, 1310-2018'!E311","v":0.24511334204409832},{"$f":"AH309*'III. GDP shares, 1310-2018'!F311","v":1.128317202753542},{"$f":"AI309*'III. GDP shares, 1310-2018'!G311","v":3.7636208792325374},{"$f":"AJ309*'III. GDP shares, 1310-2018'!H311","v":0},{"$f":"AK309*'III. GDP shares, 1310-2018'!I311","v":0.6256657238116899},{"$f":"AL309*'III. GDP shares, 1310-2018'!J311","v":0},null,null,{"$f":"U309*'III. GDP shares, 1310-2018'!C311","v":-0.5157878347865853},{"$f":"V309*'III. GDP shares, 1310-2018'!D311","v":-0.3308814768539102},{"$f":"W309*'III. GDP shares, 1310-2018'!E311","v":-0.11746472428436021},{"$f":"X309*'III. GDP shares, 1310-2018'!F311","v":-1.0317476286643168},{"$f":"Y309*'III. GDP shares, 1310-2018'!G311","v":2.7994826683444459E-4},{"$f":"Z309*'III. GDP shares, 1310-2018'!H311","v":0},{"$f":"AA309*'III. GDP shares, 1310-2018'!I311","v":-0.48741506545804164},{"$f":"AB309*'III. GDP shares, 1310-2018'!J311","v":0},null,null,7.018164200336702,7.526881465017023,null,-2.4830167817803797,-2.818633297613951,{"$f":"AVERAGE(BL306:BL312)","v":1.079103820459061},0.9982926869018295,null,null,8.777756394440713]
[{"$f":"'[1]Nominal weighted'!B310","v":1616},null,4.686206996024738,6.397558590483001,-0.1886231781176333,2.9266210259137764,16.19771119151032,null,4.842929824853187,null,null,1.8609798507850974,9.277795659926872,7.017760450667477,4.767097350601299,{"$f":"AVERAGE(G307:G313)","v":13.341914330286558},null,5.1687698205642505,null,null,-0.8737069960247374,1.6024414095169988,6.329099368593829,2.3233789740862236,-2.3487229591870764,null,0.37827017514681155,{"$nulls":3},3.8125,8,{"v":6.140476190476195,"d":"6.14"},5.25,13.848988232323244,null,5.221199999999999,{"$nulls":3},{"$f":"AE310*'III. GDP shares, 1310-2018'!C312","v":0.9224121961628473},{"$f":"AF310*'III. GDP shares, 1310-2018'!D312","v":0.9057005246489895},{"$f":"AG310*'III. GDP shares, 1310-2018'!E312","v":0.24559979456982517},{"$f":"AH310*'III. GDP shares, 1310-2018'!F312","v":1.1268624168155665},{"$f":"AI310*'III. GDP shares, 1310-2018'!G312","v":3.756748107737292},{"$f":"AJ310*'III. GDP shares, 1310-2018'!H312","v":0},{"$f":"AK310*'III. GDP shares, 1310-2018'!I312","v":0.6210134948215117},{"$f":"AL310*'III. GDP shares, 1310-2018'!J312","v":0},null,null,{"$f":"U310*'III. GDP shares, 1310-2018'!C312","v":-0.21138832498518614},{"$f":"V310*'III. GDP shares, 1310-2018'!D312","v":0.1814165031648515},{"$f":"W310*'III. GDP shares, 1310-2018'!E312","v":0.25314413027926885},{"$f":"X310*'III. GDP shares, 1310-2018'!F312","v":0.4986911325556711},{"$f":"Y310*'III. GDP shares, 1310-2018'!G312","v":-0.6371267261193262},{"$f":"Z310*'III. GDP shares, 1310-2018'!H312","v":0},{"$f":"AA310*'III. GDP shares, 1310-2018'!I312","v":0.044991742023800435},{"$f":"AB310*'III. GDP shares, 1310-2018'!J312","v":0},null,null,7.045527403799906,7.578336534756032,null,0.12972845691907955,1.235126662022008,{"$f":"AVERAGE(BL307:BL313)","v":0.6352725473508779},0.287922906026393,null,null,6.724324056352814]
[{"$f":"'[1]Nominal weighted'!B311","v":1617},null,-7.389314494711208,8.029744332490623,1.436096677761359,15.398513110724315,5.596749234871526,null,-0.4682739221937462,null,null,0.7416832696187463,11.245848024977752,6.988470916871891,2.5108830595287697,{"$f":"AVERAGE(G308:G314)","v":13.432918866193807},null,{"$f":"AVERAGE(I308:I314)","v":6.100629187051629},null,null,11.576814494711208,1.9702556675093774,4.67818903652436,-10.148513110724315,8.221430916643637,null,5.657873922193745,{"$nulls":3},4.1875,10,{"v":6.114285714285719,"d":"6.11"},5.25,13.818180151515163,null,5.189599999999999,{"$nulls":3},{"$f":"AE311*'III. GDP shares, 1310-2018'!C313","v":1.0112084393387637},{"$f":"AF311*'III. GDP shares, 1310-2018'!D313","v":1.1376529783507403},{"$f":"AG311*'III. GDP shares, 1310-2018'!E313","v":0.24606695150426333},{"$f":"AH311*'III. GDP shares, 1310-2018'!F313","v":1.1254136238421166},{"$f":"AI311*'III. GDP shares, 1310-2018'!G313","v":3.749862658881771},{"$f":"AJ311*'III. GDP shares, 1310-2018'!H313","v":0},{"$f":"AK311*'III. GDP shares, 1310-2018'!I313","v":0.6163756558435688},{"$f":"AL311*'III. GDP shares, 1310-2018'!J313","v":0},null,null,{"$f":"U311*'III. GDP shares, 1310-2018'!C313","v":2.7955994072146386},{"$f":"V311*'III. GDP shares, 1310-2018'!D313","v":0.2241467228254469},{"$f":"W311*'III. GDP shares, 1310-2018'!E313","v":0.18827182251045577},{"$f":"X311*'III. GDP shares, 1310-2018'!F313","v":-2.175480936485616},{"$f":"Y311*'III. GDP shares, 1310-2018'!G313","v":2.2310634583467692},{"$f":"Z311*'III. GDP shares, 1310-2018'!H313","v":0},{"$f":"AA311*'III. GDP shares, 1310-2018'!I313","v":0.6719931689287026},{"$f":"AB311*'III. GDP shares, 1310-2018'!J313","v":0},null,null,7.426594310966814,7.886580307761224,null,3.935593643340397,3.659341821143002,{"$f":"AVERAGE(BL308:BL314)","v":1.0794923654717528},0.40830780454542775,null,null,3.037480408895533]
[{"$f":"'[1]Nominal weighted'!B312","v":1618},null,-3.2246444990327365,10.140291026293625,11.242294027273994,9.676904548609729,2.9267373001604575,null,13.522375555924103,null,null,0.681963256875127,10.466066118778185,6.563279295678176,-4.7402523886777415,{"$f":"AVERAGE(G309:G315)","v":12.914128766819458},null,7.209960191081339,null,null,7.1621444990327365,-0.14029102629362455,-5.154198789178751,-4.176904548609729,10.860634770546625,null,-8.364375555924104,{"$nulls":3},3.9375,10,{"v":6.088095238095243,"d":"6.09"},5.5,13.787372070707082,null,5.157999999999999,{"$nulls":3},{"$f":"AE312*'III. GDP shares, 1310-2018'!C314","v":0.9490278249921524},{"$f":"AF312*'III. GDP shares, 1310-2018'!D314","v":1.1431575779876755},{"$f":"AG312*'III. GDP shares, 1310-2018'!E314","v":0.24651493183409348},{"$f":"AH312*'III. GDP shares, 1310-2018'!F314","v":1.177493205300183},{"$f":"AI312*'III. GDP shares, 1310-2018'!G314","v":3.742964610841191},{"$f":"AJ312*'III. GDP shares, 1310-2018'!H314","v":0},{"$f":"AK312*'III. GDP shares, 1310-2018'!I314","v":0.6117521181415401},{"$f":"AL312*'III. GDP shares, 1310-2018'!J314","v":0},null,null,{"$f":"U312*'III. GDP shares, 1310-2018'!C314","v":1.7262411215737261},{"$f":"V312*'III. GDP shares, 1310-2018'!D314","v":-0.016037474983122513},{"$f":"W312*'III. GDP shares, 1310-2018'!E314","v":-0.20870024424441988},{"$f":"X312*'III. GDP shares, 1310-2018'!F314","v":-0.8942321318500698},{"$f":"Y312*'III. GDP shares, 1310-2018'!G314","v":2.9484205829039167},{"$f":"Z312*'III. GDP shares, 1310-2018'!H314","v":0},{"$f":"AA312*'III. GDP shares, 1310-2018'!I314","v":-0.9920365380511621},{"$f":"AB312*'III. GDP shares, 1310-2018'!J314","v":0},null,null,7.411827884800388,7.870910269096836,null,2.5636553153488686,0.03116822492885903,{"$f":"AVERAGE(BL309:BL315)","v":2.7434824439442},1.739257381745001,null,null,4.148059900777168]
[{"$f":"'[1]Nominal weighted'!B313","v":1619},null,-5.8327782671192185,17.607429671993614,10.506678026069363,-4.86436988633214,25.555860129848355,null,10.020977267349505,null,null,0.8224073026029097,8.345734857216529,3.265895868957681,-12.411684498543123,{"$f":"AVERAGE(G310:G316)","v":11.832900080941965},null,5.677078116218193,null,null,9.645278267119219,-7.607429671993614,-4.4447732641645965,10.26436988633214,-11.799296139949353,null,-4.894577267349506,{"$nulls":3},3.8125,10,{"v":6.061904761904767,"d":"6.06"},5.4,13.756563989899002,null,5.1263999999999985,{"$nulls":3},{"$f":"AE313*'III. GDP shares, 1310-2018'!C315","v":0.9171546451506696},{"$f":"AF313*'III. GDP shares, 1310-2018'!D315","v":1.1486395945558823},{"$f":"AG313*'III. GDP shares, 1310-2018'!E315","v":0.24694385356969095},{"$f":"AH313*'III. GDP shares, 1310-2018'!F315","v":1.1546062655338711},{"$f":"AI313*'III. GDP shares, 1310-2018'!G315","v":3.7360540411493273},{"$f":"AJ313*'III. GDP shares, 1310-2018'!H315","v":0},{"$f":"AK313*'III. GDP shares, 1310-2018'!I315","v":0.6071427937072003},{"$f":"AL313*'III. GDP shares, 1310-2018'!J315","v":0},null,null,{"$f":"U313*'III. GDP shares, 1310-2018'!C315","v":2.320317840382739},{"$f":"V313*'III. GDP shares, 1310-2018'!D315","v":-0.8738194934051133},{"$f":"W313*'III. GDP shares, 1310-2018'!E315","v":-0.1810667572664816},{"$f":"X313*'III. GDP shares, 1310-2018'!F315","v":2.1946862560215328},{"$f":"Y313*'III. GDP shares, 1310-2018'!G315","v":-3.2044926377505325},{"$f":"Z313*'III. GDP shares, 1310-2018'!H315","v":0},{"$f":"AA313*'III. GDP shares, 1310-2018'!I315","v":-0.5796869764580083},{"$f":"AB313*'III. GDP shares, 1310-2018'!J315","v":0},null,null,7.359561458633961,7.810541193666642,null,-0.32406176847586365,-1.4727380316676186,{"$f":"AVERAGE(BL310:BL316)","v":5.27505157324547},4.398418869147634,null,null,6.11214387418151]
[{"$f":"'[1]Nominal weighted'!B314","v":1620},null,6.189869895056005,16.166531079072826,5.451648908924389,-8.292764546258704,17.13596833172538,null,11.521819858987481,null,null,0.9703490787351078,9.241426936157927,3.043249018301531,-11.020364340469296,{"$f":"AVERAGE(G311:G317)","v":10.99062118028348},null,4.302415490956749,null,null,-2.314869895056005,-6.166531079072826,0.5840653767899026,13.676097879592037,-3.41021242263446,null,-6.427019858987483,{"$nulls":3},3.875,10,{"v":6.035714285714291,"d":"6.04"},5.383333333333333,13.725755909090921,null,5.094799999999998,{"$nulls":3},{"$f":"AE314*'III. GDP shares, 1310-2018'!C316","v":0.9304233059125285},{"$f":"AF314*'III. GDP shares, 1310-2018'!D316","v":1.15409916674419},{"$f":"AG314*'III. GDP shares, 1310-2018'!E316","v":0.24735383375511896},{"$f":"AH314*'III. GDP shares, 1310-2018'!F316","v":1.1495752876083656},{"$f":"AI314*'III. GDP shares, 1310-2018'!G316","v":3.7291310267050797},{"$f":"AJ314*'III. GDP shares, 1310-2018'!H316","v":0},{"$f":"AK314*'III. GDP shares, 1310-2018'!I316","v":0.6025475952529672},{"$f":"AL314*'III. GDP shares, 1310-2018'!J316","v":0},null,null,{"$f":"U314*'III. GDP shares, 1310-2018'!C316","v":-0.5558216517459087},{"$f":"V314*'III. GDP shares, 1310-2018'!D316","v":-0.71167883800601},{"$f":"W314*'III. GDP shares, 1310-2018'!E316","v":0.02393599220800645},{"$f":"X314*'III. GDP shares, 1310-2018'!F316","v":2.920440399992355},{"$f":"Y314*'III. GDP shares, 1310-2018'!G316","v":-0.9265157443517104},{"$f":"Z314*'III. GDP shares, 1310-2018'!H316","v":0},{"$f":"AA314*'III. GDP shares, 1310-2018'!I316","v":-0.7601054723788909},{"$f":"AB314*'III. GDP shares, 1310-2018'!J316","v":0},null,null,7.3524339213564245,7.8131302159782505,null,-0.009745314282158524,-0.6764116665614726,{"$f":"AVERAGE(BL311:BL317)","v":5.281698234807149},4.443452614663761,null,null,5.957097525510209]
[{"$f":"'[1]Nominal weighted'!B315","v":1621},null,4.656910600955409,3.98385255119355,8.372965989427332,-58.0773378756418,9.107111283155273,null,1.6849813289318178,null,null,2.9328234798161112,9.770748257152027,3.295766283268288,-10.928823226549119,{"$f":"AVERAGE(G312:G318)","v":13.101322442431059},null,6.271089842269583,null,null,-0.3444106009554087,6.01614744880645,-2.3634421799035166,62.027337875641805,4.587836545127568,null,3.3782186710681805,{"$nulls":3},4.3125,10,{"v":6.009523809523815,"d":"6.01"},3.9499999999999997,13.69494782828284,null,5.063199999999998,{"$nulls":3},{"$f":"AE315*'III. GDP shares, 1310-2018'!C317","v":1.033513008690365},{"$f":"AF315*'III. GDP shares, 1310-2018'!D317","v":1.1595364321081134},{"$f":"AG315*'III. GDP shares, 1310-2018'!E317","v":0.24774498847799906},{"$f":"AH315*'III. GDP shares, 1310-2018'!F317","v":0.8424241344159226},{"$f":"AI315*'III. GDP shares, 1310-2018'!G317","v":3.7221956437789596},{"$f":"AJ315*'III. GDP shares, 1310-2018'!H317","v":0},{"$f":"AK315*'III. GDP shares, 1310-2018'!I317","v":0.5979664362045419},{"$f":"AL315*'III. GDP shares, 1310-2018'!J317","v":0},null,null,{"$f":"U315*'III. GDP shares, 1310-2018'!C317","v":-0.08253978815496375},{"$f":"V315*'III. GDP shares, 1310-2018'!D317","v":0.697594214782536},{"$f":"W315*'III. GDP shares, 1310-2018'!E317","v":-0.09743383572266938},{"$f":"X315*'III. GDP shares, 1310-2018'!F317","v":13.228690232914309},{"$f":"Y315*'III. GDP shares, 1310-2018'!G317","v":1.246943428829765},{"$f":"Z315*'III. GDP shares, 1310-2018'!H317","v":0},{"$f":"AA315*'III. GDP shares, 1310-2018'!I317","v":0.39896930389048113},{"$f":"AB315*'III. GDP shares, 1310-2018'!J317","v":0},null,null,7.171695272967774,7.6033806436759015,null,15.392223556539458,12.21694795996418,{"$f":"AVERAGE(BL312:BL318)","v":3.916107505897199},3.2607754363377928,null,null,-8.250785130189133]
[{"$f":"'[1]Nominal weighted'!B316","v":1622},null,6.67060088704738,-3.905263251011533,-13.959789368635043,-43.64935786681703,6.310163095322441,null,-1.3852631003250018,null,null,4.28266149770089,8.919981583234188,2.665268935630697,-12.053080278012343,{"$f":"AVERAGE(G313:G319)","v":14.660421865252163},null,5.880359970082565,null,null,-0.3456008870473799,13.905263251011533,19.94312270196838,47.49935786681703,7.353976652152319,null,6.416863100325,{"$nulls":3},6.325,10,{"v":5.983333333333339,"d":"5.98"},3.8499999999999996,13.66413974747476,null,5.031599999999998,{"$nulls":3},{"$f":"AE316*'III. GDP shares, 1310-2018'!C318","v":1.512958924334336},{"$f":"AF316*'III. GDP shares, 1310-2018'!D318","v":1.164951527081405},{"$f":"AG316*'III. GDP shares, 1310-2018'!E318","v":0.24811743287926072},{"$f":"AH316*'III. GDP shares, 1310-2018'!F318","v":0.820056065062473},{"$f":"AI316*'III. GDP shares, 1310-2018'!G318","v":3.7152479680194936},{"$f":"AJ316*'III. GDP shares, 1310-2018'!H318","v":0},{"$f":"AK316*'III. GDP shares, 1310-2018'!I318","v":0.5933992306936368},{"$f":"AL316*'III. GDP shares, 1310-2018'!J318","v":0},null,null,{"$f":"U316*'III. GDP shares, 1310-2018'!C318","v":-0.0826687662159994},{"$f":"V316*'III. GDP shares, 1310-2018'!D318","v":1.6198957658734827},{"$f":"W316*'III. GDP shares, 1310-2018'!E318","v":0.8270032994554589},{"$f":"X316*'III. GDP shares, 1310-2018'!F318","v":10.117438053313297},{"$f":"Y316*'III. GDP shares, 1310-2018'!G318","v":1.9995292289674507},{"$f":"Z316*'III. GDP shares, 1310-2018'!H318","v":0},{"$f":"AA316*'III. GDP shares, 1310-2018'!I318","v":0.7567695419348202},{"$f":"AB316*'III. GDP shares, 1310-2018'!J318","v":0},null,null,7.475678846801348,8.054731148070605,null,15.23796712332851,15.79549711420448,{"$f":"AVERAGE(BL313:BL319)","v":3.596776109214068},3.2570980741081454,null,null,-6.7282917364658275]
[{"$f":"'[1]Nominal weighted'!B317","v":1623},null,5.721799428950122,12.66740314307279,-1.7471511327106723,12.665862132430561,10.30175888690092,null,-4.779708551976924,null,null,6.058836315501655,7.550887445677278,2.8629034377498637,-11.618055899635523,{"$f":"AVERAGE(G314:G320)","v":8.896369781310502},null,5.25610469460018,null,null,-0.3467994289501228,-2.6674031430727894,7.704293989853535,-8.499195465763895,3.3315727797657595,null,9.779708551976924,{"$nulls":3},5.375,10,{"v":5.957142857142863,"d":"5.96"},4.166666666666667,13.63333166666668,null,5,{"$nulls":3},{"$f":"AE317*'III. GDP shares, 1310-2018'!C319","v":1.2832954058205355},{"$f":"AF317*'III. GDP shares, 1310-2018'!D319","v":1.170344586987466},{"$f":"AG317*'III. GDP shares, 1310-2018'!E319","v":0.24847128116277206},{"$f":"AH317*'III. GDP shares, 1310-2018'!F319","v":0.8863846585618524},{"$f":"AI317*'III. GDP shares, 1310-2018'!G319","v":3.7082880744595514},{"$f":"AJ317*'III. GDP shares, 1310-2018'!H319","v":0},{"$f":"AK317*'III. GDP shares, 1310-2018'!I319","v":0.5888458935507934},{"$f":"AL317*'III. GDP shares, 1310-2018'!J319","v":0},null,null,{"$f":"U317*'III. GDP shares, 1310-2018'!C319","v":-0.08279927700704703},{"$f":"V317*'III. GDP shares, 1310-2018'!D319","v":-0.31217808298085925},{"$f":"W317*'III. GDP shares, 1310-2018'!E319","v":0.32134461838836587},{"$f":"X317*'III. GDP shares, 1310-2018'!F319","v":-1.8080535530331778},{"$f":"Y317*'III. GDP shares, 1310-2018'!G319","v":0.9061931382925166},{"$f":"Z317*'III. GDP shares, 1310-2018'!H319","v":0},{"$f":"AA317*'III. GDP shares, 1310-2018'!I319","v":1.1517482441910376},{"$f":"AB317*'III. GDP shares, 1310-2018'!J319","v":0},null,null,7.355356865079369,7.8856299005429715,null,0.176255087850836,1.5503628806349017,{"$f":"AVERAGE(BL314:BL320)","v":4.983567054347562},4.256689834169307,null,null,6.22685214272381]
[{"$f":"'[1]Nominal weighted'!B318","v":1624},null,6.3480063128558175,11.734993579449323,3.2037175325286538,16.03930090816556,20.371658069904598,null,13.31244653699609,null,null,6.117666030022243,7.560140003226912,2.637238089132896,-7.889336534718438,{"$f":"AVERAGE(G315:G321)","v":9.001635328049357},null,4.865512923226019,null,null,-0.34800631285581707,-3.7349935794493234,2.7272348484237328,-11.279044497909151,-6.769134484045999,null,-8.31244653699609,{"$nulls":3},6,8,{"v":5.9309523809523865,"d":"5.93"},4.76025641025641,13.602523585858599,null,5,{"$nulls":3},{"$f":"AE318*'III. GDP shares, 1310-2018'!C320","v":1.4298246249990947},{"$f":"AF318*'III. GDP shares, 1310-2018'!D320","v":0.9405725968404959},{"$f":"AG318*'III. GDP shares, 1310-2018'!E320","v":0.24880664660485308},{"$f":"AH318*'III. GDP shares, 1310-2018'!F320","v":1.0113838519992235},{"$f":"AI318*'III. GDP shares, 1310-2018'!G320","v":3.7013160375225933},{"$f":"AJ318*'III. GDP shares, 1310-2018'!H320","v":0},{"$f":"AK318*'III. GDP shares, 1310-2018'!I320","v":0.5880226434046048},{"$f":"AL318*'III. GDP shares, 1310-2018'!J320","v":0},null,null,{"$f":"U318*'III. GDP shares, 1310-2018'!C320","v":-0.08293133262939771},{"$f":"V318*'III. GDP shares, 1310-2018'!D320","v":-0.4391290762756536},{"$f":"W318*'III. GDP shares, 1310-2018'!E320","v":0.1144089706940527},{"$f":"X318*'III. GDP shares, 1310-2018'!F320","v":-2.396392649477373},{"$f":"Y318*'III. GDP shares, 1310-2018'!G320","v":-1.8419160141721023},{"$f":"Z318*'III. GDP shares, 1310-2018'!H320","v":0},{"$f":"AA318*'III. GDP shares, 1310-2018'!I320","v":-0.9775813571687786},{"$f":"AB318*'III. GDP shares, 1310-2018'!J320","v":0},null,null,7.215622062844567,7.919926401370866,null,-5.623541459029252,-4.619398427138775,{"$f":"AVERAGE(BL315:BL321)","v":4.321232559151722},3.82109218248416,null,null,12.163766187283969]
[{"$f":"'[1]Nominal weighted'!B319","v":1625},null,6.224221626160714,4.1849243088687444,6.828812593810859,1.8071051883671663,13.840433259908187,null,10.787266450614986,null,null,6.395667234877078,8.289503755575192,1.268200869028846,1.412606319545029,{"$f":"AVERAGE(G316:G322)","v":11.256928837129456},null,4.090061231782323,null,null,-0.3492216261607141,3.8150756911312556,-0.924050689048949,3.546740965478987,-0.2687177548576678,null,-5.787266450614985,{"$nulls":3},5.875,8,{"v":5.90476190476191,"d":"5.90"},5.3538461538461535,13.571715505050518,null,5,{"$nulls":3},{"$f":"AE319*'III. GDP shares, 1310-2018'!C321","v":1.3974121806334923},{"$f":"AF319*'III. GDP shares, 1310-2018'!D321","v":0.9448521099257988},{"$f":"AG319*'III. GDP shares, 1310-2018'!E321","v":0.2491236415636737},{"$f":"AH319*'III. GDP shares, 1310-2018'!F321","v":1.1360705053101923},{"$f":"AI319*'III. GDP shares, 1310-2018'!G321","v":3.6943319310288527},{"$f":"AJ319*'III. GDP shares, 1310-2018'!H321","v":0},{"$f":"AK319*'III. GDP shares, 1310-2018'!I321","v":0.5872027296458453},{"$f":"AL319*'III. GDP shares, 1310-2018'!J321","v":0},null,null,{"$f":"U319*'III. GDP shares, 1310-2018'!C321","v":-0.08306494538512643},{"$f":"V319*'III. GDP shares, 1310-2018'!D321","v":0.450585289536499},{"$f":"W319*'III. GDP shares, 1310-2018'!E321","v":-0.038985970367348494},{"$f":"X319*'III. GDP shares, 1310-2018'!F321","v":0.7526080662518526},{"$f":"Y319*'III. GDP shares, 1310-2018'!G321","v":-0.07314717007114058},{"$f":"Z319*'III. GDP shares, 1310-2018'!H321","v":0},{"$f":"AA319*'III. GDP shares, 1310-2018'!I321","v":-0.6796597313977885},{"$f":"AB319*'III. GDP shares, 1310-2018'!J321","v":0},null,null,7.284220593943097,8.008993098107855,null,0.32833553856694764,0.005426689321321139,{"$f":"AVERAGE(BL316:BL322)","v":1.8519474568389132},2.1894050068325637,null,null,7.186390739151608]
[{"$f":"'[1]Nominal weighted'!B320","v":1626},null,6.6004454574861375,8.023770709095245,11.890119540903527,-1.8191992376944048,-14.792504457743284,null,5.651190338972809,null,null,6.386176960246208,9.379136948126016,2.4383766598500785,8.959065374315367,{"$f":"AVERAGE(G317:G323)","v":12.950047156465304},null,4.629135455184626,null,null,-0.35044545748613737,-0.02377070909524548,-6.011548112332093,7.3499684684636355,28.33341188198572,null,3.8488096610271914,{"$nulls":3},6.25,8,{"v":5.878571428571434,"d":"5.88"},5.530769230769231,13.540907424242437,null,9.5,{"$nulls":3},{"$f":"AE320*'III. GDP shares, 1310-2018'!C322","v":1.4838280466147167},{"$f":"AF320*'III. GDP shares, 1310-2018'!D322","v":0.9491143144934333},{"$f":"AG320*'III. GDP shares, 1310-2018'!E322","v":0.24942237748853707},{"$f":"AH320*'III. GDP shares, 1310-2018'!F322","v":1.1721418978199347},{"$f":"AI320*'III. GDP shares, 1310-2018'!G322","v":3.6873358282014266},{"$f":"AJ320*'III. GDP shares, 1310-2018'!H322","v":0},{"$f":"AK320*'III. GDP shares, 1310-2018'!I322","v":1.1141336508635653},{"$f":"AL320*'III. GDP shares, 1310-2018'!J322","v":0},null,null,{"$f":"U320*'III. GDP shares, 1310-2018'!C322","v":-0.08320012778026495},{"$f":"V320*'III. GDP shares, 1310-2018'!D322","v":-2.8201400334945917E-3},{"$f":"W320*'III. GDP shares, 1310-2018'!E322","v":-0.2550644558433092},{"$f":"X320*'III. GDP shares, 1310-2018'!F322","v":1.5576867574970985},{"$f":"Y320*'III. GDP shares, 1310-2018'!G322","v":7.715495091606014},{"$f":"Z320*'III. GDP shares, 1310-2018'!H322","v":0},{"$f":"AA320*'III. GDP shares, 1310-2018'!I322","v":0.4513777220125459},{"$f":"AB320*'III. GDP shares, 1310-2018'!J322","v":0},null,null,8.116708013930518,8.655976115481613,null,9.38347484745859,5.524404288760512,{"$f":"AVERAGE(BL317:BL323)","v":-0.37595963293722734},0.24900396918496495,null,null,-1.6794331865039052]
[{"$f":"'[1]Nominal weighted'!B321","v":1627},null,6.601677896700122,16.23129898192026,3.871991468605617,17.808271008160894,17.872827158897355,null,8.787677459368354,null,null,6.512409581755903,6.284612029953826,1.9455330551063545,8.92830087540103,{"$f":"AVERAGE(G318:G324)","v":12.354467033001105},null,5.623137332180275,null,null,-0.351677896700122,-8.231298981920261,1.980389483775341,-12.100578700468589,-4.362727815462997,null,0.7123225406316457,{"$nulls":3},6.25,8,{"v":5.852380952380958,"d":"5.85"},5.707692307692307,13.510099343434357,null,9.5,{"$nulls":3},{"$f":"AE321*'III. GDP shares, 1310-2018'!C323","v":1.4810586141122029},{"$f":"AF321*'III. GDP shares, 1310-2018'!D323","v":0.953359315338091},{"$f":"AG321*'III. GDP shares, 1310-2018'!E323","v":0.24970296492905092},{"$f":"AH321*'III. GDP shares, 1310-2018'!F323","v":1.2081252964523432},{"$f":"AI321*'III. GDP shares, 1310-2018'!G323","v":3.6803278016723056},{"$f":"AJ321*'III. GDP shares, 1310-2018'!H323","v":0},{"$f":"AK321*'III. GDP shares, 1310-2018'!I323","v":1.1125883779305716},{"$f":"AL321*'III. GDP shares, 1310-2018'!J323","v":0},null,null,{"$f":"U321*'III. GDP shares, 1310-2018'!C323","v":-0.08333689252809234},{"$f":"V321*'III. GDP shares, 1310-2018'!D323","v":-0.9809231952183283},{"$f":"W321*'III. GDP shares, 1310-2018'!E323","v":0.08449708415031171},{"$f":"X321*'III. GDP shares, 1310-2018'!F323","v":-2.5612829917349167},{"$f":"Y321*'III. GDP shares, 1310-2018'!G323","v":-1.1884641305898749},{"$f":"Z321*'III. GDP shares, 1310-2018'!H323","v":0},{"$f":"AA321*'III. GDP shares, 1310-2018'!I323","v":0.08342334526786804},{"$f":"AB321*'III. GDP shares, 1310-2018'!J323","v":0},null,null,8.136695433917938,8.685162370434565,null,-4.646086780653032,-3.7255952283574967,{"$f":"AVERAGE(BL318:BL324)","v":0.14170193243152093},0.8490552906213625,null,null,11.39696664053118]
[{"$f":"'[1]Nominal weighted'!B322","v":1628},null,6.602919034939251,9.089398817631505,-1.2102945513010175,7.036262104202452,24.894165846715975,null,-3.7431805111740566,null,null,6.549365190587748,4.62190806120686,2.306654688354349,7.349972260939455,{"$f":"AVERAGE(G319:G325)","v":8.06929017863846},null,4.327121967844348,null,null,-0.35291903493925075,-1.0893988176315048,7.0364850274915,-1.1516467195870688,-11.414874584089699,null,11.743180511174057,{"$nulls":3},6.25,8,{"v":5.826190476190482,"d":"5.83"},5.884615384615383,13.479291262626276,null,8,{"$nulls":3},{"$f":"AE322*'III. GDP shares, 1310-2018'!C324","v":1.4783003374769395},{"$f":"AF322*'III. GDP shares, 1310-2018'!D324","v":0.9575872164101931},{"$f":"AG322*'III. GDP shares, 1310-2018'!E324","v":0.24996551354418786},{"$f":"AH322*'III. GDP shares, 1310-2018'!F324","v":1.2440212328946931},{"$f":"AI322*'III. GDP shares, 1310-2018'!G324","v":3.6733079234883257},{"$f":"AJ322*'III. GDP shares, 1310-2018'!H324","v":0},{"$f":"AK322*'III. GDP shares, 1310-2018'!I324","v":0.9356204881582346},{"$f":"AL322*'III. GDP shares, 1310-2018'!J324","v":0},null,null,{"$f":"U322*'III. GDP shares, 1310-2018'!C324","v":-0.08347525255243682},{"$f":"V322*'III. GDP shares, 1310-2018'!D324","v":-0.13039929766703853},{"$f":"W322*'III. GDP shares, 1310-2018'!E324","v":0.30189170790601466},{"$f":"X322*'III. GDP shares, 1310-2018'!F324","v":-0.24346076647683462},{"$f":"Y322*'III. GDP shares, 1310-2018'!G324","v":-3.110723586159275},{"$f":"Z322*'III. GDP shares, 1310-2018'!H324","v":0},{"$f":"AA322*'III. GDP shares, 1310-2018'!I324","v":1.3733950352993674},{"$f":"AB322*'III. GDP shares, 1310-2018'!J324","v":0},null,null,7.906682853905356,8.538802711972574,null,-1.8927721596502032,0.7951377304030056,{"$f":"AVERAGE(BL319:BL325)","v":2.078406190042713},2.3635427007387255,null,null,9.343588357545546]
[{"$f":"'[1]Nominal weighted'!B323","v":1629},null,6.604168964631282,3.7221690968442402,-5.768558832886416,9.175855516575346,18.16199133067337,null,2.388256463491124,null,null,{"$f":"AVERAGE(C320:C326)","v":6.697043879215384},6.363407849023858,4.550265226264874,6.104044429638553,{"$f":"AVERAGE(G320:G326)","v":8.666420758838898},null,5.3960506648354425,null,null,-0.3541689646312818,4.27783090315576,11.568558832886422,-3.114317055036885,-4.713508148855175,null,5.611743536508876,{"$nulls":3},6.25,8,{"v":5.800000000000006,"d":"5.80"},6.06153846153846,13.448483181818196,null,8,{"$nulls":3},{"$f":"AE323*'III. GDP shares, 1310-2018'!C325","v":1.4755531494370853},{"$f":"AF323*'III. GDP shares, 1310-2018'!D325","v":0.9617981208243745},{"$f":"AG323*'III. GDP shares, 1310-2018'!E325","v":0.2502101321112369},{"$f":"AH323*'III. GDP shares, 1310-2018'!F325","v":1.2798302345593695},{"$f":"AI323*'III. GDP shares, 1310-2018'!G325","v":3.6662762651170486},{"$f":"AJ323*'III. GDP shares, 1310-2018'!H325","v":0},{"$f":"AK323*'III. GDP shares, 1310-2018'!I325","v":0.934329657768071},{"$f":"AL323*'III. GDP shares, 1310-2018'!J325","v":0},null,null,{"$f":"U323*'III. GDP shares, 1310-2018'!C325","v":-0.08361522099112952},{"$f":"V323*'III. GDP shares, 1310-2018'!D325","v":0.5143012154824559},{"$f":"W323*'III. GDP shares, 1310-2018'!E325","v":0.4990639023988147},{"$f":"X323*'III. GDP shares, 1310-2018'!F325","v":-0.6575553635979864},{"$f":"Y323*'III. GDP shares, 1310-2018'!G325","v":-1.2849793406401973},{"$f":"Z323*'III. GDP shares, 1310-2018'!H325","v":0},{"$f":"AA323*'III. GDP shares, 1310-2018'!I325","v":0.6554023022435653},{"$f":"AB323*'III. GDP shares, 1310-2018'!J325","v":0},null,null,7.9266702738927775,8.567997559817186,null,-0.3573825051044772,2.212689850671286,{"$f":"AVERAGE(BL320:BL326)","v":1.8320353824278015},1.7296695678280376,null,null,8.477883159579743]
[{"$f":"'[1]Nominal weighted'!B324","v":1630},null,6.6054277795179965,-8.994271284132537,-5.197056365916741,12.4505106400302,6.132698022651536,null,2.1783045869926116,null,null,6.8054457414274925,6.621354498707648,4.229602612260784,5.0158318493369505,{"$f":"AVERAGE(G321:G327)","v":14.542385572125337},null,7.035970492346129,null,null,-0.3554277795179962,16.994271284132537,10.970865889726271,-6.212049101568663,7.284977078358579,null,5.821695413007388,{"$nulls":3},6.25,8,{"v":5.77380952380953,"d":"5.77"},6.238461538461538,13.417675101010115,null,8,{"$nulls":3},{"$f":"AE324*'III. GDP shares, 1310-2018'!C326","v":1.472816983260596},{"$f":"AF324*'III. GDP shares, 1310-2018'!D326","v":0.9659921308678684},{"$f":"AG324*'III. GDP shares, 1310-2018'!E326","v":0.2504369285346465},{"$f":"AH324*'III. GDP shares, 1310-2018'!F326","v":1.3155528246267452},{"$f":"AI324*'III. GDP shares, 1310-2018'!G326","v":3.6592328974525765},{"$f":"AJ324*'III. GDP shares, 1310-2018'!H326","v":0},{"$f":"AK324*'III. GDP shares, 1310-2018'!I326","v":0.9330440062575402},{"$f":"AL324*'III. GDP shares, 1310-2018'!J326","v":0},null,null,{"$f":"U324*'III. GDP shares, 1310-2018'!C326","v":-0.08375681119947319},{"$f":"V324*'III. GDP shares, 1310-2018'!D326","v":2.052041541288227},{"$f":"W324*'III. GDP shares, 1310-2018'!E326","v":0.47585739457781356},{"$f":"X324*'III. GDP shares, 1310-2018'!F326","v":-1.3099830289735261},{"$f":"Y324*'III. GDP shares, 1310-2018'!G326","v":1.986739698318588},{"$f":"Z324*'III. GDP shares, 1310-2018'!H326","v":0},{"$f":"AA324*'III. GDP shares, 1310-2018'!I326","v":0.6789872514204449},{"$f":"AB324*'III. GDP shares, 1310-2018'!J326","v":0},null,null,7.946657693880198,8.597075770999973,null,3.799886045432074,5.750722130689685,{"$f":"AVERAGE(BL321:BL327)","v":0.2642803215991793},0.667985423322331,null,null,5.883239135988257]
[{"$f":"'[1]Nominal weighted'!B325","v":1631},null,6.606695574678732,0.0960657982205646,5.731568965264613,4.991000606934533,-9.624579910633935,null,4.240338986644606,null,null,6.913856586636963,5.235006344533811,3.5326305504730047,1.6284557625869789,{"$f":"AVERAGE(G322:G328)","v":14.696872708623863},null,7.680739585294643,null,null,-0.35669557467873225,7.903934201779435,-0.3506499176455593,1.4243840084500803,23.01144693083597,null,4.259661013355394,{"$nulls":3},6.25,8,{"v":5.380919047619054,"d":"5.38"},6.415384615384614,13.386867020202034,null,8.5,{"$nulls":3},{"$f":"AE325*'III. GDP shares, 1310-2018'!C327","v":1.4700917727498195},{"$f":"AF325*'III. GDP shares, 1310-2018'!D327","v":0.9701693480087865},{"$f":"AG325*'III. GDP shares, 1310-2018'!E327","v":0.23465471136189886},{"$f":"AH325*'III. GDP shares, 1310-2018'!F327","v":1.351189522087542},{"$f":"AI325*'III. GDP shares, 1310-2018'!G327","v":3.652177890821284},{"$f":"AJ325*'III. GDP shares, 1310-2018'!H327","v":0},{"$f":"AK325*'III. GDP shares, 1310-2018'!I327","v":0.9899987214297645},{"$f":"AL325*'III. GDP shares, 1310-2018'!J327","v":0},null,null,{"$f":"U325*'III. GDP shares, 1310-2018'!C327","v":-0.0839000367538357},{"$f":"V325*'III. GDP shares, 1310-2018'!D327","v":0.958519336405588},{"$f":"W325*'III. GDP shares, 1310-2018'!E327","v":-0.015291375782841458},{"$f":"X325*'III. GDP shares, 1310-2018'!F327","v":0.29999958896173173},{"$f":"Y325*'III. GDP shares, 1310-2018'!G327","v":6.277936248248326},{"$f":"Z325*'III. GDP shares, 1310-2018'!H327","v":0},{"$f":"AA325*'III. GDP shares, 1310-2018'!I327","v":0.4961245831701241},{"$f":"AB325*'III. GDP shares, 1310-2018'!J327","v":0},null,null,{"$f":"AVERAGE(AE325:AL325)","v":7.988861780534283},{"$f":"SUM(AO325:AV325)","v":8.668281966459094},null,{"$f":"SUM(AY325:BF325)","v":7.933388344249092},{"$f":"AVERAGE(U325:AB325)","v":5.982013443682764},{"$f":"AVERAGE(BL322:BL328)","v":1.0145929060793573},1.398663702047221,null,null,{"$f":"((AO325+SUM(AQ325:AV325))-((AY325+(SUM(BA325:BF325)))))","v":0.7232436106068034}]
[{"$f":"'[1]Nominal weighted'!B326","v":1632},null,7.25797244655416,16.375422823587726,22.534086359184535,-6.914389630739154,18.020347321311263,null,18.26976732955265,null,null,7.0222765113334455,5.00571621685984,5.543193439128544,2.0619707797332616,{"$f":"AVERAGE(G323:G329)","v":12.711608780859441},null,9.616892836872807,null,null,-0.3579724465541601,-8.375422823587726,-17.179357787755958,13.506697323046845,-4.664288381917311,null,-9.519767329552648,{"$nulls":3},6.9,8,{"v":5.354728571428577,"d":"5.35"},6.592307692307691,13.356058939393954,null,8.75,{"$nulls":3},{"$f":"AE326*'III. GDP shares, 1310-2018'!C328","v":1.6199847072687186},{"$f":"AF326*'III. GDP shares, 1310-2018'!D328","v":0.9743298729043035},{"$f":"AG326*'III. GDP shares, 1310-2018'!E328","v":0.23476070989181044},{"$f":"AH326*'III. GDP shares, 1310-2018'!F328","v":1.3867408417846874},{"$f":"AI326*'III. GDP shares, 1310-2018'!G328","v":3.645111314987496},{"$f":"AJ326*'III. GDP shares, 1310-2018'!H328","v":0},{"$f":"AK326*'III. GDP shares, 1310-2018'!I328","v":1.0177213765533517},{"$f":"AL326*'III. GDP shares, 1310-2018'!J328","v":0},null,null,{"$f":"U326*'III. GDP shares, 1310-2018'!C328","v":-0.08404491145526204},{"$f":"V326*'III. GDP shares, 1310-2018'!D328","v":-1.020053081903254},{"$f":"W326*'III. GDP shares, 1310-2018'!E328","v":-0.7531732329549292},{"$f":"X326*'III. GDP shares, 1310-2018'!F328","v":2.8412340093513255},{"$f":"Y326*'III. GDP shares, 1310-2018'!G328","v":-1.272969102221032},{"$f":"Z326*'III. GDP shares, 1310-2018'!H328","v":0},{"$f":"AA326*'III. GDP shares, 1310-2018'!I328","v":-1.1072537955542794},{"$f":"AB326*'III. GDP shares, 1310-2018'!J328","v":0},null,null,8.158849200521704,8.878648823390368,null,-1.3962601147374312,-4.4316852410534935,{"$f":"AVERAGE(BL323:BL329)","v":1.2392722876937385},1.0910114145137302,null,null,8.280525983320242]
[{"$f":"'[1]Nominal weighted'!B327","v":1633},null,7.359258492970902,9.829397256881776,9.645481242874897,-9.436687299805621,26.339249235261782,null,17.130629131547614,null,null,7.202134184822095,5.250845586331825,7.217989402998256,2.5125734904841357,{"$f":"AVERAGE(G324:G330)","v":11.836786532731013},null,9.380147822322987,null,null,-0.3592584929709017,-1.8293972568817765,-4.316943147636795,16.20591806903639,-13.013998376675909,null,-8.130629131547613,{"$nulls":3},7,8,{"v":5.328538095238102,"d":"5.33"},6.769230769230768,13.325250858585873,null,9,{"$nulls":3},{"$f":"AE327*'III. GDP shares, 1310-2018'!C329","v":1.640434831363769},{"$f":"AF327*'III. GDP shares, 1310-2018'!D329","v":0.9784738054087424},{"$f":"AG327*'III. GDP shares, 1310-2018'!E329","v":0.2348495457155099},{"$f":"AH327*'III. GDP shares, 1310-2018'!F329","v":1.4222072944546673},{"$f":"AI327*'III. GDP shares, 1310-2018'!G329","v":3.638033239159091},{"$f":"AJ327*'III. GDP shares, 1310-2018'!H329","v":0},{"$f":"AK327*'III. GDP shares, 1310-2018'!I329","v":1.045370042098986},{"$f":"AL327*'III. GDP shares, 1310-2018'!J329","v":0},null,null,{"$f":"U327*'III. GDP shares, 1310-2018'!C329","v":-0.08419144933324613},{"$f":"V327*'III. GDP shares, 1310-2018'!D329","v":-0.22375216194317832},{"$f":"W327*'III. GDP shares, 1310-2018'!E329","v":-0.19026459396212356},{"$f":"X327*'III. GDP shares, 1310-2018'!F329","v":3.4048440180061057},{"$f":"Y327*'III. GDP shares, 1310-2018'!G329","v":-3.5530557113829735},{"$f":"Z327*'III. GDP shares, 1310-2018'!H329","v":0},{"$f":"AA327*'III. GDP shares, 1310-2018'!I329","v":-0.9443906797263522},{"$f":"AB327*'III. GDP shares, 1310-2018'!J329","v":0},null,null,8.237169953842457,8.959368758200766,null,-1.5908105783417679,-1.9073847227794343,{"$f":"AVERAGE(BL324:BL330)","v":1.2916839144039522},0.8690007936979931,null,null,9.347953369190613]
[{"$f":"'[1]Nominal weighted'!B328","v":1634},null,7.360553813166415,6.526861902703402,-1.006812963908839,-5.903361599088902,18.95423711438706,null,13.301061110007952,null,null,7.239143992105745,7.512341772516971,7.366363301765754,2.656776234210145,{"$f":"AVERAGE(G325:G331)","v":13.299236806868675},null,9.617782009132823,null,null,-0.3605538131664158,1.473138097296598,6.309160582956464,12.849515445242748,-6.885282866021031,null,-5.051061110007952,{"$nulls":3},7,8,{"v":5.302347619047625,"d":"5.30"},6.9461538461538455,12.068954248366028,null,8.25,{"$nulls":3},{"$f":"AE328*'III. GDP shares, 1310-2018'!C330","v":1.6374189676762152},{"$f":"AF328*'III. GDP shares, 1310-2018'!D330","v":0.9826012445815625},{"$f":"AG328*'III. GDP shares, 1310-2018'!E330","v":0.2349213212973367},{"$f":"AH328*'III. GDP shares, 1310-2018'!F330","v":1.4575893867683878},{"$f":"AI328*'III. GDP shares, 1310-2018'!G330","v":3.296241483175596},{"$f":"AJ328*'III. GDP shares, 1310-2018'!H330","v":0},{"$f":"AK328*'III. GDP shares, 1310-2018'!I330","v":0.9569510884678714},{"$f":"AL328*'III. GDP shares, 1310-2018'!J330","v":0},null,null,{"$f":"U328*'III. GDP shares, 1310-2018'!C330","v":-0.08433966464952508},{"$f":"V328*'III. GDP shares, 1310-2018'!D330","v":0.18093841598051902},{"$f":"W328*'III. GDP shares, 1310-2018'!E330","v":0.2795283234733341},{"$f":"X328*'III. GDP shares, 1310-2018'!F330","v":2.6963579777998894},{"$f":"Y328*'III. GDP shares, 1310-2018'!G330","v":-1.8804905992123844},{"$f":"Z328*'III. GDP shares, 1310-2018'!H330","v":0},{"$f":"AA328*'III. GDP shares, 1310-2018'!I330","v":-0.5858931426836175},{"$f":"AB328*'III. GDP shares, 1310-2018'!J330","v":0},null,null,7.927909285594583,8.56572349196697,null,0.6061013107082155,1.3891527227167355,{"$f":"AVERAGE(BL325:BL331)","v":0.5367516645623918},0.14666741386646714,null,null,7.15795935265771]
[{"$f":"'[1]Nominal weighted'!B329","v":1635},null,{"$f":"AE329-U329","v":7.361858507814626},{"$f":"AF329-V329","v":7.484367923913709},{"$f":"AG329-W329","v":12.863645669287756},{"$f":"AH329-X329","v":10.070867224226427},{"$f":"AI329-Y329","v":10.997318352365012},null,{"$f":"AK329-AA329","v":9.80989224987309},null,null,7.276163176767581,8.081096395160186,7.1573670864915675,3.3198115172373477,{"$f":"AVERAGE(G326:G332)","v":16.66250077163942},null,9.861532965612273,null,null,-0.36185850781462525,0.5156320760862911,-7.587488526430606,-0.44779030114950513,1.0408278151929355,null,-1.3098922498730907,{"$nulls":3},7,8,{"v":5.27615714285715,"d":"5.28"},9.623076923076923,12.038146167557947,null,8.5,{"$nulls":3},{"$f":"AE329*'III. GDP shares, 1310-2018'!C331","v":1.6344150836354627},{"$f":"AF329*'III. GDP shares, 1310-2018'!D331","v":0.9867122886952526},{"$f":"AG329*'III. GDP shares, 1310-2018'!E331","v":0.2349761382876107},{"$f":"AH329*'III. GDP shares, 1310-2018'!F331","v":2.016849259541906},{"$f":"AI329*'III. GDP shares, 1310-2018'!G331","v":3.2890192660522604},{"$f":"AJ329*'III. GDP shares, 1310-2018'!H331","v":0},{"$f":"AK329*'III. GDP shares, 1310-2018'!I331","v":0.9846106238833913},{"$f":"AL329*'III. GDP shares, 1310-2018'!J331","v":0},null,null,{"$f":"U329*'III. GDP shares, 1310-2018'!C331","v":-0.08448957190200636},{"$f":"V329*'III. GDP shares, 1310-2018'!D331","v":0.06359756323997362},{"$f":"W329*'III. GDP shares, 1310-2018'!E331","v":-0.33791236784064993},{"$f":"X329*'III. GDP shares, 1310-2018'!F331","v":-0.09384997589883728},{"$f":"Y329*'III. GDP shares, 1310-2018'!G331","v":0.28437125527169904},{"$f":"Z329*'III. GDP shares, 1310-2018'!H331","v":0},{"$f":"AA329*'III. GDP shares, 1310-2018'!I331","v":-0.15173339121971327},{"$f":"AB329*'III. GDP shares, 1310-2018'!J331","v":0},null,null,8.406230038915337,9.146582660095884,null,-0.3200164883495342,-1.3584282823314335,{"$f":"AVERAGE(BL326:BL332)","v":-0.6356335577514536},-0.6387946306500167,null,null,8.543484422990138]
[{"$f":"'[1]Nominal weighted'!B330","v":1636},null,7.863172679051832,5.43807468314813,5.955012914201574,12.330074491831468,12.038235593774369,null,0.731041361642391,null,null,7.20604898385443,8.255592122752509,5.081808503452706,6.935744284200031,{"$f":"AVERAGE(G327:G333)","v":16.019812274232148},null,10.418853823411297,null,null,-0.3631726790518326,2.5619253168518696,-0.7050462475349013,-5.030074491831468,-0.03089750702450266,null,7.518958638357609,{"$nulls":3},7.5,8,{"v":5.249966666666673,"d":"5.25"},7.3,12.007338086749867,null,8.25,{"$nulls":3},{"$f":"AE330*'III. GDP shares, 1310-2018'!C332","v":1.7479533300047887},{"$f":"AF330*'III. GDP shares, 1310-2018'!D332","v":0.990807035243131},{"$f":"AG330*'III. GDP shares, 1310-2018'!E332","v":0.23501409753069905},{"$f":"AH330*'III. GDP shares, 1310-2018'!F332","v":1.528102496924527},{"$f":"AI330*'III. GDP shares, 1310-2018'!G332","v":3.2817862343336754},{"$f":"AJ330*'III. GDP shares, 1310-2018'!H332","v":0},{"$f":"AK330*'III. GDP shares, 1310-2018'!I332","v":0.9543570393609204},{"$f":"AL330*'III. GDP shares, 1310-2018'!J332","v":0},null,null,{"$f":"U330*'III. GDP shares, 1310-2018'!C332","v":-0.08464118582872149},{"$f":"V330*'III. GDP shares, 1310-2018'!D332","v":0.31729670346304},{"$f":"W330*'III. GDP shares, 1310-2018'!E332","v":-0.03156130659530927},{"$f":"X330*'III. GDP shares, 1310-2018'!F332","v":-1.0529410124224707},{"$f":"Y330*'III. GDP shares, 1310-2018'!G332","v":-0.008444753741058977},{"$f":"Z330*'III. GDP shares, 1310-2018'!H332","v":0},{"$f":"AA330*'III. GDP shares, 1310-2018'!I332","v":0.8697904369915376},{"$f":"AB330*'III. GDP shares, 1310-2018'!J332","v":0},null,null,8.051217458902757,8.73802023339774,null,0.009498881867017084,0.658615504961129,{"$f":"AVERAGE(BL327:BL333)","v":-1.2172198297433916},-0.926499829222994,null,null,8.055011019750633]
[{"$f":"'[1]Nominal weighted'!B331","v":1637},null,6.86449643050354,6.836202019163494,-4.158439074544251,13.45992984611226,16.369849941615165,null,3.8417438946614517,null,null,6.993087231331979,8.874222651279513,3.611651268464399,9.932296765226852,{"$f":"AVERAGE(G328:G334)","v":14.127321254013177},null,10.427297247437094,null,null,-0.36449643050354064,1.163797980836506,9.382215265020449,-6.180122153804567,-4.393319935673377,null,4.558256105338549,{"$nulls":3},6.5,8,{"v":5.2237761904761975,"d":"5.22"},7.279807692307692,11.976530005941786,null,8.4,{"$nulls":3},{"$f":"AE331*'III. GDP shares, 1310-2018'!C333","v":1.512125615102042},{"$f":"AF331*'III. GDP shares, 1310-2018'!D333","v":0.9948855809470525},{"$f":"AG331*'III. GDP shares, 1310-2018'!E333","v":0.23503529907298887},{"$f":"AH331*'III. GDP shares, 1310-2018'!F333","v":1.5220226930480587},{"$f":"AI331*'III. GDP shares, 1310-2018'!G333","v":3.2745424522016795},{"$f":"AJ331*'III. GDP shares, 1310-2018'!H333","v":0},{"$f":"AK331*'III. GDP shares, 1310-2018'!I333","v":0.9703962161743055},{"$f":"AL331*'III. GDP shares, 1310-2018'!J333","v":0},null,null,{"$f":"U331*'III. GDP shares, 1310-2018'!C333","v":-0.08479452141194846},{"$f":"V331*'III. GDP shares, 1310-2018'!D333","v":0.14473072878369173},{"$f":"W331*'III. GDP shares, 1310-2018'!E333","v":0.42213749027027553},{"$f":"X331*'III. GDP shares, 1310-2018'!F333","v":-1.2921064074039863},{"$f":"Y331*'III. GDP shares, 1310-2018'!G333","v":-1.201192050479496},{"$f":"Z331*'III. GDP shares, 1310-2018'!H333","v":0},{"$f":"AA331*'III. GDP shares, 1310-2018'!I333","v":0.5265850567826136},{"$f":"AB331*'III. GDP shares, 1310-2018'!J333","v":0},null,null,7.896685648120946,8.509007856546127,null,-1.4846397034588499,0.694388471869003,{"$f":"AVERAGE(BL328:BL334)","v":-1.3549665409109004},-1.0001306813427575,null,null,9.143492707841617]
[{"$f":"'[1]Nominal weighted'!B332","v":1638},null,6.86582986731159,4.077348156723062,4.268595458345287,9.632247588124958,13.91826784276126,null,5.946595682000758,null,null,6.780135167254927,7.799163298483356,4.920157099840054,10.973375892768477,{"$f":"AVERAGE(G329:G335)","v":12.347411168092847},null,7.737983782627571,null,null,-0.36582986731159034,3.922651843276938,0.928990255940433,-2.4139958398732104,-1.9725459176275537,null,2.803404317999241,{"$nulls":3},6.5,8,{"v":5.1975857142857205,"d":"5.20"},7.218251748251747,11.945721925133705,null,8.75,{"$nulls":3},{"$f":"AE332*'III. GDP shares, 1310-2018'!C334","v":1.5093692712767661},{"$f":"AF332*'III. GDP shares, 1310-2018'!D334","v":0.9989480217650241},{"$f":"AG332*'III. GDP shares, 1310-2018'!E334","v":0.23503984217076387},{"$f":"AH332*'III. GDP shares, 1310-2018'!F334","v":1.5073228672162475},{"$f":"AI332*'III. GDP shares, 1310-2018'!G334","v":3.2672879833312405},{"$f":"AJ332*'III. GDP shares, 1310-2018'!H334","v":0},{"$f":"AK332*'III. GDP shares, 1310-2018'!I334","v":1.0094673234668066},{"$f":"AL332*'III. GDP shares, 1310-2018'!J334","v":0},null,null,{"$f":"U332*'III. GDP shares, 1310-2018'!C334","v":-0.0849495938823648},{"$f":"V332*'III. GDP shares, 1310-2018'!D334","v":0.48981566236430285},{"$f":"W332*'III. GDP shares, 1310-2018'!E334","v":0.042009835938689025},{"$f":"X332*'III. GDP shares, 1310-2018'!F334","v":-0.5040931319258937},{"$f":"Y332*'III. GDP shares, 1310-2018'!G334","v":-0.5395132762695266},{"$f":"Z332*'III. GDP shares, 1310-2018'!H334","v":0},{"$f":"AA332*'III. GDP shares, 1310-2018'!I334","v":0.3234222918269694},{"$f":"AB332*'III. GDP shares, 1310-2018'!J334","v":0},null,null,7.935259897945195,8.527435309226847,null,-0.2733082119478238,0.4837791320673763,{"$f":"AVERAGE(BL329:BL335)","v":-0.6609979261338584},-0.4564597584581766,null,null,8.29161116177395]
[{"$f":"'[1]Nominal weighted'!B333","v":1639},null,6.767173096162101,17.596892916733992,8.005176277912517,18.397139737999623,13.521527839460393,null,22.171013334145815,null,null,6.567192898366258,8.614419867372442,4.228497107416996,10.358594543022104,{"$f":"AVERAGE(G330:G336)","v":12.917083848962196},null,8.855560601563143,null,null,-0.3671730961621009,-9.596892916733992,-3.417081039817272,-11.240443933803821,-0.3811254657230042,null,-13.671013334145815,{"$nulls":3},6.4,8,{"v":4.588095238095245,"d":"4.59"},7.156695804195803,13.14040237373739,null,8.5,{"$nulls":3},{"$f":"AE333*'III. GDP shares, 1310-2018'!C335","v":1.483444962397048},{"$f":"AF333*'III. GDP shares, 1310-2018'!D335","v":1.00299445289873},{"$f":"AG333*'III. GDP shares, 1310-2018'!E335","v":0.20851820377720004},{"$f":"AH333*'III. GDP shares, 1310-2018'!F335","v":1.4926614044548017},{"$f":"AI333*'III. GDP shares, 1310-2018'!G335","v":3.5953270912120026},{"$f":"AJ333*'III. GDP shares, 1310-2018'!H335","v":0},{"$f":"AK333*'III. GDP shares, 1310-2018'!I335","v":0.9793074622111637},{"$f":"AL333*'III. GDP shares, 1310-2018'!J335","v":0},null,null,{"$f":"U333*'III. GDP shares, 1310-2018'!C335","v":-0.08510641872334304},{"$f":"V333*'III. GDP shares, 1310-2018'!D335","v":-1.2032037950684136},{"$f":"W333*'III. GDP shares, 1310-2018'!E335","v":-0.15529834574219298},{"$f":"X333*'III. GDP shares, 1310-2018'!F335","v":-2.3444026807860707},{"$f":"Y333*'III. GDP shares, 1310-2018'!G335","v":-0.10427920493540994},{"$f":"Z333*'III. GDP shares, 1310-2018'!H335","v":0},{"$f":"AA333*'III. GDP shares, 1310-2018'!I335","v":-1.5750735734255668},{"$f":"AB333*'III. GDP shares, 1310-2018'!J335","v":0},null,null,7.964198902671406,8.762253576950947,null,-5.467364018680997,-6.445621631064334,{"$f":"AVERAGE(BL330:BL336)","v":-0.9320328257371205},-0.7097861280790914,null,null,12.023419347664799]
[{"$f":"'[1]Nominal weighted'!B334","v":1640},null,5.8685262253137545,14.159810956570809,-0.6456194020432555,11.539180067382134,13.091812093728977,null,17.189733099728194,null,null,6.282831961554329,8.660977294291916,3.2204671275324026,11.005585938430807,{"$f":"AVERAGE(G331:G337)","v":11.178160132892854},null,8.48305414455883,null,null,-0.3685262253137548,-6.159810956570809,5.207524163948024,-4.444040207242275,0.017782199200331267,null,-8.789733099728195,{"$nulls":3},5.5,8,{"v":4.561904761904769,"d":"4.56"},7.095139860139859,13.109594292929309,null,8.4,{"$nulls":3},{"$f":"AE334*'III. GDP shares, 1310-2018'!C336","v":1.2725215520680744},{"$f":"AF334*'III. GDP shares, 1310-2018'!D336","v":1.0070249688009691},{"$f":"AG334*'III. GDP shares, 1310-2018'!E336","v":0.2083580121440268},{"$f":"AH334*'III. GDP shares, 1310-2018'!F336","v":1.478038078432001},{"$f":"AI334*'III. GDP shares, 1310-2018'!G336","v":3.588170407646556},{"$f":"AJ334*'III. GDP shares, 1310-2018'!H336","v":0},{"$f":"AK334*'III. GDP shares, 1310-2018'!I336","v":0.966488888037766},{"$f":"AL334*'III. GDP shares, 1310-2018'!J336","v":0},null,null,{"$f":"U334*'III. GDP shares, 1310-2018'!C336","v":-0.08526501167528147},{"$f":"V334*'III. GDP shares, 1310-2018'!D336","v":-0.7753854295450733},{"$f":"W334*'III. GDP shares, 1310-2018'!E336","v":0.23784568938242245},{"$f":"X334*'III. GDP shares, 1310-2018'!F336","v":-0.9257690162371861},{"$f":"Y334*'III. GDP shares, 1310-2018'!G336","v":0.004867088906627613},{"$f":"Z334*'III. GDP shares, 1310-2018'!H336","v":0},{"$f":"AA334*'III. GDP shares, 1310-2018'!I336","v":-1.0113308773458392},{"$f":"AB334*'III. GDP shares, 1310-2018'!J336","v":0},null,null,7.777773152495656,8.520601907129393,null,-2.55503755651433,-2.4228006876177797,{"$f":"AVERAGE(BL331:BL337)","v":-0.4725984914564435},-0.2948914487817603,null,null,9.29322906529768]
[{"$f":"'[1]Nominal weighted'!B335","v":1641},null,5.869889364627052,-0.9985535668697025,8.152727855720752,1.3841922937024762,6.494866512944752,null,-5.524133143658707,null,null,6.141338181024818,9.096531480699811,3.928634767525476,10.823655304341552,{"$f":"AVERAGE(G332:G338)","v":10.995600626565585},null,7.80720328957006,null,null,-0.3698893646270519,8.998553566869703,-3.617013570006458,5.649391622381438,6.583919699176477,null,13.924133143658707,{"$nulls":3},5.5,8,{"v":4.535714285714293,"d":"4.54"},7.033583916083915,13.078786212121228,null,8.4,{"$nulls":3},{"$f":"AE335*'III. GDP shares, 1310-2018'!C337","v":1.2702166728809547},{"$f":"AF335*'III. GDP shares, 1310-2018'!D337","v":1.011039663183004},{"$f":"AG335*'III. GDP shares, 1310-2018'!E337","v":0.20818197220051132},{"$f":"AH335*'III. GDP shares, 1310-2018'!F337","v":1.463452664593026},{"$f":"AI335*'III. GDP shares, 1310-2018'!G337","v":3.5810027583681907},{"$f":"AJ335*'III. GDP shares, 1310-2018'!H337","v":0},{"$f":"AK335*'III. GDP shares, 1310-2018'!I337","v":0.9651966706288401},{"$f":"AL335*'III. GDP shares, 1310-2018'!J337","v":0},null,null,{"$f":"U335*'III. GDP shares, 1310-2018'!C337","v":-0.08542538874011349},{"$f":"V335*'III. GDP shares, 1310-2018'!D337","v":1.1372368209227706},{"$f":"W335*'III. GDP shares, 1310-2018'!E337","v":-0.16601509068849413},{"$f":"X335*'III. GDP shares, 1310-2018'!F337","v":1.1754487216961778},{"$f":"Y335*'III. GDP shares, 1310-2018'!G337","v":1.8026928662366835},{"$f":"Z335*'III. GDP shares, 1310-2018'!H337","v":0},{"$f":"AA335*'III. GDP shares, 1310-2018'!I337","v":1.5999436847204842},{"$f":"AB335*'III. GDP shares, 1310-2018'!J337","v":0},null,null,7.758014068986572,8.499090401854527,null,5.463881614147509,5.194849182908802,{"$f":"AVERAGE(BL332:BL338)","v":-0.3617228752071802},-0.30253198047778135,null,null,3.161405945446786]
[{"$f":"'[1]Nominal weighted'!B336","v":1642},null,5.871262625593942,13.191163906137305,8.02202572232635,5.767397776001803,14.985027118450454,null,17.6329299824221,null,null,5.999854525473363,9.397321072376219,4.78446326992472,10.929215556083676,{"$f":"AVERAGE(G333:G339)","v":12.7019395423059},null,8.293417935608614,null,null,-0.37126262559394185,-5.191163906137305,-3.5125019128025325,1.2046301960261665,-1.9370489871373062,null,-8.982929982422101,{"$nulls":3},5.5,8,{"v":4.509523809523817,"d":"4.51"},6.97202797202797,13.047978131313148,null,8.65,{"$nulls":3},{"$f":"AE336*'III. GDP shares, 1310-2018'!C338","v":1.2679208236195159},{"$f":"AF336*'III. GDP shares, 1310-2018'!D338","v":1.0150386290218245},{"$f":"AG336*'III. GDP shares, 1310-2018'!E338","v":0.2079901770810782},{"$f":"AH336*'III. GDP shares, 1310-2018'!F338","v":1.448904940142554},{"$f":"AI336*'III. GDP shares, 1310-2018'!G338","v":3.573824207818187},{"$f":"AJ336*'III. GDP shares, 1310-2018'!H338","v":0},{"$f":"AK336*'III. GDP shares, 1310-2018'!I338","v":0.9925972990046219},{"$f":"AL336*'III. GDP shares, 1310-2018'!J338","v":0},null,null,{"$f":"U336*'III. GDP shares, 1310-2018'!C338","v":-0.08558756618585721},{"$f":"V336*'III. GDP shares, 1310-2018'!D338","v":-0.6586539867891487},{"$f":"W336*'III. GDP shares, 1310-2018'!E338","v":-0.16200510867655643},{"$f":"X336*'III. GDP shares, 1310-2018'!F338","v":0.25034246119920817},{"$f":"Y336*'III. GDP shares, 1310-2018'!G338","v":-0.5305551934784173},{"$f":"Z336*'III. GDP shares, 1310-2018'!H338","v":0},{"$f":"AA336*'III. GDP shares, 1310-2018'!I338","v":-1.030801391641597},{"$f":"AB336*'III. GDP shares, 1310-2018'!J338","v":0},null,null,7.7799216521441545,8.506276076687781,null,-2.2172607855723685,-3.1317128696778362,{"$f":"AVERAGE(BL333:BL339)","v":-0.9685200169771923},-0.8925422362464973,null,null,9.049844246449178]
[{"$f":"'[1]Nominal weighted'!B337","v":1643},null,5.872646121368325,5.763976671584459,-1.1011969449905772,16.859014259692398,-0.13423041871102548,null,-1.8765038373878156,null,null,5.8726668224017065,7.336284964255701,4.815901612160445,8.85026376510548,{"$f":"AVERAGE(G334:G340)","v":13.456378401680029},null,6.076983319439315,null,null,-0.3726461213683251,2.2360233284155413,5.584530278323918,-9.94854223172037,13.151400469216092,null,10.726503837387815,{"$nulls":3},5.5,8,{"v":4.4833333333333405,"d":"4.48"},6.910472027972026,13.017170050505067,null,8.85,{"$nulls":3},{"$f":"AE337*'III. GDP shares, 1310-2018'!C339","v":1.2656339513221022},{"$f":"AF337*'III. GDP shares, 1310-2018'!D339","v":1.0190219585673235},{"$f":"AG337*'III. GDP shares, 1310-2018'!E339","v":0.2077827191918251},{"$f":"AH337*'III. GDP shares, 1310-2018'!F339","v":1.4343946840275585},{"$f":"AI337*'III. GDP shares, 1310-2018'!G339","v":3.566634819933879},{"$f":"AJ337*'III. GDP shares, 1310-2018'!H339","v":0},{"$f":"AK337*'III. GDP shares, 1310-2018'!I339","v":1.0141967185181993},{"$f":"AL337*'III. GDP shares, 1310-2018'!J339","v":0},null,null,{"$f":"U337*'III. GDP shares, 1310-2018'!C339","v":-0.085751560551318},{"$f":"V337*'III. GDP shares, 1310-2018'!D339","v":0.2848196089405288},{"$f":"W337*'III. GDP shares, 1310-2018'!E339","v":0.25881833902733564},{"$f":"X337*'III. GDP shares, 1310-2018'!F339","v":-2.0650016429038542},{"$f":"Y337*'III. GDP shares, 1310-2018'!G339","v":3.6034132351663417},{"$f":"Z337*'III. GDP shares, 1310-2018'!H339","v":0},{"$f":"AA337*'III. GDP shares, 1310-2018'!I339","v":1.2292412421527226},{"$f":"AB337*'III. GDP shares, 1310-2018'!J339","v":0},null,null,7.793495901968406,8.507664851560888,null,3.2255392218317565,3.5628782600424453,{"$f":"AVERAGE(BL334:BL340)","v":-0.2516350902506384},0.0158922782708168,null,null,4.547923280102337]
[{"$f":"'[1]Nominal weighted'!B338","v":1644},null,5.874039966796961,9.885081324018756,0.7987344054072558,12.186415407487466,15.091933397324276,null,-0.8892120902599245,null,null,5.8740609010059535,3.974231630274145,4.9962270369390405,7.7819751824938335,{"$f":"AVERAGE(G335:G341)","v":12.279975002390804},null,2.8256328274518823,null,null,-0.37403996679696133,-1.8850813240187563,3.6584084517356086,-5.337499323571385,-2.1055714276272894,null,9.889212090259925,{"$nulls":3},5.5,8,{"v":4.457142857142864,"d":"4.46"},6.848916083916082,12.986361969696986,null,9,{"$nulls":3},{"$f":"AE338*'III. GDP shares, 1310-2018'!C340","v":1.2633560034404194},{"$f":"AF338*'III. GDP shares, 1310-2018'!D340","v":1.0229897433493926},{"$f":"AG338*'III. GDP shares, 1310-2018'!E340","v":0.20755969021762846},{"$f":"AH338*'III. GDP shares, 1310-2018'!F340","v":1.4199216769203122},{"$f":"AI338*'III. GDP shares, 1310-2018'!G340","v":3.5594346581535774},{"$f":"AJ338*'III. GDP shares, 1310-2018'!H340","v":0},{"$f":"AK338*'III. GDP shares, 1310-2018'!I340","v":1.0300181521308187},{"$f":"AL338*'III. GDP shares, 1310-2018'!J340","v":0},null,null,{"$f":"U338*'III. GDP shares, 1310-2018'!C340","v":-0.08591738865083567},{"$f":"V338*'III. GDP shares, 1310-2018'!D340","v":-0.2410523574813351},{"$f":"W338*'III. GDP shares, 1310-2018'!E340","v":0.17036432290136436},{"$f":"X338*'III. GDP shares, 1310-2018'!F340","v":-1.1065737844101426},{"$f":"Y338*'III. GDP shares, 1310-2018'!G340","v":-0.577116511321866},{"$f":"Z338*'III. GDP shares, 1310-2018'!H340","v":0},{"$f":"AA338*'III. GDP shares, 1310-2018'!I340","v":1.1317853292488087},{"$f":"AB338*'III. GDP shares, 1310-2018'!J340","v":0},null,null,7.7987368184593215,8.50327992421215,null,-0.7085103897140066,0.6409047499968569,{"$f":"AVERAGE(BL335:BL341)","v":1.0684276379926267},1.4445768645571881,null,null,7.947748213095427]
[{"$f":"'[1]Nominal weighted'!B339","v":1645},null,5.875444278451405,6.182875298457915,10.259394975139996,10.371169350319825,25.86264025294347,null,9.350098204270633,null,null,{"$f":"AVERAGE(C336:C342)","v":5.875465449351247},{"$f":"AVERAGE(D336:D342)","v":3.873251839500668},{"$f":"AVERAGE(E336:E342)","v":2.4716579898917836},{"$f":"AVERAGE(F336:F342)","v":5.4577819675919255},{"$f":"AVERAGE(G336:G342)","v":12.112590053848418},null,5.913704590645277,null,null,-0.37544427845140477,1.8171247015420846,-5.8284425941876075,-3.5838092104596875,-12.907086364054566,null,-1.0000982042706343,{"$nulls":3},5.5,8,{"v":4.430952380952388,"d":"4.43"},6.787360139860137,12.955553888888906,null,8.35,{"$nulls":3},{"$f":"AE339*'III. GDP shares, 1310-2018'!C341","v":1.2610869278355092},{"$f":"AF339*'III. GDP shares, 1310-2018'!D341","v":1.026942074184932},{"$f":"AG339*'III. GDP shares, 1310-2018'!E341","v":0.20732118112916614},{"$f":"AH339*'III. GDP shares, 1310-2018'!F341","v":1.4054857012015864},{"$f":"AI339*'III. GDP shares, 1310-2018'!G341","v":3.5522237854214254},{"$f":"AJ339*'III. GDP shares, 1310-2018'!H341","v":0},{"$f":"AK339*'III. GDP shares, 1310-2018'!I341","v":0.9543633802082402},{"$f":"AL339*'III. GDP shares, 1310-2018'!J341","v":0},null,null,{"$f":"U339*'III. GDP shares, 1310-2018'!C341","v":-0.08608506757921845},{"$f":"V339*'III. GDP shares, 1310-2018'!D341","v":0.233260226256788},{"$f":"W339*'III. GDP shares, 1310-2018'!E341","v":-0.2727087765521848},{"$f":"X339*'III. GDP shares, 1310-2018'!F341","v":-0.7421136490982534},{"$f":"Y339*'III. GDP shares, 1310-2018'!G341","v":-3.538934697512594},{"$f":"Z339*'III. GDP shares, 1310-2018'!H341","v":0},{"$f":"AA339*'III. GDP shares, 1310-2018'!I341","v":-0.11430623985244476},{"$f":"AB339*'III. GDP shares, 1310-2018'!J341","v":0},null,null,7.670644401616905,8.40742304998086,null,-4.520888204337908,-3.646292658313636,{"$f":"AVERAGE(BL336:BL342)","v":1.2981877447278865},1.6818071817167808,null,null,12.134629406390623]
[{"$f":"'[1]Nominal weighted'!B340","v":1646},null,5.876859174660504,3.1696401598903634,8.225244673562603,3.8444772011522517,18.802599855079304,null,6.655971020960717,null,null,5.876880585832882,3.4485088769362937,1.1885916290182206,4.125387559771773,{"$f":"AVERAGE(G337:G343)","v":10.350805455655772},null,3.8146672632821534,null,null,-0.3768591746605042,4.830359840109637,-3.82048276880069,2.881326994651941,-5.877854046998478,null,1.8440289790392832,{"$nulls":3},5.5,8,{"v":4.404761904761912,"d":"4.40"},6.7258041958041925,12.924745808080825,null,8.5,{"$nulls":3},{"$f":"AE340*'III. GDP shares, 1310-2018'!C342","v":1.2588266727737716},{"$f":"AF340*'III. GDP shares, 1310-2018'!D342","v":1.0308790411847797},{"$f":"AG340*'III. GDP shares, 1310-2018'!E342","v":0.20706728218985818},{"$f":"AH340*'III. GDP shares, 1310-2018'!F342","v":1.3910865409440498},{"$f":"AI340*'III. GDP shares, 1310-2018'!G342","v":3.5450022641922057},{"$f":"AJ340*'III. GDP shares, 1310-2018'!H342","v":0},{"$f":"AK340*'III. GDP shares, 1310-2018'!I342","v":0.9702253476963841},{"$f":"AL340*'III. GDP shares, 1310-2018'!J342","v":0},null,null,{"$f":"U340*'III. GDP shares, 1310-2018'!C342","v":-0.08625461471675495},{"$f":"V340*'III. GDP shares, 1310-2018'!D342","v":0.622439590068711},{"$f":"W340*'III. GDP shares, 1310-2018'!E342","v":-0.17960039627420082},{"$f":"X340*'III. GDP shares, 1310-2018'!F342","v":0.5959399182062916},{"$f":"Y340*'III. GDP shares, 1310-2018'!G342","v":-1.612179165038061},{"$f":"Z340*'III. GDP shares, 1310-2018'!H342","v":0},{"$f":"AA340*'III. GDP shares, 1310-2018'!I342","v":0.21048513615889375},{"$f":"AB340*'III. GDP shares, 1310-2018'!J342","v":0},null,null,7.675885318107821,8.403087148981049,null,-0.4491695315951205,-0.0865800294431353,{"$f":"AVERAGE(BL337:BL343)","v":2.32737294802821},2.7250784230249736,null,null,8.443817229460102]
[{"$f":"'[1]Nominal weighted'!B341","v":1647},null,5.8782847755434835,-9.37456238130008,0.6166585714069015,4.061159989100618,4.856988298704415,null,-5.569720344183828,null,null,5.878306430638132,3.964888735877267,1.1115276998067332,4.407050661896102,{"$f":"AVERAGE(G338:G344)","v":9.81786140752057},null,4.709579728543401,null,null,-0.3782847755434837,17.37456238130008,3.7619128571645346,2.60308826264763,8.03694942856833,null,14.069720344183828,{"$nulls":3},5.5,8,{"v":4.378571428571436,"d":"4.38"},6.664248251748249,12.893937727272744,null,8.5,{"$nulls":3},{"$f":"AE341*'III. GDP shares, 1310-2018'!C343","v":1.2565751869230324},{"$f":"AF341*'III. GDP shares, 1310-2018'!D343","v":1.0348007337605591},{"$f":"AG341*'III. GDP shares, 1310-2018'!E343","v":0.2067980829627265},{"$f":"AH341*'III. GDP shares, 1310-2018'!F343","v":1.3767239818958554},{"$f":"AI341*'III. GDP shares, 1310-2018'!G343","v":3.537770156436082},{"$f":"AJ341*'III. GDP shares, 1310-2018'!H343","v":0},{"$f":"AK341*'III. GDP shares, 1310-2018'!I343","v":0.9689480377824053},{"$f":"AL341*'III. GDP shares, 1310-2018'!J343","v":0},null,null,{"$f":"U341*'III. GDP shares, 1310-2018'!C343","v":-0.08642604773430736},{"$f":"V341*'III. GDP shares, 1310-2018'!D343","v":2.2474012376172414},{"$f":"W341*'III. GDP shares, 1310-2018'!E343","v":0.17767355856251887},{"$f":"X341*'III. GDP shares, 1310-2018'!F343","v":0.5377551830003452},{"$f":"Y341*'III. GDP shares, 1310-2018'!G343","v":2.2051355015493024},{"$f":"Z341*'III. GDP shares, 1310-2018'!H343","v":0},{"$f":"AA341*'III. GDP shares, 1310-2018'!I343","v":1.6038621081934246},{"$f":"AB341*'III. GDP shares, 1310-2018'!J343","v":0},null,null,7.656126234598738,8.38161617976066,null,6.685401541188525,7.57799141638682,{"$f":"AVERAGE(BL338:BL344)","v":2.0669068106302038},2.3456222429326563,null,null,2.908815142428818]
[{"$f":"'[1]Nominal weighted'!B342","v":1648},null,5.87972120304411,-1.7054121022840434,-9.519255473610047,-14.885160210610884,5.323171873148037,null,16.092369198695053,null,null,5.879743105780321,3.8846805256811217,1.226786134487819,3.9509101923533194,{"$f":"AVERAGE(G339:G345)","v":11.597206453608218},null,6.9501319828237715,null,null,-0.3797212030441101,9.705412102284043,13.871636425991007,21.48785251830319,7.539957773316627,null,-11.092369198695055,{"$nulls":3},5.5,8,{"v":4.35238095238096,"d":"4.35"},6.602692307692305,12.863129646464664,null,5,{"$nulls":3},{"$f":"AE342*'III. GDP shares, 1310-2018'!C344","v":1.2543324193486571},{"$f":"AF342*'III. GDP shares, 1310-2018'!D344","v":1.038707240631449},{"$f":"AG342*'III. GDP shares, 1310-2018'!E344","v":0.20651367231717563},{"$f":"AH342*'III. GDP shares, 1310-2018'!F344","v":1.3623978114644226},{"$f":"AI342*'III. GDP shares, 1310-2018'!G344","v":3.5305275236432907},{"$f":"AJ342*'III. GDP shares, 1310-2018'!H344","v":0},{"$f":"AK342*'III. GDP shares, 1310-2018'!I344","v":0.5692209846524742},{"$f":"AL342*'III. GDP shares, 1310-2018'!J344","v":0},null,null,{"$f":"U342*'III. GDP shares, 1310-2018'!C344","v":-0.08659938459860024},{"$f":"V342*'III. GDP shares, 1310-2018'!D344","v":1.260135227994316},{"$f":"W342*'III. GDP shares, 1310-2018'!E344","v":0.6581874635337207},{"$f":"X342*'III. GDP shares, 1310-2018'!F344","v":4.433797893307919},{"$f":"Y342*'III. GDP shares, 1310-2018'!G344","v":2.069483024538966},{"$f":"Z342*'III. GDP shares, 1310-2018'!H344","v":0},{"$f":"AA342*'III. GDP shares, 1310-2018'!I344","v":-1.262801863481995},{"$f":"AB342*'III. GDP shares, 1310-2018'!J344","v":0},null,null,7.053033817756322,7.961699652057469,null,7.072202361294327,6.855461403025951,{"$f":"AVERAGE(BL339:BL345)","v":1.422316697479},1.6587590853005605,null,null,1.1109252781260093]
[{"$f":"'[1]Nominal weighted'!B343","v":1649},null,5.881168580965378,10.217963168186685,-0.959438803788589,-3.559363078739267,2.6525349311019095,null,2.939668690880239,null,null,5.952619306562174,5.291155981165545,-0.023738488608346615,4.172470749199182,{"$f":"AVERAGE(G340:G346)","v":8.699945767644776},null,5.713437349924371,null,null,-0.38116858096537803,-2.217963168186685,5.285629279979073,10.100499442375627,10.179786634554674,null,2.060331309119761,{"$nulls":3},5.5,8,{"v":4.326190476190484,"d":"4.33"},6.54113636363636,12.832321565656583,null,5,{"$nulls":3},{"$f":"AE343*'III. GDP shares, 1310-2018'!C345","v":1.252098319509712},{"$f":"AF343*'III. GDP shares, 1310-2018'!D345","v":1.0425986498308735},{"$f":"AG343*'III. GDP shares, 1310-2018'!E345","v":0.2062141384356938},{"$f":"AH343*'III. GDP shares, 1310-2018'!F345","v":1.3481078187004045},{"$f":"AI343*'III. GDP shares, 1310-2018'!G345","v":3.5232744268287823},{"$f":"AJ343*'III. GDP shares, 1310-2018'!H345","v":0},{"$f":"AK343*'III. GDP shares, 1310-2018'!I345","v":0.5684754278846895},{"$f":"AL343*'III. GDP shares, 1310-2018'!J345","v":0},null,null,{"$f":"U343*'III. GDP shares, 1310-2018'!C345","v":-0.08677464357757297},{"$f":"V343*'III. GDP shares, 1310-2018'!D345","v":-0.28905567556575557},{"$f":"W343*'III. GDP shares, 1310-2018'!E345","v":0.2519471794087897},{"$f":"X343*'III. GDP shares, 1310-2018'!F345","v":2.0816814562593704},{"$f":"Y343*'III. GDP shares, 1310-2018'!G345","v":2.7949877764978512},{"$f":"Z343*'III. GDP shares, 1310-2018'!H345","v":0},{"$f":"AA343*'III. GDP shares, 1310-2018'!I345","v":0.23424954450721572},{"$f":"AB343*'III. GDP shares, 1310-2018'!J345","v":0},null,null,7.033274734247239,7.9407687811901555,null,4.987035637529899,4.171185819479512,{"$f":"AVERAGE(BL340:BL346)","v":2.1982552098176926},2.2132454565992883,null,null,1.6220788182636294]
[{"$f":"'[1]Nominal weighted'!B344","v":1650},null,5.882627035005079,9.378635684171272,-1.640644449470991,18.83065597456271,-3.864838755657411,null,4.387883419440915,null,null,6.025506587325723,6.810255719061012,0.8051643382415475,5.537963357558556,{"$f":"AVERAGE(G341:G347)","v":11.595364676114487},null,6.276006037531369,null,null,-0.38262703500507916,-3.3786356841712717,5.940644449470999,-12.351075554982293,14.999687240505914,null,0.6121165805590846,{"$nulls":3},5.5,6,{"v":4.300000000000008,"d":"4.30"},6.479580419580415,11.134848484848503,null,5,{"$nulls":3},{"$f":"AE344*'III. GDP shares, 1310-2018'!C346","v":1.2498728372551644},{"$f":"AF344*'III. GDP shares, 1310-2018'!D346","v":0.7848562865348359},{"$f":"AG344*'III. GDP shares, 1310-2018'!E346","v":0.20589956882047766},{"$f":"AH344*'III. GDP shares, 1310-2018'!F346","v":1.3338537942818438},{"$f":"AI344*'III. GDP shares, 1310-2018'!G346","v":3.058251587548314},{"$f":"AJ344*'III. GDP shares, 1310-2018'!H346","v":0},{"$f":"AK344*'III. GDP shares, 1310-2018'!I346","v":0.5677327469500516},{"$f":"AL344*'III. GDP shares, 1310-2018'!J346","v":0},null,null,{"$f":"U344*'III. GDP shares, 1310-2018'!C346","v":-0.08695184324587808},{"$f":"V344*'III. GDP shares, 1310-2018'!D346","v":-0.4419572427721248},{"$f":"W344*'III. GDP shares, 1310-2018'!E346","v":0.2844595652701954},{"$f":"X344*'III. GDP shares, 1310-2018'!F346","v":-2.54253021425447},{"$f":"Y344*'III. GDP shares, 1310-2018'!G346","v":4.119752269501091},{"$f":"Z344*'III. GDP shares, 1310-2018'!H346","v":0},{"$f":"AA344*'III. GDP shares, 1310-2018'!I346","v":0.06950372554689632},{"$f":"AB344*'III. GDP shares, 1310-2018'!J346","v":0},null,null,6.402404817404821,7.200466821390687,null,1.40227626004571,0.9066849993962257,{"$f":"AVERAGE(BL341:BL347)","v":0.8220070544712197},0.9309326742898479,null,null,4.571377032038017]
[{"$f":"'[1]Nominal weighted'!B345","v":1651},null,5.884096692792281,9.323623852645738,1.6055434481748603,8.993432120687983,27.547348719937787,null,14.794653689702669,null,null,6.098405075774479,10.842109249786601,3.2189390944255316,6.7645118723665325,{"$f":"AVERAGE(G342:G348)","v":15.873928288256732},null,8.13590141779515,null,null,-0.38409669279228054,-3.3236238526457385,2.6682660756346714,-2.5754076451635113,-11.593308315897364,null,-9.794653689702669,{"$nulls":3},5.5,6,{"v":4.273809523809532,"d":"4.27"},6.418024475524471,15.954040404040422,null,5,{"$nulls":3},{"$f":"AE345*'III. GDP shares, 1310-2018'!C347","v":1.2476559228201332},{"$f":"AF345*'III. GDP shares, 1310-2018'!D347","v":0.7877523929698862},{"$f":"AG345*'III. GDP shares, 1310-2018'!E347","v":0.20557005029997918},{"$f":"AH345*'III. GDP shares, 1310-2018'!F347","v":1.3196355304985066},{"$f":"AI345*'III. GDP shares, 1310-2018'!G347","v":4.383354827773263},{"$f":"AJ345*'III. GDP shares, 1310-2018'!H347","v":0},{"$f":"AK345*'III. GDP shares, 1310-2018'!I347","v":0.5669929252411804},{"$f":"AL345*'III. GDP shares, 1310-2018'!J347","v":0},null,null,{"$f":"U345*'III. GDP shares, 1310-2018'!C347","v":-0.08713100249052981},{"$f":"V345*'III. GDP shares, 1310-2018'!D347","v":-0.4363654405422455},{"$f":"W345*'III. GDP shares, 1310-2018'!E347","v":0.12834348099187606},{"$f":"X345*'III. GDP shares, 1310-2018'!F347","v":-0.5295398057511352},{"$f":"Y345*'III. GDP shares, 1310-2018'!G347","v":-3.1852485445306304},{"$f":"Z345*'III. GDP shares, 1310-2018'!H347","v":0},{"$f":"AA345*'III. GDP shares, 1310-2018'!I347","v":-1.1106998694497674},{"$f":"AB345*'III. GDP shares, 1310-2018'!J347","v":0},null,null,7.190979067229072,8.510961649602947,null,-5.220641181772432,-4.167137353427815,{"$f":"AVERAGE(BL342:BL348)","v":-0.7635717117465282},-1.0376693848860519,null,null,12.507484997863248]
[{"$f":"'[1]Nominal weighted'!B346","v":1652},null,6.385577683924379,16.02820348684888,1.5057226134668356,11.922093248240863,5.581815451199386,null,0.6932357739748314,null,null,6.1713149015821,12.403131680885172,5.828806008119012,10.30631414377099,{"$f":"AVERAGE(G343:G349)","v":18.26593727686792},null,5.922557418646744,null,null,-0.3855776839243792,-10.02820348684888,2.74189643415222,-5.5656247167723345,10.341416872032955,null,4.306764226025169,{"$nulls":3},6,6,{"v":4.247619047619056,"d":"4.25"},6.356468531468527,15.923232323232341,null,5,{"$nulls":3},{"$f":"AE346*'III. GDP shares, 1310-2018'!C348","v":1.3586700292605558},{"$f":"AF346*'III. GDP shares, 1310-2018'!D348","v":0.7906373711899553},{"$f":"AG346*'III. GDP shares, 1310-2018'!E348","v":0.2052256690353783},{"$f":"AH346*'III. GDP shares, 1310-2018'!F348","v":1.305452821236402},{"$f":"AI346*'III. GDP shares, 1310-2018'!G348","v":4.376365638015595},{"$f":"AJ346*'III. GDP shares, 1310-2018'!H348","v":0},{"$f":"AK346*'III. GDP shares, 1310-2018'!I348","v":0.5662559462783232},{"$f":"AL346*'III. GDP shares, 1310-2018'!J348","v":0},null,null,{"$f":"U346*'III. GDP shares, 1310-2018'!C348","v":-0.0873121405166256},{"$f":"V346*'III. GDP shares, 1310-2018'!D348","v":-1.3214454071000237},{"$f":"W346*'III. GDP shares, 1310-2018'!E348","v":0.1324759880338199},{"$f":"X346*'III. GDP shares, 1310-2018'!F348","v":-1.1430341316855255},{"$f":"Y346*'III. GDP shares, 1310-2018'!G348","v":2.842250902860193},{"$f":"Z346*'III. GDP shares, 1310-2018'!H348","v":0},{"$f":"AA346*'III. GDP shares, 1310-2018'!I348","v":0.48774617044110236},{"$f":"AB346*'III. GDP shares, 1310-2018'!J348","v":0},null,null,7.254553317053321,8.602607475016208,null,0.9106813820329409,0.235111940777458,{"$f":"AVERAGE(BL343:BL349)","v":-2.1666793615401283},-2.3566315641158124,null,null,5.5798433146932895]
[{"$f":"'[1]Nominal weighted'!B347","v":1653},null,6.387070140005357,13.803338325158634,14.027564461511862,13.402925459667868,39.07053221436729,null,10.593951834209705,null,null,6.244236196430564,9.568221433313022,5.242235476157822,11.643988105262752,{"$f":"AVERAGE(G344:G350)","v":20.85651699970878},null,6.953554589839245,null,null,-0.3870701400053568,-7.803338325158634,-10.306135890083281,-7.108012872255284,-23.17810797194303,null,-5.593951834209705,{"$nulls":3},6,6,{"v":3.7214285714285795,"d":"3.72"},6.2949125874125835,15.89242424242426,null,5,{"$nulls":3},{"$f":"AE347*'III. GDP shares, 1310-2018'!C349","v":1.3562701093719554},{"$f":"AF347*'III. GDP shares, 1310-2018'!D349","v":0.7935112852118744},{"$f":"AG347*'III. GDP shares, 1310-2018'!E349","v":0.18060144159823488},{"$f":"AH347*'III. GDP shares, 1310-2018'!F349","v":1.2913054619624775},{"$f":"AI347*'III. GDP shares, 1310-2018'!G349","v":4.369365092516499},{"$f":"AJ347*'III. GDP shares, 1310-2018'!H349","v":0},{"$f":"AK347*'III. GDP shares, 1310-2018'!I349","v":0.56552179370813},{"$f":"AL347*'III. GDP shares, 1310-2018'!J349","v":0},null,null,{"$f":"U347*'III. GDP shares, 1310-2018'!C349","v":-0.08749527685328055},{"$f":"V347*'III. GDP shares, 1310-2018'!D349","v":-1.0320061705566173},{"$f":"W347*'III. GDP shares, 1310-2018'!E349","v":-0.5001581955237776},{"$f":"X347*'III. GDP shares, 1310-2018'!F349","v":-1.4581006039697146},{"$f":"Y347*'III. GDP shares, 1310-2018'!G349","v":-6.372446037077211},{"$f":"Z347*'III. GDP shares, 1310-2018'!H349","v":0},{"$f":"AA347*'III. GDP shares, 1310-2018'!I349","v":-0.6327003350398314},{"$f":"AB347*'III. GDP shares, 1310-2018'!J349","v":0},null,null,7.151460900210903,8.556575184369171,null,-10.082906619020433,-9.062769505609216,{"$f":"AVERAGE(BL344:BL350)","v":-2.8022243502937267},-2.616664566574461,null,null,16.813964347621113]
[{"$f":"'[1]Nominal weighted'!B348","v":1654},null,6.388574194684765,18.848412333779038,17.513081864694787,12.646999592756448,34.806933583700115,null,7.449547317662641,null,null,6.317169094049191,8.312513745826354,6.945875805172387,9.992909076394769,{"$f":"AVERAGE(G345:G351)","v":23.697154430959763},null,7.906043517548282,null,null,-0.38857419468476573,-12.848412333779038,-13.817843769456683,-6.413642949399809,-1.295317422083934,null,-2.449547317662641,{"$nulls":3},6,6,{"v":3.6952380952381034,"d":"3.70"},6.23335664335664,33.51161616161618,null,5,{"$nulls":3},{"$f":"AE348*'III. GDP shares, 1310-2018'!C350","v":1.353879375815961},{"$f":"AF348*'III. GDP shares, 1310-2018'!D350","v":0.7963741985623913},{"$f":"AG348*'III. GDP shares, 1310-2018'!E350","v":0.18012066273046465},{"$f":"AH348*'III. GDP shares, 1310-2018'!F350","v":1.2771932497094902},{"$f":"AI348*'III. GDP shares, 1310-2018'!G350","v":9.21655816172056},{"$f":"AJ348*'III. GDP shares, 1310-2018'!H350","v":0},{"$f":"AK348*'III. GDP shares, 1310-2018'!I350","v":0.5647904513024451},{"$f":"AL348*'III. GDP shares, 1310-2018'!J350","v":0},null,null,{"$f":"U348*'III. GDP shares, 1310-2018'!C350","v":-0.08768043135966673},{"$f":"V348*'III. GDP shares, 1310-2018'!D350","v":-1.7053573458520708},{"$f":"W348*'III. GDP shares, 1310-2018'!E350","v":-0.6735368907535004},{"$f":"X348*'III. GDP shares, 1310-2018'!F350","v":-1.3141332912100516},{"$f":"Y348*'III. GDP shares, 1310-2018'!G350","v":-0.3562456761545445},{"$f":"Z348*'III. GDP shares, 1310-2018'!H350","v":0},{"$f":"AA348*'III. GDP shares, 1310-2018'!I350","v":-0.27669618700587534},{"$f":"AB348*'III. GDP shares, 1310-2018'!J350","v":0},null,null,10.073368483368489,13.388916099841312,null,-4.413649822335709,-6.202222997844479,{"$f":"AVERAGE(BL345:BL351)","v":-3.096249791070275},-2.9616517930326367,null,null,15.300834377762557]
[{"$f":"'[1]Nominal weighted'!B349","v":1655},null,6.3900899836974645,9.221744915405964,8.749812922244327,9.907455689220322,22.06723479342637,null,0.5989612046562058,null,null,6.518685158826007,6.58047729734145,5.028151139156043,9.138612777324349,{"$f":"AVERAGE(G346:G352)","v":21.141492858131944},null,5.937085583745227,null,null,-0.39008998369746406,-3.2217449154059636,-5.080765303196701,-3.735654989919627,-6.23642671261827,null,4.401038795343794,{"$nulls":3},6,6,{"v":3.6690476190476273,"d":"3.67"},6.171800699300695,15.830808080808099,null,5,{"$nulls":3},{"$f":"AE349*'III. GDP shares, 1310-2018'!C351","v":1.3514977759486249},{"$f":"AF349*'III. GDP shares, 1310-2018'!D351","v":0.7992261742828524},{"$f":"AG349*'III. GDP shares, 1310-2018'!E351","v":0.17962568417551456},{"$f":"AH349*'III. GDP shares, 1310-2018'!F351","v":1.2631159830610508},{"$f":"AI349*'III. GDP shares, 1310-2018'!G351","v":4.355330194598585},{"$f":"AJ349*'III. GDP shares, 1310-2018'!H351","v":0},{"$f":"AK349*'III. GDP shares, 1310-2018'!I351","v":0.5640619029571099},{"$f":"AL349*'III. GDP shares, 1310-2018'!J351","v":0},null,null,{"$f":"U349*'III. GDP shares, 1310-2018'!C351","v":-0.08786762423115967},{"$f":"V349*'III. GDP shares, 1310-2018'!D351","v":-0.42915047720919003},{"$f":"W349*'III. GDP shares, 1310-2018'!E351","v":-0.24873919296768773},{"$f":"X349*'III. GDP shares, 1310-2018'!F351","v":-0.764536276342153},{"$f":"Y349*'III. GDP shares, 1310-2018'!G351","v":-1.715749280088616},{"$f":"Z349*'III. GDP shares, 1310-2018'!H351","v":0},{"$f":"AA349*'III. GDP shares, 1310-2018'!I351","v":0.49649166357793745},{"$f":"AB349*'III. GDP shares, 1310-2018'!J351","v":0},null,null,7.111942733192737,8.512857715023738,null,-2.7495511872608693,-2.377273851582372,{"$f":"AVERAGE(BL346:BL352)","v":-1.76316535199744},-1.5301789205989524,null,null,10.034032250792563]
[{"$f":"'[1]Nominal weighted'!B350","v":1656},null,6.391617644904629,-9.626408564818377,-5.065432527516924,5.804354651703069,20.786592990987913,null,10.156648889227746,null,null,6.4487845287058,4.153543501852949,3.601577853694724,7.375833788854587,{"$f":"AVERAGE(G347:G353)","v":21.863556079569726},null,6.558112343235833,null,null,-0.3916176449046289,15.626408564818377,8.708289670374075,0.30589010354168195,-4.986592990987914,null,-5.156648889227747,{"$nulls":3},6,6,{"v":3.6428571428571512,"d":"3.64"},6.110244755244751,15.799999999999999,null,5,{"$nulls":3},{"$f":"AE350*'III. GDP shares, 1310-2018'!C352","v":1.3491252575274784},{"$f":"AF350*'III. GDP shares, 1310-2018'!D352","v":0.8020672749338285},{"$f":"AG350*'III. GDP shares, 1310-2018'!E352","v":0.17911658715212536},{"$f":"AH350*'III. GDP shares, 1310-2018'!F352","v":1.2490734621368402},{"$f":"AI350*'III. GDP shares, 1310-2018'!G352","v":4.348295971091307},{"$f":"AJ350*'III. GDP shares, 1310-2018'!H352","v":0},{"$f":"AK350*'III. GDP shares, 1310-2018'!I352","v":0.563336132690782},{"$f":"AL350*'III. GDP shares, 1310-2018'!J352","v":0},null,null,{"$f":"U350*'III. GDP shares, 1310-2018'!C352","v":-0.08805687600571036},{"$f":"V350*'III. GDP shares, 1310-2018'!D352","v":2.0889051557644187},{"$f":"W350*'III. GDP shares, 1310-2018'!E352","v":0.4281801521500609},{"$f":"X350*'III. GDP shares, 1310-2018'!F352","v":0.06253091749495732},{"$f":"Y350*'III. GDP shares, 1310-2018'!G352","v":-1.3723533045686644},{"$f":"Z350*'III. GDP shares, 1310-2018'!H352","v":0},{"$f":"AA350*'III. GDP shares, 1310-2018'!I352","v":-0.5809853285803551},{"$f":"AB350*'III. GDP shares, 1310-2018'!J352","v":0},null,null,7.09218364968365,8.491014685532361,null,0.5382207162547065,2.350954802268974,{"$f":"AVERAGE(BL347:BL353)","v":-1.4050051167914925},-0.9119832119007977,null,null,9.239631850108244]
[{"$f":"'[1]Nominal weighted'!B351","v":1657},null,6.393157318335464,0.5886818717646065,10.284837853630961,7.273102772486817,16.019623263099486,null,11.055305913404178,null,null,6.4146102009462345,3.871019939810862,2.731284579931549,4.284112529654721,{"$f":"AVERAGE(G348:G354)","v":18.255953918866336},null,5.216841161750183,null,null,-0.39315731833546447,5.4113181282353935,-6.668171186964286,-1.2244139612980103,-0.11962326309948751,null,-6.055305913404178,{"$nulls":3},6,6,{"v":3.616666666666675,"d":"3.62"},6.048688811188807,15.9,null,5,{"$nulls":3},{"$f":"AE351*'III. GDP shares, 1310-2018'!C353","v":1.346761768707716},{"$f":"AF351*'III. GDP shares, 1310-2018'!D353","v":0.804897562599691},{"$f":"AG351*'III. GDP shares, 1310-2018'!E353","v":0.178593452260815},{"$f":"AH351*'III. GDP shares, 1310-2018'!F353","v":1.235065488577995},{"$f":"AI351*'III. GDP shares, 1310-2018'!G353","v":4.37726204890859},{"$f":"AJ351*'III. GDP shares, 1310-2018'!H353","v":0},{"$f":"AK351*'III. GDP shares, 1310-2018'!I353","v":0.5626131246437661},{"$f":"AL351*'III. GDP shares, 1310-2018'!J353","v":0},null,null,{"$f":"U351*'III. GDP shares, 1310-2018'!C353","v":-0.08824820757030878},{"$f":"V351*'III. GDP shares, 1310-2018'!D353","v":0.7259261286446984},{"$f":"W351*'III. GDP shares, 1310-2018'!E353","v":-0.3292788145288605},{"$f":"X351*'III. GDP shares, 1310-2018'!F353","v":-0.25000979130136997},{"$f":"Y351*'III. GDP shares, 1310-2018'!G353","v":-0.032932224511446166},{"$f":"Z351*'III. GDP shares, 1310-2018'!H353","v":0},{"$f":"AA351*'III. GDP shares, 1310-2018'!I353","v":-0.6813589161228398},{"$f":"AB351*'III. GDP shares, 1310-2018'!J353","v":0},null,null,7.094225912975914,8.505193445698573,null,-0.6559018253901269,-1.5082255858110054,{"$f":"AVERAGE(BL348:BL354)","v":0.35962988307611715},0.562519819215645,null,null,9.082123837133707]
[{"$f":"'[1]Nominal weighted'!B352","v":1658},null,7.294709146229989,-2.8006312867485974,-11.81852921393955,3.013358027195048,9.657717710143046,null,1.0119481530812795,null,null,6.416162317874976,0.9873363111560565,-0.1181632408177863,0.7471291826473446,{"$f":"AVERAGE(G349:G355)","v":11.770944691535295},null,4.947771223843909,null,null,-0.3947091462299889,8.800631286748597,15.40900540441575,2.973774839937815,4.342282289856954,null,3.9880518469187205,{"$nulls":3},6.9,6,{"v":3.590476190476199,"d":"3.59"},5.987132867132863,14,null,5,{"$nulls":3},{"$f":"AE352*'III. GDP shares, 1310-2018'!C354","v":1.546068346744178},{"$f":"AF352*'III. GDP shares, 1310-2018'!D354","v":0.8077170988931328},{"$f":"AG352*'III. GDP shares, 1310-2018'!E354","v":0.1780563594897492},{"$f":"AH352*'III. GDP shares, 1310-2018'!F354","v":1.2210918655326564},{"$f":"AI352*'III. GDP shares, 1310-2018'!G354","v":3.8554606834674274},{"$f":"AJ352*'III. GDP shares, 1310-2018'!H354","v":0},{"$f":"AK352*'III. GDP shares, 1310-2018'!I354","v":0.5618928630768593},{"$f":"AL352*'III. GDP shares, 1310-2018'!J354","v":0},null,null,{"$f":"U352*'III. GDP shares, 1310-2018'!C354","v":-0.0884416401676239},{"$f":"V352*'III. GDP shares, 1310-2018'!D354","v":1.1847367285601194},{"$f":"W352*'III. GDP shares, 1310-2018'!E354","v":0.7641525135149971},{"$f":"X352*'III. GDP shares, 1310-2018'!F354","v":0.6065093839670688},{"$f":"Y352*'III. GDP shares, 1310-2018'!G354","v":1.1958213317900286},{"$f":"Z352*'III. GDP shares, 1310-2018'!H354","v":0},{"$f":"AA352*'III. GDP shares, 1310-2018'!I354","v":0.4481715740728233},{"$f":"AB352*'III. GDP shares, 1310-2018'!J354","v":0},null,null,6.9129348429348445,8.170287217204004,null,4.110949891737413,5.853172753607974,{"$f":"AVERAGE(BL349:BL355)","v":2.5322941944060284},2.687948487844854,null,null,4.436356955133576]
[{"$f":"'[1]Nominal weighted'!B353","v":1659},null,5.89627327308293,-0.9603330815706244,-8.480290384762391,-0.4173596710474543,10.636258001263863,null,5.040423090409077,null,null,6.453441024076435,2.8406417206038475E-3,-1.0499363892250404,0.10784391264321679,{"$f":"AVERAGE(G350:G356)","v":8.152280333171642},null,6.704295599849763,null,null,-0.3962732730829304,6.960333081570624,12.044576099048115,6.342936594124374,2.463741998736136,null,-0.04042309040907764,{"$nulls":3},5.5,6,{"v":3.564285714285723,"d":"3.56"},5.925576923076919,13.1,null,5,{"$nulls":3},{"$f":"AE353*'III. GDP shares, 1310-2018'!C355","v":1.230223201587238},{"$f":"AF353*'III. GDP shares, 1310-2018'!D355","v":0.8105259449596397},{"$f":"AG353*'III. GDP shares, 1310-2018'!E355","v":0.1775053882205461},{"$f":"AH353*'III. GDP shares, 1310-2018'!F355","v":1.2071523976416874},{"$f":"AI353*'III. GDP shares, 1310-2018'!G355","v":3.6087913325375687},{"$f":"AJ353*'III. GDP shares, 1310-2018'!H355","v":0},{"$f":"AK353*'III. GDP shares, 1310-2018'!I355","v":0.561175332370208},{"$f":"AL353*'III. GDP shares, 1310-2018'!J355","v":0},null,null,{"$f":"U353*'III. GDP shares, 1310-2018'!C355","v":-0.08863719540282482},{"$f":"V353*'III. GDP shares, 1310-2018'!D355","v":0.9402550913623119},{"$f":"W353*'III. GDP shares, 1310-2018'!E355","v":0.5998332703364363},{"$f":"X353*'III. GDP shares, 1310-2018'!F355","v":1.292176477849268},{"$f":"Y353*'III. GDP shares, 1310-2018'!G355","v":0.6787122725685308},{"$f":"Z353*'III. GDP shares, 1310-2018'!H355","v":0},{"$f":"AA353*'III. GDP shares, 1310-2018'!I355","v":-0.004536888239149023},{"$f":"AB353*'III. GDP shares, 1310-2018'!J355","v":0},null,null,6.514977106227107,7.595373597316888,null,3.417803028474573,4.56248190166454,{"$f":"AVERAGE(BL350:BL356)","v":3.447062830619898},3.3007931335764558,null,null,4.307299715244987]
[{"$f":"'[1]Nominal weighted'!B354","v":1660},null,6.147849845688395,11.825673390864026,7.93551154516963,-8.239123354731197,13.817317089443552,null,1.205053563810154,null,null,6.526446466436653,2.4880292230410554,1.4229909250813897,0.897845123716501,{"$f":"AVERAGE(G351:G357)","v":9.645325938611588},null,6.229639271361279,null,null,-0.3978498456883952,-5.825673390864026,-4.3974163070743835,14.145820470115808,0.23268291055644877,null,3.794946436189846,{"$nulls":3},5.75,6,{"v":3.538095238095247,"d":"3.54"},5.9066971153846115,14.05,null,5,{"$nulls":3},{"$f":"AE354*'III. GDP shares, 1310-2018'!C356","v":1.2839030936572984},{"$f":"AF354*'III. GDP shares, 1310-2018'!D356","v":0.8133241614819106},{"$f":"AG354*'III. GDP shares, 1310-2018'!E356","v":0.17694061723401433},{"$f":"AH354*'III. GDP shares, 1310-2018'!F356","v":1.201930892534611},{"$f":"AI354*'III. GDP shares, 1310-2018'!G356","v":3.871760166321684},{"$f":"AJ354*'III. GDP shares, 1310-2018'!H356","v":0},{"$f":"AK354*'III. GDP shares, 1310-2018'!I356","v":0.5604605170221796},{"$f":"AL354*'III. GDP shares, 1310-2018'!J356","v":0},null,null,{"$f":"U354*'III. GDP shares, 1310-2018'!C356","v":-0.08883489525050599},{"$f":"V354*'III. GDP shares, 1310-2018'!D356","v":-0.7896934876153271},{"$f":"W354*'III. GDP shares, 1310-2018'!E356","v":-0.21991537910877318},{"$f":"X354*'III. GDP shares, 1310-2018'!F356","v":2.8784781564296558},{"$f":"Y354*'III. GDP shares, 1310-2018'!G356","v":0.06412045725809605},{"$f":"Z354*'III. GDP shares, 1310-2018'!H356","v":0},{"$f":"AA354*'III. GDP shares, 1310-2018'!I356","v":0.4253835283396878},{"$f":"AB354*'III. GDP shares, 1310-2018'!J356","v":0},null,null,6.707465392246643,7.9083194482516985,null,2.269538380052833,1.258751712205883,{"$f":"AVERAGE(BL351:BL357)","v":2.2790403034884124},2.051198876289338,null,null,4.035763419101627]
[{"$f":"'[1]Nominal weighted'!B355","v":1661},null,6.399439013185956,-1.3373730668046022,-2.433052880550558,-12.111883836295194,-10.588131007617163,null,5.566057752318726,null,null,6.599464508475008,4.0332754421326,2.0664312933841322,1.2522088705833674,{"$f":"AVERAGE(G352:G358)","v":9.19304108717761},null,3.6991037555391055,null,null,-0.39943901318595637,7.337373066804602,5.9449576424553285,17.999701143987497,21.738131007617163,null,-0.5660577523187259,{"$nulls":3},6,6,{"v":3.5119047619047707,"d":"3.51"},5.887817307692304,11.15,null,5,{"$nulls":3},{"$f":"AE355*'III. GDP shares, 1310-2018'!C357","v":1.3373970862542155},{"$f":"AF355*'III. GDP shares, 1310-2018'!D357","v":0.8161118086842274},{"$f":"AG355*'III. GDP shares, 1310-2018'!E357","v":0.17636212471582682},{"$f":"AH355*'III. GDP shares, 1310-2018'!F357","v":1.196723357713399},{"$f":"AI355*'III. GDP shares, 1310-2018'!G357","v":3.0736050236298627},{"$f":"AJ355*'III. GDP shares, 1310-2018'!H357","v":0},{"$f":"AK355*'III. GDP shares, 1310-2018'!I357","v":0.5597484016482458},{"$f":"AL355*'III. GDP shares, 1310-2018'!J357","v":0},null,null,{"$f":"U355*'III. GDP shares, 1310-2018'!C357","v":-0.08903476206185955},{"$f":"V355*'III. GDP shares, 1310-2018'!D357","v":0.9980194674234734},{"$f":"W355*'III. GDP shares, 1310-2018'!E357","v":0.29854606894304064},{"$f":"X355*'III. GDP shares, 1310-2018'!F357","v":3.6585141258931437},{"$f":"Y355*'III. GDP shares, 1310-2018'!G357","v":5.992325441196072},{"$f":"Z355*'III. GDP shares, 1310-2018'!H357","v":0},{"$f":"AA355*'III. GDP shares, 1310-2018'!I357","v":-0.06336998442020109},{"$f":"AB355*'III. GDP shares, 1310-2018'!J357","v":0},null,null,6.258287011599513,7.159947802645778,null,10.795000356973668,8.675777682559984,{"$f":"AVERAGE(BL352:BL358)","v":2.175736966815987},2.0011306914138927,null,null,-3.453144895588647]
[{"$f":"'[1]Nominal weighted'!B356","v":1662},null,6.651040927107686,2.3302752293577953,2.227400883393548,5.432458799191427,-3.2634157151192014,null,12.89463183669718,null,null,6.472495301819881,5.290508483096685,2.340882290069956,2.096705789046957,{"$f":"AVERAGE(G353:G359)","v":10.845023674211612},null,3.5054306601040257,null,null,-0.4010409271076857,3.6697247706422047,1.2583134023207465,0.43481279171765946,14.408653810357297,null,-7.894631836697179,{"$nulls":3},6.25,6,{"v":3.4857142857142946,"d":"3.49"},5.867271590909087,11.145238095238096,null,5,{"$nulls":3},{"$f":"AE356*'III. GDP shares, 1310-2018'!C358","v":1.3907062306514952},{"$f":"AF356*'III. GDP shares, 1310-2018'!D358","v":0.8188889463367759},{"$f":"AG356*'III. GDP shares, 1310-2018'!E358","v":0.17576998826212978},{"$f":"AH356*'III. GDP shares, 1310-2018'!F358","v":1.1911914961957066},{"$f":"AI356*'III. GDP shares, 1310-2018'!G358","v":3.0732863719450174},{"$f":"AJ356*'III. GDP shares, 1310-2018'!H358","v":0},{"$f":"AK356*'III. GDP shares, 1310-2018'!I358","v":0.5590389709798791},{"$f":"AL356*'III. GDP shares, 1310-2018'!J358","v":0},null,null,{"$f":"U356*'III. GDP shares, 1310-2018'!C358","v":-0.08923681857198569},{"$f":"V356*'III. GDP shares, 1310-2018'!D358","v":0.5008495084628602},{"$f":"W356*'III. GDP shares, 1310-2018'!E358","v":0.06345148047917964},{"$f":"X356*'III. GDP shares, 1310-2018'!F358","v":0.08827702824149299},{"$f":"Y356*'III. GDP shares, 1310-2018'!G358","v":3.9731694392751087},{"$f":"Z356*'III. GDP shares, 1310-2018'!H358","v":0},{"$f":"AA356*'III. GDP shares, 1310-2018'!I358","v":-0.8826813716504367},{"$f":"AB356*'III. GDP shares, 1310-2018'!J358","v":0},null,null,6.291370661976913,7.208882004371004,null,3.6538292662362197,1.9126386685388403,{"$f":"AVERAGE(BL353:BL359)","v":1.2696274028397612},1.2847847850720968,null,null,3.2370133002608688]
[{"$f":"'[1]Nominal weighted'!B357","v":1663},null,6.902655741426154,7.769911504424783,12.245058672628087,11.334363129216058,31.237912229067533,null,6.834054589808359,null,null,6.438396143399745,6.8290594675387455,5.090252406467476,3.74564007467669,{"$f":"AVERAGE(G354:G360)","v":10.745038342675572},null,4.229390323018322,null,null,-0.4026557414261534,-1.7699115044247833,-8.785534863104267,-5.4876372550901875,-20.09743603859134,null,-1.8340545898083582,{"$nulls":3},6.5,6,{"v":3.4595238095238185,"d":"3.46"},5.84672587412587,11.14047619047619,null,5,{"$nulls":3},{"$f":"AE357*'III. GDP shares, 1310-2018'!C359","v":1.4438315702108644},{"$f":"AF357*'III. GDP shares, 1310-2018'!D359","v":0.8216556337599175},{"$f":"AG357*'III. GDP shares, 1310-2018'!E359","v":0.17516428488508848},{"$f":"AH357*'III. GDP shares, 1310-2018'!F359","v":1.1856742146003885},{"$f":"AI357*'III. GDP shares, 1310-2018'!G359","v":3.072963132033767},{"$f":"AJ357*'III. GDP shares, 1310-2018'!H359","v":0},{"$f":"AK357*'III. GDP shares, 1310-2018'!I359","v":0.5583322098634613},{"$f":"AL357*'III. GDP shares, 1310-2018'!J359","v":0},null,null,{"$f":"U357*'III. GDP shares, 1310-2018'!C359","v":-0.08944108790734506},{"$f":"V357*'III. GDP shares, 1310-2018'!D359","v":-0.24237629314451906},{"$f":"W357*'III. GDP shares, 1310-2018'!E359","v":-0.44483345580457045},{"$f":"X357*'III. GDP shares, 1310-2018'!F359","v":-1.1128536094423394},{"$f":"Y357*'III. GDP shares, 1310-2018'!G359","v":-5.543630176939333},{"$f":"Z357*'III. GDP shares, 1310-2018'!H359","v":0},{"$f":"AA357*'III. GDP shares, 1310-2018'!I359","v":-0.20480235042758496},{"$f":"AB357*'III. GDP shares, 1310-2018'!J359","v":0},null,null,6.324454312354313,7.257621045353488,null,-7.637936973665692,-6.396204998740849,{"$f":"AVERAGE(BL354:BL360)","v":0.4507368202214712},0.13633847620458323,null,null,13.831526092114743]
[{"$f":"'[1]Nominal weighted'!B358","v":1664},null,6.904283612603948,11.405405405405418,14.788920431750158,9.753649000554885,12.853629303061648,null,-6.658442697351038,null,null,6.332881475492562,6.704033990201735,5.646783581342437,6.639109645683078,{"$f":"AVERAGE(G355:G361)","v":11.520693586783016},null,5.413449155941186,null,null,-0.4042836126039483,-5.405405405405418,-11.355587098416816,-3.927468843212233,-1.7179150173473619,null,11.658442697351038,{"$nulls":3},6.5,6,{"v":3.4333333333333425,"d":"3.43"},5.826180157342653,11.135714285714286,null,5,{"$nulls":3},{"$f":"AE358*'III. GDP shares, 1310-2018'!C360","v":1.4413380611803916},{"$f":"AF358*'III. GDP shares, 1310-2018'!D360","v":0.8244119298284127},{"$f":"AG358*'III. GDP shares, 1310-2018'!E360","v":0.17454509101837093},{"$f":"AH358*'III. GDP shares, 1310-2018'!F360","v":1.1801714307867177},{"$f":"AI358*'III. GDP shares, 1310-2018'!G360","v":3.072635329745376},{"$f":"AJ358*'III. GDP shares, 1310-2018'!H360","v":0},{"$f":"AK358*'III. GDP shares, 1310-2018'!I360","v":0.5576281032592045},{"$f":"AL358*'III. GDP shares, 1310-2018'!J360","v":0},null,null,{"$f":"U358*'III. GDP shares, 1310-2018'!C360","v":-0.08964759359347375},{"$f":"V358*'III. GDP shares, 1310-2018'!D360","v":-0.7427134502958691},{"$f":"W358*'III. GDP shares, 1310-2018'!E360","v":-0.5772996068913193},{"$f":"X358*'III. GDP shares, 1310-2018'!F360","v":-0.7955618259113568},{"$f":"Y358*'III. GDP shares, 1310-2018'!G360","v":-0.4740177630610841},{"$f":"Z358*'III. GDP shares, 1310-2018'!H360","v":0},{"$f":"AA358*'III. GDP shares, 1310-2018'!I360","v":1.3002150576559968},{"$f":"AB358*'III. GDP shares, 1310-2018'!J360","v":0},null,null,6.315871296065048,7.250729945818474,null,-1.3790251820971065,-1.8587028799391228,{"$f":"AVERAGE(BL355:BL361)","v":-0.6190102389415699},-0.822192038413718,null,null,7.062629747791298]
[{"$f":"'[1]Nominal weighted'!B359","v":1665},null,6.405924699644102,6,-9.897372237138782,8.924836456440179,21.221595819381044,null,-0.34376351496427926,null,null,6.155951457204964,7.752230142602392,5.567086591591789,9.426773368150924,{"$f":"AVERAGE(G356:G362)","v":15.279221000679923},null,4.014294975831093,null,null,-0.4059246996441025,0,13.30451509428165,-3.119202015880744,-10.090643438428664,null,5.343763514964279,{"$nulls":3},6,6,{"v":3.4071428571428664,"d":"3.41"},5.805634440559436,11.130952380952381,null,5,{"$nulls":3},{"$f":"AE359*'III. GDP shares, 1310-2018'!C361","v":1.3281728306989595},{"$f":"AF359*'III. GDP shares, 1310-2018'!D361","v":0.8271578929755979},{"$f":"AG359*'III. GDP shares, 1310-2018'!E361","v":0.17391248252256944},{"$f":"AH359*'III. GDP shares, 1310-2018'!F361","v":1.174683063229833},{"$f":"AI359*'III. GDP shares, 1310-2018'!G361","v":3.072302990735297},{"$f":"AJ359*'III. GDP shares, 1310-2018'!H361","v":0},{"$f":"AK359*'III. GDP shares, 1310-2018'!I361","v":0.5569266362400849},{"$f":"AL359*'III. GDP shares, 1310-2018'!J361","v":0},null,null,{"$f":"U359*'III. GDP shares, 1310-2018'!C361","v":-0.08985635956282209},{"$f":"V359*'III. GDP shares, 1310-2018'!D361","v":0},{"$f":"W359*'III. GDP shares, 1310-2018'!E361","v":0.6791089619135676},{"$f":"X359*'III. GDP shares, 1310-2018'!F361","v":-0.6311237499297991},{"$f":"Y359*'III. GDP shares, 1310-2018'!G361","v":-2.785162756367425},{"$f":"Z359*'III. GDP shares, 1310-2018'!H361","v":0},{"$f":"AA359*'III. GDP shares, 1310-2018'!I361","v":0.5952168478503097},{"$f":"AB359*'III. GDP shares, 1310-2018'!J361","v":0},null,null,6.223954946442447,7.133155896402341,null,-2.231817056096169,0.838751409215403,{"$f":"AVERAGE(BL356:BL362)","v":-2.2106643041943608},-1.8503046429010672,null,null,8.537815059522913]
[{"$f":"'[1]Nominal weighted'!B360","v":1666},null,5.657579164141977,9.809523809523796,10.765300430020247,11.12518032836067,9.936360680511585,null,10.10814073080915,null,null,5.907606250238379,8.871714633646517,7.8321224976881565,9.862417904613148,{"$f":"AVERAGE(G357:G363)","v":17.13080083507274},null,4.807178945954099,null,null,-0.4075791641419765,-3.809523809523796,-7.384348049067857,-5.340091604584451,1.1898297956788915,null,-5.10814073080915,{"$nulls":3},5.25,6,{"v":3.3809523809523903,"d":"3.38"},5.7850887237762185,11.126190476190477,null,5,{"$nulls":3},{"$f":"AE360*'III. GDP shares, 1310-2018'!C362","v":1.1601522966718298},{"$f":"AF360*'III. GDP shares, 1310-2018'!D362","v":0.8298935811975143},{"$f":"AG360*'III. GDP shares, 1310-2018'!E362","v":0.17326653469056164},{"$f":"AH360*'III. GDP shares, 1310-2018'!F362","v":1.169209031014977},{"$f":"AI360*'III. GDP shares, 1310-2018'!G362","v":3.0719661404669885},{"$f":"AJ360*'III. GDP shares, 1310-2018'!H362","v":0},{"$f":"AK360*'III. GDP shares, 1310-2018'!I362","v":0.5562277939907869},{"$f":"AL360*'III. GDP shares, 1310-2018'!J362","v":0},null,null,{"$f":"U360*'III. GDP shares, 1310-2018'!C362","v":-0.09006741016283785},{"$f":"V360*'III. GDP shares, 1310-2018'!D362","v":-0.5269165594904834},{"$f":"W360*'III. GDP shares, 1310-2018'!E362","v":-0.3784319485300121},{"$f":"X360*'III. GDP shares, 1310-2018'!F362","v":-1.0792718363793448},{"$f":"Y360*'III. GDP shares, 1310-2018'!G362","v":0.3285146747277145},{"$f":"Z360*'III. GDP shares, 1310-2018'!H362","v":0},{"$f":"AA360*'III. GDP shares, 1310-2018'!I362","v":-0.568257970018492},{"$f":"AB360*'III. GDP shares, 1310-2018'!J362","v":0},null,null,6.090371930153181,6.960715378032657,null,-2.3144310498534555,-3.476642260408056,{"$f":"AVERAGE(BL357:BL363)","v":-3.1746419976111255},-2.9366015810489925,null,null,7.918336287198115]
[{"$f":"'[1]Nominal weighted'!B361","v":1667},null,5.409247170338116,10.950495049504951,11.83122976929436,12.015163642313524,19.246903798195675,null,9.493465394270206,null,null,5.587846018942147,8.463590629908813,5.638210847298838,9.63456672812311,{"$f":"AVERAGE(G358:G364)","v":13.618520411756949},null,5.65665345365024,null,null,-0.4092471703381153,-4.950495049504951,-8.476467864532445,-6.250620635320524,-8.125475226767103,null,-4.493465394270207,{"$nulls":3},5,6,{"v":3.354761904761914,"d":"3.35"},5.7645430069930015,11.121428571428572,null,5,{"$nulls":3},{"$f":"AE361*'III. GDP shares, 1310-2018'!C363","v":1.1030103163522775},{"$f":"AF361*'III. GDP shares, 1310-2018'!D363","v":0.8326190520569906},{"$f":"AG361*'III. GDP shares, 1310-2018'!E363","v":0.17260732225281109},{"$f":"AH361*'III. GDP shares, 1310-2018'!F363","v":1.1637492538318},{"$f":"AI361*'III. GDP shares, 1310-2018'!G363","v":3.0716248042137027},{"$f":"AJ361*'III. GDP shares, 1310-2018'!H363","v":0},{"$f":"AK361*'III. GDP shares, 1310-2018'!I363","v":0.5555315618066611},{"$f":"AL361*'III. GDP shares, 1310-2018'!J363","v":0},null,null,{"$f":"U361*'III. GDP shares, 1310-2018'!C363","v":-0.0902807701641838},{"$f":"V361*'III. GDP shares, 1310-2018'!D363","v":-0.6869794158886062},{"$f":"W361*'III. GDP shares, 1310-2018'!E363","v":-0.4361264560033761},{"$f":"X361*'III. GDP shares, 1310-2018'!F363","v":-1.2618788846775173},{"$f":"Y361*'III. GDP shares, 1310-2018'!G363","v":-2.2441731376741494},{"$f":"Z361*'III. GDP shares, 1310-2018'!H363","v":0},{"$f":"AA361*'III. GDP shares, 1310-2018'!I363","v":-0.4992523696806224},{"$f":"AB361*'III. GDP shares, 1310-2018'!J363","v":0},null,null,6.040122247197249,6.899142310514243,null,-5.218691034088455,-5.450961890122225,{"$f":"AVERAGE(BL358:BL364)","v":-2.0903373563389853},-2.0300138629875306,null,null,10.598234876657102]
[{"$f":"'[1]Nominal weighted'!B362","v":1668},null,5.160928885172768,6,-2.9909318088050973,7.40176222097973,15.721560889661175,null,-4.228021508451926,null,null,5.23238521608224,7.844999688737224,3.841218641865236,8.825900517336683,{"$f":"AVERAGE(G359:G365)","v":12.8806955799546},null,7.977444712273881,null,null,-0.4109288851727679,0,6.319503237376535,-1.6577649307699462,-4.604894222994508,null,9.228021508451926,{"$nulls":3},4.75,6,{"v":3.328571428571438,"d":"3.33"},5.7439972902097844,11.116666666666667,null,5,{"$nulls":3},{"$f":"AE362*'III. GDP shares, 1310-2018'!C364","v":1.046064716217657},{"$f":"AF362*'III. GDP shares, 1310-2018'!D364","v":0.835334362687681},{"$f":"AG362*'III. GDP shares, 1310-2018'!E364","v":0.17193491938260888},{"$f":"AH362*'III. GDP shares, 1310-2018'!F364","v":1.1583036519687264},{"$f":"AI362*'III. GDP shares, 1310-2018'!G364","v":3.0712790070602605},{"$f":"AJ362*'III. GDP shares, 1310-2018'!H364","v":0},{"$f":"AK362*'III. GDP shares, 1310-2018'!I364","v":0.5548379250926917},{"$f":"AL362*'III. GDP shares, 1310-2018'!J364","v":0},null,null,{"$f":"U362*'III. GDP shares, 1310-2018'!C364","v":-0.09049646476923992},{"$f":"V362*'III. GDP shares, 1310-2018'!D364","v":0},{"$f":"W362*'III. GDP shares, 1310-2018'!E364","v":0.3264293114847756},{"$f":"X362*'III. GDP shares, 1310-2018'!F364","v":-0.3342959748064891},{"$f":"Y362*'III. GDP shares, 1310-2018'!G364","v":-1.2722262329969507},{"$f":"Z362*'III. GDP shares, 1310-2018'!H364","v":0},{"$f":"AA362*'III. GDP shares, 1310-2018'!I364","v":1.0240112612920393},{"$f":"AB362*'III. GDP shares, 1310-2018'!J364","v":0},null,null,5.989872564241314,6.837754582409625,null,-0.34657809979586474,1.47898945114854,{"$f":"AVERAGE(BL359:BL365)","v":-1.944705834032909},-1.8355681618003292,null,null,6.3489983195178095]
[{"$f":"'[1]Nominal weighted'!B363","v":1669},null,4.912624478341586,10.166666666666671,18.08265222606812,8.481970554426981,9.697643125630536,null,18.444819627558218,null,null,4.912652582897025,8.310838198053997,4.895736509178918,8.380722422505771,{"$f":"AVERAGE(G360:G366)","v":10.918183609914022},null,8.341521990902576,null,null,-0.41262447834158594,-4.166666666666671,-14.780271273687159,-2.758518981000414,1.4142616362742253,null,-13.444819627558216,{"$nulls":3},4.5,6,{"v":3.302380952380962,"d":"3.30"},5.723451573426567,11.111904761904762,null,5,{"$nulls":3},{"$f":"AE363*'III. GDP shares, 1310-2018'!C365","v":0.9893144001882987},{"$f":"AF363*'III. GDP shares, 1310-2018'!D365","v":0.838039569798058},{"$f":"AG363*'III. GDP shares, 1310-2018'!E365","v":0.17124939970125694},{"$f":"AH363*'III. GDP shares, 1310-2018'!F365","v":1.152872146307387},{"$f":"AI363*'III. GDP shares, 1310-2018'!G365","v":3.0709287739048072},{"$f":"AJ363*'III. GDP shares, 1310-2018'!H365","v":0},{"$f":"AK363*'III. GDP shares, 1310-2018'!I365","v":0.5541468693624784},{"$f":"AL363*'III. GDP shares, 1310-2018'!J365","v":0},null,null,{"$f":"U363*'III. GDP shares, 1310-2018'!C365","v":-0.09071451962078128},{"$f":"V363*'III. GDP shares, 1310-2018'!D365","v":-0.5819719234708742},{"$f":"W363*'III. GDP shares, 1310-2018'!E365","v":-0.7664508182242779},{"$f":"X363*'III. GDP shares, 1310-2018'!F365","v":-0.5556471750405063},{"$f":"Y363*'III. GDP shares, 1310-2018'!G365","v":0.3908507898262202},{"$f":"Z363*'III. GDP shares, 1310-2018'!H365","v":0},{"$f":"AA363*'III. GDP shares, 1310-2018'!I365","v":-1.4900809411509175},{"$f":"AB363*'III. GDP shares, 1310-2018'!J365","v":0},null,null,5.9396228812853815,6.7765511592622865,null,-3.094014587681137,-5.691439898496637,{"$f":"AVERAGE(BL360:BL366)","v":-1.5925744249690525},-1.7673088858092778,null,null,8.450554253674492]
[{"$f":"'[1]Nominal weighted'!B364","v":1670},null,4.6643341223525345,4.91304347826086,-3.1123228800971425,9.739404893785798,6.65194926585699,null,12.780376143681355,null,null,4.700076863440146,7.927134154638878,4.0184965517774485,6.893291414676422,{"$f":"AVERAGE(G361:G367)","v":11.01789535148359},null,8.220927022519252,null,null,-0.41433412235253425,1.0869565217391397,6.388513356287628,-4.036499037142447,4.455193591285868,null,-7.780376143681354,{"$nulls":3},4.25,6,{"v":3.276190476190486,"d":"3.28"},5.70290585664335,11.107142857142858,null,5,{"$nulls":3},{"$f":"AE364*'III. GDP shares, 1310-2018'!C366","v":0.9327582803262873},{"$f":"AF364*'III. GDP shares, 1310-2018'!D366","v":0.8407347296753589},{"$f":"AG364*'III. GDP shares, 1310-2018'!E366","v":0.17055083628319279},{"$f":"AH364*'III. GDP shares, 1310-2018'!F366","v":1.1474546583171077},{"$f":"AI364*'III. GDP shares, 1310-2018'!G366","v":3.0705741294605393},{"$f":"AJ364*'III. GDP shares, 1310-2018'!H366","v":0},{"$f":"AK364*'III. GDP shares, 1310-2018'!I366","v":0.5534583802372259},{"$f":"AL364*'III. GDP shares, 1310-2018'!J366","v":0},null,null,{"$f":"U364*'III. GDP shares, 1310-2018'!C366","v":-0.09093496081083562},{"$f":"V364*'III. GDP shares, 1310-2018'!D366","v":0.15230701624553733},{"$f":"W364*'III. GDP shares, 1310-2018'!E366","v":0.3325711076445519},{"$f":"X364*'III. GDP shares, 1310-2018'!F366","v":-0.8121648401518193},{"$f":"Y364*'III. GDP shares, 1310-2018'!G366","v":1.231640067935504},{"$f":"Z364*'III. GDP shares, 1310-2018'!H366","v":0},{"$f":"AA364*'III. GDP shares, 1310-2018'!I366","v":-0.8612228756236473},{"$f":"AB364*'III. GDP shares, 1310-2018'!J366","v":0},null,null,5.889373198329449,6.715531014299712,null,-0.04780448476070909,-0.05009097231061673,{"$f":"AVERAGE(BL361:BL367)","v":-1.3391417000152455},-1.3538482224345476,null,null,6.0749077856306]
[{"$f":"'[1]Nominal weighted'!B365","v":1671},null,4.416057992584587,7.0752688172042895,2.209974993714946,4.092985525049906,7.688855480445197,null,9.587096113014443,null,null,4.5232296617819845,6.245894602112197,2.6362973602620525,4.467647858957074,{"$f":"AVERAGE(G362:G368)","v":9.004096790976996},null,7.835879717684236,null,null,-0.41605799258458714,-1.0752688172042895,1.5400250062850538,1.5893746148102281,-0.036474528064243984,null,-4.587096113014444,{"$nulls":3},4,6,3.75,5.682360139860134,7.652380952380953,null,5,{"$nulls":3},{"$f":"AE365*'III. GDP shares, 1310-2018'!C367","v":0.8763952767600072},{"$f":"AF365*'III. GDP shares, 1310-2018'!D367","v":0.8434198981894905},{"$f":"AG365*'III. GDP shares, 1310-2018'!E367","v":0.1959684249935281},{"$f":"AH365*'III. GDP shares, 1310-2018'!F367","v":1.142051110049465},{"$f":"AI365*'III. GDP shares, 1310-2018'!G367","v":2.116163698434347},{"$f":"AJ365*'III. GDP shares, 1310-2018'!H367","v":0},{"$f":"AK365*'III. GDP shares, 1310-2018'!I367","v":0.5527724434447485},{"$f":"AL365*'III. GDP shares, 1310-2018'!J367","v":0},null,null,{"$f":"U365*'III. GDP shares, 1310-2018'!C367","v":-0.09115781488984556},{"$f":"V365*'III. GDP shares, 1310-2018'!D367","v":-0.15115051938879595},{"$f":"W365*'III. GDP shares, 1310-2018'!E367","v":0.08047900664862138},{"$f":"X365*'III. GDP shares, 1310-2018'!F367","v":0.3194354103668515},{"$f":"Y365*'III. GDP shares, 1310-2018'!G367","v":-0.01008654335002263},{"$f":"Z365*'III. GDP shares, 1310-2018'!H367","v":0},{"$f":"AA365*'III. GDP shares, 1310-2018'!I367","v":-0.5071240653413804},{"$f":"AB365*'III. GDP shares, 1310-2018'!J367","v":0},null,null,5.347456848706848,5.726770851871587,null,-0.35960452595457165,-0.49758297162871373,{"$f":"AVERAGE(BL362:BL368)","v":-0.07402754991987896},-0.08664627886472712,null,null,5.091804960247872]
[{"$f":"'[1]Nominal weighted'!B366","v":1672},null,4.167796267347607,9.260869565217405,-2.5157471659430097,5.808589792623791,7.484012029097006,null,2.2047774354365792,null,null,4.382111156355412,5.182064814878154,3.346815564456191,3.399015304357049,{"$f":"AVERAGE(G363:G369)","v":6.046771534716403},null,9.148625722922583,null,null,-0.41779626734760694,-3.260869565217405,8.76574716594301,-0.14651286954687304,0.16360701852204243,null,2.7952225645634208,{"$nulls":3},3.75,6,6.25,5.662076923076918,7.647619047619048,null,5,{"$nulls":3},{"$f":"AE366*'III. GDP shares, 1310-2018'!C368","v":0.8202243176095226},{"$f":"AF366*'III. GDP shares, 1310-2018'!D368","v":0.84609513079689},{"$f":"AG366*'III. GDP shares, 1310-2018'!E368","v":0.327863019243438},{"$f":"AH366*'III. GDP shares, 1310-2018'!F368","v":1.1367141234270721},{"$f":"AI366*'III. GDP shares, 1310-2018'!G368","v":2.115503899445651},{"$f":"AJ366*'III. GDP shares, 1310-2018'!H368","v":0},{"$f":"AK366*'III. GDP shares, 1310-2018'!I368","v":0.5520890448184822},{"$f":"AL366*'III. GDP shares, 1310-2018'!J368","v":0},null,null,{"$f":"U366*'III. GDP shares, 1310-2018'!C368","v":-0.09138310887599908},{"$f":"V366*'III. GDP shares, 1310-2018'!D368","v":-0.45983431021570303},{"$f":"W366*'III. GDP shares, 1310-2018'!E368","v":0.45983429308010965},{"$f":"X366*'III. GDP shares, 1310-2018'!F368","v":-0.029413808809092418},{"$f":"Y366*'III. GDP shares, 1310-2018'!G368","v":0.04525739102653306},{"$f":"Z366*'III. GDP shares, 1310-2018'!H368","v":0},{"$f":"AA366*'III. GDP shares, 1310-2018'!I368","v":0.3086423511449774},{"$f":"AB366*'III. GDP shares, 1310-2018'!J368","v":0},null,null,5.718282661782662,5.798489535341055,null,0.2331028073508256,1.3165663411527648,{"$f":"AVERAGE(BL363:BL369)","v":0.798503437897306},0.3776177974806698,null,null,4.259457286977637]
[{"$f":"'[1]Nominal weighted'!B367","v":1673},null,4.169549127943826,7.1235955056179705,4.624620728209963,0.7131632735552236,10.634342871498546,null,9.263975952125886,null,null,4.276721528588793,5.294040298140765,1.7726525679032359,3.4717704432471987,{"$f":"AVERAGE(G364:G370)","v":6.178967753919198},null,6.378397067179562,null,null,-0.4195491279438263,-1.1235955056179705,0.375379271790037,4.9287213418293865,-2.991485728641404,null,-4.263975952125886,{"$nulls":3},3.75,6,{"v":5,"d":"5.00"},5.64188461538461,7.642857142857143,null,5,{"$nulls":3},{"$f":"AE367*'III. GDP shares, 1310-2018'!C369","v":0.818833220263699},{"$f":"AF367*'III. GDP shares, 1310-2018'!D369","v":0.8487604825443424},{"$f":"AG367*'III. GDP shares, 1310-2018'!E369","v":0.26328590702753596},{"$f":"AH367*'III. GDP shares, 1310-2018'!F369","v":1.131409036593097},{"$f":"AI367*'III. GDP shares, 1310-2018'!G369","v":2.114840856975989},{"$f":"AJ367*'III. GDP shares, 1310-2018'!H369","v":0},{"$f":"AK367*'III. GDP shares, 1310-2018'!I369","v":0.5514081702965107},{"$f":"AL367*'III. GDP shares, 1310-2018'!J369","v":0},null,null,{"$f":"U367*'III. GDP shares, 1310-2018'!C369","v":-0.09161087026481865},{"$f":"V367*'III. GDP shares, 1310-2018'!D369","v":-0.1589439105888272},{"$f":"W367*'III. GDP shares, 1310-2018'!E369","v":0.019766414410515167},{"$f":"X367*'III. GDP shares, 1310-2018'!F369","v":0.9883931071168985},{"$f":"Y367*'III. GDP shares, 1310-2018'!G369","v":-0.8277684802605605},{"$f":"Z367*'III. GDP shares, 1310-2018'!H369","v":0},{"$f":"AA367*'III. GDP shares, 1310-2018'!I369","v":-0.4702382355900114},{"$f":"AB367*'III. GDP shares, 1310-2018'!J369","v":0},null,null,5.505790293040292,5.728537673701174,null,-0.5404019751768041,-0.5824176167849439,{"$f":"AVERAGE(BL364:BL370)","v":0.9881413077546506},1.0026683428167666,null,null,5.2612352557448085]
[{"$f":"'[1]Nominal weighted'!B368","v":1674},null,4.171316758730983,-0.818181818181813,2.15583542868659,-4.964341247721916,5.150313874649509,null,6.798134260425086,null,null,4.207060962969139,6.490986467913024,3.74034947193291,4.023774654078125,{"$f":"AVERAGE(G365:G371)","v":5.283733875438233},null,3.746198258284585,null,null,-0.42131675873098284,6.818181818181813,2.84416457131341,10.586033555414218,2.487781363445729,null,-1.7981342604250858,{"$nulls":3},3.75,6,{"v":5,"d":"5.00"},5.621692307692302,7.6380952380952385,null,5,{"$nulls":3},{"$f":"AE368*'III. GDP shares, 1310-2018'!C370","v":0.8174472514069151},{"$f":"AF368*'III. GDP shares, 1310-2018'!D370","v":0.8514160080727569},{"$f":"AG368*'III. GDP shares, 1310-2018'!E370","v":0.26427772863108656},{"$f":"AH368*'III. GDP shares, 1310-2018'!F370","v":1.1261175031061144},{"$f":"AI368*'III. GDP shares, 1310-2018'!G370","v":2.114174588961729},{"$f":"AJ368*'III. GDP shares, 1310-2018'!H370","v":0},{"$f":"AK368*'III. GDP shares, 1310-2018'!I370","v":0.5507298059206005},{"$f":"AL368*'III. GDP shares, 1310-2018'!J370","v":0},null,null,{"$f":"U368*'III. GDP shares, 1310-2018'!C370","v":-0.09184112703901662},{"$f":"V368*'III. GDP shares, 1310-2018'!D370","v":0.9675181909917684},{"$f":"W368*'III. GDP shares, 1310-2018'!E370","v":0.15032987055194322},{"$f":"X368*'III. GDP shares, 1310-2018'!F370","v":2.120556768805834},{"$f":"Y368*'III. GDP shares, 1310-2018'!G370","v":0.688601539721197},{"$f":"Z368*'III. GDP shares, 1310-2018'!H370","v":0},{"$f":"AA368*'III. GDP shares, 1310-2018'!I370","v":-0.198057226452618},{"$f":"AB368*'III. GDP shares, 1310-2018'!J370","v":0},null,null,5.501631257631257,5.724162886099203,null,3.6371080165791083,3.4194517148665167,{"$f":"AVERAGE(BL365:BL371)","v":1.0037752538666234},0.8958066165545612,null,null,2.203157052439106]
[{"$f":"'[1]Nominal weighted'!B369","v":1675},null,4.173099347186762,-1.4468085106383057,1.9826956205538706,-0.07866566122044905,-4.9797159041629735,null,4.961200528216507,null,null,4.173129647106809,6.176862993224128,4.649024357377319,4.008136898444418,{"$f":"AVERAGE(G366:G372)","v":4.710840387557946},null,1.8388216330282394,null,null,-0.423099347186762,7.446808510638306,3.0173043794461294,5.680165661220443,12.613049237496307,null,0.038799471783492974,{"$nulls":3},3.75,6,{"v":5,"d":"5.00"},5.601499999999994,7.633333333333334,null,5,{"$nulls":3},{"$f":"AE369*'III. GDP shares, 1310-2018'!C371","v":0.816066382730936},{"$f":"AF369*'III. GDP shares, 1310-2018'!D371","v":0.854061761620899},{"$f":"AG369*'III. GDP shares, 1310-2018'!E371","v":0.2652659004632304},{"$f":"AH369*'III. GDP shares, 1310-2018'!F371","v":1.1208394481543558},{"$f":"AI369*'III. GDP shares, 1310-2018'!G371","v":2.1135051132072324},{"$f":"AJ369*'III. GDP shares, 1310-2018'!H371","v":0},{"$f":"AK369*'III. GDP shares, 1310-2018'!I371","v":0.5500539378352467},{"$f":"AL369*'III. GDP shares, 1310-2018'!J371","v":0},null,null,{"$f":"U369*'III. GDP shares, 1310-2018'!C371","v":-0.09207390767853901},{"$f":"V369*'III. GDP shares, 1310-2018'!D371","v":1.060005732508209},{"$f":"W369*'III. GDP shares, 1310-2018'!E371","v":0.16007759263708524},{"$f":"X369*'III. GDP shares, 1310-2018'!F371","v":1.1365801562345175},{"$f":"Y369*'III. GDP shares, 1310-2018'!G371","v":3.4922808807750694},{"$f":"Z369*'III. GDP shares, 1310-2018'!H371","v":0},{"$f":"AA369*'III. GDP shares, 1310-2018'!I371","v":0.00426836044808757},{"$f":"AB369*'III. GDP shares, 1310-2018'!J371","v":0},null,null,5.497472222222221,5.719792544011901,null,5.76113881492443,4.728837985566319,{"$f":"AVERAGE(BL366:BL372)","v":1.3675388819914096},1.214193378956221,null,null,0.16459769997477913]
[{"$f":"'[1]Nominal weighted'!B370","v":1676},null,4.1748970839752575,10.950495049504951,7.063511250197434,8.991256526658036,10.62301666005012,null,-0.9467809626429231,null,null,4.174927771801914,4.917373690256562,6.144015230106972,3.6144676224440464,{"$f":"AVERAGE(G367:G373)","v":4.107039392814511},null,4.10851180454059,null,null,-0.42489708397525733,-4.950495049504951,-2.0635112501974344,-3.40994883435035,-2.9944452314786902,null,5.946780962642923,{"$nulls":3},3.75,6,{"v":5,"d":"5.00"},5.5813076923076865,7.628571428571429,null,5,{"$nulls":3},{"$f":"AE370*'III. GDP shares, 1310-2018'!C372","v":0.8146905861354852},{"$f":"AF370*'III. GDP shares, 1310-2018'!D372","v":0.8566977970290849},{"$f":"AG370*'III. GDP shares, 1310-2018'!E372","v":0.26625044263297726},{"$f":"AH370*'III. GDP shares, 1310-2018'!F372","v":1.1155747974756374},{"$f":"AI370*'III. GDP shares, 1310-2018'!G372","v":2.1128324473860673},{"$f":"AJ370*'III. GDP shares, 1310-2018'!H372","v":0},{"$f":"AK370*'III. GDP shares, 1310-2018'!I372","v":0.5493805522867301},{"$f":"AL370*'III. GDP shares, 1310-2018'!J372","v":0},null,null,{"$f":"U370*'III. GDP shares, 1310-2018'!C372","v":-0.09230924117094956},{"$f":"V370*'III. GDP shares, 1310-2018'!D372","v":-0.7068463671857137},{"$f":"W370*'III. GDP shares, 1310-2018'!E372","v":-0.10988215674863905},{"$f":"X370*'III. GDP shares, 1310-2018'!F372","v":-0.6815701964479631},{"$f":"Y370*'III. GDP shares, 1310-2018'!G372","v":-0.8293506990434573},{"$f":"Z370*'III. GDP shares, 1310-2018'!H372","v":0},{"$f":"AA370*'III. GDP shares, 1310-2018'!I372","v":0.6534091619169963},{"$f":"AB370*'III. GDP shares, 1310-2018'!J372","v":0},null,null,5.493313186813186,5.715426622945983,null,-1.7665494986797263,-1.3160860811439599,{"$f":"AVERAGE(BL367:BL373)","v":1.4461566473040255},0.9147969506921024,null,null,5.91843195741091]
[{"$f":"'[1]Nominal weighted'!B371","v":1677},null,4.1767101630149535,13.291666666666671,10.661555448110576,13.603434369602285,0.3853121164902342,null,-5.6450155185834845,null,null,4.17674124539811,5.057611926296098,5.593672781301346,4.106202719755671,{"$f":"AVERAGE(G368:G374)","v":4.72121330597912},null,-0.34608813707751296,null,null,-0.4267101630149536,-7.291666666666671,-6.911555448110575,-8.042318984986906,7.23849740731929,null,10.645015518583484,{"$nulls":3},3.75,6,3.75,5.561115384615379,7.623809523809524,null,5,{"$nulls":3},{"$f":"AE371*'III. GDP shares, 1310-2018'!C373","v":0.8133198337263381},{"$f":"AF371*'III. GDP shares, 1310-2018'!D373","v":0.8593241677428334},{"$f":"AG371*'III. GDP shares, 1310-2018'!E373","v":0.20042353132641194},{"$f":"AH371*'III. GDP shares, 1310-2018'!F373","v":1.1103234773523203},{"$f":"AI371*'III. GDP shares, 1310-2018'!G373","v":2.1121566090422035},{"$f":"AJ371*'III. GDP shares, 1310-2018'!H373","v":0},{"$f":"AK371*'III. GDP shares, 1310-2018'!I373","v":0.5487096356221838},{"$f":"AL371*'III. GDP shares, 1310-2018'!J373","v":0},null,null,{"$f":"U371*'III. GDP shares, 1310-2018'!C373","v":-0.09254715702204286},{"$f":"V371*'III. GDP shares, 1310-2018'!D373","v":-1.0443175649652496},{"$f":"W371*'III. GDP shares, 1310-2018'!E373","v":-0.36939689329829944},{"$f":"X371*'III. GDP shares, 1310-2018'!F373","v":-1.6057166528302196},{"$f":"Y371*'III. GDP shares, 1310-2018'!G373","v":2.0054068888600263},{"$f":"Z371*'III. GDP shares, 1310-2018'!H373","v":0},{"$f":"AA371*'III. GDP shares, 1310-2018'!I373","v":1.168204517278887},{"$f":"AB371*'III. GDP shares, 1310-2018'!J373","v":0},null,null,5.280820818070817,5.644257254812291,null,0.061633138023101885,-0.7981230561460553,{"$f":"AVERAGE(BL368:BL374)","v":1.6632768624244363},1.5229126381128053,null,null,3.6789823840811064]
[{"$f":"'[1]Nominal weighted'!B372","v":1678},null,4.178538781548281,4.876404494382015,8.570699191825806,3.9835212356139573,3.678601065283184,null,-3.7645402637799776,null,null,4.199998836709564,6.492467393409631,5.795147541757232,5.819597322841694,{"$f":"AVERAGE(G369:G375)","v":4.889566985750835},null,0.061962068837710306,null,null,-0.4285387815482806,1.1235955056179847,-4.570699191825806,1.5574018413091135,3.9404465537644353,null,8.764540263779978,{"$nulls":3},3.75,6,{"v":4,"d":"4.00"},5.540923076923071,7.6190476190476195,null,5,{"$nulls":3},{"$f":"AE372*'III. GDP shares, 1310-2018'!C374","v":0.8119540978134382},{"$f":"AF372*'III. GDP shares, 1310-2018'!D374","v":0.8619409268164782},{"$f":"AG372*'III. GDP shares, 1310-2018'!E374","v":0.21456697414831727},{"$f":"AH372*'III. GDP shares, 1310-2018'!F374","v":1.105085414606331},{"$f":"AI372*'III. GDP shares, 1310-2018'!G374","v":2.111477615591204},{"$f":"AJ372*'III. GDP shares, 1310-2018'!H374","v":0},{"$f":"AK372*'III. GDP shares, 1310-2018'!I374","v":0.5480411742886714},{"$f":"AL372*'III. GDP shares, 1310-2018'!J374","v":0},null,null,{"$f":"U372*'III. GDP shares, 1310-2018'!C374","v":-0.09278768526669448},{"$f":"V372*'III. GDP shares, 1310-2018'!D374","v":0.16141215857986585},{"$f":"W372*'III. GDP shares, 1310-2018'!E374","v":-0.2451802738330556},{"$f":"X372*'III. GDP shares, 1310-2018'!F374","v":0.3106092677372933},{"$f":"Y372*'III. GDP shares, 1310-2018'!G374","v":1.0920216160490577},{"$f":"Z372*'III. GDP shares, 1310-2018'!H374","v":0},{"$f":"AA372*'III. GDP shares, 1310-2018'!I374","v":0.960665787652464},{"$f":"AB372*'III. GDP shares, 1310-2018'!J374","v":0},null,null,5.318328449328448,5.65306620326444,null,2.186740870918931,1.731124365182904,{"$f":"AVERAGE(BL369:BL375)","v":1.0040706133780402},0.8502050911106706,null,null,2.7657965641088964]
[{"$f":"'[1]Nominal weighted'!B373","v":1679},null,4.1803831402133405,0.44444444444444287,7.949188943164564,3.052904860621191,3.2574050658929554,null,18.092608636023034,null,null,4.1661293179497685,7.556297180643674,5.75293565657976,7.115707643149167,{"$f":"AVERAGE(G370:G376)","v":7.18068276842231},null,2.296738062156373,null,null,-0.43038314021334007,5.555555555555557,-3.5325222764978967,2.467825908609572,4.356880648392759,null,-13.092608636023034,{"$nulls":3},3.75,6,{"v":4.416666666666667,"d":"4.42"},5.520730769230763,7.614285714285715,null,5,{"$nulls":3},{"$f":"AE373*'III. GDP shares, 1310-2018'!C375","v":0.8105933509090307},{"$f":"AF373*'III. GDP shares, 1310-2018'!D375","v":0.864548126916739},{"$f":"AG373*'III. GDP shares, 1310-2018'!E375","v":0.23777786621454203},{"$f":"AH373*'III. GDP shares, 1310-2018'!F375","v":1.0998605365942309},{"$f":"AI373*'III. GDP shares, 1310-2018'!G375","v":2.110795484321391},{"$f":"AJ373*'III. GDP shares, 1310-2018'!H375","v":0},{"$f":"AK373*'III. GDP shares, 1310-2018'!I375","v":0.547375154832273},{"$f":"AL373*'III. GDP shares, 1310-2018'!J375","v":0},null,null,{"$f":"U373*'III. GDP shares, 1310-2018'!C375","v":-0.09303085648007534},{"$f":"V373*'III. GDP shares, 1310-2018'!D375","v":0.8005075249229068},{"$f":"W373*'III. GDP shares, 1310-2018'!E375","v":-0.19017862851192596},{"$f":"X373*'III. GDP shares, 1310-2018'!F375","v":0.4916494648121854},{"$f":"Y373*'III. GDP shares, 1310-2018'!G375","v":1.2077933956563383},{"$f":"Z373*'III. GDP shares, 1310-2018'!H375","v":0},{"$f":"AA373*'III. GDP shares, 1310-2018'!I375","v":-1.4333137358602925},{"$f":"AB373*'III. GDP shares, 1310-2018'!J375","v":0},null,null,5.383613858363858,5.670950519788206,null,0.7834271645391369,-0.7792086566960638,{"$f":"AVERAGE(BL370:BL376)","v":-0.2916721803246305},-0.3088042226434608,null,null,4.823482753255237]
[{"$f":"'[1]Nominal weighted'!B374","v":1680},null,4.182243443117194,8.105263157894726,0.7722235865705818,4.155308954736592,14.933560263650815,null,-21.918223639200832,null,null,4.132275750519294,7.1665439196032805,5.322912100345545,5.864325415504667,{"$f":"AVERAGE(G371:G377)","v":6.942219190133995},null,0.2866992263328377,null,null,-0.4322434431171941,-2.1052631578947256,3.644443080096085,1.3452295068018634,-7.324036454127005,null,26.918223639200832,{"$nulls":3},3.75,6,{"v":4.416666666666667,"d":"4.42"},5.500538461538455,7.60952380952381,null,5,{"$nulls":3},{"$f":"AE374*'III. GDP shares, 1310-2018'!C376","v":0.8092375657258191},{"$f":"AF374*'III. GDP shares, 1310-2018'!D376","v":0.8671458203262561},{"$f":"AG374*'III. GDP shares, 1310-2018'!E376","v":0.23863489536637267},{"$f":"AH374*'III. GDP shares, 1310-2018'!F376","v":1.0946487712023447},{"$f":"AI374*'III. GDP shares, 1310-2018'!G376","v":2.11011023239501},{"$f":"AJ374*'III. GDP shares, 1310-2018'!H376","v":0},{"$f":"AK374*'III. GDP shares, 1310-2018'!I376","v":0.5467115638971839},{"$f":"AL374*'III. GDP shares, 1310-2018'!J376","v":0},null,null,{"$f":"U374*'III. GDP shares, 1310-2018'!C376","v":-0.09327670178909458},{"$f":"V374*'III. GDP shares, 1310-2018'!D376","v":-0.3042616913425444},{"$f":"W374*'III. GDP shares, 1310-2018'!E376","v":0.1969112361707389},{"$f":"X374*'III. GDP shares, 1310-2018'!F376","v":0.2677108499290331},{"$f":"Y374*'III. GDP shares, 1310-2018'!G376","v":-2.030944990926387},{"$f":"Z374*'III. GDP shares, 1310-2018'!H376","v":0},{"$f":"AA374*'III. GDP shares, 1310-2018'!I376","v":2.9433008286243263},{"$f":"AB374*'III. GDP shares, 1310-2018'!J376","v":0},null,null,5.3794548229548225,5.666488848912986,null,0.9794395306660724,3.674392195159976,{"$f":"AVERAGE(BL371:BL377)","v":0.31110192642129253},0.3944850135535097,null,null,3.515641806578113]
[{"$f":"'[1]Nominal weighted'!B375","v":1681},null,4.334119897911162,9.225806451612911,3.566158751877793,7.029420973880248,6.328789633051511,null,9.65448570183165,null,null,4.119866913652641,5.962539590598951,3.841182062607764,3.357699470742289,{"$f":"AVERAGE(G372:G378)","v":6.99144721460189},null,{"$f":"AVERAGE(I372:I378)","v":1.7272281391443038},null,null,-0.4341198979111622,-3.225806451612911,0.850507914788874,-1.5490748200341,1.275972271710394,null,-4.654485701831651,{"$nulls":3},3.9,6,{"v":4.416666666666667,"d":"4.42"},5.480346153846147,7.604761904761905,null,5,{"$nulls":3},{"$f":"AE375*'III. GDP shares, 1310-2018'!C377","v":0.8402021837821476},{"$f":"AF375*'III. GDP shares, 1310-2018'!D377","v":0.8697340589470858},{"$f":"AG375*'III. GDP shares, 1310-2018'!E377","v":0.23948880520108143},{"$f":"AH375*'III. GDP shares, 1310-2018'!F377","v":1.08945004684194},{"$f":"AI375*'III. GDP shares, 1310-2018'!G377","v":2.109421876849378},{"$f":"AJ375*'III. GDP shares, 1310-2018'!H377","v":0},{"$f":"AK375*'III. GDP shares, 1310-2018'!I377","v":0.546050388224821},{"$f":"AL375*'III. GDP shares, 1310-2018'!J377","v":0},null,null,{"$f":"U375*'III. GDP shares, 1310-2018'!C377","v":-0.09352525288416448},{"$f":"V375*'III. GDP shares, 1310-2018'!D377","v":-0.4675989564231655},{"$f":"W375*'III. GDP shares, 1310-2018'!E377","v":0.04611783947023033},{"$f":"X375*'III. GDP shares, 1310-2018'!F377","v":-0.3079439852651318},{"$f":"Y375*'III. GDP shares, 1310-2018'!G377","v":0.353931373250978},{"$f":"Z375*'III. GDP shares, 1310-2018'!H377","v":0},{"$f":"AA375*'III. GDP shares, 1310-2018'!I377","v":-0.5083167448944103},{"$f":"AB375*'III. GDP shares, 1310-2018'!J377","v":0},null,null,5.400295787545787,5.6943473598464545,null,-0.9773357267456637,-1.289501114148426,{"$f":"AVERAGE(BL372:BL378)","v":0.894846881179482},1.0264447461306705,null,null,5.334350071221866]
[{"$f":"'[1]Nominal weighted'!B376","v":1682},null,3.936012715868189,6,1.6872124243115674,8.994106580931861,11.058094574537348,null,20.604632481447144,null,null,4.124821386128298,5.802025946939243,3.085300428161944,4.670346754616375,{"$f":"AVERAGE(G373:G379)","v":7.033696659819884},null,3.9967173747153817,null,null,-0.4360127158681889,0,2.7294542423550996,-3.5360777347780217,-3.4580945745373475,null,-15.604632481447144,{"$nulls":3},3.5,6,{"v":4.416666666666667,"d":"4.42"},5.458028846153839,7.6000000000000005,null,5,{"$nulls":3},{"$f":"AE376*'III. GDP shares, 1310-2018'!C378","v":0.7527713875408234},{"$f":"AF376*'III. GDP shares, 1310-2018'!D378","v":0.8723128943041558},{"$f":"AG376*'III. GDP shares, 1310-2018'!E378","v":0.24033961271773568},{"$f":"AH376*'III. GDP shares, 1310-2018'!F378","v":1.0838423150265377},{"$f":"AI376*'III. GDP shares, 1310-2018'!G378","v":2.108730434598015},{"$f":"AJ376*'III. GDP shares, 1310-2018'!H378","v":0},{"$f":"AK376*'III. GDP shares, 1310-2018'!I378","v":0.5453916146529404},{"$f":"AL376*'III. GDP shares, 1310-2018'!J378","v":0},null,null,{"$f":"U376*'III. GDP shares, 1310-2018'!C378","v":-0.09377654203129696},{"$f":"V376*'III. GDP shares, 1310-2018'!D378","v":0},{"$f":"W376*'III. GDP shares, 1310-2018'!E378","v":0.1485273906879408},{"$f":"X376*'III. GDP shares, 1310-2018'!F378","v":-0.70218585980474},{"$f":"Y376*'III. GDP shares, 1310-2018'!G378","v":-0.959498588821734},{"$f":"Z376*'III. GDP shares, 1310-2018'!H378","v":0},{"$f":"AA376*'III. GDP shares, 1310-2018'!I378","v":-1.7021271410244354},{"$f":"AB376*'III. GDP shares, 1310-2018'!J378","v":0},null,null,5.329115918803418,5.603388258840208,null,-3.3090607409942656,-3.3842272107126004,{"$f":"AVERAGE(BL373:BL379)","v":0.44406939194100475},0.5857713248056564,null,null,8.040136105530317]
[{"$f":"'[1]Nominal weighted'!B377","v":1683},null,3.9379221119619414,8.2222222222222,4.053346356557925,0.23158093314652994,8.953771612031925,null,-15.01705281340767,null,null,4.147139383082835,6.438690869318451,3.358800521350974,4.79820671074035,{"$f":"AVERAGE(G374:G380)","v":9.698055450707432},null,3.9061571088705813,null,null,-0.43792211196194153,-2.2222222222222,0.36332031010874183,5.279936160870557,-1.3585335167938297,null,20.01705281340767,{"$nulls":3},3.5,6,{"v":4.416666666666667,"d":"4.42"},5.511517094017087,7.595238095238096,null,5,{"$nulls":3},{"$f":"AE377*'III. GDP shares, 1310-2018'!C379","v":0.7515197298925036},{"$f":"AF377*'III. GDP shares, 1310-2018'!D379","v":0.8748823775486844},{"$f":"AG377*'III. GDP shares, 1310-2018'!E379","v":0.24118733479210885},{"$f":"AH377*'III. GDP shares, 1310-2018'!F379","v":1.093285469299953},{"$f":"AI377*'III. GDP shares, 1310-2018'!G379","v":2.1080359224317675},{"$f":"AJ377*'III. GDP shares, 1310-2018'!H379","v":0},{"$f":"AK377*'III. GDP shares, 1310-2018'!I379","v":0.544735230114763},{"$f":"AL377*'III. GDP shares, 1310-2018'!J379","v":0},null,null,{"$f":"U377*'III. GDP shares, 1310-2018'!C379","v":-0.09403060208445514},{"$f":"V377*'III. GDP shares, 1310-2018'!D379","v":-0.3240305102032132},{"$f":"W377*'III. GDP shares, 1310-2018'!E379","v":0.019840360136823377},{"$f":"X377*'III. GDP shares, 1310-2018'!F379","v":1.0473481956133914},{"$f":"Y377*'III. GDP shares, 1310-2018'!G379","v":-0.3770569690270096},{"$f":"Z377*'III. GDP shares, 1310-2018'!H379","v":0},{"$f":"AA377*'III. GDP shares, 1310-2018'!I379","v":2.1807987741061985},{"$f":"AB377*'III. GDP shares, 1310-2018'!J379","v":0},null,null,5.3372369759869756,5.61364606407978,null,2.4528692485417354,3.606938572234833,{"$f":"AVERAGE(BL374:BL380)","v":-0.4143118595809443},-0.013709998478310479,null,null,1.9618639277861472]
[{"$f":"'[1]Nominal weighted'!B378","v":1684},null,4.08984830494838,4.86363636363636,0.2894451839461114,-3.9429472437343573,0.7299082877654923,null,4.438686871096779,null,null,4.186821123439375,7.846013523780692,4.645691587803846,5.055255082404853,{"$f":"AVERAGE(G375:G381)","v":8.709495663930237},null,8.972312452627785,null,null,-0.43984830494837995,1.1363636363636402,4.127221482720556,9.507952585614692,6.860567902710699,null,0.5613131289032204,{"$nulls":3},3.65,6,{"v":4.416666666666667,"d":"4.42"},5.565005341880335,7.590476190476191,null,5,{"$nulls":3},{"$f":"AE378*'III. GDP shares, 1310-2018'!C380","v":0.7824271432835067},{"$f":"AF378*'III. GDP shares, 1310-2018'!D380","v":0.8774425594615634},{"$f":"AG378*'III. GDP shares, 1310-2018'!E380","v":0.24203198817779636},{"$f":"AH378*'III. GDP shares, 1310-2018'!F380","v":1.1027100581616154},{"$f":"AI378*'III. GDP shares, 1310-2018'!G380","v":2.107338357019918},{"$f":"AJ378*'III. GDP shares, 1310-2018'!H380","v":0},{"$f":"AK378*'III. GDP shares, 1310-2018'!I380","v":0.5440812216381117},{"$f":"AL378*'III. GDP shares, 1310-2018'!J380","v":0},null,null,{"$f":"U378*'III. GDP shares, 1310-2018'!C380","v":-0.09428746649831607},{"$f":"V378*'III. GDP shares, 1310-2018'!D380","v":0.16618230292832697},{"$f":"W378*'III. GDP shares, 1310-2018'!E380","v":0.2261704802519929},{"$f":"X378*'III. GDP shares, 1310-2018'!F380","v":1.8840080655050175},{"$f":"Y378*'III. GDP shares, 1310-2018'!G380","v":1.9046944525643719},{"$f":"Z378*'III. GDP shares, 1310-2018'!H380","v":0},{"$f":"AA378*'III. GDP shares, 1310-2018'!I380","v":0.061079986579034996},{"$f":"AB378*'III. GDP shares, 1310-2018'!J380","v":0},null,null,5.3703580331705325,5.656031327742512,null,4.147847821330428,3.6255950718940713,{"$f":"AVERAGE(BL375:BL381)","v":-1.0183890134623035},-1.1809455157290043,null,null,0.796923249878847]
[{"$f":"'[1]Nominal weighted'!B379","v":1685},null,4.213220088877878,3.752808988764059,3.2795277507050637,13.17205222273256,3.9743471818091485,null,12.121884385217566,null,null,4.222438258562704,7.385184030693133,4.428468803370622,3.684351567006419,{"$f":"AVERAGE(G376:G382)","v":10.050892397920345},null,8.805653416274609,null,null,-0.4417915174493069,2.247191011235941,1.1371389159616032,-7.553558632988978,3.611367103905138,null,-7.121884385217565,{"$nulls":3},3.7714285714285714,6,{"v":4.416666666666667,"d":"4.42"},5.618493589743582,7.585714285714286,null,5,{"$nulls":3},{"$f":"AE379*'III. GDP shares, 1310-2018'!C381","v":0.8071180222298411},{"$f":"AF379*'III. GDP shares, 1310-2018'!D381","v":0.8799934904567035},{"$f":"AG379*'III. GDP shares, 1310-2018'!E381","v":0.24287358950731952},{"$f":"AH379*'III. GDP shares, 1310-2018'!F381","v":1.112116182237439},{"$f":"AI379*'III. GDP shares, 1310-2018'!G381","v":2.106637754911286},{"$f":"AJ379*'III. GDP shares, 1310-2018'!H381","v":0},{"$f":"AK379*'III. GDP shares, 1310-2018'!I381","v":0.543429576344556},{"$f":"AL379*'III. GDP shares, 1310-2018'!J381","v":0},null,null,{"$f":"U379*'III. GDP shares, 1310-2018'!C381","v":-0.09454716934133463},{"$f":"V379*'III. GDP shares, 1310-2018'!D381","v":0.3295855769500741},{"$f":"W379*'III. GDP shares, 1310-2018'!E381","v":0.06253154949918265},{"$f":"X379*'III. GDP shares, 1310-2018'!F381","v":-1.4951400504507353},{"$f":"Y379*'III. GDP shares, 1310-2018'!G381","v":1.0029170624391404},{"$f":"Z379*'III. GDP shares, 1310-2018'!H381","v":0},{"$f":"AA379*'III. GDP shares, 1310-2018'!I381","v":-0.7740485228467381},{"$f":"AB379*'III. GDP shares, 1310-2018'!J381","v":0},null,null,5.398717185592186,5.6921686156871445,null,-0.9687015537504108,-1.3535895840921948,{"$f":"AVERAGE(BL376:BL382)","v":-1.0119289185941285},-1.0232979001818419,null,null,6.110462255930926]
[{"$f":"'[1]Nominal weighted'!B380","v":1686},null,4.336609118895099,4.901098901098905,9.863689595487774,3.9479245534890115,21.907916602105793,null,17.458686775109435,null,null,4.332562443773748,7.561550873726645,4.489479258659076,3.014661635598465,{"$f":"AVERAGE(G377:G383)","v":9.196605723189212},null,7.159403628165442,null,null,-0.44375197603795624,1.098901098901095,-5.447022928821106,1.7240572841178186,-14.32696422115341,null,-12.458686775109435,{"$nulls":3},3.892857142857143,6,{"v":4.416666666666667,"d":"4.42"},5.67198183760683,7.5809523809523816,null,5,{"$nulls":3},{"$f":"AE380*'III. GDP shares, 1310-2018'!C382","v":0.8317276635800168},{"$f":"AF380*'III. GDP shares, 1310-2018'!D382","v":0.8825352205843418},{"$f":"AG380*'III. GDP shares, 1310-2018'!E382","v":0.24371215529321688},{"$f":"AH380*'III. GDP shares, 1310-2018'!F382","v":1.1215039414274501},{"$f":"AI380*'III. GDP shares, 1310-2018'!G382","v":2.105934132535311},{"$f":"AJ380*'III. GDP shares, 1310-2018'!H382","v":0},{"$f":"AK380*'III. GDP shares, 1310-2018'!I382","v":0.5427802814485672},{"$f":"AL380*'III. GDP shares, 1310-2018'!J382","v":0},null,null,{"$f":"U380*'III. GDP shares, 1310-2018'!C382","v":-0.09480974530911761},{"$f":"V380*'III. GDP shares, 1310-2018'!D382","v":0.1616364872865089},{"$f":"W380*'III. GDP shares, 1310-2018'!E382","v":-0.30056732782971224},{"$f":"X380*'III. GDP shares, 1310-2018'!F382","v":0.34089267115859684},{"$f":"Y380*'III. GDP shares, 1310-2018'!G382","v":-3.9799277785660934},{"$f":"Z380*'III. GDP shares, 1310-2018'!H382","v":0},{"$f":"AA380*'III. GDP shares, 1310-2018'!I382","v":-1.3524659028546882},{"$f":"AB380*'III. GDP shares, 1310-2018'!J382","v":0},null,null,5.427076338013837,5.728193394868904,null,-5.225241596114506,-4.975577919683833,{"$f":"AVERAGE(BL377:BL383)","v":-0.43878941016956985},-0.4979988793100269,null,null,10.232536257685577]
[{"$f":"'[1]Nominal weighted'!B381","v":1687},null,4.460015625612978,17.95652173913041,9.780461051740687,5.954647556388124,8.01364175621044,null,13.544863767099589,null,null,4.460051052723503,6.886947699123474,4.396271249460263,3.9087037574807844,{"$f":"AVERAGE(G378:G384)","v":8.925994336246628},null,9.110388418153017,null,null,-0.44572991132726325,-11.956521739130409,-5.363794385074021,-0.22917747091804608,-0.43745128001996364,null,-8.544863767099589,{"$nulls":3},4.014285714285714,6,{"v":4.416666666666667,"d":"4.42"},5.725470085470078,7.576190476190477,null,5,{"$nulls":3},{"$f":"AE381*'III. GDP shares, 1310-2018'!C383","v":0.8562565060625607},{"$f":"AF381*'III. GDP shares, 1310-2018'!D383","v":0.8850677995343169},{"$f":"AG381*'III. GDP shares, 1310-2018'!E383","v":0.24454770192912448},{"$f":"AH381*'III. GDP shares, 1310-2018'!F383","v":1.1308734349123193},{"$f":"AI381*'III. GDP shares, 1310-2018'!G383","v":2.105227506203129},{"$f":"AJ381*'III. GDP shares, 1310-2018'!H383","v":0},{"$f":"AK381*'III. GDP shares, 1310-2018'!I383","v":0.5421333242566817},{"$f":"AL381*'III. GDP shares, 1310-2018'!J383","v":0},null,null,{"$f":"U381*'III. GDP shares, 1310-2018'!C383","v":-0.09507522973824206},{"$f":"V381*'III. GDP shares, 1310-2018'!D383","v":-1.7637220642893958},{"$f":"W381*'III. GDP shares, 1310-2018'!E383","v":-0.2969894921864588},{"$f":"X381*'III. GDP shares, 1310-2018'!F383","v":-0.04526627680744056},{"$f":"Y381*'III. GDP shares, 1310-2018'!G383","v":-0.12155640360627083},{"$f":"Z381*'III. GDP shares, 1310-2018'!H383","v":0},{"$f":"AA381*'III. GDP shares, 1310-2018'!I383","v":-0.9264910798756344},{"$f":"AB381*'III. GDP shares, 1310-2018'!J383","v":0},null,null,5.455435490435488,5.7641062728981325,null,-3.2491005465034424,-4.496256425594882,{"$f":"AVERAGE(BL378:BL384)","v":-0.6431862218800504},-0.7908878668716314,null,null,6.364416955577862]
[{"$f":"'[1]Nominal weighted'!B382","v":1688},null,4.5834398437744595,6,2.0455992608452305,-2.5669036339087974,15.718566770982271,null,8.487872447359422,null,null,4.583475748912188,7.160783619300858,4.6896424376358885,4.51598403506878,{"$f":"AVERAGE(G379:G385)","v":9.918274677929977},null,9.02257929184375,null,null,-0.4477255580601736,0,2.3710674058214365,8.345861967242131,-8.1471381995537,null,-3.237872447359422,{"$nulls":3},4.135714285714286,6,{"v":4.416666666666667,"d":"4.42"},5.778958333333334,7.571428571428572,null,5.250000000000001,{"$nulls":3},{"$f":"AE382*'III. GDP shares, 1310-2018'!C384","v":0.8807049852525023},{"$f":"AF382*'III. GDP shares, 1310-2018'!D384","v":0.8875912766393066},{"$f":"AG382*'III. GDP shares, 1310-2018'!E384","v":0.24538024569084396},{"$f":"AH382*'III. GDP shares, 1310-2018'!F384","v":1.1402247611598268},{"$f":"AI382*'III. GDP shares, 1310-2018'!G384","v":2.104517892108633},{"$f":"AJ382*'III. GDP shares, 1310-2018'!H384","v":0},{"$f":"AK382*'III. GDP shares, 1310-2018'!I384","v":0.5685631267750079},{"$f":"AL382*'III. GDP shares, 1310-2018'!J384","v":0},null,null,{"$f":"U382*'III. GDP shares, 1310-2018'!C384","v":-0.09534365862037564},{"$f":"V382*'III. GDP shares, 1310-2018'!D384","v":0},{"$f":"W382*'III. GDP shares, 1310-2018'!E384","v":0.13173126851094705},{"$f":"X382*'III. GDP shares, 1310-2018'!F384","v":1.6466909639029308},{"$f":"Y382*'III. GDP shares, 1310-2018'!G384","v":-2.2645393730773082},{"$f":"Z382*'III. GDP shares, 1310-2018'!H384","v":0},{"$f":"AA382*'III. GDP shares, 1310-2018'!I384","v":-0.3506542633846323},{"$f":"AB382*'III. GDP shares, 1310-2018'!J384","v":0},null,null,5.52546130952381,5.826982287626121,null,-0.9321150626684385,-0.18596780531828797,{"$f":"AVERAGE(BL379:BL385)","v":-1.0301202859717375},-1.0777053642300414,null,null,5.871506073655252]
[{"$f":"'[1]Nominal weighted'!B383","v":1689},null,4.706882012345497,7.234567901234584,2.11428561133074,4.306277061076185,5.078087851419418,null,9.080883964682965,null,null,4.403857179659818,7.939642231921484,4.191074515857363,1.3333650889671544,{"$f":"AVERAGE(G380:G386)","v":9.37549093918634},null,7.494329227623382,null,null,-0.4497391552026405,-1.234567901234584,2.302381055335927,1.4099981914490678,3.5600073866758217,null,-3.830883964682964,{"$nulls":3},4.257142857142857,6,{"v":4.416666666666667,"d":"4.42"},5.716275252525253,8.63809523809524,null,5.250000000000001,{"$nulls":3},{"$f":"AE383*'III. GDP shares, 1310-2018'!C385","v":0.905073533599658},{"$f":"AF383*'III. GDP shares, 1310-2018'!D385","v":0.8901057008780305},{"$f":"AG383*'III. GDP shares, 1310-2018'!E385","v":0.24620980273739954},{"$f":"AH383*'III. GDP shares, 1310-2018'!F385","v":1.12666099170586},{"$f":"AI383*'III. GDP shares, 1310-2018'!G385","v":2.401700960152149},{"$f":"AJ383*'III. GDP shares, 1310-2018'!H385","v":0},{"$f":"AK383*'III. GDP shares, 1310-2018'!I385","v":0.5678886913000761},{"$f":"AL383*'III. GDP shares, 1310-2018'!J385","v":0},null,null,{"$f":"U383*'III. GDP shares, 1310-2018'!C385","v":-0.09561506861683396},{"$f":"V383*'III. GDP shares, 1310-2018'!D385","v":-0.18314932116832144},{"$f":"W383*'III. GDP shares, 1310-2018'!E385","v":0.1283476495382455},{"$f":"X383*'III. GDP shares, 1310-2018'!F385","v":0.277906484643071},{"$f":"Y383*'III. GDP shares, 1310-2018'!G385","v":0.9898100128626753},{"$f":"Z383*'III. GDP shares, 1310-2018'!H385","v":0},{"$f":"AA383*'III. GDP shares, 1310-2018'!I385","v":-0.41438393928119144},{"$f":"AB383*'III. GDP shares, 1310-2018'!J385","v":0},null,null,5.713030002405003,6.137639680373173,null,0.7029158179776451,0.29286593539010464,{"$f":"AVERAGE(BL380:BL386)","v":-0.14044100331384485},-0.22129541555302343,null,null,4.3614688403491755]
[{"$f":"'[1]Nominal weighted'!B384","v":1690},null,4.830342374610234,3.5,3.4008902921662365,6.489875786322765,7.05949190343384,null,-1.3601592834946565,null,null,4.2069098741609405,7.6854782774090955,2.327908740618542,0.15138469773782962,{"$f":"AVERAGE(G381:G387)","v":3.2177065889919425},null,6.885893293596867,null,null,-0.45177094603880646,2.5,1.0157763745004305,-0.8362836146055932,0.5024128584709223,null,6.610159283494657,{"$nulls":3},4.378571428571428,6,{"v":4.416666666666667,"d":"4.42"},5.653592171717172,7.561904761904763,null,5.250000000000001,{"$nulls":3},{"$f":"AE384*'III. GDP shares, 1310-2018'!C386","v":0.92936258045661},{"$f":"AF384*'III. GDP shares, 1310-2018'!D386","v":0.8926111208784201},{"$f":"AG384*'III. GDP shares, 1310-2018'!E386","v":0.24703638911208353},{"$f":"AH384*'III. GDP shares, 1310-2018'!F386","v":1.113127688311887},{"$f":"AI384*'III. GDP shares, 1310-2018'!G386","v":2.10308976482837},{"$f":"AJ384*'III. GDP shares, 1310-2018'!H386","v":0},{"$f":"AK384*'III. GDP shares, 1310-2018'!I386","v":0.5672166710014158},{"$f":"AL384*'III. GDP shares, 1310-2018'!J386","v":0},null,null,{"$f":"U384*'III. GDP shares, 1310-2018'!C386","v":-0.0958894970734631},{"$f":"V384*'III. GDP shares, 1310-2018'!D386","v":0.37192130036600834},{"$f":"W384*'III. GDP shares, 1310-2018'!E386","v":0.056815183630630144},{"$f":"X384*'III. GDP shares, 1310-2018'!F386","v":-0.16465468651168955},{"$f":"Y384*'III. GDP shares, 1310-2018'!G386","v":0.13972925785727697},{"$f":"Z384*'III. GDP shares, 1310-2018'!H386","v":0},{"$f":"AA384*'III. GDP shares, 1310-2018'!I386","v":0.7141700082996081},{"$f":"AB384*'III. GDP shares, 1310-2018'!J386","v":0},null,null,5.5434558381433385,5.852444214588787,null,1.022091566568371,1.5567156593036018,{"$f":"AVERAGE(BL381:BL387)","v":2.087820696852598},1.5229367345584914,null,null,4.309662827508004]
[{"$f":"'[1]Nominal weighted'!B385","v":1691},null,4.953821178269177,6.7804878048780495,2.343043501175483,0.30801469938161663,7.675870679548929,null,3.824022986931925,null,null,3.992634080317481,4.768101417666214,2.074027907337785,0.8954185984416413,{"$f":"AVERAGE(G382:G388)","v":0.8871622295705665},null,5.266747963742982,null,null,-0.45382117826917656,1.2195121951219505,2.073623165491184,5.282894391527475,0.15904995537170627,null,1.4259770130680762,{"$nulls":3},4.5,8,{"v":4.416666666666667,"d":"4.42"},5.590909090909092,7.8349206349206355,null,5.250000000000001,{"$nulls":3},{"$f":"AE385*'III. GDP shares, 1310-2018'!C387","v":0.9535725521063835},{"$f":"AF385*'III. GDP shares, 1310-2018'!D387","v":1.1934767798943358},{"$f":"AG385*'III. GDP shares, 1310-2018'!E387","v":0.24786002074349026},{"$f":"AH385*'III. GDP shares, 1310-2018'!F387","v":1.0996246876204132},{"$f":"AI385*'III. GDP shares, 1310-2018'!G387","v":2.1796481107176917},{"$f":"AJ385*'III. GDP shares, 1310-2018'!H387","v":0},{"$f":"AK385*'III. GDP shares, 1310-2018'!I387","v":0.5665470529289723},{"$f":"AL385*'III. GDP shares, 1310-2018'!J387","v":0},null,null,{"$f":"U385*'III. GDP shares, 1310-2018'!C387","v":-0.09616698203601438},{"$f":"V385*'III. GDP shares, 1310-2018'!D387","v":0.1819324359595023},{"$f":"W385*'III. GDP shares, 1310-2018'!E387","v":0.11637017678780984},{"$f":"X385*'III. GDP shares, 1310-2018'!F387","v":1.0390440982953717},{"$f":"Y385*'III. GDP shares, 1310-2018'!G387","v":0.044247153339439585},{"$f":"Z385*'III. GDP shares, 1310-2018'!H387","v":0},{"$f":"AA385*'III. GDP shares, 1310-2018'!I387","v":0.15388249034250992},{"$f":"AB385*'III. GDP shares, 1310-2018'!J387","v":0},null,null,5.9320827320827325,6.240729204011287,null,1.439309372688619,1.6178725903852025,{"$f":"AVERAGE(BL382:BL388)","v":3.282926819075023},2.648206727203363,null,null,3.7898754873878344]
[{"$f":"'[1]Nominal weighted'!B386","v":1692},null,2.955890104111288,9.204819277108442,-0.21044770174461291,-9.106280399978818,0.17486101060369297,null,1.424133935674984,null,null,3.761030050553874,5.0538157033805,1.5919352594958902,3.3183588218625495,{"$f":"AVERAGE(G383:G389)","v":4.126232340843896},null,3.9063997045064873,null,null,-0.455890104111288,-1.2048192771084416,4.62711436841128,14.525111568809987,7.655297719555038,null,2.700866064325016,{"$nulls":3},2.5,8,{"v":4.416666666666667,"d":"4.42"},5.418831168831169,7.830158730158731,null,4.125,{"$nulls":3},{"$f":"AE386*'III. GDP shares, 1310-2018'!C388","v":0.5288969940130457},{"$f":"AF386*'III. GDP shares, 1310-2018'!D388","v":1.196793521254333},{"$f":"AG386*'III. GDP shares, 1310-2018'!E388","v":0.24868071344653955},{"$f":"AH386*'III. GDP shares, 1310-2018'!F388","v":1.064658602209697},{"$f":"AI386*'III. GDP shares, 1310-2018'!G388","v":2.178948896149772},{"$f":"AJ386*'III. GDP shares, 1310-2018'!H388","v":0},{"$f":"AK386*'III. GDP shares, 1310-2018'!I388","v":0.44461986189115693},{"$f":"AL386*'III. GDP shares, 1310-2018'!J388","v":0},null,null,{"$f":"U386*'III. GDP shares, 1310-2018'!C388","v":-0.09644756226590186},{"$f":"V386*'III. GDP shares, 1310-2018'!D388","v":-0.18023998814071399},{"$f":"W386*'III. GDP shares, 1310-2018'!E388","v":0.2605299854343965},{"$f":"X386*'III. GDP shares, 1310-2018'!F388","v":2.853804537911956},{"$f":"Y386*'III. GDP shares, 1310-2018'!G388","v":2.1302891921559004},{"$f":"Z386*'III. GDP shares, 1310-2018'!H388","v":0},{"$f":"AA386*'III. GDP shares, 1310-2018'!I388","v":0.2911172597592003},{"$f":"AB386*'III. GDP shares, 1310-2018'!J388","v":0},null,null,5.381776094276095,5.662598588964544,null,5.259053424854837,4.641280056646932,{"$f":"AVERAGE(BL383:BL389)","v":2.0947483112386593},2.0151177328385854,null,null,-0.9734883452853405]
[{"$f":"'[1]Nominal weighted'!B387","v":1693},null,2.957977980402954,3.1219512195121837,-3.1784708311839704,-4.325938185116268,-21.19657384925499,null,13.199635236923838,null,null,3.5120980419206553,4.53454241390301,2.2894149493360643,4.384039474262139,{"$f":"AVERAGE(G384:G390)","v":4.795341924584385},null,3.3420317415880514,null,null,-0.45797798040295384,4.878048780487816,7.595137497850637,9.572691431869515,29.76601829369943,null,-7.949635236923837,{"$nulls":3},2.5,8,{"v":4.416666666666667,"d":"4.42"},5.246753246753247,8.569444444444445,null,5.250000000000001,{"$nulls":3},{"$f":"AE387*'III. GDP shares, 1310-2018'!C389","v":0.5280345420277877},{"$f":"AF387*'III. GDP shares, 1310-2018'!D389","v":1.2000984487102044},{"$f":"AG387*'III. GDP shares, 1310-2018'!E389","v":0.24949848292348883},{"$f":"AH387*'III. GDP shares, 1310-2018'!F389","v":1.029767622706054},{"$f":"AI387*'III. GDP shares, 1310-2018'!G389","v":2.3853568639688976},{"$f":"AJ387*'III. GDP shares, 1310-2018'!H389","v":0},{"$f":"AK387*'III. GDP shares, 1310-2018'!I389","v":0.5652149721237845},{"$f":"AL387*'III. GDP shares, 1310-2018'!J389","v":0},null,null,{"$f":"U387*'III. GDP shares, 1310-2018'!C389","v":-0.09673127725635394},{"$f":"V387*'III. GDP shares, 1310-2018'!D389","v":0.7317673467745166},{"$f":"W387*'III. GDP shares, 1310-2018'!E389","v":0.4290510075416687},{"$f":"X387*'III. GDP shares, 1310-2018'!F389","v":1.8788090910878859},{"$f":"Y387*'III. GDP shares, 1310-2018'!G389","v":8.28555182429948},{"$f":"Z387*'III. GDP shares, 1310-2018'!H389","v":0},{"$f":"AA387*'III. GDP shares, 1310-2018'!I389","v":-0.855857687396602},{"$f":"AB387*'III. GDP shares, 1310-2018'!J389","v":0},null,null,5.663810726310726,5.957970932460216,null,10.372590305050595,7.2340471310967684,{"$f":"AVERAGE(BL384:BL390)","v":1.8355567866360427},1.8265028316871061,null,null,-4.882950474526067]
[{"$f":"'[1]Nominal weighted'!B388","v":1694},null,2.9600850687087616,-2.465116279069761,8.003295218775387,11.162884861314806,-8.3001687597392,null,2.2108464581223948,null,null,3.2458383162009703,5.059335802332762,1.3409289034522789,3.2078688157323803,{"$f":"AVERAGE(G385:G391)","v":4.3282683410059075},null,4.210285183602368,null,null,-0.46008506870876176,10.465116279069761,-3.58662855210872,-6.08820953663948,16.914454474024915,null,3.039153541877606,{"$nulls":3},2.5,8,{"v":4.416666666666667,"d":"4.42"},5.074675324675326,8.614285714285714,null,5.250000000000001,{"$nulls":3},{"$f":"AE388*'III. GDP shares, 1310-2018'!C390","v":0.5271751565497582},{"$f":"AF388*'III. GDP shares, 1310-2018'!D390","v":1.2033916252696708},{"$f":"AG388*'III. GDP shares, 1310-2018'!E390","v":0.2503133447649347},{"$f":"AH388*'III. GDP shares, 1310-2018'!F390","v":0.994951348543173},{"$f":"AI388*'III. GDP shares, 1310-2018'!G390","v":2.398521987120206},{"$f":"AJ388*'III. GDP shares, 1310-2018'!H390","v":0},{"$f":"AK388*'III. GDP shares, 1310-2018'!I390","v":0.5645524839497389},{"$f":"AL388*'III. GDP shares, 1310-2018'!J390","v":0},null,null,{"$f":"U388*'III. GDP shares, 1310-2018'!C390","v":-0.0970181672490991},{"$f":"V388*'III. GDP shares, 1310-2018'!D390","v":1.5742041609632311},{"$f":"W388*'III. GDP shares, 1310-2018'!E390","v":-0.20327116739043363},{"$f":"X388*'III. GDP shares, 1310-2018'!F390","v":-1.193666964118618},{"$f":"Y388*'III. GDP shares, 1310-2018'!G390","v":4.709582698053856},{"$f":"Z388*'III. GDP shares, 1310-2018'!H390","v":0},{"$f":"AA388*'III. GDP shares, 1310-2018'!I390","v":0.32681174879459984},{"$f":"AB388*'III. GDP shares, 1310-2018'!J390","v":0},null,null,5.6426046176046185,5.938905946197482,null,5.116642309053536,3.38063352291922,{"$f":"AVERAGE(BL385:BL391)","v":2.1014219072580764},2.0541229961559897,null,null,1.193076172837506]
[{"$f":"'[1]Nominal weighted'!B389","v":1695},null,2.962211635429206,8,-1.3290492740480317,14.39367793003756,38.39205754989558,null,-1.0345653672960387,null,null,2.9622511400199736,4.530975717795148,0.48562408793267586,2.245745488259555,{"$f":"AVERAGE(G386:G392)","v":3.0676781067977394},null,3.0912661373936317,null,null,-0.4622116354292062,0,5.745715940714699,-9.491080527440156,-29.782533740371775,null,6.2845653672960395,{"$nulls":3},2.5,8,{"v":4.416666666666667,"d":"4.42"},4.902597402597404,8.609523809523811,null,5.250000000000001,{"$nulls":3},{"$f":"AE389*'III. GDP shares, 1310-2018'!C391","v":0.5263188212532157},{"$f":"AF389*'III. GDP shares, 1310-2018'!D391","v":1.2066731134931914},{"$f":"AG389*'III. GDP shares, 1310-2018'!E391","v":0.2511253144508036},{"$f":"AH389*'III. GDP shares, 1310-2018'!F391","v":0.9602093819981696},{"$f":"AI389*'III. GDP shares, 1310-2018'!G391","v":2.3978765863720852},{"$f":"AJ389*'III. GDP shares, 1310-2018'!H391","v":0},{"$f":"AK389*'III. GDP shares, 1310-2018'!I391","v":0.5638923471176875},{"$f":"AL389*'III. GDP shares, 1310-2018'!J391","v":0},null,null,{"$f":"U389*'III. GDP shares, 1310-2018'!C391","v":-0.09730827325144835},{"$f":"V389*'III. GDP shares, 1310-2018'!D391","v":0},{"$f":"W389*'III. GDP shares, 1310-2018'!E391","v":0.3266931446845978},{"$f":"X389*'III. GDP shares, 1310-2018'!F391","v":-1.858897196600289},{"$f":"Y389*'III. GDP shares, 1310-2018'!G391","v":-8.294865304847104},{"$f":"Z389*'III. GDP shares, 1310-2018'!H391","v":0},{"$f":"AA389*'III. GDP shares, 1310-2018'!I391","v":0.6750130124912562},{"$f":"AB389*'III. GDP shares, 1310-2018'!J391","v":0},null,null,{"$f":"AVERAGE(AE389:AL389)","v":5.613131313131315},{"$f":"SUM(AO389:AV389)","v":5.906095564685153},null,{"$f":"SUM(AY389:BF389)","v":-9.249364617522987},{"$f":"AVERAGE(U389:AB389)","v":-4.617590765871733},{"$f":"AVERAGE(BL386:BL392)","v":2.8597439381163556},2.8151203772859428,null,null,{"$f":"((AO389+SUM(AQ389:AV389))-((AY389+(SUM(BA389:BF389)))))","v":13.94878706871495}]
[{"$f":"'[1]Nominal weighted'!B390","v":1696},null,2.9643579519129672,3.5996548748921526,6.99664344021196,11.766041627873314,9.76185493760284,null,5.130308224253916,null,null,2.964398009447102,3.9124301067796585,0.5455309514546104,3.3960458195788936,{"$f":"AVERAGE(G387:G393)","v":2.782776736846625},null,3.2831855715215643,null,null,-0.46435795191296725,4.400345125107847,-2.5799767735452925,-7.035522147353832,-0.6048102640633193,null,0.11969177574608444,{"$nulls":3},2.5,8,{"v":4.416666666666667,"d":"4.42"},4.730519480519482,9.15704467353952,null,5.250000000000001,{"$nulls":3},{"$f":"AE390*'III. GDP shares, 1310-2018'!C392","v":0.5254655199281013},{"$f":"AF390*'III. GDP shares, 1310-2018'!D392","v":1.2099429754979247},{"$f":"AG390*'III. GDP shares, 1310-2018'!E392","v":0.25193440735133205},{"$f":"AH390*'III. GDP shares, 1310-2018'!F392","v":0.9255413281664008},{"$f":"AI390*'III. GDP shares, 1310-2018'!G392","v":2.5510902387338255},{"$f":"AJ390*'III. GDP shares, 1310-2018'!H392","v":0},{"$f":"AK390*'III. GDP shares, 1310-2018'!I392","v":0.5632345491315243},{"$f":"AL390*'III. GDP shares, 1310-2018'!J392","v":0},null,null,{"$f":"U390*'III. GDP shares, 1310-2018'!C392","v":-0.09760163705387824},{"$f":"V390*'III. GDP shares, 1310-2018'!D392","v":0.6655208342363471},{"$f":"W390*'III. GDP shares, 1310-2018'!E392","v":-0.14716639685056643},{"$f":"X390*'III. GDP shares, 1310-2018'!F392","v":-1.3765225023216507},{"$f":"Y390*'III. GDP shares, 1310-2018'!G392","v":-0.16849601765037214},{"$f":"Z390*'III. GDP shares, 1310-2018'!H392","v":0},{"$f":"AA390*'III. GDP shares, 1310-2018'!I392","v":0.012840865399447118},{"$f":"AB390*'III. GDP shares, 1310-2018'!J392","v":0},null,null,5.675705136787612,6.027209018809108,null,-1.1114248542406733,-1.0274383726702465,{"$f":"AVERAGE(BL387:BL393)","v":2.761049986348467},2.7285891199618773,null,null,6.594211731788204]
[{"$f":"'[1]Nominal weighted'!B391","v":1697},null,2.9665242945724417,7.173553719008268,-3.238512029020261,-1.7433188233855486,3.7899768183844955,null,4.71761481060556,null,null,3.1808506297035706,5.877692486676186,4.913055802013487,5.9419172669187486,{"$f":"AVERAGE(G388:G394)","v":8.347474465243128},null,2.8553276195614785,null,null,-0.4665242945724417,0.8264462809917319,7.655178695686928,6.301760381827108,4.051094610186934,null,0.5323851893944409,{"$nulls":3},2.5,8,{"v":4.416666666666667,"d":"4.42"},4.55844155844156,7.841071428571429,null,5.250000000000001,{"$nulls":3},{"$f":"AE391*'III. GDP shares, 1310-2018'!C393","v":0.5246152364790172},{"$f":"AF391*'III. GDP shares, 1310-2018'!D393","v":1.2132012729616501},{"$f":"AG391*'III. GDP shares, 1310-2018'!E393","v":0.2527406387280366},{"$f":"AH391*'III. GDP shares, 1310-2018'!F393","v":0.8909467949365473},{"$f":"AI391*'III. GDP shares, 1310-2018'!G393","v":2.185084426400033},{"$f":"AJ391*'III. GDP shares, 1310-2018'!H393","v":0},{"$f":"AK391*'III. GDP shares, 1310-2018'!I393","v":0.5625790775835333},{"$f":"AL391*'III. GDP shares, 1310-2018'!J393","v":0},null,null,{"$f":"U391*'III. GDP shares, 1310-2018'!C393","v":-0.09789830124813127},{"$f":"V391*'III. GDP shares, 1310-2018'!D393","v":0.12533071001669885},{"$f":"W391*'III. GDP shares, 1310-2018'!E393","v":0.438062208254756},{"$f":"X391*'III. GDP shares, 1310-2018'!F393","v":1.2316782265749768},{"$f":"Y391*'III. GDP shares, 1310-2018'!G393","v":1.1289252780350363},{"$f":"Z391*'III. GDP shares, 1310-2018'!H393","v":0},{"$f":"AA391*'III. GDP shares, 1310-2018'!I393","v":0.05704928928926842},{"$f":"AB391*'III. GDP shares, 1310-2018'!J393","v":0},null,null,5.4276966089466105,5.629167447088818,null,2.883147410922605,3.150056810585783,{"$f":"AVERAGE(BL388:BL394)","v":0.09828003028099148},0.351164808755781,null,null,1.6581494732212607]
[{"$f":"'[1]Nominal weighted'!B392","v":1698},null,2.968710945002197,3.0819672131147513,-3.6440902074617396,-6.426848592928162,-1.1482609599082458,null,-4.0091103365292335,null,null,3.397323568342449,8.664634563810376,4.818307875304927,5.138654200555506,{"$f":"AVERAGE(G389:G395)","v":13.618748406250143},null,3.4396303528227627,null,null,-0.4687109450021971,4.918032786885249,8.060756874128407,10.8132122292918,9.086724267936772,null,9.259110336529234,{"$nulls":3},2.5,8,{"v":4.416666666666667,"d":"4.42"},4.386363636363638,7.938463308028526,null,5.250000000000001,{"$nulls":3},{"$f":"AE392*'III. GDP shares, 1310-2018'!C394","v":0.5237679549242138},{"$f":"AF392*'III. GDP shares, 1310-2018'!D394","v":1.2164480671266444},{"$f":"AG392*'III. GDP shares, 1310-2018'!E394","v":0.2535440237346734},{"$f":"AH392*'III. GDP shares, 1310-2018'!F394","v":0.8564253929659591},{"$f":"AI392*'III. GDP shares, 1310-2018'!G394","v":2.212845592396819},{"$f":"AJ392*'III. GDP shares, 1310-2018'!H394","v":0},{"$f":"AK392*'III. GDP shares, 1310-2018'!I394","v":0.5619259201536088},{"$f":"AL392*'III. GDP shares, 1310-2018'!J394","v":0},null,null,{"$f":"U392*'III. GDP shares, 1310-2018'!C394","v":-0.09819830924575858},{"$f":"V392*'III. GDP shares, 1310-2018'!D394","v":0.7478164347090032},{"$f":"W392*'III. GDP shares, 1310-2018'!E394","v":0.4627373733313459},{"$f":"X392*'III. GDP shares, 1310-2018'!F394","v":2.111249841650797},{"$f":"Y392*'III. GDP shares, 1310-2018'!G394","v":2.53292318241157},{"$f":"Z392*'III. GDP shares, 1310-2018'!H394","v":0},{"$f":"AA392*'III. GDP shares, 1310-2018'!I394","v":0.9910350658396151},{"$f":"AB392*'III. GDP shares, 1310-2018'!J394","v":0},null,null,5.415248935176471,5.624956951301918,null,6.747563588696572,6.944854258294877,{"$f":"AVERAGE(BL389:BL395)","v":-1.8170500335955453},-1.0826817074478194,null,null,-1.5912382698122958]
[{"$f":"'[1]Nominal weighted'!B393","v":1699},null,{"$f":"AE393-U393","v":2.9709181901011856},{"$f":"AF393-V393","v":4.875000000000014},{"$f":"AG393-W393","v":0.20890034290892867},{"$f":"AH393-X393","v":-1.054178080743446},{"$f":"AI393-Y393","v":-1.8194485790541064},null,{"$f":"AK393-AA393","v":2.7675699745705122},null,null,3.831015547868216,8.521777420953232,6.526867366390669,4.813798352604356,{"$f":"AVERAGE(G390:G396)","v":10.874721613379384},null,4.949301388464783,null,null,-0.47091819010118585,3.124999999999986,4.207766323757738,5.530593175083069,9.338496198101726,null,2.4824300254294887,{"$nulls":3},2.5,8,{"v":4.416666666666667,"d":"4.42"},4.476415094339623,7.51904761904762,null,5.250000000000001,{"$nulls":3},{"$f":"AE393*'III. GDP shares, 1310-2018'!C395","v":0.5229236593945886},{"$f":"AF393*'III. GDP shares, 1310-2018'!D395","v":1.2196834188035193},{"$f":"AG393*'III. GDP shares, 1310-2018'!E395","v":0.2543445774181875},{"$f":"AH393*'III. GDP shares, 1310-2018'!F395","v":0.8731038463326738},{"$f":"AI393*'III. GDP shares, 1310-2018'!G395","v":2.0965194619537098},{"$f":"AJ393*'III. GDP shares, 1310-2018'!H395","v":0},{"$f":"AK393*'III. GDP shares, 1310-2018'!I395","v":0.5612750646084826},{"$f":"AL393*'III. GDP shares, 1310-2018'!J395","v":0},null,null,{"$f":"U393*'III. GDP shares, 1310-2018'!C395","v":-0.09850170529727546},{"$f":"V393*'III. GDP shares, 1310-2018'!D395","v":0.47643883547012256},{"$f":"W393*'III. GDP shares, 1310-2018'!E395","v":0.24231453905448502},{"$f":"X393*'III. GDP shares, 1310-2018'!F395","v":1.078716354918069},{"$f":"Y393*'III. GDP shares, 1310-2018'!G395","v":2.6038322958753692},{"$f":"Z393*'III. GDP shares, 1310-2018'!H395","v":0},{"$f":"AA393*'III. GDP shares, 1310-2018'!I395","v":0.26539544245885205},{"$f":"AB393*'III. GDP shares, 1310-2018'!J395","v":0},null,null,5.360354896675652,5.527850028511161,null,4.568195762479622,4.035561255378471,{"$f":"AVERAGE(BL390:BL396)","v":-1.2813265049740505},-1.1734718785435052,null,null,0.2164096826981421]
[{"$f":"'[1]Nominal weighted'!B394","v":1700},null,4.473146322198234,16.878787878787875,27.394203122728165,13.495161946262712,17.756310249520528,null,10.204629573203238,null,null,3.1656668940500707,9.586184588897932,6.24413832917032,3.7016997598693115,{"$f":"AVERAGE(G391:G397)","v":10.519708993508702},null,5.205272861916702,null,null,-0.47314632219823394,-12.878787878787875,-19.130203122728165,-8.768746851923089,-10.242024535234814,null,-4.954629573203238,{"$nulls":3},4,4,{"v":8.264000000000001,"d":"8.26"},4.726415094339623,7.514285714285715,null,5.250000000000001,{"$nulls":3},{"$f":"AE394*'III. GDP shares, 1310-2018'!C396","v":0.8353317346123101},{"$f":"AF394*'III. GDP shares, 1310-2018'!D396","v":0.6114536941875072},{"$f":"AG394*'III. GDP shares, 1310-2018'!E396","v":0.47739534087016106},{"$f":"AH394*'III. GDP shares, 1310-2018'!F396","v":0.9209142120266052},{"$f":"AI394*'III. GDP shares, 1310-2018'!G396","v":2.095775216561445},{"$f":"AJ394*'III. GDP shares, 1310-2018'!H396","v":0},{"$f":"AK394*'III. GDP shares, 1310-2018'!I396","v":0.5606264988009593},{"$f":"AL394*'III. GDP shares, 1310-2018'!J396","v":0},null,null,{"$f":"U394*'III. GDP shares, 1310-2018'!C396","v":-0.09880853451182144},{"$f":"V394*'III. GDP shares, 1310-2018'!D396","v":-1.9686956062855339},{"$f":"W394*'III. GDP shares, 1310-2018'!E396","v":-1.1051149371599989},{"$f":"X394*'III. GDP shares, 1310-2018'!F396","v":-1.7085388050809376},{"$f":"Y394*'III. GDP shares, 1310-2018'!G396","v":-2.856556431910943},{"$f":"Z394*'III. GDP shares, 1310-2018'!H396","v":0},{"$f":"AA394*'III. GDP shares, 1310-2018'!I396","v":-0.5290850724724995},{"$f":"AB394*'III. GDP shares, 1310-2018'!J396","v":0},null,null,5.625783468104224,5.501496697058988,null,-8.266799387421734,-9.407923047345903,{"$f":"AVERAGE(BL391:BL397)","v":-1.0135371618564477},-1.029609847217401,null,null,11.188146784007682]
[{"$f":"'[1]Nominal weighted'!B395","v":1701},null,4.475395639180909,17.043478260869563,7.340059731815472,5.540043396772112,28.598748827309894,null,6.3009655909513835,null,null,4.27986023794502,8.810631322048726,6.6903357684923765,4.673760993917348,{"$f":"AVERAGE(G392:G398)","v":11.888976353216268},null,5.633903012431119,null,null,-0.4753956391809092,-13.043478260869563,-4.340059731815472,-0.5636283024324891,-20.464225017786084,null,-1.0509655909513822,{"$nulls":3},4,4,{"v":3,"d":"3.00"},4.976415094339623,8.13452380952381,null,5.250000000000001,{"$nulls":3},{"$f":"AE395*'III. GDP shares, 1310-2018'!C397","v":0.8318124557135415},{"$f":"AF395*'III. GDP shares, 1310-2018'!D397","v":0.6210152210399137},{"$f":"AG395*'III. GDP shares, 1310-2018'!E397","v":0.17188576207377548},{"$f":"AH395*'III. GDP shares, 1310-2018'!F397","v":0.968939939149054},{"$f":"AI395*'III. GDP shares, 1310-2018'!G397","v":2.264357139619949},{"$f":"AJ395*'III. GDP shares, 1310-2018'!H397","v":0},{"$f":"AK395*'III. GDP shares, 1310-2018'!I397","v":0.5587448487972303},{"$f":"AL395*'III. GDP shares, 1310-2018'!J397","v":0},null,null,{"$f":"U395*'III. GDP shares, 1310-2018'!C397","v":-0.0988600035156452},{"$f":"V395*'III. GDP shares, 1310-2018'!D397","v":-2.0250496338258053},{"$f":"W395*'III. GDP shares, 1310-2018'!E397","v":-0.24866482481626936},{"$f":"X395*'III. GDP shares, 1310-2018'!F397","v":-0.10974204577162422},{"$f":"Y395*'III. GDP shares, 1310-2018'!G397","v":-5.696499894875311},{"$f":"Z395*'III. GDP shares, 1310-2018'!H397","v":0},{"$f":"AA395*'III. GDP shares, 1310-2018'!I397","v":-0.11185173527756605},{"$f":"AB395*'III. GDP shares, 1310-2018'!J397","v":0},null,null,4.893489817310572,5.416755366393464,null,-8.290668138082221,-6.656292090505985,{"$f":"AVERAGE(BL392:BL398)","v":-1.6427222035072557},-1.582546475403229,null,null,11.061358649609964]
[{"$f":"'[1]Nominal weighted'!B396","v":1702},null,5.998055492109579,7,10.630867163552157,12.119686994379505,19.183869999800294,null,9.533131882198102,null,null,5.184507346111831,10.5394465015163,8.791442270369641,6.968004656199747,{"$f":"AVERAGE(G393:G399)","v":14.040630333732773},null,7.482083251422047,null,null,-1.998055492109579,-1,-7.630867163552156,-6.893271900039882,-9.713405343349478,null,-4.2831318821981,{"$nulls":3},4,6,{"v":3,"d":"3.00"},5.226415094339623,9.470464656450815,null,5.250000000000001,{"$nulls":3},{"$f":"AE396*'III. GDP shares, 1310-2018'!C398","v":0.8283537229061613},{"$f":"AF396*'III. GDP shares, 1310-2018'!D398","v":0.9456183753762327},{"$f":"AG396*'III. GDP shares, 1310-2018'!E398","v":0.17049171358688373},{"$f":"AH396*'III. GDP shares, 1310-2018'!F398","v":1.016909193426215},{"$f":"AI396*'III. GDP shares, 1310-2018'!G398","v":2.6311935485797338},{"$f":"AJ396*'III. GDP shares, 1310-2018'!H398","v":0},{"$f":"AK396*'III. GDP shares, 1310-2018'!I398","v":0.556895570923237},{"$f":"AL396*'III. GDP shares, 1310-2018'!J398","v":0},null,null,{"$f":"U396*'III. GDP shares, 1310-2018'!C398","v":-0.413774176365518},{"$f":"V396*'III. GDP shares, 1310-2018'!D398","v":-0.15760306256270545},{"$f":"W396*'III. GDP shares, 1310-2018'!E398","v":-0.43366653962262997},{"$f":"X396*'III. GDP shares, 1310-2018'!F398","v":-1.34123131083274},{"$f":"Y396*'III. GDP shares, 1310-2018'!G398","v":-2.6986901278125046},{"$f":"Z396*'III. GDP shares, 1310-2018'!H398","v":0},{"$f":"AA396*'III. GDP shares, 1310-2018'!I398","v":-0.4543346999764247},{"$f":"AB396*'III. GDP shares, 1310-2018'!J398","v":0},null,null,5.49114662513174,6.149462124798463,null,-5.4992999171725225,-5.253121963541532,{"$f":"AVERAGE(BL393:BL399)","v":-3.3967758996918547},-3.4061767346287377,null,null,10.545540604032048]
[{"$f":"'[1]Nominal weighted'!B397","v":1703},null,-1.6930826248140507,11.050505050505052,5.017540179669515,3.9813514787280084,7.276766598508054,null,6.922108538417351,null,null,4.958318215928651,8.773997063314054,8.359694489194474,8.22355557784561,{"$f":"AVERAGE(G394:G400)","v":15.983246634218318},null,5.991057237117552,null,null,5.693082624814051,-5.050505050505052,-2.0175401796695147,1.4950636156116142,1.4295826078411513,null,-1.6721085384173502,{"$nulls":3},4,6,{"v":3,"d":"3.00"},5.476415094339623,8.706349206349206,null,5.250000000000001,{"$nulls":3},{"$f":"AE397*'III. GDP shares, 1310-2018'!C399","v":0.8249539870527408},{"$f":"AF397*'III. GDP shares, 1310-2018'!D399","v":0.9594734860062568},{"$f":"AG397*'III. GDP shares, 1310-2018'!E399","v":0.1691214439285338},{"$f":"AH397*'III. GDP shares, 1310-2018'!F399","v":1.0648234197770978},{"$f":"AI397*'III. GDP shares, 1310-2018'!G399","v":2.414342798881509},{"$f":"AJ397*'III. GDP shares, 1310-2018'!H399","v":0},{"$f":"AK397*'III. GDP shares, 1310-2018'!I399","v":0.5550778369029227},{"$f":"AL397*'III. GDP shares, 1310-2018'!J399","v":0},null,null,{"$f":"U397*'III. GDP shares, 1310-2018'!C399","v":1.1741328024902584},{"$f":"V397*'III. GDP shares, 1310-2018'!D399","v":-0.8076376144833814},{"$f":"W397*'III. GDP shares, 1310-2018'!E399","v":-0.11373643612318061},{"$f":"X397*'III. GDP shares, 1310-2018'!F399","v":0.29069723980662593},{"$f":"Y397*'III. GDP shares, 1310-2018'!G399","v":0.39643510647729174},{"$f":"Z397*'III. GDP shares, 1310-2018'!H399","v":0},{"$f":"AA397*'III. GDP shares, 1310-2018'!I399","v":-0.17679055058506862},{"$f":"AB397*'III. GDP shares, 1310-2018'!J399","v":0},null,null,5.405460716781472,5.987792972549061,null,0.7631005475825454,-0.020404153387516777,{"$f":"AVERAGE(BL394:BL400)","v":-3.55266325340331},-3.2482348950578563,null,null,3.457581324476877]
[{"$f":"'[1]Nominal weighted'!B398","v":1704},null,10.765877701837082,1.7446808510638334,-0.1151299537658681,5.0611098149507106,13.37484833633747,null,7.718025864206478,null,null,3.84277701644493,9.058639813303339,5.256869770966763,6.718419360172402,{"$f":"AVERAGE(G395:G401)","v":14.518858721949414},null,6.730153009199158,null,null,-6.765877701837082,4.255319148936167,3.115129953765868,0.6653052793889118,-3.1248483363374704,null,-2.4680258642064774,{"$nulls":3},4,6,{"v":3,"d":"3.00"},5.726415094339623,10.25,null,5.250000000000001,{"$nulls":3},{"$f":"AE398*'III. GDP shares, 1310-2018'!C400","v":0.8216117514174163},{"$f":"AF398*'III. GDP shares, 1310-2018'!D400","v":0.9730942631711781},{"$f":"AG398*'III. GDP shares, 1310-2018'!E400","v":0.1677743498366403},{"$f":"AH398*'III. GDP shares, 1310-2018'!F400","v":1.1126840142444674},{"$f":"AI398*'III. GDP shares, 1310-2018'!G400","v":2.8371375894662756},{"$f":"AJ398*'III. GDP shares, 1310-2018'!H400","v":0},{"$f":"AK398*'III. GDP shares, 1310-2018'!I400","v":0.5532908464777331},{"$f":"AL398*'III. GDP shares, 1310-2018'!J400","v":0},null,null,{"$f":"U398*'III. GDP shares, 1310-2018'!C400","v":-1.3897311571206021},{"$f":"V398*'III. GDP shares, 1310-2018'!D400","v":0.6901377752987072},{"$f":"W398*'III. GDP shares, 1310-2018'!E400","v":0.17421296754990398},{"$f":"X398*'III. GDP shares, 1310-2018'!F400","v":0.12927364446566736},{"$f":"Y398*'III. GDP shares, 1310-2018'!G400","v":-0.8649389928199211},{"$f":"Z398*'III. GDP shares, 1310-2018'!H400","v":0},{"$f":"AA398*'III. GDP shares, 1310-2018'!I400","v":-0.2601021180068077},{"$f":"AB398*'III. GDP shares, 1310-2018'!J400","v":0},null,null,5.70440251572327,6.465592814613711,null,-1.5211478806330523,-0.720499586715014,{"$f":"AVERAGE(BL395:BL401)","v":-2.573697703820059},-2.2774360202347457,null,null,7.703784207374292]
[{"$f":"'[1]Nominal weighted'!B399","v":1705},null,9.301240702169881,15.18367346938777,11.063655305679122,9.632857043048622,13.913316903707278,null,8.928151336407263,null,null,2.409450344629765,6.831649412399896,4.350308488552454,6.363498683254993,{"$f":"AVERAGE(G396:G402)","v":9.956828784567913},null,5.606971119852359,null,null,-5.301240702169881,-9.18367346938777,-8.063655305679122,-3.6564419487089994,-5.040182575349069,null,-3.6781513364072613,{"$nulls":3},4,5.999999999999999,{"v":3,"d":"3.00"},5.976415094339623,8.873134328358208,null,5.250000000000001,{"$nulls":3},{"$f":"AE399*'III. GDP shares, 1310-2018'!C401","v":0.8183255694687809},{"$f":"AF399*'III. GDP shares, 1310-2018'!D401","v":0.9864866019915379},{"$f":"AG399*'III. GDP shares, 1310-2018'!E401","v":0.16644984828411472},{"$f":"AH399*'III. GDP shares, 1310-2018'!F401","v":1.160492326044144},{"$f":"AI399*'III. GDP shares, 1310-2018'!G401","v":2.4515419611205047},{"$f":"AJ399*'III. GDP shares, 1310-2018'!H401","v":0},{"$f":"AK399*'III. GDP shares, 1310-2018'!I401","v":0.5515338262318904},{"$f":"AL399*'III. GDP shares, 1310-2018'!J401","v":0},null,null,{"$f":"U399*'III. GDP shares, 1310-2018'!C401","v":-1.084535204123562},{"$f":"V399*'III. GDP shares, 1310-2018'!D401","v":-1.5099284724360302},{"$f":"W399*'III. GDP shares, 1310-2018'!E401","v":-0.4473980674152288},{"$f":"X399*'III. GDP shares, 1310-2018'!F401","v":-0.71000302942839},{"$f":"Y399*'III. GDP shares, 1310-2018'!G401","v":-1.392542772139337},{"$f":"Z399*'III. GDP shares, 1310-2018'!H401","v":0},{"$f":"AA399*'III. GDP shares, 1310-2018'!I401","v":-0.3864047390530738},{"$f":"AB399*'III. GDP shares, 1310-2018'!J401","v":0},null,null,5.516591570449639,6.134830133140972,null,-5.530812284595622,-5.820557556283684,{"$f":"AVERAGE(BL396:BL402)","v":-0.37897272723004605},-0.452272204895349,null,null,9.169227343309027]
[{"$f":"'[1]Nominal weighted'!B400","v":1706},null,1.3875942788189333,-7.483146067415717,-2.813334125317245,7.734678370777603,11.7788655243447,null,-7.669612125560946,null,null,-2.6278657401118375,4.3595997229589045,-2.4604866606990012,4.526191965668483,{"$f":"AVERAGE(G397:G403)","v":-1.0122663235375131},null,3.47669463469301,null,null,2.6124057211810667,13.483146067415717,5.813334125317245,-1.5082632764379809,-2.4733099687891453,null,12.919612125560947,{"$nulls":3},4,6,{"v":3,"d":"3.00"},6.226415094339623,9.305555555555555,null,5.250000000000001,{"$nulls":3},{"$f":"AE400*'III. GDP shares, 1310-2018'!C402","v":0.8150940427924035},{"$f":"AF400*'III. GDP shares, 1310-2018'!D402","v":0.9996562014944045},{"$f":"AG400*'III. GDP shares, 1310-2018'!E402","v":0.1651473756375021},{"$f":"AH400*'III. GDP shares, 1310-2018'!F402","v":1.2082496595120473},{"$f":"AI400*'III. GDP shares, 1310-2018'!G402","v":2.566386809559662},{"$f":"AJ400*'III. GDP shares, 1310-2018'!H402","v":0},{"$f":"AK400*'III. GDP shares, 1310-2018'!I402","v":0.549806028476281},{"$f":"AL400*'III. GDP shares, 1310-2018'!J402","v":0},null,null,{"$f":"U400*'III. GDP shares, 1310-2018'!C402","v":0.53233908517287},{"$f":"V400*'III. GDP shares, 1310-2018'!D402","v":2.246418430324502},{"$f":"W400*'III. GDP shares, 1310-2018'!E402","v":0.32001895816669224},{"$f":"X400*'III. GDP shares, 1310-2018'!F402","v":-0.2926818341853573},{"$f":"Y400*'III. GDP shares, 1310-2018'!G402","v":-0.6821161876856829},{"$f":"Z400*'III. GDP shares, 1310-2018'!H402","v":0},{"$f":"AA400*'III. GDP shares, 1310-2018'!I402","v":1.3530058347064127},{"$f":"AB400*'III. GDP shares, 1310-2018'!J402","v":0},null,null,5.630328441649197,6.3043401174723,null,3.4769842864994374,5.141154132374641,{"$f":"AVERAGE(BL397:BL403)","v":4.98830925665404},4.406804824242973,null,null,4.074118059802961]
[{"$f":"'[1]Nominal weighted'!B401","v":1707},null,-3.3356420741878248,18.871287128712865,5.674430095134188,2.959208422550256,7.505594863638203,null,15.378299977774478,null,null,-2.1833848882306275,1.9640002030603172,-1.7669825661903755,4.9375558711058956,{"$f":"AVERAGE(G398:G404)","v":1.382724979089337},null,2.3092124298570647,null,null,7.335642074187825,-12.871287128712865,-2.6744300951341873,3.2047066717893666,-0.5403170858604249,null,-10.128299977774477,{"$nulls":3},4,6,{"v":3,"d":"3.00"},6.163915094339623,6.965277777777779,null,5.250000000000001,{"$nulls":3},{"$f":"AE401*'III. GDP shares, 1310-2018'!C403","v":0.8119158191066432},{"$f":"AF401*'III. GDP shares, 1310-2018'!D403","v":1.012608572699617},{"$f":"AG401*'III. GDP shares, 1310-2018'!E403","v":0.1638663868572518},{"$f":"AH401*'III. GDP shares, 1310-2018'!F403","v":1.1953548218165053},{"$f":"AI401*'III. GDP shares, 1310-2018'!G403","v":1.91755271315663},{"$f":"AJ401*'III. GDP shares, 1310-2018'!H403","v":0},{"$f":"AK401*'III. GDP shares, 1310-2018'!I403","v":0.5481067301875734},{"$f":"AL401*'III. GDP shares, 1310-2018'!J403","v":0},null,null,{"$f":"U401*'III. GDP shares, 1310-2018'!C403","v":1.4889809608343407},{"$f":"V401*'III. GDP shares, 1310-2018'!D403","v":-2.1722626147021478},{"$f":"W401*'III. GDP shares, 1310-2018'!E403","v":-0.14608306553064515},{"$f":"X401*'III. GDP shares, 1310-2018'!F403","v":0.6214818851331626},{"$f":"Y401*'III. GDP shares, 1310-2018'!G403","v":-0.1487502045161934},{"$f":"Z401*'III. GDP shares, 1310-2018'!H403","v":0},{"$f":"AA401*'III. GDP shares, 1310-2018'!I403","v":-1.0574075015574933},{"$f":"AB401*'III. GDP shares, 1310-2018'!J403","v":0},null,null,5.229865478686233,5.6494050438242205,null,-1.4140405403389762,-2.612330923584127,{"$f":"AVERAGE(BL398:BL404)","v":4.582722432055541},4.324536868584698,null,null,3.878574396761432]
[{"$f":"'[1]Nominal weighted'!B402","v":1708},null,-5.557891063525245,1.4545454545454675,0.9941307549153082,3.0555986583502452,-3.3354607343606304,null,-1.5613076344762202,null,null,1.8595402035302588,1.4353689807771928,0.4168090924142354,4.560792515119631,{"$f":"AVERAGE(G399:G405)","v":2.8045644263463947},null,2.7116007539908336,null,null,9.557891063525245,4.5454545454545325,2.0058692450846918,3.0458164359893773,10.752788776688673,null,6.811307634476221,{"$nulls":3},4,6,{"v":3,"d":"3.00"},6.101415094339623,7.417328042328043,null,5.250000000000001,{"$nulls":3},{"$f":"AE402*'III. GDP shares, 1310-2018'!C404","v":0.808789590375847},{"$f":"AF402*'III. GDP shares, 1310-2018'!D404","v":1.025349046309167},{"$f":"AG402*'III. GDP shares, 1310-2018'!E404","v":0.1626063547372381},{"$f":"AH402*'III. GDP shares, 1310-2018'!F404","v":1.1824879435223965},{"$f":"AI402*'III. GDP shares, 1310-2018'!G404","v":2.038434187614743},{"$f":"AJ402*'III. GDP shares, 1310-2018'!H404","v":0},{"$f":"AK402*'III. GDP shares, 1310-2018'!I404","v":0.5464352319994024},{"$f":"AL402*'III. GDP shares, 1310-2018'!J404","v":0},null,null,{"$f":"U402*'III. GDP shares, 1310-2018'!C404","v":1.932580699531388},{"$f":"V402*'III. GDP shares, 1310-2018'!D404","v":0.7767795805372455},{"$f":"W402*'III. GDP shares, 1310-2018'!E404","v":0.1087223620075858},{"$f":"X402*'III. GDP shares, 1310-2018'!F404","v":0.5902960474007238},{"$f":"Y402*'III. GDP shares, 1310-2018'!G404","v":2.9550873481015314},{"$f":"Z402*'III. GDP shares, 1310-2018'!H404","v":0},{"$f":"AA402*'III. GDP shares, 1310-2018'!I404","v":0.7089406604693931},{"$f":"AB402*'III. GDP shares, 1310-2018'!J404","v":0},null,null,5.294790522777944,5.764102354558794,null,7.0724066980478675,6.11985461686979,{"$f":"AVERAGE(BL399:BL405)","v":3.280465019688528},3.0785100996378745,null,null,-1.5568738092609955]
[{"$f":"'[1]Nominal weighted'!B403","v":1709},null,-29.26315710108164,-10.30434782608694,-37.04469888120803,-0.7414600287260642,-57.59979575693767,null,-5.378803513917336,null,null,{"$f":"AVERAGE(C400:C406)","v":1.908203224979672},{"$f":"AVERAGE(D400:D406)","v":4.107013511605394},{"$f":"AVERAGE(E400:E406)","v":-0.12577580825841306},{"$f":"AVERAGE(F400:F406)","v":3.0391761892047824},{"$f":"AVERAGE(G400:G406)","v":1.0272968801219462},null,2.798228567900502,null,null,33.26315710108164,16.30434782608694,40.04469888120803,6.780375123065687,65.5411209972007,null,10.628803513917337,{"$nulls":3},4,6.000000000000001,{"v":3,"d":"3.00"},6.038915094339623,7.9413252402630246,null,5.250000000000001,{"$nulls":3},{"$f":"AE403*'III. GDP shares, 1310-2018'!C405","v":0.805714091015398},{"$f":"AF403*'III. GDP shares, 1310-2018'!D405","v":1.0378827800222499},{"$f":"AG403*'III. GDP shares, 1310-2018'!E405","v":0.16136676918130205},{"$f":"AH403*'III. GDP shares, 1310-2018'!F405","v":1.1696483440831493},{"$f":"AI403*'III. GDP shares, 1310-2018'!G405","v":2.1786805496545685},{"$f":"AJ403*'III. GDP shares, 1310-2018'!H405","v":0},{"$f":"AK403*'III. GDP shares, 1310-2018'!I405","v":0.5447908572426641},{"$f":"AL403*'III. GDP shares, 1310-2018'!J405","v":0},null,null,{"$f":"U403*'III. GDP shares, 1310-2018'!C405","v":6.700148597000093},{"$f":"V403*'III. GDP shares, 1310-2018'!D405","v":2.820333641364806},{"$f":"W403*'III. GDP shares, 1310-2018'!E405","v":2.153961227099547},{"$f":"X403*'III. GDP shares, 1310-2018'!F405","v":1.3132581616174563},{"$f":"Y403*'III. GDP shares, 1310-2018'!G405","v":17.981024728113056},{"$f":"Z403*'III. GDP shares, 1310-2018'!H405","v":0},{"$f":"AA403*'III. GDP shares, 1310-2018'!I405","v":1.102947614821117},{"$f":"AB403*'III. GDP shares, 1310-2018'!J405","v":0},null,null,5.371706722433775,5.898083391199331,null,32.07167397001608,28.76041724042672,{"$f":"AVERAGE(BL400:BL406)","v":3.555482008996208},3.255038379478554,null,null,-24.391139717474193]
[{"$f":"'[1]Nominal weighted'!B404","v":1710},null,1.4182833383544162,-5.71869158878506,9.872068841229893,6.860898816789902,24.041705716896004,null,-1.2502668954342697,null,null,1.7693369899841398,6.5846623840367755,-0.15180705657828358,3.233977758252688,{"$f":"AVERAGE(G401:G407)","v":-2.679013907222746},null,4.253538829736362,null,null,2.5817166616455838,14.01869158878506,-6.872068841229893,-0.8844837224502793,-18.921801640157394,null,6.500266895434271,{"$nulls":3},4,8.3,{"v":3,"d":"3.00"},5.976415094339623,5.11990407673861,null,5.250000000000001,{"$nulls":3},{"$f":"AE404*'III. GDP shares, 1310-2018'!C406","v":0.8026880961834418},{"$f":"AF404*'III. GDP shares, 1310-2018'!D406","v":1.4527970922709579},{"$f":"AG404*'III. GDP shares, 1310-2018'!E406","v":0.16014713651472842},{"$f":"AH404*'III. GDP shares, 1310-2018'!F406","v":1.1568353648609184},{"$f":"AI404*'III. GDP shares, 1310-2018'!G406","v":1.4022471034857062},{"$f":"AJ404*'III. GDP shares, 1310-2018'!H406","v":0},{"$f":"AK404*'III. GDP shares, 1310-2018'!I406","v":0.5431729510321542},{"$f":"AL404*'III. GDP shares, 1310-2018'!J406","v":0},null,null,{"$f":"U404*'III. GDP shares, 1310-2018'!C406","v":0.5180783080053412},{"$f":"V404*'III. GDP shares, 1310-2018'!D406","v":2.45377281658196},{"$f":"W404*'III. GDP shares, 1310-2018'!E406","v":-0.36684738228501845},{"$f":"X404*'III. GDP shares, 1310-2018'!F406","v":-0.17120665710509406},{"$f":"Y404*'III. GDP shares, 1310-2018'!G406","v":-5.182331767345023},{"$f":"Z404*'III. GDP shares, 1310-2018'!H406","v":0},{"$f":"AA404*'III. GDP shares, 1310-2018'!I406","v":0.6725274575408859},{"$f":"AB404*'III. GDP shares, 1310-2018'!J406","v":0},null,null,5.2743865285130385,5.517887744347908,null,-2.076007224606948,-0.596279842995442,{"$f":"AVERAGE(BL401:BL407)","v":3.7644446627212824},3.076725311606981,null,null,8.594870693265857]
[{"$f":"'[1]Nominal weighted'!B405","v":1711},null,39.06635334416329,-1.9557377049180378,15.171411656466411,2.4237663230468507,23.327724467136875,null,10.534744133142864,null,null,1.580056727418124,3.933683221319327,-0.04708197617060948,3.9601326737475446,{"$f":"AVERAGE(G402:G408)","v":-2.727422781703535},null,4.984125633154027,null,null,-35.06635334416329,10.655737704918039,-12.171411656466411,3.490148771292772,-18.2794991584949,null,-5.284744133142863,{"$nulls":3},4,8.700000000000001,{"v":3,"d":"3.00"},5.913915094339623,5.0482253086419755,null,5.250000000000001,{"$nulls":3},{"$f":"AE405*'III. GDP shares, 1310-2018'!C407","v":0.799710420154445},{"$f":"AF405*'III. GDP shares, 1310-2018'!D407","v":1.5404072607198418},{"$f":"AG405*'III. GDP shares, 1310-2018'!E407","v":0.1589469788287055},{"$f":"AH405*'III. GDP shares, 1310-2018'!F407","v":1.1440483682519935},{"$f":"AI405*'III. GDP shares, 1310-2018'!G407","v":1.3803021585809458},{"$f":"AJ405*'III. GDP shares, 1310-2018'!H407","v":0},{"$f":"AK405*'III. GDP shares, 1310-2018'!I407","v":0.5415808793969604},{"$f":"AL405*'III. GDP shares, 1310-2018'!J407","v":0},null,null,{"$f":"U405*'III. GDP shares, 1310-2018'!C407","v":-7.010732041536263},{"$f":"V405*'III. GDP shares, 1310-2018'!D407","v":1.8866868654002216},{"$f":"W405*'III. GDP shares, 1310-2018'!E407","v":-0.6448697036252754},{"$f":"X405*'III. GDP shares, 1310-2018'!F407","v":0.6751701610623246},{"$f":"Y405*'III. GDP shares, 1310-2018'!G407","v":-4.998040024690687},{"$f":"Z405*'III. GDP shares, 1310-2018'!H407","v":0},{"$f":"AA405*'III. GDP shares, 1310-2018'!I407","v":-0.5451650238124645},{"$f":"AB405*'III. GDP shares, 1310-2018'!J407","v":0},null,null,5.3186900671636,5.564996065932892,null,-10.636949767202143,-9.442686969342775,{"$f":"AVERAGE(BL402:BL408)","v":4.008309314049462},3.271958609243449,null,null,16.548225437815415]
[{"$f":"'[1]Nominal weighted'!B406","v":1712},null,9.641881852315773,33.88518518518518,7.265561000970577,-1.0184572383553165,1.4724440801361371,null,9.534546033774944,null,null,1.1739521028467188,4.301480472611723,0.006581692190918341,5.0863829059663335,{"$f":"AVERAGE(G403:G409)","v":0.6172411405227339},null,6.005652522020509,null,null,-5.641881852315773,-25.185185185185176,-4.265561000970577,6.869872332694939,4.9981441551579815,null,-4.284546033774944,{"$nulls":3},4,8.7,{"v":3,"d":"3.00"},5.851415094339623,6.470588235294119,null,5.250000000000001,{"$nulls":3},{"$f":"AE406*'III. GDP shares, 1310-2018'!C408","v":0.7967799147700486},{"$f":"AF406*'III. GDP shares, 1310-2018'!D408","v":1.5577243680414805},{"$f":"AG406*'III. GDP shares, 1310-2018'!E408","v":0.15776583335593902},{"$f":"AH406*'III. GDP shares, 1310-2018'!F408","v":1.1312867368537738},{"$f":"AI406*'III. GDP shares, 1310-2018'!G408","v":1.7662909409191825},{"$f":"AJ406*'III. GDP shares, 1310-2018'!H408","v":0},{"$f":"AK406*'III. GDP shares, 1310-2018'!I408","v":0.5400140284521812},{"$f":"AL406*'III. GDP shares, 1310-2018'!J408","v":0},null,null,{"$f":"U406*'III. GDP shares, 1310-2018'!C408","v":-1.1238345353577115},{"$f":"V406*'III. GDP shares, 1310-2018'!D408","v":-4.50937662949428},{"$f":"W406*'III. GDP shares, 1310-2018'!E408","v":-0.22431992868290554},{"$f":"X406*'III. GDP shares, 1310-2018'!F408","v":1.3281907587404869},{"$f":"Y406*'III. GDP shares, 1310-2018'!G408","v":1.3643545875025722},{"$f":"Z406*'III. GDP shares, 1310-2018'!H408","v":0},{"$f":"AA406*'III. GDP shares, 1310-2018'!I408","v":-0.4407076121500233},{"$f":"AB406*'III. GDP shares, 1310-2018'!J408","v":0},null,null,5.54533388827229,5.949861822392606,null,-3.605693359441861,-4.584859597398925,{"$f":"AVERAGE(BL403:BL409)","v":2.642775742565454},2.2582925321620926,null,null,3.488454184298707]
[{"$f":"'[1]Nominal weighted'!B407","v":1713},null,0.41553063385021183,9.860396039603952,-2.995552863556334,9.098289354112945,-14.165309987068142,null,2.5175597072900713,null,null,6.646767746445296,7.174629063151613,5.882117899337648,5.465482215082935,{"$f":"AVERAGE(G404:G410)","v":12.418974433223537},null,7.500108351651018,null,null,3.584469366149788,-3.9603960396039497,5.995552863556334,-3.309374259773322,18.315083720602978,null,2.7324402927099296,{"$nulls":3},4,5.900000000000001,{"v":3,"d":"3.00"},5.788915094339623,4.149773733534837,null,5.250000000000001,{"$nulls":3},{"$f":"AE407*'III. GDP shares, 1310-2018'!C409","v":0.7938954679629658},{"$f":"AF407*'III. GDP shares, 1310-2018'!D409","v":1.0679469988752865},{"$f":"AG407*'III. GDP shares, 1310-2018'!E409","v":0.15660325187570628},{"$f":"AH407*'III. GDP shares, 1310-2018'!F409","v":1.1185498726710166},{"$f":"AI407*'III. GDP shares, 1310-2018'!G409","v":1.1309308372151115},{"$f":"AJ407*'III. GDP shares, 1310-2018'!H409","v":0},{"$f":"AK407*'III. GDP shares, 1310-2018'!I409","v":0.5384718036096994},{"$f":"AL407*'III. GDP shares, 1310-2018'!J409","v":0},null,null,{"$f":"U407*'III. GDP shares, 1310-2018'!C409","v":0.7114234962096004},{"$f":"V407*'III. GDP shares, 1310-2018'!D409","v":-0.7168632313309505},{"$f":"W407*'III. GDP shares, 1310-2018'!E409","v":0.31297435840854154},{"$f":"X407*'III. GDP shares, 1310-2018'!F409","v":-0.639446268698896},{"$f":"Y407*'III. GDP shares, 1310-2018'!G409","v":4.99137887890641},{"$f":"Z407*'III. GDP shares, 1310-2018'!H409","v":0},{"$f":"AA407*'III. GDP shares, 1310-2018'!I409","v":0.2802556290802534},{"$f":"AB407*'III. GDP shares, 1310-2018'!J409","v":0},null,null,4.681448137979077,4.806398232209785,null,4.939722862574959,3.892962657273626,{"$f":"AVERAGE(BL404:BL410)","v":-2.926702845092431},-2.519239547585402,null,null,-1.9181348605714095]
[{"$f":"'[1]Nominal weighted'!B408","v":1714},null,-4.660603912149934,0.3144329896907294,6.407505657987903,8.04229283101425,7.166732742272678,null,20.492407601698126,null,null,10.075723736123406,9.21164272446434,5.772226519789803,5.182313155246095,{"$f":"AVERAGE(G405:G411)","v":8.935986244897341},null,9.702932907775315,null,null,8.660603912149934,6.185567010309271,-3.407505657987903,-2.3158777366746266,-1.3545669668716078,null,-15.242407601698126,{"$nulls":3},4,6.5,{"v":3,"d":"3.00"},5.726415094339623,5.81216577540107,null,5.250000000000001,{"$nulls":3},{"$f":"AE408*'III. GDP shares, 1310-2018'!C410","v":0.791056002349936},{"$f":"AF408*'III. GDP shares, 1310-2018'!D410","v":1.1890879100174696},{"$f":"AG408*'III. GDP shares, 1310-2018'!E410","v":0.15545880014674382},{"$f":"AH408*'III. GDP shares, 1310-2018'!F410","v":1.1058371963592237},{"$f":"AI408*'III. GDP shares, 1310-2018'!G410","v":1.5814398200053175},{"$f":"AJ408*'III. GDP shares, 1310-2018'!H410","v":0},{"$f":"AK408*'III. GDP shares, 1310-2018'!I410","v":0.5369536288258777},{"$f":"AL408*'III. GDP shares, 1310-2018'!J410","v":0},null,null,{"$f":"U408*'III. GDP shares, 1310-2018'!C410","v":1.7127556771703858},{"$f":"V408*'III. GDP shares, 1310-2018'!D410","v":1.1315666074710244},{"$f":"W408*'III. GDP shares, 1310-2018'!E410","v":-0.17657558036134674},{"$f":"X408*'III. GDP shares, 1310-2018'!F410","v":-0.4472228612917816},{"$f":"Y408*'III. GDP shares, 1310-2018'!G410","v":-0.3685659052157307},{"$f":"Z408*'III. GDP shares, 1310-2018'!H410","v":0},{"$f":"AA408*'III. GDP shares, 1310-2018'!I410","v":-1.5589459188142765},{"$f":"AB408*'III. GDP shares, 1310-2018'!J410","v":0},null,null,5.048096811623449,5.359833357704569,null,0.2930120189582748,-1.2456978401288432,{"$f":"AVERAGE(BL405:BL411)","v":-3.244874123493491},-3.2294705012912424,null,null,5.009300036199848]
[{"$f":"'[1]Nominal weighted'!B409","v":1715},null,-8.400623435525086,4.029126213592235,1.3697764334460056,10.939350283881772,20.077186721223253,null,5.589380587589163,null,null,4.997252817969611,10.434642847723307,4.621333606670481,5.613170304434938,{"$f":"AVERAGE(G406:G412)","v":8.707318310770981},null,8.685210386887828,null,null,12.400623435525086,0.9708737864077648,1.6302235665539944,-5.275435189542149,-15.241752547553784,null,-0.3393805875891623,{"$nulls":3},4,5,{"v":3,"d":"3.00"},5.663915094339623,4.835434173669468,null,5.250000000000001,{"$nulls":3},{"$f":"AE409*'III. GDP shares, 1310-2018'!C411","v":0.7882604738899959},{"$f":"AF409*'III. GDP shares, 1310-2018'!D411","v":0.9241769698231468},{"$f":"AG409*'III. GDP shares, 1310-2018'!E411","v":0.15433205736646113},{"$f":"AH409*'III. GDP shares, 1310-2018'!F411","v":1.0931481465031498},{"$f":"AI409*'III. GDP shares, 1310-2018'!G411","v":1.3135992478372476},{"$f":"AJ409*'III. GDP shares, 1310-2018'!H411","v":0},{"$f":"AK409*'III. GDP shares, 1310-2018'!I411","v":0.5354589458841787},{"$f":"AL409*'III. GDP shares, 1310-2018'!J411","v":0},null,null,{"$f":"U409*'III. GDP shares, 1310-2018'!C411","v":2.443730326454598},{"$f":"V409*'III. GDP shares, 1310-2018'!D411","v":0.17945183880061064},{"$f":"W409*'III. GDP shares, 1310-2018'!E411","v":0.08386525233118931},{"$f":"X409*'III. GDP shares, 1310-2018'!F411","v":-1.0181706652362645},{"$f":"Y409*'III. GDP shares, 1310-2018'!G411","v":-4.140590888655265},{"$f":"Z409*'III. GDP shares, 1310-2018'!H411","v":0},{"$f":"AA409*'III. GDP shares, 1310-2018'!I411","v":-0.03461416603505638},{"$f":"AB409*'III. GDP shares, 1310-2018'!J411","v":0},null,null,4.6248915446681815,4.80897584130418,null,-2.4863283023401888,-0.9758079226997084,{"$f":"AVERAGE(BL406:BL412)","v":-2.3859058254851155},-2.3513819402523572,null,null,6.5505790126218315]
[{"$f":"'[1]Nominal weighted'!B410","v":1716},null,9.046552404108404,9.807692307692292,4.084054568819077,1.9122351350901408,25.01233729196796,null,5.082387293496225,null,null,6.013033251781732,5.550891354294393,2.6651220557233137,6.085633203769587,{"$f":"AVERAGE(G407:G413)","v":8.985641240327725},null,7.566813579041384,null,null,-5.046552404108403,-4.807692307692292,-1.0840545688190772,3.689179959249482,-21.01233729196796,null,0.16761270650377594,{"$nulls":3},4,5.000000000000001,{"v":3,"d":"3.00"},5.601415094339623,4,null,5.250000000000001,{"$nulls":3},{"$f":"AE410*'III. GDP shares, 1310-2018'!C412","v":0.785507870604557},{"$f":"AF410*'III. GDP shares, 1310-2018'!D412","v":0.9335251527126},{"$f":"AG410*'III. GDP shares, 1310-2018'!E412","v":0.15322261565506567},{"$f":"AH410*'III. GDP shares, 1310-2018'!F412","v":1.0804821789285457},{"$f":"AI410*'III. GDP shares, 1310-2018'!G412","v":1.0849497747082217},{"$f":"AJ410*'III. GDP shares, 1310-2018'!H412","v":0},{"$f":"AK410*'III. GDP shares, 1310-2018'!I412","v":0.5339872137108286},{"$f":"AL410*'III. GDP shares, 1310-2018'!J412","v":0},null,null,{"$f":"U410*'III. GDP shares, 1310-2018'!C412","v":-0.9910266582113748},{"$f":"V410*'III. GDP shares, 1310-2018'!D412","v":-0.8976203391467278},{"$f":"W410*'III. GDP shares, 1310-2018'!E412","v":-0.05536722551576114},{"$f":"X410*'III. GDP shares, 1310-2018'!F412","v":0.711622533537544},{"$f":"Y410*'III. GDP shares, 1310-2018'!G412","v":-5.699332652753451},{"$f":"Z410*'III. GDP shares, 1310-2018'!H412","v":0},{"$f":"AA410*'III. GDP shares, 1310-2018'!I412","v":0.01704819850066327},{"$f":"AB410*'III. GDP shares, 1310-2018'!J412","v":0},null,null,4.475235849056603,4.571674806319819,null,-6.914676143589108,-4.682307317805746,{"$f":"AVERAGE(BL407:BL413)","v":-1.9186741936314236},-1.5243708237919058,null,null,9.655205458049599]
[{"$f":"'[1]Nominal weighted'!B411","v":1717},null,25.420975266101188,8.540404040404027,9.102829184394977,4.878715397932027,-0.33921160138736717,null,14.169504997435805,null,null,7.167351886829019,3.977314895028436,3.370815522545563,5.898686767778687,{"$f":"AVERAGE(G408:G414)","v":11.66138147813832},null,9.242416447970214,null,null,-21.420975266101188,-4.040404040404027,-6.1028291843949765,0.6601996964075959,6.416134678310444,null,-8.919504997435805,{"$nulls":3},4,4.5,{"v":3,"d":"3.00"},5.538915094339623,6.076923076923077,null,5.250000000000001,{"$nulls":3},{"$f":"AE411*'III. GDP shares, 1310-2018'!C413","v":0.7827972113559931},{"$f":"AF411*'III. GDP shares, 1310-2018'!D413","v":0.8484577995954895},{"$f":"AG411*'III. GDP shares, 1310-2018'!E413","v":0.15213007956327027},{"$f":"AH411*'III. GDP shares, 1310-2018'!F413","v":1.0678387660453634},{"$f":"AI411*'III. GDP shares, 1310-2018'!G413","v":1.645753931414742},{"$f":"AJ411*'III. GDP shares, 1310-2018'!H413","v":0},{"$f":"AK411*'III. GDP shares, 1310-2018'!I413","v":0.5325379077217657},{"$f":"AL411*'III. GDP shares, 1310-2018'!J413","v":0},null,null,{"$f":"U411*'III. GDP shares, 1310-2018'!C413","v":-4.192069925707428},{"$f":"V411*'III. GDP shares, 1310-2018'!D413","v":-0.7618027381328726},{"$f":"W411*'III. GDP shares, 1310-2018'!E413","v":-0.30947462979435186},{"$f":"X411*'III. GDP shares, 1310-2018'!F413","v":0.12727886547238415},{"$f":"Y411*'III. GDP shares, 1310-2018'!G413","v":1.7376193079380553},{"$f":"Z411*'III. GDP shares, 1310-2018'!H413","v":0},{"$f":"AA411*'III. GDP shares, 1310-2018'!I413","v":-0.9047570531901514},{"$f":"AB411*'III. GDP shares, 1310-2018'!J413","v":0},null,null,4.72763969521045,5.029515695696624,null,-4.303206173414365,-5.567896518936327,{"$f":"AVERAGE(BL408:BL414)","v":-2.8689906460257792},-2.357763083958563,null,null,7.722461331382627]
[{"$f":"'[1]Nominal weighted'!B412","v":1718},null,3.5170569170867223,6.605263157894726,7.115161264631159,5.4397663673687475,21.72704892825236,null,3.410686486930463,null,null,7.684241862075832,4.92679365560483,2.753911907577735,6.355312878278326,{"$f":"AVERAGE(G409:G415)","v":11.343180444328068},null,7.86866014685202,null,null,0.4829430829132777,-2.1052631578947256,-4.115161264631159,0.03664872697087485,-15.914883152851289,null,1.8393135130695377,{"$nulls":3},4,4.5,{"v":3,"d":"3.00"},5.476415094339623,5.81216577540107,null,5.250000000000001,{"$nulls":3},{"$f":"AE412*'III. GDP shares, 1310-2018'!C414","v":0.7801275446816412},{"$f":"AF412*'III. GDP shares, 1310-2018'!D414","v":0.8566176674601986},{"$f":"AG412*'III. GDP shares, 1310-2018'!E414","v":0.15105406560233509},{"$f":"AH412*'III. GDP shares, 1310-2018'!F414","v":1.055217396220762},{"$f":"AI412*'III. GDP shares, 1310-2018'!G414","v":1.5716642574744717},{"$f":"AJ412*'III. GDP shares, 1310-2018'!H414","v":0},{"$f":"AK412*'III. GDP shares, 1310-2018'!I414","v":0.5311105191992171},{"$f":"AL412*'III. GDP shares, 1310-2018'!J414","v":0},null,null,{"$f":"U412*'III. GDP shares, 1310-2018'!C414","v":0.0941893003735294},{"$f":"V412*'III. GDP shares, 1310-2018'!D414","v":-0.40075680349014925},{"$f":"W412*'III. GDP shares, 1310-2018'!E414","v":-0.2072039465439278},{"$f":"X412*'III. GDP shares, 1310-2018'!F414","v":0.007061622171223585},{"$f":"Y412*'III. GDP shares, 1310-2018'!G414","v":-4.3035339974440046},{"$f":"Z412*'III. GDP shares, 1310-2018'!H414","v":0},{"$f":"AA412*'III. GDP shares, 1310-2018'!I414","v":0.18607214378980919},{"$f":"AB412*'III. GDP shares, 1310-2018'!J414","v":0},null,null,4.673096811623449,4.945791450638626,null,-4.624171681143519,-3.2960670420705807,{"$f":"AVERAGE(BL409:BL415)","v":-3.1390046849422766},-2.406614219779399,null,null,8.312588660831796]
[{"$f":"'[1]Nominal weighted'!B413","v":1719},null,16.752344889000618,-0.3010752688172147,-6.427919855659592,2.288783056987219,3.420704587033325,null,1.705768378849836,null,null,8.339478687253134,5.922632767948796,4.368347579287482,5.885429156570685,{"$f":"AVERAGE(G410:G416)","v":8.503432650077809},null,5.854053374328158,null,null,-12.75234488900062,4.301075268817215,9.427919855659592,3.1251320373524036,-0.42070458703332475,null,3.544231621150165,{"$nulls":3},4,4,{"v":3,"d":"3.00"},5.413915094339623,3,null,5.250000000000001,{"$nulls":3},{"$f":"AE413*'III. GDP shares, 1310-2018'!C415","v":0.7774979476803054},{"$f":"AF413*'III. GDP shares, 1310-2018'!D415","v":0.7685822772390428},{"$f":"AG413*'III. GDP shares, 1310-2018'!E415","v":0.14999420179527106},{"$f":"AH413*'III. GDP shares, 1310-2018'!F415","v":1.0426175731803424},{"$f":"AI413*'III. GDP shares, 1310-2018'!G415","v":0.8100140962159288},{"$f":"AJ413*'III. GDP shares, 1310-2018'!H415","v":0},{"$f":"AK413*'III. GDP shares, 1310-2018'!I415","v":0.5297045546963469},{"$f":"AL413*'III. GDP shares, 1310-2018'!J415","v":0},null,null,{"$f":"U413*'III. GDP shares, 1310-2018'!C415","v":-2.4787304948273534},{"$f":"V413*'III. GDP shares, 1310-2018'!D415","v":0.8264325561710157},{"$f":"W413*'III. GDP shares, 1310-2018'!E415","v":0.4713777711131492},{"$f":"X413*'III. GDP shares, 1310-2018'!F415","v":0.6018412782385802},{"$f":"Y413*'III. GDP shares, 1310-2018'!G415","v":-0.11359221527989803},{"$f":"Z413*'III. GDP shares, 1310-2018'!H415","v":0},{"$f":"AA413*'III. GDP shares, 1310-2018'!I415","v":0.3575991681184875},{"$f":"AB413*'III. GDP shares, 1310-2018'!J415","v":0},null,null,4.11065251572327,4.078410650807237,null,-0.3350719364660187,1.2042182178242384,{"$f":"AVERAGE(BL410:BL416)","v":-2.5861022859044667},-2.1415698561386933,null,null,4.471332866205229]
[{"$f":"'[1]Nominal weighted'!B414","v":1720},null,8.495761079181229,-1.1546391752577425,1.944301404199412,7.789664302176654,4.564871677606034,null,14.246779789791884,null,null,9.338585273825146,5.415943804738096,3.850064790159716,6.268979954690465,{"$f":"AVERAGE(G411:G417)","v":3.611644060028044},null,4.686866600459182,null,null,-4.4957610791812295,5.154639175257742,1.055698595800588,-2.4382492078370306,-1.924246677606034,null,-8.996779789791882,{"$nulls":3},4,3.9999999999999996,{"v":3,"d":"3.00"},5.351415094339623,2.640625,null,5.250000000000001,{"$nulls":3},{"$f":"AE414*'III. GDP shares, 1310-2018'!C416","v":0.7749075249485243},{"$f":"AF414*'III. GDP shares, 1310-2018'!D416","v":0.7756201952959707},{"$f":"AG414*'III. GDP shares, 1310-2018'!E416","v":0.14895012724810042},{"$f":"AH414*'III. GDP shares, 1310-2018'!F416","v":1.0300388154361442},{"$f":"AI414*'III. GDP shares, 1310-2018'!G416","v":0.7119284148450038},{"$f":"AJ414*'III. GDP shares, 1310-2018'!H416","v":0},{"$f":"AK414*'III. GDP shares, 1310-2018'!I416","v":0.5283195354685098},{"$f":"AL414*'III. GDP shares, 1310-2018'!J416","v":0},null,null,{"$f":"U414*'III. GDP shares, 1310-2018'!C416","v":-0.8709497726570583},{"$f":"V414*'III. GDP shares, 1310-2018'!D416","v":0.999510560948418},{"$f":"W414*'III. GDP shares, 1310-2018'!E416","v":0.05241548006004617},{"$f":"X414*'III. GDP shares, 1310-2018'!F416","v":-0.469313495870478},{"$f":"Y414*'III. GDP shares, 1310-2018'!G416","v":-0.5187885015702074},{"$f":"Z414*'III. GDP shares, 1310-2018'!H416","v":0},{"$f":"AA414*'III. GDP shares, 1310-2018'!I416","v":-0.9053665750962522},{"$f":"AB414*'III. GDP shares, 1310-2018'!J416","v":0},null,null,4.04034001572327,3.9697646132422535,null,-1.7124923041855318,-1.9407831638929742,{"$f":"AVERAGE(BL411:BL417)","v":-1.3599680000993877},-1.2481271380745562,null,null,5.906147283080232]
[{"$f":"'[1]Nominal weighted'!B415","v":1721},null,-1.042374085422244,6.960784313725483,2.0891803532131106,11.23867560451172,4.939325505600904,null,10.876113493870756,null,null,5.928588748603602,3.8218892949532517,3.118325929989927,5.201105358048347,{"$f":"AVERAGE(G412:G418)","v":2.203113942091394},null,3.822221787983483,null,null,5.042374085422244,-1.9607843137254832,0.9108196467868895,-5.952905164260148,-1.9393255056009042,null,-5.626113493870755,{"$nulls":3},4,5,{"v":3,"d":"3.00"},5.285770440251572,3,null,5.250000000000001,{"$nulls":3},{"$f":"AE415*'III. GDP shares, 1310-2018'!C417","v":0.7723554075640277},{"$f":"AF415*'III. GDP shares, 1310-2018'!D417","v":0.9781925519706196},{"$f":"AG415*'III. GDP shares, 1310-2018'!E417","v":0.1479214917401374},{"$f":"AH415*'III. GDP shares, 1310-2018'!F417","v":1.0168756876801188},{"$f":"AI415*'III. GDP shares, 1310-2018'!G417","v":0.8076397511595994},{"$f":"AJ415*'III. GDP shares, 1310-2018'!H417","v":0},{"$f":"AK415*'III. GDP shares, 1310-2018'!I417","v":0.5269549969297385},{"$f":"AL415*'III. GDP shares, 1310-2018'!J417","v":0},null,null,{"$f":"U415*'III. GDP shares, 1310-2018'!C417","v":0.9736262229591471},{"$f":"V415*'III. GDP shares, 1310-2018'!D417","v":-0.3836049223414181},{"$f":"W415*'III. GDP shares, 1310-2018'!E417","v":0.04490993361964725},{"$f":"X415*'III. GDP shares, 1310-2018'!F417","v":-1.145218961176351},{"$f":"Y415*'III. GDP shares, 1310-2018'!G417","v":-0.5220921229203263},{"$f":"Z415*'III. GDP shares, 1310-2018'!H417","v":0},{"$f":"AA415*'III. GDP shares, 1310-2018'!I417","v":-0.5647064035979091},{"$f":"AB415*'III. GDP shares, 1310-2018'!J417","v":0},null,null,4.255961740041928,4.249939887044242,null,-1.59708625345721,-1.5876557908746929,{"$f":"AVERAGE(BL412:BL418)","v":0.1932569243693615},0.17177463007637886,null,null,4.485228666189414]
[{"$f":"'[1]Nominal weighted'!B416","v":1722},null,-3.8139656592839737,11,12.670826135414234,7.650164231928285,0.19895216147144268,null,-8.512866820077857,null,null,4.738444865636966,2.8509246492965565,1.9863866171789362,5.737754448485802,{"$f":"AVERAGE(G413:G419)","v":-2.3827735861605737},null,4.184759530104861,null,null,7.813965659283974,-8,-9.670826135414234,-2.4300384457647626,3.8010478385285573,null,13.762866820077857,{"$nulls":3},4,3,{"v":3,"d":"3.00"},5.220125786163522,4,null,5.250000000000001,{"$nulls":3},{"$f":"AE416*'III. GDP shares, 1310-2018'!C418","v":0.7698407521139594},{"$f":"AF416*'III. GDP shares, 1310-2018'!D418","v":0.5920395806613973},{"$f":"AG416*'III. GDP shares, 1310-2018'!E418","v":0.14690795533231152},{"$f":"AH416*'III. GDP shares, 1310-2018'!F418","v":1.003733323304068},{"$f":"AI416*'III. GDP shares, 1310-2018'!G418","v":1.0753049572978979},{"$f":"AJ416*'III. GDP shares, 1310-2018'!H418","v":0},{"$f":"AK416*'III. GDP shares, 1310-2018'!I418","v":0.5256104881331627},{"$f":"AL416*'III. GDP shares, 1310-2018'!J418","v":0},null,null,{"$f":"U416*'III. GDP shares, 1310-2018'!C418","v":1.5038773000339563},{"$f":"V416*'III. GDP shares, 1310-2018'!D418","v":-1.5787722150970593},{"$f":"W416*'III. GDP shares, 1310-2018'!E418","v":-0.47357376464266177},{"$f":"X416*'III. GDP shares, 1310-2018'!F418","v":-0.46725130099148754},{"$f":"Y416*'III. GDP shares, 1310-2018'!G418","v":1.0218213959240543},{"$f":"Z416*'III. GDP shares, 1310-2018'!H418","v":0},{"$f":"AA416*'III. GDP shares, 1310-2018'!I418","v":1.377887075697682},{"$f":"AB416*'III. GDP shares, 1310-2018'!J418","v":0},null,null,4.07835429769392,4.1134370568427965,null,1.383988490924484,0.8795026227852318,{"$f":"AVERAGE(BL413:BL419)","v":1.653521612545966},1.256612225240168,null,null,0.5586367701598562]
[{"$f":"'[1]Nominal weighted'!B417","v":1723},null,16.040298510112482,6.260869565217391,0.45607504492471396,4.597090721928598,-9.230182838380383,null,-3.0879201235866054,null,null,3.5287480215135076,2.5861298055193385,3.4390222973675826,4.984466253650725,{"$f":"AVERAGE(G414:G420)","v":-1.1972464468906854},null,4.954819368224176,null,null,-12.040298510112482,-3.2608695652173907,2.543924955075286,0.6198904101468734,13.230182838380383,null,8.337920123586606,{"$nulls":3},4,2.9999999999999996,{"v":3,"d":"3.00"},5.216981132075472,4,null,5.250000000000001,{"$nulls":3},{"$f":"AE417*'III. GDP shares, 1310-2018'!C419","v":0.7673627397655811},{"$f":"AF417*'III. GDP shares, 1310-2018'!D419","v":0.5970889634237088},{"$f":"AG417*'III. GDP shares, 1310-2018'!E419","v":0.14590918799261277},{"$f":"AH417*'III. GDP shares, 1310-2018'!F419","v":1.0026227983759095},{"$f":"AI417*'III. GDP shares, 1310-2018'!G419","v":1.0737794708687896},{"$f":"AJ417*'III. GDP shares, 1310-2018'!H419","v":0},{"$f":"AK417*'III. GDP shares, 1310-2018'!I419","v":0.5242855712741442},{"$f":"AL417*'III. GDP shares, 1310-2018'!J419","v":0},null,null,{"$f":"U417*'III. GDP shares, 1310-2018'!C419","v":-2.3098191130788397},{"$f":"V417*'III. GDP shares, 1310-2018'!D419","v":-0.6490097428518573},{"$f":"W417*'III. GDP shares, 1310-2018'!E419","v":0.12372734150305964},{"$f":"X417*'III. GDP shares, 1310-2018'!F419","v":0.11913331522067257},{"$f":"Y417*'III. GDP shares, 1310-2018'!G419","v":3.551574681923357},{"$f":"Z417*'III. GDP shares, 1310-2018'!H419","v":0},{"$f":"AA417*'III. GDP shares, 1310-2018'!I419","v":0.8326573743300546},{"$f":"AB417*'III. GDP shares, 1310-2018'!J419","v":0},null,null,4.077830188679245,4.111048731700746,null,1.6682638570464468,1.5717917086432127,{"$f":"AVERAGE(BL414:BL420)","v":1.6770330870195707},1.0818942676899337,null,null,1.1966861683787333]
[{"$f":"'[1]Nominal weighted'!B418","v":1724},null,1.5509995895503712,-2.6179775280898814,3.9806571632064527,-2.5964067785628,-10.198922426943927,null,8.116991310105906,null,null,3.424954757989409,4.101414393581366,3.9608221263541106,5.215258725540409,{"$f":"AVERAGE(G415:G421)","v":0.7673855063200291},null,4.621256920127929,null,null,2.449000410449629,5.617977528089881,-0.9806571632064526,7.810243256550222,14.198922426943927,null,-2.866991310105906,{"$nulls":3},4,2.9999999999999996,{"v":3,"d":"3.00"},5.213836477987422,4,null,5.250000000000001,{"$nulls":3},{"$f":"AE418*'III. GDP shares, 1310-2018'!C420","v":0.7649205753773058},{"$f":"AF418*'III. GDP shares, 1310-2018'!D420","v":0.6020652997091027},{"$f":"AG418*'III. GDP shares, 1310-2018'!E420","v":0.14492486923779258},{"$f":"AH418*'III. GDP shares, 1310-2018'!F420","v":1.0015201969543277},{"$f":"AI418*'III. GDP shares, 1310-2018'!G420","v":1.072276052762579},{"$f":"AJ418*'III. GDP shares, 1310-2018'!H420","v":0},{"$f":"AK418*'III. GDP shares, 1310-2018'!I420","v":0.5229798212149737},{"$f":"AL418*'III. GDP shares, 1310-2018'!J420","v":0},null,null,{"$f":"U418*'III. GDP shares, 1310-2018'!C420","v":0.4683227007650971},{"$f":"V418*'III. GDP shares, 1310-2018'!D420","v":1.1274631080694795},{"$f":"W418*'III. GDP shares, 1310-2018'!E420","v":-0.047373870381599924},{"$f":"X418*'III. GDP shares, 1310-2018'!F420","v":1.500261160392353},{"$f":"Y418*'III. GDP shares, 1310-2018'!G420","v":3.806291123361373},{"$f":"Z418*'III. GDP shares, 1310-2018'!H420","v":0},{"$f":"AA418*'III. GDP shares, 1310-2018'!I420","v":-0.2855959243398228},{"$f":"AB418*'III. GDP shares, 1310-2018'!J420","v":0},null,null,4.07730607966457,4.108686815256082,null,6.569368297866879,4.3714158581202165,{"$f":"AVERAGE(BL415:BL421)","v":0.9388390828361645},0.5084004630388169,null,null,-1.9352836742504218]
[{"$f":"'[1]Nominal weighted'!B419","v":1725},null,-4.813950263679713,-0.1914893617021387,-0.8084139250457789,9.196310000430934,-10.374163769511409,null,5.948450681780107,null,null,3.5811417172023146,3.1470166344777235,4.768840290600022,4.267171751762114,{"$f":"AVERAGE(G416:G422)","v":2.1922350195591664},null,2.94593723169395,null,null,8.813950263679713,3.191489361702139,3.808413925045779,-3.9856181765315633,14.65699205233969,null,-0.6984506817801059,{"$nulls":3},4,3.0000000000000004,{"v":3,"d":"3.00"},5.210691823899372,4.282828282828283,null,5.250000000000001,{"$nulls":3},{"$f":"AE419*'III. GDP shares, 1310-2018'!C421","v":0.7625134866480361},{"$f":"AF419*'III. GDP shares, 1310-2018'!D421","v":0.6069701632158905},{"$f":"AG419*'III. GDP shares, 1310-2018'!E421","v":0.1439546877905028},{"$f":"AH419*'III. GDP shares, 1310-2018'!F421","v":1.0004253483369225},{"$f":"AI419*'III. GDP shares, 1310-2018'!G421","v":1.1465069507035115},{"$f":"AJ419*'III. GDP shares, 1310-2018'!H421","v":0},{"$f":"AK419*'III. GDP shares, 1310-2018'!I421","v":0.5216928250300475},{"$f":"AL419*'III. GDP shares, 1310-2018'!J421","v":0},null,null,{"$f":"U419*'III. GDP shares, 1310-2018'!C421","v":1.6801889866751987},{"$f":"V419*'III. GDP shares, 1310-2018'!D421","v":0.6457129395913751},{"$f":"W419*'III. GDP shares, 1310-2018'!E421","v":0.1827463458523228},{"$f":"X419*'III. GDP shares, 1310-2018'!F421","v":-0.7652176692366142},{"$f":"Y419*'III. GDP shares, 1310-2018'!G421","v":3.9236556207003406},{"$f":"Z419*'III. GDP shares, 1310-2018'!H421","v":0},{"$f":"AA419*'III. GDP shares, 1310-2018'!I421","v":-0.06940508748990976},{"$f":"AB419*'III. GDP shares, 1310-2018'!J421","v":0},null,null,4.123920017787943,4.18206346172491,null,5.597681136092713,4.297796124075942,{"$f":"AVERAGE(BL416:BL422)","v":1.107018152822415},0.7442186100944272,null,null,-1.3768748979923178]
[{"$f":"'[1]Nominal weighted'!B420","v":1726},null,8.2844669801364,-2.1546391752577425,3.740529905660939,-2.9842343068583164,11.719394561922542,null,7.09618724568504,null,null,3.7143365615982753,1.316944484405573,2.596286448703548,4.03305543045741,{"$f":"AVERAGE(G417:G423)","v":2.1494708708501107},null,4.830148298605875,null,null,-4.2844669801364,5.154639175257742,-0.740529905660939,8.191781476669638,-6.58808143060941,null,-1.8461872456850392,{"$nulls":3},4,2.9999999999999996,{"v":3,"d":"3.00"},5.207547169811321,5.1313131313131315,null,5.250000000000001,{"$nulls":3},{"$f":"AE420*'III. GDP shares, 1310-2018'!C422","v":0.7601407233028935},{"$f":"AF420*'III. GDP shares, 1310-2018'!D422","v":0.6118050827601162},{"$f":"AG420*'III. GDP shares, 1310-2018'!E422","v":0.1429983412511025},{"$f":"AH420*'III. GDP shares, 1310-2018'!F422","v":0.9993380866897689},{"$f":"AI420*'III. GDP shares, 1310-2018'!G422","v":1.3717713003410246},{"$f":"AJ420*'III. GDP shares, 1310-2018'!H422","v":0},{"$f":"AK420*'III. GDP shares, 1310-2018'!I422","v":0.5204241815705032},{"$f":"AL420*'III. GDP shares, 1310-2018'!J422","v":0},null,null,{"$f":"U420*'III. GDP shares, 1310-2018'!C422","v":-0.8141994573120617},{"$f":"V420*'III. GDP shares, 1310-2018'!D422","v":1.0512114824057002},{"$f":"W420*'III. GDP shares, 1310-2018'!E422","v":-0.03529818271878323},{"$f":"X420*'III. GDP shares, 1310-2018'!F422","v":1.5720182574500485},{"$f":"Y420*'III. GDP shares, 1310-2018'!G422","v":-1.7612140985258724},{"$f":"Z420*'III. GDP shares, 1310-2018'!H422","v":0},{"$f":"AA420*'III. GDP shares, 1310-2018'!I422","v":-0.18300961644981673},{"$f":"AB420*'III. GDP shares, 1310-2018'!J422","v":0},null,null,4.264810050187409,4.4064777159154085,null,-0.17049161515078537,-0.018807485027401483,{"$f":"AVERAGE(BL417:BL423)","v":1.531279594890424},1.193765612579855,null,null,5.016375730711778]
[{"$f":"'[1]Nominal weighted'!B421","v":1727},null,7.769208234512542,9.45235294117645,5.596900207105103,9.405211605404435,18.317295350081032,null,11.911842653118157,null,null,3.903303976324988,2.130226854209683,3.2616262286938484,4.494448560394157,{"$f":"AVERAGE(G418:G424)","v":4.873047657222756},null,5.864323012018207,null,null,-3.7692082345125417,-5.88235294117645,-2.596900207105103,-4.200809089681163,-12.620325653111333,null,-6.661842653118157,{"$nulls":3},4,3.5699999999999994,{"v":3,"d":"3.00"},5.204402515723271,5.696969696969697,null,5.250000000000001,{"$nulls":3},{"$f":"AE421*'III. GDP shares, 1310-2018'!C423","v":0.7578015563135367},{"$f":"AF421*'III. GDP shares, 1310-2018'!D423","v":0.7337201371985144},{"$f":"AG421*'III. GDP shares, 1310-2018'!E423","v":0.1420555357834058},{"$f":"AH421*'III. GDP shares, 1310-2018'!F423","v":0.9982582508750826},{"$f":"AI421*'III. GDP shares, 1310-2018'!G423","v":1.5209392576729375},{"$f":"AJ421*'III. GDP shares, 1310-2018'!H423","v":0},{"$f":"AK421*'III. GDP shares, 1310-2018'!I423","v":0.5191735010473466},{"$f":"AL421*'III. GDP shares, 1310-2018'!J423","v":0},null,null,{"$f":"U421*'III. GDP shares, 1310-2018'!C423","v":-0.7140779665458505},{"$f":"V421*'III. GDP shares, 1310-2018'!D423","v":-1.208963811498619},{"$f":"W421*'III. GDP shares, 1310-2018'!E423","v":-0.12296801676545095},{"$f":"X421*'III. GDP shares, 1310-2018'!F423","v":-0.8057586478863048},{"$f":"Y421*'III. GDP shares, 1310-2018'!G423","v":-3.3692910005548833},{"$f":"Z421*'III. GDP shares, 1310-2018'!H423","v":0},{"$f":"AA421*'III. GDP shares, 1310-2018'!I423","v":-0.6587908902182661},{"$f":"AB421*'III. GDP shares, 1310-2018'!J423","v":0},null,null,4.453562035448829,4.671948238890824,null,-6.879850333469375,-5.95523979645079,{"$f":"AVERAGE(BL418:BL424)","v":0.511386572040206},0.3000700758089766,null,null,9.609114623663064]
[{"$f":"'[1]Nominal weighted'!B422","v":1728},null,0.05093462906809165,0.2799999999999856,7.745307502934494,4.602066788063662,14.913272098274867,null,-0.8511243251670964,null,null,2.8635227492784048,4.002569508598465,2.9078030895473055,4.306393629976219,{"$f":"AVERAGE(G419:G425)","v":6.018730646717509},null,5.488878295670259,null,null,3.9490653709319083,3.125000000000014,-4.745307502934494,0.5991910735715587,-8.650645835648604,null,6.101124325167097,{"$nulls":3},4,3.405,{"v":3,"d":"3.00"},5.201257861635221,6.262626262626263,null,5.250000000000001,{"$nulls":3},{"$f":"AE422*'III. GDP shares, 1310-2018'!C424","v":0.7554952771513647},{"$f":"AF422*'III. GDP shares, 1310-2018'!D424","v":0.7051425739668377},{"$f":"AG422*'III. GDP shares, 1310-2018'!E424","v":0.14112598581368396},{"$f":"AH422*'III. GDP shares, 1310-2018'!F424","v":0.9971856842861556},{"$f":"AI422*'III. GDP shares, 1310-2018'!G424","v":1.669731637229449},{"$f":"AJ422*'III. GDP shares, 1310-2018'!H424","v":0},{"$f":"AK422*'III. GDP shares, 1310-2018'!I424","v":0.5179404046321635},{"$f":"AL422*'III. GDP shares, 1310-2018'!J424","v":0},null,null,{"$f":"U422*'III. GDP shares, 1310-2018'!C424","v":0.7458750592252646},{"$f":"V422*'III. GDP shares, 1310-2018'!D424","v":0.6471572815407864},{"$f":"W422*'III. GDP shares, 1310-2018'!E424","v":-0.22322873311356717},{"$f":"X422*'III. GDP shares, 1310-2018'!F424","v":0.11487697334232179},{"$f":"Y422*'III. GDP shares, 1310-2018'!G424","v":-2.3064216877269614},{"$f":"Z422*'III. GDP shares, 1310-2018'!H424","v":0},{"$f":"AA422*'III. GDP shares, 1310-2018'!I424","v":0.6019083431787012},{"$f":"AB422*'III. GDP shares, 1310-2018'!J424","v":0},null,null,4.519814020710247,4.786621563079654,null,-0.41983276355345434,0.06307123851458012,{"$f":"AVERAGE(BL419:BL425)","v":0.2128918228878908},0.25752936968841744,null,null,5.148469034207058]
[{"$f":"'[1]Nominal weighted'!B423","v":1729},null,-2.8816017485122503,-1.8105050505050513,-2.5370507578610857,6.011349982795355,-0.10039687949194764,null,4.6766106483056085,null,null,4.80030808320122,4.300444612218252,4.2461784193551395,4.627856795428685,{"$f":"AVERAGE(G420:G426)","v":9.892791307087593},null,5.39696381844829,null,null,6.88160174851225,5.050505050505052,5.537050757861086,-0.8132367752481846,6.928679707774776,null,0.5733893516943925,{"$nulls":3},4,3.2400000000000007,{"v":3,"d":"3.00"},5.198113207547171,6.828282828282829,null,5.250000000000001,{"$nulls":3},{"$f":"AE423*'III. GDP shares, 1310-2018'!C425","v":0.7532211970719993},{"$f":"AF423*'III. GDP shares, 1310-2018'!D425","v":0.6759772114769138},{"$f":"AG423*'III. GDP shares, 1310-2018'!E425","v":0.1402094137422752},{"$f":"AH423*'III. GDP shares, 1310-2018'!F425","v":0.9961202346892035},{"$f":"AI423*'III. GDP shares, 1310-2018'!G425","v":1.8181563044459892},{"$f":"AJ423*'III. GDP shares, 1310-2018'!H425","v":0},{"$f":"AK423*'III. GDP shares, 1310-2018'!I425","v":0.5167245240745542},{"$f":"AL423*'III. GDP shares, 1310-2018'!J425","v":0},null,null,{"$f":"U423*'III. GDP shares, 1310-2018'!C425","v":1.2958420766967902},{"$f":"V423*'III. GDP shares, 1310-2018'!D425","v":1.0537118273427388},{"$f":"W423*'III. GDP shares, 1310-2018'!E425","v":0.25878221354030784},{"$f":"X423*'III. GDP shares, 1310-2018'!F425","v":-0.15584147075557156},{"$f":"Y423*'III. GDP shares, 1310-2018'!G425","v":1.8448888262212908},{"$f":"Z423*'III. GDP shares, 1310-2018'!H425","v":0},{"$f":"AA423*'III. GDP shares, 1310-2018'!I425","v":0.05643511235499087},{"$f":"AB423*'III. GDP shares, 1310-2018'!J425","v":0},null,null,4.5860660059716665,4.900408885500935,null,4.353818585400546,4.026331640183228,{"$f":"AVERAGE(BL420:BL426)","v":-1.263767669546119},-1.0319923069557817,null,null,0.9243249159662135]
[{"$f":"'[1]Nominal weighted'!B424","v":1730},null,17.363070413199473,11.95384615384616,5.113453504856814,7.826842631485828,9.834854666228134,null,4.151302870299739,null,null,0.44660047088270155,5.691733354751057,4.136234981573184,6.248368114536432,{"$f":"AVERAGE(G421:G427)","v":10.320539122730219},null,4.972157961639102,null,null,-13.363070413199473,-8.65384615384616,-2.1134535048568144,-2.631874078026708,-2.440915272288739,null,1.0986971297002621,{"$nulls":3},4,3.2999999999999994,{"v":3,"d":"3.00"},5.194968553459121,7.3939393939393945,null,5.250000000000001,{"$nulls":3},{"$f":"AE424*'III. GDP shares, 1310-2018'!C426","v":0.7509786464295312},{"$f":"AF424*'III. GDP shares, 1310-2018'!D426","v":0.6935218552592529},{"$f":"AG424*'III. GDP shares, 1310-2018'!E426","v":0.13930554966718955},{"$f":"AH424*'III. GDP shares, 1310-2018'!F426","v":0.9950617540717948},{"$f":"AI424*'III. GDP shares, 1310-2018'!G426","v":1.966220906654194},{"$f":"AJ424*'III. GDP shares, 1310-2018'!H426","v":0},{"$f":"AK424*'III. GDP shares, 1310-2018'!I426","v":0.5155255013354814},{"$f":"AL424*'III. GDP shares, 1310-2018'!J426","v":0},null,null,{"$f":"U424*'III. GDP shares, 1310-2018'!C426","v":-2.5088451327617642},{"$f":"V424*'III. GDP shares, 1310-2018'!D426","v":-1.8186761938616791},{"$f":"W424*'III. GDP shares, 1310-2018'!E426","v":-0.09813860073004227},{"$f":"X424*'III. GDP shares, 1310-2018'!F426","v":-0.5041180152733626},{"$f":"Y424*'III. GDP shares, 1310-2018'!G426","v":-0.6490962914410078},{"$f":"Z424*'III. GDP shares, 1310-2018'!H426","v":0},{"$f":"AA424*'III. GDP shares, 1310-2018'!I426","v":0.10788693116277752},{"$f":"AB424*'III. GDP shares, 1310-2018'!J426","v":0},null,null,4.6898179912330855,5.060614213417443,null,-5.470987302905079,-4.684077048752939,{"$f":"AVERAGE(BL421:BL427)","v":-0.9521667474726057},-0.6598870112026869,null,null,8.01940346720159]
[{"$f":"'[1]Nominal weighted'!B425","v":1731},null,-5.727468999775713,10.48842105263159,1.503895189180653,-3.9127912914883636,-2.1791415004806556,{"$nulls":4},-2.3090391740536305,4.292909825339295,3.5095557399941875,5.817392853880925,{"$f":"AVERAGE(G422:G428)","v":8.055687521643275},{"$nulls":4},9.727468999775713,-7.368421052631589,1.496104810819347,9.104615190859434,7.408386627558601,{"$nulls":5},4,3.12,{"v":3,"d":"3.00"},5.19182389937107,5.229245127077945,{"$nulls":5},{"$f":"AE425*'III. GDP shares, 1310-2018'!C427","v":0.8300910737063151},{"$f":"AF425*'III. GDP shares, 1310-2018'!D427","v":0.7321046904187923},{"$f":"AG425*'III. GDP shares, 1310-2018'!E427","v":0.15344738577355704},{"$f":"AH425*'III. GDP shares, 1310-2018'!F427","v":1.1019702238038402},{"$f":"AI425*'III. GDP shares, 1310-2018'!G427","v":1.5396366282515364},{"$f":"AJ425*'III. GDP shares, 1310-2018'!H427","v":0},{"$f":"AK425*'III. GDP shares, 1310-2018'!I427","v":0},{"$f":"AL425*'III. GDP shares, 1310-2018'!J427","v":0},null,null,{"$f":"U425*'III. GDP shares, 1310-2018'!C427","v":2.018671296617179},{"$f":"V425*'III. GDP shares, 1310-2018'!D427","v":-1.7289921838500517},{"$f":"W425*'III. GDP shares, 1310-2018'!E427","v":0.07652445735449032},{"$f":"X425*'III. GDP shares, 1310-2018'!F427","v":1.9324643967093333},{"$f":"Y425*'III. GDP shares, 1310-2018'!G427","v":2.181237086969719},{"$f":"Z425*'III. GDP shares, 1310-2018'!H427","v":0},{"$f":"AA425*'III. GDP shares, 1310-2018'!I427","v":0},{"$f":"AB425*'III. GDP shares, 1310-2018'!J427","v":0},null,null,4.108213805289803,4.357250001954041,null,4.47990505380067,4.0736309152763015,{"$f":"AVERAGE(BL422:BL428)","v":0.9048809342378618},0.9671531466478304,null,null,-2.5837519261154727]
[{"$f":"'[1]Nominal weighted'!B426","v":1732},null,8.743547073779993,1.8936363636363733,8.560213383609058,11.446552158598195,16.744260853079183,{"$nulls":4},-1.276010736820792,4.546286448715921,2.3849385491467268,5.5840545658443945,{"$f":"AVERAGE(G423:G429)","v":7.799850344439088},{"$nulls":4},-4.743547073779994,1.136363636363626,-5.560213383609058,-6.257872913315174,-8.219008327826655,{"$nulls":5},4,3.0299999999999994,{"v":3,"d":"3.00"},5.18867924528302,8.525252525252526,{"$nulls":5},{"$f":"AE426*'III. GDP shares, 1310-2018'!C428","v":0.8274689229506706},{"$f":"AF426*'III. GDP shares, 1310-2018'!D428","v":0.7157870916232243},{"$f":"AG426*'III. GDP shares, 1310-2018'!E428","v":0.15243512071168852},{"$f":"AH426*'III. GDP shares, 1310-2018'!F428","v":1.1005407067912032},{"$f":"AI426*'III. GDP shares, 1310-2018'!G428","v":2.506283489151251},{"$f":"AJ426*'III. GDP shares, 1310-2018'!H428","v":0},{"$f":"AK426*'III. GDP shares, 1310-2018'!I428","v":0},{"$f":"AL426*'III. GDP shares, 1310-2018'!J428","v":0},null,null,{"$f":"U426*'III. GDP shares, 1310-2018'!C428","v":-0.9812844470266343},{"$f":"V426*'III. GDP shares, 1310-2018'!D428","v":0.26844700405911265},{"$f":"W426*'III. GDP shares, 1310-2018'!E428","v":-0.2825239327710643},{"$f":"X426*'III. GDP shares, 1310-2018'!F428","v":-1.3273211839583945},{"$f":"Y426*'III. GDP shares, 1310-2018'!G428","v":-2.4162527512483756},{"$f":"Z426*'III. GDP shares, 1310-2018'!H428","v":0},{"$f":"AA426*'III. GDP shares, 1310-2018'!I428","v":0},{"$f":"AB426*'III. GDP shares, 1310-2018'!J428","v":0},null,null,4.748786354107109,5.3025153312280375,null,-4.738935310945356,-4.728855612433451,{"$f":"AVERAGE(BL423:BL429)","v":0.672464881341237},0.8315537535179981,null,null,9.594110554609282]
[{"$f":"'[1]Nominal weighted'!B427","v":1733},null,-22.191486306093225,7.584382022471896,2.970925841187254,8.35934492689591,14.713629271420919,{"$nulls":4},0.39113556547733136,5.534528743250348,3.223204834709579,4.381109347141497,{"$f":"AVERAGE(G424:G430)","v":8.15526408753718},{"$nulls":4},26.191486306093225,-4.494382022471896,0.029074158812745946,-3.17381033570094,-5.622720180511827,{"$nulls":5},4,3.09,{"v":3,"d":"3.00"},5.18553459119497,9.090909090909092,{"$nulls":5},{"$f":"AE427*'III. GDP shares, 1310-2018'!C429","v":0.8248836516492497},{"$f":"AF427*'III. GDP shares, 1310-2018'!D429","v":0.7347881062516857},{"$f":"AG427*'III. GDP shares, 1310-2018'!E429","v":0.15143709273475156},{"$f":"AH427*'III. GDP shares, 1310-2018'!F429","v":1.099122825059257},{"$f":"AI427*'III. GDP shares, 1310-2018'!G429","v":2.668592252941237},{"$f":"AJ427*'III. GDP shares, 1310-2018'!H429","v":0},{"$f":"AK427*'III. GDP shares, 1310-2018'!I429","v":0},{"$f":"AL427*'III. GDP shares, 1310-2018'!J429","v":0},null,null,{"$f":"U427*'III. GDP shares, 1310-2018'!C429","v":5.401232216572875},{"$f":"V427*'III. GDP shares, 1310-2018'!D429","v":-1.068743836590209},{"$f":"W427*'III. GDP shares, 1310-2018'!E429","v":1.4676353614369007E-3},{"$f":"X427*'III. GDP shares, 1310-2018'!F429","v":-0.6727189494215691},{"$f":"Y427*'III. GDP shares, 1310-2018'!G429","v":-1.6505222265587238},{"$f":"Z427*'III. GDP shares, 1310-2018'!H429","v":0},{"$f":"AA427*'III. GDP shares, 1310-2018'!I429","v":0},{"$f":"AB427*'III. GDP shares, 1310-2018'!J429","v":0},null,null,4.873288736420813,5.4788239286361815,null,2.0107148393638097,2.585929585244262,{"$f":"AVERAGE(BL424:BL430)","v":0.1839857684244779},0.35154755449101144,null,null,1.664577146430477]
[{"$f":"'[1]Nominal weighted'!B428","v":1734},null,-11.520269280041784,-0.3394117647058841,1.210145516052127,6.38838478081589,2.463334142472421,{"$nulls":4},-0.9690194173766972,3.245900474966906,2.285036197511327,3.7296768227937833,{"$f":"AVERAGE(G425:G431)","v":7.523523985143394},{"$nulls":4},15.520269280041784,3.529411764705884,1.789854483947873,-1.70599484370897,8.036665857527579,{"$nulls":5},4,3.19,{"v":3,"d":"3.00"},4.68238993710692,10.5,{"$nulls":5},{"$f":"AE428*'III. GDP shares, 1310-2018'!C430","v":0.8223344871940963},{"$f":"AF428*'III. GDP shares, 1310-2018'!D430","v":0.7634812858651958},{"$f":"AG428*'III. GDP shares, 1310-2018'!E430","v":0.1504530035822289},{"$f":"AH428*'III. GDP shares, 1310-2018'!F430","v":0.9918080234209781},{"$f":"AI428*'III. GDP shares, 1310-2018'!G430","v":3.0776857424365818},{"$f":"AJ428*'III. GDP shares, 1310-2018'!H430","v":0},{"$f":"AK428*'III. GDP shares, 1310-2018'!I430","v":0},{"$f":"AL428*'III. GDP shares, 1310-2018'!J430","v":0},null,null,{"$f":"U428*'III. GDP shares, 1310-2018'!C430","v":3.190713169879362},{"$f":"V428*'III. GDP shares, 1310-2018'!D430","v":0.8447146810236358},{"$f":"W428*'III. GDP shares, 1310-2018'!E430","v":0.0897629943616926},{"$f":"X428*'III. GDP shares, 1310-2018'!F430","v":-0.36135806642169827},{"$f":"Y428*'III. GDP shares, 1310-2018'!G430","v":2.3556506596609044},{"$f":"Z428*'III. GDP shares, 1310-2018'!H430","v":0},{"$f":"AA428*'III. GDP shares, 1310-2018'!I430","v":0},{"$f":"AB428*'III. GDP shares, 1310-2018'!J430","v":0},null,null,5.074477987421384,5.805762542499081,null,6.119483438503896,5.43404130850283,{"$f":"AVERAGE(BL425:BL431)","v":1.1390334714795447},1.263608853191915,null,null,-0.23248750084637582]
[{"$f":"'[1]Nominal weighted'!B429","v":1735},null,7.28213368969796,2.0536363636363597,-0.1270128329977367,2.968698771807946,13.122411857845565,{"$nulls":4},1.0519848178641185,2.4633457009350486,2.4561378537580083,5.003243702831084,{"$f":"AVERAGE(G426:G432)","v":7.0808471896964225},{"$nulls":4},-3.28213368969796,1.1363636363636402,3.1270128329977367,2.7105465112109237,-8.122411857845565,{"$nulls":5},4,3.19,{"v":3,"d":"3.00"},5.6792452830188696,5,{"$nulls":5},{"$f":"AE429*'III. GDP shares, 1310-2018'!C431","v":0.8198206784086467},{"$f":"AF429*'III. GDP shares, 1310-2018'!D431","v":0.7683267654695256},{"$f":"AG429*'III. GDP shares, 1310-2018'!E431","v":0.14948256326705972},{"$f":"AH429*'III. GDP shares, 1310-2018'!F431","v":1.2021589098513474},{"$f":"AI429*'III. GDP shares, 1310-2018'!G431","v":1.4634335127961131},{"$f":"AJ429*'III. GDP shares, 1310-2018'!H431","v":0},{"$f":"AK429*'III. GDP shares, 1310-2018'!I431","v":0},{"$f":"AL429*'III. GDP shares, 1310-2018'!J431","v":0},null,null,{"$f":"U429*'III. GDP shares, 1310-2018'!C431","v":-0.6726902670290141},{"$f":"V429*'III. GDP shares, 1310-2018'!D431","v":0.27369861978823323},{"$f":"W429*'III. GDP shares, 1310-2018'!E431","v":0.1558112978818306},{"$f":"X429*'III. GDP shares, 1310-2018'!F431","v":0.5737571590298701},{"$f":"Y429*'III. GDP shares, 1310-2018'!G431","v":-2.3773219435007475},{"$f":"Z429*'III. GDP shares, 1310-2018'!H431","v":0},{"$f":"AA429*'III. GDP shares, 1310-2018'!I431","v":0},{"$f":"AB429*'III. GDP shares, 1310-2018'!J431","v":0},null,null,4.173849056603774,4.4032224297926925,null,-2.0467451338298277,-0.8861245133942448,{"$f":"AVERAGE(BL426:BL432)","v":0.6311004158317052},0.7366275354771694,null,null,5.955339417941228]
[{"$f":"'[1]Nominal weighted'!B430","v":1736},null,8.788422367574615,5.107191011235941,3.3308132410788804,-2.4092665481249176,2.3874993221946967,{"$nulls":4},1.3672004140947338,2.943940820101596,1.482780179991457,3.1320197089274955,{"$f":"AVERAGE(G427:G433)","v":4.747343191499165},{"$nulls":4},-4.788422367574614,-2.247191011235941,-0.3308132410788806,8.085367177055737,2.6125006778053033,{"$nulls":5},4,2.8600000000000003,{"v":3,"d":"3.00"},5.676100628930819,5,{"$nulls":5},{"$f":"AE430*'III. GDP shares, 1310-2018'!C432","v":0.8173414948097394},{"$f":"AF430*'III. GDP shares, 1310-2018'!D432","v":0.6931290720747467},{"$f":"AG430*'III. GDP shares, 1310-2018'!E432","v":0.14852548979074298},{"$f":"AH430*'III. GDP shares, 1310-2018'!F432","v":1.2007050671858253},{"$f":"AI430*'III. GDP shares, 1310-2018'!G432","v":1.4613317404592794},{"$f":"AJ430*'III. GDP shares, 1310-2018'!H432","v":0},{"$f":"AK430*'III. GDP shares, 1310-2018'!I432","v":0},{"$f":"AL430*'III. GDP shares, 1310-2018'!J432","v":0},null,null,{"$f":"U430*'III. GDP shares, 1310-2018'!C432","v":-0.9784440739234566},{"$f":"V430*'III. GDP shares, 1310-2018'!D432","v":-0.5446130840533844},{"$f":"W430*'III. GDP shares, 1310-2018'!E432","v":-0.01637806622016796},{"$f":"X430*'III. GDP shares, 1310-2018'!F432","v":1.710353986690587},{"$f":"Y430*'III. GDP shares, 1310-2018'!G432","v":0.7635460324896541},{"$f":"Z430*'III. GDP shares, 1310-2018'!H432","v":0},{"$f":"AA430*'III. GDP shares, 1310-2018'!I432","v":0},{"$f":"AB430*'III. GDP shares, 1310-2018'!J432","v":0},null,null,4.107220125786164,4.321032864320333,null,0.9344647949832321,0.666288246994321,{"$f":"AVERAGE(BL427:BL433)","v":1.3931779370609545},1.4840178083178197,null,null,2.14882591320897]
[{"$f":"'[1]Nominal weighted'!B431","v":1737},null,7.841985533221273,-4.066551724137936,-1.4537269555309473,3.266814961051822,5.41267394947163,{"$nulls":4},3.753171746231343,0.5233790223487882,-0.28660520547510554,1.462585468834347,{"$f":"AVERAGE(G428:G434)","v":2.2829865533900398},{"$nulls":4},-3.841985533221273,6.896551724137936,4.453726955530947,2.4061410137909474,-1.41267394947163,{"$nulls":5},4,2.8299999999999996,{"v":3,"d":"3.00"},5.672955974842769,4,{"$nulls":5},{"$f":"AE431*'III. GDP shares, 1310-2018'!C433","v":0.8148962258999132},{"$f":"AF431*'III. GDP shares, 1310-2018'!D433","v":0.6900399374091774},{"$f":"AG431*'III. GDP shares, 1310-2018'!E433","v":0.1475815088701334},{"$f":"AH431*'III. GDP shares, 1310-2018'!F433","v":1.199262874234415},{"$f":"AI431*'III. GDP shares, 1310-2018'!G433","v":1.1674069759264443},{"$f":"AJ431*'III. GDP shares, 1310-2018'!H433","v":0},{"$f":"AK431*'III. GDP shares, 1310-2018'!I433","v":0},{"$f":"AL431*'III. GDP shares, 1310-2018'!J433","v":0},null,null,{"$f":"U431*'III. GDP shares, 1310-2018'!C433","v":-0.7827048777460203},{"$f":"V431*'III. GDP shares, 1310-2018'!D433","v":1.6815887350046983},{"$f":"W431*'III. GDP shares, 1310-2018'!E433","v":0.2190959147309476},{"$f":"X431*'III. GDP shares, 1310-2018'!F433","v":0.508658202321448},{"$f":"Y431*'III. GDP shares, 1310-2018'!G433","v":-0.41229135583068555},{"$f":"Z431*'III. GDP shares, 1310-2018'!H433","v":0},{"$f":"AA431*'III. GDP shares, 1310-2018'!I433","v":0},{"$f":"AB431*'III. GDP shares, 1310-2018'!J433","v":0},null,null,3.900591194968554,4.019187522340083,null,1.2143466184803882,1.7003520421533853,{"$f":"AVERAGE(BL428:BL434)","v":2.6572278964419493},2.6826565090715024,null,null,3.7963897014552157]
[{"$f":"'[1]Nominal weighted'!B432","v":1738},null,8.419560646909996,5.010537634408593,2.7016067829074233,5.002176868772748,-5.277879068609461,{"$nulls":4},4.54531275285378,-0.13813358269322837,0.4499428301918908,1.8557058941093716,{"$f":"AVERAGE(G429:G435)","v":0.5798035516987957},{"$nulls":4},-4.419560646909996,-2.150537634408593,0.29839321709257666,0.6676344519819706,7.527879068609461,{"$nulls":5},4,2.86,{"v":3,"d":"3.00"},5.669811320754719,2.25,{"$nulls":5},{"$f":"AE432*'III. GDP shares, 1310-2018'!C434","v":0.812484180488549},{"$f":"AF432*'III. GDP shares, 1310-2018'!D434","v":0.7015232097549161},{"$f":"AG432*'III. GDP shares, 1310-2018'!E434","v":0.14665035367537269},{"$f":"AH432*'III. GDP shares, 1310-2018'!F434","v":1.1978320935727633},{"$f":"AI432*'III. GDP shares, 1310-2018'!G434","v":0.6557462393279417},{"$f":"AJ432*'III. GDP shares, 1310-2018'!H434","v":0},{"$f":"AK432*'III. GDP shares, 1310-2018'!I434","v":0},{"$f":"AL432*'III. GDP shares, 1310-2018'!J434","v":0},null,null,{"$f":"U432*'III. GDP shares, 1310-2018'!C434","v":-0.8977057775810274},{"$f":"V432*'III. GDP shares, 1310-2018'!D434","v":-0.5275007216744967},{"$f":"W432*'III. GDP shares, 1310-2018'!E434","v":0.014586490273652875},{"$f":"X432*'III. GDP shares, 1310-2018'!F434","v":0.14104772242269553},{"$f":"Y432*'III. GDP shares, 1310-2018'!G434","v":2.19394595082497},{"$f":"Z432*'III. GDP shares, 1310-2018'!H434","v":0},{"$f":"AA432*'III. GDP shares, 1310-2018'!I434","v":0},{"$f":"AB432*'III. GDP shares, 1310-2018'!J434","v":0},null,null,3.5559622641509434,3.5142360768195426,null,0.9243736642657943,0.3847616912730837,{"$f":"AVERAGE(BL429:BL435)","v":2.8267839524822436},2.637461948944796,null,null,1.3608384811243353]
[{"$f":"'[1]Nominal weighted'!B433","v":1739},null,10.950056247394304,5.257802197802205,1.7467096672432012,-1.652015798726925,0.40973286569837786,{"$nulls":4},6.580017050589,1.187537412977769,2.387688633081139,2.461878480666267,{"$f":"AVERAGE(G430:G436)","v":2.467262932746924},{"$nulls":4},-6.950056247394304,-2.197802197802204,1.2532903327567988,6.818682465393594,3.590267134301622,{"$nulls":5},4,3.0600000000000005,{"v":3,"d":"3.00"},5.166666666666669,4,{"$nulls":5},{"$f":"AE433*'III. GDP shares, 1310-2018'!C435","v":0.8101046860404983},{"$f":"AF433*'III. GDP shares, 1310-2018'!D435","v":0.7549804455154808},{"$f":"AG433*'III. GDP shares, 1310-2018'!E435","v":0.14573176457843123},{"$f":"AH433*'III. GDP shares, 1310-2018'!F435","v":1.0908466858742687},{"$f":"AI433*'III. GDP shares, 1310-2018'!G435","v":1.1641572848807977},{"$f":"AJ433*'III. GDP shares, 1310-2018'!H435","v":0},{"$f":"AK433*'III. GDP shares, 1310-2018'!I435","v":0},{"$f":"AL433*'III. GDP shares, 1310-2018'!J435","v":0},null,null,{"$f":"U433*'III. GDP shares, 1310-2018'!C435","v":-1.4075682835647918},{"$f":"V433*'III. GDP shares, 1310-2018'!D435","v":-0.5422541445920296},{"$f":"W433*'III. GDP shares, 1310-2018'!E435","v":0.06088140390724585},{"$f":"X433*'III. GDP shares, 1310-2018'!F435","v":1.4396394521426297},{"$f":"Y433*'III. GDP shares, 1310-2018'!G435","v":1.0449089097663347},{"$f":"Z433*'III. GDP shares, 1310-2018'!H435","v":0},{"$f":"AA433*'III. GDP shares, 1310-2018'!I435","v":0},{"$f":"AB433*'III. GDP shares, 1310-2018'!J435","v":0},null,null,3.845333333333334,3.9658208668894765,null,0.5956073376593889,0.5028762974511013,{"$f":"AVERAGE(BL430:BL436)","v":1.3164238551404925},1.5857669533363237,null,null,2.072978939122578]
[{"$f":"'[1]Nominal weighted'!B434","v":1740},null,-5.489686981136961,-9.35955056179776,-9.414771857078687,-3.3266947537561355,-2.53686719534295,{"$nulls":4},5.468350912208721,1.6037251328733564,3.0660961765828176,4.021235492164341,{"$f":"AVERAGE(G431:G437)","v":4.567834632738789},{"$nulls":4},9.48968698113696,12.35955056179776,12.414771857078687,8.990216766334754,11.627776286252042,{"$nulls":5},4,3,{"v":3,"d":"3.00"},5.6635220125786185,9.090909090909092,{"$nulls":5},{"$f":"AE434*'III. GDP shares, 1310-2018'!C436","v":0.8077570880509041},{"$f":"AF434*'III. GDP shares, 1310-2018'!D436","v":0.7444324880696176},{"$f":"AG434*'III. GDP shares, 1310-2018'!E436","v":0.144825488911762},{"$f":"AH434*'III. GDP shares, 1310-2018'!F436","v":1.1950038512473966},{"$f":"AI434*'III. GDP shares, 1310-2018'!G436","v":2.6421934324058363},{"$f":"AJ434*'III. GDP shares, 1310-2018'!H436","v":0},{"$f":"AK434*'III. GDP shares, 1310-2018'!I436","v":0},{"$f":"AL434*'III. GDP shares, 1310-2018'!J436","v":0},null,null,{"$f":"U434*'III. GDP shares, 1310-2018'!C436","v":1.9163404805994415},{"$f":"V434*'III. GDP shares, 1310-2018'!D436","v":3.066950325380449},{"$f":"W434*'III. GDP shares, 1310-2018'!E436","v":0.5993251346431347},{"$f":"X434*'III. GDP shares, 1310-2018'!F436","v":1.8969368593356046},{"$f":"Y434*'III. GDP shares, 1310-2018'!G436","v":3.3795117550721416},{"$f":"Z434*'III. GDP shares, 1310-2018'!H436","v":0},{"$f":"AA434*'III. GDP shares, 1310-2018'!I436","v":0},{"$f":"AB434*'III. GDP shares, 1310-2018'!J436","v":0},null,null,4.950886220697543,5.534212348685516,null,10.859064555030772,10.97640049052004,{"$f":"AVERAGE(BL431:BL437)","v":0.4662807981644638},0.7675384176496877,null,null,-3.002334369034423]
[{"$f":"'[1]Nominal weighted'!B435","v":1741},null,-5.975282233684721,-4.970000000000001,6.365981765721102,9.140227757741062,-9.45894686936629,{"$nulls":4},4.018813716028046,4.167275075227407,3.8819811450021358,5.036752145204681,{"$f":"AVERAGE(G432:G438)","v":5.247689088162474},{"$nulls":4},9.975282233684721,8,-3.3659817657211017,-3.4798503992504934,14.45894686936629,{"$nulls":5},4,3.03,{"v":3,"d":"3.00"},5.660377358490568,5,{"$nulls":5},{"$f":"AE435*'III. GDP shares, 1310-2018'!C437","v":0.805440749444996},{"$f":"AF435*'III. GDP shares, 1310-2018'!D437","v":0.7561177177271385},{"$f":"AG435*'III. GDP shares, 1310-2018'!E437","v":0.1439312807365949},{"$f":"AH435*'III. GDP shares, 1310-2018'!F437","v":1.1936059459253785},{"$f":"AI435*'III. GDP shares, 1310-2018'!G437","v":1.4512426702482861},{"$f":"AJ435*'III. GDP shares, 1310-2018'!H437","v":0},{"$f":"AK435*'III. GDP shares, 1310-2018'!I437","v":0},{"$f":"AL435*'III. GDP shares, 1310-2018'!J437","v":0},null,null,{"$f":"U435*'III. GDP shares, 1310-2018'!C437","v":2.008624699556094},{"$f":"V435*'III. GDP shares, 1310-2018'!D437","v":1.99635040984063},{"$f":"W435*'III. GDP shares, 1310-2018'!E437","v":-0.1614900221587544},{"$f":"X435*'III. GDP shares, 1310-2018'!F437","v":-0.7337973891874601},{"$f":"Y435*'III. GDP shares, 1310-2018'!G437","v":4.196688132735447},{"$f":"Z435*'III. GDP shares, 1310-2018'!H437","v":0},{"$f":"AA435*'III. GDP shares, 1310-2018'!I437","v":0},{"$f":"AB435*'III. GDP shares, 1310-2018'!J437","v":0},null,null,4.138075471698114,4.350338364082394,null,7.3063758307859565,5.117679387615884,{"$f":"AVERAGE(BL432:BL438)","v":-0.07388652473681548},0.40203699776447743,null,null,-1.7158047745900706]
[{"$f":"'[1]Nominal weighted'!B436","v":1742},null,21.525063773844497,11.333333333333343,13.437207787226997,7.211906877706214,26.334627525182466,null,null,{"$f":"AL436-AB436","v":-9.696969696969706},null,4.069155323096374,3.7857016716724394,2.103984621928062,4.203353758288906,{"$f":"AVERAGE(G433:G439)","v":6.735248661025991},{"$nulls":4},-17.525063773844497,-8.333333333333343,-10.437207787226997,-1.5546741733036966,-21.334627525182466,null,null,9.696969696969706,null,null,4,3.0000000000000004,{"v":3,"d":"3.00"},5.657232704402518,5,{"$nulls":5},{"$f":"AE436*'III. GDP shares, 1310-2018'!C438","v":0.8031550500017036},{"$f":"AF436*'III. GDP shares, 1310-2018'!D438","v":0.7527747785284402},{"$f":"AG436*'III. GDP shares, 1310-2018'!E438","v":0.14304890062042624},{"$f":"AH436*'III. GDP shares, 1310-2018'!F438","v":1.1922185651723527},{"$f":"AI436*'III. GDP shares, 1310-2018'!G438","v":1.4493049275726952},{"$f":"AJ436*'III. GDP shares, 1310-2018'!H438","v":0},{"$f":"AK436*'III. GDP shares, 1310-2018'!I438","v":0},{"$f":"AL436*'III. GDP shares, 1310-2018'!J438","v":0},null,null,{"$f":"U436*'III. GDP shares, 1310-2018'!C438","v":-3.5188358678912803},{"$f":"V436*'III. GDP shares, 1310-2018'!D438","v":-2.0910410514678914},{"$f":"W436*'III. GDP shares, 1310-2018'!E438","v":-0.49767703316992457},{"$f":"X436*'III. GDP shares, 1310-2018'!F438","v":-0.3276357026579841},{"$f":"Y436*'III. GDP shares, 1310-2018'!G438","v":-6.1840761600350005},{"$f":"Z436*'III. GDP shares, 1310-2018'!H438","v":0},{"$f":"AA436*'III. GDP shares, 1310-2018'!I438","v":0},{"$f":"AB436*'III. GDP shares, 1310-2018'!J438","v":0},null,null,4.1314465408805034,4.340502221895618,null,-12.619265815222082,-8.24798948265355,{"$f":"AVERAGE(BL433:BL439)","v":-0.023918862590958163},0.6074481190495439,null,null,14.115952207121367]
[{"$f":"'[1]Nominal weighted'!B437","v":1743},null,1.0067593989126542,8.020505050505053,8.079666045590633,8.506232532361603,17.091501222137747,null,null,8.287292817679571,null,2.7444646604518335,2.177192114003218,1.7727673523875664,4.78495723503444,{"$f":"AVERAGE(G434:G440)","v":7.062219182290071},{"$nulls":4},2.993240601087346,-5.050505050505052,-5.079666045590633,-2.8521444820471347,-12.091501222137747,null,null,-8.287292817679571,null,null,4,2.9700000000000006,{"v":3,"d":"3.00"},5.654088050314468,5,{"$nulls":5},{"$f":"AE437*'III. GDP shares, 1310-2018'!C439","v":0.8008993857999905},{"$f":"AF437*'III. GDP shares, 1310-2018'!D439","v":0.7492950702616498},{"$f":"AG437*'III. GDP shares, 1310-2018'!E439","v":0.1421781154232798},{"$f":"AH437*'III. GDP shares, 1310-2018'!F439","v":1.1908415015411153},{"$f":"AI437*'III. GDP shares, 1310-2018'!G439","v":1.4473926478115529},{"$f":"AJ437*'III. GDP shares, 1310-2018'!H439","v":0},{"$f":"AK437*'III. GDP shares, 1310-2018'!I439","v":0},{"$f":"AL437*'III. GDP shares, 1310-2018'!J439","v":0},null,null,{"$f":"U437*'III. GDP shares, 1310-2018'!C439","v":0.5993211397406124},{"$f":"V437*'III. GDP shares, 1310-2018'!D439","v":-1.2741813254797978},{"$f":"W437*'III. GDP shares, 1310-2018'!E439","v":-0.2407391151139001},{"$f":"X437*'III. GDP shares, 1310-2018'!F439","v":-0.6007073090105687},{"$f":"Y437*'III. GDP shares, 1310-2018'!G439","v":-3.5002299939853163},{"$f":"Z437*'III. GDP shares, 1310-2018'!H439","v":0},{"$f":"AA437*'III. GDP shares, 1310-2018'!I439","v":0},{"$f":"AB437*'III. GDP shares, 1310-2018'!J439","v":0},null,null,4.124817610062894,4.330606720837588,null,-5.01653660384897,-5.061311502812132,{"$f":"AVERAGE(BL434:BL440)","v":0.5735306553591479},1.121405860661053,null,null,7.32366692894511]
[{"$f":"'[1]Nominal weighted'!B438","v":1744},null,-2.304774840043444,13.878297872340417,4.25746782340428,10.375431532334204,10.17165513743743,null,null,-5.421686746987958,null,2.466883461402109,4.497957401633314,2.7098442662103848,6.725958564524989,{"$f":"AVERAGE(G435:G441)","v":8.14007000864038},{"$nulls":4},6.304774840043444,-10.638297872340416,-1.25746782340428,-4.7244881361077855,-0.2551551374374302,null,null,5.421686746987958,null,null,4,3.2400000000000007,{"v":3,"d":"3.00"},5.650943396226418,9.9165,{"$nulls":5},{"$f":"AE438*'III. GDP shares, 1310-2018'!C440","v":0.7986731686868734},{"$f":"AF438*'III. GDP shares, 1310-2018'!D440","v":0.8217711967795186},{"$f":"AG438*'III. GDP shares, 1310-2018'!E440","v":0.1413186980923383},{"$f":"AH438*'III. GDP shares, 1310-2018'!F440","v":1.189474553000798},{"$f":"AI438*'III. GDP shares, 1310-2018'!G440","v":2.866870725645043},{"$f":"AJ438*'III. GDP shares, 1310-2018'!H440","v":0},{"$f":"AK438*'III. GDP shares, 1310-2018'!I440","v":0},{"$f":"AL438*'III. GDP shares, 1310-2018'!J440","v":0},null,null,{"$f":"U438*'III. GDP shares, 1310-2018'!C440","v":1.2588636248386933},{"$f":"V438*'III. GDP shares, 1310-2018'!D440","v":-2.6982243130401815},{"$f":"W438*'III. GDP shares, 1310-2018'!E440","v":-0.05923457189883307},{"$f":"X438*'III. GDP shares, 1310-2018'!F440","v":-0.9944637593799067},{"$f":"Y438*'III. GDP shares, 1310-2018'!G440","v":-0.07376562234833926},{"$f":"Z438*'III. GDP shares, 1310-2018'!H440","v":0},{"$f":"AA438*'III. GDP shares, 1310-2018'!I440","v":0},{"$f":"AB438*'III. GDP shares, 1310-2018'!J440","v":0},null,null,5.161488679245283,5.818108342204571,null,-2.566824641828567,-0.858157897043085,{"$f":"AVERAGE(BL435:BL441)","v":-0.8047829252107576},-0.34944314237235047,null,null,4.864937474213439]
[{"$f":"'[1]Nominal weighted'!B439","v":1745},null,8.771951896388288,2.3395238095238233,-9.74436887861109,-0.8316118396376853,5.135037941435153,null,null,4.571428571428583,null,2.9297190470619605,5.060179623855537,3.7895505575183073,6.1557482611845105,{"$f":"AVERAGE(G436:G442)","v":9.145839264976393},{"$nulls":4},-4.771951896388287,1.1904761904761756,12.74436887861109,6.479410581776053,-0.13503794143515246,null,null,-4.571428571428583,null,null,4,3.529999999999999,{"v":3,"d":"3.00"},5.6477987421383675,5,{"$nulls":5},{"$f":"AE439*'III. GDP shares, 1310-2018'!C441","v":0.7964758257661398},{"$f":"AF439*'III. GDP shares, 1310-2018'!D441","v":0.9000116991493716},{"$f":"AG439*'III. GDP shares, 1310-2018'!E441","v":0.14047042746456662},{"$f":"AH439*'III. GDP shares, 1310-2018'!F441","v":1.1881175227612397},{"$f":"AI439*'III. GDP shares, 1310-2018'!G441","v":1.4436424954978766},{"$f":"AJ439*'III. GDP shares, 1310-2018'!H441","v":0},{"$f":"AK439*'III. GDP shares, 1310-2018'!I441","v":0},{"$f":"AL439*'III. GDP shares, 1310-2018'!J441","v":0},null,null,{"$f":"U439*'III. GDP shares, 1310-2018'!C441","v":-0.9501860817980394},{"$f":"V439*'III. GDP shares, 1310-2018'!D441","v":0.30352478724853654},{"$f":"W439*'III. GDP shares, 1310-2018'!E441","v":0.5967356480482063},{"$f":"X439*'III. GDP shares, 1310-2018'!F441","v":1.3630622479401593},{"$f":"Y439*'III. GDP shares, 1310-2018'!G441","v":-0.038989302152067924},{"$f":"Z439*'III. GDP shares, 1310-2018'!H441","v":0},{"$f":"AA439*'III. GDP shares, 1310-2018'!I441","v":0},{"$f":"AB439*'III. GDP shares, 1310-2018'!J441","v":0},null,null,4.235559748427674,4.468717970639194,null,1.2741472992867948,1.8226395402685494,{"$f":"AVERAGE(BL436:BL442)","v":-1.2019482694562293},-0.45688333100868217,null,null,2.5980837594515647]
[{"$f":"'[1]Nominal weighted'!B440","v":1746},null,1.6772216088825207,-6.001764705882348,-0.5718112195402703,2.4192085384918225,2.698526514546941,null,null,-2.3952095808383294,null,0.8672712968487882,3.5614663513124754,3.3231313611980036,6.167636976922886,{"$f":"AVERAGE(G437:G443)","v":6.630307195068651},{"$nulls":4},2.3227783911174793,9.411764705882348,3.5718112195402703,3.225445549558495,3.676473485453059,null,null,2.3952095808383294,null,null,4,3.4099999999999997,{"v":3,"d":"3.00"},5.644654088050317,6.375,{"$nulls":5},{"$f":"AE440*'III. GDP shares, 1310-2018'!C442","v":0.7943067989068329},{"$f":"AF440*'III. GDP shares, 1310-2018'!D442","v":0.8738856352331101},{"$f":"AG440*'III. GDP shares, 1310-2018'!E442","v":0.13963308807696484},{"$f":"AH440*'III. GDP shares, 1310-2018'!F442","v":1.1867702191041545},{"$f":"AI440*'III. GDP shares, 1310-2018'!G442","v":1.8382996717234015},{"$f":"AJ440*'III. GDP shares, 1310-2018'!H442","v":0},{"$f":"AK440*'III. GDP shares, 1310-2018'!I442","v":0},{"$f":"AL440*'III. GDP shares, 1310-2018'!J442","v":0},null,null,{"$f":"U440*'III. GDP shares, 1310-2018'!C442","v":0.4612496671046221},{"$f":"V440*'III. GDP shares, 1310-2018'!D442","v":2.4119665626582294},{"$f":"W440*'III. GDP shares, 1310-2018'!E442","v":0.16624767687078593},{"$f":"X440*'III. GDP shares, 1310-2018'!F442","v":0.6781394682203125},{"$f":"Y440*'III. GDP shares, 1310-2018'!G442","v":1.0601505884561802},{"$f":"Z440*'III. GDP shares, 1310-2018'!H442","v":0},{"$f":"AA440*'III. GDP shares, 1310-2018'!I442","v":0},{"$f":"AB440*'III. GDP shares, 1310-2018'!J442","v":0},null,null,4.485930817610063,4.832895413044463,null,4.77775396331013,4.100580488731663,{"$f":"AVERAGE(BL437:BL443)","v":0.35193449418159906},0.32606372340851736,null,null,1.593222377159453]
[{"$f":"'[1]Nominal weighted'!B441","v":1747},null,-7.432755374485035,6.885806451612911,-2.8552334603189555,10.260314552677709,5.008088589109223,null,null,7.017543859649113,null,-0.6132451102158043,2.9930608679069928,1.7124382132873701,6.222865901148053,{"$f":"AVERAGE(G438:G444)","v":4.735453487651884},{"$nulls":4},11.432755374485035,-3.225806451612911,5.8552334603189555,-4.618805118715442,1.6569114108907779,null,null,-7.017543859649113,null,null,4,3.6600000000000006,{"v":3,"d":"3.00"},5.641509433962267,6.665,{"$nulls":5},{"$f":"AE441*'III. GDP shares, 1310-2018'!C443","v":0.7921655442706143},{"$f":"AF441*'III. GDP shares, 1310-2018'!D443","v":0.9426889687893742},{"$f":"AG441*'III. GDP shares, 1310-2018'!E443","v":0.13880646998411023},{"$f":"AH441*'III. GDP shares, 1310-2018'!F443","v":1.1854324552207776},{"$f":"AI441*'III. GDP shares, 1310-2018'!G443","v":1.9195045066685035},{"$f":"AJ441*'III. GDP shares, 1310-2018'!H443","v":0},{"$f":"AK441*'III. GDP shares, 1310-2018'!I443","v":0},{"$f":"AL441*'III. GDP shares, 1310-2018'!J443","v":0},null,null,{"$f":"U441*'III. GDP shares, 1310-2018'!C443","v":2.264158720935432},{"$f":"V441*'III. GDP shares, 1310-2018'!D443","v":-0.8308557807063074},{"$f":"W441*'III. GDP shares, 1310-2018'!E443","v":0.270914762519907},{"$f":"X441*'III. GDP shares, 1310-2018'!F443","v":-0.9705348464195731},{"$f":"Y441*'III. GDP shares, 1310-2018'!G443","v":0.4771866347119755},{"$f":"Z441*'III. GDP shares, 1310-2018'!H443","v":0},{"$f":"AA441*'III. GDP shares, 1310-2018'!I443","v":0},{"$f":"AB441*'III. GDP shares, 1310-2018'!J443","v":0},null,null,4.593301886792453,4.97859794493338,null,1.2108694910414342,0.680457469286217,{"$f":"AVERAGE(BL438:BL444)","v":1.38252856511427},2.0817241226429735,null,null,1.9941837043962645]
[{"$f":"'[1]Nominal weighted'!B442","v":1748},null,-2.735433134065759,-1.0344444444444432,13.923925804876554,5.148755634357708,-2.4185620750142105,null,null,-16.981132075471685,null,0.6161945312730529,1.067364179377158,1.0996120440613182,5.791773931905749,{"$f":"AVERAGE(G439:G445)","v":3.6137178023115015},{"$nulls":4},6.735433134065759,4.444444444444443,-10.923925804876554,0.3646091455165087,8.591895408347543,null,null,16.981132075471685,null,null,4,3.4099999999999997,{"v":3,"d":"3.00"},5.513364779874217,6.173333333333333,{"$nulls":5},{"$f":"AE442*'III. GDP shares, 1310-2018'!C444","v":0.7900515318571686},{"$f":"AF442*'III. GDP shares, 1310-2018'!D444","v":0.8826535243038985},{"$f":"AG442*'III. GDP shares, 1310-2018'!E444","v":0.13799036858266303},{"$f":"AH442*'III. GDP shares, 1310-2018'!F444","v":1.157852997215242},{"$f":"AI442*'III. GDP shares, 1310-2018'!G444","v":1.7756928899654576},{"$f":"AJ442*'III. GDP shares, 1310-2018'!H444","v":0},{"$f":"AK442*'III. GDP shares, 1310-2018'!I444","v":0},{"$f":"AL442*'III. GDP shares, 1310-2018'!J444","v":0},null,null,{"$f":"U442*'III. GDP shares, 1310-2018'!C444","v":1.3303348163225457},{"$f":"V442*'III. GDP shares, 1310-2018'!D444","v":1.150411892217528},{"$f":"W442*'III. GDP shares, 1310-2018'!E444","v":-0.5024655160615266},{"$f":"X442*'III. GDP shares, 1310-2018'!F444","v":0.07657098864370974},{"$f":"Y442*'III. GDP shares, 1310-2018'!G444","v":2.471366239945399},{"$f":"Z442*'III. GDP shares, 1310-2018'!H444","v":0},{"$f":"AA442*'III. GDP shares, 1310-2018'!I444","v":0},{"$f":"AB442*'III. GDP shares, 1310-2018'!J444","v":0},null,null,4.41933962264151,4.74424131192443,null,4.5262184210676555,4.365598067161564,{"$f":"AVERAGE(BL439:BL445)","v":1.853761272965666},2.2378177034413573,null,null,0.48578125877040357]
[{"$f":"'[1]Nominal weighted'!B443","v":1749},null,7.087929522352294,0.8423404255319169,10.172273412984872,7.295127887874842,8.725903035828274,null,null,3.225806451612898,null,1.7314112806793294,0.22596700512283516,2.1576492361866415,5.784438653053302,{"$f":"AVERAGE(G440:G446)","v":2.7776575416032174},{"$nulls":4},-3.0879295223522933,2.1276595744680833,-7.172273412984871,-1.909907762088675,-3.3359030358282746,null,null,-3.225806451612898,null,null,4,2.97,{"v":3,"d":"3.00"},5.385220125786167,5.390000000000001,{"$nulls":5},{"$f":"AE443*'III. GDP shares, 1310-2018'!C445","v":0.7879642450668481},{"$f":"AF443*'III. GDP shares, 1310-2018'!D445","v":0.7725086145583905},{"$f":"AG443*'III. GDP shares, 1310-2018'!E445","v":0.13718458444252812},{"$f":"AH443*'III. GDP shares, 1310-2018'!F445","v":1.1303119473525955},{"$f":"AI443*'III. GDP shares, 1310-2018'!G445","v":1.5484679291148564},{"$f":"AJ443*'III. GDP shares, 1310-2018'!H445","v":0},{"$f":"AK443*'III. GDP shares, 1310-2018'!I445","v":0},{"$f":"AL443*'III. GDP shares, 1310-2018'!J445","v":0},null,null,{"$f":"U443*'III. GDP shares, 1310-2018'!C445","v":-0.6082945137249894},{"$f":"V443*'III. GDP shares, 1310-2018'!D445","v":0.5534125757994053},{"$f":"W443*'III. GDP shares, 1310-2018'!E445","v":-0.3279751158895075},{"$f":"X443*'III. GDP shares, 1310-2018'!F445","v":-0.4008734111895073},{"$f":"Y443*'III. GDP shares, 1310-2018'!G445","v":-0.9583560047526847},{"$f":"Z443*'III. GDP shares, 1310-2018'!H445","v":0},{"$f":"AA443*'III. GDP shares, 1310-2018'!I445","v":0},{"$f":"AB443*'III. GDP shares, 1310-2018'!J445","v":0},null,null,4.149044025157234,4.376437320535219,null,-1.7420864697572838,-2.767360101733155,{"$f":"AVERAGE(BL440:BL446)","v":2.013430430667473},1.59309994309524,null,null,5.899427751533517]
[{"$f":"'[1]Nominal weighted'!B444","v":1750},null,-9.356855450539493,4.041666666666671,-3.1951859897837975,8.892835001937762,3.8275252702203826,null,null,-27.77777777777778,null,4.648330158658011,1.6657007128523174,3.983558635310007,5.285097215542594,{"$f":"AVERAGE(G441:G447)","v":3.6651016074014398},{"$nulls":4},13.356855450539493,-1.0416666666666714,5.6951859897837975,-3.635759530239645,1.2174747297796176,null,null,27.77777777777778,null,null,4,3,{"v":2.5,"d":"2.50"},5.2570754716981165,5.045,{"$nulls":5},{"$f":"AE444*'III. GDP shares, 1310-2018'!C446","v":0.7859031802798002},{"$f":"AF444*'III. GDP shares, 1310-2018'!D446","v":0.7840479028788321},{"$f":"AG444*'III. GDP shares, 1310-2018'!E446","v":0.11365743595365006},{"$f":"AH444*'III. GDP shares, 1310-2018'!F446","v":1.102808581866617},{"$f":"AI444*'III. GDP shares, 1310-2018'!G446","v":1.447591459877683},{"$f":"AJ444*'III. GDP shares, 1310-2018'!H446","v":0},{"$f":"AK444*'III. GDP shares, 1310-2018'!I446","v":0},{"$f":"AL444*'III. GDP shares, 1310-2018'!J446","v":0},null,null,{"$f":"U444*'III. GDP shares, 1310-2018'!C446","v":2.624298794279143},{"$f":"V444*'III. GDP shares, 1310-2018'!D446","v":-0.27223885516626234},{"$f":"W444*'III. GDP shares, 1310-2018'!E446","v":0.2589200947511909},{"$f":"X444*'III. GDP shares, 1310-2018'!F446","v":-0.7626953109456643},{"$f":"Y444*'III. GDP shares, 1310-2018'!G446","v":0.34933716976132095},{"$f":"Z444*'III. GDP shares, 1310-2018'!H446","v":0},{"$f":"AA444*'III. GDP shares, 1310-2018'!I446","v":0},{"$f":"AB444*'III. GDP shares, 1310-2018'!J446","v":0},null,null,3.9604150943396235,4.234008560856582,null,2.1976218926797277,7.228311291829062,{"$f":"AVERAGE(BL441:BL447)","v":0.7279490116070351},0.30180077870441113,null,null,0.9800999101317598]
[{"$f":"'[1]Nominal weighted'!B445","v":1751},null,6.301302650378555,0.398421052631575,-0.03231536117808398,7.357787747638082,2.3195053400547474,null,null,2.1739130434782608,null,6.821554920319812,1.2703298851072955,5.8251899296355765,4.815140899649299,{"$f":"AVERAGE(G442:G448)","v":3.7710657323976213},{"$nulls":4},-2.301302650378555,2.631578947368425,2.532315361178084,-2.228856930028016,2.947161326611919,null,null,-2.1739130434782608,null,null,4,3.03,{"v":2.5,"d":"2.50"},5.128930817610066,5.266666666666667,{"$nulls":5},{"$f":"AE445*'III. GDP shares, 1310-2018'!C447","v":0.7838678464508585},{"$f":"AF445*'III. GDP shares, 1310-2018'!D447","v":0.7956148046920856},{"$f":"AG445*'III. GDP shares, 1310-2018'!E447","v":0.11300266260272757},{"$f":"AH445*'III. GDP shares, 1310-2018'!F447","v":1.075342195062519},{"$f":"AI445*'III. GDP shares, 1310-2018'!G447","v":1.5093780606291987},{"$f":"AJ445*'III. GDP shares, 1310-2018'!H447","v":0},{"$f":"AK445*'III. GDP shares, 1310-2018'!I447","v":0},{"$f":"AL445*'III. GDP shares, 1310-2018'!J447","v":0},null,null,{"$f":"U445*'III. GDP shares, 1310-2018'!C447","v":-0.45097928814597277},{"$f":"V445*'III. GDP shares, 1310-2018'!D447","v":0.6909977459545655},{"$f":"W445*'III. GDP shares, 1310-2018'!E447","v":0.11446335134516449},{"$f":"X445*'III. GDP shares, 1310-2018'!F447","v":-0.4673067328939847},{"$f":"Y445*'III. GDP shares, 1310-2018'!G447","v":0.8446292368714319},{"$f":"Z445*'III. GDP shares, 1310-2018'!H447","v":0},{"$f":"AA445*'III. GDP shares, 1310-2018'!I447","v":0},{"$f":"AB445*'III. GDP shares, 1310-2018'!J447","v":0},null,null,3.9851194968553463,4.277205569437389,null,0.7318043131312044,0.23449716854559935,{"$f":"AVERAGE(BL442:BL448)","v":0.2475672369263297},-0.05284868364628432,null,null,3.4407841975686653]
[{"$f":"'[1]Nominal weighted'!B446","v":1752},null,16.578469142232223,-3.550256410256438,-2.338108533733827,-0.8829587916048114,-0.7173838835228397,null,null,26.666666666666668,null,6.35974823708365,2.571299065865294,2.54117814982326,5.085737472787981,{"$f":"AVERAGE(G443:G449)","v":6.036569940572948},{"$nulls":4},-12.57846914223222,6.410256410256437,4.838108533733827,5.8837449551268275,5.970717216856173,null,null,-26.666666666666668,null,null,4,2.8599999999999994,{"v":2.5,"d":"2.50"},5.000786163522016,5.253333333333333,{"$nulls":5},{"$f":"AE446*'III. GDP shares, 1310-2018'!C448","v":0.7818577647195115},{"$f":"AF446*'III. GDP shares, 1310-2018'!D448","v":0.7544500606061922},{"$f":"AG446*'III. GDP shares, 1310-2018'!E448","v":0.11235601293172667},{"$f":"AH446*'III. GDP shares, 1310-2018'!F448","v":1.0479120987564248},{"$f":"AI446*'III. GDP shares, 1310-2018'!G448","v":1.5037664273332518},{"$f":"AJ446*'III. GDP shares, 1310-2018'!H448","v":0},{"$f":"AK446*'III. GDP shares, 1310-2018'!I448","v":0},{"$f":"AL446*'III. GDP shares, 1310-2018'!J448","v":0},null,null,{"$f":"U446*'III. GDP shares, 1310-2018'!C448","v":-2.458643441784759},{"$f":"V446*'III. GDP shares, 1310-2018'!D448","v":1.6909854325941267},{"$f":"W446*'III. GDP shares, 1310-2018'!E448","v":0.21743623399251802},{"$f":"X446*'III. GDP shares, 1310-2018'!F448","v":1.2329356470887491},{"$f":"Y446*'III. GDP shares, 1310-2018'!G448","v":1.7091175313088092},{"$f":"Z446*'III. GDP shares, 1310-2018'!H448","v":0},{"$f":"AA446*'III. GDP shares, 1310-2018'!I448","v":0},{"$f":"AB446*'III. GDP shares, 1310-2018'!J448","v":0},null,null,3.92282389937107,4.200342364347107,null,2.3918314031994443,-2.6903847821542706,{"$f":"AVERAGE(BL443:BL449)","v":-0.6498296062977517},-0.663998224558468,null,null,2.745046333135597]
[{"$f":"'[1]Nominal weighted'!B447","v":1753},null,22.09565375473329,4.076371248224028,12.209554574323292,-1.0761815240831316,8.9106349751345,null,null,2.4242424242424154,null,6.138595594318922,1.8184562248697833,0.03766032672116434,3.622910379089631,{"$f":"AVERAGE(G444:G450)","v":5.0287440028624175},{"$nulls":4},-18.09565375473329,-1.2048192771084416,-9.709554574323292,5.9488230335170975,-4.145634975134499,null,null,-2.4242424242424154,null,null,4,2.871551971115587,{"v":2.5,"d":"2.50"},4.872641509433966,4.765000000000001,{"$nulls":5},{"$f":"AE447*'III. GDP shares, 1310-2018'!C449","v":0.7798724680343},{"$f":"AF447*'III. GDP shares, 1310-2018'!D449","v":0.7609421341393995},{"$f":"AG447*'III. GDP shares, 1310-2018'!E449","v":0.111717336688711},{"$f":"AH447*'III. GDP shares, 1310-2018'!F449","v":1.020517621735577},{"$f":"AI447*'III. GDP shares, 1310-2018'!G449","v":1.3623770663918078},{"$f":"AJ447*'III. GDP shares, 1310-2018'!H449","v":0},{"$f":"AK447*'III. GDP shares, 1310-2018'!I449","v":0},{"$f":"AL447*'III. GDP shares, 1310-2018'!J449","v":0},null,null,{"$f":"U447*'III. GDP shares, 1310-2018'!C449","v":-3.5280755385995},{"$f":"V447*'III. GDP shares, 1310-2018'!D449","v":-0.31926907860177567},{"$f":"W447*'III. GDP shares, 1310-2018'!E449","v":-0.4338902309908357},{"$f":"X447*'III. GDP shares, 1310-2018'!F449","v":1.2459112213645933},{"$f":"Y447*'III. GDP shares, 1310-2018'!G449","v":-1.1852923432854172},{"$f":"Z447*'III. GDP shares, 1310-2018'!H449","v":0},{"$f":"AA447*'III. GDP shares, 1310-2018'!I449","v":0},{"$f":"AB447*'III. GDP shares, 1310-2018'!J449","v":0},null,null,3.80183869610991,4.035426626989795,null,-4.220615970112935,-4.93851366200414,{"$f":"AVERAGE(BL444:BL450)","v":0.2727135412233493},0.36982574143358427,null,null,7.175831384361555]
[{"$f":"'[1]Nominal weighted'!B448","v":1754},null,7.77981795714757,4.118210657397757,10.036185599960024,6.970620341424639,5.749837464082498,null,null,-4.968944099378864,null,7.755401556401866,-2.2398772533455795,0.08797507761484116,2.9757029181386137,{"$f":"AVERAGE(G445:G451)","v":3.8485131835361264},{"$nulls":4},-3.77981795714757,-1.2195121951219505,-7.5361855999600245,-2.2261234860787233,-1.0198374640824983,null,null,4.968944099378864,null,null,4,2.898698462275807,{"v":2.5,"d":"2.50"},4.744496855345916,4.7299999999999995,{"$nulls":5},{"$f":"AE448*'III. GDP shares, 1310-2018'!C450","v":0.7779115007910227},{"$f":"AF448*'III. GDP shares, 1310-2018'!D450","v":0.7715704608467074},{"$f":"AG448*'III. GDP shares, 1310-2018'!E450","v":0.11108648730436328},{"$f":"AH448*'III. GDP shares, 1310-2018'!F450","v":0.9931581092383939},{"$f":"AI448*'III. GDP shares, 1310-2018'!G450","v":1.3507974263874394},{"$f":"AJ448*'III. GDP shares, 1310-2018'!H450","v":0},{"$f":"AK448*'III. GDP shares, 1310-2018'!I450","v":0},{"$f":"AL448*'III. GDP shares, 1310-2018'!J450","v":0},null,null,{"$f":"U448*'III. GDP shares, 1310-2018'!C450","v":-0.735090964940381},{"$f":"V448*'III. GDP shares, 1310-2018'!D450","v":-0.32460761222458406},{"$f":"W448*'III. GDP shares, 1310-2018'!E450","v":-0.33486735438931386},{"$f":"X448*'III. GDP shares, 1310-2018'!F450","v":-0.4659909490453089},{"$f":"Y448*'III. GDP shares, 1310-2018'!G450","v":-0.2912460511239178},{"$f":"Z448*'III. GDP shares, 1310-2018'!H450","v":0},{"$f":"AA448*'III. GDP shares, 1310-2018'!I450","v":0},{"$f":"AB448*'III. GDP shares, 1310-2018'!J450","v":0},null,null,3.7746390635243445,4.004523984567927,null,-2.1518029317235055,-1.8020887671686505,{"$f":"AVERAGE(BL445:BL451)","v":1.5661938692278727},0.49601485226385417,null,null,5.060148843220141]
[{"$f":"'[1]Nominal weighted'!B449","v":1755},null,-5.968079916718889,8.072339820861549,-9.064156653809656,7.0429316463284835,13.43996738221307,null,null,5.32544378698224,null,6.400044167857485,-1.0241717849327157,0.5298138904960826,1.6593727355105607,{"$f":"AVERAGE(G446:G452)","v":5.023123263690776},{"$nulls":4},9.968079916718889,-4.938271604938279,11.564156653809656,-2.426579445070618,-8.316634048879736,null,null,-5.32544378698224,null,null,4,3.13406821592327,{"v":2.5,"d":"2.50"},4.6163522012578655,5.123333333333334,{"$nulls":5},{"$f":"AE449*'III. GDP shares, 1310-2018'!C451","v":0.7759744184841612},{"$f":"AF449*'III. GDP shares, 1310-2018'!D451","v":0.8378891147294663},{"$f":"AG449*'III. GDP shares, 1310-2018'!E451","v":0.11046332177984788},{"$f":"AH449*'III. GDP shares, 1310-2018'!F451","v":0.965832922453523},{"$f":"AI449*'III. GDP shares, 1310-2018'!G451","v":1.4614431907872039},{"$f":"AJ449*'III. GDP shares, 1310-2018'!H451","v":0},{"$f":"AK449*'III. GDP shares, 1310-2018'!I451","v":0},{"$f":"AL449*'III. GDP shares, 1310-2018'!J451","v":0},null,null,{"$f":"U449*'III. GDP shares, 1310-2018'!C451","v":1.9337437541948963},{"$f":"V449*'III. GDP shares, 1310-2018'!D451","v":-1.3202405749603179},{"$f":"W449*'III. GDP shares, 1310-2018'!E451","v":0.5109660630249381},{"$f":"X449*'III. GDP shares, 1310-2018'!F451","v":-0.5076888016385749},{"$f":"Y449*'III. GDP shares, 1310-2018'!G451","v":-2.3723399221218546},{"$f":"Z449*'III. GDP shares, 1310-2018'!H451","v":0},{"$f":"AA449*'III. GDP shares, 1310-2018'!I451","v":0},{"$f":"AB449*'III. GDP shares, 1310-2018'!J451","v":0},null,null,3.874750750102894,4.151602968234203,null,-1.7555594815009132,0.0875512807762786,{"$f":"AVERAGE(BL446:BL452)","v":1.4694464481814742},0.5148096258022955,null,null,3.7490327600453313]
[{"$f":"'[1]Nominal weighted'!B450","v":1756},null,5.539861022999197,-4.427559461436658,-7.352351348729803,-2.9446617680136056,1.6711214718545664,null,null,0,null,2.9965885707166526,1.858774967090326,3.0196917555937164,2.9001259895097777,{"$f":"AVERAGE(G447:G453)","v":5.900138968634254},{"$nulls":4},-1.5398610229991974,7.792207792207805,9.852351348729803,7.432869315183421,3.278878528145434,null,null,0,null,null,4,3.3646483307711463,{"v":2.5,"d":"2.50"},4.488207547169815,4.95,{"$nulls":5},{"$f":"AE450*'III. GDP shares, 1310-2018'!C452","v":0.7740607873709667},{"$f":"AF450*'III. GDP shares, 1310-2018'!D452","v":0.9034249691728213},{"$f":"AG450*'III. GDP shares, 1310-2018'!E452","v":0.10984770057874628},{"$f":"AH450*'III. GDP shares, 1310-2018'!F452","v":0.9385414380370896},{"$f":"AI450*'III. GDP shares, 1310-2018'!G452","v":1.410393347446345},{"$f":"AJ450*'III. GDP shares, 1310-2018'!H452","v":0},{"$f":"AK450*'III. GDP shares, 1310-2018'!I452","v":0},{"$f":"AL450*'III. GDP shares, 1310-2018'!J452","v":0},null,null,{"$f":"U450*'III. GDP shares, 1310-2018'!C452","v":-0.29798650897615525},{"$f":"V450*'III. GDP shares, 1310-2018'!D452","v":2.092246913320099},{"$f":"W450*'III. GDP shares, 1310-2018'!E452","v":0.4329032563807514},{"$f":"X450*'III. GDP shares, 1310-2018'!F452","v":1.5543077681897717},{"$f":"Y450*'III. GDP shares, 1310-2018'!G452","v":0.9342441339759562},{"$f":"Z450*'III. GDP shares, 1310-2018'!H452","v":0},{"$f":"AA450*'III. GDP shares, 1310-2018'!I452","v":0},{"$f":"AB450*'III. GDP shares, 1310-2018'!J452","v":0},null,null,3.860571175588192,4.1362682426059685,null,4.715715562890423,4.469407660211211,{"$f":"AVERAGE(BL447:BL453)","v":0.8054552897380833},0.5223191161753962,null,null,0.6093746238628239]
[{"$f":"'[1]Nominal weighted'!B451","v":1757},null,1.960786284041116,-24.36666768084087,-2.842982733528057,4.362382775280639,-4.434090465063658,null,null,-2.500000000000006,null,1.864384648712985,2.951583872061568,2.277366050635877,2.5938071469500166,{"$f":"AVERAGE(G448:G454)","v":5.680936908989006},{"$nulls":4},2.039213715958884,27.710843373493972,5.342982733528057,-2.3198821988736074E-3,11.079090465063658,null,null,2.500000000000006,null,null,4,3.344175692653101,{"v":2.5,"d":"2.50"},4.360062893081765,6.645,{"$nulls":5},{"$f":"AE451*'III. GDP shares, 1310-2018'!C453","v":0.7721701841476725},{"$f":"AF451*'III. GDP shares, 1310-2018'!D453","v":0.9017483145892526},{"$f":"AG451*'III. GDP shares, 1310-2018'!E453","v":0.10923948752289347},{"$f":"AH451*'III. GDP shares, 1310-2018'!F453","v":0.9112830476473726},{"$f":"AI451*'III. GDP shares, 1310-2018'!G453","v":1.8912161093708666},{"$f":"AJ451*'III. GDP shares, 1310-2018'!H453","v":0},{"$f":"AK451*'III. GDP shares, 1310-2018'!I453","v":0},{"$f":"AL451*'III. GDP shares, 1310-2018'!J453","v":0},null,null,{"$f":"U451*'III. GDP shares, 1310-2018'!C453","v":0.3936550076421077},{"$f":"V451*'III. GDP shares, 1310-2018'!D453","v":7.472157148558951},{"$f":"W451*'III. GDP shares, 1310-2018'!E453","v":0.2334658782617094},{"$f":"X451*'III. GDP shares, 1310-2018'!F453","v":-4.8487129021163489E-4},{"$f":"Y451*'III. GDP shares, 1310-2018'!G453","v":3.1531910255388347},{"$f":"Z451*'III. GDP shares, 1310-2018'!H453","v":0},{"$f":"AA451*'III. GDP shares, 1310-2018'!I453","v":0},{"$f":"AB451*'III. GDP shares, 1310-2018'!J453","v":0},null,null,4.169847717146974,4.585657143278057,null,11.251984188711392,8.11163506764095,{"$f":"AVERAGE(BL448:BL454)","v":1.0223684301410376},0.8280358229498371,null,null,-0.09591821146363477]
[{"$f":"'[1]Nominal weighted'!B452","v":1758},null,-3.1861990694321145,8.908359331521623,3.0605563289906046,-1.8565235307582864,10.54177590113729,null,null,1.219512195121954,null,2.7218467876856445,3.101838407751162,0.30907827395126536,0.23431394115867984,{"$f":"AVERAGE(G449:G455)","v":6.5489811617267355},{"$nulls":4},7.1861990694321145,-5.660377358490578,-0.5605563289906046,6.220386214196446,-3.76977590113729,null,null,-1.219512195121954,null,null,4,3.2479819730310453,{"v":2.5,"d":"2.50"},4.3638626834381595,6.772,{"$nulls":5},{"$f":"AE452*'III. GDP shares, 1310-2018'!C454","v":0.770302195637325},{"$f":"AF452*'III. GDP shares, 1310-2018'!D454","v":0.8794760048586161},{"$f":"AG452*'III. GDP shares, 1310-2018'!E454","v":0.10863854969195257},{"$f":"AH452*'III. GDP shares, 1310-2018'!F454","v":0.9116206461827434},{"$f":"AI452*'III. GDP shares, 1310-2018'!G454","v":1.925216392018474},{"$f":"AJ452*'III. GDP shares, 1310-2018'!H454","v":0},{"$f":"AK452*'III. GDP shares, 1310-2018'!I454","v":0},{"$f":"AL452*'III. GDP shares, 1310-2018'!J454","v":0},null,null,{"$f":"U452*'III. GDP shares, 1310-2018'!C454","v":1.383886230367615},{"$f":"V452*'III. GDP shares, 1310-2018'!D454","v":-1.5326951031664109},{"$f":"W452*'III. GDP shares, 1310-2018'!E454","v":-0.02435921064087372},{"$f":"X452*'III. GDP shares, 1310-2018'!F454","v":1.299452551890168},{"$f":"Y452*'III. GDP shares, 1310-2018'!G454","v":-1.0717121026440821},{"$f":"Z452*'III. GDP shares, 1310-2018'!H454","v":0},{"$f":"AA452*'III. GDP shares, 1310-2018'!I454","v":0},{"$f":"AB452*'III. GDP shares, 1310-2018'!J454","v":0},null,null,4.176768931293841,4.595253788389112,null,0.054572365806416334,0.3660605833146889,{"$f":"AVERAGE(BL449:BL455)","v":1.246528771041173},1.1734466665275378,null,null,2.1285103145576674]
[{"$f":"'[1]Nominal weighted'!B453","v":1759},null,-7.245720037753607,16.630370853904854,15.091036521949611,7.802313986389706,5.421726051081513,null,null,-0.6172839506172781,null,4.720897843097986,1.9735881558491022,-0.24166812358802808,-0.43456185503809647,{"$f":"AVERAGE(G450:G456)","v":5.487137919494913},{"$nulls":4},11.245720037753607,-13,-12.591036521949611,-3.4346515125951513,1.3357739489184877,null,null,0.6172839506172781,null,null,4,3.630370853904854,{"v":2.5,"d":"2.50"},4.367662473794554,6.7575,{"$nulls":5},{"$f":"AE453*'III. GDP shares, 1310-2018'!C455","v":0.7684564184887519},{"$f":"AF453*'III. GDP shares, 1310-2018'!D455","v":0.9870667538051742},{"$f":"AG453*'III. GDP shares, 1310-2018'!E455","v":0.1080447573265715},{"$f":"AH453*'III. GDP shares, 1310-2018'!F455","v":0.9119628833333117},{"$f":"AI453*'III. GDP shares, 1310-2018'!G455","v":1.9189793627745806},{"$f":"AJ453*'III. GDP shares, 1310-2018'!H455","v":0},{"$f":"AK453*'III. GDP shares, 1310-2018'!I455","v":0},{"$f":"AL453*'III. GDP shares, 1310-2018'!J455","v":0},null,null,{"$f":"U453*'III. GDP shares, 1310-2018'!C455","v":2.160461435884832},{"$f":"V453*'III. GDP shares, 1310-2018'!D455","v":-3.5345887006737096},{"$f":"W453*'III. GDP shares, 1310-2018'!E455","v":-0.5441581942016178},{"$f":"X453*'III. GDP shares, 1310-2018'!F455","v":-0.7171512715244512},{"$f":"Y453*'III. GDP shares, 1310-2018'!G455","v":0.3793300246106525},{"$f":"Z453*'III. GDP shares, 1310-2018'!H455","v":0},{"$f":"AA453*'III. GDP shares, 1310-2018'!I455","v":0},{"$f":"AB453*'III. GDP shares, 1310-2018'!J455","v":0},null,null,{"$f":"AVERAGE(AE453:AL453)","v":4.251106665539881},{"$f":"SUM(AO453:AV453)","v":4.694510175728389},null,{"$f":"SUM(AY453:BF453)","v":-2.256106705904294},{"$f":"AVERAGE(U453:AB453)","v":-2.6378183495425653},{"$f":"AVERAGE(BL450:BL456)","v":1.7029299873000208},1.577910017015926,null,null,{"$f":"((AO453+SUM(AQ453:AV453))-((AY453+(SUM(BA453:BF453)))))","v":2.4289614271538005}]
[{"$f":"'[1]Nominal weighted'!B454","v":1760},null,14.17022630070762,11.726033583022721,7.013274639618416,-3.2204134220014593,7.376220557617766,null,null,1.8404907975460092,null,2.593837183882808,2.737588375725394,2.432421606425859,2.2231351917025575,{"$f":"AVERAGE(G451:G457)","v":6.1146606476775975},{"$nulls":4},-10.17022630070762,-8.045977011494259,-4.513274639618416,7.591875686152408,0.18711277571556692,null,null,-1.8404907975460092,null,null,4,3.6800565715284623,{"v":2.5,"d":"2.50"},4.371462264150948,7.5633333333333335,{"$nulls":5},{"$f":"AE454*'III. GDP shares, 1310-2018'!C456","v":0.766632458886203},{"$f":"AF454*'III. GDP shares, 1310-2018'!D456","v":1.0046317406620617},{"$f":"AG454*'III. GDP shares, 1310-2018'!E456","v":0.10745798373497395},{"$f":"AH454*'III. GDP shares, 1310-2018'!F456","v":0.9123096768546956},{"$f":"AI454*'III. GDP shares, 1310-2018'!G456","v":2.1454790378503037},{"$f":"AJ454*'III. GDP shares, 1310-2018'!H456","v":0},{"$f":"AK454*'III. GDP shares, 1310-2018'!I456","v":0},{"$f":"AL454*'III. GDP shares, 1310-2018'!J456","v":0},null,null,{"$f":"U454*'III. GDP shares, 1310-2018'!C456","v":-1.9492063990851538},{"$f":"V454*'III. GDP shares, 1310-2018'!D456","v":-2.1964998997358194},{"$f":"W454*'III. GDP shares, 1310-2018'!E456","v":-0.19399495712623446},{"$f":"X454*'III. GDP shares, 1310-2018'!F456","v":1.58439927773229},{"$f":"Y454*'III. GDP shares, 1310-2018'!G456","v":0.05307799092266208},{"$f":"Z454*'III. GDP shares, 1310-2018'!H456","v":0},{"$f":"AA454*'III. GDP shares, 1310-2018'!I456","v":0},{"$f":"AB454*'III. GDP shares, 1310-2018'!J456","v":0},null,null,4.422970433802549,4.936510897988238,null,-2.702223987292255,-2.7984967145830546,{"$f":"AVERAGE(BL451:BL457)","v":1.082869249608174},0.8261416543024039,null,null,4.437603244882613]
[{"$f":"'[1]Nominal weighted'!B455","v":1761},null,13.782052929956189,5.169992407224912,-3.7418288368322576,-9.545832099114719,11.826147233246598,null,null,0,null,0.7125111980049886,5.361624482451241,3.636673254798874,2.3460232043237292,{"$f":"AVERAGE(G452:G458)","v":7.486864507519248},{"$nulls":4},-9.782052929956189,-1.25,6.241828836832258,13.921094153622061,-5.436147233246597,null,null,0,null,null,4,3.919992407224912,{"v":2.5,"d":"2.50"},4.375262054507343,6.390000000000001,{"$nulls":5},{"$f":"AE455*'III. GDP shares, 1310-2018'!C457","v":0.7648299322692298},{"$f":"AF455*'III. GDP shares, 1310-2018'!D457","v":1.074402215154782},{"$f":"AG455*'III. GDP shares, 1310-2018'!E457","v":0.1068781052028433},{"$f":"AH455*'III. GDP shares, 1310-2018'!F457","v":0.9126609464353876},{"$f":"AI455*'III. GDP shares, 1310-2018'!G457","v":1.810688447934097},{"$f":"AJ455*'III. GDP shares, 1310-2018'!H457","v":0},{"$f":"AK455*'III. GDP shares, 1310-2018'!I457","v":0},{"$f":"AL455*'III. GDP shares, 1310-2018'!J457","v":0},null,null,{"$f":"U455*'III. GDP shares, 1310-2018'!C457","v":-1.8704017199681031},{"$f":"V455*'III. GDP shares, 1310-2018'!D457","v":-0.34260341077911227},{"$f":"W455*'III. GDP shares, 1310-2018'!E457","v":0.26684593563243963},{"$f":"X455*'III. GDP shares, 1310-2018'!F457","v":2.903880683574614},{"$f":"Y455*'III. GDP shares, 1310-2018'!G457","v":-1.540402033882397},{"$f":"Z455*'III. GDP shares, 1310-2018'!H457","v":0},{"$f":"AA455*'III. GDP shares, 1310-2018'!I457","v":0},{"$f":"AB455*'III. GDP shares, 1310-2018'!J457","v":0},null,null,4.237050892346451,4.66945964699634,null,-0.5826805454225592,0.6157871378752553,{"$f":"AVERAGE(BL452:BL458)","v":0.2804079803971607},0.19737439886044036,null,null,3.8351345664850047]
[{"$f":"'[1]Nominal weighted'!B456","v":1762},null,8.0252774711675,0.17458805754713325,-12.919381436584711,2.36080107295105,6.0070646865903115,null,null,0,null,0.6469305015734547,3.793749053395957,4.534821747061059,3.8453308192346713,{"$f":"AVERAGE(G453:G459)","v":6.093101072925533},{"$nulls":4},-4.025277471167501,3.797468354430393,15.419381436584711,2.0182607719126873,0.302935313409689,null,null,0,null,null,4,3.972056411977526,{"v":2.5,"d":"2.50"},4.379061844863737,6.3100000000000005,{"$nulls":5},{"$f":"AE456*'III. GDP shares, 1310-2018'!C458","v":0.7630484630623787},{"$f":"AF456*'III. GDP shares, 1310-2018'!D458","v":1.0929477630762834},{"$f":"AG456*'III. GDP shares, 1310-2018'!E458","v":0.10630500090636452},{"$f":"AH456*'III. GDP shares, 1310-2018'!F458","v":0.9130166136403053},{"$f":"AI456*'III. GDP shares, 1310-2018'!G458","v":1.786113458144901},{"$f":"AJ456*'III. GDP shares, 1310-2018'!H458","v":0},{"$f":"AK456*'III. GDP shares, 1310-2018'!I458","v":0},{"$f":"AL456*'III. GDP shares, 1310-2018'!J458","v":0},null,null,{"$f":"U456*'III. GDP shares, 1310-2018'!C458","v":-0.7678704469434949},{"$f":"V456*'III. GDP shares, 1310-2018'!D458","v":1.0449082572977204},{"$f":"W456*'III. GDP shares, 1310-2018'!E458","v":0.6556629430366873},{"$f":"X456*'III. GDP shares, 1310-2018'!F458","v":0.42079917587282434},{"$f":"Y456*'III. GDP shares, 1310-2018'!G458","v":0.08574910304728826},{"$f":"Z456*'III. GDP shares, 1310-2018'!H458","v":0},{"$f":"AA456*'III. GDP shares, 1310-2018'!I458","v":0},{"$f":"AB456*'III. GDP shares, 1310-2018'!J458","v":0},null,null,4.232223651368253,4.661431298830233,null,1.4392490323110254,2.9187947341949965,{"$f":"AVERAGE(BL453:BL459)","v":0.7183696319323261},0.3045764669977692,null,null,3.1741427607406445]
[{"$f":"'[1]Nominal weighted'!B457","v":1763},null,{"$f":"AE457-U457","v":-9.34956359150705},{"$f":"AF457-V457","v":0.9204420776973854},{"$f":"AG457-W457","v":11.366276761367411},{"$f":"AH457-X457","v":15.659217559170973},{"$f":"AI457-Y457","v":6.06378056913336},null,null,{"$f":"AL457-AB457","v":0},null,1.7106411394135868,1.8975359904680165,1.4304018225417436,4.034725665196399,{"$f":"AVERAGE(G454:G460)","v":5.753364485079251},{"$nulls":4},13.34956359150705,2.439024390243901,-8.866276761367411,-11.276355923950842,-0.40378056913336,null,null,0,null,null,4,3.3594664679412864,{"v":2.5,"d":"2.50"},4.382861635220132,5.66,{"$nulls":5},{"$f":"AE457*'III. GDP shares, 1310-2018'!C459","v":0.7612876844143057},{"$f":"AF457*'III. GDP shares, 1310-2018'!D459","v":0.9279623026952725},{"$f":"AG457*'III. GDP shares, 1310-2018'!E459","v":0.1057385528282962},{"$f":"AH457*'III. GDP shares, 1310-2018'!F459","v":0.9133766018563055},{"$f":"AI457*'III. GDP shares, 1310-2018'!G459","v":1.6004341854607862},{"$f":"AJ457*'III. GDP shares, 1310-2018'!H459","v":0},{"$f":"AK457*'III. GDP shares, 1310-2018'!I459","v":0},{"$f":"AL457*'III. GDP shares, 1310-2018'!J459","v":0},null,null,{"$f":"U457*'III. GDP shares, 1310-2018'!C459","v":2.540714588629981},{"$f":"V457*'III. GDP shares, 1310-2018'!D459","v":0.6737149220267852},{"$f":"W457*'III. GDP shares, 1310-2018'!E459","v":-0.3750029094888571},{"$f":"X457*'III. GDP shares, 1310-2018'!F459","v":-2.349962310554013},{"$f":"Y457*'III. GDP shares, 1310-2018'!G459","v":-0.11417389156640313},{"$f":"Z457*'III. GDP shares, 1310-2018'!H459","v":0},{"$f":"AA457*'III. GDP shares, 1310-2018'!I459","v":0},{"$f":"AB457*'III. GDP shares, 1310-2018'!J459","v":0},null,null,3.980465620632284,4.308799327254967,null,0.3752903990474933,-0.7929708787834437,{"$f":"AVERAGE(BL454:BL460)","v":1.2001194621800466},0.961461509422142,null,null,3.679261547538985]
[{"$f":"'[1]Nominal weighted'!B458","v":1764},null,-11.20849561710362,-5.998414933759946,5.5867788050830445,5.222598863628841,5.171336553827899,null,null,0,null,0.8694721469968678,-1.5058939469579948,-0.4071510401063634,4.245234013075683,{"$f":"AVERAGE(G455:G461)","v":5.316578881179019},{"$nulls":4},15.20849561710362,9.523809523809533,-3.086778805083044,-0.8359374380523146,1.4519967795054347,null,null,0,null,null,4,3.525394590049586,{"v":2.5,"d":"2.50"},4.386661425576526,6.623333333333334,{"$nulls":5},{"$f":"AE458*'III. GDP shares, 1310-2018'!C460","v":0.7595472379459273},{"$f":"AF458*'III. GDP shares, 1310-2018'!D460","v":0.9775029952683127},{"$f":"AG458*'III. GDP shares, 1310-2018'!E460","v":0.10517864567694997},{"$f":"AH458*'III. GDP shares, 1310-2018'!F460","v":0.9137408362395913},{"$f":"AI458*'III. GDP shares, 1310-2018'!G460","v":1.870873922207016},{"$f":"AJ458*'III. GDP shares, 1310-2018'!H460","v":0},{"$f":"AK458*'III. GDP shares, 1310-2018'!I460","v":0},{"$f":"AL458*'III. GDP shares, 1310-2018'!J460","v":0},null,null,{"$f":"U458*'III. GDP shares, 1310-2018'!C460","v":2.887892709820949},{"$f":"V458*'III. GDP shares, 1310-2018'!D460","v":2.6407121523828514},{"$f":"W458*'III. GDP shares, 1310-2018'!E460","v":-0.1298652856891794},{"$f":"X458*'III. GDP shares, 1310-2018'!F460","v":-0.17412562757553496},{"$f":"Y458*'III. GDP shares, 1310-2018'!G460","v":0.4101413552952121},{"$f":"Z458*'III. GDP shares, 1310-2018'!H460","v":0},{"$f":"AA458*'III. GDP shares, 1310-2018'!I460","v":0},{"$f":"AB458*'III. GDP shares, 1310-2018'!J460","v":0},null,null,4.20707786979189,4.626843637337798,null,5.634755304234298,3.7102642795472054,{"$f":"AVERAGE(BL455:BL461)","v":2.3817158288938094},2.0078578025548874,null,null,0.6552974902180382]
[{"$f":"'[1]Nominal weighted'!B459","v":1765},null,-3.645263944452852,-2.0667686718653626,9.347595774825905,8.638629773618307,0.785431858981287,null,null,0,null,0.9087707881595966,-1.3906746198234388,1.5593991660515125,6.281316996787181,{"$f":"AVERAGE(G456:G462)","v":2.17470856131641},{"$nulls":4},7.645263944452852,5.43478260869567,-6.847595774825904,-4.2481685576853865,4.714568141018713,null,null,0,null,null,4,3.3680139368303075,{"v":2.5,"d":"2.50"},4.390461215932921,5.5,{"$nulls":5},{"$f":"AE459*'III. GDP shares, 1310-2018'!C461","v":0.7578267735072453},{"$f":"AF459*'III. GDP shares, 1310-2018'!D461","v":0.9373666429839178},{"$f":"AG459*'III. GDP shares, 1310-2018'!E461","v":0.10462516680796038},{"$f":"AH459*'III. GDP shares, 1310-2018'!F461","v":0.9141092436649251},{"$f":"AI459*'III. GDP shares, 1310-2018'!G461","v":1.5519647755016317},{"$f":"AJ459*'III. GDP shares, 1310-2018'!H461","v":0},{"$f":"AK459*'III. GDP shares, 1310-2018'!I461","v":0},{"$f":"AL459*'III. GDP shares, 1310-2018'!J461","v":0},null,null,{"$f":"U459*'III. GDP shares, 1310-2018'!C461","v":1.448446426908995},{"$f":"V459*'III. GDP shares, 1310-2018'!D461","v":1.5125780429682092},{"$f":"W459*'III. GDP shares, 1310-2018'!E461","v":-0.286572340069858},{"$f":"X459*'III. GDP shares, 1310-2018'!F461","v":-0.8844834189935445},{"$f":"Y459*'III. GDP shares, 1310-2018'!G461","v":1.3303352157387731},{"$f":"Z459*'III. GDP shares, 1310-2018'!H461","v":0},{"$f":"AA459*'III. GDP shares, 1310-2018'!I461","v":0},{"$f":"AB459*'III. GDP shares, 1310-2018'!J461","v":0},null,null,3.9516950305526457,4.26589260246568,null,3.120303926552574,1.1164750602759907,{"$f":"AVERAGE(BL456:BL462)","v":2.661989897360317},1.8025624817390988,null,null,1.720800075897397]
[{"$f":"'[1]Nominal weighted'!B460","v":1766},null,0.20025442712731767,3.356879413409274,-6.639902949685601,9.128077908121803,3.0435699361575295,null,null,0,null,1.0226689283320103,1.0352975168600422,3.3358746203907472,6.270780116844987,{"$f":"AVERAGE(G457:G463)","v":2.3464018940781166},{"$nulls":4},3.7997455728726823,0,9.1399029496856,-4.733816901832487,3.55643006384247,null,null,0,null,null,4,3.356879413409274,{"v":2.5,"d":"2.50"},4.394261006289315,6.6,{"$nulls":5},{"$f":"AE460*'III. GDP shares, 1310-2018'!C462","v":0.7561259489425},{"$f":"AF460*'III. GDP shares, 1310-2018'!D462","v":0.937717665885441},{"$f":"AG460*'III. GDP shares, 1310-2018'!E462","v":0.10407800614873404},{"$f":"AH460*'III. GDP shares, 1310-2018'!F462","v":0.9144817526765843},{"$f":"AI460*'III. GDP shares, 1310-2018'!G462","v":1.8604544166447081},{"$f":"AJ460*'III. GDP shares, 1310-2018'!H462","v":0},{"$f":"AK460*'III. GDP shares, 1310-2018'!I462","v":0},{"$f":"AL460*'III. GDP shares, 1310-2018'!J462","v":0},null,null,{"$f":"U460*'III. GDP shares, 1310-2018'!C462","v":0.718271556757105},{"$f":"V460*'III. GDP shares, 1310-2018'!D462","v":0},{"$f":"W460*'III. GDP shares, 1310-2018'!E462","v":0.38050515015848413},{"$f":"X460*'III. GDP shares, 1310-2018'!F462","v":-0.9851461192318609},{"$f":"Y460*'III. GDP shares, 1310-2018'!G462","v":1.002511518146022},{"$f":"Z460*'III. GDP shares, 1310-2018'!H462","v":0},{"$f":"AA460*'III. GDP shares, 1310-2018'!I462","v":0},{"$f":"AB460*'III. GDP shares, 1310-2018'!J462","v":0},null,null,4.170228083939717,4.5728577902979675,null,1.1161421058297503,1.9603769474280444,{"$f":"AVERAGE(BL457:BL463)","v":1.849528490730228},1.0629660997590509,null,null,2.5189980185827765]
[{"$f":"'[1]Nominal weighted'!B461","v":1767},null,8.28204335379059,-12.09797597895936,-5.849595398918334,-1.7468549868464702,4.318721330316154,null,null,0,null,1.5319260733861668,0.8126306388679314,1.8341327051400111,1.7723317528280984,{"$f":"AVERAGE(G458:G464)","v":3.2598702747692547},{"$nulls":4},-4.2820433537905895,15.463917525773212,8.349595398918334,6.14491578349218,1.4812786696838458,null,null,0,null,null,4,3.3659415468138527,{"v":2.5,"d":"2.50"},4.3980607966457095,5.8,{"$nulls":5},{"$f":"AE461*'III. GDP shares, 1310-2018'!C463","v":0.7544444298633218},{"$f":"AF461*'III. GDP shares, 1310-2018'!D463","v":0.9436690704161249},{"$f":"AG461*'III. GDP shares, 1310-2018'!E463","v":0.10353705612547122},{"$f":"AH461*'III. GDP shares, 1310-2018'!F463","v":0.914858293440986},{"$f":"AI461*'III. GDP shares, 1310-2018'!G463","v":1.633291166372469},{"$f":"AJ461*'III. GDP shares, 1310-2018'!H463","v":0},{"$f":"AK461*'III. GDP shares, 1310-2018'!I463","v":0},{"$f":"AL461*'III. GDP shares, 1310-2018'!J463","v":0},null,null,{"$f":"U461*'III. GDP shares, 1310-2018'!C463","v":-0.8076409391751419},{"$f":"V461*'III. GDP shares, 1310-2018'!D463","v":4.335434966287921},{"$f":"W461*'III. GDP shares, 1310-2018'!E463","v":0.3457970109771135},{"$f":"X461*'III. GDP shares, 1310-2018'!F463","v":1.2782286164192602},{"$f":"Y461*'III. GDP shares, 1310-2018'!G463","v":0.4171309251949289},{"$f":"Z461*'III. GDP shares, 1310-2018'!H463","v":0},{"$f":"AA461*'III. GDP shares, 1310-2018'!I463","v":0},{"$f":"AB461*'III. GDP shares, 1310-2018'!J463","v":0},null,null,4.012800468691912,4.3498000162183725,null,5.568950579704082,4.526277337346164,{"$f":"AVERAGE(BL458:BL464)","v":2.6969952188891604},1.9465410179934162,null,null,2.172615332386087]
[{"$f":"'[1]Nominal weighted'!B462","v":1768},null,14.057143418095292,5.976527697166805,10.024022606272872,4.706748786865766,-10.166945005791671,null,null,0,null,3.125326037294214,1.3088417919375008,-1.075765376322135,0.504338306665068,{"$f":"AVERAGE(G459:G465)","v":2.9610023139224744},{"$nulls":4},-10.057143418095292,-2.6785714285714306,-7.524022606272873,-0.304888199863662,15.63694500579167,null,null,0,null,null,4,3.297956268595375,{"v":2.5,"d":"2.50"},4.401860587002104,5.47,{"$nulls":5},{"$f":"AE462*'III. GDP shares, 1310-2018'!C464","v":0.7527818894295605},{"$f":"AF462*'III. GDP shares, 1310-2018'!D464","v":0.9279219177200929},{"$f":"AG462*'III. GDP shares, 1310-2018'!E464","v":0.10300221159265861},{"$f":"AH462*'III. GDP shares, 1310-2018'!F464","v":0.9152387977009155},{"$f":"AI462*'III. GDP shares, 1310-2018'!G464","v":1.5388205944348723},{"$f":"AJ462*'III. GDP shares, 1310-2018'!H464","v":0},{"$f":"AK462*'III. GDP shares, 1310-2018'!I464","v":0},{"$f":"AL462*'III. GDP shares, 1310-2018'!J464","v":0},null,null,{"$f":"U462*'III. GDP shares, 1310-2018'!C464","v":-1.8927088561344605},{"$f":"V462*'III. GDP shares, 1310-2018'!D464","v":-0.7536501197479027},{"$f":"W462*'III. GDP shares, 1310-2018'!E464","v":-0.3099963874077061},{"$f":"X462*'III. GDP shares, 1310-2018'!F464","v":-0.06339262772210125},{"$f":"Y462*'III. GDP shares, 1310-2018'!G464","v":4.398985924855165},{"$f":"Z462*'III. GDP shares, 1310-2018'!H464","v":0},{"$f":"AA462*'III. GDP shares, 1310-2018'!I464","v":0},{"$f":"AB462*'III. GDP shares, 1310-2018'!J464","v":0},null,null,3.9339633711194955,4.2377654108781,null,1.3792379338429939,-0.8212801078352646,{"$f":"AVERAGE(BL459:BL465)","v":2.811579134032555},2.3949917764604285,null,null,1.1769554395671098]
[{"$f":"'[1]Nominal weighted'!B463","v":1769},null,8.822564452374394,17.1563930143315,-0.4840532562100677,2.2870429133556915,7.208918015922257,null,null,0,null,2.3232941082887284,1.4010352709241796,-2.003450147365466,1.392544027662917,{"$f":"AVERAGE(G460:G466)","v":5.0591212745445615},{"$nulls":4},-4.822564452374395,-13.76146788990826,2.9840532562100677,2.118617464002807,-0.06891801592225741,null,null,0,null,null,4,3.3949251244232386,{"v":2.5,"d":"2.50"},4.405660377358498,7.14,{"$nulls":5},{"$f":"AE463*'III. GDP shares, 1310-2018'!C465","v":0.7511380081374974},{"$f":"AF463*'III. GDP shares, 1310-2018'!D465","v":0.9585775470491238},{"$f":"AG463*'III. GDP shares, 1310-2018'!E465","v":0.10247336976493612},{"$f":"AH463*'III. GDP shares, 1310-2018'!F465","v":0.9156231987312967},{"$f":"AI463*'III. GDP shares, 1310-2018'!G465","v":2.0066349503947642},{"$f":"AJ463*'III. GDP shares, 1310-2018'!H465","v":0},{"$f":"AK463*'III. GDP shares, 1310-2018'!I465","v":0},{"$f":"AL463*'III. GDP shares, 1310-2018'!J465","v":0},null,null,{"$f":"U463*'III. GDP shares, 1310-2018'!C465","v":-0.905602864217801},{"$f":"V463*'III. GDP shares, 1310-2018'!D465","v":-3.8856333056666825},{"$f":"W463*'III. GDP shares, 1310-2018'!E465","v":0.12231439708875037},{"$f":"X463*'III. GDP shares, 1310-2018'!F465","v":0.44030976814452427},{"$f":"Y463*'III. GDP shares, 1310-2018'!G465","v":-0.019368809448384396},{"$f":"Z463*'III. GDP shares, 1310-2018'!H465","v":0},{"$f":"AA463*'III. GDP shares, 1310-2018'!I465","v":0},{"$f":"AB463*'III. GDP shares, 1310-2018'!J465","v":0},null,null,4.288117100356347,4.734447074077618,null,-4.247980814099594,-2.2583799396653395,{"$f":"AVERAGE(BL460:BL466)","v":2.3478242374146907},2.2565680832203543,null,null,4.138217035461405]
[{"$f":"'[1]Nominal weighted'!B464","v":1770},null,-5.784763576127951,-0.638226068247389,0.8540833546122584,-15.82992098894725,12.458059233971328,null,null,0,null,3.574973734152889,1.3594979958533084,0.31115836938997254,2.715932875159512,{"$f":"AVERAGE(G461:G467)","v":5.5202638134159985},{"$nulls":4},9.78476357612795,4.255319148936167,1.6459166453877416,20.239381156662144,-3.5730592339713283,null,null,0,null,null,4,3.6170930806887776,{"v":2.5,"d":"2.50"},4.409460167714893,8.885,{"$nulls":5},{"$f":"AE464*'III. GDP shares, 1310-2018'!C466","v":0.7495124736151468},{"$f":"AF464*'III. GDP shares, 1310-2018'!D466","v":1.024860798565185},{"$f":"AG464*'III. GDP shares, 1310-2018'!E466","v":0.10195043015124479},{"$f":"AH464*'III. GDP shares, 1310-2018'!F466","v":0.9160114312964428},{"$f":"AI464*'III. GDP shares, 1310-2018'!G466","v":2.4946031945049665},{"$f":"AJ464*'III. GDP shares, 1310-2018'!H466","v":0},{"$f":"AK464*'III. GDP shares, 1310-2018'!I466","v":0},{"$f":"AL464*'III. GDP shares, 1310-2018'!J466","v":0},null,null,{"$f":"U464*'III. GDP shares, 1310-2018'!C466","v":1.8334505879207625},{"$f":"V464*'III. GDP shares, 1310-2018'!D466","v":1.2056946514348443},{"$f":"W464*'III. GDP shares, 1310-2018'!E466","v":0.06712076399614963},{"$f":"X464*'III. GDP shares, 1310-2018'!F466","v":4.204483949670429},{"$f":"Y464*'III. GDP shares, 1310-2018'!G466","v":-1.003192456862166},{"$f":"Z464*'III. GDP shares, 1310-2018'!H466","v":0},{"$f":"AA464*'III. GDP shares, 1310-2018'!I466","v":0},{"$f":"AB464*'III. GDP shares, 1310-2018'!J466","v":0},null,null,4.682310649680734,5.286938328132986,null,6.307557496160019,5.392053548857112,{"$f":"AVERAGE(BL461:BL467)","v":1.6704930832549947},1.3982701505913389,null,null,-0.8397853151573749]
[{"$f":"'[1]Nominal weighted'!B465","v":1771},null,-0.05469586974729257,-2.5249368622729604,-14.78250776515198,-3.6533552595123675,3.0792608279004368,null,null,0,null,0.26347795040592914,3.7812806629322844,2.4730047424120194,4.047524517275539,{"$f":"AVERAGE(G462:G468)","v":6.299216120103184},{"$nulls":4},4.054695869747293,5.965292841648591,17.28250776515198,8.066615217583655,5.72740583876623,null,null,0,null,null,4,3.44035597937563,{"v":2.5,"d":"2.50"},4.413259958071287,8.806666666666667,{"$nulls":5},{"$f":"AE465*'III. GDP shares, 1310-2018'!C467","v":0.7479049804243731},{"$f":"AF465*'III. GDP shares, 1310-2018'!D467","v":0.9781261104227843},{"$f":"AG465*'III. GDP shares, 1310-2018'!E467","v":0.10143329449116724},{"$f":"AH465*'III. GDP shares, 1310-2018'!F467","v":0.9164034316087306},{"$f":"AI465*'III. GDP shares, 1310-2018'!G467","v":2.470209569882255},{"$f":"AJ465*'III. GDP shares, 1310-2018'!H467","v":0},{"$f":"AK465*'III. GDP shares, 1310-2018'!I467","v":0},{"$f":"AL465*'III. GDP shares, 1310-2018'!J467","v":0},null,null,{"$f":"U465*'III. GDP shares, 1310-2018'!C467","v":0.7581318087725338},{"$f":"V465*'III. GDP shares, 1310-2018'!D467","v":1.6959898102735111},{"$f":"W465*'III. GDP shares, 1310-2018'!E467","v":0.7012086798754181},{"$f":"X465*'III. GDP shares, 1310-2018'!F467","v":1.675014374202305},{"$f":"Y465*'III. GDP shares, 1310-2018'!G467","v":1.6064980371142896},{"$f":"Z465*'III. GDP shares, 1310-2018'!H467","v":0},{"$f":"AA465*'III. GDP shares, 1310-2018'!I467","v":0},{"$f":"AB465*'III. GDP shares, 1310-2018'!J467","v":0},null,null,4.632056520822717,5.21407738682931,null,6.436842710238057,6.849419588816292,{"$f":"AVERAGE(BL462:BL468)","v":1.0639165977813583},0.8584433713366212,null,null,-0.5049016235580206]
[{"$f":"'[1]Nominal weighted'!B466","v":1772},null,-9.25948744749125,-1.421414318958611,2.853802377522591,14.856069820603249,15.472264583335898,null,null,0,null,-0.7457325369037429,3.5373954126993543,1.6233904323925077,4.25327190152136,{"$f":"AVERAGE(G463:G469)","v":7.916220905630405},{"$nulls":4},13.25948744749125,4.810644831115653,-0.3538023775225911,-10.439010072175567,-6.392264583335898,null,null,0,null,null,4,3.3892305121570416,{"v":2.5,"d":"2.50"},4.417059748427682,9.08,{"$nulls":5},{"$f":"AE466*'III. GDP shares, 1310-2018'!C468","v":0.7463152298695612},{"$f":"AF466*'III. GDP shares, 1310-2018'!D468","v":0.9668463478043215},{"$f":"AG466*'III. GDP shares, 1310-2018'!E468","v":0.1009218666933763},{"$f":"AH466*'III. GDP shares, 1310-2018'!F468","v":0.916799137288643},{"$f":"AI466*'III. GDP shares, 1310-2018'!G468","v":2.5444301993204412},{"$f":"AJ466*'III. GDP shares, 1310-2018'!H468","v":0},{"$f":"AK466*'III. GDP shares, 1310-2018'!I468","v":0},{"$f":"AL466*'III. GDP shares, 1310-2018'!J468","v":0},null,null,{"$f":"U466*'III. GDP shares, 1310-2018'!C468","v":2.473939355581748},{"$f":"V466*'III. GDP shares, 1310-2018'!D468","v":1.372333445265641},{"$f":"W466*'III. GDP shares, 1310-2018'!E468","v":-0.014282558552053813},{"$f":"X466*'III. GDP shares, 1310-2018'!F468","v":-2.1667072608027924},{"$f":"Y466*'III. GDP shares, 1310-2018'!G468","v":-1.7912633312650172},{"$f":"Z466*'III. GDP shares, 1310-2018'!H468","v":0},{"$f":"AA466*'III. GDP shares, 1310-2018'!I468","v":0},{"$f":"AB466*'III. GDP shares, 1310-2018'!J468","v":0},null,null,4.677258052116945,5.275312780976344,null,-0.12598034977247408,0.14750920759547448,{"$f":"AVERAGE(BL463:BL469)","v":0.8723483551330642},0.9129488048100532,null,null,5.806780228210137]
[{"$f":"'[1]Nominal weighted'!B467","v":1773},null,8.962011808176443,3.066118487913176,9.562356667602467,18.391799840597965,6.271567708257584,null,null,0,null,{"$f":"AVERAGE(C464:C470)","v":1.0659119545975437},2.5058804206611773,1.9387487574047904,4.873897378738471,{"$f":"AVERAGE(G464:G470)","v":7.094097261765045},{"$nulls":4},-4.9620118081764435,0.3906249999999858,-7.062356667602467,-13.970940301813888,1.3184322917424154,null,null,0,null,null,4,3.4567434879131618,{"v":2.5,"d":"2.50"},4.420859538784076,7.59,{"$nulls":5},{"$f":"AE467*'III. GDP shares, 1310-2018'!C469","v":0.7447429298125865},{"$f":"AF467*'III. GDP shares, 1310-2018'!D469","v":0.9893898859826955},{"$f":"AG467*'III. GDP shares, 1310-2018'!E469","v":0.10041605277611029},{"$f":"AH467*'III. GDP shares, 1310-2018'!F469","v":0.9171984873261277},{"$f":"AI467*'III. GDP shares, 1310-2018'!G469","v":2.124873638515855},{"$f":"AJ467*'III. GDP shares, 1310-2018'!H469","v":0},{"$f":"AK467*'III. GDP shares, 1310-2018'!I469","v":0},{"$f":"AL467*'III. GDP shares, 1310-2018'!J469","v":0},null,null,{"$f":"U467*'III. GDP shares, 1310-2018'!C469","v":-0.9238558029464936},{"$f":"V467*'III. GDP shares, 1310-2018'!D469","v":0.11180477393342682},{"$f":"W467*'III. GDP shares, 1310-2018'!E469","v":-0.2836695919430735},{"$f":"X467*'III. GDP shares, 1310-2018'!F469","v":-2.8985597029105703},{"$f":"Y467*'III. GDP shares, 1310-2018'!G469","v":0.3691043505785907},{"$f":"Z467*'III. GDP shares, 1310-2018'!H469","v":0},{"$f":"AA467*'III. GDP shares, 1310-2018'!I469","v":0},{"$f":"AB467*'III. GDP shares, 1310-2018'!J469","v":0},null,null,4.3935206053394475,4.876620994413375,null,-3.62517597328812,-4.047708580975066,{"$f":"AVERAGE(BL464:BL470)","v":0.8501735491696031},0.727218743783136,null,null,7.624211855652226]
[{"$f":"'[1]Nominal weighted'!B468","v":1774},null,-14.898427132438137,4.854502690593467,9.283329212235994,7.574286507965717,9.77138747712645,null,null,0,null,-0.07451596917026215,2.5207462183760527,1.6056438848166668,7.128241428866465,{"$f":"AVERAGE(G465:G471)","v":6.293030192950753},{"$nulls":4},18.898427132438137,-1.4591439688716008,-6.783329212235994,-3.149627178825247,-3.0213874771264493,null,null,0,null,null,4,3.395358721721866,{"v":2.5,"d":"2.50"},4.4246593291404706,6.75,{"$nulls":5},{"$f":"AE468*'III. GDP shares, 1310-2018'!C470","v":0.7431877944938451},{"$f":"AF468*'III. GDP shares, 1310-2018'!D470","v":0.9750108903528951},{"$f":"AG468*'III. GDP shares, 1310-2018'!E470","v":0.09991576080959803},{"$f":"AH468*'III. GDP shares, 1310-2018'!F470","v":0.9176014220432209},{"$f":"AI468*'III. GDP shares, 1310-2018'!G470","v":1.8879299258850677},{"$f":"AJ468*'III. GDP shares, 1310-2018'!H470","v":0},{"$f":"AK468*'III. GDP shares, 1310-2018'!I470","v":0},{"$f":"AL468*'III. GDP shares, 1310-2018'!J470","v":0},null,null,{"$f":"U468*'III. GDP shares, 1310-2018'!C470","v":3.5112700949898352},{"$f":"V468*'III. GDP shares, 1310-2018'!D470","v":-0.4190076445062869},{"$f":"W468*'III. GDP shares, 1310-2018'!E470","v":-0.27110459962501227},{"$f":"X468*'III. GDP shares, 1310-2018'!F470","v":-0.653180767875626},{"$f":"Y468*'III. GDP shares, 1310-2018'!G470","v":-0.8450619015942828},{"$f":"Z468*'III. GDP shares, 1310-2018'!H470","v":0},{"$f":"AA468*'III. GDP shares, 1310-2018'!I470","v":0},{"$f":"AB468*'III. GDP shares, 1310-2018'!J470","v":0},null,null,4.214003610172467,4.623645793584627,null,1.322915181388627,0.747489882563141,{"$f":"AVERAGE(BL465:BL471)","v":0.7163470246494963},0.6630850134884898,null,null,1.9067120773368178]
[{"$f":"'[1]Nominal weighted'!B469","v":1775},null,6.992670006927593,4.269330945536299,4.076722436136291,6.146980476586511,1.1520884928988915,null,null,0,null,-1.6074803006434484,3.3365580797923875,4.974332942942099,8.212961981510833,{"$f":"AVERAGE(G466:G472)","v":7.147477168043452},{"$nulls":4},-2.992670006927593,-0.8884501480750231,-1.5767224361362908,-1.7185213570896494,4.537911507101109,null,null,0,null,null,4,3.380880797461276,{"v":2.5,"d":"2.50"},4.428459119496861,5.69,{"$nulls":5},{"$f":"AE469*'III. GDP shares, 1310-2018'!C471","v":0.7416495443591143},{"$f":"AF469*'III. GDP shares, 1310-2018'!D471","v":0.9739958775673256},{"$f":"AG469*'III. GDP shares, 1310-2018'!E471","v":0.09942090086035898},{"$f":"AH469*'III. GDP shares, 1310-2018'!F471","v":0.9180078830578887},{"$f":"AI469*'III. GDP shares, 1310-2018'!G471","v":1.5899709621453877},{"$f":"AJ469*'III. GDP shares, 1310-2018'!H471","v":0},{"$f":"AK469*'III. GDP shares, 1310-2018'!I471","v":0},{"$f":"AL469*'III. GDP shares, 1310-2018'!J471","v":0},null,null,{"$f":"U469*'III. GDP shares, 1310-2018'!C471","v":-0.5548780867637593},{"$f":"V469*'III. GDP shares, 1310-2018'!D471","v":-0.25595305882980157},{"$f":"W469*'III. GDP shares, 1310-2018'!E471","v":-0.06270366600296394},{"$f":"X469*'III. GDP shares, 1310-2018'!F471","v":-0.35624493993090756},{"$f":"Y469*'III. GDP shares, 1310-2018'!G471","v":1.2680399868323684},{"$f":"Z469*'III. GDP shares, 1310-2018'!H471","v":0},{"$f":"AA469*'III. GDP shares, 1310-2018'!I471","v":0},{"$f":"AB469*'III. GDP shares, 1310-2018'!J471","v":0},null,null,3.9998679833916277,4.323045167990076,null,0.03826023530493594,-0.43974207352124123,{"$f":"AVERAGE(BL466:BL472)","v":0.1344778039894903},-0.12162065560940201,null,null,3.0548359962880123]
[{"$f":"'[1]Nominal weighted'!B470","v":1776},null,21.504075892883396,9.935788070064259,1.7234550188759115,6.631421253875477,1.454052508864729,null,null,0,null,3.42574017027437,4.968566764882422,5.44128465308175,7.260291640613812,{"$f":"AVERAGE(G467:G473)","v":6.0922719946870485},{"$nulls":4},-17.504075892883396,-6.374501992031867,0.7765449811240884,-2.199856788466665,3.9509474911352704,null,null,0,null,null,4,3.561286078032391,{"v":2.5,"d":"2.50"},4.431564465408812,5.404999999999999,{"$nulls":5},{"$f":"AE470*'III. GDP shares, 1310-2018'!C472","v":0.7401279058920215},{"$f":"AF470*'III. GDP shares, 1310-2018'!D472","v":1.029243127756705},{"$f":"AG470*'III. GDP shares, 1310-2018'!E472","v":0.09893138493730816},{"$f":"AH470*'III. GDP shares, 1310-2018'!F472","v":0.9182739159359422},{"$f":"AI470*'III. GDP shares, 1310-2018'!G472","v":1.5089382117988615},{"$f":"AJ470*'III. GDP shares, 1310-2018'!H472","v":0},{"$f":"AK470*'III. GDP shares, 1310-2018'!I472","v":0},{"$f":"AL470*'III. GDP shares, 1310-2018'!J472","v":0},null,null,{"$f":"U470*'III. GDP shares, 1310-2018'!C472","v":-3.238813758793701},{"$f":"V470*'III. GDP shares, 1310-2018'!D472","v":-1.8422873715877173},{"$f":"W470*'III. GDP shares, 1310-2018'!E472","v":0.030729868179488758},{"$f":"X470*'III. GDP shares, 1310-2018'!F472","v":-0.4558370127325223},{"$f":"Y470*'III. GDP shares, 1310-2018'!G472","v":1.1030038190906297},{"$f":"Z470*'III. GDP shares, 1310-2018'!H472","v":0},{"$f":"AA470*'III. GDP shares, 1310-2018'!I472","v":0},{"$f":"AB470*'III. GDP shares, 1310-2018'!J472","v":0},null,null,3.9795701086882405,4.295514546320838,null,-4.403204455843822,-3.558490366853761,{"$f":"AVERAGE(BL467:BL473)","v":-0.8304543197475951},-0.9999154811269693,null,null,5.827188502820238]
[{"$f":"'[1]Nominal weighted'!B471","v":1777},null,-13.76775904250259,-0.5341654842432626,-1.4776507535046086,-0.049512638051304236,6.8505897522712855,null,null,0,null,4.022603290930763,5.079077995783431,3.8688350497370467,4.932629086549809,{"$f":"AVERAGE(G468:G474)","v":6.379583755476733},{"$nulls":4},17.76775904250259,4.361702127659555,3.9776507535046086,4.4841824493720654,-0.932589752271285,null,null,0,null,null,4,3.8275366434162925,{"v":2.5,"d":"2.50"},4.434669811320761,5.918,{"$nulls":5},{"$f":"AE471*'III. GDP shares, 1310-2018'!C473","v":0.7386226114519114},{"$f":"AF471*'III. GDP shares, 1310-2018'!D473","v":1.109673298429262},{"$f":"AG471*'III. GDP shares, 1310-2018'!E473","v":0.09844712693959765},{"$f":"AH471*'III. GDP shares, 1310-2018'!F473","v":0.9185434791984153},{"$f":"AI471*'III. GDP shares, 1310-2018'!G473","v":1.650644294316561},{"$f":"AJ471*'III. GDP shares, 1310-2018'!H473","v":0},{"$f":"AK471*'III. GDP shares, 1310-2018'!I473","v":0},{"$f":"AL471*'III. GDP shares, 1310-2018'!J473","v":0},null,null,{"$f":"U471*'III. GDP shares, 1310-2018'!C473","v":3.280917145905394},{"$f":"V471*'III. GDP shares, 1310-2018'!D473","v":1.2645377007928207},{"$f":"W471*'III. GDP shares, 1310-2018'!E473","v":0.15663531546066178},{"$f":"X471*'III. GDP shares, 1310-2018'!F473","v":0.9287989238549346},{"$f":"Y471*'III. GDP shares, 1310-2018'!G473","v":-0.2601172614945406},{"$f":"Z471*'III. GDP shares, 1310-2018'!H473","v":0},{"$f":"AA471*'III. GDP shares, 1310-2018'!I473","v":0},{"$f":"AB471*'III. GDP shares, 1310-2018'!J473","v":0},null,null,4.136041290947411,4.515930810335748,null,5.37077182451927,4.94311743679459,{"$f":"AVERAGE(BL468:BL474)","v":-0.506724913973226},-0.518194926360017,null,null,-0.6999766118199648]
[{"$f":"'[1]Nominal weighted'!B472","v":1778},null,-10.785446190059595,3.185746167641386,8.798315641726049,3.939688608998212,9.060389653549334,null,null,0,null,4.92409172523469,3.7113627918255507,1.674293331152268,4.154152362452826,{"$f":"AVERAGE(G469:G475)","v":5.622007638969938},{"$nulls":4},14.785446190059595,1.5290519877675877,-6.298315641726049,0.49808654823449844,-2.3753896535493353,null,null,0,null,null,4,4.714798155408974,{"v":2.5,"d":"2.50"},4.437775157232711,6.685,{"$nulls":5},{"$f":"AE472*'III. GDP shares, 1310-2018'!C474","v":0.737133399116911},{"$f":"AF472*'III. GDP shares, 1310-2018'!D474","v":1.3711493506442605},{"$f":"AG472*'III. GDP shares, 1310-2018'!E474","v":0.09796804260612965},{"$f":"AH472*'III. GDP shares, 1310-2018'!F474","v":0.9188165162689877},{"$f":"AI472*'III. GDP shares, 1310-2018'!G474","v":1.862887410338024},{"$f":"AJ472*'III. GDP shares, 1310-2018'!H474","v":0},{"$f":"AK472*'III. GDP shares, 1310-2018'!I474","v":0},{"$f":"AL472*'III. GDP shares, 1310-2018'!J474","v":0},null,null,{"$f":"U472*'III. GDP shares, 1310-2018'!C474","v":2.7247115518847025},{"$f":"V472*'III. GDP shares, 1310-2018'!D474","v":0.4446762238853431},{"$f":"W472*'III. GDP shares, 1310-2018'!E474","v":-0.24681346205418814},{"$f":"X472*'III. GDP shares, 1310-2018'!F474","v":0.10312603294094029},{"$f":"Y472*'III. GDP shares, 1310-2018'!G474","v":-0.6619421810387819},{"$f":"Z472*'III. GDP shares, 1310-2018'!H474","v":0},{"$f":"AA472*'III. GDP shares, 1310-2018'!I474","v":0},{"$f":"AB472*'III. GDP shares, 1310-2018'!J474","v":0},null,null,4.467514662528337,4.987954718974312,null,2.3637581656180155,1.3564799051310494,{"$f":"AVERAGE(BL469:BL475)","v":0.22628516638343626},0.20700151759390892,null,null,1.6977234265973797]
[{"$f":"'[1]Nominal weighted'!B473","v":1779},null,25.97305584893348,10.00264647667163,6.122464348500143,8.187377434324105,8.085828369841071,null,null,0,null,4.247541329619918,3.7424297055127105,0.27972874386404073,3.1657022272902915,{"$f":"AVERAGE(G470:G476)","v":6.779565598014763},{"$nulls":4},-21.97305584893348,-5.120481927710841,-3.622464348500143,-3.746496931179445,-1.5408283698410714,null,null,0,null,null,4,4.882164548960789,{"v":2.5,"d":"2.50"},4.440880503144661,6.545,{"$nulls":5},{"$f":"AE473*'III. GDP shares, 1310-2018'!C475","v":0.7356600125319954},{"$f":"AF473*'III. GDP shares, 1310-2018'!D475","v":1.4241690852962554},{"$f":"AG473*'III. GDP shares, 1310-2018'!E475","v":0.0974940494666794},{"$f":"AH473*'III. GDP shares, 1310-2018'!F475","v":0.9190929717738048},{"$f":"AI473*'III. GDP shares, 1310-2018'!G475","v":1.8222390027661066},{"$f":"AJ473*'III. GDP shares, 1310-2018'!H475","v":0},{"$f":"AK473*'III. GDP shares, 1310-2018'!I475","v":0},{"$f":"AL473*'III. GDP shares, 1310-2018'!J475","v":0},null,null,{"$f":"U473*'III. GDP shares, 1310-2018'!C475","v":-4.04117463529816},{"$f":"V473*'III. GDP shares, 1310-2018'!D475","v":-1.4936882995507008},{"$f":"W473*'III. GDP shares, 1310-2018'!E475","v":-0.1412674873535822},{"$f":"X473*'III. GDP shares, 1310-2018'!F475","v":-0.7753820432188712},{"$f":"Y473*'III. GDP shares, 1310-2018'!G475","v":-0.4289927505107593},{"$f":"Z473*'III. GDP shares, 1310-2018'!H475","v":0},{"$f":"AA473*'III. GDP shares, 1310-2018'!I475","v":0},{"$f":"AB473*'III. GDP shares, 1310-2018'!J475","v":0},null,null,4.47360901042109,4.998655121834842,null,-6.8805052159320725,-6.000554571027497,{"$f":"AVERAGE(BL470:BL476)","v":0.4388371608274156},0.613585800336004,null,null,8.961302952919958]
[{"$f":"'[1]Nominal weighted'!B474","v":1780},null,13.140053652771197,3.8396971042202352,-1.4447905558104552,2.0981619621499474,8.282750033785371,null,null,0,null,1.480359297723544,2.956221709041949,1.7537165351827366,3.143565861311411,{"$f":"AVERAGE(G471:G477)","v":7.3019318616808},{"$nulls":4},-9.140053652771197,1.0582010582010497,3.9447905558104552,2.345823886906664,-2.262750033785371,null,null,0,null,null,4,4.897898162421285,{"v":2.5,"d":"2.50"},4.443985849056611,6.02,{"$nulls":5},{"$f":"AE474*'III. GDP shares, 1310-2018'!C476","v":0.734202200761875},{"$f":"AF474*'III. GDP shares, 1310-2018'!D476","v":1.4330731608106422},{"$f":"AG474*'III. GDP shares, 1310-2018'!E476","v":0.0970250667945679},{"$f":"AH474*'III. GDP shares, 1310-2018'!F476","v":0.9193727915096981},{"$f":"AI474*'III. GDP shares, 1310-2018'!G476","v":1.6745820919843408},{"$f":"AJ474*'III. GDP shares, 1310-2018'!H476","v":0},{"$f":"AK474*'III. GDP shares, 1310-2018'!I476","v":0},{"$f":"AL474*'III. GDP shares, 1310-2018'!J476","v":0},null,null,{"$f":"U474*'III. GDP shares, 1310-2018'!C476","v":-1.677661876736557},{"$f":"V474*'III. GDP shares, 1310-2018'!D476","v":0.30961842916302496},{"$f":"W474*'III. GDP shares, 1310-2018'!E476","v":0.15309742686723604},{"$f":"X474*'III. GDP shares, 1310-2018'!F476","v":0.4853045730902452},{"$f":"Y474*'III. GDP shares, 1310-2018'!G476","v":-0.6294286852514859},{"$f":"Z474*'III. GDP shares, 1310-2018'!H476","v":0},{"$f":"AA474*'III. GDP shares, 1310-2018'!I476","v":0},{"$f":"AB474*'III. GDP shares, 1310-2018'!J476","v":0},null,null,4.372376802295579,4.858255311861124,null,-1.3590701328675368,-0.6756646976063999,{"$f":"AVERAGE(BL471:BL477)","v":1.0895257801962692},0.9415877223060057,null,null,5.093870713081043]
[{"$f":"'[1]Nominal weighted'!B475","v":1781},null,-8.588008092310652,-4.719503737111691,-6.078462817857453,2.124949439286836,4.4683546615788865,null,null,0,null,4.0019860597273444,4.473043969591245,2.3845425034210406,2.7814112903835957,{"$f":"AVERAGE(G472:G478)","v":5.921328259624682},{"$nulls":4},12.588008092310652,9.842931937172793,8.578462817857453,2.3221417556817245,1.6116453384211133,null,null,0,null,null,4,5.123428200061102,{"v":2.5,"d":"2.50"},4.447091194968561,6.08,{"$nulls":5},{"$f":"AE475*'III. GDP shares, 1310-2018'!C477","v":0.7327597181485206},{"$f":"AF475*'III. GDP shares, 1310-2018'!D477","v":1.5035265168983998},{"$f":"AG475*'III. GDP shares, 1310-2018'!E477","v":0.09656101556082772},{"$f":"AH475*'III. GDP shares, 1310-2018'!F477","v":0.9196559224134122},{"$f":"AI475*'III. GDP shares, 1310-2018'!G477","v":1.689785244108345},{"$f":"AJ475*'III. GDP shares, 1310-2018'!H477","v":0},{"$f":"AK475*'III. GDP shares, 1310-2018'!I477","v":0},{"$f":"AL475*'III. GDP shares, 1310-2018'!J477","v":0},null,null,{"$f":"U475*'III. GDP shares, 1310-2018'!C477","v":2.3059963154432124},{"$f":"V475*'III. GDP shares, 1310-2018'!D477","v":2.888516944843481},{"$f":"W475*'III. GDP shares, 1310-2018'!E477","v":0.3313380326572462},{"$f":"X475*'III. GDP shares, 1310-2018'!F477","v":0.4802175904807985},{"$f":"Y475*'III. GDP shares, 1310-2018'!G477","v":0.44791686046052587},{"$f":"Z475*'III. GDP shares, 1310-2018'!H477","v":0},{"$f":"AA475*'III. GDP shares, 1310-2018'!I477","v":0},{"$f":"AB475*'III. GDP shares, 1310-2018'!J477","v":0},null,null,4.430103879005932,4.942288417129505,null,6.453985743885264,5.823864990240622,{"$f":"AVERAGE(BL472:BL478)","v":0.6795579681314122},0.49300324510601884,null,null,-0.12670689881067787]
[{"$f":"'[1]Nominal weighted'!B476","v":1782},null,2.256817237624192,4.4867993413464164,-5.6852296748813025,-0.7721704695512397,9.254994206212666,null,null,0,null,7.5241612898734855,5.348813881495007,1.4051091751811777,2.981454223956953,{"$f":"AVERAGE(G473:G479)","v":5.682019044174242},{"$nulls":4},1.743182762375808,0.6673021925643496,8.185229674881302,5.22236701043175,-1.3799942062126667,null,null,0,null,null,4,5.154101533910766,{"v":2.5,"d":"2.50"},4.45019654088051,7.875,{"$nulls":5},{"$f":"AE476*'III. GDP shares, 1310-2018'!C478","v":0.7313323241731605},{"$f":"AF476*'III. GDP shares, 1310-2018'!D478","v":1.5169733433153647},{"$f":"AG476*'III. GDP shares, 1310-2018'!E478","v":0.09610181838980691},{"$f":"AH476*'III. GDP shares, 1310-2018'!F478","v":0.919942312531795},{"$f":"AI476*'III. GDP shares, 1310-2018'!G478","v":2.186755080750303},{"$f":"AJ476*'III. GDP shares, 1310-2018'!H478","v":0},{"$f":"AK476*'III. GDP shares, 1310-2018'!I478","v":0},{"$f":"AL476*'III. GDP shares, 1310-2018'!J478","v":0},null,null,{"$f":"U476*'III. GDP shares, 1310-2018'!C478","v":0.3187114752667225},{"$f":"V476*'III. GDP shares, 1310-2018'!D478","v":0.19640273506368616},{"$f":"W476*'III. GDP shares, 1310-2018'!E478","v":0.31464618227772045},{"$f":"X476*'III. GDP shares, 1310-2018'!F478","v":1.0795649900702526},{"$f":"Y476*'III. GDP shares, 1310-2018'!G478","v":-0.3832011862655912},{"$f":"Z476*'III. GDP shares, 1310-2018'!H478","v":0},{"$f":"AA476*'III. GDP shares, 1310-2018'!I478","v":0},{"$f":"AB476*'III. GDP shares, 1310-2018'!J478","v":0},null,null,4.795859614958255,5.451104879160431,null,1.5261241964127907,2.406347905673424,{"$f":"AVERAGE(BL473:BL479)","v":-0.17352334059428287},-0.07807773970009313,null,null,2.604410074495961]
[{"$f":"'[1]Nominal weighted'!B477","v":1783},null,2.133801669608776,4.43233209476893,12.041369558106783,6.476466692023316,5.11061635452699,null,null,0,null,3.861158187546476,4.591076695975967,-0.10577698977853396,2.579862579086026,{"$f":"AVERAGE(G474:G480)","v":6.0799043400059904},16.25292712008157,{"$nulls":3},1.866198330391224,0.2840909090909065,-9.541369558106783,-2.0231648052308557,1.8393836454730097,null,null,0,null,null,4,4.716423003859837,{"v":2.5,"d":"2.50"},4.4533018867924605,6.95,{"$nulls":5},{"$f":"AE477*'III. GDP shares, 1310-2018'!C479","v":0.7299197833225872},{"$f":"AF477*'III. GDP shares, 1310-2018'!D479","v":1.3921798266726604},{"$f":"AG477*'III. GDP shares, 1310-2018'!E479","v":0.09564739951615917},{"$f":"AH477*'III. GDP shares, 1310-2018'!F479","v":0.9202319109929189},{"$f":"AI477*'III. GDP shares, 1310-2018'!G479","v":1.9282336002682703},{"$f":"AJ477*'III. GDP shares, 1310-2018'!H479","v":0},{"$f":"AK477*'III. GDP shares, 1310-2018'!I479","v":0},{"$f":"AL477*'III. GDP shares, 1310-2018'!J479","v":0},null,null,{"$f":"U477*'III. GDP shares, 1310-2018'!C479","v":0.34054377023903404},{"$f":"V477*'III. GDP shares, 1310-2018'!D479","v":0.08385711634723644},{"$f":"W477*'III. GDP shares, 1310-2018'!E479","v":-0.36504287442222344},{"$f":"X477*'III. GDP shares, 1310-2018'!F479","v":-0.418067506380569},{"$f":"Y477*'III. GDP shares, 1310-2018'!G479","v":0.5103253739546758},{"$f":"Z477*'III. GDP shares, 1310-2018'!H479","v":0},{"$f":"AA477*'III. GDP shares, 1310-2018'!I479","v":0},{"$f":"AB477*'III. GDP shares, 1310-2018'!J479","v":0},null,null,4.5239449781304595,5.066212520772596,null,0.15161587973815388,-1.2624769130637497,{"$f":"AVERAGE(BL474:BL480)","v":0.8056834091285561},0.9654116920812897,null,null,3.6062739307090177]
[{"$f":"'[1]Nominal weighted'!B478","v":1784},null,3.8836282915240115,10.083590339601809,2.938131024163517,-2.584594634546008,-2.8136354621215416,null,null,0,null,0.2642990642854561,4.361687390923634,0.9988430938801748,1.2015452259737833,{"$f":"AVERAGE(G475:G481)","v":5.225150329161762},14.528927120081569,{"$nulls":3},0.11637170847598871,-5.004721435316341,-0.43813102416351696,7.041001867250419,9.103635462121542,null,null,0,null,null,4,5.078868904285468,{"v":2.5,"d":"2.50"},4.456407232704411,6.29,{"$nulls":5},{"$f":"AE478*'III. GDP shares, 1310-2018'!C480","v":0.7285218649596124},{"$f":"AF478*'III. GDP shares, 1310-2018'!D480","v":1.5034555912017609},{"$f":"AG478*'III. GDP shares, 1310-2018'!E480","v":0.0951976847431693},{"$f":"AH478*'III. GDP shares, 1310-2018'!F480","v":0.9205246679780986},{"$f":"AI478*'III. GDP shares, 1310-2018'!G480","v":1.7436299003424254},{"$f":"AJ478*'III. GDP shares, 1310-2018'!H480","v":0},{"$f":"AK478*'III. GDP shares, 1310-2018'!I480","v":0},{"$f":"AL478*'III. GDP shares, 1310-2018'!J480","v":0},null,null,{"$f":"U478*'III. GDP shares, 1310-2018'!C480","v":0.021194833521865904},{"$f":"V478*'III. GDP shares, 1310-2018'!D480","v":-1.481506328699429},{"$f":"W478*'III. GDP shares, 1310-2018'!E480","v":-0.016683623645808148},{"$f":"X478*'III. GDP shares, 1310-2018'!F480","v":1.4544038656338323},{"$f":"Y478*'III. GDP shares, 1310-2018'!G480","v":2.5235883932548098},{"$f":"Z478*'III. GDP shares, 1310-2018'!H480","v":0},{"$f":"AA478*'III. GDP shares, 1310-2018'!I480","v":0},{"$f":"AB478*'III. GDP shares, 1310-2018'!J480","v":0},null,null,4.465055227397976,4.991329709225067,null,2.500997140065271,1.8030260963946818,{"$f":"AVERAGE(BL475:BL481)","v":1.944407378161531},1.7570107963692456,null,null,-0.49462935074139436]
[{"$f":"'[1]Nominal weighted'!B479","v":1785},null,13.869780420963398,9.316135550967722,1.9422823440470116,5.33998914401171,7.385225145396257,null,null,0,null,4.165553905698121,5.387793016136048,2.136709463743301,0.8997657115759796,{"$f":"AVERAGE(G476:G482)","v":4.7797379069583386},16.055927120081567,{"$nulls":3},-9.869780420963398,-4.3737574552683895,0.5577176559529884,-0.88047656539535,-1.2802251453962568,null,null,0,null,null,4,4.942378095699333,{"v":2.5,"d":"2.50"},4.45951257861636,6.105,{"$nulls":5},{"$f":"AE479*'III. GDP shares, 1310-2018'!C481","v":0.727138343197528},{"$f":"AF479*'III. GDP shares, 1310-2018'!D481","v":1.4671831119239234},{"$f":"AG479*'III. GDP shares, 1310-2018'!E481","v":0.0947526014023666},{"$f":"AH479*'III. GDP shares, 1310-2018'!F481","v":0.9208205346947738},{"$f":"AI479*'III. GDP shares, 1310-2018'!G481","v":1.6909145505174317},{"$f":"AJ479*'III. GDP shares, 1310-2018'!H481","v":0},{"$f":"AK479*'III. GDP shares, 1310-2018'!I481","v":0},{"$f":"AL479*'III. GDP shares, 1310-2018'!J481","v":0},null,null,{"$f":"U479*'III. GDP shares, 1310-2018'!C481","v":-1.7941739457556813},{"$f":"V479*'III. GDP shares, 1310-2018'!D481","v":-1.298383682868183},{"$f":"W479*'III. GDP shares, 1310-2018'!E481","v":0.021138079499830296},{"$f":"X479*'III. GDP shares, 1310-2018'!F481","v":-0.18180482450508448},{"$f":"Y479*'III. GDP shares, 1310-2018'!G481","v":-0.3545866218327314},{"$f":"Z479*'III. GDP shares, 1310-2018'!H481","v":0},{"$f":"AA479*'III. GDP shares, 1310-2018'!I481","v":0},{"$f":"AB479*'III. GDP shares, 1310-2018'!J481","v":0},null,null,4.401378134863139,4.9008091417360236,null,-3.6078109954618496,-2.6410869885117343,{"$f":"AVERAGE(BL476:BL482)","v":1.0867728488170334},0.9444624758579968,null,null,5.743053342405767]
[{"$f":"'[1]Nominal weighted'!B480","v":1786},null,0.33203413264440984,4.69848617803835,-4.45373880621784,5.376235920227622,10.871025440663304,{"$f":"AJ480-Z480","v":16.25292712008157},null,0,null,5.086064028452063,5.348377124031545,3.4533239175133414,1.270465927633813,{"$f":"AVERAGE(G477:G483)","v":3.345039564740127},14.105177120081567,{"$nulls":3},3.66796586735559,-0.6237006237006284,6.95373880621784,-0.9136179956993128,-3.704358773996637,3.7470728799184303,null,0,null,null,4,4.074785554337722,{"v":2.5,"d":"2.50"},4.46261792452831,7.166666666666667,20,{"$nulls":4},{"$f":"AE480*'III. GDP shares, 1310-2018'!C482","v":0.6491290612545719},{"$f":"AF480*'III. GDP shares, 1310-2018'!D482","v":1.0849121256066199},{"$f":"AG480*'III. GDP shares, 1310-2018'!E482","v":0.08435288794772171},{"$f":"AH480*'III. GDP shares, 1310-2018'!F482","v":0.8238508605381952},{"$f":"AI480*'III. GDP shares, 1310-2018'!G482","v":1.7738693499704887},{"$f":"AJ480*'III. GDP shares, 1310-2018'!H482","v":2.111964987869295},{"$f":"AK480*'III. GDP shares, 1310-2018'!I482","v":0},{"$f":"AL480*'III. GDP shares, 1310-2018'!J482","v":0},null,null,{"$f":"U480*'III. GDP shares, 1310-2018'!C482","v":0.5952458100475865},{"$f":"V480*'III. GDP shares, 1310-2018'!D482","v":-0.16606036327013568},{"$f":"W480*'III. GDP shares, 1310-2018'!E482","v":0.234627180135447},{"$f":"X480*'III. GDP shares, 1310-2018'!F482","v":-0.16866444420953142},{"$f":"Y480*'III. GDP shares, 1310-2018'!G482","v":-0.9168904870446825},{"$f":"Z480*'III. GDP shares, 1310-2018'!H482","v":0.3956843364691146},{"$f":"AA480*'III. GDP shares, 1310-2018'!I482","v":0},{"$f":"AB480*'III. GDP shares, 1310-2018'!J482","v":0},null,null,7.034011690922116,6.528079273186893,null,-0.026057967872201493,1.303871451442183,{"$f":"AVERAGE(BL477:BL483)","v":1.1296529936761035},0.7689447478135626,null,null,5.303164752182338]
[{"$f":"'[1]Nominal weighted'!B481","v":1787},null,-12.037960210055942,2.2339719688538997,6.2875500298005065,-7.550059509635756,2.2994719578757774,12.804927120081569,null,0,null,5.220470768186966,4.3430610360947615,2.665653964917193,1.0034004254482716,{"$f":"AVERAGE(G478:G484)","v":3.496576578336601},11.734727120081569,{"$nulls":3},16.037960210055942,1.7782426778242666,-3.7875500298005065,12.015782780076016,4.26719470879089,3.7470728799184303,null,0,null,null,4,4.012214646678166,{"v":2.5,"d":"2.50"},4.46572327044026,6.566666666666667,16.552,{"$nulls":4},{"$f":"AE481*'III. GDP shares, 1310-2018'!C483","v":0.6475058509026059},{"$f":"AF481*'III. GDP shares, 1310-2018'!D483","v":1.0705121616413118},{"$f":"AG481*'III. GDP shares, 1310-2018'!E483","v":0.083909645169465},{"$f":"AH481*'III. GDP shares, 1310-2018'!F483","v":0.8235982108640016},{"$f":"AI481*'III. GDP shares, 1310-2018'!G483","v":1.6229795760849188},{"$f":"AJ481*'III. GDP shares, 1310-2018'!H483","v":1.7572519283879346},{"$f":"AK481*'III. GDP shares, 1310-2018'!I483","v":0},{"$f":"AL481*'III. GDP shares, 1310-2018'!J483","v":0},null,null,{"$f":"U481*'III. GDP shares, 1310-2018'!C483","v":2.5961682681386025},{"$f":"V481*'III. GDP shares, 1310-2018'!D483","v":0.4744587666905019},{"$f":"W481*'III. GDP shares, 1310-2018'!E483","v":-0.12712479162486284},{"$f":"X481*'III. GDP shares, 1310-2018'!F483","v":2.21603010318762},{"$f":"Y481*'III. GDP shares, 1310-2018'!G483","v":1.05465530856019},{"$f":"Z481*'III. GDP shares, 1310-2018'!H483","v":0.3978099954112369},{"$f":"AA481*'III. GDP shares, 1310-2018'!I483","v":0},{"$f":"AB481*'III. GDP shares, 1310-2018'!J483","v":0},null,null,6.349434097297515,6.005757373050238,null,6.611997650363288,4.865529032409291,{"$f":"AVERAGE(BL478:BL484)","v":1.4232209387829682},1.1114794446372591,null,null,-1.2022936722638615]
[{"$f":"'[1]Nominal weighted'!B482","v":1788},null,18.720775797578007,2.4632356393752026,1.8866017711844287,0.012492838502211612,1.3504677061549213,19.10992712008157,null,0,null,6.63824040944956,3.591128550508657,3.13495396463338,2.5991093680897386,{"$f":"AVERAGE(G479:G485)","v":5.877465640710243},10.082138632215921,{"$nulls":3},-14.720775797578007,1.541623843782105,1.2583982288155713,4.456335777849999,4.669532293845078,3.7470728799184303,null,0,null,null,4,4.004859483157308,{"v":3.145,"d":"3.15"},4.46882861635221,6.02,22.857,{"$nulls":4},{"$f":"AE482*'III. GDP shares, 1310-2018'!C484","v":0.6459011296234343},{"$f":"AF482*'III. GDP shares, 1310-2018'!D484","v":1.0707794215247488},{"$f":"AG482*'III. GDP shares, 1310-2018'!E484","v":0.10500708550830422},{"$f":"AH482*'III. GDP shares, 1310-2018'!F484","v":0.8233538267985977},{"$f":"AI482*'III. GDP shares, 1310-2018'!G484","v":1.485711768162376},{"$f":"AJ482*'III. GDP shares, 1310-2018'!H484","v":2.4394443680880737},{"$f":"AK482*'III. GDP shares, 1310-2018'!I484","v":0},{"$f":"AL482*'III. GDP shares, 1310-2018'!J484","v":0},null,null,{"$f":"U482*'III. GDP shares, 1310-2018'!C484","v":-2.3770414291472366},{"$f":"V482*'III. GDP shares, 1310-2018'!D484","v":0.41218402158578865},{"$f":"W482*'III. GDP shares, 1310-2018'!E484","v":0.04201613049816702},{"$f":"X482*'III. GDP shares, 1310-2018'!F484","v":0.8210520991488206},{"$f":"Y482*'III. GDP shares, 1310-2018'!G484","v":1.152421774215928},{"$f":"Z482*'III. GDP shares, 1310-2018'!H484","v":0.39991144217231367},{"$f":"AA482*'III. GDP shares, 1310-2018'!I484","v":0},{"$f":"AB482*'III. GDP shares, 1310-2018'!J484","v":0},null,null,7.415948016584919,6.570197599705534,null,0.4505440384737812,0.1360267466618823,{"$f":"AVERAGE(BL479:BL485)","v":0.41152423176516173},0.4136756983032956,null,null,5.461058161292794]
[{"$f":"'[1]Nominal weighted'!B483","v":1789},null,8.700388096901785,4.210888096614903,3.5310715015089844,1.8227310428535959,-0.787894189314815,8.25292712008157,null,0,null,{"$f":"AVERAGE(C480:C486)","v":4.56493688146593},{"$f":"AVERAGE(D480:D486)","v":3.0663230840704614},{"$f":"AVERAGE(E480:E486)","v":3.103645066946792},{"$f":"AVERAGE(F480:F486)","v":2.0225922145050923},{"$f":"AVERAGE(G480:G486)","v":4.379295655889773},9.120242899367556,{"$nulls":3},-4.700388096901785,-0.30364372469635725,-0.40607150150898436,2.649202919410564,7.257894189314815,3.7470728799184303,null,0,null,null,4,3.907244371918546,{"v":3.125,"d":"3.13"},4.47193396226416,6.47,12,{"$nulls":4},{"$f":"AE483*'III. GDP shares, 1310-2018'!C485","v":0.6443145833080896},{"$f":"AF483*'III. GDP shares, 1310-2018'!D485","v":1.0468307954760248},{"$f":"AG483*'III. GDP shares, 1310-2018'!E485","v":0.103797775031793},{"$f":"AH483*'III. GDP shares, 1310-2018'!F485","v":0.8231175679184003},{"$f":"AI483*'III. GDP shares, 1310-2018'!G485","v":1.5944781690387595},{"$f":"AJ483*'III. GDP shares, 1310-2018'!H485","v":1.287369958278572},{"$f":"AK483*'III. GDP shares, 1310-2018'!I485","v":0},{"$f":"AL483*'III. GDP shares, 1310-2018'!J485","v":0},null,null,{"$f":"U483*'III. GDP shares, 1310-2018'!C485","v":-0.7571321495103943},{"$f":"V483*'III. GDP shares, 1310-2018'!D485","v":-0.08135237308157217},{"$f":"W483*'III. GDP shares, 1310-2018'!E485","v":-0.013487781875344624},{"$f":"X483*'III. GDP shares, 1310-2018'!F485","v":0.48762022926731663},{"$f":"Y483*'III. GDP shares, 1310-2018'!G485","v":1.788648197535663},{"$f":"Z483*'III. GDP shares, 1310-2018'!H485","v":0.4019890880906132},{"$f":"AA483*'III. GDP shares, 1310-2018'!I485","v":0},{"$f":"AB483*'III. GDP shares, 1310-2018'!J485","v":0},null,null,5.662363055697118,5.499908849051639,null,1.8262852104262817,1.1777238093623834,{"$f":"AVERAGE(BL480:BL486)","v":1.362828115935414},1.3957688389631797,null,null,2.5454404700677604]
[{"$f":"'[1]Nominal weighted'!B484","v":1790},null,3.074648847753096,-2.6048805207885586,6.527679889933743,4.607008176724526,6.171375449702308,2.2529271200815697,null,0,null,2.2899692915613135,2.086671793677305,3.3757425313589593,1.6446024114569442,{"$f":"AVERAGE(G481:G487)","v":-0.23949416504645576},7.162396747931853,{"$nulls":3},0.9253511522469039,6.497461928934015,-3.259679889933743,-0.13196886854841675,0.16862455029769213,3.7470728799184303,null,0,null,null,4,3.892581408145457,{"v":3.268,"d":"3.27"},4.475039308176109,6.34,6,{"$nulls":4},{"$f":"AE484*'III. GDP shares, 1310-2018'!C486","v":0.6427459049226921},{"$f":"AF484*'III. GDP shares, 1310-2018'!D486","v":1.045020814715371},{"$f":"AG484*'III. GDP shares, 1310-2018'!E486","v":0.10798761951099414},{"$f":"AH484*'III. GDP shares, 1310-2018'!F486","v":0.8228892969627711},{"$f":"AI484*'III. GDP shares, 1310-2018'!G486","v":1.5602202929814553},{"$f":"AJ484*'III. GDP shares, 1310-2018'!H486","v":0.6469743421399726},{"$f":"AK484*'III. GDP shares, 1310-2018'!I486","v":0},{"$f":"AL484*'III. GDP shares, 1310-2018'!J486","v":0},null,null,{"$f":"U484*'III. GDP shares, 1310-2018'!C486","v":0.14869141593054802},{"$f":"V484*'III. GDP shares, 1310-2018'!D486","v":1.7443393590557386},{"$f":"W484*'III. GDP shares, 1310-2018'!E486","v":-0.10771269023311025},{"$f":"X484*'III. GDP shares, 1310-2018'!F486","v":-0.024266997892592675},{"$f":"Y484*'III. GDP shares, 1310-2018'!G486","v":0.041497073386329866},{"$f":"Z484*'III. GDP shares, 1310-2018'!H486","v":0.4040433352392932},{"$f":"AA484*'III. GDP shares, 1310-2018'!I486","v":0},{"$f":"AB484*'III. GDP shares, 1310-2018'!J486","v":0},null,null,4.662603452720261,4.825838271233256,null,2.2065914954862067,1.1352659647021262,{"$f":"AVERAGE(BL481:BL487)","v":3.1314659476250166},2.478971056286053,null,null,3.318565320087417]
[{"$f":"'[1]Nominal weighted'!B485","v":1791},null,13.80801578036217,4.820062940499078,6.223231022176826,8.585367963944261,13.852587974493954,1.8191961928876847,null,-2.500000000000006,null,4.863162993059034,1.9634740143892309,2.2813264899002768,2.2871919554575735,{"$f":"AVERAGE(G482:G488)","v":1.3086031554816047},4.5482778143174025,{"$nulls":3},-9.80801578036217,-1.1439466158246034,-3.008231022176826,-4.107223309856202,-8.712587974493955,2.708803807112315,null,2.500000000000006,null,null,4,3.6761163246744744,{"v":3.215,"d":"3.22"},4.47814465408806,5.14,4.528,{"$nulls":4},{"$f":"AE485*'III. GDP shares, 1310-2018'!C487","v":0.6411947943103632},{"$f":"AF485*'III. GDP shares, 1310-2018'!D487","v":0.9888858854149457},{"$f":"AG485*'III. GDP shares, 1310-2018'!E487","v":0.10569159880295177},{"$f":"AH485*'III. GDP shares, 1310-2018'!F487","v":0.8226688797454613},{"$f":"AI485*'III. GDP shares, 1310-2018'!G487","v":1.263130445032898},{"$f":"AJ485*'III. GDP shares, 1310-2018'!H487","v":0.4907045424943387},{"$f":"AK485*'III. GDP shares, 1310-2018'!I487","v":0},{"$f":"AL485*'III. GDP shares, 1310-2018'!J487","v":0},null,null,{"$f":"U485*'III. GDP shares, 1310-2018'!C487","v":-1.5722121652205296},{"$f":"V485*'III. GDP shares, 1310-2018'!D487","v":-0.3077249363585675},{"$f":"W485*'III. GDP shares, 1310-2018'!E487","v":-0.09889416681259926},{"$f":"X485*'III. GDP shares, 1310-2018'!F487","v":-0.7545278369021181},{"$f":"Y485*'III. GDP shares, 1310-2018'!G487","v":-2.141076872686931},{"$f":"Z485*'III. GDP shares, 1310-2018'!H487","v":0.2935561689213718},{"$f":"AA485*'III. GDP shares, 1310-2018'!I487","v":0},{"$f":"AB485*'III. GDP shares, 1310-2018'!J487","v":0},null,null,4.172876829793755,4.312276145800959,null,-4.580879809059374,-3.0816001279430627,{"$f":"AVERAGE(BL482:BL488)","v":2.4049089522593703},1.981504369692645,null,null,7.596545133086819]
[{"$f":"'[1]Nominal weighted'!B486","v":1792},null,-0.643344274922014,5.642497285900355,1.7231200602408954,1.3043690689191854,-3.101964748347039,3.348868502277358,null,-12.195121951219496,null,1.4892120287965736,0.01392026929406168,-0.0885647334753895,2.139984850473206,{"$f":"AVERAGE(G483:G489)","v":1.6989186572230877},0.5934739677145752,{"$nulls":3},4.643344274922014,-2.3143683702989364,1.5238799397591045,3.1768809310808157,8.54196474834704,1.8681314977226415,null,12.195121951219496,null,null,4,3.3281289156014178,{"v":3.247,"d":"3.25"},4.481250000000001,5.44,5.217,{"$nulls":4},{"$f":"AE486*'III. GDP shares, 1310-2018'!C488","v":0.639660957999757},{"$f":"AF486*'III. GDP shares, 1310-2018'!D488","v":0.8970473637048886},{"$f":"AG486*'III. GDP shares, 1310-2018'!E488","v":0.10619959706558632},{"$f":"AH486*'III. GDP shares, 1310-2018'!F488","v":0.8224561850690113},{"$f":"AI486*'III. GDP shares, 1310-2018'!G488","v":1.3349910872659556},{"$f":"AJ486*'III. GDP shares, 1310-2018'!H488","v":0.568168836217724},{"$f":"AK486*'III. GDP shares, 1310-2018'!I488","v":0},{"$f":"AL486*'III. GDP shares, 1310-2018'!J488","v":0},null,null,{"$f":"U486*'III. GDP shares, 1310-2018'!C488","v":0.7425415118048256},{"$f":"V486*'III. GDP shares, 1310-2018'!D488","v":-0.6238033735671786},{"$f":"W486*'III. GDP shares, 1310-2018'!E488","v":0.04984152620226266},{"$f":"X486*'III. GDP shares, 1310-2018'!F488","v":0.5830617285344972},{"$f":"Y486*'III. GDP shares, 1310-2018'!G488","v":2.0962218394822205},{"$f":"Z486*'III. GDP shares, 1310-2018'!H488","v":0.20345296127328866},{"$f":"AA486*'III. GDP shares, 1310-2018'!I488","v":0},{"$f":"AB486*'III. GDP shares, 1310-2018'!J488","v":0},null,null,4.285563152600236,4.368524027322923,null,3.051316193729916,4.233564996107454,{"$f":"AVERAGE(BL483:BL489)","v":3.6625660623308987},3.441009800601696,null,null,-0.20364290367906035]
[{"$f":"'[1]Nominal weighted'!B487","v":1793},null,-15.592738996687903,-2.1590728547137426,-2.549056555332667,2.730307298890585,-21.460503305890295,2.5480040600316523,null,2.173913043478266,null,0.4368688928777206,-0.24467442556679384,1.880621300456253,2.8753547713044862,{"$f":"AVERAGE(G484:G490)","v":4.439610757144512},-0.4344918396816323,{"$nulls":3},19.592738996687903,6.120434353405713,6.225056555332667,1.7571927011094168,27.230503305890295,3.4519959399683477,null,-2.173913043478266,null,null,4,3.9613614986919705,{"v":3.676,"d":"3.68"},4.487500000000002,5.77,6,{"$nulls":4},{"$f":"AE487*'III. GDP shares, 1310-2018'!C489","v":0.6381441090199539},{"$f":"AF487*'III. GDP shares, 1310-2018'!D489","v":1.0698104615756625},{"$f":"AG487*'III. GDP shares, 1310-2018'!E489","v":0.11962185740898913},{"$f":"AH487*'III. GDP shares, 1310-2018'!F489","v":0.8228276881970938},{"$f":"AI487*'III. GDP shares, 1310-2018'!G489","v":1.4140199531722992},{"$f":"AJ487*'III. GDP shares, 1310-2018'!H489","v":0.6566238517654545},{"$f":"AK487*'III. GDP shares, 1310-2018'!I489","v":0},{"$f":"AL487*'III. GDP shares, 1310-2018'!J489","v":0},null,null,{"$f":"U487*'III. GDP shares, 1310-2018'!C489","v":3.1257477425754767},{"$f":"V487*'III. GDP shares, 1310-2018'!D489","v":1.6528924973957917},{"$f":"W487*'III. GDP shares, 1310-2018'!E489","v":0.2025714982657501},{"$f":"X487*'III. GDP shares, 1310-2018'!F489","v":0.3221987315812073},{"$f":"Y487*'III. GDP shares, 1310-2018'!G489","v":6.673219239073335},{"$f":"Z487*'III. GDP shares, 1310-2018'!H489","v":0.3777771450634545},{"$f":"AA487*'III. GDP shares, 1310-2018'!I489","v":0},{"$f":"AB487*'III. GDP shares, 1310-2018'!J489","v":0},null,null,4.649143583115328,4.721047921139453,null,12.354406853955016,8.886286972702296,{"$f":"AVERAGE(BL484:BL490)","v":3.1974113085865783},2.840952042977001,null,null,-7.050276896995434]
[{"$f":"'[1]Nominal weighted'!B488","v":1794},null,5.974395700428098,1.3715875138373796,-1.3733622604102704,-3.051932701631352,13.136153201572201,-5.493905415219581,null,8.333333333333321,null,-0.22211711021948924,2.375550133594165,3.7447578800750265,3.332548563254027,{"$f":"AVERAGE(G485:G491)","v":6.351715771668956},0.6083861183797735,{"$nulls":3},-1.974395700428098,3.0697674418604635,5.6103622604102705,7.545682701631354,-7.184153201572201,10.948905415219581,null,-8.333333333333321,null,null,4,4.441354955697843,{"v":4.237,"d":"4.24"},4.493750000000002,5.952,5.455,{"$nulls":4},{"$f":"AE488*'III. GDP shares, 1310-2018'!C490","v":0.6366439667214702},{"$f":"AF488*'III. GDP shares, 1310-2018'!D490","v":1.201749709710383},{"$f":"AG488*'III. GDP shares, 1310-2018'!E490","v":0.1371832795825979},{"$f":"AH488*'III. GDP shares, 1310-2018'!F490","v":0.8232055850974029},{"$f":"AI488*'III. GDP shares, 1310-2018'!G490","v":1.456628138462231},{"$f":"AJ488*'III. GDP shares, 1310-2018'!H490","v":0.5998404383461127},{"$f":"AK488*'III. GDP shares, 1310-2018'!I490","v":0},{"$f":"AL488*'III. GDP shares, 1310-2018'!J490","v":0},null,null,{"$f":"U488*'III. GDP shares, 1310-2018'!C490","v":-0.31424677764958997},{"$f":"V488*'III. GDP shares, 1310-2018'!D490","v":0.8306231249095363},{"$f":"W488*'III. GDP shares, 1310-2018'!E490","v":0.18164925525832384},{"$f":"X488*'III. GDP shares, 1310-2018'!F490","v":1.3822860958788958},{"$f":"Y488*'III. GDP shares, 1310-2018'!G490","v":-1.758171993352418},{"$f":"Z488*'III. GDP shares, 1310-2018'!H490","v":1.2039589777590174},{"$f":"AA488*'III. GDP shares, 1310-2018'!I490","v":0},{"$f":"AB488*'III. GDP shares, 1310-2018'!J490","v":0},null,null,4.763184159282974,4.855251117920198,null,1.5260986828037653,1.3832622262554355,{"$f":"AVERAGE(BL485:BL491)","v":2.4647356227365758},2.2319965244258135,null,null,2.9580258503155856]
[{"$f":"'[1]Nominal weighted'!B489","v":1795},null,-4.896880952259217,-11.183640576290982,-14.702636792445237,-1.0179568963883607,4.0826762183453,-8.573699806138226,null,-7.272727272727275,null,-1.8668737466420724,2.340797288236846,3.293787369680398,2.2379121587061213,{"$f":"AVERAGE(G486:G492)","v":12.05656528276088},1.689389929727728,{"$nulls":3},8.896880952259217,15.70397111913357,19.207636792445236,5.471713616818468,1.5353237816546996,14.379699806138227,null,7.272727272727275,null,null,4,4.520330542842588,{"v":4.505,"d":"4.51"},4.453756720430107,5.618,5.806,{"$nulls":4},{"$f":"AE489*'III. GDP shares, 1310-2018'!C491","v":0.635160256603149},{"$f":"AF489*'III. GDP shares, 1310-2018'!D491","v":1.2254459859169469},{"$f":"AG489*'III. GDP shares, 1310-2018'!E491","v":0.14513035726220294},{"$f":"AH489*'III. GDP shares, 1310-2018'!F491","v":0.8151263280455897},{"$f":"AI489*'III. GDP shares, 1310-2018'!G491","v":1.3730275813857844},{"$f":"AJ489*'III. GDP shares, 1310-2018'!H491","v":0.6414475519093042},{"$f":"AK489*'III. GDP shares, 1310-2018'!I491","v":0},{"$f":"AL489*'III. GDP shares, 1310-2018'!J491","v":0},null,null,{"$f":"U489*'III. GDP shares, 1310-2018'!C491","v":1.4127362971511581},{"$f":"V489*'III. GDP shares, 1310-2018'!D491","v":4.257292290575761},{"$f":"W489*'III. GDP shares, 1310-2018'!E491","v":0.6187816181687482},{"$f":"X489*'III. GDP shares, 1310-2018'!F491","v":1.0014327473557127},{"$f":"Y489*'III. GDP shares, 1310-2018'!G491","v":0.37522995702553014},{"$f":"Z489*'III. GDP shares, 1310-2018'!H491","v":1.5886708986975648},{"$f":"AA489*'III. GDP shares, 1310-2018'!I491","v":0},{"$f":"AB489*'III. GDP shares, 1310-2018'!J491","v":0},null,null,4.81718121054545,4.835338061122977,null,9.254143808974476,10.352564763025242,{"$f":"AVERAGE(BL486:BL492)","v":3.0776714157076976},2.761657001618686,null,null,-1.3869594431926835]
[{"$f":"'[1]Nominal weighted'!B490","v":1796},null,1.3339861454698156,2.400725232588914,17.31537373903048,6.970320488672557,18.396950510135152,1.0571664683081172,null,8.47457627118644,null,-4.143965088413611,-0.7313726537593703,2.2882403547042247,2.634882326843663,{"$f":"AVERAGE(G487:G493)","v":15.863953681883462},2.1132658579738197,{"$nulls":3},2.6660138545301844,2.4180967238689703,-11.75937373903048,-0.5628070478123409,-10.704950510135152,5.258833531691883,null,-8.47457627118644,null,null,4,4.818821956457884,{"v":5.556,"d":"5.56"},6.407513440860216,7.692,6.316,{"$nulls":4},{"$f":"AE490*'III. GDP shares, 1310-2018'!C492","v":0.6336927101447102},{"$f":"AF490*'III. GDP shares, 1310-2018'!D492","v":1.3088195282853083},{"$f":"AG490*'III. GDP shares, 1310-2018'!E492","v":0.17809814162369772},{"$f":"AH490*'III. GDP shares, 1310-2018'!F492","v":1.1716313645977967},{"$f":"AI490*'III. GDP shares, 1310-2018'!G492","v":1.8773886138538962},{"$f":"AJ490*'III. GDP shares, 1310-2018'!H492","v":0.7010317814101888},{"$f":"AK490*'III. GDP shares, 1310-2018'!I492","v":0},{"$f":"AL490*'III. GDP shares, 1310-2018'!J492","v":0},null,null,{"$f":"U490*'III. GDP shares, 1310-2018'!C492","v":0.42235838619014443},{"$f":"V490*'III. GDP shares, 1310-2018'!D492","v":0.6567688621990065},{"$f":"W490*'III. GDP shares, 1310-2018'!E492","v":-0.37694791389126026},{"$f":"X490*'III. GDP shares, 1310-2018'!F492","v":-0.10291080861862459},{"$f":"Y490*'III. GDP shares, 1310-2018'!G492","v":-2.6127602963594896},{"$f":"Z490*'III. GDP shares, 1310-2018'!H492","v":0.5836937046962628},{"$f":"AA490*'III. GDP shares, 1310-2018'!I492","v":0},{"$f":"AB490*'III. GDP shares, 1310-2018'!J492","v":0},null,null,5.79838923288635,5.870662139915598,null,-1.4297980657839604,-3.022680494010482,{"$f":"AVERAGE(BL487:BL493)","v":3.9621965940809436},3.1844407294131627,null,null,6.648409539613257]
[{"$f":"'[1]Nominal weighted'!B491","v":1797},null,-1.5382531739273766,15.736691393338155,19.576635947265157,7.807364720371316,19.556110551373415,9.553072826511409,null,-1.2345679012345563,null,-7.719982397449188,-4.965371198410706,1.7945842364857414,2.2019741174316243,{"$f":"AVERAGE(G488:G494)","v":20.138441709642898},2.2396488234247545,8.073994324842612,null,null,5.538253173927377,-9.977151561309995,-13.552635947265157,-1.731808844795279,0.3438894486265822,-3.7470728265114084,null,1.2345679012345563,null,null,4,5.759539832028161,{"v":6.024,"d":"6.02"},6.075555875576037,19.9,5.806,{"$nulls":4},{"$f":"AE491*'III. GDP shares, 1310-2018'!C493","v":0.6322410646447416},{"$f":"AF491*'III. GDP shares, 1310-2018'!D493","v":1.5672246225580775},{"$f":"AG491*'III. GDP shares, 1310-2018'!E493","v":0.19214477714679598},{"$f":"AH491*'III. GDP shares, 1310-2018'!F493","v":1.1099271116741656},{"$f":"AI491*'III. GDP shares, 1310-2018'!G493","v":4.850549050263565},{"$f":"AJ491*'III. GDP shares, 1310-2018'!H493","v":0.6473708873240542},{"$f":"AK491*'III. GDP shares, 1310-2018'!I493","v":0},{"$f":"AL491*'III. GDP shares, 1310-2018'!J493","v":0},null,null,{"$f":"U491*'III. GDP shares, 1310-2018'!C493","v":0.875377770738991},{"$f":"V491*'III. GDP shares, 1310-2018'!D493","v":-2.714876195998558},{"$f":"W491*'III. GDP shares, 1310-2018'!E493","v":-0.4322822400131009},{"$f":"X491*'III. GDP shares, 1310-2018'!F493","v":-0.31637954261973616},{"$f":"Y491*'III. GDP shares, 1310-2018'!G493","v":0.08382174062468993},{"$f":"Z491*'III. GDP shares, 1310-2018'!H493","v":-0.41779983819609756},{"$f":"AA491*'III. GDP shares, 1310-2018'!I493","v":0},{"$f":"AB491*'III. GDP shares, 1310-2018'!J493","v":0},null,null,7.927515951267366,8.9994575136114,null,-2.9221383054638115,-3.127422665156189,{"$f":"AVERAGE(BL488:BL494)","v":4.683829538977507},3.838020754779722,null,null,7.639495000518576]
[{"$f":"'[1]Nominal weighted'!B492","v":1798},null,2.294719325404091,4.576793022997843,3.0664374494144244,0.9229131321089201,53.786534552137425,9.386222872323366,null,-3.0487804878048785,null,-7.200136426591408,-6.132618189489343,2.974991968546326,3.182560119403148,{"$f":"AVERAGE(G489:G495)","v":18.015479840427343},3.5631055423242697,-0.16680492645306622,null,null,1.705280674595909,1.3536379018612479,3.6005625505855754,3.0056582964625087,-5.006534552137428,-3.3252228723233657,null,3.0487804878048785,null,null,4,5.930430924859091,{"v":6.667,"d":"6.67"},3.928571428571429,48.78,6.061,{"$nulls":4},{"$f":"AE492*'III. GDP shares, 1310-2018'!C494","v":0.6308050630639296},{"$f":"AF492*'III. GDP shares, 1310-2018'!D494","v":1.6166803200993756},{"$f":"AG492*'III. GDP shares, 1310-2018'!E494","v":0.21160854219084904},{"$f":"AH492*'III. GDP shares, 1310-2018'!F494","v":0.717057457137282},{"$f":"AI492*'III. GDP shares, 1310-2018'!G494","v":11.874299644184426},{"$f":"AJ492*'III. GDP shares, 1310-2018'!H494","v":0.6788452365029736},{"$f":"AK492*'III. GDP shares, 1310-2018'!I494","v":0},{"$f":"AL492*'III. GDP shares, 1310-2018'!J494","v":0},null,null,{"$f":"U492*'III. GDP shares, 1310-2018'!C494","v":0.2689249208700432},{"$f":"V492*'III. GDP shares, 1310-2018'!D494","v":0.3690119291848402},{"$f":"W492*'III. GDP shares, 1310-2018'!E494","v":0.11428075482171574},{"$f":"X492*'III. GDP shares, 1310-2018'!F494","v":0.548603922385268},{"$f":"Y492*'III. GDP shares, 1310-2018'!G494","v":-1.2187185619319902},{"$f":"Z492*'III. GDP shares, 1310-2018'!H494","v":-0.37243222359139616},{"$f":"AA492*'III. GDP shares, 1310-2018'!I494","v":0},{"$f":"AB492*'III. GDP shares, 1310-2018'!J494","v":0},null,null,12.56116705890509,15.729296263178835,null,-0.29032925826151934,0.6260232124070466,{"$f":"AVERAGE(BL489:BL495)","v":5.280197060266187},4.084775121429325,null,null,14.77195713052582]
[{"$f":"'[1]Nominal weighted'!B493","v":1799},null,-16.582983667322786,-15.86269230807316,-5.315709044592318,4.083160245881974,23.549754045511033,6.316,null,2.3668639053254354,null,-2.2704581817187814,-0.6456023015328454,6.521548497923021,4.872240528908521,{"$f":"AVERAGE(G490:G496)","v":18.313717500213478},7.7269172870782805,-3.591489163863215,null,null,20.582983667322786,20.95158597662774,11.644709044592318,-0.4403031030248303,-0.02075404551103468,0,null,-2.3668639053254354,null,null,4,5.08889366855458,{"v":6.329,"d":"6.33"},3.6428571428571432,23.529,6.316,{"$nulls":4},{"$f":"AE493*'III. GDP shares, 1310-2018'!C495","v":0.6293844538733294},{"$f":"AF493*'III. GDP shares, 1310-2018'!D495","v":1.3897790901322598},{"$f":"AG493*'III. GDP shares, 1310-2018'!E495","v":0.19989846878286513},{"$f":"AH493*'III. GDP shares, 1310-2018'!F495","v":0.6643181733950063},{"$f":"AI493*'III. GDP shares, 1310-2018'!G495","v":5.720097709450909},{"$f":"AJ493*'III. GDP shares, 1310-2018'!H495","v":0.7105415574766676},{"$f":"AK493*'III. GDP shares, 1310-2018'!I495","v":0},{"$f":"AL493*'III. GDP shares, 1310-2018'!J495","v":0},null,null,{"$f":"U493*'III. GDP shares, 1310-2018'!C495","v":3.2386524836354025},{"$f":"V493*'III. GDP shares, 1310-2018'!D495","v":5.721887308306845},{"$f":"W493*'III. GDP shares, 1310-2018'!E495","v":0.36779262244208955},{"$f":"X493*'III. GDP shares, 1310-2018'!F495","v":-0.08029448909769644},{"$f":"Y493*'III. GDP shares, 1310-2018'!G495","v":-0.005045482944005668},{"$f":"Z493*'III. GDP shares, 1310-2018'!H495","v":0},{"$f":"AA493*'III. GDP shares, 1310-2018'!I495","v":0},{"$f":"AB493*'III. GDP shares, 1310-2018'!J495","v":0},null,null,8.15095846856862,9.314019453111037,null,9.242992442342636,7.193051090668791,{"$f":"AVERAGE(BL490:BL496)","v":2.551098589188793},1.6372734040564967,null,null,4.403135228942987]
[{"$f":"'[1]Nominal weighted'!B494","v":1800},null,-40.624860159936944,-31.797062667273085,-6.004649382862044,-0.3000501669936839,8.460912888425753,3.4326848181881986,{"$f":"AK494-AA494","v":8.073994324842612},-6.666666666666661,null,0.2508845637979838,0.5799683338021373,4.869511217809899,4.228498997811351,{"$f":"AVERAGE(G491:G497)","v":17.560001497925036},7.518601477957221,-9.918057810515595,null,null,44.624860159936944,36.5,12.583649382862044,3.6571930241365416,2.9350871115742474,2.0973151818118017,-1.3739943248426127,6.666666666666661,null,null,4,4.702937332726914,{"v":6.579,"d":"6.58"},3.3571428571428577,11.396,5.53,6.7,{"$nulls":3},{"$f":"AE494*'III. GDP shares, 1310-2018'!C496","v":0.5787491916355176},{"$f":"AF494*'III. GDP shares, 1310-2018'!D496","v":1.1858004533980115},{"$f":"AG494*'III. GDP shares, 1310-2018'!E496","v":0.19057395640003047},{"$f":"AH494*'III. GDP shares, 1310-2018'!F496","v":0.5637253429551764},{"$f":"AI494*'III. GDP shares, 1310-2018'!G496","v":2.549980035528253},{"$f":"AJ494*'III. GDP shares, 1310-2018'!H496","v":0.5758506267453004},{"$f":"AK494*'III. GDP shares, 1310-2018'!I496","v":0.5252399521289108},{"$f":"AL494*'III. GDP shares, 1310-2018'!J496","v":0},null,null,{"$f":"U494*'III. GDP shares, 1310-2018'!C496","v":6.456650436102881},{"$f":"V494*'III. GDP shares, 1310-2018'!D496","v":9.203124236386815},{"$f":"W494*'III. GDP shares, 1310-2018'!E496","v":0.36451069293856536},{"$f":"X494*'III. GDP shares, 1310-2018'!F496","v":0.6141092230847894},{"$f":"Y494*'III. GDP shares, 1310-2018'!G496","v":0.6567579446341362},{"$f":"Z494*'III. GDP shares, 1310-2018'!H496","v":0.21839787738313918},{"$f":"AA494*'III. GDP shares, 1310-2018'!I496","v":-0.10771294229936255},{"$f":"AB494*'III. GDP shares, 1310-2018'!J496","v":0},null,null,6.0378685985528255,6.169919558791199,null,17.405837468230967,13.461347150268205,{"$f":"AVERAGE(BL491:BL497)","v":2.7279486117403358},2.4481326467248388,null,null,-3.2185941264509603]
[{"$f":"'[1]Nominal weighted'!B495","v":1801},null,9.61331749643256,-6.799141423713089,6.889491864013815,3.812169312169313,-1.7245798829366752,3.7702916170770227,-8.407604177748745,6.249999999999996,null,2.37943591618892,-1.3748215896557787,3.940423646638398,4.645914520800444,{"$f":"AVERAGE(G492:G498)","v":16.11557000312819},6.273510740508546,-10.124136930184772,null,null,-5.613317496432559,11.7,-0.6394918640138145,-0.7407407407407408,10.983579882936676,1.3147083829229773,14.129604177748744,-6.249999999999996,null,null,4,4.90085857628691,6.25,3.071428571428572,9.259,5.085,5.722,{"$nulls":3},{"$f":"AE495*'III. GDP shares, 1310-2018'!C497","v":0.5775504390330182},{"$f":"AF495*'III. GDP shares, 1310-2018'!D497","v":1.2380609317505027},{"$f":"AG495*'III. GDP shares, 1310-2018'!E497","v":0.18019477646902657},{"$f":"AH495*'III. GDP shares, 1310-2018'!F497","v":0.5153741086709345},{"$f":"AI495*'III. GDP shares, 1310-2018'!G497","v":2.0694502947757125},{"$f":"AJ495*'III. GDP shares, 1310-2018'!H497","v":0.5318655436264841},{"$f":"AK495*'III. GDP shares, 1310-2018'!I497","v":0.44781452684629064},{"$f":"AL495*'III. GDP shares, 1310-2018'!J497","v":0},null,null,{"$f":"U495*'III. GDP shares, 1310-2018'!C497","v":-0.8104934961240867},{"$f":"V495*'III. GDP shares, 1310-2018'!D497","v":2.9556684152382835},{"$f":"W495*'III. GDP shares, 1310-2018'!E497","v":-0.01843729495835687},{"$f":"X495*'III. GDP shares, 1310-2018'!F497","v":-0.12429349735388598},{"$f":"Y495*'III. GDP shares, 1310-2018'!G497","v":2.4549057810169446},{"$f":"Z495*'III. GDP shares, 1310-2018'!H497","v":0.1375119152003196},{"$f":"AA495*'III. GDP shares, 1310-2018'!I497","v":1.1058095088052997},{"$f":"AB495*'III. GDP shares, 1310-2018'!J497","v":0},null,null,5.469755306816498,5.560310621171968,null,5.700671331824518,3.110542792802661,{"$f":"AVERAGE(BL492:BL498)","v":3.2177899116002115},3.6448898673458388,null,null,1.5772467728352328]
[{"$f":"'[1]Nominal weighted'!B496","v":1802},null,29.61086676184917,27.225470639404502,10.12325891319163,10.809805970149252,6.170339836848252,20.572982407139854,-10.440857638683513,1.8181818181818152,null,3.0190870265534326,-3.6187481612203265,3.0571153480328945,3.6376580229361437,{"$f":"AVERAGE(G493:G499)","v":8.813240772641844},5.777807579311449,-3.7562273567147826,null,null,-25.61086676184917,-23,-4.171258913191632,-2.2388059701492535,2.601660163151748,-15.733982407139852,15.731857638683513,-1.8181818181818152,null,null,4,4.225470639404501,{"v":5.952,"d":"5.95"},8.571,8.772,4.839,5.291,{"$nulls":3},{"$f":"AE496*'III. GDP shares, 1310-2018'!C498","v":0.5763639940728279},{"$f":"AF496*'III. GDP shares, 1310-2018'!D498","v":1.0694545224954533},{"$f":"AG496*'III. GDP shares, 1310-2018'!E498","v":0.17080283913109062},{"$f":"AH496*'III. GDP shares, 1310-2018'!F498","v":1.4371467775295153},{"$f":"AI496*'III. GDP shares, 1310-2018'!G498","v":1.9583965165874095},{"$f":"AJ496*'III. GDP shares, 1310-2018'!H498","v":0.5083520222886574},{"$f":"AK496*'III. GDP shares, 1310-2018'!I498","v":0.4133917094483482},{"$f":"AL496*'III. GDP shares, 1310-2018'!J498","v":0},null,null,{"$f":"U496*'III. GDP shares, 1310-2018'!C498","v":-3.6902953646316052},{"$f":"V496*'III. GDP shares, 1310-2018'!D498","v":-5.821234157448072},{"$f":"W496*'III. GDP shares, 1310-2018'!E498","v":-0.11970142223185452},{"$f":"X496*'III. GDP shares, 1310-2018'!F498","v":-0.3753929279563458},{"$f":"Y496*'III. GDP shares, 1310-2018'!G498","v":0.5808347242203163},{"$f":"Z496*'III. GDP shares, 1310-2018'!H498","v":-1.652903859335338},{"$f":"AA496*'III. GDP shares, 1310-2018'!I498","v":1.2291475188156173},{"$f":"AB496*'III. GDP shares, 1310-2018'!J498","v":0},null,null,5.9500672342006435,6.133908381553302,null,-9.84954548856728,-6.7799472585845555,{"$f":"AVERAGE(BL493:BL499)","v":4.0995382015517965},3.3900572236413766,null,null,9.092765190177058]
[{"$f":"'[1]Nominal weighted'!B497","v":1803},null,18.983385364087173,10.979719679933797,5.751112778238628,2.4641297709923666,13.120938494116027,-0.4010441955393036,-28.897763750472734,1.2345679012345707,null,5.9595132647424025,-0.02587263413932536,5.406212159700374,4.391345753377912,{"$f":"AVERAGE(G494:G500)","v":6.028237446265313},4.960328667265748,2.6143457581404967,null,null,-14.983385364087173,-5.9,1.3918872217613711,6.106870229007633,-3.8009384941160267,5.486044195539304,34.16076375047273,-1.2345679012345707,null,null,4,5.079719679933798,{"v":7.143,"d":"7.14"},8.571,9.32,5.085,5.263,{"$nulls":3},{"$f":"AE497*'III. GDP shares, 1310-2018'!C499","v":0.5751896681784032},{"$f":"AF497*'III. GDP shares, 1310-2018'!D499","v":1.288055280783449},{"$f":"AG497*'III. GDP shares, 1310-2018'!E499","v":0.2040300537533296},{"$f":"AH497*'III. GDP shares, 1310-2018'!F499","v":1.4361227096024778},{"$f":"AI497*'III. GDP shares, 1310-2018'!G499","v":2.078420695247328},{"$f":"AJ497*'III. GDP shares, 1310-2018'!H499","v":0.5365008380299815},{"$f":"AK497*'III. GDP shares, 1310-2018'!I499","v":0.4105227872362938},{"$f":"AL497*'III. GDP shares, 1310-2018'!J499","v":0},null,null,{"$f":"U497*'III. GDP shares, 1310-2018'!C499","v":-2.154572113939611},{"$f":"V497*'III. GDP shares, 1310-2018'!D499","v":-1.4960522697034715},{"$f":"W497*'III. GDP shares, 1310-2018'!E499","v":0.03975736030723018},{"$f":"X497*'III. GDP shares, 1310-2018'!F499","v":1.0232429145342605},{"$f":"Y497*'III. GDP shares, 1310-2018'!G499","v":-0.8476340372889447},{"$f":"Z497*'III. GDP shares, 1310-2018'!H499","v":0.578813629965851},{"$f":"AA497*'III. GDP shares, 1310-2018'!I499","v":2.664596608201523},{"$f":"AB497*'III. GDP shares, 1310-2018'!J499","v":0},null,null,6.351674239990543,6.528842032831264,null,-0.19184790792316253,2.653334204667909,{"$f":"AVERAGE(BL494:BL500)","v":2.3827512973814082},1.4042256669126034,null,null,3.9365823902675054]
[{"$f":"'[1]Nominal weighted'!B498","v":1804},null,13.36160629280917,2.0531619291327363,13.07302294906465,10.729273381294963,9.445090087795501,0.8374376643706851,-10.948453408861473,-35.62499999999999,null,12.674921859019108,5.468816728905708,7.6493237218797825,6.2827077881531705,{"$f":"AVERAGE(G495:G501)","v":6.13774528587735},5.906574513071086,4.627798838281452,null,null,-9.36160629280917,3.2,-5.073022949064652,-2.158273381294964,-0.8240900877955003,4.3795623356293145,16.211453408861473,35.62499999999999,null,null,4,5.2531619291327365,{"v":8,"d":"8.00"},8.571,8.621,5.217,5.263,{"$nulls":3},{"$f":"AE498*'III. GDP shares, 1310-2018'!C500","v":0.5740272766060941},{"$f":"AF498*'III. GDP shares, 1310-2018'!D500","v":1.334484039712658},{"$f":"AG498*'III. GDP shares, 1310-2018'!E500","v":0.2274552909329468},{"$f":"AH498*'III. GDP shares, 1310-2018'!F500","v":1.435109048970866},{"$f":"AI498*'III. GDP shares, 1310-2018'!G500","v":1.9204151447427336},{"$f":"AJ498*'III. GDP shares, 1310-2018'!H500","v":0.5527692662965296},{"$f":"AK498*'III. GDP shares, 1310-2018'!I500","v":0.40984845948904663},{"$f":"AL498*'III. GDP shares, 1310-2018'!J500","v":0},null,null,{"$f":"U498*'III. GDP shares, 1310-2018'!C500","v":-1.3434543412299302},{"$f":"V498*'III. GDP shares, 1310-2018'!D500","v":0.8129102024055659},{"$f":"W498*'III. GDP shares, 1310-2018'!E500","v":-0.144235738848627},{"$f":"X498*'III. GDP shares, 1310-2018'!F500","v":-0.36137646244888005},{"$f":"Y498*'III. GDP shares, 1310-2018'!G500","v":-0.18357442120807885},{"$f":"Z498*'III. GDP shares, 1310-2018'!H500","v":0.4640382325025363},{"$f":"AA498*'III. GDP shares, 1310-2018'!I500","v":1.2624433223827338},{"$f":"AB498*'III. GDP shares, 1310-2018'!J500","v":0},null,null,6.417880275590391,6.454108526750875,null,0.5067507935553199,5.249877879190811,{"$f":"AVERAGE(BL495:BL501)","v":-0.695378281656278},-1.1876553232149658,null,null,5.425783895888464]
[{"$f":"'[1]Nominal weighted'!B499","v":1805},null,6.772277097955687,-11.130692977953988,-3.116720640824097,-6.134882352941178,2.670229938733012,5.916300743943688,28.08332051063516,29.95391705069124,null,12.296121028587283,6.600429720294319,7.193769811845603,4.134266612283423,{"$f":"AVERAGE(G496:G502)","v":7.139800022679101},4.790002218787107,9.121750574495037,null,null,-2.7722770979556866,16.2,10.469720640824097,14.705882352941178,5.607770061266988,-0.6993007439436882,-22.820320510635163,-29.95391705069124,null,null,4,5.069307022046012,{"v":7.353,"d":"7.35"},8.571,8.278,5.217,5.263,{"$nulls":3},{"$f":"AE499*'III. GDP shares, 1310-2018'!C501","v":0.5728766383482559},{"$f":"AF499*'III. GDP shares, 1310-2018'!D501","v":1.290118262167132},{"$f":"AG499*'III. GDP shares, 1310-2018'!E501","v":0.20810106474461498},{"$f":"AH499*'III. GDP shares, 1310-2018'!F501","v":1.4341056377874213},{"$f":"AI499*'III. GDP shares, 1310-2018'!G501","v":1.8419895478054928},{"$f":"AJ499*'III. GDP shares, 1310-2018'!H501","v":0.5550871528571133},{"$f":"AK499*'III. GDP shares, 1310-2018'!I501","v":0.40918095008620137},{"$f":"AL499*'III. GDP shares, 1310-2018'!J501","v":0},null,null,{"$f":"U499*'III. GDP shares, 1310-2018'!C501","v":-0.39704319611167804},{"$f":"V499*'III. GDP shares, 1310-2018'!D501","v":4.12283488773031},{"$f":"W499*'III. GDP shares, 1310-2018'!E501","v":0.29630899128711646},{"$f":"X499*'III. GDP shares, 1310-2018'!F501","v":2.460598388868451},{"$f":"Y499*'III. GDP shares, 1310-2018'!G501","v":1.247819985425267},{"$f":"Z499*'III. GDP shares, 1310-2018'!H501","v":-0.07440537836813554},{"$f":"AA499*'III. GDP shares, 1310-2018'!I501","v":-1.7742049074317545},{"$f":"AB499*'III. GDP shares, 1310-2018'!J501","v":0},null,null,6.2501867174351435,6.311459253796231,null,5.8819087713995755,-1.1578052935241887,{"$f":"AVERAGE(BL496:BL502)","v":-0.9437111470504927},-1.0742055810896929,null,null,3.2622671079598344]
[{"$f":"'[1]Nominal weighted'!B500","v":1806},null,4,9.287436381493851,11.127968637080027,9.35897435897436,4.054730760875325,0.5936476156800934,40.83778444727217,18.421052631578945,null,9.18384609266017,1.9516524966192141,7.103792916232483,5.233813811353011,{"$f":"AVERAGE(G497:G503)","v":7.513883504966655},2.793752085374799,12.172065443857267,null,null,0,-4.4,-3.984968637080028,0.641025641025641,2.511269239124675,4.225352384319907,-34.23378444727217,-18.421052631578945,null,null,4,4.887436381493852,{"v":7.143,"d":"7.14"},10,6.566,4.819,6.604,{"$nulls":3},{"$f":"AE500*'III. GDP shares, 1310-2018'!C502","v":0.5717375760392829},{"$f":"AF500*'III. GDP shares, 1310-2018'!D502","v":1.2460659806305032},{"$f":"AG500*'III. GDP shares, 1310-2018'!E502","v":0.20123571915367064},{"$f":"AH500*'III. GDP shares, 1310-2018'!F502","v":1.6720479773432693},{"$f":"AI500*'III. GDP shares, 1310-2018'!G502","v":1.4594564909651162},{"$f":"AJ500*'III. GDP shares, 1310-2018'!H502","v":0.5148595956835913},{"$f":"AK500*'III. GDP shares, 1310-2018'!I502","v":0.512610129414891},{"$f":"AL500*'III. GDP shares, 1310-2018'!J502","v":0},null,null,{"$f":"U500*'III. GDP shares, 1310-2018'!C502","v":0},{"$f":"V500*'III. GDP shares, 1310-2018'!D502","v":-1.1217926714165072},{"$f":"W500*'III. GDP shares, 1310-2018'!E502","v":-0.11226627880269106},{"$f":"X500*'III. GDP shares, 1310-2018'!F502","v":0.10718256265020956},{"$f":"Y500*'III. GDP shares, 1310-2018'!G502","v":0.5581919268354456},{"$f":"Z500*'III. GDP shares, 1310-2018'!H502","v":0.45143457568201817},{"$f":"AA500*'III. GDP shares, 1310-2018'!I502","v":-2.657266001798557},{"$f":"AB500*'III. GDP shares, 1310-2018'!J502","v":0},null,null,6.288490911641979,6.178013469230325,null,-2.7745158868500823,-6.707769806432616,{"$f":"AVERAGE(BL497:BL503)","v":0.3884290856611877},0.2359043655136069,null,null,6.584670704033396]
[{"$f":"'[1]Nominal weighted'!B501","v":1807},null,6.383,6.665762874042146,9.69713155239382,12.939484076433121,9.227467765710005,10.056405738825568,22.168165885829293,1.6129032258064553,null,2.844098093739368,0.5557690313485815,9.244089495321367,8.1233117561563,{"$f":"AVERAGE(G498:G504)","v":6.25997284685068},3.5103298275946995,19.409451330563503,null,null,0,-1.9,-2.9401315523938205,-5.7324840764331215,-3.4334677657100054,-5.405405738825569,-16.430165885829293,-1.6129032258064553,null,null,6.383,4.765762874042147,{"v":6.757,"d":"6.76"},7.207,5.794,4.651,5.738,{"$nulls":3},{"$f":"AE501*'III. GDP shares, 1310-2018'!C503","v":0.910550773240723},{"$f":"AF501*'III. GDP shares, 1310-2018'!D503","v":1.2172006457417022},{"$f":"AG501*'III. GDP shares, 1310-2018'!E503","v":0.1894976878095736},{"$f":"AH501*'III. GDP shares, 1310-2018'!F503","v":1.2042180993477165},{"$f":"AI501*'III. GDP shares, 1310-2018'!G503","v":1.286475483367641},{"$f":"AJ501*'III. GDP shares, 1310-2018'!H503","v":0.4989357077206615},{"$f":"AK501*'III. GDP shares, 1310-2018'!I503","v":0.4446769855360535},{"$f":"AL501*'III. GDP shares, 1310-2018'!J503","v":0},null,null,{"$f":"U501*'III. GDP shares, 1310-2018'!C503","v":0},{"$f":"V501*'III. GDP shares, 1310-2018'!D503","v":-0.48526989026369705},{"$f":"W501*'III. GDP shares, 1310-2018'!E503","v":-0.08245495501474046},{"$f":"X501*'III. GDP shares, 1310-2018'!F503","v":-0.9578411376527465},{"$f":"Y501*'III. GDP shares, 1310-2018'!G503","v":-0.7623527966032092},{"$f":"Z501*'III. GDP shares, 1310-2018'!H503","v":-0.5798645318895421},{"$f":"AA501*'III. GDP shares, 1310-2018'!I503","v":-1.2732862736089006},{"$f":"AB501*'III. GDP shares, 1310-2018'!J503","v":0},null,null,5.899394696291735,5.751555382764071,null,-4.141069585032835,-4.6818197806247825,{"$f":"AVERAGE(BL498:BL504)","v":0.9913985448898314},0.4401347169305963,null,null,8.190154431791509]
[{"$f":"'[1]Nominal weighted'!B502","v":1808},null,6.961711683409785,1.1221495160071915,3.7006144937745606,-11.22691891891892,5.289803274675586,-4.045714442910832,23.05005797574636,-12.295081967213115,null,-1.4373962660201864,1.3444842503391539,10.355368769488464,8.806870104282993,{"$f":"AVERAGE(G499:G505)","v":4.539057903485072},3.1342241545656315,13.535960904255205,null,null,-0.5097116834097855,3.4,3.442385506225439,18.91891891891892,0.9371967253244139,8.660714442910832,-15.907057975746358,12.295081967213115,null,null,6.452,4.522149516007191,{"v":7.143,"d":"7.14"},7.692,6.227,4.615,7.143,{"$nulls":3},{"$f":"AE502*'III. GDP shares, 1310-2018'!C504","v":0.918592995291654},{"$f":"AF502*'III. GDP shares, 1310-2018'!D504","v":1.1570056361538394},{"$f":"AG502*'III. GDP shares, 1310-2018'!E504","v":0.1994192165585119},{"$f":"AH502*'III. GDP shares, 1310-2018'!F504","v":1.284383047848895},{"$f":"AI502*'III. GDP shares, 1310-2018'!G504","v":1.381143476635365},{"$f":"AJ502*'III. GDP shares, 1310-2018'!H504","v":0.49706326970634873},{"$f":"AK502*'III. GDP shares, 1310-2018'!I504","v":0.5526810586353447},{"$f":"AL502*'III. GDP shares, 1310-2018'!J504","v":0},null,null,{"$f":"U502*'III. GDP shares, 1310-2018'!C504","v":-0.07256937104751178},{"$f":"V502*'III. GDP shares, 1310-2018'!D504","v":0.8699002872413647},{"$f":"W502*'III. GDP shares, 1310-2018'!E504","v":0.0961049728046834},{"$f":"X502*'III. GDP shares, 1310-2018'!F504","v":3.159014397177223},{"$f":"Y502*'III. GDP shares, 1310-2018'!G504","v":0.20786946258324077},{"$f":"Z502*'III. GDP shares, 1310-2018'!H504","v":0.9328110593686363},{"$f":"AA502*'III. GDP shares, 1310-2018'!I504","v":-1.2307895340626207},{"$f":"AB502*'III. GDP shares, 1310-2018'!J504","v":0},null,null,6.2563070737153135,5.990288700829958,null,3.9623412740650155,3.904690987679572,{"$f":"AVERAGE(BL499:BL505)","v":2.612350960376318},2.0079625076335073,null,null,1.7408420778524678]
[{"$f":"'[1]Nominal weighted'!B503","v":1809},null,7.824942210359363,-5.315969926321236,9.49342064389979,18.506636363636364,8.788924212861136,6.599231473253695,10.91134644685211,-29.1970802919708,null,-0.5492278194049689,1.7649971218057305,13.013507725822363,9.788837037397702,{"$f":"AVERAGE(G500:G506)","v":3.8779325825664666},2.8483421049000763,4.967942633239444,null,null,-1.2679422103593623,9.7,-0.8724206438997896,-11.363636363636363,-2.5119242128611363,-2.054231473253696,-1.7003464468521114,29.1970802919708,null,null,6.557,4.384030073678764,{"v":8.621,"d":"8.62"},7.143,6.277,4.545,9.211,{"$nulls":3},{"$f":"AE503*'III. GDP shares, 1310-2018'!C505","v":0.9317302320785997},{"$f":"AF503*'III. GDP shares, 1310-2018'!D505","v":1.1236111587653888},{"$f":"AG503*'III. GDP shares, 1310-2018'!E505","v":0.23960232892443048},{"$f":"AH503*'III. GDP shares, 1310-2018'!F505","v":1.1919096320878344},{"$f":"AI503*'III. GDP shares, 1310-2018'!G505","v":1.390762812469509},{"$f":"AJ503*'III. GDP shares, 1310-2018'!H505","v":0.4914637137863621},{"$f":"AK503*'III. GDP shares, 1310-2018'!I505","v":0.7115678090933258},{"$f":"AL503*'III. GDP shares, 1310-2018'!J505","v":0},null,null,{"$f":"U503*'III. GDP shares, 1310-2018'!C505","v":-0.1801708235352114},{"$f":"V503*'III. GDP shares, 1310-2018'!D505","v":2.486075153877443},{"$f":"W503*'III. GDP shares, 1310-2018'!E505","v":-0.024247073202661038},{"$f":"X503*'III. GDP shares, 1310-2018'!F505","v":-1.896181945591734},{"$f":"Y503*'III. GDP shares, 1310-2018'!G505","v":-0.5565542110863488},{"$f":"Z503*'III. GDP shares, 1310-2018'!H505","v":-0.22212986332719284},{"$f":"AA503*'III. GDP shares, 1310-2018'!I505","v":-0.13135509671981088},{"$f":"AB503*'III. GDP shares, 1310-2018'!J505","v":0},null,null,6.6768614390969665,6.080647687205451,null,-0.5245638595855164,2.3908223676385427,{"$f":"AVERAGE(BL500:BL506)","v":3.3736222402160925},3.86107279673072,null,null,7.96767554190302]
[{"$f":"'[1]Nominal weighted'!B504","v":1810},null,-25.394850628358427,1.2085354230393692,20.733188831860826,22.690615384615384,4.3435638873041915,4.615,21.763937456470906,0.5649717514124374,null,1.900530939930887,0.8021471065280207,14.81107655612392,11.367377718128164,{"$f":"AVERAGE(G501:G507)","v":5.862825509374472},0.7014617335114133,8.794198629382558,null,null,31.951850628358425,3.2,1.4888111681391771,-15.384615384615385,1.9184361126958083,0,10.054062543529094,-0.5649717514124374,null,null,6.557,4.408535423039369,{"v":22.222,"d":"22.22"},7.306,6.262,4.615,31.818,{"$nulls":3},{"$f":"AE504*'III. GDP shares, 1310-2018'!C506","v":0.9299361344873796},{"$f":"AF504*'III. GDP shares, 1310-2018'!D506","v":1.1318271798798936},{"$f":"AG504*'III. GDP shares, 1310-2018'!E506","v":0.6148570204521989},{"$f":"AH504*'III. GDP shares, 1310-2018'!F506","v":1.2182949066963267},{"$f":"AI504*'III. GDP shares, 1310-2018'!G506","v":1.3859866990743896},{"$f":"AJ504*'III. GDP shares, 1310-2018'!H506","v":0.5009833284620901},{"$f":"AK504*'III. GDP shares, 1310-2018'!I506","v":2.4541644052752045},{"$f":"AL504*'III. GDP shares, 1310-2018'!J506","v":0},null,null,{"$f":"U504*'III. GDP shares, 1310-2018'!C506","v":4.531520583049227},{"$f":"V504*'III. GDP shares, 1310-2018'!D506","v":0.8215533341725211},{"$f":"W504*'III. GDP shares, 1310-2018'!E506","v":0.041193681885429406},{"$f":"X504*'III. GDP shares, 1310-2018'!F506","v":-2.5654254810510366},{"$f":"Y504*'III. GDP shares, 1310-2018'!G506","v":0.4246130525743161},{"$f":"Z504*'III. GDP shares, 1310-2018'!H506","v":0},{"$f":"AA504*'III. GDP shares, 1310-2018'!I506","v":0.775483136046885},{"$f":"AB504*'III. GDP shares, 1310-2018'!J506","v":0},null,null,11.884076489005624,8.236049674327482,null,4.028938306677342,4.082946664586835,{"$f":"AVERAGE(BL501:BL507)","v":2.880270609592432},3.926623018019843,null,null,3.896837521942768]
[{"$f":"'[1]Nominal weighted'!B505","v":1811},null,-16.608854225507713,7.574168462066744,20.851977868234325,15.514181818181818,-2.6013145157637467,-1.795302046832795,-52.06288639301957,-0.5681818181818262,null,2.304845138222287,2.3101064823025603,15.056084759590277,11.423641897685338,{"$f":"AVERAGE(G502:G508)","v":6.107540603127495},-1.3077548386387676,12.081278104958287,null,null,23.025854225507715,-2.9,-1.620977868234324,-6.8181818181818175,8.684314515763747,6.795302046832795,102.06288639301957,0.5681818181818262,null,null,6.417,4.674168462066745,{"v":19.231,"d":"19.23"},8.696,6.083,5,50,{"$nulls":3},{"$f":"AE505*'III. GDP shares, 1310-2018'!C507","v":0.908342295627993},{"$f":"AF505*'III. GDP shares, 1310-2018'!D507","v":1.2020564547759813},{"$f":"AG505*'III. GDP shares, 1310-2018'!E507","v":0.5297377560330176},{"$f":"AH505*'III. GDP shares, 1310-2018'!F507","v":1.4491222592788415},{"$f":"AI505*'III. GDP shares, 1310-2018'!G507","v":1.3449708397220106},{"$f":"AJ505*'III. GDP shares, 1310-2018'!H507","v":0.5448694532193864},{"$f":"AK505*'III. GDP shares, 1310-2018'!I507","v":3.8505933709985154},{"$f":"AL505*'III. GDP shares, 1310-2018'!J507","v":0},null,null,{"$f":"U505*'III. GDP shares, 1310-2018'!C507","v":3.259366882654387},{"$f":"V505*'III. GDP shares, 1310-2018'!D507","v":-0.7457933420972555},{"$f":"W505*'III. GDP shares, 1310-2018'!E507","v":-0.04465150946376347},{"$f":"X505*'III. GDP shares, 1310-2018'!F507","v":-1.1361981417361495},{"$f":"Y505*'III. GDP shares, 1310-2018'!G507","v":1.9201298350611231},{"$f":"Z505*'III. GDP shares, 1310-2018'!H507","v":0.7405105021436725},{"$f":"AA505*'III. GDP shares, 1310-2018'!I507","v":7.860053475398714},{"$f":"AB505*'III. GDP shares, 1310-2018'!J507","v":0},null,null,14.300166923152391,9.829692429655747,null,11.853417701960728,16.224672414111186,{"$f":"AVERAGE(BL502:BL508)","v":2.6508197322837463},4.112639774129261,null,null,-3.97157506917822]
[{"$f":"'[1]Nominal weighted'!B506","v":1812},null,12.98945622426221,-8.187102877687956,15.490252053513194,0.7388861788617902,-1.9576473076972318,3.9151263962848004,-31.89280738647517,0,null,-0.5079022899611881,4.397721969338256,15.000887486757138,13.517175769219207,{"$f":"AVERAGE(G503:G509)","v":6.578591331464951},1.7653641061762493,13.851954689811427,null,null,-6.53745622426221,13.2,5.786747946486807,11.38211382113821,8.363647307697232,1.2568736037151995,61.05980738647517,0,null,null,6.452,5.012897122312045,{"v":21.277,"d":"21.28"},12.121,6.406,5.172,29.167,{"$nulls":3},{"$f":"AE506*'III. GDP shares, 1310-2018'!C508","v":0.9115656602186053},{"$f":"AF506*'III. GDP shares, 1310-2018'!D508","v":1.2913251752749852},{"$f":"AG506*'III. GDP shares, 1310-2018'!E508","v":0.5835094320000238},{"$f":"AH506*'III. GDP shares, 1310-2018'!F508","v":2.018549023417684},{"$f":"AI506*'III. GDP shares, 1310-2018'!G508","v":1.4149300858909653},{"$f":"AJ506*'III. GDP shares, 1310-2018'!H508","v":0.5657560840326857},{"$f":"AK506*'III. GDP shares, 1310-2018'!I508","v":2.2427550286381672},{"$f":"AL506*'III. GDP shares, 1310-2018'!J508","v":0},null,null,{"$f":"U506*'III. GDP shares, 1310-2018'!C508","v":-0.9236392745225996},{"$f":"V506*'III. GDP shares, 1310-2018'!D508","v":3.4003275745998343},{"$f":"W506*'III. GDP shares, 1310-2018'!E508","v":0.15869821908078305},{"$f":"X506*'III. GDP shares, 1310-2018'!F508","v":1.895499937141115},{"$f":"Y506*'III. GDP shares, 1310-2018'!G508","v":1.8473269128070222},{"$f":"Z506*'III. GDP shares, 1310-2018'!H508","v":0.13748721735536756},{"$f":"AA506*'III. GDP shares, 1310-2018'!I508","v":4.695107143816474},{"$f":"AB506*'III. GDP shares, 1310-2018'!J508","v":0},null,null,12.22969958890172,9.028390489473118,null,11.210807730277995,11.813966730156302,{"$f":"AVERAGE(BL503:BL509)","v":1.8872497814789024},3.45405472382364,null,null,-0.07341484148003019]
[{"$f":"'[1]Nominal weighted'!B507","v":1813},null,21.14831131535099,2.547486274549886,23.710950449190932,20.40875912408759,17.948981248531368,-14.434514984040543,67.62157642027398,-5.649717514124294,null,-1.2687800643373393,7.044146318619091,12.82755424322238,10.120186900944626,{"$f":"AVERAGE(G504:G510)","v":3.9352056691273867},2.7554611167568805,19.160680730275732,null,null,-14.76531131535099,2.5,-4.10295044919093,-12.408759124087592,-8.42498124853137,20.015514984040543,-38.45457642027399,5.649717514124294,null,null,6.383,5.047486274549886,{"v":19.608,"d":"19.61"},8,9.524,5.581,29.167,{"$nulls":3},{"$f":"AE507*'III. GDP shares, 1310-2018'!C509","v":0.9001212318012841},{"$f":"AF507*'III. GDP shares, 1310-2018'!D509","v":1.3023869657634606},{"$f":"AG507*'III. GDP shares, 1310-2018'!E509","v":0.535376705757602},{"$f":"AH507*'III. GDP shares, 1310-2018'!F509","v":1.3314006759757793},{"$f":"AI507*'III. GDP shares, 1310-2018'!G509","v":2.1014754391934},{"$f":"AJ507*'III. GDP shares, 1310-2018'!H509","v":0.6127860071405116},{"$f":"AK507*'III. GDP shares, 1310-2018'!I509","v":2.2393384492996056},{"$f":"AL507*'III. GDP shares, 1310-2018'!J509","v":0},null,null,{"$f":"U507*'III. GDP shares, 1310-2018'!C509","v":-2.0821823921515232},{"$f":"V507*'III. GDP shares, 1310-2018'!D509","v":0.645067116046592},{"$f":"W507*'III. GDP shares, 1310-2018'!E509","v":-0.11202693264863899},{"$f":"X507*'III. GDP shares, 1310-2018'!F509","v":-2.065128785728855},{"$f":"Y507*'III. GDP shares, 1310-2018'!G509","v":-1.8589763932647652},{"$f":"Z507*'III. GDP shares, 1310-2018'!H509","v":2.1976755971924895},{"$f":"AA507*'III. GDP shares, 1310-2018'!I509","v":-2.9524055106610048},{"$f":"AB507*'III. GDP shares, 1310-2018'!J509","v":0},null,null,11.901498039221412,9.022885474931645,null,-6.227977301215706,-6.248918257408754,{"$f":"AVERAGE(BL504:BL510)","v":2.349546947291515},3.104702004389766,null,null,14.59354292643048]
[{"$f":"'[1]Nominal weighted'!B508","v":1814},null,9.2131993880398,17.22147850446392,11.412188976658307,13.333333333333332,10.94047342198116,-4.008110266225698,45.177722214859386,-10.695187165775389,null,4.516767729534033,5.513582926468893,9.710675366802663,4.901836316045653,{"$f":"AVERAGE(G505:G511)","v":0.6362563326248646},3.4612846938403266,20.858661580601204,null,null,3.1328006119601994,-12.7,-4.745188976658308,-8.333333333333332,-3.937473421981161,9.890110266225697,-21.03972221485938,10.695187165775389,null,null,12.346,4.521478504463922,{"v":6.667,"d":"6.67"},5,7.003,5.882,24.138,{"$nulls":3},{"$f":"AE508*'III. GDP shares, 1310-2018'!C510","v":1.737766353544853},{"$f":"AF508*'III. GDP shares, 1310-2018'!D510","v":1.1685715817545665},{"$f":"AG508*'III. GDP shares, 1310-2018'!E510","v":0.18124059212034144},{"$f":"AH508*'III. GDP shares, 1310-2018'!F510","v":0.8315900296486106},{"$f":"AI508*'III. GDP shares, 1310-2018'!G510","v":1.5436533604463263},{"$f":"AJ508*'III. GDP shares, 1310-2018'!H510","v":0.6482256816685622},{"$f":"AK508*'III. GDP shares, 1310-2018'!I510","v":1.8504295841469713},{"$f":"AL508*'III. GDP shares, 1310-2018'!J510","v":0},null,null,{"$f":"U508*'III. GDP shares, 1310-2018'!C510","v":0.4409586502372558},{"$f":"V508*'III. GDP shares, 1310-2018'!D510","v":-3.2823022543690192},{"$f":"W508*'III. GDP shares, 1310-2018'!E510","v":-0.12899667914391313},{"$f":"X508*'III. GDP shares, 1310-2018'!F510","v":-1.3859833827476842},{"$f":"Y508*'III. GDP shares, 1310-2018'!G510","v":-0.8679271854218642},{"$f":"Z508*'III. GDP shares, 1310-2018'!H510","v":1.0899393861104043},{"$f":"AA508*'III. GDP shares, 1310-2018'!I510","v":-1.6129142608588134},{"$f":"AB508*'III. GDP shares, 1310-2018'!J510","v":0},null,null,9.365354072066273,7.961477183330231,null,-5.747225726193634,-3.3797024878588617,{"$f":"AVERAGE(BL505:BL511)","v":3.393296726696838},3.4480476199662253,null,null,9.25782907340028]
[{"$f":"'[1]Nominal weighted'!B509","v":1815},null,-12.727520313874546,15.735457925257057,3.314233583942592,3.427818181818182,8.587158373037777,17.466118170794285,35.44479406971835,-1.932367149758459,null,11.201179247067667,4.9385832048325105,9.521727381967247,5.300404936614275,{"$f":"AVERAGE(G506:G512)","v":5.934311911926707},4.9902497470912905,35.32239020506712,null,null,22.073520313874546,-10.7,2.746766416057408,1.8181818181818181,0.8918416269622216,-12.294118170794286,-12.111794069718348,1.932367149758459,null,null,9.346,5.035457925257058,{"v":6.061,"d":"6.06"},5.246,9.479,5.172,23.333,{"$nulls":3},{"$f":"AE509*'III. GDP shares, 1310-2018'!C511","v":1.3130647691662456},{"$f":"AF509*'III. GDP shares, 1310-2018'!D511","v":1.3035143062754941},{"$f":"AG509*'III. GDP shares, 1310-2018'!E511","v":0.16405074433121167},{"$f":"AH509*'III. GDP shares, 1310-2018'!F511","v":0.871947931481824},{"$f":"AI509*'III. GDP shares, 1310-2018'!G511","v":2.0873375872696647},{"$f":"AJ509*'III. GDP shares, 1310-2018'!H511","v":0.572061687129657},{"$f":"AK509*'III. GDP shares, 1310-2018'!I511","v":1.7860372259192643},{"$f":"AL509*'III. GDP shares, 1310-2018'!J511","v":0},null,null,{"$f":"U509*'III. GDP shares, 1310-2018'!C511","v":3.1012156918065608},{"$f":"V509*'III. GDP shares, 1310-2018'!D511","v":-2.7698777914891957},{"$f":"W509*'III. GDP shares, 1310-2018'!E511","v":0.07434566491638218},{"$f":"X509*'III. GDP shares, 1310-2018'!F511","v":0.30220355993547426},{"$f":"Y509*'III. GDP shares, 1310-2018'!G511","v":0.1963893395769571},{"$f":"Z509*'III. GDP shares, 1310-2018'!H511","v":-1.3598209556372685},{"$f":"AA509*'III. GDP shares, 1310-2018'!I511","v":-0.9271038906778022},{"$f":"AB509*'III. GDP shares, 1310-2018'!J511","v":0},null,null,9.096065417893865,8.098014251573362,null,-1.382648381568892,-0.7054043644597727,{"$f":"AVERAGE(BL506:BL512)","v":0.05101463171219223},-0.1758901257328149,null,null,5.407270535377563]
[{"$f":"'[1]Nominal weighted'!B510","v":1816},null,2.498797789726309,13.209000518644615,-5.719912060843532,-5.272285714285713,-9.714775423501811,13.529910547318114,48.072428730102224,14.218009478672974,null,12.819710429908392,7.063388190005076,10.111538916318622,8.965311306666987,{"$f":"AVERAGE(G507:G513)","v":8.34974759864768},5.02408883333632,50.85588946469903,null,null,6.197202210273691,-8.4,11.369912060843532,10.714285714285714,18.80577542350181,-8.651910547318113,-16.254428730102223,-14.218009478672974,null,null,8.696,4.809000518644615,5.65,5.442,9.091,4.878,31.818,{"$nulls":3},{"$f":"AE510*'III. GDP shares, 1310-2018'!C512","v":1.2194988631323933},{"$f":"AF510*'III. GDP shares, 1310-2018'!D512","v":1.246883259489081},{"$f":"AG510*'III. GDP shares, 1310-2018'!E512","v":0.1522654025988963},{"$f":"AH510*'III. GDP shares, 1310-2018'!F512","v":0.9039538901693301},{"$f":"AI510*'III. GDP shares, 1310-2018'!G512","v":1.999908299395914},{"$f":"AJ510*'III. GDP shares, 1310-2018'!H512","v":0.5414875101980167},{"$f":"AK510*'III. GDP shares, 1310-2018'!I512","v":2.431905657094365},{"$f":"AL510*'III. GDP shares, 1310-2018'!J512","v":0},null,null,{"$f":"U510*'III. GDP shares, 1310-2018'!C512","v":0.8690755577311776},{"$f":"V510*'III. GDP shares, 1310-2018'!D512","v":-2.1779617904179926},{"$f":"W510*'III. GDP shares, 1310-2018'!E512","v":0.3064149092846703},{"$f":"X510*'III. GDP shares, 1310-2018'!F512","v":1.779717062075386},{"$f":"Y510*'III. GDP shares, 1310-2018'!G512","v":4.137039527668792},{"$f":"Z510*'III. GDP shares, 1310-2018'!H512","v":-0.9604144117923832},{"$f":"AA510*'III. GDP shares, 1310-2018'!I512","v":-1.2423545534468783},{"$f":"AB510*'III. GDP shares, 1310-2018'!J512","v":0},null,null,10.05485721694923,8.495902882077996,null,2.7115163011027716,-0.05464666839857002,{"$f":"AVERAGE(BL507:BL513)","v":-2.834459982956165},-3.093481796988377,null,null,2.3595415310681522]
[{"$f":"'[1]Nominal weighted'!B511","v":1817},null,15.103983928741181,-9.505408322012018,-1.0849633030771733,-13.83783870967742,-18.74908146821346,9.555765039584124,33.649803408749264,3.8674033149171296,null,10.178951229298113,8.653088645268017,8.511668295027906,8.699397035126042,{"$f":"AVERAGE(G508:G514)","v":7.686180030812195},8.826732574423529,44.1826637298992,null,null,-6.519983928741182,13.5,6.8649633030771735,19.35483870967742,26.56808146821346,-5.359765039584125,1.350196591250739,-3.8674033149171296,null,null,8.584,3.9945916779879824,5.78,5.517,7.819,4.196,35,{"$nulls":3},{"$f":"AE511*'III. GDP shares, 1310-2018'!C513","v":1.201598109468531},{"$f":"AF511*'III. GDP shares, 1310-2018'!D513","v":1.037360707023014},{"$f":"AG511*'III. GDP shares, 1310-2018'!E513","v":0.15509912866539957},{"$f":"AH511*'III. GDP shares, 1310-2018'!F513","v":0.9158379711190708},{"$f":"AI511*'III. GDP shares, 1310-2018'!G513","v":1.7183893993185282},{"$f":"AJ511*'III. GDP shares, 1310-2018'!H513","v":0.46743799991446017},{"$f":"AK511*'III. GDP shares, 1310-2018'!I513","v":2.671166872709821},{"$f":"AL511*'III. GDP shares, 1310-2018'!J513","v":0},null,null,{"$f":"U511*'III. GDP shares, 1310-2018'!C513","v":-0.9126747859436871},{"$f":"V511*'III. GDP shares, 1310-2018'!D513","v":3.5058325540457957},{"$f":"W511*'III. GDP shares, 1310-2018'!E513","v":0.1842127727728742},{"$f":"X511*'III. GDP shares, 1310-2018'!F513","v":3.2129592559738667},{"$f":"Y511*'III. GDP shares, 1310-2018'!G513","v":5.838893663538694},{"$f":"Z511*'III. GDP shares, 1310-2018'!H513","v":-0.5970824237642162},{"$f":"AA511*'III. GDP shares, 1310-2018'!I513","v":0.10304572589127706},{"$f":"AB511*'III. GDP shares, 1310-2018'!J513","v":0},null,null,10.12722738256971,8.166890188218824,null,11.335186762514603,6.486365973622045,{"$f":"AVERAGE(BL508:BL514)","v":-2.9772048943839855},-3.0669549807889176,null,null,-0.6998247272729978]
[{"$f":"'[1]Nominal weighted'!B512","v":1818},null,30.182026397227723,3.549170410612061,19.52934197438641,18.304162162162164,34.48507453934915,8.907453325923953,49.18321397824184,-1.72413793103448,null,9.315595134376483,8.478400507205631,8.376025317761691,9.559799152474827,{"$f":"AVERAGE(G509:G515)","v":7.787655500392759},10.601170230477829,41.922421782363166,null,null,-22.369026397227724,0.3,-13.715341974386408,-12.162162162162163,-27.23907453934915,-4.344453325923952,4.662786021758162,1.72413793103448,null,null,7.813,3.8491704106120608,{"v":5.814,"d":"5.81"},6.142,7.246,4.563,53.846,{"$nulls":3},{"$f":"AE512*'III. GDP shares, 1310-2018'!C514","v":1.0916944446552332},{"$f":"AF512*'III. GDP shares, 1310-2018'!D514","v":1.0011597695309302},{"$f":"AG512*'III. GDP shares, 1310-2018'!E514","v":0.15534420281230296},{"$f":"AH512*'III. GDP shares, 1310-2018'!F514","v":1.0189568849013495},{"$f":"AI512*'III. GDP shares, 1310-2018'!G514","v":1.5909051701923262},{"$f":"AJ512*'III. GDP shares, 1310-2018'!H514","v":0.5101065327163885},{"$f":"AK512*'III. GDP shares, 1310-2018'!I514","v":4.103464678853732},{"$f":"AL512*'III. GDP shares, 1310-2018'!J514","v":0},null,null,{"$f":"U512*'III. GDP shares, 1310-2018'!C514","v":-3.1255781198259025},{"$f":"V512*'III. GDP shares, 1310-2018'!D514","v":0.07802926314491761},{"$f":"W512*'III. GDP shares, 1310-2018'!E514","v":-0.36646007315259266},{"$f":"X512*'III. GDP shares, 1310-2018'!F514","v":-2.0177008906580625},{"$f":"Y512*'III. GDP shares, 1310-2018'!G514","v":-5.980511249779839},{"$f":"Z512*'III. GDP shares, 1310-2018'!H514","v":-0.48567478032769},{"$f":"AA512*'III. GDP shares, 1310-2018'!I514","v":0.35533888766737604},{"$f":"AB512*'III. GDP shares, 1310-2018'!J514","v":0},null,null,12.753310058658867,9.471631683662263,null,-11.542556962931792,-9.142891805782094,{"$f":"AVERAGE(BL509:BL515)","v":-3.3097071139672005},-3.5236642301558603,null,null,20.091058140208045]
[{"$f":"'[1]Nominal weighted'!B513","v":1819},null,24.319174504147288,6.686532018520002,19.61893279397283,26.39323076923077,14.950402499349586,4.152,76.84168743094817,0.5649717514124374,null,12.501573885130687,8.696714904913472,9.266220398044338,9.847539412215088,{"$f":"AVERAGE(G510:G516)","v":6.45900845580458},8.197424800856572,37.802451699131716,null,null,-16.685174504147287,-2.5,-13.87193279397283,-20.76923076923077,-7.640402499349586,0,-6.841687430948168,-0.5649717514124374,null,null,7.634,4.186532018520002,{"v":5.747,"d":"5.75"},5.624,7.31,4.152,70,{"$nulls":3},{"$f":"AE513*'III. GDP shares, 1310-2018'!C515","v":1.0647685106034774},{"$f":"AF513*'III. GDP shares, 1310-2018'!D515","v":1.0905913864945453},{"$f":"AG513*'III. GDP shares, 1310-2018'!E515","v":0.1529006748951591},{"$f":"AH513*'III. GDP shares, 1310-2018'!F515","v":0.9324467156545468},{"$f":"AI513*'III. GDP shares, 1310-2018'!G515","v":1.6034024049001594},{"$f":"AJ513*'III. GDP shares, 1310-2018'!H515","v":0.46576841226629384},{"$f":"AK513*'III. GDP shares, 1310-2018'!I515","v":5.326778693803932},{"$f":"AL513*'III. GDP shares, 1310-2018'!J515","v":0},null,null,{"$f":"U513*'III. GDP shares, 1310-2018'!C515","v":-2.3272004723526356},{"$f":"V513*'III. GDP shares, 1310-2018'!D515","v":-0.6512498779837856},{"$f":"W513*'III. GDP shares, 1310-2018'!E515","v":-0.36906697168935715},{"$f":"X513*'III. GDP shares, 1310-2018'!F515","v":-3.4434923572974023},{"$f":"Y513*'III. GDP shares, 1310-2018'!G515","v":-1.6758741096938872},{"$f":"Z513*'III. GDP shares, 1310-2018'!H515","v":0},{"$f":"AA513*'III. GDP shares, 1310-2018'!I515","v":-0.5206307833834408},{"$f":"AB513*'III. GDP shares, 1310-2018'!J515","v":0},null,null,14.950504574074285,10.636656798618112,null,-8.987514572400508,-8.609174968632635,{"$f":"AVERAGE(BL510:BL516)","v":-3.4191727472267623},-3.544050715578335,null,null,17.88233010654029]
[{"$f":"'[1]Nominal weighted'!B514","v":1820},null,2.6629969110790412,13.675389461390482,12.511856100155907,18.547359223300973,13.30400827368296,12.183991203569933,20.90899627667509,-1.1363636363636256,null,13.382492801655838,6.378320422675747,10.797229434339533,10.606224212851478,{"$f":"AVERAGE(G511:G517)","v":8.334741773005392},7.4732240484803105,32.96353923090491,null,null,5.337003088920959,-9.3,-7.016856100155907,-12.62135922330097,-6.987008273682961,-7.866991203569933,-11.186996276675089,1.1363636363636256,null,null,8,4.375389461390482,{"v":5.495,"d":"5.50"},5.926,6.317,4.317,9.722,{"$nulls":3},{"$f":"AE514*'III. GDP shares, 1310-2018'!C516","v":1.1138295769078688},{"$f":"AF514*'III. GDP shares, 1310-2018'!D516","v":1.141532882164376},{"$f":"AG514*'III. GDP shares, 1310-2018'!E516","v":0.1455773032819296},{"$f":"AH514*'III. GDP shares, 1310-2018'!F516","v":0.98191845838276},{"$f":"AI514*'III. GDP shares, 1310-2018'!G516","v":1.3842635181890075},{"$f":"AJ514*'III. GDP shares, 1310-2018'!H516","v":0.48593455293594306},{"$f":"AK514*'III. GDP shares, 1310-2018'!I516","v":0.7387485048438117},{"$f":"AL514*'III. GDP shares, 1310-2018'!J516","v":0},null,null,{"$f":"U514*'III. GDP shares, 1310-2018'!C516","v":0.7430639865611025},{"$f":"V514*'III. GDP shares, 1310-2018'!D516","v":-2.4263567615658364},{"$f":"W514*'III. GDP shares, 1310-2018'!E516","v":-0.1858953573390454},{"$f":"X514*'III. GDP shares, 1310-2018'!F516","v":-2.0913171770568204},{"$f":"Y514*'III. GDP shares, 1310-2018'!G516","v":-1.531084479110983},{"$f":"Z514*'III. GDP shares, 1310-2018'!H516","v":-0.8855322801616289},{"$f":"AA514*'III. GDP shares, 1310-2018'!I516","v":-0.8500696125372362},{"$f":"AB514*'III. GDP shares, 1310-2018'!J516","v":0},null,null,6.307484208770069,5.991804796705696,null,-7.2271916812104475,-6.0632305440125345,{"$f":"AVERAGE(BL511:BL517)","v":-3.4732155850834374},-2.681202221757869,null,null,9.651106834185931]
[{"$f":"'[1]Nominal weighted'!B515","v":1821},null,3.1697067235883933,15.998661538027216,10.462688135794806,19.35614815477485,11.650801709045115,8.412953326154382,29.35602858210715,-2.8089887640449707,null,13.677488579140947,6.966413611144911,13.044465224056285,16.821093425962932,{"$f":"AVERAGE(G512:G518)","v":12.598008615646801},7.521061861556627,24.512712871392818,null,null,4.464293276411607,-12,-5.171688135794806,-13.580148154774848,-5.768801709045116,-4.615953326154382,-18.75002858210715,2.8089887640449707,null,null,7.634,3.998661538027216,{"v":5.291,"d":"5.29"},5.776,5.882,3.797,10.606,{"$nulls":3},{"$f":"AE515*'III. GDP shares, 1310-2018'!C517","v":1.0486442154079485},{"$f":"AF515*'III. GDP shares, 1310-2018'!D517","v":1.0135621233956926},{"$f":"AG515*'III. GDP shares, 1310-2018'!E517","v":0.14158362912365524},{"$f":"AH515*'III. GDP shares, 1310-2018'!F517","v":0.9659980408864378},{"$f":"AI515*'III. GDP shares, 1310-2018'!G517","v":1.3601650422830358},{"$f":"AJ515*'III. GDP shares, 1310-2018'!H517","v":0.41524111395124574},{"$f":"AK515*'III. GDP shares, 1310-2018'!I517","v":0.7907268397544643},{"$f":"AL515*'III. GDP shares, 1310-2018'!J517","v":0},null,null,{"$f":"U515*'III. GDP shares, 1310-2018'!C517","v":0.613237532118631},{"$f":"V515*'III. GDP shares, 1310-2018'!D517","v":-3.0417041715285906},{"$f":"W515*'III. GDP shares, 1310-2018'!E517","v":-0.13839092325866184},{"$f":"X515*'III. GDP shares, 1310-2018'!F517","v":-2.271190531935609},{"$f":"Y515*'III. GDP shares, 1310-2018'!G517","v":-1.3339888508170348},{"$f":"Z515*'III. GDP shares, 1310-2018'!H517","v":-0.5048021072160399},{"$f":"AA515*'III. GDP shares, 1310-2018'!I517","v":-1.3979022106388332},{"$f":"AB515*'III. GDP shares, 1310-2018'!J517","v":0},null,null,6.140665934003889,5.73592100480248,null,-8.074741263276138,-6.576667233427465,{"$f":"AVERAGE(BL512:BL518)","v":-5.498346098666691},-4.028713619622459,null,null,9.755395973154336]
[{"$f":"'[1]Nominal weighted'!B516","v":1822},null,9.574330941404897,17.263658709211946,9.545599145921118,5.442,-0.7133709390794767,0.6399001634455024,6.605003487098245,-4.371584699453549,null,9.799670712323307,4.457556222086735,10.578713884326826,15.32603762313879,{"$f":"AVERAGE(G513:G519)","v":8.304914652380265},6.505139942143397,23.386576694608426,null,null,-2.5323309414048976,-13.5,-4.309599145921118,0,6.315370939079477,3.225099836554498,-0.35500348709824536,4.371584699453549,null,null,7.042,3.763658709211947,{"v":5.236,"d":"5.24"},5.442,5.602,3.865,6.25,{"$nulls":3},{"$f":"AE516*'III. GDP shares, 1310-2018'!C518","v":0.9803478647765936},{"$f":"AF516*'III. GDP shares, 1310-2018'!D518","v":0.9522965150155549},{"$f":"AG516*'III. GDP shares, 1310-2018'!E518","v":0.14111739037691254},{"$f":"AH516*'III. GDP shares, 1310-2018'!F518","v":0.9425316959061132},{"$f":"AI516*'III. GDP shares, 1310-2018'!G518","v":1.250918413945889},{"$f":"AJ516*'III. GDP shares, 1310-2018'!H518","v":0.4219252163530744},{"$f":"AK516*'III. GDP shares, 1310-2018'!I518","v":0.46968790684226525},{"$f":"AL516*'III. GDP shares, 1310-2018'!J518","v":0},null,null,{"$f":"U516*'III. GDP shares, 1310-2018'!C518","v":-0.3525369541769373},{"$f":"V516*'III. GDP shares, 1310-2018'!D518","v":-3.4158259146196186},{"$f":"W516*'III. GDP shares, 1310-2018'!E518","v":-0.11614961517245213},{"$f":"X516*'III. GDP shares, 1310-2018'!F518","v":0},{"$f":"Y516*'III. GDP shares, 1310-2018'!G518","v":1.410213102212292},{"$f":"Z516*'III. GDP shares, 1310-2018'!H518","v":0.35207010253519305},{"$f":"AA516*'III. GDP shares, 1310-2018'!I518","v":-0.026678535164300795},{"$f":"AB516*'III. GDP shares, 1310-2018'!J518","v":0},null,null,5.314379815601707,5.158825003216403,null,-2.148907814385824,-0.8481097624170925,{"$f":"AVERAGE(BL513:BL519)","v":-3.2121680441549962},-2.427553221372691,null,null,2.9396103879670537]
[{"$f":"'[1]Nominal weighted'!B517","v":1823},null,8.665230205402334,-3.019760857019453,4.997151193222836,0.03850789016900613,3.4153577969038724,8.46050528068428,14.20004145251459,-40.31413612565445,null,7.342118285019986,4.831982098513764,8.419448625557955,10.261381567922026,{"$f":"AVERAGE(G514:G520)","v":6.1038970625478095},7.17989648442312,20.275808805801407,null,null,-1.672230205402335,6.8,0.18384880677716475,5.4284921098309935,1.9896422030961278,-4.68650528068428,-0.4750414525145895,40.31413612565445,null,null,6.993,3.780239142980547,{"v":5.181,"d":"5.18"},5.467,5.405,3.774,13.725,{"$nulls":3},{"$f":"AE517*'III. GDP shares, 1310-2018'!C519","v":0.9698234360974559},{"$f":"AF517*'III. GDP shares, 1310-2018'!D519","v":0.9387339333160025},{"$f":"AG517*'III. GDP shares, 1310-2018'!E519","v":0.14325802067954224},{"$f":"AH517*'III. GDP shares, 1310-2018'!F519","v":0.9628175063131719},{"$f":"AI517*'III. GDP shares, 1310-2018'!G519","v":1.230259479090972},{"$f":"AJ517*'III. GDP shares, 1310-2018'!H519","v":0.4043422850137826},{"$f":"AK517*'III. GDP shares, 1310-2018'!I519","v":1.0220931945789002},{"$f":"AL517*'III. GDP shares, 1310-2018'!J519","v":0},null,null,{"$f":"U517*'III. GDP shares, 1310-2018'!C519","v":-0.2319130621692045},{"$f":"V517*'III. GDP shares, 1310-2018'!D519","v":1.6886208795552027},{"$f":"W517*'III. GDP shares, 1310-2018'!E519","v":0.005083539116616915},{"$f":"X517*'III. GDP shares, 1310-2018'!F519","v":0.9560357117666374},{"$f":"Y517*'III. GDP shares, 1310-2018'!G519","v":0.45287255880822497},{"$f":"Z517*'III. GDP shares, 1310-2018'!H519","v":-0.50210711550637},{"$f":"AA517*'III. GDP shares, 1310-2018'!I519","v":-0.035376075465066506},{"$f":"AB517*'III. GDP shares, 1310-2018'!J519","v":0},null,null,{"$f":"AVERAGE(AE517:AL517)","v":6.332177020425793},{"$f":"SUM(AO517:AV517)","v":5.671327855089828},null,{"$f":"SUM(AY517:BF517)","v":2.333216436106041},{"$f":"AVERAGE(U517:AB517)","v":5.985292788344691},{"$f":"AVERAGE(BL514:BL520)","v":-1.8373432741107665},-1.1855106930858648,null,null,{"$f":"((AO517+SUM(AQ517:AV517))-((AY517+(SUM(BA517:BF517)))))","v":4.087998365222987}]
[{"$f":"'[1]Nominal weighted'!B518","v":1824},null,17.168954371136948,-5.388756002727872,14.64568722494009,29.666245782102745,11.093786430276396,9.890629731118345,-25.505981107835364,20.5223880597015,null,6.923936135585385,4.3190389904139925,6.759969798503172,5.692572917686239,{"$f":"AVERAGE(G515:G521)","v":3.767229197005882},5.411107057012127,26.76700521638556,null,null,-11.16295437113695,8.6,-10.37168722494009,-25.203245782102744,-6.203786430276395,-6.557629731118346,47.851981107835364,-20.5223880597015,null,null,6.006,3.2112439972721276,{"v":4.274,"d":"4.27"},4.463,4.89,3.333,22.346,{"$nulls":3},{"$f":"AE518*'III. GDP shares, 1310-2018'!C520","v":0.8306204037677261},{"$f":"AF518*'III. GDP shares, 1310-2018'!D520","v":0.783603494907954},{"$f":"AG518*'III. GDP shares, 1310-2018'!E520","v":0.1203026498268272},{"$f":"AH518*'III. GDP shares, 1310-2018'!F520","v":0.7992646920999742},{"$f":"AI518*'III. GDP shares, 1310-2018'!G520","v":1.1310003665495727},{"$f":"AJ518*'III. GDP shares, 1310-2018'!H520","v":0.35089921404096625},{"$f":"AK518*'III. GDP shares, 1310-2018'!I520","v":1.650917093833534},{"$f":"AL518*'III. GDP shares, 1310-2018'!J520","v":0},null,null,{"$f":"U518*'III. GDP shares, 1310-2018'!C520","v":-1.5438191253737055},{"$f":"V518*'III. GDP shares, 1310-2018'!D520","v":2.098560577126188},{"$f":"W518*'III. GDP shares, 1310-2018'!E520","v":-0.29193763601669276},{"$f":"X518*'III. GDP shares, 1310-2018'!F520","v":-4.51357035177063},{"$f":"Y518*'III. GDP shares, 1310-2018'!G520","v":-1.4348639522776827},{"$f":"Z518*'III. GDP shares, 1310-2018'!H520","v":-0.6903891745037805},{"$f":"AA518*'III. GDP shares, 1310-2018'!I520","v":3.535292830248131},{"$f":"AB518*'III. GDP shares, 1310-2018'!J520","v":0},null,null,6.931891999610305,5.666607915026555,null,-2.840726832568172,-2.9462138114300824,{"$f":"AVERAGE(BL515:BL521)","v":-0.28964683186547413},-0.10165152230626513,null,null,9.822291829812961]
[{"$f":"'[1]Nominal weighted'!B519","v":1825},null,3.037301329504247,-14.01283131279517,2.269082596280186,7.838771542393178,4.433416796483407,1.7959998900313427,41.30026074075108,5.164319248826287,null,6.492668303912334,2.949317553517641,6.149351642981769,3.154049258707878,{"$f":"AVERAGE(G516:G522)","v":2.401558137163101},4.719399438990074,30.153851094473673,null,null,3.696698670495753,17.4,2.174917403719814,-3.2607715423931776,0.4055832035165934,1.754000109968657,-0.48426074075107756,-5.164319248826287,null,null,6.734,3.3871686872048294,{"v":4.444,"d":"4.44"},4.578,4.839,3.55,40.816,{"$nulls":3},{"$f":"AE519*'III. GDP shares, 1310-2018'!C521","v":0.9448181428711088},{"$f":"AF519*'III. GDP shares, 1310-2018'!D521","v":0.8264603719164536},{"$f":"AG519*'III. GDP shares, 1310-2018'!E521","v":0.1250768327923928},{"$f":"AH519*'III. GDP shares, 1310-2018'!F521","v":0.8473804376497079},{"$f":"AI519*'III. GDP shares, 1310-2018'!G521","v":1.077194774651024},{"$f":"AJ519*'III. GDP shares, 1310-2018'!H521","v":0.37371246564091387},{"$f":"AK519*'III. GDP shares, 1310-2018'!I521","v":3.0438716538421424},{"$f":"AL519*'III. GDP shares, 1310-2018'!J521","v":0},null,null,{"$f":"U519*'III. GDP shares, 1310-2018'!C521","v":0.518667652600519},{"$f":"V519*'III. GDP shares, 1310-2018'!D521","v":4.245554856972105},{"$f":"W519*'III. GDP shares, 1310-2018'!E521","v":0.06121327192671652},{"$f":"X519*'III. GDP shares, 1310-2018'!F521","v":-0.603563568516567},{"$f":"Y519*'III. GDP shares, 1310-2018'!G521","v":0.0902856184158498},{"$f":"Z519*'III. GDP shares, 1310-2018'!H521","v":0.1846455509382594},{"$f":"AA519*'III. GDP shares, 1310-2018'!I521","v":-0.03611396368680918},{"$f":"AB519*'III. GDP shares, 1310-2018'!J521","v":0},null,null,9.764024098172118,7.238514679363743,null,4.460689418650074,2.065230981966284,{"$f":"AVERAGE(BL516:BL522)","v":0.9868283589764945},1.1936186401031808,null,null,6.196919745769321]
[{"$f":"'[1]Nominal weighted'!B520","v":1826},null,7.116307513024044,9.30751315350921,4.504075982590741,-9.059361617286564,-0.45672062947760583,8.875295795958062,55.066312209299056,-8.910891089108908,null,5.884939631489766,1.110172852511912,4.297495535191112,2.9476206872793065,{"$f":"AVERAGE(G517:G523)","v":3.131590953056051},4.869985114216623,36.32982495154032,null,null,0.12969248697595653,-5.5,0.37392401740925924,13.857361617286564,4.868720629477606,-5.171295795958062,-16.78831220929906,8.910891089108908,null,null,7.246,3.807513153509211,{"v":4.878,"d":"4.88"},4.798,4.412,3.704,38.278,{"$nulls":3},{"$f":"AE520*'III. GDP shares, 1310-2018'!C522","v":1.014854912726343},{"$f":"AF520*'III. GDP shares, 1310-2018'!D522","v":0.9142214448525093},{"$f":"AG520*'III. GDP shares, 1310-2018'!E522","v":0.13596420322224265},{"$f":"AH520*'III. GDP shares, 1310-2018'!F522","v":0.9024096145778473},{"$f":"AI520*'III. GDP shares, 1310-2018'!G522","v":0.9980275102814506},{"$f":"AJ520*'III. GDP shares, 1310-2018'!H522","v":0.38371165686932385},{"$f":"AK520*'III. GDP shares, 1310-2018'!I522","v":2.835565561223329},{"$f":"AL520*'III. GDP shares, 1310-2018'!J522","v":0},null,null,{"$f":"U520*'III. GDP shares, 1310-2018'!C522","v":0.018164374489545505},{"$f":"V520*'III. GDP shares, 1310-2018'!D522","v":-1.320604222221668},{"$f":"W520*'III. GDP shares, 1310-2018'!E522","v":0.01042236184762401},{"$f":"X520*'III. GDP shares, 1310-2018'!F522","v":2.6062976982328934},{"$f":"Y520*'III. GDP shares, 1310-2018'!G522","v":1.1013411441734977},{"$f":"Z520*'III. GDP shares, 1310-2018'!H522","v":-0.5357144919083252},{"$f":"AA520*'III. GDP shares, 1310-2018'!I522","v":-1.2436480467044662},{"$f":"AB520*'III. GDP shares, 1310-2018'!J522","v":0},null,null,9.589073307644172,7.1847549037530465,null,0.6362588179091013,0.08512272937514664,{"$f":"AVERAGE(BL517:BL523)","v":1.264585369835427},0.9662042418404135,null,null,4.313670418769767]
[{"$f":"'[1]Nominal weighted'!B521","v":1827},null,{"$f":"AE521-U521","v":-0.2642781349631642},{"$f":"AF521-V521","v":10.084787704692069},{"$f":"AG521-W521","v":0.8955043107724321},{"$f":"AH521-X521","v":-13.434301328349544},{"$f":"AI521-Y521","v":-3.052666785110537},{"$f":"AJ521-Z521","v":-0.19753478830702154},{"$f":"AK521-AA521","v":66.34737115076416},{"$f":"AL521-AB521","v":1.3636363636363722},null,6.825356151448369,2.540753109699728,3.6637598185555467,2.5731047454748386,{"$f":"AVERAGE(G518:G524)","v":3.015249937701339},5.105321828247517,37.62457436890552,null,null,7.356278134963164,-6.5,3.843495689227568,18.092301328349546,7.496666785110537,3.6355347883070217,-20.370371150764168,-1.3636363636363722,null,null,7.092,3.584787704692068,{"v":4.739,"d":"4.74"},4.658,4.444,3.438,45.977,{"$nulls":3},{"$f":"AE521*'III. GDP shares, 1310-2018'!C523","v":1.0009297244735498},{"$f":"AF521*'III. GDP shares, 1310-2018'!D523","v":0.8552328195531317},{"$f":"AG521*'III. GDP shares, 1310-2018'!E523","v":0.13721480816278003},{"$f":"AH521*'III. GDP shares, 1310-2018'!F523","v":0.897920363568725},{"$f":"AI521*'III. GDP shares, 1310-2018'!G523","v":0.9836663195704963},{"$f":"AJ521*'III. GDP shares, 1310-2018'!H523","v":0.3538757579251367},{"$f":"AK521*'III. GDP shares, 1310-2018'!I523","v":3.415655036896704},{"$f":"AL521*'III. GDP shares, 1310-2018'!J523","v":0},null,null,{"$f":"U521*'III. GDP shares, 1310-2018'!C523","v":1.0382286303975576},{"$f":"V521*'III. GDP shares, 1310-2018'!D523","v":-1.5507231627187454},{"$f":"W521*'III. GDP shares, 1310-2018'!E523","v":0.11128603580329875},{"$f":"X521*'III. GDP shares, 1310-2018'!F523","v":3.487644007416605},{"$f":"Y521*'III. GDP shares, 1310-2018'!G523","v":1.6593651272628411},{"$f":"Z521*'III. GDP shares, 1310-2018'!H523","v":0.3742081526106308},{"$f":"AA521*'III. GDP shares, 1310-2018'!I523","v":-1.513325376265588},{"$f":"AB521*'III. GDP shares, 1310-2018'!J523","v":0},null,null,10.561826814956008,7.6444948301505224,null,3.6066834145066005,1.5237836514446623,{"$f":"AVERAGE(BL518:BL524)","v":0.977724318972764},0.12584579578892457,null,null,1.6318554333720456]
[{"$f":"'[1]Nominal weighted'!B522","v":1828},null,0.15083190187703455,6.410611479752754,6.188361047144985,1.5864825419263249,2.091104290145651,3.571,53.06394972872394,-17.5115207373272,null,5.476274475335616,2.427058962499845,2.2779927954028176,-3.396935002763835,{"$f":"AVERAGE(G519:G525)","v":1.77144372019786},3.6089675578673117,43.80165991220207,null,null,6.652168098122965,-2.9,-1.7923610471449853,2.785517458073675,1.9488957098543491,0,-4.283949728723941,17.5115207373272,null,null,6.803,3.5106114797527543,{"v":4.396,"d":"4.40"},4.372,4.04,3.571,48.78,{"$nulls":3},{"$f":"AE522*'III. GDP shares, 1310-2018'!C524","v":0.9640900079254485},{"$f":"AF522*'III. GDP shares, 1310-2018'!D524","v":0.8293782258068864},{"$f":"AG522*'III. GDP shares, 1310-2018'!E524","v":0.1321429117396604},{"$f":"AH522*'III. GDP shares, 1310-2018'!F524","v":0.8600927807194497},{"$f":"AI522*'III. GDP shares, 1310-2018'!G524","v":0.8850569463908086},{"$f":"AJ522*'III. GDP shares, 1310-2018'!H524","v":0.3639852073016729},{"$f":"AK522*'III. GDP shares, 1310-2018'!I524","v":3.6217545597195273},{"$f":"AL522*'III. GDP shares, 1310-2018'!J524","v":0},null,null,{"$f":"U522*'III. GDP shares, 1310-2018'!C524","v":0.942714801475935},{"$f":"V522*'III. GDP shares, 1310-2018'!D524","v":-0.6851219135788172},{"$f":"W522*'III. GDP shares, 1310-2018'!E524","v":-0.05387802721985557},{"$f":"X522*'III. GDP shares, 1310-2018'!F524","v":0.5479879817605582},{"$f":"Y522*'III. GDP shares, 1310-2018'!G524","v":0.4269514073757023},{"$f":"Z522*'III. GDP shares, 1310-2018'!H524","v":0},{"$f":"AA522*'III. GDP shares, 1310-2018'!I524","v":-0.31806917719588285},{"$f":"AB522*'III. GDP shares, 1310-2018'!J524","v":0},null,null,10.78180163996468,7.656500639603454,null,0.8605850726176398,2.4902239034386575,{"$f":"AVERAGE(BL519:BL525)","v":2.4749705255066075},1.4119213441003429,null,null,5.28141542760011]
[{"$f":"'[1]Nominal weighted'!B523","v":1829},null,5.320230234446923,4.389645802171843,-3.41739360861348,3.997,4.396858772171174,1.6939998900313429,49.83682048656476,23.921568627450988,null,6.460527268131032,6.001693315790482,3.610207663698909,-3.0352393622969416,{"$f":"AVERAGE(G520:G526)","v":1.6247112290009018},3.5280654980390476,40.23321412045779,null,null,0.42276976555307744,-1,7.38539360861348,0,-0.8358587721711738,1.754000109968657,-3.3248204865647604,-23.921568627450988,null,null,5.743,3.389645802171843,{"v":3.968,"d":"3.97"},3.997,3.561,3.448,46.512,{"$nulls":3},{"$f":"AE523*'III. GDP shares, 1310-2018'!C525","v":0.8119713022986831},{"$f":"AF523*'III. GDP shares, 1310-2018'!D525","v":0.7880582036504638},{"$f":"AG523*'III. GDP shares, 1310-2018'!E525","v":0.11997911500777858},{"$f":"AH523*'III. GDP shares, 1310-2018'!F525","v":0.7967626234403186},{"$f":"AI523*'III. GDP shares, 1310-2018'!G525","v":0.7923517453885087},{"$f":"AJ523*'III. GDP shares, 1310-2018'!H525","v":0.3458559528363894},{"$f":"AK523*'III. GDP shares, 1310-2018'!I525","v":3.42953183720781},{"$f":"AL523*'III. GDP shares, 1310-2018'!J525","v":0},null,null,{"$f":"U523*'III. GDP shares, 1310-2018'!C525","v":0.05977310066317973},{"$f":"V523*'III. GDP shares, 1310-2018'!D525","v":-0.23248983806671847},{"$f":"W523*'III. GDP shares, 1310-2018'!E525","v":0.22330972508708408},{"$f":"X523*'III. GDP shares, 1310-2018'!F525","v":0},{"$f":"Y523*'III. GDP shares, 1310-2018'!G525","v":-0.18598544145692933},{"$f":"Z523*'III. GDP shares, 1310-2018'!H525","v":0.17593717497341696},{"$f":"AA523*'III. GDP shares, 1310-2018'!I525","v":-0.2451534595733275},{"$f":"AB523*'III. GDP shares, 1310-2018'!J525","v":0},null,null,10.088377971738835,7.0845107798299525,null,-0.20460873837329452,-2.4400105502564635,{"$f":"AVERAGE(BL520:BL526)","v":1.532782357433712},1.1367242148061687,null,null,6.268571476486064]
[{"$f":"'[1]Nominal weighted'!B524","v":1830},null,15.248145845112557,6.99430094329526,0.5610011767738703,-2.5831037024622727,2.60097068942089,10.10786227890054,23.263287374070995,6.185567010309281,null,6.724846264820968,6.034129474359845,4.458762691559249,-0.22810205891444926,{"$f":"AVERAGE(G521:G527)","v":3.4122095861007855},2.609880368620945,35.80238043542281,null,null,-6.773145845112556,-3.6,5.727998823226129,7.317103702462273,2.2380293105791105,-6.896862278900541,8.994712625929008,-6.185567010309281,null,null,8.475,3.3943009432952596,{"v":6.289,"d":"6.29"},4.734,4.839,3.211,32.258,{"$nulls":3},{"$f":"AE524*'III. GDP shares, 1310-2018'!C526","v":1.210792955435166},{"$f":"AF524*'III. GDP shares, 1310-2018'!D526","v":0.7867059407491428},{"$f":"AG524*'III. GDP shares, 1310-2018'!E526","v":0.18294436471876058},{"$f":"AH524*'III. GDP shares, 1310-2018'!F526","v":0.9678679362604764},{"$f":"AI524*'III. GDP shares, 1310-2018'!G526","v":1.053210422827571},{"$f":"AJ524*'III. GDP shares, 1310-2018'!H526","v":0.3210897288702478},{"$f":"AK524*'III. GDP shares, 1310-2018'!I526","v":2.3926992170541768},{"$f":"AL524*'III. GDP shares, 1310-2018'!J526","v":0},null,null,{"$f":"U524*'III. GDP shares, 1310-2018'!C526","v":-0.9676551357400881},{"$f":"V524*'III. GDP shares, 1310-2018'!D526","v":-0.834381345087042},{"$f":"W524*'III. GDP shares, 1310-2018'!E526","v":0.16662507645490737},{"$f":"X524*'III. GDP shares, 1310-2018'!F526","v":1.4959843810532427},{"$f":"Y524*'III. GDP shares, 1310-2018'!G526","v":0.4871080381267869},{"$f":"Z524*'III. GDP shares, 1310-2018'!H526","v":-0.6896641666731903},{"$f":"AA524*'III. GDP shares, 1310-2018'!I526","v":0.6671722319327811},{"$f":"AB524*'III. GDP shares, 1310-2018'!J526","v":0},null,null,9.02861442047075,6.915310565915541,null,0.3251890800673976,0.10278366598426769,{"$f":"AVERAGE(BL521:BL527)","v":0.7239386384847022},0.5178419843887907,null,null,4.96903420001196]
[{"$f":"'[1]Nominal weighted'!B525","v":1831},null,7.725382638347675,-6.184615033127056,4.945318062870988,-12.124032455567963,2.3871429077520405,-0.5838501615430838,17.733617695240472,1.0989010989011017,null,7.782073684527388,6.182867586955163,5.358797551172885,4.521445671538696,{"$f":"AVERAGE(G522:G528)","v":4.889746171901996},5.0056936347874625,30.210917572109597,null,null,-0.9223826383476753,9.9,1.1056819371290125,16.414032455567963,1.9928570922479591,3.7048501615430838,17.35438230475953,-1.0989010989011017,null,null,6.803,3.715384966872945,{"v":6.051,"d":"6.05"},4.29,4.38,3.121,35.088,{"$nulls":3},{"$f":"AE525*'III. GDP shares, 1310-2018'!C527","v":0.9594758650190316},{"$f":"AF525*'III. GDP shares, 1310-2018'!D527","v":0.8789827268777177},{"$f":"AG525*'III. GDP shares, 1310-2018'!E527","v":0.1714005328510154},{"$f":"AH525*'III. GDP shares, 1310-2018'!F527","v":0.8675831379119604},{"$f":"AI525*'III. GDP shares, 1310-2018'!G527","v":0.9455662771097536},{"$f":"AJ525*'III. GDP shares, 1310-2018'!H527","v":0.32157968738243486},{"$f":"AK525*'III. GDP shares, 1310-2018'!I527","v":2.55804625794032},{"$f":"AL525*'III. GDP shares, 1310-2018'!J527","v":0},null,null,{"$f":"U525*'III. GDP shares, 1310-2018'!C527","v":-0.13009023663195243},{"$f":"V525*'III. GDP shares, 1310-2018'!D527","v":2.342133876752316},{"$f":"W525*'III. GDP shares, 1310-2018'!E527","v":0.031319529530268654},{"$f":"X525*'III. GDP shares, 1310-2018'!F527","v":3.319472676827602},{"$f":"Y525*'III. GDP shares, 1310-2018'!G527","v":0.4302233930430757},{"$f":"Z525*'III. GDP shares, 1310-2018'!H527","v":0.3817380829054111},{"$f":"AA525*'III. GDP shares, 1310-2018'!I527","v":1.2651992907420146},{"$f":"AB525*'III. GDP shares, 1310-2018'!J527","v":0},null,null,9.064054995267563,6.702634485092234,null,7.639996613168736,6.056315026749846,{"$f":"AVERAGE(BL522:BL528)","v":-1.0220528564424498},-0.6951372516817849,null,null,0.5257890217980963]
[{"$f":"'[1]Nominal weighted'!B526","v":1832},null,9.927070879072154,11.009609160239297,11.59458667435283,10.370641025661428,3.4062893581047007,1.2296854712334921,16.321140198541137,-7.222222222222246,null,7.9851471530310585,5.498239540814946,4.9356966514726865,4.4830208695402485,{"$f":"AVERAGE(G523:G529)","v":4.8749633247591335},2.6150965892012343,22.597832639499806,null,null,-3.3040708790721545,-7.4,-5.814586674352828,-6.073641025661428,0.9417106418952994,1.785314528766508,13.753859801458864,7.222222222222246,null,null,6.623,3.609609160239296,5.78,4.297,4.348,3.015,30.075,{"$nulls":3},{"$f":"AE526*'III. GDP shares, 1310-2018'!C528","v":0.9184639620591608},{"$f":"AF526*'III. GDP shares, 1310-2018'!D528","v":0.8202862736748242},{"$f":"AG526*'III. GDP shares, 1310-2018'!E528","v":0.16907681714004208},{"$f":"AH526*'III. GDP shares, 1310-2018'!F528","v":0.8561134167792233},{"$f":"AI526*'III. GDP shares, 1310-2018'!G528","v":0.994628244965851},{"$f":"AJ526*'III. GDP shares, 1310-2018'!H528","v":0.31793586945248775},{"$f":"AK526*'III. GDP shares, 1310-2018'!I528","v":2.1466766732899307},{"$f":"AL526*'III. GDP shares, 1310-2018'!J528","v":0},null,null,{"$f":"U526*'III. GDP shares, 1310-2018'!C528","v":-0.4582017258820633},{"$f":"V526*'III. GDP shares, 1310-2018'!D528","v":-1.6816553138377137},{"$f":"W526*'III. GDP shares, 1310-2018'!E528","v":-0.17008854807689938},{"$f":"X526*'III. GDP shares, 1310-2018'!F528","v":-1.2100827486082084},{"$f":"Y526*'III. GDP shares, 1310-2018'!G528","v":0.21542134383946338},{"$f":"Z526*'III. GDP shares, 1310-2018'!H528","v":0.18826385636800602},{"$f":"AA526*'III. GDP shares, 1310-2018'!I528","v":0.9817153783372177},{"$f":"AB526*'III. GDP shares, 1310-2018'!J528","v":0},null,null,8.249658451462755,6.22318125736152,null,-2.1346277578601978,0.13885107690706344,{"$f":"AVERAGE(BL523:BL529)","v":-0.49815505429789475},-0.42534876806274585,null,null,5.855867427709178]
[{"$f":"'[1]Nominal weighted'!B527","v":1833},null,8.966540489853596,9.534566263494751,10.443961177613122,10.590599506390884,12.05576787022158,2.447999890031343,24.0504764140542,4.145077720207263,null,6.944147524879129,3.7776070610140096,5.878084881198636,4.843108521210811,{"$f":"AVERAGE(G524:G530)","v":4.8379518863839035},1.1619456787386813,17.512630870518755,null,null,-2.8875404898535955,-6.1,-5.553961177613123,-6.466599506390884,-8.03176787022158,1.754000109968657,-2.5454764140541988,-4.145077720207263,null,null,6.079,3.4345662634947516,4.89,4.124,4.024,4.202,21.505,{"$nulls":3},{"$f":"AE527*'III. GDP shares, 1310-2018'!C529","v":0.8453700471980632},{"$f":"AF527*'III. GDP shares, 1310-2018'!D529","v":0.780499123236604},{"$f":"AG527*'III. GDP shares, 1310-2018'!E529","v":0.14420127713443134},{"$f":"AH527*'III. GDP shares, 1310-2018'!F529","v":0.8254810694534708},{"$f":"AI527*'III. GDP shares, 1310-2018'!G529","v":0.8972321770639021},{"$f":"AJ527*'III. GDP shares, 1310-2018'!H529","v":0.46132462431223886},{"$f":"AK527*'III. GDP shares, 1310-2018'!I529","v":1.5328003730354933},{"$f":"AL527*'III. GDP shares, 1310-2018'!J529","v":0},null,null,{"$f":"U527*'III. GDP shares, 1310-2018'!C529","v":-0.40155292650005797},{"$f":"V527*'III. GDP shares, 1310-2018'!D529","v":-1.3862142368156873},{"$f":"W527*'III. GDP shares, 1310-2018'!E529","v":-0.16378083741653632},{"$f":"X527*'III. GDP shares, 1310-2018'!F529","v":-1.2943878458445282},{"$f":"Y527*'III. GDP shares, 1310-2018'!G529","v":-1.7908450725325071},{"$f":"Z527*'III. GDP shares, 1310-2018'!H529","v":0.19256626410635802},{"$f":"AA527*'III. GDP shares, 1310-2018'!I529","v":-0.18143255973100794},{"$f":"AB527*'III. GDP shares, 1310-2018'!J529","v":0},null,null,6.894080894784965,5.486908691434203,null,-5.025647214733967,-4.247052883546498,{"$f":"AVERAGE(BL524:BL530)","v":0.2959963890336204},0.7623434177028793,null,null,8.345842546115879]
[{"$f":"'[1]Nominal weighted'!B528","v":1834},null,7.136313802981776,11.12595449285929,7.19574832806788,19.812532784822473,7.29008931549794,16.5731580748586,27.20713110757167,-5.405405405405405,null,3.6103449637325506,2.8944878497443383,6.76819951192716,5.394767468410735,{"$f":"AVERAGE(G525:G531)","v":4.466281347900671},-0.43883808381785716,15.610630581725117,null,null,-1.5963138029817758,-7.8,-2.6187483280678796,-15.802532784822471,-3.43908931549794,-12.068158074858601,-17.81713110757167,5.405405405405405,null,null,5.54,3.3259544928592906,{"v":4.577,"d":"4.58"},4.01,3.851,4.505,9.39,{"$nulls":3},{"$f":"AE528*'III. GDP shares, 1310-2018'!C530","v":0.7640692082343253},{"$f":"AF528*'III. GDP shares, 1310-2018'!D530","v":0.7700951596869541},{"$f":"AG528*'III. GDP shares, 1310-2018'!E530","v":0.13233811335608872},{"$f":"AH528*'III. GDP shares, 1310-2018'!F530","v":0.7975060337776044},{"$f":"AI528*'III. GDP shares, 1310-2018'!G530","v":0.8455188075116999},{"$f":"AJ528*'III. GDP shares, 1310-2018'!H530","v":0.5081154518751623},{"$f":"AK528*'III. GDP shares, 1310-2018'!I530","v":0.6610538127796428},{"$f":"AL528*'III. GDP shares, 1310-2018'!J530","v":0},null,null,{"$f":"U528*'III. GDP shares, 1310-2018'!C530","v":-0.2201614121909405},{"$f":"V528*'III. GDP shares, 1310-2018'!D530","v":-1.806020574982162},{"$f":"W528*'III. GDP shares, 1310-2018'!E530","v":-0.07571776558682868},{"$f":"X528*'III. GDP shares, 1310-2018'!F530","v":-3.1427968191681623},{"$f":"Y528*'III. GDP shares, 1310-2018'!G530","v":-0.7550804198821206},{"$f":"Z528*'III. GDP shares, 1310-2018'!H530","v":-1.3611581783590825},{"$f":"AA528*'III. GDP shares, 1310-2018'!I530","v":-1.2543218798141673},{"$f":"AB528*'III. GDP shares, 1310-2018'!J530","v":0},null,null,5.028422070408469,4.478696587221478,null,-8.615257049983464,-6.967071001049367,{"$f":"AVERAGE(BL525:BL531)","v":1.0190623967077233},1.432628275232702,null,null,10.517837902535826]
[{"$f":"'[1]Nominal weighted'!B529","v":1835},null,1.5723461814027386,1.61821515677124,3.226654749243596,1.3175089279371894,1.9876243601456067,-13.163179319103596,-0.2276447995445725,3.589743589743592,null,4.307198851863965,4.139595493304447,6.0988550225573395,5.438464465147317,{"$f":"AVERAGE(G526:G532)","v":4.362866738534762},0.5500814537829861,17.146776914080192,null,null,3.3906538185972614,1.7,1.2523452507564043,2.6394910720628104,1.7743756398543933,17.647179319103596,10.215644799544572,-3.589743589743592,null,null,4.963,3.31821515677124,{"v":4.479,"d":"4.48"},3.957,3.762,4.484,9.988,{"$nulls":3},{"$f":"AE529*'III. GDP shares, 1310-2018'!C531","v":0.6719518450564936},{"$f":"AF529*'III. GDP shares, 1310-2018'!D531","v":0.7847060813838483},{"$f":"AG529*'III. GDP shares, 1310-2018'!E531","v":0.1271265875196422},{"$f":"AH529*'III. GDP shares, 1310-2018'!F531","v":0.7739237550812681},{"$f":"AI529*'III. GDP shares, 1310-2018'!G531","v":0.8308843130495746},{"$f":"AJ529*'III. GDP shares, 1310-2018'!H531","v":0.5132461069776918},{"$f":"AK529*'III. GDP shares, 1310-2018'!I531","v":0.6875041772232414},{"$f":"AL529*'III. GDP shares, 1310-2018'!J531","v":0},null,null,{"$f":"U529*'III. GDP shares, 1310-2018'!C531","v":0.45906832346449233},{"$f":"V529*'III. GDP shares, 1310-2018'!D531","v":0.40202346000088174},{"$f":"W529*'III. GDP shares, 1310-2018'!E531","v":0.035545072142239856},{"$f":"X529*'III. GDP shares, 1310-2018'!F531","v":0.5162407990887875},{"$f":"Y529*'III. GDP shares, 1310-2018'!G531","v":0.3918928454578195},{"$f":"Z529*'III. GDP shares, 1310-2018'!H531","v":2.019925531816939},{"$f":"AA529*'III. GDP shares, 1310-2018'!I531","v":0.7031736556583676},{"$f":"AB529*'III. GDP shares, 1310-2018'!J531","v":0},null,null,4.993030736681606,4.389342866291759,null,4.5278696876295275,4.378743288771931,{"$f":"AVERAGE(BL526:BL532)","v":0.30794261254309385},0.800718308021643,null,null,-0.5212094427207341]
[{"$f":"'[1]Nominal weighted'!B530","v":1836},null,-1.9667671626165957,-7.654781556434713,3.1793239994681635,6.517613561693942,4.137778703544569,-8.47805648320653,14.24040810369741,-6.382978723404258,null,3.149797150808783,1.9941507458802,4.38753176081171,3.8381878779288447,{"$f":"AVERAGE(G527:G533)","v":3.5543547336201935},1.2196978150353444,19.431758700974388,null,null,6.941767162616595,11,1.3766760005318366,-2.571613561693942,-0.38777870354456934,13.33205648320653,10.91659189630259,6.382978723404258,null,null,4.975,3.345218443565287,{"v":4.556,"d":"4.56"},3.946,3.75,4.854,25.157,{"$nulls":3},{"$f":"AE530*'III. GDP shares, 1310-2018'!C532","v":0.6704692531218924},{"$f":"AF530*'III. GDP shares, 1310-2018'!D532","v":0.806462042076087},{"$f":"AG530*'III. GDP shares, 1310-2018'!E532","v":0.13054357520610577},{"$f":"AH530*'III. GDP shares, 1310-2018'!F532","v":0.7695417776504958},{"$f":"AI530*'III. GDP shares, 1310-2018'!G532","v":0.8050242559279701},{"$f":"AJ530*'III. GDP shares, 1310-2018'!H532","v":0.5706479192140632},{"$f":"AK530*'III. GDP shares, 1310-2018'!I532","v":1.7168754714092835},{"$f":"AL530*'III. GDP shares, 1310-2018'!J532","v":0},null,null,{"$f":"U530*'III. GDP shares, 1310-2018'!C532","v":0.9355259185659552},{"$f":"V530*'III. GDP shares, 1310-2018'!D532","v":2.6518694107707597},{"$f":"W530*'III. GDP shares, 1310-2018'!E532","v":0.03944605070453659},{"$f":"X530*'III. GDP shares, 1310-2018'!F532","v":-0.501511422122676},{"$f":"Y530*'III. GDP shares, 1310-2018'!G532","v":-0.08324566994284796},{"$f":"Z530*'III. GDP shares, 1310-2018'!H532","v":1.567348638439672},{"$f":"AA530*'III. GDP shares, 1310-2018'!I532","v":0.7450184385319105},{"$f":"AB530*'III. GDP shares, 1310-2018'!J532","v":0},null,null,7.22617406336647,5.469564294605897,null,5.35445136494731,5.873834750102913,{"$f":"AVERAGE(BL527:BL533)","v":1.1414157805546146},1.0412986904281176,null,null,1.9605202983532601]
[{"$f":"'[1]Nominal weighted'!B531","v":1837},null,-8.088472082913487,0.8124664644075636,6.791803591873548,1.2785089279371897,-7.2307996173615052E-4,-1.097624058995227,9.949285352515496,3.000000000000007,null,2.684286541826227,0.8539461586983818,3.6935340312125375,3.1826136604882236,{"$f":"AVERAGE(G528:G534)","v":2.7429322614357736},3.835052272513032,19.317996605856546,null,null,13.057472082913488,2.5,-2.1408035918735484,2.6394910720628104,3.727723079961736,5.882624058995227,15.691714647484503,-3.000000000000007,null,null,4.969,3.3124664644075636,{"v":4.651,"d":"4.65"},3.918,3.727,4.785,25.641,{"$nulls":3},{"$f":"AE531*'III. GDP shares, 1310-2018'!C533","v":0.6699053608367314},{"$f":"AF531*'III. GDP shares, 1310-2018'!D533","v":0.7784841091011383},{"$f":"AG531*'III. GDP shares, 1310-2018'!E533","v":0.13663268859979852},{"$f":"AH531*'III. GDP shares, 1310-2018'!F533","v":0.7656488453679209},{"$f":"AI531*'III. GDP shares, 1310-2018'!G533","v":0.8058373333405108},{"$f":"AJ531*'III. GDP shares, 1310-2018'!H533","v":0.5796853386845296},{"$f":"AK531*'III. GDP shares, 1310-2018'!I533","v":1.7438143657889933},{"$f":"AL531*'III. GDP shares, 1310-2018'!J533","v":0},null,null,{"$f":"U531*'III. GDP shares, 1310-2018'!C533","v":1.760368393503664},{"$f":"V531*'III. GDP shares, 1310-2018'!D533","v":0.5875411249185059},{"$f":"W531*'III. GDP shares, 1310-2018'!E533","v":-0.06289050752994813},{"$f":"X531*'III. GDP shares, 1310-2018'!F533","v":0.5158048217671839},{"$f":"Y531*'III. GDP shares, 1310-2018'!G533","v":0.805993674855981},{"$f":"Z531*'III. GDP shares, 1310-2018'!H533","v":0.712658499475948},{"$f":"AA531*'III. GDP shares, 1310-2018'!I533","v":1.0671751267947835},{"$f":"AB531*'III. GDP shares, 1310-2018'!J533","v":0},null,null,7.286209494915367,5.480008041719623,null,5.386651133786117,4.794777668693026,{"$f":"AVERAGE(BL528:BL534)","v":1.463158835270119},1.3041627591264082,null,null,-0.09758607624912852]
[{"$f":"'[1]Nominal weighted'!B532","v":1838},null,12.60335985526757,2.5311384717937067,0.2599066372822474,-11.818153478411887,1.6632406421906767,6.33858660166282,28.486642021726027,2.0618556701030855,null,2.8032085793186847,0.07652173189166143,3.4720496553579587,1.5535734718245708,{"$f":"AVERAGE(G529:G535)","v":2.2362052163646395},2.261172547533232,20.00782373436331,null,null,-7.62835985526757,0.7,4.348093362717752,15.714153478411887,2.015759357809323,-1.38858660166282,1.3643579782739719,-2.0618556701030855,null,null,4.975,3.231138471793707,{"v":4.608,"d":"4.61"},3.896,3.679,4.95,29.851,{"$nulls":3},{"$f":"AE532*'III. GDP shares, 1310-2018'!C534","v":0.6565649034185458},{"$f":"AF532*'III. GDP shares, 1310-2018'!D534","v":0.7742216887127777},{"$f":"AG532*'III. GDP shares, 1310-2018'!E534","v":0.13459917109117128},{"$f":"AH532*'III. GDP shares, 1310-2018'!F534","v":0.7465119339388846},{"$f":"AI532*'III. GDP shares, 1310-2018'!G534","v":0.806799221877219},{"$f":"AJ532*'III. GDP shares, 1310-2018'!H534","v":0.603765899105402},{"$f":"AK532*'III. GDP shares, 1310-2018'!I534","v":1.9798181685657457},{"$f":"AL532*'III. GDP shares, 1310-2018'!J534","v":0},null,null,{"$f":"U532*'III. GDP shares, 1310-2018'!C534","v":-1.0067363520835506},{"$f":"V532*'III. GDP shares, 1310-2018'!D534","v":0.16772886300910775},{"$f":"W532*'III. GDP shares, 1310-2018'!E534","v":0.12700732692031969},{"$f":"X532*'III. GDP shares, 1310-2018'!F534","v":3.0109864228392476},{"$f":"Y532*'III. GDP shares, 1310-2018'!G534","v":0.4420530256516131},{"$f":"Z532*'III. GDP shares, 1310-2018'!H534","v":-0.16936994707851863},{"$f":"AA532*'III. GDP shares, 1310-2018'!I534","v":0.09048878475811326},{"$f":"AB532*'III. GDP shares, 1310-2018'!J534","v":0},null,null,7.884305495970529,5.702280986709747,null,2.6621581240163317,1.6329452562724325,{"$f":"AVERAGE(BL529:BL535)","v":2.323998379038817},2.116760650122772,null,null,2.4336300369897437]
[{"$f":"'[1]Nominal weighted'!B533","v":1839},null,1.8252589716858827,-4.008504071730436,-0.3846761578665907,-0.831295084867874,-2.2532946762972785,5.917,32.31601270680047,-0.5263157894736793,null,3.6317570341879497,1.400800570022167,3.360846455158522,0.5812919077307185,{"$f":"AVERAGE(G530:G536)","v":2.1257578005821762},6.191367912652032,21.963935530496588,null,null,3.1007410283141175,7.3,5.180676157866591,4.691295084867874,5.8982946762972785,0,-12.114012706800468,0.5263157894736793,null,null,4.926,3.2914959282695637,{"v":4.796,"d":"4.80"},3.86,3.645,5.917,20.202,{"$nulls":3},{"$f":"AE533*'III. GDP shares, 1310-2018'!C535","v":0.6486490497701672},{"$f":"AF533*'III. GDP shares, 1310-2018'!D535","v":0.8141940556837425},{"$f":"AG533*'III. GDP shares, 1310-2018'!E535","v":0.14037690198446134},{"$f":"AH533*'III. GDP shares, 1310-2018'!F535","v":0.7391459492289271},{"$f":"AI533*'III. GDP shares, 1310-2018'!G535","v":0.7628041178999968},{"$f":"AJ533*'III. GDP shares, 1310-2018'!H535","v":0.7395946414382438},{"$f":"AK533*'III. GDP shares, 1310-2018'!I535","v":1.3319437107845287},{"$f":"AL533*'III. GDP shares, 1310-2018'!J535","v":0},null,null,{"$f":"U533*'III. GDP shares, 1310-2018'!C535","v":0.4083014051155752},{"$f":"V533*'III. GDP shares, 1310-2018'!D535","v":1.8057493419461874},{"$f":"W533*'III. GDP shares, 1310-2018'!E535","v":0.15163621126481946},{"$f":"X533*'III. GDP shares, 1310-2018'!F535","v":0.8983294711444727},{"$f":"Y533*'III. GDP shares, 1310-2018'!G535","v":1.2343603477824947},{"$f":"Z533*'III. GDP shares, 1310-2018'!H535","v":0},{"$f":"AA533*'III. GDP shares, 1310-2018'!I535","v":-0.7986923590331029},{"$f":"AB533*'III. GDP shares, 1310-2018'!J535","v":0},null,null,6.662499418324223,5.176708426790068,null,3.6996844182204462,1.8229137537523843,{"$f":"AVERAGE(BL530:BL536)","v":1.6339375528435187},1.4849852364570892,null,null,2.468579294832066]
[{"$f":"'[1]Nominal weighted'!B534","v":1840},null,5.707966226975705,1.553134153222021,5.58597707041892,6.0015799843065345,6.375810564930639,20.755481092375156,23.254141748229326,-3.6649214659685887,null,4.600918170524338,4.560568300344845,4.851391902351407,-0.38821242966839825,{"$f":"AVERAGE(G531:G537)","v":2.055075128647238},9.186800127406839,24.589636983848,null,null,-0.6569662269757048,1.8,-0.73197707041892,-2.1225799843065345,-2.5638105649306393,-15.492481092375154,-3.153141748229326,3.6649214659685887,null,null,5.051,3.353134153222021,{"v":4.854,"d":"4.85"},3.879,3.812,5.263,20.101,{"$nulls":3},{"$f":"AE534*'III. GDP shares, 1310-2018'!C536","v":0.6639711295487198},{"$f":"AF534*'III. GDP shares, 1310-2018'!D536","v":0.7947522333404918},{"$f":"AG534*'III. GDP shares, 1310-2018'!E536","v":0.14237872190322132},{"$f":"AH534*'III. GDP shares, 1310-2018'!F536","v":0.7426700488976088},{"$f":"AI534*'III. GDP shares, 1310-2018'!G536","v":0.8457033975082746},{"$f":"AJ534*'III. GDP shares, 1310-2018'!H536","v":0.6489493256287309},{"$f":"AK534*'III. GDP shares, 1310-2018'!I536","v":1.318232955585647},{"$f":"AL534*'III. GDP shares, 1310-2018'!J536","v":0},null,null,{"$f":"U534*'III. GDP shares, 1310-2018'!C536","v":-0.086360445020871},{"$f":"V534*'III. GDP shares, 1310-2018'!D536","v":0.42663190753589986},{"$f":"W534*'III. GDP shares, 1310-2018'!E536","v":-0.021470531468625886},{"$f":"X534*'III. GDP shares, 1310-2018'!F536","v":-0.40638736291158023},{"$f":"Y534*'III. GDP shares, 1310-2018'!G536","v":-0.5687889048608212},{"$f":"Z534*'III. GDP shares, 1310-2018'!H536","v":-1.9102859884500702},{"$f":"AA534*'III. GDP shares, 1310-2018'!I536","v":-0.2067845065493676},{"$f":"AB534*'III. GDP shares, 1310-2018'!J536","v":0},null,null,6.616162021888861,5.1566578124126945,null,-2.7734458317254362,-2.4070044026584614,{"$f":"AVERAGE(BL531:BL537)","v":0.35236840663898716},-0.2472865150818572,null,null,7.561983318333538]
[{"$f":"'[1]Nominal weighted'!B535","v":1841},null,7.9687680654289785,5.6839835052122485,5.645357697085826,8.4092514641769,3.743,5.556,32.035921007119,-12.121212121212114,null,6.722913083730789,4.893372881907011,5.305743349845412,1.4605049116553805,{"$f":"AVERAGE(G532:G538)","v":2.735387554655912},9.818697493460428,26.232164849827964,null,null,-3.078768065428979,-2.3,-0.7673576970858256,-4.5782514641769,0,0,-11.627921007119003,12.121212121212114,null,null,4.89,3.3839835052122487,{"v":4.878,"d":"4.88"},3.831,3.743,5.556,20.408,{"$nulls":3},{"$f":"AE535*'III. GDP shares, 1310-2018'!C537","v":0.642010498808174},{"$f":"AF535*'III. GDP shares, 1310-2018'!D537","v":0.7749977588709596},{"$f":"AG535*'III. GDP shares, 1310-2018'!E537","v":0.14436360212003727},{"$f":"AH535*'III. GDP shares, 1310-2018'!F537","v":0.7336850330875382},{"$f":"AI535*'III. GDP shares, 1310-2018'!G537","v":0.8396839212643372},{"$f":"AJ535*'III. GDP shares, 1310-2018'!H537","v":0.7166192696604357},{"$f":"AK535*'III. GDP shares, 1310-2018'!I537","v":1.331969342283542},{"$f":"AL535*'III. GDP shares, 1310-2018'!J537","v":0},null,null,{"$f":"U535*'III. GDP shares, 1310-2018'!C537","v":-0.40421296961160236},{"$f":"V535*'III. GDP shares, 1310-2018'!D537","v":-0.5267445431272592},{"$f":"W535*'III. GDP shares, 1310-2018'!E537","v":-0.02270982395773805},{"$f":"X535*'III. GDP shares, 1310-2018'!F537","v":-0.8767931550450794},{"$f":"Y535*'III. GDP shares, 1310-2018'!G537","v":0},{"$f":"Z535*'III. GDP shares, 1310-2018'!H537","v":0},{"$f":"AA535*'III. GDP shares, 1310-2018'!I537","v":-0.7589197518609014},{"$f":"AB535*'III. GDP shares, 1310-2018'!J537","v":0},null,null,6.669997643601751,5.183329426095024,null,-2.58938024360258,-1.2788857640748241,{"$f":"AVERAGE(BL532:BL538)","v":-0.7836883795470699},-0.8019700184234982,null,null,6.4709673676993855]
[{"$f":"'[1]Nominal weighted'!B536","v":1842},null,7.372185365487596,10.88816702368478,2.448232347847537,-5.488462020719776,1.2144924496683647,14.348188236728,13.465137773388351,2.7027027027026773,null,6.046088152955733,4.270638395801168,4.559762340656066,2.1098136696804324,{"$f":"AVERAGE(G533:G539)","v":2.264228400333949},9.161141712165266,26.053337237756672,null,null,-2.5531853654875953,-7.6,2.2467676521524633,9.343462020719777,2.512507550331635,-8.333188236728,6.736862226611651,-2.7027027027026773,null,null,4.819,3.28816702368478,{"v":4.695,"d":"4.70"},3.855,3.727,6.015,20.202,{"$nulls":3},{"$f":"AE536*'III. GDP shares, 1310-2018'!C538","v":0.6387217532958068},{"$f":"AF536*'III. GDP shares, 1310-2018'!D538","v":0.7352503243906313},{"$f":"AG536*'III. GDP shares, 1310-2018'!E538","v":0.13910367876041527},{"$f":"AH536*'III. GDP shares, 1310-2018'!F538","v":0.7464265972120386},{"$f":"AI536*'III. GDP shares, 1310-2018'!G538","v":0.8161320445482231},{"$f":"AJ536*'III. GDP shares, 1310-2018'!H538","v":0.81780179722921},{"$f":"AK536*'III. GDP shares, 1310-2018'!I538","v":1.326471294312635},{"$f":"AL536*'III. GDP shares, 1310-2018'!J538","v":0},null,null,{"$f":"U536*'III. GDP shares, 1310-2018'!C538","v":-0.33840527767865375},{"$f":"V536*'III. GDP shares, 1310-2018'!D538","v":-1.6993973922610817},{"$f":"W536*'III. GDP shares, 1310-2018'!E538","v":0.06656733668462378},{"$f":"X536*'III. GDP shares, 1310-2018'!F538","v":1.809133219793977},{"$f":"Y536*'III. GDP shares, 1310-2018'!G538","v":0.550184578480012},{"$f":"Z536*'III. GDP shares, 1310-2018'!H538","v":-1.1329835937897705},{"$f":"AA536*'III. GDP shares, 1310-2018'!I538","v":0.4423450330333361},{"$f":"AB536*'III. GDP shares, 1310-2018'!J538","v":0},null,null,6.657309574812111,5.21990748974896,null,-0.3025560957375571,-0.0436846068878432,{"$f":"AVERAGE(BL533:BL539)","v":-0.5623225157438941},-0.6447194075235364,null,null,3.0878158688348036]
[{"$f":"'[1]Nominal weighted'!B537","v":1843},null,4.817360791738122,14.463592555824027,13.613142129818362,-0.2689168000998752,3.643,12.489969020077123,32.620318277157295,16.666666666666693,null,5.611968591512152,4.723736070617136,3.7306146907244218,-0.3944810698163401,{"$f":"AVERAGE(G534:G540)","v":2.94938190150631},8.114746615667807,20.533050003297042,null,null,-0.0213607917381218,-11.3,-9.149142129818362,4.156916800099875,0,-7.272969020077122,-9.763318277157298,-16.666666666666693,null,null,4.796,3.1635925558240263,{"v":4.464,"d":"4.46"},3.888,3.643,5.217,22.857,{"$nulls":3},{"$f":"AE537*'III. GDP shares, 1310-2018'!C539","v":0.6260441132049553},{"$f":"AF537*'III. GDP shares, 1310-2018'!D539","v":0.700845404115323},{"$f":"AG537*'III. GDP shares, 1310-2018'!E539","v":0.12731868426418408},{"$f":"AH537*'III. GDP shares, 1310-2018'!F539","v":0.7424855914903591},{"$f":"AI537*'III. GDP shares, 1310-2018'!G539","v":0.8180787733169667},{"$f":"AJ537*'III. GDP shares, 1310-2018'!H539","v":0.727425659470865},{"$f":"AK537*'III. GDP shares, 1310-2018'!I539","v":1.4730291960185375},{"$f":"AL537*'III. GDP shares, 1310-2018'!J539","v":0},null,null,{"$f":"U537*'III. GDP shares, 1310-2018'!C539","v":-2.7883231695263132E-3},{"$f":"V537*'III. GDP shares, 1310-2018'!D539","v":-2.5033416682953127},{"$f":"W537*'III. GDP shares, 1310-2018'!E539","v":-0.2609446097926722},{"$f":"X537*'III. GDP shares, 1310-2018'!F539","v":0.7938402338215963},{"$f":"Y537*'III. GDP shares, 1310-2018'!G539","v":0},{"$f":"Z537*'III. GDP shares, 1310-2018'!H539","v":-1.014097045378718},{"$f":"AA537*'III. GDP shares, 1310-2018'!I539","v":-0.6292012456697776},{"$f":"AB537*'III. GDP shares, 1310-2018'!J539","v":0},null,null,6.861227507974861,5.215227421881191,null,-3.616532658484411,-6.252067510669715,{"$f":"AVERAGE(BL534:BL540)","v":0.20729859796260452},0.3158454142613018,null,null,5.627573007954965]
[{"$f":"'[1]Nominal weighted'!B538","v":1844},null,6.765492309531658,3.142098535342724,9.972263724331576,14.21953031720364,4.761463902098987,3.3256575033799027,21.44698041437527,-28.333333333333343,null,4.264385770138707,3.282203071909476,2.54976809039367,-3.237292258484604,{"$f":"AVERAGE(G535:G541)","v":2.6052661065162184},6.01224931675707,17.905038991817143,null,null,-1.980492309531658,-0.1,-6.104263724331576,-10.19953031720364,-1.2254639020989864,1.960342496620097,-3.387980414375268,28.333333333333343,null,null,4.785,3.042098535342724,{"v":3.868,"d":"3.87"},4.02,3.536,5.286,18.059,{"$nulls":3},{"$f":"AE538*'III. GDP shares, 1310-2018'!C540","v":0.6114108434303139},{"$f":"AF538*'III. GDP shares, 1310-2018'!D540","v":0.691769629617809},{"$f":"AG538*'III. GDP shares, 1310-2018'!E540","v":0.10745592981857904},{"$f":"AH538*'III. GDP shares, 1310-2018'!F540","v":0.7525342260253993},{"$f":"AI538*'III. GDP shares, 1310-2018'!G540","v":0.7962797320768189},{"$f":"AJ538*'III. GDP shares, 1310-2018'!H540","v":0.7494550039010142},{"$f":"AK538*'III. GDP shares, 1310-2018'!I540","v":1.135422545639166},{"$f":"AL538*'III. GDP shares, 1310-2018'!J540","v":0},null,null,{"$f":"U538*'III. GDP shares, 1310-2018'!C540","v":-0.25306049600376207},{"$f":"V538*'III. GDP shares, 1310-2018'!D540","v":-0.022739882406204635},{"$f":"W538*'III. GDP shares, 1310-2018'!E540","v":-0.16958100681382413},{"$f":"X538*'III. GDP shares, 1310-2018'!F540","v":-1.9093272768854321},{"$f":"Y538*'III. GDP shares, 1310-2018'!G540","v":-0.2759649512537313},{"$f":"Z538*'III. GDP shares, 1310-2018'!H540","v":0.2779395560824326},{"$f":"AA538*'III. GDP shares, 1310-2018'!I540","v":-0.21301231223576073},{"$f":"AB538*'III. GDP shares, 1310-2018'!J540","v":0},null,null,6.085156933620389,4.8443279105091,null,-2.5657463695162828,0.9119931453015386,{"$f":"AVERAGE(BL535:BL541)","v":1.8491523891262125},1.804574852215513,null,null,6.69556476800137]
[{"$f":"'[1]Nominal weighted'!B539","v":1845},null,7.865585339842189,-1.828002930947188,-4.961960427043171,-7.272992172236521,-1.6348734380630714,1.7356961325966895,27.234848737227004,-0.4329004329004493,null,4.653548073603202,4.701784115622987,4.988649631957764,1.1098129975373006,{"$f":"AVERAGE(G536:G542)","v":3.3465455700820215},7.743557613165444,22.46528666255886,null,null,-2.8655853398421893,4.9,9.055960427043171,11.357992172236521,5.2108734380630715,3.845303867403311,-10.067848737227004,0.4329004329004493,null,null,5,3.0719970690528124,{"v":4.094,"d":"4.09"},4.085,3.576,5.581,17.167,{"$nulls":3},{"$f":"AE539*'III. GDP shares, 1310-2018'!C541","v":0.6354929193906113},{"$f":"AF539*'III. GDP shares, 1310-2018'!D541","v":0.7235547768770023},{"$f":"AG539*'III. GDP shares, 1310-2018'!E541","v":0.11326435924478812},{"$f":"AH539*'III. GDP shares, 1310-2018'!F541","v":0.7616934880651551},{"$f":"AI539*'III. GDP shares, 1310-2018'!G541","v":0.767878425019967},{"$f":"AJ539*'III. GDP shares, 1310-2018'!H541","v":0.8158114960733159},{"$f":"AK539*'III. GDP shares, 1310-2018'!I541","v":1.0700936030920953},{"$f":"AL539*'III. GDP shares, 1310-2018'!J541","v":0},null,null,{"$f":"U539*'III. GDP shares, 1310-2018'!C541","v":-0.36421183867585},{"$f":"V539*'III. GDP shares, 1310-2018'!D541","v":1.1541086553804782},{"$f":"W539*'III. GDP shares, 1310-2018'!E541","v":0.2505416597741091},{"$f":"X539*'III. GDP shares, 1310-2018'!F541","v":2.117823421074067},{"$f":"Y539*'III. GDP shares, 1310-2018'!G541","v":1.1189366019570055},{"$f":"Z539*'III. GDP shares, 1310-2018'!H541","v":0.5620933705290813},{"$f":"AA539*'III. GDP shares, 1310-2018'!I541","v":-0.6275726994003289},{"$f":"AB539*'III. GDP shares, 1310-2018'!J541","v":0},null,null,6.082142438436116,4.8877890677629345,null,4.211719170638562,2.733699532572166,{"$f":"AVERAGE(BL536:BL542)","v":0.19755284611187207},-0.18461340255631015,null,null,1.106623775627849]
[{"$f":"'[1]Nominal weighted'!B540","v":1846},null,-1.2135779584191795,-0.8368203480186645,-6.188709707388099,-18.361358261345284,2.5427798319092467,-1.4077656754822154,-6.325997934416922,8.620689655172423,null,4.497446581131075,4.511086705325573,5.817328859670097,4.350477285185151,{"$f":"AVERAGE(G537:G543)","v":4.138190918256291},5.622383937938545,24.638687608676197,null,null,6.2135779584191795,4,10.295709707388099,22.616358261345283,1.1792201680907535,7.407765675482215,25.282997934416922,-8.620689655172423,null,null,5,3.1631796519813355,{"v":4.107,"d":"4.11"},4.255,3.722,6,18.957,{"$nulls":3},{"$f":"AE540*'III. GDP shares, 1310-2018'!C542","v":0.6256058674337415},{"$f":"AF540*'III. GDP shares, 1310-2018'!D542","v":0.7731341147743359},{"$f":"AG540*'III. GDP shares, 1310-2018'!E542","v":0.11110757277528688},{"$f":"AH540*'III. GDP shares, 1310-2018'!F542","v":0.7820999892558151},{"$f":"AI540*'III. GDP shares, 1310-2018'!G542","v":0.7800433214632859},{"$f":"AJ540*'III. GDP shares, 1310-2018'!H542","v":0.8931479773894508},{"$f":"AK540*'III. GDP shares, 1310-2018'!I542","v":1.15954624056651},{"$f":"AL540*'III. GDP shares, 1310-2018'!J542","v":0},null,null,{"$f":"U540*'III. GDP shares, 1310-2018'!C542","v":0.7774501657088013},{"$f":"V540*'III. GDP shares, 1310-2018'!D542","v":0.9776670310711746},{"$f":"W540*'III. GDP shares, 1310-2018'!E542","v":0.27853209534620177},{"$f":"X540*'III. GDP shares, 1310-2018'!F542","v":4.157051363855185},{"$f":"Y540*'III. GDP shares, 1310-2018'!G542","v":0.24713670517302677},{"$f":"Z540*'III. GDP shares, 1310-2018'!H542","v":1.1027051550053233},{"$f":"AA540*'III. GDP shares, 1310-2018'!I542","v":1.5464896980062235},{"$f":"AB540*'III. GDP shares, 1310-2018'!J542","v":0},null,null,6.457739950283048,5.1246850836584255,null,9.087032214165937,8.546867506246253,{"$f":"AVERAGE(BL537:BL543)","v":-0.2637204670163186},-0.45653754049681616,null,null,-3.757814214210673]
[{"$f":"'[1]Nominal weighted'!B541","v":1847},null,-3.725113522638412,-8.537596837731595,-2.679949131896339,-13.898098336371312,3.967,6.038,4.858064667870018,4.245283018867918,null,6.142280389838573,3.8069782449697596,4.87949782412032,5.403305749425185,{"$f":"AVERAGE(G538:G544)","v":4.889746240877607},5.38344168805734,24.02895729650758,null,null,8.906113522638412,12,7.1999491318963385,18.264098336371312,0,0,21.987935332129982,-4.245283018867918,null,null,5.181,3.462403162268405,4.52,4.366,3.967,6.038,26.846,{"$nulls":3},{"$f":"AE541*'III. GDP shares, 1310-2018'!C543","v":0.6328246797674218},{"$f":"AF541*'III. GDP shares, 1310-2018'!D543","v":0.8230376288101666},{"$f":"AG541*'III. GDP shares, 1310-2018'!E543","v":0.11861810457809792},{"$f":"AH541*'III. GDP shares, 1310-2018'!F543","v":0.7844338994653538},{"$f":"AI541*'III. GDP shares, 1310-2018'!G543","v":0.891256825740452},{"$f":"AJ541*'III. GDP shares, 1310-2018'!H543","v":0.9059848999866036},{"$f":"AK541*'III. GDP shares, 1310-2018'!I543","v":1.597953987022276},{"$f":"AL541*'III. GDP shares, 1310-2018'!J543","v":0},null,null,{"$f":"U541*'III. GDP shares, 1310-2018'!C543","v":1.087822512629986},{"$f":"V541*'III. GDP shares, 1310-2018'!D543","v":2.852484555626217},{"$f":"W541*'III. GDP shares, 1310-2018'!E543","v":0.18894785820448348},{"$f":"X541*'III. GDP shares, 1310-2018'!F543","v":3.2814882909341345},{"$f":"Y541*'III. GDP shares, 1310-2018'!G543","v":0},{"$f":"Z541*'III. GDP shares, 1310-2018'!H543","v":0},{"$f":"AA541*'III. GDP shares, 1310-2018'!I543","v":1.3087874890249973},{"$f":"AB541*'III. GDP shares, 1310-2018'!J543","v":0},null,null,7.768629023181201,5.754110025370371,null,8.719530706419818,8.014101663021016,{"$f":"AVERAGE(BL538:BL544)","v":-0.46941083262121136},-0.12411786167154437,null,null,-0.9359737542333963]
[{"$f":"'[1]Nominal weighted'!B542","v":1848},null,10.692904189680446,15.621050811206821,22.717528488034485,38.83898825633023,8.931956244960622,17.6751580748586,63.95765470231099,10.83743842364532,null,5.652564865606735,4.231249882777942,4.0696326432766305,1.5361962000191933,{"$f":"AVERAGE(G539:G545)","v":4.858822826292038},3.1261792848454126,21.13478847973848,null,null,-4.282904189680446,-12.1,-17.654528488034487,-33.791988256330235,-2.3309562449606225,-12.068158074858601,-28.559654702310983,-10.83743842364532,null,null,6.41,3.5210508112068215,{"v":5.063,"d":"5.06"},5.047,6.601,5.607,35.398,{"$nulls":3},{"$f":"AE542*'III. GDP shares, 1310-2018'!C544","v":0.7919948846200582},{"$f":"AF542*'III. GDP shares, 1310-2018'!D544","v":0.8465774623943568},{"$f":"AG542*'III. GDP shares, 1310-2018'!E544","v":0.13428710831529816},{"$f":"AH542*'III. GDP shares, 1310-2018'!F544","v":0.9184558542241235},{"$f":"AI542*'III. GDP shares, 1310-2018'!G544","v":1.392916792132149},{"$f":"AJ542*'III. GDP shares, 1310-2018'!H544","v":0.8773042880152432},{"$f":"AK542*'III. GDP shares, 1310-2018'!I544","v":2.1247636561976915},{"$f":"AL542*'III. GDP shares, 1310-2018'!J544","v":0},null,null,{"$f":"U542*'III. GDP shares, 1310-2018'!C544","v":-0.5291791278540917},{"$f":"V542*'III. GDP shares, 1310-2018'!D544","v":-2.909241542998575},{"$f":"W542*'III. GDP shares, 1310-2018'!E544","v":-0.4682551015856616},{"$f":"X542*'III. GDP shares, 1310-2018'!F544","v":-6.149484731503732},{"$f":"Y542*'III. GDP shares, 1310-2018'!G544","v":-0.49186912518269205},{"$f":"Z542*'III. GDP shares, 1310-2018'!H544","v":-1.888255185931734},{"$f":"AA542*'III. GDP shares, 1310-2018'!I544","v":-1.7142922296464738},{"$f":"AB542*'III. GDP shares, 1310-2018'!J544","v":0},null,null,9.663864401600975,7.08630004589892,null,-14.150577044702963,-15.203203547477587,{"$f":"AVERAGE(BL539:BL545)","v":0.7135051715191374},0.6477431035181925,null,null,17.48105808520895]
[{"$f":"'[1]Nominal weighted'!B543","v":1849},null,6.279474918182708,9.553285151602884,8.248986941833861,17.196187992815172,6.756009886888254,-0.5000274898602903,28.67894439620969,-6.077348066298324,null,4.033105899500264,4.925416968151349,4.905129392431609,0.7376376272962,{"$f":"AVERAGE(G540:G546)","v":5.619804746015333},3.5925084087601715,18.498225560236783,null,null,-1.0984749181827083,-6.3,-3.8139869418338614,-12.702187992815173,-1.4320098868882543,5.881027489860291,-2.1889443962096915,6.077348066298324,null,null,5.181,3.2532851516028845,{"v":4.435,"d":"4.44"},4.494,5.324,5.381,26.49,{"$nulls":3},{"$f":"AE543*'III. GDP shares, 1310-2018'!C545","v":0.6331733568724122},{"$f":"AF543*'III. GDP shares, 1310-2018'!D545","v":0.7790705252937008},{"$f":"AG543*'III. GDP shares, 1310-2018'!E545","v":0.11810783970987117},{"$f":"AH543*'III. GDP shares, 1310-2018'!F545","v":0.809930855277658},{"$f":"AI543*'III. GDP shares, 1310-2018'!G545","v":1.1338829491109808},{"$f":"AJ543*'III. GDP shares, 1310-2018'!H545","v":0.8571668275028955},{"$f":"AK543*'III. GDP shares, 1310-2018'!I545","v":1.5679637208301171},{"$f":"AL543*'III. GDP shares, 1310-2018'!J545","v":0},null,null,{"$f":"U543*'III. GDP shares, 1310-2018'!C545","v":-0.13424532935454422},{"$f":"V543*'III. GDP shares, 1310-2018'!D545","v":-1.5086732581471027},{"$f":"W543*'III. GDP shares, 1310-2018'!E545","v":-0.10156973131491667},{"$f":"X543*'III. GDP shares, 1310-2018'!F545","v":-2.28925099797917},{"$f":"Y543*'III. GDP shares, 1310-2018'!G545","v":-0.30498339475975506},{"$f":"Z543*'III. GDP shares, 1310-2018'!H545","v":0.9368187466903666},{"$f":"AA543*'III. GDP shares, 1310-2018'!I545","v":-0.12956532276976906},{"$f":"AB543*'III. GDP shares, 1310-2018'!J545","v":0},null,null,7.79404073594327,5.899296074597635,null,-3.5314692876348905,-1.9471535724713842,{"$f":"AVERAGE(BL540:BL546)","v":0.6443555560267444},0.47946811051399746,null,null,7.143021578791723]
[{"$f":"'[1]Nominal weighted'!B544","v":1850},null,16.331197452690603,9.534833333333333,7.048324880969927,7.100882449580365,8.90388725834921,10.817373270908698,28.35220609197703,-0.5208333333333531,null,3.0108113225282906,4.1594746369159195,5.2125393598424115,2.437226634993709,{"$f":"AVERAGE(G541:G547)","v":5.081931624247462},3.552023839261723,18.976776695330273,null,null,-11.261197452690604,-6.4,-2.8113248809699267,-2.3808824495803655,-3.63188725834921,-5.554373270908698,0.11779390802296692,0.5208333333333531,null,null,5.07,3.1348333333333334,{"v":4.237,"d":"4.24"},4.72,5.272,5.263,28.47,{"$nulls":3},{"$f":"AE544*'III. GDP shares, 1310-2018'!C546","v":0.6233201152763506},{"$f":"AF544*'III. GDP shares, 1310-2018'!D546","v":0.7393421987400026},{"$f":"AG544*'III. GDP shares, 1310-2018'!E546","v":0.11587494228735684},{"$f":"AH544*'III. GDP shares, 1310-2018'!F546","v":0.8467009219129321},{"$f":"AI544*'III. GDP shares, 1310-2018'!G546","v":1.139290797253623},{"$f":"AJ544*'III. GDP shares, 1310-2018'!H546","v":0.8344664708160195},{"$f":"AK544*'III. GDP shares, 1310-2018'!I546","v":1.7030778338769492},{"$f":"AL544*'III. GDP shares, 1310-2018'!J546","v":0},null,null,{"$f":"U544*'III. GDP shares, 1310-2018'!C546","v":-1.384483411116539},{"$f":"V544*'III. GDP shares, 1310-2018'!D546","v":-1.5094231714400608},{"$f":"W544*'III. GDP shares, 1310-2018'!E546","v":-0.07688508575251371},{"$f":"X544*'III. GDP shares, 1310-2018'!F546","v":-0.427096475641105},{"$f":"Y544*'III. GDP shares, 1310-2018'!G546","v":-0.784858825891492},{"$f":"Z544*'III. GDP shares, 1310-2018'!H546","v":-0.8806646895249881},{"$f":"AA544*'III. GDP shares, 1310-2018'!I546","v":7.0464416480384645E-3},{"$f":"AB544*'III. GDP shares, 1310-2018'!J546","v":0},null,null,8.023833333333332,6.002073280163234,null,-5.05636521771866,-3.9251297588928105,{"$f":"AVERAGE(BL541:BL547)","v":0.5734542753457185},0.2857644760724335,null,null,8.809673127701831]
[{"$f":"'[1]Nominal weighted'!B545","v":1851},null,3.337483639908788,6.112,4.30320745842575,-12.850236528638295,4.545,-12.475179319103596,1.187798696991523,-12.43523316062174,null,-1.5439435339366656,3.6934051375442434,4.798846113218181,2.2875567489128357,{"$f":"AVERAGE(G542:G548)","v":4.644663299429033},3.428309553547438,19.172504618333903,null,null,1.6505163600912123,-3,-0.14520745842575022,17.344236528638294,0,17.647179319103596,4.588201303008477,12.43523316062174,null,null,4.988,3.112,{"v":4.158,"d":"4.16"},4.494,4.545,5.172,5.776,{"$nulls":3},{"$f":"AE545*'III. GDP shares, 1310-2018'!C547","v":0.6099234886181969},{"$f":"AF545*'III. GDP shares, 1310-2018'!D547","v":0.7497489759867338},{"$f":"AG545*'III. GDP shares, 1310-2018'!E547","v":0.11454546847527643},{"$f":"AH545*'III. GDP shares, 1310-2018'!F547","v":0.7860118875773163},{"$f":"AI545*'III. GDP shares, 1310-2018'!G547","v":0.948260703647484},{"$f":"AJ545*'III. GDP shares, 1310-2018'!H547","v":0.8596059509879438},{"$f":"AK545*'III. GDP shares, 1310-2018'!I547","v":0.3437136104685397},{"$f":"AL545*'III. GDP shares, 1310-2018'!J547","v":0},null,null,{"$f":"U545*'III. GDP shares, 1310-2018'!C547","v":0.20182211234327188},{"$f":"V545*'III. GDP shares, 1310-2018'!D547","v":-0.7227657223522499},{"$f":"W545*'III. GDP shares, 1310-2018'!E547","v":-0.004000205952737322},{"$f":"X545*'III. GDP shares, 1310-2018'!F547","v":3.033550532368141},{"$f":"Y545*'III. GDP shares, 1310-2018'!G547","v":0},{"$f":"Z545*'III. GDP shares, 1310-2018'!H547","v":2.9330279119978386},{"$f":"AA545*'III. GDP shares, 1310-2018'!I547","v":0.2730310310618944},{"$f":"AB545*'III. GDP shares, 1310-2018'!J547","v":0},null,null,4.606428571428572,4.411810085761491,null,5.714665659466158,6.315019901629696,{"$f":"AVERAGE(BL542:BL548)","v":1.1346492968172048},0.8482873712526745,null,null,-2.77537027204365]
[{"$f":"'[1]Nominal weighted'!B546","v":1852},null,-3.4706274229030996,3.031166666666666,0.8865168170416671,-12.862902181297482,3.692,5,8.778908300715141,11.059907834101367,null,-2.53701869792508,1.4690169264194597,1.1005109010950822,-3.5747343832489435,{"$f":"AVERAGE(G543:G549)","v":3.6710166712185033},0.9741244513409251,10.747537052193769,null,null,8.2786274229031,0,2.749483182958333,17.089902181297482,0,0,-4.6119083007151405,-11.059907834101367,null,null,4.808,3.031166666666666,{"v":3.636,"d":"3.64"},4.227,3.692,5,4.167,{"$nulls":3},{"$f":"AE546*'III. GDP shares, 1310-2018'!C548","v":0.5753992214496348},{"$f":"AF546*'III. GDP shares, 1310-2018'!D548","v":0.7162506907781468},{"$f":"AG546*'III. GDP shares, 1310-2018'!E548","v":0.09776321110273994},{"$f":"AH546*'III. GDP shares, 1310-2018'!F548","v":0.7271045042957254},{"$f":"AI546*'III. GDP shares, 1310-2018'!G548","v":0.7914883888285811},{"$f":"AJ546*'III. GDP shares, 1310-2018'!H548","v":0.8537443224838552},{"$f":"AK546*'III. GDP shares, 1310-2018'!I548","v":0.2500165986130958},{"$f":"AL546*'III. GDP shares, 1310-2018'!J548","v":0},null,null,{"$f":"U546*'III. GDP shares, 1310-2018'!C548","v":0.9907478730886108},{"$f":"V546*'III. GDP shares, 1310-2018'!D548","v":0},{"$f":"W546*'III. GDP shares, 1310-2018'!E548","v":0.07392692652337428},{"$f":"X546*'III. GDP shares, 1310-2018'!F548","v":2.9397077960716205},{"$f":"Y546*'III. GDP shares, 1310-2018'!G548","v":0},{"$f":"Z546*'III. GDP shares, 1310-2018'!H548","v":0},{"$f":"AA546*'III. GDP shares, 1310-2018'!I548","v":-0.2767107334917931},{"$f":"AB546*'III. GDP shares, 1310-2018'!J548","v":0},null,null,4.080166666666666,4.011766937551779,null,3.727671862191812,1.555774581542801,{"$f":"AVERAGE(BL543:BL549)","v":3.664643368152929},3.6567343920807005,null,null,-0.43215561541818026]
[{"$f":"'[1]Nominal weighted'!B547","v":1853},null,-8.369639997222997,-6.1984166666666685,-4.036839935512473,-6.464235207462721,-1.2223320204658537,-1.6911576619713493,-2.9761399887624815,3.1088082901554475,null,{"$f":"AVERAGE(C544:C550)","v":-2.664237354312903},{"$f":"AVERAGE(D544:D550)","v":0.5657380952380953},{"$f":"AVERAGE(E544:E550)","v":1.2439169134765997},{"$f":"AVERAGE(F544:F550)","v":-4.956971965284843},{"$f":"AVERAGE(G544:G550)","v":3.1893206619250463},1.5729553073237135,4.418855162780266,null,null,13.086639997222996,9.3,7.912839935512474,10.848235207462722,5.276332020465854,6.6651576619713495,7.547139988762481,-3.1088082901554475,null,null,4.717,3.1015833333333327,{"v":3.876,"d":"3.88"},4.384,4.054,4.974,4.571,{"$nulls":3},{"$f":"AE547*'III. GDP shares, 1310-2018'!C549","v":0.5671433987321574},{"$f":"AF547*'III. GDP shares, 1310-2018'!D549","v":0.7523942724235654},{"$f":"AG547*'III. GDP shares, 1310-2018'!E549","v":0.10232877227747608},{"$f":"AH547*'III. GDP shares, 1310-2018'!F549","v":0.743086830073147},{"$f":"AI547*'III. GDP shares, 1310-2018'!G549","v":0.8187266878206013},{"$f":"AJ547*'III. GDP shares, 1310-2018'!H549","v":0.89249570441348},{"$f":"AK547*'III. GDP shares, 1310-2018'!I549","v":0.2737770364145892},{"$f":"AL547*'III. GDP shares, 1310-2018'!J549","v":0},null,null,{"$f":"U547*'III. GDP shares, 1310-2018'!C549","v":1.5734580212018743},{"$f":"V547*'III. GDP shares, 1310-2018'!D549","v":2.256030543605952},{"$f":"W547*'III. GDP shares, 1310-2018'!E549","v":0.20890381729338867},{"$f":"X547*'III. GDP shares, 1310-2018'!F549","v":1.8387729726736728},{"$f":"Y547*'III. GDP shares, 1310-2018'!G549","v":1.0655830880507622},{"$f":"Z547*'III. GDP shares, 1310-2018'!H549","v":1.1959438243964662},{"$f":"AA547*'III. GDP shares, 1310-2018'!I549","v":0.45203098217664156},{"$f":"AB547*'III. GDP shares, 1310-2018'!J549","v":0},null,null,4.239654761904762,4.149952702155017,null,8.590723249398756,7.190942065155303,{"$f":"AVERAGE(BL544:BL550)","v":4.303825124554454},4.101876814798722,null,null,-2.937134276061356]
[{"$f":"'[1]Nominal weighted'!B548","v":1854},null,-35.60839751789311,-11.800083333333333,-5.575801858265954,-14.945787538937427,0.906121726270996,5.172,6.2281601288954125,-8.02139037433155,null,-1.682391869850681,0.4728333333333331,1.8625425679796812,-2.6397328616878153,{"$f":"AVERAGE(G545:G551)","v":2.7012470378519153},0.3866048119580732,0.7657608323933738,null,null,40.381397517893106,15.1,9.657801858265953,19.750787538937427,3.579878273729004,0,-0.8771601288954126,8.02139037433155,null,null,4.773,3.2999166666666664,{"v":4.082,"d":"4.08"},4.805,4.486,5.172,5.351,{"$nulls":3},{"$f":"AE548*'III. GDP shares, 1310-2018'!C550","v":0.5629782579936126},{"$f":"AF548*'III. GDP shares, 1310-2018'!D550","v":0.7941215533136233},{"$f":"AG548*'III. GDP shares, 1310-2018'!E550","v":0.10713366909160416},{"$f":"AH548*'III. GDP shares, 1310-2018'!F550","v":0.806839118810856},{"$f":"AI548*'III. GDP shares, 1310-2018'!G550","v":0.9183621957719434},{"$f":"AJ548*'III. GDP shares, 1310-2018'!H550","v":0.9492760742920763},{"$f":"AK548*'III. GDP shares, 1310-2018'!I550","v":0.31560029163038317},{"$f":"AL548*'III. GDP shares, 1310-2018'!J550","v":0},null,null,{"$f":"U548*'III. GDP shares, 1310-2018'!C550","v":4.763010439968793},{"$f":"V548*'III. GDP shares, 1310-2018'!D550","v":3.6337994762602226},{"$f":"W548*'III. GDP shares, 1310-2018'!E550","v":0.2534727458196336},{"$f":"X548*'III. GDP shares, 1310-2018'!F550","v":3.3164844981762145},{"$f":"Y548*'III. GDP shares, 1310-2018'!G550","v":0.7328633241324214},{"$f":"Z548*'III. GDP shares, 1310-2018'!H550","v":0},{"$f":"AA548*'III. GDP shares, 1310-2018'!I550","v":-0.05173462763706536},{"$f":"AB548*'III. GDP shares, 1310-2018'!J550","v":0},null,null,4.566988095238095,4.454311160904099,null,12.64789585672022,11.951761929282704,{"$f":"AVERAGE(BL545:BL551)","v":4.113090638623624},3.80669302619944,null,null,-5.353906772869521]
[{"$f":"'[1]Nominal weighted'!B549","v":1855},null,3.7413780417615476,0.05033333333333401,-3.1708179968271994,-2.197049668802215,2.1164298474869163,0.49586235941301293,4.9828817393300655,-10.891089108910894,null,0.7817805546716967,1.244488095238095,2.499461217041506,0.5458106348813528,{"$f":"AVERAGE(G546:G552)","v":2.992235275734317},3.050022435965954,1.3623369699543002,null,null,0.6836219582384522,3.3,7.046817996827199,6.835049668802215,2.5345701525130835,4.688137640586987,-0.3318817393300654,10.891089108910894,null,null,4.425,3.350333333333334,{"v":3.876,"d":"3.88"},4.638,4.651,5.184,4.651,{"$nulls":3},{"$f":"AE549*'III. GDP shares, 1310-2018'!C551","v":0.5246668206458219},{"$f":"AF549*'III. GDP shares, 1310-2018'!D551","v":0.7966043177239286},{"$f":"AG549*'III. GDP shares, 1310-2018'!E551","v":0.10278158483509389},{"$f":"AH549*'III. GDP shares, 1310-2018'!F551","v":0.7608800097953006},{"$f":"AI549*'III. GDP shares, 1310-2018'!G551","v":0.9294130900833714},{"$f":"AJ549*'III. GDP shares, 1310-2018'!H551","v":0.9945381582608889},{"$f":"AK549*'III. GDP shares, 1310-2018'!I551","v":0.2856327686194192},{"$f":"AL549*'III. GDP shares, 1310-2018'!J551","v":0},null,null,{"$f":"U549*'III. GDP shares, 1310-2018'!C551","v":0.08105621680285639},{"$f":"V549*'III. GDP shares, 1310-2018'!D551","v":0.7846366277451886},{"$f":"W549*'III. GDP shares, 1310-2018'!E551","v":0.18686355050525313},{"$f":"X549*'III. GDP shares, 1310-2018'!F551","v":1.1213136392733065},{"$f":"Y549*'III. GDP shares, 1310-2018'!G551","v":0.5064852026403498},{"$f":"Z549*'III. GDP shares, 1310-2018'!H551","v":0.899408135559979},{"$f":"AA549*'III. GDP shares, 1310-2018'!I551","v":-0.020381917879826912},{"$f":"AB549*'III. GDP shares, 1310-2018'!J551","v":0},null,null,4.39647619047619,4.394516749963825,null,3.5593814546471068,4.455925598318595,{"$f":"AVERAGE(BL546:BL552)","v":2.4966109480203404},2.206466597824881,null,null,0.8231676053379777]
[{"$f":"'[1]Nominal weighted'!B550","v":1856},null,5.388944323467945,3.2303333333333337,9.252829028504479,7.520524918563873,3.3841378218340554,3.691788502019229,-15.621828829684823,4.017857142857147,null,-0.5591361164264471,1.5250952380952383,3.2542730892883824,3.055653803638136,{"$f":"AVERAGE(G547:G553)","v":3.0792352757343173},4.270497154186095,1.929935294381798,null,null,-0.9249443234679448,0,-5.435829028504479,-2.642524918563873,1.1238621781659446,1.492211497980771,19.755828829684823,-4.017857142857147,null,null,4.464,3.2303333333333337,{"v":3.817,"d":"3.82"},4.878,4.508,5.184,4.134,{"$nulls":3},{"$f":"AE550*'III. GDP shares, 1310-2018'!C552","v":0.511277675877167},{"$f":"AF550*'III. GDP shares, 1310-2018'!D552","v":0.7847743203674616},{"$f":"AG550*'III. GDP shares, 1310-2018'!E552","v":0.09757459156517431},{"$f":"AH550*'III. GDP shares, 1310-2018'!F552","v":0.8249312600323325},{"$f":"AI550*'III. GDP shares, 1310-2018'!G552","v":0.8958248700687687},{"$f":"AJ550*'III. GDP shares, 1310-2018'!H552","v":0.996451822854536},{"$f":"AK550*'III. GDP shares, 1310-2018'!I552","v":0.23529029585956932},{"$f":"AL550*'III. GDP shares, 1310-2018'!J552","v":0},null,null,{"$f":"U550*'III. GDP shares, 1310-2018'!C552","v":-0.10593713799696894},{"$f":"V550*'III. GDP shares, 1310-2018'!D552","v":0},{"$f":"W550*'III. GDP shares, 1310-2018'!E552","v":-0.13895698120891872},{"$f":"X550*'III. GDP shares, 1310-2018'!F552","v":-0.4468842580438156},{"$f":"Y550*'III. GDP shares, 1310-2018'!G552","v":0.22333267296599615},{"$f":"Z550*'III. GDP shares, 1310-2018'!H552","v":0.2868280993918667},{"$f":"AA550*'III. GDP shares, 1310-2018'!I552","v":1.1244206120676223},{"$f":"AB550*'III. GDP shares, 1310-2018'!J552","v":0},null,null,4.31647619047619,4.34612483662501,null,0.9428030071757819,1.1688433865547618,{"$f":"AVERAGE(BL547:BL553)","v":1.8379800182920836},1.9316875873189356,null,null,2.618547509081766]
[{"$f":"'[1]Nominal weighted'!B551","v":1857},null,23.204115843926154,8.8845,11.378704462491498,23.321556174759557,5.487371889837295,2.5129198033492157,2.780545779268778,0.465116279069763,null,1.1632050554636069,2.3419761904761907,3.7354781908446624,3.696312804764816,{"$f":"AVERAGE(G548:G554)","v":3.526201256870428},5.858365221804259,1.740431297459179,null,null,-18.74011584392615,-5.6,-7.547704462491499,-18.428556174759557,-1.111371889837295,2.9420801966507844,1.0194542207312218,-0.465116279069763,null,null,4.464,3.2845,{"v":3.831,"d":"3.83"},4.893,4.376,5.455,3.8,{"$nulls":3},{"$f":"AE551*'III. GDP shares, 1310-2018'!C553","v":0.5012223663388122},{"$f":"AF551*'III. GDP shares, 1310-2018'!D553","v":0.7851859327876225},{"$f":"AG551*'III. GDP shares, 1310-2018'!E553","v":0.0963828083650145},{"$f":"AH551*'III. GDP shares, 1310-2018'!F553","v":0.8394337718419516},{"$f":"AI551*'III. GDP shares, 1310-2018'!G553","v":0.8889113296078114},{"$f":"AJ551*'III. GDP shares, 1310-2018'!H553","v":1.0638051674034383},{"$f":"AK551*'III. GDP shares, 1310-2018'!I553","v":0.2044258398471184},{"$f":"AL551*'III. GDP shares, 1310-2018'!J553","v":0},null,null,{"$f":"U551*'III. GDP shares, 1310-2018'!C553","v":-2.104158872929241},{"$f":"V551*'III. GDP shares, 1310-2018'!D553","v":-1.338724683699402},{"$f":"W551*'III. GDP shares, 1310-2018'!E553","v":-0.18989009470218818},{"$f":"X551*'III. GDP shares, 1310-2018'!F553","v":-3.1615680399304518},{"$f":"Y551*'III. GDP shares, 1310-2018'!G553","v":-0.22575664174680438},{"$f":"Z551*'III. GDP shares, 1310-2018'!H553","v":0.5737488755476496},{"$f":"AA551*'III. GDP shares, 1310-2018'!I553","v":0.054842838225965695},{"$f":"AB551*'III. GDP shares, 1310-2018'!J553","v":0},null,null,4.3005,4.379367216191769,null,-6.391506619234471,-5.991416279087781,{"$f":"AVERAGE(BL548:BL554)","v":1.0053480280857503},1.555846012607035,null,null,8.646963218939216]
[{"$f":"'[1]Nominal weighted'!B552","v":1858},null,20.586690611565434,11.513583333333333,8.761638001858522,9.448567947345886,6.581917665176814,6.168744048951566,5.363831659918009,-1.4018691588784913,null,6.9732258731636785,4.111880952380952,4.062115821946862,5.8100456680227905,{"$f":"AVERAGE(G549:G555)","v":3.873489270522293},5.625228285440401,0.754728643543394,null,null,-16.238690611565435,-8.4,-5.023638001858521,-4.728567947345885,-2.471917665176814,-1.4297440489515656,-2.201831659918009,1.4018691588784913,null,null,4.348,3.113583333333333,{"v":3.738,"d":"3.74"},4.72,4.11,4.739,3.162,{"$nulls":3},{"$f":"AE552*'III. GDP shares, 1310-2018'!C554","v":0.482476595417973},{"$f":"AF552*'III. GDP shares, 1310-2018'!D554","v":0.7278122791930969},{"$f":"AG552*'III. GDP shares, 1310-2018'!E554","v":0.09012155251320493},{"$f":"AH552*'III. GDP shares, 1310-2018'!F554","v":0.7861473121689271},{"$f":"AI552*'III. GDP shares, 1310-2018'!G554","v":0.8707843001218426},{"$f":"AJ552*'III. GDP shares, 1310-2018'!H554","v":0.943324541711336},{"$f":"AK552*'III. GDP shares, 1310-2018'!I554","v":0.16976601616061607},{"$f":"AL552*'III. GDP shares, 1310-2018'!J554","v":0},null,null,{"$f":"U552*'III. GDP shares, 1310-2018'!C554","v":-1.801929199704207},{"$f":"V552*'III. GDP shares, 1310-2018'!D554","v":-1.963532846470149},{"$f":"W552*'III. GDP shares, 1310-2018'!E554","v":-0.12111772498443676},{"$f":"X552*'III. GDP shares, 1310-2018'!F554","v":-0.7875743606385823},{"$f":"Y552*'III. GDP shares, 1310-2018'!G554","v":-0.5237243537785428},{"$f":"Z552*'III. GDP shares, 1310-2018'!H554","v":-0.2845985755943755},{"$f":"AA552*'III. GDP shares, 1310-2018'!I554","v":-0.11821511358652652},{"$f":"AB552*'III. GDP shares, 1310-2018'!J554","v":0},null,null,3.990083333333333,4.070432597286996,null,-5.60069217475682,-4.886565096992217,{"$f":"AVERAGE(BL549:BL555)","v":-0.35786995240452885},0.504664388296621,null,null,6.979779646380571]
[{"$f":"'[1]Nominal weighted'!B553","v":1859},null,-12.857044120590107,4.995416666666666,6.170199922769806,4.706,4.301,13.543323027540993,12.752096571707627,-2.3041474654377883,null,7.313169385402385,4.938464285714285,5.784874739194601,6.7254813349945355,{"$f":"AVERAGE(G550:G556)","v":4.183856435167018},5.082188705687239,0.8332932052803009,null,null,17.392044120590107,-1.8,-2.386199922769806,0,0,-8.695323027540994,-9.756096571707626,2.3041474654377883,null,null,4.535,3.1954166666666666,{"v":3.784,"d":"3.78"},4.706,4.301,4.848,2.996,{"$nulls":3},{"$f":"AE553*'III. GDP shares, 1310-2018'!C555","v":0.5074074585750756},{"$f":"AF553*'III. GDP shares, 1310-2018'!D555","v":0.762430754562421},{"$f":"AG553*'III. GDP shares, 1310-2018'!E555","v":0.08818212524810794},{"$f":"AH553*'III. GDP shares, 1310-2018'!F555","v":0.7831669075636071},{"$f":"AI553*'III. GDP shares, 1310-2018'!G555","v":0.8476066640329133},{"$f":"AJ553*'III. GDP shares, 1310-2018'!H555","v":1.0031420281413777},{"$f":"AK553*'III. GDP shares, 1310-2018'!I555","v":0.16717133680495466},{"$f":"AL553*'III. GDP shares, 1310-2018'!J555","v":0},null,null,{"$f":"U553*'III. GDP shares, 1310-2018'!C555","v":1.9459433090747986},{"$f":"V553*'III. GDP shares, 1310-2018'!D555","v":-0.4294824435662615},{"$f":"W553*'III. GDP shares, 1310-2018'!E555","v":-0.05560787009955405},{"$f":"X553*'III. GDP shares, 1310-2018'!F555","v":0},{"$f":"Y553*'III. GDP shares, 1310-2018'!G555","v":0},{"$f":"Z553*'III. GDP shares, 1310-2018'!H555","v":-1.7992252428201105},{"$f":"AA553*'III. GDP shares, 1310-2018'!I555","v":-0.5443723984948595},{"$f":"AB553*'III. GDP shares, 1310-2018'!J555","v":0},null,null,4.052202380952381,4.159107274928457,null,-0.882744645905987,-0.3676784919988163,{"$f":"AVERAGE(BL550:BL556)","v":-0.6774991344699614},-0.31587405210283226,null,null,3.8499387227057627]
[{"$f":"'[1]Nominal weighted'!B554","v":1860},null,3.6867482060073846,-0.4802500000000003,-0.668404224618516,-1.979622199575961,1.9064298474869164,9.423918811355794,-4.302667967220819,-10.810810810810816,null,8.018769912039755,5.456619047619047,5.72371706150066,7.549711620339786,{"$f":"AVERAGE(G551:G557)","v":4.18668174970159},3.4759701228320345,3.400195591104903,null,null,2.448251793992615,3.7,4.499404224618516,6.617622199575961,2.5345701525130835,-3.1739188113557937,9.043667967220818,10.810810810810816,null,null,6.135,3.21975,{"v":3.831,"d":"3.83"},4.638,4.441,6.25,4.741,{"$nulls":3},{"$f":"AE554*'III. GDP shares, 1310-2018'!C556","v":0.6737033124564661},{"$f":"AF554*'III. GDP shares, 1310-2018'!D556","v":0.7608353829657483},{"$f":"AG554*'III. GDP shares, 1310-2018'!E556","v":0.0873276271181542},{"$f":"AH554*'III. GDP shares, 1310-2018'!F556","v":0.7921665447966312},{"$f":"AI554*'III. GDP shares, 1310-2018'!G556","v":0.9058820076474651},{"$f":"AJ554*'III. GDP shares, 1310-2018'!H556","v":1.2526481443480724},{"$f":"AK554*'III. GDP shares, 1310-2018'!I556","v":0.2649502047705616},{"$f":"AL554*'III. GDP shares, 1310-2018'!J556","v":0},null,null,{"$f":"U554*'III. GDP shares, 1310-2018'!C556","v":0.2688500967139871},{"$f":"V554*'III. GDP shares, 1310-2018'!D556","v":0.8743197195351405},{"$f":"W554*'III. GDP shares, 1310-2018'!E556","v":0.10256389829844258},{"$f":"X554*'III. GDP shares, 1310-2018'!F556","v":1.1302843709805026},{"$f":"Y554*'III. GDP shares, 1310-2018'!G556","v":0.5170055163886274},{"$f":"Z554*'III. GDP shares, 1310-2018'!H556","v":-0.6361285614970039},{"$f":"AA554*'III. GDP shares, 1310-2018'!I556","v":0.5054042775347235},{"$f":"AB554*'III. GDP shares, 1310-2018'!J556","v":0},null,null,4.750821428571427,4.737513224103098,null,2.7622993179544197,4.5600510421720015,{"$f":"AVERAGE(BL551:BL557)","v":-0.775828696305202},-0.5745631000835157,null,null,2.0886982427180714]
[{"$f":"'[1]Nominal weighted'!B555","v":1861},null,5.061748206007385,0.5892499999999998,-3.2893384405505586,-0.14965749613160106,3.3371378218340557,3.540041445452992,-0.6717584485150789,-9.756097560975615,null,6.142518300807924,4.794154761904762,4.957049728280603,3.3743675474123904,{"$f":"AVERAGE(G552:G558)","v":4.049200051153406},0.738330343641129,3.505402816180724,null,null,2.448251793992615,2.7,7.180338440550559,4.827657496131601,1.1238621781659446,3.277958554547008,5.4337584485150785,9.756097560975615,null,null,7.51,3.28925,{"v":3.891,"d":"3.89"},4.678,4.461,6.818,4.762,{"$nulls":3},{"$f":"AE555*'III. GDP shares, 1310-2018'!C557","v":0.8246859838690409},{"$f":"AF555*'III. GDP shares, 1310-2018'!D557","v":0.7986097108007291},{"$f":"AG555*'III. GDP shares, 1310-2018'!E557","v":0.09004369058308061},{"$f":"AH555*'III. GDP shares, 1310-2018'!F557","v":0.7797357698043552},{"$f":"AI555*'III. GDP shares, 1310-2018'!G557","v":0.8529244415243101},{"$f":"AJ555*'III. GDP shares, 1310-2018'!H557","v":1.430027294692506},{"$f":"AK555*'III. GDP shares, 1310-2018'!I557","v":0.2696850590171136},{"$f":"AL555*'III. GDP shares, 1310-2018'!J557","v":0},null,null,{"$f":"U555*'III. GDP shares, 1310-2018'!C557","v":0.2688467296255585},{"$f":"V555*'III. GDP shares, 1310-2018'!D557","v":0.6555434275783139},{"$f":"W555*'III. GDP shares, 1310-2018'!E557","v":0.16616401254760577},{"$f":"X555*'III. GDP shares, 1310-2018'!F557","v":0.804680896557918},{"$f":"Y555*'III. GDP shares, 1310-2018'!G557","v":0.21487772263225352},{"$f":"Z555*'III. GDP shares, 1310-2018'!H557","v":0.6875286306648599},{"$f":"AA555*'III. GDP shares, 1310-2018'!I557","v":0.30772857368175743},{"$f":"AB555*'III. GDP shares, 1310-2018'!J557","v":0},null,null,5.058464285714286,5.045711950291135,null,3.1053699932882672,4.593490559109803,{"$f":"AVERAGE(BL552:BL558)","v":1.0017956839019555},1.3677717137456074,null,null,1.7972756737804532]
[{"$f":"'[1]Nominal weighted'!B556","v":1862},null,6.120982627432494,5.836416666666667,8.888494423906975,4.211,4.289,-3.3054146988591153,5.532833671488413,11.851851851851862,null,4.647402786430847,3.502142857142857,4.315118765897447,4.353871285017051,{"$f":"AVERAGE(G553:G559)","v":3.388556948429444},-0.3967616845601921,4.096011438306559,null,null,1.0420173725675064,-2.6,-5.150494423906975,0,0,9.523414698859115,-1.2658336714884133,-11.851851851851862,null,null,7.163,3.2364166666666665,{"v":3.738,"d":"3.74"},4.211,4.289,6.218,4.267,{"$nulls":3},{"$f":"AE556*'III. GDP shares, 1310-2018'!C558","v":0.7792264710650777},{"$f":"AF556*'III. GDP shares, 1310-2018'!D558","v":0.7616967588625215},{"$f":"AG556*'III. GDP shares, 1310-2018'!E558","v":0.08439030947605394},{"$f":"AH556*'III. GDP shares, 1310-2018'!F558","v":0.7083061130900822},{"$f":"AI556*'III. GDP shares, 1310-2018'!G558","v":0.8560317990003753},{"$f":"AJ556*'III. GDP shares, 1310-2018'!H558","v":1.3098985274294634},{"$f":"AK556*'III. GDP shares, 1310-2018'!I558","v":0.23397235421366405},{"$f":"AL556*'III. GDP shares, 1310-2018'!J558","v":0},null,null,{"$f":"U556*'III. GDP shares, 1310-2018'!C558","v":0.1133557894756781},{"$f":"V556*'III. GDP shares, 1310-2018'!D558","v":-0.6119148975593036},{"$f":"W556*'III. GDP shares, 1310-2018'!E558","v":-0.1162792451546816},{"$f":"X556*'III. GDP shares, 1310-2018'!F558","v":0},{"$f":"Y556*'III. GDP shares, 1310-2018'!G558","v":0},{"$f":"Z556*'III. GDP shares, 1310-2018'!H558","v":2.0062249742900713},{"$f":"AA556*'III. GDP shares, 1310-2018'!I558","v":-0.06940944086268334},{"$f":"AB556*'III. GDP shares, 1310-2018'!J558","v":0},null,null,4.731773809523809,4.7335223331372385,null,1.3219771801890807,-1.2878434844775786,{"$f":"AVERAGE(BL553:BL559)","v":1.764259233554777},1.6780042481386968,null,null,2.0379334965263327]
[{"$f":"'[1]Nominal weighted'!B557","v":1863},null,10.32814800992953,6.857416666666666,8.824725284646902,13.290136915980627,3.4039150235760496,-7.551741577967197,2.346487871087389,0.4201680672268669,null,7.787266232229434,2.3495238095238093,3.323620033602278,3.0885556220655497,{"$f":"AVERAGE(G554:G560)","v":3.0847175861972502},-1.7029800471116248,2.7694236288911194,null,null,-3.09214800992953,-3.6,-4.963725284646903,-9.046136915980627,1.11108497642395,13.043741577967197,1.8315121289126108,-0.4201680672268669,null,null,7.236,3.257416666666666,{"v":3.861,"d":"3.86"},4.244,4.515,5.492,4.178,{"$nulls":3},{"$f":"AE557*'III. GDP shares, 1310-2018'!C559","v":0.7488800938473362},{"$f":"AF557*'III. GDP shares, 1310-2018'!D559","v":0.7497904404262682},{"$f":"AG557*'III. GDP shares, 1310-2018'!E559","v":0.08774361069536023},{"$f":"AH557*'III. GDP shares, 1310-2018'!F559","v":0.7442608200854873},{"$f":"AI557*'III. GDP shares, 1310-2018'!G559","v":0.9060804983617168},{"$f":"AJ557*'III. GDP shares, 1310-2018'!H559","v":1.1703648018553723},{"$f":"AK557*'III. GDP shares, 1310-2018'!I559","v":0.22748222159297762},{"$f":"AL557*'III. GDP shares, 1310-2018'!J559","v":0},null,null,{"$f":"U557*'III. GDP shares, 1310-2018'!C559","v":-0.3200177020267939},{"$f":"V557*'III. GDP shares, 1310-2018'!D559","v":-0.8286460903685127},{"$f":"W557*'III. GDP shares, 1310-2018'!E559","v":-0.11280372415819061},{"$f":"X557*'III. GDP shares, 1310-2018'!F559","v":-1.5864008670342469},{"$f":"Y557*'III. GDP shares, 1310-2018'!G559","v":0.22297506736665096},{"$f":"Z557*'III. GDP shares, 1310-2018'!H559","v":2.779667885533551},{"$f":"AA557*'III. GDP shares, 1310-2018'!I559","v":0.09972150501664068},{"$f":"AB557*'III. GDP shares, 1310-2018'!J559","v":0},null,null,4.683345238095238,4.6346024868645195,null,0.2544960743290985,-0.6419799493100217,{"$f":"AVERAGE(BL554:BL560)","v":2.4432602755350845},2.1425015954512685,null,null,2.8016698817406396]
[{"$f":"'[1]Nominal weighted'!B558","v":1864},null,10.070354565303356,4.247250000000001,6.012033129951094,-5.905852335732219,4.525,-16.650558650987126,3.516996354799528,-32.911392405063275,null,8.25035718889681,2.0096547619047618,3.762396389649339,1.0541176466413573,{"$f":"AVERAGE(G555:G561)","v":3.438084750841976},-2.1460153891860445,3.777518332499008,null,null,-2.128354565303356,-0.9,-2.0440331299510945,9.94585233573222,0,21.795558650987125,1.2590036452004716,32.911392405063275,null,null,7.942,3.3472500000000007,{"v":3.968,"d":"3.97"},4.04,4.525,5.145,4.776,{"$nulls":3},{"$f":"AE558*'III. GDP shares, 1310-2018'!C560","v":0.8249011642829425},{"$f":"AF558*'III. GDP shares, 1310-2018'!D560","v":0.7705740648112542},{"$f":"AG558*'III. GDP shares, 1310-2018'!E560","v":0.0913477597780583},{"$f":"AH558*'III. GDP shares, 1310-2018'!F560","v":0.7105773235070225},{"$f":"AI558*'III. GDP shares, 1310-2018'!G560","v":0.8949151206111632},{"$f":"AJ558*'III. GDP shares, 1310-2018'!H560","v":1.1120628595405762},{"$f":"AK558*'III. GDP shares, 1310-2018'!I560","v":0.2536102477221979},{"$f":"AL558*'III. GDP shares, 1310-2018'!J560","v":0},null,null,{"$f":"U558*'III. GDP shares, 1310-2018'!C560","v":-0.22106297644493256},{"$f":"V558*'III. GDP shares, 1310-2018'!D560","v":-0.20718997933531366},{"$f":"W558*'III. GDP shares, 1310-2018'!E560","v":-0.04705590910614042},{"$f":"X558*'III. GDP shares, 1310-2018'!F560","v":1.74933097344571},{"$f":"Y558*'III. GDP shares, 1310-2018'!G560","v":0},{"$f":"Z558*'III. GDP shares, 1310-2018'!H560","v":4.710987614907889},{"$f":"AA558*'III. GDP shares, 1310-2018'!I560","v":0.06685431874841746},{"$f":"AB558*'III. GDP shares, 1310-2018'!J560","v":0},null,null,4.820464285714286,4.657988540253214,null,6.05186404221563,7.60492741771608,{"$f":"AVERAGE(BL555:BL561)","v":2.8132294131882047},2.1720565406796415,null,null,-2.3716395461089825]
[{"$f":"'[1]Nominal weighted'!B559","v":1865},null,10.120882010925891,2.4695000000000005,4.268121265176427,16.30509411057851,1.9574159461090868,-1.7769001484576883,9.498092014798848,13.650793650793657,null,8.21042778397939,2.6281071428571425,5.0126707294325525,1.7304972889458716,{"$f":"AVERAGE(G556:G562)","v":3.573207919151397},-1.3434891457089566,4.976550692651173,null,null,-2.172882010925891,0.9,-0.23612126517642734,-12.171094110578508,2.4175840538909132,7.3679001484576885,-4.174092014798848,-13.650793650793657,null,null,7.948,3.3695000000000004,{"v":4.032,"d":"4.03"},4.134,4.375,5.591,5.324,{"$nulls":3},{"$f":"AE559*'III. GDP shares, 1310-2018'!C561","v":0.8357276770879487},{"$f":"AF559*'III. GDP shares, 1310-2018'!D561","v":0.7898665229009749},{"$f":"AG559*'III. GDP shares, 1310-2018'!E561","v":0.09436392334957909},{"$f":"AH559*'III. GDP shares, 1310-2018'!F561","v":0.7208306189770715},{"$f":"AI559*'III. GDP shares, 1310-2018'!G561","v":0.8309094146336399},{"$f":"AJ559*'III. GDP shares, 1310-2018'!H561","v":1.2406134370153963},{"$f":"AK559*'III. GDP shares, 1310-2018'!I561","v":0.27070952176561813},{"$f":"AL559*'III. GDP shares, 1310-2018'!J561","v":0},null,null,{"$f":"U559*'III. GDP shares, 1310-2018'!C561","v":-0.22847730694228555},{"$f":"V559*'III. GDP shares, 1310-2018'!D561","v":0.21097488369517062},{"$f":"W559*'III. GDP shares, 1310-2018'!E561","v":-5.5261232560302655E-3},{"$f":"X559*'III. GDP shares, 1310-2018'!F561","v":-2.1222296326454995},{"$f":"Y559*'III. GDP shares, 1310-2018'!G561","v":0.45915276595339904},{"$f":"Z559*'III. GDP shares, 1310-2018'!H561","v":1.6348982161982368},{"$f":"AA559*'III. GDP shares, 1310-2018'!I561","v":-0.2122401301900604},{"$f":"AB559*'III. GDP shares, 1310-2018'!J561","v":0},null,null,4.967642857142857,4.783021115730229,null,-0.2634473271870691,-2.7149373562405916,{"$f":"AVERAGE(BL556:BL562)","v":2.248844279851101},1.6199380507618657,null,null,4.467576803711494]
[{"$f":"'[1]Nominal weighted'!B560","v":1866},null,9.122,-3.0729166666666665,-0.7702912032963827,-4.151209640660503,2.174124464374641,4.399794489680968,3.465981905799557,2.9411764705882426,null,8.623001694346177,2.972130952380953,5.2541202157246785,3.0900538035254708,{"$f":"AVERAGE(G557:G563)","v":3.848892931691826},0.2909422699421381,8.062493483461868,null,null,0,6.5,5.175291203296383,8.614209640660503,2.1458755356253594,0.9812055103190328,2.595018094200443,-2.9411764705882426,null,null,9.122,3.4270833333333335,{"v":4.405,"d":"4.41"},4.463,4.32,5.381,6.061,{"$nulls":3},{"$f":"AE560*'III. GDP shares, 1310-2018'!C562","v":0.9836002761547482},{"$f":"AF560*'III. GDP shares, 1310-2018'!D562","v":0.7971725231101929},{"$f":"AG560*'III. GDP shares, 1310-2018'!E562","v":0.10347750658659534},{"$f":"AH560*'III. GDP shares, 1310-2018'!F562","v":0.7662210963952668},{"$f":"AI560*'III. GDP shares, 1310-2018'!G562","v":0.8075808539476423},{"$f":"AJ560*'III. GDP shares, 1310-2018'!H562","v":1.2114358980867144},{"$f":"AK560*'III. GDP shares, 1310-2018'!I562","v":0.31709400937098653},{"$f":"AL560*'III. GDP shares, 1310-2018'!J562","v":0},null,null,{"$f":"U560*'III. GDP shares, 1310-2018'!C562","v":0},{"$f":"V560*'III. GDP shares, 1310-2018'!D562","v":1.5119624754430405},{"$f":"W560*'III. GDP shares, 1310-2018'!E562","v":0.12157235631706025},{"$f":"X560*'III. GDP shares, 1310-2018'!F562","v":1.4789130977919713},{"$f":"Y560*'III. GDP shares, 1310-2018'!G562","v":0.4011499994272412},{"$f":"Z560*'III. GDP shares, 1310-2018'!H562","v":0.2209008694668222},{"$f":"AA560*'III. GDP shares, 1310-2018'!I562","v":0.1357638495100272},{"$f":"AB560*'III. GDP shares, 1310-2018'!J562","v":0},null,null,5.31129761904762,4.986582163652146,null,3.8702626479561624,2.883802939189185,{"$f":"AVERAGE(BL557:BL563)","v":1.3846374332012619},1.5922526373335906,null,null,1.831109468028831]
[{"$f":"'[1]Nominal weighted'!B561","v":1867},null,6.928384902679016,-2.859333333333333,2.4030302677109128,-16.22068802754531,4.38,6.322671416834854,2.753994958034403,-3.787878787878806,null,8.115141026649747,2.4595833333333337,4.744558716821616,1.3781071883491716,{"$f":"AVERAGE(G558:G564)","v":3.883494280377339},2.7482910597251826,8.232389744399304,-4.293439907569409,null,3.332615097320983,6.1,2.215969732289087,20.689688027545312,0,-0.9716714168348543,2.9810050419655973,3.787878787878806,null,null,10.261,3.240666666666667,{"v":4.619,"d":"4.62"},4.469,4.38,5.351,5.735,{"$nulls":3},{"$f":"AE561*'III. GDP shares, 1310-2018'!C563","v":1.0282003973885891},{"$f":"AF561*'III. GDP shares, 1310-2018'!D563","v":0.7565500856263502},{"$f":"AG561*'III. GDP shares, 1310-2018'!E563","v":0.11092843918213757},{"$f":"AH561*'III. GDP shares, 1310-2018'!F563","v":0.7803934430025221},{"$f":"AI561*'III. GDP shares, 1310-2018'!G563","v":0.7809767321005768},{"$f":"AJ561*'III. GDP shares, 1310-2018'!H563","v":1.2654393442144969},{"$f":"AK561*'III. GDP shares, 1310-2018'!I563","v":0.30343374098393555},{"$f":"AL561*'III. GDP shares, 1310-2018'!J563","v":0},null,null,{"$f":"U561*'III. GDP shares, 1310-2018'!C563","v":0.3339436865226242},{"$f":"V561*'III. GDP shares, 1310-2018'!D563","v":1.4240759686239668},{"$f":"W561*'III. GDP shares, 1310-2018'!E563","v":0.05321802634286375},{"$f":"X561*'III. GDP shares, 1310-2018'!F563","v":3.6129104664274214},{"$f":"Y561*'III. GDP shares, 1310-2018'!G563","v":0},{"$f":"Z561*'III. GDP shares, 1310-2018'!H563","v":-0.2297871875371835},{"$f":"AA561*'III. GDP shares, 1310-2018'!I563","v":0.15772232114657278},{"$f":"AB561*'III. GDP shares, 1310-2018'!J563","v":0},null,null,5.43652380952381,5.025922182498609,null,5.352083281526266,4.766935658770616,{"$f":"AVERAGE(BL558:BL564)","v":1.2719697925511972},1.540628664977309,null,null,0.34136478396996006]
[{"$f":"'[1]Nominal weighted'!B562","v":1868},null,4.782242371585454,4.918416666666667,5.462581937931942,4.585,4.283,9.157725149792608,7.721468072550078,-6.934306569343068,null,7.2721843999287845,2.1171309523809527,3.8114599998123597,1.5396688599684896,{"$f":"AVERAGE(G559:G565)","v":3.3783915136259304},6.191416981595227,9.381195894867233,-0.7612309514832367,null,4.300757628414546,-1.7,-1.188581937931942,0,0,-3.9207251497926086,1.4035319274499223,6.934306569343068,null,null,9.083,3.218416666666667,{"v":4.274,"d":"4.27"},4.585,4.283,5.237,9.125,{"$nulls":3},{"$f":"AE562*'III. GDP shares, 1310-2018'!C564","v":0.911780345784004},{"$f":"AF562*'III. GDP shares, 1310-2018'!D564","v":0.744093829887369},{"$f":"AG562*'III. GDP shares, 1310-2018'!E564","v":0.09796507932067505},{"$f":"AH562*'III. GDP shares, 1310-2018'!F564","v":0.8138583146218107},{"$f":"AI562*'III. GDP shares, 1310-2018'!G564","v":0.8030261588322366},{"$f":"AJ562*'III. GDP shares, 1310-2018'!H564","v":1.229966769322921},{"$f":"AK562*'III. GDP shares, 1310-2018'!I564","v":0.4164643984653398},{"$f":"AL562*'III. GDP shares, 1310-2018'!J564","v":0},null,null,{"$f":"U562*'III. GDP shares, 1310-2018'!C564","v":0.43172369014301526},{"$f":"V562*'III. GDP shares, 1310-2018'!D564","v":-0.39303783251863816},{"$f":"W562*'III. GDP shares, 1310-2018'!E564","v":-0.02724368830805437},{"$f":"X562*'III. GDP shares, 1310-2018'!F564","v":0},{"$f":"Y562*'III. GDP shares, 1310-2018'!G564","v":0},{"$f":"Z562*'III. GDP shares, 1310-2018'!H564","v":-0.9208252140335192},{"$f":"AA562*'III. GDP shares, 1310-2018'!I564","v":0.06405710464573489},{"$f":"AB562*'III. GDP shares, 1310-2018'!J564","v":0},null,null,5.686488095238096,5.017154896234356,null,-0.8453259400714617,0.7286611296853732,{"$f":"AVERAGE(BL559:BL565)","v":0.8575729989128765},1.0648284484249377,null,null,4.7253491738998115]
[{"$f":"'[1]Nominal weighted'!B563","v":1869},null,9.009,8.244583333333333,10.578640827951862,13.727895602057192,6.218795087783005,8.135605210698547,27.134433207163266,-29.01023890784983,null,4.980546190880261,1.558857142857143,3.66736296617047,-0.3137202230714871,{"$f":"AVERAGE(G560:G566)","v":4.041334049878247},7.0453534435155385,10.147103011577856,2.875419137286215,null,0,-5,-6.073640827951862,-9.142895602057193,-2.1007950877830046,-3.061605210698547,-15.484433207163265,29.01023890784983,null,null,9.009,3.2445833333333334,{"v":4.505,"d":"4.51"},4.585,4.118,5.074,11.65,{"$nulls":3},{"$f":"AE563*'III. GDP shares, 1310-2018'!C565","v":0.8977602609839211},{"$f":"AF563*'III. GDP shares, 1310-2018'!D565","v":0.7413211150507348},{"$f":"AG563*'III. GDP shares, 1310-2018'!E565","v":0.10421861036234044},{"$f":"AH563*'III. GDP shares, 1310-2018'!F565","v":0.80380386002388},{"$f":"AI563*'III. GDP shares, 1310-2018'!G565","v":0.7782131271812236},{"$f":"AJ563*'III. GDP shares, 1310-2018'!H565","v":1.208890493801147},{"$f":"AK563*'III. GDP shares, 1310-2018'!I565","v":0.5381472224442297},{"$f":"AL563*'III. GDP shares, 1310-2018'!J565","v":0},null,null,{"$f":"U563*'III. GDP shares, 1310-2018'!C565","v":0},{"$f":"V563*'III. GDP shares, 1310-2018'!D565","v":-1.1423980198547345},{"$f":"W563*'III. GDP shares, 1310-2018'!E565","v":-0.14050752651034804},{"$f":"X563*'III. GDP shares, 1310-2018'!F565","v":-1.6028560036486212},{"$f":"Y563*'III. GDP shares, 1310-2018'!G565","v":-0.39700493317886476},{"$f":"Z563*'III. GDP shares, 1310-2018'!H565","v":-0.7294334716171722},{"$f":"AA563*'III. GDP shares, 1310-2018'!I565","v":-0.7152707915500522},{"$f":"AB563*'III. GDP shares, 1310-2018'!J565","v":0},null,null,6.026511904761905,5.072354689847477,null,-4.727470746359793,-1.4816413784755063,{"$f":"AVERAGE(BL560:BL566)","v":0.9667967435420646},1.1720930351132195,null,null,7.9161063013018005]
[{"$f":"'[1]Nominal weighted'!B564","v":1870},null,6.773123336054512,3.2695833333333333,5.257794792325458,1.3065106097465353,3.6461244643746404,9.649699950514115,3.53576169764945,25.99776719576721,null,3.8747455958512833,2.0202380952380956,4.279901446206808,-0.9997566036129008,{"$f":"AVERAGE(G561:G567)","v":4.463316269253299},7.503510358542284,11.760828359545384,0.42054579132966247,null,2.060876663945488,0,-0.5847947923254582,3.6164893902534647,2.1458755356253594,-4.210699950514115,6.1412383023505495,-17.19576719576721,null,null,8.834,3.2695833333333333,{"v":4.673,"d":"4.67"},4.923,5.792,5.439,9.677,8.802,null,8.802,{"$f":"AE564*'III. GDP shares, 1310-2018'!C566","v":0.840432564553216},{"$f":"AF564*'III. GDP shares, 1310-2018'!D566","v":0.7452390226039209},{"$f":"AG564*'III. GDP shares, 1310-2018'!E566","v":0.10581077866223262},{"$f":"AH564*'III. GDP shares, 1310-2018'!F566","v":0.8081341889663307},{"$f":"AI564*'III. GDP shares, 1310-2018'!G566","v":0.9501400969304145},{"$f":"AJ564*'III. GDP shares, 1310-2018'!H566","v":1.2173715595763661},{"$f":"AK564*'III. GDP shares, 1310-2018'!I566","v":0.4305707580511793},{"$f":"AL564*'III. GDP shares, 1310-2018'!J566","v":0.5085329979540953},null,null,{"$f":"U564*'III. GDP shares, 1310-2018'!C566","v":0.19606382837984862},{"$f":"V564*'III. GDP shares, 1310-2018'!D566","v":0},{"$f":"W564*'III. GDP shares, 1310-2018'!E566","v":-0.013241513446089311},{"$f":"X564*'III. GDP shares, 1310-2018'!F566","v":0.5936641723131878},{"$f":"Y564*'III. GDP shares, 1310-2018'!G566","v":0.3520169871235643},{"$f":"Z564*'III. GDP shares, 1310-2018'!H566","v":-0.9424501499660777},{"$f":"AA564*'III. GDP shares, 1310-2018'!I566","v":0.27324972938059455},{"$f":"AB564*'III. GDP shares, 1310-2018'!J566","v":-0.9934804640063835},null,null,6.426197916666667,5.606231967297756,null,-0.5341774102213552,-1.0033477558039903,{"$f":"AVERAGE(BL561:BL567)","v":1.0134973831798018},1.5495957407176657,null,null,5.395170354915189]
[{"$f":"'[1]Nominal weighted'!B565","v":1871},null,4.1696581782566176,1.850083333333334,-0.5196578891137031,-4.774920634396994,0.9892806327401384,7.451322802103181,11.558639408075017,-8.185929712460062,null,3.5374754545175597,3.3662142857142854,4.706036535287426,1.6829204834719629,{"$f":"AVERAGE(G562:G568)","v":4.528316269253298},7.3305572989944485,13.236188893343385,-5.888902424779986,null,3.031341821743382,1.4,4.905657889113703,8.952920634396994,4.411719367259861,-2.1973228021031823,-2.6036394080750163,16.293929712460063,null,null,7.201,3.250083333333334,{"v":4.386,"d":"4.39"},4.178,5.401,5.254,8.955,8.108,null,8.108,{"$f":"AE565*'III. GDP shares, 1310-2018'!C567","v":0.6752494054282265},{"$f":"AF565*'III. GDP shares, 1310-2018'!D567","v":0.7611188158413206},{"$f":"AG565*'III. GDP shares, 1310-2018'!E567","v":0.09672927530315886},{"$f":"AH565*'III. GDP shares, 1310-2018'!F567","v":0.6642739560639407},{"$f":"AI565*'III. GDP shares, 1310-2018'!G567","v":0.8586302543286198},{"$f":"AJ565*'III. GDP shares, 1310-2018'!H567","v":1.1988382212613125},{"$f":"AK565*'III. GDP shares, 1310-2018'!I567","v":0.41922378651194886},{"$f":"AL565*'III. GDP shares, 1310-2018'!J567","v":0.46239642978840273},null,null,{"$f":"U565*'III. GDP shares, 1310-2018'!C567","v":0.2842538206890621},{"$f":"V565*'III. GDP shares, 1310-2018'!D567","v":0.327858160204461},{"$f":"W565*'III. GDP shares, 1310-2018'!E567","v":0.10818986149092397},{"$f":"X565*'III. GDP shares, 1310-2018'!F567","v":1.4234542862942503},{"$f":"Y565*'III. GDP shares, 1310-2018'!G567","v":0.7013582155780101},{"$f":"Z565*'III. GDP shares, 1310-2018'!H567","v":-0.5013769622402554},{"$f":"AA565*'III. GDP shares, 1310-2018'!I567","v":-0.12188805933723479},{"$f":"AB565*'III. GDP shares, 1310-2018'!J567","v":0.9292371640681681},null,null,5.841635416666666,5.1364601445269304,null,3.1510864867473853,4.274325901849476,{"$f":"AVERAGE(BL562:BL568)","v":0.6520737326920074},1.8911937933818455,null,null,1.5521130021426868]
[{"$f":"'[1]Nominal weighted'!B566","v":1872},null,-5.920585452413777,-1.4384166666666673,3.2594420296832025,3.3313705292986713,6.598013699875305,4.200655084984496,14.859441831773228,39.107344272179816,null,5.869964977514877,3.3942738095238094,5.205787805785515,3.120542575176286,{"$f":"AVERAGE(G563:G569)","v":4.883712745096055},7.379752706570572,14.629604363668347,-3.9458586291595474,null,12.744585452413776,4.7,1.2455579703167976,0.8356294707013286,-1.0060136998753053,1.1233449150155037,-4.356441831773227,-30.999344272179812,null,null,6.824,3.261583333333333,{"v":4.505,"d":"4.51"},4.167,5.592,5.324,10.503,8.108,null,8.108,{"$f":"AE566*'III. GDP shares, 1310-2018'!C568","v":0.6051178097249572},{"$f":"AF566*'III. GDP shares, 1310-2018'!D568","v":0.7346946758539826},{"$f":"AG566*'III. GDP shares, 1310-2018'!E568","v":0.0973201127987402},{"$f":"AH566*'III. GDP shares, 1310-2018'!F568","v":0.6801352314592451},{"$f":"AI566*'III. GDP shares, 1310-2018'!G568","v":0.9324255920035666},{"$f":"AJ566*'III. GDP shares, 1310-2018'!H568","v":1.2136641354989162},{"$f":"AK566*'III. GDP shares, 1310-2018'!I568","v":0.5374677036099736},{"$f":"AL566*'III. GDP shares, 1310-2018'!J568","v":0.4489350859526318},null,null,{"$f":"U566*'III. GDP shares, 1310-2018'!C568","v":1.1301253861103717},{"$f":"V566*'III. GDP shares, 1310-2018'!D568","v":1.0587081866722357},{"$f":"W566*'III. GDP shares, 1310-2018'!E568","v":0.026907401147303143},{"$f":"X566*'III. GDP shares, 1310-2018'!F568","v":0.13639093915757491},{"$f":"Y566*'III. GDP shares, 1310-2018'!G568","v":-0.1677455149624338},{"$f":"Z566*'III. GDP shares, 1310-2018'!H568","v":0.2560787819589396},{"$f":"AA566*'III. GDP shares, 1310-2018'!I568","v":-0.22293123747820465},{"$f":"AB566*'III. GDP shares, 1310-2018'!J568","v":-1.7164150573885382},null,null,6.035572916666666,5.249760346902013,null,0.5011188852172481,-1.964085249422617,{"$f":"AVERAGE(BL563:BL569)","v":0.05095217664243482},1.0779902533470587,null,null,5.0726549725030186]
[{"$f":"'[1]Nominal weighted'!B567","v":1873},null,1.3813958347971518,0.15674999999999972,3.5174781569579827,-8.9534643044504,5.128,7.606892894868189,14.762059341572233,-14.242936951107627,null,4.764703618267277,2.7126547619047616,3.556023277206319,1.3561297483086245,{"$f":"AVERAGE(G564:G570)","v":4.127544451721012},7.445314331523044,13.798558028404642,5.588567699729154,null,6.0876041652028485,3.1,0.7925218430420169,12.9834643044504,0,-2.2228928948681883,2.3809406584277677,21.088936951107627,null,null,7.469,3.25675,4.31,4.03,5.128,5.384,17.143,6.846,null,6.846,{"$f":"AE567*'III. GDP shares, 1310-2018'!C569","v":0.6737212536532848},{"$f":"AF567*'III. GDP shares, 1310-2018'!D569","v":0.7349625742257722},{"$f":"AG567*'III. GDP shares, 1310-2018'!E569","v":0.09407974079452806},{"$f":"AH567*'III. GDP shares, 1310-2018'!F569","v":0.6718625818668807},{"$f":"AI567*'III. GDP shares, 1310-2018'!G569","v":0.7783994972987462},{"$f":"AJ567*'III. GDP shares, 1310-2018'!H569","v":1.261826507599575},{"$f":"AK567*'III. GDP shares, 1310-2018'!I569","v":0.9346464533175685},{"$f":"AL567*'III. GDP shares, 1310-2018'!J569","v":0.37584510347147887},null,null,{"$f":"U567*'III. GDP shares, 1310-2018'!C569","v":0.549116121291394},{"$f":"V567*'III. GDP shares, 1310-2018'!D569","v":0.6995882336992074},{"$f":"W567*'III. GDP shares, 1310-2018'!E569","v":0.017299361848583435},{"$f":"X567*'III. GDP shares, 1310-2018'!F569","v":2.1645418980557145},{"$f":"Y567*'III. GDP shares, 1310-2018'!G569","v":0},{"$f":"Z567*'III. GDP shares, 1310-2018'!H569","v":-0.5209705011700287},{"$f":"AA567*'III. GDP shares, 1310-2018'!I569","v":0.1298102865285603},{"$f":"AB567*'III. GDP shares, 1310-2018'!J569","v":1.1577817251668916},null,null,6.69584375,5.5253437122278335,null,4.197167125420322,5.526321878420309,{"$f":"AVERAGE(BL564:BL570)","v":0.5536494843465207},0.9364127127478487,null,null,1.2928022462809463]
[{"$f":"'[1]Nominal weighted'!B568","v":1874},null,4.567493913342957,6.562499999999999,5.385975891275238,2.5580515820487375,4.835,5.112,13.081518694620431,-47.954016300646344,null,4.235606394035509,2.7973214285714283,3.0060604999795144,1.4743277818039968,{"$f":"AVERAGE(G565:G571)","v":4.199812385381779},7.530802042028261,16.550763612472743,1.3289858407455062,null,2.458506086657043,-3.3,-1.4489758912752382,1.4669484179512629,0,0,3.134481305379569,54.954016300646344,null,null,7.026,3.2624999999999993,{"v":3.937,"d":"3.94"},4.025,4.835,5.112,16.216,7,null,7,{"$f":"AE568*'III. GDP shares, 1310-2018'!C570","v":0.6137563734815055},{"$f":"AF568*'III. GDP shares, 1310-2018'!D570","v":0.7272694195090088},{"$f":"AG568*'III. GDP shares, 1310-2018'!E570","v":0.0814372157030535},{"$f":"AH568*'III. GDP shares, 1310-2018'!F570","v":0.7003819168798399},{"$f":"AI568*'III. GDP shares, 1310-2018'!G570","v":0.8036811268148883},{"$f":"AJ568*'III. GDP shares, 1310-2018'!H570","v":1.1568691732772278},{"$f":"AK568*'III. GDP shares, 1310-2018'!I570","v":0.787190241995913},{"$f":"AL568*'III. GDP shares, 1310-2018'!J570","v":0.37774753171083314},null,null,{"$f":"U568*'III. GDP shares, 1310-2018'!C570","v":0.2147628494063243},{"$f":"V568*'III. GDP shares, 1310-2018'!D570","v":-0.735628838124055},{"$f":"W568*'III. GDP shares, 1310-2018'!E570","v":-0.029972202744807153},{"$f":"X568*'III. GDP shares, 1310-2018'!F570","v":0.25526065712510654},{"$f":"Y568*'III. GDP shares, 1310-2018'!G570","v":0},{"$f":"Z568*'III. GDP shares, 1310-2018'!H570","v":0},{"$f":"AA568*'III. GDP shares, 1310-2018'!I570","v":0.15216040313970203},{"$f":"AB568*'III. GDP shares, 1310-2018'!J570","v":2.965534859309435},null,null,6.4266875,5.24833299937227,null,2.8221177281117056,7.158122027419872,{"$f":"AVERAGE(BL565:BL571)","v":0.5734713851195374},1.2994908947298012,null,null,0.9633170136275004]
[{"$f":"'[1]Nominal weighted'!B569","v":1875},null,21.109669032566675,5.1148333333333325,8.960840831418562,14.648354641930261,6.770775330899296,9.502093002825477,17.475376364824804,6.667,null,4.907022557148257,3.300333333333333,4.01184536047967,3.7753692831775107,{"$f":"AVERAGE(G566:G572)","v":4.907919066383274},8.000435464121631,18.270229038302237,2.1459935107491934,null,-14.399669032566676,-1.9,-4.992840831418562,-10.60235464193026,-2.2357753308992963,-4.5990930028254775,-0.980376364824803,0,null,null,6.71,3.2148333333333325,{"v":3.968,"d":"3.97"},4.046,4.535,4.903,16.495,6.667,null,6.667,{"$f":"AE569*'III. GDP shares, 1310-2018'!C571","v":0.5835010108530205},{"$f":"AF569*'III. GDP shares, 1310-2018'!D571","v":0.7105370415078734},{"$f":"AG569*'III. GDP shares, 1310-2018'!E571","v":0.08483924212926842},{"$f":"AH569*'III. GDP shares, 1310-2018'!F571","v":0.6851151144669902},{"$f":"AI569*'III. GDP shares, 1310-2018'!G571","v":0.7539285082061599},{"$f":"AJ569*'III. GDP shares, 1310-2018'!H571","v":1.1299246434226036},{"$f":"AK569*'III. GDP shares, 1310-2018'!I571","v":0.7976299575281366},{"$f":"AL569*'III. GDP shares, 1310-2018'!J571","v":0.375026601156378},null,null,{"$f":"U569*'III. GDP shares, 1310-2018'!C571","v":-1.252193954761787},{"$f":"V569*'III. GDP shares, 1310-2018'!D571","v":-0.41993479564465547},{"$f":"W569*'III. GDP shares, 1310-2018'!E571","v":-0.1067512177947624},{"$f":"X569*'III. GDP shares, 1310-2018'!F571","v":-1.7953122625125246},{"$f":"Y569*'III. GDP shares, 1310-2018'!G571","v":-0.37169013448931415},{"$f":"Z569*'III. GDP shares, 1310-2018'!H571","v":-1.05988752218743},{"$f":"AA569*'III. GDP shares, 1310-2018'!I571","v":-0.047406945027996146},{"$f":"AB569*'III. GDP shares, 1310-2018'!J571","v":0},null,null,6.317354166666666,5.120502119270431,null,-5.05317683241847,-4.963763650558134,{"$f":"AVERAGE(BL566:BL572)","v":-0.39198126206286193},0.39580892924049305,null,null,9.043207114536372]
[{"$f":"'[1]Nominal weighted'!B570","v":1876},null,1.2721704852668028,3.4732499999999993,-0.9697108721025058,1.377005813983561,0.9256170341577068,8.594536585365848,21.317108860317312,37.730745394371084,null,6.823016985206574,4.575845238095239,4.390386179552659,3.33164716266343,{"$f":"AVERAGE(G567:G573)","v":4.491202823543945},6.916573764610386,18.165864853316034,-6.932472412820098,null,5.607829514733197,-0.3,4.969710872102506,2.290994186016439,3.326382965842293,-3.6585365853658485,-0.8911088603173116,-31.12674539437108,null,null,6.88,3.1732499999999995,{"v":4,"d":"4.00"},3.668,4.252,4.936,20.426,6.604,null,6.604,{"$f":"AE570*'III. GDP shares, 1310-2018'!C572","v":0.5924991740659197},{"$f":"AF570*'III. GDP shares, 1310-2018'!D572","v":0.716572879191914},{"$f":"AG570*'III. GDP shares, 1310-2018'!E572","v":0.0878350946192094},{"$f":"AH570*'III. GDP shares, 1310-2018'!F572","v":0.62488163273145},{"$f":"AI570*'III. GDP shares, 1310-2018'!G572","v":0.6566294686123179},{"$f":"AJ570*'III. GDP shares, 1310-2018'!H572","v":1.1644766302399008},{"$f":"AK570*'III. GDP shares, 1310-2018'!I572","v":1.018082701343358},{"$f":"AL570*'III. GDP shares, 1310-2018'!J572","v":0.3669131346523318},null,null,{"$f":"U570*'III. GDP shares, 1310-2018'!C572","v":0.4829410400845794},{"$f":"V570*'III. GDP shares, 1310-2018'!D572","v":-0.06774501339559576},{"$f":"W570*'III. GDP shares, 1310-2018'!E572","v":0.10912875617030932},{"$f":"X570*'III. GDP shares, 1310-2018'!F572","v":0.39029448951368917},{"$f":"Y570*'III. GDP shares, 1310-2018'!G572","v":0.5136879302121569},{"$f":"Z570*'III. GDP shares, 1310-2018'!H572","v":-0.8631037995413728},{"$f":"AA570*'III. GDP shares, 1310-2018'!I572","v":-0.04441508448559922},{"$f":"AB570*'III. GDP shares, 1310-2018'!J572","v":-1.7293779109893586},null,null,6.742406249999999,5.227890715456402,null,-1.2085895924311916,-2.4726841626699754,{"$f":"AVERAGE(BL567:BL573)","v":0.019824548690198136},1.3642047233480266,null,null,5.652162415300083]
[{"$f":"'[1]Nominal weighted'!B571","v":1877},null,3.069442766432134,3.8622500000000004,1.4080553517378247,2.1338968442141426,4.152,10.248113924050637,22.801200786126163,-3.819305817118325,null,6.944579671889713,4.561833333333333,4.54389886786327,4.545383307501335,{"$f":"AVERAGE(G568:G574)","v":4.116821310183638},5.759438486192923,18.631552478428812,-8.652227205921642,null,3.539557233567866,-0.7,2.544944648262175,1.5811031557858573,0,-6.329113924050636,1.198799213873836,10.470305817118325,null,null,6.609,3.1622500000000007,{"v":3.953,"d":"3.95"},3.715,4.152,3.919,24,6.651,null,6.651,{"$f":"AE571*'III. GDP shares, 1310-2018'!C573","v":0.5552123659667472},{"$f":"AF571*'III. GDP shares, 1310-2018'!D573","v":0.7038032190357001},{"$f":"AG571*'III. GDP shares, 1310-2018'!E573","v":0.08693578301190312},{"$f":"AH571*'III. GDP shares, 1310-2018'!F573","v":0.6142683635766432},{"$f":"AI571*'III. GDP shares, 1310-2018'!G573","v":0.6594486698358818},{"$f":"AJ571*'III. GDP shares, 1310-2018'!H573","v":0.9315574398556467},{"$f":"AK571*'III. GDP shares, 1310-2018'!I573","v":1.2866108801718654},{"$f":"AL571*'III. GDP shares, 1310-2018'!J573","v":0.37211362337988274},null,null,{"$f":"U571*'III. GDP shares, 1310-2018'!C573","v":0.2973529953281781},{"$f":"V571*'III. GDP shares, 1310-2018'!D573","v":-0.1557948464937908},{"$f":"W571*'III. GDP shares, 1310-2018'!E573","v":0.05596932854000116},{"$f":"X571*'III. GDP shares, 1310-2018'!F573","v":0.26143247594897573},{"$f":"Y571*'III. GDP shares, 1310-2018'!G573","v":0},{"$f":"Z571*'III. GDP shares, 1310-2018'!H573","v":-1.5044483704116705},{"$f":"AA571*'III. GDP shares, 1310-2018'!I573","v":0.06426617132131485},{"$f":"AB571*'III. GDP shares, 1310-2018'!J573","v":0.585798140956753},null,null,7.020156249999999,5.20995034483427,null,-0.3954241048102385,1.5381995180696777,{"$f":"AVERAGE(BL568:BL574)","v":0.0580796815666781},1.3631405640541725,null,null,4.745776384115018]
[{"$f":"'[1]Nominal weighted'!B572","v":1878},null,8.869571320045848,5.371166666666667,6.520836134387393,11.332369875217601,5.94602739975061,10.73875675675676,23.594897388881492,-2.4668760224342465,null,7.964524437443673,4.199404761904762,4.432502878864566,4.450864488043371,{"$f":"AVERAGE(G569:G575)","v":4.082426622352417},4.77075202979218,17.361468951175574,-0.9007963058293086,null,-2.5635713200458476,-2.2,-2.5208361343873933,-7.652369875217602,-2.0120273997506106,-6.75675675675676,-1.7768973888814918,9.070876022434247,null,null,6.306,3.1711666666666667,{"v":4,"d":"4.00"},3.68,3.934,3.982,21.818,6.604,null,6.604,{"$f":"AE572*'III. GDP shares, 1310-2018'!C574","v":0.528832582606223},{"$f":"AF572*'III. GDP shares, 1310-2018'!D574","v":0.6970106556943222},{"$f":"AG572*'III. GDP shares, 1310-2018'!E574","v":0.08732937466943251},{"$f":"AH572*'III. GDP shares, 1310-2018'!F574","v":0.6268420795164833},{"$f":"AI572*'III. GDP shares, 1310-2018'!G574","v":0.6070782547780225},{"$f":"AJ572*'III. GDP shares, 1310-2018'!H574","v":0.9700670149763138},{"$f":"AK572*'III. GDP shares, 1310-2018'!I574","v":1.1207319424742685},{"$f":"AL572*'III. GDP shares, 1310-2018'!J574","v":0.3624007229003657},null,null,{"$f":"U572*'III. GDP shares, 1310-2018'!C574","v":-0.21498573451872657},{"$f":"V572*'III. GDP shares, 1310-2018'!D574","v":-0.4835518292513299},{"$f":"W572*'III. GDP shares, 1310-2018'!E574","v":-0.05503576081504015},{"$f":"X572*'III. GDP shares, 1310-2018'!F574","v":-1.303485718970297},{"$f":"Y572*'III. GDP shares, 1310-2018'!G574","v":-0.31048756543115485},{"$f":"Z572*'III. GDP shares, 1310-2018'!H574","v":-1.646033866888013},{"$f":"AA572*'III. GDP shares, 1310-2018'!I574","v":-0.09127443680532633},{"$f":"AB572*'III. GDP shares, 1310-2018'!J574","v":0.4977728691504792},null,null,6.686895833333334,5.000292627615432,null,-3.6070820435294095,-2.051447856575682,{"$f":"AVERAGE(BL569:BL575)","v":-0.18006639128335336},0.4042463979839768,null,null,7.4268121861991885]
[{"$f":"'[1]Nominal weighted'!B573","v":1879},null,7.491375543994451,7.490166666666667,5.909227763194123,0.22531568570010618,3.681,-3.386376811594206,14.12889253686981,-24.441917192805235,null,6.301927937899988,3.745892857142857,4.050066878527229,3.4048149822575695,{"$f":"AVERAGE(G570:G576)","v":3.6521730036525173},4.240329572598418,15.715807589605362,1.2494492385971323,null,-1.756375543994451,-4.4,-2.092227763194122,3.370684314299894,0,7.246376811594206,5.22610746313019,30.922917192805233,null,null,5.735,3.0901666666666667,{"v":3.817,"d":"3.82"},3.596,3.681,3.86,19.355,6.481,null,6.481,{"$f":"AE573*'III. GDP shares, 1310-2018'!C575","v":0.4788084783220543},{"$f":"AF573*'III. GDP shares, 1310-2018'!D575","v":0.6658389708355799},{"$f":"AG573*'III. GDP shares, 1310-2018'!E575","v":0.07919531107138213},{"$f":"AH573*'III. GDP shares, 1310-2018'!F575","v":0.5884324176607784},{"$f":"AI573*'III. GDP shares, 1310-2018'!G575","v":0.5241542805413972},{"$f":"AJ573*'III. GDP shares, 1310-2018'!H575","v":1.0394304459053036},{"$f":"AK573*'III. GDP shares, 1310-2018'!I575","v":0.9244211545270355},{"$f":"AL573*'III. GDP shares, 1310-2018'!J575","v":0.3708376703003333},null,null,{"$f":"U573*'III. GDP shares, 1310-2018'!C575","v":-0.14663775092973905},{"$f":"V573*'III. GDP shares, 1310-2018'!D575","v":-0.9480690809589186},{"$f":"W573*'III. GDP shares, 1310-2018'!E575","v":-0.04340964855602319},{"$f":"X573*'III. GDP shares, 1310-2018'!F575","v":0.5515628254267935},{"$f":"Y573*'III. GDP shares, 1310-2018'!G575","v":0},{"$f":"Z573*'III. GDP shares, 1310-2018'!H575","v":1.9513224560811446},{"$f":"AA573*'III. GDP shares, 1310-2018'!I575","v":0.24960600851196937},{"$f":"AB573*'III. GDP shares, 1310-2018'!J575","v":1.7693847509134417},null,null,6.201895833333334,4.671118729163864,null,3.3837595604886683,4.814685309330119,{"$f":"AVERAGE(BL570:BL576)","v":0.256571119715932},0.7186609924648663,null,null,-0.32654888311930197]
[{"$f":"'[1]Nominal weighted'!B574","v":1880},null,2.2323346415791208,0.05866666666666598,4.592066975132257,-0.4573112905850625,2.5073294064778464,-0.49305405405406066,18.021872717361685,-26.281220502818435,null,7.214170405783923,3.7284761904761905,5.151402997792467,3.6995284374027757,{"$f":"AVERAGE(G571:G577)","v":3.795750400623658},3.8347737132061894,14.101730891272823,0.6853715066124201,null,3.572665358420879,3,-0.7160669751322567,3.9403112905850626,1.0266705935221534,4.054054054054061,-3.3428727173616855,32.616220502818436,null,null,5.805,3.058666666666666,{"v":3.876,"d":"3.88"},3.483,3.534,3.561,14.679,6.335,null,6.335,{"$f":"AE574*'III. GDP shares, 1310-2018'!C576","v":0.4763319948922312},{"$f":"AF574*'III. GDP shares, 1310-2018'!D576","v":0.6471847017315913},{"$f":"AG574*'III. GDP shares, 1310-2018'!E576","v":0.08387535953724232},{"$f":"AH574*'III. GDP shares, 1310-2018'!F576","v":0.5302606317874389},{"$f":"AI574*'III. GDP shares, 1310-2018'!G576","v":0.5142125825833266},{"$f":"AJ574*'III. GDP shares, 1310-2018'!H576","v":1.0054388687127631},{"$f":"AK574*'III. GDP shares, 1310-2018'!I576","v":0.7158898498935038},{"$f":"AL574*'III. GDP shares, 1310-2018'!J576","v":0.35381284294574267},null,null,{"$f":"U574*'III. GDP shares, 1310-2018'!C576","v":0.2931567299326418},{"$f":"V574*'III. GDP shares, 1310-2018'!D576","v":0.6347713944621101},{"$f":"W574*'III. GDP shares, 1310-2018'!E576","v":-0.015495452784304331},{"$f":"X574*'III. GDP shares, 1310-2018'!F576","v":0.5998828465072679},{"$f":"Y574*'III. GDP shares, 1310-2018'!G576","v":0.14938509829014807},{"$f":"Z574*'III. GDP shares, 1310-2018'!H576","v":1.1446513681012371},{"$f":"AA574*'III. GDP shares, 1310-2018'!I576","v":-0.16303076829791852},{"$f":"AB574*'III. GDP shares, 1310-2018'!J576","v":1.8216318393445003},null,null,5.541458333333333,4.32700683208384,null,4.464953055555682,5.518872763363332,{"$f":"AVERAGE(BL571:BL577)","v":0.10231429529093765},0.4304446701989325,null,null,-0.15035953074132324]
[{"$f":"'[1]Nominal weighted'!B575","v":1881},null,11.707107272220686,4.025500000000001,4.606203968284312,1.8964198458429846,4.594237185181457,-1.8088051948051875,4.190934003847741,6.306,null,7.792305345980721,3.953011904761905,6.0419850366651024,4.874562635898463,{"$f":"AVERAGE(G572:G578)","v":3.7471789720522297},3.3919151377852272,11.7323096382662,5.163306473353308,null,-6.035107272220685,-1.1,-0.8752039682843126,1.5685801541570152,-1.0162371851814578,5.194805194805188,5.83006599615226,0,null,null,5.672,2.925500000000001,{"v":3.731,"d":"3.73"},3.465,3.578,3.386,10.021,6.306,null,6.306,{"$f":"AE575*'III. GDP shares, 1310-2018'!C577","v":0.4249978383473086},{"$f":"AF575*'III. GDP shares, 1310-2018'!D577","v":0.6276132289653115},{"$f":"AG575*'III. GDP shares, 1310-2018'!E577","v":0.08051508081204238},{"$f":"AH575*'III. GDP shares, 1310-2018'!F577","v":0.5292801271036892},{"$f":"AI575*'III. GDP shares, 1310-2018'!G577","v":0.5293544093254532},{"$f":"AJ575*'III. GDP shares, 1310-2018'!H577","v":0.9694707054712057},{"$f":"AK575*'III. GDP shares, 1310-2018'!I577","v":0.49082980189590086},{"$f":"AL575*'III. GDP shares, 1310-2018'!J577","v":0.33399094960264275},null,null,{"$f":"U575*'III. GDP shares, 1310-2018'!C577","v":-0.4522051383793923},{"$f":"V575*'III. GDP shares, 1310-2018'!D577","v":-0.23598514847439497},{"$f":"W575*'III. GDP shares, 1310-2018'!E577","v":-0.018886925283685768},{"$f":"X575*'III. GDP shares, 1310-2018'!F577","v":0.2396012419522509},{"$f":"Y575*'III. GDP shares, 1310-2018'!G577","v":-0.15034925514150133},{"$f":"Z575*'III. GDP shares, 1310-2018'!H577","v":1.4873631001161458},{"$f":"AA575*'III. GDP shares, 1310-2018'!I577","v":0.2855573433720628},{"$f":"AB575*'III. GDP shares, 1310-2018'!J577","v":0},null,null,4.8855625,3.986052141523554,null,1.1550952181614853,0.4458628649285009,{"$f":"AVERAGE(BL572:BL578)","v":-0.42602770988515004},-0.504588262143013,null,null,1.9673585459223626]
[{"$f":"'[1]Nominal weighted'!B576","v":1882},null,9.471493535760874,1.9402500000000003,6.283788829057197,7.326008101429656,3.759,5.789135802469133,5.955746833833323,21.718718810985084,null,6.992671816312969,4.023309523809524,6.283366024865808,3.734081225153091,{"$f":"AVERAGE(G573:G579)","v":3.720178972052229},2.5117143655844543,9.469513222487118,2.4128331609281153,null,-3.6694935357608744,1,-2.5527888290571967,-3.8610081014296562,0,-2.4691358024691326,4.855253166166677,-15.405718810985086,null,null,5.802,2.9402500000000003,{"v":3.731,"d":"3.73"},3.465,3.759,3.32,10.811,6.313,null,6.313,{"$f":"AE576*'III. GDP shares, 1310-2018'!C578","v":0.45330295809636145},{"$f":"AF576*'III. GDP shares, 1310-2018'!D578","v":0.6221804376580071},{"$f":"AG576*'III. GDP shares, 1310-2018'!E578","v":0.079254497359699},{"$f":"AH576*'III. GDP shares, 1310-2018'!F578","v":0.5155782212284652},{"$f":"AI576*'III. GDP shares, 1310-2018'!G578","v":0.5582729518772838},{"$f":"AJ576*'III. GDP shares, 1310-2018'!H578","v":0.9695443649156449},{"$f":"AK576*'III. GDP shares, 1310-2018'!I578","v":0.5142531998245913},{"$f":"AL576*'III. GDP shares, 1310-2018'!J578","v":0.3289685264860912},null,null,{"$f":"U576*'III. GDP shares, 1310-2018'!C578","v":-0.28669291183658757},{"$f":"V576*'III. GDP shares, 1310-2018'!D578","v":0.2116080053253999},{"$f":"W576*'III. GDP shares, 1310-2018'!E578","v":-0.054226747658103105},{"$f":"X576*'III. GDP shares, 1310-2018'!F578","v":-0.5745026519722354},{"$f":"Y576*'III. GDP shares, 1310-2018'!G578","v":0},{"$f":"Z576*'III. GDP shares, 1310-2018'!H578","v":-0.7210652721371736},{"$f":"AA576*'III. GDP shares, 1310-2018'!I578","v":0.2309526849190354},{"$f":"AB576*'III. GDP shares, 1310-2018'!J578","v":-0.8027873620638082},null,null,5.01765625,4.0413551574461435,null,-1.9967142554234727,-2.7628614891919083,{"$f":"AVERAGE(BL573:BL579)","v":0.1186631854235466},0.1200622944341699,null,null,5.627496980537009]
[{"$f":"'[1]Nominal weighted'!B577","v":1883},null,7.657867760454343,3.3513333333333333,6.739641962754165,3.44,1.9306588129556932,5.75564556962025,10.018571971989541,33.782201270478105,null,6.635332452885192,3.586261904761905,6.141532051815929,4.1736075557673615,{"$f":"AVERAGE(G574:G580)","v":3.7150361149093727},3.439053910097912,8.86433905223103,8.659665032935326,null,-1.903867760454343,-0.5,-2.922641962754165,0,2.053341187044307,-2.53164556962025,-2.93857197198954,-27.1782012704781,null,null,5.754,2.8513333333333333,{"v":3.817,"d":"3.82"},3.44,3.984,3.224,7.08,6.604,null,6.604,{"$f":"AE577*'III. GDP shares, 1310-2018'!C579","v":0.4395672027399886},{"$f":"AF577*'III. GDP shares, 1310-2018'!D579","v":0.5958163737462332},{"$f":"AG577*'III. GDP shares, 1310-2018'!E579","v":0.0853211158509372},{"$f":"AH577*'III. GDP shares, 1310-2018'!F579","v":0.5296770503132717},{"$f":"AI577*'III. GDP shares, 1310-2018'!G579","v":0.5820846872565367},{"$f":"AJ577*'III. GDP shares, 1310-2018'!H579","v":0.945796224374943},{"$f":"AK577*'III. GDP shares, 1310-2018'!I579","v":0.3376857848065774},{"$f":"AL577*'III. GDP shares, 1310-2018'!J579","v":0.337826335134185},null,null,{"$f":"U577*'III. GDP shares, 1310-2018'!C579","v":-0.14544279211848493},{"$f":"V577*'III. GDP shares, 1310-2018'!D579","v":-0.10448030869994737},{"$f":"W577*'III. GDP shares, 1310-2018'!E579","v":-0.06532959745741644},{"$f":"X577*'III. GDP shares, 1310-2018'!F579","v":0},{"$f":"Y577*'III. GDP shares, 1310-2018'!G579","v":0.3000046342097518},{"$f":"Z577*'III. GDP shares, 1310-2018'!H579","v":-0.7426863589337419},{"$f":"AA577*'III. GDP shares, 1310-2018'!I579","v":-0.14015734217117226},{"$f":"AB577*'III. GDP shares, 1310-2018'!J579","v":-1.3902955982351404},null,null,4.594291666666667,3.853774774222673,null,-2.2883873634061516,-4.490198418531511,{"$f":"AVERAGE(BL574:BL580)","v":-0.5445746637729509},-0.9285529141874077,null,null,5.4418654551826435]
[{"$f":"'[1]Nominal weighted'!B578","v":1884},null,7.11638734780972,5.434,7.642129623846262,10.359136233683953,3.812,7.148103896103902,6.215252015079798,27.526238950067885,null,7.194740886074582,4.04197619047619,6.027508656946111,4.603457970637051,{"$f":"AVERAGE(G575:G581)","v":4.060997454732067},3.571672199620313,7.428626207756571,14.982588699281404,null,-1.9423873478097198,-2.7,-3.911129623846263,-6.961136233683953,0,-3.8961038961039023,0.4587479849202017,-21.104238950067884,null,null,5.174,2.734,{"v":3.731,"d":"3.73"},3.398,3.812,3.252,6.674,6.422,null,6.422,{"$f":"AE578*'III. GDP shares, 1310-2018'!C580","v":0.3944061572915278},{"$f":"AF578*'III. GDP shares, 1310-2018'!D580","v":0.5669914479487688},{"$f":"AG578*'III. GDP shares, 1310-2018'!E580","v":0.08411548324684243},{"$f":"AH578*'III. GDP shares, 1310-2018'!F580","v":0.5312909940656029},{"$f":"AI578*'III. GDP shares, 1310-2018'!G580","v":0.5456160173448803},{"$f":"AJ578*'III. GDP shares, 1310-2018'!H580","v":0.9622147682328787},{"$f":"AK578*'III. GDP shares, 1310-2018'!I580","v":0.316239622218332},{"$f":"AL578*'III. GDP shares, 1310-2018'!J580","v":0.32808817422579356},null,null,{"$f":"U578*'III. GDP shares, 1310-2018'!C580","v":-0.14806523575982097},{"$f":"V578*'III. GDP shares, 1310-2018'!D580","v":-0.5599403472793254},{"$f":"W578*'III. GDP shares, 1310-2018'!E580","v":-0.08817650987694169},{"$f":"X578*'III. GDP shares, 1310-2018'!F580","v":-1.0884017037728175},{"$f":"Y578*'III. GDP shares, 1310-2018'!G580","v":0},{"$f":"Z578*'III. GDP shares, 1310-2018'!H580","v":-1.1527948054738106},{"$f":"AA578*'III. GDP shares, 1310-2018'!I580","v":0.02173723246098077},{"$f":"AB578*'III. GDP shares, 1310-2018'!J580","v":-1.0781767713411166},null,null,4.3996249999999995,3.7289626645746266,null,-4.093818141042853,-5.00703100832394,{"$f":"AVERAGE(BL575:BL581)","v":-1.205051986030437},-1.958056152238155,null,null,6.695849010389384]
[{"$f":"'[1]Nominal weighted'!B579","v":1885},null,3.2721366123715914,5.863250000000001,8.210503051792337,3.349,5.75702739975061,4.57735135135135,7.755322478427912,-21.7201892094106,null,5.989603798939911,3.744535714285714,6.216218670949677,4.673095484711318,{"$f":"AVERAGE(G576:G582)","v":3.7443310240778165},4.27607294173534,7.377108996606801,15.67984804753525,null,1.980863387628409,-3,-4.639503051792336,0,-2.0120273997506106,-1.3513513513513495,-0.36532247842791277,27.9561892094106,null,null,5.253,2.8632500000000003,{"v":3.571,"d":"3.57"},3.349,3.745,3.226,7.39,6.236,null,6.236,{"$f":"AE579*'III. GDP shares, 1310-2018'!C581","v":0.4066432551888233},{"$f":"AF579*'III. GDP shares, 1310-2018'!D581","v":0.5876858910479644},{"$f":"AG579*'III. GDP shares, 1310-2018'!E581","v":0.08187949333218349},{"$f":"AH579*'III. GDP shares, 1310-2018'!F581","v":0.533630150495113},{"$f":"AI579*'III. GDP shares, 1310-2018'!G581","v":0.5237959252336761},{"$f":"AJ579*'III. GDP shares, 1310-2018'!H581","v":0.9568534887303541},{"$f":"AK579*'III. GDP shares, 1310-2018'!I581","v":0.33910289291241585},{"$f":"AL579*'III. GDP shares, 1310-2018'!J581","v":0.32869316082107436},null,null,{"$f":"U579*'III. GDP shares, 1310-2018'!C581","v":0.15334184961537714},{"$f":"V579*'III. GDP shares, 1310-2018'!D581","v":-0.615754011400993},{"$f":"W579*'III. GDP shares, 1310-2018'!E581","v":-0.10637921007949468},{"$f":"X579*'III. GDP shares, 1310-2018'!F581","v":0},{"$f":"Y579*'III. GDP shares, 1310-2018'!G581","v":-0.28141301827713716},{"$f":"Z579*'III. GDP shares, 1310-2018'!H581","v":-0.40081997986392354},{"$f":"AA579*'III. GDP shares, 1310-2018'!I581","v":-0.016763451864795515},{"$f":"AB579*'III. GDP shares, 1310-2018'!J581","v":1.4735420455024344},null,null,4.45415625,3.7582842577616047,null,0.20575422363146778,2.3211060394646,{"$f":"AVERAGE(BL576:BL582)","v":-1.3194378954005441},-2.0434098705695143,null,null,2.3490901316811796]
[{"$f":"'[1]Nominal weighted'!B580","v":1886},null,4.99,4.430833333333334,4.9163899518449785,3.302,3.645,3.105,9.8926733450772,19.285905911245237,null,5.256837983516394,3.645285714285714,5.436626604163936,2.904373567557408,{"$f":"AVERAGE(G577:G583)","v":3.8714822791116315},4.088958303287368,7.2100219917210415,9.510835545835869,null,0,-1.6,-1.5833899518449785,0,0,0,-3.8496733450772003,-13.171905911245238,null,null,4.99,2.830833333333334,{"v":3.333,"d":"3.33"},3.302,3.645,3.105,6.043,6.114,null,6.114,{"$f":"AE580*'III. GDP shares, 1310-2018'!C582","v":0.39468291155285},{"$f":"AF580*'III. GDP shares, 1310-2018'!D582","v":0.577380537238228},{"$f":"AG580*'III. GDP shares, 1310-2018'!E582","v":0.07589094389705822},{"$f":"AH580*'III. GDP shares, 1310-2018'!F582","v":0.5184173448291064},{"$f":"AI580*'III. GDP shares, 1310-2018'!G582","v":0.5069881177067846},{"$f":"AJ580*'III. GDP shares, 1310-2018'!H582","v":0.9281717399332137},{"$f":"AK580*'III. GDP shares, 1310-2018'!I582","v":0.26547233756000893},{"$f":"AL580*'III. GDP shares, 1310-2018'!J582","v":0.3376351474554993},null,null,{"$f":"U580*'III. GDP shares, 1310-2018'!C582","v":0},{"$f":"V580*'III. GDP shares, 1310-2018'!D582","v":-0.326338131144362},{"$f":"W580*'III. GDP shares, 1310-2018'!E582","v":-0.0360530927100609},{"$f":"X580*'III. GDP shares, 1310-2018'!F582","v":0},{"$f":"Y580*'III. GDP shares, 1310-2018'!G582","v":0},{"$f":"Z580*'III. GDP shares, 1310-2018'!H582","v":0},{"$f":"AA580*'III. GDP shares, 1310-2018'!I582","v":-0.16911828260137401},{"$f":"AB580*'III. GDP shares, 1310-2018'!J582","v":-0.7273958774310187},null,null,4.170354166666667,3.604639080172749,null,-1.2589053838868156,-2.5256211510209274,{"$f":"AVERAGE(BL577:BL583)","v":-0.6493876004279618},-0.956517034399206,null,null,3.9598257956769745]
[{"$f":"'[1]Nominal weighted'!B581","v":1887},null,6.14819367390486,3.248666666666667,3.7939032110435296,2.5516416135027606,4.929058785236709,0.43527397260274325,7.971882806040476,17.97924516160411,null,4.374103357484922,3.5217500000000004,4.6561622643212655,3.426221651583409,{"$f":"AVERAGE(G578:G584)","v":4.047816734403676},3.539958743148568,6.993648968191282,3.2928058972641883,null,-0.9711936739048599,-0.5,-0.41590321104352956,0.7193583864972393,-1.2320587852367089,2.7397260273972566,-2.001882806040476,-11.83924516160411,null,null,5.177,2.748666666666667,{"v":3.378,"d":"3.38"},3.271,3.697,3.175,5.97,6.14,null,6.14,{"$f":"AE581*'III. GDP shares, 1310-2018'!C583","v":0.40702825139883325},{"$f":"AF581*'III. GDP shares, 1310-2018'!D583","v":0.5637835715188928},{"$f":"AG581*'III. GDP shares, 1310-2018'!E583","v":0.07738639287897339},{"$f":"AH581*'III. GDP shares, 1310-2018'!F583","v":0.5167325777499905},{"$f":"AI581*'III. GDP shares, 1310-2018'!G583","v":0.5006869203013004},{"$f":"AJ581*'III. GDP shares, 1310-2018'!H583","v":0.9595692025643888},{"$f":"AK581*'III. GDP shares, 1310-2018'!I583","v":0.25018566326054237},{"$f":"AL581*'III. GDP shares, 1310-2018'!J583","v":0.342727675595255},null,null,{"$f":"U581*'III. GDP shares, 1310-2018'!C583","v":-0.07635759375296577},{"$f":"V581*'III. GDP shares, 1310-2018'!D583","v":-0.10255582795032005},{"$f":"W581*'III. GDP shares, 1310-2018'!E583","v":-0.009527900914577017},{"$f":"X581*'III. GDP shares, 1310-2018'!F583","v":0.11363983900360514},{"$f":"Y581*'III. GDP shares, 1310-2018'!G583","v":-0.16685845788756531},{"$f":"Z581*'III. GDP shares, 1310-2018'!H583","v":0.8280178643636178},{"$f":"AA581*'III. GDP shares, 1310-2018'!I583","v":-0.08389319557774073},{"$f":"AB581*'III. GDP shares, 1310-2018'!J583","v":-0.660852927530773},null,null,{"$f":"AVERAGE(AE581:AL581)","v":4.194583333333333},{"$f":"SUM(AO581:AV581)","v":3.618100255268176},null,{"$f":"SUM(AY581:BF581)","v":-0.15838820024671896},{"$f":"AVERAGE(U581:AB581)","v":-1.6876499029918985},{"$f":"AVERAGE(BL578:BL584)","v":-0.1885366332708682},-0.024911130621092514,null,null,{"$f":"((AO581+SUM(AQ581:AV581))-((AY581+(SUM(BA581:BF581)))))","v":3.1101490560456826}]
[{"$f":"'[1]Nominal weighted'!B582","v":1888},null,3.271147662277991,1.943416666666667,5.92717406630927,2.3838824443628583,2.377572170601702,3.122,3.8303135257993626,11.186815437776911,null,4.140619450654962,3.031714285714286,3.3936634661335736,1.7771300795707634,{"$f":"AVERAGE(G579:G585)","v":3.7751841873467753},3.0048010437051538,7.140118871283684,3.1114095747517405,null,1.9598523377220087,0.7,-2.6801740663092697,0.8571175556371416,1.247427829398298,0,1.6536864742006374,-4.95081543777691,null,null,5.231,2.643416666666667,{"v":3.247,"d":"3.25"},3.241,3.625,3.122,5.484,6.236,null,6.236,{"$f":"AE582*'III. GDP shares, 1310-2018'!C584","v":0.4037864671089519},{"$f":"AF582*'III. GDP shares, 1310-2018'!D584","v":0.5579033965330091},{"$f":"AG582*'III. GDP shares, 1310-2018'!E584","v":0.07582410271056526},{"$f":"AH582*'III. GDP shares, 1310-2018'!F584","v":0.5249038557010133},{"$f":"AI582*'III. GDP shares, 1310-2018'!G584","v":0.48824981159534253},{"$f":"AJ582*'III. GDP shares, 1310-2018'!H584","v":0.9250736335842173},{"$f":"AK582*'III. GDP shares, 1310-2018'!I584","v":0.2355465432976981},{"$f":"AL582*'III. GDP shares, 1310-2018'!J584","v":0.327367507173371},null,null,{"$f":"U582*'III. GDP shares, 1310-2018'!C584","v":0.1512830914746684},{"$f":"V582*'III. GDP shares, 1310-2018'!D584","v":0.14773772992267822},{"$f":"W582*'III. GDP shares, 1310-2018'!E584","v":-0.06258755580105557},{"$f":"X582*'III. GDP shares, 1310-2018'!F584","v":0.13881651025700814},{"$f":"Y582*'III. GDP shares, 1310-2018'!G584","v":0.16801555936069135},{"$f":"Z582*'III. GDP shares, 1310-2018'!H584","v":0},{"$f":"AA582*'III. GDP shares, 1310-2018'!I584","v":0.07102847058645481},{"$f":"AB582*'III. GDP shares, 1310-2018'!J584","v":-0.2598999532297095},null,null,4.103677083333333,3.5386553177041686,null,0.35439385257073586,-0.15161316339101177,{"$f":"AVERAGE(BL579:BL585)","v":0.4042929858060145},0.5139377372477396,null,null,2.774095798523102]
[{"$f":"'[1]Nominal weighted'!B583","v":1889},null,4.34213282779625,1.2455000000000003,0.8266443615570136,-5.0550453186477124,4.649058785236709,4.479333333333331,4.786137799633,-21.46436870091057,null,4.557706226009437,2.5182499999999997,3.1125247020656883,2.022343420953906,{"$f":"AVERAGE(G580:G586)","v":3.5726172424162184},3.0412270411311506,6.653771608366868,9.866698229023488,null,0.9618671722037503,1.4,2.1403556384429865,8.357045318647712,-1.2320587852367089,-1.3333333333333315,0.6698622003670006,27.79936870091057,null,null,5.304,2.6455,{"v":2.967,"d":"2.97"},3.302,3.417,3.146,5.456,6.335,null,6.335,{"$f":"AE583*'III. GDP shares, 1310-2018'!C585","v":0.3778639037535165},{"$f":"AF583*'III. GDP shares, 1310-2018'!D585","v":0.5674455830427323},{"$f":"AG583*'III. GDP shares, 1310-2018'!E585","v":0.0668203058090107},{"$f":"AH583*'III. GDP shares, 1310-2018'!F585","v":0.5303627764221969},{"$f":"AI583*'III. GDP shares, 1310-2018'!G585","v":0.4551854861891399},{"$f":"AJ583*'III. GDP shares, 1310-2018'!H585","v":0.9548433122640059},{"$f":"AK583*'III. GDP shares, 1310-2018'!I585","v":0.22548165417653393},{"$f":"AL583*'III. GDP shares, 1310-2018'!J585","v":0.3362279204716765},null,null,{"$f":"U583*'III. GDP shares, 1310-2018'!C585","v":0.06852467658017815},{"$f":"V583*'III. GDP shares, 1310-2018'!D585","v":0.3002925028387167},{"$f":"W583*'III. GDP shares, 1310-2018'!E585","v":0.04820330916777913},{"$f":"X583*'III. GDP shares, 1310-2018'!F585","v":1.3422973221938592},{"$f":"Y583*'III. GDP shares, 1310-2018'!G585","v":-0.16412504453367646},{"$f":"Z583*'III. GDP shares, 1310-2018'!H585","v":-0.40468036120534207},{"$f":"AA583*'III. GDP shares, 1310-2018'!I585","v":0.02768358449579987},{"$f":"AB583*'III. GDP shares, 1310-2018'!J585","v":1.4754418198472885},null,null,4.0715625,3.5142309421288127,null,2.693637809384603,4.8453883640002475,{"$f":"AVERAGE(BL580:BL586)","v":0.10866422257002875},-0.264057487317273,null,null,0.5534400525401941]
[{"$f":"'[1]Nominal weighted'!B584","v":1890},null,1.4787253782340444,2.486583333333333,1.2763915838554614,7.092936588182007,3.165,1.9126486486486503,8.503960807281231,-9.744006269523663,null,5.0347401441330915,2.359345238095238,3.7150300917541115,2.3747267316251772,{"$f":"AVERAGE(G581:G587)","v":3.6371140378765037},3.096655612559722,5.799778654394184,11.809698252084331,null,3.809274621765956,0.2,1.8886084161445387,-3.790936588182007,0,1.3513513513513495,-3.231960807281232,16.02200626952366,null,null,5.288,2.686583333333333,{"v":3.165,"d":"3.17"},3.302,3.165,3.264,5.272,6.278,null,6.278,{"$f":"AE584*'III. GDP shares, 1310-2018'!C586","v":0.39207819440620306},{"$f":"AF584*'III. GDP shares, 1310-2018'!D586","v":0.566242788789527},{"$f":"AG584*'III. GDP shares, 1310-2018'!E586","v":0.06689885134171947},{"$f":"AH584*'III. GDP shares, 1310-2018'!F586","v":0.5352960312586889},{"$f":"AI584*'III. GDP shares, 1310-2018'!G586","v":0.4220521214688796},{"$f":"AJ584*'III. GDP shares, 1310-2018'!H586","v":0.9829741472404263},{"$f":"AK584*'III. GDP shares, 1310-2018'!I586","v":0.21324914221478838},{"$f":"AL584*'III. GDP shares, 1310-2018'!J586","v":0.35711148295390943},null,null,{"$f":"U584*'III. GDP shares, 1310-2018'!C586","v":0.2824382593985189},{"$f":"V584*'III. GDP shares, 1310-2018'!D586","v":0.04215337613123438},{"$f":"W584*'III. GDP shares, 1310-2018'!E586","v":0.03991966308826975},{"$f":"X584*'III. GDP shares, 1310-2018'!F586","v":-0.6145588462771602},{"$f":"Y584*'III. GDP shares, 1310-2018'!G586","v":0},{"$f":"Z584*'III. GDP shares, 1310-2018'!H586","v":0.4069679663654383},{"$f":"AA584*'III. GDP shares, 1310-2018'!I586","v":-0.13073081749327345},{"$f":"AB584*'III. GDP shares, 1310-2018'!J586","v":0.9113798054804761},null,null,4.052572916666667,3.535902759674142,null,0.9375694066935039,2.031042907915283,{"$f":"AVERAGE(BL581:BL587)","v":-0.045240703039328256},-0.5615393691248187,null,null,2.074243940322346]
[{"$f":"'[1]Nominal weighted'!B585","v":1891},null,{"$f":"AE585-U585","v":5.482},{"$f":"AF585-V585","v":2.00375},{"$f":"AG585-W585","v":-1.1953619634675716},{"$f":"AH585-X585","v":-1.1845047704045695},{"$f":"AI585-Y585","v":1.9035721706017017},{"$f":"AJ585-Z585","v":3.402},{"$f":"AK585-AA585","v":7.240541336726608},{"$f":"AL585-AB585","v":26.25646469248076},null,4.951998190718112,2.5435119047619046,3.855952561538033,2.5780244252636204,{"$f":"AVERAGE(G582:G588)","v":3.2040490398269754},3.9158597168597162,6.128926919395309,10.816216318657737,null,0,0.7,4.360361963467572,4.75550477040457,1.247427829398298,0,-1.0805413367266072,-19.863464692480758,null,null,5.482,2.70375,{"v":3.165,"d":"3.17"},3.571,3.151,3.402,6.16,6.393,null,6.393,{"$f":"AE585*'III. GDP shares, 1310-2018'!C587","v":0.3995123529756953},{"$f":"AF585*'III. GDP shares, 1310-2018'!D587","v":0.5623963948943093},{"$f":"AG585*'III. GDP shares, 1310-2018'!E587","v":0.0647651854090258},{"$f":"AH585*'III. GDP shares, 1310-2018'!F587","v":0.5701481774828314},{"$f":"AI585*'III. GDP shares, 1310-2018'!G587","v":0.42413447492278933},{"$f":"AJ585*'III. GDP shares, 1310-2018'!H587","v":1.0549689612647157},{"$f":"AK585*'III. GDP shares, 1310-2018'!I587","v":0.25149794141059667},{"$f":"AL585*'III. GDP shares, 1310-2018'!J587","v":0.3417693951933502},null,null,{"$f":"U585*'III. GDP shares, 1310-2018'!C587","v":0},{"$f":"V585*'III. GDP shares, 1310-2018'!D587","v":0.1456042446328309},{"$f":"W585*'III. GDP shares, 1310-2018'!E587","v":0.08922579810882815},{"$f":"X585*'III. GDP shares, 1310-2018'!F587","v":0.7592669778373218},{"$f":"Y585*'III. GDP shares, 1310-2018'!G587","v":0.1679076951526252},{"$f":"Z585*'III. GDP shares, 1310-2018'!H587","v":0},{"$f":"AA585*'III. GDP shares, 1310-2018'!I587","v":-0.04411589639542144},{"$f":"AB585*'III. GDP shares, 1310-2018'!J587","v":-1.0618996268408594},null,null,4.25346875,3.6691928835533134,null,0.0559891924953253,-1.2350889332421158,{"$f":"AVERAGE(BL582:BL588)","v":-0.2695057399938856},-0.6067355393895805,null,null,3.19641154079651]
[{"$f":"'[1]Nominal weighted'!B586","v":1892},null,6.191744039852913,2.269,6.242531703317136,5.065493389681997,4.339058785236709,4.832333333333332,4.350891638010203,25.56683137049162,null,5.408649014772086,2.7525238095238094,3.608275610353853,2.674755504640355,{"$f":"AVERAGE(G583:G589)","v":3.4387498109155885},4.178129558129557,6.735066656761637,9.9700686660375,null,-0.9177440398529132,0.4,-3.2305317033171352,-1.5564933896819968,-1.2320587852367089,-1.3333333333333315,1.9861083619897968,-19.11483137049162,null,null,5.274,2.669,{"v":3.012,"d":"3.01"},3.509,3.107,3.499,6.337,6.452,null,6.452,{"$f":"AE586*'III. GDP shares, 1310-2018'!C588","v":0.3494922877249517},{"$f":"AF586*'III. GDP shares, 1310-2018'!D588","v":0.5220934425586445},{"$f":"AG586*'III. GDP shares, 1310-2018'!E588","v":0.06027841680354939},{"$f":"AH586*'III. GDP shares, 1310-2018'!F588","v":0.5619945599076348},{"$f":"AI586*'III. GDP shares, 1310-2018'!G588","v":0.4131112831605736},{"$f":"AJ586*'III. GDP shares, 1310-2018'!H588","v":1.1468104306069224},{"$f":"AK586*'III. GDP shares, 1310-2018'!I588","v":0.26796667488818365},{"$f":"AL586*'III. GDP shares, 1310-2018'!J588","v":0.35451817852283174},null,null,{"$f":"U586*'III. GDP shares, 1310-2018'!C588","v":-0.060816166862748176},{"$f":"V586*'III. GDP shares, 1310-2018'!D588","v":0.07824555152621125},{"$f":"W586*'III. GDP shares, 1310-2018'!E588","v":-0.06465183815060778},{"$f":"X586*'III. GDP shares, 1310-2018'!F588","v":-0.24928492947662484},{"$f":"Y586*'III. GDP shares, 1310-2018'!G588","v":-0.16381634557399238},{"$f":"Z586*'III. GDP shares, 1310-2018'!H588","v":-0.43700502261862273},{"$f":"AA586*'III. GDP shares, 1310-2018'!I588","v":0.08398466999053542},{"$f":"AB586*'III. GDP shares, 1310-2018'!J588","v":-1.0503030378545835},null,null,4.232375,3.6762652741732915,null,-1.8636471190204327,-3.124860532490488,{"$f":"AVERAGE(BL583:BL589)","v":-0.4430408104479513},-0.697836852701322,null,null,5.096064502161291]
[{"$f":"'[1]Nominal weighted'!B587","v":1893},null,8.329237426865584,3.3185000000000002,9.133927679663937,5.768683174698899,4.096477568221998,3.493,3.914722667268414,32.886906072671145,null,5.539630039372622,2.946214285714286,4.078191916322069,3.9495039044213835,{"$f":"AVERAGE(G584:G590)","v":3.192884270167488},4.015653367653367,5.961128806916936,13.163393105042193,null,-2.7772374268655846,-0.7,-6.121927679663937,-2.239683174698899,-1.0394775682219974,0,2.434277332731586,-26.419906072671147,null,null,5.552,2.6185000000000005,{"v":3.012,"d":"3.01"},3.529,3.057,3.493,6.349,6.467,null,6.467,{"$f":"AE587*'III. GDP shares, 1310-2018'!C589","v":0.3862133220200577},{"$f":"AF587*'III. GDP shares, 1310-2018'!D589","v":0.5141139596596903},{"$f":"AG587*'III. GDP shares, 1310-2018'!E589","v":0.061110705712195124},{"$f":"AH587*'III. GDP shares, 1310-2018'!F589","v":0.5953214890657871},{"$f":"AI587*'III. GDP shares, 1310-2018'!G589","v":0.41506529023362765},{"$f":"AJ587*'III. GDP shares, 1310-2018'!H589","v":1.0934483058565},{"$f":"AK587*'III. GDP shares, 1310-2018'!I589","v":0.2600358668190632},{"$f":"AL587*'III. GDP shares, 1310-2018'!J589","v":0.3579003584367225},null,null,{"$f":"U587*'III. GDP shares, 1310-2018'!C589","v":-0.19319274003389672},{"$f":"V587*'III. GDP shares, 1310-2018'!D589","v":-0.13743737703333325},{"$f":"W587*'III. GDP shares, 1310-2018'!E589","v":-0.12420827384571195},{"$f":"X587*'III. GDP shares, 1310-2018'!F589","v":-0.37782134389269995},{"$f":"Y587*'III. GDP shares, 1310-2018'!G589","v":-0.14113544604036926},{"$f":"Z587*'III. GDP shares, 1310-2018'!H589","v":0},{"$f":"AA587*'III. GDP shares, 1310-2018'!I589","v":0.09970064833751065},{"$f":"AB587*'III. GDP shares, 1310-2018'!J589","v":-1.462145330643814},null,null,4.2596875,3.6832092978036433,null,-2.3362398631523145,-4.607994323673747,{"$f":"AVERAGE(BL584:BL590)","v":-0.7789690835942638},-1.201244604808436,null,null,5.3678978242629345]
[{"$f":"'[1]Nominal weighted'!B588","v":1894},null,5.569,4.537833333333333,4.780360499530981,3.974725468971863,1.8976037988900083,6.169702702702699,10.275920661048337,11.024871627617955,null,6.062383556767758,2.7000833333333327,4.079493587437612,2.4617448067141554,{"$f":"AVERAGE(G585:G591)","v":3.4567121398507745},4.18513213213213,6.429744231956524,13.1556178533816,null,0,-2,-2.120360499530981,-0.8087254689718629,1.0503962011099917,-2.702702702702699,-4.847920661048337,-4.602871627617954,null,null,5.569,2.537833333333333,2.66,3.166,2.948,3.467,5.428,6.422,null,6.422,{"$f":"AE588*'III. GDP shares, 1310-2018'!C590","v":0.3744569468899372},{"$f":"AF588*'III. GDP shares, 1310-2018'!D590","v":0.5214365175736474},{"$f":"AG588*'III. GDP shares, 1310-2018'!E590","v":0.05419338542723394},{"$f":"AH588*'III. GDP shares, 1310-2018'!F590","v":0.5364473701195072},{"$f":"AI588*'III. GDP shares, 1310-2018'!G590","v":0.40696274606319527},{"$f":"AJ588*'III. GDP shares, 1310-2018'!H590","v":1.0334548979129854},{"$f":"AK588*'III. GDP shares, 1310-2018'!I590","v":0.22039773282426048},{"$f":"AL588*'III. GDP shares, 1310-2018'!J590","v":0.3901199939819677},null,null,{"$f":"U588*'III. GDP shares, 1310-2018'!C590","v":0},{"$f":"V588*'III. GDP shares, 1310-2018'!D590","v":-0.4109304663350476},{"$f":"W588*'III. GDP shares, 1310-2018'!E590","v":-0.043199065336753655},{"$f":"X588*'III. GDP shares, 1310-2018'!F590","v":-0.13703052778857264},{"$f":"Y588*'III. GDP shares, 1310-2018'!G590","v":0.145004112095682},{"$f":"Z588*'III. GDP shares, 1310-2018'!H590","v":-0.8056306160111819},{"$f":"AA588*'III. GDP shares, 1310-2018'!I590","v":-0.1968442746143964},{"$f":"AB588*'III. GDP shares, 1310-2018'!J590","v":-0.27961262093835043},null,null,4.024729166666666,3.5374695907927345,null,-1.7282434589286206,-2.0040230948452304,{"$f":"AVERAGE(BL585:BL591)","v":-0.6568019906066583},-1.1884249671014973,null,null,4.33334606581266]
[{"$f":"'[1]Nominal weighted'!B589","v":1895},null,6.4677034306558125,3.4065,4.193435408020011,3.061,4.020477568221997,4.957888888888887,8.073291687363664,5.263781869435256,null,5.993954985339187,2.6979999999999995,4.542681363414839,3.640960931261902,{"$f":"AVERAGE(G586:G592)","v":3.4519252017338498},3.9430677458142234,7.041808069040542,9.613611761220017,null,-0.9527034306558132,-1,-1.5054354080200107,0,-1.0394775682219974,-1.3888888888888868,-1.6982916873636633,1.2702181305647438,null,null,5.515,2.4065,{"v":2.688,"d":"2.69"},3.061,2.981,3.569,6.375,6.534,null,6.534,{"$f":"AE589*'III. GDP shares, 1310-2018'!C591","v":0.3586645133209166},{"$f":"AF589*'III. GDP shares, 1310-2018'!D591","v":0.48581589187198304},{"$f":"AG589*'III. GDP shares, 1310-2018'!E591","v":0.05381069635822429},{"$f":"AH589*'III. GDP shares, 1310-2018'!F591","v":0.5176150427745829},{"$f":"AI589*'III. GDP shares, 1310-2018'!G591","v":0.38388283735111456},{"$f":"AJ589*'III. GDP shares, 1310-2018'!H591","v":1.1356283094895745},{"$f":"AK589*'III. GDP shares, 1310-2018'!I591","v":0.2443869709422317},{"$f":"AL589*'III. GDP shares, 1310-2018'!J591","v":0.3833250608954541},null,null,{"$f":"U589*'III. GDP shares, 1310-2018'!C591","v":-0.06195846097830188},{"$f":"V589*'III. GDP shares, 1310-2018'!D591","v":-0.2018765393193364},{"$f":"W589*'III. GDP shares, 1310-2018'!E591","v":-0.03013710105204028},{"$f":"X589*'III. GDP shares, 1310-2018'!F591","v":0},{"$f":"Y589*'III. GDP shares, 1310-2018'!G591","v":-0.1338603147440111},{"$f":"Z589*'III. GDP shares, 1310-2018'!H591","v":-0.44193374641572986},{"$f":"AA589*'III. GDP shares, 1310-2018'!I591","v":-0.06510437039234153},{"$f":"AB589*'III. GDP shares, 1310-2018'!J591","v":0.07451889229403738},null,null,4.1411875,3.5631293230040817,null,-0.8603516406077236,-0.7893223565732034,{"$f":"AVERAGE(BL586:BL592)","v":-0.6498501897012989},-1.007286971513784,null,null,3.735788532420486]
[{"$f":"'[1]Nominal weighted'!B590","v":1896},null,5.259,2.6013333333333324,4.116058503334527,3.868193479819489,2.928,3.342,-0.6314271492799088,0.8889023721222893,null,5.971464874965997,2.6135952380952374,4.311871627833914,3.177693577708728,{"$f":"AVERAGE(G587:G593)","v":3.26448823241432},3.083924888671368,7.284394977896226,6.473018738437824,null,0,-0.3,-1.3380585033345267,-0.815193479819489,0,0,7.2154271492799085,5.810097627877711,null,null,5.259,2.3013333333333326,{"v":2.778,"d":"2.78"},3.053,2.928,3.342,6.584,6.699,null,6.699,{"$f":"AE590*'III. GDP shares, 1310-2018'!C592","v":0.34835285844309416},{"$f":"AF590*'III. GDP shares, 1310-2018'!D592","v":0.47976026998716814},{"$f":"AG590*'III. GDP shares, 1310-2018'!E592","v":0.05302886387781695},{"$f":"AH590*'III. GDP shares, 1310-2018'!F592","v":0.5297286884116575},{"$f":"AI590*'III. GDP shares, 1310-2018'!G592","v":0.39160194315488056},{"$f":"AJ590*'III. GDP shares, 1310-2018'!H592","v":1.032723398751893},{"$f":"AK590*'III. GDP shares, 1310-2018'!I592","v":0.23026438150993808},{"$f":"AL590*'III. GDP shares, 1310-2018'!J592","v":0.36817422705952074},null,null,{"$f":"U590*'III. GDP shares, 1310-2018'!C592","v":0},{"$f":"V590*'III. GDP shares, 1310-2018'!D592","v":-0.06254117076889505},{"$f":"W590*'III. GDP shares, 1310-2018'!E592","v":-0.025542016642866122},{"$f":"X590*'III. GDP shares, 1310-2018'!F592","v":-0.14144493051638157},{"$f":"Y590*'III. GDP shares, 1310-2018'!G592","v":0},{"$f":"Z590*'III. GDP shares, 1310-2018'!H592","v":0},{"$f":"AA590*'III. GDP shares, 1310-2018'!I592","v":0.25234748934674267},{"$f":"AB590*'III. GDP shares, 1310-2018'!J592","v":0.31932052594181687},null,null,4.118041666666667,3.433634631195969,null,0.3421398973604168,1.3215340992504503,{"$f":"AVERAGE(BL587:BL593)","v":-0.12965896998353593},-0.4645356861696185,null,null,2.5491932930794894]
[{"$f":"'[1]Nominal weighted'!B591","v":1897},null,5.138,0.763666666666666,1.2855032816642569,-3.3213770957685895,5.011795087783005,3.099,11.784268782558339,-9.798433031147834,null,5.366913142285867,1.7748690476190474,2.948540089820896,2.391726738477428,{"$f":"AVERAGE(G588:G594)","v":2.9499129527192793},2.8083058410523187,6.105479516008882,2.221442252446809,null,0,1.5,1.5554967183357433,6.4383770957685895,-2.1007950877830046,0,-5.21326878255834,14.786433031147835,null,null,5.138,2.263666666666666,{"v":2.841,"d":"2.84"},3.117,2.911,3.099,6.571,4.988,null,4.988,{"$f":"AE591*'III. GDP shares, 1310-2018'!C593","v":0.31354963969779565},{"$f":"AF591*'III. GDP shares, 1310-2018'!D593","v":0.4609634830560724},{"$f":"AG591*'III. GDP shares, 1310-2018'!E593","v":0.05754918648005666},{"$f":"AH591*'III. GDP shares, 1310-2018'!F593","v":0.536351509571797},{"$f":"AI591*'III. GDP shares, 1310-2018'!G593","v":0.37026460104628034},{"$f":"AJ591*'III. GDP shares, 1310-2018'!H593","v":1.0111960590705027},{"$f":"AK591*'III. GDP shares, 1310-2018'!I593","v":0.23278537193895016},{"$f":"AL591*'III. GDP shares, 1310-2018'!J593","v":0.26980228056501054},null,null,{"$f":"U591*'III. GDP shares, 1310-2018'!C593","v":0},{"$f":"V591*'III. GDP shares, 1310-2018'!D593","v":0.3054536406644568},{"$f":"W591*'III. GDP shares, 1310-2018'!E593","v":0.03150917659719108},{"$f":"X591*'III. GDP shares, 1310-2018'!F593","v":1.1078707970830814},{"$f":"Y591*'III. GDP shares, 1310-2018'!G593","v":-0.26721059947027126},{"$f":"Z591*'III. GDP shares, 1310-2018'!H593","v":0},{"$f":"AA591*'III. GDP shares, 1310-2018'!I593","v":-0.18468615318301038},{"$f":"AB591*'III. GDP shares, 1310-2018'!J593","v":0.7998021959152941},null,null,3.866083333333333,3.2524621314264657,null,1.792739057606742,2.120780371863853,{"$f":"AVERAGE(BL588:BL594)","v":0.5908231656161146},0.6773885048271364,null,null,1.304213231428108]
[{"$f":"'[1]Nominal weighted'!B592","v":1898},null,5.003,1.989166666666667,2.046952468373023,7.070008101429656,1.8700636037832319,1.70754929577465,11.524988196314741,1.4624220473496954,null,5.281341713714439,1.4395595238095236,2.1604472428182966,2.1920144017531467,{"$f":"AVERAGE(G589:G595)","v":3.107255267163563},1.9602656053278733,5.256935609626291,3.1412782311546543,null,0,0.3,0.8270475316269769,-3.8610081014296562,1.0729363962167682,1.40845070422535,-2.899988196314741,3.4155779526503047,null,null,5.003,2.289166666666667,{"v":2.874,"d":"2.87"},3.209,2.943,3.116,8.625,4.878,null,4.878,{"$f":"AE592*'III. GDP shares, 1310-2018'!C594","v":0.31694565244287043},{"$f":"AF592*'III. GDP shares, 1310-2018'!D594","v":0.46596938727835285},{"$f":"AG592*'III. GDP shares, 1310-2018'!E594","v":0.0566377745528566},{"$f":"AH592*'III. GDP shares, 1310-2018'!F594","v":0.5488479860474772},{"$f":"AI592*'III. GDP shares, 1310-2018'!G594","v":0.37421991013480205},{"$f":"AJ592*'III. GDP shares, 1310-2018'!H594","v":0.9892833906923997},{"$f":"AK592*'III. GDP shares, 1310-2018'!I594","v":0.3136782056519176},{"$f":"AL592*'III. GDP shares, 1310-2018'!J594","v":0.2992377383643794},null,null,{"$f":"U592*'III. GDP shares, 1310-2018'!C594","v":0},{"$f":"V592*'III. GDP shares, 1310-2018'!D594","v":0.061066246603642876},{"$f":"W592*'III. GDP shares, 1310-2018'!E594","v":0.016298584426160494},{"$f":"X592*'III. GDP shares, 1310-2018'!F594","v":-0.6603635152953132},{"$f":"Y592*'III. GDP shares, 1310-2018'!G594","v":0.13643022826116116},{"$f":"Z592*'III. GDP shares, 1310-2018'!H594","v":0.4471620309047344},{"$f":"AA592*'III. GDP shares, 1310-2018'!I594","v":-0.10546818479208683},{"$f":"AB592*'III. GDP shares, 1310-2018'!J594","v":0.20952640872454173},null,null,4.117145833333334,3.3648200451650556,null,0.10465179883284059,0.03287703587187535,{"$f":"AVERAGE(BL589:BL595)","v":0.9204946054393915},0.897950598198074,null,null,2.8552651056575056]
[{"$f":"'[1]Nominal weighted'!B593","v":1899},null,6.034313267240574,1.6781666666666666,4.6268635542506535,1.822621914809781,3.027,-1.1816666666666609,6.049,3.582680211016268,null,5.059669795049323,1.3351309523809523,2.1429629093742424,2.3369335417431607,{"$f":"AVERAGE(G590:G596)","v":2.963615614560421},1.3074096834719524,4.542747434477627,2.281681849531696,null,-0.9603132672405735,0.7,-1.540863554250654,1.6063780851902187,0,4.166666666666661,0,1.4233197889837323,null,null,5.074,2.3781666666666665,{"v":3.086,"d":"3.09"},3.429,3.027,2.985,6.049,5.006,null,5.006,{"$f":"AE593*'III. GDP shares, 1310-2018'!C595","v":0.3137163258183046},{"$f":"AF593*'III. GDP shares, 1310-2018'!D595","v":0.48081685564600973},{"$f":"AG593*'III. GDP shares, 1310-2018'!E595","v":0.05885821811669163},{"$f":"AH593*'III. GDP shares, 1310-2018'!F595","v":0.5796501244747735},{"$f":"AI593*'III. GDP shares, 1310-2018'!G595","v":0.3879784223858322},{"$f":"AJ593*'III. GDP shares, 1310-2018'!H595","v":0.9859891278759936},{"$f":"AK593*'III. GDP shares, 1310-2018'!I595","v":0.21317205405581247},{"$f":"AL593*'III. GDP shares, 1310-2018'!J595","v":0.2710645806920465},null,null,{"$f":"U593*'III. GDP shares, 1310-2018'!C595","v":-0.05937444813426969},{"$f":"V593*'III. GDP shares, 1310-2018'!D595","v":0.14152574067651838},{"$f":"W593*'III. GDP shares, 1310-2018'!E595","v":-0.02938836136232848},{"$f":"X593*'III. GDP shares, 1310-2018'!F595","v":0.2715477564987048},{"$f":"Y593*'III. GDP shares, 1310-2018'!G595","v":0},{"$f":"Z593*'III. GDP shares, 1310-2018'!H595","v":1.3763108987660415},{"$f":"AA593*'III. GDP shares, 1310-2018'!I595","v":0},{"$f":"AB593*'III. GDP shares, 1310-2018'!J595","v":0.0770698325592424},null,null,3.8792708333333334,3.291245709065464,null,1.777691419003909,0.6743984649186731,{"$f":"AVERAGE(BL590:BL596)","v":1.2005181752148246},1.14685453933109,null,null,1.174263175092064]
[{"$f":"'[1]Nominal weighted'!B594","v":1900},null,4.097375298104684,-2.552583333333333,-0.4093930864271802,0.2669153000797997,1.8944506103567085,1.563666666666656,-4.337685565943002,3.1258706707340327,null,4.733485759424942,1.3045119047619045,1.566201381676427,2.149725774897789,{"$f":"AVERAGE(G591:G597)","v":3.1346725983708486},1.2556953977576668,4.851712236900004,0.36865890050024014,null,0.9696247018953161,5.1,3.65639308642718,3.1620846999202,1.0615493896432915,1.3333333333333437,10.092685565943002,1.7081293292659667,null,null,5.067,2.5474166666666664,{"v":3.247,"d":"3.25"},3.429,2.956,2.897,5.755,4.834,null,4.834,{"$f":"AE594*'III. GDP shares, 1310-2018'!C596","v":0.3242643199988798},{"$f":"AF594*'III. GDP shares, 1310-2018'!D596","v":0.5013254882184922},{"$f":"AG594*'III. GDP shares, 1310-2018'!E596","v":0.06085118736671904},{"$f":"AH594*'III. GDP shares, 1310-2018'!F596","v":0.5925913314613511},{"$f":"AI594*'III. GDP shares, 1310-2018'!G596","v":0.3673888606434472},{"$f":"AJ594*'III. GDP shares, 1310-2018'!H596","v":0.96376909753968},{"$f":"AK594*'III. GDP shares, 1310-2018'!I596","v":0.2031831283761856},{"$f":"AL594*'III. GDP shares, 1310-2018'!J596","v":0.267702886191591},null,null,{"$f":"U594*'III. GDP shares, 1310-2018'!C596","v":0.062051449499546316},{"$f":"V594*'III. GDP shares, 1310-2018'!D596","v":1.0036677640410785},{"$f":"W594*'III. GDP shares, 1310-2018'!E596","v":0.06852351733555789},{"$f":"X594*'III. GDP shares, 1310-2018'!F596","v":0.5464636869405887},{"$f":"Y594*'III. GDP shares, 1310-2018'!G596","v":0.13193552800331382},{"$f":"Z594*'III. GDP shares, 1310-2018'!H596","v":0.44357109540429757},{"$f":"AA594*'III. GDP shares, 1310-2018'!I596","v":0.35632726794187186},{"$f":"AB594*'III. GDP shares, 1310-2018'!J596","v":0.09459477687898339},null,null,3.841552083333333,3.281076299796346,null,2.7071350860452377,3.3854750133035374,{"$f":"AVERAGE(BL591:BL597)","v":1.3383148248469716},1.4143738509518677,null,null,1.0762834895736941]
[{"$f":"'[1]Nominal weighted'!B595","v":1901},null,4.97,2.1906666666666665,-0.7362894294872144,2.576739111901888,2.999,0.23342105263158297,4.336113316370211,17.463723478572874,null,4.5567466583449034,1.632595238095238,1.6514869168799802,2.9971294894513107,{"$f":"AVERAGE(G592:G598)","v":2.857559014401848},1.0708382549005242,4.307971136096987,0.4819405933131003,null,0,0.5,3.8612894294872144,0.7662608880981119,0,2.6315789473684172,0.8418866836297891,-12.281723478572875,null,null,4.97,2.6906666666666665,{"v":3.125,"d":"3.13"},3.343,2.999,2.865,5.178,5.182,null,5.182,{"$f":"AE595*'III. GDP shares, 1310-2018'!C597","v":0.3255574250315502},{"$f":"AF595*'III. GDP shares, 1310-2018'!D597","v":0.5089636751488855},{"$f":"AG595*'III. GDP shares, 1310-2018'!E597","v":0.05742360940953965},{"$f":"AH595*'III. GDP shares, 1310-2018'!F597","v":0.542315024154171},{"$f":"AI595*'III. GDP shares, 1310-2018'!G597","v":0.3525014256896285},{"$f":"AJ595*'III. GDP shares, 1310-2018'!H597","v":1.0192683811746077},{"$f":"AK595*'III. GDP shares, 1310-2018'!I597","v":0.1879394607687451},{"$f":"AL595*'III. GDP shares, 1310-2018'!J597","v":0.2857143975566344},null,null,{"$f":"U595*'III. GDP shares, 1310-2018'!C597","v":0},{"$f":"V595*'III. GDP shares, 1310-2018'!D597","v":0.0945794738259822},{"$f":"W595*'III. GDP shares, 1310-2018'!E597","v":0.07095333632513856},{"$f":"X595*'III. GDP shares, 1310-2018'!F597","v":0.12430595035516723},{"$f":"Y595*'III. GDP shares, 1310-2018'!G597","v":0},{"$f":"Z595*'III. GDP shares, 1310-2018'!H597","v":0.9362252054510941},{"$f":"AA595*'III. GDP shares, 1310-2018'!I597","v":0.03055691953452485},{"$f":"AB595*'III. GDP shares, 1310-2018'!J597","v":-0.677164265657588},null,null,3.794083333333333,3.279683398933762,null,0.5794566198343187,-0.46008844124866766,{"$f":"AVERAGE(BL592:BL598)","v":1.2632814379102566},1.3718088492192753,null,null,2.28584257777654]
[{"$f":"'[1]Nominal weighted'!B596","v":1902},null,4.916,2.6754999999999995,4.071045073911632,4.0754339799301,3.015,0.38789743589743964,3.073974461323002,-0.753392801925453,null,4.397263851215316,1.6927857142857141,1.6766378041648744,1.7373919956002606,{"$f":"AVERAGE(G593:G599)","v":3.0228356424328147},0.9120260980085538,2.7845936379251093,-2.9834405800257042,null,0,0,-1.0040450739116316,-0.7604339799300996,0,2.5641025641025603,1.5770255386769978,5.247392801925453,null,null,4.916,2.6754999999999995,{"v":3.067,"d":"3.07"},3.315,3.015,2.952,4.651,4.494,null,4.494,{"$f":"AE596*'III. GDP shares, 1310-2018'!C598","v":0.31129424488663815},{"$f":"AF596*'III. GDP shares, 1310-2018'!D598","v":0.516111669816711},{"$f":"AG596*'III. GDP shares, 1310-2018'!E598","v":0.05865849734436017},{"$f":"AH596*'III. GDP shares, 1310-2018'!F598","v":0.5475800973488579},{"$f":"AI596*'III. GDP shares, 1310-2018'!G598","v":0.3466415165142233},{"$f":"AJ596*'III. GDP shares, 1310-2018'!H598","v":1.0552369822660228},{"$f":"AK596*'III. GDP shares, 1310-2018'!I598","v":0.16299009144704982},{"$f":"AL596*'III. GDP shares, 1310-2018'!J598","v":0.2336192887582921},null,null,{"$f":"U596*'III. GDP shares, 1310-2018'!C598","v":0},{"$f":"V596*'III. GDP shares, 1310-2018'!D598","v":0},{"$f":"W596*'III. GDP shares, 1310-2018'!E598","v":-0.0192030568313216},{"$f":"X596*'III. GDP shares, 1310-2018'!F598","v":-0.12561041108823634},{"$f":"Y596*'III. GDP shares, 1310-2018'!G598","v":0},{"$f":"Z596*'III. GDP shares, 1310-2018'!H598","v":0.9165771856247145},{"$f":"AA596*'III. GDP shares, 1310-2018'!I598","v":0.055265434694323136},{"$f":"AB596*'III. GDP shares, 1310-2018'!J598","v":0.2727841954208291},null,null,3.6356875,3.232132388382155,null,1.0998133478203087,0.9530052313579099,{"$f":"AVERAGE(BL593:BL599)","v":1.7392350363398352},2.0905685866919894,null,null,1.6162073707451352]
[{"$f":"'[1]Nominal weighted'!B597","v":1903},null,2.975711750629336,2.3869999999999996,0.07872780944982027,2.557739111901888,4.125398886672994,2.98,1.5313264676767244,-12.5022582710979,null,3.9667555852648633,1.8614047619047618,1.154083977445223,1.1721562841129898,{"$f":"AVERAGE(G594:G600)","v":2.8881857296266302},0.8297960348989726,2.6282352236596624,-0.10837394129579485,null,1.925288249370664,0.4,3.0272721905501796,0.7662608880981119,-1.0503988866729943,0,3.0136735323232755,17.471258271097902,null,null,4.901,2.7869999999999995,{"v":3.106,"d":"3.11"},3.324,3.075,2.98,4.545,4.969,null,4.969,{"$f":"AE597*'III. GDP shares, 1310-2018'!C599","v":0.3143717349235263},{"$f":"AF597*'III. GDP shares, 1310-2018'!D599","v":0.5142856056638475},{"$f":"AG597*'III. GDP shares, 1310-2018'!E599","v":0.05866393423786666},{"$f":"AH597*'III. GDP shares, 1310-2018'!F599","v":0.560390650047286},{"$f":"AI597*'III. GDP shares, 1310-2018'!G599","v":0.3492714230357573},{"$f":"AJ597*'III. GDP shares, 1310-2018'!H599","v":1.0800522880540646},{"$f":"AK597*'III. GDP shares, 1310-2018'!I599","v":0.1547199638312134},{"$f":"AL597*'III. GDP shares, 1310-2018'!J599","v":0.2672786579147306},null,null,{"$f":"U597*'III. GDP shares, 1310-2018'!C599","v":0.12349647157366546},{"$f":"V597*'III. GDP shares, 1310-2018'!D599","v":0.07381207113941123},{"$f":"W597*'III. GDP shares, 1310-2018'!E599","v":0.057176978978286636},{"$f":"X597*'III. GDP shares, 1310-2018'!F599","v":0.12918334452079172},{"$f":"Y597*'III. GDP shares, 1310-2018'!G599","v":-0.11930871996860223},{"$f":"Z597*'III. GDP shares, 1310-2018'!H599","v":0},{"$f":"AA597*'III. GDP shares, 1310-2018'!I599","v":0.10259086026845814},{"$f":"AB597*'III. GDP shares, 1310-2018'!J599","v":0.9397654382734321},null,null,3.7108749999999997,3.2990342577082927,null,1.306716444785443,3.1941692805958923,{"$f":"AVERAGE(BL594:BL600)","v":1.761308492639624},1.900198709714503,null,null,1.5518442783984132]
[{"$f":"'[1]Nominal weighted'!B598","v":1904},null,3.9008262924397306,3.0602499999999995,1.882502028089128,2.610448906106062,3.072,1.805000000000002,7.978081076937237,-9.005461181457813,null,3.1215617404689455,2.4830714285714284,1.1870227190105982,1.559671023235552,{"$f":"AVERAGE(G595:G601)","v":2.887188390442831},0.5960899593653116,2.604032749237646,1.6190602206213625,null,0.9421737075602694,-0.2,1.242497971910872,0.760551093893938,0,1.2499999999999982,-3.5460810769372366,14.133461181457813,null,null,4.843,2.8602499999999993,{"v":3.125,"d":"3.13"},3.371,3.072,3.055,4.432,5.128,null,5.128,{"$f":"AE598*'III. GDP shares, 1310-2018'!C600","v":0.3119337368339227},{"$f":"AF598*'III. GDP shares, 1310-2018'!D600","v":0.5282204064002642},{"$f":"AG598*'III. GDP shares, 1310-2018'!E600","v":0.059136970793821665},{"$f":"AH598*'III. GDP shares, 1310-2018'!F600","v":0.5880880130350576},{"$f":"AI598*'III. GDP shares, 1310-2018'!G600","v":0.3497350957944108},{"$f":"AJ598*'III. GDP shares, 1310-2018'!H600","v":1.0875920717083114},{"$f":"AK598*'III. GDP shares, 1310-2018'!I600","v":0.14959508358647167},{"$f":"AL598*'III. GDP shares, 1310-2018'!J600","v":0.2765642709694822},null,null,{"$f":"U598*'III. GDP shares, 1310-2018'!C600","v":0.06068465111417435},{"$f":"V598*'III. GDP shares, 1310-2018'!D600","v":-0.03693526135129897},{"$f":"W598*'III. GDP shares, 1310-2018'!E600","v":0.023512821208408283},{"$f":"X598*'III. GDP shares, 1310-2018'!F600","v":0.13268198802127726},{"$f":"Y598*'III. GDP shares, 1310-2018'!G600","v":0},{"$f":"Z598*'III. GDP shares, 1310-2018'!H600","v":0.44500493932418567},{"$f":"AA598*'III. GDP shares, 1310-2018'!I600","v":-0.11969230485307565},{"$f":"AB598*'III. GDP shares, 1310-2018'!J600","v":0.762248515586068},null,null,3.7357812499999996,3.350865649121742,null,1.2675053490497388,1.8228253597357067,{"$f":"AVERAGE(BL595:BL601)","v":1.6486163942556278},1.667171649702219,null,null,1.5182046323204403]
[{"$f":"'[1]Nominal weighted'!B599","v":1905},null,3.886620350092887,2.4105000000000008,2.2230086793672825,-1.748154355527694,3.027,0.5958641975308563,0.8613457091115939,-22.795246166021933,null,3.057769344152344,2.5165595238095233,1.5836815972177243,1.6957082929638534,{"$f":"AVERAGE(G596:G602)","v":2.7535711822112394},2.0068471073372813,3.334137682770891,0.05959987588551411,null,0.9333796499071132,0.4,0.9419913206327176,5.157154355527694,0,2.4691358024691437,3.492654290888406,27.11924616602193,null,null,4.82,2.8105000000000007,{"v":3.165,"d":"3.17"},3.409,3.027,3.065,4.354,4.324,null,4.324,{"$f":"AE599*'III. GDP shares, 1310-2018'!C601","v":0.3150637225634674},{"$f":"AF599*'III. GDP shares, 1310-2018'!D601","v":0.5137531306910615},{"$f":"AG599*'III. GDP shares, 1310-2018'!E601","v":0.0594144587579947},{"$f":"AH599*'III. GDP shares, 1310-2018'!F601","v":0.58383334088702},{"$f":"AI599*'III. GDP shares, 1310-2018'!G601","v":0.3370088737519939},{"$f":"AJ599*'III. GDP shares, 1310-2018'!H601","v":1.1264186009474286},{"$f":"AK599*'III. GDP shares, 1310-2018'!I601","v":0.13929689382158128},{"$f":"AL599*'III. GDP shares, 1310-2018'!J601","v":0.22036980504509174},null,null,{"$f":"U599*'III. GDP shares, 1310-2018'!C601","v":0.06101121723334461},{"$f":"V599*'III. GDP shares, 1310-2018'!D601","v":0.07311910773044816},{"$f":"W599*'III. GDP shares, 1310-2018'!E601","v":0.017683382139058946},{"$f":"X599*'III. GDP shares, 1310-2018'!F601","v":0.8832263587145145},{"$f":"Y599*'III. GDP shares, 1310-2018'!G601","v":0},{"$f":"Z599*'III. GDP shares, 1310-2018'!H601","v":0.907432462044535},{"$f":"AA599*'III. GDP shares, 1310-2018'!I601","v":0.11173998482162897},{"$f":"AB599*'III. GDP shares, 1310-2018'!J601","v":1.382114475156361},null,null,3.6218125,3.295158826465639,null,3.4363269878398914,5.064195198180876,{"$f":"AVERAGE(BL596:BL602)","v":1.199083009764516},1.5169070432540728,null,null,-0.5818021843348662]
[{"$f":"'[1]Nominal weighted'!B600","v":1906},null,3.0207554055874057,2.8585,0.9689867672130918,-2.134028065601116,2.0844506103567086,-1.7572771084337284,4.9544911001418726,23.708146682125633,null,3.2489746232020016,2.4936666666666665,1.3510612927413852,1.2510506268587618,{"$f":"AVERAGE(G597:G603)","v":2.757285467925525},0.5496702404085893,4.309596874163204,1.0296567704743562,null,0.9262445944125945,0,2.2360132327869082,5.622028065601116,1.0615493896432915,4.819277108433728,-0.7104911001418723,-19.220146682125634,null,null,3.947,2.8585,{"v":3.205,"d":"3.21"},3.488,3.146,3.062,4.244,4.488,null,4.488,{"$f":"AE600*'III. GDP shares, 1310-2018'!C602","v":0.2508603132352264},{"$f":"AF600*'III. GDP shares, 1310-2018'!D602","v":0.5060876349544055},{"$f":"AG600*'III. GDP shares, 1310-2018'!E602","v":0.058382787512849005},{"$f":"AH600*'III. GDP shares, 1310-2018'!F602","v":0.5765876311926114},{"$f":"AI600*'III. GDP shares, 1310-2018'!G602","v":0.3342450693599186},{"$f":"AJ600*'III. GDP shares, 1310-2018'!H602","v":1.1760746467084324},{"$f":"AK600*'III. GDP shares, 1310-2018'!I602","v":0.13380684803007914},{"$f":"AL600*'III. GDP shares, 1310-2018'!J602","v":0.2424146132818323},null,null,{"$f":"U600*'III. GDP shares, 1310-2018'!C602","v":0.05886952345750663},{"$f":"V600*'III. GDP shares, 1310-2018'!D602","v":0},{"$f":"W600*'III. GDP shares, 1310-2018'!E602","v":0.04073157112190847},{"$f":"X600*'III. GDP shares, 1310-2018'!F602","v":0.9293554601041647},{"$f":"Y600*'III. GDP shares, 1310-2018'!G602","v":0.11278374105858273},{"$f":"Z600*'III. GDP shares, 1310-2018'!H602","v":1.8510220844844},{"$f":"AA600*'III. GDP shares, 1310-2018'!I602","v":-0.02240070091032216},{"$f":"AB600*'III. GDP shares, 1310-2018'!J602","v":-1.0381560662138096},null,null,3.5548125,3.278459544275354,null,1.932205613102431,-0.6581906739237335,{"$f":"AVERAGE(BL597:BL603)","v":1.7692892218365626},1.5071237273139866,null,null,0.8401662962185183]
[{"$f":"'[1]Nominal weighted'!B601","v":1907},null,-1.8189816154667398,1.7990833333333336,-0.17882189546955107,2.979518473937733,1.8874692360701135,-0.07227586206897119,-4.50710288689712,15.217909804154132,null,2.957928984241001,2.469761904761905,1.43194086135857,1.3958021823013491,{"$f":"AVERAGE(G598:G604)","v":2.4627041136119323},0.6198130975514464,4.761117580482359,3.282999407910635,null,5.50498161546674,1.2,3.534821895469551,0.6794815260622665,1.2605307639298866,3.448275862068971,8.85510288689712,-10.448909804154132,null,null,3.686,2.9990833333333335,{"v":3.356,"d":"3.36"},3.659,3.148,3.376,4.348,4.769,null,4.769,{"$f":"AE601*'III. GDP shares, 1310-2018'!C603","v":0.2528238265219986},{"$f":"AF601*'III. GDP shares, 1310-2018'!D603","v":0.5247619877144183},{"$f":"AG601*'III. GDP shares, 1310-2018'!E603","v":0.05934202846020744},{"$f":"AH601*'III. GDP shares, 1310-2018'!F603","v":0.6126092629091952},{"$f":"AI601*'III. GDP shares, 1310-2018'!G603","v":0.3383760869188014},{"$f":"AJ601*'III. GDP shares, 1310-2018'!H603","v":1.2770020943709193},{"$f":"AK601*'III. GDP shares, 1310-2018'!I603","v":0.1371356045320611},{"$f":"AL601*'III. GDP shares, 1310-2018'!J603","v":0.25771588487918906},null,null,{"$f":"U601*'III. GDP shares, 1310-2018'!C603","v":0.37758831170796375},{"$f":"V601*'III. GDP shares, 1310-2018'!D603","v":0.20996895226562623},{"$f":"W601*'III. GDP shares, 1310-2018'!E603","v":0.06250402309973734},{"$f":"X601*'III. GDP shares, 1310-2018'!F603","v":0.1137624150974092},{"$f":"Y601*'III. GDP shares, 1310-2018'!G603","v":0.1354934775538},{"$f":"Z601*'III. GDP shares, 1310-2018'!H603","v":1.3043410834806763},{"$f":"AA601*'III. GDP shares, 1310-2018'!I603","v":0.2792893025731914},{"$f":"AB601*'III. GDP shares, 1310-2018'!J603","v":-0.5646571684211399},null,null,3.6676354166666663,3.4597667763067905,null,1.9182903973572645,1.7542855932175503,{"$f":"AVERAGE(BL598:BL604)","v":1.660161648316335},1.1945331501392669,null,null,1.2266833435007338]
[{"$f":"'[1]Nominal weighted'!B602","v":1908},null,4.5234532257837845,2.425083333333333,2.040322717962666,3.529,2.063679542378861,10.10872108843537,9.446847851102927,6.547501065421935,null,2.683019457634988,2.473559523809524,1.2993973418937765,0.43657672866814157,{"$f":"AVERAGE(G599:G605)","v":1.8685252136847343},0.5652040749950556,4.5458292124518405,2.7456513198072305,null,-0.8684532257837843,0.5,1.2066772820373337,0,1.037320457621139,-6.802721088435369,-5.258847851102928,-1.9095010654219349,null,null,3.655,2.925083333333333,{"v":3.247,"d":"3.25"},3.529,3.101,3.306,4.188,4.638,null,4.638,{"$f":"AE602*'III. GDP shares, 1310-2018'!C604","v":0.2653915756580227},{"$f":"AF602*'III. GDP shares, 1310-2018'!D604","v":0.5075632368445178},{"$f":"AG602*'III. GDP shares, 1310-2018'!E604","v":0.05939127651270568},{"$f":"AH602*'III. GDP shares, 1310-2018'!F604","v":0.6211061716455809},{"$f":"AI602*'III. GDP shares, 1310-2018'!G604","v":0.34256941454784146},{"$f":"AJ602*'III. GDP shares, 1310-2018'!H604","v":1.1868083332980892},{"$f":"AK602*'III. GDP shares, 1310-2018'!I604","v":0.14189031371786576},{"$f":"AL602*'III. GDP shares, 1310-2018'!J604","v":0.26083989387545997},null,null,{"$f":"U602*'III. GDP shares, 1310-2018'!C604","v":-0.06305887003448729},{"$f":"V602*'III. GDP shares, 1310-2018'!D604","v":0.08676047466075346},{"$f":"W602*'III. GDP shares, 1310-2018'!E604","v":0.02207148263599613},{"$f":"X602*'III. GDP shares, 1310-2018'!F604","v":0},{"$f":"Y602*'III. GDP shares, 1310-2018'!G604","v":0.11459344142720819},{"$f":"Z602*'III. GDP shares, 1310-2018'!H604","v":-2.442082902860782},{"$f":"AA602*'III. GDP shares, 1310-2018'!I604","v":-0.17817086231793666},{"$f":"AB602*'III. GDP shares, 1310-2018'!J604","v":-0.10738983511421632},null,null,3.573635416666667,3.385560216100084,null,-2.5672770716034643,-1.511940686385693,{"$f":"AVERAGE(BL599:BL605)","v":1.999237253156728},1.5360281527866004,null,null,5.5320345255197845]
[{"$f":"'[1]Nominal weighted'!B603","v":1909},null,6.254436953347609,2.51525,2.44270294257726,0.9628303171944586,3.041,-9.812340632603403,9.902188801069194,6.037005460196437,null,2.3921144926036084,2.1749047619047617,1.27576268202284,0.7342436929344007,{"$f":"AVERAGE(G600:G606)","v":1.9162394993990202},0.5401115460399841,5.61172323539089,5.847900966825944,null,-2.6324369533476095,0.5,0.80429705742274,2.5871696828055413,0,13.260340632603404,-5.724188801069193,-1.7190054601964373,null,null,3.622,3.01525,{"v":3.247,"d":"3.25"},3.55,3.041,3.448,4.178,4.318,null,4.318,{"$f":"AE603*'III. GDP shares, 1310-2018'!C605","v":0.26655517700273845},{"$f":"AF603*'III. GDP shares, 1310-2018'!D605","v":0.5035373017873562},{"$f":"AG603*'III. GDP shares, 1310-2018'!E605","v":0.05793987278681793},{"$f":"AH603*'III. GDP shares, 1310-2018'!F605","v":0.5997698969348005},{"$f":"AI603*'III. GDP shares, 1310-2018'!G605","v":0.3292321544548986},{"$f":"AJ603*'III. GDP shares, 1310-2018'!H605","v":1.3070179973908749},{"$f":"AK603*'III. GDP shares, 1310-2018'!I605","v":0.1354992895389289},{"$f":"AL603*'III. GDP shares, 1310-2018'!J605","v":0.22822692753305177},null,null,{"$f":"U603*'III. GDP shares, 1310-2018'!C605","v":-0.19372990006850405},{"$f":"V603*'III. GDP shares, 1310-2018'!D605","v":0.08349843326214347},{"$f":"W603*'III. GDP shares, 1310-2018'!E605","v":0.014351976960235772},{"$f":"X603*'III. GDP shares, 1310-2018'!F605","v":0.4371004208476395},{"$f":"Y603*'III. GDP shares, 1310-2018'!G605","v":0},{"$f":"Z603*'III. GDP shares, 1310-2018'!H605","v":5.026538241979741},{"$f":"AA603*'III. GDP shares, 1310-2018'!I605","v":-0.18564469021818306},{"$f":"AB603*'III. GDP shares, 1310-2018'!J605","v":-0.09085765043843738},null,null,3.5524062499999998,3.427778617429468,null,5.091256832324635,0.8845220197773057,{"$f":"AVERAGE(BL600:BL606)","v":1.8849840368016693},1.083380842740771,null,null,-2.08351708342038]
[{"$f":"'[1]Nominal weighted'!B604","v":1910},null,0.9383922779023317,2.219666666666667,0.644884789770114,3.571,2.0633294064778465,3.471,4.6919714119108065,3.271140190956052,null,2.4732922918054077,2.313333333333333,1.6861562076134216,2.1016867728495336,{"$f":"AVERAGE(G601:G607)","v":2.1197465550623478},1.0108916577404305,5.885391668856307,5.08034936402626,null,2.703607722097668,0.9,2.756115210229886,0,1.0266705935221534,0,-0.367971411910807,1.0298598090439481,null,null,3.642,3.119666666666667,{"v":3.401,"d":"3.40"},3.571,3.09,3.471,4.324,4.301,null,4.301,{"$f":"AE604*'III. GDP shares, 1310-2018'!C606","v":0.25665097424065375},{"$f":"AF604*'III. GDP shares, 1310-2018'!D606","v":0.5338434059021036},{"$f":"AG604*'III. GDP shares, 1310-2018'!E606","v":0.06305521178131436},{"$f":"AH604*'III. GDP shares, 1310-2018'!F606","v":0.6211549952841476},{"$f":"AI604*'III. GDP shares, 1310-2018'!G606","v":0.3121000518943539},{"$f":"AJ604*'III. GDP shares, 1310-2018'!H606","v":1.320647726573946},{"$f":"AK604*'III. GDP shares, 1310-2018'!I606","v":0.13445740921186705},{"$f":"AL604*'III. GDP shares, 1310-2018'!J606","v":0.22943455374340543},null,null,{"$f":"U604*'III. GDP shares, 1310-2018'!C606","v":0.19052266772128534},{"$f":"V604*'III. GDP shares, 1310-2018'!D606","v":0.15400974419656796},{"$f":"W604*'III. GDP shares, 1310-2018'!E606","v":0.0510989203983379},{"$f":"X604*'III. GDP shares, 1310-2018'!F606","v":0},{"$f":"Y604*'III. GDP shares, 1310-2018'!G606","v":0.10369706974649553},{"$f":"Z604*'III. GDP shares, 1310-2018'!H606","v":0},{"$f":"AA604*'III. GDP shares, 1310-2018'!I606","v":-0.011442294798695622},{"$f":"AB604*'III. GDP shares, 1310-2018'!J606","v":0.05493732287985747},null,null,3.614958333333334,3.4713443286317918,null,0.5428234301438486,1.006035240372856,{"$f":"AVERAGE(BL601:BL607)","v":1.5168262480646484},0.8755428281129293,null,null,2.5486872367824067]
[{"$f":"'[1]Nominal weighted'!B605","v":1911},null,1.976459606197638,3.086833333333333,0.9546973918355732,-4.104129269326391,-1.0872522994903884,1.4227368421052664,6.471062500723607,-12.766897798181642,null,3.304575379729228,2.596654761904762,2.2408450498233576,-0.8999552401025015,{"$f":"AVERAGE(G602:G608)","v":2.1660688898946927},1.399073923750284,6.916831454750827,5.943833399958586,null,1.753540393802362,0.1,2.5913026081644266,7.785129269326391,4.268252299490388,2.1052631578947336,-2.2160625007236074,17.31889779818164,null,null,3.73,3.186833333333333,{"v":3.546,"d":"3.55"},3.681,3.181,3.528,4.255,4.552,null,4.552,{"$f":"AE605*'III. GDP shares, 1310-2018'!C607","v":0.2682710529945911},{"$f":"AF605*'III. GDP shares, 1310-2018'!D607","v":0.5378547761065994},{"$f":"AG605*'III. GDP shares, 1310-2018'!E607","v":0.06531295930573638},{"$f":"AH605*'III. GDP shares, 1310-2018'!F607","v":0.6342878057877095},{"$f":"AI605*'III. GDP shares, 1310-2018'!G607","v":0.3380719031401777},{"$f":"AJ605*'III. GDP shares, 1310-2018'!H607","v":1.3281623120492208},{"$f":"AK605*'III. GDP shares, 1310-2018'!I607","v":0.1358764629022228},{"$f":"AL605*'III. GDP shares, 1310-2018'!J607","v":0.24533253534688115},null,null,{"$f":"U605*'III. GDP shares, 1310-2018'!C607","v":0.12611906914582027},{"$f":"V605*'III. GDP shares, 1310-2018'!D607","v":0.016877405243656697},{"$f":"W605*'III. GDP shares, 1310-2018'!E607","v":0.04772860738744832},{"$f":"X605*'III. GDP shares, 1310-2018'!F607","v":1.3414867052471366},{"$f":"Y605*'III. GDP shares, 1310-2018'!G607","v":0.45362344481960243},{"$f":"Z605*'III. GDP shares, 1310-2018'!H607","v":0.7925541902668688},{"$f":"AA605*'III. GDP shares, 1310-2018'!I607","v":-0.07076633000436623},{"$f":"AB605*'III. GDP shares, 1310-2018'!J607","v":0.9334114908263225},null,null,3.7074791666666664,3.5531698076331386,null,3.6410345829324893,4.2132903782670414,{"$f":"AVERAGE(BL602:BL608)","v":1.7124324282013956},0.8377873213458694,null,null,-0.6088421461622926]
[{"$f":"'[1]Nominal weighted'!B606","v":1912},null,1.8502855948732317,0.31991666666666596,2.057566060270726,0.3355143943361192,3.361,0.4202164948453557,8.322603869684944,-1.0794986368909365,null,2.045045894552811,1.0156428571428573,0.34923550416221083,-2.3205015125130193,{"$f":"AVERAGE(G603:G609)","v":-0.32453535487761165},0.1886569082878038,6.711125932071611,5.151623173125006,null,1.7247144051267684,3,1.7014339397292737,3.5604856056638807,0,3.092783505154644,-3.8716038696849435,5.957498636890937,null,null,3.575,3.319916666666666,{"v":3.759,"d":"3.76"},3.896,3.361,3.513,4.451,4.878,null,4.878,{"$f":"AE606*'III. GDP shares, 1310-2018'!C608","v":0.2494070000578691},{"$f":"AF606*'III. GDP shares, 1310-2018'!D608","v":0.5470908886350089},{"$f":"AG606*'III. GDP shares, 1310-2018'!E608","v":0.06872406359237035},{"$f":"AH606*'III. GDP shares, 1310-2018'!F608","v":0.6741377409138302},{"$f":"AI606*'III. GDP shares, 1310-2018'!G608","v":0.3721883155988911},{"$f":"AJ606*'III. GDP shares, 1310-2018'!H608","v":1.332069341586778},{"$f":"AK606*'III. GDP shares, 1310-2018'!I608","v":0.13573221667318386},{"$f":"AL606*'III. GDP shares, 1310-2018'!J608","v":0.2620189663706786},null,null,{"$f":"U606*'III. GDP shares, 1310-2018'!C608","v":0.12032331349349917},{"$f":"V606*'III. GDP shares, 1310-2018'!D608","v":0.4943716456452302},{"$f":"W606*'III. GDP shares, 1310-2018'!E608","v":0.03110653212880336},{"$f":"X606*'III. GDP shares, 1310-2018'!F608","v":0.6160825777100768},{"$f":"Y606*'III. GDP shares, 1310-2018'!G608","v":0},{"$f":"Z606*'III. GDP shares, 1310-2018'!H608","v":1.1727304547058908},{"$f":"AA606*'III. GDP shares, 1310-2018'!I608","v":-0.11806366553871353},{"$f":"AB606*'III. GDP shares, 1310-2018'!J608","v":0.32000361520969456},null,null,3.844114583333333,3.6413685334286097,null,2.6365544733544812,1.8956640278600703,{"$f":"AVERAGE(BL603:BL609)","v":3.232256402392695},2.3501508247560414,null,null,0.9520948170843497]
[{"$f":"'[1]Nominal weighted'!B607","v":1913},null,3.589,3.8275,3.8417414463471626,7.438073493804815,3.509,1.5381836734693954,6.870170134399789,18.335285462527846,null,-1.6862208975687119,-1.31275,-1.0734709431365843,-1.5213344149693706,{"$f":"AVERAGE(G604:G610)","v":-2.1947061363460922},0.30336853818815285,4.50914502208048,1.4927310930245647,null,0,-0.4,-0.08274144634716264,-3.438073493804815,0,2.0408163265306047,-1.768170134399789,-13.256285462527845,null,null,3.589,3.4275,{"v":3.759,"d":"3.76"},4,3.509,3.579,5.102,5.079,null,5.079,{"$f":"AE607*'III. GDP shares, 1310-2018'!C609","v":0.2524384326406741},{"$f":"AF607*'III. GDP shares, 1310-2018'!D609","v":0.5671001826793463},{"$f":"AG607*'III. GDP shares, 1310-2018'!E609","v":0.06909834851978167},{"$f":"AH607*'III. GDP shares, 1310-2018'!F609","v":0.6992847514308654},{"$f":"AI607*'III. GDP shares, 1310-2018'!G609","v":0.3734701717038532},{"$f":"AJ607*'III. GDP shares, 1310-2018'!H609","v":1.3639913647178417},{"$f":"AK607*'III. GDP shares, 1310-2018'!I609","v":0.1565397040299948},{"$f":"AL607*'III. GDP shares, 1310-2018'!J609","v":0.2680713237623106},null,null,{"$f":"U607*'III. GDP shares, 1310-2018'!C609","v":0},{"$f":"V607*'III. GDP shares, 1310-2018'!D609","v":-0.06618236996987265},{"$f":"W607*'III. GDP shares, 1310-2018'!E609","v":-0.001520962302933509},{"$f":"X607*'III. GDP shares, 1310-2018'!F609","v":-0.6010480921290868},{"$f":"Y607*'III. GDP shares, 1310-2018'!G609","v":0},{"$f":"Z607*'III. GDP shares, 1310-2018'!H609","v":0.7777747545020764},{"$f":"AA607*'III. GDP shares, 1310-2018'!I609","v":-0.05425104459302608},{"$f":"AB607*'III. GDP shares, 1310-2018'!J609","v":-0.6996711935638735},null,null,4.0055625,3.749994279484668,null,-0.6448989080567161,-2.113056776318626,{"$f":"AVERAGE(BL604:BL610)","v":4.472000807637383},4.316739538769517,null,null,3.761610634892165]
[{"$f":"'[1]Nominal weighted'!B608","v":1914},null,4,3.7823333333333333,3.704,-18.031975616726513,2.211725579896528,2.6450000000000036,2.7129756143645305,21.262298055680407,null,-7.479090393033104,-4.575238095238096,-1.500460936386386,-1.178620129255085,{"$f":"AVERAGE(G605:G611)","v":-6.505606936466024},-2.190695501220714,2.2650587050276485,-4.6925043169120375,null,0,-0.3,0,22.176975616726512,1.9492744201034715,0.9999999999999963,2.8000243856354694,-15.706298055680406,null,null,4,3.4823333333333335,{"v":3.704,"d":"3.70"},4.145,4.161,3.645,5.513,5.556,null,5.556,{"$f":"AE608*'III. GDP shares, 1310-2018'!C610","v":0.30024773411942374},{"$f":"AF608*'III. GDP shares, 1310-2018'!D610","v":0.6215132453673463},{"$f":"AG608*'III. GDP shares, 1310-2018'!E610","v":0.07075473541601057},{"$f":"AH608*'III. GDP shares, 1310-2018'!F610","v":0.6593781436238126},{"$f":"AI608*'III. GDP shares, 1310-2018'!G610","v":0.4394023081824339},{"$f":"AJ608*'III. GDP shares, 1310-2018'!H610","v":1.3693848133903874},{"$f":"AK608*'III. GDP shares, 1310-2018'!I610","v":0.17814748000202987},{"$f":"AL608*'III. GDP shares, 1310-2018'!J610","v":0.3037962918079164},null,null,{"$f":"U608*'III. GDP shares, 1310-2018'!C610","v":0},{"$f":"V608*'III. GDP shares, 1310-2018'!D610","v":-0.05354282768551849},{"$f":"W608*'III. GDP shares, 1310-2018'!E610","v":0},{"$f":"X608*'III. GDP shares, 1310-2018'!F610","v":3.527868036995823},{"$f":"Y608*'III. GDP shares, 1310-2018'!G610","v":0.20584371052017322},{"$f":"Z608*'III. GDP shares, 1310-2018'!H610","v":0.3756885633444122},{"$f":"AA608*'III. GDP shares, 1310-2018'!I610","v":0.09048019014061143},{"$f":"AB608*'III. GDP shares, 1310-2018'!J610","v":-0.8588040150010069},null,null,4.275791666666667,3.942624751909361,null,3.2875336583144943,1.4899970458481304,{"$f":"AVERAGE(BL605:BL611)","v":7.538231697943644},7.5428649385307125,null,null,-0.01996497945799902]
[{"$f":"'[1]Nominal weighted'!B609","v":1915},null,-4.2932531704511305,-8.642,-11.20094410166536,-6.414823906873626,-15.370550171027269,1.635801980198009,8.006909192348402,1.0020294775868779,null,-12.443800702689277,-7.526404761904763,-3.762653410765054,0.2605411949343995,{"$f":"AVERAGE(G606:G612)","v":-9.782301080607791},-4.706080222147119,0.3811534452917866,-12.20323873839869,null,8.47325317045113,12.5,14.99994410166536,12.239823906873626,20.076550171027268,1.980198019801991,-2.4319091923484026,4.758970522413122,null,null,4.18,3.8580000000000005,{"v":3.799,"d":"3.80"},5.825,4.706,3.616,5.575,5.761,null,5.761,{"$f":"AE609*'III. GDP shares, 1310-2018'!C611","v":0.3407980223915125},{"$f":"AF609*'III. GDP shares, 1310-2018'!D611","v":0.7222164871635588},{"$f":"AG609*'III. GDP shares, 1310-2018'!E611","v":0.07285522724247412},{"$f":"AH609*'III. GDP shares, 1310-2018'!F611","v":0.8543515644417246},{"$f":"AI609*'III. GDP shares, 1310-2018'!G611","v":0.47267645439946615},{"$f":"AJ609*'III. GDP shares, 1310-2018'!H611","v":1.3562590763983375},{"$f":"AK609*'III. GDP shares, 1310-2018'!I611","v":0.17778520185113236},{"$f":"AL609*'III. GDP shares, 1310-2018'!J611","v":0.3342519791852177},null,null,{"$f":"U609*'III. GDP shares, 1310-2018'!C611","v":0.6908296468211386},{"$f":"V609*'III. GDP shares, 1310-2018'!D611","v":2.339996394386854},{"$f":"W609*'III. GDP shares, 1310-2018'!E611","v":0.28766105189556174},{"$f":"X609*'III. GDP shares, 1310-2018'!F611","v":1.7952124812581465},{"$f":"Y609*'III. GDP shares, 1310-2018'!G611","v":2.0165135043379014},{"$f":"Z609*'III. GDP shares, 1310-2018'!H611","v":0.7427161331367437},{"$f":"AA609*'III. GDP shares, 1310-2018'!I611","v":-0.07755290881529776},{"$f":"AB609*'III. GDP shares, 1310-2018'!J611","v":0.27611444471458},null,null,4.665,4.331194013073424,null,8.071490747735629,9.074603837485512,{"$f":"AVERAGE(BL606:BL612)","v":10.294472165419863},10.696261725012002,null,null,-2.1225168274389095]
[{"$f":"'[1]Nominal weighted'!B610","v":1916},null,-19.864430591503055,-13.783500000000002,-7.5162421885143065,6.557,-10.050195470279363,-9.00935922330096,-5.511677568868725,-19.57523910050665,null,-12.363691872552725,-8.352511904761906,-5.103038741383663,1.126039138600668,{"$f":"AVERAGE(G607:G613)","v":-12.433862399094389},-6.144033227904246,-1.7258737133022675,-12.143538333675455,null,24.219430591503055,18.1,11.304242188514307,0,14.968195470279364,12.62135922330096,10.767677568868725,25.22423910050665,null,null,4.355,4.3165,{"v":3.788,"d":"3.79"},6.557,4.918,3.612,5.256,5.649,null,5.649,{"$f":"AE610*'III. GDP shares, 1310-2018'!C612","v":0.36772405189801133},{"$f":"AF610*'III. GDP shares, 1310-2018'!D612","v":0.7622949226307537},{"$f":"AG610*'III. GDP shares, 1310-2018'!E612","v":0.0688556725382841},{"$f":"AH610*'III. GDP shares, 1310-2018'!F612","v":0.8965105357932642},{"$f":"AI610*'III. GDP shares, 1310-2018'!G612","v":0.4790193537851669},{"$f":"AJ610*'III. GDP shares, 1310-2018'!H612","v":1.4231658381544392},{"$f":"AK610*'III. GDP shares, 1310-2018'!I612","v":0.1619121492232805},{"$f":"AL610*'III. GDP shares, 1310-2018'!J612","v":0.3493487787586486},null,null,{"$f":"U610*'III. GDP shares, 1310-2018'!C612","v":2.0450211599931465},{"$f":"V610*'III. GDP shares, 1310-2018'!D612","v":3.1964642881076437},{"$f":"W610*'III. GDP shares, 1310-2018'!E612","v":0.20548078099941847},{"$f":"X610*'III. GDP shares, 1310-2018'!F612","v":0},{"$f":"Y610*'III. GDP shares, 1310-2018'!G612","v":1.4579209681787888},{"$f":"Z610*'III. GDP shares, 1310-2018'!H612","v":4.972947751294954},{"$f":"AA610*'III. GDP shares, 1310-2018'!I612","v":0.3317004979678165},{"$f":"AB610*'III. GDP shares, 1310-2018'!J612","v":1.5599322224956897},null,null,4.8064375,4.508831302781849,null,13.769467669037457,14.650643017871632,{"$f":"AVERAGE(BL607:BL613)","v":11.687203056103469},11.84144632223544,null,null,-6.8264670007787185]
[{"$f":"'[1]Nominal weighted'!B611","v":1917},null,-39.61169419034841,-20.61775,-2.344045162978498,5.97,-28.11297619436168,-13.987448275862068,-11.016632807459004,-40.02550767860017,null,{"$f":"AVERAGE(C608:C614)","v":-20.318087076932215},-10.332726190476192,-5.843675462678831,0.9174572109142656,{"$f":"AVERAGE(G608:G614)","v":-19.17646691679267},-5.970274130614537,-3.430949832012228,-9.951435498452838,null,44.02569419034841,25.2,6.250045162978498,0,33.24097619436168,18.103448275862068,16.201632807459003,45.68950767860017,null,null,4.414,4.582249999999999,{"v":3.906,"d":"3.91"},5.97,5.128,4.116,5.185,5.664,null,5.664,{"$f":"AE611*'III. GDP shares, 1310-2018'!C613","v":0.3975932020051492},{"$f":"AF611*'III. GDP shares, 1310-2018'!D613","v":0.8318465087563703},{"$f":"AG611*'III. GDP shares, 1310-2018'!E613","v":0.06771480422125677},{"$f":"AH611*'III. GDP shares, 1310-2018'!F613","v":0.8326285029286086},{"$f":"AI611*'III. GDP shares, 1310-2018'!G613","v":0.4311567212630816},{"$f":"AJ611*'III. GDP shares, 1310-2018'!H613","v":1.6109543426634143},{"$f":"AK611*'III. GDP shares, 1310-2018'!I613","v":0.1607299837130774},{"$f":"AL611*'III. GDP shares, 1310-2018'!J613","v":0.3688208704395083},null,null,{"$f":"U611*'III. GDP shares, 1310-2018'!C613","v":3.965635868518378},{"$f":"V611*'III. GDP shares, 1310-2018'!D613","v":4.574724648515584},{"$f":"W611*'III. GDP shares, 1310-2018'!E613","v":0.10835140414365126},{"$f":"X611*'III. GDP shares, 1310-2018'!F613","v":0},{"$f":"Y611*'III. GDP shares, 1310-2018'!G613","v":2.7948655045914834},{"$f":"Z611*'III. GDP shares, 1310-2018'!H613","v":7.085478284057944},{"$f":"AA611*'III. GDP shares, 1310-2018'!I613","v":0.5022349425782345},{"$f":"AB611*'III. GDP shares, 1310-2018'!J613","v":2.9751490098824},null,null,4.870656250000001,4.701444935990467,null,22.006439662287676,23.588913038701225,{"$f":"AVERAGE(BL608:BL614)","v":13.538186630102503},14.225518249035417,null,null,-13.562116586537995]
[{"$f":"'[1]Nominal weighted'!B612","v":1918},null,-32.77651256139558,-17.571333333333335,-14.880649928815105,5.97,-24.024111308482755,-16.184956204379567,-6.716274317427429,-65.34203874858821,null,-21.855524201375403,-8.901666666666667,-3.521399978148096,4.307882299018054,{"$f":"AVERAGE(G609:G615)","v":-15.303346385117582},-4.163168092322935,-2.29639889936055,-8.675394610333266,null,37.11751256139558,22,19.117649928815105,0,28.898111308482754,20.437956204379567,11.851274317427428,70.8740387485882,null,null,4.341,4.428666666666666,{"v":4.237,"d":"4.24"},5.97,4.874,4.253,5.135,5.532,null,5.532,{"$f":"AE612*'III. GDP shares, 1310-2018'!C614","v":0.3891532868935909},{"$f":"AF612*'III. GDP shares, 1310-2018'!D614","v":0.793303932379218},{"$f":"AG612*'III. GDP shares, 1310-2018'!E614","v":0.06756144911804245},{"$f":"AH612*'III. GDP shares, 1310-2018'!F614","v":0.8185026944900373},{"$f":"AI612*'III. GDP shares, 1310-2018'!G614","v":0.31702740018150966},{"$f":"AJ612*'III. GDP shares, 1310-2018'!H614","v":1.7796108969128346},{"$f":"AK612*'III. GDP shares, 1310-2018'!I614","v":0.15499086049661948},{"$f":"AL612*'III. GDP shares, 1310-2018'!J614","v":0.356880677322407},null,null,{"$f":"U612*'III. GDP shares, 1310-2018'!C614","v":3.3274365387194744},{"$f":"V612*'III. GDP shares, 1310-2018'!D614","v":3.94084446312121},{"$f":"W612*'III. GDP shares, 1310-2018'!E614","v":0.3048421366349279},{"$f":"X612*'III. GDP shares, 1310-2018'!F614","v":0},{"$f":"Y612*'III. GDP shares, 1310-2018'!G614","v":1.8796662081009792},{"$f":"Z612*'III. GDP shares, 1310-2018'!H614","v":8.551989083456654},{"$f":"AA612*'III. GDP shares, 1310-2018'!I614","v":0.357709679540324},{"$f":"AB612*'III. GDP shares, 1310-2018'!J614","v":4.572229745692458},null,null,4.846333333333334,4.67703119779426,null,22.934717855266026,26.287067883636077,{"$f":"AVERAGE(BL609:BL615)","v":11.501380312931056},12.686222304883543,null,null,-15.110146126729775]
[{"$f":"'[1]Nominal weighted'!B613","v":1919},null,2.411047405829092,-5.462833333333332,-7.325131254059529,6.394,-15.199929229406186,-9.645454545454536,-6.426586240473438,-0.6615958038282983,null,-23.33169266371352,-5.039726190476192,-0.033384766574619515,5.574428571428571,{"$f":"AVERAGE(G610:G616)","v":-11.586543132608655},-3.4494056997335485,-2.323568817835502,-5.509961828088385,null,1.9109525941709078,10.1,13.615131254059529,0,20.241929229406185,14.545454545454536,11.703586240473438,7.178595803828299,null,null,4.322,4.637166666666667,6.29,6.394,5.042,4.9,5.277,6.517,null,6.517,{"$f":"AE613*'III. GDP shares, 1310-2018'!C615","v":0.37771570728534004},{"$f":"AF613*'III. GDP shares, 1310-2018'!D615","v":0.8666544510080901},{"$f":"AG613*'III. GDP shares, 1310-2018'!E615","v":0.14548964197093803},{"$f":"AH613*'III. GDP shares, 1310-2018'!F615","v":0},{"$f":"AI613*'III. GDP shares, 1310-2018'!G615","v":0.45236619938143274},{"$f":"AJ613*'III. GDP shares, 1310-2018'!H615","v":2.4208859971156262},{"$f":"AK613*'III. GDP shares, 1310-2018'!I615","v":0.18760430889346164},{"$f":"AL613*'III. GDP shares, 1310-2018'!J615","v":0.5425635783351751},null,null,{"$f":"U613*'III. GDP shares, 1310-2018'!C615","v":0.1670052778102776},{"$f":"V613*'III. GDP shares, 1310-2018'!D615","v":1.8876203044635824},{"$f":"W613*'III. GDP shares, 1310-2018'!E615","v":0.31492218943409367},{"$f":"X613*'III. GDP shares, 1310-2018'!F615","v":0},{"$f":"Y613*'III. GDP shares, 1310-2018'!G615","v":1.8160976980671182},{"$f":"Z613*'III. GDP shares, 1310-2018'!H615","v":7.186303516484229},{"$f":"AA613*'III. GDP shares, 1310-2018'!I615","v":0.41607792461986853},{"$f":"AB613*'III. GDP shares, 1310-2018'!J615","v":0.5976437972605423},null,null,5.422395833333334,4.993279883990064,null,12.385670708139711,9.911956208424112,{"$f":"AVERAGE(BL610:BL616)","v":9.737052491130495},10.859551756426422,null,null,-6.371424970694154]
[{"$f":"'[1]Nominal weighted'!B614","v":1920},null,-52.09176643065642,-10.034,-1.3427156027190223,5.978,-43.68923162388799,2.7544973544973548,-5.065362696569935,33.68000530908616,null,-19.68817350830404,-1.5997738095238094,1.7964574222067287,4.637714285714286,{"$f":"AVERAGE(G611:G617)","v":-12.156535394224212},-1.8790492257370484,-1.139040665704964,-2.596443598510604,null,56.87476643065642,15.4,8.202715602719023,0,48.82623162388799,2.6455026455026456,10.787362696569936,-26.133005309086162,null,null,4.783,5.366,6.86,5.978,5.137,5.4,5.722,7.547,null,7.547,{"$f":"AE614*'III. GDP shares, 1310-2018'!C616","v":0.3860572045840314},{"$f":"AF614*'III. GDP shares, 1310-2018'!D616","v":0.9531713676438223},{"$f":"AG614*'III. GDP shares, 1310-2018'!E616","v":0.16537036148852852},{"$f":"AH614*'III. GDP shares, 1310-2018'!F616","v":0},{"$f":"AI614*'III. GDP shares, 1310-2018'!G616","v":0.5392993943055092},{"$f":"AJ614*'III. GDP shares, 1310-2018'!H616","v":2.673232662665284},{"$f":"AK614*'III. GDP shares, 1310-2018'!I616","v":0.22064881269749756},{"$f":"AL614*'III. GDP shares, 1310-2018'!J616","v":0.5959076659913444},null,null,{"$f":"U614*'III. GDP shares, 1310-2018'!C616","v":4.590615375201532},{"$f":"V614*'III. GDP shares, 1310-2018'!D616","v":2.735527219849956},{"$f":"W614*'III. GDP shares, 1310-2018'!E616","v":0.19773849043866437},{"$f":"X614*'III. GDP shares, 1310-2018'!F616","v":0},{"$f":"Y614*'III. GDP shares, 1310-2018'!G616","v":5.12594065426967},{"$f":"Z614*'III. GDP shares, 1310-2018'!H616","v":1.3096377928009426},{"$f":"AA614*'III. GDP shares, 1310-2018'!I616","v":0.41597671638158545},{"$f":"AB614*'III. GDP shares, 1310-2018'!J616","v":-2.063450139005823},null,null,5.849125,5.533687469376018,null,12.311986109936527,14.575446711281236,{"$f":"AVERAGE(BL611:BL617)","v":8.182165346308858},9.18770526414141,null,null,-4.995942788354377]
[{"$f":"'[1]Nominal weighted'!B615","v":1921},null,-6.762059871102311,13.79975,19.959928391715156,5.701,29.32356930162217,15.294742268041226,10.654832142926278,30.19458427251743,null,-15.522454027976371,2.070380952380952,2.673931797552686,5.394795219709223,{"$f":"AVERAGE(G612:G618)","v":-8.805632183055886},0.6848719565289618,0.623217553268861,5.096161766585904,null,11.75305987110231,-8.6,-14.079928391715155,0,-23.839569301622173,-10.824742268041227,-4.793832142926279,-23.895584272517432,null,null,4.991,5.19975,5.88,5.701,5.484,4.47,5.861,6.299,null,6.299,{"$f":"AE615*'III. GDP shares, 1310-2018'!C617","v":0.4048669447677676},{"$f":"AF615*'III. GDP shares, 1310-2018'!D617","v":0.8660400258454934},{"$f":"AG615*'III. GDP shares, 1310-2018'!E617","v":0.15352516503462316},{"$f":"AH615*'III. GDP shares, 1310-2018'!F617","v":0},{"$f":"AI615*'III. GDP shares, 1310-2018'!G617","v":0.5632633537522393},{"$f":"AJ615*'III. GDP shares, 1310-2018'!H617","v":2.2070800247287385},{"$f":"AK615*'III. GDP shares, 1310-2018'!I617","v":0.2363566880807991},{"$f":"AL615*'III. GDP shares, 1310-2018'!J617","v":0.5632909149295082},null,null,{"$f":"U615*'III. GDP shares, 1310-2018'!C617","v":0.953401210516098},{"$f":"V615*'III. GDP shares, 1310-2018'!D617","v":-1.432365829563199},{"$f":"W615*'III. GDP shares, 1310-2018'!E617","v":-0.36762301530846014},{"$f":"X615*'III. GDP shares, 1310-2018'!F617","v":0},{"$f":"Y615*'III. GDP shares, 1310-2018'!G617","v":-2.448569612844755},{"$f":"Z615*'III. GDP shares, 1310-2018'!H617","v":-5.344758933474419},{"$f":"AA615*'III. GDP shares, 1310-2018'!I617","v":-0.193320984220668},{"$f":"AB615*'III. GDP shares, 1310-2018'!J617","v":-2.1368733969902385},null,null,5.485718749999999,4.99442311713917,null,-10.97011056188564,-9.285074563214994,{"$f":"AVERAGE(BL612:BL618)","v":5.220355442211288},6.177013489673327,null,null,13.666127823616117]
[{"$f":"'[1]Nominal weighted'!B616","v":1922},null,-14.626432406817944,18.391583333333333,13.215162379348971,2.451,10.64707259653521,6.632138728323712,7.816719763023741,23.160058953301046,null,-12.068897080191826,5.171904761904762,5.732748498830034,5.059955953163099,{"$f":"AVERAGE(G613:G619)","v":-6.561304016973077},3.0444074010852518,2.93820165075034,17.75041370710354,null,19.251432406817944,-14,-7.405162379348972,0,-5.562072596535209,-2.3121387283237116,-2.2227197630237403,-17.446058953301044,null,null,4.625,4.391583333333334,5.81,2.451,5.085,4.32,5.594,5.714,null,5.714,{"$f":"AE616*'III. GDP shares, 1310-2018'!C618","v":0.37171891164764936},{"$f":"AF616*'III. GDP shares, 1310-2018'!D618","v":0.7246902181914314},{"$f":"AG616*'III. GDP shares, 1310-2018'!E618","v":0.15070579405383408},{"$f":"AH616*'III. GDP shares, 1310-2018'!F618","v":0},{"$f":"AI616*'III. GDP shares, 1310-2018'!G618","v":0.5804344950961527},{"$f":"AJ616*'III. GDP shares, 1310-2018'!H618","v":2.1206641155360564},{"$f":"AK616*'III. GDP shares, 1310-2018'!I618","v":0.22159131239558663},{"$f":"AL616*'III. GDP shares, 1310-2018'!J618","v":0.480079574090605},null,null,{"$f":"U616*'III. GDP shares, 1310-2018'!C618","v":1.54726951392879},{"$f":"V616*'III. GDP shares, 1310-2018'!D618","v":-2.3102517439830064},{"$f":"W616*'III. GDP shares, 1310-2018'!E618","v":-0.19208276703569124},{"$f":"X616*'III. GDP shares, 1310-2018'!F618","v":0},{"$f":"Y616*'III. GDP shares, 1310-2018'!G618","v":-0.6348906193231193},{"$f":"Z616*'III. GDP shares, 1310-2018'!H618","v":-1.1350161183558485},{"$f":"AA616*'III. GDP shares, 1310-2018'!I618","v":-0.08804708426457596},{"$f":"AB616*'III. GDP shares, 1310-2018'!J618","v":-1.465785185834853},null,null,4.748822916666667,4.649884421011316,null,-4.278804004868304,-3.7120900017143414,{"$f":"AVERAGE(BL613:BL619)","v":2.4048175174864532},2.6631128072076513,null,null,5.893746463705182]
[{"$f":"'[1]Nominal weighted'!B617","v":1923},null,5.640203496363287,10.296166666666668,5.292653132955126,0,-14.040141301588264,1.9831360946745429,2.780019496045036,0.819388506537817,null,-11.74851737227064,6.713011904761906,8.109840063345391,4.615702017189814,{"$f":"AVERAGE(G614:G620)","v":-7.78671464340505},5.090517826972212,3.9080763971014667,20.281604283834586,null,-1.0462034963632865,-6,0.737346867044875,0,19.674141301588264,2.3668639053254568,2.8299805039549644,5.019611493462183,null,null,4.594,4.296166666666667,6.03,0,5.634,4.35,5.61,5.839,null,5.839,{"$f":"AE617*'III. GDP shares, 1310-2018'!C619","v":0.3618887835888066},{"$f":"AF617*'III. GDP shares, 1310-2018'!D619","v":0.6760017531847177},{"$f":"AG617*'III. GDP shares, 1310-2018'!E619","v":0.14813691565725748},{"$f":"AH617*'III. GDP shares, 1310-2018'!F619","v":0},{"$f":"AI617*'III. GDP shares, 1310-2018'!G619","v":0.6251751688160243},{"$f":"AJ617*'III. GDP shares, 1310-2018'!H619","v":2.2339442221772385},{"$f":"AK617*'III. GDP shares, 1310-2018'!I619","v":0.20804933839938125},{"$f":"AL617*'III. GDP shares, 1310-2018'!J619","v":0.45374046978700455},null,null,{"$f":"U617*'III. GDP shares, 1310-2018'!C619","v":-0.08241386823797696},{"$f":"V617*'III. GDP shares, 1310-2018'!D619","v":-0.9440998997032174},{"$f":"W617*'III. GDP shares, 1310-2018'!E619","v":0.01811414438699331},{"$f":"X617*'III. GDP shares, 1310-2018'!F619","v":0},{"$f":"Y617*'III. GDP shares, 1310-2018'!G619","v":2.1831353584541637},{"$f":"Z617*'III. GDP shares, 1310-2018'!H619","v":1.2155038956279676},{"$f":"AA617*'III. GDP shares, 1310-2018'!I619","v":0.10495108226933651},{"$f":"AB617*'III. GDP shares, 1310-2018'!J619","v":0.3900669424887444},null,null,4.544145833333333,4.70693665161043,null,2.885257655286011,2.9477175718765567,{"$f":"AVERAGE(BL614:BL620)","v":0.9257416451703292},1.6009007141183142,null,null,0.20157734343648448]
[{"$f":"'[1]Nominal weighted'!B618","v":1924},null,-10.451657828054737,5.073333333333334,3.798275464443204,11.269566537964558,-4.656653716183382,3.96,1.3191747253577732,13.822729877075382,null,-0.8509395417817076,9.14045238095238,8.73121879145488,3.930194465578563,{"$f":"AVERAGE(G615:G621)","v":0.9713965101476093},5.472716348565406,5.957547034644196,16.49069517775683,null,14.803657828054737,-0.7,1.8017245355567955,-3.299566537964558,10.680653716183382,0,4.398825274642227,-7.572729877075382,null,null,4.352,4.373333333333334,{"v":5.6,"d":"5.60"},7.97,6.024,3.96,5.718,6.25,null,6.25,{"$f":"AE618*'III. GDP shares, 1310-2018'!C620","v":0.2907759288750617},{"$f":"AF618*'III. GDP shares, 1310-2018'!D620","v":0.6018283095343736},{"$f":"AG618*'III. GDP shares, 1310-2018'!E620","v":0.12398833944125662},{"$f":"AH618*'III. GDP shares, 1310-2018'!F620","v":0.9952141085269838},{"$f":"AI618*'III. GDP shares, 1310-2018'!G620","v":0.6318859181199639},{"$f":"AJ618*'III. GDP shares, 1310-2018'!H620","v":1.7603815372962632},{"$f":"AK618*'III. GDP shares, 1310-2018'!I620","v":0.18314320769928324},{"$f":"AL618*'III. GDP shares, 1310-2018'!J620","v":0.4193557574975959},null,null,{"$f":"U618*'III. GDP shares, 1310-2018'!C620","v":0.9890963593063407},{"$f":"V618*'III. GDP shares, 1310-2018'!D620","v":-0.09632922637364211},{"$f":"W618*'III. GDP shares, 1310-2018'!E620","v":0.039891577373974356},{"$f":"X618*'III. GDP shares, 1310-2018'!F620","v":-0.4120169599254534},{"$f":"Y618*'III. GDP shares, 1310-2018'!G620","v":1.1203444023193794},{"$f":"Z618*'III. GDP shares, 1310-2018'!H620","v":0},{"$f":"AA618*'III. GDP shares, 1310-2018'!I620","v":0.14089104073218925},{"$f":"AB618*'III. GDP shares, 1310-2018'!J620","v":-0.5081068598280997},null,null,5.530916666666666,5.006573106990781,null,1.2737703336046882,2.5140706174246503,{"$f":"AVERAGE(BL615:BL621)","v":-1.2995185717049402},-1.1211214554385793,null,null,3.034645237478078]
[{"$f":"'[1]Nominal weighted'!B619","v":1925},null,-8.601613926903756,4.139333333333333,6.53106698012634,3.626125134177137,-8.313814145903095,0.33179190751446264,9.488614364942926,23.237724835035237,null,0.6457030677208321,7.849833333333334,6.571787645353139,3.8778114115336026,{"$f":"AVERAGE(G616:G622)","v":-4.5670976583747285},3.9457630765826375,5.113052059952618,12.714912674936752,null,13.420613926903755,0.3,-1.99106698012634,4.283874865822863,14.616814145903096,3.468208092485537,-3.6916143649429265,-16.888724835035237,null,null,4.819,4.439333333333333,4.54,7.91,6.303,3.8,5.797,6.349,null,6.349,{"$f":"AE619*'III. GDP shares, 1310-2018'!C621","v":0.3295298868621598},{"$f":"AF619*'III. GDP shares, 1310-2018'!D621","v":0.6151300759740045},{"$f":"AG619*'III. GDP shares, 1310-2018'!E621","v":0.10056916247824368},{"$f":"AH619*'III. GDP shares, 1310-2018'!F621","v":1.054789907318957},{"$f":"AI619*'III. GDP shares, 1310-2018'!G621","v":0.637476148794364},{"$f":"AJ619*'III. GDP shares, 1310-2018'!H621","v":1.6594164872788202},{"$f":"AK619*'III. GDP shares, 1310-2018'!I621","v":0.18929345745130477},{"$f":"AL619*'III. GDP shares, 1310-2018'!J621","v":0.4258497688540845},null,null,{"$f":"U619*'III. GDP shares, 1310-2018'!C621","v":0.9177201471162731},{"$f":"V619*'III. GDP shares, 1310-2018'!D621","v":0.04156908457550714},{"$f":"W619*'III. GDP shares, 1310-2018'!E621","v":-0.0441057133544916},{"$f":"X619*'III. GDP shares, 1310-2018'!F621","v":0.5712500597581931},{"$f":"Y619*'III. GDP shares, 1310-2018'!G621","v":1.4783230825596203},{"$f":"Z619*'III. GDP shares, 1310-2018'!H621","v":1.5145267605221915},{"$f":"AA619*'III. GDP shares, 1310-2018'!I621","v":-0.12054484159340165},{"$f":"AB619*'III. GDP shares, 1310-2018'!J621","v":-1.132786197391714},null,null,5.494666666666667,5.012054895011938,null,3.225952382192177,1.6897631063763434,{"$f":"AVERAGE(BL616:BL622)","v":0.4362490075675301},0.4932941795726083,null,null,1.2125415214212634]
[{"$f":"'[1]Nominal weighted'!B620","v":1926},null,4.653705361277396,5.324916666666667,9.314509697547956,3.2842224481870055,-23.777803614430002,4.677318435754186,0.3625369839844481,17.056738233289018,null,3.1886742729777686,6.003535714285715,5.2993048631632105,4.46277039327627,{"$f":"AVERAGE(G617:G623)","v":-6.00293604307385},3.3947724980167613,5.24188436355542,11.527275156006727,null,1.1602946387226045,-0.8,-5.304509697547957,2.195777551812995,29.34380361443,-1.117318435754186,5.464463016015552,-11.13073823328902,null,null,5.814,4.524916666666667,4.01,5.48,5.566,3.56,5.827,5.926,null,5.926,{"$f":"AE620*'III. GDP shares, 1310-2018'!C622","v":0.38899336150206054},{"$f":"AF620*'III. GDP shares, 1310-2018'!D622","v":0.5847501012182658},{"$f":"AG620*'III. GDP shares, 1310-2018'!E622","v":0.09290414495662043},{"$f":"AH620*'III. GDP shares, 1310-2018'!F622","v":0.7274994993492976},{"$f":"AI620*'III. GDP shares, 1310-2018'!G622","v":0.559514357006763},{"$f":"AJ620*'III. GDP shares, 1310-2018'!H622","v":1.6033885164038189},{"$f":"AK620*'III. GDP shares, 1310-2018'!I622","v":0.18355417026715437},{"$f":"AL620*'III. GDP shares, 1310-2018'!J622","v":0.3883129661726115},null,null,{"$f":"U620*'III. GDP shares, 1310-2018'!C622","v":0.07763104778973595},{"$f":"V620*'III. GDP shares, 1310-2018'!D622","v":-0.10338313728973557},{"$f":"W620*'III. GDP shares, 1310-2018'!E622","v":-0.12289549572688134},{"$f":"X620*'III. GDP shares, 1310-2018'!F622","v":0.29150129007780656},{"$f":"Y620*'III. GDP shares, 1310-2018'!G622","v":2.949744773887986},{"$f":"Z620*'III. GDP shares, 1310-2018'!H622","v":-0.5032290868130731},{"$f":"AA620*'III. GDP shares, 1310-2018'!I622","v":0.17213402691956178},{"$f":"AB620*'III. GDP shares, 1310-2018'!J622","v":-0.7293638169185542},null,null,5.088489583333333,4.528917116876592,null,2.0321396019268465,2.476471556798749,{"$f":"AVERAGE(BL617:BL623)","v":1.02401439630554},0.8789068120097114,null,null,1.8086442764417443]
[{"$f":"'[1]Nominal weighted'!B621","v":1927},null,24.191278382766118,6.958083333333333,3.0069354940474167,1.1794471387212395,17.617546450980626,5.429887005649709,9.280931766229173,7.143641566541868,null,4.7286854845528135,5.5680476190476185,5.99339945051958,6.375429400932798,{"$f":"AVERAGE(G618:G624)","v":-4.3051492227800825},4.485088604093154,3.8679381329013194,14.852503462077722,null,-19.15127838276612,-2.4,1.0130645059525827,4.850552861278761,-12.667546450980627,-2.2598870056497096,-3.626931766229173,-1.5876415665418684,null,null,5.04,4.558083333333333,4.02,6.03,4.95,3.17,5.654,5.556,null,5.556,{"$f":"AE621*'III. GDP shares, 1310-2018'!C623","v":0.32052405219010877},{"$f":"AF621*'III. GDP shares, 1310-2018'!D623","v":0.6183302177053256},{"$f":"AG621*'III. GDP shares, 1310-2018'!E623","v":0.09426477816947089},{"$f":"AH621*'III. GDP shares, 1310-2018'!F623","v":0.8555789322935347},{"$f":"AI621*'III. GDP shares, 1310-2018'!G623","v":0.4733755468190438},{"$f":"AJ621*'III. GDP shares, 1310-2018'!H623","v":1.4009368642540587},{"$f":"AK621*'III. GDP shares, 1310-2018'!I623","v":0.18802971899940146},{"$f":"AL621*'III. GDP shares, 1310-2018'!J623","v":0.3588554203512026},null,null,{"$f":"U621*'III. GDP shares, 1310-2018'!C623","v":-1.2179455063224265},{"$f":"V621*'III. GDP shares, 1310-2018'!D623","v":-0.32557380240074185},{"$f":"W621*'III. GDP shares, 1310-2018'!E623","v":0.023755298737558418},{"$f":"X621*'III. GDP shares, 1310-2018'!F623","v":0.6882306530822938},{"$f":"Y621*'III. GDP shares, 1310-2018'!G623","v":-1.211415500623958},{"$f":"Z621*'III. GDP shares, 1310-2018'!H623","v":-0.9987252414080121},{"$f":"AA621*'III. GDP shares, 1310-2018'!I623","v":-0.12061743205413411},{"$f":"AB621*'III. GDP shares, 1310-2018'!J623","v":-0.10254387720094024},null,null,4.872260416666666,4.309895530782146,null,-3.2648354081903603,-4.478708475617019,{"$f":"AVERAGE(BL618:BL624)","v":-0.1355449244246078},-0.15552262832287728,null,null,6.63082691886644]
[{"$f":"'[1]Nominal weighted'!B622","v":1928},null,3.7144383954154585,4.765416666666667,4.843910369002957,5.334318621685275,-9.445889878034194,4.606069364161845,4.743367320085231,3.7641067527768817,null,7.449518176990696,6.08577380952381,7.1421224364008795,6.732190492378249,{"$f":"AVERAGE(G619:G625)","v":-1.0736664497181647},5.811770059283928,4.46334358624277,14.219193515175153,null,1.2765616045845412,-0.3,-0.9439103690029575,0.9256813783147244,13.956889878034195,-1.1560693641618456,0.5376326799147685,1.8298932472231189,null,null,4.991,4.465416666666667,{"v":3.9,"d":"3.90"},6.26,4.511,3.45,5.281,5.594,null,5.594,{"$f":"AE622*'III. GDP shares, 1310-2018'!C624","v":0.3299877941619734},{"$f":"AF622*'III. GDP shares, 1310-2018'!D624","v":0.5948493527072878},{"$f":"AG622*'III. GDP shares, 1310-2018'!E624","v":0.09345569108033201},{"$f":"AH622*'III. GDP shares, 1310-2018'!F624","v":0.8995112394305017},{"$f":"AI622*'III. GDP shares, 1310-2018'!G624","v":0.44771768226291436},{"$f":"AJ622*'III. GDP shares, 1310-2018'!H624","v":1.4958683376457993},{"$f":"AK622*'III. GDP shares, 1310-2018'!I624","v":0.17106510791291224},{"$f":"AL622*'III. GDP shares, 1310-2018'!J624","v":0.37920742975102306},null,null,{"$f":"U622*'III. GDP shares, 1310-2018'!C624","v":0.084401872973096},{"$f":"V622*'III. GDP shares, 1310-2018'!D624","v":-0.039963752351334064},{"$f":"W622*'III. GDP shares, 1310-2018'!E624","v":-0.022618922013605793},{"$f":"X622*'III. GDP shares, 1310-2018'!F624","v":0.13301290797533752},{"$f":"Y622*'III. GDP shares, 1310-2018'!G624","v":1.385224204786566},{"$f":"Z622*'III. GDP shares, 1310-2018'!H624","v":-0.5012543646295698},{"$f":"AA622*'III. GDP shares, 1310-2018'!I624","v":0.017415298694779036},{"$f":"AB622*'III. GDP shares, 1310-2018'!J624","v":0.12404524758638404},null,null,4.806552083333333,4.4116626349527435,null,1.180262493021653,2.0158348818633183,{"$f":"AVERAGE(BL619:BL625)","v":-1.4161757771603563},-1.3965232628084745,null,null,2.596587036872469]
[{"$f":"'[1]Nominal weighted'!B623","v":1929},null,3.1743660299806162,5.4675,4.307782904019474,6.545712872198671,0.5962039036413609,2.775204678362585,8.718545888243352,14.84659632079089,null,9.605789376642784,6.401928571428572,7.208162074588791,8.63316379783407,{"$f":"AVERAGE(G620:G626)","v":2.010500154787827},7.71065301574468,5.761891377281766,10.371769940383446,null,2.100633970019384,-0.9,-0.2977829040194739,-0.06571287219867032,3.013796096358639,0.5847953216374144,-3.2085458882433526,-9.32959632079089,null,null,5.275,4.5675,4.01,6.48,3.61,3.36,5.51,5.517,null,5.517,{"$f":"AE623*'III. GDP shares, 1310-2018'!C625","v":0.3453059540456902},{"$f":"AF623*'III. GDP shares, 1310-2018'!D625","v":0.6003413448323599},{"$f":"AG623*'III. GDP shares, 1310-2018'!E625","v":0.09283262211789153},{"$f":"AH623*'III. GDP shares, 1310-2018'!F625","v":0.8887750602038443},{"$f":"AI623*'III. GDP shares, 1310-2018'!G625","v":0.36659480915024606},{"$f":"AJ623*'III. GDP shares, 1310-2018'!H625","v":1.4817812387045013},{"$f":"AK623*'III. GDP shares, 1310-2018'!I625","v":0.18316768878941062},{"$f":"AL623*'III. GDP shares, 1310-2018'!J625","v":0.3696152929631972},null,null,{"$f":"U623*'III. GDP shares, 1310-2018'!C625","v":0.137509273387361},{"$f":"V623*'III. GDP shares, 1310-2018'!D625","v":-0.11829386105071131},{"$f":"W623*'III. GDP shares, 1310-2018'!E625","v":-0.006893757556610519},{"$f":"X623*'III. GDP shares, 1310-2018'!F625","v":-0.009012957090206905},{"$f":"Y623*'III. GDP shares, 1310-2018'!G625","v":0.3060504168316764},{"$f":"Z623*'III. GDP shares, 1310-2018'!H625","v":0.25789843335847773},{"$f":"AA623*'III. GDP shares, 1310-2018'!I625","v":-0.1066609681895284},{"$f":"AB623*'III. GDP shares, 1310-2018'!J625","v":-0.6250428633926937},null,null,4.7911875,4.3284140108071405,null,-0.16444628370223568,-1.0128015746546186,{"$f":"AVERAGE(BL620:BL626)","v":-2.8326106416234915},-2.3747412171579207,null,null,3.7742250886263053]
[{"$f":"'[1]Nominal weighted'!B624","v":1930},null,16.4202819773886,7.24775,10.151315244449705,13.388613053595694,-2.155633559531889,9.61534883720929,-6.837604118533664,24.09598664903478,null,9.987556608740407,6.424083333333334,6.148885890239795,8.825384825139635,{"$f":"AVERAGE(G621:G627)","v":5.791766868663626},7.437699127976089,6.542726247365702,8.331659390613739,null,-11.248281977388602,-2.8,-6.451315244449705,-7.208613053595696,5.695633559531889,-6.39534883720929,12.715604118533664,-18.65398664903478,null,null,5.172,4.44775,{"v":3.7,"d":"3.70"},6.18,3.54,3.22,5.878,5.442,null,5.442,{"$f":"AE624*'III. GDP shares, 1310-2018'!C626","v":0.34036997849798717},{"$f":"AF624*'III. GDP shares, 1310-2018'!D626","v":0.613753246087184},{"$f":"AG624*'III. GDP shares, 1310-2018'!E626","v":0.0903706453091642},{"$f":"AH624*'III. GDP shares, 1310-2018'!F626","v":0.8837209957965636},{"$f":"AI624*'III. GDP shares, 1310-2018'!G626","v":0.3690994328591238},{"$f":"AJ624*'III. GDP shares, 1310-2018'!H626","v":1.3680100845587277},{"$f":"AK624*'III. GDP shares, 1310-2018'!I626","v":0.1996826185431144},{"$f":"AL624*'III. GDP shares, 1310-2018'!J626","v":0.3574968840494507},null,null,{"$f":"U624*'III. GDP shares, 1310-2018'!C626","v":-0.7402508690609155},{"$f":"V624*'III. GDP shares, 1310-2018'!D626","v":-0.386377177009525},{"$f":"W624*'III. GDP shares, 1310-2018'!E626","v":-0.15757014100912653},{"$f":"X624*'III. GDP shares, 1310-2018'!F626","v":-1.0308094993585268},{"$f":"Y624*'III. GDP shares, 1310-2018'!G626","v":0.5938573775696646},{"$f":"Z624*'III. GDP shares, 1310-2018'!H626","v":-2.7170502185010066},{"$f":"AA624*'III. GDP shares, 1310-2018'!I626","v":0.4319641249993896},{"$f":"AB624*'III. GDP shares, 1310-2018'!J626","v":-1.2254211874549776},null,null,4.69746875,4.2225038857013155,null,-5.231657589825024,-4.293288510451565,{"$f":"AVERAGE(BL621:BL627)","v":-3.0659203567164623},-2.6849062984138024,null,null,8.45403105242963]
[{"$f":"'[1]Nominal weighted'!B625","v":1931},null,8.594171019010439,8.697416666666665,11.839336365612304,13.766894178082723,17.963725695250037,13.246770186335414,5.487012898747924,9.389560248757396,null,8.076543573054561,5.869620238095238,6.551916615669015,9.371603142476147,{"$f":"AVERAGE(G622:G628)","v":5.260414713783467},6.8726936250044846,5.6783287658147845,7.853476774573812,null,-3.709171019010439,-4.3,-7.279336365612305,-7.626894178082722,-14.163725695250037,-9.316770186335415,0.48298710125207606,-3.4705602487573968,null,null,4.885,4.3974166666666665,4.56,6.14,3.8,3.93,5.97,5.919,null,5.919,{"$f":"AE625*'III. GDP shares, 1310-2018'!C627","v":0.3396585985976984},{"$f":"AF625*'III. GDP shares, 1310-2018'!D627","v":0.6117742689366872},{"$f":"AG625*'III. GDP shares, 1310-2018'!E627","v":0.11113781600036401},{"$f":"AH625*'III. GDP shares, 1310-2018'!F627","v":0.8619463148681152},{"$f":"AI625*'III. GDP shares, 1310-2018'!G627","v":0.3958871145857567},{"$f":"AJ625*'III. GDP shares, 1310-2018'!H627","v":1.6381383653448},{"$f":"AK625*'III. GDP shares, 1310-2018'!I627","v":0.210038672588968},{"$f":"AL625*'III. GDP shares, 1310-2018'!J627","v":0.4167037542475547},null,null,{"$f":"U625*'III. GDP shares, 1310-2018'!C627","v":-0.2579021146932002},{"$f":"V625*'III. GDP shares, 1310-2018'!D627","v":-0.5982215368328575},{"$f":"W625*'III. GDP shares, 1310-2018'!E627","v":-0.17741437403644275},{"$f":"X625*'III. GDP shares, 1310-2018'!F627","v":-1.0706796955517077},{"$f":"Y625*'III. GDP shares, 1310-2018'!G627","v":-1.4755885519149152},{"$f":"Z625*'III. GDP shares, 1310-2018'!H627","v":-3.8835009372357927},{"$f":"AA625*'III. GDP shares, 1310-2018'!I627","v":0.016992624727735266},{"$f":"AB625*'III. GDP shares, 1310-2018'!J627","v":-0.24433105000836874},null,null,4.950177083333333,4.585284905169944,null,-7.6906456355455495,-6.17293382397453,{"$f":"AVERAGE(BL622:BL628)","v":-2.6908587872910026},-2.281229294154177,null,null,11.06593473494595]
[{"$f":"'[1]Nominal weighted'!B626","v":1932},null,6.492284470660856,6.352416666666667,6.993344447441718,16.932938272367892,13.27535208563885,13.623972602739727,18.578448902215904,-3.6942401885067078,null,7.101251080283676,5.503763095238095,6.560345590785807,9.140716736562968,{"$f":"AVERAGE(G623:G629)","v":8.040007069658499},6.191101626286268,6.214912688181003,7.404446124425454,null,-1.9262844706608564,-2.6,-3.4433444474417185,-9.632938272367893,-9.36535208563885,-10.273972602739727,-12.457448902215901,8.437240188506708,null,null,4.566,3.752416666666667,3.55,7.3,3.91,3.35,6.121,4.743,null,4.743,{"$f":"AE626*'III. GDP shares, 1310-2018'!C628","v":0.34966946860308923},{"$f":"AF626*'III. GDP shares, 1310-2018'!D628","v":0.5612322640293411},{"$f":"AG626*'III. GDP shares, 1310-2018'!E628","v":0.09103897965317262},{"$f":"AH626*'III. GDP shares, 1310-2018'!F628","v":1.011142889034445},{"$f":"AI626*'III. GDP shares, 1310-2018'!G628","v":0.406291242585051},{"$f":"AJ626*'III. GDP shares, 1310-2018'!H628","v":1.2932021676626295},{"$f":"AK626*'III. GDP shares, 1310-2018'!I628","v":0.23473273518903126},{"$f":"AL626*'III. GDP shares, 1310-2018'!J628","v":0.38610746389272554},null,null,{"$f":"U626*'III. GDP shares, 1310-2018'!C628","v":-0.14751705370879648},{"$f":"V626*'III. GDP shares, 1310-2018'!D628","v":-0.3888704310048067},{"$f":"W626*'III. GDP shares, 1310-2018'!E628","v":-0.08830382115197508},{"$f":"X626*'III. GDP shares, 1310-2018'!F628","v":-1.33428452528939},{"$f":"Y626*'III. GDP shares, 1310-2018'!G628","v":-0.9731612624349635},{"$f":"Z626*'III. GDP shares, 1310-2018'!H628","v":-3.9660667583192484},{"$f":"AA626*'III. GDP shares, 1310-2018'!I628","v":-0.47772766774950715},{"$f":"AB626*'III. GDP shares, 1310-2018'!J628","v":0.6868398506089197},null,null,4.661552083333334,4.333417210649485,null,-6.689091669049768,-5.15776257406978,{"$f":"AVERAGE(BL623:BL629)","v":-2.626787649315382},-2.4630261859515303,null,null,10.072406184665104]
[{"$f":"'[1]Nominal weighted'!B627","v":1933},null,7.32607598596076,5.4799999999999995,1.8995764071049897,4.629769639325939,2.6910633827005883,2.7666412213740483,5.828381074572003,2.7759643849010556,null,{"$f":"AVERAGE(C624:C630)","v":6.5600525301257315},{"$f":"AVERAGE(D624:D630)","v":5.042870238095238},{"$f":"AVERAGE(E624:E630)","v":6.7297985008847965},{"$f":"AVERAGE(F624:F630)","v":8.764317386309383},{"$f":"AVERAGE(G624:G630)","v":5.2840784668837655},5.947604477617494,5.441831837823072,5.216044315365287,null,-3.4370759859607602,-2.1,1.6404235928950104,2.030230360674061,1.7789366172994112,0.7633587786259515,-0.11438107457200221,1.8810356150989445,null,null,3.889,3.3799999999999994,3.54,6.66,4.47,3.53,5.714,4.657,null,4.657,{"$f":"AE627*'III. GDP shares, 1310-2018'!C629","v":0.29028463137282223},{"$f":"AF627*'III. GDP shares, 1310-2018'!D629","v":0.5105572372566726},{"$f":"AG627*'III. GDP shares, 1310-2018'!E629","v":0.08892157658399132},{"$f":"AH627*'III. GDP shares, 1310-2018'!F629","v":0.9620433599937144},{"$f":"AI627*'III. GDP shares, 1310-2018'!G629","v":0.4883792571721045},{"$f":"AJ627*'III. GDP shares, 1310-2018'!H629","v":1.309108986287035},{"$f":"AK627*'III. GDP shares, 1310-2018'!I629","v":0.2108183136525081},{"$f":"AL627*'III. GDP shares, 1310-2018'!J629","v":0.4085608150994839},null,null,{"$f":"U627*'III. GDP shares, 1310-2018'!C629","v":-0.2565518990961684},{"$f":"V627*'III. GDP shares, 1310-2018'!D629","v":-0.3172101178221931},{"$f":"W627*'III. GDP shares, 1310-2018'!E629","v":0.04120594693384177},{"$f":"X627*'III. GDP shares, 1310-2018'!F629","v":0.2932687143759946},{"$f":"Y627*'III. GDP shares, 1310-2018'!G629","v":0.1943614639178843},{"$f":"Z627*'III. GDP shares, 1310-2018'!H629","v":0.2830934382040591},{"$f":"AA627*'III. GDP shares, 1310-2018'!I629","v":-4.2200954244016944E-3},{"$f":"AB627*'III. GDP shares, 1310-2018'!J629","v":0.1650241451870268},null,null,4.48,4.268674177418331,null,0.39897159627604334,0.3053159880075771,{"$f":"AVERAGE(BL624:BL630)","v":-2.086590505238937},-1.689323082233334,null,null,3.0419352260634227]
[{"$f":"'[1]Nominal weighted'!B628","v":1934},null,10.814187132965202,3.0768416666666663,5.828150572051957,5.002975360076839,13.898081366819516,1.4748484848484769,3.230149395372751,3.7963632542623813,null,2.834103796071532,3.993072619047619,5.089125252150266,7.441349272473671,{"$f":"AVERAGE(G625:G631)","v":2.8652697886911795},4.548677092710042,6.418632426185023,0.5922061382904735,null,-6.610187132965203,0,-2.5981505720519573,1.327024639923161,-10.078081366819516,1.5151515151515234,2.4278506046272494,0.7926367457376192,null,null,4.204,3.0768416666666663,3.23,6.33,3.82,2.99,5.658,4.589,null,4.589,{"$f":"AE628*'III. GDP shares, 1310-2018'!C630","v":0.2994954906374607},{"$f":"AF628*'III. GDP shares, 1310-2018'!D630","v":0.4708274205716581},{"$f":"AG628*'III. GDP shares, 1310-2018'!E630","v":0.07569928122265608},{"$f":"AH628*'III. GDP shares, 1310-2018'!F630","v":0.948424698586209},{"$f":"AI628*'III. GDP shares, 1310-2018'!G630","v":0.39280304416127104},{"$f":"AJ628*'III. GDP shares, 1310-2018'!H630","v":1.1353066643188483},{"$f":"AK628*'III. GDP shares, 1310-2018'!I630","v":0.20589976040624314},{"$f":"AL628*'III. GDP shares, 1310-2018'!J630","v":0.38341024059020723},null,null,{"$f":"U628*'III. GDP shares, 1310-2018'!C630","v":-0.4709137104169466},{"$f":"V628*'III. GDP shares, 1310-2018'!D630","v":0},{"$f":"W628*'III. GDP shares, 1310-2018'!E630","v":-0.06089106217107303},{"$f":"X628*'III. GDP shares, 1310-2018'!F630","v":0.19882826921573407},{"$f":"Y628*'III. GDP shares, 1310-2018'!G630","v":-1.0363091728250495},{"$f":"Z628*'III. GDP shares, 1310-2018'!H630","v":0.5753048871586371},{"$f":"AA628*'III. GDP shares, 1310-2018'!I630","v":0.0883516892532526},{"$f":"AB628*'III. GDP shares, 1310-2018'!J630","v":0.06622467757330562},null,null,4.237230208333333,3.911866600494554,null,-0.6394044222121397,-1.6529694457996407,{"$f":"AVERAGE(BL625:BL631)","v":-0.4824797277442937},0.17125360610564158,null,null,4.080443602135035]
[{"$f":"'[1]Nominal weighted'!B629","v":1935},null,-3.1126090539807345,2.204416666666667,4.902913194820496,3.7181137802930104,10.011256613091021,-0.16507462686567465,8.499454776648745,0.6208922017383784,null,2.057682914577398,3.0087511904761906,3.9254348154183156,6.052725737426428,{"$f":"AVERAGE(G626:G632)","v":-1.0105520541216169},3.407392462916094,5.634773440649606,-2.5040648730217754,null,8.348609053980734,0.7,-1.512913194820495,0.9818862197069896,-5.831256613091021,2.9850746268656745,-3.555454776648745,3.830107798261621,null,null,5.236,2.9044166666666666,3.39,4.7,4.18,2.82,4.944,4.451,null,4.451,{"$f":"AE629*'III. GDP shares, 1310-2018'!C631","v":0.3878480727413236},{"$f":"AF629*'III. GDP shares, 1310-2018'!D631","v":0.4378016508976944},{"$f":"AG629*'III. GDP shares, 1310-2018'!E631","v":0.07816652727311793},{"$f":"AH629*'III. GDP shares, 1310-2018'!F631","v":0.7181277413871062},{"$f":"AI629*'III. GDP shares, 1310-2018'!G631","v":0.3972686591334445},{"$f":"AJ629*'III. GDP shares, 1310-2018'!H631","v":1.0932139387904805},{"$f":"AK629*'III. GDP shares, 1310-2018'!I631","v":0.174067467649893},{"$f":"AL629*'III. GDP shares, 1310-2018'!J631","v":0.3624286149991014},null,null,{"$f":"U629*'III. GDP shares, 1310-2018'!C631","v":0.6184094598275769},{"$f":"V629*'III. GDP shares, 1310-2018'!D631","v":0.1055155615740577},{"$f":"W629*'III. GDP shares, 1310-2018'!E631","v":-0.03488471106336171},{"$f":"X629*'III. GDP shares, 1310-2018'!F631","v":0.15002547516112857},{"$f":"Y629*'III. GDP shares, 1310-2018'!G631","v":-0.5542046640539955},{"$f":"Z629*'III. GDP shares, 1310-2018'!H631","v":1.1572075143331022},{"$f":"AA629*'III. GDP shares, 1310-2018'!I631","v":-0.12517981579995208},{"$f":"AB629*'III. GDP shares, 1310-2018'!J631","v":0.31187163887243696},null,null,4.078177083333333,3.6489226728721618,null,1.6287604588509932,0.7432566392818447,{"$f":"AVERAGE(BL626:BL632)","v":0.8844799694978489},1.6440467782509407,null,null,1.6878761246975316]
[{"$f":"'[1]Nominal weighted'!B630","v":1936},null,-0.6140238211250022,2.24125,5.493953274712404,3.910917420423582,-18.69529631578176,1.0707246376811645,3.3069799357378384,-0.4722163426302739,null,1.3665280856336461,2.2340130952380948,2.6415889044533456,4.159447238485128,{"$f":"AVERAGE(G627:G633)","v":-3.867688125668042},1.789682091096134,-5.736490239580503,-3.351083332679121,null,5.360023821125003,0.7,-2.413953274712404,0.7290825795764175,22.705296315781762,1.4492753623188355,2.2490200642621616,4.446216342630274,null,null,4.746,2.94125,3.08,4.64,4.01,2.52,5.556,3.974,null,3.974,{"$f":"AE630*'III. GDP shares, 1310-2018'!C632","v":0.32648199598454075},{"$f":"AF630*'III. GDP shares, 1310-2018'!D632","v":0.42970295107645495},{"$f":"AG630*'III. GDP shares, 1310-2018'!E632","v":0.06998873863171579},{"$f":"AH630*'III. GDP shares, 1310-2018'!F632","v":0.7151264370859542},{"$f":"AI630*'III. GDP shares, 1310-2018'!G632","v":0.3667233181825242},{"$f":"AJ630*'III. GDP shares, 1310-2018'!H632","v":1.034379574709616},{"$f":"AK630*'III. GDP shares, 1310-2018'!I632","v":0.14095779656730215},{"$f":"AL630*'III. GDP shares, 1310-2018'!J632","v":0.32180385610828266},null,null,{"$f":"U630*'III. GDP shares, 1310-2018'!C632","v":0.36872129701760975},{"$f":"V630*'III. GDP shares, 1310-2018'!D632","v":0.10226674568755408},{"$f":"W630*'III. GDP shares, 1310-2018'!E632","v":-0.05485374831591587},{"$f":"X630*'III. GDP shares, 1310-2018'!F632","v":0.11236772143834488},{"$f":"Y630*'III. GDP shares, 1310-2018'!G632","v":2.076449278114945},{"$f":"Z630*'III. GDP shares, 1310-2018'!H632","v":0.5948812829017784},{"$f":"AA630*'III. GDP shares, 1310-2018'!I632","v":0.05705847960655986},{"$f":"AB630*'III. GDP shares, 1310-2018'!J632","v":0.3600426683820049},null,null,3.9334062500000004,3.4051646683463908,null,3.616933724832881,4.4031201513727565,{"$f":"AVERAGE(BL627:BL633)","v":2.476778809943325},4.122062041728209,null,null,-0.5392052618753911]
[{"$f":"'[1]Nominal weighted'!B631","v":1937},null,-9.661359160990791,-0.10083333333333311,-1.3333974966920068,4.1278362567457085,-19.087294306879997,-0.1771428571428597,0,-8.270880590488915,null,-1.46644908101601,-0.4653321428571428,0.7711747293968675,3.6408071583435477,{"$f":"AVERAGE(G628:G634)","v":-6.180122511488873},1.560978243144739,-9.568003418231976,-4.429531163683572,null,14.467359160990792,3.4,4.403397496692007,0.3721637432542914,23.407294306879997,2.85714285714286,null,12.207880590488914,null,null,4.806,3.299166666666667,3.07,4.5,4.32,2.68,null,3.937,null,3.937,{"$f":"AE631*'III. GDP shares, 1310-2018'!C633","v":0.3380484862403574},{"$f":"AF631*'III. GDP shares, 1310-2018'!D633","v":0.4772959362808684},{"$f":"AG631*'III. GDP shares, 1310-2018'!E633","v":0.07056690541385797},{"$f":"AH631*'III. GDP shares, 1310-2018'!F633","v":0.7036269301007169},{"$f":"AI631*'III. GDP shares, 1310-2018'!G633","v":0.39987918192928135},{"$f":"AJ631*'III. GDP shares, 1310-2018'!H633","v":1.0977470315664317},{"$f":"AK631*'III. GDP shares, 1310-2018'!I633","v":0},{"$f":"AL631*'III. GDP shares, 1310-2018'!J633","v":0.31966347013151203},null,null,{"$f":"U631*'III. GDP shares, 1310-2018'!C633","v":1.0176173250662723},{"$f":"V631*'III. GDP shares, 1310-2018'!D633","v":0.49188366254759863},{"$f":"W631*'III. GDP shares, 1310-2018'!E633","v":0.10121633050445727},{"$f":"X631*'III. GDP shares, 1310-2018'!F633","v":0.05819209603573521},{"$f":"Y631*'III. GDP shares, 1310-2018'!G633","v":2.1666874302345134},{"$f":"Z631*'III. GDP shares, 1310-2018'!H633","v":1.170306003802167},{"$f":"AA631*'III. GDP shares, 1310-2018'!I633","v":0},{"$f":"AB631*'III. GDP shares, 1310-2018'!J633","v":0.9912150044467407},null,null,3.801738095238096,3.406827941663026,null,5.9971178526374835,8.730748307921266,{"$f":"AVERAGE(BL628:BL634)","v":3.4789281955735873},5.931756946316264,null,null,-2.575702184707728]
[{"$f":"'[1]Nominal weighted'!B632","v":1938},null,3.1592248485514967,1.8071666666666668,3.693503308488652,4.046529432752028,-9.167027204439535,5.25777777777778,0,-12.284336830428344,null,-4.601664120103782,-2.002607142857143,-0.6498514786315034,3.2951236181552868,{"$f":"AVERAGE(G629:G635)","v":-10.232068813033809},0.22756017185432828,-12.651556673024967,-4.783233683327454,null,1.666775151448503,1.6,-0.7235033084886522,0.4934705672479725,12.587027204439535,-2.77777777777778,null,16.110336830428345,null,null,4.826,3.407166666666667,2.97,4.54,3.42,2.48,null,3.826,null,3.826,{"$f":"AE632*'III. GDP shares, 1310-2018'!C634","v":0.3410145151637932},{"$f":"AF632*'III. GDP shares, 1310-2018'!D634","v":0.4976601482719366},{"$f":"AG632*'III. GDP shares, 1310-2018'!E634","v":0.06645560605570877},{"$f":"AH632*'III. GDP shares, 1310-2018'!F634","v":0.7627926606542056},{"$f":"AI632*'III. GDP shares, 1310-2018'!G634","v":0.3145429239536072},{"$f":"AJ632*'III. GDP shares, 1310-2018'!H634","v":0.9729070969980107},{"$f":"AK632*'III. GDP shares, 1310-2018'!I634","v":0},{"$f":"AL632*'III. GDP shares, 1310-2018'!J634","v":0.33057008742915095},null,null,{"$f":"U632*'III. GDP shares, 1310-2018'!C634","v":0.11777756323213205},{"$f":"V632*'III. GDP shares, 1310-2018'!D634","v":0.23370040715211032},{"$f":"W632*'III. GDP shares, 1310-2018'!E634","v":-0.016188838669671312},{"$f":"X632*'III. GDP shares, 1310-2018'!F634","v":0.08291095307172269},{"$f":"Y632*'III. GDP shares, 1310-2018'!G634","v":1.1576492224467865},{"$f":"Z632*'III. GDP shares, 1310-2018'!H634","v":-1.0897256910820021},{"$f":"AA632*'III. GDP shares, 1310-2018'!I634","v":0},{"$f":"AB632*'III. GDP shares, 1310-2018'!J634","v":1.3919486289983714},null,null,3.638452380952381,3.285943038526413,null,1.8780722451494494,4.1366183810425605,{"$f":"AVERAGE(BL629:BL635)","v":4.866819007374849},7.745235777424057,null,null,1.1439110522571374]
[{"$f":"'[1]Nominal weighted'!B633","v":1939},null,1.6542006680545915,0.9292500000000001,-1.9935769293130718,3.679988779778788,-6.724600415186126,2.3,-61.02039685939486,-9.62336940610813,null,-5.811585419882214,-2.8999285714285716,-1.4677947895217378,3.0878063345957663,{"$f":"AVERAGE(G630:G636)","v":-14.509339893136017},-0.7377517478100213,-13.119401741280054,-4.641667441565253,null,3.1417993319454087,2.8,5.583576929313072,0.8600112202212119,10.664600415186126,0,61.02039685939486,13.436369406108131,null,null,4.796,3.72925,3.59,4.54,3.94,2.3,null,3.813,null,3.813,{"$f":"AE633*'III. GDP shares, 1310-2018'!C635","v":0.33755122149006284},{"$f":"AF633*'III. GDP shares, 1310-2018'!D635","v":0.5106673770757776},{"$f":"AG633*'III. GDP shares, 1310-2018'!E635","v":0.07963889749633474},{"$f":"AH633*'III. GDP shares, 1310-2018'!F635","v":0.7748415600426753},{"$f":"AI633*'III. GDP shares, 1310-2018'!G635","v":0.36054689049410954},{"$f":"AJ633*'III. GDP shares, 1310-2018'!H635","v":0.9043821541345416},{"$f":"AK633*'III. GDP shares, 1310-2018'!I635","v":0},{"$f":"AL633*'III. GDP shares, 1310-2018'!J635","v":0.35403542716435576},null,null,{"$f":"U633*'III. GDP shares, 1310-2018'!C635","v":0.2211255634226097},{"$f":"V633*'III. GDP shares, 1310-2018'!D635","v":0.38341989832062134},{"$f":"W633*'III. GDP shares, 1310-2018'!E635","v":0.1238634848848087},{"$f":"X633*'III. GDP shares, 1310-2018'!F635","v":0.14677806950009},{"$f":"Y633*'III. GDP shares, 1310-2018'!G635","v":0.9759107913851643},{"$f":"Z633*'III. GDP shares, 1310-2018'!H635","v":0},{"$f":"AA633*'III. GDP shares, 1310-2018'!I635","v":1.3583412257974516},{"$f":"AB633*'III. GDP shares, 1310-2018'!J635","v":1.2475611807578215},null,null,3.8154642857142855,3.321663527897857,null,4.457000214068567,12.1883442702711,{"$f":"AVERAGE(BL630:BL636)","v":5.759978891209589},8.750526956770724,null,null,-1.2625841649258658]
[{"$f":"'[1]Nominal weighted'!B634","v":1940},null,-12.50476418058683,-13.415416666666667,-11.193322818290358,0.9992890783348773,-13.495977318045231,1.1657142857142881,-20.992211175988306,-4.773170432130099,null,-14.70116578261243,-3.263202380952381,-2.2268726018818836,2.8552035770232,{"$f":"AVERAGE(G631:G637)","v":-15.713179267324048},-1.010509536286874,-13.250063339870303,-5.209689044316701,null,17.21876418058683,16.8,14.593322818290359,3.410710921665123,16.94597731804523,0.7142857142857117,25.461211175988307,8.6411704321301,null,null,4.714,3.3845833333333335,{"v":3.4,"d":"3.40"},4.41,3.45,1.88,4.469,3.868,null,3.868,{"$f":"AE634*'III. GDP shares, 1310-2018'!C636","v":0.3234701539081145},{"$f":"AF634*'III. GDP shares, 1310-2018'!D636","v":0.4940661068050513},{"$f":"AG634*'III. GDP shares, 1310-2018'!E636","v":0.06439317698325563},{"$f":"AH634*'III. GDP shares, 1310-2018'!F636","v":0.7345721552644963},{"$f":"AI634*'III. GDP shares, 1310-2018'!G636","v":0.252432217811272},{"$f":"AJ634*'III. GDP shares, 1310-2018'!H636","v":0.7716947855553052},{"$f":"AK634*'III. GDP shares, 1310-2018'!I636","v":0.10572582295030283},{"$f":"AL634*'III. GDP shares, 1310-2018'!J636","v":0.3581550266449025},null,null,{"$f":"U634*'III. GDP shares, 1310-2018'!C636","v":1.1815350656771215},{"$f":"V634*'III. GDP shares, 1310-2018'!D636","v":2.4523877171463337},{"$f":"W634*'III. GDP shares, 1310-2018'!E636","v":0.276385417356457},{"$f":"X634*'III. GDP shares, 1310-2018'!F636","v":0.5681209235173936},{"$f":"Y634*'III. GDP shares, 1310-2018'!G636","v":1.2399161267749763},{"$f":"Z634*'III. GDP shares, 1310-2018'!H636","v":0.2931971069738991},{"$f":"AA634*'III. GDP shares, 1310-2018'!I636","v":0.6023511982306582},{"$f":"AB634*'III. GDP shares, 1310-2018'!J636","v":0.8001237400110393},null,null,3.696947916666667,3.1045094459227,null,7.414017295687878,12.973180320123957,{"$f":"AVERAGE(BL631:BL637)","v":6.284357913841875},10.244987475997272,null,null,-2.3511862394238965]
[{"$f":"'[1]Nominal weighted'!B635","v":1941},null,-11.1323181406492,-7.684083333333334,-4.119032884146639,2.5831905787590137,-14.465542743995051,-7.8590780141844,-18.354723388178186,1.3204456167552112,null,-83.19625114281533,-3.1867023809523816,-2.939867465307995,1.9953899238592931,{"$f":"AVERAGE(G632:G638)","v":-15.41762822294086},-1.0136106387968449,-13.225126294311996,-6.0447860911283255,null,15.5933181406492,10.8,7.369032884146639,1.766809421240986,17.59554274399505,9.9290780141844,22.774723388178188,2.5025543832447887,null,null,4.461,3.115916666666667,3.25,4.35,3.13,2.07,4.42,3.823,null,3.823,{"$f":"AE635*'III. GDP shares, 1310-2018'!C637","v":0.2793719469990266},{"$f":"AF635*'III. GDP shares, 1310-2018'!D637","v":0.4585335085130404},{"$f":"AG635*'III. GDP shares, 1310-2018'!E637","v":0.05386299310156888},{"$f":"AH635*'III. GDP shares, 1310-2018'!F637","v":0.711897033001495},{"$f":"AI635*'III. GDP shares, 1310-2018'!G637","v":0.16733298454857126},{"$f":"AJ635*'III. GDP shares, 1310-2018'!H637","v":0.9279662041269212},{"$f":"AK635*'III. GDP shares, 1310-2018'!I637","v":0.09506972592464266},{"$f":"AL635*'III. GDP shares, 1310-2018'!J637","v":0.33155178463435026},null,null,{"$f":"U635*'III. GDP shares, 1310-2018'!C637","v":0.9765379173119051},{"$f":"V635*'III. GDP shares, 1310-2018'!D637","v":1.589311403901742},{"$f":"W635*'III. GDP shares, 1310-2018'!E637","v":0.12212866689354605},{"$f":"X635*'III. GDP shares, 1310-2018'!F637","v":0.28914629537024056},{"$f":"Y635*'III. GDP shares, 1310-2018'!G637","v":0.9406756172858304},{"$f":"Z635*'III. GDP shares, 1310-2018'!H637","v":4.451134703044815},{"$f":"AA635*'III. GDP shares, 1310-2018'!I637","v":0.4898612467248075},{"$f":"AB635*'III. GDP shares, 1310-2018'!J637","v":0.2170354098638047},null,null,3.5774895833333336,3.025586180849616,null,9.07583126039669,11.041382371954906,{"$f":"AVERAGE(BL632:BL638)","v":8.601659502276963},18.815156748234592,null,null,-4.919467184158373]
[{"$f":"'[1]Nominal weighted'!B636","v":1942},null,-11.58205815242976,-4.076833333333333,-0.8226899814111435,2.266892795376366,-19.929640947624414,-6.922258064516122,5.224539298863129,1.6118558940737913,null,-96.89493924772412,-3.4317619047619052,-5.974104308937192,0.7490719424117198,{"$f":"AVERAGE(G633:G639)","v":-22.485559585848222},-1.8471776086559488,-14.541448913088022,-6.3171036750914595,null,15.73805815242976,7.1,3.9226899814111436,2.0831072046236336,23.019640947624413,9.032258064516121,-0.8045392988631288,2.1511441059262086,null,null,4.156,3.023166666666667,{"v":3.1,"d":"3.10"},4.35,3.09,2.11,4.42,3.763,null,3.763,{"$f":"AE636*'III. GDP shares, 1310-2018'!C638","v":0.23612628378952694},{"$f":"AF636*'III. GDP shares, 1310-2018'!D638","v":0.4188693648446557},{"$f":"AG636*'III. GDP shares, 1310-2018'!E638","v":0.043138428515502605},{"$f":"AH636*'III. GDP shares, 1310-2018'!F638","v":0.6627954612501413},{"$f":"AI636*'III. GDP shares, 1310-2018'!G638","v":0.13602725410457933},{"$f":"AJ636*'III. GDP shares, 1310-2018'!H638","v":1.0428133118109872},{"$f":"AK636*'III. GDP shares, 1310-2018'!I638","v":0.09221161144451698},{"$f":"AL636*'III. GDP shares, 1310-2018'!J638","v":0.29818097269338095},null,null,{"$f":"U636*'III. GDP shares, 1310-2018'!C638","v":0.8941696789212483},{"$f":"V636*'III. GDP shares, 1310-2018'!D638","v":0.9837276003298049},{"$f":"W636*'III. GDP shares, 1310-2018'!E638","v":0.0545866714037364},{"$f":"X636*'III. GDP shares, 1310-2018'!F638","v":0.3173963219590837},{"$f":"Y636*'III. GDP shares, 1310-2018'!G638","v":1.0133652260772446},{"$f":"Z636*'III. GDP shares, 1310-2018'!H638","v":4.4639615854926795},{"$f":"AA636*'III. GDP shares, 1310-2018'!I638","v":-0.01678458489108845},{"$f":"AB636*'III. GDP shares, 1310-2018'!J638","v":0.17045714640146434},null,null,3.501520833333333,2.930162688453291,null,7.880879645694173,7.780294894708518,{"$f":"AVERAGE(BL633:BL639)","v":9.608861759957971},22.091246960330945,null,null,-4.385858721755733]
[{"$f":"'[1]Nominal weighted'!B637","v":1943},null,-62.8410863602365,-0.30166666666666675,0.18040858819138128,2.2826981174156113,-27.12217193509798,-0.8385798816568046,2.3923487456060992,-4.448367561890414,null,-101.12342034065848,-3.6372499999999994,-6.621741126380335,-0.6028981436619131,{"$f":"AVERAGE(G634:G640)","v":-31.62099518115471},-4.5060159132085404,-6.418620845265887,-6.969559462528912,null,67.3140863602365,3.4,2.8295914118086185,1.9273018825843886,30.242171935097982,2.9585798816568047,2.0276512543939007,8.215367561890414,null,null,4.473,3.098333333333333,3.01,4.21,3.12,2.12,4.42,3.767,null,3.767,{"$f":"AE637*'III. GDP shares, 1310-2018'!C639","v":0.20955150250838167},{"$f":"AF637*'III. GDP shares, 1310-2018'!D639","v":0.3993912331847976},{"$f":"AG637*'III. GDP shares, 1310-2018'!E639","v":0.037212643897155104},{"$f":"AH637*'III. GDP shares, 1310-2018'!F639","v":0.5956783049365962},{"$f":"AI637*'III. GDP shares, 1310-2018'!G639","v":0.11874259084744447},{"$f":"AJ637*'III. GDP shares, 1310-2018'!H639","v":1.1436712568650034},{"$f":"AK637*'III. GDP shares, 1310-2018'!I639","v":0.08705195486919118},{"$f":"AL637*'III. GDP shares, 1310-2018'!J639","v":0.27563639185320005},null,null,{"$f":"U637*'III. GDP shares, 1310-2018'!C639","v":3.15353631494892},{"$f":"V637*'III. GDP shares, 1310-2018'!D639","v":0.4382776308214024},{"$f":"W637*'III. GDP shares, 1310-2018'!E639","v":0.0349822516883995},{"$f":"X637*'III. GDP shares, 1310-2018'!F639","v":0.2726964177004702},{"$f":"Y637*'III. GDP shares, 1310-2018'!G639","v":1.1509723873164768},{"$f":"Z637*'III. GDP shares, 1310-2018'!H639","v":1.5960579112216748},{"$f":"AA637*'III. GDP shares, 1310-2018'!I639","v":0.039934616626234556},{"$f":"AB637*'III. GDP shares, 1310-2018'!J639","v":0.6011293529353052},null,null,3.527291666666667,2.8669358789617694,null,7.287586883258883,14.864343785958578,{"$f":"AVERAGE(BL634:BL640)","v":11.765532288227368},23.451070662321634,null,null,-4.381764606660509]
[{"$f":"'[1]Nominal weighted'!B638","v":1944},null,-489.12695668241116,0.4346666666666663,-6.324361540674786,-1.8908593154016309,-17.018436996197664,-0.19885057471265588,0.1745593189081438,-14.11655991817029,null,-104.99731111142232,-2.325166666666667,-4.943869509482921,-0.5039022546166233,{"$f":"AVERAGE(G635:G641)","v":-37.123995355404034},-5.6235764257856635,-4.125288391845553,-8.314900817677511,null,491.56995668241115,2.7,9.254361540674786,1.8908593154016309,20.008436996197666,2.298850574712656,4.173440681091856,17.87955991817029,null,null,2.443,3.1346666666666665,2.93,null,2.99,2.1,4.348,3.763,null,3.763,{"$f":"AE638*'III. GDP shares, 1310-2018'!C640","v":0.09093054640870257},{"$f":"AF638*'III. GDP shares, 1310-2018'!D640","v":0.37961922850607777},{"$f":"AG638*'III. GDP shares, 1310-2018'!E640","v":0.023760472651560963},{"$f":"AH638*'III. GDP shares, 1310-2018'!F640","v":0},{"$f":"AI638*'III. GDP shares, 1310-2018'!G640","v":0.09397763109365873},{"$f":"AJ638*'III. GDP shares, 1310-2018'!H640","v":1.2005844156939323},{"$f":"AK638*'III. GDP shares, 1310-2018'!I640","v":0.08762897411148411},{"$f":"AL638*'III. GDP shares, 1310-2018'!J640","v":0.25763955146438594},null,null,{"$f":"U638*'III. GDP shares, 1310-2018'!C640","v":18.29665360590827},{"$f":"V638*'III. GDP shares, 1310-2018'!D640","v":0.3269795566672937},{"$f":"W638*'III. GDP shares, 1310-2018'!E640","v":0.07504710044193202},{"$f":"X638*'III. GDP shares, 1310-2018'!F640","v":0.2681396055907797},{"$f":"Y638*'III. GDP shares, 1310-2018'!G640","v":0.6288780972539724},{"$f":"Z638*'III. GDP shares, 1310-2018'!H640","v":1.3142686542900257},{"$f":"AA638*'III. GDP shares, 1310-2018'!I640","v":0.08411093040460278},{"$f":"AB638*'III. GDP shares, 1310-2018'!J640","v":1.224151421126231},null,null,3.101238095238095,2.1341408199298026,null,22.218228971683104,68.72193321358252,{"$f":"AVERAGE(BL635:BL641)","v":12.71583669687662},24.27062691185076,null,null,-20.13672782359209]
[{"$f":"'[1]Nominal weighted'!B639","v":1945},null,-92.73159188581013,0.09175000000000022,-17.546154596915727,-4.677696437380987,-58.642546744791076,-0.5771910112359473,-9.214258331432177,-14.19055991817029,null,-102.72482315899443,-1.8692261904761907,-4.759961190262118,-2.83196536153628,{"$f":"AVERAGE(G636:G642)","v":-40.449306981967034},-4.625344279681178,-1.3713791294407796,-16.474154953404444,null,96.16859188581013,2.8,17.546154596915727,4.677696437380987,61.67254674479108,2.2471910112359472,13.562258331432178,17.87955991817029,null,null,3.437,2.89175,null,null,3.03,1.67,4.348,3.689,null,3.689,{"$f":"AE639*'III. GDP shares, 1310-2018'!C641","v":0.11253563874514659},{"$f":"AF639*'III. GDP shares, 1310-2018'!D641","v":0.3762004498182019},{"$f":"AG639*'III. GDP shares, 1310-2018'!E641","v":0},{"$f":"AH639*'III. GDP shares, 1310-2018'!F641","v":0},{"$f":"AI639*'III. GDP shares, 1310-2018'!G641","v":0.11603322261639097},{"$f":"AJ639*'III. GDP shares, 1310-2018'!H641","v":1.0296856973188273},{"$f":"AK639*'III. GDP shares, 1310-2018'!I641","v":0.09180872851496549},{"$f":"AL639*'III. GDP shares, 1310-2018'!J641","v":0.14189646560314984},null,null,{"$f":"U639*'III. GDP shares, 1310-2018'!C641","v":3.148790781231005},{"$f":"V639*'III. GDP shares, 1310-2018'!D641","v":0.36426428961388957},{"$f":"W639*'III. GDP shares, 1310-2018'!E641","v":0.16365158299643576},{"$f":"X639*'III. GDP shares, 1310-2018'!F641","v":0.5303727485867865},{"$f":"Y639*'III. GDP shares, 1310-2018'!G641","v":2.3617374078409643},{"$f":"Z639*'III. GDP shares, 1310-2018'!H641","v":1.3855691277922677},{"$f":"AA639*'III. GDP shares, 1310-2018'!I641","v":0.28636929466427913},{"$f":"AB639*'III. GDP shares, 1310-2018'!J641","v":0.6877328161908667},null,null,3.1776249999999995,1.8681602026166821,null,8.928488048916494,27.06924986571704,{"$f":"AVERAGE(BL636:BL642)","v":12.9982492708116},25.255256167625067,null,null,-7.072264006504125]
[{"$f":"'[1]Nominal weighted'!B640","v":1946},null,-27.945166982485745,-0.5091666666666672,-6.52703465141507,-5.783801822736643,-70.67264958233156,-16.311868131868138,-4.160600384639924,-14.19055991817029,null,-99.95724957463904,-1.2153928571428574,-4.996247360913267,-1.408402131861714,{"$f":"AVERAGE(G637:G643)","v":-36.828975748342074},-3.082923299510232,-2.521484089726763,-16.62565975055076,null,32.15016698248574,3.1,9.53703465141507,10.291001822736643,74.02264958233155,18.13186813186814,8.544600384639924,17.87955991817029,null,null,4.205,2.590833333333333,3.01,4.5072,3.35,1.82,4.384,3.689,null,3.689,{"$f":"AE640*'III. GDP shares, 1310-2018'!C642","v":0.21263137676307473},{"$f":"AF640*'III. GDP shares, 1310-2018'!D642","v":0.38010976176413835},{"$f":"AG640*'III. GDP shares, 1310-2018'!E642","v":0.05586743634110415},{"$f":"AH640*'III. GDP shares, 1310-2018'!F642","v":0.2855939424685504},{"$f":"AI640*'III. GDP shares, 1310-2018'!G642","v":0.22995275318500746},{"$f":"AJ640*'III. GDP shares, 1310-2018'!H642","v":1.049908254588678},{"$f":"AK640*'III. GDP shares, 1310-2018'!I642","v":0.11402421405584853},{"$f":"AL640*'III. GDP shares, 1310-2018'!J642","v":0.18176203787194656},null,null,{"$f":"U640*'III. GDP shares, 1310-2018'!C642","v":1.6257156405823283},{"$f":"V640*'III. GDP shares, 1310-2018'!D642","v":0.45481129423049055},{"$f":"W640*'III. GDP shares, 1310-2018'!E642","v":0.17701318148532755},{"$f":"X640*'III. GDP shares, 1310-2018'!F642","v":0.6520784039994667},{"$f":"Y640*'III. GDP shares, 1310-2018'!G642","v":5.081108080449607},{"$f":"Z640*'III. GDP shares, 1310-2018'!H642","v":10.459779133385576},{"$f":"AA640*'III. GDP shares, 1310-2018'!I642","v":0.2222379888868313},{"$f":"AB640*'III. GDP shares, 1310-2018'!J642","v":0.8809501889347264},null,null,3.444504166666667,2.5098497770383483,null,19.553693911954355,21.70711018420592,{"$f":"AVERAGE(BL637:BL643)","v":11.734366865363127},24.2936159587287,null,null,-16.969142602449654]
[{"$f":"'[1]Nominal weighted'!B641","v":1947},null,-39.62199957593373,-4.230833333333333,0.5517784999915407,1.6922603016519058,-52.01697853779048,-6.657209302325574,-4.938884002045952,-14.19055991817029,null,-91.06070946584855,-1.1086071428571433,-5.893740802317174,-0.5228176254620021,{"$f":"AVERAGE(G638:G644)","v":-33.350634879407},-3.4991552292493324,-3.8179807025905013,-15.091978445308824,null,44.28899957593373,7,2.538221500008459,2.7627396983480943,56.496978537790476,8.837209302325574,9.876884002045951,17.87955991817029,null,null,4.667,2.769166666666667,3.09,4.455,4.48,2.18,4.938,3.689,null,3.689,{"$f":"AE641*'III. GDP shares, 1310-2018'!C643","v":0.2721769708076917},{"$f":"AF641*'III. GDP shares, 1310-2018'!D643","v":0.39284383400083195},{"$f":"AG641*'III. GDP shares, 1310-2018'!E643","v":0.06515921105051015},{"$f":"AH641*'III. GDP shares, 1310-2018'!F643","v":0.3111488286968612},{"$f":"AI641*'III. GDP shares, 1310-2018'!G643","v":0.32711739531626344},{"$f":"AJ641*'III. GDP shares, 1310-2018'!H643","v":1.2157938890124829},{"$f":"AK641*'III. GDP shares, 1310-2018'!I643","v":0.12813984330138437},{"$f":"AL641*'III. GDP shares, 1310-2018'!J643","v":0.1926270306654768},null,null,{"$f":"U641*'III. GDP shares, 1310-2018'!C643","v":2.582911023072806},{"$f":"V641*'III. GDP shares, 1310-2018'!D643","v":0.9930449008748083},{"$f":"W641*'III. GDP shares, 1310-2018'!E643","v":0.05352378977734422},{"$f":"X641*'III. GDP shares, 1310-2018'!F643","v":0.19295695199446222},{"$f":"Y641*'III. GDP shares, 1310-2018'!G643","v":4.125255460384119},{"$f":"Z641*'III. GDP shares, 1310-2018'!H643","v":4.928543608115459},{"$f":"AA641*'III. GDP shares, 1310-2018'!I643","v":0.2563026262308867},{"$f":"AB641*'III. GDP shares, 1310-2018'!J643","v":0.9336097957827645},null,null,3.783520833333333,2.905007002851502,null,14.06614815623265,18.710074066827822,{"$f":"AVERAGE(BL638:BL644)","v":11.356776944761213},22.883880715201496,null,null,-10.560940086507173]
[{"$f":"'[1]Nominal weighted'!B642","v":1948},null,4.7750975263461815,-4.492500000000001,-2.8316746496010192,-13.713251169678584,-37.74272412993602,-0.8714529914530038,0.9226414486552246,-55.79433333333333,null,-21.629488053520536,-1.935345238095238,-5.270872064319518,-1.3134612131993448,{"$f":"AVERAGE(G639:G645)","v":-33.2140906287447},-3.96931943286181,-3.629168442760215,-15.010701178087217,null,-0.24409752634618134,7.7,5.941674649601019,19.268851169678584,42.43272412993602,2.991452991453004,4.046358551344776,61.33333333333333,null,null,4.531,3.2074999999999996,3.11,5.5556,4.69,2.12,4.969,5.539,null,5.539,{"$f":"AE642*'III. GDP shares, 1310-2018'!C644","v":0.2641358045080175},{"$f":"AF642*'III. GDP shares, 1310-2018'!D644","v":0.44401592875070567},{"$f":"AG642*'III. GDP shares, 1310-2018'!E644","v":0.06865818993637145},{"$f":"AH642*'III. GDP shares, 1310-2018'!F644","v":0.43469802997472134},{"$f":"AI642*'III. GDP shares, 1310-2018'!G644","v":0.34756420092191387},{"$f":"AJ642*'III. GDP shares, 1310-2018'!H644","v":1.1606913676336619},{"$f":"AK642*'III. GDP shares, 1310-2018'!I644","v":0.1222701492403652},{"$f":"AL642*'III. GDP shares, 1310-2018'!J644","v":0.3142971545605047},null,null,{"$f":"U642*'III. GDP shares, 1310-2018'!C644","v":-0.014229727764260782},{"$f":"V642*'III. GDP shares, 1310-2018'!D644","v":1.0659150900640482},{"$f":"W642*'III. GDP shares, 1310-2018'!E644","v":0.13117190566959167},{"$f":"X642*'III. GDP shares, 1310-2018'!F644","v":1.5076916342672952},{"$f":"Y642*'III. GDP shares, 1310-2018'!G644","v":3.144583337987468},{"$f":"Z642*'III. GDP shares, 1310-2018'!H644","v":1.6378083320100925},{"$f":"AA642*'III. GDP shares, 1310-2018'!I644","v":0.09956708874078357},{"$f":"AB642*'III. GDP shares, 1310-2018'!J644","v":3.4802116169665323},null,null,4.215262500000001,3.156330825526261,null,11.05271927794155,17.93378716237507,{"$f":"AVERAGE(BL639:BL645)","v":9.49187758257945},14.595255483829524,null,null,-7.274489291101945]
[{"$f":"'[1]Nominal weighted'!B643","v":1949},null,7.790956938057741,0.49999999999999956,-2.476693175969187,12.231835403098328,5.412677687750324,3.8746887966804975,-2.8261954231387563,0.5513223140495889,null,-8.143141810429183,-2.6577380952380953,-2.65582365891592,-0.646933869535791,{"$f":"AVERAGE(G640:G646)","v":-24.2776435585269},-3.634680285704114,-1.4117190043056471,-12.197764046920033,null,-3.3319569380577416,2.8,5.606693175969187,-7.142735403098328,-0.4126776877503234,-2.0746887966804977,7.987195423138756,4.958677685950411,null,null,4.459,3.2999999999999994,3.13,5.0891,5,1.8,5.161,5.51,null,5.51,{"$f":"AE643*'III. GDP shares, 1310-2018'!C645","v":0.26824481800465644},{"$f":"AF643*'III. GDP shares, 1310-2018'!D645","v":0.4553761564220898},{"$f":"AG643*'III. GDP shares, 1310-2018'!E645","v":0.07225799453789859},{"$f":"AH643*'III. GDP shares, 1310-2018'!F645","v":0.44785425432168474},{"$f":"AI643*'III. GDP shares, 1310-2018'!G645","v":0.4045176466836741},{"$f":"AJ643*'III. GDP shares, 1310-2018'!H645","v":0.9507384283158629},{"$f":"AK643*'III. GDP shares, 1310-2018'!I645","v":0.12125525328989481},{"$f":"AL643*'III. GDP shares, 1310-2018'!J645","v":0.32054326906789476},null,null,{"$f":"U643*'III. GDP shares, 1310-2018'!C645","v":-0.20044408666711175},{"$f":"V643*'III. GDP shares, 1310-2018'!D645","v":0.3863797690854096},{"$f":"W643*'III. GDP shares, 1310-2018'!E645","v":0.12943399517088014},{"$f":"X643*'III. GDP shares, 1310-2018'!F645","v":-0.6285795990984063},{"$f":"Y643*'III. GDP shares, 1310-2018'!G645","v":-0.03338708141752418},{"$f":"Z643*'III. GDP shares, 1310-2018'!H645","v":-1.0958257587780806},{"$f":"AA643*'III. GDP shares, 1310-2018'!I645","v":0.18765537766103052},{"$f":"AB643*'III. GDP shares, 1310-2018'!J645","v":0.2884701915986512},null,null,4.181137499999999,3.0407878206436565,null,-0.9662971924451513,1.0488134324339329,{"$f":"AVERAGE(BL640:BL646)","v":8.546042256362421},11.096884707863627,null,null,3.9380886257521275]
[{"$f":"'[1]Nominal weighted'!B644","v":1950},null,-0.565305598703099,0.44583333333333286,-6.102045501635963,8.481789662213593,-2.7737858525525363,-3.7522033898305023,-6.68312754444007,6.287401574803146,null,-3.4820860209374564,-2.4446428571428567,-1.2705329944280523,1.3192761290536343,{"$f":"AVERAGE(G641:G647)","v":-13.110365655225916},-1.041422505496091,-0.24589027087549756,-10.335160249086183,null,5.384305598703099,3.1,9.292045501635963,-3.2054896622135924,8.053785852552537,5.932203389830502,12.20012754444007,-0.7874015748031469,null,null,4.819,3.545833333333333,3.19,5.2763,5.28,2.18,5.517,5.5,null,5.5,{"$f":"AE644*'III. GDP shares, 1310-2018'!C646","v":0.2903733345850352},{"$f":"AF644*'III. GDP shares, 1310-2018'!D646","v":0.4505462528208953},{"$f":"AG644*'III. GDP shares, 1310-2018'!E646","v":0.07066319258505424},{"$f":"AH644*'III. GDP shares, 1310-2018'!F646","v":0.5114276160265575},{"$f":"AI644*'III. GDP shares, 1310-2018'!G646","v":0.42526125381081137},{"$f":"AJ644*'III. GDP shares, 1310-2018'!H646","v":1.1593694929073068},{"$f":"AK644*'III. GDP shares, 1310-2018'!I646","v":0.12379567877919614},{"$f":"AL644*'III. GDP shares, 1310-2018'!J646","v":0.3233894870189501},null,null,{"$f":"U644*'III. GDP shares, 1310-2018'!C646","v":0.32443635009759153},{"$f":"V644*'III. GDP shares, 1310-2018'!D646","v":0.393897076496764},{"$f":"W644*'III. GDP shares, 1310-2018'!E646","v":0.20583247673704982},{"$f":"X644*'III. GDP shares, 1310-2018'!F646","v":-0.3107055959941005},{"$f":"Y644*'III. GDP shares, 1310-2018'!G646","v":0.6486672480265655},{"$f":"Z644*'III. GDP shares, 1310-2018'!H646","v":3.1548695577480714},{"$f":"AA644*'III. GDP shares, 1310-2018'!I646","v":0.2737580334523701},{"$f":"AB644*'III. GDP shares, 1310-2018'!J646","v":-0.04629770751881875},null,null,4.413516666666666,3.354826308533807,null,4.6444574390454925,4.996197081268178,{"$f":"AVERAGE(BL641:BL647)","v":5.91558943523957},8.210853053017301,null,null,-1.3462803068358173]
[{"$f":"'[1]Nominal weighted'!B645","v":1951},null,-3.1084067961149504,-5.352499999999999,-1.9642803746911968,-7.425364429563026,-16.062627241561557,-3.49,1.4962451377201473,-13.547619047619051,null,2.5611139395932447,-1.5608333333333337,-2.1279764660356686,1.3946031491317294,{"$f":"AVERAGE(G642:G648)","v":-5.215365533439594},0.37439231252067934,0.6954793266102356,-7.5755952308360195,null,8.27440679611495,9.1,5.514280374691197,12.743764429563026,21.722627241561558,6,3.209754862279853,19.04761904761905,null,null,5.166,3.7475,3.55,5.3184,5.66,2.51,4.706,5.5,null,5.5,{"$f":"AE645*'III. GDP shares, 1310-2018'!C647","v":0.3118619016078583},{"$f":"AF645*'III. GDP shares, 1310-2018'!D647","v":0.45716841732461777},{"$f":"AG645*'III. GDP shares, 1310-2018'!E647","v":0.07484882590417552},{"$f":"AH645*'III. GDP shares, 1310-2018'!F647","v":0.5246453001602238},{"$f":"AI645*'III. GDP shares, 1310-2018'!G647","v":0.451167060273828},{"$f":"AJ645*'III. GDP shares, 1310-2018'!H647","v":1.3392159890209994},{"$f":"AK645*'III. GDP shares, 1310-2018'!I647","v":0.10822703034038648},{"$f":"AL645*'III. GDP shares, 1310-2018'!J647","v":0.339054116869827},null,null,{"$f":"U645*'III. GDP shares, 1310-2018'!C647","v":0.4995106926274477},{"$f":"V645*'III. GDP shares, 1310-2018'!D647","v":1.1101354496741886},{"$f":"W645*'III. GDP shares, 1310-2018'!E647","v":0.11626405964847132},{"$f":"X645*'III. GDP shares, 1310-2018'!F647","v":1.2571367543470364},{"$f":"Y645*'III. GDP shares, 1310-2018'!G647","v":1.7315430872790638},{"$f":"Z645*'III. GDP shares, 1310-2018'!H647","v":3.201313121165736},{"$f":"AA645*'III. GDP shares, 1310-2018'!I647","v":0.0738168799118497},{"$f":"AB645*'III. GDP shares, 1310-2018'!J647","v":1.1742133917569768},null,null,{"$f":"AVERAGE(AE645:AL645)","v":4.5197375},{"$f":"SUM(AO645:AV645)","v":3.6061886415019164},null,{"$f":"SUM(AY645:BF645)","v":9.16393343641077},{"$f":"AVERAGE(U645:AB645)","v":10.701556593978705},{"$f":"AVERAGE(BL642:BL648)","v":4.0321395190500136},5.938241777092638,null,null,{"$f":"((AO645+SUM(AQ645:AV645))-((AY645+(SUM(BA645:BF645)))))","v":-4.9047777625592826}]
[{"$f":"'[1]Nominal weighted'!B646","v":1952},null,1.6728318158293094,-4.965000000000001,0.7591842409094598,-0.012005031736111782,3.912582746733532,1.7652830188679274,6.3078877377498,5.5,null,1.3257554751951799,-0.9653571428571427,-0.960059694055408,3.872664758563595,{"$f":"AVERAGE(G643:G649)","v":0.814818810897921},0.8682381919845373,0.7582598860753063,1.7926569528777019,null,3.570168184170691,9.2,2.52081575909054,4.762005031736112,1.3974172532664677,0.7547169811320728,-1.5598877377498002,0,null,null,5.243,4.2349999999999985,3.28,4.75,5.31,2.52,4.748,5.5,null,5.5,{"$f":"AE646*'III. GDP shares, 1310-2018'!C648","v":0.3257633665648948},{"$f":"AF646*'III. GDP shares, 1310-2018'!D648","v":0.493817701847252},{"$f":"AG646*'III. GDP shares, 1310-2018'!E648","v":0.06755595903429884},{"$f":"AH646*'III. GDP shares, 1310-2018'!F648","v":0.48758911559568174},{"$f":"AI646*'III. GDP shares, 1310-2018'!G648","v":0.41606266159666055},{"$f":"AJ646*'III. GDP shares, 1310-2018'!H648","v":1.3355290098716424},{"$f":"AK646*'III. GDP shares, 1310-2018'!I648","v":0.11309130217438304},{"$f":"AL646*'III. GDP shares, 1310-2018'!J648","v":0.36229200926218497},null,null,{"$f":"U646*'III. GDP shares, 1310-2018'!C648","v":0.22182529217591487},{"$f":"V646*'III. GDP shares, 1310-2018'!D648","v":1.0727562826433812},{"$f":"W646*'III. GDP shares, 1310-2018'!E648","v":0.051919550656748616},{"$f":"X646*'III. GDP shares, 1310-2018'!F648","v":0.4888214361866099},{"$f":"Y646*'III. GDP shares, 1310-2018'!G648","v":0.10949400033053508},{"$f":"Z646*'III. GDP shares, 1310-2018'!H648","v":0.39997873910501275},{"$f":"AA646*'III. GDP shares, 1310-2018'!I648","v":-0.03715453570092195},{"$f":"AB646*'III. GDP shares, 1310-2018'!J648","v":0},null,null,4.44825,3.601701125946998,null,2.307640765397281,2.58065443395576,{"$f":"AVERAGE(BL643:BL649)","v":2.673909733739471},3.693611773736218,null,null,1.872998941345847]
[{"$f":"'[1]Nominal weighted'!B647","v":1953},null,4.6822235439563515,0.9825000000000004,3.17,7.979668167389335,7.498295740775339,1.8409363295880175,4.000200749371123,-1.1523333333333294,null,0.8139224347625106,-1.0597619047619047,-0.6951732953885302,2.934188132799323,{"$f":"AVERAGE(G644:G650)","v":0.6556283157105812},0.4011291314779414,0.6689213329534095,2.5002952536079985,null,0.8627764560436487,3.1,0,-2.7275681673893337,-2.0682957407753384,0.7490636704119823,0.7897992506288775,11.333333333333329,null,null,5.545,4.0825000000000005,3.17,5.2521,5.43,2.59,4.79,10.181,null,10.181,{"$f":"AE647*'III. GDP shares, 1310-2018'!C649","v":0.3515076409782835},{"$f":"AF647*'III. GDP shares, 1310-2018'!D649","v":0.47081036912776675},{"$f":"AG647*'III. GDP shares, 1310-2018'!E649","v":0.06753094372784414},{"$f":"AH647*'III. GDP shares, 1310-2018'!F649","v":0.5559922333477316},{"$f":"AI647*'III. GDP shares, 1310-2018'!G649","v":0.4165614387530162},{"$f":"AJ647*'III. GDP shares, 1310-2018'!H649","v":1.3662538043532229},{"$f":"AK647*'III. GDP shares, 1310-2018'!I649","v":0.10821639136306314},{"$f":"AL647*'III. GDP shares, 1310-2018'!J649","v":0.6852015342155957},null,null,{"$f":"U647*'III. GDP shares, 1310-2018'!C649","v":0.05469296965834205},{"$f":"V647*'III. GDP shares, 1310-2018'!D649","v":0.35750450564508923},{"$f":"W647*'III. GDP shares, 1310-2018'!E649","v":0},{"$f":"X647*'III. GDP shares, 1310-2018'!F649","v":-0.2887429251147112},{"$f":"Y647*'III. GDP shares, 1310-2018'!G649","v":-0.15866892256797613},{"$f":"Z647*'III. GDP shares, 1310-2018'!H649","v":0.39513941675797665},{"$f":"AA647*'III. GDP shares, 1310-2018'!I649","v":0.01784326196332121},{"$f":"AB647*'III. GDP shares, 1310-2018'!J649","v":0.7627558577523572},null,null,5.130075,4.022074355866524,null,1.140524164094399,1.5048886002816457,{"$f":"AVERAGE(BL644:BL650)","v":3.24587851283659},4.070662872473882,null,null,2.7682443282894473]
[{"$f":"'[1]Nominal weighted'!B648","v":1954},null,2.680400147781178,1.9558333333333333,-5.450325801261771,2.2195494421985713,3.248022314713761,3.253494423791819,1.650703180354181,5.126395209580842,null,1.6309954539232623,-0.9370238095238095,-0.15568900701275976,2.518109703432184,{"$f":"AVERAGE(G645:G651)","v":0.4562945648179651},0.981650940791203,0.32605205468325693,2.9514684622200824,null,3.4195998522188216,1.8,8.670325801261772,2.8040505578014288,2.1119776852862393,-0.743494423791819,3.1542968196458188,1.1976047904191574,null,null,6.1,3.7558333333333334,3.22,5.0236,5.36,2.51,4.805,6.324,null,6.324,{"$f":"AE648*'III. GDP shares, 1310-2018'!C650","v":0.39756147938130726},{"$f":"AF648*'III. GDP shares, 1310-2018'!D650","v":0.44060640887095787},{"$f":"AG648*'III. GDP shares, 1310-2018'!E650","v":0.07160490749241527},{"$f":"AH648*'III. GDP shares, 1310-2018'!F650","v":0.558545993380205},{"$f":"AI648*'III. GDP shares, 1310-2018'!G650","v":0.42140074811628836},{"$f":"AJ648*'III. GDP shares, 1310-2018'!H650","v":1.2856517750094703},{"$f":"AK648*'III. GDP shares, 1310-2018'!I650","v":0.11416148860158425},{"$f":"AL648*'III. GDP shares, 1310-2018'!J650","v":0.43952542385218923},null,null,{"$f":"U648*'III. GDP shares, 1310-2018'!C650","v":0.22286904526888762},{"$f":"V648*'III. GDP shares, 1310-2018'!D650","v":0.21116260110079188},{"$f":"W648*'III. GDP shares, 1310-2018'!E650","v":0.1928067940771585},{"$f":"X648*'III. GDP shares, 1310-2018'!F650","v":0.31176670202554285},{"$f":"Y648*'III. GDP shares, 1310-2018'!G650","v":0.16604271951203886},{"$f":"Z648*'III. GDP shares, 1310-2018'!H650","v":-0.3808266636086038},{"$f":"AA648*'III. GDP shares, 1310-2018'!I650","v":0.0749426057069739},{"$f":"AB648*'III. GDP shares, 1310-2018'!J650","v":0.08323493882295896},null,null,4.637304166666667,3.7290582247044175,null,0.8819987429057489,2.8017951353551767,{"$f":"AVERAGE(BL645:BL651)","v":3.11162606019381},4.142946871250244,null,null,2.617615674028503]
[{"$f":"'[1]Nominal weighted'!B649","v":1955},null,{"$f":"AE649-U649","v":-3.872411724440271},{"$f":"AF649-V649","v":-0.3241666666666658},{"$f":"AG649-W649","v":5.343742754260804},{"$f":"AH649-X649","v":3.633180096344474},{"$f":"AI649-Y649","v":4.468566280426585},{"$f":"AJ649-Z649","v":2.585468164794002},{"$f":"AK649-AA649","v":1.3621053649107169},{"$f":"AL649-AB649","v":9.783431952662717},null,2.879963266340198,0.11095238095238079,0.8617594914612919,4.265083204277993,{"$f":"AVERAGE(G646:G652)","v":2.269911510506104},1.780141886465247,-0.7894461172022984,6.086842611879947,null,10.47241172444027,4.5,-1.943742754260804,1.3429199036555257,0.7514337195734149,0.37453183520599787,3.456894635089283,-1.1834319526627177,null,null,6.6,4.175833333333334,{"v":3.4,"d":"3.40"},4.9761,5.22,2.96,4.819,8.6,null,8.6,{"$f":"AE649*'III. GDP shares, 1310-2018'!C651","v":0.42557383390009684},{"$f":"AF649*'III. GDP shares, 1310-2018'!D651","v":0.4746643065067782},{"$f":"AG649*'III. GDP shares, 1310-2018'!E651","v":0.07593476283271364},{"$f":"AH649*'III. GDP shares, 1310-2018'!F651","v":0.5741981650132597},{"$f":"AI649*'III. GDP shares, 1310-2018'!G651","v":0.4057307279603091},{"$f":"AJ649*'III. GDP shares, 1310-2018'!H651","v":1.517686016782855},{"$f":"AK649*'III. GDP shares, 1310-2018'!I651","v":0.11131325132087284},{"$f":"AL649*'III. GDP shares, 1310-2018'!J651","v":0.6068849292320675},null,null,{"$f":"U649*'III. GDP shares, 1310-2018'!C651","v":0.6752703648106623},{"$f":"V649*'III. GDP shares, 1310-2018'!D651","v":0.5115121243537422},{"$f":"W649*'III. GDP shares, 1310-2018'!E651","v":-0.04341107207429404},{"$f":"X649*'III. GDP shares, 1310-2018'!F651","v":0.15496114315202397},{"$f":"Y649*'III. GDP shares, 1310-2018'!G651","v":0.05840608238629204},{"$f":"Z649*'III. GDP shares, 1310-2018'!H651","v":0.19203436795005527},{"$f":"AA649*'III. GDP shares, 1310-2018'!I651","v":0.07985021400819058},{"$f":"AB649*'III. GDP shares, 1310-2018'!J651","v":-0.08351244381891638},null,null,5.093866666666667,4.191985993548953,null,1.545110780767756,2.221377138880121,{"$f":"AVERAGE(BL646:BL652)","v":2.1399694605120367},3.082982303998225,null,null,2.683723030628161]
[{"$f":"'[1]Nominal weighted'!B650","v":1956},null,4.208125655029056,-0.1608333333333336,-0.6224883853010441,5.662499022748422,4.298344221438944,0.6049253731343254,-3.451565294992032,5.5047904191616635,null,3.1717554619526647,1.4238095238095239,0.9034107732749156,4.842664730103051,{"$f":"AVERAGE(G647:G653)","v":1.6010908172032783},1.95080091145149,-1.4325156025130472,6.501292529778139,null,3.001874344970944,4.9,4.832488385301044,1.6375009772515774,1.341655778561056,2.9850746268656745,8.411565294992032,2.3952095808383365,null,null,7.21,4.739166666666667,4.21,7.3,5.64,3.59,4.96,7.9,null,7.9,{"$f":"AE650*'III. GDP shares, 1310-2018'!C652","v":0.46975082626664527},{"$f":"AF650*'III. GDP shares, 1310-2018'!D652","v":0.5271639613709037},{"$f":"AG650*'III. GDP shares, 1310-2018'!E652","v":0.09422464146688163},{"$f":"AH650*'III. GDP shares, 1310-2018'!F652","v":0.8725693178647372},{"$f":"AI650*'III. GDP shares, 1310-2018'!G652","v":0.44517398333158825},{"$f":"AJ650*'III. GDP shares, 1310-2018'!H652","v":1.8139776111752803},{"$f":"AK650*'III. GDP shares, 1310-2018'!I652","v":0.11975087834515333},{"$f":"AL650*'III. GDP shares, 1310-2018'!J652","v":0.5793814334088563},null,null,{"$f":"U650*'III. GDP shares, 1310-2018'!C652","v":0.1955801600414349},{"$f":"V650*'III. GDP shares, 1310-2018'!D652","v":0.5450543507756135},{"$f":"W650*'III. GDP shares, 1310-2018'!E652","v":0.10815664738666522},{"$f":"X650*'III. GDP shares, 1310-2018'!F652","v":0.1957305631127739},{"$f":"Y650*'III. GDP shares, 1310-2018'!G652","v":0.10589898000033131},{"$f":"Z650*'III. GDP shares, 1310-2018'!H652","v":1.5083171422901775},{"$f":"AA650*'III. GDP shares, 1310-2018'!I652","v":0.20308313151873075},{"$f":"AB650*'III. GDP shares, 1310-2018'!J652","v":0.17566328610895457},null,null,5.693645833333333,4.921992653230046,null,3.0374842612346815,3.688171123597583,{"$f":"AVERAGE(BL647:BL653)","v":2.11560903537106},3.103862547343688,null,null,1.9023987814000747]
[{"$f":"'[1]Nominal weighted'!B651","v":1957},null,5.154205535422163,1.3049999999999988,-2.32565548300557,5.569240656643625,-4.169122108800847,0.311449275362329,-9.083212492331139,9.445614035087736,null,3.09216012821821,1.9202738095238097,1.0705536304177727,4.467044509146006,{"$f":"AVERAGE(G648:G654)","v":0.7275558629545067},2.0420179761264756,-1.2604697552336492,7.546970967445341,null,2.1857944645778375,3.7,7.18565548300557,2.1307593433563747,10.089122108800847,2.898550724637671,14.07321249233114,1.754385964912264,null,null,7.34,5.004999999999999,4.86,7.7,5.92,3.21,4.99,11.2,null,11.2,{"$f":"AE651*'III. GDP shares, 1310-2018'!C653","v":0.49004842367131946},{"$f":"AF651*'III. GDP shares, 1310-2018'!D653","v":0.5473154739329579},{"$f":"AG651*'III. GDP shares, 1310-2018'!E653","v":0.10820852572756182},{"$f":"AH651*'III. GDP shares, 1310-2018'!F653","v":0.941592613122502},{"$f":"AI651*'III. GDP shares, 1310-2018'!G653","v":0.4793628804897002},{"$f":"AJ651*'III. GDP shares, 1310-2018'!H653","v":1.5988940980832629},{"$f":"AK651*'III. GDP shares, 1310-2018'!I653","v":0.12030224083469701},{"$f":"AL651*'III. GDP shares, 1310-2018'!J653","v":0.8529058711513418},null,null,{"$f":"U651*'III. GDP shares, 1310-2018'!C653","v":0.14593257926919143},{"$f":"V651*'III. GDP shares, 1310-2018'!D653","v":0.40460884186852036},{"$f":"W651*'III. GDP shares, 1310-2018'!E653","v":0.15998954448605018},{"$f":"X651*'III. GDP shares, 1310-2018'!F653","v":0.26055938416183316},{"$f":"Y651*'III. GDP shares, 1310-2018'!G653","v":0.81695112089309},{"$f":"Z651*'III. GDP shares, 1310-2018'!H653","v":1.4437618836816626},{"$f":"AA651*'III. GDP shares, 1310-2018'!I653","v":0.33928637245897536},{"$f":"AB651*'III. GDP shares, 1310-2018'!J653","v":0.13360054372671268},null,null,6.278124999999999,5.138630127013343,null,3.704690270546035,5.502185072702713,{"$f":"AVERAGE(BL648:BL654)","v":2.184286426341682},3.116908335115667,null,null,1.2912332244028697]
[{"$f":"'[1]Nominal weighted'!B652","v":1958},null,5.634367890803598,1.9833333333333334,5.157859114627165,4.803450076357638,-3.367308621744586,2.0994366197183094,-6.312242065478739,8.4,null,3.0896047579190173,2.050797619047619,2.2151576012699454,4.616163720632785,{"$f":"AVERAGE(G649:G655)","v":0.4208368371331924},2.0613557813565997,-1.0351063653838828,7.696250416269698,null,0.4456321091964018,3,-0.8478591146271657,1.0965499236423617,8.947308621744586,1.7605633802816902,11.85224206547874,0,null,null,6.08,4.983333333333333,4.31,5.9,5.58,3.86,5.54,8.4,null,8.4,{"$f":"AE652*'III. GDP shares, 1310-2018'!C654","v":0.42289584077560105},{"$f":"AF652*'III. GDP shares, 1310-2018'!D654","v":0.5377821963646588},{"$f":"AG652*'III. GDP shares, 1310-2018'!E654","v":0.09461877754294745},{"$f":"AH652*'III. GDP shares, 1310-2018'!F654","v":0.7452586132281687},{"$f":"AI652*'III. GDP shares, 1310-2018'!G654","v":0.45803722419021575},{"$f":"AJ652*'III. GDP shares, 1310-2018'!H654","v":1.8821605578435339},{"$f":"AK652*'III. GDP shares, 1310-2018'!I654","v":0.13779084119787594},{"$f":"AL652*'III. GDP shares, 1310-2018'!J654","v":0.6694496944670445},null,null,{"$f":"U652*'III. GDP shares, 1310-2018'!C654","v":0.03099604695645013},{"$f":"V652*'III. GDP shares, 1310-2018'!D654","v":0.3237484794168515},{"$f":"W652*'III. GDP shares, 1310-2018'!E654","v":-0.01861331623078148},{"$f":"X652*'III. GDP shares, 1310-2018'!F654","v":0.1385107246490103},{"$f":"Y652*'III. GDP shares, 1310-2018'!G654","v":0.7344445170389023},{"$f":"Z652*'III. GDP shares, 1310-2018'!H654","v":0.8584619051683636},{"$f":"AA652*'III. GDP shares, 1310-2018'!I654","v":0.29478888163956063},{"$f":"AB652*'III. GDP shares, 1310-2018'!J654","v":0},null,null,5.581666666666666,4.947993745610045,null,2.3623372386383568,3.2818046232145766,{"$f":"AVERAGE(BL649:BL655)","v":2.4098581445032217},3.1806296563503307,null,null,2.3716227900238818]
[{"$f":"'[1]Nominal weighted'!B653","v":1959},null,3.7153771851165773,4.2250000000000005,1.050743213604826,4.031065649039293,-0.7691621063862488,2.959896193771627,1.8064013405745594,8.401149425287343,null,3.558271906127424,2.3369761904761903,1.6653232199558252,4.558759499871391,{"$f":"AVERAGE(G650:G656)","v":-0.1263223728620737},2.051526995909838,-1.9232524633038202,6.915383449329255,null,1.7746228148834229,0.6,3.4192567863951737,2.1689343509607073,5.959162106386249,1.7301038062283738,3.8635986594254406,2.298850574712656,null,null,5.49,4.825,4.47,6.2,5.19,4.69,5.67,10.7,null,10.7,{"$f":"AE653*'III. GDP shares, 1310-2018'!C655","v":0.38115104270123923},{"$f":"AF653*'III. GDP shares, 1310-2018'!D655","v":0.5090691459604292},{"$f":"AG653*'III. GDP shares, 1310-2018'!E655","v":0.09671515715808769},{"$f":"AH653*'III. GDP shares, 1310-2018'!F655","v":0.789694240535248},{"$f":"AI653*'III. GDP shares, 1310-2018'!G655","v":0.41176349567260134},{"$f":"AJ653*'III. GDP shares, 1310-2018'!H655","v":2.3082949546459837},{"$f":"AK653*'III. GDP shares, 1310-2018'!I655","v":0.1294673620144153},{"$f":"AL653*'III. GDP shares, 1310-2018'!J655","v":0.8743516541905947},null,null,{"$f":"U653*'III. GDP shares, 1310-2018'!C655","v":0.12320570788601545},{"$f":"V653*'III. GDP shares, 1310-2018'!D655","v":0.06330393524896528},{"$f":"W653*'III. GDP shares, 1310-2018'!E655","v":0.0739807511096347},{"$f":"X653*'III. GDP shares, 1310-2018'!F655","v":0.27625725242785915},{"$f":"Y653*'III. GDP shares, 1310-2018'!G655","v":0.47278717152318},{"$f":"Z653*'III. GDP shares, 1310-2018'!H655","v":0.8515117029703129},{"$f":"AA653*'III. GDP shares, 1310-2018'!I655","v":0.08822044555877305},{"$f":"AB653*'III. GDP shares, 1310-2018'!J655","v":0.18785082268570188},null,null,5.904375,5.500507052878599,null,2.1371177894104423,2.726816137374003,{"$f":"AVERAGE(BL650:BL656)","v":2.6314528639477888},3.5302172920500916,null,null,2.9176240527566923]
[{"$f":"'[1]Nominal weighted'!B654","v":1960},null,4.12505620781517,4.45775,4.34,5.350326620690017,1.3835510610339399,2.4794557823129177,5.204521680326906,6.1674157303370825,null,2.931771523525024,2.8725714285714288,1.8593683354720802,4.1231679373877705,{"$f":"AVERAGE(G651:G657)","v":-0.7570701036934379},2.321575250875611,-1.4340653914243295,6.618688322063572,null,1.3949437921848293,1,0,0.8496733793099835,3.6464489389660604,1.3605442176870821,0.5854783196730946,3.932584269662917,null,null,5.52,5.45775,4.34,6.2,5.03,3.84,5.79,10.1,null,10.1,{"$f":"AE654*'III. GDP shares, 1310-2018'!C656","v":0.3844634231685317},{"$f":"AF654*'III. GDP shares, 1310-2018'!D656","v":0.5795309688936753},{"$f":"AG654*'III. GDP shares, 1310-2018'!E656","v":0.09687745370730842},{"$f":"AH654*'III. GDP shares, 1310-2018'!F656","v":0.8120600681620542},{"$f":"AI654*'III. GDP shares, 1310-2018'!G656","v":0.40651997112540567},{"$f":"AJ654*'III. GDP shares, 1310-2018'!H656","v":1.84322532408871},{"$f":"AK654*'III. GDP shares, 1310-2018'!I656","v":0.12780361945573548},{"$f":"AL654*'III. GDP shares, 1310-2018'!J656","v":0.8884728172617166},null,null,{"$f":"U654*'III. GDP shares, 1310-2018'!C656","v":0.0971566785273682},{"$f":"V654*'III. GDP shares, 1310-2018'!D656","v":0.10618496063280203},{"$f":"W654*'III. GDP shares, 1310-2018'!E656","v":0},{"$f":"X654*'III. GDP shares, 1310-2018'!F656","v":0.11128803585773357},{"$f":"Y654*'III. GDP shares, 1310-2018'!G656","v":0.29470264759020853},{"$f":"Z654*'III. GDP shares, 1310-2018'!H656","v":0.6530701970268991},{"$f":"AA654*'III. GDP shares, 1310-2018'!I656","v":0.012923358958045531},{"$f":"AB654*'III. GDP shares, 1310-2018'!J656","v":0.3459400222956953},null,null,5.784718750000001,5.138953645863137,null,1.6212659008887522,1.5962091146854958,{"$f":"AVERAGE(BL651:BL657)","v":2.6510277566773124},3.6197490871527847,null,null,3.0443417367135113]
[{"$f":"'[1]Nominal weighted'!B655","v":1961},null,2.6625125556868317,2.869500000000001,2.5619019947034385,3.2633839226060255,1.100989133964561,3.3888590604026865,3.2282469093025474,6.171351351351344,null,2.3954145108257,3.080428571428572,2.1991891592136077,3.939099377818454,{"$f":"AVERAGE(G652:G658)","v":0.24984753252140582},2.7398148134798825,-1.1261626711112374,6.038679967844689,null,2.8374874443131683,3.4,1.5880980052965616,2.7366160773939745,3.9590108660354386,0.671140939597313,2.1417530906974527,8.648648648648656,null,null,5.5,6.269500000000001,4.15,6,5.06,4.06,5.37,14.82,null,14.82,{"$f":"AE655*'III. GDP shares, 1310-2018'!C657","v":0.39785936905709485},{"$f":"AF655*'III. GDP shares, 1310-2018'!D657","v":0.6587437739976829},{"$f":"AG655*'III. GDP shares, 1310-2018'!E657","v":0.08899561265462366},{"$f":"AH655*'III. GDP shares, 1310-2018'!F657","v":0.7838141126089058},{"$f":"AI655*'III. GDP shares, 1310-2018'!G657","v":0.4135043789207027},{"$f":"AJ655*'III. GDP shares, 1310-2018'!H657","v":1.9103223280136572},{"$f":"AK655*'III. GDP shares, 1310-2018'!I657","v":0.1281054054728028},{"$f":"AL655*'III. GDP shares, 1310-2018'!J657","v":1.399180070322436},null,null,{"$f":"U655*'III. GDP shares, 1310-2018'!C657","v":0.20525835714579377},{"$f":"V655*'III. GDP shares, 1310-2018'!D657","v":0.3572420179587083},{"$f":"W655*'III. GDP shares, 1310-2018'!E657","v":0.03405632649083211},{"$f":"X655*'III. GDP shares, 1310-2018'!F657","v":0.35749971704230377},{"$f":"Y655*'III. GDP shares, 1310-2018'!G657","v":0.32353129037555284},{"$f":"Z655*'III. GDP shares, 1310-2018'!H657","v":0.3157870744228602},{"$f":"AA655*'III. GDP shares, 1310-2018'!I657","v":0.05109313744998618},{"$f":"AB655*'III. GDP shares, 1310-2018'!J657","v":0.8165328491504904},null,null,6.403687499999999,5.780525051047905,null,2.4610007700365273,3.2478443839978204,{"$f":"AVERAGE(BL652:BL658)","v":2.4900822526240733},3.4908718065330797,null,null,3.018022524972404]
[{"$f":"'[1]Nominal weighted'!B656","v":1962},null,-0.5917416869814236,1.6790833333333328,1.4949020850619625,3.231350551014716,0.6384518104597214,2.5166666666666715,-4.854917320528844,4.317363184079612,null,2.0689303498452345,3.0304285714285717,1.2975078832451188,3.78682291679635,{"$f":"AVERAGE(G653:G659)","v":1.0508930372066494},2.829455735937706,-0.6635785645774371,5.085397293072653,null,6.521741686981423,4.3,2.7150979149380374,2.8686494489852836,4.231548189540279,1.3333333333333286,9.904917320528844,5.472636815920387,null,null,5.93,5.979083333333333,4.21,6.1,4.87,3.85,5.05,9.79,null,9.79,{"$f":"AE656*'III. GDP shares, 1310-2018'!C658","v":0.4367602364198026},{"$f":"AF656*'III. GDP shares, 1310-2018'!D658","v":0.5994188891322063},{"$f":"AG656*'III. GDP shares, 1310-2018'!E658","v":0.09111476299665962},{"$f":"AH656*'III. GDP shares, 1310-2018'!F658","v":0.7847800614263699},{"$f":"AI656*'III. GDP shares, 1310-2018'!G658","v":0.4008911343422808},{"$f":"AJ656*'III. GDP shares, 1310-2018'!H658","v":1.8142334414257506},{"$f":"AK656*'III. GDP shares, 1310-2018'!I658","v":0.12686096565105628},{"$f":"AL656*'III. GDP shares, 1310-2018'!J658","v":0.9509107178703035},null,null,{"$f":"U656*'III. GDP shares, 1310-2018'!C658","v":0.48034358196878396},{"$f":"V656*'III. GDP shares, 1310-2018'!D658","v":0.4310863521334353},{"$f":"W656*'III. GDP shares, 1310-2018'!E658","v":0.05876140214544037},{"$f":"X656*'III. GDP shares, 1310-2018'!F658","v":0.3690588345549825},{"$f":"Y656*'III. GDP shares, 1310-2018'!G658","v":0.3483347338252211},{"$f":"Z656*'III. GDP shares, 1310-2018'!H658","v":0.6283059537405175},{"$f":"AA656*'III. GDP shares, 1310-2018'!I658","v":0.24882126256953704},{"$f":"AB656*'III. GDP shares, 1310-2018'!J658","v":0.5315616959418087},null,null,5.722385416666667,5.20497020926443,null,3.0962738168797266,4.6684905887784485,{"$f":"AVERAGE(BL653:BL659)","v":2.642211780499004},3.7346785614163585,null,null,1.940363855385932]
[{"$f":"'[1]Nominal weighted'!B657","v":1963},null,-0.17737702318774318,3.588333333333334,0.73582742331274,2.6133580853630747,-0.11688989438060471,2.495263157894737,-0.02725579183559823,3.427924528301884,null,2.146652004128217,2.8436428571428576,1.4838940257547375,3.8961039793806114,{"$f":"AVERAGE(G654:G660)","v":1.5455224965471548},2.575310637276711,-0.6723850184861794,4.236661660888745,null,6.907377023187744,2,3.96417257668726,3.3866419146369253,5.006889894380604,1.644736842105263,5.477255791835598,6.1320754716981165,null,null,6.73,5.588333333333334,{"v":4.7,"d":"4.70"},6,4.89,4.14,5.45,9.56,null,9.56,{"$f":"AE657*'III. GDP shares, 1310-2018'!C659","v":0.506206619342589},{"$f":"AF657*'III. GDP shares, 1310-2018'!D659","v":0.5546380370898801},{"$f":"AG657*'III. GDP shares, 1310-2018'!E659","v":0.10048309237379184},{"$f":"AH657*'III. GDP shares, 1310-2018'!F659","v":0.7566293459045373},{"$f":"AI657*'III. GDP shares, 1310-2018'!G659","v":0.40368488160180893},{"$f":"AJ657*'III. GDP shares, 1310-2018'!H659","v":1.9402603006335162},{"$f":"AK657*'III. GDP shares, 1310-2018'!I659","v":0.1438494275453482},{"$f":"AL657*'III. GDP shares, 1310-2018'!J659","v":0.9602118558608204},null,null,{"$f":"U657*'III. GDP shares, 1310-2018'!C659","v":0.5195482869884909},{"$f":"V657*'III. GDP shares, 1310-2018'!D659","v":0.19849855189616944},{"$f":"W657*'III. GDP shares, 1310-2018'!E659","v":0.08475155727849328},{"$f":"X657*'III. GDP shares, 1310-2018'!F659","v":0.4270721094474378},{"$f":"Y657*'III. GDP shares, 1310-2018'!G659","v":0.4133345100626438},{"$f":"Z657*'III. GDP shares, 1310-2018'!H659","v":0.7708255071802362},{"$f":"AA657*'III. GDP shares, 1310-2018'!I659","v":0.14456882755504472},{"$f":"AB657*'III. GDP shares, 1310-2018'!J659","v":0.6159091599328309},null,null,5.882291666666667,5.365963560352292,null,3.174508510341347,4.314893689316439,{"$f":"AVERAGE(BL654:BL660)","v":2.8317467328049406},3.8681728839566074,null,null,1.8353155648172343]
[{"$f":"'[1]Nominal weighted'!B658","v":1964},null,1.3997064465268911,2.76,0.05309028318512521,4.280760739658412,2.879301344703058,3.2391262135922307,-6.927893450139493,5.385555555555555,null,2.077771102059504,2.8111071428571432,1.185752234949884,4.024797128977509,{"$f":"AVERAGE(G655:G661)","v":1.670594619561026},2.6011721429732155,-1.3184571427491512,3.5317270655860753,null,5.800293553473109,3.3,5.296909716814874,2.119239260341588,2.1906986552969423,0.9708737864077693,12.677893450139493,4.444444444444445,null,null,7.2,6.06,5.35,6.4,5.07,4.21,5.75,9.83,null,9.83,{"$f":"AE658*'III. GDP shares, 1310-2018'!C660","v":0.5285591695670052},{"$f":"AF658*'III. GDP shares, 1310-2018'!D660","v":0.5948574203949224},{"$f":"AG658*'III. GDP shares, 1310-2018'!E660","v":0.11634660331653301},{"$f":"AH658*'III. GDP shares, 1310-2018'!F660","v":0.8041926012293534},{"$f":"AI658*'III. GDP shares, 1310-2018'!G660","v":0.41936477074847356},{"$f":"AJ658*'III. GDP shares, 1310-2018'!H660","v":1.9606932518578255},{"$f":"AK658*'III. GDP shares, 1310-2018'!I660","v":0.15658046852850793},{"$f":"AL658*'III. GDP shares, 1310-2018'!J660","v":1.0356533894627071},null,null,{"$f":"U658*'III. GDP shares, 1310-2018'!C660","v":0.4258053255373056},{"$f":"V658*'III. GDP shares, 1310-2018'!D660","v":0.3239322586308983},{"$f":"W658*'III. GDP shares, 1310-2018'!E660","v":0.11519204740668215},{"$f":"X658*'III. GDP shares, 1310-2018'!F660","v":0.26629320834398007},{"$f":"Y658*'III. GDP shares, 1310-2018'!G660","v":0.1812035186109648},{"$f":"Z658*'III. GDP shares, 1310-2018'!H660","v":0.4521581191010378},{"$f":"AA658*'III. GDP shares, 1310-2018'!I660","v":0.345236608065625},{"$f":"AB658*'III. GDP shares, 1310-2018'!J660","v":0.4682506564768654},null,null,6.23375,5.616247675105328,null,2.578071742173359,4.600044108364777,{"$f":"AVERAGE(BL655:BL661)","v":3.052175146949675},4.156008927508814,null,null,2.767250771167945]
[{"$f":"'[1]Nominal weighted'!B659","v":1965},null,3.3489787639403374,1.6333333333333337,-1.1539098171522628,3.7375148492029147,2.240009911052119,2.7269230769230726,-3.0741533197421385,1.7270212765957442,null,2.5108373998194193,2.795345238095238,1.1951639825166394,4.14276698836993,{"$f":"AVERAGE(G656:G662)","v":1.611640535453379},2.3227974183729154,-1.1142573702232743,3.139649957422012,null,3.3310212360596623,4.8,7.243909817152263,3.9624851507970855,2.8999900889478805,1.9230769230769278,9.364153319742138,6.382978723404255,null,null,6.68,6.433333333333334,6.09,7.7,5.14,4.65,6.29,8.11,null,8.11,{"$f":"AE659*'III. GDP shares, 1310-2018'!C661","v":0.4760018017377714},{"$f":"AF659*'III. GDP shares, 1310-2018'!D661","v":0.6150659648042998},{"$f":"AG659*'III. GDP shares, 1310-2018'!E661","v":0.1323070721815332},{"$f":"AH659*'III. GDP shares, 1310-2018'!F661","v":0.9650778194499289},{"$f":"AI659*'III. GDP shares, 1310-2018'!G661","v":0.42322867872984343},{"$f":"AJ659*'III. GDP shares, 1310-2018'!H661","v":2.1870363812850897},{"$f":"AK659*'III. GDP shares, 1310-2018'!I661","v":0.17336842164127342},{"$f":"AL659*'III. GDP shares, 1310-2018'!J661","v":0.8583858716916655},null,null,{"$f":"U659*'III. GDP shares, 1310-2018'!C661","v":0.23736109431005653},{"$f":"V659*'III. GDP shares, 1310-2018'!D661","v":0.4589093208902547},{"$f":"W659*'III. GDP shares, 1310-2018'!E661","v":0.15737610821912668},{"$f":"X659*'III. GDP shares, 1310-2018'!F661","v":0.49663721154986673},{"$f":"Y659*'III. GDP shares, 1310-2018'!G661","v":0.23878579254378454},{"$f":"Z659*'III. GDP shares, 1310-2018'!H661","v":0.9044815472643072},{"$f":"AA659*'III. GDP shares, 1310-2018'!I661","v":0.2580999174961185},{"$f":"AB659*'III. GDP shares, 1310-2018'!J661","v":0.6755929414893608},null,null,6.386666666666666,5.8304720115214055,null,3.4272439337628753,4.988451907397526,{"$f":"AVERAGE(BL656:BL662)","v":3.270911489571449},4.19981799317648,null,null,2.2470714338444844]
[{"$f":"'[1]Nominal weighted'!B660","v":1966},null,4.259428765097455,2.9175000000000018,2.3554462111721604,4.796033087129121,2.6932441089972876,1.1808805031446608,1.7447561632133635,2.4599999999999946,null,3.0544196130032293,3.061309523809524,1.1609213201277306,4.452798369678509,{"$f":"AVERAGE(G657:G663)","v":1.643127690234465},2.2036760233360257,0.21412876142914591,2.5924042677882615,null,2.3505712349025454,3.9,4.31455378882784,2.903966912870879,2.696755891002712,3.459119496855339,5.265243836786636,4.400000000000006,null,null,6.61,6.817500000000002,6.67,7.7,5.39,4.64,7.01,6.86,null,6.86,{"$f":"AE660*'III. GDP shares, 1310-2018'!C662","v":0.4683512613419516},{"$f":"AF660*'III. GDP shares, 1310-2018'!D662","v":0.6277748640738734},{"$f":"AG660*'III. GDP shares, 1310-2018'!E662","v":0.14071455530412777},{"$f":"AH660*'III. GDP shares, 1310-2018'!F662","v":0.9390513793429109},{"$f":"AI660*'III. GDP shares, 1310-2018'!G662","v":0.4407070050838263},{"$f":"AJ660*'III. GDP shares, 1310-2018'!H662","v":2.1974429556904864},{"$f":"AK660*'III. GDP shares, 1310-2018'!I662","v":0.19621963759624442},{"$f":"AL660*'III. GDP shares, 1310-2018'!J662","v":0.7591877844970402},null,null,{"$f":"U660*'III. GDP shares, 1310-2018'!C662","v":0.1665496221998057},{"$f":"V660*'III. GDP shares, 1310-2018'!D662","v":0.3591231345637118},{"$f":"W660*'III. GDP shares, 1310-2018'!E662","v":0.09102256637640915},{"$f":"X660*'III. GDP shares, 1310-2018'!F662","v":0.354152485077607},{"$f":"Y660*'III. GDP shares, 1310-2018'!G662","v":0.22049707090277754},{"$f":"Z660*'III. GDP shares, 1310-2018'!H662","v":1.6381934851845656},{"$f":"AA660*'III. GDP shares, 1310-2018'!I662","v":0.14738148894581074},{"$f":"AB660*'III. GDP shares, 1310-2018'!J662","v":0.48694260230130915},null,null,6.4621875,5.769449442930461,null,3.463862455551997,3.6612763951557445,{"$f":"AVERAGE(BL657:BL663)","v":3.6072920542456286},4.255351208586043,null,null,2.0369352578683024]
[{"$f":"'[1]Nominal weighted'!B661","v":1967},null,3.6428898933341802,4.23,2.253007464366023,6.251178667868297,2.2590559221310387,2.66048632218845,0.6820168104861057,1.2328735632183916,null,3.6135255283699137,2.9534523809523807,1.4537367368683292,4.653284242556111,{"$f":"AVERAGE(G658:G664)","v":1.9674846725843105},1.9800253183241614,0.6362532929840643,2.0597031056655117,null,3.0271101066658197,2.5,4.1369925356339765,0.5288213321317033,3.340944077868961,3.0395136778115504,6.567983189513894,5.747126436781609,null,null,6.67,6.73,6.39,6.78,5.6,5.7,7.25,6.98,null,6.98,{"$f":"AE661*'III. GDP shares, 1310-2018'!C663","v":0.487547545243522},{"$f":"AF661*'III. GDP shares, 1310-2018'!D663","v":0.6102064457068707},{"$f":"AG661*'III. GDP shares, 1310-2018'!E663","v":0.13665956668203882},{"$f":"AH661*'III. GDP shares, 1310-2018'!F663","v":0.7987722072212655},{"$f":"AI661*'III. GDP shares, 1310-2018'!G663","v":0.4613415687463645},{"$f":"AJ661*'III. GDP shares, 1310-2018'!H663","v":2.6647153967276482},{"$f":"AK661*'III. GDP shares, 1310-2018'!I663","v":0.2085661391149339},{"$f":"AL661*'III. GDP shares, 1310-2018'!J663","v":0.8263707942072138},null,null,{"$f":"U661*'III. GDP shares, 1310-2018'!C663","v":0.22126838106248523},{"$f":"V661*'III. GDP shares, 1310-2018'!D663","v":0.2266740140070099},{"$f":"W661*'III. GDP shares, 1310-2018'!E663","v":0.08847568189148174},{"$f":"X661*'III. GDP shares, 1310-2018'!F663","v":0.06230203284550599},{"$f":"Y661*'III. GDP shares, 1310-2018'!G663","v":0.27523506821034693},{"$f":"Z661*'III. GDP shares, 1310-2018'!H663","v":1.4209541922506523},{"$f":"AA661*'III. GDP shares, 1310-2018'!I663","v":0.18894605456671754},{"$f":"AB661*'III. GDP shares, 1310-2018'!J663","v":0.6804093750676923},null,null,6.512500000000001,6.194179663649858,null,3.1642647999018916,3.6110614195509396,{"$f":"AVERAGE(BL658:BL664)","v":3.9741496478706027},4.46324838783095,null,null,2.6463824320481044]
[{"$f":"'[1]Nominal weighted'!B662","v":1968},null,5.693976640006241,2.7591666666666654,2.6277842276707273,4.089172938352974,0.6883105452110341,1.4402359882005857,4.657645316983682,3.4268115942028983,null,3.8931810852931017,2.507857142857143,1.3508906678777513,4.378455724555773,{"$f":"AVERAGE(G659:G665)","v":1.7495455812055596},1.8921027651979185,1.5610784250099958,1.627759629087888,null,0.9560233599937594,4.7,3.9722157723292724,2.280827061647026,5.311689454788966,4.719764011799414,2.8723546830163187,3.6231884057971016,null,null,6.65,7.459166666666666,{"v":6.6,"d":"6.60"},6.37,6,6.16,7.53,7.05,null,7.05,{"$f":"AE662*'III. GDP shares, 1310-2018'!C664","v":0.49679771437632025},{"$f":"AF662*'III. GDP shares, 1310-2018'!D664","v":0.6638699520932814},{"$f":"AG662*'III. GDP shares, 1310-2018'!E664","v":0.1416728372064503},{"$f":"AH662*'III. GDP shares, 1310-2018'!F664","v":0.7451564452488083},{"$f":"AI662*'III. GDP shares, 1310-2018'!G664","v":0.4867993804994839},{"$f":"AJ662*'III. GDP shares, 1310-2018'!H664","v":2.845382060932416},{"$f":"AK662*'III. GDP shares, 1310-2018'!I664","v":0.21657664182037273},{"$f":"AL662*'III. GDP shares, 1310-2018'!J664","v":0.8885867156717465},null,null,{"$f":"U662*'III. GDP shares, 1310-2018'!C664","v":0.07142108573462702},{"$f":"V662*'III. GDP shares, 1310-2018'!D664","v":0.4183025952190937},{"$f":"W662*'III. GDP shares, 1310-2018'!E664","v":0.08526592097910596},{"$f":"X662*'III. GDP shares, 1310-2018'!F664","v":0.2668089459158842},{"$f":"Y662*'III. GDP shares, 1310-2018'!G664","v":0.43095452266615164},{"$f":"Z662*'III. GDP shares, 1310-2018'!H664","v":2.1801188069818935},{"$f":"AA662*'III. GDP shares, 1310-2018'!I664","v":0.08261420071244295},{"$f":"AB662*'III. GDP shares, 1310-2018'!J664","v":0.45666909017974433},null,null,6.727395833333333,6.48484174784888,null,3.9921551683889436,3.554507843671482,{"$f":"AVERAGE(BL659:BL665)","v":4.31029848795109},4.729980408078645,null,null,2.2471192225857486]
[{"$f":"'[1]Nominal weighted'!B663","v":1969},null,3.213333805305239,3.5408333333333317,1.2552034483396026,5.401570220174766,0.8588618939273234,1.6828169014084429,4.443785601038101,0.4866433566433619,null,3.423857746173382,2.5742857142857143,1.453706790464253,4.154287443463554,{"$f":"AVERAGE(G660:G666)","v":1.6203545283104546},1.931638606485586,2.163985155215674,1.5931054267835105,null,4.166666194694761,5.4,6.644796551660398,2.058429779825234,5.921138106072677,6.197183098591557,3.4262143989618994,6.643356643356638,null,null,7.38,8.940833333333332,{"v":7.9,"d":"7.90"},7.46,6.78,7.88,7.87,7.13,null,7.13,{"$f":"AE663*'III. GDP shares, 1310-2018'!C665","v":0.5533075821194774},{"$f":"AF663*'III. GDP shares, 1310-2018'!D665","v":0.7691024023066141},{"$f":"AG663*'III. GDP shares, 1310-2018'!E665","v":0.17134397905643722},{"$f":"AH663*'III. GDP shares, 1310-2018'!F665","v":0.8831866612671238},{"$f":"AI663*'III. GDP shares, 1310-2018'!G665","v":0.5583820774373829},{"$f":"AJ663*'III. GDP shares, 1310-2018'!H665","v":3.5635445539460635},{"$f":"AK663*'III. GDP shares, 1310-2018'!I665","v":0.23422667937666147},{"$f":"AL663*'III. GDP shares, 1310-2018'!J665","v":0.9595577098196469},null,null,{"$f":"U663*'III. GDP shares, 1310-2018'!C665","v":0.3123913275996642},{"$f":"V663*'III. GDP shares, 1310-2018'!D665","v":0.4645151987088135},{"$f":"W663*'III. GDP shares, 1310-2018'!E665","v":0.14411973179518803},{"$f":"X663*'III. GDP shares, 1310-2018'!F665","v":0.2436967459378913},{"$f":"Y663*'III. GDP shares, 1310-2018'!G665","v":0.48764858354904306},{"$f":"Z663*'III. GDP shares, 1310-2018'!H665","v":2.802530213298545},{"$f":"AA663*'III. GDP shares, 1310-2018'!I665","v":0.1019708794792058},{"$f":"AB663*'III. GDP shares, 1310-2018'!J665","v":0.8940650892306358},null,null,7.667604166666667,7.6926516453294065,null,5.450937769598986,5.057223096645395,{"$f":"AVERAGE(BL660:BL666)","v":4.557101009402351},4.9416151807450905,null,null,1.937126672132619]
[{"$f":"'[1]Nominal weighted'!B664","v":1970},null,3.7363643843790557,2.833333333333332,2.7855353404969296,4.016759195506293,2.153608982068313,0.9297082228116871,2.9276159290488284,-0.30098360655736744,null,2.0908336579953137,2.401785714285713,1.227451313743798,3.732002480786499,{"$f":"AVERAGE(G661:G667)","v":1.4019748172217017},1.5049581984733227,1.215493111513418,-0.4381479275969148,null,5.363635615620944,6.4,4.98446465950307,4.033240804493707,5.486391017931687,5.570291777188313,6.7823840709511725,7.540983606557368,null,null,9.1,9.233333333333333,7.77,8.05,7.64,6.5,9.71,7.24,null,7.24,{"$f":"AE664*'III. GDP shares, 1310-2018'!C666","v":0.6758779304998718},{"$f":"AF664*'III. GDP shares, 1310-2018'!D666","v":0.7877066302112313},{"$f":"AG664*'III. GDP shares, 1310-2018'!E666","v":0.17257897518507687},{"$f":"AH664*'III. GDP shares, 1310-2018'!F666","v":0.9665939642024451},{"$f":"AI664*'III. GDP shares, 1310-2018'!G666","v":0.6445667639055301},{"$f":"AJ664*'III. GDP shares, 1310-2018'!H666","v":2.852984836234667},{"$f":"AK664*'III. GDP shares, 1310-2018'!I666","v":0.29603468811191164},{"$f":"AL664*'III. GDP shares, 1310-2018'!J666","v":1.0451378807016865},null,null,{"$f":"U664*'III. GDP shares, 1310-2018'!C666","v":0.3983695538287131},{"$f":"V664*'III. GDP shares, 1310-2018'!D666","v":0.5459915992799872},{"$f":"W664*'III. GDP shares, 1310-2018'!E666","v":0.11070962712783436},{"$f":"X664*'III. GDP shares, 1310-2018'!F666","v":0.4842864866830598},{"$f":"Y664*'III. GDP shares, 1310-2018'!G666","v":0.4628724219828003},{"$f":"Z664*'III. GDP shares, 1310-2018'!H666","v":2.4449166113416787},{"$f":"AA664*'III. GDP shares, 1310-2018'!I666","v":0.2067786769412181},{"$f":"AB664*'III. GDP shares, 1310-2018'!J666","v":1.088586688530874},null,null,8.155416666666667,7.441481669052421,null,5.742511665716165,5.770173944030783,{"$f":"AVERAGE(BL661:BL667)","v":5.583909386049421},5.993340007768572,null,null,1.4572549724050106]
[{"$f":"'[1]Nominal weighted'!B665","v":1971},null,3.357295344989203,-0.35916666666666686,-0.6668321997489217,2.356961113656049,1.353727705051802,2.6236683417085316,-0.4541175259579706,2.36195121951219,null,-0.1935336989546322,1.679404761904761,0.648478737930863,3.4174297827237687,{"$f":"AVERAGE(G662:G668)","v":0.5145254571603869},0.4195083899232114,0.2445972437500648,-2.5279505479970226,null,4.612704655010797,9.4,8.456832199748922,5.4930388863439505,5.986272294948198,3.266331658291468,9.64411752595797,4.87804878048781,null,null,7.97,9.040833333333333,7.79,7.85,7.34,5.89,9.19,7.24,null,7.24,{"$f":"AE665*'III. GDP shares, 1310-2018'!C667","v":0.5833318343044653},{"$f":"AF665*'III. GDP shares, 1310-2018'!D667","v":0.7617256132795686},{"$f":"AG665*'III. GDP shares, 1310-2018'!E667","v":0.1743986451717405},{"$f":"AH665*'III. GDP shares, 1310-2018'!F667","v":0.9384171095344296},{"$f":"AI665*'III. GDP shares, 1310-2018'!G667","v":0.6278764412714923},{"$f":"AJ665*'III. GDP shares, 1310-2018'!H667","v":2.578289848181662},{"$f":"AK665*'III. GDP shares, 1310-2018'!I667","v":0.28647359128934297},{"$f":"AL665*'III. GDP shares, 1310-2018'!J667","v":1.0582691849984354},null,null,{"$f":"U665*'III. GDP shares, 1310-2018'!C667","v":0.33760821424243337},{"$f":"V665*'III. GDP shares, 1310-2018'!D667","v":0.7919868114843334},{"$f":"W665*'III. GDP shares, 1310-2018'!E667","v":0.1893273527703417},{"$f":"X665*'III. GDP shares, 1310-2018'!F667","v":0.6566575381252372},{"$f":"Y665*'III. GDP shares, 1310-2018'!G667","v":0.5120762050455319},{"$f":"Z665*'III. GDP shares, 1310-2018'!H667","v":1.4298047122864628},{"$f":"AA665*'III. GDP shares, 1310-2018'!I667","v":0.3006294866678643},{"$f":"AB665*'III. GDP shares, 1310-2018'!J667","v":0.7130233021145643},null,null,7.788854166666666,7.008782268031137,null,4.931113622736768,6.467168250098639,{"$f":"AVERAGE(BL662:BL668)","v":7.2187292938208145},7.697528793718634,null,null,2.1079298434991314]
[{"$f":"'[1]Nominal weighted'!B666","v":1972},null,0.06371539010229998,2.0983333333333327,-0.4341969590467478,2.1683368815573774,1.3356725407863852,3.003673965936743,1.1461937916976073,1.484441860465103,null,-0.9505669529075531,-0.08607142857142946,0.2057134259790066,3.2747806024268473,{"$f":"AVERAGE(G663:G669)","v":0.49432529254170227},0.33141522232725595,-0.7614760144566787,-2.9850664900260093,null,7.3762846098977,7.1,7.934196959046748,6.431663118442622,6.944327459213614,3.406326034063257,7.333806208302393,5.232558139534897,null,null,7.44,9.198333333333332,{"v":7.5,"d":"7.50"},8.6,8.28,6.41,8.48,6.717,null,6.717,{"$f":"AE666*'III. GDP shares, 1310-2018'!C668","v":0.5324272207465949},{"$f":"AF666*'III. GDP shares, 1310-2018'!D668","v":0.762267629677121},{"$f":"AG666*'III. GDP shares, 1310-2018'!E668","v":0.1647837151791906},{"$f":"AH666*'III. GDP shares, 1310-2018'!F668","v":1.0169384379865753},{"$f":"AI666*'III. GDP shares, 1310-2018'!G668","v":0.702758323629084},{"$f":"AJ666*'III. GDP shares, 1310-2018'!H668","v":2.806784400800764},{"$f":"AK666*'III. GDP shares, 1310-2018'!I668","v":0.2718621848299685},{"$f":"AL666*'III. GDP shares, 1310-2018'!J668","v":1.011163066978947},null,null,{"$f":"U666*'III. GDP shares, 1310-2018'!C668","v":0.527867569124155},{"$f":"V666*'III. GDP shares, 1310-2018'!D668","v":0.5883783479660329},{"$f":"W666*'III. GDP shares, 1310-2018'!E668","v":0.17432352691668795},{"$f":"X666*'III. GDP shares, 1310-2018'!F668","v":0.7605355168982451},{"$f":"Y666*'III. GDP shares, 1310-2018'!G668","v":0.5893941937159874},{"$f":"Z666*'III. GDP shares, 1310-2018'!H668","v":1.4915480150468459},{"$f":"AA666*'III. GDP shares, 1310-2018'!I668","v":0.23511610600338154},{"$f":"AB666*'III. GDP shares, 1310-2018'!J668","v":0.7876983082503737},null,null,7.828166666666666,7.268984979828245,null,5.15486158392171,6.469895316062654,{"$f":"AVERAGE(BL663:BL669)","v":7.960733557108367},8.772073649978713,null,null,1.940234114195448]
[{"$f":"'[1]Nominal weighted'!B667","v":1973},null,-5.071739852149022,1.709999999999999,0.7716578741289712,1.8400383483897391,1.1645861313760157,-1.8058823529411825,-4.894688142702426,-11.758773480662981,null,-2.3455488680628895,-0.9165476190476196,9.422961232015201E-3,3.045618052716495,{"$f":"AVERAGE(G664:G670)","v":0.5400734421262837},0.3688892557167827,-2.497763005148101,-3.3406265261098538,null,12.521739852149022,9.2,8.238342125871029,7.76996165161026,8.485413868623985,8.705882352941183,14.204688142702427,19.06077348066298,null,null,7.45,10.909999999999998,9.01,9.61,9.65,6.9,9.31,7.302,null,7.302,{"$f":"AE667*'III. GDP shares, 1310-2018'!C669","v":0.5353166395692027},{"$f":"AF667*'III. GDP shares, 1310-2018'!D669","v":0.9093546746670463},{"$f":"AG667*'III. GDP shares, 1310-2018'!E669","v":0.1953085208114072},{"$f":"AH667*'III. GDP shares, 1310-2018'!F669","v":1.119547050014088},{"$f":"AI667*'III. GDP shares, 1310-2018'!G669","v":0.813881084367137},{"$f":"AJ667*'III. GDP shares, 1310-2018'!H669","v":3.0091060796351004},{"$f":"AK667*'III. GDP shares, 1310-2018'!I669","v":0.3064019389329827},{"$f":"AL667*'III. GDP shares, 1310-2018'!J669","v":1.1191517062153997},null,null,{"$f":"U667*'III. GDP shares, 1310-2018'!C669","v":0.8997443891559973},{"$f":"V667*'III. GDP shares, 1310-2018'!D669","v":0.7668252068686368},{"$f":"W667*'III. GDP shares, 1310-2018'!E669","v":0.17858140006017476},{"$f":"X667*'III. GDP shares, 1310-2018'!F669","v":0.9051860193322434},{"$f":"Y667*'III. GDP shares, 1310-2018'!G669","v":0.7156598798652468},{"$f":"Z667*'III. GDP shares, 1310-2018'!H669","v":3.796655582148296},{"$f":"AA667*'III. GDP shares, 1310-2018'!I669","v":0.4674912984814577},{"$f":"AB667*'III. GDP shares, 1310-2018'!J669","v":2.9213773161694356},null,null,8.76775,8.008067694212365,null,10.65152109208149,11.023350184320112,{"$f":"AVERAGE(BL664:BL670)","v":8.423509158239991},9.727438264512587,null,null,-2.7859828656675356]
[{"$f":"'[1]Nominal weighted'!B668","v":1974},null,-12.347681605315442,-0.826666666666668,-1.799800566324521,4.049169781429185,-3.953089598298165,-4.937662337662328,-6.114254263857369,-13.395744779582364,null,-2.8408945999193387,-1.8367857142857145,0.030906329836093427,2.8526252883605534,{"$f":"AVERAGE(G665:G671)","v":0.5316296617010036},0.3902122341958206,-4.796556122097631,-3.051486010887371,null,24.497681605315442,16,10.88980056632452,5.740830218570814,15.163089598298166,12.337662337662328,17.88425426385737,21.809744779582363,null,null,12.15,15.173333333333332,9.09,9.79,11.21,7.4,11.77,8.414,null,8.414,{"$f":"AE668*'III. GDP shares, 1310-2018'!C670","v":0.908631933863435},{"$f":"AF668*'III. GDP shares, 1310-2018'!D670","v":1.2402255827283437},{"$f":"AG668*'III. GDP shares, 1310-2018'!E670","v":0.20365991921594676},{"$f":"AH668*'III. GDP shares, 1310-2018'!F670","v":1.1432295809043747},{"$f":"AI668*'III. GDP shares, 1310-2018'!G670","v":0.9674735044168399},{"$f":"AJ668*'III. GDP shares, 1310-2018'!H670","v":3.199312027516938},{"$f":"AK668*'III. GDP shares, 1310-2018'!I670","v":0.4137195394114942},{"$f":"AL668*'III. GDP shares, 1310-2018'!J670","v":1.266339902293687},null,null,{"$f":"U668*'III. GDP shares, 1310-2018'!C670","v":1.8320473919513143},{"$f":"V668*'III. GDP shares, 1310-2018'!D670","v":1.3077949905747035},{"$f":"W668*'III. GDP shares, 1310-2018'!E670","v":0.2439841478124778},{"$f":"X668*'III. GDP shares, 1310-2018'!F670","v":0.6703868156097939},{"$f":"Y668*'III. GDP shares, 1310-2018'!G670","v":1.3086429466058929},{"$f":"Z668*'III. GDP shares, 1310-2018'!H670","v":5.334058311935922},{"$f":"AA668*'III. GDP shares, 1310-2018'!I670","v":0.6286376751708684},{"$f":"AB668*'III. GDP shares, 1310-2018'!J670","v":3.282451874640668},null,null,10.624666666666666,9.34259199035106,null,14.60800415430164,15.540382921201374,{"$f":"AVERAGE(BL665:BL671)","v":8.772662466475976},10.430445402351358,null,null,-5.197842756104221]
[{"$f":"'[1]Nominal weighted'!B669","v":1975},null,0.39474386233579395,-9.599166666666667,-0.4715729559922668,3.0906286762745214,0.5469093928802415,0.8235838150288979,-2.384867490463522,0.22699999999999498,null,-3.024469444466431,-1.2530952380952385,0.7416741024286937,3.1208741785440632,{"$f":"AVERAGE(G666:G672)","v":0.3703790618606068},0.03430056173182245,-5.4139629353028695,-3.0069215509570597,null,11.235256137664207,24.2,9.081572955992266,5.429371323725478,9.633090607119758,6.936416184971102,14.094867490463523,8.000000000000005,null,null,11.63,14.600833333333332,8.61,8.52,10.18,7.76,11.71,8.227,null,8.227,{"$f":"AE669*'III. GDP shares, 1310-2018'!C671","v":0.8496152068361007},{"$f":"AF669*'III. GDP shares, 1310-2018'!D671","v":1.190005462598375},{"$f":"AG669*'III. GDP shares, 1310-2018'!E671","v":0.19239860854879715},{"$f":"AH669*'III. GDP shares, 1310-2018'!F671","v":0.9878083615570302},{"$f":"AI669*'III. GDP shares, 1310-2018'!G671","v":0.8709602273805044},{"$f":"AJ669*'III. GDP shares, 1310-2018'!H671","v":3.3397964222448624},{"$f":"AK669*'III. GDP shares, 1310-2018'!I671","v":0.425366637601613},{"$f":"AL669*'III. GDP shares, 1310-2018'!J671","v":1.2742845312112785},null,null,{"$f":"U669*'III. GDP shares, 1310-2018'!C671","v":0.8207776842010442},{"$f":"V669*'III. GDP shares, 1310-2018'!D671","v":1.9723622301156787},{"$f":"W669*'III. GDP shares, 1310-2018'!E671","v":0.20293635309724725},{"$f":"X669*'III. GDP shares, 1310-2018'!F671","v":0.6294810318748814},{"$f":"Y669*'III. GDP shares, 1310-2018'!G671","v":0.8241688394453857},{"$f":"Z669*'III. GDP shares, 1310-2018'!H671","v":2.9853373656917324},{"$f":"AA669*'III. GDP shares, 1310-2018'!I671","v":0.5119971299623188},{"$f":"AB669*'III. GDP shares, 1310-2018'!J671","v":1.2391243770135207},null,null,10.154729166666666,9.130235457978563,null,9.18618501140181,11.076321837492042,{"$f":"AVERAGE(BL666:BL672)","v":9.177954202255183},10.667801467555861,null,null,0.7264072140940545]
[{"$f":"'[1]Nominal weighted'!B670","v":1976},null,-6.551539600782117,-2.272499999999999,-0.11882980488933725,3.7974323722022936,1.1790989410193937,1.9451351351351294,-7.710223333801855,-2.002276895943556,null,-3.633953754535562,-1.8463095238095246,1.4685262563607169,3.1572927833911693,{"$f":"AVERAGE(G667:G673)","v":0.2938484698956447},-0.8182162719755368,-5.638509700317779,-2.9763368724920487,null,20.501539600782117,16.5,8.518829804889338,3.712567627797706,9.860901058980605,4.86486486486487,19.770223333801855,10.229276895943556,null,null,13.95,14.227500000000001,{"v":8.4,"d":"8.40"},7.51,11.04,6.81,12.06,8.227,null,8.227,{"$f":"AE670*'III. GDP shares, 1310-2018'!C672","v":1.0364069486059186},{"$f":"AF670*'III. GDP shares, 1310-2018'!D672","v":1.1321698789306576},{"$f":"AG670*'III. GDP shares, 1310-2018'!E672","v":0.18768612399887485},{"$f":"AH670*'III. GDP shares, 1310-2018'!F672","v":0.871616680477976},{"$f":"AI670*'III. GDP shares, 1310-2018'!G672","v":0.9409561602043333},{"$f":"AJ670*'III. GDP shares, 1310-2018'!H672","v":2.9455333489073325},{"$f":"AK670*'III. GDP shares, 1310-2018'!I672","v":0.43626575538123946},{"$f":"AL670*'III. GDP shares, 1310-2018'!J672","v":1.265216323203105},null,null,{"$f":"U670*'III. GDP shares, 1310-2018'!C672","v":1.5231496845426522},{"$f":"V670*'III. GDP shares, 1310-2018'!D672","v":1.3130067125184222},{"$f":"W670*'III. GDP shares, 1310-2018'!E672","v":0.1903412079864013},{"$f":"X670*'III. GDP shares, 1310-2018'!F672","v":0.4308836047657831},{"$f":"Y670*'III. GDP shares, 1310-2018'!G672","v":0.8404597460700394},{"$f":"Z670*'III. GDP shares, 1310-2018'!H672","v":2.1042028924210046},{"$f":"AA670*'III. GDP shares, 1310-2018'!I672","v":0.7151800511423609},{"$f":"AB670*'III. GDP shares, 1310-2018'!J672","v":1.5731430780736815},null,null,10.2780625,8.815851219709439,null,8.690366977520345,11.744775398382505,{"$f":"AVERAGE(BL667:BL673)","v":10.067586276422881},11.32856149335203,null,null,0.3063210757768573]
[{"$f":"'[1]Nominal weighted'!B671","v":1977},null,0.2689442613839095,-3.6083333333333325,2.935918920725477,2.665809845014711,2.0945025190913515,1.078969072164952,-13.16393588959788,1.7230000000000087,null,-3.2910380276717146,-2.9578571428571436,1.8686015859077902,3.400838396688712,{"$f":"AVERAGE(G668:G674)","v":0.21061333498781462},-0.572561258992506,-4.793596287694057,-1.106709339988489,null,14.06105573861609,15.8,5.174081079274522,3.464190154985289,8.975497480908649,6.701030927835048,26.39393588959788,4.959999999999991,null,null,14.33,12.191666666666668,8.11,6.13,11.07,7.78,13.23,6.683,null,6.683,{"$f":"AE671*'III. GDP shares, 1310-2018'!C673","v":1.0545034904237784},{"$f":"AF671*'III. GDP shares, 1310-2018'!D673","v":0.9541943257194861},{"$f":"AG671*'III. GDP shares, 1310-2018'!E673","v":0.17918308828591908},{"$f":"AH671*'III. GDP shares, 1310-2018'!F673","v":0.7045965121412208},{"$f":"AI671*'III. GDP shares, 1310-2018'!G673","v":0.9421818996113351},{"$f":"AJ671*'III. GDP shares, 1310-2018'!H673","v":3.386191397083011},{"$f":"AK671*'III. GDP shares, 1310-2018'!I673","v":0.47906011682895916},{"$f":"AL671*'III. GDP shares, 1310-2018'!J673","v":1.0328296375971269},null,null,{"$f":"U671*'III. GDP shares, 1310-2018'!C673","v":1.0347126556464736},{"$f":"V671*'III. GDP shares, 1310-2018'!D673","v":1.236604539688411},{"$f":"W671*'III. GDP shares, 1310-2018'!E673","v":0.11431662476278055},{"$f":"X671*'III. GDP shares, 1310-2018'!F673","v":0.3981821045018906},{"$f":"Y671*'III. GDP shares, 1310-2018'!G673","v":0.7639161035699426},{"$f":"Z671*'III. GDP shares, 1310-2018'!H673","v":2.9165775423421887},{"$f":"AA671*'III. GDP shares, 1310-2018'!I673","v":0.9557280431479077},{"$f":"AB671*'III. GDP shares, 1310-2018'!J673","v":0.7665472097084752},null,null,9.940583333333333,8.732740467690837,null,8.18658482336807,10.691223908902185,{"$f":"AVERAGE(BL668:BL674)","v":10.250700630306161},11.516481449595306,null,null,0.8285658582916913]
[{"$f":"'[1]Nominal weighted'!B672","v":1978},null,2.072271433159555,3.726666666666665,4.30854220839928,4.234703344940617,0.22497350616902523,0.13228663446054512,-4.775965218394637,2.6739024390243724,null,-1.0547852774983901,-2.6809523809523816,2.7306482912310845,3.2483701571570855,{"$f":"AVERAGE(G669:G675)","v":1.1393952904590932},0.638969855223168,-3.7268442677262743,1.3555176796627966,null,11.597728566840445,8.3,3.9014577916007207,2.4552966550593833,9.715026493830974,9.017713365539455,16.535965218394637,3.5060975609756273,null,null,13.67,12.026666666666666,8.21,6.69,9.94,9.15,11.76,6.18,null,6.18,{"$f":"AE672*'III. GDP shares, 1310-2018'!C674","v":0.9977126305509185},{"$f":"AF672*'III. GDP shares, 1310-2018'!D674","v":0.932117810172825},{"$f":"AG672*'III. GDP shares, 1310-2018'!E674","v":0.17753419352715072},{"$f":"AH672*'III. GDP shares, 1310-2018'!F674","v":0.7559158101678769},{"$f":"AI672*'III. GDP shares, 1310-2018'!G674","v":0.8313852265804902},{"$f":"AJ672*'III. GDP shares, 1310-2018'!H674","v":4.025198926408927},{"$f":"AK672*'III. GDP shares, 1310-2018'!I674","v":0.42074270377270384},{"$f":"AL672*'III. GDP shares, 1310-2018'!J674","v":0.9613848317987942},null,null,{"$f":"U672*'III. GDP shares, 1310-2018'!C674","v":0.846466735686753},{"$f":"V672*'III. GDP shares, 1310-2018'!D674","v":0.6432852958232635},{"$f":"W672*'III. GDP shares, 1310-2018'!E674","v":0.0843656714509199},{"$f":"X672*'III. GDP shares, 1310-2018'!F674","v":0.2774286338134069},{"$f":"Y672*'III. GDP shares, 1310-2018'!G674","v":0.8125683604435745},{"$f":"Z672*'III. GDP shares, 1310-2018'!H674","v":3.967004388812333},{"$f":"AA672*'III. GDP shares, 1310-2018'!I674","v":0.5916145166223425},{"$f":"AB672*'III. GDP shares, 1310-2018'!J674","v":0.5454221705386273},null,null,9.703333333333333,9.101992132979687,null,7.768155773191221,8.128660706530155,{"$f":"AVERAGE(BL669:BL675)","v":9.597682289629619},10.849722560040847,null,null,1.045003845438905]
[{"$f":"'[1]Nominal weighted'!B673","v":1979},null,-4.202674780381612,-2.054166666666669,4.653768118477415,2.4232671154871177,0.7999583970316504,-2.9639438700147718,-0.42563356340676073,1.6985346097201814,null,-0.5315612351482434,-0.8609523809523818,3.272240573012463,3.2786738802033417,{"$f":"AVERAGE(G670:G676)","v":1.8768438660923152},1.4994781685093435,-3.165931322765347,2.1737074451212193,null,18.82267478038161,13.4,4.816231881522586,5.446732884512882,11.79004160296835,13.293943870014772,15.59563356340676,5.5964653902798185,null,null,14.62,11.345833333333331,9.47,7.87,12.59,10.33,15.17,7.295,null,7.295,{"$f":"AE673*'III. GDP shares, 1310-2018'!C675","v":1.0863148513205665},{"$f":"AF673*'III. GDP shares, 1310-2018'!D675","v":0.8705307019552887},{"$f":"AG673*'III. GDP shares, 1310-2018'!E675","v":0.20167998422288266},{"$f":"AH673*'III. GDP shares, 1310-2018'!F675","v":0.8911293976486458},{"$f":"AI673*'III. GDP shares, 1310-2018'!G675","v":1.0470436341342038},{"$f":"AJ673*'III. GDP shares, 1310-2018'!H675","v":4.526897219086166},{"$f":"AK673*'III. GDP shares, 1310-2018'!I675","v":0.5303264518129487},{"$f":"AL673*'III. GDP shares, 1310-2018'!J675","v":1.153266934337387},null,null,{"$f":"U673*'III. GDP shares, 1310-2018'!C675","v":1.3985876303355422},{"$f":"V673*'III. GDP shares, 1310-2018'!D675","v":1.0281405572854239},{"$f":"W673*'III. GDP shares, 1310-2018'!E675","v":0.1025699651403611},{"$f":"X673*'III. GDP shares, 1310-2018'!F675","v":0.616739999304833},{"$f":"Y673*'III. GDP shares, 1310-2018'!G675","v":0.9805153301481678},{"$f":"Z673*'III. GDP shares, 1310-2018'!H675","v":5.825780981205949},{"$f":"AA673*'III. GDP shares, 1310-2018'!I675","v":0.5452061312759684},{"$f":"AB673*'III. GDP shares, 1310-2018'!J675","v":0.8847455083993548},null,null,11.086354166666666,10.307189174518088,null,11.3822861030956,11.095215496635848,{"$f":"AVERAGE(BL670:BL676)","v":9.251194238627207},10.439423354369712,null,null,-0.9174870732473792]
[{"$f":"'[1]Nominal weighted'!B674","v":1980},null,-2.67132976410209,-6.070833333333335,3.572185180958485,3.5448576414725386,0.5819401870212051,-0.08629726205996668,1.019705745663627,1.328619246861936,null,1.1746804469811372,0.27095238095238017,4.082162877445219,3.5545529206428745,{"$f":"AVERAGE(G671:G677)","v":2.2610366065480387},2.3563831492043255,-1.348906061220886,3.2712610431986273,null,19.55132976410209,18,6.697814819041515,5.475142358527461,13.728059812978795,12.516297262059966,15.210294254336373,7.531380753138063,null,null,16.88,11.929166666666665,10.27,9.02,14.31,12.43,16.23,8.86,null,8.86,{"$f":"AE674*'III. GDP shares, 1310-2018'!C676","v":1.2862679751484543},{"$f":"AF674*'III. GDP shares, 1310-2018'!D676","v":0.8917748770210118},{"$f":"AG674*'III. GDP shares, 1310-2018'!E676","v":0.21926538126172448},{"$f":"AH674*'III. GDP shares, 1310-2018'!F676","v":1.023264394336482},{"$f":"AI674*'III. GDP shares, 1310-2018'!G676","v":1.1954122789350077},{"$f":"AJ674*'III. GDP shares, 1310-2018'!H676","v":5.398199383946769},{"$f":"AK674*'III. GDP shares, 1310-2018'!I676","v":0.5747796571856555},{"$f":"AL674*'III. GDP shares, 1310-2018'!J676","v":1.4265482910712932},null,null,{"$f":"U674*'III. GDP shares, 1310-2018'!C676","v":1.4898251982897692},{"$f":"V674*'III. GDP shares, 1310-2018'!D676","v":1.3456051235524873},{"$f":"W674*'III. GDP shares, 1310-2018'!E676","v":0.14299892112147672},{"$f":"X674*'III. GDP shares, 1310-2018'!F676","v":0.6211217549229069},{"$f":"Y674*'III. GDP shares, 1310-2018'!G676","v":1.1467988306351555},{"$f":"Z674*'III. GDP shares, 1310-2018'!H676","v":5.435677246126045},{"$f":"AA674*'III. GDP shares, 1310-2018'!I676","v":0.5386671421565253},{"$f":"AB674*'III. GDP shares, 1310-2018'!J676","v":1.2126273524600828},null,null,12.491145833333334,12.015512238906398,null,11.93332156926445,12.338789878023034,{"$f":"AVERAGE(BL671:BL677)","v":8.649024703065923},9.634279831969362,null,null,0.536020916173424]
[{"$f":"'[1]Nominal weighted'!B675","v":1981},null,3.306087645897829,1.1116666666666646,4.234526370938539,2.9818921047077955,2.548384090000784,3.5430554618473895,1.3530098759171079,3.839844357976638,null,1.8732282395752289,1.5254761904761895,4.324296490775236,3.895734362421853,{"$f":"AVERAGE(G672:G678)","v":2.704694275484139},3.35794648886636,1.230694913527462,3.604967268545908,null,18.113912354102172,11.9,7.255473629061461,6.758107895292205,13.891615909999217,10.37831,14.406990124082892,4.280155642023361,null,null,21.42,13.011666666666665,11.49,9.74,16.44,13.92136546184739,15.76,8.12,null,8.12,{"$f":"AE675*'III. GDP shares, 1310-2018'!C677","v":1.6130294064192505},{"$f":"AF675*'III. GDP shares, 1310-2018'!D677","v":0.9442600957933324},{"$f":"AG675*'III. GDP shares, 1310-2018'!E677","v":0.2400623841372542},{"$f":"AH675*'III. GDP shares, 1310-2018'!F677","v":1.0909119422937896},{"$f":"AI675*'III. GDP shares, 1310-2018'!G677","v":1.3646649461427551},{"$f":"AJ675*'III. GDP shares, 1310-2018'!H677","v":6.095037091739103},{"$f":"AK675*'III. GDP shares, 1310-2018'!I677","v":0.5518059119786428},{"$f":"AL675*'III. GDP shares, 1310-2018'!J677","v":1.3267079228914493},null,null,{"$f":"U675*'III. GDP shares, 1310-2018'!C677","v":1.3640650463336954},{"$f":"V675*'III. GDP shares, 1310-2018'!D677","v":0.8635861513980266},{"$f":"W675*'III. GDP shares, 1310-2018'!E677","v":0.15158975608681202},{"$f":"X675*'III. GDP shares, 1310-2018'!F677","v":0.7569302474624449},{"$f":"Y675*'III. GDP shares, 1310-2018'!G677","v":1.1531265983975012},{"$f":"Z675*'III. GDP shares, 1310-2018'!H677","v":4.543820401305135},{"$f":"AA675*'III. GDP shares, 1310-2018'!I677","v":0.5044328885968821},{"$f":"AB675*'III. GDP shares, 1310-2018'!J677","v":0.6993246799853364},null,null,13.737879016064259,13.226479701395577,null,10.036875769565833,10.873070694320164,{"$f":"AVERAGE(BL672:BL678)","v":8.129430940641594},8.85450081509474,null,null,3.108929987434438]
[{"$f":"'[1]Nominal weighted'!B676","v":1982},null,4.0573121587868215,3.140833333333333,3.3195730164773796,3.3027547375983186,5.7090494223127966,6.847142008032128,1.5415231242629694,5.954328358208956,null,2.2818115863495914,1.5630952380952376,4.437335491994865,3.9393171059627465,{"$f":"AVERAGE(G673:G679)","v":3.5007106229487452},4.352176739242965,2.504787320246464,3.916331247599236,null,16.44268784121318,8.6,4.28042698352262,4.587245262401681,9.690950577687204,6.15836,14.008476875737031,1.8656716417910446,null,null,20.5,11.740833333333333,{"v":7.6,"d":"7.60"},7.89,15.4,13.005502008032128,15.55,7.82,null,7.82,{"$f":"AE676*'III. GDP shares, 1310-2018'!C678","v":1.5511758638593236},{"$f":"AF676*'III. GDP shares, 1310-2018'!D678","v":0.8654248485537683},{"$f":"AG676*'III. GDP shares, 1310-2018'!E678","v":0.15697600987466898},{"$f":"AH676*'III. GDP shares, 1310-2018'!F678","v":0.8763560788911074},{"$f":"AI676*'III. GDP shares, 1310-2018'!G678","v":1.3107770494740347},{"$f":"AJ676*'III. GDP shares, 1310-2018'!H678","v":5.588608614432297},{"$f":"AK676*'III. GDP shares, 1310-2018'!I678","v":0.5543314788704444},{"$f":"AL676*'III. GDP shares, 1310-2018'!J678","v":1.31705139289732},null,null,{"$f":"U676*'III. GDP shares, 1310-2018'!C678","v":1.2441707568908804},{"$f":"V676*'III. GDP shares, 1310-2018'!D678","v":0.6339118771435084},{"$f":"W676*'III. GDP shares, 1310-2018'!E678","v":0.08841109847805874},{"$f":"X676*'III. GDP shares, 1310-2018'!F678","v":0.5095133423409565},{"$f":"Y676*'III. GDP shares, 1310-2018'!G678","v":0.8248490652480212},{"$f":"Z676*'III. GDP shares, 1310-2018'!H678","v":2.646315668977617},{"$f":"AA676*'III. GDP shares, 1310-2018'!I678","v":0.49937875905142964},{"$f":"AB676*'III. GDP shares, 1310-2018'!J678","v":0.3142180862544661},null,null,12.438291917670682,12.220701336852965,null,6.760768654384938,8.204227397794096,{"$f":"AVERAGE(BL673:BL679)","v":7.555727887897369},8.337776562613628,null,null,5.228419711057767]
[{"$f":"'[1]Nominal weighted'!B677","v":1983},null,5.392152174123547,5.650833333333335,5.55062632613996,5.728585655279028,3.8684481242094595,7.94347,5.008953497009372,5.680598290598301,null,3.748680932166905,2.722738095238095,4.6784057843638225,4.5961011129319775,{"$f":"AVERAGE(G674:G680)","v":4.392019523909178},5.594013006387931,3.020904865206005,4.505453983986948,null,12.287847825876453,4.6,2.96937367386004,2.631414344720971,9.29155187579054,3.15953,12.221046502990628,1.7094017094016989,null,null,17.68,10.250833333333334,8.52,8.36,13.16,11.103,17.23,7.39,null,7.39,{"$f":"AE677*'III. GDP shares, 1310-2018'!C679","v":1.315057688599457},{"$f":"AF677*'III. GDP shares, 1310-2018'!D679","v":0.7598731851079843},{"$f":"AG677*'III. GDP shares, 1310-2018'!E679","v":0.17382782105460765},{"$f":"AH677*'III. GDP shares, 1310-2018'!F679","v":0.9178598615363761},{"$f":"AI677*'III. GDP shares, 1310-2018'!G679","v":1.1005524774309552},{"$f":"AJ677*'III. GDP shares, 1310-2018'!H679","v":4.827672881601302},{"$f":"AK677*'III. GDP shares, 1310-2018'!I679","v":0.6115942403400996},{"$f":"AL677*'III. GDP shares, 1310-2018'!J679","v":1.2368223279017756},null,null,{"$f":"U677*'III. GDP shares, 1310-2018'!C679","v":0.9139835271356872},{"$f":"V677*'III. GDP shares, 1310-2018'!D679","v":0.3409885360374012},{"$f":"W677*'III. GDP shares, 1310-2018'!E679","v":0.06058213094178473},{"$f":"X677*'III. GDP shares, 1310-2018'!F679","v":0.2889078476184718},{"$f":"Y677*'III. GDP shares, 1310-2018'!G679","v":0.777039546814553},{"$f":"Z677*'III. GDP shares, 1310-2018'!H679","v":1.3737888228051665},{"$f":"AA677*'III. GDP shares, 1310-2018'!I679","v":0.43379696181994104},{"$f":"AB677*'III. GDP shares, 1310-2018'!J679","v":0.2860928554183334},null,null,11.711729166666666,10.943260483572557,null,4.475180228591339,6.108770741580041,{"$f":"AVERAGE(BL674:BL680)","v":6.169384854838266},7.078786854359039,null,null,6.0491956059106355]
[{"$f":"'[1]Nominal weighted'!B678","v":1984},null,5.158778809542552,5.173333333333334,4.630854214035594,5.054079937467554,5.200106201644049,8.089912449799197,4.893270933640556,4.058943577430969,null,4.908184447308146,4.320714285714286,5.172965626084988,4.861232758033921,{"$f":"AVERAGE(G675:G681)","v":5.2866696855960695},6.294122615253641,4.021061359828265,4.9507887882966966,null,9.371221190457447,5,2.7991457859644053,1.9659200625324453,6.689893798355952,4.3682,9.026729066359444,2.641056422569031,null,null,14.53,10.173333333333334,7.43,7.02,11.89,12.458112449799197,13.92,6.7,null,6.7,{"$f":"AE678*'III. GDP shares, 1310-2018'!C680","v":1.0582589326762943},{"$f":"AF678*'III. GDP shares, 1310-2018'!D680","v":0.7379258204450244},{"$f":"AG678*'III. GDP shares, 1310-2018'!E680","v":0.14947472217264798},{"$f":"AH678*'III. GDP shares, 1310-2018'!F680","v":0.756535730798812},{"$f":"AI678*'III. GDP shares, 1310-2018'!G680","v":0.9632073944220482},{"$f":"AJ678*'III. GDP shares, 1310-2018'!H680","v":5.5478633441795155},{"$f":"AK678*'III. GDP shares, 1310-2018'!I680","v":0.47856609007218653},{"$f":"AL678*'III. GDP shares, 1310-2018'!J680","v":1.1124324685196418},null,null,{"$f":"U678*'III. GDP shares, 1310-2018'!C680","v":0.6825312136880227},{"$f":"V678*'III. GDP shares, 1310-2018'!D680","v":0.3626765172567289},{"$f":"W678*'III. GDP shares, 1310-2018'!E680","v":0.056312454734558266},{"$f":"X678*'III. GDP shares, 1310-2018'!F680","v":0.21186449732194157},{"$f":"Y678*'III. GDP shares, 1310-2018'!G680","v":0.5419474494932426},{"$f":"Z678*'III. GDP shares, 1310-2018'!H680","v":1.945252682354426},{"$f":"AA678*'III. GDP shares, 1310-2018'!I680","v":0.31033666921182457},{"$f":"AB678*'III. GDP shares, 1310-2018'!J680","v":0.4385070023370331},null,null,10.515180722891566,10.80426450328617,null,4.549428486397778,5.23277079077984,{"$f":"AVERAGE(BL675:BL681)","v":4.873793743213027},5.6987253811422045,null,null,5.879586713700099]
[{"$f":"'[1]Nominal weighted'!B679","v":1985},null,4.932354860580091,3.99,5.099815216936683,4.5397825497268744,5.7970879384212735,7.091898387096774,4.142681628638375,4.8534502923976675,null,5.208859246988863,4.765238095238096,5.330201686236046,5.136875975590783,{"$f":"AVERAGE(G676:G682)","v":5.713955538509325},6.466251834989728,4.754411705108027,4.938841375890266,null,8.88764513941991,6.1,1.650184783063317,1.7602174502731252,4.7029120615787265,3.5279,8.177318371361626,1.2865497076023324,null,null,13.82,10.09,6.75,6.3,10.5,10.619798387096774,12.32,6.14,null,6.14,{"$f":"AE679*'III. GDP shares, 1310-2018'!C681","v":1.0008045456784649},{"$f":"AF679*'III. GDP shares, 1310-2018'!D681","v":0.732792969400869},{"$f":"AG679*'III. GDP shares, 1310-2018'!E681","v":0.13537374326808976},{"$f":"AH679*'III. GDP shares, 1310-2018'!F681","v":0.6709837553953082},{"$f":"AI679*'III. GDP shares, 1310-2018'!G681","v":0.8341721054416003},{"$f":"AJ679*'III. GDP shares, 1310-2018'!H681","v":4.751083355342018},{"$f":"AK679*'III. GDP shares, 1310-2018'!I681","v":0.4179511665746621},{"$f":"AL679*'III. GDP shares, 1310-2018'!J681","v":1.0293532747836442},null,null,{"$f":"U679*'III. GDP shares, 1310-2018'!C681","v":0.6436176306735572},{"$f":"V679*'III. GDP shares, 1310-2018'!D681","v":0.4430165622740635},{"$f":"W679*'III. GDP shares, 1310-2018'!E681","v":0.03309506535812176},{"$f":"X679*'III. GDP shares, 1310-2018'!F681","v":0.1874725896978755},{"$f":"Y679*'III. GDP shares, 1310-2018'!G681","v":0.3736226720108403},{"$f":"Z679*'III. GDP shares, 1310-2018'!H681","v":1.5783112219603352},{"$f":"AA679*'III. GDP shares, 1310-2018'!I681","v":0.27741231759439994},{"$f":"AB679*'III. GDP shares, 1310-2018'!J681","v":0.21568634441244317},null,null,9.567474798387098,9.572514915884657,null,3.7522344039816367,4.51159093916238,{"$f":"AVERAGE(BL676:BL682)","v":3.9231705172022155},4.629011630388157,null,null,5.530504104776215]
[{"$f":"'[1]Nominal weighted'!B680","v":1986},null,6.06541064033958,6.063333333333333,6.341260165060112,7.0207551642717325,7.039120703754676,5.72891,3.187189251310027,5.82239376443417,null,5.701221701631048,4.5252380952380955,5.7960398992234285,5.236005142234821,{"$f":"AVERAGE(G677:G683)","v":5.729345142844731},6.0170358338422805,5.387362928159752,4.523711760807784,null,4.15458935966042,3.4,-0.08126016506011266,-1.0707551642717323,2.120879296245324,1.94393,8.252810748689972,-0.46189376443417035,null,null,10.22,9.463333333333333,6.26,5.95,9.16,7.67284,11.44,5.3605,null,5.3605,{"$f":"AE680*'III. GDP shares, 1310-2018'!C682","v":0.7379298099285948},{"$f":"AF680*'III. GDP shares, 1310-2018'!D682","v":0.6956548225786578},{"$f":"AG680*'III. GDP shares, 1310-2018'!E682","v":0.1250743595439129},{"$f":"AH680*'III. GDP shares, 1310-2018'!F682","v":0.6279931878422431},{"$f":"AI680*'III. GDP shares, 1310-2018'!G682","v":0.7222925549147361},{"$f":"AJ680*'III. GDP shares, 1310-2018'!H682","v":3.4426809790051385},{"$f":"AK680*'III. GDP shares, 1310-2018'!I682","v":0.3886992387134952},{"$f":"AL680*'III. GDP shares, 1310-2018'!J682","v":0.896521132175527},null,null,{"$f":"U680*'III. GDP shares, 1310-2018'!C682","v":0.29997997421776673},{"$f":"V680*'III. GDP shares, 1310-2018'!D682","v":0.2499358643995178},{"$f":"W680*'III. GDP shares, 1310-2018'!E682","v":-1.6235723804035528E-3},{"$f":"X680*'III. GDP shares, 1310-2018'!F682","v":-0.11301293260664705},{"$f":"Y680*'III. GDP shares, 1310-2018'!G682","v":0.16723748095532778},{"$f":"Z680*'III. GDP shares, 1310-2018'!H682","v":0.8722103986942852},{"$f":"AA680*'III. GDP shares, 1310-2018'!I682","v":0.2804074523830719},{"$f":"AB680*'III. GDP shares, 1310-2018'!J682","v":-0.07724979398103508},null,null,8.190834166666667,7.636846084702306,null,1.6778848716818837,2.282287538853713,{"$f":"AVERAGE(BL677:BL683)","v":3.6000758175857976},4.108814178137304,null,null,5.513242254841282]
[{"$f":"'[1]Nominal weighted'!B681","v":1987},null,5.4451948418866065,5.114999999999999,7.034104073006649,5.400779157186142,6.844491318829453,4.81447,8.02080120801945,4.445962877030173,null,5.936032365434735,3.915,5.939586517446606,5.311955543303845,{"$f":"AVERAGE(G678:G684)","v":6.142290676267935},5.329851548127996,5.565047554765341,4.14499593557022,null,5.194805158113394,4.2,-0.7241040730066495,0.9992208428138577,3.1155086811705472,3.57821,4.599198791980549,0.4640371229698277,null,null,10.64,9.315,6.31,6.4,9.96,8.39268,12.62,4.91,null,4.91,{"$f":"AE681*'III. GDP shares, 1310-2018'!C683","v":0.7658047376934443},{"$f":"AF681*'III. GDP shares, 1310-2018'!D683","v":0.6935861510899003},{"$f":"AG681*'III. GDP shares, 1310-2018'!E683","v":0.12362028334820999},{"$f":"AH681*'III. GDP shares, 1310-2018'!F683","v":0.6629610944801047},{"$f":"AI681*'III. GDP shares, 1310-2018'!G683","v":0.778542234197113},{"$f":"AJ681*'III. GDP shares, 1310-2018'!H683","v":3.768895350778701},{"$f":"AK681*'III. GDP shares, 1310-2018'!I683","v":0.4381859857277526},{"$f":"AL681*'III. GDP shares, 1310-2018'!J683","v":0.8269921635489366},null,null,{"$f":"U681*'III. GDP shares, 1310-2018'!C683","v":0.3738915790862386},{"$f":"V681*'III. GDP shares, 1310-2018'!D683","v":0.312728055241823},{"$f":"W681*'III. GDP shares, 1310-2018'!E683","v":-0.014186046066351021},{"$f":"X681*'III. GDP shares, 1310-2018'!F683","v":0.1035069599342512},{"$f":"Y681*'III. GDP shares, 1310-2018'!G683","v":0.2435296274396605},{"$f":"Z681*'III. GDP shares, 1310-2018'!H683","v":1.6068644381901673},{"$f":"AA681*'III. GDP shares, 1310-2018'!I683","v":0.15969131982740775},{"$f":"AB681*'III. GDP shares, 1310-2018'!J683","v":0.07815785423459098},null,null,8.56846,8.058588000864162,null,2.8641837878877885,2.6783595655051906,{"$f":"AVERAGE(BL678:BL684)","v":3.684186092669418},3.9592808901871286,null,null,4.813546117128297]
[{"$f":"'[1]Nominal weighted'!B682","v":1988},null,5.410811243662836,4.223333333333333,5.335178791995947,4.911394627605829,5.539385060393562,4.747960000000001,6.486462292875444,3.7562124711316263,null,6.200427813327146,3.7601190476190474,5.981603207873549,5.270535969905796,{"$f":"AVERAGE(G679:G685)","v":6.199722241869581},4.695094055299539,5.6844299304247565,3.984761706540261,null,5.379188756337163,4.9,1.2048212080040532,1.6486053723941705,3.080614939606437,4.10004,5.843537707124556,0.9237875288683735,null,null,10.79,9.123333333333333,6.54,6.56,8.62,8.848,12.33,4.68,null,4.68,{"$f":"AE682*'III. GDP shares, 1310-2018'!C684","v":0.7718093949755928},{"$f":"AF682*'III. GDP shares, 1310-2018'!D684","v":0.6823592938539137},{"$f":"AG682*'III. GDP shares, 1310-2018'!E684","v":0.12579934534880888},{"$f":"AH682*'III. GDP shares, 1310-2018'!F684","v":0.6718742419935184},{"$f":"AI682*'III. GDP shares, 1310-2018'!G684","v":0.6730312900527131},{"$f":"AJ682*'III. GDP shares, 1310-2018'!H684","v":3.961829819930312},{"$f":"AK682*'III. GDP shares, 1310-2018'!I684","v":0.4320231946328349},{"$f":"AL682*'III. GDP shares, 1310-2018'!J684","v":0.8009357450921466},null,null,{"$f":"U682*'III. GDP shares, 1310-2018'!C684","v":0.3847737182102036},{"$f":"V682*'III. GDP shares, 1310-2018'!D684","v":0.36648453122588714},{"$f":"W682*'III. GDP shares, 1310-2018'!E684","v":0.023175186426494035},{"$f":"X682*'III. GDP shares, 1310-2018'!F684","v":0.16884992148228287},{"$f":"Y682*'III. GDP shares, 1310-2018'!G684","v":0.240527870876912},{"$f":"Z682*'III. GDP shares, 1310-2018'!H684","v":1.8358567738366947},{"$f":"AA682*'III. GDP shares, 1310-2018'!I684","v":0.20474808014512422},{"$f":"AB682*'III. GDP shares, 1310-2018'!J684","v":0.1580971052865435},null,null,8.436416666666666,8.11966232587984,null,3.3825131874901424,3.385074439041844,{"$f":"AVERAGE(BL679:BL685)","v":3.6113515120969164},3.823452748400221,null,null,4.421274375761671]
[{"$f":"'[1]Nominal weighted'!B683","v":1989},null,7.503849341282122,1.4608333333333325,6.580440507389058,3.9966589041065816,5.816776652660641,3.70263,5.97218168562504,3.048421052631582,null,6.745616629285217,3.9705952380952376,5.958775671719805,5.173512751465428,{"$f":"AVERAGE(G680:G686)","v":6.256484748309967},4.248712088787706,6.105712746622564,3.8662765699788992,null,6.276150658717877,7.8,1.2895594926109417,3.263341095893418,3.56322334733936,4.79109,6.887818314374959,2.6315789473684177,null,null,13.78,9.260833333333332,7.87,7.26,9.38,8.49372,12.86,5.68,null,5.68,{"$f":"AE683*'III. GDP shares, 1310-2018'!C685","v":0.9781806938469481},{"$f":"AF683*'III. GDP shares, 1310-2018'!D685","v":0.6826742095486413},{"$f":"AG683*'III. GDP shares, 1310-2018'!E685","v":0.15285443253673836},{"$f":"AH683*'III. GDP shares, 1310-2018'!F685","v":0.7406867582112378},{"$f":"AI683*'III. GDP shares, 1310-2018'!G685","v":0.7350947068727373},{"$f":"AJ683*'III. GDP shares, 1310-2018'!H685","v":3.7953973655502113},{"$f":"AK683*'III. GDP shares, 1310-2018'!I685","v":0.45758507855351527},{"$f":"AL683*'III. GDP shares, 1310-2018'!J685","v":0.9829522019506562},null,null,{"$f":"U683*'III. GDP shares, 1310-2018'!C685","v":0.4455159220633261},{"$f":"V683*'III. GDP shares, 1310-2018'!D685","v":0.574987006332699},{"$f":"W683*'III. GDP shares, 1310-2018'!E685","v":0.02504636397273313},{"$f":"X683*'III. GDP shares, 1310-2018'!F685","v":0.3329357489331686},{"$f":"Y683*'III. GDP shares, 1310-2018'!G685","v":0.2792437763363028},{"$f":"Z683*'III. GDP shares, 1310-2018'!H685","v":2.1408864860289674},{"$f":"AA683*'III. GDP shares, 1310-2018'!I685","v":0.24508265042345312},{"$f":"AB683*'III. GDP shares, 1310-2018'!J685","v":0.455407802979362},null,null,9.323069166666667,8.525425447070687,null,4.499105757070012,4.562845232038121,{"$f":"AVERAGE(BL680:BL686)","v":3.47929390787437},3.6311211817558364,null,null,3.9186324867847317]
[{"$f":"'[1]Nominal weighted'!B684","v":1990},null,7.035826820749358,1.3791666666666682,6.5554526537022,6.260238462762196,6.759066858171895,3.1331800000000003,6.252745883248496,3.02958751393535,null,6.5202549523525954,3.974047619047618,5.466876471584845,4.353725828877297,{"$f":"AVERAGE(G681:G687)","v":5.755585682022618},3.8441006602162777,6.105428145496859,3.373218097339525,null,6.614173179250642,9.5,2.6445473462977995,2.7397615372378037,3.2409331418281053,5.41922,6.547254116751505,3.79041248606465,null,null,13.65,10.879166666666668,{"v":9.2,"d":"9.20"},9,10,8.5524,12.8,6.82,null,6.82,{"$f":"AE684*'III. GDP shares, 1310-2018'!C686","v":0.9705923549274751},{"$f":"AF684*'III. GDP shares, 1310-2018'!D686","v":0.7894119594813523},{"$f":"AG684*'III. GDP shares, 1310-2018'!E686","v":0.1823985025049151},{"$f":"AH684*'III. GDP shares, 1310-2018'!F686","v":0.874169362035937},{"$f":"AI684*'III. GDP shares, 1310-2018'!G686","v":0.7885163057998283},{"$f":"AJ684*'III. GDP shares, 1310-2018'!H686","v":3.8125107393559357},{"$f":"AK684*'III. GDP shares, 1310-2018'!I686","v":0.4664220311467056},{"$f":"AL684*'III. GDP shares, 1310-2018'!J686","v":1.2160282811361434},null,null,{"$f":"U684*'III. GDP shares, 1310-2018'!C686","v":0.4703051957470348},{"$f":"V684*'III. GDP shares, 1310-2018'!D686","v":0.6893371381147005},{"$f":"W684*'III. GDP shares, 1310-2018'!E686","v":0.052430595192181066},{"$f":"X684*'III. GDP shares, 1310-2018'!F686","v":0.26611284390419654},{"$f":"Y684*'III. GDP shares, 1310-2018'!G686","v":0.25555286283385287},{"$f":"Z684*'III. GDP shares, 1310-2018'!H686","v":2.415793747828969},{"$f":"AA684*'III. GDP shares, 1310-2018'!I686","v":0.23857684090381773},{"$f":"AB684*'III. GDP shares, 1310-2018'!J686","v":0.6758429296519314},null,null,10.112695833333333,9.10004953638829,null,5.063952154176684,5.062037725928813,{"$f":"AVERAGE(BL681:BL687)","v":3.627188047418077},3.7279827813622113,null,null,3.9360225608449566]
[{"$f":"'[1]Nominal weighted'!B685","v":1991},null,7.009546944789427,4.0891666666666655,4.924971047024197,4.764142923681218,5.602127160855569,3.64661,5.728947563256471,2.9373039742212588,null,6.9923375932054626,4.0686904761904765,5.193942698588665,4.304247345136135,{"$f":"AVERAGE(G682:G688)","v":5.737037038357668},3.7976879063436444,6.025856431925717,3.323241312821781,null,5.880453055210573,5.9,3.675028952975803,3.245857076318782,3.01787283914443,4.21583,5.528052436743529,2.7926960257787417,null,null,12.89,9.989166666666666,{"v":8.6,"d":"8.60"},8.01,8.62,7.86244,11.257,5.73,null,5.73,{"$f":"AE685*'III. GDP shares, 1310-2018'!C687","v":0.9177243144305968},{"$f":"AF685*'III. GDP shares, 1310-2018'!D687","v":0.70603752998506},{"$f":"AG685*'III. GDP shares, 1310-2018'!E687","v":0.17220416873846936},{"$f":"AH685*'III. GDP shares, 1310-2018'!F687","v":0.8091957629409633},{"$f":"AI685*'III. GDP shares, 1310-2018'!G687","v":0.6793679441958728},{"$f":"AJ685*'III. GDP shares, 1310-2018'!H687","v":3.4545822998063773},{"$f":"AK685*'III. GDP shares, 1310-2018'!I687","v":0.4154031283536807},{"$f":"AL685*'III. GDP shares, 1310-2018'!J687","v":1.0427654294316275},null,null,{"$f":"U685*'III. GDP shares, 1310-2018'!C687","v":0.4186683280554252},{"$f":"V685*'III. GDP shares, 1310-2018'!D687","v":0.4170139077579232},{"$f":"W685*'III. GDP shares, 1310-2018'!E687","v":0.07358782627174484},{"$f":"X685*'III. GDP shares, 1310-2018'!F687","v":0.32790684060787784},{"$f":"Y685*'III. GDP shares, 1310-2018'!G687","v":0.23784757152831942},{"$f":"Z685*'III. GDP shares, 1310-2018'!H687","v":1.8523424912613284},{"$f":"AA685*'III. GDP shares, 1310-2018'!I687","v":0.20399487216189477},{"$f":"AB685*'III. GDP shares, 1310-2018'!J687","v":0.5082245847457537},null,null,9.119825833333334,8.197280577882648,null,4.0395864223902676,4.2819737982714825,{"$f":"AVERAGE(BL682:BL688)","v":3.546735511424564},3.7148823760670004,null,null,3.8686705332652433]
[{"$f":"'[1]Nominal weighted'!B686","v":1992},null,8.748676572286588,5.463333333333332,4.940022463860473,3.8606200206442973,6.194425483503976,3.967224621513944,7.091661342023025,4.024054336468133,null,7.02522067027216,4.14297619047619,5.055588660788241,4.2486855857006995,{"$f":"AVERAGE(G683:G689)","v":5.600654129055419},3.6577650492007874,5.8720798668339915,3.313960594626231,null,4.8713234277134125,3.7,2.2899775361395274,3.329379979355703,1.9055745164960232,3.04162,5.348338657976974,0.8359456635318674,null,null,13.62,9.163333333333332,7.23,7.19,8.1,7.008844621513944,12.44,4.86,null,4.86,{"$f":"AE686*'III. GDP shares, 1310-2018'!C688","v":0.9563809967891403},{"$f":"AF686*'III. GDP shares, 1310-2018'!D688","v":0.6351886899116354},{"$f":"AG686*'III. GDP shares, 1310-2018'!E688","v":0.14457595225572123},{"$f":"AH686*'III. GDP shares, 1310-2018'!F688","v":0.7267996109361462},{"$f":"AI686*'III. GDP shares, 1310-2018'!G688","v":0.6370167309734258},{"$f":"AJ686*'III. GDP shares, 1310-2018'!H688","v":3.1148728319631283},{"$f":"AK686*'III. GDP shares, 1310-2018'!I688","v":0.4535114938788496},{"$f":"AL686*'III. GDP shares, 1310-2018'!J688","v":0.8741239916165506},null,null,{"$f":"U686*'III. GDP shares, 1310-2018'!C688","v":0.34205882198816784},{"$f":"V686*'III. GDP shares, 1310-2018'!D688","v":0.25647851793449084},{"$f":"W686*'III. GDP shares, 1310-2018'!E688","v":0.04579193401543325},{"$f":"X686*'III. GDP shares, 1310-2018'!F688","v":0.3365496625388483},{"$f":"Y686*'III. GDP shares, 1310-2018'!G688","v":0.14986208013883495},{"$f":"Z686*'III. GDP shares, 1310-2018'!H688","v":1.3517576740214858},{"$f":"AA686*'III. GDP shares, 1310-2018'!I688","v":0.194978541362471},{"$f":"AB686*'III. GDP shares, 1310-2018'!J688","v":0.15035394242407857},null,null,8.70152224435591,7.542470298324598,null,2.8278311744238107,3.1652699726516884,{"$f":"AVERAGE(BL683:BL689)","v":3.394381677235743},3.6055732758761216,null,null,4.335928951923641]
[{"$f":"'[1]Nominal weighted'!B687","v":1993},null,4.487878901811225,6.0875,2.897965764115388,1.2822467061548144,3.532827239743224,2.8966299999999996,3.1851970434300902,2.3709844559585522,null,6.622573758514329,4.738928571428572,4.590363692651777,4.288427382992404,{"$f":"AVERAGE(G684:G690)","v":5.355326520794462},3.6297981557767507,5.541647580714927,3.203632642165428,null,4.382121098188774,1.6,2.612034235884612,4.257753293845186,2.1071727602567756,2.96965,4.924802956569909,0.8290155440414478,null,null,8.87,7.687500000000001,5.51,5.54,5.64,5.86628,8.11,3.2,null,3.2,{"$f":"AE687*'III. GDP shares, 1310-2018'!C689","v":0.6102656733026769},{"$f":"AF687*'III. GDP shares, 1310-2018'!D689","v":0.5390666619413004},{"$f":"AG687*'III. GDP shares, 1310-2018'!E689","v":0.1097490245468906},{"$f":"AH687*'III. GDP shares, 1310-2018'!F689","v":0.5491540643262738},{"$f":"AI687*'III. GDP shares, 1310-2018'!G689","v":0.434131601713085},{"$f":"AJ687*'III. GDP shares, 1310-2018'!H689","v":2.6465829760945736},{"$f":"AK687*'III. GDP shares, 1310-2018'!I689","v":0.289255993240893},{"$f":"AL687*'III. GDP shares, 1310-2018'!J689","v":0.570370803516045},null,null,{"$f":"U687*'III. GDP shares, 1310-2018'!C689","v":0.3014947105388995},{"$f":"V687*'III. GDP shares, 1310-2018'!D689","v":0.11219598817640071},{"$f":"W687*'III. GDP shares, 1310-2018'!E689","v":0.052026898270674936},{"$f":"X687*'III. GDP shares, 1310-2018'!F689","v":0.42205099751149155},{"$f":"Y687*'III. GDP shares, 1310-2018'!G689","v":0.16219685913057738},{"$f":"Z687*'III. GDP shares, 1310-2018'!H689","v":1.3397630414776063},{"$f":"AA687*'III. GDP shares, 1310-2018'!I689","v":0.1756508965127393},{"$f":"AB687*'III. GDP shares, 1310-2018'!J689","v":0.14776445686944117},null,null,6.302972500000001,5.748576798681738,null,2.7131438484878307,2.960318736098338,{"$f":"AVERAGE(BL684:BL690)","v":3.070505045587939},3.264771588485119,null,null,2.6085622764290077]
[{"$f":"'[1]Nominal weighted'!B688","v":1994},null,8.749773327856676,5.7775,5.123567662033391,5.054429770998006,6.714650813174804,4.489580722891566,7.463799213021453,4.096125385405961,null,6.151061101555247,5.1170238095238085,4.080227216104844,3.855083212353901,{"$f":"AVERAGE(G685:G691)","v":4.992490827918096},3.755971012919608,5.166157223039114,2.779335740525234,null,4.030226672143323,2.4,2.636432337966609,2.595570229001994,1.5853491868251968,2.5956,4.336200786978548,0.513874614594039,null,null,12.78,8.1775,7.76,7.65,8.3,7.085180722891566,11.8,4.61,null,4.61,{"$f":"AE688*'III. GDP shares, 1310-2018'!C690","v":0.8721232655700522},{"$f":"AF688*'III. GDP shares, 1310-2018'!D690","v":0.5811066881342429},{"$f":"AG688*'III. GDP shares, 1310-2018'!E690","v":0.15351559978862506},{"$f":"AH688*'III. GDP shares, 1310-2018'!F690","v":0.7554470927976645},{"$f":"AI688*'III. GDP shares, 1310-2018'!G690","v":0.6329044426242552},{"$f":"AJ688*'III. GDP shares, 1310-2018'!H690","v":3.228005319394883},{"$f":"AK688*'III. GDP shares, 1310-2018'!I690","v":0.4181589318223899},{"$f":"AL688*'III. GDP shares, 1310-2018'!J690","v":0.8061625769174697},null,null,{"$f":"U688*'III. GDP shares, 1310-2018'!C690","v":0.27502773445204687},{"$f":"V688*'III. GDP shares, 1310-2018'!D690","v":0.1705479732830551},{"$f":"W688*'III. GDP shares, 1310-2018'!E690","v":0.0521563777918906},{"$f":"X688*'III. GDP shares, 1310-2018'!F690","v":0.2563158148564346},{"$f":"Y688*'III. GDP shares, 1310-2018'!G690","v":0.1208884992111346},{"$f":"Z688*'III. GDP shares, 1310-2018'!H690","v":1.182554254396199},{"$f":"AA688*'III. GDP shares, 1310-2018'!I690","v":0.15366280417375897},{"$f":"AB688*'III. GDP shares, 1310-2018'!J690","v":0.08986257776867725},null,null,8.520335090361446,7.447423917049583,null,2.301016035933197,2.5866567284387134,{"$f":"AVERAGE(BL685:BL691)","v":2.6544565169535965},2.840337013384374,null,null,4.735849166265199]
[{"$f":"'[1]Nominal weighted'!B689","v":1995},null,5.640992783129728,4.743333333333334,4.366700527392987,4.522462311557785,4.584704695277819,3.7685000000000004,5.4100263372333615,3.6912474437627814,null,5.483662536985749,4.837511904761905,3.689657785926164,3.6761452319611423,{"$f":"AVERAGE(G686:G692)","v":4.718202255226201},3.7658652986338934,4.715530756832101,2.578005453903838,null,5.569007216870273,3.5,1.6832994726070127,1.507537688442215,2.085295304722181,2.80542,4.319973662766639,-0.5112474437627812,null,null,11.21,8.243333333333334,6.05,6.03,6.67,6.57392,9.73,3.18,null,3.18,{"$f":"AE689*'III. GDP shares, 1310-2018'!C691","v":0.7686459362760252},{"$f":"AF689*'III. GDP shares, 1310-2018'!D691","v":0.5881806996692056},{"$f":"AG689*'III. GDP shares, 1310-2018'!E691","v":0.12038719482128939},{"$f":"AH689*'III. GDP shares, 1310-2018'!F691","v":0.5923135788196127},{"$f":"AI689*'III. GDP shares, 1310-2018'!G691","v":0.508216058489442},{"$f":"AJ689*'III. GDP shares, 1310-2018'!H691","v":2.998111944978155},{"$f":"AK689*'III. GDP shares, 1310-2018'!I691","v":0.3458942202273376},{"$f":"AL689*'III. GDP shares, 1310-2018'!J691","v":0.5537914267524349},null,null,{"$f":"U689*'III. GDP shares, 1310-2018'!C691","v":0.38185501929876825},{"$f":"V689*'III. GDP shares, 1310-2018'!D691","v":0.24973301037309575},{"$f":"W689*'III. GDP shares, 1310-2018'!E691","v":0.03349548785972135},{"$f":"X689*'III. GDP shares, 1310-2018'!F691","v":0.14808209675732248},{"$f":"Y689*'III. GDP shares, 1310-2018'!G691","v":0.15888764026273564},{"$f":"Z689*'III. GDP shares, 1310-2018'!H691","v":1.2794441083372805},{"$f":"AA689*'III. GDP shares, 1310-2018'!I691","v":0.1535718316017782},{"$f":"AB689*'III. GDP shares, 1310-2018'!J691","v":-0.08903284632230371},null,null,7.210906666666667,6.4755410600335015,null,2.316036348168398,2.619910737705692,{"$f":"AVERAGE(BL686:BL692)","v":2.2640385940260583},2.4231269973956002,null,null,3.821057022568993]
[{"$f":"'[1]Nominal weighted'!B690","v":1996},null,4.685320958977304,5.6325,3.323865730433802,4.2748514851485115,4.099483394833941,3.506861746031746,3.6591556827915923,2.276125385405961,null,4.730427235287609,4.535047619047619,3.463626056575231,3.7188457732296434,{"$f":"AVERAGE(G687:G693)","v":4.432804728039355},3.692403989584377,4.077117529645894,2.4158264342371316,null,2.8646790410226957,2.4,2.346134269566198,1.4851485148514887,1.6605166051660587,2.93667,3.210844317208408,0.513874614594039,null,null,7.55,8.0325,5.67,5.76,5.76,6.443531746031746,6.87,2.79,null,2.79,{"$f":"AE690*'III. GDP shares, 1310-2018'!C692","v":0.5085504883764816},{"$f":"AF690*'III. GDP shares, 1310-2018'!D692","v":0.5726231578730862},{"$f":"AG690*'III. GDP shares, 1310-2018'!E692","v":0.11296815472110744},{"$f":"AH690*'III. GDP shares, 1310-2018'!F692","v":0.5552614454018103},{"$f":"AI690*'III. GDP shares, 1310-2018'!G692","v":0.43113911338309785},{"$f":"AJ690*'III. GDP shares, 1310-2018'!H692","v":2.962514523023512},{"$f":"AK690*'III. GDP shares, 1310-2018'!I692","v":0.24303941684808197},{"$f":"AL690*'III. GDP shares, 1310-2018'!J692","v":0.4883547336055347},null,null,{"$f":"U690*'III. GDP shares, 1310-2018'!C692","v":0.1929581358084719},{"$f":"V690*'III. GDP shares, 1310-2018'!D692","v":0.17109188657272414},{"$f":"W690*'III. GDP shares, 1310-2018'!E692","v":0.04674399632466431},{"$f":"X690*'III. GDP shares, 1310-2018'!F692","v":0.14316765815847043},{"$f":"Y690*'III. GDP shares, 1310-2018'!G692","v":0.12429056543562607},{"$f":"Z690*'III. GDP shares, 1310-2018'!H692","v":1.3501799738451377},{"$f":"AA690*'III. GDP shares, 1310-2018'!I692","v":0.11358977153483397},{"$f":"AB690*'III. GDP shares, 1310-2018'!J692","v":0.08994734785545475},null,null,6.109503968253967,5.874451033232712,null,2.231969335535383,2.1772334203011106,{"$f":"AVERAGE(BL687:BL693)","v":2.0691844167070026},2.187402244658856,null,null,3.2409504263969677]
[{"$f":"'[1]Nominal weighted'!B691","v":1997},null,3.7352382220357754,4.025833333333335,2.984497317873673,3.226829268292679,4.219217008037341,4.0163899999999995,3.62431337951781,0.05950920245399072,null,{"$f":"AVERAGE(C688:C694)","v":4.454977384399807},{"$f":"AVERAGE(D688:D694)","v":3.938678571428572},{"$f":"AVERAGE(E688:E694)","v":3.388810983110041},{"$f":"AVERAGE(F688:F694)","v":3.9585248152075265},{"$f":"AVERAGE(G688:G694)","v":4.414967104533932},3.6591138302218273,3.7982269251456087,2.385051679514756,null,1.9047617779642243,3.1,2.315502682126327,2.0731707317073207,1.1407829919626593,2.33757,2.0156866204821897,1.8404907975460092,null,null,5.64,7.125833333333335,{"v":5.3,"d":"5.30"},5.3,5.36,6.35396,5.64,1.9,null,1.9,{"$f":"AE691*'III. GDP shares, 1310-2018'!C693","v":0.3751588443530563},{"$f":"AF691*'III. GDP shares, 1310-2018'!D693","v":0.5078033756977108},{"$f":"AG691*'III. GDP shares, 1310-2018'!E693","v":0.1061315336629895},{"$f":"AH691*'III. GDP shares, 1310-2018'!F693","v":0.5034480032986927},{"$f":"AI691*'III. GDP shares, 1310-2018'!G693","v":0.39765105757032637},{"$f":"AJ691*'III. GDP shares, 1310-2018'!H693","v":2.954773333676795},{"$f":"AK691*'III. GDP shares, 1310-2018'!I693","v":0.20058960948892796},{"$f":"AL691*'III. GDP shares, 1310-2018'!J693","v":0.32760247664119774},null,null,{"$f":"U691*'III. GDP shares, 1310-2018'!C693","v":0.12670004031718637},{"$f":"V691*'III. GDP shares, 1310-2018'!D693","v":0.22091317478604655},{"$f":"W691*'III. GDP shares, 1310-2018'!E693","v":0.046367519029213725},{"$f":"X691*'III. GDP shares, 1310-2018'!F693","v":0.19693088025949815},{"$f":"Y691*'III. GDP shares, 1310-2018'!G693","v":0.0846331274649613},{"$f":"Z691*'III. GDP shares, 1310-2018'!H693","v":1.0870369819140921},{"$f":"AA691*'III. GDP shares, 1310-2018'!I693","v":0.07168897022244315},{"$f":"AB691*'III. GDP shares, 1310-2018'!J693","v":0.3173417597428452},null,null,5.327474166666667,5.373158234389696,null,2.151612453736287,2.0909957002235915,{"$f":"AVERAGE(BL688:BL694)","v":2.030031933298702},2.0994317456538982,null,null,2.934655579741745]
[{"$f":"'[1]Nominal weighted'!B692","v":1998},null,2.3377569928029533,2.132583333333334,2.1909850357734384,3.511577060931903,3.682107152012302,3.71587,2.574562299807374,1.5279919678714857,null,3.6198175660799956,3.5782261904761907,2.793660647936946,3.7200686261392684,{"$f":"AVERAGE(G689:G695)","v":3.9765109790281055},3.332610224647456,3.085035989782672,2.2250360901942767,null,1.682243007197046,3.4,1.7790149642265618,0.3584229390680969,0.21789284798769767,1.54701,1.4054377001926264,0.5020080321285141,null,null,4.02,5.532583333333334,3.97,3.87,3.9,5.26288,3.98,2.03,null,2.03,{"$f":"AE692*'III. GDP shares, 1310-2018'!C694","v":0.26355180393014055},{"$f":"AF692*'III. GDP shares, 1310-2018'!D694","v":0.3968843759513541},{"$f":"AG692*'III. GDP shares, 1310-2018'!E694","v":0.08215615613812507},{"$f":"AH692*'III. GDP shares, 1310-2018'!F694","v":0.36555863317500165},{"$f":"AI692*'III. GDP shares, 1310-2018'!G694","v":0.289739825150789},{"$f":"AJ692*'III. GDP shares, 1310-2018'!H694","v":2.4921632564831966},{"$f":"AK692*'III. GDP shares, 1310-2018'!I694","v":0.14443000774561077},{"$f":"AL692*'III. GDP shares, 1310-2018'!J694","v":0.3317689139243291},null,null,{"$f":"U692*'III. GDP shares, 1310-2018'!C694","v":0.11028810427752385},{"$f":"V692*'III. GDP shares, 1310-2018'!D694","v":0.2439017719090727},{"$f":"W692*'III. GDP shares, 1310-2018'!E694","v":0.03681537309145048},{"$f":"X692*'III. GDP shares, 1310-2018'!F694","v":0.03385648571170553},{"$f":"Y692*'III. GDP shares, 1310-2018'!G694","v":0.01618775273783666},{"$f":"Z692*'III. GDP shares, 1310-2018'!H694","v":0.7325649605182086},{"$f":"AA692*'III. GDP shares, 1310-2018'!I694","v":0.051001853749948346},{"$f":"AB692*'III. GDP shares, 1310-2018'!J694","v":0.08204465990175706},null,null,4.070682916666667,4.366252972498548,null,1.3066609618975034,1.3615036863500678,{"$f":"AVERAGE(BL689:BL695)","v":1.9619009160323237},2.0011109054619842,null,null,2.9066094065587618]
[{"$f":"'[1]Nominal weighted'!B693","v":1999},null,3.4760294603995994,3.3460833333333335,3.3578003584039426,4.159523809523809,4.196642793196056,3.4529954581673308,2.6227687517195717,2.8888011988011875,null,3.0431982687525343,3.378714285714286,2.3819751365721116,3.5118491845173443,{"$f":"AVERAGE(G690:G696)","v":3.6103719141033204},3.2253116532188852,2.3538020132871176,1.8719889347098646,null,2.1139705396004005,1.5,2.152199641596057,1.1904761904761905,1.2533572068039442,2.19314,2.9172312482804283,-1.1988011988011875,null,null,5.59,4.8460833333333335,5.51,5.35,5.45,5.646135458167331,5.54,1.69,null,1.69,{"$f":"AE693*'III. GDP shares, 1310-2018'!C695","v":0.3621351957663307},{"$f":"AF693*'III. GDP shares, 1310-2018'!D695","v":0.34728539007166864},{"$f":"AG693*'III. GDP shares, 1310-2018'!E695","v":0.11571798637514517},{"$f":"AH693*'III. GDP shares, 1310-2018'!F695","v":0.49980373669430833},{"$f":"AI693*'III. GDP shares, 1310-2018'!G695","v":0.4055203296817286},{"$f":"AJ693*'III. GDP shares, 1310-2018'!H695","v":2.7084930360560175},{"$f":"AK693*'III. GDP shares, 1310-2018'!I695","v":0.20385204080210828},{"$f":"AL693*'III. GDP shares, 1310-2018'!J695","v":0.2673922915933203},null,null,{"$f":"U693*'III. GDP shares, 1310-2018'!C695","v":0.13694868250491},{"$f":"V693*'III. GDP shares, 1310-2018'!D695","v":0.10749466100270039},{"$f":"W693*'III. GDP shares, 1310-2018'!E695","v":0.045199311942432825},{"$f":"X693*'III. GDP shares, 1310-2018'!F695","v":0.11121578475618789},{"$f":"Y693*'III. GDP shares, 1310-2018'!G695","v":0.09325905095634972},{"$f":"Z693*'III. GDP shares, 1310-2018'!H695","v":1.0520655165124186},{"$f":"AA693*'III. GDP shares, 1310-2018'!I695","v":0.10734359990138036},{"$f":"AB693*'III. GDP shares, 1310-2018'!J695","v":-0.189674674385958},null,null,4.952777348937582,4.910200007040628,null,1.4638519331904216,1.515196703494479,{"$f":"AVERAGE(BL690:BL696)","v":1.8473471514634632},1.911626282792928,null,null,3.2065573447812374]
[{"$f":"'[1]Nominal weighted'!B694","v":2000},null,2.5597299455966103,1.9129166666666668,2.374260249859052,2.9599999999999964,3.407963875205258,2.6635988844621514,1.2329628119280973,2.155561172901921,null,2.649306927769136,2.8576190476190484,2.2780867579689454,3.3539654786864435,{"$f":"AVERAGE(G691:G697)","v":3.3287324910072544},2.969457118071493,2.072562316915717,1.8017578470834035,null,2.7002700544033895,3,2.5957397501409476,2.0000000000000036,1.6420361247947417,3.36668,3.957037188071903,-0.5055611729019212,null,null,5.26,4.912916666666667,4.97,4.96,5.05,6.0302788844621515,5.19,1.65,null,1.65,{"$f":"AE694*'III. GDP shares, 1310-2018'!C696","v":0.34051741065737007},{"$f":"AF694*'III. GDP shares, 1310-2018'!D696","v":0.3555751081125151},{"$f":"AG694*'III. GDP shares, 1310-2018'!E696","v":0.1046770329539946},{"$f":"AH694*'III. GDP shares, 1310-2018'!F696","v":0.4613553795321017},{"$f":"AI694*'III. GDP shares, 1310-2018'!G696","v":0.37668004446774145},{"$f":"AJ694*'III. GDP shares, 1310-2018'!H696","v":2.8937284980252533},{"$f":"AK694*'III. GDP shares, 1310-2018'!I696","v":0.19382783064548603},{"$f":"AL694*'III. GDP shares, 1310-2018'!J696","v":0.25906213642788156},null,null,{"$f":"U694*'III. GDP shares, 1310-2018'!C696","v":0.17480778840324676},{"$f":"V694*'III. GDP shares, 1310-2018'!D696","v":0.2171266880171409},{"$f":"W694*'III. GDP shares, 1310-2018'!E696","v":0.054670892427665534},{"$f":"X694*'III. GDP shares, 1310-2018'!F696","v":0.186030394972622},{"$f":"Y694*'III. GDP shares, 1310-2018'!G696","v":0.12247965158521212},{"$f":"Z694*'III. GDP shares, 1310-2018'!H696","v":1.6155567671727318},{"$f":"AA694*'III. GDP shares, 1310-2018'!I696","v":0.14778110480683834},{"$f":"AB694*'III. GDP shares, 1310-2018'!J696","v":-0.07937682275573171},null,null,4.752899443891102,4.985423440822344,null,2.439076464629726,2.344525243063633,{"$f":"AVERAGE(BL691:BL697)","v":1.7887973375269794},1.8664074511425663,null,null,2.407898556097244]
[{"$f":"'[1]Nominal weighted'!B695","v":2001},null,2.903654599618002,3.2543333333333333,0.9575153158217269,3.385236447520194,3.645457934634021,2.2040554838709676,2.4714626654808964,2.97601626016261,null,2.373005871471587,2.5358690476190477,2.2153710191889022,3.102024750807626,{"$f":"AVERAGE(G692:G698)","v":2.959310983498124},2.6247942609286357,1.6238109720074851,1.9543744156045426,null,2.3663454003819977,1.8,4.152484684178273,1.6147635524798056,1.3545420653659792,2.81663,2.7085373345191033,-1.62601626016261,null,null,5.27,5.054333333333333,5.11,5,5,5.020685483870968,5.18,1.35,null,1.35,{"$f":"AE695*'III. GDP shares, 1310-2018'!C697","v":0.34367961943693004},{"$f":"AF695*'III. GDP shares, 1310-2018'!D697","v":0.36746813047386806},{"$f":"AG695*'III. GDP shares, 1310-2018'!E697","v":0.10855908385329568},{"$f":"AH695*'III. GDP shares, 1310-2018'!F697","v":0.4659553378777259},{"$f":"AI695*'III. GDP shares, 1310-2018'!G697","v":0.3759092012272757},{"$f":"AJ695*'III. GDP shares, 1310-2018'!H697","v":2.4023531896422337},{"$f":"AK695*'III. GDP shares, 1310-2018'!I697","v":0.19843663238812373},{"$f":"AL695*'III. GDP shares, 1310-2018'!J697","v":0.21014831601373665},null,null,{"$f":"U695*'III. GDP shares, 1310-2018'!C697","v":0.15431967488797246},{"$f":"V695*'III. GDP shares, 1310-2018'!D697","v":0.13086644493562538},{"$f":"W695*'III. GDP shares, 1310-2018'!E697","v":0.08821720802920455},{"$f":"X695*'III. GDP shares, 1310-2018'!F697","v":0.15048153933767297},{"$f":"Y695*'III. GDP shares, 1310-2018'!G697","v":0.1018369651640939},{"$f":"Z695*'III. GDP shares, 1310-2018'!H697","v":1.3477323139000885},{"$f":"AA695*'III. GDP shares, 1310-2018'!I697","v":0.10375927169101849},{"$f":"AB695*'III. GDP shares, 1310-2018'!J697","v":-0.25311450287713066},null,null,4.623127352150537,4.47250951091319,null,1.8240989150685456,1.8984108470953187,{"$f":"AVERAGE(BL692:BL698)","v":1.7954265453747555},1.8650073912848593,null,null,2.4118089103064015]
[{"$f":"'[1]Nominal weighted'!B696","v":2002},null,1.6046577018374948,3.34675,1.4849019478391443,3.0649262202043133,2.0217312408043226,3.01741,0.29138850176448194,1.2199173553718978,null,2.255976880906693,2.4653214285714284,2.0745949335020226,2.8701552808032367,{"$f":"AVERAGE(G693:G699)","v":2.676481226149897},2.22581997521435,1.1955880644857733,2.0512528600283555,null,2.825342298162505,1.7,2.745098052160856,1.135073779795687,2.2682687591956774,1.59567,3.9886114982355183,-0.3099173553718979,null,null,4.43,5.04675,4.23,4.2,4.29,4.61308,4.28,0.91,null,0.91,{"$f":"AE696*'III. GDP shares, 1310-2018'!C698","v":0.2865530853268203},{"$f":"AF696*'III. GDP shares, 1310-2018'!D698","v":0.3701227912964577},{"$f":"AG696*'III. GDP shares, 1310-2018'!E698","v":0.08888458958932752},{"$f":"AH696*'III. GDP shares, 1310-2018'!F698","v":0.386892346094829},{"$f":"AI696*'III. GDP shares, 1310-2018'!G698","v":0.3220818966403944},{"$f":"AJ696*'III. GDP shares, 1310-2018'!H698","v":2.2170687556372908},{"$f":"AK696*'III. GDP shares, 1310-2018'!I698","v":0.1664472069987966},{"$f":"AL696*'III. GDP shares, 1310-2018'!J698","v":0.14038986898295466},null,null,{"$f":"U696*'III. GDP shares, 1310-2018'!C698","v":0.18275633242501915},{"$f":"V696*'III. GDP shares, 1310-2018'!D698","v":0.12467602817733751},{"$f":"W696*'III. GDP shares, 1310-2018'!E698","v":0.057682485519806155},{"$f":"X696*'III. GDP shares, 1310-2018'!F698","v":0.10455984706092347},{"$f":"Y696*'III. GDP shares, 1310-2018'!G698","v":0.17029564197013936},{"$f":"Z696*'III. GDP shares, 1310-2018'!H698","v":0.7668867874191985},{"$f":"AA696*'III. GDP shares, 1310-2018'!I698","v":0.15511524385153913},{"$f":"AB696*'III. GDP shares, 1310-2018'!J698","v":-0.047812370237587415},null,null,3.99997875,3.9784405405668712,null,1.5141599961863759,1.9935183790222935,{"$f":"AVERAGE(BL693:BL699)","v":1.9376026730753058},1.9600745585512167,null,null,2.2188337812613748]
[{"$f":"'[1]Nominal weighted'!B697","v":2003},null,1.9280815720935127,1.984833333333334,2.596647080211641,3.1696655443322106,2.128007433161482,1.7158800000000003,1.690477808191785,1.7845077720207314,null,2.0843246267849245,2.1360357142857143,2.0082944368194093,2.639957171580962,{"$f":"AVERAGE(G694:G700)","v":2.432192026514194},1.9572363383333027,1.0026860539301703,1.8188565699473396,null,2.4979184279064874,2.9,1.6963529197883596,1.122334455667789,2.1819925668385176,2.298,2.6035221918082145,-0.41450777202073125,null,null,4.426,4.884833333333334,{"v":4.293,"d":"4.29"},4.292,4.31,4.01388,4.294,1.37,null,1.37,{"$f":"AE697*'III. GDP shares, 1310-2018'!C699","v":0.28110660891071076},{"$f":"AF697*'III. GDP shares, 1310-2018'!D699","v":0.36138466052314105},{"$f":"AG697*'III. GDP shares, 1310-2018'!E699","v":0.08884119223106558},{"$f":"AH697*'III. GDP shares, 1310-2018'!F699","v":0.38722653575377847},{"$f":"AI697*'III. GDP shares, 1310-2018'!G699","v":0.32111620193841894},{"$f":"AJ697*'III. GDP shares, 1310-2018'!H699","v":1.94127035221301},{"$f":"AK697*'III. GDP shares, 1310-2018'!I699","v":0.1689937264310939},{"$f":"AL697*'III. GDP shares, 1310-2018'!J699","v":0.21110528564744077},null,null,{"$f":"U697*'III. GDP shares, 1310-2018'!C699","v":0.1586492043841768},{"$f":"V697*'III. GDP shares, 1310-2018'!D699","v":0.214544784643033},{"$f":"W697*'III. GDP shares, 1310-2018'!E699","v":0.03510505842968717},{"$f":"X697*'III. GDP shares, 1310-2018'!F699","v":0.10125761491736734},{"$f":"Y697*'III. GDP shares, 1310-2018'!G699","v":0.16256917998168133},{"$f":"Z697*'III. GDP shares, 1310-2018'!H699","v":1.111403248075552},{"$f":"AA697*'III. GDP shares, 1310-2018'!I699","v":0.10246365091749404},{"$f":"AB697*'III. GDP shares, 1310-2018'!J699","v":-0.06387210336899322},null,null,3.985464166666667,3.761044563648659,null,1.8221206379799983,1.8607015987485798,{"$f":"AVERAGE(BL694:BL700)","v":2.065207709909773},2.016219532160018,null,null,1.7920840497885526]
[{"$f":"'[1]Nominal weighted'!B698","v":2004},null,1.8011308279529343,1.7735833333333328,2.54548714641337,1.463244173140954,1.6332664554734295,1.6037500000000002,0.48305396516018906,1.1278251821019651,null,2.0110254902450135,1.910202380952381,2.0248646321251695,2.380685939117544,{"$f":"AVERAGE(G695:G701)","v":2.2144670727032407},1.828738119778949,0.8564639170709655,1.5857014804336258,null,2.0308691720470655,3,1.1155128535866299,2.219755826859046,2.0767335445265704,2.66757,3.226946034839811,0.31217481789803475,null,null,3.832,4.773583333333333,{"v":3.661,"d":"3.66"},3.683,3.71,4.27132,3.71,1.44,null,1.44,{"$f":"AE698*'III. GDP shares, 1310-2018'!C700","v":0.23936752587497837},{"$f":"AF698*'III. GDP shares, 1310-2018'!D700","v":0.3543921357865927},{"$f":"AG698*'III. GDP shares, 1310-2018'!E700","v":0.07527403934867605},{"$f":"AH698*'III. GDP shares, 1310-2018'!F700","v":0.32634325096474043},{"$f":"AI698*'III. GDP shares, 1310-2018'!G700","v":0.2749956399787579},{"$f":"AJ698*'III. GDP shares, 1310-2018'!H700","v":2.0808628600668992},{"$f":"AK698*'III. GDP shares, 1310-2018'!I700","v":0.1465275343619958},{"$f":"AL698*'III. GDP shares, 1310-2018'!J700","v":0.22080415939671263},null,null,{"$f":"U698*'III. GDP shares, 1310-2018'!C700","v":0.12685911510664716},{"$f":"V698*'III. GDP shares, 1310-2018'!D700","v":0.22272082272781346},{"$f":"W698*'III. GDP shares, 1310-2018'!E700","v":0.022936126313803297},{"$f":"X698*'III. GDP shares, 1310-2018'!F700","v":0.19668811644993386},{"$f":"Y698*'III. GDP shares, 1310-2018'!G700","v":0.15393333427019906},{"$f":"Z698*'III. GDP shares, 1310-2018'!H700","v":1.2995625098631474},{"$f":"AA698*'III. GDP shares, 1310-2018'!I700","v":0.1274491768205651},{"$f":"AB698*'III. GDP shares, 1310-2018'!J700","v":0.04786770711860931},null,null,3.6351129166666665,3.718567145779353,null,2.1980169086707186,2.0811952812196446,{"$f":"AVERAGE(BL695:BL701)","v":2.103527064254682},2.0841050049666263,null,null,1.388878924049855]
[{"$f":"'[1]Nominal weighted'!B699","v":2005},null,1.5185540588486985,1.63875,1.2055524359652825,1.8884907709011818,1.7022988505747116,0.9230499999999999,-0.422998052844608,2.206141078838177,null,1.902149422049315,1.5297857142857143,2.1171599931527676,2.1562385039329817,{"$f":"AVERAGE(G696:G702)","v":2.0394482221353063},1.492346328969835,0.8430873218344347,1.2687889955503067,null,1.9904459411513014,2.8,2.0414475640347174,1.411509229098818,1.5977011494252882,3.36583,3.734998052844608,-0.7261410788381771,null,null,3.509,4.43875,{"v":3.247,"d":"3.25"},3.3,3.3,4.28888,3.312,1.48,null,1.48,{"$f":"AE699*'III. GDP shares, 1310-2018'!C701","v":0.21556333477663858},{"$f":"AF699*'III. GDP shares, 1310-2018'!D701","v":0.3289071656512081},{"$f":"AG699*'III. GDP shares, 1310-2018'!E701","v":0.06650427168808404},{"$f":"AH699*'III. GDP shares, 1310-2018'!F701","v":0.2875665922583197},{"$f":"AI699*'III. GDP shares, 1310-2018'!G701","v":0.24342337086308075},{"$f":"AJ699*'III. GDP shares, 1310-2018'!H701","v":2.103807802787991},{"$f":"AK699*'III. GDP shares, 1310-2018'!I701","v":0.1323480938652558},{"$f":"AL699*'III. GDP shares, 1310-2018'!J701","v":0.2258409806461532},null,null,{"$f":"U699*'III. GDP shares, 1310-2018'!C701","v":0.12227619400604145},{"$f":"V699*'III. GDP shares, 1310-2018'!D701","v":0.20747734470816842},{"$f":"W699*'III. GDP shares, 1310-2018'!E701","v":0.041812437152923376},{"$f":"X699*'III. GDP shares, 1310-2018'!F701","v":0.12300087847064091},{"$f":"Y699*'III. GDP shares, 1310-2018'!G701","v":0.11785387861361284},{"$f":"Z699*'III. GDP shares, 1310-2018'!H701","v":1.6510276381847717},{"$f":"AA699*'III. GDP shares, 1310-2018'!I701","v":0.1492511693491624},{"$f":"AB699*'III. GDP shares, 1310-2018'!J701","v":-0.11080568468396593},null,null,3.35945375,3.6039616125367315,null,2.301893855801355,2.026973857214569,{"$f":"AVERAGE(BL696:BL702)","v":2.2201014492057185},2.0980991569538254,null,null,1.180637935792337]
[{"$f":"'[1]Nominal weighted'!B700","v":2006},null,2.2744636815472172,1.041083333333333,2.893696881625649,2.5481370449678833,2.4866183957461327,1.5729099999999998,1.2724546778303507,1.2620271682340736,null,2.118391996564711,1.7723928571428569,2.2527749914882524,2.084146672590897,{"$f":"AVERAGE(G697:G703)","v":2.132848024129064},1.5733563289698351,1.2558164465271509,1.5442364135420612,null,1.8735363184527825,3.2,1.000303118374351,1.3918629550321167,1.4933816042538672,3.22209,2.6665453221696493,0.4179728317659263,null,null,4.148,4.241083333333333,{"v":3.894,"d":"3.89"},3.94,3.98,4.795,3.939,1.68,null,1.68,{"$f":"AE700*'III. GDP shares, 1310-2018'!C702","v":0.25319760799422786},{"$f":"AF700*'III. GDP shares, 1310-2018'!D702","v":0.3150171338473385},{"$f":"AG700*'III. GDP shares, 1310-2018'!E702","v":0.08033660567354611},{"$f":"AH700*'III. GDP shares, 1310-2018'!F702","v":0.34516764852076953},{"$f":"AI700*'III. GDP shares, 1310-2018'!G702","v":0.29286054206662665},{"$f":"AJ700*'III. GDP shares, 1310-2018'!H702","v":2.3531561521403246},{"$f":"AK700*'III. GDP shares, 1310-2018'!I702","v":0.15946900694380062},{"$f":"AL700*'III. GDP shares, 1310-2018'!J702","v":0.25472994150456296},null,null,{"$f":"U700*'III. GDP shares, 1310-2018'!C702","v":0.11436232264285355},{"$f":"V700*'III. GDP shares, 1310-2018'!D702","v":0.23768805021786493},{"$f":"W700*'III. GDP shares, 1310-2018'!E702","v":0.020637123054663264},{"$f":"X700*'III. GDP shares, 1310-2018'!F702","v":0.1219355490486308},{"$f":"Y700*'III. GDP shares, 1310-2018'!G702","v":0.1098875744055568},{"$f":"Z700*'III. GDP shares, 1310-2018'!H702","v":1.5812473214285336},{"$f":"AA700*'III. GDP shares, 1310-2018'!I702","v":0.10795413417035564},{"$f":"AB700*'III. GDP shares, 1310-2018'!J702","v":0.0633751160632327},null,null,3.8271354166666667,4.053934638691198,null,2.3570871910316913,1.9082115187560866,{"$f":"AVERAGE(BL697:BL703)","v":1.9730141686864469},1.8486808604661615,null,null,1.6195183640300321]
[{"$f":"'[1]Nominal weighted'!B701","v":2007},null,2.046635989817236,0.3320833333333333,2.490251616999373,1.1451013727560717,1.8838891985285837,1.7641113545816736,0.209407853913663,0.5234755463059253,null,2.2622416152971296,1.4943571428571425,2.0539582551142397,1.870591468609988,{"$f":"AVERAGE(G698:G704)","v":2.0566952717218947},1.55323343767786,1.366514534343601,1.5105081663735276,null,2.605364010182764,4.3,1.8707483830006266,3.167898627243928,2.586110801471416,2.87055,4.220592146086337,0.9365244536940747,null,null,4.652,4.632083333333333,{"v":4.361,"d":"4.36"},4.313,4.47,4.634661354581674,4.43,1.46,null,1.46,{"$f":"AE701*'III. GDP shares, 1310-2018'!C703","v":0.2820789061160672},{"$f":"AF701*'III. GDP shares, 1310-2018'!D703","v":0.34514166921103945},{"$f":"AG701*'III. GDP shares, 1310-2018'!E703","v":0.0911338942811039},{"$f":"AH701*'III. GDP shares, 1310-2018'!F703","v":0.3786632638446461},{"$f":"AI701*'III. GDP shares, 1310-2018'!G703","v":0.32898578570248493},{"$f":"AJ701*'III. GDP shares, 1310-2018'!H703","v":2.2705028847806257},{"$f":"AK701*'III. GDP shares, 1310-2018'!I703","v":0.1816642681804855},{"$f":"AL701*'III. GDP shares, 1310-2018'!J703","v":0.22141928604830874},null,null,{"$f":"U701*'III. GDP shares, 1310-2018'!C703","v":0.15797898323871973},{"$f":"V701*'III. GDP shares, 1310-2018'!D703","v":0.32039777154429494},{"$f":"W701*'III. GDP shares, 1310-2018'!E703","v":0.03909392005570401},{"$f":"X701*'III. GDP shares, 1310-2018'!F703","v":0.2781281784653744},{"$f":"Y701*'III. GDP shares, 1310-2018'!G703","v":0.19033415971717155},{"$f":"Z701*'III. GDP shares, 1310-2018'!H703","v":1.4062714742823548},{"$f":"AA701*'III. GDP shares, 1310-2018'!I703","v":0.1730769262995664},{"$f":"AB701*'III. GDP shares, 1310-2018'!J703","v":0.1420305314409071},null,null,4.119093085989375,4.099589958164762,null,2.7073119450440926,2.8197235527098936,{"$f":"AVERAGE(BL698:BL704)","v":1.942382751831703},1.8630018717817378,null,null,1.3675341154539238]
[{"$f":"'[1]Nominal weighted'!B702","v":2008},null,2.141522122248111,0.5914166666666665,1.6035828430149133,1.8141044012282557,2.420325980658479,-0.1506870517928287,2.377826498825182,0.7576288659793755,null,2.5381806488439054,1.1212171586532487,1.6556333691951561,1.639819364589144,{"$f":"AVERAGE(G699:G705)","v":1.9220826350760238},1.2729820091064314,1.6849463708278736,1.5208308594465962,null,2.240477877751889,4,1.9444171569850868,1.1258955987717443,0.999674019341521,3.81495,1.4331735011748183,0.41237113402062436,null,null,4.382,4.5914166666666665,{"v":3.548,"d":"3.55"},2.94,3.42,3.6642629482071714,3.811,1.17,null,1.17,{"$f":"AE702*'III. GDP shares, 1310-2018'!C704","v":0.2622961687184178},{"$f":"AF702*'III. GDP shares, 1310-2018'!D704","v":0.34351877758244675},{"$f":"AG702*'III. GDP shares, 1310-2018'!E704","v":0.07541037427388805},{"$f":"AH702*'III. GDP shares, 1310-2018'!F704","v":0.2604683207771158},{"$f":"AI702*'III. GDP shares, 1310-2018'!G704","v":0.2517387332592168},{"$f":"AJ702*'III. GDP shares, 1310-2018'!H704","v":1.7971227553505267},{"$f":"AK702*'III. GDP shares, 1310-2018'!I704","v":0.1572351572954062},{"$f":"AL702*'III. GDP shares, 1310-2018'!J704","v":0.1756916452329109},null,null,{"$f":"U702*'III. GDP shares, 1310-2018'!C704","v":0.13410971324342585},{"$f":"V702*'III. GDP shares, 1310-2018'!D704","v":0.2992704017270894},{"$f":"W702*'III. GDP shares, 1310-2018'!E704","v":0.04132729017835816},{"$f":"X702*'III. GDP shares, 1310-2018'!F704","v":0.09974834557225222},{"$f":"Y702*'III. GDP shares, 1310-2018'!G704","v":0.07358382201789015},{"$f":"Z702*'III. GDP shares, 1310-2018'!H704","v":1.8710266027384639},{"$f":"AA702*'III. GDP shares, 1310-2018'!I704","v":0.059130218023833794},{"$f":"AB702*'III. GDP shares, 1310-2018'!J704","v":0.061923216224482644},null,null,3.4408349518592294,3.3234819324899285,null,2.640119609725796,1.9963699110057105,{"$f":"AVERAGE(BL699:BL705)","v":1.9998798820065442},1.9346124511455198,null,null,0.6391139469087759]
[{"$f":"'[1]Nominal weighted'!B703","v":2009},null,3.1183557234452675,5.044999999999999,2.434206936187538,2.5602834008097197,2.67552985476063,3.58448,3.1804923746134945,3.14804928131418,null,2.6390335708996817,0.9685976588503221,1.2855918984870216,1.2642040649560313,{"$f":"AVERAGE(G700:G706)","v":1.8099337487391758},1.1025820091064313,2.0940759576691517,1.3335625850261041,null,1.0226442765547328,-0.5,1.107793063812462,0.8097165991902806,0.9144701452393699,-0.32036,0.7945076253865054,-1.8480492813141798,null,null,4.141,4.544999999999999,{"v":3.542,"d":"3.54"},3.37,3.59,3.26412,3.975,1.3,null,1.3,{"$f":"AE703*'III. GDP shares, 1310-2018'!C705","v":0.24787047801528256},{"$f":"AF703*'III. GDP shares, 1310-2018'!D705","v":0.34004599396240526},{"$f":"AG703*'III. GDP shares, 1310-2018'!E705","v":0.07528284827455228},{"$f":"AH703*'III. GDP shares, 1310-2018'!F705","v":0.2985640275574422},{"$f":"AI703*'III. GDP shares, 1310-2018'!G705","v":0.26425206210543517},{"$f":"AJ703*'III. GDP shares, 1310-2018'!H705","v":1.600874285254243},{"$f":"AK703*'III. GDP shares, 1310-2018'!I705","v":0.16400150885574383},{"$f":"AL703*'III. GDP shares, 1310-2018'!J705","v":0.1952129391476788},null,null,{"$f":"U703*'III. GDP shares, 1310-2018'!C705","v":0.06121307067597547},{"$f":"V703*'III. GDP shares, 1310-2018'!D705","v":-0.037408800215886176},{"$f":"W703*'III. GDP shares, 1310-2018'!E705","v":0.023545402919987295},{"$f":"X703*'III. GDP shares, 1310-2018'!F705","v":0.07173657241375826},{"$f":"Y703*'III. GDP shares, 1310-2018'!G705","v":0.06731215086723129},{"$f":"Z703*'III. GDP shares, 1310-2018'!H705","v":-0.15711924991239576},{"$f":"AA703*'III. GDP shares, 1310-2018'!I705","v":0.03277998726057382},{"$f":"AB703*'III. GDP shares, 1310-2018'!J705","v":-0.27751010145776656},null,null,3.4658900000000004,3.1861041431727837,null,-0.21545096744852235,0.2475903036086464,{"$f":"AVERAGE(BL700:BL706)","v":1.933425214353454},1.9414070932064258,null,null,3.0241003164430147]
[{"$f":"'[1]Nominal weighted'!B704","v":2010},null,2.935028903220444,0.038583333333333414,1.2049299255935526,1.6747791164658519,1.5949381663112945,1.5750197609561756,2.4653644229069345,1.5484100418409952,null,2.804356327841805,0.9944103276812342,0.9556618141861934,0.9651844871034767,{"$f":"AVERAGE(G701:G707)","v":1.701222947213383},1.0041934376778598,2.4626350277996747,1.209558703849808,null,1.8799710967795562,4.6,1.9340700744064472,1.3052208835341481,1.7590618336887056,1.64004,2.987635577093066,-0.4184100418409953,null,null,4.815,4.638583333333333,{"v":3.139,"d":"3.14"},2.98,3.354,3.2150597609561755,5.453,1.13,null,1.13,{"$f":"AE704*'III. GDP shares, 1310-2018'!C706","v":0.28821452587384344},{"$f":"AF704*'III. GDP shares, 1310-2018'!D706","v":0.34704767440281203},{"$f":"AG704*'III. GDP shares, 1310-2018'!E706","v":0.06671735198583274},{"$f":"AH704*'III. GDP shares, 1310-2018'!F706","v":0.26401210745435544},{"$f":"AI704*'III. GDP shares, 1310-2018'!G706","v":0.2468806173542144},{"$f":"AJ704*'III. GDP shares, 1310-2018'!H706","v":1.5768128919495592},{"$f":"AK704*'III. GDP shares, 1310-2018'!I706","v":0.2249811893812254},{"$f":"AL704*'III. GDP shares, 1310-2018'!J706","v":0.16968509325913617},null,null,{"$f":"U704*'III. GDP shares, 1310-2018'!C706","v":0.1125306289335097},{"$f":"V704*'III. GDP shares, 1310-2018'!D706","v":0.3441609619861528},{"$f":"W704*'III. GDP shares, 1310-2018'!E706","v":0.041107369837349694},{"$f":"X704*'III. GDP shares, 1310-2018'!F706","v":0.11563560944808264},{"$f":"Y704*'III. GDP shares, 1310-2018'!G706","v":0.12948070109281576},{"$f":"Z704*'III. GDP shares, 1310-2018'!H706","v":0.8043509009437056},{"$f":"AA704*'III. GDP shares, 1310-2018'!I706","v":0.1232645893218525},{"$f":"AB704*'III. GDP shares, 1310-2018'!J706","v":-0.06283004156667996},null,null,3.5905803867861885,3.184351451660979,null,1.6077007199967885,1.9609486779576155,{"$f":"AVERAGE(BL701:BL707)","v":1.777783247515771},1.840627765072136,null,null,1.573764019247531]
[{"$f":"'[1]Nominal weighted'!B705","v":2011},null,3.7327040627803645,-0.838396556093925,-0.24278705502021358,-0.15216055500495518,0.690977998952337,-0.35801000000000016,2.7120768205500987,1.2000840336134484,null,2.746265472153629,0.971112708633615,0.5563401546148544,0.7515985767097523,{"$f":"AVERAGE(G702:G708)","v":1.4788102045664429},0.8847132441661925,2.6841481915262944,0.7686961995959513,null,3.287295937219635,5.2,2.4207870550202135,1.9821605550049552,2.462022001047663,3.13965,2.377923179449901,-0.21008403361344835,null,null,7.02,4.361603443906075,{"v":2.178,"d":"2.18"},1.83,3.153,2.78164,5.09,0.99,null,0.99,{"$f":"AE705*'III. GDP shares, 1310-2018'!C707","v":0.42020061716186513},{"$f":"AF705*'III. GDP shares, 1310-2018'!D707","v":0.3263247037080069},{"$f":"AG705*'III. GDP shares, 1310-2018'!E707","v":0.04629193775888618},{"$f":"AH705*'III. GDP shares, 1310-2018'!F707","v":0.16212824048371494},{"$f":"AI705*'III. GDP shares, 1310-2018'!G707","v":0.23208544618897972},{"$f":"AJ705*'III. GDP shares, 1310-2018'!H707","v":1.3642439453312416},{"$f":"AK705*'III. GDP shares, 1310-2018'!I707","v":0.2100044478177952},{"$f":"AL705*'III. GDP shares, 1310-2018'!J707","v":0.1486621613509246},null,null,{"$f":"U705*'III. GDP shares, 1310-2018'!C707","v":0.19676976946059582},{"$f":"V705*'III. GDP shares, 1310-2018'!D707","v":0.3890515222452162},{"$f":"W705*'III. GDP shares, 1310-2018'!E707","v":0.05145221472842659},{"$f":"X705*'III. GDP shares, 1310-2018'!F707","v":0.17560885417441377},{"$f":"Y705*'III. GDP shares, 1310-2018'!G707","v":0.18122406426902365},{"$f":"Z705*'III. GDP shares, 1310-2018'!H707","v":1.5398284835418075},{"$f":"AA705*'III. GDP shares, 1310-2018'!I707","v":0.09810892814410854},{"$f":"AB705*'III. GDP shares, 1310-2018'!J707","v":-0.031547016668985385},null,null,3.425530430488259,2.9099414998014144,null,2.6004968198946066,2.582469336766115,{"$f":"AVERAGE(BL702:BL708)","v":1.6126891533525647},1.6055846143898485,null,null,0.372171498444017]
[{"$f":"'[1]Nominal weighted'!B706","v":2012},null,2.224524513239132,0.5704135013795146,-1.38473785899166,-0.7408163265306065,0.9172566462167719,-0.26974999999999993,2.440909055044341,0.8952631578947309,null,2.6640480261181843,1.0153388991098053,0.3549711770412953,0.5104408051057157,{"$f":"AVERAGE(G703:G709)","v":1.2694779216152312},1.1944338019351164,2.6703158345512685,0.6706344740486962,null,2.3054754867608684,3.2,2.88373785899166,2.0408163265306065,1.3292433537832282,2.07319,2.8690909449556585,-0.10526315789473085,null,null,4.53,3.770413501379515,{"v":1.499,"d":"1.50"},1.3,2.2465,1.80344,5.31,0.79,null,0.79,{"$f":"AE706*'III. GDP shares, 1310-2018'!C708","v":0.271155099108725},{"$f":"AF706*'III. GDP shares, 1310-2018'!D708","v":0.28209329080877227},{"$f":"AG706*'III. GDP shares, 1310-2018'!E708","v":0.03186024550072103},{"$f":"AH706*'III. GDP shares, 1310-2018'!F708","v":0.11517306701028929},{"$f":"AI706*'III. GDP shares, 1310-2018'!G708","v":0.16535996031193878},{"$f":"AJ706*'III. GDP shares, 1310-2018'!H708","v":0.8844897617118587},{"$f":"AK706*'III. GDP shares, 1310-2018'!I708","v":0.21908126088654076},{"$f":"AL706*'III. GDP shares, 1310-2018'!J708","v":0.11862940148205096},null,null,{"$f":"U706*'III. GDP shares, 1310-2018'!C708","v":0.1380003165795539},{"$f":"V706*'III. GDP shares, 1310-2018'!D708","v":0.23941632138167154},{"$f":"W706*'III. GDP shares, 1310-2018'!E708","v":0.06129192538171976},{"$f":"X706*'III. GDP shares, 1310-2018'!F708","v":0.18080544271630922},{"$f":"Y706*'III. GDP shares, 1310-2018'!G708","v":0.0978427011914102},{"$f":"Z706*'III. GDP shares, 1310-2018'!H708","v":1.0167875444059176},{"$f":"AA706*'III. GDP shares, 1310-2018'!I708","v":0.11837364629360499},{"$f":"AB706*'III. GDP shares, 1310-2018'!J708","v":-0.01580671572045892},null,null,2.6561691876724396,2.0878420868208964,null,1.8367111822297282,2.0745363516409117,{"$f":"AVERAGE(BL703:BL709)","v":1.265111106254572},1.3563305773328083,null,null,0.20845393516406796]
[2018,null,3.431722980142082,1.2217720151497167,0.5841862915198504,0.45500000000000007,1.7256427850655873,0.8841899999999998,3.85236816874401,0.394,null,2.4887114941974318,0.23891032768123424,0.008084471871647085,0.1015431764186129,{"$f":"AVERAGE(G704:G710)","v":0.9551165137922843},0.7646295162208309,2.4376740667493406,0.24391314814667067,null,0.6572770198579188,3,1.6498137084801496,1.505,0.7063572149344126,1.46597,0.2876318312559896,0.35,null,null,4.089,4.221772015149717,{"v":2.234,"d":"2.23"},1.96,2.432,2.35016,4.14,0.744,null,0.744,{"$f":"AE707*'III. GDP shares, 1310-2018'!C709","v":0.24475788085112063},{"$f":"AF707*'III. GDP shares, 1310-2018'!D709","v":0.31586285174350986},{"$f":"AG707*'III. GDP shares, 1310-2018'!E709","v":0.04748218041935342},{"$f":"AH707*'III. GDP shares, 1310-2018'!F709","v":0.17364554718474384},{"$f":"AI707*'III. GDP shares, 1310-2018'!G709","v":0.1790142103176653},{"$f":"AJ707*'III. GDP shares, 1310-2018'!H709","v":1.1526263465292672},{"$f":"AK707*'III. GDP shares, 1310-2018'!I709","v":0.17080911865730297},{"$f":"AL707*'III. GDP shares, 1310-2018'!J709","v":0.11172186671221002},null,null,{"$f":"U707*'III. GDP shares, 1310-2018'!C709","v":0.03934304977074202},{"$f":"V707*'III. GDP shares, 1310-2018'!D709","v":0.22445280129531706},{"$f":"W707*'III. GDP shares, 1310-2018'!E709","v":0.03506569031529857},{"$f":"X707*'III. GDP shares, 1310-2018'!F709","v":0.1333349737311426},{"$f":"Y707*'III. GDP shares, 1310-2018'!G709","v":0.05199341243160742},{"$f":"Z707*'III. GDP shares, 1310-2018'!H709","v":0.7189789823763105},{"$f":"AA707*'III. GDP shares, 1310-2018'!I709","v":0.011867183476961758},{"$f":"AB707*'III. GDP shares, 1310-2018'!J709","v":0.052557329770528904},null,null,2.7713665018937146,2.3959200024151732,null,1.2675934231679087,1.2027562218160588,{"$f":"AVERAGE(BL704:BL710)","v":1.4070550721709592},1.3841674982458587,null,null,1.0369165287990711]
[2018,null,1.6400000000000001,0.16900000000000004,-0.30499999999999994,-0.35,0.32699999999999996,0.9277499999999999,1.76,-2.562561983471072,null,2.1755645080230828,-0.10374443422352773,-0.28533408892743184,-0.2934252687907945,{"$f":"AVERAGE(G705:G711)","v":0.6904110614620994},0.5668866932270916,2.0247648634769213,-0.03714542925918581,null,0.241,2.4,0.98,0.91,0.51,1.61181,-0.15,2.892561983471072,null,null,1.881,2.569,{"v":0.675,"d":"0.68"},0.56,0.837,2.53956,1.61,0.33,null,0.33,{"$f":"AE708*'III. GDP shares, 1310-2018'!C710","v":0.11259221664978182},{"$f":"AF708*'III. GDP shares, 1310-2018'!D710","v":0.19220641550922316},{"$f":"AG708*'III. GDP shares, 1310-2018'!E710","v":0.014346674925274645},{"$f":"AH708*'III. GDP shares, 1310-2018'!F710","v":0.04961301348135539},{"$f":"AI708*'III. GDP shares, 1310-2018'!G710","v":0.061609742613439905},{"$f":"AJ708*'III. GDP shares, 1310-2018'!H710","v":1.2455168008101005},{"$f":"AK708*'III. GDP shares, 1310-2018'!I710","v":0.06642576836672895},{"$f":"AL708*'III. GDP shares, 1310-2018'!J710","v":0.04955405378364154},null,null,{"$f":"U708*'III. GDP shares, 1310-2018'!C710","v":0.014425690703135256},{"$f":"V708*'III. GDP shares, 1310-2018'!D710","v":0.17956224103625365},{"$f":"W708*'III. GDP shares, 1310-2018'!E710","v":0.02082924655817652},{"$f":"X708*'III. GDP shares, 1310-2018'!F710","v":0.0806211469072025},{"$f":"Y708*'III. GDP shares, 1310-2018'!G710","v":0.03753998653865514},{"$f":"Z708*'III. GDP shares, 1310-2018'!H710","v":0.7905056130643608},{"$f":"AA708*'III. GDP shares, 1310-2018'!I710","v":-0.006188736183235615},{"$f":"AB708*'III. GDP shares, 1310-2018'!J710","v":0.434358097277098},null,null,1.375195,1.791864686139546,null,1.5516532859016463,1.1744214979338838,{"$f":"AVERAGE(BL705:BL711)","v":1.4318987954730442},1.3417401871090566,null,null,0.22756722576493016]
[2018,null,1.566,0.901,0.19400000000000006,0.126,0.955,2.0173568525896415,2.2809999999999997,0.07119678714859157,null,1.7630353561973167,-0.2468306404958241,-0.39979308106740136,-0.4305451895043723,{"$f":"AVERAGE(G706:G712)","v":0.4504142044689084},0.6751738360842346,1.59432531768405,-0.34157171977539275,null,0.039,1,0.6,0.514,0.038,0.12093,-0.5,0.20080321285140845,null,null,1.605,1.901,{"v":0.794,"d":"0.79"},0.64,0.993,2.1382868525896415,1.781,0.272,null,0.272,{"$f":"AE709*'III. GDP shares, 1310-2018'!C711","v":0.09607150862461447},{"$f":"AF709*'III. GDP shares, 1310-2018'!D711","v":0.14222825842079925},{"$f":"AG709*'III. GDP shares, 1310-2018'!E711","v":0.01687594057876751},{"$f":"AH709*'III. GDP shares, 1310-2018'!F711","v":0.056700586835834725},{"$f":"AI709*'III. GDP shares, 1310-2018'!G711","v":0.07309256202526383},{"$f":"AJ709*'III. GDP shares, 1310-2018'!H711","v":1.0487140291435324},{"$f":"AK709*'III. GDP shares, 1310-2018'!I711","v":0.07348092761561753},{"$f":"AL709*'III. GDP shares, 1310-2018'!J711","v":0.04084455342166818},null,null,{"$f":"U709*'III. GDP shares, 1310-2018'!C711","v":2.334447873121473E-3},{"$f":"V709*'III. GDP shares, 1310-2018'!D711","v":0.07481760043177235},{"$f":"W709*'III. GDP shares, 1310-2018'!E711","v":0.012752599933577462},{"$f":"X709*'III. GDP shares, 1310-2018'!F711","v":0.04553765880252977},{"$f":"Y709*'III. GDP shares, 1310-2018'!G711","v":0.00279709703621352},{"$f":"Z709*'III. GDP shares, 1310-2018'!H711","v":0.059309623211093836},{"$f":"AA709*'III. GDP shares, 1310-2018'!I711","v":-0.020629120610785385},{"$f":"AB709*'III. GDP shares, 1310-2018'!J711","v":0.030153373362323377},null,null,{"$f":"AVERAGE(AE709:AL709)","v":1.2655358565737054},{"$f":"SUM(AO709:AV709)","v":1.548008366666098},null,{"$f":"SUM(AY709:BF709)","v":0.2070732800398464},{"$f":"AVERAGE(U709:AB709)","v":0.251591651606426},{"$f":"AVERAGE(BL706:BL712)","v":1.353789977070914},1.2374213532853255,null,null,{"$f":"((AO709+SUM(AQ709:AV709))-((AY709+(SUM(BA709:BF709)))))","v":1.2735244286372245}]
[2018,null,1.891,-0.3899999999999999,0.006000000000000005,-0.302,0.47500000000000003,0.57585,1.552,0.161,null,1.6861204966903471,-0.38303799747504713,-0.2356356180800249,-0.37883333333333336,{"$f":"AVERAGE(G707:G713)","v":0.3726071308442645},0.8326611420982735,1.4532280281240013,-0.5477108660537466,null,-0.094,1.7,0.317,0.492,0.183,1.26159,-0.203,-0.117,null,null,1.797,1.31,{"v":0.323,"d":"0.32"},0.19,0.658,1.83744,1.349,0.044,null,0.044,{"$f":"AE710*'III. GDP shares, 1310-2018'!C712","v":0.1075641750769048},{"$f":"AF710*'III. GDP shares, 1310-2018'!D712","v":0.09801105656562178},{"$f":"AG710*'III. GDP shares, 1310-2018'!E712","v":0.006865149630909201},{"$f":"AH710*'III. GDP shares, 1310-2018'!F712","v":0.016832986716888435},{"$f":"AI710*'III. GDP shares, 1310-2018'!G712","v":0.04843394341653938},{"$f":"AJ710*'III. GDP shares, 1310-2018'!H712","v":0.9011649224592099},{"$f":"AK710*'III. GDP shares, 1310-2018'!I712","v":0.05565736740789897},{"$f":"AL710*'III. GDP shares, 1310-2018'!J712","v":0.006607207171152205},null,null,{"$f":"U710*'III. GDP shares, 1310-2018'!C712","v":-0.005626617950600474},{"$f":"V710*'III. GDP shares, 1310-2018'!D712","v":0.127189920734013},{"$f":"W710*'III. GDP shares, 1310-2018'!E712","v":0.006737623631573425},{"$f":"X710*'III. GDP shares, 1310-2018'!F712","v":0.04358857613004794},{"$f":"Y710*'III. GDP shares, 1310-2018'!G712","v":0.013470230463870372},{"$f":"Z710*'III. GDP shares, 1310-2018'!H712","v":0.618741648448556},{"$f":"AA710*'III. GDP shares, 1310-2018'!I712","v":-0.008375422967978868},{"$f":"AB710*'III. GDP shares, 1310-2018'!J712","v":-0.017569164523291093},null,null,0.938555,1.2411368084451249,null,0.7781567939661903,0.44244875,{"$f":"AVERAGE(BL707:BL713)","v":1.273303109544445},1.0979021868927281,null,null,0.49215887864732555]
[2018,null,0.7429999999999999,-2.3600000000000003,-0.849,-1.09,-0.258,0.19082000000000043,-0.42500000000000004,-0.41900000000000004,null,1.337,-0.704,-0.39959999999999996,-0.5456000000000001,{"$f":"AVERAGE(G708:G714)","v":0.10200000000000001},0.8223553705179285,0.9734,-0.736053039264496,null,1.227,3.6,1.381,1.51,1.032,2.13866,1.956,0.467,null,null,1.97,1.24,{"v":0.532,"d":"0.53"},0.42,0.774,2.32948,1.531,0.048,null,0.048,{"$f":"AE711*'III. GDP shares, 1310-2018'!C713","v":0.11791954641152057},{"$f":"AF711*'III. GDP shares, 1310-2018'!D713","v":0.09277382453539772},{"$f":"AG711*'III. GDP shares, 1310-2018'!E713","v":0.011307305274438684},{"$f":"AH711*'III. GDP shares, 1310-2018'!F713","v":0.03720976011101654},{"$f":"AI711*'III. GDP shares, 1310-2018'!G713","v":0.05697245015866486},{"$f":"AJ711*'III. GDP shares, 1310-2018'!H713","v":1.142483925227643},{"$f":"AK711*'III. GDP shares, 1310-2018'!I713","v":0.06316636731022485},{"$f":"AL711*'III. GDP shares, 1310-2018'!J713","v":0.007207862368529679},null,null,{"$f":"U711*'III. GDP shares, 1310-2018'!C713","v":0.07344532154666789},{"$f":"V711*'III. GDP shares, 1310-2018'!D713","v":0.2693433615543805},{"$f":"W711*'III. GDP shares, 1310-2018'!E713","v":0.02935223418045079},{"$f":"X711*'III. GDP shares, 1310-2018'!F713","v":0.13377794706579754},{"$f":"Y711*'III. GDP shares, 1310-2018'!G713","v":0.07596326687821982},{"$f":"Z711*'III. GDP shares, 1310-2018'!H713","v":1.0488970377626554},{"$f":"AA711*'III. GDP shares, 1310-2018'!I713","v":0.08070111982939242},{"$f":"AB711*'III. GDP shares, 1310-2018'!J713","v":0.07012649429382},null,null,1.10556,1.529041041397436,null,1.7816067831113842,1.6639575,{"$f":"AVERAGE(BL708:BL714)","v":1.2744450468197523},1.076931379908062,null,null,-0.07599620469496582]
[2018,null,0.845,-1.8399999999999999,-1.044,-1.112,-0.9890000000000001,0.3999999999999999,-0.30099999999999993,-0.9309,null,1.2612499999999998,-0.92225,-0.42325,-0.5945,{"$f":"AVERAGE(G709:G715)","v":0.04574999999999996},0.7960067131474104,0.7767499999999998,-0.2794258032128521,null,1.137,3.3,1.704,1.732,1.85,2.44,1.675,0.9799,null,null,1.982,1.46,0.66,0.62,0.861,2.84,1.374,0.049,null,0.049,{"$f":"AE712*'III. GDP shares, 1310-2018'!C714","v":0.11863783806478871},{"$f":"AF712*'III. GDP shares, 1310-2018'!D714","v":0.10923369663038764},{"$f":"AG712*'III. GDP shares, 1310-2018'!E714","v":0.01402785992693521},{"$f":"AH712*'III. GDP shares, 1310-2018'!F714","v":0.05492869349721489},{"$f":"AI712*'III. GDP shares, 1310-2018'!G714","v":0.06337633021525897},{"$f":"AJ712*'III. GDP shares, 1310-2018'!H714","v":1.3928663683081657},{"$f":"AK712*'III. GDP shares, 1310-2018'!I714","v":0.05668882343843824},{"$f":"AL712*'III. GDP shares, 1310-2018'!J714","v":0.007358026167874047},null,null,{"$f":"U712*'III. GDP shares, 1310-2018'!C714","v":0.06805813414715679},{"$f":"V712*'III. GDP shares, 1310-2018'!D714","v":0.24689808142484876},{"$f":"W712*'III. GDP shares, 1310-2018'!E714","v":0.03621738381135999},{"$f":"X712*'III. GDP shares, 1310-2018'!F714","v":0.15344596312447772},{"$f":"Y712*'III. GDP shares, 1310-2018'!G714","v":0.13617446097355296},{"$f":"Z712*'III. GDP shares, 1310-2018'!H714","v":1.1966880065746213},{"$f":"AA712*'III. GDP shares, 1310-2018'!I714","v":0.06910755404613105},{"$f":"AB712*'III. GDP shares, 1310-2018'!J714","v":0.1471455069775465},null,null,1.23075,1.8171176362490633,null,2.053735091079695,1.8522375,{"$f":"AVERAGE(BL709:BL715)","v":1.2051429870492791},1.0525588504016066,null,null,-0.09895307003617049]
[]
[]
[{"$nulls":65},{"$f":"AVERAGE(BN8:BN712)","v":1.5050245352208527},{"$f":"AVERAGE(BO8:BO712)","v":1.6593454480861458}]

{"sheet":"V. Standard dev., 1329-2018","index":5,"n_rows":714,"n_cols":7,"rows_kept":714}
["back to contents"]
[null,"ST Dev Global R (30-year centered avg, %)","ST Dev safe asset provider R (30-year centered avg, %)",null,null,"Multiple real rate ST Dev - nominal rate ST Dev, global R basis","Multiple real rate ST Dev - nominal rate ST Dev, safe R basis"]
[]
[{"$f":"'III. GDP shares, 1310-2018'!A6","v":1310}]
[{"$f":"'III. GDP shares, 1310-2018'!A7","v":1311}]
[{"$f":"'III. GDP shares, 1310-2018'!A8","v":1312}]
[{"$f":"'III. GDP shares, 1310-2018'!A9","v":1313}]
[{"$f":"'III. GDP shares, 1310-2018'!A10","v":1314}]
[{"$f":"'III. GDP shares, 1310-2018'!A11","v":1315}]
[{"$f":"'III. GDP shares, 1310-2018'!A12","v":1316}]
[{"$f":"'III. GDP shares, 1310-2018'!A13","v":1317}]
[{"$f":"'III. GDP shares, 1310-2018'!A14","v":1318}]
[{"$f":"'III. GDP shares, 1310-2018'!A15","v":1319}]
[{"$f":"'III. GDP shares, 1310-2018'!A16","v":1320}]
[{"$f":"'III. GDP shares, 1310-2018'!A17","v":1321}]
[{"$f":"'III. GDP shares, 1310-2018'!A18","v":1322}]
[{"$f":"'III. GDP shares, 1310-2018'!A19","v":1323}]
[{"$f":"'III. GDP shares, 1310-2018'!A20","v":1324}]
[{"$f":"'III. GDP shares, 1310-2018'!A21","v":1325}]
[{"$f":"'III. GDP shares, 1310-2018'!A22","v":1326}]
[{"$f":"'III. GDP shares, 1310-2018'!A23","v":1327}]
[{"$f":"'III. GDP shares, 1310-2018'!A24","v":1328}]
[{"$f":"'III. GDP shares, 1310-2018'!A25","v":1329},{"$f":"_xlfn.STDEV.S('II. Headline series'!M12:M42)","v":17.38920451829917},{"$f":"_xlfn.STDEV.S('II. Headline series'!P12:P42)","v":21.709632675931317},{"$f":"_xlfn.STDEV.S('II. Headline series'!K12:K42)","v":0.7066948772365155},{"$f":"_xlfn.STDEV.S('II. Headline series'!N12:N42)","v":0.5347360958947743},{"$f":"B23/D23","v":24.606382582393305},{"$f":"C23/E23","v":40.59877917836194}]
[{"$f":"'III. GDP shares, 1310-2018'!A26","v":1330},{"$f":"_xlfn.STDEV.S('II. Headline series'!M13:M43)","v":17.271573907629545},{"$f":"_xlfn.STDEV.S('II. Headline series'!P13:P43)","v":21.483902395035603},{"$f":"_xlfn.STDEV.S('II. Headline series'!K13:K43)","v":0.7075193591127095},{"$f":"_xlfn.STDEV.S('II. Headline series'!N13:N43)","v":0.5903883832293343},{"$f":"B24/D24","v":24.411450634071123},{"$f":"C24/E24","v":36.38943957115473}]
[{"$f":"'III. GDP shares, 1310-2018'!A27","v":1331},{"$f":"_xlfn.STDEV.S('II. Headline series'!M14:M44)","v":16.856333864846306},{"$f":"_xlfn.STDEV.S('II. Headline series'!P14:P44)","v":20.837813734334322},{"$f":"_xlfn.STDEV.S('II. Headline series'!K14:K44)","v":0.7318876834588637},{"$f":"_xlfn.STDEV.S('II. Headline series'!N14:N44)","v":0.5886561056117291},23.03131238004189,35.39895965689466]
[{"$f":"'III. GDP shares, 1310-2018'!A28","v":1332},{"$f":"_xlfn.STDEV.S('II. Headline series'!M15:M45)","v":16.852020514966224},{"$f":"_xlfn.STDEV.S('II. Headline series'!P15:P45)","v":20.8479322397759},{"$f":"_xlfn.STDEV.S('II. Headline series'!K15:K45)","v":0.7396911240855342},{"$f":"_xlfn.STDEV.S('II. Headline series'!N15:N45)","v":0.5605014070963543},22.78251011298811,37.19514701627143]
[{"$f":"'III. GDP shares, 1310-2018'!A29","v":1333},{"$f":"_xlfn.STDEV.S('II. Headline series'!M16:M46)","v":15.682469175041856},{"$f":"_xlfn.STDEV.S('II. Headline series'!P16:P46)","v":19.49647118191967},{"$f":"_xlfn.STDEV.S('II. Headline series'!K16:K46)","v":0.7410207251432018},{"$f":"_xlfn.STDEV.S('II. Headline series'!N16:N46)","v":0.5508770924212462},21.163334091649364,35.391689816375695]
[{"$f":"'III. GDP shares, 1310-2018'!A30","v":1334},{"$f":"_xlfn.STDEV.S('II. Headline series'!M17:M47)","v":15.637785865767405},{"$f":"_xlfn.STDEV.S('II. Headline series'!P17:P47)","v":19.54867214297294},{"$f":"_xlfn.STDEV.S('II. Headline series'!K17:K47)","v":0.7411511351206412},{"$f":"_xlfn.STDEV.S('II. Headline series'!N17:N47)","v":0.5616533270685328},21.099321210945668,34.805584158121825]
[{"$f":"'III. GDP shares, 1310-2018'!A31","v":1335},{"$f":"_xlfn.STDEV.S('II. Headline series'!M18:M48)","v":15.27379788007751},{"$f":"_xlfn.STDEV.S('II. Headline series'!P18:P48)","v":19.283732112389693},{"$f":"_xlfn.STDEV.S('II. Headline series'!K18:K48)","v":0.7458463729760083},{"$f":"_xlfn.STDEV.S('II. Headline series'!N18:N48)","v":0.5428256640334548},20.47847711470848,35.524724400652545]
[{"$f":"'III. GDP shares, 1310-2018'!A32","v":1336},{"$f":"_xlfn.STDEV.S('II. Headline series'!M19:M49)","v":15.073187860572038},{"$f":"_xlfn.STDEV.S('II. Headline series'!P19:P49)","v":18.872337156647674},{"$f":"_xlfn.STDEV.S('II. Headline series'!K19:K49)","v":0.7455932855117476},{"$f":"_xlfn.STDEV.S('II. Headline series'!N19:N49)","v":0.5490694471458621},20.21636749347382,34.37149390618738]
[{"$f":"'III. GDP shares, 1310-2018'!A33","v":1337},{"$f":"_xlfn.STDEV.S('II. Headline series'!M20:M50)","v":14.963801041732255},{"$f":"_xlfn.STDEV.S('II. Headline series'!P20:P50)","v":18.661860785332426},{"$f":"_xlfn.STDEV.S('II. Headline series'!K20:K50)","v":0.7476819370523468},{"$f":"_xlfn.STDEV.S('II. Headline series'!N20:N50)","v":0.5326445399510842},20.013591742934683,35.036237838927725]
[{"$f":"'III. GDP shares, 1310-2018'!A34","v":1338},{"$f":"_xlfn.STDEV.S('II. Headline series'!M21:M51)","v":9.044261084457977},{"$f":"_xlfn.STDEV.S('II. Headline series'!P21:P51)","v":13.435076175260626},{"$f":"_xlfn.STDEV.S('II. Headline series'!K21:K51)","v":0.7467589018360304},{"$f":"_xlfn.STDEV.S('II. Headline series'!N21:N51)","v":0.5214537525940617},12.111353560327387,25.764655270818402]
[{"$f":"'III. GDP shares, 1310-2018'!A35","v":1339},{"$f":"_xlfn.STDEV.S('II. Headline series'!M22:M52)","v":7.744847544453525},{"$f":"_xlfn.STDEV.S('II. Headline series'!P22:P52)","v":11.953340122749509},{"$f":"_xlfn.STDEV.S('II. Headline series'!K22:K52)","v":0.7438867168904256},{"$f":"_xlfn.STDEV.S('II. Headline series'!N22:N52)","v":0.5177122319482717},10.411326575138107,23.088772845420916]
[{"$f":"'III. GDP shares, 1310-2018'!A36","v":1340},{"$f":"_xlfn.STDEV.S('II. Headline series'!M23:M53)","v":6.885998776467822},{"$f":"_xlfn.STDEV.S('II. Headline series'!P23:P53)","v":11.252171722223471},{"$f":"_xlfn.STDEV.S('II. Headline series'!K23:K53)","v":0.7577847001471263},{"$f":"_xlfn.STDEV.S('II. Headline series'!N23:N53)","v":0.5175543799649927},9.08701214887406,21.741042405987496]
[{"$f":"'III. GDP shares, 1310-2018'!A37","v":1341},{"$f":"_xlfn.STDEV.S('II. Headline series'!M24:M54)","v":5.818945328240396},{"$f":"_xlfn.STDEV.S('II. Headline series'!P24:P54)","v":9.921548449353468},{"$f":"_xlfn.STDEV.S('II. Headline series'!K24:K54)","v":0.7696138516131568},{"$f":"_xlfn.STDEV.S('II. Headline series'!N24:N54)","v":0.5065370766392552},7.560863562997908,19.587013284753844]
[{"$f":"'III. GDP shares, 1310-2018'!A38","v":1342},{"$f":"_xlfn.STDEV.S('II. Headline series'!M25:M55)","v":5.710778701351802},{"$f":"_xlfn.STDEV.S('II. Headline series'!P25:P55)","v":9.724805274885222},{"$f":"_xlfn.STDEV.S('II. Headline series'!K25:K55)","v":0.7726325416706348},{"$f":"_xlfn.STDEV.S('II. Headline series'!N25:N55)","v":0.506194176217956},7.391325621625509,19.211610349894535]
[{"$f":"'III. GDP shares, 1310-2018'!A39","v":1343},{"$f":"_xlfn.STDEV.S('II. Headline series'!M26:M56)","v":5.710315730185711},{"$f":"_xlfn.STDEV.S('II. Headline series'!P26:P56)","v":9.713223692598852},{"$f":"_xlfn.STDEV.S('II. Headline series'!K26:K56)","v":0.7632423915075108},{"$f":"_xlfn.STDEV.S('II. Headline series'!N26:N56)","v":0.5163629746493853},7.481654312867811,18.81084463732941]
[{"$f":"'III. GDP shares, 1310-2018'!A40","v":1344},{"$f":"_xlfn.STDEV.S('II. Headline series'!M27:M57)","v":5.5853486519246465},{"$f":"_xlfn.STDEV.S('II. Headline series'!P27:P57)","v":9.60270214339011},{"$f":"_xlfn.STDEV.S('II. Headline series'!K27:K57)","v":0.7577156203460895},{"$f":"_xlfn.STDEV.S('II. Headline series'!N27:N57)","v":0.5143140941631547},7.371299339683029,18.670890516844104]
[{"$f":"'III. GDP shares, 1310-2018'!A41","v":1345},{"$f":"_xlfn.STDEV.S('II. Headline series'!M28:M58)","v":4.572798334325267},{"$f":"_xlfn.STDEV.S('II. Headline series'!P28:P58)","v":7.791381128916854},{"$f":"_xlfn.STDEV.S('II. Headline series'!K28:K58)","v":0.7501820079104075},{"$f":"_xlfn.STDEV.S('II. Headline series'!N28:N58)","v":0.5201393312321344},6.095585186137103,14.97941159431302]
[{"$f":"'III. GDP shares, 1310-2018'!A42","v":1346},{"$f":"_xlfn.STDEV.S('II. Headline series'!M29:M59)","v":4.6527136509014335},{"$f":"_xlfn.STDEV.S('II. Headline series'!P29:P59)","v":8.054893668882794},{"$f":"_xlfn.STDEV.S('II. Headline series'!K29:K59)","v":0.750638811965415},{"$f":"_xlfn.STDEV.S('II. Headline series'!N29:N59)","v":0.5265028187994367},6.1983387705721285,15.298861432973988]
[{"$f":"'III. GDP shares, 1310-2018'!A43","v":1347},{"$f":"_xlfn.STDEV.S('II. Headline series'!M30:M60)","v":3.9808400773802215},{"$f":"_xlfn.STDEV.S('II. Headline series'!P30:P60)","v":6.3827159533631646},{"$f":"_xlfn.STDEV.S('II. Headline series'!K30:K60)","v":0.7465065226934737},{"$f":"_xlfn.STDEV.S('II. Headline series'!N30:N60)","v":0.525453442632389},5.332625980302133,12.147062775699727]
[{"$f":"'III. GDP shares, 1310-2018'!A44","v":1348},{"$f":"_xlfn.STDEV.S('II. Headline series'!M31:M61)","v":3.940316399797582},{"$f":"_xlfn.STDEV.S('II. Headline series'!P31:P61)","v":6.075747179776884},{"$f":"_xlfn.STDEV.S('II. Headline series'!K31:K61)","v":0.7381872320011288},{"$f":"_xlfn.STDEV.S('II. Headline series'!N31:N61)","v":0.527516238192287},5.337827896475398,11.517649580982548]
[{"$f":"'III. GDP shares, 1310-2018'!A45","v":1349},{"$f":"_xlfn.STDEV.S('II. Headline series'!M32:M62)","v":3.7400346915331126},{"$f":"_xlfn.STDEV.S('II. Headline series'!P32:P62)","v":5.0570320507072735},{"$f":"_xlfn.STDEV.S('II. Headline series'!K32:K62)","v":0.7390781985453274},{"$f":"_xlfn.STDEV.S('II. Headline series'!N32:N62)","v":0.5337012665344746},5.060404567330418,9.475398257052127]
[{"$f":"'III. GDP shares, 1310-2018'!A46","v":1350},{"$f":"_xlfn.STDEV.S('II. Headline series'!M33:M63)","v":3.819007765544672},{"$f":"_xlfn.STDEV.S('II. Headline series'!P33:P63)","v":5.126041649316313},{"$f":"_xlfn.STDEV.S('II. Headline series'!K33:K63)","v":0.7435366517285714},{"$f":"_xlfn.STDEV.S('II. Headline series'!N33:N63)","v":0.5377059577937228},5.136273721902285,9.533168779362471]
[{"$f":"'III. GDP shares, 1310-2018'!A47","v":1351},{"$f":"_xlfn.STDEV.S('II. Headline series'!M34:M64)","v":5.0937018942070935},{"$f":"_xlfn.STDEV.S('II. Headline series'!P34:P64)","v":8.063558229498867},{"$f":"_xlfn.STDEV.S('II. Headline series'!K34:K64)","v":0.7451329886177047},{"$f":"_xlfn.STDEV.S('II. Headline series'!N34:N64)","v":0.5433506789691341},6.835963474998488,14.840430943782678]
[{"$f":"'III. GDP shares, 1310-2018'!A48","v":1352},{"$f":"_xlfn.STDEV.S('II. Headline series'!M35:M65)","v":5.557486960753027},{"$f":"_xlfn.STDEV.S('II. Headline series'!P35:P65)","v":9.184313435098478},{"$f":"_xlfn.STDEV.S('II. Headline series'!K35:K65)","v":0.7410377941665354},{"$f":"_xlfn.STDEV.S('II. Headline series'!N35:N65)","v":0.5380238170617463},7.499599891532764,17.070458860456803]
[{"$f":"'III. GDP shares, 1310-2018'!A49","v":1353},{"$f":"_xlfn.STDEV.S('II. Headline series'!M36:M66)","v":5.714952958856658},{"$f":"_xlfn.STDEV.S('II. Headline series'!P36:P66)","v":9.475390380011913},{"$f":"_xlfn.STDEV.S('II. Headline series'!K36:K66)","v":0.7163759239247077},{"$f":"_xlfn.STDEV.S('II. Headline series'!N36:N66)","v":0.5401090112340354},7.977589374510176,17.54347767381744]
[{"$f":"'III. GDP shares, 1310-2018'!A50","v":1354},{"$f":"_xlfn.STDEV.S('II. Headline series'!M37:M67)","v":5.736097655241357},{"$f":"_xlfn.STDEV.S('II. Headline series'!P37:P67)","v":9.51625115139307},{"$f":"_xlfn.STDEV.S('II. Headline series'!K37:K67)","v":0.6913750430178314},{"$f":"_xlfn.STDEV.S('II. Headline series'!N37:N67)","v":0.5449903974349808},8.29665130838895,17.461318944667077]
[{"$f":"'III. GDP shares, 1310-2018'!A51","v":1355},{"$f":"_xlfn.STDEV.S('II. Headline series'!M38:M68)","v":6.017075126571531},{"$f":"_xlfn.STDEV.S('II. Headline series'!P38:P68)","v":9.90102966103835},{"$f":"_xlfn.STDEV.S('II. Headline series'!K38:K68)","v":0.6066542553457476},{"$f":"_xlfn.STDEV.S('II. Headline series'!N38:N68)","v":0.5486150196254954},9.918458617161184,18.047317894791057]
[{"$f":"'III. GDP shares, 1310-2018'!A52","v":1356},{"$f":"_xlfn.STDEV.S('II. Headline series'!M39:M69)","v":6.297025344482394},{"$f":"_xlfn.STDEV.S('II. Headline series'!P39:P69)","v":10.175400514948253},{"$f":"_xlfn.STDEV.S('II. Headline series'!K39:K69)","v":0.5572164876918209},{"$f":"_xlfn.STDEV.S('II. Headline series'!N39:N69)","v":0.5633115818254483},11.30085969021987,18.06353862275332]
[{"$f":"'III. GDP shares, 1310-2018'!A53","v":1357},{"$f":"_xlfn.STDEV.S('II. Headline series'!M40:M70)","v":7.112280546993558},{"$f":"_xlfn.STDEV.S('II. Headline series'!P40:P70)","v":12.022478229565019},{"$f":"_xlfn.STDEV.S('II. Headline series'!K40:K70)","v":0.5214806492601183},{"$f":"_xlfn.STDEV.S('II. Headline series'!N40:N70)","v":0.5705540376838611},13.63862792815904,21.071585573856837]
[{"$f":"'III. GDP shares, 1310-2018'!A54","v":1358},{"$f":"_xlfn.STDEV.S('II. Headline series'!M41:M71)","v":7.055318850906576},{"$f":"_xlfn.STDEV.S('II. Headline series'!P41:P71)","v":12.07747276886607},{"$f":"_xlfn.STDEV.S('II. Headline series'!K41:K71)","v":0.575043729931402},{"$f":"_xlfn.STDEV.S('II. Headline series'!N41:N71)","v":0.570702124447282},12.269186643854404,21.162480831069193]
[{"$f":"'III. GDP shares, 1310-2018'!A55","v":1359},{"$f":"_xlfn.STDEV.S('II. Headline series'!M42:M72)","v":9.32578525037336},{"$f":"_xlfn.STDEV.S('II. Headline series'!P42:P72)","v":17.908769425569222},{"$f":"_xlfn.STDEV.S('II. Headline series'!K42:K72)","v":0.596694105655634},{"$f":"_xlfn.STDEV.S('II. Headline series'!N42:N72)","v":0.5922612340276282},15.629088945208194,30.237956490553966]
[{"$f":"'III. GDP shares, 1310-2018'!A56","v":1360},{"$f":"_xlfn.STDEV.S('II. Headline series'!M43:M73)","v":9.881689415521915},{"$f":"_xlfn.STDEV.S('II. Headline series'!P43:P73)","v":18.785459445168783},{"$f":"_xlfn.STDEV.S('II. Headline series'!K43:K73)","v":0.5950647187140717},{"$f":"_xlfn.STDEV.S('II. Headline series'!N43:N73)","v":0.5688589443186608},16.60607511209224,33.023053663450234]
[{"$f":"'III. GDP shares, 1310-2018'!A57","v":1361},{"$f":"_xlfn.STDEV.S('II. Headline series'!M44:M74)","v":10.996433275655914},{"$f":"_xlfn.STDEV.S('II. Headline series'!P44:P74)","v":20.787640399397898},{"$f":"_xlfn.STDEV.S('II. Headline series'!K44:K74)","v":0.5902931048736754},{"$f":"_xlfn.STDEV.S('II. Headline series'!N44:N74)","v":0.5724735305076649},18.62876795419995,36.31196778821125]
[{"$f":"'III. GDP shares, 1310-2018'!A58","v":1362},{"$f":"_xlfn.STDEV.S('II. Headline series'!M45:M75)","v":11.269912046192115},{"$f":"_xlfn.STDEV.S('II. Headline series'!P45:P75)","v":20.98420658116706},{"$f":"_xlfn.STDEV.S('II. Headline series'!K45:K75)","v":0.7744711561737815},{"$f":"_xlfn.STDEV.S('II. Headline series'!N45:N75)","v":0.6831009188851784},14.55175180683332,30.719043117982206]
[{"$f":"'III. GDP shares, 1310-2018'!A59","v":1363},{"$f":"_xlfn.STDEV.S('II. Headline series'!M46:M76)","v":11.20904609493435},{"$f":"_xlfn.STDEV.S('II. Headline series'!P46:P76)","v":20.938247718059376},{"$f":"_xlfn.STDEV.S('II. Headline series'!K46:K76)","v":0.9576457637209473},{"$f":"_xlfn.STDEV.S('II. Headline series'!N46:N76)","v":0.8754903755510015},11.704793692587778,23.91602272598555]
[{"$f":"'III. GDP shares, 1310-2018'!A60","v":1364},{"$f":"_xlfn.STDEV.S('II. Headline series'!M47:M77)","v":11.410920578472652},{"$f":"_xlfn.STDEV.S('II. Headline series'!P47:P77)","v":21.163342330248803},{"$f":"_xlfn.STDEV.S('II. Headline series'!K47:K77)","v":1.1917931361147576},{"$f":"_xlfn.STDEV.S('II. Headline series'!N47:N77)","v":1.15344986237241},9.57458155504421,18.34786497500649]
[{"$f":"'III. GDP shares, 1310-2018'!A61","v":1365},{"$f":"_xlfn.STDEV.S('II. Headline series'!M48:M78)","v":11.45335501166434},{"$f":"_xlfn.STDEV.S('II. Headline series'!P48:P78)","v":21.215910345711592},{"$f":"_xlfn.STDEV.S('II. Headline series'!K48:K78)","v":1.3678031122031475},{"$f":"_xlfn.STDEV.S('II. Headline series'!N48:N78)","v":1.4508286087300817},8.37354068687283,14.62330575648215]
[{"$f":"'III. GDP shares, 1310-2018'!A62","v":1366},{"$f":"_xlfn.STDEV.S('II. Headline series'!M49:M79)","v":11.707170412854866},{"$f":"_xlfn.STDEV.S('II. Headline series'!P49:P79)","v":21.965087385218204},{"$f":"_xlfn.STDEV.S('II. Headline series'!K49:K79)","v":1.544269204110417},{"$f":"_xlfn.STDEV.S('II. Headline series'!N49:N79)","v":1.703993758934473},7.581042464418523,12.890356710551117]
[{"$f":"'III. GDP shares, 1310-2018'!A63","v":1367},{"$f":"_xlfn.STDEV.S('II. Headline series'!M50:M80)","v":11.668117992874095},{"$f":"_xlfn.STDEV.S('II. Headline series'!P50:P80)","v":21.923757804065072},{"$f":"_xlfn.STDEV.S('II. Headline series'!K50:K80)","v":1.561079920283972},{"$f":"_xlfn.STDEV.S('II. Headline series'!N50:N80)","v":1.6801752365185507},7.474388621148607,13.048494780516315]
[{"$f":"'III. GDP shares, 1310-2018'!A64","v":1368},{"$f":"_xlfn.STDEV.S('II. Headline series'!M51:M81)","v":11.692951549797769},{"$f":"_xlfn.STDEV.S('II. Headline series'!P51:P81)","v":22.03616772797215},{"$f":"_xlfn.STDEV.S('II. Headline series'!K51:K81)","v":1.5811907681208954},{"$f":"_xlfn.STDEV.S('II. Headline series'!N51:N81)","v":1.6906900001326428},7.395028977872038,13.033830995772913]
[{"$f":"'III. GDP shares, 1310-2018'!A65","v":1369},{"$f":"_xlfn.STDEV.S('II. Headline series'!M52:M82)","v":11.679268386892934},{"$f":"_xlfn.STDEV.S('II. Headline series'!P52:P82)","v":21.959969465934854},{"$f":"_xlfn.STDEV.S('II. Headline series'!K52:K82)","v":1.5910104801461995},{"$f":"_xlfn.STDEV.S('II. Headline series'!N52:N82)","v":1.6997812958027125},7.3407865835174855,12.919291158315975]
[{"$f":"'III. GDP shares, 1310-2018'!A66","v":1370},{"$f":"_xlfn.STDEV.S('II. Headline series'!M53:M83)","v":11.681887800474298},{"$f":"_xlfn.STDEV.S('II. Headline series'!P53:P83)","v":21.9565778843583},{"$f":"_xlfn.STDEV.S('II. Headline series'!K53:K83)","v":1.605152378512111},{"$f":"_xlfn.STDEV.S('II. Headline series'!N53:N83)","v":1.7200545126593219},7.277743818504493,12.76504769050135]
[{"$f":"'III. GDP shares, 1310-2018'!A67","v":1371},{"$f":"_xlfn.STDEV.S('II. Headline series'!M54:M84)","v":11.687092588795888},{"$f":"_xlfn.STDEV.S('II. Headline series'!P54:P84)","v":21.94495320414952},{"$f":"_xlfn.STDEV.S('II. Headline series'!K54:K84)","v":1.6108568735850912},{"$f":"_xlfn.STDEV.S('II. Headline series'!N54:N84)","v":1.7317429956167656},7.255202358720627,12.67217667961969]
[{"$f":"'III. GDP shares, 1310-2018'!A68","v":1372},{"$f":"_xlfn.STDEV.S('II. Headline series'!M55:M85)","v":11.955240702483009},{"$f":"_xlfn.STDEV.S('II. Headline series'!P55:P85)","v":22.68143898577168},{"$f":"_xlfn.STDEV.S('II. Headline series'!K55:K85)","v":1.6764092703951523},{"$f":"_xlfn.STDEV.S('II. Headline series'!N55:N85)","v":1.7293161756483364},7.131457045489253,13.115842727411142]
[{"$f":"'III. GDP shares, 1310-2018'!A69","v":1373},{"$f":"_xlfn.STDEV.S('II. Headline series'!M56:M86)","v":12.076603711871277},{"$f":"_xlfn.STDEV.S('II. Headline series'!P56:P86)","v":23.24365032469289},{"$f":"_xlfn.STDEV.S('II. Headline series'!K56:K86)","v":1.7290102054329486},{"$f":"_xlfn.STDEV.S('II. Headline series'!N56:N86)","v":1.7253224201586836},6.984691978059935,13.472061832103877]
[{"$f":"'III. GDP shares, 1310-2018'!A70","v":1374},{"$f":"_xlfn.STDEV.S('II. Headline series'!M57:M87)","v":12.244823677984472},{"$f":"_xlfn.STDEV.S('II. Headline series'!P57:P87)","v":24.322543513900793},{"$f":"_xlfn.STDEV.S('II. Headline series'!K57:K87)","v":1.7511563888464319},{"$f":"_xlfn.STDEV.S('II. Headline series'!N57:N87)","v":1.7212045047185522},6.99242155410843,14.131117741803706]
[{"$f":"'III. GDP shares, 1310-2018'!A71","v":1375},{"$f":"_xlfn.STDEV.S('II. Headline series'!M58:M88)","v":12.307825683143536},{"$f":"_xlfn.STDEV.S('II. Headline series'!P58:P88)","v":24.65440315988368},{"$f":"_xlfn.STDEV.S('II. Headline series'!K58:K88)","v":1.7479445190968292},{"$f":"_xlfn.STDEV.S('II. Headline series'!N58:N88)","v":1.7108532417758124},7.041313696560028,14.41058914807513]
[{"$f":"'III. GDP shares, 1310-2018'!A72","v":1376},{"$f":"_xlfn.STDEV.S('II. Headline series'!M59:M89)","v":12.28385253488633},{"$f":"_xlfn.STDEV.S('II. Headline series'!P59:P89)","v":24.657891112961938},{"$f":"_xlfn.STDEV.S('II. Headline series'!K59:K89)","v":1.7124464392891914},{"$f":"_xlfn.STDEV.S('II. Headline series'!N59:N89)","v":1.7005716574390186},7.173276928874434,14.499766008152557]
[{"$f":"'III. GDP shares, 1310-2018'!A73","v":1377},{"$f":"_xlfn.STDEV.S('II. Headline series'!M60:M90)","v":12.325803322936242},{"$f":"_xlfn.STDEV.S('II. Headline series'!P60:P90)","v":24.698982478045675},{"$f":"_xlfn.STDEV.S('II. Headline series'!K60:K90)","v":1.683815243802485},{"$f":"_xlfn.STDEV.S('II. Headline series'!N60:N90)","v":1.689299766158208},7.320163758050693,14.620840523891092]
[{"$f":"'III. GDP shares, 1310-2018'!A74","v":1378},{"$f":"_xlfn.STDEV.S('II. Headline series'!M61:M91)","v":12.376540209289766},{"$f":"_xlfn.STDEV.S('II. Headline series'!P61:P91)","v":24.77946255908599},{"$f":"_xlfn.STDEV.S('II. Headline series'!K61:K91)","v":1.637248944961269},{"$f":"_xlfn.STDEV.S('II. Headline series'!N61:N91)","v":1.6641286537327635},7.5593514641614545,14.890352680067027]
[{"$f":"'III. GDP shares, 1310-2018'!A75","v":1379},{"$f":"_xlfn.STDEV.S('II. Headline series'!M62:M92)","v":12.395498956823111},{"$f":"_xlfn.STDEV.S('II. Headline series'!P62:P92)","v":25.267686242652484},{"$f":"_xlfn.STDEV.S('II. Headline series'!K62:K92)","v":1.5896672934636717},{"$f":"_xlfn.STDEV.S('II. Headline series'!N62:N92)","v":1.6438327572350326},7.797542924730484,15.37120253349456]
[{"$f":"'III. GDP shares, 1310-2018'!A76","v":1380},{"$f":"_xlfn.STDEV.S('II. Headline series'!M63:M93)","v":12.407306424850093},{"$f":"_xlfn.STDEV.S('II. Headline series'!P63:P93)","v":25.72578003859297},{"$f":"_xlfn.STDEV.S('II. Headline series'!K63:K93)","v":1.5452662384646734},{"$f":"_xlfn.STDEV.S('II. Headline series'!N63:N93)","v":1.6597503354295207},8.029235426238,15.499789028170607]
[{"$f":"'III. GDP shares, 1310-2018'!A77","v":1381},{"$f":"_xlfn.STDEV.S('II. Headline series'!M64:M94)","v":12.399513222810178},{"$f":"_xlfn.STDEV.S('II. Headline series'!P64:P94)","v":25.70881122977145},{"$f":"_xlfn.STDEV.S('II. Headline series'!K64:K94)","v":1.478300882375714},{"$f":"_xlfn.STDEV.S('II. Headline series'!N64:N94)","v":1.6782292858166306},8.387678970253642,15.319010010757545]
[{"$f":"'III. GDP shares, 1310-2018'!A78","v":1382},{"$f":"_xlfn.STDEV.S('II. Headline series'!M65:M95)","v":12.089154607349407},{"$f":"_xlfn.STDEV.S('II. Headline series'!P65:P95)","v":25.33687471482334},{"$f":"_xlfn.STDEV.S('II. Headline series'!K65:K95)","v":1.40838646338305},{"$f":"_xlfn.STDEV.S('II. Headline series'!N65:N95)","v":1.6576447236266638},8.583691281944269,15.284864334132031]
[{"$f":"'III. GDP shares, 1310-2018'!A79","v":1383},{"$f":"_xlfn.STDEV.S('II. Headline series'!M66:M96)","v":11.900210722524513},{"$f":"_xlfn.STDEV.S('II. Headline series'!P66:P96)","v":25.135772950587626},{"$f":"_xlfn.STDEV.S('II. Headline series'!K66:K96)","v":1.3087236958141952},{"$f":"_xlfn.STDEV.S('II. Headline series'!N66:N96)","v":1.6413042323233307},9.092989422126298,15.314511749602296]
[{"$f":"'III. GDP shares, 1310-2018'!A80","v":1384},{"$f":"_xlfn.STDEV.S('II. Headline series'!M67:M97)","v":11.785633087759054},{"$f":"_xlfn.STDEV.S('II. Headline series'!P67:P97)","v":25.044806706384524},{"$f":"_xlfn.STDEV.S('II. Headline series'!K67:K97)","v":1.2279474752852138},{"$f":"_xlfn.STDEV.S('II. Headline series'!N67:N97)","v":1.6613290593523338},9.59783160515202,15.075163204662294]
[{"$f":"'III. GDP shares, 1310-2018'!A81","v":1385},{"$f":"_xlfn.STDEV.S('II. Headline series'!M68:M98)","v":11.899725303841176},{"$f":"_xlfn.STDEV.S('II. Headline series'!P68:P98)","v":25.46891773207239},{"$f":"_xlfn.STDEV.S('II. Headline series'!K68:K98)","v":1.1545827141745864},{"$f":"_xlfn.STDEV.S('II. Headline series'!N68:N98)","v":1.688930857510077},10.306516075245693,15.079905502834022]
[{"$f":"'III. GDP shares, 1310-2018'!A82","v":1386},{"$f":"_xlfn.STDEV.S('II. Headline series'!M69:M99)","v":11.665001606434759},{"$f":"_xlfn.STDEV.S('II. Headline series'!P69:P99)","v":25.57948865934488},{"$f":"_xlfn.STDEV.S('II. Headline series'!K69:K99)","v":1.0684188524640208},{"$f":"_xlfn.STDEV.S('II. Headline series'!N69:N99)","v":1.7209669902000566},10.918004282246208,14.86343945293881]
[{"$f":"'III. GDP shares, 1310-2018'!A83","v":1387},{"$f":"_xlfn.STDEV.S('II. Headline series'!M70:M100)","v":11.575553545836677},{"$f":"_xlfn.STDEV.S('II. Headline series'!P70:P100)","v":25.488426926204376},{"$f":"_xlfn.STDEV.S('II. Headline series'!K70:K100)","v":1.0164013620597483},{"$f":"_xlfn.STDEV.S('II. Headline series'!N70:N100)","v":1.7591506002593307},11.388762331426527,14.489053366122787]
[{"$f":"'III. GDP shares, 1310-2018'!A84","v":1388},{"$f":"_xlfn.STDEV.S('II. Headline series'!M71:M101)","v":11.12865001213614},{"$f":"_xlfn.STDEV.S('II. Headline series'!P71:P101)","v":24.731411867616778},{"$f":"_xlfn.STDEV.S('II. Headline series'!K71:K101)","v":1.0005849351392044},{"$f":"_xlfn.STDEV.S('II. Headline series'!N71:N101)","v":1.793827962877119},11.122144279123978,13.786947455067034]
[{"$f":"'III. GDP shares, 1310-2018'!A85","v":1389},{"$f":"_xlfn.STDEV.S('II. Headline series'!M72:M102)","v":11.131754075597037},{"$f":"_xlfn.STDEV.S('II. Headline series'!P72:P102)","v":24.689251605457017},{"$f":"_xlfn.STDEV.S('II. Headline series'!K72:K102)","v":0.9824482962138934},{"$f":"_xlfn.STDEV.S('II. Headline series'!N72:N102)","v":1.7946356593137203},11.330625864481616,13.757250101058585]
[{"$f":"'III. GDP shares, 1310-2018'!A86","v":1390},{"$f":"_xlfn.STDEV.S('II. Headline series'!M73:M103)","v":9.00648726249796},{"$f":"_xlfn.STDEV.S('II. Headline series'!P73:P103)","v":21.016400264328357},{"$f":"_xlfn.STDEV.S('II. Headline series'!K73:K103)","v":0.9465602772311467},{"$f":"_xlfn.STDEV.S('II. Headline series'!N73:N103)","v":1.7938719525531048},9.514964317796538,11.715663559161534]
[{"$f":"'III. GDP shares, 1310-2018'!A87","v":1391},{"$f":"_xlfn.STDEV.S('II. Headline series'!M74:M104)","v":8.05186515106122},{"$f":"_xlfn.STDEV.S('II. Headline series'!P74:P104)","v":20.054348059203242},{"$f":"_xlfn.STDEV.S('II. Headline series'!K74:K104)","v":0.8528486399770021},{"$f":"_xlfn.STDEV.S('II. Headline series'!N74:N104)","v":1.7766700540201823},9.441142042834642,11.287604028573012]
[{"$f":"'III. GDP shares, 1310-2018'!A88","v":1392},{"$f":"_xlfn.STDEV.S('II. Headline series'!M75:M105)","v":6.948887367124799},{"$f":"_xlfn.STDEV.S('II. Headline series'!P75:P105)","v":18.30574262144082},{"$f":"_xlfn.STDEV.S('II. Headline series'!K75:K105)","v":0.7763540866576362},{"$f":"_xlfn.STDEV.S('II. Headline series'!N75:N105)","v":1.7767399161422284},8.950667596845129,10.30299508393295]
[{"$f":"'III. GDP shares, 1310-2018'!A89","v":1393},{"$f":"_xlfn.STDEV.S('II. Headline series'!M76:M106)","v":6.8912523656472215},{"$f":"_xlfn.STDEV.S('II. Headline series'!P76:P106)","v":18.67024574973023},{"$f":"_xlfn.STDEV.S('II. Headline series'!K76:K106)","v":0.7821148825116393},{"$f":"_xlfn.STDEV.S('II. Headline series'!N76:N106)","v":1.7882066324065864},8.811048759891955,10.440765296012591]
[{"$f":"'III. GDP shares, 1310-2018'!A90","v":1394},{"$f":"_xlfn.STDEV.S('II. Headline series'!M77:M107)","v":6.886970249809963},{"$f":"_xlfn.STDEV.S('II. Headline series'!P77:P107)","v":18.67193938146559},{"$f":"_xlfn.STDEV.S('II. Headline series'!K77:K107)","v":0.7723032401882506},{"$f":"_xlfn.STDEV.S('II. Headline series'!N77:N107)","v":1.7661165608310865},{"$f":"B88/D88","v":8.917443164075356},{"$f":"C88/E88","v":10.572314305619264}]
[{"$f":"'III. GDP shares, 1310-2018'!A91","v":1395},{"$f":"_xlfn.STDEV.S('II. Headline series'!M78:M108)","v":6.713757058603403},{"$f":"_xlfn.STDEV.S('II. Headline series'!P78:P108)","v":18.572001271221005},{"$f":"_xlfn.STDEV.S('II. Headline series'!K78:K108)","v":0.711348204047535},{"$f":"_xlfn.STDEV.S('II. Headline series'!N78:N108)","v":1.6643195602724266},9.438074097049052,11.158915459829734]
[{"$f":"'III. GDP shares, 1310-2018'!A92","v":1396},{"$f":"_xlfn.STDEV.S('II. Headline series'!M79:M109)","v":6.657104693870727},{"$f":"_xlfn.STDEV.S('II. Headline series'!P79:P109)","v":18.45408084286473},{"$f":"_xlfn.STDEV.S('II. Headline series'!K79:K109)","v":0.6459913056824367},{"$f":"_xlfn.STDEV.S('II. Headline series'!N79:N109)","v":1.448325286467941},10.305254320471144,12.741668612214218]
[{"$f":"'III. GDP shares, 1310-2018'!A93","v":1397},{"$f":"_xlfn.STDEV.S('II. Headline series'!M80:M110)","v":6.099818947646231},{"$f":"_xlfn.STDEV.S('II. Headline series'!P80:P110)","v":17.957948451208438},{"$f":"_xlfn.STDEV.S('II. Headline series'!K80:K110)","v":0.5180328650674484},{"$f":"_xlfn.STDEV.S('II. Headline series'!N80:N110)","v":1.1361599304592165},11.774965178805843,15.805828008694288]
[{"$f":"'III. GDP shares, 1310-2018'!A94","v":1398},{"$f":"_xlfn.STDEV.S('II. Headline series'!M81:M111)","v":6.240204854920744},{"$f":"_xlfn.STDEV.S('II. Headline series'!P81:P111)","v":18.46488887795199},{"$f":"_xlfn.STDEV.S('II. Headline series'!K81:K111)","v":0.5194478225415466},{"$f":"_xlfn.STDEV.S('II. Headline series'!N81:N111)","v":1.112267127761144},12.013150472724599,16.601127927892218]
[{"$f":"'III. GDP shares, 1310-2018'!A95","v":1399},{"$f":"_xlfn.STDEV.S('II. Headline series'!M82:M112)","v":6.2923506808371545},{"$f":"_xlfn.STDEV.S('II. Headline series'!P82:P112)","v":18.84314392969385},{"$f":"_xlfn.STDEV.S('II. Headline series'!K82:K112)","v":0.523818766867968},{"$f":"_xlfn.STDEV.S('II. Headline series'!N82:N112)","v":1.0683373157383005},12.012457511708783,17.63782248556191]
[{"$f":"'III. GDP shares, 1310-2018'!A96","v":1400},{"$f":"_xlfn.STDEV.S('II. Headline series'!M83:M113)","v":6.3090404735025345},{"$f":"_xlfn.STDEV.S('II. Headline series'!P83:P113)","v":18.894644870850012},{"$f":"_xlfn.STDEV.S('II. Headline series'!K83:K113)","v":0.5301301327600337},{"$f":"_xlfn.STDEV.S('II. Headline series'!N83:N113)","v":1.0126416610042805},11.900927873417745,18.658767062883207]
[{"$f":"'III. GDP shares, 1310-2018'!A97","v":1401},{"$f":"_xlfn.STDEV.S('II. Headline series'!M84:M114)","v":6.649918361031954},{"$f":"_xlfn.STDEV.S('II. Headline series'!P84:P114)","v":19.736145116372164},{"$f":"_xlfn.STDEV.S('II. Headline series'!K84:K114)","v":0.5397343098694322},{"$f":"_xlfn.STDEV.S('II. Headline series'!N84:N114)","v":0.9265761965477151},12.320725659705873,21.300077845627918]
[{"$f":"'III. GDP shares, 1310-2018'!A98","v":1402},{"$f":"_xlfn.STDEV.S('II. Headline series'!M85:M115)","v":6.6189690236549295},{"$f":"_xlfn.STDEV.S('II. Headline series'!P85:P115)","v":19.828667801260515},{"$f":"_xlfn.STDEV.S('II. Headline series'!K85:K115)","v":0.541234851419491},{"$f":"_xlfn.STDEV.S('II. Headline series'!N85:N115)","v":0.8533531551251821},12.229384353752216,23.23618033421551]
[{"$f":"'III. GDP shares, 1310-2018'!A99","v":1403},{"$f":"_xlfn.STDEV.S('II. Headline series'!M86:M116)","v":6.330846787828808},{"$f":"_xlfn.STDEV.S('II. Headline series'!P86:P116)","v":19.200396071298933},{"$f":"_xlfn.STDEV.S('II. Headline series'!K86:K116)","v":0.5316992981109431},{"$f":"_xlfn.STDEV.S('II. Headline series'!N86:N116)","v":0.7991697322442544},11.90681802725989,24.025429513427337]
[{"$f":"'III. GDP shares, 1310-2018'!A100","v":1404},{"$f":"_xlfn.STDEV.S('II. Headline series'!M87:M117)","v":6.106008297600363},{"$f":"_xlfn.STDEV.S('II. Headline series'!P87:P117)","v":18.80817496119511},{"$f":"_xlfn.STDEV.S('II. Headline series'!K87:K117)","v":0.508558387248404},{"$f":"_xlfn.STDEV.S('II. Headline series'!N87:N117)","v":0.7849168053709284},12.006503974179665,23.96199805189153]
[{"$f":"'III. GDP shares, 1310-2018'!A101","v":1405},{"$f":"_xlfn.STDEV.S('II. Headline series'!M88:M118)","v":6.111691007221299},{"$f":"_xlfn.STDEV.S('II. Headline series'!P88:P118)","v":18.666703924420748},{"$f":"_xlfn.STDEV.S('II. Headline series'!K88:K118)","v":0.54792652872912},{"$f":"_xlfn.STDEV.S('II. Headline series'!N88:N118)","v":0.7597736462661104},11.154216280414401,24.568769943729716]
[{"$f":"'III. GDP shares, 1310-2018'!A102","v":1406},{"$f":"_xlfn.STDEV.S('II. Headline series'!M89:M119)","v":6.044067864624362},{"$f":"_xlfn.STDEV.S('II. Headline series'!P89:P119)","v":18.544154419062522},{"$f":"_xlfn.STDEV.S('II. Headline series'!K89:K119)","v":0.5841074902189967},{"$f":"_xlfn.STDEV.S('II. Headline series'!N89:N119)","v":0.7216218661029635},10.347526723819769,25.697883185286653]
[{"$f":"'III. GDP shares, 1310-2018'!A103","v":1407},{"$f":"_xlfn.STDEV.S('II. Headline series'!M90:M120)","v":6.255030954635924},{"$f":"_xlfn.STDEV.S('II. Headline series'!P90:P120)","v":19.47898860829009},{"$f":"_xlfn.STDEV.S('II. Headline series'!K90:K120)","v":0.6823122121946388},{"$f":"_xlfn.STDEV.S('II. Headline series'!N90:N120)","v":0.6920239751583114},9.16740290272218,28.14785225300029]
[{"$f":"'III. GDP shares, 1310-2018'!A104","v":1408},{"$f":"_xlfn.STDEV.S('II. Headline series'!M91:M121)","v":6.215614361133226},{"$f":"_xlfn.STDEV.S('II. Headline series'!P91:P121)","v":19.4385591691625},{"$f":"_xlfn.STDEV.S('II. Headline series'!K91:K121)","v":0.7417643902067892},{"$f":"_xlfn.STDEV.S('II. Headline series'!N91:N121)","v":0.6855079919355194},8.379499532729572,28.35642968111587]
[{"$f":"'III. GDP shares, 1310-2018'!A105","v":1409},{"$f":"_xlfn.STDEV.S('II. Headline series'!M92:M122)","v":6.212260250481794},{"$f":"_xlfn.STDEV.S('II. Headline series'!P92:P122)","v":19.803970585455534},{"$f":"_xlfn.STDEV.S('II. Headline series'!K92:K122)","v":0.8032686291764782},{"$f":"_xlfn.STDEV.S('II. Headline series'!N92:N122)","v":0.6533554759073513},7.733726956137558,30.311172578683376]
[{"$f":"'III. GDP shares, 1310-2018'!A106","v":1410},{"$f":"_xlfn.STDEV.S('II. Headline series'!M93:M123)","v":6.208539928160598},{"$f":"_xlfn.STDEV.S('II. Headline series'!P93:P123)","v":19.239006441566197},{"$f":"_xlfn.STDEV.S('II. Headline series'!K93:K123)","v":0.8123902521044848},{"$f":"_xlfn.STDEV.S('II. Headline series'!N93:N123)","v":0.6547952993240863},7.642312191803716,29.381711294240656]
[{"$f":"'III. GDP shares, 1310-2018'!A107","v":1411},{"$f":"_xlfn.STDEV.S('II. Headline series'!M94:M124)","v":6.145218725369213},{"$f":"_xlfn.STDEV.S('II. Headline series'!P94:P124)","v":18.70974792863541},{"$f":"_xlfn.STDEV.S('II. Headline series'!K94:K124)","v":0.8170774486902002},{"$f":"_xlfn.STDEV.S('II. Headline series'!N94:N124)","v":0.6526965885988764},7.520974584747363,28.665306752711928]
[{"$f":"'III. GDP shares, 1310-2018'!A108","v":1412},{"$f":"_xlfn.STDEV.S('II. Headline series'!M95:M125)","v":6.151613084873811},{"$f":"_xlfn.STDEV.S('II. Headline series'!P95:P125)","v":18.7480811677181},{"$f":"_xlfn.STDEV.S('II. Headline series'!K95:K125)","v":0.8510306820497854},{"$f":"_xlfn.STDEV.S('II. Headline series'!N95:N125)","v":0.6486115760164356},7.2284269117737185,28.904943823023952]
[{"$f":"'III. GDP shares, 1310-2018'!A109","v":1413},{"$f":"_xlfn.STDEV.S('II. Headline series'!M96:M126)","v":5.9145090168575285},{"$f":"_xlfn.STDEV.S('II. Headline series'!P96:P126)","v":18.381555592823855},{"$f":"_xlfn.STDEV.S('II. Headline series'!K96:K126)","v":0.8631635958477683},{"$f":"_xlfn.STDEV.S('II. Headline series'!N96:N126)","v":0.6477090845321124},6.852129822561053,28.379338860288172]
[{"$f":"'III. GDP shares, 1310-2018'!A110","v":1414},{"$f":"_xlfn.STDEV.S('II. Headline series'!M97:M127)","v":5.925043233878342},{"$f":"_xlfn.STDEV.S('II. Headline series'!P97:P127)","v":18.245597866976038},{"$f":"_xlfn.STDEV.S('II. Headline series'!K97:K127)","v":0.8907056338262187},{"$f":"_xlfn.STDEV.S('II. Headline series'!N97:N127)","v":0.6478381787652575},6.652077868224587,28.163820017139315]
[{"$f":"'III. GDP shares, 1310-2018'!A111","v":1415},{"$f":"_xlfn.STDEV.S('II. Headline series'!M98:M128)","v":6.091338987410847},{"$f":"_xlfn.STDEV.S('II. Headline series'!P98:P128)","v":18.46882433666125},{"$f":"_xlfn.STDEV.S('II. Headline series'!K98:K128)","v":0.9075990833690435},{"$f":"_xlfn.STDEV.S('II. Headline series'!N98:N128)","v":0.6781727515546887},6.711486491149326,27.23321497999157]
[{"$f":"'III. GDP shares, 1310-2018'!A112","v":1416},{"$f":"_xlfn.STDEV.S('II. Headline series'!M99:M129)","v":6.351483586700424},{"$f":"_xlfn.STDEV.S('II. Headline series'!P99:P129)","v":19.992615963760443},{"$f":"_xlfn.STDEV.S('II. Headline series'!K99:K129)","v":0.9133505551912232},{"$f":"_xlfn.STDEV.S('II. Headline series'!N99:N129)","v":0.8027984794297529},6.954047983657982,24.903654498650372]
[{"$f":"'III. GDP shares, 1310-2018'!A113","v":1417},{"$f":"_xlfn.STDEV.S('II. Headline series'!M100:M130)","v":6.347123251242663},{"$f":"_xlfn.STDEV.S('II. Headline series'!P100:P130)","v":19.74774007268929},{"$f":"_xlfn.STDEV.S('II. Headline series'!K100:K130)","v":0.8942695703035767},{"$f":"_xlfn.STDEV.S('II. Headline series'!N100:N130)","v":0.9267407985569878},7.097550293574243,21.30880619849494]
[{"$f":"'III. GDP shares, 1310-2018'!A114","v":1418},{"$f":"_xlfn.STDEV.S('II. Headline series'!M101:M131)","v":6.459979998739205},{"$f":"_xlfn.STDEV.S('II. Headline series'!P101:P131)","v":20.94343523871841},{"$f":"_xlfn.STDEV.S('II. Headline series'!K101:K131)","v":0.8941639292193377},{"$f":"_xlfn.STDEV.S('II. Headline series'!N101:N131)","v":1.0074717514324034},7.2246036634235296,20.788111635826464]
[{"$f":"'III. GDP shares, 1310-2018'!A115","v":1419},{"$f":"_xlfn.STDEV.S('II. Headline series'!M102:M132)","v":6.9114307579421},{"$f":"_xlfn.STDEV.S('II. Headline series'!P102:P132)","v":20.905622220012518},{"$f":"_xlfn.STDEV.S('II. Headline series'!K102:K132)","v":0.8910052106486879},{"$f":"_xlfn.STDEV.S('II. Headline series'!N102:N132)","v":1.1026116985112195},7.756891514596529,18.960094699013204]
[{"$f":"'III. GDP shares, 1310-2018'!A116","v":1420},{"$f":"_xlfn.STDEV.S('II. Headline series'!M103:M133)","v":6.896089754007527},{"$f":"_xlfn.STDEV.S('II. Headline series'!P103:P133)","v":20.9469261480146},{"$f":"_xlfn.STDEV.S('II. Headline series'!K103:K133)","v":0.8620598800173634},{"$f":"_xlfn.STDEV.S('II. Headline series'!N103:N133)","v":1.2459923024848278},7.999548423328351,16.811441054845254]
[{"$f":"'III. GDP shares, 1310-2018'!A117","v":1421},{"$f":"_xlfn.STDEV.S('II. Headline series'!M104:M134)","v":7.241376281997122},{"$f":"_xlfn.STDEV.S('II. Headline series'!P104:P134)","v":21.273038085587594},{"$f":"_xlfn.STDEV.S('II. Headline series'!K104:K134)","v":0.8193321566237208},{"$f":"_xlfn.STDEV.S('II. Headline series'!N104:N134)","v":1.4034679636156013},8.83814485182318,15.1574803537262]
[{"$f":"'III. GDP shares, 1310-2018'!A118","v":1422},{"$f":"_xlfn.STDEV.S('II. Headline series'!M105:M135)","v":7.324331006353836},{"$f":"_xlfn.STDEV.S('II. Headline series'!P105:P135)","v":21.815880648186603},{"$f":"_xlfn.STDEV.S('II. Headline series'!K105:K135)","v":0.799051907202079},{"$f":"_xlfn.STDEV.S('II. Headline series'!N105:N135)","v":1.5284514621306882},9.166276859284842,14.273191650963442]
[{"$f":"'III. GDP shares, 1310-2018'!A119","v":1423},{"$f":"_xlfn.STDEV.S('II. Headline series'!M106:M136)","v":7.284520515368942},{"$f":"_xlfn.STDEV.S('II. Headline series'!P106:P136)","v":21.928346871654657},{"$f":"_xlfn.STDEV.S('II. Headline series'!K106:K136)","v":0.756421630578369},{"$f":"_xlfn.STDEV.S('II. Headline series'!N106:N136)","v":1.6643375109884295},9.630238243979235,13.175420686535919]
[{"$f":"'III. GDP shares, 1310-2018'!A120","v":1424},{"$f":"_xlfn.STDEV.S('II. Headline series'!M107:M137)","v":7.146221027838318},{"$f":"_xlfn.STDEV.S('II. Headline series'!P107:P137)","v":21.90588521689544},{"$f":"_xlfn.STDEV.S('II. Headline series'!K107:K137)","v":0.770390200969554},{"$f":"_xlfn.STDEV.S('II. Headline series'!N107:N137)","v":2.1547931987262716},9.276105821237904,10.166119528242579]
[{"$f":"'III. GDP shares, 1310-2018'!A121","v":1425},{"$f":"_xlfn.STDEV.S('II. Headline series'!M108:M138)","v":7.358100229532456},{"$f":"_xlfn.STDEV.S('II. Headline series'!P108:P138)","v":21.899365851193522},{"$f":"_xlfn.STDEV.S('II. Headline series'!K108:K138)","v":0.7859798743536521},{"$f":"_xlfn.STDEV.S('II. Headline series'!N108:N138)","v":2.6744901408240263},9.361690381173391,8.18823951411023]
[{"$f":"'III. GDP shares, 1310-2018'!A122","v":1426},{"$f":"_xlfn.STDEV.S('II. Headline series'!M109:M139)","v":7.261257589179757},{"$f":"_xlfn.STDEV.S('II. Headline series'!P109:P139)","v":21.74551550856286},{"$f":"_xlfn.STDEV.S('II. Headline series'!K109:K139)","v":0.8046774447970388},{"$f":"_xlfn.STDEV.S('II. Headline series'!N109:N139)","v":3.1244866257092943},9.02381151122142,6.9597083020403]
[{"$f":"'III. GDP shares, 1310-2018'!A123","v":1427},{"$f":"_xlfn.STDEV.S('II. Headline series'!M110:M140)","v":7.269088340511152},{"$f":"_xlfn.STDEV.S('II. Headline series'!P110:P140)","v":21.73224695269543},{"$f":"_xlfn.STDEV.S('II. Headline series'!K110:K140)","v":0.8493318783437183},{"$f":"_xlfn.STDEV.S('II. Headline series'!N110:N140)","v":3.493135362649053},8.55859591033672,6.221415632806903]
[{"$f":"'III. GDP shares, 1310-2018'!A124","v":1428},{"$f":"_xlfn.STDEV.S('II. Headline series'!M111:M141)","v":7.628537003562274},{"$f":"_xlfn.STDEV.S('II. Headline series'!P111:P141)","v":23.997134294665926},{"$f":"_xlfn.STDEV.S('II. Headline series'!K111:K141)","v":0.8365081031706276},{"$f":"_xlfn.STDEV.S('II. Headline series'!N111:N141)","v":3.698623876924412},9.119501621858449,6.488125068456737]
[{"$f":"'III. GDP shares, 1310-2018'!A125","v":1429},{"$f":"_xlfn.STDEV.S('II. Headline series'!M112:M142)","v":7.419036624089395},{"$f":"_xlfn.STDEV.S('II. Headline series'!P112:P142)","v":23.670775085959527},{"$f":"_xlfn.STDEV.S('II. Headline series'!K112:K142)","v":0.8345413551257042},{"$f":"_xlfn.STDEV.S('II. Headline series'!N112:N142)","v":3.810981634678532},8.889956834999376,6.211201563020975]
[{"$f":"'III. GDP shares, 1310-2018'!A126","v":1430},{"$f":"_xlfn.STDEV.S('II. Headline series'!M113:M143)","v":7.402677532062561},{"$f":"_xlfn.STDEV.S('II. Headline series'!P113:P143)","v":23.60006762446068},{"$f":"_xlfn.STDEV.S('II. Headline series'!K113:K143)","v":0.8255646742606351},{"$f":"_xlfn.STDEV.S('II. Headline series'!N113:N143)","v":3.825357874729958},8.96680510063285,6.169375100918282]
[{"$f":"'III. GDP shares, 1310-2018'!A127","v":1431},{"$f":"_xlfn.STDEV.S('II. Headline series'!M114:M144)","v":7.406187528715902},{"$f":"_xlfn.STDEV.S('II. Headline series'!P114:P144)","v":23.675010964203857},{"$f":"_xlfn.STDEV.S('II. Headline series'!K114:K144)","v":0.9379551778589622},{"$f":"_xlfn.STDEV.S('II. Headline series'!N114:N144)","v":3.8676656144121195},7.896099625593783,6.121266242868421]
[{"$f":"'III. GDP shares, 1310-2018'!A128","v":1432},{"$f":"_xlfn.STDEV.S('II. Headline series'!M115:M145)","v":7.246336436965108},{"$f":"_xlfn.STDEV.S('II. Headline series'!P115:P145)","v":23.242622610758858},{"$f":"_xlfn.STDEV.S('II. Headline series'!K115:K145)","v":1.008921147697194},{"$f":"_xlfn.STDEV.S('II. Headline series'!N115:N145)","v":3.92130928998426},7.18226241317715,5.927260741743774]
[{"$f":"'III. GDP shares, 1310-2018'!A129","v":1433},{"$f":"_xlfn.STDEV.S('II. Headline series'!M116:M146)","v":7.448979797598276},{"$f":"_xlfn.STDEV.S('II. Headline series'!P116:P146)","v":23.20095566105476},{"$f":"_xlfn.STDEV.S('II. Headline series'!K116:K146)","v":1.0637413024113396},{"$f":"_xlfn.STDEV.S('II. Headline series'!N116:N146)","v":3.9336703618643947},7.002623458083815,5.898042674337989]
[{"$f":"'III. GDP shares, 1310-2018'!A130","v":1434},{"$f":"_xlfn.STDEV.S('II. Headline series'!M117:M147)","v":7.324058555336445},{"$f":"_xlfn.STDEV.S('II. Headline series'!P117:P147)","v":23.099877126575002},{"$f":"_xlfn.STDEV.S('II. Headline series'!K117:K147)","v":1.084673031197797},{"$f":"_xlfn.STDEV.S('II. Headline series'!N117:N147)","v":3.9478643023617415},6.752319219413557,5.851233820968948]
[{"$f":"'III. GDP shares, 1310-2018'!A131","v":1435},{"$f":"_xlfn.STDEV.S('II. Headline series'!M118:M148)","v":7.33353251631797},{"$f":"_xlfn.STDEV.S('II. Headline series'!P118:P148)","v":22.935468313693374},{"$f":"_xlfn.STDEV.S('II. Headline series'!K118:K148)","v":1.093942986673584},{"$f":"_xlfn.STDEV.S('II. Headline series'!N118:N148)","v":3.9628375188027753},6.703761170056466,5.787637823874867]
[{"$f":"'III. GDP shares, 1310-2018'!A132","v":1436},{"$f":"_xlfn.STDEV.S('II. Headline series'!M119:M149)","v":7.011259286157312},{"$f":"_xlfn.STDEV.S('II. Headline series'!P119:P149)","v":21.683657554608267},{"$f":"_xlfn.STDEV.S('II. Headline series'!K119:K149)","v":1.095336421083408},{"$f":"_xlfn.STDEV.S('II. Headline series'!N119:N149)","v":3.946952670712444},6.401009910016875,5.493771870006808]
[{"$f":"'III. GDP shares, 1310-2018'!A133","v":1437},{"$f":"_xlfn.STDEV.S('II. Headline series'!M120:M150)","v":6.99845156433889},{"$f":"_xlfn.STDEV.S('II. Headline series'!P120:P150)","v":21.52576000542301},{"$f":"_xlfn.STDEV.S('II. Headline series'!K120:K150)","v":1.0864047139798798},{"$f":"_xlfn.STDEV.S('II. Headline series'!N120:N150)","v":3.899370526098187},6.441845726811253,5.520316641199587]
[{"$f":"'III. GDP shares, 1310-2018'!A134","v":1438},{"$f":"_xlfn.STDEV.S('II. Headline series'!M121:M151)","v":6.7800962814902945},{"$f":"_xlfn.STDEV.S('II. Headline series'!P121:P151)","v":20.859516461907},{"$f":"_xlfn.STDEV.S('II. Headline series'!K121:K151)","v":1.0607716689640694},{"$f":"_xlfn.STDEV.S('II. Headline series'!N121:N151)","v":3.827050353539952},6.39166418170992,5.450546644261507]
[{"$f":"'III. GDP shares, 1310-2018'!A135","v":1439},{"$f":"_xlfn.STDEV.S('II. Headline series'!M122:M152)","v":6.824352858289405},{"$f":"_xlfn.STDEV.S('II. Headline series'!P122:P152)","v":20.795874742663166},{"$f":"_xlfn.STDEV.S('II. Headline series'!K122:K152)","v":1.0359845783321098},{"$f":"_xlfn.STDEV.S('II. Headline series'!N122:N152)","v":3.7298384437216248},6.58731124094175,5.5755430312721765]
[{"$f":"'III. GDP shares, 1310-2018'!A136","v":1440},{"$f":"_xlfn.STDEV.S('II. Headline series'!M123:M153)","v":6.80827425804388},{"$f":"_xlfn.STDEV.S('II. Headline series'!P123:P153)","v":20.455668665269403},{"$f":"_xlfn.STDEV.S('II. Headline series'!K123:K153)","v":0.9967874907346314},{"$f":"_xlfn.STDEV.S('II. Headline series'!N123:N153)","v":3.6237192856134466},6.830216391486002,5.644937439409448]
[{"$f":"'III. GDP shares, 1310-2018'!A137","v":1441},{"$f":"_xlfn.STDEV.S('II. Headline series'!M124:M154)","v":7.187047275060717},{"$f":"_xlfn.STDEV.S('II. Headline series'!P124:P154)","v":20.982697899836175},{"$f":"_xlfn.STDEV.S('II. Headline series'!K124:K154)","v":0.9776336827240547},{"$f":"_xlfn.STDEV.S('II. Headline series'!N124:N154)","v":3.494003323533367},7.351472644676996,6.005345718623154]
[{"$f":"'III. GDP shares, 1310-2018'!A138","v":1442},{"$f":"_xlfn.STDEV.S('II. Headline series'!M125:M155)","v":7.258047725177818},{"$f":"_xlfn.STDEV.S('II. Headline series'!P125:P155)","v":21.079725670908324},{"$f":"_xlfn.STDEV.S('II. Headline series'!K125:K155)","v":0.9660304642528803},{"$f":"_xlfn.STDEV.S('II. Headline series'!N125:N155)","v":3.376689473454403},7.51327001968942,6.24271963312737]
[{"$f":"'III. GDP shares, 1310-2018'!A139","v":1443},{"$f":"_xlfn.STDEV.S('II. Headline series'!M126:M156)","v":7.652330937303287},{"$f":"_xlfn.STDEV.S('II. Headline series'!P126:P156)","v":21.889334817883288},{"$f":"_xlfn.STDEV.S('II. Headline series'!K126:K156)","v":0.9123634220522244},{"$f":"_xlfn.STDEV.S('II. Headline series'!N126:N156)","v":3.1950025489259},8.387371470998385,6.851116543003095]
[{"$f":"'III. GDP shares, 1310-2018'!A140","v":1444},{"$f":"_xlfn.STDEV.S('II. Headline series'!M127:M157)","v":7.702538647443262},{"$f":"_xlfn.STDEV.S('II. Headline series'!P127:P157)","v":22.353936475374965},{"$f":"_xlfn.STDEV.S('II. Headline series'!K127:K157)","v":0.8708359792158111},{"$f":"_xlfn.STDEV.S('II. Headline series'!N127:N157)","v":2.9558395459666347},8.844993582349925,7.56263529455712]
[{"$f":"'III. GDP shares, 1310-2018'!A141","v":1445},{"$f":"_xlfn.STDEV.S('II. Headline series'!M128:M158)","v":7.671633447329379},{"$f":"_xlfn.STDEV.S('II. Headline series'!P128:P158)","v":22.390827310802244},{"$f":"_xlfn.STDEV.S('II. Headline series'!K128:K158)","v":0.8224262160564035},{"$f":"_xlfn.STDEV.S('II. Headline series'!N128:N158)","v":2.705742936711687},9.328050708445854,8.275297334052736]
[{"$f":"'III. GDP shares, 1310-2018'!A142","v":1446},{"$f":"_xlfn.STDEV.S('II. Headline series'!M129:M159)","v":7.533286084696801},{"$f":"_xlfn.STDEV.S('II. Headline series'!P129:P159)","v":22.03803052842842},{"$f":"_xlfn.STDEV.S('II. Headline series'!K129:K159)","v":0.771738532914349},{"$f":"_xlfn.STDEV.S('II. Headline series'!N129:N159)","v":2.5055611816090306},9.761448681651974,8.795646536268555]
[{"$f":"'III. GDP shares, 1310-2018'!A143","v":1447},{"$f":"_xlfn.STDEV.S('II. Headline series'!M130:M160)","v":7.04949804502616},{"$f":"_xlfn.STDEV.S('II. Headline series'!P130:P160)","v":19.421174708084507},{"$f":"_xlfn.STDEV.S('II. Headline series'!K130:K160)","v":0.7517264352320425},{"$f":"_xlfn.STDEV.S('II. Headline series'!N130:N160)","v":2.3736797196150823},9.377743969919223,8.18188509072903]
[{"$f":"'III. GDP shares, 1310-2018'!A144","v":1448},{"$f":"_xlfn.STDEV.S('II. Headline series'!M131:M161)","v":7.0285604159184},{"$f":"_xlfn.STDEV.S('II. Headline series'!P131:P161)","v":20.34550631962401},{"$f":"_xlfn.STDEV.S('II. Headline series'!K131:K161)","v":0.7386089380001596},{"$f":"_xlfn.STDEV.S('II. Headline series'!N131:N161)","v":2.2504610415235473},9.515942813999471,9.04059476890577]
[{"$f":"'III. GDP shares, 1310-2018'!A145","v":1449},{"$f":"_xlfn.STDEV.S('II. Headline series'!M132:M162)","v":7.063013026192758},{"$f":"_xlfn.STDEV.S('II. Headline series'!P132:P162)","v":20.08783434676753},{"$f":"_xlfn.STDEV.S('II. Headline series'!K132:K162)","v":0.7368617212830664},{"$f":"_xlfn.STDEV.S('II. Headline series'!N132:N162)","v":2.102871915330562},9.585262502025794,9.552571509620362]
[{"$f":"'III. GDP shares, 1310-2018'!A146","v":1450},{"$f":"_xlfn.STDEV.S('II. Headline series'!M133:M163)","v":6.6342042386314},{"$f":"_xlfn.STDEV.S('II. Headline series'!P133:P163)","v":20.10438274321659},{"$f":"_xlfn.STDEV.S('II. Headline series'!K133:K163)","v":0.7423939303713334},{"$f":"_xlfn.STDEV.S('II. Headline series'!N133:N163)","v":1.97720537851206},8.936231786422445,10.168080140640768]
[{"$f":"'III. GDP shares, 1310-2018'!A147","v":1451},{"$f":"_xlfn.STDEV.S('II. Headline series'!M134:M164)","v":6.6738736188918315},{"$f":"_xlfn.STDEV.S('II. Headline series'!P134:P164)","v":20.31112972421446},{"$f":"_xlfn.STDEV.S('II. Headline series'!K134:K164)","v":0.7388718862923116},{"$f":"_xlfn.STDEV.S('II. Headline series'!N134:N164)","v":1.8633013079156309},9.03251800847586,10.900614751854258]
[{"$f":"'III. GDP shares, 1310-2018'!A148","v":1452},{"$f":"_xlfn.STDEV.S('II. Headline series'!M135:M165)","v":6.231277301961115},{"$f":"_xlfn.STDEV.S('II. Headline series'!P135:P165)","v":19.46846219454543},{"$f":"_xlfn.STDEV.S('II. Headline series'!K135:K165)","v":0.7378765731999297},{"$f":"_xlfn.STDEV.S('II. Headline series'!N135:N165)","v":1.7653126628002127},8.444877542240025,11.02833656881141]
[{"$f":"'III. GDP shares, 1310-2018'!A149","v":1453},{"$f":"_xlfn.STDEV.S('II. Headline series'!M136:M166)","v":6.0065994847614075},{"$f":"_xlfn.STDEV.S('II. Headline series'!P136:P166)","v":19.178411380996362},{"$f":"_xlfn.STDEV.S('II. Headline series'!K136:K166)","v":0.7002813163525152},{"$f":"_xlfn.STDEV.S('II. Headline series'!N136:N166)","v":1.6485483788971966},8.577409313227687,11.63351444610066]
[{"$f":"'III. GDP shares, 1310-2018'!A150","v":1454},{"$f":"_xlfn.STDEV.S('II. Headline series'!M137:M167)","v":5.988186882416426},{"$f":"_xlfn.STDEV.S('II. Headline series'!P137:P167)","v":19.16011155651011},{"$f":"_xlfn.STDEV.S('II. Headline series'!K137:K167)","v":0.6688083958541741},{"$f":"_xlfn.STDEV.S('II. Headline series'!N137:N167)","v":1.5492152445146259},8.953516312797726,12.367623946608552]
[{"$f":"'III. GDP shares, 1310-2018'!A151","v":1455},{"$f":"_xlfn.STDEV.S('II. Headline series'!M138:M168)","v":6.078836928231428},{"$f":"_xlfn.STDEV.S('II. Headline series'!P138:P168)","v":18.45694930689733},{"$f":"_xlfn.STDEV.S('II. Headline series'!K138:K168)","v":0.6688888514183889},{"$f":"_xlfn.STDEV.S('II. Headline series'!N138:N168)","v":1.5841462349810749},9.087962694162359,11.651038836776218]
[{"$f":"'III. GDP shares, 1310-2018'!A152","v":1456},{"$f":"_xlfn.STDEV.S('II. Headline series'!M139:M169)","v":5.90146911243082},{"$f":"_xlfn.STDEV.S('II. Headline series'!P139:P169)","v":18.389291655442285},{"$f":"_xlfn.STDEV.S('II. Headline series'!K139:K169)","v":0.6666767275504435},{"$f":"_xlfn.STDEV.S('II. Headline series'!N139:N169)","v":1.6289075534914703},8.852070079173853,11.289340279640726]
[{"$f":"'III. GDP shares, 1310-2018'!A153","v":1457},{"$f":"_xlfn.STDEV.S('II. Headline series'!M140:M170)","v":5.904152101384302},{"$f":"_xlfn.STDEV.S('II. Headline series'!P140:P170)","v":18.33964715310299},{"$f":"_xlfn.STDEV.S('II. Headline series'!K140:K170)","v":0.6693757733899405},{"$f":"_xlfn.STDEV.S('II. Headline series'!N140:N170)","v":1.7173245558581736},8.820385105190947,10.679196946519166]
[{"$f":"'III. GDP shares, 1310-2018'!A154","v":1458},{"$f":"_xlfn.STDEV.S('II. Headline series'!M141:M171)","v":6.320633657370859},{"$f":"_xlfn.STDEV.S('II. Headline series'!P141:P171)","v":18.98948748179171},{"$f":"_xlfn.STDEV.S('II. Headline series'!K141:K171)","v":0.6612147967391937},{"$f":"_xlfn.STDEV.S('II. Headline series'!N141:N171)","v":1.7925479753048486},{"$f":"B152/D152","v":9.559123129944018},{"$f":"C152/E152","v":10.593572804411147}]
[{"$f":"'III. GDP shares, 1310-2018'!A155","v":1459},{"$f":"_xlfn.STDEV.S('II. Headline series'!M142:M172)","v":5.871092917204613},{"$f":"_xlfn.STDEV.S('II. Headline series'!P142:P172)","v":16.706011903016382},{"$f":"_xlfn.STDEV.S('II. Headline series'!K142:K172)","v":0.6628998925481075},{"$f":"_xlfn.STDEV.S('II. Headline series'!N142:N172)","v":1.9180360473076494},8.856681051247175,8.70995721194429]
[{"$f":"'III. GDP shares, 1310-2018'!A156","v":1460},{"$f":"_xlfn.STDEV.S('II. Headline series'!M143:M173)","v":5.94191388403031},{"$f":"_xlfn.STDEV.S('II. Headline series'!P143:P173)","v":16.530622133427514},{"$f":"_xlfn.STDEV.S('II. Headline series'!K143:K173)","v":0.6683320960811171},{"$f":"_xlfn.STDEV.S('II. Headline series'!N143:N173)","v":2.0414035631924987},8.890660674344039,8.097674772143385]
[{"$f":"'III. GDP shares, 1310-2018'!A157","v":1461},{"$f":"_xlfn.STDEV.S('II. Headline series'!M144:M174)","v":5.9094498394652915},{"$f":"_xlfn.STDEV.S('II. Headline series'!P144:P174)","v":16.519995820587546},{"$f":"_xlfn.STDEV.S('II. Headline series'!K144:K174)","v":0.6450461100670634},{"$f":"_xlfn.STDEV.S('II. Headline series'!N144:N174)","v":2.095743939513089},9.161282809458234,7.882640388035998]
[{"$f":"'III. GDP shares, 1310-2018'!A158","v":1462},{"$f":"_xlfn.STDEV.S('II. Headline series'!M145:M175)","v":5.970708326324367},{"$f":"_xlfn.STDEV.S('II. Headline series'!P145:P175)","v":16.448343501883315},{"$f":"_xlfn.STDEV.S('II. Headline series'!K145:K175)","v":0.5909897413742468},{"$f":"_xlfn.STDEV.S('II. Headline series'!N145:N175)","v":2.097699862031172},10.102896731236813,7.841132947378194]
[{"$f":"'III. GDP shares, 1310-2018'!A159","v":1463},{"$f":"_xlfn.STDEV.S('II. Headline series'!M146:M176)","v":5.859976893491614},{"$f":"_xlfn.STDEV.S('II. Headline series'!P146:P176)","v":16.013077421440386},{"$f":"_xlfn.STDEV.S('II. Headline series'!K146:K176)","v":0.5673962800983469},{"$f":"_xlfn.STDEV.S('II. Headline series'!N146:N176)","v":2.098214662565165},10.327838054341672,7.631763187596666]
[{"$f":"'III. GDP shares, 1310-2018'!A160","v":1464},{"$f":"_xlfn.STDEV.S('II. Headline series'!M147:M177)","v":5.761327528027556},{"$f":"_xlfn.STDEV.S('II. Headline series'!P147:P177)","v":16.386215548172213},{"$f":"_xlfn.STDEV.S('II. Headline series'!K147:K177)","v":0.5842226930213428},{"$f":"_xlfn.STDEV.S('II. Headline series'!N147:N177)","v":2.1414432876859792},9.861526429643643,7.651949338279691]
[{"$f":"'III. GDP shares, 1310-2018'!A161","v":1465},{"$f":"_xlfn.STDEV.S('II. Headline series'!M148:M178)","v":5.800672958614169},{"$f":"_xlfn.STDEV.S('II. Headline series'!P148:P178)","v":16.398864765675103},{"$f":"_xlfn.STDEV.S('II. Headline series'!K148:K178)","v":0.6835303174936704},{"$f":"_xlfn.STDEV.S('II. Headline series'!N148:N178)","v":2.2757376323188447},8.486343341556147,7.205955788921771]
[{"$f":"'III. GDP shares, 1310-2018'!A162","v":1466},{"$f":"_xlfn.STDEV.S('II. Headline series'!M149:M179)","v":6.2511673334061255},{"$f":"_xlfn.STDEV.S('II. Headline series'!P149:P179)","v":16.472132631449288},{"$f":"_xlfn.STDEV.S('II. Headline series'!K149:K179)","v":0.8249600850066032},{"$f":"_xlfn.STDEV.S('II. Headline series'!N149:N179)","v":2.5368140113662943},7.577539140401065,6.49323622372206]
[{"$f":"'III. GDP shares, 1310-2018'!A163","v":1467},{"$f":"_xlfn.STDEV.S('II. Headline series'!M150:M180)","v":6.8552078030227},{"$f":"_xlfn.STDEV.S('II. Headline series'!P150:P180)","v":16.84998424830759},{"$f":"_xlfn.STDEV.S('II. Headline series'!K150:K180)","v":0.9886259551566268},{"$f":"_xlfn.STDEV.S('II. Headline series'!N150:N180)","v":2.9272435691042547},6.934076297781033,5.756263136471331]
[{"$f":"'III. GDP shares, 1310-2018'!A164","v":1468},{"$f":"_xlfn.STDEV.S('II. Headline series'!M151:M181)","v":7.1149564154714495},{"$f":"_xlfn.STDEV.S('II. Headline series'!P151:P181)","v":19.931642777006918},{"$f":"_xlfn.STDEV.S('II. Headline series'!K151:K181)","v":1.103854963533742},{"$f":"_xlfn.STDEV.S('II. Headline series'!N151:N181)","v":3.1800647078031896},6.4455536737313075,6.267684656887322]
[{"$f":"'III. GDP shares, 1310-2018'!A165","v":1469},{"$f":"_xlfn.STDEV.S('II. Headline series'!M152:M182)","v":7.105392704839812},{"$f":"_xlfn.STDEV.S('II. Headline series'!P152:P182)","v":20.063500121261406},{"$f":"_xlfn.STDEV.S('II. Headline series'!K152:K182)","v":1.2104674532914734},{"$f":"_xlfn.STDEV.S('II. Headline series'!N152:N182)","v":3.395150788320113},5.869957664304812,5.909457744935278]
[{"$f":"'III. GDP shares, 1310-2018'!A166","v":1470},{"$f":"_xlfn.STDEV.S('II. Headline series'!M153:M183)","v":7.218236375099351},{"$f":"_xlfn.STDEV.S('II. Headline series'!P153:P183)","v":20.936390956369255},{"$f":"_xlfn.STDEV.S('II. Headline series'!K153:K183)","v":1.3035118139730175},{"$f":"_xlfn.STDEV.S('II. Headline series'!N153:N183)","v":3.576901028746714},5.537530460194791,5.853220647736237]
[{"$f":"'III. GDP shares, 1310-2018'!A167","v":1471},{"$f":"_xlfn.STDEV.S('II. Headline series'!M154:M184)","v":7.230330475935206},{"$f":"_xlfn.STDEV.S('II. Headline series'!P154:P184)","v":20.92754845974139},{"$f":"_xlfn.STDEV.S('II. Headline series'!K154:K184)","v":1.385118145231327},{"$f":"_xlfn.STDEV.S('II. Headline series'!N154:N184)","v":3.732484455962141},5.220009932602303,5.606868215167635]
[{"$f":"'III. GDP shares, 1310-2018'!A168","v":1472},{"$f":"_xlfn.STDEV.S('II. Headline series'!M155:M185)","v":6.885192988736153},{"$f":"_xlfn.STDEV.S('II. Headline series'!P155:P185)","v":20.27879311522794},{"$f":"_xlfn.STDEV.S('II. Headline series'!K155:K185)","v":1.452494867322883},{"$f":"_xlfn.STDEV.S('II. Headline series'!N155:N185)","v":3.863836108694779},4.74025288738291,5.248357472925581]
[{"$f":"'III. GDP shares, 1310-2018'!A169","v":1473},{"$f":"_xlfn.STDEV.S('II. Headline series'!M156:M186)","v":6.805482912795372},{"$f":"_xlfn.STDEV.S('II. Headline series'!P156:P186)","v":20.19732261348339},{"$f":"_xlfn.STDEV.S('II. Headline series'!K156:K186)","v":1.5125275330267802},{"$f":"_xlfn.STDEV.S('II. Headline series'!N156:N186)","v":3.9616797621631337},4.499410929185959,5.098171438888681]
[{"$f":"'III. GDP shares, 1310-2018'!A170","v":1474},{"$f":"_xlfn.STDEV.S('II. Headline series'!M157:M187)","v":6.323731574699838},{"$f":"_xlfn.STDEV.S('II. Headline series'!P157:P187)","v":19.408351030560976},{"$f":"_xlfn.STDEV.S('II. Headline series'!K157:K187)","v":1.5567661482958957},{"$f":"_xlfn.STDEV.S('II. Headline series'!N157:N187)","v":4.034763105007156},4.062094735051936,4.810282667271132]
[{"$f":"'III. GDP shares, 1310-2018'!A171","v":1475},{"$f":"_xlfn.STDEV.S('II. Headline series'!M158:M188)","v":6.191357719776958},{"$f":"_xlfn.STDEV.S('II. Headline series'!P158:P188)","v":18.883197905348275},{"$f":"_xlfn.STDEV.S('II. Headline series'!K158:K188)","v":1.599351067428583},{"$f":"_xlfn.STDEV.S('II. Headline series'!N158:N188)","v":4.108967478523537},3.8711686545039465,4.595606561513482]
[{"$f":"'III. GDP shares, 1310-2018'!A172","v":1476},{"$f":"_xlfn.STDEV.S('II. Headline series'!M159:M189)","v":6.209269352610981},{"$f":"_xlfn.STDEV.S('II. Headline series'!P159:P189)","v":18.832594885313572},{"$f":"_xlfn.STDEV.S('II. Headline series'!K159:K189)","v":1.6451810461458045},{"$f":"_xlfn.STDEV.S('II. Headline series'!N159:N189)","v":4.170641206929243},3.7742164408941794,4.51551546894623]
[{"$f":"'III. GDP shares, 1310-2018'!A173","v":1477},{"$f":"_xlfn.STDEV.S('II. Headline series'!M160:M190)","v":6.294721429731565},{"$f":"_xlfn.STDEV.S('II. Headline series'!P160:P190)","v":19.000404764275423},{"$f":"_xlfn.STDEV.S('II. Headline series'!K160:K190)","v":1.6865327345294958},{"$f":"_xlfn.STDEV.S('II. Headline series'!N160:N190)","v":4.234530187309264},3.73234465056953,4.487016014484667]
[{"$f":"'III. GDP shares, 1310-2018'!A174","v":1478},{"$f":"_xlfn.STDEV.S('II. Headline series'!M161:M191)","v":6.345930357772713},{"$f":"_xlfn.STDEV.S('II. Headline series'!P161:P191)","v":19.001225475642332},{"$f":"_xlfn.STDEV.S('II. Headline series'!K161:K191)","v":1.7206777030045903},{"$f":"_xlfn.STDEV.S('II. Headline series'!N161:N191)","v":4.2852328151073324},3.6880412564721796,4.434117420331201]
[{"$f":"'III. GDP shares, 1310-2018'!A175","v":1479},{"$f":"_xlfn.STDEV.S('II. Headline series'!M162:M192)","v":6.525405502817595},{"$f":"_xlfn.STDEV.S('II. Headline series'!P162:P192)","v":19.168152183941185},{"$f":"_xlfn.STDEV.S('II. Headline series'!K162:K192)","v":1.7603890155607922},{"$f":"_xlfn.STDEV.S('II. Headline series'!N162:N192)","v":4.331989919966979},3.706797443710958,4.424791501843406]
[{"$f":"'III. GDP shares, 1310-2018'!A176","v":1480},{"$f":"_xlfn.STDEV.S('II. Headline series'!M163:M193)","v":6.514144106048053},{"$f":"_xlfn.STDEV.S('II. Headline series'!P163:P193)","v":18.825171026280998},{"$f":"_xlfn.STDEV.S('II. Headline series'!K163:K193)","v":1.8162999342509623},{"$f":"_xlfn.STDEV.S('II. Headline series'!N163:N193)","v":4.419524656523918},3.586491406626885,4.259546555191646]
[{"$f":"'III. GDP shares, 1310-2018'!A177","v":1481},{"$f":"_xlfn.STDEV.S('II. Headline series'!M164:M194)","v":6.770983088795942},{"$f":"_xlfn.STDEV.S('II. Headline series'!P164:P194)","v":19.787626824631605},{"$f":"_xlfn.STDEV.S('II. Headline series'!K164:K194)","v":1.8643831894594314},{"$f":"_xlfn.STDEV.S('II. Headline series'!N164:N194)","v":4.489600277026263},3.6317550635924554,4.407436208939777]
[{"$f":"'III. GDP shares, 1310-2018'!A178","v":1482},{"$f":"_xlfn.STDEV.S('II. Headline series'!M165:M195)","v":7.662999157794396},{"$f":"_xlfn.STDEV.S('II. Headline series'!P165:P195)","v":21.824572084964245},{"$f":"_xlfn.STDEV.S('II. Headline series'!K165:K195)","v":1.8830682354518684},{"$f":"_xlfn.STDEV.S('II. Headline series'!N165:N195)","v":4.517507955516216},4.06942192190691,4.83110872185954]
[{"$f":"'III. GDP shares, 1310-2018'!A179","v":1483},{"$f":"_xlfn.STDEV.S('II. Headline series'!M166:M196)","v":8.115753338576123},{"$f":"_xlfn.STDEV.S('II. Headline series'!P166:P196)","v":22.986445235008336},{"$f":"_xlfn.STDEV.S('II. Headline series'!K166:K196)","v":1.885382059967477},{"$f":"_xlfn.STDEV.S('II. Headline series'!N166:N196)","v":4.511722398621381},4.304566968626041,5.094827031475199]
[{"$f":"'III. GDP shares, 1310-2018'!A180","v":1484},{"$f":"_xlfn.STDEV.S('II. Headline series'!M167:M197)","v":8.226653030329215},{"$f":"_xlfn.STDEV.S('II. Headline series'!P167:P197)","v":23.208608186154727},{"$f":"_xlfn.STDEV.S('II. Headline series'!K167:K197)","v":1.871745671696028},{"$f":"_xlfn.STDEV.S('II. Headline series'!N167:N197)","v":4.475672562024291},4.395176735135641,5.185501813309095]
[{"$f":"'III. GDP shares, 1310-2018'!A181","v":1485},{"$f":"_xlfn.STDEV.S('II. Headline series'!M168:M198)","v":8.269141480294222},{"$f":"_xlfn.STDEV.S('II. Headline series'!P168:P198)","v":23.13203726087793},{"$f":"_xlfn.STDEV.S('II. Headline series'!K168:K198)","v":1.8397625851290935},{"$f":"_xlfn.STDEV.S('II. Headline series'!N168:N198)","v":4.402642429903069},4.49467857816773,5.254125818568286]
[{"$f":"'III. GDP shares, 1310-2018'!A182","v":1486},{"$f":"_xlfn.STDEV.S('II. Headline series'!M169:M199)","v":8.889288393332695},{"$f":"_xlfn.STDEV.S('II. Headline series'!P169:P199)","v":23.77790891891091},{"$f":"_xlfn.STDEV.S('II. Headline series'!K169:K199)","v":1.8220858297520865},{"$f":"_xlfn.STDEV.S('II. Headline series'!N169:N199)","v":4.350076202509167},4.87863318411415,5.466090204395862]
[{"$f":"'III. GDP shares, 1310-2018'!A183","v":1487},{"$f":"_xlfn.STDEV.S('II. Headline series'!M170:M200)","v":8.903882662391133},{"$f":"_xlfn.STDEV.S('II. Headline series'!P170:P200)","v":23.714595534145996},{"$f":"_xlfn.STDEV.S('II. Headline series'!K170:K200)","v":1.7679687234580925},{"$f":"_xlfn.STDEV.S('II. Headline series'!N170:N200)","v":4.200429959376765},5.036221820132322,5.645754306938765]
[{"$f":"'III. GDP shares, 1310-2018'!A184","v":1488},{"$f":"_xlfn.STDEV.S('II. Headline series'!M171:M201)","v":8.842810449419233},{"$f":"_xlfn.STDEV.S('II. Headline series'!P171:P201)","v":23.885601262002847},{"$f":"_xlfn.STDEV.S('II. Headline series'!K171:K201)","v":1.6652574559889124},{"$f":"_xlfn.STDEV.S('II. Headline series'!N171:N201)","v":3.975202735951884},5.310176163822028,6.008649834631217]
[{"$f":"'III. GDP shares, 1310-2018'!A185","v":1489},{"$f":"_xlfn.STDEV.S('II. Headline series'!M172:M202)","v":8.738238002769378},{"$f":"_xlfn.STDEV.S('II. Headline series'!P172:P202)","v":23.8143925179049},{"$f":"_xlfn.STDEV.S('II. Headline series'!K172:K202)","v":1.5743671927462646},{"$f":"_xlfn.STDEV.S('II. Headline series'!N172:N202)","v":3.6955009444857856},5.550317640655823,6.44415814679722]
[{"$f":"'III. GDP shares, 1310-2018'!A186","v":1490},{"$f":"_xlfn.STDEV.S('II. Headline series'!M173:M203)","v":8.856805748313672},{"$f":"_xlfn.STDEV.S('II. Headline series'!P173:P203)","v":24.63856018799366},{"$f":"_xlfn.STDEV.S('II. Headline series'!K173:K203)","v":1.4561662977651761},{"$f":"_xlfn.STDEV.S('II. Headline series'!N173:N203)","v":3.347698188301596},6.082276290768773,7.359851098313514]
[{"$f":"'III. GDP shares, 1310-2018'!A187","v":1491},{"$f":"_xlfn.STDEV.S('II. Headline series'!M174:M204)","v":9.383971956739773},{"$f":"_xlfn.STDEV.S('II. Headline series'!P174:P204)","v":27.57586980930509},{"$f":"_xlfn.STDEV.S('II. Headline series'!K174:K204)","v":1.293017539598426},{"$f":"_xlfn.STDEV.S('II. Headline series'!N174:N204)","v":2.895909203406047},7.257420467516755,9.522353040928046]
[{"$f":"'III. GDP shares, 1310-2018'!A188","v":1492},{"$f":"_xlfn.STDEV.S('II. Headline series'!M175:M205)","v":9.382527724968865},{"$f":"_xlfn.STDEV.S('II. Headline series'!P175:P205)","v":27.509757408703493},{"$f":"_xlfn.STDEV.S('II. Headline series'!K175:K205)","v":1.0999227415892399},{"$f":"_xlfn.STDEV.S('II. Headline series'!N175:N205)","v":2.293500843612836},8.530169774844712,11.994657636737017]
[{"$f":"'III. GDP shares, 1310-2018'!A189","v":1493},{"$f":"_xlfn.STDEV.S('II. Headline series'!M176:M206)","v":9.381295107864943},{"$f":"_xlfn.STDEV.S('II. Headline series'!P176:P206)","v":27.54520821015302},{"$f":"_xlfn.STDEV.S('II. Headline series'!K176:K206)","v":0.9213212673986456},{"$f":"_xlfn.STDEV.S('II. Headline series'!N176:N206)","v":1.7344009896122514},10.182436289952438,15.88168386384]
[{"$f":"'III. GDP shares, 1310-2018'!A190","v":1494},{"$f":"_xlfn.STDEV.S('II. Headline series'!M177:M207)","v":9.426874303028525},{"$f":"_xlfn.STDEV.S('II. Headline series'!P177:P207)","v":27.25976477044786},{"$f":"_xlfn.STDEV.S('II. Headline series'!K177:K207)","v":0.7389429121280907},{"$f":"_xlfn.STDEV.S('II. Headline series'!N177:N207)","v":1.2868430224441518},12.757243013374273,21.183442187588902]
[{"$f":"'III. GDP shares, 1310-2018'!A191","v":1495},{"$f":"_xlfn.STDEV.S('II. Headline series'!M178:M208)","v":9.236049106073215},{"$f":"_xlfn.STDEV.S('II. Headline series'!P178:P208)","v":26.77417925080658},{"$f":"_xlfn.STDEV.S('II. Headline series'!K178:K208)","v":0.5934154514044383},{"$f":"_xlfn.STDEV.S('II. Headline series'!N178:N208)","v":0.9874230392581409},15.564220790365717,27.115206133859548]
[{"$f":"'III. GDP shares, 1310-2018'!A192","v":1496},{"$f":"_xlfn.STDEV.S('II. Headline series'!M179:M209)","v":9.207262507069313},{"$f":"_xlfn.STDEV.S('II. Headline series'!P179:P209)","v":26.626315566197604},{"$f":"_xlfn.STDEV.S('II. Headline series'!K179:K209)","v":0.5083402869058891},{"$f":"_xlfn.STDEV.S('II. Headline series'!N179:N209)","v":0.885386847157628},18.112399792491537,30.073086867821115]
[{"$f":"'III. GDP shares, 1310-2018'!A193","v":1497},{"$f":"_xlfn.STDEV.S('II. Headline series'!M180:M210)","v":9.16398338940858},{"$f":"_xlfn.STDEV.S('II. Headline series'!P180:P210)","v":26.644907579328738},{"$f":"_xlfn.STDEV.S('II. Headline series'!K180:K210)","v":0.46079663732197534},{"$f":"_xlfn.STDEV.S('II. Headline series'!N180:N210)","v":0.9371255348265706},19.887261857350257,28.43259156763857]
[{"$f":"'III. GDP shares, 1310-2018'!A194","v":1498},{"$f":"_xlfn.STDEV.S('II. Headline series'!M181:M211)","v":8.945429836457604},{"$f":"_xlfn.STDEV.S('II. Headline series'!P181:P211)","v":26.556316511690447},{"$f":"_xlfn.STDEV.S('II. Headline series'!K181:K211)","v":0.4483173901175139},{"$f":"_xlfn.STDEV.S('II. Headline series'!N181:N211)","v":0.93133148334389},19.9533411677669,28.51435497095146]
[{"$f":"'III. GDP shares, 1310-2018'!A195","v":1499},{"$f":"_xlfn.STDEV.S('II. Headline series'!M182:M212)","v":8.862353188223308},{"$f":"_xlfn.STDEV.S('II. Headline series'!P182:P212)","v":24.836128289567675},{"$f":"_xlfn.STDEV.S('II. Headline series'!K182:K212)","v":0.4229106855988012},{"$f":"_xlfn.STDEV.S('II. Headline series'!N182:N212)","v":0.9338849831667787},20.95561424671751,26.594418731682605]
[{"$f":"'III. GDP shares, 1310-2018'!A196","v":1500},{"$f":"_xlfn.STDEV.S('II. Headline series'!M183:M213)","v":8.846026894198314},{"$f":"_xlfn.STDEV.S('II. Headline series'!P183:P213)","v":24.815909496048487},{"$f":"_xlfn.STDEV.S('II. Headline series'!K183:K213)","v":0.4076400485095186},{"$f":"_xlfn.STDEV.S('II. Headline series'!N183:N213)","v":0.9730239594614987},21.700583459703306,25.503903839924327]
[{"$f":"'III. GDP shares, 1310-2018'!A197","v":1501},{"$f":"_xlfn.STDEV.S('II. Headline series'!M184:M214)","v":8.536364552633911},{"$f":"_xlfn.STDEV.S('II. Headline series'!P184:P214)","v":23.72668298529631},{"$f":"_xlfn.STDEV.S('II. Headline series'!K184:K214)","v":0.39207525776295277},{"$f":"_xlfn.STDEV.S('II. Headline series'!N184:N214)","v":1.0080112581302467},21.77226025773594,23.538113085469675]
[{"$f":"'III. GDP shares, 1310-2018'!A198","v":1502},{"$f":"_xlfn.STDEV.S('II. Headline series'!M185:M215)","v":8.533943693146638},{"$f":"_xlfn.STDEV.S('II. Headline series'!P185:P215)","v":23.73842822107723},{"$f":"_xlfn.STDEV.S('II. Headline series'!K185:K215)","v":0.3828585398328783},{"$f":"_xlfn.STDEV.S('II. Headline series'!N185:N215)","v":1.0076486971080687},22.290070104931687,23.55823839122309]
[{"$f":"'III. GDP shares, 1310-2018'!A199","v":1503},{"$f":"_xlfn.STDEV.S('II. Headline series'!M186:M216)","v":8.72049825958538},{"$f":"_xlfn.STDEV.S('II. Headline series'!P186:P216)","v":23.634366299577774},{"$f":"_xlfn.STDEV.S('II. Headline series'!K186:K216)","v":0.3765150776624932},{"$f":"_xlfn.STDEV.S('II. Headline series'!N186:N216)","v":1.0355598977141713},23.16108643968411,22.822790214015395]
[{"$f":"'III. GDP shares, 1310-2018'!A200","v":1504},{"$f":"_xlfn.STDEV.S('II. Headline series'!M187:M217)","v":8.710186828736537},{"$f":"_xlfn.STDEV.S('II. Headline series'!P187:P217)","v":23.61379156360632},{"$f":"_xlfn.STDEV.S('II. Headline series'!K187:K217)","v":0.3714497521944368},{"$f":"_xlfn.STDEV.S('II. Headline series'!N187:N217)","v":1.03594254289723},23.449165808507946,22.794499294879245]
[{"$f":"'III. GDP shares, 1310-2018'!A201","v":1505},{"$f":"_xlfn.STDEV.S('II. Headline series'!M188:M218)","v":8.8278536365036},{"$f":"_xlfn.STDEV.S('II. Headline series'!P188:P218)","v":23.63662172141547},{"$f":"_xlfn.STDEV.S('II. Headline series'!K188:K218)","v":0.3463957402989687},{"$f":"_xlfn.STDEV.S('II. Headline series'!N188:N218)","v":1.0710917511136715},25.484879314290698,22.067784292838784]
[{"$f":"'III. GDP shares, 1310-2018'!A202","v":1506},{"$f":"_xlfn.STDEV.S('II. Headline series'!M189:M219)","v":8.961684904801915},{"$f":"_xlfn.STDEV.S('II. Headline series'!P189:P219)","v":23.771291602866192},{"$f":"_xlfn.STDEV.S('II. Headline series'!K189:K219)","v":0.3163386912751872},{"$f":"_xlfn.STDEV.S('II. Headline series'!N189:N219)","v":1.0928407603162644},28.329398685556384,21.751834728407147]
[{"$f":"'III. GDP shares, 1310-2018'!A203","v":1507},{"$f":"_xlfn.STDEV.S('II. Headline series'!M190:M220)","v":9.007079637156133},{"$f":"_xlfn.STDEV.S('II. Headline series'!P190:P220)","v":24.03738142468216},{"$f":"_xlfn.STDEV.S('II. Headline series'!K190:K220)","v":0.2884618569216095},{"$f":"_xlfn.STDEV.S('II. Headline series'!N190:N220)","v":1.1043518112226638},31.22450827044297,21.76605424141931]
[{"$f":"'III. GDP shares, 1310-2018'!A204","v":1508},{"$f":"_xlfn.STDEV.S('II. Headline series'!M191:M221)","v":9.075861156548434},{"$f":"_xlfn.STDEV.S('II. Headline series'!P191:P221)","v":24.369636336899337},{"$f":"_xlfn.STDEV.S('II. Headline series'!K191:K221)","v":0.2589752029604942},{"$f":"_xlfn.STDEV.S('II. Headline series'!N191:N221)","v":1.1155847199374387},35.0452902548084,21.84472044244741]
[{"$f":"'III. GDP shares, 1310-2018'!A205","v":1509},{"$f":"_xlfn.STDEV.S('II. Headline series'!M192:M222)","v":8.968471698732547},{"$f":"_xlfn.STDEV.S('II. Headline series'!P192:P222)","v":24.33938000941082},{"$f":"_xlfn.STDEV.S('II. Headline series'!K192:K222)","v":0.22114365592706045},{"$f":"_xlfn.STDEV.S('II. Headline series'!N192:N222)","v":1.118130032912838},40.5549580933518,21.767933328831493]
[{"$f":"'III. GDP shares, 1310-2018'!A206","v":1510},{"$f":"_xlfn.STDEV.S('II. Headline series'!M193:M223)","v":9.027481391605408},{"$f":"_xlfn.STDEV.S('II. Headline series'!P193:P223)","v":23.739317204644983},{"$f":"_xlfn.STDEV.S('II. Headline series'!K193:K223)","v":0.20551099758493227},{"$f":"_xlfn.STDEV.S('II. Headline series'!N193:N223)","v":1.113273931948791},43.926999030183715,21.323877729795758]
[{"$f":"'III. GDP shares, 1310-2018'!A207","v":1511},{"$f":"_xlfn.STDEV.S('II. Headline series'!M194:M224)","v":9.087516144423068},{"$f":"_xlfn.STDEV.S('II. Headline series'!P194:P224)","v":23.684320769026883},{"$f":"_xlfn.STDEV.S('II. Headline series'!K194:K224)","v":0.2510780666840178},{"$f":"_xlfn.STDEV.S('II. Headline series'!N194:N224)","v":1.1156752320556407},36.19398645386148,21.228687424913367]
[{"$f":"'III. GDP shares, 1310-2018'!A208","v":1512},{"$f":"_xlfn.STDEV.S('II. Headline series'!M195:M225)","v":9.195413762235273},{"$f":"_xlfn.STDEV.S('II. Headline series'!P195:P225)","v":23.07968152384784},{"$f":"_xlfn.STDEV.S('II. Headline series'!K195:K225)","v":0.32335514896575046},{"$f":"_xlfn.STDEV.S('II. Headline series'!N195:N225)","v":1.1201322435194094},28.437505299194243,20.6044256447189]
[{"$f":"'III. GDP shares, 1310-2018'!A209","v":1513},{"$f":"_xlfn.STDEV.S('II. Headline series'!M196:M226)","v":8.82905243677536},{"$f":"_xlfn.STDEV.S('II. Headline series'!P196:P226)","v":20.897534527642502},{"$f":"_xlfn.STDEV.S('II. Headline series'!K196:K226)","v":0.4388976890953902},{"$f":"_xlfn.STDEV.S('II. Headline series'!N196:N226)","v":1.501125953829811},20.11642498043878,13.921239902838789]
[{"$f":"'III. GDP shares, 1310-2018'!A210","v":1514},{"$f":"_xlfn.STDEV.S('II. Headline series'!M197:M227)","v":8.3059307104447},{"$f":"_xlfn.STDEV.S('II. Headline series'!P197:P227)","v":19.585564072733725},{"$f":"_xlfn.STDEV.S('II. Headline series'!K197:K227)","v":0.45088532584986696},{"$f":"_xlfn.STDEV.S('II. Headline series'!N197:N227)","v":1.5020730450130886},18.42138174443574,13.039022394921588]
[{"$f":"'III. GDP shares, 1310-2018'!A211","v":1515},{"$f":"_xlfn.STDEV.S('II. Headline series'!M198:M228)","v":8.210773130337522},{"$f":"_xlfn.STDEV.S('II. Headline series'!P198:P228)","v":19.169985087816382},{"$f":"_xlfn.STDEV.S('II. Headline series'!K198:K228)","v":0.49523608791953616},{"$f":"_xlfn.STDEV.S('II. Headline series'!N198:N228)","v":1.618213417998008},16.579512944685835,11.846388662091776]
[{"$f":"'III. GDP shares, 1310-2018'!A212","v":1516},{"$f":"_xlfn.STDEV.S('II. Headline series'!M199:M229)","v":8.251829623935588},{"$f":"_xlfn.STDEV.S('II. Headline series'!P199:P229)","v":19.195484693795812},{"$f":"_xlfn.STDEV.S('II. Headline series'!K199:K229)","v":0.5206784560010062},{"$f":"_xlfn.STDEV.S('II. Headline series'!N199:N229)","v":1.7130657940008842},15.848225577283426,11.205340017305783]
[{"$f":"'III. GDP shares, 1310-2018'!A213","v":1517},{"$f":"_xlfn.STDEV.S('II. Headline series'!M200:M230)","v":7.765818592475206},{"$f":"_xlfn.STDEV.S('II. Headline series'!P200:P230)","v":18.128099548895854},{"$f":"_xlfn.STDEV.S('II. Headline series'!K200:K230)","v":0.5138057899646948},{"$f":"_xlfn.STDEV.S('II. Headline series'!N200:N230)","v":1.7883370491699009},15.114307281373414,10.136847277928085]
[{"$f":"'III. GDP shares, 1310-2018'!A214","v":1518},{"$f":"_xlfn.STDEV.S('II. Headline series'!M201:M231)","v":7.777676800050296},{"$f":"_xlfn.STDEV.S('II. Headline series'!P201:P231)","v":18.1346308409417},{"$f":"_xlfn.STDEV.S('II. Headline series'!K201:K231)","v":0.5088775380587928},{"$f":"_xlfn.STDEV.S('II. Headline series'!N201:N231)","v":1.8657969123888012},15.283985278107732,9.719509513885798]
[{"$f":"'III. GDP shares, 1310-2018'!A215","v":1519},{"$f":"_xlfn.STDEV.S('II. Headline series'!M202:M232)","v":7.899814807764767},{"$f":"_xlfn.STDEV.S('II. Headline series'!P202:P232)","v":17.755790256257598},{"$f":"_xlfn.STDEV.S('II. Headline series'!K202:K232)","v":0.5083408588319442},{"$f":"_xlfn.STDEV.S('II. Headline series'!N202:N232)","v":1.9061300987616279},15.540389230007614,9.315098831812769]
[{"$f":"'III. GDP shares, 1310-2018'!A216","v":1520},{"$f":"_xlfn.STDEV.S('II. Headline series'!M203:M233)","v":8.153713153452122},{"$f":"_xlfn.STDEV.S('II. Headline series'!P203:P233)","v":17.64838330473195},{"$f":"_xlfn.STDEV.S('II. Headline series'!K203:K233)","v":0.5044534686697268},{"$f":"_xlfn.STDEV.S('II. Headline series'!N203:N233)","v":1.93287883052112},16.163459386955825,9.130620619386576]
[{"$f":"'III. GDP shares, 1310-2018'!A217","v":1521},{"$f":"_xlfn.STDEV.S('II. Headline series'!M204:M234)","v":8.100429085934051},{"$f":"_xlfn.STDEV.S('II. Headline series'!P204:P234)","v":16.09034660205068},{"$f":"_xlfn.STDEV.S('II. Headline series'!K204:K234)","v":0.5450551078483957},{"$f":"_xlfn.STDEV.S('II. Headline series'!N204:N234)","v":1.9084725732176608},14.861669892261874,8.431007512422648]
[{"$f":"'III. GDP shares, 1310-2018'!A218","v":1522},{"$f":"_xlfn.STDEV.S('II. Headline series'!M205:M235)","v":7.2690488764309675},{"$f":"_xlfn.STDEV.S('II. Headline series'!P205:P235)","v":10.39280676925503},{"$f":"_xlfn.STDEV.S('II. Headline series'!K205:K235)","v":0.5634732083010983},{"$f":"_xlfn.STDEV.S('II. Headline series'!N205:N235)","v":1.8833893273624878},{"$f":"B216/D216","v":12.900433897021541},{"$f":"C216/E216","v":5.518140417525458}]
[{"$f":"'III. GDP shares, 1310-2018'!A219","v":1523},{"$f":"_xlfn.STDEV.S('II. Headline series'!M206:M236)","v":7.220240677781327},{"$f":"_xlfn.STDEV.S('II. Headline series'!P206:P236)","v":9.792980826449535},{"$f":"_xlfn.STDEV.S('II. Headline series'!K206:K236)","v":0.5605375252503512},{"$f":"_xlfn.STDEV.S('II. Headline series'!N206:N236)","v":1.857601668973594},12.880922957935015,5.271841100283132]
[{"$f":"'III. GDP shares, 1310-2018'!A220","v":1524},{"$f":"_xlfn.STDEV.S('II. Headline series'!M207:M237)","v":7.956738930409267},{"$f":"_xlfn.STDEV.S('II. Headline series'!P207:P237)","v":9.839901784314673},{"$f":"_xlfn.STDEV.S('II. Headline series'!K207:K237)","v":0.5623589456238622},{"$f":"_xlfn.STDEV.S('II. Headline series'!N207:N237)","v":1.8767640447242855},14.14886166980473,5.24301486485492]
[{"$f":"'III. GDP shares, 1310-2018'!A221","v":1525},{"$f":"_xlfn.STDEV.S('II. Headline series'!M208:M238)","v":7.919651562195534},{"$f":"_xlfn.STDEV.S('II. Headline series'!P208:P238)","v":9.876343536534897},{"$f":"_xlfn.STDEV.S('II. Headline series'!K208:K238)","v":0.5688546325777933},{"$f":"_xlfn.STDEV.S('II. Headline series'!N208:N238)","v":1.9223183388031597},13.922100847288936,5.137725285752584]
[{"$f":"'III. GDP shares, 1310-2018'!A222","v":1526},{"$f":"_xlfn.STDEV.S('II. Headline series'!M209:M239)","v":8.383873041484087},{"$f":"_xlfn.STDEV.S('II. Headline series'!P209:P239)","v":10.180798586114713},{"$f":"_xlfn.STDEV.S('II. Headline series'!K209:K239)","v":0.5965337692587854},{"$f":"_xlfn.STDEV.S('II. Headline series'!N209:N239)","v":1.9335329661484493},14.054314229186637,5.265386608015594]
[{"$f":"'III. GDP shares, 1310-2018'!A223","v":1527},{"$f":"_xlfn.STDEV.S('II. Headline series'!M210:M240)","v":8.34645528680664},{"$f":"_xlfn.STDEV.S('II. Headline series'!P210:P240)","v":10.354560018477569},{"$f":"_xlfn.STDEV.S('II. Headline series'!K210:K240)","v":0.6245571750636258},{"$f":"_xlfn.STDEV.S('II. Headline series'!N210:N240)","v":1.9252038713436417},13.363796974962872,5.378422603758269]
[{"$f":"'III. GDP shares, 1310-2018'!A224","v":1528},{"$f":"_xlfn.STDEV.S('II. Headline series'!M211:M241)","v":8.308162192298907},{"$f":"_xlfn.STDEV.S('II. Headline series'!P211:P241)","v":10.436361688435012},{"$f":"_xlfn.STDEV.S('II. Headline series'!K211:K241)","v":0.6291225940500771},{"$f":"_xlfn.STDEV.S('II. Headline series'!N211:N241)","v":1.8595918878203626},13.205951067205817,5.6121785413182925]
[{"$f":"'III. GDP shares, 1310-2018'!A225","v":1529},{"$f":"_xlfn.STDEV.S('II. Headline series'!M212:M242)","v":8.279479453195407},{"$f":"_xlfn.STDEV.S('II. Headline series'!P212:P242)","v":10.384909877018082},{"$f":"_xlfn.STDEV.S('II. Headline series'!K212:K242)","v":0.6277494548332376},{"$f":"_xlfn.STDEV.S('II. Headline series'!N212:N242)","v":1.8268366071565627},13.18914638547135,5.684640780864361]
[{"$f":"'III. GDP shares, 1310-2018'!A226","v":1530},{"$f":"_xlfn.STDEV.S('II. Headline series'!M213:M243)","v":8.326067868256079},{"$f":"_xlfn.STDEV.S('II. Headline series'!P213:P243)","v":10.682340672340775},{"$f":"_xlfn.STDEV.S('II. Headline series'!K213:K243)","v":0.6392856258393284},{"$f":"_xlfn.STDEV.S('II. Headline series'!N213:N243)","v":1.9088521152382296},13.024018579057914,5.596211768876392]
[{"$f":"'III. GDP shares, 1310-2018'!A227","v":1531},{"$f":"_xlfn.STDEV.S('II. Headline series'!M214:M244)","v":8.328800030408184},{"$f":"_xlfn.STDEV.S('II. Headline series'!P214:P244)","v":10.85124582644527},{"$f":"_xlfn.STDEV.S('II. Headline series'!K214:K244)","v":0.6463481879670558},{"$f":"_xlfn.STDEV.S('II. Headline series'!N214:N244)","v":1.9308179084778883},12.885933906002844,5.620025471485075]
[{"$f":"'III. GDP shares, 1310-2018'!A228","v":1532},{"$f":"_xlfn.STDEV.S('II. Headline series'!M215:M245)","v":8.500096404402854},{"$f":"_xlfn.STDEV.S('II. Headline series'!P215:P245)","v":11.173471873004337},{"$f":"_xlfn.STDEV.S('II. Headline series'!K215:K245)","v":0.6534910917314624},{"$f":"_xlfn.STDEV.S('II. Headline series'!N215:N245)","v":1.9329225323662158},13.007210828048715,5.780610286189879]
[{"$f":"'III. GDP shares, 1310-2018'!A229","v":1533},{"$f":"_xlfn.STDEV.S('II. Headline series'!M216:M246)","v":8.502739777863315},{"$f":"_xlfn.STDEV.S('II. Headline series'!P216:P246)","v":11.148258041891193},{"$f":"_xlfn.STDEV.S('II. Headline series'!K216:K246)","v":0.6568126677960939},{"$f":"_xlfn.STDEV.S('II. Headline series'!N216:N246)","v":1.9252146926779934},12.945456436450725,5.790657054660149]
[{"$f":"'III. GDP shares, 1310-2018'!A230","v":1534},{"$f":"_xlfn.STDEV.S('II. Headline series'!M217:M247)","v":8.43759279334808},{"$f":"_xlfn.STDEV.S('II. Headline series'!P217:P247)","v":11.214431241123508},{"$f":"_xlfn.STDEV.S('II. Headline series'!K217:K247)","v":0.6544381672786502},{"$f":"_xlfn.STDEV.S('II. Headline series'!N217:N247)","v":1.9022570775915952},12.892880053793494,5.895328961173768]
[{"$f":"'III. GDP shares, 1310-2018'!A231","v":1535},{"$f":"_xlfn.STDEV.S('II. Headline series'!M218:M248)","v":8.463038945102548},{"$f":"_xlfn.STDEV.S('II. Headline series'!P218:P248)","v":11.214608433559558},{"$f":"_xlfn.STDEV.S('II. Headline series'!K218:K248)","v":0.6625403113116094},{"$f":"_xlfn.STDEV.S('II. Headline series'!N218:N248)","v":1.980304568190381},12.773621167817769,5.663072546364705]
[{"$f":"'III. GDP shares, 1310-2018'!A232","v":1536},{"$f":"_xlfn.STDEV.S('II. Headline series'!M219:M249)","v":8.387086772283963},{"$f":"_xlfn.STDEV.S('II. Headline series'!P219:P249)","v":11.272539382642176},{"$f":"_xlfn.STDEV.S('II. Headline series'!K219:K249)","v":0.6642528751486086},{"$f":"_xlfn.STDEV.S('II. Headline series'!N219:N249)","v":2.0569625403670124},12.626346209502787,5.480187004587298]
[{"$f":"'III. GDP shares, 1310-2018'!A233","v":1537},{"$f":"_xlfn.STDEV.S('II. Headline series'!M220:M250)","v":8.282133969465477},{"$f":"_xlfn.STDEV.S('II. Headline series'!P220:P250)","v":10.33851860624437},{"$f":"_xlfn.STDEV.S('II. Headline series'!K220:K250)","v":0.6698293053256389},{"$f":"_xlfn.STDEV.S('II. Headline series'!N220:N250)","v":2.1301712915122093},12.364544076552608,4.853374302544963]
[{"$f":"'III. GDP shares, 1310-2018'!A234","v":1538},{"$f":"_xlfn.STDEV.S('II. Headline series'!M221:M251)","v":8.321244121334201},{"$f":"_xlfn.STDEV.S('II. Headline series'!P221:P251)","v":9.380969365159192},{"$f":"_xlfn.STDEV.S('II. Headline series'!K221:K251)","v":0.6827167444996306},{"$f":"_xlfn.STDEV.S('II. Headline series'!N221:N251)","v":2.1965309281409113},12.188428346565482,4.270811416754786]
[{"$f":"'III. GDP shares, 1310-2018'!A235","v":1539},{"$f":"_xlfn.STDEV.S('II. Headline series'!M222:M252)","v":8.17005644021317},{"$f":"_xlfn.STDEV.S('II. Headline series'!P222:P252)","v":8.093775148039452},{"$f":"_xlfn.STDEV.S('II. Headline series'!K222:K252)","v":0.7076552780264728},{"$f":"_xlfn.STDEV.S('II. Headline series'!N222:N252)","v":2.255216116291914},11.545249069572453,3.58891331503406]
[{"$f":"'III. GDP shares, 1310-2018'!A236","v":1540},{"$f":"_xlfn.STDEV.S('II. Headline series'!M223:M253)","v":8.262712088980056},{"$f":"_xlfn.STDEV.S('II. Headline series'!P223:P253)","v":8.10465570478835},{"$f":"_xlfn.STDEV.S('II. Headline series'!K223:K253)","v":0.7383347973515527},{"$f":"_xlfn.STDEV.S('II. Headline series'!N223:N253)","v":2.252657152633708},11.191009984384937,3.5978203320077986]
[{"$f":"'III. GDP shares, 1310-2018'!A237","v":1541},{"$f":"_xlfn.STDEV.S('II. Headline series'!M224:M254)","v":8.124186441562575},{"$f":"_xlfn.STDEV.S('II. Headline series'!P224:P254)","v":8.108435319518808},{"$f":"_xlfn.STDEV.S('II. Headline series'!K224:K254)","v":0.7599821750480477},{"$f":"_xlfn.STDEV.S('II. Headline series'!N224:N254)","v":2.3207020049327625},10.689969723367454,3.49395799300554]
[{"$f":"'III. GDP shares, 1310-2018'!A238","v":1542},{"$f":"_xlfn.STDEV.S('II. Headline series'!M225:M255)","v":8.064325858397167},{"$f":"_xlfn.STDEV.S('II. Headline series'!P225:P255)","v":8.806504366526527},{"$f":"_xlfn.STDEV.S('II. Headline series'!K225:K255)","v":0.8334307617528075},{"$f":"_xlfn.STDEV.S('II. Headline series'!N225:N255)","v":2.430899154412778},9.676059762225355,3.6227353777881737]
[{"$f":"'III. GDP shares, 1310-2018'!A239","v":1543},{"$f":"_xlfn.STDEV.S('II. Headline series'!M226:M256)","v":8.198417905091935},{"$f":"_xlfn.STDEV.S('II. Headline series'!P226:P256)","v":9.253047715518127},{"$f":"_xlfn.STDEV.S('II. Headline series'!K226:K256)","v":0.9056451429304534},{"$f":"_xlfn.STDEV.S('II. Headline series'!N226:N256)","v":2.584969322419414},9.05257204666697,3.5795580377943113]
[{"$f":"'III. GDP shares, 1310-2018'!A240","v":1544},{"$f":"_xlfn.STDEV.S('II. Headline series'!M227:M257)","v":7.970292278233041},{"$f":"_xlfn.STDEV.S('II. Headline series'!P227:P257)","v":9.219259802857795},{"$f":"_xlfn.STDEV.S('II. Headline series'!K227:K257)","v":0.9335987005264655},{"$f":"_xlfn.STDEV.S('II. Headline series'!N227:N257)","v":2.441769882951778},8.537171563904828,3.775646455149543]
[{"$f":"'III. GDP shares, 1310-2018'!A241","v":1545},{"$f":"_xlfn.STDEV.S('II. Headline series'!M228:M258)","v":7.911117978762828},{"$f":"_xlfn.STDEV.S('II. Headline series'!P228:P258)","v":8.867474863044654},{"$f":"_xlfn.STDEV.S('II. Headline series'!K228:K258)","v":0.9537562644930827},{"$f":"_xlfn.STDEV.S('II. Headline series'!N228:N258)","v":2.478467300831374},8.294695692476058,3.5778058722300514]
[{"$f":"'III. GDP shares, 1310-2018'!A242","v":1546},{"$f":"_xlfn.STDEV.S('II. Headline series'!M229:M259)","v":7.685108857782331},{"$f":"_xlfn.STDEV.S('II. Headline series'!P229:P259)","v":8.919376478288779},{"$f":"_xlfn.STDEV.S('II. Headline series'!K229:K259)","v":0.9657885587472933},{"$f":"_xlfn.STDEV.S('II. Headline series'!N229:N259)","v":2.4502245124254203},7.957340960583076,3.640228245639293]
[{"$f":"'III. GDP shares, 1310-2018'!A243","v":1547},{"$f":"_xlfn.STDEV.S('II. Headline series'!M230:M260)","v":7.681134276445195},{"$f":"_xlfn.STDEV.S('II. Headline series'!P230:P260)","v":8.920397681965095},{"$f":"_xlfn.STDEV.S('II. Headline series'!K230:K260)","v":0.9781865130700148},{"$f":"_xlfn.STDEV.S('II. Headline series'!N230:N260)","v":2.4095230755510473},7.8524230029896245,3.7021424581812896]
[{"$f":"'III. GDP shares, 1310-2018'!A244","v":1548},{"$f":"_xlfn.STDEV.S('II. Headline series'!M231:M261)","v":7.490421095055001},{"$f":"_xlfn.STDEV.S('II. Headline series'!P231:P261)","v":8.77836008334479},{"$f":"_xlfn.STDEV.S('II. Headline series'!K231:K261)","v":0.9914380646770353},{"$f":"_xlfn.STDEV.S('II. Headline series'!N231:N261)","v":2.355717307373304},7.555107436282501,3.726406413820904]
[{"$f":"'III. GDP shares, 1310-2018'!A245","v":1549},{"$f":"_xlfn.STDEV.S('II. Headline series'!M232:M262)","v":7.795089090561887},{"$f":"_xlfn.STDEV.S('II. Headline series'!P232:P262)","v":8.827318007299674},{"$f":"_xlfn.STDEV.S('II. Headline series'!K232:K262)","v":1.0058883327295087},{"$f":"_xlfn.STDEV.S('II. Headline series'!N232:N262)","v":2.2878828429851623},7.7494577051208795,3.8582910984122107]
[{"$f":"'III. GDP shares, 1310-2018'!A246","v":1550},{"$f":"_xlfn.STDEV.S('II. Headline series'!M233:M263)","v":7.706993368880332},{"$f":"_xlfn.STDEV.S('II. Headline series'!P233:P263)","v":8.816936256367407},{"$f":"_xlfn.STDEV.S('II. Headline series'!K233:K263)","v":1.032047352237968},{"$f":"_xlfn.STDEV.S('II. Headline series'!N233:N263)","v":2.2047251675699098},7.467674183910182,3.9991089982819052]
[{"$f":"'III. GDP shares, 1310-2018'!A247","v":1551},{"$f":"_xlfn.STDEV.S('II. Headline series'!M234:M264)","v":7.521605863020484},{"$f":"_xlfn.STDEV.S('II. Headline series'!P234:P264)","v":8.977476402717114},{"$f":"_xlfn.STDEV.S('II. Headline series'!K234:K264)","v":1.0327828578381615},{"$f":"_xlfn.STDEV.S('II. Headline series'!N234:N264)","v":2.1040248552233964},7.282853124387478,4.266811002935573]
[{"$f":"'III. GDP shares, 1310-2018'!A248","v":1552},{"$f":"_xlfn.STDEV.S('II. Headline series'!M235:M265)","v":7.598026507028383},{"$f":"_xlfn.STDEV.S('II. Headline series'!P235:P265)","v":8.98833258650701},{"$f":"_xlfn.STDEV.S('II. Headline series'!K235:K265)","v":0.9918420202448887},{"$f":"_xlfn.STDEV.S('II. Headline series'!N235:N265)","v":2.116254591164211},7.660520881291567,4.247283206867032]
[{"$f":"'III. GDP shares, 1310-2018'!A249","v":1553},{"$f":"_xlfn.STDEV.S('II. Headline series'!M236:M266)","v":7.561358950455825},{"$f":"_xlfn.STDEV.S('II. Headline series'!P236:P266)","v":8.90045748755113},{"$f":"_xlfn.STDEV.S('II. Headline series'!K236:K266)","v":0.9596165304010833},{"$f":"_xlfn.STDEV.S('II. Headline series'!N236:N266)","v":2.1276864486234515},7.879563045142068,4.183162182242339]
[{"$f":"'III. GDP shares, 1310-2018'!A250","v":1554},{"$f":"_xlfn.STDEV.S('II. Headline series'!M237:M267)","v":7.539349792292963},{"$f":"_xlfn.STDEV.S('II. Headline series'!P237:P267)","v":8.897159145508347},{"$f":"_xlfn.STDEV.S('II. Headline series'!K237:K267)","v":0.9471351615150844},{"$f":"_xlfn.STDEV.S('II. Headline series'!N237:N267)","v":2.138333224381692},7.96016249701114,4.160791706391317]
[{"$f":"'III. GDP shares, 1310-2018'!A251","v":1555},{"$f":"_xlfn.STDEV.S('II. Headline series'!M238:M268)","v":6.871484239349158},{"$f":"_xlfn.STDEV.S('II. Headline series'!P238:P268)","v":8.771669145393837},{"$f":"_xlfn.STDEV.S('II. Headline series'!K238:K268)","v":0.9420109920487139},{"$f":"_xlfn.STDEV.S('II. Headline series'!N238:N268)","v":2.146904786265635},7.294484138029905,4.085728068384177]
[{"$f":"'III. GDP shares, 1310-2018'!A252","v":1556},{"$f":"_xlfn.STDEV.S('II. Headline series'!M239:M269)","v":6.638211664809376},{"$f":"_xlfn.STDEV.S('II. Headline series'!P239:P269)","v":8.915189262888074},{"$f":"_xlfn.STDEV.S('II. Headline series'!K239:K269)","v":0.9246817294519488},{"$f":"_xlfn.STDEV.S('II. Headline series'!N239:N269)","v":2.150077805543892},7.17891513736709,4.146449602847211]
[{"$f":"'III. GDP shares, 1310-2018'!A253","v":1557},{"$f":"_xlfn.STDEV.S('II. Headline series'!M240:M270)","v":6.019191012747825},{"$f":"_xlfn.STDEV.S('II. Headline series'!P240:P270)","v":8.464811631974358},{"$f":"_xlfn.STDEV.S('II. Headline series'!K240:K270)","v":0.886442995487249},{"$f":"_xlfn.STDEV.S('II. Headline series'!N240:N270)","v":2.1532261741371284},6.7902742120933235,3.931222708346697]
[{"$f":"'III. GDP shares, 1310-2018'!A254","v":1558},{"$f":"_xlfn.STDEV.S('II. Headline series'!M241:M271)","v":5.976515918197793},{"$f":"_xlfn.STDEV.S('II. Headline series'!P241:P271)","v":8.4606947939687},{"$f":"_xlfn.STDEV.S('II. Headline series'!K241:K271)","v":0.8413091135728687},{"$f":"_xlfn.STDEV.S('II. Headline series'!N241:N271)","v":2.1563500000186893},7.1038288089103725,3.923618519208557]
[{"$f":"'III. GDP shares, 1310-2018'!A255","v":1559},{"$f":"_xlfn.STDEV.S('II. Headline series'!M242:M272)","v":5.926682435765094},{"$f":"_xlfn.STDEV.S('II. Headline series'!P242:P272)","v":8.298291706281832},{"$f":"_xlfn.STDEV.S('II. Headline series'!K242:K272)","v":0.8252175757870814},{"$f":"_xlfn.STDEV.S('II. Headline series'!N242:N272)","v":2.16894904187178},7.181963411421895,3.825950516163577]
[{"$f":"'III. GDP shares, 1310-2018'!A256","v":1560},{"$f":"_xlfn.STDEV.S('II. Headline series'!M243:M273)","v":6.333516016004969},{"$f":"_xlfn.STDEV.S('II. Headline series'!P243:P273)","v":8.26400461826221},{"$f":"_xlfn.STDEV.S('II. Headline series'!K243:K273)","v":0.8166833958591985},{"$f":"_xlfn.STDEV.S('II. Headline series'!N243:N273)","v":2.173712979737556},7.755166871418687,3.8017920007359787]
[{"$f":"'III. GDP shares, 1310-2018'!A257","v":1561},{"$f":"_xlfn.STDEV.S('II. Headline series'!M244:M274)","v":6.268454395113663},{"$f":"_xlfn.STDEV.S('II. Headline series'!P244:P274)","v":8.126407899612245},{"$f":"_xlfn.STDEV.S('II. Headline series'!K244:K274)","v":0.7875417005184127},{"$f":"_xlfn.STDEV.S('II. Headline series'!N244:N274)","v":2.1703639628372815},7.959520608226011,3.744260427632941]
[{"$f":"'III. GDP shares, 1310-2018'!A258","v":1562},{"$f":"_xlfn.STDEV.S('II. Headline series'!M245:M275)","v":6.2952389390120045},{"$f":"_xlfn.STDEV.S('II. Headline series'!P245:P275)","v":8.000987271282645},{"$f":"_xlfn.STDEV.S('II. Headline series'!K245:K275)","v":0.7986060284611048},{"$f":"_xlfn.STDEV.S('II. Headline series'!N245:N275)","v":2.09911557156714},7.882784144696206,3.8115992180979985]
[{"$f":"'III. GDP shares, 1310-2018'!A259","v":1563},{"$f":"_xlfn.STDEV.S('II. Headline series'!M246:M276)","v":6.065426813975741},{"$f":"_xlfn.STDEV.S('II. Headline series'!P246:P276)","v":7.562262777840291},{"$f":"_xlfn.STDEV.S('II. Headline series'!K246:K276)","v":0.8147597345303527},{"$f":"_xlfn.STDEV.S('II. Headline series'!N246:N276)","v":2.063123779898519},7.444436141007877,3.6654430778807967]
[{"$f":"'III. GDP shares, 1310-2018'!A260","v":1564},{"$f":"_xlfn.STDEV.S('II. Headline series'!M247:M277)","v":6.093776311606815},{"$f":"_xlfn.STDEV.S('II. Headline series'!P247:P277)","v":7.514945495020123},{"$f":"_xlfn.STDEV.S('II. Headline series'!K247:K277)","v":0.8281625641811701},{"$f":"_xlfn.STDEV.S('II. Headline series'!N247:N277)","v":2.053684375976255},7.358188567279566,3.659250458799328]
[{"$f":"'III. GDP shares, 1310-2018'!A261","v":1565},{"$f":"_xlfn.STDEV.S('II. Headline series'!M248:M278)","v":5.853074916242459},{"$f":"_xlfn.STDEV.S('II. Headline series'!P248:P278)","v":7.484535582349316},{"$f":"_xlfn.STDEV.S('II. Headline series'!K248:K278)","v":0.8252893276875339},{"$f":"_xlfn.STDEV.S('II. Headline series'!N248:N278)","v":2.0616541667374166},7.092149043830257,3.63035454883961]
[{"$f":"'III. GDP shares, 1310-2018'!A262","v":1566},{"$f":"_xlfn.STDEV.S('II. Headline series'!M249:M279)","v":5.780314407861106},{"$f":"_xlfn.STDEV.S('II. Headline series'!P249:P279)","v":7.576950684434557},{"$f":"_xlfn.STDEV.S('II. Headline series'!K249:K279)","v":0.8053259273889773},{"$f":"_xlfn.STDEV.S('II. Headline series'!N249:N279)","v":2.059053219635245},7.177608731165536,3.6798226544998145]
[{"$f":"'III. GDP shares, 1310-2018'!A263","v":1567},{"$f":"_xlfn.STDEV.S('II. Headline series'!M250:M280)","v":5.746317774372378},{"$f":"_xlfn.STDEV.S('II. Headline series'!P250:P280)","v":7.79165348847461},{"$f":"_xlfn.STDEV.S('II. Headline series'!K250:K280)","v":0.7971691541574701},{"$f":"_xlfn.STDEV.S('II. Headline series'!N250:N280)","v":2.054886609644086},7.208404570602928,3.791768096549207]
[{"$f":"'III. GDP shares, 1310-2018'!A264","v":1568},{"$f":"_xlfn.STDEV.S('II. Headline series'!M251:M281)","v":5.7344996143839735},{"$f":"_xlfn.STDEV.S('II. Headline series'!P251:P281)","v":7.8395382259746285},{"$f":"_xlfn.STDEV.S('II. Headline series'!K251:K281)","v":0.8055893988506142},{"$f":"_xlfn.STDEV.S('II. Headline series'!N251:N281)","v":2.0490117077495156},7.118390116063779,3.8260094836573693]
[{"$f":"'III. GDP shares, 1310-2018'!A265","v":1569},{"$f":"_xlfn.STDEV.S('II. Headline series'!M252:M282)","v":5.639477146633541},{"$f":"_xlfn.STDEV.S('II. Headline series'!P252:P282)","v":7.857987154420874},{"$f":"_xlfn.STDEV.S('II. Headline series'!K252:K282)","v":0.8183577612615143},{"$f":"_xlfn.STDEV.S('II. Headline series'!N252:N282)","v":2.055767444276274},6.891212393391587,3.8224105437116953]
[{"$f":"'III. GDP shares, 1310-2018'!A266","v":1570},{"$f":"_xlfn.STDEV.S('II. Headline series'!M253:M283)","v":5.465378224786992},{"$f":"_xlfn.STDEV.S('II. Headline series'!P253:P283)","v":8.1660733208428},{"$f":"_xlfn.STDEV.S('II. Headline series'!K253:K283)","v":0.8309174455818172},{"$f":"_xlfn.STDEV.S('II. Headline series'!N253:N283)","v":2.062563808071293},6.577522537103642,3.959185790464786]
[{"$f":"'III. GDP shares, 1310-2018'!A267","v":1571},{"$f":"_xlfn.STDEV.S('II. Headline series'!M254:M284)","v":6.105363513021861},{"$f":"_xlfn.STDEV.S('II. Headline series'!P254:P284)","v":8.256602668303119},{"$f":"_xlfn.STDEV.S('II. Headline series'!K254:K284)","v":0.8367889924674572},{"$f":"_xlfn.STDEV.S('II. Headline series'!N254:N284)","v":2.0581505425779607},7.296180480360823,4.011661196542607]
[{"$f":"'III. GDP shares, 1310-2018'!A268","v":1572},{"$f":"_xlfn.STDEV.S('II. Headline series'!M255:M285)","v":6.129146033748298},{"$f":"_xlfn.STDEV.S('II. Headline series'!P255:P285)","v":8.104038178845794},{"$f":"_xlfn.STDEV.S('II. Headline series'!K255:K285)","v":0.8443533436689323},{"$f":"_xlfn.STDEV.S('II. Headline series'!N255:N285)","v":1.878773850892035},7.258982367637206,4.313471882205528]
[{"$f":"'III. GDP shares, 1310-2018'!A269","v":1573},{"$f":"_xlfn.STDEV.S('II. Headline series'!M256:M286)","v":6.496996619067525},{"$f":"_xlfn.STDEV.S('II. Headline series'!P256:P286)","v":7.51633036978386},{"$f":"_xlfn.STDEV.S('II. Headline series'!K256:K286)","v":0.8044606323269634},{"$f":"_xlfn.STDEV.S('II. Headline series'!N256:N286)","v":1.538311670533293},8.076214494517238,4.886090714749725]
[{"$f":"'III. GDP shares, 1310-2018'!A270","v":1574},{"$f":"_xlfn.STDEV.S('II. Headline series'!M257:M287)","v":6.332005237121791},{"$f":"_xlfn.STDEV.S('II. Headline series'!P257:P287)","v":6.833474623366987},{"$f":"_xlfn.STDEV.S('II. Headline series'!K257:K287)","v":0.7233006444047451},{"$f":"_xlfn.STDEV.S('II. Headline series'!N257:N287)","v":0.7954651036863942},8.754319916765516,8.590539788230648]
[{"$f":"'III. GDP shares, 1310-2018'!A271","v":1575},{"$f":"_xlfn.STDEV.S('II. Headline series'!M258:M288)","v":6.731114510315557},{"$f":"_xlfn.STDEV.S('II. Headline series'!P258:P288)","v":6.519701797108463},{"$f":"_xlfn.STDEV.S('II. Headline series'!K258:K288)","v":0.6570978087319622},{"$f":"_xlfn.STDEV.S('II. Headline series'!N258:N288)","v":0.3892557000224919},10.243702567362016,16.74914920123647]
[{"$f":"'III. GDP shares, 1310-2018'!A272","v":1576},{"$f":"_xlfn.STDEV.S('II. Headline series'!M259:M289)","v":6.814089821985392},{"$f":"_xlfn.STDEV.S('II. Headline series'!P259:P289)","v":6.5397934691472805},{"$f":"_xlfn.STDEV.S('II. Headline series'!K259:K289)","v":0.6321805133213818},{"$f":"_xlfn.STDEV.S('II. Headline series'!N259:N289)","v":0.4006639650670198},10.778709052870333,16.322389931056957]
[{"$f":"'III. GDP shares, 1310-2018'!A273","v":1577},{"$f":"_xlfn.STDEV.S('II. Headline series'!M260:M290)","v":7.001616553713217},{"$f":"_xlfn.STDEV.S('II. Headline series'!P260:P290)","v":6.627385310992105},{"$f":"_xlfn.STDEV.S('II. Headline series'!K260:K290)","v":0.6226573317009856},{"$f":"_xlfn.STDEV.S('II. Headline series'!N260:N290)","v":0.40929180903877943},11.244734779860513,16.192323336634807]
[{"$f":"'III. GDP shares, 1310-2018'!A274","v":1578},{"$f":"_xlfn.STDEV.S('II. Headline series'!M261:M291)","v":7.017275234940452},{"$f":"_xlfn.STDEV.S('II. Headline series'!P261:P291)","v":6.580908979790551},{"$f":"_xlfn.STDEV.S('II. Headline series'!K261:K291)","v":0.5905072293640328},{"$f":"_xlfn.STDEV.S('II. Headline series'!N261:N291)","v":0.41531255233743236},11.883470491119896,15.845678014671963]
[{"$f":"'III. GDP shares, 1310-2018'!A275","v":1579},{"$f":"_xlfn.STDEV.S('II. Headline series'!M262:M292)","v":7.024737413290519},{"$f":"_xlfn.STDEV.S('II. Headline series'!P262:P292)","v":6.752845901546548},{"$f":"_xlfn.STDEV.S('II. Headline series'!K262:K292)","v":0.5535182749974134},{"$f":"_xlfn.STDEV.S('II. Headline series'!N262:N292)","v":0.4188386401128877},12.691066818567727,16.122786330617643]
[{"$f":"'III. GDP shares, 1310-2018'!A276","v":1580},{"$f":"_xlfn.STDEV.S('II. Headline series'!M263:M293)","v":6.57593180768219},{"$f":"_xlfn.STDEV.S('II. Headline series'!P263:P293)","v":7.396526816882746},{"$f":"_xlfn.STDEV.S('II. Headline series'!K263:K293)","v":0.49233568414528694},{"$f":"_xlfn.STDEV.S('II. Headline series'!N263:N293)","v":0.4201257492243134},13.356602049063847,17.605506995320095]
[{"$f":"'III. GDP shares, 1310-2018'!A277","v":1581},{"$f":"_xlfn.STDEV.S('II. Headline series'!M264:M294)","v":6.533541779531208},{"$f":"_xlfn.STDEV.S('II. Headline series'!P264:P294)","v":7.32035829568436},{"$f":"_xlfn.STDEV.S('II. Headline series'!K264:K294)","v":0.3776031554705311},{"$f":"_xlfn.STDEV.S('II. Headline series'!N264:N294)","v":0.4191589761794781},17.302667323819804,17.46439587768695]
[{"$f":"'III. GDP shares, 1310-2018'!A278","v":1582},{"$f":"_xlfn.STDEV.S('II. Headline series'!M265:M295)","v":6.402822771199436},{"$f":"_xlfn.STDEV.S('II. Headline series'!P265:P295)","v":7.0185674902271415},{"$f":"_xlfn.STDEV.S('II. Headline series'!K265:K295)","v":0.28279592030192585},{"$f":"_xlfn.STDEV.S('II. Headline series'!N265:N295)","v":0.41498743341512584},22.641142645776114,16.912722952760436]
[{"$f":"'III. GDP shares, 1310-2018'!A279","v":1583},{"$f":"_xlfn.STDEV.S('II. Headline series'!M266:M296)","v":6.313080229216165},{"$f":"_xlfn.STDEV.S('II. Headline series'!P266:P296)","v":7.36147312188425},{"$f":"_xlfn.STDEV.S('II. Headline series'!K266:K296)","v":0.2859729865980922},{"$f":"_xlfn.STDEV.S('II. Headline series'!N266:N296)","v":0.40828615044495636},22.075792207914372,18.030180827494654]
[{"$f":"'III. GDP shares, 1310-2018'!A280","v":1584},{"$f":"_xlfn.STDEV.S('II. Headline series'!M267:M297)","v":6.45770357572997},{"$f":"_xlfn.STDEV.S('II. Headline series'!P267:P297)","v":7.242658300217899},{"$f":"_xlfn.STDEV.S('II. Headline series'!K267:K297)","v":0.28384335278343975},{"$f":"_xlfn.STDEV.S('II. Headline series'!N267:N297)","v":0.4348771578483489},22.750941716281513,16.654492353777687]
[{"$f":"'III. GDP shares, 1310-2018'!A281","v":1585},{"$f":"_xlfn.STDEV.S('II. Headline series'!M268:M298)","v":6.473279519391343},{"$f":"_xlfn.STDEV.S('II. Headline series'!P268:P298)","v":7.389876661725526},{"$f":"_xlfn.STDEV.S('II. Headline series'!K268:K298)","v":0.2773489564100786},{"$f":"_xlfn.STDEV.S('II. Headline series'!N268:N298)","v":0.47299149176675415},23.339837305247237,15.623698925581708]
[{"$f":"'III. GDP shares, 1310-2018'!A282","v":1586},{"$f":"_xlfn.STDEV.S('II. Headline series'!M269:M299)","v":6.3629792135765735},{"$f":"_xlfn.STDEV.S('II. Headline series'!P269:P299)","v":7.565697305634524},{"$f":"_xlfn.STDEV.S('II. Headline series'!K269:K299)","v":0.27571161095706287},{"$f":"_xlfn.STDEV.S('II. Headline series'!N269:N299)","v":0.5055805748108991},{"$f":"B280/D280","v":23.078386838657632},{"$f":"C280/E280","v":14.96437498308613}]
[{"$f":"'III. GDP shares, 1310-2018'!A283","v":1587},{"$f":"_xlfn.STDEV.S('II. Headline series'!M270:M300)","v":6.346071644931918},{"$f":"_xlfn.STDEV.S('II. Headline series'!P270:P300)","v":7.31418176297789},{"$f":"_xlfn.STDEV.S('II. Headline series'!K270:K300)","v":0.2602815524925471},{"$f":"_xlfn.STDEV.S('II. Headline series'!N270:N300)","v":0.5337848711005262},24.38156520951915,13.702489821223185]
[{"$f":"'III. GDP shares, 1310-2018'!A284","v":1588},{"$f":"_xlfn.STDEV.S('II. Headline series'!M271:M301)","v":6.361560494636101},{"$f":"_xlfn.STDEV.S('II. Headline series'!P271:P301)","v":7.333371442087187},{"$f":"_xlfn.STDEV.S('II. Headline series'!K271:K301)","v":0.2638714148793393},{"$f":"_xlfn.STDEV.S('II. Headline series'!N271:N301)","v":0.5583870396034669},24.108562488835926,13.133133332204324]
[{"$f":"'III. GDP shares, 1310-2018'!A285","v":1589},{"$f":"_xlfn.STDEV.S('II. Headline series'!M272:M302)","v":6.294771188932913},{"$f":"_xlfn.STDEV.S('II. Headline series'!P272:P302)","v":7.215516548157711},{"$f":"_xlfn.STDEV.S('II. Headline series'!K272:K302)","v":0.3454489236568956},{"$f":"_xlfn.STDEV.S('II. Headline series'!N272:N302)","v":0.5799552621438265},18.222002611260013,12.441505438687257]
[{"$f":"'III. GDP shares, 1310-2018'!A286","v":1590},{"$f":"_xlfn.STDEV.S('II. Headline series'!M273:M303)","v":6.302396497239938},{"$f":"_xlfn.STDEV.S('II. Headline series'!P273:P303)","v":7.297025016942397},{"$f":"_xlfn.STDEV.S('II. Headline series'!K273:K303)","v":0.42202542543139426},{"$f":"_xlfn.STDEV.S('II. Headline series'!N273:N303)","v":0.5777431099036443},14.933689103678127,12.630224215325374]
[{"$f":"'III. GDP shares, 1310-2018'!A287","v":1591},{"$f":"_xlfn.STDEV.S('II. Headline series'!M274:M304)","v":5.9126782174106065},{"$f":"_xlfn.STDEV.S('II. Headline series'!P274:P304)","v":7.39550455581853},{"$f":"_xlfn.STDEV.S('II. Headline series'!K274:K304)","v":0.43946763631387364},{"$f":"_xlfn.STDEV.S('II. Headline series'!N274:N304)","v":0.5783604426092016},13.454183491199549,12.787016557450965]
[{"$f":"'III. GDP shares, 1310-2018'!A288","v":1592},{"$f":"_xlfn.STDEV.S('II. Headline series'!M275:M305)","v":5.9158694847879625},{"$f":"_xlfn.STDEV.S('II. Headline series'!P275:P305)","v":7.2636876621694055},{"$f":"_xlfn.STDEV.S('II. Headline series'!K275:K305)","v":0.49010449946056084},{"$f":"_xlfn.STDEV.S('II. Headline series'!N275:N305)","v":0.5786471933982068},12.070628797122517,12.552878066360488]
[{"$f":"'III. GDP shares, 1310-2018'!A289","v":1593},{"$f":"_xlfn.STDEV.S('II. Headline series'!M276:M306)","v":5.867089662733279},{"$f":"_xlfn.STDEV.S('II. Headline series'!P276:P306)","v":7.679430941373439},{"$f":"_xlfn.STDEV.S('II. Headline series'!K276:K306)","v":0.5285209804021512},{"$f":"_xlfn.STDEV.S('II. Headline series'!N276:N306)","v":0.5786471933982068},11.100958864999106,13.271352611726392]
[{"$f":"'III. GDP shares, 1310-2018'!A290","v":1594},{"$f":"_xlfn.STDEV.S('II. Headline series'!M277:M307)","v":5.889154301431483},{"$f":"_xlfn.STDEV.S('II. Headline series'!P277:P307)","v":7.525164628063526},{"$f":"_xlfn.STDEV.S('II. Headline series'!K277:K307)","v":0.5656684617246841},{"$f":"_xlfn.STDEV.S('II. Headline series'!N277:N307)","v":0.5783999749118113},10.410964548873483,13.010312853507452]
[{"$f":"'III. GDP shares, 1310-2018'!A291","v":1595},{"$f":"_xlfn.STDEV.S('II. Headline series'!M278:M308)","v":5.864486526521523},{"$f":"_xlfn.STDEV.S('II. Headline series'!P278:P308)","v":7.603940783806688},{"$f":"_xlfn.STDEV.S('II. Headline series'!K278:K308)","v":0.597879594368948},{"$f":"_xlfn.STDEV.S('II. Headline series'!N278:N308)","v":0.5791249914621087},9.80880863263345,13.130051190864904]
[{"$f":"'III. GDP shares, 1310-2018'!A292","v":1596},{"$f":"_xlfn.STDEV.S('II. Headline series'!M279:M309)","v":5.865571633761005},{"$f":"_xlfn.STDEV.S('II. Headline series'!P279:P309)","v":7.5939685936597225},{"$f":"_xlfn.STDEV.S('II. Headline series'!K279:K309)","v":0.622023739859214},{"$f":"_xlfn.STDEV.S('II. Headline series'!N279:N309)","v":0.5781701760246271},9.429819567800726,13.134486883903639]
[{"$f":"'III. GDP shares, 1310-2018'!A293","v":1597},{"$f":"_xlfn.STDEV.S('II. Headline series'!M280:M310)","v":5.808815988942632},{"$f":"_xlfn.STDEV.S('II. Headline series'!P280:P310)","v":7.503286172793094},{"$f":"_xlfn.STDEV.S('II. Headline series'!K280:K310)","v":0.6396229211867647},{"$f":"_xlfn.STDEV.S('II. Headline series'!N280:N310)","v":0.5770949798817749},9.081625746251994,13.001821943296466]
[{"$f":"'III. GDP shares, 1310-2018'!A294","v":1598},{"$f":"_xlfn.STDEV.S('II. Headline series'!M281:M311)","v":5.850885298366605},{"$f":"_xlfn.STDEV.S('II. Headline series'!P281:P311)","v":7.204092188660543},{"$f":"_xlfn.STDEV.S('II. Headline series'!K281:K311)","v":0.6401336812653707},{"$f":"_xlfn.STDEV.S('II. Headline series'!N281:N311)","v":0.5759157273204207},9.140099122422352,12.508934635591956]
[{"$f":"'III. GDP shares, 1310-2018'!A295","v":1599},{"$f":"_xlfn.STDEV.S('II. Headline series'!M282:M312)","v":5.866541848423482},{"$f":"_xlfn.STDEV.S('II. Headline series'!P282:P312)","v":7.18843679910133},{"$f":"_xlfn.STDEV.S('II. Headline series'!K282:K312)","v":0.6294314778238033},{"$f":"_xlfn.STDEV.S('II. Headline series'!N282:N312)","v":0.5746449631614996},9.320382051286135,12.509353183142883]
[{"$f":"'III. GDP shares, 1310-2018'!A296","v":1600},{"$f":"_xlfn.STDEV.S('II. Headline series'!M283:M313)","v":5.851136317957645},{"$f":"_xlfn.STDEV.S('II. Headline series'!P283:P313)","v":7.178723445372856},{"$f":"_xlfn.STDEV.S('II. Headline series'!K283:K313)","v":0.6253194743947388},{"$f":"_xlfn.STDEV.S('II. Headline series'!N283:N313)","v":0.5703956129244516},9.357035175693346,12.585516583073144]
[{"$f":"'III. GDP shares, 1310-2018'!A297","v":1601},{"$f":"_xlfn.STDEV.S('II. Headline series'!M284:M314)","v":5.826258577194487},{"$f":"_xlfn.STDEV.S('II. Headline series'!P284:P314)","v":6.891970868375204},{"$f":"_xlfn.STDEV.S('II. Headline series'!K284:K314)","v":0.6232399729594298},{"$f":"_xlfn.STDEV.S('II. Headline series'!N284:N314)","v":0.5659594348760735},9.348339050733113,12.177499735266927]
[{"$f":"'III. GDP shares, 1310-2018'!A298","v":1602},{"$f":"_xlfn.STDEV.S('II. Headline series'!M285:M315)","v":5.037596509030364},{"$f":"_xlfn.STDEV.S('II. Headline series'!P285:P315)","v":6.81046079383361},{"$f":"_xlfn.STDEV.S('II. Headline series'!K285:K315)","v":0.6125567024457874},{"$f":"_xlfn.STDEV.S('II. Headline series'!N285:N315)","v":0.561422464785709},8.223886031964858,12.130723690283956]
[{"$f":"'III. GDP shares, 1310-2018'!A299","v":1603},{"$f":"_xlfn.STDEV.S('II. Headline series'!M286:M316)","v":5.005432916757745},{"$f":"_xlfn.STDEV.S('II. Headline series'!P286:P316)","v":6.88133284184606},{"$f":"_xlfn.STDEV.S('II. Headline series'!K286:K316)","v":0.6029638790299284},{"$f":"_xlfn.STDEV.S('II. Headline series'!N286:N316)","v":0.556869469600959},8.301381045927128,12.357173839638003]
[{"$f":"'III. GDP shares, 1310-2018'!A300","v":1604},{"$f":"_xlfn.STDEV.S('II. Headline series'!M287:M317)","v":4.425973116847443},{"$f":"_xlfn.STDEV.S('II. Headline series'!P287:P317)","v":6.891093702973822},{"$f":"_xlfn.STDEV.S('II. Headline series'!K287:K317)","v":0.5950028548702507},{"$f":"_xlfn.STDEV.S('II. Headline series'!N287:N317)","v":0.5523839859460823},7.438574589381747,12.475187330369957]
[{"$f":"'III. GDP shares, 1310-2018'!A301","v":1605},{"$f":"_xlfn.STDEV.S('II. Headline series'!M288:M318)","v":4.189764082597871},{"$f":"_xlfn.STDEV.S('II. Headline series'!P288:P318)","v":6.791120174264619},{"$f":"_xlfn.STDEV.S('II. Headline series'!K288:K318)","v":0.5583493248278573},{"$f":"_xlfn.STDEV.S('II. Headline series'!N288:N318)","v":0.54804823071489},7.503840152201496,12.391464461815861]
[{"$f":"'III. GDP shares, 1310-2018'!A302","v":1606},{"$f":"_xlfn.STDEV.S('II. Headline series'!M289:M319)","v":4.289623274598686},{"$f":"_xlfn.STDEV.S('II. Headline series'!P289:P319)","v":6.804373768411473},{"$f":"_xlfn.STDEV.S('II. Headline series'!K289:K319)","v":0.5438314931112856},{"$f":"_xlfn.STDEV.S('II. Headline series'!N289:N319)","v":0.5439428834751514},7.8877801836328905,12.509353417659545]
[{"$f":"'III. GDP shares, 1310-2018'!A303","v":1607},{"$f":"_xlfn.STDEV.S('II. Headline series'!M290:M320)","v":4.871572945482066},{"$f":"_xlfn.STDEV.S('II. Headline series'!P290:P320)","v":7.680912908533855},{"$f":"_xlfn.STDEV.S('II. Headline series'!K290:K320)","v":0.5258097751777073},{"$f":"_xlfn.STDEV.S('II. Headline series'!N290:N320)","v":0.5401467420189728},9.264896119201333,14.220048573881911]
[{"$f":"'III. GDP shares, 1310-2018'!A304","v":1608},{"$f":"_xlfn.STDEV.S('II. Headline series'!M291:M321)","v":4.576120714589145},{"$f":"_xlfn.STDEV.S('II. Headline series'!P291:P321)","v":7.67833428590001},{"$f":"_xlfn.STDEV.S('II. Headline series'!K291:K321)","v":0.5252676285017206},{"$f":"_xlfn.STDEV.S('II. Headline series'!N291:N321)","v":0.5367362556772081},8.711979315462717,14.305600198764553]
[{"$f":"'III. GDP shares, 1310-2018'!A305","v":1609},{"$f":"_xlfn.STDEV.S('II. Headline series'!M292:M322)","v":4.7175995659674586},{"$f":"_xlfn.STDEV.S('II. Headline series'!P292:P322)","v":7.666801645201031},{"$f":"_xlfn.STDEV.S('II. Headline series'!K292:K322)","v":0.5156788986322511},{"$f":"_xlfn.STDEV.S('II. Headline series'!N292:N322)","v":0.5337849458991277},9.148327725800053,14.363090799210864]
[{"$f":"'III. GDP shares, 1310-2018'!A306","v":1610},{"$f":"_xlfn.STDEV.S('II. Headline series'!M293:M323)","v":4.702583601889834},{"$f":"_xlfn.STDEV.S('II. Headline series'!P293:P323)","v":7.47958406856516},{"$f":"_xlfn.STDEV.S('II. Headline series'!K293:K323)","v":0.4933691333791774},{"$f":"_xlfn.STDEV.S('II. Headline series'!N293:N323)","v":0.5313627298459124},9.531572373976783,14.07623013140973]
[{"$f":"'III. GDP shares, 1310-2018'!A307","v":1611},{"$f":"_xlfn.STDEV.S('II. Headline series'!M294:M324)","v":4.877227734355623},{"$f":"_xlfn.STDEV.S('II. Headline series'!P294:P324)","v":6.784905831432811},{"$f":"_xlfn.STDEV.S('II. Headline series'!K294:K324)","v":0.48469322630217765},{"$f":"_xlfn.STDEV.S('II. Headline series'!N294:N324)","v":0.5293897089117711},10.062504424839968,12.816467183278007]
[{"$f":"'III. GDP shares, 1310-2018'!A308","v":1612},{"$f":"_xlfn.STDEV.S('II. Headline series'!M295:M325)","v":5.033159004378953},{"$f":"_xlfn.STDEV.S('II. Headline series'!P295:P325)","v":6.784376137063373},{"$f":"_xlfn.STDEV.S('II. Headline series'!K295:K325)","v":0.4962488550823503},{"$f":"_xlfn.STDEV.S('II. Headline series'!N295:N325)","v":0.5279221808696828},10.142409302977077,12.851091283732387]
[{"$f":"'III. GDP shares, 1310-2018'!A309","v":1613},{"$f":"_xlfn.STDEV.S('II. Headline series'!M296:M326)","v":5.023607346290972},{"$f":"_xlfn.STDEV.S('II. Headline series'!P296:P326)","v":6.88434519628569},{"$f":"_xlfn.STDEV.S('II. Headline series'!K296:K326)","v":0.493867977173432},{"$f":"_xlfn.STDEV.S('II. Headline series'!N296:N326)","v":0.5270129694865873},10.171964124992918,13.062952137577136]
[{"$f":"'III. GDP shares, 1310-2018'!A310","v":1614},{"$f":"_xlfn.STDEV.S('II. Headline series'!M297:M327)","v":4.962040618857772},{"$f":"_xlfn.STDEV.S('II. Headline series'!P297:P327)","v":6.774269767594518},{"$f":"_xlfn.STDEV.S('II. Headline series'!K297:K327)","v":0.5010192524883147},{"$f":"_xlfn.STDEV.S('II. Headline series'!N297:N327)","v":0.5267108444224993},9.90389210437278,12.861458690910418]
[{"$f":"'III. GDP shares, 1310-2018'!A311","v":1615},{"$f":"_xlfn.STDEV.S('II. Headline series'!M298:M328)","v":4.744462013636767},{"$f":"_xlfn.STDEV.S('II. Headline series'!P298:P328)","v":7.0248490663997},{"$f":"_xlfn.STDEV.S('II. Headline series'!K298:K328)","v":0.5046892134938001},{"$f":"_xlfn.STDEV.S('II. Headline series'!N298:N328)","v":0.4921299124770186},9.400759688903179,14.274379362639829]
[{"$f":"'III. GDP shares, 1310-2018'!A312","v":1616},{"$f":"_xlfn.STDEV.S('II. Headline series'!M299:M329)","v":4.822032997625908},{"$f":"_xlfn.STDEV.S('II. Headline series'!P299:P329)","v":6.880410205220233},{"$f":"_xlfn.STDEV.S('II. Headline series'!K299:K329)","v":0.5080126218992197},{"$f":"_xlfn.STDEV.S('II. Headline series'!N299:N329)","v":0.47731869570844937},9.491955100640217,14.414709222751355]
[{"$f":"'III. GDP shares, 1310-2018'!A313","v":1617},{"$f":"_xlfn.STDEV.S('II. Headline series'!M300:M330)","v":4.877246653014916},{"$f":"_xlfn.STDEV.S('II. Headline series'!P300:P330)","v":7.419997767528505},{"$f":"_xlfn.STDEV.S('II. Headline series'!K300:K330)","v":0.5218389875578557},{"$f":"_xlfn.STDEV.S('II. Headline series'!N300:N330)","v":0.45662899668923046},9.34626727650199,16.249510699773538]
[{"$f":"'III. GDP shares, 1310-2018'!A314","v":1618},{"$f":"_xlfn.STDEV.S('II. Headline series'!M301:M331)","v":4.924029850347025},{"$f":"_xlfn.STDEV.S('II. Headline series'!P301:P331)","v":7.399686062707656},{"$f":"_xlfn.STDEV.S('II. Headline series'!K301:K331)","v":0.5448905035507523},{"$f":"_xlfn.STDEV.S('II. Headline series'!N301:N331)","v":0.42921155714686005},9.036732734851912,17.24018363320949]
[{"$f":"'III. GDP shares, 1310-2018'!A315","v":1619},{"$f":"_xlfn.STDEV.S('II. Headline series'!M302:M332)","v":4.8965300690486195},{"$f":"_xlfn.STDEV.S('II. Headline series'!P302:P332)","v":7.429276060209027},{"$f":"_xlfn.STDEV.S('II. Headline series'!K302:K332)","v":0.5479158382934244},{"$f":"_xlfn.STDEV.S('II. Headline series'!N302:N332)","v":0.3936631780924808},8.936646336597391,18.872164006316368]
[{"$f":"'III. GDP shares, 1310-2018'!A316","v":1620},{"$f":"_xlfn.STDEV.S('II. Headline series'!M303:M333)","v":4.8819312545341385},{"$f":"_xlfn.STDEV.S('II. Headline series'!P303:P333)","v":7.511800112482105},{"$f":"_xlfn.STDEV.S('II. Headline series'!K303:K333)","v":0.584705944921547},{"$f":"_xlfn.STDEV.S('II. Headline series'!N303:N333)","v":0.3474974123784708},8.349378515707022,21.6168519387441]
[{"$f":"'III. GDP shares, 1310-2018'!A317","v":1621},{"$f":"_xlfn.STDEV.S('II. Headline series'!M304:M334)","v":4.894129150828038},{"$f":"_xlfn.STDEV.S('II. Headline series'!P304:P334)","v":7.411641355642416},{"$f":"_xlfn.STDEV.S('II. Headline series'!K304:K334)","v":0.5876471383971017},{"$f":"_xlfn.STDEV.S('II. Headline series'!N304:N334)","v":0.3579544167945385},8.328346776566514,20.705545197663]
[{"$f":"'III. GDP shares, 1310-2018'!A318","v":1622},{"$f":"_xlfn.STDEV.S('II. Headline series'!M305:M335)","v":4.935646993383597},{"$f":"_xlfn.STDEV.S('II. Headline series'!P305:P335)","v":7.4483900742631},{"$f":"_xlfn.STDEV.S('II. Headline series'!K305:K335)","v":0.5917682261208895},{"$f":"_xlfn.STDEV.S('II. Headline series'!N305:N335)","v":0.36661599664961425},8.340506934171415,20.31659868181297]
[{"$f":"'III. GDP shares, 1310-2018'!A319","v":1623},{"$f":"_xlfn.STDEV.S('II. Headline series'!M306:M336)","v":4.9398708738605235},{"$f":"_xlfn.STDEV.S('II. Headline series'!P306:P336)","v":7.44356341346347},{"$f":"_xlfn.STDEV.S('II. Headline series'!K306:K336)","v":0.5822531986945346},{"$f":"_xlfn.STDEV.S('II. Headline series'!N306:N336)","v":0.3736070463732561},8.484059658128405,19.923509167508843]
[{"$f":"'III. GDP shares, 1310-2018'!A320","v":1624},{"$f":"_xlfn.STDEV.S('II. Headline series'!M307:M337)","v":5.1008986144052315},{"$f":"_xlfn.STDEV.S('II. Headline series'!P307:P337)","v":6.985367327794639},{"$f":"_xlfn.STDEV.S('II. Headline series'!K307:K337)","v":0.578111505142698},{"$f":"_xlfn.STDEV.S('II. Headline series'!N307:N337)","v":0.42389076331245074},8.82338194107753,16.479168532025103]
[{"$f":"'III. GDP shares, 1310-2018'!A321","v":1625},{"$f":"_xlfn.STDEV.S('II. Headline series'!M308:M338)","v":5.132067377477429},{"$f":"_xlfn.STDEV.S('II. Headline series'!P308:P338)","v":7.052299071113977},{"$f":"_xlfn.STDEV.S('II. Headline series'!K308:K338)","v":0.5619806792561622},{"$f":"_xlfn.STDEV.S('II. Headline series'!N308:N338)","v":0.4646374543265271},9.132106435171819,15.1780684175278]
[{"$f":"'III. GDP shares, 1310-2018'!A322","v":1626},{"$f":"_xlfn.STDEV.S('II. Headline series'!M309:M339)","v":5.182079849745092},{"$f":"_xlfn.STDEV.S('II. Headline series'!P309:P339)","v":6.972076174943796},{"$f":"_xlfn.STDEV.S('II. Headline series'!K309:K339)","v":0.5399678228706141},{"$f":"_xlfn.STDEV.S('II. Headline series'!N309:N339)","v":0.5099510496371347},9.597016026243494,13.672049856363486]
[{"$f":"'III. GDP shares, 1310-2018'!A323","v":1627},{"$f":"_xlfn.STDEV.S('II. Headline series'!M310:M340)","v":5.225498987868743},{"$f":"_xlfn.STDEV.S('II. Headline series'!P310:P340)","v":6.999822362364137},{"$f":"_xlfn.STDEV.S('II. Headline series'!K310:K340)","v":0.5101259936595528},{"$f":"_xlfn.STDEV.S('II. Headline series'!N310:N340)","v":0.5404901686776343},10.243545815773759,12.95087823612025]
[{"$f":"'III. GDP shares, 1310-2018'!A324","v":1628},{"$f":"_xlfn.STDEV.S('II. Headline series'!M311:M341)","v":5.214683458350628},{"$f":"_xlfn.STDEV.S('II. Headline series'!P311:P341)","v":7.068544161150572},{"$f":"_xlfn.STDEV.S('II. Headline series'!K311:K341)","v":0.4791488532224024},{"$f":"_xlfn.STDEV.S('II. Headline series'!N311:N341)","v":0.5662239675910549},10.883222245614293,12.483654111681302]
[{"$f":"'III. GDP shares, 1310-2018'!A325","v":1629},{"$f":"_xlfn.STDEV.S('II. Headline series'!M312:M342)","v":5.189473611426409},{"$f":"_xlfn.STDEV.S('II. Headline series'!P312:P342)","v":7.095568518555594},{"$f":"_xlfn.STDEV.S('II. Headline series'!K312:K342)","v":0.45553280136255403},{"$f":"_xlfn.STDEV.S('II. Headline series'!N312:N342)","v":0.5877839315072755},11.392096454753778,12.07172931788076]
[{"$f":"'III. GDP shares, 1310-2018'!A326","v":1630},{"$f":"_xlfn.STDEV.S('II. Headline series'!M313:M343)","v":5.2616959973121835},{"$f":"_xlfn.STDEV.S('II. Headline series'!P313:P343)","v":7.062257082141638},{"$f":"_xlfn.STDEV.S('II. Headline series'!K313:K343)","v":0.4376216292641741},{"$f":"_xlfn.STDEV.S('II. Headline series'!N313:N343)","v":0.6056159908951885},12.023391088231417,11.661279075049844]
[{"$f":"'III. GDP shares, 1310-2018'!A327","v":1631},{"$f":"_xlfn.STDEV.S('II. Headline series'!M314:M344)","v":5.245927639543041},{"$f":"_xlfn.STDEV.S('II. Headline series'!P314:P344)","v":7.043645371788286},{"$f":"_xlfn.STDEV.S('II. Headline series'!K314:K344)","v":0.4104541618931572},{"$f":"_xlfn.STDEV.S('II. Headline series'!N314:N344)","v":0.6200418666057853},12.780788030865615,11.359951240625733]
[{"$f":"'III. GDP shares, 1310-2018'!A328","v":1632},{"$f":"_xlfn.STDEV.S('II. Headline series'!M315:M345)","v":5.34012787516563},{"$f":"_xlfn.STDEV.S('II. Headline series'!P315:P345)","v":7.028132552115463},{"$f":"_xlfn.STDEV.S('II. Headline series'!K315:K345)","v":0.3830174548202703},{"$f":"_xlfn.STDEV.S('II. Headline series'!N315:N345)","v":0.6312951083971917},13.942257220813781,11.132879787330104]
[{"$f":"'III. GDP shares, 1310-2018'!A329","v":1633},{"$f":"_xlfn.STDEV.S('II. Headline series'!M316:M346)","v":5.427516309970739},{"$f":"_xlfn.STDEV.S('II. Headline series'!P316:P346)","v":7.4399544779956805},{"$f":"_xlfn.STDEV.S('II. Headline series'!K316:K346)","v":0.3798893666161634},{"$f":"_xlfn.STDEV.S('II. Headline series'!N316:N346)","v":0.6395432128126071},14.287097210211334,11.633231858213255]
[{"$f":"'III. GDP shares, 1310-2018'!A330","v":1634},{"$f":"_xlfn.STDEV.S('II. Headline series'!M317:M347)","v":5.4680214017712885},{"$f":"_xlfn.STDEV.S('II. Headline series'!P317:P347)","v":7.363106341810129},{"$f":"_xlfn.STDEV.S('II. Headline series'!K317:K347)","v":0.37682953811390274},{"$f":"_xlfn.STDEV.S('II. Headline series'!N317:N347)","v":0.6449014946868721},14.510596566128243,11.417412430382472]
[{"$f":"'III. GDP shares, 1310-2018'!A331","v":1635},{"$f":"_xlfn.STDEV.S('II. Headline series'!M318:M348)","v":5.466614086069729},{"$f":"_xlfn.STDEV.S('II. Headline series'!P318:P348)","v":7.303318966403912},{"$f":"_xlfn.STDEV.S('II. Headline series'!K318:K348)","v":0.42207708869565397},{"$f":"_xlfn.STDEV.S('II. Headline series'!N318:N348)","v":0.6474417072372205},12.951695869025306,11.280272624957725]
[{"$f":"'III. GDP shares, 1310-2018'!A332","v":1636},{"$f":"_xlfn.STDEV.S('II. Headline series'!M319:M349)","v":5.603680810810318},{"$f":"_xlfn.STDEV.S('II. Headline series'!P319:P349)","v":7.2956555728850025},{"$f":"_xlfn.STDEV.S('II. Headline series'!K319:K349)","v":0.4089969596973597},{"$f":"_xlfn.STDEV.S('II. Headline series'!N319:N349)","v":0.6471970336129211},13.70103292444228,11.272696248556086]
[{"$f":"'III. GDP shares, 1310-2018'!A333","v":1637},{"$f":"_xlfn.STDEV.S('II. Headline series'!M320:M350)","v":4.883441058351397},{"$f":"_xlfn.STDEV.S('II. Headline series'!P320:P350)","v":7.232002476278929},{"$f":"_xlfn.STDEV.S('II. Headline series'!K320:K350)","v":0.38204162384567136},{"$f":"_xlfn.STDEV.S('II. Headline series'!N320:N350)","v":0.6441643004627663},12.782484298946704,11.226953233955177]
[{"$f":"'III. GDP shares, 1310-2018'!A334","v":1638},{"$f":"_xlfn.STDEV.S('II. Headline series'!M321:M351)","v":4.477323071915667},{"$f":"_xlfn.STDEV.S('II. Headline series'!P321:P351)","v":6.803108232247723},{"$f":"_xlfn.STDEV.S('II. Headline series'!K321:K351)","v":0.3757885857939088},{"$f":"_xlfn.STDEV.S('II. Headline series'!N321:N351)","v":0.6646661815782835},11.914473300078187,10.23537592373573]
[{"$f":"'III. GDP shares, 1310-2018'!A335","v":1639},{"$f":"_xlfn.STDEV.S('II. Headline series'!M322:M352)","v":4.7853550022890365},{"$f":"_xlfn.STDEV.S('II. Headline series'!P322:P352)","v":7.158183737600422},{"$f":"_xlfn.STDEV.S('II. Headline series'!K322:K352)","v":0.9534957105348186},{"$f":"_xlfn.STDEV.S('II. Headline series'!N322:N352)","v":0.6793830793219171},5.018748327252481,10.536299704056372]
[{"$f":"'III. GDP shares, 1310-2018'!A336","v":1640},{"$f":"_xlfn.STDEV.S('II. Headline series'!M323:M353)","v":4.725213941831913},{"$f":"_xlfn.STDEV.S('II. Headline series'!P323:P353)","v":7.198218517034821},{"$f":"_xlfn.STDEV.S('II. Headline series'!K323:K353)","v":0.9446224116493596},{"$f":"_xlfn.STDEV.S('II. Headline series'!N323:N353)","v":0.6886859607948432},5.002225104506514,10.452105788140411]
[{"$f":"'III. GDP shares, 1310-2018'!A337","v":1641},{"$f":"_xlfn.STDEV.S('II. Headline series'!M324:M354)","v":4.723692183274323},{"$f":"_xlfn.STDEV.S('II. Headline series'!P324:P354)","v":7.385165445884692},{"$f":"_xlfn.STDEV.S('II. Headline series'!K324:K354)","v":0.937625909401927},{"$f":"_xlfn.STDEV.S('II. Headline series'!N324:N354)","v":0.692792959920066},5.037928384772741,10.659989164348303]
[{"$f":"'III. GDP shares, 1310-2018'!A338","v":1642},{"$f":"_xlfn.STDEV.S('II. Headline series'!M325:M355)","v":4.394260853801422},{"$f":"_xlfn.STDEV.S('II. Headline series'!P325:P355)","v":7.33437848961492},{"$f":"_xlfn.STDEV.S('II. Headline series'!K325:K355)","v":0.9380791419693916},{"$f":"_xlfn.STDEV.S('II. Headline series'!N325:N355)","v":0.6917966222999411},4.684317833329249,10.60192873626805]
[{"$f":"'III. GDP shares, 1310-2018'!A339","v":1643},{"$f":"_xlfn.STDEV.S('II. Headline series'!M326:M356)","v":4.400433297492632},{"$f":"_xlfn.STDEV.S('II. Headline series'!P326:P356)","v":7.870735334859367},{"$f":"_xlfn.STDEV.S('II. Headline series'!K326:K356)","v":0.9422174891807542},{"$f":"_xlfn.STDEV.S('II. Headline series'!N326:N356)","v":0.6856747016831816},4.670294648551632,11.47881833111012]
[{"$f":"'III. GDP shares, 1310-2018'!A340","v":1644},{"$f":"_xlfn.STDEV.S('II. Headline series'!M327:M357)","v":4.458234999728326},{"$f":"_xlfn.STDEV.S('II. Headline series'!P327:P357)","v":8.122210905027874},{"$f":"_xlfn.STDEV.S('II. Headline series'!K327:K357)","v":0.9608511027482158},{"$f":"_xlfn.STDEV.S('II. Headline series'!N327:N357)","v":0.6742876055682382},4.639881233394988,12.045617979560953]
[{"$f":"'III. GDP shares, 1310-2018'!A341","v":1645},{"$f":"_xlfn.STDEV.S('II. Headline series'!M328:M358)","v":4.48510437427685},{"$f":"_xlfn.STDEV.S('II. Headline series'!P328:P358)","v":7.9819058426278575},{"$f":"_xlfn.STDEV.S('II. Headline series'!K328:K358)","v":0.9692109503579611},{"$f":"_xlfn.STDEV.S('II. Headline series'!N328:N358)","v":0.6573617741468332},4.627583265150229,12.142333425133053]
[{"$f":"'III. GDP shares, 1310-2018'!A342","v":1646},{"$f":"_xlfn.STDEV.S('II. Headline series'!M329:M359)","v":4.938968209063072},{"$f":"_xlfn.STDEV.S('II. Headline series'!P329:P359)","v":7.893257797329709},{"$f":"_xlfn.STDEV.S('II. Headline series'!K329:K359)","v":1.002864656256766},{"$f":"_xlfn.STDEV.S('II. Headline series'!N329:N359)","v":0.6344540785493612},4.924860177541779,12.44102302151976]
[{"$f":"'III. GDP shares, 1310-2018'!A343","v":1647},{"$f":"_xlfn.STDEV.S('II. Headline series'!M330:M360)","v":4.824306501960421},{"$f":"_xlfn.STDEV.S('II. Headline series'!P330:P360)","v":7.89075393483868},{"$f":"_xlfn.STDEV.S('II. Headline series'!K330:K360)","v":1.0308947135588546},{"$f":"_xlfn.STDEV.S('II. Headline series'!N330:N360)","v":0.629078863128245},4.67972765648002,12.543346148366869]
[{"$f":"'III. GDP shares, 1310-2018'!A344","v":1648},{"$f":"_xlfn.STDEV.S('II. Headline series'!M331:M361)","v":4.9617366241629615},{"$f":"_xlfn.STDEV.S('II. Headline series'!P331:P361)","v":7.2661477866029225},{"$f":"_xlfn.STDEV.S('II. Headline series'!K331:K361)","v":1.0519951642182028},{"$f":"_xlfn.STDEV.S('II. Headline series'!N331:N361)","v":0.6201074411282711},4.716501361344478,11.717562642664529]
[{"$f":"'III. GDP shares, 1310-2018'!A345","v":1649},{"$f":"_xlfn.STDEV.S('II. Headline series'!M332:M362)","v":4.944585095866775},{"$f":"_xlfn.STDEV.S('II. Headline series'!P332:P362)","v":7.468891126568431},{"$f":"_xlfn.STDEV.S('II. Headline series'!K332:K362)","v":1.0689699590925683},{"$f":"_xlfn.STDEV.S('II. Headline series'!N332:N362)","v":0.6073804782109264},4.625560385311627,12.296890325761657]
[{"$f":"'III. GDP shares, 1310-2018'!A346","v":1650},{"$f":"_xlfn.STDEV.S('II. Headline series'!M333:M363)","v":4.948446664437457},{"$f":"_xlfn.STDEV.S('II. Headline series'!P333:P363)","v":7.813918755848313},{"$f":"_xlfn.STDEV.S('II. Headline series'!K333:K363)","v":1.0919962289280816},{"$f":"_xlfn.STDEV.S('II. Headline series'!N333:N363)","v":0.5906552601492173},{"$f":"B344/D344","v":4.531560213623558},{"$f":"C344/E344","v":13.229237565537437}]
[{"$f":"'III. GDP shares, 1310-2018'!A347","v":1651},{"$f":"_xlfn.STDEV.S('II. Headline series'!M334:M364)","v":4.947032038088677},{"$f":"_xlfn.STDEV.S('II. Headline series'!P334:P364)","v":7.737030865845213},{"$f":"_xlfn.STDEV.S('II. Headline series'!K334:K364)","v":1.1091063586380459},{"$f":"_xlfn.STDEV.S('II. Headline series'!N334:N364)","v":0.569579679793169},4.460376590179778,13.583755074715366]
[{"$f":"'III. GDP shares, 1310-2018'!A348","v":1652},{"$f":"_xlfn.STDEV.S('II. Headline series'!M335:M365)","v":4.9947031698764315},{"$f":"_xlfn.STDEV.S('II. Headline series'!P335:P365)","v":7.876657326336473},{"$f":"_xlfn.STDEV.S('II. Headline series'!K335:K365)","v":1.1325453474135516},{"$f":"_xlfn.STDEV.S('II. Headline series'!N335:N365)","v":0.5436480214125372},4.410157333905504,14.488523853854732]
[{"$f":"'III. GDP shares, 1310-2018'!A349","v":1653},{"$f":"_xlfn.STDEV.S('II. Headline series'!M336:M366)","v":4.9899399519608},{"$f":"_xlfn.STDEV.S('II. Headline series'!P336:P366)","v":7.841914163955546},{"$f":"_xlfn.STDEV.S('II. Headline series'!K336:K366)","v":1.1577052136020092},{"$f":"_xlfn.STDEV.S('II. Headline series'!N336:N366)","v":0.5121231443699757},4.310199084649039,15.3125556815106]
[{"$f":"'III. GDP shares, 1310-2018'!A350","v":1654},{"$f":"_xlfn.STDEV.S('II. Headline series'!M337:M367)","v":4.99728586698725},{"$f":"_xlfn.STDEV.S('II. Headline series'!P337:P367)","v":8.270159134374778},{"$f":"_xlfn.STDEV.S('II. Headline series'!K337:K367)","v":1.1818219337397458},{"$f":"_xlfn.STDEV.S('II. Headline series'!N337:N367)","v":0.47389011708849116},4.228459232579892,17.45163875791582]
[{"$f":"'III. GDP shares, 1310-2018'!A351","v":1655},{"$f":"_xlfn.STDEV.S('II. Headline series'!M338:M368)","v":4.881771807568104},{"$f":"_xlfn.STDEV.S('II. Headline series'!P338:P368)","v":8.327336476430528},{"$f":"_xlfn.STDEV.S('II. Headline series'!K338:K368)","v":1.2010175711409359},{"$f":"_xlfn.STDEV.S('II. Headline series'!N338:N368)","v":0.4709039631505599},4.064696408172068,17.683725617250897]
[{"$f":"'III. GDP shares, 1310-2018'!A352","v":1656},{"$f":"_xlfn.STDEV.S('II. Headline series'!M339:M369)","v":4.862038501941301},{"$f":"_xlfn.STDEV.S('II. Headline series'!P339:P369)","v":8.295138147756909},{"$f":"_xlfn.STDEV.S('II. Headline series'!K339:K369)","v":1.26685576255565},{"$f":"_xlfn.STDEV.S('II. Headline series'!N339:N369)","v":0.4539121685928094},3.8378785064947145,18.274764859186273]
[{"$f":"'III. GDP shares, 1310-2018'!A353","v":1657},{"$f":"_xlfn.STDEV.S('II. Headline series'!M340:M370)","v":4.7980781045109575},{"$f":"_xlfn.STDEV.S('II. Headline series'!P340:P370)","v":8.322917963585715},{"$f":"_xlfn.STDEV.S('II. Headline series'!K340:K370)","v":1.3196617335828622},{"$f":"_xlfn.STDEV.S('II. Headline series'!N340:N370)","v":0.6155592168826505},3.6358393839944467,13.520905439017067]
[{"$f":"'III. GDP shares, 1310-2018'!A354","v":1658},{"$f":"_xlfn.STDEV.S('II. Headline series'!M341:M371)","v":4.780591877967155},{"$f":"_xlfn.STDEV.S('II. Headline series'!P341:P371)","v":8.280867658718304},{"$f":"_xlfn.STDEV.S('II. Headline series'!K341:K371)","v":1.3680061119602371},{"$f":"_xlfn.STDEV.S('II. Headline series'!N341:N371)","v":0.6374540534429837},3.4945690930554187,12.990532594454631]
[{"$f":"'III. GDP shares, 1310-2018'!A355","v":1659},{"$f":"_xlfn.STDEV.S('II. Headline series'!M342:M372)","v":4.871606047651494},{"$f":"_xlfn.STDEV.S('II. Headline series'!P342:P372)","v":8.245246458097926},{"$f":"_xlfn.STDEV.S('II. Headline series'!K342:K372)","v":1.4089982764049618},{"$f":"_xlfn.STDEV.S('II. Headline series'!N342:N372)","v":0.6589662807304927},3.4574961014724055,12.512395093960972]
[{"$f":"'III. GDP shares, 1310-2018'!A356","v":1660},{"$f":"_xlfn.STDEV.S('II. Headline series'!M343:M373)","v":5.059374336445779},{"$f":"_xlfn.STDEV.S('II. Headline series'!P343:P373)","v":8.236054474158188},{"$f":"_xlfn.STDEV.S('II. Headline series'!K343:K373)","v":1.4433507276293038},{"$f":"_xlfn.STDEV.S('II. Headline series'!N343:N373)","v":0.6800343999869957},3.5052979429024678,12.111232129309467]
[{"$f":"'III. GDP shares, 1310-2018'!A357","v":1661},{"$f":"_xlfn.STDEV.S('II. Headline series'!M344:M374)","v":4.956633586988139},{"$f":"_xlfn.STDEV.S('II. Headline series'!P344:P374)","v":8.166120183521642},{"$f":"_xlfn.STDEV.S('II. Headline series'!K344:K374)","v":1.4734889480123032},{"$f":"_xlfn.STDEV.S('II. Headline series'!N344:N374)","v":0.700600379611882},3.3638756460810266,11.655888893530863]
[{"$f":"'III. GDP shares, 1310-2018'!A358","v":1662},{"$f":"_xlfn.STDEV.S('II. Headline series'!M345:M375)","v":4.956918627433025},{"$f":"_xlfn.STDEV.S('II. Headline series'!P345:P375)","v":8.227330049233798},{"$f":"_xlfn.STDEV.S('II. Headline series'!K345:K375)","v":1.5006779354425697},{"$f":"_xlfn.STDEV.S('II. Headline series'!N345:N375)","v":0.6971103681863504},3.3031195504125033,11.802048032420716]
[{"$f":"'III. GDP shares, 1310-2018'!A359","v":1663},{"$f":"_xlfn.STDEV.S('II. Headline series'!M346:M376)","v":4.901557329588806},{"$f":"_xlfn.STDEV.S('II. Headline series'!P346:P376)","v":8.26465111210812},{"$f":"_xlfn.STDEV.S('II. Headline series'!K346:K376)","v":1.5221903245113808},{"$f":"_xlfn.STDEV.S('II. Headline series'!N346:N376)","v":0.6927464047216133},3.220068640997435,11.93026922374191]
[{"$f":"'III. GDP shares, 1310-2018'!A360","v":1664},{"$f":"_xlfn.STDEV.S('II. Headline series'!M347:M377)","v":4.7801304085619565},{"$f":"_xlfn.STDEV.S('II. Headline series'!P347:P377)","v":7.931887030702686},{"$f":"_xlfn.STDEV.S('II. Headline series'!K347:K377)","v":1.5459604025903328},{"$f":"_xlfn.STDEV.S('II. Headline series'!N347:N377)","v":0.694108056922417},3.092013482720911,11.427452759836301]
[{"$f":"'III. GDP shares, 1310-2018'!A361","v":1665},{"$f":"_xlfn.STDEV.S('II. Headline series'!M348:M378)","v":4.736767565212624},{"$f":"_xlfn.STDEV.S('II. Headline series'!P348:P378)","v":7.9009255061338495},{"$f":"_xlfn.STDEV.S('II. Headline series'!K348:K378)","v":1.5662569415071037},{"$f":"_xlfn.STDEV.S('II. Headline series'!N348:N378)","v":0.6959523822661814},3.024259583267833,11.352681171097675]
[{"$f":"'III. GDP shares, 1310-2018'!A362","v":1666},{"$f":"_xlfn.STDEV.S('II. Headline series'!M349:M379)","v":4.729392912120384},{"$f":"_xlfn.STDEV.S('II. Headline series'!P349:P379)","v":7.828058121240946},{"$f":"_xlfn.STDEV.S('II. Headline series'!K349:K379)","v":1.588910914261455},{"$f":"_xlfn.STDEV.S('II. Headline series'!N349:N379)","v":0.6982318634296026},2.976499733037999,11.211258797028803]
[{"$f":"'III. GDP shares, 1310-2018'!A363","v":1667},{"$f":"_xlfn.STDEV.S('II. Headline series'!M350:M380)","v":4.593200899147193},{"$f":"_xlfn.STDEV.S('II. Headline series'!P350:P380)","v":7.827117890425972},{"$f":"_xlfn.STDEV.S('II. Headline series'!K350:K380)","v":1.5907952354267567},{"$f":"_xlfn.STDEV.S('II. Headline series'!N350:N380)","v":0.7008955715363686},2.8873614886802144,11.167309665359802]
[{"$f":"'III. GDP shares, 1310-2018'!A364","v":1668},{"$f":"_xlfn.STDEV.S('II. Headline series'!M351:M381)","v":4.651784463906165},{"$f":"_xlfn.STDEV.S('II. Headline series'!P351:P381)","v":7.809600629919941},{"$f":"_xlfn.STDEV.S('II. Headline series'!K351:K381)","v":1.5835671204213795},{"$f":"_xlfn.STDEV.S('II. Headline series'!N351:N381)","v":0.7038895165891647},2.9375353933013892,11.094923913290966]
[{"$f":"'III. GDP shares, 1310-2018'!A365","v":1669},{"$f":"_xlfn.STDEV.S('II. Headline series'!M352:M382)","v":4.240273935097266},{"$f":"_xlfn.STDEV.S('II. Headline series'!P352:P382)","v":7.63485727181148},{"$f":"_xlfn.STDEV.S('II. Headline series'!K352:K382)","v":1.570796914591015},{"$f":"_xlfn.STDEV.S('II. Headline series'!N352:N382)","v":0.7070483575082814},2.6994412171998037,10.798210887183986]
[{"$f":"'III. GDP shares, 1310-2018'!A366","v":1670},{"$f":"_xlfn.STDEV.S('II. Headline series'!M353:M383)","v":3.6957474451879126},{"$f":"_xlfn.STDEV.S('II. Headline series'!P353:P383)","v":7.210716928531522},{"$f":"_xlfn.STDEV.S('II. Headline series'!K353:K383)","v":1.0118105763194591},{"$f":"_xlfn.STDEV.S('II. Headline series'!N353:N383)","v":0.7090933910302819},3.652608039176153,10.168924178033395]
[{"$f":"'III. GDP shares, 1310-2018'!A367","v":1671},{"$f":"_xlfn.STDEV.S('II. Headline series'!M354:M384)","v":3.682126528707382},{"$f":"_xlfn.STDEV.S('II. Headline series'!P354:P384)","v":7.240303718165218},{"$f":"_xlfn.STDEV.S('II. Headline series'!K354:K384)","v":0.958818335792622},{"$f":"_xlfn.STDEV.S('II. Headline series'!N354:N384)","v":0.7099161878920714},3.8402754633008716,10.198814792015929]
[{"$f":"'III. GDP shares, 1310-2018'!A368","v":1672},{"$f":"_xlfn.STDEV.S('II. Headline series'!M355:M385)","v":3.7035834409288313},{"$f":"_xlfn.STDEV.S('II. Headline series'!P355:P385)","v":7.140584775419356},{"$f":"_xlfn.STDEV.S('II. Headline series'!K355:K385)","v":0.8942207524440395},{"$f":"_xlfn.STDEV.S('II. Headline series'!N355:N385)","v":0.7093997424148871},4.141688090783379,10.065671508579769]
[{"$f":"'III. GDP shares, 1310-2018'!A369","v":1673},{"$f":"_xlfn.STDEV.S('II. Headline series'!M356:M386)","v":3.6657646439055886},{"$f":"_xlfn.STDEV.S('II. Headline series'!P356:P386)","v":7.053428240057647},{"$f":"_xlfn.STDEV.S('II. Headline series'!K356:K386)","v":0.8121711248848421},{"$f":"_xlfn.STDEV.S('II. Headline series'!N356:N386)","v":0.7074163969657581},4.513537272610323,9.970688084572433]
[{"$f":"'III. GDP shares, 1310-2018'!A370","v":1674},{"$f":"_xlfn.STDEV.S('II. Headline series'!M357:M387)","v":3.6475085624140178},{"$f":"_xlfn.STDEV.S('II. Headline series'!P357:P387)","v":6.443913754723456},{"$f":"_xlfn.STDEV.S('II. Headline series'!K357:K387)","v":0.7380433360733748},{"$f":"_xlfn.STDEV.S('II. Headline series'!N357:N387)","v":0.7038252483750118},4.9421333194605115,9.155559238036902]
[{"$f":"'III. GDP shares, 1310-2018'!A371","v":1675},{"$f":"_xlfn.STDEV.S('II. Headline series'!M358:M388)","v":3.6371623670888145},{"$f":"_xlfn.STDEV.S('II. Headline series'!P358:P388)","v":6.00087072065502},{"$f":"_xlfn.STDEV.S('II. Headline series'!K358:K388)","v":0.6993335391761001},{"$f":"_xlfn.STDEV.S('II. Headline series'!N358:N388)","v":0.6984688452038923},5.200897945455089,8.591465119540567]
[{"$f":"'III. GDP shares, 1310-2018'!A372","v":1676},{"$f":"_xlfn.STDEV.S('II. Headline series'!M359:M389)","v":3.644926032997784},{"$f":"_xlfn.STDEV.S('II. Headline series'!P359:P389)","v":5.981683844547995},{"$f":"_xlfn.STDEV.S('II. Headline series'!K359:K389)","v":0.6250901069390368},{"$f":"_xlfn.STDEV.S('II. Headline series'!N359:N389)","v":0.6911688970147625},5.831040985189137,8.654445925422241]
[{"$f":"'III. GDP shares, 1310-2018'!A373","v":1677},{"$f":"_xlfn.STDEV.S('II. Headline series'!M360:M390)","v":3.3404233034091346},{"$f":"_xlfn.STDEV.S('II. Headline series'!P360:P390)","v":5.909535756110999},{"$f":"_xlfn.STDEV.S('II. Headline series'!K360:K390)","v":0.6029580095623346},{"$f":"_xlfn.STDEV.S('II. Headline series'!N360:N390)","v":0.6817205786523846},5.540059590275328,8.668560024684723]
[{"$f":"'III. GDP shares, 1310-2018'!A374","v":1678},{"$f":"_xlfn.STDEV.S('II. Headline series'!M361:M391)","v":3.833028296884728},{"$f":"_xlfn.STDEV.S('II. Headline series'!P361:P391)","v":6.056881597537216},{"$f":"_xlfn.STDEV.S('II. Headline series'!K361:K391)","v":0.5681541814687497},{"$f":"_xlfn.STDEV.S('II. Headline series'!N361:N391)","v":0.6698847881796929},6.746457954381097,9.041676575453884]
[{"$f":"'III. GDP shares, 1310-2018'!A375","v":1679},{"$f":"_xlfn.STDEV.S('II. Headline series'!M362:M392)","v":3.5807667731673507},{"$f":"_xlfn.STDEV.S('II. Headline series'!P362:P392)","v":5.918436574920366},{"$f":"_xlfn.STDEV.S('II. Headline series'!K362:K392)","v":0.524292512433},{"$f":"_xlfn.STDEV.S('II. Headline series'!N362:N392)","v":0.6553773395878447},6.8297118273741155,9.03057859559558]
[{"$f":"'III. GDP shares, 1310-2018'!A376","v":1680},{"$f":"_xlfn.STDEV.S('II. Headline series'!M363:M393)","v":3.936611100219595},{"$f":"_xlfn.STDEV.S('II. Headline series'!P363:P393)","v":5.658836476772364},{"$f":"_xlfn.STDEV.S('II. Headline series'!K363:K393)","v":0.4732367120389553},{"$f":"_xlfn.STDEV.S('II. Headline series'!N363:N393)","v":0.6378534096322922},8.318482062092313,8.871688057659757]
[{"$f":"'III. GDP shares, 1310-2018'!A377","v":1681},{"$f":"_xlfn.STDEV.S('II. Headline series'!M364:M394)","v":3.8903671102173303},{"$f":"_xlfn.STDEV.S('II. Headline series'!P364:P394)","v":5.093652223539658},{"$f":"_xlfn.STDEV.S('II. Headline series'!K364:K394)","v":0.4231066336753238},{"$f":"_xlfn.STDEV.S('II. Headline series'!N364:N394)","v":0.6168843410240368},9.194767466592483,8.257061956029105]
[{"$f":"'III. GDP shares, 1310-2018'!A378","v":1682},{"$f":"_xlfn.STDEV.S('II. Headline series'!M365:M395)","v":3.8713759689891525},{"$f":"_xlfn.STDEV.S('II. Headline series'!P365:P395)","v":5.114565773483223},{"$f":"_xlfn.STDEV.S('II. Headline series'!K365:K395)","v":0.3830800664444237},{"$f":"_xlfn.STDEV.S('II. Headline series'!N365:N395)","v":0.5919215335209075},10.105918600572243,8.64061447986259]
[{"$f":"'III. GDP shares, 1310-2018'!A379","v":1683},{"$f":"_xlfn.STDEV.S('II. Headline series'!M366:M396)","v":3.8548627140651424},{"$f":"_xlfn.STDEV.S('II. Headline series'!P366:P396)","v":5.056039133095253},{"$f":"_xlfn.STDEV.S('II. Headline series'!K366:K396)","v":0.3392572824123535},{"$f":"_xlfn.STDEV.S('II. Headline series'!N366:N396)","v":0.5622372028120083},11.362652812209092,8.992715366054867]
[{"$f":"'III. GDP shares, 1310-2018'!A380","v":1684},{"$f":"_xlfn.STDEV.S('II. Headline series'!M367:M397)","v":3.9065717742844526},{"$f":"_xlfn.STDEV.S('II. Headline series'!P367:P397)","v":4.955690096019244},{"$f":"_xlfn.STDEV.S('II. Headline series'!K367:K397)","v":0.29297445381991016},{"$f":"_xlfn.STDEV.S('II. Headline series'!N367:N397)","v":0.5268205017138317},13.334172052713516,9.40679051004581]
[{"$f":"'III. GDP shares, 1310-2018'!A381","v":1685},{"$f":"_xlfn.STDEV.S('II. Headline series'!M368:M398)","v":4.127094692850084},{"$f":"_xlfn.STDEV.S('II. Headline series'!P368:P398)","v":6.040599033217148},{"$f":"_xlfn.STDEV.S('II. Headline series'!K368:K398)","v":0.23985065151275076},{"$f":"_xlfn.STDEV.S('II. Headline series'!N368:N398)","v":0.8374682429835715},17.20693551099519,7.2129290678496165]
[{"$f":"'III. GDP shares, 1310-2018'!A382","v":1686},{"$f":"_xlfn.STDEV.S('II. Headline series'!M369:M399)","v":4.401691111718759},{"$f":"_xlfn.STDEV.S('II. Headline series'!P369:P399)","v":5.9402521877801995},{"$f":"_xlfn.STDEV.S('II. Headline series'!K369:K399)","v":0.17723425731121928},{"$f":"_xlfn.STDEV.S('II. Headline series'!N369:N399)","v":0.8531448548571109},24.835441965316505,6.962770922149092]
[{"$f":"'III. GDP shares, 1310-2018'!A383","v":1687},{"$f":"_xlfn.STDEV.S('II. Headline series'!M370:M400)","v":4.5462998611857754},{"$f":"_xlfn.STDEV.S('II. Headline series'!P370:P400)","v":6.046883028654668},{"$f":"_xlfn.STDEV.S('II. Headline series'!K370:K400)","v":0.19157795445153578},{"$f":"_xlfn.STDEV.S('II. Headline series'!N370:N400)","v":0.8872163871134884},23.730809080832266,6.8155673367664935]
[{"$f":"'III. GDP shares, 1310-2018'!A384","v":1688},{"$f":"_xlfn.STDEV.S('II. Headline series'!M371:M401)","v":4.546468106987549},{"$f":"_xlfn.STDEV.S('II. Headline series'!P371:P401)","v":6.029595288929626},{"$f":"_xlfn.STDEV.S('II. Headline series'!K371:K401)","v":0.19590595062336996},{"$f":"_xlfn.STDEV.S('II. Headline series'!N371:N401)","v":0.8722478767087563},23.207401778867627,6.91270847420235]
[{"$f":"'III. GDP shares, 1310-2018'!A385","v":1689},{"$f":"_xlfn.STDEV.S('II. Headline series'!M372:M402)","v":4.567116770772107},{"$f":"_xlfn.STDEV.S('II. Headline series'!P372:P402)","v":6.053206708378785},{"$f":"_xlfn.STDEV.S('II. Headline series'!K372:K402)","v":0.23279759177461906},{"$f":"_xlfn.STDEV.S('II. Headline series'!N372:N402)","v":0.9075734001735075},19.618402131898858,6.669660775890467]
[{"$f":"'III. GDP shares, 1310-2018'!A386","v":1690},{"$f":"_xlfn.STDEV.S('II. Headline series'!M373:M403)","v":4.650907084906725},{"$f":"_xlfn.STDEV.S('II. Headline series'!P373:P403)","v":6.322383257541946},{"$f":"_xlfn.STDEV.S('II. Headline series'!K373:K403)","v":0.2406496565460757},{"$f":"_xlfn.STDEV.S('II. Headline series'!N373:N403)","v":0.9404318462002799},19.32646466925767,6.722851084942411]
[{"$f":"'III. GDP shares, 1310-2018'!A387","v":1691},{"$f":"_xlfn.STDEV.S('II. Headline series'!M374:M404)","v":4.557980997772192},{"$f":"_xlfn.STDEV.S('II. Headline series'!P374:P404)","v":6.6929079753559995},{"$f":"_xlfn.STDEV.S('II. Headline series'!K374:K404)","v":0.25650736921919176},{"$f":"_xlfn.STDEV.S('II. Headline series'!N374:N404)","v":0.9710736843095014},17.7693959111065,6.8922761305339115]
[{"$f":"'III. GDP shares, 1310-2018'!A388","v":1692},{"$f":"_xlfn.STDEV.S('II. Headline series'!M375:M405)","v":4.553799192845602},{"$f":"_xlfn.STDEV.S('II. Headline series'!P375:P405)","v":7.149989378338818},{"$f":"_xlfn.STDEV.S('II. Headline series'!K375:K405)","v":0.2576690643935184},{"$f":"_xlfn.STDEV.S('II. Headline series'!N375:N405)","v":0.9997027586911813},17.67305362622395,7.152115282446195]
[{"$f":"'III. GDP shares, 1310-2018'!A389","v":1693},{"$f":"_xlfn.STDEV.S('II. Headline series'!M376:M406)","v":4.734428521695884},{"$f":"_xlfn.STDEV.S('II. Headline series'!P376:P406)","v":7.103194886974945},{"$f":"_xlfn.STDEV.S('II. Headline series'!K376:K406)","v":0.25588283364287323},{"$f":"_xlfn.STDEV.S('II. Headline series'!N376:N406)","v":1.0122949617605215},18.502329579105574,7.016922098102221]
[{"$f":"'III. GDP shares, 1310-2018'!A390","v":1694},{"$f":"_xlfn.STDEV.S('II. Headline series'!M377:M407)","v":7.424598951817302},{"$f":"_xlfn.STDEV.S('II. Headline series'!P377:P407)","v":7.565177797938274},{"$f":"_xlfn.STDEV.S('II. Headline series'!K377:K407)","v":0.2543043055190586},{"$f":"_xlfn.STDEV.S('II. Headline series'!N377:N407)","v":1.0270289194729099},29.195726500434233,7.366080598607547]
[{"$f":"'III. GDP shares, 1310-2018'!A391","v":1695},{"$f":"_xlfn.STDEV.S('II. Headline series'!M378:M408)","v":7.442500967795495},{"$f":"_xlfn.STDEV.S('II. Headline series'!P378:P408)","v":7.736578682411758},{"$f":"_xlfn.STDEV.S('II. Headline series'!K378:K408)","v":0.25891593337518776},{"$f":"_xlfn.STDEV.S('II. Headline series'!N378:N408)","v":1.2000921071779747},28.74485502215415,6.446654082747348]
[{"$f":"'III. GDP shares, 1310-2018'!A392","v":1696},{"$f":"_xlfn.STDEV.S('II. Headline series'!M379:M409)","v":7.718433790932249},{"$f":"_xlfn.STDEV.S('II. Headline series'!P379:P409)","v":7.787199011871896},{"$f":"_xlfn.STDEV.S('II. Headline series'!K379:K409)","v":0.26160039473566365},{"$f":"_xlfn.STDEV.S('II. Headline series'!N379:N409)","v":1.3728993259302689},29.50467180575704,5.672083061585986]
[{"$f":"'III. GDP shares, 1310-2018'!A393","v":1697},{"$f":"_xlfn.STDEV.S('II. Headline series'!M380:M410)","v":7.754299472065328},{"$f":"_xlfn.STDEV.S('II. Headline series'!P380:P410)","v":9.489623562605331},{"$f":"_xlfn.STDEV.S('II. Headline series'!K380:K410)","v":0.2615145845165182},{"$f":"_xlfn.STDEV.S('II. Headline series'!N380:N410)","v":1.513283931740679},29.651499117730996,6.270881071002809]
[{"$f":"'III. GDP shares, 1310-2018'!A394","v":1698},{"$f":"_xlfn.STDEV.S('II. Headline series'!M381:M411)","v":7.78295294461552},{"$f":"_xlfn.STDEV.S('II. Headline series'!P381:P411)","v":9.517682349480532},{"$f":"_xlfn.STDEV.S('II. Headline series'!K381:K411)","v":0.31758454850326395},{"$f":"_xlfn.STDEV.S('II. Headline series'!N381:N411)","v":1.5108606312538877},24.506711618356746,6.299510459533024]
[{"$f":"'III. GDP shares, 1310-2018'!A395","v":1699},{"$f":"_xlfn.STDEV.S('II. Headline series'!M382:M412)","v":7.775611911562218},{"$f":"_xlfn.STDEV.S('II. Headline series'!P382:P412)","v":9.552745984129633},{"$f":"_xlfn.STDEV.S('II. Headline series'!K382:K412)","v":0.3257984550535734},{"$f":"_xlfn.STDEV.S('II. Headline series'!N382:N412)","v":1.5185795853327104},23.866325303119126,6.29057974728186]
[{"$f":"'III. GDP shares, 1310-2018'!A396","v":1700},{"$f":"_xlfn.STDEV.S('II. Headline series'!M383:M413)","v":7.757356375101727},{"$f":"_xlfn.STDEV.S('II. Headline series'!P383:P413)","v":9.517352723307512},{"$f":"_xlfn.STDEV.S('II. Headline series'!K383:K413)","v":0.37031807526870475},{"$f":"_xlfn.STDEV.S('II. Headline series'!N383:N413)","v":1.5105602274377714},20.947819977388217,6.300545023253359]
[{"$f":"'III. GDP shares, 1310-2018'!A397","v":1701},{"$f":"_xlfn.STDEV.S('II. Headline series'!M384:M414)","v":7.8350496253209085},{"$f":"_xlfn.STDEV.S('II. Headline series'!P384:P414)","v":9.551848172553248},{"$f":"_xlfn.STDEV.S('II. Headline series'!K384:K414)","v":0.42810436240063277},{"$f":"_xlfn.STDEV.S('II. Headline series'!N384:N414)","v":1.5022545271282064},18.301728067859855,6.358342078564472]
[{"$f":"'III. GDP shares, 1310-2018'!A398","v":1702},{"$f":"_xlfn.STDEV.S('II. Headline series'!M385:M415)","v":7.8019970711267685},{"$f":"_xlfn.STDEV.S('II. Headline series'!P385:P415)","v":9.53296102289346},{"$f":"_xlfn.STDEV.S('II. Headline series'!K385:K415)","v":0.4462890434230064},{"$f":"_xlfn.STDEV.S('II. Headline series'!N385:N415)","v":1.5005816363369986},17.481937291773924,6.352843985325541]
[{"$f":"'III. GDP shares, 1310-2018'!A399","v":1703},{"$f":"_xlfn.STDEV.S('II. Headline series'!M386:M416)","v":7.811385249024712},{"$f":"_xlfn.STDEV.S('II. Headline series'!P386:P416)","v":9.497931362187652},{"$f":"_xlfn.STDEV.S('II. Headline series'!K386:K416)","v":0.46665461629788063},{"$f":"_xlfn.STDEV.S('II. Headline series'!N386:N416)","v":1.498901896742197},16.739114917569903,6.336593063782909]
[{"$f":"'III. GDP shares, 1310-2018'!A400","v":1704},{"$f":"_xlfn.STDEV.S('II. Headline series'!M387:M417)","v":7.808655065790086},{"$f":"_xlfn.STDEV.S('II. Headline series'!P387:P417)","v":9.531492222437874},{"$f":"_xlfn.STDEV.S('II. Headline series'!K387:K417)","v":0.5473208246276446},{"$f":"_xlfn.STDEV.S('II. Headline series'!N387:N417)","v":1.509534283771957},14.267052731096975,6.31419393710026]
[{"$f":"'III. GDP shares, 1310-2018'!A401","v":1705},{"$f":"_xlfn.STDEV.S('II. Headline series'!M388:M418)","v":7.808949609929627},{"$f":"_xlfn.STDEV.S('II. Headline series'!P388:P418)","v":9.581480137730164},{"$f":"_xlfn.STDEV.S('II. Headline series'!K388:K418)","v":0.6141988856164194},{"$f":"_xlfn.STDEV.S('II. Headline series'!N388:N418)","v":1.519969491299182},12.71404066793844,6.303731879210595]
[{"$f":"'III. GDP shares, 1310-2018'!A402","v":1706},{"$f":"_xlfn.STDEV.S('II. Headline series'!M389:M419)","v":7.80911696610334},{"$f":"_xlfn.STDEV.S('II. Headline series'!P389:P419)","v":9.585346209285808},{"$f":"_xlfn.STDEV.S('II. Headline series'!K389:K419)","v":0.6545480860818825},{"$f":"_xlfn.STDEV.S('II. Headline series'!N389:N419)","v":1.5117500646815007},11.930547399273026,6.340562790916945]
[{"$f":"'III. GDP shares, 1310-2018'!A403","v":1707},{"$f":"_xlfn.STDEV.S('II. Headline series'!M390:M420)","v":7.82252809365285},{"$f":"_xlfn.STDEV.S('II. Headline series'!P390:P420)","v":9.63356929576096},{"$f":"_xlfn.STDEV.S('II. Headline series'!K390:K420)","v":0.6855693900746577},{"$f":"_xlfn.STDEV.S('II. Headline series'!N390:N420)","v":1.5617556949334652},11.41026452887721,6.168422709783283]
[{"$f":"'III. GDP shares, 1310-2018'!A404","v":1708},{"$f":"_xlfn.STDEV.S('II. Headline series'!M391:M421)","v":7.788919141192969},{"$f":"_xlfn.STDEV.S('II. Headline series'!P391:P421)","v":9.582280449749895},{"$f":"_xlfn.STDEV.S('II. Headline series'!K391:K421)","v":0.7240249885182197},{"$f":"_xlfn.STDEV.S('II. Headline series'!N391:N421)","v":1.6088683705299716},10.757804308845294,5.955913252613345]
[{"$f":"'III. GDP shares, 1310-2018'!A405","v":1709},{"$f":"_xlfn.STDEV.S('II. Headline series'!M392:M422)","v":7.715111979644099},{"$f":"_xlfn.STDEV.S('II. Headline series'!P392:P422)","v":9.566042188307437},{"$f":"_xlfn.STDEV.S('II. Headline series'!K392:K422)","v":0.7509970120637928},{"$f":"_xlfn.STDEV.S('II. Headline series'!N392:N422)","v":1.653335418833231},10.273159354445934,5.785905315606347]
[{"$f":"'III. GDP shares, 1310-2018'!A406","v":1710},{"$f":"_xlfn.STDEV.S('II. Headline series'!M393:M423)","v":7.76944393153848},{"$f":"_xlfn.STDEV.S('II. Headline series'!P393:P423)","v":9.605766618404667},{"$f":"_xlfn.STDEV.S('II. Headline series'!K393:K423)","v":0.7692849196025936},{"$f":"_xlfn.STDEV.S('II. Headline series'!N393:N423)","v":1.695365025912478},10.099566147159251,5.665898771997293]
[{"$f":"'III. GDP shares, 1310-2018'!A407","v":1711},{"$f":"_xlfn.STDEV.S('II. Headline series'!M394:M424)","v":7.551697583250163},{"$f":"_xlfn.STDEV.S('II. Headline series'!P394:P424)","v":9.625503610275821},{"$f":"_xlfn.STDEV.S('II. Headline series'!K394:K424)","v":0.7750500655514958},{"$f":"_xlfn.STDEV.S('II. Headline series'!N394:N424)","v":1.7351343249005344},9.743496477065214,5.547411213150657]
[{"$f":"'III. GDP shares, 1310-2018'!A408","v":1712},{"$f":"_xlfn.STDEV.S('II. Headline series'!M395:M425)","v":7.635174033166547},{"$f":"_xlfn.STDEV.S('II. Headline series'!P395:P425)","v":9.65135353263084},{"$f":"_xlfn.STDEV.S('II. Headline series'!K395:K425)","v":0.7662404756218127},{"$f":"_xlfn.STDEV.S('II. Headline series'!N395:N425)","v":1.7533054660690695},9.964461909912181,5.5046617485709906]
[{"$f":"'III. GDP shares, 1310-2018'!A409","v":1713},{"$f":"_xlfn.STDEV.S('II. Headline series'!M396:M426)","v":7.6225865208421455},{"$f":"_xlfn.STDEV.S('II. Headline series'!P396:P426)","v":9.568897710200915},{"$f":"_xlfn.STDEV.S('II. Headline series'!K396:K426)","v":0.7646243275343785},{"$f":"_xlfn.STDEV.S('II. Headline series'!N396:N426)","v":1.775771660558324},9.969060944506012,5.388585662636568]
[{"$f":"'III. GDP shares, 1310-2018'!A410","v":1714},{"$f":"_xlfn.STDEV.S('II. Headline series'!M397:M427)","v":7.582321166956762},{"$f":"_xlfn.STDEV.S('II. Headline series'!P397:P427)","v":9.517079458002442},{"$f":"_xlfn.STDEV.S('II. Headline series'!K397:K427)","v":0.7606940255584131},{"$f":"_xlfn.STDEV.S('II. Headline series'!N397:N427)","v":1.8025770411406323},{"$f":"B408/D408","v":9.967636016847512},{"$f":"C408/E408","v":5.279707463698881}]
[{"$f":"'III. GDP shares, 1310-2018'!A411","v":1715},{"$f":"_xlfn.STDEV.S('II. Headline series'!M398:M428)","v":7.597060165974945},{"$f":"_xlfn.STDEV.S('II. Headline series'!P398:P428)","v":9.537581929317298},{"$f":"_xlfn.STDEV.S('II. Headline series'!K398:K428)","v":0.7571049950542194},{"$f":"_xlfn.STDEV.S('II. Headline series'!N398:N428)","v":1.8262872055044468},10.034354832688548,5.2223888447397195]
[{"$f":"'III. GDP shares, 1310-2018'!A412","v":1716},{"$f":"_xlfn.STDEV.S('II. Headline series'!M399:M429)","v":7.50523717134843},{"$f":"_xlfn.STDEV.S('II. Headline series'!P399:P429)","v":8.707209765214786},{"$f":"_xlfn.STDEV.S('II. Headline series'!K399:K429)","v":0.7653216478009779},{"$f":"_xlfn.STDEV.S('II. Headline series'!N399:N429)","v":1.7516347050069925},9.806644295131932,4.970905029642027]
[{"$f":"'III. GDP shares, 1310-2018'!A413","v":1717},{"$f":"_xlfn.STDEV.S('II. Headline series'!M400:M430)","v":7.393158732170935},{"$f":"_xlfn.STDEV.S('II. Headline series'!P400:P430)","v":8.718083200013128},{"$f":"_xlfn.STDEV.S('II. Headline series'!K400:K430)","v":0.7638944062440073},{"$f":"_xlfn.STDEV.S('II. Headline series'!N400:N430)","v":1.7505978548662637},9.678246982488536,4.980060483782063]
[{"$f":"'III. GDP shares, 1310-2018'!A414","v":1718},{"$f":"_xlfn.STDEV.S('II. Headline series'!M401:M431)","v":7.292618593592169},{"$f":"_xlfn.STDEV.S('II. Headline series'!P401:P431)","v":8.670124797901313},{"$f":"_xlfn.STDEV.S('II. Headline series'!K401:K431)","v":0.7415088830649135},{"$f":"_xlfn.STDEV.S('II. Headline series'!N401:N431)","v":1.7475317924408094},9.834836453272477,4.961354543250737]
[{"$f":"'III. GDP shares, 1310-2018'!A415","v":1719},{"$f":"_xlfn.STDEV.S('II. Headline series'!M402:M432)","v":7.347456518553169},{"$f":"_xlfn.STDEV.S('II. Headline series'!P402:P432)","v":8.644395129954763},{"$f":"_xlfn.STDEV.S('II. Headline series'!K402:K432)","v":0.7345194260767973},{"$f":"_xlfn.STDEV.S('II. Headline series'!N402:N432)","v":1.757883854286534},10.003079915526916,4.9175007261576065]
[{"$f":"'III. GDP shares, 1310-2018'!A416","v":1720},{"$f":"_xlfn.STDEV.S('II. Headline series'!M403:M433)","v":7.328589812037661},{"$f":"_xlfn.STDEV.S('II. Headline series'!P403:P433)","v":8.641188650191712},{"$f":"_xlfn.STDEV.S('II. Headline series'!K403:K433)","v":0.6937059573686192},{"$f":"_xlfn.STDEV.S('II. Headline series'!N403:N433)","v":1.763366968193556},10.564403742237749,4.900391583859595]
[{"$f":"'III. GDP shares, 1310-2018'!A417","v":1721},{"$f":"_xlfn.STDEV.S('II. Headline series'!M404:M434)","v":7.2082800192244525},{"$f":"_xlfn.STDEV.S('II. Headline series'!P404:P434)","v":8.416201364718493},{"$f":"_xlfn.STDEV.S('II. Headline series'!K404:K434)","v":0.6688572961638578},{"$f":"_xlfn.STDEV.S('II. Headline series'!N404:N434)","v":1.7735525523406344},10.777007383438269,4.745391589108125]
[{"$f":"'III. GDP shares, 1310-2018'!A418","v":1722},{"$f":"_xlfn.STDEV.S('II. Headline series'!M405:M435)","v":7.208426551542469},{"$f":"_xlfn.STDEV.S('II. Headline series'!P405:P435)","v":8.278401752747492},{"$f":"_xlfn.STDEV.S('II. Headline series'!K405:K435)","v":0.6361776175021178},{"$f":"_xlfn.STDEV.S('II. Headline series'!N405:N435)","v":1.778628730592845},11.330839616529692,4.654373119222115]
[{"$f":"'III. GDP shares, 1310-2018'!A419","v":1723},{"$f":"_xlfn.STDEV.S('II. Headline series'!M406:M436)","v":7.194435616972659},{"$f":"_xlfn.STDEV.S('II. Headline series'!P406:P436)","v":7.831918262664556},{"$f":"_xlfn.STDEV.S('II. Headline series'!K406:K436)","v":0.6612686777936345},{"$f":"_xlfn.STDEV.S('II. Headline series'!N406:N436)","v":1.7767769388200043},10.87974655170022,4.407935566670457]
[{"$f":"'III. GDP shares, 1310-2018'!A420","v":1724},{"$f":"_xlfn.STDEV.S('II. Headline series'!M407:M437)","v":7.126410763342901},{"$f":"_xlfn.STDEV.S('II. Headline series'!P407:P437)","v":7.821578977846287},{"$f":"_xlfn.STDEV.S('II. Headline series'!K407:K437)","v":0.6504950367528508},{"$f":"_xlfn.STDEV.S('II. Headline series'!N407:N437)","v":1.7640723140031034},10.955365315186118,4.4338199266317195]
[{"$f":"'III. GDP shares, 1310-2018'!A421","v":1725},{"$f":"_xlfn.STDEV.S('II. Headline series'!M408:M438)","v":4.748604759982154},{"$f":"_xlfn.STDEV.S('II. Headline series'!P408:P438)","v":7.765397295617411},{"$f":"_xlfn.STDEV.S('II. Headline series'!K408:K438)","v":0.6314982802281802},{"$f":"_xlfn.STDEV.S('II. Headline series'!N408:N438)","v":1.7472511590790913},7.519584627002204,4.44435091959547]
[{"$f":"'III. GDP shares, 1310-2018'!A422","v":1726},{"$f":"_xlfn.STDEV.S('II. Headline series'!M409:M439)","v":4.924075977171032},{"$f":"_xlfn.STDEV.S('II. Headline series'!P409:P439)","v":7.7349907641004725},{"$f":"_xlfn.STDEV.S('II. Headline series'!K409:K439)","v":0.6161127468184794},{"$f":"_xlfn.STDEV.S('II. Headline series'!N409:N439)","v":1.578912055679446},7.992167022348225,4.898937047365763]
[{"$f":"'III. GDP shares, 1310-2018'!A423","v":1727},{"$f":"_xlfn.STDEV.S('II. Headline series'!M410:M440)","v":4.985290207989045},{"$f":"_xlfn.STDEV.S('II. Headline series'!P410:P440)","v":7.755808035019922},{"$f":"_xlfn.STDEV.S('II. Headline series'!K410:K440)","v":0.5956448025293798},{"$f":"_xlfn.STDEV.S('II. Headline series'!N410:N440)","v":1.322806908917386},8.369568888739105,5.863144486724404]
[{"$f":"'III. GDP shares, 1310-2018'!A424","v":1728},{"$f":"_xlfn.STDEV.S('II. Headline series'!M411:M441)","v":4.978501564117672},{"$f":"_xlfn.STDEV.S('II. Headline series'!P411:P441)","v":5.579505407489413},{"$f":"_xlfn.STDEV.S('II. Headline series'!K411:K441)","v":0.5447973957108211},{"$f":"_xlfn.STDEV.S('II. Headline series'!N411:N441)","v":0.9685391671375878},9.138262413354607,5.76074318602833]
[{"$f":"'III. GDP shares, 1310-2018'!A425","v":1729},{"$f":"_xlfn.STDEV.S('II. Headline series'!M412:M442)","v":4.9446634992314715},{"$f":"_xlfn.STDEV.S('II. Headline series'!P412:P442)","v":5.770656698290953},{"$f":"_xlfn.STDEV.S('II. Headline series'!K412:K442)","v":0.5876211084245712},{"$f":"_xlfn.STDEV.S('II. Headline series'!N412:N442)","v":0.8726764849082547},8.414713883386957,6.612595616000387]
[{"$f":"'III. GDP shares, 1310-2018'!A426","v":1730},{"$f":"_xlfn.STDEV.S('II. Headline series'!M413:M443)","v":4.953409758887412},{"$f":"_xlfn.STDEV.S('II. Headline series'!P413:P443)","v":5.740866725910788},{"$f":"_xlfn.STDEV.S('II. Headline series'!K413:K443)","v":0.5712645285522192},{"$f":"_xlfn.STDEV.S('II. Headline series'!N413:N443)","v":0.6770529513448188},8.670956293122305,8.47919902646876]
[{"$f":"'III. GDP shares, 1310-2018'!A427","v":1731},{"$f":"_xlfn.STDEV.S('II. Headline series'!M414:M444)","v":5.001994804101384},{"$f":"_xlfn.STDEV.S('II. Headline series'!P414:P444)","v":6.009724613744778},{"$f":"_xlfn.STDEV.S('II. Headline series'!K414:K444)","v":0.5715990103357138},{"$f":"_xlfn.STDEV.S('II. Headline series'!N414:N444)","v":0.6116901932131313},8.750880798697661,9.82478496537022]
[{"$f":"'III. GDP shares, 1310-2018'!A428","v":1732},{"$f":"_xlfn.STDEV.S('II. Headline series'!M415:M445)","v":4.835074172150724},{"$f":"_xlfn.STDEV.S('II. Headline series'!P415:P445)","v":5.931132680274606},{"$f":"_xlfn.STDEV.S('II. Headline series'!K415:K445)","v":0.5760187860043855},{"$f":"_xlfn.STDEV.S('II. Headline series'!N415:N445)","v":0.5364562634368678},8.393952227998884,11.05613464604949]
[{"$f":"'III. GDP shares, 1310-2018'!A429","v":1733},{"$f":"_xlfn.STDEV.S('II. Headline series'!M416:M446)","v":4.796536975294727},{"$f":"_xlfn.STDEV.S('II. Headline series'!P416:P446)","v":5.908191091513459},{"$f":"_xlfn.STDEV.S('II. Headline series'!K416:K446)","v":0.5710988760437187},{"$f":"_xlfn.STDEV.S('II. Headline series'!N416:N446)","v":0.4918569706427811},8.398785528213057,12.012010491164464]
[{"$f":"'III. GDP shares, 1310-2018'!A430","v":1734},{"$f":"_xlfn.STDEV.S('II. Headline series'!M417:M447)","v":4.702493421471368},{"$f":"_xlfn.STDEV.S('II. Headline series'!P417:P447)","v":5.88722429042369},{"$f":"_xlfn.STDEV.S('II. Headline series'!K417:K447)","v":0.5682747870157171},{"$f":"_xlfn.STDEV.S('II. Headline series'!N417:N447)","v":0.4423548300843162},8.275034418061043,13.308827868572251]
[{"$f":"'III. GDP shares, 1310-2018'!A431","v":1735},{"$f":"_xlfn.STDEV.S('II. Headline series'!M418:M448)","v":4.713313918480688},{"$f":"_xlfn.STDEV.S('II. Headline series'!P418:P448)","v":5.857967874220144},{"$f":"_xlfn.STDEV.S('II. Headline series'!K418:K448)","v":0.5644885667193216},{"$f":"_xlfn.STDEV.S('II. Headline series'!N418:N448)","v":0.42237214137115336},8.349706612967186,13.869209875450899]
[{"$f":"'III. GDP shares, 1310-2018'!A432","v":1736},{"$f":"_xlfn.STDEV.S('II. Headline series'!M419:M449)","v":4.700923897720012},{"$f":"_xlfn.STDEV.S('II. Headline series'!P419:P449)","v":5.826685260746603},{"$f":"_xlfn.STDEV.S('II. Headline series'!K419:K449)","v":0.5561917490429945},{"$f":"_xlfn.STDEV.S('II. Headline series'!N419:N449)","v":0.3982616122951849},8.451984240702252,14.630295968439862]
[{"$f":"'III. GDP shares, 1310-2018'!A433","v":1737},{"$f":"_xlfn.STDEV.S('II. Headline series'!M420:M450)","v":4.697132820970528},{"$f":"_xlfn.STDEV.S('II. Headline series'!P420:P450)","v":5.904488826368083},{"$f":"_xlfn.STDEV.S('II. Headline series'!K420:K450)","v":0.5572493946611599},{"$f":"_xlfn.STDEV.S('II. Headline series'!N420:N450)","v":0.22044932121874736},8.429139387090153,26.783882997349668]
[{"$f":"'III. GDP shares, 1310-2018'!A434","v":1738},{"$f":"_xlfn.STDEV.S('II. Headline series'!M421:M451)","v":4.766173951722887},{"$f":"_xlfn.STDEV.S('II. Headline series'!P421:P451)","v":5.713324162328345},{"$f":"_xlfn.STDEV.S('II. Headline series'!K421:K451)","v":0.5596000617511414},{"$f":"_xlfn.STDEV.S('II. Headline series'!N421:N451)","v":0.2240424095472296},8.517107622912384,25.50108336129075]
[{"$f":"'III. GDP shares, 1310-2018'!A435","v":1739},{"$f":"_xlfn.STDEV.S('II. Headline series'!M422:M452)","v":4.777356767201049},{"$f":"_xlfn.STDEV.S('II. Headline series'!P422:P452)","v":5.680613242395219},{"$f":"_xlfn.STDEV.S('II. Headline series'!K422:K452)","v":0.5628803216415764},{"$f":"_xlfn.STDEV.S('II. Headline series'!N422:N452)","v":0.22657862487553065},8.48734017431704,25.071267183812342]
[{"$f":"'III. GDP shares, 1310-2018'!A436","v":1740},{"$f":"_xlfn.STDEV.S('II. Headline series'!M423:M453)","v":4.638717832396512},{"$f":"_xlfn.STDEV.S('II. Headline series'!P423:P453)","v":5.6811752845689565},{"$f":"_xlfn.STDEV.S('II. Headline series'!K423:K453)","v":0.5617480026679045},{"$f":"_xlfn.STDEV.S('II. Headline series'!N423:N453)","v":0.22554924361068662},8.257648999846717,25.18818149696415]
[{"$f":"'III. GDP shares, 1310-2018'!A437","v":1741},{"$f":"_xlfn.STDEV.S('II. Headline series'!M424:M454)","v":4.607310649178737},{"$f":"_xlfn.STDEV.S('II. Headline series'!P424:P454)","v":5.8073238199190325},{"$f":"_xlfn.STDEV.S('II. Headline series'!K424:K454)","v":0.5628773782628507},{"$f":"_xlfn.STDEV.S('II. Headline series'!N424:N454)","v":0.22850327076133686},8.185283024515563,25.41462010836845]
[{"$f":"'III. GDP shares, 1310-2018'!A438","v":1742},{"$f":"_xlfn.STDEV.S('II. Headline series'!M425:M455)","v":5.004147424212188},{"$f":"_xlfn.STDEV.S('II. Headline series'!P425:P455)","v":7.543807152490488},{"$f":"_xlfn.STDEV.S('II. Headline series'!K425:K455)","v":0.562014336978968},{"$f":"_xlfn.STDEV.S('II. Headline series'!N425:N455)","v":0.23017933974654137},8.90394976596381,32.773606705090224]
[{"$f":"'III. GDP shares, 1310-2018'!A439","v":1743},{"$f":"_xlfn.STDEV.S('II. Headline series'!M426:M456)","v":4.799287647640286},{"$f":"_xlfn.STDEV.S('II. Headline series'!P426:P456)","v":7.526597034604575},{"$f":"_xlfn.STDEV.S('II. Headline series'!K426:K456)","v":0.5617658831398713},{"$f":"_xlfn.STDEV.S('II. Headline series'!N426:N456)","v":0.21722132721687845},8.543216652488194,34.64943857510758]
[{"$f":"'III. GDP shares, 1310-2018'!A440","v":1744},{"$f":"_xlfn.STDEV.S('II. Headline series'!M427:M457)","v":4.8284422093512},{"$f":"_xlfn.STDEV.S('II. Headline series'!P427:P457)","v":7.960954138920219},{"$f":"_xlfn.STDEV.S('II. Headline series'!K427:K457)","v":0.5608671942711791},{"$f":"_xlfn.STDEV.S('II. Headline series'!N427:N457)","v":0.2299979876948682},8.608886842856867,34.613146917971264]
[{"$f":"'III. GDP shares, 1310-2018'!A441","v":1745},{"$f":"_xlfn.STDEV.S('II. Headline series'!M428:M458)","v":4.842404845380449},{"$f":"_xlfn.STDEV.S('II. Headline series'!P428:P458)","v":8.08424346965365},{"$f":"_xlfn.STDEV.S('II. Headline series'!K428:K458)","v":0.5616028538007597},{"$f":"_xlfn.STDEV.S('II. Headline series'!N428:N458)","v":0.24909786448422142},8.622471934764052,32.45408581238853]
[{"$f":"'III. GDP shares, 1310-2018'!A442","v":1746},{"$f":"_xlfn.STDEV.S('II. Headline series'!M429:M459)","v":4.692704135012003},{"$f":"_xlfn.STDEV.S('II. Headline series'!P429:P459)","v":7.923564056843937},{"$f":"_xlfn.STDEV.S('II. Headline series'!K429:K459)","v":0.5547023727175139},{"$f":"_xlfn.STDEV.S('II. Headline series'!N429:N459)","v":0.2836088262554805},8.459859495502458,27.938354956930123]
[{"$f":"'III. GDP shares, 1310-2018'!A443","v":1747},{"$f":"_xlfn.STDEV.S('II. Headline series'!M430:M460)","v":4.638809721450905},{"$f":"_xlfn.STDEV.S('II. Headline series'!P430:P460)","v":7.804096231682922},{"$f":"_xlfn.STDEV.S('II. Headline series'!K430:K460)","v":0.5536247489292168},{"$f":"_xlfn.STDEV.S('II. Headline series'!N430:N460)","v":0.31735961703556304},8.378978234667029,24.590703456792998]
[{"$f":"'III. GDP shares, 1310-2018'!A444","v":1748},{"$f":"_xlfn.STDEV.S('II. Headline series'!M431:M461)","v":4.494947989709779},{"$f":"_xlfn.STDEV.S('II. Headline series'!P431:P461)","v":7.8082924092771995},{"$f":"_xlfn.STDEV.S('II. Headline series'!K431:K461)","v":0.5385490482438807},{"$f":"_xlfn.STDEV.S('II. Headline series'!N431:N461)","v":0.31689981511221427},8.346404110019431,24.639624376278928]
[{"$f":"'III. GDP shares, 1310-2018'!A445","v":1749},{"$f":"_xlfn.STDEV.S('II. Headline series'!M432:M462)","v":4.572603652035089},{"$f":"_xlfn.STDEV.S('II. Headline series'!P432:P462)","v":7.888423683920682},{"$f":"_xlfn.STDEV.S('II. Headline series'!K432:K462)","v":0.5100863791660457},{"$f":"_xlfn.STDEV.S('II. Headline series'!N432:N462)","v":0.32087527490432144},8.964371210050668,24.58408079672967]
[{"$f":"'III. GDP shares, 1310-2018'!A446","v":1750},{"$f":"_xlfn.STDEV.S('II. Headline series'!M433:M463)","v":4.539235414492112},{"$f":"_xlfn.STDEV.S('II. Headline series'!P433:P463)","v":7.911296407406929},{"$f":"_xlfn.STDEV.S('II. Headline series'!K433:K463)","v":0.45169474879004257},{"$f":"_xlfn.STDEV.S('II. Headline series'!N433:N463)","v":0.32177581892338764},10.049342895066612,24.58636088279383]
[{"$f":"'III. GDP shares, 1310-2018'!A447","v":1751},{"$f":"_xlfn.STDEV.S('II. Headline series'!M434:M464)","v":4.507540625305475},{"$f":"_xlfn.STDEV.S('II. Headline series'!P434:P464)","v":7.915561917271758},{"$f":"_xlfn.STDEV.S('II. Headline series'!K434:K464)","v":0.45196221329429165},{"$f":"_xlfn.STDEV.S('II. Headline series'!N434:N464)","v":0.32242578831701585},9.973268766100198,24.55002733679916]
[{"$f":"'III. GDP shares, 1310-2018'!A448","v":1752},{"$f":"_xlfn.STDEV.S('II. Headline series'!M435:M465)","v":4.585548144994896},{"$f":"_xlfn.STDEV.S('II. Headline series'!P435:P465)","v":8.28147920672638},{"$f":"_xlfn.STDEV.S('II. Headline series'!K435:K465)","v":0.4516768638566882},{"$f":"_xlfn.STDEV.S('II. Headline series'!N435:N465)","v":0.31535578703851663},10.15227591212163,26.26074911926352]
[{"$f":"'III. GDP shares, 1310-2018'!A449","v":1753},{"$f":"_xlfn.STDEV.S('II. Headline series'!M436:M466)","v":4.5853573967311965},{"$f":"_xlfn.STDEV.S('II. Headline series'!P436:P466)","v":8.25713855485978},{"$f":"_xlfn.STDEV.S('II. Headline series'!K436:K466)","v":0.4460707834993871},{"$f":"_xlfn.STDEV.S('II. Headline series'!N436:N466)","v":0.3053853645246831},10.27943897324873,27.03842264252447]
[{"$f":"'III. GDP shares, 1310-2018'!A450","v":1754},{"$f":"_xlfn.STDEV.S('II. Headline series'!M437:M467)","v":4.6938259122588315},{"$f":"_xlfn.STDEV.S('II. Headline series'!P437:P467)","v":8.695111800791341},{"$f":"_xlfn.STDEV.S('II. Headline series'!K437:K467)","v":0.4106813279253065},{"$f":"_xlfn.STDEV.S('II. Headline series'!N437:N467)","v":0.29643308581685973},11.429362849222429,29.332460568059854]
[{"$f":"'III. GDP shares, 1310-2018'!A451","v":1755},{"$f":"_xlfn.STDEV.S('II. Headline series'!M438:M468)","v":4.764448210526343},{"$f":"_xlfn.STDEV.S('II. Headline series'!P438:P468)","v":8.688444582543532},{"$f":"_xlfn.STDEV.S('II. Headline series'!K438:K468)","v":0.420045793942731},{"$f":"_xlfn.STDEV.S('II. Headline series'!N438:N468)","v":0.2990770347746148},11.34268758128769,29.050858381992338]
[{"$f":"'III. GDP shares, 1310-2018'!A452","v":1756},{"$f":"_xlfn.STDEV.S('II. Headline series'!M439:M469)","v":4.567343888076168},{"$f":"_xlfn.STDEV.S('II. Headline series'!P439:P469)","v":8.47682477551335},{"$f":"_xlfn.STDEV.S('II. Headline series'!K439:K469)","v":0.3986714064283078},{"$f":"_xlfn.STDEV.S('II. Headline series'!N439:N469)","v":0.2945240116976192},11.456412008563507,28.781438656405047]
[{"$f":"'III. GDP shares, 1310-2018'!A453","v":1757},{"$f":"_xlfn.STDEV.S('II. Headline series'!M440:M470)","v":4.416619952190716},{"$f":"_xlfn.STDEV.S('II. Headline series'!P440:P470)","v":8.401229994447123},{"$f":"_xlfn.STDEV.S('II. Headline series'!K440:K470)","v":0.4174752479251894},{"$f":"_xlfn.STDEV.S('II. Headline series'!N440:N470)","v":0.2897892358567083},10.579357636508702,28.990828350164353]
[{"$f":"'III. GDP shares, 1310-2018'!A454","v":1758},{"$f":"_xlfn.STDEV.S('II. Headline series'!M441:M471)","v":3.793017082162276},{"$f":"_xlfn.STDEV.S('II. Headline series'!P441:P471)","v":8.232968794292109},{"$f":"_xlfn.STDEV.S('II. Headline series'!K441:K471)","v":0.4183750189700995},{"$f":"_xlfn.STDEV.S('II. Headline series'!N441:N471)","v":0.2839552829946632},9.066069698662758,28.993891951807225]
[{"$f":"'III. GDP shares, 1310-2018'!A455","v":1759},{"$f":"_xlfn.STDEV.S('II. Headline series'!M442:M472)","v":3.6352973893384},{"$f":"_xlfn.STDEV.S('II. Headline series'!P442:P472)","v":8.175076346148591},{"$f":"_xlfn.STDEV.S('II. Headline series'!K442:K472)","v":0.41547534007498577},{"$f":"_xlfn.STDEV.S('II. Headline series'!N442:N472)","v":0.27534386253066},8.749730823211541,29.690425168777033]
[{"$f":"'III. GDP shares, 1310-2018'!A456","v":1760},{"$f":"_xlfn.STDEV.S('II. Headline series'!M443:M473)","v":3.5175555525143896},{"$f":"_xlfn.STDEV.S('II. Headline series'!P443:P473)","v":7.882135974092688},{"$f":"_xlfn.STDEV.S('II. Headline series'!K443:K473)","v":0.3519568045344384},{"$f":"_xlfn.STDEV.S('II. Headline series'!N443:N473)","v":0.27446894809129907},9.99428198914166,28.717769455912304]
[{"$f":"'III. GDP shares, 1310-2018'!A457","v":1761},{"$f":"_xlfn.STDEV.S('II. Headline series'!M444:M474)","v":3.6541775352142474},{"$f":"_xlfn.STDEV.S('II. Headline series'!P444:P474)","v":8.023473524982995},{"$f":"_xlfn.STDEV.S('II. Headline series'!K444:K474)","v":0.354774886371394},{"$f":"_xlfn.STDEV.S('II. Headline series'!N444:N474)","v":0.27515660292491234},10.299989304735886,29.159661951388916]
[{"$f":"'III. GDP shares, 1310-2018'!A458","v":1762},{"$f":"_xlfn.STDEV.S('II. Headline series'!M445:M475)","v":3.685177366195261},{"$f":"_xlfn.STDEV.S('II. Headline series'!P445:P475)","v":7.904998975628997},{"$f":"_xlfn.STDEV.S('II. Headline series'!K445:K475)","v":0.35095063533898},{"$f":"_xlfn.STDEV.S('II. Headline series'!N445:N475)","v":0.2873833977218281},10.500557614422844,27.50680463204982]
[{"$f":"'III. GDP shares, 1310-2018'!A459","v":1763},{"$f":"_xlfn.STDEV.S('II. Headline series'!M446:M476)","v":3.6864333531998867},{"$f":"_xlfn.STDEV.S('II. Headline series'!P446:P476)","v":7.856513955805819},{"$f":"_xlfn.STDEV.S('II. Headline series'!K446:K476)","v":0.3513428212374618},{"$f":"_xlfn.STDEV.S('II. Headline series'!N446:N476)","v":0.3718615225684739},10.492411201731485,21.127525917552106]
[{"$f":"'III. GDP shares, 1310-2018'!A460","v":1764},{"$f":"_xlfn.STDEV.S('II. Headline series'!M447:M477)","v":3.9472974679577377},{"$f":"_xlfn.STDEV.S('II. Headline series'!P447:P477)","v":7.96940225115201},{"$f":"_xlfn.STDEV.S('II. Headline series'!K447:K477)","v":0.3591127049046149},{"$f":"_xlfn.STDEV.S('II. Headline series'!N447:N477)","v":0.4560197036896193},10.99180678947628,17.476004187258155]
[{"$f":"'III. GDP shares, 1310-2018'!A461","v":1765},{"$f":"_xlfn.STDEV.S('II. Headline series'!M448:M478)","v":3.949375428045843},{"$f":"_xlfn.STDEV.S('II. Headline series'!P448:P478)","v":7.970136728141154},{"$f":"_xlfn.STDEV.S('II. Headline series'!K448:K478)","v":0.36176334522931985},{"$f":"_xlfn.STDEV.S('II. Headline series'!N448:N478)","v":0.514667173514948},10.9170137885096,15.486001708072157]
[{"$f":"'III. GDP shares, 1310-2018'!A462","v":1766},{"$f":"_xlfn.STDEV.S('II. Headline series'!M449:M479)","v":4.048708538183337},{"$f":"_xlfn.STDEV.S('II. Headline series'!P449:P479)","v":8.062248661557026},{"$f":"_xlfn.STDEV.S('II. Headline series'!K449:K479)","v":0.3624866180175387},{"$f":"_xlfn.STDEV.S('II. Headline series'!N449:N479)","v":0.5800179458112349},11.169263462265091,13.899998646215787]
[{"$f":"'III. GDP shares, 1310-2018'!A463","v":1767},{"$f":"_xlfn.STDEV.S('II. Headline series'!M450:M480)","v":4.049224784476264},{"$f":"_xlfn.STDEV.S('II. Headline series'!P450:P480)","v":8.067799706719837},{"$f":"_xlfn.STDEV.S('II. Headline series'!K450:K480)","v":0.38921616330796066},{"$f":"_xlfn.STDEV.S('II. Headline series'!N450:N480)","v":0.6344892622652671},10.403537073233991,12.71542354856567]
[{"$f":"'III. GDP shares, 1310-2018'!A464","v":1768},{"$f":"_xlfn.STDEV.S('II. Headline series'!M451:M481)","v":4.04245208326659},{"$f":"_xlfn.STDEV.S('II. Headline series'!P451:P481)","v":8.005961825614893},{"$f":"_xlfn.STDEV.S('II. Headline series'!K451:K481)","v":0.38869416461373146},{"$f":"_xlfn.STDEV.S('II. Headline series'!N451:N481)","v":0.6440855117290437},10.400084311231724,12.429967263388578]
[{"$f":"'III. GDP shares, 1310-2018'!A465","v":1769},{"$f":"_xlfn.STDEV.S('II. Headline series'!M452:M482)","v":3.956440913686709},{"$f":"_xlfn.STDEV.S('II. Headline series'!P452:P482)","v":8.118856521912173},{"$f":"_xlfn.STDEV.S('II. Headline series'!K452:K482)","v":0.37566147282318446},{"$f":"_xlfn.STDEV.S('II. Headline series'!N452:N482)","v":0.6688104471659835},10.53193153919438,12.139248955088853]
[{"$f":"'III. GDP shares, 1310-2018'!A466","v":1770},{"$f":"_xlfn.STDEV.S('II. Headline series'!M453:M483)","v":4.031128932347838},{"$f":"_xlfn.STDEV.S('II. Headline series'!P453:P483)","v":8.203818713193982},{"$f":"_xlfn.STDEV.S('II. Headline series'!K453:K483)","v":0.35548349574488847},{"$f":"_xlfn.STDEV.S('II. Headline series'!N453:N483)","v":0.6786543937594313},11.339848349079936,12.088360126497706]
[{"$f":"'III. GDP shares, 1310-2018'!A467","v":1771},{"$f":"_xlfn.STDEV.S('II. Headline series'!M454:M484)","v":4.0453025475671645},{"$f":"_xlfn.STDEV.S('II. Headline series'!P454:P484)","v":8.153755750189482},{"$f":"_xlfn.STDEV.S('II. Headline series'!K454:K484)","v":0.46844938350264803},{"$f":"_xlfn.STDEV.S('II. Headline series'!N454:N484)","v":0.6662085995029846},8.635516856314311,12.239043080909605]
[{"$f":"'III. GDP shares, 1310-2018'!A468","v":1772},{"$f":"_xlfn.STDEV.S('II. Headline series'!M455:M485)","v":4.046225163281239},{"$f":"_xlfn.STDEV.S('II. Headline series'!P455:P485)","v":8.047000697278264},{"$f":"_xlfn.STDEV.S('II. Headline series'!K455:K485)","v":0.5006242193177582},{"$f":"_xlfn.STDEV.S('II. Headline series'!N455:N485)","v":0.6594183722840948},8.082359996077223,12.203179400969745]
[{"$f":"'III. GDP shares, 1310-2018'!A469","v":1773},{"$f":"_xlfn.STDEV.S('II. Headline series'!M456:M486)","v":3.5925320220265613},{"$f":"_xlfn.STDEV.S('II. Headline series'!P456:P486)","v":6.260602391869951},{"$f":"_xlfn.STDEV.S('II. Headline series'!K456:K486)","v":0.5852907319107389},{"$f":"_xlfn.STDEV.S('II. Headline series'!N456:N486)","v":0.6512347520822989},6.138029916001555,9.613434129324192]
[{"$f":"'III. GDP shares, 1310-2018'!A470","v":1774},{"$f":"_xlfn.STDEV.S('II. Headline series'!M457:M487)","v":3.591546495969645},{"$f":"_xlfn.STDEV.S('II. Headline series'!P457:P487)","v":6.1885354219308395},{"$f":"_xlfn.STDEV.S('II. Headline series'!K457:K487)","v":0.591338039903939},{"$f":"_xlfn.STDEV.S('II. Headline series'!N457:N487)","v":0.6389124918657281},6.073592858245819,9.686045429882444]
[{"$f":"'III. GDP shares, 1310-2018'!A471","v":1775},{"$f":"_xlfn.STDEV.S('II. Headline series'!M458:M488)","v":3.555827956836467},{"$f":"_xlfn.STDEV.S('II. Headline series'!P458:P488)","v":5.792077433944032},{"$f":"_xlfn.STDEV.S('II. Headline series'!K458:K488)","v":0.5899584877716889},{"$f":"_xlfn.STDEV.S('II. Headline series'!N458:N488)","v":0.6362707316907977},6.0272511211205,9.103164966511065]
[{"$f":"'III. GDP shares, 1310-2018'!A472","v":1776},{"$f":"_xlfn.STDEV.S('II. Headline series'!M459:M489)","v":3.6073687942218617},{"$f":"_xlfn.STDEV.S('II. Headline series'!P459:P489)","v":5.573911746071867},{"$f":"_xlfn.STDEV.S('II. Headline series'!K459:K489)","v":0.6009300676728099},{"$f":"_xlfn.STDEV.S('II. Headline series'!N459:N489)","v":0.6363285828154982},6.0029760337869735,8.759486681251294]
[{"$f":"'III. GDP shares, 1310-2018'!A473","v":1777},{"$f":"_xlfn.STDEV.S('II. Headline series'!M460:M490)","v":3.626345620925006},{"$f":"_xlfn.STDEV.S('II. Headline series'!P460:P490)","v":5.581318295775402},{"$f":"_xlfn.STDEV.S('II. Headline series'!K460:K490)","v":0.6076438918909752},{"$f":"_xlfn.STDEV.S('II. Headline series'!N460:N490)","v":0.6463166806989318},5.967879656684927,8.635578289175086]
[{"$f":"'III. GDP shares, 1310-2018'!A474","v":1778},{"$f":"_xlfn.STDEV.S('II. Headline series'!M461:M491)","v":4.162902858840417},{"$f":"_xlfn.STDEV.S('II. Headline series'!P461:P491)","v":5.6332798511157165},{"$f":"_xlfn.STDEV.S('II. Headline series'!K461:K491)","v":0.6068967864433601},{"$f":"_xlfn.STDEV.S('II. Headline series'!N461:N491)","v":0.646301410312228},{"$f":"B472/D472","v":6.859325921359},{"$f":"C472/E472","v":8.716180656938812}]
[{"$f":"'III. GDP shares, 1310-2018'!A475","v":1779},{"$f":"_xlfn.STDEV.S('II. Headline series'!M462:M492)","v":4.161708541583527},{"$f":"_xlfn.STDEV.S('II. Headline series'!P462:P492)","v":5.629068537182161},{"$f":"_xlfn.STDEV.S('II. Headline series'!K462:K492)","v":0.5963821559181214},{"$f":"_xlfn.STDEV.S('II. Headline series'!N462:N492)","v":0.6431751774634112},6.978257984893326,8.751999042286402]
[{"$f":"'III. GDP shares, 1310-2018'!A476","v":1780},{"$f":"_xlfn.STDEV.S('II. Headline series'!M463:M493)","v":4.323391807519788},{"$f":"_xlfn.STDEV.S('II. Headline series'!P463:P493)","v":5.96414806650458},{"$f":"_xlfn.STDEV.S('II. Headline series'!K463:K493)","v":0.5939251622294354},{"$f":"_xlfn.STDEV.S('II. Headline series'!N463:N493)","v":0.6448778008697488},7.27935450872453,9.248493371086296]
[{"$f":"'III. GDP shares, 1310-2018'!A477","v":1781},{"$f":"_xlfn.STDEV.S('II. Headline series'!M464:M494)","v":4.363962667028657},{"$f":"_xlfn.STDEV.S('II. Headline series'!P464:P494)","v":5.902202197388459},{"$f":"_xlfn.STDEV.S('II. Headline series'!K464:K494)","v":0.6026455655408771},{"$f":"_xlfn.STDEV.S('II. Headline series'!N464:N494)","v":0.6496722767464059},7.241342036777423,9.084891580947565]
[{"$f":"'III. GDP shares, 1310-2018'!A478","v":1782},{"$f":"_xlfn.STDEV.S('II. Headline series'!M465:M495)","v":4.620807364572043},{"$f":"_xlfn.STDEV.S('II. Headline series'!P465:P495)","v":6.3494983491638735},{"$f":"_xlfn.STDEV.S('II. Headline series'!K465:K495)","v":0.9328527839387069},{"$f":"_xlfn.STDEV.S('II. Headline series'!N465:N495)","v":0.704873402650805},4.953415420021573,9.007998209728763]
[{"$f":"'III. GDP shares, 1310-2018'!A479","v":1783},{"$f":"_xlfn.STDEV.S('II. Headline series'!M466:M496)","v":5.02424068957544},{"$f":"_xlfn.STDEV.S('II. Headline series'!P466:P496)","v":5.690641273611839},{"$f":"_xlfn.STDEV.S('II. Headline series'!K466:K496)","v":2.109116704533967},{"$f":"_xlfn.STDEV.S('II. Headline series'!N466:N496)","v":0.7604874322113969},2.3821539504072167,7.482886675805025]
[{"$f":"'III. GDP shares, 1310-2018'!A480","v":1784},{"$f":"_xlfn.STDEV.S('II. Headline series'!M467:M497)","v":5.075443022502976},{"$f":"_xlfn.STDEV.S('II. Headline series'!P467:P497)","v":6.661335839460215},{"$f":"_xlfn.STDEV.S('II. Headline series'!K467:K497)","v":2.20232804014743},{"$f":"_xlfn.STDEV.S('II. Headline series'!N467:N497)","v":0.7566833708153763},2.3045808480752994,8.803333199039628]
[{"$f":"'III. GDP shares, 1310-2018'!A481","v":1785},{"$f":"_xlfn.STDEV.S('II. Headline series'!M468:M498)","v":5.701218676477997},{"$f":"_xlfn.STDEV.S('II. Headline series'!P468:P498)","v":8.676483064021367},{"$f":"_xlfn.STDEV.S('II. Headline series'!K468:K498)","v":2.19708087967683},{"$f":"_xlfn.STDEV.S('II. Headline series'!N468:N498)","v":0.7425604589327942},2.594906145337987,11.684547648135188]
[{"$f":"'III. GDP shares, 1310-2018'!A482","v":1786},{"$f":"_xlfn.STDEV.S('II. Headline series'!M469:M499)","v":5.679845668138456},{"$f":"_xlfn.STDEV.S('II. Headline series'!P469:P499)","v":8.79356540060923},{"$f":"_xlfn.STDEV.S('II. Headline series'!K469:K499)","v":2.1958473058726637},{"$f":"_xlfn.STDEV.S('II. Headline series'!N469:N499)","v":0.7382504364899014},2.5866305243301957,11.911358213913523]
[{"$f":"'III. GDP shares, 1310-2018'!A483","v":1787},{"$f":"_xlfn.STDEV.S('II. Headline series'!M470:M500)","v":6.025200407600943},{"$f":"_xlfn.STDEV.S('II. Headline series'!P470:P500)","v":9.928016390929505},{"$f":"_xlfn.STDEV.S('II. Headline series'!K470:K500)","v":2.1949224877870623},{"$f":"_xlfn.STDEV.S('II. Headline series'!N470:N500)","v":0.7190711780203488},2.745062953760885,13.806722747895417]
[{"$f":"'III. GDP shares, 1310-2018'!A484","v":1788},{"$f":"_xlfn.STDEV.S('II. Headline series'!M471:M501)","v":6.039096280440674},{"$f":"_xlfn.STDEV.S('II. Headline series'!P471:P501)","v":10.02981583670016},{"$f":"_xlfn.STDEV.S('II. Headline series'!K471:K501)","v":2.197335250985582},{"$f":"_xlfn.STDEV.S('II. Headline series'!N471:N501)","v":0.7054339906804354},2.748372729073512,14.21793671584463]
[{"$f":"'III. GDP shares, 1310-2018'!A485","v":1789},{"$f":"_xlfn.STDEV.S('II. Headline series'!M472:M502)","v":5.995378880659929},{"$f":"_xlfn.STDEV.S('II. Headline series'!P472:P502)","v":10.029633103624235},{"$f":"_xlfn.STDEV.S('II. Headline series'!K472:K502)","v":2.1936094327610474},{"$f":"_xlfn.STDEV.S('II. Headline series'!N472:N502)","v":0.6961944469773237},2.7331113693806826,14.40636757039649]
[{"$f":"'III. GDP shares, 1310-2018'!A486","v":1790},{"$f":"_xlfn.STDEV.S('II. Headline series'!M473:M503)","v":6.030118212230018},{"$f":"_xlfn.STDEV.S('II. Headline series'!P473:P503)","v":10.31094010037084},{"$f":"_xlfn.STDEV.S('II. Headline series'!K473:K503)","v":2.1831706890575937},{"$f":"_xlfn.STDEV.S('II. Headline series'!N473:N503)","v":0.6728215004775844},2.7620919621420126,15.324926586103288]
[{"$f":"'III. GDP shares, 1310-2018'!A487","v":1791},{"$f":"_xlfn.STDEV.S('II. Headline series'!M474:M504)","v":6.095355892074784},{"$f":"_xlfn.STDEV.S('II. Headline series'!P474:P504)","v":10.38729414392249},{"$f":"_xlfn.STDEV.S('II. Headline series'!K474:K504)","v":2.1638199828635494},{"$f":"_xlfn.STDEV.S('II. Headline series'!N474:N504)","v":0.63943568060724},2.816942231954218,16.24447064645845]
[{"$f":"'III. GDP shares, 1310-2018'!A488","v":1792},{"$f":"_xlfn.STDEV.S('II. Headline series'!M475:M505)","v":6.1287227089914325},{"$f":"_xlfn.STDEV.S('II. Headline series'!P475:P505)","v":10.32183539022311},{"$f":"_xlfn.STDEV.S('II. Headline series'!K475:K505)","v":2.14216519585002},{"$f":"_xlfn.STDEV.S('II. Headline series'!N475:N505)","v":0.6104904313743746},2.860994437247184,16.90744827398186]
[{"$f":"'III. GDP shares, 1310-2018'!A489","v":1793},{"$f":"_xlfn.STDEV.S('II. Headline series'!M476:M506)","v":6.071218435947282},{"$f":"_xlfn.STDEV.S('II. Headline series'!P476:P506)","v":10.312403726863884},{"$f":"_xlfn.STDEV.S('II. Headline series'!K476:K506)","v":2.1242346576697413},{"$f":"_xlfn.STDEV.S('II. Headline series'!N476:N506)","v":0.592401785725021},2.858073336684626,17.407786362836287]
[{"$f":"'III. GDP shares, 1310-2018'!A490","v":1794},{"$f":"_xlfn.STDEV.S('II. Headline series'!M477:M507)","v":6.07705325893111},{"$f":"_xlfn.STDEV.S('II. Headline series'!P477:P507)","v":10.394823191694597},{"$f":"_xlfn.STDEV.S('II. Headline series'!K477:K507)","v":2.1149810360342283},{"$f":"_xlfn.STDEV.S('II. Headline series'!N477:N507)","v":0.5942817703232044},2.8733369970664646,17.4914051057654]
[{"$f":"'III. GDP shares, 1310-2018'!A491","v":1795},{"$f":"_xlfn.STDEV.S('II. Headline series'!M478:M508)","v":5.916923563062296},{"$f":"_xlfn.STDEV.S('II. Headline series'!P478:P508)","v":10.283156840640777},{"$f":"_xlfn.STDEV.S('II. Headline series'!K478:K508)","v":2.1390649062619636},{"$f":"_xlfn.STDEV.S('II. Headline series'!N478:N508)","v":0.5940761458046773},2.7661262384983805,17.309492921504567]
[{"$f":"'III. GDP shares, 1310-2018'!A492","v":1796},{"$f":"_xlfn.STDEV.S('II. Headline series'!M479:M509)","v":6.006069958485959},{"$f":"_xlfn.STDEV.S('II. Headline series'!P479:P509)","v":10.33292831953432},{"$f":"_xlfn.STDEV.S('II. Headline series'!K479:K509)","v":2.220331503756254},{"$f":"_xlfn.STDEV.S('II. Headline series'!N479:N509)","v":0.5920683582220917},2.7050329864370113,17.452255598598157]
[{"$f":"'III. GDP shares, 1310-2018'!A493","v":1797},{"$f":"_xlfn.STDEV.S('II. Headline series'!M480:M510)","v":6.027379503511377},{"$f":"_xlfn.STDEV.S('II. Headline series'!P480:P510)","v":10.422512067018088},{"$f":"_xlfn.STDEV.S('II. Headline series'!K480:K510)","v":2.2546761603219463},{"$f":"_xlfn.STDEV.S('II. Headline series'!N480:N510)","v":0.5892789753206943},2.6732794755991587,17.686889408104207]
[{"$f":"'III. GDP shares, 1310-2018'!A494","v":1798},{"$f":"_xlfn.STDEV.S('II. Headline series'!M481:M511)","v":6.364239975729677},{"$f":"_xlfn.STDEV.S('II. Headline series'!P481:P511)","v":10.410009664261104},{"$f":"_xlfn.STDEV.S('II. Headline series'!K481:K511)","v":2.2909440507007837},{"$f":"_xlfn.STDEV.S('II. Headline series'!N481:N511)","v":0.5863568841543616},2.7779988663550736,17.75370929476563]
[{"$f":"'III. GDP shares, 1310-2018'!A495","v":1799},{"$f":"_xlfn.STDEV.S('II. Headline series'!M482:M512)","v":6.587295676374895},{"$f":"_xlfn.STDEV.S('II. Headline series'!P482:P512)","v":10.778176982286602},{"$f":"_xlfn.STDEV.S('II. Headline series'!K482:K512)","v":2.2852451402363934},{"$f":"_xlfn.STDEV.S('II. Headline series'!N482:N512)","v":0.5862865648041377},2.8825335017202938,18.383803466291774]
[{"$f":"'III. GDP shares, 1310-2018'!A496","v":1800},{"$f":"_xlfn.STDEV.S('II. Headline series'!M483:M513)","v":6.634766302883881},{"$f":"_xlfn.STDEV.S('II. Headline series'!P483:P513)","v":10.967639790243556},{"$f":"_xlfn.STDEV.S('II. Headline series'!K483:K513)","v":2.2761143907386665},{"$f":"_xlfn.STDEV.S('II. Headline series'!N483:N513)","v":0.5851788030676961},2.9149529258635822,18.742373668949813]
[{"$f":"'III. GDP shares, 1310-2018'!A497","v":1801},{"$f":"_xlfn.STDEV.S('II. Headline series'!M484:M514)","v":6.601299545653028},{"$f":"_xlfn.STDEV.S('II. Headline series'!P484:P514)","v":11.07517554787449},{"$f":"_xlfn.STDEV.S('II. Headline series'!K484:K514)","v":2.2679125417441415},{"$f":"_xlfn.STDEV.S('II. Headline series'!N484:N514)","v":0.5831255421099923},2.910738145385575,18.992780710307883]
[{"$f":"'III. GDP shares, 1310-2018'!A498","v":1802},{"$f":"_xlfn.STDEV.S('II. Headline series'!M485:M515)","v":6.7380224375054825},{"$f":"_xlfn.STDEV.S('II. Headline series'!P485:P515)","v":11.260280256974593},{"$f":"_xlfn.STDEV.S('II. Headline series'!K485:K515)","v":2.2777478175238857},{"$f":"_xlfn.STDEV.S('II. Headline series'!N485:N515)","v":0.585722527251084},2.9581951020505475,19.224598223703975]
[{"$f":"'III. GDP shares, 1310-2018'!A499","v":1803},{"$f":"_xlfn.STDEV.S('II. Headline series'!M486:M516)","v":7.303161484979011},{"$f":"_xlfn.STDEV.S('II. Headline series'!P486:P516)","v":11.264705282307498},{"$f":"_xlfn.STDEV.S('II. Headline series'!K486:K516)","v":2.3138830597066167},{"$f":"_xlfn.STDEV.S('II. Headline series'!N486:N516)","v":0.5918869381705842},3.156236204047839,19.03185313925776]
[{"$f":"'III. GDP shares, 1310-2018'!A500","v":1804},{"$f":"_xlfn.STDEV.S('II. Headline series'!M487:M517)","v":7.757870329931806},{"$f":"_xlfn.STDEV.S('II. Headline series'!P487:P517)","v":11.29878057257503},{"$f":"_xlfn.STDEV.S('II. Headline series'!K487:K517)","v":2.3979610531968722},{"$f":"_xlfn.STDEV.S('II. Headline series'!N487:N517)","v":0.5867165272672714},3.235194466394399,19.257648365899893]
[{"$f":"'III. GDP shares, 1310-2018'!A501","v":1805},{"$f":"_xlfn.STDEV.S('II. Headline series'!M488:M518)","v":7.872250878819469},{"$f":"_xlfn.STDEV.S('II. Headline series'!P488:P518)","v":11.48922945165432},{"$f":"_xlfn.STDEV.S('II. Headline series'!K488:K518)","v":2.3878901113656075},{"$f":"_xlfn.STDEV.S('II. Headline series'!N488:N518)","v":0.5741340873882319},3.2967391762920855,20.011404485526135]
[{"$f":"'III. GDP shares, 1310-2018'!A502","v":1806},{"$f":"_xlfn.STDEV.S('II. Headline series'!M489:M519)","v":7.97786018003947},{"$f":"_xlfn.STDEV.S('II. Headline series'!P489:P519)","v":11.712630325933983},{"$f":"_xlfn.STDEV.S('II. Headline series'!K489:K519)","v":2.3628927875948706},{"$f":"_xlfn.STDEV.S('II. Headline series'!N489:N519)","v":0.5699743369959377},3.3763106908290723,20.54939944781665]
[{"$f":"'III. GDP shares, 1310-2018'!A503","v":1807},{"$f":"_xlfn.STDEV.S('II. Headline series'!M490:M520)","v":7.964772288691975},{"$f":"_xlfn.STDEV.S('II. Headline series'!P490:P520)","v":11.993406303262612},{"$f":"_xlfn.STDEV.S('II. Headline series'!K490:K520)","v":2.3324708993617462},{"$f":"_xlfn.STDEV.S('II. Headline series'!N490:N520)","v":0.5653384615955881},3.4147359741428898,21.21455927377188]
[{"$f":"'III. GDP shares, 1310-2018'!A504","v":1808},{"$f":"_xlfn.STDEV.S('II. Headline series'!M491:M521)","v":7.932519796670866},{"$f":"_xlfn.STDEV.S('II. Headline series'!P491:P521)","v":12.035895125705583},{"$f":"_xlfn.STDEV.S('II. Headline series'!K491:K521)","v":2.289602776328176},{"$f":"_xlfn.STDEV.S('II. Headline series'!N491:N521)","v":0.5358818191082209},3.4645834110107985,22.45998034741116]
[{"$f":"'III. GDP shares, 1310-2018'!A505","v":1809},{"$f":"_xlfn.STDEV.S('II. Headline series'!M492:M522)","v":7.515326269642773},{"$f":"_xlfn.STDEV.S('II. Headline series'!P492:P522)","v":12.095332295280286},{"$f":"_xlfn.STDEV.S('II. Headline series'!K492:K522)","v":2.259900386127479},{"$f":"_xlfn.STDEV.S('II. Headline series'!N492:N522)","v":0.5823595208913115},3.325512184420168,20.769527862733604]
[{"$f":"'III. GDP shares, 1310-2018'!A506","v":1810},{"$f":"_xlfn.STDEV.S('II. Headline series'!M493:M523)","v":7.524183520994961},{"$f":"_xlfn.STDEV.S('II. Headline series'!P493:P523)","v":12.467288666197751},{"$f":"_xlfn.STDEV.S('II. Headline series'!K493:K523)","v":2.2121394783119457},{"$f":"_xlfn.STDEV.S('II. Headline series'!N493:N523)","v":0.6221655464880491},3.401315149773723,20.038539158222626]
[{"$f":"'III. GDP shares, 1310-2018'!A507","v":1811},{"$f":"_xlfn.STDEV.S('II. Headline series'!M494:M524)","v":7.237861546115455},{"$f":"_xlfn.STDEV.S('II. Headline series'!P494:P524)","v":12.268041255314353},{"$f":"_xlfn.STDEV.S('II. Headline series'!K494:K524)","v":2.1599259656035517},{"$f":"_xlfn.STDEV.S('II. Headline series'!N494:N524)","v":0.63741071270438},3.350976682246128,19.246681944305596]
[{"$f":"'III. GDP shares, 1310-2018'!A508","v":1812},{"$f":"_xlfn.STDEV.S('II. Headline series'!M495:M525)","v":7.257381452956482},{"$f":"_xlfn.STDEV.S('II. Headline series'!P495:P525)","v":12.332981193720574},{"$f":"_xlfn.STDEV.S('II. Headline series'!K495:K525)","v":2.1385652157122923},{"$f":"_xlfn.STDEV.S('II. Headline series'!N495:N525)","v":0.6586622194635485},3.3935750004889442,18.724288154503906]
[{"$f":"'III. GDP shares, 1310-2018'!A509","v":1813},{"$f":"_xlfn.STDEV.S('II. Headline series'!M496:M526)","v":7.197713450648015},{"$f":"_xlfn.STDEV.S('II. Headline series'!P496:P526)","v":12.130268957347226},{"$f":"_xlfn.STDEV.S('II. Headline series'!K496:K526)","v":2.1220273905960374},{"$f":"_xlfn.STDEV.S('II. Headline series'!N496:N526)","v":0.6408194466339375},3.3919041208164207,18.92930843635358]
[{"$f":"'III. GDP shares, 1310-2018'!A510","v":1814},{"$f":"_xlfn.STDEV.S('II. Headline series'!M497:M527)","v":6.990835357659007},{"$f":"_xlfn.STDEV.S('II. Headline series'!P497:P527)","v":12.129477454995827},{"$f":"_xlfn.STDEV.S('II. Headline series'!K497:K527)","v":1.4772104379235245},{"$f":"_xlfn.STDEV.S('II. Headline series'!N497:N527)","v":0.6059209720635887},4.732457325095698,20.018249927356685]
[{"$f":"'III. GDP shares, 1310-2018'!A511","v":1815},{"$f":"_xlfn.STDEV.S('II. Headline series'!M498:M528)","v":6.889230901956425},{"$f":"_xlfn.STDEV.S('II. Headline series'!P498:P528)","v":11.632878976694803},{"$f":"_xlfn.STDEV.S('II. Headline series'!K498:K528)","v":1.4269423661451401},{"$f":"_xlfn.STDEV.S('II. Headline series'!N498:N528)","v":0.6145538305424937},4.8279671733116745,18.928982944302778]
[{"$f":"'III. GDP shares, 1310-2018'!A512","v":1816},{"$f":"_xlfn.STDEV.S('II. Headline series'!M499:M529)","v":6.211424970534796},{"$f":"_xlfn.STDEV.S('II. Headline series'!P499:P529)","v":9.793400313892205},{"$f":"_xlfn.STDEV.S('II. Headline series'!K499:K529)","v":1.4177615285487362},{"$f":"_xlfn.STDEV.S('II. Headline series'!N499:N529)","v":0.6189538883789248},4.381149329741652,15.82250390177154]
[{"$f":"'III. GDP shares, 1310-2018'!A513","v":1817},{"$f":"_xlfn.STDEV.S('II. Headline series'!M500:M530)","v":6.071145607940851},{"$f":"_xlfn.STDEV.S('II. Headline series'!P500:P530)","v":9.629168998800745},{"$f":"_xlfn.STDEV.S('II. Headline series'!K500:K530)","v":1.3973669003044051},{"$f":"_xlfn.STDEV.S('II. Headline series'!N500:N530)","v":0.6189268481809099},4.344704033434813,15.557846661688485]
[{"$f":"'III. GDP shares, 1310-2018'!A514","v":1818},{"$f":"_xlfn.STDEV.S('II. Headline series'!M501:M531)","v":5.886637043712287},{"$f":"_xlfn.STDEV.S('II. Headline series'!P501:P531)","v":8.757707825618066},{"$f":"_xlfn.STDEV.S('II. Headline series'!K501:K531)","v":1.4185177150170998},{"$f":"_xlfn.STDEV.S('II. Headline series'!N501:N531)","v":0.6353735284248498},4.149850919303693,13.78355791329431]
[{"$f":"'III. GDP shares, 1310-2018'!A515","v":1819},{"$f":"_xlfn.STDEV.S('II. Headline series'!M502:M532)","v":5.98307020827398},{"$f":"_xlfn.STDEV.S('II. Headline series'!P502:P532)","v":8.761348296515193},{"$f":"_xlfn.STDEV.S('II. Headline series'!K502:K532)","v":1.4956199755891098},{"$f":"_xlfn.STDEV.S('II. Headline series'!N502:N532)","v":0.6332890718038254},4.000394689778938,13.83467469533282]
[{"$f":"'III. GDP shares, 1310-2018'!A516","v":1820},{"$f":"_xlfn.STDEV.S('II. Headline series'!M503:M533)","v":6.127580925283853},{"$f":"_xlfn.STDEV.S('II. Headline series'!P503:P533)","v":8.765766340843689},{"$f":"_xlfn.STDEV.S('II. Headline series'!K503:K533)","v":1.5701355283280134},{"$f":"_xlfn.STDEV.S('II. Headline series'!N503:N533)","v":0.6162589896039774},3.90258090128622,14.224159791124146]
[{"$f":"'III. GDP shares, 1310-2018'!A517","v":1821},{"$f":"_xlfn.STDEV.S('II. Headline series'!M504:M534)","v":6.139273730841574},{"$f":"_xlfn.STDEV.S('II. Headline series'!P504:P534)","v":8.579424638362372},{"$f":"_xlfn.STDEV.S('II. Headline series'!K504:K534)","v":1.5904498178823274},{"$f":"_xlfn.STDEV.S('II. Headline series'!N504:N534)","v":0.6025322010888426},3.860086411915827,14.23894793151038]
[{"$f":"'III. GDP shares, 1310-2018'!A518","v":1822},{"$f":"_xlfn.STDEV.S('II. Headline series'!M505:M535)","v":6.25572038206869},{"$f":"_xlfn.STDEV.S('II. Headline series'!P505:P535)","v":8.560459623497302},{"$f":"_xlfn.STDEV.S('II. Headline series'!K505:K535)","v":1.6076281895264295},{"$f":"_xlfn.STDEV.S('II. Headline series'!N505:N535)","v":0.5945102483555146},3.8912731331934918,14.399179235642348]
[{"$f":"'III. GDP shares, 1310-2018'!A519","v":1823},{"$f":"_xlfn.STDEV.S('II. Headline series'!M506:M536)","v":6.264732212660926},{"$f":"_xlfn.STDEV.S('II. Headline series'!P506:P536)","v":8.55519008352382},{"$f":"_xlfn.STDEV.S('II. Headline series'!K506:K536)","v":1.6089258536100892},{"$f":"_xlfn.STDEV.S('II. Headline series'!N506:N536)","v":0.5910490053020323},3.8937358105124558,14.474586720862558]
[{"$f":"'III. GDP shares, 1310-2018'!A520","v":1824},{"$f":"_xlfn.STDEV.S('II. Headline series'!M507:M537)","v":6.278908197427257},{"$f":"_xlfn.STDEV.S('II. Headline series'!P507:P537)","v":8.665722340122679},{"$f":"_xlfn.STDEV.S('II. Headline series'!K507:K537)","v":1.6323554716161692},{"$f":"_xlfn.STDEV.S('II. Headline series'!N507:N537)","v":0.5915289160696093},3.846532392365867,14.649701992088115]
[{"$f":"'III. GDP shares, 1310-2018'!A521","v":1825},{"$f":"_xlfn.STDEV.S('II. Headline series'!M508:M538)","v":6.283557225854452},{"$f":"_xlfn.STDEV.S('II. Headline series'!P508:P538)","v":8.50486836303988},{"$f":"_xlfn.STDEV.S('II. Headline series'!K508:K538)","v":1.6573896680295601},{"$f":"_xlfn.STDEV.S('II. Headline series'!N508:N538)","v":0.5920330254290717},3.7912371164500236,14.365530296010155]
[{"$f":"'III. GDP shares, 1310-2018'!A522","v":1826},{"$f":"_xlfn.STDEV.S('II. Headline series'!M509:M539)","v":6.270389902330511},{"$f":"_xlfn.STDEV.S('II. Headline series'!P509:P539)","v":8.489303185436054},{"$f":"_xlfn.STDEV.S('II. Headline series'!K509:K539)","v":1.668513389001426},{"$f":"_xlfn.STDEV.S('II. Headline series'!N509:N539)","v":0.5890171429768429},3.7580698744546615,14.41265892963969]
[{"$f":"'III. GDP shares, 1310-2018'!A523","v":1827},{"$f":"_xlfn.STDEV.S('II. Headline series'!M510:M540)","v":6.061720479847153},{"$f":"_xlfn.STDEV.S('II. Headline series'!P510:P540)","v":8.551182315325793},{"$f":"_xlfn.STDEV.S('II. Headline series'!K510:K540)","v":1.5972863152198793},{"$f":"_xlfn.STDEV.S('II. Headline series'!N510:N540)","v":0.5750518664447086},3.795011841075411,14.870280081332439]
[{"$f":"'III. GDP shares, 1310-2018'!A524","v":1828},{"$f":"_xlfn.STDEV.S('II. Headline series'!M511:M541)","v":5.824551020133224},{"$f":"_xlfn.STDEV.S('II. Headline series'!P511:P541)","v":8.39623438996844},{"$f":"_xlfn.STDEV.S('II. Headline series'!K511:K541)","v":1.5578246082397806},{"$f":"_xlfn.STDEV.S('II. Headline series'!N511:N541)","v":0.5379213331928515},3.738900380264572,15.608665936582748]
[{"$f":"'III. GDP shares, 1310-2018'!A525","v":1829},{"$f":"_xlfn.STDEV.S('II. Headline series'!M512:M542)","v":5.636861014313523},{"$f":"_xlfn.STDEV.S('II. Headline series'!P512:P542)","v":8.390549543545129},{"$f":"_xlfn.STDEV.S('II. Headline series'!K512:K542)","v":1.5188485547502544},{"$f":"_xlfn.STDEV.S('II. Headline series'!N512:N542)","v":0.49197911474158357},3.7112725930995785,17.054686453412437]
[{"$f":"'III. GDP shares, 1310-2018'!A526","v":1830},{"$f":"_xlfn.STDEV.S('II. Headline series'!M513:M543)","v":5.612611532172174},{"$f":"_xlfn.STDEV.S('II. Headline series'!P513:P543)","v":8.180390218484913},{"$f":"_xlfn.STDEV.S('II. Headline series'!K513:K543)","v":1.5162513260346882},{"$f":"_xlfn.STDEV.S('II. Headline series'!N513:N543)","v":0.4758457220473968},3.7016366850278826,17.19126565494289]
[{"$f":"'III. GDP shares, 1310-2018'!A527","v":1831},{"$f":"_xlfn.STDEV.S('II. Headline series'!M514:M544)","v":5.900032666374445},{"$f":"_xlfn.STDEV.S('II. Headline series'!P514:P544)","v":7.970426778098121},{"$f":"_xlfn.STDEV.S('II. Headline series'!K514:K544)","v":1.4950077634465544},{"$f":"_xlfn.STDEV.S('II. Headline series'!N514:N544)","v":0.4022502295126212},3.9464896508447915,19.814598459658647]
[{"$f":"'III. GDP shares, 1310-2018'!A528","v":1832},{"$f":"_xlfn.STDEV.S('II. Headline series'!M515:M545)","v":6.127204251238349},{"$f":"_xlfn.STDEV.S('II. Headline series'!P515:P545)","v":8.099098164476374},{"$f":"_xlfn.STDEV.S('II. Headline series'!K515:K545)","v":1.437122561804837},{"$f":"_xlfn.STDEV.S('II. Headline series'!N515:N545)","v":0.3277176183144952},4.263522412133997,24.71364892168858]
[{"$f":"'III. GDP shares, 1310-2018'!A529","v":1833},{"$f":"_xlfn.STDEV.S('II. Headline series'!M516:M546)","v":6.47430334785994},{"$f":"_xlfn.STDEV.S('II. Headline series'!P516:P546)","v":8.02026474473645},{"$f":"_xlfn.STDEV.S('II. Headline series'!K516:K546)","v":1.3992331314019617},{"$f":"_xlfn.STDEV.S('II. Headline series'!N516:N546)","v":0.3150699901057295},4.627036912264228,25.45550194115616]
[{"$f":"'III. GDP shares, 1310-2018'!A530","v":1834},{"$f":"_xlfn.STDEV.S('II. Headline series'!M517:M547)","v":5.9347782236395235},{"$f":"_xlfn.STDEV.S('II. Headline series'!P517:P547)","v":8.075786988897926},{"$f":"_xlfn.STDEV.S('II. Headline series'!K517:K547)","v":1.2532681728156323},{"$f":"_xlfn.STDEV.S('II. Headline series'!N517:N547)","v":0.3107423372985662},4.735441585743186,25.988692300845315]
[{"$f":"'III. GDP shares, 1310-2018'!A531","v":1835},{"$f":"_xlfn.STDEV.S('II. Headline series'!M518:M548)","v":5.478805769315672},{"$f":"_xlfn.STDEV.S('II. Headline series'!P518:P548)","v":8.118577559390667},{"$f":"_xlfn.STDEV.S('II. Headline series'!K518:K548)","v":0.9119349135928371},{"$f":"_xlfn.STDEV.S('II. Headline series'!N518:N548)","v":0.286781113355529},6.007891229572841,28.309317389830632]
[{"$f":"'III. GDP shares, 1310-2018'!A532","v":1836},{"$f":"_xlfn.STDEV.S('II. Headline series'!M519:M549)","v":5.469725260324854},{"$f":"_xlfn.STDEV.S('II. Headline series'!P519:P549)","v":7.9456786797533905},{"$f":"_xlfn.STDEV.S('II. Headline series'!K519:K549)","v":0.9473617730604716},{"$f":"_xlfn.STDEV.S('II. Headline series'!N519:N549)","v":0.23432320354768518},5.773639401402902,33.909056207216075]
[{"$f":"'III. GDP shares, 1310-2018'!A533","v":1837},{"$f":"_xlfn.STDEV.S('II. Headline series'!M520:M550)","v":5.332450428358928},{"$f":"_xlfn.STDEV.S('II. Headline series'!P520:P550)","v":7.642837097346541},{"$f":"_xlfn.STDEV.S('II. Headline series'!K520:K550)","v":1.0004723561148368},{"$f":"_xlfn.STDEV.S('II. Headline series'!N520:N550)","v":0.2154276142733763},5.32993280200823,35.47751815905935]
[{"$f":"'III. GDP shares, 1310-2018'!A534","v":1838},{"$f":"_xlfn.STDEV.S('II. Headline series'!M521:M551)","v":5.587913853662178},{"$f":"_xlfn.STDEV.S('II. Headline series'!P521:P551)","v":7.428414307002351},{"$f":"_xlfn.STDEV.S('II. Headline series'!K521:K551)","v":1.0359890950932475},{"$f":"_xlfn.STDEV.S('II. Headline series'!N521:N551)","v":0.20752271629066377},5.393796015931248,35.79566825155588]
[{"$f":"'III. GDP shares, 1310-2018'!A535","v":1839},{"$f":"_xlfn.STDEV.S('II. Headline series'!M522:M552)","v":6.053330639621276},{"$f":"_xlfn.STDEV.S('II. Headline series'!P522:P552)","v":7.8258244224555655},{"$f":"_xlfn.STDEV.S('II. Headline series'!K522:K552)","v":1.0604119984731997},{"$f":"_xlfn.STDEV.S('II. Headline series'!N522:N552)","v":0.19133523358042032},5.708470526867831,40.90111515799982]
[{"$f":"'III. GDP shares, 1310-2018'!A536","v":1840},{"$f":"_xlfn.STDEV.S('II. Headline series'!M523:M553)","v":6.038053992582262},{"$f":"_xlfn.STDEV.S('II. Headline series'!P523:P553)","v":7.6958933391013895},{"$f":"_xlfn.STDEV.S('II. Headline series'!K523:K553)","v":1.0850445650592382},{"$f":"_xlfn.STDEV.S('II. Headline series'!N523:N553)","v":0.19006724298879607},5.564798153938141,40.49037181833084]
[{"$f":"'III. GDP shares, 1310-2018'!A537","v":1841},{"$f":"_xlfn.STDEV.S('II. Headline series'!M524:M554)","v":6.034234143279614},{"$f":"_xlfn.STDEV.S('II. Headline series'!P524:P554)","v":7.02022406508106},{"$f":"_xlfn.STDEV.S('II. Headline series'!K524:K554)","v":1.0666045994603663},{"$f":"_xlfn.STDEV.S('II. Headline series'!N524:N554)","v":0.19072366488768616},5.657423703528514,36.80835343225576]
[{"$f":"'III. GDP shares, 1310-2018'!A538","v":1842},{"$f":"_xlfn.STDEV.S('II. Headline series'!M525:M555)","v":6.135661242614388},{"$f":"_xlfn.STDEV.S('II. Headline series'!P525:P555)","v":7.009035083275831},{"$f":"_xlfn.STDEV.S('II. Headline series'!K525:K555)","v":1.0411020702446818},{"$f":"_xlfn.STDEV.S('II. Headline series'!N525:N555)","v":0.16897996102229232},{"$f":"B536/D536","v":5.893429105536572},{"$f":"C536/E536","v":41.47849863896689}]
[{"$f":"'III. GDP shares, 1310-2018'!A539","v":1843},{"$f":"_xlfn.STDEV.S('II. Headline series'!M526:M556)","v":6.209308236923276},{"$f":"_xlfn.STDEV.S('II. Headline series'!P526:P556)","v":7.058148679067055},{"$f":"_xlfn.STDEV.S('II. Headline series'!K526:K556)","v":0.9863725064434883},{"$f":"_xlfn.STDEV.S('II. Headline series'!N526:N556)","v":0.16488427103495962},6.295094597995085,42.806682740347924]
[{"$f":"'III. GDP shares, 1310-2018'!A540","v":1844},{"$f":"_xlfn.STDEV.S('II. Headline series'!M527:M557)","v":6.195896955702888},{"$f":"_xlfn.STDEV.S('II. Headline series'!P527:P557)","v":7.043718844223411},{"$f":"_xlfn.STDEV.S('II. Headline series'!K527:K557)","v":0.9088551826591972},{"$f":"_xlfn.STDEV.S('II. Headline series'!N527:N557)","v":0.16101295882785116},6.817254359021714,43.746285364237565]
[{"$f":"'III. GDP shares, 1310-2018'!A541","v":1845},{"$f":"_xlfn.STDEV.S('II. Headline series'!M528:M558)","v":6.188745616700679},{"$f":"_xlfn.STDEV.S('II. Headline series'!P528:P558)","v":7.077977093284133},{"$f":"_xlfn.STDEV.S('II. Headline series'!K528:K558)","v":0.843906160374331},{"$f":"_xlfn.STDEV.S('II. Headline series'!N528:N558)","v":0.16032389067196007},7.333452352042958,44.147987325023415]
[{"$f":"'III. GDP shares, 1310-2018'!A542","v":1846},{"$f":"_xlfn.STDEV.S('II. Headline series'!M529:M559)","v":6.187649222404389},{"$f":"_xlfn.STDEV.S('II. Headline series'!P529:P559)","v":7.062008132957848},{"$f":"_xlfn.STDEV.S('II. Headline series'!K529:K559)","v":0.7774023507568834},{"$f":"_xlfn.STDEV.S('II. Headline series'!N529:N559)","v":0.15898462830889398},7.959390933639521,44.41943984192579]
[{"$f":"'III. GDP shares, 1310-2018'!A543","v":1847},{"$f":"_xlfn.STDEV.S('II. Headline series'!M530:M560)","v":6.117447274871339},{"$f":"_xlfn.STDEV.S('II. Headline series'!P530:P560)","v":6.858927865182794},{"$f":"_xlfn.STDEV.S('II. Headline series'!K530:K560)","v":0.7191070457453734},{"$f":"_xlfn.STDEV.S('II. Headline series'!N530:N560)","v":0.13690426043429998},8.50700505726577,50.10017835401388]
[{"$f":"'III. GDP shares, 1310-2018'!A544","v":1848},{"$f":"_xlfn.STDEV.S('II. Headline series'!M531:M561)","v":6.070748509296216},{"$f":"_xlfn.STDEV.S('II. Headline series'!P531:P561)","v":6.747993699066509},{"$f":"_xlfn.STDEV.S('II. Headline series'!K531:K561)","v":0.6865012121379613},{"$f":"_xlfn.STDEV.S('II. Headline series'!N531:N561)","v":0.1209098956748424},8.843026642866612,55.81010273314261]
[{"$f":"'III. GDP shares, 1310-2018'!A545","v":1849},{"$f":"_xlfn.STDEV.S('II. Headline series'!M532:M562)","v":6.031859652429992},{"$f":"_xlfn.STDEV.S('II. Headline series'!P532:P562)","v":6.654292951180169},{"$f":"_xlfn.STDEV.S('II. Headline series'!K532:K562)","v":0.681844614273018},{"$f":"_xlfn.STDEV.S('II. Headline series'!N532:N562)","v":0.11748880591464651},8.846384537129701,56.63767623967846]
[{"$f":"'III. GDP shares, 1310-2018'!A546","v":1850},{"$f":"_xlfn.STDEV.S('II. Headline series'!M533:M563)","v":5.785540055215556},{"$f":"_xlfn.STDEV.S('II. Headline series'!P533:P563)","v":6.4921170011038365},{"$f":"_xlfn.STDEV.S('II. Headline series'!K533:K563)","v":0.6770996612068251},{"$f":"_xlfn.STDEV.S('II. Headline series'!N533:N563)","v":0.11868889219173112},8.544591567072606,54.69860642575053]
[{"$f":"'III. GDP shares, 1310-2018'!A547","v":1851},{"$f":"_xlfn.STDEV.S('II. Headline series'!M534:M564)","v":5.7634753055277965},{"$f":"_xlfn.STDEV.S('II. Headline series'!P534:P564)","v":6.578621954576983},{"$f":"_xlfn.STDEV.S('II. Headline series'!K534:K564)","v":0.668957480173823},{"$f":"_xlfn.STDEV.S('II. Headline series'!N534:N564)","v":0.12230578384864745},8.615607832100489,53.78831439989773]
[{"$f":"'III. GDP shares, 1310-2018'!A548","v":1852},{"$f":"_xlfn.STDEV.S('II. Headline series'!M535:M565)","v":5.7727923523053475},{"$f":"_xlfn.STDEV.S('II. Headline series'!P535:P565)","v":6.377599134904115},{"$f":"_xlfn.STDEV.S('II. Headline series'!K535:K565)","v":0.662693316680759},{"$f":"_xlfn.STDEV.S('II. Headline series'!N535:N565)","v":0.12115140384338104},8.711106943434423,52.64156198428193]
[{"$f":"'III. GDP shares, 1310-2018'!A549","v":1853},{"$f":"_xlfn.STDEV.S('II. Headline series'!M536:M566)","v":5.75089350413879},{"$f":"_xlfn.STDEV.S('II. Headline series'!P536:P566)","v":6.373996059712102},{"$f":"_xlfn.STDEV.S('II. Headline series'!K536:K566)","v":0.655730519179188},{"$f":"_xlfn.STDEV.S('II. Headline series'!N536:N566)","v":0.1207360635932949},8.770208699966386,52.792809952651815]
[{"$f":"'III. GDP shares, 1310-2018'!A550","v":1854},{"$f":"_xlfn.STDEV.S('II. Headline series'!M537:M567)","v":5.851254218206464},{"$f":"_xlfn.STDEV.S('II. Headline series'!P537:P567)","v":6.439281644697325},{"$f":"_xlfn.STDEV.S('II. Headline series'!K537:K567)","v":0.6410324093508304},{"$f":"_xlfn.STDEV.S('II. Headline series'!N537:N567)","v":0.12069798325810162},9.12786020309331,53.350366517123234]
[{"$f":"'III. GDP shares, 1310-2018'!A551","v":1855},{"$f":"_xlfn.STDEV.S('II. Headline series'!M538:M568)","v":5.845628498726432},{"$f":"_xlfn.STDEV.S('II. Headline series'!P538:P568)","v":6.2956173722252755},{"$f":"_xlfn.STDEV.S('II. Headline series'!K538:K568)","v":0.651252866632228},{"$f":"_xlfn.STDEV.S('II. Headline series'!N538:N568)","v":0.12050079326548788},8.975973539979124,52.24544338355303]
[{"$f":"'III. GDP shares, 1310-2018'!A552","v":1856},{"$f":"_xlfn.STDEV.S('II. Headline series'!M539:M569)","v":5.813062094834402},{"$f":"_xlfn.STDEV.S('II. Headline series'!P539:P569)","v":6.292752425644839},{"$f":"_xlfn.STDEV.S('II. Headline series'!K539:K569)","v":0.6510360114690189},{"$f":"_xlfn.STDEV.S('II. Headline series'!N539:N569)","v":0.11890405070912173},8.928940937871653,52.922944072266915]
[{"$f":"'III. GDP shares, 1310-2018'!A553","v":1857},{"$f":"_xlfn.STDEV.S('II. Headline series'!M540:M570)","v":5.771196251060076},{"$f":"_xlfn.STDEV.S('II. Headline series'!P540:P570)","v":6.3412541053153255},{"$f":"_xlfn.STDEV.S('II. Headline series'!K540:K570)","v":0.651984191132388},{"$f":"_xlfn.STDEV.S('II. Headline series'!N540:N570)","v":0.11611059764240914},8.851742618231997,54.61391323507577]
[{"$f":"'III. GDP shares, 1310-2018'!A554","v":1858},{"$f":"_xlfn.STDEV.S('II. Headline series'!M541:M571)","v":5.7787812394252205},{"$f":"_xlfn.STDEV.S('II. Headline series'!P541:P571)","v":6.204557455521755},{"$f":"_xlfn.STDEV.S('II. Headline series'!K541:K571)","v":0.6586501398180359},{"$f":"_xlfn.STDEV.S('II. Headline series'!N541:N571)","v":0.11581610880144252},8.773673442203647,53.572491078585394]
[{"$f":"'III. GDP shares, 1310-2018'!A555","v":1859},{"$f":"_xlfn.STDEV.S('II. Headline series'!M542:M572)","v":5.702109383365727},{"$f":"_xlfn.STDEV.S('II. Headline series'!P542:P572)","v":5.869142579540274},{"$f":"_xlfn.STDEV.S('II. Headline series'!K542:K572)","v":0.6591236969815865},{"$f":"_xlfn.STDEV.S('II. Headline series'!N542:N572)","v":0.11501939611781464},8.651045940963982,51.02741605014599]
[{"$f":"'III. GDP shares, 1310-2018'!A556","v":1860},{"$f":"_xlfn.STDEV.S('II. Headline series'!M543:M573)","v":5.786828571418913},{"$f":"_xlfn.STDEV.S('II. Headline series'!P543:P573)","v":5.8847991760428195},{"$f":"_xlfn.STDEV.S('II. Headline series'!K543:K573)","v":0.6595201900403848},{"$f":"_xlfn.STDEV.S('II. Headline series'!N543:N573)","v":0.10901295696258007},8.774300861152659,53.98256629313196]
[{"$f":"'III. GDP shares, 1310-2018'!A557","v":1861},{"$f":"_xlfn.STDEV.S('II. Headline series'!M544:M574)","v":5.7838371992757684},{"$f":"_xlfn.STDEV.S('II. Headline series'!P544:P574)","v":5.823708868939682},{"$f":"_xlfn.STDEV.S('II. Headline series'!K544:K574)","v":0.6611319884828294},{"$f":"_xlfn.STDEV.S('II. Headline series'!N544:N574)","v":0.10500370383407566},8.748385042672888,55.46193759166979]
[{"$f":"'III. GDP shares, 1310-2018'!A558","v":1862},{"$f":"_xlfn.STDEV.S('II. Headline series'!M545:M575)","v":5.611882713158611},{"$f":"_xlfn.STDEV.S('II. Headline series'!P545:P575)","v":5.783356744286659},{"$f":"_xlfn.STDEV.S('II. Headline series'!K545:K575)","v":0.6619761891779056},{"$f":"_xlfn.STDEV.S('II. Headline series'!N545:N575)","v":0.10502986012389601},8.477469136960789,55.063928843325684]
[{"$f":"'III. GDP shares, 1310-2018'!A559","v":1863},{"$f":"_xlfn.STDEV.S('II. Headline series'!M546:M576)","v":5.513853734795745},{"$f":"_xlfn.STDEV.S('II. Headline series'!P546:P576)","v":5.3769780390436805},{"$f":"_xlfn.STDEV.S('II. Headline series'!K546:K576)","v":0.6459473872762203},{"$f":"_xlfn.STDEV.S('II. Headline series'!N546:N576)","v":0.0983332384185608},8.536072509010566,54.681185380636805]
[{"$f":"'III. GDP shares, 1310-2018'!A560","v":1864},{"$f":"_xlfn.STDEV.S('II. Headline series'!M547:M577)","v":4.569084290197315},{"$f":"_xlfn.STDEV.S('II. Headline series'!P547:P577)","v":4.9489071850950035},{"$f":"_xlfn.STDEV.S('II. Headline series'!K547:K577)","v":0.5109801016659128},{"$f":"_xlfn.STDEV.S('II. Headline series'!N547:N577)","v":0.08741309044880977},8.941804730362392,56.61517239220763]
[{"$f":"'III. GDP shares, 1310-2018'!A561","v":1865},{"$f":"_xlfn.STDEV.S('II. Headline series'!M548:M578)","v":4.497103377596045},{"$f":"_xlfn.STDEV.S('II. Headline series'!P548:P578)","v":4.83968019115965},{"$f":"_xlfn.STDEV.S('II. Headline series'!K548:K578)","v":0.4826512321063922},{"$f":"_xlfn.STDEV.S('II. Headline series'!N548:N578)","v":0.09238728294942233},9.317501082447741,52.384700974582685]
[{"$f":"'III. GDP shares, 1310-2018'!A562","v":1866},{"$f":"_xlfn.STDEV.S('II. Headline series'!M549:M579)","v":4.271389976203197},{"$f":"_xlfn.STDEV.S('II. Headline series'!P549:P579)","v":4.689149470992075},{"$f":"_xlfn.STDEV.S('II. Headline series'!K549:K579)","v":0.4528650769227478},{"$f":"_xlfn.STDEV.S('II. Headline series'!N549:N579)","v":0.10565134050120392},9.431926182578731,44.383246334093045]
[{"$f":"'III. GDP shares, 1310-2018'!A563","v":1867},{"$f":"_xlfn.STDEV.S('II. Headline series'!M550:M580)","v":4.216356879121541},{"$f":"_xlfn.STDEV.S('II. Headline series'!P550:P580)","v":4.65021563000316},{"$f":"_xlfn.STDEV.S('II. Headline series'!K550:K580)","v":0.46687276450669707},{"$f":"_xlfn.STDEV.S('II. Headline series'!N550:N580)","v":0.1152965343379691},9.031061993039133,40.33265749664225]
[{"$f":"'III. GDP shares, 1310-2018'!A564","v":1868},{"$f":"_xlfn.STDEV.S('II. Headline series'!M551:M581)","v":4.2014260858340355},{"$f":"_xlfn.STDEV.S('II. Headline series'!P551:P581)","v":4.651442544052465},{"$f":"_xlfn.STDEV.S('II. Headline series'!K551:K581)","v":0.4758882209319323},{"$f":"_xlfn.STDEV.S('II. Headline series'!N551:N581)","v":0.12835203932002998},8.82859860999791,36.23972450063428]
[{"$f":"'III. GDP shares, 1310-2018'!A565","v":1869},{"$f":"_xlfn.STDEV.S('II. Headline series'!M552:M582)","v":3.9881653177851306},{"$f":"_xlfn.STDEV.S('II. Headline series'!P552:P582)","v":4.373769007027796},{"$f":"_xlfn.STDEV.S('II. Headline series'!K552:K582)","v":0.49866583179241525},{"$f":"_xlfn.STDEV.S('II. Headline series'!N552:N582)","v":0.15275693658759734},7.997671112636659,28.632212092834756]
[{"$f":"'III. GDP shares, 1310-2018'!A566","v":1870},{"$f":"_xlfn.STDEV.S('II. Headline series'!M553:M583)","v":3.2845181277087683},{"$f":"_xlfn.STDEV.S('II. Headline series'!P553:P583)","v":3.4238417277813307},{"$f":"_xlfn.STDEV.S('II. Headline series'!K553:K583)","v":0.5261084789720847},{"$f":"_xlfn.STDEV.S('II. Headline series'!N553:N583)","v":0.16229196613818808},6.243043514763511,21.096803552592394]
[{"$f":"'III. GDP shares, 1310-2018'!A567","v":1871},{"$f":"_xlfn.STDEV.S('II. Headline series'!M554:M584)","v":3.2176240955022752},{"$f":"_xlfn.STDEV.S('II. Headline series'!P554:P584)","v":3.3620066848712344},{"$f":"_xlfn.STDEV.S('II. Headline series'!K554:K584)","v":0.5595197157915953},{"$f":"_xlfn.STDEV.S('II. Headline series'!N554:N584)","v":0.1704896154477091},5.750689394296064,19.719715338922775]
[{"$f":"'III. GDP shares, 1310-2018'!A568","v":1872},{"$f":"_xlfn.STDEV.S('II. Headline series'!M555:M585)","v":3.213949411404047},{"$f":"_xlfn.STDEV.S('II. Headline series'!P555:P585)","v":3.361914187228005},{"$f":"_xlfn.STDEV.S('II. Headline series'!K555:K585)","v":0.58834815782908},{"$f":"_xlfn.STDEV.S('II. Headline series'!N555:N585)","v":0.18526585216035488},5.462665886918144,18.146431995023757]
[{"$f":"'III. GDP shares, 1310-2018'!A569","v":1873},{"$f":"_xlfn.STDEV.S('II. Headline series'!M556:M586)","v":3.0062803756203698},{"$f":"_xlfn.STDEV.S('II. Headline series'!P556:P586)","v":3.237292744255169},{"$f":"_xlfn.STDEV.S('II. Headline series'!K556:K586)","v":0.619873753768691},{"$f":"_xlfn.STDEV.S('II. Headline series'!N556:N586)","v":0.20405304540854505},4.849826851585296,15.864956770302642]
[{"$f":"'III. GDP shares, 1310-2018'!A570","v":1874},{"$f":"_xlfn.STDEV.S('II. Headline series'!M557:M587)","v":2.8976043659870747},{"$f":"_xlfn.STDEV.S('II. Headline series'!P557:P587)","v":2.9004280173752823},{"$f":"_xlfn.STDEV.S('II. Headline series'!K557:K587)","v":0.6440405281367321},{"$f":"_xlfn.STDEV.S('II. Headline series'!N557:N587)","v":0.22148156091415394},4.4991025244484355,13.095573308242512]
[{"$f":"'III. GDP shares, 1310-2018'!A571","v":1875},{"$f":"_xlfn.STDEV.S('II. Headline series'!M558:M588)","v":2.9019915987383333},{"$f":"_xlfn.STDEV.S('II. Headline series'!P558:P588)","v":2.883426218646515},{"$f":"_xlfn.STDEV.S('II. Headline series'!K558:K588)","v":0.6677798214346281},{"$f":"_xlfn.STDEV.S('II. Headline series'!N558:N588)","v":0.23344563800811932},4.345731191014166,12.351596042870712]
[{"$f":"'III. GDP shares, 1310-2018'!A572","v":1876},{"$f":"_xlfn.STDEV.S('II. Headline series'!M559:M589)","v":2.879911789945615},{"$f":"_xlfn.STDEV.S('II. Headline series'!P559:P589)","v":2.8139317420116496},{"$f":"_xlfn.STDEV.S('II. Headline series'!K559:K589)","v":0.687042241208435},{"$f":"_xlfn.STDEV.S('II. Headline series'!N559:N589)","v":0.24235076173073913},4.191753602922803,11.610987817476037]
[{"$f":"'III. GDP shares, 1310-2018'!A573","v":1877},{"$f":"_xlfn.STDEV.S('II. Headline series'!M560:M590)","v":2.867065788198924},{"$f":"_xlfn.STDEV.S('II. Headline series'!P560:P590)","v":2.778071996218571},{"$f":"_xlfn.STDEV.S('II. Headline series'!K560:K590)","v":0.6982112390580621},{"$f":"_xlfn.STDEV.S('II. Headline series'!N560:N590)","v":0.2497011871027083},4.106301399654931,11.125585859052729]
[{"$f":"'III. GDP shares, 1310-2018'!A574","v":1878},{"$f":"_xlfn.STDEV.S('II. Headline series'!M561:M591)","v":2.884224386663158},{"$f":"_xlfn.STDEV.S('II. Headline series'!P561:P591)","v":2.736333278258934},{"$f":"_xlfn.STDEV.S('II. Headline series'!K561:K591)","v":0.7122634780164248},{"$f":"_xlfn.STDEV.S('II. Headline series'!N561:N591)","v":0.25934451359606103},4.0493784613180015,10.550958801160055]
[{"$f":"'III. GDP shares, 1310-2018'!A575","v":1879},{"$f":"_xlfn.STDEV.S('II. Headline series'!M562:M592)","v":2.890549591621968},{"$f":"_xlfn.STDEV.S('II. Headline series'!P562:P592)","v":2.662742658177805},{"$f":"_xlfn.STDEV.S('II. Headline series'!K562:K592)","v":0.7310521324848841},{"$f":"_xlfn.STDEV.S('II. Headline series'!N562:N592)","v":0.2708734469328537},3.953958224288109,9.830209229913432]
[{"$f":"'III. GDP shares, 1310-2018'!A576","v":1880},{"$f":"_xlfn.STDEV.S('II. Headline series'!M563:M593)","v":2.6963533435318516},{"$f":"_xlfn.STDEV.S('II. Headline series'!P563:P593)","v":2.6548417882304483},{"$f":"_xlfn.STDEV.S('II. Headline series'!K563:K593)","v":0.7464103943514164},{"$f":"_xlfn.STDEV.S('II. Headline series'!N563:N593)","v":0.2845802595382837},3.6124273776691074,9.328973810543948]
[{"$f":"'III. GDP shares, 1310-2018'!A577","v":1881},{"$f":"_xlfn.STDEV.S('II. Headline series'!M564:M594)","v":2.703730614598849},{"$f":"_xlfn.STDEV.S('II. Headline series'!P564:P594)","v":2.6539636094430366},{"$f":"_xlfn.STDEV.S('II. Headline series'!K564:K594)","v":0.7627247853372789},{"$f":"_xlfn.STDEV.S('II. Headline series'!N564:N594)","v":0.30045886310766773},3.544831198062158,8.833034852068929]
[{"$f":"'III. GDP shares, 1310-2018'!A578","v":1882},{"$f":"_xlfn.STDEV.S('II. Headline series'!M565:M595)","v":2.690741611969737},{"$f":"_xlfn.STDEV.S('II. Headline series'!P565:P595)","v":2.4387838678605354},{"$f":"_xlfn.STDEV.S('II. Headline series'!K565:K595)","v":0.7786820233457812},{"$f":"_xlfn.STDEV.S('II. Headline series'!N565:N595)","v":0.31117429570715543},3.4555075516041387,7.837356431765375]
[{"$f":"'III. GDP shares, 1310-2018'!A579","v":1883},{"$f":"_xlfn.STDEV.S('II. Headline series'!M566:M596)","v":2.556553628004933},{"$f":"_xlfn.STDEV.S('II. Headline series'!P566:P596)","v":2.179466499062246},{"$f":"_xlfn.STDEV.S('II. Headline series'!K566:K596)","v":0.7845016072779869},{"$f":"_xlfn.STDEV.S('II. Headline series'!N566:N596)","v":0.32423677976418747},3.2588252264714894,6.721836124351282]
[{"$f":"'III. GDP shares, 1310-2018'!A580","v":1884},{"$f":"_xlfn.STDEV.S('II. Headline series'!M567:M597)","v":2.5965966472764626},{"$f":"_xlfn.STDEV.S('II. Headline series'!P567:P597)","v":2.1793477982590526},{"$f":"_xlfn.STDEV.S('II. Headline series'!K567:K597)","v":0.789522789944427},{"$f":"_xlfn.STDEV.S('II. Headline series'!N567:N597)","v":0.3301070989002265},3.288817853451997,6.601941629003718]
[{"$f":"'III. GDP shares, 1310-2018'!A581","v":1885},{"$f":"_xlfn.STDEV.S('II. Headline series'!M568:M598)","v":2.4745719771546137},{"$f":"_xlfn.STDEV.S('II. Headline series'!P568:P598)","v":2.2159478636081187},{"$f":"_xlfn.STDEV.S('II. Headline series'!K568:K598)","v":0.7887241838365727},{"$f":"_xlfn.STDEV.S('II. Headline series'!N568:N598)","v":0.32628824718475197},3.137436416768167,6.79138118742413]
[{"$f":"'III. GDP shares, 1310-2018'!A582","v":1886},{"$f":"_xlfn.STDEV.S('II. Headline series'!M569:M599)","v":2.4539189275353137},{"$f":"_xlfn.STDEV.S('II. Headline series'!P569:P599)","v":2.218345489445593},{"$f":"_xlfn.STDEV.S('II. Headline series'!K569:K599)","v":0.7542230165099135},{"$f":"_xlfn.STDEV.S('II. Headline series'!N569:N599)","v":0.31676711616597425},3.2535720520577076,7.003080105964226]
[{"$f":"'III. GDP shares, 1310-2018'!A583","v":1887},{"$f":"_xlfn.STDEV.S('II. Headline series'!M570:M600)","v":2.450194371760727},{"$f":"_xlfn.STDEV.S('II. Headline series'!P570:P600)","v":2.2107536343777827},{"$f":"_xlfn.STDEV.S('II. Headline series'!K570:K600)","v":0.7412520869929046},{"$f":"_xlfn.STDEV.S('II. Headline series'!N570:N600)","v":0.3069461110173839},3.305480570989854,7.20241617347801]
[{"$f":"'III. GDP shares, 1310-2018'!A584","v":1888},{"$f":"_xlfn.STDEV.S('II. Headline series'!M571:M601)","v":2.4692745941866288},{"$f":"_xlfn.STDEV.S('II. Headline series'!P571:P601)","v":2.063091750572757},{"$f":"_xlfn.STDEV.S('II. Headline series'!K571:K601)","v":0.7139892521841871},{"$f":"_xlfn.STDEV.S('II. Headline series'!N571:N601)","v":0.29440671394661516},3.4584198384398546,7.007624666286849]
[{"$f":"'III. GDP shares, 1310-2018'!A585","v":1889},{"$f":"_xlfn.STDEV.S('II. Headline series'!M572:M602)","v":2.447327915011516},{"$f":"_xlfn.STDEV.S('II. Headline series'!P572:P602)","v":1.9939634612754147},{"$f":"_xlfn.STDEV.S('II. Headline series'!K572:K602)","v":0.6574030357273429},{"$f":"_xlfn.STDEV.S('II. Headline series'!N572:N602)","v":0.2812467729006416},3.7227207390422548,7.089729210794674]
[{"$f":"'III. GDP shares, 1310-2018'!A586","v":1890},{"$f":"_xlfn.STDEV.S('II. Headline series'!M573:M603)","v":2.5392226288785893},{"$f":"_xlfn.STDEV.S('II. Headline series'!P573:P603)","v":1.890698117911338},{"$f":"_xlfn.STDEV.S('II. Headline series'!K573:K603)","v":0.6127541558409232},{"$f":"_xlfn.STDEV.S('II. Headline series'!N573:N603)","v":0.2659216749931882},4.143950073082483,7.109981230224162]
[{"$f":"'III. GDP shares, 1310-2018'!A587","v":1891},{"$f":"_xlfn.STDEV.S('II. Headline series'!M574:M604)","v":2.279848330676822},{"$f":"_xlfn.STDEV.S('II. Headline series'!P574:P604)","v":1.8483449742249238},{"$f":"_xlfn.STDEV.S('II. Headline series'!K574:K604)","v":0.5686303809274452},{"$f":"_xlfn.STDEV.S('II. Headline series'!N574:N604)","v":0.25256690163178663},4.0093677846729765,7.318239097376256]
[{"$f":"'III. GDP shares, 1310-2018'!A588","v":1892},{"$f":"_xlfn.STDEV.S('II. Headline series'!M575:M605)","v":2.2383683202674582},{"$f":"_xlfn.STDEV.S('II. Headline series'!P575:P605)","v":1.8554065181103137},{"$f":"_xlfn.STDEV.S('II. Headline series'!K575:K605)","v":0.4994261465297136},{"$f":"_xlfn.STDEV.S('II. Headline series'!N575:N605)","v":0.24440032628711317},4.481880525921334,7.591669562382848]
[{"$f":"'III. GDP shares, 1310-2018'!A589","v":1893},{"$f":"_xlfn.STDEV.S('II. Headline series'!M576:M606)","v":2.2509469074561137},{"$f":"_xlfn.STDEV.S('II. Headline series'!P576:P606)","v":1.8470389482032608},{"$f":"_xlfn.STDEV.S('II. Headline series'!K576:K606)","v":0.4143869822467269},{"$f":"_xlfn.STDEV.S('II. Headline series'!N576:N606)","v":0.23403421964480992},5.431992325752876,7.892174704222668]
[{"$f":"'III. GDP shares, 1310-2018'!A590","v":1894},{"$f":"_xlfn.STDEV.S('II. Headline series'!M577:M607)","v":2.206292641233978},{"$f":"_xlfn.STDEV.S('II. Headline series'!P577:P607)","v":1.7845383458337059},{"$f":"_xlfn.STDEV.S('II. Headline series'!K577:K607)","v":0.3282807918698562},{"$f":"_xlfn.STDEV.S('II. Headline series'!N577:N607)","v":0.22567833281339555},6.72074850516579,7.907442081776055]
[{"$f":"'III. GDP shares, 1310-2018'!A591","v":1895},{"$f":"_xlfn.STDEV.S('II. Headline series'!M578:M608)","v":2.1830075959759148},{"$f":"_xlfn.STDEV.S('II. Headline series'!P578:P608)","v":1.5489683124068425},{"$f":"_xlfn.STDEV.S('II. Headline series'!K578:K608)","v":0.258502658093818},{"$f":"_xlfn.STDEV.S('II. Headline series'!N578:N608)","v":0.22734233074696494},8.44481682344496,6.81337394280023]
[{"$f":"'III. GDP shares, 1310-2018'!A592","v":1896},{"$f":"_xlfn.STDEV.S('II. Headline series'!M579:M609)","v":2.1805727085448714},{"$f":"_xlfn.STDEV.S('II. Headline series'!P579:P609)","v":1.4816163584669344},{"$f":"_xlfn.STDEV.S('II. Headline series'!K579:K609)","v":0.21339698897408604},{"$f":"_xlfn.STDEV.S('II. Headline series'!N579:N609)","v":0.23471318114758832},10.218385549993258,6.312454849032487]
[{"$f":"'III. GDP shares, 1310-2018'!A593","v":1897},{"$f":"_xlfn.STDEV.S('II. Headline series'!M580:M610)","v":2.2116947164825973},{"$f":"_xlfn.STDEV.S('II. Headline series'!P580:P610)","v":1.5146129523610896},{"$f":"_xlfn.STDEV.S('II. Headline series'!K580:K610)","v":0.1963333826943319},{"$f":"_xlfn.STDEV.S('II. Headline series'!N580:N610)","v":0.25563311897585533},11.264995723758028,5.924948060052209]
[{"$f":"'III. GDP shares, 1310-2018'!A594","v":1898},{"$f":"_xlfn.STDEV.S('II. Headline series'!M581:M611)","v":2.155717739407839},{"$f":"_xlfn.STDEV.S('II. Headline series'!P581:P611)","v":1.5286814343619282},{"$f":"_xlfn.STDEV.S('II. Headline series'!K581:K611)","v":0.17562903084839715},{"$f":"_xlfn.STDEV.S('II. Headline series'!N581:N611)","v":0.28203845695880625},12.274267693640313,5.420116996971101]
[{"$f":"'III. GDP shares, 1310-2018'!A595","v":1899},{"$f":"_xlfn.STDEV.S('II. Headline series'!M582:M612)","v":2.1103682336469447},{"$f":"_xlfn.STDEV.S('II. Headline series'!P582:P612)","v":1.53791871629877},{"$f":"_xlfn.STDEV.S('II. Headline series'!K582:K612)","v":0.18228642327120853},{"$f":"_xlfn.STDEV.S('II. Headline series'!N582:N612)","v":0.31057372534385214},11.577210171637997,4.951863569901353]
[{"$f":"'III. GDP shares, 1310-2018'!A596","v":1900},{"$f":"_xlfn.STDEV.S('II. Headline series'!M583:M613)","v":2.209148562011426},{"$f":"_xlfn.STDEV.S('II. Headline series'!P583:P613)","v":2.4669513725884924},{"$f":"_xlfn.STDEV.S('II. Headline series'!K583:K613)","v":0.232865320811625},{"$f":"_xlfn.STDEV.S('II. Headline series'!N583:N613)","v":0.3662461266059817},9.486807886686156,6.735774642724101]
[{"$f":"'III. GDP shares, 1310-2018'!A597","v":1901},{"$f":"_xlfn.STDEV.S('II. Headline series'!M584:M614)","v":3.0329719623371276},{"$f":"_xlfn.STDEV.S('II. Headline series'!P584:P614)","v":3.6949426499547458},{"$f":"_xlfn.STDEV.S('II. Headline series'!K584:K614)","v":0.290656976559196},{"$f":"_xlfn.STDEV.S('II. Headline series'!N584:N614)","v":0.4553001728382007},10.434884440901849,8.115399181427088]
[{"$f":"'III. GDP shares, 1310-2018'!A598","v":1902},{"$f":"_xlfn.STDEV.S('II. Headline series'!M585:M615)","v":4.56206183336814},{"$f":"_xlfn.STDEV.S('II. Headline series'!P585:P615)","v":5.385004188775274},{"$f":"_xlfn.STDEV.S('II. Headline series'!K585:K615)","v":0.3576879895094305},{"$f":"_xlfn.STDEV.S('II. Headline series'!N585:N615)","v":0.550507086417004},12.754305336405098,9.781898038449924]
[{"$f":"'III. GDP shares, 1310-2018'!A599","v":1903},{"$f":"_xlfn.STDEV.S('II. Headline series'!M586:M616)","v":5.727684226552169},{"$f":"_xlfn.STDEV.S('II. Headline series'!P586:P616)","v":6.279546313076565},{"$f":"_xlfn.STDEV.S('II. Headline series'!K586:K616)","v":0.40872727435106043},{"$f":"_xlfn.STDEV.S('II. Headline series'!N586:N616)","v":0.6127906802381499},14.013462242386586,10.247457273071017]
[{"$f":"'III. GDP shares, 1310-2018'!A600","v":1904},{"$f":"_xlfn.STDEV.S('II. Headline series'!M587:M617)","v":5.8797027639786945},{"$f":"_xlfn.STDEV.S('II. Headline series'!P587:P617)","v":6.344499976820016},{"$f":"_xlfn.STDEV.S('II. Headline series'!K587:K617)","v":0.4778523520421227},{"$f":"_xlfn.STDEV.S('II. Headline series'!N587:N617)","v":0.6785897449053255},12.30443407644962,9.349537072219059]
[{"$f":"'III. GDP shares, 1310-2018'!A601","v":1905},{"$f":"_xlfn.STDEV.S('II. Headline series'!M588:M618)","v":6.011098450143086},{"$f":"_xlfn.STDEV.S('II. Headline series'!P588:P618)","v":6.361871338510335},{"$f":"_xlfn.STDEV.S('II. Headline series'!K588:K618)","v":0.5836218192839928},{"$f":"_xlfn.STDEV.S('II. Headline series'!N588:N618)","v":0.7962704732264405},10.299646537406204,7.989585891251765]
[{"$f":"'III. GDP shares, 1310-2018'!A602","v":1906},{"$f":"_xlfn.STDEV.S('II. Headline series'!M589:M619)","v":6.650345959123093},{"$f":"_xlfn.STDEV.S('II. Headline series'!P589:P619)","v":6.930621121995068},{"$f":"_xlfn.STDEV.S('II. Headline series'!K589:K619)","v":0.6253657198475701},{"$f":"_xlfn.STDEV.S('II. Headline series'!N589:N619)","v":0.8275717493718728},{"$f":"B600/D600","v":10.634330837232465},{"$f":"C600/E600","v":8.37464682337865}]
[{"$f":"'III. GDP shares, 1310-2018'!A603","v":1907},{"$f":"_xlfn.STDEV.S('II. Headline series'!M590:M620)","v":6.802371730920331},{"$f":"_xlfn.STDEV.S('II. Headline series'!P590:P620)","v":7.01909642978996},{"$f":"_xlfn.STDEV.S('II. Headline series'!K590:K620)","v":0.6446227113997154},{"$f":"_xlfn.STDEV.S('II. Headline series'!N590:N620)","v":0.8472746348203944},10.552485369542527,8.284322628492083]
[{"$f":"'III. GDP shares, 1310-2018'!A604","v":1908},{"$f":"_xlfn.STDEV.S('II. Headline series'!M591:M621)","v":6.744634175638693},{"$f":"_xlfn.STDEV.S('II. Headline series'!P591:P621)","v":7.016736631346652},{"$f":"_xlfn.STDEV.S('II. Headline series'!K591:K621)","v":0.6642401173945376},{"$f":"_xlfn.STDEV.S('II. Headline series'!N591:N621)","v":0.8636953171669148},10.153909706770381,8.124087848898943]
[{"$f":"'III. GDP shares, 1310-2018'!A605","v":1909},{"$f":"_xlfn.STDEV.S('II. Headline series'!M592:M622)","v":6.694182901886108},{"$f":"_xlfn.STDEV.S('II. Headline series'!P592:P622)","v":7.02662003002779},{"$f":"_xlfn.STDEV.S('II. Headline series'!K592:K622)","v":0.6959578206105008},{"$f":"_xlfn.STDEV.S('II. Headline series'!N592:N622)","v":0.8627474225654743},9.618661797655937,8.144469454493834]
[{"$f":"'III. GDP shares, 1310-2018'!A606","v":1910},{"$f":"_xlfn.STDEV.S('II. Headline series'!M593:M623)","v":6.638674469790137},{"$f":"_xlfn.STDEV.S('II. Headline series'!P593:P623)","v":6.984623744226448},{"$f":"_xlfn.STDEV.S('II. Headline series'!K593:K623)","v":0.721871946601623},{"$f":"_xlfn.STDEV.S('II. Headline series'!N593:N623)","v":0.8538936770864504},9.196471065322891,8.179734704276662]
[{"$f":"'III. GDP shares, 1310-2018'!A607","v":1911},{"$f":"_xlfn.STDEV.S('II. Headline series'!M594:M624)","v":6.607529991285574},{"$f":"_xlfn.STDEV.S('II. Headline series'!P594:P624)","v":7.007347639081295},{"$f":"_xlfn.STDEV.S('II. Headline series'!K594:K624)","v":0.7265683212400583},{"$f":"_xlfn.STDEV.S('II. Headline series'!N594:N624)","v":0.8354461522607938},9.094161964023263,8.387551513785503]
[{"$f":"'III. GDP shares, 1310-2018'!A608","v":1912},{"$f":"_xlfn.STDEV.S('II. Headline series'!M595:M625)","v":6.720631045189262},{"$f":"_xlfn.STDEV.S('II. Headline series'!P595:P625)","v":7.056428480890366},{"$f":"_xlfn.STDEV.S('II. Headline series'!K595:K625)","v":0.72260504903247},{"$f":"_xlfn.STDEV.S('II. Headline series'!N595:N625)","v":0.8113413912381168},9.300559211685322,8.697237139747266]
[{"$f":"'III. GDP shares, 1310-2018'!A609","v":1913},{"$f":"_xlfn.STDEV.S('II. Headline series'!M596:M626)","v":6.737789239839265},{"$f":"_xlfn.STDEV.S('II. Headline series'!P596:P626)","v":7.096648016293357},{"$f":"_xlfn.STDEV.S('II. Headline series'!K596:K626)","v":0.7134106281246019},{"$f":"_xlfn.STDEV.S('II. Headline series'!N596:N626)","v":0.7816805979033851},9.444475557578132,9.07870559321532]
[{"$f":"'III. GDP shares, 1310-2018'!A610","v":1914},{"$f":"_xlfn.STDEV.S('II. Headline series'!M597:M627)","v":6.758720651102419},{"$f":"_xlfn.STDEV.S('II. Headline series'!P597:P627)","v":7.103455979268845},{"$f":"_xlfn.STDEV.S('II. Headline series'!K597:K627)","v":0.70478001255382},{"$f":"_xlfn.STDEV.S('II. Headline series'!N597:N627)","v":0.750648535769763},9.5898302033449,9.4630917676866]
[{"$f":"'III. GDP shares, 1310-2018'!A611","v":1915},{"$f":"_xlfn.STDEV.S('II. Headline series'!M598:M628)","v":6.947851977876572},{"$f":"_xlfn.STDEV.S('II. Headline series'!P598:P628)","v":7.286168730892086},{"$f":"_xlfn.STDEV.S('II. Headline series'!K598:K628)","v":0.6909535334109184},{"$f":"_xlfn.STDEV.S('II. Headline series'!N598:N628)","v":0.7231378766321617},10.05545473308203,10.075766968293294]
[{"$f":"'III. GDP shares, 1310-2018'!A612","v":1916},{"$f":"_xlfn.STDEV.S('II. Headline series'!M599:M629)","v":7.2512041579729845},{"$f":"_xlfn.STDEV.S('II. Headline series'!P599:P629)","v":7.589654842794303},{"$f":"_xlfn.STDEV.S('II. Headline series'!K599:K629)","v":0.6801356826576818},{"$f":"_xlfn.STDEV.S('II. Headline series'!N599:N629)","v":0.7025339449678848},10.661408220251516,10.803257119684448]
[{"$f":"'III. GDP shares, 1310-2018'!A613","v":1917},{"$f":"_xlfn.STDEV.S('II. Headline series'!M600:M630)","v":7.463659289241282},{"$f":"_xlfn.STDEV.S('II. Headline series'!P600:P630)","v":7.904843228646807},{"$f":"_xlfn.STDEV.S('II. Headline series'!K600:K630)","v":0.6625960726880918},{"$f":"_xlfn.STDEV.S('II. Headline series'!N600:N630)","v":0.6844700703211802},11.26426732196268,11.548851544286727]
[{"$f":"'III. GDP shares, 1310-2018'!A614","v":1918},{"$f":"_xlfn.STDEV.S('II. Headline series'!M601:M631)","v":7.476157669606207},{"$f":"_xlfn.STDEV.S('II. Headline series'!P601:P631)","v":7.905241018145538},{"$f":"_xlfn.STDEV.S('II. Headline series'!K601:K631)","v":0.6400446478153201},{"$f":"_xlfn.STDEV.S('II. Headline series'!N601:N631)","v":0.6628215022403444},11.680681488587956,11.926651430929338]
[{"$f":"'III. GDP shares, 1310-2018'!A615","v":1919},{"$f":"_xlfn.STDEV.S('II. Headline series'!M602:M632)","v":7.496821164527281},{"$f":"_xlfn.STDEV.S('II. Headline series'!P602:P632)","v":7.904248054841624},{"$f":"_xlfn.STDEV.S('II. Headline series'!K602:K632)","v":0.6207092822861131},{"$f":"_xlfn.STDEV.S('II. Headline series'!N602:N632)","v":0.6551892320953212},12.077829957554357,12.064068924886822]
[{"$f":"'III. GDP shares, 1310-2018'!A616","v":1920},{"$f":"_xlfn.STDEV.S('II. Headline series'!M603:M633)","v":7.496665683035074},{"$f":"_xlfn.STDEV.S('II. Headline series'!P603:P633)","v":7.906402958696369},{"$f":"_xlfn.STDEV.S('II. Headline series'!K603:K633)","v":0.6091260691265568},{"$f":"_xlfn.STDEV.S('II. Headline series'!N603:N633)","v":0.6568137626695592},12.307248142875837,12.037511099891576]
[{"$f":"'III. GDP shares, 1310-2018'!A617","v":1921},{"$f":"_xlfn.STDEV.S('II. Headline series'!M604:M634)","v":7.497190780176599},{"$f":"_xlfn.STDEV.S('II. Headline series'!P604:P634)","v":7.90522683401757},{"$f":"_xlfn.STDEV.S('II. Headline series'!K604:K634)","v":0.6038464581994},{"$f":"_xlfn.STDEV.S('II. Headline series'!N604:N634)","v":0.6708731758132064},12.415723696603854,11.783489218264185]
[{"$f":"'III. GDP shares, 1310-2018'!A618","v":1922},{"$f":"_xlfn.STDEV.S('II. Headline series'!M605:M635)","v":7.533049156109563},{"$f":"_xlfn.STDEV.S('II. Headline series'!P605:P635)","v":7.906777527560821},{"$f":"_xlfn.STDEV.S('II. Headline series'!K605:K635)","v":0.597545227746969},{"$f":"_xlfn.STDEV.S('II. Headline series'!N605:N635)","v":0.6783899887945457},12.606659389637763,11.655209625971402]
[{"$f":"'III. GDP shares, 1310-2018'!A619","v":1923},{"$f":"_xlfn.STDEV.S('II. Headline series'!M606:M636)","v":7.532984916606347},{"$f":"_xlfn.STDEV.S('II. Headline series'!P606:P636)","v":7.936754495150248},{"$f":"_xlfn.STDEV.S('II. Headline series'!K606:K636)","v":0.6057661133391472},{"$f":"_xlfn.STDEV.S('II. Headline series'!N606:N636)","v":0.7002466653215189},12.435467667681987,11.334226763516366]
[{"$f":"'III. GDP shares, 1310-2018'!A620","v":1924},{"$f":"_xlfn.STDEV.S('II. Headline series'!M607:M637)","v":7.496537857618269},{"$f":"_xlfn.STDEV.S('II. Headline series'!P607:P637)","v":7.936313143029035},{"$f":"_xlfn.STDEV.S('II. Headline series'!K607:K637)","v":0.6088140717738837},{"$f":"_xlfn.STDEV.S('II. Headline series'!N607:N637)","v":0.7288033837684577},12.313345248042356,10.889511931177337]
[{"$f":"'III. GDP shares, 1310-2018'!A621","v":1925},{"$f":"_xlfn.STDEV.S('II. Headline series'!M608:M638)","v":7.544377221184058},{"$f":"_xlfn.STDEV.S('II. Headline series'!P608:P638)","v":7.934375303856274},{"$f":"_xlfn.STDEV.S('II. Headline series'!K608:K638)","v":0.6254073251187583},{"$f":"_xlfn.STDEV.S('II. Headline series'!N608:N638)","v":0.7846034203692193},12.063141760853952,10.112593315133026]
[{"$f":"'III. GDP shares, 1310-2018'!A622","v":1926},{"$f":"_xlfn.STDEV.S('II. Headline series'!M609:M639)","v":7.641575390247888},{"$f":"_xlfn.STDEV.S('II. Headline series'!P609:P639)","v":8.10752913899063},{"$f":"_xlfn.STDEV.S('II. Headline series'!K609:K639)","v":0.6477119373128505},{"$f":"_xlfn.STDEV.S('II. Headline series'!N609:N639)","v":0.8251769513084654},11.79779922221341,9.825200675000309]
[{"$f":"'III. GDP shares, 1310-2018'!A623","v":1927},{"$f":"_xlfn.STDEV.S('II. Headline series'!M610:M640)","v":7.709178340025308},{"$f":"_xlfn.STDEV.S('II. Headline series'!P610:P640)","v":8.226328421140959},{"$f":"_xlfn.STDEV.S('II. Headline series'!K610:K640)","v":0.6773367097551681},{"$f":"_xlfn.STDEV.S('II. Headline series'!N610:N640)","v":0.8611695319036893},11.381604199205277,9.552507510287729]
[{"$f":"'III. GDP shares, 1310-2018'!A624","v":1928},{"$f":"_xlfn.STDEV.S('II. Headline series'!M611:M641)","v":7.761169975893378},{"$f":"_xlfn.STDEV.S('II. Headline series'!P611:P641)","v":8.231347540145437},{"$f":"_xlfn.STDEV.S('II. Headline series'!K611:K641)","v":0.7111764521695917},{"$f":"_xlfn.STDEV.S('II. Headline series'!N611:N641)","v":0.894754754858054},10.913142515076695,9.199557192016574]
[{"$f":"'III. GDP shares, 1310-2018'!A625","v":1929},{"$f":"_xlfn.STDEV.S('II. Headline series'!M612:M642)","v":8.549403383514731},{"$f":"_xlfn.STDEV.S('II. Headline series'!P612:P642)","v":8.213592620040018},{"$f":"_xlfn.STDEV.S('II. Headline series'!K612:K642)","v":0.7957863776924154},{"$f":"_xlfn.STDEV.S('II. Headline series'!N612:N642)","v":0.9264698363311271},10.743339699161345,8.865472245233917]
[{"$f":"'III. GDP shares, 1310-2018'!A626","v":1930},{"$f":"_xlfn.STDEV.S('II. Headline series'!M613:M643)","v":8.630744376876505},{"$f":"_xlfn.STDEV.S('II. Headline series'!P613:P643)","v":8.195681621312023},{"$f":"_xlfn.STDEV.S('II. Headline series'!K613:K643)","v":0.890959343901015},{"$f":"_xlfn.STDEV.S('II. Headline series'!N613:N643)","v":0.9765999791828337},9.687023808614295,8.392055904168386]
[{"$f":"'III. GDP shares, 1310-2018'!A627","v":1931},{"$f":"_xlfn.STDEV.S('II. Headline series'!M614:M644)","v":9.10906244934161},{"$f":"_xlfn.STDEV.S('II. Headline series'!P614:P644)","v":8.587904580689427},{"$f":"_xlfn.STDEV.S('II. Headline series'!K614:K644)","v":0.9298253555057618},{"$f":"_xlfn.STDEV.S('II. Headline series'!N614:N644)","v":1.0084046138421037},9.796530494037668,8.516328131392429]
[{"$f":"'III. GDP shares, 1310-2018'!A628","v":1932},{"$f":"_xlfn.STDEV.S('II. Headline series'!M615:M645)","v":9.172413686040944},{"$f":"_xlfn.STDEV.S('II. Headline series'!P615:P645)","v":8.289268633697619},{"$f":"_xlfn.STDEV.S('II. Headline series'!K615:K645)","v":0.9435896296564386},{"$f":"_xlfn.STDEV.S('II. Headline series'!N615:N645)","v":1.0075626703399077},9.720765677957507,8.227050165426615]
[{"$f":"'III. GDP shares, 1310-2018'!A629","v":1933},{"$f":"_xlfn.STDEV.S('II. Headline series'!M616:M646)","v":8.764969836247849},{"$f":"_xlfn.STDEV.S('II. Headline series'!P616:P646)","v":7.31338035790597},{"$f":"_xlfn.STDEV.S('II. Headline series'!K616:K646)","v":0.9418638397606259},{"$f":"_xlfn.STDEV.S('II. Headline series'!N616:N646)","v":0.9920503621728187},9.305984014075177,7.371984968472753]
[{"$f":"'III. GDP shares, 1310-2018'!A630","v":1934},{"$f":"_xlfn.STDEV.S('II. Headline series'!M617:M647)","v":8.17916058242987},{"$f":"_xlfn.STDEV.S('II. Headline series'!P617:P647)","v":6.447415533720897},{"$f":"_xlfn.STDEV.S('II. Headline series'!K617:K647)","v":0.9411152121995894},{"$f":"_xlfn.STDEV.S('II. Headline series'!N617:N647)","v":0.9890175300424078},8.690923785317853,6.519010369254467]
[{"$f":"'III. GDP shares, 1310-2018'!A631","v":1935},{"$f":"_xlfn.STDEV.S('II. Headline series'!M618:M648)","v":8.069980739169823},{"$f":"_xlfn.STDEV.S('II. Headline series'!P618:P648)","v":6.389962173127222},{"$f":"_xlfn.STDEV.S('II. Headline series'!K618:K648)","v":0.9187457701631985},{"$f":"_xlfn.STDEV.S('II. Headline series'!N618:N648)","v":0.9544111510042649},8.783692944497952,6.695188092053911]
[{"$f":"'III. GDP shares, 1310-2018'!A632","v":1936},{"$f":"_xlfn.STDEV.S('II. Headline series'!M619:M649)","v":8.038127718234113},{"$f":"_xlfn.STDEV.S('II. Headline series'!P619:P649)","v":6.459761594259358},{"$f":"_xlfn.STDEV.S('II. Headline series'!K619:K649)","v":0.8584219926441147},{"$f":"_xlfn.STDEV.S('II. Headline series'!N619:N649)","v":0.8425590818759305},9.363841778418376,7.6668351611342285]
[{"$f":"'III. GDP shares, 1310-2018'!A633","v":1937},{"$f":"_xlfn.STDEV.S('II. Headline series'!M620:M650)","v":7.48960636196967},{"$f":"_xlfn.STDEV.S('II. Headline series'!P620:P650)","v":5.94631308866707},{"$f":"_xlfn.STDEV.S('II. Headline series'!K620:K650)","v":0.8244377165637815},{"$f":"_xlfn.STDEV.S('II. Headline series'!N620:N650)","v":0.7898975025382253},9.084502335950864,7.52795529743976]
[{"$f":"'III. GDP shares, 1310-2018'!A634","v":1938},{"$f":"_xlfn.STDEV.S('II. Headline series'!M621:M651)","v":7.317575604604918},{"$f":"_xlfn.STDEV.S('II. Headline series'!P621:P651)","v":5.863435464415622},{"$f":"_xlfn.STDEV.S('II. Headline series'!K621:K651)","v":0.8068247405478155},{"$f":"_xlfn.STDEV.S('II. Headline series'!N621:N651)","v":0.7385370601718683},9.069597443970858,7.939256918334086]
[{"$f":"'III. GDP shares, 1310-2018'!A635","v":1939},{"$f":"_xlfn.STDEV.S('II. Headline series'!M622:M652)","v":7.330776765298919},{"$f":"_xlfn.STDEV.S('II. Headline series'!P622:P652)","v":5.874278680918824},{"$f":"_xlfn.STDEV.S('II. Headline series'!K622:K652)","v":0.7824430977029476},{"$f":"_xlfn.STDEV.S('II. Headline series'!N622:N652)","v":0.676718521239994},9.369086118620254,8.680534811068881]
[{"$f":"'III. GDP shares, 1310-2018'!A636","v":1940},{"$f":"_xlfn.STDEV.S('II. Headline series'!M623:M653)","v":7.312557121324382},{"$f":"_xlfn.STDEV.S('II. Headline series'!P623:P653)","v":5.857415520729095},{"$f":"_xlfn.STDEV.S('II. Headline series'!K623:K653)","v":0.7467682994225303},{"$f":"_xlfn.STDEV.S('II. Headline series'!N623:N653)","v":0.6366677363049028},9.792270409682791,9.200113633406978]
[{"$f":"'III. GDP shares, 1310-2018'!A637","v":1941},{"$f":"_xlfn.STDEV.S('II. Headline series'!M624:M654)","v":7.313609693046646},{"$f":"_xlfn.STDEV.S('II. Headline series'!P624:P654)","v":5.856439787660777},{"$f":"_xlfn.STDEV.S('II. Headline series'!K624:K654)","v":0.7411718224250154},{"$f":"_xlfn.STDEV.S('II. Headline series'!N624:N654)","v":0.625088896903678},9.86763051665603,9.368971064228031]
[{"$f":"'III. GDP shares, 1310-2018'!A638","v":1942},{"$f":"_xlfn.STDEV.S('II. Headline series'!M625:M655)","v":7.301526832237975},{"$f":"_xlfn.STDEV.S('II. Headline series'!P625:P655)","v":5.81993797067666},{"$f":"_xlfn.STDEV.S('II. Headline series'!K625:K655)","v":0.7745664711782718},{"$f":"_xlfn.STDEV.S('II. Headline series'!N625:N655)","v":0.6110722112089777},9.426598108656679,9.524141114455501]
[{"$f":"'III. GDP shares, 1310-2018'!A639","v":1943},{"$f":"_xlfn.STDEV.S('II. Headline series'!M626:M656)","v":7.170416547314414},{"$f":"_xlfn.STDEV.S('II. Headline series'!P626:P656)","v":5.765149455506906},{"$f":"_xlfn.STDEV.S('II. Headline series'!K626:K656)","v":0.8020958232755155},{"$f":"_xlfn.STDEV.S('II. Headline series'!N626:N656)","v":0.6428807812687608},8.939600904580967,8.96768051477455]
[{"$f":"'III. GDP shares, 1310-2018'!A640","v":1944},{"$f":"_xlfn.STDEV.S('II. Headline series'!M627:M657)","v":7.172870619411928},{"$f":"_xlfn.STDEV.S('II. Headline series'!P627:P657)","v":5.736932519541334},{"$f":"_xlfn.STDEV.S('II. Headline series'!K627:K657)","v":0.8597370416578023},{"$f":"_xlfn.STDEV.S('II. Headline series'!N627:N657)","v":0.7268303554416258},8.343098263604787,7.893083271206449]
[{"$f":"'III. GDP shares, 1310-2018'!A641","v":1945},{"$f":"_xlfn.STDEV.S('II. Headline series'!M628:M658)","v":7.151440765520498},{"$f":"_xlfn.STDEV.S('II. Headline series'!P628:P658)","v":5.733781818235355},{"$f":"_xlfn.STDEV.S('II. Headline series'!K628:K658)","v":0.89262600691103},{"$f":"_xlfn.STDEV.S('II. Headline series'!N628:N658)","v":0.7462342738027051},8.01168766107136,7.683621644737392]
[{"$f":"'III. GDP shares, 1310-2018'!A642","v":1946},{"$f":"_xlfn.STDEV.S('II. Headline series'!M629:M659)","v":6.9419825283587615},{"$f":"_xlfn.STDEV.S('II. Headline series'!P629:P659)","v":5.519355732793232},{"$f":"_xlfn.STDEV.S('II. Headline series'!K629:K659)","v":0.9650985863189847},{"$f":"_xlfn.STDEV.S('II. Headline series'!N629:N659)","v":0.7797012110383206},7.193029423902083,7.078808721411577]
[{"$f":"'III. GDP shares, 1310-2018'!A643","v":1947},{"$f":"_xlfn.STDEV.S('II. Headline series'!M630:M660)","v":6.5249117829208485},{"$f":"_xlfn.STDEV.S('II. Headline series'!P630:P660)","v":5.012234116090301},{"$f":"_xlfn.STDEV.S('II. Headline series'!K630:K660)","v":0.9895040720552876},{"$f":"_xlfn.STDEV.S('II. Headline series'!N630:N660)","v":0.7757592188246276},6.594123225150584,6.4610693556235965]
[{"$f":"'III. GDP shares, 1310-2018'!A644","v":1948},{"$f":"_xlfn.STDEV.S('II. Headline series'!M631:M661)","v":6.153061874684947},{"$f":"_xlfn.STDEV.S('II. Headline series'!P631:P661)","v":4.380609049323736},{"$f":"_xlfn.STDEV.S('II. Headline series'!K631:K661)","v":1.0264701654500707},{"$f":"_xlfn.STDEV.S('II. Headline series'!N631:N661)","v":0.8087720680541057},5.994389395610975,5.416370350009021]
[{"$f":"'III. GDP shares, 1310-2018'!A645","v":1949},{"$f":"_xlfn.STDEV.S('II. Headline series'!M632:M662)","v":6.13045058028207},{"$f":"_xlfn.STDEV.S('II. Headline series'!P632:P662)","v":4.391782201945457},{"$f":"_xlfn.STDEV.S('II. Headline series'!K632:K662)","v":1.0750748377133814},{"$f":"_xlfn.STDEV.S('II. Headline series'!N632:N662)","v":0.8388863585615428},5.702347748479691,5.23525285293248]
[{"$f":"'III. GDP shares, 1310-2018'!A646","v":1950},{"$f":"_xlfn.STDEV.S('II. Headline series'!M633:M663)","v":6.07080851295302},{"$f":"_xlfn.STDEV.S('II. Headline series'!P633:P663)","v":4.412468255786311},{"$f":"_xlfn.STDEV.S('II. Headline series'!K633:K663)","v":1.1337361499646674},{"$f":"_xlfn.STDEV.S('II. Headline series'!N633:N663)","v":0.9028547317629046},5.354692547416977,4.887240549950458]
[{"$f":"'III. GDP shares, 1310-2018'!A647","v":1951},{"$f":"_xlfn.STDEV.S('II. Headline series'!M634:M664)","v":6.0767567632900565},{"$f":"_xlfn.STDEV.S('II. Headline series'!P634:P664)","v":4.418026496466711},{"$f":"_xlfn.STDEV.S('II. Headline series'!K634:K664)","v":1.1817177927557594},{"$f":"_xlfn.STDEV.S('II. Headline series'!N634:N664)","v":0.9589429664496347},5.142307918643667,4.607183796158281]
[{"$f":"'III. GDP shares, 1310-2018'!A648","v":1952},{"$f":"_xlfn.STDEV.S('II. Headline series'!M635:M665)","v":6.1296347086951295},{"$f":"_xlfn.STDEV.S('II. Headline series'!P635:P665)","v":4.440248572535286},{"$f":"_xlfn.STDEV.S('II. Headline series'!K635:K665)","v":1.2428519272386769},{"$f":"_xlfn.STDEV.S('II. Headline series'!N635:N665)","v":1.079579368505727},4.9319106921399145,4.112943153666548]
[{"$f":"'III. GDP shares, 1310-2018'!A649","v":1953},{"$f":"_xlfn.STDEV.S('II. Headline series'!M636:M666)","v":6.168060226180508},{"$f":"_xlfn.STDEV.S('II. Headline series'!P636:P666)","v":4.44718292630091},{"$f":"_xlfn.STDEV.S('II. Headline series'!K636:K666)","v":1.311044837481309},{"$f":"_xlfn.STDEV.S('II. Headline series'!N636:N666)","v":1.217214164631946},4.70469052609228,3.6535747410116794]
[{"$f":"'III. GDP shares, 1310-2018'!A650","v":1954},{"$f":"_xlfn.STDEV.S('II. Headline series'!M637:M667)","v":6.1823404465131135},{"$f":"_xlfn.STDEV.S('II. Headline series'!P637:P667)","v":4.353978540359909},{"$f":"_xlfn.STDEV.S('II. Headline series'!K637:K667)","v":1.4465021538632672},{"$f":"_xlfn.STDEV.S('II. Headline series'!N637:N667)","v":1.4812758232402679},4.273993253312161,2.9393435523950218]
[{"$f":"'III. GDP shares, 1310-2018'!A651","v":1955},{"$f":"_xlfn.STDEV.S('II. Headline series'!M638:M668)","v":6.206294249177665},{"$f":"_xlfn.STDEV.S('II. Headline series'!P638:P668)","v":4.336463628283192},{"$f":"_xlfn.STDEV.S('II. Headline series'!K638:K668)","v":1.5408509277311726},{"$f":"_xlfn.STDEV.S('II. Headline series'!N638:N668)","v":1.5769091859219933},4.02783561828147,2.749976769110982]
[{"$f":"'III. GDP shares, 1310-2018'!A652","v":1956},{"$f":"_xlfn.STDEV.S('II. Headline series'!M639:M669)","v":6.207119088993434},{"$f":"_xlfn.STDEV.S('II. Headline series'!P639:P669)","v":4.3582024468523315},{"$f":"_xlfn.STDEV.S('II. Headline series'!K639:K669)","v":1.5884170050761586},{"$f":"_xlfn.STDEV.S('II. Headline series'!N639:N669)","v":1.6102173098517607},3.907739006291881,2.706592718999869]
[{"$f":"'III. GDP shares, 1310-2018'!A653","v":1957},{"$f":"_xlfn.STDEV.S('II. Headline series'!M640:M670)","v":6.16034544423358},{"$f":"_xlfn.STDEV.S('II. Headline series'!P640:P670)","v":4.138608322164375},{"$f":"_xlfn.STDEV.S('II. Headline series'!K640:K670)","v":1.635025896040389},{"$f":"_xlfn.STDEV.S('II. Headline series'!N640:N670)","v":1.6647641829839548},3.767735703240143,2.486002741088684]
[{"$f":"'III. GDP shares, 1310-2018'!A654","v":1958},{"$f":"_xlfn.STDEV.S('II. Headline series'!M641:M671)","v":6.122014668614356},{"$f":"_xlfn.STDEV.S('II. Headline series'!P641:P671)","v":3.937114716048204},{"$f":"_xlfn.STDEV.S('II. Headline series'!K641:K671)","v":1.706209194158167},{"$f":"_xlfn.STDEV.S('II. Headline series'!N641:N671)","v":1.7338400417346973},3.588079755738815,2.270748524246298]
[{"$f":"'III. GDP shares, 1310-2018'!A655","v":1959},{"$f":"_xlfn.STDEV.S('II. Headline series'!M642:M672)","v":6.140982725306502},{"$f":"_xlfn.STDEV.S('II. Headline series'!P642:P672)","v":4.050393565981114},{"$f":"_xlfn.STDEV.S('II. Headline series'!K642:K672)","v":1.8461923139563534},{"$f":"_xlfn.STDEV.S('II. Headline series'!N642:N672)","v":1.8159202767778384},3.3262963337478633,2.2304908523672173]
[{"$f":"'III. GDP shares, 1310-2018'!A656","v":1960},{"$f":"_xlfn.STDEV.S('II. Headline series'!M643:M673)","v":4.98042841544568},{"$f":"_xlfn.STDEV.S('II. Headline series'!P643:P673)","v":4.049880839419215},{"$f":"_xlfn.STDEV.S('II. Headline series'!K643:K673)","v":1.9036574267375592},{"$f":"_xlfn.STDEV.S('II. Headline series'!N643:N673)","v":1.8993332163332102},2.6162419485217017,2.1322645255674413]
[{"$f":"'III. GDP shares, 1310-2018'!A657","v":1961},{"$f":"_xlfn.STDEV.S('II. Headline series'!M644:M674)","v":4.8090067614400995},{"$f":"_xlfn.STDEV.S('II. Headline series'!P644:P674)","v":4.055140219786078},{"$f":"_xlfn.STDEV.S('II. Headline series'!K644:K674)","v":1.8971902386272148},{"$f":"_xlfn.STDEV.S('II. Headline series'!N644:N674)","v":1.8954590898487664},2.5348047146393933,2.1393973847832437]
[{"$f":"'III. GDP shares, 1310-2018'!A658","v":1962},{"$f":"_xlfn.STDEV.S('II. Headline series'!M645:M675)","v":3.597649836902053},{"$f":"_xlfn.STDEV.S('II. Headline series'!P645:P675)","v":2.5965893981751065},{"$f":"_xlfn.STDEV.S('II. Headline series'!K645:K675)","v":1.8986974777464487},{"$f":"_xlfn.STDEV.S('II. Headline series'!N645:N675)","v":1.930567134902484},1.8947988708406984,1.3449878801061557]
[{"$f":"'III. GDP shares, 1310-2018'!A659","v":1963},{"$f":"_xlfn.STDEV.S('II. Headline series'!M646:M676)","v":2.8431166508524126},{"$f":"_xlfn.STDEV.S('II. Headline series'!P646:P676)","v":2.179180331913499},{"$f":"_xlfn.STDEV.S('II. Headline series'!K646:K676)","v":1.9198676290896952},{"$f":"_xlfn.STDEV.S('II. Headline series'!N646:N676)","v":2.0467554707363638},1.4808920197276703,1.0646998935976912]
[{"$f":"'III. GDP shares, 1310-2018'!A660","v":1964},{"$f":"_xlfn.STDEV.S('II. Headline series'!M647:M677)","v":2.3416161505169484},{"$f":"_xlfn.STDEV.S('II. Headline series'!P647:P677)","v":2.277317141086563},{"$f":"_xlfn.STDEV.S('II. Headline series'!K647:K677)","v":2.005921456434719},{"$f":"_xlfn.STDEV.S('II. Headline series'!N647:N677)","v":2.2149578019718836},1.1673518636561602,1.0281537368608844]
[{"$f":"'III. GDP shares, 1310-2018'!A661","v":1965},{"$f":"_xlfn.STDEV.S('II. Headline series'!M648:M678)","v":2.2984228918674923},{"$f":"_xlfn.STDEV.S('II. Headline series'!P648:P678)","v":2.231966908877608},{"$f":"_xlfn.STDEV.S('II. Headline series'!K648:K678)","v":2.1837105061769955},{"$f":"_xlfn.STDEV.S('II. Headline series'!N648:N678)","v":2.4999065788996573},1.0525309492105357,0.8928201268465065]
[{"$f":"'III. GDP shares, 1310-2018'!A662","v":1966},{"$f":"_xlfn.STDEV.S('II. Headline series'!M649:M679)","v":2.276383693774633},{"$f":"_xlfn.STDEV.S('II. Headline series'!P649:P679)","v":2.0880748335842747},{"$f":"_xlfn.STDEV.S('II. Headline series'!K649:K679)","v":2.4268636011493356},{"$f":"_xlfn.STDEV.S('II. Headline series'!N649:N679)","v":2.8606750234348164},0.9379940812069384,0.7299238174482051]
[{"$f":"'III. GDP shares, 1310-2018'!A663","v":1967},{"$f":"_xlfn.STDEV.S('II. Headline series'!M650:M680)","v":2.0041535052317396},{"$f":"_xlfn.STDEV.S('II. Headline series'!P650:P680)","v":2.1241693593047106},{"$f":"_xlfn.STDEV.S('II. Headline series'!K650:K680)","v":2.5456056810249175},{"$f":"_xlfn.STDEV.S('II. Headline series'!N650:N680)","v":3.0751040619238745},0.7872992742634134,0.6907634071985741]
[{"$f":"'III. GDP shares, 1310-2018'!A664","v":1968},{"$f":"_xlfn.STDEV.S('II. Headline series'!M651:M681)","v":2.1759827738080837},{"$f":"_xlfn.STDEV.S('II. Headline series'!P651:P681)","v":2.4085882981908417},{"$f":"_xlfn.STDEV.S('II. Headline series'!K651:K681)","v":2.5580519185334665},{"$f":"_xlfn.STDEV.S('II. Headline series'!N651:N681)","v":3.1272377287478115},0.850640582406778,0.7701967381786716]
[{"$f":"'III. GDP shares, 1310-2018'!A665","v":1969},{"$f":"_xlfn.STDEV.S('II. Headline series'!M652:M682)","v":2.307966640361914},{"$f":"_xlfn.STDEV.S('II. Headline series'!P652:P682)","v":2.658576959944454},{"$f":"_xlfn.STDEV.S('II. Headline series'!K652:K682)","v":2.561820246299593},{"$f":"_xlfn.STDEV.S('II. Headline series'!N652:N682)","v":3.228679466964197},0.9009088922986082,0.8234254862233852]
[{"$f":"'III. GDP shares, 1310-2018'!A666","v":1970},{"$f":"_xlfn.STDEV.S('II. Headline series'!M653:M683)","v":2.4044866119027573},{"$f":"_xlfn.STDEV.S('II. Headline series'!P653:P683)","v":2.80312727113979},{"$f":"_xlfn.STDEV.S('II. Headline series'!K653:K683)","v":2.490626146113789},{"$f":"_xlfn.STDEV.S('II. Headline series'!N653:N683)","v":3.2060724305705506},{"$f":"B664/D664","v":0.9654145065707922},{"$f":"C664/E664","v":0.8743181359258771}]
[{"$f":"'III. GDP shares, 1310-2018'!A667","v":1971},{"$f":"_xlfn.STDEV.S('II. Headline series'!M654:M684)","v":2.501812745633731},{"$f":"_xlfn.STDEV.S('II. Headline series'!P654:P684)","v":2.875354024151898},{"$f":"_xlfn.STDEV.S('II. Headline series'!K654:K684)","v":2.4057526650483467},{"$f":"_xlfn.STDEV.S('II. Headline series'!N654:N684)","v":3.1204366242076054},1.0399293252298876,0.9214588759296007]
[{"$f":"'III. GDP shares, 1310-2018'!A668","v":1972},{"$f":"_xlfn.STDEV.S('II. Headline series'!M655:M685)","v":2.5581691282559005},{"$f":"_xlfn.STDEV.S('II. Headline series'!P655:P685)","v":2.894373311771601},{"$f":"_xlfn.STDEV.S('II. Headline series'!K655:K685)","v":2.346802650220187},{"$f":"_xlfn.STDEV.S('II. Headline series'!N655:N685)","v":3.0581001380452024},1.0900657232579323,0.9464612606249516]
[{"$f":"'III. GDP shares, 1310-2018'!A669","v":1973},{"$f":"_xlfn.STDEV.S('II. Headline series'!M656:M686)","v":2.589472745188184},{"$f":"_xlfn.STDEV.S('II. Headline series'!P656:P686)","v":2.8980283021268183},{"$f":"_xlfn.STDEV.S('II. Headline series'!K656:K686)","v":2.291113393326871},{"$f":"_xlfn.STDEV.S('II. Headline series'!N656:N686)","v":2.9750126178106022},1.13022461163656,0.9741230288493906]
[{"$f":"'III. GDP shares, 1310-2018'!A670","v":1974},{"$f":"_xlfn.STDEV.S('II. Headline series'!M657:M687)","v":2.6056615830275356},{"$f":"_xlfn.STDEV.S('II. Headline series'!P657:P687)","v":2.90439225095389},{"$f":"_xlfn.STDEV.S('II. Headline series'!K657:K687)","v":2.222536897802246},{"$f":"_xlfn.STDEV.S('II. Headline series'!N657:N687)","v":2.9039992916656363},1.1723816984114603,1.0001353165923221]
[{"$f":"'III. GDP shares, 1310-2018'!A671","v":1975},{"$f":"_xlfn.STDEV.S('II. Headline series'!M658:M688)","v":2.616270980384988},{"$f":"_xlfn.STDEV.S('II. Headline series'!P658:P688)","v":2.905311599727653},{"$f":"_xlfn.STDEV.S('II. Headline series'!K658:K688)","v":2.1761635609492975},{"$f":"_xlfn.STDEV.S('II. Headline series'!N658:N688)","v":2.857332175780638},1.2022400463518947,1.0167916857387806]
[{"$f":"'III. GDP shares, 1310-2018'!A672","v":1976},{"$f":"_xlfn.STDEV.S('II. Headline series'!M659:M689)","v":2.6272732366444016},{"$f":"_xlfn.STDEV.S('II. Headline series'!P659:P689)","v":2.911427830398206},{"$f":"_xlfn.STDEV.S('II. Headline series'!K659:K689)","v":2.100378687234157},{"$f":"_xlfn.STDEV.S('II. Headline series'!N659:N689)","v":2.7647347963929434},1.2508569300443984,1.0530586276110996]
[{"$f":"'III. GDP shares, 1310-2018'!A673","v":1977},{"$f":"_xlfn.STDEV.S('II. Headline series'!M660:M690)","v":2.653667930582552},{"$f":"_xlfn.STDEV.S('II. Headline series'!P660:P690)","v":2.918333293735366},{"$f":"_xlfn.STDEV.S('II. Headline series'!K660:K690)","v":2.0530377006103064},{"$f":"_xlfn.STDEV.S('II. Headline series'!N660:N690)","v":2.679128970113682},1.2925568438386184,1.089284363048612]
[{"$f":"'III. GDP shares, 1310-2018'!A674","v":1978},{"$f":"_xlfn.STDEV.S('II. Headline series'!M661:M691)","v":2.653856681343851},{"$f":"_xlfn.STDEV.S('II. Headline series'!P661:P691)","v":2.918581642950962},{"$f":"_xlfn.STDEV.S('II. Headline series'!K661:K691)","v":2.02731760292846},{"$f":"_xlfn.STDEV.S('II. Headline series'!N661:N691)","v":2.5995029708299047},1.3090483097026115,1.122746030953444]
[{"$f":"'III. GDP shares, 1310-2018'!A675","v":1979},{"$f":"_xlfn.STDEV.S('II. Headline series'!M662:M692)","v":2.692562966953019},{"$f":"_xlfn.STDEV.S('II. Headline series'!P662:P692)","v":2.936853412955158},{"$f":"_xlfn.STDEV.S('II. Headline series'!K662:K692)","v":1.9573809287143655},{"$f":"_xlfn.STDEV.S('II. Headline series'!N662:N692)","v":2.5051706709746315},1.3755947692417394,1.1723166996093648]
[{"$f":"'III. GDP shares, 1310-2018'!A676","v":1980},{"$f":"_xlfn.STDEV.S('II. Headline series'!M663:M693)","v":2.7052299704525877},{"$f":"_xlfn.STDEV.S('II. Headline series'!P663:P693)","v":2.9415085867335033},{"$f":"_xlfn.STDEV.S('II. Headline series'!K663:K693)","v":1.9216939138075442},{"$f":"_xlfn.STDEV.S('II. Headline series'!N663:N693)","v":2.416839925662518},1.4077319759485454,1.217088709723777]
[{"$f":"'III. GDP shares, 1310-2018'!A677","v":1981},{"$f":"_xlfn.STDEV.S('II. Headline series'!M664:M694)","v":2.7098158472854688},{"$f":"_xlfn.STDEV.S('II. Headline series'!P664:P694)","v":2.9447535744338986},{"$f":"_xlfn.STDEV.S('II. Headline series'!K664:K694)","v":1.9196907584296319},{"$f":"_xlfn.STDEV.S('II. Headline series'!N664:N694)","v":2.349839695004235},1.4115897757939848,1.2531721124187545]
[{"$f":"'III. GDP shares, 1310-2018'!A678","v":1982},{"$f":"_xlfn.STDEV.S('II. Headline series'!M665:M695)","v":2.7098893859272204},{"$f":"_xlfn.STDEV.S('II. Headline series'!P665:P695)","v":2.938030686589671},{"$f":"_xlfn.STDEV.S('II. Headline series'!K665:K695)","v":1.9395433746065474},{"$f":"_xlfn.STDEV.S('II. Headline series'!N665:N695)","v":2.2813141223836504},1.3971790584353103,1.28786766266096]
[{"$f":"'III. GDP shares, 1310-2018'!A679","v":1983},{"$f":"_xlfn.STDEV.S('II. Headline series'!M666:M696)","v":2.7099888455727723},{"$f":"_xlfn.STDEV.S('II. Headline series'!P666:P696)","v":2.941830739148202},{"$f":"_xlfn.STDEV.S('II. Headline series'!K666:K696)","v":2.0362530547506243},{"$f":"_xlfn.STDEV.S('II. Headline series'!N666:N696)","v":2.299213593642048},1.3308703646878797,1.2794943224427542]
[{"$f":"'III. GDP shares, 1310-2018'!A680","v":1984},{"$f":"_xlfn.STDEV.S('II. Headline series'!M667:M697)","v":2.712115463272565},{"$f":"_xlfn.STDEV.S('II. Headline series'!P667:P697)","v":2.9310125680979042},{"$f":"_xlfn.STDEV.S('II. Headline series'!K667:K697)","v":2.104276308645353},{"$f":"_xlfn.STDEV.S('II. Headline series'!N667:N697)","v":2.316850759545409},1.288859002085384,1.2650847518003276]
[{"$f":"'III. GDP shares, 1310-2018'!A681","v":1985},{"$f":"_xlfn.STDEV.S('II. Headline series'!M668:M698)","v":2.710563401074627},{"$f":"_xlfn.STDEV.S('II. Headline series'!P668:P698)","v":2.9221297138036406},{"$f":"_xlfn.STDEV.S('II. Headline series'!K668:K698)","v":2.18722823644465},{"$f":"_xlfn.STDEV.S('II. Headline series'!N668:N698)","v":2.350834234749646},1.239268657888516,1.2430181892917838]
[{"$f":"'III. GDP shares, 1310-2018'!A682","v":1986},{"$f":"_xlfn.STDEV.S('II. Headline series'!M669:M699)","v":2.702905117422056},{"$f":"_xlfn.STDEV.S('II. Headline series'!P669:P699)","v":2.901152477460485},{"$f":"_xlfn.STDEV.S('II. Headline series'!K669:K699)","v":2.287328417734765},{"$f":"_xlfn.STDEV.S('II. Headline series'!N669:N699)","v":2.4012117595349807},1.1816865022377738,1.2082035105568212]
[{"$f":"'III. GDP shares, 1310-2018'!A683","v":1987},{"$f":"_xlfn.STDEV.S('II. Headline series'!M670:M700)","v":2.7001419304720433},{"$f":"_xlfn.STDEV.S('II. Headline series'!P670:P700)","v":2.9001972327129626},{"$f":"_xlfn.STDEV.S('II. Headline series'!K670:K700)","v":2.400645609260019},{"$f":"_xlfn.STDEV.S('II. Headline series'!N670:N700)","v":2.451935937814178},1.1247565738386276,1.1828193338927098]
[{"$f":"'III. GDP shares, 1310-2018'!A684","v":1988},{"$f":"_xlfn.STDEV.S('II. Headline series'!M671:M701)","v":2.701930246041501},{"$f":"_xlfn.STDEV.S('II. Headline series'!P671:P701)","v":2.909912161262217},{"$f":"_xlfn.STDEV.S('II. Headline series'!K671:K701)","v":2.5196000023355287},{"$f":"_xlfn.STDEV.S('II. Headline series'!N671:N701)","v":2.5437747162332154},1.0723647577143047,1.1439346977908378]
[{"$f":"'III. GDP shares, 1310-2018'!A685","v":1989},{"$f":"_xlfn.STDEV.S('II. Headline series'!M672:M702)","v":2.5168510360012832},{"$f":"_xlfn.STDEV.S('II. Headline series'!P672:P702)","v":2.7840603288857477},{"$f":"_xlfn.STDEV.S('II. Headline series'!K672:K702)","v":2.6322046556278176},{"$f":"_xlfn.STDEV.S('II. Headline series'!N672:N702)","v":2.6257235202236084},0.9561760445260588,1.0603021633628262]
[{"$f":"'III. GDP shares, 1310-2018'!A686","v":1990},{"$f":"_xlfn.STDEV.S('II. Headline series'!M673:M703)","v":2.0281853766226776},{"$f":"_xlfn.STDEV.S('II. Headline series'!P673:P703)","v":2.3908242031573272},{"$f":"_xlfn.STDEV.S('II. Headline series'!K673:K703)","v":2.7220150365965456},{"$f":"_xlfn.STDEV.S('II. Headline series'!N673:N703)","v":2.7060918651573838},0.74510439852625,0.8834970585960795]
[{"$f":"'III. GDP shares, 1310-2018'!A687","v":1991},{"$f":"_xlfn.STDEV.S('II. Headline series'!M674:M704)","v":1.9576840345457158},{"$f":"_xlfn.STDEV.S('II. Headline series'!P674:P704)","v":2.3686848125095885},{"$f":"_xlfn.STDEV.S('II. Headline series'!K674:K704)","v":2.781275201205922},{"$f":"_xlfn.STDEV.S('II. Headline series'!N674:N704)","v":2.761583481234747},0.7038800165107327,0.8577270354508757]
[{"$f":"'III. GDP shares, 1310-2018'!A688","v":1992},{"$f":"_xlfn.STDEV.S('II. Headline series'!M675:M705)","v":1.9026616033624646},{"$f":"_xlfn.STDEV.S('II. Headline series'!P675:P705)","v":2.3724066230007232},{"$f":"_xlfn.STDEV.S('II. Headline series'!K675:K705)","v":2.833914778708537},{"$f":"_xlfn.STDEV.S('II. Headline series'!N675:N705)","v":2.8137937774744994},0.6713898447678585,0.8431345047361857]
[{"$f":"'III. GDP shares, 1310-2018'!A689","v":1993},{"$f":"_xlfn.STDEV.S('II. Headline series'!M676:M706)","v":1.896204115006401},{"$f":"_xlfn.STDEV.S('II. Headline series'!P676:P706)","v":2.4208051119706546},{"$f":"_xlfn.STDEV.S('II. Headline series'!K676:K706)","v":2.909659202725013},{"$f":"_xlfn.STDEV.S('II. Headline series'!N676:N706)","v":2.9052357107304494},0.6516928557236289,0.833256008464113]
[{"$f":"'III. GDP shares, 1310-2018'!A690","v":1994},{"$f":"_xlfn.STDEV.S('II. Headline series'!M677:M707)","v":1.8608169517752864},{"$f":"_xlfn.STDEV.S('II. Headline series'!P677:P707)","v":2.349817798949449},{"$f":"_xlfn.STDEV.S('II. Headline series'!K677:K707)","v":2.970545504105294},{"$f":"_xlfn.STDEV.S('II. Headline series'!N677:N707)","v":2.9890955995757174},0.6264226382674958,0.7861300251765084]
[{"$f":"'III. GDP shares, 1310-2018'!A691","v":1995},{"$f":"_xlfn.STDEV.S('II. Headline series'!M678:M708)","v":1.7042432432699883},{"$f":"_xlfn.STDEV.S('II. Headline series'!P678:P708)","v":2.0651618217926644},{"$f":"_xlfn.STDEV.S('II. Headline series'!K678:K708)","v":2.9781896374520542},{"$f":"_xlfn.STDEV.S('II. Headline series'!N678:N708)","v":3.027296802434575},0.5722413448218254,0.6821801615658715]
[{"$f":"'III. GDP shares, 1310-2018'!A692","v":1996},{"$f":"_xlfn.STDEV.S('II. Headline series'!M679:M709)","v":1.6896957567233273},{"$f":"_xlfn.STDEV.S('II. Headline series'!P679:P709)","v":2.0815418696618604},{"$f":"_xlfn.STDEV.S('II. Headline series'!K679:K709)","v":2.886803282042871},{"$f":"_xlfn.STDEV.S('II. Headline series'!N679:N709)","v":2.960792432342441},0.5853172494412573,0.70303539245912]
[{"$f":"'III. GDP shares, 1310-2018'!A693","v":1997},{"$f":"_xlfn.STDEV.S('II. Headline series'!M680:M710)","v":1.7850104555621138},{"$f":"_xlfn.STDEV.S('II. Headline series'!P680:P710)","v":2.1901410697483406},{"$f":"_xlfn.STDEV.S('II. Headline series'!K680:K710)","v":2.700209834337558},{"$f":"_xlfn.STDEV.S('II. Headline series'!N680:N710)","v":2.7884096282792417},0.6610636080436431,0.7854445227618514]
[{"$f":"'III. GDP shares, 1310-2018'!A694","v":1998},{"$f":"_xlfn.STDEV.S('II. Headline series'!M681:M711)","v":1.784978452449578},{"$f":"_xlfn.STDEV.S('II. Headline series'!P681:P711)","v":2.1385617020226504},{"$f":"_xlfn.STDEV.S('II. Headline series'!K681:K711)","v":2.525594861399748},{"$f":"_xlfn.STDEV.S('II. Headline series'!N681:N711)","v":2.6026855663708535},0.7067556557587776,0.8216750150901361]
[{"$f":"'III. GDP shares, 1310-2018'!A695","v":1999},{"$f":"_xlfn.STDEV.S('II. Headline series'!M682:M712)","v":1.757939896152073},{"$f":"_xlfn.STDEV.S('II. Headline series'!P682:P712)","v":1.986523588286509},{"$f":"_xlfn.STDEV.S('II. Headline series'!K682:K712)","v":2.432258723114934},{"$f":"_xlfn.STDEV.S('II. Headline series'!N682:N712)","v":2.506256552611423},0.7227602390508533,0.7926257933237633]
[{"$f":"'III. GDP shares, 1310-2018'!A696","v":2000},{"$f":"_xlfn.STDEV.S('II. Headline series'!M683:M713)","v":1.6764640441174903},{"$f":"_xlfn.STDEV.S('II. Headline series'!P683:P713)","v":1.751501951238014},{"$f":"_xlfn.STDEV.S('II. Headline series'!K683:K713)","v":2.3200751120390377},{"$f":"_xlfn.STDEV.S('II. Headline series'!N683:N713)","v":2.2693551373595087},0.722590417619756,0.7718060176671868]
[{"$f":"'III. GDP shares, 1310-2018'!A697","v":2001},{"$f":"_xlfn.STDEV.S('II. Headline series'!M684:M714)","v":1.637277481886214},{"$f":"_xlfn.STDEV.S('II. Headline series'!P684:P714)","v":1.602107318584668},{"$f":"_xlfn.STDEV.S('II. Headline series'!K684:K714)","v":2.274339698603979},{"$f":"_xlfn.STDEV.S('II. Headline series'!N684:N714)","v":2.152443701597713},0.7198913525939847,0.7443201963403074]
[{"$f":"'III. GDP shares, 1310-2018'!A698","v":2002},{"$f":"_xlfn.STDEV.S('II. Headline series'!M685:M715)","v":1.6038358937531247},{"$f":"_xlfn.STDEV.S('II. Headline series'!P685:P715)","v":1.5465569878394967},{"$f":"_xlfn.STDEV.S('II. Headline series'!K685:K715)","v":2.2932987541343146},{"$f":"_xlfn.STDEV.S('II. Headline series'!N685:N715)","v":2.1620768617940174},0.6993575917057298,0.7153108269038209]
[{"$f":"'III. GDP shares, 1310-2018'!A699","v":2003},{"$f":"_xlfn.STDEV.S('II. Headline series'!M686:M716)","v":1.5953226741910032},{"$f":"_xlfn.STDEV.S('II. Headline series'!P686:P716)","v":1.5195237748321744},{"$f":"_xlfn.STDEV.S('II. Headline series'!K686:K716)","v":2.262113217945404},{"$f":"_xlfn.STDEV.S('II. Headline series'!N686:N716)","v":2.103564669728845},0.7052355565297378,0.7223565772418326]
[{"$f":"'III. GDP shares, 1310-2018'!A700","v":2004},{"$f":"_xlfn.STDEV.S('II. Headline series'!M687:M717)","v":1.55690505855858},{"$f":"_xlfn.STDEV.S('II. Headline series'!P687:P717)","v":1.4720785437418262},{"$f":"_xlfn.STDEV.S('II. Headline series'!K687:K717)","v":2.1967398585654823},{"$f":"_xlfn.STDEV.S('II. Headline series'!N687:N717)","v":2.0021854362515485},0.7087343785782956,0.7352358663130735]
[{"$f":"'III. GDP shares, 1310-2018'!A701","v":2005},{"$f":"_xlfn.STDEV.S('II. Headline series'!M688:M718)","v":1.5466155840209765},{"$f":"_xlfn.STDEV.S('II. Headline series'!P688:P718)","v":1.4689346344962109},{"$f":"_xlfn.STDEV.S('II. Headline series'!K688:K718)","v":2.0884377895793422},{"$f":"_xlfn.STDEV.S('II. Headline series'!N688:N718)","v":1.904098498752287},0.7405610029363141,0.7714593732723232]
[{"$f":"'III. GDP shares, 1310-2018'!A702","v":2006},{"$f":"_xlfn.STDEV.S('II. Headline series'!M689:M719)","v":1.6978858061583257},{"$f":"_xlfn.STDEV.S('II. Headline series'!P689:P719)","v":1.5311445882930335},{"$f":"_xlfn.STDEV.S('II. Headline series'!K689:K719)","v":1.9941721228534177},{"$f":"_xlfn.STDEV.S('II. Headline series'!N689:N719)","v":1.7732934158097193},0.8514239000236637,0.8634468354995182]
[{"$f":"'III. GDP shares, 1310-2018'!A703","v":2007},{"$f":"_xlfn.STDEV.S('II. Headline series'!M690:M720)","v":1.6883287480998488},{"$f":"_xlfn.STDEV.S('II. Headline series'!P690:P720)","v":1.5321958144394252},{"$f":"_xlfn.STDEV.S('II. Headline series'!K690:K720)","v":1.8728227890907299},{"$f":"_xlfn.STDEV.S('II. Headline series'!N690:N720)","v":1.6819576262079317},0.9014887889737532,0.9109598188236449]
[{"$f":"'III. GDP shares, 1310-2018'!A704","v":2008},{"$f":"_xlfn.STDEV.S('II. Headline series'!M691:M721)","v":1.6446555903824744},{"$f":"_xlfn.STDEV.S('II. Headline series'!P691:P721)","v":1.517053923029484},{"$f":"_xlfn.STDEV.S('II. Headline series'!K691:K721)","v":1.7760849877123437},{"$f":"_xlfn.STDEV.S('II. Headline series'!N691:N721)","v":1.6320254591090098},0.9260005020935655,0.9295528538247844]
[{"$f":"'III. GDP shares, 1310-2018'!A705","v":2009},{"$f":"_xlfn.STDEV.S('II. Headline series'!M692:M722)","v":1.6661564434821279},{"$f":"_xlfn.STDEV.S('II. Headline series'!P692:P722)","v":1.5374225294260764},{"$f":"_xlfn.STDEV.S('II. Headline series'!K692:K722)","v":1.7723091740609993},{"$f":"_xlfn.STDEV.S('II. Headline series'!N692:N722)","v":1.6330212770458088},0.940104846190218,0.9414589699696542]
[{"$f":"'III. GDP shares, 1310-2018'!A706","v":2010},{"$f":"_xlfn.STDEV.S('II. Headline series'!M693:M723)","v":1.574062890977089},{"$f":"_xlfn.STDEV.S('II. Headline series'!P693:P723)","v":1.4822637380238899},{"$f":"_xlfn.STDEV.S('II. Headline series'!K693:K723)","v":1.6460859125054568},{"$f":"_xlfn.STDEV.S('II. Headline series'!N693:N723)","v":1.5570181999516586},0.9562458915532885,0.9519887038378295]
[{"$f":"'III. GDP shares, 1310-2018'!A707","v":2011},{"$f":"_xlfn.STDEV.S('II. Headline series'!M694:M724)","v":1.5364216061221594},{"$f":"_xlfn.STDEV.S('II. Headline series'!P694:P724)","v":1.462005363519136},{"$f":"_xlfn.STDEV.S('II. Headline series'!K694:K724)","v":1.5744001827639862},{"$f":"_xlfn.STDEV.S('II. Headline series'!N694:N724)","v":1.501918569083477},0.975877431254389,0.9734251867005695]
[{"$f":"'III. GDP shares, 1310-2018'!A708","v":2012},{"$f":"_xlfn.STDEV.S('II. Headline series'!M695:M725)","v":1.5210434124465306},{"$f":"_xlfn.STDEV.S('II. Headline series'!P695:P725)","v":1.4501354375789772},{"$f":"_xlfn.STDEV.S('II. Headline series'!K695:K725)","v":1.530638602916125},{"$f":"_xlfn.STDEV.S('II. Headline series'!N695:N725)","v":1.4414810570807093},0.9937312501779886,1.0060038114658232]
[{"$f":"'III. GDP shares, 1310-2018'!A709","v":2013},{"$f":"_xlfn.STDEV.S('II. Headline series'!M696:M726)","v":1.5223152249837126},{"$f":"_xlfn.STDEV.S('II. Headline series'!P696:P726)","v":1.3969049063271537},{"$f":"_xlfn.STDEV.S('II. Headline series'!K696:K726)","v":1.508998157148122},{"$f":"_xlfn.STDEV.S('II. Headline series'!N696:N726)","v":1.370603989731679},1.0088251054333683,1.0191892893881211]
[{"$f":"'III. GDP shares, 1310-2018'!A710","v":2014},{"$f":"_xlfn.STDEV.S('II. Headline series'!M697:M727)","v":1.5282724480538248},{"$f":"_xlfn.STDEV.S('II. Headline series'!P697:P727)","v":1.3523113494447614},{"$f":"_xlfn.STDEV.S('II. Headline series'!K697:K727)","v":1.5303660661112573},{"$f":"_xlfn.STDEV.S('II. Headline series'!N697:N727)","v":1.363680226736597},0.9986319495029365,0.9916630914865999]
[{"$f":"'III. GDP shares, 1310-2018'!A711","v":2015},{"$f":"_xlfn.STDEV.S('II. Headline series'!M698:M728)","v":1.5086393275246401},{"$f":"_xlfn.STDEV.S('II. Headline series'!P698:P728)","v":1.3147822935903137},{"$f":"_xlfn.STDEV.S('II. Headline series'!K698:K728)","v":1.5269059652008472},{"$f":"_xlfn.STDEV.S('II. Headline series'!N698:N728)","v":1.3242218249899995},0.9880368286636405,0.9928716388587259]
[{"$f":"'III. GDP shares, 1310-2018'!A712","v":2016},{"$f":"_xlfn.STDEV.S('II. Headline series'!M699:M729)","v":1.530677480201516},{"$f":"_xlfn.STDEV.S('II. Headline series'!P699:P729)","v":1.3198142616153075},{"$f":"_xlfn.STDEV.S('II. Headline series'!K699:K729)","v":1.513310629847894},{"$f":"_xlfn.STDEV.S('II. Headline series'!N699:N729)","v":1.2303679212272396},1.0114760644715537,1.0726988560453112]
[{"$f":"'III. GDP shares, 1310-2018'!A713","v":2017},{"$f":"_xlfn.STDEV.S('II. Headline series'!M700:M730)","v":1.5481404136827257},{"$f":"_xlfn.STDEV.S('II. Headline series'!P700:P730)","v":1.343631381223567},{"$f":"_xlfn.STDEV.S('II. Headline series'!K700:K730)","v":1.5238376514538026},{"$f":"_xlfn.STDEV.S('II. Headline series'!N700:N730)","v":1.208212236790531},1.0159483933250615,1.1120822487220958]
[{"$f":"'III. GDP shares, 1310-2018'!A714","v":2018},{"$f":"_xlfn.STDEV.S('II. Headline series'!M701:M731)","v":1.573023854794909},{"$f":"_xlfn.STDEV.S('II. Headline series'!P701:P731)","v":1.3183182532705282},{"$f":"_xlfn.STDEV.S('II. Headline series'!K701:K731)","v":1.554941084768871},{"$f":"_xlfn.STDEV.S('II. Headline series'!N701:N731)","v":1.2068790513358278},1.0116292316173032,1.0923366776574293]
[]
["All-time average",{"$f":"AVERAGE(B23:B712)","v":6.110808669660328},{"$f":"AVERAGE(C23:C712)","v":10.4329947562942},0.972585022364712,1.2337311416090606,8.709180470030578,13.476385515030719]

{"sheet":"VI. R-G variations, 1317-2018","index":6,"n_rows":714,"n_cols":16,"rows_kept":714,"merged":[[0,2,0,5],[0,8,0,10],[0,11,0,14]]}
["back to contents",null,"all year-on-year real %",{"$nulls":5},"in %*100",null,null,"%"]
[null,null,"Global G1 (weighted country level studies)","Global G2 (Maddison basis)","Safe asset provider G",{"$nulls":3},"Global R","Safe asset provider R","Land R (to 1984)","R-G1","Global R-G","Safe R-G","Land R-G","R-G reversal 1570-1648"]
[]
[null,"Source","UK: Broadberry et al. (2015) via Thomas and Dimsdale (2017); Italy: Malanima (2011, 205-217, series 3); Spain: Alvarez-Nogal and Escosura(2013, 33, est. I); Germany: Pfister (2008, interpolated); Holland: van Zanden and van Leeuwen (2012, appendix table 2); France: Maddison (2010); U.S.: BEA via FRED series GDPC1.","Maddison (2010, interpolated)"," Italy: Malanima (2011, 205-217, series 3); Spain: Alvarez-Nogal and Escosura(2013, 33); Holland: van Zanden and van Leeuwen (2012, appendix table 2); UK: Broadberry et al. (2015) via Thomas and Dimsdale (2017); ; Germany: Hoffman (1965, 14, interpolated); U.S.: BEA via FRED series GDPC1.",{"$nulls":9},"Land returns: including Ward (1960); Featherstone and Baker (1987, 545-546); Clark (1988; 2010, table 7)."]
[]
[1310]
[1311,{"$nulls":3},8.382161084188062e-16]
[1312,{"$nulls":3},0.019108280254777097]
[1313,{"$nulls":3},0]
[1314,null,-0.003639475977730292,null,0.01249999999999988,3.792047724723887E-3]
[1315,null,0.002530152326633398,null,0.030864197530864106,3.7920477247237678E-3]
[1316,null,3.3690491077884646E-3,null,0,3.7242277415657295E-3]
[1317,null,-1.5710629879205147E-3,-6.1997891040113315E-4,-0.03592814371257471,-6.3117295529836845E-4,null,null,{"$f":"'II. Headline series'!E15","v":13.3491020330995},{"$f":"'II. Headline series'!H15","v":11.894460562640344},8.42000034814213,{"$f":"(I13/100)-C13","v":0.1350620833189155},{"$f":"(I13/100)-D13","v":0.13411099924139613},{"$f":"(J13/100)-F13","v":0.1195757785817018},{"$f":"(K13/100)-F13","v":0.08483117643671967}]
[1318,null,-0.006056057863822977,-0.000609389104394636,0,-6.1994204784101669E-4,null,null,{"$f":"'II. Headline series'!E16","v":12.97706536420637},{"$f":"'II. Headline series'!H16","v":11.371912128061835},8.42000034814213,{"$f":"(I14/100)-C14","v":0.13582671150588668},{"$f":"(I14/100)-D14","v":0.13038004274645834},{"$f":"(J14/100)-F14","v":0.11433906332845938},{"$f":"(K14/100)-F14","v":0.08481994552926232}]
[1319,null,-0.010753479379853274,-0.011787553754018128,0.018633540372670832,-0.012127604694220025,null,null,{"$f":"'II. Headline series'!E17","v":0.6994648001168277},{"$f":"'II. Headline series'!H17","v":-3.022266860124003},8.42000034814213,0.01774812738102155,0.018782201755186405,-0.018095063907020002,0.09632760817564133]
[1320,null,-0.011013722764928324,-0.015409760266972964,-0.030487804878048686,-0.015862431958459048,null,null,{"$f":"'II. Headline series'!E18","v":-1.8709522328895785},{"$f":"'II. Headline series'!H18","v":-8.274024229738515},8.42000034814213,-7.695799563967461E-3,-3.2997620619228205E-3,-0.0668778103389261,0.10006243543988035]
[1321,null,-0.008558128792316214,-0.00763199337841917,0.012578616352201342,-0.007853521686959877,null,null,{"$f":"'II. Headline series'!E19","v":5.960998427294881},{"$f":"'II. Headline series'!H19","v":0.965758713222432},6.7766631012400795,0.06816811306526503,0.06724197765136798,0.017511108819184197,0.07562015269936068]
[1322,null,-0.005429218191374303,-0.003075351314745176,-0.04968944099378895,-3.1542735666591085E-3,null,null,{"$f":"'II. Headline series'!E20","v":7.964982421027252},{"$f":"'II. Headline series'!H20","v":4.69901016195007},4.739368719934684,0.08507904240164682,0.0827251755250177,0.05014437518615981,0.05054796076600595]
[1323,null,-0.005668828951284066,-3.8945736797770867E-3,-0.026143790849673165,-0.003996371690871401,null,null,{"$f":"'II. Headline series'!E21","v":6.297289525522433},{"$f":"'II. Headline series'!H21","v":3.7421711676110756},5.610409884724315,0.0686417242065084,0.06686746893500141,0.041418083366982154,0.06010047053811455]
[1324,null,-0.004430424279788479,-0.003151436128766301,0.02013422818791949,-3.2348613803505114E-3,null,null,{"$f":"'II. Headline series'!E22","v":4.071811957084286},{"$f":"'II. Headline series'!H22","v":-0.2242574923672503},8.034023092517932,0.045148543850631336,0.04386955569960916,9.9228645667800855E-4,0.08357509230552983]
[1325,null,-0.006214522224870571,-0.008473041274557957,0.03289473684210537,-0.008718442518222616,null,null,{"$f":"'II. Headline series'!E23","v":1.9623555749534651},{"$f":"'II. Headline series'!H23","v":-3.466663774355948},9.232321448423779,0.02583807797440522,0.028096597024092607,-0.02594819522533686,0.1010416570024604]
[1326,null,-0.006410656005332311,-0.008915703321977468,0.012738853503184797,-0.009188541297728645,null,null,{"$f":"'II. Headline series'!E24","v":8.942448107702246},{"$f":"'II. Headline series'!H24","v":2.5807772750344404},9.540204053286185,0.09583513708235476,0.09834018439899993,0.034996314048073046,0.1045905818305905]
[1327,null,-4.3084166469298645E-3,-0.004326658649939868,-0.025157232704402472,-0.004454713034488617,null,null,{"$f":"'II. Headline series'!E25","v":13.033558689002161},{"$f":"'II. Headline series'!H25","v":8.327545386551071},9.386375493275168,0.13464400353695147,0.13466224553996148,0.08773016689999932,0.0983184679672403]
[1328,null,2.6947507416514816E-3,2.4893996431567048E-3,-0.025806451612903392,0.002589603573586378,null,null,{"$f":"'II. Headline series'!E26","v":12.164874196451526},{"$f":"'II. Headline series'!H26","v":9.055378785317426},9.868086998750544,0.11895399122286378,0.11915934232135855,0.08796418427958788,0.09609126641391905]
[1329,null,1.2327770905464438E-3,1.5321480550965336E-3,-0.052980132450331154,0.001600930592432172,null,null,{"$f":"'II. Headline series'!E27","v":9.962968783469965},{"$f":"'II. Headline series'!H27","v":6.536345221322642},11.044517071967489,0.0983969107441532,0.09809753977960312,0.06376252162079425,0.10884424012724271]
[1330,null,-5.4787646524623885E-3,-0.007256029472609386,0.00699300699300704,-0.0074521786783664,null,null,{"$f":"'II. Headline series'!E28","v":8.055770887674297},{"$f":"'II. Headline series'!H28","v":2.2923421023775883},12.036749868871045,0.08603647352920536,0.08781373834935235,0.030375599702142285,0.12781967736707686]
[1331,null,-0.004596154990716368,-5.6127512265044125E-3,0.06944444444444445,-0.005763050196785076,null,null,{"$f":"'II. Headline series'!E29","v":8.3019108170547},{"$f":"'II. Headline series'!H29","v":2.7129441847989844},12.112465638021783,0.08761526316126336,0.08863185939705141,0.032892492044774915,0.1268877065770029]
[1332,null,-0.002340317776452736,-0.003906274928022676,0.025974025974025934,-0.004006916182586517,null,null,{"$f":"'II. Headline series'!E30","v":9.207422768325552},{"$f":"'II. Headline series'!H30","v":4.29203588572154},11.546638597296168,0.09441454545970825,0.09598050261127819,0.046927275039801916,0.11947330215554819]
[1333,null,6.6711064751532765E-3,7.2215540526311545E-3,-0.050632911392405194,7.4755684923140265E-3,null,null,{"$f":"'II. Headline series'!E31","v":11.685731269474593},{"$f":"'II. Headline series'!H31","v":9.077777277598223},11.073520266394556,0.11018620621959264,0.10963575864211476,0.0833022042836682,0.10325963417163155]
[1334,null,0.012079993528576758,0.009024033744331155,-0.013333333333333204,0.009333710350455882,null,null,{"$f":"'II. Headline series'!E32","v":11.340019658996543},{"$f":"'II. Headline series'!H32","v":8.41116878006645},11.602804656610918,0.10132020306138866,0.10437616284563427,0.07477797745020863,0.10669433621565329]
[1335,null,3.8852750372069425E-3,-3.2960082831898206E-3,-0.013513513513513492,-0.003388045018358313,null,null,{"$f":"'II. Headline series'!E33","v":9.56180245722142},{"$f":"'II. Headline series'!H33","v":4.689053483538236},12.153014944475574,0.09173274953500726,0.09891403285540402,0.05027857985374067,0.12491819446311404]
[1336,null,-0.011291239702063268,-0.013357140410630073,0.02739726027397267,-0.013765286824171552,null,null,{"$f":"'II. Headline series'!E34","v":7.965037216154621},{"$f":"'II. Headline series'!H34","v":2.91347860030451},12.53113956864246,0.09094161186360947,0.09300751257217628,0.042900072827216654,0.13907668251059616]
[1337,null,2.9767676665815826E-4,-2.4679277360702355E-3,0.02000000000000002,-2.5360097721096797E-3,null,null,{"$f":"'II. Headline series'!E35","v":9.299205938774131},{"$f":"'II. Headline series'!H35","v":5.811078447081388},12.126064303604537,0.09269438262108315,0.09545998712381155,0.06064679424292356,0.12379665280815504]
[1338,null,0.006179737751731535,3.1437014261648305E-3,-0.019607843137254923,3.2560213260438603E-3,null,null,{"$f":"'II. Headline series'!E36","v":10.728028074308337},{"$f":"'II. Headline series'!H36","v":6.4950246783829275},11.767647066112884,0.10110054299135185,0.10413657931691855,0.061694225457785405,0.11442044933508498]
[1339,null,2.0200223235132026E-3,-5.074887914906962E-3,-0.04666666666666675,-0.005220288474769247,null,null,{"$f":"'II. Headline series'!E37","v":11.817661785664113},{"$f":"'II. Headline series'!H37","v":6.945999196633094},11.93589180715071,0.11615659553312793,0.12325150577154809,0.07468028044110019,0.12457920654627634]
[1340,null,-0.0163004190920014,-0.02465528640468303,0.027972027972027927,-0.025460713411867373,null,null,{"$f":"'II. Headline series'!E38","v":11.672412742611927},{"$f":"'II. Headline series'!H38","v":6.193434934773237},12.402310105939408,0.13302454651812068,0.1413794138308023,0.08739506275959974,0.14948381447126147]
[1341,null,-0.02342992140614334,-0.031862641811911736,0.02721088435374157,-0.0329261511998858,null,null,{"$f":"'II. Headline series'!E39","v":11.14706888023972},{"$f":"'II. Headline series'!H39","v":5.723036847150829},12.280599910731306,0.13490061020854055,0.14333333061430895,0.0901565196713941,0.15573215030719886]
[1342,null,-0.024722894445946043,-0.030291069760647778,-0.07284768211920524,-0.03131550694218271,null,null,{"$f":"'II. Headline series'!E40","v":11.086309738458553},{"$f":"'II. Headline series'!H40","v":5.518043734914076},12.148089357289804,0.13558599183053158,0.1411541671452333,0.08649594429132346,0.15279640051508075]
[1343,null,-0.02410062491787737,-0.0342183476252236,-0.11428571428571421,-0.03545316200420747,null,null,{"$f":"'II. Headline series'!E41","v":11.990113075058648},{"$f":"'II. Headline series'!H41","v":5.740340628874198},11.697499128703267,0.14400175566846385,0.15411947837581008,0.09285656829294944,0.15242815329124015]
[1344,null,-0.03069334672741971,-0.0393305663284253,-0.032258064516128976,-0.04074786729891277,null,null,{"$f":"'II. Headline series'!E42","v":10.640362583506416},{"$f":"'II. Headline series'!H42","v":4.454964224056514},11.244514283399454,0.13709697256248388,0.14573419216348946,0.08529750953947791,0.15319301013290731]
[1345,null,-0.027085583744505672,-0.035561127986496376,-8.33333333333325E-3,-0.03677144055521401,null,null,{"$f":"'II. Headline series'!E43","v":9.591157893923155},{"$f":"'II. Headline series'!H43","v":4.930660122776605},10.62628945260831,0.12299716268373723,0.13147270692572793,0.08607804178298006,0.14303433508129712]
[1346,null,-0.03210935076467506,-0.031436611948013206,-0.07563025210084012,-0.03257580894812255,null,null,{"$f":"'II. Headline series'!E44","v":8.387727742635617},{"$f":"'II. Headline series'!H44","v":2.9921246068747465},9.89487212090812,0.11598662819103123,0.11531388937436937,0.062497055016870015,0.13152453015720375]
[1347,null,-0.00918650293043667,-1.95308071053679E-3,-9.090909090909146E-3,-0.001963564050163396,null,null,{"$f":"'II. Headline series'!E45","v":7.70514919574378},{"$f":"'II. Headline series'!H45","v":2.1857706928328478},8.81730016139217,0.08623799488787447,0.07900457266797459,0.023821270978491873,0.09013656566408511]
[1348,null,-0.020671704467393675,-0.011146770953066988,0.05504587155963291,-0.011522919650574717,null,null,{"$f":"'II. Headline series'!E46","v":7.26728933597117},{"$f":"'II. Headline series'!H46","v":1.3826281801377998},8.0320519524321,0.09334459782710537,0.08381966431277868,0.025349201451952713,0.09184343917489572]
[1349,null,-0.02940059872479022,-0.02507139932689913,-0.043478260869565064,-0.026059835334279413,null,null,{"$f":"'II. Headline series'!E47","v":6.944984775310789},{"$f":"'II. Headline series'!H47","v":1.4263406657202324},7.07551212126045,0.09885044647789812,0.09452124708000702,0.04032324199148174,0.09681495654688392]
[1350,null,-0.015954528883344817,-0.010470666931225421,0.09999999999999987,-0.010837251455367026,null,null,{"$f":"'II. Headline series'!E48","v":6.726566536907386},{"$f":"'II. Headline series'!H48","v":0.09515705829056653},6.474045665794762,0.08322019425241867,0.07773633230029928,0.011788822038272691,0.07557770811331464]
[1351,null,-0.014098243608989777,-0.005134701729499843,-0.09917355371900821,-5.2528358709514325E-3,null,null,{"$f":"'II. Headline series'!E49","v":8.133295435445858},{"$f":"'II. Headline series'!H49","v":1.685632500490662},6.112222129255818,0.09543119796344834,0.08646765608395841,0.022109160875858055,0.06637505716350961]
[1352,null,-0.020439783399938367,-0.012669557333141995,-0.11009174311926613,-0.013116531808041846,null,null,{"$f":"'II. Headline series'!E50","v":8.355596642728377},{"$f":"'II. Headline series'!H50","v":1.9465016935552022},6.176221757315106,0.10399574982722214,0.09622552376042577,0.03258154874359387,0.0748787493811929]
[1353,null,-0.00911166310348577,-0.006705100256556872,0.030927835051546587,-0.006905351683818267,null,null,{"$f":"'II. Headline series'!E51","v":8.727465464796262},{"$f":"'II. Headline series'!H51","v":3.556486349924928},6.405100000087367,0.09638631775144839,0.0939797549045195,0.04247021518306755,0.07095635168469193]
[1354,null,-0.0189927127241018,-0.021724360746250827,0.03000000000000002,-0.022578028521543635,null,null,{"$f":"'II. Headline series'!E52","v":9.98444611112206},{"$f":"'II. Headline series'!H52","v":5.3914918520261725},7.051997265413776,0.1188371738353224,0.12156882185747142,0.07649294704180537,0.0930980011756814]
[1355,null,-0.00477673043161803,-0.006754480960357616,0,-7.0098177661671295E-3,null,null,{"$f":"'II. Headline series'!E53","v":11.138162846541096},{"$f":"'II. Headline series'!H53","v":7.142339474186799},7.767882208545337,0.11615835889702898,0.11813610942576858,0.07843321250803512,0.08468863985162049]
[1356,null,-0.004044768126885693,-0.004942107294240288,0,-5.1520514120972066E-3,null,null,{"$f":"'II. Headline series'!E54","v":11.479370078860944},{"$f":"'II. Headline series'!H54","v":7.534285824887986},8.598475369973333,0.11883846891549513,0.11973580808284973,0.08049490966097707,0.09113680511183053]
[1357,null,-0.006621520693432872,-7.69247124755746E-3,-9.708737864077728E-3,-0.008034215252026279,null,null,{"$f":"'II. Headline series'!E55","v":11.345579474381791},{"$f":"'II. Headline series'!H55","v":8.423819532724982},9.225063747855645,0.12007731543725078,0.12114826599137538,0.0922724105792761,0.10028485273058271]
[1358,null,3.4880884964877423E-3,0.004128496232878969,0.00980392156862735,0.004397395690222962,null,null,{"$f":"'II. Headline series'!E56","v":11.786841424161036},{"$f":"'II. Headline series'!H56","v":9.757109714082205},9.602153658015295,0.11438032574512262,0.11373991800873139,0.09317370145059908,0.09162414088992998]
[1359,null,0.004005577140312492,0.006731648525060456,-0.09708737864077667,0.007118484125597106,null,null,{"$f":"'II. Headline series'!E57","v":11.921763199832412},{"$f":"'II. Headline series'!H57","v":9.88532253487955},9.817454883162691,0.11521205485801163,0.11248598347326366,0.0917347412231984,0.0910560647060298]
[1360,null,-0.001761800416215888,3.4023259775685675E-4,0.010752688172043078,4.4291670236613505E-4,null,null,{"$f":"'II. Headline series'!E58","v":11.244388706010639},{"$f":"'II. Headline series'!H58","v":9.056903937021158},10.648494621608098,0.11420568747632227,0.11210365446234953,0.09012612266784543,0.10604202951371484]
[1361,null,0.006475639138994064,0.007018574299541835,0.1170212765957447,0.007432120150735792,null,null,{"$f":"'II. Headline series'!E59","v":10.68265727876614},{"$f":"'II. Headline series'!H59","v":8.226881215278029},10.971292125281751,0.10035093364866735,0.09980799848811957,0.07483669200204449,0.10228080110208171]
[1362,null,0.008211251562149791,0.010839720362085468,0.019047619047619008,0.011422395506160981,null,null,{"$f":"'II. Headline series'!E60","v":11.040971028509315},{"$f":"'II. Headline series'!H60","v":8.526262739721217},10.595100903106214,0.10219845872294336,0.09956998992300768,0.0738402318910512,0.09452861352490116]
[1363,null,0.013612436622740694,0.016627861502028527,-0.0467289719626168,0.01749981323406414,null,null,{"$f":"'II. Headline series'!E61","v":13.591322278220401},{"$f":"'II. Headline series'!H61","v":13.044953764037876},10.16625735010535,0.12230078615946333,0.1192853612801755,0.11294972440631462,0.08416276026698938]
[1364,null,0.014079369839445896,0.019107144239562553,0.03921568627450988,0.020084594044651422,null,null,{"$f":"'II. Headline series'!E62","v":12.322375336221608},{"$f":"'II. Headline series'!H62","v":10.188289946678841},9.595915508413508,0.10914438352277019,0.10411660912265353,0.081798305422137,0.07587456103948366]
[1365,null,-0.013306836320599187,-0.014700886972178818,0.03773584905660369,-0.015324319968358842,null,null,{"$f":"'II. Headline series'!E63","v":10.492920064468574},{"$f":"'II. Headline series'!H63","v":6.5609569684626},9.424532433957593,0.11823603696528494,0.11963008761686457,0.08093388965298484,0.10956964430793477]
[1366,null,-0.01418808682081966,-0.014381341412451731,-0.05454545454545458,-0.014973211783149273,null,null,{"$f":"'II. Headline series'!E64","v":10.413218033464224},{"$f":"'II. Headline series'!H64","v":6.4307440412925905},9.790182689006583,0.1183202671554619,0.11851352174709397,0.07928065219607518,0.11287503867321509]
[1367,null,-0.030878253038389786,-0.039495042295560924,0.028846153846154025,-0.041380351126835586,null,null,{"$f":"'II. Headline series'!E65","v":9.231336001762191},{"$f":"'II. Headline series'!H65","v":4.807603814260409},8.93900847427121,0.1231916130560117,0.13180840231318283,0.08945638926943968,0.13077043586954767]
[1368,null,-0.03326539848757197,-0.03749875187648576,-0.13084112149532712,-0.03915480337348769,null,null,{"$f":"'II. Headline series'!E66","v":10.932202257795385},{"$f":"'II. Headline series'!H66","v":6.8547041189287325},7.456376001824822,0.14258742106552583,0.1468207744544396,0.10770184456277501,0.1137185633917359]
[1369,null,-0.03164994873937762,-0.03392136217968208,0.021505376344085975,-0.03526920110513609,null,null,{"$f":"'II. Headline series'!E67","v":13.187249611701583},{"$f":"'II. Headline series'!H67","v":11.00510330077742},6.083446942643049,0.16352244485639345,0.1657938582966979,0.14532023411291028,0.09610367053156657]
[1370,null,-0.0211419035362777,-0.023158896535248493,-0.231578947368421,-0.02399267275543701,null,null,{"$f":"'II. Headline series'!E68","v":11.134407376925717},{"$f":"'II. Headline series'!H68","v":7.210759402198526},5.582058948192463,0.13248597730553488,0.13450297030450567,0.09610026677742227,0.07981326223736164]
[1371,null,-0.04393295750521499,-0.049632952469537854,0.054794520547945195,-0.05192307568583998,null,null,{"$f":"'II. Headline series'!E69","v":8.032729279147224},{"$f":"'II. Headline series'!H69","v":0.2089002248643632},5.910651336515232,0.12426025029668723,0.1299602452610101,0.054012077934483614,0.1110295890509923]
[1372,null,0.012570900144992157,0.01962011562743413,0.0649350649350649,0.019829737589002677,null,null,{"$f":"'II. Headline series'!E70","v":6.362709148327672},{"$f":"'II. Headline series'!H70","v":-2.6323621423528465},5.69194286117213,0.05105619133828457,0.044006975855842595,-0.04615335901253114,0.03708969102271863]
[1373,null,0.003408324979412143,1.1751063646255233E-3,0.02439024390243897,3.8849334937134106E-4,null,null,{"$f":"'II. Headline series'!E71","v":9.621055082970683},{"$f":"'II. Headline series'!H71","v":3.4439151265910186},4.431083231736571,0.09280222585029468,0.0950354444650813,0.03405065791653884,0.04392233896799437]
[1374,null,0.031135984393546343,0.037429633629166646,-0.1666666666666668,0.03851321692301133,null,null,{"$f":"'II. Headline series'!E72","v":13.266480326029685},{"$f":"'II. Headline series'!H72","v":7.837920774021467},3.738994481174114,0.1015288188667505,0.09523516963113018,0.039865990817203344,-0.001123272111270189]
[1375,null,0.016272144116708406,0.019355352259242644,0.3714285714285715,0.019321791909668515,null,null,{"$f":"'II. Headline series'!E73","v":12.437255332943726},{"$f":"'II. Headline series'!H73","v":6.400243825705801},4.801822649498122,0.10810040921272886,0.10501720107019462,0.0446806463473895,0.02869643458531271]
[1376,null,0.004919141789775781,5.6489577372468855E-3,-0.11458333333333336,4.7543487707968025E-3,null,null,{"$f":"'II. Headline series'!E74","v":11.336454782074307},{"$f":"'II. Headline series'!H74","v":3.8396984773065506},7.01708803738511,0.10844540603096728,0.10771559008349618,0.0336426360022687,0.0654165316030543]
[1377,null,0.027214734097093567,0.03324863121579159,0.03529411764705885,0.03423706118033845,null,null,{"$f":"'II. Headline series'!E75","v":11.71952948702588},{"$f":"'II. Headline series'!H75","v":4.765424473428771},7.166092031871408,0.08998056077316524,0.08394666365446721,0.01341718355394926,0.03742385913837562]
[1378,null,0.04312272388253395,0.04872645939072897,-0.07954545454545447,0.05060610879938609,null,null,{"$f":"'II. Headline series'!E76","v":14.484290478808045},{"$f":"'II. Headline series'!H76","v":10.615670803129804},6.353740868316714,0.1017201809055465,0.09611644539735148,0.05555059923191195,0.012931299883781049]
[1379,null,5.0242865864866945E-3,0.000338224282202333,-0.03703703703703706,6.8460173502186777E-4,null,null,{"$f":"'II. Headline series'!E77","v":18.08849280993055},{"$f":"'II. Headline series'!H77","v":16.145540060748065},5.790828848889281,0.17586064151281883,0.18054670381710317,0.1607707988724588,0.05722368675387094]
[1380,null,3.6351892614964643E-3,0.005681047251485668,0.2307692307692305,0.006300961182026459,null,null,{"$f":"'II. Headline series'!E78","v":13.87809261419464},{"$f":"'II. Headline series'!H78","v":7.775572396884337},5.371234201759195,0.13514573688044992,0.13309987889046074,0.07145476278681692,0.047411380835565495]
[1381,null,2.317296619302031E-3,9.3163679735733056E-4,-0.05208333333333332,1.2589443753037682E-3,null,null,{"$f":"'II. Headline series'!E79","v":11.983781612466037},{"$f":"'II. Headline series'!H79","v":5.188422621652641},5.379534467270555,0.11752051950535834,0.11890617932730305,0.05062528184122264,0.05253640029740179]
[1382,null,0.01185711771340255,0.014788589513448084,0.021978021978021935,0.01594483987515274,null,null,{"$f":"'II. Headline series'!E80","v":11.77724155357089},{"$f":"'II. Headline series'!H80","v":5.065690753279966},4.841007272268636,{"$f":"(I78/100)-C78","v":0.10591529782230635},{"$f":"(I78/100)-D78","v":0.10298382602226082},{"$f":"(J78/100)-F78","v":0.03471206765764692},{"$f":"(K78/100)-F78","v":0.03246523284753362}]
[1383,null,0.02048545804226437,0.01822609871729649,-0.0752688172043012,0.0196124685427814,null,null,{"$f":"'II. Headline series'!E81","v":9.860088474627277},{"$f":"'II. Headline series'!H81","v":2.6178479204430825},2.638771477561583,0.0781154267040084,0.08037478602897627,0.006566010661649423,6.7752462328344275E-3]
[1384,null,-1.0026523831710421E-3,-1.8882696571043332E-4,0,-2.1827542589358619E-4,null,null,{"$f":"'II. Headline series'!E82","v":11.031070692389429},{"$f":"'II. Headline series'!H82","v":5.227617897400416},2.347555542367799,0.11131335930706533,0.11049953388960472,0.05249445439989774,0.023693830849571575]
[1385,null,-0.00369368521642899,-1.1838720649668508E-3,0.023255813953488334,-0.007815393220379807,null,null,{"$f":"'II. Headline series'!E83","v":11.932830686732673},{"$f":"'II. Headline series'!H83","v":5.940001075912668},2.6013763594276575,0.12302199208375572,0.12051217893229359,0.06721540397950648,0.03382915681465638]
[1386,null,-0.008797983945772386,-0.006712168047894616,-0.011363636363636439,-0.015997127452534208,null,null,{"$f":"'II. Headline series'!E84","v":9.612089834579475},{"$f":"'II. Headline series'!H84","v":-0.5280454549379081},3.171866382442157,0.10491888229156714,0.10283306639368936,0.010716672903155127,0.047715791276955785]
[1387,null,1.7303357110476287E-3,5.204732925335403E-3,0.0919540229885056,-0.001760118722999894,null,null,{"$f":"'II. Headline series'!E85","v":11.273727851583134},{"$f":"'II. Headline series'!H85","v":4.224986674534384},4.327860274817683,0.11100694280478371,0.10753254559049592,0.04400998546834373,0.04503872147117672]
[1388,null,8.1434382991682562E-4,0.006063001030808535,-0.10526315789473686,-5.9438450891066748E-5,null,null,{"$f":"'II. Headline series'!E86","v":11.483389515982774},{"$f":"'II. Headline series'!H86","v":5.274990898585997},4.9995147462211635,0.11401955132991091,0.1087708941290192,0.05280934743675104,0.0500545859131027]
[1389,null,0.000536862814381568,3.7200372696591675E-4,-0.03529411764705887,-0.008423714393826382,null,null,{"$f":"'II. Headline series'!E87","v":12.232548043378497},{"$f":"'II. Headline series'!H87","v":7.162352583671625},5.552906747056037,0.1217886176194034,0.12195347670681905,0.08004724023054263,0.06395278186438676]
[1390,null,0.002111267279814291,0.008853851425302232,0.02439024390243899,0.007136944459515421,null,null,{"$f":"'II. Headline series'!E88","v":13.513690327828225},{"$f":"'II. Headline series'!H88","v":8.913351592111464},7.834730367148587,0.13302563599846798,0.12628305185298003,0.08199657146159922,0.07121035921197044]
[1391,null,0.005560060489522268,5.488303982089722E-3,0.011904761904761791,0.011460972921474933,null,null,{"$f":"'II. Headline series'!E89","v":12.551770747845836},{"$f":"'II. Headline series'!H89","v":8.33892288713207},8.488631437194107,0.1199576469889361,0.12002940349636865,0.07192825594984575,0.07342534145046613]
[1392,null,0.010992242883200344,0.01120274600414504,-0.03529411764705888,0.02225528543543309,null,null,{"$f":"'II. Headline series'!E90","v":13.301275940499886},{"$f":"'II. Headline series'!H90","v":8.51874782582509},9.19941687287423,0.12202051652179853,0.12181001340085383,0.0629321928228178,0.0697388832933092]
[1393,null,0.011520907968800351,0.012178814178991292,0.09756097560975618,0.024381850347112054,null,null,{"$f":"'II. Headline series'!E91","v":14.950378769676059},{"$f":"'II. Headline series'!H91","v":13.924789747742475},9.224530047967674,0.13798287972796025,0.1373249735177693,0.11486604713031269,0.06786345013256469]
[1394,null,0.009953618104291158,0.009640849001343677,0.12222222222222216,0.019409434551525547,null,null,{"$f":"'II. Headline series'!E92","v":12.820048666095186},{"$f":"'II. Headline series'!H92","v":7.098706957500424},9.289817752825483,0.1182468685566607,0.11855963765960817,0.05157763502347869,0.07348874297672928]
[1395,null,0.007728756531055306,0.007977516776358535,-0.029702970297029747,0.01620499488092047,null,null,{"$f":"'II. Headline series'!E93","v":13.650939636760748},{"$f":"'II. Headline series'!H93","v":8.461331742069168},8.44966351167757,0.12878063983655216,0.12853187959124895,0.06840832253977122,0.06829164023585524]
[1396,null,0.008039989134265632,0.011346571096813973,-0.0204081632653061,0.022766768526548957,null,null,{"$f":"'II. Headline series'!E94","v":12.72621540340957},{"$f":"'II. Headline series'!H94","v":5.574123260147786},8.152934298231646,0.11922216489983008,0.11591558293728174,0.032974464074928905,0.0587625744557675]
[1397,null,0.011371355177010425,0.00935499138001357,-0.010416666666666569,0.025370839680042445,null,null,{"$f":"'II. Headline series'!E95","v":13.17830636379492},{"$f":"'II. Headline series'!H95","v":7.517605438044346},7.33065889435462,0.12041170846093878,0.12242807225793563,0.049805214700401015,0.04793574926350376]
[1398,null,1.78514442021302E-3,2.4252178447865019E-4,-0.010526315789473757,0.007910522219724995,null,null,{"$f":"'II. Headline series'!E96","v":11.367069365740871},{"$f":"'II. Headline series'!H96","v":0.5565027731369884},8.054127648107592,0.1118855492371957,0.11342817187293007,-2.3454944883551107E-3,0.07263075426135093]
[1399,null,1.938108674696669E-3,-1.2051474415957011E-3,0.0106382978723405,0.005415259216335712,null,null,{"$f":"'II. Headline series'!E97","v":12.268692124231267},{"$f":"'II. Headline series'!H97","v":4.543619711728728},7.947673767340403,0.120748812567616,0.12389206868390837,0.04002093790095157,0.07406147845706831]
[1400,null,0.009099130346522304,0.007374485953075947,0.11578947368421064,0.021060555524392188,null,null,{"$f":"'II. Headline series'!E98","v":13.006792152522902},{"$f":"'II. Headline series'!H98","v":6.286766536200164},8.435893647554217,0.12096879117870672,0.12269343557215308,0.04180710983760945,0.06329838095114998]
[1401,null,0.008200252803948182,0.005210756028608922,0,0.017353845567682224,null,null,{"$f":"'II. Headline series'!E99","v":14.687360839836513},{"$f":"'II. Headline series'!H99","v":10.330340610818206},8.261595664166643,0.13867335559441696,0.1416628523697562,0.08594956054049983,0.0652621110739842]
[1402,null,1.34365607356704E-3,-0.002308690329985187,-0.04716981132075473,4.0328071225126955E-3,null,null,{"$f":"'II. Headline series'!E100","v":13.623581421118649},{"$f":"'II. Headline series'!H100","v":5.989621528418014},8.929545839376493,0.13489215813761946,0.13854450454117168,0.05586340816166745,0.08526265127125224]
[1403,null,9.0898324230842716E-4,-0.002314716299024296,0.08910891089108923,4.0168096821031635E-3,null,null,{"$f":"'II. Headline series'!E101","v":14.159896489699909},{"$f":"'II. Headline series'!H101","v":7.50047880653065},8.97367526292663,0.14068998165469065,0.14391368119602338,0.07098797838320334,0.08571994294716313]
[1404,null,-0.00843427208790042,-0.010469209217699116,-0.036363636363636306,-0.018476924653736442,null,null,{"$f":"'II. Headline series'!E102","v":13.340021314502007},{"$f":"'II. Headline series'!H102","v":5.126925347882887},8.775910086132521,0.1418344852329205,0.14386942236271918,0.06974617813256531,0.10623602551506166]
[1405,null,-0.010772467610513549,-0.012103998820190486,-0.10377358490566045,-0.02158251471584824,null,null,{"$f":"'II. Headline series'!E103","v":12.961784467360035},{"$f":"'II. Headline series'!H103","v":4.511484606166174},7.7021094933362635,0.1403903122841139,0.14172184349379083,0.06669736077750998,0.09860360964921087]
[1406,null,-0.008378042056557015,-0.009146987382439629,0.010526315789473755,-0.016431271828756276,null,null,{"$f":"'II. Headline series'!E104","v":13.021786581081779},{"$f":"'II. Headline series'!H104","v":4.550281675397431},7.985076433824615,0.1385959078673748,0.13936485319325742,0.06193408858273059,0.09628203616700243]
[1407,null,-0.00760037372605687,-9.489895999659036E-3,-0.0416666666666666,-0.016320024748992138,null,null,{"$f":"'II. Headline series'!E105","v":13.183012964588247},{"$f":"'II. Headline series'!H105","v":5.014046614308393},8.467524195288522,0.13943050337193935,0.14132002564554152,0.06646049089207606,0.10099526670187736]
[1408,null,-0.012382975202370734,-0.014472218464105433,-0.021739130434782573,-0.025852760054923325,null,null,{"$f":"'II. Headline series'!E106","v":12.632794161169068},{"$f":"'II. Headline series'!H106","v":3.1813711175396833},8.647447517852514,0.1387109168140614,0.1408001600757961,0.057666471230320156,0.11232723523344848]
[1409,null,-0.009863658485416016,-0.010355049047091934,-0.011111111111111002,-0.01923814283523127,null,null,{"$f":"'II. Headline series'!E107","v":14.112335157172},{"$f":"'II. Headline series'!H107","v":8.530761399832084},9.26329239256894,0.150987010057136,0.15147840061881193,0.1045457568335521,0.11187106676092068]
[1410,null,0.012890036510093962,0.01571843212409258,0.08988764044943823,0.03326506640738744,null,null,{"$f":"'II. Headline series'!E108","v":14.860652877939506},{"$f":"'II. Headline series'!H108","v":11.377369430201641},9.207592286240613,0.1357164922693011,0.1328880966553025,0.08050862789462897,0.0588108564550187]
[1411,null,0.013185779099599632,0.013077138847672023,-0.10309278350515462,0.029103667334483947,null,null,{"$f":"'II. Headline series'!E109","v":13.368788342110546},{"$f":"'II. Headline series'!H109","v":6.741393538740278},9.042330912927678,0.12050210432150583,0.12061074457343345,0.038310268052918824,0.06131964179479283]
[1412,null,0.0101112191639136,0.007103888702230897,-0.057471264367816084,0.018603815219724977,null,null,{"$f":"'II. Headline series'!E110","v":14.225538584313364},{"$f":"'II. Headline series'!H110","v":9.13505856162289},9.712691246894439,0.13214416667922002,0.13515149714090274,0.07274677039650393,0.07852309724921941]
[1413,null,0.004412538051322725,1.5019395797482699E-3,0.3780487804878047,0.008161041619056637,null,null,{"$f":"'II. Headline series'!E111","v":12.380615728174009},{"$f":"'II. Headline series'!H111","v":4.313829273972237},8.868438738004066,0.11939361923041736,0.12230421770199182,0.03497725112066573,0.08052334576098402]
[1414,null,1.4153705441660744E-3,-2.6270211449622312E-3,-0.07079646017699104,2.460585006639908E-4,null,null,{"$f":"'II. Headline series'!E112","v":11.73456913128494},{"$f":"'II. Headline series'!H112","v":3.810098390583257},6.3576822656722385,0.11593032076868333,0.11997271245781163,0.03785492540516858,0.0633307641560584]
[1415,null,0.014388767512454296,0.013588153503868158,-0.09523809523809539,0.030846614874416232,null,null,{"$f":"'II. Headline series'!E113","v":12.972991028277866},{"$f":"'II. Headline series'!H113","v":7.904780167038423},5.364334411271367,0.11534114277032437,0.1161417567789105,0.04820118679596799,0.022796729238297436]
[1416,null,0.016686566894816162,0.01466902664301496,-0.08421052631578933,0.03334250978410423,null,null,{"$f":"'II. Headline series'!E114","v":11.14400951042515},{"$f":"'II. Headline series'!H114","v":2.5879046039115243},4.895294388563611,0.09475352820943533,0.09677106846123654,-0.007463463744988991,0.01561043410153188]
[1417,null,-0.010548632807756555,-0.017801794679441738,0.03448275862068969,-0.03108112552367739,null,null,{"$f":"'II. Headline series'!E115","v":8.159405581428588},{"$f":"'II. Headline series'!H115","v":-6.318850109090059},5.508177006774465,0.09214268862204245,0.09939585049372762,-0.03210737556722319,0.08616289559142204]
[1418,null,-3.6425385890705756E-3,-0.005310713532633244,0.11111111111111109,-0.008126254005616059,null,null,{"$f":"'II. Headline series'!E116","v":9.522111577009417},{"$f":"'II. Headline series'!H116","v":-0.3859260872912153},6.470006130798807,0.09886365435916473,0.1005318293027274,0.004266993132703906,0.07282631531360413]
[1419,null,0.009612219363895377,0.011038591753741769,-0.04000000000000009,0.02167948272206473,null,null,{"$f":"'II. Headline series'!E117","v":11.292123050511515},{"$f":"'II. Headline series'!H117","v":5.458192633501777},6.230276243802153,0.10330901114121978,0.10188263875137339,0.03290244361295304,0.04062327971595679]
[1420,null,0.014587472233434652,0.015220878294192662,-0.07291666666666663,0.029741303941780668,null,null,{"$f":"'II. Headline series'!E118","v":12.342739678937097},{"$f":"'II. Headline series'!H118","v":8.140424904167785},7.0272486273493815,0.10883992455593632,0.1082065184951783,0.05166294509989719,0.040531182331713156]
[1421,null,0.014071753341691366,0.016500493531503378,0.08988764044943823,0.031617916655831795,null,null,{"$f":"'II. Headline series'!E119","v":12.979212988610024},{"$f":"'II. Headline series'!H119","v":10.130917558921668},9.956648857134132,0.11572037654440889,0.11329163635459688,0.06969125893338488,0.06794857191550951]
[1422,null,2.217700592383525E-3,1.562288133992682E-3,0.11340206185567016,4.056589094504225E-3,null,null,{"$f":"'II. Headline series'!E120","v":11.078818331394213},{"$f":"'II. Headline series'!H120","v":5.548664209702605},11.983159604571053,0.10857048272155861,0.10922589517994945,0.051430053002521826,0.11577500695120631]
[1423,null,1.5532685708627553E-3,0.002356664729743354,-0.027777777777777804,0.005527593337785706,null,null,{"$f":"'II. Headline series'!E121","v":11.727782680901155},{"$f":"'II. Headline series'!H121","v":7.30844651306097},12.562844474194216,0.1157245582381488,0.1149211620792682,0.06755687179282399,0.12010085140415645]
[1424,null,7.387538169026096E-3,0.009530933239065361,0.04761904761904761,0.018859711899496097,null,null,{"$f":"'II. Headline series'!E122","v":13.734425862200457},{"$f":"'II. Headline series'!H122","v":13.56504285505124},12.625486494372883,0.12995672045297846,0.12781332538293919,0.11679071665101631,0.10739515304423275]
[1425,null,0.00872934272856905,0.011475354663050276,-0.0818181818181819,0.021732906121004928,null,null,{"$f":"'II. Headline series'!E123","v":13.806867966438242},{"$f":"'II. Headline series'!H123","v":13.42451033634329},10.819908815829795,0.12933933693581337,0.12659332500133214,0.11251219724242797,0.08646618203729302]
[1426,null,1.0680111470963624E-3,0.00199684294249606,-0.029702970297029733,0.004245610283193609,null,null,{"$f":"'II. Headline series'!E124","v":11.776456313246317},{"$f":"'II. Headline series'!H124","v":9.405500817787827},9.68296618320854,0.11669655198536681,0.1157677201899671,0.08980939789468466,0.0925840515488918]
[1427,null,-1.0270250555446576E-3,-2.0306136983595145E-4,0.02040816326530609,4.2165645923977958E-4,null,null,{"$f":"'II. Headline series'!E125","v":11.207562966849295},{"$f":"'II. Headline series'!H125","v":8.85968273896452},9.059590360901202,0.1131026547240376,0.11227869103832891,0.08817517093040542,0.09017424714977225]
[1428,null,-0.01131412619542981,-0.013185610371422556,0.11000000000000007,-0.022864581112712074,null,null,{"$f":"'II. Headline series'!E126","v":8.414325315952796},{"$f":"'II. Headline series'!H126","v":-1.79219746546754},7.529766494289539,0.09545737935495777,0.09732886353095052,0.004942606458036673,0.09816224605560746]
[1429,null,-0.009247358324757815,-0.010602948594022962,-0.009009009009009068,-0.018940244579679875,null,null,{"$f":"'II. Headline series'!E127","v":8.374826006817647},{"$f":"'II. Headline series'!H127","v":-1.0687494490397829},5.424994277978228,0.09299561839293428,0.09435120866219943,0.008252750089282047,0.07319018735946214]
[1430,null,0.002216653668045027,1.8267612787944223E-3,-0.054545454545454605,0.005007470388861314,null,null,{"$f":"'II. Headline series'!E128","v":9.284134568591258},{"$f":"'II. Headline series'!H128","v":4.834500331460682},3.1809447258162673,0.09062469201786755,0.09101458440711814,0.04333753292574551,0.02680197686930136]
[1431,null,0.004183494024050488,2.6039831089609148E-3,-0.11538461538461536,6.421022822821921E-3,null,null,{"$f":"'II. Headline series'!E129","v":11.012498871607741},{"$f":"'II. Headline series'!H129","v":5.083015681699428},1.8654555862184135,0.10594149469202692,0.1075210056071165,0.04440913399417236,0.012233533039362213]
[1432,null,-0.004751655713074313,-0.007540116892032004,-0.05434782608695652,-0.012094383339643073,null,null,{"$f":"'II. Headline series'!E130","v":10.35938284821249},{"$f":"'II. Headline series'!H130","v":1.3713383890029185},3.431912397136957,0.10834548419519922,0.11113394537415691,0.025807767229672256,0.046413507311012646]
[1433,null,-0.009574623230683794,-0.011492572592839007,0.1379310344827586,-0.019378810624070358,null,null,{"$f":"'II. Headline series'!E131","v":9.221276666561394},{"$f":"'II. Headline series'!H131","v":-3.1372275962839664},4.536655528221208,0.10178738989629774,0.10370533925845295,-0.01199346533876931,0.06474536590628244]
[1434,null,-2.5678675656193866E-3,-1.3891214738241228E-3,0.03030303030303034,-9.4830495952210757E-4,null,null,{"$f":"'II. Headline series'!E132","v":9.112261719619518},{"$f":"'II. Headline series'!H132","v":2.9311631646116787},3.932804548727947,0.09369048476181456,0.0925117386700193,0.030259936605638894,0.04027635044680158]
[1435,null,0.012280683488664814,0.015291469545104701,-0.01960784313725487,0.01553521152399437,null,null,{"$f":"'II. Headline series'!E133","v":10.717993645020446},{"$f":"'II. Headline series'!H133","v":12.3036322523641},3.065970876938297,0.09489925296153964,0.09188846690509976,0.10750111099964663,0.0151244972453886]
[1436,null,0.010952693858668974,0.012692471146005484,-0.06000000000000007,0.010569342266261156,null,null,{"$f":"'II. Headline series'!E134","v":11.308053231651197},{"$f":"'II. Headline series'!H134","v":10.14585930721053},3.013279399760222,0.102127838457843,0.10038806117050648,0.09088925080584415,0.019563451731341067]
[1437,null,0.001970555399747313,2.594852599383243E-3,0.07446808510638313,-0.009135091231275786,null,null,{"$f":"'II. Headline series'!E135","v":11.703689968413565},{"$f":"'II. Headline series'!H135","v":4.763465251766126},5.352689706901076,0.11506634428438833,0.1144420470847524,0.05676974374893705,0.06266198830028655]
[1438,null,-2.6771902001531743E-3,2.3710165068306744E-4,0,-0.013464095560280121,null,null,{"$f":"'II. Headline series'!E136","v":9.777733245207068},{"$f":"'II. Headline series'!H136","v":3.81076980870537},6.046383305828215,0.10045452265222385,0.09754023080138761,0.05157179364733382,0.07392792861856227]
[1439,null,-3.9496590700618525E-3,-0.00367211452619835,-0.08910891089108904,-0.021532540329492176,null,null,{"$f":"'II. Headline series'!E137","v":9.613952417760814},{"$f":"'II. Headline series'!H137","v":6.257409124510947},5.553989512678383,0.10008918324767,0.0998116387038065,0.08410663157460165,0.07707243545627601]
[1440,null,0.016793541197538057,0.014792787221380974,0,0.01561031681336497,null,null,{"$f":"'II. Headline series'!E138","v":13.533665703716675},{"$f":"'II. Headline series'!H138","v":18.60333366283515},6.328929459496755,0.11854311583962868,0.12054386981578577,0.17042301981498653,0.04767897778160257]
[1441,null,9.634037178746906E-3,0.005440546694865995,0,-0.002030782179423656,null,null,{"$f":"'II. Headline series'!E139","v":14.574772314767852},{"$f":"'II. Headline series'!H139","v":13.313572468893467},7.654632485184349,0.1361136859689316,0.14030717645281254,0.13516650686835832,0.07857710703126713]
[1442,null,0.003720647234794995,2.4904849999605526E-3,-0.07608695652173926,0.00680574212101818,null,null,{"$f":"'II. Headline series'!E140","v":15.61674964269832},{"$f":"'II. Headline series'!H140","v":14.312064032023885},9.382835843896501,0.1524468491921882,0.15367701142702264,0.13631489819922069,0.08702261631794683]
[1443,null,8.420532978783115E-3,7.7059793221499456E-3,0.19999999999999996,0.016761661430008713,null,null,{"$f":"'II. Headline series'!E141","v":16.17602858401465},{"$f":"'II. Headline series'!H141","v":19.995764795097553},11.063976442782247,0.15333975286136337,0.15405430651799654,0.18319598652096683,0.09387810299781377]
[1444,null,0.01677973996043134,0.01736349501873432,-0.049019607843137254,0.03514921447102708,null,null,{"$f":"'II. Headline series'!E142","v":13.917219886000987},{"$f":"'II. Headline series'!H142","v":17.139318115477675},10.184862799867341,0.12239245889957853,0.12180870384127554,0.13624396668374966,0.06669941352764633]
[1445,null,0.017442413333257745,0.015275960342604982,0.061855670103092855,0.031389815974786496,null,null,{"$f":"'II. Headline series'!E143","v":15.16505506585372},{"$f":"'II. Headline series'!H143","v":17.527859927130468},10.543708211942144,0.13420813732527945,0.13637459031593221,0.1438887832965182,0.07404726614463494]
[1446,null,0.020413765115388643,0.020731489735128346,-0.019417475728155307,0.04225938119217782,null,null,{"$f":"'II. Headline series'!E144","v":15.183374848605904},{"$f":"'II. Headline series'!H144","v":18.139815373019463},10.347554950964124,{"$f":"(I142/100)-C142","v":0.1314199833706704},{"$f":"(I142/100)-D142","v":0.1311022587509307},{"$f":"(J142/100)-F142","v":0.13913877253801682},{"$f":"(K142/100)-F142","v":0.061216168317463425}]
[1447,null,1.8005234447975374E-3,-0.044544097107474624,0.12871287128712858,3.391942324738953E-3,null,null,{"$f":"'II. Headline series'!E145","v":13.691153499198142},{"$f":"'II. Headline series'!H145","v":11.603009879405915},8.919109058682155,0.13511101154718388,0.18145563209945603,0.1126381564693202,0.0857991482620826]
[1448,null,0.005381217057598684,-0.04019133098857123,-0.026315789473684098,0.011781705997198235,null,null,{"$f":"'II. Headline series'!E146","v":13.460351878965769},{"$f":"'II. Headline series'!H146","v":13.02402265316574},8.261763937741202,0.12922230173205898,0.1747948497782289,0.11845852053445917,0.0708359333802138]
[1449,null,0.005130031029201529,-0.04189626238299021,0,0.008439687191261909,null,null,{"$f":"'II. Headline series'!E147","v":12.808135344746322},{"$f":"'II. Headline series'!H147","v":10.174884149348072},8.177635528151635,0.12295132241826169,0.16997761583045343,0.09330915430221881,0.07333666809025444]
[1450,null,0.005877060887530822,-0.03978658301769738,-0.0720720720720721,0.012536363618035425,null,null,{"$f":"'II. Headline series'!E148","v":12.709105458529203},{"$f":"'II. Headline series'!H148","v":9.249238174276842},7.470449263463598,0.1212139936977612,0.1668776376029894,0.07995601812473299,0.06216812901660056]
[1451,null,-0.003359439979997099,-0.05094692127889606,0.009708737864077733,-0.00847242140201308,null,null,{"$f":"'II. Headline series'!E149","v":14.430287377148586},{"$f":"'II. Headline series'!H149","v":14.525346864076425},7.6190044918958515,0.14766231375148298,0.19524979505038192,0.1537258900427773,0.0846624663209716]
[1452,null,-4.2248617146305656E-3,-0.05253660464287123,0.038461538461538554,-0.011388590329003467,null,null,{"$f":"'II. Headline series'!E150","v":12.328793956646212},{"$f":"'II. Headline series'!H150","v":14.286473321082727},6.223208266785122,0.12751280128109269,0.17582454420933336,0.15425332353983073,0.07362067299685468]
[1453,null,-0.004438312895027398,-0.05556826012348116,0.009259259259259318,-0.016990831225362022,null,null,{"$f":"'II. Headline series'!E151","v":10.692134022184005},{"$f":"'II. Headline series'!H151","v":8.491500515289882},5.762366099350985,0.11135965311686745,0.1624896003453212,0.10190583637826084,0.07461449221887187]
[1454,null,-2.5775530419564186E-3,-0.004144911478130295,-0.018348623853210975,-0.006694820929351723,null,null,{"$f":"'II. Headline series'!E152","v":10.801840269115615},{"$f":"'II. Headline series'!H152","v":8.806240763214642},6.496741988879817,0.11059595573311258,0.11216331416928646,0.09475722856149815,0.0716622408181499]
[1455,null,3.5809708806328407E-3,0.005680069833786557,-0.04672897196261681,0.012326379783943306,null,null,{"$f":"'II. Headline series'!E153","v":13.065280555654594},{"$f":"'II. Headline series'!H153","v":14.112889950099609},7.527724606622742,0.1270718346759131,0.12497273572275937,0.12880251971705278,0.06295086628228411]
[1456,null,0.004551053397602742,0.007672228654024684,-0.03921568627450989,0.0157604457180092,null,null,{"$f":"'II. Headline series'!E154","v":13.843119206482841},{"$f":"'II. Headline series'!H154","v":18.451635312682015},6.1449943141068015,0.13388013866722565,0.13075896341080373,0.16875590740881097,0.04568949742305882]
[1457,null,0.006181885369906233,0.011029723940820078,0,0.02164057554771886,null,null,{"$f":"'II. Headline series'!E155","v":14.13040752674027},{"$f":"'II. Headline series'!H155","v":18.837157016575244},6.141376063665165,0.13512218989749644,0.1302743513265826,0.16673099461803356,0.03977318508893279]
[1458,null,0.007318855500072915,0.013115776134903914,0.14285714285714293,0.02540466466960615,null,null,{"$f":"'II. Headline series'!E156","v":13.38685563076098},{"$f":"'II. Headline series'!H156","v":17.43641529557879},6.36855483274324,0.12654970080753689,0.12075278017270588,0.14895948828618175,0.038280883657826247]
[1459,null,0.008664585502434126,0.013430840051932706,0.062499999999999806,0.02641129785247429,null,null,{"$f":"'II. Headline series'!E157","v":14.157956865269341},{"$f":"'II. Headline series'!H157","v":17.540467344559087},7.67032132136629,0.1329149831502593,0.1281487286007607,0.14899337559311657,0.05029191536118861]
[1460,null,8.9393426050623E-3,0.013695546967478557,0.05042016806722694,0.027290988571737222,null,null,{"$f":"'II. Headline series'!E158","v":15.402119687931807},{"$f":"'II. Headline series'!H158","v":17.25874995759675},8.91175536387909,0.14508185427425577,0.14032564991183952,0.14529651100423024,0.061826565067053675]
[1461,null,3.919622869622213E-3,0.004099471119694222,0.008000000000000052,0.010196971477720137,null,null,{"$f":"'II. Headline series'!E159","v":13.828804591204209},{"$f":"'II. Headline series'!H159","v":12.09846732159444},8.94108842960878,0.13436842304241986,0.13418857479234786,0.11078770173822425,0.07921391281836765]
[1462,null,-2.9734526114914912E-3,-0.006459770453470445,-0.039682539682539805,-0.010211191787585996,null,null,{"$f":"'II. Headline series'!E160","v":11.501286628702664},{"$f":"'II. Headline series'!H160","v":6.839393028286929},7.843318549632594,0.11798631889851813,0.12147263674049708,0.07860512207045528,0.08864437728391193]
[1463,null,-0.005508792735094669,-0.01137566431521078,-0.03305785123966937,-0.019139763216157395,null,null,{"$f":"'II. Headline series'!E161","v":11.349027004237726},{"$f":"'II. Headline series'!H161","v":5.959225206219855},8.297949028282341,0.11899906277747192,0.12486593435758804,0.07873201527835595,0.1021192534989808]
[1464,null,-0.006089390995222503,-0.013244451970392765,-0.1196581196581196,-0.0221817567125851,null,null,{"$f":"'II. Headline series'!E162","v":10.783363457805732},{"$f":"'II. Headline series'!H162","v":6.60404921327752},7.816795797633593,0.11392302557327982,0.12107808654845009,0.0882222488453603,0.10034971468892102]
[1465,null,-3.65923192870066E-3,-0.009562237312079487,0,-0.015238360486170003,null,null,{"$f":"'II. Headline series'!E163","v":10.850701977214214},{"$f":"'II. Headline series'!H163","v":7.436609606611522},7.548064025878334,0.1121662517008428,0.11806925708422163,0.08960445655228522,0.09071900074495334]
[1466,null,-2.3627474177494814E-3,-4.871998437010497E-3,0,-7.0184058376439535E-3,null,null,{"$f":"'II. Headline series'!E164","v":10.647366907185505},{"$f":"'II. Headline series'!H164","v":8.957054733638364},6.742324229362734,0.10883641648960454,0.11134566750886556,0.0965889531740276,0.0744416481312713]
[1467,null,1.1533098380272701E-3,2.6867539129304375E-3,0.029126213592233035,0.00647607416401307,null,null,{"$f":"'II. Headline series'!E165","v":12.516021544696466},{"$f":"'II. Headline series'!H165","v":16.300047042197157},6.61816419037155,0.12400690560893739,0.12247346153403421,0.1565243962579585,0.05970556773970243]
[1468,null,0.006256471989926411,0.01161086580079564,0.05660377358490571,0.022389453713756256,null,null,{"$f":"'II. Headline series'!E166","v":13.44964320628966},{"$f":"'II. Headline series'!H166","v":20.607248118184856},5.947435894756164,0.1282399600729702,0.12288556626210097,0.1836830274680923,0.03708490523380538]
[1469,null,4.820398455925674E-3,0.007556807324430987,0.01785714285714253,0.015246596570899105,null,null,{"$f":"'II. Headline series'!E167","v":14.190045592740573},{"$f":"'II. Headline series'!H167","v":21.907022281724124},6.546948643179016,0.13708005747148005,0.13434364860297474,0.20382362624634215,0.05022288986089106]
[1470,null,1.5342577700789284E-3,1.2978385596502681E-3,0.0614035087719298,0.003968401082177309,null,null,{"$f":"'II. Headline series'!E168","v":11.826365024476818},{"$f":"'II. Headline series'!H168","v":15.484861079385585},6.47314855712322,0.11672939247468925,0.11696581168511791,0.15088020971167854,0.06076308448905488]
[1471,null,-2.4417421683222904E-4,-2.3611272329060423E-3,-0.008264462809917274,-0.002913575009230125,null,null,{"$f":"'II. Headline series'!E169","v":11.073723304046856},{"$f":"'II. Headline series'!H169","v":11.388469689347543},6.800548462093015,0.1109814072573008,0.11309836027337461,0.11679827190270556,0.07091905963016026]
[1472,null,-2.550508947639577E-3,-0.005233176520029219,-0.05000000000000006,-0.008225903274480183,null,null,{"$f":"'II. Headline series'!E170","v":11.744514707354858},{"$f":"'II. Headline series'!H170","v":11.970354600501947},6.801108651209758,0.11999565602118815,0.1226783235935778,0.12792944927949967,0.07623698978657777]
[1473,null,-0.005086209453789089,-0.00881959708953779,-0.07894736842105257,-0.01485855633570463,null,null,{"$f":"'II. Headline series'!E171","v":12.402020956466968},{"$f":"'II. Headline series'!H171","v":13.11724700957636},7.363560707491085,0.12910641901845876,0.13283980665420747,0.14603102643146823,0.08849416341061547]
[1474,null,-0.006065860851572352,-0.012210320460317947,-0.019047619047619015,-0.020829365712086767,null,null,{"$f":"'II. Headline series'!E172","v":10.614448589485706},{"$f":"'II. Headline series'!H172","v":10.293368605445673},6.301556370467746,0.1122103467464294,0.11835480635517501,0.1237630517665435,0.08384492941676423]
[1475,null,-2.5922423160549117E-3,-0.007150987810485501,0.019417475728155307,-0.01140696992605462,null,null,{"$f":"'II. Headline series'!E173","v":10.947897308742622},{"$f":"'II. Headline series'!H173","v":12.33902020706331},6.525898053984081,0.11207121540348113,0.11662996089791171,0.13479717199668773,0.07666595046589543]
[1476,null,-1.0270290202089455E-3,-0.004514944360721654,-0.028571428571428602,-0.006861515380600058,null,null,{"$f":"'II. Headline series'!E174","v":11.662524576007318},{"$f":"'II. Headline series'!H174","v":15.021522793077727},6.539204954944277,0.11765227478028212,0.12114019012079483,0.15707674331137733,0.07225356493004284]
[1477,null,0.003394365407260547,3.1774195694624125E-3,0.01960784313725487,0.007062182753624401,null,null,{"$f":"'II. Headline series'!E175","v":14.12111219379241},{"$f":"'II. Headline series'!H175","v":19.681423989341248},7.064727548594902,0.13781675653066355,0.13803370236846169,0.18975205713978807,0.06358509273232463]
[1478,null,0.00318387818368976,4.6324224400871635E-3,0.05769230769230776,0.009783271188998546,null,null,{"$f":"'II. Headline series'!E176","v":13.09330192372062},{"$f":"'II. Headline series'!H176","v":21.085929337499472},4.923723641797907,0.12774914105351645,0.12630059679711905,0.20107602218599618,0.03945396522898052]
[1479,null,-1.1493726243277395E-3,-0.003220634648833809,-0.018181818181818153,-0.004678965603335341,null,null,{"$f":"'II. Headline series'!E177","v":10.065703470343477},{"$f":"'II. Headline series'!H177","v":16.76441593321093},3.904909322486429,0.10180640732776251,0.10387766935226858,0.17232312493544463,0.043728058828199634]
[1480,null,-3.6227016801128391E-4,-0.004008234936091599,0.01851851851851864,-0.006255041578279785,null,null,{"$f":"'II. Headline series'!E178","v":8.026219414724919},{"$f":"'II. Headline series'!H178","v":6.229403641043746},5.314233507565777,0.08062446431526046,0.08427042908334077,0.06854907798871725,0.05939737665393756]
[1481,null,1.2329766673672222E-3,-1.7740396196007764E-4,0,1.2531163240564072E-3,null,null,{"$f":"'II. Headline series'!E179","v":8.688979835318767},{"$f":"'II. Headline series'!H179","v":4.834620066068611},6.646861322400362,0.08565682168582044,0.08706720231514774,0.047093084336629704,0.06521549689994721]
[1482,null,7.7161209125258033E-4,5.5397380589831361E-4,-0.0818181818181819,0.002626742697682766,null,null,{"$f":"'II. Headline series'!E180","v":9.48494661623721},{"$f":"'II. Headline series'!H180","v":7.04659566244177},6.792123333953581,0.09407785407111952,0.09429549235647378,0.06783921392673493,0.06529449064185305]
[1483,null,5.5477319731630007E-4,-8.5031160054465456E-4,-0.0396039603960397,7.6140147080199541E-5,null,null,{"$f":"'II. Headline series'!E181","v":7.6177592545999016},{"$f":"'II. Headline series'!H181","v":3.828567565569622},5.494405387796706,0.07562281934868272,0.07702790414654366,0.03820953550861602,0.05486791373088686]
[1484,null,-1.7682007926792778E-3,-0.003002878281504828,0.07216494845360821,-3.9044759830686657E-3,null,null,{"$f":"'II. Headline series'!E182","v":5.926648461222987},{"$f":"'II. Headline series'!H182","v":0.04323804249003998},5.507221590347799,0.06103468540490915,0.0622693628937347,0.004336856407969066,0.05897669188654665]
[1485,null,-7.142157062262186E-4,-2.2789204018806865E-3,0.06730769230769228,-2.5567670881899503E-3,null,null,{"$f":"'II. Headline series'!E183","v":7.683344878460804},{"$f":"'II. Headline series'!H183","v":1.1443062140498668},7.873857922627372,0.07754766449083425,0.07911236918648872,0.013999829228688617,0.08129534631446368]
[1486,null,0.004497491643840282,6.2650891672611075E-3,-0.036036036036036126,0.013136885054060358,null,null,{"$f":"'II. Headline series'!E184","v":9.271693643341232},{"$f":"'II. Headline series'!H184","v":3.4651418249124726},9.033507939081034,0.08821944478957204,0.08645184726615121,0.021514533195064366,0.07719819433674999]
[1487,null,0.004202148921120056,0.006398150396717371,-9.345794392523428E-3,0.013599788487260846,null,null,{"$f":"'II. Headline series'!E185","v":10.65250529240914},{"$f":"'II. Headline series'!H185","v":13.428919249350034},7.188833093286701,0.10232290400297134,0.10012690252737402,0.12068940400623951,0.05828854244560616]
[1488,null,2.5669839345835396E-3,0.003261616097987065,0.009433962264151007,7.333636821381509E-3,null,null,{"$f":"'II. Headline series'!E186","v":9.636993940874776},{"$f":"'II. Headline series'!H186","v":15.015322671441266},5.6671101534238195,0.09380295547416422,0.09310832331076069,0.14281958989303117,0.04933746471285669]
[1489,null,2.3547143907802636E-3,1.7084839891917919E-3,0.028037383177570284,0.004271332153572257,null,null,{"$f":"'II. Headline series'!E187","v":9.018999281282431},{"$f":"'II. Headline series'!H187","v":11.9227717938884},5.356227359183021,0.08783527842204404,0.08848150882363251,0.11495638578531174,0.049290941438257956]
[1490,null,1.4905923856344714E-3,2.4454902358182935E-3,-0.036363636363636306,0.005659938805336835,null,null,{"$f":"'II. Headline series'!E188","v":10.298610646532008},{"$f":"'II. Headline series'!H188","v":12.160094666516882},7.287809464313035,0.10149551407968561,0.10054061622950179,0.11594100785983197,0.06721815583779353]
[1491,null,6.3919719029001344E-4,-1.7747369191691846E-3,0.02830188679245286,-0.002013956719025964,null,null,{"$f":"'II. Headline series'!E189","v":9.69403122148408},{"$f":"'II. Headline series'!H189","v":9.3135676745983},7.6495639953071715,0.09630111502455078,0.09871504913400998,0.09514963346500896,0.07850959667209767]
[1492,null,-1.6215079578974965E-4,-0.002498132139665086,0.04587155963302752,-0.00336166561390468,null,null,{"$f":"'II. Headline series'!E190","v":9.050826087953075},{"$f":"'II. Headline series'!H190","v":7.117310527156372},7.54430718608246,0.0906704116753205,0.09300639301919583,0.0745347708854684,0.07880473747472928]
[1493,null,-0.005416591910559549,-0.011237723513346107,-0.02631578947368409,-0.019729643430480663,null,null,{"$f":"'II. Headline series'!E191","v":7.990825300151301},{"$f":"'II. Headline series'!H191","v":2.556369000855154},7.612139296597151,0.08532484491207255,0.09114597651485912,0.045293333439032205,0.09585103639645218]
[1494,null,-2.0125663178620864E-3,-0.006101040869428681,-0.06306306306306302,-0.010023560040186752,null,null,{"$f":"'II. Headline series'!E192","v":4.844973732821711},{"$f":"'II. Headline series'!H192","v":-7.550871937984916},8.059792822551875,0.0504623036460792,0.0545507781976458,-0.06548515933966241,0.09062148826570551]
[1495,null,-6.52934903390517E-4,-3.7462250393011094E-3,0,-0.00532033103969167,null,null,{"$f":"'II. Headline series'!E193","v":7.604922566047057},{"$f":"'II. Headline series'!H193","v":-1.72900368312926},9.10221066815954,0.0767021605638611,0.07979545069977169,-0.011969705791600928,0.09634243772128706]
[1496,null,-0.002228863553409129,-6.5790445135593695E-3,-0.0865384615384616,-0.01049978461364067,null,null,{"$f":"'II. Headline series'!E194","v":7.7935527630987025},{"$f":"'II. Headline series'!H194","v":-1.1109364866630724},9.369830457226707,0.08016439118439617,0.0845145721445464,-6.0958025299005444E-4,0.10419808918590773]
[1497,null,2.5807189013589424E-3,0.0592282536623017,0.03157894736842108,-0.008100930335087147,null,null,{"$f":"'II. Headline series'!E195","v":6.325930455994971},{"$f":"'II. Headline series'!H195","v":-1.049210994189989},7.516262004759306,0.06067858565859077,0.004031050897648013,-2.3911796068127426E-3,0.0832635503826802]
[1498,null,0.002901095746401124,0.06211505282202501,0.06122448979591842,-0.004586426820583652,null,null,{"$f":"'II. Headline series'!E196","v":4.44466206750843},{"$f":"'II. Headline series'!H196","v":-1.3876096743975137},5.5943554586573105,0.04154552492868318,-0.017668432146940707,-0.009289669923391485,0.060529981407156756]
[1499,null,3.6931683979205226E-3,0.062478370717245005,0.009615384615384519,-0.004586426820583652,null,null,{"$f":"'II. Headline series'!E197","v":3.917841888812121},{"$f":"'II. Headline series'!H197","v":-0.25788055296090057},5.00817913739403,0.03548525049020069,-0.023299951829123797,0.002007621290974646,0.05466821819452395]
[1500,null,0.008651359091701939,0.07002950218006881,-0.009523809523809428,0.009204781970625159,null,null,{"$f":"'II. Headline series'!E198","v":5.407294049817945},{"$f":"'II. Headline series'!H198","v":1.3379485533524973},6.162044909786606,0.04542158140647751,-0.015956561681889365,0.004174703562899814,0.0524156671272409]
[1501,null,0.004833384515196071,0.06508244770736529,-0.03846153846153855,-2.3786320098706385E-3,null,null,{"$f":"'II. Headline series'!E199","v":8.655705240570734},{"$f":"'II. Headline series'!H199","v":11.10425198642238},5.163892061098894,0.08172366789051126,0.021474604698342045,0.11342115187409443,0.054017552620859575]
[1502,null,0.006492686641454053,0.0664463926796215,0,0.002267869447855314,null,null,{"$f":"'II. Headline series'!E200","v":5.226744126090395},{"$f":"'II. Headline series'!H200","v":-0.4207599986280875},4.81085566495141,0.045774754619449895,-0.014178951418717556,-6.475469434136189E-3,0.045840687201658785]
[1503,null,0.010313932141005904,0.0719460114014278,0.010000000000000064,0.014499685251099676,null,null,{"$f":"'II. Headline series'!E201","v":6.65664791488531},{"$f":"'II. Headline series'!H201","v":6.36815578002649},4.775053873637284,0.0562525470078472,-0.00537953225257469,0.049181872549165236,0.033250853485273166]
[1504,null,0.006759803377558142,0.008559760424939635,-0.04950495049504949,0.01586022946878674,null,null,{"$f":"'II. Headline series'!E202","v":6.157519849217892},{"$f":"'II. Headline series'!H202","v":2.887900884932035},5.184621686442182,0.05481539511462078,0.05301543806723928,0.01301877938053361,0.03598598739563508]
[1505,null,0.011088040041932128,0.01430984852207064,0.09375000000000008,0.028808151112360594,null,null,{"$f":"'II. Headline series'!E203","v":9.010397650509148},{"$f":"'II. Headline series'!H203","v":6.718813051968275},7.317073124689624,0.07901593646315935,0.07579412798302085,0.03837997940732216,0.044362580134535645]
[1506,null,0.011511553863849097,0.014714970300604206,0.09523809523809505,0.028367352629096877,null,null,{"$f":"'II. Headline series'!E204","v":10.958489380192576},{"$f":"'II. Headline series'!H204","v":8.730733102799688},8.455046938690497,0.09807333993807667,0.09486992350132156,0.05893997839889999,0.05618311675780809]
[1507,null,0.011729073053743938,0.01600440220017859,0,0.02797775937444441,null,null,{"$f":"'II. Headline series'!E205","v":11.23841004768118},{"$f":"'II. Headline series'!H205","v":11.72842745990438},6.885548373832701,0.10065502742306787,0.0963796982766332,0.08930651522459938,0.040877724363882595]
[1508,null,0.011827024939681954,0.015812338584330458,0.05217391304347845,0.03608442249876931,null,null,{"$f":"'II. Headline series'!E206","v":9.4369269648888},{"$f":"'II. Headline series'!H206","v":9.69751891821429},7.367058410579369,0.08254224470920604,0.07855693106455754,0.06089076668337358,0.03758616160702438]
[1509,null,0.008437481363678282,0.011725001360004785,-0.003085589382846011,0.023721683845293506,null,null,{"$f":"'II. Headline series'!E207","v":9.499934784168982},{"$f":"'II. Headline series'!H207","v":15.473758210413251},6.529098568957707,0.08656186647801153,0.08327434648168502,0.13101589825883903,0.04156930184428356]
[1510,null,0.006355195460888198,0.007733340318061602,7.272847217432786E-3,0.011141992671579603,null,null,{"$f":"'II. Headline series'!E208","v":7.086114986204955},{"$f":"'II. Headline series'!H208","v":4.862560557642401},6.032842241068822,{"$f":"(I206/100)-C206","v":0.06450595440116136},{"$f":"(I206/100)-D206","v":0.06312780954398796},{"$f":"(J206/100)-F206","v":0.03748361290484441},{"$f":"(K206/100)-F206","v":0.049186429739108625}]
[1511,null,0.005702638738220862,0.00642047015939601,0.00724169137522478,0.012163416943720128,null,null,{"$f":"'II. Headline series'!E209","v":7.756974200534649},{"$f":"'II. Headline series'!H209","v":7.218341786714425},6.569864005587277,0.07186710326712561,0.07114927184595048,0.06002000092342412,0.05353522311215264]
[1512,null,0.003162887658303713,2.2021565278700266E-3,7.210829425669486E-3,0.005727138494616406,null,null,{"$f":"'II. Headline series'!E210","v":7.349469532070398},{"$f":"'II. Headline series'!H210","v":9.348088063296107},4.958491877153578,0.07033180766240028,0.07129253879283397,0.08775374213834465,0.043857780276919375]
[1513,null,3.4208121849689877E-3,3.2019639289829365E-3,0.007180257022097724,0.007180827679973484,null,null,{"$f":"'II. Headline series'!E211","v":5.58530148306239},{"$f":"'II. Headline series'!H211","v":7.317338428286299},4.205402997265248,0.052432202645654916,0.05265105090164097,0.06599255660288951,0.034873202292679]
[1514,null,0.005145899642377176,0.004940826866774943,7.149969904983673E-3,0.007150532211582889,null,null,{"$f":"'II. Headline series'!E212","v":4.855189937659557},{"$f":"'II. Headline series'!H212","v":7.793971905324808},3.9327390128336464,0.043405999734218395,0.043611072509820624,0.07078918684166519,0.03217685791675357]
[1515,null,7.930307168908966E-3,0.00903332209280792,0.00711996389975241,7.1205180207879375E-3,null,null,{"$f":"'II. Headline series'!E213","v":7.533043770684135},{"$f":"'II. Headline series'!H213","v":7.617053575711564},3.916193289810715,0.06740013053793238,0.06629711561403343,0.06905001773632771,0.03204141487731921]
[1516,null,0.006387644953308518,6.3039702136149876E-3,0.007090234914653535,0.007090781011710755,null,null,{"$f":"'II. Headline series'!E214","v":8.943761355293525},{"$f":"'II. Headline series'!H214","v":7.226428022571288},4.5575056845885,0.08304996859962674,0.08313364333932026,0.06517349921400212,0.03848427583417424]
[1517,null,2.7054196826183327E-3,0.002187575571522719,0.007060778938698609,0.00582674926812436,null,null,{"$f":"'II. Headline series'!E215","v":7.363113256458566},{"$f":"'II. Headline series'!H215","v":8.683719588837906},4.519476968450728,0.07092571288196732,0.07144355699306294,0.08101044662025471,0.03936802041638292]
[1518,null,1.2498556617813864E-3,-5.0529463218435882E-5,0.007031592039660124,0.004564486508818764,null,null,{"$f":"'II. Headline series'!E216","v":6.223210454839958},{"$f":"'II. Headline series'!H216","v":5.4028981798365185},2.779562217083258,0.06098224888661819,0.062282634011618015,0.04946449528954642,0.023231135662013815]
[1519,null,0.001303458902560854,3.4574735427062714E-4,0.007002670362129214,0.003303940292269929,null,null,{"$f":"'II. Headline series'!E217","v":5.700328593497132},{"$f":"'II. Headline series'!H217","v":1.2531064526889264},2.978129885294402,0.05569982703241047,0.056657538580700696,0.009227124234619336,0.02647735856067409]
[1520,null,1.5535882140495067E-3,2.5448439462937385E-4,-0.001667965183007043,2.0450585820200083E-3,null,null,{"$f":"'II. Headline series'!E218","v":7.665164071372996},{"$f":"'II. Headline series'!H218","v":5.561522673449038},4.119202817533282,0.07509805249968045,0.07639715631910059,0.05357016815247037,0.03914696959331281]
[1521,null,0.003995138732837196,0.003239034200601993,-1.6858694101555098E-3,7.8778973277727246E-4,null,null,{"$f":"'II. Headline series'!E219","v":7.108354342630707},{"$f":"'II. Headline series'!H219","v":5.141012620174621},3.1088291200487013,0.06708840469346988,0.06784450922570508,0.05062233646896894,0.03030050146770974]
[1522,null,3.4431400225021537E-3,2.7081379312412788E-3,-1.7038596160894245E-3,-4.6791752324605964E-4,null,null,{"$f":"'II. Headline series'!E220","v":6.705494168267128},{"$f":"'II. Headline series'!H220","v":6.3251025089786435},3.12359910595944,0.06361180166016914,0.06434680375143001,0.06371894261303249,0.03170390858284046]
[1523,null,5.9394540030211092E-4,-1.526819249096385E-3,-1.7219370570959094E-3,-1.7221140897675554E-3,null,null,{"$f":"'II. Headline series'!E221","v":7.051805511869832},{"$f":"'II. Headline series'!H221","v":6.565826192074953},4.142524036658765,0.0699241097183962,0.07204487436779469,0.06738037601051708,0.04314735445635521]
[1524,null,-1.440829162870504E-3,-0.003246606094526379,-1.7401030060005423E-3,-1.7402826184151642E-3,null,null,{"$f":"'II. Headline series'!E222","v":6.6181007922986925},{"$f":"'II. Headline series'!H222","v":5.166274553861046},4.132214452225674,0.06762183708585742,0.0694276140175133,0.05340302815702563,0.043062427140671905]
[1525,null,6.6759339956874567E-4,-1.4128072437897852E-4,-0.001758358752503202,-0.001758540979103327,null,null,{"$f":"'II. Headline series'!E223","v":6.194889328286921},{"$f":"'II. Headline series'!H223","v":10.151896858279574},4.916252685722979,0.061281299883300465,0.06209017400724819,0.10327750956189907,0.05092106783633312]
[1526,null,3.8814974663237073E-3,0.003884480453368236,-1.7767056035212577E-3,-1.7768904794511393E-3,null,null,{"$f":"'II. Headline series'!E224","v":6.252692602786107},{"$f":"'II. Headline series'!H224","v":11.4919237660795},4.348688895924408,0.058645428561537365,0.05864244557449284,0.11669612814024613,0.045263779438695216]
[1527,null,9.1056445194828814E-4,3.95356320337282E-6,-1.795144883540305E-3,-6.9643134576018487E-4,null,null,{"$f":"'II. Headline series'!E225","v":3.268949982501802},{"$f":"'II. Headline series'!H225","v":8.108509658970187},3.093800437271516,0.03177893537306973,0.03268554626181464,0.08178152793546205,0.031634435718475344]
[1528,null,-3.2138041012754154E-3,-0.004818117886060936,-1.813677934972648E-3,3.8395023609687332E-4,null,null,{"$f":"'II. Headline series'!E226","v":4.317097910029958},{"$f":"'II. Headline series'!H226","v":8.901336113239934},3.512785109682189,0.046384783201574985,0.04798909698636051,0.08862941089630247,0.03474390086072502]
[1529,null,-2.956445638230294E-3,-0.005141059495512989,-1.8323061185241117E-3,1.4642854198987647E-3,null,null,{"$f":"'II. Headline series'!E227","v":4.64833944584898},{"$f":"'II. Headline series'!H227","v":9.08746429131858},4.149311927629386,0.049439840096720096,0.05162445395400279,0.08941035749328705,0.040028833856395094]
[1530,null,4.7293042349875276E-4,-9.838310230102798E-6,0.005841276878740771,2.544605349398548E-3,null,null,{"$f":"'II. Headline series'!E228","v":4.522818099347925},{"$f":"'II. Headline series'!H228","v":9.61118282825736},4.034494960569796,0.04475525056998049,0.04523801930370935,0.09356722293317507,0.037800344256299405]
[1531,null,0.010586372388023265,0.011292369936972283,5.822568066998865E-3,3.624941163717007E-3,null,null,{"$f":"'II. Headline series'!E229","v":7.228377682282444},{"$f":"'II. Headline series'!H229","v":10.832430231637332},4.689774486630498,0.06169740443480118,0.06099140688585216,0.10469936115265631,0.04327280370258797]
[1532,null,0.011492032385754983,0.013811796950072286,5.8039875341100375E-3,0.004705324002733805,null,null,{"$f":"'II. Headline series'!E230","v":10.686005459354861},{"$f":"'II. Headline series'!H230","v":10.651414031536692},5.621645704651676,0.09536802220779363,0.09304825764347632,0.10180881631263311,0.05151113304378296]
[1533,null,0.007546412489054333,0.009078091472817606,0.005785533902977227,0.005785785012478776,null,null,{"$f":"'II. Headline series'!E231","v":10.695603258617073},{"$f":"'II. Headline series'!H231","v":12.830417281769959},5.997815156559864,0.0994096200971164,0.09787794111335313,0.12251838780522083,0.05419236655311986]
[1534,null,0.010839928881900442,0.012455766482416756,0.00576720581668891,0.005767454251624302,null,null,{"$f":"'II. Headline series'!E232","v":12.791861743573971},{"$f":"'II. Headline series'!H232","v":13.455878877307532},6.181515609316406,0.11707868855383927,0.11546285095332295,0.128791334521451,0.05604770184153976]
[1535,null,0.005734666607629569,5.8889655155756945E-3,0.005749001938144932,0.005749247737413415,null,null,{"$f":"'II. Headline series'!E233","v":11.767179167841165},{"$f":"'II. Headline series'!H233","v":11.939280529973114},6.9619552367153945,0.11193712507078209,0.11178282616283597,0.11364355756231773,0.06387030462974053]
[1536,null,0.002895402347580993,1.369853543319367E-3,0.005730920949690684,5.7311641514760136E-3,null,null,{"$f":"'II. Headline series'!E234","v":7.727375039833019},{"$f":"'II. Headline series'!H234","v":9.262389973779495},6.11272738186952,0.0743783480507492,0.07590389685501082,0.08689273558631894,0.05539610966721918]
[1537,null,0.004753767611325893,0.004265786835804318,0.00571296155275945,0.004655001136344551,null,null,{"$f":"'II. Headline series'!E235","v":5.604954195674121},{"$f":"'II. Headline series'!H235","v":7.01327339815419},5.6232980188521555,0.05129577434541532,0.05178375512093689,0.06547773284519735,0.051577979052177]
[1538,null,2.4074697887820533E-3,2.665192214592015E-3,0.00569512246752266,3.578943953718662E-3,null,null,{"$f":"'II. Headline series'!E236","v":6.6009380904949575},{"$f":"'II. Headline series'!H236","v":8.492090670767118},5.3178576366608095,0.06360191111616753,0.06334418869035756,0.08134196275395252,0.049599632412889436]
[1539,null,0.002893105574590026,1.3551123214808926E-3,0.00567740243254823,0.002502962307129817,null,null,{"$f":"'II. Headline series'!E237","v":5.746081272089315},{"$f":"'II. Headline series'!H237","v":5.874508098848836},4.396524299780269,0.05456770714630312,0.05610570039941226,0.05624211868135855,0.04146228069067288]
[1540,null,1.7433969941926055E-3,1.4401667083643307E-4,-1.74760720294301E-3,1.4270259110160416E-3,null,null,{"$f":"'II. Headline series'!E238","v":5.779225764941872},{"$f":"'II. Headline series'!H238","v":6.809989169020775},4.202464418258645,0.056048860655226115,0.05764824097858229,0.06667286577919171,0.04059761827157041]
[1541,null,1.2419712399227882E-3,-3.1915950825378705E-4,-1.7651944616923067E-3,3.5110448561127616E-4,null,null,{"$f":"'II. Headline series'!E239","v":5.122361087471714},{"$f":"'II. Headline series'!H239","v":6.074849629970914},3.4213034062757504,0.04998163963479435,0.05154277038297093,0.06039739181409786,0.033861929577146226]
[1542,null,0.004242429831304019,0.00360968370920433,-1.7828695879769899E-3,-7.2483224816304373E-4,null,null,{"$f":"'II. Headline series'!E240","v":4.896989630539748},{"$f":"'II. Headline series'!H240","v":4.593572111499934},2.975249267351971,0.04472746647409346,0.04536021259619315,0.046660553363162376,0.030477324921682755]
[1543,null,0.00941542657769512,0.0116033763306809,-1.8006338231057425E-3,-1.8008145738063707E-3,null,null,{"$f":"'II. Headline series'!E241","v":7.19289428823277},{"$f":"'II. Headline series'!H241","v":4.4058805058901624},2.4517405293323824,0.06251351630463259,0.06032556655164681,0.045859619632707994,0.026318219867130194]
[1544,null,4.779205753937958E-3,3.2776748900743787E-3,-1.8184884250739075E-3,-0.001818671726148209,null,null,{"$f":"'II. Headline series'!E242","v":9.97596783722379},{"$f":"'II. Headline series'!H242","v":8.08085635576781},3.0415811889832836,0.09498047261829994,0.09648200348216351,0.08262723528382632,0.032234483615981045]
[1545,null,3.6698903257451147E-4,-2.5019203270945046E-3,-0.001836434668897579,-1.8366205550775386E-3,null,null,{"$f":"'II. Headline series'!E243","v":7.943095863291522},{"$f":"'II. Headline series'!H243","v":6.417834043214602},2.7035328150664104,0.0790639696003407,0.08193287896000973,0.06601496098722355,0.028871948705741644]
[1546,null,9.0286290429302863E-4,-0.000490698221260468,-1.8544738469550579E-3,-1.8546623536709703E-3,null,null,{"$f":"'II. Headline series'!E244","v":5.731509392561491},{"$f":"'II. Headline series'!H244","v":6.886517145518337},2.5405585342866424,0.05641223102132188,0.057805792146875375,0.07071983380885435,0.027260247696537395]
[1547,null,7.723222584338199E-4,-1.1601038984553214E-3,-0.00187260726933588,-5.9074715068045854E-4,null,null,{"$f":"'II. Headline series'!E245","v":5.548970829692313},{"$f":"'II. Headline series'!H245","v":5.715104744270109},3.110924463490522,0.05471738603848931,0.05664981219537845,0.057741794593381544,0.031699991785585684]
[1548,null,1.1468308098373109E-3,5.1729303485702086E-4,-1.8908362641976142E-3,6.7145611480836178E-4,null,null,{"$f":"'II. Headline series'!E246","v":5.069161067150249},{"$f":"'II. Headline series'!H246","v":4.246157692066521},2.9011638921388214,0.04954477986166518,0.05017431763664547,0.04179012080585684,0.028340182806579853]
[1549,null,0.004704452345461335,0.005283325678116553,-1.9091621781310109E-3,1.9320004874483284E-3,null,null,{"$f":"'II. Headline series'!E247","v":6.364906370050321},{"$f":"'II. Headline series'!H247","v":5.370009307006479},2.2003633619511276,0.058944611355041865,0.05836573802238665,0.051768092582616464,0.02007163313206295]
[1550,null,2.9198178308080733E-3,-8.8827286192488756E-5,0.007046772597827839,3.190938610085551E-3,null,null,{"$f":"'II. Headline series'!E248","v":7.6739587529405275},{"$f":"'II. Headline series'!H248","v":6.687581177991085},1.948913754361922,0.07381976969859722,0.07682841481559777,0.0636848731698253,0.016298198933533667]
[1551,null,1.0381611436100116E-3,4.3718674923799619E-4,0.007016934433347836,4.4483227379338375E-3,null,null,{"$f":"'II. Headline series'!E249","v":5.26527814714786},{"$f":"'II. Headline series'!H249","v":4.87810622903194},0.1584398038279698,0.051614620327868586,0.0522155947222406,0.044332739552385564,-2.8639246996541396E-3]
[1552,null,5.9386203066338157E-4,-6.5288519863478751E-4,0.006987375939582187,5.7042047525103345E-3,null,null,{"$f":"'II. Headline series'!E250","v":3.9427160950303013},{"$f":"'II. Headline series'!H250","v":4.144257632510245},0.5318735345644532,0.03883329891963963,0.0400800461489378,0.03573837157259211,-3.854694068658026E-4]
[1553,null,-1.391824225337363E-3,-9.6804145720664494E-4,0.006958093011505502,0.006958636175342222,null,null,{"$f":"'II. Headline series'!E251","v":4.910629820326207},{"$f":"'II. Headline series'!H251","v":6.102159345192829},0.7611645892418112,0.05049812242859943,0.05007433966046872,0.05406295727658607,6.5300971707588952E-4]
[1554,null,0.001247278164422409,9.9579483334907718E-4,0.006929081625602122,0.006929616899402353,null,null,{"$f":"'II. Headline series'!E252","v":6.221059512115894},{"$f":"'II. Headline series'!H252","v":3.4184212262794023},0.4638314571134966,0.06096331695673653,0.06121480028780986,0.027254595363391667,-2.2913023282673875E-3]
[1555,null,0.004127263918993784,-1.9755848418093812E-4,6.9003378378378645E-3,0.006900865376687273,null,null,{"$f":"'II. Headline series'!E253","v":8.383305295220138},{"$f":"'II. Headline series'!H253","v":6.855821200005885},0.5801343260028312,0.07970578903320759,0.08403061143638231,0.06165734662337158,-1.0995221166589615E-3]
[1556,null,-6.0866770481412249E-5,-0.004844685930690989,0.006871857781692197,0.006872377736855388,null,null,{"$f":"'II. Headline series'!E254","v":8.621323365932025},{"$f":"'II. Headline series'!H254","v":8.891078007789854},1.3324352305574618,0.08627410042980166,0.09105791959001124,0.08203840234104315,0.006451974568719231]
[1557,null,7.3908567528951376E-4,-6.8415358807548345E-4,0.00684363766624877,5.7988540180349294E-3,null,null,{"$f":"'II. Headline series'!E255","v":7.51062204560921},{"$f":"'II. Headline series'!H255","v":8.825054664957465},2.4926511029186513,0.07436713478080259,0.0757903740441676,0.08245169263153972,0.019127657011151582]
[1558,null,0.006296298820658603,4.9671075102076315E-3,0.00681567377434227,0.004728117590084518,null,null,{"$f":"'II. Headline series'!E256","v":8.89685657692713},{"$f":"'II. Headline series'!H256","v":7.669230564867037},3.1248173244449697,0.0826722669486127,0.08400145825906366,0.07196418805858586,0.02652005565436518]
[1559,null,0.004680265679225605,3.059926636476089E-3,0.006787962460758988,0.003660127943856283,null,null,{"$f":"'II. Headline series'!E257","v":9.772557950467482},{"$f":"'II. Headline series'!H257","v":6.95311884570669},2.2441859922256584,0.0930453138254492,0.09466565286819872,0.06587106051321062,0.0187817319784003]
[1560,null,0.010561507607671692,5.974282092532519E-3,-5.5657302023770462E-4,2.5948450811380673E-3,null,null,{"$f":"'II. Headline series'!E258","v":9.897550978665247},{"$f":"'II. Headline series'!H258","v":5.687660690768631},2.2993835675805268,0.08841400217898078,0.09300122769411995,0.054281761826548244,0.0203989905946672]
[1561,null,7.830090224694183E-3,0.004847504706448583,-5.6607337005076309E-4,1.5322295036290928E-3,null,null,{"$f":"'II. Headline series'!E259","v":11.318243413973383},{"$f":"'II. Headline series'!H259","v":9.429922395036856},2.419325089006867,0.10535234391503964,0.10833492943328524,0.09276699444673947,0.022661021386439578]
[1562,null,0.004048144883887646,4.7345524078181754E-3,-5.7558968575977367E-4,4.7224220217588649E-4,null,null,{"$f":"'II. Headline series'!E260","v":8.907767132467146},{"$f":"'II. Headline series'!H260","v":7.566826201715982},2.7959002896789817,0.08502952644078382,0.0843431189168533,0.07519601981498394,0.02748676069461393]
[1563,null,8.135505259621147E-3,0.006533824767471845,-5.8512225733531255E-4,-0.000585155353739265,null,null,{"$f":"'II. Headline series'!E261","v":6.857275551185323},{"$f":"'II. Headline series'!H261","v":4.298243932982365},2.9264048815203303,0.06043725025223208,0.06203893074438138,0.043567594683562916,0.029849204168942566]
[1564,null,0.007915979459430279,7.488898165958326E-3,-5.9467137631405518E-4,-5.947050590180854E-4,null,null,{"$f":"'II. Headline series'!E262","v":7.9929927679025985},{"$f":"'II. Headline series'!H262","v":3.995854442025756},2.7085464992831403,0.07201394821959571,0.07244102951306766,0.040553249479275646,0.02768017005184949]
[1565,null,0.005455456702934875,4.6032682022196375E-3,-6.0423733583017431E-4,-0.000604271608093079,null,null,{"$f":"'II. Headline series'!E263","v":8.053091204496644},{"$f":"'II. Headline series'!H263","v":5.398346341058649},2.5657486722494616,0.07507545534203157,0.0759276438427468,0.05458773501867957,0.026261758330587696]
[1566,null,0.005549150154888231,4.718387439050834E-3,-6.1382043064707134E-4,-6.1385529579174446E-4,null,null,{"$f":"'II. Headline series'!E264","v":8.145490174668648},{"$f":"'II. Headline series'!H264","v":6.2014550825621955},3.0369634408564816,0.07590575159179826,0.07673651430763566,0.0626284061214137,0.030983489704356562]
[1567,null,1.1990613304330498E-3,0.002343181607817888,-6.2342095718944768E-4,2.69400724253419E-4,null,null,{"$f":"'II. Headline series'!E265","v":7.394015201577765},{"$f":"'II. Headline series'!H265","v":5.7163666410946945},2.5634241956762795,0.07274109068534461,0.07159697040795976,0.05689426568669353,0.025364841232509375]
[1568,null,2.6672548115197316E-3,3.5322208706600904E-3,-6.3303921357571826E-4,1.1515326826471114E-3,null,null,{"$f":"'II. Headline series'!E266","v":5.110804538311685},{"$f":"'II. Headline series'!H266","v":2.6910413656316714},1.9963579396377664,0.048440790571597114,0.04757582451245676,0.0257588809736696,0.018812046713730553]
[1569,null,0.002435155959662382,0.003560280978707582,-6.4267549965043159E-4,0.002032559676374645,null,null,{"$f":"'II. Headline series'!E267","v":5.78646358193665},{"$f":"'II. Headline series'!H267","v":2.558668797147273},1.5464844807216667,0.05542947985970412,0.054304354840658924,0.023554128295098085,0.013432285130842022]
[1570,null,3.3197569836527626E-3,0.003932216740015047,0.005597669882980831,2.912500668902307E-3,null,null,{"$f":"'II. Headline series'!E268","v":6.240071147657533},{"$f":"'II. Headline series'!H268","v":5.494928119301095},1.2262558515117077,0.05908095449292256,0.05846849473656028,0.05203678052410864,0.00935005784621477,2]
[1571,null,2.5922898336702146E-4,0.000698502697689086,0.005580252332441792,3.7913744929366547E-3,null,null,{"$f":"'II. Headline series'!E269","v":5.000061530835603},{"$f":"'II. Headline series'!H269","v":5.575400260213574},0.8021495737638149,0.049741386324989006,0.04930211261066694,0.051962628109199084,0.004230121244701493,2]
[1572,null,2.6384830221524574E-3,1.4986407078334183E-3,0.005562951620262559,4.669199853142696E-3,null,null,{"$f":"'II. Headline series'!E270","v":6.323631042771609},{"$f":"'II. Headline series'!H270","v":4.64425322033964},0.33195350814135205,0.06059782740556363,0.06173766971988267,0.041773332350253704,-1.3496647717291753E-3,2]
[1573,null,0.007111385006412852,0.006212883925406713,0.005545766517046564,0.005545995328821944,null,null,{"$f":"'II. Headline series'!E271","v":6.753740090977673},{"$f":"'II. Headline series'!H271","v":3.5260697515863013},0.5033770036722832,0.06042601590336387,0.06132451698437001,0.02971470218704107,-5.1222529209911209E-4,2]
[1574,null,0.003425882531039655,2.5671790262245886E-3,0.005528695811050992,5.528922233694558E-3,null,null,{"$f":"'II. Headline series'!E272","v":8.35902914662447},{"$f":"'II. Headline series'!H272","v":4.9669638755521675},1.3563474779346136,{"$f":"(I270/100)-C270","v":0.08016440893520504},{"$f":"(I270/100)-D270","v":0.08102311244002011},{"$f":"(J270/100)-F270","v":0.04414071652182712},{"$f":"(K270/100)-F270","v":0.00803455254565158},2]
[1575,null,0.005949208454525173,2.9447512665633784E-3,0.005511738307866564,5.5119623754257465E-3,null,null,{"$f":"'II. Headline series'!E273","v":8.830060472599891},{"$f":"'II. Headline series'!H273","v":5.451578967363102},2.429401880361024,0.08235139627147374,0.08535585345943554,0.04900382729820527,0.018782056428184493,2]
[1576,null,0.003942854019394527,1.3094392346262029E-4,0.005494892830104304,5.495114576013589E-3,null,null,{"$f":"'II. Headline series'!E274","v":8.367514003644425},{"$f":"'II. Headline series'!H274","v":4.823679870904984},2.9898519028518096,0.07973228601704972,0.08354419611298163,0.04274168413303625,0.024403404452504506,2]
[1577,null,2.8907879012130959E-4,-9.6921219220945387E-4,5.4781582170891335E-3,4.9620265554224585E-3,null,null,{"$f":"'II. Headline series'!E275","v":9.046130843817947},{"$f":"'II. Headline series'!H275","v":3.93712833076703},3.3829642275523293,0.09017222964805816,0.09143052063038892,0.03440925675224784,0.028867615720100832,2]
[1578,null,2.5140326838507983E-3,4.1011231995916872E-4,0.005461533324560107,0.004430907895436152,null,null,{"$f":"'II. Headline series'!E276","v":9.925838412226705},{"$f":"'II. Headline series'!H276","v":5.254882883477017},4.1980148963941435,0.09674435143841625,0.09884827180230787,0.048117920939334015,0.03754924106850528,2]
[1579,null,9.578422757018603E-4,2.4803875280558574E-3,5.44501702437746E-3,0.003901744120872475,null,null,{"$f":"'II. Headline series'!E277","v":8.076787943664653},{"$f":"'II. Headline series'!H277","v":3.635477722421055},4.948757964568605,0.07981003716094467,0.07828749190859068,0.03245303310333807,0.04558583552481357,2]
[1580,null,1.78542614622591E-3,1.70947087453687E-3,1.8141503729086485E-3,3.374520915563721E-3,null,null,{"$f":"'II. Headline series'!E278","v":7.520194208363384},{"$f":"'II. Headline series'!H278","v":3.9176593480817914},4.966476463838498,0.07341651593740793,0.07349247120909698,0.035802072565254195,0.04629024372282126,2]
[1581,null,3.3672240381146736E-3,1.69198929803001E-3,0.001810865191146842,2.8492241200351294E-3,null,null,{"$f":"'II. Headline series'!E279","v":7.394912816534399},{"$f":"'II. Headline series'!H279","v":2.468247691896239},4.53940446484294,0.07058190412722931,0.07225713886731398,0.02183325279892726,0.04254482052839427,2]
[1582,null,-0.000532417665220668,1.6740859527578085E-3,1.8075918859208288E-3,2.3258397292255845E-3,null,null,{"$f":"'II. Headline series'!E280","v":7.706652957252032},{"$f":"'II. Headline series'!H280","v":5.550951310420953},4.3519750591836255,0.07759894723774098,0.07539244361976251,0.05318367337498395,0.04119391086261067,2]
[1583,null,1.204316379722967E-3,0.004074634135301501,1.8043303929430245E-3,1.8043538902495647E-3,null,null,{"$f":"'II. Headline series'!E281","v":5.810395727069659},{"$f":"'II. Headline series'!H281","v":6.577817170854904},4.316999962758504,0.05689964089097363,0.054029323135395095,0.06397381781829947,0.04136564573733548,2]
[1584,null,0.004004499297831843,0.004732927444578397,1.8010806483889947E-3,1.8011040189605167E-3,null,null,{"$f":"'II. Headline series'!E282","v":5.398870655792028},{"$f":"'II. Headline series'!H282","v":5.889943071614842},4.003523745915641,0.04998420726008844,0.049255779113341884,0.0570983266971879,0.03823413344019589,2]
[1585,null,5.2866650396909175E-3,3.6572675556180967E-3,1.7978425888932894E-3,1.7978658336395704E-3,null,null,{"$f":"'II. Headline series'!E283","v":6.546642149813911},{"$f":"'II. Headline series'!H283","v":4.31298447488981},3.3843614841762597,0.06017975645844819,0.06180915394252101,0.041331978915258534,0.03204574900812303,2]
[1586,null,3.8741220522309624E-3,2.3038327526802684E-3,1.7946161515453255E-3,1.7946392713679945E-3,null,null,{"$f":"'II. Headline series'!E284","v":5.507819828841641},{"$f":"'II. Headline series'!H284","v":5.1121385476764205},3.1220216334980058,0.05120407623618545,0.05277436553573614,0.04932674620539621,0.02942557706361206,2]
[1587,null,9.4869968960920677E-4,-1.1587733750629594E-4,1.791401273885312E-3,1.1029561113302495E-3,null,null,{"$f":"'II. Headline series'!E285","v":3.792991695971616},{"$f":"'II. Headline series'!H285","v":6.126867668393699},3.2544517938150856,0.036981217270106954,0.038045794297222456,0.06016572057260674,0.031441561826820605,2]
[1588,null,1.1280640403567388E-3,-4.869254549197589E-4,1.7881978939002202E-3,0.000407950463614046,null,null,{"$f":"'II. Headline series'!E286","v":2.35736623549046},{"$f":"'II. Headline series'!H286","v":6.876500047729967},3.5161795910334144,0.022445598314547857,0.024060587809824355,0.06835705001368562,0.0347538454467201,2]
[1589,null,5.049253096338106E-3,8.3315638897499115E-4,1.7850059500197954E-3,-2.9041018091339793E-4,null,null,{"$f":"'II. Headline series'!E287","v":3.230327952966545},{"$f":"'II. Headline series'!H287","v":3.9933215909291206},2.9698399015788364,0.027254026433327347,0.03147012314069046,0.040223626090204606,0.02998880919670176,2]
[1590,null,7.7503814358653705E-3,2.801168637954789E-3,-0.00303745172732119,-9.9215880694919641E-4,null,null,{"$f":"'II. Headline series'!E288","v":5.947345744821945},{"$f":"'II. Headline series'!H288","v":2.54559652262833},2.3988079532756683,0.051723076012354076,0.05667228881026466,0.026448124033232497,0.024980238339705876,2]
[1591,null,1.7717002981123746E-3,7.4471019114266831E-4,-0.003063958885624431,-0.001697328884115029,null,null,{"$f":"'II. Headline series'!E289","v":6.7212628539323385},{"$f":"'II. Headline series'!H289","v":1.5986850180284284},2.056899783391229,0.06544092824121102,0.06646791834818072,0.017684179064399314,0.022266326718027318,2]
[1592,null,-1.7053938632036284E-4,3.657825373308661E-4,-3.0906819227988183E-3,-2.4059543765483525E-3,null,null,{"$f":"'II. Headline series'!E290","v":4.613049725285982},{"$f":"'II. Headline series'!H290","v":4.85244202715888},1.8511587735007953,0.04630103663918018,0.04576471471552895,0.050930374648137156,0.020917542111556307,2]
[1593,null,-2.4477169349731092E-6,-6.5460638613092841E-4,-3.1176242307052637E-3,-3.1180697527314707E-3,null,null,{"$f":"'II. Headline series'!E291","v":5.661233298028309},{"$f":"'II. Headline series'!H291","v":5.477684825240599},1.2828321316041833,0.056614780697218064,0.05726693936641402,0.05789491800513746,0.015946391068773304,2]
[1594,null,1.508273066589234E-4,1.6934925564429694E-3,-0.003144789266275516,-3.1452418372178966E-3,null,null,{"$f":"'II. Headline series'!E292","v":7.03502022971304},{"$f":"'II. Headline series'!H292","v":5.268338262497407},0.715203631685824,0.07019937499047148,0.06865670974068744,0.055828624462191966,0.010297278154076137,2]
[1595,null,0.004623047002219433,4.02624764585698E-3,-3.172180553133043E-3,-3.1726403097628365E-3,null,null,{"$f":"'II. Headline series'!E293","v":8.593367803666093},{"$f":"'II. Headline series'!H293","v":3.0971997323235505},0.5876424746840183,0.08131063103444149,0.08190743039080395,0.03414463763299834,0.00904906505660302,2]
[1596,null,0.00695725428552961,0.005625705184039811,-3.1998016832620315E-3,-3.2002687657897047E-3,null,null,{"$f":"'II. Headline series'!E294","v":8.443311335976617},{"$f":"'II. Headline series'!H294","v":4.068788336470208},1.335526119419897,0.07747585907423656,0.07880740817572636,0.04388815213049178,0.016555529959988675,2]
[1597,null,1.5961428728615854E-3,1.4122721968546452E-3,-3.2276563187261737E-3,-1.8187104920071827E-3,null,null,{"$f":"'II. Headline series'!E295","v":8.407699773052103},{"$f":"'II. Headline series'!H295","v":5.547564894761522},2.257533113655987,0.08248085485765945,0.08266472553366638,0.05729435943962241,0.02439404162856705,2]
[1598,null,0.003211366527425823,3.0307912889735632E-4,-3.255748193439008E-3,-7.7615565602118348E-6,null,null,{"$f":"'II. Headline series'!E296","v":8.069148368677642},{"$f":"'II. Headline series'!H296","v":8.086816012430393},3.4892853079026467,0.0774801171593506,0.08038840455787906,0.08087592168086415,0.03490061463558668,2]
[1599,null,0.004321151523031543,6.9979061606498087E-4,-3.2840811149868992E-3,2.2199786212668557E-3,null,null,{"$f":"'II. Headline series'!E297","v":8.534872037344558},{"$f":"'II. Headline series'!H297","v":6.1772790548608345},4.496887470904826,0.08102756885041404,0.0846489297573806,0.05955281192734149,0.04274889608778141,2]
[1600,null,0.009725923447177381,5.1521698196009E-3,0.00655328368577239,0.004429891413552738,null,null,{"$f":"'II. Headline series'!E298","v":8.997887630802296},{"$f":"'II. Headline series'!H298","v":5.671438996691401},5.427680401440496,0.08025295286084559,0.08482670648842207,0.052284498553361265,0.049846912600852215,2]
[1601,null,0.009412879606856796,0.002487790548471304,0.009531853281853282,0.006622537999931889,null,null,{"$f":"'II. Headline series'!E299","v":10.05162033772985},{"$f":"'II. Headline series'!H299","v":6.376883038566909},6.148916777125978,0.0911033237704417,0.0980284128288272,0.0571462923857372,0.054866629771327884,2]
[1602,null,0.004216644656691647,1.9619803250061235E-3,0.012422000691656429,8.798461130329201E-3,null,null,{"$f":"'II. Headline series'!E300","v":9.102551681041962},{"$f":"'II. Headline series'!H300","v":9.130805246171628},6.106647994315728,0.08680887215372797,0.0890635364854135,0.08250959133138708,0.05226801881282808,2]
[1603,null,-2.3724434294262778E-4,-0.001969892680436932,0.012269587862739144,0.010958186033122708,null,null,{"$f":"'II. Headline series'!E301","v":7.89770087226411},{"$f":"'II. Headline series'!H301","v":10.144383812995432},5.59361220772501,0.07921425306558373,0.08094690140307803,0.09048565209683161,0.04497793604412739,2]
[1604,null,8.9615829321534641E-4,2.7998588278314591E-4,0.012120869785927883,0.011692800892185473,null,null,{"$f":"'II. Headline series'!E302","v":7.239462914645109},{"$f":"'II. Headline series'!H302","v":8.745679522688155},5.198241542584354,0.07149847085323574,0.07211464326366794,0.07576399433469608,0.040289614533658064,2]
[1605,null,3.0566334309502035E-3,0.003991543996560351,0.011975713719342185,0.011982590742627364,null,null,{"$f":"'II. Headline series'!E303","v":6.926372641457135},{"$f":"'II. Headline series'!H303","v":5.32656344006095},4.496672418470635,0.06620709298362114,0.065272182418011,0.04128304365798213,0.03298413344207899,2]
[1606,null,0.007187310734586884,0.006377729985485472,0.011833993204567643,0.011840628800819163,null,null,{"$f":"'II. Headline series'!E304","v":7.115043587998323},{"$f":"'II. Headline series'!H304","v":4.616285616006873},3.8397027814620173,0.06396312514539634,0.06477270589449775,0.03432222735924956,0.026556399013801007,2]
[1607,null,0.006496940743240089,5.4411403521726544E-3,0.011695587699211746,0.011701993040032882,null,null,{"$f":"'II. Headline series'!E305","v":6.682249029991056},{"$f":"'II. Headline series'!H305","v":6.20771747966426},3.2152366008749107,0.06032554955667048,0.06138134994773791,0.05037518175660972,0.020450372968716227,2]
[1608,null,4.412166126702183E-3,6.2749124671893025E-3,0.01156038223494652,0.011566567853064442,null,null,{"$f":"'II. Headline series'!E306","v":6.33456919955025},{"$f":"'II. Headline series'!H306","v":5.500778546530162},2.800299741594195,0.05893352586880031,0.057070779528313194,0.04344121761223718,0.016436429562877507,2]
[1609,null,0.004575805254197008,0.005041772120624782,0.011428267098999027,0.011188341057355708,null,null,{"$f":"'II. Headline series'!E307","v":6.266830872795753},{"$f":"'II. Headline series'!H307","v":4.247911443940148},3.171884638212602,0.05809250347376053,0.05762653660733275,0.03129077338204577,0.020530505324770312,2]
[1610,null,3.9054260769388316E-3,6.2585060475046864E-3,0.011299137537235177,0.010818044369197019,null,null,{"$f":"'II. Headline series'!E308","v":6.8691159913997835},{"$f":"'II. Headline series'!H308","v":3.3324023217612506},3.586181591387645,0.064785733837059,0.06243265386649315,0.022505978848415487,0.025043771544679433,2]
[1611,null,0.005151489046106532,0.006593341999240568,0.011172893477148792,0.010455429772215594,null,null,{"$f":"'II. Headline series'!E309","v":6.747913069905174},{"$f":"'II. Headline series'!H309","v":4.560607800822},3.5720975769919656,0.0623276416529452,0.060885788699811164,0.03515064823600441,0.025265545997704066,2]
[1612,null,0.005996374360240093,4.173583839011113E-3,9.32812614938105E-3,0.010100259533860187,null,null,{"$f":"'II. Headline series'!E310","v":7.55313868881454},{"$f":"'II. Headline series'!H310","v":7.287868788421791},3.711631181818763,0.06953501252790531,0.07135780304913428,0.06277842835035773,0.027016052284327442,2]
[1613,null,9.6431413202357813E-4,0.003264707138937489,0.009241916387456821,0.00975230567547366,null,null,{"$f":"'II. Headline series'!E311","v":7.2398952775976415},{"$f":"'II. Headline series'!H311","v":6.469515824361769},4.136158673634518,0.07143463864395283,0.06913424563703892,0.05494285256814404,0.03160928106087152,2]
[1614,null,2.5192920792970167E-5,9.296577386624105E-4,0.009157285520341753,0.009411349474939799,null,null,{"$f":"'II. Headline series'!E312","v":6.862136977120451},{"$f":"'II. Headline series'!H312","v":5.0464981587391},4.7954919953163495,0.06859617685041153,0.0676917120325421,0.041053632112451194,0.038543570478223696,2]
[1615,null,0.000723527762271383,-1.7493616307251436E-4,0.0090741905664587,9.077180999582558E-3,null,null,{"$f":"'II. Headline series'!E313","v":6.527056955118155},{"$f":"'II. Headline series'!H313","v":5.921720336164671},5.225402629775173,0.06454704178891016,0.06544550571425406,0.05014002236206415,0.043176845298169175,2]
[1616,null,5.2025375097464015E-4,0.000606304257367844,0.00899259009029333,0.008995500541445862,null,null,{"$f":"'II. Headline series'!E314","v":7.046884844597865},{"$f":"'II. Headline series'!H314","v":7.017760450667477},4.85902885751827,0.069948594695004,0.0698625441886108,0.0611821039652289,0.03959478803373684,2]
[1617,null,0.006567719570822185,2.8958518324838796E-3,0.008912444133498142,0.00891527742995434,null,null,{"$f":"'II. Headline series'!E315","v":6.652286457003533},{"$f":"'II. Headline series'!H315","v":6.988470916871891},4.576060854717722,0.05995514499921314,0.06362701273755145,0.06096943173876456,0.03684533111722288,2]
[1618,null,0.007638453589307808,3.2783554834825515E-3,0.008833714149648111,0.008836472994841516,null,null,{"$f":"'II. Headline series'!E316","v":4.983626217477501},{"$f":"'II. Headline series'!H316","v":6.563279295678176},4.609562235708362,0.042197808585467206,0.046557906691292464,0.05679631996194025,0.0372591493622421,2]
[1619,null,0.002072541622182661,1.8715429016893075E-3,0.008756362942424165,9.169832147527316E-3,null,null,{"$f":"'II. Headline series'!E317","v":2.527464185755314},{"$f":"'II. Headline series'!H317","v":3.265895868957681},4.45916032769797,0.02320210023537048,0.023403098955863833,0.02348912654204949,0.035421771129452384,2]
[1620,null,6.5802500015958167E-4,-1.1181236302436667E-3,0.008680354607016187,0.009496467379747523,null,null,{"$f":"'II. Headline series'!E318","v":2.564716576448912},{"$f":"'II. Headline series'!H318","v":3.043249018301531},4.03229274344453,0.02498914076432954,0.026765289394732786,0.020936022803267784,0.030826460054697778,2]
[1621,null,1.2045373901936082E-3,-1.0593902449592535E-3,0.008605654474551982,0.009816580921319911,null,null,{"$f":"'II. Headline series'!E319","v":3.935071033017382},{"$f":"'II. Headline series'!H319","v":3.295766283268288},3.486657512698657,0.03814617293998021,0.04041010057513307,0.02314108191136297,0.02504999420566666,2]
[1622,null,0.003118974033035693,1.2542053698372825E-3,0.011407704635259289,0.010130366940922812,null,null,{"$f":"'II. Headline series'!E320","v":4.274128548130659},{"$f":"'II. Headline series'!H320","v":2.665268935630697},3.017380449477913,0.0396223114482709,0.041487080111469316,0.016522322415384157,0.02004343755385632,2]
[1623,null,1.5291802374854109E-3,-1.3123571238031378E-3,0.0112790367158348,0.010438011945313805,null,null,{"$f":"'II. Headline series'!E321","v":3.0081140203993044},{"$f":"'II. Headline series'!H321","v":2.8629034377498637},3.133283648518183,0.028551959966507633,0.03139349732779618,0.01819102243218483,0.02089482453986803,2]
[1624,null,-0.005620055472407498,-0.005782875049171858,0.011153238924504831,0.01073969515496971,null,null,{"$f":"'II. Headline series'!E322","v":3.795024537660331},{"$f":"'II. Headline series'!H322","v":2.637238089132896},2.9824634163502073,0.04357030084901081,0.04373312042577517,0.01563268573635925,0.019084939008532364,2]
[1625,null,-0.006118127198367185,-0.009915191550995217,0.011030216286868424,0.011035588857762438,null,null,{"$f":"'II. Headline series'!E323","v":6.397941364015522},{"$f":"'II. Headline series'!H323","v":1.268200869028846},2.6639671999963253,0.0700975408385224,0.07389460519115043,1.6464198325260217E-3,0.015604083142200813,2]
[1626,null,-0.008768031355241337,-0.009206884110975902,0.010909877973161116,0.010915076517032758,null,null,{"$f":"'II. Headline series'!E324","v":8.699172226898318},{"$f":"'II. Headline series'!H324","v":2.4383766598500785},2.71809670232592,0.09575975362422451,0.09619860637995908,0.013468690081468027,0.01626589050622644,2]
[1627,null,-0.006589567213763016,-0.006472888640923147,0.010792137074607518,0.010797169028074807,null,null,{"$f":"'II. Headline series'!E325","v":8.283145785880569},{"$f":"'II. Headline series'!H325","v":1.9455330551063545},2.8346232015720667,0.0894210250725687,0.08930434649972883,0.008658161522988738,0.017549062987645858,2]
[1628,null,-5.8160499057371895E-3,-2.9650099140925263E-3,0.01067691039410108,0.010681782800704894,null,null,{"$f":"'II. Headline series'!E326","v":6.453349466139123},{"$f":"'II. Headline series'!H326","v":2.306654688354349},2.8020308031216827,0.07034954456712841,0.06749850457548376,0.012384764082838598,0.017338525230511936,2]
[1629,null,-5.2173634063696088E-4,-2.7792912569494669E-4,0.010564118250151524,0.010778806474047062,null,null,{"$f":"'II. Headline series'!E327","v":6.823956805937251},{"$f":"'II. Headline series'!H327","v":4.550265226264874},2.9268192577443735,0.06876130440000947,0.06851749718506746,0.03472384578860168,0.01848938610339667,2]
[1630,null,1.199732275192741E-3,1.9906629720839253E-3,0.010453684293129154,0.01087366094373258,null,null,{"$f":"'II. Headline series'!E328","v":8.43505367286861},{"$f":"'II. Headline series'!H328","v":4.229602612260784},3.012010921038366,0.08315080445349336,0.08235987375660217,0.03142236517887526,0.019246448266651082,2]
[1631,null,0.004469749583948336,0.005384524724367845,0.010345535332915445,0.010966418171875153,null,null,{"$f":"'II. Headline series'!E329","v":7.66767839146449},{"$f":"'II. Headline series'!H329","v":3.5326305504730047},3.5104818726495,0.07220703433069656,0.07129225919027705,0.024359887332854893,0.024138400554619847,2]
[1632,null,5.8931463244811923E-4,3.3804714461218716E-3,0.011709382000263602,0.01105714697149853,null,null,{"$f":"'II. Headline series'!E330","v":7.5298247167248675},{"$f":"'II. Headline series'!H330","v":5.543193439128544},4.125225122220593,0.07470893253480056,0.0719177757211268,0.044374787419786905,0.0301951042507074,2]
[1633,null,7.5156747590926385E-3,6.081088487087832E-3,0.011573859260959737,0.01114591317697323,null,null,{"$f":"'II. Headline series'!E331","v":7.501702043383304},{"$f":"'II. Headline series'!H331","v":7.217989402998256},4.322860083340478,0.0675013456747404,0.06893593194674522,0.06103398085300934,0.032082687656431554,2]
[1634,null,0.007711450781349591,0.006377641212189819,0.011441437671605532,0.011232779803499644,null,null,{"$f":"'II. Headline series'!E332","v":8.244053162588601},{"$f":"'II. Headline series'!H332","v":7.366363301765754},4.467259583287026,0.07472908084453642,0.07606289041369618,0.06243085321415791,0.033439816029370614,2]
[1635,null,0.0088854222566592,0.005850822531536225,0.011312011991464734,0.011317807196450386,null,null,{"$f":"'II. Headline series'!E333","v":9.39631743386927},{"$f":"'II. Headline series'!H333","v":7.1573670864915675},4.780199561415082,0.0850777520820335,0.08811235180715647,0.06025586366846529,0.03648418841770043,2]
[1636,null,3.8885604978691293E-3,3.1870004288307484E-3,0.011185481688474401,0.011191084482299048,null,null,{"$f":"'II. Headline series'!E334","v":9.961275813512717},{"$f":"'II. Headline series'!H334","v":5.081808503452706},4.977740220241008,0.09572419763725803,0.09642575770629642,0.03962700055222801,0.038586317720111035,2]
[1637,null,6.550673518719909E-3,0.00425241696262108,0.011061750678814057,0.011067169487109103,null,null,{"$f":"'II. Headline series'!E335","v":10.036341545955745},{"$f":"'II. Headline series'!H335","v":3.611651268464399},4.972421846371549,0.09381274194083754,0.09611099849693637,0.025049343197534886,0.03865704897660638,2]
[1638,null,2.7873983668130417E-3,0.003525767082251941,0.010940727083570651,0.010945969875713052,null,null,{"$f":"'II. Headline series'!E336","v":9.332853918305497},{"$f":"'II. Headline series'!H336","v":4.920157099840054},4.879568392809623,{"$f":"(I334/100)-C334","v":0.09054114081624193},{"$f":"(I334/100)-D334","v":0.08980277210080304},{"$f":"(J334/100)-F334","v":0.03825560112268749},{"$f":"(K334/100)-F334","v":0.03784971405238318},2]
[1639,null,0.00569704926395656,0.005116612156159955,0.010822323001204226,0.007741192105785507,null,null,{"$f":"'II. Headline series'!E337","v":9.512416448850459},{"$f":"'II. Headline series'!H337","v":4.228497107416996},4.850452876053272,0.08942711522454803,0.09000755233234464,0.03454377896838445,0.04076333665474722,2]
[1640,null,0.004627058485088514,7.8408875232903756E-4,0.01070645429463011,0.004536621908100831,null,null,{"$f":"'II. Headline series'!E338","v":9.020074202878801},{"$f":"'II. Headline series'!H338","v":3.2204671275324026},4.8072450697758216,0.0855736835436995,0.08941665327645898,0.027668049367223193,0.04353582878965739,2]
[1641,null,3.0191396049135096E-3,-0.001419823231683959,0.010593040391833192,1.3314529026811136E-3,null,null,{"$f":"'II. Headline series'!E339","v":8.908380310581828},{"$f":"'II. Headline series'!H339","v":3.928634767525476},4.592856565343355,0.08606466350090476,0.09050362633750224,0.03795489477257365,0.044597112750752434,2]
[1642,null,-3.298338359148043E-3,-0.002864605853316591,-0.011121432398028085,-1.875122194945998E-3,null,null,{"$f":"'II. Headline series'!E340","v":9.498032843888128},{"$f":"'II. Headline series'!H340","v":4.78446326992472},4.169342885249646,0.09827866679802932,0.09784493429219787,0.04971975489419319,0.043568551047442464,2]
[1643,null,-0.0038344221562948,-0.003207367168690859,-0.011246509695318336,-0.005083912795138479,null,null,{"$f":"'II. Headline series'!E341","v":8.729838427451588},{"$f":"'II. Headline series'!H341","v":4.815901612160445},3.60992980414239,0.09113280643081068,0.09050575144320673,0.05324292891674293,0.04118321083656238,2]
[1644,null,-0.007532083035288606,-0.007114819807071689,-0.011374432359123965,-8.295731663575303E-3,null,null,{"$f":"'II. Headline series'!E342","v":7.389920595298504},{"$f":"'II. Headline series'!H342","v":4.9962270369390405},3.165723043227605,0.08143128898827363,0.08101402576005673,0.0582580020329657,0.03995296209585135,2]
[1645,null,-6.96960669666265E-3,-0.009637128689362428,-0.011505298599819132,-0.01151139616341912,null,null,{"$f":"'II. Headline series'!E343","v":7.083390381449381},{"$f":"'II. Headline series'!H343","v":2.4716579898917836},2.662220351563717,0.07780351051115646,0.08047103250385623,0.03622797606233696,0.03813359967905629,2]
[1646,null,-8.171218051295448E-3,-7.594322656839003E-3,-0.011639211200143138,-0.011645524301115474,null,null,{"$f":"'II. Headline series'!E344","v":5.973418421649394},{"$f":"'II. Headline series'!H344","v":1.1885916290182206},2.106779182024197,0.06790540226778939,0.06732850687333294,0.023531440591297678,0.032713316121357444,2]
[1647,null,-0.008664568219808095,-0.005482463951076142,-0.011776277784427646,-0.011782816703808206,null,null,{"$f":"'II. Headline series'!E345","v":6.0471419833088},{"$f":"'II. Headline series'!H345","v":1.1115276998067332},1.894258444264383,0.06913598805289609,0.06595388378416414,0.022898093701875538,0.030725401146452037,2]
[1648,null,-2.2946401527544577E-3,-3.2442490720961372E-4,-0.01191661110707354,-0.011923386746387864,null,null,{"$f":"'II. Headline series'!E346","v":6.692829485801547},{"$f":"'II. Headline series'!H346","v":1.226786134487819},2.3992835572473012,0.06922293501076994,0.0672527197652251,0.024191248091266056,0.03591622231886088,2]
[1649,null,0.004278476430280348,-3.8044983892401011E-4,-0.012060329361902553,-0.009100718353102515,null,null,{"$f":"'II. Headline series'!E347","v":5.944774462753618},{"$f":"'II. Headline series'!H347","v":-0.023738488608346615},3.419462417967867,0.05516926819725584,0.0598281944664602,0.00886333346701905,0.04329534253278119]
[1650,null,0.006746397948824728,-7.7877244334348644E-4,-0.012207556514167451,-0.006268571114053397,null,null,{"$f":"'II. Headline series'!E348","v":7.342949480298395},{"$f":"'II. Headline series'!H348","v":0.8051643382415475},4.346746378763251,0.06668309685415921,0.07420826724632743,0.01432021449646887,0.04973603490168591]
[1651,null,0.00936800799949686,2.747111494478829E-3,-0.012358422657181591,-0.003426337731759001,null,null,{"$f":"'II. Headline series'!E349","v":9.643856806527664},{"$f":"'II. Headline series'!H349","v":3.2189390944255316},5.2631560230544405,0.08707056006577978,0.0936914565707978,0.03561572867601432,0.056057897962303406]
[1652,null,0.013641434050382898,5.9390851007447435E-3,0.008253380153178311,-5.7339858781908066E-4,null,null,{"$f":"'II. Headline series'!E350","v":11.125701322459303},{"$f":"'II. Headline series'!H350","v":5.828806008119012},5.894854653336411,0.09761557917421013,0.10531792812384828,0.0588614586690092,0.059521945121183195]
[1653,null,0.012838664169242888,6.3070395142297815E-3,0.008185819473200696,0.002290879155167461,null,null,{"$f":"'II. Headline series'!E351","v":11.839852868976072},{"$f":"'II. Headline series'!H351","v":5.242235476157822},6.218836902053417,0.10555986452051784,0.11209148917553094,0.05013147560641076,0.059897489865366714]
[1654,null,0.012342163324597175,0.006311896064447468,0.00811935589163312,0.005167142494318421,null,null,{"$f":"'II. Headline series'!E352","v":12.32026782751089},{"$f":"'II. Headline series'!H352","v":6.945875805172387},6.261413683384155,0.11086051495051172,0.11689078221066142,0.06429161555740545,0.05744699433952313]
[1655,null,0.005730138212341383,1.4721904801351954E-3,0.008053962900505902,0.008056053573561263,null,null,{"$f":"'II. Headline series'!E353","v":10.938515612381064},{"$f":"'II. Headline series'!H353","v":5.028151139156043},5.4032525243659535,0.10365501791146925,0.10791296564367545,0.04222545781799917,0.04597647167009827]
[1656,null,-1.9494467681474218E-3,1.1117123572645944E-3,0.00798961483900324,0.007991655785584745,null,null,{"$f":"'II. Headline series'!E354","v":10.43646482321807},{"$f":"'II. Headline series'!H354","v":3.601577853694724},4.079988231282005,0.10631409500032814,0.10325293587491612,0.0280241227513625,0.03280822652723531]
[1657,null,-0.001653454030537414,2.5142761558251173E-3,0.00792628685988927,0.007928279644675643,null,null,{"$f":"'II. Headline series'!E355","v":8.579221861047966},{"$f":"'II. Headline series'!H355","v":2.731284579931549},3.325480843566644,0.08744567264101707,0.08327794245465454,0.01938456615463985,0.025326528790990795]
[1658,null,-6.3342259268316049E-4,2.6584367861887423E-3,0.007863954897518309,0.007865901024122733,null,null,{"$f":"'II. Headline series'!E356","v":5.516704935832977},{"$f":"'II. Headline series'!H356","v":-0.1181632408177863},2.686455880556024,0.05580047195101293,0.05250861257214103,-0.009047533432300596,0.018998657781437507]
[1659,null,-0.002137985269002187,0.002458397478132688,0.007802595637342674,6.280181062797624E-3,null,null,{"$f":"'II. Headline series'!E357","v":4.415654055240146},{"$f":"'II. Headline series'!H357","v":-1.0499363892250404},2.4141157753521196,0.04629452582140364,0.04169814307426877,-0.016779544955048027,0.017860976690723573]
[1660,null,0.004208337514872663,3.3251378212510014E-3,0.007742186486836986,0.004702324119732637,null,null,{"$f":"'II. Headline series'!E358","v":5.407477490917507},{"$f":"'II. Headline series'!H358","v":1.4229909250813897},2.7202246219086823,0.0498664373943024,0.050749637087924064,0.009527585131081259,0.022499922099354187]
[1661,null,4.699605615919057E-3,0.004190802493279156,0.00768270554776275,3.132176319328247E-3,null,null,{"$f":"'II. Headline series'!E359","v":5.331571756178489},{"$f":"'II. Headline series'!H359","v":2.0664312933841322},3.141856506561189,0.048616111945865834,0.049124915068505734,0.017532136614513073,0.028286388746283645]
[1662,null,0.006201259613756393,0.004675173244759337,-0.003046076828769863,1.569587148775077E-3,null,null,{"$f":"'II. Headline series'!E360","v":6.089519702897335},{"$f":"'II. Headline series'!H360","v":2.340882290069956},4.044196700237971,0.054693937415216956,0.056220023784214014,0.021839235751924486,0.03887237985360463]
[1663,null,0.013918214611799233,0.00580266425425748,-3.0553837624516665E-3,1.4409349827126975E-5,null,null,{"$f":"'II. Headline series'!E361","v":6.817744825617877},{"$f":"'II. Headline series'!H361","v":5.090252406467476},5.326848368454371,0.05425923364437954,0.06237478400192129,0.05088811471484764,0.053254074334716586]
[1664,null,0.011019029619379363,0.00489794011154226,-0.00306474774294146,-1.5335011852856668E-3,null,null,{"$f":"'II. Headline series'!E362","v":7.743323722246997},{"$f":"'II. Headline series'!H362","v":5.646783581342437},6.070836150463857,0.0664142076030906,0.0725352971109277,0.058001336998710046,0.06224186268992424]
[1665,null,0.006541951536918958,3.5304618669948174E-3,-3.074169296353881E-3,-0.003074285513997274,null,null,{"$f":"'II. Headline series'!E363","v":9.288950184608908},{"$f":"'II. Headline series'!H363","v":5.567086591591789},6.481529155555015,0.08634755030917012,0.08935903997909425,0.058745151429915154,0.06788957706954743]
[1666,null,4.940877106238457E-3,1.5357267922841242E-3,-3.0836489552929763E-3,-0.003083766251426257,null,null,{"$f":"'II. Headline series'!E364","v":10.19116632872443},{"$f":"'II. Headline series'!H364","v":7.8321224976881565},6.860553955510186,0.09697078618100584,0.10037593649496017,0.08140499122830783,0.07168930580652812]
[1667,null,-2.1728195109070554E-4,8.7473737760646226E-4,-3.093187258952571E-3,-3.093305646961668E-3,null,null,{"$f":"'II. Headline series'!E365","v":9.029420254444606},{"$f":"'II. Headline series'!H365","v":5.638210847298838},6.824196748690112,0.09051148449553677,0.0894194651668396,0.059475414119950054,0.07133527313386279]
[1668,null,1.3493536043395937E-3,2.0246849487786656E-3,-3.1027847532184988E-3,-0.003102904246697754,null,null,{"$f":"'II. Headline series'!E366","v":8.666080290146116},{"$f":"'II. Headline series'!H366","v":3.841218641865236},6.51823563860849,0.08531144929712157,0.0846361179526825,0.04151509066535012,0.06828526063278265]
[1669,null,7.0218536296941182E-4,0.002163927327345604,-0.003112441990772745,-1.7017319340689352E-3,null,null,{"$f":"'II. Headline series'!E367","v":8.123282258073504},{"$f":"'II. Headline series'!H367","v":4.895736509178918},6.097300680316754,0.08053063721776563,0.07906889525338943,0.05065909702585812,0.06267473873723647]
[1670,null,-0.002327921373558644,0.001303246515501685,-3.122159531199542E-3,-3.0564023093567421E-4,null,null,{"$f":"'II. Headline series'!E368","v":7.693824146786629},{"$f":"'II. Headline series'!H368","v":4.0184965517774485},5.3090197245355455,0.07926616284142493,0.0756349949523646,0.04049060574871016,0.05339583747629113]
[1671,null,-3.726975506252235E-3,8.1384051088838956E-4,-0.003131937941094064,1.0854647538072444E-3,null,null,{"$f":"'II. Headline series'!E369","v":6.260855793203399},{"$f":"'II. Headline series'!H369","v":2.6362973602620525},4.923653138533519,0.06633553343828621,0.0617947174211456,0.02527750884881328,0.04815106663152794]
[1672,null,-1.8361124239773506E-3,-9.4091152377614117E-4,0.00673403689204785,2.4716752959088595E-3,null,null,{"$f":"'II. Headline series'!E370","v":5.228615942757968},{"$f":"'II. Headline series'!H370","v":3.346815564456191},4.752017252206916,0.05412227185155703,0.05322707095135582,0.03099648034865305,0.045048497226160306]
[1673,null,0.004316451014805608,1.1860851551015173E-3,0.006688992966639849,3.8530821011485738E-3,null,null,{"$f":"'II. Headline series'!E371","v":4.887388853426866},{"$f":"'II. Headline series'!H371","v":1.7726525679032359},4.53468959882023,0.04455743751946305,0.047687803379167136,0.013873443577883785,0.041493813887053727]
[1674,null,0.002728789936461155,0.000721922131936009,6.6445476342478615E-3,0.005229774349291088,null,null,{"$f":"'II. Headline series'!E372","v":4.71871579881669},{"$f":"'II. Headline series'!H372","v":3.74034947193291},4.399303368583897,0.04445836805170574,0.046465235856230885,0.03217372037003801,0.03876325933654789]
[1675,null,4.200825219095242E-3,6.3407422824298711E-5,0.006600689041492805,0.006601839736666269,null,null,{"$f":"'II. Headline series'!E373","v":4.344422935176597},{"$f":"'II. Headline series'!H373","v":4.649024357377319},4.621212589672582,0.03924340413267073,0.043380821928941674,0.03988840383710692,0.03961028616005955]
[1676,null,3.2868869901445685E-3,7.0723735520088562E-4,0.006557405645905255,0.006558533847967777,null,null,{"$f":"'II. Headline series'!E374","v":4.2475853104992884},{"$f":"'II. Headline series'!H374","v":6.144015230106972},4.963359242398383,0.03918896611484832,0.041768615749791994,0.054881618453101945,0.04307505857601605]
[1677,null,0.00538012781935857,3.8466468402278319E-4,6.5146862057980535E-3,0.006515792497221696,null,null,{"$f":"'II. Headline series'!E375","v":4.021600977551993},{"$f":"'II. Headline series'!H375","v":5.593672781301346},5.373851071175841,0.034835881956161364,0.039831345091497154,0.04942093531579177,0.04722271821453672]
[1678,null,5.24450273739258E-3,1.9038962538922947E-3,0.006472519770532212,0.006473604715055185,null,null,{"$f":"'II. Headline series'!E376","v":4.67654786570514},{"$f":"'II. Headline series'!H376","v":5.795147541757232},5.363837805803652,0.041520975919658816,0.0448615824031591,0.05147787070251714,0.047164773342981345]
[1679,null,0.00809780980582614,4.7018503126230295E-3,0.006430895671158409,0.005835223178315521,null,null,{"$f":"'II. Headline series'!E377","v":5.955661475811854},{"$f":"'II. Headline series'!H377","v":5.75293565657976},5.243382770138667,0.0514588049522924,0.05485476444549551,0.05169413338748208,0.04659860452307115]
[1680,null,5.6478992847680196E-3,0.004901381357738837,6.389803511417283E-3,5.20237700787565E-3,null,null,{"$f":"'II. Headline series'!E378","v":5.338347289227903},{"$f":"'II. Headline series'!H378","v":5.322912100345545},5.151430905772761,0.04773557360751101,0.048482091534540195,0.048026743995579796,0.046311932049851956]
[1681,null,3.2608058673557344E-3,0.004879759743120051,0.006349233159082281,0.004574988389928522,null,null,{"$f":"'II. Headline series'!E379","v":4.756284344888315},{"$f":"'II. Headline series'!H379","v":3.841182062607764},5.274120798574559,0.04430203758152742,0.042683083705763104,0.03383683223614912,0.04816621959581707]
[1682,null,0.00284662666063741,0.002621421254051655,2.1320182843151485E-3,3.9529810575586995E-3,null,null,{"$f":"'II. Headline series'!E380","v":5.2126478930443225},{"$f":"'II. Headline series'!H380","v":3.085300428161944},5.224565682509372,0.049279852269805816,0.04950505767639157,0.02690002322406074,0.048292675767535015]
[1683,null,2.9033550136623796E-3,2.8170629459942195E-3,2.1274824528261637E-3,3.3362802506488355E-3,null,null,{"$f":"'II. Headline series'!E381","v":6.079206698149228},{"$f":"'II. Headline series'!H381","v":3.358800521350974},5.112224672980148,0.0578887119678299,0.05797500403549806,0.030251724962860906,0.04778596647915265]
[1684,null,0.00430496585328263,0.004882512310272609,0.002122965880168157,2.7248126770702623E-3,null,null,{"$f":"'II. Headline series'!E382","v":6.69722919831418},{"$f":"'II. Headline series'!H382","v":4.645691587803846},4.9969900522363835,0.06266732612985917,0.062089779672869196,0.043732103200968195,0.047245087845293576]
[1685,null,7.3352307337984915E-3,0.00330828225327699,2.1184684439434524E-3,2.118506475108774E-3,null,null,{"$f":"'II. Headline series'!E383","v":6.709716950271671},{"$f":"'II. Headline series'!H383","v":4.428468803370622},5.100166217128665,0.05976193876891822,0.06378888724943972,0.04216618155859745,0.04888315569617788]
[1686,null,0.005324437601002175,2.9803910335783616E-3,2.1139900227893616E-3,2.1140278132666763E-3,null,null,{"$f":"'II. Headline series'!E384","v":6.21289907349468},{"$f":"'II. Headline series'!H384","v":4.489479258659076},5.272643080483192,0.05680455313394463,0.05914859970136844,0.042780764773324084,0.05061240299156525]
[1687,null,2.2236695024907766E-3,-3.0488928517831269E-4,2.1095304963672716E-3,2.1089416009300306E-3,null,null,{"$f":"'II. Headline series'!E385","v":6.451409906706447},{"$f":"'II. Headline series'!H385","v":4.396271249460263},5.208758074274084,0.062290429564573695,0.06481898835224278,0.04185377089367259,0.04997863914181081]
[1688,null,0.0079877908216796,9.7433524252588262E-4,2.1050897453518615E-3,2.4607831509979644E-3,null,null,{"$f":"'II. Headline series'!E386","v":6.92187223883653},{"$f":"'II. Headline series'!H386","v":4.6896424376358885},4.706114905844862,0.061230931566685694,0.06824438714583941,0.04443564122536092,0.04460036590745065]
[1689,null,0.010279175080185225,0.004084604032298757,0.002100667651420464,0.002810276608918491,null,null,{"$f":"'II. Headline series'!E387","v":6.027968666646838},{"$f":"'II. Headline series'!H387","v":4.191074515857363},4.218234159943724,0.05000051158628316,0.05619508263416962,0.03910046854965513,0.03937206499051875]
[1690,null,0.006535238682410232,2.2649791622810474E-3,0.002091878966469648,0.003157446437741166,null,null,{"$f":"'II. Headline series'!E388","v":3.8325323289934397},{"$f":"'II. Headline series'!H388","v":2.327908740618542},3.70663712541284,0.031790084607524166,0.03606034412765335,0.02012164096844425,0.033908924816387236]
[1691,null,0.005732606597629009,-1.3453929124412633E-3,0.004585856730643694,3.5023167488575308E-3,null,null,{"$f":"'II. Headline series'!E389","v":2.6623975886709212},{"$f":"'II. Headline series'!H389","v":2.074027907337785},3.2002832509272188,0.020891369289080204,0.027969368799150476,0.01723796232452032,0.02850051576041466]
[1692,null,2.5086719019367524E-3,-1.5890434106139832E-3,0.004564922649387134,0.003844911308500437,null,null,{"$f":"'II. Headline series'!E390","v":3.861877993230004},{"$f":"'II. Headline series'!H390","v":1.5919352594958902},2.575907906453113,0.03611010803036328,0.04020782334291402,0.012074441286458466,0.021914167756030695]
[1693,null,2.0384883065057563E-3,-1.5328846185747244E-3,0.004544178824548089,4.1852535440959635E-3,null,null,{"$f":"'II. Headline series'!E391","v":4.105293709037754},{"$f":"'II. Headline series'!H391","v":2.2894149493360643},1.9127825000570706,0.03901444878387179,0.04258582170895227,0.01870889594926468,0.014942571456474745]
[1694,null,2.6621212030026793E-3,1.4735593848617732E-3,0.004523622674181826,4.5239929977251726E-3,null,null,{"$f":"'II. Headline series'!E392","v":3.807531907344297},{"$f":"'II. Headline series'!H392","v":1.3409289034522789},1.8758151078254477,0.03541319787044029,0.0366017596885812,0.008885296036797616,0.014234158080529304]
[1695,null,0.004347909718725049,0.00295902013980976,0.004503251662852202,0.004503617005440711,null,null,{"$f":"'II. Headline series'!E393","v":2.961242411813251},{"$f":"'II. Headline series'!H393","v":0.48562408793267586},2.328213323459248,0.02526451439940746,0.02665340397832275,3.5262387388604755E-4,0.01877851622915177]
[1696,null,6.3947674758432717E-4,2.3311447839814595E-3,4.4830633005891515E-3,0.004483423751152868,null,null,{"$f":"'II. Headline series'!E394","v":3.0406865692306555},{"$f":"'II. Headline series'!H394","v":0.5455309514546104},2.956991453778356,0.029767388944722226,0.028075720908325094,9.7188576339323623E-4,0.025086490786630694]
[1697,null,0.007313385744084155,0.004274882352982387,0.00446305514187411,0.004463410787367233,null,null,{"$f":"'II. Headline series'!E395","v":5.638245920240813},{"$f":"'II. Headline series'!H395","v":4.913055802013487},3.679769265517855,0.049069073458323974,0.05210757684942574,0.04466714723276763,0.032334281867811315]
[1698,null,0.002910576072124376,0.006006413369470839,4.4432247846524645E-3,0.007237137738484124,null,null,{"$f":"'II. Headline series'!E396","v":7.478983044145346},{"$f":"'II. Headline series'!H396","v":4.818307875304927},4.460557531095668,0.07187925436932908,0.06878341707198261,0.04094594101456515,0.03736843757247256]
[1699,null,3.2297172748223524E-3,7.1486071202918585E-3,4.4235698693722274E-3,0.00993381619528506,null,null,{"$f":"'II. Headline series'!E397","v":6.97802616696861},{"$f":"'II. Headline series'!H397","v":6.526867366390669},5.64513939602533,0.06655054439486376,0.06263165454939425,0.05533485746862163,0.046517577764968246]
[1700,null,9.290884082541636E-3,0.008298940329498836,0.004404088078048653,0.012557073513505624,null,null,{"$f":"'II. Headline series'!E398","v":6.704605960099571},{"$f":"'II. Headline series'!H398","v":7.105990453575396},6.744606540174173,0.05775517551845408,0.05874711927149688,0.05850283102224834,0.054888991888236115]
[1701,null,0.008207148920184293,0.008694468237277113,0.02393971133200006,0.015110292592474867,null,null,{"$f":"'II. Headline series'!E399","v":7.453280339968223},{"$f":"'II. Headline series'!H399","v":7.817875150730267},7.2197731633278766,0.06632565447949794,0.06583833516240511,0.0630684589148278,0.0570874390408039]
[1702,null,2.9331300368316106E-3,0.008204700506895339,0.02338000086045876,0.017596633262589305,null,null,{"$f":"'II. Headline series'!E400","v":9.28017306212983},{"$f":"'II. Headline series'!H400","v":10.507555675994482},7.212440934411475,{"$f":"(I398/100)-C398","v":0.08986860058446669},{"$f":"(I398/100)-D398","v":0.08459703011440296},{"$f":"(J398/100)-F398","v":0.0874789234973555},{"$f":"(K398/100)-F398","v":0.054527776081525446}]
[1703,null,0.006200296327168546,0.007965459323051306,0.022845864528133086,0.02001905138588638,null,null,{"$f":"'II. Headline series'!E401","v":9.54698757140716},{"$f":"'II. Headline series'!H401","v":9.408691903090963},6.404124042483707,0.08926957938690304,0.08750441639102029,0.07406786764502324,0.044022189038950686]
[1704,null,6.5037895379501855E-3,0.008183977673939639,0.02233558869465881,0.02238031595696021,null,null,{"$f":"'II. Headline series'!E402","v":8.589151785647514},{"$f":"'II. Headline series'!H402","v":8.19113247537449},5.368306318316479,0.07938772831852496,0.0777075401825355,0.05953100879678468,0.03130274722620458]
[1705,null,0.00390653049323969,0.008425017911611743,0.02184760947545355,0.021889462421857308,null,null,{"$f":"'II. Headline series'!E403","v":6.444047807366835},{"$f":"'II. Headline series'!H403","v":7.350344721478775},4.4186513204785784,0.060533947580428654,0.0560154601620566,0.051613984792930445,0.022297050782928474]
[1706,null,1.817514406823061E-3,0.006987716715262353,0.021380496732451734,0.02141971658767406,null,null,{"$f":"'II. Headline series'!E404","v":1.0408545758257308},{"$f":"'II. Headline series'!H404","v":4.3595997229589045},3.2904993734060666,8.591031351434247E-3,0.003420829042994954,0.022176280641914986,0.011485277146386606]
[1707,null,9.8140882384199421E-4,0.008421398762164174,0.020932940075565495,0.020969743268132845,null,null,{"$f":"'II. Headline series'!E405","v":1.3793120821097793},{"$f":"'II. Headline series'!H405","v":1.9640002030603172},2.4645518879433097,0.012811711997255799,0.005371722058933619,-1.3297412375296719E-3,3.6757756113002527E-3]
[1708,null,3.487442113128189E-3,0.010036901283553121,0.020503736586279724,0.020538317746777477,null,null,{"$f":"'II. Headline series'!E406","v":2.552912816093818},{"$f":"'II. Headline series'!H406","v":1.4353689807771928},1.6221910882101491,0.02204168604780999,0.015492226877385057,-6.1846279390055485E-3,-0.004316406864675985]
[1709,null,0.006069220370082448,0.01019958842305717,0.02009178002117605,0.020124314565732947,null,null,{"$f":"'II. Headline series'!E407","v":2.2514717823935144},{"$f":"'II. Headline series'!H407","v":4.107013511605394},1.0599332295055783,0.0164454974538527,0.012315129400877976,0.02094582055032099,-0.009524982270677164]
[1710,null,0.006193241606140083,0.01080975789991295,0.019696051291344555,0.019726697654679406,null,null,{"$f":"'II. Headline series'!E408","v":1.8285174307737948},{"$f":"'II. Headline series'!H408","v":6.5846623840367755},1.7905193244199202,0.012091932701597865,0.007475416407824998,0.046119926185688345,-1.8215044104802035E-3]
[1711,null,3.3882102249753816E-3,0.010289504919790552,0.019315610045171253,0.019344511616514546,null,null,{"$f":"'II. Headline series'!E409","v":1.5432853957142372},{"$f":"'II. Headline series'!H409","v":3.933683221319327},2.836365867804506,0.012044643732166991,0.00514334903735182,0.019992320596678725,0.009019147061530512]
[1712,null,0.007104216687323173,0.009690611443714803,0.01894958720814182,0.018976874014387562,null,null,{"$f":"'II. Headline series'!E410","v":2.7723723224475862},{"$f":"'II. Headline series'!H410","v":4.301480472611723},3.834218813400593,0.02061950653715269,0.01803311178076106,0.024037930711729664,0.01936531411961837]
[1713,null,0.012409760751038838,0.011532631228610982,0.01859717835507692,0.018622968528204917,null,null,{"$f":"'II. Headline series'!E411","v":8.152363969408396},{"$f":"'II. Headline series'!H411","v":7.174629063151613},4.262498710815849,0.06911387894304513,0.06999100846547299,0.05312332210331122,0.024002018579953568]
[1714,null,0.010060494168131023,0.009776940437420547,0.018257637808411498,0.01828203886822199,null,null,{"$f":"'II. Headline series'!E412","v":8.400767812287844},{"$f":"'II. Headline series'!H412","v":9.21164272446434},4.468487747864915,0.07394718395474742,0.0742307376854579,0.07383438837642141,0.02640283861042716]
[1715,null,0.007815405610848942,0.007731987808677039,0.01793027337139084,0.017953383349655624,null,null,{"$f":"'II. Headline series'!E413","v":7.453341712094574},{"$f":"'II. Headline series'!H413","v":10.434642847723307},4.89846458690815,0.0667180115100968,0.0668014293122687,0.08639304512757744,0.031031262519425878]
[1716,null,0.011262388019893625,0.008434761475252486,0.017614441617897533,0.01763635004595162,null,null,{"$f":"'II. Headline series'!E414","v":6.718759912871545},{"$f":"'II. Headline series'!H414","v":5.550891354294393},5.494438334633002,0.05592521110882183,0.058752837653462966,0.03787256349699231,0.0373080333003784]
[1717,null,0.009081157717308106,0.010035618116044014,0.017309543671464082,0.017330332449878787,null,null,{"$f":"'II. Headline series'!E415","v":7.549557276841967},{"$f":"'II. Headline series'!H415","v":3.977314895028436},5.403446818580552,0.06641441505111156,0.06545995465237565,0.022442816500405572,0.036704135735926735]
[1718,null,0.009442624330503104,0.009069228087626719,0.017015021415206666,0.017034765581369512,null,null,{"$f":"'II. Headline series'!E416","v":7.6610151056641325},{"$f":"'II. Headline series'!H416","v":4.92679365560483},4.987655204956299,0.06716752672613821,0.0675409229690146,0.03223317097467879,0.03284178646819348]
[1719,null,0.008216840454482548,0.0094473840120815,0.016730354082213805,0.016749122489290134,null,null,{"$f":"'II. Headline series'!E417","v":7.008750023131838},{"$f":"'II. Headline series'!H417","v":5.922632767948796},4.390077079288666,0.061870659776835826,0.06064011621923688,0.04247720519019783,0.027151648303596523]
[1720,null,0.007551888486534438,0.010624285916888696,0.016455055182567093,0.016472911101349377,null,null,{"$f":"'II. Headline series'!E418","v":5.716812012381177},{"$f":"'II. Headline series'!H418","v":5.415943804738096},4.329872700207895,0.04961623163727733,0.046543834206923075,0.037686526946031584,0.026825815900729574]
[1721,null,0.007268882695285389,0.011063448401306828,0.01618866972884657,0.016205671382343263,null,null,{"$f":"'II. Headline series'!E419","v":4.03204010499235},{"$f":"'II. Headline series'!H419","v":3.8218892949532517},4.464472115682695,0.03305151835463811,0.029256952648616674,0.022013221567189257,0.02843904977448369]
[1722,null,0.006037916068055066,0.009859997647175022,0.015930771726835186,0.01594697276605672,null,null,{"$f":"'II. Headline series'!E420","v":2.462671418399501},{"$f":"'II. Headline series'!H420","v":2.8509246492965565},4.567503335409901,0.018588798115939945,0.014766716536819989,0.012562273726908848,0.029728060588042293]
[1723,null,0.002840367353680679,0.008216817901999903,0.01568096190231225,0.015696411830533757,null,null,{"$f":"'II. Headline series'!E421","v":2.486026667512778},{"$f":"'II. Headline series'!H421","v":2.5861298055193385},4.176368173176329,0.0220198993214471,0.016643448773127876,0.01016488622465963,0.026067269901229536]
[1724,null,0.003970597978698689,7.224595256388946E-3,0.01543886563842125,0.015453610190202865,null,null,{"$f":"'II. Headline series'!E422","v":3.324532618217408},{"$f":"'II. Headline series'!H422","v":4.101414393581366},3.9430407386461255,0.02927472820347539,0.026020730925785135,0.02556053374561079,0.023976797196258386]
[1725,null,2.4334237606710787E-3,0.007733874184918932,0.015204131101200868,0.015218212581597862,null,null,{"$f":"'II. Headline series'!E423","v":3.233022359093359},{"$f":"'II. Headline series'!H423","v":3.1470166344777235},3.969592795915698,0.029896799830262513,0.02459634940601466,0.016251953763179373,0.024477715377559113]
[1726,null,0.00418950603274162,0.008220062030769307,0.014976427533553091,0.014989885122224992,null,null,{"$f":"'II. Headline series'!E424","v":2.9211854639765127},{"$f":"'II. Headline series'!H424","v":1.316944484405573},4.252676289341058,0.025022348607023504,0.020991792608995818,-1.8204402781692615E-3,0.027536877771185585]
[1727,null,2.2305968021463602E-3,0.006322705816991486,0.014755443700250863,0.014768313724561093,null,null,{"$f":"'II. Headline series'!E425","v":4.076730698500545},{"$f":"'II. Headline series'!H425","v":2.130226854209683},4.535785612137602,0.03853671018285909,0.03444460116801396,0.006533954817535735,0.030589542396814922]
[1728,null,1.7800109446358772E-3,4.5045743747718575E-3,0.014540886468611526,0.01455320264928007,null,null,{"$f":"'II. Headline series'!E426","v":4.410734474323998},{"$f":"'II. Headline series'!H426","v":4.002569508598465},4.532077482727256,0.0423273337986041,0.03960277036846812,0.02547249243670458,0.03076757217799249]
[1729,null,0.004632339626253715,0.006181894629600264,0.0143324795112251,0.014344273183642741,null,null,{"$f":"'II. Headline series'!E427","v":6.047458519544169},{"$f":"'II. Headline series'!H427","v":4.300444612218252},4.467532345069033,0.05584224556918798,0.054292690565841434,0.028660172938539775,0.030331050267047594]
[1730,null,0.003495361693861133,0.004946484363443887,0.014129962118664949,0.014141262432587001,null,null,{"$f":"'II. Headline series'!E428","v":5.889049913573623},{"$f":"'II. Headline series'!H428","v":5.691733354751057},4.830721309497153,0.055395137441875096,0.05394401477229234,0.04277607111492357,0.03416595066238452]
[1731,null,2.6448364495490185E-5,0.003009155782761696,0.013933088111454082,0.013943922211454716,null,null,{"$f":"'II. Headline series'!E429","v":4.193975703807191},{"$f":"'II. Headline series'!H429","v":4.292909825339295},4.866645647527998,0.04191330867357643,0.03893060125531022,0.028985176041938236,0.03472253426382527]
[1732,null,0.004213656125206036,0.003341763656083883,0.013741624841739577,0.013752018030516762,null,null,{"$f":"'II. Headline series'!E430","v":4.371620451948536},{"$f":"'II. Headline series'!H430","v":4.546286448715921},4.755306634220153,0.03950254839427933,0.04037444086340148,0.03171084645664245,0.03380104831168477]
[1733,null,2.2459445612968624E-3,0.003815088401401879,0.013555352276162926,0.013565328162531991,null,null,{"$f":"'II. Headline series'!E431","v":4.777331561839495},{"$f":"'II. Headline series'!H431","v":5.534528743250348},4.490976897277679,0.04552737105709809,0.04395822721699307,0.041779959269971495,0.031344440810244796]
[1734,null,0.004667000289785004,0.005234156788794782,0.013374062152324864,0.013383642785519954,null,null,{"$f":"'II. Headline series'!E432","v":3.6735086172019487},{"$f":"'II. Headline series'!H432","v":3.245900474966906},3.8350242275210062,0.03206808588223448,0.031500929383224706,0.019075361964149107,0.024966599489690107]
[1735,null,3.6263238651360755E-3,0.006497011477893304,0.01319755720204584,0.013206763193758337,null,null,{"$f":"'II. Headline series'!E433","v":4.061011112116288},{"$f":"'II. Headline series'!H433","v":2.4633457009350486},3.3242120415532126,0.03698378725602681,0.03411309964326958,0.01142669381559215,0.020035357221773784]
[1736,null,2.1074762900759564E-3,6.165343737896815E-3,0.013025650435331698,0.013034501070749067,null,null,{"$f":"'II. Headline series'!E434","v":3.107977238838673},{"$f":"'II. Headline series'!H434","v":2.943940820101596},3.10357946336315,0.02897229609831077,0.024914428650489914,0.016404907130266894,0.018001293562882433]
[1737,null,0.004205052914413382,0.007297717436764072,0.01285816447958068,0.01286667781854454,null,null,{"$f":"'II. Headline series'!E435","v":1.851839910893298},{"$f":"'II. Headline series'!H435","v":0.5233790223487882},2.8207694033679833,0.014313346194519596,0.011220681672168907,-0.007632887595056657,0.015341016215135292]
[1738,null,0.006500670730967971,0.008088564299934601,0.012694930969122777,0.012703123938398573,null,null,{"$f":"'II. Headline series'!E436","v":1.4743661150791907},{"$f":"'II. Headline series'!H436","v":-0.13813358269322837},2.9979963098400155,0.008242990419823935,0.006655096850857306,-0.014084459765330857,0.017276839160001584]
[1739,null,3.5547435927878158E-3,0.00817087440459545,0.012535789980674691,0.012543678458214646,null,null,{"$f":"'II. Headline series'!E437","v":2.975766182721359},{"$f":"'II. Headline series'!H437","v":1.187537412977769},3.0488271177211597,0.026202918234425776,0.021586787422618138,-6.6830432843695622E-4,0.01794459271899695]
[1740,null,3.8992821986717496E-3,0.007215579613653677,0.01238058951073122,0.012388188402714953,null,null,{"$f":"'II. Headline series'!E438","v":3.8272769334855674},{"$f":"'II. Headline series'!H438","v":1.6037251328733564},2.986711497966916,0.034373487136183926,0.031057189721202,3.6490629260186105E-3,0.017478926576954205]
[1741,null,0.003076649390933709,6.4142877458721855E-3,0.012229184991303101,0.01223650830265496,null,null,{"$f":"'II. Headline series'!E439","v":4.624432944938917},{"$f":"'II. Headline series'!H439","v":4.167275075227407},3.4460706301790602,0.04316768005845546,0.039830041703516984,0.029436242449619104,0.02222419799913564]
[1742,null,3.9235382537613555E-3,5.9537811453089975E-3,0.012081438840758353,0.012088499739765234,null,null,{"$f":"'II. Headline series'!E440","v":4.71081983905301},{"$f":"'II. Headline series'!H440","v":3.7857016716724394},4.008983349945654,0.04318466013676874,0.0411544172452211,0.02576851697695916,0.02800133375969131]
[1743,null,5.157245316150358E-3,0.005095913389639076,0.011937220046833856,0.011944030924421034,null,null,{"$f":"'II. Headline series'!E441","v":4.237238113410759},{"$f":"'II. Headline series'!H441","v":2.177192114003218},4.195060917957501,0.037215135817957226,0.03727646774446851,0.00982789021561115,0.030006578255153973]
[1744,null,3.9218908766734265E-3,0.005262022347932815,0.011796403779160712,0.01180297630332452,null,null,{"$f":"'II. Headline series'!E442","v":5.53617820773036},{"$f":"'II. Headline series'!H442","v":4.497957401633314},4.149854228183698,0.051439891200630174,0.05009975972937079,0.03317659771300862,0.029695565978512466]
[1745,null,3.4862528859073466E-3,5.828922413698855E-3,0.01165887102889471,0.011665216194739191,null,null,{"$f":"'II. Headline series'!E443","v":5.9896154016675505},{"$f":"'II. Headline series'!H443","v":5.060179623855537},3.678773003923112,0.05640990113076815,0.05406723160297665,0.03893658004381618,0.025122513844491934]
[1746,null,0.0048662509375219,0.005920819847678736,0.011524508273265281,0.01153063644904396,null,null,{"$f":"'II. Headline series'!E444","v":4.440866223549665},{"$f":"'II. Headline series'!H444","v":3.5614663513124754},3.388543510392121,0.03954241129797474,0.03848784238781791,0.024084027064080797,0.022354798654877252]
[1747,null,4.5923624038127445E-3,0.005914822812046623,0.011393207163055622,0.011399128132578854,null,null,{"$f":"'II. Headline series'!E445","v":3.3964724154768495},{"$f":"'II. Headline series'!H445","v":2.9930608679069928},3.476640930813398,0.029372361750955756,0.028049901342721874,0.01853148054649107,0.02336728117555513]
[1748,null,5.6250235944784914E-3,0.005756645848916672,0.011264864231205799,0.011270587232937961,null,null,{"$f":"'II. Headline series'!E446","v":2.705110740087285},{"$f":"'II. Headline series'!H446","v":1.067364179377158},3.4455570185164883,0.02142608380639436,0.02129446155195618,-5.9694543916638011E-4,0.023184982952226922]
[1749,null,0.005766208889102168,0.006555511418203048,0.011139380620891728,0.011144914384030298,null,null,{"$f":"'II. Headline series'!E447","v":2.507102210058037},{"$f":"'II. Headline series'!H447","v":0.22596700512283516},3.1596887592398386,0.0193048132114782,0.01851551068237732,-0.008885244332801946,0.020451973208368085]
[1750,null,0.005382051631884906,0.008571231179965113,0.011016661831578128,0.011022014609378072,null,null,{"$f":"'II. Headline series'!E448","v":3.678659516824951},{"$f":"'II. Headline series'!H448","v":1.6657007128523174},2.774705747948792,0.031404543536364606,0.0282153639882844,0.0056349925191451,0.01672504287010985]
[1751,null,0.007251169704325788,0.008954019677582985,0.010896617481674458,0.010901797082255719,null,null,{"$f":"'II. Headline series'!E449","v":4.019887868596307},{"$f":"'II. Headline series'!H449","v":1.2703298851072955},2.2463899166098673,0.03294770898163728,0.03124485900838008,0.001801501768817236,0.011562102083842953]
[1752,null,0.006098238045647013,0.008115899279426245,0.01077916108654107,0.010784174901394106,null,null,{"$f":"'II. Headline series'!E450","v":4.832622091293212},{"$f":"'II. Headline series'!H450","v":2.571299065865294},2.026385187315013,0.04222798286728511,0.04021032163350588,0.014928815757258834,0.009479676971756026]
[1753,null,0.006543957686920951,7.0039123725150615E-3,0.0106642098506997,0.010669064881083627,null,null,{"$f":"'II. Headline series'!E451","v":3.875769075496504},{"$f":"'II. Headline series'!H451","v":1.8184562248697833},2.1694714921103926,0.032213733068044086,0.03175377838244998,0.007515497367614208,0.0110256500400203]
[1754,null,0.008052221114928879,0.007241551574117606,0.010551684473199135,0.010556387354608633,null,null,{"$f":"'II. Headline series'!E452","v":2.6325242592664764},{"$f":"'II. Headline series'!H452","v":-2.2398772533455795},2.0989550216284916,0.018273021477735886,0.019083691018547157,-0.032955159888064425,0.010433162861676283]
[1755,null,0.007235840259166017,0.007465913534713513,0.010441508965174533,0.01044606599003538,null,null,{"$f":"'II. Headline series'!E453","v":2.774707140163121},{"$f":"'II. Headline series'!H453","v":-1.0241717849327157},1.7854523120067722,0.02051123114246519,0.020281157866917695,-0.020687783839362536,7.4084571300323445E-3]
[1756,null,0.007112650023378452,0.006639055554236434,0.010333610478718374,0.010338027617456653,null,null,{"$f":"'II. Headline series'!E454","v":3.50929370023241},{"$f":"'II. Headline series'!H454","v":1.858774967090326},1.4871985989887242,0.027980286978945647,0.028453881448087665,0.008249722053446608,0.004533958372430589]
[1757,null,0.008831198606405402,6.0454985277667095E-3,0.010227919146253168,0.010232202066870043,null,null,{"$f":"'II. Headline series'!E455","v":3.421106884257804},{"$f":"'II. Headline series'!H455","v":2.951583872061568},1.6760977889453237,0.025379870236172636,0.02816557031481133,0.019283636653745637,0.006528775822583193]
[1758,null,0.006837883139322769,0.006148952806877698,0.01012436792966167,0.010128522015933616,null,null,{"$f":"'II. Headline series'!E456","v":3.291937352276014},{"$f":"'II. Headline series'!H456","v":3.101838407751162},2.4347633275978464,0.026081490383437374,0.026770420715882443,0.020889862061578005,0.014219111260044846]
[1759,null,0.007836856578840127,0.006766465011601366,0.010022892478489998,0.010026922846903753,null,null,{"$f":"'II. Headline series'!E457","v":2.9083687546737416},{"$f":"'II. Headline series'!H457","v":1.9735881558491022},3.0186028609709945,0.02124683096789729,0.02231722253513605,0.009708958711587268,0.020159105762806193]
[1760,null,0.005603142191519626,0.006643247179749866,9.923430996593428E-3,0.009927342512115193,null,null,{"$f":"'II. Headline series'!E458","v":3.5530767901725886},{"$f":"'II. Headline series'!H458","v":2.737588375725394},2.8625409562056214,0.02992762571020626,0.02888752072197602,0.017448541245138748,0.018698067049941022]
[1761,null,4.0780442064734254E-3,0.00600973903935481,0.009825924116644146,0.009829721407413871,null,null,{"$f":"'II. Headline series'!E459","v":4.361421844249279},{"$f":"'II. Headline series'!H459","v":5.361624482451241},2.3111969863842785,0.03953617423601937,0.037604479403137984,0.04378652341709854,0.013282248456428914]
[1762,null,3.1186662349046183E-3,5.257901704503784E-3,0.009730314781965493,0.009734002252999184,null,null,{"$f":"'II. Headline series'!E460","v":3.876408594725052},{"$f":"'II. Headline series'!H460","v":3.793749053395957},2.0478320931301877,0.0356454197123459,0.033506184242746734,0.028203488280960386,0.010744318678302693]
[1763,null,1.4450337279024415E-3,4.5355332308426935E-3,0.00963654813519845,0.0096401299811743,null,null,{"$f":"'II. Headline series'!E461","v":3.377279852272985},{"$f":"'II. Headline series'!H461","v":1.8975359904680165},2.213398109741985,0.03232776479482741,0.02923726529188716,0.009335229923505864,0.01249385111624555]
[1764,null,-4.2664057770710013E-5,0.004141778790322287,0.009544571413343922,0.009548051630541633,null,null,{"$f":"'II. Headline series'!E462","v":2.1118676453063854},{"$f":"'II. Headline series'!H462","v":-1.5058939469579948},1.9997773949506341,0.021161340510834563,0.016976897662741568,-0.02460699110012158,0.010449722318964709]
[1765,null,3.2514629049986894E-3,0.004365359907522287,0.009454333848758848,0.009457716246215627,null,null,{"$f":"'II. Headline series'!E463","v":1.7699229716801288},{"$f":"'II. Headline series'!H463","v":-1.3906746198234388},1.3352631569310216,0.0144477668118026,0.013333869809279001,-0.023364462444450014,0.003894915323094588]
[1766,null,2.4931382064815114E-3,0.004467964287055014,0.009365786575715806,0.009369074785657254,null,null,{"$f":"'II. Headline series'!E464","v":2.592815203345558},{"$f":"'II. Headline series'!H464","v":1.0352975168600422},0.6656312138259769,{"$f":"(I462/100)-C462","v":0.02343501382697407},{"$f":"(I462/100)-D462","v":0.02146018774640057},{"$f":"(J462/100)-F462","v":9.8390038294316785E-4},{"$f":"(K462/100)-F462","v":-0.002712762647397485}]
[1767,null,0.002589483850612343,3.9036120393263385E-3,0.009278882542164756,0.009282080029763986,null,null,{"$f":"'II. Headline series'!E465","v":1.8850826181692},{"$f":"'II. Headline series'!H465","v":0.8126306388679314},0.5174541083630065,0.016261342331079655,0.014947214142365661,-1.155773641084672E-3,-0.004107538946133921]
[1768,null,2.380961764628708E-3,0.004263391585756523,0.009193576426362126,0.00919668649887614,null,null,{"$f":"'II. Headline series'!E466","v":1.8543892386674503},{"$f":"'II. Headline series'!H466","v":1.3088417919375008},1.0721213976102748,0.016162930622045796,0.014280500800917981,3.8917314204988673E-3,1.5245274772266067E-3]
[1769,null,0.002516370238199767,4.275339777222358E-3,9.109824558056881E-3,0.009112850373385198,null,null,{"$f":"'II. Headline series'!E467","v":2.462347017929695},{"$f":"'II. Headline series'!H467","v":1.4010352709241796},1.4038106835686701,0.022107099941097184,0.02034813040207459,4.8975023358565975E-3,0.004925256462301504]
[1770,null,2.6342345254546434E-3,0.005326977414166234,0.009027584843945563,0.009030529418652488,null,null,{"$f":"'II. Headline series'!E468","v":3.183072915534449},{"$f":"'II. Headline series'!H468","v":1.3594979958533084},1.387604846593354,0.029196494629889845,0.026503751741178257,0.004564450539880596,0.00484551904728105]
[1771,null,2.7914066232786775E-3,0.004733401195633523,0.008946816697129002,0.00894968291396761,null,null,{"$f":"'II. Headline series'!E469","v":3.828770226346122},{"$f":"'II. Headline series'!H469","v":3.7812806629322844},1.4876272859303559,0.03549629564018254,0.033554301067827697,0.02886312371535523,0.005926589945335948]
[1772,null,1.3841031067834647E-3,0.004255164965431648,0.00886748097032225,0.008870271585295133,null,null,{"$f":"'II. Headline series'!E470","v":4.032521291438984},{"$f":"'II. Headline series'!H470","v":3.5373954126993543},2.060382726786063,0.03894110980760638,0.03607004794895819,0.02650368254169841,0.011733555682565499]
[1773,null,0.00446976920793399,0.005015601606157228,0.008789539892586847,0.00879225754157598,null,null,{"$f":"'II. Headline series'!E471","v":3.991991450580048},{"$f":"'II. Headline series'!H471","v":2.5058804206611773},2.8362957630451104,0.03545014529786649,0.03490431289964325,0.016266546665035794,0.019570700088875126]
[1774,null,0.004064248793323509,5.5981989790172505E-3,0.00871295700937059,0.008715604214366053,null,null,{"$f":"'II. Headline series'!E472","v":4.015674043986264},{"$f":"'II. Headline series'!H472","v":2.5207462183760527},3.325635986276812,0.03609249164653913,0.034558541460845395,0.016491857969394473,0.024540755648402066]
[1775,null,4.3971903229737186E-3,0.005255591647889711,0.008637697125654795,0.0086402763006099,null,null,{"$f":"'II. Headline series'!E473","v":4.56524002638127},{"$f":"'II. Headline series'!H473","v":3.3365580797923875},3.2049204128041806,0.04125520994083898,0.040396808615922986,0.02472530449731397,0.023408927827431904]
[1776,null,0.007263898713324006,6.67449471265129E-3,0.008563726252022804,0.008566239708360995,null,null,{"$f":"'II. Headline series'!E474","v":5.4906496273838545},{"$f":"'II. Headline series'!H474","v":4.968566764882422},3.0336172852670464,0.04764259756051454,0.04823200156118726,0.041119427940463235,0.02176993314430947]
[1777,null,0.00975846946727961,0.007168595484509699,8.491011553476072E-3,0.008493461505273085,null,null,{"$f":"'II. Headline series'!E475","v":5.1642965526734494},{"$f":"'II. Headline series'!H475","v":5.079077995783431},2.947316278467943,0.041884496059454886,0.0444743700422248,0.042297318452561225,0.02097970127940635]
[1778,null,0.00802982937539399,0.00705063098984047,8.419521300835937E-3,0.0084219098696989,null,null,{"$f":"'II. Headline series'!E476","v":4.476806847108913},{"$f":"'II. Headline series'!H476","v":3.7113627918255507},3.0191964043108084,0.03673823909569514,0.03771743748124866,0.028691718048556608,0.021770054173409187]
[1779,null,6.5376161950839945E-3,0.006919881901008136,0.008349224824579917,0.00835155404424352,null,null,{"$f":"'II. Headline series'!E477","v":4.4254062399749845},{"$f":"'II. Headline series'!H477","v":3.7424297055127105},2.788128983786596,0.037716446204665854,0.03733418049874171,0.029072743010883587,0.01952973579362244]
[1780,null,0.0041038663657401,5.6760867899886E-3,8.280092470971466E-3,0.00828236429162974,null,null,{"$f":"'II. Headline series'!E478","v":3.884817331242097},{"$f":"'II. Headline series'!H478","v":2.956221709041949},2.249676371443115,0.03474430694668087,0.03317208652243237,0.02127985279878975,0.01421439942280141]
[1781,null,0.004803904644134834,0.006197636404508255,0.008212095560351303,0.008214311852742321,null,null,{"$f":"'II. Headline series'!E479","v":4.3626992717197135},{"$f":"'II. Headline series'!H479","v":4.473043969591245},1.9060274287051358,0.038823088073062305,0.037429356312688886,0.036516127843170126,0.010845962434309036]
[1782,null,6.4306238167575235E-3,0.006815692233504231,0.008145206347467123,0.008147368906726538,null,null,{"$f":"'II. Headline series'!E480","v":5.203331212268511},{"$f":"'II. Headline series'!H480","v":5.348813881495007},2.031492112042794,0.045602688305927584,0.04521761988918088,0.04534076990822353,0.0121675522137014]
[1783,null,3.371033138196298E-3,-6.7549848998781775E-4,0.008079397983726361,0.00808150853302463,null,null,{"$f":"'II. Headline series'!E481","v":4.442613627024536},{"$f":"'II. Headline series'!H481","v":4.591076695975967},2.3947242729985057,0.04105510313204906,0.04510163476023318,0.037829258426735034,0.015865734196960427]
[1784,null,9.1449427609593883E-4,-1.9291541807478E-3,0.008014644481264151,0.00801670467524125,null,null,{"$f":"'II. Headline series'!E482","v":3.46781852387572},{"$f":"'II. Headline series'!H482","v":4.361687390923634},2.585155038379945,0.03376369096266126,0.036607339419505,0.03560016923399509,0.0178348457085582]
[1785,null,0.003389990919017425,-1.0391972067335077E-3,0.007950920678725437,0.00795293210673578,null,null,{"$f":"'II. Headline series'!E483","v":4.558011507873936},{"$f":"'II. Headline series'!H483","v":5.387793016136048},2.616253550349227,0.04219012415972193,0.04661931228547287,0.0459249980546247,0.01820960339675649]
[1786,null,0.006629507855719522,-8.4707229391942681E-4,7.888202208666581E-3,0.00789016639784612,null,null,{"$f":"'II. Headline series'!E484","v":4.5221033587136095},{"$f":"'II. Headline series'!H484","v":5.348377124031545},2.629912972412022,0.038591525731416575,0.046068105881055525,0.04559360484246933,0.0184089633262741]
[1787,null,0.006130617984805382,-1.4087322040589874E-3,0.00782646546648778,0.00782838388465426,null,null,{"$f":"'II. Headline series'!E485","v":4.194196235101125},{"$f":"'II. Headline series'!H485","v":4.3430610360947615},2.7660841252777346,0.035811344366205866,0.043350694555070235,0.03560222647629335,0.019832457368123085]
[1788,null,0.008196825668100817,-0.001247122952948003,0.007765687580813013,7.767561639209733E-3,null,null,{"$f":"'II. Headline series'!E486","v":5.108885290201202},{"$f":"'II. Headline series'!H486","v":3.591128550508657},2.7497123111260025,0.0428920272339112,0.05233597585496002,0.028143723865876838,0.01972956147205029]
[1789,null,0.007002267233774398,-1.2845836279551663E-3,0.007705846385239507,0.007707677441132119,null,null,{"$f":"'II. Headline series'!E487","v":4.081540675400507},{"$f":"'II. Headline series'!H487","v":3.0663230840704614},2.218383843467323,0.03381313952023067,0.04209999038196023,0.022955553399572493,0.014476160993541109]
[1790,null,0.005351234834249051,0.004628831571270158,0.007646920391383351,7.6487097505186655E-3,null,null,{"$f":"'II. Headline series'!E488","v":2.054755507704127},{"$f":"'II. Headline series'!H488","v":2.086671793677305},1.651024631879843,0.015196320242792216,0.015918723505771108,0.013218008186254387,0.008861536568279763]
[1791,null,0.01018880778404045,0.005371911696814814,0.007588888763152461,0.007590637682087545,null,null,{"$f":"'II. Headline series'!E489","v":2.616954466622624},{"$f":"'II. Headline series'!H489","v":1.9634740143892309},1.5048369228206144,0.015980736882185792,0.020797632969411426,0.012044102461804764,0.007457731546118599]
[1792,null,0.009996344002234607,0.005328729033245528,7.531731292182136E-3,0.007533440980491488,null,null,{"$f":"'II. Headline series'!E490","v":1.1114602796107313},{"$f":"'II. Headline series'!H490","v":0.01392026929406168},1.2945627464903253,1.1182587938727059E-3,0.005785873762861785,-0.007394238287550871,0.005412186484411764]
[1793,null,7.1376394822592485E-3,0.005400385668852528,7.475428374372409E-3,0.007477099996740432,null,null,{"$f":"'II. Headline series'!E491","v":1.62957978919276},{"$f":"'II. Headline series'!H491","v":-0.24467442556679384},0.7633517520624811,0.009158158409668351,0.01089541222307507,-0.00992384425240837,1.5641752388437929E-4]
[1794,null,0.008385828204598055,6.3110923661356426E-3,0.00741996098746994,0.007421595665675491,null,null,{"$f":"'II. Headline series'!E492","v":2.9584867953824974},{"$f":"'II. Headline series'!H492","v":2.375550133594165},-0.04020049504567285,0.02119903974922692,0.02327377558768933,0.01633390567026616,-0.00782360061613222]
[1795,null,0.008022530294833729,0.006445578315676798,0.00736531066964061,0.007366909484439937,null,null,{"$f":"'II. Headline series'!E493","v":3.9765538763225003},{"$f":"'II. Headline series'!H493","v":2.340797288236846},-0.6687765180090499,0.03174300846839127,0.0333199604475482,0.016041063397928525,-0.014054674664530437]
[1796,null,0.009451938886272594,5.7087499588579236E-3,0.007311459498982112,0.007313023491896072,null,null,{"$f":"'II. Headline series'!E494","v":3.7985280444904133},{"$f":"'II. Headline series'!H494","v":-0.7313726537593703},-0.3635244291439082,0.028533341558631537,0.03227653048604621,-0.014626750029489776,-0.010948267783335155]
[1797,null,0.01065687670084665,5.5424616214913795E-3,7.2583900739287685E-3,7.2599202489398605E-3,null,null,{"$f":"'II. Headline series'!E495","v":3.283876762115527},{"$f":"'II. Headline series'!H495","v":-4.965371198410706},-0.3129621649829432,0.02218189092030862,0.027296305999663893,-0.056913632233046914,-0.010389541898769292]
[1798,null,6.9411364459327305E-3,0.005073225189680943,0.007206085494503581,0.00720758281966796,null,null,{"$f":"'II. Headline series'!E496","v":2.7882320270056726},{"$f":"'II. Headline series'!H496","v":-6.132618189489343},-0.7276150339217659,0.020941183824123993,0.022809095080375784,-0.0685337647145614,-0.014483733158885619]
[1799,null,0.006209947154535085,0.00512004834056301,0.007154529344375079,0.007155994753354358,null,null,{"$f":"'II. Headline series'!E497","v":5.7028405438588265},{"$f":"'II. Headline series'!H497","v":-0.6456023015328454},-1.2579347937956253,0.05081845828405318,0.05190835709802526,-0.013612017768682812,-0.019735342691310612]
[1800,null,0.007226701232913603,0.005524903686781142,7.10370567367894E-3,0.007105140067196347,null,null,{"$f":"'II. Headline series'!E498","v":5.620016220295237},{"$f":"'II. Headline series'!H498","v":0.5799683338021373},-0.933943187979956,0.04897346097003877,0.050675258516171225,-1.3054567291749739E-3,-0.016444571946995907]
[1801,null,0.010338874084797446,0.006086317550031471,0.007053598982566626,0.00705500322979173,null,null,{"$f":"'II. Headline series'!E499","v":4.766553636598142},{"$f":"'II. Headline series'!H499","v":-1.3748215896557787},0.327221850356708,0.037326662281183975,0.04157921881594995,-0.02080321912634952,-0.00378278472622465]
[1802,null,0.008273585952018808,5.2029960824992285E-3,0.007004194205445397,0.007005569145311389,null,null,{"$f":"'II. Headline series'!E500","v":2.5394000595919004},{"$f":"'II. Headline series'!H500","v":-3.6187481612203265},1.265733535755879,0.017120414643900198,0.020191004513419777,-0.04319305075751466,5.651766212247401E-3]
[1803,null,0.010442734361462326,0.006124242092657006,0.006955476695876032,6.9568231383332875E-3,null,null,{"$f":"'II. Headline series'!E501","v":3.8081861089221873},{"$f":"'II. Headline series'!H501","v":-0.02587263413932536},0.9724281111813031,0.027639126727759547,0.031957618996564865,-0.007215549479726541,0.002767457973479743]
[1804,null,0.009456892484480634,6.877838673166067E-3,0.006907432212096451,0.006908750939305869,null,null,{"$f":"'II. Headline series'!E502","v":6.826549377098855},{"$f":"'II. Headline series'!H502","v":5.468816728905708},0.8177541418264126,0.05880860128650792,0.06138765509782248,0.04777941634975121,1.2687904789582573E-3]
[1805,null,0.011618406806496668,0.00800035124189329,6.8600469031412014E-3,0.006861338670610615,null,null,{"$f":"'II. Headline series'!E503","v":7.13630768244421},{"$f":"'II. Headline series'!H503","v":6.600429720294319},0.9434082201750834,0.05974467001794543,0.06336272558254881,0.059142958532332576,0.00257274353114022]
[1806,null,0.013959740298362219,0.007604880160882394,0.006813307295528362,0.00681457283319509,null,null,{"$f":"'II. Headline series'!E504","v":5.796558779111409},{"$f":"'II. Headline series'!H504","v":1.9516524966192141},1.260029399080619,0.04400584749275187,0.0503607076302317,0.01270195213299705,5.785721157611101E-3]
[1807,null,0.011509538269846228,0.005779051626098334,0.006767200280487018,6.7684402937494646E-3,null,null,{"$f":"'II. Headline series'!E505","v":5.437476125810797},{"$f":"'II. Headline series'!H505","v":0.5557690313485815},0.9739013012564344,0.04286522298826174,0.04859570963200963,-1.2107499802636503E-3,2.9705727188148786E-3]
[1808,null,0.006122922632899599,4.595720212648936E-3,0.006721713101699842,6.7229282724008636E-3,null,null,{"$f":"'II. Headline series'!E506","v":4.298749982167863},{"$f":"'II. Headline series'!H506","v":1.3444842503391539},0.2589555482708151,0.03686457718877904,0.038391779609029696,0.006721914230990675,-0.004133372789692713]
[1809,null,0.00953386041776799,0.005396623065919652,0.006676833343536725,0.006678024330901326,null,null,{"$f":"'II. Headline series'!E507","v":3.9256117359962146},{"$f":"'II. Headline series'!H507","v":1.7649971218057305},0.19177502777258676,0.02972225694219415,0.03385949429404249,0.01097194688715598,-0.004760274053175458]
[1810,null,0.006578013020396769,0.005592338161874581,0.006632548919756656,6.633716361286417E-3,null,null,{"$f":"'II. Headline series'!E508","v":4.8253736531486355},{"$f":"'II. Headline series'!H508","v":0.8021471065280207},0.7512802668044544,0.041675723511089585,0.042661398369611775,0.00138775470399379,0.000879086306758127]
[1811,null,0.012826643361035426,0.00580061417075981,6.5888480626562435E-3,6.5899925749827604E-3,null,null,{"$f":"'II. Headline series'!E509","v":5.370527644823915},{"$f":"'II. Headline series'!H509","v":2.3101064823025603},1.3574261216950931,0.04087863308720373,0.04790466227747934,0.016511072248042845,0.006984268641968171]
[1812,null,0.00773330861072002,0.004179055250601958,0.006545719312644435,0.006546841492343881,null,null,{"$f":"'II. Headline series'!E510","v":6.43520124573496},{"$f":"'II. Headline series'!H510","v":4.397721969338256},1.9483636620519473,0.056618703846629585,0.060172957206747646,0.03743037820103868,0.012936795128175593]
[1813,null,0.005700707896468977,3.928737618583443E-3,0.006503151508224001,0.006504251932594849,null,null,{"$f":"'II. Headline series'!E511","v":6.317940536332711},{"$f":"'II. Headline series'!H511","v":7.044146318619091},2.85896987918026,0.05747869746685814,0.05925066774474367,0.06393721125359605,0.022085446859207748]
[1814,null,0.007718877680372922,0.005349459798588848,0.006461133776361419,6.4622130041671975E-3,null,null,{"$f":"'II. Headline series'!E512","v":5.264310830340436},{"$f":"'II. Headline series'!H512","v":5.513582926468893},4.018727310778429,0.044924230623031434,0.04729364850481551,0.04867361626052174,0.033725060103617095]
[1815,null,0.010772547445134511,7.0230228845965526E-3,0.006419655523227687,0.006420714095406558,null,null,{"$f":"'II. Headline series'!E513","v":8.555441390183157},{"$f":"'II. Headline series'!H513","v":4.9385832048325105},4.934991756365564,0.07478186645669706,0.07853139101723501,0.04296511795291855,0.042929203468249084]
[1816,null,0.011216308742658434,0.006592953215967213,6.378706425293504E-3,0.006379744865636547,null,null,{"$f":"'II. Headline series'!E514","v":11.670668334729369},{"$f":"'II. Headline series'!H514","v":7.063388190005076},5.325041858329675,0.10549037460463526,0.11011373013132647,0.06425413703441422,0.0468706737176602]
[1817,null,0.012054532289291962,6.0816983969595945E-3,0.006338276420763096,5.4507232216045465E-3,null,null,{"$f":"'II. Headline series'!E515","v":11.38040172069634},{"$f":"'II. Headline series'!H515","v":8.653088645268017},5.833718532035688,0.10174948491767145,0.10772231881000381,0.08108016323107563,0.052886462098752335]
[1818,null,0.01098209679650204,0.009399267858779103,6.2983557013317655E-3,4.5277041106957724E-3,null,null,{"$f":"'II. Headline series'!E516","v":11.39496734334702},{"$f":"'II. Headline series'!H516","v":8.478400507205631},6.267079774625152,0.10296757663696815,0.10455040557469109,0.08025630096136055,0.05814309363555575]
[1819,null,0.013874953129985221,0.00867362668777471,0.006258934704254358,3.6106104645203885E-3,null,null,{"$f":"'II. Headline series'!E517","v":11.084548798269875},{"$f":"'II. Headline series'!H517","v":8.696714904913472},6.459868475960944,0.09697053485271352,0.10217186129492403,0.08335653858461432,0.06098807429508905]
[1820,null,0.016856618539477057,0.010761839289375139,0,2.6993666894784595E-3,null,null,{"$f":"'II. Headline series'!E518","v":10.735080917985382},{"$f":"'II. Headline series'!H518","v":6.378320422675747},6.3375435266954545,0.09049419064037675,0.09658896989047867,0.06108383753727901,0.06067606857747609]
[1821,null,0.019134566704828413,0.012729472375140738,0,1.793898629369446E-3,null,null,{"$f":"'II. Headline series'!E519","v":12.403028249684025},{"$f":"'II. Headline series'!H519","v":6.966413611144911},6.0409421868020035,0.10489571579201185,0.11130081012169951,0.06787023748207967,0.05861552323865059]
[1822,null,0.014618573275195558,0.009547944165510925,0,8.9413352917919393E-4,null,null,{"$f":"'II. Headline series'!E520","v":9.797833480272542},{"$f":"'II. Headline series'!H520","v":4.457556222086735},5.628904445418348,0.08335976152752987,0.0884303906372145,0.04368142869168816,0.05539491092500429]
[1823,null,0.01589098711075838,0.011842797408313633,0,0,null,null,{"$f":"'II. Headline series'!E521","v":7.92987986810473},{"$f":"'II. Headline series'!H521","v":4.831982098513764},5.124917457650834,0.06340781157028892,0.06745600127273367,0.048319820985137645,0.051249174576508336]
[1824,null,0.014443244681138789,0.010891287796762836,0,0,null,null,{"$f":"'II. Headline series'!E522","v":6.6182820020658415},{"$f":"'II. Headline series'!H522","v":4.3190389904139925},4.644174930243261,0.05173957533951962,0.05529153222389557,0.043190389904139925,0.046441749302432604]
[1825,null,0.011332965045805147,7.2318485520438385E-3,0,0,null,null,{"$f":"'II. Headline series'!E523","v":5.6161753304811555},{"$f":"'II. Headline series'!H523","v":2.949317553517641},4.301294061297293,0.04482878825900641,0.04892990475276771,0.029493175535176407,0.04301294061297293]
[1826,null,0.013607399259160154,0.010270156873850257,0,0,null,null,{"$f":"'II. Headline series'!E524","v":5.6135162877098725},{"$f":"'II. Headline series'!H524","v":1.110172852511912},4.3194687200510415,0.04252776361793857,0.045865006003248464,0.011101728525119118,0.043194687200510416]
[1827,null,0.010077585583519717,0.007674653795992343,0,6.8370343306404695E-3,null,null,{"$f":"'II. Headline series'!E525","v":6.078089154404781},{"$f":"'II. Headline series'!H525","v":2.540753109699728},4.363694070811758,0.05070330596052809,0.053106237748055465,0.01857049676635681,0.036799906377477105]
[1828,null,0.010026659259849012,0.00961427972316195,0,0.005387445477946462,null,null,{"$f":"'II. Headline series'!E526","v":4.728846743594606},{"$f":"'II. Headline series'!H526","v":2.427058962499845},4.394596075067941,0.037261808176097054,0.037674187712784114,0.018883144147051986,0.03855851527273295]
[1829,null,0.018250587229796694,0.015270869327510367,0,0.006851894271162379,null,null,{"$f":"'II. Headline series'!E527","v":5.525987279952899},{"$f":"'II. Headline series'!H527","v":6.001693315790482},4.70336261663292,0.03700928556973229,0.03998900347201862,0.05316503888674244,0.04018173189516682]
[1830,null,0.015723462789977397,0.012970233803412059,0.047859240314483284,0.012653478164906548,null,null,{"$f":"'II. Headline series'!E528","v":6.092281539999216},{"$f":"'II. Headline series'!H528","v":6.034129474359845},5.080419357857265,{"$f":"(I526/100)-C526","v":0.04519935261001476},{"$f":"(I526/100)-D526","v":0.0479525815965801},{"$f":"(J526/100)-F526","v":0.0476878165786919},{"$f":"(K526/100)-F526","v":0.038150715413666096}]
[1831,null,0.01955719325597375,0.01645555435825887,-0.010147121968858053,0.020319724961588126,null,null,{"$f":"'II. Headline series'!E529","v":7.3860161430793605},{"$f":"'II. Headline series'!H529","v":6.182867586955163},5.179163220682108,0.05430296817481985,0.05740460707253473,0.0415089509079635,0.03147190724523295]
[1832,null,0.02295581836896172,0.02166321828659958,0.010251141552511415,0.02561094836192792,null,null,{"$f":"'II. Headline series'!E530","v":6.395381516175993},{"$f":"'II. Headline series'!H530","v":5.498239540814946},5.1435974164561165,0.04099799679279821,0.04229059687516036,0.029371447046221535,0.025825025802633246]
[1833,null,0.01934875549912868,0.02041868493573678,0.04061108725620918,0.02369725208880882,null,null,{"$f":"'II. Headline series'!E531","v":5.370523432098183},{"$f":"'II. Headline series'!H531","v":3.7776070610140096},4.7466936829675035,0.03435647882185315,0.03328654938524506,0.014078818521331273,0.02376968474086622]
[1834,null,0.022074848656281433,0.020773787535897602,0.053663727576771056,0.024618937684495048,null,null,{"$f":"'II. Headline series'!E532","v":4.442414206681806},{"$f":"'II. Headline series'!H532","v":2.8944878497443383},4.247424793353781,0.02234929341053663,0.023650354530920462,4.325940812948334E-3,0.01785531024904277]
[1835,null,0.02314934093943431,0.022221764084667948,0.03703856380237855,0.03281067616377769,null,null,{"$f":"'II. Headline series'!E533","v":5.0106263482203675},{"$f":"'II. Headline series'!H533","v":4.139595493304447},3.756111305761472,0.02695692254276937,0.02788449939753573,8.585278769266777E-3,0.004750436893837029]
[1836,null,0.018265429830222397,0.019834221039830992,-0.013395873911833684,0.027248657240075542,null,null,{"$f":"'II. Headline series'!E534","v":4.027657061555781},{"$f":"'II. Headline series'!H534","v":1.9941507458802},3.1809647531461214,0.022011140785335413,0.02044234957572682,-0.007307149781273541,0.00456099029138567]
[1837,null,0.018676047678564924,0.021569721118607835,0.054311039484286866,0.018433424711463215,null,null,{"$f":"'II. Headline series'!E535","v":3.658735309837205},{"$f":"'II. Headline series'!H535","v":0.8539461586983818},3.0895137970807602,0.017911305419807125,0.015017631979764214,-0.009893963124479398,0.012461713259344389]
[1838,null,0.01726259417499205,0.019266284936934188,0.04719504738612045,0.007688584692072966,null,null,{"$f":"'II. Headline series'!E536","v":2.8985576001932993},{"$f":"'II. Headline series'!H536","v":0.07652173189166143},3.1380712155620105,0.011722981826940943,0.009719291064998806,-6.923367373156351E-3,0.02369212746354714]
[1839,null,0.015119483108331689,0.012278446053530599,-0.028682990913403643,4.913359453765696E-3,null,null,{"$f":"'II. Headline series'!E537","v":3.7072705154539114},{"$f":"'II. Headline series'!H537","v":1.400800570022167},3.319551385655838,0.021953222046207428,0.024794259101008517,0.009094646246455975,0.028282154402792685]
[1840,null,0.020140902876078642,0.014683745062458314,-0.021095540444077094,0.015486149013816035,null,null,{"$f":"'II. Headline series'!E538","v":4.952505822697772},{"$f":"'II. Headline series'!H538","v":4.560568300344845},3.4671926857418325,0.029384155350899076,0.034841313164519404,0.030119533989632415,0.019185777843602286]
[1841,null,0.020928273233553004,0.01982476974528783,-0.02155015255896068,0.015307572227589593,null,null,{"$f":"'II. Headline series'!E539","v":5.997751161568039},{"$f":"'II. Headline series'!H539","v":4.893372881907011},3.5492243566620423,0.039049238382127385,0.04015274187039256,0.033626156591480515,0.020184671339030832]
[1842,null,0.019125599894907717,0.01595767953391672,0.017611987134227663,0.017979780050767634,null,null,{"$f":"'II. Headline series'!E540","v":5.66002930934389},{"$f":"'II. Headline series'!H540","v":4.270638395801168},3.911455395224454,0.03747469319853118,0.04064261355952218,0.024726603907244044,0.02113477390147691]
[1843,null,0.019370604206373022,0.018503210029416035,0.060613653008518675,0.023115764575666314,null,null,{"$f":"'II. Headline series'!E541","v":4.882976289475728},{"$f":"'II. Headline series'!H541","v":4.723736070617136},4.226807239715938,0.02945915868838426,0.030326552865341246,0.024121596130505043,0.019152307821493065]
[1844,null,0.021998840106905747,0.02177201285482378,0.05306100198070179,0.027676942330027147,null,null,{"$f":"'II. Headline series'!E542","v":3.3264728144489317},{"$f":"'II. Headline series'!H542","v":3.282203071909476},4.112790041184612,0.01126588803758357,0.011492715289665535,5.1450883890676105E-3,0.013450958081818967]
[1845,null,0.019948923679830387,0.01969539044550291,0.06590050214836672,0.033306353154512976,null,null,{"$f":"'II. Headline series'!E543","v":5.249925303149543},{"$f":"'II. Headline series'!H543","v":4.701784115622987},4.098179742270241,0.03255032935166504,0.03280386258599252,0.013711488001716891,7.6754442681894325E-3]
[1846,null,0.01966200342596738,0.02393070980060933,0.007268900760887162,0.029286266728832087,null,null,{"$f":"'II. Headline series'!E544","v":5.808254128398972},{"$f":"'II. Headline series'!H544","v":4.511086705325573},3.9994084587626193,0.03842053785802234,0.03415183148338039,0.01582460032442364,0.010707817858794103]
[1847,null,0.017563855739144662,0.020294300428603716,0.010832703836448673,0.02670528906818356,null,null,{"$f":"'II. Headline series'!E545","v":6.126351045187015},{"$f":"'II. Headline series'!H545","v":3.8069782449697596},4.015823040755032,0.04369965471272548,0.04096921002326643,0.011364493381514035,0.013452941339366763]
[1848,null,0.015945155642881896,0.017497626555948796,0.017855723212440177,0.021554519937026347,null,null,{"$f":"'II. Headline series'!E546","v":4.881646780368436},{"$f":"'II. Headline series'!H546","v":4.231249882777942},4.171793465982506,0.03287131216080246,0.03131884124773556,0.02075797889075308,0.020163414722798714]
[1849,null,0.01913480290631813,0.02029191710849929,-0.010528617845538615,0.01739626731155985,null,null,{"$f":"'II. Headline series'!E547","v":4.825650377259235},{"$f":"'II. Headline series'!H547","v":4.925416968151349},3.7777023294499683,0.02912170086627422,0.02796458666409306,0.03185790236995363,0.02038075598293983]
[1850,null,0.01940011291003017,0.01682768916034364,0.042546809383979034,0.020044634461492385,null,null,{"$f":"'II. Headline series'!E548","v":4.757304174868345},{"$f":"'II. Headline series'!H548","v":4.1594746369159195},3.298566798249392,0.028172928838653282,0.03074535258833981,0.021550111907666807,0.012941033521001538]
[1851,null,0.01643890861817044,0.01568855536186588,0.017005618062601268,0.018047101741970915,null,null,{"$f":"'II. Headline series'!E549","v":4.010423601330248},{"$f":"'II. Headline series'!H549","v":3.6934051375442434},2.857556735799085,0.023665327395132038,0.024415680651436598,0.018886949633471522,0.010528465616019934]
[1852,null,0.0190336223280867,0.01706638456470196,0.03679273377010125,0.02586302229930021,null,null,{"$f":"'II. Headline series'!E550","v":1.095889059146654},{"$f":"'II. Headline series'!H550","v":1.4690169264194597},2.486939473520406,-0.00807473173662016,-0.00610749397323542,-0.011172853035105613,-9.9362756409614866E-4]
[1853,null,0.022116601635924864,0.023147390389621963,0.0258074708104149,0.029886798548133486,null,null,{"$f":"'II. Headline series'!E551","v":0.23482569732046846},{"$f":"'II. Headline series'!H551","v":0.5657380952380953},2.137373253519834,-0.01976834466272018,-0.02079913341641728,-0.024229417595752534,-0.008513066012935142]
[1854,null,0.025033372743060053,0.02956831824368803,-3.1500252002016017E-3,0.0242222714178408,null,null,{"$f":"'II. Headline series'!E552","v":0.193745031255375},{"$f":"'II. Headline series'!H552","v":0.4728333333333331},2.034405193006094,-0.023095922430506302,-0.02763086793113428,-0.01949393808450747,-0.003878219487779864]
[1855,null,0.02253082116314544,0.028233670910890463,0.07256716711374521,0.025498949894812196,null,null,{"$f":"'II. Headline series'!E553","v":1.761456509219444},{"$f":"'II. Headline series'!H553","v":1.244488095238095},2.0458101337764893,-0.004916256070950999,-0.010619105818696021,-0.013054068942431246,-0.005040848557047305]
[1856,null,0.02478784007079397,0.026246216155706877,0.017637815896294356,0.023451431791679394,null,null,{"$f":"'II. Headline series'!E554","v":2.441136058572941},{"$f":"'II. Headline series'!H554","v":1.5250952380952383},2.3640065037660745,-3.7647948506456044E-4,-1.8348555699774678E-3,-0.008200479410727012,1.8863324598135042E-4]
[1857,null,0.028081153587857087,0.029681207065960908,2.8951194719302083E-3,0.02369077549195281,null,null,{"$f":"'II. Headline series'!E555","v":3.357705266200429},{"$f":"'II. Headline series'!H555","v":2.3419761904761907},2.864428435329103,0.005495899074147201,0.00389584559604338,-2.7101358719090404E-4,0.004953508861338222]
[1858,null,0.02449171063838904,0.025604466916072467,0.025942367401401042,0.025285241543239922,null,null,{"$f":"'II. Headline series'!E556","v":4.805409073745999},{"$f":"'II. Headline series'!H556","v":4.111880952380952},3.3615811195306144,0.02356238009907095,0.022449623821387522,0.0158335679805696,0.00833056965206622]
[1859,null,0.02873196557184077,0.031128981367054172,0.02246010704817168,0.016055557166439964,null,null,{"$f":"'II. Headline series'!E557","v":5.173467624836205},{"$f":"'II. Headline series'!H557","v":4.938464285714285},3.4559262687958148,0.023002710676521276,0.020605694881307875,0.033329085690702885,0.018503705521518185]
[1860,null,0.029088663487412018,0.02703427358398369,0.02748287671232877,0.017295003408791466,null,null,{"$f":"'II. Headline series'!E558","v":5.313008279562803},{"$f":"'II. Headline series'!H558","v":5.456619047619047},3.4151850653567593,0.024041419308216013,0.026095809211644342,0.037271187067399,0.016856847244776128]
[1861,null,0.027529978078000134,0.024335156000815768,0.008011237158808195,0.02127802287105323,null,null,{"$f":"'II. Headline series'!E559","v":3.5751869456501386},{"$f":"'II. Headline series'!H559","v":4.794154761904762},3.245096849085401,0.00822189137850125,0.011416713455685616,0.02666352474799439,0.011172945619800777]
[1862,null,0.029234151831903754,0.02557909549568641,0.007959376476145488,0.019704638815317636,null,null,{"$f":"'II. Headline series'!E560","v":2.9145217557749215},{"$f":"'II. Headline series'!H560","v":3.502142857142857},3.028846851257469,-8.89342741545382e-05,3.5661220620628042E-3,0.015316789756110928,0.010583829697257054]
[1863,null,0.02268556205905528,0.024152138978925295,0.02631393959275488,0.015094666608700345,null,null,{"$f":"'II. Headline series'!E561","v":2.3537314121837127},{"$f":"'II. Headline series'!H561","v":2.3495238095238093},2.9218812772234912,8.5175206278184645E-4,-6.1482485708816773E-4,0.008400571486537748,0.014124146163534567]
[1864,null,0.01961730945729816,0.020097816409494314,0.030776255707762556,0.015765410140795345,null,null,{"$f":"'II. Headline series'!E562","v":2.024963554301379},{"$f":"'II. Headline series'!H562","v":2.0096547619047618},2.63312558709137,6.3232608571563154E-4,1.5181913351947768E-4,0.004331137478252273,0.010565845730118355]
[1865,null,0.02615700969335156,0.026899035858031505,0.014928679011251883,0.015648927343470884,null,null,{"$f":"'II. Headline series'!E563","v":2.585269108487515},{"$f":"'II. Headline series'!H563","v":2.6281071428571425},2.30953444272294,-3.0431860847640949E-4,-1.046344773156356E-3,0.01063214408510054,0.007446417083758514]
[1866,null,0.02421262665392429,0.023943190683297758,-0.009809698398149361,0.023356311477311792,null,null,{"$f":"'II. Headline series'!E564","v":3.4978805775245303},{"$f":"'II. Headline series'!H564","v":2.972130952380953},2.1534323139105496,0.01076617912132101,0.011035615091947542,0.00636499804649774,-1.8219883382062964E-3]
[1867,null,0.019966420615891572,0.014329987210899174,0.03217808143699377,0.027284557134464673,null,null,{"$f":"'II. Headline series'!E565","v":3.749352429665058},{"$f":"'II. Headline series'!H565","v":2.4595833333333337},2.2408598946217393,0.017527103680759007,0.023163537085751404,-2.6887238011313354E-3,-4.8759581882472786E-3]
[1868,null,0.018119292553714497,0.015509303223465136,7.195857577536967E-3,0.02319190054399404,null,null,{"$f":"'II. Headline series'!E566","v":4.232102309628195},{"$f":"'II. Headline series'!H566","v":2.1171309523809527},2.4573455456175446,0.024201730542567457,0.026811719872816817,-2.0205910201845124E-3,0.001381554912181407]
[1869,null,0.022759251169621464,0.017984622664508596,0.061911065413031846,0.024395598507506444,null,null,{"$f":"'II. Headline series'!E567","v":4.1895555980235475},{"$f":"'II. Headline series'!H567","v":1.558857142857143},2.597263652828675,0.019136304810614013,0.02391093331572688,-8.807027078935015E-3,1.5770380207803074E-3]
[1870,null,0.025016209573928992,0.019214502623392814,0.05381165919282505,0.028168056903448337,null,null,{"$f":"'II. Headline series'!E568","v":4.219820893896623},{"$f":"'II. Headline series'!H568","v":2.0202380952380956},2.489304689705424,0.017181999365037233,0.02298370631557341,-0.00796567595106738,-3.2750100063940954E-3]
[1871,null,0.029049378308694012,0.02407789444073179,2.127659574468106E-3,0.027069730400787428,null,null,{"$f":"'II. Headline series'!E569","v":4.613017518223512},{"$f":"'II. Headline series'!H569","v":3.3662142857142854},2.5023923382711795,0.017080796873541113,0.022052280741503335,6.592412456355428E-3,-2.0458070180756315E-3]
[1872,null,0.027229422555942913,0.021018704125276615,0.023354564755838733,0.027464630655789257,null,null,{"$f":"'II. Headline series'!E570","v":5.228902963278238},{"$f":"'II. Headline series'!H570","v":3.3942738095238094},2.7176410708356107,0.02505960707683947,0.03127032550750577,0.006478107439448839,-2.8821994743314858E-4]
[1873,null,0.02025042767049174,0.017392316332721765,0.016597510373443876,0.020029040302335568,null,null,{"$f":"'II. Headline series'!E571","v":4.748425087803999},{"$f":"'II. Headline series'!H571","v":2.7126547619047616},3.1656699113659563,0.027233823207548247,0.030091934545318222,0.007097507316712048,0.011627658811323997]
[1874,null,0.022709044115141908,0.024821111882601388,0.024489795918367453,0.012899696131931957,null,null,{"$f":"'II. Headline series'!E572","v":4.671991526679055},{"$f":"'II. Headline series'!H572","v":2.7973214285714283},3.490666277832588,0.024010871151648648,0.021898803384189168,0.015073518153782325,0.022006966646393924]
[1875,null,0.023063604776062823,0.023871978531837593,0.009960159362549768,0.012039880395056888,null,null,{"$f":"'II. Headline series'!E573","v":5.617991671445526},{"$f":"'II. Headline series'!H573","v":3.300333333333333},3.5982184649291993,0.03311631193839243,0.032307938182617665,0.020963452938276443,0.02394230425423511]
[1876,null,0.02181115205009556,0.02537158256415022,0.009861932938855985,0.015399942572794206,null,null,{"$f":"'II. Headline series'!E574","v":5.12352277244416},{"$f":"'II. Headline series'!H574","v":4.575845238095239},3.6884507812007277,0.02942407567434604,0.02586364516029138,0.030358509808158178,0.02148456523921307]
[1877,null,0.027239956656819386,0.03400295661691292,0.003906249999999785,0.01809283554716363,null,null,{"$f":"'II. Headline series'!E575","v":4.914076656689965},{"$f":"'II. Headline series'!H575","v":4.561833333333333},3.9357815425639413,0.02190080991008027,0.015137809949986737,0.02752549778616971,0.02126497987847578]
[1878,null,0.02557277618966103,0.034553258794842855,-3.8910505836573742E-3,0.01871269739151526,null,null,{"$f":"'II. Headline series'!E576","v":4.971896892704466},{"$f":"'II. Headline series'!H576","v":4.199404761904762},4.247674940706458,0.02414619273738363,0.015165710132201804,0.023281350227532357,0.023764052015549316]
[1879,null,0.027559456344896767,0.03728210909956085,0.04687499999999995,0.018290568045501766,null,null,{"$f":"'II. Headline series'!E577","v":4.3810955300159975},{"$f":"'II. Headline series'!H577","v":3.745892857142857},4.475203474570273,0.016251498955263205,6.5288462005991185E-3,0.019168360525926808,0.026461466700200966]
[1880,null,0.031766257510300565,0.04108712578976167,0.035447761194029835,0.017130167687777,null,null,{"$f":"'II. Headline series'!E578","v":4.339050077121888},{"$f":"'II. Headline series'!H578","v":3.7284761904761905},4.49055658376738,0.011624243260918314,2.303374981457211E-3,0.020154594216984904,0.0277753981498968]
[1881,null,0.02896685668342963,0.03987320419843491,0.028828828828828878,0.015828084354443675,null,null,{"$f":"'II. Headline series'!E579","v":4.655822413689455},{"$f":"'II. Headline series'!H579","v":3.953011904761905},4.622042367749493,0.017591367453464915,0.006685019938459637,0.023702034693175375,0.03039233932305125]
[1882,null,0.027875283593243455,0.03666115324469229,7.0052539404552965E-3,0.018627778192497984,null,null,{"$f":"'II. Headline series'!E580","v":3.9337017512587833},{"$f":"'II. Headline series'!H580","v":4.023309523809524},4.80088766549502,0.01146173391934438,2.675864267895546E-3,0.021605317045597257,0.02938109846245222]
[1883,null,0.026885614174155293,0.033377345821228886,1.7391304347826257E-3,0.017576906813018354,null,null,{"$f":"'II. Headline series'!E581","v":4.444585364885121},{"$f":"'II. Headline series'!H581","v":3.586261904761905},5.015271893314704,0.017560239474695916,0.011068507827622323,0.018285712234600692,0.032575812120128694]
[1884,null,0.022639210933669763,0.027841784509026753,-5.208333333333497E-3,0.018888383667236035,null,null,{"$f":"'II. Headline series'!E582","v":5.003790319026083},{"$f":"'II. Headline series'!H582","v":4.04197619047619},5.204980934468155,0.027398692256591067,0.022196118681234077,0.021531378237525867,0.03316142567744551]
[1885,null,0.02087441754261041,0.02370812757812868,0.015706806282722783,0.02245533217089338,null,null,{"$f":"'II. Headline series'!E583","v":5.054262396421993},{"$f":"'II. Headline series'!H583","v":3.744535714285714},5.250896621442477,0.029668206421609517,0.02683449638609125,0.01499002497196376,0.030053634043531393]
[1886,null,0.019465830462530868,0.025241768434464348,0.03951890034364255,0.02209808225147186,null,null,{"$f":"'II. Headline series'!E584","v":4.308908642118363},{"$f":"'II. Headline series'!H584","v":3.645285714285714},5.207419401258079,0.02362325595865276,0.01784731798671928,0.014354774891385282,0.02997611176110893]
[1887,null,0.020642209950631627,0.02384600383557359,0.04462809917355362,0.021849635046502912,null,null,{"$f":"'II. Headline series'!E585","v":3.8026473871686224},{"$f":"'II. Headline series'!H585","v":3.5217500000000004},5.251860533065821,0.017384263921054594,0.01418047003611263,0.013367864953497094,0.030668970284155293]
[1888,null,0.021594613981172957,0.026701413696578993,0.05379746835443029,0.019177069383466392,null,null,{"$f":"'II. Headline series'!E586","v":3.2012792279458373},{"$f":"'II. Headline series'!H586","v":3.031714285714286},5.236120116662717,0.010418178298285414,0.005311378582879379,0.01114007347367647,0.03318413178316078]
[1889,null,0.027064739906443386,0.035730212062683994,0.004504504504504647,0.01693323991450599,null,null,{"$f":"'II. Headline series'!E587","v":3.48519099352635},{"$f":"'II. Headline series'!H587","v":2.5182499999999997},5.280268492519354,7.7871700288201125E-3,-8.7830212742049524E-4,0.008249260085494006,0.03586944501068755]
[1890,null,0.023817339070543737,0.0280534201123569,0,0.020913585150909752,null,null,{"$f":"'II. Headline series'!E588","v":3.6503202359401206},{"$f":"'II. Headline series'!H588","v":2.359345238095238},5.363135027797536,0.012685863288857471,0.008449782247044308,2.6798672300426297E-3,0.032717765127065604]
[1891,null,0.021471986605142823,0.021687217914982463,-0.023916292974589172,0.01904726313328997,null,null,{"$f":"'II. Headline series'!E589","v":3.8630666065410435},{"$f":"'II. Headline series'!H589","v":2.5435119047619046},5.45415225729513,0.017158679460267612,0.016943448150427972,0.006387855914329076,0.03549425943966133]
[1892,null,0.027309208470365026,0.03300388680421162,0,0.01732257015756273,null,null,{"$f":"'II. Headline series'!E590","v":4.0400979634665255},{"$f":"'II. Headline series'!H590","v":2.7525238095238094},5.588926364721145,0.013091771164300228,0.007397092830453637,0.010202667937675363,0.038566693489648717]
[1893,null,0.023641202473195847,0.025197163493389196,0.06738131699846889,0.018586374492128053,null,null,{"$f":"'II. Headline series'!E591","v":4.3645124779081454},{"$f":"'II. Headline series'!H591","v":2.946214285714286},5.793440152969434,0.020003922305885605,0.018447961285692257,0.010875768365014808,0.03934802703756629]
[1894,null,0.027006560230152948,0.03357317862880637,0.031563845050215145,0.025550424934439295,null,null,{"$f":"'II. Headline series'!E592","v":4.201853866599444},{"$f":"'II. Headline series'!H592","v":2.7000833333333327},5.822140088096068,{"$f":"(I590/100)-C590","v":0.015011978435841487},{"$f":"(I590/100)-D590","v":0.008445360037188064},{"$f":"(J590/100)-F590","v":1.4504083988940326E-3},{"$f":"(K590/100)-F590","v":0.032670975946521394}]
[1895,null,0.03156401062546088,0.03218658229366439,0.04172461752433959,0.034889507706832225,null,null,{"$f":"'II. Headline series'!E593","v":4.151420231638619},{"$f":"'II. Headline series'!H593","v":2.6979999999999995},5.779030388071528,0.009950191690925314,0.009327620022721805,-0.007909507706832231,0.022900796173883062]
[1896,null,0.030762307457493965,0.034119768985436685,0.013351134846461905,0.03385555974887938,null,null,{"$f":"'II. Headline series'!E594","v":3.576226216905453},{"$f":"'II. Headline series'!H594","v":2.6135952380952374},5.622142583943838,0.004999954711560565,1.642493183617845E-3,-0.007719607367927008,0.022365866090559003]
[1897,null,0.033378198503712195,0.041255825774220246,0.04874835309617871,0.024229657320526683,null,null,{"$f":"'II. Headline series'!E595","v":2.798296510161903},{"$f":"'II. Headline series'!H595","v":1.7748690476190474},5.384963106906802,-0.005395233402093164,-0.013272860672601215,-0.00648096684433621,0.029619973748541334]
[1898,null,0.03728961708121026,0.05305354948258023,0.0414572864321613,0.023365737085094155,null,null,{"$f":"'II. Headline series'!E596","v":2.431798471501629},{"$f":"'II. Headline series'!H596","v":1.4395595238095236},5.156871909312296,-0.012971632366193968,-0.02873556476756394,-0.00897014184699892,0.02820298200802881]
[1899,null,0.029928917864277624,0.0423051953042287,-0.007237635705669864,0.015881719280330657,null,null,{"$f":"'II. Headline series'!E597","v":2.104489625351635},{"$f":"'II. Headline series'!H597","v":1.3351309523809523},4.975104824883053,-0.008884021610761274,-0.02126029905071235,-2.5304097565211348E-3,0.033869328968499875]
[1900,null,0.034847407358036236,0.04753371040303168,0,0.01482984629542121,null,null,{"$f":"'II. Headline series'!E598","v":1.9474643509355347},{"$f":"'II. Headline series'!H598","v":1.3045119047619045},4.75966686564635,-0.01537276384868089,-0.02805906689367633,-1.7847272478021658E-3,0.032766822361042294]
[1901,null,0.029488596060418242,0.036542090672870134,0.025516403402187453,0.012117496533382083,null,null,{"$f":"'II. Headline series'!E599","v":2.036555383257289},{"$f":"'II. Headline series'!H599","v":1.632595238095238},4.719107137651386,-0.009123042227845352,-0.016176536840297243,4.208455847570295E-3,0.03507357484313177]
[1902,null,0.028902482499803397,0.04306947531749656,-0.010663507109004919,0.010984457266029575,null,null,{"$f":"'II. Headline series'!E600","v":1.5506501821563645},{"$f":"'II. Headline series'!H600","v":1.6927857142857141},4.638378517395578,-0.01339598067823975,-0.027562973495932914,0.005943399876827566,0.03539932790792621]
[1903,null,0.03257717014383648,0.046139347771311505,0.00598802395209579,0.014734928074733407,null,null,{"$f":"'II. Headline series'!E601","v":1.52675013088656},{"$f":"'II. Headline series'!H601","v":1.8614047619047618},4.608722891873122,-0.017309668834970877,-0.030871846462445902,3.8791195443142103E-3,0.031352300843997816]
[1904,null,0.03138662164771596,0.0453863914095365,0.029761904761904823,0.008932826773181007,null,null,{"$f":"'II. Headline series'!E602","v":1.6649694402006197},{"$f":"'II. Headline series'!H602","v":2.4830714285714284},4.606387158437577,-0.014736927245709765,-0.028736697007530305,0.015897887512533276,0.037131044811194766]
[1905,null,0.022324747815507553,0.022950456944750404,0.03352601156069374,0.008556668457798218,null,null,{"$f":"'II. Headline series'!E603","v":2.1296280842869204},{"$f":"'II. Headline series'!H603","v":2.5165595238095233},4.538936597081583,-1.028466972638347E-3,-1.6541761018811982E-3,0.016608926780297018,0.03683269751301761]
[1906,null,0.030808008495698255,0.03623117664973709,0.019015659955256947,0.014554299546876244,null,null,{"$f":"'II. Headline series'!E604","v":1.5873713335073472},{"$f":"'II. Headline series'!H604","v":2.4936666666666665},4.385751432020391,-0.014934295160624785,-0.020357463314663617,0.010382367119790422,0.029303214773327667]
[1907,null,0.0269481718944943,0.03269172728366826,-0.0406147091108668,0.01788231967643431,null,null,{"$f":"'II. Headline series'!E605","v":1.7211146314452175},{"$f":"'II. Headline series'!H605","v":2.469761904761905},4.232245946632711,-0.009737025580042125,-0.015480580969216083,6.815299371184743E-3,0.0244401397898928]
[1908,null,0.030734671384205083,0.03782455371838193,0.022883295194507932,0.015738100555698527,null,null,{"$f":"'II. Headline series'!E606","v":1.4109396206778813},{"$f":"'II. Headline series'!H606","v":2.473559523809524},4.0237776191979515,-0.01662527517742627,-0.023715157511603115,0.008997494682396714,0.02449967563628099]
[1909,null,0.03184025076178113,0.034746473278608504,0.031319910514541256,0.01643747021406553,null,null,{"$f":"'II. Headline series'!E607","v":1.5746513665990787},{"$f":"'II. Headline series'!H607","v":2.1749047619047617},3.629116814857432,-0.016093737095790345,-0.018999959612617717,0.005311577404982087,0.01985369793450879]
[1910,null,0.026760963095635533,0.025858308683099015,0.029284164859002246,0.015149518791885959,null,null,{"$f":"'II. Headline series'!E608","v":2.010171260366002},{"$f":"'II. Headline series'!H608","v":2.313333333333333},2.8647150165412247,-0.006659250491975514,-0.005756596079438996,0.00798381454144737,0.013497631373526288]
[1911,null,0.016891440718327082,0.012221995408735132,0.014752370916754349,0.03240848006514981,null,null,{"$f":"'II. Headline series'!E609","v":1.8835447910296215},{"$f":"'II. Headline series'!H609","v":2.596654761904762},1.6228071362092682,1.9440071919691326E-3,0.006613452501561083,-0.006441932446102194,-0.01618040870305713]
[1912,null,0.022495796270304656,0.02693279813829922,0.038421599169262764,0.03228203315442465,null,null,{"$f":"'II. Headline series'!E610","v":0.49881135926308573},{"$f":"'II. Headline series'!H610","v":1.0156428571428573},-0.01834422408430506,-0.0175076826776738,-0.021944684545668364,-0.022125604582996075,-0.0324654753952677]
[1913,null,0.025269020552934816,0.028918986202863768,9.999999999999969E-3,0.029088990204557442,null,null,{"$f":"'II. Headline series'!E611","v":-0.5864969480741202},{"$f":"'II. Headline series'!H611","v":-1.31275},-1.7577162480080193,-0.031133990033676017,-0.03478395568360497,-0.04221649020455744,-0.046666152684637634]
[1914,null,0.021661533959610017,0.02357384921365428,0.08019801980198016,0.02579442697073173,null,null,{"$f":"'II. Headline series'!E612","v":-3.476999180186285},{"$f":"'II. Headline series'!H612","v":-4.575238095238096},-3.808343722254906,-0.05643152576147287,-0.05834384101551714,-0.07154680792311269,-0.06387786419328079]
[1915,null,0.017691427637312757,0.0332950375393675,0.021998166819431814,0.008164482008873352,null,null,{"$f":"'II. Headline series'!E613","v":-6.07268802049663},{"$f":"'II. Headline series'!H613","v":-7.526404761904763},-5.6198300668736625,-0.07841830784227906,-0.0940219177443338,-0.08342852962792098,-0.06436278267760998]
[1916,null,0.00895481710726532,0.025858431101746397,0.008968609865470824,0.003920082326654121,null,null,{"$f":"'II. Headline series'!E614","v":-7.2722887182428835},{"$f":"'II. Headline series'!H614","v":-8.352511904761906},-4.895543697932397,-0.08167770428969416,-0.09858131828417524,-0.08744520137427318,-0.05287551930597809]
[1917,null,0.004254412925583755,0.01792118845993287,0.006222222222222226,1.1344914063481828E-3,null,null,{"$f":"'II. Headline series'!E615","v":-8.868458979400296},{"$f":"'II. Headline series'!H615","v":-8.50579799697657},-4.2557890404866345,-0.09293900271958673,-0.10660577825393584,-0.08619247137611388,-0.04369238181121453]
[1918,null,0.014604913499351923,0.025242442635211942,-0.10865724381625429,-0.013560629868140698,null,null,{"$f":"'II. Headline series'!E616","v":-6.681395752910305},{"$f":"'II. Headline series'!H616","v":-6.861168149161155},-3.5553223448056523,-0.08141887102845496,-0.09205640016431499,-0.055051051623470855,-0.02199259357991583]
[1919,null,0.020905013771901237,0.02944074458265721,0.008710801393728153,-0.008802116424096219,null,null,{"$f":"'II. Headline series'!E617","v":-4.8715407299757585},{"$f":"'II. Headline series'!H617","v":-4.6791483308291975},-2.120895833671999,-0.06962042107165882,-0.07815615188241479,-0.037989366884195755,-0.01240684191262377]
[1920,null,0.01754178333366511,0.03211026364375667,-0.009499136442141605,0.008754958147712506,null,null,{"$f":"'II. Headline series'!E618","v":-3.2883528210357547},{"$f":"'II. Headline series'!H618","v":-2.4267717458756906},-0.4549724752281528,-0.05042531154402266,-0.06499379185411422,-0.03302267560646941,-0.013304682899994034]
[1921,null,0.02782591293181198,0.039056373161760194,-0.022667829119442,0.01224033576901245,null,null,{"$f":"'II. Headline series'!E619","v":-0.2829531782238543},{"$f":"'II. Headline series'!H619","v":1.0843353969814529},1.5087085013944446,-0.030655444714050524,-0.041885904943998735,-1.3969817991979216E-3,2.8467492449319957E-3]
[1922,null,0.030725529491385555,0.028115553779780166,0.05530776092774316,0.0310754285709204,null,null,{"$f":"'II. Headline series'!E620","v":2.5804452746749353},{"$f":"'II. Headline series'!H620","v":3.6419247171025666},3.6617578057281586,-0.004921076744636203,-2.3111010330308136E-3,0.005343818600105268,0.005542149486361187]
[1923,null,0.03971607026679858,0.0388997513422958,0.1318681318681319,0.0391390008525934,null,null,{"$f":"'II. Headline series'!E621","v":3.9931836088319916},{"$f":"'II. Headline series'!H621","v":5.090517826972212},3.3292382752367398,2.1576582152133678E-4,1.03208474602412E-3,0.011766177417128716,-5.846618100225999E-3]
[1924,null,0.04294896578542122,0.0425254467113413,0.03061986557132185,0.041920792380802076,null,null,{"$f":"'II. Headline series'!E622","v":6.043616405908137},{"$f":"'II. Headline series'!H622","v":5.472716348565406},3.4266487134225785,0.017487198273660153,0.017910717347740072,0.012806371104851985,-0.007654305246576294]
[1925,null,0.04492747946356036,0.0475873180879862,0.02318840579710136,0.04675784988408734,null,null,{"$f":"'II. Headline series'!E623","v":4.224597329180463},{"$f":"'II. Headline series'!H623","v":3.9457630765826375},4.002943297644719,-0.002681506171755735,-0.00534134479618157,-0.007300219118260967,-6.7284169076401515E-3]
[1926,null,0.041414727288817885,0.04852754501991613,0.06515580736543915,0.04759930070393358,null,null,{"$f":"'II. Headline series'!E624","v":3.5909075961275705},{"$f":"'II. Headline series'!H624","v":3.3947724980167613},4.319130521881897,-0.005505651327542181,-0.012618469058640426,-0.01365157572376597,-4.407995485114613E-3]
[1927,null,0.0247866553204282,0.015043810958961049,0.009973404255319143,0.016052845406382747,null,null,{"$f":"'II. Headline series'!E625","v":4.681262236013559},{"$f":"'II. Headline series'!H625","v":4.485088604093154},4.118338837095831,0.022025967039707394,0.031768811401174546,0.028798040634548796,0.025130542964575567]
[1928,null,0.009213540010094322,-6.6738585474419257E-4,0.011191573403554894,7.1176792938294363E-4,null,null,{"$f":"'II. Headline series'!E626","v":5.901709059917758},{"$f":"'II. Headline series'!H626","v":5.811770059283928},3.8715325642806735,0.04980355058908326,0.059684476453921775,0.05740593266345634,0.03800355771342379]
[1929,null,-2.9425067194442656E-3,-0.023625214220664537,0.06119791666666679,-0.02146092190575574,null,null,{"$f":"'II. Headline series'!E627","v":7.221195683757686},{"$f":"'II. Headline series'!H627","v":7.71065301574468},2.9599400508476807,0.07515446355702113,0.0958371710582414,0.09856745206320254,0.05106032241423254]
[1930,null,-0.006266130670079755,-0.03599548144974184,-0.08895705521472397,-0.03377009486672485,null,null,{"$f":"'II. Headline series'!E628","v":7.417327836070906},{"$f":"'II. Headline series'!H628","v":7.437699127976089},2.5459587372269463,0.0804394090307888,0.11016875981045089,0.10814708614648574,0.059229682238994316]
[1931,null,-0.002290926430439872,-0.02561549986277976,-0.07676767676767678,-0.024158692776896116,null,null,{"$f":"'II. Headline series'!E629","v":6.985404990890076},{"$f":"'II. Headline series'!H629","v":6.8726936250044846},2.199911703426568,0.07214497633934064,0.09546954977168053,0.09288562902694096,0.0461578098111618]
[1932,null,1.0426958001880499E-3,-0.015395350289816543,-0.1320204230488694,-0.014829771276777903,null,null,{"$f":"'II. Headline series'!E630","v":6.812371001188659},{"$f":"'II. Headline series'!H630","v":6.191101626286268},2.446116376184968,0.06708101421169854,0.08351906030170314,0.07674078753964059,0.039290935038627586]
[1933,null,7.2229028293522195E-3,-2.4214307502919935E-3,-0.02100840336134465,-3.2699093138580104E-3,null,null,{"$f":"'II. Headline series'!E631","v":6.140281093903536},{"$f":"'II. Headline series'!H631","v":5.947604477617494},2.290507390074732,0.05417990810968314,0.06382424168932736,0.06274595409003295,0.02617498321460533]
[1934,null,0.02150824916197722,0.01709504979199735,0.07725321888412033,0.015548786750980323,null,null,{"$f":"'II. Headline series'!E632","v":4.419645181546278},{"$f":"'II. Headline series'!H632","v":4.548677092710042},2.96035653260328,0.02268820265348556,0.027101402023465428,0.0299379841761201,0.014054778575052477]
[1935,null,0.030111195475520956,0.023769861714638258,0.07649402390438235,0.020833275068408357,null,null,{"$f":"'II. Headline series'!E633","v":2.8670652176407745},{"$f":"'II. Headline series'!H633","v":3.407392462916094},3.1593395585506867,-1.4405432991132124E-3,0.004900790461769486,0.013240649560752587,0.010760120517098511]
[1936,null,0.05071024669030645,0.0547695749510363,0.14211695040710598,0.05106642843045212,null,null,{"$f":"'II. Headline series'!E634","v":1.130230136802208},{"$f":"'II. Headline series'!H634","v":1.789682091096134},3.6204981016762363,-0.03940794532228437,-0.04346727358301422,-0.03316960751949079,-0.014861447413689756]
[1937,null,0.05222291816818118,0.06936241320454761,0.04277381723914444,0.06511593312441603,null,null,{"$f":"'II. Headline series'!E635","v":-0.038228496184572816},{"$f":"'II. Headline series'!H635","v":1.560978243144739},3.796873151951426,-0.05260520313002691,-0.06974469816639334,-0.049506150692968647,-0.027147201604901777]
[1938,null,0.057008884034712846,0.08707487945641423,-0.03977625854568053,0.08007546612904567,null,null,{"$f":"'II. Headline series'!E636","v":-1.5527307965065396},{"$f":"'II. Headline series'!H636","v":0.22756017185432828},4.3126873253491125,-0.07253619199977825,-0.10260218742147963,-0.07779986441050239,-0.03694859287555455]
[1939,null,0.06282798425847735,0.1088071097868939,0.07961165048543696,0.09773262870821513,null,null,{"$f":"'II. Headline series'!E637","v":-2.548570678115404},{"$f":"'II. Headline series'!H637","v":-0.7377517478100213},4.526283384085898,-0.0883136910396314,-0.13429281656804792,-0.10511014618631534,-0.05246979486735615]
[1940,null,0.06530010404938276,0.12118983813509554,0.07733812949640274,0.10584471150888133,null,null,{"$f":"'II. Headline series'!E638","v":-3.149839527802636},{"$f":"'II. Headline series'!H638","v":-1.010509536286874},4.973407106435003,-0.09679849932740911,-0.1526882334131219,-0.11594980687175008,-0.056110640444531304]
[1941,null,0.06355540764591074,0.13191515894677058,0.18196994991652773,0.11170125669012547,null,null,{"$f":"'II. Headline series'!E639","v":-5.648953562199614},{"$f":"'II. Headline series'!H639","v":-1.0136106387968449},4.653964816756819,-0.12004494326790688,-0.1884046945687667,-0.12183736307809392,-0.06516160852255728]
[1942,null,0.05010204534049168,0.13689682803508746,0.20009416195856863,0.11164686436366297,null,null,{"$f":"'II. Headline series'!E640","v":-6.858696225010582},{"$f":"'II. Headline series'!H640","v":-1.8471776086559488},4.805405499591494,-0.1186890075905975,-0.20548379028519326,-0.13011864045022245,-0.06359280936774803]
[1943,null,0.025077152450908004,0.09087645550645405,0.19890153001176938,0.07079460008948854,null,null,{"$f":"'II. Headline series'!E641","v":-9.13134014625991},{"$f":"'II. Headline series'!H641","v":-4.5060159132085404},5.1947783773549805,-0.11639055391350711,-0.18218985696905315,-0.11585475922157396,-0.018846816315938736]
[1944,null,0.0240693302375095,0.07329945571577257,0.08376963350785337,0.057594662332882206,null,null,{"$f":"'II. Headline series'!E642","v":-10.110144903919334},{"$f":"'II. Headline series'!H642","v":-5.6235764257856635},5.412016312768358,-0.12517077927670284,-0.1744009047549659,-0.11383042659073883,-0.003474499205198621]
[1945,null,0.02075594434089409,0.04739077977006363,-0.04015700483091802,0.03700280688346736,null,null,{"$f":"'II. Headline series'!E643","v":-10.373879671471936},{"$f":"'II. Headline series'!H643","v":-4.625344279681178},5.515376423908212,-0.12449474105561345,-0.15112957648478298,-0.08325624968027914,0.018150957355614762]
[1946,null,0.012930859749596946,0.012525290472363794,-0.20635419943378402,0.008971851159147367,null,null,{"$f":"'II. Headline series'!E644","v":-9.094193675710553},{"$f":"'II. Headline series'!H644","v":-3.082923299510232},4.77472103214358,-0.10387279650670247,-0.10346722722946933,-0.03980108415424968,0.038775359162288435]
[1947,null,0.011140036865558181,-0.009145766669324448,-0.015061434799841638,-0.007027464693254952,null,null,{"$f":"'II. Headline series'!E645","v":-8.646905122312635},{"$f":"'II. Headline series'!H645","v":-3.4991552292493324},4.2775019771755,-0.09760908808868454,-0.07732328455380191,-0.027964087599238373,0.04980248446500995]
[1948,null,0.01715430441517635,-0.01531664402650558,0.03782696177062382,-0.00811598409941966,null,null,{"$f":"'II. Headline series'!E646","v":-6.571713214191999},{"$f":"'II. Headline series'!H646","v":-3.96931943286181},4.29725677872203,-0.08287143655709633,-0.05040048811541441,-0.03157721022919844,0.05108855188663996]
[1949,null,0.03669948218088672,-0.01060279002495822,0.003877471888328691,2.9511219377152814E-3,null,null,{"$f":"'II. Headline series'!E647","v":-5.378229184642066},{"$f":"'II. Headline series'!H647","v":-3.634680285704114},4.2580674814771875,-0.0904817740273074,-0.04317950182146245,-0.039297924794756425,0.03962955287705659]
[1950,null,0.056160028861105125,0.030615205213085632,0.08690631904495313,0.038998533766064714,null,null,{"$f":"'II. Headline series'!E648","v":-2.5317442808294754},{"$f":"'II. Headline series'!H648","v":-1.041422505496091},3.74943523604389,-0.08147747166939988,-0.055932648021380385,-0.049412758821025624,-0.001504181405625818]
[1951,null,0.055427379446815785,0.033145609089411096,0.07614999766470043,0.04021183142229955,null,null,{"$f":"'II. Headline series'!E649","v":-0.5305727615180731},{"$f":"'II. Headline series'!H649","v":0.37439231252067934},3.3067728807326633,-0.060733107061996514,-0.038451336704591825,-0.03646790829709276,-0.007144102614972919]
[1952,null,0.05660350183469239,0.039679727082667746,0.03731273742902659,0.04490151338944683,null,null,{"$f":"'II. Headline series'!E650","v":0.9756077620814251},{"$f":"'II. Headline series'!H650","v":0.8682381919845373},2.691190089005184,-0.04684742421387814,-0.029923649461853497,-0.03621913146960146,-0.017989612499394993]
[1953,null,0.055602810888869654,0.04354856890771674,0.045977683364661945,0.047138876609270165,null,null,{"$f":"'II. Headline series'!E651","v":0.6723825304966475},{"$f":"'II. Headline series'!H651","v":0.4011291314779414},2.5709133814454055,-0.048878985583903176,-0.03682474360275026,-0.043127585294490754,-0.02142974279481611]
[1954,null,0.04795675613721214,0.032785679178556196,-0.006568351206197757,0.03740560880700182,null,null,{"$f":"'II. Headline series'!E652","v":1.061464100065075},{"$f":"'II. Headline series'!H652","v":0.981650940791203},2.3221843844158094,-0.03734211513656139,-0.022171038177905444,-0.027589099399089788,-0.014183764962843726]
[1955,null,0.04011650202955185,0.019274615846122868,0.07065473554065481,0.02508368129337586,null,null,{"$f":"'II. Headline series'!E653","v":2.224807143190867},{"$f":"'II. Headline series'!H653","v":1.780141886465247},2.0958662805847443,-0.017868430597643183,2.9734555857858017E-3,-0.007282262428723388,-0.004125018487528415]
[1956,null,0.042288820332451696,0.02596666806393248,0.019539014427091918,0.030355493339969657,null,null,{"$f":"'II. Headline series'!E654","v":2.520425557893501},{"$f":"'II. Headline series'!H654","v":1.95080091145149},1.779530503192236,-0.017084564753516687,-7.6241248499746977E-4,-0.010847484225454757,-0.0125601883080473]
[1957,null,0.041858154587849215,0.022070812831153638,0.018773444429074755,0.02734004511609645,null,null,{"$f":"'II. Headline series'!E655","v":2.61130235120811},{"$f":"'II. Headline series'!H655","v":2.0420179761264756},1.8369848289431217,-0.015745131075768116,0.004042210680927461,-6.9198653548316925E-3,-0.008970196826665233]
[1958,null,0.04453818461817692,0.027125738510958303,-0.01010349493068124,0.031605574684538965,null,null,{"$f":"'II. Headline series'!E656","v":2.678797322524211},{"$f":"'II. Headline series'!H656","v":2.0613557813565997},1.9970199637774166,{"$f":"(I654/100)-C654","v":-0.017750211392934808},{"$f":"(I654/100)-D654","v":-3.3776528571619058E-4},{"$f":"(J654/100)-F654","v":-0.010992016870972968},{"$f":"(K654/100)-F654","v":-0.011635375046764797}]
[1959,null,0.043885137587779614,0.02533199416747969,0.07421542175518318,0.03012932258148428,null,null,{"$f":"'II. Headline series'!E657","v":2.6019146338961407},{"$f":"'II. Headline series'!H657","v":2.051526995909838},2.022757638806629,-0.017865991248818207,6.8715217148171762E-4,-0.009614052622385901,-0.009901746193417993]
[1960,null,0.04604559654983668,0.02923990876678591,0.0248695457975495,0.03351572756695081,null,null,{"$f":"'II. Headline series'!E658","v":2.645764156469795},{"$f":"'II. Headline series'!H658","v":2.321575250875611},2.0835768307596676,-0.019587954985138725,-0.002782267202087959,-0.010299975058194695,-0.012679959259354133]
[1961,null,0.05009180673066891,0.035383489985260703,0.023290355772899854,0.03910580936618839,null,null,{"$f":"'II. Headline series'!E659","v":2.874940738821889},{"$f":"'II. Headline series'!H659","v":2.7398148134798825},2.0585353628272935,-0.021342399342450018,-0.006634082597041811,-0.011707661231389565,-0.018520455737915456]
[1962,null,0.055239019612737285,0.04757392767060996,0.060320970819272,0.049664070684805585,null,null,{"$f":"'II. Headline series'!E660","v":2.8488795346485816},{"$f":"'II. Headline series'!H660","v":2.829455735937706},1.9941875463206262,-0.02675022426625147,-0.019085132324124142,-0.021369513325428524,-0.029722195221599322]
[1963,null,0.05416043058911475,0.04595765499034004,0.04324384932535758,0.04841979082717988,null,null,{"$f":"'II. Headline series'!E661","v":2.697764923778625},{"$f":"'II. Headline series'!H661","v":2.575310637276711},2.1626018535325158,-0.027182781351328504,-0.01898000575255379,-0.022666684454412767,-0.02679377229185472]
[1964,null,0.05324646075520269,0.046507136294008704,0.05790401702373784,0.04843898507990685,null,null,{"$f":"'II. Headline series'!E662","v":2.628083083603422},{"$f":"'II. Headline series'!H662","v":2.6011721429732155},2.1155918508437033,-0.026965629919168465,-0.02022630545797448,-0.022427263650174695,-0.027283066571469818]
[1965,null,0.05559233049096964,0.0507666878793589,0.06380433429963911,0.05191122286902879,null,null,{"$f":"'II. Headline series'!E663","v":2.509963411953216},{"$f":"'II. Headline series'!H663","v":2.3227974183729154},1.9908224857586345,-0.030492696371437485,-0.025667053759826745,-0.028683248685299638,-0.03200299801144245]
[1966,null,0.05446945229247767,0.04627607852321734,0.06550546275180322,0.04776850973104807,null,null,{"$f":"'II. Headline series'!E664","v":2.528965909574033},{"$f":"'II. Headline series'!H664","v":2.2036760233360257},1.9832955818850213,-0.02917979319673734,-0.020986419427477015,-0.025731749497687813,-0.027935553912197857]
[1967,null,0.05209623546131781,0.04023835421061015,0.025003905566638326,0.041840774958488196,null,null,{"$f":"'II. Headline series'!E665","v":2.45861090290622},{"$f":"'II. Headline series'!H665","v":1.9800253183241614},1.915546811490938,-0.027510126432255606,-0.01565224518154795,-0.022040521775246583,-0.022685306843578817]
[1968,null,0.04839289229238147,0.03670806206218045,0.04759602029675345,0.038028266437981004,null,null,{"$f":"'II. Headline series'!E666","v":2.3213955761008487},{"$f":"'II. Headline series'!H666","v":1.8921027651979185},1.9773035470311702,-0.025178936531372986,-0.013494106301171961,-0.019107238786001818,-0.018255230967669303]
[1969,null,0.048793870969788676,0.034983747300385545,0.03132197885340693,0.03648516688373217,null,null,{"$f":"'II. Headline series'!E667","v":2.28009490726485},{"$f":"'II. Headline series'!H667","v":1.931638606485586},2.1269561681620512,-0.025992921897140177,-0.012182798227737046,-0.017168780818876312,-0.015215605202111657]
[1970,null,0.04794433947332026,0.03337681366914707,1.749705917438454E-3,0.03524083493622104,null,null,{"$f":"'II. Headline series'!E668","v":1.5730891379437657},{"$f":"'II. Headline series'!H668","v":1.5049581984733227},2.724289973568008,-0.0322134480938826,-0.01764592228970941,-0.020191252951487812,-0.007997935200540957]
[1971,null,0.04280846998652215,0.029365166228940497,0.031216457380187548,0.031269031878594075,null,null,{"$f":"'II. Headline series'!E669","v":0.3880424197011162},{"$f":"'II. Headline series'!H669","v":0.4195083899232114},3.0877925603781398,-0.038928045789510986,-0.025484742031929335,-0.02707394797936196,-3.9110627481267826E-4]
[1972,null,0.03500760338957816,0.02262107698516868,0.05300263741989726,0.024068621239102687,null,null,{"$f":"'II. Headline series'!E670","v":0.02395154357494711},{"$f":"'II. Headline series'!H670","v":0.33141522232725595},3.3415547462124757,-0.034768087953828686,-0.02238156154941921,-0.020754469015830126,0.009346926223022071]
[1973,null,0.03390333170749545,0.026264988774682297,0.056795139119225325,0.027082056926075498,null,null,{"$f":"'II. Headline series'!E671","v":-0.27836697550238526},{"$f":"'II. Headline series'!H671","v":0.3688892557167827},3.29364747243188,-0.036687001462519304,-0.02904865852970615,-0.02339316436890767,5.854417798243302E-3]
[1974,null,0.03477604175629278,0.03331378922134516,-2.7987158367504357E-3,0.033303655503815824,null,null,{"$f":"'II. Headline series'!E672","v":-0.4430547410757409},{"$f":"'II. Headline series'!H672","v":0.3902122341958206},3.2518400585215335,-0.039206589167050186,-0.03774433663210257,-0.029401533161857618,-7.8525491860048646E-4]
[1975,null,0.03623145495279271,0.03751973489388051,-2.8068541796863037E-3,0.036994246725170855,null,null,{"$f":"'II. Headline series'!E673","v":-0.5493164961480128},{"$f":"'II. Headline series'!H673","v":0.03430056173182245},3.32418891500792,-0.041724619914272836,-0.04301289985536064,-0.03665124110785263,-3.7523575750916527E-3]
[1976,null,0.03323391526736173,0.03466015607520622,0.05241602866221663,0.0342814834335774,null,null,{"$f":"'II. Headline series'!E674","v":-1.004919399645734},{"$f":"'II. Headline series'!H674","v":-0.8182162719755368},3.2092549913492587,-0.04328310926381907,-0.04470935007166356,-0.042463646153332764,-2.1889335200848126E-3]
[1977,null,0.02706544370335023,0.02656725473901799,0.045300895961620714,0.02623245178785597,null,null,{"$f":"'II. Headline series'!E675","v":-0.6155416757155806},{"$f":"'II. Headline series'!H675","v":-0.572561258992506},2.451501494682266,-0.033220860460506034,-0.0327226714961738,-0.03195806437778103,-1.7174368410333048E-3]
[1978,null,0.028928762818725386,0.0317790261181183,0.05705059592967278,0.030197586602320883,null,null,{"$f":"'II. Headline series'!E676","v":0.5923177665387512},{"$f":"'II. Headline series'!H676","v":0.638969855223168},2.1596092176458668,-0.023005585153337872,-0.02585584845273079,-0.023807888050089203,-0.008601494425862215]
[1979,null,0.028602689968579637,0.029186956820185187,0.03401329437874308,0.027921036867349463,null,null,{"$f":"'II. Headline series'!E677","v":1.3803009430946476},{"$f":"'II. Headline series'!H677","v":1.4994781685093435},1.9214944598353536,-0.014799680537633161,-0.015383947389238711,-0.012926255182256029,-0.008706092268995928]
[1980,null,0.025947295309822652,0.027876567028076747,4.5191759917533904E-4,0.02641807377953964,null,null,{"$f":"'II. Headline series'!E678","v":2.286386087779237},{"$f":"'II. Headline series'!H678","v":2.3563831492043255},1.8229612172588257,-3.0834344320302826E-3,-0.005012706150284377,-2.8542422874963877E-3,-8.188461606951386E-3]
[1981,null,0.027203553909969213,0.03235948006347331,0.024957227864503925,0.03034964975754384,null,null,{"$f":"'II. Headline series'!E679","v":3.101911855288612},{"$f":"'II. Headline series'!H679","v":3.35794648886636},2.0396509399601093,0.003815564642916904,-1.3403615105871958E-3,0.003229815131119758,-0.009953140357942748]
[1982,null,0.025445669760277238,0.02960499223478043,-0.01874270232448622,0.027739232672985455,null,null,{"$f":"'II. Headline series'!E680","v":3.7428324484478344},{"$f":"'II. Headline series'!H680","v":4.352176739242965},1.97410091073487,0.011982654724201108,0.007823332249697914,0.015782534719444193,-0.007998223565636755]
[1983,null,0.025123419952680144,0.02956470101874212,0.04189528704754787,0.027798750865842225,null,null,{"$f":"'II. Headline series'!E681","v":4.747697897247539},{"$f":"'II. Headline series'!H681","v":5.594013006387931},1.8572450007939363,0.022353559019795244,0.017912277953733267,0.02814137919803709,-0.009226300857902863]
[1984,null,0.028658930661296038,0.034679845985330034,0.07282192780765008,0.03275605664164205,null,null,{"$f":"'II. Headline series'!E682","v":5.478014117723886},{"$f":"'II. Headline series'!H682","v":6.294122615253641},2.009616307318085,0.026121210515942822,0.020100295191908826,0.030185169510894352,-0.0126598935684612]
[1985,null,0.03210766649518989,0.03672880062387084,0.038777676337764126,0.03520506646228779,null,null,{"$f":"'II. Headline series'!E683","v":5.6990920043753075},{"$f":"'II. Headline series'!H683","v":6.466251834989728},null,0.02488325354856319,0.020262119419882235,0.02945745188760949]
[1986,null,0.036900732977269514,0.04461239692268414,0.034429921728740466,0.04282367906602201,null,null,{"$f":"'II. Headline series'!E684","v":5.494290148308543},{"$f":"'II. Headline series'!H684","v":6.0170358338422805},null,0.018042168505815914,0.010330504560401285,0.017346679272400793]
[1987,null,0.0355278599011767,0.04115440980315112,0.035153058029774115,0.039335316364237385,null,null,{"$f":"'II. Headline series'!E685","v":5.146864023627169},{"$f":"'II. Headline series'!H685","v":5.329851548127996},null,0.015940780335094995,0.010314230433120575,0.013963199117042573]
[1988,null,0.03052492703463897,0.029602822648743293,0.04210029660902409,0.028654771650600236,null,null,{"$f":"'II. Headline series'!E686","v":4.847272329142025},{"$f":"'II. Headline series'!H686","v":4.695094055299539},null,0.017947796256781282,0.01886990064267696,0.01829616890239516]
[1989,null,0.02903379955993421,0.02871427778021299,0.03458758590165332,0.027880863171908212,null,null,{"$f":"'II. Headline series'!E687","v":4.689323559427421},{"$f":"'II. Headline series'!H687","v":4.248712088787706},null,0.017859436034339995,0.018178957814061213,0.014606257715968855]
[1990,null,0.026285946772488803,0.028011080421307503,0.017476748135055523,0.026806538730919365,null,null,{"$f":"'II. Headline series'!E688","v":4.271676664737918},{"$f":"'II. Headline series'!H688","v":3.8441006602162777},null,0.016430819874890378,0.014705686226071678,0.011634467871243413]
[1991,null,0.02544516507923187,0.028767788667952935,-1.9418851878100004E-3,0.027587288776834168,null,null,{"$f":"'II. Headline series'!E689","v":4.264820045900778},{"$f":"'II. Headline series'!H689","v":3.7976879063436444},null,0.017203035379775904,0.013880411791054838,0.010389590286602274]
[1992,null,0.02268967383477686,0.026175330362900758,0.03336031698691996,0.025197899830170786,null,null,{"$f":"'II. Headline series'!E690","v":4.18229941354012},{"$f":"'II. Headline series'!H690","v":3.6577650492007874},null,0.01913332030062434,0.01564766377250044,0.01137975066183709]
[1993,null,0.021795376075800427,0.026950332019047916,0.026909650641818553,0.025607150122652692,null,null,{"$f":"'II. Headline series'!E691","v":4.127465414639643},{"$f":"'II. Headline series'!H691","v":3.6297981557767507},null,0.019479278070595997,0.014324322127348507,0.010690831435114814]
[1994,null,0.023790312064662998,0.03080817819008385,0.04061830835117772,0.029535604273825733,null,null,{"$f":"'II. Headline series'!E692","v":4.011100900131329},{"$f":"'II. Headline series'!H692","v":3.755971012919608},null,0.016320696936650295,0.009302830811229443,0.008024105855370348]
[1995,null,0.025304753869347562,0.03719466872200703,0.02537457398238043,0.03591291751233405,null,null,{"$f":"'II. Headline series'!E693","v":3.8542291651468514},{"$f":"'II. Headline series'!H693","v":3.7658652986338934},null,0.013237537782120955,1.3476229294614867E-3,1.7457354740048822E-3]
[1996,null,0.026572570992055764,0.03881025989683751,0.03745233794902667,0.03756052390215946,null,null,{"$f":"'II. Headline series'!E694","v":3.673044729425341},{"$f":"'II. Headline series'!H694","v":3.692403989584377},null,0.010157876302197649,-0.002079812602584094,-6.3648400631568375E-4]
[1997,null,0.029753412238028965,0.039700141051287274,0.044975927193266776,0.03899152249177591,null,null,{"$f":"'II. Headline series'!E695","v":3.603175304568014},{"$f":"'II. Headline series'!H695","v":3.6591138302218273},null,0.006278340807651175,-3.6683880056071344E-3,-0.002400384189557639]
[1998,null,0.027174560992565065,0.034600894347884506,0.04269930748174825,0.034272650867666656,null,null,{"$f":"'II. Headline series'!E696","v":3.2463185495291933},{"$f":"'II. Headline series'!H696","v":3.332610224647456},null,0.005288624502726866,-2.137708852592575E-3,-9.4654862119209621E-4]
[1999,null,0.02554924511277441,0.03345050277020058,0.04489356171569776,0.032951496195592775,null,null,{"$f":"'II. Headline series'!E697","v":3.004143668459964},{"$f":"'II. Headline series'!H697","v":3.2253116532188852},null,0.004492191571825229,-3.4090660856009383E-3,-0.000698379663403921]
[2000,null,0.02401836376918842,0.03158748086541674,0.036926640769133746,0.031205120184793704,null,null,{"$f":"'II. Headline series'!E698","v":2.7607782724558687},{"$f":"'II. Headline series'!H698","v":2.969457118071493},null,3.5894189553702695E-3,-0.003979698140858051,-1.5105490040787754E-3]
[2001,null,0.023393509852409268,0.030507607926571072,7.586206982412933E-3,0.02999441040994166,null,null,{"$f":"'II. Headline series'!E699","v":2.5177789090923284},{"$f":"'II. Headline series'!H699","v":2.6247942609286357},null,1.7842792385140173E-3,-0.005329818835647787,-3.7464678006553023E-3]
[2002,null,0.023313193338274304,0.02921195896066227,0.01612649127786325,0.028323083793948652,null,null,{"$f":"'II. Headline series'!E700","v":2.2667040156829477},{"$f":"'II. Headline series'!H700","v":2.22581997521435},null,-6.4615318144482792E-4,-0.006544918803832796,-0.006064884041805149]
[2003,null,0.022462956855700596,0.02639945237885217,0.025227705873433193,0.025766864021424852,null,null,{"$f":"'II. Headline series'!E701","v":2.0167753547985625},{"$f":"'II. Headline series'!H701","v":1.9572363383333027},null,-2.2952033077149707E-3,-6.231698830866543E-3,-6.1945006380918245E-3]
[2004,null,0.020349302795260125,0.024118419450119048,0.03650095876930245,0.023491618602422968,null,null,{"$f":"'II. Headline series'!E702","v":1.8519083600739978},{"$f":"'II. Headline series'!H702","v":1.828738119778949},null,-1.8302191945201475E-3,-5.599335849379071E-3,-0.00520423740463348]
[2005,null,0.0186310183809829,0.023874520336358267,0.03100002116979722,0.02297929745211669,null,null,{"$f":"'II. Headline series'!E703","v":1.571187178205354},{"$f":"'II. Headline series'!H703","v":1.492346328969835},null,-0.002919146598929362,-0.008162648554304729,-0.008055834162418339]
[2006,null,0.01695322389315507,0.01574859348660661,0.02700002330803117,0.014961227269564796,null,null,{"$f":"'II. Headline series'!E704","v":1.7050835448111836},{"$f":"'II. Headline series'!H704","v":1.5733563289698351},null,9.7611554956765489E-5,1.3022419615052253E-3,7.7233602013355475E-4]
[2007,null,0.014440678516429564,0.008957899584651024,0.020999922836120562,8.500126430502913E-3,null,null,{"$f":"'II. Headline series'!E705","v":1.6533302313819738},{"$f":"'II. Headline series'!H705","v":1.55323343767786},null,2.092623797390173E-3,7.5754027291687134E-3,0.007032207946275687]
[2008,null,0.010458721216554476,0.004809294743533922,0.003999958930268995,0.004714275177745421,null,null,{"$f":"'II. Headline series'!E706","v":1.4803151517817128},{"$f":"'II. Headline series'!H706","v":1.2729820091064314},null,0.004344430301262652,0.009993856774283206,0.008015544913318894]
[2009,null,7.198684202336901E-3,0.001470864982494492,-0.04,1.714272153488676E-3,null,null,{"$f":"'II. Headline series'!E707","v":1.3301813157611115},{"$f":"'II. Headline series'!H707","v":1.1025820091064313},null,6.103128955274215E-3,0.011830948175116623,0.009311547937575637]
[2010,null,3.7708290128179345E-3,-8.941837780765536E-4,-0.02,-7.1430260480149208E-4,null,null,{"$f":"'II. Headline series'!E708","v":1.2489640488450768},{"$f":"'II. Headline series'!H708","v":1.0041934376778598},null,0.008718811475632835,0.013383824266527324,0.01075623698158009]
[2018,null,1.0917906405849766E-3,-1.6234937085345391E-3,0.01,-1.5714344385330012E-3,null,null,{"$f":"'II. Headline series'!E709","v":1.0843831041475387},{"$f":"'II. Headline series'!H709","v":0.8847132441661925},null,0.009752040400890411,0.012467324750009926,0.010418566880194926]
[2018,null,1.447089776041213E-3,2.1428571428571547E-4,0.01,2.1428571428571547E-4,null,null,{"$f":"'II. Headline series'!E710","v":1.1783220704135555},{"$f":"'II. Headline series'!H710","v":1.1944338019351164},null,0.010336130928094343,0.01156893498984984,0.011730052305065448]
[2018,null,1.5376503462138798E-3,0.00842857142857143,0.01,0.00842857142857143,null,null,{"$f":"'II. Headline series'!E711","v":0.7585256281075025},{"$f":"'II. Headline series'!H711","v":0.7646295162208309},null,0.006047605934861144,-8.4331514749640471E-4,-0.000782276266363121]
[2018,null,3.8284363018442026E-3,0.013857142857142858,0.015,0.013857142857142858,null,null,{"$f":"'II. Headline series'!E712","v":0.4972089890534826},{"$f":"'II. Headline series'!H712","v":0.5668866932270916},null,1.1436535886906237E-3,-0.00888505296660803,-0.008188275924871941]
[2018,null,6.560564541235157E-3,0.015285714285714288,0.0165,0.016571428571428574,null,null,{"$f":"'II. Headline series'!E713","v":0.4192001126624198},{"$f":"'II. Headline series'!H713","v":0.6751738360842346},null,-2.368563414610959E-3,-0.01109371315909009,-9.819690210586228E-3]
[2018,null,0.007415688130228433,0.016166666666666666,0.0175,0.017666666666666667,null,null,{"$f":"'II. Headline series'!E714","v":0.44721164734096175},{"$f":"'II. Headline series'!H714","v":0.8326611420982735},null,-2.9435716568188153E-3,-0.011694550193257047,-0.009340055245683933]
[2018,null,0.008439373297022889,0.017400000000000002,0.018,0.019200000000000002,null,null,{"$f":"'II. Headline series'!E715","v":0.3109886609597011},{"$f":"'II. Headline series'!H715","v":0.8223553705179285},null,-5.329486687425878E-3,-0.014290113390402991,-0.010976446294820717]
[2018,null,0.010138799243105843,0.018000000000000002,0.029,0.02025,null,null,{"$f":"'II. Headline series'!E716","v":1.5318124771216974},{"$f":"'II. Headline series'!H716","v":1.563815985354736},null,5.1793255281111315E-3,-2.6818752287830275E-3,-0.004611840146452641]

{"sheet":"VII. Neg. rates freq., 1313- ","index":7,"n_rows":714,"n_cols":15,"rows_kept":714}
["back to contents"]
[null,"Italy","UK","Holland","Germany","France","United States","Spain","Japan",null,"Sum of GDP shares","Share of DM GDP with neg real rates (7-year centred avg)","All-time DM GDP share avg negative rates","Share of DM GDP with neg real rates (33-year centred avg)","Centennial share"]
[]
["Year"]
[null,"\"show GDP share if negative real rate observed\""]
[1310,{"$f":"IF('IV. Country level, 1310-2018'!C4<0,'III. GDP shares, 1310-2018'!C6,\"\")","v":""},{"$f":"IF('IV. Country level, 1310-2018'!D4<0,'III. GDP shares, 1310-2018'!D6,\"\")","v":""},{"$f":"IF('IV. Country level, 1310-2018'!E4<0,'III. GDP shares, 1310-2018'!E6,\"\")","v":""},{"$f":"IF('IV. Country level, 1310-2018'!F4<0,'III. GDP shares, 1310-2018'!F6,\"\")","v":""},{"$f":"IF('IV. Country level, 1310-2018'!G4<0,'III. GDP shares, 1310-2018'!G6,\"\")","v":""},{"$f":"IF('IV. Country level, 1310-2018'!H4<0,'III. GDP shares, 1310-2018'!H6,\"\")","v":""},{"$f":"IF('IV. Country level, 1310-2018'!I4<0,'III. GDP shares, 1310-2018'!I6,\"\")","v":""},{"$f":"IF('IV. Country level, 1310-2018'!J4<0,'III. GDP shares, 1310-2018'!J6,\"\")","v":""},null,{"$f":"SUM(B6:I6)","v":0}]
[1311,{"$f":"IF('IV. Country level, 1310-2018'!C5<0,'III. GDP shares, 1310-2018'!C7,\"\")","v":""},{"$f":"IF('IV. Country level, 1310-2018'!D5<0,'III. GDP shares, 1310-2018'!D7,\"\")","v":""},{"$f":"IF('IV. Country level, 1310-2018'!E5<0,'III. GDP shares, 1310-2018'!E7,\"\")","v":""},{"$f":"IF('IV. Country level, 1310-2018'!F5<0,'III. GDP shares, 1310-2018'!F7,\"\")","v":""},{"$f":"IF('IV. Country level, 1310-2018'!G5<0,'III. GDP shares, 1310-2018'!G7,\"\")","v":""},{"$f":"IF('IV. Country level, 1310-2018'!H5<0,'III. GDP shares, 1310-2018'!H7,\"\")","v":""},{"$f":"IF('IV. Country level, 1310-2018'!I5<0,'III. GDP shares, 1310-2018'!I7,\"\")","v":""},{"$f":"IF('IV. Country level, 1310-2018'!J5<0,'III. GDP shares, 1310-2018'!J7,\"\")","v":""},null,{"$f":"SUM(B7:I7)","v":0}]
[1312,{"$f":"IF('IV. Country level, 1310-2018'!C6<0,'III. GDP shares, 1310-2018'!C8,\"\")","v":""},{"$f":"IF('IV. Country level, 1310-2018'!D6<0,'III. GDP shares, 1310-2018'!D8,\"\")","v":""},{"$f":"IF('IV. Country level, 1310-2018'!E6<0,'III. GDP shares, 1310-2018'!E8,\"\")","v":""},{"$f":"IF('IV. Country level, 1310-2018'!F6<0,'III. GDP shares, 1310-2018'!F8,\"\")","v":""},{"$f":"IF('IV. Country level, 1310-2018'!G6<0,'III. GDP shares, 1310-2018'!G8,\"\")","v":""},{"$f":"IF('IV. Country level, 1310-2018'!H6<0,'III. GDP shares, 1310-2018'!H8,\"\")","v":""},{"$f":"IF('IV. Country level, 1310-2018'!I6<0,'III. GDP shares, 1310-2018'!I8,\"\")","v":""},{"$f":"IF('IV. Country level, 1310-2018'!J6<0,'III. GDP shares, 1310-2018'!J8,\"\")","v":""},null,0]
[1313,{"$f":"IF('IV. Country level, 1310-2018'!C7<0,'III. GDP shares, 1310-2018'!C9,\"\")","v":""},{"$f":"IF('IV. Country level, 1310-2018'!D7<0,'III. GDP shares, 1310-2018'!D9,\"\")","v":""},{"$f":"IF('IV. Country level, 1310-2018'!E7<0,'III. GDP shares, 1310-2018'!E9,\"\")","v":""},{"$f":"IF('IV. Country level, 1310-2018'!F7<0,'III. GDP shares, 1310-2018'!F9,\"\")","v":""},{"$f":"IF('IV. Country level, 1310-2018'!G7<0,'III. GDP shares, 1310-2018'!G9,\"\")","v":""},{"$f":"IF('IV. Country level, 1310-2018'!H7<0,'III. GDP shares, 1310-2018'!H9,\"\")","v":""},{"$f":"IF('IV. Country level, 1310-2018'!I7<0,'III. GDP shares, 1310-2018'!I9,\"\")","v":""},{"$f":"IF('IV. Country level, 1310-2018'!J7<0,'III. GDP shares, 1310-2018'!J9,\"\")","v":""},null,0,{"$f":"AVERAGE(K6:K12)","v":{"v":0.029065408194769108,"d":"2.91%"}},{"$f":"AVERAGE(L$9:L$714)","v":{"v":0.20250823357139602,"d":"20.25%"}},null,{"$f":"AVERAGE(L$9:L$96)","v":{"v":0.14796928483687888,"d":"14.80%"}}]
[1314,{"$f":"IF('IV. Country level, 1310-2018'!C8<0,'III. GDP shares, 1310-2018'!C10,\"\")","v":""},{"$f":"IF('IV. Country level, 1310-2018'!D8<0,'III. GDP shares, 1310-2018'!D10,\"\")","v":""},{"$f":"IF('IV. Country level, 1310-2018'!E8<0,'III. GDP shares, 1310-2018'!E10,\"\")","v":""},{"$f":"IF('IV. Country level, 1310-2018'!F8<0,'III. GDP shares, 1310-2018'!F10,\"\")","v":""},{"$f":"IF('IV. Country level, 1310-2018'!G8<0,'III. GDP shares, 1310-2018'!G10,\"\")","v":""},{"$f":"IF('IV. Country level, 1310-2018'!H8<0,'III. GDP shares, 1310-2018'!H10,\"\")","v":""},{"$f":"IF('IV. Country level, 1310-2018'!I8<0,'III. GDP shares, 1310-2018'!I10,\"\")","v":""},{"$f":"IF('IV. Country level, 1310-2018'!J8<0,'III. GDP shares, 1310-2018'!J10,\"\")","v":""},null,0,{"$f":"AVERAGE(K7:K13)","v":{"v":0.14285714285714285,"d":"14.29%"}},{"v":0.20250823357139602,"d":"20.25%"},null,{"$f":"AVERAGE(L$9:L$96)","v":{"v":0.14796928483687888,"d":"14.80%"}}]
[1315,{"$f":"IF('IV. Country level, 1310-2018'!C9<0,'III. GDP shares, 1310-2018'!C11,\"\")","v":""},{"$f":"IF('IV. Country level, 1310-2018'!D9<0,'III. GDP shares, 1310-2018'!D11,\"\")","v":""},{"$f":"IF('IV. Country level, 1310-2018'!E9<0,'III. GDP shares, 1310-2018'!E11,\"\")","v":""},{"$f":"IF('IV. Country level, 1310-2018'!F9<0,'III. GDP shares, 1310-2018'!F11,\"\")","v":""},{"$f":"IF('IV. Country level, 1310-2018'!G9<0,'III. GDP shares, 1310-2018'!G11,\"\")","v":""},{"$f":"IF('IV. Country level, 1310-2018'!H9<0,'III. GDP shares, 1310-2018'!H11,\"\")","v":""},{"$f":"IF('IV. Country level, 1310-2018'!I9<0,'III. GDP shares, 1310-2018'!I11,\"\")","v":""},{"$f":"IF('IV. Country level, 1310-2018'!J9<0,'III. GDP shares, 1310-2018'!J11,\"\")","v":""},null,0,{"v":0.14285714285714285,"d":"14.29%"},{"v":0.20250823357139602,"d":"20.25%"},null,{"v":0.14796928483687888,"d":"14.80%"}]
[1316,{"$f":"IF('IV. Country level, 1310-2018'!C10<0,'III. GDP shares, 1310-2018'!C12,\"\")","v":""},{"$f":"IF('IV. Country level, 1310-2018'!D10<0,'III. GDP shares, 1310-2018'!D12,\"\")","v":0.20345785736338376},{"$f":"IF('IV. Country level, 1310-2018'!E10<0,'III. GDP shares, 1310-2018'!E12,\"\")","v":""},{"$f":"IF('IV. Country level, 1310-2018'!F10<0,'III. GDP shares, 1310-2018'!F12,\"\")","v":""},{"$f":"IF('IV. Country level, 1310-2018'!G10<0,'III. GDP shares, 1310-2018'!G12,\"\")","v":""},{"$f":"IF('IV. Country level, 1310-2018'!H10<0,'III. GDP shares, 1310-2018'!H12,\"\")","v":""},{"$f":"IF('IV. Country level, 1310-2018'!I10<0,'III. GDP shares, 1310-2018'!I12,\"\")","v":""},{"$f":"IF('IV. Country level, 1310-2018'!J10<0,'III. GDP shares, 1310-2018'!J12,\"\")","v":""},null,0.20345785736338376,{"v":0.14285714285714285,"d":"14.29%"},{"v":0.20250823357139602,"d":"20.25%"},null,{"v":0.14796928483687888,"d":"14.80%"}]
[1317,{"$f":"IF('IV. Country level, 1310-2018'!C11<0,'III. GDP shares, 1310-2018'!C13,\"\")","v":0.7965421426366163},{"$f":"IF('IV. Country level, 1310-2018'!D11<0,'III. GDP shares, 1310-2018'!D13,\"\")","v":""},{"$f":"IF('IV. Country level, 1310-2018'!E11<0,'III. GDP shares, 1310-2018'!E13,\"\")","v":""},{"$f":"IF('IV. Country level, 1310-2018'!F11<0,'III. GDP shares, 1310-2018'!F13,\"\")","v":""},{"$f":"IF('IV. Country level, 1310-2018'!G11<0,'III. GDP shares, 1310-2018'!G13,\"\")","v":""},{"$f":"IF('IV. Country level, 1310-2018'!H11<0,'III. GDP shares, 1310-2018'!H13,\"\")","v":""},{"$f":"IF('IV. Country level, 1310-2018'!I11<0,'III. GDP shares, 1310-2018'!I13,\"\")","v":""},{"$f":"IF('IV. Country level, 1310-2018'!J11<0,'III. GDP shares, 1310-2018'!J13,\"\")","v":""},null,0.7965421426366163,{"v":0.14285714285714285,"d":"14.29%"},{"v":0.20250823357139602,"d":"20.25%"},null,{"v":0.14796928483687888,"d":"14.80%"}]
[1318,{"$f":"IF('IV. Country level, 1310-2018'!C12<0,'III. GDP shares, 1310-2018'!C14,\"\")","v":""},{"$f":"IF('IV. Country level, 1310-2018'!D12<0,'III. GDP shares, 1310-2018'!D14,\"\")","v":""},{"$f":"IF('IV. Country level, 1310-2018'!E12<0,'III. GDP shares, 1310-2018'!E14,\"\")","v":""},{"$f":"IF('IV. Country level, 1310-2018'!F12<0,'III. GDP shares, 1310-2018'!F14,\"\")","v":""},{"$f":"IF('IV. Country level, 1310-2018'!G12<0,'III. GDP shares, 1310-2018'!G14,\"\")","v":""},{"$f":"IF('IV. Country level, 1310-2018'!H12<0,'III. GDP shares, 1310-2018'!H14,\"\")","v":""},{"$f":"IF('IV. Country level, 1310-2018'!I12<0,'III. GDP shares, 1310-2018'!I14,\"\")","v":""},{"$f":"IF('IV. Country level, 1310-2018'!J12<0,'III. GDP shares, 1310-2018'!J14,\"\")","v":""},null,0,{"v":0.14285714285714285,"d":"14.29%"},{"v":0.20250823357139602,"d":"20.25%"},null,{"v":0.14796928483687888,"d":"14.80%"}]
[1319,{"$f":"IF('IV. Country level, 1310-2018'!C13<0,'III. GDP shares, 1310-2018'!C15,\"\")","v":""},{"$f":"IF('IV. Country level, 1310-2018'!D13<0,'III. GDP shares, 1310-2018'!D15,\"\")","v":""},{"$f":"IF('IV. Country level, 1310-2018'!E13<0,'III. GDP shares, 1310-2018'!E15,\"\")","v":""},{"$f":"IF('IV. Country level, 1310-2018'!F13<0,'III. GDP shares, 1310-2018'!F15,\"\")","v":""},{"$f":"IF('IV. Country level, 1310-2018'!G13<0,'III. GDP shares, 1310-2018'!G15,\"\")","v":""},{"$f":"IF('IV. Country level, 1310-2018'!H13<0,'III. GDP shares, 1310-2018'!H15,\"\")","v":""},{"$f":"IF('IV. Country level, 1310-2018'!I13<0,'III. GDP shares, 1310-2018'!I15,\"\")","v":""},{"$f":"IF('IV. Country level, 1310-2018'!J13<0,'III. GDP shares, 1310-2018'!J15,\"\")","v":""},null,0,{"v":0.2857142857142857,"d":"28.57%"},{"v":0.20250823357139602,"d":"20.25%"},null,{"v":0.14796928483687888,"d":"14.80%"}]
[1320,{"$f":"IF('IV. Country level, 1310-2018'!C14<0,'III. GDP shares, 1310-2018'!C16,\"\")","v":""},{"$f":"IF('IV. Country level, 1310-2018'!D14<0,'III. GDP shares, 1310-2018'!D16,\"\")","v":""},{"$f":"IF('IV. Country level, 1310-2018'!E14<0,'III. GDP shares, 1310-2018'!E16,\"\")","v":""},{"$f":"IF('IV. Country level, 1310-2018'!F14<0,'III. GDP shares, 1310-2018'!F16,\"\")","v":""},{"$f":"IF('IV. Country level, 1310-2018'!G14<0,'III. GDP shares, 1310-2018'!G16,\"\")","v":""},{"$f":"IF('IV. Country level, 1310-2018'!H14<0,'III. GDP shares, 1310-2018'!H16,\"\")","v":""},{"$f":"IF('IV. Country level, 1310-2018'!I14<0,'III. GDP shares, 1310-2018'!I16,\"\")","v":""},{"$f":"IF('IV. Country level, 1310-2018'!J14<0,'III. GDP shares, 1310-2018'!J16,\"\")","v":""},null,0,{"v":0.3704406121818904,"d":"37.04%"},{"v":0.20250823357139602,"d":"20.25%"},null,{"v":0.14796928483687888,"d":"14.80%"}]
[1321,{"$f":"IF('IV. Country level, 1310-2018'!C15<0,'III. GDP shares, 1310-2018'!C17,\"\")","v":""},{"$f":"IF('IV. Country level, 1310-2018'!D15<0,'III. GDP shares, 1310-2018'!D17,\"\")","v":""},{"$f":"IF('IV. Country level, 1310-2018'!E15<0,'III. GDP shares, 1310-2018'!E17,\"\")","v":""},{"$f":"IF('IV. Country level, 1310-2018'!F15<0,'III. GDP shares, 1310-2018'!F17,\"\")","v":""},{"$f":"IF('IV. Country level, 1310-2018'!G15<0,'III. GDP shares, 1310-2018'!G17,\"\")","v":""},{"$f":"IF('IV. Country level, 1310-2018'!H15<0,'III. GDP shares, 1310-2018'!H17,\"\")","v":""},{"$f":"IF('IV. Country level, 1310-2018'!I15<0,'III. GDP shares, 1310-2018'!I17,\"\")","v":""},{"$f":"IF('IV. Country level, 1310-2018'!J15<0,'III. GDP shares, 1310-2018'!J17,\"\")","v":""},null,0,{"v":0.25664887751951665,"d":"25.66%"},{"v":0.20250823357139602,"d":"20.25%"},null,{"v":0.14796928483687888,"d":"14.80%"}]
[1322,{"$f":"IF('IV. Country level, 1310-2018'!C16<0,'III. GDP shares, 1310-2018'!C18,\"\")","v":0.7965421426366163},{"$f":"IF('IV. Country level, 1310-2018'!D16<0,'III. GDP shares, 1310-2018'!D18,\"\")","v":0.20345785736338376},{"$f":"IF('IV. Country level, 1310-2018'!E16<0,'III. GDP shares, 1310-2018'!E18,\"\")","v":""},{"$f":"IF('IV. Country level, 1310-2018'!F16<0,'III. GDP shares, 1310-2018'!F18,\"\")","v":""},{"$f":"IF('IV. Country level, 1310-2018'!G16<0,'III. GDP shares, 1310-2018'!G18,\"\")","v":""},{"$f":"IF('IV. Country level, 1310-2018'!H16<0,'III. GDP shares, 1310-2018'!H18,\"\")","v":""},{"$f":"IF('IV. Country level, 1310-2018'!I16<0,'III. GDP shares, 1310-2018'!I18,\"\")","v":""},{"$f":"IF('IV. Country level, 1310-2018'!J16<0,'III. GDP shares, 1310-2018'!J18,\"\")","v":""},null,1,{"v":0.25664887751951665,"d":"25.66%"},{"v":0.20250823357139602,"d":"20.25%"},null,{"v":0.14796928483687888,"d":"14.80%"}]
[1323,{"$f":"IF('IV. Country level, 1310-2018'!C17<0,'III. GDP shares, 1310-2018'!C19,\"\")","v":0.7965421426366163},{"$f":"IF('IV. Country level, 1310-2018'!D17<0,'III. GDP shares, 1310-2018'!D19,\"\")","v":""},{"$f":"IF('IV. Country level, 1310-2018'!E17<0,'III. GDP shares, 1310-2018'!E19,\"\")","v":""},{"$f":"IF('IV. Country level, 1310-2018'!F17<0,'III. GDP shares, 1310-2018'!F19,\"\")","v":""},{"$f":"IF('IV. Country level, 1310-2018'!G17<0,'III. GDP shares, 1310-2018'!G19,\"\")","v":""},{"$f":"IF('IV. Country level, 1310-2018'!H17<0,'III. GDP shares, 1310-2018'!H19,\"\")","v":""},{"$f":"IF('IV. Country level, 1310-2018'!I17<0,'III. GDP shares, 1310-2018'!I19,\"\")","v":""},{"$f":"IF('IV. Country level, 1310-2018'!J17<0,'III. GDP shares, 1310-2018'!J19,\"\")","v":""},null,0.7965421426366163,{"v":0.25664887751951665,"d":"25.66%"},{"v":0.20250823357139602,"d":"20.25%"},null,{"v":0.14796928483687888,"d":"14.80%"}]
[1324,{"$f":"IF('IV. Country level, 1310-2018'!C18<0,'III. GDP shares, 1310-2018'!C20,\"\")","v":""},{"$f":"IF('IV. Country level, 1310-2018'!D18<0,'III. GDP shares, 1310-2018'!D20,\"\")","v":""},{"$f":"IF('IV. Country level, 1310-2018'!E18<0,'III. GDP shares, 1310-2018'!E20,\"\")","v":""},{"$f":"IF('IV. Country level, 1310-2018'!F18<0,'III. GDP shares, 1310-2018'!F20,\"\")","v":""},{"$f":"IF('IV. Country level, 1310-2018'!G18<0,'III. GDP shares, 1310-2018'!G20,\"\")","v":""},{"$f":"IF('IV. Country level, 1310-2018'!H18<0,'III. GDP shares, 1310-2018'!H20,\"\")","v":""},{"$f":"IF('IV. Country level, 1310-2018'!I18<0,'III. GDP shares, 1310-2018'!I20,\"\")","v":""},{"$f":"IF('IV. Country level, 1310-2018'!J18<0,'III. GDP shares, 1310-2018'!J20,\"\")","v":""},null,0,{"v":0.3289799713242129,"d":"32.90%"},{"v":0.20250823357139602,"d":"20.25%"},null,{"v":0.14796928483687888,"d":"14.80%"}]
[1325,{"$f":"IF('IV. Country level, 1310-2018'!C19<0,'III. GDP shares, 1310-2018'!C21,\"\")","v":""},{"$f":"IF('IV. Country level, 1310-2018'!D19<0,'III. GDP shares, 1310-2018'!D21,\"\")","v":""},{"$f":"IF('IV. Country level, 1310-2018'!E19<0,'III. GDP shares, 1310-2018'!E21,\"\")","v":""},{"$f":"IF('IV. Country level, 1310-2018'!F19<0,'III. GDP shares, 1310-2018'!F21,\"\")","v":""},{"$f":"IF('IV. Country level, 1310-2018'!G19<0,'III. GDP shares, 1310-2018'!G21,\"\")","v":""},{"$f":"IF('IV. Country level, 1310-2018'!H19<0,'III. GDP shares, 1310-2018'!H21,\"\")","v":""},{"$f":"IF('IV. Country level, 1310-2018'!I19<0,'III. GDP shares, 1310-2018'!I21,\"\")","v":""},{"$f":"IF('IV. Country level, 1310-2018'!J19<0,'III. GDP shares, 1310-2018'!J21,\"\")","v":""},null,0,{"v":0.40127740339837537,"d":"40.13%"},{"v":0.20250823357139602,"d":"20.25%"},null,{"v":0.14796928483687888,"d":"14.80%"}]
[1326,{"$f":"IF('IV. Country level, 1310-2018'!C20<0,'III. GDP shares, 1310-2018'!C22,\"\")","v":""},{"$f":"IF('IV. Country level, 1310-2018'!D20<0,'III. GDP shares, 1310-2018'!D22,\"\")","v":""},{"$f":"IF('IV. Country level, 1310-2018'!E20<0,'III. GDP shares, 1310-2018'!E22,\"\")","v":""},{"$f":"IF('IV. Country level, 1310-2018'!F20<0,'III. GDP shares, 1310-2018'!F22,\"\")","v":""},{"$f":"IF('IV. Country level, 1310-2018'!G20<0,'III. GDP shares, 1310-2018'!G22,\"\")","v":""},{"$f":"IF('IV. Country level, 1310-2018'!H20<0,'III. GDP shares, 1310-2018'!H22,\"\")","v":""},{"$f":"IF('IV. Country level, 1310-2018'!I20<0,'III. GDP shares, 1310-2018'!I22,\"\")","v":""},{"$f":"IF('IV. Country level, 1310-2018'!J20<0,'III. GDP shares, 1310-2018'!J22,\"\")","v":""},null,0,{"v":0.3306840622015454,"d":"33.07%"},{"v":0.20250823357139602,"d":"20.25%"},{"$f":"AVERAGE(K6:K38)","v":{"v":0.1610948966384792,"d":"16.11%"}},{"v":0.14796928483687888,"d":"14.80%"}]
[1327,{"$f":"IF('IV. Country level, 1310-2018'!C21<0,'III. GDP shares, 1310-2018'!C23,\"\")","v":0.5063176566328741},{"$f":"IF('IV. Country level, 1310-2018'!D21<0,'III. GDP shares, 1310-2018'!D23,\"\")","v":""},{"$f":"IF('IV. Country level, 1310-2018'!E21<0,'III. GDP shares, 1310-2018'!E23,\"\")","v":""},{"$f":"IF('IV. Country level, 1310-2018'!F21<0,'III. GDP shares, 1310-2018'!F23,\"\")","v":""},{"$f":"IF('IV. Country level, 1310-2018'!G21<0,'III. GDP shares, 1310-2018'!G23,\"\")","v":""},{"$f":"IF('IV. Country level, 1310-2018'!H21<0,'III. GDP shares, 1310-2018'!H23,\"\")","v":""},{"$f":"IF('IV. Country level, 1310-2018'!I21<0,'III. GDP shares, 1310-2018'!I23,\"\")","v":""},{"$f":"IF('IV. Country level, 1310-2018'!J21<0,'III. GDP shares, 1310-2018'!J23,\"\")","v":""},null,0.5063176566328741,{"v":0.21689232753917162,"d":"21.69%"},{"v":0.20250823357139602,"d":"20.25%"},{"$f":"AVERAGE(K7:K39)","v":{"v":0.1610948966384792,"d":"16.11%"}},{"v":0.14796928483687888,"d":"14.80%"}]
[1328,{"$f":"IF('IV. Country level, 1310-2018'!C22<0,'III. GDP shares, 1310-2018'!C24,\"\")","v":0.506082024519137},{"$f":"IF('IV. Country level, 1310-2018'!D22<0,'III. GDP shares, 1310-2018'!D24,\"\")","v":""},{"$f":"IF('IV. Country level, 1310-2018'!E22<0,'III. GDP shares, 1310-2018'!E24,\"\")","v":""},{"$f":"IF('IV. Country level, 1310-2018'!F22<0,'III. GDP shares, 1310-2018'!F24,\"\")","v":""},{"$f":"IF('IV. Country level, 1310-2018'!G22<0,'III. GDP shares, 1310-2018'!G24,\"\")","v":""},{"$f":"IF('IV. Country level, 1310-2018'!H22<0,'III. GDP shares, 1310-2018'!H24,\"\")","v":""},{"$f":"IF('IV. Country level, 1310-2018'!I22<0,'III. GDP shares, 1310-2018'!I24,\"\")","v":""},{"$f":"IF('IV. Country level, 1310-2018'!J22<0,'III. GDP shares, 1310-2018'!J24,\"\")","v":""},null,0.506082024519137,{"v":0.21689232753917162,"d":"21.69%"},{"v":0.20250823357139602,"d":"20.25%"},{"v":0.1610948966384792,"d":"16.11%"},{"v":0.14796928483687888,"d":"14.80%"}]
[1329,{"$f":"IF('IV. Country level, 1310-2018'!C23<0,'III. GDP shares, 1310-2018'!C25,\"\")","v":0.5058466116221901},{"$f":"IF('IV. Country level, 1310-2018'!D23<0,'III. GDP shares, 1310-2018'!D25,\"\")","v":""},{"$f":"IF('IV. Country level, 1310-2018'!E23<0,'III. GDP shares, 1310-2018'!E25,\"\")","v":""},{"$f":"IF('IV. Country level, 1310-2018'!F23<0,'III. GDP shares, 1310-2018'!F25,\"\")","v":""},{"$f":"IF('IV. Country level, 1310-2018'!G23<0,'III. GDP shares, 1310-2018'!G25,\"\")","v":""},{"$f":"IF('IV. Country level, 1310-2018'!H23<0,'III. GDP shares, 1310-2018'!H25,\"\")","v":""},{"$f":"IF('IV. Country level, 1310-2018'!I23<0,'III. GDP shares, 1310-2018'!I25,\"\")","v":""},{"$f":"IF('IV. Country level, 1310-2018'!J23<0,'III. GDP shares, 1310-2018'!J25,\"\")","v":""},null,0.5058466116221901,{"v":0.21689232753917162,"d":"21.69%"},{"v":0.20250823357139602,"d":"20.25%"},{"v":0.1610948966384792,"d":"16.11%"},{"v":0.14796928483687888,"d":"14.80%"}]
[1330,{"$f":"IF('IV. Country level, 1310-2018'!C24<0,'III. GDP shares, 1310-2018'!C26,\"\")","v":""},{"$f":"IF('IV. Country level, 1310-2018'!D24<0,'III. GDP shares, 1310-2018'!D26,\"\")","v":""},{"$f":"IF('IV. Country level, 1310-2018'!E24<0,'III. GDP shares, 1310-2018'!E26,\"\")","v":""},{"$f":"IF('IV. Country level, 1310-2018'!F24<0,'III. GDP shares, 1310-2018'!F26,\"\")","v":""},{"$f":"IF('IV. Country level, 1310-2018'!G24<0,'III. GDP shares, 1310-2018'!G26,\"\")","v":""},{"$f":"IF('IV. Country level, 1310-2018'!H24<0,'III. GDP shares, 1310-2018'!H26,\"\")","v":""},{"$f":"IF('IV. Country level, 1310-2018'!I24<0,'III. GDP shares, 1310-2018'!I26,\"\")","v":""},{"$f":"IF('IV. Country level, 1310-2018'!J24<0,'III. GDP shares, 1310-2018'!J26,\"\")","v":""},null,0,{"v":0.2890219198385026,"d":"28.90%"},{"v":0.20250823357139602,"d":"20.25%"},{"v":0.1610948966384792,"d":"16.11%"},{"v":0.14796928483687888,"d":"14.80%"}]
[1331,{"$f":"IF('IV. Country level, 1310-2018'!C25<0,'III. GDP shares, 1310-2018'!C27,\"\")","v":""},{"$f":"IF('IV. Country level, 1310-2018'!D25<0,'III. GDP shares, 1310-2018'!D27,\"\")","v":""},{"$f":"IF('IV. Country level, 1310-2018'!E25<0,'III. GDP shares, 1310-2018'!E27,\"\")","v":""},{"$f":"IF('IV. Country level, 1310-2018'!F25<0,'III. GDP shares, 1310-2018'!F27,\"\")","v":""},{"$f":"IF('IV. Country level, 1310-2018'!G25<0,'III. GDP shares, 1310-2018'!G27,\"\")","v":""},{"$f":"IF('IV. Country level, 1310-2018'!H25<0,'III. GDP shares, 1310-2018'!H27,\"\")","v":""},{"$f":"IF('IV. Country level, 1310-2018'!I25<0,'III. GDP shares, 1310-2018'!I27,\"\")","v":""},{"$f":"IF('IV. Country level, 1310-2018'!J25<0,'III. GDP shares, 1310-2018'!J27,\"\")","v":""},null,0,{"v":0.2166908260338063,"d":"21.67%"},{"v":0.20250823357139602,"d":"20.25%"},{"v":0.17629630026569337,"d":"17.63%"},{"v":0.14796928483687888,"d":"14.80%"}]
[1332,{"$f":"IF('IV. Country level, 1310-2018'!C26<0,'III. GDP shares, 1310-2018'!C28,\"\")","v":""},{"$f":"IF('IV. Country level, 1310-2018'!D26<0,'III. GDP shares, 1310-2018'!D28,\"\")","v":""},{"$f":"IF('IV. Country level, 1310-2018'!E26<0,'III. GDP shares, 1310-2018'!E28,\"\")","v":""},{"$f":"IF('IV. Country level, 1310-2018'!F26<0,'III. GDP shares, 1310-2018'!F28,\"\")","v":""},{"$f":"IF('IV. Country level, 1310-2018'!G26<0,'III. GDP shares, 1310-2018'!G28,\"\")","v":""},{"$f":"IF('IV. Country level, 1310-2018'!H26<0,'III. GDP shares, 1310-2018'!H28,\"\")","v":""},{"$f":"IF('IV. Country level, 1310-2018'!I26<0,'III. GDP shares, 1310-2018'!I28,\"\")","v":""},{"$f":"IF('IV. Country level, 1310-2018'!J26<0,'III. GDP shares, 1310-2018'!J28,\"\")","v":""},null,0,{"v":0.14439339395964387,"d":"14.44%"},{"v":0.20250823357139602,"d":"20.25%"},{"v":0.17629630026569337,"d":"17.63%"},{"v":0.14796928483687888,"d":"14.80%"}]
[1333,{"$f":"IF('IV. Country level, 1310-2018'!C27<0,'III. GDP shares, 1310-2018'!C29,\"\")","v":0.504907146095317},{"$f":"IF('IV. Country level, 1310-2018'!D27<0,'III. GDP shares, 1310-2018'!D29,\"\")","v":""},{"$f":"IF('IV. Country level, 1310-2018'!E27<0,'III. GDP shares, 1310-2018'!E29,\"\")","v":""},{"$f":"IF('IV. Country level, 1310-2018'!F27<0,'III. GDP shares, 1310-2018'!F29,\"\")","v":""},{"$f":"IF('IV. Country level, 1310-2018'!G27<0,'III. GDP shares, 1310-2018'!G29,\"\")","v":""},{"$f":"IF('IV. Country level, 1310-2018'!H27<0,'III. GDP shares, 1310-2018'!H29,\"\")","v":""},{"$f":"IF('IV. Country level, 1310-2018'!I27<0,'III. GDP shares, 1310-2018'!I29,\"\")","v":""},{"$f":"IF('IV. Country level, 1310-2018'!J27<0,'III. GDP shares, 1310-2018'!J29,\"\")","v":""},null,0.504907146095317,{"v":0.072129592299331,"d":"7.21%"},{"v":0.20250823357139602,"d":"20.25%"},{"v":0.18531830223767232,"d":"18.53%"},{"v":0.14796928483687888,"d":"14.80%"}]
[1334,{"$f":"IF('IV. Country level, 1310-2018'!C28<0,'III. GDP shares, 1310-2018'!C30,\"\")","v":""},{"$f":"IF('IV. Country level, 1310-2018'!D28<0,'III. GDP shares, 1310-2018'!D30,\"\")","v":""},{"$f":"IF('IV. Country level, 1310-2018'!E28<0,'III. GDP shares, 1310-2018'!E30,\"\")","v":""},{"$f":"IF('IV. Country level, 1310-2018'!F28<0,'III. GDP shares, 1310-2018'!F30,\"\")","v":""},{"$f":"IF('IV. Country level, 1310-2018'!G28<0,'III. GDP shares, 1310-2018'!G30,\"\")","v":""},{"$f":"IF('IV. Country level, 1310-2018'!H28<0,'III. GDP shares, 1310-2018'!H30,\"\")","v":""},{"$f":"IF('IV. Country level, 1310-2018'!I28<0,'III. GDP shares, 1310-2018'!I30,\"\")","v":""},{"$f":"IF('IV. Country level, 1310-2018'!J28<0,'III. GDP shares, 1310-2018'!J30,\"\")","v":""},null,0,{"v":0.072129592299331,"d":"7.21%"},{"v":0.20250823357139602,"d":"20.25%"},{"v":0.17636105680401848,"d":"17.64%"},{"v":0.14796928483687888,"d":"14.80%"}]
[1335,{"$f":"IF('IV. Country level, 1310-2018'!C29<0,'III. GDP shares, 1310-2018'!C31,\"\")","v":""},{"$f":"IF('IV. Country level, 1310-2018'!D29<0,'III. GDP shares, 1310-2018'!D31,\"\")","v":""},{"$f":"IF('IV. Country level, 1310-2018'!E29<0,'III. GDP shares, 1310-2018'!E31,\"\")","v":""},{"$f":"IF('IV. Country level, 1310-2018'!F29<0,'III. GDP shares, 1310-2018'!F31,\"\")","v":""},{"$f":"IF('IV. Country level, 1310-2018'!G29<0,'III. GDP shares, 1310-2018'!G31,\"\")","v":""},{"$f":"IF('IV. Country level, 1310-2018'!H29<0,'III. GDP shares, 1310-2018'!H31,\"\")","v":""},{"$f":"IF('IV. Country level, 1310-2018'!I29<0,'III. GDP shares, 1310-2018'!I31,\"\")","v":""},{"$f":"IF('IV. Country level, 1310-2018'!J29<0,'III. GDP shares, 1310-2018'!J31,\"\")","v":""},null,0,{"v":0.072129592299331,"d":"7.21%"},{"v":0.20250823357139602,"d":"20.25%"},{"v":0.19153446216257672,"d":"19.15%"},{"v":0.14796928483687888,"d":"14.80%"}]
[1336,{"$f":"IF('IV. Country level, 1310-2018'!C30<0,'III. GDP shares, 1310-2018'!C32,\"\")","v":""},{"$f":"IF('IV. Country level, 1310-2018'!D30<0,'III. GDP shares, 1310-2018'!D32,\"\")","v":""},{"$f":"IF('IV. Country level, 1310-2018'!E30<0,'III. GDP shares, 1310-2018'!E32,\"\")","v":""},{"$f":"IF('IV. Country level, 1310-2018'!F30<0,'III. GDP shares, 1310-2018'!F32,\"\")","v":""},{"$f":"IF('IV. Country level, 1310-2018'!G30<0,'III. GDP shares, 1310-2018'!G32,\"\")","v":""},{"$f":"IF('IV. Country level, 1310-2018'!H30<0,'III. GDP shares, 1310-2018'!H32,\"\")","v":""},{"$f":"IF('IV. Country level, 1310-2018'!I30<0,'III. GDP shares, 1310-2018'!I32,\"\")","v":""},{"$f":"IF('IV. Country level, 1310-2018'!J30<0,'III. GDP shares, 1310-2018'!J32,\"\")","v":""},null,0,{"v":0.1246849086500589,"d":"12.47%"},{"v":0.20250823357139602,"d":"20.25%"},{"v":0.19153446216257672,"d":"19.15%"},{"v":0.14796928483687888,"d":"14.80%"}]
[1337,{"$f":"IF('IV. Country level, 1310-2018'!C31<0,'III. GDP shares, 1310-2018'!C33,\"\")","v":""},{"$f":"IF('IV. Country level, 1310-2018'!D31<0,'III. GDP shares, 1310-2018'!D33,\"\")","v":""},{"$f":"IF('IV. Country level, 1310-2018'!E31<0,'III. GDP shares, 1310-2018'!E33,\"\")","v":""},{"$f":"IF('IV. Country level, 1310-2018'!F31<0,'III. GDP shares, 1310-2018'!F33,\"\")","v":""},{"$f":"IF('IV. Country level, 1310-2018'!G31<0,'III. GDP shares, 1310-2018'!G33,\"\")","v":""},{"$f":"IF('IV. Country level, 1310-2018'!H31<0,'III. GDP shares, 1310-2018'!H33,\"\")","v":""},{"$f":"IF('IV. Country level, 1310-2018'!I31<0,'III. GDP shares, 1310-2018'!I33,\"\")","v":""},{"$f":"IF('IV. Country level, 1310-2018'!J31<0,'III. GDP shares, 1310-2018'!J33,\"\")","v":""},null,0,{"v":0.07091942965195418,"d":"7.09%"},{"v":0.20250823357139602,"d":"20.25%"},{"v":0.20669390702707796,"d":"20.67%"},{"v":0.14796928483687888,"d":"14.80%"}]
[1338,{"$f":"IF('IV. Country level, 1310-2018'!C32<0,'III. GDP shares, 1310-2018'!C34,\"\")","v":""},{"$f":"IF('IV. Country level, 1310-2018'!D32<0,'III. GDP shares, 1310-2018'!D34,\"\")","v":""},{"$f":"IF('IV. Country level, 1310-2018'!E32<0,'III. GDP shares, 1310-2018'!E34,\"\")","v":""},{"$f":"IF('IV. Country level, 1310-2018'!F32<0,'III. GDP shares, 1310-2018'!F34,\"\")","v":""},{"$f":"IF('IV. Country level, 1310-2018'!G32<0,'III. GDP shares, 1310-2018'!G34,\"\")","v":""},{"$f":"IF('IV. Country level, 1310-2018'!H32<0,'III. GDP shares, 1310-2018'!H34,\"\")","v":""},{"$f":"IF('IV. Country level, 1310-2018'!I32<0,'III. GDP shares, 1310-2018'!I34,\"\")","v":""},{"$f":"IF('IV. Country level, 1310-2018'!J32<0,'III. GDP shares, 1310-2018'!J34,\"\")","v":""},null,0,{"v":0.07091942965195418,"d":"7.09%"},{"v":0.20250823357139602,"d":"20.25%"},{"v":0.20669390702707796,"d":"20.67%"},{"v":0.14796928483687888,"d":"14.80%"}]
[1339,{"$f":"IF('IV. Country level, 1310-2018'!C33<0,'III. GDP shares, 1310-2018'!C35,\"\")","v":""},{"$f":"IF('IV. Country level, 1310-2018'!D33<0,'III. GDP shares, 1310-2018'!D35,\"\")","v":""},{"$f":"IF('IV. Country level, 1310-2018'!E33<0,'III. GDP shares, 1310-2018'!E35,\"\")","v":""},{"$f":"IF('IV. Country level, 1310-2018'!F33<0,'III. GDP shares, 1310-2018'!F35,\"\")","v":0.3678872144550954},{"$f":"IF('IV. Country level, 1310-2018'!G33<0,'III. GDP shares, 1310-2018'!G35,\"\")","v":""},{"$f":"IF('IV. Country level, 1310-2018'!H33<0,'III. GDP shares, 1310-2018'!H35,\"\")","v":""},{"$f":"IF('IV. Country level, 1310-2018'!I33<0,'III. GDP shares, 1310-2018'!I35,\"\")","v":""},{"$f":"IF('IV. Country level, 1310-2018'!J33<0,'III. GDP shares, 1310-2018'!J35,\"\")","v":""},null,0.3678872144550954,{"v":0.07091942965195418,"d":"7.09%"},{"v":0.20250823357139602,"d":"20.25%"},{"v":0.17639087672404766,"d":"17.64%"},{"v":0.14796928483687888,"d":"14.80%"}]
[1340,{"$f":"IF('IV. Country level, 1310-2018'!C34<0,'III. GDP shares, 1310-2018'!C36,\"\")","v":""},{"$f":"IF('IV. Country level, 1310-2018'!D34<0,'III. GDP shares, 1310-2018'!D36,\"\")","v":0.12854879310858386},{"$f":"IF('IV. Country level, 1310-2018'!E34<0,'III. GDP shares, 1310-2018'!E36,\"\")","v":""},{"$f":"IF('IV. Country level, 1310-2018'!F34<0,'III. GDP shares, 1310-2018'!F36,\"\")","v":""},{"$f":"IF('IV. Country level, 1310-2018'!G34<0,'III. GDP shares, 1310-2018'!G36,\"\")","v":""},{"$f":"IF('IV. Country level, 1310-2018'!H34<0,'III. GDP shares, 1310-2018'!H36,\"\")","v":""},{"$f":"IF('IV. Country level, 1310-2018'!I34<0,'III. GDP shares, 1310-2018'!I36,\"\")","v":""},{"$f":"IF('IV. Country level, 1310-2018'!J34<0,'III. GDP shares, 1310-2018'!J36,\"\")","v":""},null,0.12854879310858386,{"v":0.07091942965195418,"d":"7.09%"},{"v":0.20250823357139602,"d":"20.25%"},{"v":0.15225323603808957,"d":"15.23%"},{"v":0.14796928483687888,"d":"14.80%"}]
[1341,{"$f":"IF('IV. Country level, 1310-2018'!C35<0,'III. GDP shares, 1310-2018'!C37,\"\")","v":""},{"$f":"IF('IV. Country level, 1310-2018'!D35<0,'III. GDP shares, 1310-2018'!D37,\"\")","v":""},{"$f":"IF('IV. Country level, 1310-2018'!E35<0,'III. GDP shares, 1310-2018'!E37,\"\")","v":""},{"$f":"IF('IV. Country level, 1310-2018'!F35<0,'III. GDP shares, 1310-2018'!F37,\"\")","v":""},{"$f":"IF('IV. Country level, 1310-2018'!G35<0,'III. GDP shares, 1310-2018'!G37,\"\")","v":""},{"$f":"IF('IV. Country level, 1310-2018'!H35<0,'III. GDP shares, 1310-2018'!H37,\"\")","v":""},{"$f":"IF('IV. Country level, 1310-2018'!I35<0,'III. GDP shares, 1310-2018'!I37,\"\")","v":""},{"$f":"IF('IV. Country level, 1310-2018'!J35<0,'III. GDP shares, 1310-2018'!J37,\"\")","v":""},null,0,{"v":0.07091942965195418,"d":"7.09%"},{"v":0.20250823357139602,"d":"20.25%"},{"v":0.15225323603808957,"d":"15.23%"},{"v":0.14796928483687888,"d":"14.80%"}]
[1342,{"$f":"IF('IV. Country level, 1310-2018'!C36<0,'III. GDP shares, 1310-2018'!C38,\"\")","v":""},{"$f":"IF('IV. Country level, 1310-2018'!D36<0,'III. GDP shares, 1310-2018'!D38,\"\")","v":""},{"$f":"IF('IV. Country level, 1310-2018'!E36<0,'III. GDP shares, 1310-2018'!E38,\"\")","v":""},{"$f":"IF('IV. Country level, 1310-2018'!F36<0,'III. GDP shares, 1310-2018'!F38,\"\")","v":""},{"$f":"IF('IV. Country level, 1310-2018'!G36<0,'III. GDP shares, 1310-2018'!G38,\"\")","v":""},{"$f":"IF('IV. Country level, 1310-2018'!H36<0,'III. GDP shares, 1310-2018'!H38,\"\")","v":""},{"$f":"IF('IV. Country level, 1310-2018'!I36<0,'III. GDP shares, 1310-2018'!I38,\"\")","v":""},{"$f":"IF('IV. Country level, 1310-2018'!J36<0,'III. GDP shares, 1310-2018'!J38,\"\")","v":""},null,0,{"v":0.07091942965195418,"d":"7.09%"},{"v":0.20250823357139602,"d":"20.25%"},{"v":0.15225323603808957,"d":"15.23%"},{"v":0.14796928483687888,"d":"14.80%"}]
[1343,{"$f":"IF('IV. Country level, 1310-2018'!C37<0,'III. GDP shares, 1310-2018'!C39,\"\")","v":""},{"$f":"IF('IV. Country level, 1310-2018'!D37<0,'III. GDP shares, 1310-2018'!D39,\"\")","v":""},{"$f":"IF('IV. Country level, 1310-2018'!E37<0,'III. GDP shares, 1310-2018'!E39,\"\")","v":""},{"$f":"IF('IV. Country level, 1310-2018'!F37<0,'III. GDP shares, 1310-2018'!F39,\"\")","v":""},{"$f":"IF('IV. Country level, 1310-2018'!G37<0,'III. GDP shares, 1310-2018'!G39,\"\")","v":""},{"$f":"IF('IV. Country level, 1310-2018'!H37<0,'III. GDP shares, 1310-2018'!H39,\"\")","v":""},{"$f":"IF('IV. Country level, 1310-2018'!I37<0,'III. GDP shares, 1310-2018'!I39,\"\")","v":""},{"$f":"IF('IV. Country level, 1310-2018'!J37<0,'III. GDP shares, 1310-2018'!J39,\"\")","v":""},null,0,{"v":0.018364113301226264,"d":"1.84%"},{"v":0.20250823357139602,"d":"20.25%"},{"v":0.15225323603808957,"d":"15.23%"},{"v":0.14796928483687888,"d":"14.80%"}]
[1344,{"$f":"IF('IV. Country level, 1310-2018'!C38<0,'III. GDP shares, 1310-2018'!C40,\"\")","v":""},{"$f":"IF('IV. Country level, 1310-2018'!D38<0,'III. GDP shares, 1310-2018'!D40,\"\")","v":""},{"$f":"IF('IV. Country level, 1310-2018'!E38<0,'III. GDP shares, 1310-2018'!E40,\"\")","v":""},{"$f":"IF('IV. Country level, 1310-2018'!F38<0,'III. GDP shares, 1310-2018'!F40,\"\")","v":""},{"$f":"IF('IV. Country level, 1310-2018'!G38<0,'III. GDP shares, 1310-2018'!G40,\"\")","v":""},{"$f":"IF('IV. Country level, 1310-2018'!H38<0,'III. GDP shares, 1310-2018'!H40,\"\")","v":""},{"$f":"IF('IV. Country level, 1310-2018'!I38<0,'III. GDP shares, 1310-2018'!I40,\"\")","v":""},{"$f":"IF('IV. Country level, 1310-2018'!J38<0,'III. GDP shares, 1310-2018'!J40,\"\")","v":""},null,0,{"v":0.07166375995686673,"d":"7.17%"},{"v":0.20250823357139602,"d":"20.25%"},{"v":0.13691027674618428,"d":"13.69%"},{"v":0.14796928483687888,"d":"14.80%"}]
[1345,{"$f":"IF('IV. Country level, 1310-2018'!C39<0,'III. GDP shares, 1310-2018'!C41,\"\")","v":""},{"$f":"IF('IV. Country level, 1310-2018'!D39<0,'III. GDP shares, 1310-2018'!D41,\"\")","v":""},{"$f":"IF('IV. Country level, 1310-2018'!E39<0,'III. GDP shares, 1310-2018'!E41,\"\")","v":""},{"$f":"IF('IV. Country level, 1310-2018'!F39<0,'III. GDP shares, 1310-2018'!F41,\"\")","v":""},{"$f":"IF('IV. Country level, 1310-2018'!G39<0,'III. GDP shares, 1310-2018'!G41,\"\")","v":""},{"$f":"IF('IV. Country level, 1310-2018'!H39<0,'III. GDP shares, 1310-2018'!H41,\"\")","v":""},{"$f":"IF('IV. Country level, 1310-2018'!I39<0,'III. GDP shares, 1310-2018'!I41,\"\")","v":""},{"$f":"IF('IV. Country level, 1310-2018'!J39<0,'III. GDP shares, 1310-2018'!J41,\"\")","v":""},null,0,{"v":0.07166375995686673,"d":"7.17%"},{"v":0.20250823357139602,"d":"20.25%"},{"v":0.12157445782136195,"d":"12.16%"},{"v":0.14796928483687888,"d":"14.80%"}]
[1346,{"$f":"IF('IV. Country level, 1310-2018'!C40<0,'III. GDP shares, 1310-2018'!C42,\"\")","v":""},{"$f":"IF('IV. Country level, 1310-2018'!D40<0,'III. GDP shares, 1310-2018'!D42,\"\")","v":""},{"$f":"IF('IV. Country level, 1310-2018'!E40<0,'III. GDP shares, 1310-2018'!E42,\"\")","v":""},{"$f":"IF('IV. Country level, 1310-2018'!F40<0,'III. GDP shares, 1310-2018'!F42,\"\")","v":""},{"$f":"IF('IV. Country level, 1310-2018'!G40<0,'III. GDP shares, 1310-2018'!G42,\"\")","v":""},{"$f":"IF('IV. Country level, 1310-2018'!H40<0,'III. GDP shares, 1310-2018'!H42,\"\")","v":""},{"$f":"IF('IV. Country level, 1310-2018'!I40<0,'III. GDP shares, 1310-2018'!I42,\"\")","v":""},{"$f":"IF('IV. Country level, 1310-2018'!J40<0,'III. GDP shares, 1310-2018'!J42,\"\")","v":""},null,0,{"v":0.1432614631623937,"d":"14.33%"},{"v":0.20250823357139602,"d":"20.25%"},{"v":0.10624577262068954,"d":"10.62%"},{"v":0.14796928483687888,"d":"14.80%"}]
[1347,{"$f":"IF('IV. Country level, 1310-2018'!C41<0,'III. GDP shares, 1310-2018'!C43,\"\")","v":0.5016463196980672},{"$f":"IF('IV. Country level, 1310-2018'!D41<0,'III. GDP shares, 1310-2018'!D43,\"\")","v":""},{"$f":"IF('IV. Country level, 1310-2018'!E41<0,'III. GDP shares, 1310-2018'!E43,\"\")","v":""},{"$f":"IF('IV. Country level, 1310-2018'!F41<0,'III. GDP shares, 1310-2018'!F43,\"\")","v":""},{"$f":"IF('IV. Country level, 1310-2018'!G41<0,'III. GDP shares, 1310-2018'!G43,\"\")","v":""},{"$f":"IF('IV. Country level, 1310-2018'!H41<0,'III. GDP shares, 1310-2018'!H43,\"\")","v":""},{"$f":"IF('IV. Country level, 1310-2018'!I41<0,'III. GDP shares, 1310-2018'!I43,\"\")","v":""},{"$f":"IF('IV. Country level, 1310-2018'!J41<0,'III. GDP shares, 1310-2018'!J43,\"\")","v":""},null,0.5016463196980672,{"v":0.21482618363754222,"d":"21.48%"},{"v":0.20250823357139602,"d":"20.25%"},{"v":0.10624577262068954,"d":"10.62%"},{"v":0.14796928483687888,"d":"14.80%"}]
[1348,{"$f":"IF('IV. Country level, 1310-2018'!C42<0,'III. GDP shares, 1310-2018'!C44,\"\")","v":""},{"$f":"IF('IV. Country level, 1310-2018'!D42<0,'III. GDP shares, 1310-2018'!D44,\"\")","v":""},{"$f":"IF('IV. Country level, 1310-2018'!E42<0,'III. GDP shares, 1310-2018'!E44,\"\")","v":""},{"$f":"IF('IV. Country level, 1310-2018'!F42<0,'III. GDP shares, 1310-2018'!F44,\"\")","v":""},{"$f":"IF('IV. Country level, 1310-2018'!G42<0,'III. GDP shares, 1310-2018'!G44,\"\")","v":""},{"$f":"IF('IV. Country level, 1310-2018'!H42<0,'III. GDP shares, 1310-2018'!H44,\"\")","v":""},{"$f":"IF('IV. Country level, 1310-2018'!I42<0,'III. GDP shares, 1310-2018'!I44,\"\")","v":""},{"$f":"IF('IV. Country level, 1310-2018'!J42<0,'III. GDP shares, 1310-2018'!J44,\"\")","v":""},null,0,{"v":0.28635795175645956,"d":"28.64%"},{"v":0.20250823357139602,"d":"20.25%"},{"v":0.10624577262068954,"d":"10.62%"},{"v":0.14796928483687888,"d":"14.80%"}]
[1349,{"$f":"IF('IV. Country level, 1310-2018'!C43<0,'III. GDP shares, 1310-2018'!C45,\"\")","v":0.5011839224386887},{"$f":"IF('IV. Country level, 1310-2018'!D43<0,'III. GDP shares, 1310-2018'!D45,\"\")","v":""},{"$f":"IF('IV. Country level, 1310-2018'!E43<0,'III. GDP shares, 1310-2018'!E45,\"\")","v":""},{"$f":"IF('IV. Country level, 1310-2018'!F43<0,'III. GDP shares, 1310-2018'!F45,\"\")","v":""},{"$f":"IF('IV. Country level, 1310-2018'!G43<0,'III. GDP shares, 1310-2018'!G45,\"\")","v":""},{"$f":"IF('IV. Country level, 1310-2018'!H43<0,'III. GDP shares, 1310-2018'!H45,\"\")","v":""},{"$f":"IF('IV. Country level, 1310-2018'!I43<0,'III. GDP shares, 1310-2018'!I45,\"\")","v":""},{"$f":"IF('IV. Country level, 1310-2018'!J43<0,'III. GDP shares, 1310-2018'!J45,\"\")","v":""},null,0.5011839224386887,{"v":0.28635795175645956,"d":"28.64%"},{"v":0.20250823357139602,"d":"20.25%"},{"v":0.10624577262068954,"d":"10.62%"},{"v":0.14796928483687888,"d":"14.80%"}]
[1350,{"$f":"IF('IV. Country level, 1310-2018'!C44<0,'III. GDP shares, 1310-2018'!C46,\"\")","v":0.5009530433260395},{"$f":"IF('IV. Country level, 1310-2018'!D44<0,'III. GDP shares, 1310-2018'!D46,\"\")","v":""},{"$f":"IF('IV. Country level, 1310-2018'!E44<0,'III. GDP shares, 1310-2018'!E46,\"\")","v":""},{"$f":"IF('IV. Country level, 1310-2018'!F44<0,'III. GDP shares, 1310-2018'!F46,\"\")","v":""},{"$f":"IF('IV. Country level, 1310-2018'!G44<0,'III. GDP shares, 1310-2018'!G46,\"\")","v":""},{"$f":"IF('IV. Country level, 1310-2018'!H44<0,'III. GDP shares, 1310-2018'!H46,\"\")","v":""},{"$f":"IF('IV. Country level, 1310-2018'!I44<0,'III. GDP shares, 1310-2018'!I46,\"\")","v":""},{"$f":"IF('IV. Country level, 1310-2018'!J44<0,'III. GDP shares, 1310-2018'!J46,\"\")","v":""},null,0.5009530433260395,{"v":0.3578239061176797,"d":"35.78%"},{"v":0.20250823357139602,"d":"20.25%"},{"v":0.0909455560723466,"d":"9.09%"},{"v":0.14796928483687888,"d":"14.80%"}]
[1351,{"$f":"IF('IV. Country level, 1310-2018'!C45<0,'III. GDP shares, 1310-2018'!C47,\"\")","v":0.5007223768324216},{"$f":"IF('IV. Country level, 1310-2018'!D45<0,'III. GDP shares, 1310-2018'!D47,\"\")","v":""},{"$f":"IF('IV. Country level, 1310-2018'!E45<0,'III. GDP shares, 1310-2018'!E47,\"\")","v":""},{"$f":"IF('IV. Country level, 1310-2018'!F45<0,'III. GDP shares, 1310-2018'!F47,\"\")","v":""},{"$f":"IF('IV. Country level, 1310-2018'!G45<0,'III. GDP shares, 1310-2018'!G47,\"\")","v":""},{"$f":"IF('IV. Country level, 1310-2018'!H45<0,'III. GDP shares, 1310-2018'!H47,\"\")","v":""},{"$f":"IF('IV. Country level, 1310-2018'!I45<0,'III. GDP shares, 1310-2018'!I47,\"\")","v":""},{"$f":"IF('IV. Country level, 1310-2018'!J45<0,'III. GDP shares, 1310-2018'!J47,\"\")","v":""},null,0.5007223768324216,{"v":0.286160146160813,"d":"28.62%"},{"v":0.20250823357139602,"d":"20.25%"},{"v":0.10600799216969495,"d":"10.60%"},{"v":0.14796928483687888,"d":"14.80%"}]
[1352,{"$f":"IF('IV. Country level, 1310-2018'!C46<0,'III. GDP shares, 1310-2018'!C48,\"\")","v":""},{"$f":"IF('IV. Country level, 1310-2018'!D46<0,'III. GDP shares, 1310-2018'!D48,\"\")","v":""},{"$f":"IF('IV. Country level, 1310-2018'!E46<0,'III. GDP shares, 1310-2018'!E48,\"\")","v":""},{"$f":"IF('IV. Country level, 1310-2018'!F46<0,'III. GDP shares, 1310-2018'!F48,\"\")","v":""},{"$f":"IF('IV. Country level, 1310-2018'!G46<0,'III. GDP shares, 1310-2018'!G48,\"\")","v":""},{"$f":"IF('IV. Country level, 1310-2018'!H46<0,'III. GDP shares, 1310-2018'!H48,\"\")","v":""},{"$f":"IF('IV. Country level, 1310-2018'!I46<0,'III. GDP shares, 1310-2018'!I48,\"\")","v":""},{"$f":"IF('IV. Country level, 1310-2018'!J46<0,'III. GDP shares, 1310-2018'!J48,\"\")","v":""},null,0,{"v":0.286160146160813,"d":"28.62%"},{"v":0.20250823357139602,"d":"20.25%"},{"v":0.12106354655646184,"d":"12.11%"},{"v":0.14796928483687888,"d":"14.80%"}]
[1353,{"$f":"IF('IV. Country level, 1310-2018'!C47<0,'III. GDP shares, 1310-2018'!C49,\"\")","v":0.5002616805285411},{"$f":"IF('IV. Country level, 1310-2018'!D47<0,'III. GDP shares, 1310-2018'!D49,\"\")","v":""},{"$f":"IF('IV. Country level, 1310-2018'!E47<0,'III. GDP shares, 1310-2018'!E49,\"\")","v":""},{"$f":"IF('IV. Country level, 1310-2018'!F47<0,'III. GDP shares, 1310-2018'!F49,\"\")","v":""},{"$f":"IF('IV. Country level, 1310-2018'!G47<0,'III. GDP shares, 1310-2018'!G49,\"\")","v":""},{"$f":"IF('IV. Country level, 1310-2018'!H47<0,'III. GDP shares, 1310-2018'!H49,\"\")","v":""},{"$f":"IF('IV. Country level, 1310-2018'!I47<0,'III. GDP shares, 1310-2018'!I49,\"\")","v":""},{"$f":"IF('IV. Country level, 1310-2018'!J47<0,'III. GDP shares, 1310-2018'!J49,\"\")","v":""},null,0.5002616805285411,{"v":0.214562442955286,"d":"21.46%"},{"v":0.20250823357139602,"d":"20.25%"},{"v":0.12106354655646184,"d":"12.11%"},{"v":0.14796928483687888,"d":"14.80%"}]
[1354,{"$f":"IF('IV. Country level, 1310-2018'!C48<0,'III. GDP shares, 1310-2018'!C50,\"\")","v":""},{"$f":"IF('IV. Country level, 1310-2018'!D48<0,'III. GDP shares, 1310-2018'!D50,\"\")","v":""},{"$f":"IF('IV. Country level, 1310-2018'!E48<0,'III. GDP shares, 1310-2018'!E50,\"\")","v":""},{"$f":"IF('IV. Country level, 1310-2018'!F48<0,'III. GDP shares, 1310-2018'!F50,\"\")","v":""},{"$f":"IF('IV. Country level, 1310-2018'!G48<0,'III. GDP shares, 1310-2018'!G50,\"\")","v":""},{"$f":"IF('IV. Country level, 1310-2018'!H48<0,'III. GDP shares, 1310-2018'!H50,\"\")","v":""},{"$f":"IF('IV. Country level, 1310-2018'!I48<0,'III. GDP shares, 1310-2018'!I50,\"\")","v":""},{"$f":"IF('IV. Country level, 1310-2018'!J48<0,'III. GDP shares, 1310-2018'!J50,\"\")","v":""},null,0,{"v":0.14299772248013753,"d":"14.30%"},{"v":0.20250823357139602,"d":"20.25%"},{"v":0.1399474310465483,"d":"13.99%"},{"v":0.14796928483687888,"d":"14.80%"}]
[1355,{"$f":"IF('IV. Country level, 1310-2018'!C49<0,'III. GDP shares, 1310-2018'!C51,\"\")","v":""},{"$f":"IF('IV. Country level, 1310-2018'!D49<0,'III. GDP shares, 1310-2018'!D51,\"\")","v":""},{"$f":"IF('IV. Country level, 1310-2018'!E49<0,'III. GDP shares, 1310-2018'!E51,\"\")","v":""},{"$f":"IF('IV. Country level, 1310-2018'!F49<0,'III. GDP shares, 1310-2018'!F51,\"\")","v":""},{"$f":"IF('IV. Country level, 1310-2018'!G49<0,'III. GDP shares, 1310-2018'!G51,\"\")","v":""},{"$f":"IF('IV. Country level, 1310-2018'!H49<0,'III. GDP shares, 1310-2018'!H51,\"\")","v":""},{"$f":"IF('IV. Country level, 1310-2018'!I49<0,'III. GDP shares, 1310-2018'!I51,\"\")","v":""},{"$f":"IF('IV. Country level, 1310-2018'!J49<0,'III. GDP shares, 1310-2018'!J51,\"\")","v":""},null,0,{"v":0.07146595436122016,"d":"7.15%"},{"v":0.20250823357139602,"d":"20.25%"},{"v":0.1399474310465483,"d":"13.99%"},{"v":0.14796928483687888,"d":"14.80%"}]
[1356,{"$f":"IF('IV. Country level, 1310-2018'!C50<0,'III. GDP shares, 1310-2018'!C52,\"\")","v":""},{"$f":"IF('IV. Country level, 1310-2018'!D50<0,'III. GDP shares, 1310-2018'!D52,\"\")","v":""},{"$f":"IF('IV. Country level, 1310-2018'!E50<0,'III. GDP shares, 1310-2018'!E52,\"\")","v":""},{"$f":"IF('IV. Country level, 1310-2018'!F50<0,'III. GDP shares, 1310-2018'!F52,\"\")","v":""},{"$f":"IF('IV. Country level, 1310-2018'!G50<0,'III. GDP shares, 1310-2018'!G52,\"\")","v":""},{"$f":"IF('IV. Country level, 1310-2018'!H50<0,'III. GDP shares, 1310-2018'!H52,\"\")","v":""},{"$f":"IF('IV. Country level, 1310-2018'!I50<0,'III. GDP shares, 1310-2018'!I52,\"\")","v":""},{"$f":"IF('IV. Country level, 1310-2018'!J50<0,'III. GDP shares, 1310-2018'!J52,\"\")","v":""},null,0,{"v":0.07146595436122016,"d":"7.15%"},{"v":0.20250823357139602,"d":"20.25%"},{"v":0.12879933363881813,"d":"12.88%"},{"v":0.14796928483687888,"d":"14.80%"}]
[1357,{"$f":"IF('IV. Country level, 1310-2018'!C51<0,'III. GDP shares, 1310-2018'!C53,\"\")","v":""},{"$f":"IF('IV. Country level, 1310-2018'!D51<0,'III. GDP shares, 1310-2018'!D53,\"\")","v":""},{"$f":"IF('IV. Country level, 1310-2018'!E51<0,'III. GDP shares, 1310-2018'!E53,\"\")","v":""},{"$f":"IF('IV. Country level, 1310-2018'!F51<0,'III. GDP shares, 1310-2018'!F53,\"\")","v":""},{"$f":"IF('IV. Country level, 1310-2018'!G51<0,'III. GDP shares, 1310-2018'!G53,\"\")","v":""},{"$f":"IF('IV. Country level, 1310-2018'!H51<0,'III. GDP shares, 1310-2018'!H53,\"\")","v":""},{"$f":"IF('IV. Country level, 1310-2018'!I51<0,'III. GDP shares, 1310-2018'!I53,\"\")","v":""},{"$f":"IF('IV. Country level, 1310-2018'!J51<0,'III. GDP shares, 1310-2018'!J53,\"\")","v":""},null,0,{"v":0,"d":"0.00%"},{"v":0.20250823357139602,"d":"20.25%"},{"v":0.12490391566583073,"d":"12.49%"},{"v":0.14796928483687888,"d":"14.80%"}]
[1358,{"$f":"IF('IV. Country level, 1310-2018'!C52<0,'III. GDP shares, 1310-2018'!C54,\"\")","v":""},{"$f":"IF('IV. Country level, 1310-2018'!D52<0,'III. GDP shares, 1310-2018'!D54,\"\")","v":""},{"$f":"IF('IV. Country level, 1310-2018'!E52<0,'III. GDP shares, 1310-2018'!E54,\"\")","v":""},{"$f":"IF('IV. Country level, 1310-2018'!F52<0,'III. GDP shares, 1310-2018'!F54,\"\")","v":""},{"$f":"IF('IV. Country level, 1310-2018'!G52<0,'III. GDP shares, 1310-2018'!G54,\"\")","v":""},{"$f":"IF('IV. Country level, 1310-2018'!H52<0,'III. GDP shares, 1310-2018'!H54,\"\")","v":""},{"$f":"IF('IV. Country level, 1310-2018'!I52<0,'III. GDP shares, 1310-2018'!I54,\"\")","v":""},{"$f":"IF('IV. Country level, 1310-2018'!J52<0,'III. GDP shares, 1310-2018'!J54,\"\")","v":""},null,0,{"v":0,"d":"0.00%"},{"v":0.20250823357139602,"d":"20.25%"},{"v":0.13991831148068315,"d":"13.99%"},{"v":0.14796928483687888,"d":"14.80%"}]
[1359,{"$f":"IF('IV. Country level, 1310-2018'!C53<0,'III. GDP shares, 1310-2018'!C55,\"\")","v":""},{"$f":"IF('IV. Country level, 1310-2018'!D53<0,'III. GDP shares, 1310-2018'!D55,\"\")","v":""},{"$f":"IF('IV. Country level, 1310-2018'!E53<0,'III. GDP shares, 1310-2018'!E55,\"\")","v":""},{"$f":"IF('IV. Country level, 1310-2018'!F53<0,'III. GDP shares, 1310-2018'!F55,\"\")","v":""},{"$f":"IF('IV. Country level, 1310-2018'!G53<0,'III. GDP shares, 1310-2018'!G55,\"\")","v":""},{"$f":"IF('IV. Country level, 1310-2018'!H53<0,'III. GDP shares, 1310-2018'!H55,\"\")","v":""},{"$f":"IF('IV. Country level, 1310-2018'!I53<0,'III. GDP shares, 1310-2018'!I55,\"\")","v":""},{"$f":"IF('IV. Country level, 1310-2018'!J53<0,'III. GDP shares, 1310-2018'!J55,\"\")","v":""},null,0,{"v":0,"d":"0.00%"},{"v":0.20250823357139602,"d":"20.25%"},{"v":0.15571714992483837,"d":"15.57%"},{"v":0.14796928483687888,"d":"14.80%"}]
[1360,{"$f":"IF('IV. Country level, 1310-2018'!C54<0,'III. GDP shares, 1310-2018'!C56,\"\")","v":""},{"$f":"IF('IV. Country level, 1310-2018'!D54<0,'III. GDP shares, 1310-2018'!D56,\"\")","v":""},{"$f":"IF('IV. Country level, 1310-2018'!E54<0,'III. GDP shares, 1310-2018'!E56,\"\")","v":""},{"$f":"IF('IV. Country level, 1310-2018'!F54<0,'III. GDP shares, 1310-2018'!F56,\"\")","v":""},{"$f":"IF('IV. Country level, 1310-2018'!G54<0,'III. GDP shares, 1310-2018'!G56,\"\")","v":""},{"$f":"IF('IV. Country level, 1310-2018'!H54<0,'III. GDP shares, 1310-2018'!H56,\"\")","v":""},{"$f":"IF('IV. Country level, 1310-2018'!I54<0,'III. GDP shares, 1310-2018'!I56,\"\")","v":""},{"$f":"IF('IV. Country level, 1310-2018'!J54<0,'III. GDP shares, 1310-2018'!J56,\"\")","v":""},null,0,{"v":0,"d":"0.00%"},{"v":0.20250823357139602,"d":"20.25%"},{"v":0.15571714992483837,"d":"15.57%"},{"v":0.14796928483687888,"d":"14.80%"}]
[1361,{"$f":"IF('IV. Country level, 1310-2018'!C55<0,'III. GDP shares, 1310-2018'!C57,\"\")","v":""},{"$f":"IF('IV. Country level, 1310-2018'!D55<0,'III. GDP shares, 1310-2018'!D57,\"\")","v":""},{"$f":"IF('IV. Country level, 1310-2018'!E55<0,'III. GDP shares, 1310-2018'!E57,\"\")","v":""},{"$f":"IF('IV. Country level, 1310-2018'!F55<0,'III. GDP shares, 1310-2018'!F57,\"\")","v":""},{"$f":"IF('IV. Country level, 1310-2018'!G55<0,'III. GDP shares, 1310-2018'!G57,\"\")","v":""},{"$f":"IF('IV. Country level, 1310-2018'!H55<0,'III. GDP shares, 1310-2018'!H57,\"\")","v":""},{"$f":"IF('IV. Country level, 1310-2018'!I55<0,'III. GDP shares, 1310-2018'!I57,\"\")","v":""},{"$f":"IF('IV. Country level, 1310-2018'!J55<0,'III. GDP shares, 1310-2018'!J57,\"\")","v":""},null,0,{"v":0,"d":"0.00%"},{"v":0.20250823357139602,"d":"20.25%"},{"v":0.15571714992483837,"d":"15.57%"},{"v":0.14796928483687888,"d":"14.80%"}]
[1362,{"$f":"IF('IV. Country level, 1310-2018'!C56<0,'III. GDP shares, 1310-2018'!C58,\"\")","v":""},{"$f":"IF('IV. Country level, 1310-2018'!D56<0,'III. GDP shares, 1310-2018'!D58,\"\")","v":""},{"$f":"IF('IV. Country level, 1310-2018'!E56<0,'III. GDP shares, 1310-2018'!E58,\"\")","v":""},{"$f":"IF('IV. Country level, 1310-2018'!F56<0,'III. GDP shares, 1310-2018'!F58,\"\")","v":""},{"$f":"IF('IV. Country level, 1310-2018'!G56<0,'III. GDP shares, 1310-2018'!G58,\"\")","v":""},{"$f":"IF('IV. Country level, 1310-2018'!H56<0,'III. GDP shares, 1310-2018'!H58,\"\")","v":""},{"$f":"IF('IV. Country level, 1310-2018'!I56<0,'III. GDP shares, 1310-2018'!I58,\"\")","v":""},{"$f":"IF('IV. Country level, 1310-2018'!J56<0,'III. GDP shares, 1310-2018'!J58,\"\")","v":""},null,0,{"v":0,"d":"0.00%"},{"v":0.20250823357139602,"d":"20.25%"},{"v":0.15571714992483837,"d":"15.57%"},{"v":0.14796928483687888,"d":"14.80%"}]
[1363,{"$f":"IF('IV. Country level, 1310-2018'!C57<0,'III. GDP shares, 1310-2018'!C59,\"\")","v":""},{"$f":"IF('IV. Country level, 1310-2018'!D57<0,'III. GDP shares, 1310-2018'!D59,\"\")","v":""},{"$f":"IF('IV. Country level, 1310-2018'!E57<0,'III. GDP shares, 1310-2018'!E59,\"\")","v":""},{"$f":"IF('IV. Country level, 1310-2018'!F57<0,'III. GDP shares, 1310-2018'!F59,\"\")","v":""},{"$f":"IF('IV. Country level, 1310-2018'!G57<0,'III. GDP shares, 1310-2018'!G59,\"\")","v":""},{"$f":"IF('IV. Country level, 1310-2018'!H57<0,'III. GDP shares, 1310-2018'!H59,\"\")","v":""},{"$f":"IF('IV. Country level, 1310-2018'!I57<0,'III. GDP shares, 1310-2018'!I59,\"\")","v":""},{"$f":"IF('IV. Country level, 1310-2018'!J57<0,'III. GDP shares, 1310-2018'!J59,\"\")","v":""},null,0,{"v":0,"d":"0.00%"},{"v":0.20250823357139602,"d":"20.25%"},{"v":0.15571714992483837,"d":"15.57%"},{"v":0.14796928483687888,"d":"14.80%"}]
[1364,{"$f":"IF('IV. Country level, 1310-2018'!C58<0,'III. GDP shares, 1310-2018'!C60,\"\")","v":""},{"$f":"IF('IV. Country level, 1310-2018'!D58<0,'III. GDP shares, 1310-2018'!D60,\"\")","v":""},{"$f":"IF('IV. Country level, 1310-2018'!E58<0,'III. GDP shares, 1310-2018'!E60,\"\")","v":""},{"$f":"IF('IV. Country level, 1310-2018'!F58<0,'III. GDP shares, 1310-2018'!F60,\"\")","v":""},{"$f":"IF('IV. Country level, 1310-2018'!G58<0,'III. GDP shares, 1310-2018'!G60,\"\")","v":""},{"$f":"IF('IV. Country level, 1310-2018'!H58<0,'III. GDP shares, 1310-2018'!H60,\"\")","v":""},{"$f":"IF('IV. Country level, 1310-2018'!I58<0,'III. GDP shares, 1310-2018'!I60,\"\")","v":""},{"$f":"IF('IV. Country level, 1310-2018'!J58<0,'III. GDP shares, 1310-2018'!J60,\"\")","v":""},null,0,{"v":0.0710086273160708,"d":"7.10%"},{"v":0.20250823357139602,"d":"20.25%"},{"v":0.14051574629762417,"d":"14.05%"},{"v":0.14796928483687888,"d":"14.80%"}]
[1365,{"$f":"IF('IV. Country level, 1310-2018'!C59<0,'III. GDP shares, 1310-2018'!C61,\"\")","v":""},{"$f":"IF('IV. Country level, 1310-2018'!D59<0,'III. GDP shares, 1310-2018'!D61,\"\")","v":""},{"$f":"IF('IV. Country level, 1310-2018'!E59<0,'III. GDP shares, 1310-2018'!E61,\"\")","v":""},{"$f":"IF('IV. Country level, 1310-2018'!F59<0,'III. GDP shares, 1310-2018'!F61,\"\")","v":""},{"$f":"IF('IV. Country level, 1310-2018'!G59<0,'III. GDP shares, 1310-2018'!G61,\"\")","v":""},{"$f":"IF('IV. Country level, 1310-2018'!H59<0,'III. GDP shares, 1310-2018'!H61,\"\")","v":""},{"$f":"IF('IV. Country level, 1310-2018'!I59<0,'III. GDP shares, 1310-2018'!I61,\"\")","v":""},{"$f":"IF('IV. Country level, 1310-2018'!J59<0,'III. GDP shares, 1310-2018'!J61,\"\")","v":""},null,0,{"v":0.14198481228225757,"d":"14.20%"},{"v":0.20250823357139602,"d":"20.25%"},{"v":0.15627496434137958,"d":"15.63%"},{"v":0.14796928483687888,"d":"14.80%"}]
[1366,{"$f":"IF('IV. Country level, 1310-2018'!C60<0,'III. GDP shares, 1310-2018'!C62,\"\")","v":""},{"$f":"IF('IV. Country level, 1310-2018'!D60<0,'III. GDP shares, 1310-2018'!D62,\"\")","v":""},{"$f":"IF('IV. Country level, 1310-2018'!E60<0,'III. GDP shares, 1310-2018'!E62,\"\")","v":""},{"$f":"IF('IV. Country level, 1310-2018'!F60<0,'III. GDP shares, 1310-2018'!F62,\"\")","v":""},{"$f":"IF('IV. Country level, 1310-2018'!G60<0,'III. GDP shares, 1310-2018'!G62,\"\")","v":""},{"$f":"IF('IV. Country level, 1310-2018'!H60<0,'III. GDP shares, 1310-2018'!H62,\"\")","v":""},{"$f":"IF('IV. Country level, 1310-2018'!I60<0,'III. GDP shares, 1310-2018'!I62,\"\")","v":""},{"$f":"IF('IV. Country level, 1310-2018'!J60<0,'III. GDP shares, 1310-2018'!J62,\"\")","v":""},null,0,{"v":0.14198481228225757,"d":"14.20%"},{"v":0.20250823357139602,"d":"20.25%"},{"v":0.14108757275232842,"d":"14.11%"},{"v":0.14796928483687888,"d":"14.80%"}]
[1367,{"$f":"IF('IV. Country level, 1310-2018'!C61<0,'III. GDP shares, 1310-2018'!C63,\"\")","v":0.49706039121249557},{"$f":"IF('IV. Country level, 1310-2018'!D61<0,'III. GDP shares, 1310-2018'!D63,\"\")","v":""},{"$f":"IF('IV. Country level, 1310-2018'!E61<0,'III. GDP shares, 1310-2018'!E63,\"\")","v":""},{"$f":"IF('IV. Country level, 1310-2018'!F61<0,'III. GDP shares, 1310-2018'!F63,\"\")","v":""},{"$f":"IF('IV. Country level, 1310-2018'!G61<0,'III. GDP shares, 1310-2018'!G63,\"\")","v":""},{"$f":"IF('IV. Country level, 1310-2018'!H61<0,'III. GDP shares, 1310-2018'!H63,\"\")","v":""},{"$f":"IF('IV. Country level, 1310-2018'!I61<0,'III. GDP shares, 1310-2018'!I63,\"\")","v":""},{"$f":"IF('IV. Country level, 1310-2018'!J61<0,'III. GDP shares, 1310-2018'!J63,\"\")","v":""},null,0.49706039121249557,{"v":0.2310088391640937,"d":"23.10%"},{"v":0.20250823357139602,"d":"20.25%"},{"v":0.14165323286686185,"d":"14.17%"},{"v":0.14796928483687888,"d":"14.80%"}]
[1368,{"$f":"IF('IV. Country level, 1310-2018'!C62<0,'III. GDP shares, 1310-2018'!C64,\"\")","v":0.4968332947633074},{"$f":"IF('IV. Country level, 1310-2018'!D62<0,'III. GDP shares, 1310-2018'!D64,\"\")","v":""},{"$f":"IF('IV. Country level, 1310-2018'!E62<0,'III. GDP shares, 1310-2018'!E64,\"\")","v":""},{"$f":"IF('IV. Country level, 1310-2018'!F62<0,'III. GDP shares, 1310-2018'!F64,\"\")","v":""},{"$f":"IF('IV. Country level, 1310-2018'!G62<0,'III. GDP shares, 1310-2018'!G64,\"\")","v":""},{"$f":"IF('IV. Country level, 1310-2018'!H62<0,'III. GDP shares, 1310-2018'!H64,\"\")","v":""},{"$f":"IF('IV. Country level, 1310-2018'!I62<0,'III. GDP shares, 1310-2018'!I64,\"\")","v":""},{"$f":"IF('IV. Country level, 1310-2018'!J62<0,'III. GDP shares, 1310-2018'!J64,\"\")","v":""},null,0.4968332947633074,{"v":0.2310088391640937,"d":"23.10%"},{"v":0.20250823357139602,"d":"20.25%"},{"v":0.1264798275083036,"d":"12.65%"},{"v":0.14796928483687888,"d":"14.80%"}]
[1369,{"$f":"IF('IV. Country level, 1310-2018'!C63<0,'III. GDP shares, 1310-2018'!C65,\"\")","v":""},{"$f":"IF('IV. Country level, 1310-2018'!D63<0,'III. GDP shares, 1310-2018'!D65,\"\")","v":""},{"$f":"IF('IV. Country level, 1310-2018'!E63<0,'III. GDP shares, 1310-2018'!E65,\"\")","v":""},{"$f":"IF('IV. Country level, 1310-2018'!F63<0,'III. GDP shares, 1310-2018'!F65,\"\")","v":""},{"$f":"IF('IV. Country level, 1310-2018'!G63<0,'III. GDP shares, 1310-2018'!G65,\"\")","v":""},{"$f":"IF('IV. Country level, 1310-2018'!H63<0,'III. GDP shares, 1310-2018'!H65,\"\")","v":""},{"$f":"IF('IV. Country level, 1310-2018'!I63<0,'III. GDP shares, 1310-2018'!I65,\"\")","v":""},{"$f":"IF('IV. Country level, 1310-2018'!J63<0,'III. GDP shares, 1310-2018'!J65,\"\")","v":""},null,0,{"v":0.2310088391640937,"d":"23.10%"},{"v":0.20250823357139602,"d":"20.25%"},{"v":0.1264798275083036,"d":"12.65%"},{"v":0.14796928483687888,"d":"14.80%"}]
[1370,{"$f":"IF('IV. Country level, 1310-2018'!C64<0,'III. GDP shares, 1310-2018'!C66,\"\")","v":0.49637972383018236},{"$f":"IF('IV. Country level, 1310-2018'!D64<0,'III. GDP shares, 1310-2018'!D66,\"\")","v":0.1267884643426706},{"$f":"IF('IV. Country level, 1310-2018'!E64<0,'III. GDP shares, 1310-2018'!E66,\"\")","v":""},{"$f":"IF('IV. Country level, 1310-2018'!F64<0,'III. GDP shares, 1310-2018'!F66,\"\")","v":""},{"$f":"IF('IV. Country level, 1310-2018'!G64<0,'III. GDP shares, 1310-2018'!G66,\"\")","v":""},{"$f":"IF('IV. Country level, 1310-2018'!H64<0,'III. GDP shares, 1310-2018'!H66,\"\")","v":""},{"$f":"IF('IV. Country level, 1310-2018'!I64<0,'III. GDP shares, 1310-2018'!I66,\"\")","v":""},{"$f":"IF('IV. Country level, 1310-2018'!J64<0,'III. GDP shares, 1310-2018'!J66,\"\")","v":""},null,0.623168188172853,{"v":0.2310088391640937,"d":"23.10%"},{"v":0.20250823357139602,"d":"20.25%"},{"v":0.11132038264380235,"d":"11.13%"},{"v":0.14796928483687888,"d":"14.80%"}]
[1371,{"$f":"IF('IV. Country level, 1310-2018'!C65<0,'III. GDP shares, 1310-2018'!C67,\"\")","v":""},{"$f":"IF('IV. Country level, 1310-2018'!D65<0,'III. GDP shares, 1310-2018'!D67,\"\")","v":""},{"$f":"IF('IV. Country level, 1310-2018'!E65<0,'III. GDP shares, 1310-2018'!E67,\"\")","v":""},{"$f":"IF('IV. Country level, 1310-2018'!F65<0,'III. GDP shares, 1310-2018'!F67,\"\")","v":""},{"$f":"IF('IV. Country level, 1310-2018'!G65<0,'III. GDP shares, 1310-2018'!G67,\"\")","v":""},{"$f":"IF('IV. Country level, 1310-2018'!H65<0,'III. GDP shares, 1310-2018'!H67,\"\")","v":""},{"$f":"IF('IV. Country level, 1310-2018'!I65<0,'III. GDP shares, 1310-2018'!I67,\"\")","v":""},{"$f":"IF('IV. Country level, 1310-2018'!J65<0,'III. GDP shares, 1310-2018'!J67,\"\")","v":""},null,0,{"v":0.23078236354661286,"d":"23.08%"},{"v":0.20250823357139602,"d":"20.25%"},{"v":0.11132038264380235,"d":"11.13%"},{"v":0.14796928483687888,"d":"14.80%"}]
[1372,{"$f":"IF('IV. Country level, 1310-2018'!C66<0,'III. GDP shares, 1310-2018'!C68,\"\")","v":""},{"$f":"IF('IV. Country level, 1310-2018'!D66<0,'III. GDP shares, 1310-2018'!D68,\"\")","v":""},{"$f":"IF('IV. Country level, 1310-2018'!E66<0,'III. GDP shares, 1310-2018'!E68,\"\")","v":""},{"$f":"IF('IV. Country level, 1310-2018'!F66<0,'III. GDP shares, 1310-2018'!F68,\"\")","v":""},{"$f":"IF('IV. Country level, 1310-2018'!G66<0,'III. GDP shares, 1310-2018'!G68,\"\")","v":""},{"$f":"IF('IV. Country level, 1310-2018'!H66<0,'III. GDP shares, 1310-2018'!H68,\"\")","v":""},{"$f":"IF('IV. Country level, 1310-2018'!I66<0,'III. GDP shares, 1310-2018'!I68,\"\")","v":""},{"$f":"IF('IV. Country level, 1310-2018'!J66<0,'III. GDP shares, 1310-2018'!J68,\"\")","v":""},null,0,{"v":0.23428641696001493,"d":"23.43%"},{"v":0.20250823357139602,"d":"20.25%"},{"v":0.12180391976625189,"d":"12.18%"},{"v":0.14796928483687888,"d":"14.80%"}]
[1373,{"$f":"IF('IV. Country level, 1310-2018'!C67<0,'III. GDP shares, 1310-2018'!C69,\"\")","v":""},{"$f":"IF('IV. Country level, 1310-2018'!D67<0,'III. GDP shares, 1310-2018'!D69,\"\")","v":""},{"$f":"IF('IV. Country level, 1310-2018'!E67<0,'III. GDP shares, 1310-2018'!E69,\"\")","v":""},{"$f":"IF('IV. Country level, 1310-2018'!F67<0,'III. GDP shares, 1310-2018'!F69,\"\")","v":""},{"$f":"IF('IV. Country level, 1310-2018'!G67<0,'III. GDP shares, 1310-2018'!G69,\"\")","v":""},{"$f":"IF('IV. Country level, 1310-2018'!H67<0,'III. GDP shares, 1310-2018'!H69,\"\")","v":""},{"$f":"IF('IV. Country level, 1310-2018'!I67<0,'III. GDP shares, 1310-2018'!I69,\"\")","v":""},{"$f":"IF('IV. Country level, 1310-2018'!J67<0,'III. GDP shares, 1310-2018'!J69,\"\")","v":""},null,0,{"v":0.23428641696001493,"d":"23.43%"},{"v":0.20250823357139602,"d":"20.25%"},{"v":0.13228454280028068,"d":"13.23%"},{"v":0.14796928483687888,"d":"14.80%"}]
[1374,{"$f":"IF('IV. Country level, 1310-2018'!C68<0,'III. GDP shares, 1310-2018'!C70,\"\")","v":0.49547506189012963},{"$f":"IF('IV. Country level, 1310-2018'!D68<0,'III. GDP shares, 1310-2018'!D70,\"\")","v":""},{"$f":"IF('IV. Country level, 1310-2018'!E68<0,'III. GDP shares, 1310-2018'!E70,\"\")","v":""},{"$f":"IF('IV. Country level, 1310-2018'!F68<0,'III. GDP shares, 1310-2018'!F70,\"\")","v":""},{"$f":"IF('IV. Country level, 1310-2018'!G68<0,'III. GDP shares, 1310-2018'!G70,\"\")","v":""},{"$f":"IF('IV. Country level, 1310-2018'!H68<0,'III. GDP shares, 1310-2018'!H70,\"\")","v":""},{"$f":"IF('IV. Country level, 1310-2018'!I68<0,'III. GDP shares, 1310-2018'!I70,\"\")","v":""},{"$f":"IF('IV. Country level, 1310-2018'!J68<0,'III. GDP shares, 1310-2018'!J70,\"\")","v":""},null,0.49547506189012963,{"v":0.1452623900781788,"d":"14.53%"},{"v":0.20250823357139602,"d":"20.25%"},{"v":0.13228454280028068,"d":"13.23%"},{"v":0.14796928483687888,"d":"14.80%"}]
[1375,{"$f":"IF('IV. Country level, 1310-2018'!C69<0,'III. GDP shares, 1310-2018'!C71,\"\")","v":0.5213616686571219},{"$f":"IF('IV. Country level, 1310-2018'!D69<0,'III. GDP shares, 1310-2018'!D71,\"\")","v":""},{"$f":"IF('IV. Country level, 1310-2018'!E69<0,'III. GDP shares, 1310-2018'!E71,\"\")","v":""},{"$f":"IF('IV. Country level, 1310-2018'!F69<0,'III. GDP shares, 1310-2018'!F71,\"\")","v":""},{"$f":"IF('IV. Country level, 1310-2018'!G69<0,'III. GDP shares, 1310-2018'!G71,\"\")","v":""},{"$f":"IF('IV. Country level, 1310-2018'!H69<0,'III. GDP shares, 1310-2018'!H71,\"\")","v":""},{"$f":"IF('IV. Country level, 1310-2018'!I69<0,'III. GDP shares, 1310-2018'!I71,\"\")","v":""},{"$f":"IF('IV. Country level, 1310-2018'!J69<0,'III. GDP shares, 1310-2018'!J71,\"\")","v":""},null,{"$f":"SUM(B71:I71)","v":0.5213616686571219},{"v":0.1452623900781788,"d":"14.53%"},{"v":0.20250823357139602,"d":"20.25%"},{"v":0.13228454280028068,"d":"13.23%"},{"v":0.14796928483687888,"d":"14.80%"}]
[1376,{"$f":"IF('IV. Country level, 1310-2018'!C70<0,'III. GDP shares, 1310-2018'!C72,\"\")","v":""},{"$f":"IF('IV. Country level, 1310-2018'!D70<0,'III. GDP shares, 1310-2018'!D72,\"\")","v":""},{"$f":"IF('IV. Country level, 1310-2018'!E70<0,'III. GDP shares, 1310-2018'!E72,\"\")","v":""},{"$f":"IF('IV. Country level, 1310-2018'!F70<0,'III. GDP shares, 1310-2018'!F72,\"\")","v":""},{"$f":"IF('IV. Country level, 1310-2018'!G70<0,'III. GDP shares, 1310-2018'!G72,\"\")","v":""},{"$f":"IF('IV. Country level, 1310-2018'!H70<0,'III. GDP shares, 1310-2018'!H72,\"\")","v":""},{"$f":"IF('IV. Country level, 1310-2018'!I70<0,'III. GDP shares, 1310-2018'!I72,\"\")","v":""},{"$f":"IF('IV. Country level, 1310-2018'!J70<0,'III. GDP shares, 1310-2018'!J72,\"\")","v":""},null,0,{"v":0.1452623900781788,"d":"14.53%"},{"v":0.20250823357139602,"d":"20.25%"},{"v":0.13228454280028068,"d":"13.23%"},{"v":0.14796928483687888,"d":"14.80%"}]
[1377,{"$f":"IF('IV. Country level, 1310-2018'!C71<0,'III. GDP shares, 1310-2018'!C73,\"\")","v":""},{"$f":"IF('IV. Country level, 1310-2018'!D71<0,'III. GDP shares, 1310-2018'!D73,\"\")","v":""},{"$f":"IF('IV. Country level, 1310-2018'!E71<0,'III. GDP shares, 1310-2018'!E73,\"\")","v":""},{"$f":"IF('IV. Country level, 1310-2018'!F71<0,'III. GDP shares, 1310-2018'!F73,\"\")","v":""},{"$f":"IF('IV. Country level, 1310-2018'!G71<0,'III. GDP shares, 1310-2018'!G73,\"\")","v":""},{"$f":"IF('IV. Country level, 1310-2018'!H71<0,'III. GDP shares, 1310-2018'!H73,\"\")","v":""},{"$f":"IF('IV. Country level, 1310-2018'!I71<0,'III. GDP shares, 1310-2018'!I73,\"\")","v":""},{"$f":"IF('IV. Country level, 1310-2018'!J71<0,'III. GDP shares, 1310-2018'!J73,\"\")","v":""},null,0,{"v":0.1452623900781788,"d":"14.53%"},{"$f":"AVERAGE(L$9:L$714)","v":{"v":0.20250823357139602,"d":"20.25%"}},{"v":0.13228454280028068,"d":"13.23%"},{"v":0.14796928483687888,"d":"14.80%"}]
[1378,{"$f":"IF('IV. Country level, 1310-2018'!C72<0,'III. GDP shares, 1310-2018'!C74,\"\")","v":""},{"$f":"IF('IV. Country level, 1310-2018'!D72<0,'III. GDP shares, 1310-2018'!D74,\"\")","v":""},{"$f":"IF('IV. Country level, 1310-2018'!E72<0,'III. GDP shares, 1310-2018'!E74,\"\")","v":""},{"$f":"IF('IV. Country level, 1310-2018'!F72<0,'III. GDP shares, 1310-2018'!F74,\"\")","v":""},{"$f":"IF('IV. Country level, 1310-2018'!G72<0,'III. GDP shares, 1310-2018'!G74,\"\")","v":""},{"$f":"IF('IV. Country level, 1310-2018'!H72<0,'III. GDP shares, 1310-2018'!H74,\"\")","v":""},{"$f":"IF('IV. Country level, 1310-2018'!I72<0,'III. GDP shares, 1310-2018'!I74,\"\")","v":""},{"$f":"IF('IV. Country level, 1310-2018'!J72<0,'III. GDP shares, 1310-2018'!J74,\"\")","v":""},null,0,{"$f":"AVERAGE(K71:K77)","v":{"v":0.1487736948715787,"d":"14.88%"}},{"v":0.20250823357139602,"d":"20.25%"},{"v":0.13228454280028068,"d":"13.23%"},{"$f":"AVERAGE(L$9:L$96)","v":{"v":0.14796928483687888,"d":"14.80%"}}]
[1379,{"$f":"IF('IV. Country level, 1310-2018'!C73<0,'III. GDP shares, 1310-2018'!C75,\"\")","v":""},{"$f":"IF('IV. Country level, 1310-2018'!D73<0,'III. GDP shares, 1310-2018'!D75,\"\")","v":""},{"$f":"IF('IV. Country level, 1310-2018'!E73<0,'III. GDP shares, 1310-2018'!E75,\"\")","v":""},{"$f":"IF('IV. Country level, 1310-2018'!F73<0,'III. GDP shares, 1310-2018'!F75,\"\")","v":""},{"$f":"IF('IV. Country level, 1310-2018'!G73<0,'III. GDP shares, 1310-2018'!G75,\"\")","v":""},{"$f":"IF('IV. Country level, 1310-2018'!H73<0,'III. GDP shares, 1310-2018'!H75,\"\")","v":""},{"$f":"IF('IV. Country level, 1310-2018'!I73<0,'III. GDP shares, 1310-2018'!I75,\"\")","v":""},{"$f":"IF('IV. Country level, 1310-2018'!J73<0,'III. GDP shares, 1310-2018'!J75,\"\")","v":""},null,0,{"v":0.07429345649198985,"d":"7.43%"},{"v":0.20250823357139602,"d":"20.25%"},{"v":0.14274771526812555,"d":"14.27%"},{"v":0.14796928483687888,"d":"14.80%"}]
[1380,{"$f":"IF('IV. Country level, 1310-2018'!C74<0,'III. GDP shares, 1310-2018'!C76,\"\")","v":""},{"$f":"IF('IV. Country level, 1310-2018'!D74<0,'III. GDP shares, 1310-2018'!D76,\"\")","v":""},{"$f":"IF('IV. Country level, 1310-2018'!E74<0,'III. GDP shares, 1310-2018'!E76,\"\")","v":""},{"$f":"IF('IV. Country level, 1310-2018'!F74<0,'III. GDP shares, 1310-2018'!F76,\"\")","v":""},{"$f":"IF('IV. Country level, 1310-2018'!G74<0,'III. GDP shares, 1310-2018'!G76,\"\")","v":""},{"$f":"IF('IV. Country level, 1310-2018'!H74<0,'III. GDP shares, 1310-2018'!H76,\"\")","v":""},{"$f":"IF('IV. Country level, 1310-2018'!I74<0,'III. GDP shares, 1310-2018'!I76,\"\")","v":""},{"$f":"IF('IV. Country level, 1310-2018'!J74<0,'III. GDP shares, 1310-2018'!J76,\"\")","v":""},null,0,{"v":0.14852486036422433,"d":"14.85%"},{"v":0.20250823357139602,"d":"20.25%"},{"v":0.14274771526812555,"d":"14.27%"},{"v":0.14796928483687888,"d":"14.80%"}]
[1381,{"$f":"IF('IV. Country level, 1310-2018'!C75<0,'III. GDP shares, 1310-2018'!C77,\"\")","v":0.520054195443929},{"$f":"IF('IV. Country level, 1310-2018'!D75<0,'III. GDP shares, 1310-2018'!D77,\"\")","v":""},{"$f":"IF('IV. Country level, 1310-2018'!E75<0,'III. GDP shares, 1310-2018'!E77,\"\")","v":""},{"$f":"IF('IV. Country level, 1310-2018'!F75<0,'III. GDP shares, 1310-2018'!F77,\"\")","v":""},{"$f":"IF('IV. Country level, 1310-2018'!G75<0,'III. GDP shares, 1310-2018'!G77,\"\")","v":""},{"$f":"IF('IV. Country level, 1310-2018'!H75<0,'III. GDP shares, 1310-2018'!H77,\"\")","v":""},{"$f":"IF('IV. Country level, 1310-2018'!I75<0,'III. GDP shares, 1310-2018'!I77,\"\")","v":""},{"$f":"IF('IV. Country level, 1310-2018'!J75<0,'III. GDP shares, 1310-2018'!J77,\"\")","v":""},null,0.520054195443929,{"v":0.14852486036422433,"d":"14.85%"},{"v":0.20250823357139602,"d":"20.25%"},{"v":0.15320508378707484,"d":"15.32%"},{"v":0.14796928483687888,"d":"14.80%"}]
[1382,{"$f":"IF('IV. Country level, 1310-2018'!C76<0,'III. GDP shares, 1310-2018'!C78,\"\")","v":""},{"$f":"IF('IV. Country level, 1310-2018'!D76<0,'III. GDP shares, 1310-2018'!D78,\"\")","v":""},{"$f":"IF('IV. Country level, 1310-2018'!E76<0,'III. GDP shares, 1310-2018'!E78,\"\")","v":""},{"$f":"IF('IV. Country level, 1310-2018'!F76<0,'III. GDP shares, 1310-2018'!F78,\"\")","v":""},{"$f":"IF('IV. Country level, 1310-2018'!G76<0,'III. GDP shares, 1310-2018'!G78,\"\")","v":""},{"$f":"IF('IV. Country level, 1310-2018'!H76<0,'III. GDP shares, 1310-2018'!H78,\"\")","v":""},{"$f":"IF('IV. Country level, 1310-2018'!I76<0,'III. GDP shares, 1310-2018'!I78,\"\")","v":""},{"$f":"IF('IV. Country level, 1310-2018'!J76<0,'III. GDP shares, 1310-2018'!J78,\"\")","v":""},null,0,{"v":0.14852486036422433,"d":"14.85%"},{"v":0.20250823357139602,"d":"20.25%"},{"v":0.15320508378707484,"d":"15.32%"},{"v":0.14796928483687888,"d":"14.80%"}]
[1383,{"$f":"IF('IV. Country level, 1310-2018'!C77<0,'III. GDP shares, 1310-2018'!C79,\"\")","v":0.5196198271056413},{"$f":"IF('IV. Country level, 1310-2018'!D77<0,'III. GDP shares, 1310-2018'!D79,\"\")","v":""},{"$f":"IF('IV. Country level, 1310-2018'!E77<0,'III. GDP shares, 1310-2018'!E79,\"\")","v":""},{"$f":"IF('IV. Country level, 1310-2018'!F77<0,'III. GDP shares, 1310-2018'!F79,\"\")","v":""},{"$f":"IF('IV. Country level, 1310-2018'!G77<0,'III. GDP shares, 1310-2018'!G79,\"\")","v":""},{"$f":"IF('IV. Country level, 1310-2018'!H77<0,'III. GDP shares, 1310-2018'!H79,\"\")","v":""},{"$f":"IF('IV. Country level, 1310-2018'!I77<0,'III. GDP shares, 1310-2018'!I79,\"\")","v":""},{"$f":"IF('IV. Country level, 1310-2018'!J77<0,'III. GDP shares, 1310-2018'!J79,\"\")","v":""},null,0.5196198271056413,{"v":0.14852486036422433,"d":"14.85%"},{"v":0.20250823357139602,"d":"20.25%"},{"v":0.15320508378707484,"d":"15.32%"},{"v":0.14796928483687888,"d":"14.80%"}]
[1384,{"$f":"IF('IV. Country level, 1310-2018'!C78<0,'III. GDP shares, 1310-2018'!C80,\"\")","v":""},{"$f":"IF('IV. Country level, 1310-2018'!D78<0,'III. GDP shares, 1310-2018'!D80,\"\")","v":""},{"$f":"IF('IV. Country level, 1310-2018'!E78<0,'III. GDP shares, 1310-2018'!E80,\"\")","v":""},{"$f":"IF('IV. Country level, 1310-2018'!F78<0,'III. GDP shares, 1310-2018'!F80,\"\")","v":""},{"$f":"IF('IV. Country level, 1310-2018'!G78<0,'III. GDP shares, 1310-2018'!G80,\"\")","v":""},{"$f":"IF('IV. Country level, 1310-2018'!H78<0,'III. GDP shares, 1310-2018'!H80,\"\")","v":""},{"$f":"IF('IV. Country level, 1310-2018'!I78<0,'III. GDP shares, 1310-2018'!I80,\"\")","v":""},{"$f":"IF('IV. Country level, 1310-2018'!J78<0,'III. GDP shares, 1310-2018'!J80,\"\")","v":""},null,0,{"v":0.14852486036422433,"d":"14.85%"},{"v":0.20250823357139602,"d":"20.25%"},{"v":0.1381426476897265,"d":"13.81%"},{"v":0.14796928483687888,"d":"14.80%"}]
[1385,{"$f":"IF('IV. Country level, 1310-2018'!C79<0,'III. GDP shares, 1310-2018'!C81,\"\")","v":""},{"$f":"IF('IV. Country level, 1310-2018'!D79<0,'III. GDP shares, 1310-2018'!D81,\"\")","v":""},{"$f":"IF('IV. Country level, 1310-2018'!E79<0,'III. GDP shares, 1310-2018'!E81,\"\")","v":""},{"$f":"IF('IV. Country level, 1310-2018'!F79<0,'III. GDP shares, 1310-2018'!F81,\"\")","v":""},{"$f":"IF('IV. Country level, 1310-2018'!G79<0,'III. GDP shares, 1310-2018'!G81,\"\")","v":""},{"$f":"IF('IV. Country level, 1310-2018'!H79<0,'III. GDP shares, 1310-2018'!H81,\"\")","v":""},{"$f":"IF('IV. Country level, 1310-2018'!I79<0,'III. GDP shares, 1310-2018'!I81,\"\")","v":""},{"$f":"IF('IV. Country level, 1310-2018'!J79<0,'III. GDP shares, 1310-2018'!J81,\"\")","v":""},null,0,{"v":0.1236537931637823,"d":"12.37%"},{"v":0.20250823357139602,"d":"20.25%"},{"v":0.13331348301455656,"d":"13.33%"},{"v":0.14796928483687888,"d":"14.80%"}]
[1386,{"$f":"IF('IV. Country level, 1310-2018'!C80<0,'III. GDP shares, 1310-2018'!C82,\"\")","v":""},{"$f":"IF('IV. Country level, 1310-2018'!D80<0,'III. GDP shares, 1310-2018'!D82,\"\")","v":""},{"$f":"IF('IV. Country level, 1310-2018'!E80<0,'III. GDP shares, 1310-2018'!E82,\"\")","v":""},{"$f":"IF('IV. Country level, 1310-2018'!F80<0,'III. GDP shares, 1310-2018'!F82,\"\")","v":""},{"$f":"IF('IV. Country level, 1310-2018'!G80<0,'III. GDP shares, 1310-2018'!G82,\"\")","v":""},{"$f":"IF('IV. Country level, 1310-2018'!H80<0,'III. GDP shares, 1310-2018'!H82,\"\")","v":""},{"$f":"IF('IV. Country level, 1310-2018'!I80<0,'III. GDP shares, 1310-2018'!I82,\"\")","v":""},{"$f":"IF('IV. Country level, 1310-2018'!J80<0,'III. GDP shares, 1310-2018'!J82,\"\")","v":""},null,0,{"v":0.17306244460991804,"d":"17.31%"},{"v":0.20250823357139602,"d":"20.25%"},{"v":0.13331348301455656,"d":"13.33%"},{"v":0.14796928483687888,"d":"14.80%"}]
[1387,{"$f":"IF('IV. Country level, 1310-2018'!C81<0,'III. GDP shares, 1310-2018'!C83,\"\")","v":""},{"$f":"IF('IV. Country level, 1310-2018'!D81<0,'III. GDP shares, 1310-2018'!D83,\"\")","v":""},{"$f":"IF('IV. Country level, 1310-2018'!E81<0,'III. GDP shares, 1310-2018'!E83,\"\")","v":""},{"$f":"IF('IV. Country level, 1310-2018'!F81<0,'III. GDP shares, 1310-2018'!F83,\"\")","v":""},{"$f":"IF('IV. Country level, 1310-2018'!G81<0,'III. GDP shares, 1310-2018'!G83,\"\")","v":""},{"$f":"IF('IV. Country level, 1310-2018'!H81<0,'III. GDP shares, 1310-2018'!H83,\"\")","v":""},{"$f":"IF('IV. Country level, 1310-2018'!I81<0,'III. GDP shares, 1310-2018'!I83,\"\")","v":""},{"$f":"IF('IV. Country level, 1310-2018'!J81<0,'III. GDP shares, 1310-2018'!J83,\"\")","v":""},null,0,{"v":0.09883104073768358,"d":"9.88%"},{"v":0.20250823357139602,"d":"20.25%"},{"v":0.11442959852447011,"d":"11.44%"},{"v":0.14796928483687888,"d":"14.80%"}]
[1388,{"$f":"IF('IV. Country level, 1310-2018'!C82<0,'III. GDP shares, 1310-2018'!C84,\"\")","v":0.34595672504083486},{"$f":"IF('IV. Country level, 1310-2018'!D82<0,'III. GDP shares, 1310-2018'!D84,\"\")","v":""},{"$f":"IF('IV. Country level, 1310-2018'!E82<0,'III. GDP shares, 1310-2018'!E84,\"\")","v":""},{"$f":"IF('IV. Country level, 1310-2018'!F82<0,'III. GDP shares, 1310-2018'!F84,\"\")","v":""},{"$f":"IF('IV. Country level, 1310-2018'!G82<0,'III. GDP shares, 1310-2018'!G84,\"\")","v":""},{"$f":"IF('IV. Country level, 1310-2018'!H82<0,'III. GDP shares, 1310-2018'!H84,\"\")","v":""},{"$f":"IF('IV. Country level, 1310-2018'!I82<0,'III. GDP shares, 1310-2018'!I84,\"\")","v":""},{"$f":"IF('IV. Country level, 1310-2018'!J82<0,'III. GDP shares, 1310-2018'!J84,\"\")","v":""},null,0.34595672504083486,{"v":0.09883104073768358,"d":"9.88%"},{"v":0.20250823357139602,"d":"20.25%"},{"v":0.11442959852447011,"d":"11.44%"},{"v":0.14796928483687888,"d":"14.80%"}]
[1389,{"$f":"IF('IV. Country level, 1310-2018'!C83<0,'III. GDP shares, 1310-2018'!C85,\"\")","v":0.3458605601229502},{"$f":"IF('IV. Country level, 1310-2018'!D83<0,'III. GDP shares, 1310-2018'!D85,\"\")","v":""},{"$f":"IF('IV. Country level, 1310-2018'!E83<0,'III. GDP shares, 1310-2018'!E85,\"\")","v":""},{"$f":"IF('IV. Country level, 1310-2018'!F83<0,'III. GDP shares, 1310-2018'!F85,\"\")","v":""},{"$f":"IF('IV. Country level, 1310-2018'!G83<0,'III. GDP shares, 1310-2018'!G85,\"\")","v":""},{"$f":"IF('IV. Country level, 1310-2018'!H83<0,'III. GDP shares, 1310-2018'!H85,\"\")","v":""},{"$f":"IF('IV. Country level, 1310-2018'!I83<0,'III. GDP shares, 1310-2018'!I85,\"\")","v":""},{"$f":"IF('IV. Country level, 1310-2018'!J83<0,'III. GDP shares, 1310-2018'!J85,\"\")","v":""},null,0.3458605601229502,{"v":0.09883104073768358,"d":"9.88%"},{"v":0.20250823357139602,"d":"20.25%"},{"v":0.12464490563895815,"d":"12.46%"},{"v":0.14796928483687888,"d":"14.80%"}]
[1390,{"$f":"IF('IV. Country level, 1310-2018'!C84<0,'III. GDP shares, 1310-2018'!C86,\"\")","v":""},{"$f":"IF('IV. Country level, 1310-2018'!D84<0,'III. GDP shares, 1310-2018'!D86,\"\")","v":""},{"$f":"IF('IV. Country level, 1310-2018'!E84<0,'III. GDP shares, 1310-2018'!E86,\"\")","v":""},{"$f":"IF('IV. Country level, 1310-2018'!F84<0,'III. GDP shares, 1310-2018'!F86,\"\")","v":""},{"$f":"IF('IV. Country level, 1310-2018'!G84<0,'III. GDP shares, 1310-2018'!G86,\"\")","v":""},{"$f":"IF('IV. Country level, 1310-2018'!H84<0,'III. GDP shares, 1310-2018'!H86,\"\")","v":""},{"$f":"IF('IV. Country level, 1310-2018'!I84<0,'III. GDP shares, 1310-2018'!I86,\"\")","v":""},{"$f":"IF('IV. Country level, 1310-2018'!J84<0,'III. GDP shares, 1310-2018'!J86,\"\")","v":""},null,0,{"v":0.09883104073768358,"d":"9.88%"},{"v":0.20250823357139602,"d":"20.25%"},{"v":0.12464490563895815,"d":"12.46%"},{"v":0.14796928483687888,"d":"14.80%"}]
[1391,{"$f":"IF('IV. Country level, 1310-2018'!C85<0,'III. GDP shares, 1310-2018'!C87,\"\")","v":""},{"$f":"IF('IV. Country level, 1310-2018'!D85<0,'III. GDP shares, 1310-2018'!D87,\"\")","v":""},{"$f":"IF('IV. Country level, 1310-2018'!E85<0,'III. GDP shares, 1310-2018'!E87,\"\")","v":""},{"$f":"IF('IV. Country level, 1310-2018'!F85<0,'III. GDP shares, 1310-2018'!F87,\"\")","v":""},{"$f":"IF('IV. Country level, 1310-2018'!G85<0,'III. GDP shares, 1310-2018'!G87,\"\")","v":""},{"$f":"IF('IV. Country level, 1310-2018'!H85<0,'III. GDP shares, 1310-2018'!H87,\"\")","v":""},{"$f":"IF('IV. Country level, 1310-2018'!I85<0,'III. GDP shares, 1310-2018'!I87,\"\")","v":""},{"$f":"IF('IV. Country level, 1310-2018'!J85<0,'III. GDP shares, 1310-2018'!J87,\"\")","v":""},null,0,{"v":0.09883104073768358,"d":"9.88%"},{"v":0.20250823357139602,"d":"20.25%"},{"$f":"AVERAGE(K71:K103)","v":{"v":0.10963050982410574,"d":"10.96%"}},{"v":0.14796928483687888,"d":"14.80%"}]
[1392,{"$f":"IF('IV. Country level, 1310-2018'!C86<0,'III. GDP shares, 1310-2018'!C88,\"\")","v":""},{"$f":"IF('IV. Country level, 1310-2018'!D86<0,'III. GDP shares, 1310-2018'!D88,\"\")","v":""},{"$f":"IF('IV. Country level, 1310-2018'!E86<0,'III. GDP shares, 1310-2018'!E88,\"\")","v":""},{"$f":"IF('IV. Country level, 1310-2018'!F86<0,'III. GDP shares, 1310-2018'!F88,\"\")","v":""},{"$f":"IF('IV. Country level, 1310-2018'!G86<0,'III. GDP shares, 1310-2018'!G88,\"\")","v":""},{"$f":"IF('IV. Country level, 1310-2018'!H86<0,'III. GDP shares, 1310-2018'!H88,\"\")","v":""},{"$f":"IF('IV. Country level, 1310-2018'!I86<0,'III. GDP shares, 1310-2018'!I88,\"\")","v":""},{"$f":"IF('IV. Country level, 1310-2018'!J86<0,'III. GDP shares, 1310-2018'!J88,\"\")","v":""},null,0,{"v":0.0987350359374044,"d":"9.87%"},{"v":0.20250823357139602,"d":"20.25%"},{"v":0.10403868229757363,"d":"10.40%"},{"v":0.14796928483687888,"d":"14.80%"}]
[1393,{"$f":"IF('IV. Country level, 1310-2018'!C87<0,'III. GDP shares, 1310-2018'!C89,\"\")","v":""},{"$f":"IF('IV. Country level, 1310-2018'!D87<0,'III. GDP shares, 1310-2018'!D89,\"\")","v":""},{"$f":"IF('IV. Country level, 1310-2018'!E87<0,'III. GDP shares, 1310-2018'!E89,\"\")","v":""},{"$f":"IF('IV. Country level, 1310-2018'!F87<0,'III. GDP shares, 1310-2018'!F89,\"\")","v":""},{"$f":"IF('IV. Country level, 1310-2018'!G87<0,'III. GDP shares, 1310-2018'!G89,\"\")","v":""},{"$f":"IF('IV. Country level, 1310-2018'!H87<0,'III. GDP shares, 1310-2018'!H89,\"\")","v":""},{"$f":"IF('IV. Country level, 1310-2018'!I87<0,'III. GDP shares, 1310-2018'!I89,\"\")","v":""},{"$f":"IF('IV. Country level, 1310-2018'!J87<0,'III. GDP shares, 1310-2018'!J89,\"\")","v":""},null,0,{"v":0.04932638449126866,"d":"4.93%"},{"v":0.20250823357139602,"d":"20.25%"},{"v":0.10403868229757363,"d":"10.40%"},{"v":0.14796928483687888,"d":"14.80%"}]
[1394,{"$f":"IF('IV. Country level, 1310-2018'!C88<0,'III. GDP shares, 1310-2018'!C90,\"\")","v":""},{"$f":"IF('IV. Country level, 1310-2018'!D88<0,'III. GDP shares, 1310-2018'!D90,\"\")","v":""},{"$f":"IF('IV. Country level, 1310-2018'!E88<0,'III. GDP shares, 1310-2018'!E90,\"\")","v":""},{"$f":"IF('IV. Country level, 1310-2018'!F88<0,'III. GDP shares, 1310-2018'!F90,\"\")","v":""},{"$f":"IF('IV. Country level, 1310-2018'!G88<0,'III. GDP shares, 1310-2018'!G90,\"\")","v":""},{"$f":"IF('IV. Country level, 1310-2018'!H88<0,'III. GDP shares, 1310-2018'!H90,\"\")","v":""},{"$f":"IF('IV. Country level, 1310-2018'!I88<0,'III. GDP shares, 1310-2018'!I90,\"\")","v":""},{"$f":"IF('IV. Country level, 1310-2018'!J88<0,'III. GDP shares, 1310-2018'!J90,\"\")","v":""},null,0,{"v":0.09862540750917251,"d":"9.86%"},{"v":0.20250823357139602,"d":"20.25%"},{"v":0.10403868229757363,"d":"10.40%"},{"v":0.14796928483687888,"d":"14.80%"}]
[1395,{"$f":"IF('IV. Country level, 1310-2018'!C89<0,'III. GDP shares, 1310-2018'!C91,\"\")","v":0.34528469143888063},{"$f":"IF('IV. Country level, 1310-2018'!D89<0,'III. GDP shares, 1310-2018'!D91,\"\")","v":""},{"$f":"IF('IV. Country level, 1310-2018'!E89<0,'III. GDP shares, 1310-2018'!E91,\"\")","v":""},{"$f":"IF('IV. Country level, 1310-2018'!F89<0,'III. GDP shares, 1310-2018'!F91,\"\")","v":""},{"$f":"IF('IV. Country level, 1310-2018'!G89<0,'III. GDP shares, 1310-2018'!G91,\"\")","v":""},{"$f":"IF('IV. Country level, 1310-2018'!H89<0,'III. GDP shares, 1310-2018'!H91,\"\")","v":""},{"$f":"IF('IV. Country level, 1310-2018'!I89<0,'III. GDP shares, 1310-2018'!I91,\"\")","v":""},{"$f":"IF('IV. Country level, 1310-2018'!J89<0,'III. GDP shares, 1310-2018'!J91,\"\")","v":""},null,0.34528469143888063,{"v":0.09862540750917251,"d":"9.86%"},{"v":0.20250823357139602,"d":"20.25%"},{"v":0.11423741048264185,"d":"11.42%"},{"v":0.14796928483687888,"d":"14.80%"}]
[1396,{"$f":"IF('IV. Country level, 1310-2018'!C90<0,'III. GDP shares, 1310-2018'!C92,\"\")","v":""},{"$f":"IF('IV. Country level, 1310-2018'!D90<0,'III. GDP shares, 1310-2018'!D92,\"\")","v":""},{"$f":"IF('IV. Country level, 1310-2018'!E90<0,'III. GDP shares, 1310-2018'!E92,\"\")","v":""},{"$f":"IF('IV. Country level, 1310-2018'!F90<0,'III. GDP shares, 1310-2018'!F92,\"\")","v":""},{"$f":"IF('IV. Country level, 1310-2018'!G90<0,'III. GDP shares, 1310-2018'!G92,\"\")","v":""},{"$f":"IF('IV. Country level, 1310-2018'!H90<0,'III. GDP shares, 1310-2018'!H92,\"\")","v":""},{"$f":"IF('IV. Country level, 1310-2018'!I90<0,'III. GDP shares, 1310-2018'!I92,\"\")","v":""},{"$f":"IF('IV. Country level, 1310-2018'!J90<0,'III. GDP shares, 1310-2018'!J92,\"\")","v":""},null,0,{"v":0.09862540750917251,"d":"9.86%"},{"v":0.20250823357139602,"d":"20.25%"},{"v":0.11423741048264185,"d":"11.42%"},{"v":0.14796928483687888,"d":"14.80%"}]
[1397,{"$f":"IF('IV. Country level, 1310-2018'!C91<0,'III. GDP shares, 1310-2018'!C93,\"\")","v":0.34509316112532695},{"$f":"IF('IV. Country level, 1310-2018'!D91<0,'III. GDP shares, 1310-2018'!D93,\"\")","v":""},{"$f":"IF('IV. Country level, 1310-2018'!E91<0,'III. GDP shares, 1310-2018'!E93,\"\")","v":""},{"$f":"IF('IV. Country level, 1310-2018'!F91<0,'III. GDP shares, 1310-2018'!F93,\"\")","v":""},{"$f":"IF('IV. Country level, 1310-2018'!G91<0,'III. GDP shares, 1310-2018'!G93,\"\")","v":""},{"$f":"IF('IV. Country level, 1310-2018'!H91<0,'III. GDP shares, 1310-2018'!H93,\"\")","v":""},{"$f":"IF('IV. Country level, 1310-2018'!I91<0,'III. GDP shares, 1310-2018'!I93,\"\")","v":""},{"$f":"IF('IV. Country level, 1310-2018'!J91<0,'III. GDP shares, 1310-2018'!J93,\"\")","v":""},null,0.34509316112532695,{"v":0.09862540750917251,"d":"9.86%"},{"v":0.20250823357139602,"d":"20.25%"},{"v":0.11423741048264185,"d":"11.42%"},{"v":0.14796928483687888,"d":"14.80%"}]
[1398,{"$f":"IF('IV. Country level, 1310-2018'!C92<0,'III. GDP shares, 1310-2018'!C94,\"\")","v":""},{"$f":"IF('IV. Country level, 1310-2018'!D92<0,'III. GDP shares, 1310-2018'!D94,\"\")","v":""},{"$f":"IF('IV. Country level, 1310-2018'!E92<0,'III. GDP shares, 1310-2018'!E94,\"\")","v":""},{"$f":"IF('IV. Country level, 1310-2018'!F92<0,'III. GDP shares, 1310-2018'!F94,\"\")","v":""},{"$f":"IF('IV. Country level, 1310-2018'!G92<0,'III. GDP shares, 1310-2018'!G94,\"\")","v":""},{"$f":"IF('IV. Country level, 1310-2018'!H92<0,'III. GDP shares, 1310-2018'!H94,\"\")","v":""},{"$f":"IF('IV. Country level, 1310-2018'!I92<0,'III. GDP shares, 1310-2018'!I94,\"\")","v":""},{"$f":"IF('IV. Country level, 1310-2018'!J92<0,'III. GDP shares, 1310-2018'!J94,\"\")","v":""},null,0,{"v":0.14683553043527242,"d":"14.68%"},{"v":0.20250823357139602,"d":"20.25%"},{"v":0.10866865132295858,"d":"10.87%"},{"v":0.14796928483687888,"d":"14.80%"}]
[1399,{"$f":"IF('IV. Country level, 1310-2018'!C93<0,'III. GDP shares, 1310-2018'!C95,\"\")","v":""},{"$f":"IF('IV. Country level, 1310-2018'!D93<0,'III. GDP shares, 1310-2018'!D95,\"\")","v":""},{"$f":"IF('IV. Country level, 1310-2018'!E93<0,'III. GDP shares, 1310-2018'!E95,\"\")","v":""},{"$f":"IF('IV. Country level, 1310-2018'!F93<0,'III. GDP shares, 1310-2018'!F95,\"\")","v":""},{"$f":"IF('IV. Country level, 1310-2018'!G93<0,'III. GDP shares, 1310-2018'!G95,\"\")","v":""},{"$f":"IF('IV. Country level, 1310-2018'!H93<0,'III. GDP shares, 1310-2018'!H95,\"\")","v":""},{"$f":"IF('IV. Country level, 1310-2018'!I93<0,'III. GDP shares, 1310-2018'!I95,\"\")","v":""},{"$f":"IF('IV. Country level, 1310-2018'!J93<0,'III. GDP shares, 1310-2018'!J95,\"\")","v":""},null,0,{"v":0.09750914594400377,"d":"9.75%"},{"v":0.20250823357139602,"d":"20.25%"},{"v":0.11885635675251079,"d":"11.89%"},{"v":0.14796928483687888,"d":"14.80%"}]
[1400,{"$f":"IF('IV. Country level, 1310-2018'!C94<0,'III. GDP shares, 1310-2018'!C96,\"\")","v":""},{"$f":"IF('IV. Country level, 1310-2018'!D94<0,'III. GDP shares, 1310-2018'!D96,\"\")","v":""},{"$f":"IF('IV. Country level, 1310-2018'!E94<0,'III. GDP shares, 1310-2018'!E96,\"\")","v":""},{"$f":"IF('IV. Country level, 1310-2018'!F94<0,'III. GDP shares, 1310-2018'!F96,\"\")","v":""},{"$f":"IF('IV. Country level, 1310-2018'!G94<0,'III. GDP shares, 1310-2018'!G96,\"\")","v":""},{"$f":"IF('IV. Country level, 1310-2018'!H94<0,'III. GDP shares, 1310-2018'!H96,\"\")","v":""},{"$f":"IF('IV. Country level, 1310-2018'!I94<0,'III. GDP shares, 1310-2018'!I96,\"\")","v":""},{"$f":"IF('IV. Country level, 1310-2018'!J94<0,'III. GDP shares, 1310-2018'!J96,\"\")","v":""},null,0,{"v":0.09750914594400377,"d":"9.75%"},{"v":0.20250823357139602,"d":"20.25%"},{"v":0.11329525484826627,"d":"11.33%"},{"$f":"AVERAGE(L$96:L$195)","v":{"v":0.14727141335030935,"d":"14.73%"}}]
[1401,{"$f":"IF('IV. Country level, 1310-2018'!C95<0,'III. GDP shares, 1310-2018'!C97,\"\")","v":0.3374708604826994},{"$f":"IF('IV. Country level, 1310-2018'!D95<0,'III. GDP shares, 1310-2018'!D97,\"\")","v":""},{"$f":"IF('IV. Country level, 1310-2018'!E95<0,'III. GDP shares, 1310-2018'!E97,\"\")","v":""},{"$f":"IF('IV. Country level, 1310-2018'!F95<0,'III. GDP shares, 1310-2018'!F97,\"\")","v":""},{"$f":"IF('IV. Country level, 1310-2018'!G95<0,'III. GDP shares, 1310-2018'!G97,\"\")","v":""},{"$f":"IF('IV. Country level, 1310-2018'!H95<0,'III. GDP shares, 1310-2018'!H97,\"\")","v":""},{"$f":"IF('IV. Country level, 1310-2018'!I95<0,'III. GDP shares, 1310-2018'!I97,\"\")","v":""},{"$f":"IF('IV. Country level, 1310-2018'!J95<0,'III. GDP shares, 1310-2018'!J97,\"\")","v":""},null,0.3374708604826994,{"v":0.04821012292609992,"d":"4.82%"},{"v":0.20250823357139602,"d":"20.25%"},{"v":0.11329525484826627,"d":"11.33%"},{"$f":"AVERAGE(L$96:L$195)","v":{"v":0.14727141335030935,"d":"14.73%"}}]
[1402,{"$f":"IF('IV. Country level, 1310-2018'!C96<0,'III. GDP shares, 1310-2018'!C98,\"\")","v":""},{"$f":"IF('IV. Country level, 1310-2018'!D96<0,'III. GDP shares, 1310-2018'!D98,\"\")","v":""},{"$f":"IF('IV. Country level, 1310-2018'!E96<0,'III. GDP shares, 1310-2018'!E98,\"\")","v":""},{"$f":"IF('IV. Country level, 1310-2018'!F96<0,'III. GDP shares, 1310-2018'!F98,\"\")","v":""},{"$f":"IF('IV. Country level, 1310-2018'!G96<0,'III. GDP shares, 1310-2018'!G98,\"\")","v":""},{"$f":"IF('IV. Country level, 1310-2018'!H96<0,'III. GDP shares, 1310-2018'!H98,\"\")","v":""},{"$f":"IF('IV. Country level, 1310-2018'!I96<0,'III. GDP shares, 1310-2018'!I98,\"\")","v":""},{"$f":"IF('IV. Country level, 1310-2018'!J96<0,'III. GDP shares, 1310-2018'!J98,\"\")","v":""},null,0,{"v":0.09636799932297203,"d":"9.64%"},{"v":0.20250823357139602,"d":"20.25%"},{"v":0.11329525484826627,"d":"11.33%"},{"v":0.14727141335030935,"d":"14.73%"}]
[1403,{"$f":"IF('IV. Country level, 1310-2018'!C97<0,'III. GDP shares, 1310-2018'!C99,\"\")","v":""},{"$f":"IF('IV. Country level, 1310-2018'!D97<0,'III. GDP shares, 1310-2018'!D99,\"\")","v":""},{"$f":"IF('IV. Country level, 1310-2018'!E97<0,'III. GDP shares, 1310-2018'!E99,\"\")","v":""},{"$f":"IF('IV. Country level, 1310-2018'!F97<0,'III. GDP shares, 1310-2018'!F99,\"\")","v":""},{"$f":"IF('IV. Country level, 1310-2018'!G97<0,'III. GDP shares, 1310-2018'!G99,\"\")","v":""},{"$f":"IF('IV. Country level, 1310-2018'!H97<0,'III. GDP shares, 1310-2018'!H99,\"\")","v":""},{"$f":"IF('IV. Country level, 1310-2018'!I97<0,'III. GDP shares, 1310-2018'!I99,\"\")","v":""},{"$f":"IF('IV. Country level, 1310-2018'!J97<0,'III. GDP shares, 1310-2018'!J99,\"\")","v":""},null,0,{"v":0.09636799932297203,"d":"9.64%"},{"v":0.20250823357139602,"d":"20.25%"},{"v":0.12216248605555516,"d":"12.22%"},{"v":0.14727141335030935,"d":"14.73%"}]
[1404,{"$f":"IF('IV. Country level, 1310-2018'!C98<0,'III. GDP shares, 1310-2018'!C100,\"\")","v":""},{"$f":"IF('IV. Country level, 1310-2018'!D98<0,'III. GDP shares, 1310-2018'!D100,\"\")","v":""},{"$f":"IF('IV. Country level, 1310-2018'!E98<0,'III. GDP shares, 1310-2018'!E100,\"\")","v":""},{"$f":"IF('IV. Country level, 1310-2018'!F98<0,'III. GDP shares, 1310-2018'!F100,\"\")","v":""},{"$f":"IF('IV. Country level, 1310-2018'!G98<0,'III. GDP shares, 1310-2018'!G100,\"\")","v":""},{"$f":"IF('IV. Country level, 1310-2018'!H98<0,'III. GDP shares, 1310-2018'!H100,\"\")","v":""},{"$f":"IF('IV. Country level, 1310-2018'!I98<0,'III. GDP shares, 1310-2018'!I100,\"\")","v":""},{"$f":"IF('IV. Country level, 1310-2018'!J98<0,'III. GDP shares, 1310-2018'!J100,\"\")","v":""},null,0,{"v":0.09636799932297203,"d":"9.64%"},{"v":0.20250823357139602,"d":"20.25%"},{"v":0.13102612932775762,"d":"13.10%"},{"v":0.14727141335030935,"d":"14.73%"}]
[1405,{"$f":"IF('IV. Country level, 1310-2018'!C99<0,'III. GDP shares, 1310-2018'!C101,\"\")","v":0.33710513477810483},{"$f":"IF('IV. Country level, 1310-2018'!D99<0,'III. GDP shares, 1310-2018'!D101,\"\")","v":""},{"$f":"IF('IV. Country level, 1310-2018'!E99<0,'III. GDP shares, 1310-2018'!E101,\"\")","v":""},{"$f":"IF('IV. Country level, 1310-2018'!F99<0,'III. GDP shares, 1310-2018'!F101,\"\")","v":""},{"$f":"IF('IV. Country level, 1310-2018'!G99<0,'III. GDP shares, 1310-2018'!G101,\"\")","v":""},{"$f":"IF('IV. Country level, 1310-2018'!H99<0,'III. GDP shares, 1310-2018'!H101,\"\")","v":""},{"$f":"IF('IV. Country level, 1310-2018'!I99<0,'III. GDP shares, 1310-2018'!I101,\"\")","v":""},{"$f":"IF('IV. Country level, 1310-2018'!J99<0,'III. GDP shares, 1310-2018'!J101,\"\")","v":""},null,0.33710513477810483,{"v":0.09627664215138103,"d":"9.63%"},{"v":0.20250823357139602,"d":"20.25%"},{"v":0.124448914781123,"d":"12.44%"},{"v":0.14727141335030935,"d":"14.73%"}]
[1406,{"$f":"IF('IV. Country level, 1310-2018'!C100<0,'III. GDP shares, 1310-2018'!C102,\"\")","v":""},{"$f":"IF('IV. Country level, 1310-2018'!D100<0,'III. GDP shares, 1310-2018'!D102,\"\")","v":""},{"$f":"IF('IV. Country level, 1310-2018'!E100<0,'III. GDP shares, 1310-2018'!E102,\"\")","v":""},{"$f":"IF('IV. Country level, 1310-2018'!F100<0,'III. GDP shares, 1310-2018'!F102,\"\")","v":""},{"$f":"IF('IV. Country level, 1310-2018'!G100<0,'III. GDP shares, 1310-2018'!G102,\"\")","v":""},{"$f":"IF('IV. Country level, 1310-2018'!H100<0,'III. GDP shares, 1310-2018'!H102,\"\")","v":""},{"$f":"IF('IV. Country level, 1310-2018'!I100<0,'III. GDP shares, 1310-2018'!I102,\"\")","v":""},{"$f":"IF('IV. Country level, 1310-2018'!J100<0,'III. GDP shares, 1310-2018'!J102,\"\")","v":""},null,0,{"v":0.09627664215138103,"d":"9.63%"},{"v":0.20250823357139602,"d":"20.25%"},{"v":0.11396829174709418,"d":"11.40%"},{"v":0.14727141335030935,"d":"14.73%"}]
[1407,{"$f":"IF('IV. Country level, 1310-2018'!C101<0,'III. GDP shares, 1310-2018'!C103,\"\")","v":""},{"$f":"IF('IV. Country level, 1310-2018'!D101<0,'III. GDP shares, 1310-2018'!D103,\"\")","v":""},{"$f":"IF('IV. Country level, 1310-2018'!E101<0,'III. GDP shares, 1310-2018'!E103,\"\")","v":""},{"$f":"IF('IV. Country level, 1310-2018'!F101<0,'III. GDP shares, 1310-2018'!F103,\"\")","v":""},{"$f":"IF('IV. Country level, 1310-2018'!G101<0,'III. GDP shares, 1310-2018'!G103,\"\")","v":""},{"$f":"IF('IV. Country level, 1310-2018'!H101<0,'III. GDP shares, 1310-2018'!H103,\"\")","v":""},{"$f":"IF('IV. Country level, 1310-2018'!I101<0,'III. GDP shares, 1310-2018'!I103,\"\")","v":""},{"$f":"IF('IV. Country level, 1310-2018'!J101<0,'III. GDP shares, 1310-2018'!J103,\"\")","v":""},null,0,{"v":0.09627664215138103,"d":"9.63%"},{"v":0.20250823357139602,"d":"20.25%"},{"v":0.12282118861428798,"d":"12.28%"},{"v":0.14727141335030935,"d":"14.73%"}]
[1408,{"$f":"IF('IV. Country level, 1310-2018'!C102<0,'III. GDP shares, 1310-2018'!C104,\"\")","v":0.3368313602815624},{"$f":"IF('IV. Country level, 1310-2018'!D102<0,'III. GDP shares, 1310-2018'!D104,\"\")","v":""},{"$f":"IF('IV. Country level, 1310-2018'!E102<0,'III. GDP shares, 1310-2018'!E104,\"\")","v":""},{"$f":"IF('IV. Country level, 1310-2018'!F102<0,'III. GDP shares, 1310-2018'!F104,\"\")","v":""},{"$f":"IF('IV. Country level, 1310-2018'!G102<0,'III. GDP shares, 1310-2018'!G104,\"\")","v":""},{"$f":"IF('IV. Country level, 1310-2018'!H102<0,'III. GDP shares, 1310-2018'!H104,\"\")","v":""},{"$f":"IF('IV. Country level, 1310-2018'!I102<0,'III. GDP shares, 1310-2018'!I104,\"\")","v":""},{"$f":"IF('IV. Country level, 1310-2018'!J102<0,'III. GDP shares, 1310-2018'!J104,\"\")","v":""},null,0.3368313602815624,{"v":0.14435636073813127,"d":"14.44%"},{"v":0.20250823357139602,"d":"20.25%"},{"v":0.12282118861428798,"d":"12.28%"},{"v":0.14727141335030935,"d":"14.73%"}]
[1409,{"$f":"IF('IV. Country level, 1310-2018'!C103<0,'III. GDP shares, 1310-2018'!C105,\"\")","v":""},{"$f":"IF('IV. Country level, 1310-2018'!D103<0,'III. GDP shares, 1310-2018'!D105,\"\")","v":""},{"$f":"IF('IV. Country level, 1310-2018'!E103<0,'III. GDP shares, 1310-2018'!E105,\"\")","v":""},{"$f":"IF('IV. Country level, 1310-2018'!F103<0,'III. GDP shares, 1310-2018'!F105,\"\")","v":""},{"$f":"IF('IV. Country level, 1310-2018'!G103<0,'III. GDP shares, 1310-2018'!G105,\"\")","v":""},{"$f":"IF('IV. Country level, 1310-2018'!H103<0,'III. GDP shares, 1310-2018'!H105,\"\")","v":""},{"$f":"IF('IV. Country level, 1310-2018'!I103<0,'III. GDP shares, 1310-2018'!I105,\"\")","v":""},{"$f":"IF('IV. Country level, 1310-2018'!J103<0,'III. GDP shares, 1310-2018'!J105,\"\")","v":""},null,0,{"v":0.09619848434125915,"d":"9.62%"},{"v":0.20250823357139602,"d":"20.25%"},{"v":0.13166693567655272,"d":"13.17%"},{"v":0.14727141335030935,"d":"14.73%"}]
[1410,{"$f":"IF('IV. Country level, 1310-2018'!C104<0,'III. GDP shares, 1310-2018'!C106,\"\")","v":""},{"$f":"IF('IV. Country level, 1310-2018'!D104<0,'III. GDP shares, 1310-2018'!D106,\"\")","v":""},{"$f":"IF('IV. Country level, 1310-2018'!E104<0,'III. GDP shares, 1310-2018'!E106,\"\")","v":""},{"$f":"IF('IV. Country level, 1310-2018'!F104<0,'III. GDP shares, 1310-2018'!F106,\"\")","v":""},{"$f":"IF('IV. Country level, 1310-2018'!G104<0,'III. GDP shares, 1310-2018'!G106,\"\")","v":""},{"$f":"IF('IV. Country level, 1310-2018'!H104<0,'III. GDP shares, 1310-2018'!H106,\"\")","v":""},{"$f":"IF('IV. Country level, 1310-2018'!I104<0,'III. GDP shares, 1310-2018'!I106,\"\")","v":""},{"$f":"IF('IV. Country level, 1310-2018'!J104<0,'III. GDP shares, 1310-2018'!J106,\"\")","v":""},null,0,{"v":0.09619848434125915,"d":"9.62%"},{"v":0.20250823357139602,"d":"20.25%"},{"v":0.13166693567655272,"d":"13.17%"},{"v":0.14727141335030935,"d":"14.73%"}]
[1411,{"$f":"IF('IV. Country level, 1310-2018'!C105<0,'III. GDP shares, 1310-2018'!C107,\"\")","v":0.33655803010725166},{"$f":"IF('IV. Country level, 1310-2018'!D105<0,'III. GDP shares, 1310-2018'!D107,\"\")","v":""},{"$f":"IF('IV. Country level, 1310-2018'!E105<0,'III. GDP shares, 1310-2018'!E107,\"\")","v":""},{"$f":"IF('IV. Country level, 1310-2018'!F105<0,'III. GDP shares, 1310-2018'!F107,\"\")","v":""},{"$f":"IF('IV. Country level, 1310-2018'!G105<0,'III. GDP shares, 1310-2018'!G107,\"\")","v":""},{"$f":"IF('IV. Country level, 1310-2018'!H105<0,'III. GDP shares, 1310-2018'!H107,\"\")","v":""},{"$f":"IF('IV. Country level, 1310-2018'!I105<0,'III. GDP shares, 1310-2018'!I107,\"\")","v":""},{"$f":"IF('IV. Country level, 1310-2018'!J105<0,'III. GDP shares, 1310-2018'!J107,\"\")","v":""},null,0.33655803010725166,{"v":0.14423921908045642,"d":"14.42%"},{"v":0.20250823357139602,"d":"20.25%"},{"v":0.13166693567655272,"d":"13.17%"},{"v":0.14727141335030935,"d":"14.73%"}]
[1412,{"$f":"IF('IV. Country level, 1310-2018'!C106<0,'III. GDP shares, 1310-2018'!C108,\"\")","v":""},{"$f":"IF('IV. Country level, 1310-2018'!D106<0,'III. GDP shares, 1310-2018'!D108,\"\")","v":""},{"$f":"IF('IV. Country level, 1310-2018'!E106<0,'III. GDP shares, 1310-2018'!E108,\"\")","v":""},{"$f":"IF('IV. Country level, 1310-2018'!F106<0,'III. GDP shares, 1310-2018'!F108,\"\")","v":""},{"$f":"IF('IV. Country level, 1310-2018'!G106<0,'III. GDP shares, 1310-2018'!G108,\"\")","v":""},{"$f":"IF('IV. Country level, 1310-2018'!H106<0,'III. GDP shares, 1310-2018'!H108,\"\")","v":""},{"$f":"IF('IV. Country level, 1310-2018'!I106<0,'III. GDP shares, 1310-2018'!I108,\"\")","v":""},{"$f":"IF('IV. Country level, 1310-2018'!J106<0,'III. GDP shares, 1310-2018'!J108,\"\")","v":""},null,0,{"v":0.14414820749383647,"d":"14.41%"},{"v":0.20250823357139602,"d":"20.25%"},{"v":0.12120376320870786,"d":"12.12%"},{"v":0.14727141335030935,"d":"14.73%"}]
[1413,{"$f":"IF('IV. Country level, 1310-2018'!C107<0,'III. GDP shares, 1310-2018'!C109,\"\")","v":""},{"$f":"IF('IV. Country level, 1310-2018'!D107<0,'III. GDP shares, 1310-2018'!D109,\"\")","v":""},{"$f":"IF('IV. Country level, 1310-2018'!E107<0,'III. GDP shares, 1310-2018'!E109,\"\")","v":""},{"$f":"IF('IV. Country level, 1310-2018'!F107<0,'III. GDP shares, 1310-2018'!F109,\"\")","v":""},{"$f":"IF('IV. Country level, 1310-2018'!G107<0,'III. GDP shares, 1310-2018'!G109,\"\")","v":""},{"$f":"IF('IV. Country level, 1310-2018'!H107<0,'III. GDP shares, 1310-2018'!H109,\"\")","v":""},{"$f":"IF('IV. Country level, 1310-2018'!I107<0,'III. GDP shares, 1310-2018'!I109,\"\")","v":""},{"$f":"IF('IV. Country level, 1310-2018'!J107<0,'III. GDP shares, 1310-2018'!J109,\"\")","v":""},null,0,{"v":0.192162988103204,"d":"19.22%"},{"v":0.20250823357139602,"d":"20.25%"},{"v":0.12120376320870786,"d":"12.12%"},{"v":0.14727141335030935,"d":"14.73%"}]
[1414,{"$f":"IF('IV. Country level, 1310-2018'!C108<0,'III. GDP shares, 1310-2018'!C110,\"\")","v":0.33628514317438085},{"$f":"IF('IV. Country level, 1310-2018'!D108<0,'III. GDP shares, 1310-2018'!D110,\"\")","v":""},{"$f":"IF('IV. Country level, 1310-2018'!E108<0,'III. GDP shares, 1310-2018'!E110,\"\")","v":""},{"$f":"IF('IV. Country level, 1310-2018'!F108<0,'III. GDP shares, 1310-2018'!F110,\"\")","v":""},{"$f":"IF('IV. Country level, 1310-2018'!G108<0,'III. GDP shares, 1310-2018'!G110,\"\")","v":""},{"$f":"IF('IV. Country level, 1310-2018'!H108<0,'III. GDP shares, 1310-2018'!H110,\"\")","v":""},{"$f":"IF('IV. Country level, 1310-2018'!I108<0,'III. GDP shares, 1310-2018'!I110,\"\")","v":""},{"$f":"IF('IV. Country level, 1310-2018'!J108<0,'III. GDP shares, 1310-2018'!J110,\"\")","v":""},null,0.33628514317438085,{"v":0.192162988103204,"d":"19.22%"},{"v":0.20250823357139602,"d":"20.25%"},{"v":0.12351850640442469,"d":"12.35%"},{"v":0.14727141335030935,"d":"14.73%"}]
[1415,{"$f":"IF('IV. Country level, 1310-2018'!C109<0,'III. GDP shares, 1310-2018'!C111,\"\")","v":0.3361942791752229},{"$f":"IF('IV. Country level, 1310-2018'!D109<0,'III. GDP shares, 1310-2018'!D111,\"\")","v":""},{"$f":"IF('IV. Country level, 1310-2018'!E109<0,'III. GDP shares, 1310-2018'!E111,\"\")","v":""},{"$f":"IF('IV. Country level, 1310-2018'!F109<0,'III. GDP shares, 1310-2018'!F111,\"\")","v":""},{"$f":"IF('IV. Country level, 1310-2018'!G109<0,'III. GDP shares, 1310-2018'!G111,\"\")","v":""},{"$f":"IF('IV. Country level, 1310-2018'!H109<0,'III. GDP shares, 1310-2018'!H111,\"\")","v":""},{"$f":"IF('IV. Country level, 1310-2018'!I109<0,'III. GDP shares, 1310-2018'!I111,\"\")","v":""},{"$f":"IF('IV. Country level, 1310-2018'!J109<0,'III. GDP shares, 1310-2018'!J111,\"\")","v":""},null,0.3361942791752229,{"v":0.14408326951645378,"d":"14.41%"},{"v":0.20250823357139602,"d":"20.25%"},{"v":0.13234907331206267,"d":"13.23%"},{"v":0.14727141335030935,"d":"14.73%"}]
[1416,{"$f":"IF('IV. Country level, 1310-2018'!C110<0,'III. GDP shares, 1310-2018'!C112,\"\")","v":0.3361034642655728},{"$f":"IF('IV. Country level, 1310-2018'!D110<0,'III. GDP shares, 1310-2018'!D112,\"\")","v":""},{"$f":"IF('IV. Country level, 1310-2018'!E110<0,'III. GDP shares, 1310-2018'!E112,\"\")","v":""},{"$f":"IF('IV. Country level, 1310-2018'!F110<0,'III. GDP shares, 1310-2018'!F112,\"\")","v":""},{"$f":"IF('IV. Country level, 1310-2018'!G110<0,'III. GDP shares, 1310-2018'!G112,\"\")","v":""},{"$f":"IF('IV. Country level, 1310-2018'!H110<0,'III. GDP shares, 1310-2018'!H112,\"\")","v":""},{"$f":"IF('IV. Country level, 1310-2018'!I110<0,'III. GDP shares, 1310-2018'!I112,\"\")","v":""},{"$f":"IF('IV. Country level, 1310-2018'!J110<0,'III. GDP shares, 1310-2018'!J112,\"\")","v":""},null,0.3361034642655728,{"v":0.1858859309222442,"d":"18.59%"},{"v":0.20250823357139602,"d":"20.25%"},{"v":0.15139670717165515,"d":"15.14%"},{"v":0.14727141335030935,"d":"14.73%"}]
[1417,{"$f":"IF('IV. Country level, 1310-2018'!C111<0,'III. GDP shares, 1310-2018'!C113,\"\")","v":""},{"$f":"IF('IV. Country level, 1310-2018'!D111<0,'III. GDP shares, 1310-2018'!D113,\"\")","v":""},{"$f":"IF('IV. Country level, 1310-2018'!E111<0,'III. GDP shares, 1310-2018'!E113,\"\")","v":""},{"$f":"IF('IV. Country level, 1310-2018'!F111<0,'III. GDP shares, 1310-2018'!F113,\"\")","v":""},{"$f":"IF('IV. Country level, 1310-2018'!G111<0,'III. GDP shares, 1310-2018'!G113,\"\")","v":""},{"$f":"IF('IV. Country level, 1310-2018'!H111<0,'III. GDP shares, 1310-2018'!H113,\"\")","v":""},{"$f":"IF('IV. Country level, 1310-2018'!I111<0,'III. GDP shares, 1310-2018'!I113,\"\")","v":""},{"$f":"IF('IV. Country level, 1310-2018'!J111<0,'III. GDP shares, 1310-2018'!J113,\"\")","v":""},null,0,{"v":0.22767167777691286,"d":"22.77%"},{"v":0.20250823357139602,"d":"20.25%"},{"v":0.15766524923623268,"d":"15.77%"},{"v":0.14727141335030935,"d":"14.73%"}]
[1418,{"$f":"IF('IV. Country level, 1310-2018'!C112<0,'III. GDP shares, 1310-2018'!C114,\"\")","v":""},{"$f":"IF('IV. Country level, 1310-2018'!D112<0,'III. GDP shares, 1310-2018'!D114,\"\")","v":""},{"$f":"IF('IV. Country level, 1310-2018'!E112<0,'III. GDP shares, 1310-2018'!E114,\"\")","v":""},{"$f":"IF('IV. Country level, 1310-2018'!F112<0,'III. GDP shares, 1310-2018'!F114,\"\")","v":""},{"$f":"IF('IV. Country level, 1310-2018'!G112<0,'III. GDP shares, 1310-2018'!G114,\"\")","v":""},{"$f":"IF('IV. Country level, 1310-2018'!H112<0,'III. GDP shares, 1310-2018'!H114,\"\")","v":""},{"$f":"IF('IV. Country level, 1310-2018'!I112<0,'III. GDP shares, 1310-2018'!I114,\"\")","v":""},{"$f":"IF('IV. Country level, 1310-2018'!J112<0,'III. GDP shares, 1310-2018'!J114,\"\")","v":""},null,0,{"v":0.19804646375227167,"d":"19.80%"},{"v":0.20250823357139602,"d":"20.25%"},{"v":0.14743885952463573,"d":"14.74%"},{"v":0.14727141335030935,"d":"14.73%"}]
[1419,{"$f":"IF('IV. Country level, 1310-2018'!C113<0,'III. GDP shares, 1310-2018'!C115,\"\")","v":0.2926186298405329},{"$f":"IF('IV. Country level, 1310-2018'!D113<0,'III. GDP shares, 1310-2018'!D115,\"\")","v":""},{"$f":"IF('IV. Country level, 1310-2018'!E113<0,'III. GDP shares, 1310-2018'!E115,\"\")","v":""},{"$f":"IF('IV. Country level, 1310-2018'!F113<0,'III. GDP shares, 1310-2018'!F115,\"\")","v":""},{"$f":"IF('IV. Country level, 1310-2018'!G113<0,'III. GDP shares, 1310-2018'!G115,\"\")","v":""},{"$f":"IF('IV. Country level, 1310-2018'!H113<0,'III. GDP shares, 1310-2018'!H115,\"\")","v":""},{"$f":"IF('IV. Country level, 1310-2018'!I113<0,'III. GDP shares, 1310-2018'!I115,\"\")","v":""},{"$f":"IF('IV. Country level, 1310-2018'!J113<0,'III. GDP shares, 1310-2018'!J115,\"\")","v":""},null,0.2926186298405329,{"v":0.1500187095843827,"d":"15.00%"},{"v":0.20250823357139602,"d":"20.25%"},{"v":0.16022576728715088,"d":"16.02%"},{"v":0.14727141335030935,"d":"14.73%"}]
[1420,{"$f":"IF('IV. Country level, 1310-2018'!C114<0,'III. GDP shares, 1310-2018'!C116,\"\")","v":0.29250022798268077},{"$f":"IF('IV. Country level, 1310-2018'!D114<0,'III. GDP shares, 1310-2018'!D116,\"\")","v":""},{"$f":"IF('IV. Country level, 1310-2018'!E114<0,'III. GDP shares, 1310-2018'!E116,\"\")","v":""},{"$f":"IF('IV. Country level, 1310-2018'!F114<0,'III. GDP shares, 1310-2018'!F116,\"\")","v":""},{"$f":"IF('IV. Country level, 1310-2018'!G114<0,'III. GDP shares, 1310-2018'!G116,\"\")","v":""},{"$f":"IF('IV. Country level, 1310-2018'!H114<0,'III. GDP shares, 1310-2018'!H116,\"\")","v":""},{"$f":"IF('IV. Country level, 1310-2018'!I114<0,'III. GDP shares, 1310-2018'!I116,\"\")","v":""},{"$f":"IF('IV. Country level, 1310-2018'!J114<0,'III. GDP shares, 1310-2018'!J116,\"\")","v":""},null,0.29250022798268077,{"v":0.14373901420607152,"d":"14.37%"},{"v":0.20250823357139602,"d":"20.25%"},{"v":0.16904888247806055,"d":"16.90%"},{"v":0.14727141335030935,"d":"14.73%"}]
[1421,{"$f":"IF('IV. Country level, 1310-2018'!C115<0,'III. GDP shares, 1310-2018'!C117,\"\")","v":""},{"$f":"IF('IV. Country level, 1310-2018'!D115<0,'III. GDP shares, 1310-2018'!D117,\"\")","v":""},{"$f":"IF('IV. Country level, 1310-2018'!E115<0,'III. GDP shares, 1310-2018'!E117,\"\")","v":""},{"$f":"IF('IV. Country level, 1310-2018'!F115<0,'III. GDP shares, 1310-2018'!F117,\"\")","v":""},{"$f":"IF('IV. Country level, 1310-2018'!G115<0,'III. GDP shares, 1310-2018'!G117,\"\")","v":""},{"$f":"IF('IV. Country level, 1310-2018'!H115<0,'III. GDP shares, 1310-2018'!H117,\"\")","v":""},{"$f":"IF('IV. Country level, 1310-2018'!I115<0,'III. GDP shares, 1310-2018'!I117,\"\")","v":0.12890864500189225},{"$f":"IF('IV. Country level, 1310-2018'!J115<0,'III. GDP shares, 1310-2018'!J117,\"\")","v":""},null,0.12890864500189225,{"v":0.14373901420607152,"d":"14.37%"},{"v":0.20250823357139602,"d":"20.25%"},{"v":0.18434890563184136,"d":"18.43%"},{"v":0.14727141335030935,"d":"14.73%"}]
[1422,{"$f":"IF('IV. Country level, 1310-2018'!C116<0,'III. GDP shares, 1310-2018'!C118,\"\")","v":""},{"$f":"IF('IV. Country level, 1310-2018'!D116<0,'III. GDP shares, 1310-2018'!D118,\"\")","v":""},{"$f":"IF('IV. Country level, 1310-2018'!E116<0,'III. GDP shares, 1310-2018'!E118,\"\")","v":""},{"$f":"IF('IV. Country level, 1310-2018'!F116<0,'III. GDP shares, 1310-2018'!F118,\"\")","v":""},{"$f":"IF('IV. Country level, 1310-2018'!G116<0,'III. GDP shares, 1310-2018'!G118,\"\")","v":""},{"$f":"IF('IV. Country level, 1310-2018'!H116<0,'III. GDP shares, 1310-2018'!H118,\"\")","v":""},{"$f":"IF('IV. Country level, 1310-2018'!I116<0,'III. GDP shares, 1310-2018'!I118,\"\")","v":""},{"$f":"IF('IV. Country level, 1310-2018'!J116<0,'III. GDP shares, 1310-2018'!J118,\"\")","v":""},null,0,{"v":0.185440393213891,"d":"18.54%"},{"v":0.20250823357139602,"d":"20.25%"},{"v":0.18490181395514163,"d":"18.49%"},{"v":0.14727141335030935,"d":"14.73%"}]
[1423,{"$f":"IF('IV. Country level, 1310-2018'!C117<0,'III. GDP shares, 1310-2018'!C119,\"\")","v":0.2921455966173948},{"$f":"IF('IV. Country level, 1310-2018'!D117<0,'III. GDP shares, 1310-2018'!D119,\"\")","v":""},{"$f":"IF('IV. Country level, 1310-2018'!E117<0,'III. GDP shares, 1310-2018'!E119,\"\")","v":""},{"$f":"IF('IV. Country level, 1310-2018'!F117<0,'III. GDP shares, 1310-2018'!F119,\"\")","v":""},{"$f":"IF('IV. Country level, 1310-2018'!G117<0,'III. GDP shares, 1310-2018'!G119,\"\")","v":""},{"$f":"IF('IV. Country level, 1310-2018'!H117<0,'III. GDP shares, 1310-2018'!H119,\"\")","v":""},{"$f":"IF('IV. Country level, 1310-2018'!I117<0,'III. GDP shares, 1310-2018'!I119,\"\")","v":""},{"$f":"IF('IV. Country level, 1310-2018'!J117<0,'III. GDP shares, 1310-2018'!J119,\"\")","v":""},null,0.2921455966173948,{"v":0.14363773180810058,"d":"14.36%"},{"v":0.20250823357139602,"d":"20.25%"},{"v":0.19388005846733736,"d":"19.39%"},{"v":0.14727141335030935,"d":"14.73%"}]
[1424,{"$f":"IF('IV. Country level, 1310-2018'!C118<0,'III. GDP shares, 1310-2018'!C120,\"\")","v":""},{"$f":"IF('IV. Country level, 1310-2018'!D118<0,'III. GDP shares, 1310-2018'!D120,\"\")","v":""},{"$f":"IF('IV. Country level, 1310-2018'!E118<0,'III. GDP shares, 1310-2018'!E120,\"\")","v":""},{"$f":"IF('IV. Country level, 1310-2018'!F118<0,'III. GDP shares, 1310-2018'!F120,\"\")","v":""},{"$f":"IF('IV. Country level, 1310-2018'!G118<0,'III. GDP shares, 1310-2018'!G120,\"\")","v":""},{"$f":"IF('IV. Country level, 1310-2018'!H118<0,'III. GDP shares, 1310-2018'!H120,\"\")","v":""},{"$f":"IF('IV. Country level, 1310-2018'!I118<0,'III. GDP shares, 1310-2018'!I120,\"\")","v":""},{"$f":"IF('IV. Country level, 1310-2018'!J118<0,'III. GDP shares, 1310-2018'!J120,\"\")","v":""},null,0,{"v":0.10185198495343191,"d":"10.19%"},{"v":0.20250823357139602,"d":"20.25%"},{"v":0.19388005846733736,"d":"19.39%"},{"v":0.14727141335030935,"d":"14.73%"}]
[1425,{"$f":"IF('IV. Country level, 1310-2018'!C119<0,'III. GDP shares, 1310-2018'!C121,\"\")","v":0.2919096530547363},{"$f":"IF('IV. Country level, 1310-2018'!D119<0,'III. GDP shares, 1310-2018'!D121,\"\")","v":""},{"$f":"IF('IV. Country level, 1310-2018'!E119<0,'III. GDP shares, 1310-2018'!E121,\"\")","v":""},{"$f":"IF('IV. Country level, 1310-2018'!F119<0,'III. GDP shares, 1310-2018'!F121,\"\")","v":""},{"$f":"IF('IV. Country level, 1310-2018'!G119<0,'III. GDP shares, 1310-2018'!G121,\"\")","v":""},{"$f":"IF('IV. Country level, 1310-2018'!H119<0,'III. GDP shares, 1310-2018'!H121,\"\")","v":""},{"$f":"IF('IV. Country level, 1310-2018'!I119<0,'III. GDP shares, 1310-2018'!I121,\"\")","v":""},{"$f":"IF('IV. Country level, 1310-2018'!J119<0,'III. GDP shares, 1310-2018'!J121,\"\")","v":""},null,0.2919096530547363,{"v":0.08343646423887588,"d":"8.34%"},{"v":0.20250823357139602,"d":"20.25%"},{"v":0.18367304754971425,"d":"18.37%"},{"v":0.14727141335030935,"d":"14.73%"}]
[1426,{"$f":"IF('IV. Country level, 1310-2018'!C120<0,'III. GDP shares, 1310-2018'!C122,\"\")","v":""},{"$f":"IF('IV. Country level, 1310-2018'!D120<0,'III. GDP shares, 1310-2018'!D122,\"\")","v":""},{"$f":"IF('IV. Country level, 1310-2018'!E120<0,'III. GDP shares, 1310-2018'!E122,\"\")","v":""},{"$f":"IF('IV. Country level, 1310-2018'!F120<0,'III. GDP shares, 1310-2018'!F122,\"\")","v":""},{"$f":"IF('IV. Country level, 1310-2018'!G120<0,'III. GDP shares, 1310-2018'!G122,\"\")","v":""},{"$f":"IF('IV. Country level, 1310-2018'!H120<0,'III. GDP shares, 1310-2018'!H122,\"\")","v":""},{"$f":"IF('IV. Country level, 1310-2018'!I120<0,'III. GDP shares, 1310-2018'!I122,\"\")","v":""},{"$f":"IF('IV. Country level, 1310-2018'!J120<0,'III. GDP shares, 1310-2018'!J122,\"\")","v":""},null,0,{"v":0.08343646423887588,"d":"8.34%"},{"v":0.20250823357139602,"d":"20.25%"},{"v":0.19368014997688968,"d":"19.37%"},{"v":0.14727141335030935,"d":"14.73%"}]
[1427,{"$f":"IF('IV. Country level, 1310-2018'!C121<0,'III. GDP shares, 1310-2018'!C123,\"\")","v":""},{"$f":"IF('IV. Country level, 1310-2018'!D121<0,'III. GDP shares, 1310-2018'!D123,\"\")","v":""},{"$f":"IF('IV. Country level, 1310-2018'!E121<0,'III. GDP shares, 1310-2018'!E123,\"\")","v":""},{"$f":"IF('IV. Country level, 1310-2018'!F121<0,'III. GDP shares, 1310-2018'!F123,\"\")","v":""},{"$f":"IF('IV. Country level, 1310-2018'!G121<0,'III. GDP shares, 1310-2018'!G123,\"\")","v":""},{"$f":"IF('IV. Country level, 1310-2018'!H121<0,'III. GDP shares, 1310-2018'!H123,\"\")","v":""},{"$f":"IF('IV. Country level, 1310-2018'!I121<0,'III. GDP shares, 1310-2018'!I123,\"\")","v":""},{"$f":"IF('IV. Country level, 1310-2018'!J121<0,'III. GDP shares, 1310-2018'!J123,\"\")","v":""},null,0,{"v":0.10191276280553134,"d":"10.19%"},{"v":0.20250823357139602,"d":"20.25%"},{"v":0.19368014997688968,"d":"19.37%"},{"v":0.14727141335030935,"d":"14.73%"}]
[1428,{"$f":"IF('IV. Country level, 1310-2018'!C122<0,'III. GDP shares, 1310-2018'!C124,\"\")","v":""},{"$f":"IF('IV. Country level, 1310-2018'!D122<0,'III. GDP shares, 1310-2018'!D124,\"\")","v":""},{"$f":"IF('IV. Country level, 1310-2018'!E122<0,'III. GDP shares, 1310-2018'!E124,\"\")","v":""},{"$f":"IF('IV. Country level, 1310-2018'!F122<0,'III. GDP shares, 1310-2018'!F124,\"\")","v":""},{"$f":"IF('IV. Country level, 1310-2018'!G122<0,'III. GDP shares, 1310-2018'!G124,\"\")","v":""},{"$f":"IF('IV. Country level, 1310-2018'!H122<0,'III. GDP shares, 1310-2018'!H124,\"\")","v":""},{"$f":"IF('IV. Country level, 1310-2018'!I122<0,'III. GDP shares, 1310-2018'!I124,\"\")","v":""},{"$f":"IF('IV. Country level, 1310-2018'!J122<0,'III. GDP shares, 1310-2018'!J124,\"\")","v":""},null,0,{"v":0.14354257822725322,"d":"14.35%"},{"v":0.20250823357139602,"d":"20.25%"},{"v":0.19245271451702192,"d":"19.25%"},{"v":0.14727141335030935,"d":"14.73%"}]
[1429,{"$f":"IF('IV. Country level, 1310-2018'!C123<0,'III. GDP shares, 1310-2018'!C125,\"\")","v":""},{"$f":"IF('IV. Country level, 1310-2018'!D123<0,'III. GDP shares, 1310-2018'!D125,\"\")","v":""},{"$f":"IF('IV. Country level, 1310-2018'!E123<0,'III. GDP shares, 1310-2018'!E125,\"\")","v":""},{"$f":"IF('IV. Country level, 1310-2018'!F123<0,'III. GDP shares, 1310-2018'!F125,\"\")","v":""},{"$f":"IF('IV. Country level, 1310-2018'!G123<0,'III. GDP shares, 1310-2018'!G125,\"\")","v":""},{"$f":"IF('IV. Country level, 1310-2018'!H123<0,'III. GDP shares, 1310-2018'!H125,\"\")","v":""},{"$f":"IF('IV. Country level, 1310-2018'!I123<0,'III. GDP shares, 1310-2018'!I125,\"\")","v":""},{"$f":"IF('IV. Country level, 1310-2018'!J123<0,'III. GDP shares, 1310-2018'!J125,\"\")","v":""},null,0,{"v":0.19163718741465555,"d":"19.16%"},{"v":0.20250823357139602,"d":"20.25%"},{"v":0.19301276680507334,"d":"19.30%"},{"v":0.14727141335030935,"d":"14.73%"}]
[1430,{"$f":"IF('IV. Country level, 1310-2018'!C124<0,'III. GDP shares, 1310-2018'!C126,\"\")","v":0.2914579391352274},{"$f":"IF('IV. Country level, 1310-2018'!D124<0,'III. GDP shares, 1310-2018'!D126,\"\")","v":""},{"$f":"IF('IV. Country level, 1310-2018'!E124<0,'III. GDP shares, 1310-2018'!E126,\"\")","v":""},{"$f":"IF('IV. Country level, 1310-2018'!F124<0,'III. GDP shares, 1310-2018'!F126,\"\")","v":""},{"$f":"IF('IV. Country level, 1310-2018'!G124<0,'III. GDP shares, 1310-2018'!G126,\"\")","v":""},{"$f":"IF('IV. Country level, 1310-2018'!H124<0,'III. GDP shares, 1310-2018'!H126,\"\")","v":""},{"$f":"IF('IV. Country level, 1310-2018'!I124<0,'III. GDP shares, 1310-2018'!I126,\"\")","v":0.13002174744875566},{"$f":"IF('IV. Country level, 1310-2018'!J124<0,'III. GDP shares, 1310-2018'!J126,\"\")","v":""},null,0.42147968658398305,{"v":0.22118888571909226,"d":"22.12%"},{"v":0.20250823357139602,"d":"20.25%"},{"v":0.19301276680507334,"d":"19.30%"},{"v":0.14727141335030935,"d":"14.73%"}]
[1431,{"$f":"IF('IV. Country level, 1310-2018'!C125<0,'III. GDP shares, 1310-2018'!C127,\"\")","v":0.29140870795205315},{"$f":"IF('IV. Country level, 1310-2018'!D125<0,'III. GDP shares, 1310-2018'!D127,\"\")","v":""},{"$f":"IF('IV. Country level, 1310-2018'!E125<0,'III. GDP shares, 1310-2018'!E127,\"\")","v":""},{"$f":"IF('IV. Country level, 1310-2018'!F125<0,'III. GDP shares, 1310-2018'!F127,\"\")","v":""},{"$f":"IF('IV. Country level, 1310-2018'!G125<0,'III. GDP shares, 1310-2018'!G127,\"\")","v":""},{"$f":"IF('IV. Country level, 1310-2018'!H125<0,'III. GDP shares, 1310-2018'!H127,\"\")","v":""},{"$f":"IF('IV. Country level, 1310-2018'!I125<0,'III. GDP shares, 1310-2018'!I127,\"\")","v":""},{"$f":"IF('IV. Country level, 1310-2018'!J125<0,'III. GDP shares, 1310-2018'!J127,\"\")","v":""},null,0.29140870795205315,{"v":0.22118888571909226,"d":"22.12%"},{"v":0.20250823357139602,"d":"20.25%"},{"v":0.19178943473901253,"d":"19.18%"},{"v":0.14727141335030935,"d":"14.73%"}]
[1432,{"$f":"IF('IV. Country level, 1310-2018'!C126<0,'III. GDP shares, 1310-2018'!C128,\"\")","v":0.2913594933976939},{"$f":"IF('IV. Country level, 1310-2018'!D126<0,'III. GDP shares, 1310-2018'!D128,\"\")","v":""},{"$f":"IF('IV. Country level, 1310-2018'!E126<0,'III. GDP shares, 1310-2018'!E128,\"\")","v":""},{"$f":"IF('IV. Country level, 1310-2018'!F126<0,'III. GDP shares, 1310-2018'!F128,\"\")","v":0.20689682399728382},{"$f":"IF('IV. Country level, 1310-2018'!G126<0,'III. GDP shares, 1310-2018'!G128,\"\")","v":""},{"$f":"IF('IV. Country level, 1310-2018'!H126<0,'III. GDP shares, 1310-2018'!H128,\"\")","v":""},{"$f":"IF('IV. Country level, 1310-2018'!I126<0,'III. GDP shares, 1310-2018'!I128,\"\")","v":0.13031559997157469},{"$f":"IF('IV. Country level, 1310-2018'!J126<0,'III. GDP shares, 1310-2018'!J128,\"\")","v":""},null,0.6285719173665524,{"v":0.2814700223138065,"d":"28.15%"},{"v":0.20250823357139602,"d":"20.25%"},{"v":0.18160172930946034,"d":"18.16%"},{"v":0.14727141335030935,"d":"14.73%"}]
[1433,{"$f":"IF('IV. Country level, 1310-2018'!C127<0,'III. GDP shares, 1310-2018'!C129,\"\")","v":""},{"$f":"IF('IV. Country level, 1310-2018'!D127<0,'III. GDP shares, 1310-2018'!D129,\"\")","v":""},{"$f":"IF('IV. Country level, 1310-2018'!E127<0,'III. GDP shares, 1310-2018'!E129,\"\")","v":""},{"$f":"IF('IV. Country level, 1310-2018'!F127<0,'III. GDP shares, 1310-2018'!F129,\"\")","v":0.20686188813105716},{"$f":"IF('IV. Country level, 1310-2018'!G127<0,'III. GDP shares, 1310-2018'!G129,\"\")","v":""},{"$f":"IF('IV. Country level, 1310-2018'!H127<0,'III. GDP shares, 1310-2018'!H129,\"\")","v":""},{"$f":"IF('IV. Country level, 1310-2018'!I127<0,'III. GDP shares, 1310-2018'!I129,\"\")","v":""},{"$f":"IF('IV. Country level, 1310-2018'!J127<0,'III. GDP shares, 1310-2018'!J129,\"\")","v":""},null,0.20686188813105716,{"v":0.3230647082138092,"d":"32.31%"},{"v":0.20250823357139602,"d":"20.25%"},{"v":0.17505679294111096,"d":"17.51%"},{"v":0.14727141335030935,"d":"14.73%"}]
[1434,{"$f":"IF('IV. Country level, 1310-2018'!C128<0,'III. GDP shares, 1310-2018'!C130,\"\")","v":""},{"$f":"IF('IV. Country level, 1310-2018'!D128<0,'III. GDP shares, 1310-2018'!D130,\"\")","v":""},{"$f":"IF('IV. Country level, 1310-2018'!E128<0,'III. GDP shares, 1310-2018'!E130,\"\")","v":""},{"$f":"IF('IV. Country level, 1310-2018'!F128<0,'III. GDP shares, 1310-2018'!F130,\"\")","v":""},{"$f":"IF('IV. Country level, 1310-2018'!G128<0,'III. GDP shares, 1310-2018'!G130,\"\")","v":""},{"$f":"IF('IV. Country level, 1310-2018'!H128<0,'III. GDP shares, 1310-2018'!H130,\"\")","v":""},{"$f":"IF('IV. Country level, 1310-2018'!I128<0,'III. GDP shares, 1310-2018'!I130,\"\")","v":""},{"$f":"IF('IV. Country level, 1310-2018'!J128<0,'III. GDP shares, 1310-2018'!J130,\"\")","v":""},null,0,{"v":0.3349820049982069,"d":"33.50%"},{"v":0.20250823357139602,"d":"20.25%"},{"v":0.17505679294111096,"d":"17.51%"},{"v":0.14727141335030935,"d":"14.73%"}]
[1435,{"$f":"IF('IV. Country level, 1310-2018'!C129<0,'III. GDP shares, 1310-2018'!C131,\"\")","v":0.2912119494232977},{"$f":"IF('IV. Country level, 1310-2018'!D129<0,'III. GDP shares, 1310-2018'!D131,\"\")","v":""},{"$f":"IF('IV. Country level, 1310-2018'!E129<0,'III. GDP shares, 1310-2018'!E131,\"\")","v":""},{"$f":"IF('IV. Country level, 1310-2018'!F129<0,'III. GDP shares, 1310-2018'!F131,\"\")","v":""},{"$f":"IF('IV. Country level, 1310-2018'!G129<0,'III. GDP shares, 1310-2018'!G131,\"\")","v":""},{"$f":"IF('IV. Country level, 1310-2018'!H129<0,'III. GDP shares, 1310-2018'!H131,\"\")","v":""},{"$f":"IF('IV. Country level, 1310-2018'!I129<0,'III. GDP shares, 1310-2018'!I131,\"\")","v":0.13075600673970203},{"$f":"IF('IV. Country level, 1310-2018'!J129<0,'III. GDP shares, 1310-2018'!J131,\"\")","v":""},null,0.42196795616299976,{"v":0.34411663378320145,"d":"34.41%"},{"v":0.20250823357139602,"d":"20.25%"},{"v":0.17505679294111096,"d":"17.51%"},{"v":0.14727141335030935,"d":"14.73%"}]
[1436,{"$f":"IF('IV. Country level, 1310-2018'!C130<0,'III. GDP shares, 1310-2018'!C132,\"\")","v":0.2911628013000187},{"$f":"IF('IV. Country level, 1310-2018'!D130<0,'III. GDP shares, 1310-2018'!D132,\"\")","v":""},{"$f":"IF('IV. Country level, 1310-2018'!E130<0,'III. GDP shares, 1310-2018'!E132,\"\")","v":""},{"$f":"IF('IV. Country level, 1310-2018'!F130<0,'III. GDP shares, 1310-2018'!F132,\"\")","v":""},{"$f":"IF('IV. Country level, 1310-2018'!G130<0,'III. GDP shares, 1310-2018'!G132,\"\")","v":""},{"$f":"IF('IV. Country level, 1310-2018'!H130<0,'III. GDP shares, 1310-2018'!H132,\"\")","v":""},{"$f":"IF('IV. Country level, 1310-2018'!I130<0,'III. GDP shares, 1310-2018'!I132,\"\")","v":""},{"$f":"IF('IV. Country level, 1310-2018'!J130<0,'III. GDP shares, 1310-2018'!J132,\"\")","v":""},null,0.2911628013000187,{"v":0.2966466554311881,"d":"29.66%"},{"v":0.20250823357139602,"d":"20.25%"},{"v":0.16618956173382207,"d":"16.62%"},{"v":0.14727141335030935,"d":"14.73%"}]
[1437,{"$f":"IF('IV. Country level, 1310-2018'!C131<0,'III. GDP shares, 1310-2018'!C133,\"\")","v":""},{"$f":"IF('IV. Country level, 1310-2018'!D131<0,'III. GDP shares, 1310-2018'!D133,\"\")","v":""},{"$f":"IF('IV. Country level, 1310-2018'!E131<0,'III. GDP shares, 1310-2018'!E133,\"\")","v":0.018117684081622277},{"$f":"IF('IV. Country level, 1310-2018'!F131<0,'III. GDP shares, 1310-2018'!F133,\"\")","v":0.20672226256945286},{"$f":"IF('IV. Country level, 1310-2018'!G131<0,'III. GDP shares, 1310-2018'!G133,\"\")","v":0.2800608174236922},{"$f":"IF('IV. Country level, 1310-2018'!H131<0,'III. GDP shares, 1310-2018'!H133,\"\")","v":""},{"$f":"IF('IV. Country level, 1310-2018'!I131<0,'III. GDP shares, 1310-2018'!I133,\"\")","v":""},{"$f":"IF('IV. Country level, 1310-2018'!J131<0,'III. GDP shares, 1310-2018'!J133,\"\")","v":""},null,0.5049007640747674,{"v":0.26709495712675135,"d":"26.71%"},{"v":0.20250823357139602,"d":"20.25%"},{"v":0.15732591846161964,"d":"15.73%"},{"v":0.14727141335030935,"d":"14.73%"}]
[1438,{"$f":"IF('IV. Country level, 1310-2018'!C132<0,'III. GDP shares, 1310-2018'!C134,\"\")","v":""},{"$f":"IF('IV. Country level, 1310-2018'!D132<0,'III. GDP shares, 1310-2018'!D134,\"\")","v":0.07311919980744029},{"$f":"IF('IV. Country level, 1310-2018'!E132<0,'III. GDP shares, 1310-2018'!E134,\"\")","v":""},{"$f":"IF('IV. Country level, 1310-2018'!F132<0,'III. GDP shares, 1310-2018'!F134,\"\")","v":""},{"$f":"IF('IV. Country level, 1310-2018'!G132<0,'III. GDP shares, 1310-2018'!G134,\"\")","v":0.28223190963957456},{"$f":"IF('IV. Country level, 1310-2018'!H132<0,'III. GDP shares, 1310-2018'!H134,\"\")","v":""},{"$f":"IF('IV. Country level, 1310-2018'!I132<0,'III. GDP shares, 1310-2018'!I134,\"\")","v":""},{"$f":"IF('IV. Country level, 1310-2018'!J132<0,'III. GDP shares, 1310-2018'!J134,\"\")","v":""},null,0.35535110944701487,{"v":0.26709495712675135,"d":"26.71%"},{"v":0.20250823357139602,"d":"20.25%"},{"v":0.15397886882107903,"d":"15.40%"},{"v":0.14727141335030935,"d":"14.73%"}]
[1439,{"$f":"IF('IV. Country level, 1310-2018'!C133<0,'III. GDP shares, 1310-2018'!C135,\"\")","v":0.296282068902459},{"$f":"IF('IV. Country level, 1310-2018'!D133<0,'III. GDP shares, 1310-2018'!D135,\"\")","v":""},{"$f":"IF('IV. Country level, 1310-2018'!E133<0,'III. GDP shares, 1310-2018'!E135,\"\")","v":""},{"$f":"IF('IV. Country level, 1310-2018'!F133<0,'III. GDP shares, 1310-2018'!F135,\"\")","v":""},{"$f":"IF('IV. Country level, 1310-2018'!G133<0,'III. GDP shares, 1310-2018'!G135,\"\")","v":""},{"$f":"IF('IV. Country level, 1310-2018'!H133<0,'III. GDP shares, 1310-2018'!H135,\"\")","v":""},{"$f":"IF('IV. Country level, 1310-2018'!I133<0,'III. GDP shares, 1310-2018'!I135,\"\")","v":""},{"$f":"IF('IV. Country level, 1310-2018'!J133<0,'III. GDP shares, 1310-2018'!J135,\"\")","v":""},null,{"$f":"SUM(B135:I135)","v":0.296282068902459},{"v":0.2539901605458642,"d":"25.40%"},{"v":0.20250823357139602,"d":"20.25%"},{"v":0.15453805529547165,"d":"15.45%"},{"v":0.14727141335030935,"d":"14.73%"}]
[1440,{"$f":"IF('IV. Country level, 1310-2018'!C134<0,'III. GDP shares, 1310-2018'!C136,\"\")","v":""},{"$f":"IF('IV. Country level, 1310-2018'!D134<0,'III. GDP shares, 1310-2018'!D136,\"\")","v":""},{"$f":"IF('IV. Country level, 1310-2018'!E134<0,'III. GDP shares, 1310-2018'!E136,\"\")","v":""},{"$f":"IF('IV. Country level, 1310-2018'!F134<0,'III. GDP shares, 1310-2018'!F136,\"\")","v":""},{"$f":"IF('IV. Country level, 1310-2018'!G134<0,'III. GDP shares, 1310-2018'!G136,\"\")","v":""},{"$f":"IF('IV. Country level, 1310-2018'!H134<0,'III. GDP shares, 1310-2018'!H136,\"\")","v":""},{"$f":"IF('IV. Country level, 1310-2018'!I134<0,'III. GDP shares, 1310-2018'!I136,\"\")","v":""},{"$f":"IF('IV. Country level, 1310-2018'!J134<0,'III. GDP shares, 1310-2018'!J136,\"\")","v":""},null,0,{"v":0.21239547464586153,"d":"21.24%"},{"v":0.20250823357139602,"d":"20.25%"},{"v":0.15463981070618335,"d":"15.46%"},{"v":0.14727141335030935,"d":"14.73%"}]
[1441,{"$f":"IF('IV. Country level, 1310-2018'!C135<0,'III. GDP shares, 1310-2018'!C137,\"\")","v":""},{"$f":"IF('IV. Country level, 1310-2018'!D135<0,'III. GDP shares, 1310-2018'!D137,\"\")","v":""},{"$f":"IF('IV. Country level, 1310-2018'!E135<0,'III. GDP shares, 1310-2018'!E137,\"\")","v":""},{"$f":"IF('IV. Country level, 1310-2018'!F135<0,'III. GDP shares, 1310-2018'!F137,\"\")","v":""},{"$f":"IF('IV. Country level, 1310-2018'!G135<0,'III. GDP shares, 1310-2018'!G137,\"\")","v":""},{"$f":"IF('IV. Country level, 1310-2018'!H135<0,'III. GDP shares, 1310-2018'!H137,\"\")","v":""},{"$f":"IF('IV. Country level, 1310-2018'!I135<0,'III. GDP shares, 1310-2018'!I137,\"\")","v":""},{"$f":"IF('IV. Country level, 1310-2018'!J135<0,'III. GDP shares, 1310-2018'!J137,\"\")","v":""},null,0,{"v":0.18256003119683975,"d":"18.26%"},{"$f":"AVERAGE(L$9:L$714)","v":{"v":0.20250823357139602,"d":"20.25%"}},{"v":0.15463981070618335,"d":"15.46%"},{"v":0.14727141335030935,"d":"14.73%"}]
[1442,{"$f":"IF('IV. Country level, 1310-2018'!C136<0,'III. GDP shares, 1310-2018'!C138,\"\")","v":""},{"$f":"IF('IV. Country level, 1310-2018'!D136<0,'III. GDP shares, 1310-2018'!D138,\"\")","v":""},{"$f":"IF('IV. Country level, 1310-2018'!E136<0,'III. GDP shares, 1310-2018'!E138,\"\")","v":""},{"$f":"IF('IV. Country level, 1310-2018'!F136<0,'III. GDP shares, 1310-2018'!F138,\"\")","v":0.21106790909893006},{"$f":"IF('IV. Country level, 1310-2018'!G136<0,'III. GDP shares, 1310-2018'!G138,\"\")","v":""},{"$f":"IF('IV. Country level, 1310-2018'!H136<0,'III. GDP shares, 1310-2018'!H138,\"\")","v":""},{"$f":"IF('IV. Country level, 1310-2018'!I136<0,'III. GDP shares, 1310-2018'!I138,\"\")","v":0.1191664709978592},{"$f":"IF('IV. Country level, 1310-2018'!J136<0,'III. GDP shares, 1310-2018'!J138,\"\")","v":""},null,0.33023438009678924,{"$f":"AVERAGE(K135:K141)","v":{"v":0.1344358334909372,"d":"13.44%"}},{"v":0.20250823357139602,"d":"20.25%"},{"v":0.14579406364391861,"d":"14.58%"},{"v":0.14727141335030935,"d":"14.73%"}]
[1443,{"$f":"IF('IV. Country level, 1310-2018'!C137<0,'III. GDP shares, 1310-2018'!C139,\"\")","v":""},{"$f":"IF('IV. Country level, 1310-2018'!D137<0,'III. GDP shares, 1310-2018'!D139,\"\")","v":""},{"$f":"IF('IV. Country level, 1310-2018'!E137<0,'III. GDP shares, 1310-2018'!E139,\"\")","v":""},{"$f":"IF('IV. Country level, 1310-2018'!F137<0,'III. GDP shares, 1310-2018'!F139,\"\")","v":""},{"$f":"IF('IV. Country level, 1310-2018'!G137<0,'III. GDP shares, 1310-2018'!G139,\"\")","v":""},{"$f":"IF('IV. Country level, 1310-2018'!H137<0,'III. GDP shares, 1310-2018'!H139,\"\")","v":""},{"$f":"IF('IV. Country level, 1310-2018'!I137<0,'III. GDP shares, 1310-2018'!I139,\"\")","v":""},{"$f":"IF('IV. Country level, 1310-2018'!J137<0,'III. GDP shares, 1310-2018'!J139,\"\")","v":""},null,0,{"v":0.09210982364772878,"d":"9.21%"},{"v":0.20250823357139602,"d":"20.25%"},{"v":0.14579406364391861,"d":"14.58%"},{"v":0.14727141335030935,"d":"14.73%"}]
[1444,{"$f":"IF('IV. Country level, 1310-2018'!C138<0,'III. GDP shares, 1310-2018'!C140,\"\")","v":0.29605265993161517},{"$f":"IF('IV. Country level, 1310-2018'!D138<0,'III. GDP shares, 1310-2018'!D140,\"\")","v":""},{"$f":"IF('IV. Country level, 1310-2018'!E138<0,'III. GDP shares, 1310-2018'!E140,\"\")","v":""},{"$f":"IF('IV. Country level, 1310-2018'!F138<0,'III. GDP shares, 1310-2018'!F140,\"\")","v":""},{"$f":"IF('IV. Country level, 1310-2018'!G138<0,'III. GDP shares, 1310-2018'!G140,\"\")","v":""},{"$f":"IF('IV. Country level, 1310-2018'!H138<0,'III. GDP shares, 1310-2018'!H140,\"\")","v":""},{"$f":"IF('IV. Country level, 1310-2018'!I138<0,'III. GDP shares, 1310-2018'!I140,\"\")","v":""},{"$f":"IF('IV. Country level, 1310-2018'!J138<0,'III. GDP shares, 1310-2018'!J140,\"\")","v":""},null,0.29605265993161517,{"v":0.13438342150406796,"d":"13.44%"},{"v":0.20250823357139602,"d":"20.25%"},{"v":0.14579406364391861,"d":"14.58%"},{"v":0.14727141335030935,"d":"14.73%"}]
[1445,{"$f":"IF('IV. Country level, 1310-2018'!C139<0,'III. GDP shares, 1310-2018'!C141,\"\")","v":""},{"$f":"IF('IV. Country level, 1310-2018'!D139<0,'III. GDP shares, 1310-2018'!D141,\"\")","v":""},{"$f":"IF('IV. Country level, 1310-2018'!E139<0,'III. GDP shares, 1310-2018'!E141,\"\")","v":0.018481725505696992},{"$f":"IF('IV. Country level, 1310-2018'!F139<0,'III. GDP shares, 1310-2018'!F141,\"\")","v":""},{"$f":"IF('IV. Country level, 1310-2018'!G139<0,'III. GDP shares, 1310-2018'!G141,\"\")","v":""},{"$f":"IF('IV. Country level, 1310-2018'!H139<0,'III. GDP shares, 1310-2018'!H141,\"\")","v":""},{"$f":"IF('IV. Country level, 1310-2018'!I139<0,'III. GDP shares, 1310-2018'!I141,\"\")","v":""},{"$f":"IF('IV. Country level, 1310-2018'!J139<0,'III. GDP shares, 1310-2018'!J141,\"\")","v":""},null,0.018481725505696992,{"v":0.13438342150406796,"d":"13.44%"},{"v":0.20250823357139602,"d":"20.25%"},{"v":0.14579406364391861,"d":"14.58%"},{"v":0.14727141335030935,"d":"14.73%"}]
[1446,{"$f":"IF('IV. Country level, 1310-2018'!C140<0,'III. GDP shares, 1310-2018'!C142,\"\")","v":""},{"$f":"IF('IV. Country level, 1310-2018'!D140<0,'III. GDP shares, 1310-2018'!D142,\"\")","v":""},{"$f":"IF('IV. Country level, 1310-2018'!E140<0,'III. GDP shares, 1310-2018'!E142,\"\")","v":""},{"$f":"IF('IV. Country level, 1310-2018'!F140<0,'III. GDP shares, 1310-2018'!F142,\"\")","v":""},{"$f":"IF('IV. Country level, 1310-2018'!G140<0,'III. GDP shares, 1310-2018'!G142,\"\")","v":""},{"$f":"IF('IV. Country level, 1310-2018'!H140<0,'III. GDP shares, 1310-2018'!H142,\"\")","v":""},{"$f":"IF('IV. Country level, 1310-2018'!I140<0,'III. GDP shares, 1310-2018'!I142,\"\")","v":""},{"$f":"IF('IV. Country level, 1310-2018'!J140<0,'III. GDP shares, 1310-2018'!J142,\"\")","v":""},null,0,{"v":0.10436716207738993,"d":"10.44%"},{"v":0.20250823357139602,"d":"20.25%"},{"v":0.14579406364391861,"d":"14.58%"},{"v":0.14727141335030935,"d":"14.73%"}]
[1447,{"$f":"IF('IV. Country level, 1310-2018'!C141<0,'III. GDP shares, 1310-2018'!C143,\"\")","v":0.29591518499437425},{"$f":"IF('IV. Country level, 1310-2018'!D141<0,'III. GDP shares, 1310-2018'!D143,\"\")","v":""},{"$f":"IF('IV. Country level, 1310-2018'!E141<0,'III. GDP shares, 1310-2018'!E143,\"\")","v":""},{"$f":"IF('IV. Country level, 1310-2018'!F141<0,'III. GDP shares, 1310-2018'!F143,\"\")","v":""},{"$f":"IF('IV. Country level, 1310-2018'!G141<0,'III. GDP shares, 1310-2018'!G143,\"\")","v":""},{"$f":"IF('IV. Country level, 1310-2018'!H141<0,'III. GDP shares, 1310-2018'!H143,\"\")","v":""},{"$f":"IF('IV. Country level, 1310-2018'!I141<0,'III. GDP shares, 1310-2018'!I143,\"\")","v":""},{"$f":"IF('IV. Country level, 1310-2018'!J141<0,'III. GDP shares, 1310-2018'!J143,\"\")","v":""},null,0.29591518499437425,{"v":0.10436716207738993,"d":"10.44%"},{"v":0.20250823357139602,"d":"20.25%"},{"v":0.141966925756584,"d":"14.20%"},{"v":0.14727141335030935,"d":"14.73%"}]
[1448,{"$f":"IF('IV. Country level, 1310-2018'!C142<0,'III. GDP shares, 1310-2018'!C144,\"\")","v":""},{"$f":"IF('IV. Country level, 1310-2018'!D142<0,'III. GDP shares, 1310-2018'!D144,\"\")","v":""},{"$f":"IF('IV. Country level, 1310-2018'!E142<0,'III. GDP shares, 1310-2018'!E144,\"\")","v":""},{"$f":"IF('IV. Country level, 1310-2018'!F142<0,'III. GDP shares, 1310-2018'!F144,\"\")","v":""},{"$f":"IF('IV. Country level, 1310-2018'!G142<0,'III. GDP shares, 1310-2018'!G144,\"\")","v":""},{"$f":"IF('IV. Country level, 1310-2018'!H142<0,'III. GDP shares, 1310-2018'!H144,\"\")","v":""},{"$f":"IF('IV. Country level, 1310-2018'!I142<0,'III. GDP shares, 1310-2018'!I144,\"\")","v":""},{"$f":"IF('IV. Country level, 1310-2018'!J142<0,'III. GDP shares, 1310-2018'!J144,\"\")","v":""},null,0,{"v":0.06207392494430204,"d":"6.21%"},{"v":0.20250823357139602,"d":"20.25%"},{"v":0.1420799517480958,"d":"14.21%"},{"v":0.14727141335030935,"d":"14.73%"}]
[1449,{"$f":"IF('IV. Country level, 1310-2018'!C143<0,'III. GDP shares, 1310-2018'!C145,\"\")","v":""},{"$f":"IF('IV. Country level, 1310-2018'!D143<0,'III. GDP shares, 1310-2018'!D145,\"\")","v":""},{"$f":"IF('IV. Country level, 1310-2018'!E143<0,'III. GDP shares, 1310-2018'!E145,\"\")","v":""},{"$f":"IF('IV. Country level, 1310-2018'!F143<0,'III. GDP shares, 1310-2018'!F145,\"\")","v":""},{"$f":"IF('IV. Country level, 1310-2018'!G143<0,'III. GDP shares, 1310-2018'!G145,\"\")","v":""},{"$f":"IF('IV. Country level, 1310-2018'!H143<0,'III. GDP shares, 1310-2018'!H145,\"\")","v":""},{"$f":"IF('IV. Country level, 1310-2018'!I143<0,'III. GDP shares, 1310-2018'!I145,\"\")","v":0.12012056411004307},{"$f":"IF('IV. Country level, 1310-2018'!J143<0,'III. GDP shares, 1310-2018'!J145,\"\")","v":""},null,0.12012056411004307,{"v":0.05943367844348819,"d":"5.94%"},{"v":0.20250823357139602,"d":"20.25%"},{"v":0.12359064122211676,"d":"12.36%"},{"v":0.14727141335030935,"d":"14.73%"}]
[1450,{"$f":"IF('IV. Country level, 1310-2018'!C144<0,'III. GDP shares, 1310-2018'!C146,\"\")","v":""},{"$f":"IF('IV. Country level, 1310-2018'!D144<0,'III. GDP shares, 1310-2018'!D146,\"\")","v":""},{"$f":"IF('IV. Country level, 1310-2018'!E144<0,'III. GDP shares, 1310-2018'!E146,\"\")","v":""},{"$f":"IF('IV. Country level, 1310-2018'!F144<0,'III. GDP shares, 1310-2018'!F146,\"\")","v":""},{"$f":"IF('IV. Country level, 1310-2018'!G144<0,'III. GDP shares, 1310-2018'!G146,\"\")","v":""},{"$f":"IF('IV. Country level, 1310-2018'!H144<0,'III. GDP shares, 1310-2018'!H146,\"\")","v":""},{"$f":"IF('IV. Country level, 1310-2018'!I144<0,'III. GDP shares, 1310-2018'!I146,\"\")","v":""},{"$f":"IF('IV. Country level, 1310-2018'!J144<0,'III. GDP shares, 1310-2018'!J146,\"\")","v":""},null,0,{"v":0.05943367844348819,"d":"5.94%"},{"v":0.20250823357139602,"d":"20.25%"},{"v":0.11732209915753926,"d":"11.73%"},{"v":0.14727141335030935,"d":"14.73%"}]
[1451,{"$f":"IF('IV. Country level, 1310-2018'!C145<0,'III. GDP shares, 1310-2018'!C147,\"\")","v":""},{"$f":"IF('IV. Country level, 1310-2018'!D145<0,'III. GDP shares, 1310-2018'!D147,\"\")","v":""},{"$f":"IF('IV. Country level, 1310-2018'!E145<0,'III. GDP shares, 1310-2018'!E147,\"\")","v":""},{"$f":"IF('IV. Country level, 1310-2018'!F145<0,'III. GDP shares, 1310-2018'!F147,\"\")","v":""},{"$f":"IF('IV. Country level, 1310-2018'!G145<0,'III. GDP shares, 1310-2018'!G147,\"\")","v":""},{"$f":"IF('IV. Country level, 1310-2018'!H145<0,'III. GDP shares, 1310-2018'!H147,\"\")","v":""},{"$f":"IF('IV. Country level, 1310-2018'!I145<0,'III. GDP shares, 1310-2018'!I147,\"\")","v":""},{"$f":"IF('IV. Country level, 1310-2018'!J145<0,'III. GDP shares, 1310-2018'!J147,\"\")","v":""},null,0,{"v":0.019796652996299458,"d":"1.98%"},{"v":0.20250823357139602,"d":"20.25%"},{"v":0.12159432539270046,"d":"12.16%"},{"v":0.14727141335030935,"d":"14.73%"}]
[1452,{"$f":"IF('IV. Country level, 1310-2018'!C146<0,'III. GDP shares, 1310-2018'!C148,\"\")","v":""},{"$f":"IF('IV. Country level, 1310-2018'!D146<0,'III. GDP shares, 1310-2018'!D148,\"\")","v":""},{"$f":"IF('IV. Country level, 1310-2018'!E146<0,'III. GDP shares, 1310-2018'!E148,\"\")","v":""},{"$f":"IF('IV. Country level, 1310-2018'!F146<0,'III. GDP shares, 1310-2018'!F148,\"\")","v":""},{"$f":"IF('IV. Country level, 1310-2018'!G146<0,'III. GDP shares, 1310-2018'!G148,\"\")","v":""},{"$f":"IF('IV. Country level, 1310-2018'!H146<0,'III. GDP shares, 1310-2018'!H148,\"\")","v":""},{"$f":"IF('IV. Country level, 1310-2018'!I146<0,'III. GDP shares, 1310-2018'!I148,\"\")","v":""},{"$f":"IF('IV. Country level, 1310-2018'!J146<0,'III. GDP shares, 1310-2018'!J148,\"\")","v":""},null,0,{"v":0.02243281780415035,"d":"2.24%"},{"v":0.20250823357139602,"d":"20.25%"},{"v":0.10936548254092701,"d":"10.94%"},{"v":0.14727141335030935,"d":"14.73%"}]
[1453,{"$f":"IF('IV. Country level, 1310-2018'!C147<0,'III. GDP shares, 1310-2018'!C149,\"\")","v":""},{"$f":"IF('IV. Country level, 1310-2018'!D147<0,'III. GDP shares, 1310-2018'!D149,\"\")","v":""},{"$f":"IF('IV. Country level, 1310-2018'!E147<0,'III. GDP shares, 1310-2018'!E149,\"\")","v":""},{"$f":"IF('IV. Country level, 1310-2018'!F147<0,'III. GDP shares, 1310-2018'!F149,\"\")","v":""},{"$f":"IF('IV. Country level, 1310-2018'!G147<0,'III. GDP shares, 1310-2018'!G149,\"\")","v":""},{"$f":"IF('IV. Country level, 1310-2018'!H147<0,'III. GDP shares, 1310-2018'!H149,\"\")","v":""},{"$f":"IF('IV. Country level, 1310-2018'!I147<0,'III. GDP shares, 1310-2018'!I149,\"\")","v":""},{"$f":"IF('IV. Country level, 1310-2018'!J147<0,'III. GDP shares, 1310-2018'!J149,\"\")","v":""},null,0,{"v":0.047487526527127275,"d":"4.75%"},{"v":0.20250823357139602,"d":"20.25%"},{"v":0.10054236735001736,"d":"10.05%"},{"v":0.14727141335030935,"d":"14.73%"}]
[1454,{"$f":"IF('IV. Country level, 1310-2018'!C148<0,'III. GDP shares, 1310-2018'!C150,\"\")","v":""},{"$f":"IF('IV. Country level, 1310-2018'!D148<0,'III. GDP shares, 1310-2018'!D150,\"\")","v":""},{"$f":"IF('IV. Country level, 1310-2018'!E148<0,'III. GDP shares, 1310-2018'!E150,\"\")","v":0.018456006864053135},{"$f":"IF('IV. Country level, 1310-2018'!F148<0,'III. GDP shares, 1310-2018'!F150,\"\")","v":""},{"$f":"IF('IV. Country level, 1310-2018'!G148<0,'III. GDP shares, 1310-2018'!G150,\"\")","v":""},{"$f":"IF('IV. Country level, 1310-2018'!H148<0,'III. GDP shares, 1310-2018'!H150,\"\")","v":""},{"$f":"IF('IV. Country level, 1310-2018'!I148<0,'III. GDP shares, 1310-2018'!I150,\"\")","v":""},{"$f":"IF('IV. Country level, 1310-2018'!J148<0,'III. GDP shares, 1310-2018'!J150,\"\")","v":""},null,0.018456006864053135,{"v":0.047487526527127275,"d":"4.75%"},{"v":0.20250823357139602,"d":"20.25%"},{"v":0.0852423441962365,"d":"8.52%"},{"v":0.14727141335030935,"d":"14.73%"}]
[1455,{"$f":"IF('IV. Country level, 1310-2018'!C149<0,'III. GDP shares, 1310-2018'!C151,\"\")","v":""},{"$f":"IF('IV. Country level, 1310-2018'!D149<0,'III. GDP shares, 1310-2018'!D151,\"\")","v":""},{"$f":"IF('IV. Country level, 1310-2018'!E149<0,'III. GDP shares, 1310-2018'!E151,\"\")","v":0.01845315365495625},{"$f":"IF('IV. Country level, 1310-2018'!F149<0,'III. GDP shares, 1310-2018'!F151,\"\")","v":""},{"$f":"IF('IV. Country level, 1310-2018'!G149<0,'III. GDP shares, 1310-2018'!G151,\"\")","v":""},{"$f":"IF('IV. Country level, 1310-2018'!H149<0,'III. GDP shares, 1310-2018'!H151,\"\")","v":""},{"$f":"IF('IV. Country level, 1310-2018'!I149<0,'III. GDP shares, 1310-2018'!I151,\"\")","v":""},{"$f":"IF('IV. Country level, 1310-2018'!J149<0,'III. GDP shares, 1310-2018'!J151,\"\")","v":""},null,0.01845315365495625,{"v":0.047487526527127275,"d":"4.75%"},{"v":0.20250823357139602,"d":"20.25%"},{"$f":"AVERAGE(K135:K167)","v":{"v":0.07447412875844817,"d":"7.45%"}},{"v":0.14727141335030935,"d":"14.73%"}]
[1456,{"$f":"IF('IV. Country level, 1310-2018'!C150<0,'III. GDP shares, 1310-2018'!C152,\"\")","v":0.2955035251708815},{"$f":"IF('IV. Country level, 1310-2018'!D150<0,'III. GDP shares, 1310-2018'!D152,\"\")","v":""},{"$f":"IF('IV. Country level, 1310-2018'!E150<0,'III. GDP shares, 1310-2018'!E152,\"\")","v":""},{"$f":"IF('IV. Country level, 1310-2018'!F150<0,'III. GDP shares, 1310-2018'!F152,\"\")","v":""},{"$f":"IF('IV. Country level, 1310-2018'!G150<0,'III. GDP shares, 1310-2018'!G152,\"\")","v":""},{"$f":"IF('IV. Country level, 1310-2018'!H150<0,'III. GDP shares, 1310-2018'!H152,\"\")","v":""},{"$f":"IF('IV. Country level, 1310-2018'!I150<0,'III. GDP shares, 1310-2018'!I152,\"\")","v":""},{"$f":"IF('IV. Country level, 1310-2018'!J150<0,'III. GDP shares, 1310-2018'!J152,\"\")","v":""},null,0.2955035251708815,{"v":0.047487526527127275,"d":"4.75%"},{"v":0.20250823357139602,"d":"20.25%"},{"v":0.06549588424625244,"d":"6.55%"},{"v":0.14727141335030935,"d":"14.73%"}]
[1457,{"$f":"IF('IV. Country level, 1310-2018'!C151<0,'III. GDP shares, 1310-2018'!C153,\"\")","v":""},{"$f":"IF('IV. Country level, 1310-2018'!D151<0,'III. GDP shares, 1310-2018'!D153,\"\")","v":""},{"$f":"IF('IV. Country level, 1310-2018'!E151<0,'III. GDP shares, 1310-2018'!E153,\"\")","v":""},{"$f":"IF('IV. Country level, 1310-2018'!F151<0,'III. GDP shares, 1310-2018'!F153,\"\")","v":""},{"$f":"IF('IV. Country level, 1310-2018'!G151<0,'III. GDP shares, 1310-2018'!G153,\"\")","v":""},{"$f":"IF('IV. Country level, 1310-2018'!H151<0,'III. GDP shares, 1310-2018'!H153,\"\")","v":""},{"$f":"IF('IV. Country level, 1310-2018'!I151<0,'III. GDP shares, 1310-2018'!I153,\"\")","v":""},{"$f":"IF('IV. Country level, 1310-2018'!J151<0,'III. GDP shares, 1310-2018'!J153,\"\")","v":""},null,0,{"v":0.047487526527127275,"d":"4.75%"},{"v":0.20250823357139602,"d":"20.25%"},{"v":0.07872337259984814,"d":"7.87%"},{"v":0.14727141335030935,"d":"14.73%"}]
[1458,{"$f":"IF('IV. Country level, 1310-2018'!C152<0,'III. GDP shares, 1310-2018'!C154,\"\")","v":""},{"$f":"IF('IV. Country level, 1310-2018'!D152<0,'III. GDP shares, 1310-2018'!D154,\"\")","v":""},{"$f":"IF('IV. Country level, 1310-2018'!E152<0,'III. GDP shares, 1310-2018'!E154,\"\")","v":""},{"$f":"IF('IV. Country level, 1310-2018'!F152<0,'III. GDP shares, 1310-2018'!F154,\"\")","v":""},{"$f":"IF('IV. Country level, 1310-2018'!G152<0,'III. GDP shares, 1310-2018'!G154,\"\")","v":""},{"$f":"IF('IV. Country level, 1310-2018'!H152<0,'III. GDP shares, 1310-2018'!H154,\"\")","v":""},{"$f":"IF('IV. Country level, 1310-2018'!I152<0,'III. GDP shares, 1310-2018'!I154,\"\")","v":""},{"$f":"IF('IV. Country level, 1310-2018'!J152<0,'III. GDP shares, 1310-2018'!J154,\"\")","v":""},null,0,{"v":0.04485095411797683,"d":"4.49%"},{"v":0.20250823357139602,"d":"20.25%"},{"v":0.09195349301817984,"d":"9.20%"},{"v":0.14727141335030935,"d":"14.73%"}]
[1459,{"$f":"IF('IV. Country level, 1310-2018'!C153<0,'III. GDP shares, 1310-2018'!C155,\"\")","v":""},{"$f":"IF('IV. Country level, 1310-2018'!D153<0,'III. GDP shares, 1310-2018'!D155,\"\")","v":""},{"$f":"IF('IV. Country level, 1310-2018'!E153<0,'III. GDP shares, 1310-2018'!E155,\"\")","v":""},{"$f":"IF('IV. Country level, 1310-2018'!F153<0,'III. GDP shares, 1310-2018'!F155,\"\")","v":""},{"$f":"IF('IV. Country level, 1310-2018'!G153<0,'III. GDP shares, 1310-2018'!G155,\"\")","v":""},{"$f":"IF('IV. Country level, 1310-2018'!H153<0,'III. GDP shares, 1310-2018'!H155,\"\")","v":""},{"$f":"IF('IV. Country level, 1310-2018'!I153<0,'III. GDP shares, 1310-2018'!I155,\"\")","v":""},{"$f":"IF('IV. Country level, 1310-2018'!J153<0,'III. GDP shares, 1310-2018'!J155,\"\")","v":""},null,0,{"v":0.042214789310125934,"d":"4.22%"},{"v":0.20250823357139602,"d":"20.25%"},{"v":0.08194639059100443,"d":"8.19%"},{"v":0.14727141335030935,"d":"14.73%"}]
[1460,{"$f":"IF('IV. Country level, 1310-2018'!C154<0,'III. GDP shares, 1310-2018'!C156,\"\")","v":""},{"$f":"IF('IV. Country level, 1310-2018'!D154<0,'III. GDP shares, 1310-2018'!D156,\"\")","v":""},{"$f":"IF('IV. Country level, 1310-2018'!E154<0,'III. GDP shares, 1310-2018'!E156,\"\")","v":""},{"$f":"IF('IV. Country level, 1310-2018'!F154<0,'III. GDP shares, 1310-2018'!F156,\"\")","v":""},{"$f":"IF('IV. Country level, 1310-2018'!G154<0,'III. GDP shares, 1310-2018'!G156,\"\")","v":""},{"$f":"IF('IV. Country level, 1310-2018'!H154<0,'III. GDP shares, 1310-2018'!H156,\"\")","v":""},{"$f":"IF('IV. Country level, 1310-2018'!I154<0,'III. GDP shares, 1310-2018'!I156,\"\")","v":""},{"$f":"IF('IV. Country level, 1310-2018'!J154<0,'III. GDP shares, 1310-2018'!J156,\"\")","v":""},null,0,{"v":0.04216916232884891,"d":"4.22%"},{"v":0.20250823357139602,"d":"20.25%"},{"v":0.08194639059100443,"d":"8.19%"},{"v":0.14727141335030935,"d":"14.73%"}]
[1461,{"$f":"IF('IV. Country level, 1310-2018'!C155<0,'III. GDP shares, 1310-2018'!C157,\"\")","v":""},{"$f":"IF('IV. Country level, 1310-2018'!D155<0,'III. GDP shares, 1310-2018'!D157,\"\")","v":""},{"$f":"IF('IV. Country level, 1310-2018'!E155<0,'III. GDP shares, 1310-2018'!E157,\"\")","v":""},{"$f":"IF('IV. Country level, 1310-2018'!F155<0,'III. GDP shares, 1310-2018'!F157,\"\")","v":""},{"$f":"IF('IV. Country level, 1310-2018'!G155<0,'III. GDP shares, 1310-2018'!G157,\"\")","v":""},{"$f":"IF('IV. Country level, 1310-2018'!H155<0,'III. GDP shares, 1310-2018'!H157,\"\")","v":""},{"$f":"IF('IV. Country level, 1310-2018'!I155<0,'III. GDP shares, 1310-2018'!I157,\"\")","v":""},{"$f":"IF('IV. Country level, 1310-2018'!J155<0,'III. GDP shares, 1310-2018'!J157,\"\")","v":""},null,0,{"v":0.08433181456769745,"d":"8.43%"},{"v":0.20250823357139602,"d":"20.25%"},{"v":0.07353238894128859,"d":"7.35%"},{"v":0.14727141335030935,"d":"14.73%"}]
[1462,{"$f":"IF('IV. Country level, 1310-2018'!C156<0,'III. GDP shares, 1310-2018'!C158,\"\")","v":""},{"$f":"IF('IV. Country level, 1310-2018'!D156<0,'III. GDP shares, 1310-2018'!D158,\"\")","v":""},{"$f":"IF('IV. Country level, 1310-2018'!E156<0,'III. GDP shares, 1310-2018'!E158,\"\")","v":""},{"$f":"IF('IV. Country level, 1310-2018'!F156<0,'III. GDP shares, 1310-2018'!F158,\"\")","v":""},{"$f":"IF('IV. Country level, 1310-2018'!G156<0,'III. GDP shares, 1310-2018'!G158,\"\")","v":""},{"$f":"IF('IV. Country level, 1310-2018'!H156<0,'III. GDP shares, 1310-2018'!H158,\"\")","v":""},{"$f":"IF('IV. Country level, 1310-2018'!I156<0,'III. GDP shares, 1310-2018'!I158,\"\")","v":""},{"$f":"IF('IV. Country level, 1310-2018'!J156<0,'III. GDP shares, 1310-2018'!J158,\"\")","v":""},null,0,{"v":0.08696391028330376,"d":"8.70%"},{"v":0.20250823357139602,"d":"20.25%"},{"v":0.07728867264369117,"d":"7.73%"},{"v":0.14727141335030935,"d":"14.73%"}]
[1463,{"$f":"IF('IV. Country level, 1310-2018'!C157<0,'III. GDP shares, 1310-2018'!C159,\"\")","v":0.29518413630194235},{"$f":"IF('IV. Country level, 1310-2018'!D157<0,'III. GDP shares, 1310-2018'!D159,\"\")","v":""},{"$f":"IF('IV. Country level, 1310-2018'!E157<0,'III. GDP shares, 1310-2018'!E159,\"\")","v":""},{"$f":"IF('IV. Country level, 1310-2018'!F157<0,'III. GDP shares, 1310-2018'!F159,\"\")","v":""},{"$f":"IF('IV. Country level, 1310-2018'!G157<0,'III. GDP shares, 1310-2018'!G159,\"\")","v":""},{"$f":"IF('IV. Country level, 1310-2018'!H157<0,'III. GDP shares, 1310-2018'!H159,\"\")","v":""},{"$f":"IF('IV. Country level, 1310-2018'!I157<0,'III. GDP shares, 1310-2018'!I159,\"\")","v":""},{"$f":"IF('IV. Country level, 1310-2018'!J157<0,'III. GDP shares, 1310-2018'!J159,\"\")","v":""},null,0.29518413630194235,{"v":0.08696391028330376,"d":"8.70%"},{"v":0.20250823357139602,"d":"20.25%"},{"v":0.07728867264369117,"d":"7.73%"},{"v":0.14727141335030935,"d":"14.73%"}]
[1464,{"$f":"IF('IV. Country level, 1310-2018'!C158<0,'III. GDP shares, 1310-2018'!C160,\"\")","v":0.29513856567193975},{"$f":"IF('IV. Country level, 1310-2018'!D158<0,'III. GDP shares, 1310-2018'!D160,\"\")","v":""},{"$f":"IF('IV. Country level, 1310-2018'!E158<0,'III. GDP shares, 1310-2018'!E160,\"\")","v":""},{"$f":"IF('IV. Country level, 1310-2018'!F158<0,'III. GDP shares, 1310-2018'!F160,\"\")","v":""},{"$f":"IF('IV. Country level, 1310-2018'!G158<0,'III. GDP shares, 1310-2018'!G160,\"\")","v":""},{"$f":"IF('IV. Country level, 1310-2018'!H158<0,'III. GDP shares, 1310-2018'!H160,\"\")","v":""},{"$f":"IF('IV. Country level, 1310-2018'!I158<0,'III. GDP shares, 1310-2018'!I160,\"\")","v":""},{"$f":"IF('IV. Country level, 1310-2018'!J158<0,'III. GDP shares, 1310-2018'!J160,\"\")","v":""},null,0.29513856567193975,{"v":0.10710440539192079,"d":"10.71%"},{"v":0.20250823357139602,"d":"20.25%"},{"v":0.06832154582567983,"d":"6.83%"},{"v":0.14727141335030935,"d":"14.73%"}]
[1465,{"$f":"IF('IV. Country level, 1310-2018'!C159<0,'III. GDP shares, 1310-2018'!C161,\"\")","v":""},{"$f":"IF('IV. Country level, 1310-2018'!D159<0,'III. GDP shares, 1310-2018'!D161,\"\")","v":""},{"$f":"IF('IV. Country level, 1310-2018'!E159<0,'III. GDP shares, 1310-2018'!E161,\"\")","v":0.01842467000924421},{"$f":"IF('IV. Country level, 1310-2018'!F159<0,'III. GDP shares, 1310-2018'!F161,\"\")","v":""},{"$f":"IF('IV. Country level, 1310-2018'!G159<0,'III. GDP shares, 1310-2018'!G161,\"\")","v":""},{"$f":"IF('IV. Country level, 1310-2018'!H159<0,'III. GDP shares, 1310-2018'!H161,\"\")","v":""},{"$f":"IF('IV. Country level, 1310-2018'!I159<0,'III. GDP shares, 1310-2018'!I161,\"\")","v":""},{"$f":"IF('IV. Country level, 1310-2018'!J159<0,'III. GDP shares, 1310-2018'!J161,\"\")","v":""},null,0.01842467000924421,{"v":0.10973528282827451,"d":"10.97%"},{"v":0.20250823357139602,"d":"20.25%"},{"v":0.07737434997312652,"d":"7.74%"},{"$f":"AVERAGE(L$96:L$195)","v":{"v":0.14727141335030935,"d":"14.73%"}}]
[1466,{"$f":"IF('IV. Country level, 1310-2018'!C160<0,'III. GDP shares, 1310-2018'!C162,\"\")","v":""},{"$f":"IF('IV. Country level, 1310-2018'!D160<0,'III. GDP shares, 1310-2018'!D162,\"\")","v":""},{"$f":"IF('IV. Country level, 1310-2018'!E160<0,'III. GDP shares, 1310-2018'!E162,\"\")","v":""},{"$f":"IF('IV. Country level, 1310-2018'!F160<0,'III. GDP shares, 1310-2018'!F162,\"\")","v":""},{"$f":"IF('IV. Country level, 1310-2018'!G160<0,'III. GDP shares, 1310-2018'!G162,\"\")","v":""},{"$f":"IF('IV. Country level, 1310-2018'!H160<0,'III. GDP shares, 1310-2018'!H162,\"\")","v":""},{"$f":"IF('IV. Country level, 1310-2018'!I160<0,'III. GDP shares, 1310-2018'!I162,\"\")","v":""},{"$f":"IF('IV. Country level, 1310-2018'!J160<0,'III. GDP shares, 1310-2018'!J162,\"\")","v":""},null,0,{"v":0.10973528282827451,"d":"10.97%"},{"v":0.20250823357139602,"d":"20.25%"},{"v":0.10127977694272017,"d":"10.13%"},{"v":0.14727141335030935,"d":"14.73%"}]
[1467,{"$f":"IF('IV. Country level, 1310-2018'!C161<0,'III. GDP shares, 1310-2018'!C163,\"\")","v":""},{"$f":"IF('IV. Country level, 1310-2018'!D161<0,'III. GDP shares, 1310-2018'!D163,\"\")","v":""},{"$f":"IF('IV. Country level, 1310-2018'!E161<0,'III. GDP shares, 1310-2018'!E163,\"\")","v":0.018418983828772675},{"$f":"IF('IV. Country level, 1310-2018'!F161<0,'III. GDP shares, 1310-2018'!F163,\"\")","v":""},{"$f":"IF('IV. Country level, 1310-2018'!G161<0,'III. GDP shares, 1310-2018'!G163,\"\")","v":""},{"$f":"IF('IV. Country level, 1310-2018'!H161<0,'III. GDP shares, 1310-2018'!H163,\"\")","v":""},{"$f":"IF('IV. Country level, 1310-2018'!I161<0,'III. GDP shares, 1310-2018'!I163,\"\")","v":0.12256448193154648},{"$f":"IF('IV. Country level, 1310-2018'!J161<0,'III. GDP shares, 1310-2018'!J163,\"\")","v":""},null,0.14098346576031917,{"v":0.06756612049942559,"d":"6.76%"},{"v":0.20250823357139602,"d":"20.25%"},{"v":0.11019721298099006,"d":"11.02%"},{"v":0.14727141335030935,"d":"14.73%"}]
[1468,{"$f":"IF('IV. Country level, 1310-2018'!C162<0,'III. GDP shares, 1310-2018'!C164,\"\")","v":""},{"$f":"IF('IV. Country level, 1310-2018'!D162<0,'III. GDP shares, 1310-2018'!D164,\"\")","v":""},{"$f":"IF('IV. Country level, 1310-2018'!E162<0,'III. GDP shares, 1310-2018'!E164,\"\")","v":0.018416142054476083},{"$f":"IF('IV. Country level, 1310-2018'!F162<0,'III. GDP shares, 1310-2018'!F164,\"\")","v":""},{"$f":"IF('IV. Country level, 1310-2018'!G162<0,'III. GDP shares, 1310-2018'!G164,\"\")","v":""},{"$f":"IF('IV. Country level, 1310-2018'!H162<0,'III. GDP shares, 1310-2018'!H164,\"\")","v":""},{"$f":"IF('IV. Country level, 1310-2018'!I162<0,'III. GDP shares, 1310-2018'!I164,\"\")","v":""},{"$f":"IF('IV. Country level, 1310-2018'!J162<0,'III. GDP shares, 1310-2018'!J164,\"\")","v":""},null,0.018416142054476083,{"v":0.02540346826057707,"d":"2.54%"},{"v":0.20250823357139602,"d":"20.25%"},{"v":0.1191132765799248,"d":"11.91%"},{"v":0.14727141335030935,"d":"14.73%"}]
[1469,{"$f":"IF('IV. Country level, 1310-2018'!C163<0,'III. GDP shares, 1310-2018'!C165,\"\")","v":""},{"$f":"IF('IV. Country level, 1310-2018'!D163<0,'III. GDP shares, 1310-2018'!D165,\"\")","v":""},{"$f":"IF('IV. Country level, 1310-2018'!E163<0,'III. GDP shares, 1310-2018'!E165,\"\")","v":""},{"$f":"IF('IV. Country level, 1310-2018'!F163<0,'III. GDP shares, 1310-2018'!F165,\"\")","v":""},{"$f":"IF('IV. Country level, 1310-2018'!G163<0,'III. GDP shares, 1310-2018'!G165,\"\")","v":""},{"$f":"IF('IV. Country level, 1310-2018'!H163<0,'III. GDP shares, 1310-2018'!H165,\"\")","v":""},{"$f":"IF('IV. Country level, 1310-2018'!I163<0,'III. GDP shares, 1310-2018'!I165,\"\")","v":""},{"$f":"IF('IV. Country level, 1310-2018'!J163<0,'III. GDP shares, 1310-2018'!J165,\"\")","v":""},null,0,{"v":0.02277137254497075,"d":"2.28%"},{"v":0.20250823357139602,"d":"20.25%"},{"v":0.1191132765799248,"d":"11.91%"},{"v":0.14727141335030935,"d":"14.73%"}]
[1470,{"$f":"IF('IV. Country level, 1310-2018'!C164<0,'III. GDP shares, 1310-2018'!C166,\"\")","v":""},{"$f":"IF('IV. Country level, 1310-2018'!D164<0,'III. GDP shares, 1310-2018'!D166,\"\")","v":""},{"$f":"IF('IV. Country level, 1310-2018'!E164<0,'III. GDP shares, 1310-2018'!E166,\"\")","v":""},{"$f":"IF('IV. Country level, 1310-2018'!F164<0,'III. GDP shares, 1310-2018'!F166,\"\")","v":""},{"$f":"IF('IV. Country level, 1310-2018'!G164<0,'III. GDP shares, 1310-2018'!G166,\"\")","v":""},{"$f":"IF('IV. Country level, 1310-2018'!H164<0,'III. GDP shares, 1310-2018'!H166,\"\")","v":""},{"$f":"IF('IV. Country level, 1310-2018'!I164<0,'III. GDP shares, 1310-2018'!I166,\"\")","v":""},{"$f":"IF('IV. Country level, 1310-2018'!J164<0,'III. GDP shares, 1310-2018'!J166,\"\")","v":""},null,0,{"v":0.0851295319262076,"d":"8.51%"},{"v":0.20250823357139602,"d":"20.25%"},{"v":0.11966979596324284,"d":"11.97%"},{"v":0.14727141335030935,"d":"14.73%"}]
[1471,{"$f":"IF('IV. Country level, 1310-2018'!C165<0,'III. GDP shares, 1310-2018'!C167,\"\")","v":""},{"$f":"IF('IV. Country level, 1310-2018'!D165<0,'III. GDP shares, 1310-2018'!D167,\"\")","v":""},{"$f":"IF('IV. Country level, 1310-2018'!E165<0,'III. GDP shares, 1310-2018'!E167,\"\")","v":""},{"$f":"IF('IV. Country level, 1310-2018'!F165<0,'III. GDP shares, 1310-2018'!F167,\"\")","v":""},{"$f":"IF('IV. Country level, 1310-2018'!G165<0,'III. GDP shares, 1310-2018'!G167,\"\")","v":""},{"$f":"IF('IV. Country level, 1310-2018'!H165<0,'III. GDP shares, 1310-2018'!H167,\"\")","v":""},{"$f":"IF('IV. Country level, 1310-2018'!I165<0,'III. GDP shares, 1310-2018'!I167,\"\")","v":""},{"$f":"IF('IV. Country level, 1310-2018'!J165<0,'III. GDP shares, 1310-2018'!J167,\"\")","v":""},null,0,{"v":0.12735960450401146,"d":"12.74%"},{"v":0.20250823357139602,"d":"20.25%"},{"v":0.12802247184243384,"d":"12.80%"},{"v":0.14727141335030935,"d":"14.73%"}]
[1472,{"$f":"IF('IV. Country level, 1310-2018'!C166<0,'III. GDP shares, 1310-2018'!C168,\"\")","v":""},{"$f":"IF('IV. Country level, 1310-2018'!D166<0,'III. GDP shares, 1310-2018'!D168,\"\")","v":""},{"$f":"IF('IV. Country level, 1310-2018'!E166<0,'III. GDP shares, 1310-2018'!E168,\"\")","v":""},{"$f":"IF('IV. Country level, 1310-2018'!F166<0,'III. GDP shares, 1310-2018'!F168,\"\")","v":""},{"$f":"IF('IV. Country level, 1310-2018'!G166<0,'III. GDP shares, 1310-2018'!G168,\"\")","v":""},{"$f":"IF('IV. Country level, 1310-2018'!H166<0,'III. GDP shares, 1310-2018'!H168,\"\")","v":""},{"$f":"IF('IV. Country level, 1310-2018'!I166<0,'III. GDP shares, 1310-2018'!I168,\"\")","v":""},{"$f":"IF('IV. Country level, 1310-2018'!J166<0,'III. GDP shares, 1310-2018'!J168,\"\")","v":""},null,0,{"v":0.12472872706765774,"d":"12.47%"},{"v":0.20250823357139602,"d":"20.25%"},{"v":0.12801963355435284,"d":"12.80%"},{"v":0.14727141335030935,"d":"14.73%"}]
[1473,{"$f":"IF('IV. Country level, 1310-2018'!C167<0,'III. GDP shares, 1310-2018'!C169,\"\")","v":0.29472906229227613},{"$f":"IF('IV. Country level, 1310-2018'!D167<0,'III. GDP shares, 1310-2018'!D169,\"\")","v":""},{"$f":"IF('IV. Country level, 1310-2018'!E167<0,'III. GDP shares, 1310-2018'!E169,\"\")","v":0.018401946326154932},{"$f":"IF('IV. Country level, 1310-2018'!F167<0,'III. GDP shares, 1310-2018'!F169,\"\")","v":""},{"$f":"IF('IV. Country level, 1310-2018'!G167<0,'III. GDP shares, 1310-2018'!G169,\"\")","v":""},{"$f":"IF('IV. Country level, 1310-2018'!H167<0,'III. GDP shares, 1310-2018'!H169,\"\")","v":""},{"$f":"IF('IV. Country level, 1310-2018'!I167<0,'III. GDP shares, 1310-2018'!I169,\"\")","v":0.12337610705022682},{"$f":"IF('IV. Country level, 1310-2018'!J167<0,'III. GDP shares, 1310-2018'!J169,\"\")","v":""},null,0.4365071156686579,{"v":0.12472872706765774,"d":"12.47%"},{"v":0.20250823357139602,"d":"20.25%"},{"v":0.1254147483819896,"d":"12.54%"},{"v":0.14727141335030935,"d":"14.73%"}]
[1474,{"$f":"IF('IV. Country level, 1310-2018'!C168<0,'III. GDP shares, 1310-2018'!C170,\"\")","v":0.2946836320521213},{"$f":"IF('IV. Country level, 1310-2018'!D168<0,'III. GDP shares, 1310-2018'!D170,\"\")","v":""},{"$f":"IF('IV. Country level, 1310-2018'!E168<0,'III. GDP shares, 1310-2018'!E170,\"\")","v":0.018399109806286777},{"$f":"IF('IV. Country level, 1310-2018'!F168<0,'III. GDP shares, 1310-2018'!F170,\"\")","v":""},{"$f":"IF('IV. Country level, 1310-2018'!G168<0,'III. GDP shares, 1310-2018'!G170,\"\")","v":""},{"$f":"IF('IV. Country level, 1310-2018'!H168<0,'III. GDP shares, 1310-2018'!H170,\"\")","v":""},{"$f":"IF('IV. Country level, 1310-2018'!I168<0,'III. GDP shares, 1310-2018'!I170,\"\")","v":0.12351123194653815},{"$f":"IF('IV. Country level, 1310-2018'!J168<0,'III. GDP shares, 1310-2018'!J170,\"\")","v":""},null,0.43659397380494624,{"v":0.1273559564235138,"d":"12.74%"},{"v":0.20250823357139602,"d":"20.25%"},{"v":0.13176353912727135,"d":"13.18%"},{"v":0.14727141335030935,"d":"14.73%"}]
[1475,{"$f":"IF('IV. Country level, 1310-2018'!C169<0,'III. GDP shares, 1310-2018'!C171,\"\")","v":""},{"$f":"IF('IV. Country level, 1310-2018'!D169<0,'III. GDP shares, 1310-2018'!D171,\"\")","v":""},{"$f":"IF('IV. Country level, 1310-2018'!E169<0,'III. GDP shares, 1310-2018'!E171,\"\")","v":""},{"$f":"IF('IV. Country level, 1310-2018'!F169<0,'III. GDP shares, 1310-2018'!F171,\"\")","v":""},{"$f":"IF('IV. Country level, 1310-2018'!G169<0,'III. GDP shares, 1310-2018'!G171,\"\")","v":""},{"$f":"IF('IV. Country level, 1310-2018'!H169<0,'III. GDP shares, 1310-2018'!H171,\"\")","v":""},{"$f":"IF('IV. Country level, 1310-2018'!I169<0,'III. GDP shares, 1310-2018'!I171,\"\")","v":""},{"$f":"IF('IV. Country level, 1310-2018'!J169<0,'III. GDP shares, 1310-2018'!J171,\"\")","v":""},null,0,{"v":0.14770439752136838,"d":"14.77%"},{"v":0.20250823357139602,"d":"20.25%"},{"v":0.1381113538125029,"d":"13.81%"},{"v":0.14727141335030935,"d":"14.73%"}]
[1476,{"$f":"IF('IV. Country level, 1310-2018'!C170<0,'III. GDP shares, 1310-2018'!C172,\"\")","v":""},{"$f":"IF('IV. Country level, 1310-2018'!D170<0,'III. GDP shares, 1310-2018'!D172,\"\")","v":""},{"$f":"IF('IV. Country level, 1310-2018'!E170<0,'III. GDP shares, 1310-2018'!E172,\"\")","v":""},{"$f":"IF('IV. Country level, 1310-2018'!F170<0,'III. GDP shares, 1310-2018'!F172,\"\")","v":""},{"$f":"IF('IV. Country level, 1310-2018'!G170<0,'III. GDP shares, 1310-2018'!G172,\"\")","v":""},{"$f":"IF('IV. Country level, 1310-2018'!H170<0,'III. GDP shares, 1310-2018'!H172,\"\")","v":""},{"$f":"IF('IV. Country level, 1310-2018'!I170<0,'III. GDP shares, 1310-2018'!I172,\"\")","v":""},{"$f":"IF('IV. Country level, 1310-2018'!J170<0,'III. GDP shares, 1310-2018'!J172,\"\")","v":""},null,0,{"v":0.14770439752136838,"d":"14.77%"},{"v":0.20250823357139602,"d":"20.25%"},{"v":0.1381113538125029,"d":"13.81%"},{"v":0.14727141335030935,"d":"14.73%"}]
[1477,{"$f":"IF('IV. Country level, 1310-2018'!C171<0,'III. GDP shares, 1310-2018'!C173,\"\")","v":""},{"$f":"IF('IV. Country level, 1310-2018'!D171<0,'III. GDP shares, 1310-2018'!D173,\"\")","v":""},{"$f":"IF('IV. Country level, 1310-2018'!E171<0,'III. GDP shares, 1310-2018'!E173,\"\")","v":0.01839060549099241},{"$f":"IF('IV. Country level, 1310-2018'!F171<0,'III. GDP shares, 1310-2018'!F173,\"\")","v":""},{"$f":"IF('IV. Country level, 1310-2018'!G171<0,'III. GDP shares, 1310-2018'!G173,\"\")","v":""},{"$f":"IF('IV. Country level, 1310-2018'!H171<0,'III. GDP shares, 1310-2018'!H173,\"\")","v":""},{"$f":"IF('IV. Country level, 1310-2018'!I171<0,'III. GDP shares, 1310-2018'!I173,\"\")","v":""},{"$f":"IF('IV. Country level, 1310-2018'!J171<0,'III. GDP shares, 1310-2018'!J173,\"\")","v":""},null,0.01839060549099241,{"v":0.08534623814013154,"d":"8.53%"},{"v":0.20250823357139602,"d":"20.25%"},{"v":0.1381113538125029,"d":"13.81%"},{"v":0.14727141335030935,"d":"14.73%"}]
[1478,{"$f":"IF('IV. Country level, 1310-2018'!C172<0,'III. GDP shares, 1310-2018'!C174,\"\")","v":""},{"$f":"IF('IV. Country level, 1310-2018'!D172<0,'III. GDP shares, 1310-2018'!D174,\"\")","v":""},{"$f":"IF('IV. Country level, 1310-2018'!E172<0,'III. GDP shares, 1310-2018'!E174,\"\")","v":0.01838777246598453},{"$f":"IF('IV. Country level, 1310-2018'!F172<0,'III. GDP shares, 1310-2018'!F174,\"\")","v":""},{"$f":"IF('IV. Country level, 1310-2018'!G172<0,'III. GDP shares, 1310-2018'!G174,\"\")","v":""},{"$f":"IF('IV. Country level, 1310-2018'!H172<0,'III. GDP shares, 1310-2018'!H174,\"\")","v":""},{"$f":"IF('IV. Country level, 1310-2018'!I172<0,'III. GDP shares, 1310-2018'!I174,\"\")","v":0.12405131521899751},{"$f":"IF('IV. Country level, 1310-2018'!J172<0,'III. GDP shares, 1310-2018'!J174,\"\")","v":""},null,0.14243908768498204,{"v":0.06565317572024502,"d":"6.57%"},{"v":0.20250823357139602,"d":"20.25%"},{"v":0.14701371621718473,"d":"14.70%"},{"v":0.14727141335030935,"d":"14.73%"}]
[1479,{"$f":"IF('IV. Country level, 1310-2018'!C173<0,'III. GDP shares, 1310-2018'!C175,\"\")","v":""},{"$f":"IF('IV. Country level, 1310-2018'!D173<0,'III. GDP shares, 1310-2018'!D175,\"\")","v":""},{"$f":"IF('IV. Country level, 1310-2018'!E173<0,'III. GDP shares, 1310-2018'!E175,\"\")","v":""},{"$f":"IF('IV. Country level, 1310-2018'!F173<0,'III. GDP shares, 1310-2018'!F175,\"\")","v":""},{"$f":"IF('IV. Country level, 1310-2018'!G173<0,'III. GDP shares, 1310-2018'!G175,\"\")","v":""},{"$f":"IF('IV. Country level, 1310-2018'!H173<0,'III. GDP shares, 1310-2018'!H175,\"\")","v":""},{"$f":"IF('IV. Country level, 1310-2018'!I173<0,'III. GDP shares, 1310-2018'!I175,\"\")","v":""},{"$f":"IF('IV. Country level, 1310-2018'!J173<0,'III. GDP shares, 1310-2018'!J175,\"\")","v":""},null,0,{"v":0.19551026916404987,"d":"19.55%"},{"v":0.20250823357139602,"d":"20.25%"},{"v":0.1559147108180738,"d":"15.59%"},{"v":0.14727141335030935,"d":"14.73%"}]
[1480,{"$f":"IF('IV. Country level, 1310-2018'!C174<0,'III. GDP shares, 1310-2018'!C176,\"\")","v":""},{"$f":"IF('IV. Country level, 1310-2018'!D174<0,'III. GDP shares, 1310-2018'!D176,\"\")","v":""},{"$f":"IF('IV. Country level, 1310-2018'!E174<0,'III. GDP shares, 1310-2018'!E176,\"\")","v":""},{"$f":"IF('IV. Country level, 1310-2018'!F174<0,'III. GDP shares, 1310-2018'!F176,\"\")","v":""},{"$f":"IF('IV. Country level, 1310-2018'!G174<0,'III. GDP shares, 1310-2018'!G176,\"\")","v":""},{"$f":"IF('IV. Country level, 1310-2018'!H174<0,'III. GDP shares, 1310-2018'!H176,\"\")","v":""},{"$f":"IF('IV. Country level, 1310-2018'!I174<0,'III. GDP shares, 1310-2018'!I176,\"\")","v":""},{"$f":"IF('IV. Country level, 1310-2018'!J174<0,'III. GDP shares, 1310-2018'!J176,\"\")","v":""},null,0,{"v":0.23754961048732223,"d":"23.75%"},{"v":0.20250823357139602,"d":"20.25%"},{"v":0.1558693642080865,"d":"15.59%"},{"v":0.14727141335030935,"d":"14.73%"}]
[1481,{"$f":"IF('IV. Country level, 1310-2018'!C175<0,'III. GDP shares, 1310-2018'!C177,\"\")","v":""},{"$f":"IF('IV. Country level, 1310-2018'!D175<0,'III. GDP shares, 1310-2018'!D177,\"\")","v":""},{"$f":"IF('IV. Country level, 1310-2018'!E175<0,'III. GDP shares, 1310-2018'!E177,\"\")","v":0.01837927862558348},{"$f":"IF('IV. Country level, 1310-2018'!F175<0,'III. GDP shares, 1310-2018'!F177,\"\")","v":""},{"$f":"IF('IV. Country level, 1310-2018'!G175<0,'III. GDP shares, 1310-2018'!G177,\"\")","v":0.28036325824015723},{"$f":"IF('IV. Country level, 1310-2018'!H175<0,'III. GDP shares, 1310-2018'!H177,\"\")","v":""},{"$f":"IF('IV. Country level, 1310-2018'!I175<0,'III. GDP shares, 1310-2018'!I177,\"\")","v":""},{"$f":"IF('IV. Country level, 1310-2018'!J175<0,'III. GDP shares, 1310-2018'!J177,\"\")","v":""},null,0.2987425368657407,{"v":0.27695525238358715,"d":"27.70%"},{"v":0.20250823357139602,"d":"20.25%"},{"v":0.16491722903435968,"d":"16.49%"},{"v":0.14727141335030935,"d":"14.73%"}]
[1482,{"$f":"IF('IV. Country level, 1310-2018'!C176<0,'III. GDP shares, 1310-2018'!C178,\"\")","v":0.2943206937061403},{"$f":"IF('IV. Country level, 1310-2018'!D176<0,'III. GDP shares, 1310-2018'!D178,\"\")","v":""},{"$f":"IF('IV. Country level, 1310-2018'!E176<0,'III. GDP shares, 1310-2018'!E178,\"\")","v":""},{"$f":"IF('IV. Country level, 1310-2018'!F176<0,'III. GDP shares, 1310-2018'!F178,\"\")","v":0.20976813148175175},{"$f":"IF('IV. Country level, 1310-2018'!G176<0,'III. GDP shares, 1310-2018'!G178,\"\")","v":0.2803200956048121},{"$f":"IF('IV. Country level, 1310-2018'!H176<0,'III. GDP shares, 1310-2018'!H178,\"\")","v":""},{"$f":"IF('IV. Country level, 1310-2018'!I176<0,'III. GDP shares, 1310-2018'!I178,\"\")","v":0.12459073331392992},{"$f":"IF('IV. Country level, 1310-2018'!J176<0,'III. GDP shares, 1310-2018'!J178,\"\")","v":""},null,0.908999654106634,{"v":0.2566068112857326,"d":"25.66%"},{"v":0.20250823357139602,"d":"20.25%"},{"v":0.1649143994795127,"d":"16.49%"},{"v":0.14727141335030935,"d":"14.73%"}]
[1483,{"$f":"IF('IV. Country level, 1310-2018'!C177<0,'III. GDP shares, 1310-2018'!C179,\"\")","v":0.29427538926290636},{"$f":"IF('IV. Country level, 1310-2018'!D177<0,'III. GDP shares, 1310-2018'!D179,\"\")","v":""},{"$f":"IF('IV. Country level, 1310-2018'!E177<0,'III. GDP shares, 1310-2018'!E179,\"\")","v":""},{"$f":"IF('IV. Country level, 1310-2018'!F177<0,'III. GDP shares, 1310-2018'!F179,\"\")","v":""},{"$f":"IF('IV. Country level, 1310-2018'!G177<0,'III. GDP shares, 1310-2018'!G179,\"\")","v":""},{"$f":"IF('IV. Country level, 1310-2018'!H177<0,'III. GDP shares, 1310-2018'!H179,\"\")","v":""},{"$f":"IF('IV. Country level, 1310-2018'!I177<0,'III. GDP shares, 1310-2018'!I179,\"\")","v":""},{"$f":"IF('IV. Country level, 1310-2018'!J177<0,'III. GDP shares, 1310-2018'!J179,\"\")","v":""},null,0.29427538926290636,{"v":0.2592304026642319,"d":"25.92%"},{"v":0.20250823357139602,"d":"20.25%"},{"v":0.1649143994795127,"d":"16.49%"},{"v":0.14727141335030935,"d":"14.73%"}]
[1484,{"$f":"IF('IV. Country level, 1310-2018'!C178<0,'III. GDP shares, 1310-2018'!C180,\"\")","v":0.2942300987648469},{"$f":"IF('IV. Country level, 1310-2018'!D178<0,'III. GDP shares, 1310-2018'!D180,\"\")","v":""},{"$f":"IF('IV. Country level, 1310-2018'!E178<0,'III. GDP shares, 1310-2018'!E180,\"\")","v":""},{"$f":"IF('IV. Country level, 1310-2018'!F178<0,'III. GDP shares, 1310-2018'!F180,\"\")","v":""},{"$f":"IF('IV. Country level, 1310-2018'!G178<0,'III. GDP shares, 1310-2018'!G180,\"\")","v":""},{"$f":"IF('IV. Country level, 1310-2018'!H178<0,'III. GDP shares, 1310-2018'!H180,\"\")","v":""},{"$f":"IF('IV. Country level, 1310-2018'!I178<0,'III. GDP shares, 1310-2018'!I180,\"\")","v":""},{"$f":"IF('IV. Country level, 1310-2018'!J178<0,'III. GDP shares, 1310-2018'!J180,\"\")","v":""},null,0.2942300987648469,{"v":0.30124387564671146,"d":"30.12%"},{"v":0.20250823357139602,"d":"20.25%"},{"v":0.16766369292360908,"d":"16.77%"},{"v":0.14727141335030935,"d":"14.73%"}]
[1485,{"$f":"IF('IV. Country level, 1310-2018'!C179<0,'III. GDP shares, 1310-2018'!C181,\"\")","v":""},{"$f":"IF('IV. Country level, 1310-2018'!D179<0,'III. GDP shares, 1310-2018'!D181,\"\")","v":""},{"$f":"IF('IV. Country level, 1310-2018'!E179<0,'III. GDP shares, 1310-2018'!E181,\"\")","v":""},{"$f":"IF('IV. Country level, 1310-2018'!F179<0,'III. GDP shares, 1310-2018'!F181,\"\")","v":""},{"$f":"IF('IV. Country level, 1310-2018'!G179<0,'III. GDP shares, 1310-2018'!G181,\"\")","v":""},{"$f":"IF('IV. Country level, 1310-2018'!H179<0,'III. GDP shares, 1310-2018'!H181,\"\")","v":""},{"$f":"IF('IV. Country level, 1310-2018'!I179<0,'III. GDP shares, 1310-2018'!I181,\"\")","v":""},{"$f":"IF('IV. Country level, 1310-2018'!J179<0,'III. GDP shares, 1310-2018'!J181,\"\")","v":""},null,0,{"v":0.26118915468707465,"d":"26.12%"},{"v":0.20250823357139602,"d":"20.25%"},{"v":0.19167559201091738,"d":"19.17%"},{"v":0.14727141335030935,"d":"14.73%"}]
[1486,{"$f":"IF('IV. Country level, 1310-2018'!C180<0,'III. GDP shares, 1310-2018'!C182,\"\")","v":""},{"$f":"IF('IV. Country level, 1310-2018'!D180<0,'III. GDP shares, 1310-2018'!D182,\"\")","v":""},{"$f":"IF('IV. Country level, 1310-2018'!E180<0,'III. GDP shares, 1310-2018'!E182,\"\")","v":0.01836513964949539},{"$f":"IF('IV. Country level, 1310-2018'!F180<0,'III. GDP shares, 1310-2018'!F182,\"\")","v":""},{"$f":"IF('IV. Country level, 1310-2018'!G180<0,'III. GDP shares, 1310-2018'!G182,\"\")","v":""},{"$f":"IF('IV. Country level, 1310-2018'!H180<0,'III. GDP shares, 1310-2018'!H182,\"\")","v":""},{"$f":"IF('IV. Country level, 1310-2018'!I180<0,'III. GDP shares, 1310-2018'!I182,\"\")","v":""},{"$f":"IF('IV. Country level, 1310-2018'!J180<0,'III. GDP shares, 1310-2018'!J182,\"\")","v":""},null,0.01836513964949539,{"v":0.16126667759796892,"d":"16.13%"},{"v":0.20250823357139602,"d":"20.25%"},{"v":0.19519579711842083,"d":"19.52%"},{"v":0.14727141335030935,"d":"14.73%"}]
[1487,{"$f":"IF('IV. Country level, 1310-2018'!C181<0,'III. GDP shares, 1310-2018'!C183,\"\")","v":0.2940943108773567},{"$f":"IF('IV. Country level, 1310-2018'!D181<0,'III. GDP shares, 1310-2018'!D183,\"\")","v":""},{"$f":"IF('IV. Country level, 1310-2018'!E181<0,'III. GDP shares, 1310-2018'!E183,\"\")","v":""},{"$f":"IF('IV. Country level, 1310-2018'!F181<0,'III. GDP shares, 1310-2018'!F183,\"\")","v":""},{"$f":"IF('IV. Country level, 1310-2018'!G181<0,'III. GDP shares, 1310-2018'!G183,\"\")","v":""},{"$f":"IF('IV. Country level, 1310-2018'!H181<0,'III. GDP shares, 1310-2018'!H183,\"\")","v":""},{"$f":"IF('IV. Country level, 1310-2018'!I181<0,'III. GDP shares, 1310-2018'!I183,\"\")","v":""},{"$f":"IF('IV. Country level, 1310-2018'!J181<0,'III. GDP shares, 1310-2018'!J183,\"\")","v":""},null,0.2940943108773567,{"v":0.1491573497881677,"d":"14.92%"},{"v":0.20250823357139602,"d":"20.25%"},{"v":0.2076858788106431,"d":"20.77%"},{"v":0.14727141335030935,"d":"14.73%"}]
[1488,{"$f":"IF('IV. Country level, 1310-2018'!C182<0,'III. GDP shares, 1310-2018'!C184,\"\")","v":""},{"$f":"IF('IV. Country level, 1310-2018'!D182<0,'III. GDP shares, 1310-2018'!D184,\"\")","v":""},{"$f":"IF('IV. Country level, 1310-2018'!E182<0,'III. GDP shares, 1310-2018'!E184,\"\")","v":0.018359490148282986},{"$f":"IF('IV. Country level, 1310-2018'!F182<0,'III. GDP shares, 1310-2018'!F184,\"\")","v":""},{"$f":"IF('IV. Country level, 1310-2018'!G182<0,'III. GDP shares, 1310-2018'!G184,\"\")","v":""},{"$f":"IF('IV. Country level, 1310-2018'!H182<0,'III. GDP shares, 1310-2018'!H184,\"\")","v":""},{"$f":"IF('IV. Country level, 1310-2018'!I182<0,'III. GDP shares, 1310-2018'!I184,\"\")","v":""},{"$f":"IF('IV. Country level, 1310-2018'!J182<0,'III. GDP shares, 1310-2018'!J184,\"\")","v":""},null,0.018359490148282986,{"v":0.13704989062356696,"d":"13.70%"},{"v":0.20250823357139602,"d":"20.25%"},{"v":0.216793474007732,"d":"21.68%"},{"v":0.14727141335030935,"d":"14.73%"}]
[1489,{"$f":"IF('IV. Country level, 1310-2018'!C183<0,'III. GDP shares, 1310-2018'!C185,\"\")","v":""},{"$f":"IF('IV. Country level, 1310-2018'!D183<0,'III. GDP shares, 1310-2018'!D185,\"\")","v":""},{"$f":"IF('IV. Country level, 1310-2018'!E183<0,'III. GDP shares, 1310-2018'!E185,\"\")","v":""},{"$f":"IF('IV. Country level, 1310-2018'!F183<0,'III. GDP shares, 1310-2018'!F185,\"\")","v":0.20954231448289398},{"$f":"IF('IV. Country level, 1310-2018'!G183<0,'III. GDP shares, 1310-2018'!G185,\"\")","v":""},{"$f":"IF('IV. Country level, 1310-2018'!H183<0,'III. GDP shares, 1310-2018'!H185,\"\")","v":""},{"$f":"IF('IV. Country level, 1310-2018'!I183<0,'III. GDP shares, 1310-2018'!I185,\"\")","v":""},{"$f":"IF('IV. Country level, 1310-2018'!J183<0,'III. GDP shares, 1310-2018'!J185,\"\")","v":""},null,0.20954231448289398,{"v":0.13704989062356696,"d":"13.70%"},{"v":0.20250823357139602,"d":"20.25%"},{"v":0.22571872440592577,"d":"22.57%"},{"v":0.14727141335030935,"d":"14.73%"}]
[1490,{"$f":"IF('IV. Country level, 1310-2018'!C184<0,'III. GDP shares, 1310-2018'!C186,\"\")","v":""},{"$f":"IF('IV. Country level, 1310-2018'!D184<0,'III. GDP shares, 1310-2018'!D186,\"\")","v":""},{"$f":"IF('IV. Country level, 1310-2018'!E184<0,'III. GDP shares, 1310-2018'!E186,\"\")","v":""},{"$f":"IF('IV. Country level, 1310-2018'!F184<0,'III. GDP shares, 1310-2018'!F186,\"\")","v":0.20951009459429773},{"$f":"IF('IV. Country level, 1310-2018'!G184<0,'III. GDP shares, 1310-2018'!G186,\"\")","v":""},{"$f":"IF('IV. Country level, 1310-2018'!H184<0,'III. GDP shares, 1310-2018'!H186,\"\")","v":""},{"$f":"IF('IV. Country level, 1310-2018'!I184<0,'III. GDP shares, 1310-2018'!I186,\"\")","v":""},{"$f":"IF('IV. Country level, 1310-2018'!J184<0,'III. GDP shares, 1310-2018'!J186,\"\")","v":""},null,0.20951009459429773,{"v":0.1344262992450676,"d":"13.44%"},{"v":0.20250823357139602,"d":"20.25%"},{"v":0.2124912360523301,"d":"21.25%"},{"v":0.14727141335030935,"d":"14.73%"}]
[1491,{"$f":"IF('IV. Country level, 1310-2018'!C185<0,'III. GDP shares, 1310-2018'!C187,\"\")","v":""},{"$f":"IF('IV. Country level, 1310-2018'!D185<0,'III. GDP shares, 1310-2018'!D187,\"\")","v":""},{"$f":"IF('IV. Country level, 1310-2018'!E185<0,'III. GDP shares, 1310-2018'!E187,\"\")","v":""},{"$f":"IF('IV. Country level, 1310-2018'!F185<0,'III. GDP shares, 1310-2018'!F187,\"\")","v":0.20947788461264194},{"$f":"IF('IV. Country level, 1310-2018'!G185<0,'III. GDP shares, 1310-2018'!G187,\"\")","v":""},{"$f":"IF('IV. Country level, 1310-2018'!H185<0,'III. GDP shares, 1310-2018'!H187,\"\")","v":""},{"$f":"IF('IV. Country level, 1310-2018'!I185<0,'III. GDP shares, 1310-2018'!I187,\"\")","v":""},{"$f":"IF('IV. Country level, 1310-2018'!J185<0,'III. GDP shares, 1310-2018'!J187,\"\")","v":""},null,0.20947788461264194,{"v":0.13438110617037388,"d":"13.44%"},{"v":0.20250823357139602,"d":"20.25%"},{"v":0.20814507213338354,"d":"20.81%"},{"v":0.14727141335030935,"d":"14.73%"}]
[1492,{"$f":"IF('IV. Country level, 1310-2018'!C186<0,'III. GDP shares, 1310-2018'!C188,\"\")","v":""},{"$f":"IF('IV. Country level, 1310-2018'!D186<0,'III. GDP shares, 1310-2018'!D188,\"\")","v":""},{"$f":"IF('IV. Country level, 1310-2018'!E186<0,'III. GDP shares, 1310-2018'!E188,\"\")","v":""},{"$f":"IF('IV. Country level, 1310-2018'!F186<0,'III. GDP shares, 1310-2018'!F188,\"\")","v":""},{"$f":"IF('IV. Country level, 1310-2018'!G186<0,'III. GDP shares, 1310-2018'!G188,\"\")","v":""},{"$f":"IF('IV. Country level, 1310-2018'!H186<0,'III. GDP shares, 1310-2018'!H188,\"\")","v":""},{"$f":"IF('IV. Country level, 1310-2018'!I186<0,'III. GDP shares, 1310-2018'!I188,\"\")","v":""},{"$f":"IF('IV. Country level, 1310-2018'!J186<0,'III. GDP shares, 1310-2018'!J188,\"\")","v":""},null,0,{"v":0.1737201535533819,"d":"17.37%"},{"v":0.20250823357139602,"d":"20.25%"},{"v":0.2170086736560556,"d":"21.70%"},{"v":0.14727141335030935,"d":"14.73%"}]
[1493,{"$f":"IF('IV. Country level, 1310-2018'!C187<0,'III. GDP shares, 1310-2018'!C189,\"\")","v":""},{"$f":"IF('IV. Country level, 1310-2018'!D187<0,'III. GDP shares, 1310-2018'!D189,\"\")","v":""},{"$f":"IF('IV. Country level, 1310-2018'!E187<0,'III. GDP shares, 1310-2018'!E189,\"\")","v":""},{"$f":"IF('IV. Country level, 1310-2018'!F187<0,'III. GDP shares, 1310-2018'!F189,\"\")","v":""},{"$f":"IF('IV. Country level, 1310-2018'!G187<0,'III. GDP shares, 1310-2018'!G189,\"\")","v":""},{"$f":"IF('IV. Country level, 1310-2018'!H187<0,'III. GDP shares, 1310-2018'!H189,\"\")","v":""},{"$f":"IF('IV. Country level, 1310-2018'!I187<0,'III. GDP shares, 1310-2018'!I189,\"\")","v":""},{"$f":"IF('IV. Country level, 1310-2018'!J187<0,'III. GDP shares, 1310-2018'!J189,\"\")","v":""},null,0,{"v":0.18574092265187717,"d":"18.57%"},{"v":0.20250823357139602,"d":"20.25%"},{"v":0.2170086736560556,"d":"21.70%"},{"v":0.14727141335030935,"d":"14.73%"}]
[1494,{"$f":"IF('IV. Country level, 1310-2018'!C188<0,'III. GDP shares, 1310-2018'!C190,\"\")","v":0.2937779593545004},{"$f":"IF('IV. Country level, 1310-2018'!D188<0,'III. GDP shares, 1310-2018'!D190,\"\")","v":""},{"$f":"IF('IV. Country level, 1310-2018'!E188<0,'III. GDP shares, 1310-2018'!E190,\"\")","v":""},{"$f":"IF('IV. Country level, 1310-2018'!F188<0,'III. GDP shares, 1310-2018'!F190,\"\")","v":""},{"$f":"IF('IV. Country level, 1310-2018'!G188<0,'III. GDP shares, 1310-2018'!G190,\"\")","v":""},{"$f":"IF('IV. Country level, 1310-2018'!H188<0,'III. GDP shares, 1310-2018'!H190,\"\")","v":""},{"$f":"IF('IV. Country level, 1310-2018'!I188<0,'III. GDP shares, 1310-2018'!I190,\"\")","v":""},{"$f":"IF('IV. Country level, 1310-2018'!J188<0,'III. GDP shares, 1310-2018'!J190,\"\")","v":""},null,0.2937779593545004,{"v":0.2406277812725424,"d":"24.06%"},{"v":0.20250823357139602,"d":"20.25%"},{"v":0.216451382580571,"d":"21.65%"},{"v":0.14727141335030935,"d":"14.73%"}]
[1495,{"$f":"IF('IV. Country level, 1310-2018'!C189<0,'III. GDP shares, 1310-2018'!C191,\"\")","v":0.29373282182933935},{"$f":"IF('IV. Country level, 1310-2018'!D189<0,'III. GDP shares, 1310-2018'!D191,\"\")","v":""},{"$f":"IF('IV. Country level, 1310-2018'!E189<0,'III. GDP shares, 1310-2018'!E191,\"\")","v":""},{"$f":"IF('IV. Country level, 1310-2018'!F189<0,'III. GDP shares, 1310-2018'!F191,\"\")","v":""},{"$f":"IF('IV. Country level, 1310-2018'!G189<0,'III. GDP shares, 1310-2018'!G191,\"\")","v":""},{"$f":"IF('IV. Country level, 1310-2018'!H189<0,'III. GDP shares, 1310-2018'!H191,\"\")","v":""},{"$f":"IF('IV. Country level, 1310-2018'!I189<0,'III. GDP shares, 1310-2018'!I191,\"\")","v":""},{"$f":"IF('IV. Country level, 1310-2018'!J189<0,'III. GDP shares, 1310-2018'!J191,\"\")","v":""},null,0.29373282182933935,{"v":0.2133211255706357,"d":"21.33%"},{"v":0.20250823357139602,"d":"20.25%"},{"v":0.227423900685583,"d":"22.74%"},{"v":0.14727141335030935,"d":"14.73%"}]
[1496,{"$f":"IF('IV. Country level, 1310-2018'!C190<0,'III. GDP shares, 1310-2018'!C192,\"\")","v":0.2936876981723609},{"$f":"IF('IV. Country level, 1310-2018'!D190<0,'III. GDP shares, 1310-2018'!D192,\"\")","v":""},{"$f":"IF('IV. Country level, 1310-2018'!E190<0,'III. GDP shares, 1310-2018'!E192,\"\")","v":""},{"$f":"IF('IV. Country level, 1310-2018'!F190<0,'III. GDP shares, 1310-2018'!F192,\"\")","v":""},{"$f":"IF('IV. Country level, 1310-2018'!G190<0,'III. GDP shares, 1310-2018'!G192,\"\")","v":""},{"$f":"IF('IV. Country level, 1310-2018'!H190<0,'III. GDP shares, 1310-2018'!H192,\"\")","v":""},{"$f":"IF('IV. Country level, 1310-2018'!I190<0,'III. GDP shares, 1310-2018'!I192,\"\")","v":""},{"$f":"IF('IV. Country level, 1310-2018'!J190<0,'III. GDP shares, 1310-2018'!J192,\"\")","v":""},null,0.2936876981723609,{"v":0.2133211255706357,"d":"21.33%"},{"v":0.20250823357139602,"d":"20.25%"},{"v":0.23620796574810976,"d":"23.62%"},{"v":0.14727141335030935,"d":"14.73%"}]
[1497,{"$f":"IF('IV. Country level, 1310-2018'!C191<0,'III. GDP shares, 1310-2018'!C193,\"\")","v":0.2936425883771747},{"$f":"IF('IV. Country level, 1310-2018'!D191<0,'III. GDP shares, 1310-2018'!D193,\"\")","v":0.07245657370245448},{"$f":"IF('IV. Country level, 1310-2018'!E191<0,'III. GDP shares, 1310-2018'!E193,\"\")","v":0.01833411034650988},{"$f":"IF('IV. Country level, 1310-2018'!F191<0,'III. GDP shares, 1310-2018'!F193,\"\")","v":0.209284832512815},{"$f":"IF('IV. Country level, 1310-2018'!G191<0,'III. GDP shares, 1310-2018'!G193,\"\")","v":""},{"$f":"IF('IV. Country level, 1310-2018'!H191<0,'III. GDP shares, 1310-2018'!H193,\"\")","v":""},{"$f":"IF('IV. Country level, 1310-2018'!I191<0,'III. GDP shares, 1310-2018'!I193,\"\")","v":""},{"$f":"IF('IV. Country level, 1310-2018'!J191<0,'III. GDP shares, 1310-2018'!J193,\"\")","v":""},null,0.5937181049389542,{"v":0.24642257548713556,"d":"24.64%"},{"v":0.20250823357139602,"d":"20.25%"},{"v":0.23620796574810976,"d":"23.62%"},{"v":0.14727141335030935,"d":"14.73%"}]
[1498,{"$f":"IF('IV. Country level, 1310-2018'!C192<0,'III. GDP shares, 1310-2018'!C194,\"\")","v":""},{"$f":"IF('IV. Country level, 1310-2018'!D192<0,'III. GDP shares, 1310-2018'!D194,\"\")","v":""},{"$f":"IF('IV. Country level, 1310-2018'!E192<0,'III. GDP shares, 1310-2018'!E194,\"\")","v":0.018331294699295064},{"$f":"IF('IV. Country level, 1310-2018'!F192<0,'III. GDP shares, 1310-2018'!F194,\"\")","v":""},{"$f":"IF('IV. Country level, 1310-2018'!G192<0,'III. GDP shares, 1310-2018'!G194,\"\")","v":""},{"$f":"IF('IV. Country level, 1310-2018'!H192<0,'III. GDP shares, 1310-2018'!H194,\"\")","v":""},{"$f":"IF('IV. Country level, 1310-2018'!I192<0,'III. GDP shares, 1310-2018'!I194,\"\")","v":""},{"$f":"IF('IV. Country level, 1310-2018'!J192<0,'III. GDP shares, 1310-2018'!J194,\"\")","v":""},null,0.018331294699295064,{"v":0.3202841258558711,"d":"32.03%"},{"v":0.20250823357139602,"d":"20.25%"},{"v":0.23656785809532926,"d":"23.66%"},{"v":0.14727141335030935,"d":"14.73%"}]
[1499,{"$f":"IF('IV. Country level, 1310-2018'!C193<0,'III. GDP shares, 1310-2018'!C195,\"\")","v":""},{"$f":"IF('IV. Country level, 1310-2018'!D193<0,'III. GDP shares, 1310-2018'!D195,\"\")","v":""},{"$f":"IF('IV. Country level, 1310-2018'!E193<0,'III. GDP shares, 1310-2018'!E195,\"\")","v":""},{"$f":"IF('IV. Country level, 1310-2018'!F193<0,'III. GDP shares, 1310-2018'!F195,\"\")","v":""},{"$f":"IF('IV. Country level, 1310-2018'!G193<0,'III. GDP shares, 1310-2018'!G195,\"\")","v":""},{"$f":"IF('IV. Country level, 1310-2018'!H193<0,'III. GDP shares, 1310-2018'!H195,\"\")","v":""},{"$f":"IF('IV. Country level, 1310-2018'!I193<0,'III. GDP shares, 1310-2018'!I195,\"\")","v":""},{"$f":"IF('IV. Country level, 1310-2018'!J193<0,'III. GDP shares, 1310-2018'!J195,\"\")","v":""},null,0,{"v":0.29491754681562465,"d":"29.49%"},{"v":0.20250823357139602,"d":"20.25%"},{"v":0.20902241403149188,"d":"20.90%"},{"v":0.14727141335030935,"d":"14.73%"}]
[1500,{"$f":"IF('IV. Country level, 1310-2018'!C194<0,'III. GDP shares, 1310-2018'!C196,\"\")","v":""},{"$f":"IF('IV. Country level, 1310-2018'!D194<0,'III. GDP shares, 1310-2018'!D196,\"\")","v":""},{"$f":"IF('IV. Country level, 1310-2018'!E194<0,'III. GDP shares, 1310-2018'!E196,\"\")","v":0.018657583030115353},{"$f":"IF('IV. Country level, 1310-2018'!F194<0,'III. GDP shares, 1310-2018'!F196,\"\")","v":0.2130525663853836},{"$f":"IF('IV. Country level, 1310-2018'!G194<0,'III. GDP shares, 1310-2018'!G196,\"\")","v":""},{"$f":"IF('IV. Country level, 1310-2018'!H194<0,'III. GDP shares, 1310-2018'!H196,\"\")","v":""},{"$f":"IF('IV. Country level, 1310-2018'!I194<0,'III. GDP shares, 1310-2018'!I196,\"\")","v":""},{"$f":"IF('IV. Country level, 1310-2018'!J194<0,'III. GDP shares, 1310-2018'!J196,\"\")","v":""},null,0.23171014941549897,{"v":0.3118439750543352,"d":"31.18%"},{"v":0.20250823357139602,"d":"20.25%"},{"v":0.21530982133582313,"d":"21.53%"},{"$f":"AVERAGE(L$196:L$295)","v":{"v":0.24072986554212542,"d":"24.07%"}}]
[1501,{"$f":"IF('IV. Country level, 1310-2018'!C195<0,'III. GDP shares, 1310-2018'!C197,\"\")","v":0.29733837140563546},{"$f":"IF('IV. Country level, 1310-2018'!D195<0,'III. GDP shares, 1310-2018'!D197,\"\")","v":""},{"$f":"IF('IV. Country level, 1310-2018'!E195<0,'III. GDP shares, 1310-2018'!E197,\"\")","v":0.018913058327996172},{"$f":"IF('IV. Country level, 1310-2018'!F195<0,'III. GDP shares, 1310-2018'!F197,\"\")","v":0.2131439450941197},{"$f":"IF('IV. Country level, 1310-2018'!G195<0,'III. GDP shares, 1310-2018'!G197,\"\")","v":0.2814134371078985},{"$f":"IF('IV. Country level, 1310-2018'!H195<0,'III. GDP shares, 1310-2018'!H197,\"\")","v":""},{"$f":"IF('IV. Country level, 1310-2018'!I195<0,'III. GDP shares, 1310-2018'!I197,\"\")","v":""},{"$f":"IF('IV. Country level, 1310-2018'!J195<0,'III. GDP shares, 1310-2018'!J197,\"\")","v":""},null,0.8108088119356498,{"v":0.2699629088493321,"d":"27.00%"},{"v":0.20250823357139602,"d":"20.25%"},{"v":0.20639375773688834,"d":"20.64%"},{"$f":"AVERAGE(L$196:L$295)","v":{"v":0.24072986554212542,"d":"24.07%"}}]
[1502,{"$f":"IF('IV. Country level, 1310-2018'!C196<0,'III. GDP shares, 1310-2018'!C198,\"\")","v":""},{"$f":"IF('IV. Country level, 1310-2018'!D196<0,'III. GDP shares, 1310-2018'!D198,\"\")","v":""},{"$f":"IF('IV. Country level, 1310-2018'!E196<0,'III. GDP shares, 1310-2018'!E198,\"\")","v":""},{"$f":"IF('IV. Country level, 1310-2018'!F196<0,'III. GDP shares, 1310-2018'!F198,\"\")","v":""},{"$f":"IF('IV. Country level, 1310-2018'!G196<0,'III. GDP shares, 1310-2018'!G198,\"\")","v":""},{"$f":"IF('IV. Country level, 1310-2018'!H196<0,'III. GDP shares, 1310-2018'!H198,\"\")","v":""},{"$f":"IF('IV. Country level, 1310-2018'!I196<0,'III. GDP shares, 1310-2018'!I198,\"\")","v":0.11616676854761385},{"$f":"IF('IV. Country level, 1310-2018'!J196<0,'III. GDP shares, 1310-2018'!J198,\"\")","v":""},null,0.11616676854761385,{"v":0.3094203329123464,"d":"30.94%"},{"v":0.20250823357139602,"d":"20.25%"},{"v":0.20639375773688834,"d":"20.64%"},{"v":0.24072986554212542,"d":"24.07%"}]
[1503,{"$f":"IF('IV. Country level, 1310-2018'!C197<0,'III. GDP shares, 1310-2018'!C199,\"\")","v":0.2959222755786683},{"$f":"IF('IV. Country level, 1310-2018'!D197<0,'III. GDP shares, 1310-2018'!D199,\"\")","v":""},{"$f":"IF('IV. Country level, 1310-2018'!E197<0,'III. GDP shares, 1310-2018'!E199,\"\")","v":""},{"$f":"IF('IV. Country level, 1310-2018'!F197<0,'III. GDP shares, 1310-2018'!F199,\"\")","v":""},{"$f":"IF('IV. Country level, 1310-2018'!G197<0,'III. GDP shares, 1310-2018'!G199,\"\")","v":""},{"$f":"IF('IV. Country level, 1310-2018'!H197<0,'III. GDP shares, 1310-2018'!H199,\"\")","v":""},{"$f":"IF('IV. Country level, 1310-2018'!I197<0,'III. GDP shares, 1310-2018'!I199,\"\")","v":0.11625042026466632},{"$f":"IF('IV. Country level, 1310-2018'!J197<0,'III. GDP shares, 1310-2018'!J199,\"\")","v":""},null,{"$f":"SUM(B199:I199)","v":0.4121726958433346},{"v":0.3094203329123464,"d":"30.94%"},{"v":0.20250823357139602,"d":"20.25%"},{"v":0.20583723835357032,"d":"20.58%"},{"v":0.24072986554212542,"d":"24.07%"}]
[1504,{"$f":"IF('IV. Country level, 1310-2018'!C198<0,'III. GDP shares, 1310-2018'!C200,\"\")","v":""},{"$f":"IF('IV. Country level, 1310-2018'!D198<0,'III. GDP shares, 1310-2018'!D200,\"\")","v":""},{"$f":"IF('IV. Country level, 1310-2018'!E198<0,'III. GDP shares, 1310-2018'!E200,\"\")","v":0.01966475560284564},{"$f":"IF('IV. Country level, 1310-2018'!F198<0,'III. GDP shares, 1310-2018'!F200,\"\")","v":""},{"$f":"IF('IV. Country level, 1310-2018'!G198<0,'III. GDP shares, 1310-2018'!G200,\"\")","v":0.28088588590108693},{"$f":"IF('IV. Country level, 1310-2018'!H198<0,'III. GDP shares, 1310-2018'!H200,\"\")","v":""},{"$f":"IF('IV. Country level, 1310-2018'!I198<0,'III. GDP shares, 1310-2018'!I200,\"\")","v":""},{"$f":"IF('IV. Country level, 1310-2018'!J198<0,'III. GDP shares, 1310-2018'!J200,\"\")","v":""},null,0.30055064150393257,{"v":0.3182003922072337,"d":"31.82%"},{"v":0.20250823357139602,"d":"20.25%"},{"v":0.20626588806729193,"d":"20.63%"},{"v":0.24072986554212542,"d":"24.07%"}]
[1505,{"$f":"IF('IV. Country level, 1310-2018'!C199<0,'III. GDP shares, 1310-2018'!C201,\"\")","v":0.29453326314039513},{"$f":"IF('IV. Country level, 1310-2018'!D199<0,'III. GDP shares, 1310-2018'!D201,\"\")","v":""},{"$f":"IF('IV. Country level, 1310-2018'!E199<0,'III. GDP shares, 1310-2018'!E201,\"\")","v":""},{"$f":"IF('IV. Country level, 1310-2018'!F199<0,'III. GDP shares, 1310-2018'!F201,\"\")","v":""},{"$f":"IF('IV. Country level, 1310-2018'!G199<0,'III. GDP shares, 1310-2018'!G201,\"\")","v":""},{"$f":"IF('IV. Country level, 1310-2018'!H199<0,'III. GDP shares, 1310-2018'!H201,\"\")","v":""},{"$f":"IF('IV. Country level, 1310-2018'!I199<0,'III. GDP shares, 1310-2018'!I201,\"\")","v":""},{"$f":"IF('IV. Country level, 1310-2018'!J199<0,'III. GDP shares, 1310-2018'!J201,\"\")","v":""},null,0.29453326314039513,{"v":0.2441561119661662,"d":"24.42%"},{"$f":"AVERAGE(L$9:L$714)","v":{"v":0.20250823357139602,"d":"20.25%"}},{"v":0.2184167233844861,"d":"21.84%"},{"v":0.24072986554212542,"d":"24.07%"}]
[1506,{"$f":"IF('IV. Country level, 1310-2018'!C200<0,'III. GDP shares, 1310-2018'!C202,\"\")","v":""},{"$f":"IF('IV. Country level, 1310-2018'!D200<0,'III. GDP shares, 1310-2018'!D202,\"\")","v":""},{"$f":"IF('IV. Country level, 1310-2018'!E200<0,'III. GDP shares, 1310-2018'!E202,\"\")","v":""},{"$f":"IF('IV. Country level, 1310-2018'!F200<0,'III. GDP shares, 1310-2018'!F202,\"\")","v":""},{"$f":"IF('IV. Country level, 1310-2018'!G200<0,'III. GDP shares, 1310-2018'!G202,\"\")","v":""},{"$f":"IF('IV. Country level, 1310-2018'!H200<0,'III. GDP shares, 1310-2018'!H202,\"\")","v":""},{"$f":"IF('IV. Country level, 1310-2018'!I200<0,'III. GDP shares, 1310-2018'!I202,\"\")","v":""},{"$f":"IF('IV. Country level, 1310-2018'!J200<0,'III. GDP shares, 1310-2018'!J202,\"\")","v":""},null,0,{"$f":"AVERAGE(K199:K205)","v":{"v":0.2275608593165071,"d":"22.76%"}},{"v":0.20250823357139602,"d":"20.25%"},{"v":0.22423113347849263,"d":"22.42%"},{"v":0.24072986554212542,"d":"24.07%"}]
[1507,{"$f":"IF('IV. Country level, 1310-2018'!C201<0,'III. GDP shares, 1310-2018'!C203,\"\")","v":0.29317056447970974},{"$f":"IF('IV. Country level, 1310-2018'!D201<0,'III. GDP shares, 1310-2018'!D203,\"\")","v":""},{"$f":"IF('IV. Country level, 1310-2018'!E201<0,'III. GDP shares, 1310-2018'!E203,\"\")","v":""},{"$f":"IF('IV. Country level, 1310-2018'!F201<0,'III. GDP shares, 1310-2018'!F203,\"\")","v":""},{"$f":"IF('IV. Country level, 1310-2018'!G201<0,'III. GDP shares, 1310-2018'!G203,\"\")","v":""},{"$f":"IF('IV. Country level, 1310-2018'!H201<0,'III. GDP shares, 1310-2018'!H203,\"\")","v":""},{"$f":"IF('IV. Country level, 1310-2018'!I201<0,'III. GDP shares, 1310-2018'!I203,\"\")","v":""},{"$f":"IF('IV. Country level, 1310-2018'!J201<0,'III. GDP shares, 1310-2018'!J203,\"\")","v":""},null,0.29317056447970974,{"v":0.16867904562460215,"d":"16.87%"},{"v":0.20250823357139602,"d":"20.25%"},{"v":0.2264621264496813,"d":"22.65%"},{"v":0.24072986554212542,"d":"24.07%"}]
[1508,{"$f":"IF('IV. Country level, 1310-2018'!C202<0,'III. GDP shares, 1310-2018'!C204,\"\")","v":0.2924988502481776},{"$f":"IF('IV. Country level, 1310-2018'!D202<0,'III. GDP shares, 1310-2018'!D204,\"\")","v":""},{"$f":"IF('IV. Country level, 1310-2018'!E202<0,'III. GDP shares, 1310-2018'!E204,\"\")","v":""},{"$f":"IF('IV. Country level, 1310-2018'!F202<0,'III. GDP shares, 1310-2018'!F204,\"\")","v":""},{"$f":"IF('IV. Country level, 1310-2018'!G202<0,'III. GDP shares, 1310-2018'!G204,\"\")","v":""},{"$f":"IF('IV. Country level, 1310-2018'!H202<0,'III. GDP shares, 1310-2018'!H204,\"\")","v":""},{"$f":"IF('IV. Country level, 1310-2018'!I202<0,'III. GDP shares, 1310-2018'!I204,\"\")","v":""},{"$f":"IF('IV. Country level, 1310-2018'!J202<0,'III. GDP shares, 1310-2018'!J204,\"\")","v":""},null,0.2924988502481776,{"v":0.19781926614552298,"d":"19.78%"},{"v":0.20250823357139602,"d":"20.25%"},{"v":0.22853017348146498,"d":"22.85%"},{"v":0.24072986554212542,"d":"24.07%"}]
[1509,{"$f":"IF('IV. Country level, 1310-2018'!C203<0,'III. GDP shares, 1310-2018'!C205,\"\")","v":""},{"$f":"IF('IV. Country level, 1310-2018'!D203<0,'III. GDP shares, 1310-2018'!D205,\"\")","v":""},{"$f":"IF('IV. Country level, 1310-2018'!E203<0,'III. GDP shares, 1310-2018'!E205,\"\")","v":""},{"$f":"IF('IV. Country level, 1310-2018'!F203<0,'III. GDP shares, 1310-2018'!F205,\"\")","v":""},{"$f":"IF('IV. Country level, 1310-2018'!G203<0,'III. GDP shares, 1310-2018'!G205,\"\")","v":""},{"$f":"IF('IV. Country level, 1310-2018'!H203<0,'III. GDP shares, 1310-2018'!H205,\"\")","v":""},{"$f":"IF('IV. Country level, 1310-2018'!I203<0,'III. GDP shares, 1310-2018'!I205,\"\")","v":""},{"$f":"IF('IV. Country level, 1310-2018'!J203<0,'III. GDP shares, 1310-2018'!J205,\"\")","v":""},null,0,{"v":0.19715367813452125,"d":"19.72%"},{"v":0.20250823357139602,"d":"20.25%"},{"v":0.22853017348146498,"d":"22.85%"},{"v":0.24072986554212542,"d":"24.07%"}]
[1510,{"$f":"IF('IV. Country level, 1310-2018'!C204<0,'III. GDP shares, 1310-2018'!C206,\"\")","v":""},{"$f":"IF('IV. Country level, 1310-2018'!D204<0,'III. GDP shares, 1310-2018'!D206,\"\")","v":""},{"$f":"IF('IV. Country level, 1310-2018'!E204<0,'III. GDP shares, 1310-2018'!E206,\"\")","v":""},{"$f":"IF('IV. Country level, 1310-2018'!F204<0,'III. GDP shares, 1310-2018'!F206,\"\")","v":""},{"$f":"IF('IV. Country level, 1310-2018'!G204<0,'III. GDP shares, 1310-2018'!G206,\"\")","v":""},{"$f":"IF('IV. Country level, 1310-2018'!H204<0,'III. GDP shares, 1310-2018'!H206,\"\")","v":""},{"$f":"IF('IV. Country level, 1310-2018'!I204<0,'III. GDP shares, 1310-2018'!I206,\"\")","v":""},{"$f":"IF('IV. Country level, 1310-2018'!J204<0,'III. GDP shares, 1310-2018'!J206,\"\")","v":""},null,0,{"v":0.19715367813452125,"d":"19.72%"},{"v":0.20250823357139602,"d":"20.25%"},{"v":0.2370576331835716,"d":"23.71%"},{"v":0.24072986554212542,"d":"24.07%"}]
[1511,{"$f":"IF('IV. Country level, 1310-2018'!C205<0,'III. GDP shares, 1310-2018'!C207,\"\")","v":0.2905211731329499},{"$f":"IF('IV. Country level, 1310-2018'!D205<0,'III. GDP shares, 1310-2018'!D207,\"\")","v":""},{"$f":"IF('IV. Country level, 1310-2018'!E205<0,'III. GDP shares, 1310-2018'!E207,\"\")","v":""},{"$f":"IF('IV. Country level, 1310-2018'!F205<0,'III. GDP shares, 1310-2018'!F207,\"\")","v":0.21401101201742842},{"$f":"IF('IV. Country level, 1310-2018'!G205<0,'III. GDP shares, 1310-2018'!G207,\"\")","v":""},{"$f":"IF('IV. Country level, 1310-2018'!H205<0,'III. GDP shares, 1310-2018'!H207,\"\")","v":""},{"$f":"IF('IV. Country level, 1310-2018'!I205<0,'III. GDP shares, 1310-2018'!I207,\"\")","v":""},{"$f":"IF('IV. Country level, 1310-2018'!J205<0,'III. GDP shares, 1310-2018'!J207,\"\")","v":""},null,0.5045321851503783,{"v":0.19964630954084608,"d":"19.96%"},{"v":0.20250823357139602,"d":"20.25%"},{"v":0.23741648572706803,"d":"23.74%"},{"v":0.24072986554212542,"d":"24.07%"}]
[1512,{"$f":"IF('IV. Country level, 1310-2018'!C206<0,'III. GDP shares, 1310-2018'!C208,\"\")","v":0.2898741470633829},{"$f":"IF('IV. Country level, 1310-2018'!D206<0,'III. GDP shares, 1310-2018'!D208,\"\")","v":""},{"$f":"IF('IV. Country level, 1310-2018'!E206<0,'III. GDP shares, 1310-2018'!E208,\"\")","v":""},{"$f":"IF('IV. Country level, 1310-2018'!F206<0,'III. GDP shares, 1310-2018'!F208,\"\")","v":""},{"$f":"IF('IV. Country level, 1310-2018'!G206<0,'III. GDP shares, 1310-2018'!G208,\"\")","v":""},{"$f":"IF('IV. Country level, 1310-2018'!H206<0,'III. GDP shares, 1310-2018'!H208,\"\")","v":""},{"$f":"IF('IV. Country level, 1310-2018'!I206<0,'III. GDP shares, 1310-2018'!I208,\"\")","v":""},{"$f":"IF('IV. Country level, 1310-2018'!J206<0,'III. GDP shares, 1310-2018'!J208,\"\")","v":""},null,0.2898741470633829,{"v":0.1578607595053922,"d":"15.79%"},{"v":0.20250823357139602,"d":"20.25%"},{"v":0.23955923857507908,"d":"23.96%"},{"v":0.24072986554212542,"d":"24.07%"}]
[1513,{"$f":"IF('IV. Country level, 1310-2018'!C207<0,'III. GDP shares, 1310-2018'!C209,\"\")","v":""},{"$f":"IF('IV. Country level, 1310-2018'!D207<0,'III. GDP shares, 1310-2018'!D209,\"\")","v":""},{"$f":"IF('IV. Country level, 1310-2018'!E207<0,'III. GDP shares, 1310-2018'!E209,\"\")","v":""},{"$f":"IF('IV. Country level, 1310-2018'!F207<0,'III. GDP shares, 1310-2018'!F209,\"\")","v":""},{"$f":"IF('IV. Country level, 1310-2018'!G207<0,'III. GDP shares, 1310-2018'!G209,\"\")","v":""},{"$f":"IF('IV. Country level, 1310-2018'!H207<0,'III. GDP shares, 1310-2018'!H209,\"\")","v":""},{"$f":"IF('IV. Country level, 1310-2018'!I207<0,'III. GDP shares, 1310-2018'!I209,\"\")","v":""},{"$f":"IF('IV. Country level, 1310-2018'!J207<0,'III. GDP shares, 1310-2018'!J209,\"\")","v":""},null,0,{"v":0.22954073526336907,"d":"22.95%"},{"v":0.20250823357139602,"d":"20.25%"},{"v":0.24916189581194684,"d":"24.92%"},{"v":0.24072986554212542,"d":"24.07%"}]
[1514,{"$f":"IF('IV. Country level, 1310-2018'!C208<0,'III. GDP shares, 1310-2018'!C210,\"\")","v":0.28859789105999556},{"$f":"IF('IV. Country level, 1310-2018'!D208<0,'III. GDP shares, 1310-2018'!D210,\"\")","v":""},{"$f":"IF('IV. Country level, 1310-2018'!E208<0,'III. GDP shares, 1310-2018'!E210,\"\")","v":0.02202109326398844},{"$f":"IF('IV. Country level, 1310-2018'!F208<0,'III. GDP shares, 1310-2018'!F210,\"\")","v":""},{"$f":"IF('IV. Country level, 1310-2018'!G208<0,'III. GDP shares, 1310-2018'!G210,\"\")","v":""},{"$f":"IF('IV. Country level, 1310-2018'!H208<0,'III. GDP shares, 1310-2018'!H210,\"\")","v":""},{"$f":"IF('IV. Country level, 1310-2018'!I208<0,'III. GDP shares, 1310-2018'!I210,\"\")","v":""},{"$f":"IF('IV. Country level, 1310-2018'!J208<0,'III. GDP shares, 1310-2018'!J210,\"\")","v":""},null,0.310618984323984,{"v":0.22954073526336907,"d":"22.95%"},{"v":0.20250823357139602,"d":"20.25%"},{"v":0.23963021813224286,"d":"23.96%"},{"v":0.24072986554212542,"d":"24.07%"}]
[1515,{"$f":"IF('IV. Country level, 1310-2018'!C209<0,'III. GDP shares, 1310-2018'!C211,\"\")","v":""},{"$f":"IF('IV. Country level, 1310-2018'!D209<0,'III. GDP shares, 1310-2018'!D211,\"\")","v":""},{"$f":"IF('IV. Country level, 1310-2018'!E209<0,'III. GDP shares, 1310-2018'!E211,\"\")","v":""},{"$f":"IF('IV. Country level, 1310-2018'!F209<0,'III. GDP shares, 1310-2018'!F211,\"\")","v":""},{"$f":"IF('IV. Country level, 1310-2018'!G209<0,'III. GDP shares, 1310-2018'!G211,\"\")","v":""},{"$f":"IF('IV. Country level, 1310-2018'!H209<0,'III. GDP shares, 1310-2018'!H211,\"\")","v":""},{"$f":"IF('IV. Country level, 1310-2018'!I209<0,'III. GDP shares, 1310-2018'!I211,\"\")","v":""},{"$f":"IF('IV. Country level, 1310-2018'!J209<0,'III. GDP shares, 1310-2018'!J211,\"\")","v":""},null,0,{"v":0.157464708813315,"d":"15.75%"},{"v":0.20250823357139602,"d":"20.25%"},{"v":0.24746089621049713,"d":"24.75%"},{"v":0.24072986554212542,"d":"24.07%"}]
[1516,{"$f":"IF('IV. Country level, 1310-2018'!C210<0,'III. GDP shares, 1310-2018'!C212,\"\")","v":0.2873448243184907},{"$f":"IF('IV. Country level, 1310-2018'!D210<0,'III. GDP shares, 1310-2018'!D212,\"\")","v":""},{"$f":"IF('IV. Country level, 1310-2018'!E210<0,'III. GDP shares, 1310-2018'!E212,\"\")","v":""},{"$f":"IF('IV. Country level, 1310-2018'!F210<0,'III. GDP shares, 1310-2018'!F212,\"\")","v":0.2144150059873476},{"$f":"IF('IV. Country level, 1310-2018'!G210<0,'III. GDP shares, 1310-2018'!G212,\"\")","v":""},{"$f":"IF('IV. Country level, 1310-2018'!H210<0,'III. GDP shares, 1310-2018'!H212,\"\")","v":""},{"$f":"IF('IV. Country level, 1310-2018'!I210<0,'III. GDP shares, 1310-2018'!I212,\"\")","v":""},{"$f":"IF('IV. Country level, 1310-2018'!J210<0,'III. GDP shares, 1310-2018'!J212,\"\")","v":""},null,0.5017598303058383,{"v":0.1160541163756889,"d":"11.61%"},{"v":0.20250823357139602,"d":"20.25%"},{"v":0.24746089621049713,"d":"24.75%"},{"v":0.24072986554212542,"d":"24.07%"}]
[1517,{"$f":"IF('IV. Country level, 1310-2018'!C211<0,'III. GDP shares, 1310-2018'!C213,\"\")","v":""},{"$f":"IF('IV. Country level, 1310-2018'!D211<0,'III. GDP shares, 1310-2018'!D213,\"\")","v":""},{"$f":"IF('IV. Country level, 1310-2018'!E211<0,'III. GDP shares, 1310-2018'!E213,\"\")","v":""},{"$f":"IF('IV. Country level, 1310-2018'!F211<0,'III. GDP shares, 1310-2018'!F213,\"\")","v":""},{"$f":"IF('IV. Country level, 1310-2018'!G211<0,'III. GDP shares, 1310-2018'!G213,\"\")","v":""},{"$f":"IF('IV. Country level, 1310-2018'!H211<0,'III. GDP shares, 1310-2018'!H213,\"\")","v":""},{"$f":"IF('IV. Country level, 1310-2018'!I211<0,'III. GDP shares, 1310-2018'!I213,\"\")","v":""},{"$f":"IF('IV. Country level, 1310-2018'!J211<0,'III. GDP shares, 1310-2018'!J213,\"\")","v":""},null,0,{"v":0.16008836657999886,"d":"16.01%"},{"v":0.20250823357139602,"d":"20.25%"},{"v":0.2404393765312396,"d":"24.04%"},{"v":0.24072986554212542,"d":"24.07%"}]
[1518,{"$f":"IF('IV. Country level, 1310-2018'!C212<0,'III. GDP shares, 1310-2018'!C214,\"\")","v":""},{"$f":"IF('IV. Country level, 1310-2018'!D212<0,'III. GDP shares, 1310-2018'!D214,\"\")","v":""},{"$f":"IF('IV. Country level, 1310-2018'!E212<0,'III. GDP shares, 1310-2018'!E214,\"\")","v":""},{"$f":"IF('IV. Country level, 1310-2018'!F212<0,'III. GDP shares, 1310-2018'!F214,\"\")","v":""},{"$f":"IF('IV. Country level, 1310-2018'!G212<0,'III. GDP shares, 1310-2018'!G214,\"\")","v":""},{"$f":"IF('IV. Country level, 1310-2018'!H212<0,'III. GDP shares, 1310-2018'!H214,\"\")","v":""},{"$f":"IF('IV. Country level, 1310-2018'!I212<0,'III. GDP shares, 1310-2018'!I214,\"\")","v":""},{"$f":"IF('IV. Country level, 1310-2018'!J212<0,'III. GDP shares, 1310-2018'!J214,\"\")","v":""},null,0,{"v":0.17561951962167122,"d":"17.56%"},{"v":0.20250823357139602,"d":"20.25%"},{"v":0.2158694125331896,"d":"21.59%"},{"v":0.24072986554212542,"d":"24.07%"}]
[1519,{"$f":"IF('IV. Country level, 1310-2018'!C213<0,'III. GDP shares, 1310-2018'!C215,\"\")","v":""},{"$f":"IF('IV. Country level, 1310-2018'!D213<0,'III. GDP shares, 1310-2018'!D215,\"\")","v":""},{"$f":"IF('IV. Country level, 1310-2018'!E213<0,'III. GDP shares, 1310-2018'!E215,\"\")","v":""},{"$f":"IF('IV. Country level, 1310-2018'!F213<0,'III. GDP shares, 1310-2018'!F215,\"\")","v":""},{"$f":"IF('IV. Country level, 1310-2018'!G213<0,'III. GDP shares, 1310-2018'!G215,\"\")","v":""},{"$f":"IF('IV. Country level, 1310-2018'!H213<0,'III. GDP shares, 1310-2018'!H215,\"\")","v":""},{"$f":"IF('IV. Country level, 1310-2018'!I213<0,'III. GDP shares, 1310-2018'!I215,\"\")","v":""},{"$f":"IF('IV. Country level, 1310-2018'!J213<0,'III. GDP shares, 1310-2018'!J215,\"\")","v":""},null,0,{"v":0.2329649264195444,"d":"23.30%"},{"v":0.20250823357139602,"d":"20.25%"},{"$f":"AVERAGE(K199:K231)","v":{"v":0.21577194713812486,"d":"21.58%"}},{"v":0.24072986554212542,"d":"24.07%"}]
[1520,{"$f":"IF('IV. Country level, 1310-2018'!C214<0,'III. GDP shares, 1310-2018'!C216,\"\")","v":0.28490577567606973},{"$f":"IF('IV. Country level, 1310-2018'!D214<0,'III. GDP shares, 1310-2018'!D216,\"\")","v":""},{"$f":"IF('IV. Country level, 1310-2018'!E214<0,'III. GDP shares, 1310-2018'!E216,\"\")","v":0.02333397575410014},{"$f":"IF('IV. Country level, 1310-2018'!F214<0,'III. GDP shares, 1310-2018'!F216,\"\")","v":""},{"$f":"IF('IV. Country level, 1310-2018'!G214<0,'III. GDP shares, 1310-2018'!G216,\"\")","v":""},{"$f":"IF('IV. Country level, 1310-2018'!H214<0,'III. GDP shares, 1310-2018'!H216,\"\")","v":""},{"$f":"IF('IV. Country level, 1310-2018'!I214<0,'III. GDP shares, 1310-2018'!I216,\"\")","v":""},{"$f":"IF('IV. Country level, 1310-2018'!J214<0,'III. GDP shares, 1310-2018'!J216,\"\")","v":""},null,0.30823975143016985,{"v":0.201732502467785,"d":"20.17%"},{"v":0.20250823357139602,"d":"20.25%"},{"v":0.220010377934818,"d":"22.00%"},{"v":0.24072986554212542,"d":"24.07%"}]
[1521,{"$f":"IF('IV. Country level, 1310-2018'!C215<0,'III. GDP shares, 1310-2018'!C217,\"\")","v":""},{"$f":"IF('IV. Country level, 1310-2018'!D215<0,'III. GDP shares, 1310-2018'!D217,\"\")","v":""},{"$f":"IF('IV. Country level, 1310-2018'!E215<0,'III. GDP shares, 1310-2018'!E217,\"\")","v":0.023545986379085962},{"$f":"IF('IV. Country level, 1310-2018'!F215<0,'III. GDP shares, 1310-2018'!F217,\"\")","v":""},{"$f":"IF('IV. Country level, 1310-2018'!G215<0,'III. GDP shares, 1310-2018'!G217,\"\")","v":0.2781619862031266},{"$f":"IF('IV. Country level, 1310-2018'!H215<0,'III. GDP shares, 1310-2018'!H217,\"\")","v":""},{"$f":"IF('IV. Country level, 1310-2018'!I215<0,'III. GDP shares, 1310-2018'!I217,\"\")","v":0.11762908303347767},{"$f":"IF('IV. Country level, 1310-2018'!J215<0,'III. GDP shares, 1310-2018'!J217,\"\")","v":""},null,0.41933705561569024,{"v":0.24140727913371404,"d":"24.14%"},{"v":0.20250823357139602,"d":"20.25%"},{"v":0.2109027827377291,"d":"21.09%"},{"v":0.24072986554212542,"d":"24.07%"}]
[1522,{"$f":"IF('IV. Country level, 1310-2018'!C216<0,'III. GDP shares, 1310-2018'!C218,\"\")","v":0.2837186071995648},{"$f":"IF('IV. Country level, 1310-2018'!D216<0,'III. GDP shares, 1310-2018'!D218,\"\")","v":""},{"$f":"IF('IV. Country level, 1310-2018'!E216<0,'III. GDP shares, 1310-2018'!E218,\"\")","v":""},{"$f":"IF('IV. Country level, 1310-2018'!F216<0,'III. GDP shares, 1310-2018'!F218,\"\")","v":""},{"$f":"IF('IV. Country level, 1310-2018'!G216<0,'III. GDP shares, 1310-2018'!G218,\"\")","v":""},{"$f":"IF('IV. Country level, 1310-2018'!H216<0,'III. GDP shares, 1310-2018'!H218,\"\")","v":""},{"$f":"IF('IV. Country level, 1310-2018'!I216<0,'III. GDP shares, 1310-2018'!I218,\"\")","v":0.11769924038554727},{"$f":"IF('IV. Country level, 1310-2018'!J216<0,'III. GDP shares, 1310-2018'!J218,\"\")","v":""},null,0.4014178475851121,{"v":0.24140727913371404,"d":"24.14%"},{"v":0.20250823357139602,"d":"20.25%"},{"v":0.217668558749783,"d":"21.77%"},{"v":0.24072986554212542,"d":"24.07%"}]
[1523,{"$f":"IF('IV. Country level, 1310-2018'!C217<0,'III. GDP shares, 1310-2018'!C219,\"\")","v":0.28313286264352294},{"$f":"IF('IV. Country level, 1310-2018'!D217<0,'III. GDP shares, 1310-2018'!D219,\"\")","v":""},{"$f":"IF('IV. Country level, 1310-2018'!E217<0,'III. GDP shares, 1310-2018'!E219,\"\")","v":""},{"$f":"IF('IV. Country level, 1310-2018'!F217<0,'III. GDP shares, 1310-2018'!F219,\"\")","v":""},{"$f":"IF('IV. Country level, 1310-2018'!G217<0,'III. GDP shares, 1310-2018'!G219,\"\")","v":""},{"$f":"IF('IV. Country level, 1310-2018'!H217<0,'III. GDP shares, 1310-2018'!H219,\"\")","v":""},{"$f":"IF('IV. Country level, 1310-2018'!I217<0,'III. GDP shares, 1310-2018'!I219,\"\")","v":""},{"$f":"IF('IV. Country level, 1310-2018'!J217<0,'III. GDP shares, 1310-2018'!J219,\"\")","v":""},null,0.28313286264352294,{"v":0.2816081605865023,"d":"28.16%"},{"v":0.20250823357139602,"d":"20.25%"},{"v":0.2387587652649518,"d":"23.88%"},{"v":0.24072986554212542,"d":"24.07%"}]
[1524,{"$f":"IF('IV. Country level, 1310-2018'!C218<0,'III. GDP shares, 1310-2018'!C220,\"\")","v":""},{"$f":"IF('IV. Country level, 1310-2018'!D218<0,'III. GDP shares, 1310-2018'!D220,\"\")","v":""},{"$f":"IF('IV. Country level, 1310-2018'!E218<0,'III. GDP shares, 1310-2018'!E220,\"\")","v":""},{"$f":"IF('IV. Country level, 1310-2018'!F218<0,'III. GDP shares, 1310-2018'!F220,\"\")","v":""},{"$f":"IF('IV. Country level, 1310-2018'!G218<0,'III. GDP shares, 1310-2018'!G220,\"\")","v":0.2777234366615031},{"$f":"IF('IV. Country level, 1310-2018'!H218<0,'III. GDP shares, 1310-2018'!H220,\"\")","v":""},{"$f":"IF('IV. Country level, 1310-2018'!I218<0,'III. GDP shares, 1310-2018'!I220,\"\")","v":""},{"$f":"IF('IV. Country level, 1310-2018'!J218<0,'III. GDP shares, 1310-2018'!J220,\"\")","v":""},null,0.2777234366615031,{"v":0.2812339237093186,"d":"28.12%"},{"v":0.20250823357139602,"d":"20.25%"},{"v":0.24832623249234542,"d":"24.83%"},{"v":0.24072986554212542,"d":"24.07%"}]
[1525,{"$f":"IF('IV. Country level, 1310-2018'!C219<0,'III. GDP shares, 1310-2018'!C221,\"\")","v":""},{"$f":"IF('IV. Country level, 1310-2018'!D219<0,'III. GDP shares, 1310-2018'!D221,\"\")","v":""},{"$f":"IF('IV. Country level, 1310-2018'!E219<0,'III. GDP shares, 1310-2018'!E221,\"\")","v":""},{"$f":"IF('IV. Country level, 1310-2018'!F219<0,'III. GDP shares, 1310-2018'!F221,\"\")","v":""},{"$f":"IF('IV. Country level, 1310-2018'!G219<0,'III. GDP shares, 1310-2018'!G221,\"\")","v":""},{"$f":"IF('IV. Country level, 1310-2018'!H219<0,'III. GDP shares, 1310-2018'!H221,\"\")","v":""},{"$f":"IF('IV. Country level, 1310-2018'!I219<0,'III. GDP shares, 1310-2018'!I221,\"\")","v":""},{"$f":"IF('IV. Country level, 1310-2018'!J219<0,'III. GDP shares, 1310-2018'!J221,\"\")","v":""},null,0,{"v":0.27339201088046333,"d":"27.34%"},{"v":0.20250823357139602,"d":"20.25%"},{"v":0.23946263096967335,"d":"23.95%"},{"v":0.24072986554212542,"d":"24.07%"}]
[1526,{"$f":"IF('IV. Country level, 1310-2018'!C220<0,'III. GDP shares, 1310-2018'!C222,\"\")","v":0.2814061701695178},{"$f":"IF('IV. Country level, 1310-2018'!D220<0,'III. GDP shares, 1310-2018'!D222,\"\")","v":""},{"$f":"IF('IV. Country level, 1310-2018'!E220<0,'III. GDP shares, 1310-2018'!E222,\"\")","v":""},{"$f":"IF('IV. Country level, 1310-2018'!F220<0,'III. GDP shares, 1310-2018'!F222,\"\")","v":""},{"$f":"IF('IV. Country level, 1310-2018'!G220<0,'III. GDP shares, 1310-2018'!G222,\"\")","v":""},{"$f":"IF('IV. Country level, 1310-2018'!H220<0,'III. GDP shares, 1310-2018'!H222,\"\")","v":""},{"$f":"IF('IV. Country level, 1310-2018'!I220<0,'III. GDP shares, 1310-2018'!I222,\"\")","v":""},{"$f":"IF('IV. Country level, 1310-2018'!J220<0,'III. GDP shares, 1310-2018'!J222,\"\")","v":""},null,0.2814061701695178,{"v":0.30327165936673284,"d":"30.33%"},{"v":0.20250823357139602,"d":"20.25%"},{"v":0.24390453875987914,"d":"24.39%"},{"v":0.24072986554212542,"d":"24.07%"}]
[1527,{"$f":"IF('IV. Country level, 1310-2018'!C221<0,'III. GDP shares, 1310-2018'!C223,\"\")","v":0.28084056619383585},{"$f":"IF('IV. Country level, 1310-2018'!D221<0,'III. GDP shares, 1310-2018'!D223,\"\")","v":""},{"$f":"IF('IV. Country level, 1310-2018'!E221<0,'III. GDP shares, 1310-2018'!E223,\"\")","v":0.02477952709604811},{"$f":"IF('IV. Country level, 1310-2018'!F221<0,'III. GDP shares, 1310-2018'!F223,\"\")","v":""},{"$f":"IF('IV. Country level, 1310-2018'!G221<0,'III. GDP shares, 1310-2018'!G223,\"\")","v":""},{"$f":"IF('IV. Country level, 1310-2018'!H221<0,'III. GDP shares, 1310-2018'!H223,\"\")","v":""},{"$f":"IF('IV. Country level, 1310-2018'!I221<0,'III. GDP shares, 1310-2018'!I223,\"\")","v":""},{"$f":"IF('IV. Country level, 1310-2018'!J221<0,'III. GDP shares, 1310-2018'!J223,\"\")","v":""},null,0.30562009328988393,{"v":0.3027059277760468,"d":"30.27%"},{"v":0.20250823357139602,"d":"20.25%"},{"v":0.25045951173585973,"d":"25.05%"},{"v":0.24072986554212542,"d":"24.07%"}]
[1528,{"$f":"IF('IV. Country level, 1310-2018'!C222<0,'III. GDP shares, 1310-2018'!C224,\"\")","v":0.2802798350472794},{"$f":"IF('IV. Country level, 1310-2018'!D222<0,'III. GDP shares, 1310-2018'!D224,\"\")","v":0.08416383076642384},{"$f":"IF('IV. Country level, 1310-2018'!E222<0,'III. GDP shares, 1310-2018'!E224,\"\")","v":""},{"$f":"IF('IV. Country level, 1310-2018'!F222<0,'III. GDP shares, 1310-2018'!F224,\"\")","v":""},{"$f":"IF('IV. Country level, 1310-2018'!G222<0,'III. GDP shares, 1310-2018'!G224,\"\")","v":""},{"$f":"IF('IV. Country level, 1310-2018'!H222<0,'III. GDP shares, 1310-2018'!H224,\"\")","v":""},{"$f":"IF('IV. Country level, 1310-2018'!I222<0,'III. GDP shares, 1310-2018'!I224,\"\")","v":""},{"$f":"IF('IV. Country level, 1310-2018'!J222<0,'III. GDP shares, 1310-2018'!J224,\"\")","v":""},null,0.36444366581370324,{"v":0.3025659612932157,"d":"30.26%"},{"v":0.20250823357139602,"d":"20.25%"},{"v":0.23601764593873342,"d":"23.60%"},{"v":0.24072986554212542,"d":"24.07%"}]
[1529,{"$f":"IF('IV. Country level, 1310-2018'!C223<0,'III. GDP shares, 1310-2018'!C225,\"\")","v":""},{"$f":"IF('IV. Country level, 1310-2018'!D223<0,'III. GDP shares, 1310-2018'!D225,\"\")","v":""},{"$f":"IF('IV. Country level, 1310-2018'!E223<0,'III. GDP shares, 1310-2018'!E225,\"\")","v":""},{"$f":"IF('IV. Country level, 1310-2018'!F223<0,'III. GDP shares, 1310-2018'!F225,\"\")","v":0.2153842955654606},{"$f":"IF('IV. Country level, 1310-2018'!G223<0,'III. GDP shares, 1310-2018'!G225,\"\")","v":0.27701760086479055},{"$f":"IF('IV. Country level, 1310-2018'!H223<0,'III. GDP shares, 1310-2018'!H225,\"\")","v":""},{"$f":"IF('IV. Country level, 1310-2018'!I223<0,'III. GDP shares, 1310-2018'!I225,\"\")","v":0.11817349055874746},{"$f":"IF('IV. Country level, 1310-2018'!J223<0,'III. GDP shares, 1310-2018'!J225,\"\")","v":""},null,0.6105753869889986,{"v":0.3025659612932157,"d":"30.26%"},{"v":0.20250823357139602,"d":"20.25%"},{"v":0.2335685057739602,"d":"23.36%"},{"v":0.24072986554212542,"d":"24.07%"}]
[1530,{"$f":"IF('IV. Country level, 1310-2018'!C224<0,'III. GDP shares, 1310-2018'!C226,\"\")","v":0.279172741508721},{"$f":"IF('IV. Country level, 1310-2018'!D224<0,'III. GDP shares, 1310-2018'!D226,\"\")","v":""},{"$f":"IF('IV. Country level, 1310-2018'!E224<0,'III. GDP shares, 1310-2018'!E226,\"\")","v":""},{"$f":"IF('IV. Country level, 1310-2018'!F224<0,'III. GDP shares, 1310-2018'!F226,\"\")","v":""},{"$f":"IF('IV. Country level, 1310-2018'!G224<0,'III. GDP shares, 1310-2018'!G226,\"\")","v":""},{"$f":"IF('IV. Country level, 1310-2018'!H224<0,'III. GDP shares, 1310-2018'!H226,\"\")","v":""},{"$f":"IF('IV. Country level, 1310-2018'!I224<0,'III. GDP shares, 1310-2018'!I226,\"\")","v":""},{"$f":"IF('IV. Country level, 1310-2018'!J224<0,'III. GDP shares, 1310-2018'!J226,\"\")","v":""},null,0.279172741508721,{"v":0.2623650798404275,"d":"26.24%"},{"v":0.20250823357139602,"d":"20.25%"},{"v":0.24550921969594228,"d":"24.55%"},{"v":0.24072986554212542,"d":"24.07%"}]
[1531,{"$f":"IF('IV. Country level, 1310-2018'!C225<0,'III. GDP shares, 1310-2018'!C227,\"\")","v":""},{"$f":"IF('IV. Country level, 1310-2018'!D225<0,'III. GDP shares, 1310-2018'!D227,\"\")","v":""},{"$f":"IF('IV. Country level, 1310-2018'!E225<0,'III. GDP shares, 1310-2018'!E227,\"\")","v":""},{"$f":"IF('IV. Country level, 1310-2018'!F225<0,'III. GDP shares, 1310-2018'!F227,\"\")","v":""},{"$f":"IF('IV. Country level, 1310-2018'!G225<0,'III. GDP shares, 1310-2018'!G227,\"\")","v":0.2767436712816857},{"$f":"IF('IV. Country level, 1310-2018'!H225<0,'III. GDP shares, 1310-2018'!H227,\"\")","v":""},{"$f":"IF('IV. Country level, 1310-2018'!I225<0,'III. GDP shares, 1310-2018'!I227,\"\")","v":""},{"$f":"IF('IV. Country level, 1310-2018'!J225<0,'III. GDP shares, 1310-2018'!J227,\"\")","v":""},null,0.2767436712816857,{"v":0.21870506651330124,"d":"21.87%"},{"v":0.20250823357139602,"d":"20.25%"},{"v":0.2442927160899565,"d":"24.43%"},{"v":0.24072986554212542,"d":"24.07%"}]
[1532,{"$f":"IF('IV. Country level, 1310-2018'!C226<0,'III. GDP shares, 1310-2018'!C228,\"\")","v":""},{"$f":"IF('IV. Country level, 1310-2018'!D226<0,'III. GDP shares, 1310-2018'!D228,\"\")","v":""},{"$f":"IF('IV. Country level, 1310-2018'!E226<0,'III. GDP shares, 1310-2018'!E228,\"\")","v":""},{"$f":"IF('IV. Country level, 1310-2018'!F226<0,'III. GDP shares, 1310-2018'!F228,\"\")","v":""},{"$f":"IF('IV. Country level, 1310-2018'!G226<0,'III. GDP shares, 1310-2018'!G228,\"\")","v":""},{"$f":"IF('IV. Country level, 1310-2018'!H226<0,'III. GDP shares, 1310-2018'!H228,\"\")","v":""},{"$f":"IF('IV. Country level, 1310-2018'!I226<0,'III. GDP shares, 1310-2018'!I228,\"\")","v":""},{"$f":"IF('IV. Country level, 1310-2018'!J226<0,'III. GDP shares, 1310-2018'!J228,\"\")","v":""},null,0,{"v":0.1827774586128405,"d":"18.28%"},{"v":0.20250823357139602,"d":"20.25%"},{"v":0.2442927160899565,"d":"24.43%"},{"v":0.24072986554212542,"d":"24.07%"}]
[1533,{"$f":"IF('IV. Country level, 1310-2018'!C227<0,'III. GDP shares, 1310-2018'!C229,\"\")","v":""},{"$f":"IF('IV. Country level, 1310-2018'!D227<0,'III. GDP shares, 1310-2018'!D229,\"\")","v":""},{"$f":"IF('IV. Country level, 1310-2018'!E227<0,'III. GDP shares, 1310-2018'!E229,\"\")","v":""},{"$f":"IF('IV. Country level, 1310-2018'!F227<0,'III. GDP shares, 1310-2018'!F229,\"\")","v":""},{"$f":"IF('IV. Country level, 1310-2018'!G227<0,'III. GDP shares, 1310-2018'!G229,\"\")","v":""},{"$f":"IF('IV. Country level, 1310-2018'!H227<0,'III. GDP shares, 1310-2018'!H229,\"\")","v":""},{"$f":"IF('IV. Country level, 1310-2018'!I227<0,'III. GDP shares, 1310-2018'!I229,\"\")","v":""},{"$f":"IF('IV. Country level, 1310-2018'!J227<0,'III. GDP shares, 1310-2018'!J229,\"\")","v":""},null,0,{"v":0.17441539077644166,"d":"17.44%"},{"v":0.20250823357139602,"d":"20.25%"},{"v":0.24658304595533906,"d":"24.66%"},{"v":0.24072986554212542,"d":"24.07%"}]
[1534,{"$f":"IF('IV. Country level, 1310-2018'!C228<0,'III. GDP shares, 1310-2018'!C230,\"\")","v":""},{"$f":"IF('IV. Country level, 1310-2018'!D228<0,'III. GDP shares, 1310-2018'!D230,\"\")","v":""},{"$f":"IF('IV. Country level, 1310-2018'!E228<0,'III. GDP shares, 1310-2018'!E230,\"\")","v":""},{"$f":"IF('IV. Country level, 1310-2018'!F228<0,'III. GDP shares, 1310-2018'!F230,\"\")","v":""},{"$f":"IF('IV. Country level, 1310-2018'!G228<0,'III. GDP shares, 1310-2018'!G230,\"\")","v":""},{"$f":"IF('IV. Country level, 1310-2018'!H228<0,'III. GDP shares, 1310-2018'!H230,\"\")","v":""},{"$f":"IF('IV. Country level, 1310-2018'!I228<0,'III. GDP shares, 1310-2018'!I230,\"\")","v":""},{"$f":"IF('IV. Country level, 1310-2018'!J228<0,'III. GDP shares, 1310-2018'!J230,\"\")","v":""},null,0,{"v":0.1345335705609101,"d":"13.45%"},{"v":0.20250823357139602,"d":"20.25%"},{"v":0.26511335966412797,"d":"26.51%"},{"v":0.24072986554212542,"d":"24.07%"}]
[1535,{"$f":"IF('IV. Country level, 1310-2018'!C229<0,'III. GDP shares, 1310-2018'!C231,\"\")","v":""},{"$f":"IF('IV. Country level, 1310-2018'!D229<0,'III. GDP shares, 1310-2018'!D231,\"\")","v":0.08662244711387018},{"$f":"IF('IV. Country level, 1310-2018'!E229<0,'III. GDP shares, 1310-2018'!E231,\"\")","v":0.026327963396607982},{"$f":"IF('IV. Country level, 1310-2018'!F229<0,'III. GDP shares, 1310-2018'!F231,\"\")","v":""},{"$f":"IF('IV. Country level, 1310-2018'!G229<0,'III. GDP shares, 1310-2018'!G231,\"\")","v":""},{"$f":"IF('IV. Country level, 1310-2018'!H229<0,'III. GDP shares, 1310-2018'!H231,\"\")","v":""},{"$f":"IF('IV. Country level, 1310-2018'!I229<0,'III. GDP shares, 1310-2018'!I231,\"\")","v":""},{"$f":"IF('IV. Country level, 1310-2018'!J229<0,'III. GDP shares, 1310-2018'!J231,\"\")","v":""},null,0.11295041051047816,{"v":0.16897074202612256,"d":"16.90%"},{"v":0.20250823357139602,"d":"20.25%"},{"v":0.2753040928964483,"d":"27.53%"},{"v":0.24072986554212542,"d":"24.07%"}]
[1536,{"$f":"IF('IV. Country level, 1310-2018'!C230<0,'III. GDP shares, 1310-2018'!C232,\"\")","v":0.27596210292441414},{"$f":"IF('IV. Country level, 1310-2018'!D230<0,'III. GDP shares, 1310-2018'!D232,\"\")","v":""},{"$f":"IF('IV. Country level, 1310-2018'!E230<0,'III. GDP shares, 1310-2018'!E232,\"\")","v":""},{"$f":"IF('IV. Country level, 1310-2018'!F230<0,'III. GDP shares, 1310-2018'!F232,\"\")","v":""},{"$f":"IF('IV. Country level, 1310-2018'!G230<0,'III. GDP shares, 1310-2018'!G232,\"\")","v":0.27607880920979266},{"$f":"IF('IV. Country level, 1310-2018'!H230<0,'III. GDP shares, 1310-2018'!H232,\"\")","v":""},{"$f":"IF('IV. Country level, 1310-2018'!I230<0,'III. GDP shares, 1310-2018'!I232,\"\")","v":""},{"$f":"IF('IV. Country level, 1310-2018'!J230<0,'III. GDP shares, 1310-2018'!J232,\"\")","v":""},null,0.5520409121342068,{"v":0.26839600131191826,"d":"26.84%"},{"v":0.20250823357139602,"d":"20.25%"},{"v":0.2753040928964483,"d":"27.53%"},{"v":0.24072986554212542,"d":"24.07%"}]
[1537,{"$f":"IF('IV. Country level, 1310-2018'!C231<0,'III. GDP shares, 1310-2018'!C233,\"\")","v":""},{"$f":"IF('IV. Country level, 1310-2018'!D231<0,'III. GDP shares, 1310-2018'!D233,\"\")","v":""},{"$f":"IF('IV. Country level, 1310-2018'!E231<0,'III. GDP shares, 1310-2018'!E233,\"\")","v":""},{"$f":"IF('IV. Country level, 1310-2018'!F231<0,'III. GDP shares, 1310-2018'!F233,\"\")","v":""},{"$f":"IF('IV. Country level, 1310-2018'!G231<0,'III. GDP shares, 1310-2018'!G233,\"\")","v":""},{"$f":"IF('IV. Country level, 1310-2018'!H231<0,'III. GDP shares, 1310-2018'!H233,\"\")","v":""},{"$f":"IF('IV. Country level, 1310-2018'!I231<0,'III. GDP shares, 1310-2018'!I233,\"\")","v":""},{"$f":"IF('IV. Country level, 1310-2018'!J231<0,'III. GDP shares, 1310-2018'!J233,\"\")","v":""},null,0,{"v":0.35538128459530405,"d":"35.54%"},{"v":0.20250823357139602,"d":"20.25%"},{"v":0.2659634943682614,"d":"26.60%"},{"v":0.24072986554212542,"d":"24.07%"}]
[1538,{"$f":"IF('IV. Country level, 1310-2018'!C232<0,'III. GDP shares, 1310-2018'!C234,\"\")","v":0.27492724766426746},{"$f":"IF('IV. Country level, 1310-2018'!D232<0,'III. GDP shares, 1310-2018'!D234,\"\")","v":""},{"$f":"IF('IV. Country level, 1310-2018'!E232<0,'III. GDP shares, 1310-2018'!E234,\"\")","v":0.026882249126275785},{"$f":"IF('IV. Country level, 1310-2018'!F232<0,'III. GDP shares, 1310-2018'!F234,\"\")","v":0.21599437474762948},{"$f":"IF('IV. Country level, 1310-2018'!G232<0,'III. GDP shares, 1310-2018'!G234,\"\")","v":""},{"$f":"IF('IV. Country level, 1310-2018'!H232<0,'III. GDP shares, 1310-2018'!H234,\"\")","v":""},{"$f":"IF('IV. Country level, 1310-2018'!I232<0,'III. GDP shares, 1310-2018'!I234,\"\")","v":""},{"$f":"IF('IV. Country level, 1310-2018'!J232<0,'III. GDP shares, 1310-2018'!J234,\"\")","v":""},null,0.5178038715381728,{"v":0.35538128459530405,"d":"35.54%"},{"v":0.20250823357139602,"d":"20.25%"},{"v":0.26135405851542914,"d":"26.14%"},{"v":0.24072986554212542,"d":"24.07%"}]
[1539,{"$f":"IF('IV. Country level, 1310-2018'!C233<0,'III. GDP shares, 1310-2018'!C235,\"\")","v":0.27441620419300816},{"$f":"IF('IV. Country level, 1310-2018'!D233<0,'III. GDP shares, 1310-2018'!D235,\"\")","v":""},{"$f":"IF('IV. Country level, 1310-2018'!E233<0,'III. GDP shares, 1310-2018'!E235,\"\")","v":0.02706397151448262},{"$f":"IF('IV. Country level, 1310-2018'!F233<0,'III. GDP shares, 1310-2018'!F235,\"\")","v":""},{"$f":"IF('IV. Country level, 1310-2018'!G233<0,'III. GDP shares, 1310-2018'!G235,\"\")","v":0.2756930171569164},{"$f":"IF('IV. Country level, 1310-2018'!H233<0,'III. GDP shares, 1310-2018'!H235,\"\")","v":""},{"$f":"IF('IV. Country level, 1310-2018'!I233<0,'III. GDP shares, 1310-2018'!I235,\"\")","v":0.1188036221361626},{"$f":"IF('IV. Country level, 1310-2018'!J233<0,'III. GDP shares, 1310-2018'!J235,\"\")","v":""},null,0.6959768150005698,{"v":0.36018593410477723,"d":"36.02%"},{"v":0.20250823357139602,"d":"20.25%"},{"v":0.26099205937679226,"d":"26.10%"},{"v":0.24072986554212542,"d":"24.07%"}]
[1540,{"$f":"IF('IV. Country level, 1310-2018'!C234<0,'III. GDP shares, 1310-2018'!C236,\"\")","v":0.27390934709713094},{"$f":"IF('IV. Country level, 1310-2018'!D234<0,'III. GDP shares, 1310-2018'!D236,\"\")","v":""},{"$f":"IF('IV. Country level, 1310-2018'!E234<0,'III. GDP shares, 1310-2018'!E236,\"\")","v":""},{"$f":"IF('IV. Country level, 1310-2018'!F234<0,'III. GDP shares, 1310-2018'!F236,\"\")","v":0.21612383965061133},{"$f":"IF('IV. Country level, 1310-2018'!G234<0,'III. GDP shares, 1310-2018'!G236,\"\")","v":""},{"$f":"IF('IV. Country level, 1310-2018'!H234<0,'III. GDP shares, 1310-2018'!H236,\"\")","v":""},{"$f":"IF('IV. Country level, 1310-2018'!I234<0,'III. GDP shares, 1310-2018'!I236,\"\")","v":0.11886379623595834},{"$f":"IF('IV. Country level, 1310-2018'!J234<0,'III. GDP shares, 1310-2018'!J236,\"\")","v":""},null,0.6088969829837007,{"v":0.31222496211522766,"d":"31.22%"},{"v":0.20250823357139602,"d":"20.25%"},{"v":0.256143909561665,"d":"25.61%"},{"v":0.24072986554212542,"d":"24.07%"}]
[1541,{"$f":"IF('IV. Country level, 1310-2018'!C235<0,'III. GDP shares, 1310-2018'!C237,\"\")","v":""},{"$f":"IF('IV. Country level, 1310-2018'!D235<0,'III. GDP shares, 1310-2018'!D237,\"\")","v":""},{"$f":"IF('IV. Country level, 1310-2018'!E235<0,'III. GDP shares, 1310-2018'!E237,\"\")","v":""},{"$f":"IF('IV. Country level, 1310-2018'!F235<0,'III. GDP shares, 1310-2018'!F237,\"\")","v":""},{"$f":"IF('IV. Country level, 1310-2018'!G235<0,'III. GDP shares, 1310-2018'!G237,\"\")","v":""},{"$f":"IF('IV. Country level, 1310-2018'!H235<0,'III. GDP shares, 1310-2018'!H237,\"\")","v":""},{"$f":"IF('IV. Country level, 1310-2018'!I235<0,'III. GDP shares, 1310-2018'!I237,\"\")","v":""},{"$f":"IF('IV. Country level, 1310-2018'!J235<0,'III. GDP shares, 1310-2018'!J237,\"\")","v":""},null,0,{"v":0.3162179069502576,"d":"31.62%"},{"v":0.20250823357139602,"d":"20.25%"},{"v":0.25135884319128393,"d":"25.14%"},{"v":0.24072986554212542,"d":"24.07%"}]
[1542,{"$f":"IF('IV. Country level, 1310-2018'!C236<0,'III. GDP shares, 1310-2018'!C238,\"\")","v":""},{"$f":"IF('IV. Country level, 1310-2018'!D236<0,'III. GDP shares, 1310-2018'!D238,\"\")","v":""},{"$f":"IF('IV. Country level, 1310-2018'!E236<0,'III. GDP shares, 1310-2018'!E238,\"\")","v":0.02760027943148023},{"$f":"IF('IV. Country level, 1310-2018'!F236<0,'III. GDP shares, 1310-2018'!F238,\"\")","v":""},{"$f":"IF('IV. Country level, 1310-2018'!G236<0,'III. GDP shares, 1310-2018'!G238,\"\")","v":""},{"$f":"IF('IV. Country level, 1310-2018'!H236<0,'III. GDP shares, 1310-2018'!H238,\"\")","v":""},{"$f":"IF('IV. Country level, 1310-2018'!I236<0,'III. GDP shares, 1310-2018'!I238,\"\")","v":0.11898267764531051},{"$f":"IF('IV. Country level, 1310-2018'!J236<0,'III. GDP shares, 1310-2018'!J238,\"\")","v":""},null,0.14658295707679073,{"v":0.2721105712484997,"d":"27.21%"},{"v":0.20250823357139602,"d":"20.25%"},{"v":0.25135884319128393,"d":"25.14%"},{"v":0.24072986554212542,"d":"24.07%"}]
[1543,{"$f":"IF('IV. Country level, 1310-2018'!C237<0,'III. GDP shares, 1310-2018'!C239,\"\")","v":""},{"$f":"IF('IV. Country level, 1310-2018'!D237<0,'III. GDP shares, 1310-2018'!D239,\"\")","v":""},{"$f":"IF('IV. Country level, 1310-2018'!E237<0,'III. GDP shares, 1310-2018'!E239,\"\")","v":""},{"$f":"IF('IV. Country level, 1310-2018'!F237<0,'III. GDP shares, 1310-2018'!F239,\"\")","v":0.21631410820735975},{"$f":"IF('IV. Country level, 1310-2018'!G237<0,'III. GDP shares, 1310-2018'!G239,\"\")","v":""},{"$f":"IF('IV. Country level, 1310-2018'!H237<0,'III. GDP shares, 1310-2018'!H239,\"\")","v":""},{"$f":"IF('IV. Country level, 1310-2018'!I237<0,'III. GDP shares, 1310-2018'!I239,\"\")","v":""},{"$f":"IF('IV. Country level, 1310-2018'!J237<0,'III. GDP shares, 1310-2018'!J239,\"\")","v":""},null,0.21631410820735975,{"v":0.2289772490234765,"d":"22.90%"},{"v":0.20250823357139602,"d":"20.25%"},{"v":0.2503363526326766,"d":"25.03%"},{"v":0.24072986554212542,"d":"24.07%"}]
[1544,{"$f":"IF('IV. Country level, 1310-2018'!C238<0,'III. GDP shares, 1310-2018'!C240,\"\")","v":""},{"$f":"IF('IV. Country level, 1310-2018'!D238<0,'III. GDP shares, 1310-2018'!D240,\"\")","v":""},{"$f":"IF('IV. Country level, 1310-2018'!E238<0,'III. GDP shares, 1310-2018'!E240,\"\")","v":0.02795061384520928},{"$f":"IF('IV. Country level, 1310-2018'!F238<0,'III. GDP shares, 1310-2018'!F240,\"\")","v":""},{"$f":"IF('IV. Country level, 1310-2018'!G238<0,'III. GDP shares, 1310-2018'!G240,\"\")","v":""},{"$f":"IF('IV. Country level, 1310-2018'!H238<0,'III. GDP shares, 1310-2018'!H240,\"\")","v":""},{"$f":"IF('IV. Country level, 1310-2018'!I238<0,'III. GDP shares, 1310-2018'!I240,\"\")","v":""},{"$f":"IF('IV. Country level, 1310-2018'!J238<0,'III. GDP shares, 1310-2018'!J240,\"\")","v":""},null,0.02795061384520928,{"v":0.18063116078672709,"d":"18.06%"},{"v":0.20250823357139602,"d":"20.25%"},{"v":0.2410751376844983,"d":"24.11%"},{"v":0.24072986554212542,"d":"24.07%"}]
[1545,{"$f":"IF('IV. Country level, 1310-2018'!C239<0,'III. GDP shares, 1310-2018'!C241,\"\")","v":""},{"$f":"IF('IV. Country level, 1310-2018'!D239<0,'III. GDP shares, 1310-2018'!D241,\"\")","v":0.08989510053306107},{"$f":"IF('IV. Country level, 1310-2018'!E239<0,'III. GDP shares, 1310-2018'!E241,\"\")","v":""},{"$f":"IF('IV. Country level, 1310-2018'!F239<0,'III. GDP shares, 1310-2018'!F241,\"\")","v":""},{"$f":"IF('IV. Country level, 1310-2018'!G239<0,'III. GDP shares, 1310-2018'!G241,\"\")","v":""},{"$f":"IF('IV. Country level, 1310-2018'!H239<0,'III. GDP shares, 1310-2018'!H241,\"\")","v":""},{"$f":"IF('IV. Country level, 1310-2018'!I239<0,'III. GDP shares, 1310-2018'!I241,\"\")","v":0.1191574210928069},{"$f":"IF('IV. Country level, 1310-2018'!J239<0,'III. GDP shares, 1310-2018'!J241,\"\")","v":""},null,0.20905252162586796,{"v":0.18063116078672709,"d":"18.06%"},{"v":0.20250823357139602,"d":"20.25%"},{"v":0.23003139023559818,"d":"23.00%"},{"v":0.24072986554212542,"d":"24.07%"}]
[1546,{"$f":"IF('IV. Country level, 1310-2018'!C240<0,'III. GDP shares, 1310-2018'!C242,\"\")","v":""},{"$f":"IF('IV. Country level, 1310-2018'!D240<0,'III. GDP shares, 1310-2018'!D242,\"\")","v":""},{"$f":"IF('IV. Country level, 1310-2018'!E240<0,'III. GDP shares, 1310-2018'!E242,\"\")","v":""},{"$f":"IF('IV. Country level, 1310-2018'!F240<0,'III. GDP shares, 1310-2018'!F242,\"\")","v":""},{"$f":"IF('IV. Country level, 1310-2018'!G240<0,'III. GDP shares, 1310-2018'!G242,\"\")","v":0.27482882193774855},{"$f":"IF('IV. Country level, 1310-2018'!H240<0,'III. GDP shares, 1310-2018'!H242,\"\")","v":""},{"$f":"IF('IV. Country level, 1310-2018'!I240<0,'III. GDP shares, 1310-2018'!I242,\"\")","v":0.11921473748765883},{"$f":"IF('IV. Country level, 1310-2018'!J240<0,'III. GDP shares, 1310-2018'!J242,\"\")","v":""},null,0.39404355942540736,{"v":0.24216798347053756,"d":"24.22%"},{"v":0.20250823357139602,"d":"20.25%"},{"v":0.21516768828799354,"d":"21.52%"},{"v":0.24072986554212542,"d":"24.07%"}]
[1547,{"$f":"IF('IV. Country level, 1310-2018'!C241<0,'III. GDP shares, 1310-2018'!C243,\"\")","v":0.2704743653264546},{"$f":"IF('IV. Country level, 1310-2018'!D241<0,'III. GDP shares, 1310-2018'!D243,\"\")","v":""},{"$f":"IF('IV. Country level, 1310-2018'!E241<0,'III. GDP shares, 1310-2018'!E243,\"\")","v":""},{"$f":"IF('IV. Country level, 1310-2018'!F241<0,'III. GDP shares, 1310-2018'!F243,\"\")","v":""},{"$f":"IF('IV. Country level, 1310-2018'!G241<0,'III. GDP shares, 1310-2018'!G243,\"\")","v":""},{"$f":"IF('IV. Country level, 1310-2018'!H241<0,'III. GDP shares, 1310-2018'!H243,\"\")","v":""},{"$f":"IF('IV. Country level, 1310-2018'!I241<0,'III. GDP shares, 1310-2018'!I243,\"\")","v":""},{"$f":"IF('IV. Country level, 1310-2018'!J241<0,'III. GDP shares, 1310-2018'!J243,\"\")","v":""},null,0.2704743653264546,{"v":0.2986231612109194,"d":"29.86%"},{"v":0.20250823357139602,"d":"20.25%"},{"v":0.20670790824227472,"d":"20.67%"},{"v":0.24072986554212542,"d":"24.07%"}]
[1548,{"$f":"IF('IV. Country level, 1310-2018'!C242<0,'III. GDP shares, 1310-2018'!C244,\"\")","v":""},{"$f":"IF('IV. Country level, 1310-2018'!D242<0,'III. GDP shares, 1310-2018'!D244,\"\")","v":""},{"$f":"IF('IV. Country level, 1310-2018'!E242<0,'III. GDP shares, 1310-2018'!E244,\"\")","v":""},{"$f":"IF('IV. Country level, 1310-2018'!F242<0,'III. GDP shares, 1310-2018'!F244,\"\")","v":""},{"$f":"IF('IV. Country level, 1310-2018'!G242<0,'III. GDP shares, 1310-2018'!G244,\"\")","v":""},{"$f":"IF('IV. Country level, 1310-2018'!H242<0,'III. GDP shares, 1310-2018'!H244,\"\")","v":""},{"$f":"IF('IV. Country level, 1310-2018'!I242<0,'III. GDP shares, 1310-2018'!I244,\"\")","v":""},{"$f":"IF('IV. Country level, 1310-2018'!J242<0,'III. GDP shares, 1310-2018'!J244,\"\")","v":""},null,0,{"v":0.34267224447111416,"d":"34.27%"},{"v":0.20250823357139602,"d":"20.25%"},{"v":0.19832173638525394,"d":"19.83%"},{"v":0.24072986554212542,"d":"24.07%"}]
[1549,{"$f":"IF('IV. Country level, 1310-2018'!C243<0,'III. GDP shares, 1310-2018'!C245,\"\")","v":0.2695278341169957},{"$f":"IF('IV. Country level, 1310-2018'!D243<0,'III. GDP shares, 1310-2018'!D245,\"\")","v":0.09113176550991035},{"$f":"IF('IV. Country level, 1310-2018'!E243<0,'III. GDP shares, 1310-2018'!E245,\"\")","v":""},{"$f":"IF('IV. Country level, 1310-2018'!F243<0,'III. GDP shares, 1310-2018'!F245,\"\")","v":0.21668111623655786},{"$f":"IF('IV. Country level, 1310-2018'!G243<0,'III. GDP shares, 1310-2018'!G245,\"\")","v":""},{"$f":"IF('IV. Country level, 1310-2018'!H243<0,'III. GDP shares, 1310-2018'!H245,\"\")","v":""},{"$f":"IF('IV. Country level, 1310-2018'!I243<0,'III. GDP shares, 1310-2018'!I245,\"\")","v":""},{"$f":"IF('IV. Country level, 1310-2018'!J243<0,'III. GDP shares, 1310-2018'!J245,\"\")","v":""},null,0.5773407158634639,{"v":0.3128075985245616,"d":"31.28%"},{"v":0.20250823357139602,"d":"20.25%"},{"v":0.20753460068127655,"d":"20.75%"},{"v":0.24072986554212542,"d":"24.07%"}]
[1550,{"$f":"IF('IV. Country level, 1310-2018'!C244<0,'III. GDP shares, 1310-2018'!C246,\"\")","v":""},{"$f":"IF('IV. Country level, 1310-2018'!D244<0,'III. GDP shares, 1310-2018'!D246,\"\")","v":0.09143484930143866},{"$f":"IF('IV. Country level, 1310-2018'!E244<0,'III. GDP shares, 1310-2018'!E246,\"\")","v":0.028968533642883806},{"$f":"IF('IV. Country level, 1310-2018'!F244<0,'III. GDP shares, 1310-2018'!F246,\"\")","v":0.21674059947763363},{"$f":"IF('IV. Country level, 1310-2018'!G244<0,'III. GDP shares, 1310-2018'!G246,\"\")","v":0.274356369968077},{"$f":"IF('IV. Country level, 1310-2018'!H244<0,'III. GDP shares, 1310-2018'!H246,\"\")","v":""},{"$f":"IF('IV. Country level, 1310-2018'!I244<0,'III. GDP shares, 1310-2018'!I246,\"\")","v":""},{"$f":"IF('IV. Country level, 1310-2018'!J244<0,'III. GDP shares, 1310-2018'!J246,\"\")","v":""},null,0.6115003523900331,{"v":0.25651566146378907,"d":"25.65%"},{"v":0.20250823357139602,"d":"20.25%"},{"v":0.22603492997828095,"d":"22.60%"},{"v":0.24072986554212542,"d":"24.07%"}]
[1551,{"$f":"IF('IV. Country level, 1310-2018'!C245<0,'III. GDP shares, 1310-2018'!C247,\"\")","v":""},{"$f":"IF('IV. Country level, 1310-2018'!D245<0,'III. GDP shares, 1310-2018'!D247,\"\")","v":""},{"$f":"IF('IV. Country level, 1310-2018'!E245<0,'III. GDP shares, 1310-2018'!E247,\"\")","v":""},{"$f":"IF('IV. Country level, 1310-2018'!F245<0,'III. GDP shares, 1310-2018'!F247,\"\")","v":0.21679961645050716},{"$f":"IF('IV. Country level, 1310-2018'!G245<0,'III. GDP shares, 1310-2018'!G247,\"\")","v":""},{"$f":"IF('IV. Country level, 1310-2018'!H245<0,'III. GDP shares, 1310-2018'!H247,\"\")","v":""},{"$f":"IF('IV. Country level, 1310-2018'!I245<0,'III. GDP shares, 1310-2018'!I247,\"\")","v":0.11949458021606474},{"$f":"IF('IV. Country level, 1310-2018'!J245<0,'III. GDP shares, 1310-2018'!J247,\"\")","v":""},null,0.3362941966665719,{"v":0.25605156248461414,"d":"25.61%"},{"v":0.20250823357139602,"d":"20.25%"},{"v":0.23358925362090951,"d":"23.36%"},{"v":0.24072986554212542,"d":"24.07%"}]
[1552,{"$f":"IF('IV. Country level, 1310-2018'!C246<0,'III. GDP shares, 1310-2018'!C248,\"\")","v":""},{"$f":"IF('IV. Country level, 1310-2018'!D246<0,'III. GDP shares, 1310-2018'!D248,\"\")","v":""},{"$f":"IF('IV. Country level, 1310-2018'!E246<0,'III. GDP shares, 1310-2018'!E248,\"\")","v":""},{"$f":"IF('IV. Country level, 1310-2018'!F246<0,'III. GDP shares, 1310-2018'!F248,\"\")","v":""},{"$f":"IF('IV. Country level, 1310-2018'!G246<0,'III. GDP shares, 1310-2018'!G248,\"\")","v":""},{"$f":"IF('IV. Country level, 1310-2018'!H246<0,'III. GDP shares, 1310-2018'!H248,\"\")","v":""},{"$f":"IF('IV. Country level, 1310-2018'!I246<0,'III. GDP shares, 1310-2018'!I248,\"\")","v":""},{"$f":"IF('IV. Country level, 1310-2018'!J246<0,'III. GDP shares, 1310-2018'!J248,\"\")","v":""},null,0,{"v":0.31169040191462727,"d":"31.17%"},{"v":0.20250823357139602,"d":"20.25%"},{"v":0.2301665139084708,"d":"23.02%"},{"v":0.24072986554212542,"d":"24.07%"}]
[1553,{"$f":"IF('IV. Country level, 1310-2018'!C247<0,'III. GDP shares, 1310-2018'!C249,\"\")","v":""},{"$f":"IF('IV. Country level, 1310-2018'!D247<0,'III. GDP shares, 1310-2018'!D249,\"\")","v":""},{"$f":"IF('IV. Country level, 1310-2018'!E247<0,'III. GDP shares, 1310-2018'!E249,\"\")","v":""},{"$f":"IF('IV. Country level, 1310-2018'!F247<0,'III. GDP shares, 1310-2018'!F249,\"\")","v":""},{"$f":"IF('IV. Country level, 1310-2018'!G247<0,'III. GDP shares, 1310-2018'!G249,\"\")","v":""},{"$f":"IF('IV. Country level, 1310-2018'!H247<0,'III. GDP shares, 1310-2018'!H249,\"\")","v":""},{"$f":"IF('IV. Country level, 1310-2018'!I247<0,'III. GDP shares, 1310-2018'!I249,\"\")","v":""},{"$f":"IF('IV. Country level, 1310-2018'!J247<0,'III. GDP shares, 1310-2018'!J249,\"\")","v":""},null,0,{"v":0.24680514518332167,"d":"24.68%"},{"v":0.20250823357139602,"d":"20.25%"},{"v":0.22794142307896867,"d":"22.79%"},{"v":0.24072986554212542,"d":"24.07%"}]
[1554,{"$f":"IF('IV. Country level, 1310-2018'!C248<0,'III. GDP shares, 1310-2018'!C250,\"\")","v":0.2672256724722297},{"$f":"IF('IV. Country level, 1310-2018'!D248<0,'III. GDP shares, 1310-2018'!D250,\"\")","v":""},{"$f":"IF('IV. Country level, 1310-2018'!E248<0,'III. GDP shares, 1310-2018'!E250,\"\")","v":""},{"$f":"IF('IV. Country level, 1310-2018'!F248<0,'III. GDP shares, 1310-2018'!F250,\"\")","v":""},{"$f":"IF('IV. Country level, 1310-2018'!G248<0,'III. GDP shares, 1310-2018'!G250,\"\")","v":""},{"$f":"IF('IV. Country level, 1310-2018'!H248<0,'III. GDP shares, 1310-2018'!H250,\"\")","v":""},{"$f":"IF('IV. Country level, 1310-2018'!I248<0,'III. GDP shares, 1310-2018'!I250,\"\")","v":""},{"$f":"IF('IV. Country level, 1310-2018'!J248<0,'III. GDP shares, 1310-2018'!J250,\"\")","v":""},null,0.2672256724722297,{"v":0.176564558618878,"d":"17.66%"},{"v":0.20250823357139602,"d":"20.25%"},{"v":0.24340512028345734,"d":"24.34%"},{"v":0.24072986554212542,"d":"24.07%"}]
[1555,{"$f":"IF('IV. Country level, 1310-2018'!C249<0,'III. GDP shares, 1310-2018'!C251,\"\")","v":0.2667759005185902},{"$f":"IF('IV. Country level, 1310-2018'!D249<0,'III. GDP shares, 1310-2018'!D251,\"\")","v":0.09291518181134402},{"$f":"IF('IV. Country level, 1310-2018'!E249<0,'III. GDP shares, 1310-2018'!E251,\"\")","v":0.029780793680157604},{"$f":"IF('IV. Country level, 1310-2018'!F249<0,'III. GDP shares, 1310-2018'!F251,\"\")","v":""},{"$f":"IF('IV. Country level, 1310-2018'!G249<0,'III. GDP shares, 1310-2018'!G251,\"\")","v":""},{"$f":"IF('IV. Country level, 1310-2018'!H249<0,'III. GDP shares, 1310-2018'!H251,\"\")","v":""},{"$f":"IF('IV. Country level, 1310-2018'!I249<0,'III. GDP shares, 1310-2018'!I251,\"\")","v":""},{"$f":"IF('IV. Country level, 1310-2018'!J249<0,'III. GDP shares, 1310-2018'!J251,\"\")","v":""},null,0.3894718760100918,{"v":0.12852253052365342,"d":"12.85%"},{"v":0.20250823357139602,"d":"20.25%"},{"v":0.23136598005948047,"d":"23.14%"},{"v":0.24072986554212542,"d":"24.07%"}]
[1556,{"$f":"IF('IV. Country level, 1310-2018'!C250<0,'III. GDP shares, 1310-2018'!C252,\"\")","v":""},{"$f":"IF('IV. Country level, 1310-2018'!D250<0,'III. GDP shares, 1310-2018'!D252,\"\")","v":0.09320441984474984},{"$f":"IF('IV. Country level, 1310-2018'!E250<0,'III. GDP shares, 1310-2018'!E252,\"\")","v":0.02993949889957499},{"$f":"IF('IV. Country level, 1310-2018'!F250<0,'III. GDP shares, 1310-2018'!F252,\"\")","v":""},{"$f":"IF('IV. Country level, 1310-2018'!G250<0,'III. GDP shares, 1310-2018'!G252,\"\")","v":""},{"$f":"IF('IV. Country level, 1310-2018'!H250<0,'III. GDP shares, 1310-2018'!H252,\"\")","v":""},{"$f":"IF('IV. Country level, 1310-2018'!I250<0,'III. GDP shares, 1310-2018'!I252,\"\")","v":""},{"$f":"IF('IV. Country level, 1310-2018'!J250<0,'III. GDP shares, 1310-2018'!J252,\"\")","v":""},null,0.12314391874432483,{"v":0.1639030993430069,"d":"16.39%"},{"v":0.20250823357139602,"d":"20.25%"},{"v":0.21421122181457297,"d":"21.42%"},{"v":0.24072986554212542,"d":"24.07%"}]
[1557,{"$f":"IF('IV. Country level, 1310-2018'!C251<0,'III. GDP shares, 1310-2018'!C253,\"\")","v":""},{"$f":"IF('IV. Country level, 1310-2018'!D251<0,'III. GDP shares, 1310-2018'!D253,\"\")","v":""},{"$f":"IF('IV. Country level, 1310-2018'!E251<0,'III. GDP shares, 1310-2018'!E253,\"\")","v":""},{"$f":"IF('IV. Country level, 1310-2018'!F251<0,'III. GDP shares, 1310-2018'!F253,\"\")","v":""},{"$f":"IF('IV. Country level, 1310-2018'!G251<0,'III. GDP shares, 1310-2018'!G253,\"\")","v":""},{"$f":"IF('IV. Country level, 1310-2018'!H251<0,'III. GDP shares, 1310-2018'!H253,\"\")","v":""},{"$f":"IF('IV. Country level, 1310-2018'!I251<0,'III. GDP shares, 1310-2018'!I253,\"\")","v":0.11981624643892767},{"$f":"IF('IV. Country level, 1310-2018'!J251<0,'III. GDP shares, 1310-2018'!J253,\"\")","v":""},null,0.11981624643892767,{"v":0.1639030993430069,"d":"16.39%"},{"v":0.20250823357139602,"d":"20.25%"},{"v":0.20498303099357182,"d":"20.50%"},{"v":0.24072986554212542,"d":"24.07%"}]
[1558,{"$f":"IF('IV. Country level, 1310-2018'!C252<0,'III. GDP shares, 1310-2018'!C254,\"\")","v":""},{"$f":"IF('IV. Country level, 1310-2018'!D252<0,'III. GDP shares, 1310-2018'!D254,\"\")","v":""},{"$f":"IF('IV. Country level, 1310-2018'!E252<0,'III. GDP shares, 1310-2018'!E254,\"\")","v":""},{"$f":"IF('IV. Country level, 1310-2018'!F252<0,'III. GDP shares, 1310-2018'!F254,\"\")","v":""},{"$f":"IF('IV. Country level, 1310-2018'!G252<0,'III. GDP shares, 1310-2018'!G254,\"\")","v":""},{"$f":"IF('IV. Country level, 1310-2018'!H252<0,'III. GDP shares, 1310-2018'!H254,\"\")","v":""},{"$f":"IF('IV. Country level, 1310-2018'!I252<0,'III. GDP shares, 1310-2018'!I254,\"\")","v":""},{"$f":"IF('IV. Country level, 1310-2018'!J252<0,'III. GDP shares, 1310-2018'!J254,\"\")","v":""},null,0,{"v":0.1257280032755455,"d":"12.57%"},{"v":0.20250823357139602,"d":"20.25%"},{"v":0.20795439663163037,"d":"20.80%"},{"v":0.24072986554212542,"d":"24.07%"}]
[1559,{"$f":"IF('IV. Country level, 1310-2018'!C253<0,'III. GDP shares, 1310-2018'!C255,\"\")","v":""},{"$f":"IF('IV. Country level, 1310-2018'!D253<0,'III. GDP shares, 1310-2018'!D255,\"\")","v":""},{"$f":"IF('IV. Country level, 1310-2018'!E253<0,'III. GDP shares, 1310-2018'!E255,\"\")","v":0.030408377273606343},{"$f":"IF('IV. Country level, 1310-2018'!F253<0,'III. GDP shares, 1310-2018'!F255,\"\")","v":0.217255604461868},{"$f":"IF('IV. Country level, 1310-2018'!G253<0,'III. GDP shares, 1310-2018'!G255,\"\")","v":""},{"$f":"IF('IV. Country level, 1310-2018'!H253<0,'III. GDP shares, 1310-2018'!H255,\"\")","v":""},{"$f":"IF('IV. Country level, 1310-2018'!I253<0,'III. GDP shares, 1310-2018'!I255,\"\")","v":""},{"$f":"IF('IV. Country level, 1310-2018'!J253<0,'III. GDP shares, 1310-2018'!J255,\"\")","v":""},null,0.24766398173547435,{"v":0.08724248137668174,"d":"8.72%"},{"v":0.20250823357139602,"d":"20.25%"},{"v":0.2113445246989382,"d":"21.13%"},{"v":0.24072986554212542,"d":"24.07%"}]
[1560,{"$f":"IF('IV. Country level, 1310-2018'!C254<0,'III. GDP shares, 1310-2018'!C256,\"\")","v":""},{"$f":"IF('IV. Country level, 1310-2018'!D254<0,'III. GDP shares, 1310-2018'!D256,\"\")","v":""},{"$f":"IF('IV. Country level, 1310-2018'!E254<0,'III. GDP shares, 1310-2018'!E256,\"\")","v":""},{"$f":"IF('IV. Country level, 1310-2018'!F254<0,'III. GDP shares, 1310-2018'!F256,\"\")","v":""},{"$f":"IF('IV. Country level, 1310-2018'!G254<0,'III. GDP shares, 1310-2018'!G256,\"\")","v":""},{"$f":"IF('IV. Country level, 1310-2018'!H254<0,'III. GDP shares, 1310-2018'!H256,\"\")","v":""},{"$f":"IF('IV. Country level, 1310-2018'!I254<0,'III. GDP shares, 1310-2018'!I256,\"\")","v":""},{"$f":"IF('IV. Country level, 1310-2018'!J254<0,'III. GDP shares, 1310-2018'!J256,\"\")","v":""},null,0,{"v":0.06965049298463531,"d":"6.97%"},{"v":0.20250823357139602,"d":"20.25%"},{"v":0.20844845948835283,"d":"20.84%"},{"v":0.24072986554212542,"d":"24.07%"}]
[1561,{"$f":"IF('IV. Country level, 1310-2018'!C255<0,'III. GDP shares, 1310-2018'!C257,\"\")","v":""},{"$f":"IF('IV. Country level, 1310-2018'!D255<0,'III. GDP shares, 1310-2018'!D257,\"\")","v":""},{"$f":"IF('IV. Country level, 1310-2018'!E255<0,'III. GDP shares, 1310-2018'!E257,\"\")","v":""},{"$f":"IF('IV. Country level, 1310-2018'!F255<0,'III. GDP shares, 1310-2018'!F257,\"\")","v":""},{"$f":"IF('IV. Country level, 1310-2018'!G255<0,'III. GDP shares, 1310-2018'!G257,\"\")","v":""},{"$f":"IF('IV. Country level, 1310-2018'!H255<0,'III. GDP shares, 1310-2018'!H257,\"\")","v":""},{"$f":"IF('IV. Country level, 1310-2018'!I255<0,'III. GDP shares, 1310-2018'!I257,\"\")","v":""},{"$f":"IF('IV. Country level, 1310-2018'!J255<0,'III. GDP shares, 1310-2018'!J257,\"\")","v":""},null,0,{"v":0.05253388635050279,"d":"5.25%"},{"v":0.20250823357139602,"d":"20.25%"},{"v":0.20860182004842598,"d":"20.86%"},{"v":0.24072986554212542,"d":"24.07%"}]
[1562,{"$f":"IF('IV. Country level, 1310-2018'!C256<0,'III. GDP shares, 1310-2018'!C258,\"\")","v":""},{"$f":"IF('IV. Country level, 1310-2018'!D256<0,'III. GDP shares, 1310-2018'!D258,\"\")","v":""},{"$f":"IF('IV. Country level, 1310-2018'!E256<0,'III. GDP shares, 1310-2018'!E258,\"\")","v":""},{"$f":"IF('IV. Country level, 1310-2018'!F256<0,'III. GDP shares, 1310-2018'!F258,\"\")","v":""},{"$f":"IF('IV. Country level, 1310-2018'!G256<0,'III. GDP shares, 1310-2018'!G258,\"\")","v":""},{"$f":"IF('IV. Country level, 1310-2018'!H256<0,'III. GDP shares, 1310-2018'!H258,\"\")","v":""},{"$f":"IF('IV. Country level, 1310-2018'!I256<0,'III. GDP shares, 1310-2018'!I258,\"\")","v":0.12007322271804521},{"$f":"IF('IV. Country level, 1310-2018'!J256<0,'III. GDP shares, 1310-2018'!J258,\"\")","v":""},null,0.12007322271804521,{"v":0.09596596088889497,"d":"9.60%"},{"v":0.20250823357139602,"d":"20.25%"},{"v":0.21372584776237155,"d":"21.37%"},{"v":0.24072986554212542,"d":"24.07%"}]
[1563,{"$f":"IF('IV. Country level, 1310-2018'!C257<0,'III. GDP shares, 1310-2018'!C259,\"\")","v":""},{"$f":"IF('IV. Country level, 1310-2018'!D257<0,'III. GDP shares, 1310-2018'!D259,\"\")","v":""},{"$f":"IF('IV. Country level, 1310-2018'!E257<0,'III. GDP shares, 1310-2018'!E259,\"\")","v":""},{"$f":"IF('IV. Country level, 1310-2018'!F257<0,'III. GDP shares, 1310-2018'!F259,\"\")","v":""},{"$f":"IF('IV. Country level, 1310-2018'!G257<0,'III. GDP shares, 1310-2018'!G259,\"\")","v":""},{"$f":"IF('IV. Country level, 1310-2018'!H257<0,'III. GDP shares, 1310-2018'!H259,\"\")","v":""},{"$f":"IF('IV. Country level, 1310-2018'!I257<0,'III. GDP shares, 1310-2018'!I259,\"\")","v":""},{"$f":"IF('IV. Country level, 1310-2018'!J257<0,'III. GDP shares, 1310-2018'!J259,\"\")","v":""},null,0,{"v":0.14780123018399088,"d":"14.78%"},{"v":0.20250823357139602,"d":"20.25%"},{"v":0.21618565826588662,"d":"21.62%"},{"v":0.24072986554212542,"d":"24.07%"}]
[1564,{"$f":"IF('IV. Country level, 1310-2018'!C258<0,'III. GDP shares, 1310-2018'!C260,\"\")","v":""},{"$f":"IF('IV. Country level, 1310-2018'!D258<0,'III. GDP shares, 1310-2018'!D260,\"\")","v":""},{"$f":"IF('IV. Country level, 1310-2018'!E258<0,'III. GDP shares, 1310-2018'!E260,\"\")","v":""},{"$f":"IF('IV. Country level, 1310-2018'!F258<0,'III. GDP shares, 1310-2018'!F260,\"\")","v":""},{"$f":"IF('IV. Country level, 1310-2018'!G258<0,'III. GDP shares, 1310-2018'!G260,\"\")","v":""},{"$f":"IF('IV. Country level, 1310-2018'!H258<0,'III. GDP shares, 1310-2018'!H260,\"\")","v":""},{"$f":"IF('IV. Country level, 1310-2018'!I258<0,'III. GDP shares, 1310-2018'!I260,\"\")","v":""},{"$f":"IF('IV. Country level, 1310-2018'!J258<0,'III. GDP shares, 1310-2018'!J260,\"\")","v":""},null,0,{"v":0.18341447021352547,"d":"18.34%"},{"v":0.20250823357139602,"d":"20.25%"},{"v":0.2090019897338049,"d":"20.90%"},{"v":0.24072986554212542,"d":"24.07%"}]
[1565,{"$f":"IF('IV. Country level, 1310-2018'!C259<0,'III. GDP shares, 1310-2018'!C261,\"\")","v":""},{"$f":"IF('IV. Country level, 1310-2018'!D259<0,'III. GDP shares, 1310-2018'!D261,\"\")","v":""},{"$f":"IF('IV. Country level, 1310-2018'!E259<0,'III. GDP shares, 1310-2018'!E261,\"\")","v":0.031314776283879416},{"$f":"IF('IV. Country level, 1310-2018'!F259<0,'III. GDP shares, 1310-2018'!F261,\"\")","v":""},{"$f":"IF('IV. Country level, 1310-2018'!G259<0,'III. GDP shares, 1310-2018'!G261,\"\")","v":0.2727097454848659},{"$f":"IF('IV. Country level, 1310-2018'!H259<0,'III. GDP shares, 1310-2018'!H261,\"\")","v":""},{"$f":"IF('IV. Country level, 1310-2018'!I259<0,'III. GDP shares, 1310-2018'!I261,\"\")","v":""},{"$f":"IF('IV. Country level, 1310-2018'!J259<0,'III. GDP shares, 1310-2018'!J261,\"\")","v":""},null,0.3040245217687453,{"v":0.18341447021352547,"d":"18.34%"},{"v":0.20250823357139602,"d":"20.25%"},{"v":0.21202550618311233,"d":"21.20%"},{"$f":"AVERAGE(L$196:L$295)","v":{"v":0.24072986554212542,"d":"24.07%"}}]
[1566,{"$f":"IF('IV. Country level, 1310-2018'!C260<0,'III. GDP shares, 1310-2018'!C262,\"\")","v":""},{"$f":"IF('IV. Country level, 1310-2018'!D260<0,'III. GDP shares, 1310-2018'!D262,\"\")","v":""},{"$f":"IF('IV. Country level, 1310-2018'!E260<0,'III. GDP shares, 1310-2018'!E262,\"\")","v":""},{"$f":"IF('IV. Country level, 1310-2018'!F260<0,'III. GDP shares, 1310-2018'!F262,\"\")","v":0.217632439870263},{"$f":"IF('IV. Country level, 1310-2018'!G260<0,'III. GDP shares, 1310-2018'!G262,\"\")","v":0.27260647218594936},{"$f":"IF('IV. Country level, 1310-2018'!H260<0,'III. GDP shares, 1310-2018'!H262,\"\")","v":""},{"$f":"IF('IV. Country level, 1310-2018'!I260<0,'III. GDP shares, 1310-2018'!I262,\"\")","v":0.12027195474493342},{"$f":"IF('IV. Country level, 1310-2018'!J260<0,'III. GDP shares, 1310-2018'!J262,\"\")","v":""},null,0.6105108668011459,{"v":0.23463442621960992,"d":"23.46%"},{"v":0.20250823357139602,"d":"20.25%"},{"v":0.19819734272797931,"d":"19.82%"},{"v":0.24072986554212542,"d":"24.07%"}]
[1567,{"$f":"IF('IV. Country level, 1310-2018'!C261<0,'III. GDP shares, 1310-2018'!C263,\"\")","v":""},{"$f":"IF('IV. Country level, 1310-2018'!D261<0,'III. GDP shares, 1310-2018'!D263,\"\")","v":""},{"$f":"IF('IV. Country level, 1310-2018'!E261<0,'III. GDP shares, 1310-2018'!E263,\"\")","v":0.03160799503545246},{"$f":"IF('IV. Country level, 1310-2018'!F261<0,'III. GDP shares, 1310-2018'!F263,\"\")","v":0.2176846851712897},{"$f":"IF('IV. Country level, 1310-2018'!G261<0,'III. GDP shares, 1310-2018'!G263,\"\")","v":""},{"$f":"IF('IV. Country level, 1310-2018'!H261<0,'III. GDP shares, 1310-2018'!H263,\"\")","v":""},{"$f":"IF('IV. Country level, 1310-2018'!I261<0,'III. GDP shares, 1310-2018'!I263,\"\")","v":""},{"$f":"IF('IV. Country level, 1310-2018'!J261<0,'III. GDP shares, 1310-2018'!J263,\"\")","v":""},null,{"$f":"SUM(B263:I263)","v":0.24929268020674217},{"v":0.3075347130407707,"d":"30.75%"},{"v":0.20250823357139602,"d":"20.25%"},{"v":0.18333535618512503,"d":"18.33%"},{"v":0.24072986554212542,"d":"24.07%"}]
[1568,{"$f":"IF('IV. Country level, 1310-2018'!C262<0,'III. GDP shares, 1310-2018'!C264,\"\")","v":""},{"$f":"IF('IV. Country level, 1310-2018'!D262<0,'III. GDP shares, 1310-2018'!D264,\"\")","v":""},{"$f":"IF('IV. Country level, 1310-2018'!E262<0,'III. GDP shares, 1310-2018'!E264,\"\")","v":""},{"$f":"IF('IV. Country level, 1310-2018'!F262<0,'III. GDP shares, 1310-2018'!F264,\"\")","v":""},{"$f":"IF('IV. Country level, 1310-2018'!G262<0,'III. GDP shares, 1310-2018'!G264,\"\")","v":""},{"$f":"IF('IV. Country level, 1310-2018'!H262<0,'III. GDP shares, 1310-2018'!H264,\"\")","v":""},{"$f":"IF('IV. Country level, 1310-2018'!I262<0,'III. GDP shares, 1310-2018'!I264,\"\")","v":""},{"$f":"IF('IV. Country level, 1310-2018'!J262<0,'III. GDP shares, 1310-2018'!J264,\"\")","v":""},null,0,{"v":0.32475074791890474,"d":"32.48%"},{"v":0.20250823357139602,"d":"20.25%"},{"v":0.1731446229528047,"d":"17.31%"},{"v":0.24072986554212542,"d":"24.07%"}]
[1569,{"$f":"IF('IV. Country level, 1310-2018'!C263<0,'III. GDP shares, 1310-2018'!C265,\"\")","v":0.2608248866217749},{"$f":"IF('IV. Country level, 1310-2018'!D263<0,'III. GDP shares, 1310-2018'!D265,\"\")","v":""},{"$f":"IF('IV. Country level, 1310-2018'!E263<0,'III. GDP shares, 1310-2018'!E265,\"\")","v":""},{"$f":"IF('IV. Country level, 1310-2018'!F263<0,'III. GDP shares, 1310-2018'!F265,\"\")","v":0.21778802813886128},{"$f":"IF('IV. Country level, 1310-2018'!G263<0,'III. GDP shares, 1310-2018'!G265,\"\")","v":""},{"$f":"IF('IV. Country level, 1310-2018'!H263<0,'III. GDP shares, 1310-2018'!H265,\"\")","v":""},{"$f":"IF('IV. Country level, 1310-2018'!I263<0,'III. GDP shares, 1310-2018'!I265,\"\")","v":""},{"$f":"IF('IV. Country level, 1310-2018'!J263<0,'III. GDP shares, 1310-2018'!J265,\"\")","v":""},null,0.47861291476063617,{"v":0.29987150094031556,"d":"29.99%"},{"$f":"AVERAGE(L$9:L$714)","v":{"v":0.20250823357139602,"d":"20.25%"}},{"v":0.1731446229528047,"d":"17.31%"},{"v":0.24072986554212542,"d":"24.07%"}]
[1570,{"$f":"IF('IV. Country level, 1310-2018'!C264<0,'III. GDP shares, 1310-2018'!C266,\"\")","v":0.2604230721928427},{"$f":"IF('IV. Country level, 1310-2018'!D264<0,'III. GDP shares, 1310-2018'!D266,\"\")","v":""},{"$f":"IF('IV. Country level, 1310-2018'!E264<0,'III. GDP shares, 1310-2018'!E266,\"\")","v":0.03203980137744437},{"$f":"IF('IV. Country level, 1310-2018'!F264<0,'III. GDP shares, 1310-2018'!F266,\"\")","v":0.21783913417783793},{"$f":"IF('IV. Country level, 1310-2018'!G264<0,'III. GDP shares, 1310-2018'!G266,\"\")","v":""},{"$f":"IF('IV. Country level, 1310-2018'!H264<0,'III. GDP shares, 1310-2018'!H266,\"\")","v":""},{"$f":"IF('IV. Country level, 1310-2018'!I264<0,'III. GDP shares, 1310-2018'!I266,\"\")","v":""},{"$f":"IF('IV. Country level, 1310-2018'!J264<0,'III. GDP shares, 1310-2018'!J266,\"\")","v":""},null,0.5103020077481251,{"$f":"AVERAGE(K263:K269)","v":{"v":0.25613661795310366,"d":"25.61%"}},{"v":0.20250823357139602,"d":"20.25%"},{"v":0.19873930832410225,"d":"19.87%"},{"v":0.24072986554212542,"d":"24.07%"}]
[1571,{"$f":"IF('IV. Country level, 1310-2018'!C265<0,'III. GDP shares, 1310-2018'!C267,\"\")","v":""},{"$f":"IF('IV. Country level, 1310-2018'!D265<0,'III. GDP shares, 1310-2018'!D267,\"\")","v":""},{"$f":"IF('IV. Country level, 1310-2018'!E265<0,'III. GDP shares, 1310-2018'!E267,\"\")","v":""},{"$f":"IF('IV. Country level, 1310-2018'!F265<0,'III. GDP shares, 1310-2018'!F267,\"\")","v":""},{"$f":"IF('IV. Country level, 1310-2018'!G265<0,'III. GDP shares, 1310-2018'!G267,\"\")","v":""},{"$f":"IF('IV. Country level, 1310-2018'!H265<0,'III. GDP shares, 1310-2018'!H267,\"\")","v":""},{"$f":"IF('IV. Country level, 1310-2018'!I265<0,'III. GDP shares, 1310-2018'!I267,\"\")","v":0.12051224414693838},{"$f":"IF('IV. Country level, 1310-2018'!J265<0,'III. GDP shares, 1310-2018'!J267,\"\")","v":""},null,0.12051224414693838,{"v":0.23453124450298807,"d":"23.45%"},{"v":0.20250823357139602,"d":"20.25%"},{"v":0.19988156754232905,"d":"19.99%"},{"v":0.24072986554212542,"d":"24.07%"}]
[1572,{"$f":"IF('IV. Country level, 1310-2018'!C266<0,'III. GDP shares, 1310-2018'!C268,\"\")","v":""},{"$f":"IF('IV. Country level, 1310-2018'!D266<0,'III. GDP shares, 1310-2018'!D268,\"\")","v":0.09754733294110207},{"$f":"IF('IV. Country level, 1310-2018'!E266<0,'III. GDP shares, 1310-2018'!E268,\"\")","v":0.03232245997751921},{"$f":"IF('IV. Country level, 1310-2018'!F266<0,'III. GDP shares, 1310-2018'!F268,\"\")","v":""},{"$f":"IF('IV. Country level, 1310-2018'!G266<0,'III. GDP shares, 1310-2018'!G268,\"\")","v":""},{"$f":"IF('IV. Country level, 1310-2018'!H266<0,'III. GDP shares, 1310-2018'!H268,\"\")","v":""},{"$f":"IF('IV. Country level, 1310-2018'!I266<0,'III. GDP shares, 1310-2018'!I268,\"\")","v":""},{"$f":"IF('IV. Country level, 1310-2018'!J266<0,'III. GDP shares, 1310-2018'!J268,\"\")","v":""},null,0.12986979291862127,{"v":0.2714536992598378,"d":"27.15%"},{"v":0.20250823357139602,"d":"20.25%"},{"v":0.1880793894814172,"d":"18.81%"},{"v":0.24072986554212542,"d":"24.07%"}]
[1573,{"$f":"IF('IV. Country level, 1310-2018'!C267<0,'III. GDP shares, 1310-2018'!C269,\"\")","v":""},{"$f":"IF('IV. Country level, 1310-2018'!D267<0,'III. GDP shares, 1310-2018'!D269,\"\")","v":""},{"$f":"IF('IV. Country level, 1310-2018'!E267<0,'III. GDP shares, 1310-2018'!E269,\"\")","v":0.03246225944184007},{"$f":"IF('IV. Country level, 1310-2018'!F267<0,'III. GDP shares, 1310-2018'!F269,\"\")","v":""},{"$f":"IF('IV. Country level, 1310-2018'!G267<0,'III. GDP shares, 1310-2018'!G269,\"\")","v":0.2719044264488225},{"$f":"IF('IV. Country level, 1310-2018'!H267<0,'III. GDP shares, 1310-2018'!H269,\"\")","v":""},{"$f":"IF('IV. Country level, 1310-2018'!I267<0,'III. GDP shares, 1310-2018'!I269,\"\")","v":""},{"$f":"IF('IV. Country level, 1310-2018'!J267<0,'III. GDP shares, 1310-2018'!J269,\"\")","v":""},null,0.30436668589066257,{"v":0.22032956233089607,"d":"22.03%"},{"v":0.20250823357139602,"d":"20.25%"},{"v":0.20232844586903,"d":"20.23%"},{"v":0.24072986554212542,"d":"24.07%"}]
[1574,{"$f":"IF('IV. Country level, 1310-2018'!C268<0,'III. GDP shares, 1310-2018'!C270,\"\")","v":""},{"$f":"IF('IV. Country level, 1310-2018'!D268<0,'III. GDP shares, 1310-2018'!D270,\"\")","v":0.09805506605593287},{"$f":"IF('IV. Country level, 1310-2018'!E268<0,'III. GDP shares, 1310-2018'!E270,\"\")","v":""},{"$f":"IF('IV. Country level, 1310-2018'!F268<0,'III. GDP shares, 1310-2018'!F270,\"\")","v":""},{"$f":"IF('IV. Country level, 1310-2018'!G268<0,'III. GDP shares, 1310-2018'!G270,\"\")","v":""},{"$f":"IF('IV. Country level, 1310-2018'!H268<0,'III. GDP shares, 1310-2018'!H270,\"\")","v":""},{"$f":"IF('IV. Country level, 1310-2018'!I268<0,'III. GDP shares, 1310-2018'!I270,\"\")","v":""},{"$f":"IF('IV. Country level, 1310-2018'!J268<0,'III. GDP shares, 1310-2018'!J270,\"\")","v":""},null,0.09805506605593287,{"v":0.15214520584225297,"d":"15.21%"},{"v":0.20250823357139602,"d":"20.25%"},{"v":0.22532338257914944,"d":"22.53%"},{"v":0.24072986554212542,"d":"24.07%"}]
[1575,{"$f":"IF('IV. Country level, 1310-2018'!C269<0,'III. GDP shares, 1310-2018'!C271,\"\")","v":0.25845718329794815},{"$f":"IF('IV. Country level, 1310-2018'!D269<0,'III. GDP shares, 1310-2018'!D271,\"\")","v":""},{"$f":"IF('IV. Country level, 1310-2018'!E269<0,'III. GDP shares, 1310-2018'!E271,\"\")","v":""},{"$f":"IF('IV. Country level, 1310-2018'!F269<0,'III. GDP shares, 1310-2018'!F271,\"\")","v":""},{"$f":"IF('IV. Country level, 1310-2018'!G269<0,'III. GDP shares, 1310-2018'!G271,\"\")","v":""},{"$f":"IF('IV. Country level, 1310-2018'!H269<0,'III. GDP shares, 1310-2018'!H271,\"\")","v":""},{"$f":"IF('IV. Country level, 1310-2018'!I269<0,'III. GDP shares, 1310-2018'!I271,\"\")","v":""},{"$f":"IF('IV. Country level, 1310-2018'!J269<0,'III. GDP shares, 1310-2018'!J271,\"\")","v":""},null,0.25845718329794815,{"v":0.18894994756212927,"d":"18.89%"},{"v":0.20250823357139602,"d":"20.25%"},{"v":0.2411678073835993,"d":"24.12%"},{"v":0.24072986554212542,"d":"24.07%"}]
[1576,{"$f":"IF('IV. Country level, 1310-2018'!C270<0,'III. GDP shares, 1310-2018'!C272,\"\")","v":""},{"$f":"IF('IV. Country level, 1310-2018'!D270<0,'III. GDP shares, 1310-2018'!D272,\"\")","v":""},{"$f":"IF('IV. Country level, 1310-2018'!E270<0,'III. GDP shares, 1310-2018'!E272,\"\")","v":""},{"$f":"IF('IV. Country level, 1310-2018'!F270<0,'III. GDP shares, 1310-2018'!F272,\"\")","v":""},{"$f":"IF('IV. Country level, 1310-2018'!G270<0,'III. GDP shares, 1310-2018'!G272,\"\")","v":""},{"$f":"IF('IV. Country level, 1310-2018'!H270<0,'III. GDP shares, 1310-2018'!H272,\"\")","v":""},{"$f":"IF('IV. Country level, 1310-2018'!I270<0,'III. GDP shares, 1310-2018'!I272,\"\")","v":0.12074395625804407},{"$f":"IF('IV. Country level, 1310-2018'!J270<0,'III. GDP shares, 1310-2018'!J272,\"\")","v":""},null,0.12074395625804407,{"v":0.2382853065796697,"d":"23.83%"},{"v":0.20250823357139602,"d":"20.25%"},{"v":0.23734262175652343,"d":"23.73%"},{"v":0.24072986554212542,"d":"24.07%"}]
[1577,{"$f":"IF('IV. Country level, 1310-2018'!C271<0,'III. GDP shares, 1310-2018'!C273,\"\")","v":""},{"$f":"IF('IV. Country level, 1310-2018'!D271<0,'III. GDP shares, 1310-2018'!D273,\"\")","v":""},{"$f":"IF('IV. Country level, 1310-2018'!E271<0,'III. GDP shares, 1310-2018'!E273,\"\")","v":0.03301151232762334},{"$f":"IF('IV. Country level, 1310-2018'!F271<0,'III. GDP shares, 1310-2018'!F273,\"\")","v":""},{"$f":"IF('IV. Country level, 1310-2018'!G271<0,'III. GDP shares, 1310-2018'!G273,\"\")","v":""},{"$f":"IF('IV. Country level, 1310-2018'!H271<0,'III. GDP shares, 1310-2018'!H273,\"\")","v":""},{"$f":"IF('IV. Country level, 1310-2018'!I271<0,'III. GDP shares, 1310-2018'!I273,\"\")","v":""},{"$f":"IF('IV. Country level, 1310-2018'!J271<0,'III. GDP shares, 1310-2018'!J273,\"\")","v":""},null,0.03301151232762334,{"v":0.1995776805621118,"d":"19.96%"},{"v":0.20250823357139602,"d":"20.25%"},{"v":0.2450389940131257,"d":"24.50%"},{"v":0.24072986554212542,"d":"24.07%"}]
[1578,{"$f":"IF('IV. Country level, 1310-2018'!C272<0,'III. GDP shares, 1310-2018'!C274,\"\")","v":0.25731109458042484},{"$f":"IF('IV. Country level, 1310-2018'!D272<0,'III. GDP shares, 1310-2018'!D274,\"\")","v":""},{"$f":"IF('IV. Country level, 1310-2018'!E272<0,'III. GDP shares, 1310-2018'!E274,\"\")","v":""},{"$f":"IF('IV. Country level, 1310-2018'!F272<0,'III. GDP shares, 1310-2018'!F274,\"\")","v":""},{"$f":"IF('IV. Country level, 1310-2018'!G272<0,'III. GDP shares, 1310-2018'!G274,\"\")","v":""},{"$f":"IF('IV. Country level, 1310-2018'!H272<0,'III. GDP shares, 1310-2018'!H274,\"\")","v":""},{"$f":"IF('IV. Country level, 1310-2018'!I272<0,'III. GDP shares, 1310-2018'!I274,\"\")","v":0.12083434160564774},{"$f":"IF('IV. Country level, 1310-2018'!J272<0,'III. GDP shares, 1310-2018'!J274,\"\")","v":""},null,0.37814543618607255,{"v":0.19982353438657055,"d":"19.98%"},{"v":0.20250823357139602,"d":"20.25%"},{"v":0.25290120407917055,"d":"25.29%"},{"v":0.24072986554212542,"d":"24.07%"}]
[1579,{"$f":"IF('IV. Country level, 1310-2018'!C273<0,'III. GDP shares, 1310-2018'!C275,\"\")","v":0.25693446193427827},{"$f":"IF('IV. Country level, 1310-2018'!D273<0,'III. GDP shares, 1310-2018'!D275,\"\")","v":""},{"$f":"IF('IV. Country level, 1310-2018'!E273<0,'III. GDP shares, 1310-2018'!E275,\"\")","v":""},{"$f":"IF('IV. Country level, 1310-2018'!F273<0,'III. GDP shares, 1310-2018'!F275,\"\")","v":0.21828284410712606},{"$f":"IF('IV. Country level, 1310-2018'!G273<0,'III. GDP shares, 1310-2018'!G275,\"\")","v":""},{"$f":"IF('IV. Country level, 1310-2018'!H273<0,'III. GDP shares, 1310-2018'!H275,\"\")","v":""},{"$f":"IF('IV. Country level, 1310-2018'!I273<0,'III. GDP shares, 1310-2018'!I275,\"\")","v":""},{"$f":"IF('IV. Country level, 1310-2018'!J273<0,'III. GDP shares, 1310-2018'!J275,\"\")","v":""},null,0.47521730604140433,{"v":0.18018841132173155,"d":"18.02%"},{"v":0.20250823357139602,"d":"20.25%"},{"v":0.26106651690418375,"d":"26.11%"},{"v":0.24072986554212542,"d":"24.07%"}]
[1580,{"$f":"IF('IV. Country level, 1310-2018'!C274<0,'III. GDP shares, 1310-2018'!C276,\"\")","v":""},{"$f":"IF('IV. Country level, 1310-2018'!D274<0,'III. GDP shares, 1310-2018'!D276,\"\")","v":""},{"$f":"IF('IV. Country level, 1310-2018'!E274<0,'III. GDP shares, 1310-2018'!E276,\"\")","v":0.03341330376775698},{"$f":"IF('IV. Country level, 1310-2018'!F274<0,'III. GDP shares, 1310-2018'!F276,\"\")","v":""},{"$f":"IF('IV. Country level, 1310-2018'!G274<0,'III. GDP shares, 1310-2018'!G276,\"\")","v":""},{"$f":"IF('IV. Country level, 1310-2018'!H274<0,'III. GDP shares, 1310-2018'!H276,\"\")","v":""},{"$f":"IF('IV. Country level, 1310-2018'!I274<0,'III. GDP shares, 1310-2018'!I276,\"\")","v":""},{"$f":"IF('IV. Country level, 1310-2018'!J274<0,'III. GDP shares, 1310-2018'!J276,\"\")","v":""},null,0.03341330376775698,{"v":0.18023281706713118,"d":"18.02%"},{"v":0.20250823357139602,"d":"20.25%"},{"v":0.26867002252045735,"d":"26.87%"},{"v":0.24072986554212542,"d":"24.07%"}]
[1581,{"$f":"IF('IV. Country level, 1310-2018'!C275<0,'III. GDP shares, 1310-2018'!C277,\"\")","v":""},{"$f":"IF('IV. Country level, 1310-2018'!D275<0,'III. GDP shares, 1310-2018'!D277,\"\")","v":0.09977604282714442},{"$f":"IF('IV. Country level, 1310-2018'!E275<0,'III. GDP shares, 1310-2018'!E277,\"\")","v":""},{"$f":"IF('IV. Country level, 1310-2018'!F275<0,'III. GDP shares, 1310-2018'!F277,\"\")","v":""},{"$f":"IF('IV. Country level, 1310-2018'!G275<0,'III. GDP shares, 1310-2018'!G277,\"\")","v":""},{"$f":"IF('IV. Country level, 1310-2018'!H275<0,'III. GDP shares, 1310-2018'!H277,\"\")","v":""},{"$f":"IF('IV. Country level, 1310-2018'!I275<0,'III. GDP shares, 1310-2018'!I277,\"\")","v":""},{"$f":"IF('IV. Country level, 1310-2018'!J275<0,'III. GDP shares, 1310-2018'!J277,\"\")","v":""},null,0.09977604282714442,{"v":0.17551688673461355,"d":"17.55%"},{"v":0.20250823357139602,"d":"20.25%"},{"v":0.28047399174046483,"d":"28.05%"},{"v":0.24072986554212542,"d":"24.07%"}]
[1582,{"$f":"IF('IV. Country level, 1310-2018'!C276<0,'III. GDP shares, 1310-2018'!C278,\"\")","v":""},{"$f":"IF('IV. Country level, 1310-2018'!D276<0,'III. GDP shares, 1310-2018'!D278,\"\")","v":""},{"$f":"IF('IV. Country level, 1310-2018'!E276<0,'III. GDP shares, 1310-2018'!E278,\"\")","v":""},{"$f":"IF('IV. Country level, 1310-2018'!F276<0,'III. GDP shares, 1310-2018'!F278,\"\")","v":""},{"$f":"IF('IV. Country level, 1310-2018'!G276<0,'III. GDP shares, 1310-2018'!G278,\"\")","v":""},{"$f":"IF('IV. Country level, 1310-2018'!H276<0,'III. GDP shares, 1310-2018'!H278,\"\")","v":""},{"$f":"IF('IV. Country level, 1310-2018'!I276<0,'III. GDP shares, 1310-2018'!I278,\"\")","v":0.12101132184407486},{"$f":"IF('IV. Country level, 1310-2018'!J276<0,'III. GDP shares, 1310-2018'!J278,\"\")","v":""},null,0.12101132184407486,{"v":0.12149611013660315,"d":"12.15%"},{"v":0.20250823357139602,"d":"20.25%"},{"v":0.2815885559904373,"d":"28.16%"},{"v":0.24072986554212542,"d":"24.07%"}]
[1583,{"$f":"IF('IV. Country level, 1310-2018'!C277<0,'III. GDP shares, 1310-2018'!C279,\"\")","v":""},{"$f":"IF('IV. Country level, 1310-2018'!D277<0,'III. GDP shares, 1310-2018'!D279,\"\")","v":""},{"$f":"IF('IV. Country level, 1310-2018'!E277<0,'III. GDP shares, 1310-2018'!E279,\"\")","v":""},{"$f":"IF('IV. Country level, 1310-2018'!F277<0,'III. GDP shares, 1310-2018'!F279,\"\")","v":""},{"$f":"IF('IV. Country level, 1310-2018'!G277<0,'III. GDP shares, 1310-2018'!G279,\"\")","v":""},{"$f":"IF('IV. Country level, 1310-2018'!H277<0,'III. GDP shares, 1310-2018'!H279,\"\")","v":""},{"$f":"IF('IV. Country level, 1310-2018'!I277<0,'III. GDP shares, 1310-2018'!I279,\"\")","v":0.12105479647584162},{"$f":"IF('IV. Country level, 1310-2018'!J277<0,'III. GDP shares, 1310-2018'!J279,\"\")","v":""},null,0.12105479647584162,{"v":0.1742685831668053,"d":"17.43%"},{"v":0.20250823357139602,"d":"20.25%"},{"$f":"AVERAGE(K263:K295)","v":{"v":0.26677645041016385,"d":"26.68%"}},{"v":0.24072986554212542,"d":"24.07%"}]
[1584,{"$f":"IF('IV. Country level, 1310-2018'!C278<0,'III. GDP shares, 1310-2018'!C280,\"\")","v":""},{"$f":"IF('IV. Country level, 1310-2018'!D278<0,'III. GDP shares, 1310-2018'!D280,\"\")","v":""},{"$f":"IF('IV. Country level, 1310-2018'!E278<0,'III. GDP shares, 1310-2018'!E280,\"\")","v":""},{"$f":"IF('IV. Country level, 1310-2018'!F278<0,'III. GDP shares, 1310-2018'!F280,\"\")","v":""},{"$f":"IF('IV. Country level, 1310-2018'!G278<0,'III. GDP shares, 1310-2018'!G280,\"\")","v":""},{"$f":"IF('IV. Country level, 1310-2018'!H278<0,'III. GDP shares, 1310-2018'!H280,\"\")","v":""},{"$f":"IF('IV. Country level, 1310-2018'!I278<0,'III. GDP shares, 1310-2018'!I280,\"\")","v":""},{"$f":"IF('IV. Country level, 1310-2018'!J278<0,'III. GDP shares, 1310-2018'!J280,\"\")","v":""},null,0,{"v":0.21305528643908503,"d":"21.31%"},{"v":0.20250823357139602,"d":"20.25%"},{"v":0.25922212676753537,"d":"25.92%"},{"v":0.24072986554212542,"d":"24.07%"}]
[1585,{"$f":"IF('IV. Country level, 1310-2018'!C279<0,'III. GDP shares, 1310-2018'!C281,\"\")","v":""},{"$f":"IF('IV. Country level, 1310-2018'!D279<0,'III. GDP shares, 1310-2018'!D281,\"\")","v":""},{"$f":"IF('IV. Country level, 1310-2018'!E279<0,'III. GDP shares, 1310-2018'!E281,\"\")","v":""},{"$f":"IF('IV. Country level, 1310-2018'!F279<0,'III. GDP shares, 1310-2018'!F281,\"\")","v":""},{"$f":"IF('IV. Country level, 1310-2018'!G279<0,'III. GDP shares, 1310-2018'!G281,\"\")","v":""},{"$f":"IF('IV. Country level, 1310-2018'!H279<0,'III. GDP shares, 1310-2018'!H281,\"\")","v":""},{"$f":"IF('IV. Country level, 1310-2018'!I279<0,'III. GDP shares, 1310-2018'!I281,\"\")","v":""},{"$f":"IF('IV. Country level, 1310-2018'!J279<0,'III. GDP shares, 1310-2018'!J281,\"\")","v":""},null,0,{"v":0.19880156603520724,"d":"19.88%"},{"v":0.20250823357139602,"d":"20.25%"},{"v":0.266770723233868,"d":"26.68%"},{"v":0.24072986554212542,"d":"24.07%"}]
[1586,{"$f":"IF('IV. Country level, 1310-2018'!C280<0,'III. GDP shares, 1310-2018'!C282,\"\")","v":0.2543707258687713},{"$f":"IF('IV. Country level, 1310-2018'!D280<0,'III. GDP shares, 1310-2018'!D282,\"\")","v":0.10095447124239601},{"$f":"IF('IV. Country level, 1310-2018'!E280<0,'III. GDP shares, 1310-2018'!E282,\"\")","v":""},{"$f":"IF('IV. Country level, 1310-2018'!F280<0,'III. GDP shares, 1310-2018'!F282,\"\")","v":0.21860892098703744},{"$f":"IF('IV. Country level, 1310-2018'!G280<0,'III. GDP shares, 1310-2018'!G282,\"\")","v":0.27069049915461435},{"$f":"IF('IV. Country level, 1310-2018'!H280<0,'III. GDP shares, 1310-2018'!H282,\"\")","v":""},{"$f":"IF('IV. Country level, 1310-2018'!I280<0,'III. GDP shares, 1310-2018'!I282,\"\")","v":""},{"$f":"IF('IV. Country level, 1310-2018'!J280<0,'III. GDP shares, 1310-2018'!J282,\"\")","v":""},null,0.8446246172528191,{"v":0.26628034570541786,"d":"26.63%"},{"v":0.20250823357139602,"d":"20.25%"},{"v":0.25980100402701306,"d":"25.98%"},{"v":0.24072986554212542,"d":"24.07%"}]
[1587,{"$f":"IF('IV. Country level, 1310-2018'!C281<0,'III. GDP shares, 1310-2018'!C283,\"\")","v":""},{"$f":"IF('IV. Country level, 1310-2018'!D281<0,'III. GDP shares, 1310-2018'!D283,\"\")","v":""},{"$f":"IF('IV. Country level, 1310-2018'!E281<0,'III. GDP shares, 1310-2018'!E283,\"\")","v":0.03431861633349222},{"$f":"IF('IV. Country level, 1310-2018'!F281<0,'III. GDP shares, 1310-2018'!F283,\"\")","v":""},{"$f":"IF('IV. Country level, 1310-2018'!G281<0,'III. GDP shares, 1310-2018'!G283,\"\")","v":0.27060161034022306},{"$f":"IF('IV. Country level, 1310-2018'!H281<0,'III. GDP shares, 1310-2018'!H283,\"\")","v":""},{"$f":"IF('IV. Country level, 1310-2018'!I281<0,'III. GDP shares, 1310-2018'!I283,\"\")","v":""},{"$f":"IF('IV. Country level, 1310-2018'!J281<0,'III. GDP shares, 1310-2018'!J283,\"\")","v":""},null,0.30492022667371527,{"v":0.3745081116192787,"d":"37.45%"},{"v":0.20250823357139602,"d":"20.25%"},{"v":0.24801030215356518,"d":"24.80%"},{"v":0.24072986554212542,"d":"24.07%"}]
[1588,{"$f":"IF('IV. Country level, 1310-2018'!C282<0,'III. GDP shares, 1310-2018'!C284,\"\")","v":""},{"$f":"IF('IV. Country level, 1310-2018'!D282<0,'III. GDP shares, 1310-2018'!D284,\"\")","v":""},{"$f":"IF('IV. Country level, 1310-2018'!E282<0,'III. GDP shares, 1310-2018'!E284,\"\")","v":""},{"$f":"IF('IV. Country level, 1310-2018'!F282<0,'III. GDP shares, 1310-2018'!F284,\"\")","v":""},{"$f":"IF('IV. Country level, 1310-2018'!G282<0,'III. GDP shares, 1310-2018'!G284,\"\")","v":""},{"$f":"IF('IV. Country level, 1310-2018'!H282<0,'III. GDP shares, 1310-2018'!H284,\"\")","v":""},{"$f":"IF('IV. Country level, 1310-2018'!I282<0,'III. GDP shares, 1310-2018'!I284,\"\")","v":""},{"$f":"IF('IV. Country level, 1310-2018'!J282<0,'III. GDP shares, 1310-2018'!J284,\"\")","v":""},null,0,{"v":0.449203257125971,"d":"44.92%"},{"v":0.20250823357139602,"d":"20.25%"},{"v":0.24435841596729435,"d":"24.44%"},{"v":0.24072986554212542,"d":"24.07%"}]
[1589,{"$f":"IF('IV. Country level, 1310-2018'!C283<0,'III. GDP shares, 1310-2018'!C285,\"\")","v":0.253309462956048},{"$f":"IF('IV. Country level, 1310-2018'!D283<0,'III. GDP shares, 1310-2018'!D285,\"\")","v":""},{"$f":"IF('IV. Country level, 1310-2018'!E283<0,'III. GDP shares, 1310-2018'!E285,\"\")","v":""},{"$f":"IF('IV. Country level, 1310-2018'!F283<0,'III. GDP shares, 1310-2018'!F285,\"\")","v":0.21874390106708638},{"$f":"IF('IV. Country level, 1310-2018'!G283<0,'III. GDP shares, 1310-2018'!G285,\"\")","v":""},{"$f":"IF('IV. Country level, 1310-2018'!H283<0,'III. GDP shares, 1310-2018'!H285,\"\")","v":""},{"$f":"IF('IV. Country level, 1310-2018'!I283<0,'III. GDP shares, 1310-2018'!I285,\"\")","v":0.12130941551241484},{"$f":"IF('IV. Country level, 1310-2018'!J283<0,'III. GDP shares, 1310-2018'!J285,\"\")","v":""},null,0.5933627795355492,{"v":0.4665508079891097,"d":"46.66%"},{"v":0.20250823357139602,"d":"20.25%"},{"v":0.24408514355537633,"d":"24.41%"},{"v":0.24072986554212542,"d":"24.07%"}]
[1590,{"$f":"IF('IV. Country level, 1310-2018'!C284<0,'III. GDP shares, 1310-2018'!C286,\"\")","v":0.2529605192460622},{"$f":"IF('IV. Country level, 1310-2018'!D284<0,'III. GDP shares, 1310-2018'!D286,\"\")","v":0.10186836883090845},{"$f":"IF('IV. Country level, 1310-2018'!E284<0,'III. GDP shares, 1310-2018'!E286,\"\")","v":0.03469341700874725},{"$f":"IF('IV. Country level, 1310-2018'!F284<0,'III. GDP shares, 1310-2018'!F286,\"\")","v":0.21878828257645772},{"$f":"IF('IV. Country level, 1310-2018'!G284<0,'III. GDP shares, 1310-2018'!G286,\"\")","v":0.27033857021069196},{"$f":"IF('IV. Country level, 1310-2018'!H284<0,'III. GDP shares, 1310-2018'!H286,\"\")","v":""},{"$f":"IF('IV. Country level, 1310-2018'!I284<0,'III. GDP shares, 1310-2018'!I286,\"\")","v":""},{"$f":"IF('IV. Country level, 1310-2018'!J284<0,'III. GDP shares, 1310-2018'!J286,\"\")","v":""},null,0.8786491578728676,{"v":0.38217304616268916,"d":"38.22%"},{"v":0.20250823357139602,"d":"20.25%"},{"v":0.2348619106495987,"d":"23.49%"},{"v":0.24072986554212542,"d":"24.07%"}]
[1591,{"$f":"IF('IV. Country level, 1310-2018'!C285<0,'III. GDP shares, 1310-2018'!C287,\"\")","v":0.25261394008562726},{"$f":"IF('IV. Country level, 1310-2018'!D285<0,'III. GDP shares, 1310-2018'!D287,\"\")","v":""},{"$f":"IF('IV. Country level, 1310-2018'!E285<0,'III. GDP shares, 1310-2018'!E287,\"\")","v":""},{"$f":"IF('IV. Country level, 1310-2018'!F285<0,'III. GDP shares, 1310-2018'!F287,\"\")","v":""},{"$f":"IF('IV. Country level, 1310-2018'!G285<0,'III. GDP shares, 1310-2018'!G287,\"\")","v":0.27025207846121835},{"$f":"IF('IV. Country level, 1310-2018'!H285<0,'III. GDP shares, 1310-2018'!H287,\"\")","v":""},{"$f":"IF('IV. Country level, 1310-2018'!I285<0,'III. GDP shares, 1310-2018'!I287,\"\")","v":""},{"$f":"IF('IV. Country level, 1310-2018'!J285<0,'III. GDP shares, 1310-2018'!J287,\"\")","v":""},null,0.5228660185468457,{"v":0.3756777183777983,"d":"37.57%"},{"v":0.20250823357139602,"d":"20.25%"},{"v":0.2393507170847267,"d":"23.94%"},{"v":0.24072986554212542,"d":"24.07%"}]
[1592,{"$f":"IF('IV. Country level, 1310-2018'!C286<0,'III. GDP shares, 1310-2018'!C288,\"\")","v":""},{"$f":"IF('IV. Country level, 1310-2018'!D286<0,'III. GDP shares, 1310-2018'!D288,\"\")","v":""},{"$f":"IF('IV. Country level, 1310-2018'!E286<0,'III. GDP shares, 1310-2018'!E288,\"\")","v":""},{"$f":"IF('IV. Country level, 1310-2018'!F286<0,'III. GDP shares, 1310-2018'!F288,\"\")","v":""},{"$f":"IF('IV. Country level, 1310-2018'!G286<0,'III. GDP shares, 1310-2018'!G288,\"\")","v":""},{"$f":"IF('IV. Country level, 1310-2018'!H286<0,'III. GDP shares, 1310-2018'!H288,\"\")","v":""},{"$f":"IF('IV. Country level, 1310-2018'!I286<0,'III. GDP shares, 1310-2018'!I288,\"\")","v":0.12143285604197096},{"$f":"IF('IV. Country level, 1310-2018'!J286<0,'III. GDP shares, 1310-2018'!J288,\"\")","v":""},null,0.12143285604197096,{"v":0.43132465351258137,"d":"43.13%"},{"v":0.20250823357139602,"d":"20.25%"},{"v":0.23596367449487388,"d":"23.60%"},{"v":0.24072986554212542,"d":"24.07%"}]
[1593,{"$f":"IF('IV. Country level, 1310-2018'!C287<0,'III. GDP shares, 1310-2018'!C289,\"\")","v":""},{"$f":"IF('IV. Country level, 1310-2018'!D287<0,'III. GDP shares, 1310-2018'!D289,\"\")","v":""},{"$f":"IF('IV. Country level, 1310-2018'!E287<0,'III. GDP shares, 1310-2018'!E289,\"\")","v":0.03506064967433313},{"$f":"IF('IV. Country level, 1310-2018'!F287<0,'III. GDP shares, 1310-2018'!F289,\"\")","v":0.2189196347935422},{"$f":"IF('IV. Country level, 1310-2018'!G287<0,'III. GDP shares, 1310-2018'!G289,\"\")","v":""},{"$f":"IF('IV. Country level, 1310-2018'!H287<0,'III. GDP shares, 1310-2018'!H289,\"\")","v":""},{"$f":"IF('IV. Country level, 1310-2018'!I287<0,'III. GDP shares, 1310-2018'!I289,\"\")","v":""},{"$f":"IF('IV. Country level, 1310-2018'!J287<0,'III. GDP shares, 1310-2018'!J289,\"\")","v":""},null,0.25398028446787535,{"v":0.38240364005565003,"d":"38.24%"},{"v":0.20250823357139602,"d":"20.25%"},{"v":0.2323047667294786,"d":"23.23%"},{"v":0.24072986554212542,"d":"24.07%"}]
[1594,{"$f":"IF('IV. Country level, 1310-2018'!C288<0,'III. GDP shares, 1310-2018'!C290,\"\")","v":""},{"$f":"IF('IV. Country level, 1310-2018'!D288<0,'III. GDP shares, 1310-2018'!D290,\"\")","v":0.10275774427289934},{"$f":"IF('IV. Country level, 1310-2018'!E288<0,'III. GDP shares, 1310-2018'!E290,\"\")","v":0.03518141826848322},{"$f":"IF('IV. Country level, 1310-2018'!F288<0,'III. GDP shares, 1310-2018'!F290,\"\")","v":""},{"$f":"IF('IV. Country level, 1310-2018'!G288<0,'III. GDP shares, 1310-2018'!G290,\"\")","v":""},{"$f":"IF('IV. Country level, 1310-2018'!H288<0,'III. GDP shares, 1310-2018'!H290,\"\")","v":""},{"$f":"IF('IV. Country level, 1310-2018'!I288<0,'III. GDP shares, 1310-2018'!I290,\"\")","v":0.12151376963809668},{"$f":"IF('IV. Country level, 1310-2018'!J288<0,'III. GDP shares, 1310-2018'!J290,\"\")","v":""},null,0.25945293217947923,{"v":0.31252961525384715,"d":"31.25%"},{"v":0.20250823357139602,"d":"20.25%"},{"v":0.24527637436175787,"d":"24.53%"},{"v":0.24072986554212542,"d":"24.07%"}]
[1595,{"$f":"IF('IV. Country level, 1310-2018'!C289<0,'III. GDP shares, 1310-2018'!C291,\"\")","v":0.2512507946794784},{"$f":"IF('IV. Country level, 1310-2018'!D289<0,'III. GDP shares, 1310-2018'!D291,\"\")","v":0.10297637182370369},{"$f":"IF('IV. Country level, 1310-2018'!E289<0,'III. GDP shares, 1310-2018'!E291,\"\")","v":0.03530137944029912},{"$f":"IF('IV. Country level, 1310-2018'!F289<0,'III. GDP shares, 1310-2018'!F291,\"\")","v":""},{"$f":"IF('IV. Country level, 1310-2018'!G289<0,'III. GDP shares, 1310-2018'!G291,\"\")","v":""},{"$f":"IF('IV. Country level, 1310-2018'!H289<0,'III. GDP shares, 1310-2018'!H291,\"\")","v":""},{"$f":"IF('IV. Country level, 1310-2018'!I289<0,'III. GDP shares, 1310-2018'!I291,\"\")","v":""},{"$f":"IF('IV. Country level, 1310-2018'!J289<0,'III. GDP shares, 1310-2018'!J291,\"\")","v":""},null,0.3895285459434812,{"v":0.2865209186068456,"d":"28.65%"},{"v":0.20250823357139602,"d":"20.25%"},{"v":0.23381742175005868,"d":"23.38%"},{"v":0.24072986554212542,"d":"24.07%"}]
[1596,{"$f":"IF('IV. Country level, 1310-2018'!C290<0,'III. GDP shares, 1310-2018'!C292,\"\")","v":0.25091568533702974},{"$f":"IF('IV. Country level, 1310-2018'!D290<0,'III. GDP shares, 1310-2018'!D292,\"\")","v":""},{"$f":"IF('IV. Country level, 1310-2018'!E290<0,'III. GDP shares, 1310-2018'!E292,\"\")","v":""},{"$f":"IF('IV. Country level, 1310-2018'!F290<0,'III. GDP shares, 1310-2018'!F292,\"\")","v":""},{"$f":"IF('IV. Country level, 1310-2018'!G290<0,'III. GDP shares, 1310-2018'!G292,\"\")","v":""},{"$f":"IF('IV. Country level, 1310-2018'!H290<0,'III. GDP shares, 1310-2018'!H292,\"\")","v":""},{"$f":"IF('IV. Country level, 1310-2018'!I290<0,'III. GDP shares, 1310-2018'!I292,\"\")","v":""},{"$f":"IF('IV. Country level, 1310-2018'!J290<0,'III. GDP shares, 1310-2018'!J292,\"\")","v":""},null,0.25091568533702974,{"v":0.28656070812258166,"d":"28.66%"},{"v":0.20250823357139602,"d":"20.25%"},{"v":0.2304300863098291,"d":"23.04%"},{"v":0.24072986554212542,"d":"24.07%"}]
[1597,{"$f":"IF('IV. Country level, 1310-2018'!C291<0,'III. GDP shares, 1310-2018'!C293,\"\")","v":0.2505828015549778},{"$f":"IF('IV. Country level, 1310-2018'!D291<0,'III. GDP shares, 1310-2018'!D293,\"\")","v":0.10340927101435649},{"$f":"IF('IV. Country level, 1310-2018'!E291<0,'III. GDP shares, 1310-2018'!E293,\"\")","v":0.03553891169091349},{"$f":"IF('IV. Country level, 1310-2018'!F291<0,'III. GDP shares, 1310-2018'!F293,\"\")","v":""},{"$f":"IF('IV. Country level, 1310-2018'!G291<0,'III. GDP shares, 1310-2018'!G293,\"\")","v":""},{"$f":"IF('IV. Country level, 1310-2018'!H291<0,'III. GDP shares, 1310-2018'!H293,\"\")","v":""},{"$f":"IF('IV. Country level, 1310-2018'!I291<0,'III. GDP shares, 1310-2018'!I293,\"\")","v":""},{"$f":"IF('IV. Country level, 1310-2018'!J291<0,'III. GDP shares, 1310-2018'!J293,\"\")","v":""},null,0.3895309842602478,{"v":0.25027781034145663,"d":"25.03%"},{"v":0.20250823357139602,"d":"20.25%"},{"v":0.2294175619532304,"d":"22.94%"},{"v":0.24072986554212542,"d":"24.07%"}]
[1598,{"$f":"IF('IV. Country level, 1310-2018'!C292<0,'III. GDP shares, 1310-2018'!C294,\"\")","v":""},{"$f":"IF('IV. Country level, 1310-2018'!D292<0,'III. GDP shares, 1310-2018'!D294,\"\")","v":""},{"$f":"IF('IV. Country level, 1310-2018'!E292<0,'III. GDP shares, 1310-2018'!E294,\"\")","v":""},{"$f":"IF('IV. Country level, 1310-2018'!F292<0,'III. GDP shares, 1310-2018'!F294,\"\")","v":0.21913275874334132},{"$f":"IF('IV. Country level, 1310-2018'!G292<0,'III. GDP shares, 1310-2018'!G294,\"\")","v":""},{"$f":"IF('IV. Country level, 1310-2018'!H292<0,'III. GDP shares, 1310-2018'!H294,\"\")","v":""},{"$f":"IF('IV. Country level, 1310-2018'!I292<0,'III. GDP shares, 1310-2018'!I294,\"\")","v":0.12167238327449369},{"$f":"IF('IV. Country level, 1310-2018'!J292<0,'III. GDP shares, 1310-2018'!J294,\"\")","v":""},null,0.340805142017835,{"v":0.2487993462285282,"d":"24.88%"},{"v":0.20250823357139602,"d":"20.25%"},{"v":0.23652972896316038,"d":"23.65%"},{"v":0.24072986554212542,"d":"24.07%"}]
[1599,{"$f":"IF('IV. Country level, 1310-2018'!C293<0,'III. GDP shares, 1310-2018'!C295,\"\")","v":""},{"$f":"IF('IV. Country level, 1310-2018'!D293<0,'III. GDP shares, 1310-2018'!D295,\"\")","v":""},{"$f":"IF('IV. Country level, 1310-2018'!E293<0,'III. GDP shares, 1310-2018'!E295,\"\")","v":""},{"$f":"IF('IV. Country level, 1310-2018'!F293<0,'III. GDP shares, 1310-2018'!F295,\"\")","v":""},{"$f":"IF('IV. Country level, 1310-2018'!G293<0,'III. GDP shares, 1310-2018'!G295,\"\")","v":""},{"$f":"IF('IV. Country level, 1310-2018'!H293<0,'III. GDP shares, 1310-2018'!H295,\"\")","v":""},{"$f":"IF('IV. Country level, 1310-2018'!I293<0,'III. GDP shares, 1310-2018'!I295,\"\")","v":0.12171138265212342},{"$f":"IF('IV. Country level, 1310-2018'!J293<0,'III. GDP shares, 1310-2018'!J295,\"\")","v":""},null,0.12171138265212342,{"v":0.2286684369415195,"d":"22.87%"},{"v":0.20250823357139602,"d":"20.25%"},{"v":0.23286271921030965,"d":"23.29%"},{"v":0.24072986554212542,"d":"24.07%"}]
[1600,{"$f":"IF('IV. Country level, 1310-2018'!C294<0,'III. GDP shares, 1310-2018'!C296,\"\")","v":""},{"$f":"IF('IV. Country level, 1310-2018'!D294<0,'III. GDP shares, 1310-2018'!D296,\"\")","v":""},{"$f":"IF('IV. Country level, 1310-2018'!E294<0,'III. GDP shares, 1310-2018'!E296,\"\")","v":""},{"$f":"IF('IV. Country level, 1310-2018'!F294<0,'III. GDP shares, 1310-2018'!F296,\"\")","v":""},{"$f":"IF('IV. Country level, 1310-2018'!G294<0,'III. GDP shares, 1310-2018'!G296,\"\")","v":""},{"$f":"IF('IV. Country level, 1310-2018'!H294<0,'III. GDP shares, 1310-2018'!H296,\"\")","v":""},{"$f":"IF('IV. Country level, 1310-2018'!I294<0,'III. GDP shares, 1310-2018'!I296,\"\")","v":""},{"$f":"IF('IV. Country level, 1310-2018'!J294<0,'III. GDP shares, 1310-2018'!J296,\"\")","v":""},null,0,{"v":0.21013888845399317,"d":"21.01%"},{"v":0.20250823357139602,"d":"20.25%"},{"v":0.23040641824338723,"d":"23.04%"},{"$f":"AVERAGE(L$296:L$395)","v":{"v":0.15218470858981648,"d":"15.22%"}}]
[1601,{"$f":"IF('IV. Country level, 1310-2018'!C295<0,'III. GDP shares, 1310-2018'!C297,\"\")","v":0.24910368338897987},{"$f":"IF('IV. Country level, 1310-2018'!D295<0,'III. GDP shares, 1310-2018'!D297,\"\")","v":""},{"$f":"IF('IV. Country level, 1310-2018'!E295<0,'III. GDP shares, 1310-2018'!E297,\"\")","v":""},{"$f":"IF('IV. Country level, 1310-2018'!F295<0,'III. GDP shares, 1310-2018'!F297,\"\")","v":""},{"$f":"IF('IV. Country level, 1310-2018'!G295<0,'III. GDP shares, 1310-2018'!G297,\"\")","v":""},{"$f":"IF('IV. Country level, 1310-2018'!H295<0,'III. GDP shares, 1310-2018'!H297,\"\")","v":""},{"$f":"IF('IV. Country level, 1310-2018'!I295<0,'III. GDP shares, 1310-2018'!I297,\"\")","v":""},{"$f":"IF('IV. Country level, 1310-2018'!J295<0,'III. GDP shares, 1310-2018'!J297,\"\")","v":""},null,0.24910368338897987,{"v":0.15449160498824346,"d":"15.45%"},{"v":0.20250823357139602,"d":"20.25%"},{"v":0.2413232041523131,"d":"24.13%"},{"$f":"AVERAGE(L$296:L$395)","v":{"v":0.15218470858981648,"d":"15.22%"}}]
[1602,{"$f":"IF('IV. Country level, 1310-2018'!C296<0,'III. GDP shares, 1310-2018'!C298,\"\")","v":0.24861218093442056},{"$f":"IF('IV. Country level, 1310-2018'!D296<0,'III. GDP shares, 1310-2018'!D298,\"\")","v":""},{"$f":"IF('IV. Country level, 1310-2018'!E296<0,'III. GDP shares, 1310-2018'!E298,\"\")","v":""},{"$f":"IF('IV. Country level, 1310-2018'!F296<0,'III. GDP shares, 1310-2018'!F298,\"\")","v":""},{"$f":"IF('IV. Country level, 1310-2018'!G296<0,'III. GDP shares, 1310-2018'!G298,\"\")","v":""},{"$f":"IF('IV. Country level, 1310-2018'!H296<0,'III. GDP shares, 1310-2018'!H298,\"\")","v":""},{"$f":"IF('IV. Country level, 1310-2018'!I296<0,'III. GDP shares, 1310-2018'!I298,\"\")","v":""},{"$f":"IF('IV. Country level, 1310-2018'!J296<0,'III. GDP shares, 1310-2018'!J298,\"\")","v":""},null,0.24861218093442056,{"v":0.1230696994607423,"d":"12.31%"},{"v":0.20250823357139602,"d":"20.25%"},{"v":0.24862692959717814,"d":"24.86%"},{"v":0.15218470858981648,"d":"15.22%"}]
[1603,{"$f":"IF('IV. Country level, 1310-2018'!C297<0,'III. GDP shares, 1310-2018'!C299,\"\")","v":""},{"$f":"IF('IV. Country level, 1310-2018'!D297<0,'III. GDP shares, 1310-2018'!D299,\"\")","v":""},{"$f":"IF('IV. Country level, 1310-2018'!E297<0,'III. GDP shares, 1310-2018'!E299,\"\")","v":""},{"$f":"IF('IV. Country level, 1310-2018'!F297<0,'III. GDP shares, 1310-2018'!F299,\"\")","v":""},{"$f":"IF('IV. Country level, 1310-2018'!G297<0,'III. GDP shares, 1310-2018'!G299,\"\")","v":""},{"$f":"IF('IV. Country level, 1310-2018'!H297<0,'III. GDP shares, 1310-2018'!H299,\"\")","v":""},{"$f":"IF('IV. Country level, 1310-2018'!I297<0,'III. GDP shares, 1310-2018'!I299,\"\")","v":0.12120884592434535},{"$f":"IF('IV. Country level, 1310-2018'!J297<0,'III. GDP shares, 1310-2018'!J299,\"\")","v":""},null,0.12120884592434535,{"v":0.10568235908186753,"d":"10.57%"},{"v":0.20250823357139602,"d":"20.25%"},{"v":0.2368013693145251,"d":"23.68%"},{"v":0.15218470858981648,"d":"15.22%"}]
[1604,{"$f":"IF('IV. Country level, 1310-2018'!C298<0,'III. GDP shares, 1310-2018'!C300,\"\")","v":""},{"$f":"IF('IV. Country level, 1310-2018'!D298<0,'III. GDP shares, 1310-2018'!D300,\"\")","v":""},{"$f":"IF('IV. Country level, 1310-2018'!E298<0,'III. GDP shares, 1310-2018'!E300,\"\")","v":""},{"$f":"IF('IV. Country level, 1310-2018'!F298<0,'III. GDP shares, 1310-2018'!F300,\"\")","v":""},{"$f":"IF('IV. Country level, 1310-2018'!G298<0,'III. GDP shares, 1310-2018'!G300,\"\")","v":""},{"$f":"IF('IV. Country level, 1310-2018'!H298<0,'III. GDP shares, 1310-2018'!H300,\"\")","v":""},{"$f":"IF('IV. Country level, 1310-2018'!I298<0,'III. GDP shares, 1310-2018'!I300,\"\")","v":""},{"$f":"IF('IV. Country level, 1310-2018'!J298<0,'III. GDP shares, 1310-2018'!J300,\"\")","v":""},null,0,{"v":0.14085174171260437,"d":"14.09%"},{"v":0.20250823357139602,"d":"20.25%"},{"v":0.2340323744783202,"d":"23.40%"},{"v":0.15218470858981648,"d":"15.22%"}]
[1605,{"$f":"IF('IV. Country level, 1310-2018'!C299<0,'III. GDP shares, 1310-2018'!C301,\"\")","v":""},{"$f":"IF('IV. Country level, 1310-2018'!D299<0,'III. GDP shares, 1310-2018'!D301,\"\")","v":""},{"$f":"IF('IV. Country level, 1310-2018'!E299<0,'III. GDP shares, 1310-2018'!E301,\"\")","v":""},{"$f":"IF('IV. Country level, 1310-2018'!F299<0,'III. GDP shares, 1310-2018'!F301,\"\")","v":""},{"$f":"IF('IV. Country level, 1310-2018'!G299<0,'III. GDP shares, 1310-2018'!G301,\"\")","v":""},{"$f":"IF('IV. Country level, 1310-2018'!H299<0,'III. GDP shares, 1310-2018'!H301,\"\")","v":""},{"$f":"IF('IV. Country level, 1310-2018'!I299<0,'III. GDP shares, 1310-2018'!I301,\"\")","v":0.12085180332532695},{"$f":"IF('IV. Country level, 1310-2018'!J299<0,'III. GDP shares, 1310-2018'!J301,\"\")","v":""},null,0.12085180332532695,{"v":0.1262204694902936,"d":"12.62%"},{"v":0.20250823357139602,"d":"20.25%"},{"v":0.24049516031963913,"d":"24.05%"},{"v":0.15218470858981648,"d":"15.22%"}]
[1606,{"$f":"IF('IV. Country level, 1310-2018'!C300<0,'III. GDP shares, 1310-2018'!C302,\"\")","v":""},{"$f":"IF('IV. Country level, 1310-2018'!D300<0,'III. GDP shares, 1310-2018'!D302,\"\")","v":""},{"$f":"IF('IV. Country level, 1310-2018'!E300<0,'III. GDP shares, 1310-2018'!E302,\"\")","v":""},{"$f":"IF('IV. Country level, 1310-2018'!F300<0,'III. GDP shares, 1310-2018'!F302,\"\")","v":""},{"$f":"IF('IV. Country level, 1310-2018'!G300<0,'III. GDP shares, 1310-2018'!G302,\"\")","v":""},{"$f":"IF('IV. Country level, 1310-2018'!H300<0,'III. GDP shares, 1310-2018'!H302,\"\")","v":""},{"$f":"IF('IV. Country level, 1310-2018'!I300<0,'III. GDP shares, 1310-2018'!I302,\"\")","v":""},{"$f":"IF('IV. Country level, 1310-2018'!J300<0,'III. GDP shares, 1310-2018'!J302,\"\")","v":""},null,0,{"v":0.09070444364251926,"d":"9.07%"},{"v":0.20250823357139602,"d":"20.25%"},{"v":0.2373296010239795,"d":"23.73%"},{"v":0.15218470858981648,"d":"15.22%"}]
[1607,{"$f":"IF('IV. Country level, 1310-2018'!C301<0,'III. GDP shares, 1310-2018'!C303,\"\")","v":0.24618567841515782},{"$f":"IF('IV. Country level, 1310-2018'!D301<0,'III. GDP shares, 1310-2018'!D303,\"\")","v":""},{"$f":"IF('IV. Country level, 1310-2018'!E301<0,'III. GDP shares, 1310-2018'!E303,\"\")","v":""},{"$f":"IF('IV. Country level, 1310-2018'!F301<0,'III. GDP shares, 1310-2018'!F303,\"\")","v":""},{"$f":"IF('IV. Country level, 1310-2018'!G301<0,'III. GDP shares, 1310-2018'!G303,\"\")","v":""},{"$f":"IF('IV. Country level, 1310-2018'!H301<0,'III. GDP shares, 1310-2018'!H303,\"\")","v":""},{"$f":"IF('IV. Country level, 1310-2018'!I301<0,'III. GDP shares, 1310-2018'!I303,\"\")","v":""},{"$f":"IF('IV. Country level, 1310-2018'!J301<0,'III. GDP shares, 1310-2018'!J303,\"\")","v":""},null,0.24618567841515782,{"v":0.1392566891094469,"d":"13.93%"},{"v":0.20250823357139602,"d":"20.25%"},{"v":0.21553656551569844,"d":"21.55%"},{"v":0.15218470858981648,"d":"15.22%"}]
[1608,{"$f":"IF('IV. Country level, 1310-2018'!C302<0,'III. GDP shares, 1310-2018'!C304,\"\")","v":""},{"$f":"IF('IV. Country level, 1310-2018'!D302<0,'III. GDP shares, 1310-2018'!D304,\"\")","v":0.10870718835726323},{"$f":"IF('IV. Country level, 1310-2018'!E302<0,'III. GDP shares, 1310-2018'!E304,\"\")","v":0.037977589475541404},{"$f":"IF('IV. Country level, 1310-2018'!F302<0,'III. GDP shares, 1310-2018'!F304,\"\")","v":""},{"$f":"IF('IV. Country level, 1310-2018'!G302<0,'III. GDP shares, 1310-2018'!G304,\"\")","v":""},{"$f":"IF('IV. Country level, 1310-2018'!H302<0,'III. GDP shares, 1310-2018'!H304,\"\")","v":""},{"$f":"IF('IV. Country level, 1310-2018'!I302<0,'III. GDP shares, 1310-2018'!I304,\"\")","v":""},{"$f":"IF('IV. Country level, 1310-2018'!J302<0,'III. GDP shares, 1310-2018'!J304,\"\")","v":""},null,0.14668477783280465,{"v":0.1392566891094469,"d":"13.93%"},{"v":0.20250823357139602,"d":"20.25%"},{"v":0.19969214071124858,"d":"19.97%"},{"v":0.15218470858981648,"d":"15.22%"}]
[1609,{"$f":"IF('IV. Country level, 1310-2018'!C303<0,'III. GDP shares, 1310-2018'!C305,\"\")","v":""},{"$f":"IF('IV. Country level, 1310-2018'!D303<0,'III. GDP shares, 1310-2018'!D305,\"\")","v":""},{"$f":"IF('IV. Country level, 1310-2018'!E303<0,'III. GDP shares, 1310-2018'!E305,\"\")","v":""},{"$f":"IF('IV. Country level, 1310-2018'!F303<0,'III. GDP shares, 1310-2018'!F305,\"\")","v":""},{"$f":"IF('IV. Country level, 1310-2018'!G303<0,'III. GDP shares, 1310-2018'!G305,\"\")","v":""},{"$f":"IF('IV. Country level, 1310-2018'!H303<0,'III. GDP shares, 1310-2018'!H305,\"\")","v":""},{"$f":"IF('IV. Country level, 1310-2018'!I303<0,'III. GDP shares, 1310-2018'!I305,\"\")","v":""},{"$f":"IF('IV. Country level, 1310-2018'!J303<0,'III. GDP shares, 1310-2018'!J305,\"\")","v":""},null,0,{"v":0.17391146527923276,"d":"17.39%"},{"v":0.20250823357139602,"d":"20.25%"},{"v":0.1960123571948252,"d":"19.60%"},{"v":0.15218470858981648,"d":"15.22%"}]
[1610,{"$f":"IF('IV. Country level, 1310-2018'!C304<0,'III. GDP shares, 1310-2018'!C306,\"\")","v":0.24475411809996733},{"$f":"IF('IV. Country level, 1310-2018'!D304<0,'III. GDP shares, 1310-2018'!D306,\"\")","v":""},{"$f":"IF('IV. Country level, 1310-2018'!E304<0,'III. GDP shares, 1310-2018'!E306,\"\")","v":""},{"$f":"IF('IV. Country level, 1310-2018'!F304<0,'III. GDP shares, 1310-2018'!F306,\"\")","v":0.2163204460928716},{"$f":"IF('IV. Country level, 1310-2018'!G304<0,'III. GDP shares, 1310-2018'!G306,\"\")","v":""},{"$f":"IF('IV. Country level, 1310-2018'!H304<0,'III. GDP shares, 1310-2018'!H306,\"\")","v":""},{"$f":"IF('IV. Country level, 1310-2018'!I304<0,'III. GDP shares, 1310-2018'!I306,\"\")","v":""},{"$f":"IF('IV. Country level, 1310-2018'!J304<0,'III. GDP shares, 1310-2018'!J306,\"\")","v":""},null,0.46107456419283893,{"v":0.17391146527923276,"d":"17.39%"},{"v":0.20250823357139602,"d":"20.25%"},{"v":0.202989982417407,"d":"20.30%"},{"v":0.15218470858981648,"d":"15.22%"}]
[1611,{"$f":"IF('IV. Country level, 1310-2018'!C305<0,'III. GDP shares, 1310-2018'!C307,\"\")","v":""},{"$f":"IF('IV. Country level, 1310-2018'!D305<0,'III. GDP shares, 1310-2018'!D307,\"\")","v":""},{"$f":"IF('IV. Country level, 1310-2018'!E305<0,'III. GDP shares, 1310-2018'!E307,\"\")","v":""},{"$f":"IF('IV. Country level, 1310-2018'!F305<0,'III. GDP shares, 1310-2018'!F307,\"\")","v":""},{"$f":"IF('IV. Country level, 1310-2018'!G305<0,'III. GDP shares, 1310-2018'!G307,\"\")","v":""},{"$f":"IF('IV. Country level, 1310-2018'!H305<0,'III. GDP shares, 1310-2018'!H307,\"\")","v":""},{"$f":"IF('IV. Country level, 1310-2018'!I305<0,'III. GDP shares, 1310-2018'!I307,\"\")","v":""},{"$f":"IF('IV. Country level, 1310-2018'!J305<0,'III. GDP shares, 1310-2018'!J307,\"\")","v":""},null,0,{"v":0.18652459038490068,"d":"18.65%"},{"v":0.20250823357139602,"d":"20.25%"},{"v":0.19512777235136217,"d":"19.51%"},{"v":0.15218470858981648,"d":"15.22%"}]
[1612,{"$f":"IF('IV. Country level, 1310-2018'!C306<0,'III. GDP shares, 1310-2018'!C308,\"\")","v":0.24380967564551373},{"$f":"IF('IV. Country level, 1310-2018'!D306<0,'III. GDP shares, 1310-2018'!D308,\"\")","v":""},{"$f":"IF('IV. Country level, 1310-2018'!E306<0,'III. GDP shares, 1310-2018'!E308,\"\")","v":""},{"$f":"IF('IV. Country level, 1310-2018'!F306<0,'III. GDP shares, 1310-2018'!F308,\"\")","v":""},{"$f":"IF('IV. Country level, 1310-2018'!G306<0,'III. GDP shares, 1310-2018'!G308,\"\")","v":""},{"$f":"IF('IV. Country level, 1310-2018'!H306<0,'III. GDP shares, 1310-2018'!H308,\"\")","v":""},{"$f":"IF('IV. Country level, 1310-2018'!I306<0,'III. GDP shares, 1310-2018'!I308,\"\")","v":0.11962556086831405},{"$f":"IF('IV. Country level, 1310-2018'!J306<0,'III. GDP shares, 1310-2018'!J308,\"\")","v":""},null,0.3634352365138278,{"v":0.1655696221230715,"d":"16.56%"},{"v":0.20250823357139602,"d":"20.25%"},{"v":0.18816800814510168,"d":"18.82%"},{"v":0.15218470858981648,"d":"15.22%"}]
[1613,{"$f":"IF('IV. Country level, 1310-2018'!C307<0,'III. GDP shares, 1310-2018'!C309,\"\")","v":""},{"$f":"IF('IV. Country level, 1310-2018'!D307<0,'III. GDP shares, 1310-2018'!D309,\"\")","v":""},{"$f":"IF('IV. Country level, 1310-2018'!E307<0,'III. GDP shares, 1310-2018'!E309,\"\")","v":""},{"$f":"IF('IV. Country level, 1310-2018'!F307<0,'III. GDP shares, 1310-2018'!F309,\"\")","v":""},{"$f":"IF('IV. Country level, 1310-2018'!G307<0,'III. GDP shares, 1310-2018'!G309,\"\")","v":""},{"$f":"IF('IV. Country level, 1310-2018'!H307<0,'III. GDP shares, 1310-2018'!H309,\"\")","v":""},{"$f":"IF('IV. Country level, 1310-2018'!I307<0,'III. GDP shares, 1310-2018'!I309,\"\")","v":""},{"$f":"IF('IV. Country level, 1310-2018'!J307<0,'III. GDP shares, 1310-2018'!J309,\"\")","v":""},null,0,{"v":0.17128345991841445,"d":"17.13%"},{"v":0.20250823357139602,"d":"20.25%"},{"v":0.18187176549701634,"d":"18.19%"},{"v":0.15218470858981648,"d":"15.22%"}]
[1614,{"$f":"IF('IV. Country level, 1310-2018'!C308<0,'III. GDP shares, 1310-2018'!C310,\"\")","v":""},{"$f":"IF('IV. Country level, 1310-2018'!D308<0,'III. GDP shares, 1310-2018'!D310,\"\")","v":""},{"$f":"IF('IV. Country level, 1310-2018'!E308<0,'III. GDP shares, 1310-2018'!E310,\"\")","v":""},{"$f":"IF('IV. Country level, 1310-2018'!F308<0,'III. GDP shares, 1310-2018'!F310,\"\")","v":0.21519581312726827},{"$f":"IF('IV. Country level, 1310-2018'!G308<0,'III. GDP shares, 1310-2018'!G310,\"\")","v":""},{"$f":"IF('IV. Country level, 1310-2018'!H308<0,'III. GDP shares, 1310-2018'!H310,\"\")","v":""},{"$f":"IF('IV. Country level, 1310-2018'!I308<0,'III. GDP shares, 1310-2018'!I310,\"\")","v":0.11928174102756531},{"$f":"IF('IV. Country level, 1310-2018'!J308<0,'III. GDP shares, 1310-2018'!J310,\"\")","v":""},null,0.3344775541548336,{"v":0.15688051289008795,"d":"15.69%"},{"v":0.20250823357139602,"d":"20.25%"},{"v":0.17504124050885977,"d":"17.50%"},{"v":0.15218470858981648,"d":"15.22%"}]
[1615,{"$f":"IF('IV. Country level, 1310-2018'!C309<0,'III. GDP shares, 1310-2018'!C311,\"\")","v":""},{"$f":"IF('IV. Country level, 1310-2018'!D309<0,'III. GDP shares, 1310-2018'!D311,\"\")","v":""},{"$f":"IF('IV. Country level, 1310-2018'!E309<0,'III. GDP shares, 1310-2018'!E311,\"\")","v":""},{"$f":"IF('IV. Country level, 1310-2018'!F309<0,'III. GDP shares, 1310-2018'!F311,\"\")","v":""},{"$f":"IF('IV. Country level, 1310-2018'!G309<0,'III. GDP shares, 1310-2018'!G311,\"\")","v":""},{"$f":"IF('IV. Country level, 1310-2018'!H309<0,'III. GDP shares, 1310-2018'!H311,\"\")","v":""},{"$f":"IF('IV. Country level, 1310-2018'!I309<0,'III. GDP shares, 1310-2018'!I311,\"\")","v":""},{"$f":"IF('IV. Country level, 1310-2018'!J309<0,'III. GDP shares, 1310-2018'!J311,\"\")","v":""},null,0,{"v":0.19131236141588032,"d":"19.13%"},{"v":0.20250823357139602,"d":"20.25%"},{"v":0.17298102318791095,"d":"17.30%"},{"v":0.15218470858981648,"d":"15.22%"}]
[1616,{"$f":"IF('IV. Country level, 1310-2018'!C310<0,'III. GDP shares, 1310-2018'!C312,\"\")","v":""},{"$f":"IF('IV. Country level, 1310-2018'!D310<0,'III. GDP shares, 1310-2018'!D312,\"\")","v":""},{"$f":"IF('IV. Country level, 1310-2018'!E310<0,'III. GDP shares, 1310-2018'!E312,\"\")","v":0.03999686456740073},{"$f":"IF('IV. Country level, 1310-2018'!F310<0,'III. GDP shares, 1310-2018'!F312,\"\")","v":""},{"$f":"IF('IV. Country level, 1310-2018'!G310<0,'III. GDP shares, 1310-2018'!G312,\"\")","v":""},{"$f":"IF('IV. Country level, 1310-2018'!H310<0,'III. GDP shares, 1310-2018'!H312,\"\")","v":""},{"$f":"IF('IV. Country level, 1310-2018'!I310<0,'III. GDP shares, 1310-2018'!I312,\"\")","v":""},{"$f":"IF('IV. Country level, 1310-2018'!J310<0,'III. GDP shares, 1310-2018'!J312,\"\")","v":""},null,0.03999686456740073,{"v":0.20430463161751497,"d":"20.43%"},{"v":0.20250823357139602,"d":"20.25%"},{"v":0.17566726676130437,"d":"17.57%"},{"v":0.15218470858981648,"d":"15.22%"}]
[1617,{"$f":"IF('IV. Country level, 1310-2018'!C311<0,'III. GDP shares, 1310-2018'!C313,\"\")","v":0.24148261237940627},{"$f":"IF('IV. Country level, 1310-2018'!D311<0,'III. GDP shares, 1310-2018'!D313,\"\")","v":""},{"$f":"IF('IV. Country level, 1310-2018'!E311<0,'III. GDP shares, 1310-2018'!E313,\"\")","v":""},{"$f":"IF('IV. Country level, 1310-2018'!F311<0,'III. GDP shares, 1310-2018'!F313,\"\")","v":""},{"$f":"IF('IV. Country level, 1310-2018'!G311<0,'III. GDP shares, 1310-2018'!G313,\"\")","v":""},{"$f":"IF('IV. Country level, 1310-2018'!H311<0,'III. GDP shares, 1310-2018'!H313,\"\")","v":""},{"$f":"IF('IV. Country level, 1310-2018'!I311<0,'III. GDP shares, 1310-2018'!I313,\"\")","v":0.1187713226151474},{"$f":"IF('IV. Country level, 1310-2018'!J311<0,'III. GDP shares, 1310-2018'!J313,\"\")","v":""},null,0.36025393499455366,{"v":0.2348108312002226,"d":"23.48%"},{"v":0.20250823357139602,"d":"20.25%"},{"v":0.18203389721168683,"d":"18.20%"},{"v":0.15218470858981648,"d":"15.22%"}]
[1618,{"$f":"IF('IV. Country level, 1310-2018'!C312<0,'III. GDP shares, 1310-2018'!C314,\"\")","v":0.24102293968054664},{"$f":"IF('IV. Country level, 1310-2018'!D312<0,'III. GDP shares, 1310-2018'!D314,\"\")","v":""},{"$f":"IF('IV. Country level, 1310-2018'!E312<0,'III. GDP shares, 1310-2018'!E314,\"\")","v":""},{"$f":"IF('IV. Country level, 1310-2018'!F312<0,'III. GDP shares, 1310-2018'!F314,\"\")","v":""},{"$f":"IF('IV. Country level, 1310-2018'!G312<0,'III. GDP shares, 1310-2018'!G314,\"\")","v":""},{"$f":"IF('IV. Country level, 1310-2018'!H312<0,'III. GDP shares, 1310-2018'!H314,\"\")","v":""},{"$f":"IF('IV. Country level, 1310-2018'!I312<0,'III. GDP shares, 1310-2018'!I314,\"\")","v":""},{"$f":"IF('IV. Country level, 1310-2018'!J312<0,'III. GDP shares, 1310-2018'!J314,\"\")","v":""},null,0.24102293968054664,{"v":0.2174957424300356,"d":"21.75%"},{"v":0.20250823357139602,"d":"20.25%"},{"v":0.18218670593447062,"d":"18.22%"},{"v":0.15218470858981648,"d":"15.22%"}]
[1619,{"$f":"IF('IV. Country level, 1310-2018'!C313<0,'III. GDP shares, 1310-2018'!C315,\"\")","v":0.24056515282640514},{"$f":"IF('IV. Country level, 1310-2018'!D313<0,'III. GDP shares, 1310-2018'!D315,\"\")","v":""},{"$f":"IF('IV. Country level, 1310-2018'!E313<0,'III. GDP shares, 1310-2018'!E315,\"\")","v":""},{"$f":"IF('IV. Country level, 1310-2018'!F313<0,'III. GDP shares, 1310-2018'!F315,\"\")","v":0.21381597509886502},{"$f":"IF('IV. Country level, 1310-2018'!G313<0,'III. GDP shares, 1310-2018'!G315,\"\")","v":""},{"$f":"IF('IV. Country level, 1310-2018'!H313<0,'III. GDP shares, 1310-2018'!H315,\"\")","v":""},{"$f":"IF('IV. Country level, 1310-2018'!I313<0,'III. GDP shares, 1310-2018'!I315,\"\")","v":""},{"$f":"IF('IV. Country level, 1310-2018'!J313<0,'III. GDP shares, 1310-2018'!J315,\"\")","v":""},null,0.4543811279252702,{"v":0.2873385028270044,"d":"28.73%"},{"v":0.20250823357139602,"d":"20.25%"},{"v":0.1746530034819124,"d":"17.47%"},{"v":0.15218470858981648,"d":"15.22%"}]
[1620,{"$f":"IF('IV. Country level, 1310-2018'!C314<0,'III. GDP shares, 1310-2018'!C316,\"\")","v":""},{"$f":"IF('IV. Country level, 1310-2018'!D314<0,'III. GDP shares, 1310-2018'!D316,\"\")","v":""},{"$f":"IF('IV. Country level, 1310-2018'!E314<0,'III. GDP shares, 1310-2018'!E316,\"\")","v":""},{"$f":"IF('IV. Country level, 1310-2018'!F314<0,'III. GDP shares, 1310-2018'!F316,\"\")","v":0.2135433970789534},{"$f":"IF('IV. Country level, 1310-2018'!G314<0,'III. GDP shares, 1310-2018'!G316,\"\")","v":""},{"$f":"IF('IV. Country level, 1310-2018'!H314<0,'III. GDP shares, 1310-2018'!H316,\"\")","v":""},{"$f":"IF('IV. Country level, 1310-2018'!I314<0,'III. GDP shares, 1310-2018'!I316,\"\")","v":""},{"$f":"IF('IV. Country level, 1310-2018'!J314<0,'III. GDP shares, 1310-2018'!J316,\"\")","v":""},null,0.2135433970789534,{"v":0.30440737733160317,"d":"30.44%"},{"v":0.20250823357139602,"d":"20.25%"},{"v":0.17098000815087167,"d":"17.10%"},{"v":0.15218470858981648,"d":"15.22%"}]
[1621,{"$f":"IF('IV. Country level, 1310-2018'!C315<0,'III. GDP shares, 1310-2018'!C317,\"\")","v":""},{"$f":"IF('IV. Country level, 1310-2018'!D315<0,'III. GDP shares, 1310-2018'!D317,\"\")","v":""},{"$f":"IF('IV. Country level, 1310-2018'!E315<0,'III. GDP shares, 1310-2018'!E317,\"\")","v":""},{"$f":"IF('IV. Country level, 1310-2018'!F315<0,'III. GDP shares, 1310-2018'!F317,\"\")","v":0.2132719327635247},{"$f":"IF('IV. Country level, 1310-2018'!G315<0,'III. GDP shares, 1310-2018'!G317,\"\")","v":""},{"$f":"IF('IV. Country level, 1310-2018'!H315<0,'III. GDP shares, 1310-2018'!H317,\"\")","v":""},{"$f":"IF('IV. Country level, 1310-2018'!I315<0,'III. GDP shares, 1310-2018'!I317,\"\")","v":""},{"$f":"IF('IV. Country level, 1310-2018'!J315<0,'III. GDP shares, 1310-2018'!J317,\"\")","v":""},null,0.2132719327635247,{"v":0.25294252947523843,"d":"25.29%"},{"v":0.20250823357139602,"d":"20.25%"},{"v":0.17234344362941983,"d":"17.23%"},{"v":0.15218470858981648,"d":"15.22%"}]
[1622,{"$f":"IF('IV. Country level, 1310-2018'!C316<0,'III. GDP shares, 1310-2018'!C318,\"\")","v":""},{"$f":"IF('IV. Country level, 1310-2018'!D316<0,'III. GDP shares, 1310-2018'!D318,\"\")","v":0.1164951527081405},{"$f":"IF('IV. Country level, 1310-2018'!E316<0,'III. GDP shares, 1310-2018'!E318,\"\")","v":0.04146809463163128},{"$f":"IF('IV. Country level, 1310-2018'!F316<0,'III. GDP shares, 1310-2018'!F318,\"\")","v":0.21300157534090208},{"$f":"IF('IV. Country level, 1310-2018'!G316<0,'III. GDP shares, 1310-2018'!G318,\"\")","v":""},{"$f":"IF('IV. Country level, 1310-2018'!H316<0,'III. GDP shares, 1310-2018'!H318,\"\")","v":""},{"$f":"IF('IV. Country level, 1310-2018'!I316<0,'III. GDP shares, 1310-2018'!I318,\"\")","v":0.11793450009810735},{"$f":"IF('IV. Country level, 1310-2018'!J316<0,'III. GDP shares, 1310-2018'!J318,\"\")","v":""},null,0.48889932277878123,{"v":0.2185106809494461,"d":"21.85%"},{"v":0.20250823357139602,"d":"20.25%"},{"v":0.1686812677710766,"d":"16.87%"},{"v":0.15218470858981648,"d":"15.22%"}]
[1623,{"$f":"IF('IV. Country level, 1310-2018'!C317<0,'III. GDP shares, 1310-2018'!C319,\"\")","v":""},{"$f":"IF('IV. Country level, 1310-2018'!D317<0,'III. GDP shares, 1310-2018'!D319,\"\")","v":""},{"$f":"IF('IV. Country level, 1310-2018'!E317<0,'III. GDP shares, 1310-2018'!E319,\"\")","v":0.04170980738943412},{"$f":"IF('IV. Country level, 1310-2018'!F317<0,'III. GDP shares, 1310-2018'!F319,\"\")","v":""},{"$f":"IF('IV. Country level, 1310-2018'!G317<0,'III. GDP shares, 1310-2018'!G319,\"\")","v":""},{"$f":"IF('IV. Country level, 1310-2018'!H317<0,'III. GDP shares, 1310-2018'!H319,\"\")","v":""},{"$f":"IF('IV. Country level, 1310-2018'!I317<0,'III. GDP shares, 1310-2018'!I319,\"\")","v":0.11776917871015868},{"$f":"IF('IV. Country level, 1310-2018'!J317<0,'III. GDP shares, 1310-2018'!J319,\"\")","v":""},null,0.1594789860995928,{"v":0.22277650793341808,"d":"22.28%"},{"v":0.20250823357139602,"d":"20.25%"},{"v":0.1686812677710766,"d":"16.87%"},{"v":0.15218470858981648,"d":"15.22%"}]
[1624,{"$f":"IF('IV. Country level, 1310-2018'!C318<0,'III. GDP shares, 1310-2018'!C320,\"\")","v":""},{"$f":"IF('IV. Country level, 1310-2018'!D318<0,'III. GDP shares, 1310-2018'!D320,\"\")","v":""},{"$f":"IF('IV. Country level, 1310-2018'!E318<0,'III. GDP shares, 1310-2018'!E320,\"\")","v":""},{"$f":"IF('IV. Country level, 1310-2018'!F318<0,'III. GDP shares, 1310-2018'!F320,\"\")","v":""},{"$f":"IF('IV. Country level, 1310-2018'!G318<0,'III. GDP shares, 1310-2018'!G320,\"\")","v":""},{"$f":"IF('IV. Country level, 1310-2018'!H318<0,'III. GDP shares, 1310-2018'!H320,\"\")","v":""},{"$f":"IF('IV. Country level, 1310-2018'!I318<0,'III. GDP shares, 1310-2018'!I320,\"\")","v":""},{"$f":"IF('IV. Country level, 1310-2018'!J318<0,'III. GDP shares, 1310-2018'!J320,\"\")","v":""},null,0,{"v":0.19227030835071046,"d":"19.23%"},{"v":0.20250823357139602,"d":"20.25%"},{"v":0.16260514018926236,"d":"16.26%"},{"v":0.15218470858981648,"d":"15.22%"}]
[1625,{"$f":"IF('IV. Country level, 1310-2018'!C319<0,'III. GDP shares, 1310-2018'!C321,\"\")","v":""},{"$f":"IF('IV. Country level, 1310-2018'!D319<0,'III. GDP shares, 1310-2018'!D321,\"\")","v":""},{"$f":"IF('IV. Country level, 1310-2018'!E319<0,'III. GDP shares, 1310-2018'!E321,\"\")","v":""},{"$f":"IF('IV. Country level, 1310-2018'!F319<0,'III. GDP shares, 1310-2018'!F321,\"\")","v":""},{"$f":"IF('IV. Country level, 1310-2018'!G319<0,'III. GDP shares, 1310-2018'!G321,\"\")","v":""},{"$f":"IF('IV. Country level, 1310-2018'!H319<0,'III. GDP shares, 1310-2018'!H321,\"\")","v":""},{"$f":"IF('IV. Country level, 1310-2018'!I319<0,'III. GDP shares, 1310-2018'!I321,\"\")","v":""},{"$f":"IF('IV. Country level, 1310-2018'!J319<0,'III. GDP shares, 1310-2018'!J321,\"\")","v":""},null,0,{"v":0.18463950754690486,"d":"18.46%"},{"v":0.20250823357139602,"d":"20.25%"},{"v":0.1654717930867206,"d":"16.55%"},{"v":0.15218470858981648,"d":"15.22%"}]
[1626,{"$f":"IF('IV. Country level, 1310-2018'!C320<0,'III. GDP shares, 1310-2018'!C322,\"\")","v":""},{"$f":"IF('IV. Country level, 1310-2018'!D320<0,'III. GDP shares, 1310-2018'!D322,\"\")","v":""},{"$f":"IF('IV. Country level, 1310-2018'!E320<0,'III. GDP shares, 1310-2018'!E322,\"\")","v":""},{"$f":"IF('IV. Country level, 1310-2018'!F320<0,'III. GDP shares, 1310-2018'!F322,\"\")","v":0.21193108027342353},{"$f":"IF('IV. Country level, 1310-2018'!G320<0,'III. GDP shares, 1310-2018'!G322,\"\")","v":0.2723108365396508},{"$f":"IF('IV. Country level, 1310-2018'!H320<0,'III. GDP shares, 1310-2018'!H322,\"\")","v":""},{"$f":"IF('IV. Country level, 1310-2018'!I320<0,'III. GDP shares, 1310-2018'!I322,\"\")","v":""},{"$f":"IF('IV. Country level, 1310-2018'!J320<0,'III. GDP shares, 1310-2018'!J322,\"\")","v":""},null,0.4842419168130744,{"v":0.12095955828568083,"d":"12.10%"},{"v":0.20250823357139602,"d":"20.25%"},{"v":0.1654717930867206,"d":"16.55%"},{"v":0.15218470858981648,"d":"15.22%"}]
[1627,{"$f":"IF('IV. Country level, 1310-2018'!C321<0,'III. GDP shares, 1310-2018'!C323,\"\")","v":""},{"$f":"IF('IV. Country level, 1310-2018'!D321<0,'III. GDP shares, 1310-2018'!D323,\"\")","v":""},{"$f":"IF('IV. Country level, 1310-2018'!E321<0,'III. GDP shares, 1310-2018'!E323,\"\")","v":""},{"$f":"IF('IV. Country level, 1310-2018'!F321<0,'III. GDP shares, 1310-2018'!F323,\"\")","v":""},{"$f":"IF('IV. Country level, 1310-2018'!G321<0,'III. GDP shares, 1310-2018'!G323,\"\")","v":""},{"$f":"IF('IV. Country level, 1310-2018'!H321<0,'III. GDP shares, 1310-2018'!H323,\"\")","v":""},{"$f":"IF('IV. Country level, 1310-2018'!I321<0,'III. GDP shares, 1310-2018'!I323,\"\")","v":""},{"$f":"IF('IV. Country level, 1310-2018'!J321<0,'III. GDP shares, 1310-2018'!J323,\"\")","v":""},null,0,{"v":0.12162308307875073,"d":"12.16%"},{"v":0.20250823357139602,"d":"20.25%"},{"v":0.16467979802171126,"d":"16.47%"},{"v":0.15218470858981648,"d":"15.22%"}]
[1628,{"$f":"IF('IV. Country level, 1310-2018'!C322<0,'III. GDP shares, 1310-2018'!C324,\"\")","v":""},{"$f":"IF('IV. Country level, 1310-2018'!D322<0,'III. GDP shares, 1310-2018'!D324,\"\")","v":""},{"$f":"IF('IV. Country level, 1310-2018'!E322<0,'III. GDP shares, 1310-2018'!E324,\"\")","v":0.04290376611710617},{"$f":"IF('IV. Country level, 1310-2018'!F322<0,'III. GDP shares, 1310-2018'!F324,\"\")","v":""},{"$f":"IF('IV. Country level, 1310-2018'!G322<0,'III. GDP shares, 1310-2018'!G324,\"\")","v":""},{"$f":"IF('IV. Country level, 1310-2018'!H322<0,'III. GDP shares, 1310-2018'!H324,\"\")","v":""},{"$f":"IF('IV. Country level, 1310-2018'!I322<0,'III. GDP shares, 1310-2018'!I324,\"\")","v":0.11695256101977933},{"$f":"IF('IV. Country level, 1310-2018'!J322<0,'III. GDP shares, 1310-2018'!J324,\"\")","v":""},null,0.1598563271368855,{"v":0.1605970788539684,"d":"16.06%"},{"v":0.20250823357139602,"d":"20.25%"},{"v":0.1681478726080103,"d":"16.81%"},{"v":0.15218470858981648,"d":"15.22%"}]
[1629,{"$f":"IF('IV. Country level, 1310-2018'!C323<0,'III. GDP shares, 1310-2018'!C325,\"\")","v":""},{"$f":"IF('IV. Country level, 1310-2018'!D323<0,'III. GDP shares, 1310-2018'!D325,\"\")","v":""},{"$f":"IF('IV. Country level, 1310-2018'!E323<0,'III. GDP shares, 1310-2018'!E325,\"\")","v":0.043139677950213215},{"$f":"IF('IV. Country level, 1310-2018'!F323<0,'III. GDP shares, 1310-2018'!F325,\"\")","v":""},{"$f":"IF('IV. Country level, 1310-2018'!G323<0,'III. GDP shares, 1310-2018'!G325,\"\")","v":""},{"$f":"IF('IV. Country level, 1310-2018'!H323<0,'III. GDP shares, 1310-2018'!H325,\"\")","v":""},{"$f":"IF('IV. Country level, 1310-2018'!I323<0,'III. GDP shares, 1310-2018'!I325,\"\")","v":""},{"$f":"IF('IV. Country level, 1310-2018'!J323<0,'III. GDP shares, 1310-2018'!J325,\"\")","v":""},null,0.043139677950213215,{"v":0.19064813893598362,"d":"19.06%"},{"v":0.20250823357139602,"d":"20.25%"},{"v":0.15713468362274283,"d":"15.71%"},{"v":0.15218470858981648,"d":"15.22%"}]
[1630,{"$f":"IF('IV. Country level, 1310-2018'!C324<0,'III. GDP shares, 1310-2018'!C326,\"\")","v":""},{"$f":"IF('IV. Country level, 1310-2018'!D324<0,'III. GDP shares, 1310-2018'!D326,\"\")","v":0.12074901635848355},{"$f":"IF('IV. Country level, 1310-2018'!E324<0,'III. GDP shares, 1310-2018'!E326,\"\")","v":0.043374643292598526},{"$f":"IF('IV. Country level, 1310-2018'!F324<0,'III. GDP shares, 1310-2018'!F326,\"\")","v":""},{"$f":"IF('IV. Country level, 1310-2018'!G324<0,'III. GDP shares, 1310-2018'!G326,\"\")","v":""},{"$f":"IF('IV. Country level, 1310-2018'!H324<0,'III. GDP shares, 1310-2018'!H326,\"\")","v":""},{"$f":"IF('IV. Country level, 1310-2018'!I324<0,'III. GDP shares, 1310-2018'!I326,\"\")","v":""},{"$f":"IF('IV. Country level, 1310-2018'!J324<0,'III. GDP shares, 1310-2018'!J326,\"\")","v":""},null,0.16412365965108208,{"v":0.15148483722877606,"d":"15.15%"},{"v":0.20250823357139602,"d":"20.25%"},{"v":0.15713468362274283,"d":"15.71%"},{"v":0.15218470858981648,"d":"15.22%"}]
[1631,{"$f":"IF('IV. Country level, 1310-2018'!C325<0,'III. GDP shares, 1310-2018'!C327,\"\")","v":""},{"$f":"IF('IV. Country level, 1310-2018'!D325<0,'III. GDP shares, 1310-2018'!D327,\"\")","v":""},{"$f":"IF('IV. Country level, 1310-2018'!E325<0,'III. GDP shares, 1310-2018'!E327,\"\")","v":""},{"$f":"IF('IV. Country level, 1310-2018'!F325<0,'III. GDP shares, 1310-2018'!F327,\"\")","v":""},{"$f":"IF('IV. Country level, 1310-2018'!G325<0,'III. GDP shares, 1310-2018'!G327,\"\")","v":0.27281797042652367},{"$f":"IF('IV. Country level, 1310-2018'!H325<0,'III. GDP shares, 1310-2018'!H327,\"\")","v":""},{"$f":"IF('IV. Country level, 1310-2018'!I325<0,'III. GDP shares, 1310-2018'!I327,\"\")","v":""},{"$f":"IF('IV. Country level, 1310-2018'!J325<0,'III. GDP shares, 1310-2018'!J327,\"\")","v":""},null,{"$f":"SUM(B327:I327)","v":0.27281797042652367},{"v":0.1877914616917539,"d":"18.78%"},{"v":0.20250823357139602,"d":"20.25%"},{"v":0.1543730601185964,"d":"15.44%"},{"v":0.15218470858981648,"d":"15.22%"}]
[1632,{"$f":"IF('IV. Country level, 1310-2018'!C326<0,'III. GDP shares, 1310-2018'!C328,\"\")","v":""},{"$f":"IF('IV. Country level, 1310-2018'!D326<0,'III. GDP shares, 1310-2018'!D328,\"\")","v":""},{"$f":"IF('IV. Country level, 1310-2018'!E326<0,'III. GDP shares, 1310-2018'!E328,\"\")","v":""},{"$f":"IF('IV. Country level, 1310-2018'!F326<0,'III. GDP shares, 1310-2018'!F328,\"\")","v":0.21035742057410664},{"$f":"IF('IV. Country level, 1310-2018'!G326<0,'III. GDP shares, 1310-2018'!G328,\"\")","v":""},{"$f":"IF('IV. Country level, 1310-2018'!H326<0,'III. GDP shares, 1310-2018'!H328,\"\")","v":""},{"$f":"IF('IV. Country level, 1310-2018'!I326<0,'III. GDP shares, 1310-2018'!I328,\"\")","v":""},{"$f":"IF('IV. Country level, 1310-2018'!J326<0,'III. GDP shares, 1310-2018'!J328,\"\")","v":""},null,0.21035742057410664,{"v":0.16495484352934167,"d":"16.50%"},{"v":0.20250823357139602,"d":"20.25%"},{"v":0.16599810804075574,"d":"16.60%"},{"v":0.15218470858981648,"d":"15.22%"}]
[1633,{"$f":"IF('IV. Country level, 1310-2018'!C327<0,'III. GDP shares, 1310-2018'!C329,\"\")","v":""},{"$f":"IF('IV. Country level, 1310-2018'!D327<0,'III. GDP shares, 1310-2018'!D329,\"\")","v":""},{"$f":"IF('IV. Country level, 1310-2018'!E327<0,'III. GDP shares, 1310-2018'!E329,\"\")","v":""},{"$f":"IF('IV. Country level, 1310-2018'!F327<0,'III. GDP shares, 1310-2018'!F329,\"\")","v":0.21009880486262134},{"$f":"IF('IV. Country level, 1310-2018'!G327<0,'III. GDP shares, 1310-2018'!G329,\"\")","v":""},{"$f":"IF('IV. Country level, 1310-2018'!H327<0,'III. GDP shares, 1310-2018'!H329,\"\")","v":""},{"$f":"IF('IV. Country level, 1310-2018'!I327<0,'III. GDP shares, 1310-2018'!I329,\"\")","v":""},{"$f":"IF('IV. Country level, 1310-2018'!J327<0,'III. GDP shares, 1310-2018'!J329,\"\")","v":""},null,0.21009880486262134,{"v":0.15879203239359693,"d":"15.88%"},{"$f":"AVERAGE(L$9:L$714)","v":{"v":0.20250823357139602,"d":"20.25%"}},{"v":0.1724758797996356,"d":"17.25%"},{"v":0.15218470858981648,"d":"15.22%"}]
[1634,{"$f":"IF('IV. Country level, 1310-2018'!C328<0,'III. GDP shares, 1310-2018'!C330,\"\")","v":""},{"$f":"IF('IV. Country level, 1310-2018'!D328<0,'III. GDP shares, 1310-2018'!D330,\"\")","v":""},{"$f":"IF('IV. Country level, 1310-2018'!E328<0,'III. GDP shares, 1310-2018'!E330,\"\")","v":0.04430515276920524},{"$f":"IF('IV. Country level, 1310-2018'!F328<0,'III. GDP shares, 1310-2018'!F330,\"\")","v":0.20984121847163947},{"$f":"IF('IV. Country level, 1310-2018'!G328<0,'III. GDP shares, 1310-2018'!G330,\"\")","v":""},{"$f":"IF('IV. Country level, 1310-2018'!H328<0,'III. GDP shares, 1310-2018'!H330,\"\")","v":""},{"$f":"IF('IV. Country level, 1310-2018'!I328<0,'III. GDP shares, 1310-2018'!I330,\"\")","v":""},{"$f":"IF('IV. Country level, 1310-2018'!J328<0,'III. GDP shares, 1310-2018'!J330,\"\")","v":""},null,0.2541463712408447,{"$f":"AVERAGE(K327:K333)","v":{"v":0.14177341969945526,"d":"14.18%"}},{"v":0.20250823357139602,"d":"20.25%"},{"v":0.1713330180938884,"d":"17.13%"},{"v":0.15218470858981648,"d":"15.22%"}]
[1635,{"$f":"IF('IV. Country level, 1310-2018'!C329<0,'III. GDP shares, 1310-2018'!C331,\"\")","v":""},{"$f":"IF('IV. Country level, 1310-2018'!D329<0,'III. GDP shares, 1310-2018'!D331,\"\")","v":""},{"$f":"IF('IV. Country level, 1310-2018'!E329<0,'III. GDP shares, 1310-2018'!E331,\"\")","v":""},{"$f":"IF('IV. Country level, 1310-2018'!F329<0,'III. GDP shares, 1310-2018'!F331,\"\")","v":""},{"$f":"IF('IV. Country level, 1310-2018'!G329<0,'III. GDP shares, 1310-2018'!G331,\"\")","v":""},{"$f":"IF('IV. Country level, 1310-2018'!H329<0,'III. GDP shares, 1310-2018'!H331,\"\")","v":""},{"$f":"IF('IV. Country level, 1310-2018'!I329<0,'III. GDP shares, 1310-2018'!I331,\"\")","v":""},{"$f":"IF('IV. Country level, 1310-2018'!J329<0,'III. GDP shares, 1310-2018'!J331,\"\")","v":""},null,0,{"v":0.10279942392423759,"d":"10.28%"},{"v":0.20250823357139602,"d":"20.25%"},{"v":0.16402929264902336,"d":"16.40%"},{"v":0.15218470858981648,"d":"15.22%"}]
[1636,{"$f":"IF('IV. Country level, 1310-2018'!C330<0,'III. GDP shares, 1310-2018'!C332,\"\")","v":""},{"$f":"IF('IV. Country level, 1310-2018'!D330<0,'III. GDP shares, 1310-2018'!D332,\"\")","v":""},{"$f":"IF('IV. Country level, 1310-2018'!E330<0,'III. GDP shares, 1310-2018'!E332,\"\")","v":""},{"$f":"IF('IV. Country level, 1310-2018'!F330<0,'III. GDP shares, 1310-2018'!F332,\"\")","v":""},{"$f":"IF('IV. Country level, 1310-2018'!G330<0,'III. GDP shares, 1310-2018'!G332,\"\")","v":""},{"$f":"IF('IV. Country level, 1310-2018'!H330<0,'III. GDP shares, 1310-2018'!H332,\"\")","v":""},{"$f":"IF('IV. Country level, 1310-2018'!I330<0,'III. GDP shares, 1310-2018'!I332,\"\")","v":""},{"$f":"IF('IV. Country level, 1310-2018'!J330<0,'III. GDP shares, 1310-2018'!J332,\"\")","v":""},null,0,{"v":0.07274836384222236,"d":"7.27%"},{"v":0.20250823357139602,"d":"20.25%"},{"v":0.15026016756037877,"d":"15.03%"},{"v":0.15218470858981648,"d":"15.22%"}]
[1637,{"$f":"IF('IV. Country level, 1310-2018'!C331<0,'III. GDP shares, 1310-2018'!C333,\"\")","v":""},{"$f":"IF('IV. Country level, 1310-2018'!D331<0,'III. GDP shares, 1310-2018'!D333,\"\")","v":""},{"$f":"IF('IV. Country level, 1310-2018'!E331<0,'III. GDP shares, 1310-2018'!E333,\"\")","v":0.04499337079209038},{"$f":"IF('IV. Country level, 1310-2018'!F331<0,'III. GDP shares, 1310-2018'!F333,\"\")","v":""},{"$f":"IF('IV. Country level, 1310-2018'!G331<0,'III. GDP shares, 1310-2018'!G333,\"\")","v":""},{"$f":"IF('IV. Country level, 1310-2018'!H331<0,'III. GDP shares, 1310-2018'!H333,\"\")","v":""},{"$f":"IF('IV. Country level, 1310-2018'!I331<0,'III. GDP shares, 1310-2018'!I333,\"\")","v":""},{"$f":"IF('IV. Country level, 1310-2018'!J331<0,'III. GDP shares, 1310-2018'!J333,\"\")","v":""},null,0.04499337079209038,{"v":0.049259030035460394,"d":"4.93%"},{"v":0.20250823357139602,"d":"20.25%"},{"v":0.14378915552768323,"d":"14.38%"},{"v":0.15218470858981648,"d":"15.22%"}]
[1638,{"$f":"IF('IV. Country level, 1310-2018'!C332<0,'III. GDP shares, 1310-2018'!C334,\"\")","v":""},{"$f":"IF('IV. Country level, 1310-2018'!D332<0,'III. GDP shares, 1310-2018'!D334,\"\")","v":""},{"$f":"IF('IV. Country level, 1310-2018'!E332<0,'III. GDP shares, 1310-2018'!E334,\"\")","v":""},{"$f":"IF('IV. Country level, 1310-2018'!F332<0,'III. GDP shares, 1310-2018'!F334,\"\")","v":""},{"$f":"IF('IV. Country level, 1310-2018'!G332<0,'III. GDP shares, 1310-2018'!G334,\"\")","v":""},{"$f":"IF('IV. Country level, 1310-2018'!H332<0,'III. GDP shares, 1310-2018'!H334,\"\")","v":""},{"$f":"IF('IV. Country level, 1310-2018'!I332<0,'III. GDP shares, 1310-2018'!I334,\"\")","v":""},{"$f":"IF('IV. Country level, 1310-2018'!J332<0,'III. GDP shares, 1310-2018'!J334,\"\")","v":""},null,0,{"v":0.047421594636615126,"d":"4.74%"},{"v":0.20250823357139602,"d":"20.25%"},{"v":0.1373263696863643,"d":"13.73%"},{"v":0.15218470858981648,"d":"15.22%"}]
[1639,{"$f":"IF('IV. Country level, 1310-2018'!C333<0,'III. GDP shares, 1310-2018'!C335,\"\")","v":""},{"$f":"IF('IV. Country level, 1310-2018'!D333<0,'III. GDP shares, 1310-2018'!D335,\"\")","v":""},{"$f":"IF('IV. Country level, 1310-2018'!E333<0,'III. GDP shares, 1310-2018'!E335,\"\")","v":""},{"$f":"IF('IV. Country level, 1310-2018'!F333<0,'III. GDP shares, 1310-2018'!F335,\"\")","v":""},{"$f":"IF('IV. Country level, 1310-2018'!G333<0,'III. GDP shares, 1310-2018'!G335,\"\")","v":""},{"$f":"IF('IV. Country level, 1310-2018'!H333<0,'III. GDP shares, 1310-2018'!H335,\"\")","v":""},{"$f":"IF('IV. Country level, 1310-2018'!I333<0,'III. GDP shares, 1310-2018'!I335,\"\")","v":""},{"$f":"IF('IV. Country level, 1310-2018'!J333<0,'III. GDP shares, 1310-2018'!J335,\"\")","v":""},null,0,{"v":0.047421594636615126,"d":"4.74%"},{"v":0.20250823357139602,"d":"20.25%"},{"v":0.12251123869306789,"d":"12.25%"},{"v":0.15218470858981648,"d":"15.22%"}]
[1640,{"$f":"IF('IV. Country level, 1310-2018'!C334<0,'III. GDP shares, 1310-2018'!C336,\"\")","v":""},{"$f":"IF('IV. Country level, 1310-2018'!D334<0,'III. GDP shares, 1310-2018'!D336,\"\")","v":""},{"$f":"IF('IV. Country level, 1310-2018'!E334<0,'III. GDP shares, 1310-2018'!E336,\"\")","v":0.045673468215287644},{"$f":"IF('IV. Country level, 1310-2018'!F334<0,'III. GDP shares, 1310-2018'!F336,\"\")","v":""},{"$f":"IF('IV. Country level, 1310-2018'!G334<0,'III. GDP shares, 1310-2018'!G336,\"\")","v":""},{"$f":"IF('IV. Country level, 1310-2018'!H334<0,'III. GDP shares, 1310-2018'!H336,\"\")","v":""},{"$f":"IF('IV. Country level, 1310-2018'!I334<0,'III. GDP shares, 1310-2018'!I336,\"\")","v":""},{"$f":"IF('IV. Country level, 1310-2018'!J334<0,'III. GDP shares, 1310-2018'!J336,\"\")","v":""},null,0.045673468215287644,{"v":0.10955569850054804,"d":"10.96%"},{"v":0.20250823357139602,"d":"20.25%"},{"v":0.12321936451956111,"d":"12.32%"},{"v":0.15218470858981648,"d":"15.22%"}]
[1641,{"$f":"IF('IV. Country level, 1310-2018'!C335<0,'III. GDP shares, 1310-2018'!C337,\"\")","v":""},{"$f":"IF('IV. Country level, 1310-2018'!D335<0,'III. GDP shares, 1310-2018'!D337,\"\")","v":0.1263799578978755},{"$f":"IF('IV. Country level, 1310-2018'!E335<0,'III. GDP shares, 1310-2018'!E337,\"\")","v":""},{"$f":"IF('IV. Country level, 1310-2018'!F335<0,'III. GDP shares, 1310-2018'!F337,\"\")","v":""},{"$f":"IF('IV. Country level, 1310-2018'!G335<0,'III. GDP shares, 1310-2018'!G337,\"\")","v":""},{"$f":"IF('IV. Country level, 1310-2018'!H335<0,'III. GDP shares, 1310-2018'!H337,\"\")","v":""},{"$f":"IF('IV. Country level, 1310-2018'!I335<0,'III. GDP shares, 1310-2018'!I337,\"\")","v":0.11490436555105238},{"$f":"IF('IV. Country level, 1310-2018'!J335<0,'III. GDP shares, 1310-2018'!J337,\"\")","v":""},null,0.2412843234489279,{"v":0.11947756857994495,"d":"11.95%"},{"v":0.20250823357139602,"d":"20.25%"},{"v":0.12321936451956111,"d":"12.32%"},{"v":0.15218470858981648,"d":"15.22%"}]
[1642,{"$f":"IF('IV. Country level, 1310-2018'!C336<0,'III. GDP shares, 1310-2018'!C338,\"\")","v":""},{"$f":"IF('IV. Country level, 1310-2018'!D336<0,'III. GDP shares, 1310-2018'!D338,\"\")","v":""},{"$f":"IF('IV. Country level, 1310-2018'!E336<0,'III. GDP shares, 1310-2018'!E338,\"\")","v":""},{"$f":"IF('IV. Country level, 1310-2018'!F336<0,'III. GDP shares, 1310-2018'!F338,\"\")","v":""},{"$f":"IF('IV. Country level, 1310-2018'!G336<0,'III. GDP shares, 1310-2018'!G338,\"\")","v":""},{"$f":"IF('IV. Country level, 1310-2018'!H336<0,'III. GDP shares, 1310-2018'!H338,\"\")","v":""},{"$f":"IF('IV. Country level, 1310-2018'!I336<0,'III. GDP shares, 1310-2018'!I338,\"\")","v":""},{"$f":"IF('IV. Country level, 1310-2018'!J336<0,'III. GDP shares, 1310-2018'!J338,\"\")","v":""},null,0,{"v":0.11947756857994495,"d":"11.95%"},{"v":0.20250823357139602,"d":"20.25%"},{"v":0.1288015102843878,"d":"12.88%"},{"v":0.15218470858981648,"d":"15.22%"}]
[1643,{"$f":"IF('IV. Country level, 1310-2018'!C337<0,'III. GDP shares, 1310-2018'!C339,\"\")","v":""},{"$f":"IF('IV. Country level, 1310-2018'!D337<0,'III. GDP shares, 1310-2018'!D339,\"\")","v":""},{"$f":"IF('IV. Country level, 1310-2018'!E337<0,'III. GDP shares, 1310-2018'!E339,\"\")","v":0.046345587923827085},{"$f":"IF('IV. Country level, 1310-2018'!F337<0,'III. GDP shares, 1310-2018'!F339,\"\")","v":""},{"$f":"IF('IV. Country level, 1310-2018'!G337<0,'III. GDP shares, 1310-2018'!G339,\"\")","v":0.27399463985611017},{"$f":"IF('IV. Country level, 1310-2018'!H337<0,'III. GDP shares, 1310-2018'!H339,\"\")","v":""},{"$f":"IF('IV. Country level, 1310-2018'!I337<0,'III. GDP shares, 1310-2018'!I339,\"\")","v":0.11459849926759315},{"$f":"IF('IV. Country level, 1310-2018'!J337<0,'III. GDP shares, 1310-2018'!J339,\"\")","v":""},null,0.4349387270475304,{"v":0.11947756857994495,"d":"11.95%"},{"v":0.20250823357139602,"d":"20.25%"},{"v":0.12590350472613232,"d":"12.59%"},{"v":0.15218470858981648,"d":"15.22%"}]
[1644,{"$f":"IF('IV. Country level, 1310-2018'!C338<0,'III. GDP shares, 1310-2018'!C340,\"\")","v":""},{"$f":"IF('IV. Country level, 1310-2018'!D338<0,'III. GDP shares, 1310-2018'!D340,\"\")","v":""},{"$f":"IF('IV. Country level, 1310-2018'!E338<0,'III. GDP shares, 1310-2018'!E340,\"\")","v":""},{"$f":"IF('IV. Country level, 1310-2018'!F338<0,'III. GDP shares, 1310-2018'!F340,\"\")","v":""},{"$f":"IF('IV. Country level, 1310-2018'!G338<0,'III. GDP shares, 1310-2018'!G340,\"\")","v":""},{"$f":"IF('IV. Country level, 1310-2018'!H338<0,'III. GDP shares, 1310-2018'!H340,\"\")","v":""},{"$f":"IF('IV. Country level, 1310-2018'!I338<0,'III. GDP shares, 1310-2018'!I340,\"\")","v":0.11444646134786875},{"$f":"IF('IV. Country level, 1310-2018'!J338<0,'III. GDP shares, 1310-2018'!J340,\"\")","v":""},null,0.11444646134786875,{"v":0.14771621290890385,"d":"14.77%"},{"v":0.20250823357139602,"d":"20.25%"},{"v":0.13206975086117778,"d":"13.21%"},{"v":0.15218470858981648,"d":"15.22%"}]
[1645,{"$f":"IF('IV. Country level, 1310-2018'!C339<0,'III. GDP shares, 1310-2018'!C341,\"\")","v":""},{"$f":"IF('IV. Country level, 1310-2018'!D339<0,'III. GDP shares, 1310-2018'!D341,\"\")","v":""},{"$f":"IF('IV. Country level, 1310-2018'!E339<0,'III. GDP shares, 1310-2018'!E341,\"\")","v":""},{"$f":"IF('IV. Country level, 1310-2018'!F339<0,'III. GDP shares, 1310-2018'!F341,\"\")","v":""},{"$f":"IF('IV. Country level, 1310-2018'!G339<0,'III. GDP shares, 1310-2018'!G341,\"\")","v":""},{"$f":"IF('IV. Country level, 1310-2018'!H339<0,'III. GDP shares, 1310-2018'!H341,\"\")","v":""},{"$f":"IF('IV. Country level, 1310-2018'!I339<0,'III. GDP shares, 1310-2018'!I341,\"\")","v":""},{"$f":"IF('IV. Country level, 1310-2018'!J339<0,'III. GDP shares, 1310-2018'!J341,\"\")","v":""},null,0,{"v":0.16805082119209397,"d":"16.81%"},{"v":0.20250823357139602,"d":"20.25%"},{"v":0.14738170474474635,"d":"14.74%"},{"v":0.15218470858981648,"d":"15.22%"}]
[1646,{"$f":"IF('IV. Country level, 1310-2018'!C340<0,'III. GDP shares, 1310-2018'!C342,\"\")","v":""},{"$f":"IF('IV. Country level, 1310-2018'!D340<0,'III. GDP shares, 1310-2018'!D342,\"\")","v":""},{"$f":"IF('IV. Country level, 1310-2018'!E340<0,'III. GDP shares, 1310-2018'!E342,\"\")","v":""},{"$f":"IF('IV. Country level, 1310-2018'!F340<0,'III. GDP shares, 1310-2018'!F342,\"\")","v":""},{"$f":"IF('IV. Country level, 1310-2018'!G340<0,'III. GDP shares, 1310-2018'!G342,\"\")","v":""},{"$f":"IF('IV. Country level, 1310-2018'!H340<0,'III. GDP shares, 1310-2018'!H342,\"\")","v":""},{"$f":"IF('IV. Country level, 1310-2018'!I340<0,'III. GDP shares, 1310-2018'!I342,\"\")","v":""},{"$f":"IF('IV. Country level, 1310-2018'!J340<0,'III. GDP shares, 1310-2018'!J342,\"\")","v":""},null,0,{"v":0.2043027258507279,"d":"20.43%"},{"v":0.20250823357139602,"d":"20.25%"},{"v":0.15443046694740936,"d":"15.44%"},{"v":0.15218470858981648,"d":"15.22%"}]
[1647,{"$f":"IF('IV. Country level, 1310-2018'!C341<0,'III. GDP shares, 1310-2018'!C343,\"\")","v":""},{"$f":"IF('IV. Country level, 1310-2018'!D341<0,'III. GDP shares, 1310-2018'!D343,\"\")","v":0.1293500917200699},{"$f":"IF('IV. Country level, 1310-2018'!E341<0,'III. GDP shares, 1310-2018'!E343,\"\")","v":""},{"$f":"IF('IV. Country level, 1310-2018'!F341<0,'III. GDP shares, 1310-2018'!F343,\"\")","v":""},{"$f":"IF('IV. Country level, 1310-2018'!G341<0,'III. GDP shares, 1310-2018'!G343,\"\")","v":""},{"$f":"IF('IV. Country level, 1310-2018'!H341<0,'III. GDP shares, 1310-2018'!H343,\"\")","v":""},{"$f":"IF('IV. Country level, 1310-2018'!I341<0,'III. GDP shares, 1310-2018'!I343,\"\")","v":0.11399388679793004},{"$f":"IF('IV. Country level, 1310-2018'!J341<0,'III. GDP shares, 1310-2018'!J343,\"\")","v":""},null,0.24334397851799994,{"v":0.18824569323035142,"d":"18.82%"},{"v":0.20250823357139602,"d":"20.25%"},{"$f":"AVERAGE(K327:K359)","v":{"v":0.14945702271555836,"d":"14.95%"}},{"v":0.15218470858981648,"d":"15.22%"}]
[1648,{"$f":"IF('IV. Country level, 1310-2018'!C342<0,'III. GDP shares, 1310-2018'!C344,\"\")","v":""},{"$f":"IF('IV. Country level, 1310-2018'!D342<0,'III. GDP shares, 1310-2018'!D344,\"\")","v":0.12983840507893113},{"$f":"IF('IV. Country level, 1310-2018'!E342<0,'III. GDP shares, 1310-2018'!E344,\"\")","v":0.04744843674683458},{"$f":"IF('IV. Country level, 1310-2018'!F342<0,'III. GDP shares, 1310-2018'!F344,\"\")","v":0.20633973960549312},{"$f":"IF('IV. Country level, 1310-2018'!G342<0,'III. GDP shares, 1310-2018'!G344,\"\")","v":""},{"$f":"IF('IV. Country level, 1310-2018'!H342<0,'III. GDP shares, 1310-2018'!H344,\"\")","v":""},{"$f":"IF('IV. Country level, 1310-2018'!I342<0,'III. GDP shares, 1310-2018'!I344,\"\")","v":""},{"$f":"IF('IV. Country level, 1310-2018'!J342<0,'III. GDP shares, 1310-2018'!J344,\"\")","v":""},null,0.38362658143125883,{"v":0.17189619875208453,"d":"17.19%"},{"v":0.20250823357139602,"d":"20.25%"},{"v":0.14456937575268916,"d":"14.46%"},{"v":0.15218470858981648,"d":"15.22%"}]
[1649,{"$f":"IF('IV. Country level, 1310-2018'!C343<0,'III. GDP shares, 1310-2018'!C345,\"\")","v":""},{"$f":"IF('IV. Country level, 1310-2018'!D343<0,'III. GDP shares, 1310-2018'!D345,\"\")","v":""},{"$f":"IF('IV. Country level, 1310-2018'!E343<0,'III. GDP shares, 1310-2018'!E345,\"\")","v":0.04766644917060608},{"$f":"IF('IV. Country level, 1310-2018'!F343<0,'III. GDP shares, 1310-2018'!F345,\"\")","v":0.20609688343983126},{"$f":"IF('IV. Country level, 1310-2018'!G343<0,'III. GDP shares, 1310-2018'!G345,\"\")","v":""},{"$f":"IF('IV. Country level, 1310-2018'!H343<0,'III. GDP shares, 1310-2018'!H345,\"\")","v":""},{"$f":"IF('IV. Country level, 1310-2018'!I343<0,'III. GDP shares, 1310-2018'!I345,\"\")","v":""},{"$f":"IF('IV. Country level, 1310-2018'!J343<0,'III. GDP shares, 1310-2018'!J345,\"\")","v":""},null,0.2537633326104373,{"v":0.17189619875208453,"d":"17.19%"},{"v":0.20250823357139602,"d":"20.25%"},{"v":0.14311699401306752,"d":"14.31%"},{"v":0.15218470858981648,"d":"15.22%"}]
[1650,{"$f":"IF('IV. Country level, 1310-2018'!C344<0,'III. GDP shares, 1310-2018'!C346,\"\")","v":""},{"$f":"IF('IV. Country level, 1310-2018'!D344<0,'III. GDP shares, 1310-2018'!D346,\"\")","v":""},{"$f":"IF('IV. Country level, 1310-2018'!E344<0,'III. GDP shares, 1310-2018'!E346,\"\")","v":0.04788362065592495},{"$f":"IF('IV. Country level, 1310-2018'!F344<0,'III. GDP shares, 1310-2018'!F346,\"\")","v":""},{"$f":"IF('IV. Country level, 1310-2018'!G344<0,'III. GDP shares, 1310-2018'!G346,\"\")","v":0.27465587804897046},{"$f":"IF('IV. Country level, 1310-2018'!H344<0,'III. GDP shares, 1310-2018'!H346,\"\")","v":""},{"$f":"IF('IV. Country level, 1310-2018'!I344<0,'III. GDP shares, 1310-2018'!I346,\"\")","v":""},{"$f":"IF('IV. Country level, 1310-2018'!J344<0,'III. GDP shares, 1310-2018'!J346,\"\")","v":""},null,0.3225394987048954,{"v":0.17189619875208453,"d":"17.19%"},{"v":0.20250823357139602,"d":"20.25%"},{"v":0.13675036356268505,"d":"13.68%"},{"v":0.15218470858981648,"d":"15.22%"}]
[1651,{"$f":"IF('IV. Country level, 1310-2018'!C345<0,'III. GDP shares, 1310-2018'!C347,\"\")","v":""},{"$f":"IF('IV. Country level, 1310-2018'!D345<0,'III. GDP shares, 1310-2018'!D347,\"\")","v":""},{"$f":"IF('IV. Country level, 1310-2018'!E345<0,'III. GDP shares, 1310-2018'!E347,\"\")","v":""},{"$f":"IF('IV. Country level, 1310-2018'!F345<0,'III. GDP shares, 1310-2018'!F347,\"\")","v":""},{"$f":"IF('IV. Country level, 1310-2018'!G345<0,'III. GDP shares, 1310-2018'!G347,\"\")","v":""},{"$f":"IF('IV. Country level, 1310-2018'!H345<0,'III. GDP shares, 1310-2018'!H347,\"\")","v":""},{"$f":"IF('IV. Country level, 1310-2018'!I345<0,'III. GDP shares, 1310-2018'!I347,\"\")","v":""},{"$f":"IF('IV. Country level, 1310-2018'!J345<0,'III. GDP shares, 1310-2018'!J347,\"\")","v":""},null,0,{"v":0.13713277324951306,"d":"13.71%"},{"v":0.20250823357139602,"d":"20.25%"},{"v":0.12904895837356856,"d":"12.90%"},{"v":0.15218470858981648,"d":"15.22%"}]
[1652,{"$f":"IF('IV. Country level, 1310-2018'!C346<0,'III. GDP shares, 1310-2018'!C348,\"\")","v":""},{"$f":"IF('IV. Country level, 1310-2018'!D346<0,'III. GDP shares, 1310-2018'!D348,\"\")","v":""},{"$f":"IF('IV. Country level, 1310-2018'!E346<0,'III. GDP shares, 1310-2018'!E348,\"\")","v":""},{"$f":"IF('IV. Country level, 1310-2018'!F346<0,'III. GDP shares, 1310-2018'!F348,\"\")","v":""},{"$f":"IF('IV. Country level, 1310-2018'!G346<0,'III. GDP shares, 1310-2018'!G348,\"\")","v":""},{"$f":"IF('IV. Country level, 1310-2018'!H346<0,'III. GDP shares, 1310-2018'!H348,\"\")","v":""},{"$f":"IF('IV. Country level, 1310-2018'!I346<0,'III. GDP shares, 1310-2018'!I348,\"\")","v":""},{"$f":"IF('IV. Country level, 1310-2018'!J346<0,'III. GDP shares, 1310-2018'!J348,\"\")","v":""},null,0,{"v":0.08232897590219038,"d":"8.23%"},{"v":0.20250823357139602,"d":"20.25%"},{"v":0.1339768933021811,"d":"13.40%"},{"v":0.15218470858981648,"d":"15.22%"}]
[1653,{"$f":"IF('IV. Country level, 1310-2018'!C347<0,'III. GDP shares, 1310-2018'!C349,\"\")","v":""},{"$f":"IF('IV. Country level, 1310-2018'!D347<0,'III. GDP shares, 1310-2018'!D349,\"\")","v":""},{"$f":"IF('IV. Country level, 1310-2018'!E347<0,'III. GDP shares, 1310-2018'!E349,\"\")","v":""},{"$f":"IF('IV. Country level, 1310-2018'!F347<0,'III. GDP shares, 1310-2018'!F349,\"\")","v":""},{"$f":"IF('IV. Country level, 1310-2018'!G347<0,'III. GDP shares, 1310-2018'!G349,\"\")","v":""},{"$f":"IF('IV. Country level, 1310-2018'!H347<0,'III. GDP shares, 1310-2018'!H349,\"\")","v":""},{"$f":"IF('IV. Country level, 1310-2018'!I347<0,'III. GDP shares, 1310-2018'!I349,\"\")","v":""},{"$f":"IF('IV. Country level, 1310-2018'!J347<0,'III. GDP shares, 1310-2018'!J349,\"\")","v":""},null,0,{"v":0.07219809101125198,"d":"7.22%"},{"v":0.20250823357139602,"d":"20.25%"},{"v":0.1339768933021811,"d":"13.40%"},{"v":0.15218470858981648,"d":"15.22%"}]
[1654,{"$f":"IF('IV. Country level, 1310-2018'!C348<0,'III. GDP shares, 1310-2018'!C350,\"\")","v":""},{"$f":"IF('IV. Country level, 1310-2018'!D348<0,'III. GDP shares, 1310-2018'!D350,\"\")","v":""},{"$f":"IF('IV. Country level, 1310-2018'!E348<0,'III. GDP shares, 1310-2018'!E350,\"\")","v":""},{"$f":"IF('IV. Country level, 1310-2018'!F348<0,'III. GDP shares, 1310-2018'!F350,\"\")","v":""},{"$f":"IF('IV. Country level, 1310-2018'!G348<0,'III. GDP shares, 1310-2018'!G350,\"\")","v":""},{"$f":"IF('IV. Country level, 1310-2018'!H348<0,'III. GDP shares, 1310-2018'!H350,\"\")","v":""},{"$f":"IF('IV. Country level, 1310-2018'!I348<0,'III. GDP shares, 1310-2018'!I350,\"\")","v":""},{"$f":"IF('IV. Country level, 1310-2018'!J348<0,'III. GDP shares, 1310-2018'!J350,\"\")","v":""},null,0,{"v":0.026121019767695493,"d":"2.61%"},{"v":0.20250823357139602,"d":"20.25%"},{"v":0.1341909629161043,"d":"13.42%"},{"v":0.15218470858981648,"d":"15.22%"}]
[1655,{"$f":"IF('IV. Country level, 1310-2018'!C349<0,'III. GDP shares, 1310-2018'!C351,\"\")","v":""},{"$f":"IF('IV. Country level, 1310-2018'!D349<0,'III. GDP shares, 1310-2018'!D351,\"\")","v":""},{"$f":"IF('IV. Country level, 1310-2018'!E349<0,'III. GDP shares, 1310-2018'!E351,\"\")","v":""},{"$f":"IF('IV. Country level, 1310-2018'!F349<0,'III. GDP shares, 1310-2018'!F351,\"\")","v":""},{"$f":"IF('IV. Country level, 1310-2018'!G349<0,'III. GDP shares, 1310-2018'!G351,\"\")","v":""},{"$f":"IF('IV. Country level, 1310-2018'!H349<0,'III. GDP shares, 1310-2018'!H351,\"\")","v":""},{"$f":"IF('IV. Country level, 1310-2018'!I349<0,'III. GDP shares, 1310-2018'!I351,\"\")","v":""},{"$f":"IF('IV. Country level, 1310-2018'!J349<0,'III. GDP shares, 1310-2018'!J351,\"\")","v":""},null,0,{"v":0.052436849801878446,"d":"5.24%"},{"v":0.20250823357139602,"d":"20.25%"},{"v":0.1341909629161043,"d":"13.42%"},{"v":0.15218470858981648,"d":"15.22%"}]
[1656,{"$f":"IF('IV. Country level, 1310-2018'!C350<0,'III. GDP shares, 1310-2018'!C352,\"\")","v":""},{"$f":"IF('IV. Country level, 1310-2018'!D350<0,'III. GDP shares, 1310-2018'!D352,\"\")","v":0.13367787915563809},{"$f":"IF('IV. Country level, 1310-2018'!E350<0,'III. GDP shares, 1310-2018'!E352,\"\")","v":0.04916925921823038},{"$f":"IF('IV. Country level, 1310-2018'!F350<0,'III. GDP shares, 1310-2018'!F352,\"\")","v":""},{"$f":"IF('IV. Country level, 1310-2018'!G350<0,'III. GDP shares, 1310-2018'!G352,\"\")","v":""},{"$f":"IF('IV. Country level, 1310-2018'!H350<0,'III. GDP shares, 1310-2018'!H352,\"\")","v":""},{"$f":"IF('IV. Country level, 1310-2018'!I350<0,'III. GDP shares, 1310-2018'!I352,\"\")","v":""},{"$f":"IF('IV. Country level, 1310-2018'!J350<0,'III. GDP shares, 1310-2018'!J352,\"\")","v":""},null,0.18284713837386846,{"v":0.10795224028625607,"d":"10.80%"},{"v":0.20250823357139602,"d":"20.25%"},{"v":0.13578060179728463,"d":"13.58%"},{"v":0.15218470858981648,"d":"15.22%"}]
[1657,{"$f":"IF('IV. Country level, 1310-2018'!C351<0,'III. GDP shares, 1310-2018'!C353,\"\")","v":""},{"$f":"IF('IV. Country level, 1310-2018'!D351<0,'III. GDP shares, 1310-2018'!D353,\"\")","v":""},{"$f":"IF('IV. Country level, 1310-2018'!E351<0,'III. GDP shares, 1310-2018'!E353,\"\")","v":""},{"$f":"IF('IV. Country level, 1310-2018'!F351<0,'III. GDP shares, 1310-2018'!F353,\"\")","v":""},{"$f":"IF('IV. Country level, 1310-2018'!G351<0,'III. GDP shares, 1310-2018'!G353,\"\")","v":""},{"$f":"IF('IV. Country level, 1310-2018'!H351<0,'III. GDP shares, 1310-2018'!H353,\"\")","v":""},{"$f":"IF('IV. Country level, 1310-2018'!I351<0,'III. GDP shares, 1310-2018'!I353,\"\")","v":""},{"$f":"IF('IV. Country level, 1310-2018'!J351<0,'III. GDP shares, 1310-2018'!J353,\"\")","v":""},null,0,{"v":0.1370216863514704,"d":"13.70%"},{"v":0.20250823357139602,"d":"20.25%"},{"v":0.13439655730591227,"d":"13.44%"},{"v":0.15218470858981648,"d":"15.22%"}]
[1658,{"$f":"IF('IV. Country level, 1310-2018'!C352<0,'III. GDP shares, 1310-2018'!C354,\"\")","v":""},{"$f":"IF('IV. Country level, 1310-2018'!D352<0,'III. GDP shares, 1310-2018'!D354,\"\")","v":0.1346195164821888},{"$f":"IF('IV. Country level, 1310-2018'!E352<0,'III. GDP shares, 1310-2018'!E354,\"\")","v":0.049591293757091835},{"$f":"IF('IV. Country level, 1310-2018'!F352<0,'III. GDP shares, 1310-2018'!F354,\"\")","v":""},{"$f":"IF('IV. Country level, 1310-2018'!G352<0,'III. GDP shares, 1310-2018'!G354,\"\")","v":""},{"$f":"IF('IV. Country level, 1310-2018'!H352<0,'III. GDP shares, 1310-2018'!H354,\"\")","v":""},{"$f":"IF('IV. Country level, 1310-2018'!I352<0,'III. GDP shares, 1310-2018'!I354,\"\")","v":""},{"$f":"IF('IV. Country level, 1310-2018'!J352<0,'III. GDP shares, 1310-2018'!J354,\"\")","v":""},null,0.18421081023928065,{"v":0.23204322996499158,"d":"23.20%"},{"v":0.20250823357139602,"d":"20.25%"},{"v":0.13745518775164117,"d":"13.75%"},{"v":0.15218470858981648,"d":"15.22%"}]
[1659,{"$f":"IF('IV. Country level, 1310-2018'!C353<0,'III. GDP shares, 1310-2018'!C355,\"\")","v":""},{"$f":"IF('IV. Country level, 1310-2018'!D353<0,'III. GDP shares, 1310-2018'!D355,\"\")","v":0.13508765749327328},{"$f":"IF('IV. Country level, 1310-2018'!E353<0,'III. GDP shares, 1310-2018'!E355,\"\")","v":0.049801110923599984},{"$f":"IF('IV. Country level, 1310-2018'!F353<0,'III. GDP shares, 1310-2018'!F355,\"\")","v":0.20371896497377012},{"$f":"IF('IV. Country level, 1310-2018'!G353<0,'III. GDP shares, 1310-2018'!G355,\"\")","v":""},{"$f":"IF('IV. Country level, 1310-2018'!H353<0,'III. GDP shares, 1310-2018'!H355,\"\")","v":""},{"$f":"IF('IV. Country level, 1310-2018'!I353<0,'III. GDP shares, 1310-2018'!I355,\"\")","v":""},{"$f":"IF('IV. Country level, 1310-2018'!J353<0,'III. GDP shares, 1310-2018'!J355,\"\")","v":""},null,0.38860773339064336,{"v":0.27143592005614753,"d":"27.14%"},{"v":0.20250823357139602,"d":"20.25%"},{"v":0.1562224098812994,"d":"15.62%"},{"v":0.15218470858981648,"d":"15.22%"}]
[1660,{"$f":"IF('IV. Country level, 1310-2018'!C354<0,'III. GDP shares, 1310-2018'!C356,\"\")","v":""},{"$f":"IF('IV. Country level, 1310-2018'!D354<0,'III. GDP shares, 1310-2018'!D356,\"\")","v":""},{"$f":"IF('IV. Country level, 1310-2018'!E354<0,'III. GDP shares, 1310-2018'!E356,\"\")","v":""},{"$f":"IF('IV. Country level, 1310-2018'!F354<0,'III. GDP shares, 1310-2018'!F356,\"\")","v":0.20348612245650044},{"$f":"IF('IV. Country level, 1310-2018'!G354<0,'III. GDP shares, 1310-2018'!G356,\"\")","v":""},{"$f":"IF('IV. Country level, 1310-2018'!H354<0,'III. GDP shares, 1310-2018'!H356,\"\")","v":""},{"$f":"IF('IV. Country level, 1310-2018'!I354<0,'III. GDP shares, 1310-2018'!I356,\"\")","v":""},{"$f":"IF('IV. Country level, 1310-2018'!J354<0,'III. GDP shares, 1310-2018'!J356,\"\")","v":""},null,0.20348612245650044,{"v":0.24531490028845207,"d":"24.53%"},{"v":0.20250823357139602,"d":"20.25%"},{"v":0.1463720275603847,"d":"14.64%"},{"v":0.15218470858981648,"d":"15.22%"}]
[1661,{"$f":"IF('IV. Country level, 1310-2018'!C355<0,'III. GDP shares, 1310-2018'!C357,\"\")","v":""},{"$f":"IF('IV. Country level, 1310-2018'!D355<0,'III. GDP shares, 1310-2018'!D357,\"\")","v":0.13601863478070456},{"$f":"IF('IV. Country level, 1310-2018'!E355<0,'III. GDP shares, 1310-2018'!E357,\"\")","v":0.050218367715692935},{"$f":"IF('IV. Country level, 1310-2018'!F355<0,'III. GDP shares, 1310-2018'!F357,\"\")","v":0.20325415942337519},{"$f":"IF('IV. Country level, 1310-2018'!G355<0,'III. GDP shares, 1310-2018'!G357,\"\")","v":0.2756596433748756},{"$f":"IF('IV. Country level, 1310-2018'!H355<0,'III. GDP shares, 1310-2018'!H357,\"\")","v":""},{"$f":"IF('IV. Country level, 1310-2018'!I355<0,'III. GDP shares, 1310-2018'!I357,\"\")","v":""},{"$f":"IF('IV. Country level, 1310-2018'!J355<0,'III. GDP shares, 1310-2018'!J357,\"\")","v":""},null,0.6651508052946482,{"v":0.26124713181014364,"d":"26.12%"},{"v":0.20250823357139602,"d":"20.25%"},{"v":0.14622946591725042,"d":"14.62%"},{"v":0.15218470858981648,"d":"15.22%"}]
[1662,{"$f":"IF('IV. Country level, 1310-2018'!C356<0,'III. GDP shares, 1310-2018'!C358,\"\")","v":""},{"$f":"IF('IV. Country level, 1310-2018'!D356<0,'III. GDP shares, 1310-2018'!D358,\"\")","v":""},{"$f":"IF('IV. Country level, 1310-2018'!E356<0,'III. GDP shares, 1310-2018'!E358,\"\")","v":""},{"$f":"IF('IV. Country level, 1310-2018'!F356<0,'III. GDP shares, 1310-2018'!F358,\"\")","v":""},{"$f":"IF('IV. Country level, 1310-2018'!G356<0,'III. GDP shares, 1310-2018'!G358,\"\")","v":0.2757488306380917},{"$f":"IF('IV. Country level, 1310-2018'!H356<0,'III. GDP shares, 1310-2018'!H358,\"\")","v":""},{"$f":"IF('IV. Country level, 1310-2018'!I356<0,'III. GDP shares, 1310-2018'!I358,\"\")","v":""},{"$f":"IF('IV. Country level, 1310-2018'!J356<0,'III. GDP shares, 1310-2018'!J358,\"\")","v":""},null,0.2757488306380917,{"v":0.2581354193711879,"d":"25.81%"},{"v":0.20250823357139602,"d":"20.25%"},{"v":0.149550927579606,"d":"14.96%"},{"v":0.15218470858981648,"d":"15.22%"}]
[1663,{"$f":"IF('IV. Country level, 1310-2018'!C357<0,'III. GDP shares, 1310-2018'!C359,\"\")","v":""},{"$f":"IF('IV. Country level, 1310-2018'!D357<0,'III. GDP shares, 1310-2018'!D359,\"\")","v":""},{"$f":"IF('IV. Country level, 1310-2018'!E357<0,'III. GDP shares, 1310-2018'!E359,\"\")","v":""},{"$f":"IF('IV. Country level, 1310-2018'!F357<0,'III. GDP shares, 1310-2018'!F359,\"\")","v":""},{"$f":"IF('IV. Country level, 1310-2018'!G357<0,'III. GDP shares, 1310-2018'!G359,\"\")","v":""},{"$f":"IF('IV. Country level, 1310-2018'!H357<0,'III. GDP shares, 1310-2018'!H359,\"\")","v":""},{"$f":"IF('IV. Country level, 1310-2018'!I357<0,'III. GDP shares, 1310-2018'!I359,\"\")","v":""},{"$f":"IF('IV. Country level, 1310-2018'!J357<0,'III. GDP shares, 1310-2018'!J359,\"\")","v":""},null,0,{"v":0.20262002888681027,"d":"20.26%"},{"v":0.20250823357139602,"d":"20.25%"},{"v":0.149550927579606,"d":"14.96%"},{"v":0.15218470858981648,"d":"15.22%"}]
[1664,{"$f":"IF('IV. Country level, 1310-2018'!C358<0,'III. GDP shares, 1310-2018'!C360,\"\")","v":""},{"$f":"IF('IV. Country level, 1310-2018'!D358<0,'III. GDP shares, 1310-2018'!D360,\"\")","v":""},{"$f":"IF('IV. Country level, 1310-2018'!E358<0,'III. GDP shares, 1310-2018'!E360,\"\")","v":""},{"$f":"IF('IV. Country level, 1310-2018'!F358<0,'III. GDP shares, 1310-2018'!F360,\"\")","v":""},{"$f":"IF('IV. Country level, 1310-2018'!G358<0,'III. GDP shares, 1310-2018'!G360,\"\")","v":""},{"$f":"IF('IV. Country level, 1310-2018'!H358<0,'III. GDP shares, 1310-2018'!H360,\"\")","v":""},{"$f":"IF('IV. Country level, 1310-2018'!I358<0,'III. GDP shares, 1310-2018'!I360,\"\")","v":0.1115256206518409},{"$f":"IF('IV. Country level, 1310-2018'!J358<0,'III. GDP shares, 1310-2018'!J360,\"\")","v":""},null,0.1115256206518409,{"v":0.17355058282159594,"d":"17.36%"},{"v":0.20250823357139602,"d":"20.25%"},{"v":0.14549027104207377,"d":"14.55%"},{"v":0.15218470858981648,"d":"15.22%"}]
[1665,{"$f":"IF('IV. Country level, 1310-2018'!C359<0,'III. GDP shares, 1310-2018'!C361,\"\")","v":""},{"$f":"IF('IV. Country level, 1310-2018'!D359<0,'III. GDP shares, 1310-2018'!D361,\"\")","v":""},{"$f":"IF('IV. Country level, 1310-2018'!E359<0,'III. GDP shares, 1310-2018'!E361,\"\")","v":0.051043495918573704},{"$f":"IF('IV. Country level, 1310-2018'!F359<0,'III. GDP shares, 1310-2018'!F361,\"\")","v":""},{"$f":"IF('IV. Country level, 1310-2018'!G359<0,'III. GDP shares, 1310-2018'!G361,\"\")","v":""},{"$f":"IF('IV. Country level, 1310-2018'!H359<0,'III. GDP shares, 1310-2018'!H361,\"\")","v":""},{"$f":"IF('IV. Country level, 1310-2018'!I359<0,'III. GDP shares, 1310-2018'!I361,\"\")","v":0.11138532724801697},{"$f":"IF('IV. Country level, 1310-2018'!J359<0,'III. GDP shares, 1310-2018'!J361,\"\")","v":""},null,0.16242882316659069,{"v":0.10176073244296258,"d":"10.18%"},{"v":0.20250823357139602,"d":"20.25%"},{"v":0.1338652231199144,"d":"13.39%"},{"$f":"AVERAGE(L$296:L$395)","v":{"v":0.15218470858981648,"d":"15.22%"}}]
[1666,{"$f":"IF('IV. Country level, 1310-2018'!C360<0,'III. GDP shares, 1310-2018'!C362,\"\")","v":""},{"$f":"IF('IV. Country level, 1310-2018'!D360<0,'III. GDP shares, 1310-2018'!D362,\"\")","v":""},{"$f":"IF('IV. Country level, 1310-2018'!E360<0,'III. GDP shares, 1310-2018'!E362,\"\")","v":""},{"$f":"IF('IV. Country level, 1310-2018'!F360<0,'III. GDP shares, 1310-2018'!F362,\"\")","v":""},{"$f":"IF('IV. Country level, 1310-2018'!G360<0,'III. GDP shares, 1310-2018'!G362,\"\")","v":""},{"$f":"IF('IV. Country level, 1310-2018'!H360<0,'III. GDP shares, 1310-2018'!H362,\"\")","v":""},{"$f":"IF('IV. Country level, 1310-2018'!I360<0,'III. GDP shares, 1310-2018'!I362,\"\")","v":""},{"$f":"IF('IV. Country level, 1310-2018'!J360<0,'III. GDP shares, 1310-2018'!J362,\"\")","v":""},null,0,{"v":0.06236804235180661,"d":"6.24%"},{"v":0.20250823357139602,"d":"20.25%"},{"v":0.1261754251620224,"d":"12.62%"},{"v":0.15218470858981648,"d":"15.22%"}]
[1667,{"$f":"IF('IV. Country level, 1310-2018'!C361<0,'III. GDP shares, 1310-2018'!C363,\"\")","v":""},{"$f":"IF('IV. Country level, 1310-2018'!D361<0,'III. GDP shares, 1310-2018'!D363,\"\")","v":""},{"$f":"IF('IV. Country level, 1310-2018'!E361<0,'III. GDP shares, 1310-2018'!E363,\"\")","v":""},{"$f":"IF('IV. Country level, 1310-2018'!F361<0,'III. GDP shares, 1310-2018'!F363,\"\")","v":""},{"$f":"IF('IV. Country level, 1310-2018'!G361<0,'III. GDP shares, 1310-2018'!G363,\"\")","v":""},{"$f":"IF('IV. Country level, 1310-2018'!H361<0,'III. GDP shares, 1310-2018'!H363,\"\")","v":""},{"$f":"IF('IV. Country level, 1310-2018'!I361<0,'III. GDP shares, 1310-2018'!I363,\"\")","v":""},{"$f":"IF('IV. Country level, 1310-2018'!J361<0,'III. GDP shares, 1310-2018'!J363,\"\")","v":""},null,0,{"v":0.06980485207345744,"d":"6.98%"},{"v":0.20250823357139602,"d":"20.25%"},{"v":0.11970292659590293,"d":"11.97%"},{"v":0.15218470858981648,"d":"15.22%"}]
[1668,{"$f":"IF('IV. Country level, 1310-2018'!C362<0,'III. GDP shares, 1310-2018'!C364,\"\")","v":""},{"$f":"IF('IV. Country level, 1310-2018'!D362<0,'III. GDP shares, 1310-2018'!D364,\"\")","v":""},{"$f":"IF('IV. Country level, 1310-2018'!E362<0,'III. GDP shares, 1310-2018'!E364,\"\")","v":0.05165426762567634},{"$f":"IF('IV. Country level, 1310-2018'!F362<0,'III. GDP shares, 1310-2018'!F364,\"\")","v":""},{"$f":"IF('IV. Country level, 1310-2018'!G362<0,'III. GDP shares, 1310-2018'!G364,\"\")","v":""},{"$f":"IF('IV. Country level, 1310-2018'!H362<0,'III. GDP shares, 1310-2018'!H364,\"\")","v":""},{"$f":"IF('IV. Country level, 1310-2018'!I362<0,'III. GDP shares, 1310-2018'!I364,\"\")","v":0.11096758501853833},{"$f":"IF('IV. Country level, 1310-2018'!J362<0,'III. GDP shares, 1310-2018'!J364,\"\")","v":""},null,0.16262185264421467,{"v":0.05387262055176588,"d":"5.39%"},{"v":0.20250823357139602,"d":"20.25%"},{"v":0.12570749519109445,"d":"12.57%"},{"v":0.15218470858981648,"d":"15.22%"}]
[1669,{"$f":"IF('IV. Country level, 1310-2018'!C363<0,'III. GDP shares, 1310-2018'!C365,\"\")","v":""},{"$f":"IF('IV. Country level, 1310-2018'!D363<0,'III. GDP shares, 1310-2018'!D365,\"\")","v":""},{"$f":"IF('IV. Country level, 1310-2018'!E363<0,'III. GDP shares, 1310-2018'!E365,\"\")","v":""},{"$f":"IF('IV. Country level, 1310-2018'!F363<0,'III. GDP shares, 1310-2018'!F365,\"\")","v":""},{"$f":"IF('IV. Country level, 1310-2018'!G363<0,'III. GDP shares, 1310-2018'!G365,\"\")","v":""},{"$f":"IF('IV. Country level, 1310-2018'!H363<0,'III. GDP shares, 1310-2018'!H365,\"\")","v":""},{"$f":"IF('IV. Country level, 1310-2018'!I363<0,'III. GDP shares, 1310-2018'!I365,\"\")","v":""},{"$f":"IF('IV. Country level, 1310-2018'!J363<0,'III. GDP shares, 1310-2018'!J365,\"\")","v":""},null,0,{"v":0.038162514824960074,"d":"3.82%"},{"v":0.20250823357139602,"d":"20.25%"},{"v":0.12570749519109445,"d":"12.57%"},{"v":0.15218470858981648,"d":"15.22%"}]
[1670,{"$f":"IF('IV. Country level, 1310-2018'!C364<0,'III. GDP shares, 1310-2018'!C366,\"\")","v":""},{"$f":"IF('IV. Country level, 1310-2018'!D364<0,'III. GDP shares, 1310-2018'!D366,\"\")","v":""},{"$f":"IF('IV. Country level, 1310-2018'!E364<0,'III. GDP shares, 1310-2018'!E366,\"\")","v":0.05205766805155578},{"$f":"IF('IV. Country level, 1310-2018'!F364<0,'III. GDP shares, 1310-2018'!F366,\"\")","v":""},{"$f":"IF('IV. Country level, 1310-2018'!G364<0,'III. GDP shares, 1310-2018'!G366,\"\")","v":""},{"$f":"IF('IV. Country level, 1310-2018'!H364<0,'III. GDP shares, 1310-2018'!H366,\"\")","v":""},{"$f":"IF('IV. Country level, 1310-2018'!I364<0,'III. GDP shares, 1310-2018'!I366,\"\")","v":""},{"$f":"IF('IV. Country level, 1310-2018'!J364<0,'III. GDP shares, 1310-2018'!J366,\"\")","v":""},null,0.05205766805155578,{"v":0.038162514824960074,"d":"3.82%"},{"v":0.20250823357139602,"d":"20.25%"},{"v":0.12570749519109445,"d":"12.57%"},{"v":0.15218470858981648,"d":"15.22%"}]
[1671,{"$f":"IF('IV. Country level, 1310-2018'!C365<0,'III. GDP shares, 1310-2018'!C367,\"\")","v":""},{"$f":"IF('IV. Country level, 1310-2018'!D365<0,'III. GDP shares, 1310-2018'!D367,\"\")","v":""},{"$f":"IF('IV. Country level, 1310-2018'!E365<0,'III. GDP shares, 1310-2018'!E367,\"\")","v":""},{"$f":"IF('IV. Country level, 1310-2018'!F365<0,'III. GDP shares, 1310-2018'!F367,\"\")","v":""},{"$f":"IF('IV. Country level, 1310-2018'!G365<0,'III. GDP shares, 1310-2018'!G367,\"\")","v":""},{"$f":"IF('IV. Country level, 1310-2018'!H365<0,'III. GDP shares, 1310-2018'!H367,\"\")","v":""},{"$f":"IF('IV. Country level, 1310-2018'!I365<0,'III. GDP shares, 1310-2018'!I367,\"\")","v":""},{"$f":"IF('IV. Country level, 1310-2018'!J365<0,'III. GDP shares, 1310-2018'!J367,\"\")","v":""},null,0,{"v":0.0870509617046719,"d":"8.71%"},{"v":0.20250823357139602,"d":"20.25%"},{"v":0.12570749519109445,"d":"12.57%"},{"v":0.15218470858981648,"d":"15.22%"}]
[1672,{"$f":"IF('IV. Country level, 1310-2018'!C366<0,'III. GDP shares, 1310-2018'!C368,\"\")","v":""},{"$f":"IF('IV. Country level, 1310-2018'!D366<0,'III. GDP shares, 1310-2018'!D368,\"\")","v":""},{"$f":"IF('IV. Country level, 1310-2018'!E366<0,'III. GDP shares, 1310-2018'!E368,\"\")","v":0.052458083078950085},{"$f":"IF('IV. Country level, 1310-2018'!F366<0,'III. GDP shares, 1310-2018'!F368,\"\")","v":""},{"$f":"IF('IV. Country level, 1310-2018'!G366<0,'III. GDP shares, 1310-2018'!G368,\"\")","v":""},{"$f":"IF('IV. Country level, 1310-2018'!H366<0,'III. GDP shares, 1310-2018'!H368,\"\")","v":""},{"$f":"IF('IV. Country level, 1310-2018'!I366<0,'III. GDP shares, 1310-2018'!I368,\"\")","v":""},{"$f":"IF('IV. Country level, 1310-2018'!J366<0,'III. GDP shares, 1310-2018'!J368,\"\")","v":""},null,0.052458083078950085,{"v":0.15229331565245863,"d":"15.23%"},{"v":0.20250823357139602,"d":"20.25%"},{"v":0.1316864733211828,"d":"13.17%"},{"v":0.15218470858981648,"d":"15.22%"}]
[1673,{"$f":"IF('IV. Country level, 1310-2018'!C367<0,'III. GDP shares, 1310-2018'!C369,\"\")","v":""},{"$f":"IF('IV. Country level, 1310-2018'!D367<0,'III. GDP shares, 1310-2018'!D369,\"\")","v":""},{"$f":"IF('IV. Country level, 1310-2018'!E367<0,'III. GDP shares, 1310-2018'!E369,\"\")","v":""},{"$f":"IF('IV. Country level, 1310-2018'!F367<0,'III. GDP shares, 1310-2018'!F369,\"\")","v":""},{"$f":"IF('IV. Country level, 1310-2018'!G367<0,'III. GDP shares, 1310-2018'!G369,\"\")","v":""},{"$f":"IF('IV. Country level, 1310-2018'!H367<0,'III. GDP shares, 1310-2018'!H369,\"\")","v":""},{"$f":"IF('IV. Country level, 1310-2018'!I367<0,'III. GDP shares, 1310-2018'!I369,\"\")","v":""},{"$f":"IF('IV. Country level, 1310-2018'!J367<0,'III. GDP shares, 1310-2018'!J369,\"\")","v":""},null,0,{"v":0.1679899028606509,"d":"16.80%"},{"v":0.20250823357139602,"d":"20.25%"},{"v":0.12614565094621707,"d":"12.61%"},{"v":0.15218470858981648,"d":"15.22%"}]
[1674,{"$f":"IF('IV. Country level, 1310-2018'!C368<0,'III. GDP shares, 1310-2018'!C370,\"\")","v":""},{"$f":"IF('IV. Country level, 1310-2018'!D368<0,'III. GDP shares, 1310-2018'!D370,\"\")","v":0.14190266801212614},{"$f":"IF('IV. Country level, 1310-2018'!E368<0,'III. GDP shares, 1310-2018'!E370,\"\")","v":""},{"$f":"IF('IV. Country level, 1310-2018'!F368<0,'III. GDP shares, 1310-2018'!F370,\"\")","v":0.20031646014585672},{"$f":"IF('IV. Country level, 1310-2018'!G368<0,'III. GDP shares, 1310-2018'!G370,\"\")","v":""},{"$f":"IF('IV. Country level, 1310-2018'!H368<0,'III. GDP shares, 1310-2018'!H370,\"\")","v":""},{"$f":"IF('IV. Country level, 1310-2018'!I368<0,'III. GDP shares, 1310-2018'!I370,\"\")","v":""},{"$f":"IF('IV. Country level, 1310-2018'!J368<0,'III. GDP shares, 1310-2018'!J370,\"\")","v":""},null,0.34221912815798283,{"v":0.17623051129963388,"d":"17.62%"},{"v":0.20250823357139602,"d":"20.25%"},{"v":0.12941962884521513,"d":"12.94%"},{"v":0.15218470858981648,"d":"15.22%"}]
[1675,{"$f":"IF('IV. Country level, 1310-2018'!C369<0,'III. GDP shares, 1310-2018'!C371,\"\")","v":""},{"$f":"IF('IV. Country level, 1310-2018'!D369<0,'III. GDP shares, 1310-2018'!D371,\"\")","v":0.1423436269368165},{"$f":"IF('IV. Country level, 1310-2018'!E369<0,'III. GDP shares, 1310-2018'!E371,\"\")","v":""},{"$f":"IF('IV. Country level, 1310-2018'!F369<0,'III. GDP shares, 1310-2018'!F371,\"\")","v":0.20009630423178737},{"$f":"IF('IV. Country level, 1310-2018'!G369<0,'III. GDP shares, 1310-2018'!G371,\"\")","v":0.2768783991101178},{"$f":"IF('IV. Country level, 1310-2018'!H369<0,'III. GDP shares, 1310-2018'!H371,\"\")","v":""},{"$f":"IF('IV. Country level, 1310-2018'!I369<0,'III. GDP shares, 1310-2018'!I371,\"\")","v":""},{"$f":"IF('IV. Country level, 1310-2018'!J369<0,'III. GDP shares, 1310-2018'!J371,\"\")","v":""},null,0.6193183302787216,{"v":0.1918888305650245,"d":"19.19%"},{"v":0.20250823357139602,"d":"20.25%"},{"v":0.12383748308038843,"d":"12.38%"},{"v":0.15218470858981648,"d":"15.22%"}]
[1676,{"$f":"IF('IV. Country level, 1310-2018'!C370<0,'III. GDP shares, 1310-2018'!C372,\"\")","v":""},{"$f":"IF('IV. Country level, 1310-2018'!D370<0,'III. GDP shares, 1310-2018'!D372,\"\")","v":""},{"$f":"IF('IV. Country level, 1310-2018'!E370<0,'III. GDP shares, 1310-2018'!E372,\"\")","v":""},{"$f":"IF('IV. Country level, 1310-2018'!F370<0,'III. GDP shares, 1310-2018'!F372,\"\")","v":""},{"$f":"IF('IV. Country level, 1310-2018'!G370<0,'III. GDP shares, 1310-2018'!G372,\"\")","v":""},{"$f":"IF('IV. Country level, 1310-2018'!H370<0,'III. GDP shares, 1310-2018'!H372,\"\")","v":""},{"$f":"IF('IV. Country level, 1310-2018'!I370<0,'III. GDP shares, 1310-2018'!I372,\"\")","v":0.10987611045734602},{"$f":"IF('IV. Country level, 1310-2018'!J370<0,'III. GDP shares, 1310-2018'!J372,\"\")","v":""},null,0.10987611045734602,{"v":0.18439481869660307,"d":"18.44%"},{"v":0.20250823357139602,"d":"20.25%"},{"v":0.11972145823518623,"d":"11.97%"},{"v":0.15218470858981648,"d":"15.22%"}]
[1677,{"$f":"IF('IV. Country level, 1310-2018'!C371<0,'III. GDP shares, 1310-2018'!C373,\"\")","v":""},{"$f":"IF('IV. Country level, 1310-2018'!D371<0,'III. GDP shares, 1310-2018'!D373,\"\")","v":""},{"$f":"IF('IV. Country level, 1310-2018'!E371<0,'III. GDP shares, 1310-2018'!E373,\"\")","v":""},{"$f":"IF('IV. Country level, 1310-2018'!F371<0,'III. GDP shares, 1310-2018'!F373,\"\")","v":""},{"$f":"IF('IV. Country level, 1310-2018'!G371<0,'III. GDP shares, 1310-2018'!G373,\"\")","v":""},{"$f":"IF('IV. Country level, 1310-2018'!H371<0,'III. GDP shares, 1310-2018'!H373,\"\")","v":""},{"$f":"IF('IV. Country level, 1310-2018'!I371<0,'III. GDP shares, 1310-2018'!I373,\"\")","v":0.10974192712443676},{"$f":"IF('IV. Country level, 1310-2018'!J371<0,'III. GDP shares, 1310-2018'!J373,\"\")","v":""},null,0.10974192712443676,{"v":0.20001514909366547,"d":"20.00%"},{"v":0.20250823357139602,"d":"20.25%"},{"v":0.12964957217316694,"d":"12.96%"},{"v":0.15218470858981648,"d":"15.22%"}]
[1678,{"$f":"IF('IV. Country level, 1310-2018'!C372<0,'III. GDP shares, 1310-2018'!C374,\"\")","v":""},{"$f":"IF('IV. Country level, 1310-2018'!D372<0,'III. GDP shares, 1310-2018'!D374,\"\")","v":""},{"$f":"IF('IV. Country level, 1310-2018'!E372<0,'III. GDP shares, 1310-2018'!E374,\"\")","v":""},{"$f":"IF('IV. Country level, 1310-2018'!F372<0,'III. GDP shares, 1310-2018'!F374,\"\")","v":""},{"$f":"IF('IV. Country level, 1310-2018'!G372<0,'III. GDP shares, 1310-2018'!G374,\"\")","v":""},{"$f":"IF('IV. Country level, 1310-2018'!H372<0,'III. GDP shares, 1310-2018'!H374,\"\")","v":""},{"$f":"IF('IV. Country level, 1310-2018'!I372<0,'III. GDP shares, 1310-2018'!I374,\"\")","v":0.10960823485773427},{"$f":"IF('IV. Country level, 1310-2018'!J372<0,'III. GDP shares, 1310-2018'!J374,\"\")","v":""},null,0.10960823485773427,{"v":0.15112670221395366,"d":"15.11%"},{"v":0.20250823357139602,"d":"20.25%"},{"v":0.12248922478186303,"d":"12.25%"},{"v":0.15218470858981648,"d":"15.22%"}]
[1679,{"$f":"IF('IV. Country level, 1310-2018'!C373<0,'III. GDP shares, 1310-2018'!C375,\"\")","v":""},{"$f":"IF('IV. Country level, 1310-2018'!D373<0,'III. GDP shares, 1310-2018'!D375,\"\")","v":""},{"$f":"IF('IV. Country level, 1310-2018'!E373<0,'III. GDP shares, 1310-2018'!E375,\"\")","v":""},{"$f":"IF('IV. Country level, 1310-2018'!F373<0,'III. GDP shares, 1310-2018'!F375,\"\")","v":""},{"$f":"IF('IV. Country level, 1310-2018'!G373<0,'III. GDP shares, 1310-2018'!G375,\"\")","v":""},{"$f":"IF('IV. Country level, 1310-2018'!H373<0,'III. GDP shares, 1310-2018'!H375,\"\")","v":""},{"$f":"IF('IV. Country level, 1310-2018'!I373<0,'III. GDP shares, 1310-2018'!I375,\"\")","v":""},{"$f":"IF('IV. Country level, 1310-2018'!J373<0,'III. GDP shares, 1310-2018'!J375,\"\")","v":""},null,0,{"v":0.06265265503127912,"d":"6.27%"},{"v":0.20250823357139602,"d":"20.25%"},{"v":0.11911097621343907,"d":"11.91%"},{"v":0.15218470858981648,"d":"15.22%"}]
[1680,{"$f":"IF('IV. Country level, 1310-2018'!C374<0,'III. GDP shares, 1310-2018'!C376,\"\")","v":""},{"$f":"IF('IV. Country level, 1310-2018'!D374<0,'III. GDP shares, 1310-2018'!D376,\"\")","v":""},{"$f":"IF('IV. Country level, 1310-2018'!E374<0,'III. GDP shares, 1310-2018'!E376,\"\")","v":""},{"$f":"IF('IV. Country level, 1310-2018'!F374<0,'III. GDP shares, 1310-2018'!F376,\"\")","v":""},{"$f":"IF('IV. Country level, 1310-2018'!G374<0,'III. GDP shares, 1310-2018'!G376,\"\")","v":""},{"$f":"IF('IV. Country level, 1310-2018'!H374<0,'III. GDP shares, 1310-2018'!H376,\"\")","v":""},{"$f":"IF('IV. Country level, 1310-2018'!I374<0,'III. GDP shares, 1310-2018'!I376,\"\")","v":0.10934231277943678},{"$f":"IF('IV. Country level, 1310-2018'!J374<0,'III. GDP shares, 1310-2018'!J376,\"\")","v":""},null,0.10934231277943678,{"v":0.06251993154065148,"d":"6.25%"},{"v":0.20250823357139602,"d":"20.25%"},{"v":0.11911097621343907,"d":"11.91%"},{"v":0.15218470858981648,"d":"15.22%"}]
[1681,{"$f":"IF('IV. Country level, 1310-2018'!C375<0,'III. GDP shares, 1310-2018'!C377,\"\")","v":""},{"$f":"IF('IV. Country level, 1310-2018'!D375<0,'III. GDP shares, 1310-2018'!D377,\"\")","v":""},{"$f":"IF('IV. Country level, 1310-2018'!E375<0,'III. GDP shares, 1310-2018'!E377,\"\")","v":""},{"$f":"IF('IV. Country level, 1310-2018'!F375<0,'III. GDP shares, 1310-2018'!F377,\"\")","v":""},{"$f":"IF('IV. Country level, 1310-2018'!G375<0,'III. GDP shares, 1310-2018'!G377,\"\")","v":""},{"$f":"IF('IV. Country level, 1310-2018'!H375<0,'III. GDP shares, 1310-2018'!H377,\"\")","v":""},{"$f":"IF('IV. Country level, 1310-2018'!I375<0,'III. GDP shares, 1310-2018'!I377,\"\")","v":""},{"$f":"IF('IV. Country level, 1310-2018'!J375<0,'III. GDP shares, 1310-2018'!J377,\"\")","v":""},null,0,{"v":0.0751497653287777,"d":"7.51%"},{"v":0.20250823357139602,"d":"20.25%"},{"v":0.12338820474691498,"d":"12.34%"},{"v":0.15218470858981648,"d":"15.22%"}]
[1682,{"$f":"IF('IV. Country level, 1310-2018'!C376<0,'III. GDP shares, 1310-2018'!C378,\"\")","v":""},{"$f":"IF('IV. Country level, 1310-2018'!D376<0,'III. GDP shares, 1310-2018'!D378,\"\")","v":""},{"$f":"IF('IV. Country level, 1310-2018'!E376<0,'III. GDP shares, 1310-2018'!E378,\"\")","v":""},{"$f":"IF('IV. Country level, 1310-2018'!F376<0,'III. GDP shares, 1310-2018'!F378,\"\")","v":""},{"$f":"IF('IV. Country level, 1310-2018'!G376<0,'III. GDP shares, 1310-2018'!G378,\"\")","v":""},{"$f":"IF('IV. Country level, 1310-2018'!H376<0,'III. GDP shares, 1310-2018'!H378,\"\")","v":""},{"$f":"IF('IV. Country level, 1310-2018'!I376<0,'III. GDP shares, 1310-2018'!I378,\"\")","v":""},{"$f":"IF('IV. Country level, 1310-2018'!J376<0,'III. GDP shares, 1310-2018'!J378,\"\")","v":""},null,0,{"v":0.0594914460633871,"d":"5.95%"},{"v":0.20250823357139602,"d":"20.25%"},{"v":0.1378126891854875,"d":"13.78%"},{"v":0.15218470858981648,"d":"15.22%"}]
[1683,{"$f":"IF('IV. Country level, 1310-2018'!C377<0,'III. GDP shares, 1310-2018'!C379,\"\")","v":""},{"$f":"IF('IV. Country level, 1310-2018'!D377<0,'III. GDP shares, 1310-2018'!D379,\"\")","v":""},{"$f":"IF('IV. Country level, 1310-2018'!E377<0,'III. GDP shares, 1310-2018'!E379,\"\")","v":""},{"$f":"IF('IV. Country level, 1310-2018'!F377<0,'III. GDP shares, 1310-2018'!F379,\"\")","v":""},{"$f":"IF('IV. Country level, 1310-2018'!G377<0,'III. GDP shares, 1310-2018'!G379,\"\")","v":""},{"$f":"IF('IV. Country level, 1310-2018'!H377<0,'III. GDP shares, 1310-2018'!H379,\"\")","v":""},{"$f":"IF('IV. Country level, 1310-2018'!I377<0,'III. GDP shares, 1310-2018'!I379,\"\")","v":0.1089470460229526},{"$f":"IF('IV. Country level, 1310-2018'!J377<0,'III. GDP shares, 1310-2018'!J379,\"\")","v":""},null,0.1089470460229526,{"v":0.0594914460633871,"d":"5.95%"},{"v":0.20250823357139602,"d":"20.25%"},{"v":0.1521724807395758,"d":"15.22%"},{"v":0.15218470858981648,"d":"15.22%"}]
[1684,{"$f":"IF('IV. Country level, 1310-2018'!C378<0,'III. GDP shares, 1310-2018'!C380,\"\")","v":""},{"$f":"IF('IV. Country level, 1310-2018'!D378<0,'III. GDP shares, 1310-2018'!D380,\"\")","v":""},{"$f":"IF('IV. Country level, 1310-2018'!E378<0,'III. GDP shares, 1310-2018'!E380,\"\")","v":""},{"$f":"IF('IV. Country level, 1310-2018'!F378<0,'III. GDP shares, 1310-2018'!F380,\"\")","v":0.19815076364132034},{"$f":"IF('IV. Country level, 1310-2018'!G378<0,'III. GDP shares, 1310-2018'!G380,\"\")","v":""},{"$f":"IF('IV. Country level, 1310-2018'!H378<0,'III. GDP shares, 1310-2018'!H380,\"\")","v":""},{"$f":"IF('IV. Country level, 1310-2018'!I378<0,'III. GDP shares, 1310-2018'!I380,\"\")","v":""},{"$f":"IF('IV. Country level, 1310-2018'!J378<0,'III. GDP shares, 1310-2018'!J380,\"\")","v":""},null,0.19815076364132034,{"v":0.0438711156663247,"d":"4.39%"},{"v":0.20250823357139602,"d":"20.25%"},{"v":0.1521724807395758,"d":"15.22%"},{"v":0.15218470858981648,"d":"15.22%"}]
[1685,{"$f":"IF('IV. Country level, 1310-2018'!C379<0,'III. GDP shares, 1310-2018'!C381,\"\")","v":""},{"$f":"IF('IV. Country level, 1310-2018'!D379<0,'III. GDP shares, 1310-2018'!D381,\"\")","v":""},{"$f":"IF('IV. Country level, 1310-2018'!E379<0,'III. GDP shares, 1310-2018'!E381,\"\")","v":""},{"$f":"IF('IV. Country level, 1310-2018'!F379<0,'III. GDP shares, 1310-2018'!F381,\"\")","v":""},{"$f":"IF('IV. Country level, 1310-2018'!G379<0,'III. GDP shares, 1310-2018'!G381,\"\")","v":""},{"$f":"IF('IV. Country level, 1310-2018'!H379<0,'III. GDP shares, 1310-2018'!H381,\"\")","v":""},{"$f":"IF('IV. Country level, 1310-2018'!I379<0,'III. GDP shares, 1310-2018'!I381,\"\")","v":""},{"$f":"IF('IV. Country level, 1310-2018'!J379<0,'III. GDP shares, 1310-2018'!J381,\"\")","v":""},null,0,{"v":0.07205772685102683,"d":"7.21%"},{"v":0.20250823357139602,"d":"20.25%"},{"v":0.14724454581096322,"d":"14.72%"},{"v":0.15218470858981648,"d":"15.22%"}]
[1686,{"$f":"IF('IV. Country level, 1310-2018'!C380<0,'III. GDP shares, 1310-2018'!C382,\"\")","v":""},{"$f":"IF('IV. Country level, 1310-2018'!D380<0,'III. GDP shares, 1310-2018'!D382,\"\")","v":""},{"$f":"IF('IV. Country level, 1310-2018'!E380<0,'III. GDP shares, 1310-2018'!E382,\"\")","v":""},{"$f":"IF('IV. Country level, 1310-2018'!F380<0,'III. GDP shares, 1310-2018'!F382,\"\")","v":""},{"$f":"IF('IV. Country level, 1310-2018'!G380<0,'III. GDP shares, 1310-2018'!G382,\"\")","v":""},{"$f":"IF('IV. Country level, 1310-2018'!H380<0,'III. GDP shares, 1310-2018'!H382,\"\")","v":""},{"$f":"IF('IV. Country level, 1310-2018'!I380<0,'III. GDP shares, 1310-2018'!I382,\"\")","v":""},{"$f":"IF('IV. Country level, 1310-2018'!J380<0,'III. GDP shares, 1310-2018'!J382,\"\")","v":""},null,0,{"v":0.07205772685102683,"d":"7.21%"},{"v":0.20250823357139602,"d":"20.25%"},{"v":0.14724454581096322,"d":"14.72%"},{"v":0.15218470858981648,"d":"15.22%"}]
[1687,{"$f":"IF('IV. Country level, 1310-2018'!C381<0,'III. GDP shares, 1310-2018'!C383,\"\")","v":""},{"$f":"IF('IV. Country level, 1310-2018'!D381<0,'III. GDP shares, 1310-2018'!D383,\"\")","v":""},{"$f":"IF('IV. Country level, 1310-2018'!E381<0,'III. GDP shares, 1310-2018'!E383,\"\")","v":""},{"$f":"IF('IV. Country level, 1310-2018'!F381<0,'III. GDP shares, 1310-2018'!F383,\"\")","v":""},{"$f":"IF('IV. Country level, 1310-2018'!G381<0,'III. GDP shares, 1310-2018'!G383,\"\")","v":""},{"$f":"IF('IV. Country level, 1310-2018'!H381<0,'III. GDP shares, 1310-2018'!H383,\"\")","v":""},{"$f":"IF('IV. Country level, 1310-2018'!I381<0,'III. GDP shares, 1310-2018'!I383,\"\")","v":""},{"$f":"IF('IV. Country level, 1310-2018'!J381<0,'III. GDP shares, 1310-2018'!J383,\"\")","v":""},null,0,{"v":0.07192833037159595,"d":"7.19%"},{"v":0.20250823357139602,"d":"20.25%"},{"v":0.15191669213555803,"d":"15.19%"},{"v":0.15218470858981648,"d":"15.22%"}]
[1688,{"$f":"IF('IV. Country level, 1310-2018'!C382<0,'III. GDP shares, 1310-2018'!C384,\"\")","v":""},{"$f":"IF('IV. Country level, 1310-2018'!D382<0,'III. GDP shares, 1310-2018'!D384,\"\")","v":""},{"$f":"IF('IV. Country level, 1310-2018'!E382<0,'III. GDP shares, 1310-2018'!E384,\"\")","v":""},{"$f":"IF('IV. Country level, 1310-2018'!F382<0,'III. GDP shares, 1310-2018'!F384,\"\")","v":0.19730627829291497},{"$f":"IF('IV. Country level, 1310-2018'!G382<0,'III. GDP shares, 1310-2018'!G384,\"\")","v":""},{"$f":"IF('IV. Country level, 1310-2018'!H382<0,'III. GDP shares, 1310-2018'!H384,\"\")","v":""},{"$f":"IF('IV. Country level, 1310-2018'!I382<0,'III. GDP shares, 1310-2018'!I384,\"\")","v":""},{"$f":"IF('IV. Country level, 1310-2018'!J382<0,'III. GDP shares, 1310-2018'!J384,\"\")","v":""},null,0.19730627829291497,{"v":0.0436210784228359,"d":"4.36%"},{"v":0.20250823357139602,"d":"20.25%"},{"v":0.15361138253794832,"d":"15.36%"},{"v":0.15218470858981648,"d":"15.22%"}]
[1689,{"$f":"IF('IV. Country level, 1310-2018'!C383<0,'III. GDP shares, 1310-2018'!C385,\"\")","v":""},{"$f":"IF('IV. Country level, 1310-2018'!D383<0,'III. GDP shares, 1310-2018'!D385,\"\")","v":""},{"$f":"IF('IV. Country level, 1310-2018'!E383<0,'III. GDP shares, 1310-2018'!E385,\"\")","v":""},{"$f":"IF('IV. Country level, 1310-2018'!F383<0,'III. GDP shares, 1310-2018'!F385,\"\")","v":""},{"$f":"IF('IV. Country level, 1310-2018'!G383<0,'III. GDP shares, 1310-2018'!G385,\"\")","v":""},{"$f":"IF('IV. Country level, 1310-2018'!H383<0,'III. GDP shares, 1310-2018'!H385,\"\")","v":""},{"$f":"IF('IV. Country level, 1310-2018'!I383<0,'III. GDP shares, 1310-2018'!I385,\"\")","v":""},{"$f":"IF('IV. Country level, 1310-2018'!J383<0,'III. GDP shares, 1310-2018'!J385,\"\")","v":""},null,0,{"v":0.07973235177983161,"d":"7.97%"},{"v":0.20250823357139602,"d":"20.25%"},{"v":0.15202174365676804,"d":"15.20%"},{"v":0.15218470858981648,"d":"15.22%"}]
[1690,{"$f":"IF('IV. Country level, 1310-2018'!C384<0,'III. GDP shares, 1310-2018'!C386,\"\")","v":""},{"$f":"IF('IV. Country level, 1310-2018'!D384<0,'III. GDP shares, 1310-2018'!D386,\"\")","v":""},{"$f":"IF('IV. Country level, 1310-2018'!E384<0,'III. GDP shares, 1310-2018'!E386,\"\")","v":""},{"$f":"IF('IV. Country level, 1310-2018'!F384<0,'III. GDP shares, 1310-2018'!F386,\"\")","v":""},{"$f":"IF('IV. Country level, 1310-2018'!G384<0,'III. GDP shares, 1310-2018'!G386,\"\")","v":""},{"$f":"IF('IV. Country level, 1310-2018'!H384<0,'III. GDP shares, 1310-2018'!H386,\"\")","v":""},{"$f":"IF('IV. Country level, 1310-2018'!I384<0,'III. GDP shares, 1310-2018'!I386,\"\")","v":0.10804127066693632},{"$f":"IF('IV. Country level, 1310-2018'!J384<0,'III. GDP shares, 1310-2018'!J386,\"\")","v":""},null,0.10804127066693632,{"v":0.1556057635526694,"d":"15.56%"},{"v":0.20250823357139602,"d":"20.25%"},{"v":0.1619121512305026,"d":"16.19%"},{"v":0.15218470858981648,"d":"15.22%"}]
[1691,{"$f":"IF('IV. Country level, 1310-2018'!C385<0,'III. GDP shares, 1310-2018'!C387,\"\")","v":""},{"$f":"IF('IV. Country level, 1310-2018'!D385<0,'III. GDP shares, 1310-2018'!D387,\"\")","v":""},{"$f":"IF('IV. Country level, 1310-2018'!E385<0,'III. GDP shares, 1310-2018'!E387,\"\")","v":""},{"$f":"IF('IV. Country level, 1310-2018'!F385<0,'III. GDP shares, 1310-2018'!F387,\"\")","v":""},{"$f":"IF('IV. Country level, 1310-2018'!G385<0,'III. GDP shares, 1310-2018'!G387,\"\")","v":""},{"$f":"IF('IV. Country level, 1310-2018'!H385<0,'III. GDP shares, 1310-2018'!H387,\"\")","v":""},{"$f":"IF('IV. Country level, 1310-2018'!I385<0,'III. GDP shares, 1310-2018'!I387,\"\")","v":""},{"$f":"IF('IV. Country level, 1310-2018'!J385<0,'III. GDP shares, 1310-2018'!J387,\"\")","v":""},null,0,{"v":0.21687138375004347,"d":"21.69%"},{"v":0.20250823357139602,"d":"20.25%"},{"v":0.1576927520371292,"d":"15.77%"},{"v":0.15218470858981648,"d":"15.22%"}]
[1692,{"$f":"IF('IV. Country level, 1310-2018'!C386<0,'III. GDP shares, 1310-2018'!C388,\"\")","v":""},{"$f":"IF('IV. Country level, 1310-2018'!D386<0,'III. GDP shares, 1310-2018'!D388,\"\")","v":""},{"$f":"IF('IV. Country level, 1310-2018'!E386<0,'III. GDP shares, 1310-2018'!E388,\"\")","v":0.05630506719544291},{"$f":"IF('IV. Country level, 1310-2018'!F386<0,'III. GDP shares, 1310-2018'!F388,\"\")","v":0.19647384630352707},{"$f":"IF('IV. Country level, 1310-2018'!G386<0,'III. GDP shares, 1310-2018'!G388,\"\")","v":""},{"$f":"IF('IV. Country level, 1310-2018'!H386<0,'III. GDP shares, 1310-2018'!H388,\"\")","v":""},{"$f":"IF('IV. Country level, 1310-2018'!I386<0,'III. GDP shares, 1310-2018'!I388,\"\")","v":""},{"$f":"IF('IV. Country level, 1310-2018'!J386<0,'III. GDP shares, 1310-2018'!J388,\"\")","v":""},null,0.25277891349896997,{"v":0.21215143369107,"d":"21.22%"},{"v":0.20250823357139602,"d":"20.25%"},{"v":0.1565346466049185,"d":"15.65%"},{"v":0.15218470858981648,"d":"15.22%"}]
[1693,{"$f":"IF('IV. Country level, 1310-2018'!C387<0,'III. GDP shares, 1310-2018'!C389,\"\")","v":""},{"$f":"IF('IV. Country level, 1310-2018'!D387<0,'III. GDP shares, 1310-2018'!D389,\"\")","v":""},{"$f":"IF('IV. Country level, 1310-2018'!E387<0,'III. GDP shares, 1310-2018'!E389,\"\")","v":0.05649022254871445},{"$f":"IF('IV. Country level, 1310-2018'!F387<0,'III. GDP shares, 1310-2018'!F389,\"\")","v":0.19626759145635186},{"$f":"IF('IV. Country level, 1310-2018'!G387<0,'III. GDP shares, 1310-2018'!G389,\"\")","v":0.27835606840479843},{"$f":"IF('IV. Country level, 1310-2018'!H387<0,'III. GDP shares, 1310-2018'!H389,\"\")","v":""},{"$f":"IF('IV. Country level, 1310-2018'!I387<0,'III. GDP shares, 1310-2018'!I389,\"\")","v":""},{"$f":"IF('IV. Country level, 1310-2018'!J387<0,'III. GDP shares, 1310-2018'!J389,\"\")","v":""},null,0.5311138824098647,{"v":0.21215143369107,"d":"21.22%"},{"v":0.20250823357139602,"d":"20.25%"},{"v":0.18350809780318073,"d":"18.35%"},{"v":0.15218470858981648,"d":"15.22%"}]
[1694,{"$f":"IF('IV. Country level, 1310-2018'!C388<0,'III. GDP shares, 1310-2018'!C390,\"\")","v":""},{"$f":"IF('IV. Country level, 1310-2018'!D388<0,'III. GDP shares, 1310-2018'!D390,\"\")","v":0.15042395315870885},{"$f":"IF('IV. Country level, 1310-2018'!E388<0,'III. GDP shares, 1310-2018'!E390,\"\")","v":""},{"$f":"IF('IV. Country level, 1310-2018'!F388<0,'III. GDP shares, 1310-2018'!F390,\"\")","v":""},{"$f":"IF('IV. Country level, 1310-2018'!G388<0,'III. GDP shares, 1310-2018'!G390,\"\")","v":0.27843538822290953},{"$f":"IF('IV. Country level, 1310-2018'!H388<0,'III. GDP shares, 1310-2018'!H390,\"\")","v":""},{"$f":"IF('IV. Country level, 1310-2018'!I388<0,'III. GDP shares, 1310-2018'!I390,\"\")","v":""},{"$f":"IF('IV. Country level, 1310-2018'!J388<0,'III. GDP shares, 1310-2018'!J390,\"\")","v":""},null,0.4288593413816184,{"v":0.23281327534672866,"d":"23.28%"},{"v":0.20250823357139602,"d":"20.25%"},{"v":0.18862189724582895,"d":"18.86%"},{"v":0.15218470858981648,"d":"15.22%"}]
[1695,{"$f":"IF('IV. Country level, 1310-2018'!C389<0,'III. GDP shares, 1310-2018'!C391,\"\")","v":""},{"$f":"IF('IV. Country level, 1310-2018'!D389<0,'III. GDP shares, 1310-2018'!D391,\"\")","v":""},{"$f":"IF('IV. Country level, 1310-2018'!E389<0,'III. GDP shares, 1310-2018'!E391,\"\")","v":0.0568585617624461},{"$f":"IF('IV. Country level, 1310-2018'!F389<0,'III. GDP shares, 1310-2018'!F391,\"\")","v":""},{"$f":"IF('IV. Country level, 1310-2018'!G389<0,'III. GDP shares, 1310-2018'!G391,\"\")","v":""},{"$f":"IF('IV. Country level, 1310-2018'!H389<0,'III. GDP shares, 1310-2018'!H391,\"\")","v":""},{"$f":"IF('IV. Country level, 1310-2018'!I389<0,'III. GDP shares, 1310-2018'!I391,\"\")","v":0.10740806611765476},{"$f":"IF('IV. Country level, 1310-2018'!J389<0,'III. GDP shares, 1310-2018'!J391,\"\")","v":""},null,{"$f":"SUM(B391:I391)","v":0.16426662788010085},{"v":0.3240185338666549,"d":"32.40%"},{"v":0.20250823357139602,"d":"20.25%"},{"v":0.19066583879043905,"d":"19.07%"},{"v":0.15218470858981648,"d":"15.22%"}]
[1696,{"$f":"IF('IV. Country level, 1310-2018'!C390<0,'III. GDP shares, 1310-2018'!C392,\"\")","v":""},{"$f":"IF('IV. Country level, 1310-2018'!D390<0,'III. GDP shares, 1310-2018'!D392,\"\")","v":""},{"$f":"IF('IV. Country level, 1310-2018'!E390<0,'III. GDP shares, 1310-2018'!E392,\"\")","v":""},{"$f":"IF('IV. Country level, 1310-2018'!F390<0,'III. GDP shares, 1310-2018'!F392,\"\")","v":""},{"$f":"IF('IV. Country level, 1310-2018'!G390<0,'III. GDP shares, 1310-2018'!G392,\"\")","v":""},{"$f":"IF('IV. Country level, 1310-2018'!H390<0,'III. GDP shares, 1310-2018'!H392,\"\")","v":""},{"$f":"IF('IV. Country level, 1310-2018'!I390<0,'III. GDP shares, 1310-2018'!I392,\"\")","v":""},{"$f":"IF('IV. Country level, 1310-2018'!J390<0,'III. GDP shares, 1310-2018'!J392,\"\")","v":""},null,0,{"v":0.3556034206932182,"d":"35.56%"},{"v":0.20250823357139602,"d":"20.25%"},{"v":0.1965244927597085,"d":"19.65%"},{"v":0.15218470858981648,"d":"15.22%"}]
[1697,{"$f":"IF('IV. Country level, 1310-2018'!C391<0,'III. GDP shares, 1310-2018'!C393,\"\")","v":""},{"$f":"IF('IV. Country level, 1310-2018'!D391<0,'III. GDP shares, 1310-2018'!D393,\"\")","v":""},{"$f":"IF('IV. Country level, 1310-2018'!E391<0,'III. GDP shares, 1310-2018'!E393,\"\")","v":0.05722429556106489},{"$f":"IF('IV. Country level, 1310-2018'!F391<0,'III. GDP shares, 1310-2018'!F393,\"\")","v":0.1954498666954818},{"$f":"IF('IV. Country level, 1310-2018'!G391<0,'III. GDP shares, 1310-2018'!G393,\"\")","v":""},{"$f":"IF('IV. Country level, 1310-2018'!H391<0,'III. GDP shares, 1310-2018'!H393,\"\")","v":""},{"$f":"IF('IV. Country level, 1310-2018'!I391<0,'III. GDP shares, 1310-2018'!I393,\"\")","v":""},{"$f":"IF('IV. Country level, 1310-2018'!J391<0,'III. GDP shares, 1310-2018'!J393,\"\")","v":""},null,0.2526741622565467,{"v":0.27973000892038036,"d":"27.97%"},{"$f":"AVERAGE(L$9:L$714)","v":{"v":0.20250823357139602,"d":"20.25%"}},{"v":0.2030513741151424,"d":"20.31%"},{"v":0.15218470858981648,"d":"15.22%"}]
[1698,{"$f":"IF('IV. Country level, 1310-2018'!C392<0,'III. GDP shares, 1310-2018'!C394,\"\")","v":""},{"$f":"IF('IV. Country level, 1310-2018'!D392<0,'III. GDP shares, 1310-2018'!D394,\"\")","v":""},{"$f":"IF('IV. Country level, 1310-2018'!E392<0,'III. GDP shares, 1310-2018'!E394,\"\")","v":0.057406194053133595},{"$f":"IF('IV. Country level, 1310-2018'!F392<0,'III. GDP shares, 1310-2018'!F394,\"\")","v":0.1952472398471616},{"$f":"IF('IV. Country level, 1310-2018'!G392<0,'III. GDP shares, 1310-2018'!G394,\"\")","v":0.27874986713850125},{"$f":"IF('IV. Country level, 1310-2018'!H392<0,'III. GDP shares, 1310-2018'!H394,\"\")","v":""},{"$f":"IF('IV. Country level, 1310-2018'!I392<0,'III. GDP shares, 1310-2018'!I394,\"\")","v":0.10703350860068736},{"$f":"IF('IV. Country level, 1310-2018'!J392<0,'III. GDP shares, 1310-2018'!J394,\"\")","v":""},null,0.6384368096394838,{"$f":"AVERAGE(K391:K397)","v":{"v":0.2184643887230063,"d":"21.85%"}},{"v":0.20250823357139602,"d":"20.25%"},{"v":0.20904422261779346,"d":"20.90%"},{"v":0.15218470858981648,"d":"15.22%"}]
[1699,{"$f":"IF('IV. Country level, 1310-2018'!C393<0,'III. GDP shares, 1310-2018'!C395,\"\")","v":""},{"$f":"IF('IV. Country level, 1310-2018'!D393<0,'III. GDP shares, 1310-2018'!D395,\"\")","v":""},{"$f":"IF('IV. Country level, 1310-2018'!E393<0,'III. GDP shares, 1310-2018'!E395,\"\")","v":""},{"$f":"IF('IV. Country level, 1310-2018'!F393<0,'III. GDP shares, 1310-2018'!F395,\"\")","v":0.1950453271048755},{"$f":"IF('IV. Country level, 1310-2018'!G393<0,'III. GDP shares, 1310-2018'!G395,\"\")","v":0.27882779418003734},{"$f":"IF('IV. Country level, 1310-2018'!H393<0,'III. GDP shares, 1310-2018'!H395,\"\")","v":""},{"$f":"IF('IV. Country level, 1310-2018'!I393<0,'III. GDP shares, 1310-2018'!I395,\"\")","v":""},{"$f":"IF('IV. Country level, 1310-2018'!J393<0,'III. GDP shares, 1310-2018'!J395,\"\")","v":""},null,0.4738731212849128,{"v":0.19499772759727763,"d":"19.50%"},{"v":0.20250823357139602,"d":"20.25%"},{"v":0.21501589287453582,"d":"21.50%"},{"v":0.15218470858981648,"d":"15.22%"}]
[1700,{"$f":"IF('IV. Country level, 1310-2018'!C394<0,'III. GDP shares, 1310-2018'!C396,\"\")","v":""},{"$f":"IF('IV. Country level, 1310-2018'!D394<0,'III. GDP shares, 1310-2018'!D396,\"\")","v":""},{"$f":"IF('IV. Country level, 1310-2018'!E394<0,'III. GDP shares, 1310-2018'!E396,\"\")","v":""},{"$f":"IF('IV. Country level, 1310-2018'!F394<0,'III. GDP shares, 1310-2018'!F396,\"\")","v":""},{"$f":"IF('IV. Country level, 1310-2018'!G394<0,'III. GDP shares, 1310-2018'!G396,\"\")","v":""},{"$f":"IF('IV. Country level, 1310-2018'!H394<0,'III. GDP shares, 1310-2018'!H396,\"\")","v":""},{"$f":"IF('IV. Country level, 1310-2018'!I394<0,'III. GDP shares, 1310-2018'!I396,\"\")","v":""},{"$f":"IF('IV. Country level, 1310-2018'!J394<0,'III. GDP shares, 1310-2018'!J396,\"\")","v":""},null,0,{"v":0.22446036999201838,"d":"22.45%"},{"v":0.20250823357139602,"d":"20.25%"},{"v":0.21171446723747664,"d":"21.17%"},{"$f":"AVERAGE(L$396:L$495)","v":{"v":0.28138904001220527,"d":"28.14%"}}]
[1701,{"$f":"IF('IV. Country level, 1310-2018'!C395<0,'III. GDP shares, 1310-2018'!C397,\"\")","v":""},{"$f":"IF('IV. Country level, 1310-2018'!D395<0,'III. GDP shares, 1310-2018'!D397,\"\")","v":""},{"$f":"IF('IV. Country level, 1310-2018'!E395<0,'III. GDP shares, 1310-2018'!E397,\"\")","v":""},{"$f":"IF('IV. Country level, 1310-2018'!F395<0,'III. GDP shares, 1310-2018'!F397,\"\")","v":""},{"$f":"IF('IV. Country level, 1310-2018'!G395<0,'III. GDP shares, 1310-2018'!G397,\"\")","v":""},{"$f":"IF('IV. Country level, 1310-2018'!H395<0,'III. GDP shares, 1310-2018'!H397,\"\")","v":""},{"$f":"IF('IV. Country level, 1310-2018'!I395<0,'III. GDP shares, 1310-2018'!I397,\"\")","v":""},{"$f":"IF('IV. Country level, 1310-2018'!J395<0,'III. GDP shares, 1310-2018'!J397,\"\")","v":""},null,0,{"v":0.1963533158523517,"d":"19.64%"},{"v":0.20250823357139602,"d":"20.25%"},{"v":0.21391657340576484,"d":"21.39%"},{"$f":"AVERAGE(L$396:L$495)","v":{"v":0.28138904001220527,"d":"28.14%"}}]
[1702,{"$f":"IF('IV. Country level, 1310-2018'!C396<0,'III. GDP shares, 1310-2018'!C398,\"\")","v":""},{"$f":"IF('IV. Country level, 1310-2018'!D396<0,'III. GDP shares, 1310-2018'!D398,\"\")","v":""},{"$f":"IF('IV. Country level, 1310-2018'!E396<0,'III. GDP shares, 1310-2018'!E398,\"\")","v":""},{"$f":"IF('IV. Country level, 1310-2018'!F396<0,'III. GDP shares, 1310-2018'!F398,\"\")","v":""},{"$f":"IF('IV. Country level, 1310-2018'!G396<0,'III. GDP shares, 1310-2018'!G398,\"\")","v":""},{"$f":"IF('IV. Country level, 1310-2018'!H396<0,'III. GDP shares, 1310-2018'!H398,\"\")","v":""},{"$f":"IF('IV. Country level, 1310-2018'!I396<0,'III. GDP shares, 1310-2018'!I398,\"\")","v":""},{"$f":"IF('IV. Country level, 1310-2018'!J396<0,'III. GDP shares, 1310-2018'!J398,\"\")","v":""},null,0,{"v":0.10514805733242545,"d":"10.51%"},{"v":0.20250823357139602,"d":"20.25%"},{"v":0.21391657340576484,"d":"21.39%"},{"v":0.28138904001220527,"d":"28.14%"}]
[1703,{"$f":"IF('IV. Country level, 1310-2018'!C397<0,'III. GDP shares, 1310-2018'!C399,\"\")","v":0.2062384967631852},{"$f":"IF('IV. Country level, 1310-2018'!D397<0,'III. GDP shares, 1310-2018'!D399,\"\")","v":""},{"$f":"IF('IV. Country level, 1310-2018'!E397<0,'III. GDP shares, 1310-2018'!E399,\"\")","v":""},{"$f":"IF('IV. Country level, 1310-2018'!F397<0,'III. GDP shares, 1310-2018'!F399,\"\")","v":""},{"$f":"IF('IV. Country level, 1310-2018'!G397<0,'III. GDP shares, 1310-2018'!G399,\"\")","v":""},{"$f":"IF('IV. Country level, 1310-2018'!H397<0,'III. GDP shares, 1310-2018'!H399,\"\")","v":""},{"$f":"IF('IV. Country level, 1310-2018'!I397<0,'III. GDP shares, 1310-2018'!I399,\"\")","v":""},{"$f":"IF('IV. Country level, 1310-2018'!J397<0,'III. GDP shares, 1310-2018'!J399,\"\")","v":""},null,0.2062384967631852,{"v":0.08407810428218657,"d":"8.41%"},{"v":0.20250823357139602,"d":"20.25%"},{"v":0.2212542593625785,"d":"22.13%"},{"v":0.28138904001220527,"d":"28.14%"}]
[1704,{"$f":"IF('IV. Country level, 1310-2018'!C398<0,'III. GDP shares, 1310-2018'!C400,\"\")","v":""},{"$f":"IF('IV. Country level, 1310-2018'!D398<0,'III. GDP shares, 1310-2018'!D400,\"\")","v":""},{"$f":"IF('IV. Country level, 1310-2018'!E398<0,'III. GDP shares, 1310-2018'!E400,\"\")","v":0.055924783278880105},{"$f":"IF('IV. Country level, 1310-2018'!F398<0,'III. GDP shares, 1310-2018'!F400,\"\")","v":""},{"$f":"IF('IV. Country level, 1310-2018'!G398<0,'III. GDP shares, 1310-2018'!G400,\"\")","v":""},{"$f":"IF('IV. Country level, 1310-2018'!H398<0,'III. GDP shares, 1310-2018'!H400,\"\")","v":""},{"$f":"IF('IV. Country level, 1310-2018'!I398<0,'III. GDP shares, 1310-2018'!I400,\"\")","v":""},{"$f":"IF('IV. Country level, 1310-2018'!J398<0,'III. GDP shares, 1310-2018'!J400,\"\")","v":""},null,0.055924783278880105,{"v":0.11307509782170955,"d":"11.31%"},{"v":0.20250823357139602,"d":"20.25%"},{"v":0.22713016993300253,"d":"22.71%"},{"v":0.28138904001220527,"d":"28.14%"}]
[1705,{"$f":"IF('IV. Country level, 1310-2018'!C399<0,'III. GDP shares, 1310-2018'!C401,\"\")","v":""},{"$f":"IF('IV. Country level, 1310-2018'!D399<0,'III. GDP shares, 1310-2018'!D401,\"\")","v":""},{"$f":"IF('IV. Country level, 1310-2018'!E399<0,'III. GDP shares, 1310-2018'!E401,\"\")","v":""},{"$f":"IF('IV. Country level, 1310-2018'!F399<0,'III. GDP shares, 1310-2018'!F401,\"\")","v":""},{"$f":"IF('IV. Country level, 1310-2018'!G399<0,'III. GDP shares, 1310-2018'!G401,\"\")","v":""},{"$f":"IF('IV. Country level, 1310-2018'!H399<0,'III. GDP shares, 1310-2018'!H401,\"\")","v":""},{"$f":"IF('IV. Country level, 1310-2018'!I399<0,'III. GDP shares, 1310-2018'!I401,\"\")","v":""},{"$f":"IF('IV. Country level, 1310-2018'!J399<0,'III. GDP shares, 1310-2018'!J401,\"\")","v":""},null,0,{"v":0.1960895051096763,"d":"19.61%"},{"v":0.20250823357139602,"d":"20.25%"},{"v":0.22700236913294472,"d":"22.70%"},{"v":0.28138904001220527,"d":"28.14%"}]
[1706,{"$f":"IF('IV. Country level, 1310-2018'!C400<0,'III. GDP shares, 1310-2018'!C402,\"\")","v":""},{"$f":"IF('IV. Country level, 1310-2018'!D400<0,'III. GDP shares, 1310-2018'!D402,\"\")","v":0.16660936691573408},{"$f":"IF('IV. Country level, 1310-2018'!E400<0,'III. GDP shares, 1310-2018'!E402,\"\")","v":0.0550491252125007},{"$f":"IF('IV. Country level, 1310-2018'!F400<0,'III. GDP shares, 1310-2018'!F402,\"\")","v":""},{"$f":"IF('IV. Country level, 1310-2018'!G400<0,'III. GDP shares, 1310-2018'!G402,\"\")","v":""},{"$f":"IF('IV. Country level, 1310-2018'!H400<0,'III. GDP shares, 1310-2018'!H402,\"\")","v":""},{"$f":"IF('IV. Country level, 1310-2018'!I400<0,'III. GDP shares, 1310-2018'!I402,\"\")","v":0.10472495780500589},{"$f":"IF('IV. Country level, 1310-2018'!J400<0,'III. GDP shares, 1310-2018'!J402,\"\")","v":""},null,0.3263834499332407,{"v":0.3389466479668192,"d":"33.89%"},{"v":0.20250823357139602,"d":"20.25%"},{"v":0.23586832281423034,"d":"23.59%"},{"v":0.28138904001220527,"d":"28.14%"}]
[1707,{"$f":"IF('IV. Country level, 1310-2018'!C401<0,'III. GDP shares, 1310-2018'!C403,\"\")","v":0.2029789547766608},{"$f":"IF('IV. Country level, 1310-2018'!D401<0,'III. GDP shares, 1310-2018'!D403,\"\")","v":""},{"$f":"IF('IV. Country level, 1310-2018'!E401<0,'III. GDP shares, 1310-2018'!E403,\"\")","v":""},{"$f":"IF('IV. Country level, 1310-2018'!F401<0,'III. GDP shares, 1310-2018'!F403,\"\")","v":""},{"$f":"IF('IV. Country level, 1310-2018'!G401<0,'III. GDP shares, 1310-2018'!G403,\"\")","v":""},{"$f":"IF('IV. Country level, 1310-2018'!H401<0,'III. GDP shares, 1310-2018'!H403,\"\")","v":""},{"$f":"IF('IV. Country level, 1310-2018'!I401<0,'III. GDP shares, 1310-2018'!I403,\"\")","v":""},{"$f":"IF('IV. Country level, 1310-2018'!J401<0,'III. GDP shares, 1310-2018'!J403,\"\")","v":""},null,0.2029789547766608,{"v":0.34926933539091104,"d":"34.93%"},{"v":0.20250823357139602,"d":"20.25%"},{"v":0.2437552172199332,"d":"24.38%"},{"v":0.28138904001220527,"d":"28.14%"}]
[1708,{"$f":"IF('IV. Country level, 1310-2018'!C402<0,'III. GDP shares, 1310-2018'!C404,\"\")","v":0.20219739759396174},{"$f":"IF('IV. Country level, 1310-2018'!D402<0,'III. GDP shares, 1310-2018'!D404,\"\")","v":""},{"$f":"IF('IV. Country level, 1310-2018'!E402<0,'III. GDP shares, 1310-2018'!E404,\"\")","v":""},{"$f":"IF('IV. Country level, 1310-2018'!F402<0,'III. GDP shares, 1310-2018'!F404,\"\")","v":""},{"$f":"IF('IV. Country level, 1310-2018'!G402<0,'III. GDP shares, 1310-2018'!G404,\"\")","v":0.2748205520885859},{"$f":"IF('IV. Country level, 1310-2018'!H402<0,'III. GDP shares, 1310-2018'!H404,\"\")","v":""},{"$f":"IF('IV. Country level, 1310-2018'!I402<0,'III. GDP shares, 1310-2018'!I404,\"\")","v":0.10408290133321949},{"$f":"IF('IV. Country level, 1310-2018'!J402<0,'III. GDP shares, 1310-2018'!J404,\"\")","v":""},null,0.5811008510157671,{"v":0.3665741243267662,"d":"36.66%"},{"v":0.20250823357139602,"d":"20.25%"},{"v":0.26378086456444216,"d":"26.38%"},{"v":0.28138904001220527,"d":"28.14%"}]
[1709,{"$f":"IF('IV. Country level, 1310-2018'!C403<0,'III. GDP shares, 1310-2018'!C405,\"\")","v":0.2014285227538495},{"$f":"IF('IV. Country level, 1310-2018'!D403<0,'III. GDP shares, 1310-2018'!D405,\"\")","v":0.17298046333704162},{"$f":"IF('IV. Country level, 1310-2018'!E403<0,'III. GDP shares, 1310-2018'!E405,\"\")","v":0.05378892306043402},{"$f":"IF('IV. Country level, 1310-2018'!F403<0,'III. GDP shares, 1310-2018'!F405,\"\")","v":0.1936851778524723},{"$f":"IF('IV. Country level, 1310-2018'!G403<0,'III. GDP shares, 1310-2018'!G405,\"\")","v":0.27434722590236194},{"$f":"IF('IV. Country level, 1310-2018'!H403<0,'III. GDP shares, 1310-2018'!H405,\"\")","v":""},{"$f":"IF('IV. Country level, 1310-2018'!I403<0,'III. GDP shares, 1310-2018'!I405,\"\")","v":0.10376968709384075},{"$f":"IF('IV. Country level, 1310-2018'!J403<0,'III. GDP shares, 1310-2018'!J405,\"\")","v":""},null,1.0000000000000002,{"v":0.39419349303903667,"d":"39.42%"},{"v":0.20250823357139602,"d":"20.25%"},{"v":0.27759469179831475,"d":"27.76%"},{"v":0.28138904001220527,"d":"28.14%"}]
[1710,{"$f":"IF('IV. Country level, 1310-2018'!C404<0,'III. GDP shares, 1310-2018'!C406,\"\")","v":""},{"$f":"IF('IV. Country level, 1310-2018'!D404<0,'III. GDP shares, 1310-2018'!D406,\"\")","v":0.175035794249513},{"$f":"IF('IV. Country level, 1310-2018'!E404<0,'III. GDP shares, 1310-2018'!E406,\"\")","v":""},{"$f":"IF('IV. Country level, 1310-2018'!F404<0,'III. GDP shares, 1310-2018'!F406,\"\")","v":""},{"$f":"IF('IV. Country level, 1310-2018'!G404<0,'III. GDP shares, 1310-2018'!G406,\"\")","v":""},{"$f":"IF('IV. Country level, 1310-2018'!H404<0,'III. GDP shares, 1310-2018'!H406,\"\")","v":""},{"$f":"IF('IV. Country level, 1310-2018'!I404<0,'III. GDP shares, 1310-2018'!I406,\"\")","v":0.10346151448231507},{"$f":"IF('IV. Country level, 1310-2018'!J404<0,'III. GDP shares, 1310-2018'!J406,\"\")","v":""},null,0.27849730873182804,{"v":0.3939571998355388,"d":"39.40%"},{"v":0.20250823357139602,"d":"20.25%"},{"v":0.2734953894996066,"d":"27.35%"},{"v":0.28138904001220527,"d":"28.14%"}]
[1711,{"$f":"IF('IV. Country level, 1310-2018'!C405<0,'III. GDP shares, 1310-2018'!C407,\"\")","v":""},{"$f":"IF('IV. Country level, 1310-2018'!D405<0,'III. GDP shares, 1310-2018'!D407,\"\")","v":0.17705830582986684},{"$f":"IF('IV. Country level, 1310-2018'!E405<0,'III. GDP shares, 1310-2018'!E407,\"\")","v":""},{"$f":"IF('IV. Country level, 1310-2018'!F405<0,'III. GDP shares, 1310-2018'!F407,\"\")","v":""},{"$f":"IF('IV. Country level, 1310-2018'!G405<0,'III. GDP shares, 1310-2018'!G407,\"\")","v":""},{"$f":"IF('IV. Country level, 1310-2018'!H405<0,'III. GDP shares, 1310-2018'!H407,\"\")","v":""},{"$f":"IF('IV. Country level, 1310-2018'!I405<0,'III. GDP shares, 1310-2018'!I407,\"\")","v":""},{"$f":"IF('IV. Country level, 1310-2018'!J405<0,'III. GDP shares, 1310-2018'!J407,\"\")","v":""},null,0.17705830582986684,{"v":0.39321220637994214,"d":"39.32%"},{"v":0.20250823357139602,"d":"20.25%"},{"$f":"AVERAGE(K391:K423)","v":{"v":0.26049965188198176,"d":"26.05%"}},{"v":0.28138904001220527,"d":"28.14%"}]
[1712,{"$f":"IF('IV. Country level, 1310-2018'!C406<0,'III. GDP shares, 1310-2018'!C408,\"\")","v":""},{"$f":"IF('IV. Country level, 1310-2018'!D406<0,'III. GDP shares, 1310-2018'!D408,\"\")","v":""},{"$f":"IF('IV. Country level, 1310-2018'!E406<0,'III. GDP shares, 1310-2018'!E408,\"\")","v":""},{"$f":"IF('IV. Country level, 1310-2018'!F406<0,'III. GDP shares, 1310-2018'!F408,\"\")","v":0.19333558098589282},{"$f":"IF('IV. Country level, 1310-2018'!G406<0,'III. GDP shares, 1310-2018'!G408,\"\")","v":""},{"$f":"IF('IV. Country level, 1310-2018'!H406<0,'III. GDP shares, 1310-2018'!H408,\"\")","v":""},{"$f":"IF('IV. Country level, 1310-2018'!I406<0,'III. GDP shares, 1310-2018'!I408,\"\")","v":""},{"$f":"IF('IV. Country level, 1310-2018'!J406<0,'III. GDP shares, 1310-2018'!J408,\"\")","v":""},null,0.19333558098589282,{"v":0.33834995887376096,"d":"33.83%"},{"v":0.20250823357139602,"d":"20.25%"},{"v":0.25851143028464635,"d":"25.85%"},{"v":0.28138904001220527,"d":"28.14%"}]
[1713,{"$f":"IF('IV. Country level, 1310-2018'!C407<0,'III. GDP shares, 1310-2018'!C409,\"\")","v":""},{"$f":"IF('IV. Country level, 1310-2018'!D407<0,'III. GDP shares, 1310-2018'!D409,\"\")","v":""},{"$f":"IF('IV. Country level, 1310-2018'!E407<0,'III. GDP shares, 1310-2018'!E409,\"\")","v":0.05220108395856876},{"$f":"IF('IV. Country level, 1310-2018'!F407<0,'III. GDP shares, 1310-2018'!F409,\"\")","v":""},{"$f":"IF('IV. Country level, 1310-2018'!G407<0,'III. GDP shares, 1310-2018'!G409,\"\")","v":0.2725283135501868},{"$f":"IF('IV. Country level, 1310-2018'!H407<0,'III. GDP shares, 1310-2018'!H409,\"\")","v":""},{"$f":"IF('IV. Country level, 1310-2018'!I407<0,'III. GDP shares, 1310-2018'!I409,\"\")","v":""},{"$f":"IF('IV. Country level, 1310-2018'!J407<0,'III. GDP shares, 1310-2018'!J409,\"\")","v":""},null,0.32472939750875557,{"v":0.19549281601661803,"d":"19.55%"},{"v":0.20250823357139602,"d":"20.25%"},{"v":0.2800249201391717,"d":"28.00%"},{"v":0.28138904001220527,"d":"28.14%"}]
[1714,{"$f":"IF('IV. Country level, 1310-2018'!C408<0,'III. GDP shares, 1310-2018'!C410,\"\")","v":0.197764000587484},{"$f":"IF('IV. Country level, 1310-2018'!D408<0,'III. GDP shares, 1310-2018'!D410,\"\")","v":""},{"$f":"IF('IV. Country level, 1310-2018'!E408<0,'III. GDP shares, 1310-2018'!E410,\"\")","v":""},{"$f":"IF('IV. Country level, 1310-2018'!F408<0,'III. GDP shares, 1310-2018'!F410,\"\")","v":""},{"$f":"IF('IV. Country level, 1310-2018'!G408<0,'III. GDP shares, 1310-2018'!G410,\"\")","v":""},{"$f":"IF('IV. Country level, 1310-2018'!H408<0,'III. GDP shares, 1310-2018'!H410,\"\")","v":""},{"$f":"IF('IV. Country level, 1310-2018'!I408<0,'III. GDP shares, 1310-2018'!I410,\"\")","v":""},{"$f":"IF('IV. Country level, 1310-2018'!J408<0,'III. GDP shares, 1310-2018'!J410,\"\")","v":""},null,0.197764000587484,{"v":0.194396095797047,"d":"19.44%"},{"v":0.20250823357139602,"d":"20.25%"},{"v":0.27236812734351873,"d":"27.24%"},{"v":0.28138904001220527,"d":"28.14%"}]
[1715,{"$f":"IF('IV. Country level, 1310-2018'!C409<0,'III. GDP shares, 1310-2018'!C411,\"\")","v":0.19706511847249897},{"$f":"IF('IV. Country level, 1310-2018'!D409<0,'III. GDP shares, 1310-2018'!D411,\"\")","v":""},{"$f":"IF('IV. Country level, 1310-2018'!E409<0,'III. GDP shares, 1310-2018'!E411,\"\")","v":""},{"$f":"IF('IV. Country level, 1310-2018'!F409<0,'III. GDP shares, 1310-2018'!F411,\"\")","v":""},{"$f":"IF('IV. Country level, 1310-2018'!G409<0,'III. GDP shares, 1310-2018'!G411,\"\")","v":""},{"$f":"IF('IV. Country level, 1310-2018'!H409<0,'III. GDP shares, 1310-2018'!H411,\"\")","v":""},{"$f":"IF('IV. Country level, 1310-2018'!I409<0,'III. GDP shares, 1310-2018'!I411,\"\")","v":""},{"$f":"IF('IV. Country level, 1310-2018'!J409<0,'III. GDP shares, 1310-2018'!J411,\"\")","v":""},null,0.19706511847249897,{"v":0.16910205210706605,"d":"16.91%"},{"v":0.20250823357139602,"d":"20.25%"},{"v":0.2746640401475351,"d":"27.47%"},{"v":0.28138904001220527,"d":"28.14%"}]
[1716,{"$f":"IF('IV. Country level, 1310-2018'!C410<0,'III. GDP shares, 1310-2018'!C412,\"\")","v":""},{"$f":"IF('IV. Country level, 1310-2018'!D410<0,'III. GDP shares, 1310-2018'!D412,\"\")","v":""},{"$f":"IF('IV. Country level, 1310-2018'!E410<0,'III. GDP shares, 1310-2018'!E412,\"\")","v":""},{"$f":"IF('IV. Country level, 1310-2018'!F410<0,'III. GDP shares, 1310-2018'!F412,\"\")","v":""},{"$f":"IF('IV. Country level, 1310-2018'!G410<0,'III. GDP shares, 1310-2018'!G412,\"\")","v":""},{"$f":"IF('IV. Country level, 1310-2018'!H410<0,'III. GDP shares, 1310-2018'!H412,\"\")","v":""},{"$f":"IF('IV. Country level, 1310-2018'!I410<0,'III. GDP shares, 1310-2018'!I412,\"\")","v":""},{"$f":"IF('IV. Country level, 1310-2018'!J410<0,'III. GDP shares, 1310-2018'!J412,\"\")","v":""},null,0,{"v":0.17607463147691724,"d":"17.61%"},{"v":0.20250823357139602,"d":"20.25%"},{"v":0.2603042485934468,"d":"26.03%"},{"v":0.28138904001220527,"d":"28.14%"}]
[1717,{"$f":"IF('IV. Country level, 1310-2018'!C411<0,'III. GDP shares, 1310-2018'!C413,\"\")","v":""},{"$f":"IF('IV. Country level, 1310-2018'!D411<0,'III. GDP shares, 1310-2018'!D413,\"\")","v":""},{"$f":"IF('IV. Country level, 1310-2018'!E411<0,'III. GDP shares, 1310-2018'!E413,\"\")","v":""},{"$f":"IF('IV. Country level, 1310-2018'!F411<0,'III. GDP shares, 1310-2018'!F413,\"\")","v":""},{"$f":"IF('IV. Country level, 1310-2018'!G411<0,'III. GDP shares, 1310-2018'!G413,\"\")","v":0.270820267194831},{"$f":"IF('IV. Country level, 1310-2018'!H411<0,'III. GDP shares, 1310-2018'!H413,\"\")","v":""},{"$f":"IF('IV. Country level, 1310-2018'!I411<0,'III. GDP shares, 1310-2018'!I413,\"\")","v":""},{"$f":"IF('IV. Country level, 1310-2018'!J411<0,'III. GDP shares, 1310-2018'!J413,\"\")","v":""},null,0.270820267194831,{"v":0.1573854388076654,"d":"15.74%"},{"v":0.20250823357139602,"d":"20.25%"},{"v":0.2665533671665472,"d":"26.66%"},{"v":0.28138904001220527,"d":"28.14%"}]
[1718,{"$f":"IF('IV. Country level, 1310-2018'!C412<0,'III. GDP shares, 1310-2018'!C414,\"\")","v":""},{"$f":"IF('IV. Country level, 1310-2018'!D412<0,'III. GDP shares, 1310-2018'!D414,\"\")","v":""},{"$f":"IF('IV. Country level, 1310-2018'!E412<0,'III. GDP shares, 1310-2018'!E414,\"\")","v":""},{"$f":"IF('IV. Country level, 1310-2018'!F412<0,'III. GDP shares, 1310-2018'!F414,\"\")","v":""},{"$f":"IF('IV. Country level, 1310-2018'!G412<0,'III. GDP shares, 1310-2018'!G414,\"\")","v":""},{"$f":"IF('IV. Country level, 1310-2018'!H412<0,'III. GDP shares, 1310-2018'!H414,\"\")","v":""},{"$f":"IF('IV. Country level, 1310-2018'!I412<0,'III. GDP shares, 1310-2018'!I414,\"\")","v":""},{"$f":"IF('IV. Country level, 1310-2018'!J412<0,'III. GDP shares, 1310-2018'!J414,\"\")","v":""},null,0,{"v":0.15671756042245438,"d":"15.67%"},{"v":0.20250823357139602,"d":"20.25%"},{"v":0.2800357746843822,"d":"28.00%"},{"v":0.28138904001220527,"d":"28.14%"}]
[1719,{"$f":"IF('IV. Country level, 1310-2018'!C413<0,'III. GDP shares, 1310-2018'!C415,\"\")","v":""},{"$f":"IF('IV. Country level, 1310-2018'!D413<0,'III. GDP shares, 1310-2018'!D415,\"\")","v":0.1921455693097607},{"$f":"IF('IV. Country level, 1310-2018'!E413<0,'III. GDP shares, 1310-2018'!E415,\"\")","v":0.04999806726509035},{"$f":"IF('IV. Country level, 1310-2018'!F413<0,'III. GDP shares, 1310-2018'!F415,\"\")","v":""},{"$f":"IF('IV. Country level, 1310-2018'!G413<0,'III. GDP shares, 1310-2018'!G415,\"\")","v":""},{"$f":"IF('IV. Country level, 1310-2018'!H413<0,'III. GDP shares, 1310-2018'!H415,\"\")","v":""},{"$f":"IF('IV. Country level, 1310-2018'!I413<0,'III. GDP shares, 1310-2018'!I415,\"\")","v":""},{"$f":"IF('IV. Country level, 1310-2018'!J413<0,'III. GDP shares, 1310-2018'!J415,\"\")","v":""},null,0.24214363657485105,{"v":0.17036203942387246,"d":"17.04%"},{"v":0.20250823357139602,"d":"20.25%"},{"v":0.2815456995658676,"d":"28.15%"},{"v":0.28138904001220527,"d":"28.14%"}]
[1720,{"$f":"IF('IV. Country level, 1310-2018'!C414<0,'III. GDP shares, 1310-2018'!C416,\"\")","v":""},{"$f":"IF('IV. Country level, 1310-2018'!D414<0,'III. GDP shares, 1310-2018'!D416,\"\")","v":0.1939050488239927},{"$f":"IF('IV. Country level, 1310-2018'!E414<0,'III. GDP shares, 1310-2018'!E416,\"\")","v":""},{"$f":"IF('IV. Country level, 1310-2018'!F414<0,'III. GDP shares, 1310-2018'!F416,\"\")","v":""},{"$f":"IF('IV. Country level, 1310-2018'!G414<0,'III. GDP shares, 1310-2018'!G416,\"\")","v":""},{"$f":"IF('IV. Country level, 1310-2018'!H414<0,'III. GDP shares, 1310-2018'!H416,\"\")","v":""},{"$f":"IF('IV. Country level, 1310-2018'!I414<0,'III. GDP shares, 1310-2018'!I416,\"\")","v":""},{"$f":"IF('IV. Country level, 1310-2018'!J414<0,'III. GDP shares, 1310-2018'!J416,\"\")","v":""},null,0.1939050488239927,{"v":0.22297758028889098,"d":"22.30%"},{"v":0.20250823357139602,"d":"20.25%"},{"v":0.2817062590338026,"d":"28.17%"},{"v":0.28138904001220527,"d":"28.14%"}]
[1721,{"$f":"IF('IV. Country level, 1310-2018'!C415<0,'III. GDP shares, 1310-2018'!C417,\"\")","v":0.1930888518910069},{"$f":"IF('IV. Country level, 1310-2018'!D415<0,'III. GDP shares, 1310-2018'!D417,\"\")","v":""},{"$f":"IF('IV. Country level, 1310-2018'!E415<0,'III. GDP shares, 1310-2018'!E417,\"\")","v":""},{"$f":"IF('IV. Country level, 1310-2018'!F415<0,'III. GDP shares, 1310-2018'!F417,\"\")","v":""},{"$f":"IF('IV. Country level, 1310-2018'!G415<0,'III. GDP shares, 1310-2018'!G417,\"\")","v":""},{"$f":"IF('IV. Country level, 1310-2018'!H415<0,'III. GDP shares, 1310-2018'!H417,\"\")","v":""},{"$f":"IF('IV. Country level, 1310-2018'!I415<0,'III. GDP shares, 1310-2018'!I417,\"\")","v":""},{"$f":"IF('IV. Country level, 1310-2018'!J415<0,'III. GDP shares, 1310-2018'!J417,\"\")","v":""},null,0.1930888518910069,{"v":0.27869559388517157,"d":"27.87%"},{"v":0.20250823357139602,"d":"20.25%"},{"v":0.2888910899303736,"d":"28.89%"},{"v":0.28138904001220527,"d":"28.14%"}]
[1722,{"$f":"IF('IV. Country level, 1310-2018'!C416<0,'III. GDP shares, 1310-2018'!C418,\"\")","v":0.19246018802848985},{"$f":"IF('IV. Country level, 1310-2018'!D416<0,'III. GDP shares, 1310-2018'!D418,\"\")","v":""},{"$f":"IF('IV. Country level, 1310-2018'!E416<0,'III. GDP shares, 1310-2018'!E418,\"\")","v":""},{"$f":"IF('IV. Country level, 1310-2018'!F416<0,'III. GDP shares, 1310-2018'!F418,\"\")","v":""},{"$f":"IF('IV. Country level, 1310-2018'!G416<0,'III. GDP shares, 1310-2018'!G418,\"\")","v":""},{"$f":"IF('IV. Country level, 1310-2018'!H416<0,'III. GDP shares, 1310-2018'!H418,\"\")","v":""},{"$f":"IF('IV. Country level, 1310-2018'!I416<0,'III. GDP shares, 1310-2018'!I418,\"\")","v":0.10011628345393574},{"$f":"IF('IV. Country level, 1310-2018'!J416<0,'III. GDP shares, 1310-2018'!J418,\"\")","v":""},null,0.2925764714824256,{"v":0.37992919563042415,"d":"37.99%"},{"v":0.20250823357139602,"d":"20.25%"},{"v":0.2977226891132415,"d":"29.77%"},{"v":0.28138904001220527,"d":"28.14%"}]
[1723,{"$f":"IF('IV. Country level, 1310-2018'!C417<0,'III. GDP shares, 1310-2018'!C419,\"\")","v":""},{"$f":"IF('IV. Country level, 1310-2018'!D417<0,'III. GDP shares, 1310-2018'!D419,\"\")","v":""},{"$f":"IF('IV. Country level, 1310-2018'!E417<0,'III. GDP shares, 1310-2018'!E419,\"\")","v":""},{"$f":"IF('IV. Country level, 1310-2018'!F417<0,'III. GDP shares, 1310-2018'!F419,\"\")","v":""},{"$f":"IF('IV. Country level, 1310-2018'!G417<0,'III. GDP shares, 1310-2018'!G419,\"\")","v":0.2684448677171974},{"$f":"IF('IV. Country level, 1310-2018'!H417<0,'III. GDP shares, 1310-2018'!H419,\"\")","v":""},{"$f":"IF('IV. Country level, 1310-2018'!I417<0,'III. GDP shares, 1310-2018'!I419,\"\")","v":0.09986391833793222},{"$f":"IF('IV. Country level, 1310-2018'!J417<0,'III. GDP shares, 1310-2018'!J419,\"\")","v":""},null,0.3683087860551296,{"v":0.4018853770558018,"d":"40.19%"},{"v":0.20250823357139602,"d":"20.25%"},{"v":0.2942302093158956,"d":"29.42%"},{"v":0.28138904001220527,"d":"28.14%"}]
[1724,{"$f":"IF('IV. Country level, 1310-2018'!C418<0,'III. GDP shares, 1310-2018'!C420,\"\")","v":""},{"$f":"IF('IV. Country level, 1310-2018'!D418<0,'III. GDP shares, 1310-2018'!D420,\"\")","v":0.2006884332363676},{"$f":"IF('IV. Country level, 1310-2018'!E418<0,'III. GDP shares, 1310-2018'!E420,\"\")","v":""},{"$f":"IF('IV. Country level, 1310-2018'!F418<0,'III. GDP shares, 1310-2018'!F420,\"\")","v":0.19208891594178298},{"$f":"IF('IV. Country level, 1310-2018'!G418<0,'III. GDP shares, 1310-2018'!G420,\"\")","v":0.26806901319064474},{"$f":"IF('IV. Country level, 1310-2018'!H418<0,'III. GDP shares, 1310-2018'!H420,\"\")","v":""},{"$f":"IF('IV. Country level, 1310-2018'!I418<0,'III. GDP shares, 1310-2018'!I420,\"\")","v":""},{"$f":"IF('IV. Country level, 1310-2018'!J418<0,'III. GDP shares, 1310-2018'!J420,\"\")","v":""},null,0.6608463623687952,{"v":0.37418465579523147,"d":"37.42%"},{"v":0.20250823357139602,"d":"20.25%"},{"v":0.31838236220145133,"d":"31.84%"},{"v":0.28138904001220527,"d":"28.14%"}]
[1725,{"$f":"IF('IV. Country level, 1310-2018'!C419<0,'III. GDP shares, 1310-2018'!C421,\"\")","v":0.19062837166200902},{"$f":"IF('IV. Country level, 1310-2018'!D419<0,'III. GDP shares, 1310-2018'!D421,\"\")","v":0.20232338773863012},{"$f":"IF('IV. Country level, 1310-2018'!E419<0,'III. GDP shares, 1310-2018'!E421,\"\")","v":0.047984895930167595},{"$f":"IF('IV. Country level, 1310-2018'!F419<0,'III. GDP shares, 1310-2018'!F421,\"\")","v":""},{"$f":"IF('IV. Country level, 1310-2018'!G419<0,'III. GDP shares, 1310-2018'!G421,\"\")","v":0.2676985568859614},{"$f":"IF('IV. Country level, 1310-2018'!H419<0,'III. GDP shares, 1310-2018'!H421,\"\")","v":""},{"$f":"IF('IV. Country level, 1310-2018'!I419<0,'III. GDP shares, 1310-2018'!I421,\"\")","v":""},{"$f":"IF('IV. Country level, 1310-2018'!J419<0,'III. GDP shares, 1310-2018'!J421,\"\")","v":""},null,0.7086352122167681,{"v":0.36069415054909204,"d":"36.07%"},{"v":0.20250823357139602,"d":"20.25%"},{"v":0.3232324128567609,"d":"32.32%"},{"v":0.28138904001220527,"d":"28.14%"}]
[1726,{"$f":"IF('IV. Country level, 1310-2018'!C420<0,'III. GDP shares, 1310-2018'!C422,\"\")","v":""},{"$f":"IF('IV. Country level, 1310-2018'!D420<0,'III. GDP shares, 1310-2018'!D422,\"\")","v":0.20393502758670545},{"$f":"IF('IV. Country level, 1310-2018'!E420<0,'III. GDP shares, 1310-2018'!E422,\"\")","v":""},{"$f":"IF('IV. Country level, 1310-2018'!F420<0,'III. GDP shares, 1310-2018'!F422,\"\")","v":0.19190187896578892},{"$f":"IF('IV. Country level, 1310-2018'!G420<0,'III. GDP shares, 1310-2018'!G422,\"\")","v":""},{"$f":"IF('IV. Country level, 1310-2018'!H420<0,'III. GDP shares, 1310-2018'!H422,\"\")","v":""},{"$f":"IF('IV. Country level, 1310-2018'!I420<0,'III. GDP shares, 1310-2018'!I422,\"\")","v":""},{"$f":"IF('IV. Country level, 1310-2018'!J420<0,'III. GDP shares, 1310-2018'!J422,\"\")","v":""},null,0.39583690655249437,{"v":0.42031824965150777,"d":"42.03%"},{"v":0.20250823357139602,"d":"20.25%"},{"v":0.2929293825537307,"d":"29.29%"},{"v":0.28138904001220527,"d":"28.14%"}]
[1727,{"$f":"IF('IV. Country level, 1310-2018'!C421<0,'III. GDP shares, 1310-2018'!C423,\"\")","v":""},{"$f":"IF('IV. Country level, 1310-2018'!D421<0,'III. GDP shares, 1310-2018'!D423,\"\")","v":""},{"$f":"IF('IV. Country level, 1310-2018'!E421<0,'III. GDP shares, 1310-2018'!E423,\"\")","v":""},{"$f":"IF('IV. Country level, 1310-2018'!F421<0,'III. GDP shares, 1310-2018'!F423,\"\")","v":""},{"$f":"IF('IV. Country level, 1310-2018'!G421<0,'III. GDP shares, 1310-2018'!G423,\"\")","v":""},{"$f":"IF('IV. Country level, 1310-2018'!H421<0,'III. GDP shares, 1310-2018'!H423,\"\")","v":""},{"$f":"IF('IV. Country level, 1310-2018'!I421<0,'III. GDP shares, 1310-2018'!I423,\"\")","v":""},{"$f":"IF('IV. Country level, 1310-2018'!J421<0,'III. GDP shares, 1310-2018'!J423,\"\")","v":""},null,0,{"v":0.3677027087864892,"d":"36.77%"},{"v":0.20250823357139602,"d":"20.25%"},{"v":0.28449007016791766,"d":"28.45%"},{"v":0.28138904001220527,"d":"28.14%"}]
[1728,{"$f":"IF('IV. Country level, 1310-2018'!C422<0,'III. GDP shares, 1310-2018'!C424,\"\")","v":""},{"$f":"IF('IV. Country level, 1310-2018'!D422<0,'III. GDP shares, 1310-2018'!D424,\"\")","v":""},{"$f":"IF('IV. Country level, 1310-2018'!E422<0,'III. GDP shares, 1310-2018'!E424,\"\")","v":""},{"$f":"IF('IV. Country level, 1310-2018'!F422<0,'III. GDP shares, 1310-2018'!F424,\"\")","v":""},{"$f":"IF('IV. Country level, 1310-2018'!G422<0,'III. GDP shares, 1310-2018'!G424,\"\")","v":""},{"$f":"IF('IV. Country level, 1310-2018'!H422<0,'III. GDP shares, 1310-2018'!H424,\"\")","v":""},{"$f":"IF('IV. Country level, 1310-2018'!I422<0,'III. GDP shares, 1310-2018'!I424,\"\")","v":0.09865531516803114},{"$f":"IF('IV. Country level, 1310-2018'!J422<0,'III. GDP shares, 1310-2018'!J424,\"\")","v":""},null,0.09865531516803114,{"v":0.37532493304409303,"d":"37.53%"},{"v":0.20250823357139602,"d":"20.25%"},{"v":0.2851752212691859,"d":"28.52%"},{"v":0.28138904001220527,"d":"28.14%"}]
[1729,{"$f":"IF('IV. Country level, 1310-2018'!C423<0,'III. GDP shares, 1310-2018'!C425,\"\")","v":0.18830529926799983},{"$f":"IF('IV. Country level, 1310-2018'!D423<0,'III. GDP shares, 1310-2018'!D425,\"\")","v":0.20863494181386225},{"$f":"IF('IV. Country level, 1310-2018'!E423<0,'III. GDP shares, 1310-2018'!E425,\"\")","v":0.04673647124742507},{"$f":"IF('IV. Country level, 1310-2018'!F423<0,'III. GDP shares, 1310-2018'!F425,\"\")","v":""},{"$f":"IF('IV. Country level, 1310-2018'!G423<0,'III. GDP shares, 1310-2018'!G425,\"\")","v":0.2662684528700487},{"$f":"IF('IV. Country level, 1310-2018'!H423<0,'III. GDP shares, 1310-2018'!H425,\"\")","v":""},{"$f":"IF('IV. Country level, 1310-2018'!I423<0,'III. GDP shares, 1310-2018'!I425,\"\")","v":""},{"$f":"IF('IV. Country level, 1310-2018'!J423<0,'III. GDP shares, 1310-2018'!J425,\"\")","v":""},null,0.7099451651993358,{"v":0.2740913312988405,"d":"27.41%"},{"v":0.20250823357139602,"d":"20.25%"},{"v":0.28711025588082906,"d":"28.71%"},{"v":0.28138904001220527,"d":"28.14%"}]
[1730,{"$f":"IF('IV. Country level, 1310-2018'!C424<0,'III. GDP shares, 1310-2018'!C426,\"\")","v":""},{"$f":"IF('IV. Country level, 1310-2018'!D424<0,'III. GDP shares, 1310-2018'!D426,\"\")","v":""},{"$f":"IF('IV. Country level, 1310-2018'!E424<0,'III. GDP shares, 1310-2018'!E426,\"\")","v":""},{"$f":"IF('IV. Country level, 1310-2018'!F424<0,'III. GDP shares, 1310-2018'!F426,\"\")","v":""},{"$f":"IF('IV. Country level, 1310-2018'!G424<0,'III. GDP shares, 1310-2018'!G426,\"\")","v":""},{"$f":"IF('IV. Country level, 1310-2018'!H424<0,'III. GDP shares, 1310-2018'!H426,\"\")","v":""},{"$f":"IF('IV. Country level, 1310-2018'!I424<0,'III. GDP shares, 1310-2018'!I426,\"\")","v":""},{"$f":"IF('IV. Country level, 1310-2018'!J424<0,'III. GDP shares, 1310-2018'!J426,\"\")","v":""},null,0,{"v":0.2470033322073859,"d":"24.70%"},{"v":0.20250823357139602,"d":"20.25%"},{"v":0.28644620777373825,"d":"28.64%"},{"v":0.28138904001220527,"d":"28.14%"}]
[1731,{"$f":"IF('IV. Country level, 1310-2018'!C425<0,'III. GDP shares, 1310-2018'!C427,\"\")","v":0.20752276842657877},{"$f":"IF('IV. Country level, 1310-2018'!D425<0,'III. GDP shares, 1310-2018'!D427,\"\")","v":""},{"$f":"IF('IV. Country level, 1310-2018'!E425<0,'III. GDP shares, 1310-2018'!E427,\"\")","v":""},{"$f":"IF('IV. Country level, 1310-2018'!F425<0,'III. GDP shares, 1310-2018'!F427,\"\")","v":0.2122510788428959},{"$f":"IF('IV. Country level, 1310-2018'!G425<0,'III. GDP shares, 1310-2018'!G427,\"\")","v":0.2944280849025472},{"$f":"IF('IV. Country level, 1310-2018'!H425<0,'III. GDP shares, 1310-2018'!H427,\"\")","v":""},{"$f":"IF('IV. Country level, 1310-2018'!I425<0,'III. GDP shares, 1310-2018'!I427,\"\")","v":""},{"$f":"IF('IV. Country level, 1310-2018'!J425<0,'III. GDP shares, 1310-2018'!J427,\"\")","v":""},null,0.7142019321720219,{"v":0.3105632533628936,"d":"31.06%"},{"v":0.20250823357139602,"d":"20.25%"},{"v":0.2878566989497445,"d":"28.79%"},{"v":0.28138904001220527,"d":"28.14%"}]
[1732,{"$f":"IF('IV. Country level, 1310-2018'!C426<0,'III. GDP shares, 1310-2018'!C428,\"\")","v":""},{"$f":"IF('IV. Country level, 1310-2018'!D426<0,'III. GDP shares, 1310-2018'!D428,\"\")","v":""},{"$f":"IF('IV. Country level, 1310-2018'!E426<0,'III. GDP shares, 1310-2018'!E428,\"\")","v":""},{"$f":"IF('IV. Country level, 1310-2018'!F426<0,'III. GDP shares, 1310-2018'!F428,\"\")","v":""},{"$f":"IF('IV. Country level, 1310-2018'!G426<0,'III. GDP shares, 1310-2018'!G428,\"\")","v":""},{"$f":"IF('IV. Country level, 1310-2018'!H426<0,'III. GDP shares, 1310-2018'!H428,\"\")","v":""},{"$f":"IF('IV. Country level, 1310-2018'!I426<0,'III. GDP shares, 1310-2018'!I428,\"\")","v":""},{"$f":"IF('IV. Country level, 1310-2018'!J426<0,'III. GDP shares, 1310-2018'!J428,\"\")","v":""},null,0,{"v":0.3035878542087492,"d":"30.36%"},{"v":0.20250823357139602,"d":"20.25%"},{"v":0.30443032553387106,"d":"30.44%"},{"v":0.28138904001220527,"d":"28.14%"}]
[1733,{"$f":"IF('IV. Country level, 1310-2018'!C427<0,'III. GDP shares, 1310-2018'!C429,\"\")","v":0.20622091291231243},{"$f":"IF('IV. Country level, 1310-2018'!D427<0,'III. GDP shares, 1310-2018'!D429,\"\")","v":""},{"$f":"IF('IV. Country level, 1310-2018'!E427<0,'III. GDP shares, 1310-2018'!E429,\"\")","v":""},{"$f":"IF('IV. Country level, 1310-2018'!F427<0,'III. GDP shares, 1310-2018'!F429,\"\")","v":""},{"$f":"IF('IV. Country level, 1310-2018'!G427<0,'III. GDP shares, 1310-2018'!G429,\"\")","v":""},{"$f":"IF('IV. Country level, 1310-2018'!H427<0,'III. GDP shares, 1310-2018'!H429,\"\")","v":""},{"$f":"IF('IV. Country level, 1310-2018'!I427<0,'III. GDP shares, 1310-2018'!I429,\"\")","v":""},{"$f":"IF('IV. Country level, 1310-2018'!J427<0,'III. GDP shares, 1310-2018'!J429,\"\")","v":""},null,0.20622091291231243,{"v":0.2323866819238494,"d":"23.24%"},{"v":0.20250823357139602,"d":"20.25%"},{"v":0.30443032553387106,"d":"30.44%"},{"v":0.28138904001220527,"d":"28.14%"}]
[1734,{"$f":"IF('IV. Country level, 1310-2018'!C428<0,'III. GDP shares, 1310-2018'!C430,\"\")","v":0.20558362179852407},{"$f":"IF('IV. Country level, 1310-2018'!D428<0,'III. GDP shares, 1310-2018'!D430,\"\")","v":0.23933582629003003},{"$f":"IF('IV. Country level, 1310-2018'!E428<0,'III. GDP shares, 1310-2018'!E430,\"\")","v":""},{"$f":"IF('IV. Country level, 1310-2018'!F428<0,'III. GDP shares, 1310-2018'!F430,\"\")","v":""},{"$f":"IF('IV. Country level, 1310-2018'!G428<0,'III. GDP shares, 1310-2018'!G430,\"\")","v":""},{"$f":"IF('IV. Country level, 1310-2018'!H428<0,'III. GDP shares, 1310-2018'!H430,\"\")","v":""},{"$f":"IF('IV. Country level, 1310-2018'!I428<0,'III. GDP shares, 1310-2018'!I430,\"\")","v":""},{"$f":"IF('IV. Country level, 1310-2018'!J428<0,'III. GDP shares, 1310-2018'!J430,\"\")","v":""},null,0.4449194480885541,{"v":0.27424728233323875,"d":"27.42%"},{"v":0.20250823357139602,"d":"20.25%"},{"v":0.3035551286325553,"d":"30.36%"},{"v":0.28138904001220527,"d":"28.14%"}]
[1735,{"$f":"IF('IV. Country level, 1310-2018'!C429<0,'III. GDP shares, 1310-2018'!C431,\"\")","v":""},{"$f":"IF('IV. Country level, 1310-2018'!D429<0,'III. GDP shares, 1310-2018'!D431,\"\")","v":""},{"$f":"IF('IV. Country level, 1310-2018'!E429<0,'III. GDP shares, 1310-2018'!E431,\"\")","v":0.0498275210890199},{"$f":"IF('IV. Country level, 1310-2018'!F429<0,'III. GDP shares, 1310-2018'!F431,\"\")","v":""},{"$f":"IF('IV. Country level, 1310-2018'!G429<0,'III. GDP shares, 1310-2018'!G431,\"\")","v":""},{"$f":"IF('IV. Country level, 1310-2018'!H429<0,'III. GDP shares, 1310-2018'!H431,\"\")","v":""},{"$f":"IF('IV. Country level, 1310-2018'!I429<0,'III. GDP shares, 1310-2018'!I431,\"\")","v":""},{"$f":"IF('IV. Country level, 1310-2018'!J429<0,'III. GDP shares, 1310-2018'!J431,\"\")","v":""},null,0.0498275210890199,{"v":0.21385311674218427,"d":"21.39%"},{"v":0.20250823357139602,"d":"20.25%"},{"v":0.3049248578762247,"d":"30.49%"},{"v":0.28138904001220527,"d":"28.14%"}]
[1736,{"$f":"IF('IV. Country level, 1310-2018'!C430<0,'III. GDP shares, 1310-2018'!C432,\"\")","v":""},{"$f":"IF('IV. Country level, 1310-2018'!D430<0,'III. GDP shares, 1310-2018'!D432,\"\")","v":""},{"$f":"IF('IV. Country level, 1310-2018'!E430<0,'III. GDP shares, 1310-2018'!E432,\"\")","v":""},{"$f":"IF('IV. Country level, 1310-2018'!F430<0,'III. GDP shares, 1310-2018'!F432,\"\")","v":0.2115369592050373},{"$f":"IF('IV. Country level, 1310-2018'!G430<0,'III. GDP shares, 1310-2018'!G432,\"\")","v":""},{"$f":"IF('IV. Country level, 1310-2018'!H430<0,'III. GDP shares, 1310-2018'!H432,\"\")","v":""},{"$f":"IF('IV. Country level, 1310-2018'!I430<0,'III. GDP shares, 1310-2018'!I432,\"\")","v":""},{"$f":"IF('IV. Country level, 1310-2018'!J430<0,'III. GDP shares, 1310-2018'!J432,\"\")","v":""},null,0.2115369592050373,{"v":0.24401477625944515,"d":"24.40%"},{"v":0.20250823357139602,"d":"20.25%"},{"v":0.32196703733820264,"d":"32.20%"},{"v":0.28138904001220527,"d":"28.14%"}]
[1737,{"$f":"IF('IV. Country level, 1310-2018'!C431<0,'III. GDP shares, 1310-2018'!C433,\"\")","v":""},{"$f":"IF('IV. Country level, 1310-2018'!D431<0,'III. GDP shares, 1310-2018'!D433,\"\")","v":0.24383036657568108},{"$f":"IF('IV. Country level, 1310-2018'!E431<0,'III. GDP shares, 1310-2018'!E433,\"\")","v":0.04919383629004447},{"$f":"IF('IV. Country level, 1310-2018'!F431<0,'III. GDP shares, 1310-2018'!F433,\"\")","v":""},{"$f":"IF('IV. Country level, 1310-2018'!G431<0,'III. GDP shares, 1310-2018'!G433,\"\")","v":""},{"$f":"IF('IV. Country level, 1310-2018'!H431<0,'III. GDP shares, 1310-2018'!H433,\"\")","v":""},{"$f":"IF('IV. Country level, 1310-2018'!I431<0,'III. GDP shares, 1310-2018'!I433,\"\")","v":""},{"$f":"IF('IV. Country level, 1310-2018'!J431<0,'III. GDP shares, 1310-2018'!J433,\"\")","v":""},null,0.29302420286572556,{"v":0.3574117887005434,"d":"35.74%"},{"v":0.20250823357139602,"d":"20.25%"},{"v":0.3224377410952139,"d":"32.24%"},{"v":0.28138904001220527,"d":"28.14%"}]
[1738,{"$f":"IF('IV. Country level, 1310-2018'!C432<0,'III. GDP shares, 1310-2018'!C434,\"\")","v":""},{"$f":"IF('IV. Country level, 1310-2018'!D432<0,'III. GDP shares, 1310-2018'!D434,\"\")","v":""},{"$f":"IF('IV. Country level, 1310-2018'!E432<0,'III. GDP shares, 1310-2018'!E434,\"\")","v":""},{"$f":"IF('IV. Country level, 1310-2018'!F432<0,'III. GDP shares, 1310-2018'!F434,\"\")","v":""},{"$f":"IF('IV. Country level, 1310-2018'!G432<0,'III. GDP shares, 1310-2018'!G434,\"\")","v":0.2914427730346408},{"$f":"IF('IV. Country level, 1310-2018'!H432<0,'III. GDP shares, 1310-2018'!H434,\"\")","v":""},{"$f":"IF('IV. Country level, 1310-2018'!I432<0,'III. GDP shares, 1310-2018'!I434,\"\")","v":""},{"$f":"IF('IV. Country level, 1310-2018'!J432<0,'III. GDP shares, 1310-2018'!J434,\"\")","v":""},null,0.2914427730346408,{"v":0.3997307993508907,"d":"39.97%"},{"v":0.20250823357139602,"d":"20.25%"},{"v":0.3165865637651834,"d":"31.66%"},{"v":0.28138904001220527,"d":"28.14%"}]
[1739,{"$f":"IF('IV. Country level, 1310-2018'!C433<0,'III. GDP shares, 1310-2018'!C435,\"\")","v":""},{"$f":"IF('IV. Country level, 1310-2018'!D433<0,'III. GDP shares, 1310-2018'!D435,\"\")","v":""},{"$f":"IF('IV. Country level, 1310-2018'!E433<0,'III. GDP shares, 1310-2018'!E435,\"\")","v":""},{"$f":"IF('IV. Country level, 1310-2018'!F433<0,'III. GDP shares, 1310-2018'!F435,\"\")","v":0.2111316166208261},{"$f":"IF('IV. Country level, 1310-2018'!G433<0,'III. GDP shares, 1310-2018'!G435,\"\")","v":""},{"$f":"IF('IV. Country level, 1310-2018'!H433<0,'III. GDP shares, 1310-2018'!H435,\"\")","v":""},{"$f":"IF('IV. Country level, 1310-2018'!I433<0,'III. GDP shares, 1310-2018'!I435,\"\")","v":""},{"$f":"IF('IV. Country level, 1310-2018'!J433<0,'III. GDP shares, 1310-2018'!J435,\"\")","v":""},null,0.2111316166208261,{"v":0.3926125820524593,"d":"39.26%"},{"v":0.20250823357139602,"d":"20.25%"},{"v":0.31493815351823046,"d":"31.49%"},{"v":0.28138904001220527,"d":"28.14%"}]
[1740,{"$f":"IF('IV. Country level, 1310-2018'!C434<0,'III. GDP shares, 1310-2018'!C436,\"\")","v":0.20193927201272602},{"$f":"IF('IV. Country level, 1310-2018'!D434<0,'III. GDP shares, 1310-2018'!D436,\"\")","v":0.24814416268987255},{"$f":"IF('IV. Country level, 1310-2018'!E434<0,'III. GDP shares, 1310-2018'!E436,\"\")","v":0.04827516297058733},{"$f":"IF('IV. Country level, 1310-2018'!F434<0,'III. GDP shares, 1310-2018'!F436,\"\")","v":0.21100012476217211},{"$f":"IF('IV. Country level, 1310-2018'!G434<0,'III. GDP shares, 1310-2018'!G436,\"\")","v":0.290641277564642},{"$f":"IF('IV. Country level, 1310-2018'!H434<0,'III. GDP shares, 1310-2018'!H436,\"\")","v":""},{"$f":"IF('IV. Country level, 1310-2018'!I434<0,'III. GDP shares, 1310-2018'!I436,\"\")","v":""},{"$f":"IF('IV. Country level, 1310-2018'!J434<0,'III. GDP shares, 1310-2018'!J436,\"\")","v":""},null,1,{"v":0.3623930164517396,"d":"36.24%"},{"v":0.20250823357139602,"d":"20.25%"},{"v":0.31958203437044475,"d":"31.96%"},{"v":0.28138904001220527,"d":"28.14%"}]
[1741,{"$f":"IF('IV. Country level, 1310-2018'!C435<0,'III. GDP shares, 1310-2018'!C437,\"\")","v":0.201360187361249},{"$f":"IF('IV. Country level, 1310-2018'!D435<0,'III. GDP shares, 1310-2018'!D437,\"\")","v":0.24954380123007874},{"$f":"IF('IV. Country level, 1310-2018'!E435<0,'III. GDP shares, 1310-2018'!E437,\"\")","v":""},{"$f":"IF('IV. Country level, 1310-2018'!F435<0,'III. GDP shares, 1310-2018'!F437,\"\")","v":""},{"$f":"IF('IV. Country level, 1310-2018'!G435<0,'III. GDP shares, 1310-2018'!G437,\"\")","v":0.2902485340496572},{"$f":"IF('IV. Country level, 1310-2018'!H435<0,'III. GDP shares, 1310-2018'!H437,\"\")","v":""},{"$f":"IF('IV. Country level, 1310-2018'!I435<0,'III. GDP shares, 1310-2018'!I437,\"\")","v":""},{"$f":"IF('IV. Country level, 1310-2018'!J435<0,'III. GDP shares, 1310-2018'!J437,\"\")","v":""},null,0.741152522640985,{"v":0.3490564577811672,"d":"34.91%"},{"v":0.20250823357139602,"d":"20.25%"},{"v":0.3176761020434302,"d":"31.77%"},{"v":0.28138904001220527,"d":"28.14%"}]
[1742,{"$f":"IF('IV. Country level, 1310-2018'!C436<0,'III. GDP shares, 1310-2018'!C438,\"\")","v":""},{"$f":"IF('IV. Country level, 1310-2018'!D436<0,'III. GDP shares, 1310-2018'!D438,\"\")","v":""},{"$f":"IF('IV. Country level, 1310-2018'!E436<0,'III. GDP shares, 1310-2018'!E438,\"\")","v":""},{"$f":"IF('IV. Country level, 1310-2018'!F436<0,'III. GDP shares, 1310-2018'!F438,\"\")","v":""},{"$f":"IF('IV. Country level, 1310-2018'!G436<0,'III. GDP shares, 1310-2018'!G438,\"\")","v":""},{"$f":"IF('IV. Country level, 1310-2018'!H436<0,'III. GDP shares, 1310-2018'!H438,\"\")","v":""},{"$f":"IF('IV. Country level, 1310-2018'!I436<0,'III. GDP shares, 1310-2018'!I438,\"\")","v":""},{"$f":"IF('IV. Country level, 1310-2018'!J436<0,'III. GDP shares, 1310-2018'!J438,\"\")","v":0},null,0,{"v":0.3441634506576636,"d":"34.42%"},{"v":0.20250823357139602,"d":"20.25%"},{"v":0.30836830103549395,"d":"30.84%"},{"v":0.28138904001220527,"d":"28.14%"}]
[1743,{"$f":"IF('IV. Country level, 1310-2018'!C437<0,'III. GDP shares, 1310-2018'!C439,\"\")","v":""},{"$f":"IF('IV. Country level, 1310-2018'!D437<0,'III. GDP shares, 1310-2018'!D439,\"\")","v":""},{"$f":"IF('IV. Country level, 1310-2018'!E437<0,'III. GDP shares, 1310-2018'!E439,\"\")","v":""},{"$f":"IF('IV. Country level, 1310-2018'!F437<0,'III. GDP shares, 1310-2018'!F439,\"\")","v":""},{"$f":"IF('IV. Country level, 1310-2018'!G437<0,'III. GDP shares, 1310-2018'!G439,\"\")","v":""},{"$f":"IF('IV. Country level, 1310-2018'!H437<0,'III. GDP shares, 1310-2018'!H439,\"\")","v":""},{"$f":"IF('IV. Country level, 1310-2018'!I437<0,'III. GDP shares, 1310-2018'!I439,\"\")","v":""},{"$f":"IF('IV. Country level, 1310-2018'!J437<0,'III. GDP shares, 1310-2018'!J439,\"\")","v":""},null,0,{"v":0.35726119256536826,"d":"35.73%"},{"v":0.20250823357139602,"d":"20.25%"},{"v":0.30219488279518164,"d":"30.22%"},{"v":0.28138904001220527,"d":"28.14%"}]
[1744,{"$f":"IF('IV. Country level, 1310-2018'!C438<0,'III. GDP shares, 1310-2018'!C440,\"\")","v":0.19966829217171836},{"$f":"IF('IV. Country level, 1310-2018'!D438<0,'III. GDP shares, 1310-2018'!D440,\"\")","v":""},{"$f":"IF('IV. Country level, 1310-2018'!E438<0,'III. GDP shares, 1310-2018'!E440,\"\")","v":""},{"$f":"IF('IV. Country level, 1310-2018'!F438<0,'III. GDP shares, 1310-2018'!F440,\"\")","v":""},{"$f":"IF('IV. Country level, 1310-2018'!G438<0,'III. GDP shares, 1310-2018'!G440,\"\")","v":""},{"$f":"IF('IV. Country level, 1310-2018'!H438<0,'III. GDP shares, 1310-2018'!H440,\"\")","v":""},{"$f":"IF('IV. Country level, 1310-2018'!I438<0,'III. GDP shares, 1310-2018'!I440,\"\")","v":""},{"$f":"IF('IV. Country level, 1310-2018'!J438<0,'III. GDP shares, 1310-2018'!J440,\"\")","v":0},null,0.19966829217171836,{"v":0.249305508193324,"d":"24.93%"},{"v":0.20250823357139602,"d":"20.25%"},{"v":0.3085190247213719,"d":"30.85%"},{"v":0.28138904001220527,"d":"28.14%"}]
[1745,{"$f":"IF('IV. Country level, 1310-2018'!C439<0,'III. GDP shares, 1310-2018'!C441,\"\")","v":""},{"$f":"IF('IV. Country level, 1310-2018'!D439<0,'III. GDP shares, 1310-2018'!D441,\"\")","v":""},{"$f":"IF('IV. Country level, 1310-2018'!E439<0,'III. GDP shares, 1310-2018'!E441,\"\")","v":0.0468234758215222},{"$f":"IF('IV. Country level, 1310-2018'!F439<0,'III. GDP shares, 1310-2018'!F441,\"\")","v":0.21036824734859358},{"$f":"IF('IV. Country level, 1310-2018'!G439<0,'III. GDP shares, 1310-2018'!G441,\"\")","v":""},{"$f":"IF('IV. Country level, 1310-2018'!H439<0,'III. GDP shares, 1310-2018'!H441,\"\")","v":""},{"$f":"IF('IV. Country level, 1310-2018'!I439<0,'III. GDP shares, 1310-2018'!I441,\"\")","v":""},{"$f":"IF('IV. Country level, 1310-2018'!J439<0,'III. GDP shares, 1310-2018'!J441,\"\")","v":""},null,0.2571917231701158,{"v":0.24971154720870864,"d":"24.97%"},{"v":0.20250823357139602,"d":"20.25%"},{"v":0.3131460443801155,"d":"31.31%"},{"v":0.28138904001220527,"d":"28.14%"}]
[1746,{"$f":"IF('IV. Country level, 1310-2018'!C440<0,'III. GDP shares, 1310-2018'!C442,\"\")","v":""},{"$f":"IF('IV. Country level, 1310-2018'!D440<0,'III. GDP shares, 1310-2018'!D442,\"\")","v":0.256271447282437},{"$f":"IF('IV. Country level, 1310-2018'!E440<0,'III. GDP shares, 1310-2018'!E442,\"\")","v":0.046544362692321616},{"$f":"IF('IV. Country level, 1310-2018'!F440<0,'III. GDP shares, 1310-2018'!F442,\"\")","v":""},{"$f":"IF('IV. Country level, 1310-2018'!G440<0,'III. GDP shares, 1310-2018'!G442,\"\")","v":""},{"$f":"IF('IV. Country level, 1310-2018'!H440<0,'III. GDP shares, 1310-2018'!H442,\"\")","v":""},{"$f":"IF('IV. Country level, 1310-2018'!I440<0,'III. GDP shares, 1310-2018'!I442,\"\")","v":""},{"$f":"IF('IV. Country level, 1310-2018'!J440<0,'III. GDP shares, 1310-2018'!J442,\"\")","v":0},null,0.3028158099747586,{"v":0.24971154720870864,"d":"24.97%"},{"v":0.20250823357139602,"d":"20.25%"},{"v":0.2929210999911218,"d":"29.29%"},{"v":0.28138904001220527,"d":"28.14%"}]
[1747,{"$f":"IF('IV. Country level, 1310-2018'!C441<0,'III. GDP shares, 1310-2018'!C443,\"\")","v":0.19804138606765356},{"$f":"IF('IV. Country level, 1310-2018'!D441<0,'III. GDP shares, 1310-2018'!D443,\"\")","v":""},{"$f":"IF('IV. Country level, 1310-2018'!E441<0,'III. GDP shares, 1310-2018'!E443,\"\")","v":0.046268823328036744},{"$f":"IF('IV. Country level, 1310-2018'!F441<0,'III. GDP shares, 1310-2018'!F443,\"\")","v":""},{"$f":"IF('IV. Country level, 1310-2018'!G441<0,'III. GDP shares, 1310-2018'!G443,\"\")","v":""},{"$f":"IF('IV. Country level, 1310-2018'!H441<0,'III. GDP shares, 1310-2018'!H443,\"\")","v":""},{"$f":"IF('IV. Country level, 1310-2018'!I441<0,'III. GDP shares, 1310-2018'!I443,\"\")","v":""},{"$f":"IF('IV. Country level, 1310-2018'!J441<0,'III. GDP shares, 1310-2018'!J443,\"\")","v":""},null,0.24431020939569031,{"v":0.2842742285589101,"d":"28.43%"},{"v":0.20250823357139602,"d":"20.25%"},{"v":0.29868843093365444,"d":"29.87%"},{"v":0.28138904001220527,"d":"28.14%"}]
[1748,{"$f":"IF('IV. Country level, 1310-2018'!C442<0,'III. GDP shares, 1310-2018'!C444,\"\")","v":0.19751288296429215},{"$f":"IF('IV. Country level, 1310-2018'!D442<0,'III. GDP shares, 1310-2018'!D444,\"\")","v":0.2588426757489439},{"$f":"IF('IV. Country level, 1310-2018'!E442<0,'III. GDP shares, 1310-2018'!E444,\"\")","v":""},{"$f":"IF('IV. Country level, 1310-2018'!F442<0,'III. GDP shares, 1310-2018'!F444,\"\")","v":""},{"$f":"IF('IV. Country level, 1310-2018'!G442<0,'III. GDP shares, 1310-2018'!G444,\"\")","v":0.2876392370354413},{"$f":"IF('IV. Country level, 1310-2018'!H442<0,'III. GDP shares, 1310-2018'!H444,\"\")","v":""},{"$f":"IF('IV. Country level, 1310-2018'!I442<0,'III. GDP shares, 1310-2018'!I444,\"\")","v":""},{"$f":"IF('IV. Country level, 1310-2018'!J442<0,'III. GDP shares, 1310-2018'!J444,\"\")","v":0},null,0.7439947957486773,{"v":0.2622074818259633,"d":"26.22%"},{"v":0.20250823357139602,"d":"20.25%"},{"v":0.29120235982197745,"d":"29.12%"},{"v":0.28138904001220527,"d":"28.14%"}]
[1749,{"$f":"IF('IV. Country level, 1310-2018'!C443<0,'III. GDP shares, 1310-2018'!C445,\"\")","v":""},{"$f":"IF('IV. Country level, 1310-2018'!D443<0,'III. GDP shares, 1310-2018'!D445,\"\")","v":""},{"$f":"IF('IV. Country level, 1310-2018'!E443<0,'III. GDP shares, 1310-2018'!E445,\"\")","v":""},{"$f":"IF('IV. Country level, 1310-2018'!F443<0,'III. GDP shares, 1310-2018'!F445,\"\")","v":""},{"$f":"IF('IV. Country level, 1310-2018'!G443<0,'III. GDP shares, 1310-2018'!G445,\"\")","v":""},{"$f":"IF('IV. Country level, 1310-2018'!H443<0,'III. GDP shares, 1310-2018'!H445,\"\")","v":""},{"$f":"IF('IV. Country level, 1310-2018'!I443<0,'III. GDP shares, 1310-2018'!I445,\"\")","v":""},{"$f":"IF('IV. Country level, 1310-2018'!J443<0,'III. GDP shares, 1310-2018'!J445,\"\")","v":""},null,0,{"v":0.34039945834739277,"d":"34.04%"},{"v":0.20250823357139602,"d":"20.25%"},{"v":0.3053772402244914,"d":"30.54%"},{"v":0.28138904001220527,"d":"28.14%"}]
[1750,{"$f":"IF('IV. Country level, 1310-2018'!C444<0,'III. GDP shares, 1310-2018'!C446,\"\")","v":0.19647579506995005},{"$f":"IF('IV. Country level, 1310-2018'!D444<0,'III. GDP shares, 1310-2018'!D446,\"\")","v":""},{"$f":"IF('IV. Country level, 1310-2018'!E444<0,'III. GDP shares, 1310-2018'!E446,\"\")","v":0.045462974381460027},{"$f":"IF('IV. Country level, 1310-2018'!F444<0,'III. GDP shares, 1310-2018'!F446,\"\")","v":""},{"$f":"IF('IV. Country level, 1310-2018'!G444<0,'III. GDP shares, 1310-2018'!G446,\"\")","v":""},{"$f":"IF('IV. Country level, 1310-2018'!H444<0,'III. GDP shares, 1310-2018'!H446,\"\")","v":""},{"$f":"IF('IV. Country level, 1310-2018'!I444<0,'III. GDP shares, 1310-2018'!I446,\"\")","v":""},{"$f":"IF('IV. Country level, 1310-2018'!J444<0,'III. GDP shares, 1310-2018'!J446,\"\")","v":0},null,0.24193876945141007,{"v":0.32705981018033653,"d":"32.71%"},{"v":0.20250823357139602,"d":"20.25%"},{"v":0.3003896732410727,"d":"30.04%"},{"v":0.28138904001220527,"d":"28.14%"}]
[1751,{"$f":"IF('IV. Country level, 1310-2018'!C445<0,'III. GDP shares, 1310-2018'!C447,\"\")","v":""},{"$f":"IF('IV. Country level, 1310-2018'!D445<0,'III. GDP shares, 1310-2018'!D447,\"\")","v":""},{"$f":"IF('IV. Country level, 1310-2018'!E445<0,'III. GDP shares, 1310-2018'!E447,\"\")","v":0.045201065041091025},{"$f":"IF('IV. Country level, 1310-2018'!F445<0,'III. GDP shares, 1310-2018'!F447,\"\")","v":""},{"$f":"IF('IV. Country level, 1310-2018'!G445<0,'III. GDP shares, 1310-2018'!G447,\"\")","v":""},{"$f":"IF('IV. Country level, 1310-2018'!H445<0,'III. GDP shares, 1310-2018'!H447,\"\")","v":""},{"$f":"IF('IV. Country level, 1310-2018'!I445<0,'III. GDP shares, 1310-2018'!I447,\"\")","v":""},{"$f":"IF('IV. Country level, 1310-2018'!J445<0,'III. GDP shares, 1310-2018'!J447,\"\")","v":""},null,0.045201065041091025,{"v":0.29215835169523796,"d":"29.22%"},{"v":0.20250823357139602,"d":"20.25%"},{"v":0.30296141624740547,"d":"30.30%"},{"v":0.28138904001220527,"d":"28.14%"}]
[1752,{"$f":"IF('IV. Country level, 1310-2018'!C446<0,'III. GDP shares, 1310-2018'!C448,\"\")","v":""},{"$f":"IF('IV. Country level, 1310-2018'!D446<0,'III. GDP shares, 1310-2018'!D448,\"\")","v":0.26379372748468266},{"$f":"IF('IV. Country level, 1310-2018'!E446<0,'III. GDP shares, 1310-2018'!E448,\"\")","v":0.04494240517269067},{"$f":"IF('IV. Country level, 1310-2018'!F446<0,'III. GDP shares, 1310-2018'!F448,\"\")","v":0.20954947172113997},{"$f":"IF('IV. Country level, 1310-2018'!G446<0,'III. GDP shares, 1310-2018'!G448,\"\")","v":0.2862499544416089},{"$f":"IF('IV. Country level, 1310-2018'!H446<0,'III. GDP shares, 1310-2018'!H448,\"\")","v":""},{"$f":"IF('IV. Country level, 1310-2018'!I446<0,'III. GDP shares, 1310-2018'!I448,\"\")","v":""},{"$f":"IF('IV. Country level, 1310-2018'!J446<0,'III. GDP shares, 1310-2018'!J448,\"\")","v":""},null,0.8045355588201222,{"v":0.21989894277870967,"d":"21.99%"},{"v":0.20250823357139602,"d":"20.25%"},{"v":0.3099763409279104,"d":"31.00%"},{"v":0.28138904001220527,"d":"28.14%"}]
[1753,{"$f":"IF('IV. Country level, 1310-2018'!C447<0,'III. GDP shares, 1310-2018'!C449,\"\")","v":""},{"$f":"IF('IV. Country level, 1310-2018'!D447<0,'III. GDP shares, 1310-2018'!D449,\"\")","v":""},{"$f":"IF('IV. Country level, 1310-2018'!E447<0,'III. GDP shares, 1310-2018'!E449,\"\")","v":""},{"$f":"IF('IV. Country level, 1310-2018'!F447<0,'III. GDP shares, 1310-2018'!F449,\"\")","v":0.2094382728053651},{"$f":"IF('IV. Country level, 1310-2018'!G447<0,'III. GDP shares, 1310-2018'!G449,\"\")","v":""},{"$f":"IF('IV. Country level, 1310-2018'!H447<0,'III. GDP shares, 1310-2018'!H449,\"\")","v":""},{"$f":"IF('IV. Country level, 1310-2018'!I447<0,'III. GDP shares, 1310-2018'!I449,\"\")","v":""},{"$f":"IF('IV. Country level, 1310-2018'!J447<0,'III. GDP shares, 1310-2018'!J449,\"\")","v":""},null,0.2094382728053651,{"v":0.2944070648041666,"d":"29.44%"},{"v":0.20250823357139602,"d":"20.25%"},{"v":0.3048082314946054,"d":"30.48%"},{"v":0.28138904001220527,"d":"28.14%"}]
[1754,{"$f":"IF('IV. Country level, 1310-2018'!C448<0,'III. GDP shares, 1310-2018'!C450,\"\")","v":""},{"$f":"IF('IV. Country level, 1310-2018'!D448<0,'III. GDP shares, 1310-2018'!D450,\"\")","v":""},{"$f":"IF('IV. Country level, 1310-2018'!E448<0,'III. GDP shares, 1310-2018'!E450,\"\")","v":""},{"$f":"IF('IV. Country level, 1310-2018'!F448<0,'III. GDP shares, 1310-2018'!F450,\"\")","v":""},{"$f":"IF('IV. Country level, 1310-2018'!G448<0,'III. GDP shares, 1310-2018'!G450,\"\")","v":""},{"$f":"IF('IV. Country level, 1310-2018'!H448<0,'III. GDP shares, 1310-2018'!H450,\"\")","v":""},{"$f":"IF('IV. Country level, 1310-2018'!I448<0,'III. GDP shares, 1310-2018'!I450,\"\")","v":""},{"$f":"IF('IV. Country level, 1310-2018'!J448<0,'III. GDP shares, 1310-2018'!J450,\"\")","v":0},null,0,{"v":0.3452658971078675,"d":"34.53%"},{"v":0.20250823357139602,"d":"20.25%"},{"v":0.316487926364323,"d":"31.65%"},{"v":0.28138904001220527,"d":"28.14%"}]
[1755,{"$f":"IF('IV. Country level, 1310-2018'!C449<0,'III. GDP shares, 1310-2018'!C451,\"\")","v":0.1939936046210403},{"$f":"IF('IV. Country level, 1310-2018'!D449<0,'III. GDP shares, 1310-2018'!D451,\"\")","v":""},{"$f":"IF('IV. Country level, 1310-2018'!E449<0,'III. GDP shares, 1310-2018'!E451,\"\")","v":0.044185328711939156},{"$f":"IF('IV. Country level, 1310-2018'!F449<0,'III. GDP shares, 1310-2018'!F451,\"\")","v":""},{"$f":"IF('IV. Country level, 1310-2018'!G449<0,'III. GDP shares, 1310-2018'!G451,\"\")","v":""},{"$f":"IF('IV. Country level, 1310-2018'!H449<0,'III. GDP shares, 1310-2018'!H451,\"\")","v":""},{"$f":"IF('IV. Country level, 1310-2018'!I449<0,'III. GDP shares, 1310-2018'!I451,\"\")","v":""},{"$f":"IF('IV. Country level, 1310-2018'!J449<0,'III. GDP shares, 1310-2018'!J451,\"\")","v":""},null,0.23817893333297946,{"v":0.3961625705241217,"d":"39.62%"},{"v":0.20250823357139602,"d":"20.25%"},{"v":0.3294595654196507,"d":"32.95%"},{"v":0.28138904001220527,"d":"28.14%"}]
[1756,{"$f":"IF('IV. Country level, 1310-2018'!C450<0,'III. GDP shares, 1310-2018'!C452,\"\")","v":""},{"$f":"IF('IV. Country level, 1310-2018'!D450<0,'III. GDP shares, 1310-2018'!D452,\"\")","v":0.2685050205427456},{"$f":"IF('IV. Country level, 1310-2018'!E450<0,'III. GDP shares, 1310-2018'!E452,\"\")","v":0.04393908023149851},{"$f":"IF('IV. Country level, 1310-2018'!F450<0,'III. GDP shares, 1310-2018'!F452,\"\")","v":0.2091127534039546},{"$f":"IF('IV. Country level, 1310-2018'!G450<0,'III. GDP shares, 1310-2018'!G452,\"\")","v":""},{"$f":"IF('IV. Country level, 1310-2018'!H450<0,'III. GDP shares, 1310-2018'!H452,\"\")","v":""},{"$f":"IF('IV. Country level, 1310-2018'!I450<0,'III. GDP shares, 1310-2018'!I452,\"\")","v":""},{"$f":"IF('IV. Country level, 1310-2018'!J450<0,'III. GDP shares, 1310-2018'!J452,\"\")","v":""},null,0.5215568541781987,{"v":0.3086737913529883,"d":"30.87%"},{"v":0.20250823357139602,"d":"20.25%"},{"v":0.33736009135777695,"d":"33.74%"},{"v":0.28138904001220527,"d":"28.14%"}]
[1757,{"$f":"IF('IV. Country level, 1310-2018'!C451<0,'III. GDP shares, 1310-2018'!C453,\"\")","v":""},{"$f":"IF('IV. Country level, 1310-2018'!D451<0,'III. GDP shares, 1310-2018'!D453,\"\")","v":0.2696474101436491},{"$f":"IF('IV. Country level, 1310-2018'!E451<0,'III. GDP shares, 1310-2018'!E453,\"\")","v":0.04369579500915739},{"$f":"IF('IV. Country level, 1310-2018'!F451<0,'III. GDP shares, 1310-2018'!F453,\"\")","v":""},{"$f":"IF('IV. Country level, 1310-2018'!G451<0,'III. GDP shares, 1310-2018'!G453,\"\")","v":0.28460739042450967},{"$f":"IF('IV. Country level, 1310-2018'!H451<0,'III. GDP shares, 1310-2018'!H453,\"\")","v":""},{"$f":"IF('IV. Country level, 1310-2018'!I451<0,'III. GDP shares, 1310-2018'!I453,\"\")","v":""},{"$f":"IF('IV. Country level, 1310-2018'!J451<0,'III. GDP shares, 1310-2018'!J453,\"\")","v":0},null,0.5979505955773161,{"v":0.3085678500328331,"d":"30.86%"},{"v":0.20250823357139602,"d":"20.25%"},{"v":0.3070570610547466,"d":"30.71%"},{"v":0.28138904001220527,"d":"28.14%"}]
[1758,{"$f":"IF('IV. Country level, 1310-2018'!C452<0,'III. GDP shares, 1310-2018'!C454,\"\")","v":0.19257554890933126},{"$f":"IF('IV. Country level, 1310-2018'!D452<0,'III. GDP shares, 1310-2018'!D454,\"\")","v":""},{"$f":"IF('IV. Country level, 1310-2018'!E452<0,'III. GDP shares, 1310-2018'!E454,\"\")","v":""},{"$f":"IF('IV. Country level, 1310-2018'!F452<0,'III. GDP shares, 1310-2018'!F454,\"\")","v":0.20890223004553943},{"$f":"IF('IV. Country level, 1310-2018'!G452<0,'III. GDP shares, 1310-2018'!G454,\"\")","v":""},{"$f":"IF('IV. Country level, 1310-2018'!H452<0,'III. GDP shares, 1310-2018'!H454,\"\")","v":""},{"$f":"IF('IV. Country level, 1310-2018'!I452<0,'III. GDP shares, 1310-2018'!I454,\"\")","v":""},{"$f":"IF('IV. Country level, 1310-2018'!J452<0,'III. GDP shares, 1310-2018'!J454,\"\")","v":""},null,0.4014777789548707,{"v":0.3444745591623432,"d":"34.45%"},{"v":0.20250823357139602,"d":"20.25%"},{"v":0.29022810426633683,"d":"29.02%"},{"v":0.28138904001220527,"d":"28.14%"}]
[1759,{"$f":"IF('IV. Country level, 1310-2018'!C453<0,'III. GDP shares, 1310-2018'!C455,\"\")","v":0.19211410462218798},{"$f":"IF('IV. Country level, 1310-2018'!D453<0,'III. GDP shares, 1310-2018'!D455,\"\")","v":""},{"$f":"IF('IV. Country level, 1310-2018'!E453<0,'III. GDP shares, 1310-2018'!E455,\"\")","v":""},{"$f":"IF('IV. Country level, 1310-2018'!F453<0,'III. GDP shares, 1310-2018'!F455,\"\")","v":""},{"$f":"IF('IV. Country level, 1310-2018'!G453<0,'III. GDP shares, 1310-2018'!G455,\"\")","v":""},{"$f":"IF('IV. Country level, 1310-2018'!H453<0,'III. GDP shares, 1310-2018'!H455,\"\")","v":""},{"$f":"IF('IV. Country level, 1310-2018'!I453<0,'III. GDP shares, 1310-2018'!I455,\"\")","v":""},{"$f":"IF('IV. Country level, 1310-2018'!J453<0,'III. GDP shares, 1310-2018'!J455,\"\")","v":0},null,{"$f":"SUM(B455:I455)","v":0.19211410462218798},{"v":0.31652356873799553,"d":"31.65%"},{"v":0.20250823357139602,"d":"20.25%"},{"v":0.29022810426633683,"d":"29.02%"},{"v":0.28138904001220527,"d":"28.14%"}]
[1760,{"$f":"IF('IV. Country level, 1310-2018'!C454<0,'III. GDP shares, 1310-2018'!C456,\"\")","v":""},{"$f":"IF('IV. Country level, 1310-2018'!D454<0,'III. GDP shares, 1310-2018'!D456,\"\")","v":""},{"$f":"IF('IV. Country level, 1310-2018'!E454<0,'III. GDP shares, 1310-2018'!E456,\"\")","v":""},{"$f":"IF('IV. Country level, 1310-2018'!F454<0,'III. GDP shares, 1310-2018'!F456,\"\")","v":0.20869668356427865},{"$f":"IF('IV. Country level, 1310-2018'!G454<0,'III. GDP shares, 1310-2018'!G456,\"\")","v":""},{"$f":"IF('IV. Country level, 1310-2018'!H454<0,'III. GDP shares, 1310-2018'!H456,\"\")","v":""},{"$f":"IF('IV. Country level, 1310-2018'!I454<0,'III. GDP shares, 1310-2018'!I456,\"\")","v":""},{"$f":"IF('IV. Country level, 1310-2018'!J454<0,'III. GDP shares, 1310-2018'!J456,\"\")","v":""},null,0.20869668356427865,{"v":0.26920429258447803,"d":"26.92%"},{"v":0.20250823357139602,"d":"20.25%"},{"v":0.29022810426633683,"d":"29.02%"},{"v":0.28138904001220527,"d":"28.14%"}]
[1761,{"$f":"IF('IV. Country level, 1310-2018'!C455<0,'III. GDP shares, 1310-2018'!C457,\"\")","v":""},{"$f":"IF('IV. Country level, 1310-2018'!D455<0,'III. GDP shares, 1310-2018'!D457,\"\")","v":""},{"$f":"IF('IV. Country level, 1310-2018'!E455<0,'III. GDP shares, 1310-2018'!E457,\"\")","v":0.04275124208113732},{"$f":"IF('IV. Country level, 1310-2018'!F455<0,'III. GDP shares, 1310-2018'!F457,\"\")","v":0.20859572182543334},{"$f":"IF('IV. Country level, 1310-2018'!G455<0,'III. GDP shares, 1310-2018'!G457,\"\")","v":""},{"$f":"IF('IV. Country level, 1310-2018'!H455<0,'III. GDP shares, 1310-2018'!H457,\"\")","v":""},{"$f":"IF('IV. Country level, 1310-2018'!I455<0,'III. GDP shares, 1310-2018'!I457,\"\")","v":""},{"$f":"IF('IV. Country level, 1310-2018'!J455<0,'III. GDP shares, 1310-2018'!J457,\"\")","v":""},null,0.2513469639065707,{"v":0.25052014828581587,"d":"25.05%"},{"$f":"AVERAGE(L$9:L$714)","v":{"v":0.20250823357139602,"d":"20.25%"}},{"v":0.30602848089138013,"d":"30.60%"},{"v":0.28138904001220527,"d":"28.14%"}]
[1762,{"$f":"IF('IV. Country level, 1310-2018'!C456<0,'III. GDP shares, 1310-2018'!C458,\"\")","v":""},{"$f":"IF('IV. Country level, 1310-2018'!D456<0,'III. GDP shares, 1310-2018'!D458,\"\")","v":""},{"$f":"IF('IV. Country level, 1310-2018'!E456<0,'III. GDP shares, 1310-2018'!E458,\"\")","v":0.04252200036254581},{"$f":"IF('IV. Country level, 1310-2018'!F456<0,'III. GDP shares, 1310-2018'!F458,\"\")","v":""},{"$f":"IF('IV. Country level, 1310-2018'!G456<0,'III. GDP shares, 1310-2018'!G458,\"\")","v":""},{"$f":"IF('IV. Country level, 1310-2018'!H456<0,'III. GDP shares, 1310-2018'!H458,\"\")","v":""},{"$f":"IF('IV. Country level, 1310-2018'!I456<0,'III. GDP shares, 1310-2018'!I458,\"\")","v":""},{"$f":"IF('IV. Country level, 1310-2018'!J456<0,'III. GDP shares, 1310-2018'!J458,\"\")","v":""},null,0.04252200036254581,{"$f":"AVERAGE(K455:K461)","v":{"v":0.2599906160469716,"d":"26.00%"}},{"v":0.20250823357139602,"d":"20.25%"},{"v":0.30381913624317136,"d":"30.38%"},{"v":0.28138904001220527,"d":"28.14%"}]
[1763,{"$f":"IF('IV. Country level, 1310-2018'!C457<0,'III. GDP shares, 1310-2018'!C459,\"\")","v":0.19032192110357643},{"$f":"IF('IV. Country level, 1310-2018'!D457<0,'III. GDP shares, 1310-2018'!D459,\"\")","v":""},{"$f":"IF('IV. Country level, 1310-2018'!E457<0,'III. GDP shares, 1310-2018'!E459,\"\")","v":""},{"$f":"IF('IV. Country level, 1310-2018'!F457<0,'III. GDP shares, 1310-2018'!F459,\"\")","v":""},{"$f":"IF('IV. Country level, 1310-2018'!G457<0,'III. GDP shares, 1310-2018'!G459,\"\")","v":""},{"$f":"IF('IV. Country level, 1310-2018'!H457<0,'III. GDP shares, 1310-2018'!H459,\"\")","v":""},{"$f":"IF('IV. Country level, 1310-2018'!I457<0,'III. GDP shares, 1310-2018'!I459,\"\")","v":""},{"$f":"IF('IV. Country level, 1310-2018'!J457<0,'III. GDP shares, 1310-2018'!J459,\"\")","v":""},null,0.19032192110357643,{"v":0.23849305859515813,"d":"23.85%"},{"v":0.20250823357139602,"d":"20.25%"},{"v":0.29464289957726963,"d":"29.46%"},{"v":0.28138904001220527,"d":"28.14%"}]
[1764,{"$f":"IF('IV. Country level, 1310-2018'!C458<0,'III. GDP shares, 1310-2018'!C460,\"\")","v":0.18988680948648182},{"$f":"IF('IV. Country level, 1310-2018'!D458<0,'III. GDP shares, 1310-2018'!D460,\"\")","v":0.2772747760001991},{"$f":"IF('IV. Country level, 1310-2018'!E458<0,'III. GDP shares, 1310-2018'!E460,\"\")","v":""},{"$f":"IF('IV. Country level, 1310-2018'!F458<0,'III. GDP shares, 1310-2018'!F460,\"\")","v":""},{"$f":"IF('IV. Country level, 1310-2018'!G458<0,'III. GDP shares, 1310-2018'!G460,\"\")","v":""},{"$f":"IF('IV. Country level, 1310-2018'!H458<0,'III. GDP shares, 1310-2018'!H460,\"\")","v":""},{"$f":"IF('IV. Country level, 1310-2018'!I458<0,'III. GDP shares, 1310-2018'!I460,\"\")","v":""},{"$f":"IF('IV. Country level, 1310-2018'!J458<0,'III. GDP shares, 1310-2018'!J460,\"\")","v":""},null,0.46716158548668096,{"v":0.2843630991284808,"d":"28.44%"},{"v":0.20250823357139602,"d":"20.25%"},{"v":0.28841562131430415,"d":"28.84%"},{"v":0.28138904001220527,"d":"28.14%"}]
[1765,{"$f":"IF('IV. Country level, 1310-2018'!C459<0,'III. GDP shares, 1310-2018'!C461,\"\")","v":0.1894566933768113},{"$f":"IF('IV. Country level, 1310-2018'!D459<0,'III. GDP shares, 1310-2018'!D461,\"\")","v":0.27831435990614956},{"$f":"IF('IV. Country level, 1310-2018'!E459<0,'III. GDP shares, 1310-2018'!E461,\"\")","v":""},{"$f":"IF('IV. Country level, 1310-2018'!F459<0,'III. GDP shares, 1310-2018'!F461,\"\")","v":""},{"$f":"IF('IV. Country level, 1310-2018'!G459<0,'III. GDP shares, 1310-2018'!G461,\"\")","v":""},{"$f":"IF('IV. Country level, 1310-2018'!H459<0,'III. GDP shares, 1310-2018'!H461,\"\")","v":""},{"$f":"IF('IV. Country level, 1310-2018'!I459<0,'III. GDP shares, 1310-2018'!I461,\"\")","v":""},{"$f":"IF('IV. Country level, 1310-2018'!J459<0,'III. GDP shares, 1310-2018'!J461,\"\")","v":""},null,0.46777105328296087,{"v":0.2886449665054965,"d":"28.86%"},{"v":0.20250823357139602,"d":"20.25%"},{"v":0.2814847294975591,"d":"28.15%"},{"$f":"AVERAGE(L$396:L$495)","v":{"v":0.28138904001220527,"d":"28.14%"}}]
[1766,{"$f":"IF('IV. Country level, 1310-2018'!C460<0,'III. GDP shares, 1310-2018'!C462,\"\")","v":""},{"$f":"IF('IV. Country level, 1310-2018'!D460<0,'III. GDP shares, 1310-2018'!D462,\"\")","v":""},{"$f":"IF('IV. Country level, 1310-2018'!E460<0,'III. GDP shares, 1310-2018'!E462,\"\")","v":0.041631202459493616},{"$f":"IF('IV. Country level, 1310-2018'!F460<0,'III. GDP shares, 1310-2018'!F462,\"\")","v":""},{"$f":"IF('IV. Country level, 1310-2018'!G460<0,'III. GDP shares, 1310-2018'!G462,\"\")","v":""},{"$f":"IF('IV. Country level, 1310-2018'!H460<0,'III. GDP shares, 1310-2018'!H462,\"\")","v":""},{"$f":"IF('IV. Country level, 1310-2018'!I460<0,'III. GDP shares, 1310-2018'!I462,\"\")","v":""},{"$f":"IF('IV. Country level, 1310-2018'!J460<0,'III. GDP shares, 1310-2018'!J462,\"\")","v":""},null,0.041631202459493616,{"v":0.28842601615455765,"d":"28.84%"},{"v":0.20250823357139602,"d":"20.25%"},{"v":0.2889138266745229,"d":"28.89%"},{"v":0.28138904001220527,"d":"28.14%"}]
[1767,{"$f":"IF('IV. Country level, 1310-2018'!C461<0,'III. GDP shares, 1310-2018'!C463,\"\")","v":""},{"$f":"IF('IV. Country level, 1310-2018'!D461<0,'III. GDP shares, 1310-2018'!D463,\"\")","v":0.28035812781995195},{"$f":"IF('IV. Country level, 1310-2018'!E461<0,'III. GDP shares, 1310-2018'!E463,\"\")","v":0.04141482245018849},{"$f":"IF('IV. Country level, 1310-2018'!F461<0,'III. GDP shares, 1310-2018'!F463,\"\")","v":0.20801401702739658},{"$f":"IF('IV. Country level, 1310-2018'!G461<0,'III. GDP shares, 1310-2018'!G463,\"\")","v":""},{"$f":"IF('IV. Country level, 1310-2018'!H461<0,'III. GDP shares, 1310-2018'!H463,\"\")","v":""},{"$f":"IF('IV. Country level, 1310-2018'!I461<0,'III. GDP shares, 1310-2018'!I463,\"\")","v":""},{"$f":"IF('IV. Country level, 1310-2018'!J461<0,'III. GDP shares, 1310-2018'!J463,\"\")","v":""},null,0.529786967297537,{"v":0.3581591893635333,"d":"35.82%"},{"v":0.20250823357139602,"d":"20.25%"},{"v":0.281582348812359,"d":"28.16%"},{"v":0.28138904001220527,"d":"28.14%"}]
[1768,{"$f":"IF('IV. Country level, 1310-2018'!C462<0,'III. GDP shares, 1310-2018'!C464,\"\")","v":""},{"$f":"IF('IV. Country level, 1310-2018'!D462<0,'III. GDP shares, 1310-2018'!D464,\"\")","v":""},{"$f":"IF('IV. Country level, 1310-2018'!E462<0,'III. GDP shares, 1310-2018'!E464,\"\")","v":""},{"$f":"IF('IV. Country level, 1310-2018'!F462<0,'III. GDP shares, 1310-2018'!F464,\"\")","v":""},{"$f":"IF('IV. Country level, 1310-2018'!G462<0,'III. GDP shares, 1310-2018'!G464,\"\")","v":0.2813200355456805},{"$f":"IF('IV. Country level, 1310-2018'!H462<0,'III. GDP shares, 1310-2018'!H464,\"\")","v":""},{"$f":"IF('IV. Country level, 1310-2018'!I462<0,'III. GDP shares, 1310-2018'!I464,\"\")","v":""},{"$f":"IF('IV. Country level, 1310-2018'!J462<0,'III. GDP shares, 1310-2018'!J464,\"\")","v":""},null,0.2813200355456805,{"v":0.3942085145597867,"d":"39.42%"},{"v":0.20250823357139602,"d":"20.25%"},{"v":0.2948722778601721,"d":"29.49%"},{"v":0.28138904001220527,"d":"28.14%"}]
[1769,{"$f":"IF('IV. Country level, 1310-2018'!C463<0,'III. GDP shares, 1310-2018'!C465,\"\")","v":""},{"$f":"IF('IV. Country level, 1310-2018'!D463<0,'III. GDP shares, 1310-2018'!D465,\"\")","v":""},{"$f":"IF('IV. Country level, 1310-2018'!E463<0,'III. GDP shares, 1310-2018'!E465,\"\")","v":0.04098934790597445},{"$f":"IF('IV. Country level, 1310-2018'!F463<0,'III. GDP shares, 1310-2018'!F465,\"\")","v":""},{"$f":"IF('IV. Country level, 1310-2018'!G463<0,'III. GDP shares, 1310-2018'!G465,\"\")","v":""},{"$f":"IF('IV. Country level, 1310-2018'!H463<0,'III. GDP shares, 1310-2018'!H465,\"\")","v":""},{"$f":"IF('IV. Country level, 1310-2018'!I463<0,'III. GDP shares, 1310-2018'!I465,\"\")","v":""},{"$f":"IF('IV. Country level, 1310-2018'!J463<0,'III. GDP shares, 1310-2018'!J465,\"\")","v":""},null,0.04098934790597445,{"v":0.3947910744592199,"d":"39.48%"},{"v":0.20250823357139602,"d":"20.25%"},{"v":0.27049241244138056,"d":"27.05%"},{"v":0.28138904001220527,"d":"28.14%"}]
[1770,{"$f":"IF('IV. Country level, 1310-2018'!C464<0,'III. GDP shares, 1310-2018'!C466,\"\")","v":0.1873781184037867},{"$f":"IF('IV. Country level, 1310-2018'!D464<0,'III. GDP shares, 1310-2018'!D466,\"\")","v":0.28333824308718863},{"$f":"IF('IV. Country level, 1310-2018'!E464<0,'III. GDP shares, 1310-2018'!E466,\"\")","v":""},{"$f":"IF('IV. Country level, 1310-2018'!F464<0,'III. GDP shares, 1310-2018'!F466,\"\")","v":0.2077377720754298},{"$f":"IF('IV. Country level, 1310-2018'!G464<0,'III. GDP shares, 1310-2018'!G466,\"\")","v":""},{"$f":"IF('IV. Country level, 1310-2018'!H464<0,'III. GDP shares, 1310-2018'!H466,\"\")","v":""},{"$f":"IF('IV. Country level, 1310-2018'!I464<0,'III. GDP shares, 1310-2018'!I466,\"\")","v":""},{"$f":"IF('IV. Country level, 1310-2018'!J464<0,'III. GDP shares, 1310-2018'!J466,\"\")","v":""},null,0.6784541335664052,{"v":0.3888437598221494,"d":"38.88%"},{"v":0.20250823357139602,"d":"20.25%"},{"v":0.26516825736179633,"d":"26.52%"},{"v":0.28138904001220527,"d":"28.14%"}]
[1771,{"$f":"IF('IV. Country level, 1310-2018'!C465<0,'III. GDP shares, 1310-2018'!C467,\"\")","v":0.1869762451060933},{"$f":"IF('IV. Country level, 1310-2018'!D465<0,'III. GDP shares, 1310-2018'!D467,\"\")","v":0.28430956455857764},{"$f":"IF('IV. Country level, 1310-2018'!E465<0,'III. GDP shares, 1310-2018'!E467,\"\")","v":0.0405733177964669},{"$f":"IF('IV. Country level, 1310-2018'!F465<0,'III. GDP shares, 1310-2018'!F467,\"\")","v":0.2076477343993177},{"$f":"IF('IV. Country level, 1310-2018'!G465<0,'III. GDP shares, 1310-2018'!G467,\"\")","v":""},{"$f":"IF('IV. Country level, 1310-2018'!H465<0,'III. GDP shares, 1310-2018'!H467,\"\")","v":""},{"$f":"IF('IV. Country level, 1310-2018'!I465<0,'III. GDP shares, 1310-2018'!I467,\"\")","v":""},{"$f":"IF('IV. Country level, 1310-2018'!J465<0,'III. GDP shares, 1310-2018'!J467,\"\")","v":""},null,0.7195068618604555,{"v":0.3397023285829958,"d":"33.97%"},{"v":0.20250823357139602,"d":"20.25%"},{"v":0.275662289915446,"d":"27.57%"},{"v":0.28138904001220527,"d":"28.14%"}]
[1772,{"$f":"IF('IV. Country level, 1310-2018'!C466<0,'III. GDP shares, 1310-2018'!C468,\"\")","v":0.1865788074673903},{"$f":"IF('IV. Country level, 1310-2018'!D466<0,'III. GDP shares, 1310-2018'!D468,\"\")","v":0.28527016511160286},{"$f":"IF('IV. Country level, 1310-2018'!E466<0,'III. GDP shares, 1310-2018'!E468,\"\")","v":""},{"$f":"IF('IV. Country level, 1310-2018'!F466<0,'III. GDP shares, 1310-2018'!F468,\"\")","v":""},{"$f":"IF('IV. Country level, 1310-2018'!G466<0,'III. GDP shares, 1310-2018'!G468,\"\")","v":""},{"$f":"IF('IV. Country level, 1310-2018'!H466<0,'III. GDP shares, 1310-2018'!H468,\"\")","v":""},{"$f":"IF('IV. Country level, 1310-2018'!I466<0,'III. GDP shares, 1310-2018'!I468,\"\")","v":""},{"$f":"IF('IV. Country level, 1310-2018'!J466<0,'III. GDP shares, 1310-2018'!J468,\"\")","v":""},null,0.47184897257899316,{"v":0.29951375207646996,"d":"29.95%"},{"v":0.20250823357139602,"d":"20.25%"},{"v":0.2684447464811133,"d":"26.84%"},{"v":0.28138904001220527,"d":"28.14%"}]
[1773,{"$f":"IF('IV. Country level, 1310-2018'!C467<0,'III. GDP shares, 1310-2018'!C469,\"\")","v":""},{"$f":"IF('IV. Country level, 1310-2018'!D467<0,'III. GDP shares, 1310-2018'!D469,\"\")","v":""},{"$f":"IF('IV. Country level, 1310-2018'!E467<0,'III. GDP shares, 1310-2018'!E469,\"\")","v":""},{"$f":"IF('IV. Country level, 1310-2018'!F467<0,'III. GDP shares, 1310-2018'!F469,\"\")","v":""},{"$f":"IF('IV. Country level, 1310-2018'!G467<0,'III. GDP shares, 1310-2018'!G469,\"\")","v":""},{"$f":"IF('IV. Country level, 1310-2018'!H467<0,'III. GDP shares, 1310-2018'!H469,\"\")","v":""},{"$f":"IF('IV. Country level, 1310-2018'!I467<0,'III. GDP shares, 1310-2018'!I469,\"\")","v":""},{"$f":"IF('IV. Country level, 1310-2018'!J467<0,'III. GDP shares, 1310-2018'!J469,\"\")","v":""},null,0,{"v":0.293658130947045,"d":"29.37%"},{"v":0.20250823357139602,"d":"20.25%"},{"v":0.26010792536034993,"d":"26.01%"},{"v":0.28138904001220527,"d":"28.14%"}]
[1774,{"$f":"IF('IV. Country level, 1310-2018'!C468<0,'III. GDP shares, 1310-2018'!C470,\"\")","v":0.18579694862346127},{"$f":"IF('IV. Country level, 1310-2018'!D468<0,'III. GDP shares, 1310-2018'!D470,\"\")","v":""},{"$f":"IF('IV. Country level, 1310-2018'!E468<0,'III. GDP shares, 1310-2018'!E470,\"\")","v":""},{"$f":"IF('IV. Country level, 1310-2018'!F468<0,'III. GDP shares, 1310-2018'!F470,\"\")","v":""},{"$f":"IF('IV. Country level, 1310-2018'!G468<0,'III. GDP shares, 1310-2018'!G470,\"\")","v":""},{"$f":"IF('IV. Country level, 1310-2018'!H468<0,'III. GDP shares, 1310-2018'!H470,\"\")","v":""},{"$f":"IF('IV. Country level, 1310-2018'!I468<0,'III. GDP shares, 1310-2018'!I470,\"\")","v":""},{"$f":"IF('IV. Country level, 1310-2018'!J468<0,'III. GDP shares, 1310-2018'!J470,\"\")","v":""},null,0.18579694862346127,{"v":0.29974764340872256,"d":"29.97%"},{"v":0.20250823357139602,"d":"20.25%"},{"v":0.25012350517557286,"d":"25.01%"},{"v":0.28138904001220527,"d":"28.14%"}]
[1775,{"$f":"IF('IV. Country level, 1310-2018'!C469<0,'III. GDP shares, 1310-2018'!C471,\"\")","v":""},{"$f":"IF('IV. Country level, 1310-2018'!D469<0,'III. GDP shares, 1310-2018'!D471,\"\")","v":""},{"$f":"IF('IV. Country level, 1310-2018'!E469<0,'III. GDP shares, 1310-2018'!E471,\"\")","v":""},{"$f":"IF('IV. Country level, 1310-2018'!F469<0,'III. GDP shares, 1310-2018'!F471,\"\")","v":""},{"$f":"IF('IV. Country level, 1310-2018'!G469<0,'III. GDP shares, 1310-2018'!G471,\"\")","v":""},{"$f":"IF('IV. Country level, 1310-2018'!H469<0,'III. GDP shares, 1310-2018'!H471,\"\")","v":""},{"$f":"IF('IV. Country level, 1310-2018'!I469<0,'III. GDP shares, 1310-2018'!I471,\"\")","v":""},{"$f":"IF('IV. Country level, 1310-2018'!J469<0,'III. GDP shares, 1310-2018'!J471,\"\")","v":""},null,0,{"v":0.22328714168283287,"d":"22.33%"},{"v":0.20250823357139602,"d":"20.25%"},{"$f":"AVERAGE(K455:K487)","v":{"v":0.23795751187391012,"d":"23.80%"}},{"v":0.28138904001220527,"d":"28.14%"}]
[1776,{"$f":"IF('IV. Country level, 1310-2018'!C470<0,'III. GDP shares, 1310-2018'!C472,\"\")","v":""},{"$f":"IF('IV. Country level, 1310-2018'!D470<0,'III. GDP shares, 1310-2018'!D472,\"\")","v":""},{"$f":"IF('IV. Country level, 1310-2018'!E470<0,'III. GDP shares, 1310-2018'!E472,\"\")","v":""},{"$f":"IF('IV. Country level, 1310-2018'!F470<0,'III. GDP shares, 1310-2018'!F472,\"\")","v":""},{"$f":"IF('IV. Country level, 1310-2018'!G470<0,'III. GDP shares, 1310-2018'!G472,\"\")","v":""},{"$f":"IF('IV. Country level, 1310-2018'!H470<0,'III. GDP shares, 1310-2018'!H472,\"\")","v":""},{"$f":"IF('IV. Country level, 1310-2018'!I470<0,'III. GDP shares, 1310-2018'!I472,\"\")","v":""},{"$f":"IF('IV. Country level, 1310-2018'!J470<0,'III. GDP shares, 1310-2018'!J472,\"\")","v":""},null,0,{"v":0.15588014560011956,"d":"15.59%"},{"v":0.20250823357139602,"d":"20.25%"},{"v":0.2444182363670079,"d":"24.44%"},{"v":0.28138904001220527,"d":"28.14%"}]
[1777,{"$f":"IF('IV. Country level, 1310-2018'!C471<0,'III. GDP shares, 1310-2018'!C473,\"\")","v":0.18465565286297786},{"$f":"IF('IV. Country level, 1310-2018'!D471<0,'III. GDP shares, 1310-2018'!D473,\"\")","v":0.28991839969396505},{"$f":"IF('IV. Country level, 1310-2018'!E471<0,'III. GDP shares, 1310-2018'!E473,\"\")","v":0.03937885077583906},{"$f":"IF('IV. Country level, 1310-2018'!F471<0,'III. GDP shares, 1310-2018'!F473,\"\")","v":0.2071278174653659},{"$f":"IF('IV. Country level, 1310-2018'!G471<0,'III. GDP shares, 1310-2018'!G473,\"\")","v":""},{"$f":"IF('IV. Country level, 1310-2018'!H471<0,'III. GDP shares, 1310-2018'!H473,\"\")","v":""},{"$f":"IF('IV. Country level, 1310-2018'!I471<0,'III. GDP shares, 1310-2018'!I473,\"\")","v":""},{"$f":"IF('IV. Country level, 1310-2018'!J471<0,'III. GDP shares, 1310-2018'!J473,\"\")","v":""},null,0.7210807207981479,{"v":0.16142443513123772,"d":"16.14%"},{"v":0.20250823357139602,"d":"20.25%"},{"v":0.25952448113339244,"d":"25.95%"},{"v":0.28138904001220527,"d":"28.14%"}]
[1778,{"$f":"IF('IV. Country level, 1310-2018'!C472<0,'III. GDP shares, 1310-2018'!C474,\"\")","v":0.18428334977922775},{"$f":"IF('IV. Country level, 1310-2018'!D472<0,'III. GDP shares, 1310-2018'!D474,\"\")","v":""},{"$f":"IF('IV. Country level, 1310-2018'!E472<0,'III. GDP shares, 1310-2018'!E474,\"\")","v":""},{"$f":"IF('IV. Country level, 1310-2018'!F472<0,'III. GDP shares, 1310-2018'!F474,\"\")","v":""},{"$f":"IF('IV. Country level, 1310-2018'!G472<0,'III. GDP shares, 1310-2018'!G474,\"\")","v":""},{"$f":"IF('IV. Country level, 1310-2018'!H472<0,'III. GDP shares, 1310-2018'!H474,\"\")","v":""},{"$f":"IF('IV. Country level, 1310-2018'!I472<0,'III. GDP shares, 1310-2018'!I474,\"\")","v":""},{"$f":"IF('IV. Country level, 1310-2018'!J472<0,'III. GDP shares, 1310-2018'!J474,\"\")","v":""},null,0.18428334977922775,{"v":0.2084927804416134,"d":"20.85%"},{"v":0.20250823357139602,"d":"20.25%"},{"v":0.26177239261656027,"d":"26.18%"},{"v":0.28138904001220527,"d":"28.14%"}]
[1779,{"$f":"IF('IV. Country level, 1310-2018'!C473<0,'III. GDP shares, 1310-2018'!C475,\"\")","v":""},{"$f":"IF('IV. Country level, 1310-2018'!D473<0,'III. GDP shares, 1310-2018'!D475,\"\")","v":""},{"$f":"IF('IV. Country level, 1310-2018'!E473<0,'III. GDP shares, 1310-2018'!E475,\"\")","v":""},{"$f":"IF('IV. Country level, 1310-2018'!F473<0,'III. GDP shares, 1310-2018'!F475,\"\")","v":""},{"$f":"IF('IV. Country level, 1310-2018'!G473<0,'III. GDP shares, 1310-2018'!G475,\"\")","v":""},{"$f":"IF('IV. Country level, 1310-2018'!H473<0,'III. GDP shares, 1310-2018'!H475,\"\")","v":""},{"$f":"IF('IV. Country level, 1310-2018'!I473<0,'III. GDP shares, 1310-2018'!I475,\"\")","v":""},{"$f":"IF('IV. Country level, 1310-2018'!J473<0,'III. GDP shares, 1310-2018'!J475,\"\")","v":""},null,0,{"v":0.24351566713301417,"d":"24.35%"},{"v":0.20250823357139602,"d":"20.25%"},{"v":0.28338087951784846,"d":"28.34%"},{"v":0.28138904001220527,"d":"28.14%"}]
[1780,{"$f":"IF('IV. Country level, 1310-2018'!C474<0,'III. GDP shares, 1310-2018'!C476,\"\")","v":""},{"$f":"IF('IV. Country level, 1310-2018'!D474<0,'III. GDP shares, 1310-2018'!D476,\"\")","v":""},{"$f":"IF('IV. Country level, 1310-2018'!E474<0,'III. GDP shares, 1310-2018'!E476,\"\")","v":0.03881002671782716},{"$f":"IF('IV. Country level, 1310-2018'!F474<0,'III. GDP shares, 1310-2018'!F476,\"\")","v":""},{"$f":"IF('IV. Country level, 1310-2018'!G474<0,'III. GDP shares, 1310-2018'!G476,\"\")","v":""},{"$f":"IF('IV. Country level, 1310-2018'!H474<0,'III. GDP shares, 1310-2018'!H476,\"\")","v":""},{"$f":"IF('IV. Country level, 1310-2018'!I474<0,'III. GDP shares, 1310-2018'!I476,\"\")","v":""},{"$f":"IF('IV. Country level, 1310-2018'!J474<0,'III. GDP shares, 1310-2018'!J476,\"\")","v":""},null,0.03881002671782716,{"v":0.24351566713301417,"d":"24.35%"},{"v":0.20250823357139602,"d":"20.25%"},{"v":0.2776135485753159,"d":"27.76%"},{"v":0.28138904001220527,"d":"28.14%"}]
[1781,{"$f":"IF('IV. Country level, 1310-2018'!C475<0,'III. GDP shares, 1310-2018'!C477,\"\")","v":0.18318992953713015},{"$f":"IF('IV. Country level, 1310-2018'!D475<0,'III. GDP shares, 1310-2018'!D477,\"\")","v":0.2934610300346297},{"$f":"IF('IV. Country level, 1310-2018'!E475<0,'III. GDP shares, 1310-2018'!E477,\"\")","v":0.03862440622433109},{"$f":"IF('IV. Country level, 1310-2018'!F475<0,'III. GDP shares, 1310-2018'!F477,\"\")","v":""},{"$f":"IF('IV. Country level, 1310-2018'!G475<0,'III. GDP shares, 1310-2018'!G477,\"\")","v":""},{"$f":"IF('IV. Country level, 1310-2018'!H475<0,'III. GDP shares, 1310-2018'!H477,\"\")","v":""},{"$f":"IF('IV. Country level, 1310-2018'!I475<0,'III. GDP shares, 1310-2018'!I477,\"\")","v":""},{"$f":"IF('IV. Country level, 1310-2018'!J475<0,'III. GDP shares, 1310-2018'!J477,\"\")","v":""},null,0.5152753657960909,{"v":0.20961395325026802,"d":"20.96%"},{"v":0.20250823357139602,"d":"20.25%"},{"v":0.2682468419290887,"d":"26.82%"},{"v":0.28138904001220527,"d":"28.14%"}]
[1782,{"$f":"IF('IV. Country level, 1310-2018'!C476<0,'III. GDP shares, 1310-2018'!C478,\"\")","v":""},{"$f":"IF('IV. Country level, 1310-2018'!D476<0,'III. GDP shares, 1310-2018'!D478,\"\")","v":""},{"$f":"IF('IV. Country level, 1310-2018'!E476<0,'III. GDP shares, 1310-2018'!E478,\"\")","v":0.038440727355922764},{"$f":"IF('IV. Country level, 1310-2018'!F476<0,'III. GDP shares, 1310-2018'!F478,\"\")","v":0.20671947948388283},{"$f":"IF('IV. Country level, 1310-2018'!G476<0,'III. GDP shares, 1310-2018'!G478,\"\")","v":""},{"$f":"IF('IV. Country level, 1310-2018'!H476<0,'III. GDP shares, 1310-2018'!H478,\"\")","v":""},{"$f":"IF('IV. Country level, 1310-2018'!I476<0,'III. GDP shares, 1310-2018'!I478,\"\")","v":""},{"$f":"IF('IV. Country level, 1310-2018'!J476<0,'III. GDP shares, 1310-2018'!J478,\"\")","v":""},null,0.2451602068398056,{"v":0.18328776042466408,"d":"18.33%"},{"v":0.20250823357139602,"d":"20.25%"},{"v":0.2540719615265747,"d":"25.41%"},{"v":0.28138904001220527,"d":"28.14%"}]
[1783,{"$f":"IF('IV. Country level, 1310-2018'!C477<0,'III. GDP shares, 1310-2018'!C479,\"\")","v":""},{"$f":"IF('IV. Country level, 1310-2018'!D477<0,'III. GDP shares, 1310-2018'!D479,\"\")","v":""},{"$f":"IF('IV. Country level, 1310-2018'!E477<0,'III. GDP shares, 1310-2018'!E479,\"\")","v":""},{"$f":"IF('IV. Country level, 1310-2018'!F477<0,'III. GDP shares, 1310-2018'!F479,\"\")","v":""},{"$f":"IF('IV. Country level, 1310-2018'!G477<0,'III. GDP shares, 1310-2018'!G479,\"\")","v":""},{"$f":"IF('IV. Country level, 1310-2018'!H477<0,'III. GDP shares, 1310-2018'!H479,\"\")","v":""},{"$f":"IF('IV. Country level, 1310-2018'!I477<0,'III. GDP shares, 1310-2018'!I479,\"\")","v":""},{"$f":"IF('IV. Country level, 1310-2018'!J477<0,'III. GDP shares, 1310-2018'!J479,\"\")","v":""},null,0,{"v":0.18810792545024818,"d":"18.81%"},{"v":0.20250823357139602,"d":"20.25%"},{"v":0.2668113516980847,"d":"26.68%"},{"v":0.28138904001220527,"d":"28.14%"}]
[1784,{"$f":"IF('IV. Country level, 1310-2018'!C478<0,'III. GDP shares, 1310-2018'!C480,\"\")","v":""},{"$f":"IF('IV. Country level, 1310-2018'!D478<0,'III. GDP shares, 1310-2018'!D480,\"\")","v":""},{"$f":"IF('IV. Country level, 1310-2018'!E478<0,'III. GDP shares, 1310-2018'!E480,\"\")","v":""},{"$f":"IF('IV. Country level, 1310-2018'!F478<0,'III. GDP shares, 1310-2018'!F480,\"\")","v":0.2065620621972355},{"$f":"IF('IV. Country level, 1310-2018'!G478<0,'III. GDP shares, 1310-2018'!G480,\"\")","v":0.27720666142168926},{"$f":"IF('IV. Country level, 1310-2018'!H478<0,'III. GDP shares, 1310-2018'!H480,\"\")","v":""},{"$f":"IF('IV. Country level, 1310-2018'!I478<0,'III. GDP shares, 1310-2018'!I480,\"\")","v":""},{"$f":"IF('IV. Country level, 1310-2018'!J478<0,'III. GDP shares, 1310-2018'!J480,\"\")","v":""},null,0.48376872361892476,{"v":0.23203550367204978,"d":"23.20%"},{"v":0.20250823357139602,"d":"20.25%"},{"v":0.26874850071473044,"d":"26.87%"},{"v":0.28138904001220527,"d":"28.14%"}]
[1785,{"$f":"IF('IV. Country level, 1310-2018'!C479<0,'III. GDP shares, 1310-2018'!C481,\"\")","v":""},{"$f":"IF('IV. Country level, 1310-2018'!D479<0,'III. GDP shares, 1310-2018'!D481,\"\")","v":""},{"$f":"IF('IV. Country level, 1310-2018'!E479<0,'III. GDP shares, 1310-2018'!E481,\"\")","v":""},{"$f":"IF('IV. Country level, 1310-2018'!F479<0,'III. GDP shares, 1310-2018'!F481,\"\")","v":""},{"$f":"IF('IV. Country level, 1310-2018'!G479<0,'III. GDP shares, 1310-2018'!G481,\"\")","v":""},{"$f":"IF('IV. Country level, 1310-2018'!H479<0,'III. GDP shares, 1310-2018'!H481,\"\")","v":""},{"$f":"IF('IV. Country level, 1310-2018'!I479<0,'III. GDP shares, 1310-2018'!I481,\"\")","v":""},{"$f":"IF('IV. Country level, 1310-2018'!J479<0,'III. GDP shares, 1310-2018'!J481,\"\")","v":""},null,0,{"v":0.15842473712975108,"d":"15.84%"},{"v":0.20250823357139602,"d":"20.25%"},{"v":0.27702334844815735,"d":"27.70%"},{"v":0.28138904001220527,"d":"28.14%"}]
[1786,{"$f":"IF('IV. Country level, 1310-2018'!C480<0,'III. GDP shares, 1310-2018'!C482,\"\")","v":""},{"$f":"IF('IV. Country level, 1310-2018'!D480<0,'III. GDP shares, 1310-2018'!D482,\"\")","v":""},{"$f":"IF('IV. Country level, 1310-2018'!E480<0,'III. GDP shares, 1310-2018'!E482,\"\")","v":0.03374115517908868},{"$f":"IF('IV. Country level, 1310-2018'!F480<0,'III. GDP shares, 1310-2018'!F482,\"\")","v":""},{"$f":"IF('IV. Country level, 1310-2018'!G480<0,'III. GDP shares, 1310-2018'!G482,\"\")","v":""},{"$f":"IF('IV. Country level, 1310-2018'!H480<0,'III. GDP shares, 1310-2018'!H482,\"\")","v":""},{"$f":"IF('IV. Country level, 1310-2018'!I480<0,'III. GDP shares, 1310-2018'!I482,\"\")","v":""},{"$f":"IF('IV. Country level, 1310-2018'!J480<0,'III. GDP shares, 1310-2018'!J482,\"\")","v":""},null,0.03374115517908868,{"v":0.1586078157516371,"d":"15.86%"},{"v":0.20250823357139602,"d":"20.25%"},{"v":0.2781488564272747,"d":"27.81%"},{"v":0.28138904001220527,"d":"28.14%"}]
[1787,{"$f":"IF('IV. Country level, 1310-2018'!C481<0,'III. GDP shares, 1310-2018'!C483,\"\")","v":0.16187646272565148},{"$f":"IF('IV. Country level, 1310-2018'!D481<0,'III. GDP shares, 1310-2018'!D483,\"\")","v":""},{"$f":"IF('IV. Country level, 1310-2018'!E481<0,'III. GDP shares, 1310-2018'!E483,\"\")","v":""},{"$f":"IF('IV. Country level, 1310-2018'!F481<0,'III. GDP shares, 1310-2018'!F483,\"\")","v":0.184426611544787},{"$f":"IF('IV. Country level, 1310-2018'!G481<0,'III. GDP shares, 1310-2018'!G483,\"\")","v":""},{"$f":"IF('IV. Country level, 1310-2018'!H481<0,'III. GDP shares, 1310-2018'!H483,\"\")","v":""},{"$f":"IF('IV. Country level, 1310-2018'!I481<0,'III. GDP shares, 1310-2018'!I483,\"\")","v":""},{"$f":"IF('IV. Country level, 1310-2018'!J481<0,'III. GDP shares, 1310-2018'!J483,\"\")","v":""},null,0.3463030742704385,{"v":0.19695991996301881,"d":"19.70%"},{"v":0.20250823357139602,"d":"20.25%"},{"v":0.26315049558515363,"d":"26.32%"},{"v":0.28138904001220527,"d":"28.14%"}]
[1788,{"$f":"IF('IV. Country level, 1310-2018'!C482<0,'III. GDP shares, 1310-2018'!C484,\"\")","v":""},{"$f":"IF('IV. Country level, 1310-2018'!D482<0,'III. GDP shares, 1310-2018'!D484,\"\")","v":""},{"$f":"IF('IV. Country level, 1310-2018'!E482<0,'III. GDP shares, 1310-2018'!E484,\"\")","v":""},{"$f":"IF('IV. Country level, 1310-2018'!F482<0,'III. GDP shares, 1310-2018'!F484,\"\")","v":""},{"$f":"IF('IV. Country level, 1310-2018'!G482<0,'III. GDP shares, 1310-2018'!G484,\"\")","v":""},{"$f":"IF('IV. Country level, 1310-2018'!H482<0,'III. GDP shares, 1310-2018'!H484,\"\")","v":""},{"$f":"IF('IV. Country level, 1310-2018'!I482<0,'III. GDP shares, 1310-2018'!I484,\"\")","v":""},{"$f":"IF('IV. Country level, 1310-2018'!J482<0,'III. GDP shares, 1310-2018'!J484,\"\")","v":""},null,0,{"v":0.12785010230317242,"d":"12.79%"},{"v":0.20250823357139602,"d":"20.25%"},{"v":0.24370706169572234,"d":"24.37%"},{"v":0.28138904001220527,"d":"28.14%"}]
[1789,{"$f":"IF('IV. Country level, 1310-2018'!C483<0,'III. GDP shares, 1310-2018'!C485,\"\")","v":""},{"$f":"IF('IV. Country level, 1310-2018'!D483<0,'III. GDP shares, 1310-2018'!D485,\"\")","v":""},{"$f":"IF('IV. Country level, 1310-2018'!E483<0,'III. GDP shares, 1310-2018'!E485,\"\")","v":""},{"$f":"IF('IV. Country level, 1310-2018'!F483<0,'III. GDP shares, 1310-2018'!F485,\"\")","v":""},{"$f":"IF('IV. Country level, 1310-2018'!G483<0,'III. GDP shares, 1310-2018'!G485,\"\")","v":0.24644175719300768},{"$f":"IF('IV. Country level, 1310-2018'!H483<0,'III. GDP shares, 1310-2018'!H485,\"\")","v":""},{"$f":"IF('IV. Country level, 1310-2018'!I483<0,'III. GDP shares, 1310-2018'!I485,\"\")","v":""},{"$f":"IF('IV. Country level, 1310-2018'!J483<0,'III. GDP shares, 1310-2018'!J485,\"\")","v":""},null,0.24644175719300768,{"v":0.18575267557380332,"d":"18.58%"},{"v":0.20250823357139602,"d":"20.25%"},{"v":0.24304855311939733,"d":"24.30%"},{"v":0.28138904001220527,"d":"28.14%"}]
[1790,{"$f":"IF('IV. Country level, 1310-2018'!C484<0,'III. GDP shares, 1310-2018'!C486,\"\")","v":""},{"$f":"IF('IV. Country level, 1310-2018'!D484<0,'III. GDP shares, 1310-2018'!D486,\"\")","v":0.26846472947967204},{"$f":"IF('IV. Country level, 1310-2018'!E484<0,'III. GDP shares, 1310-2018'!E486,\"\")","v":""},{"$f":"IF('IV. Country level, 1310-2018'!F484<0,'III. GDP shares, 1310-2018'!F486,\"\")","v":""},{"$f":"IF('IV. Country level, 1310-2018'!G484<0,'III. GDP shares, 1310-2018'!G486,\"\")","v":""},{"$f":"IF('IV. Country level, 1310-2018'!H484<0,'III. GDP shares, 1310-2018'!H486,\"\")","v":""},{"$f":"IF('IV. Country level, 1310-2018'!I484<0,'III. GDP shares, 1310-2018'!I486,\"\")","v":""},{"$f":"IF('IV. Country level, 1310-2018'!J484<0,'III. GDP shares, 1310-2018'!J486,\"\")","v":""},null,0.26846472947967204,{"v":0.2819614763846429,"d":"28.20%"},{"v":0.20250823357139602,"d":"20.25%"},{"v":0.24304855311939733,"d":"24.30%"},{"v":0.28138904001220527,"d":"28.14%"}]
[1791,{"$f":"IF('IV. Country level, 1310-2018'!C485<0,'III. GDP shares, 1310-2018'!C487,\"\")","v":""},{"$f":"IF('IV. Country level, 1310-2018'!D485<0,'III. GDP shares, 1310-2018'!D487,\"\")","v":""},{"$f":"IF('IV. Country level, 1310-2018'!E485<0,'III. GDP shares, 1310-2018'!E487,\"\")","v":""},{"$f":"IF('IV. Country level, 1310-2018'!F485<0,'III. GDP shares, 1310-2018'!F487,\"\")","v":""},{"$f":"IF('IV. Country level, 1310-2018'!G485<0,'III. GDP shares, 1310-2018'!G487,\"\")","v":""},{"$f":"IF('IV. Country level, 1310-2018'!H485<0,'III. GDP shares, 1310-2018'!H487,\"\")","v":""},{"$f":"IF('IV. Country level, 1310-2018'!I485<0,'III. GDP shares, 1310-2018'!I487,\"\")","v":""},{"$f":"IF('IV. Country level, 1310-2018'!J485<0,'III. GDP shares, 1310-2018'!J487,\"\")","v":0},null,0,{"v":0.2789936147533102,"d":"27.90%"},{"v":0.20250823357139602,"d":"20.25%"},{"v":0.23741834255505007,"d":"23.74%"},{"v":0.28138904001220527,"d":"28.14%"}]
[1792,{"$f":"IF('IV. Country level, 1310-2018'!C486<0,'III. GDP shares, 1310-2018'!C488,\"\")","v":0.15991523949993924},{"$f":"IF('IV. Country level, 1310-2018'!D486<0,'III. GDP shares, 1310-2018'!D488,\"\")","v":""},{"$f":"IF('IV. Country level, 1310-2018'!E486<0,'III. GDP shares, 1310-2018'!E488,\"\")","v":""},{"$f":"IF('IV. Country level, 1310-2018'!F486<0,'III. GDP shares, 1310-2018'!F488,\"\")","v":""},{"$f":"IF('IV. Country level, 1310-2018'!G486<0,'III. GDP shares, 1310-2018'!G488,\"\")","v":0.24540277339447714},{"$f":"IF('IV. Country level, 1310-2018'!H486<0,'III. GDP shares, 1310-2018'!H488,\"\")","v":""},{"$f":"IF('IV. Country level, 1310-2018'!I486<0,'III. GDP shares, 1310-2018'!I488,\"\")","v":""},{"$f":"IF('IV. Country level, 1310-2018'!J486<0,'III. GDP shares, 1310-2018'!J488,\"\")","v":0},null,0.4053180128944164,{"v":0.3869367673397471,"d":"38.69%"},{"v":0.20250823357139602,"d":"20.25%"},{"v":0.24574205445052022,"d":"24.57%"},{"v":0.28138904001220527,"d":"28.14%"}]
[1793,{"$f":"IF('IV. Country level, 1310-2018'!C487<0,'III. GDP shares, 1310-2018'!C489,\"\")","v":0.15953602725498847},{"$f":"IF('IV. Country level, 1310-2018'!D487<0,'III. GDP shares, 1310-2018'!D489,\"\")","v":0.2700613064293452},{"$f":"IF('IV. Country level, 1310-2018'!E487<0,'III. GDP shares, 1310-2018'!E489,\"\")","v":0.032541310502989425},{"$f":"IF('IV. Country level, 1310-2018'!F487<0,'III. GDP shares, 1310-2018'!F489,\"\")","v":""},{"$f":"IF('IV. Country level, 1310-2018'!G487<0,'III. GDP shares, 1310-2018'!G489,\"\")","v":0.24506411666764288},{"$f":"IF('IV. Country level, 1310-2018'!H487<0,'III. GDP shares, 1310-2018'!H489,\"\")","v":""},{"$f":"IF('IV. Country level, 1310-2018'!I487<0,'III. GDP shares, 1310-2018'!I489,\"\")","v":""},{"$f":"IF('IV. Country level, 1310-2018'!J487<0,'III. GDP shares, 1310-2018'!J489,\"\")","v":""},null,0.707202760854966,{"v":0.35173080202646023,"d":"35.17%"},{"v":0.20250823357139602,"d":"20.25%"},{"v":0.25350861225707266,"d":"25.35%"},{"v":0.28138904001220527,"d":"28.14%"}]
[1794,{"$f":"IF('IV. Country level, 1310-2018'!C488<0,'III. GDP shares, 1310-2018'!C490,\"\")","v":""},{"$f":"IF('IV. Country level, 1310-2018'!D488<0,'III. GDP shares, 1310-2018'!D490,\"\")","v":""},{"$f":"IF('IV. Country level, 1310-2018'!E488<0,'III. GDP shares, 1310-2018'!E490,\"\")","v":0.0323774556484772},{"$f":"IF('IV. Country level, 1310-2018'!F488<0,'III. GDP shares, 1310-2018'!F490,\"\")","v":0.18318900363780863},{"$f":"IF('IV. Country level, 1310-2018'!G488<0,'III. GDP shares, 1310-2018'!G490,\"\")","v":""},{"$f":"IF('IV. Country level, 1310-2018'!H488<0,'III. GDP shares, 1310-2018'!H490,\"\")","v":0.10996158356482358},{"$f":"IF('IV. Country level, 1310-2018'!I488<0,'III. GDP shares, 1310-2018'!I490,\"\")","v":""},{"$f":"IF('IV. Country level, 1310-2018'!J488<0,'III. GDP shares, 1310-2018'!J490,\"\")","v":""},null,0.32552804285110937,{"v":0.335958735838105,"d":"33.60%"},{"v":0.20250823357139602,"d":"20.25%"},{"v":0.23595536057699873,"d":"23.60%"},{"v":0.28138904001220527,"d":"28.14%"}]
[1795,{"$f":"IF('IV. Country level, 1310-2018'!C489<0,'III. GDP shares, 1310-2018'!C491,\"\")","v":0.15879006415078725},{"$f":"IF('IV. Country level, 1310-2018'!D489<0,'III. GDP shares, 1310-2018'!D491,\"\")","v":0.27109654356080143},{"$f":"IF('IV. Country level, 1310-2018'!E489<0,'III. GDP shares, 1310-2018'!E491,\"\")","v":0.032215395618690995},{"$f":"IF('IV. Country level, 1310-2018'!F489<0,'III. GDP shares, 1310-2018'!F491,\"\")","v":0.18301994904806376},{"$f":"IF('IV. Country level, 1310-2018'!G489<0,'III. GDP shares, 1310-2018'!G491,\"\")","v":""},{"$f":"IF('IV. Country level, 1310-2018'!H489<0,'III. GDP shares, 1310-2018'!H491,\"\")","v":0.11048011572671447},{"$f":"IF('IV. Country level, 1310-2018'!I489<0,'III. GDP shares, 1310-2018'!I491,\"\")","v":""},{"$f":"IF('IV. Country level, 1310-2018'!J489<0,'III. GDP shares, 1310-2018'!J491,\"\")","v":0},null,0.7556020681050579,{"v":0.335958735838105,"d":"33.60%"},{"v":0.20250823357139602,"d":"20.25%"},{"v":0.24699651528528893,"d":"24.70%"},{"v":0.28138904001220527,"d":"28.14%"}]
[1796,{"$f":"IF('IV. Country level, 1310-2018'!C490<0,'III. GDP shares, 1310-2018'!C492,\"\")","v":""},{"$f":"IF('IV. Country level, 1310-2018'!D490<0,'III. GDP shares, 1310-2018'!D492,\"\")","v":""},{"$f":"IF('IV. Country level, 1310-2018'!E490<0,'III. GDP shares, 1310-2018'!E492,\"\")","v":""},{"$f":"IF('IV. Country level, 1310-2018'!F490<0,'III. GDP shares, 1310-2018'!F492,\"\")","v":""},{"$f":"IF('IV. Country level, 1310-2018'!G490<0,'III. GDP shares, 1310-2018'!G492,\"\")","v":""},{"$f":"IF('IV. Country level, 1310-2018'!H490<0,'III. GDP shares, 1310-2018'!H492,\"\")","v":""},{"$f":"IF('IV. Country level, 1310-2018'!I490<0,'III. GDP shares, 1310-2018'!I492,\"\")","v":""},{"$f":"IF('IV. Country level, 1310-2018'!J490<0,'III. GDP shares, 1310-2018'!J492,\"\")","v":""},null,0,{"v":0.3440606022988056,"d":"34.41%"},{"v":0.20250823357139602,"d":"20.25%"},{"v":0.26382590643906284,"d":"26.38%"},{"v":0.28138904001220527,"d":"28.14%"}]
[1797,{"$f":"IF('IV. Country level, 1310-2018'!C491<0,'III. GDP shares, 1310-2018'!C493,\"\")","v":0.1580602661611854},{"$f":"IF('IV. Country level, 1310-2018'!D491<0,'III. GDP shares, 1310-2018'!D493,\"\")","v":""},{"$f":"IF('IV. Country level, 1310-2018'!E491<0,'III. GDP shares, 1310-2018'!E493,\"\")","v":""},{"$f":"IF('IV. Country level, 1310-2018'!F491<0,'III. GDP shares, 1310-2018'!F493,\"\")","v":""},{"$f":"IF('IV. Country level, 1310-2018'!G491<0,'III. GDP shares, 1310-2018'!G493,\"\")","v":""},{"$f":"IF('IV. Country level, 1310-2018'!H491<0,'III. GDP shares, 1310-2018'!H493,\"\")","v":""},{"$f":"IF('IV. Country level, 1310-2018'!I491<0,'III. GDP shares, 1310-2018'!I493,\"\")","v":""},{"$f":"IF('IV. Country level, 1310-2018'!J491<0,'III. GDP shares, 1310-2018'!J493,\"\")","v":0},null,0.1580602661611854,{"v":0.3278477628690741,"d":"32.78%"},{"v":0.20250823357139602,"d":"20.25%"},{"v":0.26597707543792976,"d":"26.60%"},{"v":0.28138904001220527,"d":"28.14%"}]
[1798,{"$f":"IF('IV. Country level, 1310-2018'!C492<0,'III. GDP shares, 1310-2018'!C494,\"\")","v":""},{"$f":"IF('IV. Country level, 1310-2018'!D492<0,'III. GDP shares, 1310-2018'!D494,\"\")","v":""},{"$f":"IF('IV. Country level, 1310-2018'!E492<0,'III. GDP shares, 1310-2018'!E494,\"\")","v":""},{"$f":"IF('IV. Country level, 1310-2018'!F492<0,'III. GDP shares, 1310-2018'!F494,\"\")","v":""},{"$f":"IF('IV. Country level, 1310-2018'!G492<0,'III. GDP shares, 1310-2018'!G494,\"\")","v":""},{"$f":"IF('IV. Country level, 1310-2018'!H492<0,'III. GDP shares, 1310-2018'!H494,\"\")","v":""},{"$f":"IF('IV. Country level, 1310-2018'!I492<0,'III. GDP shares, 1310-2018'!I494,\"\")","v":""},{"$f":"IF('IV. Country level, 1310-2018'!J492<0,'III. GDP shares, 1310-2018'!J494,\"\")","v":0},null,0,{"v":0.3605423297115973,"d":"36.05%"},{"v":0.20250823357139602,"d":"20.25%"},{"v":0.2537022152072102,"d":"25.37%"},{"v":0.28138904001220527,"d":"28.14%"}]
[1799,{"$f":"IF('IV. Country level, 1310-2018'!C493<0,'III. GDP shares, 1310-2018'!C495,\"\")","v":0.15734611346833235},{"$f":"IF('IV. Country level, 1310-2018'!D493<0,'III. GDP shares, 1310-2018'!D495,\"\")","v":0.2731004380618164},{"$f":"IF('IV. Country level, 1310-2018'!E493<0,'III. GDP shares, 1310-2018'!E495,\"\")","v":0.0315845265891713},{"$f":"IF('IV. Country level, 1310-2018'!F493<0,'III. GDP shares, 1310-2018'!F495,\"\")","v":""},{"$f":"IF('IV. Country level, 1310-2018'!G493<0,'III. GDP shares, 1310-2018'!G495,\"\")","v":""},{"$f":"IF('IV. Country level, 1310-2018'!H493<0,'III. GDP shares, 1310-2018'!H495,\"\")","v":""},{"$f":"IF('IV. Country level, 1310-2018'!I493<0,'III. GDP shares, 1310-2018'!I495,\"\")","v":""},{"$f":"IF('IV. Country level, 1310-2018'!J493<0,'III. GDP shares, 1310-2018'!J495,\"\")","v":""},null,0.4620310781193201,{"v":0.2637607644418531,"d":"26.38%"},{"v":0.20250823357139602,"d":"20.25%"},{"v":0.250530537406438,"d":"25.05%"},{"v":0.28138904001220527,"d":"28.14%"}]
[1800,{"$f":"IF('IV. Country level, 1310-2018'!C494<0,'III. GDP shares, 1310-2018'!C496,\"\")","v":0.1446872979088794},{"$f":"IF('IV. Country level, 1310-2018'!D494<0,'III. GDP shares, 1310-2018'!D496,\"\")","v":0.25214039003799493},{"$f":"IF('IV. Country level, 1310-2018'!E494<0,'III. GDP shares, 1310-2018'!E496,\"\")","v":0.028967009636727537},{"$f":"IF('IV. Country level, 1310-2018'!F494<0,'III. GDP shares, 1310-2018'!F496,\"\")","v":0.167918187263244},{"$f":"IF('IV. Country level, 1310-2018'!G494<0,'III. GDP shares, 1310-2018'!G496,\"\")","v":""},{"$f":"IF('IV. Country level, 1310-2018'!H494<0,'III. GDP shares, 1310-2018'!H496,\"\")","v":""},{"$f":"IF('IV. Country level, 1310-2018'!I494<0,'III. GDP shares, 1310-2018'!I496,\"\")","v":""},{"$f":"IF('IV. Country level, 1310-2018'!J494<0,'III. GDP shares, 1310-2018'!J496,\"\")","v":0},null,0.5937128848468459,{"v":0.2899762252670541,"d":"29.00%"},{"v":0.20250823357139602,"d":"20.25%"},{"v":0.26304703036488314,"d":"26.30%"},{"$f":"AVERAGE(L$496:L$595)","v":{"v":0.20677378773650956,"d":"20.68%"}}]
[1801,{"$f":"IF('IV. Country level, 1310-2018'!C495<0,'III. GDP shares, 1310-2018'!C497,\"\")","v":""},{"$f":"IF('IV. Country level, 1310-2018'!D495<0,'III. GDP shares, 1310-2018'!D497,\"\")","v":0.25262123207164816},{"$f":"IF('IV. Country level, 1310-2018'!E495<0,'III. GDP shares, 1310-2018'!E497,\"\")","v":""},{"$f":"IF('IV. Country level, 1310-2018'!F495<0,'III. GDP shares, 1310-2018'!F497,\"\")","v":""},{"$f":"IF('IV. Country level, 1310-2018'!G495<0,'III. GDP shares, 1310-2018'!G497,\"\")","v":0.22350689002869775},{"$f":"IF('IV. Country level, 1310-2018'!H495<0,'III. GDP shares, 1310-2018'!H497,\"\")","v":""},{"$f":"IF('IV. Country level, 1310-2018'!I495<0,'III. GDP shares, 1310-2018'!I497,\"\")","v":0.07826188864842548},{"$f":"IF('IV. Country level, 1310-2018'!J495<0,'III. GDP shares, 1310-2018'!J497,\"\")","v":""},null,0.5543900107487714,{"v":0.27852097917391677,"d":"27.85%"},{"v":0.20250823357139602,"d":"20.25%"},{"v":0.268760067471049,"d":"26.88%"},{"$f":"AVERAGE(L$496:L$595)","v":{"v":0.20677378773650956,"d":"20.68%"}}]
[1802,{"$f":"IF('IV. Country level, 1310-2018'!C496<0,'III. GDP shares, 1310-2018'!C498,\"\")","v":""},{"$f":"IF('IV. Country level, 1310-2018'!D496<0,'III. GDP shares, 1310-2018'!D498,\"\")","v":""},{"$f":"IF('IV. Country level, 1310-2018'!E496<0,'III. GDP shares, 1310-2018'!E498,\"\")","v":""},{"$f":"IF('IV. Country level, 1310-2018'!F496<0,'III. GDP shares, 1310-2018'!F498,\"\")","v":""},{"$f":"IF('IV. Country level, 1310-2018'!G496<0,'III. GDP shares, 1310-2018'!G498,\"\")","v":""},{"$f":"IF('IV. Country level, 1310-2018'!H496<0,'III. GDP shares, 1310-2018'!H498,\"\")","v":""},{"$f":"IF('IV. Country level, 1310-2018'!I496<0,'III. GDP shares, 1310-2018'!I498,\"\")","v":0.07813111121684901},{"$f":"IF('IV. Country level, 1310-2018'!J496<0,'III. GDP shares, 1310-2018'!J498,\"\")","v":""},null,0.07813111121684901,{"v":0.34282357768252647,"d":"34.28%"},{"v":0.20250823357139602,"d":"20.25%"},{"v":0.268760067471049,"d":"26.88%"},{"v":0.20677378773650956,"d":"20.68%"}]
[1803,{"$f":"IF('IV. Country level, 1310-2018'!C497<0,'III. GDP shares, 1310-2018'!C499,\"\")","v":""},{"$f":"IF('IV. Country level, 1310-2018'!D497<0,'III. GDP shares, 1310-2018'!D499,\"\")","v":""},{"$f":"IF('IV. Country level, 1310-2018'!E497<0,'III. GDP shares, 1310-2018'!E499,\"\")","v":""},{"$f":"IF('IV. Country level, 1310-2018'!F497<0,'III. GDP shares, 1310-2018'!F499,\"\")","v":""},{"$f":"IF('IV. Country level, 1310-2018'!G497<0,'III. GDP shares, 1310-2018'!G499,\"\")","v":""},{"$f":"IF('IV. Country level, 1310-2018'!H497<0,'III. GDP shares, 1310-2018'!H499,\"\")","v":0.10550655615142213},{"$f":"IF('IV. Country level, 1310-2018'!I497<0,'III. GDP shares, 1310-2018'!I499,\"\")","v":0.07800166962498457},{"$f":"IF('IV. Country level, 1310-2018'!J497<0,'III. GDP shares, 1310-2018'!J499,\"\")","v":""},null,0.18350822577640669,{"v":0.2768191379511951,"d":"27.68%"},{"v":0.20250823357139602,"d":"20.25%"},{"v":0.26773760822319786,"d":"26.77%"},{"v":0.20677378773650956,"d":"20.68%"}]
[1804,{"$f":"IF('IV. Country level, 1310-2018'!C498<0,'III. GDP shares, 1310-2018'!C500,\"\")","v":""},{"$f":"IF('IV. Country level, 1310-2018'!D498<0,'III. GDP shares, 1310-2018'!D500,\"\")","v":""},{"$f":"IF('IV. Country level, 1310-2018'!E498<0,'III. GDP shares, 1310-2018'!E500,\"\")","v":""},{"$f":"IF('IV. Country level, 1310-2018'!F498<0,'III. GDP shares, 1310-2018'!F500,\"\")","v":""},{"$f":"IF('IV. Country level, 1310-2018'!G498<0,'III. GDP shares, 1310-2018'!G500,\"\")","v":""},{"$f":"IF('IV. Country level, 1310-2018'!H498<0,'III. GDP shares, 1310-2018'!H500,\"\")","v":""},{"$f":"IF('IV. Country level, 1310-2018'!I498<0,'III. GDP shares, 1310-2018'!I500,\"\")","v":0.07787354350922414},{"$f":"IF('IV. Country level, 1310-2018'!J498<0,'III. GDP shares, 1310-2018'!J500,\"\")","v":0},null,0.07787354350922414,{"v":0.1920030115445028,"d":"19.20%"},{"v":0.20250823357139602,"d":"20.25%"},{"v":0.2572435756695482,"d":"25.72%"},{"v":0.20677378773650956,"d":"20.68%"}]
[1805,{"$f":"IF('IV. Country level, 1310-2018'!C499<0,'III. GDP shares, 1310-2018'!C501,\"\")","v":""},{"$f":"IF('IV. Country level, 1310-2018'!D499<0,'III. GDP shares, 1310-2018'!D501,\"\")","v":0.2544959807240932},{"$f":"IF('IV. Country level, 1310-2018'!E499<0,'III. GDP shares, 1310-2018'!E501,\"\")","v":0.028301518393120492},{"$f":"IF('IV. Country level, 1310-2018'!F499<0,'III. GDP shares, 1310-2018'!F501,\"\")","v":0.16732069044305464},{"$f":"IF('IV. Country level, 1310-2018'!G499<0,'III. GDP shares, 1310-2018'!G501,\"\")","v":""},{"$f":"IF('IV. Country level, 1310-2018'!H499<0,'III. GDP shares, 1310-2018'!H501,\"\")","v":""},{"$f":"IF('IV. Country level, 1310-2018'!I499<0,'III. GDP shares, 1310-2018'!I501,\"\")","v":""},{"$f":"IF('IV. Country level, 1310-2018'!J499<0,'III. GDP shares, 1310-2018'!J501,\"\")","v":""},null,0.45011818956026833,{"v":0.1520447946590377,"d":"15.20%"},{"v":0.20250823357139602,"d":"20.25%"},{"v":0.2572435756695482,"d":"25.72%"},{"v":0.20677378773650956,"d":"20.68%"}]
[1806,{"$f":"IF('IV. Country level, 1310-2018'!C500<0,'III. GDP shares, 1310-2018'!C502,\"\")","v":""},{"$f":"IF('IV. Country level, 1310-2018'!D500<0,'III. GDP shares, 1310-2018'!D502,\"\")","v":""},{"$f":"IF('IV. Country level, 1310-2018'!E500<0,'III. GDP shares, 1310-2018'!E502,\"\")","v":""},{"$f":"IF('IV. Country level, 1310-2018'!F500<0,'III. GDP shares, 1310-2018'!F502,\"\")","v":""},{"$f":"IF('IV. Country level, 1310-2018'!G500<0,'III. GDP shares, 1310-2018'!G502,\"\")","v":""},{"$f":"IF('IV. Country level, 1310-2018'!H500<0,'III. GDP shares, 1310-2018'!H502,\"\")","v":""},{"$f":"IF('IV. Country level, 1310-2018'!I500<0,'III. GDP shares, 1310-2018'!I502,\"\")","v":""},{"$f":"IF('IV. Country level, 1310-2018'!J500<0,'III. GDP shares, 1310-2018'!J502,\"\")","v":""},null,0,{"v":0.17749697985894944,"d":"17.75%"},{"v":0.20250823357139602,"d":"20.25%"},{"v":0.25654226601904817,"d":"25.65%"},{"v":0.20677378773650956,"d":"20.68%"}]
[1807,{"$f":"IF('IV. Country level, 1310-2018'!C501<0,'III. GDP shares, 1310-2018'!C503,\"\")","v":""},{"$f":"IF('IV. Country level, 1310-2018'!D501<0,'III. GDP shares, 1310-2018'!D503,\"\")","v":""},{"$f":"IF('IV. Country level, 1310-2018'!E501<0,'III. GDP shares, 1310-2018'!E503,\"\")","v":""},{"$f":"IF('IV. Country level, 1310-2018'!F501<0,'III. GDP shares, 1310-2018'!F503,\"\")","v":""},{"$f":"IF('IV. Country level, 1310-2018'!G501<0,'III. GDP shares, 1310-2018'!G503,\"\")","v":""},{"$f":"IF('IV. Country level, 1310-2018'!H501<0,'III. GDP shares, 1310-2018'!H503,\"\")","v":""},{"$f":"IF('IV. Country level, 1310-2018'!I501<0,'III. GDP shares, 1310-2018'!I503,\"\")","v":""},{"$f":"IF('IV. Country level, 1310-2018'!J501<0,'III. GDP shares, 1310-2018'!J503,\"\")","v":""},null,0,{"v":0.17154200694170682,"d":"17.15%"},{"v":0.20250823357139602,"d":"20.25%"},{"v":0.2559320196691971,"d":"25.59%"},{"v":0.20677378773650956,"d":"20.68%"}]
[1808,{"$f":"IF('IV. Country level, 1310-2018'!C502<0,'III. GDP shares, 1310-2018'!C504,\"\")","v":""},{"$f":"IF('IV. Country level, 1310-2018'!D502<0,'III. GDP shares, 1310-2018'!D504,\"\")","v":""},{"$f":"IF('IV. Country level, 1310-2018'!E502<0,'III. GDP shares, 1310-2018'!E504,\"\")","v":""},{"$f":"IF('IV. Country level, 1310-2018'!F502<0,'III. GDP shares, 1310-2018'!F504,\"\")","v":0.16697647527936751},{"$f":"IF('IV. Country level, 1310-2018'!G502<0,'III. GDP shares, 1310-2018'!G504,\"\")","v":""},{"$f":"IF('IV. Country level, 1310-2018'!H502<0,'III. GDP shares, 1310-2018'!H504,\"\")","v":0.10770601727114815},{"$f":"IF('IV. Country level, 1310-2018'!I502<0,'III. GDP shares, 1310-2018'!I504,\"\")","v":""},{"$f":"IF('IV. Country level, 1310-2018'!J502<0,'III. GDP shares, 1310-2018'!J504,\"\")","v":0},null,0.2746824925505157,{"v":0.23879456574793245,"d":"23.88%"},{"v":0.20250823357139602,"d":"20.25%"},{"v":0.2655653054487102,"d":"26.56%"},{"v":0.20677378773650956,"d":"20.68%"}]
[1809,{"$f":"IF('IV. Country level, 1310-2018'!C503<0,'III. GDP shares, 1310-2018'!C505,\"\")","v":""},{"$f":"IF('IV. Country level, 1310-2018'!D503<0,'III. GDP shares, 1310-2018'!D505,\"\")","v":0.25629640761623124},{"$f":"IF('IV. Country level, 1310-2018'!E503<0,'III. GDP shares, 1310-2018'!E505,\"\")","v":""},{"$f":"IF('IV. Country level, 1310-2018'!F503<0,'III. GDP shares, 1310-2018'!F505,\"\")","v":""},{"$f":"IF('IV. Country level, 1310-2018'!G503<0,'III. GDP shares, 1310-2018'!G505,\"\")","v":""},{"$f":"IF('IV. Country level, 1310-2018'!H503<0,'III. GDP shares, 1310-2018'!H505,\"\")","v":""},{"$f":"IF('IV. Country level, 1310-2018'!I503<0,'III. GDP shares, 1310-2018'!I505,\"\")","v":""},{"$f":"IF('IV. Country level, 1310-2018'!J503<0,'III. GDP shares, 1310-2018'!J505,\"\")","v":0},null,0.25629640761623124,{"v":0.2538305255356853,"d":"25.38%"},{"v":0.20250823357139602,"d":"20.25%"},{"v":0.26067680219654943,"d":"26.07%"},{"v":0.20677378773650956,"d":"20.68%"}]
[1810,{"$f":"IF('IV. Country level, 1310-2018'!C504<0,'III. GDP shares, 1310-2018'!C506,\"\")","v":0.14182341535570833},{"$f":"IF('IV. Country level, 1310-2018'!D504<0,'III. GDP shares, 1310-2018'!D506,\"\")","v":""},{"$f":"IF('IV. Country level, 1310-2018'!E504<0,'III. GDP shares, 1310-2018'!E506,\"\")","v":""},{"$f":"IF('IV. Country level, 1310-2018'!F504<0,'III. GDP shares, 1310-2018'!F506,\"\")","v":""},{"$f":"IF('IV. Country level, 1310-2018'!G504<0,'III. GDP shares, 1310-2018'!G506,\"\")","v":""},{"$f":"IF('IV. Country level, 1310-2018'!H504<0,'III. GDP shares, 1310-2018'!H506,\"\")","v":""},{"$f":"IF('IV. Country level, 1310-2018'!I504<0,'III. GDP shares, 1310-2018'!I506,\"\")","v":""},{"$f":"IF('IV. Country level, 1310-2018'!J504<0,'III. GDP shares, 1310-2018'!J506,\"\")","v":""},null,0.14182341535570833,{"v":0.2695160403471761,"d":"26.95%"},{"v":0.20250823357139602,"d":"20.25%"},{"v":0.2518005935177538,"d":"25.18%"},{"v":0.20677378773650956,"d":"20.68%"}]
[1811,{"$f":"IF('IV. Country level, 1310-2018'!C505<0,'III. GDP shares, 1310-2018'!C507,\"\")","v":0.14155248490384806},{"$f":"IF('IV. Country level, 1310-2018'!D505<0,'III. GDP shares, 1310-2018'!D507,\"\")","v":""},{"$f":"IF('IV. Country level, 1310-2018'!E505<0,'III. GDP shares, 1310-2018'!E507,\"\")","v":""},{"$f":"IF('IV. Country level, 1310-2018'!F505<0,'III. GDP shares, 1310-2018'!F507,\"\")","v":""},{"$f":"IF('IV. Country level, 1310-2018'!G505<0,'III. GDP shares, 1310-2018'!G507,\"\")","v":0.22110321218510776},{"$f":"IF('IV. Country level, 1310-2018'!H505<0,'III. GDP shares, 1310-2018'!H507,\"\")","v":0.10897389064387729},{"$f":"IF('IV. Country level, 1310-2018'!I505<0,'III. GDP shares, 1310-2018'!I507,\"\")","v":0.0770118674199703},{"$f":"IF('IV. Country level, 1310-2018'!J505<0,'III. GDP shares, 1310-2018'!J507,\"\")","v":0},null,0.5486414551528035,{"v":0.2852596086589399,"d":"28.53%"},{"v":0.20250823357139602,"d":"20.25%"},{"v":0.26188102585035955,"d":"26.19%"},{"v":0.20677378773650956,"d":"20.68%"}]
[1812,{"$f":"IF('IV. Country level, 1310-2018'!C506<0,'III. GDP shares, 1310-2018'!C508,\"\")","v":""},{"$f":"IF('IV. Country level, 1310-2018'!D506<0,'III. GDP shares, 1310-2018'!D508,\"\")","v":0.2576005738333208},{"$f":"IF('IV. Country level, 1310-2018'!E506<0,'III. GDP shares, 1310-2018'!E508,\"\")","v":""},{"$f":"IF('IV. Country level, 1310-2018'!F506<0,'III. GDP shares, 1310-2018'!F508,\"\")","v":""},{"$f":"IF('IV. Country level, 1310-2018'!G506<0,'III. GDP shares, 1310-2018'!G508,\"\")","v":0.22087575490024436},{"$f":"IF('IV. Country level, 1310-2018'!H506<0,'III. GDP shares, 1310-2018'!H508,\"\")","v":""},{"$f":"IF('IV. Country level, 1310-2018'!I506<0,'III. GDP shares, 1310-2018'!I508,\"\")","v":0.07689357934097327},{"$f":"IF('IV. Country level, 1310-2018'!J506<0,'III. GDP shares, 1310-2018'!J508,\"\")","v":""},null,0.5553699080745385,{"v":0.26608994392519786,"d":"26.61%"},{"v":0.20250823357139602,"d":"20.25%"},{"v":0.2389839934835396,"d":"23.90%"},{"v":0.20677378773650956,"d":"20.68%"}]
[1813,{"$f":"IF('IV. Country level, 1310-2018'!C507<0,'III. GDP shares, 1310-2018'!C509,\"\")","v":""},{"$f":"IF('IV. Country level, 1310-2018'!D507<0,'III. GDP shares, 1310-2018'!D509,\"\")","v":""},{"$f":"IF('IV. Country level, 1310-2018'!E507<0,'III. GDP shares, 1310-2018'!E509,\"\")","v":""},{"$f":"IF('IV. Country level, 1310-2018'!F507<0,'III. GDP shares, 1310-2018'!F509,\"\")","v":""},{"$f":"IF('IV. Country level, 1310-2018'!G507<0,'III. GDP shares, 1310-2018'!G509,\"\")","v":""},{"$f":"IF('IV. Country level, 1310-2018'!H507<0,'III. GDP shares, 1310-2018'!H509,\"\")","v":0.10979860368043569},{"$f":"IF('IV. Country level, 1310-2018'!I507<0,'III. GDP shares, 1310-2018'!I509,\"\")","v":""},{"$f":"IF('IV. Country level, 1310-2018'!J507<0,'III. GDP shares, 1310-2018'!J509,\"\")","v":0},null,0.10979860368043569,{"v":0.2884824953555488,"d":"28.85%"},{"v":0.20250823357139602,"d":"20.25%"},{"v":0.2399002562753268,"d":"23.99%"},{"v":0.20677378773650956,"d":"20.68%"}]
[1814,{"$f":"IF('IV. Country level, 1310-2018'!C508<0,'III. GDP shares, 1310-2018'!C510,\"\")","v":""},{"$f":"IF('IV. Country level, 1310-2018'!D508<0,'III. GDP shares, 1310-2018'!D510,\"\")","v":""},{"$f":"IF('IV. Country level, 1310-2018'!E508<0,'III. GDP shares, 1310-2018'!E510,\"\")","v":""},{"$f":"IF('IV. Country level, 1310-2018'!F508<0,'III. GDP shares, 1310-2018'!F510,\"\")","v":""},{"$f":"IF('IV. Country level, 1310-2018'!G508<0,'III. GDP shares, 1310-2018'!G510,\"\")","v":""},{"$f":"IF('IV. Country level, 1310-2018'!H508<0,'III. GDP shares, 1310-2018'!H510,\"\")","v":0.11020497818234652},{"$f":"IF('IV. Country level, 1310-2018'!I508<0,'III. GDP shares, 1310-2018'!I510,\"\")","v":""},{"$f":"IF('IV. Country level, 1310-2018'!J508<0,'III. GDP shares, 1310-2018'!J510,\"\")","v":0},null,0.11020497818234652,{"v":0.3642647143222192,"d":"36.43%"},{"v":0.20250823357139602,"d":"20.25%"},{"v":0.24130601625953788,"d":"24.13%"},{"v":0.20677378773650956,"d":"20.68%"}]
[1815,{"$f":"IF('IV. Country level, 1310-2018'!C509<0,'III. GDP shares, 1310-2018'!C511,\"\")","v":0.14049483941432117},{"$f":"IF('IV. Country level, 1310-2018'!D509<0,'III. GDP shares, 1310-2018'!D511,\"\")","v":""},{"$f":"IF('IV. Country level, 1310-2018'!E509<0,'III. GDP shares, 1310-2018'!E511,\"\")","v":""},{"$f":"IF('IV. Country level, 1310-2018'!F509<0,'III. GDP shares, 1310-2018'!F511,\"\")","v":""},{"$f":"IF('IV. Country level, 1310-2018'!G509<0,'III. GDP shares, 1310-2018'!G511,\"\")","v":""},{"$f":"IF('IV. Country level, 1310-2018'!H509<0,'III. GDP shares, 1310-2018'!H511,\"\")","v":""},{"$f":"IF('IV. Country level, 1310-2018'!I509<0,'III. GDP shares, 1310-2018'!I511,\"\")","v":""},{"$f":"IF('IV. Country level, 1310-2018'!J509<0,'III. GDP shares, 1310-2018'!J511,\"\")","v":0},null,0.14049483941432117,{"v":0.2858873635861045,"d":"28.59%"},{"v":0.20250823357139602,"d":"20.25%"},{"v":0.2577257253192296,"d":"25.77%"},{"v":0.20677378773650956,"d":"20.68%"}]
[1816,{"$f":"IF('IV. Country level, 1310-2018'!C510<0,'III. GDP shares, 1310-2018'!C512,\"\")","v":""},{"$f":"IF('IV. Country level, 1310-2018'!D510<0,'III. GDP shares, 1310-2018'!D512,\"\")","v":""},{"$f":"IF('IV. Country level, 1310-2018'!E510<0,'III. GDP shares, 1310-2018'!E512,\"\")","v":0.026949628778565715},{"$f":"IF('IV. Country level, 1310-2018'!F510<0,'III. GDP shares, 1310-2018'!F512,\"\")","v":0.1661069257937027},{"$f":"IF('IV. Country level, 1310-2018'!G510<0,'III. GDP shares, 1310-2018'!G512,\"\")","v":0.21998771305642},{"$f":"IF('IV. Country level, 1310-2018'!H510<0,'III. GDP shares, 1310-2018'!H512,\"\")","v":""},{"$f":"IF('IV. Country level, 1310-2018'!I510<0,'III. GDP shares, 1310-2018'!I512,\"\")","v":""},{"$f":"IF('IV. Country level, 1310-2018'!J510<0,'III. GDP shares, 1310-2018'!J512,\"\")","v":""},null,0.4130442676286884,{"v":0.20654880528974182,"d":"20.65%"},{"v":0.20250823357139602,"d":"20.25%"},{"v":0.24372478355803812,"d":"24.37%"},{"v":0.20677378773650956,"d":"20.68%"}]
[1817,{"$f":"IF('IV. Country level, 1310-2018'!C511<0,'III. GDP shares, 1310-2018'!C513,\"\")","v":""},{"$f":"IF('IV. Country level, 1310-2018'!D511<0,'III. GDP shares, 1310-2018'!D513,\"\")","v":0.25969130029968857},{"$f":"IF('IV. Country level, 1310-2018'!E511<0,'III. GDP shares, 1310-2018'!E513,\"\")","v":0.026833759284671205},{"$f":"IF('IV. Country level, 1310-2018'!F511<0,'III. GDP shares, 1310-2018'!F513,\"\")","v":0.1660028948919831},{"$f":"IF('IV. Country level, 1310-2018'!G511<0,'III. GDP shares, 1310-2018'!G513,\"\")","v":0.2197709936460581},{"$f":"IF('IV. Country level, 1310-2018'!H511<0,'III. GDP shares, 1310-2018'!H513,\"\")","v":""},{"$f":"IF('IV. Country level, 1310-2018'!I511<0,'III. GDP shares, 1310-2018'!I513,\"\")","v":""},{"$f":"IF('IV. Country level, 1310-2018'!J511<0,'III. GDP shares, 1310-2018'!J513,\"\")","v":""},null,0.672298948122401,{"v":0.190863290478251,"d":"19.09%"},{"v":0.20250823357139602,"d":"20.25%"},{"v":0.2257334840172246,"d":"22.57%"},{"v":0.20677378773650956,"d":"20.68%"}]
[1818,{"$f":"IF('IV. Country level, 1310-2018'!C512<0,'III. GDP shares, 1310-2018'!C514,\"\")","v":""},{"$f":"IF('IV. Country level, 1310-2018'!D512<0,'III. GDP shares, 1310-2018'!D514,\"\")","v":""},{"$f":"IF('IV. Country level, 1310-2018'!E512<0,'III. GDP shares, 1310-2018'!E514,\"\")","v":""},{"$f":"IF('IV. Country level, 1310-2018'!F512<0,'III. GDP shares, 1310-2018'!F514,\"\")","v":""},{"$f":"IF('IV. Country level, 1310-2018'!G512<0,'III. GDP shares, 1310-2018'!G514,\"\")","v":""},{"$f":"IF('IV. Country level, 1310-2018'!H512<0,'III. GDP shares, 1310-2018'!H514,\"\")","v":""},{"$f":"IF('IV. Country level, 1310-2018'!I512<0,'III. GDP shares, 1310-2018'!I514,\"\")","v":""},{"$f":"IF('IV. Country level, 1310-2018'!J512<0,'III. GDP shares, 1310-2018'!J514,\"\")","v":0},null,0,{"v":0.17511972216648722,"d":"17.51%"},{"v":0.20250823357139602,"d":"20.25%"},{"v":0.2089337867218073,"d":"20.89%"},{"v":0.20677378773650956,"d":"20.68%"}]
[1819,{"$f":"IF('IV. Country level, 1310-2018'!C513<0,'III. GDP shares, 1310-2018'!C515,\"\")","v":""},{"$f":"IF('IV. Country level, 1310-2018'!D513<0,'III. GDP shares, 1310-2018'!D515,\"\")","v":""},{"$f":"IF('IV. Country level, 1310-2018'!E513<0,'III. GDP shares, 1310-2018'!E515,\"\")","v":""},{"$f":"IF('IV. Country level, 1310-2018'!F513<0,'III. GDP shares, 1310-2018'!F515,\"\")","v":""},{"$f":"IF('IV. Country level, 1310-2018'!G513<0,'III. GDP shares, 1310-2018'!G515,\"\")","v":""},{"$f":"IF('IV. Country level, 1310-2018'!H513<0,'III. GDP shares, 1310-2018'!H515,\"\")","v":""},{"$f":"IF('IV. Country level, 1310-2018'!I513<0,'III. GDP shares, 1310-2018'!I515,\"\")","v":""},{"$f":"IF('IV. Country level, 1310-2018'!J513<0,'III. GDP shares, 1310-2018'!J515,\"\")","v":""},null,0,{"v":0.186948822068228,"d":"18.69%"},{"v":0.20250823357139602,"d":"20.25%"},{"v":0.21212056161197543,"d":"21.21%"},{"v":0.20677378773650956,"d":"20.68%"}]
[1820,{"$f":"IF('IV. Country level, 1310-2018'!C514<0,'III. GDP shares, 1310-2018'!C516,\"\")","v":""},{"$f":"IF('IV. Country level, 1310-2018'!D514<0,'III. GDP shares, 1310-2018'!D516,\"\")","v":""},{"$f":"IF('IV. Country level, 1310-2018'!E514<0,'III. GDP shares, 1310-2018'!E516,\"\")","v":""},{"$f":"IF('IV. Country level, 1310-2018'!F514<0,'III. GDP shares, 1310-2018'!F516,\"\")","v":""},{"$f":"IF('IV. Country level, 1310-2018'!G514<0,'III. GDP shares, 1310-2018'!G516,\"\")","v":""},{"$f":"IF('IV. Country level, 1310-2018'!H514<0,'III. GDP shares, 1310-2018'!H516,\"\")","v":""},{"$f":"IF('IV. Country level, 1310-2018'!I514<0,'III. GDP shares, 1310-2018'!I516,\"\")","v":""},{"$f":"IF('IV. Country level, 1310-2018'!J514<0,'III. GDP shares, 1310-2018'!J516,\"\")","v":0},null,0,{"v":0.16341772668335658,"d":"16.34%"},{"v":0.20250823357139602,"d":"20.25%"},{"v":0.22151149817976565,"d":"22.15%"},{"v":0.20677378773650956,"d":"20.68%"}]
[1821,{"$f":"IF('IV. Country level, 1310-2018'!C515<0,'III. GDP shares, 1310-2018'!C517,\"\")","v":""},{"$f":"IF('IV. Country level, 1310-2018'!D515<0,'III. GDP shares, 1310-2018'!D517,\"\")","v":""},{"$f":"IF('IV. Country level, 1310-2018'!E515<0,'III. GDP shares, 1310-2018'!E517,\"\")","v":""},{"$f":"IF('IV. Country level, 1310-2018'!F515<0,'III. GDP shares, 1310-2018'!F517,\"\")","v":""},{"$f":"IF('IV. Country level, 1310-2018'!G515<0,'III. GDP shares, 1310-2018'!G517,\"\")","v":""},{"$f":"IF('IV. Country level, 1310-2018'!H515<0,'III. GDP shares, 1310-2018'!H517,\"\")","v":""},{"$f":"IF('IV. Country level, 1310-2018'!I515<0,'III. GDP shares, 1310-2018'!I517,\"\")","v":""},{"$f":"IF('IV. Country level, 1310-2018'!J515<0,'III. GDP shares, 1310-2018'!J517,\"\")","v":0},null,0,{"v":0.11278908134071826,"d":"11.28%"},{"v":0.20250823357139602,"d":"20.25%"},{"v":0.23346015987048016,"d":"23.35%"},{"v":0.20677378773650956,"d":"20.68%"}]
[1822,{"$f":"IF('IV. Country level, 1310-2018'!C516<0,'III. GDP shares, 1310-2018'!C518,\"\")","v":""},{"$f":"IF('IV. Country level, 1310-2018'!D516<0,'III. GDP shares, 1310-2018'!D518,\"\")","v":""},{"$f":"IF('IV. Country level, 1310-2018'!E516<0,'III. GDP shares, 1310-2018'!E518,\"\")","v":""},{"$f":"IF('IV. Country level, 1310-2018'!F516<0,'III. GDP shares, 1310-2018'!F518,\"\")","v":""},{"$f":"IF('IV. Country level, 1310-2018'!G516<0,'III. GDP shares, 1310-2018'!G518,\"\")","v":0.22329853872650643},{"$f":"IF('IV. Country level, 1310-2018'!H516<0,'III. GDP shares, 1310-2018'!H518,\"\")","v":""},{"$f":"IF('IV. Country level, 1310-2018'!I516<0,'III. GDP shares, 1310-2018'!I518,\"\")","v":""},{"$f":"IF('IV. Country level, 1310-2018'!J516<0,'III. GDP shares, 1310-2018'!J518,\"\")","v":0},null,0.22329853872650643,{"v":0.14764585356544818,"d":"14.76%"},{"v":0.20250823357139602,"d":"20.25%"},{"v":0.22562657349915977,"d":"22.56%"},{"v":0.20677378773650956,"d":"20.68%"}]
[1823,{"$f":"IF('IV. Country level, 1310-2018'!C517<0,'III. GDP shares, 1310-2018'!C519,\"\")","v":""},{"$f":"IF('IV. Country level, 1310-2018'!D517<0,'III. GDP shares, 1310-2018'!D519,\"\")","v":0.24832659993458864},{"$f":"IF('IV. Country level, 1310-2018'!E517<0,'III. GDP shares, 1310-2018'!E519,\"\")","v":""},{"$f":"IF('IV. Country level, 1310-2018'!F517<0,'III. GDP shares, 1310-2018'!F519,\"\")","v":""},{"$f":"IF('IV. Country level, 1310-2018'!G517<0,'III. GDP shares, 1310-2018'!G519,\"\")","v":""},{"$f":"IF('IV. Country level, 1310-2018'!H517<0,'III. GDP shares, 1310-2018'!H519,\"\")","v":""},{"$f":"IF('IV. Country level, 1310-2018'!I517<0,'III. GDP shares, 1310-2018'!I519,\"\")","v":""},{"$f":"IF('IV. Country level, 1310-2018'!J517<0,'III. GDP shares, 1310-2018'!J519,\"\")","v":0},null,{"$f":"SUM(B519:I519)","v":0.24832659993458864},{"v":0.20682983563040663,"d":"20.68%"},{"v":0.20250823357139602,"d":"20.25%"},{"v":0.24615370068360276,"d":"24.62%"},{"v":0.20677378773650956,"d":"20.68%"}]
[1824,{"$f":"IF('IV. Country level, 1310-2018'!C518<0,'III. GDP shares, 1310-2018'!C520,\"\")","v":""},{"$f":"IF('IV. Country level, 1310-2018'!D518<0,'III. GDP shares, 1310-2018'!D520,\"\")","v":0.2440186717588591},{"$f":"IF('IV. Country level, 1310-2018'!E518<0,'III. GDP shares, 1310-2018'!E520,\"\")","v":""},{"$f":"IF('IV. Country level, 1310-2018'!F518<0,'III. GDP shares, 1310-2018'!F520,\"\")","v":""},{"$f":"IF('IV. Country level, 1310-2018'!G518<0,'III. GDP shares, 1310-2018'!G520,\"\")","v":""},{"$f":"IF('IV. Country level, 1310-2018'!H518<0,'III. GDP shares, 1310-2018'!H520,\"\")","v":""},{"$f":"IF('IV. Country level, 1310-2018'!I518<0,'III. GDP shares, 1310-2018'!I520,\"\")","v":0.07387975896507357},{"$f":"IF('IV. Country level, 1310-2018'!J518<0,'III. GDP shares, 1310-2018'!J520,\"\")","v":""},null,0.31789843072393265,{"v":0.30085587989142076,"d":"30.09%"},{"v":0.20250823357139602,"d":"20.25%"},{"v":0.24615370068360276,"d":"24.62%"},{"v":0.20677378773650956,"d":"20.68%"}]
[1825,{"$f":"IF('IV. Country level, 1310-2018'!C519<0,'III. GDP shares, 1310-2018'!C521,\"\")","v":""},{"$f":"IF('IV. Country level, 1310-2018'!D519<0,'III. GDP shares, 1310-2018'!D521,\"\")","v":0.2439974055731095},{"$f":"IF('IV. Country level, 1310-2018'!E519<0,'III. GDP shares, 1310-2018'!E521,\"\")","v":""},{"$f":"IF('IV. Country level, 1310-2018'!F519<0,'III. GDP shares, 1310-2018'!F521,\"\")","v":""},{"$f":"IF('IV. Country level, 1310-2018'!G519<0,'III. GDP shares, 1310-2018'!G521,\"\")","v":""},{"$f":"IF('IV. Country level, 1310-2018'!H519<0,'III. GDP shares, 1310-2018'!H521,\"\")","v":""},{"$f":"IF('IV. Country level, 1310-2018'!I519<0,'III. GDP shares, 1310-2018'!I521,\"\")","v":""},{"$f":"IF('IV. Country level, 1310-2018'!J519<0,'III. GDP shares, 1310-2018'!J521,\"\")","v":""},null,0.2439974055731095,{"v":0.30085587989142076,"d":"30.09%"},{"$f":"AVERAGE(L$9:L$714)","v":{"v":0.20250823357139602,"d":"20.25%"}},{"v":0.23782998878813263,"d":"23.78%"},{"v":0.20677378773650956,"d":"20.68%"}]
[1826,{"$f":"IF('IV. Country level, 1310-2018'!C520<0,'III. GDP shares, 1310-2018'!C522,\"\")","v":""},{"$f":"IF('IV. Country level, 1310-2018'!D520<0,'III. GDP shares, 1310-2018'!D522,\"\")","v":""},{"$f":"IF('IV. Country level, 1310-2018'!E520<0,'III. GDP shares, 1310-2018'!E522,\"\")","v":""},{"$f":"IF('IV. Country level, 1310-2018'!F520<0,'III. GDP shares, 1310-2018'!F522,\"\")","v":0.1880803698578256},{"$f":"IF('IV. Country level, 1310-2018'!G520<0,'III. GDP shares, 1310-2018'!G522,\"\")","v":0.22620750459688366},{"$f":"IF('IV. Country level, 1310-2018'!H520<0,'III. GDP shares, 1310-2018'!H522,\"\")","v":""},{"$f":"IF('IV. Country level, 1310-2018'!I520<0,'III. GDP shares, 1310-2018'!I522,\"\")","v":""},{"$f":"IF('IV. Country level, 1310-2018'!J520<0,'III. GDP shares, 1310-2018'!J522,\"\")","v":0},null,0.41428787445470927,{"$f":"AVERAGE(K519:K525)","v":{"v":0.27327561323463073,"d":"27.33%"}},{"v":0.20250823357139602,"d":"20.25%"},{"v":0.23593087269216492,"d":"23.59%"},{"v":0.20677378773650956,"d":"20.68%"}]
[1827,{"$f":"IF('IV. Country level, 1310-2018'!C521<0,'III. GDP shares, 1310-2018'!C523,\"\")","v":0.14113504293197263},{"$f":"IF('IV. Country level, 1310-2018'!D521<0,'III. GDP shares, 1310-2018'!D523,\"\")","v":""},{"$f":"IF('IV. Country level, 1310-2018'!E521<0,'III. GDP shares, 1310-2018'!E523,\"\")","v":""},{"$f":"IF('IV. Country level, 1310-2018'!F521<0,'III. GDP shares, 1310-2018'!F523,\"\")","v":0.1927695069919976},{"$f":"IF('IV. Country level, 1310-2018'!G521<0,'III. GDP shares, 1310-2018'!G523,\"\")","v":0.22134705660902257},{"$f":"IF('IV. Country level, 1310-2018'!H521<0,'III. GDP shares, 1310-2018'!H523,\"\")","v":0.10293070329410607},{"$f":"IF('IV. Country level, 1310-2018'!I521<0,'III. GDP shares, 1310-2018'!I523,\"\")","v":""},{"$f":"IF('IV. Country level, 1310-2018'!J521<0,'III. GDP shares, 1310-2018'!J523,\"\")","v":""},null,0.6581823098270988,{"v":0.267007576906854,"d":"26.70%"},{"v":0.20250823357139602,"d":"20.25%"},{"v":0.23742011817622904,"d":"23.74%"},{"v":0.20677378773650956,"d":"20.68%"}]
[1828,{"$f":"IF('IV. Country level, 1310-2018'!C522<0,'III. GDP shares, 1310-2018'!C524,\"\")","v":""},{"$f":"IF('IV. Country level, 1310-2018'!D522<0,'III. GDP shares, 1310-2018'!D524,\"\")","v":""},{"$f":"IF('IV. Country level, 1310-2018'!E522<0,'III. GDP shares, 1310-2018'!E524,\"\")","v":""},{"$f":"IF('IV. Country level, 1310-2018'!F522<0,'III. GDP shares, 1310-2018'!F524,\"\")","v":""},{"$f":"IF('IV. Country level, 1310-2018'!G522<0,'III. GDP shares, 1310-2018'!G524,\"\")","v":""},{"$f":"IF('IV. Country level, 1310-2018'!H522<0,'III. GDP shares, 1310-2018'!H524,\"\")","v":""},{"$f":"IF('IV. Country level, 1310-2018'!I522<0,'III. GDP shares, 1310-2018'!I524,\"\")","v":""},{"$f":"IF('IV. Country level, 1310-2018'!J522<0,'III. GDP shares, 1310-2018'!J524,\"\")","v":0},null,0,{"v":0.29900071522769617,"d":"29.90%"},{"v":0.20250823357139602,"d":"20.25%"},{"v":0.220794619535235,"d":"22.08%"},{"v":0.20677378773650956,"d":"20.68%"}]
[1829,{"$f":"IF('IV. Country level, 1310-2018'!C523<0,'III. GDP shares, 1310-2018'!C525,\"\")","v":""},{"$f":"IF('IV. Country level, 1310-2018'!D523<0,'III. GDP shares, 1310-2018'!D525,\"\")","v":""},{"$f":"IF('IV. Country level, 1310-2018'!E523<0,'III. GDP shares, 1310-2018'!E525,\"\")","v":0.030236672128976457},{"$f":"IF('IV. Country level, 1310-2018'!F523<0,'III. GDP shares, 1310-2018'!F525,\"\")","v":""},{"$f":"IF('IV. Country level, 1310-2018'!G523<0,'III. GDP shares, 1310-2018'!G525,\"\")","v":""},{"$f":"IF('IV. Country level, 1310-2018'!H523<0,'III. GDP shares, 1310-2018'!H525,\"\")","v":""},{"$f":"IF('IV. Country level, 1310-2018'!I523<0,'III. GDP shares, 1310-2018'!I525,\"\")","v":""},{"$f":"IF('IV. Country level, 1310-2018'!J523<0,'III. GDP shares, 1310-2018'!J525,\"\")","v":""},null,0.030236672128976457,{"v":0.26414394300296623,"d":"26.41%"},{"v":0.20250823357139602,"d":"20.25%"},{"v":0.22409827372232333,"d":"22.41%"},{"v":0.20677378773650956,"d":"20.68%"}]
[1830,{"$f":"IF('IV. Country level, 1310-2018'!C524<0,'III. GDP shares, 1310-2018'!C526,\"\")","v":""},{"$f":"IF('IV. Country level, 1310-2018'!D524<0,'III. GDP shares, 1310-2018'!D526,\"\")","v":""},{"$f":"IF('IV. Country level, 1310-2018'!E524<0,'III. GDP shares, 1310-2018'!E526,\"\")","v":""},{"$f":"IF('IV. Country level, 1310-2018'!F524<0,'III. GDP shares, 1310-2018'!F526,\"\")","v":0.20445034564015133},{"$f":"IF('IV. Country level, 1310-2018'!G524<0,'III. GDP shares, 1310-2018'!G526,\"\")","v":""},{"$f":"IF('IV. Country level, 1310-2018'!H524<0,'III. GDP shares, 1310-2018'!H526,\"\")","v":""},{"$f":"IF('IV. Country level, 1310-2018'!I524<0,'III. GDP shares, 1310-2018'!I526,\"\")","v":""},{"$f":"IF('IV. Country level, 1310-2018'!J524<0,'III. GDP shares, 1310-2018'!J526,\"\")","v":""},null,0.20445034564015133,{"v":0.20495996093800775,"d":"20.50%"},{"v":0.20250823357139602,"d":"20.25%"},{"v":0.24472327393105872,"d":"24.47%"},{"v":0.20677378773650956,"d":"20.68%"}]
[1831,{"$f":"IF('IV. Country level, 1310-2018'!C525<0,'III. GDP shares, 1310-2018'!C527,\"\")","v":""},{"$f":"IF('IV. Country level, 1310-2018'!D525<0,'III. GDP shares, 1310-2018'!D527,\"\")","v":0.2365791794699309},{"$f":"IF('IV. Country level, 1310-2018'!E525<0,'III. GDP shares, 1310-2018'!E527,\"\")","v":""},{"$f":"IF('IV. Country level, 1310-2018'!F525<0,'III. GDP shares, 1310-2018'!F527,\"\")","v":0.20223383168110964},{"$f":"IF('IV. Country level, 1310-2018'!G525<0,'III. GDP shares, 1310-2018'!G527,\"\")","v":""},{"$f":"IF('IV. Country level, 1310-2018'!H525<0,'III. GDP shares, 1310-2018'!H527,\"\")","v":0.1030373878187872},{"$f":"IF('IV. Country level, 1310-2018'!I525<0,'III. GDP shares, 1310-2018'!I527,\"\")","v":""},{"$f":"IF('IV. Country level, 1310-2018'!J525<0,'III. GDP shares, 1310-2018'!J527,\"\")","v":""},null,0.5418503989698278,{"v":0.11093391667699366,"d":"11.09%"},{"v":0.20250823357139602,"d":"20.25%"},{"v":0.25852803574259864,"d":"25.85%"},{"v":0.20677378773650956,"d":"20.68%"}]
[1832,{"$f":"IF('IV. Country level, 1310-2018'!C526<0,'III. GDP shares, 1310-2018'!C528,\"\")","v":""},{"$f":"IF('IV. Country level, 1310-2018'!D526<0,'III. GDP shares, 1310-2018'!D528,\"\")","v":""},{"$f":"IF('IV. Country level, 1310-2018'!E526<0,'III. GDP shares, 1310-2018'!E528,\"\")","v":""},{"$f":"IF('IV. Country level, 1310-2018'!F526<0,'III. GDP shares, 1310-2018'!F528,\"\")","v":""},{"$f":"IF('IV. Country level, 1310-2018'!G526<0,'III. GDP shares, 1310-2018'!G528,\"\")","v":""},{"$f":"IF('IV. Country level, 1310-2018'!H526<0,'III. GDP shares, 1310-2018'!H528,\"\")","v":""},{"$f":"IF('IV. Country level, 1310-2018'!I526<0,'III. GDP shares, 1310-2018'!I528,\"\")","v":""},{"$f":"IF('IV. Country level, 1310-2018'!J526<0,'III. GDP shares, 1310-2018'!J528,\"\")","v":0},null,0,{"v":0.13711887133305053,"d":"13.71%"},{"v":0.20250823357139602,"d":"20.25%"},{"v":0.25427061636640713,"d":"25.43%"},{"v":0.20677378773650956,"d":"20.68%"}]
[1833,{"$f":"IF('IV. Country level, 1310-2018'!C527<0,'III. GDP shares, 1310-2018'!C529,\"\")","v":""},{"$f":"IF('IV. Country level, 1310-2018'!D527<0,'III. GDP shares, 1310-2018'!D529,\"\")","v":""},{"$f":"IF('IV. Country level, 1310-2018'!E527<0,'III. GDP shares, 1310-2018'!E529,\"\")","v":""},{"$f":"IF('IV. Country level, 1310-2018'!F527<0,'III. GDP shares, 1310-2018'!F529,\"\")","v":""},{"$f":"IF('IV. Country level, 1310-2018'!G527<0,'III. GDP shares, 1310-2018'!G529,\"\")","v":""},{"$f":"IF('IV. Country level, 1310-2018'!H527<0,'III. GDP shares, 1310-2018'!H529,\"\")","v":""},{"$f":"IF('IV. Country level, 1310-2018'!I527<0,'III. GDP shares, 1310-2018'!I529,\"\")","v":""},{"$f":"IF('IV. Country level, 1310-2018'!J527<0,'III. GDP shares, 1310-2018'!J529,\"\")","v":""},null,0,{"v":0.20328636567369449,"d":"20.33%"},{"v":0.20250823357139602,"d":"20.25%"},{"v":0.24658124705571755,"d":"24.66%"},{"v":0.20677378773650956,"d":"20.68%"}]
[1834,{"$f":"IF('IV. Country level, 1310-2018'!C528<0,'III. GDP shares, 1310-2018'!C530,\"\")","v":""},{"$f":"IF('IV. Country level, 1310-2018'!D528<0,'III. GDP shares, 1310-2018'!D530,\"\")","v":""},{"$f":"IF('IV. Country level, 1310-2018'!E528<0,'III. GDP shares, 1310-2018'!E530,\"\")","v":""},{"$f":"IF('IV. Country level, 1310-2018'!F528<0,'III. GDP shares, 1310-2018'!F530,\"\")","v":""},{"$f":"IF('IV. Country level, 1310-2018'!G528<0,'III. GDP shares, 1310-2018'!G530,\"\")","v":""},{"$f":"IF('IV. Country level, 1310-2018'!H528<0,'III. GDP shares, 1310-2018'!H530,\"\")","v":""},{"$f":"IF('IV. Country level, 1310-2018'!I528<0,'III. GDP shares, 1310-2018'!I530,\"\")","v":""},{"$f":"IF('IV. Country level, 1310-2018'!J528<0,'III. GDP shares, 1310-2018'!J530,\"\")","v":0},null,0,{"v":0.24153337048264475,"d":"24.15%"},{"v":0.20250823357139602,"d":"20.25%"},{"v":0.226208551658069,"d":"22.62%"},{"v":0.20677378773650956,"d":"20.68%"}]
[1835,{"$f":"IF('IV. Country level, 1310-2018'!C529<0,'III. GDP shares, 1310-2018'!C531,\"\")","v":""},{"$f":"IF('IV. Country level, 1310-2018'!D529<0,'III. GDP shares, 1310-2018'!D531,\"\")","v":""},{"$f":"IF('IV. Country level, 1310-2018'!E529<0,'III. GDP shares, 1310-2018'!E531,\"\")","v":""},{"$f":"IF('IV. Country level, 1310-2018'!F529<0,'III. GDP shares, 1310-2018'!F531,\"\")","v":""},{"$f":"IF('IV. Country level, 1310-2018'!G529<0,'III. GDP shares, 1310-2018'!G531,\"\")","v":""},{"$f":"IF('IV. Country level, 1310-2018'!H529<0,'III. GDP shares, 1310-2018'!H531,\"\")","v":0.11446166524926221},{"$f":"IF('IV. Country level, 1310-2018'!I529<0,'III. GDP shares, 1310-2018'!I531,\"\")","v":0.0688330173431359},{"$f":"IF('IV. Country level, 1310-2018'!J529<0,'III. GDP shares, 1310-2018'!J531,\"\")","v":""},null,0.18329468259239812,{"v":0.19149900481648294,"d":"19.15%"},{"v":0.20250823357139602,"d":"20.25%"},{"v":0.2365451059568426,"d":"23.65%"},{"v":0.20677378773650956,"d":"20.68%"}]
[1836,{"$f":"IF('IV. Country level, 1310-2018'!C530<0,'III. GDP shares, 1310-2018'!C532,\"\")","v":0.13476768906972714},{"$f":"IF('IV. Country level, 1310-2018'!D530<0,'III. GDP shares, 1310-2018'!D532,\"\")","v":0.24107903734279634},{"$f":"IF('IV. Country level, 1310-2018'!E530<0,'III. GDP shares, 1310-2018'!E532,\"\")","v":""},{"$f":"IF('IV. Country level, 1310-2018'!F530<0,'III. GDP shares, 1310-2018'!F532,\"\")","v":""},{"$f":"IF('IV. Country level, 1310-2018'!G530<0,'III. GDP shares, 1310-2018'!G532,\"\")","v":""},{"$f":"IF('IV. Country level, 1310-2018'!H530<0,'III. GDP shares, 1310-2018'!H532,\"\")","v":0.11756240610096069},{"$f":"IF('IV. Country level, 1310-2018'!I530<0,'III. GDP shares, 1310-2018'!I532,\"\")","v":""},{"$f":"IF('IV. Country level, 1310-2018'!J530<0,'III. GDP shares, 1310-2018'!J532,\"\")","v":0},null,0.49340913251348417,{"v":0.28826974725742865,"d":"28.83%"},{"v":0.20250823357139602,"d":"20.25%"},{"v":0.2453841875509304,"d":"24.54%"},{"v":0.20677378773650956,"d":"20.68%"}]
[1837,{"$f":"IF('IV. Country level, 1310-2018'!C531<0,'III. GDP shares, 1310-2018'!C533,\"\")","v":0.13481693717784893},{"$f":"IF('IV. Country level, 1310-2018'!D531<0,'III. GDP shares, 1310-2018'!D533,\"\")","v":""},{"$f":"IF('IV. Country level, 1310-2018'!E531<0,'III. GDP shares, 1310-2018'!E533,\"\")","v":""},{"$f":"IF('IV. Country level, 1310-2018'!F531<0,'III. GDP shares, 1310-2018'!F533,\"\")","v":""},{"$f":"IF('IV. Country level, 1310-2018'!G531<0,'III. GDP shares, 1310-2018'!G533,\"\")","v":0.2162160808533702},{"$f":"IF('IV. Country level, 1310-2018'!H531<0,'III. GDP shares, 1310-2018'!H533,\"\")","v":0.12114636127158404},{"$f":"IF('IV. Country level, 1310-2018'!I531<0,'III. GDP shares, 1310-2018'!I533,\"\")","v":""},{"$f":"IF('IV. Country level, 1310-2018'!J531<0,'III. GDP shares, 1310-2018'!J533,\"\")","v":""},null,0.4721793793028032,{"v":0.28826974725742865,"d":"28.83%"},{"v":0.20250823357139602,"d":"20.25%"},{"v":0.2756872178539607,"d":"27.57%"},{"v":0.20677378773650956,"d":"20.68%"}]
[1838,{"$f":"IF('IV. Country level, 1310-2018'!C532<0,'III. GDP shares, 1310-2018'!C534,\"\")","v":""},{"$f":"IF('IV. Country level, 1310-2018'!D532<0,'III. GDP shares, 1310-2018'!D534,\"\")","v":""},{"$f":"IF('IV. Country level, 1310-2018'!E532<0,'III. GDP shares, 1310-2018'!E534,\"\")","v":""},{"$f":"IF('IV. Country level, 1310-2018'!F532<0,'III. GDP shares, 1310-2018'!F534,\"\")","v":0.19160983930669523},{"$f":"IF('IV. Country level, 1310-2018'!G532<0,'III. GDP shares, 1310-2018'!G534,\"\")","v":""},{"$f":"IF('IV. Country level, 1310-2018'!H532<0,'III. GDP shares, 1310-2018'!H534,\"\")","v":""},{"$f":"IF('IV. Country level, 1310-2018'!I532<0,'III. GDP shares, 1310-2018'!I534,\"\")","v":""},{"$f":"IF('IV. Country level, 1310-2018'!J532<0,'III. GDP shares, 1310-2018'!J534,\"\")","v":""},null,0.19160983930669523,{"v":0.28826974725742865,"d":"28.83%"},{"v":0.20250823357139602,"d":"20.25%"},{"v":0.2924375674912737,"d":"29.24%"},{"v":0.20677378773650956,"d":"20.68%"}]
[1839,{"$f":"IF('IV. Country level, 1310-2018'!C533<0,'III. GDP shares, 1310-2018'!C535,\"\")","v":""},{"$f":"IF('IV. Country level, 1310-2018'!D533<0,'III. GDP shares, 1310-2018'!D535,\"\")","v":0.24736292355427225},{"$f":"IF('IV. Country level, 1310-2018'!E533<0,'III. GDP shares, 1310-2018'!E535,\"\")","v":0.02926957922945399},{"$f":"IF('IV. Country level, 1310-2018'!F533<0,'III. GDP shares, 1310-2018'!F535,\"\")","v":0.19148858788314174},{"$f":"IF('IV. Country level, 1310-2018'!G533<0,'III. GDP shares, 1310-2018'!G535,\"\")","v":0.20927410641975222},{"$f":"IF('IV. Country level, 1310-2018'!H533<0,'III. GDP shares, 1310-2018'!H535,\"\")","v":""},{"$f":"IF('IV. Country level, 1310-2018'!I533<0,'III. GDP shares, 1310-2018'!I535,\"\")","v":""},{"$f":"IF('IV. Country level, 1310-2018'!J533<0,'III. GDP shares, 1310-2018'!J535,\"\")","v":0},null,0.6773951970866202,{"v":0.2897455892369857,"d":"28.97%"},{"v":0.20250823357139602,"d":"20.25%"},{"$f":"AVERAGE(K519:K551)","v":{"v":0.29144582117179696,"d":"29.14%"}},{"v":0.20677378773650956,"d":"20.68%"}]
[1840,{"$f":"IF('IV. Country level, 1310-2018'!C534<0,'III. GDP shares, 1310-2018'!C536,\"\")","v":""},{"$f":"IF('IV. Country level, 1310-2018'!D534<0,'III. GDP shares, 1310-2018'!D536,\"\")","v":""},{"$f":"IF('IV. Country level, 1310-2018'!E534<0,'III. GDP shares, 1310-2018'!E536,\"\")","v":""},{"$f":"IF('IV. Country level, 1310-2018'!F534<0,'III. GDP shares, 1310-2018'!F536,\"\")","v":""},{"$f":"IF('IV. Country level, 1310-2018'!G534<0,'III. GDP shares, 1310-2018'!G536,\"\")","v":""},{"$f":"IF('IV. Country level, 1310-2018'!H534<0,'III. GDP shares, 1310-2018'!H536,\"\")","v":""},{"$f":"IF('IV. Country level, 1310-2018'!I534<0,'III. GDP shares, 1310-2018'!I536,\"\")","v":""},{"$f":"IF('IV. Country level, 1310-2018'!J534<0,'III. GDP shares, 1310-2018'!J536,\"\")","v":0},null,0,{"v":0.2465397869250343,"d":"24.65%"},{"v":0.20250823357139602,"d":"20.25%"},{"v":0.2856454966767007,"d":"28.56%"},{"v":0.20677378773650956,"d":"20.68%"}]
[1841,{"$f":"IF('IV. Country level, 1310-2018'!C535<0,'III. GDP shares, 1310-2018'!C537,\"\")","v":""},{"$f":"IF('IV. Country level, 1310-2018'!D535<0,'III. GDP shares, 1310-2018'!D537,\"\")","v":""},{"$f":"IF('IV. Country level, 1310-2018'!E535<0,'III. GDP shares, 1310-2018'!E537,\"\")","v":""},{"$f":"IF('IV. Country level, 1310-2018'!F535<0,'III. GDP shares, 1310-2018'!F537,\"\")","v":""},{"$f":"IF('IV. Country level, 1310-2018'!G535<0,'III. GDP shares, 1310-2018'!G537,\"\")","v":""},{"$f":"IF('IV. Country level, 1310-2018'!H535<0,'III. GDP shares, 1310-2018'!H537,\"\")","v":""},{"$f":"IF('IV. Country level, 1310-2018'!I535<0,'III. GDP shares, 1310-2018'!I537,\"\")","v":""},{"$f":"IF('IV. Country level, 1310-2018'!J535<0,'III. GDP shares, 1310-2018'!J537,\"\")","v":0},null,0,{"v":0.17908558988177672,"d":"17.91%"},{"v":0.20250823357139602,"d":"20.25%"},{"v":0.2760122108971876,"d":"27.60%"},{"v":0.20677378773650956,"d":"20.68%"}]
[1842,{"$f":"IF('IV. Country level, 1310-2018'!C536<0,'III. GDP shares, 1310-2018'!C538,\"\")","v":""},{"$f":"IF('IV. Country level, 1310-2018'!D536<0,'III. GDP shares, 1310-2018'!D538,\"\")","v":""},{"$f":"IF('IV. Country level, 1310-2018'!E536<0,'III. GDP shares, 1310-2018'!E538,\"\")","v":""},{"$f":"IF('IV. Country level, 1310-2018'!F536<0,'III. GDP shares, 1310-2018'!F538,\"\")","v":0.19362557644929665},{"$f":"IF('IV. Country level, 1310-2018'!G536<0,'III. GDP shares, 1310-2018'!G538,\"\")","v":""},{"$f":"IF('IV. Country level, 1310-2018'!H536<0,'III. GDP shares, 1310-2018'!H538,\"\")","v":""},{"$f":"IF('IV. Country level, 1310-2018'!I536<0,'III. GDP shares, 1310-2018'!I538,\"\")","v":""},{"$f":"IF('IV. Country level, 1310-2018'!J536<0,'III. GDP shares, 1310-2018'!J538,\"\")","v":""},null,0.19362557644929665,{"v":0.24662568373059954,"d":"24.66%"},{"v":0.20250823357139602,"d":"20.25%"},{"v":0.26861835012224494,"d":"26.86%"},{"v":0.20677378773650956,"d":"20.68%"}]
[1843,{"$f":"IF('IV. Country level, 1310-2018'!C537<0,'III. GDP shares, 1310-2018'!C539,\"\")","v":""},{"$f":"IF('IV. Country level, 1310-2018'!D537<0,'III. GDP shares, 1310-2018'!D539,\"\")","v":""},{"$f":"IF('IV. Country level, 1310-2018'!E537<0,'III. GDP shares, 1310-2018'!E539,\"\")","v":""},{"$f":"IF('IV. Country level, 1310-2018'!F537<0,'III. GDP shares, 1310-2018'!F539,\"\")","v":0.19096851632982487},{"$f":"IF('IV. Country level, 1310-2018'!G537<0,'III. GDP shares, 1310-2018'!G539,\"\")","v":""},{"$f":"IF('IV. Country level, 1310-2018'!H537<0,'III. GDP shares, 1310-2018'!H539,\"\")","v":""},{"$f":"IF('IV. Country level, 1310-2018'!I537<0,'III. GDP shares, 1310-2018'!I539,\"\")","v":""},{"$f":"IF('IV. Country level, 1310-2018'!J537<0,'III. GDP shares, 1310-2018'!J539,\"\")","v":""},null,0.19096851632982487,{"v":0.26277259994232566,"d":"26.28%"},{"v":0.20250823357139602,"d":"20.25%"},{"v":0.2594546866824866,"d":"25.95%"},{"v":0.20677378773650956,"d":"20.68%"}]
[1844,{"$f":"IF('IV. Country level, 1310-2018'!C538<0,'III. GDP shares, 1310-2018'!C540,\"\")","v":""},{"$f":"IF('IV. Country level, 1310-2018'!D538<0,'III. GDP shares, 1310-2018'!D540,\"\")","v":""},{"$f":"IF('IV. Country level, 1310-2018'!E538<0,'III. GDP shares, 1310-2018'!E540,\"\")","v":""},{"$f":"IF('IV. Country level, 1310-2018'!F538<0,'III. GDP shares, 1310-2018'!F540,\"\")","v":""},{"$f":"IF('IV. Country level, 1310-2018'!G538<0,'III. GDP shares, 1310-2018'!G540,\"\")","v":""},{"$f":"IF('IV. Country level, 1310-2018'!H538<0,'III. GDP shares, 1310-2018'!H540,\"\")","v":""},{"$f":"IF('IV. Country level, 1310-2018'!I538<0,'III. GDP shares, 1310-2018'!I540,\"\")","v":""},{"$f":"IF('IV. Country level, 1310-2018'!J538<0,'III. GDP shares, 1310-2018'!J540,\"\")","v":0},null,0,{"v":0.343595759651349,"d":"34.36%"},{"v":0.20250823357139602,"d":"20.25%"},{"v":0.2542304248279437,"d":"25.42%"},{"v":0.20677378773650956,"d":"20.68%"}]
[1845,{"$f":"IF('IV. Country level, 1310-2018'!C539<0,'III. GDP shares, 1310-2018'!C541,\"\")","v":""},{"$f":"IF('IV. Country level, 1310-2018'!D539<0,'III. GDP shares, 1310-2018'!D541,\"\")","v":0.2355323786490772},{"$f":"IF('IV. Country level, 1310-2018'!E539<0,'III. GDP shares, 1310-2018'!E541,\"\")","v":0.02766594021611825},{"$f":"IF('IV. Country level, 1310-2018'!F539<0,'III. GDP shares, 1310-2018'!F541,\"\")","v":0.18646107418975646},{"$f":"IF('IV. Country level, 1310-2018'!G539<0,'III. GDP shares, 1310-2018'!G541,\"\")","v":0.21473110319350305},{"$f":"IF('IV. Country level, 1310-2018'!H539<0,'III. GDP shares, 1310-2018'!H541,\"\")","v":""},{"$f":"IF('IV. Country level, 1310-2018'!I539<0,'III. GDP shares, 1310-2018'!I541,\"\")","v":""},{"$f":"IF('IV. Country level, 1310-2018'!J539<0,'III. GDP shares, 1310-2018'!J541,\"\")","v":0},null,0.664390496248455,{"v":0.343595759651349,"d":"34.36%"},{"v":0.20250823357139602,"d":"20.25%"},{"v":0.2616987793026681,"d":"26.17%"},{"v":0.20677378773650956,"d":"20.68%"}]
[1846,{"$f":"IF('IV. Country level, 1310-2018'!C540<0,'III. GDP shares, 1310-2018'!C542,\"\")","v":0.12512117348674828},{"$f":"IF('IV. Country level, 1310-2018'!D540<0,'III. GDP shares, 1310-2018'!D542,\"\")","v":0.24441675776779365},{"$f":"IF('IV. Country level, 1310-2018'!E540<0,'III. GDP shares, 1310-2018'!E542,\"\")","v":0.02705321957031577},{"$f":"IF('IV. Country level, 1310-2018'!F540<0,'III. GDP shares, 1310-2018'!F542,\"\")","v":0.18380728302134317},{"$f":"IF('IV. Country level, 1310-2018'!G540<0,'III. GDP shares, 1310-2018'!G542,\"\")","v":""},{"$f":"IF('IV. Country level, 1310-2018'!H540<0,'III. GDP shares, 1310-2018'!H542,\"\")","v":0.14885799623157514},{"$f":"IF('IV. Country level, 1310-2018'!I540<0,'III. GDP shares, 1310-2018'!I542,\"\")","v":0.061167180490927356},{"$f":"IF('IV. Country level, 1310-2018'!J540<0,'III. GDP shares, 1310-2018'!J542,\"\")","v":""},null,0.7904236105687034,{"v":0.33869140306943996,"d":"33.87%"},{"v":0.20250823357139602,"d":"20.25%"},{"v":0.2671662242578397,"d":"26.72%"},{"v":0.20677378773650956,"d":"20.68%"}]
[1847,{"$f":"IF('IV. Country level, 1310-2018'!C541<0,'III. GDP shares, 1310-2018'!C543,\"\")","v":0.12214334679934796},{"$f":"IF('IV. Country level, 1310-2018'!D541<0,'III. GDP shares, 1310-2018'!D543,\"\")","v":0.23770704630218475},{"$f":"IF('IV. Country level, 1310-2018'!E541<0,'III. GDP shares, 1310-2018'!E543,\"\")","v":0.026242943490729632},{"$f":"IF('IV. Country level, 1310-2018'!F541<0,'III. GDP shares, 1310-2018'!F543,\"\")","v":0.17966878137090103},{"$f":"IF('IV. Country level, 1310-2018'!G541<0,'III. GDP shares, 1310-2018'!G543,\"\")","v":""},{"$f":"IF('IV. Country level, 1310-2018'!H541<0,'III. GDP shares, 1310-2018'!H543,\"\")","v":""},{"$f":"IF('IV. Country level, 1310-2018'!I541<0,'III. GDP shares, 1310-2018'!I543,\"\")","v":""},{"$f":"IF('IV. Country level, 1310-2018'!J541<0,'III. GDP shares, 1310-2018'!J543,\"\")","v":""},null,0.5657621179631633,{"v":0.3114101864508935,"d":"31.14%"},{"v":0.20250823357139602,"d":"20.25%"},{"v":0.26742844315253866,"d":"26.74%"},{"v":0.20677378773650956,"d":"20.68%"}]
[1848,{"$f":"IF('IV. Country level, 1310-2018'!C542<0,'III. GDP shares, 1310-2018'!C544,\"\")","v":""},{"$f":"IF('IV. Country level, 1310-2018'!D542<0,'III. GDP shares, 1310-2018'!D544,\"\")","v":""},{"$f":"IF('IV. Country level, 1310-2018'!E542<0,'III. GDP shares, 1310-2018'!E544,\"\")","v":""},{"$f":"IF('IV. Country level, 1310-2018'!F542<0,'III. GDP shares, 1310-2018'!F544,\"\")","v":""},{"$f":"IF('IV. Country level, 1310-2018'!G542<0,'III. GDP shares, 1310-2018'!G544,\"\")","v":""},{"$f":"IF('IV. Country level, 1310-2018'!H542<0,'III. GDP shares, 1310-2018'!H544,\"\")","v":""},{"$f":"IF('IV. Country level, 1310-2018'!I542<0,'III. GDP shares, 1310-2018'!I544,\"\")","v":""},{"$f":"IF('IV. Country level, 1310-2018'!J542<0,'III. GDP shares, 1310-2018'!J544,\"\")","v":""},null,0,{"v":0.3601396567165406,"d":"36.01%"},{"v":0.20250823357139602,"d":"20.25%"},{"v":0.2628884268463607,"d":"26.29%"},{"v":0.20677378773650956,"d":"20.68%"}]
[1849,{"$f":"IF('IV. Country level, 1310-2018'!C543<0,'III. GDP shares, 1310-2018'!C545,\"\")","v":""},{"$f":"IF('IV. Country level, 1310-2018'!D543<0,'III. GDP shares, 1310-2018'!D545,\"\")","v":""},{"$f":"IF('IV. Country level, 1310-2018'!E543<0,'III. GDP shares, 1310-2018'!E545,\"\")","v":""},{"$f":"IF('IV. Country level, 1310-2018'!F543<0,'III. GDP shares, 1310-2018'!F545,\"\")","v":""},{"$f":"IF('IV. Country level, 1310-2018'!G543<0,'III. GDP shares, 1310-2018'!G545,\"\")","v":""},{"$f":"IF('IV. Country level, 1310-2018'!H543<0,'III. GDP shares, 1310-2018'!H545,\"\")","v":0.159295080375933},{"$f":"IF('IV. Country level, 1310-2018'!I543<0,'III. GDP shares, 1310-2018'!I545,\"\")","v":""},{"$f":"IF('IV. Country level, 1310-2018'!J543<0,'III. GDP shares, 1310-2018'!J545,\"\")","v":0},null,0.159295080375933,{"v":0.30689668476746096,"d":"30.69%"},{"v":0.20250823357139602,"d":"20.25%"},{"v":0.26961250958222627,"d":"26.96%"},{"v":0.20677378773650956,"d":"20.68%"}]
[1850,{"$f":"IF('IV. Country level, 1310-2018'!C544<0,'III. GDP shares, 1310-2018'!C546,\"\")","v":""},{"$f":"IF('IV. Country level, 1310-2018'!D544<0,'III. GDP shares, 1310-2018'!D546,\"\")","v":""},{"$f":"IF('IV. Country level, 1310-2018'!E544<0,'III. GDP shares, 1310-2018'!E546,\"\")","v":""},{"$f":"IF('IV. Country level, 1310-2018'!F544<0,'III. GDP shares, 1310-2018'!F546,\"\")","v":""},{"$f":"IF('IV. Country level, 1310-2018'!G544<0,'III. GDP shares, 1310-2018'!G546,\"\")","v":""},{"$f":"IF('IV. Country level, 1310-2018'!H544<0,'III. GDP shares, 1310-2018'!H546,\"\")","v":""},{"$f":"IF('IV. Country level, 1310-2018'!I544<0,'III. GDP shares, 1310-2018'!I546,\"\")","v":""},{"$f":"IF('IV. Country level, 1310-2018'!J544<0,'III. GDP shares, 1310-2018'!J546,\"\")","v":0},null,0,{"v":0.33683616897193186,"d":"33.68%"},{"v":0.20250823357139602,"d":"20.25%"},{"v":0.2825756460306996,"d":"28.26%"},{"v":0.20677378773650956,"d":"20.68%"}]
[1851,{"$f":"IF('IV. Country level, 1310-2018'!C545<0,'III. GDP shares, 1310-2018'!C547,\"\")","v":""},{"$f":"IF('IV. Country level, 1310-2018'!D545<0,'III. GDP shares, 1310-2018'!D547,\"\")","v":""},{"$f":"IF('IV. Country level, 1310-2018'!E545<0,'III. GDP shares, 1310-2018'!E547,\"\")","v":""},{"$f":"IF('IV. Country level, 1310-2018'!F545<0,'III. GDP shares, 1310-2018'!F547,\"\")","v":0.17490251169944734},{"$f":"IF('IV. Country level, 1310-2018'!G545<0,'III. GDP shares, 1310-2018'!G547,\"\")","v":""},{"$f":"IF('IV. Country level, 1310-2018'!H545<0,'III. GDP shares, 1310-2018'!H547,\"\")","v":0.16620378016008194},{"$f":"IF('IV. Country level, 1310-2018'!I545<0,'III. GDP shares, 1310-2018'!I547,\"\")","v":""},{"$f":"IF('IV. Country level, 1310-2018'!J545<0,'III. GDP shares, 1310-2018'!J547,\"\")","v":0},null,0.3411062918595293,{"v":0.3349789432673841,"d":"33.50%"},{"v":0.20250823357139602,"d":"20.25%"},{"v":0.2949416704367236,"d":"29.49%"},{"v":0.20677378773650956,"d":"20.68%"}]
[1852,{"$f":"IF('IV. Country level, 1310-2018'!C546<0,'III. GDP shares, 1310-2018'!C548,\"\")","v":0.11967537883727847},{"$f":"IF('IV. Country level, 1310-2018'!D546<0,'III. GDP shares, 1310-2018'!D548,\"\")","v":""},{"$f":"IF('IV. Country level, 1310-2018'!E546<0,'III. GDP shares, 1310-2018'!E548,\"\")","v":""},{"$f":"IF('IV. Country level, 1310-2018'!F546<0,'III. GDP shares, 1310-2018'!F548,\"\")","v":0.17201431376761894},{"$f":"IF('IV. Country level, 1310-2018'!G546<0,'III. GDP shares, 1310-2018'!G548,\"\")","v":""},{"$f":"IF('IV. Country level, 1310-2018'!H546<0,'III. GDP shares, 1310-2018'!H548,\"\")","v":""},{"$f":"IF('IV. Country level, 1310-2018'!I546<0,'III. GDP shares, 1310-2018'!I548,\"\")","v":""},{"$f":"IF('IV. Country level, 1310-2018'!J546<0,'III. GDP shares, 1310-2018'!J548,\"\")","v":""},null,0.2916896926048974,{"v":0.3622033590079231,"d":"36.22%"},{"v":0.20250823357139602,"d":"20.25%"},{"v":0.2893872861157419,"d":"28.94%"},{"v":0.20677378773650956,"d":"20.68%"}]
[1853,{"$f":"IF('IV. Country level, 1310-2018'!C547<0,'III. GDP shares, 1310-2018'!C549,\"\")","v":0.12023391959553899},{"$f":"IF('IV. Country level, 1310-2018'!D547<0,'III. GDP shares, 1310-2018'!D549,\"\")","v":0.2425839294199948},{"$f":"IF('IV. Country level, 1310-2018'!E547<0,'III. GDP shares, 1310-2018'!E549,\"\")","v":0.02640061204269249},{"$f":"IF('IV. Country level, 1310-2018'!F547<0,'III. GDP shares, 1310-2018'!F549,\"\")","v":0.16949973313712294},{"$f":"IF('IV. Country level, 1310-2018'!G547<0,'III. GDP shares, 1310-2018'!G549,\"\")","v":0.2019552757327581},{"$f":"IF('IV. Country level, 1310-2018'!H547<0,'III. GDP shares, 1310-2018'!H549,\"\")","v":0.1794321882616566},{"$f":"IF('IV. Country level, 1310-2018'!I547<0,'III. GDP shares, 1310-2018'!I549,\"\")","v":0.05989434181023611},{"$f":"IF('IV. Country level, 1310-2018'!J547<0,'III. GDP shares, 1310-2018'!J549,\"\")","v":""},null,1,{"v":0.3475777606108487,"d":"34.76%"},{"v":0.20250823357139602,"d":"20.25%"},{"v":0.27443549422139385,"d":"27.44%"},{"v":0.20677378773650956,"d":"20.68%"}]
[1854,{"$f":"IF('IV. Country level, 1310-2018'!C548<0,'III. GDP shares, 1310-2018'!C550,\"\")","v":0.11795060925908497},{"$f":"IF('IV. Country level, 1310-2018'!D548<0,'III. GDP shares, 1310-2018'!D550,\"\")","v":0.24064897193776308},{"$f":"IF('IV. Country level, 1310-2018'!E548<0,'III. GDP shares, 1310-2018'!E550,\"\")","v":0.026245386842627182},{"$f":"IF('IV. Country level, 1310-2018'!F548<0,'III. GDP shares, 1310-2018'!F550,\"\")","v":0.1679165699918535},{"$f":"IF('IV. Country level, 1310-2018'!G548<0,'III. GDP shares, 1310-2018'!G550,\"\")","v":""},{"$f":"IF('IV. Country level, 1310-2018'!H548<0,'III. GDP shares, 1310-2018'!H550,\"\")","v":""},{"$f":"IF('IV. Country level, 1310-2018'!I548<0,'III. GDP shares, 1310-2018'!I550,\"\")","v":""},{"$f":"IF('IV. Country level, 1310-2018'!J548<0,'III. GDP shares, 1310-2018'!J550,\"\")","v":0},null,0.5527615380313287,{"v":0.3475777606108487,"d":"34.76%"},{"v":0.20250823357139602,"d":"20.25%"},{"v":0.26012702818191497,"d":"26.01%"},{"v":0.20677378773650956,"d":"20.68%"}]
[1855,{"$f":"IF('IV. Country level, 1310-2018'!C549<0,'III. GDP shares, 1310-2018'!C551,\"\")","v":""},{"$f":"IF('IV. Country level, 1310-2018'!D549<0,'III. GDP shares, 1310-2018'!D551,\"\")","v":""},{"$f":"IF('IV. Country level, 1310-2018'!E549<0,'III. GDP shares, 1310-2018'!E551,\"\")","v":0.02651743674796024},{"$f":"IF('IV. Country level, 1310-2018'!F549<0,'III. GDP shares, 1310-2018'!F551,\"\")","v":0.16405347343581297},{"$f":"IF('IV. Country level, 1310-2018'!G549<0,'III. GDP shares, 1310-2018'!G551,\"\")","v":""},{"$f":"IF('IV. Country level, 1310-2018'!H549<0,'III. GDP shares, 1310-2018'!H551,\"\")","v":""},{"$f":"IF('IV. Country level, 1310-2018'!I549<0,'III. GDP shares, 1310-2018'!I551,\"\")","v":""},{"$f":"IF('IV. Country level, 1310-2018'!J549<0,'III. GDP shares, 1310-2018'!J551,\"\")","v":0},null,0.1905709101837732,{"v":0.29884829034520166,"d":"29.88%"},{"v":0.20250823357139602,"d":"20.25%"},{"v":0.2615351251560064,"d":"26.15%"},{"v":0.20677378773650956,"d":"20.68%"}]
[1856,{"$f":"IF('IV. Country level, 1310-2018'!C550<0,'III. GDP shares, 1310-2018'!C552,\"\")","v":""},{"$f":"IF('IV. Country level, 1310-2018'!D550<0,'III. GDP shares, 1310-2018'!D552,\"\")","v":""},{"$f":"IF('IV. Country level, 1310-2018'!E550<0,'III. GDP shares, 1310-2018'!E552,\"\")","v":""},{"$f":"IF('IV. Country level, 1310-2018'!F550<0,'III. GDP shares, 1310-2018'!F552,\"\")","v":""},{"$f":"IF('IV. Country level, 1310-2018'!G550<0,'III. GDP shares, 1310-2018'!G552,\"\")","v":""},{"$f":"IF('IV. Country level, 1310-2018'!H550<0,'III. GDP shares, 1310-2018'!H552,\"\")","v":""},{"$f":"IF('IV. Country level, 1310-2018'!I550<0,'III. GDP shares, 1310-2018'!I552,\"\")","v":0.056915891596412506},{"$f":"IF('IV. Country level, 1310-2018'!J550<0,'III. GDP shares, 1310-2018'!J552,\"\")","v":""},null,0.056915891596412506,{"v":0.2731621886791713,"d":"27.32%"},{"v":0.20250823357139602,"d":"20.25%"},{"v":0.2505210889958833,"d":"25.05%"},{"v":0.20677378773650956,"d":"20.68%"}]
[1857,{"$f":"IF('IV. Country level, 1310-2018'!C551<0,'III. GDP shares, 1310-2018'!C553,\"\")","v":""},{"$f":"IF('IV. Country level, 1310-2018'!D551<0,'III. GDP shares, 1310-2018'!D553,\"\")","v":""},{"$f":"IF('IV. Country level, 1310-2018'!E551<0,'III. GDP shares, 1310-2018'!E553,\"\")","v":""},{"$f":"IF('IV. Country level, 1310-2018'!F551<0,'III. GDP shares, 1310-2018'!F553,\"\")","v":""},{"$f":"IF('IV. Country level, 1310-2018'!G551<0,'III. GDP shares, 1310-2018'!G553,\"\")","v":""},{"$f":"IF('IV. Country level, 1310-2018'!H551<0,'III. GDP shares, 1310-2018'!H553,\"\")","v":""},{"$f":"IF('IV. Country level, 1310-2018'!I551<0,'III. GDP shares, 1310-2018'!I553,\"\")","v":""},{"$f":"IF('IV. Country level, 1310-2018'!J551<0,'III. GDP shares, 1310-2018'!J553,\"\")","v":""},null,0,{"v":0.1997024270544834,"d":"19.97%"},{"v":0.20250823357139602,"d":"20.25%"},{"v":0.2572367022548573,"d":"25.72%"},{"v":0.20677378773650956,"d":"20.68%"}]
[1858,{"$f":"IF('IV. Country level, 1310-2018'!C552<0,'III. GDP shares, 1310-2018'!C554,\"\")","v":""},{"$f":"IF('IV. Country level, 1310-2018'!D552<0,'III. GDP shares, 1310-2018'!D554,\"\")","v":""},{"$f":"IF('IV. Country level, 1310-2018'!E552<0,'III. GDP shares, 1310-2018'!E554,\"\")","v":""},{"$f":"IF('IV. Country level, 1310-2018'!F552<0,'III. GDP shares, 1310-2018'!F554,\"\")","v":""},{"$f":"IF('IV. Country level, 1310-2018'!G552<0,'III. GDP shares, 1310-2018'!G554,\"\")","v":""},{"$f":"IF('IV. Country level, 1310-2018'!H552<0,'III. GDP shares, 1310-2018'!H554,\"\")","v":""},{"$f":"IF('IV. Country level, 1310-2018'!I552<0,'III. GDP shares, 1310-2018'!I554,\"\")","v":""},{"$f":"IF('IV. Country level, 1310-2018'!J552<0,'III. GDP shares, 1310-2018'!J554,\"\")","v":0},null,0,{"v":0.15594444985942288,"d":"15.59%"},{"v":0.20250823357139602,"d":"20.25%"},{"v":0.2588719729549042,"d":"25.89%"},{"v":0.20677378773650956,"d":"20.68%"}]
[1859,{"$f":"IF('IV. Country level, 1310-2018'!C553<0,'III. GDP shares, 1310-2018'!C555,\"\")","v":0.1118869809426848},{"$f":"IF('IV. Country level, 1310-2018'!D553<0,'III. GDP shares, 1310-2018'!D555,\"\")","v":""},{"$f":"IF('IV. Country level, 1310-2018'!E553<0,'III. GDP shares, 1310-2018'!E555,\"\")","v":""},{"$f":"IF('IV. Country level, 1310-2018'!F553<0,'III. GDP shares, 1310-2018'!F555,\"\")","v":""},{"$f":"IF('IV. Country level, 1310-2018'!G553<0,'III. GDP shares, 1310-2018'!G555,\"\")","v":""},{"$f":"IF('IV. Country level, 1310-2018'!H553<0,'III. GDP shares, 1310-2018'!H555,\"\")","v":""},{"$f":"IF('IV. Country level, 1310-2018'!I553<0,'III. GDP shares, 1310-2018'!I555,\"\")","v":""},{"$f":"IF('IV. Country level, 1310-2018'!J553<0,'III. GDP shares, 1310-2018'!J555,\"\")","v":0},null,0.1118869809426848,{"v":0.15881465635454672,"d":"15.88%"},{"v":0.20250823357139602,"d":"20.25%"},{"v":0.25300453124431943,"d":"25.30%"},{"v":0.20677378773650956,"d":"20.68%"}]
[1860,{"$f":"IF('IV. Country level, 1310-2018'!C554<0,'III. GDP shares, 1310-2018'!C556,\"\")","v":""},{"$f":"IF('IV. Country level, 1310-2018'!D554<0,'III. GDP shares, 1310-2018'!D556,\"\")","v":0.2363026269013893},{"$f":"IF('IV. Country level, 1310-2018'!E554<0,'III. GDP shares, 1310-2018'!E556,\"\")","v":0.02279499533232947},{"$f":"IF('IV. Country level, 1310-2018'!F554<0,'III. GDP shares, 1310-2018'!F556,\"\")","v":0.17079916877892004},{"$f":"IF('IV. Country level, 1310-2018'!G554<0,'III. GDP shares, 1310-2018'!G556,\"\")","v":""},{"$f":"IF('IV. Country level, 1310-2018'!H554<0,'III. GDP shares, 1310-2018'!H556,\"\")","v":""},{"$f":"IF('IV. Country level, 1310-2018'!I554<0,'III. GDP shares, 1310-2018'!I556,\"\")","v":0.05588487761454579},{"$f":"IF('IV. Country level, 1310-2018'!J554<0,'III. GDP shares, 1310-2018'!J556,\"\")","v":0},null,0.48578166862718464,{"v":0.18112718172151882,"d":"18.11%"},{"v":0.20250823357139602,"d":"20.25%"},{"v":0.24788302389053088,"d":"24.79%"},{"v":0.20677378773650956,"d":"20.68%"}]
[1861,{"$f":"IF('IV. Country level, 1310-2018'!C555<0,'III. GDP shares, 1310-2018'!C557,\"\")","v":""},{"$f":"IF('IV. Country level, 1310-2018'!D555<0,'III. GDP shares, 1310-2018'!D557,\"\")","v":""},{"$f":"IF('IV. Country level, 1310-2018'!E555<0,'III. GDP shares, 1310-2018'!E557,\"\")","v":0.023141529319732873},{"$f":"IF('IV. Country level, 1310-2018'!F555<0,'III. GDP shares, 1310-2018'!F557,\"\")","v":0.166681438607173},{"$f":"IF('IV. Country level, 1310-2018'!G555<0,'III. GDP shares, 1310-2018'!G557,\"\")","v":""},{"$f":"IF('IV. Country level, 1310-2018'!H555<0,'III. GDP shares, 1310-2018'!H557,\"\")","v":""},{"$f":"IF('IV. Country level, 1310-2018'!I555<0,'III. GDP shares, 1310-2018'!I557,\"\")","v":0.056632729738999084},{"$f":"IF('IV. Country level, 1310-2018'!J555<0,'III. GDP shares, 1310-2018'!J557,\"\")","v":0},null,0.24645569766590494,{"v":0.23713144755951232,"d":"23.71%"},{"v":0.20250823357139602,"d":"20.25%"},{"v":0.24957843366431692,"d":"24.96%"},{"v":0.20677378773650956,"d":"20.68%"}]
[1862,{"$f":"IF('IV. Country level, 1310-2018'!C556<0,'III. GDP shares, 1310-2018'!C558,\"\")","v":""},{"$f":"IF('IV. Country level, 1310-2018'!D556<0,'III. GDP shares, 1310-2018'!D558,\"\")","v":""},{"$f":"IF('IV. Country level, 1310-2018'!E556<0,'III. GDP shares, 1310-2018'!E558,\"\")","v":""},{"$f":"IF('IV. Country level, 1310-2018'!F556<0,'III. GDP shares, 1310-2018'!F558,\"\")","v":""},{"$f":"IF('IV. Country level, 1310-2018'!G556<0,'III. GDP shares, 1310-2018'!G558,\"\")","v":""},{"$f":"IF('IV. Country level, 1310-2018'!H556<0,'III. GDP shares, 1310-2018'!H558,\"\")","v":0.2106623556496403},{"$f":"IF('IV. Country level, 1310-2018'!I556<0,'III. GDP shares, 1310-2018'!I558,\"\")","v":""},{"$f":"IF('IV. Country level, 1310-2018'!J556<0,'III. GDP shares, 1310-2018'!J558,\"\")","v":""},null,0.2106623556496403,{"v":0.26883069474287835,"d":"26.88%"},{"v":0.20250823357139602,"d":"20.25%"},{"v":0.23110829566565483,"d":"23.11%"},{"v":0.20677378773650956,"d":"20.68%"}]
[1863,{"$f":"IF('IV. Country level, 1310-2018'!C557<0,'III. GDP shares, 1310-2018'!C559,\"\")","v":""},{"$f":"IF('IV. Country level, 1310-2018'!D557<0,'III. GDP shares, 1310-2018'!D559,\"\")","v":""},{"$f":"IF('IV. Country level, 1310-2018'!E557<0,'III. GDP shares, 1310-2018'!E559,\"\")","v":""},{"$f":"IF('IV. Country level, 1310-2018'!F557<0,'III. GDP shares, 1310-2018'!F559,\"\")","v":""},{"$f":"IF('IV. Country level, 1310-2018'!G557<0,'III. GDP shares, 1310-2018'!G559,\"\")","v":""},{"$f":"IF('IV. Country level, 1310-2018'!H557<0,'III. GDP shares, 1310-2018'!H559,\"\")","v":0.2131035691652171},{"$f":"IF('IV. Country level, 1310-2018'!I557<0,'III. GDP shares, 1310-2018'!I559,\"\")","v":""},{"$f":"IF('IV. Country level, 1310-2018'!J557<0,'III. GDP shares, 1310-2018'!J559,\"\")","v":""},null,0.2131035691652171,{"v":0.3139587692938692,"d":"31.40%"},{"v":0.20250823357139602,"d":"20.25%"},{"v":0.21705005608342381,"d":"21.71%"},{"v":0.20677378773650956,"d":"20.68%"}]
[1864,{"$f":"IF('IV. Country level, 1310-2018'!C558<0,'III. GDP shares, 1310-2018'!C560,\"\")","v":""},{"$f":"IF('IV. Country level, 1310-2018'!D558<0,'III. GDP shares, 1310-2018'!D560,\"\")","v":""},{"$f":"IF('IV. Country level, 1310-2018'!E558<0,'III. GDP shares, 1310-2018'!E560,\"\")","v":""},{"$f":"IF('IV. Country level, 1310-2018'!F558<0,'III. GDP shares, 1310-2018'!F560,\"\")","v":0.17588547611559963},{"$f":"IF('IV. Country level, 1310-2018'!G558<0,'III. GDP shares, 1310-2018'!G560,\"\")","v":""},{"$f":"IF('IV. Country level, 1310-2018'!H558<0,'III. GDP shares, 1310-2018'!H560,\"\")","v":0.21614438475035497},{"$f":"IF('IV. Country level, 1310-2018'!I558<0,'III. GDP shares, 1310-2018'!I560,\"\")","v":""},{"$f":"IF('IV. Country level, 1310-2018'!J558<0,'III. GDP shares, 1310-2018'!J560,\"\")","v":0},null,0.3920298608659546,{"v":0.3028583602612414,"d":"30.29%"},{"v":0.20250823357139602,"d":"20.25%"},{"v":0.2147675775671857,"d":"21.48%"},{"v":0.20677378773650956,"d":"20.68%"}]
[1865,{"$f":"IF('IV. Country level, 1310-2018'!C559<0,'III. GDP shares, 1310-2018'!C561,\"\")","v":""},{"$f":"IF('IV. Country level, 1310-2018'!D559<0,'III. GDP shares, 1310-2018'!D561,\"\")","v":""},{"$f":"IF('IV. Country level, 1310-2018'!E559<0,'III. GDP shares, 1310-2018'!E561,\"\")","v":""},{"$f":"IF('IV. Country level, 1310-2018'!F559<0,'III. GDP shares, 1310-2018'!F561,\"\")","v":""},{"$f":"IF('IV. Country level, 1310-2018'!G559<0,'III. GDP shares, 1310-2018'!G561,\"\")","v":""},{"$f":"IF('IV. Country level, 1310-2018'!H559<0,'III. GDP shares, 1310-2018'!H561,\"\")","v":0.2218947302835622},{"$f":"IF('IV. Country level, 1310-2018'!I559<0,'III. GDP shares, 1310-2018'!I561,\"\")","v":""},{"$f":"IF('IV. Country level, 1310-2018'!J559<0,'III. GDP shares, 1310-2018'!J561,\"\")","v":""},null,0.2218947302835622,{"v":0.2676504034518265,"d":"26.77%"},{"v":0.20250823357139602,"d":"20.25%"},{"v":0.22344386231786323,"d":"22.34%"},{"$f":"AVERAGE(L$496:L$595)","v":{"v":0.20677378773650956,"d":"20.68%"}}]
[1866,{"$f":"IF('IV. Country level, 1310-2018'!C560<0,'III. GDP shares, 1310-2018'!C562,\"\")","v":""},{"$f":"IF('IV. Country level, 1310-2018'!D560<0,'III. GDP shares, 1310-2018'!D562,\"\")","v":0.23260961160662164},{"$f":"IF('IV. Country level, 1310-2018'!E560<0,'III. GDP shares, 1310-2018'!E562,\"\")","v":0.023490920905015967},{"$f":"IF('IV. Country level, 1310-2018'!F560<0,'III. GDP shares, 1310-2018'!F562,\"\")","v":0.1716829702879827},{"$f":"IF('IV. Country level, 1310-2018'!G560<0,'III. GDP shares, 1310-2018'!G562,\"\")","v":""},{"$f":"IF('IV. Country level, 1310-2018'!H560<0,'III. GDP shares, 1310-2018'!H562,\"\")","v":""},{"$f":"IF('IV. Country level, 1310-2018'!I560<0,'III. GDP shares, 1310-2018'!I562,\"\")","v":""},{"$f":"IF('IV. Country level, 1310-2018'!J560<0,'III. GDP shares, 1310-2018'!J562,\"\")","v":""},null,0.4277835027996203,{"v":0.23755578121616355,"d":"23.76%"},{"v":0.20250823357139602,"d":"20.25%"},{"v":0.21861673867010767,"d":"21.86%"},{"v":0.20677378773650956,"d":"20.68%"}]
[1867,{"$f":"IF('IV. Country level, 1310-2018'!C561<0,'III. GDP shares, 1310-2018'!C563,\"\")","v":""},{"$f":"IF('IV. Country level, 1310-2018'!D561<0,'III. GDP shares, 1310-2018'!D563,\"\")","v":0.23345507682360114},{"$f":"IF('IV. Country level, 1310-2018'!E561<0,'III. GDP shares, 1310-2018'!E563,\"\")","v":""},{"$f":"IF('IV. Country level, 1310-2018'!F561<0,'III. GDP shares, 1310-2018'!F563,\"\")","v":0.17462372857518954},{"$f":"IF('IV. Country level, 1310-2018'!G561<0,'III. GDP shares, 1310-2018'!G563,\"\")","v":""},{"$f":"IF('IV. Country level, 1310-2018'!H561<0,'III. GDP shares, 1310-2018'!H563,\"\")","v":""},{"$f":"IF('IV. Country level, 1310-2018'!I561<0,'III. GDP shares, 1310-2018'!I563,\"\")","v":""},{"$f":"IF('IV. Country level, 1310-2018'!J561<0,'III. GDP shares, 1310-2018'!J563,\"\")","v":0},null,0.4080788053987907,{"v":0.20711241419256113,"d":"20.71%"},{"v":0.20250823357139602,"d":"20.25%"},{"v":0.21861673867010767,"d":"21.86%"},{"v":0.20677378773650956,"d":"20.68%"}]
[1868,{"$f":"IF('IV. Country level, 1310-2018'!C562<0,'III. GDP shares, 1310-2018'!C564,\"\")","v":""},{"$f":"IF('IV. Country level, 1310-2018'!D562<0,'III. GDP shares, 1310-2018'!D564,\"\")","v":""},{"$f":"IF('IV. Country level, 1310-2018'!E562<0,'III. GDP shares, 1310-2018'!E564,\"\")","v":""},{"$f":"IF('IV. Country level, 1310-2018'!F562<0,'III. GDP shares, 1310-2018'!F564,\"\")","v":""},{"$f":"IF('IV. Country level, 1310-2018'!G562<0,'III. GDP shares, 1310-2018'!G564,\"\")","v":""},{"$f":"IF('IV. Country level, 1310-2018'!H562<0,'III. GDP shares, 1310-2018'!H564,\"\")","v":""},{"$f":"IF('IV. Country level, 1310-2018'!I562<0,'III. GDP shares, 1310-2018'!I564,\"\")","v":""},{"$f":"IF('IV. Country level, 1310-2018'!J562<0,'III. GDP shares, 1310-2018'!J564,\"\")","v":0},null,0,{"v":0.18511915399052697,"d":"18.51%"},{"v":0.20250823357139602,"d":"20.25%"},{"v":0.208280184371334,"d":"20.83%"},{"v":0.20677378773650956,"d":"20.68%"}]
[1869,{"$f":"IF('IV. Country level, 1310-2018'!C563<0,'III. GDP shares, 1310-2018'!C565,\"\")","v":""},{"$f":"IF('IV. Country level, 1310-2018'!D563<0,'III. GDP shares, 1310-2018'!D565,\"\")","v":""},{"$f":"IF('IV. Country level, 1310-2018'!E563<0,'III. GDP shares, 1310-2018'!E565,\"\")","v":""},{"$f":"IF('IV. Country level, 1310-2018'!F563<0,'III. GDP shares, 1310-2018'!F565,\"\")","v":""},{"$f":"IF('IV. Country level, 1310-2018'!G563<0,'III. GDP shares, 1310-2018'!G565,\"\")","v":""},{"$f":"IF('IV. Country level, 1310-2018'!H563<0,'III. GDP shares, 1310-2018'!H565,\"\")","v":""},{"$f":"IF('IV. Country level, 1310-2018'!I563<0,'III. GDP shares, 1310-2018'!I565,\"\")","v":""},{"$f":"IF('IV. Country level, 1310-2018'!J563<0,'III. GDP shares, 1310-2018'!J565,\"\")","v":0},null,0,{"v":0.19826733592181187,"d":"19.83%"},{"v":0.20250823357139602,"d":"20.25%"},{"v":0.2010383444085419,"d":"20.10%"},{"v":0.20677378773650956,"d":"20.68%"}]
[1870,{"$f":"IF('IV. Country level, 1310-2018'!C564<0,'III. GDP shares, 1310-2018'!C566,\"\")","v":""},{"$f":"IF('IV. Country level, 1310-2018'!D564<0,'III. GDP shares, 1310-2018'!D566,\"\")","v":""},{"$f":"IF('IV. Country level, 1310-2018'!E564<0,'III. GDP shares, 1310-2018'!E566,\"\")","v":""},{"$f":"IF('IV. Country level, 1310-2018'!F564<0,'III. GDP shares, 1310-2018'!F566,\"\")","v":""},{"$f":"IF('IV. Country level, 1310-2018'!G564<0,'III. GDP shares, 1310-2018'!G566,\"\")","v":""},{"$f":"IF('IV. Country level, 1310-2018'!H564<0,'III. GDP shares, 1310-2018'!H566,\"\")","v":""},{"$f":"IF('IV. Country level, 1310-2018'!I564<0,'III. GDP shares, 1310-2018'!I566,\"\")","v":""},{"$f":"IF('IV. Country level, 1310-2018'!J564<0,'III. GDP shares, 1310-2018'!J566,\"\")","v":""},null,0,{"v":0.1688147265998861,"d":"16.88%"},{"v":0.20250823357139602,"d":"20.25%"},{"v":0.1707353141055116,"d":"17.07%"},{"v":0.20677378773650956,"d":"20.68%"}]
[1871,{"$f":"IF('IV. Country level, 1310-2018'!C565<0,'III. GDP shares, 1310-2018'!C567,\"\")","v":""},{"$f":"IF('IV. Country level, 1310-2018'!D565<0,'III. GDP shares, 1310-2018'!D567,\"\")","v":""},{"$f":"IF('IV. Country level, 1310-2018'!E565<0,'III. GDP shares, 1310-2018'!E567,\"\")","v":0.022054098336333528},{"$f":"IF('IV. Country level, 1310-2018'!F565<0,'III. GDP shares, 1310-2018'!F567,\"\")","v":0.15899328771276705},{"$f":"IF('IV. Country level, 1310-2018'!G565<0,'III. GDP shares, 1310-2018'!G567,\"\")","v":""},{"$f":"IF('IV. Country level, 1310-2018'!H565<0,'III. GDP shares, 1310-2018'!H567,\"\")","v":""},{"$f":"IF('IV. Country level, 1310-2018'!I565<0,'III. GDP shares, 1310-2018'!I567,\"\")","v":""},{"$f":"IF('IV. Country level, 1310-2018'!J565<0,'III. GDP shares, 1310-2018'!J567,\"\")","v":0.05702965340261503},null,0.23807703945171563,{"v":0.11822688770027996,"d":"11.82%"},{"v":0.20250823357139602,"d":"20.25%"},{"v":0.15398496446819857,"d":"15.40%"},{"v":0.20677378773650956,"d":"20.68%"}]
[1872,{"$f":"IF('IV. Country level, 1310-2018'!C566<0,'III. GDP shares, 1310-2018'!C568,\"\")","v":0.08867494280846383},{"$f":"IF('IV. Country level, 1310-2018'!D566<0,'III. GDP shares, 1310-2018'!D568,\"\")","v":0.22525706099409268},{"$f":"IF('IV. Country level, 1310-2018'!E566<0,'III. GDP shares, 1310-2018'!E568,\"\")","v":""},{"$f":"IF('IV. Country level, 1310-2018'!F566<0,'III. GDP shares, 1310-2018'!F568,\"\")","v":""},{"$f":"IF('IV. Country level, 1310-2018'!G566<0,'III. GDP shares, 1310-2018'!G568,\"\")","v":""},{"$f":"IF('IV. Country level, 1310-2018'!H566<0,'III. GDP shares, 1310-2018'!H568,\"\")","v":""},{"$f":"IF('IV. Country level, 1310-2018'!I566<0,'III. GDP shares, 1310-2018'!I568,\"\")","v":""},{"$f":"IF('IV. Country level, 1310-2018'!J566<0,'III. GDP shares, 1310-2018'!J568,\"\")","v":""},null,0.3139320038025565,{"v":0.11822688770027996,"d":"11.82%"},{"v":0.20250823357139602,"d":"20.25%"},{"v":0.14821008840202365,"d":"14.82%"},{"v":0.20677378773650956,"d":"20.68%"}]
[1873,{"$f":"IF('IV. Country level, 1310-2018'!C567<0,'III. GDP shares, 1310-2018'!C569,\"\")","v":""},{"$f":"IF('IV. Country level, 1310-2018'!D567<0,'III. GDP shares, 1310-2018'!D569,\"\")","v":""},{"$f":"IF('IV. Country level, 1310-2018'!E567<0,'III. GDP shares, 1310-2018'!E569,\"\")","v":""},{"$f":"IF('IV. Country level, 1310-2018'!F567<0,'III. GDP shares, 1310-2018'!F569,\"\")","v":0.16671528086026816},{"$f":"IF('IV. Country level, 1310-2018'!G567<0,'III. GDP shares, 1310-2018'!G569,\"\")","v":""},{"$f":"IF('IV. Country level, 1310-2018'!H567<0,'III. GDP shares, 1310-2018'!H569,\"\")","v":""},{"$f":"IF('IV. Country level, 1310-2018'!I567<0,'III. GDP shares, 1310-2018'!I569,\"\")","v":""},{"$f":"IF('IV. Country level, 1310-2018'!J567<0,'III. GDP shares, 1310-2018'!J569,\"\")","v":0.05489995668587187},null,0.22161523754614004,{"v":0.12136385536525172,"d":"12.14%"},{"v":0.20250823357139602,"d":"20.25%"},{"v":0.15296091896661973,"d":"15.30%"},{"v":0.20677378773650956,"d":"20.68%"}]
[1874,{"$f":"IF('IV. Country level, 1310-2018'!C568<0,'III. GDP shares, 1310-2018'!C570,\"\")","v":""},{"$f":"IF('IV. Country level, 1310-2018'!D568<0,'III. GDP shares, 1310-2018'!D570,\"\")","v":""},{"$f":"IF('IV. Country level, 1310-2018'!E568<0,'III. GDP shares, 1310-2018'!E570,\"\")","v":""},{"$f":"IF('IV. Country level, 1310-2018'!F568<0,'III. GDP shares, 1310-2018'!F570,\"\")","v":""},{"$f":"IF('IV. Country level, 1310-2018'!G568<0,'III. GDP shares, 1310-2018'!G570,\"\")","v":""},{"$f":"IF('IV. Country level, 1310-2018'!H568<0,'III. GDP shares, 1310-2018'!H570,\"\")","v":""},{"$f":"IF('IV. Country level, 1310-2018'!I568<0,'III. GDP shares, 1310-2018'!I570,\"\")","v":""},{"$f":"IF('IV. Country level, 1310-2018'!J568<0,'III. GDP shares, 1310-2018'!J570,\"\")","v":0.05396393310154759},null,0.05396393310154759,{"v":0.12935650144167166,"d":"12.94%"},{"v":0.20250823357139602,"d":"20.25%"},{"v":0.15468464628256626,"d":"15.47%"},{"v":0.20677378773650956,"d":"20.68%"}]
[1875,{"$f":"IF('IV. Country level, 1310-2018'!C569<0,'III. GDP shares, 1310-2018'!C571,\"\")","v":""},{"$f":"IF('IV. Country level, 1310-2018'!D569<0,'III. GDP shares, 1310-2018'!D571,\"\")","v":""},{"$f":"IF('IV. Country level, 1310-2018'!E569<0,'III. GDP shares, 1310-2018'!E571,\"\")","v":""},{"$f":"IF('IV. Country level, 1310-2018'!F569<0,'III. GDP shares, 1310-2018'!F571,\"\")","v":""},{"$f":"IF('IV. Country level, 1310-2018'!G569<0,'III. GDP shares, 1310-2018'!G571,\"\")","v":""},{"$f":"IF('IV. Country level, 1310-2018'!H569<0,'III. GDP shares, 1310-2018'!H571,\"\")","v":""},{"$f":"IF('IV. Country level, 1310-2018'!I569<0,'III. GDP shares, 1310-2018'!I571,\"\")","v":""},{"$f":"IF('IV. Country level, 1310-2018'!J569<0,'III. GDP shares, 1310-2018'!J571,\"\")","v":""},null,0,{"v":0.10318491613322735,"d":"10.32%"},{"v":0.20250823357139602,"d":"20.25%"},{"v":0.16014293666897816,"d":"16.01%"},{"v":0.20677378773650956,"d":"20.68%"}]
[1876,{"$f":"IF('IV. Country level, 1310-2018'!C570<0,'III. GDP shares, 1310-2018'!C572,\"\")","v":""},{"$f":"IF('IV. Country level, 1310-2018'!D570<0,'III. GDP shares, 1310-2018'!D572,\"\")","v":""},{"$f":"IF('IV. Country level, 1310-2018'!E570<0,'III. GDP shares, 1310-2018'!E572,\"\")","v":0.02195877365480235},{"$f":"IF('IV. Country level, 1310-2018'!F570<0,'III. GDP shares, 1310-2018'!F572,\"\")","v":""},{"$f":"IF('IV. Country level, 1310-2018'!G570<0,'III. GDP shares, 1310-2018'!G572,\"\")","v":""},{"$f":"IF('IV. Country level, 1310-2018'!H570<0,'III. GDP shares, 1310-2018'!H572,\"\")","v":""},{"$f":"IF('IV. Country level, 1310-2018'!I570<0,'III. GDP shares, 1310-2018'!I572,\"\")","v":""},{"$f":"IF('IV. Country level, 1310-2018'!J570<0,'III. GDP shares, 1310-2018'!J572,\"\")","v":""},null,0.02195877365480235,{"v":0.10498058764073072,"d":"10.50%"},{"v":0.20250823357139602,"d":"20.25%"},{"v":0.15675242209495743,"d":"15.68%"},{"v":0.20677378773650956,"d":"20.68%"}]
[1877,{"$f":"IF('IV. Country level, 1310-2018'!C571<0,'III. GDP shares, 1310-2018'!C573,\"\")","v":""},{"$f":"IF('IV. Country level, 1310-2018'!D571<0,'III. GDP shares, 1310-2018'!D573,\"\")","v":""},{"$f":"IF('IV. Country level, 1310-2018'!E571<0,'III. GDP shares, 1310-2018'!E573,\"\")","v":""},{"$f":"IF('IV. Country level, 1310-2018'!F571<0,'III. GDP shares, 1310-2018'!F573,\"\")","v":""},{"$f":"IF('IV. Country level, 1310-2018'!G571<0,'III. GDP shares, 1310-2018'!G573,\"\")","v":""},{"$f":"IF('IV. Country level, 1310-2018'!H571<0,'III. GDP shares, 1310-2018'!H573,\"\")","v":""},{"$f":"IF('IV. Country level, 1310-2018'!I571<0,'III. GDP shares, 1310-2018'!I573,\"\")","v":""},{"$f":"IF('IV. Country level, 1310-2018'!J571<0,'III. GDP shares, 1310-2018'!J573,\"\")","v":0.055948522534939524},null,0.055948522534939524,{"v":0.14338417183804,"d":"14.34%"},{"v":0.20250823357139602,"d":"20.25%"},{"v":0.1420317654698912,"d":"14.20%"},{"v":0.20677378773650956,"d":"20.68%"}]
[1878,{"$f":"IF('IV. Country level, 1310-2018'!C572<0,'III. GDP shares, 1310-2018'!C574,\"\")","v":""},{"$f":"IF('IV. Country level, 1310-2018'!D572<0,'III. GDP shares, 1310-2018'!D574,\"\")","v":""},{"$f":"IF('IV. Country level, 1310-2018'!E572<0,'III. GDP shares, 1310-2018'!E574,\"\")","v":""},{"$f":"IF('IV. Country level, 1310-2018'!F572<0,'III. GDP shares, 1310-2018'!F574,\"\")","v":""},{"$f":"IF('IV. Country level, 1310-2018'!G572<0,'III. GDP shares, 1310-2018'!G574,\"\")","v":""},{"$f":"IF('IV. Country level, 1310-2018'!H572<0,'III. GDP shares, 1310-2018'!H574,\"\")","v":""},{"$f":"IF('IV. Country level, 1310-2018'!I572<0,'III. GDP shares, 1310-2018'!I574,\"\")","v":""},{"$f":"IF('IV. Country level, 1310-2018'!J572<0,'III. GDP shares, 1310-2018'!J574,\"\")","v":0.05487594229260534},null,0.05487594229260534,{"v":0.176577523791013,"d":"17.66%"},{"v":0.20250823357139602,"d":"20.25%"},{"v":0.13456341099516683,"d":"13.46%"},{"v":0.20677378773650956,"d":"20.68%"}]
[1879,{"$f":"IF('IV. Country level, 1310-2018'!C573<0,'III. GDP shares, 1310-2018'!C575,\"\")","v":""},{"$f":"IF('IV. Country level, 1310-2018'!D573<0,'III. GDP shares, 1310-2018'!D575,\"\")","v":""},{"$f":"IF('IV. Country level, 1310-2018'!E573<0,'III. GDP shares, 1310-2018'!E575,\"\")","v":""},{"$f":"IF('IV. Country level, 1310-2018'!F573<0,'III. GDP shares, 1310-2018'!F575,\"\")","v":""},{"$f":"IF('IV. Country level, 1310-2018'!G573<0,'III. GDP shares, 1310-2018'!G575,\"\")","v":""},{"$f":"IF('IV. Country level, 1310-2018'!H573<0,'III. GDP shares, 1310-2018'!H575,\"\")","v":0.26928249893919787},{"$f":"IF('IV. Country level, 1310-2018'!I573<0,'III. GDP shares, 1310-2018'!I575,\"\")","v":""},{"$f":"IF('IV. Country level, 1310-2018'!J573<0,'III. GDP shares, 1310-2018'!J575,\"\")","v":0.057219205415882324},null,0.3265017043550802,{"v":0.176577523791013,"d":"17.66%"},{"v":0.20250823357139602,"d":"20.25%"},{"v":0.12817970324820802,"d":"12.82%"},{"v":0.20677378773650956,"d":"20.68%"}]
[1880,{"$f":"IF('IV. Country level, 1310-2018'!C574<0,'III. GDP shares, 1310-2018'!C576,\"\")","v":""},{"$f":"IF('IV. Country level, 1310-2018'!D574<0,'III. GDP shares, 1310-2018'!D576,\"\")","v":""},{"$f":"IF('IV. Country level, 1310-2018'!E574<0,'III. GDP shares, 1310-2018'!E576,\"\")","v":""},{"$f":"IF('IV. Country level, 1310-2018'!F574<0,'III. GDP shares, 1310-2018'!F576,\"\")","v":0.1522425012309615},{"$f":"IF('IV. Country level, 1310-2018'!G574<0,'III. GDP shares, 1310-2018'!G576,\"\")","v":""},{"$f":"IF('IV. Country level, 1310-2018'!H574<0,'III. GDP shares, 1310-2018'!H576,\"\")","v":0.28234733746497137},{"$f":"IF('IV. Country level, 1310-2018'!I574<0,'III. GDP shares, 1310-2018'!I576,\"\")","v":""},{"$f":"IF('IV. Country level, 1310-2018'!J574<0,'III. GDP shares, 1310-2018'!J576,\"\")","v":0.05585048823137216},null,0.49044032692730505,{"v":0.17344055612604123,"d":"17.34%"},{"v":0.20250823357139602,"d":"20.25%"},{"v":0.12278181710607351,"d":"12.28%"},{"v":0.20677378773650956,"d":"20.68%"}]
[1881,{"$f":"IF('IV. Country level, 1310-2018'!C575<0,'III. GDP shares, 1310-2018'!C577,\"\")","v":""},{"$f":"IF('IV. Country level, 1310-2018'!D575<0,'III. GDP shares, 1310-2018'!D577,\"\")","v":""},{"$f":"IF('IV. Country level, 1310-2018'!E575<0,'III. GDP shares, 1310-2018'!E577,\"\")","v":""},{"$f":"IF('IV. Country level, 1310-2018'!F575<0,'III. GDP shares, 1310-2018'!F577,\"\")","v":""},{"$f":"IF('IV. Country level, 1310-2018'!G575<0,'III. GDP shares, 1310-2018'!G577,\"\")","v":""},{"$f":"IF('IV. Country level, 1310-2018'!H575<0,'III. GDP shares, 1310-2018'!H577,\"\")","v":0.28631739677235846},{"$f":"IF('IV. Country level, 1310-2018'!I575<0,'III. GDP shares, 1310-2018'!I577,\"\")","v":""},{"$f":"IF('IV. Country level, 1310-2018'!J575<0,'III. GDP shares, 1310-2018'!J577,\"\")","v":""},null,0.28631739677235846,{"v":0.16544791004962128,"d":"16.54%"},{"v":0.20250823357139602,"d":"20.25%"},{"v":0.11775555655512966,"d":"11.78%"},{"v":0.20677378773650956,"d":"20.68%"}]
[1882,{"$f":"IF('IV. Country level, 1310-2018'!C576<0,'III. GDP shares, 1310-2018'!C578,\"\")","v":""},{"$f":"IF('IV. Country level, 1310-2018'!D576<0,'III. GDP shares, 1310-2018'!D578,\"\")","v":""},{"$f":"IF('IV. Country level, 1310-2018'!E576<0,'III. GDP shares, 1310-2018'!E578,\"\")","v":""},{"$f":"IF('IV. Country level, 1310-2018'!F576<0,'III. GDP shares, 1310-2018'!F578,\"\")","v":""},{"$f":"IF('IV. Country level, 1310-2018'!G576<0,'III. GDP shares, 1310-2018'!G578,\"\")","v":""},{"$f":"IF('IV. Country level, 1310-2018'!H576<0,'III. GDP shares, 1310-2018'!H578,\"\")","v":""},{"$f":"IF('IV. Country level, 1310-2018'!I576<0,'III. GDP shares, 1310-2018'!I578,\"\")","v":""},{"$f":"IF('IV. Country level, 1310-2018'!J576<0,'III. GDP shares, 1310-2018'!J578,\"\")","v":""},null,0,{"v":0.16513834312678585,"d":"16.51%"},{"v":0.20250823357139602,"d":"20.25%"},{"v":0.11103147381926415,"d":"11.10%"},{"v":0.20677378773650956,"d":"20.68%"}]
[1883,{"$f":"IF('IV. Country level, 1310-2018'!C577<0,'III. GDP shares, 1310-2018'!C579,\"\")","v":""},{"$f":"IF('IV. Country level, 1310-2018'!D577<0,'III. GDP shares, 1310-2018'!D579,\"\")","v":""},{"$f":"IF('IV. Country level, 1310-2018'!E577<0,'III. GDP shares, 1310-2018'!E579,\"\")","v":""},{"$f":"IF('IV. Country level, 1310-2018'!F577<0,'III. GDP shares, 1310-2018'!F579,\"\")","v":""},{"$f":"IF('IV. Country level, 1310-2018'!G577<0,'III. GDP shares, 1310-2018'!G579,\"\")","v":""},{"$f":"IF('IV. Country level, 1310-2018'!H577<0,'III. GDP shares, 1310-2018'!H579,\"\")","v":""},{"$f":"IF('IV. Country level, 1310-2018'!I577<0,'III. GDP shares, 1310-2018'!I579,\"\")","v":""},{"$f":"IF('IV. Country level, 1310-2018'!J577<0,'III. GDP shares, 1310-2018'!J579,\"\")","v":""},null,0,{"v":0.11849524250463153,"d":"11.85%"},{"v":0.20250823357139602,"d":"20.25%"},{"v":0.10807787117999838,"d":"10.81%"},{"v":0.20677378773650956,"d":"20.68%"}]
[1884,{"$f":"IF('IV. Country level, 1310-2018'!C578<0,'III. GDP shares, 1310-2018'!C580,\"\")","v":""},{"$f":"IF('IV. Country level, 1310-2018'!D578<0,'III. GDP shares, 1310-2018'!D580,\"\")","v":""},{"$f":"IF('IV. Country level, 1310-2018'!E578<0,'III. GDP shares, 1310-2018'!E580,\"\")","v":""},{"$f":"IF('IV. Country level, 1310-2018'!F578<0,'III. GDP shares, 1310-2018'!F580,\"\")","v":""},{"$f":"IF('IV. Country level, 1310-2018'!G578<0,'III. GDP shares, 1310-2018'!G580,\"\")","v":""},{"$f":"IF('IV. Country level, 1310-2018'!H578<0,'III. GDP shares, 1310-2018'!H580,\"\")","v":""},{"$f":"IF('IV. Country level, 1310-2018'!I578<0,'III. GDP shares, 1310-2018'!I580,\"\")","v":""},{"$f":"IF('IV. Country level, 1310-2018'!J578<0,'III. GDP shares, 1310-2018'!J580,\"\")","v":""},null,0,{"v":0.04843233865787368,"d":"4.84%"},{"v":0.20250823357139602,"d":"20.25%"},{"v":0.10331317519861592,"d":"10.33%"},{"v":0.20677378773650956,"d":"20.68%"}]
[1885,{"$f":"IF('IV. Country level, 1310-2018'!C579<0,'III. GDP shares, 1310-2018'!C581,\"\")","v":""},{"$f":"IF('IV. Country level, 1310-2018'!D579<0,'III. GDP shares, 1310-2018'!D581,\"\")","v":""},{"$f":"IF('IV. Country level, 1310-2018'!E579<0,'III. GDP shares, 1310-2018'!E581,\"\")","v":""},{"$f":"IF('IV. Country level, 1310-2018'!F579<0,'III. GDP shares, 1310-2018'!F581,\"\")","v":""},{"$f":"IF('IV. Country level, 1310-2018'!G579<0,'III. GDP shares, 1310-2018'!G581,\"\")","v":""},{"$f":"IF('IV. Country level, 1310-2018'!H579<0,'III. GDP shares, 1310-2018'!H581,\"\")","v":""},{"$f":"IF('IV. Country level, 1310-2018'!I579<0,'III. GDP shares, 1310-2018'!I581,\"\")","v":""},{"$f":"IF('IV. Country level, 1310-2018'!J579<0,'III. GDP shares, 1310-2018'!J581,\"\")","v":0.05270897383275727},null,0.05270897383275727,{"v":7.5298534046796105E-3,"d":"0.75%"},{"v":0.20250823357139602,"d":"20.25%"},{"v":0.10387001019895085,"d":"10.39%"},{"v":0.20677378773650956,"d":"20.68%"}]
[1886,{"$f":"IF('IV. Country level, 1310-2018'!C580<0,'III. GDP shares, 1310-2018'!C582,\"\")","v":""},{"$f":"IF('IV. Country level, 1310-2018'!D580<0,'III. GDP shares, 1310-2018'!D582,\"\")","v":""},{"$f":"IF('IV. Country level, 1310-2018'!E580<0,'III. GDP shares, 1310-2018'!E582,\"\")","v":""},{"$f":"IF('IV. Country level, 1310-2018'!F580<0,'III. GDP shares, 1310-2018'!F582,\"\")","v":""},{"$f":"IF('IV. Country level, 1310-2018'!G580<0,'III. GDP shares, 1310-2018'!G582,\"\")","v":""},{"$f":"IF('IV. Country level, 1310-2018'!H580<0,'III. GDP shares, 1310-2018'!H582,\"\")","v":""},{"$f":"IF('IV. Country level, 1310-2018'!I580<0,'III. GDP shares, 1310-2018'!I582,\"\")","v":""},{"$f":"IF('IV. Country level, 1310-2018'!J580<0,'III. GDP shares, 1310-2018'!J582,\"\")","v":""},null,0,{"v":0.03805746772297728,"d":"3.81%"},{"v":0.20250823357139602,"d":"20.25%"},{"v":0.10544530445498443,"d":"10.54%"},{"v":0.20677378773650956,"d":"20.68%"}]
[1887,{"$f":"IF('IV. Country level, 1310-2018'!C581<0,'III. GDP shares, 1310-2018'!C583,\"\")","v":""},{"$f":"IF('IV. Country level, 1310-2018'!D581<0,'III. GDP shares, 1310-2018'!D583,\"\")","v":""},{"$f":"IF('IV. Country level, 1310-2018'!E581<0,'III. GDP shares, 1310-2018'!E583,\"\")","v":""},{"$f":"IF('IV. Country level, 1310-2018'!F581<0,'III. GDP shares, 1310-2018'!F583,\"\")","v":""},{"$f":"IF('IV. Country level, 1310-2018'!G581<0,'III. GDP shares, 1310-2018'!G583,\"\")","v":""},{"$f":"IF('IV. Country level, 1310-2018'!H581<0,'III. GDP shares, 1310-2018'!H583,\"\")","v":""},{"$f":"IF('IV. Country level, 1310-2018'!I581<0,'III. GDP shares, 1310-2018'!I583,\"\")","v":""},{"$f":"IF('IV. Country level, 1310-2018'!J581<0,'III. GDP shares, 1310-2018'!J583,\"\")","v":""},null,{"$f":"SUM(B583:I583)","v":0},{"v":0.04618361078386813,"d":"4.62%"},{"v":0.20250823357139602,"d":"20.25%"},{"v":0.10707528096336506,"d":"10.71%"},{"v":0.20677378773650956,"d":"20.68%"}]
[1888,{"$f":"IF('IV. Country level, 1310-2018'!C582<0,'III. GDP shares, 1310-2018'!C584,\"\")","v":""},{"$f":"IF('IV. Country level, 1310-2018'!D582<0,'III. GDP shares, 1310-2018'!D584,\"\")","v":""},{"$f":"IF('IV. Country level, 1310-2018'!E582<0,'III. GDP shares, 1310-2018'!E584,\"\")","v":""},{"$f":"IF('IV. Country level, 1310-2018'!F582<0,'III. GDP shares, 1310-2018'!F584,\"\")","v":""},{"$f":"IF('IV. Country level, 1310-2018'!G582<0,'III. GDP shares, 1310-2018'!G584,\"\")","v":""},{"$f":"IF('IV. Country level, 1310-2018'!H582<0,'III. GDP shares, 1310-2018'!H584,\"\")","v":""},{"$f":"IF('IV. Country level, 1310-2018'!I582<0,'III. GDP shares, 1310-2018'!I584,\"\")","v":""},{"$f":"IF('IV. Country level, 1310-2018'!J582<0,'III. GDP shares, 1310-2018'!J584,\"\")","v":""},null,0,{"v":0.07191555117695281,"d":"7.19%"},{"v":0.20250823357139602,"d":"20.25%"},{"v":0.10149513401412079,"d":"10.15%"},{"v":0.20677378773650956,"d":"20.68%"}]
[1889,{"$f":"IF('IV. Country level, 1310-2018'!C583<0,'III. GDP shares, 1310-2018'!C585,\"\")","v":""},{"$f":"IF('IV. Country level, 1310-2018'!D583<0,'III. GDP shares, 1310-2018'!D585,\"\")","v":""},{"$f":"IF('IV. Country level, 1310-2018'!E583<0,'III. GDP shares, 1310-2018'!E585,\"\")","v":""},{"$f":"IF('IV. Country level, 1310-2018'!F583<0,'III. GDP shares, 1310-2018'!F585,\"\")","v":0.16061864821992636},{"$f":"IF('IV. Country level, 1310-2018'!G583<0,'III. GDP shares, 1310-2018'!G585,\"\")","v":""},{"$f":"IF('IV. Country level, 1310-2018'!H583<0,'III. GDP shares, 1310-2018'!H585,\"\")","v":""},{"$f":"IF('IV. Country level, 1310-2018'!I583<0,'III. GDP shares, 1310-2018'!I585,\"\")","v":""},{"$f":"IF('IV. Country level, 1310-2018'!J583<0,'III. GDP shares, 1310-2018'!J585,\"\")","v":0.0530746520081573},null,0.21369330022808367,{"v":0.0643856977722732,"d":"6.44%"},{"$f":"AVERAGE(L$9:L$714)","v":{"v":0.20250823357139602,"d":"20.25%"}},{"v":0.09871618501197069,"d":"9.87%"},{"v":0.20677378773650956,"d":"20.68%"}]
[1890,{"$f":"IF('IV. Country level, 1310-2018'!C584<0,'III. GDP shares, 1310-2018'!C586,\"\")","v":""},{"$f":"IF('IV. Country level, 1310-2018'!D584<0,'III. GDP shares, 1310-2018'!D586,\"\")","v":""},{"$f":"IF('IV. Country level, 1310-2018'!E584<0,'III. GDP shares, 1310-2018'!E586,\"\")","v":""},{"$f":"IF('IV. Country level, 1310-2018'!F584<0,'III. GDP shares, 1310-2018'!F586,\"\")","v":""},{"$f":"IF('IV. Country level, 1310-2018'!G584<0,'III. GDP shares, 1310-2018'!G586,\"\")","v":""},{"$f":"IF('IV. Country level, 1310-2018'!H584<0,'III. GDP shares, 1310-2018'!H586,\"\")","v":""},{"$f":"IF('IV. Country level, 1310-2018'!I584<0,'III. GDP shares, 1310-2018'!I586,\"\")","v":""},{"$f":"IF('IV. Country level, 1310-2018'!J584<0,'III. GDP shares, 1310-2018'!J586,\"\")","v":0.05688300142623597},null,0.05688300142623597,{"$f":"AVERAGE(K583:K589)","v":{"v":0.0643856977722732,"d":"6.44%"}},{"v":0.20250823357139602,"d":"20.25%"},{"v":0.10864884961526952,"d":"10.86%"},{"v":0.20677378773650956,"d":"20.68%"}]
[1891,{"$f":"IF('IV. Country level, 1310-2018'!C585<0,'III. GDP shares, 1310-2018'!C587,\"\")","v":""},{"$f":"IF('IV. Country level, 1310-2018'!D585<0,'III. GDP shares, 1310-2018'!D587,\"\")","v":""},{"$f":"IF('IV. Country level, 1310-2018'!E585<0,'III. GDP shares, 1310-2018'!E587,\"\")","v":0.02046293377852316},{"$f":"IF('IV. Country level, 1310-2018'!F585<0,'III. GDP shares, 1310-2018'!F587,\"\")","v":0.15966064897306956},{"$f":"IF('IV. Country level, 1310-2018'!G585<0,'III. GDP shares, 1310-2018'!G587,\"\")","v":""},{"$f":"IF('IV. Country level, 1310-2018'!H585<0,'III. GDP shares, 1310-2018'!H587,\"\")","v":""},{"$f":"IF('IV. Country level, 1310-2018'!I585<0,'III. GDP shares, 1310-2018'!I587,\"\")","v":""},{"$f":"IF('IV. Country level, 1310-2018'!J585<0,'III. GDP shares, 1310-2018'!J587,\"\")","v":""},null,0.1801235827515927,{"v":0.0643856977722732,"d":"6.44%"},{"v":0.20250823357139602,"d":"20.25%"},{"v":0.12204604875938418,"d":"12.20%"},{"v":0.20677378773650956,"d":"20.68%"}]
[1892,{"$f":"IF('IV. Country level, 1310-2018'!C586<0,'III. GDP shares, 1310-2018'!C588,\"\")","v":""},{"$f":"IF('IV. Country level, 1310-2018'!D586<0,'III. GDP shares, 1310-2018'!D588,\"\")","v":""},{"$f":"IF('IV. Country level, 1310-2018'!E586<0,'III. GDP shares, 1310-2018'!E588,\"\")","v":""},{"$f":"IF('IV. Country level, 1310-2018'!F586<0,'III. GDP shares, 1310-2018'!F588,\"\")","v":""},{"$f":"IF('IV. Country level, 1310-2018'!G586<0,'III. GDP shares, 1310-2018'!G588,\"\")","v":""},{"$f":"IF('IV. Country level, 1310-2018'!H586<0,'III. GDP shares, 1310-2018'!H588,\"\")","v":""},{"$f":"IF('IV. Country level, 1310-2018'!I586<0,'III. GDP shares, 1310-2018'!I588,\"\")","v":""},{"$f":"IF('IV. Country level, 1310-2018'!J586<0,'III. GDP shares, 1310-2018'!J588,\"\")","v":""},null,0,{"v":0.0643856977722732,"d":"6.44%"},{"v":0.20250823357139602,"d":"20.25%"},{"v":0.12204604875938418,"d":"12.20%"},{"v":0.20677378773650956,"d":"20.68%"}]
[1893,{"$f":"IF('IV. Country level, 1310-2018'!C587<0,'III. GDP shares, 1310-2018'!C589,\"\")","v":""},{"$f":"IF('IV. Country level, 1310-2018'!D587<0,'III. GDP shares, 1310-2018'!D589,\"\")","v":""},{"$f":"IF('IV. Country level, 1310-2018'!E587<0,'III. GDP shares, 1310-2018'!E589,\"\")","v":""},{"$f":"IF('IV. Country level, 1310-2018'!F587<0,'III. GDP shares, 1310-2018'!F589,\"\")","v":""},{"$f":"IF('IV. Country level, 1310-2018'!G587<0,'III. GDP shares, 1310-2018'!G589,\"\")","v":""},{"$f":"IF('IV. Country level, 1310-2018'!H587<0,'III. GDP shares, 1310-2018'!H589,\"\")","v":""},{"$f":"IF('IV. Country level, 1310-2018'!I587<0,'III. GDP shares, 1310-2018'!I589,\"\")","v":""},{"$f":"IF('IV. Country level, 1310-2018'!J587<0,'III. GDP shares, 1310-2018'!J589,\"\")","v":""},null,0,{"v":0.03885427295037237,"d":"3.89%"},{"v":0.20250823357139602,"d":"20.25%"},{"v":0.1328674660573269,"d":"13.29%"},{"v":0.20677378773650956,"d":"20.68%"}]
[1894,{"$f":"IF('IV. Country level, 1310-2018'!C588<0,'III. GDP shares, 1310-2018'!C590,\"\")","v":""},{"$f":"IF('IV. Country level, 1310-2018'!D588<0,'III. GDP shares, 1310-2018'!D590,\"\")","v":""},{"$f":"IF('IV. Country level, 1310-2018'!E588<0,'III. GDP shares, 1310-2018'!E590,\"\")","v":""},{"$f":"IF('IV. Country level, 1310-2018'!F588<0,'III. GDP shares, 1310-2018'!F590,\"\")","v":""},{"$f":"IF('IV. Country level, 1310-2018'!G588<0,'III. GDP shares, 1310-2018'!G590,\"\")","v":""},{"$f":"IF('IV. Country level, 1310-2018'!H588<0,'III. GDP shares, 1310-2018'!H590,\"\")","v":""},{"$f":"IF('IV. Country level, 1310-2018'!I588<0,'III. GDP shares, 1310-2018'!I590,\"\")","v":""},{"$f":"IF('IV. Country level, 1310-2018'!J588<0,'III. GDP shares, 1310-2018'!J590,\"\")","v":""},null,0,{"v":0.06303716741588258,"d":"6.30%"},{"v":0.20250823357139602,"d":"20.25%"},{"v":0.13117205628354084,"d":"13.12%"},{"v":0.20677378773650956,"d":"20.68%"}]
[1895,{"$f":"IF('IV. Country level, 1310-2018'!C589<0,'III. GDP shares, 1310-2018'!C591,\"\")","v":""},{"$f":"IF('IV. Country level, 1310-2018'!D589<0,'III. GDP shares, 1310-2018'!D591,\"\")","v":""},{"$f":"IF('IV. Country level, 1310-2018'!E589<0,'III. GDP shares, 1310-2018'!E591,\"\")","v":""},{"$f":"IF('IV. Country level, 1310-2018'!F589<0,'III. GDP shares, 1310-2018'!F591,\"\")","v":""},{"$f":"IF('IV. Country level, 1310-2018'!G589<0,'III. GDP shares, 1310-2018'!G591,\"\")","v":""},{"$f":"IF('IV. Country level, 1310-2018'!H589<0,'III. GDP shares, 1310-2018'!H591,\"\")","v":""},{"$f":"IF('IV. Country level, 1310-2018'!I589<0,'III. GDP shares, 1310-2018'!I591,\"\")","v":""},{"$f":"IF('IV. Country level, 1310-2018'!J589<0,'III. GDP shares, 1310-2018'!J591,\"\")","v":""},null,0,{"v":0.03730522702279791,"d":"3.73%"},{"v":0.20250823357139602,"d":"20.25%"},{"v":0.1395845440576339,"d":"13.96%"},{"v":0.20677378773650956,"d":"20.68%"}]
[1896,{"$f":"IF('IV. Country level, 1310-2018'!C590<0,'III. GDP shares, 1310-2018'!C592,\"\")","v":""},{"$f":"IF('IV. Country level, 1310-2018'!D590<0,'III. GDP shares, 1310-2018'!D592,\"\")","v":""},{"$f":"IF('IV. Country level, 1310-2018'!E590<0,'III. GDP shares, 1310-2018'!E592,\"\")","v":""},{"$f":"IF('IV. Country level, 1310-2018'!F590<0,'III. GDP shares, 1310-2018'!F592,\"\")","v":""},{"$f":"IF('IV. Country level, 1310-2018'!G590<0,'III. GDP shares, 1310-2018'!G592,\"\")","v":""},{"$f":"IF('IV. Country level, 1310-2018'!H590<0,'III. GDP shares, 1310-2018'!H592,\"\")","v":""},{"$f":"IF('IV. Country level, 1310-2018'!I590<0,'III. GDP shares, 1310-2018'!I592,\"\")","v":0.03497332647477796},{"$f":"IF('IV. Country level, 1310-2018'!J590<0,'III. GDP shares, 1310-2018'!J592,\"\")","v":""},null,0.03497332647477796,{"v":0.08449302926620512,"d":"8.45%"},{"v":0.20250823357139602,"d":"20.25%"},{"v":0.13131826287263879,"d":"13.13%"},{"v":0.20677378773650956,"d":"20.68%"}]
[1897,{"$f":"IF('IV. Country level, 1310-2018'!C591<0,'III. GDP shares, 1310-2018'!C593,\"\")","v":""},{"$f":"IF('IV. Country level, 1310-2018'!D591<0,'III. GDP shares, 1310-2018'!D593,\"\")","v":""},{"$f":"IF('IV. Country level, 1310-2018'!E591<0,'III. GDP shares, 1310-2018'!E593,\"\")","v":""},{"$f":"IF('IV. Country level, 1310-2018'!F591<0,'III. GDP shares, 1310-2018'!F593,\"\")","v":0.17207298991716297},{"$f":"IF('IV. Country level, 1310-2018'!G591<0,'III. GDP shares, 1310-2018'!G593,\"\")","v":""},{"$f":"IF('IV. Country level, 1310-2018'!H591<0,'III. GDP shares, 1310-2018'!H593,\"\")","v":""},{"$f":"IF('IV. Country level, 1310-2018'!I591<0,'III. GDP shares, 1310-2018'!I593,\"\")","v":""},{"$f":"IF('IV. Country level, 1310-2018'!J591<0,'III. GDP shares, 1310-2018'!J593,\"\")","v":0.05409027276764445},null,0.2261632626848074,{"v":0.12032786326808649,"d":"12.03%"},{"v":0.20250823357139602,"d":"20.25%"},{"v":0.11645643478393256,"d":"11.65%"},{"v":0.20677378773650956,"d":"20.68%"}]
[1898,{"$f":"IF('IV. Country level, 1310-2018'!C592<0,'III. GDP shares, 1310-2018'!C594,\"\")","v":""},{"$f":"IF('IV. Country level, 1310-2018'!D592<0,'III. GDP shares, 1310-2018'!D594,\"\")","v":""},{"$f":"IF('IV. Country level, 1310-2018'!E592<0,'III. GDP shares, 1310-2018'!E594,\"\")","v":""},{"$f":"IF('IV. Country level, 1310-2018'!F592<0,'III. GDP shares, 1310-2018'!F594,\"\")","v":""},{"$f":"IF('IV. Country level, 1310-2018'!G592<0,'III. GDP shares, 1310-2018'!G594,\"\")","v":""},{"$f":"IF('IV. Country level, 1310-2018'!H592<0,'III. GDP shares, 1310-2018'!H594,\"\")","v":""},{"$f":"IF('IV. Country level, 1310-2018'!I592<0,'III. GDP shares, 1310-2018'!I594,\"\")","v":""},{"$f":"IF('IV. Country level, 1310-2018'!J592<0,'III. GDP shares, 1310-2018'!J594,\"\")","v":""},null,0,{"v":0.12295294255537972,"d":"12.30%"},{"v":0.20250823357139602,"d":"20.25%"},{"v":0.11260069427146692,"d":"11.26%"},{"v":0.20677378773650956,"d":"20.68%"}]
[1899,{"$f":"IF('IV. Country level, 1310-2018'!C593<0,'III. GDP shares, 1310-2018'!C595,\"\")","v":""},{"$f":"IF('IV. Country level, 1310-2018'!D593<0,'III. GDP shares, 1310-2018'!D595,\"\")","v":""},{"$f":"IF('IV. Country level, 1310-2018'!E593<0,'III. GDP shares, 1310-2018'!E595,\"\")","v":""},{"$f":"IF('IV. Country level, 1310-2018'!F593<0,'III. GDP shares, 1310-2018'!F595,\"\")","v":""},{"$f":"IF('IV. Country level, 1310-2018'!G593<0,'III. GDP shares, 1310-2018'!G595,\"\")","v":""},{"$f":"IF('IV. Country level, 1310-2018'!H593<0,'III. GDP shares, 1310-2018'!H595,\"\")","v":0.33031461570385046},{"$f":"IF('IV. Country level, 1310-2018'!I593<0,'III. GDP shares, 1310-2018'!I595,\"\")","v":""},{"$f":"IF('IV. Country level, 1310-2018'!J593<0,'III. GDP shares, 1310-2018'!J595,\"\")","v":""},null,0.33031461570385046,{"v":0.13037932976239516,"d":"13.04%"},{"v":0.20250823357139602,"d":"20.25%"},{"v":0.12881338656972907,"d":"12.88%"},{"v":0.20677378773650956,"d":"20.68%"}]
[1900,{"$f":"IF('IV. Country level, 1310-2018'!C594<0,'III. GDP shares, 1310-2018'!C596,\"\")","v":""},{"$f":"IF('IV. Country level, 1310-2018'!D594<0,'III. GDP shares, 1310-2018'!D596,\"\")","v":0.19679760079236833},{"$f":"IF('IV. Country level, 1310-2018'!E594<0,'III. GDP shares, 1310-2018'!E596,\"\")","v":0.018740741412602107},{"$f":"IF('IV. Country level, 1310-2018'!F594<0,'III. GDP shares, 1310-2018'!F596,\"\")","v":""},{"$f":"IF('IV. Country level, 1310-2018'!G594<0,'III. GDP shares, 1310-2018'!G596,\"\")","v":""},{"$f":"IF('IV. Country level, 1310-2018'!H594<0,'III. GDP shares, 1310-2018'!H596,\"\")","v":""},{"$f":"IF('IV. Country level, 1310-2018'!I594<0,'III. GDP shares, 1310-2018'!I596,\"\")","v":0.03530549580819906},{"$f":"IF('IV. Country level, 1310-2018'!J594<0,'III. GDP shares, 1310-2018'!J596,\"\")","v":""},null,0.2508438380131695,{"v":0.13306731523407841,"d":"13.31%"},{"v":0.20250823357139602,"d":"20.25%"},{"v":0.1549732132837508,"d":"15.50%"},{"$f":"AVERAGE(L$596:L$695)","v":{"v":0.2420711110504084,"d":"24.21%"}}]
[1901,{"$f":"IF('IV. Country level, 1310-2018'!C595<0,'III. GDP shares, 1310-2018'!C597,\"\")","v":""},{"$f":"IF('IV. Country level, 1310-2018'!D595<0,'III. GDP shares, 1310-2018'!D597,\"\")","v":""},{"$f":"IF('IV. Country level, 1310-2018'!E595<0,'III. GDP shares, 1310-2018'!E597,\"\")","v":0.01837555501105269},{"$f":"IF('IV. Country level, 1310-2018'!F595<0,'III. GDP shares, 1310-2018'!F597,\"\")","v":""},{"$f":"IF('IV. Country level, 1310-2018'!G595<0,'III. GDP shares, 1310-2018'!G597,\"\")","v":""},{"$f":"IF('IV. Country level, 1310-2018'!H595<0,'III. GDP shares, 1310-2018'!H597,\"\")","v":""},{"$f":"IF('IV. Country level, 1310-2018'!I595<0,'III. GDP shares, 1310-2018'!I597,\"\")","v":""},{"$f":"IF('IV. Country level, 1310-2018'!J595<0,'III. GDP shares, 1310-2018'!J597,\"\")","v":""},null,0.01837555501105269,{"v":0.10846287629719939,"d":"10.85%"},{"v":0.20250823357139602,"d":"20.25%"},{"v":0.18104991749709728,"d":"18.10%"},{"$f":"AVERAGE(L$596:L$695)","v":{"v":0.2420711110504084,"d":"24.21%"}}]
[1902,{"$f":"IF('IV. Country level, 1310-2018'!C596<0,'III. GDP shares, 1310-2018'!C598,\"\")","v":""},{"$f":"IF('IV. Country level, 1310-2018'!D596<0,'III. GDP shares, 1310-2018'!D598,\"\")","v":""},{"$f":"IF('IV. Country level, 1310-2018'!E596<0,'III. GDP shares, 1310-2018'!E598,\"\")","v":""},{"$f":"IF('IV. Country level, 1310-2018'!F596<0,'III. GDP shares, 1310-2018'!F598,\"\")","v":""},{"$f":"IF('IV. Country level, 1310-2018'!G596<0,'III. GDP shares, 1310-2018'!G598,\"\")","v":""},{"$f":"IF('IV. Country level, 1310-2018'!H596<0,'III. GDP shares, 1310-2018'!H598,\"\")","v":""},{"$f":"IF('IV. Country level, 1310-2018'!I596<0,'III. GDP shares, 1310-2018'!I598,\"\")","v":""},{"$f":"IF('IV. Country level, 1310-2018'!J596<0,'III. GDP shares, 1310-2018'!J598,\"\")","v":0.05198471044910817},null,0.05198471044910817,{"v":0.14020954583028564,"d":"14.02%"},{"v":0.20250823357139602,"d":"20.25%"},{"v":0.20560108105086822,"d":"20.56%"},{"v":0.2420711110504084,"d":"24.21%"}]
[1903,{"$f":"IF('IV. Country level, 1310-2018'!C597<0,'III. GDP shares, 1310-2018'!C599,\"\")","v":""},{"$f":"IF('IV. Country level, 1310-2018'!D597<0,'III. GDP shares, 1310-2018'!D599,\"\")","v":""},{"$f":"IF('IV. Country level, 1310-2018'!E597<0,'III. GDP shares, 1310-2018'!E599,\"\")","v":""},{"$f":"IF('IV. Country level, 1310-2018'!F597<0,'III. GDP shares, 1310-2018'!F599,\"\")","v":""},{"$f":"IF('IV. Country level, 1310-2018'!G597<0,'III. GDP shares, 1310-2018'!G599,\"\")","v":""},{"$f":"IF('IV. Country level, 1310-2018'!H597<0,'III. GDP shares, 1310-2018'!H599,\"\")","v":""},{"$f":"IF('IV. Country level, 1310-2018'!I597<0,'III. GDP shares, 1310-2018'!I599,\"\")","v":""},{"$f":"IF('IV. Country level, 1310-2018'!J597<0,'III. GDP shares, 1310-2018'!J599,\"\")","v":0.0537892247765608},null,0.0537892247765608,{"v":0.17150648208044997,"d":"17.15%"},{"v":0.20250823357139602,"d":"20.25%"},{"$f":"AVERAGE(K583:K615)","v":{"v":0.23325581646176566,"d":"23.33%"}},{"v":0.2420711110504084,"d":"24.21%"}]
[1904,{"$f":"IF('IV. Country level, 1310-2018'!C598<0,'III. GDP shares, 1310-2018'!C600,\"\")","v":""},{"$f":"IF('IV. Country level, 1310-2018'!D598<0,'III. GDP shares, 1310-2018'!D600,\"\")","v":""},{"$f":"IF('IV. Country level, 1310-2018'!E598<0,'III. GDP shares, 1310-2018'!E600,\"\")","v":""},{"$f":"IF('IV. Country level, 1310-2018'!F598<0,'III. GDP shares, 1310-2018'!F600,\"\")","v":""},{"$f":"IF('IV. Country level, 1310-2018'!G598<0,'III. GDP shares, 1310-2018'!G600,\"\")","v":""},{"$f":"IF('IV. Country level, 1310-2018'!H598<0,'III. GDP shares, 1310-2018'!H600,\"\")","v":""},{"$f":"IF('IV. Country level, 1310-2018'!I598<0,'III. GDP shares, 1310-2018'!I600,\"\")","v":""},{"$f":"IF('IV. Country level, 1310-2018'!J598<0,'III. GDP shares, 1310-2018'!J600,\"\")","v":0.053932190126654095},null,0.053932190126654095,{"v":0.20653900591533023,"d":"20.65%"},{"v":0.20250823357139602,"d":"20.25%"},{"v":0.24616482773411985,"d":"24.62%"},{"v":0.2420711110504084,"d":"24.21%"}]
[1905,{"$f":"IF('IV. Country level, 1310-2018'!C599<0,'III. GDP shares, 1310-2018'!C601,\"\")","v":""},{"$f":"IF('IV. Country level, 1310-2018'!D599<0,'III. GDP shares, 1310-2018'!D601,\"\")","v":""},{"$f":"IF('IV. Country level, 1310-2018'!E599<0,'III. GDP shares, 1310-2018'!E601,\"\")","v":""},{"$f":"IF('IV. Country level, 1310-2018'!F599<0,'III. GDP shares, 1310-2018'!F601,\"\")","v":0.1712623469894456},{"$f":"IF('IV. Country level, 1310-2018'!G599<0,'III. GDP shares, 1310-2018'!G601,\"\")","v":""},{"$f":"IF('IV. Country level, 1310-2018'!H599<0,'III. GDP shares, 1310-2018'!H601,\"\")","v":""},{"$f":"IF('IV. Country level, 1310-2018'!I599<0,'III. GDP shares, 1310-2018'!I601,\"\")","v":""},{"$f":"IF('IV. Country level, 1310-2018'!J599<0,'III. GDP shares, 1310-2018'!J601,\"\")","v":0.05096433974215813},null,0.22222668673160373,{"v":0.20391392662803698,"d":"20.39%"},{"v":0.20250823357139602,"d":"20.25%"},{"v":0.24862299148807557,"d":"24.86%"},{"v":0.2420711110504084,"d":"24.21%"}]
[1906,{"$f":"IF('IV. Country level, 1310-2018'!C600<0,'III. GDP shares, 1310-2018'!C602,\"\")","v":""},{"$f":"IF('IV. Country level, 1310-2018'!D600<0,'III. GDP shares, 1310-2018'!D602,\"\")","v":""},{"$f":"IF('IV. Country level, 1310-2018'!E600<0,'III. GDP shares, 1310-2018'!E602,\"\")","v":""},{"$f":"IF('IV. Country level, 1310-2018'!F600<0,'III. GDP shares, 1310-2018'!F602,\"\")","v":0.1653060869244872},{"$f":"IF('IV. Country level, 1310-2018'!G600<0,'III. GDP shares, 1310-2018'!G602,\"\")","v":""},{"$f":"IF('IV. Country level, 1310-2018'!H600<0,'III. GDP shares, 1310-2018'!H602,\"\")","v":0.38408708253051355},{"$f":"IF('IV. Country level, 1310-2018'!I600<0,'III. GDP shares, 1310-2018'!I602,\"\")","v":""},{"$f":"IF('IV. Country level, 1310-2018'!J600<0,'III. GDP shares, 1310-2018'!J602,\"\")","v":""},null,0.5493931694550007,{"v":0.25063976006200905,"d":"25.06%"},{"v":0.20250823357139602,"d":"20.25%"},{"v":0.24458294168032946,"d":"24.46%"},{"v":0.2420711110504084,"d":"24.21%"}]
[1907,{"$f":"IF('IV. Country level, 1310-2018'!C601<0,'III. GDP shares, 1310-2018'!C603,\"\")","v":0.06859029476993993},{"$f":"IF('IV. Country level, 1310-2018'!D601<0,'III. GDP shares, 1310-2018'!D603,\"\")","v":""},{"$f":"IF('IV. Country level, 1310-2018'!E601<0,'III. GDP shares, 1310-2018'!E603,\"\")","v":0.01768236843271974},{"$f":"IF('IV. Country level, 1310-2018'!F601<0,'III. GDP shares, 1310-2018'!F603,\"\")","v":""},{"$f":"IF('IV. Country level, 1310-2018'!G601<0,'III. GDP shares, 1310-2018'!G603,\"\")","v":""},{"$f":"IF('IV. Country level, 1310-2018'!H601<0,'III. GDP shares, 1310-2018'!H603,\"\")","v":0.37825891420939556},{"$f":"IF('IV. Country level, 1310-2018'!I601<0,'III. GDP shares, 1310-2018'!I603,\"\")","v":0.03153992744527625},{"$f":"IF('IV. Country level, 1310-2018'!J601<0,'III. GDP shares, 1310-2018'!J603,\"\")","v":""},null,0.4960715048573314,{"v":0.24295558509392892,"d":"24.30%"},{"v":0.20250823357139602,"d":"20.25%"},{"v":0.24622178129468716,"d":"24.62%"},{"v":0.2420711110504084,"d":"24.21%"}]
[1908,{"$f":"IF('IV. Country level, 1310-2018'!C602<0,'III. GDP shares, 1310-2018'!C604,\"\")","v":""},{"$f":"IF('IV. Country level, 1310-2018'!D602<0,'III. GDP shares, 1310-2018'!D604,\"\")","v":""},{"$f":"IF('IV. Country level, 1310-2018'!E602<0,'III. GDP shares, 1310-2018'!E604,\"\")","v":""},{"$f":"IF('IV. Country level, 1310-2018'!F602<0,'III. GDP shares, 1310-2018'!F604,\"\")","v":""},{"$f":"IF('IV. Country level, 1310-2018'!G602<0,'III. GDP shares, 1310-2018'!G604,\"\")","v":""},{"$f":"IF('IV. Country level, 1310-2018'!H602<0,'III. GDP shares, 1310-2018'!H604,\"\")","v":""},{"$f":"IF('IV. Country level, 1310-2018'!I602<0,'III. GDP shares, 1310-2018'!I604,\"\")","v":""},{"$f":"IF('IV. Country level, 1310-2018'!J602<0,'III. GDP shares, 1310-2018'!J604,\"\")","v":""},null,0,{"v":0.28274927776693193,"d":"28.27%"},{"v":0.20250823357139602,"d":"20.25%"},{"v":0.24596679583603323,"d":"24.60%"},{"v":0.2420711110504084,"d":"24.21%"}]
[1909,{"$f":"IF('IV. Country level, 1310-2018'!C603<0,'III. GDP shares, 1310-2018'!C605,\"\")","v":""},{"$f":"IF('IV. Country level, 1310-2018'!D603<0,'III. GDP shares, 1310-2018'!D605,\"\")","v":""},{"$f":"IF('IV. Country level, 1310-2018'!E603<0,'III. GDP shares, 1310-2018'!E605,\"\")","v":""},{"$f":"IF('IV. Country level, 1310-2018'!F603<0,'III. GDP shares, 1310-2018'!F605,\"\")","v":""},{"$f":"IF('IV. Country level, 1310-2018'!G603<0,'III. GDP shares, 1310-2018'!G605,\"\")","v":""},{"$f":"IF('IV. Country level, 1310-2018'!H603<0,'III. GDP shares, 1310-2018'!H605,\"\")","v":0.37906554448691265},{"$f":"IF('IV. Country level, 1310-2018'!I603<0,'III. GDP shares, 1310-2018'!I605,\"\")","v":""},{"$f":"IF('IV. Country level, 1310-2018'!J603<0,'III. GDP shares, 1310-2018'!J605,\"\")","v":""},null,0.37906554448691265,{"v":0.2586760975553088,"d":"25.87%"},{"v":0.20250823357139602,"d":"20.25%"},{"v":0.25110376288251635,"d":"25.11%"},{"v":0.2420711110504084,"d":"24.21%"}]
[1910,{"$f":"IF('IV. Country level, 1310-2018'!C604<0,'III. GDP shares, 1310-2018'!C606,\"\")","v":""},{"$f":"IF('IV. Country level, 1310-2018'!D604<0,'III. GDP shares, 1310-2018'!D606,\"\")","v":""},{"$f":"IF('IV. Country level, 1310-2018'!E604<0,'III. GDP shares, 1310-2018'!E606,\"\")","v":""},{"$f":"IF('IV. Country level, 1310-2018'!F604<0,'III. GDP shares, 1310-2018'!F606,\"\")","v":""},{"$f":"IF('IV. Country level, 1310-2018'!G604<0,'III. GDP shares, 1310-2018'!G606,\"\")","v":""},{"$f":"IF('IV. Country level, 1310-2018'!H604<0,'III. GDP shares, 1310-2018'!H606,\"\")","v":""},{"$f":"IF('IV. Country level, 1310-2018'!I604<0,'III. GDP shares, 1310-2018'!I606,\"\")","v":""},{"$f":"IF('IV. Country level, 1310-2018'!J604<0,'III. GDP shares, 1310-2018'!J606,\"\")","v":""},null,0,{"v":0.18019135906173728,"d":"18.02%"},{"v":0.20250823357139602,"d":"20.25%"},{"v":0.2541499325762563,"d":"25.41%"},{"v":0.2420711110504084,"d":"24.21%"}]
[1911,{"$f":"IF('IV. Country level, 1310-2018'!C605<0,'III. GDP shares, 1310-2018'!C607,\"\")","v":""},{"$f":"IF('IV. Country level, 1310-2018'!D605<0,'III. GDP shares, 1310-2018'!D607,\"\")","v":""},{"$f":"IF('IV. Country level, 1310-2018'!E605<0,'III. GDP shares, 1310-2018'!E607,\"\")","v":""},{"$f":"IF('IV. Country level, 1310-2018'!F605<0,'III. GDP shares, 1310-2018'!F607,\"\")","v":0.17231399233569938},{"$f":"IF('IV. Country level, 1310-2018'!G605<0,'III. GDP shares, 1310-2018'!G607,\"\")","v":0.10627849831505115},{"$f":"IF('IV. Country level, 1310-2018'!H605<0,'III. GDP shares, 1310-2018'!H607,\"\")","v":""},{"$f":"IF('IV. Country level, 1310-2018'!I605<0,'III. GDP shares, 1310-2018'!I607,\"\")","v":""},{"$f":"IF('IV. Country level, 1310-2018'!J605<0,'III. GDP shares, 1310-2018'!J607,\"\")","v":0.053895548186924686},null,0.3324880388376752,{"v":0.13204942406226025,"d":"13.20%"},{"v":0.20250823357139602,"d":"20.25%"},{"v":0.2541499325762563,"d":"25.41%"},{"v":0.2420711110504084,"d":"24.21%"}]
[1912,{"$f":"IF('IV. Country level, 1310-2018'!C606<0,'III. GDP shares, 1310-2018'!C608,\"\")","v":""},{"$f":"IF('IV. Country level, 1310-2018'!D606<0,'III. GDP shares, 1310-2018'!D608,\"\")","v":""},{"$f":"IF('IV. Country level, 1310-2018'!E606<0,'III. GDP shares, 1310-2018'!E608,\"\")","v":""},{"$f":"IF('IV. Country level, 1310-2018'!F606<0,'III. GDP shares, 1310-2018'!F608,\"\")","v":""},{"$f":"IF('IV. Country level, 1310-2018'!G606<0,'III. GDP shares, 1310-2018'!G608,\"\")","v":""},{"$f":"IF('IV. Country level, 1310-2018'!H606<0,'III. GDP shares, 1310-2018'!H608,\"\")","v":""},{"$f":"IF('IV. Country level, 1310-2018'!I606<0,'III. GDP shares, 1310-2018'!I608,\"\")","v":""},{"$f":"IF('IV. Country level, 1310-2018'!J606<0,'III. GDP shares, 1310-2018'!J608,\"\")","v":0.05371442525024162},null,0.05371442525024162,{"v":0.20848068775406753,"d":"20.85%"},{"v":0.20250823357139602,"d":"20.25%"},{"v":0.2571575145963883,"d":"25.72%"},{"v":0.2420711110504084,"d":"24.21%"}]
[1913,{"$f":"IF('IV. Country level, 1310-2018'!C607<0,'III. GDP shares, 1310-2018'!C609,\"\")","v":""},{"$f":"IF('IV. Country level, 1310-2018'!D607<0,'III. GDP shares, 1310-2018'!D609,\"\")","v":""},{"$f":"IF('IV. Country level, 1310-2018'!E607<0,'III. GDP shares, 1310-2018'!E609,\"\")","v":""},{"$f":"IF('IV. Country level, 1310-2018'!F607<0,'III. GDP shares, 1310-2018'!F609,\"\")","v":""},{"$f":"IF('IV. Country level, 1310-2018'!G607<0,'III. GDP shares, 1310-2018'!G609,\"\")","v":""},{"$f":"IF('IV. Country level, 1310-2018'!H607<0,'III. GDP shares, 1310-2018'!H609,\"\")","v":""},{"$f":"IF('IV. Country level, 1310-2018'!I607<0,'III. GDP shares, 1310-2018'!I609,\"\")","v":""},{"$f":"IF('IV. Country level, 1310-2018'!J607<0,'III. GDP shares, 1310-2018'!J609,\"\")","v":""},null,0,{"v":0.27765336447918243,"d":"27.77%"},{"v":0.20250823357139602,"d":"20.25%"},{"v":0.25609771682442534,"d":"25.61%"},{"v":0.2420711110504084,"d":"24.21%"}]
[1914,{"$f":"IF('IV. Country level, 1310-2018'!C608<0,'III. GDP shares, 1310-2018'!C610,\"\")","v":""},{"$f":"IF('IV. Country level, 1310-2018'!D608<0,'III. GDP shares, 1310-2018'!D610,\"\")","v":""},{"$f":"IF('IV. Country level, 1310-2018'!E608<0,'III. GDP shares, 1310-2018'!E610,\"\")","v":""},{"$f":"IF('IV. Country level, 1310-2018'!F608<0,'III. GDP shares, 1310-2018'!F610,\"\")","v":0.1590779598609922},{"$f":"IF('IV. Country level, 1310-2018'!G608<0,'III. GDP shares, 1310-2018'!G610,\"\")","v":""},{"$f":"IF('IV. Country level, 1310-2018'!H608<0,'III. GDP shares, 1310-2018'!H610,\"\")","v":""},{"$f":"IF('IV. Country level, 1310-2018'!I608<0,'III. GDP shares, 1310-2018'!I610,\"\")","v":""},{"$f":"IF('IV. Country level, 1310-2018'!J608<0,'III. GDP shares, 1310-2018'!J610,\"\")","v":""},null,0.1590779598609922,{"v":0.40058639862781587,"d":"40.06%"},{"v":0.20250823357139602,"d":"20.25%"},{"v":0.2534332712988929,"d":"25.34%"},{"v":0.2420711110504084,"d":"24.21%"}]
[1915,{"$f":"IF('IV. Country level, 1310-2018'!C609<0,'III. GDP shares, 1310-2018'!C611,\"\")","v":0.08153062736639057},{"$f":"IF('IV. Country level, 1310-2018'!D609<0,'III. GDP shares, 1310-2018'!D611,\"\")","v":0.18719971155094833},{"$f":"IF('IV. Country level, 1310-2018'!E609<0,'III. GDP shares, 1310-2018'!E611,\"\")","v":0.019177474925631512},{"$f":"IF('IV. Country level, 1310-2018'!F609<0,'III. GDP shares, 1310-2018'!F611,\"\")","v":0.14666979647068232},{"$f":"IF('IV. Country level, 1310-2018'!G609<0,'III. GDP shares, 1310-2018'!G611,\"\")","v":0.10044123552899832},{"$f":"IF('IV. Country level, 1310-2018'!H609<0,'III. GDP shares, 1310-2018'!H611,\"\")","v":""},{"$f":"IF('IV. Country level, 1310-2018'!I609<0,'III. GDP shares, 1310-2018'!I611,\"\")","v":""},{"$f":"IF('IV. Country level, 1310-2018'!J609<0,'III. GDP shares, 1310-2018'!J611,\"\")","v":""},null,0.535018845842651,{"v":0.4763591603806046,"d":"47.64%"},{"v":0.20250823357139602,"d":"20.25%"},{"v":0.2534332712988929,"d":"25.34%"},{"v":0.2420711110504084,"d":"24.21%"}]
[1916,{"$f":"IF('IV. Country level, 1310-2018'!C610<0,'III. GDP shares, 1310-2018'!C612,\"\")","v":0.084437210539153},{"$f":"IF('IV. Country level, 1310-2018'!D610<0,'III. GDP shares, 1310-2018'!D612,\"\")","v":0.1766002369120245},{"$f":"IF('IV. Country level, 1310-2018'!E610<0,'III. GDP shares, 1310-2018'!E612,\"\")","v":0.01817731587599897},{"$f":"IF('IV. Country level, 1310-2018'!F610<0,'III. GDP shares, 1310-2018'!F612,\"\")","v":""},{"$f":"IF('IV. Country level, 1310-2018'!G610<0,'III. GDP shares, 1310-2018'!G612,\"\")","v":0.09740125127799246},{"$f":"IF('IV. Country level, 1310-2018'!H610<0,'III. GDP shares, 1310-2018'!H612,\"\")","v":0.3940104756795236},{"$f":"IF('IV. Country level, 1310-2018'!I610<0,'III. GDP shares, 1310-2018'!I612,\"\")","v":0.030805203429086856},{"$f":"IF('IV. Country level, 1310-2018'!J610<0,'III. GDP shares, 1310-2018'!J612,\"\")","v":0.06184258784893762},null,0.8632742815627169,{"v":0.5990579951390866,"d":"59.91%"},{"v":0.20250823357139602,"d":"20.25%"},{"v":0.24589057834538164,"d":"24.59%"},{"v":0.2420711110504084,"d":"24.21%"}]
[1917,{"$f":"IF('IV. Country level, 1310-2018'!C611<0,'III. GDP shares, 1310-2018'!C613,\"\")","v":0.09007548754081314},{"$f":"IF('IV. Country level, 1310-2018'!D611<0,'III. GDP shares, 1310-2018'!D613,\"\")","v":0.18153669240141207},{"$f":"IF('IV. Country level, 1310-2018'!E611<0,'III. GDP shares, 1310-2018'!E613,\"\")","v":0.017336099391002755},{"$f":"IF('IV. Country level, 1310-2018'!F611<0,'III. GDP shares, 1310-2018'!F613,\"\")","v":""},{"$f":"IF('IV. Country level, 1310-2018'!G611<0,'III. GDP shares, 1310-2018'!G613,\"\")","v":0.08407892380325303},{"$f":"IF('IV. Country level, 1310-2018'!H611<0,'III. GDP shares, 1310-2018'!H613,\"\")","v":0.3913883242622484},{"$f":"IF('IV. Country level, 1310-2018'!I611<0,'III. GDP shares, 1310-2018'!I613,\"\")","v":0.030999032538684166},{"$f":"IF('IV. Country level, 1310-2018'!J611<0,'III. GDP shares, 1310-2018'!J613,\"\")","v":0.06511667910302053},null,0.8605312390404342,{"v":0.6599147625658992,"d":"65.99%"},{"v":0.20250823357139602,"d":"20.25%"},{"v":0.2382892499207402,"d":"23.83%"},{"v":0.2420711110504084,"d":"24.21%"}]
[1918,{"$f":"IF('IV. Country level, 1310-2018'!C612<0,'III. GDP shares, 1310-2018'!C614,\"\")","v":0.08964600020584909},{"$f":"IF('IV. Country level, 1310-2018'!D612<0,'III. GDP shares, 1310-2018'!D614,\"\")","v":0.17912929377823683},{"$f":"IF('IV. Country level, 1310-2018'!E612<0,'III. GDP shares, 1310-2018'!E614,\"\")","v":0.015945586291725853},{"$f":"IF('IV. Country level, 1310-2018'!F612<0,'III. GDP shares, 1310-2018'!F614,\"\")","v":""},{"$f":"IF('IV. Country level, 1310-2018'!G612<0,'III. GDP shares, 1310-2018'!G614,\"\")","v":0.0650446040585781},{"$f":"IF('IV. Country level, 1310-2018'!H612<0,'III. GDP shares, 1310-2018'!H614,\"\")","v":0.4184366087262719},{"$f":"IF('IV. Country level, 1310-2018'!I612<0,'III. GDP shares, 1310-2018'!I614,\"\")","v":0.030183225023684417},{"$f":"IF('IV. Country level, 1310-2018'!J612<0,'III. GDP shares, 1310-2018'!J614,\"\")","v":0.06451205302285015},null,0.8628973711071964,{"v":0.6487778259972629,"d":"64.88%"},{"v":0.20250823357139602,"d":"20.25%"},{"v":0.23773241492040526,"d":"23.77%"},{"v":0.2420711110504084,"d":"24.21%"}]
[1919,{"$f":"IF('IV. Country level, 1310-2018'!C613<0,'III. GDP shares, 1310-2018'!C615,\"\")","v":""},{"$f":"IF('IV. Country level, 1310-2018'!D613<0,'III. GDP shares, 1310-2018'!D615,\"\")","v":0.18689309945183985},{"$f":"IF('IV. Country level, 1310-2018'!E613<0,'III. GDP shares, 1310-2018'!E615,\"\")","v":0.02313030873941781},{"$f":"IF('IV. Country level, 1310-2018'!F613<0,'III. GDP shares, 1310-2018'!F615,\"\")","v":""},{"$f":"IF('IV. Country level, 1310-2018'!G613<0,'III. GDP shares, 1310-2018'!G615,\"\")","v":0.08971959527596841},{"$f":"IF('IV. Country level, 1310-2018'!H613<0,'III. GDP shares, 1310-2018'!H615,\"\")","v":0.49405836675829107},{"$f":"IF('IV. Country level, 1310-2018'!I613<0,'III. GDP shares, 1310-2018'!I615,\"\")","v":0.03555131872152011},{"$f":"IF('IV. Country level, 1310-2018'!J613<0,'III. GDP shares, 1310-2018'!J615,\"\")","v":0.08325357961257865},null,0.9126062685596158,{"v":0.5838282275300933,"d":"58.38%"},{"v":0.20250823357139602,"d":"20.25%"},{"v":0.2501491773195355,"d":"25.01%"},{"v":0.2420711110504084,"d":"24.21%"}]
[1920,{"$f":"IF('IV. Country level, 1310-2018'!C614<0,'III. GDP shares, 1310-2018'!C616,\"\")","v":0.0807144479581918},{"$f":"IF('IV. Country level, 1310-2018'!D614<0,'III. GDP shares, 1310-2018'!D616,\"\")","v":0.17763163765259454},{"$f":"IF('IV. Country level, 1310-2018'!E614<0,'III. GDP shares, 1310-2018'!E616,\"\")","v":0.024106466689289868},{"$f":"IF('IV. Country level, 1310-2018'!F614<0,'III. GDP shares, 1310-2018'!F616,\"\")","v":""},{"$f":"IF('IV. Country level, 1310-2018'!G614<0,'III. GDP shares, 1310-2018'!G616,\"\")","v":0.10498333546924456},{"$f":"IF('IV. Country level, 1310-2018'!H614<0,'III. GDP shares, 1310-2018'!H616,\"\")","v":""},{"$f":"IF('IV. Country level, 1310-2018'!I614<0,'III. GDP shares, 1310-2018'!I616,\"\")","v":0.038561484218367276},{"$f":"IF('IV. Country level, 1310-2018'!J614<0,'III. GDP shares, 1310-2018'!J616,\"\")","v":""},null,0.42599737198768794,{"v":0.47635543140685394,"d":"47.64%"},{"v":0.20250823357139602,"d":"20.25%"},{"v":0.2558289128313454,"d":"25.58%"},{"v":0.2420711110504084,"d":"24.21%"}]
[1921,{"$f":"IF('IV. Country level, 1310-2018'!C615<0,'III. GDP shares, 1310-2018'!C617,\"\")","v":0.0811194038805385},{"$f":"IF('IV. Country level, 1310-2018'!D615<0,'III. GDP shares, 1310-2018'!D617,\"\")","v":""},{"$f":"IF('IV. Country level, 1310-2018'!E615<0,'III. GDP shares, 1310-2018'!E617,\"\")","v":""},{"$f":"IF('IV. Country level, 1310-2018'!F615<0,'III. GDP shares, 1310-2018'!F617,\"\")","v":""},{"$f":"IF('IV. Country level, 1310-2018'!G615<0,'III. GDP shares, 1310-2018'!G617,\"\")","v":""},{"$f":"IF('IV. Country level, 1310-2018'!H615<0,'III. GDP shares, 1310-2018'!H617,\"\")","v":""},{"$f":"IF('IV. Country level, 1310-2018'!I615<0,'III. GDP shares, 1310-2018'!I617,\"\")","v":""},{"$f":"IF('IV. Country level, 1310-2018'!J615<0,'III. GDP shares, 1310-2018'!J617,\"\")","v":""},null,0.0811194038805385,{"v":0.3779522633462223,"d":"37.80%"},{"v":0.20250823357139602,"d":"20.25%"},{"v":0.27908438837666044,"d":"27.91%"},{"v":0.2420711110504084,"d":"24.21%"}]
[1922,{"$f":"IF('IV. Country level, 1310-2018'!C616<0,'III. GDP shares, 1310-2018'!C618,\"\")","v":0.08037165657246473},{"$f":"IF('IV. Country level, 1310-2018'!D616<0,'III. GDP shares, 1310-2018'!D618,\"\")","v":""},{"$f":"IF('IV. Country level, 1310-2018'!E616<0,'III. GDP shares, 1310-2018'!E618,\"\")","v":""},{"$f":"IF('IV. Country level, 1310-2018'!F616<0,'III. GDP shares, 1310-2018'!F618,\"\")","v":""},{"$f":"IF('IV. Country level, 1310-2018'!G616<0,'III. GDP shares, 1310-2018'!G618,\"\")","v":""},{"$f":"IF('IV. Country level, 1310-2018'!H616<0,'III. GDP shares, 1310-2018'!H618,\"\")","v":""},{"$f":"IF('IV. Country level, 1310-2018'!I616<0,'III. GDP shares, 1310-2018'!I618,\"\")","v":""},{"$f":"IF('IV. Country level, 1310-2018'!J616<0,'III. GDP shares, 1310-2018'!J618,\"\")","v":""},null,0.08037165657246473,{"v":0.2788983406929003,"d":"27.89%"},{"v":0.20250823357139602,"d":"20.25%"},{"v":0.2777554760203363,"d":"27.78%"},{"v":0.2420711110504084,"d":"24.21%"}]
[1923,{"$f":"IF('IV. Country level, 1310-2018'!C617<0,'III. GDP shares, 1310-2018'!C619,\"\")","v":""},{"$f":"IF('IV. Country level, 1310-2018'!D617<0,'III. GDP shares, 1310-2018'!D619,\"\")","v":""},{"$f":"IF('IV. Country level, 1310-2018'!E617<0,'III. GDP shares, 1310-2018'!E619,\"\")","v":""},{"$f":"IF('IV. Country level, 1310-2018'!F617<0,'III. GDP shares, 1310-2018'!F619,\"\")","v":""},{"$f":"IF('IV. Country level, 1310-2018'!G617<0,'III. GDP shares, 1310-2018'!G619,\"\")","v":0.11096470870003981},{"$f":"IF('IV. Country level, 1310-2018'!H617<0,'III. GDP shares, 1310-2018'!H619,\"\")","v":""},{"$f":"IF('IV. Country level, 1310-2018'!I617<0,'III. GDP shares, 1310-2018'!I619,\"\")","v":""},{"$f":"IF('IV. Country level, 1310-2018'!J617<0,'III. GDP shares, 1310-2018'!J619,\"\")","v":""},null,0.11096470870003981,{"v":0.1628865308834435,"d":"16.29%"},{"v":0.20250823357139602,"d":"20.25%"},{"v":0.2680406199758613,"d":"26.80%"},{"v":0.2420711110504084,"d":"24.21%"}]
[1924,{"$f":"IF('IV. Country level, 1310-2018'!C618<0,'III. GDP shares, 1310-2018'!C620,\"\")","v":0.06681432189224763},{"$f":"IF('IV. Country level, 1310-2018'!D618<0,'III. GDP shares, 1310-2018'!D620,\"\")","v":""},{"$f":"IF('IV. Country level, 1310-2018'!E618<0,'III. GDP shares, 1310-2018'!E620,\"\")","v":""},{"$f":"IF('IV. Country level, 1310-2018'!F618<0,'III. GDP shares, 1310-2018'!F620,\"\")","v":""},{"$f":"IF('IV. Country level, 1310-2018'!G618<0,'III. GDP shares, 1310-2018'!G620,\"\")","v":0.10489474072376559},{"$f":"IF('IV. Country level, 1310-2018'!H618<0,'III. GDP shares, 1310-2018'!H620,\"\")","v":""},{"$f":"IF('IV. Country level, 1310-2018'!I618<0,'III. GDP shares, 1310-2018'!I620,\"\")","v":""},{"$f":"IF('IV. Country level, 1310-2018'!J618<0,'III. GDP shares, 1310-2018'!J620,\"\")","v":""},null,0.1717090626160132,{"v":0.10202976345663092,"d":"10.20%"},{"v":0.20250823357139602,"d":"20.25%"},{"v":0.2658249501473574,"d":"26.58%"},{"v":0.2420711110504084,"d":"24.21%"}]
[1925,{"$f":"IF('IV. Country level, 1310-2018'!C619<0,'III. GDP shares, 1310-2018'!C621,\"\")","v":0.06838138345344673},{"$f":"IF('IV. Country level, 1310-2018'!D619<0,'III. GDP shares, 1310-2018'!D621,\"\")","v":""},{"$f":"IF('IV. Country level, 1310-2018'!E619<0,'III. GDP shares, 1310-2018'!E621,\"\")","v":""},{"$f":"IF('IV. Country level, 1310-2018'!F619<0,'III. GDP shares, 1310-2018'!F621,\"\")","v":""},{"$f":"IF('IV. Country level, 1310-2018'!G619<0,'III. GDP shares, 1310-2018'!G621,\"\")","v":0.10113852908049564},{"$f":"IF('IV. Country level, 1310-2018'!H619<0,'III. GDP shares, 1310-2018'!H621,\"\")","v":""},{"$f":"IF('IV. Country level, 1310-2018'!I619<0,'III. GDP shares, 1310-2018'!I621,\"\")","v":""},{"$f":"IF('IV. Country level, 1310-2018'!J619<0,'III. GDP shares, 1310-2018'!J621,\"\")","v":""},null,0.16951991253394239,{"v":0.10461987814003357,"d":"10.46%"},{"v":0.20250823357139602,"d":"20.25%"},{"v":0.28854070644517255,"d":"28.85%"},{"v":0.2420711110504084,"d":"24.21%"}]
[1926,{"$f":"IF('IV. Country level, 1310-2018'!C620<0,'III. GDP shares, 1310-2018'!C622,\"\")","v":""},{"$f":"IF('IV. Country level, 1310-2018'!D620<0,'III. GDP shares, 1310-2018'!D622,\"\")","v":""},{"$f":"IF('IV. Country level, 1310-2018'!E620<0,'III. GDP shares, 1310-2018'!E622,\"\")","v":""},{"$f":"IF('IV. Country level, 1310-2018'!F620<0,'III. GDP shares, 1310-2018'!F622,\"\")","v":""},{"$f":"IF('IV. Country level, 1310-2018'!G620<0,'III. GDP shares, 1310-2018'!G622,\"\")","v":0.10052359989341772},{"$f":"IF('IV. Country level, 1310-2018'!H620<0,'III. GDP shares, 1310-2018'!H622,\"\")","v":""},{"$f":"IF('IV. Country level, 1310-2018'!I620<0,'III. GDP shares, 1310-2018'!I622,\"\")","v":""},{"$f":"IF('IV. Country level, 1310-2018'!J620<0,'III. GDP shares, 1310-2018'!J622,\"\")","v":""},null,0.10052359989341772,{"v":0.09313821291539573,"d":"9.31%"},{"v":0.20250823357139602,"d":"20.25%"},{"v":0.2997063155567518,"d":"29.97%"},{"v":0.2420711110504084,"d":"24.21%"}]
[1927,{"$f":"IF('IV. Country level, 1310-2018'!C621<0,'III. GDP shares, 1310-2018'!C623,\"\")","v":""},{"$f":"IF('IV. Country level, 1310-2018'!D621<0,'III. GDP shares, 1310-2018'!D623,\"\")","v":""},{"$f":"IF('IV. Country level, 1310-2018'!E621<0,'III. GDP shares, 1310-2018'!E623,\"\")","v":""},{"$f":"IF('IV. Country level, 1310-2018'!F621<0,'III. GDP shares, 1310-2018'!F623,\"\")","v":""},{"$f":"IF('IV. Country level, 1310-2018'!G621<0,'III. GDP shares, 1310-2018'!G623,\"\")","v":""},{"$f":"IF('IV. Country level, 1310-2018'!H621<0,'III. GDP shares, 1310-2018'!H623,\"\")","v":""},{"$f":"IF('IV. Country level, 1310-2018'!I621<0,'III. GDP shares, 1310-2018'!I623,\"\")","v":""},{"$f":"IF('IV. Country level, 1310-2018'!J621<0,'III. GDP shares, 1310-2018'!J623,\"\")","v":""},null,0,{"v":0.09703419172142422,"d":"9.70%"},{"v":0.20250823357139602,"d":"20.25%"},{"v":0.32475027613663787,"d":"32.48%"},{"v":0.2420711110504084,"d":"24.21%"}]
[1928,{"$f":"IF('IV. Country level, 1310-2018'!C622<0,'III. GDP shares, 1310-2018'!C624,\"\")","v":""},{"$f":"IF('IV. Country level, 1310-2018'!D622<0,'III. GDP shares, 1310-2018'!D624,\"\")","v":""},{"$f":"IF('IV. Country level, 1310-2018'!E622<0,'III. GDP shares, 1310-2018'!E624,\"\")","v":""},{"$f":"IF('IV. Country level, 1310-2018'!F622<0,'III. GDP shares, 1310-2018'!F624,\"\")","v":""},{"$f":"IF('IV. Country level, 1310-2018'!G622<0,'III. GDP shares, 1310-2018'!G624,\"\")","v":0.09925020666435698},{"$f":"IF('IV. Country level, 1310-2018'!H622<0,'III. GDP shares, 1310-2018'!H624,\"\")","v":""},{"$f":"IF('IV. Country level, 1310-2018'!I622<0,'III. GDP shares, 1310-2018'!I624,\"\")","v":""},{"$f":"IF('IV. Country level, 1310-2018'!J622<0,'III. GDP shares, 1310-2018'!J624,\"\")","v":""},null,0.09925020666435698,{"v":0.07250432563342232,"d":"7.25%"},{"v":0.20250823357139602,"d":"20.25%"},{"v":0.34069738412950434,"d":"34.07%"},{"v":0.2420711110504084,"d":"24.21%"}]
[1929,{"$f":"IF('IV. Country level, 1310-2018'!C623<0,'III. GDP shares, 1310-2018'!C625,\"\")","v":""},{"$f":"IF('IV. Country level, 1310-2018'!D623<0,'III. GDP shares, 1310-2018'!D625,\"\")","v":""},{"$f":"IF('IV. Country level, 1310-2018'!E623<0,'III. GDP shares, 1310-2018'!E625,\"\")","v":""},{"$f":"IF('IV. Country level, 1310-2018'!F623<0,'III. GDP shares, 1310-2018'!F625,\"\")","v":""},{"$f":"IF('IV. Country level, 1310-2018'!G623<0,'III. GDP shares, 1310-2018'!G625,\"\")","v":""},{"$f":"IF('IV. Country level, 1310-2018'!H623<0,'III. GDP shares, 1310-2018'!H625,\"\")","v":""},{"$f":"IF('IV. Country level, 1310-2018'!I623<0,'III. GDP shares, 1310-2018'!I625,\"\")","v":""},{"$f":"IF('IV. Country level, 1310-2018'!J623<0,'III. GDP shares, 1310-2018'!J625,\"\")","v":""},null,0,{"v":0.059916587876855866,"d":"5.99%"},{"v":0.20250823357139602,"d":"20.25%"},{"v":0.36543045035986615,"d":"36.54%"},{"v":0.2420711110504084,"d":"24.21%"}]
[1930,{"$f":"IF('IV. Country level, 1310-2018'!C624<0,'III. GDP shares, 1310-2018'!C626,\"\")","v":""},{"$f":"IF('IV. Country level, 1310-2018'!D624<0,'III. GDP shares, 1310-2018'!D626,\"\")","v":""},{"$f":"IF('IV. Country level, 1310-2018'!E624<0,'III. GDP shares, 1310-2018'!E626,\"\")","v":""},{"$f":"IF('IV. Country level, 1310-2018'!F624<0,'III. GDP shares, 1310-2018'!F626,\"\")","v":""},{"$f":"IF('IV. Country level, 1310-2018'!G624<0,'III. GDP shares, 1310-2018'!G626,\"\")","v":0.10426537651387677},{"$f":"IF('IV. Country level, 1310-2018'!H624<0,'III. GDP shares, 1310-2018'!H626,\"\")","v":""},{"$f":"IF('IV. Country level, 1310-2018'!I624<0,'III. GDP shares, 1310-2018'!I626,\"\")","v":0.033971183828362436},{"$f":"IF('IV. Country level, 1310-2018'!J624<0,'III. GDP shares, 1310-2018'!J626,\"\")","v":""},null,0.1382365603422392,{"v":0.04555607360636761,"d":"4.56%"},{"v":0.20250823357139602,"d":"20.25%"},{"v":0.3957334806628965,"d":"39.57%"},{"v":0.2420711110504084,"d":"24.21%"}]
[1931,{"$f":"IF('IV. Country level, 1310-2018'!C625<0,'III. GDP shares, 1310-2018'!C627,\"\")","v":""},{"$f":"IF('IV. Country level, 1310-2018'!D625<0,'III. GDP shares, 1310-2018'!D627,\"\")","v":""},{"$f":"IF('IV. Country level, 1310-2018'!E625<0,'III. GDP shares, 1310-2018'!E627,\"\")","v":""},{"$f":"IF('IV. Country level, 1310-2018'!F625<0,'III. GDP shares, 1310-2018'!F627,\"\")","v":""},{"$f":"IF('IV. Country level, 1310-2018'!G625<0,'III. GDP shares, 1310-2018'!G627,\"\")","v":""},{"$f":"IF('IV. Country level, 1310-2018'!H625<0,'III. GDP shares, 1310-2018'!H627,\"\")","v":""},{"$f":"IF('IV. Country level, 1310-2018'!I625<0,'III. GDP shares, 1310-2018'!I627,\"\")","v":""},{"$f":"IF('IV. Country level, 1310-2018'!J625<0,'III. GDP shares, 1310-2018'!J627,\"\")","v":""},null,0,{"v":0.04555607360636761,"d":"4.56%"},{"v":0.20250823357139602,"d":"20.25%"},{"v":0.41846052025575275,"d":"41.85%"},{"v":0.2420711110504084,"d":"24.21%"}]
[1932,{"$f":"IF('IV. Country level, 1310-2018'!C626<0,'III. GDP shares, 1310-2018'!C628,\"\")","v":""},{"$f":"IF('IV. Country level, 1310-2018'!D626<0,'III. GDP shares, 1310-2018'!D628,\"\")","v":""},{"$f":"IF('IV. Country level, 1310-2018'!E626<0,'III. GDP shares, 1310-2018'!E628,\"\")","v":""},{"$f":"IF('IV. Country level, 1310-2018'!F626<0,'III. GDP shares, 1310-2018'!F628,\"\")","v":""},{"$f":"IF('IV. Country level, 1310-2018'!G626<0,'III. GDP shares, 1310-2018'!G628,\"\")","v":""},{"$f":"IF('IV. Country level, 1310-2018'!H626<0,'III. GDP shares, 1310-2018'!H628,\"\")","v":""},{"$f":"IF('IV. Country level, 1310-2018'!I626<0,'III. GDP shares, 1310-2018'!I628,\"\")","v":""},{"$f":"IF('IV. Country level, 1310-2018'!J626<0,'III. GDP shares, 1310-2018'!J628,\"\")","v":0.08140574823797712},null,0.08140574823797712,{"v":0.09734002545723167,"d":"9.73%"},{"v":0.20250823357139602,"d":"20.25%"},{"v":0.4300386810903385,"d":"43.00%"},{"v":0.2420711110504084,"d":"24.21%"}]
[1933,{"$f":"IF('IV. Country level, 1310-2018'!C627<0,'III. GDP shares, 1310-2018'!C629,\"\")","v":""},{"$f":"IF('IV. Country level, 1310-2018'!D627<0,'III. GDP shares, 1310-2018'!D629,\"\")","v":""},{"$f":"IF('IV. Country level, 1310-2018'!E627<0,'III. GDP shares, 1310-2018'!E629,\"\")","v":""},{"$f":"IF('IV. Country level, 1310-2018'!F627<0,'III. GDP shares, 1310-2018'!F629,\"\")","v":""},{"$f":"IF('IV. Country level, 1310-2018'!G627<0,'III. GDP shares, 1310-2018'!G629,\"\")","v":""},{"$f":"IF('IV. Country level, 1310-2018'!H627<0,'III. GDP shares, 1310-2018'!H629,\"\")","v":""},{"$f":"IF('IV. Country level, 1310-2018'!I627<0,'III. GDP shares, 1310-2018'!I629,\"\")","v":""},{"$f":"IF('IV. Country level, 1310-2018'!J627<0,'III. GDP shares, 1310-2018'!J629,\"\")","v":""},null,0,{"v":0.13180009640955861,"d":"13.18%"},{"v":0.20250823357139602,"d":"20.25%"},{"v":0.405290374017231,"d":"40.53%"},{"v":0.2420711110504084,"d":"24.21%"}]
[1934,{"$f":"IF('IV. Country level, 1310-2018'!C628<0,'III. GDP shares, 1310-2018'!C630,\"\")","v":""},{"$f":"IF('IV. Country level, 1310-2018'!D628<0,'III. GDP shares, 1310-2018'!D630,\"\")","v":""},{"$f":"IF('IV. Country level, 1310-2018'!E628<0,'III. GDP shares, 1310-2018'!E630,\"\")","v":""},{"$f":"IF('IV. Country level, 1310-2018'!F628<0,'III. GDP shares, 1310-2018'!F630,\"\")","v":""},{"$f":"IF('IV. Country level, 1310-2018'!G628<0,'III. GDP shares, 1310-2018'!G630,\"\")","v":""},{"$f":"IF('IV. Country level, 1310-2018'!H628<0,'III. GDP shares, 1310-2018'!H630,\"\")","v":""},{"$f":"IF('IV. Country level, 1310-2018'!I628<0,'III. GDP shares, 1310-2018'!I630,\"\")","v":""},{"$f":"IF('IV. Country level, 1310-2018'!J628<0,'III. GDP shares, 1310-2018'!J630,\"\")","v":""},null,0,{"v":0.22938957109238864,"d":"22.94%"},{"v":0.20250823357139602,"d":"20.25%"},{"v":0.40094727960970034,"d":"40.09%"},{"v":0.2420711110504084,"d":"24.21%"}]
[1935,{"$f":"IF('IV. Country level, 1310-2018'!C629<0,'III. GDP shares, 1310-2018'!C631,\"\")","v":0.07407335231881658},{"$f":"IF('IV. Country level, 1310-2018'!D629<0,'III. GDP shares, 1310-2018'!D631,\"\")","v":""},{"$f":"IF('IV. Country level, 1310-2018'!E629<0,'III. GDP shares, 1310-2018'!E631,\"\")","v":""},{"$f":"IF('IV. Country level, 1310-2018'!F629<0,'III. GDP shares, 1310-2018'!F631,\"\")","v":""},{"$f":"IF('IV. Country level, 1310-2018'!G629<0,'III. GDP shares, 1310-2018'!G631,\"\")","v":""},{"$f":"IF('IV. Country level, 1310-2018'!H629<0,'III. GDP shares, 1310-2018'!H631,\"\")","v":0.38766451730158885},{"$f":"IF('IV. Country level, 1310-2018'!I629<0,'III. GDP shares, 1310-2018'!I631,\"\")","v":""},{"$f":"IF('IV. Country level, 1310-2018'!J629<0,'III. GDP shares, 1310-2018'!J631,\"\")","v":""},null,0.4617378696204054,{"v":0.2548713680885185,"d":"25.49%"},{"v":0.20250823357139602,"d":"20.25%"},{"v":0.4044050056668882,"d":"40.44%"},{"v":0.2420711110504084,"d":"24.21%"}]
[1936,{"$f":"IF('IV. Country level, 1310-2018'!C630<0,'III. GDP shares, 1310-2018'!C632,\"\")","v":0.06879098103340513},{"$f":"IF('IV. Country level, 1310-2018'!D630<0,'III. GDP shares, 1310-2018'!D632,\"\")","v":""},{"$f":"IF('IV. Country level, 1310-2018'!E630<0,'III. GDP shares, 1310-2018'!E632,\"\")","v":""},{"$f":"IF('IV. Country level, 1310-2018'!F630<0,'III. GDP shares, 1310-2018'!F632,\"\")","v":""},{"$f":"IF('IV. Country level, 1310-2018'!G630<0,'III. GDP shares, 1310-2018'!G632,\"\")","v":0.09145219904801102},{"$f":"IF('IV. Country level, 1310-2018'!H630<0,'III. GDP shares, 1310-2018'!H632,\"\")","v":""},{"$f":"IF('IV. Country level, 1310-2018'!I630<0,'III. GDP shares, 1310-2018'!I632,\"\")","v":""},{"$f":"IF('IV. Country level, 1310-2018'!J630<0,'III. GDP shares, 1310-2018'!J632,\"\")","v":0.08097731658487232},null,0.24122049666628848,{"v":0.2759281069098543,"d":"27.59%"},{"v":0.20250823357139602,"d":"20.25%"},{"v":0.3833943394648086,"d":"38.34%"},{"v":0.2420711110504084,"d":"24.21%"}]
[1937,{"$f":"IF('IV. Country level, 1310-2018'!C631<0,'III. GDP shares, 1310-2018'!C633,\"\")","v":0.07033884441122709},{"$f":"IF('IV. Country level, 1310-2018'!D631<0,'III. GDP shares, 1310-2018'!D633,\"\")","v":0.14467166545517607},{"$f":"IF('IV. Country level, 1310-2018'!E631<0,'III. GDP shares, 1310-2018'!E633,\"\")","v":0.02298596267552377},{"$f":"IF('IV. Country level, 1310-2018'!F631<0,'III. GDP shares, 1310-2018'!F633,\"\")","v":""},{"$f":"IF('IV. Country level, 1310-2018'!G631<0,'III. GDP shares, 1310-2018'!G633,\"\")","v":0.0925646254465929},{"$f":"IF('IV. Country level, 1310-2018'!H631<0,'III. GDP shares, 1310-2018'!H633,\"\")","v":0.4096071013307581},{"$f":"IF('IV. Country level, 1310-2018'!I631<0,'III. GDP shares, 1310-2018'!I633,\"\")","v":""},{"$f":"IF('IV. Country level, 1310-2018'!J631<0,'III. GDP shares, 1310-2018'!J633,\"\")","v":0.08119468380277166},null,0.8213628831220495,{"v":0.3363501641265257,"d":"33.64%"},{"v":0.20250823357139602,"d":"20.25%"},{"v":0.3725247823575678,"d":"37.25%"},{"v":0.2420711110504084,"d":"24.21%"}]
[1938,{"$f":"IF('IV. Country level, 1310-2018'!C632<0,'III. GDP shares, 1310-2018'!C634,\"\")","v":""},{"$f":"IF('IV. Country level, 1310-2018'!D632<0,'III. GDP shares, 1310-2018'!D634,\"\")","v":""},{"$f":"IF('IV. Country level, 1310-2018'!E632<0,'III. GDP shares, 1310-2018'!E634,\"\")","v":""},{"$f":"IF('IV. Country level, 1310-2018'!F632<0,'III. GDP shares, 1310-2018'!F634,\"\")","v":""},{"$f":"IF('IV. Country level, 1310-2018'!G632<0,'III. GDP shares, 1310-2018'!G634,\"\")","v":0.09197161519111323},{"$f":"IF('IV. Country level, 1310-2018'!H632<0,'III. GDP shares, 1310-2018'!H634,\"\")","v":""},{"$f":"IF('IV. Country level, 1310-2018'!I632<0,'III. GDP shares, 1310-2018'!I634,\"\")","v":""},{"$f":"IF('IV. Country level, 1310-2018'!J632<0,'III. GDP shares, 1310-2018'!J634,\"\")","v":0.08640096378179586},null,0.1783725789729091,{"v":0.4434387295305114,"d":"44.34%"},{"v":0.20250823357139602,"d":"20.25%"},{"v":0.37074048372211776,"d":"37.07%"},{"v":0.2420711110504084,"d":"24.21%"}]
[1939,{"$f":"IF('IV. Country level, 1310-2018'!C633<0,'III. GDP shares, 1310-2018'!C635,\"\")","v":""},{"$f":"IF('IV. Country level, 1310-2018'!D633<0,'III. GDP shares, 1310-2018'!D635,\"\")","v":""},{"$f":"IF('IV. Country level, 1310-2018'!E633<0,'III. GDP shares, 1310-2018'!E635,\"\")","v":0.02218353690705703},{"$f":"IF('IV. Country level, 1310-2018'!F633<0,'III. GDP shares, 1310-2018'!F635,\"\")","v":""},{"$f":"IF('IV. Country level, 1310-2018'!G633<0,'III. GDP shares, 1310-2018'!G635,\"\")","v":0.09150936306957096},{"$f":"IF('IV. Country level, 1310-2018'!H633<0,'III. GDP shares, 1310-2018'!H635,\"\")","v":""},{"$f":"IF('IV. Country level, 1310-2018'!I633<0,'III. GDP shares, 1310-2018'!I635,\"\")","v":0.022260445616690838},{"$f":"IF('IV. Country level, 1310-2018'!J633<0,'III. GDP shares, 1310-2018'!J635,\"\")","v":0.09284957439400886},null,0.22880291998732766,{"v":0.48426626889460017,"d":"48.43%"},{"v":0.20250823357139602,"d":"20.25%"},{"v":0.3737034712469447,"d":"37.37%"},{"v":0.2420711110504084,"d":"24.21%"}]
[1940,{"$f":"IF('IV. Country level, 1310-2018'!C634<0,'III. GDP shares, 1310-2018'!C636,\"\")","v":0.06861903986171287},{"$f":"IF('IV. Country level, 1310-2018'!D634<0,'III. GDP shares, 1310-2018'!D636,\"\")","v":0.14597545935394843},{"$f":"IF('IV. Country level, 1310-2018'!E634<0,'III. GDP shares, 1310-2018'!E636,\"\")","v":0.018939169700957537},{"$f":"IF('IV. Country level, 1310-2018'!F634<0,'III. GDP shares, 1310-2018'!F636,\"\")","v":""},{"$f":"IF('IV. Country level, 1310-2018'!G634<0,'III. GDP shares, 1310-2018'!G636,\"\")","v":0.07316875878587593},{"$f":"IF('IV. Country level, 1310-2018'!H634<0,'III. GDP shares, 1310-2018'!H636,\"\")","v":""},{"$f":"IF('IV. Country level, 1310-2018'!I634<0,'III. GDP shares, 1310-2018'!I636,\"\")","v":0.023657601913247443},{"$f":"IF('IV. Country level, 1310-2018'!J634<0,'III. GDP shares, 1310-2018'!J636,\"\")","v":0.09259437090095722},null,0.42295440051669947,{"v":0.5678705835331647,"d":"56.79%"},{"v":0.20250823357139602,"d":"20.25%"},{"v":0.37512151201452176,"d":"37.51%"},{"v":0.2420711110504084,"d":"24.21%"}]
[1941,{"$f":"IF('IV. Country level, 1310-2018'!C635<0,'III. GDP shares, 1310-2018'!C637,\"\")","v":0.06262540842838525},{"$f":"IF('IV. Country level, 1310-2018'!D635<0,'III. GDP shares, 1310-2018'!D637,\"\")","v":0.14715846332423535},{"$f":"IF('IV. Country level, 1310-2018'!E635<0,'III. GDP shares, 1310-2018'!E637,\"\")","v":0.01657322864663658},{"$f":"IF('IV. Country level, 1310-2018'!F635<0,'III. GDP shares, 1310-2018'!F637,\"\")","v":""},{"$f":"IF('IV. Country level, 1310-2018'!G635<0,'III. GDP shares, 1310-2018'!G637,\"\")","v":0.053461017427658554},{"$f":"IF('IV. Country level, 1310-2018'!H635<0,'III. GDP shares, 1310-2018'!H637,\"\")","v":0.4482928522352277},{"$f":"IF('IV. Country level, 1310-2018'!I635<0,'III. GDP shares, 1310-2018'!I637,\"\")","v":0.021508987765756257},{"$f":"IF('IV. Country level, 1310-2018'!J635<0,'III. GDP shares, 1310-2018'!J637,\"\")","v":""},null,0.7496199578278997,{"v":0.5732105434589104,"d":"57.32%"},{"v":0.20250823357139602,"d":"20.25%"},{"v":0.3737772147773893,"d":"37.38%"},{"v":0.2420711110504084,"d":"24.21%"}]
[1942,{"$f":"IF('IV. Country level, 1310-2018'!C636<0,'III. GDP shares, 1310-2018'!C638,\"\")","v":0.0568157564459882},{"$f":"IF('IV. Country level, 1310-2018'!D636<0,'III. GDP shares, 1310-2018'!D638,\"\")","v":0.13855318314504295},{"$f":"IF('IV. Country level, 1310-2018'!E636<0,'III. GDP shares, 1310-2018'!E638,\"\")","v":0.013915622101775034},{"$f":"IF('IV. Country level, 1310-2018'!F636<0,'III. GDP shares, 1310-2018'!F638,\"\")","v":""},{"$f":"IF('IV. Country level, 1310-2018'!G636<0,'III. GDP shares, 1310-2018'!G638,\"\")","v":0.044021765082388135},{"$f":"IF('IV. Country level, 1310-2018'!H636<0,'III. GDP shares, 1310-2018'!H638,\"\")","v":0.49422431839383285},{"$f":"IF('IV. Country level, 1310-2018'!I636<0,'III. GDP shares, 1310-2018'!I638,\"\")","v":""},{"$f":"IF('IV. Country level, 1310-2018'!J636<0,'III. GDP shares, 1310-2018'!J638,\"\")","v":""},null,0.7475306451690271,{"v":0.6720009765845208,"d":"67.20%"},{"v":0.20250823357139602,"d":"20.25%"},{"v":0.3718813846110405,"d":"37.19%"},{"v":0.2420711110504084,"d":"24.21%"}]
[1943,{"$f":"IF('IV. Country level, 1310-2018'!C637<0,'III. GDP shares, 1310-2018'!C639,\"\")","v":0.04684808909196997},{"$f":"IF('IV. Country level, 1310-2018'!D637<0,'III. GDP shares, 1310-2018'!D639,\"\")","v":0.1289051855357066},{"$f":"IF('IV. Country level, 1310-2018'!E637<0,'III. GDP shares, 1310-2018'!E639,\"\")","v":""},{"$f":"IF('IV. Country level, 1310-2018'!F637<0,'III. GDP shares, 1310-2018'!F639,\"\")","v":""},{"$f":"IF('IV. Country level, 1310-2018'!G637<0,'III. GDP shares, 1310-2018'!G639,\"\")","v":0.03805852270751425},{"$f":"IF('IV. Country level, 1310-2018'!H637<0,'III. GDP shares, 1310-2018'!H639,\"\")","v":0.5394675739929261},{"$f":"IF('IV. Country level, 1310-2018'!I637<0,'III. GDP shares, 1310-2018'!I639,\"\")","v":""},{"$f":"IF('IV. Country level, 1310-2018'!J637<0,'III. GDP shares, 1310-2018'!J639,\"\")","v":0.07317132780812319},null,0.8264506991362401,{"v":0.7821719880149026,"d":"78.22%"},{"v":0.20250823357139602,"d":"20.25%"},{"v":0.37123939250632726,"d":"37.12%"},{"v":0.2420711110504084,"d":"24.21%"}]
[1944,{"$f":"IF('IV. Country level, 1310-2018'!C638<0,'III. GDP shares, 1310-2018'!C640,\"\")","v":0.037220854035490206},{"$f":"IF('IV. Country level, 1310-2018'!D638<0,'III. GDP shares, 1310-2018'!D640,\"\")","v":""},{"$f":"IF('IV. Country level, 1310-2018'!E638<0,'III. GDP shares, 1310-2018'!E640,\"\")","v":0.008109376331590772},{"$f":"IF('IV. Country level, 1310-2018'!F638<0,'III. GDP shares, 1310-2018'!F640,\"\")","v":0.14180833201428583},{"$f":"IF('IV. Country level, 1310-2018'!G638<0,'III. GDP shares, 1310-2018'!G640,\"\")","v":0.03143064585072198},{"$f":"IF('IV. Country level, 1310-2018'!H638<0,'III. GDP shares, 1310-2018'!H640,\"\")","v":0.5717068646161582},{"$f":"IF('IV. Country level, 1310-2018'!I638<0,'III. GDP shares, 1310-2018'!I640,\"\")","v":""},{"$f":"IF('IV. Country level, 1310-2018'!J638<0,'III. GDP shares, 1310-2018'!J640,\"\")","v":0.06846652975402232},null,0.8587426026022693,{"v":0.8516171117161242,"d":"85.16%"},{"v":0.20250823357139602,"d":"20.25%"},{"v":0.37123939250632726,"d":"37.12%"},{"v":0.2420711110504084,"d":"24.21%"}]
[1945,{"$f":"IF('IV. Country level, 1310-2018'!C639<0,'III. GDP shares, 1310-2018'!C641,\"\")","v":0.032742402893554436},{"$f":"IF('IV. Country level, 1310-2018'!D639<0,'III. GDP shares, 1310-2018'!D641,\"\")","v":""},{"$f":"IF('IV. Country level, 1310-2018'!E639<0,'III. GDP shares, 1310-2018'!E641,\"\")","v":0.009326920157491519},{"$f":"IF('IV. Country level, 1310-2018'!F639<0,'III. GDP shares, 1310-2018'!F641,\"\")","v":0.11338331926552699},{"$f":"IF('IV. Country level, 1310-2018'!G639<0,'III. GDP shares, 1310-2018'!G641,\"\")","v":0.03829479294270329},{"$f":"IF('IV. Country level, 1310-2018'!H639<0,'III. GDP shares, 1310-2018'!H641,\"\")","v":0.6165782618675613},{"$f":"IF('IV. Country level, 1310-2018'!I639<0,'III. GDP shares, 1310-2018'!I641,\"\")","v":0.021115162951923987},{"$f":"IF('IV. Country level, 1310-2018'!J639<0,'III. GDP shares, 1310-2018'!J641,\"\")","v":0.03846475077342094},null,0.8699056108521824,{"v":0.8755425682241355,"d":"87.55%"},{"v":0.20250823357139602,"d":"20.25%"},{"v":0.3682318104861952,"d":"36.82%"},{"v":0.2420711110504084,"d":"24.21%"}]
[1946,{"$f":"IF('IV. Country level, 1310-2018'!C640<0,'III. GDP shares, 1310-2018'!C642,\"\")","v":0.050566320276593274},{"$f":"IF('IV. Country level, 1310-2018'!D640<0,'III. GDP shares, 1310-2018'!D642,\"\")","v":0.14671332071951307},{"$f":"IF('IV. Country level, 1310-2018'!E640<0,'III. GDP shares, 1310-2018'!E642,\"\")","v":0.01856061008010105},{"$f":"IF('IV. Country level, 1310-2018'!F640<0,'III. GDP shares, 1310-2018'!F642,\"\")","v":0.06336393824737097},{"$f":"IF('IV. Country level, 1310-2018'!G640<0,'III. GDP shares, 1310-2018'!G642,\"\")","v":0.068642612891047},{"$f":"IF('IV. Country level, 1310-2018'!H640<0,'III. GDP shares, 1310-2018'!H642,\"\")","v":0.5768726673564164},{"$f":"IF('IV. Country level, 1310-2018'!I640<0,'III. GDP shares, 1310-2018'!I642,\"\")","v":0.026009172914199026},{"$f":"IF('IV. Country level, 1310-2018'!J640<0,'III. GDP shares, 1310-2018'!J642,\"\")","v":0.04927135751475916},null,1,{"v":0.7754067829357272,"d":"77.54%"},{"v":0.20250823357139602,"d":"20.25%"},{"v":0.3712249510011547,"d":"37.12%"},{"v":0.2420711110504084,"d":"24.21%"}]
[1947,{"$f":"IF('IV. Country level, 1310-2018'!C641<0,'III. GDP shares, 1310-2018'!C643,\"\")","v":0.05831947092515357},{"$f":"IF('IV. Country level, 1310-2018'!D641<0,'III. GDP shares, 1310-2018'!D643,\"\")","v":0.14186355726782976},{"$f":"IF('IV. Country level, 1310-2018'!E641<0,'III. GDP shares, 1310-2018'!E643,\"\")","v":""},{"$f":"IF('IV. Country level, 1310-2018'!F641<0,'III. GDP shares, 1310-2018'!F643,\"\")","v":""},{"$f":"IF('IV. Country level, 1310-2018'!G641<0,'III. GDP shares, 1310-2018'!G643,\"\")","v":0.07301727574023736},{"$f":"IF('IV. Country level, 1310-2018'!H641<0,'III. GDP shares, 1310-2018'!H643,\"\")","v":0.5577036188130655},{"$f":"IF('IV. Country level, 1310-2018'!I641<0,'III. GDP shares, 1310-2018'!I643,\"\")","v":0.025949745504533085},{"$f":"IF('IV. Country level, 1310-2018'!J641<0,'III. GDP shares, 1310-2018'!J643,\"\")","v":0.05221659817443122},null,0.9090702664252506,{"v":0.7598008435722537,"d":"75.98%"},{"v":0.20250823357139602,"d":"20.25%"},{"v":0.3726166907680377,"d":"37.26%"},{"v":0.2420711110504084,"d":"24.21%"}]
[1948,{"$f":"IF('IV. Country level, 1310-2018'!C642<0,'III. GDP shares, 1310-2018'!C644,\"\")","v":""},{"$f":"IF('IV. Country level, 1310-2018'!D642<0,'III. GDP shares, 1310-2018'!D644,\"\")","v":0.1384305311771491},{"$f":"IF('IV. Country level, 1310-2018'!E642<0,'III. GDP shares, 1310-2018'!E644,\"\")","v":0.02207658840397796},{"$f":"IF('IV. Country level, 1310-2018'!F642<0,'III. GDP shares, 1310-2018'!F644,\"\")","v":0.07824501943529436},{"$f":"IF('IV. Country level, 1310-2018'!G642<0,'III. GDP shares, 1310-2018'!G644,\"\")","v":0.07410750552706052},{"$f":"IF('IV. Country level, 1310-2018'!H642<0,'III. GDP shares, 1310-2018'!H644,\"\")","v":0.5474959281290858},{"$f":"IF('IV. Country level, 1310-2018'!I642<0,'III. GDP shares, 1310-2018'!I644,\"\")","v":""},{"$f":"IF('IV. Country level, 1310-2018'!J642<0,'III. GDP shares, 1310-2018'!J644,\"\")","v":0.056742580711410855},null,0.9170981533839785,{"v":0.7766950904854145,"d":"77.67%"},{"v":0.20250823357139602,"d":"20.25%"},{"v":0.37344188427806935,"d":"37.34%"},{"v":0.2420711110504084,"d":"24.21%"}]
[1949,{"$f":"IF('IV. Country level, 1310-2018'!C643<0,'III. GDP shares, 1310-2018'!C645,\"\")","v":""},{"$f":"IF('IV. Country level, 1310-2018'!D643<0,'III. GDP shares, 1310-2018'!D645,\"\")","v":""},{"$f":"IF('IV. Country level, 1310-2018'!E643<0,'III. GDP shares, 1310-2018'!E645,\"\")","v":0.02308562125811457},{"$f":"IF('IV. Country level, 1310-2018'!F643<0,'III. GDP shares, 1310-2018'!F645,\"\")","v":""},{"$f":"IF('IV. Country level, 1310-2018'!G643<0,'III. GDP shares, 1310-2018'!G645,\"\")","v":""},{"$f":"IF('IV. Country level, 1310-2018'!H643<0,'III. GDP shares, 1310-2018'!H645,\"\")","v":""},{"$f":"IF('IV. Country level, 1310-2018'!I643<0,'III. GDP shares, 1310-2018'!I645,\"\")","v":0.0234945268920548},{"$f":"IF('IV. Country level, 1310-2018'!J643<0,'III. GDP shares, 1310-2018'!J645,\"\")","v":""},null,0.046580148150169365,{"v":0.6837449009195301,"d":"68.37%"},{"v":0.20250823357139602,"d":"20.25%"},{"v":0.3724686145244811,"d":"37.25%"},{"v":0.2420711110504084,"d":"24.21%"}]
[1950,{"$f":"IF('IV. Country level, 1310-2018'!C644<0,'III. GDP shares, 1310-2018'!C646,\"\")","v":0.060255931642464254},{"$f":"IF('IV. Country level, 1310-2018'!D644<0,'III. GDP shares, 1310-2018'!D646,\"\")","v":""},{"$f":"IF('IV. Country level, 1310-2018'!E644<0,'III. GDP shares, 1310-2018'!E646,\"\")","v":0.022151471029797566},{"$f":"IF('IV. Country level, 1310-2018'!F644<0,'III. GDP shares, 1310-2018'!F646,\"\")","v":""},{"$f":"IF('IV. Country level, 1310-2018'!G644<0,'III. GDP shares, 1310-2018'!G646,\"\")","v":0.08054190413083548},{"$f":"IF('IV. Country level, 1310-2018'!H644<0,'III. GDP shares, 1310-2018'!H646,\"\")","v":0.531820868306104},{"$f":"IF('IV. Country level, 1310-2018'!I644<0,'III. GDP shares, 1310-2018'!I646,\"\")","v":0.02243894848272542},{"$f":"IF('IV. Country level, 1310-2018'!J644<0,'III. GDP shares, 1310-2018'!J646,\"\")","v":""},null,0.7172091235919267,{"v":0.550502327697921,"d":"55.05%"},{"v":0.20250823357139602,"d":"20.25%"},{"v":0.3724686145244811,"d":"37.25%"},{"v":0.2420711110504084,"d":"24.21%"}]
[1951,{"$f":"IF('IV. Country level, 1310-2018'!C645<0,'III. GDP shares, 1310-2018'!C647,\"\")","v":0.060368157492810354},{"$f":"IF('IV. Country level, 1310-2018'!D645<0,'III. GDP shares, 1310-2018'!D647,\"\")","v":0.12199290655760314},{"$f":"IF('IV. Country level, 1310-2018'!E645<0,'III. GDP shares, 1310-2018'!E647,\"\")","v":0.02108417631103536},{"$f":"IF('IV. Country level, 1310-2018'!F645<0,'III. GDP shares, 1310-2018'!F647,\"\")","v":0.0986472059567208},{"$f":"IF('IV. Country level, 1310-2018'!G645<0,'III. GDP shares, 1310-2018'!G647,\"\")","v":0.07971149474802615},{"$f":"IF('IV. Country level, 1310-2018'!H645<0,'III. GDP shares, 1310-2018'!H647,\"\")","v":0.533552186860956},{"$f":"IF('IV. Country level, 1310-2018'!I645<0,'III. GDP shares, 1310-2018'!I647,\"\")","v":""},{"$f":"IF('IV. Country level, 1310-2018'!J645<0,'III. GDP shares, 1310-2018'!J647,\"\")","v":0.06164620306724127},null,{"$f":"SUM(B647:I647)","v":0.977002330994393},{"v":0.42381193948155493,"d":"42.38%"},{"v":0.20250823357139602,"d":"20.25%"},{"v":0.3724686145244811,"d":"37.25%"},{"v":0.2420711110504084,"d":"24.21%"}]
[1952,{"$f":"IF('IV. Country level, 1310-2018'!C646<0,'III. GDP shares, 1310-2018'!C648,\"\")","v":""},{"$f":"IF('IV. Country level, 1310-2018'!D646<0,'III. GDP shares, 1310-2018'!D648,\"\")","v":0.11660394376558493},{"$f":"IF('IV. Country level, 1310-2018'!E646<0,'III. GDP shares, 1310-2018'!E648,\"\")","v":""},{"$f":"IF('IV. Country level, 1310-2018'!F646<0,'III. GDP shares, 1310-2018'!F648,\"\")","v":0.10265034012540668},{"$f":"IF('IV. Country level, 1310-2018'!G646<0,'III. GDP shares, 1310-2018'!G648,\"\")","v":""},{"$f":"IF('IV. Country level, 1310-2018'!H646<0,'III. GDP shares, 1310-2018'!H648,\"\")","v":""},{"$f":"IF('IV. Country level, 1310-2018'!I646<0,'III. GDP shares, 1310-2018'!I648,\"\")","v":""},{"$f":"IF('IV. Country level, 1310-2018'!J646<0,'III. GDP shares, 1310-2018'!J648,\"\")","v":""},null,0.2192542838909916,{"v":0.3182479525540945,"d":"31.82%"},{"v":0.20250823357139602,"d":"20.25%"},{"v":0.3584765578693173,"d":"35.85%"},{"v":0.2420711110504084,"d":"24.21%"}]
[1953,{"$f":"IF('IV. Country level, 1310-2018'!C647<0,'III. GDP shares, 1310-2018'!C649,\"\")","v":""},{"$f":"IF('IV. Country level, 1310-2018'!D647<0,'III. GDP shares, 1310-2018'!D649,\"\")","v":""},{"$f":"IF('IV. Country level, 1310-2018'!E647<0,'III. GDP shares, 1310-2018'!E649,\"\")","v":""},{"$f":"IF('IV. Country level, 1310-2018'!F647<0,'III. GDP shares, 1310-2018'!F649,\"\")","v":""},{"$f":"IF('IV. Country level, 1310-2018'!G647<0,'III. GDP shares, 1310-2018'!G649,\"\")","v":""},{"$f":"IF('IV. Country level, 1310-2018'!H647<0,'III. GDP shares, 1310-2018'!H649,\"\")","v":""},{"$f":"IF('IV. Country level, 1310-2018'!I647<0,'III. GDP shares, 1310-2018'!I649,\"\")","v":""},{"$f":"IF('IV. Country level, 1310-2018'!J647<0,'III. GDP shares, 1310-2018'!J649,\"\")","v":0.06730198744873743},null,0.06730198744873743,{"v":0.3341307962512249,"d":"33.41%"},{"$f":"AVERAGE(L$9:L$714)","v":{"v":0.20250823357139602,"d":"20.25%"}},{"v":0.3511668458491267,"d":"35.12%"},{"v":0.2420711110504084,"d":"24.21%"}]
[1954,{"$f":"IF('IV. Country level, 1310-2018'!C648<0,'III. GDP shares, 1310-2018'!C650,\"\")","v":""},{"$f":"IF('IV. Country level, 1310-2018'!D648<0,'III. GDP shares, 1310-2018'!D650,\"\")","v":""},{"$f":"IF('IV. Country level, 1310-2018'!E648<0,'III. GDP shares, 1310-2018'!E650,\"\")","v":0.02223754891068797},{"$f":"IF('IV. Country level, 1310-2018'!F648<0,'III. GDP shares, 1310-2018'!F650,\"\")","v":""},{"$f":"IF('IV. Country level, 1310-2018'!G648<0,'III. GDP shares, 1310-2018'!G650,\"\")","v":""},{"$f":"IF('IV. Country level, 1310-2018'!H648<0,'III. GDP shares, 1310-2018'!H650,\"\")","v":""},{"$f":"IF('IV. Country level, 1310-2018'!I648<0,'III. GDP shares, 1310-2018'!I650,\"\")","v":""},{"$f":"IF('IV. Country level, 1310-2018'!J648<0,'III. GDP shares, 1310-2018'!J650,\"\")","v":""},null,0.02223754891068797,{"$f":"AVERAGE(K647:K653)","v":{"v":0.24986481485104123,"d":"24.99%"}},{"v":0.20250823357139602,"d":"20.25%"},{"v":0.3306514875990767,"d":"33.07%"},{"v":0.2420711110504084,"d":"24.21%"}]
[1955,{"$f":"IF('IV. Country level, 1310-2018'!C649<0,'III. GDP shares, 1310-2018'!C651,\"\")","v":0.0644808839242571},{"$f":"IF('IV. Country level, 1310-2018'!D649<0,'III. GDP shares, 1310-2018'!D651,\"\")","v":0.11366936096749825},{"$f":"IF('IV. Country level, 1310-2018'!E649<0,'III. GDP shares, 1310-2018'!E651,\"\")","v":""},{"$f":"IF('IV. Country level, 1310-2018'!F649<0,'III. GDP shares, 1310-2018'!F651,\"\")","v":""},{"$f":"IF('IV. Country level, 1310-2018'!G649<0,'III. GDP shares, 1310-2018'!G651,\"\")","v":""},{"$f":"IF('IV. Country level, 1310-2018'!H649<0,'III. GDP shares, 1310-2018'!H651,\"\")","v":""},{"$f":"IF('IV. Country level, 1310-2018'!I649<0,'III. GDP shares, 1310-2018'!I651,\"\")","v":""},{"$f":"IF('IV. Country level, 1310-2018'!J649<0,'III. GDP shares, 1310-2018'!J651,\"\")","v":""},null,0.17815024489175535,{"v":0.12557269857247538,"d":"12.56%"},{"v":0.20250823357139602,"d":"20.25%"},{"v":0.3294224317360681,"d":"32.94%"},{"v":0.2420711110504084,"d":"24.21%"}]
[1956,{"$f":"IF('IV. Country level, 1310-2018'!C650<0,'III. GDP shares, 1310-2018'!C652,\"\")","v":""},{"$f":"IF('IV. Country level, 1310-2018'!D650<0,'III. GDP shares, 1310-2018'!D652,\"\")","v":0.11123558179094152},{"$f":"IF('IV. Country level, 1310-2018'!E650<0,'III. GDP shares, 1310-2018'!E652,\"\")","v":0.022381149992133403},{"$f":"IF('IV. Country level, 1310-2018'!F650<0,'III. GDP shares, 1310-2018'!F652,\"\")","v":""},{"$f":"IF('IV. Country level, 1310-2018'!G650<0,'III. GDP shares, 1310-2018'!G652,\"\")","v":""},{"$f":"IF('IV. Country level, 1310-2018'!H650<0,'III. GDP shares, 1310-2018'!H652,\"\")","v":""},{"$f":"IF('IV. Country level, 1310-2018'!I650<0,'III. GDP shares, 1310-2018'!I652,\"\")","v":0.02414332224700672},{"$f":"IF('IV. Country level, 1310-2018'!J650<0,'III. GDP shares, 1310-2018'!J652,\"\")","v":""},null,0.15776005403008164,{"v":0.10558463807917384,"d":"10.56%"},{"v":0.20250823357139602,"d":"20.25%"},{"v":0.3231548027068731,"d":"32.32%"},{"v":0.2420711110504084,"d":"24.21%"}]
[1957,{"$f":"IF('IV. Country level, 1310-2018'!C651<0,'III. GDP shares, 1310-2018'!C653,\"\")","v":""},{"$f":"IF('IV. Country level, 1310-2018'!D651<0,'III. GDP shares, 1310-2018'!D653,\"\")","v":""},{"$f":"IF('IV. Country level, 1310-2018'!E651<0,'III. GDP shares, 1310-2018'!E653,\"\")","v":0.02226512875052712},{"$f":"IF('IV. Country level, 1310-2018'!F651<0,'III. GDP shares, 1310-2018'!F653,\"\")","v":""},{"$f":"IF('IV. Country level, 1310-2018'!G651<0,'III. GDP shares, 1310-2018'!G653,\"\")","v":0.08097345954217909},{"$f":"IF('IV. Country level, 1310-2018'!H651<0,'III. GDP shares, 1310-2018'!H653,\"\")","v":""},{"$f":"IF('IV. Country level, 1310-2018'!I651<0,'III. GDP shares, 1310-2018'!I653,\"\")","v":0.02410866549793527},{"$f":"IF('IV. Country level, 1310-2018'!J651<0,'III. GDP shares, 1310-2018'!J653,\"\")","v":""},null,0.1273472537906415,{"v":0.09597006844363994,"d":"9.60%"},{"v":0.20250823357139602,"d":"20.25%"},{"v":0.33137237941189795,"d":"33.14%"},{"v":0.2420711110504084,"d":"24.21%"}]
[1958,{"$f":"IF('IV. Country level, 1310-2018'!C652<0,'III. GDP shares, 1310-2018'!C654,\"\")","v":""},{"$f":"IF('IV. Country level, 1310-2018'!D652<0,'III. GDP shares, 1310-2018'!D654,\"\")","v":""},{"$f":"IF('IV. Country level, 1310-2018'!E652<0,'III. GDP shares, 1310-2018'!E654,\"\")","v":""},{"$f":"IF('IV. Country level, 1310-2018'!F652<0,'III. GDP shares, 1310-2018'!F654,\"\")","v":""},{"$f":"IF('IV. Country level, 1310-2018'!G652<0,'III. GDP shares, 1310-2018'!G654,\"\")","v":0.08208552404842576},{"$f":"IF('IV. Country level, 1310-2018'!H652<0,'III. GDP shares, 1310-2018'!H654,\"\")","v":""},{"$f":"IF('IV. Country level, 1310-2018'!I652<0,'III. GDP shares, 1310-2018'!I654,\"\")","v":0.024871992996006485},{"$f":"IF('IV. Country level, 1310-2018'!J652<0,'III. GDP shares, 1310-2018'!J654,\"\")","v":""},null,0.10695751704443224,{"v":0.09279327574211307,"d":"9.28%"},{"v":0.20250823357139602,"d":"20.25%"},{"v":0.3354210098386181,"d":"33.54%"},{"v":0.2420711110504084,"d":"24.21%"}]
[1959,{"$f":"IF('IV. Country level, 1310-2018'!C653<0,'III. GDP shares, 1310-2018'!C655,\"\")","v":""},{"$f":"IF('IV. Country level, 1310-2018'!D653<0,'III. GDP shares, 1310-2018'!D655,\"\")","v":""},{"$f":"IF('IV. Country level, 1310-2018'!E653<0,'III. GDP shares, 1310-2018'!E655,\"\")","v":""},{"$f":"IF('IV. Country level, 1310-2018'!F653<0,'III. GDP shares, 1310-2018'!F655,\"\")","v":""},{"$f":"IF('IV. Country level, 1310-2018'!G653<0,'III. GDP shares, 1310-2018'!G655,\"\")","v":0.0793378604378808},{"$f":"IF('IV. Country level, 1310-2018'!H653<0,'III. GDP shares, 1310-2018'!H655,\"\")","v":""},{"$f":"IF('IV. Country level, 1310-2018'!I653<0,'III. GDP shares, 1310-2018'!I655,\"\")","v":""},{"$f":"IF('IV. Country level, 1310-2018'!J653<0,'III. GDP shares, 1310-2018'!J655,\"\")","v":""},null,0.0793378604378808,{"v":0.08145376032810006,"d":"8.15%"},{"v":0.20250823357139602,"d":"20.25%"},{"v":0.3170162507382726,"d":"31.70%"},{"v":0.2420711110504084,"d":"24.21%"}]
[1960,{"$f":"IF('IV. Country level, 1310-2018'!C654<0,'III. GDP shares, 1310-2018'!C656,\"\")","v":""},{"$f":"IF('IV. Country level, 1310-2018'!D654<0,'III. GDP shares, 1310-2018'!D656,\"\")","v":""},{"$f":"IF('IV. Country level, 1310-2018'!E654<0,'III. GDP shares, 1310-2018'!E656,\"\")","v":""},{"$f":"IF('IV. Country level, 1310-2018'!F654<0,'III. GDP shares, 1310-2018'!F656,\"\")","v":""},{"$f":"IF('IV. Country level, 1310-2018'!G654<0,'III. GDP shares, 1310-2018'!G656,\"\")","v":""},{"$f":"IF('IV. Country level, 1310-2018'!H654<0,'III. GDP shares, 1310-2018'!H656,\"\")","v":""},{"$f":"IF('IV. Country level, 1310-2018'!I654<0,'III. GDP shares, 1310-2018'!I656,\"\")","v":""},{"$f":"IF('IV. Country level, 1310-2018'!J654<0,'III. GDP shares, 1310-2018'!J656,\"\")","v":""},null,0,{"v":0.0852257487022852,"d":"8.52%"},{"v":0.20250823357139602,"d":"20.25%"},{"v":0.3030685646900696,"d":"30.31%"},{"v":0.2420711110504084,"d":"24.21%"}]
[1961,{"$f":"IF('IV. Country level, 1310-2018'!C655<0,'III. GDP shares, 1310-2018'!C657,\"\")","v":""},{"$f":"IF('IV. Country level, 1310-2018'!D655<0,'III. GDP shares, 1310-2018'!D657,\"\")","v":""},{"$f":"IF('IV. Country level, 1310-2018'!E655<0,'III. GDP shares, 1310-2018'!E657,\"\")","v":""},{"$f":"IF('IV. Country level, 1310-2018'!F655<0,'III. GDP shares, 1310-2018'!F657,\"\")","v":""},{"$f":"IF('IV. Country level, 1310-2018'!G655<0,'III. GDP shares, 1310-2018'!G657,\"\")","v":""},{"$f":"IF('IV. Country level, 1310-2018'!H655<0,'III. GDP shares, 1310-2018'!H657,\"\")","v":""},{"$f":"IF('IV. Country level, 1310-2018'!I655<0,'III. GDP shares, 1310-2018'!I657,\"\")","v":""},{"$f":"IF('IV. Country level, 1310-2018'!J655<0,'III. GDP shares, 1310-2018'!J657,\"\")","v":""},null,0,{"v":0.07092348185091427,"d":"7.09%"},{"v":0.20250823357139602,"d":"20.25%"},{"v":0.28051503877585887,"d":"28.05%"},{"v":0.2420711110504084,"d":"24.21%"}]
[1962,{"$f":"IF('IV. Country level, 1310-2018'!C656<0,'III. GDP shares, 1310-2018'!C658,\"\")","v":0.0736526536964254},{"$f":"IF('IV. Country level, 1310-2018'!D656<0,'III. GDP shares, 1310-2018'!D658,\"\")","v":""},{"$f":"IF('IV. Country level, 1310-2018'!E656<0,'III. GDP shares, 1310-2018'!E658,\"\")","v":""},{"$f":"IF('IV. Country level, 1310-2018'!F656<0,'III. GDP shares, 1310-2018'!F658,\"\")","v":""},{"$f":"IF('IV. Country level, 1310-2018'!G656<0,'III. GDP shares, 1310-2018'!G658,\"\")","v":""},{"$f":"IF('IV. Country level, 1310-2018'!H656<0,'III. GDP shares, 1310-2018'!H658,\"\")","v":""},{"$f":"IF('IV. Country level, 1310-2018'!I656<0,'III. GDP shares, 1310-2018'!I658,\"\")","v":0.02512098329723887},{"$f":"IF('IV. Country level, 1310-2018'!J656<0,'III. GDP shares, 1310-2018'!J658,\"\")","v":""},null,0.09877363699366427,{"v":0.0626849574687904,"d":"6.27%"},{"v":0.20250823357139602,"d":"20.25%"},{"v":0.2552384275620654,"d":"25.52%"},{"v":0.2420711110504084,"d":"24.21%"}]
[1963,{"$f":"IF('IV. Country level, 1310-2018'!C657<0,'III. GDP shares, 1310-2018'!C659,\"\")","v":0.07521643675224204},{"$f":"IF('IV. Country level, 1310-2018'!D657<0,'III. GDP shares, 1310-2018'!D659,\"\")","v":""},{"$f":"IF('IV. Country level, 1310-2018'!E657<0,'III. GDP shares, 1310-2018'!E659,\"\")","v":""},{"$f":"IF('IV. Country level, 1310-2018'!F657<0,'III. GDP shares, 1310-2018'!F659,\"\")","v":""},{"$f":"IF('IV. Country level, 1310-2018'!G657<0,'III. GDP shares, 1310-2018'!G659,\"\")","v":0.08255314552184233},{"$f":"IF('IV. Country level, 1310-2018'!H657<0,'III. GDP shares, 1310-2018'!H659,\"\")","v":""},{"$f":"IF('IV. Country level, 1310-2018'!I657<0,'III. GDP shares, 1310-2018'!I659,\"\")","v":0.026394390375293248},{"$f":"IF('IV. Country level, 1310-2018'!J657<0,'III. GDP shares, 1310-2018'!J659,\"\")","v":""},null,0.18416397264937764,{"v":0.05135097740623599,"d":"5.14%"},{"v":0.20250823357139602,"d":"20.25%"},{"v":0.24385107411408194,"d":"24.39%"},{"v":0.2420711110504084,"d":"24.21%"}]
[1964,{"$f":"IF('IV. Country level, 1310-2018'!C658<0,'III. GDP shares, 1310-2018'!C660,\"\")","v":""},{"$f":"IF('IV. Country level, 1310-2018'!D658<0,'III. GDP shares, 1310-2018'!D660,\"\")","v":""},{"$f":"IF('IV. Country level, 1310-2018'!E658<0,'III. GDP shares, 1310-2018'!E660,\"\")","v":""},{"$f":"IF('IV. Country level, 1310-2018'!F658<0,'III. GDP shares, 1310-2018'!F660,\"\")","v":""},{"$f":"IF('IV. Country level, 1310-2018'!G658<0,'III. GDP shares, 1310-2018'!G660,\"\")","v":""},{"$f":"IF('IV. Country level, 1310-2018'!H658<0,'III. GDP shares, 1310-2018'!H660,\"\")","v":""},{"$f":"IF('IV. Country level, 1310-2018'!I658<0,'III. GDP shares, 1310-2018'!I660,\"\")","v":0.027231385831044858},{"$f":"IF('IV. Country level, 1310-2018'!J658<0,'III. GDP shares, 1310-2018'!J660,\"\")","v":""},null,0.027231385831044858,{"v":0.05135097740623599,"d":"5.14%"},{"v":0.20250823357139602,"d":"20.25%"},{"v":0.23403817249319153,"d":"23.40%"},{"v":0.2420711110504084,"d":"24.21%"}]
[1965,{"$f":"IF('IV. Country level, 1310-2018'!C659<0,'III. GDP shares, 1310-2018'!C661,\"\")","v":""},{"$f":"IF('IV. Country level, 1310-2018'!D659<0,'III. GDP shares, 1310-2018'!D661,\"\")","v":""},{"$f":"IF('IV. Country level, 1310-2018'!E659<0,'III. GDP shares, 1310-2018'!E661,\"\")","v":0.021725299208790346},{"$f":"IF('IV. Country level, 1310-2018'!F659<0,'III. GDP shares, 1310-2018'!F661,\"\")","v":""},{"$f":"IF('IV. Country level, 1310-2018'!G659<0,'III. GDP shares, 1310-2018'!G661,\"\")","v":""},{"$f":"IF('IV. Country level, 1310-2018'!H659<0,'III. GDP shares, 1310-2018'!H661,\"\")","v":""},{"$f":"IF('IV. Country level, 1310-2018'!I659<0,'III. GDP shares, 1310-2018'!I661,\"\")","v":0.02756254716077479},{"$f":"IF('IV. Country level, 1310-2018'!J659<0,'III. GDP shares, 1310-2018'!J661,\"\")","v":""},null,0.04928784636956514,{"v":0.05135097740623599,"d":"5.14%"},{"v":0.20250823357139602,"d":"20.25%"},{"v":0.20624731936034368,"d":"20.62%"},{"$f":"AVERAGE(L$596:L$695)","v":{"v":0.2420711110504084,"d":"24.21%"}}]
[1966,{"$f":"IF('IV. Country level, 1310-2018'!C660<0,'III. GDP shares, 1310-2018'!C662,\"\")","v":""},{"$f":"IF('IV. Country level, 1310-2018'!D660<0,'III. GDP shares, 1310-2018'!D662,\"\")","v":""},{"$f":"IF('IV. Country level, 1310-2018'!E660<0,'III. GDP shares, 1310-2018'!E662,\"\")","v":""},{"$f":"IF('IV. Country level, 1310-2018'!F660<0,'III. GDP shares, 1310-2018'!F662,\"\")","v":""},{"$f":"IF('IV. Country level, 1310-2018'!G660<0,'III. GDP shares, 1310-2018'!G662,\"\")","v":""},{"$f":"IF('IV. Country level, 1310-2018'!H660<0,'III. GDP shares, 1310-2018'!H662,\"\")","v":""},{"$f":"IF('IV. Country level, 1310-2018'!I660<0,'III. GDP shares, 1310-2018'!I662,\"\")","v":""},{"$f":"IF('IV. Country level, 1310-2018'!J660<0,'III. GDP shares, 1310-2018'!J662,\"\")","v":""},null,0,{"v":0.03724045783571252,"d":"3.72%"},{"v":0.20250823357139602,"d":"20.25%"},{"v":0.20483579971942945,"d":"20.48%"},{"v":0.2420711110504084,"d":"24.21%"}]
[1967,{"$f":"IF('IV. Country level, 1310-2018'!C661<0,'III. GDP shares, 1310-2018'!C663,\"\")","v":""},{"$f":"IF('IV. Country level, 1310-2018'!D661<0,'III. GDP shares, 1310-2018'!D663,\"\")","v":""},{"$f":"IF('IV. Country level, 1310-2018'!E661<0,'III. GDP shares, 1310-2018'!E663,\"\")","v":""},{"$f":"IF('IV. Country level, 1310-2018'!F661<0,'III. GDP shares, 1310-2018'!F663,\"\")","v":""},{"$f":"IF('IV. Country level, 1310-2018'!G661<0,'III. GDP shares, 1310-2018'!G663,\"\")","v":""},{"$f":"IF('IV. Country level, 1310-2018'!H661<0,'III. GDP shares, 1310-2018'!H663,\"\")","v":""},{"$f":"IF('IV. Country level, 1310-2018'!I661<0,'III. GDP shares, 1310-2018'!I663,\"\")","v":""},{"$f":"IF('IV. Country level, 1310-2018'!J661<0,'III. GDP shares, 1310-2018'!J663,\"\")","v":""},null,0,{"v":0.03155361329585838,"d":"3.16%"},{"v":0.20250823357139602,"d":"20.25%"},{"$f":"AVERAGE(K647:K679)","v":{"v":0.1831021899136135,"d":"18.31%"}},{"v":0.2420711110504084,"d":"24.21%"}]
[1968,{"$f":"IF('IV. Country level, 1310-2018'!C662<0,'III. GDP shares, 1310-2018'!C664,\"\")","v":""},{"$f":"IF('IV. Country level, 1310-2018'!D662<0,'III. GDP shares, 1310-2018'!D664,\"\")","v":""},{"$f":"IF('IV. Country level, 1310-2018'!E662<0,'III. GDP shares, 1310-2018'!E664,\"\")","v":""},{"$f":"IF('IV. Country level, 1310-2018'!F662<0,'III. GDP shares, 1310-2018'!F664,\"\")","v":""},{"$f":"IF('IV. Country level, 1310-2018'!G662<0,'III. GDP shares, 1310-2018'!G664,\"\")","v":""},{"$f":"IF('IV. Country level, 1310-2018'!H662<0,'III. GDP shares, 1310-2018'!H664,\"\")","v":""},{"$f":"IF('IV. Country level, 1310-2018'!I662<0,'III. GDP shares, 1310-2018'!I664,\"\")","v":""},{"$f":"IF('IV. Country level, 1310-2018'!J662<0,'III. GDP shares, 1310-2018'!J664,\"\")","v":""},null,0,{"v":0.04735109181908404,"d":"4.74%"},{"v":0.20250823357139602,"d":"20.25%"},{"v":0.15349605867135913,"d":"15.35%"},{"v":0.2420711110504084,"d":"24.21%"}]
[1969,{"$f":"IF('IV. Country level, 1310-2018'!C663<0,'III. GDP shares, 1310-2018'!C665,\"\")","v":""},{"$f":"IF('IV. Country level, 1310-2018'!D663<0,'III. GDP shares, 1310-2018'!D665,\"\")","v":""},{"$f":"IF('IV. Country level, 1310-2018'!E663<0,'III. GDP shares, 1310-2018'!E665,\"\")","v":""},{"$f":"IF('IV. Country level, 1310-2018'!F663<0,'III. GDP shares, 1310-2018'!F665,\"\")","v":""},{"$f":"IF('IV. Country level, 1310-2018'!G663<0,'III. GDP shares, 1310-2018'!G665,\"\")","v":""},{"$f":"IF('IV. Country level, 1310-2018'!H663<0,'III. GDP shares, 1310-2018'!H665,\"\")","v":""},{"$f":"IF('IV. Country level, 1310-2018'!I663<0,'III. GDP shares, 1310-2018'!I665,\"\")","v":""},{"$f":"IF('IV. Country level, 1310-2018'!J663<0,'III. GDP shares, 1310-2018'!J665,\"\")","v":""},null,0,{"v":0.04344870834113075,"d":"4.34%"},{"v":0.20250823357139602,"d":"20.25%"},{"v":0.14685198946254122,"d":"14.69%"},{"v":0.2420711110504084,"d":"24.21%"}]
[1970,{"$f":"IF('IV. Country level, 1310-2018'!C664<0,'III. GDP shares, 1310-2018'!C666,\"\")","v":""},{"$f":"IF('IV. Country level, 1310-2018'!D664<0,'III. GDP shares, 1310-2018'!D666,\"\")","v":""},{"$f":"IF('IV. Country level, 1310-2018'!E664<0,'III. GDP shares, 1310-2018'!E666,\"\")","v":""},{"$f":"IF('IV. Country level, 1310-2018'!F664<0,'III. GDP shares, 1310-2018'!F666,\"\")","v":""},{"$f":"IF('IV. Country level, 1310-2018'!G664<0,'III. GDP shares, 1310-2018'!G666,\"\")","v":""},{"$f":"IF('IV. Country level, 1310-2018'!H664<0,'III. GDP shares, 1310-2018'!H666,\"\")","v":""},{"$f":"IF('IV. Country level, 1310-2018'!I664<0,'III. GDP shares, 1310-2018'!I666,\"\")","v":""},{"$f":"IF('IV. Country level, 1310-2018'!J664<0,'III. GDP shares, 1310-2018'!J666,\"\")","v":0.14435606087039868},null,0.14435606087039868,{"v":0.1426107700243479,"d":"14.26%"},{"v":0.20250823357139602,"d":"20.25%"},{"v":0.14481253529742796,"d":"14.48%"},{"v":0.2420711110504084,"d":"24.21%"}]
[1971,{"$f":"IF('IV. Country level, 1310-2018'!C665<0,'III. GDP shares, 1310-2018'!C667,\"\")","v":""},{"$f":"IF('IV. Country level, 1310-2018'!D665<0,'III. GDP shares, 1310-2018'!D667,\"\")","v":0.08425391611535461},{"$f":"IF('IV. Country level, 1310-2018'!E665<0,'III. GDP shares, 1310-2018'!E667,\"\")","v":0.02238750258944037},{"$f":"IF('IV. Country level, 1310-2018'!F665<0,'III. GDP shares, 1310-2018'!F667,\"\")","v":""},{"$f":"IF('IV. Country level, 1310-2018'!G665<0,'III. GDP shares, 1310-2018'!G667,\"\")","v":""},{"$f":"IF('IV. Country level, 1310-2018'!H665<0,'III. GDP shares, 1310-2018'!H667,\"\")","v":""},{"$f":"IF('IV. Country level, 1310-2018'!I665<0,'III. GDP shares, 1310-2018'!I667,\"\")","v":0.031172316788829486},{"$f":"IF('IV. Country level, 1310-2018'!J665<0,'III. GDP shares, 1310-2018'!J667,\"\")","v":""},null,0.13781373549362447,{"v":0.268785736011443,"d":"26.88%"},{"v":0.20250823357139602,"d":"20.25%"},{"v":0.14413867017892226,"d":"14.41%"},{"v":0.2420711110504084,"d":"24.21%"}]
[1972,{"$f":"IF('IV. Country level, 1310-2018'!C666<0,'III. GDP shares, 1310-2018'!C668,\"\")","v":""},{"$f":"IF('IV. Country level, 1310-2018'!D666<0,'III. GDP shares, 1310-2018'!D668,\"\")","v":""},{"$f":"IF('IV. Country level, 1310-2018'!E666<0,'III. GDP shares, 1310-2018'!E668,\"\")","v":0.02197116202389208},{"$f":"IF('IV. Country level, 1310-2018'!F666<0,'III. GDP shares, 1310-2018'!F668,\"\")","v":""},{"$f":"IF('IV. Country level, 1310-2018'!G666<0,'III. GDP shares, 1310-2018'!G668,\"\")","v":""},{"$f":"IF('IV. Country level, 1310-2018'!H666<0,'III. GDP shares, 1310-2018'!H668,\"\")","v":""},{"$f":"IF('IV. Country level, 1310-2018'!I666<0,'III. GDP shares, 1310-2018'!I668,\"\")","v":""},{"$f":"IF('IV. Country level, 1310-2018'!J666<0,'III. GDP shares, 1310-2018'!J668,\"\")","v":""},null,0.02197116202389208,{"v":0.28881053527681827,"d":"28.88%"},{"v":0.20250823357139602,"d":"20.25%"},{"v":0.13874017790947513,"d":"13.87%"},{"v":0.2420711110504084,"d":"24.21%"}]
[1973,{"$f":"IF('IV. Country level, 1310-2018'!C667<0,'III. GDP shares, 1310-2018'!C669,\"\")","v":0.07185458249251044},{"$f":"IF('IV. Country level, 1310-2018'!D667<0,'III. GDP shares, 1310-2018'!D669,\"\")","v":""},{"$f":"IF('IV. Country level, 1310-2018'!E667<0,'III. GDP shares, 1310-2018'!E669,\"\")","v":""},{"$f":"IF('IV. Country level, 1310-2018'!F667<0,'III. GDP shares, 1310-2018'!F669,\"\")","v":""},{"$f":"IF('IV. Country level, 1310-2018'!G667<0,'III. GDP shares, 1310-2018'!G669,\"\")","v":""},{"$f":"IF('IV. Country level, 1310-2018'!H667<0,'III. GDP shares, 1310-2018'!H669,\"\")","v":0.43610233038189855},{"$f":"IF('IV. Country level, 1310-2018'!I667<0,'III. GDP shares, 1310-2018'!I669,\"\")","v":0.03291105681342456},{"$f":"IF('IV. Country level, 1310-2018'!J667<0,'III. GDP shares, 1310-2018'!J669,\"\")","v":0.15326646209468636},null,0.69413443178252,{"v":0.3411215437833239,"d":"34.11%"},{"v":0.20250823357139602,"d":"20.25%"},{"v":0.13395957021159388,"d":"13.40%"},{"v":0.2420711110504084,"d":"24.21%"}]
[1974,{"$f":"IF('IV. Country level, 1310-2018'!C668<0,'III. GDP shares, 1310-2018'!C670,\"\")","v":0.07478452130563251},{"$f":"IF('IV. Country level, 1310-2018'!D668<0,'III. GDP shares, 1310-2018'!D670,\"\")","v":0.08173718691091897},{"$f":"IF('IV. Country level, 1310-2018'!E668<0,'III. GDP shares, 1310-2018'!E670,\"\")","v":0.022404831596913834},{"$f":"IF('IV. Country level, 1310-2018'!F668<0,'III. GDP shares, 1310-2018'!F670,\"\")","v":""},{"$f":"IF('IV. Country level, 1310-2018'!G668<0,'III. GDP shares, 1310-2018'!G670,\"\")","v":0.08630450530034253},{"$f":"IF('IV. Country level, 1310-2018'!H668<0,'III. GDP shares, 1310-2018'!H670,\"\")","v":0.43233946317796457},{"$f":"IF('IV. Country level, 1310-2018'!I668<0,'III. GDP shares, 1310-2018'!I670,\"\")","v":0.035150343195539016},{"$f":"IF('IV. Country level, 1310-2018'!J668<0,'III. GDP shares, 1310-2018'!J670,\"\")","v":0.15050391042235406},null,0.8832247619096656,{"v":0.3368529990065974,"d":"33.69%"},{"v":0.20250823357139602,"d":"20.25%"},{"v":0.13010056252096838,"d":"13.01%"},{"v":0.2420711110504084,"d":"24.21%"}]
[1975,{"$f":"IF('IV. Country level, 1310-2018'!C669<0,'III. GDP shares, 1310-2018'!C671,\"\")","v":""},{"$f":"IF('IV. Country level, 1310-2018'!D669<0,'III. GDP shares, 1310-2018'!D671,\"\")","v":0.08150257149238342},{"$f":"IF('IV. Country level, 1310-2018'!E669<0,'III. GDP shares, 1310-2018'!E671,\"\")","v":0.02234594756664311},{"$f":"IF('IV. Country level, 1310-2018'!F669<0,'III. GDP shares, 1310-2018'!F671,\"\")","v":""},{"$f":"IF('IV. Country level, 1310-2018'!G669<0,'III. GDP shares, 1310-2018'!G671,\"\")","v":""},{"$f":"IF('IV. Country level, 1310-2018'!H669<0,'III. GDP shares, 1310-2018'!H671,\"\")","v":""},{"$f":"IF('IV. Country level, 1310-2018'!I669<0,'III. GDP shares, 1310-2018'!I671,\"\")","v":0.036325075798600594},{"$f":"IF('IV. Country level, 1310-2018'!J669<0,'III. GDP shares, 1310-2018'!J671,\"\")","v":""},null,0.14017359485762712,{"v":0.32227638547850795,"d":"32.23%"},{"v":0.20250823357139602,"d":"20.25%"},{"v":0.12685942564083405,"d":"12.69%"},{"v":0.2420711110504084,"d":"24.21%"}]
[1976,{"$f":"IF('IV. Country level, 1310-2018'!C670<0,'III. GDP shares, 1310-2018'!C672,\"\")","v":0.074294404917987},{"$f":"IF('IV. Country level, 1310-2018'!D670<0,'III. GDP shares, 1310-2018'!D672,\"\")","v":0.07957616439505588},{"$f":"IF('IV. Country level, 1310-2018'!E670<0,'III. GDP shares, 1310-2018'!E672,\"\")","v":0.022343586190342244},{"$f":"IF('IV. Country level, 1310-2018'!F670<0,'III. GDP shares, 1310-2018'!F672,\"\")","v":""},{"$f":"IF('IV. Country level, 1310-2018'!G670<0,'III. GDP shares, 1310-2018'!G672,\"\")","v":""},{"$f":"IF('IV. Country level, 1310-2018'!H670<0,'III. GDP shares, 1310-2018'!H672,\"\")","v":""},{"$f":"IF('IV. Country level, 1310-2018'!I670<0,'III. GDP shares, 1310-2018'!I672,\"\")","v":0.03617460658219233},{"$f":"IF('IV. Country level, 1310-2018'!J670<0,'III. GDP shares, 1310-2018'!J672,\"\")","v":0.15378829745996173},null,0.36617705954553914,{"v":0.4083115532203158,"d":"40.83%"},{"v":0.20250823357139602,"d":"20.25%"},{"v":0.12445524805180737,"d":"12.45%"},{"v":0.2420711110504084,"d":"24.21%"}]
[1977,{"$f":"IF('IV. Country level, 1310-2018'!C671<0,'III. GDP shares, 1310-2018'!C673,\"\")","v":""},{"$f":"IF('IV. Country level, 1310-2018'!D671<0,'III. GDP shares, 1310-2018'!D673,\"\")","v":0.07826611010686146},{"$f":"IF('IV. Country level, 1310-2018'!E671<0,'III. GDP shares, 1310-2018'!E673,\"\")","v":""},{"$f":"IF('IV. Country level, 1310-2018'!F671<0,'III. GDP shares, 1310-2018'!F673,\"\")","v":""},{"$f":"IF('IV. Country level, 1310-2018'!G671<0,'III. GDP shares, 1310-2018'!G673,\"\")","v":""},{"$f":"IF('IV. Country level, 1310-2018'!H671<0,'III. GDP shares, 1310-2018'!H673,\"\")","v":""},{"$f":"IF('IV. Country level, 1310-2018'!I671<0,'III. GDP shares, 1310-2018'!I673,\"\")","v":0.03621013732645194},{"$f":"IF('IV. Country level, 1310-2018'!J671<0,'III. GDP shares, 1310-2018'!J673,\"\")","v":""},null,0.1144762474333134,{"v":0.39275585052793666,"d":"39.28%"},{"v":0.20250823357139602,"d":"20.25%"},{"v":0.12445524805180737,"d":"12.45%"},{"v":0.2420711110504084,"d":"24.21%"}]
[1978,{"$f":"IF('IV. Country level, 1310-2018'!C672<0,'III. GDP shares, 1310-2018'!C674,\"\")","v":""},{"$f":"IF('IV. Country level, 1310-2018'!D672<0,'III. GDP shares, 1310-2018'!D674,\"\")","v":""},{"$f":"IF('IV. Country level, 1310-2018'!E672<0,'III. GDP shares, 1310-2018'!E674,\"\")","v":""},{"$f":"IF('IV. Country level, 1310-2018'!F672<0,'III. GDP shares, 1310-2018'!F674,\"\")","v":""},{"$f":"IF('IV. Country level, 1310-2018'!G672<0,'III. GDP shares, 1310-2018'!G674,\"\")","v":""},{"$f":"IF('IV. Country level, 1310-2018'!H672<0,'III. GDP shares, 1310-2018'!H674,\"\")","v":""},{"$f":"IF('IV. Country level, 1310-2018'!I672<0,'III. GDP shares, 1310-2018'!I674,\"\")","v":0.03577744079699863},{"$f":"IF('IV. Country level, 1310-2018'!J672<0,'III. GDP shares, 1310-2018'!J674,\"\")","v":""},null,0.03577744079699863,{"v":0.26658088454084156,"d":"26.66%"},{"v":0.20250823357139602,"d":"20.25%"},{"v":0.12445524805180737,"d":"12.45%"},{"v":0.2420711110504084,"d":"24.21%"}]
[1979,{"$f":"IF('IV. Country level, 1310-2018'!C673<0,'III. GDP shares, 1310-2018'!C675,\"\")","v":0.07430334140359553},{"$f":"IF('IV. Country level, 1310-2018'!D673<0,'III. GDP shares, 1310-2018'!D675,\"\")","v":0.07672690726010625},{"$f":"IF('IV. Country level, 1310-2018'!E673<0,'III. GDP shares, 1310-2018'!E675,\"\")","v":""},{"$f":"IF('IV. Country level, 1310-2018'!F673<0,'III. GDP shares, 1310-2018'!F675,\"\")","v":""},{"$f":"IF('IV. Country level, 1310-2018'!G673<0,'III. GDP shares, 1310-2018'!G675,\"\")","v":""},{"$f":"IF('IV. Country level, 1310-2018'!H673<0,'III. GDP shares, 1310-2018'!H675,\"\")","v":0.43822819158626974},{"$f":"IF('IV. Country level, 1310-2018'!I673<0,'III. GDP shares, 1310-2018'!I675,\"\")","v":0.03495889596657539},{"$f":"IF('IV. Country level, 1310-2018'!J673<0,'III. GDP shares, 1310-2018'!J675,\"\")","v":""},null,0.624217336216547,{"v":0.2465560852754662,"d":"24.66%"},{"v":0.20250823357139602,"d":"20.25%"},{"v":0.12146210753684783,"d":"12.15%"},{"v":0.2420711110504084,"d":"24.21%"}]
[1980,{"$f":"IF('IV. Country level, 1310-2018'!C674<0,'III. GDP shares, 1310-2018'!C676,\"\")","v":0.07620070942822597},{"$f":"IF('IV. Country level, 1310-2018'!D674<0,'III. GDP shares, 1310-2018'!D676,\"\")","v":0.07475584019736041},{"$f":"IF('IV. Country level, 1310-2018'!E674<0,'III. GDP shares, 1310-2018'!E676,\"\")","v":""},{"$f":"IF('IV. Country level, 1310-2018'!F674<0,'III. GDP shares, 1310-2018'!F676,\"\")","v":""},{"$f":"IF('IV. Country level, 1310-2018'!G674<0,'III. GDP shares, 1310-2018'!G676,\"\")","v":""},{"$f":"IF('IV. Country level, 1310-2018'!H674<0,'III. GDP shares, 1310-2018'!H676,\"\")","v":0.4342879633102791},{"$f":"IF('IV. Country level, 1310-2018'!I674<0,'III. GDP shares, 1310-2018'!I676,\"\")","v":""},{"$f":"IF('IV. Country level, 1310-2018'!J674<0,'III. GDP shares, 1310-2018'!J676,\"\")","v":""},null,0.5852445129358654,{"v":0.19424507676896066,"d":"19.42%"},{"v":0.20250823357139602,"d":"20.25%"},{"v":0.11588138109292732,"d":"11.59%"},{"v":0.2420711110504084,"d":"24.21%"}]
[1981,{"$f":"IF('IV. Country level, 1310-2018'!C675<0,'III. GDP shares, 1310-2018'!C677,\"\")","v":""},{"$f":"IF('IV. Country level, 1310-2018'!D675<0,'III. GDP shares, 1310-2018'!D677,\"\")","v":""},{"$f":"IF('IV. Country level, 1310-2018'!E675<0,'III. GDP shares, 1310-2018'!E677,\"\")","v":""},{"$f":"IF('IV. Country level, 1310-2018'!F675<0,'III. GDP shares, 1310-2018'!F677,\"\")","v":""},{"$f":"IF('IV. Country level, 1310-2018'!G675<0,'III. GDP shares, 1310-2018'!G677,\"\")","v":""},{"$f":"IF('IV. Country level, 1310-2018'!H675<0,'III. GDP shares, 1310-2018'!H677,\"\")","v":""},{"$f":"IF('IV. Country level, 1310-2018'!I675<0,'III. GDP shares, 1310-2018'!I677,\"\")","v":""},{"$f":"IF('IV. Country level, 1310-2018'!J675<0,'III. GDP shares, 1310-2018'!J677,\"\")","v":""},null,0,{"v":0.17789132713563013,"d":"17.79%"},{"v":0.20250823357139602,"d":"20.25%"},{"v":0.11505618758289567,"d":"11.51%"},{"v":0.2420711110504084,"d":"24.21%"}]
[1982,{"$f":"IF('IV. Country level, 1310-2018'!C676<0,'III. GDP shares, 1310-2018'!C678,\"\")","v":""},{"$f":"IF('IV. Country level, 1310-2018'!D676<0,'III. GDP shares, 1310-2018'!D678,\"\")","v":""},{"$f":"IF('IV. Country level, 1310-2018'!E676<0,'III. GDP shares, 1310-2018'!E678,\"\")","v":""},{"$f":"IF('IV. Country level, 1310-2018'!F676<0,'III. GDP shares, 1310-2018'!F678,\"\")","v":""},{"$f":"IF('IV. Country level, 1310-2018'!G676<0,'III. GDP shares, 1310-2018'!G678,\"\")","v":""},{"$f":"IF('IV. Country level, 1310-2018'!H676<0,'III. GDP shares, 1310-2018'!H678,\"\")","v":""},{"$f":"IF('IV. Country level, 1310-2018'!I676<0,'III. GDP shares, 1310-2018'!I678,\"\")","v":""},{"$f":"IF('IV. Country level, 1310-2018'!J676<0,'III. GDP shares, 1310-2018'!J678,\"\")","v":""},null,0,{"v":0.17278026416463035,"d":"17.28%"},{"v":0.20250823357139602,"d":"20.25%"},{"v":0.11356261648078762,"d":"11.36%"},{"v":0.2420711110504084,"d":"24.21%"}]
[1983,{"$f":"IF('IV. Country level, 1310-2018'!C677<0,'III. GDP shares, 1310-2018'!C679,\"\")","v":""},{"$f":"IF('IV. Country level, 1310-2018'!D677<0,'III. GDP shares, 1310-2018'!D679,\"\")","v":""},{"$f":"IF('IV. Country level, 1310-2018'!E677<0,'III. GDP shares, 1310-2018'!E679,\"\")","v":""},{"$f":"IF('IV. Country level, 1310-2018'!F677<0,'III. GDP shares, 1310-2018'!F679,\"\")","v":""},{"$f":"IF('IV. Country level, 1310-2018'!G677<0,'III. GDP shares, 1310-2018'!G679,\"\")","v":""},{"$f":"IF('IV. Country level, 1310-2018'!H677<0,'III. GDP shares, 1310-2018'!H679,\"\")","v":""},{"$f":"IF('IV. Country level, 1310-2018'!I677<0,'III. GDP shares, 1310-2018'!I679,\"\")","v":""},{"$f":"IF('IV. Country level, 1310-2018'!J677<0,'III. GDP shares, 1310-2018'!J679,\"\")","v":""},null,0,{"v":0.08360635899083792,"d":"8.36%"},{"v":0.20250823357139602,"d":"20.25%"},{"v":0.11356261648078762,"d":"11.36%"},{"v":0.2420711110504084,"d":"24.21%"}]
[1984,{"$f":"IF('IV. Country level, 1310-2018'!C678<0,'III. GDP shares, 1310-2018'!C680,\"\")","v":""},{"$f":"IF('IV. Country level, 1310-2018'!D678<0,'III. GDP shares, 1310-2018'!D680,\"\")","v":""},{"$f":"IF('IV. Country level, 1310-2018'!E678<0,'III. GDP shares, 1310-2018'!E680,\"\")","v":""},{"$f":"IF('IV. Country level, 1310-2018'!F678<0,'III. GDP shares, 1310-2018'!F680,\"\")","v":""},{"$f":"IF('IV. Country level, 1310-2018'!G678<0,'III. GDP shares, 1310-2018'!G680,\"\")","v":""},{"$f":"IF('IV. Country level, 1310-2018'!H678<0,'III. GDP shares, 1310-2018'!H680,\"\")","v":""},{"$f":"IF('IV. Country level, 1310-2018'!I678<0,'III. GDP shares, 1310-2018'!I680,\"\")","v":""},{"$f":"IF('IV. Country level, 1310-2018'!J678<0,'III. GDP shares, 1310-2018'!J680,\"\")","v":""},null,0,{"v":0,"d":"0.00%"},{"v":0.20250823357139602,"d":"20.25%"},{"v":0.11356261648078762,"d":"11.36%"},{"v":0.2420711110504084,"d":"24.21%"}]
[1985,{"$f":"IF('IV. Country level, 1310-2018'!C679<0,'III. GDP shares, 1310-2018'!C681,\"\")","v":""},{"$f":"IF('IV. Country level, 1310-2018'!D679<0,'III. GDP shares, 1310-2018'!D681,\"\")","v":""},{"$f":"IF('IV. Country level, 1310-2018'!E679<0,'III. GDP shares, 1310-2018'!E681,\"\")","v":""},{"$f":"IF('IV. Country level, 1310-2018'!F679<0,'III. GDP shares, 1310-2018'!F681,\"\")","v":""},{"$f":"IF('IV. Country level, 1310-2018'!G679<0,'III. GDP shares, 1310-2018'!G681,\"\")","v":""},{"$f":"IF('IV. Country level, 1310-2018'!H679<0,'III. GDP shares, 1310-2018'!H681,\"\")","v":""},{"$f":"IF('IV. Country level, 1310-2018'!I679<0,'III. GDP shares, 1310-2018'!I681,\"\")","v":""},{"$f":"IF('IV. Country level, 1310-2018'!J679<0,'III. GDP shares, 1310-2018'!J681,\"\")","v":""},null,0,{"v":0,"d":"0.00%"},{"v":0.20250823357139602,"d":"20.25%"},{"v":0.11356261648078762,"d":"11.36%"},{"v":0.2420711110504084,"d":"24.21%"}]
[1986,{"$f":"IF('IV. Country level, 1310-2018'!C680<0,'III. GDP shares, 1310-2018'!C682,\"\")","v":""},{"$f":"IF('IV. Country level, 1310-2018'!D680<0,'III. GDP shares, 1310-2018'!D682,\"\")","v":""},{"$f":"IF('IV. Country level, 1310-2018'!E680<0,'III. GDP shares, 1310-2018'!E682,\"\")","v":""},{"$f":"IF('IV. Country level, 1310-2018'!F680<0,'III. GDP shares, 1310-2018'!F682,\"\")","v":""},{"$f":"IF('IV. Country level, 1310-2018'!G680<0,'III. GDP shares, 1310-2018'!G682,\"\")","v":""},{"$f":"IF('IV. Country level, 1310-2018'!H680<0,'III. GDP shares, 1310-2018'!H682,\"\")","v":""},{"$f":"IF('IV. Country level, 1310-2018'!I680<0,'III. GDP shares, 1310-2018'!I682,\"\")","v":""},{"$f":"IF('IV. Country level, 1310-2018'!J680<0,'III. GDP shares, 1310-2018'!J682,\"\")","v":""},null,0,{"v":0,"d":"0.00%"},{"v":0.20250823357139602,"d":"20.25%"},{"v":0.11356261648078762,"d":"11.36%"},{"v":0.2420711110504084,"d":"24.21%"}]
[1987,{"$f":"IF('IV. Country level, 1310-2018'!C681<0,'III. GDP shares, 1310-2018'!C683,\"\")","v":""},{"$f":"IF('IV. Country level, 1310-2018'!D681<0,'III. GDP shares, 1310-2018'!D683,\"\")","v":""},{"$f":"IF('IV. Country level, 1310-2018'!E681<0,'III. GDP shares, 1310-2018'!E683,\"\")","v":""},{"$f":"IF('IV. Country level, 1310-2018'!F681<0,'III. GDP shares, 1310-2018'!F683,\"\")","v":""},{"$f":"IF('IV. Country level, 1310-2018'!G681<0,'III. GDP shares, 1310-2018'!G683,\"\")","v":""},{"$f":"IF('IV. Country level, 1310-2018'!H681<0,'III. GDP shares, 1310-2018'!H683,\"\")","v":""},{"$f":"IF('IV. Country level, 1310-2018'!I681<0,'III. GDP shares, 1310-2018'!I683,\"\")","v":""},{"$f":"IF('IV. Country level, 1310-2018'!J681<0,'III. GDP shares, 1310-2018'!J683,\"\")","v":""},null,0,{"v":0,"d":"0.00%"},{"v":0.20250823357139602,"d":"20.25%"},{"v":0.10918819039380585,"d":"10.92%"},{"v":0.2420711110504084,"d":"24.21%"}]
[1988,{"$f":"IF('IV. Country level, 1310-2018'!C682<0,'III. GDP shares, 1310-2018'!C684,\"\")","v":""},{"$f":"IF('IV. Country level, 1310-2018'!D682<0,'III. GDP shares, 1310-2018'!D684,\"\")","v":""},{"$f":"IF('IV. Country level, 1310-2018'!E682<0,'III. GDP shares, 1310-2018'!E684,\"\")","v":""},{"$f":"IF('IV. Country level, 1310-2018'!F682<0,'III. GDP shares, 1310-2018'!F684,\"\")","v":""},{"$f":"IF('IV. Country level, 1310-2018'!G682<0,'III. GDP shares, 1310-2018'!G684,\"\")","v":""},{"$f":"IF('IV. Country level, 1310-2018'!H682<0,'III. GDP shares, 1310-2018'!H684,\"\")","v":""},{"$f":"IF('IV. Country level, 1310-2018'!I682<0,'III. GDP shares, 1310-2018'!I684,\"\")","v":""},{"$f":"IF('IV. Country level, 1310-2018'!J682<0,'III. GDP shares, 1310-2018'!J684,\"\")","v":""},null,0,{"v":0,"d":"0.00%"},{"v":0.20250823357139602,"d":"20.25%"},{"v":0.10501201659096873,"d":"10.50%"},{"v":0.2420711110504084,"d":"24.21%"}]
[1989,{"$f":"IF('IV. Country level, 1310-2018'!C683<0,'III. GDP shares, 1310-2018'!C685,\"\")","v":""},{"$f":"IF('IV. Country level, 1310-2018'!D683<0,'III. GDP shares, 1310-2018'!D685,\"\")","v":""},{"$f":"IF('IV. Country level, 1310-2018'!E683<0,'III. GDP shares, 1310-2018'!E685,\"\")","v":""},{"$f":"IF('IV. Country level, 1310-2018'!F683<0,'III. GDP shares, 1310-2018'!F685,\"\")","v":""},{"$f":"IF('IV. Country level, 1310-2018'!G683<0,'III. GDP shares, 1310-2018'!G685,\"\")","v":""},{"$f":"IF('IV. Country level, 1310-2018'!H683<0,'III. GDP shares, 1310-2018'!H685,\"\")","v":""},{"$f":"IF('IV. Country level, 1310-2018'!I683<0,'III. GDP shares, 1310-2018'!I685,\"\")","v":""},{"$f":"IF('IV. Country level, 1310-2018'!J683<0,'III. GDP shares, 1310-2018'!J685,\"\")","v":""},null,0,{"v":0,"d":"0.00%"},{"v":0.20250823357139602,"d":"20.25%"},{"v":0.10555713814383551,"d":"10.56%"},{"v":0.2420711110504084,"d":"24.21%"}]
[1990,{"$f":"IF('IV. Country level, 1310-2018'!C684<0,'III. GDP shares, 1310-2018'!C686,\"\")","v":""},{"$f":"IF('IV. Country level, 1310-2018'!D684<0,'III. GDP shares, 1310-2018'!D686,\"\")","v":""},{"$f":"IF('IV. Country level, 1310-2018'!E684<0,'III. GDP shares, 1310-2018'!E686,\"\")","v":""},{"$f":"IF('IV. Country level, 1310-2018'!F684<0,'III. GDP shares, 1310-2018'!F686,\"\")","v":""},{"$f":"IF('IV. Country level, 1310-2018'!G684<0,'III. GDP shares, 1310-2018'!G686,\"\")","v":""},{"$f":"IF('IV. Country level, 1310-2018'!H684<0,'III. GDP shares, 1310-2018'!H686,\"\")","v":""},{"$f":"IF('IV. Country level, 1310-2018'!I684<0,'III. GDP shares, 1310-2018'!I686,\"\")","v":""},{"$f":"IF('IV. Country level, 1310-2018'!J684<0,'III. GDP shares, 1310-2018'!J686,\"\")","v":""},null,0,{"v":0,"d":"0.00%"},{"v":0.20250823357139602,"d":"20.25%"},{"v":0.08452276142315308,"d":"8.45%"},{"v":0.2420711110504084,"d":"24.21%"}]
[1991,{"$f":"IF('IV. Country level, 1310-2018'!C685<0,'III. GDP shares, 1310-2018'!C687,\"\")","v":""},{"$f":"IF('IV. Country level, 1310-2018'!D685<0,'III. GDP shares, 1310-2018'!D687,\"\")","v":""},{"$f":"IF('IV. Country level, 1310-2018'!E685<0,'III. GDP shares, 1310-2018'!E687,\"\")","v":""},{"$f":"IF('IV. Country level, 1310-2018'!F685<0,'III. GDP shares, 1310-2018'!F687,\"\")","v":""},{"$f":"IF('IV. Country level, 1310-2018'!G685<0,'III. GDP shares, 1310-2018'!G687,\"\")","v":""},{"$f":"IF('IV. Country level, 1310-2018'!H685<0,'III. GDP shares, 1310-2018'!H687,\"\")","v":""},{"$f":"IF('IV. Country level, 1310-2018'!I685<0,'III. GDP shares, 1310-2018'!I687,\"\")","v":""},{"$f":"IF('IV. Country level, 1310-2018'!J685<0,'III. GDP shares, 1310-2018'!J687,\"\")","v":""},null,0,{"v":0,"d":"0.00%"},{"v":0.20250823357139602,"d":"20.25%"},{"v":0.057758374698617755,"d":"5.78%"},{"v":0.2420711110504084,"d":"24.21%"}]
[1992,{"$f":"IF('IV. Country level, 1310-2018'!C686<0,'III. GDP shares, 1310-2018'!C688,\"\")","v":""},{"$f":"IF('IV. Country level, 1310-2018'!D686<0,'III. GDP shares, 1310-2018'!D688,\"\")","v":""},{"$f":"IF('IV. Country level, 1310-2018'!E686<0,'III. GDP shares, 1310-2018'!E688,\"\")","v":""},{"$f":"IF('IV. Country level, 1310-2018'!F686<0,'III. GDP shares, 1310-2018'!F688,\"\")","v":""},{"$f":"IF('IV. Country level, 1310-2018'!G686<0,'III. GDP shares, 1310-2018'!G688,\"\")","v":""},{"$f":"IF('IV. Country level, 1310-2018'!H686<0,'III. GDP shares, 1310-2018'!H688,\"\")","v":""},{"$f":"IF('IV. Country level, 1310-2018'!I686<0,'III. GDP shares, 1310-2018'!I688,\"\")","v":""},{"$f":"IF('IV. Country level, 1310-2018'!J686<0,'III. GDP shares, 1310-2018'!J688,\"\")","v":""},null,0,{"v":0,"d":"0.00%"},{"v":0.20250823357139602,"d":"20.25%"},{"v":0.06837268710698849,"d":"6.84%"},{"v":0.2420711110504084,"d":"24.21%"}]
[1993,{"$f":"IF('IV. Country level, 1310-2018'!C687<0,'III. GDP shares, 1310-2018'!C689,\"\")","v":""},{"$f":"IF('IV. Country level, 1310-2018'!D687<0,'III. GDP shares, 1310-2018'!D689,\"\")","v":""},{"$f":"IF('IV. Country level, 1310-2018'!E687<0,'III. GDP shares, 1310-2018'!E689,\"\")","v":""},{"$f":"IF('IV. Country level, 1310-2018'!F687<0,'III. GDP shares, 1310-2018'!F689,\"\")","v":""},{"$f":"IF('IV. Country level, 1310-2018'!G687<0,'III. GDP shares, 1310-2018'!G689,\"\")","v":""},{"$f":"IF('IV. Country level, 1310-2018'!H687<0,'III. GDP shares, 1310-2018'!H689,\"\")","v":""},{"$f":"IF('IV. Country level, 1310-2018'!I687<0,'III. GDP shares, 1310-2018'!I689,\"\")","v":""},{"$f":"IF('IV. Country level, 1310-2018'!J687<0,'III. GDP shares, 1310-2018'!J689,\"\")","v":""},null,0,{"v":0,"d":"0.00%"},{"v":0.20250823357139602,"d":"20.25%"},{"v":0.057276412575305476,"d":"5.73%"},{"v":0.2420711110504084,"d":"24.21%"}]
[1994,{"$f":"IF('IV. Country level, 1310-2018'!C688<0,'III. GDP shares, 1310-2018'!C690,\"\")","v":""},{"$f":"IF('IV. Country level, 1310-2018'!D688<0,'III. GDP shares, 1310-2018'!D690,\"\")","v":""},{"$f":"IF('IV. Country level, 1310-2018'!E688<0,'III. GDP shares, 1310-2018'!E690,\"\")","v":""},{"$f":"IF('IV. Country level, 1310-2018'!F688<0,'III. GDP shares, 1310-2018'!F690,\"\")","v":""},{"$f":"IF('IV. Country level, 1310-2018'!G688<0,'III. GDP shares, 1310-2018'!G690,\"\")","v":""},{"$f":"IF('IV. Country level, 1310-2018'!H688<0,'III. GDP shares, 1310-2018'!H690,\"\")","v":""},{"$f":"IF('IV. Country level, 1310-2018'!I688<0,'III. GDP shares, 1310-2018'!I690,\"\")","v":""},{"$f":"IF('IV. Country level, 1310-2018'!J688<0,'III. GDP shares, 1310-2018'!J690,\"\")","v":""},null,0,{"v":0,"d":"0.00%"},{"v":0.20250823357139602,"d":"20.25%"},{"v":0.05380743538035658,"d":"5.38%"},{"v":0.2420711110504084,"d":"24.21%"}]
[1995,{"$f":"IF('IV. Country level, 1310-2018'!C689<0,'III. GDP shares, 1310-2018'!C691,\"\")","v":""},{"$f":"IF('IV. Country level, 1310-2018'!D689<0,'III. GDP shares, 1310-2018'!D691,\"\")","v":""},{"$f":"IF('IV. Country level, 1310-2018'!E689<0,'III. GDP shares, 1310-2018'!E691,\"\")","v":""},{"$f":"IF('IV. Country level, 1310-2018'!F689<0,'III. GDP shares, 1310-2018'!F691,\"\")","v":""},{"$f":"IF('IV. Country level, 1310-2018'!G689<0,'III. GDP shares, 1310-2018'!G691,\"\")","v":""},{"$f":"IF('IV. Country level, 1310-2018'!H689<0,'III. GDP shares, 1310-2018'!H691,\"\")","v":""},{"$f":"IF('IV. Country level, 1310-2018'!I689<0,'III. GDP shares, 1310-2018'!I691,\"\")","v":""},{"$f":"IF('IV. Country level, 1310-2018'!J689<0,'III. GDP shares, 1310-2018'!J691,\"\")","v":""},null,0,{"v":0,"d":"0.00%"},{"v":0.20250823357139602,"d":"20.25%"},{"v":0.07318122520224313,"d":"7.32%"},{"v":0.2420711110504084,"d":"24.21%"}]
[1996,{"$f":"IF('IV. Country level, 1310-2018'!C690<0,'III. GDP shares, 1310-2018'!C692,\"\")","v":""},{"$f":"IF('IV. Country level, 1310-2018'!D690<0,'III. GDP shares, 1310-2018'!D692,\"\")","v":""},{"$f":"IF('IV. Country level, 1310-2018'!E690<0,'III. GDP shares, 1310-2018'!E692,\"\")","v":""},{"$f":"IF('IV. Country level, 1310-2018'!F690<0,'III. GDP shares, 1310-2018'!F692,\"\")","v":""},{"$f":"IF('IV. Country level, 1310-2018'!G690<0,'III. GDP shares, 1310-2018'!G692,\"\")","v":""},{"$f":"IF('IV. Country level, 1310-2018'!H690<0,'III. GDP shares, 1310-2018'!H692,\"\")","v":""},{"$f":"IF('IV. Country level, 1310-2018'!I690<0,'III. GDP shares, 1310-2018'!I692,\"\")","v":""},{"$f":"IF('IV. Country level, 1310-2018'!J690<0,'III. GDP shares, 1310-2018'!J692,\"\")","v":""},null,0,{"v":0,"d":"0.00%"},{"v":0.20250823357139602,"d":"20.25%"},{"v":0.0724563030286351,"d":"7.25%"},{"v":0.2420711110504084,"d":"24.21%"}]
[1997,{"$f":"IF('IV. Country level, 1310-2018'!C691<0,'III. GDP shares, 1310-2018'!C693,\"\")","v":""},{"$f":"IF('IV. Country level, 1310-2018'!D691<0,'III. GDP shares, 1310-2018'!D693,\"\")","v":""},{"$f":"IF('IV. Country level, 1310-2018'!E691<0,'III. GDP shares, 1310-2018'!E693,\"\")","v":""},{"$f":"IF('IV. Country level, 1310-2018'!F691<0,'III. GDP shares, 1310-2018'!F693,\"\")","v":""},{"$f":"IF('IV. Country level, 1310-2018'!G691<0,'III. GDP shares, 1310-2018'!G693,\"\")","v":""},{"$f":"IF('IV. Country level, 1310-2018'!H691<0,'III. GDP shares, 1310-2018'!H693,\"\")","v":""},{"$f":"IF('IV. Country level, 1310-2018'!I691<0,'III. GDP shares, 1310-2018'!I693,\"\")","v":""},{"$f":"IF('IV. Country level, 1310-2018'!J691<0,'III. GDP shares, 1310-2018'!J693,\"\")","v":""},null,0,{"v":0,"d":"0.00%"},{"v":0.20250823357139602,"d":"20.25%"},{"v":0.054721620818457356,"d":"5.47%"},{"v":0.2420711110504084,"d":"24.21%"}]
[1998,{"$f":"IF('IV. Country level, 1310-2018'!C692<0,'III. GDP shares, 1310-2018'!C694,\"\")","v":""},{"$f":"IF('IV. Country level, 1310-2018'!D692<0,'III. GDP shares, 1310-2018'!D694,\"\")","v":""},{"$f":"IF('IV. Country level, 1310-2018'!E692<0,'III. GDP shares, 1310-2018'!E694,\"\")","v":""},{"$f":"IF('IV. Country level, 1310-2018'!F692<0,'III. GDP shares, 1310-2018'!F694,\"\")","v":""},{"$f":"IF('IV. Country level, 1310-2018'!G692<0,'III. GDP shares, 1310-2018'!G694,\"\")","v":""},{"$f":"IF('IV. Country level, 1310-2018'!H692<0,'III. GDP shares, 1310-2018'!H694,\"\")","v":""},{"$f":"IF('IV. Country level, 1310-2018'!I692<0,'III. GDP shares, 1310-2018'!I694,\"\")","v":""},{"$f":"IF('IV. Country level, 1310-2018'!J692<0,'III. GDP shares, 1310-2018'!J694,\"\")","v":""},null,0,{"v":0,"d":"0.00%"},{"v":0.20250823357139602,"d":"20.25%"},{"v":0.06260079656082067,"d":"6.26%"},{"v":0.2420711110504084,"d":"24.21%"}]
[1999,{"$f":"IF('IV. Country level, 1310-2018'!C693<0,'III. GDP shares, 1310-2018'!C695,\"\")","v":""},{"$f":"IF('IV. Country level, 1310-2018'!D693<0,'III. GDP shares, 1310-2018'!D695,\"\")","v":""},{"$f":"IF('IV. Country level, 1310-2018'!E693<0,'III. GDP shares, 1310-2018'!E695,\"\")","v":""},{"$f":"IF('IV. Country level, 1310-2018'!F693<0,'III. GDP shares, 1310-2018'!F695,\"\")","v":""},{"$f":"IF('IV. Country level, 1310-2018'!G693<0,'III. GDP shares, 1310-2018'!G695,\"\")","v":""},{"$f":"IF('IV. Country level, 1310-2018'!H693<0,'III. GDP shares, 1310-2018'!H695,\"\")","v":""},{"$f":"IF('IV. Country level, 1310-2018'!I693<0,'III. GDP shares, 1310-2018'!I695,\"\")","v":""},{"$f":"IF('IV. Country level, 1310-2018'!J693<0,'III. GDP shares, 1310-2018'!J695,\"\")","v":""},null,0,{"v":0,"d":"0.00%"},{"v":0.20250823357139602,"d":"20.25%"},{"v":0.06260079656082067,"d":"6.26%"},{"v":0.2420711110504084,"d":"24.21%"}]
[2000,{"$f":"IF('IV. Country level, 1310-2018'!C694<0,'III. GDP shares, 1310-2018'!C696,\"\")","v":""},{"$f":"IF('IV. Country level, 1310-2018'!D694<0,'III. GDP shares, 1310-2018'!D696,\"\")","v":""},{"$f":"IF('IV. Country level, 1310-2018'!E694<0,'III. GDP shares, 1310-2018'!E696,\"\")","v":""},{"$f":"IF('IV. Country level, 1310-2018'!F694<0,'III. GDP shares, 1310-2018'!F696,\"\")","v":""},{"$f":"IF('IV. Country level, 1310-2018'!G694<0,'III. GDP shares, 1310-2018'!G696,\"\")","v":""},{"$f":"IF('IV. Country level, 1310-2018'!H694<0,'III. GDP shares, 1310-2018'!H696,\"\")","v":""},{"$f":"IF('IV. Country level, 1310-2018'!I694<0,'III. GDP shares, 1310-2018'!I696,\"\")","v":""},{"$f":"IF('IV. Country level, 1310-2018'!J694<0,'III. GDP shares, 1310-2018'!J696,\"\")","v":""},null,0,{"v":0,"d":"0.00%"},{"v":0.20250823357139602,"d":"20.25%"},{"v":0.06755268345060139,"d":"6.76%"},{"$f":"AVERAGE(L$696:L$714)","v":{"v":0.15815959755614378,"d":"15.82%"}}]
[2001,{"$f":"IF('IV. Country level, 1310-2018'!C695<0,'III. GDP shares, 1310-2018'!C697,\"\")","v":""},{"$f":"IF('IV. Country level, 1310-2018'!D695<0,'III. GDP shares, 1310-2018'!D697,\"\")","v":""},{"$f":"IF('IV. Country level, 1310-2018'!E695<0,'III. GDP shares, 1310-2018'!E697,\"\")","v":""},{"$f":"IF('IV. Country level, 1310-2018'!F695<0,'III. GDP shares, 1310-2018'!F697,\"\")","v":""},{"$f":"IF('IV. Country level, 1310-2018'!G695<0,'III. GDP shares, 1310-2018'!G697,\"\")","v":""},{"$f":"IF('IV. Country level, 1310-2018'!H695<0,'III. GDP shares, 1310-2018'!H697,\"\")","v":""},{"$f":"IF('IV. Country level, 1310-2018'!I695<0,'III. GDP shares, 1310-2018'!I697,\"\")","v":""},{"$f":"IF('IV. Country level, 1310-2018'!J695<0,'III. GDP shares, 1310-2018'!J697,\"\")","v":""},null,0,{"v":0,"d":"0.00%"},{"v":0.20250823357139602,"d":"20.25%"},{"v":0.08117984884132241,"d":"8.12%"},{"$f":"AVERAGE(L$696:L$714)","v":{"v":0.15815959755614378,"d":"15.82%"}}]
[2002,{"$f":"IF('IV. Country level, 1310-2018'!C696<0,'III. GDP shares, 1310-2018'!C698,\"\")","v":""},{"$f":"IF('IV. Country level, 1310-2018'!D696<0,'III. GDP shares, 1310-2018'!D698,\"\")","v":""},{"$f":"IF('IV. Country level, 1310-2018'!E696<0,'III. GDP shares, 1310-2018'!E698,\"\")","v":""},{"$f":"IF('IV. Country level, 1310-2018'!F696<0,'III. GDP shares, 1310-2018'!F698,\"\")","v":""},{"$f":"IF('IV. Country level, 1310-2018'!G696<0,'III. GDP shares, 1310-2018'!G698,\"\")","v":""},{"$f":"IF('IV. Country level, 1310-2018'!H696<0,'III. GDP shares, 1310-2018'!H698,\"\")","v":""},{"$f":"IF('IV. Country level, 1310-2018'!I696<0,'III. GDP shares, 1310-2018'!I698,\"\")","v":""},{"$f":"IF('IV. Country level, 1310-2018'!J696<0,'III. GDP shares, 1310-2018'!J698,\"\")","v":""},null,0,{"v":0.005708596181213588,"d":"0.57%"},{"v":0.20250823357139602,"d":"20.25%"},{"v":0.09480701423204342,"d":"9.48%"},{"v":0.15815959755614378,"d":"15.82%"}]
[2003,{"$f":"IF('IV. Country level, 1310-2018'!C697<0,'III. GDP shares, 1310-2018'!C699,\"\")","v":""},{"$f":"IF('IV. Country level, 1310-2018'!D697<0,'III. GDP shares, 1310-2018'!D699,\"\")","v":""},{"$f":"IF('IV. Country level, 1310-2018'!E697<0,'III. GDP shares, 1310-2018'!E699,\"\")","v":""},{"$f":"IF('IV. Country level, 1310-2018'!F697<0,'III. GDP shares, 1310-2018'!F699,\"\")","v":""},{"$f":"IF('IV. Country level, 1310-2018'!G697<0,'III. GDP shares, 1310-2018'!G699,\"\")","v":""},{"$f":"IF('IV. Country level, 1310-2018'!H697<0,'III. GDP shares, 1310-2018'!H699,\"\")","v":""},{"$f":"IF('IV. Country level, 1310-2018'!I697<0,'III. GDP shares, 1310-2018'!I699,\"\")","v":""},{"$f":"IF('IV. Country level, 1310-2018'!J697<0,'III. GDP shares, 1310-2018'!J699,\"\")","v":""},null,0,{"v":0.005708596181213588,"d":"0.57%"},{"v":0.20250823357139602,"d":"20.25%"},{"v":0.09776973342679478,"d":"9.78%"},{"v":0.15815959755614378,"d":"15.82%"}]
[2004,{"$f":"IF('IV. Country level, 1310-2018'!C698<0,'III. GDP shares, 1310-2018'!C700,\"\")","v":""},{"$f":"IF('IV. Country level, 1310-2018'!D698<0,'III. GDP shares, 1310-2018'!D700,\"\")","v":""},{"$f":"IF('IV. Country level, 1310-2018'!E698<0,'III. GDP shares, 1310-2018'!E700,\"\")","v":""},{"$f":"IF('IV. Country level, 1310-2018'!F698<0,'III. GDP shares, 1310-2018'!F700,\"\")","v":""},{"$f":"IF('IV. Country level, 1310-2018'!G698<0,'III. GDP shares, 1310-2018'!G700,\"\")","v":""},{"$f":"IF('IV. Country level, 1310-2018'!H698<0,'III. GDP shares, 1310-2018'!H700,\"\")","v":""},{"$f":"IF('IV. Country level, 1310-2018'!I698<0,'III. GDP shares, 1310-2018'!I700,\"\")","v":""},{"$f":"IF('IV. Country level, 1310-2018'!J698<0,'III. GDP shares, 1310-2018'!J700,\"\")","v":""},null,0,{"v":0.005708596181213588,"d":"0.57%"},{"v":0.20250823357139602,"d":"20.25%"},{"v":0.10092359579540106,"d":"10.09%"},{"v":0.15815959755614378,"d":"15.82%"}]
[2005,{"$f":"IF('IV. Country level, 1310-2018'!C699<0,'III. GDP shares, 1310-2018'!C701,\"\")","v":""},{"$f":"IF('IV. Country level, 1310-2018'!D699<0,'III. GDP shares, 1310-2018'!D701,\"\")","v":""},{"$f":"IF('IV. Country level, 1310-2018'!E699<0,'III. GDP shares, 1310-2018'!E701,\"\")","v":""},{"$f":"IF('IV. Country level, 1310-2018'!F699<0,'III. GDP shares, 1310-2018'!F701,\"\")","v":""},{"$f":"IF('IV. Country level, 1310-2018'!G699<0,'III. GDP shares, 1310-2018'!G701,\"\")","v":""},{"$f":"IF('IV. Country level, 1310-2018'!H699<0,'III. GDP shares, 1310-2018'!H701,\"\")","v":""},{"$f":"IF('IV. Country level, 1310-2018'!I699<0,'III. GDP shares, 1310-2018'!I701,\"\")","v":0.03996017326849512},{"$f":"IF('IV. Country level, 1310-2018'!J699<0,'III. GDP shares, 1310-2018'!J701,\"\")","v":""},null,0.03996017326849512,{"v":0.07577229680033662,"d":"7.58%"},{"v":0.20250823357139602,"d":"20.25%"},{"v":0.10428771565524776,"d":"10.43%"},{"v":0.15815959755614378,"d":"15.82%"}]
[2006,{"$f":"IF('IV. Country level, 1310-2018'!C700<0,'III. GDP shares, 1310-2018'!C702,\"\")","v":""},{"$f":"IF('IV. Country level, 1310-2018'!D700<0,'III. GDP shares, 1310-2018'!D702,\"\")","v":""},{"$f":"IF('IV. Country level, 1310-2018'!E700<0,'III. GDP shares, 1310-2018'!E702,\"\")","v":""},{"$f":"IF('IV. Country level, 1310-2018'!F700<0,'III. GDP shares, 1310-2018'!F702,\"\")","v":""},{"$f":"IF('IV. Country level, 1310-2018'!G700<0,'III. GDP shares, 1310-2018'!G702,\"\")","v":""},{"$f":"IF('IV. Country level, 1310-2018'!H700<0,'III. GDP shares, 1310-2018'!H702,\"\")","v":""},{"$f":"IF('IV. Country level, 1310-2018'!I700<0,'III. GDP shares, 1310-2018'!I702,\"\")","v":""},{"$f":"IF('IV. Country level, 1310-2018'!J700<0,'III. GDP shares, 1310-2018'!J702,\"\")","v":""},null,0,{"v":0.07577229680033662,"d":"7.58%"},{"v":0.20250823357139602,"d":"20.25%"},{"v":0.10788384378129079,"d":"10.79%"},{"v":0.15815959755614378,"d":"15.82%"}]
[2007,{"$f":"IF('IV. Country level, 1310-2018'!C701<0,'III. GDP shares, 1310-2018'!C703,\"\")","v":""},{"$f":"IF('IV. Country level, 1310-2018'!D701<0,'III. GDP shares, 1310-2018'!D703,\"\")","v":""},{"$f":"IF('IV. Country level, 1310-2018'!E701<0,'III. GDP shares, 1310-2018'!E703,\"\")","v":""},{"$f":"IF('IV. Country level, 1310-2018'!F701<0,'III. GDP shares, 1310-2018'!F703,\"\")","v":""},{"$f":"IF('IV. Country level, 1310-2018'!G701<0,'III. GDP shares, 1310-2018'!G703,\"\")","v":""},{"$f":"IF('IV. Country level, 1310-2018'!H701<0,'III. GDP shares, 1310-2018'!H703,\"\")","v":""},{"$f":"IF('IV. Country level, 1310-2018'!I701<0,'III. GDP shares, 1310-2018'!I703,\"\")","v":""},{"$f":"IF('IV. Country level, 1310-2018'!J701<0,'III. GDP shares, 1310-2018'!J703,\"\")","v":""},null,0,{"v":0.07577229680033662,"d":"7.58%"},{"v":0.20250823357139602,"d":"20.25%"},{"v":0.11173683820205117,"d":"11.17%"},{"v":0.15815959755614378,"d":"15.82%"}]
[2008,{"$f":"IF('IV. Country level, 1310-2018'!C702<0,'III. GDP shares, 1310-2018'!C704,\"\")","v":""},{"$f":"IF('IV. Country level, 1310-2018'!D702<0,'III. GDP shares, 1310-2018'!D704,\"\")","v":""},{"$f":"IF('IV. Country level, 1310-2018'!E702<0,'III. GDP shares, 1310-2018'!E704,\"\")","v":""},{"$f":"IF('IV. Country level, 1310-2018'!F702<0,'III. GDP shares, 1310-2018'!F704,\"\")","v":""},{"$f":"IF('IV. Country level, 1310-2018'!G702<0,'III. GDP shares, 1310-2018'!G704,\"\")","v":""},{"$f":"IF('IV. Country level, 1310-2018'!H702<0,'III. GDP shares, 1310-2018'!H704,\"\")","v":0.4904459043338612},{"$f":"IF('IV. Country level, 1310-2018'!I702<0,'III. GDP shares, 1310-2018'!I704,\"\")","v":""},{"$f":"IF('IV. Country level, 1310-2018'!J702<0,'III. GDP shares, 1310-2018'!J704,\"\")","v":""},null,0.4904459043338612,{"v":0.17221694036023008,"d":"17.22%"},{"v":0.20250823357139602,"d":"20.25%"},{"v":0.11587523961694196,"d":"11.59%"},{"v":0.15815959755614378,"d":"15.82%"}]
[2009,{"$f":"IF('IV. Country level, 1310-2018'!C703<0,'III. GDP shares, 1310-2018'!C705,\"\")","v":""},{"$f":"IF('IV. Country level, 1310-2018'!D703<0,'III. GDP shares, 1310-2018'!D705,\"\")","v":""},{"$f":"IF('IV. Country level, 1310-2018'!E703<0,'III. GDP shares, 1310-2018'!E705,\"\")","v":""},{"$f":"IF('IV. Country level, 1310-2018'!F703<0,'III. GDP shares, 1310-2018'!F705,\"\")","v":""},{"$f":"IF('IV. Country level, 1310-2018'!G703<0,'III. GDP shares, 1310-2018'!G705,\"\")","v":""},{"$f":"IF('IV. Country level, 1310-2018'!H703<0,'III. GDP shares, 1310-2018'!H705,\"\")","v":""},{"$f":"IF('IV. Country level, 1310-2018'!I703<0,'III. GDP shares, 1310-2018'!I705,\"\")","v":""},{"$f":"IF('IV. Country level, 1310-2018'!J703<0,'III. GDP shares, 1310-2018'!J705,\"\")","v":""},null,0,{"v":0.25226475910579965,"d":"25.23%"},{"v":0.20250823357139602,"d":"20.25%"},{"v":0.12033197960220895,"d":"12.03%"},{"v":0.15815959755614378,"d":"15.82%"}]
[2010,{"$f":"IF('IV. Country level, 1310-2018'!C704<0,'III. GDP shares, 1310-2018'!C706,\"\")","v":""},{"$f":"IF('IV. Country level, 1310-2018'!D704<0,'III. GDP shares, 1310-2018'!D706,\"\")","v":""},{"$f":"IF('IV. Country level, 1310-2018'!E704<0,'III. GDP shares, 1310-2018'!E706,\"\")","v":""},{"$f":"IF('IV. Country level, 1310-2018'!F704<0,'III. GDP shares, 1310-2018'!F706,\"\")","v":""},{"$f":"IF('IV. Country level, 1310-2018'!G704<0,'III. GDP shares, 1310-2018'!G706,\"\")","v":""},{"$f":"IF('IV. Country level, 1310-2018'!H704<0,'III. GDP shares, 1310-2018'!H706,\"\")","v":""},{"$f":"IF('IV. Country level, 1310-2018'!I704<0,'III. GDP shares, 1310-2018'!I706,\"\")","v":""},{"$f":"IF('IV. Country level, 1310-2018'!J704<0,'III. GDP shares, 1310-2018'!J706,\"\")","v":""},null,0,{"v":0.25226475910579965,"d":"25.23%"},{"v":0.20250823357139602,"d":"20.25%"},{"v":0.12514525878629731,"d":"12.51%"},{"v":0.15815959755614378,"d":"15.82%"}]
[2011,{"$f":"IF('IV. Country level, 1310-2018'!C705<0,'III. GDP shares, 1310-2018'!C707,\"\")","v":""},{"$f":"IF('IV. Country level, 1310-2018'!D705<0,'III. GDP shares, 1310-2018'!D707,\"\")","v":0.07481760043177235},{"$f":"IF('IV. Country level, 1310-2018'!E705<0,'III. GDP shares, 1310-2018'!E707,\"\")","v":0.021254333222629103},{"$f":"IF('IV. Country level, 1310-2018'!F705<0,'III. GDP shares, 1310-2018'!F707,\"\")","v":0.08859466693099176},{"$f":"IF('IV. Country level, 1310-2018'!G705<0,'III. GDP shares, 1310-2018'!G707,\"\")","v":""},{"$f":"IF('IV. Country level, 1310-2018'!H705<0,'III. GDP shares, 1310-2018'!H707,\"\")","v":0.4904459043338612},{"$f":"IF('IV. Country level, 1310-2018'!I705<0,'III. GDP shares, 1310-2018'!I707,\"\")","v":""},{"$f":"IF('IV. Country level, 1310-2018'!J705<0,'III. GDP shares, 1310-2018'!J707,\"\")","v":""},null,0.6751125049192543,{"v":0.28940944474836955,"d":"28.94%"},{"v":0.20250823357139602,"d":"20.25%"},{"v":0.1303596445690597,"d":"13.04%"},{"v":0.15815959755614378,"d":"15.82%"}]
[2012,{"$f":"IF('IV. Country level, 1310-2018'!C706<0,'III. GDP shares, 1310-2018'!C708,\"\")","v":""},{"$f":"IF('IV. Country level, 1310-2018'!D706<0,'III. GDP shares, 1310-2018'!D708,\"\")","v":""},{"$f":"IF('IV. Country level, 1310-2018'!E706<0,'III. GDP shares, 1310-2018'!E708,\"\")","v":0.021254333222629103},{"$f":"IF('IV. Country level, 1310-2018'!F706<0,'III. GDP shares, 1310-2018'!F708,\"\")","v":0.08859466693099176},{"$f":"IF('IV. Country level, 1310-2018'!G706<0,'III. GDP shares, 1310-2018'!G708,\"\")","v":""},{"$f":"IF('IV. Country level, 1310-2018'!H706<0,'III. GDP shares, 1310-2018'!H708,\"\")","v":0.4904459043338612},{"$f":"IF('IV. Country level, 1310-2018'!I706<0,'III. GDP shares, 1310-2018'!I708,\"\")","v":""},{"$f":"IF('IV. Country level, 1310-2018'!J706<0,'III. GDP shares, 1310-2018'!J708,\"\")","v":""},null,0.6002949044874821,{"v":0.21934574412924654,"d":"21.93%"},{"v":0.20250823357139602,"d":"20.25%"},{"v":0.1360274552024971,"d":"13.60%"},{"v":0.15815959755614378,"d":"15.82%"}]
[2013,{"$f":"IF('IV. Country level, 1310-2018'!C707<0,'III. GDP shares, 1310-2018'!C709,\"\")","v":""},{"$f":"IF('IV. Country level, 1310-2018'!D707<0,'III. GDP shares, 1310-2018'!D709,\"\")","v":""},{"$f":"IF('IV. Country level, 1310-2018'!E707<0,'III. GDP shares, 1310-2018'!E709,\"\")","v":""},{"$f":"IF('IV. Country level, 1310-2018'!F707<0,'III. GDP shares, 1310-2018'!F709,\"\")","v":""},{"$f":"IF('IV. Country level, 1310-2018'!G707<0,'III. GDP shares, 1310-2018'!G709,\"\")","v":""},{"$f":"IF('IV. Country level, 1310-2018'!H707<0,'III. GDP shares, 1310-2018'!H709,\"\")","v":""},{"$f":"IF('IV. Country level, 1310-2018'!I707<0,'III. GDP shares, 1310-2018'!I709,\"\")","v":""},{"$f":"IF('IV. Country level, 1310-2018'!J707<0,'III. GDP shares, 1310-2018'!J709,\"\")","v":""},null,0,{"v":0.24269035375249853,"d":"24.27%"},{"v":0.20250823357139602,"d":"20.25%"},{"v":0.14221052134806514,"d":"14.22%"},{"v":0.15815959755614378,"d":"15.82%"}]
[2014,{"$f":"IF('IV. Country level, 1310-2018'!C708<0,'III. GDP shares, 1310-2018'!C710,\"\")","v":""},{"$f":"IF('IV. Country level, 1310-2018'!D708<0,'III. GDP shares, 1310-2018'!D710,\"\")","v":""},{"$f":"IF('IV. Country level, 1310-2018'!E708<0,'III. GDP shares, 1310-2018'!E710,\"\")","v":0.021254333222629103},{"$f":"IF('IV. Country level, 1310-2018'!F708<0,'III. GDP shares, 1310-2018'!F710,\"\")","v":0.08859466693099176},{"$f":"IF('IV. Country level, 1310-2018'!G708<0,'III. GDP shares, 1310-2018'!G710,\"\")","v":""},{"$f":"IF('IV. Country level, 1310-2018'!H708<0,'III. GDP shares, 1310-2018'!H710,\"\")","v":""},{"$f":"IF('IV. Country level, 1310-2018'!I708<0,'III. GDP shares, 1310-2018'!I710,\"\")","v":""},{"$f":"IF('IV. Country level, 1310-2018'!J708<0,'III. GDP shares, 1310-2018'!J710,\"\")","v":0.1501637993443683},null,0.26001279949798917,{"v":0.3069327048801833,"d":"30.69%"},{"v":0.20250823357139602,"d":"20.25%"},{"v":0.14898245093606824,"d":"14.90%"},{"v":0.15815959755614378,"d":"15.82%"}]
[2015,{"$f":"IF('IV. Country level, 1310-2018'!C709<0,'III. GDP shares, 1310-2018'!C711,\"\")","v":""},{"$f":"IF('IV. Country level, 1310-2018'!D709<0,'III. GDP shares, 1310-2018'!D711,\"\")","v":""},{"$f":"IF('IV. Country level, 1310-2018'!E709<0,'III. GDP shares, 1310-2018'!E711,\"\")","v":""},{"$f":"IF('IV. Country level, 1310-2018'!F709<0,'III. GDP shares, 1310-2018'!F711,\"\")","v":""},{"$f":"IF('IV. Country level, 1310-2018'!G709<0,'III. GDP shares, 1310-2018'!G711,\"\")","v":""},{"$f":"IF('IV. Country level, 1310-2018'!H709<0,'III. GDP shares, 1310-2018'!H711,\"\")","v":""},{"$f":"IF('IV. Country level, 1310-2018'!I709<0,'III. GDP shares, 1310-2018'!I711,\"\")","v":""},{"$f":"IF('IV. Country level, 1310-2018'!J709<0,'III. GDP shares, 1310-2018'!J711,\"\")","v":""},null,{"$f":"SUM(B711:I711)","v":0},{"v":0.27473041244797464,"d":"27.47%"},{"v":0.20250823357139602,"d":"20.25%"},{"v":0.15643157348287165,"d":"15.64%"},{"v":0.15815959755614378,"d":"15.82%"}]
[2016,{"$f":"IF('IV. Country level, 1310-2018'!C710<0,'III. GDP shares, 1310-2018'!C712,\"\")","v":""},{"$f":"IF('IV. Country level, 1310-2018'!D710<0,'III. GDP shares, 1310-2018'!D712,\"\")","v":0.07481760043177235},{"$f":"IF('IV. Country level, 1310-2018'!E710<0,'III. GDP shares, 1310-2018'!E712,\"\")","v":""},{"$f":"IF('IV. Country level, 1310-2018'!F710<0,'III. GDP shares, 1310-2018'!F712,\"\")","v":0.08859466693099176},{"$f":"IF('IV. Country level, 1310-2018'!G710<0,'III. GDP shares, 1310-2018'!G712,\"\")","v":""},{"$f":"IF('IV. Country level, 1310-2018'!H710<0,'III. GDP shares, 1310-2018'!H712,\"\")","v":""},{"$f":"IF('IV. Country level, 1310-2018'!I710<0,'III. GDP shares, 1310-2018'!I712,\"\")","v":""},{"$f":"IF('IV. Country level, 1310-2018'!J710<0,'III. GDP shares, 1310-2018'!J712,\"\")","v":""},null,0.1634122673627641,{"v":0.22046966377472332,"d":"22.05%"},{"v":0.20250823357139602,"d":"20.25%"},{"v":0.16466481419249646,"d":"16.47%"},{"v":0.15815959755614378,"d":"15.82%"}]
[2017,{"$f":"IF('IV. Country level, 1310-2018'!C711<0,'III. GDP shares, 1310-2018'!C713,\"\")","v":""},{"$f":"IF('IV. Country level, 1310-2018'!D711<0,'III. GDP shares, 1310-2018'!D713,\"\")","v":0.07481760043177235},{"$f":"IF('IV. Country level, 1310-2018'!E711<0,'III. GDP shares, 1310-2018'!E713,\"\")","v":0.021254333222629103},{"$f":"IF('IV. Country level, 1310-2018'!F711<0,'III. GDP shares, 1310-2018'!F713,\"\")","v":0.08859466693099176},{"$f":"IF('IV. Country level, 1310-2018'!G711<0,'III. GDP shares, 1310-2018'!G713,\"\")","v":0.07360781674246106},{"$f":"IF('IV. Country level, 1310-2018'!H711<0,'III. GDP shares, 1310-2018'!H713,\"\")","v":""},{"$f":"IF('IV. Country level, 1310-2018'!I711<0,'III. GDP shares, 1310-2018'!I713,\"\")","v":0.04125824122157077},{"$f":"IF('IV. Country level, 1310-2018'!J711<0,'III. GDP shares, 1310-2018'!J713,\"\")","v":0.1501637993443683},null,0.44969645789379337,{"v":0.264563596529668,"d":"26.46%"},{"$f":"AVERAGE(L$9:L$714)","v":{"v":0.20250823357139602,"d":"20.25%"}},{"v":0.17381285942541294,"d":"17.38%"},{"v":0.15815959755614378,"d":"15.82%"}]
[2018,{"$f":"IF('IV. Country level, 1310-2018'!C712<0,'III. GDP shares, 1310-2018'!C714,\"\")","v":""},{"$f":"IF('IV. Country level, 1310-2018'!D712<0,'III. GDP shares, 1310-2018'!D714,\"\")","v":0.07481760043177235},{"$f":"IF('IV. Country level, 1310-2018'!E712<0,'III. GDP shares, 1310-2018'!E714,\"\")","v":0.021254333222629103},{"$f":"IF('IV. Country level, 1310-2018'!F712<0,'III. GDP shares, 1310-2018'!F714,\"\")","v":0.08859466693099176},{"$f":"IF('IV. Country level, 1310-2018'!G712<0,'III. GDP shares, 1310-2018'!G714,\"\")","v":0.07360781674246106},{"$f":"IF('IV. Country level, 1310-2018'!H712<0,'III. GDP shares, 1310-2018'!H714,\"\")","v":""},{"$f":"IF('IV. Country level, 1310-2018'!I712<0,'III. GDP shares, 1310-2018'!I714,\"\")","v":0.04125824122157077},{"$f":"IF('IV. Country level, 1310-2018'!J712<0,'III. GDP shares, 1310-2018'!J714,\"\")","v":0.1501637993443683},null,0.44969645789379337,{"$f":"AVERAGE(K711:K717)","v":{"v":0.2657012957875877,"d":"26.57%"}},{"$f":"AVERAGE(L$9:L$714)","v":{"v":0.20250823357139602,"d":"20.25%"}},{"v":0.18403714527396664,"d":"18.40%"},{"v":0.15815959755614378,"d":"15.82%"}]

{"sheet":"VIII. Pers. sov. loans, 1312-","index":8,"n_rows":711,"n_cols":29,"rows_kept":711,"merged":[[2,1,3,1]]}
["back to contents"]
["Year",null,"Average nominal personal loans (7-Y)",null,"Flanders, States General, and Burgund ","English crown","Spanish crown","French crown","Emperor, Habsburg, and German princes","Paler/Rehlinger and Austrian loans ","Genoa","Milan","King of Denmark","Other and state unions","United States ","Papal States: short term and monti","Papal States: venal offices","Details and source",{"$nulls":7},"Average nominal personal loan rates","Inflation (arithmetically-weighted)","Real rate personal loans","7-Y centered average real rate personal loans"]
[null,"green background denotes interpolated values. P/R denotes \"Paler and Rehlinger\" loans, all of which are sourced from Hildebrandt (ed., 1996 and 2004)."]
[]
[1312,null,{"$f":"AVERAGE(E5:Q11)","v":15.916665},{"$nulls":5},{"$f":"(15+26.66666)/2","v":20.83333},{"$nulls":8},"Loans to Henry of Luxemburg (Fryde and Fryde 1963, 512). [German datapoints only included from 1326]",{"$nulls":7},{"$f":"C5","v":15.916665},{"$f":"'IV. Country level, 1310-2018'!BM6","v":-15.39037106431713},{"$f":"Z5-AA5","v":31.30703606431713}]
[1313,null,{"$f":"AVERAGE(E6:Q12)","v":14.277776666666668},{"$nulls":5},{"$f":"(15+26.66666)/2","v":20.83333},null,12,{"$nulls":6},"Sieveking (1898, 84)",{"$nulls":7},{"$f":"C6","v":14.277776666666668},{"$f":"'IV. Country level, 1310-2018'!BM7","v":-1.2337584817288416},{"$f":"Z6-AA6","v":15.51153514839551}]
[1314,null,15,{"$nulls":22},15,{"$f":"'IV. Country level, 1310-2018'!BM8","v":-2.8583448134910974},17.858344813491097]
[1315,null,{"$f":"AVERAGE(E5:Q11)","v":15.916665},{"$nulls":5},10,{"$nulls":8},"King Lewis to Archbishop Peter von Aspelt, Rente auf die Frankfurter Juden. RegPlus EB Mainz, No. 1744. [German datapoints only included from 1326]",{"$nulls":7},15.916665,{"$f":"'IV. Country level, 1310-2018'!BM9","v":-9.042426751805422},24.959091751805424,{"$f":"AVERAGE(AB5:AB11)","v":14.697049210202039}]
[1316,null,{"$f":"AVERAGE(E6:Q12)","v":14.277776666666668},{"$nulls":22},14.277776666666668,{"$f":"'IV. Country level, 1310-2018'!BM10","v":20.792249650776384},-6.514472984109716,{"$f":"AVERAGE(AB6:AB12)","v":15.95999264436064}]
[1317,null,15,{"$nulls":3}," ",{"$nulls":18},15,{"$f":"'IV. Country level, 1310-2018'!BM11","v":23.053598576284486},-8.053598576284486,17.00749873157637]
[1318,null,15,{"$nulls":22},15,{"$f":"'IV. Country level, 1310-2018'!BM12","v":-12.811408253799293},27.811408253799293,17.603637236086495]
[1319,null,20,{"$nulls":22},20,{"$f":"'IV. Country level, 1310-2018'!BM13","v":-20.14764010342735},40.14764010342735,9.048539736306964]
[1320,null,20,null,20,{"$nulls":12},"Fryde and Fryde (1963, 499)",{"$nulls":7},20,{"$f":"'IV. Country level, 1310-2018'!BM14","v":-2.844077758905625},22.844077758905627,11.278525512754275]
[1321,null,20,{"$nulls":22},20,{"$f":"'IV. Country level, 1310-2018'!BM15","v":-2.03131434506197},22.031314345061972,17.117015700040508]
[1322,null,20,{"$nulls":22},20,{"$f":"'IV. Country level, 1310-2018'!BM16","v":54.926590746651286},-34.926590746651286,16.924423163644043]
[1323,null,20,{"$nulls":22},20,{"$f":"'IV. Country level, 1310-2018'!BM17","v":10.904572548978532},9.095427451021468,14.598996145267881]
[1324,null,15,{"$nulls":22},15,{"$f":"'IV. Country level, 1310-2018'!BM18","v":-17.815832734719145},32.815832734719145,13.918824573087008]
[1325,null,17,{"$nulls":22},17,{"$f":"'IV. Country level, 1310-2018'!BM19","v":-9.463260499024036},26.463260499024038,12.359546499862997]
[1326,null,15.86129732336629,{"$nulls":22},15.86129732336629,{"$f":"'IV. Country level, 1310-2018'!BM20","v":-8.00835365142791},23.8696509747942,17.753509945618617]
[1327,null,16.82949808811878,null,null,22,{"$nulls":4},8,{"$nulls":6},"William de la Pole to Crown. Fryde (1988, 19); Loan Cardinal Lucas de Fiescho to Genoa (Sieveking 1898, 99)",{"$nulls":7},16.82949808811878,{"$f":"'IV. Country level, 1310-2018'!BM21","v":-1.2533786655207446},18.082876753639525,19.107810123793843]
[1328,null,18.099710634193393,null,null,21,{"$nulls":11},"Fryde (1983, IV, 209-210)",{"$nulls":7},18.099710634193393,{"$f":"'IV. Country level, 1310-2018'!BM22","v":6.983342801699497},11.116367832493896,17.736657223928926]
[1329,null,17.289739570774053,null,null,21,{"$nulls":7},{"$f":"(303/4147)*100","v":7.306486616831444},{"$nulls":3},"2-year Altovini Loan to Guigues VIII of Viennos, for 4147fl.; Arens (1928, 317)",{"$nulls":7},17.289739570774053,{"$f":"'IV. Country level, 1310-2018'!BM23","v":14.458586197136002},2.8311533736380508,16.67054168252555]
[1330,null,17.289739570774053,null,null,26,null,null,{"$f":"(300/2400)*100","v":12.5},{"$nulls":8},"Reg Imperii VII, H 4, no. 44",{"$nulls":7},17.289739570774053,{"$f":"'IV. Country level, 1310-2018'!BM24","v":-1.285789127474006},18.57552869824806,15.602037220935289]
[1331,null,16.988599523082282,null,null,26,null,null,{"$f":"(210/1100)*100","v":19.090909090909093},{"$nulls":8},"Reg Imperii VII, H 4, no. 72 and 75",{"$nulls":7},16.988599523082282,{"$f":"'IV. Country level, 1310-2018'!BM25","v":-6.229162912582427},23.21776243566471,15.33424903501054]
[1332,null,16.487174463467568,{"$nulls":5},10,{"$nulls":8},"Reg Imperii RegPluss Baden, 1/1, 893",{"$nulls":7},16.487174463467568,{"$f":"'IV. Country level, 1310-2018'!BM26","v":-2.5132772457328447},19.000451709200412,16.467679107815293]
[1333,null,17.265151515151516,{"$nulls":22},17.265151515151516,{"$f":"'IV. Country level, 1310-2018'!BM27","v":0.8750317714891356},16.390119743662382,19.11997572430558]
[1334,null,16.272727272727273,{"$nulls":5},10,{"$nulls":8},"Reg Imperii VII, H 6, no. 62",{"$nulls":7},16.272727272727273,{"$f":"'IV. Country level, 1310-2018'!BM28","v":0.06436782056101573},16.208359452166256,19.412549226319705]
[1335,null,20.466666666666665,{"$nulls":22},20.466666666666665,{"$f":"'IV. Country level, 1310-2018'!BM29","v":1.4162883245394846},19.050378342127182,19.494208678250466]
[1336,null,24.25822222222222,{"$nulls":22},24.25822222222222,{"$f":"'IV. Country level, 1310-2018'!BM30","v":2.860992533152198},21.39722968907002,19.837873088600727]
[1337,null,20.246399999999998,{"$nulls":22},20.246399999999998,{"$f":"'IV. Country level, 1310-2018'!BM31","v":-0.3771432123469782},20.623543212346977,20.099466710939314]
[1338,null,22.071199999999997,null,null,41.4,{"$nulls":19},22.071199999999997,{"$f":"'IV. Country level, 1310-2018'!BM32","v":-1.718178599180061},23.789378599180058,22.650204296630168]
[1339,null,24.226,null,null,{"$f":"(19.124+20+25)/3","v":21.374666666666666},{"$nulls":11},"Claes le Duc to Edward III, Fryde (1967, 1199). Cologne merchant loans to Edward III, Hansen (1910, 376, 386, 401): \"sluggish\" repayment over the course of 18 months+",{"$nulls":7},24.226,{"$f":"'IV. Country level, 1310-2018'!BM33","v":2.819897418347766},21.406102581652235,22.952824540428576]
[1340,null,22.193714285714286,null,null,19.124,null,null,{"$f":"(224/2400)*100","v":9.333333333333334},{"$nulls":8},"Reg Imperii VII, H 3, no. 405",{"$nulls":7},22.193714285714286,{"$f":"'IV. Country level, 1310-2018'!BM34","v":3.972439185681791},18.221275100032496,22.0048285930869]
[1341,null,22.193714285714286,null,null,19.124,{"$nulls":19},22.193714285714286,{"$f":"'IV. Country level, 1310-2018'!BM35","v":-11.869808266287933},34.06352255200222,20.422819286450515]
[1342,null,17.37832967032967,null,null,35,{"$nulls":11},"Simon van Halen to Edward III. Fryde (1967, 1190)",{"$nulls":7},17.37832967032967,{"$f":"'IV. Country level, 1310-2018'!BM36","v":-3.7903903783863626},21.168720048716033,19.443124081291746]
[1343,null,16.224805860805862,{"$nulls":5},10,{"$nulls":8},"Reg Imperii, VII, H 2, no.322",{"$nulls":7},16.224805860805862,{"$f":"'IV. Country level, 1310-2018'!BM37","v":1.4635478031275806},14.761258057678281,17.45406486594145]
[1344,null,15.11185347985348,{"$nulls":22},15.11185347985348,{"$f":"'IV. Country level, 1310-2018'!BM38","v":5.562375413961182},9.549478065892298,14.669217489433363]
[1345,null,13.808424908424909,{"$nulls":5},{"$f":"(200/2600)*100","v":7.6923076923076925},{"$nulls":8},"EB Heinrich III loan from Herbort Ring (Schrohe 1933, 31)",{"$nulls":7},13.808424908424909,{"$f":"'IV. Country level, 1310-2018'!BM39","v":-3.1230872546437367},16.931512163068646,11.254271505140665]
[1346,null,10.236996336996338,{"$nulls":5},{"$f":"(133/1000)*100","v":13.3},{"$nulls":8},"Reg Imperii VII, H 8, no. 548",{"$nulls":7},10.236996336996338,{"$f":"'IV. Country level, 1310-2018'!BM40","v":2.754308262796157},7.482688074200182,10.255974119364518]
[1347,null,10.236996336996338,{"$nulls":5},{"$f":"(320/3000)*100","v":10.666666666666668},null,10,{"$nulls":6},"Reg Imperii VIII, no. 507. All Genoa loans to 1390, Sieveking (1898, 99ff.)",{"$nulls":7},10.236996336996338,{"$f":"'IV. Country level, 1310-2018'!BM41","v":11.509652872520464},-1.272656535524126,8.19973256235891]
[1348,null,10.236996336996338,{"$nulls":10},10,{"$nulls":3},"2,100fl Bonfantini loan to Humbert II of Viennos (Arens 1928, 317).",{"$nulls":7},10.236996336996338,{"$f":"'IV. Country level, 1310-2018'!BM42","v":0.0780956750430118},10.158900661953327,6.9527380781888635]
[1349,null,10.661111111111111,{"$nulls":5},10,{"$nulls":8},"Reg Imperii VIII, no. 1059",{"$nulls":7},10.661111111111111,{"$f":"'IV. Country level, 1310-2018'!BM43","v":-3.5195272371718995},14.180638348283011,5.247651963638463]
[1350,null,10.111111111111112,{"$nulls":7},10,{"$nulls":14},10.111111111111112,{"$f":"'IV. Country level, 1310-2018'!BM44","v":9.74354395247207},0.36756715863904255,6.08814766811082]
[1351,null,10,{"$nulls":22},10,{"$f":"'IV. Country level, 1310-2018'!BM45","v":9.179483323298038},0.8205166767019616,8.040443648524962]
[1352,null,10,{"$nulls":22},10,{"$f":"'IV. Country level, 1310-2018'!BM46","v":5.004090638784153},4.995909361215847,8.115795138962753]
[1353,null,10.028571428571428,{"$nulls":7},10,{"$nulls":14},10.028571428571428,{"$f":"'IV. Country level, 1310-2018'!BM47","v":-3.3375865769352457},13.366158005506675,7.336263100821711]
[1354,null,10.028571428571428,{"$nulls":22},10.028571428571428,{"$f":"'IV. Country level, 1310-2018'!BM48","v":-2.364843898803443},12.393415327374871,8.71004464391024]
[1355,null,11.020408163265305,{"$nulls":7},10,{"$nulls":14},11.020408163265305,{"$f":"'IV. Country level, 1310-2018'!BM49","v":0.33404706824744723},10.686361095017858,10.056121548801842]
[1356,null,10.267857142857142,{"$nulls":5},{"$f":"(((300/2100)+0.1)/2)*100","v":12.142857142857142},null,8,{"$nulls":6},"300 annual tariff must refer to Oct 8 1356 2,100 gulden debt. Plus Ruprecht 200 Pfund Heller debt. Schrohe (1933, 40, 62, 68)",{"$nulls":7},10.267857142857142,{"$f":"'IV. Country level, 1310-2018'!BM50","v":1.543943061561426},8.723914081295716,11.07877803261537]
[1357,null,10.306122448979592,{"$nulls":7},10,{"$nulls":14},10.306122448979592,{"$f":"'IV. Country level, 1310-2018'!BM51","v":0.3220844887208337},9.984037960258759,10.314501194777716]
[1358,null,10.306122448979592,{"$nulls":5},{"$f":"(900/7500)*100","v":12},null,15,{"$nulls":6},"Reg Imperii VIII, no. 2822",{"$nulls":7},10.306122448979592,{"$f":"'IV. Country level, 1310-2018'!BM52","v":0.06306743803641861},10.243055010943173,10.553006390820425]
[1359,null,10.357142857142856,{"$nulls":5},5,{"$nulls":8},"Hohenklingen capital to Dukes of Austria. Bittmann (1991, 161)",{"$nulls":7},10.357142857142856,{"$f":"'IV. Country level, 1310-2018'!BM53","v":-1.797361890767666},12.154504747910522,10.583266971340318]
[1360,null,10.5,{"$nulls":22},10.5,{"$f":"'IV. Country level, 1310-2018'!BM54","v":2.4837798593568854},8.016220140643114,9.845471165109654]
[1361,null,10.666666666666666,{"$nulls":22},10.666666666666666,{"$f":"'IV. Country level, 1310-2018'!BM55","v":-3.396285033007165},14.062951699673832,9.426367759109402]
[1362,null,7.5,{"$nulls":22},7.5,{"$f":"'IV. Country level, 1310-2018'!BM56","v":-3.3981851586571215},10.898185158657121,10.118387036654335]
[1363,null,10,{"$nulls":22},10,{"$f":"'IV. Country level, 1310-2018'!BM57","v":6.4406565623189485},3.5593434376810515,11.891768609235669]
[1364,null,10,{"$nulls":22},10,{"$f":"'IV. Country level, 1310-2018'!BM58","v":2.9496858817429943},7.050314118257006,10.98364730118143]
[1365,null,10,{"$nulls":7},10,{"$nulls":6},"s.o. (Sieveking (1898, 99ff.))",{"$nulls":7},10,{"$f":"'IV. Country level, 1310-2018'!BM59","v":-5.087189953757692},15.087189953757692,9.288533575147955]
[1366,null,10,{"$nulls":22},10,{"$f":"'IV. Country level, 1310-2018'!BM60","v":-14.56817575597987},24.568175755979873,9.875290928062793]
[1367,null,10,{"$nulls":22},10,{"$f":"'IV. Country level, 1310-2018'!BM61","v":8.340629015736582},1.6593709842634183,8.662167226040934]
[1368,null,9.571428571428571,{"$nulls":22},9.571428571428571,{"$f":"'IV. Country level, 1310-2018'!BM62","v":7.3742729539890455},2.1971556174395257,11.3892542131891]
[1369,null,13.325396825396824,{"$nulls":22},13.325396825396824,{"$f":"'IV. Country level, 1310-2018'!BM63","v":-1.6800898036641554},15.005486629060979,13.187641521044371]
[1370,null,13.325396825396824,{"$nulls":22},13.325396825396824,{"$f":"'IV. Country level, 1310-2018'!BM64","v":18.257919301868785},-4.932522476471961,11.338519702629586]
[1371,null,13.325396825396824,{"$nulls":5},{"$f":"(32/350)*100","v":9.142857142857142},{"$nulls":8},"Loan Elsbeth von Landenberg to Dukes Albrecht and Leopold of Austria. Bittmann (1991, 137)",{"$nulls":7},13.325396825396824,{"$f":"'IV. Country level, 1310-2018'!BM65","v":-12.814526202897342},26.139923028294167,10.15221530931573]
[1372,null,13.325396825396824,{"$nulls":5},{"$f":"(((50/300)+(300/2000))/2)*100","v":15.833333333333332},null,{"$f":"(300/2000)*100","v":15},{"$nulls":6},"Loans to Karl IV HRE by Heinz zu Jungen (Schrohe 1933, 45, 46)",{"$nulls":7},13.325396825396824,{"$f":"'IV. Country level, 1310-2018'!BM66","v":-14.35050428334778},27.675901108744604,9.534188622788076]
[1373,null,12.494047619047619,{"$nulls":22},12.494047619047619,{"$f":"'IV. Country level, 1310-2018'!BM67","v":0.8697245919712532},11.624323027076365,11.835740979161487]
[1374,null,13.995238095238097,{"$nulls":22},13.995238095238097,{"$f":"'IV. Country level, 1310-2018'!BM68","v":20.639997864171665},-6.644759768933568,16.378978607576066]
[1375,null,15.208333333333332,{"$nulls":22},15.208333333333332,{"$f":"'IV. Country level, 1310-2018'!BM69","v":17.337364521587396},-2.1290311882540642,15.079620408038855]
[1376,null,15,{"$nulls":5},10,{"$nulls":8},"71,000 gulden Loan to Karl IV HRE, by Heinz II (Schrohe 1933, 39)",{"$nulls":7},15,{"$f":"'IV. Country level, 1310-2018'!BM70","v":-16.116353123674863},31.116353123674863,14.136054595267463]
[1377,null,15,{"$nulls":5},20,{"$nulls":8},"Loan Rudolf of Homburg to King Sigismund. Bittmann (1991, 141)",{"$nulls":7},{"$f":"C70","v":15},{"$f":"'IV. Country level, 1310-2018'!BM71","v":-11.870140922430108},{"$f":"Z70-AA70","v":26.87014092243011},14.83492001463333]
[1378,null,15,{"$nulls":22},15,{"$f":"'IV. Country level, 1310-2018'!BM72","v":-2.0444156315336848},17.044415631533685,16.26081139595097]
[1379,null,15,{"$nulls":22},15,{"$f":"'IV. Country level, 1310-2018'!BM73","v":-6.070940419344851},21.07094041934485,19.444380521806796]
[1380,null,{"$f":"AVERAGE(E70:Q76)","v":20},{"$nulls":22},20,{"$f":"'IV. Country level, 1310-2018'!BM74","v":3.483619037362553},16.51638096263745,{"$f":"AVERAGE(AB70:AB76)","v":16.71891529580999}]
[1381,null,16,{"$nulls":22},16,{"$f":"'IV. Country level, 1310-2018'!BM75","v":12.663520099710096},3.3364799002899037,14.909242446310301]
[1382,null,16,{"$nulls":22},16,{"$f":"'IV. Country level, 1310-2018'!BM76","v":-4.155952692736682},20.155952692736683,14.92443923006501]
[1383,null,16,{"$nulls":22},16,{"$f":"'IV. Country level, 1310-2018'!BM77","v":3.9619034583027504},12.03809654169725,13.60625631303449]
[1384,null,16,{"$nulls":5},16,{"$nulls":8},"Loan to Duke Leopold. Bittmann (1991, 139)",{"$nulls":7},16,{"$f":"'IV. Country level, 1310-2018'!BM78","v":1.7975690240676976},14.202430975932302,14.229022015513946]
[1385,null,16,{"$nulls":22},16,{"$f":"'IV. Country level, 1310-2018'!BM79","v":-1.150793117816627},17.150793117816626,13.812160520689158]
[1386,null,16,{"$nulls":22},16,{"$f":"'IV. Country level, 1310-2018'!BM80","v":4.156339999868776},11.843660000131223,10.838441709260648]
[1387,null,12,{"$nulls":22},12,{"$f":"'IV. Country level, 1310-2018'!BM81","v":-8.875740879993641},20.875740879993643,9.685937175440797]
[1388,null,8,{"$nulls":22},8,{"$f":"'IV. Country level, 1310-2018'!BM82","v":7.581550563483617},0.4184494365163829,8.345958182743974]
[1389,null,8,{"$nulls":22},8,{"$f":"'IV. Country level, 1310-2018'!BM83","v":8.660078987262892},-0.6600789872628923,8.349484027000395]
[1390,null,6.5,{"$nulls":7},8,{"$nulls":14},6.5,{"$f":"'IV. Country level, 1310-2018'!BM84","v":2.5294351950416956},3.9705648049583044,8.917821222306245]
[1391,null,8.875,{"$nulls":22},8.875,{"$f":"'IV. Country level, 1310-2018'!BM85","v":4.05242197294547},4.82257802705453,8.39937105043495]
[1392,null,9.6,{"$nulls":22},9.6,{"$f":"'IV. Country level, 1310-2018'!BM86","v":-7.57547402761157},17.17547402761157,9.473952376364778]
[1393,null,9.666666666666666,{"$nulls":5},5,{"$nulls":8},"Loan to Walram Graf von Nassau from town of Mainz. HHStAW Bestand 3001 Nr. 7 fol. 1 b",{"$nulls":7},9.666666666666666,{"$f":"'IV. Country level, 1310-2018'!BM87","v":-6.1553537006055095},15.822020367272176,11.219598814203662]
[1394,null,14.333333333333334,null,12.5,{"$nulls":3},10,{"$nulls":8},"Loan to Graf Philipp von Nassau-Saarbruecken by Heinrich von Bubenheim. HHStAW Bestand 130 I Nr. U 76",{"$nulls":7},14.333333333333334,{"$f":"'IV. Country level, 1310-2018'!BM88","v":-2.9132563435612555},17.24658967689459,11.034230521951958]
[1395,null,12.625,null,12.5,{"$nulls":20},12.625,{"$f":"'IV. Country level, 1310-2018'!BM89","v":4.684481281974822},7.940518718025178,12.937187090614888]
[1396,null,12.625,{"$nulls":5},10,{"$nulls":8},"Loan to Graf Philipp von Nassau-Saarbruecken. HHStAW Bestand 130 I Nr. U 77",{"$nulls":7},12.625,{"$f":"'IV. Country level, 1310-2018'!BM90","v":1.0655539223907038},11.559446077609296,12.475906874941087]
[1397,null,13.277777777777779,null,{"$f":"AVERAGE(49,23)","v":36},{"$nulls":12},"Average of loans to free John sans peur from Nicopolis per Mollat (1958, 316), and 17.5 month loan to Duke of Nevers per Mirot and Lazzareschi (1929, 170). Cf notes to Figure III, paper appendix.",{"$nulls":7},13.277777777777779,{"$f":"'IV. Country level, 1310-2018'!BM91","v":10.604791018581405},2.672986759196373,12.935503382646603]
[1398,null,14.375,null,7,{"$nulls":6},8,{"$nulls":5},"Rapondi ficticious annuity loan (Lambert 2006, 117); Milan - Santoro (ed., 1963, 77)",{"$nulls":7},14.375,{"$f":"'IV. Country level, 1310-2018'!BM92","v":-3.768274007695035},18.143274007695034,11.29376969583029]
[1399,null,13.78125,{"$nulls":22},13.78125,{"$f":"'IV. Country level, 1310-2018'!BM93","v":-0.1652625178949524},13.946512517894952,11.883017448819091]
[1400,null,14.09375,{"$nulls":5},10,{"$nulls":4},13.5,{"$nulls":3},"Duke Jost of Moravia to King Wenzel. Regg. Wenzel No 3815; Other: Hans von Lupfen to Duke Leopold IV, Bittmann (1991, 153)",{"$nulls":7},14.09375,{"$f":"'IV. Country level, 1310-2018'!BM94","v":-4.945445921210807},19.039195921210805,12.62830406568634]
[1401,null,10.964285714285714,{"$nulls":5},{"$f":"(1.5*12)","v":18},{"$nulls":8},"Deutsche Reichstagsakten Vol. 5, p.216, note to item 37 [loan from Franciscus Amadi and Wilhelm Rommel]",{"$nulls":7},10.964285714285714,{"$f":"'IV. Country level, 1310-2018'!BM95","v":5.209831845105332},5.754453869180382,14.299677594187004]
[1402,null,12.791666666666666,{"$nulls":5},{"$f":"(310/4000)*100","v":7.75},{"$nulls":8},"Reg Pfalz, Ruprecht III, no. 2124",{"$nulls":7},12.791666666666666,{"$f":"'IV. Country level, 1310-2018'!BM96","v":0.7264136777198729},12.065252988946794,13.246225482626837]
[1403,null,12.392857142857142,{"$nulls":5},{"$f":"(((1/6)+(500/6000))/2)*100","v":12.5},{"$nulls":8},"Reg Pfalz, Ruprecht III, no. 3134, 3199",{"$nulls":7},12.392857142857142,{"$f":"'IV. Country level, 1310-2018'!BM97","v":-4.383595252822902},16.776452395680046,13.260066983781426]
[1404,null,11.875,{"$nulls":22},11.875,{"$f":"'IV. Country level, 1310-2018'!BM98","v":-2.497601458701009},14.37260145870101,12.02610198069159]
[1405,null,10.619532803180915,{"$nulls":5},{"$f":"(20+10)/2","v":15},{"$nulls":8},"Reg Pfalz, Ruprecht III, no. 4244, 4256",{"$nulls":7},10.619532803180915,{"$f":"'IV. Country level, 1310-2018'!BM99","v":-0.1495764235929446},10.76910922677386,11.825289496973388]
[1406,null,11.193439363817097,{"$nulls":5},10,{"$nulls":8},"Reg Pfalz, Ruprecht III, no. 4409",{"$nulls":7},11.193439363817097,{"$f":"'IV. Country level, 1310-2018'!BM100","v":-2.849963662159983},14.04340302597708,11.62356059287168]
[1407,null,10.866799204771372,{"$nulls":8},8,{"$nulls":5},"Santoro (ed., 1963, 35)",{"$nulls":7},10.866799204771372,{"$f":"'IV. Country level, 1310-2018'!BM101","v":0.46535830518942045},10.401440899581951,11.242567733510763]
[1408,null,11.550582220959955,{"$nulls":5},{"$f":"(((220/2012)+0.1)/2)*100","v":10.467196819085487},{"$nulls":8},"Loans/'Verschreibungen' King Ruprecht (Schrohe 1933, 114); Reg Pfalzgrafen, no. 5164 - 2 Jahre loan",{"$nulls":7},11.550582220959955,{"$f":"'IV. Country level, 1310-2018'!BM102","v":7.201815737806979},4.348766483152976,11.06147611475431]
[1409,null,11.173104231752342,{"$nulls":22},11.173104231752342,{"$f":"'IV. Country level, 1310-2018'!BM103","v":0.519953571517507},10.653150660234836,12.218265559995848]
[1410,null,11.887389946038056,{"$nulls":22},11.887389946038056,{"$f":"'IV. Country level, 1310-2018'!BM104","v":-2.222112434115572},14.109502380153629,13.09294337644148]
[1411,null,12.664867935245669,null,{"$f":"(1/7)*100","v":14.285714285714285},{"$nulls":12},"Bigwood (1921, I, 108f.)",{"$nulls":7},12.664867935245669,{"$f":"'IV. Country level, 1310-2018'!BM105","v":-0.4400921921601627},13.104960127405832,13.731445876300615]
[1412,null,14.191468253968255,null,{"$f":"(1/7)*100","v":14.285714285714285},{"$nulls":3},10,{"$nulls":8},"Koeln Disagio",{"$nulls":7},14.191468253968255,{"$f":"'IV. Country level, 1310-2018'!BM106","v":-4.675167089496382},18.866635343464637,15.192136345357069]
[1413,null,15.735544217687076,null,{"$f":"(1/7)*100","v":14.285714285714285},{"$nulls":20},15.735544217687076,{"$f":"'IV. Country level, 1310-2018'!BM107","v":-4.430603523409424},20.166147741096502,15.196745558882995]
[1414,null,16.89360119047619,{"$nulls":22},16.89360119047619,{"$f":"'IV. Country level, 1310-2018'!BM108","v":2.0226427918802927},14.870958398595898,15.905628757176503]
[1415,null,16.357886904761905,{"$nulls":4},25,7.291666666666667,{"$nulls":8},"Fryde and Fryde (1963, 483); Reg Imperii, XI, 1, no. 1731",{"$nulls":7},16.357886904761905,{"$f":"'IV. Country level, 1310-2018'!BM109","v":1.7842871382137684},14.573599766548137,17.15423655220844]
[1416,null,17.762896825396826,{"$nulls":4},25,{"$nulls":17},17.762896825396826,{"$f":"'IV. Country level, 1310-2018'!BM110","v":7.077481670480513},10.685415154916313,16.176239673833052]
[1417,null,17.233796296296294,{"$nulls":4},25,{"$nulls":17},17.233796296296294,{"$f":"'IV. Country level, 1310-2018'!BM111","v":-1.8378884719119146},19.071684768208208,13.94536702187383]
[1418,null,15.962301587301585,null,10,{"$nulls":12},"Bigwood (1921, I, 86)",{"$nulls":7},15.962301587301585,{"$f":"'IV. Country level, 1310-2018'!BM112","v":-5.882913105327819},21.845214692629405,12.91957557622091]
[1419,null,14.074074074074074,{"$nulls":22},14.074074074074074,{"$f":"'IV. Country level, 1310-2018'!BM113","v":2.0534168792371585},12.020657194836916,13.281830632504196]
[1420,null,11.047407407407407,{"$nulls":5},{"$f":"(1/9)*100","v":11.11111111111111},{"$nulls":8},"Reg Imperii, XI, 2, no. 33",{"$nulls":7},11.047407407407407,{"$f":"'IV. Country level, 1310-2018'!BM114","v":6.497368230025475},4.550039177381932,13.228651065768139]
[1421,null,7.714074074074074,{"$nulls":5},{"$f":"(1/12)*100","v":8.333333333333332},{"$nulls":8},"Reg Imperii, IX, 1, no. 39",{"$nulls":7},7.714074074074074,{"$f":"'IV. Country level, 1310-2018'!BM115","v":0.02365579504862847},7.690418279025446,12.467944902571903]
[1422,null,10.326349206349207,{"$nulls":5},5,{"$nulls":8},"Loans to Archduke Friedrich von Brandenburg. Stromer (1970, 285-7).",{"$nulls":7},10.326349206349207,{"$f":"'IV. Country level, 1310-2018'!BM116","v":-6.78303595418194},17.109385160531147,10.25986858973616]
[1423,null,10.285555555555556,{"$nulls":5},6.84,{"$nulls":16},10.285555555555556,{"$f":"'IV. Country level, 1310-2018'!BM117","v":-0.0276026322083589},10.313158187763914,10.15136076096857]
[1424,null,10.146666666666667,{"$nulls":5},5,{"$nulls":16},10.146666666666667,{"$f":"'IV. Country level, 1310-2018'!BM118","v":-3.600074959167893},13.74674162583456,11.534733505560363]
[1425,null,10.405714285714286,null,26,{"$nulls":3},10,{"$nulls":8},"Imhof an Koelner Kurfuerst. Stromer (1970, 260f.); loan to Philip the Good of Burgundy, van der Wee (1963, 57)",{"$nulls":7},10.405714285714286,{"$f":"'IV. Country level, 1310-2018'!BM119","v":4.0170337829350755},6.38868050277921,12.48783760807529]
[1426,null,11.306666666666667,{"$nulls":5},10,{"$nulls":8},"Loan Gebhart von Bodendick to Archduke Friederich I. of Brandenburg. GStAPK  VII. HA Maerkische Ortschaften Salzwedel Nr. 77",{"$nulls":7},11.306666666666667,{"$f":"'IV. Country level, 1310-2018'!BM120","v":0.04556427320287759},11.261102393463789,11.018339674351399]
[1427,null,12.477142857142857,{"$nulls":5},10,{"$nulls":16},12.477142857142857,{"$f":"'IV. Country level, 1310-2018'!BM121","v":-1.7565055323816132},14.23364838952447,10.228813058758968]
[1428,null,12.2475,{"$nulls":22},12.2475,{"$f":"'IV. Country level, 1310-2018'!BM122","v":-2.1146469966299337},14.362146996629935,9.053414328679112]
[1429,null,10.33,{"$nulls":22},10.33,{"$f":"'IV. Country level, 1310-2018'!BM123","v":3.5071003755360834},6.822899624463917,9.06837123390031]
[1430,null,10.396,{"$nulls":3},19.5,null,6.84,{"$nulls":8},"Weinsberg implied interest rates - Fuhrmann (2010, 114), to 1445; Spain: Aragon - Kuechler (1983, 251)",{"$nulls":7},10.396,{"$f":"'IV. Country level, 1310-2018'!BM124","v":5.609528121383107},4.786471878616894,9.133932301902673]
[1431,null,11.036000000000001,{"$nulls":3},8.8,null,6.84,{"$nulls":8},"Spain: Aragon - Kuechler (ibid., 253)",{"$nulls":7},11.036000000000001,{"$f":"'IV. Country level, 1310-2018'!BM125","v":5.517049484724422},5.51895051527558,10.213120236528978]
[1432,null,11.036000000000001,{"$nulls":22},11.036000000000001,{"$f":"'IV. Country level, 1310-2018'!BM126","v":4.5426211606724145},6.493378839327587,9.601797413155337]
[1433,null,11.760769230769233,{"$nulls":22},11.760769230769233,{"$f":"'IV. Country level, 1310-2018'!BM127","v":0.040739361288896436},11.720029869480337,8.886949872763376]
[1434,null,10.212923076923076,null,13.2,{"$nulls":12},"Philip the Good loan. Mollat (1958, 318)",{"$nulls":7},10.212923076923076,{"$f":"'IV. Country level, 1310-2018'!BM128","v":-11.575040854985515},21.787963931908592,8.459507379076866]
[1435,null,10.566153846153846,{"$nulls":22},10.566153846153846,{"$f":"'IV. Country level, 1310-2018'!BM129","v":0.48326661313938973},10.082887233014455,8.869693504807435]
[1436,null,11.350769230769231,{"$nulls":5},{"$f":"(20/130)*100","v":15.384615384615385},{"$nulls":8},"Reg Imperii, XI, 2, 11494. Loan at Prague",{"$nulls":7},11.350769230769231,{"$f":"'IV. Country level, 1310-2018'!BM130","v":9.531802389049039},1.8189668417201919,9.637666389449294]
[1437,null,12.475290598290599,{"$nulls":5},6.84,{"$nulls":8},"s.o.",{"$nulls":7},12.475290598290599,{"$f":"'IV. Country level, 1310-2018'!BM131","v":10.680916175479275},1.7943744228113232,10.473978542739284]
[1438,null,11.768623931623932,{"$nulls":5},6.84,{"$nulls":16},11.768623931623932,{"$f":"'IV. Country level, 1310-2018'!BM132","v":3.3783705362343746},8.390253395389557,9.253484279045145]
[1439,null,11.27576153846154,{"$nulls":5},6.84,{"$nulls":4},19,{"$nulls":3},"Paumgartner loans to Duke Ludwig of Bavaria. Stromer (1970, 428f.); also in Krag (1914, 10f.)",{"$nulls":7},11.27576153846154,{"$f":"'IV. Country level, 1310-2018'!BM133","v":-0.5934274933590654},11.869189031820605,8.59210254470637]
[1440,null,10.4213,{"$nulls":5},6.84,{"$nulls":4},24,null,{"$f":"(10+16.666)/2","v":13.333},null,"Paumgartner loans to Markgraf von Brandenburg. Stromer (1970, 286)",{"$nulls":7},10.4213,{"$f":"'IV. Country level, 1310-2018'!BM134","v":-7.15291494251026},17.57421494251026,11.52088281992364]
[1441,null,10.819222222222223,{"$nulls":5},6.84,{"$nulls":16},{"$f":"C134","v":10.819222222222223},{"$f":"'IV. Country level, 1310-2018'!BM135","v":-2.425281863827399},{"$f":"Z134-AA134","v":13.244504086049622},12.811399308305644]
[1442,null,10.819222222222225,{"$nulls":5},6.84,{"$nulls":16},10.819222222222225,{"$f":"'IV. Country level, 1310-2018'!BM136","v":5.366007129579206},5.453215092643019,13.381817481203317]
[1443,null,12.191625000000002,{"$nulls":5},6.84,{"$nulls":16},12.191625000000002,{"$f":"'IV. Country level, 1310-2018'!BM137","v":-10.128803768241085},22.320428768241086,13.141143131879014]
[1444,null,{"$f":"AVERAGE(E134:Q140)","v":10.672},{"$nulls":22},10.672,{"$f":"'IV. Country level, 1310-2018'!BM138","v":-0.15598984148536008},10.82798984148536,{"$f":"AVERAGE(AB134:AB140)","v":12.508069496404499}]
[1445,null,11.629999999999999,{"$nulls":5},6.84,{"$nulls":16},11.629999999999999,{"$f":"'IV. Country level, 1310-2018'!BM139","v":-0.753180605673261},12.38318060567326,13.774759405750578]
[1446,null,13.226666666666667,{"$nulls":5},26,{"$nulls":8},"Weinsberg loan (Fuhrmann 2010, 104)",{"$nulls":7},13.226666666666667,{"$f":"'IV. Country level, 1310-2018'!BM140","v":3.0421980801161825},10.184468586550484,14.560221536320228]
[1447,null,15.91825,{"$nulls":22},15.91825,{"$f":"'IV. Country level, 1310-2018'!BM141","v":2.7755505058113386},13.142699494188662,13.757430001205734]
[1448,null,15.4012,{"$nulls":22},15.4012,{"$f":"'IV. Country level, 1310-2018'!BM142","v":-6.710133451472175},22.111333451472174,13.61590864631663]
[1449,null,15.583166666666665,{"$nulls":22},15.583166666666665,{"$f":"'IV. Country level, 1310-2018'!BM143","v":4.631716660036098},10.951450006630568,13.505030361396292]
[1450,null,12.975999999999999,{"$nulls":4},17.5,{"$f":"(10+16.666)/2","v":13.333},{"$nulls":8},"Average rate for Markgraf Albrecht (later: Albrecht von Brandenburg) - Stromer (1970, 286), Sander (1902, 718); France: Fryde and Fryde (1963, 488)",{"$nulls":7},12.975999999999999,{"$f":"'IV. Country level, 1310-2018'!BM144","v":-3.7248880224396355},16.700888022439635,14.008187721115561]
[1451,null,12.975999999999999,{"$nulls":5},{"$f":"(10+16.666)/2","v":13.333},{"$nulls":16},12.975999999999999,{"$f":"'IV. Country level, 1310-2018'!BM145","v":3.1386596427383537},9.837340357261645,14.114953299835006]
[1452,null,12.975999999999999,null,10,{"$nulls":3},{"$f":"(10+16.666)/2","v":13.333},{"$nulls":8},"Fryde and Fryde (1963, 505)",{"$nulls":7},12.975999999999999,{"$f":"'IV. Country level, 1310-2018'!BM146","v":1.368967388769106},11.607032611230894,10.743704209807644]
[1453,null,12.975999999999999,null,10,{"$nulls":3},{"$f":"(10+16.666)/2","v":13.333},{"$nulls":16},12.975999999999999,{"$f":"'IV. Country level, 1310-2018'!BM147","v":-0.730570104585358},13.706570104585357,10.054492049689708]
[1454,null,11.999799999999999,{"$nulls":22},11.999799999999999,{"$f":"'IV. Country level, 1310-2018'!BM148","v":-1.8902585452247767},13.890058545224775,10.470098635234056]
[1455,null,11.6665,{"$nulls":22},11.6665,{"$f":"'IV. Country level, 1310-2018'!BM149","v":13.153910178719356},-1.4874101787193563,12.272647757727482]
[1456,null,12.914333333333332,{"$nulls":22},12.914333333333332,{"$f":"'IV. Country level, 1310-2018'!BM150","v":6.787368447528327},6.1269648858050045,13.151406873047305]
[1457,null,15.41,{"$nulls":22},15.41,{"$f":"'IV. Country level, 1310-2018'!BM151","v":-4.200134121250077},19.610134121250077,13.793958312889172]
[1458,null,15.41,{"$nulls":22},15.41,{"$f":"'IV. Country level, 1310-2018'!BM152","v":-7.045184214715626},22.455184214715626,13.997653759188]
[1459,null,15.41,{"$nulls":8},15.41,{"$nulls":5},"Medici loans to Duke of Milan, derived from balance sheet information. De Roover (1963, 264-269)",{"$nulls":7},15.41,{"$f":"'IV. Country level, 1310-2018'!BM153","v":-2.348346418469657},17.758346418469657,16.44206089030072]
[1460,null,15.41,{"$nulls":22},15.41,{"$f":"'IV. Country level, 1310-2018'!BM154","v":-2.7944301834784206},18.204430183478422,17.922745056665143]
[1461,null,15.41,{"$nulls":22},15.41,{"$f":"'IV. Country level, 1310-2018'!BM155","v":0.09407333068342805},15.315926669316571,16.755681252708]
[1462,null,15.41,{"$nulls":22},15.41,{"$f":"'IV. Country level, 1310-2018'!BM156","v":-0.21343973906969374},15.623439739069694,14.942947747584094]
[1463,null,{"$f":"((C$173-C$155)/18)+C155","v":15.109444444444444},{"$nulls":22},15.109444444444444,{"$f":"'IV. Country level, 1310-2018'!BM157","v":-1.3823096059115156},16.491754050355958,14.950911437584294]
[1464,null,{"$f":"((C$173-C$155)/18)+C156","v":14.808888888888887},{"$nulls":22},14.808888888888887,{"$f":"'IV. Country level, 1310-2018'!BM158","v":3.3682013953388084},11.44068749355008,13.707773127218195]
[1465,null,14.508333333333331,{"$nulls":22},14.508333333333331,{"$f":"'IV. Country level, 1310-2018'!BM159","v":4.74228365448507},9.766049678848262,12.935266380090995]
[1466,null,14.207777777777775,{"$nulls":22},14.207777777777775,{"$f":"'IV. Country level, 1310-2018'!BM160","v":-3.6063144706932913},17.814092248471066,12.60183216872407]
[1467,null,13.907222222222218,{"$nulls":22},13.907222222222218,{"$f":"'IV. Country level, 1310-2018'!BM161","v":4.404760211306487},9.502462010915732,12.573333504807392]
[1468,null,13.606666666666662,{"$nulls":22},13.606666666666662,{"$f":"'IV. Country level, 1310-2018'!BM162","v":3.6982872272404848},9.908379439426177,13.115034557117715]
[1469,null,13.306111111111106,{"$nulls":22},13.306111111111106,{"$f":"'IV. Country level, 1310-2018'!BM163","v":0.016710851609907817},13.289400259501198,13.476840082004705]
[1470,null,13.00555555555555,{"$nulls":22},13.00555555555555,{"$f":"'IV. Country level, 1310-2018'!BM164","v":-3.286707847383679},16.292263402939227,11.262063712314335]
[1471,null,12.704999999999993,{"$nulls":22},12.704999999999993,{"$f":"'IV. Country level, 1310-2018'!BM165","v":-2.527594859722361},15.232594859722354,10.698616161111037]
[1472,null,12.404444444444437,{"$nulls":22},12.404444444444437,{"$f":"'IV. Country level, 1310-2018'!BM166","v":0.10575609138725743},12.298688353057178,11.643447556270157]
[1473,null,12.10388888888888,{"$nulls":22},12.10388888888888,{"$f":"'IV. Country level, 1310-2018'!BM167","v":9.7932312282504},2.31065766063848,11.508087524288353]
[1474,null,11.803333333333324,{"$nulls":22},11.803333333333324,{"$f":"'IV. Country level, 1310-2018'!BM168","v":6.245004180840675},5.558329152492649,9.898370987363565]
[1475,null,11.502777777777768,{"$nulls":22},11.502777777777768,{"$f":"'IV. Country level, 1310-2018'!BM169","v":-5.019421427762233},16.52219920554,8.882655285558105]
[1476,null,11.202222222222211,{"$nulls":22},11.202222222222211,{"$f":"'IV. Country level, 1310-2018'!BM170","v":-1.139657813406363},12.341880035628574,9.31564966305314]
[1477,null,10.901666666666655,{"$nulls":22},10.901666666666655,{"$f":"'IV. Country level, 1310-2018'!BM171","v":5.877419022200932},5.0242476444657225,11.021543436284107]
[1478,null,10.601111111111098,{"$nulls":22},10.601111111111098,{"$f":"'IV. Country level, 1310-2018'!BM172","v":2.4785261640269707},8.122584947084128,9.068673911346906]
[1479,null,10.300555555555542,{"$nulls":22},10.300555555555542,{"$f":"'IV. Country level, 1310-2018'!BM173","v":-5.029093439966885},15.329648995522426,6.52089580077024]
[1480,null,10,{"$nulls":22},10,{"$f":"'IV. Country level, 1310-2018'!BM174","v":-4.251914073255247},14.251914073255247,5.59928478369529]
[1481,null,8.686868686868687,{"$nulls":22},8.686868686868687,{"$f":"'IV. Country level, 1310-2018'!BM175","v":16.798626208936447},-8.11175752206776,6.6003315311673765]
[1482,null,8.686868686868687,{"$nulls":22},8.686868686868687,{"$f":"'IV. Country level, 1310-2018'!BM176","v":9.99911625536535},-1.3122475684966624,7.453829256413234]
[1483,null,7.904040404040405,{"$nulls":5},10,{"$nulls":8},"Loans to Saxon dukes. Schirmer (2006, 88).",{"$nulls":7},7.904040404040405,{"$f":"'IV. Country level, 1310-2018'!BM177","v":2.013437487936475},5.89060291610393,5.674679456426442]
[1484,null,7.386977343152642,{"$nulls":3},10,null,{"$f":"(600/9900)*100","v":6.0606060606060606},{"$nulls":8},"Archduke John of Brandenburg 9900 gulden loan. GStAPK VII HA, Allg Urkundensammlung No 3; Spain: loans to Ferdinand and Isabella, Usher (1943, 174)",{"$nulls":7},7.386977343152642,{"$f":"'IV. Country level, 1310-2018'!BM178","v":-4.644597533617679},12.031574876770321,4.449491265421124]
[1485,null,7.386977343152642,{"$nulls":22},7.386977343152642,{"$f":"'IV. Country level, 1310-2018'!BM179","v":-6.710091680652492},14.097069023805133,6.38178580754244]
[1486,null,7.822481119293869,{"$nulls":5},{"$f":"(1.5/27)*100","v":5.555555555555555},{"$nulls":8},"HStAK, Best 10A 3M, fol. 185a",{"$nulls":7},7.822481119293869,{"$f":"'IV. Country level, 1310-2018'!BM180","v":4.9468807236789765},2.8756003956148923,6.9959758439166295]
[1487,null,7.386977343152642,{"$nulls":5},{"$f":"((800/2510)*6)+((1710/2510)*5)","v":5.318725099601593},{"$nulls":8},"Loans to Albrecht von Sachsen, Puff (1911, 175f.) - weighted",{"$nulls":7},7.386977343152642,{"$f":"'IV. Country level, 1310-2018'!BM181","v":1.7113806069346271},5.675596736218015,7.718108567724435]
[1488,null,6.517271462490586,{"$nulls":22},6.517271462490586,{"$f":"'IV. Country level, 1310-2018'!BM182","v":1.1029671897091446},5.414304272781441,6.582256267854627]
[1489,null,6.517271462490586,{"$nulls":3},10,{"$nulls":18},6.517271462490586,{"$f":"'IV. Country level, 1310-2018'!BM183","v":3.5301887763679183},2.987082686122668,6.643618672059786]
[1490,null,6.460382573601697,{"$nulls":22},6.460382573601697,{"$f":"'IV. Country level, 1310-2018'!BM184","v":-4.485149409156879},10.945531982758576,7.82435283891757]
[1491,null,8.130701298701299,{"$nulls":5},{"$f":"((12400/15400)*5)+((3000/15400)*6)","v":5.194805194805195},{"$nulls":8},"Loans to Albrecht von Sachsen, Puff (1911, 177) - weighted",{"$nulls":7},8.130701298701299,{"$f":"'IV. Country level, 1310-2018'!BM185","v":4.050092521019635},4.080608777681664,7.67349280734621]
[1492,null,8.130701298701299,{"$nulls":22},8.130701298701299,{"$f":"'IV. Country level, 1310-2018'!BM186","v":-6.395904554539945},14.526605853241243,7.846121667316956]
[1493,null,6.8807012987012985,{"$nulls":5},{"$f":"((0.666*5)+(0.333*6))","v":5.328},{"$nulls":8},"Loans to Albrecht von Sachsen, Puff (1911, 178) - weighted",{"$nulls":7},6.8807012987012985,{"$f":"'IV. Country level, 1310-2018'!BM187","v":-4.2600382649180935},11.140739563619391,7.720645732396599]
[1494,null,6.504561038961039,{"$nulls":4},{"$f":"(10+14)/2","v":12},{"$nulls":9},"Avg of Sauli credit to Charles VIII: Tewes (2011, 46); Spring 1494 loan via Hamon (1998, 34)",{"$nulls":7},6.504561038961039,{"$f":"'IV. Country level, 1310-2018'!BM188","v":1.8849845237425455},4.619576515218493,4.6375899834429]
[1495,null,6.179666666666667,{"$nulls":22},6.179666666666667,{"$f":"'IV. Country level, 1310-2018'!BM189","v":-0.44303962590998186},6.622706292576649,6.3648232145512225]
[1496,null,6.179666666666667,{"$nulls":5},5,{"$nulls":8},"Loan Bishop of Meissen to Albrecht of Saxony (Fryde and Fryde 1963, 523); Reg Imperii XIV, 2, n 4199",{"$nulls":7},6.179666666666667,{"$f":"'IV. Country level, 1310-2018'!BM190","v":4.070915524986489},2.1087511416801776,6.572871495202942]
[1497,null,6.291666666666667,{"$nulls":5},5,{"$nulls":16},6.291666666666667,{"$f":"'IV. Country level, 1310-2018'!BM191","v":16.927524926584},-10.635858259917331,5.569943848105827]
[1498,null,7.995,{"$nulls":5},5,{"$nulls":4},{"$f":"4.75","v":4.75},{"$nulls":3},"Loan to Adolf Graf zu Nassau-Wiesbaden. HHStAW Bestand 3001. Nr. 13 fol 37; Reg Imperii XIV, 2, n5896 (100 fuder salt valued at 44.936fl.)",{"$nulls":7},7.995,{"$f":"'IV. Country level, 1310-2018'!BM192","v":-8.176241395439936},16.171241395439935,3.639399390931132]
[1499,null,7.567142857142857,{"$nulls":22},7.567142857142857,{"$f":"'IV. Country level, 1310-2018'!BM193","v":-8.415800960660425},15.982943817803282,3.2993030838020343]
[1500,null,8.043285714285714,{"$nulls":5},6,{"$nulls":8},"Loan to Adolf Graf zu Nassau-Wiesbaden. HHStAW Bestand 3001 Nr. 13 fol. 82",{"$nulls":7},8.043285714285714,{"$f":"'IV. Country level, 1310-2018'!BM194","v":3.923039680346133},4.120246033939582,4.5982020980582075]
[1501,null,8.214714285714285,{"$nulls":12},22.22,null,"Fugger to Papal Chamber (Schulte 1904, 24)",{"$nulls":7},8.214714285714285,{"$f":"'IV. Country level, 1310-2018'!BM195","v":17.108948970718654},-8.894234685004369,7.643284545344267]
[1502,null,9.5506,{"$nulls":5},5,{"$nulls":8},"Darlehen 30,000fl Melchior von Brixen an Raitkammer (Maximilian I.). Regesta Imperii XIV, 4, 16970",{"$nulls":7},9.5506,{"$f":"'IV. Country level, 1310-2018'!BM196","v":5.308567857327032},4.242032142672968,5.731844002564375]
[1503,null,9.5506,{"$nulls":5},8.333,{"$nulls":8},"Anleihe durch J. Fugger an Maximilian. Regesta Imperii XIV, 4, 1 n. 17472",{"$nulls":7},9.5506,{"$f":"'IV. Country level, 1310-2018'!BM197","v":-1.6504442414733829},11.201044241473383,6.140948925513285]
[1504,null,9.23948888888889,{"$nulls":5},{"$f":"((5/(8/12))*0.48)+(5*0.52)","v":6.199999999999999},{"$nulls":8},"Anleihe durch Ulrich Fugger zu Fuessen, 24,000fl 5% auf 8 Monate. Regesta Imperii XIV, 4, 1 n.17469; Anleihe Jakob Fugger 26,000fl 10% auf 2 Jahre. (Ibid., 17452).",{"$nulls":7},9.23948888888889,{"$f":"'IV. Country level, 1310-2018'!BM198","v":-1.4402299821962032},10.679718871085093,6.334345407580098]
[1505,null,5.994361111111111,{"$nulls":22},{"$f":"C198","v":5.994361111111111},{"$f":"'IV. Country level, 1310-2018'!BM199","v":3.20320351513042},{"$f":"Z198-AA198","v":2.791157595980691},9.174571633605025]
[1506,null,7.286027777777777,{"$nulls":22},7.286027777777777,{"$f":"'IV. Country level, 1310-2018'!BM200","v":-11.56065050066787},18.846678278445648,11.494968969223407]
[1507,null,8.931944444444444,{"$nulls":5},{"$f":"(400/9000)*100","v":4.444444444444445},{"$nulls":8},"Loan to Graf Adolf von Nassau. HHStAW Bestand 3001, Nr. 13 fol. 132",{"$nulls":7},8.931944444444444,{"$f":"'IV. Country level, 1310-2018'!BM201","v":3.4579230360371747},5.474021408407269,11.887284599439019]
[1508,null,{"$f":"AVERAGE(E198:Q204)","v":12.555555555555555},{"$nulls":22},12.555555555555555,{"$f":"'IV. Country level, 1310-2018'!BM202","v":1.5682066583854368},10.987348897170119,{"$f":"AVERAGE(AB198:AB204)","v":11.310871166830294}]
[1509,null,12.468253968253967,null,{"$f":"AVERAGE(11.5,11.5, 7.5)","v":10.166666666666666},{"$nulls":20},12.468253968253967,{"$f":"'IV. Country level, 1310-2018'!BM203","v":-8.01655952374768},20.48481349200165,11.861692474576985]
[1510,null,12.409722222222221,null,{"$f":"AVERAGE(7.5,24,13.25)","v":14.916666666666666},{"$nulls":20},12.409722222222221,{"$f":"'IV. Country level, 1310-2018'!BM204","v":-1.5375314307604426},13.947253652982663,10.992522085565364]
[1511,null,13.547619047619047,null,{"$f":"AVERAGE(10,15,15,6.25,20)","v":13.25},{"$nulls":8},20,{"$nulls":3},"Herwart loans to Dutch government. Ehrenberg (1922, 1, 218)",{"$nulls":7},13.547619047619047,{"$f":"'IV. Country level, 1310-2018'!BM205","v":6.902794204795033},6.644824842824015,11.727698143771391]
[1512,null,13.547619047619047,null,{"$f":"AVERAGE(8.5,12.5)","v":10.5},{"$nulls":8},14,{"$nulls":3},"Florence ad hoc loan (Bullard 1980, 65)",{"$nulls":7},13.547619047619047,{"$f":"'IV. Country level, 1310-2018'!BM206","v":6.900712297411533},6.646906750207514,12.028431391432777]
[1513,null,15.010416666666666,{"$nulls":10},12,{"$nulls":3},"Florence ad hoc loan (Bullard ibid.)",{"$nulls":7},15.010416666666666,{"$f":"'IV. Country level, 1310-2018'!BM207","v":2.2479311113023637},12.762485555364302,10.44953414124127]
[1514,null,14.208188657407408,{"$nulls":22},14.208188657407408,{"$f":"'IV. Country level, 1310-2018'!BM208","v":3.587934841557921},10.620253815849487,10.077558781055776]
[1515,null,14.059358465608467,{"$nulls":22},14.059358465608467,{"$f":"'IV. Country level, 1310-2018'!BM209","v":0.9668768348086614},13.092481630799806,11.811365264101571]
[1516,null,11.681267466640348,null,{"$f":"AVERAGE(20,15.5,31.5,17,11,13.5,40,14.75)","v":20.40625},{"$nulls":12},"NL: unweighted loan rates (Ehrenberg 1928, 258)",{"$nulls":7},11.681267466640348,{"$f":"'IV. Country level, 1310-2018'!BM210","v":2.2487347259792654},9.432532740661083,13.113775507281662]
[1517,null,11.806267466640348,null,{"$f":"(AVERAGE(0.19,(1/9),(7/42)))*100","v":15.592592592592592},null,{"$f":"(((6/96)+(3450/36000))/2)*100","v":7.916666666666666},{"$nulls":10},"OeStA HHStA, UR NUK 523+525 (96,000fl loan to King Charles of Castile from city of Antwerp; 36,000fl loan from Antwerp merchants)",{"$nulls":7},11.806267466640348,{"$f":"'IV. Country level, 1310-2018'!BM211","v":0.4628413349561125},11.343426131684236,11.755482145053264]
[1518,null,12.80001552590253,null,18,{"$nulls":20},12.80001552590253,{"$f":"'IV. Country level, 1310-2018'!BM212","v":-5.9814546982420405},18.78147022414457,10.515937035232023]
[1519,null,14.109103612102073,null,7,null,{"$f":"(7062/113000)*100","v":6.249557522123894},{"$nulls":8},{"$f":"(112/1782)*100","v":6.285072951739619},null,"NL: loan from May 1519 to Easter 1520, Ehrenberg (1928, 259); Schulte (1904, 167); OeStA HHStA, UR NUK 532",{"$nulls":7},14.109103612102073,{"$f":"'IV. Country level, 1310-2018'!BM213","v":-1.6546748403660885},15.763778452468161,10.02431548313697]
[1520,null,14.69115747776023,null,13,{"$nulls":12},"Loan from Aug. 1520 to Christmas 1521 taken for NL - Ehrenberg (1928, 259)",{"$nulls":7},14.69115747776023,{"$f":"'IV. Country level, 1310-2018'!BM214","v":11.436725457994726},3.2544320197655043,12.414389030644672]
[1521,null,15.791125421066424,null,{"$f":"AVERAGE(17,21.5,27.5,17)","v":20.75},{"$nulls":20},15.791125421066424,{"$f":"'IV. Country level, 1310-2018'!BM215","v":13.847687373965618},1.9434380471008055,12.523593535177813]
[1522,null,14.973057052347238,null,20,{"$nulls":8},20,{"$nulls":3},"3-year Herwart loan to Dutch government (Ehrenberg 1922, 1, 218f.)",{"$nulls":7},14.973057052347238,{"$f":"'IV. Country level, 1310-2018'!BM216","v":5.32192628621281},9.651130766134429,13.423165929128686]
[1523,null,16.65855579318039,null,{"$f":"AVERAGE(20.5,22.5)","v":21.5},{"$nulls":8},20,{"$nulls":11},16.65855579318039,{"$f":"'IV. Country level, 1310-2018'!BM217","v":-9.504491780034604},26.163047573214996,13.892842342486352]
[1524,null,16.735478870103467,null,21,{"$nulls":7},11.5,20,{"$nulls":3},"King Christian of Denmark 32345 gulden loan from Archduke John of Brandenburg. GStaAPK VII. Haussachen der Landesherren Nr.76",{"$nulls":7},16.735478870103467,{"$f":"'IV. Country level, 1310-2018'!BM218","v":4.627621206687233},12.107857663416233,13.890008031968208]
[1525,null,16.716248100872697,{"$nulls":9},11.5,20,null,null,{"$f":"(147966/2546210)*100","v":5.811225311345098},{"$nulls":8},16.716248100872697,{"$f":"'IV. Country level, 1310-2018'!BM219","v":-8.362228880927974},25.07847698180067,13.649783382971775]
[1526,null,16.442602109278756,{"$nulls":9},11.5,{"$nulls":12},16.442602109278756,{"$f":"'IV. Country level, 1310-2018'!BM220","v":-2.6089112366930762},19.05151334597183,14.093518976447308]
[1527,null,16.028293210122282,{"$nulls":12},{"$f":"(15+13)/2","v":14},null,"Bullard (1980, 115)",{"$nulls":7},16.028293210122282,{"$f":"'IV. Country level, 1310-2018'!BM221","v":12.793701363983784},3.234591846138498,11.563314125649935]
[1528,null,15.439917085079646,null,20.5,{"$nulls":20},15.439917085079646,{"$f":"'IV. Country level, 1310-2018'!BM222","v":15.178051580953877},0.2618655041257689,12.208631038271287]
[1529,null,16.565982828066378,null,20,{"$nulls":20},16.565982828066378,{"$f":"'IV. Country level, 1310-2018'!BM223","v":3.8087029076032195},12.757279920463159,12.080595136331892]
[1530,null,17.28969466064729,null,20.5,{"$nulls":20},17.28969466064729,{"$f":"'IV. Country level, 1310-2018'!BM224","v":8.838081043013899},8.45161361763339,11.88487973560946]
[1531,null,17.003980374933004,null,null,16.5,null,null,{"$f":"(((0.1*(275333))+40000)/275333)*100","v":24.527862624531025},null,null,5,{"$nulls":5},"Contracted by Charles V in Antwerp","German: Ehrenberg (1922, 1, 129f.); Milan: 20,000 gulden debt of Francesco II to Karl V., of which 2,000 gulden are due to Hoechstaett at 5% annual. OeStA HHStA RHR Judicialia Antiqua 104-8",{"$nulls":6},17.003980374933004,{"$f":"'IV. Country level, 1310-2018'!BM225","v":0.3789043231673095},16.625076051765696,14.517992468240474]
[1532,null,16.43255180350443,{"$nulls":22},16.43255180350443,{"$f":"'IV. Country level, 1310-2018'!BM226","v":-7.749673864720466},24.1822256682249,16.92467184281356]
[1533,null,16.014283588656312,{"$nulls":22},16.014283588656312,{"$f":"'IV. Country level, 1310-2018'!BM227","v":-1.6672219522584844},17.681505540914795,16.8712987251405]
[1534,null,15.364283588656312,{"$nulls":12},12,null,"Strozzi 4,000 scudi cash loan to Clement VII, Bullard (ibid., 160)",{"$nulls":7},15.364283588656312,{"$f":"'IV. Country level, 1310-2018'!BM228","v":-6.302097385899284},21.666380974555594,18.49984716259841]
[1535,null,15.373567608861729,null,16.5,{"$nulls":20},15.373567608861729,{"$f":"'IV. Country level, 1310-2018'!BM229","v":-1.735053517275665},17.108621126137393,17.54351118918857]
[1536,null,14.290552584670232,null,16.5,null,{"$f":"(((144/374)*22)+((230/374)*23))","v":22.614973262032088},12,14,{"$nulls":8},"Loans by Centurione and Grimaldi to Spanish generals at Genoa for Charles V campaigns, weighted. Tracy (2002, 178)",{"$nulls":7},14.290552584670232,{"$f":"'IV. Country level, 1310-2018'!BM230","v":1.9068844879184912},12.383668096751741,13.942721590941984]
[1537,null,14.290552584670232,{"$nulls":5},14,{"$nulls":16},14.290552584670232,{"$f":"'IV. Country level, 1310-2018'!BM231","v":-5.560900095168537},19.85145267983877,12.07632185353344]
[1538,null,14.261497326203209,{"$nulls":22},14.261497326203209,{"$f":"'IV. Country level, 1310-2018'!BM232","v":4.330773088306391},9.930724237896818,12.438746107291227]
[1539,null,13.842914438502675,{"$nulls":6},8,{"$nulls":5},13,null,"Paler/Rehlinger via Hildebrandt (ed., 1998-2004 [denoted \"P/L\" subsequently], Nr.3; Bruscoli (2007, 84, 86, 122), to 1549, for Papal States. ",{"$nulls":7},13.842914438502675,{"$f":"'IV. Country level, 1310-2018'!BM233","v":14.866215958003927},-1.0233015195012527,11.854962192426722]
[1540,null,12.5,{"$nulls":22},12.5,{"$f":"'IV. Country level, 1310-2018'!BM234","v":7.883292620944988},4.616707379055012,11.295757989699238]
[1541,null,12.73076923076923,null,14,{"$nulls":10},12,{"$nulls":9},12.73076923076923,{"$f":"'IV. Country level, 1310-2018'!BM235","v":-11.472581520090877},24.203350750860107,9.259470561335874]
[1542,null,12.558823529411764,null,12,null,null,16,{"$nulls":7},12,{"$nulls":9},12.558823529411764,{"$f":"'IV. Country level, 1310-2018'!BM236","v":-0.4633101926740893},13.022133722085854,8.652802812779466]
[1543,null,12.833333333333334,null,12,{"$nulls":10},12,{"$nulls":9},12.833333333333334,{"$f":"'IV. Country level, 1310-2018'!BM237","v":4.364094655673974},8.469238677659359,10.215994363612626]
[1544,null,12.98076923076923,null,16,10.5,null,16,{"$nulls":7},12,null,"Seiler loan to French crown. Ehrenberg (1922, 1, 312)",{"$nulls":7},12.98076923076923,{"$f":"'IV. Country level, 1310-2018'!BM238","v":7.383328549474007},5.597440681295223,13.025000167601345]
[1545,null,13.018518518518519,null,16,null,null,14,6,{"$nulls":6},12,null,"Loan to Jobst, Duke of Hoya, from Bodo von Bodenhausen. HStAD 10690 Reichskammergericht No.12",{"$nulls":7},13.018518518518519,{"$f":"'IV. Country level, 1310-2018'!BM239","v":7.33446852051656},5.684049998001959,11.304586375034651]
[1546,null,12.827586206896552,null,{"$f":"AVERAGE(12,11)","v":11.5},13,null,16,13.5,{"$nulls":4},{"$f":"2.75*4","v":11},null,12,null,"English crown; French crown (Ehrenberg 1922, 1, 147, 222)",{"$nulls":7},12.827586206896552,{"$f":"'IV. Country level, 1310-2018'!BM240","v":2.9085468705656807},9.91903933633087,9.734311313379793]
[1547,null,12.827586206896552,null,12,14,null,16,{"$nulls":5},12,null,14,null,"Loan Anton Haug to city of Frankfurt, 12% (Dietz, Vol. 3, 211)",{"$nulls":7},12.827586206896552,{"$f":"'IV. Country level, 1310-2018'!BM241","v":-11.452161800079478},24.27974800697603,8.785266725513832]
[1548,null,12.648148148148149,null,12,{"$nulls":3},12,{"$nulls":6},16,{"$nulls":9},12.648148148148149,{"$f":"'IV. Country level, 1310-2018'!BM242","v":0.48769394525487414},12.160454202893275,8.925510471370432]
[1549,null,12.703703703703704,null,10,13.5,null,16,9,{"$nulls":6},12,null,"17-months English crown loan (Ehrenberg 1922, 1, 150); Duke August of Saxony 1000 gulden loan from Joachim Faust. SStA Dresden Bestand 10036, Loc. 33698, Rep. 11, Sect. 2, Lit. F, Nr. 0013",{"$nulls":7},12.703703703703704,{"$f":"'IV. Country level, 1310-2018'!BM243","v":10.67349541320185},2.0302082905018537,10.206553409695918]
[1550,null,12.75,null,12,null,null,12,{"$nulls":17},12.75,{"$f":"'IV. Country level, 1310-2018'!BM244","v":10.924073437402392},1.8259265625976084,11.441617830077858]
[1551,null,12.541666666666666,null,12,{"$nulls":3},12,{"$nulls":16},12.541666666666666,{"$f":"'IV. Country level, 1310-2018'!BM245","v":5.962519764375244},6.579146902291422,9.054579287358198]
[1552,null,13.057692307692308,null,13.5,14,null,null,12,{"$nulls":4},10,{"$nulls":3},"English crown - Ehrenberg (1922, 1, 254); Other: loan to Duke Cosimo of Florence - Ehrenberg (1922, 1, 159)",{"$nulls":7},13.057692307692308,{"$f":"'IV. Country level, 1310-2018'!BM246","v":-1.5936582585880608},14.65135056628037,7.6987159030391945]
[1553,null,13.8,null,16,12,12,{"$nulls":10},"7-y+ loans to Spain. Ehrenberg (1922, 1, 165)",{"$nulls":7},13.8,{"$f":"'IV. Country level, 1310-2018'!BM247","v":-4.764490279004446},18.564490279004445,8.388415949741217]
[1554,null,14.12962962962963,null,null,15,12,null,14,10,{"$nulls":3},12,{"$nulls":3},"Van der Wee (1963, vol. II, 213), to Carlos V; Other: loan to Duke Cosimo of Florence - Ehrenberg (1922, 1, 159)",{"$nulls":7},14.12962962962963,{"$f":"'IV. Country level, 1310-2018'!BM248","v":6.559151421691223},7.5704782079384065,9.919817897348299]
[1555,null,14.288461538461538,null,12,25,14,16,11.5,{"$nulls":8},"Haug loans to Ferdinand and French crown - Ehrenberg (1922, 1, 233)",{"$nulls":7},14.288461538461538,{"$f":"'IV. Country level, 1310-2018'!BM249","v":11.619051025801278},2.66941051266026,12.832740057398452]
[1556,null,14.636363636363637,null,12,14,24,16,{"$nulls":9},"English, Spanish crowns; Altoviti loan to French crown - Ehrenberg (1928, 217)",{"$nulls":7},14.636363636363637,{"$f":"'IV. Country level, 1310-2018'!BM250","v":7.778255018947626},6.85810861741601,12.297151895064772]
[1557,null,14.762,null,12.5,null,13,23,{"$nulls":3},12,{"$nulls":5},"Altoviti consortium to French crown - Ehrenberg (1922, 1, 305).",{"$nulls":7},14.762,{"$f":"'IV. Country level, 1310-2018'!BM251","v":2.216259804152816},12.545740195847184,11.178452852956042]
[1558,null,14.630588235294118,null,null,14,{"$nulls":11},"Tucher loans - Ehrenberg (1922, 1, 256)",{"$nulls":7},14.630588235294118,{"$f":"'IV. Country level, 1310-2018'!BM252","v":-12.339013787348362},26.96960202264248,11.270942412884281]
[1559,null,14.216923076923077,{"$nulls":22},14.216923076923077,{"$f":"'IV. Country level, 1310-2018'!BM253","v":3.3146896469784655},10.902233429944612,11.704458803495788]
[1560,null,12.86,null,null,{"$f":"((1.3+1.11+0.9)/3)*12","v":13.239999999999998},{"$nulls":11},"For England 1560-1568: Travers (1975, 641ff.), taking 'exchequer debts', 12m+, averaging where multiple instances.",{"$nulls":7},12.86,{"$f":"'IV. Country level, 1310-2018'!BM254","v":2.126403015756659},10.733596984243341,11.673788496229493]
[1561,null,10.625913838749236,null,null,{"$f":"0.79*12","v":9.48},{"$nulls":7},7,{"$nulls":3},"King Sigismund of Poland (Simson ed., no.3905)",{"$nulls":7},10.625913838749236,{"$f":"'IV. Country level, 1310-2018'!BM255","v":2.4080087113131508},8.217905127436085,12.258641081852458]
[1562,null,10.488261532291029,null,null,{"$f":"((1.47+1.36+0.82)/3)*12","v":14.599999999999998},{"$nulls":19},10.488261532291029,{"$f":"'IV. Country level, 1310-2018'!BM256","v":4.784236285350227},5.704025246940802,8.490254662138033]
[1563,null,10.266196149218272,null,null,{"$f":"((0.6+1.03)/2)*12","v":9.78},{"$nulls":19},10.266196149218272,{"$f":"'IV. Country level, 1310-2018'!BM257","v":3.6227796826663283},6.643416466551944,7.325256440991642]
[1564,null,9.848841021527354,null,null,{"$f":"((0.8+0.9)/2)*12","v":10.200000000000001},null,null,{"$f":"(305010/4828949)*100","v":6.316281244635221},10,{"$nulls":5},{"$f":"(97800/840000)*100","v":11.642857142857142},null,"Kohler (2003, 182): Zinslast bei Tode Ferdinand I.; P/R, Nr. 29",{"$nulls":7},9.848841021527354,{"$f":"'IV. Country level, 1310-2018'!BM258","v":-6.7908672736805835},16.63970829520794,7.32136446213381]
[1565,null,9.65550768819402,null,null,{"$f":"1.3*12","v":15.600000000000001},{"$nulls":3},10,{"$nulls":3},8,{"$nulls":3},"1565-1568: loan to Don Carlos, Prince of Asturias - Ehrenberg (1922, 1, 182)",{"$nulls":7},9.65550768819402,{"$f":"'IV. Country level, 1310-2018'!BM259","v":9.064610603552504},0.5908970846415151,7.612155571760285]
[1566,null,9.115744125657493,null,8,{"$f":"((1.4+1)/2)*12","v":14.399999999999999},{"$nulls":3},8,{"$nulls":3},8,{"$nulls":3},"Antwerp 16,000 gulden loan from Hermann von Hatzfeld (Dietz, Vol. 3, 212); P/R, Nr. 26",{"$nulls":7},9.115744125657493,{"$f":"'IV. Country level, 1310-2018'!BM260","v":6.368498243737626},2.7472458819198664,7.57285296341612]
[1567,null,8.820956919374618,null,null,{"$f":"((0.96+0.27+0.86+1.33)/4)*12","v":10.26},{"$nulls":3},{"$f":"((11/25)*10)+((4/25)*5)+((10/25)*7)","v":{"v":8,"d":"8.0"}},{"$nulls":3},8,{"$nulls":3},"P/R, Nos. 30-31",{"$nulls":7},8.820956919374618,{"$f":"'IV. Country level, 1310-2018'!BM261","v":-1.8853962128639006},10.706353132238519,6.572815461173953]
[1568,null,8.403228267864414,{"$nulls":5},5,{"$nulls":4},8,{"$nulls":3},"35,000fl loan of the city of Augsburg to Emperor. P/R, Nr. 71",{"$nulls":7},8.403228267864414,{"$f":"'IV. Country level, 1310-2018'!BM262","v":-1.8502146269569988},10.253442894821413,4.648186577333144]
[1569,null,8.103631801347465,{"$nulls":5},6,8,{"$nulls":7},"King Sigismund of Poland loan from Dukes of Pommerania. GStAPK VII. HA, Nichtmärkische Urkunden, Polen Nr. 28; P/R, Nr. 78",{"$nulls":7},{"$f":"C262","v":8.103631801347465},{"$f":"'IV. Country level, 1310-2018'!BM263","v":2.674724812815816},{"$f":"Z262-AA262","v":5.428906988531649},4.8138321370207775]
[1570,null,7.60484240179662,{"$nulls":5},5,8,{"$nulls":7},"20,000fl. loan to Maximilian II. From Hans Bernhard von Wallprun. OeStA FHKA SUS RA 75.6; P/R, Nr. 47",{"$nulls":7},7.60484240179662,{"$f":"'IV. Country level, 1310-2018'!BM264","v":7.961688450939856},-0.35684604914323614,4.552615222609386]
[1571,null,7.299810882155944,{"$nulls":5},{"$f":"(4060/50762)*100","v":7.998108821559434},5,{"$nulls":7},"Jahreszinsen an Fugger. OeStA FHKA SUS RA 238.44; P/R, Nr. 71",{"$nulls":7},7.299810882155944,{"$f":"'IV. Country level, 1310-2018'!BM265","v":4.1325047738336655},3.167306108322278,3.668387639252114]
[1572,null,{"$f":"AVERAGE(E262:Q268)","v":7.999810882155944},{"$nulls":3},12,{"$nulls":10},"300,000 ducat Fugger loan to Philip II - Ehrenberg (1922, 1, 177)",{"$nulls":7},7.999810882155944,{"$f":"'IV. Country level, 1310-2018'!BM266","v":6.24939487970099},1.750416002454954,{"$f":"AVERAGE(AB262:AB268)","v":4.980710450665272}]
[1573,null,8.535404102494926,{"$nulls":22},8.535404102494926,{"$f":"'IV. Country level, 1310-2018'!BM267","v":7.616676621454801},0.9187274810401247,5.542170755339323]
[1574,null,8.928226780549918,{"$nulls":5},8,{"$nulls":16},8.928226780549918,{"$f":"'IV. Country level, 1310-2018'!BM268","v":4.411466731812307},4.516760048737612,6.646635982428295]
[1575,null,8.906214689265536,{"$nulls":3},12,null,8,{"$nulls":16},8.906214689265536,{"$f":"'IV. Country level, 1310-2018'!BM269","v":-10.533487885447995},19.43970257471353,7.136083595362114]
[1576,null,8.382259887005649,{"$nulls":5},8,{"$nulls":6},{"$f":"(134000/1180000)*100","v":11.35593220338983},null,"Partner (1980, 26)",{"$nulls":7},8.382259887005649,{"$f":"'IV. Country level, 1310-2018'!BM270","v":-0.9768692342443558},9.359129121250005,7.554102155309928]
[1577,null,8.347508988186954,{"$nulls":5},8,{"$nulls":16},8.347508988186954,{"$f":"'IV. Country level, 1310-2018'!BM271","v":0.9730984477073871},7.374410540479567,8.155338266415555]
[1578,null,8.347508988186954,null,4.8,{"$nulls":3},8,{"$nulls":8},"22,000fl loan Counts of Nassau to General States, 6 years. HHStaW 171/G 717, fols. 119-122",{"$nulls":7},8.347508988186954,{"$f":"'IV. Country level, 1310-2018'!BM272","v":1.754069589327947},6.593439398859007,8.790747260107748]
[1579,null,7.982259887005649,{"$nulls":5},8,{"$f":"(23/3)","v":7.666666666666667},{"$nulls":7},"P/R, Nr. 131",{"$nulls":7},7.982259887005649,{"$f":"'IV. Country level, 1310-2018'!BM273","v":3.3057139649160003},4.676545922089649,6.928460100354529]
[1580,null,7.607407407407408,{"$nulls":5},8,{"$nulls":16},7.607407407407408,{"$f":"'IV. Country level, 1310-2018'!BM274","v":2.4800271486278924},5.127380258779516,6.466840281279216]
[1581,null,7.607407407407408,{"$nulls":5},8,{"$nulls":16},7.607407407407408,{"$f":"'IV. Country level, 1310-2018'!BM275","v":-1.3572155971755577},8.964623004582965,6.727188619270616]
[1582,null,8.066666666666666,{"$nulls":5},8,{"$nulls":16},8.066666666666666,{"$f":"'IV. Country level, 1310-2018'!BM276","v":1.662974210225677},6.403692456440989,7.147425825353027]
[1583,null,8.11111111111111,{"$nulls":5},8,{"$nulls":16},8.11111111111111,{"$f":"'IV. Country level, 1310-2018'!BM277","v":1.983320723388296},6.127790387722815,5.638163223287122]
[1584,null,8.11111111111111,{"$nulls":5},8,{"$nulls":16},8.11111111111111,{"$f":"'IV. Country level, 1310-2018'!BM278","v":-1.0857377953082614},9.196848906419373,5.125530487494045]
[1585,null,8.11111111111111,{"$nulls":5},8,5,null,12,{"$nulls":5},"P/R, Nr.162; Santoro (ed., 1963, 78)",{"$nulls":7},8.11111111111111,{"$f":"'IV. Country level, 1310-2018'!BM279","v":-1.4239887303247691},9.53509984143588,6.242170102969779]
[1586,null,8,{"$nulls":5},8,{"$nulls":16},8,{"$f":"'IV. Country level, 1310-2018'!BM280","v":13.888292292371688},-5.888292292371688,5.439483046718718]
[1587,null,8,{"$nulls":5},8,{"$nulls":16},8,{"$f":"'IV. Country level, 1310-2018'!BM281","v":6.46104889177202},1.5389511082279803,3.9520172701618796]
[1588,null,8.166666666666666,{"$nulls":5},8,{"$nulls":16},8.166666666666666,{"$f":"'IV. Country level, 1310-2018'!BM282","v":-8.614433646246436},16.781100312913104,3.0697767612351674]
[1589,null,7.833068415267185,{"$nulls":5},8,7,{"$nulls":7},"P/R, Nr.168 (Note)",{"$nulls":7},7.833068415267185,{"$f":"'IV. Country level, 1310-2018'!BM283","v":7.048185352583627},0.7848830626835577,3.8315562122847453]
[1590,null,7.833068415267185,{"$nulls":5},8,{"$nulls":16},7.833068415267185,{"$f":"'IV. Country level, 1310-2018'!BM284","v":12.117538463442235},-4.28447004817505,5.545933242149604]
[1591,null,7.730524691015863,{"$nulls":5},8,8,{"$nulls":3},10,{"$nulls":3},"NStA, Herrschaft Schwarzenberg, Urkunden 1440, \"Reichserbschenk Limpurg quittiert Jahreszins an Georg v. Seinsheim\"; P/R, Nr.180",{"$nulls":7},7.730524691015863,{"$f":"'IV. Country level, 1310-2018'!BM285","v":4.709359347083477},3.0211653439323864,5.708650749825315]
[1592,null,7.497988065547081,{"$nulls":5},5,{"$nulls":6},{"$f":"(280590/2673970)*100","v":10.493386238439474},{"$f":"(223839/4067260)*100","v":5.503434744766747},"Wilhelm Pfalzgraf bei Rhein, 26,000 gulden loan from Uni Ingolstadt. Ludwig Maximilians-Universität, Universitätsarchiv Urkunden A-V-1, 18.10.1592",{"$nulls":7},7.497988065547081,{"$f":"'IV. Country level, 1310-2018'!BM286","v":-7.369567933235846},14.867555998782926,3.6257274940112842]
[1593,null,7.255988065547082,{"$nulls":5},8,{"$nulls":16},7.255988065547082,{"$f":"'IV. Country level, 1310-2018'!BM287","v":1.1436411488647533},6.112346916682329,4.121542386354108]
[1594,null,7.255988065547082,{"$nulls":5},8,{"$f":"13/2","v":6.5},{"$nulls":7},"P/R, Nr.184, 277",{"$nulls":7},7.255988065547082,{"$f":"'IV. Country level, 1310-2018'!BM288","v":4.578014403589131},2.6779736619579513,4.712633489865001]
[1595,null,6.609772927371873,{"$nulls":5},8,{"$f":"(2496/31200)*100","v":8},{"$nulls":3},3.973,{"$nulls":3},"P/R, Nr. 277; Mueller (1900, 276, weighted)",{"$nulls":7},6.609772927371873,{"$f":"'IV. Country level, 1310-2018'!BM289","v":4.409135405156983},2.2006375222148904,5.492545140604267]
[1596,null,6.784999825450034,{"$nulls":5},8,{"$nulls":4},3.37,{"$nulls":11},6.784999825450034,{"$f":"'IV. Country level, 1310-2018'!BM290","v":2.529412516366707},4.255587309083326,4.9604006318543705]
[1597,null,6.735937336359407,{"$nulls":5},8,{"$nulls":16},6.735937336359407,{"$f":"'IV. Country level, 1310-2018'!BM291","v":6.8827696599582},-0.14683232359879295,5.3190674877287085]
[1598,null,6.829683877372614,{"$nulls":5},8,{"$nulls":4},1.697,{"$nulls":3},"Mueller (1900, 276-7, weighted)",{"$nulls":7},6.829683877372614,{"$f":"'IV. Country level, 1310-2018'!BM292","v":-1.6508630217346303},8.480546899107244,5.871297654058326]
[1599,null,6.88679613586412,{"$nulls":5},8,{"$nulls":4},{"$f":"((18/27)*7)+((9/27)*4.6)","v":6.199999999999999},null,{"$f":"(232012/2255920)*100","v":10.28458455973616},{"$f":"(217997/3790980)*100","v":5.75041282201436},{"$nulls":8},6.88679613586412,{"$f":"'IV. Country level, 1310-2018'!BM293","v":-4.255748301669525},11.142544437533644,6.718438188881783]
[1600,null,7.128796135864121,{"$nulls":5},8,{"$nulls":4},6,{"$nulls":11},7.128796135864121,{"$f":"'IV. Country level, 1310-2018'!BM294","v":-1.4942187719385782},8.6230149078027,7.0820334799430835]
[1601,null,6.901996377372614,{"$nulls":5},8,{"$f":"(11564/144551)*100","v":7.999944656211302},{"$nulls":7},"P/R, Nr. 277",{"$nulls":7},6.901996377372614,{"$f":"'IV. Country level, 1310-2018'!BM295","v":0.35841155110733935},6.543584826265274,8.38850831072196]
[1602,null,7.0771838773726135,{"$nulls":5},8,6,{"$nulls":7},"P/R, Nr.216",{"$nulls":7},7.0771838773726135,{"$f":"'IV. Country level, 1310-2018'!BM296","v":-1.053437388606471},8.130621265979084,7.721362183076573]
[1603,null,6.918799161588903,{"$nulls":5},8,7,{"$nulls":7},"P/R, Nr. 234 ",{"$nulls":7},6.918799161588903,{"$f":"'IV. Country level, 1310-2018'!BM297","v":0.1180448150764765},6.800754346512426,6.95712106081949]
[1604,null,6.880337623127365,{"$nulls":5},5.5,6,{"$nulls":7},"P/R, Nr. 245",{"$nulls":7},6.880337623127365,{"$f":"'IV. Country level, 1310-2018'!BM298","v":-2.1181538687259898},8.998491491853354,6.270189736145844]
[1605,null,6.578703703703703,{"$nulls":5},5.5,7,{"$nulls":7},"P/R, Nr. 234 (Note)",{"$nulls":7},6.578703703703703,{"$f":"'IV. Country level, 1310-2018'!BM299","v":2.7681796981141766},3.8105240055895266,5.635425786962225]
[1606,null,6.404040404040404,{"$nulls":5},{"$f":"((20/36)*6.5)+((16/36)*7.5)","v":6.944444444444445},{"$nulls":8},"36,000fl loan from Bodeck to Duke John of Palatia (Dietz, Vol. 3, 251)",{"$nulls":7},6.404040404040404,{"$f":"'IV. Country level, 1310-2018'!BM300","v":0.6111838223063397},5.792856581734064,5.734830255151171]
[1607,null,6.449494949494949,{"$nulls":5},5.5,8,{"$nulls":7},"P/R, Nr. 258",{"$nulls":7},6.449494949494949,{"$f":"'IV. Country level, 1310-2018'!BM301","v":2.634999314407773},3.814495635087176,6.054336690711698]
[1608,null,6.813131313131313,{"$nulls":5},5.5,{"$nulls":16},6.813131313131313,{"$f":"'IV. Country level, 1310-2018'!BM302","v":4.712894131151369},2.100237181979944,5.885442236625571]
[1609,null,7.313131313131313,{"$nulls":5},5.5,{"$nulls":16},7.313131313131313,{"$f":"'IV. Country level, 1310-2018'!BM303","v":-1.5133212301703882},8.826452543301702,5.92868465810631]
[1610,null,7.642835129613976,null,null,10,null,null,5.5,{"$nulls":8},"Ashton (1960, 119f.)",{"$nulls":7},7.642835129613976,{"$f":"'IV. Country level, 1310-2018'!BM304","v":-1.39446426582215},9.037299395436126,6.405730481659995]
[1611,null,7.613071390415141,null,null,10,null,null,5.5,{"$nulls":16},7.613071390415141,{"$f":"'IV. Country level, 1310-2018'!BM305","v":-0.20315892283531634},7.816230313250458,6.534055458197251]
[1612,null,7.613071390415141,null,null,10,null,null,8,{"$nulls":16},7.613071390415141,{"$f":"'IV. Country level, 1310-2018'!BM306","v":3.4998504344604378},4.113220955954703,7.67069367334713]
[1613,null,7.613071390415141,null,null,10,null,null,5.5,{"$nulls":6},{"$f":"(180955/1747200)*100","v":10.356856684981686},{"$nulls":9},7.613071390415141,{"$f":"'IV. Country level, 1310-2018'!BM307","v":-1.519105956194716},9.132177346609858,7.190417035809039]
[1614,null,7.613071390415141,{"$nulls":5},5.5,{"$nulls":16},7.613071390415141,{"$f":"'IV. Country level, 1310-2018'!BM308","v":2.9003009195671674},4.712770470847973,6.2308828170682]
[1615,null,7.238071390415141,{"$nulls":5},5.5,{"$nulls":16},7.238071390415141,{"$f":"'IV. Country level, 1310-2018'!BM309","v":-2.818633297613951},10.056704688029091,5.973891464331279]
[1616,null,6.699642742557069,{"$nulls":5},5.5,{"$nulls":16},6.699642742557069,{"$f":"'IV. Country level, 1310-2018'!BM310","v":1.235126662022008},5.464516080535061,6.540237001632161]
[1617,null,5.9799016853932585,null,null,10,null,null,5.5,{"$nulls":16},5.9799016853932585,{"$f":"'IV. Country level, 1310-2018'!BM311","v":3.659341821143002},2.3205598642502565,6.2582897375482025]
[1618,null,6.048459069020867,{"$nulls":5},6,5,{"$nulls":7},"Dietz (Vol. 2, 313; P/R, Nr. 330",{"$nulls":7},6.048459069020867,{"$f":"'IV. Country level, 1310-2018'!BM312","v":0.03116822492885903},6.017290844092008,4.7833159167740735]
[1619,null,6.6049016853932585,{"$nulls":13},{"$f":"(172276/3560000)*100","v":4.839213483146067},{"$nulls":8},6.6049016853932585,{"$f":"'IV. Country level, 1310-2018'!BM313","v":-1.4727380316676186},8.077639717060878,2.0863159803394233]
[1620,null,6.482134831460674,{"$nulls":22},6.482134831460674,{"$f":"'IV. Country level, 1310-2018'!BM314","v":-0.6764116665614726},7.1585464980221465,2.2984761287437143]
[1621,null,6.6049016853932585,{"$nulls":22},6.6049016853932585,{"$f":"'IV. Country level, 1310-2018'!BM315","v":12.21694795996418},-5.612046274570922,3.9534122499726863]
[1622,null,6.973202247191011,null,null,10,{"$nulls":3},6,{"$nulls":7},"Calendar of State Papers James I, Vol.3. Entry no. VOL. CXXXIII., [57a]; P/R, Nr. 343",{"$nulls":7},6.973202247191011,{"$f":"'IV. Country level, 1310-2018'!BM316","v":15.79549711420448},-8.822294867013468,4.450166888056496]
[1623,null,8.5,null,null,{"$f":"(18000/300000)*100","v":6},null,null,5,{"$nulls":8},"Loan to James I from Christian of Denmark. TNA E 30/1186/3; Dietz (Vol. 2, 313)",{"$nulls":7},8.5,{"$f":"'IV. Country level, 1310-2018'!BM317","v":1.5503628806349017},6.949637119365098,3.9559973362044607]
[1624,null,9.285714285714286,null,null,10,{"$nulls":11},"Calendar of State Papers James I (May 26, 1624). Vol. 4, entry no VOL. CLXV., [47a]",{"$nulls":7},9.285714285714286,{"$f":"'IV. Country level, 1310-2018'!BM318","v":-4.619398427138775},13.905112712853061,5.156051916728558]
[1625,null,9.5,{"$nulls":22},9.5,{"$f":"'IV. Country level, 1310-2018'!BM319","v":0.005426689321321139},9.494573310678678,7.582276946847784]
[1626,null,10.142857142857142,{"$nulls":3},14,{"$nulls":10},"Boyajian (1978, table III, 137 - Interest+'adehala'), to 1647",{"$nulls":7},10.142857142857142,{"$f":"'IV. Country level, 1310-2018'!BM320","v":5.524404288760512},4.61845285409663,10.271404194080342]
[1627,null,11.833333333333334,{"$nulls":3},14,{"$nulls":18},11.833333333333334,{"$f":"'IV. Country level, 1310-2018'!BM321","v":-3.7255952283574967},15.55892856169083,10.181556954276598]
[1628,null,12.166666666666666,{"$nulls":3},11,{"$nulls":18},12.166666666666666,{"$f":"'IV. Country level, 1310-2018'!BM322","v":0.7951377304030056},11.37152893626366,8.947681789057194]
[1629,null,12.214285714285714,{"$nulls":3},11,{"$nulls":10},"250,000 ducat Portuguese banker asientos loans to Spanish crown. Boyajian (1978, 118f.)",{"$nulls":7},12.214285714285714,{"$f":"'IV. Country level, 1310-2018'!BM323","v":2.212689850671286},10.001595863614428,9.849412064825023]
[1630,null,12.071428571428571,{"$nulls":3},11,{"$nulls":18},12.071428571428571,{"$f":"'IV. Country level, 1310-2018'!BM324","v":5.750722130689685},6.320706440738886,11.066878522255902]
[1631,null,11.25,{"$nulls":3},12,{"$nulls":18},11.25,{"$f":"'IV. Country level, 1310-2018'!BM325","v":5.982013443682764},5.267986556317236,10.263184370515136]
[1632,null,11.375,{"$nulls":3},12.5,{"$nulls":18},11.375,{"$f":"'IV. Country level, 1310-2018'!BM326","v":-4.4316852410534935},15.806685241053493,10.458138245350215]
[1633,null,11.233333333333333,{"$nulls":3},13,{"$nulls":18},{"$f":"C326","v":11.233333333333333},{"$f":"'IV. Country level, 1310-2018'!BM327","v":-1.9073847227794343},{"$f":"Z326-AA326","v":13.140718056112767},10.552711224442595]
[1634,null,11.322222222222221,null,null,8,11.5,{"$nulls":10},"Calendar of State Papers Domestic 1634-1635, Nov 22, p.299; Spain: Boyajian (1978, 127)",{"$nulls":7},11.322222222222221,{"$f":"'IV. Country level, 1310-2018'!BM328","v":1.3891527227167355},9.933069499505486,11.1034119512129]
[1635,null,11.377777777777776,{"$nulls":3},12,{"$nulls":18},11.377777777777776,{"$f":"'IV. Country level, 1310-2018'!BM329","v":-1.3584282823314335},12.73620606010921,11.884905741761129]
[1636,null,{"$f":"AVERAGE(E326:Q332)","v":11.322222222222221},{"$nulls":3},11.5,null,9.6,{"$nulls":8},"Loan to Anne of Pomerania (0.66 Gulden=1 Taler). GStA PK VII. HA, Nichtmärkische Urkunden, Pommern Nr. 69",{"$nulls":7},11.322222222222221,{"$f":"'IV. Country level, 1310-2018'!BM330","v":0.658615504961129},10.663606717261093,{"$f":"AVERAGE(AB326:AB332)","v":12.10189665461982}]
[1637,null,10.870000000000001,{"$nulls":3},11.8,{"$nulls":18},10.870000000000001,{"$f":"'IV. Country level, 1310-2018'!BM331","v":0.694388471869003},10.175611528130998,12.164416395628473]
[1638,null,11.222222222222221,{"$nulls":3},12.5,{"$nulls":18},11.222222222222221,{"$f":"'IV. Country level, 1310-2018'!BM332","v":0.4837791320673763},10.738443090154846,11.568999440997858]
[1639,null,10.879999999999999,{"$nulls":3},12,{"$nulls":18},10.879999999999999,{"$f":"'IV. Country level, 1310-2018'!BM333","v":-6.445621631064334},17.325621631064333,11.713812102105065]
[1640,null,11.155555555555555,null,null,8,11.8,{"$nulls":10},"Calendar of State Papers Domestic, Charles II, Vol. 12, entry no. [290]",{"$nulls":7},11.155555555555555,{"$f":"'IV. Country level, 1310-2018'!BM334","v":-2.4228006876177797},13.578356243173335,11.167171391061702]
[1641,null,10.959999999999999,{"$nulls":3},11.8,{"$nulls":18},10.959999999999999,{"$f":"'IV. Country level, 1310-2018'!BM335","v":5.194849182908802},5.765150817091197,11.110050017995817]
[1642,null,10.618181818181819,null,null,7.5,12.3,{"$nulls":10},"Queen Henrietta Maria, 2x 150,000 LT loans at 7% and 8%. TNA SP 84/157, 227, 231",{"$nulls":7},10.618181818181819,{"$f":"'IV. Country level, 1310-2018'!BM336","v":-3.1317128696778362},13.749894687859655,11.539742813447074]
[1643,null,10.4,{"$nulls":3},12.7,{"$nulls":18},10.4,{"$f":"'IV. Country level, 1310-2018'!BM337","v":3.5628782600424453},6.837121739957555,10.497801805423267]
[1644,null,10.416666666666666,null,null,8,13,{"$nulls":10},"4,000l advanced by Commissioners of Excise to Lieutenant of the Ordnance for ammunition and bullets. Calendar of State Papers Domestic, Vol. 20, p.330, entry no. VOL. DVI., 62",{"$nulls":7},10.416666666666666,{"$f":"'IV. Country level, 1310-2018'!BM338","v":0.6409047499968569},9.77576191666981,8.835206685226362]
[1645,null,10.1,null,null,8,11.7,{"$nulls":10},"80,000l lent by merchant group of John Woollaston, Aldermen et al. Calendar of State Papers Domestic, Vol. 20, p.377, entry no. VOL. DVI., 84",{"$nulls":7},10.1,{"$f":"'IV. Country level, 1310-2018'!BM339","v":-3.646292658313636},13.746292658313635,8.360833510923912]
[1646,null,9.945454545454545,null,null,8,12,{"$nulls":10},"6,000 due to Walter Frost to the Excise of the Ordinance to pursue the enemy at Siege of Lichfield. Calendar of State Papers, Vol. 21, p.384, entry no. VOL. DXIII., [67i]",{"$nulls":7},9.945454545454545,{"$f":"'IV. Country level, 1310-2018'!BM340","v":-0.0865800294431353},10.032034574897681,7.106801601712194]
[1647,null,9.518181818181818,null,null,8,12,{"$nulls":10},"35,000l due to Marquis of Argyle. Calendar of State Papers Domestic, Vol. 21, p.527, entry no. VOL. DXV., [22a] ",{"$nulls":7},9.518181818181818,{"$f":"'IV. Country level, 1310-2018'!BM341","v":7.57799141638682},1.9401904017949976,7.214829210375939]
[1648,null,9.3,null,null,8,{"$nulls":11},"2,000 lent to Commissioners of Navy by John Holt. Calendar of State Papers, Vol. 22, p.323, entry no. VOL. DXVI., 113",{"$nulls":7},9.3,{"$f":"'IV. Country level, 1310-2018'!BM342","v":6.855461403025951},2.4445385969740494,7.520739987055655]
[1649,null,9.142857142857142,null,null,8,{"$nulls":11},"20,000l per month loans raised for Ireland by Lord Mayor Thomas Andrewes, interest to subscribers (Daniel Hutcheson). Calendar of State Papers Domestic Series [Commonwealth], Vol.3, p.540, entry no. [9.68]",{"$nulls":7},9.142857142857142,{"$f":"'IV. Country level, 1310-2018'!BM343","v":4.171185819479512},4.97167132337763,6.618634568137879]
[1650,null,8.5,null,null,8,{"$nulls":19},8.5,{"$f":"'IV. Country level, 1310-2018'!BM344","v":0.9066849993962257},7.593315000603774,7.999215748715718]
[1651,null,7.75,{"$nulls":22},7.75,{"$f":"'IV. Country level, 1310-2018'!BM345","v":-4.167137353427815},11.917137353427815,10.56045850053231]
[1652,null,7.666666666666667,{"$nulls":22},7.666666666666667,{"$f":"'IV. Country level, 1310-2018'!BM346","v":0.235111940777458},7.4315547258892085,12.490134965476356]
[1653,null,10.633333333333333,{"$nulls":8},7,{"$nulls":5},"Santoro (ed., 1963, 27)",{"$nulls":7},10.633333333333333,{"$f":"'IV. Country level, 1310-2018'!BM347","v":-9.062769505609216},19.69610283894255,13.324045518955414]
[1654,null,13.666666666666666,{"$nulls":22},13.666666666666666,{"$f":"'IV. Country level, 1310-2018'!BM348","v":-6.202222997844479},19.868889664511144,14.517604173985017]
[1655,null,13.575,{"$nulls":22},13.575,{"$f":"'IV. Country level, 1310-2018'!BM349","v":-2.377273851582372},15.95227385158237,13.94565511107514]
[1656,null,13.16,{"$nulls":4},16.9,{"$nulls":9},"Bonney (1981, 318), to 1661",{"$nulls":7},13.16,{"$f":"'IV. Country level, 1310-2018'!BM350","v":2.350954802268974},10.809045197731026,14.244466205098076]
[1657,null,14.440000000000001,{"$nulls":4},17.1,{"$nulls":17},14.440000000000001,{"$f":"'IV. Country level, 1310-2018'!BM351","v":-1.5082255858110054},15.948225585811006,13.196153650172109]
[1658,null,13.766666666666667,{"$nulls":4},13.3,{"$nulls":17},13.766666666666667,{"$f":"'IV. Country level, 1310-2018'!BM352","v":5.853172753607974},7.913493913058693,10.775486886304806]
[1659,null,14.085714285714287,{"$nulls":4},11.5,{"$nulls":17},14.085714285714287,{"$f":"'IV. Country level, 1310-2018'!BM353","v":4.56248190166454},9.523232384049747,9.831927954858918]
[1660,null,13.616666666666667,{"$nulls":4},13.4,{"$nulls":17},13.616666666666667,{"$f":"'IV. Country level, 1310-2018'!BM354","v":1.258751712205883},12.357914954460783,10.801522212146036]
[1661,null,11.6,{"$nulls":4},10.4,{"$nulls":17},11.6,{"$f":"'IV. Country level, 1310-2018'!BM355","v":8.675777682559984},2.924222317440016,10.053018968450052]
[1662,null,11.26,null,null,16,{"$nulls":11},"Charles II discount on receipts from Dunkirk sale. Grose (1929, 178).",{"$nulls":7},11.26,{"$f":"'IV. Country level, 1310-2018'!BM356","v":1.9126386685388403},9.34736133146116,9.993174398601374]
[1663,null,11.2,{"$nulls":22},11.2,{"$f":"'IV. Country level, 1310-2018'!BM357","v":-6.396204998740849},17.59620499874085,9.772232952366847]
[1664,null,8.85,null,null,5,{"$nulls":11},"100,000l Oct loan by City of London to the King, for 1.5 years for the Navy. Calendar of State Papers Domestic, Charles II, Vol.4, p.43, entry no. VOL. CIII., 126-7",{"$nulls":7},8.85,{"$f":"'IV. Country level, 1310-2018'!BM358","v":-1.8587028799391228},10.708702879939123,9.690287276508956]
[1665,null,8.333333333333334,{"$nulls":22},8.333333333333334,{"$f":"'IV. Country level, 1310-2018'!BM359","v":0.838751409215403},7.494581924117931,9.864828452424877]
[1666,null,4.5,{"$nulls":22},4.5,{"$f":"'IV. Country level, 1310-2018'!BM360","v":-3.476642260408056},7.976642260408056,10.199696819144231]
[1667,null,6.333333333333333,{"$nulls":5},4,{"$nulls":8},"Swiss loan to Ludwig von der Pfalz, 5 years, 52,000fl. Sellin (1978, 51)",{"$nulls":7},6.333333333333333,{"$f":"'IV. Country level, 1310-2018'!BM361","v":-5.450961890122225},11.784295223455558,8.550251958225626]
[1668,null,5.625,{"$nulls":22},5.625,{"$f":"'IV. Country level, 1310-2018'!BM362","v":1.47898945114854},4.14601054885146,8.020091971324138]
[1669,null,6,{"$nulls":22},6,{"$f":"'IV. Country level, 1310-2018'!BM363","v":-5.691439898496637},11.691439898496636,7.689927933428327]
[1670,null,6,null,null,10,{"$nulls":11},"Calendar of State Papers Domestic 1670, Vol. 10, entry no. [2735]",{"$nulls":7},6,{"$f":"'IV. Country level, 1310-2018'!BM364","v":-0.05009097231061673},6.050090972310617,7.562181555767881]
[1671,null,6.5,null,2.5,6,{"$nulls":11},"4m florin loan priced between 2-3pc. Calendar of State Papers Venetian, Vol.37, entry no.35; 1.25m war loan, Calendar of State Papers Domestic, Charles II, Vol. 12, entry no. [521]",{"$nulls":7},6.5,{"$f":"'IV. Country level, 1310-2018'!BM365","v":-0.49758297162871373},6.997582971628714,6.1521224693409176]
[1672,null,6.5,null,null,7.5,{"$nulls":11},"60,000l City of London loan. Paid via free-farm rents at 12 years purchase. [Taken as spread to 20-year market rate here]. Calendar of state papers Domestic, Charles II, Vol. 13, p.428, entry no. [1985]",{"$nulls":7},6.5,{"$f":"'IV. Country level, 1310-2018'!BM366","v":1.3165663411527648},5.183433658847235,5.955715535852663]
[1673,null,6.5,{"$nulls":22},6.5,{"$f":"'IV. Country level, 1310-2018'!BM367","v":-0.5824176167849439},7.0824176167849435,5.50413437827167]
[1674,null,5.333333333333333,{"$nulls":22},5.333333333333333,{"$f":"'IV. Country level, 1310-2018'!BM368","v":3.4194517148665167},1.9138816184668164,5.743649165758364]
[1675,null,7.5,{"$nulls":22},7.5,{"$f":"'IV. Country level, 1310-2018'!BM369","v":4.728837985566319},2.7711620144336813,5.445670566622011]
[1676,null,{"$f":"((C$375-C$368)/7)+C368","v":7.214285714285714},{"$nulls":22},7.214285714285714,{"$f":"'IV. Country level, 1310-2018'!BM370","v":-1.3160860811439599},8.530371795429675,5.724658831620823]
[1677,null,{"$f":"((C$375-C$368)/7)+C369","v":6.928571428571429},{"$nulls":22},6.928571428571429,{"$f":"'IV. Country level, 1310-2018'!BM371","v":-0.7981230561460553},7.726694484717484,5.055318654404202]
[1678,null,6.642857142857143,{"$nulls":22},6.642857142857143,{"$f":"'IV. Country level, 1310-2018'!BM372","v":1.731124365182904},4.911732777674239,5.792652051746473]
[1679,null,6.357142857142858,{"$nulls":22},6.357142857142858,{"$f":"'IV. Country level, 1310-2018'!BM373","v":-0.7792086566960638},7.136351513838921,6.665947079786318]
[1680,null,6.071428571428572,{"$nulls":22},6.071428571428572,{"$f":"'IV. Country level, 1310-2018'!BM374","v":3.674392195159976},2.3970363762685962,5.717759884405674]
[1681,null,5.7857142857142865,{"$nulls":22},5.7857142857142865,{"$f":"'IV. Country level, 1310-2018'!BM375","v":-1.289501114148426},7.075215399862713,4.881718519175452]
[1682,null,5.5,{"$nulls":22},5.5,{"$f":"'IV. Country level, 1310-2018'!BM376","v":-3.3842272107126004},8.8842272107126,5.30198377723516]
[1683,null,5.5,{"$nulls":22},5.5,{"$f":"'IV. Country level, 1310-2018'!BM377","v":3.606938572234833},1.8930614277651672,5.921873263784434]
[1684,null,5.5,{"$nulls":22},5.5,{"$f":"'IV. Country level, 1310-2018'!BM378","v":3.6255950718940713},1.8744049281059287,7.150333270831045]
[1685,null,6.5,null,null,5.5,{"$nulls":11},"285,000l loans by Richard Kent and Charles Duncombe to King. Calendar of State Papers Domestic, James II, Vol. 1, p.125, entry no. 1685, 518",{"$nulls":7},6.5,{"$f":"'IV. Country level, 1310-2018'!BM379","v":-1.3535895840921948},7.8535895840921945,7.166155043038984]
[1686,null,6.5,{"$nulls":22},6.5,{"$f":"'IV. Country level, 1310-2018'!BM380","v":-4.975577919683833},11.475577919683833,6.736094117405265]
[1687,null,6.5,{"$nulls":22},6.5,{"$f":"'IV. Country level, 1310-2018'!BM381","v":-4.496256425594882},10.996256425594883,7.124221200204965]
[1688,null,7,{"$nulls":5},7.5,{"$nulls":8},"600,000 Gfl. Genoese loan (5.5 midpoint + 2% gratituity). OeStA HKA RA Kt. 273.18",{"$nulls":7},7,{"$f":"'IV. Country level, 1310-2018'!BM382","v":-0.18596780531828797},7.185967805318288,7.50627679280147]
[1689,null,6.166666666666667,{"$nulls":22},6.166666666666667,{"$f":"'IV. Country level, 1310-2018'!BM383","v":0.29286593539010464},5.873800731276562,6.507009701267309]
[1690,null,6.166666666666667,{"$nulls":22},6.166666666666667,{"$f":"'IV. Country level, 1310-2018'!BM384","v":1.5567156593036018},4.609951007363065,4.619920408298652]
[1691,null,6.166666666666667,null,null,8,{"$nulls":11},"140,000l loan from States General. Calendar of State Papers Domestic, William III and Mary II, Vol. 6, p.167, entry no. Addenda., [839]",{"$nulls":7},6.166666666666667,{"$f":"'IV. Country level, 1310-2018'!BM385","v":1.6178725903852025},4.548794076281465,3.3517932727966375]
[1692,null,5.5,{"$nulls":3},3,{"$nulls":10},"Spanish payments on 500,000 escudos debt to Max Emanuel of Bavaria (Hartmann 1978, 47)",{"$nulls":7},5.5,{"$f":"'IV. Country level, 1310-2018'!BM386","v":4.641280056646932},0.8587199433530683,3.6277394100185583]
[1693,null,5.5,{"$nulls":22},5.5,{"$f":"'IV. Country level, 1310-2018'!BM387","v":7.2340471310967684},-1.7340471310967684,3.685401930217655]
[1694,null,5.5,{"$nulls":22},5.5,{"$f":"'IV. Country level, 1310-2018'!BM388","v":3.38063352291922},2.11936647708078,3.3268293847963912]
[1695,null,4.5,{"$nulls":22},4.5,{"$f":"'IV. Country level, 1310-2018'!BM389","v":-4.617590765871733},9.117590765871732,2.446784384618819]
[1696,null,5.25,{"$nulls":22},5.25,{"$f":"'IV. Country level, 1310-2018'!BM390","v":-1.0274383726702465},6.277438372670247,2.50950611813336]
[1697,null,5.25,{"$nulls":22},{"$f":"C390","v":5.25},{"$f":"'IV. Country level, 1310-2018'!BM391","v":3.150056810585783},{"$f":"Z390-AA390","v":2.099943189414217},4.863120905529933]
[1698,null,5.333333333333333,{"$nulls":10},6,{"$nulls":3},"8,000fl and 10,000 loans to Charles Duke of Lorraine. OeStA HHStA House Este, Box 14, letter 10 June 1698 and letter 28 July 1698",{"$nulls":7},5.333333333333333,{"$f":"'IV. Country level, 1310-2018'!BM392","v":6.944854258294877},-1.6115209249615443,6.296967421733533]
[1699,null,5.333333333333333,{"$nulls":5},4.5,{"$nulls":8},"Loan to Graf von Hohensolms (Dietz Bd. 3, 264)",{"$nulls":7},5.333333333333333,{"$f":"'IV. Country level, 1310-2018'!BM393","v":4.035561255378471},1.2977720779548623,6.506805211876839]
[1700,null,{"$f":"AVERAGE(E390:Q396)","v":5.333333333333333},{"$nulls":22},5.333333333333333,{"$f":"'IV. Country level, 1310-2018'!BM394","v":-9.407923047345903},14.741256380679236,{"$f":"AVERAGE(AB390:AB396)","v":6.7022288948364475}]
[1701,null,5.5,{"$nulls":10},5.5,{"$nulls":3},"2 Loans to Charles Duke of Lorraine. OeStA HHStA House Este, Box 14",{"$nulls":7},5.5,{"$f":"'IV. Country level, 1310-2018'!BM395","v":-6.656292090505985},12.156292090505985,7.591475046831801]
[1702,null,5.333333333333333,{"$nulls":22},5.333333333333333,{"$f":"'IV. Country level, 1310-2018'!BM396","v":-5.253121963541532},10.586455296874865,9.799629115581117]
[1703,null,7.625,{"$nulls":22},7.625,{"$f":"'IV. Country level, 1310-2018'!BM397","v":-0.020404153387516777},7.645404153387517,10.073234895057855]
[1704,null,7.604166666666667,{"$nulls":8},6,{"$nulls":5},"Santoro (ed., 1963, 79)",{"$nulls":7},7.604166666666667,{"$f":"'IV. Country level, 1310-2018'!BM398","v":-0.720499586715014},8.32466625338168,9.533983639282365]
[1705,null,8.025,{"$nulls":22},8.025,{"$f":"'IV. Country level, 1310-2018'!BM399","v":-5.820557556283684},13.845557556283683,8.183819823942967]
[1706,null,8.354166666666666,{"$nulls":4},12.5,8,{"$nulls":4},6.125,{"$nulls":3},"250,000l loan from English for support of Emperor's army in Italy (Prince of Savoy). Calender of State Papers Domestic, Anne I, Vol.4, p.80, entry no. Text, 474; France: Rowlands (2015, 104). 3 Loans to Charles Duke of Lorraine ('other'). OeStA HHStA House Este, Box 14",{"$nulls":7},8.354166666666666,{"$f":"'IV. Country level, 1310-2018'!BM400","v":5.141154132374641},3.213012534292025,3.8235523186141704]
[1707,null,8.354166666666666,{"$nulls":4},7.5,{"$nulls":9},"Longer-term French loan, Rowlands (2012, 80)",{"$nulls":7},8.354166666666666,{"$f":"'IV. Country level, 1310-2018'!BM401","v":-2.612330923584127},10.966497590250793,4.221296464748636]
[1708,null,8.825,{"$nulls":22},8.825,{"$f":"'IV. Country level, 1310-2018'!BM402","v":6.11985461686979},2.7051453831302092,5.9524422813145055]
[1709,null,8.825,{"$nulls":4},10,{"$nulls":9},"Rowlands (2012, 73)",{"$nulls":7},8.825,{"$f":"'IV. Country level, 1310-2018'!BM403","v":28.76041724042672},-19.93541724042672,6.2009140014738255]
[1710,null,9.833333333333334,{"$nulls":22},9.833333333333334,{"$f":"'IV. Country level, 1310-2018'!BM404","v":-0.596279842995442},10.429613176328775,6.900060402678733]
[1711,null,11,{"$nulls":22},11,{"$f":"'IV. Country level, 1310-2018'!BM405","v":-9.442686969342775},20.442686969342773,7.225660438375597]
[1712,null,11,{"$nulls":22},11,{"$f":"'IV. Country level, 1310-2018'!BM406","v":-4.584859597398925},15.584859597398925,8.692897944028383]
[1713,null,12,{"$nulls":5},12,{"$nulls":8},"Dietz (Vol. 4/2, 756)",{"$nulls":7},12,{"$f":"'IV. Country level, 1310-2018'!BM407","v":3.892962657273626},8.107037342726374,13.924001452347303]
[1714,null,12,{"$nulls":22},12,{"$f":"'IV. Country level, 1310-2018'!BM408","v":-1.2456978401288432},13.245697840128843,14.658041929862671]
[1715,null,12,{"$nulls":22},12,{"$f":"'IV. Country level, 1310-2018'!BM409","v":-0.9758079226997084},12.975807922699708,13.351381940252354]
[1716,null,12,{"$nulls":22},12,{"$f":"'IV. Country level, 1310-2018'!BM410","v":-4.682307317805746},16.682307317805744,11.810085109506192]
[1717,null,{"$f":"((C$412-C$409)/3)+C409","v":10},{"$nulls":22},10,{"$f":"'IV. Country level, 1310-2018'!BM411","v":-5.567896518936327},15.567896518936326,11.78633451252999]
[1718,null,{"$f":"((C$412-C$409)/3)+C410","v":8},{"$nulls":22},8,{"$f":"'IV. Country level, 1310-2018'!BM412","v":-3.2960670420705807},11.29606704207058,10.978042791207969]
[1719,null,6,{"$nulls":22},6,{"$f":"'IV. Country level, 1310-2018'!BM413","v":1.2042182178242384},4.795781782175761,9.855855570424406]
[1720,null,6,{"$nulls":22},6,{"$f":"'IV. Country level, 1310-2018'!BM414","v":-1.9407831638929742},7.9407831638929744,8.105269995217414]
[1721,null,6,{"$nulls":22},6,{"$f":"'IV. Country level, 1310-2018'!BM415","v":-1.5876557908746929},7.587655790874693,6.113939655637907]
[1722,null,6,{"$nulls":5},6,{"$nulls":8},"2.2m loans to Bavarian Prince-Elector from Noe Samuel Isaac (Hartmann 1976, 68), to 1725",{"$nulls":7},6,{"$f":"'IV. Country level, 1310-2018'!BM416","v":0.8795026227852318},5.120497377214768,4.743387774759832]
[1723,null,6,{"$nulls":5},6,6,{"$nulls":7},"OeStA FHKA SUS NL Brandau, Nr. 11-13",{"$nulls":7},6,{"$f":"'IV. Country level, 1310-2018'!BM417","v":1.5717917086432127},4.428208291356787,4.9181057323100665]
[1724,null,6,{"$nulls":5},6,{"$nulls":16},6,{"$f":"'IV. Country level, 1310-2018'!BM418","v":4.3714158581202165},1.6285841418797835,5.491599536961183]
[1725,null,6,{"$nulls":5},6,{"$nulls":16},6,{"$f":"'IV. Country level, 1310-2018'!BM419","v":4.297796124075942},1.7022038759240576,5.041495675619858]
[1726,null,6,{"$nulls":22},6,{"$f":"'IV. Country level, 1310-2018'!BM420","v":-0.018807485027401483},6.018807485027401,4.1633772445630015]
[1727,null,6,{"$nulls":22},6,{"$f":"'IV. Country level, 1310-2018'!BM421","v":-5.95523979645079},11.95523979645079,4.842787067048166]
[1728,null,4.5,{"$nulls":22},4.5,{"$f":"'IV. Country level, 1310-2018'!BM422","v":0.06307123851458012},4.43692876148542,4.694851582692535]
[1729,null,3,{"$nulls":22},3,{"$f":"'IV. Country level, 1310-2018'!BM423","v":4.026331640183228},-1.026331640183228,5.877230402193876]
[1730,null,4.5,{"$nulls":22},4.5,{"$f":"'IV. Country level, 1310-2018'!BM424","v":-4.684077048752939},9.18407704875294,5.447982249297924]
[1731,null,4.666666666666667,null,null,3,{"$nulls":11},"400k loan from Marlborough family - to satisfy damages in Jersey. Calendar of Treasury Books and Papers Vol. 2, 1731-1734, p.44",{"$nulls":7},4.666666666666667,{"$f":"'IV. Country level, 1310-2018'!BM425","v":4.0736309152763015},0.5930357513903655,3.797132567637884]
[1732,null,5.25,{"$nulls":22},5.25,{"$f":"'IV. Country level, 1310-2018'!BM426","v":-4.728855612433451},9.97885561243345,4.218446246482001]
[1733,null,5.6,{"$nulls":5},6,{"$nulls":8},"Jakob Adami loan to Ernst Lewis of Hesse-Darmstadt - Dietz (Vol. 4/2, 622)",{"$nulls":7},5.6,{"$f":"'IV. Country level, 1310-2018'!BM427","v":2.585929585244262},3.0140704147557376,5.188248363876335]
[1734,null,5.833333333333333,{"$nulls":5},5,{"$nulls":8},"400,000fl loan city of Frankfurt to Charles VI - Dietz (Vol. 4/2, 426)",{"$nulls":7},5.833333333333333,{"$f":"'IV. Country level, 1310-2018'!BM428","v":5.43404130850283},0.39929202483050297,4.5857108746992425]
[1735,null,6.5,{"$nulls":5},7,{"$nulls":8},"250,000 pound English loan to HRE Charles VI ('Silesia loan'). Fechner (1886, 69ff.); some context in TNA SP 36/107/1, fol. 45",{"$nulls":7},6.5,{"$f":"'IV. Country level, 1310-2018'!BM429","v":-0.8861245133942448},7.386124513394245,5.383254962976757]
[1736,null,6.428571428571429,{"$nulls":5},7,{"$nulls":16},6.428571428571429,{"$f":"'IV. Country level, 1310-2018'!BM430","v":0.666288246994321},5.762283181577108,4.80548993668443]
[1737,null,6.666666666666667,{"$nulls":5},7,{"$nulls":16},6.666666666666667,{"$f":"'IV. Country level, 1310-2018'!BM431","v":1.7003520421533853},4.966314624513282,3.7264764824790713]
[1738,null,6.56060606060606,{"$nulls":5},7,{"$nulls":16},6.56060606060606,{"$f":"'IV. Country level, 1310-2018'!BM432","v":0.3847616912730837},6.175844369332976,3.843295846373439]
[1739,null,6.437376725838264,{"$nulls":5},6,{"$nulls":8},"100,000fl loan from Bar Isaac to Ernst Lewis of Hesse-Darmstadt - Dietz (Vol. 4/1, 398) ",{"$nulls":7},6.437376725838264,{"$f":"'IV. Country level, 1310-2018'!BM433","v":0.5028762974511013},5.934500428387162,4.871377550511476]
[1740,null,6.437376725838264,{"$nulls":3},8,null,7,6,{"$nulls":7},"1m pieces of eight loan, merchants of Cadiz to King of Spain. TNA SP 78/223, 41-42; OeStA FHKA SUS NL Brandau, Nr. 11-13, Genueser anticipationes",{"$nulls":7},6.437376725838264,{"$f":"'IV. Country level, 1310-2018'!BM434","v":10.97640049052004},-4.539023764681777,5.686400957992984]
[1741,null,6.334706959706959,null,null,{"$f":"(62000/1200000)*100","v":5.166666666666667},null,null,7,5,{"$nulls":7},"1.2m loan on salt, Corporation of Lyme Regis and various payees. Calendar of Treasury Books, Vol. 5, pp.171, 402; OeStA FHKA SUS NL Brandau, Nr. 11-13, Genueser anticipatones",{"$nulls":7},6.334706959706959,{"$f":"'IV. Country level, 1310-2018'!BM435","v":5.117679387615884},1.2170275720910748,6.00054401401983]
[1742,null,6.334706959706959,{"$nulls":5},7,5.75,{"$nulls":3},{"$f":"(750/13000)*100","v":5.769230769230769},{"$nulls":3},"OeStA FHKA SUS NL Brandau, Nr. 11-13. Weighted rates 'Militaer-Fundo Capitalien' und 'von Staenden garantierte Capitalien'",{"$nulls":7},6.334706959706959,{"$f":"'IV. Country level, 1310-2018'!BM436","v":-8.24798948265355},14.582696442360508,5.786780134382006]
[1743,null,6.406135531135531,{"$nulls":5},7,{"$nulls":16},6.406135531135531,{"$f":"'IV. Country level, 1310-2018'!BM437","v":-5.061311502812132},11.467447033947664,5.305578098603126]
[1744,null,6.307158119658119,{"$nulls":5},7,{"$nulls":4},5,{"$nulls":11},6.307158119658119,{"$f":"'IV. Country level, 1310-2018'!BM438","v":-0.858157897043085},7.165316016701205,6.7996589979453494]
[1745,null,6.502136752136753,{"$nulls":5},7,{"$nulls":16},6.502136752136753,{"$f":"'IV. Country level, 1310-2018'!BM439","v":1.8226395402685494},4.679497211868203,7.002141049480686]
[1746,null,6.666666666666667,{"$nulls":5},7,{"$nulls":16},6.666666666666667,{"$f":"'IV. Country level, 1310-2018'!BM440","v":4.100580488731663},2.566086177935004,6.314235857962493]
[1747,null,6.6,{"$nulls":5},7,{"$nulls":16},6.6,{"$f":"'IV. Country level, 1310-2018'!BM441","v":0.680457469286217},5.919542530713783,4.6434132399943895]
[1748,null,7,{"$nulls":22},7,{"$f":"'IV. Country level, 1310-2018'!BM442","v":4.365598067161564},2.6344019328384363,4.497011356387703]
[1749,null,7,{"$nulls":22},7,{"$f":"'IV. Country level, 1310-2018'!BM443","v":-2.767360101733155},9.767360101733155,5.034281009285713]
[1750,null,7,{"$nulls":22},7,{"$f":"'IV. Country level, 1310-2018'!BM444","v":7.228311291829062},-0.22831129182906196,6.105342078438446]
[1751,null,{"$f":"((C$447-C$443)/4)+C443","v":6.375},{"$nulls":22},6.375,{"$f":"'IV. Country level, 1310-2018'!BM445","v":0.23449716854559935},6.140502831454401,6.159991540789141]
[1752,null,{"$f":"((C$447-C$443)/4)+C444","v":5.75},{"$nulls":22},5.75,{"$f":"'IV. Country level, 1310-2018'!BM446","v":-2.6903847821542706},8.44038478215427,6.449712510272753]
[1753,null,5.125,{"$nulls":22},5.125,{"$f":"'IV. Country level, 1310-2018'!BM447","v":-4.93851366200414},10.06351366200414,5.09445997285213]
[1754,null,4.5,{"$nulls":22},4.5,{"$f":"'IV. Country level, 1310-2018'!BM448","v":-1.8020887671686505},6.302088767168651,4.6468422905932885]
[1755,null,4.75,{"$nulls":22},4.75,{"$f":"'IV. Country level, 1310-2018'!BM449","v":0.0875512807762786},4.662448719223722,4.395904659911991]
[1756,null,4.75,{"$nulls":22},4.75,{"$f":"'IV. Country level, 1310-2018'!BM450","v":4.469407660211211},0.2805923397887886,4.245538026681747]
[1757,null,4.75,{"$nulls":5},4.5,{"$nulls":8},"Brothers Steitz 17,000fl loan to Saxonian executives - Dietz (Vol. 4/1, 417)",{"$nulls":7},4.75,{"$f":"'IV. Country level, 1310-2018'!BM451","v":8.11163506764095},-3.3616350676409503,3.886249891335877]
[1758,null,4.75,{"$nulls":6},5,{"$nulls":7},"OeStA FHKA SUS NL Beer, 02/79",{"$nulls":7},4.75,{"$f":"'IV. Country level, 1310-2018'!BM452","v":0.3660605833146889},4.383939416685311,3.612267619186748]
[1759,null,4.75,{"$nulls":22},4.75,{"$f":"'IV. Country level, 1310-2018'!BM453","v":-2.6378183495425653},7.387818349542565,3.2402718011658918]
[1760,null,4.75,{"$nulls":22},4.75,{"$f":"'IV. Country level, 1310-2018'!BM454","v":-2.7984967145830546},7.548496714583054,4.021260943100193]
[1761,null,5,{"$nulls":22},{"$f":"C454","v":5},{"$f":"'IV. Country level, 1310-2018'!BM455","v":0.6157871378752553},{"$f":"Z454-AA454","v":4.384212862124745},4.676002224516183]
[1762,null,{"$f":"((C$465-C$454)/11)+C454","v":4.9772727272727275},{"$nulls":22},4.9772727272727275,{"$f":"'IV. Country level, 1310-2018'!BM456","v":2.9187947341949965},2.058477993077731,4.591527429106128]
[1763,null,{"$f":"((C$465-C$454)/11)+C455","v":4.954545454545455},{"$nulls":22},4.954545454545455,{"$f":"'IV. Country level, 1310-2018'!BM457","v":-0.7929708787834437},5.747516333328899,3.9541229061622736]
[1764,null,4.9318181818181825,{"$nulls":22},4.9318181818181825,{"$f":"'IV. Country level, 1310-2018'!BM458","v":3.7102642795472054},1.2215539022709772,{"$f":"AVERAGE(AB454:AB460)","v":2.923960379263295}]
[1765,null,4.90909090909091,{"$nulls":22},4.90909090909091,{"$f":"'IV. Country level, 1310-2018'!BM459","v":1.1164750602759907},3.7926158488149193,3.106528427351811]
[1766,null,4.886363636363638,{"$nulls":22},4.886363636363638,{"$f":"'IV. Country level, 1310-2018'!BM460","v":1.9603769474280444},2.925986688935593,3.823397536604586]
[1767,null,4.863636363636365,{"$nulls":22},4.863636363636365,{"$f":"'IV. Country level, 1310-2018'!BM461","v":4.526277337346164},0.3373590262902013,2.9170953456429487]
[1768,null,4.840909090909093,{"$nulls":22},4.840909090909093,{"$f":"'IV. Country level, 1310-2018'!BM462","v":-0.8212801078352646},5.6621891987443576,2.445917314448664]
[1769,null,4.81818181818182,{"$nulls":22},4.81818181818182,{"$f":"'IV. Country level, 1310-2018'!BM463","v":-2.2583799396653395},7.076561757847159,2.561613734961465]
[1770,null,4.795454545454548,{"$nulls":22},4.795454545454548,{"$f":"'IV. Country level, 1310-2018'!BM464","v":5.392053548857112},-0.5965990034025648,3.4004311481099614]
[1771,null,4.772727272727275,{"$nulls":22},4.772727272727275,{"$f":"'IV. Country level, 1310-2018'!BM465","v":6.849419588816292},-2.0766923160890167,3.9240241611309123]
[1772,null,{"$f":"AVERAGE(E462:Q468)","v":4.75},{"$nulls":22},4.75,{"$f":"'IV. Country level, 1310-2018'!BM466","v":0.14750920759547448},4.6024907924045255,3.777166476575229]
[1773,null,4.75,{"$nulls":22},4.75,{"$f":"'IV. Country level, 1310-2018'!BM467","v":-4.047708580975066},8.797708580975065,3.8847037778618865]
[1774,null,4.75,{"$nulls":22},4.75,{"$f":"'IV. Country level, 1310-2018'!BM468","v":0.747489882563141},4.002510117436859,3.8738915016630253]
[1775,null,4.194443333333333,{"$nulls":5},4.75,{"$nulls":8},"Loan Ohlenschlaegersche Handlung to Duke of Ansbach-Bayreuth (Dietz, 4/1, 375)",{"$nulls":7},4.194443333333333,{"$f":"'IV. Country level, 1310-2018'!BM469","v":-0.43974207352124123},4.6341854068545745,4.5791598460855925]
[1776,null,4.2708325,{"$nulls":22},4.2708325,{"$f":"'IV. Country level, 1310-2018'!BM470","v":-3.558490366853761},7.8293228668537616,5.388406957317445]
[1777,null,4.2708325,{"$nulls":22},4.2708325,{"$f":"'IV. Country level, 1310-2018'!BM471","v":4.94311743679459},-0.6722849367945898,4.855099021598113]
[1778,null,4.216666,{"$nulls":6},2.83333,{"$nulls":4},5,null,null,"French/Spanish war loans to U.S. (House of Representatives 1876, 24f.); Austrian loan negotiations with Boas Bank. OeStA HHStA Kolowrat 9. 594",{"$nulls":7},4.216666,{"$f":"'IV. Country level, 1310-2018'!BM472","v":1.3564799051310494},2.8601860948689506,4.0703787000931655]
[1779,null,4.266666,{"$nulls":6},4.5,{"$nulls":7},"OeStA HHStA Kolowrat 9, 595 and 613 (loan by House of Osy)",{"$nulls":7},4.266666,{"$f":"'IV. Country level, 1310-2018'!BM473","v":-6.000554571027497},10.267220571027497,3.7074453697320235]
[1780,null,4.388888333333333,{"$nulls":22},4.388888333333333,{"$f":"'IV. Country level, 1310-2018'!BM474","v":-0.6756646976063999},5.064553030939733,3.4121816620477357]
[1781,null,4.3333328571428575,{"$nulls":11},4,{"$nulls":10},4.3333328571428575,{"$f":"'IV. Country level, 1310-2018'!BM475","v":5.823864990240622},-1.4905321330977648,3.893504353533437]
[1782,null,4.5,{"$nulls":11},5,{"$nulls":10},4.5,{"$f":"'IV. Country level, 1310-2018'!BM476","v":2.406347905673424},2.093652094326576,4.5288711478633585]
[1783,null,4.5,{"$nulls":11},5,{"$nulls":10},4.5,{"$f":"'IV. Country level, 1310-2018'!BM477","v":-1.2624769130637497},5.762476913063749,3.5187151446534046]
[1784,null,4.5,{"$nulls":11},4,{"$nulls":10},4.5,{"$f":"'IV. Country level, 1310-2018'!BM478","v":1.8030260963946818},2.6969739036053184,2.671560564174972]
[1785,null,4.666666666666667,{"$nulls":22},4.666666666666667,{"$f":"'IV. Country level, 1310-2018'!BM479","v":-2.6410869885117343},7.307753655178401,3.436489905094384]
[1786,null,4.5,{"$nulls":22},4.5,{"$f":"'IV. Country level, 1310-2018'!BM480","v":1.303871451442183},3.196128548557817,3.540579061710247]
[1787,null,4,{"$nulls":22},4,{"$f":"'IV. Country level, 1310-2018'!BM481","v":4.865529032409291},-0.8655290324092908,3.126615793457979]
[1788,null,{"$f":"((C$483-C$480)/3)+C480","v":4},{"$nulls":22},4,{"$f":"'IV. Country level, 1310-2018'!BM482","v":0.1360267466618823},3.8639732533381177,3.752990968363371]
[1789,null,{"$f":"((C$483-C$480)/3)+C481","v":4},{"$nulls":22},4,{"$f":"'IV. Country level, 1310-2018'!BM483","v":1.1777238093623834},2.8222761906376164,2.8135685519417355]
[1790,null,4,{"$nulls":22},4,{"$f":"'IV. Country level, 1310-2018'!BM484","v":1.1352659647021262},2.864734035297874,1.9988879239619948]
[1791,null,4,{"$nulls":22},4,{"$f":"'IV. Country level, 1310-2018'!BM485","v":-3.0816001279430627},7.081600127943062,2.8363047713271072]
[1792,null,4.965361736334406,{"$nulls":22},4.965361736334406,{"$f":"'IV. Country level, 1310-2018'!BM486","v":4.233564996107454},0.7317967402269518,1.71674950118976]
[1793,null,6.37965112540193,null,4,{"$nulls":12},"StAAm 735, 1518, fol. 5-6 (here: certificates, weighted)",{"$nulls":7},6.37965112540193,{"$f":"'IV. Country level, 1310-2018'!BM487","v":8.886286972702296},-2.506635847300366,2.6567574195861594]
[1794,null,6.37965112540193,{"$nulls":22},6.37965112540193,{"$f":"'IV. Country level, 1310-2018'!BM488","v":1.3832622262554355},4.996388899146494,3.6906506391019778]
[1795,null,6.37965112540193,{"$nulls":5},5,{"$f":"(AVERAGE((497735/6220000), 0.0379))*100","v":5.896085209003216},{"$nulls":7},"Loans to Austria (Sinclair 1803 [3rd ed.], 144); OeStA HHStA Kolowrat 21, 1374, 1399 (Lombardy loans)",{"$nulls":7},6.37965112540193,{"$f":"'IV. Country level, 1310-2018'!BM489","v":10.352564763025242},-3.9729136376233125,3.5859278628737346]
[1796,null,6.37965112540193,{"$nulls":5},9,{"$f":"(497735/6220000)*100","v":8.00217041800643},{"$nulls":7},"OeStA HHStA Kolowrat 21, 1394",{"$nulls":7},6.37965112540193,{"$f":"'IV. Country level, 1310-2018'!BM490","v":-3.022680494010482},9.402331619412411,3.501529145031792]
[1797,null,6.974563906752412,{"$nulls":22},6.974563906752412,{"$f":"'IV. Country level, 1310-2018'!BM491","v":-3.127422665156189},10.1019865719086,2.69847514936972]
[1798,null,6.974563906752412,{"$nulls":22},6.974563906752412,{"$f":"'IV. Country level, 1310-2018'!BM492","v":0.6260232124070466},6.348540694345365,2.2724849076626974]
[1799,null,7.334056806002143,{"$nulls":22},7.334056806002143,{"$f":"'IV. Country level, 1310-2018'!BM493","v":7.193051090668791},0.1410057153333515,4.540750749978107]
[1800,null,5.333333333333333,{"$nulls":22},5.333333333333333,{"$f":"'IV. Country level, 1310-2018'!BM494","v":13.461347150268205},-8.128013816934871,3.5470842036809183]
[1801,null,5.125,{"$nulls":22},5.125,{"$f":"'IV. Country level, 1310-2018'!BM495","v":3.110542792802661},2.014457207197339,2.139674996381003]
[1802,null,5.125,{"$nulls":10},5,{"$nulls":11},5.125,{"$f":"'IV. Country level, 1310-2018'!BM496","v":-6.7799472585845555},11.904947258584556,2.183855653406549]
[1803,null,5.1,{"$nulls":5},5,{"$nulls":5},6,null,null,"2m Gulden loan Bethmann Bank to Emperor Franz II. ISG Frankfurt, 1.117; Hope & Co. loan to U.S.A., USD 11.25M (StAAm 735, 1913)",{"$nulls":7},5.1,{"$f":"'IV. Country level, 1310-2018'!BM497","v":2.653334204667909},2.4466657953320907,3.931488618801682]
[1804,null,5.5,{"$nulls":5},4.5,{"$nulls":16},5.5,{"$f":"'IV. Country level, 1310-2018'!BM498","v":5.249877879190811},0.2501221208091886,6.5471791327387745]
[1805,null,5.5,{"$nulls":22},5.5,{"$f":"'IV. Country level, 1310-2018'!BM499","v":-1.1578052935241887},6.657805293524189,6.5230151048992155]
[1806,null,5.666666666666667,{"$nulls":5},5,{"$nulls":16},5.666666666666667,{"$f":"'IV. Country level, 1310-2018'!BM500","v":-6.707769806432616},12.374436473099284,5.302190872581632]
[1807,null,5.5,{"$nulls":3},7.5,{"$nulls":10},"Hope & Co. loan to Spain (StAAm 735, 2058)",{"$nulls":7},5.5,{"$f":"'IV. Country level, 1310-2018'!BM501","v":-4.6818197806247825},10.181819780624782,5.22653194973607]
[1808,null,5.75,{"$nulls":22},5.75,{"$f":"'IV. Country level, 1310-2018'!BM502","v":3.904690987679572},1.845309012320428,3.7063232066522067]
[1809,null,5.75,null,6,{"$nulls":12},"Hope & Co. loan to Holland (StAAm, 735, 1957)",{"$nulls":7},5.75,{"$f":"'IV. Country level, 1310-2018'!BM503","v":2.3908223676385427},3.3591776323614573,1.903212917554994]
[1810,null,6,{"$nulls":9},4.5,{"$nulls":4},"To king of Denmark (Dietz, Vol. 4/2, 755)",{"$nulls":7},6,{"$f":"'IV. Country level, 1310-2018'!BM504","v":4.082946664586835},1.917053335413165,1.8607919479665511]
[1811,null,5.833333333333333,{"$nulls":22},5.833333333333333,{"$f":"'IV. Country level, 1310-2018'!BM505","v":16.224672414111186},-10.391339080777854,1.721713967367338]
[1812,null,5.85,{"$nulls":22},5.85,{"$f":"'IV. Country level, 1310-2018'!BM506","v":11.813966730156302},-5.963966730156303,2.3915235074688774]
[1813,null,5.828571428571428,{"$nulls":5},6,{"$nulls":5},6,null,null,"Virginia war loans from banks (1/3 state-owned). Calendar of Virginia State Papers and other Manuscripts, pp.508f.",{"$nulls":7},5.828571428571428,{"$f":"'IV. Country level, 1310-2018'!BM507","v":-6.248918257408754},12.077489685980183,2.7521007166986684]
[1814,null,5.828571428571428,{"$nulls":5},5,{"$nulls":5},7.5,{"$nulls":10},5.828571428571428,{"$f":"'IV. Country level, 1310-2018'!BM508","v":-3.3797024878588617},9.20827391643029,2.374469386836496]
[1815,null,5.828571428571428,{"$nulls":5},5,{"$nulls":5},6.8,{"$nulls":10},5.828571428571428,{"$f":"'IV. Country level, 1310-2018'!BM509","v":-0.7054043644597727},6.5339757930312015,5.941264275392679]
[1816,null,5.828571428571428,{"$nulls":22},5.828571428571428,{"$f":"'IV. Country level, 1310-2018'!BM510","v":-0.05464666839857002},5.8832180969699985,8.6659988037911]
[1817,null,5.76,{"$nulls":5},4.5,{"$nulls":16},5.76,{"$f":"'IV. Country level, 1310-2018'!BM511","v":6.486365973622045},-0.7263659736220456,8.449676069224292]
[1818,null,5.433333333333334,{"$nulls":22},5.433333333333334,{"$f":"'IV. Country level, 1310-2018'!BM512","v":-9.142891805782094},14.576225139115428,8.706385318591236]
[1819,null,4.5,{"$nulls":22},4.5,{"$f":"'IV. Country level, 1310-2018'!BM513","v":-8.609174968632635},13.109174968632635,8.516567722381057]
[1820,null,4.5,{"$nulls":22},4.5,{"$f":"'IV. Country level, 1310-2018'!BM514","v":-6.0632305440125345},10.563230544012534,7.4333110652952845]
[1821,null,{"$f":"((C$534-C$513)/21)+C513","v":4.428571428571429},{"$nulls":22},4.428571428571429,{"$f":"'IV. Country level, 1310-2018'!BM515","v":-6.576667233427465},11.005238661998895,8.560006136629262]
[1822,null,{"$f":"((C$534-C$513)/21)+C514","v":4.357142857142858},{"$nulls":22},4.357142857142858,{"$f":"'IV. Country level, 1310-2018'!BM516","v":-0.8481097624170925},5.20525261955995,6.774491996882896]
[1823,null,4.2857142857142865,{"$nulls":22},4.2857142857142865,{"$f":"'IV. Country level, 1310-2018'!BM517","v":5.985292788344691},-1.6995785026304047,5.471224978800151]
[1824,null,4.214285714285715,{"$nulls":22},4.214285714285715,{"$f":"'IV. Country level, 1310-2018'!BM518","v":-2.9462138114300824},7.160499525715798,4.31593723659198]
[1825,null,4.142857142857144,{"$nulls":22},{"$f":"C518","v":4.142857142857144},{"$f":"'IV. Country level, 1310-2018'!BM519","v":2.065230981966284},{"$f":"Z518-AA518","v":2.07762616089086},2.9492385027539636]
[1826,null,4.071428571428573,{"$nulls":22},4.071428571428573,{"$f":"'IV. Country level, 1310-2018'!BM520","v":0.08512272937514664},3.9863058420534263,3.1052243295881587]
[1827,null,4.000000000000002,{"$nulls":22},4.000000000000002,{"$f":"'IV. Country level, 1310-2018'!BM521","v":1.5237836514446623},2.4762163485553392,3.874154204211077]
[1828,null,3.92857142857143,{"$nulls":22},3.92857142857143,{"$f":"'IV. Country level, 1310-2018'!BM522","v":2.4902239034386575},1.4383475251327726,{"$f":"AVERAGE(AB518:AB524)","v":2.516650084471087}]
[1829,null,3.8571428571428585,{"$nulls":22},3.8571428571428585,{"$f":"'IV. Country level, 1310-2018'!BM523","v":-2.4400105502564635},6.297153407399322,2.7204186423366896]
[1830,null,3.785714285714287,{"$nulls":22},3.785714285714287,{"$f":"'IV. Country level, 1310-2018'!BM524","v":0.10278366598426769},3.682930619730019,3.267872301325496]
[1831,null,3.7142857142857153,{"$nulls":22},3.7142857142857153,{"$f":"'IV. Country level, 1310-2018'!BM525","v":6.056315026749846},-2.3420293124641303,4.4094229659675]
[1832,null,3.6428571428571437,{"$nulls":22},3.6428571428571437,{"$f":"'IV. Country level, 1310-2018'!BM526","v":0.13885107690706344},3.5040060659500805,4.06820591091989]
[1833,null,3.571428571428572,{"$nulls":22},3.571428571428572,{"$f":"'IV. Country level, 1310-2018'!BM527","v":-4.247052883546498},7.81848145497507,2.809085153725693]
[1834,null,3.5000000000000004,{"$nulls":22},3.5000000000000004,{"$f":"'IV. Country level, 1310-2018'!BM528","v":-6.967071001049367},10.467071001049367,2.0673717247672982]
[1835,null,3.428571428571429,{"$nulls":22},3.428571428571429,{"$f":"'IV. Country level, 1310-2018'!BM529","v":4.378743288771931},-0.950171860200502,2.627853120549786]
[1836,null,3.357142857142857,{"$nulls":22},3.357142857142857,{"$f":"'IV. Country level, 1310-2018'!BM530","v":5.873834750102913},-2.5166918929600555,2.31584416671474]
[1837,null,3.2857142857142856,{"$nulls":22},3.2857142857142856,{"$f":"'IV. Country level, 1310-2018'!BM531","v":4.794777668693026},-1.5090633829787405,1.9815515265878771]
[1838,null,3.214285714285714,{"$nulls":22},3.214285714285714,{"$f":"'IV. Country level, 1310-2018'!BM532","v":1.6329452562724325},1.5813404580132815,1.0975250641629426]
[1839,null,3.1428571428571423,{"$nulls":22},3.1428571428571423,{"$f":"'IV. Country level, 1310-2018'!BM533","v":1.8229137537523843},1.319943389104758,1.8823617023184203]
[1840,null,3.0714285714285707,{"$nulls":22},3.0714285714285707,{"$f":"'IV. Country level, 1310-2018'!BM534","v":-2.4070044026584614},5.478432974087032,3.777898759979816]
[1841,null,{"$f":"AVERAGE(E531:Q537)","v":3},{"$nulls":22},3,{"$f":"'IV. Country level, 1310-2018'!BM535","v":-1.2788857640748241},4.278885764074824,4.506051651076559]
[1842,null,4.5,{"$nulls":22},4.5,{"$f":"'IV. Country level, 1310-2018'!BM536","v":-0.0436846068878432},4.543684606887843,4.532474509564352]
[1843,null,4.5,{"$nulls":22},4.5,{"$f":"'IV. Country level, 1310-2018'!BM537","v":-6.252067510669715},10.752067510669715,3.7657872387999225]
[1844,null,4.5,null,3,{"$nulls":12},"127M Guilders loan. StAAm 183, 722",{"$nulls":7},4.5,{"$f":"'IV. Country level, 1310-2018'!BM538","v":0.9119931453015386},3.5880068546984614,2.481139433498772]
[1845,null,4.5,{"$nulls":12},6,null,"Papal Treasury - Rothschild loan for Beni dell Appanaggio (Felisini 2016, 120).",{"$nulls":7},4.5,{"$f":"'IV. Country level, 1310-2018'!BM539","v":2.733699532572166},1.766300467427834,4.898899116842024]
[1846,null,4.5,{"$nulls":22},4.5,{"$f":"'IV. Country level, 1310-2018'!BM540","v":8.546867506246253},-4.046867506246253,5.313680397639673]
[1847,null,4.5,{"$nulls":22},4.5,{"$f":"'IV. Country level, 1310-2018'!BM541","v":8.014101663021016},-3.514101663021016,5.052689290242973]
[1848,null,6,{"$nulls":22},6,{"$f":"'IV. Country level, 1310-2018'!BM542","v":-15.203203547477587},21.203203547477585,4.2808283250532355]
[1849,null,{"$f":"((C$545-C$541)/4)+C541","v":5.5},{"$nulls":22},5.5,{"$f":"'IV. Country level, 1310-2018'!BM543","v":-1.9471535724713842},7.447153572471384,4.37767474662886]
[1850,null,{"$f":"((C$545-C$541)/4)+C542","v":5},{"$nulls":22},5,{"$f":"'IV. Country level, 1310-2018'!BM544","v":-3.9251297588928105},8.92512975889281,4.499949809641852]
[1851,null,4.5,{"$nulls":22},4.5,{"$f":"'IV. Country level, 1310-2018'!BM545","v":6.315019901629696},-1.8150199016296957,3.865998343033039]
[1852,null,4,{"$nulls":22},4,{"$f":"'IV. Country level, 1310-2018'!BM546","v":1.555774581542801},2.444225418457199,0.7718370364907281]
[1853,null,4,{"$nulls":22},4,{"$f":"'IV. Country level, 1310-2018'!BM547","v":7.190942065155303},-3.190942065155303,0.11240889948699266]
[1854,null,4,{"$nulls":22},4,{"$f":"'IV. Country level, 1310-2018'!BM548","v":11.951761929282704},-7.9517619292827035,0.2647355452291314]
[1855,null,4,{"$nulls":10},4,{"$nulls":3},"British 2m l. loan to King of Sardinia related to Crimean War. Public Income and Expenditure of the United Kingdom 1801 to 1869 (1869, 506).",{"$nulls":7},4,{"$f":"'IV. Country level, 1310-2018'!BM549","v":4.455925598318595},-0.45592559831859525,1.7935334021751193]
[1856,null,4,{"$nulls":10},4,{"$nulls":11},4,{"$f":"'IV. Country level, 1310-2018'!BM550","v":1.1688433865547618},2.831156613445238,2.0683124126810646]
[1857,null,4,{"$nulls":22},4,{"$f":"'IV. Country level, 1310-2018'!BM551","v":-5.991416279087781},9.991416279087781,2.4438930611046414]
[1858,null,4,{"$nulls":22},4,{"$f":"'IV. Country level, 1310-2018'!BM552","v":-4.886565096992217},8.886565096992218,3.4945528328384086]
[1859,null,4,{"$nulls":22},4,{"$f":"'IV. Country level, 1310-2018'!BM553","v":-0.3676784919988163},4.3676784919988165,4.3143084943728915]
[1860,null,{"$f":"((C$625-C$552)/73)+C552","v":3.998173515981735},{"$nulls":22},3.998173515981735,{"$f":"'IV. Country level, 1310-2018'!BM554","v":4.5600510421720015},-0.5618775261902664,4.571953837200281]
[1861,null,{"$f":"((C$625-C$552)/73)+C553","v":3.99634703196347},{"$nulls":22},3.99634703196347,{"$f":"'IV. Country level, 1310-2018'!BM555","v":4.593490559109803},-0.5971435271463328,2.6283143919295395]
[1862,null,3.9945205479452053,{"$nulls":22},3.9945205479452053,{"$f":"'IV. Country level, 1310-2018'!BM556","v":-1.2878434844775786},5.282364032422784,2.3165162998065085]
[1863,null,3.9926940639269404,{"$nulls":22},3.9926940639269404,{"$f":"'IV. Country level, 1310-2018'!BM557","v":-0.6419799493100217},4.634674013236962,1.850192468475672]
[1864,null,3.9908675799086755,{"$nulls":22},3.9908675799086755,{"$f":"'IV. Country level, 1310-2018'!BM558","v":7.60492741771608},-3.614059837807405,1.8188110392290338]
[1865,null,3.9890410958904106,{"$nulls":22},3.9890410958904106,{"$f":"'IV. Country level, 1310-2018'!BM559","v":-2.7149373562405916},6.703978452131002,2.3691030451285444]
[1866,null,3.9872146118721457,{"$nulls":22},3.9872146118721457,{"$f":"'IV. Country level, 1310-2018'!BM560","v":2.883802939189185},1.1034116726829608,2.3949619745385555]
[1867,null,3.9853881278538807,{"$nulls":22},3.9853881278538807,{"$f":"'IV. Country level, 1310-2018'!BM561","v":4.766935658770616},-0.7815475309167352,2.4447594628765716]
[1868,null,3.983561643835616,{"$nulls":22},3.983561643835616,{"$f":"'IV. Country level, 1310-2018'!BM562","v":0.7286611296853732},3.2549005141502425,2.9187331954106783]
[1869,null,3.981735159817351,{"$nulls":22},3.981735159817351,{"$f":"'IV. Country level, 1310-2018'!BM563","v":-1.4816413784755063},5.463376538292858,2.809642124704131]
[1870,null,3.979908675799086,{"$nulls":22},3.979908675799086,{"$f":"'IV. Country level, 1310-2018'!BM564","v":-1.0033477558039903},4.983256431603076,2.4303129350814205]
[1871,null,3.978082191780821,{"$nulls":22},3.978082191780821,{"$f":"'IV. Country level, 1310-2018'!BM565","v":4.274325901849476},-0.296243710068655,2.0868883983989757]
[1872,null,3.976255707762556,{"$nulls":22},3.976255707762556,{"$f":"'IV. Country level, 1310-2018'!BM566","v":-1.964085249422617},5.940340957185173,2.898265454415497]
[1873,null,3.9744292237442913,{"$nulls":22},3.9744292237442913,{"$f":"'IV. Country level, 1310-2018'!BM567","v":5.526321878420309},-1.551892654676018,3.0380165109964428]
[1874,null,3.9726027397260264,{"$nulls":22},3.9726027397260264,{"$f":"'IV. Country level, 1310-2018'!BM568","v":7.158122027419872},-3.185519287693846,2.673111844996225]
[1875,null,3.9707762557077615,{"$nulls":22},3.9707762557077615,{"$f":"'IV. Country level, 1310-2018'!BM569","v":-4.963763650558134},8.934539906265895,3.574967326467269]
[1876,null,3.9689497716894966,{"$nulls":22},3.9689497716894966,{"$f":"'IV. Country level, 1310-2018'!BM570","v":-2.4726841626699754},6.441633934359472,2.60474504834147]
[1877,null,3.9671232876712317,{"$nulls":22},3.9671232876712317,{"$f":"'IV. Country level, 1310-2018'!BM571","v":1.5381995180696777},2.428923769601554,2.603982723617059]
[1878,null,3.9652968036529668,{"$nulls":22},3.9652968036529668,{"$f":"'IV. Country level, 1310-2018'!BM572","v":-2.051447856575682},6.016744660228649,3.56105040566899]
[1879,null,3.963470319634702,{"$nulls":22},3.963470319634702,{"$f":"'IV. Country level, 1310-2018'!BM573","v":4.814685309330119},-0.8512149896954169,3.2448093271698357]
[1880,null,3.961643835616437,{"$nulls":22},3.961643835616437,{"$f":"'IV. Country level, 1310-2018'!BM574","v":5.518872763363332},-1.5572289277468947,3.5311991654175046]
[1881,null,3.959817351598172,{"$nulls":22},3.959817351598172,{"$f":"'IV. Country level, 1310-2018'!BM575","v":0.4458628649285009},3.5139544866696713,4.464405613741185]
[1882,null,3.957990867579907,{"$nulls":22},3.957990867579907,{"$f":"'IV. Country level, 1310-2018'!BM576","v":-2.7628614891919083},6.7208523567718155,3.8379285731457373]
[1883,null,3.9561643835616422,{"$nulls":22},3.9561643835616422,{"$f":"'IV. Country level, 1310-2018'!BM577","v":-4.490198418531511},8.446362802093153,4.8847172977490505]
[1884,null,3.9543378995433773,{"$nulls":22},3.9543378995433773,{"$f":"'IV. Country level, 1310-2018'!BM578","v":-5.00703100832394},8.961368907867318,5.912394051781533]
[1885,null,3.9525114155251124,{"$nulls":22},3.9525114155251124,{"$f":"'IV. Country level, 1310-2018'!BM579","v":2.3211060394646},1.6314053760605125,5.995921286094627]
[1886,null,3.9506849315068475,{"$nulls":22},3.9506849315068475,{"$f":"'IV. Country level, 1310-2018'!BM580","v":-2.5256211510209274},6.476306082527775,4.9072019659060535]
[1887,null,3.9488584474885826,{"$nulls":22},3.9488584474885826,{"$f":"'IV. Country level, 1310-2018'!BM581","v":-1.6876499029918985},5.636508350480481,3.9737695781096747]
[1888,null,3.9470319634703177,{"$nulls":22},3.9470319634703177,{"$f":"'IV. Country level, 1310-2018'!BM582","v":-0.15161316339101177},4.09864512686133,3.433094226222578]
[1889,null,3.945205479452053,{"$nulls":22},{"$f":"C582","v":3.945205479452053},{"$f":"'IV. Country level, 1310-2018'!BM583","v":4.8453883640002475},{"$f":"Z582-AA582","v":-0.9001828845481947},4.209262966769327]
[1890,null,3.943378995433788,{"$nulls":22},3.943378995433788,{"$f":"'IV. Country level, 1310-2018'!BM584","v":2.031042907915283},1.9123360875185047,4.504918364558606]
[1891,null,3.941552511415523,{"$nulls":22},3.941552511415523,{"$f":"'IV. Country level, 1310-2018'!BM585","v":-1.2350889332421158},5.176641444657639,4.548288050805104]
[1892,null,3.939726027397258,{"$nulls":22},3.939726027397258,{"$f":"'IV. Country level, 1310-2018'!BM586","v":-3.124860532490488},7.064586559887746,{"$f":"AVERAGE(AB582:AB588)","v":4.63756288009858}]
[1893,null,3.937899543378993,{"$nulls":22},3.937899543378993,{"$f":"'IV. Country level, 1310-2018'!BM587","v":-4.607994323673747},8.54589386705274,5.1391441481874285]
[1894,null,3.9360730593607283,{"$nulls":22},3.9360730593607283,{"$f":"'IV. Country level, 1310-2018'!BM588","v":-2.0040230948452304},5.940096154205959,5.124498026462225]
[1895,null,3.9342465753424634,{"$nulls":22},3.9342465753424634,{"$f":"'IV. Country level, 1310-2018'!BM589","v":-0.7893223565732034},4.723568931915667,4.941533546856247]
[1896,null,3.9324200913241985,{"$nulls":22},3.9324200913241985,{"$f":"'IV. Country level, 1310-2018'!BM590","v":1.3215340992504503},2.610885992073748,4.396955777493817]
[1897,null,3.9305936073059335,{"$nulls":22},3.9305936073059335,{"$f":"'IV. Country level, 1310-2018'!BM591","v":2.120780371863853},1.8098132354420806,3.253205102478797]
[1898,null,3.9287671232876686,{"$nulls":22},3.9287671232876686,{"$f":"'IV. Country level, 1310-2018'!BM592","v":0.03287703587187535},3.8958900874157933,3.030816525089595]
[1899,null,3.9269406392694037,{"$nulls":22},3.9269406392694037,{"$f":"'IV. Country level, 1310-2018'!BM593","v":0.6743984649186731},3.252542174350731,2.780086099938314]
[1900,null,3.925114155251139,{"$nulls":22},3.925114155251139,{"$f":"'IV. Country level, 1310-2018'!BM594","v":3.3854750133035374},0.5396391419476014,2.510740304299271]
[1901,null,3.923287671232874,{"$nulls":22},3.923287671232874,{"$f":"'IV. Country level, 1310-2018'!BM595","v":-0.46008844124866766},4.383376112481542,2.551478822013599]
[1902,null,3.921461187214609,{"$nulls":22},3.921461187214609,{"$f":"'IV. Country level, 1310-2018'!BM596","v":0.9530052313579099},2.968455955856699,1.8308926005226194]
[1903,null,3.919634703196344,{"$nulls":22},3.919634703196344,{"$f":"'IV. Country level, 1310-2018'!BM597","v":3.1941692805958923},0.7254654226004518,2.019435993481841]
[1904,null,3.917808219178079,{"$nulls":22},3.917808219178079,{"$f":"'IV. Country level, 1310-2018'!BM598","v":1.8228253597357067},2.0949828594423723,2.25063656947586]
[1905,null,3.9159817351598143,{"$nulls":22},3.9159817351598143,{"$f":"'IV. Country level, 1310-2018'!BM599","v":5.064195198180876},-1.1482134630210616,2.3990746919057417]
[1906,null,3.9141552511415494,{"$nulls":22},3.9141552511415494,{"$f":"'IV. Country level, 1310-2018'!BM600","v":-0.6581906739237335},4.572345925065283,2.4070315238275635]
[1907,null,3.9123287671232845,{"$nulls":22},3.9123287671232845,{"$f":"'IV. Country level, 1310-2018'!BM601","v":1.7542855932175503},2.1580431739057344,2.7177956169840174]
[1908,null,3.9105022831050196,{"$nulls":22},3.9105022831050196,{"$f":"'IV. Country level, 1310-2018'!BM602","v":-1.511940686385693},5.422442969490713,2.3744741303184194]
[1909,null,3.9086757990867547,{"$nulls":22},3.9086757990867547,{"$f":"'IV. Country level, 1310-2018'!BM603","v":0.8845220197773057},3.024153779309449,2.8252949563459837]
[1910,null,3.9068493150684898,{"$nulls":22},3.9068493150684898,{"$f":"'IV. Country level, 1310-2018'!BM604","v":1.006035240372856},2.9008140746956337,3.0313064869555606]
[1911,null,3.905022831050225,{"$nulls":22},3.905022831050225,{"$f":"'IV. Country level, 1310-2018'!BM605","v":4.2132903782670414},-0.3082675472168166,3.0672355097043558]
[1912,null,3.90319634703196,{"$nulls":22},3.90319634703196,{"$f":"'IV. Country level, 1310-2018'!BM606","v":1.8956640278600703},2.0075323191718897,1.5530455222759183]
[1913,null,3.901369863013695,{"$nulls":22},3.901369863013695,{"$f":"'IV. Country level, 1310-2018'!BM607","v":-2.113056776318626},6.014426639332321,-0.41536967575582145]
[1914,null,3.89954337899543,{"$nulls":22},3.89954337899543,{"$f":"'IV. Country level, 1310-2018'!BM608","v":1.4899970458481304},2.4095463331472997,-3.643321559535282]
[1915,null,3.8977168949771652,{"$nulls":22},3.8977168949771652,{"$f":"'IV. Country level, 1310-2018'!BM609","v":9.074603837485512},-5.176886942508347,-6.798544830034837]
[1916,null,3.8958904109589003,{"$nulls":22},3.8958904109589003,{"$f":"'IV. Country level, 1310-2018'!BM610","v":14.650643017871632},-10.754752606912731,-7.945555911276537]
[1917,null,3.8940639269406354,{"$nulls":22},3.8940639269406354,{"$f":"'IV. Country level, 1310-2018'!BM611","v":23.588913038701225},-19.69484911176059,-10.331454322094782]
[1918,null,3.8922374429223705,{"$nulls":22},3.8922374429223705,{"$f":"'IV. Country level, 1310-2018'!BM612","v":26.287067883636077},-22.394830440713704,-8.793984861961173]
[1919,null,3.8904109589041056,{"$nulls":22},3.8904109589041056,{"$f":"'IV. Country level, 1310-2018'!BM613","v":9.911956208424112},-6.021545249520006,-6.969140797522315]
[1920,null,3.8885844748858407,{"$nulls":22},3.8885844748858407,{"$f":"'IV. Country level, 1310-2018'!BM614","v":14.575446711281236},-10.686862236395395,-5.29912078925557]
[1921,null,3.886757990867576,{"$nulls":22},3.886757990867576,{"$f":"'IV. Country level, 1310-2018'!BM615","v":-9.285074563214994},13.17183255408257,-2.290255498805752]
[1922,null,3.884931506849311,{"$nulls":22},3.884931506849311,{"$f":"'IV. Country level, 1310-2018'!BM616","v":-3.7120900017143414},7.597021508563652,1.2218186996416591]
[1923,null,3.883105022831046,{"$nulls":22},3.883105022831046,{"$f":"'IV. Country level, 1310-2018'!BM617","v":2.9477175718765567},0.9353874509544893,2.282204308712732]
[1924,null,3.881278538812781,{"$nulls":22},3.881278538812781,{"$f":"'IV. Country level, 1310-2018'!BM618","v":2.5140706174246503},1.3672079213881307,5.002399994251361]
[1925,null,{"$f":"((C$625-C$552)/73)+C617","v":3.879452054794516},{"$nulls":22},3.879452054794516,{"$f":"'IV. Country level, 1310-2018'!BM619","v":1.6897631063763434},2.1896889484181727,3.386157875221908]
[1926,null,3.8776255707762513,{"$nulls":22},3.8776255707762513,{"$f":"'IV. Country level, 1310-2018'!BM620","v":2.476471556798749},1.4011540139775023,2.99871875876654]
[1927,null,3.8757990867579863,{"$nulls":22},3.8757990867579863,{"$f":"'IV. Country level, 1310-2018'!BM621","v":-4.478708475617019},8.354507562375005,4.031321715080863]
[1928,null,3.8739726027397214,{"$nulls":22},3.8739726027397214,{"$f":"'IV. Country level, 1310-2018'!BM622","v":2.0158348818633183},1.8581377208764032,5.270495865548196]
[1929,null,3.8721461187214565,{"$nulls":22},3.8721461187214565,{"$f":"'IV. Country level, 1310-2018'!BM623","v":-1.0128015746546186},4.884947693376075,6.246887335879378]
[1930,null,3.8703196347031916,{"$nulls":22},3.8703196347031916,{"$f":"'IV. Country level, 1310-2018'!BM624","v":-4.293288510451565},8.163608145154758,6.5554868594053195]
[1931,null,3.8684931506849267,{"$nulls":22},3.8684931506849267,{"$f":"'IV. Country level, 1310-2018'!BM625","v":-6.17293382397453},10.041426974659457,6.150505223704077]
[1932,null,{"$f":"AVERAGE(E622:Q628)","v":3.8666666666666667},{"$nulls":22},3.8666666666666667,{"$f":"'IV. Country level, 1310-2018'!BM626","v":-5.15776257406978},9.024429240736447,6.331258410348136]
[1933,null,3.8666666666666667,{"$nulls":22},3.8666666666666667,{"$f":"'IV. Country level, 1310-2018'!BM627","v":0.3053159880075771},3.56135067865909,5.55677252776497]
[1934,null,3.8666666666666667,{"$nulls":22},3.8666666666666667,{"$f":"'IV. Country level, 1310-2018'!BM628","v":-1.6529694457996407},5.519636112466308,3.695673986849348]
[1935,null,3.8666666666666667,{"$nulls":11},{"$f":"(2.9/75)*100","v":3.8666666666666667},{"$nulls":3},"Savings Bond E. 2.9% at 75 % face value issue",{"$nulls":6},3.8666666666666667,{"$f":"'IV. Country level, 1310-2018'!BM629","v":0.7432566392818447},3.123410027384822,2.222619888415726]
[1936,null,3.8666666666666667,{"$nulls":22},3.8666666666666667,{"$f":"'IV. Country level, 1310-2018'!BM630","v":4.4031201513727565},-0.5364534847060898,-0.28882523349140093]
[1937,null,3.8666666666666667,{"$nulls":22},3.8666666666666667,{"$f":"'IV. Country level, 1310-2018'!BM631","v":8.730748307921266},-4.864081641254598,-2.1319499965093134]
[1938,null,3.8666666666666667,{"$nulls":22},3.8666666666666667,{"$f":"'IV. Country level, 1310-2018'!BM632","v":4.1366183810425605},-0.2699517143758938,-3.9788586860469644]
[1939,null,3.6326576576576577,{"$nulls":22},3.6326576576576577,{"$f":"'IV. Country level, 1310-2018'!BM633","v":12.1883442702711},-8.555686612613442,-5.095325326569093]
[1940,null,3.6326576576576577,{"$nulls":22},3.6326576576576577,{"$f":"'IV. Country level, 1310-2018'!BM634","v":12.973180320123957},-9.340522662466299,-6.7009613069711005]
[1941,null,3.6326576576576577,{"$nulls":11},{"$f":"(2.9/75)*100","v":3.8666666666666667},{"$nulls":3},"Savings Bond E. 2.9% at 75 % face value issue",{"$nulls":6},3.6326576576576577,{"$f":"'IV. Country level, 1310-2018'!BM635","v":11.041382371954906},-7.408724714297248,-15.382306040383883]
[1942,null,3.088438438438439,{"$nulls":11},{"$f":"(2.515/74)*100","v":3.3986486486486487},{"$nulls":3},"Savings Bonds F and G, weighted 2.515% at 74% face value",{"$nulls":6},3.088438438438439,{"$f":"'IV. Country level, 1310-2018'!BM636","v":7.780294894708518},-4.691856456270079,-18.82515944424343]
[1943,null,3.088438438438439,{"$nulls":22},3.088438438438439,{"$f":"'IV. Country level, 1310-2018'!BM637","v":14.864343785958578},-11.775905347520139,-20.418219954470924]
[1944,null,3.088438438438439,{"$nulls":22},3.088438438438439,{"$f":"'IV. Country level, 1310-2018'!BM638","v":68.72193321358252},-65.63349477514407,-21.471013012236856]
[1945,null,2.6993243243243246,null,null,2,{"$nulls":12},"Anglo-American Loan. GPO (1945, 7-12)",{"$nulls":6},2.6993243243243246,{"$f":"'IV. Country level, 1310-2018'!BM639","v":27.06924986571704},-24.369925541392718,-22.688879076247975]
[1946,null,2,{"$nulls":22},2,{"$f":"'IV. Country level, 1310-2018'!BM640","v":21.70711018420592},-19.70711018420592,-21.85809953097089]
[1947,null,2,{"$nulls":22},2,{"$f":"'IV. Country level, 1310-2018'!BM641","v":18.710074066827822},-16.710074066827822,-20.554594409191054]
[1948,null,2,{"$nulls":22},2,{"$f":"'IV. Country level, 1310-2018'!BM642","v":17.93378716237507},-15.933787162375069,-12.347568757694523]
[1949,null,{"$f":"((C$670-C$641)/29)+C641","v":{"v":2.1724137931034484,"d":"2.17"}},{"$nulls":22},2.1724137931034484,{"$f":"'IV. Country level, 1310-2018'!BM643","v":1.0488134324339329},1.1236003606695155,-8.850579289144415]
[1950,null,{"$f":"((C$670-C$641)/29)+C642","v":{"v":2.344827586206897,"d":"2.34"}},{"$nulls":22},2.344827586206897,{"$f":"'IV. Country level, 1310-2018'!BM644","v":4.996197081268178},-2.6513694950612816,-5.841394924938483]
[1951,null,{"v":2.517241379310345,"d":"2.52"},{"$nulls":22},2.517241379310345,{"$f":"'IV. Country level, 1310-2018'!BM645","v":10.701556593978705},-8.18431521466836,-3.4210003977822936]
[1952,null,{"v":2.6896551724137936,"d":"2.69"},{"$nulls":22},2.6896551724137936,{"$f":"'IV. Country level, 1310-2018'!BM646","v":2.58065443395576},0.10900073845803337,-1.0039566013224233]
[1953,null,{"v":2.862068965517242,"d":"2.86"},{"$nulls":22},{"$f":"C646","v":2.862068965517242},{"$f":"'IV. Country level, 1310-2018'!BM647","v":1.5048886002816457},{"$f":"Z646-AA646","v":1.3571803652355963},-1.2085939069566394]
[1954,null,{"v":3.0344827586206904,"d":"3.03"},{"$nulls":22},3.0344827586206904,{"$f":"'IV. Country level, 1310-2018'!BM648","v":2.8017951353551767},0.23268762326551373,-1.1084641126295531]
[1955,null,{"v":3.206896551724139,"d":"3.21"},{"$nulls":22},3.206896551724139,{"$f":"'IV. Country level, 1310-2018'!BM649","v":2.221377138880121},0.9855194128440177,0.12391424772591364]
[1956,null,{"v":3.379310344827587,"d":"3.38"},{"$nulls":22},3.379310344827587,{"$f":"'IV. Country level, 1310-2018'!BM650","v":3.688171123597583},-0.30886077876999574,{"$f":"AVERAGE(AB646:AB652)","v":0.27544779748389875}]
[1957,null,{"v":3.5517241379310356,"d":"3.55"},{"$nulls":22},3.5517241379310356,{"$f":"'IV. Country level, 1310-2018'!BM651","v":5.502185072702713},-1.9504609347716775,0.4348158028153685]
[1958,null,{"v":3.724137931034484,"d":"3.72"},{"$nulls":22},3.724137931034484,{"$f":"'IV. Country level, 1310-2018'!BM652","v":3.2818046232145766},0.44233330781990743,0.5435082746841535]
[1959,null,{"v":3.8965517241379324,"d":"3.90"},{"$nulls":22},3.8965517241379324,{"$f":"'IV. Country level, 1310-2018'!BM653","v":2.726816137374003},1.1697355867639292,0.3663344320878409]
[1960,null,{"v":4.068965517241381,"d":"4.07"},{"$nulls":22},4.068965517241381,{"$f":"'IV. Country level, 1310-2018'!BM654","v":1.5962091146854958},2.472756402555885,0.4492164300885956]
[1961,null,{"v":4.241379310344829,"d":"4.24"},{"$nulls":22},4.241379310344829,{"$f":"'IV. Country level, 1310-2018'!BM655","v":3.2478443839978204},0.9935349263470088,0.7505075038117489]
[1962,null,{"v":4.413793103448278,"d":"4.41"},{"$nulls":22},4.413793103448278,{"$f":"'IV. Country level, 1310-2018'!BM656","v":4.6684905887784485},-0.2546974853301709,0.679114542031919]
[1963,null,{"v":4.586206896551726,"d":"4.59"},{"$nulls":22},4.586206896551726,{"$f":"'IV. Country level, 1310-2018'!BM657","v":4.314893689316439},0.27131320723528685,0.7180340125951185]
[1964,null,{"v":4.758620689655174,"d":"4.76"},{"$nulls":22},4.758620689655174,{"$f":"'IV. Country level, 1310-2018'!BM658","v":4.600044108364777},0.1585765812903972,0.6026117621463607]
[1965,null,{"v":4.931034482758623,"d":"4.93"},{"$nulls":22},4.931034482758623,{"$f":"'IV. Country level, 1310-2018'!BM659","v":4.988451907397526},-0.05741742463890365,0.731216489582143]
[1966,null,{"v":5.103448275862071,"d":"5.10"},{"$nulls":22},5.103448275862071,{"$f":"'IV. Country level, 1310-2018'!BM660","v":3.6612763951557445},1.4421718807063266,0.8480970672760276]
[1967,null,{"v":5.27586206896552,"d":"5.28"},{"$nulls":22},5.27586206896552,{"$f":"'IV. Country level, 1310-2018'!BM661","v":3.6110614195509396},1.66480064941458,0.8126136811345699]
[1968,null,{"v":5.448275862068968,"d":"5.45"},{"$nulls":22},5.448275862068968,{"$f":"'IV. Country level, 1310-2018'!BM662","v":3.554507843671482},1.8937680183974859,0.7182954539903238]
[1969,null,{"v":5.620689655172416,"d":"5.62"},{"$nulls":22},5.620689655172416,{"$f":"'IV. Country level, 1310-2018'!BM663","v":5.057223096645395},0.5634665585270211,0.6790744744273253]
[1970,null,{"v":5.793103448275865,"d":"5.79"},{"$nulls":22},5.793103448275865,{"$f":"'IV. Country level, 1310-2018'!BM664","v":5.770173944030783},0.022929504245081667,-0.20023655949270733]
[1971,null,{"v":5.965517241379313,"d":"5.97"},{"$nulls":22},5.965517241379313,{"$f":"'IV. Country level, 1310-2018'!BM665","v":6.467168250098639},-0.5016510087193256,-1.732011552339321]
[1972,null,{"v":6.137931034482762,"d":"6.14"},{"$nulls":22},6.137931034482762,{"$f":"'IV. Country level, 1310-2018'!BM666","v":6.469895316062654},-0.331964281579892,-2.6341426154959526]
[1973,null,{"v":6.31034482758621,"d":"6.31"},{"$nulls":22},6.31034482758621,{"$f":"'IV. Country level, 1310-2018'!BM667","v":11.023350184320112},-4.713005356733902,-3.417093436926377]
[1974,null,{"v":6.482758620689658,"d":"6.48"},{"$nulls":22},6.482758620689658,{"$f":"'IV. Country level, 1310-2018'!BM668","v":15.540382921201374},-9.057624300511716,-3.9476867816617007]
[1975,null,{"v":6.655172413793107,"d":"6.66"},{"$nulls":22},6.655172413793107,{"$f":"'IV. Country level, 1310-2018'!BM669","v":11.076321837492042},-4.421149423698935,-3.922973881348962]
[1976,null,{"v":6.827586206896555,"d":"6.83"},{"$nulls":22},6.827586206896555,{"$f":"'IV. Country level, 1310-2018'!BM670","v":11.744775398382505},-4.917189191485949,-4.29391453111886]
[1977,null,{"$f":"AVERAGE(E667:Q673)","v":7},{"$nulls":22},7,{"$f":"'IV. Country level, 1310-2018'!BM671","v":10.691223908902185},-3.6912239089021845,-4.240455177017308]
[1978,null,7.8,{"$nulls":22},7.8,{"$f":"'IV. Country level, 1310-2018'!BM672","v":8.128660706530155},-0.32866070653015544,-3.371233233275658]
[1979,null,8.166666666666666,{"$nulls":22},8.166666666666666,{"$f":"'IV. Country level, 1310-2018'!BM673","v":11.095215496635848},-2.9285488299691824,-2.792625324813062]
[1980,null,8,{"$nulls":11},7,null,null,"US EE Savings Bonds (Treasury Direct data)",{"$nulls":7},8,{"$f":"'IV. Country level, 1310-2018'!BM674","v":12.338789878023034},-4.338789878023034,-1.852647178908136]
[1981,null,7.9,{"$nulls":11},8.6,{"$nulls":10},7.9,{"$f":"'IV. Country level, 1310-2018'!BM675","v":10.873070694320164},-2.973070694320164,-0.9830722436661686]
[1982,null,7.833333333333333,{"$nulls":11},8.9,{"$nulls":10},7.833333333333333,{"$f":"'IV. Country level, 1310-2018'!BM676","v":8.204227397794096},-0.3708940644607628,-0.5438990115932212]
[1983,null,7.771428571428571,{"$nulls":11},7.5,{"$nulls":10},7.771428571428571,{"$f":"'IV. Country level, 1310-2018'!BM677","v":6.108770741580041},1.6626578298485306,0.5259750504028664]
[1984,null,7.628571428571428,{"$nulls":11},7.5,{"$nulls":10},7.628571428571428,{"$f":"'IV. Country level, 1310-2018'!BM678","v":5.23277079077984},2.395800637791588,1.710118156272762]
[1985,null,7.257142857142857,{"$nulls":11},7.5,{"$nulls":10},7.257142857142857,{"$f":"'IV. Country level, 1310-2018'!BM679","v":4.51159093916238},2.7455519179804773,2.567587009067624]
[1986,null,6.8428571428571425,{"$nulls":11},7.4,{"$nulls":10},6.8428571428571425,{"$f":"'IV. Country level, 1310-2018'!BM680","v":2.282287538853713},4.56056960400343,2.8544511279851443]
[1987,null,6.628571428571428,{"$nulls":11},6,{"$nulls":10},6.628571428571428,{"$f":"'IV. Country level, 1310-2018'!BM681","v":2.6783595655051906},3.9502118630662375,2.7121476812414422]
[1988,null,6.414285714285714,{"$nulls":11},6,{"$nulls":10},6.414285714285714,{"$f":"'IV. Country level, 1310-2018'!BM682","v":3.385074439041844},3.0292112752438696,2.5377717413956975]
[1989,null,6.2,{"$nulls":11},6,{"$nulls":10},6.2,{"$f":"'IV. Country level, 1310-2018'!BM683","v":4.562845232038121},1.6371547679618788,2.434184940693143]
[1990,null,5.728571428571429,{"$nulls":11},6,{"$nulls":10},5.728571428571429,{"$f":"'IV. Country level, 1310-2018'!BM684","v":5.062037725928813},0.6665337026426155,2.0691600757806454]
[1991,null,5.457142857142857,{"$nulls":11},6,{"$nulls":10},5.457142857142857,{"$f":"'IV. Country level, 1310-2018'!BM685","v":4.2819737982714825},1.1751690588713748,1.8372604810758568]
[1992,null,5.185714285714286,{"$nulls":11},6,{"$nulls":10},5.185714285714286,{"$f":"'IV. Country level, 1310-2018'!BM686","v":3.1652699726516884},2.0204443130625975,1.7083042751442872]
[1993,null,4.965714285714286,{"$nulls":11},4.1,{"$nulls":10},4.965714285714286,{"$f":"'IV. Country level, 1310-2018'!BM687","v":2.960318736098338},2.0053955496159483,1.8159426972291663]
[1994,null,4.913571428571429,{"$nulls":11},4.1,{"$nulls":10},4.913571428571429,{"$f":"'IV. Country level, 1310-2018'!BM688","v":2.5866567284387134},2.3269147001327157,2.1058874764115445]
[1995,null,4.746428571428571,{"$nulls":11},4.1,{"$nulls":10},4.746428571428571,{"$f":"'IV. Country level, 1310-2018'!BM689","v":2.619910737705692},2.126517833722879,2.431158716890114]
[1996,null,4.567857142857142,{"$nulls":11},{"$f":"(4.36+4.56)/2","v":4.46},{"$nulls":10},4.567857142857142,{"$f":"'IV. Country level, 1310-2018'!BM690","v":2.1772334203011106},2.3906237225560316,2.6036181635044087]
[1997,null,4.7871428571428565,{"$nulls":11},{"$f":"(5.68+5.59)/2","v":5.635},{"$nulls":10},4.7871428571428565,{"$f":"'IV. Country level, 1310-2018'!BM691","v":2.0909957002235915},2.696147156919265,2.622507029856305]
[1998,null,4.813571428571428,{"$nulls":11},{"$f":"(5.06+4.6)/2","v":4.83},{"$nulls":10},4.813571428571428,{"$f":"'IV. Country level, 1310-2018'!BM692","v":1.3615036863500678},3.45206774222136,2.606338074129852]
[1999,null,4.742857142857142,{"$nulls":11},{"$f":"(4.31+5.19)/2","v":4.75},{"$nulls":10},4.742857142857142,{"$f":"'IV. Country level, 1310-2018'!BM693","v":1.515196703494479},3.227660439362663,2.578373717207072]
[2000,null,4.482142857142857,{"$nulls":11},{"$f":"(5.73+5.54)/2","v":5.635},{"$nulls":10},4.482142857142857,{"$f":"'IV. Country level, 1310-2018'!BM694","v":2.344525243063633},2.1376176140792236,2.5214496917145763]
[2001,null,4.1121428571428575,{"$nulls":11},{"$f":"(4.5+4.07)/2","v":4.285},{"$nulls":10},4.1121428571428575,{"$f":"'IV. Country level, 1310-2018'!BM695","v":1.8984108470953187},2.213732010047539,2.3586660781028956]
[2002,null,3.924285714285714,{"$nulls":11},{"$f":"(3.96+3.25)/2","v":3.605},{"$nulls":10},3.924285714285714,{"$f":"'IV. Country level, 1310-2018'!BM696","v":1.9935183790222935},1.9307673352634205,2.06472135981613]
[2003,null,3.8528571428571428,{"$nulls":11},{"$f":"(2.66+2.61)/2","v":2.635},{"$nulls":10},3.8528571428571428,{"$f":"'IV. Country level, 1310-2018'!BM697","v":1.8607015987485798},1.992155544108563,1.78531108008488]
[2004,null,3.6378571428571433,{"$nulls":11},{"$f":"(2.84+3.25)/2","v":3.045},{"$nulls":10},3.6378571428571433,{"$f":"'IV. Country level, 1310-2018'!BM698","v":2.0811952812196446},1.5566618616374988,1.514976627686435]
[2005,null,3.4214285714285713,{"$nulls":11},{"$f":"(3.42+3.61)/2","v":3.5149999999999997},{"$nulls":10},3.4214285714285713,{"$f":"'IV. Country level, 1310-2018'!BM699","v":2.026973857214569},1.3944547142140022,1.319451863454338]
[2006,null,3.18,{"$nulls":11},{"$f":"(4.11+4.39)/2","v":4.25},{"$nulls":10},3.18,{"$f":"'IV. Country level, 1310-2018'!BM700","v":1.9082115187560866},1.2717884812439135,1.3571354660644506]
[2007,null,3.065,{"$nulls":11},{"$f":"(4.15+4.11)/2","v":4.130000000000001},{"$nulls":10},3.065,{"$f":"'IV. Country level, 1310-2018'!BM701","v":2.8197235527098936},0.24527644729010634,1.0736307812794865]
[2008,null,2.841428571428571,{"$nulls":11},{"$f":"(2.74+2.8)/2","v":2.77},{"$nulls":10},2.841428571428571,{"$f":"'IV. Country level, 1310-2018'!BM702","v":1.9963699110057105},0.8450586604228607,0.7089589774259091]
[2009,null,2.442142857142857,{"$nulls":11},{"$f":"(1.64+2.19)/2","v":1.915},{"$nulls":10},2.442142857142857,{"$f":"'IV. Country level, 1310-2018'!BM703","v":0.2475903036086464},2.1945525535342107,0.41145004965071724]
[2010,null,1.968571428571429,{"$nulls":11},{"$f":"(1.5+2.16)/2","v":1.83},{"$nulls":10},1.968571428571429,{"$f":"'IV. Country level, 1310-2018'!BM704","v":1.9609486779576155},7.622750613813567E-3,0.24120896962174168]
[2011,null,1.5864285714285717,{"$nulls":11},{"$f":"(1.77+1.19)/2","v":1.48},{"$nulls":10},1.5864285714285717,{"$f":"'IV. Country level, 1310-2018'!BM705","v":2.582469336766115},-0.9960407653375434,0.21839497744688588]
[2012,null,1.3864285714285711,{"$nulls":11},{"$f":"(0.81+0.63)/2","v":0.72},{"$nulls":10},1.3864285714285711,{"$f":"'IV. Country level, 1310-2018'!BM706","v":2.0745363516409117},-0.6881077802123405,0.2598939124631103]
[2013,null,1.282857142857143,{"$nulls":11},{"$f":"(0.68+1.19)/2","v":0.935},{"$nulls":10},1.282857142857143,{"$f":"'IV. Country level, 1310-2018'!BM707","v":1.2027562218160588},0.08010092104108413,0.09722705957727062]
[2014,null,1.26,{"$nulls":11},{"$f":"(1.42+1.49)/2","v":1.455},{"$nulls":10},1.26,{"$f":"'IV. Country level, 1310-2018'!BM708","v":1.1744214979338838},0.08557850206611617,0.08857273806101154]
[2015,null,1.3871428571428572,{"$nulls":11},{"$f":"(1.35+1.39)/2","v":1.37},{"$nulls":10},1.3871428571428572,{"$f":"'IV. Country level, 1310-2018'!BM709","v":0.251591651606426},1.1355512055364312,0.20197320453780349]
[2016,null,1.4983333333333333,{"$nulls":11},{"$f":"(1.31+1.07)/2","v":1.19},{"$nulls":10},1.4983333333333333,{"$f":"'IV. Country level, 1310-2018'!BM710","v":0.44244875},1.0558845833333332,0.35032003532949413]
[2017,null,1.611,{"$nulls":11},{"$f":"(1.68+1.66)/2","v":1.67},{"$nulls":10},{"$f":"C710","v":1.611},{"$f":"'IV. Country level, 1310-2018'!BM711","v":1.6639575},{"$f":"Z710-AA710","v":-0.05295749999999999},0.40436385818717613]
[2018,null,1.6500000000000001,{"$nulls":11},{"$f":"(2.18+2.56)/2","v":2.37},{"$nulls":10},1.6500000000000001,{"$f":"'IV. Country level, 1310-2018'!BM712","v":1.8522375},-0.20223749999999985,0.4840601972174412]

{"sheet":"IX. War frequency, 1495-2018","index":9,"n_rows":527,"n_cols":17,"rows_kept":527}
["back to contents"]
[null,"Safe asset provider battle deaths (leading role)","Other advanced economy battle deaths",null,"Global nominal rate, % (RHS)",null,"Safe asset provider battle deaths (leading role)","Other advanced economy battle deaths","Combined safe asset provider + other advanced economy",{"$nulls":7},"Note: the 'combined safe asset provider + other advanced economy' series is denoted 'other advanced economy battle deaths' in SWP 845"]
[null,"Severity' (column 6) over 'duration' (column 3) ","Severity' (column 6) over 'duration' (column 3) ",{"$nulls":3},"Intensity' (column 7) over 'duration' (column 3)","Intensity' (column 7) over 'duration' (column 3)"]
[1495,4000,null,null,{"$f":"'II. Headline series'!K193","v":{"v":8.891944231741615,"d":"8.892"}},null,54.5,null,{"$f":"SUM(G4:H4)","v":54.5}]
[1496,4000,null,null,{"$f":"'II. Headline series'!K194","v":{"v":8.873033210376654,"d":"8.873"}},null,54.5,null,{"$f":"SUM(G5:H5)","v":54.5}]
[1497,null,3000,null,{"$f":"'II. Headline series'!K195","v":{"v":9.008680398198516,"d":"9.009"}},null,null,45,45]
[1498,{"$nulls":3},{"$f":"'II. Headline series'!K196","v":{"v":9.049723032798758,"d":"9.050"}},{"$nulls":3},0]
[1499,1000,2000,null,{"$f":"'II. Headline series'!K197","v":{"v":9.200667170447982,"d":"9.201"}},null,15,29,44]
[1500,1000,null,null,{"$f":"'II. Headline series'!K198","v":{"v":9.391836850810805,"d":"9.392"}},null,15,null,15]
[1501,1000,6000,null,{"$f":"'II. Headline series'!K199","v":{"v":8.511432108643348,"d":"8.511"}},null,15,{"$f":"269/3","v":89.66666666666667},104.66666666666667]
[1502,1000,6000,null,{"$f":"'II. Headline series'!K200","v":{"v":8.732138046223094,"d":"8.732"}},null,15,{"$f":"269/3","v":89.66666666666667},104.66666666666667]
[1503,null,6000,null,{"$f":"'II. Headline series'!K201","v":{"v":9.017290087583575,"d":"9.017"}},null,null,{"$f":"269/3","v":89.66666666666667},89.66666666666667]
[1504,{"$nulls":3},{"$f":"'II. Headline series'!K202","v":{"v":8.63942873629239,"d":"8.639"}},{"$nulls":3},0]
[1505,{"$nulls":3},{"$f":"'II. Headline series'!K203","v":{"v":8.860678796792218,"d":"8.861"}},{"$nulls":3},0]
[1506,{"$nulls":3},{"$f":"'II. Headline series'!K204","v":{"v":8.619749152441734,"d":"8.620"}},{"$nulls":3},0]
[1507,{"$nulls":3},{"$f":"'II. Headline series'!K205","v":{"v":8.598708380349017,"d":"8.599"}},{"$nulls":3},0]
[1508,10000,null,null,{"$f":"'II. Headline series'!K206","v":{"v":9.015205740667936,"d":"9.015"}},null,145,null,145]
[1509,{"$nulls":3},{"$f":"'II. Headline series'!K207","v":{"v":9.065024314832065,"d":"9.065"}},{"$nulls":3},0]
[1510,{"$nulls":3},{"$f":"'II. Headline series'!K208","v":{"v":8.795041919985634,"d":"8.795"}},{"$nulls":3},0]
[1511,6000,null,null,{"$f":"'II. Headline series'!K209","v":{"v":8.696773064852763,"d":"8.697"}},null,{"$f":"261/3","v":87},null,87]
[1512,6000,{"$f":"24000/7","v":3428.5714285714284},null,{"$f":"'II. Headline series'!K210","v":{"v":8.836207280784587,"d":"8.836"}},null,{"$f":"261/3","v":87},{"$f":"343/7","v":49},136]
[1513,6000,{"$f":"(24000/7)+2000","v":5428.571428571428},null,{"$f":"'II. Headline series'!K211","v":{"v":8.791784971238654,"d":"8.792"}},null,{"$f":"261/3","v":87},{"$f":"H$21+(57/2)","v":77.5},164.5]
[1514,null,{"$f":"(24000/7)+2000","v":5428.571428571428},null,{"$f":"'II. Headline series'!K212","v":{"v":8.959950902817631,"d":"8.960"}},null,null,{"$f":"H$21+(57/2)","v":77.5},77.5]
[1515,null,{"$f":"(24000/7)+6000","v":9428.571428571428},null,{"$f":"'II. Headline series'!K213","v":{"v":9.068795750218237,"d":"9.069"}},null,null,{"$f":"H21+43","v":92},92]
[1516,null,{"$f":"24000/7","v":3428.5714285714284},null,{"$f":"'II. Headline series'!K214","v":{"v":9.09895699116933,"d":"9.099"}},null,null,{"$f":"H21","v":49},49]
[1517,null,{"$f":"24000/7","v":3428.5714285714284},null,{"$f":"'II. Headline series'!K215","v":{"v":8.885911959807782,"d":"8.886"}},null,null,{"$f":"H22","v":77.5},77.5]
[1518,null,{"$f":"24000/7","v":3428.5714285714284},null,{"$f":"'II. Headline series'!K216","v":{"v":8.75459813560163,"d":"8.755"}},null,null,{"$f":"H23","v":77.5},77.5]
[1519,{"$nulls":3},{"$f":"'II. Headline series'!K217","v":{"v":8.872182179016267,"d":"8.872"}},{"$nulls":3},0]
[1520,{"$nulls":3},{"$f":"'II. Headline series'!K218","v":{"v":9.039676175438487,"d":"9.040"}},{"$nulls":3},0]
[1521,6000,6800,null,{"$f":"'II. Headline series'!K219","v":{"v":9.12031063045944,"d":"9.120"}},null,{"$f":"958/10","v":95.8},{"$f":"420/6","v":70},165.8]
[1522,6000,{"$f":"6800+1000","v":7800},null,{"$f":"'II. Headline series'!K220","v":{"v":9.218346222162529,"d":"9.218"}},null,{"$f":"958/10","v":95.8},{"$f":"H30+41","v":111},206.8]
[1523,6000,6800,null,{"$f":"'II. Headline series'!K221","v":{"v":8.834249052700509,"d":"8.834"}},null,95.8,{"$f":"$H$30","v":70},165.8]
[1524,6000,6800,null,{"$f":"'II. Headline series'!K222","v":{"v":9.227134796452514,"d":"9.227"}},null,95.8,{"$f":"$H$30","v":70},165.8]
[1525,6000,6800,null,{"$f":"'II. Headline series'!K223","v":{"v":8.934041894848669,"d":"8.934"}},null,95.8,{"$f":"$H$30","v":70},165.8]
[1526,6000,6800,null,{"$f":"'II. Headline series'!K224","v":{"v":9.727653970845232,"d":"9.728"}},null,{"$f":"(958/10)+(249/3)","v":178.8},null,178.8]
[1527,6000,6800,null,{"$f":"'II. Headline series'!K225","v":{"v":10.08966981989605,"d":"10.090"}},null,{"$f":"(958/10)+(249/3)","v":178.8},null,178.8]
[1528,6000,6800,null,{"$f":"'II. Headline series'!K226","v":{"v":10.640910184147453,"d":"10.641"}},null,{"$f":"(958/10)+(249/3)","v":178.8},null,178.8]
[1529,null,6800,null,{"$f":"'II. Headline series'!K227","v":{"v":9.61656653322977,"d":"9.617"}},null,95.8,null,95.8]
[1530,null,6800,null,{"$f":"'II. Headline series'!K228","v":{"v":10.205088243302066,"d":"10.205"}},{"$nulls":3},0]
[1531,{"$nulls":3},{"$f":"'II. Headline series'!K229","v":{"v":10.029543398295521,"d":"10.030"}},{"$nulls":3},0]
[1532,null,{"$f":"(28000/3)+2000","v":11333.333333333334},null,{"$f":"'II. Headline series'!K230","v":{"v":9.540502138779472,"d":"9.541"}},null,{"$f":"55/2","v":27.5},{"$f":"384/3","v":128},155.5]
[1533,null,{"$f":"(28000/3)+2000","v":11333.333333333334},null,{"$f":"'II. Headline series'!K231","v":{"v":8.996218891213331,"d":"8.996"}},null,{"$f":"55/2","v":27.5},{"$f":"384/3","v":128},155.5]
[1534,null,{"$f":"28000/3","v":9333.333333333334},null,{"$f":"'II. Headline series'!K232","v":{"v":9.10235452899207,"d":"9.102"}},null,null,{"$f":"384/3","v":128},128]
[1535,{"$nulls":3},{"$f":"'II. Headline series'!K233","v":{"v":8.769148982469613,"d":"8.769"}},{"$nulls":3},0]
[1536,16000,null,null,{"$f":"'II. Headline series'!K234","v":{"v":7.981011249448631,"d":"7.981"}},null,{"$f":"438/2","v":219},null,219]
[1537,16000,9700,null,{"$f":"'II. Headline series'!K235","v":{"v":8.19408983342116,"d":"8.194"}},null,{"$f":"438/2","v":219},{"$f":"1329/10","v":132.9},351.9]
[1538,null,9700,null,{"$f":"'II. Headline series'!K236","v":{"v":8.704051354889815,"d":"8.704"}},null,null,{"$f":"1329/10","v":132.9},132.9]
[1539,null,9700,null,{"$f":"'II. Headline series'!K237","v":{"v":8.851216548872154,"d":"8.851"}},null,null,{"$f":"1329/10","v":132.9},132.9]
[1540,null,9700,null,{"$f":"'II. Headline series'!K238","v":{"v":8.639040390046034,"d":"8.639"}},null,null,{"$f":"1329/10","v":132.9},132.9]
[1541,null,9700,null,{"$f":"'II. Headline series'!K239","v":{"v":8.064520120763921,"d":"8.065"}},null,null,{"$f":"1329/10","v":132.9},132.9]
[1542,{"$f":"47000/2","v":23500},{"$f":"9700+(13000/8)","v":11325},null,{"$f":"'II. Headline series'!K240","v":{"v":7.989545102300573,"d":"7.990"}},null,{"$f":"629/2","v":314.5},{"$f":"(1329/10)+176/8","v":154.9},469.4]
[1543,{"$f":"47000/2","v":23500},{"$f":"9700+(13000/8)","v":11325},null,{"$f":"'II. Headline series'!K241","v":{"v":8.585598476487858,"d":"8.586"}},null,{"$f":"629/2","v":314.5},{"$f":"(1329/10)+176/8","v":154.9},469.4]
[1544,null,{"$f":"9700+(13000/8)+4000","v":15325},null,{"$f":"'II. Headline series'!K242","v":{"v":8.926179301239912,"d":"8.926"}},null,null,{"$f":"(1329/10)+(176/8)+(107/2)","v":208.4},208.4]
[1545,null,{"$f":"9700+(13000/8)+4000","v":15325},null,{"$f":"'II. Headline series'!K243","v":{"v":8.376816568148305,"d":"8.377"}},null,null,{"$f":"(1329/10)+(176/8)+(107/2)","v":208.4},208.4]
[1546,null,{"$f":"9700+(13000/8)","v":11325},null,{"$f":"'II. Headline series'!K244","v":{"v":9.56553129882378,"d":"9.566"}},null,null,{"$f":"H52","v":154.9},154.9]
[1547,null,1625,null,{"$f":"'II. Headline series'!K245","v":{"v":9.588166930044633,"d":"9.588"}},null,null,{"$f":"79","v":79},79]
[1548,null,1625,null,{"$f":"'II. Headline series'!K246","v":{"v":9.484923939922181,"d":"9.485"}},{"$nulls":3},0]
[1549,null,{"$f":"1625+6000","v":7625},null,{"$f":"'II. Headline series'!K247","v":{"v":8.952864005292998,"d":"8.953"}},{"$nulls":3},0]
[1550,{"$nulls":3},{"$f":"'II. Headline series'!K248","v":{"v":8.481281279218566,"d":"8.481"}},{"$nulls":3},0]
[1551,null,{"$f":"44000/5","v":8800},null,{"$f":"'II. Headline series'!K249","v":{"v":8.81258452879717,"d":"8.813"}},null,null,{"$f":"578/5","v":115.6},115.6]
[1552,{"$f":"51000/4","v":12750},{"$f":"44000/5","v":8800},null,{"$f":"'II. Headline series'!K250","v":{"v":9.553721656996004,"d":"9.554"}},null,{"$f":"668/4","v":167},{"$f":"578/5","v":115.6},282.6]
[1553,{"$f":"51000/4","v":12750},{"$f":"44000/5","v":8800},null,{"$f":"'II. Headline series'!K251","v":{"v":9.829742607086034,"d":"9.830"}},null,{"$f":"668/4","v":167},{"$f":"578/5","v":115.6},282.6]
[1554,{"$f":"51000/4","v":12750},{"$f":"44000/5","v":8800},null,{"$f":"'II. Headline series'!K252","v":{"v":10.189517658256342,"d":"10.190"}},null,{"$f":"668/4","v":167},{"$f":"578/5","v":115.6},282.6]
[1555,{"$f":"51000/4","v":12750},{"$f":"44000/5","v":8800},null,{"$f":"'II. Headline series'!K253","v":{"v":10.322813008899264,"d":"10.323"}},null,{"$f":"668/4","v":167},{"$f":"578/5","v":115.6},282.6]
[1556,8000,{"$f":"52000/6","v":8666.666666666666},null,{"$f":"'II. Headline series'!K254","v":{"v":10.229501602731442,"d":"10.230"}},null,{"$f":"316/3","v":105.33333333333333},{"$f":"676/6","v":112.66666666666667},218]
[1557,8000,{"$f":"52000/6","v":8666.666666666666},null,{"$f":"'II. Headline series'!K255","v":{"v":11.184146026023942,"d":"11.184"}},null,{"$f":"316/3","v":105.33333333333333},{"$f":"676/6","v":112.66666666666667},218]
[1558,8000,{"$f":"52000/6","v":8666.666666666666},null,{"$f":"'II. Headline series'!K256","v":{"v":11.39246589850981,"d":"11.392"}},null,{"$f":"316/3","v":105.33333333333333},{"$f":"676/6","v":112.66666666666667},218]
[1559,{"$f":"24000/5","v":4800},{"$f":"(52000/6)+6000","v":14666.666666666666},null,{"$f":"'II. Headline series'!K257","v":{"v":11.13417338778683,"d":"11.134"}},null,{"$f":"310/5","v":62},{"$f":"(676/6)+78","v":190.66666666666669},252.66666666666669]
[1560,{"$f":"24000/5","v":4800},{"$f":"52000/6","v":8666.666666666666},null,{"$f":"'II. Headline series'!K258","v":{"v":10.447635214050766,"d":"10.448"}},null,{"$f":"310/5","v":62},{"$f":"676/6","v":112.66666666666667},{"$f":"SUM(G69:H69)","v":174.66666666666669}]
[1561,{"$f":"24000/5","v":4800},{"$f":"52000/6","v":8666.666666666666},null,{"$f":"'II. Headline series'!K259","v":{"v":10.547457731088992,"d":"10.547"}},null,{"$f":"310/5","v":62},{"$f":"676/6","v":112.66666666666667},174.66666666666669]
[1562,{"$f":"24000/5","v":4800},3000,null,{"$f":"'II. Headline series'!K260","v":{"v":10.448705813149612,"d":"10.449"}},null,{"$f":"310/5","v":62},{"$f":"77/2","v":38.5},100.5]
[1563,{"$f":"24000/5","v":4800},3000,null,{"$f":"'II. Headline series'!K261","v":{"v":10.292208262476928,"d":"10.292"}},null,{"$f":"310/5","v":62},{"$f":"77/2","v":38.5},100.5]
[1564,{"$nulls":3},{"$f":"'II. Headline series'!K262","v":{"v":10.45841579029454,"d":"10.458"}},{"$nulls":3},0]
[1565,null,8000,null,{"$f":"'II. Headline series'!K263","v":{"v":10.80271086305025,"d":"10.803"}},null,null,{"$f":"306/3","v":102},102]
[1566,null,8000,null,{"$f":"'II. Headline series'!K264","v":{"v":10.329728094226239,"d":"10.330"}},null,null,{"$f":"306/3","v":102},102]
[1567,null,8000,null,{"$f":"'II. Headline series'!K265","v":{"v":9.308270232059598,"d":"9.308"}},null,null,{"$f":"306/3","v":102},102]
[1568,{"$nulls":3},{"$f":"'II. Headline series'!K266","v":{"v":9.238009157847687,"d":"9.238"}},{"$nulls":3},0]
[1569,{"$f":"48000/11","v":4363.636363636364},null,null,{"$f":"'II. Headline series'!K267","v":{"v":9.230973019396746,"d":"9.231"}},null,{"$f":"608/11","v":55.27272727272727},null,55.27272727272727]
[1570,{"$f":"48000/11","v":4363.636363636364},null,null,{"$f":"'II. Headline series'!K268","v":{"v":9.05799319401603,"d":"9.058"}},null,{"$f":"608/11","v":55.27272727272727},null,55.27272727272727]
[1571,4363.636363636364,null,null,{"$f":"'II. Headline series'!K269","v":{"v":9.361678097585685,"d":"9.362"}},null,55.27272727272727,null,55.27272727272727]
[1572,4363.636363636364,null,null,{"$f":"'II. Headline series'!K270","v":{"v":8.93012254663277,"d":"8.930"}},null,55.27272727272727,null,55.27272727272727]
[1573,4363.636363636364,null,null,{"$f":"'II. Headline series'!K271","v":{"v":8.903722458742195,"d":"8.904"}},null,55.27272727272727,null,55.27272727272727]
[1574,4363.636363636364,null,null,{"$f":"'II. Headline series'!K272","v":{"v":9.008791485774333,"d":"9.009"}},null,55.27272727272727,null,55.27272727272727]
[1575,4363.636363636364,null,null,{"$f":"'II. Headline series'!K273","v":{"v":9.235973500116819,"d":"9.236"}},null,55.27272727272727,null,55.27272727272727]
[1576,4363.636363636364,{"$f":"48000/7","v":6857.142857142857},null,{"$f":"'II. Headline series'!K274","v":{"v":9.03166200151551,"d":"9.032"}},null,55.27272727272727,{"$f":"600/7","v":85.71428571428571},140.98701298701297]
[1577,4363.636363636364,{"$f":"48000/7","v":6857.142857142857},null,{"$f":"'II. Headline series'!K275","v":{"v":9.021130270146141,"d":"9.021"}},null,55.27272727272727,{"$f":"600/7","v":85.71428571428571},140.98701298701297]
[1578,4363.636363636364,6857.142857142857,null,{"$f":"'II. Headline series'!K276","v":{"v":8.856226493760634,"d":"8.856"}},null,55.27272727272727,85.71428571428571,140.98701298701297]
[1579,4363.636363636364,6857.142857142857,null,{"$f":"'II. Headline series'!K277","v":{"v":8.884489979918529,"d":"8.884"}},null,55.27272727272727,85.71428571428571,140.98701298701297]
[1580,{"$f":"2000","v":2000},6857.142857142857,null,{"$f":"'II. Headline series'!K278","v":{"v":9.051199768353884,"d":"9.051"}},null,50,85.71428571428571,135.71428571428572]
[1581,null,6857.142857142857,null,{"$f":"'II. Headline series'!K279","v":{"v":8.962826673177352,"d":"8.963"}},null,null,85.71428571428571,85.71428571428571]
[1582,null,6857.142857142857,null,{"$f":"'II. Headline series'!K280","v":{"v":9.053215605031703,"d":"9.053"}},null,null,85.71428571428571,85.71428571428571]
[1583,null,{"$f":"17000/7","v":2428.5714285714284},null,{"$f":"'II. Headline series'!K281","v":{"v":9.07982607584384,"d":"9.080"}},null,null,{"$f":"210/7","v":30},30]
[1584,null,{"$f":"17000/7","v":2428.5714285714284},null,{"$f":"'II. Headline series'!K282","v":{"v":8.925651416708707,"d":"8.926"}},null,null,{"$f":"210/7","v":30},30]
[1585,{"$f":"(48000/19)","v":2526.315789473684},{"$f":"17000/7","v":2428.5714285714284},null,{"$f":"'II. Headline series'!K283","v":{"v":8.747337037172516,"d":"8.747"}},null,{"$f":"588/19","v":30.94736842105263},30,60.94736842105263]
[1586,{"$f":"(48000/19)","v":2526.315789473684},{"$f":"17000/7","v":2428.5714285714284},null,{"$f":"'II. Headline series'!K284","v":{"v":8.760031551450432,"d":"8.760"}},null,{"$f":"588/19","v":30.94736842105263},30,60.94736842105263]
[1587,2526.315789473684,{"$f":"(17000/7)+4000","v":6428.571428571428},null,{"$f":"'II. Headline series'!K285","v":{"v":8.693040715651593,"d":"8.693"}},null,30.94736842105263,{"$f":"(210/7)+49","v":79},109.94736842105263]
[1588,2526.315789473684,{"$f":"17000/7","v":2428.5714285714284},null,{"$f":"'II. Headline series'!K286","v":{"v":8.625968305501374,"d":"8.626"}},null,30.94736842105263,30,60.94736842105263]
[1589,2526.315789473684,{"$f":"(17000/7)+(16000/9)","v":4206.349206349207},null,{"$f":"'II. Headline series'!K287","v":{"v":9.150996904243565,"d":"9.151"}},null,30.94736842105263,{"$f":"(210/7)+(195/9)","v":51.66666666666667},82.6140350877193]
[1590,2526.315789473684,{"$f":"16000/9","v":1777.7777777777778},null,{"$f":"'II. Headline series'!K288","v":{"v":8.75093442434324,"d":"8.751"}},null,30.94736842105263,{"$f":"195/9","v":21.666666666666668},52.6140350877193]
[1591,2526.315789473684,{"$f":"16000/9","v":1777.7777777777778},null,{"$f":"'II. Headline series'!K289","v":{"v":8.708177543052477,"d":"8.708"}},null,30.94736842105263,{"$f":"195/9","v":21.666666666666668},52.6140350877193]
[1592,2526.315789473684,{"$f":"16000/9","v":1777.7777777777778},null,{"$f":"'II. Headline series'!K290","v":{"v":8.062274128389097,"d":"8.062"}},null,30.94736842105263,21.666666666666668,52.6140350877193]
[1593,2526.315789473684,{"$f":"(16000/9)+(90000/13)","v":8700.854700854701},null,{"$f":"'II. Headline series'!K291","v":{"v":8.461227596848495,"d":"8.461"}},null,30.94736842105263,21.666666666666668,52.6140350877193]
[1594,2526.315789473684,{"$f":"(16000/9)+(90000/13)","v":8700.854700854701},null,{"$f":"'II. Headline series'!K292","v":{"v":8.723567835879505,"d":"8.724"}},null,30.94736842105263,21.666666666666668,52.6140350877193]
[1595,2526.315789473684,{"$f":"(16000/9)+(90000/13)","v":8700.854700854701},null,{"$f":"'II. Headline series'!K293","v":{"v":8.805550299598409,"d":"8.806"}},null,30.94736842105263,21.666666666666668,52.6140350877193]
[1596,2526.315789473684,{"$f":"(16000/9)+(90000/13)","v":8700.854700854701},null,{"$f":"'II. Headline series'!K294","v":{"v":8.434538403614791,"d":"8.435"}},null,30.94736842105263,21.666666666666668,52.6140350877193]
[1597,2526.315789473684,{"$f":"(16000/9)+(90000/13)","v":8700.854700854701},null,{"$f":"'II. Headline series'!K295","v":{"v":8.590789799333892,"d":"8.591"}},null,30.94736842105263,{"$f":"(195/9)+(1086/13)","v":105.2051282051282},136.15249662618083]
[1598,2526.315789473684,{"$f":"90000/13","v":6923.076923076923},null,{"$f":"'II. Headline series'!K296","v":{"v":8.387425446351456,"d":"8.387"}},null,30.94736842105263,{"$f":"(1086/13)","v":83.53846153846153},114.48582995951416]
[1599,{"$f":"(48000/19)","v":2526.315789473684},{"$f":"90000/13","v":6923.076923076923},null,{"$f":"'II. Headline series'!K297","v":{"v":8.513754684684068,"d":"8.514"}},null,30.94736842105263,{"$f":"(1086/13)","v":83.53846153846153},114.48582995951416]
[1600,{"$f":"100000/41","v":2439.0243902439024},{"$f":"(B$108)+(90000/13)","v":9449.392712550607},null,{"$f":"'II. Headline series'!K298","v":{"v":8.60013464841721,"d":"8.600"}},null,24,83.53846153846153,107.53846153846153]
[1601,{"$f":"100000/41","v":2439.0243902439024},{"$f":"(B$108)+(90000/13)","v":9449.392712550607},null,{"$f":"'II. Headline series'!K299","v":{"v":8.628915427154517,"d":"8.629"}},null,null,83.53846153846153,83.53846153846153]
[1602,2439.0243902439024,{"$f":"(B$108)+(90000/13)","v":9449.392712550607},null,{"$f":"'II. Headline series'!K300","v":{"v":8.513080461869096,"d":"8.513"}},null,null,83.53846153846153,83.53846153846153]
[1603,2439.0243902439024,{"$f":"(B$108)+(90000/13)","v":9449.392712550607},null,{"$f":"'II. Headline series'!K301","v":{"v":8.483967270787861,"d":"8.484"}},null,null,83.53846153846153,83.53846153846153]
[1604,2439.0243902439024,{"$f":"90000/13","v":6923.076923076923},null,{"$f":"'II. Headline series'!K302","v":{"v":7.508614070349372,"d":"7.509"}},null,null,83.53846153846153,83.53846153846153]
[1605,2439.0243902439024,{"$f":"90000/13","v":6923.076923076923},null,{"$f":"'II. Headline series'!K303","v":{"v":7.325626957969947,"d":"7.326"}},null,null,83.53846153846153,83.53846153846153]
[1606,2439.0243902439024,null,null,{"$f":"'II. Headline series'!K304","v":{"v":7.741758539344501,"d":"7.742"}},null,null,83.53846153846153,83.53846153846153]
[1607,2439.0243902439024,null,null,{"$f":"'II. Headline series'!K305","v":{"v":7.319549252131638,"d":"7.320"}},null,null,{"$f":"(1086/13)","v":83.53846153846153},83.53846153846153]
[1608,2439.0243902439024,null,null,{"$f":"'II. Headline series'!K306","v":{"v":7.345119040725828,"d":"7.345"}},null,null,83.53846153846153,83.53846153846153]
[1609,2439.0243902439024,null,null,{"$f":"'II. Headline series'!K307","v":{"v":7.315342505186342,"d":"7.315"}},null,null,83.53846153846153,83.53846153846153]
[1610,null,{"$f":"15000/4","v":3750},null,{"$f":"'II. Headline series'!K308","v":{"v":7.277296714273432,"d":"7.277"}},null,null,{"$f":"(175/4)","v":43.75},43.75]
[1611,null,{"$f":"15000/4","v":3750},null,{"$f":"'II. Headline series'!K309","v":{"v":7.217345384617366,"d":"7.217"}},null,null,{"$f":"(175/4)","v":43.75},43.75]
[1612,null,{"$f":"15000/4","v":3750},null,{"$f":"'II. Headline series'!K310","v":{"v":7.27856487906596,"d":"7.279"}},null,null,{"$f":"(175/4)","v":43.75},43.75]
[1613,null,{"$f":"15000/4","v":3750},null,{"$f":"'II. Headline series'!K311","v":{"v":7.465780202292455,"d":"7.466"}},null,null,{"$f":"(175/4)","v":43.75},43.75]
[1614,{"$nulls":3},{"$f":"'II. Headline series'!K312","v":{"v":7.63607177105099,"d":"7.636"}},{"$nulls":3},0]
[1615,null,{"$f":"(6000/3)+2000","v":4000},null,{"$f":"'II. Headline series'!K313","v":{"v":7.526881465017023,"d":"7.527"}},null,null,{"$f":"(70/3)+23","v":46.33333333333333},46.33333333333333]
[1616,null,{"$f":"6000/3","v":2000},null,{"$f":"'II. Headline series'!K314","v":{"v":7.578336534756032,"d":"7.578"}},null,null,{"$f":"70/3","v":23.333333333333332},23.333333333333332]
[1617,null,{"$f":"(6000/3)+(5000/4)","v":3250},null,{"$f":"'II. Headline series'!K315","v":{"v":7.886580307761224,"d":"7.887"}},null,null,{"$f":"(70/3)+(58/4)","v":37.83333333333333},37.83333333333333]
[1618,null,{"$f":"(5000/4)+6000+(15000/3)+(304000/7)","v":55678.57142857143},null,{"$f":"'II. Headline series'!K316","v":{"v":7.870910269096836,"d":"7.871"}},null,null,{"$f":"(70/3)+(58/4)+69+(173/3)+(3535/7)","v":669.5},669.5]
[1619,null,{"$f":"(5000/4)+5000+(304000/7)","v":49678.57142857143},null,{"$f":"'II. Headline series'!K317","v":{"v":7.810541193666642,"d":"7.811"}},null,null,{"$f":"(70/3)+(58/4)+(173/3)+(3535/7)","v":600.5},600.5]
[1620,null,{"$f":"(5000/4)+5000+(304000/7)","v":49678.57142857143},null,{"$f":"'II. Headline series'!K318","v":{"v":7.8131302159782505,"d":"7.813"}},null,null,{"$f":"(70/3)+(58/4)+(173/3)+(3535/7)","v":600.5},600.5]
[1621,null,{"$f":"304000/7","v":43428.57142857143},null,{"$f":"'II. Headline series'!K319","v":{"v":7.6033806436759015,"d":"7.603"}},null,null,{"$f":"(3535/7)","v":505},505]
[1622,7700,{"$f":"304000/7","v":43428.57142857143},null,{"$f":"'II. Headline series'!K320","v":{"v":8.054731148070605,"d":"8.055"}},null,null,{"$f":"(3535/7)","v":505},505]
[1623,null,{"$f":"304000/7","v":43428.57142857143},null,{"$f":"'II. Headline series'!K321","v":{"v":7.8856299005429715,"d":"7.886"}},null,null,{"$f":"(3535/7)","v":505},505]
[1624,10000,{"$f":"304000/7","v":43428.57142857143},null,{"$f":"'II. Headline series'!K322","v":{"v":7.919926401370866,"d":"7.920"}},null,null,{"$f":"(3535/7)","v":505},{"$f":"SUM(G133:H133)","v":505}]
[1625,null,{"$f":"302000/5","v":60400},null,{"$f":"'II. Headline series'!K323","v":{"v":8.008993098107855,"d":"8.009"}},null,null,{"$f":"(3432/5)","v":686.4},686.4]
[1626,null,{"$f":"302000/5","v":60400},null,{"$f":"'II. Headline series'!K324","v":{"v":8.655976115481613,"d":"8.656"}},null,null,{"$f":"(3432/5)","v":686.4},686.4]
[1627,null,{"$f":"302000/5","v":60400},null,{"$f":"'II. Headline series'!K325","v":{"v":8.685162370434565,"d":"8.685"}},null,null,{"$f":"(3432/5)","v":686.4},686.4]
[1628,null,{"$f":"302000/5","v":60400},null,{"$f":"'II. Headline series'!K326","v":{"v":8.538802711972574,"d":"8.539"}},null,null,{"$f":"(3432/5)","v":686.4},686.4]
[1629,null,{"$f":"302000/5","v":60400},null,{"$f":"'II. Headline series'!K327","v":{"v":8.567997559817186,"d":"8.568"}},null,null,{"$f":"(3432/5)","v":686.4},686.4]
[1630,null,{"$f":"314000/5","v":62800},null,{"$f":"'II. Headline series'!K328","v":{"v":8.597075770999973,"d":"8.597"}},null,null,{"$f":"(3568)/5","v":713.6},713.6]
[1631,null,{"$f":"314000/5","v":62800},null,{"$f":"'II. Headline series'!K329","v":{"v":8.668281966459094,"d":"8.668"}},null,null,{"$f":"(3568)/5","v":713.6},713.6]
[1632,null,{"$f":"314000/5","v":62800},null,{"$f":"'II. Headline series'!K330","v":{"v":8.878648823390368,"d":"8.879"}},null,null,{"$f":"(3568)/5","v":713.6},713.6]
[1633,null,{"$f":"314000/5","v":62800},null,{"$f":"'II. Headline series'!K331","v":{"v":8.959368758200766,"d":"8.959"}},null,null,{"$f":"(3568)/5","v":713.6},713.6]
[1634,null,{"$f":"314000/5","v":62800},null,{"$f":"'II. Headline series'!K332","v":{"v":8.56572349196697,"d":"8.566"}},null,null,{"$f":"(3568)/5","v":713.6},713.6]
[1635,null,{"$f":"1151000/13","v":88538.46153846153},null,{"$f":"'II. Headline series'!K333","v":{"v":9.146582660095884,"d":"9.147"}},null,null,{"$f":"(12933)/13","v":994.8461538461538},994.8461538461538]
[1636,null,{"$f":"1151000/13","v":88538.46153846153},null,{"$f":"'II. Headline series'!K334","v":{"v":8.73802023339774,"d":"8.738"}},null,null,{"$f":"(12933)/13","v":994.8461538461538},994.8461538461538]
[1637,null,88538.46153846153,null,{"$f":"'II. Headline series'!K335","v":{"v":8.509007856546127,"d":"8.509"}},null,null,994.8461538461538,994.8461538461538]
[1638,null,88538.46153846153,null,{"$f":"'II. Headline series'!K336","v":{"v":8.527435309226847,"d":"8.527"}},null,null,994.8461538461538,994.8461538461538]
[1639,7000,88538.46153846153,null,{"$f":"'II. Headline series'!K337","v":{"v":8.762253576950947,"d":"8.762"}},null,null,994.8461538461538,994.8461538461538]
[1640,null,88538.46153846153,null,{"$f":"'II. Headline series'!K338","v":{"v":8.520601907129393,"d":"8.521"}},null,null,994.8461538461538,994.8461538461538]
[1641,null,88538.46153846153,null,{"$f":"'II. Headline series'!K339","v":{"v":8.499090401854527,"d":"8.499"}},null,null,994.8461538461538,994.8461538461538]
[1642,null,{"$f":"(1151000/13)+(80000/26)","v":91615.38461538461},null,{"$f":"'II. Headline series'!K340","v":{"v":8.506276076687781,"d":"8.506"}},null,null,{"$f":"(12933/13)+(882/26)","v":1028.7692307692307},1028.7692307692307]
[1643,null,{"$f":"(1151000/13)+(80000/26)","v":91615.38461538461},null,{"$f":"'II. Headline series'!K341","v":{"v":8.507664851560888,"d":"8.508"}},null,null,{"$f":"(12933/13)+(882/26)","v":1028.7692307692307},1028.7692307692307]
[1644,null,{"$f":"(1151000/13)+(80000/26)","v":91615.38461538461},null,{"$f":"'II. Headline series'!K342","v":{"v":8.50327992421215,"d":"8.503"}},null,null,{"$f":"(12933/13)+(882/26)","v":1028.7692307692307},1028.7692307692307]
[1645,null,{"$f":"(1151000/13)+(80000/26)+(72000/19)","v":95404.85829959513},null,{"$f":"'II. Headline series'!K343","v":{"v":8.40742304998086,"d":"8.407"}},null,null,{"$f":"(12933/13)+(882/26)+(791/19)","v":1070.400809716599},1070.400809716599]
[1646,null,{"$f":"(1151000/13)+(80000/26)+(72000/19)","v":95404.85829959513},null,{"$f":"'II. Headline series'!K344","v":{"v":8.403087148981049,"d":"8.403"}},null,null,{"$f":"(12933/13)+(882/26)+(791/19)","v":1070.400809716599},1070.400809716599]
[1647,null,{"$f":"(1151000/13)+(80000/26)+(72000/19)","v":95404.85829959513},null,{"$f":"'II. Headline series'!K345","v":{"v":8.38161617976066,"d":"8.382"}},null,null,{"$f":"(12933/13)+(882/26)+(791/19)","v":1070.400809716599},1070.400809716599]
[1648,null,{"$f":"(80000/26)+(72000/19)+(108000/11)","v":16684.57857931542},null,{"$f":"'II. Headline series'!K346","v":{"v":7.961699652057469,"d":"7.962"}},null,null,{"$f":"(882/26)+(791/19)+(1187/11)","v":183.46374677953625},183.46374677953625]
[1649,null,{"$f":"(80000/26)+(72000/19)+(108000/11)","v":16684.57857931542},null,{"$f":"'II. Headline series'!K347","v":{"v":7.9407687811901555,"d":"7.941"}},null,null,183.46374677953625,183.46374677953625]
[1650,null,{"$f":"(80000/26)+(72000/19)+(108000/11)+2000","v":18684.57857931542},null,{"$f":"'II. Headline series'!K348","v":{"v":7.200466821390687,"d":"7.200"}},null,null,183.46374677953625,183.46374677953625]
[1651,null,{"$f":"(80000/26)+(72000/19)+(108000/11)","v":16684.57857931542},null,{"$f":"'II. Headline series'!K349","v":{"v":8.510961649602947,"d":"8.511"}},null,null,183.46374677953625,183.46374677953625]
[1652,{"$f":"52000/3","v":17333.333333333332},{"$f":"(80000/26)+(72000/19)+(108000/11)","v":16684.57857931542},null,{"$f":"'II. Headline series'!K350","v":{"v":8.602607475016208,"d":"8.603"}},null,{"$f":"282/3","v":94},183.46374677953625,277.4637467795362]
[1653,{"$f":"52000/3","v":17333.333333333332},{"$f":"(80000/26)+(72000/19)+(108000/11)","v":16684.57857931542},null,{"$f":"'II. Headline series'!K351","v":{"v":8.556575184369171,"d":"8.557"}},null,{"$f":"282/3","v":94},183.46374677953625,277.4637467795362]
[1654,{"$f":"52000/3","v":17333.333333333332},{"$f":"(80000/26)+(72000/19)+(108000/11)+(22000/6)","v":20351.24524598209},null,{"$f":"'II. Headline series'!K352","v":{"v":13.388916099841312,"d":"13.389"}},null,{"$f":"282/3","v":94},{"$f":"(882/26)+(791/19)+(1187/11)+(238/6)","v":223.1304134462029},317.1304134462029]
[1655,null,{"$f":"(80000/26)+(72000/19)+(108000/11)+(22000/6)","v":20351.24524598209},null,{"$f":"'II. Headline series'!K353","v":{"v":8.512857715023738,"d":"8.513"}},null,null,{"$f":"(882/26)+(791/19)+(1187/11)+(238/6)","v":223.1304134462029},223.1304134462029]
[1656,null,{"$f":"(80000/26)+(72000/19)+(108000/11)+(22000/6)+(15000/3)","v":25351.24524598209},null,{"$f":"'II. Headline series'!K354","v":{"v":8.491014685532361,"d":"8.491"}},null,null,{"$f":"(882/26)+(791/19)+(1187/11)+(238/6)+(161/3)","v":276.7970801128696},276.7970801128696]
[1657,1000,{"$f":"(80000/26)+(72000/19)+(108000/11)+(22000/6)+(15000/3)+(109000/7)","v":40922.67381741066},null,{"$f":"'II. Headline series'!K355","v":{"v":8.505193445698573,"d":"8.505"}},null,{"$f":"43/4","v":10.75},{"$f":"(882/26)+(791/19)+(1187/11)+(238/6)+(161/3)+(1170/7)","v":443.9399372557267},454.6899372557267]
[1658,1000,{"$f":"(80000/26)+(72000/19)+(108000/11)+(22000/6)+(15000/3)+(109000/7)","v":40922.67381741066},null,{"$f":"'II. Headline series'!K356","v":{"v":8.170287217204004,"d":"8.170"}},null,{"$f":"43/4","v":10.75},{"$f":"(882/26)+(791/19)+(1187/11)+(238/6)+(161/3)+(1170/7)","v":443.9399372557267},454.6899372557267]
[1659,1000,{"$f":"(80000/26)+(72000/19)+(22000/6)+(109000/7)","v":26104.49199922884},null,{"$f":"'II. Headline series'!K357","v":{"v":7.595373597316888,"d":"7.595"}},null,{"$f":"43/4","v":10.75},{"$f":"(882/26)+(791/19)+(238/6)+(1170/7)","v":282.36417967996914},293.11417967996914]
[1660,1000,{"$f":"(80000/26)+(72000/19)+(109000/7)","v":22437.825332562174},null,{"$f":"'II. Headline series'!K358","v":{"v":7.9083194482516985,"d":"7.908"}},null,{"$f":"43/4","v":10.75},{"$f":"(882/26)+(791/19)+(1170/7)","v":242.69751301330248},253.44751301330248]
[1661,null,{"$f":"(80000/26)+(72000/19)+(109000/7)","v":22437.825332562174},null,{"$f":"'II. Headline series'!K359","v":{"v":7.159947802645778,"d":"7.160"}},null,null,{"$f":"(882/26)+(791/19)+(1170/7)","v":242.69751301330248},242.69751301330248]
[1662,null,{"$f":"(80000/26)+(72000/19)+(109000/7)","v":22437.825332562174},null,{"$f":"'II. Headline series'!K360","v":{"v":7.208882004371004,"d":"7.209"}},null,null,242.69751301330248,242.69751301330248]
[1663,null,{"$f":"(80000/26)+(72000/19)+(109000/7)","v":22437.825332562174},null,{"$f":"'II. Headline series'!K361","v":{"v":7.257621045353488,"d":"7.258"}},null,null,242.69751301330248,242.69751301330248]
[1664,null,{"$f":"80000/26","v":3076.923076923077},null,{"$f":"'II. Headline series'!K362","v":{"v":7.250729945818474,"d":"7.251"}},null,null,{"$f":"(882/26)","v":33.92307692307692},33.92307692307692]
[1665,{"$f":"37000/2","v":18500},{"$f":"(80000/26)+2000","v":5076.923076923077},null,{"$f":"'II. Headline series'!K363","v":{"v":7.133155896402341,"d":"7.133"}},null,{"$f":"392/2","v":196},{"$f":"(882/26)+11","v":44.92307692307692},240.9230769230769]
[1666,{"$f":"37000/2","v":18500},{"$f":"80000/26","v":3076.923076923077},null,{"$f":"'II. Headline series'!K364","v":{"v":6.960715378032657,"d":"6.961"}},null,{"$f":"392/2","v":196},242.69751301330248,438.69751301330245]
[1667,4000,{"$f":"80000/26","v":3076.923076923077},null,{"$f":"'II. Headline series'!K365","v":{"v":6.899142310514243,"d":"6.899"}},null,42,242.69751301330248,284.69751301330245]
[1668,{"$nulls":3},{"$f":"'II. Headline series'!K366","v":{"v":6.837754582409625,"d":"6.838"}},{"$nulls":3},0]
[1669,{"$nulls":3},{"$f":"'II. Headline series'!K367","v":{"v":6.7765511592622865,"d":"6.777"}},{"$nulls":3},0]
[1670,{"$nulls":3},{"$f":"'II. Headline series'!K368","v":{"v":6.715531014299712,"d":"6.716"}},{"$nulls":3},0]
[1671,{"$nulls":3},{"$f":"'II. Headline series'!K369","v":{"v":5.726770851871587,"d":"5.727"}},{"$nulls":3},0]
[1672,{"$f":"342000/6","v":57000},{"$f":"5000/4","v":1250},null,{"$f":"'II. Headline series'!K370","v":{"v":5.798489535341055,"d":"5.798"}},null,{"$f":"(3580/6)","v":596.6666666666666},{"$f":"(52/4)","v":13},609.6666666666666]
[1673,57000,{"$f":"5000/4","v":1250},null,{"$f":"'II. Headline series'!K371","v":{"v":5.728537673701174,"d":"5.729"}},null,596.6666666666666,{"$f":"(52/4)","v":13},609.6666666666666]
[1674,57000,{"$f":"5000/4","v":1250},null,{"$f":"'II. Headline series'!K372","v":{"v":5.724162886099203,"d":"5.724"}},null,596.6666666666666,{"$f":"(52/4)","v":13},609.6666666666666]
[1675,57000,{"$f":"5000/4","v":1250},null,{"$f":"'II. Headline series'!K373","v":{"v":5.719792544011901,"d":"5.720"}},null,596.6666666666666,{"$f":"(52/4)","v":13},609.6666666666666]
[1676,57000,null,null,{"$f":"'II. Headline series'!K374","v":{"v":5.715426622945983,"d":"5.715"}},null,596.6666666666666,null,596.6666666666666]
[1677,57000,{"$f":"12000/4","v":3000},null,{"$f":"'II. Headline series'!K375","v":{"v":5.644257254812291,"d":"5.644"}},null,596.6666666666666,{"$f":"125/4","v":31.25},627.9166666666666]
[1678,null,{"$f":"12000/4","v":3000},null,{"$f":"'II. Headline series'!K376","v":{"v":5.65306620326444,"d":"5.653"}},null,null,{"$f":"125/4","v":31.25},31.25]
[1679,null,{"$f":"12000/4","v":3000},null,{"$f":"'II. Headline series'!K377","v":{"v":5.670950519788206,"d":"5.671"}},null,null,{"$f":"125/4","v":31.25},31.25]
[1680,null,{"$f":"12000/4","v":3000},null,{"$f":"'II. Headline series'!K378","v":{"v":5.666488848912986,"d":"5.666"}},null,null,{"$f":"125/4","v":31.25},31.25]
[1681,{"$nulls":3},{"$f":"'II. Headline series'!K379","v":{"v":5.6943473598464545,"d":"5.694"}},{"$nulls":3},0]
[1682,null,{"$f":"386000/17","v":22705.882352941175},null,{"$f":"'II. Headline series'!K380","v":{"v":5.603388258840208,"d":"5.603"}},null,null,{"$f":"3954/17","v":232.58823529411765},232.58823529411765]
[1683,null,{"$f":"(386000/17)+5000","v":27705.882352941175},null,{"$f":"'II. Headline series'!K381","v":{"v":5.61364606407978,"d":"5.614"}},null,null,{"$f":"3954/17","v":232.58823529411765},232.58823529411765]
[1684,null,{"$f":"386000/17","v":22705.882352941175},null,{"$f":"'II. Headline series'!K382","v":{"v":5.656031327742512,"d":"5.656"}},null,null,232.58823529411765,232.58823529411765]
[1685,null,22705.882352941175,null,{"$f":"'II. Headline series'!K383","v":{"v":5.6921686156871445,"d":"5.692"}},null,null,232.58823529411765,232.58823529411765]
[1686,null,22705.882352941175,null,{"$f":"'II. Headline series'!K384","v":{"v":5.728193394868904,"d":"5.728"}},null,null,232.58823529411765,232.58823529411765]
[1687,null,22705.882352941175,null,{"$f":"'II. Headline series'!K385","v":{"v":5.7641062728981325,"d":"5.764"}},null,null,232.58823529411765,232.58823529411765]
[1688,{"$f":"680000/9","v":75555.55555555556},22705.882352941175,null,{"$f":"'II. Headline series'!K386","v":{"v":5.826982287626121,"d":"5.827"}},null,{"$f":"6939/9","v":771},232.58823529411765,{"$f":"SUM(G197:H197)","v":1003.5882352941177}]
[1689,{"$f":"680000/9","v":75555.55555555556},22705.882352941175,null,{"$f":"'II. Headline series'!K387","v":{"v":6.137639680373173,"d":"6.138"}},null,{"$f":"6939/9","v":771},232.58823529411765,1003.5882352941177]
[1690,75555.55555555556,22705.882352941175,null,{"$f":"'II. Headline series'!K388","v":{"v":5.852444214588787,"d":"5.852"}},null,771,232.58823529411765,1003.5882352941177]
[1691,75555.55555555556,22705.882352941175,null,{"$f":"'II. Headline series'!K389","v":{"v":6.240729204011287,"d":"6.241"}},null,771,232.58823529411765,1003.5882352941177]
[1692,75555.55555555556,22705.882352941175,null,{"$f":"'II. Headline series'!K390","v":{"v":5.662598588964544,"d":"5.663"}},null,771,232.58823529411765,1003.5882352941177]
[1693,75555.55555555556,22705.882352941175,null,{"$f":"'II. Headline series'!K391","v":{"v":5.957970932460216,"d":"5.958"}},null,771,232.58823529411765,1003.5882352941177]
[1694,75555.55555555556,22705.882352941175,null,{"$f":"'II. Headline series'!K392","v":{"v":5.938905946197482,"d":"5.939"}},null,771,232.58823529411765,1003.5882352941177]
[1695,75555.55555555556,22705.882352941175,null,{"$f":"'II. Headline series'!K393","v":{"v":5.906095564685153,"d":"5.906"}},null,771,232.58823529411765,1003.5882352941177]
[1696,75555.55555555556,22705.882352941175,null,{"$f":"'II. Headline series'!K394","v":{"v":6.027209018809108,"d":"6.027"}},null,771,232.58823529411765,1003.5882352941177]
[1697,null,22705.882352941175,null,{"$f":"'II. Headline series'!K395","v":{"v":5.629167447088818,"d":"5.629"}},null,null,232.58823529411765,232.58823529411765]
[1698,null,22705.882352941175,null,{"$f":"'II. Headline series'!K396","v":{"v":5.624956951301918,"d":"5.625"}},null,null,232.58823529411765,232.58823529411765]
[1699,{"$nulls":3},{"$f":"'II. Headline series'!K397","v":{"v":5.527850028511161,"d":"5.528"}},{"$nulls":3},0]
[1700,null,{"$f":"64000/21","v":3047.6190476190477},null,{"$f":"'II. Headline series'!K398","v":{"v":5.501496697058988,"d":"5.501"}},null,null,{"$f":"640/21","v":30.476190476190474},30.476190476190474]
[1701,{"$f":"1251000/12","v":104250},{"$f":"64000/21","v":3047.6190476190477},null,{"$f":"'II. Headline series'!K399","v":{"v":5.416755366393464,"d":"5.417"}},null,{"$f":"12490/12","v":1040.8333333333333},{"$f":"640/21","v":30.476190476190474},1071.3095238095236]
[1702,{"$f":"1251000/12","v":104250},3047.6190476190477,null,{"$f":"'II. Headline series'!K400","v":{"v":6.149462124798463,"d":"6.149"}},null,{"$f":"12490/12","v":1040.8333333333333},30.476190476190474,1071.3095238095236]
[1703,104250,3047.6190476190477,null,{"$f":"'II. Headline series'!K401","v":{"v":5.987792972549061,"d":"5.988"}},null,1040.8333333333333,30.476190476190474,1071.3095238095236]
[1704,104250,3047.6190476190477,null,{"$f":"'II. Headline series'!K402","v":{"v":6.465592814613711,"d":"6.466"}},null,1040.8333333333333,30.476190476190474,1071.3095238095236]
[1705,104250,3047.6190476190477,null,{"$f":"'II. Headline series'!K403","v":{"v":6.134830133140972,"d":"6.135"}},null,1040.8333333333333,30.476190476190474,1071.3095238095236]
[1706,104250,3047.6190476190477,null,{"$f":"'II. Headline series'!K404","v":{"v":6.3043401174723,"d":"6.304"}},null,1040.8333333333333,30.476190476190474,1071.3095238095236]
[1707,104250,3047.6190476190477,null,{"$f":"'II. Headline series'!K405","v":{"v":5.6494050438242205,"d":"5.649"}},null,1040.8333333333333,30.476190476190474,1071.3095238095236]
[1708,104250,3047.6190476190477,null,{"$f":"'II. Headline series'!K406","v":{"v":5.764102354558794,"d":"5.764"}},null,1040.8333333333333,30.476190476190474,1071.3095238095236]
[1709,104250,3047.6190476190477,null,{"$f":"'II. Headline series'!K407","v":{"v":5.898083391199331,"d":"5.898"}},null,1040.8333333333333,30.476190476190474,1071.3095238095236]
[1710,104250,3047.6190476190477,null,{"$f":"'II. Headline series'!K408","v":{"v":5.517887744347908,"d":"5.518"}},null,1040.8333333333333,30.476190476190474,1071.3095238095236]
[1711,104250,3047.6190476190477,null,{"$f":"'II. Headline series'!K409","v":{"v":5.564996065932892,"d":"5.565"}},null,1040.8333333333333,30.476190476190474,1071.3095238095236]
[1712,{"$f":"1251000/12","v":104250},3047.6190476190477,null,{"$f":"'II. Headline series'!K410","v":{"v":5.949861822392606,"d":"5.950"}},null,1040.8333333333333,30.476190476190474,1071.3095238095236]
[1713,null,3047.6190476190477,null,{"$f":"'II. Headline series'!K411","v":{"v":4.806398232209785,"d":"4.806"}},null,null,30.476190476190474,30.476190476190474]
[1714,null,{"$f":"64000/21","v":3047.6190476190477},null,{"$f":"'II. Headline series'!K412","v":{"v":5.359833357704569,"d":"5.360"}},null,null,30.476190476190474,30.476190476190474]
[1715,null,3047.6190476190477,null,{"$f":"'II. Headline series'!K413","v":{"v":4.80897584130418,"d":"4.809"}},null,null,30.476190476190474,30.476190476190474]
[1716,null,{"$f":"(64000/21)+5000","v":8047.619047619048},null,{"$f":"'II. Headline series'!K414","v":{"v":4.571674806319819,"d":"4.572"}},null,null,{"$f":"640/21+(98/2)","v":79.47619047619048},79.47619047619048]
[1717,null,{"$f":"(64000/21)+5000","v":8047.619047619048},null,{"$f":"'II. Headline series'!K415","v":{"v":5.029515695696624,"d":"5.030"}},null,null,{"$f":"640/21+(98/2)","v":79.47619047619048},79.47619047619048]
[1718,{"$f":"25000/2","v":12500},3047.6190476190477,null,{"$f":"'II. Headline series'!K416","v":{"v":4.945791450638626,"d":"4.946"}},null,{"$f":"245/2","v":122.5},30.476190476190474,152.97619047619048]
[1719,{"$f":"25000/2","v":12500},3047.6190476190477,null,{"$f":"'II. Headline series'!K417","v":{"v":4.078410650807237,"d":"4.078"}},null,{"$f":"245/2","v":122.5},30.476190476190474,152.97619047619048]
[1720,null,3047.6190476190477,null,{"$f":"'II. Headline series'!K418","v":{"v":3.9697646132422535,"d":"3.970"}},null,null,30.476190476190474,30.476190476190474]
[1721,{"$nulls":3},{"$f":"'II. Headline series'!K419","v":{"v":4.249939887044242,"d":"4.250"}},{"$nulls":3},0]
[1722,{"$nulls":3},{"$f":"'II. Headline series'!K420","v":{"v":4.1134370568427965,"d":"4.113"}},{"$nulls":3},0]
[1723,{"$nulls":3},{"$f":"'II. Headline series'!K421","v":{"v":4.111048731700746,"d":"4.111"}},{"$nulls":3},0]
[1724,{"$nulls":3},{"$f":"'II. Headline series'!K422","v":{"v":4.108686815256082,"d":"4.109"}},{"$nulls":3},0]
[1725,{"$nulls":3},{"$f":"'II. Headline series'!K423","v":{"v":4.18206346172491,"d":"4.182"}},{"$nulls":3},0]
[1726,{"$f":"15000/3","v":5000},null,null,{"$f":"'II. Headline series'!K424","v":{"v":4.4064777159154085,"d":"4.406"}},null,{"$f":"144/3","v":48},null,48]
[1727,{"$f":"15000/3","v":5000},null,null,{"$f":"'II. Headline series'!K425","v":{"v":4.671948238890824,"d":"4.672"}},null,{"$f":"144/3","v":48},null,48]
[1728,{"$f":"15000/3","v":5000},null,null,{"$f":"'II. Headline series'!K426","v":{"v":4.786621563079654,"d":"4.787"}},null,{"$f":"144/3","v":48},null,48]
[1729,{"$nulls":3},{"$f":"'II. Headline series'!K427","v":{"v":4.900408885500935,"d":"4.900"}},{"$nulls":3},0]
[1730,{"$nulls":3},{"$f":"'II. Headline series'!K428","v":{"v":5.060614213417443,"d":"5.061"}},{"$nulls":3},0]
[1731,{"$nulls":3},{"$f":"'II. Headline series'!K429","v":{"v":4.357250001954041,"d":"4.357"}},{"$nulls":3},0]
[1732,{"$nulls":3},{"$f":"'II. Headline series'!K430","v":{"v":5.3025153312280375,"d":"5.303"}},{"$nulls":3},0]
[1733,null,{"$f":"88000/5","v":17600},null,{"$f":"'II. Headline series'!K431","v":{"v":5.4788239286361815,"d":"5.479"}},null,null,{"$f":"836/5","v":167.2},167.2]
[1734,null,{"$f":"88000/5","v":17600},null,{"$f":"'II. Headline series'!K432","v":{"v":5.805762542499081,"d":"5.806"}},null,null,{"$f":"836/5","v":167.2},167.2]
[1735,null,{"$f":"88000/5","v":17600},null,{"$f":"'II. Headline series'!K433","v":{"v":4.4032224297926925,"d":"4.403"}},null,null,{"$f":"836/5","v":167.2},167.2]
[1736,null,{"$f":"(88000/5)+(38000/3)","v":30266.666666666664},null,{"$f":"'II. Headline series'!K434","v":{"v":4.321032864320333,"d":"4.321"}},null,null,{"$f":"836/5+(359/3)","v":286.8666666666667},286.8666666666667]
[1737,null,{"$f":"(88000/5)+(38000/3)","v":30266.666666666664},null,{"$f":"'II. Headline series'!K435","v":{"v":4.019187522340083,"d":"4.019"}},null,null,{"$f":"836/5+(359/3)","v":286.8666666666667},286.8666666666667]
[1738,null,{"$f":"38000/3","v":12666.666666666666},null,{"$f":"'II. Headline series'!K436","v":{"v":3.5142360768195426,"d":"3.514"}},null,null,{"$f":"(359/3)","v":119.66666666666667},119.66666666666667]
[1739,{"$f":"359000/9","v":39888.88888888889},null,null,{"$f":"'II. Headline series'!K437","v":{"v":3.9658208668894765,"d":"3.966"}},null,{"$f":"3379/9","v":375.44444444444446},null,375.44444444444446]
[1740,{"$f":"359000/9","v":39888.88888888889},null,null,{"$f":"'II. Headline series'!K438","v":{"v":5.534212348685516,"d":"5.534"}},null,{"$f":"3379/9","v":375.44444444444446},null,375.44444444444446]
[1741,39888.88888888889,5000,null,{"$f":"'II. Headline series'!K439","v":{"v":4.350338364082394,"d":"4.350"}},null,375.44444444444446,{"$f":"94/2","v":47},422.44444444444446]
[1742,39888.88888888889,5000,null,{"$f":"'II. Headline series'!K440","v":{"v":4.340502221895618,"d":"4.341"}},null,375.44444444444446,{"$f":"94/2","v":47},422.44444444444446]
[1743,39888.88888888889,null,null,{"$f":"'II. Headline series'!K441","v":{"v":4.330606720837588,"d":"4.331"}},null,375.44444444444446,null,375.44444444444446]
[1744,39888.88888888889,null,null,{"$f":"'II. Headline series'!K442","v":{"v":5.818108342204571,"d":"5.818"}},null,375.44444444444446,null,375.44444444444446]
[1745,39888.88888888889,null,null,{"$f":"'II. Headline series'!K443","v":{"v":4.468717970639194,"d":"4.469"}},null,375.44444444444446,null,375.44444444444446]
[1746,39888.88888888889,null,null,{"$f":"'II. Headline series'!K444","v":{"v":4.832895413044463,"d":"4.833"}},null,375.44444444444446,null,375.44444444444446]
[1747,{"$f":"359000/9","v":39888.88888888889},null,null,{"$f":"'II. Headline series'!K445","v":{"v":4.97859794493338,"d":"4.979"}},null,375.44444444444446,null,375.44444444444446]
[1748,{"$nulls":3},{"$f":"'II. Headline series'!K446","v":{"v":4.74424131192443,"d":"4.744"}},{"$nulls":3},0]
[1749,{"$nulls":3},{"$f":"'II. Headline series'!K447","v":{"v":4.376437320535219,"d":"4.376"}},{"$nulls":3},0]
[1750,{"$nulls":3},{"$f":"'II. Headline series'!K448","v":{"v":4.234008560856582,"d":"4.234"}},{"$nulls":3},0]
[1751,{"$nulls":3},{"$f":"'II. Headline series'!K449","v":{"v":4.277205569437389,"d":"4.277"}},{"$nulls":3},0]
[1752,{"$nulls":3},{"$f":"'II. Headline series'!K450","v":{"v":4.200342364347107,"d":"4.200"}},{"$nulls":3},{"$f":"SUM(G261:H261)","v":0}]
[1753,{"$nulls":3},{"$f":"'II. Headline series'!K451","v":{"v":4.035426626989795,"d":"4.035"}},{"$nulls":3},0]
[1754,{"$nulls":3},{"$f":"'II. Headline series'!K452","v":{"v":4.004523984567927,"d":"4.005"}},{"$nulls":3},0]
[1755,{"$f":"992000/8","v":124000},null,null,{"$f":"'II. Headline series'!K453","v":{"v":4.151602968234203,"d":"4.152"}},null,{"$f":"9118/8","v":1139.75},null,1139.75]
[1756,{"$f":"992000/8","v":124000},null,null,{"$f":"'II. Headline series'!K454","v":{"v":4.1362682426059685,"d":"4.136"}},null,{"$f":"9118/8","v":1139.75},null,1139.75]
[1757,124000,null,null,{"$f":"'II. Headline series'!K455","v":{"v":4.585657143278057,"d":"4.586"}},null,1139.75,null,1139.75]
[1758,124000,null,null,{"$f":"'II. Headline series'!K456","v":{"v":4.595253788389112,"d":"4.595"}},null,1139.75,null,1139.75]
[1759,124000,null,null,{"$f":"'II. Headline series'!K457","v":{"v":4.694510175728389,"d":"4.695"}},null,1139.75,null,1139.75]
[1760,124000,null,null,{"$f":"'II. Headline series'!K458","v":{"v":4.936510897988238,"d":"4.937"}},null,1139.75,null,1139.75]
[1761,124000,null,null,{"$f":"'II. Headline series'!K459","v":{"v":4.66945964699634,"d":"4.669"}},null,1139.75,null,1139.75]
[1762,124000,null,null,{"$f":"'II. Headline series'!K460","v":{"v":4.661431298830233,"d":"4.661"}},null,1139.75,null,1139.75]
[1763,{"$nulls":3},{"$f":"'II. Headline series'!K461","v":{"v":4.308799327254967,"d":"4.309"}},{"$nulls":3},0]
[1764,{"$nulls":3},{"$f":"'II. Headline series'!K462","v":{"v":4.626843637337798,"d":"4.627"}},{"$nulls":3},0]
[1765,{"$nulls":3},{"$f":"'II. Headline series'!K463","v":{"v":4.26589260246568,"d":"4.266"}},{"$nulls":3},0]
[1766,{"$nulls":3},{"$f":"'II. Headline series'!K464","v":{"v":4.5728577902979675,"d":"4.573"}},{"$nulls":3},0]
[1767,{"$nulls":3},{"$f":"'II. Headline series'!K465","v":{"v":4.3498000162183725,"d":"4.350"}},{"$nulls":3},0]
[1768,null,{"$f":"(14000/6)+(14000/4)","v":5833.333333333334},null,{"$f":"'II. Headline series'!K466","v":{"v":4.2377654108781,"d":"4.238"}},null,null,{"$f":"127/6+(149/4)","v":58.41666666666667},58.41666666666667]
[1769,null,{"$f":"(14000/6)+(14000/4)","v":5833.333333333334},null,{"$f":"'II. Headline series'!K467","v":{"v":4.734447074077618,"d":"4.734"}},null,null,{"$f":"127/6+(149/4)","v":58.41666666666667},58.41666666666667]
[1770,null,{"$f":"(14000/6)+(14000/4)","v":5833.333333333334},null,{"$f":"'II. Headline series'!K468","v":{"v":5.286938328132986,"d":"5.287"}},null,null,{"$f":"127/6+(149/4)","v":58.41666666666667},58.41666666666667]
[1771,null,{"$f":"(14000/6)+(14000/4)","v":5833.333333333334},null,{"$f":"'II. Headline series'!K469","v":{"v":5.21407738682931,"d":"5.214"}},null,null,{"$f":"127/6+(149/4)","v":58.41666666666667},58.41666666666667]
[1772,null,{"$f":"14000/6","v":2333.3333333333335},null,{"$f":"'II. Headline series'!K470","v":{"v":5.275312780976344,"d":"5.275"}},null,null,{"$f":"127/6","v":21.166666666666668},21.166666666666668]
[1773,null,{"$f":"14000/6","v":2333.3333333333335},null,{"$f":"'II. Headline series'!K471","v":{"v":4.876620994413375,"d":"4.877"}},null,null,{"$f":"127/6","v":21.166666666666668},21.166666666666668]
[1774,{"$nulls":3},{"$f":"'II. Headline series'!K472","v":{"v":4.623645793584627,"d":"4.624"}},{"$nulls":3},0]
[1775,{"$nulls":3},{"$f":"'II. Headline series'!K473","v":{"v":4.323045167990076,"d":"4.323"}},{"$nulls":3},0]
[1776,{"$nulls":3},{"$f":"'II. Headline series'!K474","v":{"v":4.295514546320838,"d":"4.296"}},{"$nulls":3},0]
[1777,{"$nulls":3},{"$f":"'II. Headline series'!K475","v":{"v":4.515930810335748,"d":"4.516"}},{"$nulls":3},0]
[1778,null,{"$f":"300+(34000/6)","v":5966.666666666667},null,{"$f":"'II. Headline series'!K476","v":{"v":4.987954718974312,"d":"4.988"}},null,null,{"$f":"3+(304/6)","v":53.666666666666664},53.666666666666664]
[1779,null,{"$f":"(34000/6)","v":5666.666666666667},null,{"$f":"'II. Headline series'!K477","v":{"v":4.998655121834842,"d":"4.999"}},null,null,{"$f":"304/6","v":50.666666666666664},50.666666666666664]
[1780,null,{"$f":"(34000/6)","v":5666.666666666667},null,{"$f":"'II. Headline series'!K478","v":{"v":4.858255311861124,"d":"4.858"}},null,null,{"$f":"304/6","v":50.666666666666664},50.666666666666664]
[1781,null,{"$f":"(34000/6)","v":5666.666666666667},null,{"$f":"'II. Headline series'!K479","v":{"v":4.942288417129505,"d":"4.942"}},null,null,{"$f":"304/6","v":50.666666666666664},50.666666666666664]
[1782,null,{"$f":"(34000/6)","v":5666.666666666667},null,{"$f":"'II. Headline series'!K480","v":{"v":5.451104879160431,"d":"5.451"}},null,null,{"$f":"304/6","v":50.666666666666664},50.666666666666664]
[1783,null,{"$f":"(34000/6)","v":5666.666666666667},null,{"$f":"'II. Headline series'!K481","v":{"v":5.066212520772596,"d":"5.066"}},null,null,{"$f":"304/6","v":50.666666666666664},50.666666666666664]
[1784,{"$nulls":3},{"$f":"'II. Headline series'!K482","v":{"v":4.991329709225067,"d":"4.991"}},{"$nulls":3},0]
[1785,{"$nulls":3},{"$f":"'II. Headline series'!K483","v":{"v":4.9008091417360236,"d":"4.901"}},{"$nulls":3},0]
[1786,{"$nulls":3},{"$f":"'II. Headline series'!K484","v":{"v":6.528079273186893,"d":"6.528"}},{"$nulls":3},0]
[1787,null,{"$f":"192000/5","v":38400},null,{"$f":"'II. Headline series'!K485","v":{"v":6.005757373050238,"d":"6.006"}},null,null,{"$f":"1685/5","v":337},337]
[1788,null,{"$f":"192000/5+(3000/2)","v":39900},null,{"$f":"'II. Headline series'!K486","v":{"v":6.570197599705534,"d":"6.570"}},null,null,{"$f":"1685/5","v":337},337]
[1789,null,{"$f":"192000/5+(3000/2)","v":39900},null,{"$f":"'II. Headline series'!K487","v":{"v":5.499908849051639,"d":"5.500"}},null,null,{"$f":"1685/5","v":337},337]
[1790,null,{"$f":"192000/5","v":38400},null,{"$f":"'II. Headline series'!K488","v":{"v":4.825838271233256,"d":"4.826"}},null,null,{"$f":"1685/5","v":337},337]
[1791,null,{"$f":"192000/5","v":38400},null,{"$f":"'II. Headline series'!K489","v":{"v":4.312276145800959,"d":"4.312"}},null,null,{"$f":"1685/5","v":337},337]
[1792,null,{"$f":"663000/10","v":66300},null,{"$f":"'II. Headline series'!K490","v":{"v":4.368524027322923,"d":"4.369"}},null,null,{"$f":"(5816/10)","v":581.6},581.6]
[1793,null,{"$f":"663000/10","v":66300},null,{"$f":"'II. Headline series'!K491","v":{"v":4.721047921139453,"d":"4.721"}},null,null,{"$f":"(5816/10)","v":581.6},581.6]
[1794,null,66300,null,{"$f":"'II. Headline series'!K492","v":{"v":4.855251117920198,"d":"4.855"}},null,null,581.6,581.6]
[1795,null,66300,null,{"$f":"'II. Headline series'!K493","v":{"v":4.835338061122977,"d":"4.835"}},null,null,581.6,581.6]
[1796,null,66300,null,{"$f":"'II. Headline series'!K494","v":{"v":5.870662139915598,"d":"5.871"}},null,null,581.6,581.6]
[1797,null,66300,null,{"$f":"'II. Headline series'!K495","v":{"v":8.9994575136114,"d":"8.999"}},null,null,581.6,581.6]
[1798,null,66300,null,{"$f":"'II. Headline series'!K496","v":{"v":15.729296263178835,"d":"15.729"}},null,null,581.6,581.6]
[1799,null,66300,null,{"$f":"'II. Headline series'!K497","v":{"v":9.314019453111037,"d":"9.314"}},null,null,581.6,581.6]
[1800,null,66300,null,{"$f":"'II. Headline series'!K498","v":{"v":6.169919558791199,"d":"6.170"}},null,null,581.6,581.6]
[1801,null,66300,null,{"$f":"'II. Headline series'!K499","v":{"v":5.560310621171968,"d":"5.560"}},null,null,581.6,581.6]
[1802,null,{"$f":"1869000/12","v":155750},null,{"$f":"'II. Headline series'!K500","v":{"v":6.133908381553302,"d":"6.134"}},{"$nulls":3},0]
[1803,{"$f":"280000/12","v":23333.333333333332},{"$f":"(1869000/12)-23333","v":132417},null,{"$f":"'II. Headline series'!K501","v":{"v":6.528842032831264,"d":"6.529"}},null,16.52,{"$f":"(16112/12)-16.52","v":1326.1466666666668},1342.6666666666667]
[1804,{"$f":"280000/12","v":23333.333333333332},{"$f":"(1869000/12)-23333","v":132417},null,{"$f":"'II. Headline series'!K502","v":{"v":6.454108526750875,"d":"6.454"}},null,16.52,{"$f":"(16112/12)-16.52","v":1326.1466666666668},1342.6666666666667]
[1805,23333.333333333332,{"$f":"(1869000/12)-23333","v":132417},null,{"$f":"'II. Headline series'!K503","v":{"v":6.311459253796231,"d":"6.311"}},null,16.52,{"$f":"(16112/12)-16.52","v":1326.1466666666668},1342.6666666666667]
[1806,23333.333333333332,{"$f":"(1869000/12)+(45000/6)-23333","v":139917},null,{"$f":"'II. Headline series'!K504","v":{"v":6.178013469230325,"d":"6.178"}},null,16.52,{"$f":"16112/12+(388/6)","v":1407.3333333333335},1423.8533333333335]
[1807,23333.333333333332,{"$f":"(1869000/12)+(45000/6)-23333","v":139917},null,{"$f":"'II. Headline series'!K505","v":{"v":5.751555382764071,"d":"5.752"}},null,16.52,{"$f":"16112/12+(388/6)","v":1407.3333333333335},1423.8533333333335]
[1808,23333.333333333332,{"$f":"(1869000/12)+(45000/6)+4000-23333","v":143917},null,{"$f":"'II. Headline series'!K506","v":{"v":5.990288700829958,"d":"5.990"}},null,16.52,{"$f":"16112/12+(388/6)+34","v":1441.3333333333335},1457.8533333333335]
[1809,23333.333333333332,{"$f":"(1869000/12)+(45000/6)+2000-23333","v":141917},null,{"$f":"'II. Headline series'!K507","v":{"v":6.080647687205451,"d":"6.081"}},null,16.52,{"$f":"(16112/12)+(388/6)-16.52","v":1390.8133333333335},1407.3333333333335]
[1810,23333.333333333332,{"$f":"(1869000/12)+(45000/6)-23333","v":139917},null,{"$f":"'II. Headline series'!K508","v":{"v":8.236049674327482,"d":"8.236"}},null,16.52,{"$f":"(16112/12)+(388/6)-16.52","v":1390.8133333333335},1407.3333333333335]
[1811,23333.333333333332,{"$f":"(1869000/12)+(45000/6)-23333","v":139917},null,{"$f":"'II. Headline series'!K509","v":{"v":9.829692429655747,"d":"9.830"}},null,16.52,{"$f":"(16112/12)+(388/6)-16.52","v":1390.8133333333335},1407.3333333333335]
[1812,{"$f":"2000+23333","v":25333},{"$f":"(1869000/12)-23333","v":132417},null,{"$f":"'II. Headline series'!K510","v":{"v":9.028390489473118,"d":"9.028"}},null,null,{"$f":"16112/12","v":1342.6666666666667},1342.6666666666667]
[1813,{"$f":"2000+23333","v":25333},{"$f":"(1869000/12)-23333","v":132417},null,{"$f":"'II. Headline series'!K511","v":{"v":9.022885474931645,"d":"9.023"}},null,null,{"$f":"16112/12","v":1342.6666666666667},1342.6666666666667]
[1814,{"$nulls":3},{"$f":"'II. Headline series'!K512","v":{"v":7.961477183330231,"d":"7.961"}},null,null,{"$f":"16112/12","v":1342.6666666666667},1342.6666666666667]
[1815,null,2000,null,{"$f":"'II. Headline series'!K513","v":{"v":8.098014251573362,"d":"8.098"}},null,null,17,17]
[1816,{"$nulls":3},{"$f":"'II. Headline series'!K514","v":{"v":8.495902882077996,"d":"8.496"}},{"$nulls":3},{"$f":"SUM(G325:H325)","v":0}]
[1817,{"$nulls":3},{"$f":"'II. Headline series'!K515","v":{"v":8.166890188218824,"d":"8.167"}},{"$nulls":3},0]
[1818,{"$nulls":3},{"$f":"'II. Headline series'!K516","v":{"v":9.471631683662263,"d":"9.472"}},{"$nulls":3},0]
[1819,{"$nulls":3},{"$f":"'II. Headline series'!K517","v":{"v":10.636656798618112,"d":"10.637"}},{"$nulls":3},0]
[1820,{"$nulls":3},{"$f":"'II. Headline series'!K518","v":{"v":5.991804796705696,"d":"5.992"}},{"$nulls":3},0]
[1821,{"$nulls":3},{"$f":"'II. Headline series'!K519","v":{"v":5.73592100480248,"d":"5.736"}},{"$nulls":3},0]
[1822,{"$nulls":3},{"$f":"'II. Headline series'!K520","v":{"v":5.158825003216403,"d":"5.159"}},{"$nulls":3},0]
[1823,null,400,null,{"$f":"'II. Headline series'!K521","v":{"v":5.671327855089828,"d":"5.671"}},null,null,3,3]
[1824,{"$nulls":3},{"$f":"'II. Headline series'!K522","v":{"v":5.666607915026555,"d":"5.667"}},{"$nulls":3},0]
[1825,{"$nulls":3},{"$f":"'II. Headline series'!K523","v":{"v":7.238514679363743,"d":"7.239"}},{"$nulls":3},0]
[1826,{"$nulls":3},{"$f":"'II. Headline series'!K524","v":{"v":7.1847549037530465,"d":"7.185"}},{"$nulls":3},0]
[1827,null,180,null,{"$f":"'II. Headline series'!K525","v":{"v":7.6444948301505224,"d":"7.644"}},null,null,2,2]
[1828,null,35000,null,{"$f":"'II. Headline series'!K526","v":{"v":7.656500639603454,"d":"7.657"}},null,null,{"$f":"415/1.4","v":296.42857142857144},296.42857142857144]
[1829,null,15000,null,{"$f":"'II. Headline series'!K527","v":{"v":7.0845107798299525,"d":"7.085"}},null,null,120,120]
[1830,{"$nulls":3},{"$f":"'II. Headline series'!K528","v":{"v":6.915310565915541,"d":"6.915"}},{"$nulls":3},0]
[1831,{"$nulls":3},{"$f":"'II. Headline series'!K529","v":{"v":6.702634485092234,"d":"6.703"}},{"$nulls":3},0]
[1832,{"$nulls":3},{"$f":"'II. Headline series'!K530","v":{"v":6.22318125736152,"d":"6.223"}},{"$nulls":3},0]
[1833,{"$nulls":3},{"$f":"'II. Headline series'!K531","v":{"v":5.486908691434203,"d":"5.487"}},{"$nulls":3},0]
[1834,{"$nulls":3},{"$f":"'II. Headline series'!K532","v":{"v":4.478696587221478,"d":"4.479"}},{"$nulls":3},0]
[1835,{"$nulls":3},{"$f":"'II. Headline series'!K533","v":{"v":4.389342866291759,"d":"4.389"}},{"$nulls":3},0]
[1836,{"$nulls":3},{"$f":"'II. Headline series'!K534","v":{"v":5.469564294605897,"d":"5.470"}},{"$nulls":3},0]
[1837,{"$nulls":3},{"$f":"'II. Headline series'!K535","v":{"v":5.480008041719623,"d":"5.480"}},{"$nulls":3},0]
[1838,{"$nulls":3},{"$f":"'II. Headline series'!K536","v":{"v":5.702280986709747,"d":"5.702"}},{"$nulls":3},0]
[1839,{"$nulls":3},{"$f":"'II. Headline series'!K537","v":{"v":5.176708426790068,"d":"5.177"}},{"$nulls":3},0]
[1840,{"$nulls":3},{"$f":"'II. Headline series'!K538","v":{"v":5.1566578124126945,"d":"5.157"}},{"$nulls":3},0]
[1841,{"$nulls":3},{"$f":"'II. Headline series'!K539","v":{"v":5.183329426095024,"d":"5.183"}},{"$nulls":3},0]
[1842,{"$nulls":3},{"$f":"'II. Headline series'!K540","v":{"v":5.21990748974896,"d":"5.220"}},{"$nulls":3},0]
[1843,{"$nulls":3},{"$f":"'II. Headline series'!K541","v":{"v":5.215227421881191,"d":"5.215"}},{"$nulls":3},0]
[1844,{"$nulls":3},{"$f":"'II. Headline series'!K542","v":{"v":4.8443279105091,"d":"4.844"}},{"$nulls":3},0]
[1845,{"$nulls":3},{"$f":"'II. Headline series'!K543","v":{"v":4.8877890677629345,"d":"4.888"}},{"$nulls":3},0]
[1846,{"$nulls":3},{"$f":"'II. Headline series'!K544","v":{"v":5.1246850836584255,"d":"5.125"}},{"$nulls":3},0]
[1847,{"$nulls":3},{"$f":"'II. Headline series'!K545","v":{"v":5.754110025370371,"d":"5.754"}},{"$nulls":3},0]
[1848,null,5600,null,{"$f":"'II. Headline series'!K546","v":{"v":7.08630004589892,"d":"7.086"}},null,null,45,45]
[1849,null,3100,null,{"$f":"'II. Headline series'!K547","v":{"v":5.899296074597635,"d":"5.899"}},null,null,20,20]
[1850,{"$nulls":3},{"$f":"'II. Headline series'!K548","v":{"v":6.002073280163234,"d":"6.002"}},{"$nulls":3},0]
[1851,{"$nulls":3},{"$f":"'II. Headline series'!K549","v":{"v":4.411810085761491,"d":"4.412"}},{"$nulls":3},0]
[1852,{"$nulls":3},{"$f":"'II. Headline series'!K550","v":{"v":4.011766937551779,"d":"4.012"}},{"$nulls":3},0]
[1853,{"$f":"217000/3","v":72333.33333333333},null,null,{"$f":"'II. Headline series'!K551","v":{"v":4.149952702155017,"d":"4.150"}},null,null,{"$f":"1743/3","v":581},581]
[1854,{"$f":"217000/3","v":72333.33333333333},null,null,{"$f":"'II. Headline series'!K552","v":{"v":4.454311160904099,"d":"4.454"}},null,null,{"$f":"1743/3","v":581},581]
[1855,{"$f":"217000/3","v":72333.33333333333},null,null,{"$f":"'II. Headline series'!K553","v":{"v":4.394516749963825,"d":"4.395"}},null,null,{"$f":"1743/3","v":581},581]
[1856,null,500,null,{"$f":"'II. Headline series'!K554","v":{"v":4.34612483662501,"d":"4.346"}},null,null,4,4]
[1857,{"$nulls":3},{"$f":"'II. Headline series'!K555","v":{"v":4.379367216191769,"d":"4.379"}},{"$nulls":3},0]
[1858,{"$nulls":3},{"$f":"'II. Headline series'!K556","v":{"v":4.070432597286996,"d":"4.070"}},{"$nulls":3},0]
[1859,null,20000,null,{"$f":"'II. Headline series'!K557","v":{"v":4.159107274928457,"d":"4.159"}},null,null,159,159]
[1860,{"$nulls":3},{"$f":"'II. Headline series'!K558","v":{"v":4.737513224103098,"d":"4.738"}},{"$nulls":3},0]
[1861,{"$nulls":3},{"$f":"'II. Headline series'!K559","v":{"v":5.045711950291135,"d":"5.046"}},{"$nulls":3},0]
[1862,null,{"$f":"8000/5","v":1600},null,{"$f":"'II. Headline series'!K560","v":{"v":4.7335223331372385,"d":"4.734"}},null,null,{"$f":"64/5","v":12.8},12.8]
[1863,null,{"$f":"8000/5","v":1600},null,{"$f":"'II. Headline series'!K561","v":{"v":4.6346024868645195,"d":"4.635"}},null,null,{"$f":"64/5","v":12.8},12.8]
[1864,null,{"$f":"(8000/5)+1500","v":3100},null,{"$f":"'II. Headline series'!K562","v":{"v":4.657988540253214,"d":"4.658"}},null,null,{"$f":"(64/5)+12","v":24.8},24.8]
[1865,null,{"$f":"8000/5","v":1600},null,{"$f":"'II. Headline series'!K563","v":{"v":4.783021115730229,"d":"4.783"}},null,null,{"$f":"64/5","v":12.8},12.8]
[1866,null,{"$f":"(8000/5)+34000","v":35600},null,{"$f":"'II. Headline series'!K564","v":{"v":4.986582163652146,"d":"4.987"}},null,null,{"$f":"(64/5)+270","v":282.8},282.8]
[1867,{"$nulls":3},{"$f":"'II. Headline series'!K565","v":{"v":5.025922182498609,"d":"5.026"}},{"$nulls":3},0]
[1868,{"$nulls":3},{"$f":"'II. Headline series'!K566","v":{"v":5.017154896234356,"d":"5.017"}},{"$nulls":3},0]
[1869,{"$nulls":3},{"$f":"'II. Headline series'!K567","v":{"v":5.072354689847477,"d":"5.072"}},{"$nulls":3},0]
[1870,null,90000,null,{"$f":"'II. Headline series'!K568","v":{"v":5.606231967297756,"d":"5.606"}},null,null,{"$f":"1415/2","v":707.5},707.5]
[1871,null,90000,null,{"$f":"'II. Headline series'!K569","v":{"v":5.1364601445269304,"d":"5.136"}},null,null,{"$f":"1415/2","v":707.5},707.5]
[1872,{"$nulls":3},{"$f":"'II. Headline series'!K570","v":{"v":5.249760346902013,"d":"5.250"}},{"$nulls":3},0]
[1873,{"$nulls":3},{"$f":"'II. Headline series'!K571","v":{"v":5.5253437122278335,"d":"5.525"}},{"$nulls":3},0]
[1874,{"$nulls":3},{"$f":"'II. Headline series'!K572","v":{"v":5.24833299937227,"d":"5.248"}},{"$nulls":3},0]
[1875,{"$nulls":3},{"$f":"'II. Headline series'!K573","v":{"v":5.120502119270431,"d":"5.121"}},{"$nulls":3},0]
[1876,{"$nulls":3},{"$f":"'II. Headline series'!K574","v":{"v":5.227890715456402,"d":"5.228"}},{"$nulls":3},0]
[1877,null,60000,null,{"$f":"'II. Headline series'!K575","v":{"v":5.20995034483427,"d":"5.210"}},null,null,{"$f":"935/2","v":467.5},467.5]
[1878,null,60000,null,{"$f":"'II. Headline series'!K576","v":{"v":5.000292627615432,"d":"5.000"}},null,null,{"$f":"935/2","v":467.5},467.5]
[1879,{"$nulls":3},{"$f":"'II. Headline series'!K577","v":{"v":4.671118729163864,"d":"4.671"}},{"$nulls":3},0]
[1880,{"$nulls":3},{"$f":"'II. Headline series'!K578","v":{"v":4.32700683208384,"d":"4.327"}},{"$nulls":3},{"$f":"SUM(G389:H389)","v":0}]
[1881,{"$nulls":3},{"$f":"'II. Headline series'!K579","v":{"v":3.986052141523554,"d":"3.986"}},{"$nulls":3},0]
[1882,{"$nulls":3},{"$f":"'II. Headline series'!K580","v":{"v":4.0413551574461435,"d":"4.041"}},{"$nulls":3},0]
[1883,{"$nulls":3},{"$f":"'II. Headline series'!K581","v":{"v":3.853774774222673,"d":"3.854"}},{"$nulls":3},0]
[1884,null,2100,null,{"$f":"'II. Headline series'!K582","v":{"v":3.7289626645746266,"d":"3.729"}},null,null,16,16]
[1885,{"$nulls":3},{"$f":"'II. Headline series'!K583","v":{"v":3.7582842577616047,"d":"3.758"}},{"$nulls":3},0]
[1886,{"$nulls":3},{"$f":"'II. Headline series'!K584","v":{"v":3.604639080172749,"d":"3.605"}},{"$nulls":3},0]
[1887,{"$nulls":3},{"$f":"'II. Headline series'!K585","v":{"v":3.618100255268176,"d":"3.618"}},{"$nulls":3},0]
[1888,{"$nulls":3},{"$f":"'II. Headline series'!K586","v":{"v":3.5386553177041686,"d":"3.539"}},{"$nulls":3},0]
[1889,{"$nulls":3},{"$f":"'II. Headline series'!K587","v":{"v":3.5142309421288127,"d":"3.514"}},{"$nulls":3},0]
[1890,{"$nulls":3},{"$f":"'II. Headline series'!K588","v":{"v":3.535902759674142,"d":"3.536"}},{"$nulls":3},0]
[1891,{"$nulls":3},{"$f":"'II. Headline series'!K589","v":{"v":3.6691928835533134,"d":"3.669"}},{"$nulls":3},0]
[1892,{"$nulls":3},{"$f":"'II. Headline series'!K590","v":{"v":3.6762652741732915,"d":"3.676"}},{"$nulls":3},0]
[1893,{"$nulls":3},{"$f":"'II. Headline series'!K591","v":{"v":3.6832092978036433,"d":"3.683"}},{"$nulls":3},0]
[1894,{"$nulls":3},{"$f":"'II. Headline series'!K592","v":{"v":3.5374695907927345,"d":"3.537"}},{"$nulls":3},0]
[1895,{"$nulls":3},{"$f":"'II. Headline series'!K593","v":{"v":3.5631293230040817,"d":"3.563"}},{"$nulls":3},0]
[1896,{"$nulls":3},{"$f":"'II. Headline series'!K594","v":{"v":3.433634631195969,"d":"3.434"}},{"$nulls":3},0]
[1897,{"$nulls":3},{"$f":"'II. Headline series'!K595","v":{"v":3.2524621314264657,"d":"3.252"}},{"$nulls":3},0]
[1898,{"$nulls":3},{"$f":"'II. Headline series'!K596","v":{"v":3.3648200451650556,"d":"3.365"}},{"$nulls":3},0]
[1899,{"$nulls":3},{"$f":"'II. Headline series'!K597","v":{"v":3.291245709065464,"d":"3.291"}},{"$nulls":3},0]
[1900,{"$nulls":3},{"$f":"'II. Headline series'!K598","v":{"v":3.281076299796346,"d":"3.281"}},{"$nulls":3},0]
[1901,{"$nulls":3},{"$f":"'II. Headline series'!K599","v":{"v":3.279683398933762,"d":"3.280"}},{"$nulls":3},0]
[1902,{"$nulls":3},{"$f":"'II. Headline series'!K600","v":{"v":3.232132388382155,"d":"3.232"}},{"$nulls":3},0]
[1903,{"$nulls":3},{"$f":"'II. Headline series'!K601","v":{"v":3.2990342577082927,"d":"3.299"}},{"$nulls":3},0]
[1904,null,{"$f":"45000/2","v":22500},null,{"$f":"'II. Headline series'!K602","v":{"v":3.350865649121742,"d":"3.351"}},null,null,{"$f":"339/2","v":169.5},169.5]
[1905,null,{"$f":"45000/2","v":22500},null,{"$f":"'II. Headline series'!K603","v":{"v":3.295158826465639,"d":"3.295"}},null,null,{"$f":"339/2","v":169.5},169.5]
[1906,{"$nulls":3},{"$f":"'II. Headline series'!K604","v":{"v":3.278459544275354,"d":"3.278"}},{"$nulls":3},0]
[1907,{"$nulls":3},{"$f":"'II. Headline series'!K605","v":{"v":3.4597667763067905,"d":"3.460"}},{"$nulls":3},0]
[1908,{"$nulls":3},{"$f":"'II. Headline series'!K606","v":{"v":3.385560216100084,"d":"3.386"}},{"$nulls":3},0]
[1909,{"$nulls":3},{"$f":"'II. Headline series'!K607","v":{"v":3.427778617429468,"d":"3.428"}},{"$nulls":3},0]
[1910,{"$nulls":3},{"$f":"'II. Headline series'!K608","v":{"v":3.4713443286317918,"d":"3.471"}},{"$nulls":3},0]
[1911,null,6000,null,{"$f":"'II. Headline series'!K609","v":{"v":3.5531698076331386,"d":"3.553"}},null,null,45,45]
[1912,{"$nulls":3},{"$f":"'II. Headline series'!K610","v":{"v":3.6413685334286097,"d":"3.641"}},{"$nulls":3},0]
[1913,{"$nulls":3},{"$f":"'II. Headline series'!K611","v":{"v":3.749994279484668,"d":"3.750"}},{"$nulls":3},0]
[1914,{"$f":"7734300/5","v":1546860},null,null,{"$f":"'II. Headline series'!K612","v":{"v":3.942624751909361,"d":"3.943"}},null,10251.03872,1272.16128,{"$f":"SUM(G423:H423)","v":11523.2}]
[1915,{"$f":"7734300/5","v":1546860},null,null,{"$f":"'II. Headline series'!K613","v":{"v":4.331194013073424,"d":"4.331"}},null,10251.03872,1272.16128,{"$f":"SUM(G424:H424)","v":11523.2}]
[1916,{"$f":"7734300/5","v":1546860},null,null,{"$f":"'II. Headline series'!K614","v":{"v":4.508831302781849,"d":"4.509"}},null,10251.03872,1272.16128,{"$f":"SUM(G425:H425)","v":11523.2}]
[1917,{"$f":"7734300/5","v":1546860},null,null,{"$f":"'II. Headline series'!K615","v":{"v":4.701444935990467,"d":"4.701"}},null,10251.03872,1272.16128,{"$f":"SUM(G426:H426)","v":11523.2}]
[1918,{"$f":"7734300/5","v":1546860},{"$f":"5000/3","v":1666.6666666666667},null,{"$f":"'II. Headline series'!K616","v":{"v":4.67703119779426,"d":"4.677"}},null,10251,1284.4946133333333,11535.494613333332]
[1919,null,{"$f":"5000/3","v":1666.6666666666667},null,{"$f":"'II. Headline series'!K617","v":{"v":4.993279883990064,"d":"4.993"}},null,null,{"$f":"37/3","v":12.333333333333334},12.333333333333334]
[1920,null,{"$f":"5000/3","v":1666.6666666666667},null,{"$f":"'II. Headline series'!K618","v":{"v":5.533687469376018,"d":"5.534"}},null,null,{"$f":"37/3","v":12.333333333333334},12.333333333333334]
[1921,{"$nulls":3},{"$f":"'II. Headline series'!K619","v":{"v":4.99442311713917,"d":"4.994"}},{"$nulls":3},0]
[1922,{"$nulls":3},{"$f":"'II. Headline series'!K620","v":{"v":4.649884421011316,"d":"4.650"}},{"$nulls":3},0]
[1923,{"$nulls":3},{"$f":"'II. Headline series'!K621","v":{"v":4.70693665161043,"d":"4.707"}},{"$nulls":3},0]
[1924,{"$nulls":3},{"$f":"'II. Headline series'!K622","v":{"v":5.006573106990781,"d":"5.007"}},{"$nulls":3},0]
[1925,{"$nulls":3},{"$f":"'II. Headline series'!K623","v":{"v":5.012054895011938,"d":"5.012"}},{"$nulls":3},0]
[1926,{"$nulls":3},{"$f":"'II. Headline series'!K624","v":{"v":4.528917116876592,"d":"4.529"}},{"$nulls":3},0]
[1927,{"$nulls":3},{"$f":"'II. Headline series'!K625","v":{"v":4.309895530782146,"d":"4.310"}},{"$nulls":3},0]
[1928,{"$nulls":3},{"$f":"'II. Headline series'!K626","v":{"v":4.4116626349527435,"d":"4.412"}},{"$nulls":3},0]
[1929,{"$nulls":3},{"$f":"'II. Headline series'!K627","v":{"v":4.3284140108071405,"d":"4.328"}},{"$nulls":3},0]
[1930,{"$nulls":3},{"$f":"'II. Headline series'!K628","v":{"v":4.2225038857013155,"d":"4.223"}},{"$nulls":3},0]
[1931,null,{"$f":"10000/2","v":5000},null,{"$f":"'II. Headline series'!K629","v":{"v":4.585284905169944,"d":"4.585"}},null,null,{"$f":"73/2","v":36.5},36.5]
[1932,null,{"$f":"10000/2","v":5000},null,{"$f":"'II. Headline series'!K630","v":{"v":4.333417210649485,"d":"4.333"}},null,null,{"$f":"73/2","v":36.5},36.5]
[1933,{"$nulls":3},{"$f":"'II. Headline series'!K631","v":{"v":4.268674177418331,"d":"4.269"}},{"$nulls":3},0]
[1934,{"$nulls":3},{"$f":"'II. Headline series'!K632","v":{"v":3.911866600494554,"d":"3.912"}},{"$nulls":3},0]
[1935,null,4000,null,{"$f":"'II. Headline series'!K633","v":{"v":3.6489226728721618,"d":"3.649"}},null,null,29,29]
[1936,{"$nulls":3},{"$f":"'II. Headline series'!K634","v":{"v":3.4051646683463908,"d":"3.405"}},{"$nulls":3},0]
[1937,null,{"$f":"250000/4","v":62500},null,{"$f":"'II. Headline series'!K635","v":{"v":3.406827941663026,"d":"3.407"}},null,null,{"$f":"1813/4.4","v":412.0454545454545},412.0454545454545]
[1938,null,{"$f":"250000/4","v":62500},null,{"$f":"'II. Headline series'!K636","v":{"v":3.285943038526413,"d":"3.286"}},null,null,{"$f":"1813/4.4","v":412.0454545454545},412.0454545454545]
[1939,{"$f":"12948300/7","v":1849757.142857143},{"$f":"(250000/4)+16000","v":78500},null,{"$f":"'II. Headline series'!K637","v":{"v":3.321663527897857,"d":"3.322"}},null,{"$f":"93665/7","v":13380.714285714286},{"$f":"1813/4.4","v":412.0454545454545},13792.75974025974]
[1940,{"$f":"12948300/7","v":1849757.142857143},{"$f":"250000/4","v":62500},null,{"$f":"'II. Headline series'!K638","v":{"v":3.1045094459227,"d":"3.105"}},null,{"$f":"93665/7","v":13380.714285714286},{"$f":"1813/4.4","v":412.0454545454545},13792.75974025974]
[1941,1849757.142857143,null,null,{"$f":"'II. Headline series'!K639","v":{"v":3.025586180849616,"d":"3.026"}},null,13380.714285714286,null,13380.714285714286]
[1942,1849757.142857143,null,null,{"$f":"'II. Headline series'!K640","v":{"v":2.930162688453291,"d":"2.930"}},null,13380.714285714286,null,13380.714285714286]
[1943,1849757.142857143,null,null,{"$f":"'II. Headline series'!K641","v":{"v":2.8669358789617694,"d":"2.867"}},null,13380.714285714286,null,13380.714285714286]
[1944,1849757.142857143,null,null,{"$f":"'II. Headline series'!K642","v":{"v":2.1341408199298026,"d":"2.134"}},null,13380.714285714286,null,{"$f":"SUM(G453:H453)","v":13380.714285714286}]
[1945,1849757.142857143,null,null,{"$f":"'II. Headline series'!K643","v":{"v":1.8681602026166821,"d":"1.868"}},null,13380.714285714286,null,13380.714285714286]
[1946,{"$nulls":3},{"$f":"'II. Headline series'!K644","v":{"v":2.5098497770383483,"d":"2.510"}},{"$nulls":3},0]
[1947,{"$nulls":3},{"$f":"'II. Headline series'!K645","v":{"v":2.905007002851502,"d":"2.905"}},{"$nulls":3},0]
[1948,{"$nulls":3},{"$f":"'II. Headline series'!K646","v":{"v":3.156330825526261,"d":"3.156"}},{"$nulls":3},0]
[1949,{"$nulls":3},{"$f":"'II. Headline series'!K647","v":{"v":3.0407878206436565,"d":"3.041"}},{"$nulls":3},0]
[1950,{"$nulls":3},{"$f":"'II. Headline series'!K648","v":{"v":3.354826308533807,"d":"3.355"}},{"$nulls":3},0]
[1951,{"$nulls":3},{"$f":"'II. Headline series'!K649","v":{"v":3.6061886415019164,"d":"3.606"}},{"$nulls":3},0]
[1952,{"$nulls":3},{"$f":"'II. Headline series'!K650","v":{"v":3.601701125946998,"d":"3.602"}},{"$nulls":3},0]
[1953,{"$nulls":3},{"$f":"'II. Headline series'!K651","v":{"v":4.022074355866524,"d":"4.022"}},{"$nulls":3},0]
[1954,{"$nulls":3},{"$f":"'II. Headline series'!K652","v":{"v":3.7290582247044175,"d":"3.729"}},{"$nulls":3},0]
[1955,{"$nulls":3},{"$f":"'II. Headline series'!K653","v":{"v":4.191985993548953,"d":"4.192"}},{"$nulls":3},0]
[1956,{"$nulls":3},{"$f":"'II. Headline series'!K654","v":{"v":4.921992653230046,"d":"4.922"}},{"$nulls":3},0]
[1957,{"$nulls":3},{"$f":"'II. Headline series'!K655","v":{"v":5.138630127013343,"d":"5.139"}},{"$nulls":3},0]
[1958,{"$nulls":3},{"$f":"'II. Headline series'!K656","v":{"v":4.947993745610045,"d":"4.948"}},{"$nulls":3},0]
[1959,{"$nulls":3},{"$f":"'II. Headline series'!K657","v":{"v":5.500507052878599,"d":"5.501"}},{"$nulls":3},0]
[1960,{"$nulls":3},{"$f":"'II. Headline series'!K658","v":{"v":5.138953645863137,"d":"5.139"}},{"$nulls":3},0]
[1961,{"$nulls":3},{"$f":"'II. Headline series'!K659","v":{"v":5.780525051047905,"d":"5.781"}},{"$nulls":3},0]
[1962,{"$nulls":3},{"$f":"'II. Headline series'!K660","v":{"v":5.20497020926443,"d":"5.205"}},{"$nulls":3},0]
[1963,{"$nulls":3},{"$f":"'II. Headline series'!K661","v":{"v":5.365963560352292,"d":"5.366"}},{"$nulls":3},0]
[1964,{"$nulls":3},{"$f":"'II. Headline series'!K662","v":{"v":5.616247675105328,"d":"5.616"}},{"$nulls":3},0]
[1965,{"$nulls":3},{"$f":"'II. Headline series'!K663","v":{"v":5.8304720115214055,"d":"5.830"}},{"$nulls":3},0]
[1966,{"$nulls":3},{"$f":"'II. Headline series'!K664","v":{"v":5.769449442930461,"d":"5.769"}},{"$nulls":3},0]
[1967,{"$nulls":3},{"$f":"'II. Headline series'!K665","v":{"v":6.194179663649858,"d":"6.194"}},{"$nulls":3},0]
[1968,{"$nulls":3},{"$f":"'II. Headline series'!K666","v":{"v":6.48484174784888,"d":"6.485"}},{"$nulls":3},0]
[1969,{"$nulls":3},{"$f":"'II. Headline series'!K667","v":{"v":7.6926516453294065,"d":"7.693"}},{"$nulls":3},0]
[1970,{"$nulls":3},{"$f":"'II. Headline series'!K668","v":{"v":7.441481669052421,"d":"7.441"}},{"$nulls":3},0]
[1971,{"$nulls":3},{"$f":"'II. Headline series'!K669","v":{"v":7.008782268031137,"d":"7.009"}},{"$nulls":3},0]
[1972,{"$nulls":3},{"$f":"'II. Headline series'!K670","v":{"v":7.268984979828245,"d":"7.269"}},{"$nulls":3},0]
[1973,{"$nulls":3},{"$f":"'II. Headline series'!K671","v":{"v":8.008067694212365,"d":"8.008"}},{"$nulls":3},0]
[1974,{"$nulls":3},{"$f":"'II. Headline series'!K672","v":{"v":9.34259199035106,"d":"9.343"}},{"$nulls":3},0]
[1975,{"$nulls":3},{"$f":"'II. Headline series'!K673","v":{"v":9.130235457978563,"d":"9.130"}},{"$nulls":3},0]
[1976,{"$nulls":3},{"$f":"'II. Headline series'!K674","v":{"v":8.815851219709439,"d":"8.816"}},{"$nulls":3},0]
[1977,{"$nulls":3},{"$f":"'II. Headline series'!K675","v":{"v":8.732740467690837,"d":"8.733"}},{"$nulls":3},0]
[1978,{"$nulls":3},{"$f":"'II. Headline series'!K676","v":{"v":9.101992132979687,"d":"9.102"}},{"$nulls":3},0]
[1979,{"$nulls":3},{"$f":"'II. Headline series'!K677","v":{"v":10.307189174518088,"d":"10.307"}},{"$nulls":3},0]
[1980,{"$nulls":3},{"$f":"'II. Headline series'!K678","v":{"v":12.015512238906398,"d":"12.016"}},{"$nulls":3},0]
[1981,{"$nulls":3},{"$f":"'II. Headline series'!K679","v":{"v":13.226479701395577,"d":"13.226"}},{"$nulls":3},0]
[1982,{"$nulls":3},{"$f":"'II. Headline series'!K680","v":{"v":12.220701336852965,"d":"12.221"}},{"$nulls":3},0]
[1983,{"$nulls":3},{"$f":"'II. Headline series'!K681","v":{"v":10.943260483572557,"d":"10.943"}},{"$nulls":3},0]
[1984,{"$nulls":3},{"$f":"'II. Headline series'!K682","v":{"v":10.80426450328617,"d":"10.804"}},{"$nulls":3},0]
[1985,{"$nulls":3},{"$f":"'II. Headline series'!K683","v":{"v":9.572514915884657,"d":"9.573"}},{"$nulls":3},0]
[1986,{"$nulls":3},{"$f":"'II. Headline series'!K684","v":{"v":7.636846084702306,"d":"7.637"}},{"$nulls":3},0]
[1987,{"$nulls":3},{"$f":"'II. Headline series'!K685","v":{"v":8.058588000864162,"d":"8.059"}},{"$nulls":3},0]
[1988,{"$nulls":3},{"$f":"'II. Headline series'!K686","v":{"v":8.11966232587984,"d":"8.120"}},{"$nulls":3},0]
[1989,{"$nulls":3},{"$f":"'II. Headline series'!K687","v":{"v":8.525425447070687,"d":"8.525"}},{"$nulls":3},0]
[1990,{"$nulls":3},{"$f":"'II. Headline series'!K688","v":{"v":9.10004953638829,"d":"9.100"}},{"$nulls":3},0]
[1991,{"$nulls":3},{"$f":"'II. Headline series'!K689","v":{"v":8.197280577882648,"d":"8.197"}},{"$nulls":3},0]
[1992,{"$nulls":3},{"$f":"'II. Headline series'!K690","v":{"v":7.542470298324598,"d":"7.542"}},{"$nulls":3},0]
[1993,{"$nulls":3},{"$f":"'II. Headline series'!K691","v":{"v":5.748576798681738,"d":"5.749"}},{"$nulls":3},0]
[1994,{"$nulls":3},{"$f":"'II. Headline series'!K692","v":{"v":7.447423917049583,"d":"7.447"}},{"$nulls":3},0]
[1995,{"$nulls":3},{"$f":"'II. Headline series'!K693","v":{"v":6.4755410600335015,"d":"6.476"}},{"$nulls":3},0]
[1996,{"$nulls":3},{"$f":"'II. Headline series'!K694","v":{"v":5.874451033232712,"d":"5.874"}},{"$nulls":3},0]
[1997,{"$nulls":3},{"$f":"'II. Headline series'!K695","v":{"v":5.373158234389696,"d":"5.373"}},{"$nulls":3},0]
[1998,{"$nulls":3},{"$f":"'II. Headline series'!K696","v":{"v":4.366252972498548,"d":"4.366"}},{"$nulls":3},0]
[1999,{"$nulls":3},{"$f":"'II. Headline series'!K697","v":{"v":4.910200007040628,"d":"4.910"}},{"$nulls":3},0]
[2000,{"$nulls":3},{"$f":"'II. Headline series'!K698","v":{"v":4.985423440822344,"d":"4.985"}},{"$nulls":3},0]
[2001,{"$nulls":3},{"$f":"'II. Headline series'!K699","v":{"v":4.47250951091319,"d":"4.473"}},{"$nulls":3},0]
[2002,{"$nulls":3},{"$f":"'II. Headline series'!K700","v":{"v":3.9784405405668712,"d":"3.978"}},{"$nulls":3},0]
[2003,{"$nulls":3},{"$f":"'II. Headline series'!K701","v":{"v":3.761044563648659,"d":"3.761"}},{"$nulls":3},0]
[2004,{"$nulls":3},{"$f":"'II. Headline series'!K702","v":{"v":3.718567145779353,"d":"3.719"}},{"$nulls":3},0]
[2005,{"$nulls":3},{"$f":"'II. Headline series'!K703","v":{"v":3.6039616125367315,"d":"3.604"}},{"$nulls":3},0]
[2006,{"$nulls":3},{"$f":"'II. Headline series'!K704","v":{"v":4.053934638691198,"d":"4.054"}},{"$nulls":3},0]
[2007,{"$nulls":3},{"$f":"'II. Headline series'!K705","v":{"v":4.099589958164762,"d":"4.100"}},{"$nulls":3},0]
[2008,{"$nulls":3},{"$f":"'II. Headline series'!K706","v":{"v":3.3234819324899285,"d":"3.323"}},{"$nulls":3},{"$f":"SUM(G517:H517)","v":0}]
[2009,{"$nulls":3},{"$f":"'II. Headline series'!K707","v":{"v":3.1861041431727837,"d":"3.186"}},{"$nulls":3},0]
[2010,{"$nulls":3},{"$f":"'II. Headline series'!K708","v":{"v":3.184351451660979,"d":"3.184"}},{"$nulls":3},0]
[2011,{"$nulls":3},{"$f":"'II. Headline series'!K709","v":{"v":2.9099414998014144,"d":"2.910"}},{"$nulls":3},0]
[2012,{"$nulls":3},{"$f":"'II. Headline series'!K710","v":{"v":2.0878420868208964,"d":"2.088"}},{"$nulls":3},0]
[2013,{"$nulls":3},{"$f":"'II. Headline series'!K711","v":{"v":2.3959200024151732,"d":"2.396"}},{"$nulls":3},0]
[2014,{"$nulls":3},{"$f":"'II. Headline series'!K712","v":{"v":1.791864686139546,"d":"1.792"}},{"$nulls":3},0]
[2015,{"$nulls":3},{"$f":"'II. Headline series'!K713","v":{"v":1.548008366666098,"d":"1.548"}},{"$nulls":3},0]
[2016,{"$nulls":3},{"$f":"'II. Headline series'!K714","v":{"v":1.2411368084451249,"d":"1.241"}},{"$nulls":3},0]
[2017,{"$nulls":3},{"$f":"'II. Headline series'!K715","v":{"v":1.529041041397436,"d":"1.529"}},{"$nulls":3},0]
[2018,{"$nulls":3},{"$f":"'II. Headline series'!K716","v":{"v":1.8171176362490633,"d":"1.817"}},{"$nulls":3},{"$f":"SUM(G527:H527)","v":0}]